{"text_format":"1","workbook":"xlsx","n_sheets":9,"sheets":["Contents","Definitions","Core Client Outcomes Set","Full set Core Client Indicator","Select Outcome Domain","Selection_Hide2","Selection_Hide1","Detailed scoring","PP State Outcome mapping"],"not_rendered":{"charts":0,"images":4,"macros":1,"external_links":2,"defined_names":59,"comments":0,"pivot_tables":8},"unopened":[],"bounds":{"document_bytes":16777216,"sheet_cells":100000,"rows_first":2000,"rows_last":500,"rows_between":2000,"halvings":0,"cell_chars":16384,"cell_head_chars":4096},"cells_cut":0,"cells_raw":0,"read":"whole","date_system":"1900"}

{"sheet":"Contents","index":0,"n_rows":26,"n_cols":2,"rows_kept":26,"cut":false,"hidden":false,"merged":[[25,0,27,1]]}
[]
[]
[]
[]
[]
["Contents"]
[]
["Definitions","Key terms and concepts."]
["Core Client Outcomes Set","An overview of the core client outcomes."]
["Full set Core Client Outcomes and Indicators","The complete details of all indicators contained in the Client Outcome and Indicator Bank including information on where data is available."]
["Select Outcome Domain","To quickly subset the Indicator Bank by Domain."]
["Detailed scoring for indicators ","Detailed scores based on selection methodology. This should be read in conjunction with our guides. "]
["Premier's priority and State Outcome mapping","Indicators mapped to the Premier's Priorities and State Outcomes. Not all Outcomes fall under the Stronger Communities Cluster."]
[]
[]
[]
[]
[]
[]
[]
[]
[]
[]
[]
[]
["Indicator Bank as at December 2020. The Client Outcome and Indicator Bank is not an exhaustive list of client outcomes and indicators. It will be updated and revised as new information, evidence and data becomes available."]

{"sheet":"Definitions","index":1,"n_rows":23,"n_cols":2,"rows_kept":23,"cut":false,"hidden":false,"merged":[]}
[]
[]
[]
[]
[]
["Definitions"]
[]
["Indicative timeframes","Refers to whether something is a short, medium or long-term outcome"]
["Indicative level of shared attribution","Extent to which achievement of the outcome is shared across other agencies and clusters"]
["Measurability","The ability of the indicator to be quantified (observed)."]
["Validity","The indicator measures what is purports to measures and is relevant to the outcome."]
["Reliability","The indicator will produce consistent and comparable results across time periods, geographies, jurisdictions and cohorts."]
["Sensitivity","The ability of the indicator to capture true positives, detect change in the outcome and be disaggregated at a cohort level."]
["Acceptability","The indicator does not induce unnecessary risk to the parties involved in measurement."]
["Interpretability","The indicator is understandable to a broad audience so that the community can come to its own judgements about its meaning (unambiguous)."]
[]
["Key DCJ databases"]
[]
["CIMS","Client Information Management System. The Client Information Management System (CIMS) is a Specialist Homelessness Services tool that supports good practice through consistent processes for homelessness service provider. The CIMS helps providers deliver a better and faster response for people who are homeless or at risk of becoming homeless."]
["HOMES","Housing Operations Management and Extended Services (HOMES) system. HOMES captures operational data for the management of housing clients, vendors and assets. The Enterprise Data Warehouse (EDW) is the repository for information uploaded from HOMES. HOMES data is uploaded monthly."]
["CHIMES","Community Housing Information Management 'E' System (CHIMES). The CHIMES is a customer relationship management system used to capture information about community housing. The system is used to monitor and manage contractual arrangements with community housing providers, capture information about properties the sector owns and/or manages, and record interactions. CHIMES is a cloud-based system which is live."]
["EDW","Enterprise Data Warehouse"]
["ChildStory - Client Information Warehouse","ChildStory is an information technology system that places a child or young person at the centre of their story. It brings together a child’s network of family, carers, caseworkers and service providers. ChildStory helps a child’s network focus on their safety and wellbeing by working together."]

{"sheet":"Core Client Outcomes Set","index":2,"n_rows":40,"n_cols":4,"rows_kept":40,"cut":false,"hidden":false,"merged":[[31,0,34,0],[35,0,39,0],[3,0,8,0],[9,0,14,0],[15,0,19,0],[20,0,25,0],[26,0,30,0]]}
[]
["Core Client Outcomes Set"]
["DOMAIN","CORE CLIENT OUTCOME","INDICATIVE TIMEFRAME","INDICATIVE LEVEL OF SHARED ATTRIBUTION"]
["SAFETY","People are safe from abuse and neglect","Short","Low"]
[null,"Parents, carers, and kin have the skills and capacity to keep children and young people safe at home","Short","Low"]
[null,"Children and young people grow up in families and communities that are stable and supportive with strong relationships","Medium","Low"]
[null,"People feel that the importance of their family and culture is recognised, respected and understood","Medium","Medium"]
[null,"People are safe from domestic and family violence​","Long","Low"]
[null,"People are physically and emotionally safe in their communities​","Long","Medium"]
["HOME","People have stability in their home","Short","Low"]
[null,"Housing is appropriate to occupants’ needs","Short","Low"]
[null,"People live in housing with good condition and with good access to local facilities and services","Short","Low"]
[null,"Housing is affordable for people","Medium","Medium"]
[null,"People are able to live independent from housing support","Long","Medium"]
[null,"Aboriginal people are able to live on Country or in a community of belonging","Long","Medium"]
["SOCIAL AND COMMUNITY","Aboriginal people know who their family are and are able to feel a connection to them","Short","Low"]
[null,"People live in communities with good conditions and with good access to local facilities and services","Short","Medium"]
[null,"People are connected to supportive relationships","Medium","High"]
[null,"People feel a sense of connection and belonging to their communities","Long","Low"]
[null,"People feel a sense of connection and belonging to their culture and identities","Long","High"]
["EMPOWERMENT","Aboriginal people have a voice in community decision-making","Short","Medium"]
[null,"People are in charge of their own lives and feel a sense of choice and control (self-determination)","Short","Medium"]
[null,"People have a belief in self ","Short","High"]
[null,"People have hope for the future","Medium","High"]
[null,"People are resilient and are able to tackle major life challenges","Long","High"]
[null,"People have cultural empowerment","Long","High"]
["HEALTH","People have a healthy lifestyle and avoid risk taking behaviours that negatively impact their health","Short","Medium"]
[null,"Mothers have healthy pregnancies and babies have good birth outcomes","Short","High"]
[null,"Aboriginal people heal from inter-generational trauma and loss","Medium","Medium"]
[null,"People have good physical health","Long","High"]
[null,"People have good mental health and social and emotional wellbeing","Long","High"]
["EDUCATION AND SKILLS","Children and young people participate in education or skills training","Short","Medium"]
[null,"People are engaged in their learning and strive for excellence in their education","Medium","Medium"]
[null,"People are ready at each point of educational transition (e.g. have education and skills required to be work or school ready)","Medium","High"]
[null,"People achieve their educational aspirations","Long","High"]
["ECONOMIC","Adults and young people are able to participate in education, training or the labour force","Short","Medium"]
[null,"People have financial literacy and financial management skills","Short","Medium"]
[null,"Adults and young people who are able to work are employed","Medium","Medium"]
[null,"Adults and young people who are able to work are in continuous employment","Long","Medium"]
[null,"People have financial security and autonomy​","Long","High"]

{"sheet":"Full set Core Client Indicator","index":3,"n_rows":119,"n_cols":28,"rows_kept":119,"cut":false,"hidden":false,"merged":[[1,0,1,4]]}
[]
["Core Client Outcomes and Indicators"]
["ID","Outcome domain","Client outcome","Indicator","Measures","Measure source","Data availability status","Data Report","Data elements","Counting rules","Data custodian","Linkage platform","Age ranges 0-4","Age ranges 5-12","Age ranges 13-17","Age ranges 18-24","Age ranges 25-64","Age ranges 65+","Client data avaliable for TEI","Client data avaliable for  Child Protection and OOHC","Client data avaliable for Public Housing and AHO","Client data avaliable for Community Housing","Client data avaliable for Specialist Homelessness Services","Data available from (full year)","Frequency of data collection","Collection method","Known data issues","Notes"]
[10,"Economic","Adults and young people who are able to work are employed","Proportion (%) of people who are unemployed","Persons employment status from options of:\nNot applicable\nEmployed\nUnemployed\nNot in labour force\nDon't know","Existing DCJ measure ","DCJ data","CIMS","* Persons employment status","Numerator: Number of person who identify as employment status = Unemployed \nDenominator: Total Number of who identify as employment status = Unemployed OR Employed","DCJ",null,null,null,null,"y","y","y","No","NA","No","No","Yes","FY 2011-2012","Monthly","self reported client survey",null,"* For Social Housing clients a proxy indicator can be derived from the clients main source of income (i.e. as either being wages or unemployment benefits)\n* AIHW National Social Housing Survey consistent data is available from 2012 onwards. Prior to this the survey questions changed in each iteration."]
[12,"Economic","Adults and young people are able to participate in education, training or the labour force","Proportion (%) of people who are unemployed and currently enrolled in some form of education or training","Persons employment status from options of:\nNot applicable\nEmployed\nUnemployed\nNot in labour force\nDon't know\n\nPersons education enrolment status from options of:\nNot applicable\nPreschool student\nPrimary student\nSecondary student\nUniversity student\nVocational student\nOther\nDon't know\n","Existing DCJ measure ","DCJ data","CIMS","* Persons employment status\n* Education or training enrolment status","Numerator: Number of people who are enrolled in education or training\nDenominator: Number People who identify as employment status = Unemployed\nFilters: People who identify as employment status = Unemployed","DCJ",null,null,null,null,"y","y","y","No","NA","No","No","Yes","FY 2011-2012","Monthly","self reported client survey",null,"* While ABS collects data on unemployment and education status in their labour force survey this numbers are not reported publicly\n* For Social Housing clients a proxy indicator can be derived from the clients main source of income (i.e. as either being wages or unemployment benefits)"]
["49","Education and Skills","Children and young people participate in education or skills training","Proportion (%) of students who attended school 90 per cent or more of the time","Information not publicly available","External agency measure (NSW Department of Education)","Data linkage ","Attendance data set","Information not publicly available","Counting rules to be developed in consultation with data custodian","NSW Department of Education","NSW Department of Education",null,"y","y",null,null,null,"No","No","No","No","No",2006,"Yearly","education data","* Data is only publicly available for government funded schools"]
["58","Education and Skills","People are engaged in their learning and strive for excellence in their education","Proportion (%) of students at or above the national minimum standard for literacy and numeracy (NAPLAN) ","NAPLAN","External agency measure (ACARA)","Data linkage ","NAPLAN","* Persons reading band [Readingbandstudent]\n* Persons writing band [Writingbandstudent]\n* Persons spelling band [Spellingbandstudent]\n* Persons gramma band [Grampunctbandstudent]\n* Persons numeracy band [Numeracybandstudent]\n* Year Level\n\nDerived values:\n* Indicator if person is above minimum standard for all bands\nNote: For NAPLAN results, a national minimum standard is defined and located on the assessment scale for each year level. Band 2 is the minimum standard for Year 3, band 4 is the minimum standard for Year 5, band 5 is the minimum standard for Year 7 and band 6 is the minimum standard for Year 9.","Numerator: Number of children and young people at or above the minimum band for the relevant school grade\nDenominator: All children and young people who completed NAPLAN"," Australian Curriculum, Assessment and Reporting Authority","NSW Education Standards Authority (NESA)",null,"y","y",null,null,null,"No","No","No","No","No",2008,"Yearly","education data",null,"* Note OOHC and NAPLAN – NESA project under development may result in data linkage for OOHC and Social Housing clients"]
["59","Education and Skills","People are engaged in their learning and strive for excellence in their education","Proportion (%) of students who achieve an ATAR of 50.0 or above","ATAR","External agency measure (UAC)","Data linkage ","ATAR data set","Information not publicly available","Counting rules to be developed in consultation with data custodian","Universities Admissions Centre","Universities Admissions Centre",null,null,"y","y",null,null,"No","No","No","No","No",2007,"Yearly","education data",null,"* Note OOHC and NAPLAN – NESA project under development may result in data linkage for OOHC and Social Housing clients\n* Average ATAR is usually around 70"]
["63","Education and Skills","People are engaged in their learning and strive for excellence in their education","Proportion (%) of students who participate in NAPLAN assessments","NAPLAN","External agency measure (ACARA)","Data linkage ","NAPLAN","* Persons reading band [Readingbandstudent]\n* Persons writing band [Writingbandstudent]\n* Persons spelling band [Spellingbandstudent]\n* Persons gramma band [Grampunctbandstudent]\n* Persons numeracy band [Numeracybandstudent]\n* Year Level","Counting rules to be developed in consultation with data custodian"," Australian Curriculum, Assessment and Reporting Authority","NSW Education Standards Authority (NESA)",null,"y","y",null,null,null,"No","No","No","No","No",2008,"Yearly","education data",null,"* Note OOHC and NAPLAN – NESA project under development may result in data linkage for OOHC and Social Housing clients"]
["64","Education and Skills","People are ready at each point of educational transition (e.g. have education and skills required to be work or school ready)","Proportion (%) of children developmentally vulnerable on two or more Australian Early Development Census domains","AEDC","External agency measure (Australian Government Department of Education and Training)","Data linkage ","Australian Early Development Census","* Vulnerable on at least two domains (DV1)","Numerator: Number of children who are vulnerable on at least two domains - DV1 = 1 (\"Yes\")\nDenominator: Number of persons who participated in AEDC\n","Australian Government Department of Education and Training","Australian Government Department of Education and Training","y",null,null,null,null,null,"No","No","No","No","No",2009,"3 years","education data"]
["66","Education and Skills","People are ready at each point of educational transition (e.g. have education and skills required to be work or school ready)","Proportion (%) of children attending early childhood education programs for 600 hours or more in the year prior to starting kindergarten","Information not publicly available","External agency measure (ABS)","Data linkage ","National Early Childhood Education and Care Collection","* Number of hours child attended preschool per week (PSN_HRSATTPW)\n* Total number of preschool service operational weeks (EPR_SRVOPPWKS)\n* Date of birth of child (PSN_DOB)\n\nDerived values: \n* Total number of hours attended = Number of hours child attended preschool per week (PSN_HRSATTPW) * Total number of preschool service operational weeks (EPR_SRVOPPWKS)\n* Age = July 1st of collection year - Date of birth of child (PSN_DOB)","Numerator: total number of clients where total number of hours attended >= 600\nDenominator: total number of clients aged between 4 and 5 inclusive not enrolled in school\nFilters: clients aged between 4 and 5 not enrolled in school","ABS","ABS","y",null,null,null,null,null,"No","No","No","No","No",2012,"Yearly","education data",null,"* The ABS provides aggregated information by service provider not by child. It may be worth enquiring if they would be willing to provide data aggregated at the child level and therefore the total number of attendance hours would not need to be derived."]
["85","Health","Mothers have healthy pregnancies and babies have good birth outcomes","Proportion (%) of mothers who smoke during pregnancy","Information not publicly available","External agency measure (NSW Ministry of Health)","Data linkage ","NSW Perinatal Data Collection (PDC)","* Smoking during pregnancy [smoke]","Numerator: Number of women who smoked during pregnancy = Yes\nDenominator: Number of women who have given birth","NSW Ministry of Health","CHeReL","y",null,null,null,null,null,"No","No","No","No","No",1994,"On service contact","self reported client survey","* Does not include records of NSW residents who give birth or are born interstate\n* Consistent data is only available from 1994 onwards\n* Will not include mothers who's pregnancy resulted in a miscarriage"]
["87","Health","Mothers have healthy pregnancies and babies have good birth outcomes","Proportion (%) of live-born infants below a healthy weight at birth","Weight at birth","External agency measure (NSW Ministry of Health)","Data linkage ","NSW Perinatal Data Collection (PDC)","* Birthweight [weight]","Numerator: Number of children with birth weight > 2,500 grams\nDenominator: Number of children","NSW Ministry of Health","CHeReL","y",null,null,null,null,null,"No","No","No","No","No",1994,"On service contact","medical data","* Does not include records of NSW residents who give birth or are born interstate\n* Consistent data is only available from 1994 onwards","* HealthStats include stillbirth babies"]
["89","Health","Mothers have healthy pregnancies and babies have good birth outcomes","Proportion (%) of women who present for antenatal care programs","Information not publicly available","External agency measure (NSW Ministry of Health)","Data linkage ","NSW Perinatal Data Collection (PDC)","* Antenatal care [and]","Numerator: Number of women where Antenatal care = YES\nDenominator: Number of women who have given birth","NSW Ministry of Health","CHeReL","y",null,null,null,null,null,"No","No","No","No","No",2006,"On service contact","medical data","* Does not include records of NSW residents who give birth or are born interstate\n* Consistent data is only available from 2006 onwards\n* Will not include mothers who's pregnancy resulted in a miscarriage","* HealthStats reports by gestation age at first visit"]
["113","Health","People have good mental health and social and emotional wellbeing","Suicide rate per 100,000 population by age","Notice of death","External agency measure (RBDM)","Data linkage ","NSW Mortality Data","* Underlying Cause of Death Diagnosis Code [ucod_recode]","Numerator: total number of deaths where Underlying Cause of Death Diagnosis Code is self harm (ICD10 X60 - X84, Y87.0)\nDenominator: Number of DCJ clients","NSW Registry of Births, Deaths and Marriages","CHeReL",null,null,"y","y","y","y","No","No","No","No","No",2007,"At service notification","medical data","* Does not include records of NSW residents who die interstate\n* Death data is coded according to the ICD-10 International Version rather than the Australian Modification ICD-10-AM used in Australian hospitals\n* Date of birth is not always reliable as it is reported by relatives to the funeral director at the time when the funeral is being arranged. Age based analysis can be affected by this.\n* All deaths for which a coronial inquiry is not required must be certified as to cause and date by a registered medical practitioner and the certificate registered by the Registrar of Births, Deaths and Marriages (RBDM) in each State and Territory. Deaths that are referred to a coroner are registered by the coroner at the conclusion of an inquiry into the circumstances of the death. The vast majority of non-coronial deaths are registered with the relevant RBDM within four weeks of the date of death; however coronial inquiries can take months or even years to conclude.\n* Details of all registered deaths are forwarded to the Australian Bureau of Statistics (ABS). The ABS then check and code the information. A single code for an underlying cause of death was applied in the years to 1997. From 1997 multiple cause of death codes (ICD-10) were applied to each death record where more than one cause contributed to the death.\n* Up to 2006, about 8% of suicide deaths occurring in one year were not registered until the following year or later (ABS 3309.0 2007). The ABS used to publish death data by year of registration and once published the cause of death data had not been revised."]
["121","Health","People have good physical health","Proportion (%) of children and young people with up-to-date immunisation record","Medical records submitted to Australian Immunisation Register","External agency measure (Department of Human Services)","Data linkage ","Australian Immunisation Register","Information not publicly available","Counting rules to be develop in consultation with data custodian","Department of Human Services","Department of Human Services","y","y","y",null,null,null,"No","No","No","No","No",2015,"At service notification","medical data",null,"* Immunisation rates are only reported for children aged 1, 2 and 5"]
["129","Home","Housing is affordable for people","Proportion (%) of people in the bottom 40 per cent of the income distribution whose housing costs exceed 30 per cent of income","Derived from administrative data","Existing DCJ measure ","DCJ data","HOMES/CHIMES/EDW ","* Persons household income\n* Persons rent\n* Persons percentage of rent of household income\n* ABS household income 40th percentile cut-off\n\nDerived fields:\nequivalised gross household income\n- all monetary incomes received from any source by each member of a household are added up; these include income from work, investment and social benefits, plus any other household income; taxes and social contributions that have been paid, are deducted from this sum;\n- in order to reflect differences in a household's size and composition, the total (net) household income is divided by the number of 'equivalent adults’, using a standard (equivalence) scale: the modified OECD scale; this scale gives a weight to all members of the household (and then adds these up to arrive at the equivalised household size):\n1.0 to the first adult\n0.5 to the second and each subsequent person aged 14 and over;\n0.3 to each child aged under 14.\n- finally, the resulting figure is called the equivalised disposable income and is attributed equally to each member of the household.\n\nRent as proportion of household income\nnet household income/household rent/mortgage cost*100","Numerator: Number of people living in dwellings where equivalised gross household income is < ABS 40th percentile cut-off value AND Rent/Mortgage as proportion of household income > 30\nDenominator: Number of persons where household income and rent/mortgage payment amounts are known\n","DCJ",null,"y","y","y","y","y","y","No","No","Yes","Yes","No","1999 (Public Housing and AHO)\n2005 (Community Housing)","Monthly (Public Housing and AHO)\nQuarterly (Community Housing)","self reported client survey","* Public Housing and AHO data - only subsidised households furnish their income as part of their annual subsidy review\n* Community Housing data - current data overstates the proportion of rent a person is paying of their income. Work is currently taking place to improve the quality of this data.\n* Community Housing data  - information required for calculation is missing for approximately 1% of dwellings","* For Community Housing data is collected from service providers on a quarterly basis, increasing the frequency of data collection may adversely impact service providers. In addition data is only cleaned by DCJ on a yearly basis additional resourcing would be required if frequency was increased."]
["131","Home","Housing is appropriate to occupants’ needs","Proportion (%) of people who have amenities that meet their needs","Indicate whether the following features of your home are important or not important to your household: size of home, number of bedrooms, modifications for special needs (e.g. disability), easy access and entry, car parking, yard space and fencing, privacy of home, safety and security within the home, safety and security outside of the home within the neighbourhood (e.g. adequate street lighting), energy efficiency (e.g. power bills), water efficiency (e.g. water saving shower head, dual flush toilet), thermal comfort (e.g. cool in summer, warm in winter). \nTHEN indicate if these features currently meet the needs of your household or not: for each item above\nColumn A Scale: important, not important, not applicable\nColumn B Scale: meets needs, does not meet needs, NA\n\nCalculation method: only amenities rated as important are included in the calculation of satisfaction.","External agency measure (AIHW)","New data","No data source","* Persons indicator if important - size of home \n* Persons indicator if important - number of bedrooms \n* Persons indicator if important - modifications for special needs (e.g. disability)\n* Persons indicator if important - easy access and entry\n* Persons indicator if important - car parking, yard space and fencing \n* Persons indicator if important - privacy of home \n* Persons indicator if important - safety and security within the home \n* Persons indicator if important - safety and security outside of the home within the neighbourhood (e.g. adequate street lighting) \n* Persons indicator if important - energy efficiency (e.g. power bills) \n* Persons indicator if important - water efficiency (e.g. water saving shower head, dual flush toilet) \n* Persons indicator if important - thermal comfort (e.g. cool in summer, warm in winter) \n* Persons indicator if needs met - size of home \n* Persons indicator if needs met - number of bedrooms \n* Persons indicator if needs met - modifications for special needs (e.g. disability)\n* Persons indicator if needs met - easy access and entry\n* Persons indicator if needs met - car parking, yard space and fencing \n* Persons indicator if needs met - privacy of home \n* Persons indicator if needs met - safety and security within the home \n* Persons indicator if needs met - safety and security outside of the home within the neighbourhood (e.g. adequate street lighting) \n* Persons indicator if needs met - energy efficiency (e.g. power bills) \n* Persons indicator if needs met - water efficiency (e.g. water saving shower head, dual flush toilet) \n* Persons indicator if needs met - thermal comfort (e.g. cool in summer, warm in winter)","Numerator: Number of people where all  important needs are met\nDenominator:  Number of people surveyed",null,null,"y","y","y","y","y","y","No","No","No","No","No",null,null,"self reported client survey"]
["135","Home","Housing is appropriate to occupants’ needs","Proportion (%) of people who live in dwellings considered overcrowded","Derived from administrative data","Existing DCJ measure ","DCJ data","HOMES/CHIMES/EDW","* Number of persons in dwelling\n* Relationship status of all persons in dwelling\n* Age of persons in dwelling\n* Gender of persons in dwelling\n\nDerived values:\n* Dwelling classed as overcrowded\nThe Canadian National Occupancy Standard (CNOS) assesses the bedroom requirements of a household based on the following criteria:\nThere should be no more than 2 persons per bedroom;\nChildren less than 5 years of age of different sexes may reasonably share a bedroom;\nChildren 5 years of age or older of opposite sex should have separate bedrooms;\nChildren less than 18 years of age and of the same sex may reasonably share a bedroom; and\nSingle household members 18 years or older should have a separate bedroom, as should parents or couples.","Numerator: Number of clients living in a dwelling classed as overcrowded\nDenominator: Total number of people where overcrowded status is known","DCJ",null,"y","y","y","y","y","y","No","No","Yes","Yes","No","1999 (Public Housing and AHO)\n2005 (Community Housing)","Monthly (Public Housing and AHO)\nQuarterly (Community Housing)","self reported client survey","* Community Housing data  - information required for calculation is missing for approximately 1% of dwellings","* For Community Housing data is collected from service providers on a quarterly basis, increasing the frequency of data collection may adversely impact service providers. In addition data is only cleaned by DCJ on a yearly basis additional resourcing would be required if frequency was increased."]
["138","Home","People have stability in their home","Proportion (%) of the people in Transitional Housing","Persons tenure type from options of:\nRenter - private housing\nRenter - public housing\nRenter - community housing\nRenter - transitional housing\nRenter - caravan park\nRenter - boarding house\nRenter - emergency accommodation\nOther renter\nRent free - private housing\nRent free - public housing\nRent free - community housing\nRent free - transitional housing\nRent free - caravan park\nRent free - boarding house\nRent free - emergency accommodation\nOther rent free\nLife tenure scheme\nOwner - shared equity or rent / buy scheme\nOwner - being purchased / with mortgage\nOwner - fully owned\nOther tenure\nNo tenure\nDon't know","Existing DCJ measure ","DCJ data","CIMS","* Persons tenure type ","Numerator: Number of people who have tenure type = transitional housing \nDenominator:  Total number of people accessing Specialist Homelessness Services","DCJ",null,"y","y","y","y","y","y","No","No","No","No","Yes","FY 2011-2012","Monthly","DCJ administrative data","* Transitional housing is poorly defined category in Specialist Homeless Services data collection"]
["144","Home","People have stability in their home","Proportion (%) of people with frequent housing changes","A definition of frequent housing changes needs to be developed","Evidence development required","DCJ data","HOMES/CHIMES/EDW (Social Housing)\nChildStory - Client Information Warehouse (CIW) (Child Protection and OOH)","* Number of times a persons address has changed","Counting rules require development","DCJ",null,"y","y","y","y","y","y","No","Yes","Yes","Yes","No","1999 (Public Housing and AHO)\n2005 (Community Housing)\nFY 1987-88 (Child Protection and OOHC)","Monthly (Public Housing and AHO)\nWithin 6 weeks of exit (Community Housing)\nDaily (Child Protection and OOHC)","DCJ administrative data","* Community Housing data  - information required for calculation is missing for approximately 1% of dwellings","* ABS General Social Survey (4159) reporting the number of people who have live in a location for 5 years, however, this timeframe is not suitable for children in OOHC as it is too long"]
["145","Home","People have stability in their home","Proportion (%) of people who are homeless","Persons dwelling type from options of:\n House / townhouse / flat\n Caravan\n Tent\n Cabin\n Boat\n Improvised dwelling\n No dwelling, in the open\n Motor vehicle\n Boarding house\n Emergency accommodation\n Hotel / motel\n Hospital\n Psychiatric hospital or unit\n Disability support\n Rehabilitation\n Adult correctional facility\n Youth justice detention centre\n Boarding school / residential college\n Aged care facility\n Immigration detention centre\n Other\n Don't know\n\nPersons tenure type from options of:\nRenter - private housing\nRenter - public housing\nRenter - community housing\nRenter - transitional housing\nRenter - caravan park\nRenter - boarding house\nRenter - emergency accommodation\nOther renter\nRent free - private housing\nRent free - public housing\nRent free - community housing\nRent free - transitional housing\nRent free - caravan park\nRent free - boarding house\nRent free - emergency accommodation\nOther rent free\nLife tenure scheme\nOwner - shared equity or rent / buy scheme\nOwner - being purchased / with mortgage\nOwner - fully owned\nOther tenure\nNo tenure\nDon't know\n\nPersons conditions of occupancy type from options of:\nNot applicable\nLeased tenure - on lease\nLease in place - not on lease\nCouch surfer\nBoarder\nLiving with relative fee free\nOther\nDon't know","Existing DCJ measure ","DCJ data","CIMS","* persons homelessness status derived from tenure type of:\n- dwelling type is caravan, tent, cabin, boat, improvised building/dwelling, no dwelling/street/park/in the open, motor vehicle, boarding/rooming house, emergency accommodation, hotel/motel/bed and breakfast\n- tenure type is renting or living rent free in transitional housing, caravan park, boarding/rooming house or emergency accommodation/night shelter/women’s refuge/youth shelter; OR if the client has no tenure\n- conditions of occupancy is couch surfer.","Numerator: Number of people who are homeless\nDenominator: Number of DCJ clients","DCJ",null,"y","y","y","y","y","y","No","No","No","No","Yes","FY 2011-2012","Monthly","self reported client survey","* DCJ data only captures the number of people who are accessing homelessness services not the actual number of people who are homeless"]
["152","Home","People have stability in their home","Proportion (%) of homeless people who move from Specialist Homelessness Services to stable accommodation","Housing type at end pf service from options of:\nUnstable housing at start but achieved stable housing last reported\nUnstable housing at start but did not achieve stable housing last reported\nOther housing last reported / not stated\n","Existing DCJ measure ","DCJ data","CIMS","* Persons housing stability type at end of service contact ","Numerator: Number of people who had housing stability type at end of service contact as = Unstable housing at start but achieved stable housing last reported\nDenominator: Total number of people who access Specialist Housing Services","DCJ",null,"y","y","y","y","y","y","No","No","No","No","Yes","FY 2011-2012","Monthly","DCJ administrative data"]
["160","Home","People have stability in their home","Proportion (%) of children and young people in Out-of-Home- Care who have had 2 or fewer placement changes in the last 12 months","Derived from administrative data","Existing DCJ measure ","DCJ data","ChildStory - Client Information Warehouse (CIW)","Data elements being developed","Counting rules being developed by IM-ICT with input from business SMEs including DCJIAR","DCJ",null,"y","y","y",null,null,null,"NA","Yes","NA","NA","NA","FY 1987-88","Daily","DCJ administrative data",null,"* Coordination is currently taking place between Permanency Support Program (PSP) and Performance and Continuous Improvement (PCI) to determine the best indicator of placement stability. This is the current indicator that is being used in reporting, but the appropriate indicator may change in future."]
["161","Home","People are able to live independent from housing support","Number of people that positively transition out of the social housing system","Derived from administrative data","Existing DCJ measure ","DCJ data","HOMES/CHIMES/EDW","* Persons reason for exiting tenancy","Count persons exiting from tenancies where core tenancy termination reason is tenant initiated or provider initiated exit and 'where next housed' is private rental or private ownership.","DCJ",null,null,null,null,"y","y","y","No","NA","Yes","Yes","No","FY 2015-16 (Public Housing and AHO)\n2005 (Community Housing) ","Monthly (Public Housing and AHO)\nWithin 6 weeks of exit (Community Housing)","DCJ administrative data","* Community Housing data  - information required for calculation is missing for approximately 1% of dwellings","* For Community Housing data is collected from service providers on a quarterly basis, increasing the frequency of data collection may adversely impact service providers. In addition data is only cleaned by DCJ on a yearly basis additional resourcing would be required if frequency was increased."]
["162","Home","People are able to live independent from housing support","Number of people that negatively exit out of the social housing system","Derived from administrative data","Existing DCJ measure ","DCJ data","HOMES/CHIMES/EDW","* Persons reason for exiting tenancy","Count persons exiting tenancies where core tenancy termination reason is breach","DCJ",null,null,null,null,"y","y","y","No","NA","Yes","Yes","No","FY 2015-16 (Public Housing and AHO)\n2005 (Community Housing) ","Monthly (Public Housing and AHO)\nWithin 6 weeks of exit (Community Housing)","DCJ administrative data","* Community Housing data  - information required for calculation is missing for approximately 1% of dwellings","* For Community Housing data is collected from service providers on a quarterly basis, increasing the frequency of data collection may adversely impact service providers. In addition data is only cleaned by DCJ on a yearly basis additional resourcing would be required if frequency was increased."]
["178","Safety","Children and young people grow up in families and communities that are stable and supportive with strong relationships","Proportion (%) of children and young people who report the presence of relationships that facilitate disclosure of safety and wellbeing concerns","QAF\nDoes the child feel that they have someone to talk to if they didn’t feel safe or cared for?\n\nPOCLS (recommended measure)\nAges 7-17yrs \nWhen you have felt sad worried or angry, who did you talk to about it? \nPeople you are living with now,  Your birth family, Your friends, Teachers or school counsellors, Caseworkers, Other person or group , No one, Pass \n\nAges 7-17yrs \nIf you have talked to someone about being worried, sad or angry, how helpful were they;  \nVery helpful, Quite helpful, Somewhat helpful, Not at all helpful,  Pass","Existing DCJ measure (POCLS and QAF)","New data","No data source","* Persons indication of presence of relationship\n* Persons rating of how help the relationship is","Numerator: Number of children and young people who identified as having a relationship and the relationship was either \"Very helpful\" or \"Quite helpful\"\nDenominator: Number children and young people surveyed",null,null,null,"y","y","y",null,null,"No","No","No","No","No",null,null,"self reported client survey"]
["181","Safety","Parents, carers, and kin have the skills and capacity to keep children and young people safe at home","Proportion (%) of parents engaged in positive parenting techniques ","Parenting Styles and Dimensions Questionnaire (PSDQ) \nNote: this is a 133-item parenting questionnaire and may not be appropriate","Existing DCJ measure (TFM)","New data","No data source","Data elements should be developed in consultation with TFM","Counting rules should be developed in consultation with TFM",null,null,null,null,null,"y","y",null,"No","No","No","No","No",null,null,"self reported client survey"]
["188","Safety","Parents, carers, and kin have the skills and capacity to keep children and young people safe at home","Proportion (%) of parents who have not engaged in risky and high-risk drinking patterns in the last 12 months","NSW Population Health Survey:\nAlcoholic drinks are measured in terms of a \"standard drink\". A standard drink is equal to 1 middy of full-strength beer, 1 schooner of light beer, 1 small glass of wine or 1 pub-sized nip of spirits. On a day when you drink alcohol, how many standard drinks do you usually have?\n1 Record number of drinks\nX Don't know\nR Refused","External agency measure (HealthStats)","New data","No data source","* Number of standard alcoholic drinks a person has in a day","Numerator: Number of parents who have < 2 standard alcoholic drinks on a day\nDenominator: Number of parents surveyed",null,null,"y","y","y",null,null,null,"No","No","No","No","No",null,null,"self reported client survey",null,"* Comparable data source reporting is for the opposite indicator and will need transforming before comparison\n* AIHW National framework for protecting Australia's children indicators only reports drug use for parents with children aged between 0-14\n*  National Health and Medical Research Council Guidelines (2009) for drinking that poses a risk to health are:\n- Guideline 1 consuming more than 2 standard drinks on a day when they consume alcohol\n* POCLS asks children and young people aged 12-17 about their parents drug and alcohol use as a combined question and is not suitable for this indicator"]
["189","Safety","Parents, carers, and kin have the skills and capacity to keep children and young people safe at home","Proportion (%) of parents who have not used an illicit substance in the last 12 months","QAF measure under development\n\nPOCLS (Recommended)\nThe next few questions are about drug use other than for medical reasons (e.g. marijuana, ecstasy, speed, pills). Have you had drugs in the last 12 months?\n• Yes\n• No \n• Pass ","Existing DCJ measure (POCLS)","New data","No data source","* Persons status of illicit drug use in last 12 months","Numerator: Number of parents who have not used an illicit substance\nDenominator: Number of parents surveyed\n",null,null,"y","y","y",null,null,null,"No","No","No","No","No",null,null,"self reported client survey",null,"* Comparable data source reporting is for the opposite indicator and will need transforming before comparison\n* AIHW National framework for protecting Australia's children indicators only reports drug use for parents with children aged between 0-14\n* POCLS asks children and young people aged 12-17 about their parents drug and alcohol use as a combined question and is not suitable for this indicator"]
["191","Safety","People are physically and emotionally safe in their communities​","Rate of crimes against the person per 1,000","Police reports","Existing DCJ measure","Data linkage ","Offences against the person data set","Information not publicly available","Counting rules to be develop in consultation with data custodian","NSW Department of Justice","BOSCAR","y","y","y","y","y","y","No","No","No","No","No",1995,"At service notification","Police reports"]
["202","Safety","People are physically and emotionally safe in their communities​","Proportion (%) of people who report being bullied","Longitudinal Study of Australian Children (LSAC)\nAdapted from the School Climate Bullying Scale (Brockenbrough, 2000).\nDuring the past month (30 days) at school…\n\na. kids hit or kicked me on purpose\nb. kids grabbed or shoved me on purpose\nc. kids threatened to hurt me or take my things\nd. kids said mean things to me or called me names\ne. kids tried to keep others from being my friend\nf. kids did not let me join in what they were doing\ng. kids sent me a mean text message/email; or posted mean things about me on the Internet (e.g. on Facebook, MySpace)\n\n1. Never\n2. Once or twice\n3. About once a week\n4. Several times a week","External agency measure (LSAC) - Children only","New data","No data source","* Number of bullying experiences person has had ","Numerator: Number of people who have had at least one bullying experience\nDenominator: Number of people surveyed",null,null,null,"y","y",null,null,null,"No","No","No","No","No",null,null,"self reported client survey",null,"* Not available in Longitudinal Study of Australian Children annual report as it is reported by bullying type"]
["203","Safety","People are physically and emotionally safe in their communities​","Proportion (%) of people who experience discrimination or racism","ABS General Social Survey\nIn the past 12 months,  do you feel that you have experienced discrimination or have been treated unfairly by others?\n1. Yes\n5. No\n6. Don’t Know\n\nThinking about your most recent experience of discrimination in Australia, do you think it was because of any of the following? Interviewer: More than one response is allowed.  \n10. Your skin colour\n11. Your nationality, race or ethnic group\n12. The language you speak\n13. The way you dress or your appearance\n14. Your gender\n15. Your age\n16. A disability or health issue\n17. Your marital status\n18. Your family status\n19. Your sexual orientation\n20. Your occupation\n21. Your religious beliefs\n22. Your political position\n23. Other (please specify)\n24 Don't know","External agency measure (ABS)","New data","No data source","* Number of discrimination or racism experiences person has had ","Numerator: Number of people who have had at least one experience of discrimination or racism\nDenominator: Number of people surveyed",null,null,null,null,"y","y","y","y","No","No","No","No","No",null,null,"self reported client survey"]
["205","Safety","People are safe from abuse and neglect","Proportion (%) of children and young people re-reported at ROSH","ROSH reports","Existing DCJ measure ","DCJ data","ChildStory - Client Information Warehouse (CIW)","* Person re-reported at ROSH status\n","There are various versions of this measure, essentially is a ROSH report following an event of interest (for e.g. an intervention)","DCJ",null,"y","y","y",null,null,null,"NA","Yes","NA","NA","NA","FY 1987-88","Daily","DCJ administrative data"]
["206","Safety","People are safe from abuse and neglect","Rate of children and young people at Risk of Significant Harm (ROSH) per 1,000 of population","ROSH reports","Existing DCJ measure ","DCJ data","ChildStory - Client Information Warehouse (CIW)","* Number of ROSH reports per person\n* NSW 0-17 population","Numerator: Number of children and young people in NSW reported at Risk of Significant Harm (ROSH)\nDenominator: Children and young people aged 0-17 years in the NSW population in the period","DCJ",null,"y","y","y",null,null,null,"Yes","Yes","NA","NA","NA","FY 1987-88","Daily","DCJ administrative data"]
["207","Safety","People are safe from abuse and neglect","Proportion (%) of children and young people in Out-of-Home-Care reported at ROSH post restoration","ROSH reports","Existing DCJ measure ","DCJ data","ChildStory - Client Information Warehouse (CIW)","Data elements being developed","Counting rules being developed by IM-ICT with input from business SMEs including DCJIAR","DCJ",null,"y","y","y",null,null,null,"NA","Yes","NA","NA","NA","FY 1987-88","Daily","DCJ administrative data"]
["215","Safety","People are safe from abuse and neglect","Proportion (%) of children and young people assessed at high or very high risk","SARA","Existing DCJ measure ","DCJ data","ChildStory - Client Information Warehouse (CIW)","* Persons score on risk assessment","Numerator: Number of children and young people with a completed field assessment with a related Risk Assessment in the period with the Risk rating was high or very high\nDenominator: Number of children and young people with a completed field assessment with a related Risk Assessment in the period ","DCJ",null,"y","y","y",null,null,null,"NA","Yes","NA","NA","NA","FY 1987-88","Daily","DCJ administrative data"]
["217","Safety","People are safe from abuse and neglect","Proportion (%) of people who report feeling safe at home","QAF\nDoes the child feel safe in their current placement?\n\nPOCLS (recommended measure)\nDo you feel safe where you live now?","Existing DCJ measure (POCLS and QAF)","New data","No data source","* Persons indication if they feel safe","Numerator: Number of people who feel safe\nDenominator: Number of people surveyed",null,null,null,"y","y","y","y","y","No","No","No","No","No",null,null,"self reported client survey"]
["222","Safety","People are safe from domestic and family violence​","Proportion (%) of people who have been a victim of a reported instance of domestic and family violence","Police reports","Existing DCJ measure","Data linkage ","Domestic violence data sets","Victims of a domestic violence related assault recorded by the NSW Police Force","Numerator: Number of victims of a domestic violence related assault recorded by the NSW Police Force\nDomestic violence definition: NSW Police flag whether criminal incidents that they record on their COPS (Computerised Operational Policing System) database are domestic violence-related. New South Wales police define domestic violence in line with the Crimes (Domestic and Personal Violence) Act 2007. Under this legislation a person has a domestic relationship with another if they are a spouse/partner, ex-spouse/ex-partner, boy/girlfriend (including ex), parent/guardian (including step/foster), child (including step/foster), sibling, other member of family (including kin), is living or has lived in the same household as other person, is dependent on the paid or unpaid care of the other person, or are involved in a \"love triangle\" (e.g. a woman’s ex-partner and current partner would have a domestic relationship with each other for the purposes of this Act even if they had never met). Domestic violence can be considered as an associated factor for any criminal incident where the victim-offender relationship meets any of these criteria. ","DCJ","BOSCAR","y","y","y",null,null,null,"No","No","No","No","No",1995,"At service notification","Police reports",null,"Measure of victimisation of domestic assault"]
["226","Safety","People are safe from domestic and family violence​","Proportion (%) of domestic and family violence perpetrators re-offending within 12 months","Police reports","Existing DCJ measure","Data linkage ","Domestic violence data sets","Number of domestic violence assault offenders who were legally proceeded against by the NSW Police Force","Numerator: Number of distinct domestic violence assault offenders who were legally proceeded against by the NSW Police who had an earlier domestic assault charge in the last 12 months\nDenominator: Number of distinct domestic violence assault reoffenders","DCJ","BOSCAR",null,null,null,"y","y","y","No","NA","No","No","No",1995,"At service notification","Police reports"]
["227","Safety","People are safe from domestic and family violence​","Proportion (%) of domestic and family violence victims that are re-victimised","Police reports","Existing DCJ measure","Data linkage ","Domestic violence data sets","Number of victims of domestic violence assault recorded by the NSW Police Force","Numerator: Number of distinct victims of domestic violence assault who were also victimised within the previous 12 months for a prior domestic assault incident\nDenominator: Number of distinct victims of domestic violence assault\n","DCJ","BOSCAR","y","y","y","y","y","y","No","No","No","No","No",1995,"At service notification","Police reports",null,"* BOSCAR does not publicly report data by re-victimisation status"]
["231","Safety","People feel that the importance of their family and culture is recognised, respected and understood","Proportion (%) of Aboriginal children and young people in Out-of-Home-Care managed by accredited Aboriginal community controlled organisations","Derived from administrative data","Existing DCJ measure ","DCJ data","ChildStory - Client Information Warehouse (CIW)","Data elements being developed","Counting rules being developed by IM-ICT with input from business SMEs including DCJIAR","DCJ",null,"y","y","y",null,null,null,"NA","Yes","NA","NA","NA","FY 1987-88","Daily","DCJ administrative data"]
["264","Health","People have a healthy lifestyle and avoid risk taking behaviours that negatively impact their health","Age-specific birth rate for 15 to 19 year old women per 1,000 females","Perinatal data collection record","External agency measure (NSW Ministry of Health)","Data linkage ","NSW Perinatal Data Collection (PDC)","* Mother’s age [age]","Numerator: Number of children born where Mother's age >= 15 and <= 19\nDenominator: Number of DCJ clients age >= 15 and <= 19\nFilters: Persons who are female and aged >= 15 and <= 19\n","NSW Ministry of Health","CHeReL",null,null,"y",null,null,null,"No","No","No","No","No",1994,"On service contact","medical data","* Does not include records of NSW residents who give birth or are born interstate\n* Consistent data is only available from 1994 onwards\n* number of women aged between 15-19 in NSW is based on a population estimate"]
["288","Safety","People are safe from abuse and neglect","Rate of children and young people entering care per 1,000 of population","Derived from administrative data","Existing DCJ measure ","DCJ data","ChildStory - Client Information Warehouse (CIW)","* Persons in care status\n* NSW 0-17 population\n","Numerator: Number of CYP entering OOHC in period \nDenominator: All children and young people aged 0-17 years in the NSW population in the period","DCJ",null,"y","y","y",null,null,null,"NA","Yes","NA","NA","NA","FY 1987-88","Daily","DCJ administrative data"]
["309","Education and Skills","People are ready at each point of educational transition (e.g. have education and skills required to be work or school ready)","Proportion (%) of children that are school ready according to Best Start","Best Start","External agency measure (NSW Department of Education)","Data linkage ","Best Start Assessment","Not publicly available","Counting rules to be developed in consultation with data custodian","NSW Department of Education","NSW Department of Education",null,"y",null,null,null,null,"No","No","No","No","No","Not publicly available","Yearly","assessment of client","Not publicly available"]
["311","Economic","Adults and young people are able to participate in education, training or the labour force","Proportion (%) of people aged 16-64 currently employed or seeking employment","Persons employment status from options of:\nNot applicable\nEmployed\nUnemployed\nNot in labour force\nDon't know\n","Existing DCJ measure ","DCJ data","CIMS","* Persons employment status\n* Persons age","Numerator: Number of person who identify as employment status = Unemployed OR Employed \nDenominator: Total number of persons\nFilters: Persons aged is >= 16 and <= 64","DCJ",null,null,null,null,"y","y","y","No","NA","No","No","Yes","FY 2011-2012","Monthly","self reported client survey",null,"* For Social Housing clients a proxy indicator can be derived from the clients main source of income (i.e. as either being wages or unemployment benefits)\n* Data will be collected in the Future Directions of Social Housing survey"]
["315","Home","Housing is appropriate to occupants’ needs","Proportion (%) of Aboriginal people who report that their home meets their cultural needs","AHO tenant satisfaction experience survey has piloted the below survey question. However, further research and validation is required.\n\nDoes your home meet your cultural needs?\nmeets needs\ndoes not meet needs","DCJ measure under development (AHO)","New data","No data source","AHO developing data elements","AHO developing counting rules",null,null,null,null,"y","y","y","y","No","No","No","No","No",null,null,"self reported client survey"]
["316","Education and Skills","People are engaged in their learning and strive for excellence in their education","Proportion (%) of children and young people who experience an unplanned school move in the last 12 months","Information not publicly available","External agency measure (NSW Department of Education)","Data linkage ","NSW Department of Education data - data report name not publicly available","Information not publicly available","Counting rules to be developed in consultation with data custodian","NSW Department of Education","NSW Department of Education",null,"y","y",null,null,null,"No","No","No","No","No",2008,"Information not publicly available","education data","* Data is only available for students who move between government funded schools within NSW"]
["323","Health","Aboriginal people heal from inter-generational trauma and loss","Proportion (%) of children and young people in Out-of-Home-Care who have a parent who was also in Out-of-Home-Care","Derived from administrative data","Existing DCJ measure ","DCJ data","ChildStory - Client Information Warehouse (CIW)","* Parents OOHC history status\n* Child or young persons OOHC status","Numerator: Number of children and young people in OOHC who also had a parent in OOHC\nDenominator: Number of children and young people in OOHC","DCJ",null,"y","y","y",null,null,null,"NA","Yes","NA","NA","NA","FY 1987-88","Daily","DCJ administrative data"]
["327","Home","People are able to live independent from housing support","Number of people that neutrally transition out of the social housing system","Derived from administrative data","Existing DCJ measure ","DCJ data","HOMES/CHIMES/EDW","* Persons reason for exiting tenancy","Count persons exiting from tenancies where core tenancy termination reason is deceased, long term care, short term care or prison","DCJ",null,"y","y","y","y","y","y","No","No","Yes","Yes","No","FY 2015-16 (Public Housing and AHO)\n2005 (Community Housing) ","Monthly (Public Housing and AHO)\nWithin 6 weeks of exit (Community Housing)","DCJ administrative data","* Community Housing data  - information required for calculation is missing for approximately 1% of dwellings","* For Community Housing data is collected from service providers on a quarterly basis, increasing the frequency of data collection may adversely impact service providers. In addition data is only cleaned by DCJ on a yearly basis additional resourcing would be required if frequency was increased."]
["335","Education and Skills","People achieve their educational aspirations","Proportion (%) of children and young people who are below minimum standards who improve their performance to above minimum standards","NAPLAN as for clients in grades 3-9\nSchool grades for clients in grades 10-12","External agency measure (ACARA)","Data linkage ","NAPLAN as for clients in grades 3-9\nSchool grades for clients in grades 10-12","Data elements require consultation with NSW Department of Education","Counting rules to be developed in consultation with data custodian"," Australian Curriculum, Assessment and Reporting Authority","NSW Education Standards Authority (NESA)",null,"y","y",null,null,null,"No","No","No","No","No",2008,"Yearly","education data"]
["336","Education and Skills","People achieve their educational aspirations","Proportion (%) of children and young people who are at or above minimum standards who either improve or maintain their performance","NAPLAN as for clients in grades 3-9\nSchool grades for clients in grades 10-12","External agency measure (ACARA)","Data linkage ","NAPLAN as for clients in grades 3-9\nSchool grades for clients in grades 10-12","Data elements require consolation with NSW Department of Education","Counting rules to be developed in consultation with data custodian"," Australian Curriculum, Assessment and Reporting Authority","NSW Education Standards Authority (NESA)",null,"y","y",null,null,null,"No","No","No","No","No",2008,"Yearly","education data"]
["337","Home","People have stability in their home","Proportion of clients experiencing homelessness who had repeat periods of homelessness","Derived from administrative data","Existing DCJ measure ","DCJ data","CIMS","* persons homelessness status -current\n* persons homelessness status -previous","Numerator: Number of specialist homelessness service clients who change status from ‘homeless’ to ‘not homeless’ and back to ‘homeless’\nDenominator:  Total number of people who are homeless",null,null,"y","y","y","y","y","y","No","No","No","No","Yes","FY 2011-2012","Monthly","self reported client survey"]
[6,"Economic","Adults and young people who are able to work are employed","Proportion (%) of people who report underemployment","Would you prefer to work more hours than you usually work in all your jobs?\nYes\nNo\nDon’t know\n","External agency measure (ABS)","New data","No data source","* Persons indication of wanting to work more hours","Numerator: Number of people who would prefer to work more hours = yes\nDenominator: Total number of employed people\nFilters: People who are currently employed",null,null,null,null,null,"y","y","y","No","NA","No","No","No",null,null,"self reported client survey"]
[18,"Economic","People have financial security and autonomy​","Proportion (%) of people who report that their household spends more money than it gets","ABS survey question:\nThinking of [your / your household's] situation over the last 12 months, which one of the following statements best describes [your/your household's] financial situation?\n1. Spend more money than we get\n2. Just break even most weeks\n3. Able to save money most weeks","External agency measure (ABS)","New data","No data source","* Persons indication of household spending more money than it gets","Numerator: Number of people whose household spends more money than it gets\nDenominator: Number of people surveyed",null,null,null,null,null,"y","y","y","No","NA","No","No","No",null,null,"self reported client survey"]
[19,"Economic","People have financial security and autonomy​","Proportion (%) of people who could not raise $2,000 within a week","ABS survey question:\nIf suddenly you had to get $2,000 for something important, could the money be obtained within a week?\nYes\nNo\nDon't Know\n","External agency measure (ABS)","New data","No data source","* Persons indication of not being able to pay rent or mortgage","Numerator: Number of people who have not been able to pay rent or mortgage\nDenominator: Number of people surveyed",null,null,null,null,null,"y","y","y","No","NA","No","No","No",null,null,"self reported client survey"]
[20,"Economic","People have financial security and autonomy​","Proportion (%) of people who could not pay electricity, gas or telephone bills on time","ABS survey question:\nIn the last 12 months, have any of these happened to your household because you were short of money?\nCould not pay electricity, gas or telephone bills on time\nYes\nNo","External agency measure (ABS)","New data","No data source","* Persons indication of not being able to pay bills","Numerator: Number of people who have not been able to pay bills\nDenominator: Number of people surveyed",null,null,null,null,null,"y","y","y","No","NA","No","No","No",null,null,"self reported client survey"]
[29,"Economic","People have financial security and autonomy​","Proportion (%) of people who have experienced a shortage of money and subsequently could not pay mortgage or rent","ABS survey question:\nIn the last 12 months, have any of these happened to your household because you were short of money?\nCould not pay mortgage or rent payments on time\nYes\nNo","External agency measure (ABS)","New data","No data source","* Persons indication of not being able to raise $2000","Numerator: Number of people who have not been able to raise $2000\nDenominator: Number of people surveyed",null,null,null,null,null,"y","y","y","No","NA","No","No","No",null,null,"self reported client survey"]
["50","Education and Skills","People achieve their educational aspirations","Proportion (%) of people who complete Year 12 or equivalent","What is the highest year of primary or secondary school the person has completed?\n- Year 12 or equivalent\n- Year 11 or equivalent\n- Year 10 or equivalent\n- Year 9 or equivalent\n- Year 8 or below","External agency measure (ABS)","New data","No data source","* person indicator of completing year 12 or equivalent","Numerator: Number of persons who have Year 12 or equivalent \nDenominator: Total number of people over the age of 18\nFilters: People aged 18 or older",null,null,null,null,null,"y","y","y","No","Yes","No","No","No",null,null,"self reported client survey"]
["52","Education and Skills","People achieve their educational aspirations","Proportion (%) of people with a vocational or higher education qualification","What is the level of the highest education/training qualification the person has completed?\n\n- mark only one option\n- For people currently at school, mark the highest year of schooling they have completed, not the year they are currently undertaking\n\nDid not go to school\nYear 6 or below\nYear 7 or below\nYear 8 or below\nYear 9 or equivalent\nYear 10 or equivalent\nYear 11 or equivalent\nYear 12 or equivalent\nCertificate I/II\nCertificate III/IV (including trade certificate)\nAdvanced diploma/diploma\nBachelor degree (with or without honours)\nGraduate diploma/Graduate certificate\nPostgraduate degree\nOther non-school (please specify)","Existing DCJ measure (Future Directions of Social Housing Survey)","New data","No data source","* person education qualification","Numerator: Number of persons who have Certificate I/II or higher\nDenominator: Total number of people over the age of 18\nFilters: People aged 18 or older",null,null,null,null,null,"y","y","y","No","NA","No","No","No",null,null,"self reported client survey",null,"* Data will be collected in the Future Directions of Social Housing survey"]
["54","Education and Skills","People are engaged in their learning and strive for excellence in their education","Proportion (%) of children and young people who report feeling motivated to pursue education or attend school","Longitudinal Study of Australian Children (LSAC)\nLongitudinal Surveys of Australian Youth (LSAY), Attitudes to School survey; Australian Government Department of Education, Employment and Work Place Relations (1995).\nMy school is a place where…\na. I feel happy. \nb. I really like to go to each day.\nc. I find that learning is a lot of fun. \nd. I feel safe and secure. \ne. I like learning.\nf. I get enjoyment from being there.\ng. The work we do is interesting. \nh. I like to ask questions in class. \nI. I like to do extra work. \nj. I enjoy what I do in class. \nk. I always try to do my best. \nl. I get excited about the work we do.\n\nAnswer options\n1. Strongly disagree\n2. Disagree\n3. Agree\n4. Strongly agree\n","External agency measure (LSAC)","New data","No data source","* Persons overall average rating for school engagement","Numerator: Number of persons whose overall average rating for school engagement >= 3 \nDenominator: Number of people surveyed\n",null,null,null,"y","y",null,null,null,"No","No","No","No","No",null,null,"self reported client survey",null,"* Not available in Longitudinal Study of Australian Children annual report"]
["73","Empowerment","People have a belief in self ","Proportion (%) of people who have high self-efficacy","QAF measure under development\n\nFACSIAR indicator bank measure:\nGeneralized Self-Efficacy Scale (GSES).\n\n1. I can always manage to solve difficult problems if I try hard enough.\n2. If someone opposes me, I can find means and ways to get what I want.\n3. It is easy for me to stick to my aims and accomplish my goals.\n4. I am confident that I could deal efficiently with unexpected events.\n5. Thanks to my resourcefulness, I know how to handle unforeseen situations.\n6. I can solve most problems if I invest the necessary effort.\n7. I can remain calm when facing difficulties because I can rely on my coping abilities.\n8. When I am confronted with a problem I can usually find several solutions.\n9. If I am in a bind, I can usually think of something to do.\n10. No matter what comes my way, I'm usually able to handle it.\nScale: Not at all true (1), Barely true (2), Moderately true (3), Exactly true (4)\n\nAdd up all responses to a sum score. The range is from 10 to 40 points. Or use a mean score,","Existing DCJ measure (Children - Internal measure under development (QAF)\nAdults - FACSIAR indicator bank measure)","New data","No data source","* Persons self-efficacy score","Counting rules require development",null,null,null,null,"y","y","y","y","No","No","No","No","No",null,null,"self reported client survey"]
["90","Health","Mothers have healthy pregnancies and babies have good birth outcomes","Proportion (%) of infants exclusively breastfed at 4 months of age","ABS National Health Survey\nHas [child’s name] ever received breast milk?\n1. Yes\n5. No\n\nIs [child’s name] currently receiving breast milk?\n1. Yes\n5. No\n\nHow old was [child’s name] when [he/she]\nstopped receiving any breast milk?\n1. [number of months]\n2. Less than 1 month\n\nHas [child’s name] ever had any food or drink\nother than breast milk?\n1. Yes\n5. No\n\nIncluding water, formula, and juice, how old was\n[child’s name] when [he/she] first had any food or\ndrink other than breast milk?\n1. [number of months]\n2. Less than 1 month","External agency measure (ABS)","New data","No data source","* Child's breast feeding status\n* Child's age where breastfeeding stopped\n* Child's age at which other consumed food or drink was first consumed","Numerator: (Number of children who are currently breastfeeding AND have not had other food or drink) + (Number of children who stop breastfeeding >= 4 months AND first had other food or drink at age >= 4 months) \nDenominator: All children surveyed\nFilters: Children over age of four months",null,null,"y",null,null,null,null,null,"No","No","No","No","No",null,null,"self reported client survey"]
["91","Health","People have a healthy lifestyle and avoid risk taking behaviours that negatively impact their health","Proportion (%) of people who report levels of physical activity below nationally recommended levels","ABS questions:\n1. What was the total amount of time you spent walking for fitness, recreation or sport in the last week?\nHours:\nMinutes:\n\n2. How much time in total did you spend walking to get to and from places in the last week?\nHours:\nMinutes:\n\nThe next few questions are about moderate and vigorous exercise.\nPlease exclude any walking that you may have done, household chores, gardening or yardwork and any activity you do as part of your job.\n\n3. In the last week, did you do any exercise which caused a moderate increase in your heart rate or breathing, that is, moderate exercise? (e.g. gentle swimming, social tennis, golf)\nYes\nNo\n\n4. What was the total amount of time you  spent doing moderate exercise in the last week?\nHours:\nMinutes:\n\n5. In the last week, did you do any exercise which caused a large increase in your heart rate or breathing, that is, vigorous exercise? (e.g. jogging, cycling, aerobics, competitive tennis)\nYes\nNo\n\n6. What was the total amount of time you spent doing vigorous exercise in the last week?\nHours:\nMinutes:\n\nSome activities are designed to increase muscle strength or tone, such as lifting weights, resistance training, pull-ups, push-ups, or sit-ups.\n\n7. Including any activities already mentioned, in the last week did you do any strength or toning activities?\nYes\nNo\n\n8. On how many days last week did you do any strength or toning activities?","External agency measure (ABS)","New data","No data source","* Number of minutes person spent on walking for fitness, recreation or sport in the last week\n* Number of hours person spent on walking for fitness, recreation or sport in the last week\n* Number of minutes person spent walking to get to and from places in the last week\n* Number of hours person spend walking to get to and from places in the last week\n* Number of minutes person spent on moderate exercise\n* Number of hours person spend on moderate exercise\n* Number of minutes person spent on vigorous exercise\n* Number of hours person spend on vigorous exercise\n* Number of days where person did strength or toning activities\n* Age\n\nDerived values:\n* Person meeting Australian's Physical Activity and Sedentary Behaviour Guidelines\nAustralian's Physical Activity and Sedentary Behaviour Guidelines (2014) outlined that people should be active on most, if not all, days and recommend that:\n-- For young persons aged 15-17 years, at least 60 minutes of moderate to vigorous intensity physical activity every day. The guidelines also recommend that young persons aged 15-17 years do muscle strengthening activities on at least 3 days per week.\n-- For adults aged 18-64 years, 150-300 minutes of moderate intensity physical activity or 75-150 minutes of vigorous intensity physical activity, or an equivalent combination of both, per week. The guidelines also recommend that adults aged 18-64 years do muscle strengthening activities on at least 2 days per week.\n-- For adults aged 65 years and over, at least 30 minutes of physical activity on most, preferably all days. For the NHS, we interpret this recommendation as carried out at least 30 minutes of physical activity on at least 5 or more days.","Numerator: Number of people who are not meeting Australian's Physical Activity and Sedentary Behaviour Guidelines \nDenominator: Number of people surveyed",null,null,null,"y","y","y","y","y","No","No","No","No","No",null,null,"self reported client survey"]
["98","Health","People have a healthy lifestyle and avoid risk taking behaviours that negatively impact their health","Proportion (%) of people who currently smoke tobacco ","QAF measure under development\n\nNSW Population Health Survey (SAPHaRI)\nWhich of the following best describes your smoking status?\n1 I smoke daily\n2 I smoke occasionally \n3 I don't smoke now, but I used to\n4 I've tried it a few times but never smoked regularly\n5 I've never smoked \nX Don't know -> SMKX\nR Refused -> SMKX","External agency measure (HealthStats)","New data","No data source","* Persons smoking status","Numerator: Number of people who smoke daily or occasionally\nDenominator: Number of people surveyed",null,null,null,null,"y","y","y","y","No","No","No","No","No",null,null,"self reported client survey",null,"* POCLS asks children and young people if they have smoked in the last 7 days or 4 weeks this is inconsistent with how the data is reported in HealthStats and makes it unsuitable as a measure"]
["99","Health","People have a healthy lifestyle and avoid risk taking behaviours that negatively impact their health","Proportion (%) of adults currently consuming alcohol at levels posing long-term risk to health","NSW Population Health Survey:\nAlcoholic drinks are measured in terms of a \"standard drink\". A standard drink is equal to 1 middy of full-strength beer, 1 schooner of light beer, 1 small glass of wine or 1 pub-sized nip of spirits. On a day when you drink alcohol, how many standard drinks do you usually have?\n1 Record number of drinks\nX Don't know\nR Refused\n\nNational Drug Strategy Household Survey:\nOn a day that you have an alcoholic drink, how many standard drinks do you usually have?  (Mark one response only)\n9 – 10 drinks\n7 – 8 drinks\n5 – 6 drinks\n3 – 4 drinks\n20 or more drinks\n16 – 19 drinks\n13 – 15 drinks\n11 – 12 drinks\n2 drinks\n1 drink\nHalf a drink ","External agency measure (HealthStats)","New data","No data source","* Number of standard alcoholic drinks a person has in a day","Numerator: Number of people who have >= 2 standard alcoholic drinks on a day\nDenominator: Number of people surveyed",null,null,null,null,null,"y","y","y","No","NA","No","No","No",null,null,"self reported client survey",null,"*  National Health and Medical Research Council Guidelines (2009) for dirnking that poses a risk to health are:\n- Guideline 1 consuming more than 2 standard drinks on a day when they consume alcohol"]
["100","Health","People have a healthy lifestyle and avoid risk taking behaviours that negatively impact their health","Proportion (%) of people who have not used an illicit substance within the last 12 months","QAF measure under development\n\nPOCLS (Recommended)\nThe next few questions are about drug use other than for medical reasons (e.g. marijuana, ecstasy, speed, pills). Have you had drugs in the last 12 months?\n• Yes\n• No \n• Pass ","Existing DCJ measure (POCLS)","New data","No data source","* Persons status of illicit drug use in last 12 months","Numerator: Number of people who have not have used illicit drug in last 12 months\nDenominator: Number of people surveyed",null,null,null,null,"y","y","y","y","No","No","No","No","No",null,null,"self reported client survey",null,"* ‘Illicit use of a drug’ or ‘illicit drug use’ (used interchangeably in this report) can encompass a number of broad categories including:\n• illegal drugs—a drug that is prohibited from manufacture, sale or possession in Australia—for example cannabis, cocaine, heroin and amphetamine-type stimulants\n• pharmaceuticals—a drug that is available from a pharmacy, over the counter or by prescription, which may be subject to misuse—for example opioid-based pain-relief medications, opioid substitution therapies, benzodiazepines, over-the-counter codeine and steroids\n• other psychoactive substances—legal or illegal, potentially used in a harmful way—for example kava, synthetic cannabis and other synthetic drugs, or inhalants such as petrol, paint or glue (MCDS 2011)."]
["107","Health","People have good mental health and social and emotional wellbeing","Proportion (%) of people who report having high levels of psychological distress","Kessler 10 (K10) scale","Existing DCJ measure (POCLS and QAF)","New data","No data source","* Persons Kessler score","Numerator: Number of people with Kessler score of >= 22\nDenominator: Number of people surveyed",null,null,null,null,"y","y","y","y","No","No","No","No","No",null,null,"self reported client survey"]
["114","Health","People have good mental health and social and emotional wellbeing","Proportion (%) of people who report often feeling lonely"," HILDA Question: \nI often feel very lonely\n1 (strongly disagree) - 7 (strongly agree)\n\n","External agency measure (HILDS)","New data","No data source","* Persons loneliness score","Numerator: Number of people with a loneliness score >=5\nDenominator: Number of people surveyed",null,null,null,"y","y","y","y","y","No","No","No","No","No",null,null,"self reported client survey",null,"* While POCLS collects data on children and young people's feelings of loneliness it is only for the preceding two weeks making the measure unsuitable for comparison to HILDA"]
["115","Health","People have good mental health and social and emotional wellbeing","Proportion (%) of children with good social and emotional functioning","QAF (Recommended)\nStrengths and Difficulties Questionnaire (SDQ) \n\nPOCLS\nAged 9-35 months - Brief Infant-toddler Social and Emotional Assessment (BITSEA)\nAged 6-18 years - Child Behavior Checklist (CBCL)","Existing DCJ measure (QAF and POCLS)","New data","No data source","QAF developing data elements","QAF developing counting rules",null,null,"y","y","y",null,null,null,"No","No","No","No","No",null,null,"assessment of client",null,"* The SDQ is included in the TEI Outcomes Framework as a long term indicator, but it’s not mandatory and implementation is still in the early days\n* While SDW is a indicator for the AIHW Child Headline indicators and the National framework for protecting Australia's children indicators data has only been reported for 2014 meaning it is not a consistent comparable data source"]
["116","Health","People have good mental health and social and emotional wellbeing","Proportion (%) of children aged 0-5 years with developmental delays","QAF measure under development\n\nPOCLS (Recommended measures)\nAge 6 months - 2 years\nCommunication and Symbolic Behaviour Scale Infant and Toddler Checklist (CSBS ITC)\n\nAge 2-3 years\nMacarthur-Bates Communicative Developmental Inventories III (MCDI-III)  for children aged 24-35 months\n\nAge >3\nPeabody Picture Vocabulary Test (PPVT-4)\n\nNote: no measure have been identified for gross and fine motor delays, and social functioning delays","Existing DCJ measure (POCLS)","New data","No data source","* persons overall score on assessment\n* indicator if person has overall developmental delay\n","Numerator: Number of children who have received a score of developmentally delayed\nDenominator: Total number of children assessed",null,null,"y",null,null,null,null,null,"No","No","No","No","No",null,null,"assessment of client"]
["119","Health","People have good physical health","Proportion (%) of people who report having excellent/very good/good/fair/poor health","In the last 4 weeks, how has your health been? \n\n• Excellent\n• Very Good\n• Good\n• Not very good\n• Poor\n• Pass","Existing DCJ measure (POCLS)","New data","No data source","* Persons health rating","Numerator: Number of people who gave specific health rating\nDenominator: Number of people surveyed",null,null,null,null,"y","y","y","y","No","No","No","No","No",null,null,"self reported client survey"]
["122","Health","People have good physical health","Proportion (%) of people who are overweight or obese","Body Mass Index (BMI)","Existing DCJ measure (QAF)","New data","No data source","* Persons BMI score","Numerator: Number of people rated as overweight or obese\nDenominator: Total number of people whose weight is known",null,null,"y","y","y","y","y","y","No","No","No","No","No",null,null,"medical data, self reported client survey"]
["136","Home","People live in housing with good condition and with good access to local facilities and services","Proportion (%) of people living in homes that meet safety standards","No measure identified","Evidence development required","New data","No data source",null,null,null,null,"y","y","y","y","y","y","No","No","No","No","No",null,null,"self reported client survey"]
["147","Home","People have stability in their home","Proportion (%) of people who report being secure in their accommodation","No measure identified","Evidence development required","New data","No data source",null,null,null,null,null,null,"y","y","y","y","No","No","No","No","No",null,null,"self reported client survey"]
["167","Home","People live in housing with good condition and with good access to local facilities and services","Proportion (%) of people satisfied with the home they live in","No measure identified","Evidence development required","New data","No data source",null,null,null,null,"y","y","y","y","y","y","No","No","No","No","No",null,null,"self reported client survey"]
["168","Home","People live in housing with good condition and with good access to local facilities and services","Proportion (%) of people living in homes of acceptable standard","No measure identified","Evidence development required","New data","No data source",null,null,null,null,"y","y","y","y","y","y","No","No","No","No","No",null,null,"self reported client survey"]
["180","Safety","Children and young people grow up in families and communities that are stable and supportive with strong relationships","Proportion (%) of children and young people who report high levels of emotional and social support","No measure identified","Evidence development required","New data","No data source",null,null,null,null,null,"y","y",null,null,null,"No","No","No","No","No",null,null,"self reported client survey"]
["196","Safety","People are physically and emotionally safe in their communities​","Proportion (%) of people who report feeling safe in their neighbourhood","No measure identified","Evidence development required","New data","No data source",null,null,null,null,null,null,"y","y","y","y","No","No","No","No","No",null,null,"self reported client survey"]
["201","Safety","People are physically and emotionally safe in their communities​","Proportion (%) of people who report being a victim of personal crime (i.e. physical assault, threatened assault, robbery or sexual assault) in the last 12 months","No measure identified","Evidence development required","New data","No data source",null,null,null,null,"y","y","y","y","y","y","No","No","No","No","No",null,null,"self reported client survey",null,"* While the ABS collects data on experiences of violence the survey method used is onerous and in it's current format would not be suitable for use by DCJ\n* POCLS do not collect data on if the person was threated with physical assault separate to indicator if the person had been insulted or called name"]
["235","Social and Community","People are connected to supportive relationships","Proportion (%) of people who report having a person(s) to lean on in times of trouble ","ABS General Social Survey\nIf you needed to, could you ask someone  for any of these types of support in a time of crisis?\nYes\nNo","External agency measure (ABS)","New data","No data source","* Persons indicator of someone to turn to in time of crisis","Numerator: Number of people who have someone to turn to in time of crisis\nDenominator: Number of people surveyed",null,null,null,"y","y","y","y","y","No","No","No","No","No",null,null,"self reported client survey"]
["244","Social and Community","People are connected to supportive relationships","Proportion (%) of people who report good social ties in their neighbourhood","POCLS:\nSocial Cohesion and Trust Scale \nThis is a close-knit neighbourhood’\n‘People around here are willing to help their neighbours’\n* ‘People in this neighbourhood generally don’t get along with each other’\n‘People in this neighbourhood can be trusted ’\n\n*This item is reversed scored \nResponse categories:\nStrongly agree =’1’\nAgree = ‘2’\nNeither agree nor disagree = ‘3’\nDisagree = ‘4’\nStrongly disagree = ‘5’\nDON’T KNOW;\nREFUSED;\n\nScoring:\nThe scale is scored by summing the four items.","Existing DCJ measure (POCLS)","New data","No data source","* Persons close-knit neighbourhood score\n* Persons  people around here are willing to help their neighbours score\n* Persons  people in this neighbourhood generally don’t get along with each other score\n* Persons people in this neighbourhood can be trusted score\n* Persons average social cohesion and trust scale score","Numerator: Number of people with average social cohesion and trust scale score >= 2\nDenominator: Number of people surveyed ",null,null,null,null,null,"y","y","y","No","NA","No","No","No",null,null,"self reported client survey"]
["247","Social and Community","People feel a sense of connection and belonging to their communities","Proportion (%) of children and young people who report feeling a sense of belonging at school and peer acceptance","Longitudinal Study of Australian Children (LSAC)\nPsychological Sense of School Membership scale\nFor each of the following sentences please pick the answer that best matches your experience. There are no right or wrong answers.\n\na. People here notice when I’m good at something.\nb. It is hard for people like me to be accepted here. \nc. Other students in this school take my opinions seriously.\nd. Most teachers at this school are interested in me. \ne. Sometimes I don’t feel as if I belong here.\nf. There’s at least one teacher or other adult in this school I can talk to if I have a problem.\ng. Teachers here are not interested in people like me. \nh. I am included in lots of activities at this school. \nI. I can really be myself at this school.\nj. The teachers here respect me.\nk. I wish I were in a different school. \nl. Other students here like me the way I am.\n\n1. Not at all true\n2. Not very true\n3. Neither not at all true nor completely true\n4. Somewhat true\n5. Completely true","External agency measure (LSAC)","New data","No data source","* Persons overall  average school belonging score\n","Numerator: Number of children and young people with an average school belonging score >= 4\nDenominator: Total number of children and young people surveyed",null,null,null,"y","y",null,null,null,"No","No","No","No","No",null,null,"self reported client survey",null,"* Not available in Longitudinal Study of Australian Children annual report as it is reported as a quintile score"]
["258","Social and Community","People live in communities with good conditions and with good access to local facilities and services","Proportion (%) of people satisfied with the quality of their neighbourhood","Future Directions of Social Housing Survey:\n\nOverall, how satisfied or dissatisfied are you with your neighbourhood as a place to live?\nScale 0-10\n","Existing DCJ measure (Future Directions of Social Housing)","New data","No data source","* Persons score of satisfaction with neighbourhood","Counting rules require development with Future Directions of Social Housing Survey",null,null,null,null,null,"y","y","y","No","NA","No","No","No",null,null,"self reported client survey",null,"* Data will be collected in the Future Directions of Social Housing survey"]
["262","Social and Community","People live in communities with good conditions and with good access to local facilities and services","Proportion (%) of people satisfied with access to services and facilities","AIHW National Social Housing Survey\nPlease indicate if it is important or not for your household to have access to the following facilities or services THEN please indicate if the location of your current home meets the need of your household or not:\nShops and banking facilities\nPublic transport (e.g. buses, trams, trains)\nEmergency services, medical services and hospitals\nChild care facilities\nEducation and training facilities (e.g. TAFE, university, school)\nEmployment or place of work\nCommunity and support services (e.g. aged care services, disability services, drug and alcohol support services)\nFamily and friends\n\nimportant/not important \nMeets needs/does not meet needs","External agency measure (AIHW)","New data","No data source","* Persons indicator if important - Shops and banking facilities\n* Persons indicator if important - Public transport (e.g. buses, trams, trains)\n* Persons indicator if important -Emergency services, medical services and hospitals\n* Persons indicator if important -Child care facilities\n* Persons indicator if important -Education and training facilities (e.g. TAFE, university, school)\n* Persons indicator if important -Employment or place of work\n* Persons indicator if important -Community and support services (e.g. aged care services, disability services, drug and alcohol support services)\n* Persons indicator if important -Family and friends\n* Persons indicator if need met - Shops and banking facilities\n* Persons indicator if need met - Public transport (e.g. buses, trams, trains)\n* Persons indicator if need met -Emergency services, medical services and hospitals\n* Persons indicator if need met -Child care facilities\n* Persons indicator if need met -Education and training facilities (e.g. TAFE, university, school)\n* Persons indicator if need met -Employment or place of work\n* Persons indicator if need met -Community and support services (e.g. aged care services, disability services, drug and alcohol support services)\n* Persons indicator if need met -Family and friends","Numerator: Number of people who have need met for all important facilities and services\nDenominator: Number of people surveyed",null,null,null,null,null,"y","y","y","No","NA","No","No","No",null,null,"self reported client survey"]
["300","Empowerment","Aboriginal people are able to have a voice in community decision-making","Proportion (%) of Aboriginal people who report feeling heard in their community","National Aboriginal and Torres Strait Islander Social Survey ABS\n\nHow often do you feel you are able to have a say within the general community, on issues that are important to you?\nAll of the time\nMost of the time\nSome of the time\nA little of the time\nNone of the time","External agency measure (ABS)","New data","No data source","* Persons rating on feeling heard in community","Numerator: Number of Aboriginal people who feel heard All of the time or Most of the time\nDenominator: Total number of Aboriginal people surveyed\nFilters: Persons who identify as Aboriginal only",null,null,null,null,"y","y","y","y","No","No","No","No","No",null,null,"self reported client survey"]
["301","Safety","People are safe from domestic and family violence​","Proportion (%) of people who report experiencing domestic and family violence in the last 12 months","No measure identified","Evidence development required","New data","No data source",null,null,null,null,"y","y","y","y","y","y","No","No","No","No","No",null,null,"self reported client survey",null,"* While the ABS collects data on experiences of domestic violence the survey method used is onerous and in it's current format would not be suitable for use by DCJ\n* While the ABS collects data on domestic violence it is not reported publicly"]
["319","Social and community","People feel a sense of connection and belonging to their culture and identities","Proportion (%) of people who have knowledge of their language","QAF (Recomended)\nCALD\nDoes one of your birth parents speak a language other than English at home?\nDo you speak this/these language/s ?\n\nAboriginal people\nAboriginal people - Aboriginal Cultural Connections Questionnaire (ACCQ)\nDo you know any Aboriginal words or language?\nWhat are the words and their meaning?\n\nPOCLS\nApart from English, can you speak the same languages as your birth parents? \n\nAboriginal people\nDo you know any Aboriginal languages or words? [Yes / No / Don't know / Pass]\nWhat is the name of the language? [TEXT BOX]","Existing DCJ measure (QAF and POCLS)","New data","No data source","* Person is able to speak language of birth parents (other than English)","Numerator: Number of people who can speak language of birth parents (other than English)\nDenominator: Number of people surveyed whose parents spoke a language other than English",null,null,null,"y","y","y","y","y","No","No","No","No","No",null,null,"self reported client survey"]
["320","Social and community","People feel a sense of connection and belonging to their culture and identities","Proportion (%) of people who feel a connection to their culture","Multigroup Ethnic Identity Measure (MEIM)\nSubscale items for Affirmation, belonging, and commitment (Questions 3, 5, 6, 7, 9, 11, 12)\n\n3. I have a clear sense of my ethnic background and what it means for me.\n5. I am happy that I am a member of the group I belong to.\t\n6. I have a strong sense of belonging to my own ethnic group.\n7. I understand pretty well what my ethnic group membership means to me.\n9. I have a lot of pride in my ethnic group.\n11. I feel a strong attachment towards my own ethnic group.\n12. I feel good about my cultural or ethnic background.\n\nAnswer options (4) Strongly agree     (3) Agree     (2) Disagree     (1) Strongly disagree  ","Existing DCJ measure (QAF)","New data","No data source","* Persons mean score for all items","Numerator: Number of people who had an average score >=3\nDenominator: Number of people surveyed",null,null,null,"y","y","y","y","y","No","No","No","No","No",null,null,"self reported client survey"]
["321","Social and community","People feel a sense of connection and belonging to their culture and identities","Proportion (%) of people who have knowledge of their culture","QAF (Recommended measure)\nAboriginal people - Aboriginal Cultural Connections Questionnaire (ACCQ)\n\nPOCLS\nCALD\n• Do you have the same religion as your birth parents? \n• Do you go to any special events or festivals about the country where your birth parents or grandparents come from?\n• Have you been told stories about the country where your birth parents or grandparents come from?\nYes / No / Don't know / Pass\n\nAboriginal people\n• Do you go to any Aboriginal special events or festivals?\n• Have you been told stories about your mob or your country? \n• Do you know any people who can tell you things about your family and community? \nYes / No / Don't know / Pass\n","Existing DCJ measure (QAF (Aboriginal people only) and POCLS (Aborginal and CALD)) ","New data","No data source","Data elements being developed by QAF","Counting rules being developed by QAF",null,null,null,"y","y","y","y","y","No","No","No","No","No",null,null,"self reported client survey"]
["326","Safety","People feel that the importance of their family and culture is recognised, respected and understood","Proportion (%) of Aboriginal people who report having trust in provider of Government services","No measure identified","Evidence development required","New data","No data source",null,null,null,null,null,null,"y","y","y","y","No","No","No","No","No",null,null,"self reported client survey"]
["328","Home","Aboriginal people are able to live on Country or in a community of belonging","Proportion (%) of Aboriginal people who make a choice to return to live on Country","No measure identified","Evidence development required","New data","No data source",null,null,null,null,null,null,null,"y","y","y","No","NA","No","No","No",null,null,"self reported client survey"]
["329","Social and community","Aboriginal people know who their families are and are able to feel a connection to them","Proportion (%) of Aboriginal people who know who their family are","Aboriginal Cultural Connections Questionnaire (ACCQ)\nQ1 Do you know who your family/mob is?\nYes, No","Existing DCJ measure (QAF) - note has been developed for ages 9-17 however could be adapted for adults","New data","No data source","* Persons indicator of knowing who their family/mob is","Numerator: Number of Aboriginal people who indicate they know who their family is\nDenominator: Number of people surveyed\nFilters: People who identify as Aboriginal only",null,null,null,"y","y","y","y","y","No","No","No","No","No",null,null,"self reported client survey"]
["334","Home","Aboriginal people are able to live on Country or in a community of belonging","Proportion (%) of Aboriginal people who have family living in their neighbourhood ","No measure identified","Evidence development required","New data","No data source",null,null,null,null,"y","y","y","y","y","y","No","No","No","No","No",null,null,"self reported client survey"]
[11,"Economic","Adults and young people who are able to work are in continuous employment","Proportion (%) of people who were employed continuously in past 12 months","No measure identified","Evidence development required","New data","No data source",null,null,null,null,null,null,null,"y","y","y","No","NA","No","No","No",null,null,"self reported client survey",null,"* For Social Housing clients a proxy indicator can be derived from the clients main source of income (i.e. as either being wages or unemployment benefits)"]
[14,"Economic","People have financial literacy and financial management skills","Proportion (%) of people who report having the financial skills to manage their finances","No measure identified","Evidence development required","New data","No data source",null,null,null,null,null,null,null,"y","y","y","No","NA","No","No","No",null,null,"self reported client survey"]
[39,"Economic","People have financial security and autonomy​","Proportion (%) of children living in families with secure parental employment","No measure identified","Evidence development required","New data","No data source",null,null,null,null,"y","y","y",null,null,null,"No","No","No","No","No",null,null,"self reported client survey"]
["67","Education and Skills","People are ready at each point of educational transition (e.g. have education and skills required to be work or school ready)","Proportion (%) of people who receive job skills training and employment support","No measure identified","Evidence development required","New data","No data source",null,null,null,null,null,null,null,"y","y","y","No","NA","No","No","No",null,null,"self reported client survey"]
["68","Empowerment","People are in charge of their own lives and feel a sense of choice and control (self-determination)","Proportion (%) of people who feel that they are able to control and influence their life outcomes","No measure identified","Evidence development required","New data","No data source",null,null,null,null,null,null,"y","y","y","y","No","No","No","No","No",null,null,"self reported client survey"]
["69","Empowerment","People are in charge of their own lives and feel a sense of choice and control (self-determination)","Proportion (%) of people who report having involvement in decision-making","No measure identified","Evidence development required","New data","No data source",null,null,null,null,null,null,"y","y","y","y","No","No","No","No","No",null,null,"self reported client survey"]
["70","Empowerment","People are in charge of their own lives and feel a sense of choice and control (self-determination)","Proportion (%) of people who report having choice and control over the services they receive","No measure identified","Evidence development required","New data","No data source",null,null,null,null,null,null,"y","y","y","y","No","No","No","No","No",null,null,"self reported client survey"]
["75","Empowerment","People are reslient and are able to tackle major life challenges","Proportion (%) of people who feel able to cope with life events","No measure identified","Evidence development required","New data","No data source",null,null,null,null,null,null,"y","y","y","y","No","NA","No","No","No",null,null,"self reported client survey"]
["77","Empowerment","People have hope for the future","Proportion (%) of people who report having hope for their future","No measure identified","Evidence development required","New data","No data source",null,null,null,null,null,null,"y","y","y","y","No","No","No","No","No",null,null,"self reported client survey"]
["88","Health","Mothers have healthy pregnancies and babies have good birth outcomes","Proportion (%) of women who report substance misuse during pregnancy","No measure identified","Evidence development required","New data","No data source",null,null,null,null,"y",null,null,null,null,null,"No","No","No","No","No",null,null,"self reported client survey",null,"* while smoking status is collected in Perinatal statistics illicit drug use is not"]
["117","Health","People have good physical health","Proportion (%) of children who are free from tooth decay","No measure identified","Evidence development required","New data","No data source",null,null,null,null,null,"y","y",null,null,null,"No","No","No","No","No",null,null,"medical data",null,"* The NSW Child Dental Health Survey 2007 reported the percentage of children free from dental caries (tooth decay) for ages 5-6 and 11-12, however the survey has not be repeated.\n* AIHW Children’s Headline Indicators - Dental health reports on mean number of decayed, missing or filled teeth (DMFT) among primary school children aged 12  based on results from the Child Dental Health Survey, although data is not available for time period consistent and only available for 2014 for NSW"]
["238","Social and Community","People are connected to supportive relationships","Proportion (%) of people who report having supportive relationships","No measure identified","Evidence development required","New data","No data source",null,null,null,null,null,"y","y","y","y","y","No","No","No","No","No",null,null,"self reported client survey"]
["245","Social and Community","People feel a sense of connection and belonging to their communities","Proportion (%) of people who report feeling a sense of belonging in the place and community where they live","No measure identified","Evidence development required","New data","No data source",null,null,null,null,null,"y","y","y","y","y","No","No","No","No","No",null,null,"self reported client survey"]
["297","Health","Aboriginal people heal from inter-generational trauma and loss","Proportion (%) of Aboriginal people who report that they know when and where to seek culturally appropriate support to prevent escalation to crisis","No measure identified","Evidence development required","New data","No data source",null,null,null,null,null,null,"y","y","y","y","No","No","No","No","No",null,null,"self reported client survey"]
["308","Health","Mothers have healthy pregnancies and babies have good birth outcomes","Proportion (%) of mothers who experience high levels of maternal stress","No measure identified","Evidence development required","New data","No data source",null,null,null,null,null,null,"y","y","y","y","No","No","No","No","No",null,null,"self reported client survey"]
["317","Empowerment","Aboriginal people are able to have a voice in community decision-making","Proportion (%) of Aboriginal people who report feeling they have influence in community decision-making","No measure identified","Evidence development required","New data","No data source",null,null,null,null,null,null,"y","y","y","y","No","No","No","No","No",null,null,"self reported client survey"]
[318,"Safety","People feel that the importance of their family and culture is recognised, respected and understood\n","Proportion (%) of Aboriginal people who report that they felt a service was respectful of their culture","No measure identified","Evidence development required","New data","No data source",null,null,null,null,null,null,"y","y","y","y","No","No","No","No","No",null,null,"self reported client survey"]
["322","Social and community","People feel a sense of connection and belonging to their culture and identities","Proportion (%) of Aboriginal people who feel a connection to Country","No measure identified","Evidence development required","New data","No data source",null,null,null,null,null,"y","y","y","y","y","No","No","No","No","No",null,null,"self reported client survey"]
["324","Education and Skills","People are engaged in their learning and strive for excellence in their education","Proportion (%) of people who are recorded as having low literacy levels","No measure identified","Evidence development required","New data","No data source",null,null,null,null,null,"y","y","y","y","y","No","No","No","No","No",null,null,"assessment of client",null,"* Literacy for Life Foundation collect data on literacy rate in Aboriginal populations, however their survey is not available publicly nor is there consistent reporting of their results"]
["325","Social and community","People feel a sense of connection and belonging to their culture and identities","Proportion (%) of Aboriginal people who report having opportunities to practice their language","No measure identified","Evidence development required","New data","No data source",null,null,null,null,null,"y","y","y","y","y","No","No","No","No","No",null,null,"self reported client survey"]
[331,"Empowerment","Aboriginal people are able to have a voice in community decision-making","Proportion (%) of Aboriginal people engaged in local decision- making forums","No measure identified","Evidence development required","New data","No data source",null,null,null,null,null,null,"y","y","y","y","No","No","No","No","No",null,null,"self reported client survey"]
["332","Empowerment","People have cultural empowerment","Proportion (%) of people who feel culturally confident","No measure identified","Evidence development required","New data","No data source",null,null,null,null,null,"y","y","y","y","y","No","No","No","No","No",null,null,"self reported client survey"]
["333","Safety","People feel that the importance of their family and culture is recognised, respected and understood","Proportion (%) of Aboriginal children and young people in Out-of-Home-Care with an age appropriate cultural plan","No measure identified","Evidence development required","New data","No data source",null,null,null,null,"y","y","y",null,null,null,"No","No","No","No","No",null,null,"assessment of cultural plan"]
[338,"Safety","People feel that the importance of their family and culture is recognised, respected and understood","Proportion (%) of CALD people who report having trust in providers of Government services","No measure identified","Evidence development required","New data","No data source",null,null,null,null,null,"y","y","y","y","y","No","No","No","No","No",null,null,"self reported client survey"]
[339,"Safety","People feel that the importance of their family and culture is recognised, respected and understood","Proportion (%) of CALD people who report that they felt a service was respectful of their culture","No measure identified","Evidence development required","New data","No data source",null,null,null,null,null,"y","y","y","y","y","No","No","No","No","No",null,null,"self reported client survey"]

{"sheet":"Select Outcome Domain","index":4,"n_rows":353,"n_cols":28,"rows_kept":353,"cut":false,"hidden":false,"merged":[[1,0,1,4]]}
[]
["Core Client Outcomes and Indicators"]
[null,"Select Outcome Domain:","Health"]
[]
["ID","Outcome domain","Client outcome","Indicator","Measures","Measure source","Data availability status","Data Report","Data elements","Counting rules","Data custodian","Linkage platform","Age ranges 0-4","Age ranges 5-12","Age ranges 13-17","Age ranges 18-24","Age ranges 25-64","Age ranges 65+","Client data avaliable for TEI","Client data avaliable for  Child Protection and OOHC","Client data avaliable for Public Housing and AHO","Client data avaliable for Community Housing","Client data avaliable for Specialist Homelessness Services","Data available from (full year)","Frequency of data collection","Collection method","Known data issues","Notes"]
[{"$f":"IF(OR(Selection_Hide2!A6=0, Selection_Hide2!A6=\"\"), \"\", Selection_Hide2!A6)","v":"100"},{"$f":"IF(OR(Selection_Hide2!B6=0, Selection_Hide2!B6=\"\"), \"\", Selection_Hide2!B6)","v":"Health"},{"$f":"IF(OR(Selection_Hide2!C6=0, Selection_Hide2!C6=\"\"), \"\", Selection_Hide2!C6)","v":"People have a healthy lifestyle and avoid risk taking behaviours that negatively impact their health"},{"$f":"IF(OR(Selection_Hide2!D6=0, Selection_Hide2!D6=\"\"), \"\", Selection_Hide2!D6)","v":"Proportion (%) of people who have not used an illicit substance within the last 12 months"},{"$f":"IF(OR(Selection_Hide2!E6=0, Selection_Hide2!E6=\"\"), \"\", Selection_Hide2!E6)","v":"QAF measure under development\n\nPOCLS (Recommended)\nThe next few questions are about drug use other than for medical reasons (e.g. marijuana, ecstasy, speed, pills). Have you had drugs in the last 12 months?\n• Yes\n• No \n• Pass "},{"$f":"IF(OR(Selection_Hide2!F6=0, Selection_Hide2!F6=\"\"), \"\", Selection_Hide2!F6)","v":"Existing DCJ measure (POCLS)"},{"$f":"IF(OR(Selection_Hide2!G6=0, Selection_Hide2!G6=\"\"), \"\", Selection_Hide2!G6)","v":"New data"},{"$f":"IF(OR(Selection_Hide2!H6=0, Selection_Hide2!H6=\"\"), \"\", Selection_Hide2!H6)","v":"No data source"},{"$f":"IF(OR(Selection_Hide2!I6=0, Selection_Hide2!I6=\"\"), \"\", Selection_Hide2!I6)","v":"* Persons status of illicit drug use in last 12 months"},{"$f":"IF(OR(Selection_Hide2!J6=0, Selection_Hide2!J6=\"\"), \"\", Selection_Hide2!J6)","v":"Numerator: Number of people who have not have used illicit drug in last 12 months\nDenominator: Number of people surveyed"},{"$f":"IF(OR(Selection_Hide2!K6=0, Selection_Hide2!K6=\"\"), \"\", Selection_Hide2!K6)","v":""},{"$f":"IF(OR(Selection_Hide2!L6=0, Selection_Hide2!L6=\"\"), \"\", Selection_Hide2!L6)","v":""},{"$f":"IF(OR(Selection_Hide2!M6=0, Selection_Hide2!M6=\"\"), \"\", Selection_Hide2!M6)","v":""},{"$f":"IF(OR(Selection_Hide2!N6=0, Selection_Hide2!N6=\"\"), \"\", Selection_Hide2!N6)","v":""},{"$f":"IF(OR(Selection_Hide2!O6=0, Selection_Hide2!O6=\"\"), \"\", Selection_Hide2!O6)","v":"y"},{"$f":"IF(OR(Selection_Hide2!P6=0, Selection_Hide2!P6=\"\"), \"\", Selection_Hide2!P6)","v":"y"},{"$f":"IF(OR(Selection_Hide2!Q6=0, Selection_Hide2!Q6=\"\"), \"\", Selection_Hide2!Q6)","v":"y"},{"$f":"IF(OR(Selection_Hide2!R6=0, Selection_Hide2!R6=\"\"), \"\", Selection_Hide2!R6)","v":"y"},{"$f":"IF(OR(Selection_Hide2!S6=0, Selection_Hide2!S6=\"\"), \"\", Selection_Hide2!S6)","v":"No"},{"$f":"IF(OR(Selection_Hide2!T6=0, Selection_Hide2!T6=\"\"), \"\", Selection_Hide2!T6)","v":"No"},{"$f":"IF(OR(Selection_Hide2!U6=0, Selection_Hide2!U6=\"\"), \"\", Selection_Hide2!U6)","v":"No"},{"$f":"IF(OR(Selection_Hide2!V6=0, Selection_Hide2!V6=\"\"), \"\", Selection_Hide2!V6)","v":"No"},{"$f":"IF(OR(Selection_Hide2!W6=0, Selection_Hide2!W6=\"\"), \"\", Selection_Hide2!W6)","v":"No"},{"$f":"IF(OR(Selection_Hide2!X6=0, Selection_Hide2!X6=\"\"), \"\", Selection_Hide2!X6)","v":""},{"$f":"IF(OR(Selection_Hide2!Y6=0, Selection_Hide2!Y6=\"\"), \"\", Selection_Hide2!Y6)","v":""},{"$f":"IF(OR(Selection_Hide2!Z6=0, Selection_Hide2!Z6=\"\"), \"\", Selection_Hide2!Z6)","v":"self reported client survey"},{"$f":"IF(OR(Selection_Hide2!AA6=0, Selection_Hide2!AA6=\"\"), \"\", Selection_Hide2!AA6)","v":""},{"$f":"IF(OR(Selection_Hide2!AB6=0, Selection_Hide2!AB6=\"\"), \"\", Selection_Hide2!AB6)","v":"* ‘Illicit use of a drug’ or ‘illicit drug use’ (used interchangeably in this report) can encompass a number of broad categories including:\n• illegal drugs—a drug that is prohibited from manufacture, sale or possession in Australia—for example cannabis, cocaine, heroin and amphetamine-type stimulants\n• pharmaceuticals—a drug that is available from a pharmacy, over the counter or by prescription, which may be subject to misuse—for example opioid-based pain-relief medications, opioid substitution therapies, benzodiazepines, over-the-counter codeine and steroids\n• other psychoactive substances—legal or illegal, potentially used in a harmful way—for example kava, synthetic cannabis and other synthetic drugs, or inhalants such as petrol, paint or glue (MCDS 2011)."}]
[{"$f":"IF(OR(Selection_Hide2!A7=0, Selection_Hide2!A7=\"\"), \"\", Selection_Hide2!A7)","v":"107"},{"$f":"IF(OR(Selection_Hide2!B7=0, Selection_Hide2!B7=\"\"), \"\", Selection_Hide2!B7)","v":"Health"},{"$f":"IF(OR(Selection_Hide2!C7=0, Selection_Hide2!C7=\"\"), \"\", Selection_Hide2!C7)","v":"People have good mental health and social and emotional wellbeing"},{"$f":"IF(OR(Selection_Hide2!D7=0, Selection_Hide2!D7=\"\"), \"\", Selection_Hide2!D7)","v":"Proportion (%) of people who report having high levels of psychological distress"},{"$f":"IF(OR(Selection_Hide2!E7=0, Selection_Hide2!E7=\"\"), \"\", Selection_Hide2!E7)","v":"Kessler 10 (K10) scale"},{"$f":"IF(OR(Selection_Hide2!F7=0, Selection_Hide2!F7=\"\"), \"\", Selection_Hide2!F7)","v":"Existing DCJ measure (POCLS and QAF)"},{"$f":"IF(OR(Selection_Hide2!G7=0, Selection_Hide2!G7=\"\"), \"\", Selection_Hide2!G7)","v":"New data"},{"$f":"IF(OR(Selection_Hide2!H7=0, Selection_Hide2!H7=\"\"), \"\", Selection_Hide2!H7)","v":"No data source"},{"$f":"IF(OR(Selection_Hide2!I7=0, Selection_Hide2!I7=\"\"), \"\", Selection_Hide2!I7)","v":"* Persons Kessler score"},{"$f":"IF(OR(Selection_Hide2!J7=0, Selection_Hide2!J7=\"\"), \"\", Selection_Hide2!J7)","v":"Numerator: Number of people with Kessler score of >= 22\nDenominator: Number of people surveyed"},{"$f":"IF(OR(Selection_Hide2!K7=0, Selection_Hide2!K7=\"\"), \"\", Selection_Hide2!K7)","v":""},{"$f":"IF(OR(Selection_Hide2!L7=0, Selection_Hide2!L7=\"\"), \"\", Selection_Hide2!L7)","v":""},{"$f":"IF(OR(Selection_Hide2!M7=0, Selection_Hide2!M7=\"\"), \"\", Selection_Hide2!M7)","v":""},{"$f":"IF(OR(Selection_Hide2!N7=0, Selection_Hide2!N7=\"\"), \"\", Selection_Hide2!N7)","v":""},{"$f":"IF(OR(Selection_Hide2!O7=0, Selection_Hide2!O7=\"\"), \"\", Selection_Hide2!O7)","v":""},{"$f":"IF(OR(Selection_Hide2!P7=0, Selection_Hide2!P7=\"\"), \"\", Selection_Hide2!P7)","v":""},{"$f":"IF(OR(Selection_Hide2!Q7=0, Selection_Hide2!Q7=\"\"), \"\", Selection_Hide2!Q7)","v":""},{"$f":"IF(OR(Selection_Hide2!R7=0, Selection_Hide2!R7=\"\"), \"\", Selection_Hide2!R7)","v":""},{"$f":"IF(OR(Selection_Hide2!S7=0, Selection_Hide2!S7=\"\"), \"\", Selection_Hide2!S7)","v":""},{"$f":"IF(OR(Selection_Hide2!T7=0, Selection_Hide2!T7=\"\"), \"\", Selection_Hide2!T7)","v":""},{"$f":"IF(OR(Selection_Hide2!U7=0, Selection_Hide2!U7=\"\"), \"\", Selection_Hide2!U7)","v":""},{"$f":"IF(OR(Selection_Hide2!V7=0, Selection_Hide2!V7=\"\"), \"\", Selection_Hide2!V7)","v":""},{"$f":"IF(OR(Selection_Hide2!W7=0, Selection_Hide2!W7=\"\"), \"\", Selection_Hide2!W7)","v":""},{"$f":"IF(OR(Selection_Hide2!X7=0, Selection_Hide2!X7=\"\"), \"\", Selection_Hide2!X7)","v":""},{"$f":"IF(OR(Selection_Hide2!Y7=0, Selection_Hide2!Y7=\"\"), \"\", Selection_Hide2!Y7)","v":""},{"$f":"IF(OR(Selection_Hide2!Z7=0, Selection_Hide2!Z7=\"\"), \"\", Selection_Hide2!Z7)","v":""},{"$f":"IF(OR(Selection_Hide2!AA7=0, Selection_Hide2!AA7=\"\"), \"\", Selection_Hide2!AA7)","v":""},{"$f":"IF(OR(Selection_Hide2!AB7=0, Selection_Hide2!AB7=\"\"), \"\", Selection_Hide2!AB7)","v":""}]
[{"$f":"IF(OR(Selection_Hide2!A8=0, Selection_Hide2!A8=\"\"), \"\", Selection_Hide2!A8)","v":"113"},{"$f":"IF(OR(Selection_Hide2!B8=0, Selection_Hide2!B8=\"\"), \"\", Selection_Hide2!B8)","v":"Health"},{"$f":"IF(OR(Selection_Hide2!C8=0, Selection_Hide2!C8=\"\"), \"\", Selection_Hide2!C8)","v":"People have good mental health and social and emotional wellbeing"},{"$f":"IF(OR(Selection_Hide2!D8=0, Selection_Hide2!D8=\"\"), \"\", Selection_Hide2!D8)","v":"Suicide rate per 100,000 population by age"},{"$f":"IF(OR(Selection_Hide2!E8=0, Selection_Hide2!E8=\"\"), \"\", Selection_Hide2!E8)","v":"Notice of death"},{"$f":"IF(OR(Selection_Hide2!F8=0, Selection_Hide2!F8=\"\"), \"\", Selection_Hide2!F8)","v":"External agency measure (RBDM)"},{"$f":"IF(OR(Selection_Hide2!G8=0, Selection_Hide2!G8=\"\"), \"\", Selection_Hide2!G8)","v":"Data linkage "},{"$f":"IF(OR(Selection_Hide2!H8=0, Selection_Hide2!H8=\"\"), \"\", Selection_Hide2!H8)","v":"NSW Mortality Data"},{"$f":"IF(OR(Selection_Hide2!I8=0, Selection_Hide2!I8=\"\"), \"\", Selection_Hide2!I8)","v":"* Underlying Cause of Death Diagnosis Code [ucod_recode]"},{"$f":"IF(OR(Selection_Hide2!J8=0, Selection_Hide2!J8=\"\"), \"\", Selection_Hide2!J8)","v":"Numerator: total number of deaths where Underlying Cause of Death Diagnosis Code is self harm (ICD10 X60 - X84, Y87.0)\nDenominator: Number of DCJ clients"},{"$f":"IF(OR(Selection_Hide2!K8=0, Selection_Hide2!K8=\"\"), \"\", Selection_Hide2!K8)","v":"NSW Registry of Births, Deaths and Marriages"},{"$f":"IF(OR(Selection_Hide2!L8=0, Selection_Hide2!L8=\"\"), \"\", Selection_Hide2!L8)","v":"CHeReL"},{"$f":"IF(OR(Selection_Hide2!M8=0, Selection_Hide2!M8=\"\"), \"\", Selection_Hide2!M8)","v":""},{"$f":"IF(OR(Selection_Hide2!N8=0, Selection_Hide2!N8=\"\"), \"\", Selection_Hide2!N8)","v":""},{"$f":"IF(OR(Selection_Hide2!O8=0, Selection_Hide2!O8=\"\"), \"\", Selection_Hide2!O8)","v":""},{"$f":"IF(OR(Selection_Hide2!P8=0, Selection_Hide2!P8=\"\"), \"\", Selection_Hide2!P8)","v":""},{"$f":"IF(OR(Selection_Hide2!Q8=0, Selection_Hide2!Q8=\"\"), \"\", Selection_Hide2!Q8)","v":""},{"$f":"IF(OR(Selection_Hide2!R8=0, Selection_Hide2!R8=\"\"), \"\", Selection_Hide2!R8)","v":""},{"$f":"IF(OR(Selection_Hide2!S8=0, Selection_Hide2!S8=\"\"), \"\", Selection_Hide2!S8)","v":""},{"$f":"IF(OR(Selection_Hide2!T8=0, Selection_Hide2!T8=\"\"), \"\", Selection_Hide2!T8)","v":""},{"$f":"IF(OR(Selection_Hide2!U8=0, Selection_Hide2!U8=\"\"), \"\", Selection_Hide2!U8)","v":""},{"$f":"IF(OR(Selection_Hide2!V8=0, Selection_Hide2!V8=\"\"), \"\", Selection_Hide2!V8)","v":""},{"$f":"IF(OR(Selection_Hide2!W8=0, Selection_Hide2!W8=\"\"), \"\", Selection_Hide2!W8)","v":""},{"$f":"IF(OR(Selection_Hide2!X8=0, Selection_Hide2!X8=\"\"), \"\", Selection_Hide2!X8)","v":""},{"$f":"IF(OR(Selection_Hide2!Y8=0, Selection_Hide2!Y8=\"\"), \"\", Selection_Hide2!Y8)","v":""},{"$f":"IF(OR(Selection_Hide2!Z8=0, Selection_Hide2!Z8=\"\"), \"\", Selection_Hide2!Z8)","v":""},{"$f":"IF(OR(Selection_Hide2!AA8=0, Selection_Hide2!AA8=\"\"), \"\", Selection_Hide2!AA8)","v":""},{"$f":"IF(OR(Selection_Hide2!AB8=0, Selection_Hide2!AB8=\"\"), \"\", Selection_Hide2!AB8)","v":""}]
[{"$f":"IF(OR(Selection_Hide2!A9=0, Selection_Hide2!A9=\"\"), \"\", Selection_Hide2!A9)","v":"114"},{"$f":"IF(OR(Selection_Hide2!B9=0, Selection_Hide2!B9=\"\"), \"\", Selection_Hide2!B9)","v":"Health"},{"$f":"IF(OR(Selection_Hide2!C9=0, Selection_Hide2!C9=\"\"), \"\", Selection_Hide2!C9)","v":"People have good mental health and social and emotional wellbeing"},{"$f":"IF(OR(Selection_Hide2!D9=0, Selection_Hide2!D9=\"\"), \"\", Selection_Hide2!D9)","v":"Proportion (%) of people who report often feeling lonely"},{"$f":"IF(OR(Selection_Hide2!E9=0, Selection_Hide2!E9=\"\"), \"\", Selection_Hide2!E9)","v":" HILDA Question: \nI often feel very lonely\n1 (strongly disagree) - 7 (strongly agree)\n\n"},{"$f":"IF(OR(Selection_Hide2!F9=0, Selection_Hide2!F9=\"\"), \"\", Selection_Hide2!F9)","v":"External agency measure (HILDS)"},{"$f":"IF(OR(Selection_Hide2!G9=0, Selection_Hide2!G9=\"\"), \"\", Selection_Hide2!G9)","v":"New data"},{"$f":"IF(OR(Selection_Hide2!H9=0, Selection_Hide2!H9=\"\"), \"\", Selection_Hide2!H9)","v":"No data source"},{"$f":"IF(OR(Selection_Hide2!I9=0, Selection_Hide2!I9=\"\"), \"\", Selection_Hide2!I9)","v":"* Persons loneliness score"},{"$f":"IF(OR(Selection_Hide2!J9=0, Selection_Hide2!J9=\"\"), \"\", Selection_Hide2!J9)","v":"Numerator: Number of people with a loneliness score >=5\nDenominator: Number of people surveyed"},{"$f":"IF(OR(Selection_Hide2!K9=0, Selection_Hide2!K9=\"\"), \"\", Selection_Hide2!K9)","v":""},{"$f":"IF(OR(Selection_Hide2!L9=0, Selection_Hide2!L9=\"\"), \"\", Selection_Hide2!L9)","v":""},{"$f":"IF(OR(Selection_Hide2!M9=0, Selection_Hide2!M9=\"\"), \"\", Selection_Hide2!M9)","v":""},{"$f":"IF(OR(Selection_Hide2!N9=0, Selection_Hide2!N9=\"\"), \"\", Selection_Hide2!N9)","v":""},{"$f":"IF(OR(Selection_Hide2!O9=0, Selection_Hide2!O9=\"\"), \"\", Selection_Hide2!O9)","v":""},{"$f":"IF(OR(Selection_Hide2!P9=0, Selection_Hide2!P9=\"\"), \"\", Selection_Hide2!P9)","v":""},{"$f":"IF(OR(Selection_Hide2!Q9=0, Selection_Hide2!Q9=\"\"), \"\", Selection_Hide2!Q9)","v":""},{"$f":"IF(OR(Selection_Hide2!R9=0, Selection_Hide2!R9=\"\"), \"\", Selection_Hide2!R9)","v":""},{"$f":"IF(OR(Selection_Hide2!S9=0, Selection_Hide2!S9=\"\"), \"\", Selection_Hide2!S9)","v":""},{"$f":"IF(OR(Selection_Hide2!T9=0, Selection_Hide2!T9=\"\"), \"\", Selection_Hide2!T9)","v":""},{"$f":"IF(OR(Selection_Hide2!U9=0, Selection_Hide2!U9=\"\"), \"\", Selection_Hide2!U9)","v":""},{"$f":"IF(OR(Selection_Hide2!V9=0, Selection_Hide2!V9=\"\"), \"\", Selection_Hide2!V9)","v":""},{"$f":"IF(OR(Selection_Hide2!W9=0, Selection_Hide2!W9=\"\"), \"\", Selection_Hide2!W9)","v":""},{"$f":"IF(OR(Selection_Hide2!X9=0, Selection_Hide2!X9=\"\"), \"\", Selection_Hide2!X9)","v":""},{"$f":"IF(OR(Selection_Hide2!Y9=0, Selection_Hide2!Y9=\"\"), \"\", Selection_Hide2!Y9)","v":""},{"$f":"IF(OR(Selection_Hide2!Z9=0, Selection_Hide2!Z9=\"\"), \"\", Selection_Hide2!Z9)","v":""},{"$f":"IF(OR(Selection_Hide2!AA9=0, Selection_Hide2!AA9=\"\"), \"\", Selection_Hide2!AA9)","v":""},{"$f":"IF(OR(Selection_Hide2!AB9=0, Selection_Hide2!AB9=\"\"), \"\", Selection_Hide2!AB9)","v":""}]
[{"$f":"IF(OR(Selection_Hide2!A10=0, Selection_Hide2!A10=\"\"), \"\", Selection_Hide2!A10)","v":"115"},{"$f":"IF(OR(Selection_Hide2!B10=0, Selection_Hide2!B10=\"\"), \"\", Selection_Hide2!B10)","v":"Health"},{"$f":"IF(OR(Selection_Hide2!C10=0, Selection_Hide2!C10=\"\"), \"\", Selection_Hide2!C10)","v":"People have good mental health and social and emotional wellbeing"},{"$f":"IF(OR(Selection_Hide2!D10=0, Selection_Hide2!D10=\"\"), \"\", Selection_Hide2!D10)","v":"Proportion (%) of children with good social and emotional functioning"},{"$f":"IF(OR(Selection_Hide2!E10=0, Selection_Hide2!E10=\"\"), \"\", Selection_Hide2!E10)","v":"QAF (Recommended)\nStrengths and Difficulties Questionnaire (SDQ) \n\nPOCLS\nAged 9-35 months - Brief Infant-toddler Social and Emotional Assessment (BITSEA)\nAged 6-18 years - Child Behavior Checklist (CBCL)"},{"$f":"IF(OR(Selection_Hide2!F10=0, Selection_Hide2!F10=\"\"), \"\", Selection_Hide2!F10)","v":"Existing DCJ measure (QAF and POCLS)"},{"$f":"IF(OR(Selection_Hide2!G10=0, Selection_Hide2!G10=\"\"), \"\", Selection_Hide2!G10)","v":"New data"},{"$f":"IF(OR(Selection_Hide2!H10=0, Selection_Hide2!H10=\"\"), \"\", Selection_Hide2!H10)","v":"No data source"},{"$f":"IF(OR(Selection_Hide2!I10=0, Selection_Hide2!I10=\"\"), \"\", Selection_Hide2!I10)","v":"QAF developing data elements"},{"$f":"IF(OR(Selection_Hide2!J10=0, Selection_Hide2!J10=\"\"), \"\", Selection_Hide2!J10)","v":"QAF developing counting rules"},{"$f":"IF(OR(Selection_Hide2!K10=0, Selection_Hide2!K10=\"\"), \"\", Selection_Hide2!K10)","v":""},{"$f":"IF(OR(Selection_Hide2!L10=0, Selection_Hide2!L10=\"\"), \"\", Selection_Hide2!L10)","v":""},{"$f":"IF(OR(Selection_Hide2!M10=0, Selection_Hide2!M10=\"\"), \"\", Selection_Hide2!M10)","v":""},{"$f":"IF(OR(Selection_Hide2!N10=0, Selection_Hide2!N10=\"\"), \"\", Selection_Hide2!N10)","v":""},{"$f":"IF(OR(Selection_Hide2!O10=0, Selection_Hide2!O10=\"\"), \"\", Selection_Hide2!O10)","v":""},{"$f":"IF(OR(Selection_Hide2!P10=0, Selection_Hide2!P10=\"\"), \"\", Selection_Hide2!P10)","v":""},{"$f":"IF(OR(Selection_Hide2!Q10=0, Selection_Hide2!Q10=\"\"), \"\", Selection_Hide2!Q10)","v":""},{"$f":"IF(OR(Selection_Hide2!R10=0, Selection_Hide2!R10=\"\"), \"\", Selection_Hide2!R10)","v":""},{"$f":"IF(OR(Selection_Hide2!S10=0, Selection_Hide2!S10=\"\"), \"\", Selection_Hide2!S10)","v":""},{"$f":"IF(OR(Selection_Hide2!T10=0, Selection_Hide2!T10=\"\"), \"\", Selection_Hide2!T10)","v":""},{"$f":"IF(OR(Selection_Hide2!U10=0, Selection_Hide2!U10=\"\"), \"\", Selection_Hide2!U10)","v":""},{"$f":"IF(OR(Selection_Hide2!V10=0, Selection_Hide2!V10=\"\"), \"\", Selection_Hide2!V10)","v":""},{"$f":"IF(OR(Selection_Hide2!W10=0, Selection_Hide2!W10=\"\"), \"\", Selection_Hide2!W10)","v":""},{"$f":"IF(OR(Selection_Hide2!X10=0, Selection_Hide2!X10=\"\"), \"\", Selection_Hide2!X10)","v":""},{"$f":"IF(OR(Selection_Hide2!Y10=0, Selection_Hide2!Y10=\"\"), \"\", Selection_Hide2!Y10)","v":""},{"$f":"IF(OR(Selection_Hide2!Z10=0, Selection_Hide2!Z10=\"\"), \"\", Selection_Hide2!Z10)","v":""},{"$f":"IF(OR(Selection_Hide2!AA10=0, Selection_Hide2!AA10=\"\"), \"\", Selection_Hide2!AA10)","v":""},{"$f":"IF(OR(Selection_Hide2!AB10=0, Selection_Hide2!AB10=\"\"), \"\", Selection_Hide2!AB10)","v":""}]
[{"$f":"IF(OR(Selection_Hide2!A11=0, Selection_Hide2!A11=\"\"), \"\", Selection_Hide2!A11)","v":"116"},{"$f":"IF(OR(Selection_Hide2!B11=0, Selection_Hide2!B11=\"\"), \"\", Selection_Hide2!B11)","v":"Health"},{"$f":"IF(OR(Selection_Hide2!C11=0, Selection_Hide2!C11=\"\"), \"\", Selection_Hide2!C11)","v":"People have good mental health and social and emotional wellbeing"},{"$f":"IF(OR(Selection_Hide2!D11=0, Selection_Hide2!D11=\"\"), \"\", Selection_Hide2!D11)","v":"Proportion (%) of children aged 0-5 years with developmental delays"},{"$f":"IF(OR(Selection_Hide2!E11=0, Selection_Hide2!E11=\"\"), \"\", Selection_Hide2!E11)","v":"QAF measure under development\n\nPOCLS (Recommended measures)\nAge 6 months - 2 years\nCommunication and Symbolic Behaviour Scale Infant and Toddler Checklist (CSBS ITC)\n\nAge 2-3 years\nMacarthur-Bates Communicative Developmental Inventories III (MCDI-III)  for children aged 24-35 months\n\nAge >3\nPeabody Picture Vocabulary Test (PPVT-4)\n\nNote: no measure have been identified for gross and fine motor delays, and social functioning delays"},{"$f":"IF(OR(Selection_Hide2!F11=0, Selection_Hide2!F11=\"\"), \"\", Selection_Hide2!F11)","v":"Existing DCJ measure (POCLS)"},{"$f":"IF(OR(Selection_Hide2!G11=0, Selection_Hide2!G11=\"\"), \"\", Selection_Hide2!G11)","v":"New data"},{"$f":"IF(OR(Selection_Hide2!H11=0, Selection_Hide2!H11=\"\"), \"\", Selection_Hide2!H11)","v":"No data source"},{"$f":"IF(OR(Selection_Hide2!I11=0, Selection_Hide2!I11=\"\"), \"\", Selection_Hide2!I11)","v":"* persons overall score on assessment\n* indicator if person has overall developmental delay\n"},{"$f":"IF(OR(Selection_Hide2!J11=0, Selection_Hide2!J11=\"\"), \"\", Selection_Hide2!J11)","v":"Numerator: Number of children who have received a score of developmentally delayed\nDenominator: Total number of children assessed"},{"$f":"IF(OR(Selection_Hide2!K11=0, Selection_Hide2!K11=\"\"), \"\", Selection_Hide2!K11)","v":""},{"$f":"IF(OR(Selection_Hide2!L11=0, Selection_Hide2!L11=\"\"), \"\", Selection_Hide2!L11)","v":""},{"$f":"IF(OR(Selection_Hide2!M11=0, Selection_Hide2!M11=\"\"), \"\", Selection_Hide2!M11)","v":""},{"$f":"IF(OR(Selection_Hide2!N11=0, Selection_Hide2!N11=\"\"), \"\", Selection_Hide2!N11)","v":""},{"$f":"IF(OR(Selection_Hide2!O11=0, Selection_Hide2!O11=\"\"), \"\", Selection_Hide2!O11)","v":""},{"$f":"IF(OR(Selection_Hide2!P11=0, Selection_Hide2!P11=\"\"), \"\", Selection_Hide2!P11)","v":""},{"$f":"IF(OR(Selection_Hide2!Q11=0, Selection_Hide2!Q11=\"\"), \"\", Selection_Hide2!Q11)","v":""},{"$f":"IF(OR(Selection_Hide2!R11=0, Selection_Hide2!R11=\"\"), \"\", Selection_Hide2!R11)","v":""},{"$f":"IF(OR(Selection_Hide2!S11=0, Selection_Hide2!S11=\"\"), \"\", Selection_Hide2!S11)","v":""},{"$f":"IF(OR(Selection_Hide2!T11=0, Selection_Hide2!T11=\"\"), \"\", Selection_Hide2!T11)","v":""},{"$f":"IF(OR(Selection_Hide2!U11=0, Selection_Hide2!U11=\"\"), \"\", Selection_Hide2!U11)","v":""},{"$f":"IF(OR(Selection_Hide2!V11=0, Selection_Hide2!V11=\"\"), \"\", Selection_Hide2!V11)","v":""},{"$f":"IF(OR(Selection_Hide2!W11=0, Selection_Hide2!W11=\"\"), \"\", Selection_Hide2!W11)","v":""},{"$f":"IF(OR(Selection_Hide2!X11=0, Selection_Hide2!X11=\"\"), \"\", Selection_Hide2!X11)","v":""},{"$f":"IF(OR(Selection_Hide2!Y11=0, Selection_Hide2!Y11=\"\"), \"\", Selection_Hide2!Y11)","v":""},{"$f":"IF(OR(Selection_Hide2!Z11=0, Selection_Hide2!Z11=\"\"), \"\", Selection_Hide2!Z11)","v":""},{"$f":"IF(OR(Selection_Hide2!AA11=0, Selection_Hide2!AA11=\"\"), \"\", Selection_Hide2!AA11)","v":""},{"$f":"IF(OR(Selection_Hide2!AB11=0, Selection_Hide2!AB11=\"\"), \"\", Selection_Hide2!AB11)","v":""}]
[{"$f":"IF(OR(Selection_Hide2!A12=0, Selection_Hide2!A12=\"\"), \"\", Selection_Hide2!A12)","v":"117"},{"$f":"IF(OR(Selection_Hide2!B12=0, Selection_Hide2!B12=\"\"), \"\", Selection_Hide2!B12)","v":"Health"},{"$f":"IF(OR(Selection_Hide2!C12=0, Selection_Hide2!C12=\"\"), \"\", Selection_Hide2!C12)","v":"People have good physical health"},{"$f":"IF(OR(Selection_Hide2!D12=0, Selection_Hide2!D12=\"\"), \"\", Selection_Hide2!D12)","v":"Proportion (%) of children who are free from tooth decay"},{"$f":"IF(OR(Selection_Hide2!E12=0, Selection_Hide2!E12=\"\"), \"\", Selection_Hide2!E12)","v":"No measure identified"},{"$f":"IF(OR(Selection_Hide2!F12=0, Selection_Hide2!F12=\"\"), \"\", Selection_Hide2!F12)","v":"Evidence development required"},{"$f":"IF(OR(Selection_Hide2!G12=0, Selection_Hide2!G12=\"\"), \"\", Selection_Hide2!G12)","v":"New data"},{"$f":"IF(OR(Selection_Hide2!H12=0, Selection_Hide2!H12=\"\"), \"\", Selection_Hide2!H12)","v":"No data source"},{"$f":"IF(OR(Selection_Hide2!I12=0, Selection_Hide2!I12=\"\"), \"\", Selection_Hide2!I12)","v":""},{"$f":"IF(OR(Selection_Hide2!J12=0, Selection_Hide2!J12=\"\"), \"\", Selection_Hide2!J12)","v":""},{"$f":"IF(OR(Selection_Hide2!K12=0, Selection_Hide2!K12=\"\"), \"\", Selection_Hide2!K12)","v":""},{"$f":"IF(OR(Selection_Hide2!L12=0, Selection_Hide2!L12=\"\"), \"\", Selection_Hide2!L12)","v":""},{"$f":"IF(OR(Selection_Hide2!M12=0, Selection_Hide2!M12=\"\"), \"\", Selection_Hide2!M12)","v":""},{"$f":"IF(OR(Selection_Hide2!N12=0, Selection_Hide2!N12=\"\"), \"\", Selection_Hide2!N12)","v":""},{"$f":"IF(OR(Selection_Hide2!O12=0, Selection_Hide2!O12=\"\"), \"\", Selection_Hide2!O12)","v":""},{"$f":"IF(OR(Selection_Hide2!P12=0, Selection_Hide2!P12=\"\"), \"\", Selection_Hide2!P12)","v":""},{"$f":"IF(OR(Selection_Hide2!Q12=0, Selection_Hide2!Q12=\"\"), \"\", Selection_Hide2!Q12)","v":""},{"$f":"IF(OR(Selection_Hide2!R12=0, Selection_Hide2!R12=\"\"), \"\", Selection_Hide2!R12)","v":""},{"$f":"IF(OR(Selection_Hide2!S12=0, Selection_Hide2!S12=\"\"), \"\", Selection_Hide2!S12)","v":""},{"$f":"IF(OR(Selection_Hide2!T12=0, Selection_Hide2!T12=\"\"), \"\", Selection_Hide2!T12)","v":""},{"$f":"IF(OR(Selection_Hide2!U12=0, Selection_Hide2!U12=\"\"), \"\", Selection_Hide2!U12)","v":""},{"$f":"IF(OR(Selection_Hide2!V12=0, Selection_Hide2!V12=\"\"), \"\", Selection_Hide2!V12)","v":""},{"$f":"IF(OR(Selection_Hide2!W12=0, Selection_Hide2!W12=\"\"), \"\", Selection_Hide2!W12)","v":""},{"$f":"IF(OR(Selection_Hide2!X12=0, Selection_Hide2!X12=\"\"), \"\", Selection_Hide2!X12)","v":""},{"$f":"IF(OR(Selection_Hide2!Y12=0, Selection_Hide2!Y12=\"\"), \"\", Selection_Hide2!Y12)","v":""},{"$f":"IF(OR(Selection_Hide2!Z12=0, Selection_Hide2!Z12=\"\"), \"\", Selection_Hide2!Z12)","v":""},{"$f":"IF(OR(Selection_Hide2!AA12=0, Selection_Hide2!AA12=\"\"), \"\", Selection_Hide2!AA12)","v":""},{"$f":"IF(OR(Selection_Hide2!AB12=0, Selection_Hide2!AB12=\"\"), \"\", Selection_Hide2!AB12)","v":""}]
[{"$f":"IF(OR(Selection_Hide2!A13=0, Selection_Hide2!A13=\"\"), \"\", Selection_Hide2!A13)","v":"119"},{"$f":"IF(OR(Selection_Hide2!B13=0, Selection_Hide2!B13=\"\"), \"\", Selection_Hide2!B13)","v":"Health"},{"$f":"IF(OR(Selection_Hide2!C13=0, Selection_Hide2!C13=\"\"), \"\", Selection_Hide2!C13)","v":"People have good physical health"},{"$f":"IF(OR(Selection_Hide2!D13=0, Selection_Hide2!D13=\"\"), \"\", Selection_Hide2!D13)","v":"Proportion (%) of people who report having excellent/very good/good/fair/poor health"},{"$f":"IF(OR(Selection_Hide2!E13=0, Selection_Hide2!E13=\"\"), \"\", Selection_Hide2!E13)","v":"In the last 4 weeks, how has your health been? \n\n• Excellent\n• Very Good\n• Good\n• Not very good\n• Poor\n• Pass"},{"$f":"IF(OR(Selection_Hide2!F13=0, Selection_Hide2!F13=\"\"), \"\", Selection_Hide2!F13)","v":"Existing DCJ measure (POCLS)"},{"$f":"IF(OR(Selection_Hide2!G13=0, Selection_Hide2!G13=\"\"), \"\", Selection_Hide2!G13)","v":"New data"},{"$f":"IF(OR(Selection_Hide2!H13=0, Selection_Hide2!H13=\"\"), \"\", Selection_Hide2!H13)","v":"No data source"},{"$f":"IF(OR(Selection_Hide2!I13=0, Selection_Hide2!I13=\"\"), \"\", Selection_Hide2!I13)","v":"* Persons health rating"},{"$f":"IF(OR(Selection_Hide2!J13=0, Selection_Hide2!J13=\"\"), \"\", Selection_Hide2!J13)","v":"Numerator: Number of people who gave specific health rating\nDenominator: Number of people surveyed"},{"$f":"IF(OR(Selection_Hide2!K13=0, Selection_Hide2!K13=\"\"), \"\", Selection_Hide2!K13)","v":""},{"$f":"IF(OR(Selection_Hide2!L13=0, Selection_Hide2!L13=\"\"), \"\", Selection_Hide2!L13)","v":""},{"$f":"IF(OR(Selection_Hide2!M13=0, Selection_Hide2!M13=\"\"), \"\", Selection_Hide2!M13)","v":""},{"$f":"IF(OR(Selection_Hide2!N13=0, Selection_Hide2!N13=\"\"), \"\", Selection_Hide2!N13)","v":""},{"$f":"IF(OR(Selection_Hide2!O13=0, Selection_Hide2!O13=\"\"), \"\", Selection_Hide2!O13)","v":""},{"$f":"IF(OR(Selection_Hide2!P13=0, Selection_Hide2!P13=\"\"), \"\", Selection_Hide2!P13)","v":""},{"$f":"IF(OR(Selection_Hide2!Q13=0, Selection_Hide2!Q13=\"\"), \"\", Selection_Hide2!Q13)","v":""},{"$f":"IF(OR(Selection_Hide2!R13=0, Selection_Hide2!R13=\"\"), \"\", Selection_Hide2!R13)","v":""},{"$f":"IF(OR(Selection_Hide2!S13=0, Selection_Hide2!S13=\"\"), \"\", Selection_Hide2!S13)","v":""},{"$f":"IF(OR(Selection_Hide2!T13=0, Selection_Hide2!T13=\"\"), \"\", Selection_Hide2!T13)","v":""},{"$f":"IF(OR(Selection_Hide2!U13=0, Selection_Hide2!U13=\"\"), \"\", Selection_Hide2!U13)","v":""},{"$f":"IF(OR(Selection_Hide2!V13=0, Selection_Hide2!V13=\"\"), \"\", Selection_Hide2!V13)","v":""},{"$f":"IF(OR(Selection_Hide2!W13=0, Selection_Hide2!W13=\"\"), \"\", Selection_Hide2!W13)","v":""},{"$f":"IF(OR(Selection_Hide2!X13=0, Selection_Hide2!X13=\"\"), \"\", Selection_Hide2!X13)","v":""},{"$f":"IF(OR(Selection_Hide2!Y13=0, Selection_Hide2!Y13=\"\"), \"\", Selection_Hide2!Y13)","v":""},{"$f":"IF(OR(Selection_Hide2!Z13=0, Selection_Hide2!Z13=\"\"), \"\", Selection_Hide2!Z13)","v":""},{"$f":"IF(OR(Selection_Hide2!AA13=0, Selection_Hide2!AA13=\"\"), \"\", Selection_Hide2!AA13)","v":""},{"$f":"IF(OR(Selection_Hide2!AB13=0, Selection_Hide2!AB13=\"\"), \"\", Selection_Hide2!AB13)","v":""}]
[{"$f":"IF(OR(Selection_Hide2!A14=0, Selection_Hide2!A14=\"\"), \"\", Selection_Hide2!A14)","v":"121"},{"$f":"IF(OR(Selection_Hide2!B14=0, Selection_Hide2!B14=\"\"), \"\", Selection_Hide2!B14)","v":"Health"},{"$f":"IF(OR(Selection_Hide2!C14=0, Selection_Hide2!C14=\"\"), \"\", Selection_Hide2!C14)","v":"People have good physical health"},{"$f":"IF(OR(Selection_Hide2!D14=0, Selection_Hide2!D14=\"\"), \"\", Selection_Hide2!D14)","v":"Proportion (%) of children and young people with up-to-date immunisation record"},{"$f":"IF(OR(Selection_Hide2!E14=0, Selection_Hide2!E14=\"\"), \"\", Selection_Hide2!E14)","v":"Medical records submitted to Australian Immunisation Register"},{"$f":"IF(OR(Selection_Hide2!F14=0, Selection_Hide2!F14=\"\"), \"\", Selection_Hide2!F14)","v":"External agency measure (Department of Human Services)"},{"$f":"IF(OR(Selection_Hide2!G14=0, Selection_Hide2!G14=\"\"), \"\", Selection_Hide2!G14)","v":"Data linkage "},{"$f":"IF(OR(Selection_Hide2!H14=0, Selection_Hide2!H14=\"\"), \"\", Selection_Hide2!H14)","v":"Australian Immunisation Register"},{"$f":"IF(OR(Selection_Hide2!I14=0, Selection_Hide2!I14=\"\"), \"\", Selection_Hide2!I14)","v":"Information not publicly available"},{"$f":"IF(OR(Selection_Hide2!J14=0, Selection_Hide2!J14=\"\"), \"\", Selection_Hide2!J14)","v":"Counting rules to be develop in consultation with data custodian"},{"$f":"IF(OR(Selection_Hide2!K14=0, Selection_Hide2!K14=\"\"), \"\", Selection_Hide2!K14)","v":"Department of Human Services"},{"$f":"IF(OR(Selection_Hide2!L14=0, Selection_Hide2!L14=\"\"), \"\", Selection_Hide2!L14)","v":"Department of Human Services"},{"$f":"IF(OR(Selection_Hide2!M14=0, Selection_Hide2!M14=\"\"), \"\", Selection_Hide2!M14)","v":"y"},{"$f":"IF(OR(Selection_Hide2!N14=0, Selection_Hide2!N14=\"\"), \"\", Selection_Hide2!N14)","v":"y"},{"$f":"IF(OR(Selection_Hide2!O14=0, Selection_Hide2!O14=\"\"), \"\", Selection_Hide2!O14)","v":"y"},{"$f":"IF(OR(Selection_Hide2!P14=0, Selection_Hide2!P14=\"\"), \"\", Selection_Hide2!P14)","v":""},{"$f":"IF(OR(Selection_Hide2!Q14=0, Selection_Hide2!Q14=\"\"), \"\", Selection_Hide2!Q14)","v":""},{"$f":"IF(OR(Selection_Hide2!R14=0, Selection_Hide2!R14=\"\"), \"\", Selection_Hide2!R14)","v":""},{"$f":"IF(OR(Selection_Hide2!S14=0, Selection_Hide2!S14=\"\"), \"\", Selection_Hide2!S14)","v":""},{"$f":"IF(OR(Selection_Hide2!T14=0, Selection_Hide2!T14=\"\"), \"\", Selection_Hide2!T14)","v":""},{"$f":"IF(OR(Selection_Hide2!U14=0, Selection_Hide2!U14=\"\"), \"\", Selection_Hide2!U14)","v":""},{"$f":"IF(OR(Selection_Hide2!V14=0, Selection_Hide2!V14=\"\"), \"\", Selection_Hide2!V14)","v":""},{"$f":"IF(OR(Selection_Hide2!W14=0, Selection_Hide2!W14=\"\"), \"\", Selection_Hide2!W14)","v":""},{"$f":"IF(OR(Selection_Hide2!X14=0, Selection_Hide2!X14=\"\"), \"\", Selection_Hide2!X14)","v":""},{"$f":"IF(OR(Selection_Hide2!Y14=0, Selection_Hide2!Y14=\"\"), \"\", Selection_Hide2!Y14)","v":""},{"$f":"IF(OR(Selection_Hide2!Z14=0, Selection_Hide2!Z14=\"\"), \"\", Selection_Hide2!Z14)","v":""},{"$f":"IF(OR(Selection_Hide2!AA14=0, Selection_Hide2!AA14=\"\"), \"\", Selection_Hide2!AA14)","v":""},{"$f":"IF(OR(Selection_Hide2!AB14=0, Selection_Hide2!AB14=\"\"), \"\", Selection_Hide2!AB14)","v":""}]
[{"$f":"IF(OR(Selection_Hide2!A15=0, Selection_Hide2!A15=\"\"), \"\", Selection_Hide2!A15)","v":"122"},{"$f":"IF(OR(Selection_Hide2!B15=0, Selection_Hide2!B15=\"\"), \"\", Selection_Hide2!B15)","v":"Health"},{"$f":"IF(OR(Selection_Hide2!C15=0, Selection_Hide2!C15=\"\"), \"\", Selection_Hide2!C15)","v":"People have good physical health"},{"$f":"IF(OR(Selection_Hide2!D15=0, Selection_Hide2!D15=\"\"), \"\", Selection_Hide2!D15)","v":"Proportion (%) of people who are overweight or obese"},{"$f":"IF(OR(Selection_Hide2!E15=0, Selection_Hide2!E15=\"\"), \"\", Selection_Hide2!E15)","v":"Body Mass Index (BMI)"},{"$f":"IF(OR(Selection_Hide2!F15=0, Selection_Hide2!F15=\"\"), \"\", Selection_Hide2!F15)","v":"Existing DCJ measure (QAF)"},{"$f":"IF(OR(Selection_Hide2!G15=0, Selection_Hide2!G15=\"\"), \"\", Selection_Hide2!G15)","v":"New data"},{"$f":"IF(OR(Selection_Hide2!H15=0, Selection_Hide2!H15=\"\"), \"\", Selection_Hide2!H15)","v":"No data source"},{"$f":"IF(OR(Selection_Hide2!I15=0, Selection_Hide2!I15=\"\"), \"\", Selection_Hide2!I15)","v":"* Persons BMI score"},{"$f":"IF(OR(Selection_Hide2!J15=0, Selection_Hide2!J15=\"\"), \"\", Selection_Hide2!J15)","v":"Numerator: Number of people rated as overweight or obese\nDenominator: Total number of people whose weight is known"},{"$f":"IF(OR(Selection_Hide2!K15=0, Selection_Hide2!K15=\"\"), \"\", Selection_Hide2!K15)","v":""},{"$f":"IF(OR(Selection_Hide2!L15=0, Selection_Hide2!L15=\"\"), \"\", Selection_Hide2!L15)","v":""},{"$f":"IF(OR(Selection_Hide2!M15=0, Selection_Hide2!M15=\"\"), \"\", Selection_Hide2!M15)","v":""},{"$f":"IF(OR(Selection_Hide2!N15=0, Selection_Hide2!N15=\"\"), \"\", Selection_Hide2!N15)","v":""},{"$f":"IF(OR(Selection_Hide2!O15=0, Selection_Hide2!O15=\"\"), \"\", Selection_Hide2!O15)","v":""},{"$f":"IF(OR(Selection_Hide2!P15=0, Selection_Hide2!P15=\"\"), \"\", Selection_Hide2!P15)","v":""},{"$f":"IF(OR(Selection_Hide2!Q15=0, Selection_Hide2!Q15=\"\"), \"\", Selection_Hide2!Q15)","v":""},{"$f":"IF(OR(Selection_Hide2!R15=0, Selection_Hide2!R15=\"\"), \"\", Selection_Hide2!R15)","v":""},{"$f":"IF(OR(Selection_Hide2!S15=0, Selection_Hide2!S15=\"\"), \"\", Selection_Hide2!S15)","v":""},{"$f":"IF(OR(Selection_Hide2!T15=0, Selection_Hide2!T15=\"\"), \"\", Selection_Hide2!T15)","v":""},{"$f":"IF(OR(Selection_Hide2!U15=0, Selection_Hide2!U15=\"\"), \"\", Selection_Hide2!U15)","v":""},{"$f":"IF(OR(Selection_Hide2!V15=0, Selection_Hide2!V15=\"\"), \"\", Selection_Hide2!V15)","v":""},{"$f":"IF(OR(Selection_Hide2!W15=0, Selection_Hide2!W15=\"\"), \"\", Selection_Hide2!W15)","v":""},{"$f":"IF(OR(Selection_Hide2!X15=0, Selection_Hide2!X15=\"\"), \"\", Selection_Hide2!X15)","v":""},{"$f":"IF(OR(Selection_Hide2!Y15=0, Selection_Hide2!Y15=\"\"), \"\", Selection_Hide2!Y15)","v":""},{"$f":"IF(OR(Selection_Hide2!Z15=0, Selection_Hide2!Z15=\"\"), \"\", Selection_Hide2!Z15)","v":""},{"$f":"IF(OR(Selection_Hide2!AA15=0, Selection_Hide2!AA15=\"\"), \"\", Selection_Hide2!AA15)","v":""},{"$f":"IF(OR(Selection_Hide2!AB15=0, Selection_Hide2!AB15=\"\"), \"\", Selection_Hide2!AB15)","v":""}]
[{"$f":"IF(OR(Selection_Hide2!A16=0, Selection_Hide2!A16=\"\"), \"\", Selection_Hide2!A16)","v":"264"},{"$f":"IF(OR(Selection_Hide2!B16=0, Selection_Hide2!B16=\"\"), \"\", Selection_Hide2!B16)","v":"Health"},{"$f":"IF(OR(Selection_Hide2!C16=0, Selection_Hide2!C16=\"\"), \"\", Selection_Hide2!C16)","v":"People have a healthy lifestyle and avoid risk taking behaviours that negatively impact their health"},{"$f":"IF(OR(Selection_Hide2!D16=0, Selection_Hide2!D16=\"\"), \"\", Selection_Hide2!D16)","v":"Age-specific birth rate for 15 to 19 year old women per 1,000 females"},{"$f":"IF(OR(Selection_Hide2!E16=0, Selection_Hide2!E16=\"\"), \"\", Selection_Hide2!E16)","v":"Perinatal data collection record"},{"$f":"IF(OR(Selection_Hide2!F16=0, Selection_Hide2!F16=\"\"), \"\", Selection_Hide2!F16)","v":"External agency measure (NSW Ministry of Health)"},{"$f":"IF(OR(Selection_Hide2!G16=0, Selection_Hide2!G16=\"\"), \"\", Selection_Hide2!G16)","v":"Data linkage "},{"$f":"IF(OR(Selection_Hide2!H16=0, Selection_Hide2!H16=\"\"), \"\", Selection_Hide2!H16)","v":"NSW Perinatal Data Collection (PDC)"},{"$f":"IF(OR(Selection_Hide2!I16=0, Selection_Hide2!I16=\"\"), \"\", Selection_Hide2!I16)","v":"* Mother’s age [age]"},{"$f":"IF(OR(Selection_Hide2!J16=0, Selection_Hide2!J16=\"\"), \"\", Selection_Hide2!J16)","v":"Numerator: Number of children born where Mother's age >= 15 and <= 19\nDenominator: Number of DCJ clients age >= 15 and <= 19\nFilters: Persons who are female and aged >= 15 and <= 19\n"},{"$f":"IF(OR(Selection_Hide2!K16=0, Selection_Hide2!K16=\"\"), \"\", Selection_Hide2!K16)","v":"NSW Ministry of Health"},{"$f":"IF(OR(Selection_Hide2!L16=0, Selection_Hide2!L16=\"\"), \"\", Selection_Hide2!L16)","v":"CHeReL"},{"$f":"IF(OR(Selection_Hide2!M16=0, Selection_Hide2!M16=\"\"), \"\", Selection_Hide2!M16)","v":""},{"$f":"IF(OR(Selection_Hide2!N16=0, Selection_Hide2!N16=\"\"), \"\", Selection_Hide2!N16)","v":""},{"$f":"IF(OR(Selection_Hide2!O16=0, Selection_Hide2!O16=\"\"), \"\", Selection_Hide2!O16)","v":""},{"$f":"IF(OR(Selection_Hide2!P16=0, Selection_Hide2!P16=\"\"), \"\", Selection_Hide2!P16)","v":""},{"$f":"IF(OR(Selection_Hide2!Q16=0, Selection_Hide2!Q16=\"\"), \"\", Selection_Hide2!Q16)","v":""},{"$f":"IF(OR(Selection_Hide2!R16=0, Selection_Hide2!R16=\"\"), \"\", Selection_Hide2!R16)","v":""},{"$f":"IF(OR(Selection_Hide2!S16=0, Selection_Hide2!S16=\"\"), \"\", Selection_Hide2!S16)","v":""},{"$f":"IF(OR(Selection_Hide2!T16=0, Selection_Hide2!T16=\"\"), \"\", Selection_Hide2!T16)","v":""},{"$f":"IF(OR(Selection_Hide2!U16=0, Selection_Hide2!U16=\"\"), \"\", Selection_Hide2!U16)","v":""},{"$f":"IF(OR(Selection_Hide2!V16=0, Selection_Hide2!V16=\"\"), \"\", Selection_Hide2!V16)","v":""},{"$f":"IF(OR(Selection_Hide2!W16=0, Selection_Hide2!W16=\"\"), \"\", Selection_Hide2!W16)","v":""},{"$f":"IF(OR(Selection_Hide2!X16=0, Selection_Hide2!X16=\"\"), \"\", Selection_Hide2!X16)","v":""},{"$f":"IF(OR(Selection_Hide2!Y16=0, Selection_Hide2!Y16=\"\"), \"\", Selection_Hide2!Y16)","v":""},{"$f":"IF(OR(Selection_Hide2!Z16=0, Selection_Hide2!Z16=\"\"), \"\", Selection_Hide2!Z16)","v":""},{"$f":"IF(OR(Selection_Hide2!AA16=0, Selection_Hide2!AA16=\"\"), \"\", Selection_Hide2!AA16)","v":""},{"$f":"IF(OR(Selection_Hide2!AB16=0, Selection_Hide2!AB16=\"\"), \"\", Selection_Hide2!AB16)","v":""}]
[{"$f":"IF(OR(Selection_Hide2!A17=0, Selection_Hide2!A17=\"\"), \"\", Selection_Hide2!A17)","v":"297"},{"$f":"IF(OR(Selection_Hide2!B17=0, Selection_Hide2!B17=\"\"), \"\", Selection_Hide2!B17)","v":"Health"},{"$f":"IF(OR(Selection_Hide2!C17=0, Selection_Hide2!C17=\"\"), \"\", Selection_Hide2!C17)","v":"Aboriginal people heal from inter-generational trauma and loss"},{"$f":"IF(OR(Selection_Hide2!D17=0, Selection_Hide2!D17=\"\"), \"\", Selection_Hide2!D17)","v":"Proportion (%) of Aboriginal people who report that they know when and where to seek culturally appropriate support to prevent escalation to crisis"},{"$f":"IF(OR(Selection_Hide2!E17=0, Selection_Hide2!E17=\"\"), \"\", Selection_Hide2!E17)","v":"No measure identified"},{"$f":"IF(OR(Selection_Hide2!F17=0, Selection_Hide2!F17=\"\"), \"\", Selection_Hide2!F17)","v":"Evidence development required"},{"$f":"IF(OR(Selection_Hide2!G17=0, Selection_Hide2!G17=\"\"), \"\", Selection_Hide2!G17)","v":"New data"},{"$f":"IF(OR(Selection_Hide2!H17=0, Selection_Hide2!H17=\"\"), \"\", Selection_Hide2!H17)","v":"No data source"},{"$f":"IF(OR(Selection_Hide2!I17=0, Selection_Hide2!I17=\"\"), \"\", Selection_Hide2!I17)","v":""},{"$f":"IF(OR(Selection_Hide2!J17=0, Selection_Hide2!J17=\"\"), \"\", Selection_Hide2!J17)","v":""},{"$f":"IF(OR(Selection_Hide2!K17=0, Selection_Hide2!K17=\"\"), \"\", Selection_Hide2!K17)","v":""},{"$f":"IF(OR(Selection_Hide2!L17=0, Selection_Hide2!L17=\"\"), \"\", Selection_Hide2!L17)","v":""},{"$f":"IF(OR(Selection_Hide2!M17=0, Selection_Hide2!M17=\"\"), \"\", Selection_Hide2!M17)","v":""},{"$f":"IF(OR(Selection_Hide2!N17=0, Selection_Hide2!N17=\"\"), \"\", Selection_Hide2!N17)","v":""},{"$f":"IF(OR(Selection_Hide2!O17=0, Selection_Hide2!O17=\"\"), \"\", Selection_Hide2!O17)","v":""},{"$f":"IF(OR(Selection_Hide2!P17=0, Selection_Hide2!P17=\"\"), \"\", Selection_Hide2!P17)","v":""},{"$f":"IF(OR(Selection_Hide2!Q17=0, Selection_Hide2!Q17=\"\"), \"\", Selection_Hide2!Q17)","v":""},{"$f":"IF(OR(Selection_Hide2!R17=0, Selection_Hide2!R17=\"\"), \"\", Selection_Hide2!R17)","v":""},{"$f":"IF(OR(Selection_Hide2!S17=0, Selection_Hide2!S17=\"\"), \"\", Selection_Hide2!S17)","v":""},{"$f":"IF(OR(Selection_Hide2!T17=0, Selection_Hide2!T17=\"\"), \"\", Selection_Hide2!T17)","v":""},{"$f":"IF(OR(Selection_Hide2!U17=0, Selection_Hide2!U17=\"\"), \"\", Selection_Hide2!U17)","v":""},{"$f":"IF(OR(Selection_Hide2!V17=0, Selection_Hide2!V17=\"\"), \"\", Selection_Hide2!V17)","v":""},{"$f":"IF(OR(Selection_Hide2!W17=0, Selection_Hide2!W17=\"\"), \"\", Selection_Hide2!W17)","v":""},{"$f":"IF(OR(Selection_Hide2!X17=0, Selection_Hide2!X17=\"\"), \"\", Selection_Hide2!X17)","v":""},{"$f":"IF(OR(Selection_Hide2!Y17=0, Selection_Hide2!Y17=\"\"), \"\", Selection_Hide2!Y17)","v":""},{"$f":"IF(OR(Selection_Hide2!Z17=0, Selection_Hide2!Z17=\"\"), \"\", Selection_Hide2!Z17)","v":""},{"$f":"IF(OR(Selection_Hide2!AA17=0, Selection_Hide2!AA17=\"\"), \"\", Selection_Hide2!AA17)","v":""},{"$f":"IF(OR(Selection_Hide2!AB17=0, Selection_Hide2!AB17=\"\"), \"\", Selection_Hide2!AB17)","v":""}]
[{"$f":"IF(OR(Selection_Hide2!A18=0, Selection_Hide2!A18=\"\"), \"\", Selection_Hide2!A18)","v":"308"},{"$f":"IF(OR(Selection_Hide2!B18=0, Selection_Hide2!B18=\"\"), \"\", Selection_Hide2!B18)","v":"Health"},{"$f":"IF(OR(Selection_Hide2!C18=0, Selection_Hide2!C18=\"\"), \"\", Selection_Hide2!C18)","v":"Mothers have healthy pregnancies and babies have good birth outcomes"},{"$f":"IF(OR(Selection_Hide2!D18=0, Selection_Hide2!D18=\"\"), \"\", Selection_Hide2!D18)","v":"Proportion (%) of mothers who experience high levels of maternal stress"},{"$f":"IF(OR(Selection_Hide2!E18=0, Selection_Hide2!E18=\"\"), \"\", Selection_Hide2!E18)","v":"No measure identified"},{"$f":"IF(OR(Selection_Hide2!F18=0, Selection_Hide2!F18=\"\"), \"\", Selection_Hide2!F18)","v":"Evidence development required"},{"$f":"IF(OR(Selection_Hide2!G18=0, Selection_Hide2!G18=\"\"), \"\", Selection_Hide2!G18)","v":"New data"},{"$f":"IF(OR(Selection_Hide2!H18=0, Selection_Hide2!H18=\"\"), \"\", Selection_Hide2!H18)","v":"No data source"},{"$f":"IF(OR(Selection_Hide2!I18=0, Selection_Hide2!I18=\"\"), \"\", Selection_Hide2!I18)","v":""},{"$f":"IF(OR(Selection_Hide2!J18=0, Selection_Hide2!J18=\"\"), \"\", Selection_Hide2!J18)","v":""},{"$f":"IF(OR(Selection_Hide2!K18=0, Selection_Hide2!K18=\"\"), \"\", Selection_Hide2!K18)","v":""},{"$f":"IF(OR(Selection_Hide2!L18=0, Selection_Hide2!L18=\"\"), \"\", Selection_Hide2!L18)","v":""},{"$f":"IF(OR(Selection_Hide2!M18=0, Selection_Hide2!M18=\"\"), \"\", Selection_Hide2!M18)","v":""},{"$f":"IF(OR(Selection_Hide2!N18=0, Selection_Hide2!N18=\"\"), \"\", Selection_Hide2!N18)","v":""},{"$f":"IF(OR(Selection_Hide2!O18=0, Selection_Hide2!O18=\"\"), \"\", Selection_Hide2!O18)","v":""},{"$f":"IF(OR(Selection_Hide2!P18=0, Selection_Hide2!P18=\"\"), \"\", Selection_Hide2!P18)","v":""},{"$f":"IF(OR(Selection_Hide2!Q18=0, Selection_Hide2!Q18=\"\"), \"\", Selection_Hide2!Q18)","v":""},{"$f":"IF(OR(Selection_Hide2!R18=0, Selection_Hide2!R18=\"\"), \"\", Selection_Hide2!R18)","v":""},{"$f":"IF(OR(Selection_Hide2!S18=0, Selection_Hide2!S18=\"\"), \"\", Selection_Hide2!S18)","v":""},{"$f":"IF(OR(Selection_Hide2!T18=0, Selection_Hide2!T18=\"\"), \"\", Selection_Hide2!T18)","v":""},{"$f":"IF(OR(Selection_Hide2!U18=0, Selection_Hide2!U18=\"\"), \"\", Selection_Hide2!U18)","v":""},{"$f":"IF(OR(Selection_Hide2!V18=0, Selection_Hide2!V18=\"\"), \"\", Selection_Hide2!V18)","v":""},{"$f":"IF(OR(Selection_Hide2!W18=0, Selection_Hide2!W18=\"\"), \"\", Selection_Hide2!W18)","v":""},{"$f":"IF(OR(Selection_Hide2!X18=0, Selection_Hide2!X18=\"\"), \"\", Selection_Hide2!X18)","v":""},{"$f":"IF(OR(Selection_Hide2!Y18=0, Selection_Hide2!Y18=\"\"), \"\", Selection_Hide2!Y18)","v":""},{"$f":"IF(OR(Selection_Hide2!Z18=0, Selection_Hide2!Z18=\"\"), \"\", Selection_Hide2!Z18)","v":""},{"$f":"IF(OR(Selection_Hide2!AA18=0, Selection_Hide2!AA18=\"\"), \"\", Selection_Hide2!AA18)","v":""},{"$f":"IF(OR(Selection_Hide2!AB18=0, Selection_Hide2!AB18=\"\"), \"\", Selection_Hide2!AB18)","v":""}]
[{"$f":"IF(OR(Selection_Hide2!A19=0, Selection_Hide2!A19=\"\"), \"\", Selection_Hide2!A19)","v":"323"},{"$f":"IF(OR(Selection_Hide2!B19=0, Selection_Hide2!B19=\"\"), \"\", Selection_Hide2!B19)","v":"Health"},{"$f":"IF(OR(Selection_Hide2!C19=0, Selection_Hide2!C19=\"\"), \"\", Selection_Hide2!C19)","v":"Aboriginal people heal from inter-generational trauma and loss"},{"$f":"IF(OR(Selection_Hide2!D19=0, Selection_Hide2!D19=\"\"), \"\", Selection_Hide2!D19)","v":"Proportion (%) of children and young people in Out-of-Home-Care who have a parent who was also in Out-of-Home-Care"},{"$f":"IF(OR(Selection_Hide2!E19=0, Selection_Hide2!E19=\"\"), \"\", Selection_Hide2!E19)","v":"Derived from administrative data"},{"$f":"IF(OR(Selection_Hide2!F19=0, Selection_Hide2!F19=\"\"), \"\", Selection_Hide2!F19)","v":"Existing DCJ measure "},{"$f":"IF(OR(Selection_Hide2!G19=0, Selection_Hide2!G19=\"\"), \"\", Selection_Hide2!G19)","v":"DCJ data"},{"$f":"IF(OR(Selection_Hide2!H19=0, Selection_Hide2!H19=\"\"), \"\", Selection_Hide2!H19)","v":"ChildStory - Client Information Warehouse (CIW)"},{"$f":"IF(OR(Selection_Hide2!I19=0, Selection_Hide2!I19=\"\"), \"\", Selection_Hide2!I19)","v":"* Parents OOHC history status\n* Child or young persons OOHC status"},{"$f":"IF(OR(Selection_Hide2!J19=0, Selection_Hide2!J19=\"\"), \"\", Selection_Hide2!J19)","v":"Numerator: Number of children and young people in OOHC who also had a parent in OOHC\nDenominator: Number of children and young people in OOHC"},{"$f":"IF(OR(Selection_Hide2!K19=0, Selection_Hide2!K19=\"\"), \"\", Selection_Hide2!K19)","v":"DCJ"},{"$f":"IF(OR(Selection_Hide2!L19=0, Selection_Hide2!L19=\"\"), \"\", Selection_Hide2!L19)","v":""},{"$f":"IF(OR(Selection_Hide2!M19=0, Selection_Hide2!M19=\"\"), \"\", Selection_Hide2!M19)","v":""},{"$f":"IF(OR(Selection_Hide2!N19=0, Selection_Hide2!N19=\"\"), \"\", Selection_Hide2!N19)","v":""},{"$f":"IF(OR(Selection_Hide2!O19=0, Selection_Hide2!O19=\"\"), \"\", Selection_Hide2!O19)","v":""},{"$f":"IF(OR(Selection_Hide2!P19=0, Selection_Hide2!P19=\"\"), \"\", Selection_Hide2!P19)","v":""},{"$f":"IF(OR(Selection_Hide2!Q19=0, Selection_Hide2!Q19=\"\"), \"\", Selection_Hide2!Q19)","v":""},{"$f":"IF(OR(Selection_Hide2!R19=0, Selection_Hide2!R19=\"\"), \"\", Selection_Hide2!R19)","v":""},{"$f":"IF(OR(Selection_Hide2!S19=0, Selection_Hide2!S19=\"\"), \"\", Selection_Hide2!S19)","v":""},{"$f":"IF(OR(Selection_Hide2!T19=0, Selection_Hide2!T19=\"\"), \"\", Selection_Hide2!T19)","v":""},{"$f":"IF(OR(Selection_Hide2!U19=0, Selection_Hide2!U19=\"\"), \"\", Selection_Hide2!U19)","v":""},{"$f":"IF(OR(Selection_Hide2!V19=0, Selection_Hide2!V19=\"\"), \"\", Selection_Hide2!V19)","v":""},{"$f":"IF(OR(Selection_Hide2!W19=0, Selection_Hide2!W19=\"\"), \"\", Selection_Hide2!W19)","v":""},{"$f":"IF(OR(Selection_Hide2!X19=0, Selection_Hide2!X19=\"\"), \"\", Selection_Hide2!X19)","v":""},{"$f":"IF(OR(Selection_Hide2!Y19=0, Selection_Hide2!Y19=\"\"), \"\", Selection_Hide2!Y19)","v":""},{"$f":"IF(OR(Selection_Hide2!Z19=0, Selection_Hide2!Z19=\"\"), \"\", Selection_Hide2!Z19)","v":""},{"$f":"IF(OR(Selection_Hide2!AA19=0, Selection_Hide2!AA19=\"\"), \"\", Selection_Hide2!AA19)","v":""},{"$f":"IF(OR(Selection_Hide2!AB19=0, Selection_Hide2!AB19=\"\"), \"\", Selection_Hide2!AB19)","v":""}]
[{"$f":"IF(OR(Selection_Hide2!A20=0, Selection_Hide2!A20=\"\"), \"\", Selection_Hide2!A20)","v":"85"},{"$f":"IF(OR(Selection_Hide2!B20=0, Selection_Hide2!B20=\"\"), \"\", Selection_Hide2!B20)","v":"Health"},{"$f":"IF(OR(Selection_Hide2!C20=0, Selection_Hide2!C20=\"\"), \"\", Selection_Hide2!C20)","v":"Mothers have healthy pregnancies and babies have good birth outcomes"},{"$f":"IF(OR(Selection_Hide2!D20=0, Selection_Hide2!D20=\"\"), \"\", Selection_Hide2!D20)","v":"Proportion (%) of mothers who smoke during pregnancy"},{"$f":"IF(OR(Selection_Hide2!E20=0, Selection_Hide2!E20=\"\"), \"\", Selection_Hide2!E20)","v":"Information not publicly available"},{"$f":"IF(OR(Selection_Hide2!F20=0, Selection_Hide2!F20=\"\"), \"\", Selection_Hide2!F20)","v":"External agency measure (NSW Ministry of Health)"},{"$f":"IF(OR(Selection_Hide2!G20=0, Selection_Hide2!G20=\"\"), \"\", Selection_Hide2!G20)","v":"Data linkage "},{"$f":"IF(OR(Selection_Hide2!H20=0, Selection_Hide2!H20=\"\"), \"\", Selection_Hide2!H20)","v":"NSW Perinatal Data Collection (PDC)"},{"$f":"IF(OR(Selection_Hide2!I20=0, Selection_Hide2!I20=\"\"), \"\", Selection_Hide2!I20)","v":"* Smoking during pregnancy [smoke]"},{"$f":"IF(OR(Selection_Hide2!J20=0, Selection_Hide2!J20=\"\"), \"\", Selection_Hide2!J20)","v":"Numerator: Number of women who smoked during pregnancy = Yes\nDenominator: Number of women who have given birth"},{"$f":"IF(OR(Selection_Hide2!K20=0, Selection_Hide2!K20=\"\"), \"\", Selection_Hide2!K20)","v":"NSW Ministry of Health"},{"$f":"IF(OR(Selection_Hide2!L20=0, Selection_Hide2!L20=\"\"), \"\", Selection_Hide2!L20)","v":"CHeReL"},{"$f":"IF(OR(Selection_Hide2!M20=0, Selection_Hide2!M20=\"\"), \"\", Selection_Hide2!M20)","v":"y"},{"$f":"IF(OR(Selection_Hide2!N20=0, Selection_Hide2!N20=\"\"), \"\", Selection_Hide2!N20)","v":""},{"$f":"IF(OR(Selection_Hide2!O20=0, Selection_Hide2!O20=\"\"), \"\", Selection_Hide2!O20)","v":""},{"$f":"IF(OR(Selection_Hide2!P20=0, Selection_Hide2!P20=\"\"), \"\", Selection_Hide2!P20)","v":""},{"$f":"IF(OR(Selection_Hide2!Q20=0, Selection_Hide2!Q20=\"\"), \"\", Selection_Hide2!Q20)","v":""},{"$f":"IF(OR(Selection_Hide2!R20=0, Selection_Hide2!R20=\"\"), \"\", Selection_Hide2!R20)","v":""},{"$f":"IF(OR(Selection_Hide2!S20=0, Selection_Hide2!S20=\"\"), \"\", Selection_Hide2!S20)","v":""},{"$f":"IF(OR(Selection_Hide2!T20=0, Selection_Hide2!T20=\"\"), \"\", Selection_Hide2!T20)","v":""},{"$f":"IF(OR(Selection_Hide2!U20=0, Selection_Hide2!U20=\"\"), \"\", Selection_Hide2!U20)","v":""},{"$f":"IF(OR(Selection_Hide2!V20=0, Selection_Hide2!V20=\"\"), \"\", Selection_Hide2!V20)","v":""},{"$f":"IF(OR(Selection_Hide2!W20=0, Selection_Hide2!W20=\"\"), \"\", Selection_Hide2!W20)","v":""},{"$f":"IF(OR(Selection_Hide2!X20=0, Selection_Hide2!X20=\"\"), \"\", Selection_Hide2!X20)","v":""},{"$f":"IF(OR(Selection_Hide2!Y20=0, Selection_Hide2!Y20=\"\"), \"\", Selection_Hide2!Y20)","v":""},{"$f":"IF(OR(Selection_Hide2!Z20=0, Selection_Hide2!Z20=\"\"), \"\", Selection_Hide2!Z20)","v":""},{"$f":"IF(OR(Selection_Hide2!AA20=0, Selection_Hide2!AA20=\"\"), \"\", Selection_Hide2!AA20)","v":""},{"$f":"IF(OR(Selection_Hide2!AB20=0, Selection_Hide2!AB20=\"\"), \"\", Selection_Hide2!AB20)","v":""}]
[{"$f":"IF(OR(Selection_Hide2!A21=0, Selection_Hide2!A21=\"\"), \"\", Selection_Hide2!A21)","v":"87"},{"$f":"IF(OR(Selection_Hide2!B21=0, Selection_Hide2!B21=\"\"), \"\", Selection_Hide2!B21)","v":"Health"},{"$f":"IF(OR(Selection_Hide2!C21=0, Selection_Hide2!C21=\"\"), \"\", Selection_Hide2!C21)","v":"Mothers have healthy pregnancies and babies have good birth outcomes"},{"$f":"IF(OR(Selection_Hide2!D21=0, Selection_Hide2!D21=\"\"), \"\", Selection_Hide2!D21)","v":"Proportion (%) of live-born infants below a healthy weight at birth"},{"$f":"IF(OR(Selection_Hide2!E21=0, Selection_Hide2!E21=\"\"), \"\", Selection_Hide2!E21)","v":"Weight at birth"},{"$f":"IF(OR(Selection_Hide2!F21=0, Selection_Hide2!F21=\"\"), \"\", Selection_Hide2!F21)","v":"External agency measure (NSW Ministry of Health)"},{"$f":"IF(OR(Selection_Hide2!G21=0, Selection_Hide2!G21=\"\"), \"\", Selection_Hide2!G21)","v":"Data linkage "},{"$f":"IF(OR(Selection_Hide2!H21=0, Selection_Hide2!H21=\"\"), \"\", Selection_Hide2!H21)","v":"NSW Perinatal Data Collection (PDC)"},{"$f":"IF(OR(Selection_Hide2!I21=0, Selection_Hide2!I21=\"\"), \"\", Selection_Hide2!I21)","v":"* Birthweight [weight]"},{"$f":"IF(OR(Selection_Hide2!J21=0, Selection_Hide2!J21=\"\"), \"\", Selection_Hide2!J21)","v":"Numerator: Number of children with birth weight > 2,500 grams\nDenominator: Number of children"},{"$f":"IF(OR(Selection_Hide2!K21=0, Selection_Hide2!K21=\"\"), \"\", Selection_Hide2!K21)","v":"NSW Ministry of Health"},{"$f":"IF(OR(Selection_Hide2!L21=0, Selection_Hide2!L21=\"\"), \"\", Selection_Hide2!L21)","v":"CHeReL"},{"$f":"IF(OR(Selection_Hide2!M21=0, Selection_Hide2!M21=\"\"), \"\", Selection_Hide2!M21)","v":"y"},{"$f":"IF(OR(Selection_Hide2!N21=0, Selection_Hide2!N21=\"\"), \"\", Selection_Hide2!N21)","v":""},{"$f":"IF(OR(Selection_Hide2!O21=0, Selection_Hide2!O21=\"\"), \"\", Selection_Hide2!O21)","v":""},{"$f":"IF(OR(Selection_Hide2!P21=0, Selection_Hide2!P21=\"\"), \"\", Selection_Hide2!P21)","v":""},{"$f":"IF(OR(Selection_Hide2!Q21=0, Selection_Hide2!Q21=\"\"), \"\", Selection_Hide2!Q21)","v":""},{"$f":"IF(OR(Selection_Hide2!R21=0, Selection_Hide2!R21=\"\"), \"\", Selection_Hide2!R21)","v":""},{"$f":"IF(OR(Selection_Hide2!S21=0, Selection_Hide2!S21=\"\"), \"\", Selection_Hide2!S21)","v":""},{"$f":"IF(OR(Selection_Hide2!T21=0, Selection_Hide2!T21=\"\"), \"\", Selection_Hide2!T21)","v":""},{"$f":"IF(OR(Selection_Hide2!U21=0, Selection_Hide2!U21=\"\"), \"\", Selection_Hide2!U21)","v":""},{"$f":"IF(OR(Selection_Hide2!V21=0, Selection_Hide2!V21=\"\"), \"\", Selection_Hide2!V21)","v":""},{"$f":"IF(OR(Selection_Hide2!W21=0, Selection_Hide2!W21=\"\"), \"\", Selection_Hide2!W21)","v":""},{"$f":"IF(OR(Selection_Hide2!X21=0, Selection_Hide2!X21=\"\"), \"\", Selection_Hide2!X21)","v":""},{"$f":"IF(OR(Selection_Hide2!Y21=0, Selection_Hide2!Y21=\"\"), \"\", Selection_Hide2!Y21)","v":""},{"$f":"IF(OR(Selection_Hide2!Z21=0, Selection_Hide2!Z21=\"\"), \"\", Selection_Hide2!Z21)","v":""},{"$f":"IF(OR(Selection_Hide2!AA21=0, Selection_Hide2!AA21=\"\"), \"\", Selection_Hide2!AA21)","v":""},{"$f":"IF(OR(Selection_Hide2!AB21=0, Selection_Hide2!AB21=\"\"), \"\", Selection_Hide2!AB21)","v":""}]
[{"$f":"IF(OR(Selection_Hide2!A22=0, Selection_Hide2!A22=\"\"), \"\", Selection_Hide2!A22)","v":"88"},{"$f":"IF(OR(Selection_Hide2!B22=0, Selection_Hide2!B22=\"\"), \"\", Selection_Hide2!B22)","v":"Health"},{"$f":"IF(OR(Selection_Hide2!C22=0, Selection_Hide2!C22=\"\"), \"\", Selection_Hide2!C22)","v":"Mothers have healthy pregnancies and babies have good birth outcomes"},{"$f":"IF(OR(Selection_Hide2!D22=0, Selection_Hide2!D22=\"\"), \"\", Selection_Hide2!D22)","v":"Proportion (%) of women who report substance misuse during pregnancy"},{"$f":"IF(OR(Selection_Hide2!E22=0, Selection_Hide2!E22=\"\"), \"\", Selection_Hide2!E22)","v":"No measure identified"},{"$f":"IF(OR(Selection_Hide2!F22=0, Selection_Hide2!F22=\"\"), \"\", Selection_Hide2!F22)","v":"Evidence development required"},{"$f":"IF(OR(Selection_Hide2!G22=0, Selection_Hide2!G22=\"\"), \"\", Selection_Hide2!G22)","v":"New data"},{"$f":"IF(OR(Selection_Hide2!H22=0, Selection_Hide2!H22=\"\"), \"\", Selection_Hide2!H22)","v":"No data source"},{"$f":"IF(OR(Selection_Hide2!I22=0, Selection_Hide2!I22=\"\"), \"\", Selection_Hide2!I22)","v":""},{"$f":"IF(OR(Selection_Hide2!J22=0, Selection_Hide2!J22=\"\"), \"\", Selection_Hide2!J22)","v":""},{"$f":"IF(OR(Selection_Hide2!K22=0, Selection_Hide2!K22=\"\"), \"\", Selection_Hide2!K22)","v":""},{"$f":"IF(OR(Selection_Hide2!L22=0, Selection_Hide2!L22=\"\"), \"\", Selection_Hide2!L22)","v":""},{"$f":"IF(OR(Selection_Hide2!M22=0, Selection_Hide2!M22=\"\"), \"\", Selection_Hide2!M22)","v":""},{"$f":"IF(OR(Selection_Hide2!N22=0, Selection_Hide2!N22=\"\"), \"\", Selection_Hide2!N22)","v":""},{"$f":"IF(OR(Selection_Hide2!O22=0, Selection_Hide2!O22=\"\"), \"\", Selection_Hide2!O22)","v":""},{"$f":"IF(OR(Selection_Hide2!P22=0, Selection_Hide2!P22=\"\"), \"\", Selection_Hide2!P22)","v":""},{"$f":"IF(OR(Selection_Hide2!Q22=0, Selection_Hide2!Q22=\"\"), \"\", Selection_Hide2!Q22)","v":""},{"$f":"IF(OR(Selection_Hide2!R22=0, Selection_Hide2!R22=\"\"), \"\", Selection_Hide2!R22)","v":""},{"$f":"IF(OR(Selection_Hide2!S22=0, Selection_Hide2!S22=\"\"), \"\", Selection_Hide2!S22)","v":""},{"$f":"IF(OR(Selection_Hide2!T22=0, Selection_Hide2!T22=\"\"), \"\", Selection_Hide2!T22)","v":""},{"$f":"IF(OR(Selection_Hide2!U22=0, Selection_Hide2!U22=\"\"), \"\", Selection_Hide2!U22)","v":""},{"$f":"IF(OR(Selection_Hide2!V22=0, Selection_Hide2!V22=\"\"), \"\", Selection_Hide2!V22)","v":""},{"$f":"IF(OR(Selection_Hide2!W22=0, Selection_Hide2!W22=\"\"), \"\", Selection_Hide2!W22)","v":""},{"$f":"IF(OR(Selection_Hide2!X22=0, Selection_Hide2!X22=\"\"), \"\", Selection_Hide2!X22)","v":""},{"$f":"IF(OR(Selection_Hide2!Y22=0, Selection_Hide2!Y22=\"\"), \"\", Selection_Hide2!Y22)","v":""},{"$f":"IF(OR(Selection_Hide2!Z22=0, Selection_Hide2!Z22=\"\"), \"\", Selection_Hide2!Z22)","v":""},{"$f":"IF(OR(Selection_Hide2!AA22=0, Selection_Hide2!AA22=\"\"), \"\", Selection_Hide2!AA22)","v":""},{"$f":"IF(OR(Selection_Hide2!AB22=0, Selection_Hide2!AB22=\"\"), \"\", Selection_Hide2!AB22)","v":""}]
[{"$f":"IF(OR(Selection_Hide2!A23=0, Selection_Hide2!A23=\"\"), \"\", Selection_Hide2!A23)","v":"89"},{"$f":"IF(OR(Selection_Hide2!B23=0, Selection_Hide2!B23=\"\"), \"\", Selection_Hide2!B23)","v":"Health"},{"$f":"IF(OR(Selection_Hide2!C23=0, Selection_Hide2!C23=\"\"), \"\", Selection_Hide2!C23)","v":"Mothers have healthy pregnancies and babies have good birth outcomes"},{"$f":"IF(OR(Selection_Hide2!D23=0, Selection_Hide2!D23=\"\"), \"\", Selection_Hide2!D23)","v":"Proportion (%) of women who present for antenatal care programs"},{"$f":"IF(OR(Selection_Hide2!E23=0, Selection_Hide2!E23=\"\"), \"\", Selection_Hide2!E23)","v":"Information not publicly available"},{"$f":"IF(OR(Selection_Hide2!F23=0, Selection_Hide2!F23=\"\"), \"\", Selection_Hide2!F23)","v":"External agency measure (NSW Ministry of Health)"},{"$f":"IF(OR(Selection_Hide2!G23=0, Selection_Hide2!G23=\"\"), \"\", Selection_Hide2!G23)","v":"Data linkage "},{"$f":"IF(OR(Selection_Hide2!H23=0, Selection_Hide2!H23=\"\"), \"\", Selection_Hide2!H23)","v":"NSW Perinatal Data Collection (PDC)"},{"$f":"IF(OR(Selection_Hide2!I23=0, Selection_Hide2!I23=\"\"), \"\", Selection_Hide2!I23)","v":"* Antenatal care [and]"},{"$f":"IF(OR(Selection_Hide2!J23=0, Selection_Hide2!J23=\"\"), \"\", Selection_Hide2!J23)","v":"Numerator: Number of women where Antenatal care = YES\nDenominator: Number of women who have given birth"},{"$f":"IF(OR(Selection_Hide2!K23=0, Selection_Hide2!K23=\"\"), \"\", Selection_Hide2!K23)","v":"NSW Ministry of Health"},{"$f":"IF(OR(Selection_Hide2!L23=0, Selection_Hide2!L23=\"\"), \"\", Selection_Hide2!L23)","v":"CHeReL"},{"$f":"IF(OR(Selection_Hide2!M23=0, Selection_Hide2!M23=\"\"), \"\", Selection_Hide2!M23)","v":"y"},{"$f":"IF(OR(Selection_Hide2!N23=0, Selection_Hide2!N23=\"\"), \"\", Selection_Hide2!N23)","v":""},{"$f":"IF(OR(Selection_Hide2!O23=0, Selection_Hide2!O23=\"\"), \"\", Selection_Hide2!O23)","v":""},{"$f":"IF(OR(Selection_Hide2!P23=0, Selection_Hide2!P23=\"\"), \"\", Selection_Hide2!P23)","v":""},{"$f":"IF(OR(Selection_Hide2!Q23=0, Selection_Hide2!Q23=\"\"), \"\", Selection_Hide2!Q23)","v":""},{"$f":"IF(OR(Selection_Hide2!R23=0, Selection_Hide2!R23=\"\"), \"\", Selection_Hide2!R23)","v":""},{"$f":"IF(OR(Selection_Hide2!S23=0, Selection_Hide2!S23=\"\"), \"\", Selection_Hide2!S23)","v":""},{"$f":"IF(OR(Selection_Hide2!T23=0, Selection_Hide2!T23=\"\"), \"\", Selection_Hide2!T23)","v":""},{"$f":"IF(OR(Selection_Hide2!U23=0, Selection_Hide2!U23=\"\"), \"\", Selection_Hide2!U23)","v":""},{"$f":"IF(OR(Selection_Hide2!V23=0, Selection_Hide2!V23=\"\"), \"\", Selection_Hide2!V23)","v":""},{"$f":"IF(OR(Selection_Hide2!W23=0, Selection_Hide2!W23=\"\"), \"\", Selection_Hide2!W23)","v":""},{"$f":"IF(OR(Selection_Hide2!X23=0, Selection_Hide2!X23=\"\"), \"\", Selection_Hide2!X23)","v":""},{"$f":"IF(OR(Selection_Hide2!Y23=0, Selection_Hide2!Y23=\"\"), \"\", Selection_Hide2!Y23)","v":""},{"$f":"IF(OR(Selection_Hide2!Z23=0, Selection_Hide2!Z23=\"\"), \"\", Selection_Hide2!Z23)","v":""},{"$f":"IF(OR(Selection_Hide2!AA23=0, Selection_Hide2!AA23=\"\"), \"\", Selection_Hide2!AA23)","v":""},{"$f":"IF(OR(Selection_Hide2!AB23=0, Selection_Hide2!AB23=\"\"), \"\", Selection_Hide2!AB23)","v":""}]
[{"$f":"IF(OR(Selection_Hide2!A24=0, Selection_Hide2!A24=\"\"), \"\", Selection_Hide2!A24)","v":"90"},{"$f":"IF(OR(Selection_Hide2!B24=0, Selection_Hide2!B24=\"\"), \"\", Selection_Hide2!B24)","v":"Health"},{"$f":"IF(OR(Selection_Hide2!C24=0, Selection_Hide2!C24=\"\"), \"\", Selection_Hide2!C24)","v":"Mothers have healthy pregnancies and babies have good birth outcomes"},{"$f":"IF(OR(Selection_Hide2!D24=0, Selection_Hide2!D24=\"\"), \"\", Selection_Hide2!D24)","v":"Proportion (%) of infants exclusively breastfed at 4 months of age"},{"$f":"IF(OR(Selection_Hide2!E24=0, Selection_Hide2!E24=\"\"), \"\", Selection_Hide2!E24)","v":"ABS National Health Survey\nHas [child’s name] ever received breast milk?\n1. Yes\n5. No\n\nIs [child’s name] currently receiving breast milk?\n1. Yes\n5. No\n\nHow old was [child’s name] when [he/she]\nstopped receiving any breast milk?\n1. [number of months]\n2. Less than 1 month\n\nHas [child’s name] ever had any food or drink\nother than breast milk?\n1. Yes\n5. No\n\nIncluding water, formula, and juice, how old was\n[child’s name] when [he/she] first had any food or\ndrink other than breast milk?\n1. [number of months]\n2. Less than 1 month"},{"$f":"IF(OR(Selection_Hide2!F24=0, Selection_Hide2!F24=\"\"), \"\", Selection_Hide2!F24)","v":"External agency measure (ABS)"},{"$f":"IF(OR(Selection_Hide2!G24=0, Selection_Hide2!G24=\"\"), \"\", Selection_Hide2!G24)","v":"New data"},{"$f":"IF(OR(Selection_Hide2!H24=0, Selection_Hide2!H24=\"\"), \"\", Selection_Hide2!H24)","v":"No data source"},{"$f":"IF(OR(Selection_Hide2!I24=0, Selection_Hide2!I24=\"\"), \"\", Selection_Hide2!I24)","v":"* Child's breast feeding status\n* Child's age where breastfeeding stopped\n* Child's age at which other consumed food or drink was first consumed"},{"$f":"IF(OR(Selection_Hide2!J24=0, Selection_Hide2!J24=\"\"), \"\", Selection_Hide2!J24)","v":"Numerator: (Number of children who are currently breastfeeding AND have not had other food or drink) + (Number of children who stop breastfeeding >= 4 months AND first had other food or drink at age >= 4 months) \nDenominator: All children surveyed\nFilters: Children over age of four months"},{"$f":"IF(OR(Selection_Hide2!K24=0, Selection_Hide2!K24=\"\"), \"\", Selection_Hide2!K24)","v":""},{"$f":"IF(OR(Selection_Hide2!L24=0, Selection_Hide2!L24=\"\"), \"\", Selection_Hide2!L24)","v":""},{"$f":"IF(OR(Selection_Hide2!M24=0, Selection_Hide2!M24=\"\"), \"\", Selection_Hide2!M24)","v":""},{"$f":"IF(OR(Selection_Hide2!N24=0, Selection_Hide2!N24=\"\"), \"\", Selection_Hide2!N24)","v":""},{"$f":"IF(OR(Selection_Hide2!O24=0, Selection_Hide2!O24=\"\"), \"\", Selection_Hide2!O24)","v":""},{"$f":"IF(OR(Selection_Hide2!P24=0, Selection_Hide2!P24=\"\"), \"\", Selection_Hide2!P24)","v":""},{"$f":"IF(OR(Selection_Hide2!Q24=0, Selection_Hide2!Q24=\"\"), \"\", Selection_Hide2!Q24)","v":""},{"$f":"IF(OR(Selection_Hide2!R24=0, Selection_Hide2!R24=\"\"), \"\", Selection_Hide2!R24)","v":""},{"$f":"IF(OR(Selection_Hide2!S24=0, Selection_Hide2!S24=\"\"), \"\", Selection_Hide2!S24)","v":""},{"$f":"IF(OR(Selection_Hide2!T24=0, Selection_Hide2!T24=\"\"), \"\", Selection_Hide2!T24)","v":""},{"$f":"IF(OR(Selection_Hide2!U24=0, Selection_Hide2!U24=\"\"), \"\", Selection_Hide2!U24)","v":""},{"$f":"IF(OR(Selection_Hide2!V24=0, Selection_Hide2!V24=\"\"), \"\", Selection_Hide2!V24)","v":""},{"$f":"IF(OR(Selection_Hide2!W24=0, Selection_Hide2!W24=\"\"), \"\", Selection_Hide2!W24)","v":""},{"$f":"IF(OR(Selection_Hide2!X24=0, Selection_Hide2!X24=\"\"), \"\", Selection_Hide2!X24)","v":""},{"$f":"IF(OR(Selection_Hide2!Y24=0, Selection_Hide2!Y24=\"\"), \"\", Selection_Hide2!Y24)","v":""},{"$f":"IF(OR(Selection_Hide2!Z24=0, Selection_Hide2!Z24=\"\"), \"\", Selection_Hide2!Z24)","v":""},{"$f":"IF(OR(Selection_Hide2!AA24=0, Selection_Hide2!AA24=\"\"), \"\", Selection_Hide2!AA24)","v":""},{"$f":"IF(OR(Selection_Hide2!AB24=0, Selection_Hide2!AB24=\"\"), \"\", Selection_Hide2!AB24)","v":""}]
[{"$f":"IF(OR(Selection_Hide2!A25=0, Selection_Hide2!A25=\"\"), \"\", Selection_Hide2!A25)","v":"91"},{"$f":"IF(OR(Selection_Hide2!B25=0, Selection_Hide2!B25=\"\"), \"\", Selection_Hide2!B25)","v":"Health"},{"$f":"IF(OR(Selection_Hide2!C25=0, Selection_Hide2!C25=\"\"), \"\", Selection_Hide2!C25)","v":"People have a healthy lifestyle and avoid risk taking behaviours that negatively impact their health"},{"$f":"IF(OR(Selection_Hide2!D25=0, Selection_Hide2!D25=\"\"), \"\", Selection_Hide2!D25)","v":"Proportion (%) of people who report levels of physical activity below nationally recommended levels"},{"$f":"IF(OR(Selection_Hide2!E25=0, Selection_Hide2!E25=\"\"), \"\", Selection_Hide2!E25)","v":"ABS questions:\n1. What was the total amount of time you spent walking for fitness, recreation or sport in the last week?\nHours:\nMinutes:\n\n2. How much time in total did you spend walking to get to and from places in the last week?\nHours:\nMinutes:\n\nThe next few questions are about moderate and vigorous exercise.\nPlease exclude any walking that you may have done, household chores, gardening or yardwork and any activity you do as part of your job.\n\n3. In the last week, did you do any exercise which caused a moderate increase in your heart rate or breathing, that is, moderate exercise? (e.g. gentle swimming, social tennis, golf)\nYes\nNo\n\n4. What was the total amount of time you  spent doing moderate exercise in the last week?\nHours:\nMinutes:\n\n5. In the last week, did you do any exercise which caused a large increase in your heart rate or breathing, that is, vigorous exercise? (e.g. jogging, cycling, aerobics, competitive tennis)\nYes\nNo\n\n6. What was the total amount of time you spent doing vigorous exercise in the last week?\nHours:\nMinutes:\n\nSome activities are designed to increase muscle strength or tone, such as lifting weights, resistance training, pull-ups, push-ups, or sit-ups.\n\n7. Including any activities already mentioned, in the last week did you do any strength or toning activities?\nYes\nNo\n\n8. On how many days last week did you do any strength or toning activities?"},{"$f":"IF(OR(Selection_Hide2!F25=0, Selection_Hide2!F25=\"\"), \"\", Selection_Hide2!F25)","v":"External agency measure (ABS)"},{"$f":"IF(OR(Selection_Hide2!G25=0, Selection_Hide2!G25=\"\"), \"\", Selection_Hide2!G25)","v":"New data"},{"$f":"IF(OR(Selection_Hide2!H25=0, Selection_Hide2!H25=\"\"), \"\", Selection_Hide2!H25)","v":"No data source"},{"$f":"IF(OR(Selection_Hide2!I25=0, Selection_Hide2!I25=\"\"), \"\", Selection_Hide2!I25)","v":"* Number of minutes person spent on walking for fitness, recreation or sport in the last week\n* Number of hours person spent on walking for fitness, recreation or sport in the last week\n* Number of minutes person spent walking to get to and from places in the last week\n* Number of hours person spend walking to get to and from places in the last week\n* Number of minutes person spent on moderate exercise\n* Number of hours person spend on moderate exercise\n* Number of minutes person spent on vigorous exercise\n* Number of hours person spend on vigorous exercise\n* Number of days where person did strength or toning activities\n* Age\n\nDerived values:\n* Person meeting Australian's Physical Activity and Sedentary Behaviour Guidelines\nAustralian's Physical Activity and Sedentary Behaviour Guidelines (2014) outlined that people should be active on most, if not all, days and recommend that:\n-- For young persons aged 15-17 years, at least 60 minutes of moderate to vigorous intensity physical activity every day. The guidelines also recommend that young persons aged 15-17 years do muscle strengthening activities on at least 3 days per week.\n-- For adults aged 18-64 years, 150-300 minutes of moderate intensity physical activity or 75-150 minutes of vigorous intensity physical activity, or an equivalent combination of both, per week. The guidelines also recommend that adults aged 18-64 years do muscle strengthening activities on at least 2 days per week.\n-- For adults aged 65 years and over, at least 30 minutes of physical activity on most, preferably all days. For the NHS, we interpret this recommendation as carried out at least 30 minutes of physical activity on at least 5 or more days."},{"$f":"IF(OR(Selection_Hide2!J25=0, Selection_Hide2!J25=\"\"), \"\", Selection_Hide2!J25)","v":"Numerator: Number of people who are not meeting Australian's Physical Activity and Sedentary Behaviour Guidelines \nDenominator: Number of people surveyed"},{"$f":"IF(OR(Selection_Hide2!K25=0, Selection_Hide2!K25=\"\"), \"\", Selection_Hide2!K25)","v":""},{"$f":"IF(OR(Selection_Hide2!L25=0, Selection_Hide2!L25=\"\"), \"\", Selection_Hide2!L25)","v":""},{"$f":"IF(OR(Selection_Hide2!M25=0, Selection_Hide2!M25=\"\"), \"\", Selection_Hide2!M25)","v":""},{"$f":"IF(OR(Selection_Hide2!N25=0, Selection_Hide2!N25=\"\"), \"\", Selection_Hide2!N25)","v":""},{"$f":"IF(OR(Selection_Hide2!O25=0, Selection_Hide2!O25=\"\"), \"\", Selection_Hide2!O25)","v":""},{"$f":"IF(OR(Selection_Hide2!P25=0, Selection_Hide2!P25=\"\"), \"\", Selection_Hide2!P25)","v":""},{"$f":"IF(OR(Selection_Hide2!Q25=0, Selection_Hide2!Q25=\"\"), \"\", Selection_Hide2!Q25)","v":""},{"$f":"IF(OR(Selection_Hide2!R25=0, Selection_Hide2!R25=\"\"), \"\", Selection_Hide2!R25)","v":""},{"$f":"IF(OR(Selection_Hide2!S25=0, Selection_Hide2!S25=\"\"), \"\", Selection_Hide2!S25)","v":""},{"$f":"IF(OR(Selection_Hide2!T25=0, Selection_Hide2!T25=\"\"), \"\", Selection_Hide2!T25)","v":""},{"$f":"IF(OR(Selection_Hide2!U25=0, Selection_Hide2!U25=\"\"), \"\", Selection_Hide2!U25)","v":""},{"$f":"IF(OR(Selection_Hide2!V25=0, Selection_Hide2!V25=\"\"), \"\", Selection_Hide2!V25)","v":""},{"$f":"IF(OR(Selection_Hide2!W25=0, Selection_Hide2!W25=\"\"), \"\", Selection_Hide2!W25)","v":""},{"$f":"IF(OR(Selection_Hide2!X25=0, Selection_Hide2!X25=\"\"), \"\", Selection_Hide2!X25)","v":""},{"$f":"IF(OR(Selection_Hide2!Y25=0, Selection_Hide2!Y25=\"\"), \"\", Selection_Hide2!Y25)","v":""},{"$f":"IF(OR(Selection_Hide2!Z25=0, Selection_Hide2!Z25=\"\"), \"\", Selection_Hide2!Z25)","v":""},{"$f":"IF(OR(Selection_Hide2!AA25=0, Selection_Hide2!AA25=\"\"), \"\", Selection_Hide2!AA25)","v":""},{"$f":"IF(OR(Selection_Hide2!AB25=0, Selection_Hide2!AB25=\"\"), \"\", Selection_Hide2!AB25)","v":""}]
[{"$f":"IF(OR(Selection_Hide2!A26=0, Selection_Hide2!A26=\"\"), \"\", Selection_Hide2!A26)","v":"98"},{"$f":"IF(OR(Selection_Hide2!B26=0, Selection_Hide2!B26=\"\"), \"\", Selection_Hide2!B26)","v":"Health"},{"$f":"IF(OR(Selection_Hide2!C26=0, Selection_Hide2!C26=\"\"), \"\", Selection_Hide2!C26)","v":"People have a healthy lifestyle and avoid risk taking behaviours that negatively impact their health"},{"$f":"IF(OR(Selection_Hide2!D26=0, Selection_Hide2!D26=\"\"), \"\", Selection_Hide2!D26)","v":"Proportion (%) of people who currently smoke tobacco "},{"$f":"IF(OR(Selection_Hide2!E26=0, Selection_Hide2!E26=\"\"), \"\", Selection_Hide2!E26)","v":"QAF measure under development\n\nNSW Population Health Survey (SAPHaRI)\nWhich of the following best describes your smoking status?\n1 I smoke daily\n2 I smoke occasionally \n3 I don't smoke now, but I used to\n4 I've tried it a few times but never smoked regularly\n5 I've never smoked \nX Don't know -> SMKX\nR Refused -> SMKX"},{"$f":"IF(OR(Selection_Hide2!F26=0, Selection_Hide2!F26=\"\"), \"\", Selection_Hide2!F26)","v":"External agency measure (HealthStats)"},{"$f":"IF(OR(Selection_Hide2!G26=0, Selection_Hide2!G26=\"\"), \"\", Selection_Hide2!G26)","v":"New data"},{"$f":"IF(OR(Selection_Hide2!H26=0, Selection_Hide2!H26=\"\"), \"\", Selection_Hide2!H26)","v":"No data source"},{"$f":"IF(OR(Selection_Hide2!I26=0, Selection_Hide2!I26=\"\"), \"\", Selection_Hide2!I26)","v":"* Persons smoking status"},{"$f":"IF(OR(Selection_Hide2!J26=0, Selection_Hide2!J26=\"\"), \"\", Selection_Hide2!J26)","v":"Numerator: Number of people who smoke daily or occasionally\nDenominator: Number of people surveyed"},{"$f":"IF(OR(Selection_Hide2!K26=0, Selection_Hide2!K26=\"\"), \"\", Selection_Hide2!K26)","v":""},{"$f":"IF(OR(Selection_Hide2!L26=0, Selection_Hide2!L26=\"\"), \"\", Selection_Hide2!L26)","v":""},{"$f":"IF(OR(Selection_Hide2!M26=0, Selection_Hide2!M26=\"\"), \"\", Selection_Hide2!M26)","v":""},{"$f":"IF(OR(Selection_Hide2!N26=0, Selection_Hide2!N26=\"\"), \"\", Selection_Hide2!N26)","v":""},{"$f":"IF(OR(Selection_Hide2!O26=0, Selection_Hide2!O26=\"\"), \"\", Selection_Hide2!O26)","v":""},{"$f":"IF(OR(Selection_Hide2!P26=0, Selection_Hide2!P26=\"\"), \"\", Selection_Hide2!P26)","v":""},{"$f":"IF(OR(Selection_Hide2!Q26=0, Selection_Hide2!Q26=\"\"), \"\", Selection_Hide2!Q26)","v":""},{"$f":"IF(OR(Selection_Hide2!R26=0, Selection_Hide2!R26=\"\"), \"\", Selection_Hide2!R26)","v":""},{"$f":"IF(OR(Selection_Hide2!S26=0, Selection_Hide2!S26=\"\"), \"\", Selection_Hide2!S26)","v":""},{"$f":"IF(OR(Selection_Hide2!T26=0, Selection_Hide2!T26=\"\"), \"\", Selection_Hide2!T26)","v":""},{"$f":"IF(OR(Selection_Hide2!U26=0, Selection_Hide2!U26=\"\"), \"\", Selection_Hide2!U26)","v":""},{"$f":"IF(OR(Selection_Hide2!V26=0, Selection_Hide2!V26=\"\"), \"\", Selection_Hide2!V26)","v":""},{"$f":"IF(OR(Selection_Hide2!W26=0, Selection_Hide2!W26=\"\"), \"\", Selection_Hide2!W26)","v":""},{"$f":"IF(OR(Selection_Hide2!X26=0, Selection_Hide2!X26=\"\"), \"\", Selection_Hide2!X26)","v":""},{"$f":"IF(OR(Selection_Hide2!Y26=0, Selection_Hide2!Y26=\"\"), \"\", Selection_Hide2!Y26)","v":""},{"$f":"IF(OR(Selection_Hide2!Z26=0, Selection_Hide2!Z26=\"\"), \"\", Selection_Hide2!Z26)","v":""},{"$f":"IF(OR(Selection_Hide2!AA26=0, Selection_Hide2!AA26=\"\"), \"\", Selection_Hide2!AA26)","v":""},{"$f":"IF(OR(Selection_Hide2!AB26=0, Selection_Hide2!AB26=\"\"), \"\", Selection_Hide2!AB26)","v":""}]
[{"$f":"IF(OR(Selection_Hide2!A27=0, Selection_Hide2!A27=\"\"), \"\", Selection_Hide2!A27)","v":"99"},{"$f":"IF(OR(Selection_Hide2!B27=0, Selection_Hide2!B27=\"\"), \"\", Selection_Hide2!B27)","v":"Health"},{"$f":"IF(OR(Selection_Hide2!C27=0, Selection_Hide2!C27=\"\"), \"\", Selection_Hide2!C27)","v":"People have a healthy lifestyle and avoid risk taking behaviours that negatively impact their health"},{"$f":"IF(OR(Selection_Hide2!D27=0, Selection_Hide2!D27=\"\"), \"\", Selection_Hide2!D27)","v":"Proportion (%) of adults currently consuming alcohol at levels posing long-term risk to health"},{"$f":"IF(OR(Selection_Hide2!E27=0, Selection_Hide2!E27=\"\"), \"\", Selection_Hide2!E27)","v":"NSW Population Health Survey:\nAlcoholic drinks are measured in terms of a \"standard drink\". A standard drink is equal to 1 middy of full-strength beer, 1 schooner of light beer, 1 small glass of wine or 1 pub-sized nip of spirits. On a day when you drink alcohol, how many standard drinks do you usually have?\n1 Record number of drinks\nX Don't know\nR Refused\n\nNational Drug Strategy Household Survey:\nOn a day that you have an alcoholic drink, how many standard drinks do you usually have?  (Mark one response only)\n9 – 10 drinks\n7 – 8 drinks\n5 – 6 drinks\n3 – 4 drinks\n20 or more drinks\n16 – 19 drinks\n13 – 15 drinks\n11 – 12 drinks\n2 drinks\n1 drink\nHalf a drink "},{"$f":"IF(OR(Selection_Hide2!F27=0, Selection_Hide2!F27=\"\"), \"\", Selection_Hide2!F27)","v":"External agency measure (HealthStats)"},{"$f":"IF(OR(Selection_Hide2!G27=0, Selection_Hide2!G27=\"\"), \"\", Selection_Hide2!G27)","v":"New data"},{"$f":"IF(OR(Selection_Hide2!H27=0, Selection_Hide2!H27=\"\"), \"\", Selection_Hide2!H27)","v":"No data source"},{"$f":"IF(OR(Selection_Hide2!I27=0, Selection_Hide2!I27=\"\"), \"\", Selection_Hide2!I27)","v":"* Number of standard alcoholic drinks a person has in a day"},{"$f":"IF(OR(Selection_Hide2!J27=0, Selection_Hide2!J27=\"\"), \"\", Selection_Hide2!J27)","v":"Numerator: Number of people who have >= 2 standard alcoholic drinks on a day\nDenominator: Number of people surveyed"},{"$f":"IF(OR(Selection_Hide2!K27=0, Selection_Hide2!K27=\"\"), \"\", Selection_Hide2!K27)","v":""},{"$f":"IF(OR(Selection_Hide2!L27=0, Selection_Hide2!L27=\"\"), \"\", Selection_Hide2!L27)","v":""},{"$f":"IF(OR(Selection_Hide2!M27=0, Selection_Hide2!M27=\"\"), \"\", Selection_Hide2!M27)","v":""},{"$f":"IF(OR(Selection_Hide2!N27=0, Selection_Hide2!N27=\"\"), \"\", Selection_Hide2!N27)","v":""},{"$f":"IF(OR(Selection_Hide2!O27=0, Selection_Hide2!O27=\"\"), \"\", Selection_Hide2!O27)","v":""},{"$f":"IF(OR(Selection_Hide2!P27=0, Selection_Hide2!P27=\"\"), \"\", Selection_Hide2!P27)","v":""},{"$f":"IF(OR(Selection_Hide2!Q27=0, Selection_Hide2!Q27=\"\"), \"\", Selection_Hide2!Q27)","v":""},{"$f":"IF(OR(Selection_Hide2!R27=0, Selection_Hide2!R27=\"\"), \"\", Selection_Hide2!R27)","v":""},{"$f":"IF(OR(Selection_Hide2!S27=0, Selection_Hide2!S27=\"\"), \"\", Selection_Hide2!S27)","v":""},{"$f":"IF(OR(Selection_Hide2!T27=0, Selection_Hide2!T27=\"\"), \"\", Selection_Hide2!T27)","v":""},{"$f":"IF(OR(Selection_Hide2!U27=0, Selection_Hide2!U27=\"\"), \"\", Selection_Hide2!U27)","v":""},{"$f":"IF(OR(Selection_Hide2!V27=0, Selection_Hide2!V27=\"\"), \"\", Selection_Hide2!V27)","v":""},{"$f":"IF(OR(Selection_Hide2!W27=0, Selection_Hide2!W27=\"\"), \"\", Selection_Hide2!W27)","v":""},{"$f":"IF(OR(Selection_Hide2!X27=0, Selection_Hide2!X27=\"\"), \"\", Selection_Hide2!X27)","v":""},{"$f":"IF(OR(Selection_Hide2!Y27=0, Selection_Hide2!Y27=\"\"), \"\", Selection_Hide2!Y27)","v":""},{"$f":"IF(OR(Selection_Hide2!Z27=0, Selection_Hide2!Z27=\"\"), \"\", Selection_Hide2!Z27)","v":""},{"$f":"IF(OR(Selection_Hide2!AA27=0, Selection_Hide2!AA27=\"\"), \"\", Selection_Hide2!AA27)","v":""},{"$f":"IF(OR(Selection_Hide2!AB27=0, Selection_Hide2!AB27=\"\"), \"\", Selection_Hide2!AB27)","v":""}]
[{"$f":"IF(OR(Selection_Hide2!A28=0, Selection_Hide2!A28=\"\"), \"\", Selection_Hide2!A28)","v":""},{"$f":"IF(OR(Selection_Hide2!B28=0, Selection_Hide2!B28=\"\"), \"\", Selection_Hide2!B28)","v":""},{"$f":"IF(OR(Selection_Hide2!C28=0, Selection_Hide2!C28=\"\"), \"\", Selection_Hide2!C28)","v":""},{"$f":"IF(OR(Selection_Hide2!D28=0, Selection_Hide2!D28=\"\"), \"\", Selection_Hide2!D28)","v":""},{"$f":"IF(OR(Selection_Hide2!E28=0, Selection_Hide2!E28=\"\"), \"\", Selection_Hide2!E28)","v":""},{"$f":"IF(OR(Selection_Hide2!F28=0, Selection_Hide2!F28=\"\"), \"\", Selection_Hide2!F28)","v":""},{"$f":"IF(OR(Selection_Hide2!G28=0, Selection_Hide2!G28=\"\"), \"\", Selection_Hide2!G28)","v":""},{"$f":"IF(OR(Selection_Hide2!H28=0, Selection_Hide2!H28=\"\"), \"\", Selection_Hide2!H28)","v":""},{"$f":"IF(OR(Selection_Hide2!I28=0, Selection_Hide2!I28=\"\"), \"\", Selection_Hide2!I28)","v":""},{"$f":"IF(OR(Selection_Hide2!J28=0, Selection_Hide2!J28=\"\"), \"\", Selection_Hide2!J28)","v":""},{"$f":"IF(OR(Selection_Hide2!K28=0, Selection_Hide2!K28=\"\"), \"\", Selection_Hide2!K28)","v":""},{"$f":"IF(OR(Selection_Hide2!L28=0, Selection_Hide2!L28=\"\"), \"\", Selection_Hide2!L28)","v":""},{"$f":"IF(OR(Selection_Hide2!M28=0, Selection_Hide2!M28=\"\"), \"\", Selection_Hide2!M28)","v":""},{"$f":"IF(OR(Selection_Hide2!N28=0, Selection_Hide2!N28=\"\"), \"\", Selection_Hide2!N28)","v":""},{"$f":"IF(OR(Selection_Hide2!O28=0, Selection_Hide2!O28=\"\"), \"\", Selection_Hide2!O28)","v":""},{"$f":"IF(OR(Selection_Hide2!P28=0, Selection_Hide2!P28=\"\"), \"\", Selection_Hide2!P28)","v":""},{"$f":"IF(OR(Selection_Hide2!Q28=0, Selection_Hide2!Q28=\"\"), \"\", Selection_Hide2!Q28)","v":""},{"$f":"IF(OR(Selection_Hide2!R28=0, Selection_Hide2!R28=\"\"), \"\", Selection_Hide2!R28)","v":""},{"$f":"IF(OR(Selection_Hide2!S28=0, Selection_Hide2!S28=\"\"), \"\", Selection_Hide2!S28)","v":""},{"$f":"IF(OR(Selection_Hide2!T28=0, Selection_Hide2!T28=\"\"), \"\", Selection_Hide2!T28)","v":""},{"$f":"IF(OR(Selection_Hide2!U28=0, Selection_Hide2!U28=\"\"), \"\", Selection_Hide2!U28)","v":""},{"$f":"IF(OR(Selection_Hide2!V28=0, Selection_Hide2!V28=\"\"), \"\", Selection_Hide2!V28)","v":""},{"$f":"IF(OR(Selection_Hide2!W28=0, Selection_Hide2!W28=\"\"), \"\", Selection_Hide2!W28)","v":""},{"$f":"IF(OR(Selection_Hide2!X28=0, Selection_Hide2!X28=\"\"), \"\", Selection_Hide2!X28)","v":""},{"$f":"IF(OR(Selection_Hide2!Y28=0, Selection_Hide2!Y28=\"\"), \"\", Selection_Hide2!Y28)","v":""},{"$f":"IF(OR(Selection_Hide2!Z28=0, Selection_Hide2!Z28=\"\"), \"\", Selection_Hide2!Z28)","v":""},{"$f":"IF(OR(Selection_Hide2!AA28=0, Selection_Hide2!AA28=\"\"), \"\", Selection_Hide2!AA28)","v":""},{"$f":"IF(OR(Selection_Hide2!AB28=0, Selection_Hide2!AB28=\"\"), \"\", Selection_Hide2!AB28)","v":""}]
[{"$f":"IF(OR(Selection_Hide2!A29=0, Selection_Hide2!A29=\"\"), \"\", Selection_Hide2!A29)","v":""},{"$f":"IF(OR(Selection_Hide2!B29=0, Selection_Hide2!B29=\"\"), \"\", Selection_Hide2!B29)","v":""},{"$f":"IF(OR(Selection_Hide2!C29=0, Selection_Hide2!C29=\"\"), \"\", Selection_Hide2!C29)","v":""},{"$f":"IF(OR(Selection_Hide2!D29=0, Selection_Hide2!D29=\"\"), \"\", Selection_Hide2!D29)","v":""},{"$f":"IF(OR(Selection_Hide2!E29=0, Selection_Hide2!E29=\"\"), \"\", Selection_Hide2!E29)","v":""},{"$f":"IF(OR(Selection_Hide2!F29=0, Selection_Hide2!F29=\"\"), \"\", Selection_Hide2!F29)","v":""},{"$f":"IF(OR(Selection_Hide2!G29=0, Selection_Hide2!G29=\"\"), \"\", Selection_Hide2!G29)","v":""},{"$f":"IF(OR(Selection_Hide2!H29=0, Selection_Hide2!H29=\"\"), \"\", Selection_Hide2!H29)","v":""},{"$f":"IF(OR(Selection_Hide2!I29=0, Selection_Hide2!I29=\"\"), \"\", Selection_Hide2!I29)","v":""},{"$f":"IF(OR(Selection_Hide2!J29=0, Selection_Hide2!J29=\"\"), \"\", Selection_Hide2!J29)","v":""},{"$f":"IF(OR(Selection_Hide2!K29=0, Selection_Hide2!K29=\"\"), \"\", Selection_Hide2!K29)","v":""},{"$f":"IF(OR(Selection_Hide2!L29=0, Selection_Hide2!L29=\"\"), \"\", Selection_Hide2!L29)","v":""},{"$f":"IF(OR(Selection_Hide2!M29=0, Selection_Hide2!M29=\"\"), \"\", Selection_Hide2!M29)","v":""},{"$f":"IF(OR(Selection_Hide2!N29=0, Selection_Hide2!N29=\"\"), \"\", Selection_Hide2!N29)","v":""},{"$f":"IF(OR(Selection_Hide2!O29=0, Selection_Hide2!O29=\"\"), \"\", Selection_Hide2!O29)","v":""},{"$f":"IF(OR(Selection_Hide2!P29=0, Selection_Hide2!P29=\"\"), \"\", Selection_Hide2!P29)","v":""},{"$f":"IF(OR(Selection_Hide2!Q29=0, Selection_Hide2!Q29=\"\"), \"\", Selection_Hide2!Q29)","v":""},{"$f":"IF(OR(Selection_Hide2!R29=0, Selection_Hide2!R29=\"\"), \"\", Selection_Hide2!R29)","v":""},{"$f":"IF(OR(Selection_Hide2!S29=0, Selection_Hide2!S29=\"\"), \"\", Selection_Hide2!S29)","v":""},{"$f":"IF(OR(Selection_Hide2!T29=0, Selection_Hide2!T29=\"\"), \"\", Selection_Hide2!T29)","v":""},{"$f":"IF(OR(Selection_Hide2!U29=0, Selection_Hide2!U29=\"\"), \"\", Selection_Hide2!U29)","v":""},{"$f":"IF(OR(Selection_Hide2!V29=0, Selection_Hide2!V29=\"\"), \"\", Selection_Hide2!V29)","v":""},{"$f":"IF(OR(Selection_Hide2!W29=0, Selection_Hide2!W29=\"\"), \"\", Selection_Hide2!W29)","v":""},{"$f":"IF(OR(Selection_Hide2!X29=0, Selection_Hide2!X29=\"\"), \"\", Selection_Hide2!X29)","v":""},{"$f":"IF(OR(Selection_Hide2!Y29=0, Selection_Hide2!Y29=\"\"), \"\", Selection_Hide2!Y29)","v":""},{"$f":"IF(OR(Selection_Hide2!Z29=0, Selection_Hide2!Z29=\"\"), \"\", Selection_Hide2!Z29)","v":""},{"$f":"IF(OR(Selection_Hide2!AA29=0, Selection_Hide2!AA29=\"\"), \"\", Selection_Hide2!AA29)","v":""},{"$f":"IF(OR(Selection_Hide2!AB29=0, Selection_Hide2!AB29=\"\"), \"\", Selection_Hide2!AB29)","v":""}]
[{"$f":"IF(OR(Selection_Hide2!A30=0, Selection_Hide2!A30=\"\"), \"\", Selection_Hide2!A30)","v":""},{"$f":"IF(OR(Selection_Hide2!B30=0, Selection_Hide2!B30=\"\"), \"\", Selection_Hide2!B30)","v":""},{"$f":"IF(OR(Selection_Hide2!C30=0, Selection_Hide2!C30=\"\"), \"\", Selection_Hide2!C30)","v":""},{"$f":"IF(OR(Selection_Hide2!D30=0, Selection_Hide2!D30=\"\"), \"\", Selection_Hide2!D30)","v":""},{"$f":"IF(OR(Selection_Hide2!E30=0, Selection_Hide2!E30=\"\"), \"\", Selection_Hide2!E30)","v":""},{"$f":"IF(OR(Selection_Hide2!F30=0, Selection_Hide2!F30=\"\"), \"\", Selection_Hide2!F30)","v":""},{"$f":"IF(OR(Selection_Hide2!G30=0, Selection_Hide2!G30=\"\"), \"\", Selection_Hide2!G30)","v":""},{"$f":"IF(OR(Selection_Hide2!H30=0, Selection_Hide2!H30=\"\"), \"\", Selection_Hide2!H30)","v":""},{"$f":"IF(OR(Selection_Hide2!I30=0, Selection_Hide2!I30=\"\"), \"\", Selection_Hide2!I30)","v":""},{"$f":"IF(OR(Selection_Hide2!J30=0, Selection_Hide2!J30=\"\"), \"\", Selection_Hide2!J30)","v":""},{"$f":"IF(OR(Selection_Hide2!K30=0, Selection_Hide2!K30=\"\"), \"\", Selection_Hide2!K30)","v":""},{"$f":"IF(OR(Selection_Hide2!L30=0, Selection_Hide2!L30=\"\"), \"\", Selection_Hide2!L30)","v":""},{"$f":"IF(OR(Selection_Hide2!M30=0, Selection_Hide2!M30=\"\"), \"\", Selection_Hide2!M30)","v":""},{"$f":"IF(OR(Selection_Hide2!N30=0, Selection_Hide2!N30=\"\"), \"\", Selection_Hide2!N30)","v":""},{"$f":"IF(OR(Selection_Hide2!O30=0, Selection_Hide2!O30=\"\"), \"\", Selection_Hide2!O30)","v":""},{"$f":"IF(OR(Selection_Hide2!P30=0, Selection_Hide2!P30=\"\"), \"\", Selection_Hide2!P30)","v":""},{"$f":"IF(OR(Selection_Hide2!Q30=0, Selection_Hide2!Q30=\"\"), \"\", Selection_Hide2!Q30)","v":""},{"$f":"IF(OR(Selection_Hide2!R30=0, Selection_Hide2!R30=\"\"), \"\", Selection_Hide2!R30)","v":""},{"$f":"IF(OR(Selection_Hide2!S30=0, Selection_Hide2!S30=\"\"), \"\", Selection_Hide2!S30)","v":""},{"$f":"IF(OR(Selection_Hide2!T30=0, Selection_Hide2!T30=\"\"), \"\", Selection_Hide2!T30)","v":""},{"$f":"IF(OR(Selection_Hide2!U30=0, Selection_Hide2!U30=\"\"), \"\", Selection_Hide2!U30)","v":""},{"$f":"IF(OR(Selection_Hide2!V30=0, Selection_Hide2!V30=\"\"), \"\", Selection_Hide2!V30)","v":""},{"$f":"IF(OR(Selection_Hide2!W30=0, Selection_Hide2!W30=\"\"), \"\", Selection_Hide2!W30)","v":""},{"$f":"IF(OR(Selection_Hide2!X30=0, Selection_Hide2!X30=\"\"), \"\", Selection_Hide2!X30)","v":""},{"$f":"IF(OR(Selection_Hide2!Y30=0, Selection_Hide2!Y30=\"\"), \"\", Selection_Hide2!Y30)","v":""},{"$f":"IF(OR(Selection_Hide2!Z30=0, Selection_Hide2!Z30=\"\"), \"\", Selection_Hide2!Z30)","v":""},{"$f":"IF(OR(Selection_Hide2!AA30=0, Selection_Hide2!AA30=\"\"), \"\", Selection_Hide2!AA30)","v":""},{"$f":"IF(OR(Selection_Hide2!AB30=0, Selection_Hide2!AB30=\"\"), \"\", Selection_Hide2!AB30)","v":""}]
[{"$f":"IF(OR(Selection_Hide2!A31=0, Selection_Hide2!A31=\"\"), \"\", Selection_Hide2!A31)","v":""},{"$f":"IF(OR(Selection_Hide2!B31=0, Selection_Hide2!B31=\"\"), \"\", Selection_Hide2!B31)","v":""},{"$f":"IF(OR(Selection_Hide2!C31=0, Selection_Hide2!C31=\"\"), \"\", Selection_Hide2!C31)","v":""},{"$f":"IF(OR(Selection_Hide2!D31=0, Selection_Hide2!D31=\"\"), \"\", Selection_Hide2!D31)","v":""},{"$f":"IF(OR(Selection_Hide2!E31=0, Selection_Hide2!E31=\"\"), \"\", Selection_Hide2!E31)","v":""},{"$f":"IF(OR(Selection_Hide2!F31=0, Selection_Hide2!F31=\"\"), \"\", Selection_Hide2!F31)","v":""},{"$f":"IF(OR(Selection_Hide2!G31=0, Selection_Hide2!G31=\"\"), \"\", Selection_Hide2!G31)","v":""},{"$f":"IF(OR(Selection_Hide2!H31=0, Selection_Hide2!H31=\"\"), \"\", Selection_Hide2!H31)","v":""},{"$f":"IF(OR(Selection_Hide2!I31=0, Selection_Hide2!I31=\"\"), \"\", Selection_Hide2!I31)","v":""},{"$f":"IF(OR(Selection_Hide2!J31=0, Selection_Hide2!J31=\"\"), \"\", Selection_Hide2!J31)","v":""},{"$f":"IF(OR(Selection_Hide2!K31=0, Selection_Hide2!K31=\"\"), \"\", Selection_Hide2!K31)","v":""},{"$f":"IF(OR(Selection_Hide2!L31=0, Selection_Hide2!L31=\"\"), \"\", Selection_Hide2!L31)","v":""},{"$f":"IF(OR(Selection_Hide2!M31=0, Selection_Hide2!M31=\"\"), \"\", Selection_Hide2!M31)","v":""},{"$f":"IF(OR(Selection_Hide2!N31=0, Selection_Hide2!N31=\"\"), \"\", Selection_Hide2!N31)","v":""},{"$f":"IF(OR(Selection_Hide2!O31=0, Selection_Hide2!O31=\"\"), \"\", Selection_Hide2!O31)","v":""},{"$f":"IF(OR(Selection_Hide2!P31=0, Selection_Hide2!P31=\"\"), \"\", Selection_Hide2!P31)","v":""},{"$f":"IF(OR(Selection_Hide2!Q31=0, Selection_Hide2!Q31=\"\"), \"\", Selection_Hide2!Q31)","v":""},{"$f":"IF(OR(Selection_Hide2!R31=0, Selection_Hide2!R31=\"\"), \"\", Selection_Hide2!R31)","v":""},{"$f":"IF(OR(Selection_Hide2!S31=0, Selection_Hide2!S31=\"\"), \"\", Selection_Hide2!S31)","v":""},{"$f":"IF(OR(Selection_Hide2!T31=0, Selection_Hide2!T31=\"\"), \"\", Selection_Hide2!T31)","v":""},{"$f":"IF(OR(Selection_Hide2!U31=0, Selection_Hide2!U31=\"\"), \"\", Selection_Hide2!U31)","v":""},{"$f":"IF(OR(Selection_Hide2!V31=0, Selection_Hide2!V31=\"\"), \"\", Selection_Hide2!V31)","v":""},{"$f":"IF(OR(Selection_Hide2!W31=0, Selection_Hide2!W31=\"\"), \"\", Selection_Hide2!W31)","v":""},{"$f":"IF(OR(Selection_Hide2!X31=0, Selection_Hide2!X31=\"\"), \"\", Selection_Hide2!X31)","v":""},{"$f":"IF(OR(Selection_Hide2!Y31=0, Selection_Hide2!Y31=\"\"), \"\", Selection_Hide2!Y31)","v":""},{"$f":"IF(OR(Selection_Hide2!Z31=0, Selection_Hide2!Z31=\"\"), \"\", Selection_Hide2!Z31)","v":""},{"$f":"IF(OR(Selection_Hide2!AA31=0, Selection_Hide2!AA31=\"\"), \"\", Selection_Hide2!AA31)","v":""},{"$f":"IF(OR(Selection_Hide2!AB31=0, Selection_Hide2!AB31=\"\"), \"\", Selection_Hide2!AB31)","v":""}]
[{"$f":"IF(OR(Selection_Hide2!A32=0, Selection_Hide2!A32=\"\"), \"\", Selection_Hide2!A32)","v":""},{"$f":"IF(OR(Selection_Hide2!B32=0, Selection_Hide2!B32=\"\"), \"\", Selection_Hide2!B32)","v":""},{"$f":"IF(OR(Selection_Hide2!C32=0, Selection_Hide2!C32=\"\"), \"\", Selection_Hide2!C32)","v":""},{"$f":"IF(OR(Selection_Hide2!D32=0, Selection_Hide2!D32=\"\"), \"\", Selection_Hide2!D32)","v":""},{"$f":"IF(OR(Selection_Hide2!E32=0, Selection_Hide2!E32=\"\"), \"\", Selection_Hide2!E32)","v":""},{"$f":"IF(OR(Selection_Hide2!F32=0, Selection_Hide2!F32=\"\"), \"\", Selection_Hide2!F32)","v":""},{"$f":"IF(OR(Selection_Hide2!G32=0, Selection_Hide2!G32=\"\"), \"\", Selection_Hide2!G32)","v":""},{"$f":"IF(OR(Selection_Hide2!H32=0, Selection_Hide2!H32=\"\"), \"\", Selection_Hide2!H32)","v":""},{"$f":"IF(OR(Selection_Hide2!I32=0, Selection_Hide2!I32=\"\"), \"\", Selection_Hide2!I32)","v":""},{"$f":"IF(OR(Selection_Hide2!J32=0, Selection_Hide2!J32=\"\"), \"\", Selection_Hide2!J32)","v":""},{"$f":"IF(OR(Selection_Hide2!K32=0, Selection_Hide2!K32=\"\"), \"\", Selection_Hide2!K32)","v":""},{"$f":"IF(OR(Selection_Hide2!L32=0, Selection_Hide2!L32=\"\"), \"\", Selection_Hide2!L32)","v":""},{"$f":"IF(OR(Selection_Hide2!M32=0, Selection_Hide2!M32=\"\"), \"\", Selection_Hide2!M32)","v":""},{"$f":"IF(OR(Selection_Hide2!N32=0, Selection_Hide2!N32=\"\"), \"\", Selection_Hide2!N32)","v":""},{"$f":"IF(OR(Selection_Hide2!O32=0, Selection_Hide2!O32=\"\"), \"\", Selection_Hide2!O32)","v":""},{"$f":"IF(OR(Selection_Hide2!P32=0, Selection_Hide2!P32=\"\"), \"\", Selection_Hide2!P32)","v":""},{"$f":"IF(OR(Selection_Hide2!Q32=0, Selection_Hide2!Q32=\"\"), \"\", Selection_Hide2!Q32)","v":""},{"$f":"IF(OR(Selection_Hide2!R32=0, Selection_Hide2!R32=\"\"), \"\", Selection_Hide2!R32)","v":""},{"$f":"IF(OR(Selection_Hide2!S32=0, Selection_Hide2!S32=\"\"), \"\", Selection_Hide2!S32)","v":""},{"$f":"IF(OR(Selection_Hide2!T32=0, Selection_Hide2!T32=\"\"), \"\", Selection_Hide2!T32)","v":""},{"$f":"IF(OR(Selection_Hide2!U32=0, Selection_Hide2!U32=\"\"), \"\", Selection_Hide2!U32)","v":""},{"$f":"IF(OR(Selection_Hide2!V32=0, Selection_Hide2!V32=\"\"), \"\", Selection_Hide2!V32)","v":""},{"$f":"IF(OR(Selection_Hide2!W32=0, Selection_Hide2!W32=\"\"), \"\", Selection_Hide2!W32)","v":""},{"$f":"IF(OR(Selection_Hide2!X32=0, Selection_Hide2!X32=\"\"), \"\", Selection_Hide2!X32)","v":""},{"$f":"IF(OR(Selection_Hide2!Y32=0, Selection_Hide2!Y32=\"\"), \"\", Selection_Hide2!Y32)","v":""},{"$f":"IF(OR(Selection_Hide2!Z32=0, Selection_Hide2!Z32=\"\"), \"\", Selection_Hide2!Z32)","v":""},{"$f":"IF(OR(Selection_Hide2!AA32=0, Selection_Hide2!AA32=\"\"), \"\", Selection_Hide2!AA32)","v":""},{"$f":"IF(OR(Selection_Hide2!AB32=0, Selection_Hide2!AB32=\"\"), \"\", Selection_Hide2!AB32)","v":""}]
[{"$f":"IF(OR(Selection_Hide2!A33=0, Selection_Hide2!A33=\"\"), \"\", Selection_Hide2!A33)","v":""},{"$f":"IF(OR(Selection_Hide2!B33=0, Selection_Hide2!B33=\"\"), \"\", Selection_Hide2!B33)","v":""},{"$f":"IF(OR(Selection_Hide2!C33=0, Selection_Hide2!C33=\"\"), \"\", Selection_Hide2!C33)","v":""},{"$f":"IF(OR(Selection_Hide2!D33=0, Selection_Hide2!D33=\"\"), \"\", Selection_Hide2!D33)","v":""},{"$f":"IF(OR(Selection_Hide2!E33=0, Selection_Hide2!E33=\"\"), \"\", Selection_Hide2!E33)","v":""},{"$f":"IF(OR(Selection_Hide2!F33=0, Selection_Hide2!F33=\"\"), \"\", Selection_Hide2!F33)","v":""},{"$f":"IF(OR(Selection_Hide2!G33=0, Selection_Hide2!G33=\"\"), \"\", Selection_Hide2!G33)","v":""},{"$f":"IF(OR(Selection_Hide2!H33=0, Selection_Hide2!H33=\"\"), \"\", Selection_Hide2!H33)","v":""},{"$f":"IF(OR(Selection_Hide2!I33=0, Selection_Hide2!I33=\"\"), \"\", Selection_Hide2!I33)","v":""},{"$f":"IF(OR(Selection_Hide2!J33=0, Selection_Hide2!J33=\"\"), \"\", Selection_Hide2!J33)","v":""},{"$f":"IF(OR(Selection_Hide2!K33=0, Selection_Hide2!K33=\"\"), \"\", Selection_Hide2!K33)","v":""},{"$f":"IF(OR(Selection_Hide2!L33=0, Selection_Hide2!L33=\"\"), \"\", Selection_Hide2!L33)","v":""},{"$f":"IF(OR(Selection_Hide2!M33=0, Selection_Hide2!M33=\"\"), \"\", Selection_Hide2!M33)","v":""},{"$f":"IF(OR(Selection_Hide2!N33=0, Selection_Hide2!N33=\"\"), \"\", Selection_Hide2!N33)","v":""},{"$f":"IF(OR(Selection_Hide2!O33=0, Selection_Hide2!O33=\"\"), \"\", Selection_Hide2!O33)","v":""},{"$f":"IF(OR(Selection_Hide2!P33=0, Selection_Hide2!P33=\"\"), \"\", Selection_Hide2!P33)","v":""},{"$f":"IF(OR(Selection_Hide2!Q33=0, Selection_Hide2!Q33=\"\"), \"\", Selection_Hide2!Q33)","v":""},{"$f":"IF(OR(Selection_Hide2!R33=0, Selection_Hide2!R33=\"\"), \"\", Selection_Hide2!R33)","v":""},{"$f":"IF(OR(Selection_Hide2!S33=0, Selection_Hide2!S33=\"\"), \"\", Selection_Hide2!S33)","v":""},{"$f":"IF(OR(Selection_Hide2!T33=0, Selection_Hide2!T33=\"\"), \"\", Selection_Hide2!T33)","v":""},{"$f":"IF(OR(Selection_Hide2!U33=0, Selection_Hide2!U33=\"\"), \"\", Selection_Hide2!U33)","v":""},{"$f":"IF(OR(Selection_Hide2!V33=0, Selection_Hide2!V33=\"\"), \"\", Selection_Hide2!V33)","v":""},{"$f":"IF(OR(Selection_Hide2!W33=0, Selection_Hide2!W33=\"\"), \"\", Selection_Hide2!W33)","v":""},{"$f":"IF(OR(Selection_Hide2!X33=0, Selection_Hide2!X33=\"\"), \"\", Selection_Hide2!X33)","v":""},{"$f":"IF(OR(Selection_Hide2!Y33=0, Selection_Hide2!Y33=\"\"), \"\", Selection_Hide2!Y33)","v":""},{"$f":"IF(OR(Selection_Hide2!Z33=0, Selection_Hide2!Z33=\"\"), \"\", Selection_Hide2!Z33)","v":""},{"$f":"IF(OR(Selection_Hide2!AA33=0, Selection_Hide2!AA33=\"\"), \"\", Selection_Hide2!AA33)","v":""},{"$f":"IF(OR(Selection_Hide2!AB33=0, Selection_Hide2!AB33=\"\"), \"\", Selection_Hide2!AB33)","v":""}]
[{"$f":"IF(OR(Selection_Hide2!A34=0, Selection_Hide2!A34=\"\"), \"\", Selection_Hide2!A34)","v":""},{"$f":"IF(OR(Selection_Hide2!B34=0, Selection_Hide2!B34=\"\"), \"\", Selection_Hide2!B34)","v":""},{"$f":"IF(OR(Selection_Hide2!C34=0, Selection_Hide2!C34=\"\"), \"\", Selection_Hide2!C34)","v":""},{"$f":"IF(OR(Selection_Hide2!D34=0, Selection_Hide2!D34=\"\"), \"\", Selection_Hide2!D34)","v":""},{"$f":"IF(OR(Selection_Hide2!E34=0, Selection_Hide2!E34=\"\"), \"\", Selection_Hide2!E34)","v":""},{"$f":"IF(OR(Selection_Hide2!F34=0, Selection_Hide2!F34=\"\"), \"\", Selection_Hide2!F34)","v":""},{"$f":"IF(OR(Selection_Hide2!G34=0, Selection_Hide2!G34=\"\"), \"\", Selection_Hide2!G34)","v":""},{"$f":"IF(OR(Selection_Hide2!H34=0, Selection_Hide2!H34=\"\"), \"\", Selection_Hide2!H34)","v":""},{"$f":"IF(OR(Selection_Hide2!I34=0, Selection_Hide2!I34=\"\"), \"\", Selection_Hide2!I34)","v":""},{"$f":"IF(OR(Selection_Hide2!J34=0, Selection_Hide2!J34=\"\"), \"\", Selection_Hide2!J34)","v":""},{"$f":"IF(OR(Selection_Hide2!K34=0, Selection_Hide2!K34=\"\"), \"\", Selection_Hide2!K34)","v":""},{"$f":"IF(OR(Selection_Hide2!L34=0, Selection_Hide2!L34=\"\"), \"\", Selection_Hide2!L34)","v":""},{"$f":"IF(OR(Selection_Hide2!M34=0, Selection_Hide2!M34=\"\"), \"\", Selection_Hide2!M34)","v":""},{"$f":"IF(OR(Selection_Hide2!N34=0, Selection_Hide2!N34=\"\"), \"\", Selection_Hide2!N34)","v":""},{"$f":"IF(OR(Selection_Hide2!O34=0, Selection_Hide2!O34=\"\"), \"\", Selection_Hide2!O34)","v":""},{"$f":"IF(OR(Selection_Hide2!P34=0, Selection_Hide2!P34=\"\"), \"\", Selection_Hide2!P34)","v":""},{"$f":"IF(OR(Selection_Hide2!Q34=0, Selection_Hide2!Q34=\"\"), \"\", Selection_Hide2!Q34)","v":""},{"$f":"IF(OR(Selection_Hide2!R34=0, Selection_Hide2!R34=\"\"), \"\", Selection_Hide2!R34)","v":""},{"$f":"IF(OR(Selection_Hide2!S34=0, Selection_Hide2!S34=\"\"), \"\", Selection_Hide2!S34)","v":""},{"$f":"IF(OR(Selection_Hide2!T34=0, Selection_Hide2!T34=\"\"), \"\", Selection_Hide2!T34)","v":""},{"$f":"IF(OR(Selection_Hide2!U34=0, Selection_Hide2!U34=\"\"), \"\", Selection_Hide2!U34)","v":""},{"$f":"IF(OR(Selection_Hide2!V34=0, Selection_Hide2!V34=\"\"), \"\", Selection_Hide2!V34)","v":""},{"$f":"IF(OR(Selection_Hide2!W34=0, Selection_Hide2!W34=\"\"), \"\", Selection_Hide2!W34)","v":""},{"$f":"IF(OR(Selection_Hide2!X34=0, Selection_Hide2!X34=\"\"), \"\", Selection_Hide2!X34)","v":""},{"$f":"IF(OR(Selection_Hide2!Y34=0, Selection_Hide2!Y34=\"\"), \"\", Selection_Hide2!Y34)","v":""},{"$f":"IF(OR(Selection_Hide2!Z34=0, Selection_Hide2!Z34=\"\"), \"\", Selection_Hide2!Z34)","v":""},{"$f":"IF(OR(Selection_Hide2!AA34=0, Selection_Hide2!AA34=\"\"), \"\", Selection_Hide2!AA34)","v":""},{"$f":"IF(OR(Selection_Hide2!AB34=0, Selection_Hide2!AB34=\"\"), \"\", Selection_Hide2!AB34)","v":""}]
[{"$f":"IF(OR(Selection_Hide2!A35=0, Selection_Hide2!A35=\"\"), \"\", Selection_Hide2!A35)","v":""},{"$f":"IF(OR(Selection_Hide2!B35=0, Selection_Hide2!B35=\"\"), \"\", Selection_Hide2!B35)","v":""},{"$f":"IF(OR(Selection_Hide2!C35=0, Selection_Hide2!C35=\"\"), \"\", Selection_Hide2!C35)","v":""},{"$f":"IF(OR(Selection_Hide2!D35=0, Selection_Hide2!D35=\"\"), \"\", Selection_Hide2!D35)","v":""},{"$f":"IF(OR(Selection_Hide2!E35=0, Selection_Hide2!E35=\"\"), \"\", Selection_Hide2!E35)","v":""},{"$f":"IF(OR(Selection_Hide2!F35=0, Selection_Hide2!F35=\"\"), \"\", Selection_Hide2!F35)","v":""},{"$f":"IF(OR(Selection_Hide2!G35=0, Selection_Hide2!G35=\"\"), \"\", Selection_Hide2!G35)","v":""},{"$f":"IF(OR(Selection_Hide2!H35=0, Selection_Hide2!H35=\"\"), \"\", Selection_Hide2!H35)","v":""},{"$f":"IF(OR(Selection_Hide2!I35=0, Selection_Hide2!I35=\"\"), \"\", Selection_Hide2!I35)","v":""},{"$f":"IF(OR(Selection_Hide2!J35=0, Selection_Hide2!J35=\"\"), \"\", Selection_Hide2!J35)","v":""},{"$f":"IF(OR(Selection_Hide2!K35=0, Selection_Hide2!K35=\"\"), \"\", Selection_Hide2!K35)","v":""},{"$f":"IF(OR(Selection_Hide2!L35=0, Selection_Hide2!L35=\"\"), \"\", Selection_Hide2!L35)","v":""},{"$f":"IF(OR(Selection_Hide2!M35=0, Selection_Hide2!M35=\"\"), \"\", Selection_Hide2!M35)","v":""},{"$f":"IF(OR(Selection_Hide2!N35=0, Selection_Hide2!N35=\"\"), \"\", Selection_Hide2!N35)","v":""},{"$f":"IF(OR(Selection_Hide2!O35=0, Selection_Hide2!O35=\"\"), \"\", Selection_Hide2!O35)","v":""},{"$f":"IF(OR(Selection_Hide2!P35=0, Selection_Hide2!P35=\"\"), \"\", Selection_Hide2!P35)","v":""},{"$f":"IF(OR(Selection_Hide2!Q35=0, Selection_Hide2!Q35=\"\"), \"\", Selection_Hide2!Q35)","v":""},{"$f":"IF(OR(Selection_Hide2!R35=0, Selection_Hide2!R35=\"\"), \"\", Selection_Hide2!R35)","v":""},{"$f":"IF(OR(Selection_Hide2!S35=0, Selection_Hide2!S35=\"\"), \"\", Selection_Hide2!S35)","v":""},{"$f":"IF(OR(Selection_Hide2!T35=0, Selection_Hide2!T35=\"\"), \"\", Selection_Hide2!T35)","v":""},{"$f":"IF(OR(Selection_Hide2!U35=0, Selection_Hide2!U35=\"\"), \"\", Selection_Hide2!U35)","v":""},{"$f":"IF(OR(Selection_Hide2!V35=0, Selection_Hide2!V35=\"\"), \"\", Selection_Hide2!V35)","v":""},{"$f":"IF(OR(Selection_Hide2!W35=0, Selection_Hide2!W35=\"\"), \"\", Selection_Hide2!W35)","v":""},{"$f":"IF(OR(Selection_Hide2!X35=0, Selection_Hide2!X35=\"\"), \"\", Selection_Hide2!X35)","v":""},{"$f":"IF(OR(Selection_Hide2!Y35=0, Selection_Hide2!Y35=\"\"), \"\", Selection_Hide2!Y35)","v":""},{"$f":"IF(OR(Selection_Hide2!Z35=0, Selection_Hide2!Z35=\"\"), \"\", Selection_Hide2!Z35)","v":""},{"$f":"IF(OR(Selection_Hide2!AA35=0, Selection_Hide2!AA35=\"\"), \"\", Selection_Hide2!AA35)","v":""},{"$f":"IF(OR(Selection_Hide2!AB35=0, Selection_Hide2!AB35=\"\"), \"\", Selection_Hide2!AB35)","v":""}]
[{"$f":"IF(OR(Selection_Hide2!A36=0, Selection_Hide2!A36=\"\"), \"\", Selection_Hide2!A36)","v":""},{"$f":"IF(OR(Selection_Hide2!B36=0, Selection_Hide2!B36=\"\"), \"\", Selection_Hide2!B36)","v":""},{"$f":"IF(OR(Selection_Hide2!C36=0, Selection_Hide2!C36=\"\"), \"\", Selection_Hide2!C36)","v":""},{"$f":"IF(OR(Selection_Hide2!D36=0, Selection_Hide2!D36=\"\"), \"\", Selection_Hide2!D36)","v":""},{"$f":"IF(OR(Selection_Hide2!E36=0, Selection_Hide2!E36=\"\"), \"\", Selection_Hide2!E36)","v":""},{"$f":"IF(OR(Selection_Hide2!F36=0, Selection_Hide2!F36=\"\"), \"\", Selection_Hide2!F36)","v":""},{"$f":"IF(OR(Selection_Hide2!G36=0, Selection_Hide2!G36=\"\"), \"\", Selection_Hide2!G36)","v":""},{"$f":"IF(OR(Selection_Hide2!H36=0, Selection_Hide2!H36=\"\"), \"\", Selection_Hide2!H36)","v":""},{"$f":"IF(OR(Selection_Hide2!I36=0, Selection_Hide2!I36=\"\"), \"\", Selection_Hide2!I36)","v":""},{"$f":"IF(OR(Selection_Hide2!J36=0, Selection_Hide2!J36=\"\"), \"\", Selection_Hide2!J36)","v":""},{"$f":"IF(OR(Selection_Hide2!K36=0, Selection_Hide2!K36=\"\"), \"\", Selection_Hide2!K36)","v":""},{"$f":"IF(OR(Selection_Hide2!L36=0, Selection_Hide2!L36=\"\"), \"\", Selection_Hide2!L36)","v":""},{"$f":"IF(OR(Selection_Hide2!M36=0, Selection_Hide2!M36=\"\"), \"\", Selection_Hide2!M36)","v":""},{"$f":"IF(OR(Selection_Hide2!N36=0, Selection_Hide2!N36=\"\"), \"\", Selection_Hide2!N36)","v":""},{"$f":"IF(OR(Selection_Hide2!O36=0, Selection_Hide2!O36=\"\"), \"\", Selection_Hide2!O36)","v":""},{"$f":"IF(OR(Selection_Hide2!P36=0, Selection_Hide2!P36=\"\"), \"\", Selection_Hide2!P36)","v":""},{"$f":"IF(OR(Selection_Hide2!Q36=0, Selection_Hide2!Q36=\"\"), \"\", Selection_Hide2!Q36)","v":""},{"$f":"IF(OR(Selection_Hide2!R36=0, Selection_Hide2!R36=\"\"), \"\", Selection_Hide2!R36)","v":""},{"$f":"IF(OR(Selection_Hide2!S36=0, Selection_Hide2!S36=\"\"), \"\", Selection_Hide2!S36)","v":""},{"$f":"IF(OR(Selection_Hide2!T36=0, Selection_Hide2!T36=\"\"), \"\", Selection_Hide2!T36)","v":""},{"$f":"IF(OR(Selection_Hide2!U36=0, Selection_Hide2!U36=\"\"), \"\", Selection_Hide2!U36)","v":""},{"$f":"IF(OR(Selection_Hide2!V36=0, Selection_Hide2!V36=\"\"), \"\", Selection_Hide2!V36)","v":""},{"$f":"IF(OR(Selection_Hide2!W36=0, Selection_Hide2!W36=\"\"), \"\", Selection_Hide2!W36)","v":""},{"$f":"IF(OR(Selection_Hide2!X36=0, Selection_Hide2!X36=\"\"), \"\", Selection_Hide2!X36)","v":""},{"$f":"IF(OR(Selection_Hide2!Y36=0, Selection_Hide2!Y36=\"\"), \"\", Selection_Hide2!Y36)","v":""},{"$f":"IF(OR(Selection_Hide2!Z36=0, Selection_Hide2!Z36=\"\"), \"\", Selection_Hide2!Z36)","v":""},{"$f":"IF(OR(Selection_Hide2!AA36=0, Selection_Hide2!AA36=\"\"), \"\", Selection_Hide2!AA36)","v":""},{"$f":"IF(OR(Selection_Hide2!AB36=0, Selection_Hide2!AB36=\"\"), \"\", Selection_Hide2!AB36)","v":""}]
[{"$f":"IF(OR(Selection_Hide2!A37=0, Selection_Hide2!A37=\"\"), \"\", Selection_Hide2!A37)","v":""},{"$f":"IF(OR(Selection_Hide2!B37=0, Selection_Hide2!B37=\"\"), \"\", Selection_Hide2!B37)","v":""},{"$f":"IF(OR(Selection_Hide2!C37=0, Selection_Hide2!C37=\"\"), \"\", Selection_Hide2!C37)","v":""},{"$f":"IF(OR(Selection_Hide2!D37=0, Selection_Hide2!D37=\"\"), \"\", Selection_Hide2!D37)","v":""},{"$f":"IF(OR(Selection_Hide2!E37=0, Selection_Hide2!E37=\"\"), \"\", Selection_Hide2!E37)","v":""},{"$f":"IF(OR(Selection_Hide2!F37=0, Selection_Hide2!F37=\"\"), \"\", Selection_Hide2!F37)","v":""},{"$f":"IF(OR(Selection_Hide2!G37=0, Selection_Hide2!G37=\"\"), \"\", Selection_Hide2!G37)","v":""},{"$f":"IF(OR(Selection_Hide2!H37=0, Selection_Hide2!H37=\"\"), \"\", Selection_Hide2!H37)","v":""},{"$f":"IF(OR(Selection_Hide2!I37=0, Selection_Hide2!I37=\"\"), \"\", Selection_Hide2!I37)","v":""},{"$f":"IF(OR(Selection_Hide2!J37=0, Selection_Hide2!J37=\"\"), \"\", Selection_Hide2!J37)","v":""},{"$f":"IF(OR(Selection_Hide2!K37=0, Selection_Hide2!K37=\"\"), \"\", Selection_Hide2!K37)","v":""},{"$f":"IF(OR(Selection_Hide2!L37=0, Selection_Hide2!L37=\"\"), \"\", Selection_Hide2!L37)","v":""},{"$f":"IF(OR(Selection_Hide2!M37=0, Selection_Hide2!M37=\"\"), \"\", Selection_Hide2!M37)","v":""},{"$f":"IF(OR(Selection_Hide2!N37=0, Selection_Hide2!N37=\"\"), \"\", Selection_Hide2!N37)","v":""},{"$f":"IF(OR(Selection_Hide2!O37=0, Selection_Hide2!O37=\"\"), \"\", Selection_Hide2!O37)","v":""},{"$f":"IF(OR(Selection_Hide2!P37=0, Selection_Hide2!P37=\"\"), \"\", Selection_Hide2!P37)","v":""},{"$f":"IF(OR(Selection_Hide2!Q37=0, Selection_Hide2!Q37=\"\"), \"\", Selection_Hide2!Q37)","v":""},{"$f":"IF(OR(Selection_Hide2!R37=0, Selection_Hide2!R37=\"\"), \"\", Selection_Hide2!R37)","v":""},{"$f":"IF(OR(Selection_Hide2!S37=0, Selection_Hide2!S37=\"\"), \"\", Selection_Hide2!S37)","v":""},{"$f":"IF(OR(Selection_Hide2!T37=0, Selection_Hide2!T37=\"\"), \"\", Selection_Hide2!T37)","v":""},{"$f":"IF(OR(Selection_Hide2!U37=0, Selection_Hide2!U37=\"\"), \"\", Selection_Hide2!U37)","v":""},{"$f":"IF(OR(Selection_Hide2!V37=0, Selection_Hide2!V37=\"\"), \"\", Selection_Hide2!V37)","v":""},{"$f":"IF(OR(Selection_Hide2!W37=0, Selection_Hide2!W37=\"\"), \"\", Selection_Hide2!W37)","v":""},{"$f":"IF(OR(Selection_Hide2!X37=0, Selection_Hide2!X37=\"\"), \"\", Selection_Hide2!X37)","v":""},{"$f":"IF(OR(Selection_Hide2!Y37=0, Selection_Hide2!Y37=\"\"), \"\", Selection_Hide2!Y37)","v":""},{"$f":"IF(OR(Selection_Hide2!Z37=0, Selection_Hide2!Z37=\"\"), \"\", Selection_Hide2!Z37)","v":""},{"$f":"IF(OR(Selection_Hide2!AA37=0, Selection_Hide2!AA37=\"\"), \"\", Selection_Hide2!AA37)","v":""},{"$f":"IF(OR(Selection_Hide2!AB37=0, Selection_Hide2!AB37=\"\"), \"\", Selection_Hide2!AB37)","v":""}]
[{"$f":"IF(OR(Selection_Hide2!A38=0, Selection_Hide2!A38=\"\"), \"\", Selection_Hide2!A38)","v":""},{"$f":"IF(OR(Selection_Hide2!B38=0, Selection_Hide2!B38=\"\"), \"\", Selection_Hide2!B38)","v":""},{"$f":"IF(OR(Selection_Hide2!C38=0, Selection_Hide2!C38=\"\"), \"\", Selection_Hide2!C38)","v":""},{"$f":"IF(OR(Selection_Hide2!D38=0, Selection_Hide2!D38=\"\"), \"\", Selection_Hide2!D38)","v":""},{"$f":"IF(OR(Selection_Hide2!E38=0, Selection_Hide2!E38=\"\"), \"\", Selection_Hide2!E38)","v":""},{"$f":"IF(OR(Selection_Hide2!F38=0, Selection_Hide2!F38=\"\"), \"\", Selection_Hide2!F38)","v":""},{"$f":"IF(OR(Selection_Hide2!G38=0, Selection_Hide2!G38=\"\"), \"\", Selection_Hide2!G38)","v":""},{"$f":"IF(OR(Selection_Hide2!H38=0, Selection_Hide2!H38=\"\"), \"\", Selection_Hide2!H38)","v":""},{"$f":"IF(OR(Selection_Hide2!I38=0, Selection_Hide2!I38=\"\"), \"\", Selection_Hide2!I38)","v":""},{"$f":"IF(OR(Selection_Hide2!J38=0, Selection_Hide2!J38=\"\"), \"\", Selection_Hide2!J38)","v":""},{"$f":"IF(OR(Selection_Hide2!K38=0, Selection_Hide2!K38=\"\"), \"\", Selection_Hide2!K38)","v":""},{"$f":"IF(OR(Selection_Hide2!L38=0, Selection_Hide2!L38=\"\"), \"\", Selection_Hide2!L38)","v":""},{"$f":"IF(OR(Selection_Hide2!M38=0, Selection_Hide2!M38=\"\"), \"\", Selection_Hide2!M38)","v":""},{"$f":"IF(OR(Selection_Hide2!N38=0, Selection_Hide2!N38=\"\"), \"\", Selection_Hide2!N38)","v":""},{"$f":"IF(OR(Selection_Hide2!O38=0, Selection_Hide2!O38=\"\"), \"\", Selection_Hide2!O38)","v":""},{"$f":"IF(OR(Selection_Hide2!P38=0, Selection_Hide2!P38=\"\"), \"\", Selection_Hide2!P38)","v":""},{"$f":"IF(OR(Selection_Hide2!Q38=0, Selection_Hide2!Q38=\"\"), \"\", Selection_Hide2!Q38)","v":""},{"$f":"IF(OR(Selection_Hide2!R38=0, Selection_Hide2!R38=\"\"), \"\", Selection_Hide2!R38)","v":""},{"$f":"IF(OR(Selection_Hide2!S38=0, Selection_Hide2!S38=\"\"), \"\", Selection_Hide2!S38)","v":""},{"$f":"IF(OR(Selection_Hide2!T38=0, Selection_Hide2!T38=\"\"), \"\", Selection_Hide2!T38)","v":""},{"$f":"IF(OR(Selection_Hide2!U38=0, Selection_Hide2!U38=\"\"), \"\", Selection_Hide2!U38)","v":""},{"$f":"IF(OR(Selection_Hide2!V38=0, Selection_Hide2!V38=\"\"), \"\", Selection_Hide2!V38)","v":""},{"$f":"IF(OR(Selection_Hide2!W38=0, Selection_Hide2!W38=\"\"), \"\", Selection_Hide2!W38)","v":""},{"$f":"IF(OR(Selection_Hide2!X38=0, Selection_Hide2!X38=\"\"), \"\", Selection_Hide2!X38)","v":""},{"$f":"IF(OR(Selection_Hide2!Y38=0, Selection_Hide2!Y38=\"\"), \"\", Selection_Hide2!Y38)","v":""},{"$f":"IF(OR(Selection_Hide2!Z38=0, Selection_Hide2!Z38=\"\"), \"\", Selection_Hide2!Z38)","v":""},{"$f":"IF(OR(Selection_Hide2!AA38=0, Selection_Hide2!AA38=\"\"), \"\", Selection_Hide2!AA38)","v":""},{"$f":"IF(OR(Selection_Hide2!AB38=0, Selection_Hide2!AB38=\"\"), \"\", Selection_Hide2!AB38)","v":""}]
[{"$f":"IF(OR(Selection_Hide2!A39=0, Selection_Hide2!A39=\"\"), \"\", Selection_Hide2!A39)","v":""},{"$f":"IF(OR(Selection_Hide2!B39=0, Selection_Hide2!B39=\"\"), \"\", Selection_Hide2!B39)","v":""},{"$f":"IF(OR(Selection_Hide2!C39=0, Selection_Hide2!C39=\"\"), \"\", Selection_Hide2!C39)","v":""},{"$f":"IF(OR(Selection_Hide2!D39=0, Selection_Hide2!D39=\"\"), \"\", Selection_Hide2!D39)","v":""},{"$f":"IF(OR(Selection_Hide2!E39=0, Selection_Hide2!E39=\"\"), \"\", Selection_Hide2!E39)","v":""},{"$f":"IF(OR(Selection_Hide2!F39=0, Selection_Hide2!F39=\"\"), \"\", Selection_Hide2!F39)","v":""},{"$f":"IF(OR(Selection_Hide2!G39=0, Selection_Hide2!G39=\"\"), \"\", Selection_Hide2!G39)","v":""},{"$f":"IF(OR(Selection_Hide2!H39=0, Selection_Hide2!H39=\"\"), \"\", Selection_Hide2!H39)","v":""},{"$f":"IF(OR(Selection_Hide2!I39=0, Selection_Hide2!I39=\"\"), \"\", Selection_Hide2!I39)","v":""},{"$f":"IF(OR(Selection_Hide2!J39=0, Selection_Hide2!J39=\"\"), \"\", Selection_Hide2!J39)","v":""},{"$f":"IF(OR(Selection_Hide2!K39=0, Selection_Hide2!K39=\"\"), \"\", Selection_Hide2!K39)","v":""},{"$f":"IF(OR(Selection_Hide2!L39=0, Selection_Hide2!L39=\"\"), \"\", Selection_Hide2!L39)","v":""},{"$f":"IF(OR(Selection_Hide2!M39=0, Selection_Hide2!M39=\"\"), \"\", Selection_Hide2!M39)","v":""},{"$f":"IF(OR(Selection_Hide2!N39=0, Selection_Hide2!N39=\"\"), \"\", Selection_Hide2!N39)","v":""},{"$f":"IF(OR(Selection_Hide2!O39=0, Selection_Hide2!O39=\"\"), \"\", Selection_Hide2!O39)","v":""},{"$f":"IF(OR(Selection_Hide2!P39=0, Selection_Hide2!P39=\"\"), \"\", Selection_Hide2!P39)","v":""},{"$f":"IF(OR(Selection_Hide2!Q39=0, Selection_Hide2!Q39=\"\"), \"\", Selection_Hide2!Q39)","v":""},{"$f":"IF(OR(Selection_Hide2!R39=0, Selection_Hide2!R39=\"\"), \"\", Selection_Hide2!R39)","v":""},{"$f":"IF(OR(Selection_Hide2!S39=0, Selection_Hide2!S39=\"\"), \"\", Selection_Hide2!S39)","v":""},{"$f":"IF(OR(Selection_Hide2!T39=0, Selection_Hide2!T39=\"\"), \"\", Selection_Hide2!T39)","v":""},{"$f":"IF(OR(Selection_Hide2!U39=0, Selection_Hide2!U39=\"\"), \"\", Selection_Hide2!U39)","v":""},{"$f":"IF(OR(Selection_Hide2!V39=0, Selection_Hide2!V39=\"\"), \"\", Selection_Hide2!V39)","v":""},{"$f":"IF(OR(Selection_Hide2!W39=0, Selection_Hide2!W39=\"\"), \"\", Selection_Hide2!W39)","v":""},{"$f":"IF(OR(Selection_Hide2!X39=0, Selection_Hide2!X39=\"\"), \"\", Selection_Hide2!X39)","v":""},{"$f":"IF(OR(Selection_Hide2!Y39=0, Selection_Hide2!Y39=\"\"), \"\", Selection_Hide2!Y39)","v":""},{"$f":"IF(OR(Selection_Hide2!Z39=0, Selection_Hide2!Z39=\"\"), \"\", Selection_Hide2!Z39)","v":""},{"$f":"IF(OR(Selection_Hide2!AA39=0, Selection_Hide2!AA39=\"\"), \"\", Selection_Hide2!AA39)","v":""},{"$f":"IF(OR(Selection_Hide2!AB39=0, Selection_Hide2!AB39=\"\"), \"\", Selection_Hide2!AB39)","v":""}]
[{"$f":"IF(OR(Selection_Hide2!A40=0, Selection_Hide2!A40=\"\"), \"\", Selection_Hide2!A40)","v":""},{"$f":"IF(OR(Selection_Hide2!B40=0, Selection_Hide2!B40=\"\"), \"\", Selection_Hide2!B40)","v":""},{"$f":"IF(OR(Selection_Hide2!C40=0, Selection_Hide2!C40=\"\"), \"\", Selection_Hide2!C40)","v":""},{"$f":"IF(OR(Selection_Hide2!D40=0, Selection_Hide2!D40=\"\"), \"\", Selection_Hide2!D40)","v":""},{"$f":"IF(OR(Selection_Hide2!E40=0, Selection_Hide2!E40=\"\"), \"\", Selection_Hide2!E40)","v":""},{"$f":"IF(OR(Selection_Hide2!F40=0, Selection_Hide2!F40=\"\"), \"\", Selection_Hide2!F40)","v":""},{"$f":"IF(OR(Selection_Hide2!G40=0, Selection_Hide2!G40=\"\"), \"\", Selection_Hide2!G40)","v":""},{"$f":"IF(OR(Selection_Hide2!H40=0, Selection_Hide2!H40=\"\"), \"\", Selection_Hide2!H40)","v":""},{"$f":"IF(OR(Selection_Hide2!I40=0, Selection_Hide2!I40=\"\"), \"\", Selection_Hide2!I40)","v":""},{"$f":"IF(OR(Selection_Hide2!J40=0, Selection_Hide2!J40=\"\"), \"\", Selection_Hide2!J40)","v":""},{"$f":"IF(OR(Selection_Hide2!K40=0, Selection_Hide2!K40=\"\"), \"\", Selection_Hide2!K40)","v":""},{"$f":"IF(OR(Selection_Hide2!L40=0, Selection_Hide2!L40=\"\"), \"\", Selection_Hide2!L40)","v":""},{"$f":"IF(OR(Selection_Hide2!M40=0, Selection_Hide2!M40=\"\"), \"\", Selection_Hide2!M40)","v":""},{"$f":"IF(OR(Selection_Hide2!N40=0, Selection_Hide2!N40=\"\"), \"\", Selection_Hide2!N40)","v":""},{"$f":"IF(OR(Selection_Hide2!O40=0, Selection_Hide2!O40=\"\"), \"\", Selection_Hide2!O40)","v":""},{"$f":"IF(OR(Selection_Hide2!P40=0, Selection_Hide2!P40=\"\"), \"\", Selection_Hide2!P40)","v":""},{"$f":"IF(OR(Selection_Hide2!Q40=0, Selection_Hide2!Q40=\"\"), \"\", Selection_Hide2!Q40)","v":""},{"$f":"IF(OR(Selection_Hide2!R40=0, Selection_Hide2!R40=\"\"), \"\", Selection_Hide2!R40)","v":""},{"$f":"IF(OR(Selection_Hide2!S40=0, Selection_Hide2!S40=\"\"), \"\", Selection_Hide2!S40)","v":""},{"$f":"IF(OR(Selection_Hide2!T40=0, Selection_Hide2!T40=\"\"), \"\", Selection_Hide2!T40)","v":""},{"$f":"IF(OR(Selection_Hide2!U40=0, Selection_Hide2!U40=\"\"), \"\", Selection_Hide2!U40)","v":""},{"$f":"IF(OR(Selection_Hide2!V40=0, Selection_Hide2!V40=\"\"), \"\", Selection_Hide2!V40)","v":""},{"$f":"IF(OR(Selection_Hide2!W40=0, Selection_Hide2!W40=\"\"), \"\", Selection_Hide2!W40)","v":""},{"$f":"IF(OR(Selection_Hide2!X40=0, Selection_Hide2!X40=\"\"), \"\", Selection_Hide2!X40)","v":""},{"$f":"IF(OR(Selection_Hide2!Y40=0, Selection_Hide2!Y40=\"\"), \"\", Selection_Hide2!Y40)","v":""},{"$f":"IF(OR(Selection_Hide2!Z40=0, Selection_Hide2!Z40=\"\"), \"\", Selection_Hide2!Z40)","v":""},{"$f":"IF(OR(Selection_Hide2!AA40=0, Selection_Hide2!AA40=\"\"), \"\", Selection_Hide2!AA40)","v":""},{"$f":"IF(OR(Selection_Hide2!AB40=0, Selection_Hide2!AB40=\"\"), \"\", Selection_Hide2!AB40)","v":""}]
[{"$f":"IF(OR(Selection_Hide2!A41=0, Selection_Hide2!A41=\"\"), \"\", Selection_Hide2!A41)","v":""},{"$f":"IF(OR(Selection_Hide2!B41=0, Selection_Hide2!B41=\"\"), \"\", Selection_Hide2!B41)","v":""},{"$f":"IF(OR(Selection_Hide2!C41=0, Selection_Hide2!C41=\"\"), \"\", Selection_Hide2!C41)","v":""},{"$f":"IF(OR(Selection_Hide2!D41=0, Selection_Hide2!D41=\"\"), \"\", Selection_Hide2!D41)","v":""},{"$f":"IF(OR(Selection_Hide2!E41=0, Selection_Hide2!E41=\"\"), \"\", Selection_Hide2!E41)","v":""},{"$f":"IF(OR(Selection_Hide2!F41=0, Selection_Hide2!F41=\"\"), \"\", Selection_Hide2!F41)","v":""},{"$f":"IF(OR(Selection_Hide2!G41=0, Selection_Hide2!G41=\"\"), \"\", Selection_Hide2!G41)","v":""},{"$f":"IF(OR(Selection_Hide2!H41=0, Selection_Hide2!H41=\"\"), \"\", Selection_Hide2!H41)","v":""},{"$f":"IF(OR(Selection_Hide2!I41=0, Selection_Hide2!I41=\"\"), \"\", Selection_Hide2!I41)","v":""},{"$f":"IF(OR(Selection_Hide2!J41=0, Selection_Hide2!J41=\"\"), \"\", Selection_Hide2!J41)","v":""},{"$f":"IF(OR(Selection_Hide2!K41=0, Selection_Hide2!K41=\"\"), \"\", Selection_Hide2!K41)","v":""},{"$f":"IF(OR(Selection_Hide2!L41=0, Selection_Hide2!L41=\"\"), \"\", Selection_Hide2!L41)","v":""},{"$f":"IF(OR(Selection_Hide2!M41=0, Selection_Hide2!M41=\"\"), \"\", Selection_Hide2!M41)","v":""},{"$f":"IF(OR(Selection_Hide2!N41=0, Selection_Hide2!N41=\"\"), \"\", Selection_Hide2!N41)","v":""},{"$f":"IF(OR(Selection_Hide2!O41=0, Selection_Hide2!O41=\"\"), \"\", Selection_Hide2!O41)","v":""},{"$f":"IF(OR(Selection_Hide2!P41=0, Selection_Hide2!P41=\"\"), \"\", Selection_Hide2!P41)","v":""},{"$f":"IF(OR(Selection_Hide2!Q41=0, Selection_Hide2!Q41=\"\"), \"\", Selection_Hide2!Q41)","v":""},{"$f":"IF(OR(Selection_Hide2!R41=0, Selection_Hide2!R41=\"\"), \"\", Selection_Hide2!R41)","v":""},{"$f":"IF(OR(Selection_Hide2!S41=0, Selection_Hide2!S41=\"\"), \"\", Selection_Hide2!S41)","v":""},{"$f":"IF(OR(Selection_Hide2!T41=0, Selection_Hide2!T41=\"\"), \"\", Selection_Hide2!T41)","v":""},{"$f":"IF(OR(Selection_Hide2!U41=0, Selection_Hide2!U41=\"\"), \"\", Selection_Hide2!U41)","v":""},{"$f":"IF(OR(Selection_Hide2!V41=0, Selection_Hide2!V41=\"\"), \"\", Selection_Hide2!V41)","v":""},{"$f":"IF(OR(Selection_Hide2!W41=0, Selection_Hide2!W41=\"\"), \"\", Selection_Hide2!W41)","v":""},{"$f":"IF(OR(Selection_Hide2!X41=0, Selection_Hide2!X41=\"\"), \"\", Selection_Hide2!X41)","v":""},{"$f":"IF(OR(Selection_Hide2!Y41=0, Selection_Hide2!Y41=\"\"), \"\", Selection_Hide2!Y41)","v":""},{"$f":"IF(OR(Selection_Hide2!Z41=0, Selection_Hide2!Z41=\"\"), \"\", Selection_Hide2!Z41)","v":""},{"$f":"IF(OR(Selection_Hide2!AA41=0, Selection_Hide2!AA41=\"\"), \"\", Selection_Hide2!AA41)","v":""},{"$f":"IF(OR(Selection_Hide2!AB41=0, Selection_Hide2!AB41=\"\"), \"\", Selection_Hide2!AB41)","v":""}]
[{"$f":"IF(OR(Selection_Hide2!A42=0, Selection_Hide2!A42=\"\"), \"\", Selection_Hide2!A42)","v":""},{"$f":"IF(OR(Selection_Hide2!B42=0, Selection_Hide2!B42=\"\"), \"\", Selection_Hide2!B42)","v":""},{"$f":"IF(OR(Selection_Hide2!C42=0, Selection_Hide2!C42=\"\"), \"\", Selection_Hide2!C42)","v":""},{"$f":"IF(OR(Selection_Hide2!D42=0, Selection_Hide2!D42=\"\"), \"\", Selection_Hide2!D42)","v":""},{"$f":"IF(OR(Selection_Hide2!E42=0, Selection_Hide2!E42=\"\"), \"\", Selection_Hide2!E42)","v":""},{"$f":"IF(OR(Selection_Hide2!F42=0, Selection_Hide2!F42=\"\"), \"\", Selection_Hide2!F42)","v":""},{"$f":"IF(OR(Selection_Hide2!G42=0, Selection_Hide2!G42=\"\"), \"\", Selection_Hide2!G42)","v":""},{"$f":"IF(OR(Selection_Hide2!H42=0, Selection_Hide2!H42=\"\"), \"\", Selection_Hide2!H42)","v":""},{"$f":"IF(OR(Selection_Hide2!I42=0, Selection_Hide2!I42=\"\"), \"\", Selection_Hide2!I42)","v":""},{"$f":"IF(OR(Selection_Hide2!J42=0, Selection_Hide2!J42=\"\"), \"\", Selection_Hide2!J42)","v":""},{"$f":"IF(OR(Selection_Hide2!K42=0, Selection_Hide2!K42=\"\"), \"\", Selection_Hide2!K42)","v":""},{"$f":"IF(OR(Selection_Hide2!L42=0, Selection_Hide2!L42=\"\"), \"\", Selection_Hide2!L42)","v":""},{"$f":"IF(OR(Selection_Hide2!M42=0, Selection_Hide2!M42=\"\"), \"\", Selection_Hide2!M42)","v":""},{"$f":"IF(OR(Selection_Hide2!N42=0, Selection_Hide2!N42=\"\"), \"\", Selection_Hide2!N42)","v":""},{"$f":"IF(OR(Selection_Hide2!O42=0, Selection_Hide2!O42=\"\"), \"\", Selection_Hide2!O42)","v":""},{"$f":"IF(OR(Selection_Hide2!P42=0, Selection_Hide2!P42=\"\"), \"\", Selection_Hide2!P42)","v":""},{"$f":"IF(OR(Selection_Hide2!Q42=0, Selection_Hide2!Q42=\"\"), \"\", Selection_Hide2!Q42)","v":""},{"$f":"IF(OR(Selection_Hide2!R42=0, Selection_Hide2!R42=\"\"), \"\", Selection_Hide2!R42)","v":""},{"$f":"IF(OR(Selection_Hide2!S42=0, Selection_Hide2!S42=\"\"), \"\", Selection_Hide2!S42)","v":""},{"$f":"IF(OR(Selection_Hide2!T42=0, Selection_Hide2!T42=\"\"), \"\", Selection_Hide2!T42)","v":""},{"$f":"IF(OR(Selection_Hide2!U42=0, Selection_Hide2!U42=\"\"), \"\", Selection_Hide2!U42)","v":""},{"$f":"IF(OR(Selection_Hide2!V42=0, Selection_Hide2!V42=\"\"), \"\", Selection_Hide2!V42)","v":""},{"$f":"IF(OR(Selection_Hide2!W42=0, Selection_Hide2!W42=\"\"), \"\", Selection_Hide2!W42)","v":""},{"$f":"IF(OR(Selection_Hide2!X42=0, Selection_Hide2!X42=\"\"), \"\", Selection_Hide2!X42)","v":""},{"$f":"IF(OR(Selection_Hide2!Y42=0, Selection_Hide2!Y42=\"\"), \"\", Selection_Hide2!Y42)","v":""},{"$f":"IF(OR(Selection_Hide2!Z42=0, Selection_Hide2!Z42=\"\"), \"\", Selection_Hide2!Z42)","v":""},{"$f":"IF(OR(Selection_Hide2!AA42=0, Selection_Hide2!AA42=\"\"), \"\", Selection_Hide2!AA42)","v":""},{"$f":"IF(OR(Selection_Hide2!AB42=0, Selection_Hide2!AB42=\"\"), \"\", Selection_Hide2!AB42)","v":""}]
[{"$f":"IF(OR(Selection_Hide2!A43=0, Selection_Hide2!A43=\"\"), \"\", Selection_Hide2!A43)","v":""},{"$f":"IF(OR(Selection_Hide2!B43=0, Selection_Hide2!B43=\"\"), \"\", Selection_Hide2!B43)","v":""},{"$f":"IF(OR(Selection_Hide2!C43=0, Selection_Hide2!C43=\"\"), \"\", Selection_Hide2!C43)","v":""},{"$f":"IF(OR(Selection_Hide2!D43=0, Selection_Hide2!D43=\"\"), \"\", Selection_Hide2!D43)","v":""},{"$f":"IF(OR(Selection_Hide2!E43=0, Selection_Hide2!E43=\"\"), \"\", Selection_Hide2!E43)","v":""},{"$f":"IF(OR(Selection_Hide2!F43=0, Selection_Hide2!F43=\"\"), \"\", Selection_Hide2!F43)","v":""},{"$f":"IF(OR(Selection_Hide2!G43=0, Selection_Hide2!G43=\"\"), \"\", Selection_Hide2!G43)","v":""},{"$f":"IF(OR(Selection_Hide2!H43=0, Selection_Hide2!H43=\"\"), \"\", Selection_Hide2!H43)","v":""},{"$f":"IF(OR(Selection_Hide2!I43=0, Selection_Hide2!I43=\"\"), \"\", Selection_Hide2!I43)","v":""},{"$f":"IF(OR(Selection_Hide2!J43=0, Selection_Hide2!J43=\"\"), \"\", Selection_Hide2!J43)","v":""},{"$f":"IF(OR(Selection_Hide2!K43=0, Selection_Hide2!K43=\"\"), \"\", Selection_Hide2!K43)","v":""},{"$f":"IF(OR(Selection_Hide2!L43=0, Selection_Hide2!L43=\"\"), \"\", Selection_Hide2!L43)","v":""},{"$f":"IF(OR(Selection_Hide2!M43=0, Selection_Hide2!M43=\"\"), \"\", Selection_Hide2!M43)","v":""},{"$f":"IF(OR(Selection_Hide2!N43=0, Selection_Hide2!N43=\"\"), \"\", Selection_Hide2!N43)","v":""},{"$f":"IF(OR(Selection_Hide2!O43=0, Selection_Hide2!O43=\"\"), \"\", Selection_Hide2!O43)","v":""},{"$f":"IF(OR(Selection_Hide2!P43=0, Selection_Hide2!P43=\"\"), \"\", Selection_Hide2!P43)","v":""},{"$f":"IF(OR(Selection_Hide2!Q43=0, Selection_Hide2!Q43=\"\"), \"\", Selection_Hide2!Q43)","v":""},{"$f":"IF(OR(Selection_Hide2!R43=0, Selection_Hide2!R43=\"\"), \"\", Selection_Hide2!R43)","v":""},{"$f":"IF(OR(Selection_Hide2!S43=0, Selection_Hide2!S43=\"\"), \"\", Selection_Hide2!S43)","v":""},{"$f":"IF(OR(Selection_Hide2!T43=0, Selection_Hide2!T43=\"\"), \"\", Selection_Hide2!T43)","v":""},{"$f":"IF(OR(Selection_Hide2!U43=0, Selection_Hide2!U43=\"\"), \"\", Selection_Hide2!U43)","v":""},{"$f":"IF(OR(Selection_Hide2!V43=0, Selection_Hide2!V43=\"\"), \"\", Selection_Hide2!V43)","v":""},{"$f":"IF(OR(Selection_Hide2!W43=0, Selection_Hide2!W43=\"\"), \"\", Selection_Hide2!W43)","v":""},{"$f":"IF(OR(Selection_Hide2!X43=0, Selection_Hide2!X43=\"\"), \"\", Selection_Hide2!X43)","v":""},{"$f":"IF(OR(Selection_Hide2!Y43=0, Selection_Hide2!Y43=\"\"), \"\", Selection_Hide2!Y43)","v":""},{"$f":"IF(OR(Selection_Hide2!Z43=0, Selection_Hide2!Z43=\"\"), \"\", Selection_Hide2!Z43)","v":""},{"$f":"IF(OR(Selection_Hide2!AA43=0, Selection_Hide2!AA43=\"\"), \"\", Selection_Hide2!AA43)","v":""},{"$f":"IF(OR(Selection_Hide2!AB43=0, Selection_Hide2!AB43=\"\"), \"\", Selection_Hide2!AB43)","v":""}]
[{"$f":"IF(OR(Selection_Hide2!A44=0, Selection_Hide2!A44=\"\"), \"\", Selection_Hide2!A44)","v":""},{"$f":"IF(OR(Selection_Hide2!B44=0, Selection_Hide2!B44=\"\"), \"\", Selection_Hide2!B44)","v":""},{"$f":"IF(OR(Selection_Hide2!C44=0, Selection_Hide2!C44=\"\"), \"\", Selection_Hide2!C44)","v":""},{"$f":"IF(OR(Selection_Hide2!D44=0, Selection_Hide2!D44=\"\"), \"\", Selection_Hide2!D44)","v":""},{"$f":"IF(OR(Selection_Hide2!E44=0, Selection_Hide2!E44=\"\"), \"\", Selection_Hide2!E44)","v":""},{"$f":"IF(OR(Selection_Hide2!F44=0, Selection_Hide2!F44=\"\"), \"\", Selection_Hide2!F44)","v":""},{"$f":"IF(OR(Selection_Hide2!G44=0, Selection_Hide2!G44=\"\"), \"\", Selection_Hide2!G44)","v":""},{"$f":"IF(OR(Selection_Hide2!H44=0, Selection_Hide2!H44=\"\"), \"\", Selection_Hide2!H44)","v":""},{"$f":"IF(OR(Selection_Hide2!I44=0, Selection_Hide2!I44=\"\"), \"\", Selection_Hide2!I44)","v":""},{"$f":"IF(OR(Selection_Hide2!J44=0, Selection_Hide2!J44=\"\"), \"\", Selection_Hide2!J44)","v":""},{"$f":"IF(OR(Selection_Hide2!K44=0, Selection_Hide2!K44=\"\"), \"\", Selection_Hide2!K44)","v":""},{"$f":"IF(OR(Selection_Hide2!L44=0, Selection_Hide2!L44=\"\"), \"\", Selection_Hide2!L44)","v":""},{"$f":"IF(OR(Selection_Hide2!M44=0, Selection_Hide2!M44=\"\"), \"\", Selection_Hide2!M44)","v":""},{"$f":"IF(OR(Selection_Hide2!N44=0, Selection_Hide2!N44=\"\"), \"\", Selection_Hide2!N44)","v":""},{"$f":"IF(OR(Selection_Hide2!O44=0, Selection_Hide2!O44=\"\"), \"\", Selection_Hide2!O44)","v":""},{"$f":"IF(OR(Selection_Hide2!P44=0, Selection_Hide2!P44=\"\"), \"\", Selection_Hide2!P44)","v":""},{"$f":"IF(OR(Selection_Hide2!Q44=0, Selection_Hide2!Q44=\"\"), \"\", Selection_Hide2!Q44)","v":""},{"$f":"IF(OR(Selection_Hide2!R44=0, Selection_Hide2!R44=\"\"), \"\", Selection_Hide2!R44)","v":""},{"$f":"IF(OR(Selection_Hide2!S44=0, Selection_Hide2!S44=\"\"), \"\", Selection_Hide2!S44)","v":""},{"$f":"IF(OR(Selection_Hide2!T44=0, Selection_Hide2!T44=\"\"), \"\", Selection_Hide2!T44)","v":""},{"$f":"IF(OR(Selection_Hide2!U44=0, Selection_Hide2!U44=\"\"), \"\", Selection_Hide2!U44)","v":""},{"$f":"IF(OR(Selection_Hide2!V44=0, Selection_Hide2!V44=\"\"), \"\", Selection_Hide2!V44)","v":""},{"$f":"IF(OR(Selection_Hide2!W44=0, Selection_Hide2!W44=\"\"), \"\", Selection_Hide2!W44)","v":""},{"$f":"IF(OR(Selection_Hide2!X44=0, Selection_Hide2!X44=\"\"), \"\", Selection_Hide2!X44)","v":""},{"$f":"IF(OR(Selection_Hide2!Y44=0, Selection_Hide2!Y44=\"\"), \"\", Selection_Hide2!Y44)","v":""},{"$f":"IF(OR(Selection_Hide2!Z44=0, Selection_Hide2!Z44=\"\"), \"\", Selection_Hide2!Z44)","v":""},{"$f":"IF(OR(Selection_Hide2!AA44=0, Selection_Hide2!AA44=\"\"), \"\", Selection_Hide2!AA44)","v":""},{"$f":"IF(OR(Selection_Hide2!AB44=0, Selection_Hide2!AB44=\"\"), \"\", Selection_Hide2!AB44)","v":""}]
[{"$f":"IF(OR(Selection_Hide2!A45=0, Selection_Hide2!A45=\"\"), \"\", Selection_Hide2!A45)","v":""},{"$f":"IF(OR(Selection_Hide2!B45=0, Selection_Hide2!B45=\"\"), \"\", Selection_Hide2!B45)","v":""},{"$f":"IF(OR(Selection_Hide2!C45=0, Selection_Hide2!C45=\"\"), \"\", Selection_Hide2!C45)","v":""},{"$f":"IF(OR(Selection_Hide2!D45=0, Selection_Hide2!D45=\"\"), \"\", Selection_Hide2!D45)","v":""},{"$f":"IF(OR(Selection_Hide2!E45=0, Selection_Hide2!E45=\"\"), \"\", Selection_Hide2!E45)","v":""},{"$f":"IF(OR(Selection_Hide2!F45=0, Selection_Hide2!F45=\"\"), \"\", Selection_Hide2!F45)","v":""},{"$f":"IF(OR(Selection_Hide2!G45=0, Selection_Hide2!G45=\"\"), \"\", Selection_Hide2!G45)","v":""},{"$f":"IF(OR(Selection_Hide2!H45=0, Selection_Hide2!H45=\"\"), \"\", Selection_Hide2!H45)","v":""},{"$f":"IF(OR(Selection_Hide2!I45=0, Selection_Hide2!I45=\"\"), \"\", Selection_Hide2!I45)","v":""},{"$f":"IF(OR(Selection_Hide2!J45=0, Selection_Hide2!J45=\"\"), \"\", Selection_Hide2!J45)","v":""},{"$f":"IF(OR(Selection_Hide2!K45=0, Selection_Hide2!K45=\"\"), \"\", Selection_Hide2!K45)","v":""},{"$f":"IF(OR(Selection_Hide2!L45=0, Selection_Hide2!L45=\"\"), \"\", Selection_Hide2!L45)","v":""},{"$f":"IF(OR(Selection_Hide2!M45=0, Selection_Hide2!M45=\"\"), \"\", Selection_Hide2!M45)","v":""},{"$f":"IF(OR(Selection_Hide2!N45=0, Selection_Hide2!N45=\"\"), \"\", Selection_Hide2!N45)","v":""},{"$f":"IF(OR(Selection_Hide2!O45=0, Selection_Hide2!O45=\"\"), \"\", Selection_Hide2!O45)","v":""},{"$f":"IF(OR(Selection_Hide2!P45=0, Selection_Hide2!P45=\"\"), \"\", Selection_Hide2!P45)","v":""},{"$f":"IF(OR(Selection_Hide2!Q45=0, Selection_Hide2!Q45=\"\"), \"\", Selection_Hide2!Q45)","v":""},{"$f":"IF(OR(Selection_Hide2!R45=0, Selection_Hide2!R45=\"\"), \"\", Selection_Hide2!R45)","v":""},{"$f":"IF(OR(Selection_Hide2!S45=0, Selection_Hide2!S45=\"\"), \"\", Selection_Hide2!S45)","v":""},{"$f":"IF(OR(Selection_Hide2!T45=0, Selection_Hide2!T45=\"\"), \"\", Selection_Hide2!T45)","v":""},{"$f":"IF(OR(Selection_Hide2!U45=0, Selection_Hide2!U45=\"\"), \"\", Selection_Hide2!U45)","v":""},{"$f":"IF(OR(Selection_Hide2!V45=0, Selection_Hide2!V45=\"\"), \"\", Selection_Hide2!V45)","v":""},{"$f":"IF(OR(Selection_Hide2!W45=0, Selection_Hide2!W45=\"\"), \"\", Selection_Hide2!W45)","v":""},{"$f":"IF(OR(Selection_Hide2!X45=0, Selection_Hide2!X45=\"\"), \"\", Selection_Hide2!X45)","v":""},{"$f":"IF(OR(Selection_Hide2!Y45=0, Selection_Hide2!Y45=\"\"), \"\", Selection_Hide2!Y45)","v":""},{"$f":"IF(OR(Selection_Hide2!Z45=0, Selection_Hide2!Z45=\"\"), \"\", Selection_Hide2!Z45)","v":""},{"$f":"IF(OR(Selection_Hide2!AA45=0, Selection_Hide2!AA45=\"\"), \"\", Selection_Hide2!AA45)","v":""},{"$f":"IF(OR(Selection_Hide2!AB45=0, Selection_Hide2!AB45=\"\"), \"\", Selection_Hide2!AB45)","v":""}]
[{"$f":"IF(OR(Selection_Hide2!A46=0, Selection_Hide2!A46=\"\"), \"\", Selection_Hide2!A46)","v":""},{"$f":"IF(OR(Selection_Hide2!B46=0, Selection_Hide2!B46=\"\"), \"\", Selection_Hide2!B46)","v":""},{"$f":"IF(OR(Selection_Hide2!C46=0, Selection_Hide2!C46=\"\"), \"\", Selection_Hide2!C46)","v":""},{"$f":"IF(OR(Selection_Hide2!D46=0, Selection_Hide2!D46=\"\"), \"\", Selection_Hide2!D46)","v":""},{"$f":"IF(OR(Selection_Hide2!E46=0, Selection_Hide2!E46=\"\"), \"\", Selection_Hide2!E46)","v":""},{"$f":"IF(OR(Selection_Hide2!F46=0, Selection_Hide2!F46=\"\"), \"\", Selection_Hide2!F46)","v":""},{"$f":"IF(OR(Selection_Hide2!G46=0, Selection_Hide2!G46=\"\"), \"\", Selection_Hide2!G46)","v":""},{"$f":"IF(OR(Selection_Hide2!H46=0, Selection_Hide2!H46=\"\"), \"\", Selection_Hide2!H46)","v":""},{"$f":"IF(OR(Selection_Hide2!I46=0, Selection_Hide2!I46=\"\"), \"\", Selection_Hide2!I46)","v":""},{"$f":"IF(OR(Selection_Hide2!J46=0, Selection_Hide2!J46=\"\"), \"\", Selection_Hide2!J46)","v":""},{"$f":"IF(OR(Selection_Hide2!K46=0, Selection_Hide2!K46=\"\"), \"\", Selection_Hide2!K46)","v":""},{"$f":"IF(OR(Selection_Hide2!L46=0, Selection_Hide2!L46=\"\"), \"\", Selection_Hide2!L46)","v":""},{"$f":"IF(OR(Selection_Hide2!M46=0, Selection_Hide2!M46=\"\"), \"\", Selection_Hide2!M46)","v":""},{"$f":"IF(OR(Selection_Hide2!N46=0, Selection_Hide2!N46=\"\"), \"\", Selection_Hide2!N46)","v":""},{"$f":"IF(OR(Selection_Hide2!O46=0, Selection_Hide2!O46=\"\"), \"\", Selection_Hide2!O46)","v":""},{"$f":"IF(OR(Selection_Hide2!P46=0, Selection_Hide2!P46=\"\"), \"\", Selection_Hide2!P46)","v":""},{"$f":"IF(OR(Selection_Hide2!Q46=0, Selection_Hide2!Q46=\"\"), \"\", Selection_Hide2!Q46)","v":""},{"$f":"IF(OR(Selection_Hide2!R46=0, Selection_Hide2!R46=\"\"), \"\", Selection_Hide2!R46)","v":""},{"$f":"IF(OR(Selection_Hide2!S46=0, Selection_Hide2!S46=\"\"), \"\", Selection_Hide2!S46)","v":""},{"$f":"IF(OR(Selection_Hide2!T46=0, Selection_Hide2!T46=\"\"), \"\", Selection_Hide2!T46)","v":""},{"$f":"IF(OR(Selection_Hide2!U46=0, Selection_Hide2!U46=\"\"), \"\", Selection_Hide2!U46)","v":""},{"$f":"IF(OR(Selection_Hide2!V46=0, Selection_Hide2!V46=\"\"), \"\", Selection_Hide2!V46)","v":""},{"$f":"IF(OR(Selection_Hide2!W46=0, Selection_Hide2!W46=\"\"), \"\", Selection_Hide2!W46)","v":""},{"$f":"IF(OR(Selection_Hide2!X46=0, Selection_Hide2!X46=\"\"), \"\", Selection_Hide2!X46)","v":""},{"$f":"IF(OR(Selection_Hide2!Y46=0, Selection_Hide2!Y46=\"\"), \"\", Selection_Hide2!Y46)","v":""},{"$f":"IF(OR(Selection_Hide2!Z46=0, Selection_Hide2!Z46=\"\"), \"\", Selection_Hide2!Z46)","v":""},{"$f":"IF(OR(Selection_Hide2!AA46=0, Selection_Hide2!AA46=\"\"), \"\", Selection_Hide2!AA46)","v":""},{"$f":"IF(OR(Selection_Hide2!AB46=0, Selection_Hide2!AB46=\"\"), \"\", Selection_Hide2!AB46)","v":""}]
[{"$f":"IF(OR(Selection_Hide2!A47=0, Selection_Hide2!A47=\"\"), \"\", Selection_Hide2!A47)","v":""},{"$f":"IF(OR(Selection_Hide2!B47=0, Selection_Hide2!B47=\"\"), \"\", Selection_Hide2!B47)","v":""},{"$f":"IF(OR(Selection_Hide2!C47=0, Selection_Hide2!C47=\"\"), \"\", Selection_Hide2!C47)","v":""},{"$f":"IF(OR(Selection_Hide2!D47=0, Selection_Hide2!D47=\"\"), \"\", Selection_Hide2!D47)","v":""},{"$f":"IF(OR(Selection_Hide2!E47=0, Selection_Hide2!E47=\"\"), \"\", Selection_Hide2!E47)","v":""},{"$f":"IF(OR(Selection_Hide2!F47=0, Selection_Hide2!F47=\"\"), \"\", Selection_Hide2!F47)","v":""},{"$f":"IF(OR(Selection_Hide2!G47=0, Selection_Hide2!G47=\"\"), \"\", Selection_Hide2!G47)","v":""},{"$f":"IF(OR(Selection_Hide2!H47=0, Selection_Hide2!H47=\"\"), \"\", Selection_Hide2!H47)","v":""},{"$f":"IF(OR(Selection_Hide2!I47=0, Selection_Hide2!I47=\"\"), \"\", Selection_Hide2!I47)","v":""},{"$f":"IF(OR(Selection_Hide2!J47=0, Selection_Hide2!J47=\"\"), \"\", Selection_Hide2!J47)","v":""},{"$f":"IF(OR(Selection_Hide2!K47=0, Selection_Hide2!K47=\"\"), \"\", Selection_Hide2!K47)","v":""},{"$f":"IF(OR(Selection_Hide2!L47=0, Selection_Hide2!L47=\"\"), \"\", Selection_Hide2!L47)","v":""},{"$f":"IF(OR(Selection_Hide2!M47=0, Selection_Hide2!M47=\"\"), \"\", Selection_Hide2!M47)","v":""},{"$f":"IF(OR(Selection_Hide2!N47=0, Selection_Hide2!N47=\"\"), \"\", Selection_Hide2!N47)","v":""},{"$f":"IF(OR(Selection_Hide2!O47=0, Selection_Hide2!O47=\"\"), \"\", Selection_Hide2!O47)","v":""},{"$f":"IF(OR(Selection_Hide2!P47=0, Selection_Hide2!P47=\"\"), \"\", Selection_Hide2!P47)","v":""},{"$f":"IF(OR(Selection_Hide2!Q47=0, Selection_Hide2!Q47=\"\"), \"\", Selection_Hide2!Q47)","v":""},{"$f":"IF(OR(Selection_Hide2!R47=0, Selection_Hide2!R47=\"\"), \"\", Selection_Hide2!R47)","v":""},{"$f":"IF(OR(Selection_Hide2!S47=0, Selection_Hide2!S47=\"\"), \"\", Selection_Hide2!S47)","v":""},{"$f":"IF(OR(Selection_Hide2!T47=0, Selection_Hide2!T47=\"\"), \"\", Selection_Hide2!T47)","v":""},{"$f":"IF(OR(Selection_Hide2!U47=0, Selection_Hide2!U47=\"\"), \"\", Selection_Hide2!U47)","v":""},{"$f":"IF(OR(Selection_Hide2!V47=0, Selection_Hide2!V47=\"\"), \"\", Selection_Hide2!V47)","v":""},{"$f":"IF(OR(Selection_Hide2!W47=0, Selection_Hide2!W47=\"\"), \"\", Selection_Hide2!W47)","v":""},{"$f":"IF(OR(Selection_Hide2!X47=0, Selection_Hide2!X47=\"\"), \"\", Selection_Hide2!X47)","v":""},{"$f":"IF(OR(Selection_Hide2!Y47=0, Selection_Hide2!Y47=\"\"), \"\", Selection_Hide2!Y47)","v":""},{"$f":"IF(OR(Selection_Hide2!Z47=0, Selection_Hide2!Z47=\"\"), \"\", Selection_Hide2!Z47)","v":""},{"$f":"IF(OR(Selection_Hide2!AA47=0, Selection_Hide2!AA47=\"\"), \"\", Selection_Hide2!AA47)","v":""},{"$f":"IF(OR(Selection_Hide2!AB47=0, Selection_Hide2!AB47=\"\"), \"\", Selection_Hide2!AB47)","v":""}]
[{"$f":"IF(OR(Selection_Hide2!A48=0, Selection_Hide2!A48=\"\"), \"\", Selection_Hide2!A48)","v":""},{"$f":"IF(OR(Selection_Hide2!B48=0, Selection_Hide2!B48=\"\"), \"\", Selection_Hide2!B48)","v":""},{"$f":"IF(OR(Selection_Hide2!C48=0, Selection_Hide2!C48=\"\"), \"\", Selection_Hide2!C48)","v":""},{"$f":"IF(OR(Selection_Hide2!D48=0, Selection_Hide2!D48=\"\"), \"\", Selection_Hide2!D48)","v":""},{"$f":"IF(OR(Selection_Hide2!E48=0, Selection_Hide2!E48=\"\"), \"\", Selection_Hide2!E48)","v":""},{"$f":"IF(OR(Selection_Hide2!F48=0, Selection_Hide2!F48=\"\"), \"\", Selection_Hide2!F48)","v":""},{"$f":"IF(OR(Selection_Hide2!G48=0, Selection_Hide2!G48=\"\"), \"\", Selection_Hide2!G48)","v":""},{"$f":"IF(OR(Selection_Hide2!H48=0, Selection_Hide2!H48=\"\"), \"\", Selection_Hide2!H48)","v":""},{"$f":"IF(OR(Selection_Hide2!I48=0, Selection_Hide2!I48=\"\"), \"\", Selection_Hide2!I48)","v":""},{"$f":"IF(OR(Selection_Hide2!J48=0, Selection_Hide2!J48=\"\"), \"\", Selection_Hide2!J48)","v":""},{"$f":"IF(OR(Selection_Hide2!K48=0, Selection_Hide2!K48=\"\"), \"\", Selection_Hide2!K48)","v":""},{"$f":"IF(OR(Selection_Hide2!L48=0, Selection_Hide2!L48=\"\"), \"\", Selection_Hide2!L48)","v":""},{"$f":"IF(OR(Selection_Hide2!M48=0, Selection_Hide2!M48=\"\"), \"\", Selection_Hide2!M48)","v":""},{"$f":"IF(OR(Selection_Hide2!N48=0, Selection_Hide2!N48=\"\"), \"\", Selection_Hide2!N48)","v":""},{"$f":"IF(OR(Selection_Hide2!O48=0, Selection_Hide2!O48=\"\"), \"\", Selection_Hide2!O48)","v":""},{"$f":"IF(OR(Selection_Hide2!P48=0, Selection_Hide2!P48=\"\"), \"\", Selection_Hide2!P48)","v":""},{"$f":"IF(OR(Selection_Hide2!Q48=0, Selection_Hide2!Q48=\"\"), \"\", Selection_Hide2!Q48)","v":""},{"$f":"IF(OR(Selection_Hide2!R48=0, Selection_Hide2!R48=\"\"), \"\", Selection_Hide2!R48)","v":""},{"$f":"IF(OR(Selection_Hide2!S48=0, Selection_Hide2!S48=\"\"), \"\", Selection_Hide2!S48)","v":""},{"$f":"IF(OR(Selection_Hide2!T48=0, Selection_Hide2!T48=\"\"), \"\", Selection_Hide2!T48)","v":""},{"$f":"IF(OR(Selection_Hide2!U48=0, Selection_Hide2!U48=\"\"), \"\", Selection_Hide2!U48)","v":""},{"$f":"IF(OR(Selection_Hide2!V48=0, Selection_Hide2!V48=\"\"), \"\", Selection_Hide2!V48)","v":""},{"$f":"IF(OR(Selection_Hide2!W48=0, Selection_Hide2!W48=\"\"), \"\", Selection_Hide2!W48)","v":""},{"$f":"IF(OR(Selection_Hide2!X48=0, Selection_Hide2!X48=\"\"), \"\", Selection_Hide2!X48)","v":""},{"$f":"IF(OR(Selection_Hide2!Y48=0, Selection_Hide2!Y48=\"\"), \"\", Selection_Hide2!Y48)","v":""},{"$f":"IF(OR(Selection_Hide2!Z48=0, Selection_Hide2!Z48=\"\"), \"\", Selection_Hide2!Z48)","v":""},{"$f":"IF(OR(Selection_Hide2!AA48=0, Selection_Hide2!AA48=\"\"), \"\", Selection_Hide2!AA48)","v":""},{"$f":"IF(OR(Selection_Hide2!AB48=0, Selection_Hide2!AB48=\"\"), \"\", Selection_Hide2!AB48)","v":""}]
[{"$f":"IF(OR(Selection_Hide2!A49=0, Selection_Hide2!A49=\"\"), \"\", Selection_Hide2!A49)","v":""},{"$f":"IF(OR(Selection_Hide2!B49=0, Selection_Hide2!B49=\"\"), \"\", Selection_Hide2!B49)","v":""},{"$f":"IF(OR(Selection_Hide2!C49=0, Selection_Hide2!C49=\"\"), \"\", Selection_Hide2!C49)","v":""},{"$f":"IF(OR(Selection_Hide2!D49=0, Selection_Hide2!D49=\"\"), \"\", Selection_Hide2!D49)","v":""},{"$f":"IF(OR(Selection_Hide2!E49=0, Selection_Hide2!E49=\"\"), \"\", Selection_Hide2!E49)","v":""},{"$f":"IF(OR(Selection_Hide2!F49=0, Selection_Hide2!F49=\"\"), \"\", Selection_Hide2!F49)","v":""},{"$f":"IF(OR(Selection_Hide2!G49=0, Selection_Hide2!G49=\"\"), \"\", Selection_Hide2!G49)","v":""},{"$f":"IF(OR(Selection_Hide2!H49=0, Selection_Hide2!H49=\"\"), \"\", Selection_Hide2!H49)","v":""},{"$f":"IF(OR(Selection_Hide2!I49=0, Selection_Hide2!I49=\"\"), \"\", Selection_Hide2!I49)","v":""},{"$f":"IF(OR(Selection_Hide2!J49=0, Selection_Hide2!J49=\"\"), \"\", Selection_Hide2!J49)","v":""},{"$f":"IF(OR(Selection_Hide2!K49=0, Selection_Hide2!K49=\"\"), \"\", Selection_Hide2!K49)","v":""},{"$f":"IF(OR(Selection_Hide2!L49=0, Selection_Hide2!L49=\"\"), \"\", Selection_Hide2!L49)","v":""},{"$f":"IF(OR(Selection_Hide2!M49=0, Selection_Hide2!M49=\"\"), \"\", Selection_Hide2!M49)","v":""},{"$f":"IF(OR(Selection_Hide2!N49=0, Selection_Hide2!N49=\"\"), \"\", Selection_Hide2!N49)","v":""},{"$f":"IF(OR(Selection_Hide2!O49=0, Selection_Hide2!O49=\"\"), \"\", Selection_Hide2!O49)","v":""},{"$f":"IF(OR(Selection_Hide2!P49=0, Selection_Hide2!P49=\"\"), \"\", Selection_Hide2!P49)","v":""},{"$f":"IF(OR(Selection_Hide2!Q49=0, Selection_Hide2!Q49=\"\"), \"\", Selection_Hide2!Q49)","v":""},{"$f":"IF(OR(Selection_Hide2!R49=0, Selection_Hide2!R49=\"\"), \"\", Selection_Hide2!R49)","v":""},{"$f":"IF(OR(Selection_Hide2!S49=0, Selection_Hide2!S49=\"\"), \"\", Selection_Hide2!S49)","v":""},{"$f":"IF(OR(Selection_Hide2!T49=0, Selection_Hide2!T49=\"\"), \"\", Selection_Hide2!T49)","v":""},{"$f":"IF(OR(Selection_Hide2!U49=0, Selection_Hide2!U49=\"\"), \"\", Selection_Hide2!U49)","v":""},{"$f":"IF(OR(Selection_Hide2!V49=0, Selection_Hide2!V49=\"\"), \"\", Selection_Hide2!V49)","v":""},{"$f":"IF(OR(Selection_Hide2!W49=0, Selection_Hide2!W49=\"\"), \"\", Selection_Hide2!W49)","v":""},{"$f":"IF(OR(Selection_Hide2!X49=0, Selection_Hide2!X49=\"\"), \"\", Selection_Hide2!X49)","v":""},{"$f":"IF(OR(Selection_Hide2!Y49=0, Selection_Hide2!Y49=\"\"), \"\", Selection_Hide2!Y49)","v":""},{"$f":"IF(OR(Selection_Hide2!Z49=0, Selection_Hide2!Z49=\"\"), \"\", Selection_Hide2!Z49)","v":""},{"$f":"IF(OR(Selection_Hide2!AA49=0, Selection_Hide2!AA49=\"\"), \"\", Selection_Hide2!AA49)","v":""},{"$f":"IF(OR(Selection_Hide2!AB49=0, Selection_Hide2!AB49=\"\"), \"\", Selection_Hide2!AB49)","v":""}]
[{"$f":"IF(OR(Selection_Hide2!A50=0, Selection_Hide2!A50=\"\"), \"\", Selection_Hide2!A50)","v":""},{"$f":"IF(OR(Selection_Hide2!B50=0, Selection_Hide2!B50=\"\"), \"\", Selection_Hide2!B50)","v":""},{"$f":"IF(OR(Selection_Hide2!C50=0, Selection_Hide2!C50=\"\"), \"\", Selection_Hide2!C50)","v":""},{"$f":"IF(OR(Selection_Hide2!D50=0, Selection_Hide2!D50=\"\"), \"\", Selection_Hide2!D50)","v":""},{"$f":"IF(OR(Selection_Hide2!E50=0, Selection_Hide2!E50=\"\"), \"\", Selection_Hide2!E50)","v":""},{"$f":"IF(OR(Selection_Hide2!F50=0, Selection_Hide2!F50=\"\"), \"\", Selection_Hide2!F50)","v":""},{"$f":"IF(OR(Selection_Hide2!G50=0, Selection_Hide2!G50=\"\"), \"\", Selection_Hide2!G50)","v":""},{"$f":"IF(OR(Selection_Hide2!H50=0, Selection_Hide2!H50=\"\"), \"\", Selection_Hide2!H50)","v":""},{"$f":"IF(OR(Selection_Hide2!I50=0, Selection_Hide2!I50=\"\"), \"\", Selection_Hide2!I50)","v":""},{"$f":"IF(OR(Selection_Hide2!J50=0, Selection_Hide2!J50=\"\"), \"\", Selection_Hide2!J50)","v":""},{"$f":"IF(OR(Selection_Hide2!K50=0, Selection_Hide2!K50=\"\"), \"\", Selection_Hide2!K50)","v":""},{"$f":"IF(OR(Selection_Hide2!L50=0, Selection_Hide2!L50=\"\"), \"\", Selection_Hide2!L50)","v":""},{"$f":"IF(OR(Selection_Hide2!M50=0, Selection_Hide2!M50=\"\"), \"\", Selection_Hide2!M50)","v":""},{"$f":"IF(OR(Selection_Hide2!N50=0, Selection_Hide2!N50=\"\"), \"\", Selection_Hide2!N50)","v":""},{"$f":"IF(OR(Selection_Hide2!O50=0, Selection_Hide2!O50=\"\"), \"\", Selection_Hide2!O50)","v":""},{"$f":"IF(OR(Selection_Hide2!P50=0, Selection_Hide2!P50=\"\"), \"\", Selection_Hide2!P50)","v":""},{"$f":"IF(OR(Selection_Hide2!Q50=0, Selection_Hide2!Q50=\"\"), \"\", Selection_Hide2!Q50)","v":""},{"$f":"IF(OR(Selection_Hide2!R50=0, Selection_Hide2!R50=\"\"), \"\", Selection_Hide2!R50)","v":""},{"$f":"IF(OR(Selection_Hide2!S50=0, Selection_Hide2!S50=\"\"), \"\", Selection_Hide2!S50)","v":""},{"$f":"IF(OR(Selection_Hide2!T50=0, Selection_Hide2!T50=\"\"), \"\", Selection_Hide2!T50)","v":""},{"$f":"IF(OR(Selection_Hide2!U50=0, Selection_Hide2!U50=\"\"), \"\", Selection_Hide2!U50)","v":""},{"$f":"IF(OR(Selection_Hide2!V50=0, Selection_Hide2!V50=\"\"), \"\", Selection_Hide2!V50)","v":""},{"$f":"IF(OR(Selection_Hide2!W50=0, Selection_Hide2!W50=\"\"), \"\", Selection_Hide2!W50)","v":""},{"$f":"IF(OR(Selection_Hide2!X50=0, Selection_Hide2!X50=\"\"), \"\", Selection_Hide2!X50)","v":""},{"$f":"IF(OR(Selection_Hide2!Y50=0, Selection_Hide2!Y50=\"\"), \"\", Selection_Hide2!Y50)","v":""},{"$f":"IF(OR(Selection_Hide2!Z50=0, Selection_Hide2!Z50=\"\"), \"\", Selection_Hide2!Z50)","v":""},{"$f":"IF(OR(Selection_Hide2!AA50=0, Selection_Hide2!AA50=\"\"), \"\", Selection_Hide2!AA50)","v":""},{"$f":"IF(OR(Selection_Hide2!AB50=0, Selection_Hide2!AB50=\"\"), \"\", Selection_Hide2!AB50)","v":""}]
[{"$f":"IF(OR(Selection_Hide2!A51=0, Selection_Hide2!A51=\"\"), \"\", Selection_Hide2!A51)","v":""},{"$f":"IF(OR(Selection_Hide2!B51=0, Selection_Hide2!B51=\"\"), \"\", Selection_Hide2!B51)","v":""},{"$f":"IF(OR(Selection_Hide2!C51=0, Selection_Hide2!C51=\"\"), \"\", Selection_Hide2!C51)","v":""},{"$f":"IF(OR(Selection_Hide2!D51=0, Selection_Hide2!D51=\"\"), \"\", Selection_Hide2!D51)","v":""},{"$f":"IF(OR(Selection_Hide2!E51=0, Selection_Hide2!E51=\"\"), \"\", Selection_Hide2!E51)","v":""},{"$f":"IF(OR(Selection_Hide2!F51=0, Selection_Hide2!F51=\"\"), \"\", Selection_Hide2!F51)","v":""},{"$f":"IF(OR(Selection_Hide2!G51=0, Selection_Hide2!G51=\"\"), \"\", Selection_Hide2!G51)","v":""},{"$f":"IF(OR(Selection_Hide2!H51=0, Selection_Hide2!H51=\"\"), \"\", Selection_Hide2!H51)","v":""},{"$f":"IF(OR(Selection_Hide2!I51=0, Selection_Hide2!I51=\"\"), \"\", Selection_Hide2!I51)","v":""},{"$f":"IF(OR(Selection_Hide2!J51=0, Selection_Hide2!J51=\"\"), \"\", Selection_Hide2!J51)","v":""},{"$f":"IF(OR(Selection_Hide2!K51=0, Selection_Hide2!K51=\"\"), \"\", Selection_Hide2!K51)","v":""},{"$f":"IF(OR(Selection_Hide2!L51=0, Selection_Hide2!L51=\"\"), \"\", Selection_Hide2!L51)","v":""},{"$f":"IF(OR(Selection_Hide2!M51=0, Selection_Hide2!M51=\"\"), \"\", Selection_Hide2!M51)","v":""},{"$f":"IF(OR(Selection_Hide2!N51=0, Selection_Hide2!N51=\"\"), \"\", Selection_Hide2!N51)","v":""},{"$f":"IF(OR(Selection_Hide2!O51=0, Selection_Hide2!O51=\"\"), \"\", Selection_Hide2!O51)","v":""},{"$f":"IF(OR(Selection_Hide2!P51=0, Selection_Hide2!P51=\"\"), \"\", Selection_Hide2!P51)","v":""},{"$f":"IF(OR(Selection_Hide2!Q51=0, Selection_Hide2!Q51=\"\"), \"\", Selection_Hide2!Q51)","v":""},{"$f":"IF(OR(Selection_Hide2!R51=0, Selection_Hide2!R51=\"\"), \"\", Selection_Hide2!R51)","v":""},{"$f":"IF(OR(Selection_Hide2!S51=0, Selection_Hide2!S51=\"\"), \"\", Selection_Hide2!S51)","v":""},{"$f":"IF(OR(Selection_Hide2!T51=0, Selection_Hide2!T51=\"\"), \"\", Selection_Hide2!T51)","v":""},{"$f":"IF(OR(Selection_Hide2!U51=0, Selection_Hide2!U51=\"\"), \"\", Selection_Hide2!U51)","v":""},{"$f":"IF(OR(Selection_Hide2!V51=0, Selection_Hide2!V51=\"\"), \"\", Selection_Hide2!V51)","v":""},{"$f":"IF(OR(Selection_Hide2!W51=0, Selection_Hide2!W51=\"\"), \"\", Selection_Hide2!W51)","v":""},{"$f":"IF(OR(Selection_Hide2!X51=0, Selection_Hide2!X51=\"\"), \"\", Selection_Hide2!X51)","v":""},{"$f":"IF(OR(Selection_Hide2!Y51=0, Selection_Hide2!Y51=\"\"), \"\", Selection_Hide2!Y51)","v":""},{"$f":"IF(OR(Selection_Hide2!Z51=0, Selection_Hide2!Z51=\"\"), \"\", Selection_Hide2!Z51)","v":""},{"$f":"IF(OR(Selection_Hide2!AA51=0, Selection_Hide2!AA51=\"\"), \"\", Selection_Hide2!AA51)","v":""},{"$f":"IF(OR(Selection_Hide2!AB51=0, Selection_Hide2!AB51=\"\"), \"\", Selection_Hide2!AB51)","v":""}]
[{"$f":"IF(OR(Selection_Hide2!A52=0, Selection_Hide2!A52=\"\"), \"\", Selection_Hide2!A52)","v":""},{"$f":"IF(OR(Selection_Hide2!B52=0, Selection_Hide2!B52=\"\"), \"\", Selection_Hide2!B52)","v":""},{"$f":"IF(OR(Selection_Hide2!C52=0, Selection_Hide2!C52=\"\"), \"\", Selection_Hide2!C52)","v":""},{"$f":"IF(OR(Selection_Hide2!D52=0, Selection_Hide2!D52=\"\"), \"\", Selection_Hide2!D52)","v":""},{"$f":"IF(OR(Selection_Hide2!E52=0, Selection_Hide2!E52=\"\"), \"\", Selection_Hide2!E52)","v":""},{"$f":"IF(OR(Selection_Hide2!F52=0, Selection_Hide2!F52=\"\"), \"\", Selection_Hide2!F52)","v":""},{"$f":"IF(OR(Selection_Hide2!G52=0, Selection_Hide2!G52=\"\"), \"\", Selection_Hide2!G52)","v":""},{"$f":"IF(OR(Selection_Hide2!H52=0, Selection_Hide2!H52=\"\"), \"\", Selection_Hide2!H52)","v":""},{"$f":"IF(OR(Selection_Hide2!I52=0, Selection_Hide2!I52=\"\"), \"\", Selection_Hide2!I52)","v":""},{"$f":"IF(OR(Selection_Hide2!J52=0, Selection_Hide2!J52=\"\"), \"\", Selection_Hide2!J52)","v":""},{"$f":"IF(OR(Selection_Hide2!K52=0, Selection_Hide2!K52=\"\"), \"\", Selection_Hide2!K52)","v":""},{"$f":"IF(OR(Selection_Hide2!L52=0, Selection_Hide2!L52=\"\"), \"\", Selection_Hide2!L52)","v":""},{"$f":"IF(OR(Selection_Hide2!M52=0, Selection_Hide2!M52=\"\"), \"\", Selection_Hide2!M52)","v":""},{"$f":"IF(OR(Selection_Hide2!N52=0, Selection_Hide2!N52=\"\"), \"\", Selection_Hide2!N52)","v":""},{"$f":"IF(OR(Selection_Hide2!O52=0, Selection_Hide2!O52=\"\"), \"\", Selection_Hide2!O52)","v":""},{"$f":"IF(OR(Selection_Hide2!P52=0, Selection_Hide2!P52=\"\"), \"\", Selection_Hide2!P52)","v":""},{"$f":"IF(OR(Selection_Hide2!Q52=0, Selection_Hide2!Q52=\"\"), \"\", Selection_Hide2!Q52)","v":""},{"$f":"IF(OR(Selection_Hide2!R52=0, Selection_Hide2!R52=\"\"), \"\", Selection_Hide2!R52)","v":""},{"$f":"IF(OR(Selection_Hide2!S52=0, Selection_Hide2!S52=\"\"), \"\", Selection_Hide2!S52)","v":""},{"$f":"IF(OR(Selection_Hide2!T52=0, Selection_Hide2!T52=\"\"), \"\", Selection_Hide2!T52)","v":""},{"$f":"IF(OR(Selection_Hide2!U52=0, Selection_Hide2!U52=\"\"), \"\", Selection_Hide2!U52)","v":""},{"$f":"IF(OR(Selection_Hide2!V52=0, Selection_Hide2!V52=\"\"), \"\", Selection_Hide2!V52)","v":""},{"$f":"IF(OR(Selection_Hide2!W52=0, Selection_Hide2!W52=\"\"), \"\", Selection_Hide2!W52)","v":""},{"$f":"IF(OR(Selection_Hide2!X52=0, Selection_Hide2!X52=\"\"), \"\", Selection_Hide2!X52)","v":""},{"$f":"IF(OR(Selection_Hide2!Y52=0, Selection_Hide2!Y52=\"\"), \"\", Selection_Hide2!Y52)","v":""},{"$f":"IF(OR(Selection_Hide2!Z52=0, Selection_Hide2!Z52=\"\"), \"\", Selection_Hide2!Z52)","v":""},{"$f":"IF(OR(Selection_Hide2!AA52=0, Selection_Hide2!AA52=\"\"), \"\", Selection_Hide2!AA52)","v":""},{"$f":"IF(OR(Selection_Hide2!AB52=0, Selection_Hide2!AB52=\"\"), \"\", Selection_Hide2!AB52)","v":""}]
[{"$f":"IF(OR(Selection_Hide2!A53=0, Selection_Hide2!A53=\"\"), \"\", Selection_Hide2!A53)","v":""},{"$f":"IF(OR(Selection_Hide2!B53=0, Selection_Hide2!B53=\"\"), \"\", Selection_Hide2!B53)","v":""},{"$f":"IF(OR(Selection_Hide2!C53=0, Selection_Hide2!C53=\"\"), \"\", Selection_Hide2!C53)","v":""},{"$f":"IF(OR(Selection_Hide2!D53=0, Selection_Hide2!D53=\"\"), \"\", Selection_Hide2!D53)","v":""},{"$f":"IF(OR(Selection_Hide2!E53=0, Selection_Hide2!E53=\"\"), \"\", Selection_Hide2!E53)","v":""},{"$f":"IF(OR(Selection_Hide2!F53=0, Selection_Hide2!F53=\"\"), \"\", Selection_Hide2!F53)","v":""},{"$f":"IF(OR(Selection_Hide2!G53=0, Selection_Hide2!G53=\"\"), \"\", Selection_Hide2!G53)","v":""},{"$f":"IF(OR(Selection_Hide2!H53=0, Selection_Hide2!H53=\"\"), \"\", Selection_Hide2!H53)","v":""},{"$f":"IF(OR(Selection_Hide2!I53=0, Selection_Hide2!I53=\"\"), \"\", Selection_Hide2!I53)","v":""},{"$f":"IF(OR(Selection_Hide2!J53=0, Selection_Hide2!J53=\"\"), \"\", Selection_Hide2!J53)","v":""},{"$f":"IF(OR(Selection_Hide2!K53=0, Selection_Hide2!K53=\"\"), \"\", Selection_Hide2!K53)","v":""},{"$f":"IF(OR(Selection_Hide2!L53=0, Selection_Hide2!L53=\"\"), \"\", Selection_Hide2!L53)","v":""},{"$f":"IF(OR(Selection_Hide2!M53=0, Selection_Hide2!M53=\"\"), \"\", Selection_Hide2!M53)","v":""},{"$f":"IF(OR(Selection_Hide2!N53=0, Selection_Hide2!N53=\"\"), \"\", Selection_Hide2!N53)","v":""},{"$f":"IF(OR(Selection_Hide2!O53=0, Selection_Hide2!O53=\"\"), \"\", Selection_Hide2!O53)","v":""},{"$f":"IF(OR(Selection_Hide2!P53=0, Selection_Hide2!P53=\"\"), \"\", Selection_Hide2!P53)","v":""},{"$f":"IF(OR(Selection_Hide2!Q53=0, Selection_Hide2!Q53=\"\"), \"\", Selection_Hide2!Q53)","v":""},{"$f":"IF(OR(Selection_Hide2!R53=0, Selection_Hide2!R53=\"\"), \"\", Selection_Hide2!R53)","v":""},{"$f":"IF(OR(Selection_Hide2!S53=0, Selection_Hide2!S53=\"\"), \"\", Selection_Hide2!S53)","v":""},{"$f":"IF(OR(Selection_Hide2!T53=0, Selection_Hide2!T53=\"\"), \"\", Selection_Hide2!T53)","v":""},{"$f":"IF(OR(Selection_Hide2!U53=0, Selection_Hide2!U53=\"\"), \"\", Selection_Hide2!U53)","v":""},{"$f":"IF(OR(Selection_Hide2!V53=0, Selection_Hide2!V53=\"\"), \"\", Selection_Hide2!V53)","v":""},{"$f":"IF(OR(Selection_Hide2!W53=0, Selection_Hide2!W53=\"\"), \"\", Selection_Hide2!W53)","v":""},{"$f":"IF(OR(Selection_Hide2!X53=0, Selection_Hide2!X53=\"\"), \"\", Selection_Hide2!X53)","v":""},{"$f":"IF(OR(Selection_Hide2!Y53=0, Selection_Hide2!Y53=\"\"), \"\", Selection_Hide2!Y53)","v":""},{"$f":"IF(OR(Selection_Hide2!Z53=0, Selection_Hide2!Z53=\"\"), \"\", Selection_Hide2!Z53)","v":""},{"$f":"IF(OR(Selection_Hide2!AA53=0, Selection_Hide2!AA53=\"\"), \"\", Selection_Hide2!AA53)","v":""},{"$f":"IF(OR(Selection_Hide2!AB53=0, Selection_Hide2!AB53=\"\"), \"\", Selection_Hide2!AB53)","v":""}]
[{"$f":"IF(OR(Selection_Hide2!A54=0, Selection_Hide2!A54=\"\"), \"\", Selection_Hide2!A54)","v":""},{"$f":"IF(OR(Selection_Hide2!B54=0, Selection_Hide2!B54=\"\"), \"\", Selection_Hide2!B54)","v":""},{"$f":"IF(OR(Selection_Hide2!C54=0, Selection_Hide2!C54=\"\"), \"\", Selection_Hide2!C54)","v":""},{"$f":"IF(OR(Selection_Hide2!D54=0, Selection_Hide2!D54=\"\"), \"\", Selection_Hide2!D54)","v":""},{"$f":"IF(OR(Selection_Hide2!E54=0, Selection_Hide2!E54=\"\"), \"\", Selection_Hide2!E54)","v":""},{"$f":"IF(OR(Selection_Hide2!F54=0, Selection_Hide2!F54=\"\"), \"\", Selection_Hide2!F54)","v":""},{"$f":"IF(OR(Selection_Hide2!G54=0, Selection_Hide2!G54=\"\"), \"\", Selection_Hide2!G54)","v":""},{"$f":"IF(OR(Selection_Hide2!H54=0, Selection_Hide2!H54=\"\"), \"\", Selection_Hide2!H54)","v":""},{"$f":"IF(OR(Selection_Hide2!I54=0, Selection_Hide2!I54=\"\"), \"\", Selection_Hide2!I54)","v":""},{"$f":"IF(OR(Selection_Hide2!J54=0, Selection_Hide2!J54=\"\"), \"\", Selection_Hide2!J54)","v":""},{"$f":"IF(OR(Selection_Hide2!K54=0, Selection_Hide2!K54=\"\"), \"\", Selection_Hide2!K54)","v":""},{"$f":"IF(OR(Selection_Hide2!L54=0, Selection_Hide2!L54=\"\"), \"\", Selection_Hide2!L54)","v":""},{"$f":"IF(OR(Selection_Hide2!M54=0, Selection_Hide2!M54=\"\"), \"\", Selection_Hide2!M54)","v":""},{"$f":"IF(OR(Selection_Hide2!N54=0, Selection_Hide2!N54=\"\"), \"\", Selection_Hide2!N54)","v":""},{"$f":"IF(OR(Selection_Hide2!O54=0, Selection_Hide2!O54=\"\"), \"\", Selection_Hide2!O54)","v":""},{"$f":"IF(OR(Selection_Hide2!P54=0, Selection_Hide2!P54=\"\"), \"\", Selection_Hide2!P54)","v":""},{"$f":"IF(OR(Selection_Hide2!Q54=0, Selection_Hide2!Q54=\"\"), \"\", Selection_Hide2!Q54)","v":""},{"$f":"IF(OR(Selection_Hide2!R54=0, Selection_Hide2!R54=\"\"), \"\", Selection_Hide2!R54)","v":""},{"$f":"IF(OR(Selection_Hide2!S54=0, Selection_Hide2!S54=\"\"), \"\", Selection_Hide2!S54)","v":""},{"$f":"IF(OR(Selection_Hide2!T54=0, Selection_Hide2!T54=\"\"), \"\", Selection_Hide2!T54)","v":""},{"$f":"IF(OR(Selection_Hide2!U54=0, Selection_Hide2!U54=\"\"), \"\", Selection_Hide2!U54)","v":""},{"$f":"IF(OR(Selection_Hide2!V54=0, Selection_Hide2!V54=\"\"), \"\", Selection_Hide2!V54)","v":""},{"$f":"IF(OR(Selection_Hide2!W54=0, Selection_Hide2!W54=\"\"), \"\", Selection_Hide2!W54)","v":""},{"$f":"IF(OR(Selection_Hide2!X54=0, Selection_Hide2!X54=\"\"), \"\", Selection_Hide2!X54)","v":""},{"$f":"IF(OR(Selection_Hide2!Y54=0, Selection_Hide2!Y54=\"\"), \"\", Selection_Hide2!Y54)","v":""},{"$f":"IF(OR(Selection_Hide2!Z54=0, Selection_Hide2!Z54=\"\"), \"\", Selection_Hide2!Z54)","v":""},{"$f":"IF(OR(Selection_Hide2!AA54=0, Selection_Hide2!AA54=\"\"), \"\", Selection_Hide2!AA54)","v":""},{"$f":"IF(OR(Selection_Hide2!AB54=0, Selection_Hide2!AB54=\"\"), \"\", Selection_Hide2!AB54)","v":""}]
[{"$f":"IF(OR(Selection_Hide2!A55=0, Selection_Hide2!A55=\"\"), \"\", Selection_Hide2!A55)","v":""},{"$f":"IF(OR(Selection_Hide2!B55=0, Selection_Hide2!B55=\"\"), \"\", Selection_Hide2!B55)","v":""},{"$f":"IF(OR(Selection_Hide2!C55=0, Selection_Hide2!C55=\"\"), \"\", Selection_Hide2!C55)","v":""},{"$f":"IF(OR(Selection_Hide2!D55=0, Selection_Hide2!D55=\"\"), \"\", Selection_Hide2!D55)","v":""},{"$f":"IF(OR(Selection_Hide2!E55=0, Selection_Hide2!E55=\"\"), \"\", Selection_Hide2!E55)","v":""},{"$f":"IF(OR(Selection_Hide2!F55=0, Selection_Hide2!F55=\"\"), \"\", Selection_Hide2!F55)","v":""},{"$f":"IF(OR(Selection_Hide2!G55=0, Selection_Hide2!G55=\"\"), \"\", Selection_Hide2!G55)","v":""},{"$f":"IF(OR(Selection_Hide2!H55=0, Selection_Hide2!H55=\"\"), \"\", Selection_Hide2!H55)","v":""},{"$f":"IF(OR(Selection_Hide2!I55=0, Selection_Hide2!I55=\"\"), \"\", Selection_Hide2!I55)","v":""},{"$f":"IF(OR(Selection_Hide2!J55=0, Selection_Hide2!J55=\"\"), \"\", Selection_Hide2!J55)","v":""},{"$f":"IF(OR(Selection_Hide2!K55=0, Selection_Hide2!K55=\"\"), \"\", Selection_Hide2!K55)","v":""},{"$f":"IF(OR(Selection_Hide2!L55=0, Selection_Hide2!L55=\"\"), \"\", Selection_Hide2!L55)","v":""},{"$f":"IF(OR(Selection_Hide2!M55=0, Selection_Hide2!M55=\"\"), \"\", Selection_Hide2!M55)","v":""},{"$f":"IF(OR(Selection_Hide2!N55=0, Selection_Hide2!N55=\"\"), \"\", Selection_Hide2!N55)","v":""},{"$f":"IF(OR(Selection_Hide2!O55=0, Selection_Hide2!O55=\"\"), \"\", Selection_Hide2!O55)","v":""},{"$f":"IF(OR(Selection_Hide2!P55=0, Selection_Hide2!P55=\"\"), \"\", Selection_Hide2!P55)","v":""},{"$f":"IF(OR(Selection_Hide2!Q55=0, Selection_Hide2!Q55=\"\"), \"\", Selection_Hide2!Q55)","v":""},{"$f":"IF(OR(Selection_Hide2!R55=0, Selection_Hide2!R55=\"\"), \"\", Selection_Hide2!R55)","v":""},{"$f":"IF(OR(Selection_Hide2!S55=0, Selection_Hide2!S55=\"\"), \"\", Selection_Hide2!S55)","v":""},{"$f":"IF(OR(Selection_Hide2!T55=0, Selection_Hide2!T55=\"\"), \"\", Selection_Hide2!T55)","v":""},{"$f":"IF(OR(Selection_Hide2!U55=0, Selection_Hide2!U55=\"\"), \"\", Selection_Hide2!U55)","v":""},{"$f":"IF(OR(Selection_Hide2!V55=0, Selection_Hide2!V55=\"\"), \"\", Selection_Hide2!V55)","v":""},{"$f":"IF(OR(Selection_Hide2!W55=0, Selection_Hide2!W55=\"\"), \"\", Selection_Hide2!W55)","v":""},{"$f":"IF(OR(Selection_Hide2!X55=0, Selection_Hide2!X55=\"\"), \"\", Selection_Hide2!X55)","v":""},{"$f":"IF(OR(Selection_Hide2!Y55=0, Selection_Hide2!Y55=\"\"), \"\", Selection_Hide2!Y55)","v":""},{"$f":"IF(OR(Selection_Hide2!Z55=0, Selection_Hide2!Z55=\"\"), \"\", Selection_Hide2!Z55)","v":""},{"$f":"IF(OR(Selection_Hide2!AA55=0, Selection_Hide2!AA55=\"\"), \"\", Selection_Hide2!AA55)","v":""},{"$f":"IF(OR(Selection_Hide2!AB55=0, Selection_Hide2!AB55=\"\"), \"\", Selection_Hide2!AB55)","v":""}]
[{"$f":"IF(OR(Selection_Hide2!A56=0, Selection_Hide2!A56=\"\"), \"\", Selection_Hide2!A56)","v":""},{"$f":"IF(OR(Selection_Hide2!B56=0, Selection_Hide2!B56=\"\"), \"\", Selection_Hide2!B56)","v":""},{"$f":"IF(OR(Selection_Hide2!C56=0, Selection_Hide2!C56=\"\"), \"\", Selection_Hide2!C56)","v":""},{"$f":"IF(OR(Selection_Hide2!D56=0, Selection_Hide2!D56=\"\"), \"\", Selection_Hide2!D56)","v":""},{"$f":"IF(OR(Selection_Hide2!E56=0, Selection_Hide2!E56=\"\"), \"\", Selection_Hide2!E56)","v":""},{"$f":"IF(OR(Selection_Hide2!F56=0, Selection_Hide2!F56=\"\"), \"\", Selection_Hide2!F56)","v":""},{"$f":"IF(OR(Selection_Hide2!G56=0, Selection_Hide2!G56=\"\"), \"\", Selection_Hide2!G56)","v":""},{"$f":"IF(OR(Selection_Hide2!H56=0, Selection_Hide2!H56=\"\"), \"\", Selection_Hide2!H56)","v":""},{"$f":"IF(OR(Selection_Hide2!I56=0, Selection_Hide2!I56=\"\"), \"\", Selection_Hide2!I56)","v":""},{"$f":"IF(OR(Selection_Hide2!J56=0, Selection_Hide2!J56=\"\"), \"\", Selection_Hide2!J56)","v":""},{"$f":"IF(OR(Selection_Hide2!K56=0, Selection_Hide2!K56=\"\"), \"\", Selection_Hide2!K56)","v":""},{"$f":"IF(OR(Selection_Hide2!L56=0, Selection_Hide2!L56=\"\"), \"\", Selection_Hide2!L56)","v":""},{"$f":"IF(OR(Selection_Hide2!M56=0, Selection_Hide2!M56=\"\"), \"\", Selection_Hide2!M56)","v":""},{"$f":"IF(OR(Selection_Hide2!N56=0, Selection_Hide2!N56=\"\"), \"\", Selection_Hide2!N56)","v":""},{"$f":"IF(OR(Selection_Hide2!O56=0, Selection_Hide2!O56=\"\"), \"\", Selection_Hide2!O56)","v":""},{"$f":"IF(OR(Selection_Hide2!P56=0, Selection_Hide2!P56=\"\"), \"\", Selection_Hide2!P56)","v":""},{"$f":"IF(OR(Selection_Hide2!Q56=0, Selection_Hide2!Q56=\"\"), \"\", Selection_Hide2!Q56)","v":""},{"$f":"IF(OR(Selection_Hide2!R56=0, Selection_Hide2!R56=\"\"), \"\", Selection_Hide2!R56)","v":""},{"$f":"IF(OR(Selection_Hide2!S56=0, Selection_Hide2!S56=\"\"), \"\", Selection_Hide2!S56)","v":""},{"$f":"IF(OR(Selection_Hide2!T56=0, Selection_Hide2!T56=\"\"), \"\", Selection_Hide2!T56)","v":""},{"$f":"IF(OR(Selection_Hide2!U56=0, Selection_Hide2!U56=\"\"), \"\", Selection_Hide2!U56)","v":""},{"$f":"IF(OR(Selection_Hide2!V56=0, Selection_Hide2!V56=\"\"), \"\", Selection_Hide2!V56)","v":""},{"$f":"IF(OR(Selection_Hide2!W56=0, Selection_Hide2!W56=\"\"), \"\", Selection_Hide2!W56)","v":""},{"$f":"IF(OR(Selection_Hide2!X56=0, Selection_Hide2!X56=\"\"), \"\", Selection_Hide2!X56)","v":""},{"$f":"IF(OR(Selection_Hide2!Y56=0, Selection_Hide2!Y56=\"\"), \"\", Selection_Hide2!Y56)","v":""},{"$f":"IF(OR(Selection_Hide2!Z56=0, Selection_Hide2!Z56=\"\"), \"\", Selection_Hide2!Z56)","v":""},{"$f":"IF(OR(Selection_Hide2!AA56=0, Selection_Hide2!AA56=\"\"), \"\", Selection_Hide2!AA56)","v":""},{"$f":"IF(OR(Selection_Hide2!AB56=0, Selection_Hide2!AB56=\"\"), \"\", Selection_Hide2!AB56)","v":""}]
[{"$f":"IF(OR(Selection_Hide2!A57=0, Selection_Hide2!A57=\"\"), \"\", Selection_Hide2!A57)","v":""},{"$f":"IF(OR(Selection_Hide2!B57=0, Selection_Hide2!B57=\"\"), \"\", Selection_Hide2!B57)","v":""},{"$f":"IF(OR(Selection_Hide2!C57=0, Selection_Hide2!C57=\"\"), \"\", Selection_Hide2!C57)","v":""},{"$f":"IF(OR(Selection_Hide2!D57=0, Selection_Hide2!D57=\"\"), \"\", Selection_Hide2!D57)","v":""},{"$f":"IF(OR(Selection_Hide2!E57=0, Selection_Hide2!E57=\"\"), \"\", Selection_Hide2!E57)","v":""},{"$f":"IF(OR(Selection_Hide2!F57=0, Selection_Hide2!F57=\"\"), \"\", Selection_Hide2!F57)","v":""},{"$f":"IF(OR(Selection_Hide2!G57=0, Selection_Hide2!G57=\"\"), \"\", Selection_Hide2!G57)","v":""},{"$f":"IF(OR(Selection_Hide2!H57=0, Selection_Hide2!H57=\"\"), \"\", Selection_Hide2!H57)","v":""},{"$f":"IF(OR(Selection_Hide2!I57=0, Selection_Hide2!I57=\"\"), \"\", Selection_Hide2!I57)","v":""},{"$f":"IF(OR(Selection_Hide2!J57=0, Selection_Hide2!J57=\"\"), \"\", Selection_Hide2!J57)","v":""},{"$f":"IF(OR(Selection_Hide2!K57=0, Selection_Hide2!K57=\"\"), \"\", Selection_Hide2!K57)","v":""},{"$f":"IF(OR(Selection_Hide2!L57=0, Selection_Hide2!L57=\"\"), \"\", Selection_Hide2!L57)","v":""},{"$f":"IF(OR(Selection_Hide2!M57=0, Selection_Hide2!M57=\"\"), \"\", Selection_Hide2!M57)","v":""},{"$f":"IF(OR(Selection_Hide2!N57=0, Selection_Hide2!N57=\"\"), \"\", Selection_Hide2!N57)","v":""},{"$f":"IF(OR(Selection_Hide2!O57=0, Selection_Hide2!O57=\"\"), \"\", Selection_Hide2!O57)","v":""},{"$f":"IF(OR(Selection_Hide2!P57=0, Selection_Hide2!P57=\"\"), \"\", Selection_Hide2!P57)","v":""},{"$f":"IF(OR(Selection_Hide2!Q57=0, Selection_Hide2!Q57=\"\"), \"\", Selection_Hide2!Q57)","v":""},{"$f":"IF(OR(Selection_Hide2!R57=0, Selection_Hide2!R57=\"\"), \"\", Selection_Hide2!R57)","v":""},{"$f":"IF(OR(Selection_Hide2!S57=0, Selection_Hide2!S57=\"\"), \"\", Selection_Hide2!S57)","v":""},{"$f":"IF(OR(Selection_Hide2!T57=0, Selection_Hide2!T57=\"\"), \"\", Selection_Hide2!T57)","v":""},{"$f":"IF(OR(Selection_Hide2!U57=0, Selection_Hide2!U57=\"\"), \"\", Selection_Hide2!U57)","v":""},{"$f":"IF(OR(Selection_Hide2!V57=0, Selection_Hide2!V57=\"\"), \"\", Selection_Hide2!V57)","v":""},{"$f":"IF(OR(Selection_Hide2!W57=0, Selection_Hide2!W57=\"\"), \"\", Selection_Hide2!W57)","v":""},{"$f":"IF(OR(Selection_Hide2!X57=0, Selection_Hide2!X57=\"\"), \"\", Selection_Hide2!X57)","v":""},{"$f":"IF(OR(Selection_Hide2!Y57=0, Selection_Hide2!Y57=\"\"), \"\", Selection_Hide2!Y57)","v":""},{"$f":"IF(OR(Selection_Hide2!Z57=0, Selection_Hide2!Z57=\"\"), \"\", Selection_Hide2!Z57)","v":""},{"$f":"IF(OR(Selection_Hide2!AA57=0, Selection_Hide2!AA57=\"\"), \"\", Selection_Hide2!AA57)","v":""},{"$f":"IF(OR(Selection_Hide2!AB57=0, Selection_Hide2!AB57=\"\"), \"\", Selection_Hide2!AB57)","v":""}]
[{"$f":"IF(OR(Selection_Hide2!A58=0, Selection_Hide2!A58=\"\"), \"\", Selection_Hide2!A58)","v":""},{"$f":"IF(OR(Selection_Hide2!B58=0, Selection_Hide2!B58=\"\"), \"\", Selection_Hide2!B58)","v":""},{"$f":"IF(OR(Selection_Hide2!C58=0, Selection_Hide2!C58=\"\"), \"\", Selection_Hide2!C58)","v":""},{"$f":"IF(OR(Selection_Hide2!D58=0, Selection_Hide2!D58=\"\"), \"\", Selection_Hide2!D58)","v":""},{"$f":"IF(OR(Selection_Hide2!E58=0, Selection_Hide2!E58=\"\"), \"\", Selection_Hide2!E58)","v":""},{"$f":"IF(OR(Selection_Hide2!F58=0, Selection_Hide2!F58=\"\"), \"\", Selection_Hide2!F58)","v":""},{"$f":"IF(OR(Selection_Hide2!G58=0, Selection_Hide2!G58=\"\"), \"\", Selection_Hide2!G58)","v":""},{"$f":"IF(OR(Selection_Hide2!H58=0, Selection_Hide2!H58=\"\"), \"\", Selection_Hide2!H58)","v":""},{"$f":"IF(OR(Selection_Hide2!I58=0, Selection_Hide2!I58=\"\"), \"\", Selection_Hide2!I58)","v":""},{"$f":"IF(OR(Selection_Hide2!J58=0, Selection_Hide2!J58=\"\"), \"\", Selection_Hide2!J58)","v":""},{"$f":"IF(OR(Selection_Hide2!K58=0, Selection_Hide2!K58=\"\"), \"\", Selection_Hide2!K58)","v":""},{"$f":"IF(OR(Selection_Hide2!L58=0, Selection_Hide2!L58=\"\"), \"\", Selection_Hide2!L58)","v":""},{"$f":"IF(OR(Selection_Hide2!M58=0, Selection_Hide2!M58=\"\"), \"\", Selection_Hide2!M58)","v":""},{"$f":"IF(OR(Selection_Hide2!N58=0, Selection_Hide2!N58=\"\"), \"\", Selection_Hide2!N58)","v":""},{"$f":"IF(OR(Selection_Hide2!O58=0, Selection_Hide2!O58=\"\"), \"\", Selection_Hide2!O58)","v":""},{"$f":"IF(OR(Selection_Hide2!P58=0, Selection_Hide2!P58=\"\"), \"\", Selection_Hide2!P58)","v":""},{"$f":"IF(OR(Selection_Hide2!Q58=0, Selection_Hide2!Q58=\"\"), \"\", Selection_Hide2!Q58)","v":""},{"$f":"IF(OR(Selection_Hide2!R58=0, Selection_Hide2!R58=\"\"), \"\", Selection_Hide2!R58)","v":""},{"$f":"IF(OR(Selection_Hide2!S58=0, Selection_Hide2!S58=\"\"), \"\", Selection_Hide2!S58)","v":""},{"$f":"IF(OR(Selection_Hide2!T58=0, Selection_Hide2!T58=\"\"), \"\", Selection_Hide2!T58)","v":""},{"$f":"IF(OR(Selection_Hide2!U58=0, Selection_Hide2!U58=\"\"), \"\", Selection_Hide2!U58)","v":""},{"$f":"IF(OR(Selection_Hide2!V58=0, Selection_Hide2!V58=\"\"), \"\", Selection_Hide2!V58)","v":""},{"$f":"IF(OR(Selection_Hide2!W58=0, Selection_Hide2!W58=\"\"), \"\", Selection_Hide2!W58)","v":""},{"$f":"IF(OR(Selection_Hide2!X58=0, Selection_Hide2!X58=\"\"), \"\", Selection_Hide2!X58)","v":""},{"$f":"IF(OR(Selection_Hide2!Y58=0, Selection_Hide2!Y58=\"\"), \"\", Selection_Hide2!Y58)","v":""},{"$f":"IF(OR(Selection_Hide2!Z58=0, Selection_Hide2!Z58=\"\"), \"\", Selection_Hide2!Z58)","v":""},{"$f":"IF(OR(Selection_Hide2!AA58=0, Selection_Hide2!AA58=\"\"), \"\", Selection_Hide2!AA58)","v":""},{"$f":"IF(OR(Selection_Hide2!AB58=0, Selection_Hide2!AB58=\"\"), \"\", Selection_Hide2!AB58)","v":""}]
[{"$f":"IF(OR(Selection_Hide2!A59=0, Selection_Hide2!A59=\"\"), \"\", Selection_Hide2!A59)","v":""},{"$f":"IF(OR(Selection_Hide2!B59=0, Selection_Hide2!B59=\"\"), \"\", Selection_Hide2!B59)","v":""},{"$f":"IF(OR(Selection_Hide2!C59=0, Selection_Hide2!C59=\"\"), \"\", Selection_Hide2!C59)","v":""},{"$f":"IF(OR(Selection_Hide2!D59=0, Selection_Hide2!D59=\"\"), \"\", Selection_Hide2!D59)","v":""},{"$f":"IF(OR(Selection_Hide2!E59=0, Selection_Hide2!E59=\"\"), \"\", Selection_Hide2!E59)","v":""},{"$f":"IF(OR(Selection_Hide2!F59=0, Selection_Hide2!F59=\"\"), \"\", Selection_Hide2!F59)","v":""},{"$f":"IF(OR(Selection_Hide2!G59=0, Selection_Hide2!G59=\"\"), \"\", Selection_Hide2!G59)","v":""},{"$f":"IF(OR(Selection_Hide2!H59=0, Selection_Hide2!H59=\"\"), \"\", Selection_Hide2!H59)","v":""},{"$f":"IF(OR(Selection_Hide2!I59=0, Selection_Hide2!I59=\"\"), \"\", Selection_Hide2!I59)","v":""},{"$f":"IF(OR(Selection_Hide2!J59=0, Selection_Hide2!J59=\"\"), \"\", Selection_Hide2!J59)","v":""},{"$f":"IF(OR(Selection_Hide2!K59=0, Selection_Hide2!K59=\"\"), \"\", Selection_Hide2!K59)","v":""},{"$f":"IF(OR(Selection_Hide2!L59=0, Selection_Hide2!L59=\"\"), \"\", Selection_Hide2!L59)","v":""},{"$f":"IF(OR(Selection_Hide2!M59=0, Selection_Hide2!M59=\"\"), \"\", Selection_Hide2!M59)","v":""},{"$f":"IF(OR(Selection_Hide2!N59=0, Selection_Hide2!N59=\"\"), \"\", Selection_Hide2!N59)","v":""},{"$f":"IF(OR(Selection_Hide2!O59=0, Selection_Hide2!O59=\"\"), \"\", Selection_Hide2!O59)","v":""},{"$f":"IF(OR(Selection_Hide2!P59=0, Selection_Hide2!P59=\"\"), \"\", Selection_Hide2!P59)","v":""},{"$f":"IF(OR(Selection_Hide2!Q59=0, Selection_Hide2!Q59=\"\"), \"\", Selection_Hide2!Q59)","v":""},{"$f":"IF(OR(Selection_Hide2!R59=0, Selection_Hide2!R59=\"\"), \"\", Selection_Hide2!R59)","v":""},{"$f":"IF(OR(Selection_Hide2!S59=0, Selection_Hide2!S59=\"\"), \"\", Selection_Hide2!S59)","v":""},{"$f":"IF(OR(Selection_Hide2!T59=0, Selection_Hide2!T59=\"\"), \"\", Selection_Hide2!T59)","v":""},{"$f":"IF(OR(Selection_Hide2!U59=0, Selection_Hide2!U59=\"\"), \"\", Selection_Hide2!U59)","v":""},{"$f":"IF(OR(Selection_Hide2!V59=0, Selection_Hide2!V59=\"\"), \"\", Selection_Hide2!V59)","v":""},{"$f":"IF(OR(Selection_Hide2!W59=0, Selection_Hide2!W59=\"\"), \"\", Selection_Hide2!W59)","v":""},{"$f":"IF(OR(Selection_Hide2!X59=0, Selection_Hide2!X59=\"\"), \"\", Selection_Hide2!X59)","v":""},{"$f":"IF(OR(Selection_Hide2!Y59=0, Selection_Hide2!Y59=\"\"), \"\", Selection_Hide2!Y59)","v":""},{"$f":"IF(OR(Selection_Hide2!Z59=0, Selection_Hide2!Z59=\"\"), \"\", Selection_Hide2!Z59)","v":""},{"$f":"IF(OR(Selection_Hide2!AA59=0, Selection_Hide2!AA59=\"\"), \"\", Selection_Hide2!AA59)","v":""},{"$f":"IF(OR(Selection_Hide2!AB59=0, Selection_Hide2!AB59=\"\"), \"\", Selection_Hide2!AB59)","v":""}]
[{"$f":"IF(OR(Selection_Hide2!A60=0, Selection_Hide2!A60=\"\"), \"\", Selection_Hide2!A60)","v":""},{"$f":"IF(OR(Selection_Hide2!B60=0, Selection_Hide2!B60=\"\"), \"\", Selection_Hide2!B60)","v":""},{"$f":"IF(OR(Selection_Hide2!C60=0, Selection_Hide2!C60=\"\"), \"\", Selection_Hide2!C60)","v":""},{"$f":"IF(OR(Selection_Hide2!D60=0, Selection_Hide2!D60=\"\"), \"\", Selection_Hide2!D60)","v":""},{"$f":"IF(OR(Selection_Hide2!E60=0, Selection_Hide2!E60=\"\"), \"\", Selection_Hide2!E60)","v":""},{"$f":"IF(OR(Selection_Hide2!F60=0, Selection_Hide2!F60=\"\"), \"\", Selection_Hide2!F60)","v":""},{"$f":"IF(OR(Selection_Hide2!G60=0, Selection_Hide2!G60=\"\"), \"\", Selection_Hide2!G60)","v":""},{"$f":"IF(OR(Selection_Hide2!H60=0, Selection_Hide2!H60=\"\"), \"\", Selection_Hide2!H60)","v":""},{"$f":"IF(OR(Selection_Hide2!I60=0, Selection_Hide2!I60=\"\"), \"\", Selection_Hide2!I60)","v":""},{"$f":"IF(OR(Selection_Hide2!J60=0, Selection_Hide2!J60=\"\"), \"\", Selection_Hide2!J60)","v":""},{"$f":"IF(OR(Selection_Hide2!K60=0, Selection_Hide2!K60=\"\"), \"\", Selection_Hide2!K60)","v":""},{"$f":"IF(OR(Selection_Hide2!L60=0, Selection_Hide2!L60=\"\"), \"\", Selection_Hide2!L60)","v":""},{"$f":"IF(OR(Selection_Hide2!M60=0, Selection_Hide2!M60=\"\"), \"\", Selection_Hide2!M60)","v":""},{"$f":"IF(OR(Selection_Hide2!N60=0, Selection_Hide2!N60=\"\"), \"\", Selection_Hide2!N60)","v":""},{"$f":"IF(OR(Selection_Hide2!O60=0, Selection_Hide2!O60=\"\"), \"\", Selection_Hide2!O60)","v":""},{"$f":"IF(OR(Selection_Hide2!P60=0, Selection_Hide2!P60=\"\"), \"\", Selection_Hide2!P60)","v":""},{"$f":"IF(OR(Selection_Hide2!Q60=0, Selection_Hide2!Q60=\"\"), \"\", Selection_Hide2!Q60)","v":""},{"$f":"IF(OR(Selection_Hide2!R60=0, Selection_Hide2!R60=\"\"), \"\", Selection_Hide2!R60)","v":""},{"$f":"IF(OR(Selection_Hide2!S60=0, Selection_Hide2!S60=\"\"), \"\", Selection_Hide2!S60)","v":""},{"$f":"IF(OR(Selection_Hide2!T60=0, Selection_Hide2!T60=\"\"), \"\", Selection_Hide2!T60)","v":""},{"$f":"IF(OR(Selection_Hide2!U60=0, Selection_Hide2!U60=\"\"), \"\", Selection_Hide2!U60)","v":""},{"$f":"IF(OR(Selection_Hide2!V60=0, Selection_Hide2!V60=\"\"), \"\", Selection_Hide2!V60)","v":""},{"$f":"IF(OR(Selection_Hide2!W60=0, Selection_Hide2!W60=\"\"), \"\", Selection_Hide2!W60)","v":""},{"$f":"IF(OR(Selection_Hide2!X60=0, Selection_Hide2!X60=\"\"), \"\", Selection_Hide2!X60)","v":""},{"$f":"IF(OR(Selection_Hide2!Y60=0, Selection_Hide2!Y60=\"\"), \"\", Selection_Hide2!Y60)","v":""},{"$f":"IF(OR(Selection_Hide2!Z60=0, Selection_Hide2!Z60=\"\"), \"\", Selection_Hide2!Z60)","v":""},{"$f":"IF(OR(Selection_Hide2!AA60=0, Selection_Hide2!AA60=\"\"), \"\", Selection_Hide2!AA60)","v":""},{"$f":"IF(OR(Selection_Hide2!AB60=0, Selection_Hide2!AB60=\"\"), \"\", Selection_Hide2!AB60)","v":""}]
[{"$f":"IF(OR(Selection_Hide2!A61=0, Selection_Hide2!A61=\"\"), \"\", Selection_Hide2!A61)","v":""},{"$f":"IF(OR(Selection_Hide2!B61=0, Selection_Hide2!B61=\"\"), \"\", Selection_Hide2!B61)","v":""},{"$f":"IF(OR(Selection_Hide2!C61=0, Selection_Hide2!C61=\"\"), \"\", Selection_Hide2!C61)","v":""},{"$f":"IF(OR(Selection_Hide2!D61=0, Selection_Hide2!D61=\"\"), \"\", Selection_Hide2!D61)","v":""},{"$f":"IF(OR(Selection_Hide2!E61=0, Selection_Hide2!E61=\"\"), \"\", Selection_Hide2!E61)","v":""},{"$f":"IF(OR(Selection_Hide2!F61=0, Selection_Hide2!F61=\"\"), \"\", Selection_Hide2!F61)","v":""},{"$f":"IF(OR(Selection_Hide2!G61=0, Selection_Hide2!G61=\"\"), \"\", Selection_Hide2!G61)","v":""},{"$f":"IF(OR(Selection_Hide2!H61=0, Selection_Hide2!H61=\"\"), \"\", Selection_Hide2!H61)","v":""},{"$f":"IF(OR(Selection_Hide2!I61=0, Selection_Hide2!I61=\"\"), \"\", Selection_Hide2!I61)","v":""},{"$f":"IF(OR(Selection_Hide2!J61=0, Selection_Hide2!J61=\"\"), \"\", Selection_Hide2!J61)","v":""},{"$f":"IF(OR(Selection_Hide2!K61=0, Selection_Hide2!K61=\"\"), \"\", Selection_Hide2!K61)","v":""},{"$f":"IF(OR(Selection_Hide2!L61=0, Selection_Hide2!L61=\"\"), \"\", Selection_Hide2!L61)","v":""},{"$f":"IF(OR(Selection_Hide2!M61=0, Selection_Hide2!M61=\"\"), \"\", Selection_Hide2!M61)","v":""},{"$f":"IF(OR(Selection_Hide2!N61=0, Selection_Hide2!N61=\"\"), \"\", Selection_Hide2!N61)","v":""},{"$f":"IF(OR(Selection_Hide2!O61=0, Selection_Hide2!O61=\"\"), \"\", Selection_Hide2!O61)","v":""},{"$f":"IF(OR(Selection_Hide2!P61=0, Selection_Hide2!P61=\"\"), \"\", Selection_Hide2!P61)","v":""},{"$f":"IF(OR(Selection_Hide2!Q61=0, Selection_Hide2!Q61=\"\"), \"\", Selection_Hide2!Q61)","v":""},{"$f":"IF(OR(Selection_Hide2!R61=0, Selection_Hide2!R61=\"\"), \"\", Selection_Hide2!R61)","v":""},{"$f":"IF(OR(Selection_Hide2!S61=0, Selection_Hide2!S61=\"\"), \"\", Selection_Hide2!S61)","v":""},{"$f":"IF(OR(Selection_Hide2!T61=0, Selection_Hide2!T61=\"\"), \"\", Selection_Hide2!T61)","v":""},{"$f":"IF(OR(Selection_Hide2!U61=0, Selection_Hide2!U61=\"\"), \"\", Selection_Hide2!U61)","v":""},{"$f":"IF(OR(Selection_Hide2!V61=0, Selection_Hide2!V61=\"\"), \"\", Selection_Hide2!V61)","v":""},{"$f":"IF(OR(Selection_Hide2!W61=0, Selection_Hide2!W61=\"\"), \"\", Selection_Hide2!W61)","v":""},{"$f":"IF(OR(Selection_Hide2!X61=0, Selection_Hide2!X61=\"\"), \"\", Selection_Hide2!X61)","v":""},{"$f":"IF(OR(Selection_Hide2!Y61=0, Selection_Hide2!Y61=\"\"), \"\", Selection_Hide2!Y61)","v":""},{"$f":"IF(OR(Selection_Hide2!Z61=0, Selection_Hide2!Z61=\"\"), \"\", Selection_Hide2!Z61)","v":""},{"$f":"IF(OR(Selection_Hide2!AA61=0, Selection_Hide2!AA61=\"\"), \"\", Selection_Hide2!AA61)","v":""},{"$f":"IF(OR(Selection_Hide2!AB61=0, Selection_Hide2!AB61=\"\"), \"\", Selection_Hide2!AB61)","v":""}]
[{"$f":"IF(OR(Selection_Hide2!A62=0, Selection_Hide2!A62=\"\"), \"\", Selection_Hide2!A62)","v":""},{"$f":"IF(OR(Selection_Hide2!B62=0, Selection_Hide2!B62=\"\"), \"\", Selection_Hide2!B62)","v":""},{"$f":"IF(OR(Selection_Hide2!C62=0, Selection_Hide2!C62=\"\"), \"\", Selection_Hide2!C62)","v":""},{"$f":"IF(OR(Selection_Hide2!D62=0, Selection_Hide2!D62=\"\"), \"\", Selection_Hide2!D62)","v":""},{"$f":"IF(OR(Selection_Hide2!E62=0, Selection_Hide2!E62=\"\"), \"\", Selection_Hide2!E62)","v":""},{"$f":"IF(OR(Selection_Hide2!F62=0, Selection_Hide2!F62=\"\"), \"\", Selection_Hide2!F62)","v":""},{"$f":"IF(OR(Selection_Hide2!G62=0, Selection_Hide2!G62=\"\"), \"\", Selection_Hide2!G62)","v":""},{"$f":"IF(OR(Selection_Hide2!H62=0, Selection_Hide2!H62=\"\"), \"\", Selection_Hide2!H62)","v":""},{"$f":"IF(OR(Selection_Hide2!I62=0, Selection_Hide2!I62=\"\"), \"\", Selection_Hide2!I62)","v":""},{"$f":"IF(OR(Selection_Hide2!J62=0, Selection_Hide2!J62=\"\"), \"\", Selection_Hide2!J62)","v":""},{"$f":"IF(OR(Selection_Hide2!K62=0, Selection_Hide2!K62=\"\"), \"\", Selection_Hide2!K62)","v":""},{"$f":"IF(OR(Selection_Hide2!L62=0, Selection_Hide2!L62=\"\"), \"\", Selection_Hide2!L62)","v":""},{"$f":"IF(OR(Selection_Hide2!M62=0, Selection_Hide2!M62=\"\"), \"\", Selection_Hide2!M62)","v":""},{"$f":"IF(OR(Selection_Hide2!N62=0, Selection_Hide2!N62=\"\"), \"\", Selection_Hide2!N62)","v":""},{"$f":"IF(OR(Selection_Hide2!O62=0, Selection_Hide2!O62=\"\"), \"\", Selection_Hide2!O62)","v":""},{"$f":"IF(OR(Selection_Hide2!P62=0, Selection_Hide2!P62=\"\"), \"\", Selection_Hide2!P62)","v":""},{"$f":"IF(OR(Selection_Hide2!Q62=0, Selection_Hide2!Q62=\"\"), \"\", Selection_Hide2!Q62)","v":""},{"$f":"IF(OR(Selection_Hide2!R62=0, Selection_Hide2!R62=\"\"), \"\", Selection_Hide2!R62)","v":""},{"$f":"IF(OR(Selection_Hide2!S62=0, Selection_Hide2!S62=\"\"), \"\", Selection_Hide2!S62)","v":""},{"$f":"IF(OR(Selection_Hide2!T62=0, Selection_Hide2!T62=\"\"), \"\", Selection_Hide2!T62)","v":""},{"$f":"IF(OR(Selection_Hide2!U62=0, Selection_Hide2!U62=\"\"), \"\", Selection_Hide2!U62)","v":""},{"$f":"IF(OR(Selection_Hide2!V62=0, Selection_Hide2!V62=\"\"), \"\", Selection_Hide2!V62)","v":""},{"$f":"IF(OR(Selection_Hide2!W62=0, Selection_Hide2!W62=\"\"), \"\", Selection_Hide2!W62)","v":""},{"$f":"IF(OR(Selection_Hide2!X62=0, Selection_Hide2!X62=\"\"), \"\", Selection_Hide2!X62)","v":""},{"$f":"IF(OR(Selection_Hide2!Y62=0, Selection_Hide2!Y62=\"\"), \"\", Selection_Hide2!Y62)","v":""},{"$f":"IF(OR(Selection_Hide2!Z62=0, Selection_Hide2!Z62=\"\"), \"\", Selection_Hide2!Z62)","v":""},{"$f":"IF(OR(Selection_Hide2!AA62=0, Selection_Hide2!AA62=\"\"), \"\", Selection_Hide2!AA62)","v":""},{"$f":"IF(OR(Selection_Hide2!AB62=0, Selection_Hide2!AB62=\"\"), \"\", Selection_Hide2!AB62)","v":""}]
[{"$f":"IF(OR(Selection_Hide2!A63=0, Selection_Hide2!A63=\"\"), \"\", Selection_Hide2!A63)","v":""},{"$f":"IF(OR(Selection_Hide2!B63=0, Selection_Hide2!B63=\"\"), \"\", Selection_Hide2!B63)","v":""},{"$f":"IF(OR(Selection_Hide2!C63=0, Selection_Hide2!C63=\"\"), \"\", Selection_Hide2!C63)","v":""},{"$f":"IF(OR(Selection_Hide2!D63=0, Selection_Hide2!D63=\"\"), \"\", Selection_Hide2!D63)","v":""},{"$f":"IF(OR(Selection_Hide2!E63=0, Selection_Hide2!E63=\"\"), \"\", Selection_Hide2!E63)","v":""},{"$f":"IF(OR(Selection_Hide2!F63=0, Selection_Hide2!F63=\"\"), \"\", Selection_Hide2!F63)","v":""},{"$f":"IF(OR(Selection_Hide2!G63=0, Selection_Hide2!G63=\"\"), \"\", Selection_Hide2!G63)","v":""},{"$f":"IF(OR(Selection_Hide2!H63=0, Selection_Hide2!H63=\"\"), \"\", Selection_Hide2!H63)","v":""},{"$f":"IF(OR(Selection_Hide2!I63=0, Selection_Hide2!I63=\"\"), \"\", Selection_Hide2!I63)","v":""},{"$f":"IF(OR(Selection_Hide2!J63=0, Selection_Hide2!J63=\"\"), \"\", Selection_Hide2!J63)","v":""},{"$f":"IF(OR(Selection_Hide2!K63=0, Selection_Hide2!K63=\"\"), \"\", Selection_Hide2!K63)","v":""},{"$f":"IF(OR(Selection_Hide2!L63=0, Selection_Hide2!L63=\"\"), \"\", Selection_Hide2!L63)","v":""},{"$f":"IF(OR(Selection_Hide2!M63=0, Selection_Hide2!M63=\"\"), \"\", Selection_Hide2!M63)","v":""},{"$f":"IF(OR(Selection_Hide2!N63=0, Selection_Hide2!N63=\"\"), \"\", Selection_Hide2!N63)","v":""},{"$f":"IF(OR(Selection_Hide2!O63=0, Selection_Hide2!O63=\"\"), \"\", Selection_Hide2!O63)","v":""},{"$f":"IF(OR(Selection_Hide2!P63=0, Selection_Hide2!P63=\"\"), \"\", Selection_Hide2!P63)","v":""},{"$f":"IF(OR(Selection_Hide2!Q63=0, Selection_Hide2!Q63=\"\"), \"\", Selection_Hide2!Q63)","v":""},{"$f":"IF(OR(Selection_Hide2!R63=0, Selection_Hide2!R63=\"\"), \"\", Selection_Hide2!R63)","v":""},{"$f":"IF(OR(Selection_Hide2!S63=0, Selection_Hide2!S63=\"\"), \"\", Selection_Hide2!S63)","v":""},{"$f":"IF(OR(Selection_Hide2!T63=0, Selection_Hide2!T63=\"\"), \"\", Selection_Hide2!T63)","v":""},{"$f":"IF(OR(Selection_Hide2!U63=0, Selection_Hide2!U63=\"\"), \"\", Selection_Hide2!U63)","v":""},{"$f":"IF(OR(Selection_Hide2!V63=0, Selection_Hide2!V63=\"\"), \"\", Selection_Hide2!V63)","v":""},{"$f":"IF(OR(Selection_Hide2!W63=0, Selection_Hide2!W63=\"\"), \"\", Selection_Hide2!W63)","v":""},{"$f":"IF(OR(Selection_Hide2!X63=0, Selection_Hide2!X63=\"\"), \"\", Selection_Hide2!X63)","v":""},{"$f":"IF(OR(Selection_Hide2!Y63=0, Selection_Hide2!Y63=\"\"), \"\", Selection_Hide2!Y63)","v":""},{"$f":"IF(OR(Selection_Hide2!Z63=0, Selection_Hide2!Z63=\"\"), \"\", Selection_Hide2!Z63)","v":""},{"$f":"IF(OR(Selection_Hide2!AA63=0, Selection_Hide2!AA63=\"\"), \"\", Selection_Hide2!AA63)","v":""},{"$f":"IF(OR(Selection_Hide2!AB63=0, Selection_Hide2!AB63=\"\"), \"\", Selection_Hide2!AB63)","v":""}]
[{"$f":"IF(OR(Selection_Hide2!A64=0, Selection_Hide2!A64=\"\"), \"\", Selection_Hide2!A64)","v":""},{"$f":"IF(OR(Selection_Hide2!B64=0, Selection_Hide2!B64=\"\"), \"\", Selection_Hide2!B64)","v":""},{"$f":"IF(OR(Selection_Hide2!C64=0, Selection_Hide2!C64=\"\"), \"\", Selection_Hide2!C64)","v":""},{"$f":"IF(OR(Selection_Hide2!D64=0, Selection_Hide2!D64=\"\"), \"\", Selection_Hide2!D64)","v":""},{"$f":"IF(OR(Selection_Hide2!E64=0, Selection_Hide2!E64=\"\"), \"\", Selection_Hide2!E64)","v":""},{"$f":"IF(OR(Selection_Hide2!F64=0, Selection_Hide2!F64=\"\"), \"\", Selection_Hide2!F64)","v":""},{"$f":"IF(OR(Selection_Hide2!G64=0, Selection_Hide2!G64=\"\"), \"\", Selection_Hide2!G64)","v":""},{"$f":"IF(OR(Selection_Hide2!H64=0, Selection_Hide2!H64=\"\"), \"\", Selection_Hide2!H64)","v":""},{"$f":"IF(OR(Selection_Hide2!I64=0, Selection_Hide2!I64=\"\"), \"\", Selection_Hide2!I64)","v":""},{"$f":"IF(OR(Selection_Hide2!J64=0, Selection_Hide2!J64=\"\"), \"\", Selection_Hide2!J64)","v":""},{"$f":"IF(OR(Selection_Hide2!K64=0, Selection_Hide2!K64=\"\"), \"\", Selection_Hide2!K64)","v":""},{"$f":"IF(OR(Selection_Hide2!L64=0, Selection_Hide2!L64=\"\"), \"\", Selection_Hide2!L64)","v":""},{"$f":"IF(OR(Selection_Hide2!M64=0, Selection_Hide2!M64=\"\"), \"\", Selection_Hide2!M64)","v":""},{"$f":"IF(OR(Selection_Hide2!N64=0, Selection_Hide2!N64=\"\"), \"\", Selection_Hide2!N64)","v":""},{"$f":"IF(OR(Selection_Hide2!O64=0, Selection_Hide2!O64=\"\"), \"\", Selection_Hide2!O64)","v":""},{"$f":"IF(OR(Selection_Hide2!P64=0, Selection_Hide2!P64=\"\"), \"\", Selection_Hide2!P64)","v":""},{"$f":"IF(OR(Selection_Hide2!Q64=0, Selection_Hide2!Q64=\"\"), \"\", Selection_Hide2!Q64)","v":""},{"$f":"IF(OR(Selection_Hide2!R64=0, Selection_Hide2!R64=\"\"), \"\", Selection_Hide2!R64)","v":""},{"$f":"IF(OR(Selection_Hide2!S64=0, Selection_Hide2!S64=\"\"), \"\", Selection_Hide2!S64)","v":""},{"$f":"IF(OR(Selection_Hide2!T64=0, Selection_Hide2!T64=\"\"), \"\", Selection_Hide2!T64)","v":""},{"$f":"IF(OR(Selection_Hide2!U64=0, Selection_Hide2!U64=\"\"), \"\", Selection_Hide2!U64)","v":""},{"$f":"IF(OR(Selection_Hide2!V64=0, Selection_Hide2!V64=\"\"), \"\", Selection_Hide2!V64)","v":""},{"$f":"IF(OR(Selection_Hide2!W64=0, Selection_Hide2!W64=\"\"), \"\", Selection_Hide2!W64)","v":""},{"$f":"IF(OR(Selection_Hide2!X64=0, Selection_Hide2!X64=\"\"), \"\", Selection_Hide2!X64)","v":""},{"$f":"IF(OR(Selection_Hide2!Y64=0, Selection_Hide2!Y64=\"\"), \"\", Selection_Hide2!Y64)","v":""},{"$f":"IF(OR(Selection_Hide2!Z64=0, Selection_Hide2!Z64=\"\"), \"\", Selection_Hide2!Z64)","v":""},{"$f":"IF(OR(Selection_Hide2!AA64=0, Selection_Hide2!AA64=\"\"), \"\", Selection_Hide2!AA64)","v":""},{"$f":"IF(OR(Selection_Hide2!AB64=0, Selection_Hide2!AB64=\"\"), \"\", Selection_Hide2!AB64)","v":""}]
[{"$f":"IF(OR(Selection_Hide2!A65=0, Selection_Hide2!A65=\"\"), \"\", Selection_Hide2!A65)","v":""},{"$f":"IF(OR(Selection_Hide2!B65=0, Selection_Hide2!B65=\"\"), \"\", Selection_Hide2!B65)","v":""},{"$f":"IF(OR(Selection_Hide2!C65=0, Selection_Hide2!C65=\"\"), \"\", Selection_Hide2!C65)","v":""},{"$f":"IF(OR(Selection_Hide2!D65=0, Selection_Hide2!D65=\"\"), \"\", Selection_Hide2!D65)","v":""},{"$f":"IF(OR(Selection_Hide2!E65=0, Selection_Hide2!E65=\"\"), \"\", Selection_Hide2!E65)","v":""},{"$f":"IF(OR(Selection_Hide2!F65=0, Selection_Hide2!F65=\"\"), \"\", Selection_Hide2!F65)","v":""},{"$f":"IF(OR(Selection_Hide2!G65=0, Selection_Hide2!G65=\"\"), \"\", Selection_Hide2!G65)","v":""},{"$f":"IF(OR(Selection_Hide2!H65=0, Selection_Hide2!H65=\"\"), \"\", Selection_Hide2!H65)","v":""},{"$f":"IF(OR(Selection_Hide2!I65=0, Selection_Hide2!I65=\"\"), \"\", Selection_Hide2!I65)","v":""},{"$f":"IF(OR(Selection_Hide2!J65=0, Selection_Hide2!J65=\"\"), \"\", Selection_Hide2!J65)","v":""},{"$f":"IF(OR(Selection_Hide2!K65=0, Selection_Hide2!K65=\"\"), \"\", Selection_Hide2!K65)","v":""},{"$f":"IF(OR(Selection_Hide2!L65=0, Selection_Hide2!L65=\"\"), \"\", Selection_Hide2!L65)","v":""},{"$f":"IF(OR(Selection_Hide2!M65=0, Selection_Hide2!M65=\"\"), \"\", Selection_Hide2!M65)","v":""},{"$f":"IF(OR(Selection_Hide2!N65=0, Selection_Hide2!N65=\"\"), \"\", Selection_Hide2!N65)","v":""},{"$f":"IF(OR(Selection_Hide2!O65=0, Selection_Hide2!O65=\"\"), \"\", Selection_Hide2!O65)","v":""},{"$f":"IF(OR(Selection_Hide2!P65=0, Selection_Hide2!P65=\"\"), \"\", Selection_Hide2!P65)","v":""},{"$f":"IF(OR(Selection_Hide2!Q65=0, Selection_Hide2!Q65=\"\"), \"\", Selection_Hide2!Q65)","v":""},{"$f":"IF(OR(Selection_Hide2!R65=0, Selection_Hide2!R65=\"\"), \"\", Selection_Hide2!R65)","v":""},{"$f":"IF(OR(Selection_Hide2!S65=0, Selection_Hide2!S65=\"\"), \"\", Selection_Hide2!S65)","v":""},{"$f":"IF(OR(Selection_Hide2!T65=0, Selection_Hide2!T65=\"\"), \"\", Selection_Hide2!T65)","v":""},{"$f":"IF(OR(Selection_Hide2!U65=0, Selection_Hide2!U65=\"\"), \"\", Selection_Hide2!U65)","v":""},{"$f":"IF(OR(Selection_Hide2!V65=0, Selection_Hide2!V65=\"\"), \"\", Selection_Hide2!V65)","v":""},{"$f":"IF(OR(Selection_Hide2!W65=0, Selection_Hide2!W65=\"\"), \"\", Selection_Hide2!W65)","v":""},{"$f":"IF(OR(Selection_Hide2!X65=0, Selection_Hide2!X65=\"\"), \"\", Selection_Hide2!X65)","v":""},{"$f":"IF(OR(Selection_Hide2!Y65=0, Selection_Hide2!Y65=\"\"), \"\", Selection_Hide2!Y65)","v":""},{"$f":"IF(OR(Selection_Hide2!Z65=0, Selection_Hide2!Z65=\"\"), \"\", Selection_Hide2!Z65)","v":""},{"$f":"IF(OR(Selection_Hide2!AA65=0, Selection_Hide2!AA65=\"\"), \"\", Selection_Hide2!AA65)","v":""},{"$f":"IF(OR(Selection_Hide2!AB65=0, Selection_Hide2!AB65=\"\"), \"\", Selection_Hide2!AB65)","v":""}]
[{"$f":"IF(OR(Selection_Hide2!A66=0, Selection_Hide2!A66=\"\"), \"\", Selection_Hide2!A66)","v":""},{"$f":"IF(OR(Selection_Hide2!B66=0, Selection_Hide2!B66=\"\"), \"\", Selection_Hide2!B66)","v":""},{"$f":"IF(OR(Selection_Hide2!C66=0, Selection_Hide2!C66=\"\"), \"\", Selection_Hide2!C66)","v":""},{"$f":"IF(OR(Selection_Hide2!D66=0, Selection_Hide2!D66=\"\"), \"\", Selection_Hide2!D66)","v":""},{"$f":"IF(OR(Selection_Hide2!E66=0, Selection_Hide2!E66=\"\"), \"\", Selection_Hide2!E66)","v":""},{"$f":"IF(OR(Selection_Hide2!F66=0, Selection_Hide2!F66=\"\"), \"\", Selection_Hide2!F66)","v":""},{"$f":"IF(OR(Selection_Hide2!G66=0, Selection_Hide2!G66=\"\"), \"\", Selection_Hide2!G66)","v":""},{"$f":"IF(OR(Selection_Hide2!H66=0, Selection_Hide2!H66=\"\"), \"\", Selection_Hide2!H66)","v":""},{"$f":"IF(OR(Selection_Hide2!I66=0, Selection_Hide2!I66=\"\"), \"\", Selection_Hide2!I66)","v":""},{"$f":"IF(OR(Selection_Hide2!J66=0, Selection_Hide2!J66=\"\"), \"\", Selection_Hide2!J66)","v":""},{"$f":"IF(OR(Selection_Hide2!K66=0, Selection_Hide2!K66=\"\"), \"\", Selection_Hide2!K66)","v":""},{"$f":"IF(OR(Selection_Hide2!L66=0, Selection_Hide2!L66=\"\"), \"\", Selection_Hide2!L66)","v":""},{"$f":"IF(OR(Selection_Hide2!M66=0, Selection_Hide2!M66=\"\"), \"\", Selection_Hide2!M66)","v":""},{"$f":"IF(OR(Selection_Hide2!N66=0, Selection_Hide2!N66=\"\"), \"\", Selection_Hide2!N66)","v":""},{"$f":"IF(OR(Selection_Hide2!O66=0, Selection_Hide2!O66=\"\"), \"\", Selection_Hide2!O66)","v":""},{"$f":"IF(OR(Selection_Hide2!P66=0, Selection_Hide2!P66=\"\"), \"\", Selection_Hide2!P66)","v":""},{"$f":"IF(OR(Selection_Hide2!Q66=0, Selection_Hide2!Q66=\"\"), \"\", Selection_Hide2!Q66)","v":""},{"$f":"IF(OR(Selection_Hide2!R66=0, Selection_Hide2!R66=\"\"), \"\", Selection_Hide2!R66)","v":""},{"$f":"IF(OR(Selection_Hide2!S66=0, Selection_Hide2!S66=\"\"), \"\", Selection_Hide2!S66)","v":""},{"$f":"IF(OR(Selection_Hide2!T66=0, Selection_Hide2!T66=\"\"), \"\", Selection_Hide2!T66)","v":""},{"$f":"IF(OR(Selection_Hide2!U66=0, Selection_Hide2!U66=\"\"), \"\", Selection_Hide2!U66)","v":""},{"$f":"IF(OR(Selection_Hide2!V66=0, Selection_Hide2!V66=\"\"), \"\", Selection_Hide2!V66)","v":""},{"$f":"IF(OR(Selection_Hide2!W66=0, Selection_Hide2!W66=\"\"), \"\", Selection_Hide2!W66)","v":""},{"$f":"IF(OR(Selection_Hide2!X66=0, Selection_Hide2!X66=\"\"), \"\", Selection_Hide2!X66)","v":""},{"$f":"IF(OR(Selection_Hide2!Y66=0, Selection_Hide2!Y66=\"\"), \"\", Selection_Hide2!Y66)","v":""},{"$f":"IF(OR(Selection_Hide2!Z66=0, Selection_Hide2!Z66=\"\"), \"\", Selection_Hide2!Z66)","v":""},{"$f":"IF(OR(Selection_Hide2!AA66=0, Selection_Hide2!AA66=\"\"), \"\", Selection_Hide2!AA66)","v":""},{"$f":"IF(OR(Selection_Hide2!AB66=0, Selection_Hide2!AB66=\"\"), \"\", Selection_Hide2!AB66)","v":""}]
[{"$f":"IF(OR(Selection_Hide2!A67=0, Selection_Hide2!A67=\"\"), \"\", Selection_Hide2!A67)","v":""},{"$f":"IF(OR(Selection_Hide2!B67=0, Selection_Hide2!B67=\"\"), \"\", Selection_Hide2!B67)","v":""},{"$f":"IF(OR(Selection_Hide2!C67=0, Selection_Hide2!C67=\"\"), \"\", Selection_Hide2!C67)","v":""},{"$f":"IF(OR(Selection_Hide2!D67=0, Selection_Hide2!D67=\"\"), \"\", Selection_Hide2!D67)","v":""},{"$f":"IF(OR(Selection_Hide2!E67=0, Selection_Hide2!E67=\"\"), \"\", Selection_Hide2!E67)","v":""},{"$f":"IF(OR(Selection_Hide2!F67=0, Selection_Hide2!F67=\"\"), \"\", Selection_Hide2!F67)","v":""},{"$f":"IF(OR(Selection_Hide2!G67=0, Selection_Hide2!G67=\"\"), \"\", Selection_Hide2!G67)","v":""},{"$f":"IF(OR(Selection_Hide2!H67=0, Selection_Hide2!H67=\"\"), \"\", Selection_Hide2!H67)","v":""},{"$f":"IF(OR(Selection_Hide2!I67=0, Selection_Hide2!I67=\"\"), \"\", Selection_Hide2!I67)","v":""},{"$f":"IF(OR(Selection_Hide2!J67=0, Selection_Hide2!J67=\"\"), \"\", Selection_Hide2!J67)","v":""},{"$f":"IF(OR(Selection_Hide2!K67=0, Selection_Hide2!K67=\"\"), \"\", Selection_Hide2!K67)","v":""},{"$f":"IF(OR(Selection_Hide2!L67=0, Selection_Hide2!L67=\"\"), \"\", Selection_Hide2!L67)","v":""},{"$f":"IF(OR(Selection_Hide2!M67=0, Selection_Hide2!M67=\"\"), \"\", Selection_Hide2!M67)","v":""},{"$f":"IF(OR(Selection_Hide2!N67=0, Selection_Hide2!N67=\"\"), \"\", Selection_Hide2!N67)","v":""},{"$f":"IF(OR(Selection_Hide2!O67=0, Selection_Hide2!O67=\"\"), \"\", Selection_Hide2!O67)","v":""},{"$f":"IF(OR(Selection_Hide2!P67=0, Selection_Hide2!P67=\"\"), \"\", Selection_Hide2!P67)","v":""},{"$f":"IF(OR(Selection_Hide2!Q67=0, Selection_Hide2!Q67=\"\"), \"\", Selection_Hide2!Q67)","v":""},{"$f":"IF(OR(Selection_Hide2!R67=0, Selection_Hide2!R67=\"\"), \"\", Selection_Hide2!R67)","v":""},{"$f":"IF(OR(Selection_Hide2!S67=0, Selection_Hide2!S67=\"\"), \"\", Selection_Hide2!S67)","v":""},{"$f":"IF(OR(Selection_Hide2!T67=0, Selection_Hide2!T67=\"\"), \"\", Selection_Hide2!T67)","v":""},{"$f":"IF(OR(Selection_Hide2!U67=0, Selection_Hide2!U67=\"\"), \"\", Selection_Hide2!U67)","v":""},{"$f":"IF(OR(Selection_Hide2!V67=0, Selection_Hide2!V67=\"\"), \"\", Selection_Hide2!V67)","v":""},{"$f":"IF(OR(Selection_Hide2!W67=0, Selection_Hide2!W67=\"\"), \"\", Selection_Hide2!W67)","v":""},{"$f":"IF(OR(Selection_Hide2!X67=0, Selection_Hide2!X67=\"\"), \"\", Selection_Hide2!X67)","v":""},{"$f":"IF(OR(Selection_Hide2!Y67=0, Selection_Hide2!Y67=\"\"), \"\", Selection_Hide2!Y67)","v":""},{"$f":"IF(OR(Selection_Hide2!Z67=0, Selection_Hide2!Z67=\"\"), \"\", Selection_Hide2!Z67)","v":""},{"$f":"IF(OR(Selection_Hide2!AA67=0, Selection_Hide2!AA67=\"\"), \"\", Selection_Hide2!AA67)","v":""},{"$f":"IF(OR(Selection_Hide2!AB67=0, Selection_Hide2!AB67=\"\"), \"\", Selection_Hide2!AB67)","v":""}]
[{"$f":"IF(OR(Selection_Hide2!A68=0, Selection_Hide2!A68=\"\"), \"\", Selection_Hide2!A68)","v":""},{"$f":"IF(OR(Selection_Hide2!B68=0, Selection_Hide2!B68=\"\"), \"\", Selection_Hide2!B68)","v":""},{"$f":"IF(OR(Selection_Hide2!C68=0, Selection_Hide2!C68=\"\"), \"\", Selection_Hide2!C68)","v":""},{"$f":"IF(OR(Selection_Hide2!D68=0, Selection_Hide2!D68=\"\"), \"\", Selection_Hide2!D68)","v":""},{"$f":"IF(OR(Selection_Hide2!E68=0, Selection_Hide2!E68=\"\"), \"\", Selection_Hide2!E68)","v":""},{"$f":"IF(OR(Selection_Hide2!F68=0, Selection_Hide2!F68=\"\"), \"\", Selection_Hide2!F68)","v":""},{"$f":"IF(OR(Selection_Hide2!G68=0, Selection_Hide2!G68=\"\"), \"\", Selection_Hide2!G68)","v":""},{"$f":"IF(OR(Selection_Hide2!H68=0, Selection_Hide2!H68=\"\"), \"\", Selection_Hide2!H68)","v":""},{"$f":"IF(OR(Selection_Hide2!I68=0, Selection_Hide2!I68=\"\"), \"\", Selection_Hide2!I68)","v":""},{"$f":"IF(OR(Selection_Hide2!J68=0, Selection_Hide2!J68=\"\"), \"\", Selection_Hide2!J68)","v":""},{"$f":"IF(OR(Selection_Hide2!K68=0, Selection_Hide2!K68=\"\"), \"\", Selection_Hide2!K68)","v":""},{"$f":"IF(OR(Selection_Hide2!L68=0, Selection_Hide2!L68=\"\"), \"\", Selection_Hide2!L68)","v":""},{"$f":"IF(OR(Selection_Hide2!M68=0, Selection_Hide2!M68=\"\"), \"\", Selection_Hide2!M68)","v":""},{"$f":"IF(OR(Selection_Hide2!N68=0, Selection_Hide2!N68=\"\"), \"\", Selection_Hide2!N68)","v":""},{"$f":"IF(OR(Selection_Hide2!O68=0, Selection_Hide2!O68=\"\"), \"\", Selection_Hide2!O68)","v":""},{"$f":"IF(OR(Selection_Hide2!P68=0, Selection_Hide2!P68=\"\"), \"\", Selection_Hide2!P68)","v":""},{"$f":"IF(OR(Selection_Hide2!Q68=0, Selection_Hide2!Q68=\"\"), \"\", Selection_Hide2!Q68)","v":""},{"$f":"IF(OR(Selection_Hide2!R68=0, Selection_Hide2!R68=\"\"), \"\", Selection_Hide2!R68)","v":""},{"$f":"IF(OR(Selection_Hide2!S68=0, Selection_Hide2!S68=\"\"), \"\", Selection_Hide2!S68)","v":""},{"$f":"IF(OR(Selection_Hide2!T68=0, Selection_Hide2!T68=\"\"), \"\", Selection_Hide2!T68)","v":""},{"$f":"IF(OR(Selection_Hide2!U68=0, Selection_Hide2!U68=\"\"), \"\", Selection_Hide2!U68)","v":""},{"$f":"IF(OR(Selection_Hide2!V68=0, Selection_Hide2!V68=\"\"), \"\", Selection_Hide2!V68)","v":""},{"$f":"IF(OR(Selection_Hide2!W68=0, Selection_Hide2!W68=\"\"), \"\", Selection_Hide2!W68)","v":""},{"$f":"IF(OR(Selection_Hide2!X68=0, Selection_Hide2!X68=\"\"), \"\", Selection_Hide2!X68)","v":""},{"$f":"IF(OR(Selection_Hide2!Y68=0, Selection_Hide2!Y68=\"\"), \"\", Selection_Hide2!Y68)","v":""},{"$f":"IF(OR(Selection_Hide2!Z68=0, Selection_Hide2!Z68=\"\"), \"\", Selection_Hide2!Z68)","v":""},{"$f":"IF(OR(Selection_Hide2!AA68=0, Selection_Hide2!AA68=\"\"), \"\", Selection_Hide2!AA68)","v":""},{"$f":"IF(OR(Selection_Hide2!AB68=0, Selection_Hide2!AB68=\"\"), \"\", Selection_Hide2!AB68)","v":""}]
[{"$f":"IF(OR(Selection_Hide2!A69=0, Selection_Hide2!A69=\"\"), \"\", Selection_Hide2!A69)","v":""},{"$f":"IF(OR(Selection_Hide2!B69=0, Selection_Hide2!B69=\"\"), \"\", Selection_Hide2!B69)","v":""},{"$f":"IF(OR(Selection_Hide2!C69=0, Selection_Hide2!C69=\"\"), \"\", Selection_Hide2!C69)","v":""},{"$f":"IF(OR(Selection_Hide2!D69=0, Selection_Hide2!D69=\"\"), \"\", Selection_Hide2!D69)","v":""},{"$f":"IF(OR(Selection_Hide2!E69=0, Selection_Hide2!E69=\"\"), \"\", Selection_Hide2!E69)","v":""},{"$f":"IF(OR(Selection_Hide2!F69=0, Selection_Hide2!F69=\"\"), \"\", Selection_Hide2!F69)","v":""},{"$f":"IF(OR(Selection_Hide2!G69=0, Selection_Hide2!G69=\"\"), \"\", Selection_Hide2!G69)","v":""},{"$f":"IF(OR(Selection_Hide2!H69=0, Selection_Hide2!H69=\"\"), \"\", Selection_Hide2!H69)","v":""},{"$f":"IF(OR(Selection_Hide2!I69=0, Selection_Hide2!I69=\"\"), \"\", Selection_Hide2!I69)","v":""},{"$f":"IF(OR(Selection_Hide2!J69=0, Selection_Hide2!J69=\"\"), \"\", Selection_Hide2!J69)","v":""},{"$f":"IF(OR(Selection_Hide2!K69=0, Selection_Hide2!K69=\"\"), \"\", Selection_Hide2!K69)","v":""},{"$f":"IF(OR(Selection_Hide2!L69=0, Selection_Hide2!L69=\"\"), \"\", Selection_Hide2!L69)","v":""},{"$f":"IF(OR(Selection_Hide2!M69=0, Selection_Hide2!M69=\"\"), \"\", Selection_Hide2!M69)","v":""},{"$f":"IF(OR(Selection_Hide2!N69=0, Selection_Hide2!N69=\"\"), \"\", Selection_Hide2!N69)","v":""},{"$f":"IF(OR(Selection_Hide2!O69=0, Selection_Hide2!O69=\"\"), \"\", Selection_Hide2!O69)","v":""},{"$f":"IF(OR(Selection_Hide2!P69=0, Selection_Hide2!P69=\"\"), \"\", Selection_Hide2!P69)","v":""},{"$f":"IF(OR(Selection_Hide2!Q69=0, Selection_Hide2!Q69=\"\"), \"\", Selection_Hide2!Q69)","v":""},{"$f":"IF(OR(Selection_Hide2!R69=0, Selection_Hide2!R69=\"\"), \"\", Selection_Hide2!R69)","v":""},{"$f":"IF(OR(Selection_Hide2!S69=0, Selection_Hide2!S69=\"\"), \"\", Selection_Hide2!S69)","v":""},{"$f":"IF(OR(Selection_Hide2!T69=0, Selection_Hide2!T69=\"\"), \"\", Selection_Hide2!T69)","v":""},{"$f":"IF(OR(Selection_Hide2!U69=0, Selection_Hide2!U69=\"\"), \"\", Selection_Hide2!U69)","v":""},{"$f":"IF(OR(Selection_Hide2!V69=0, Selection_Hide2!V69=\"\"), \"\", Selection_Hide2!V69)","v":""},{"$f":"IF(OR(Selection_Hide2!W69=0, Selection_Hide2!W69=\"\"), \"\", Selection_Hide2!W69)","v":""},{"$f":"IF(OR(Selection_Hide2!X69=0, Selection_Hide2!X69=\"\"), \"\", Selection_Hide2!X69)","v":""},{"$f":"IF(OR(Selection_Hide2!Y69=0, Selection_Hide2!Y69=\"\"), \"\", Selection_Hide2!Y69)","v":""},{"$f":"IF(OR(Selection_Hide2!Z69=0, Selection_Hide2!Z69=\"\"), \"\", Selection_Hide2!Z69)","v":""},{"$f":"IF(OR(Selection_Hide2!AA69=0, Selection_Hide2!AA69=\"\"), \"\", Selection_Hide2!AA69)","v":""},{"$f":"IF(OR(Selection_Hide2!AB69=0, Selection_Hide2!AB69=\"\"), \"\", Selection_Hide2!AB69)","v":""}]
[{"$f":"IF(OR(Selection_Hide2!A70=0, Selection_Hide2!A70=\"\"), \"\", Selection_Hide2!A70)","v":""},{"$f":"IF(OR(Selection_Hide2!B70=0, Selection_Hide2!B70=\"\"), \"\", Selection_Hide2!B70)","v":""},{"$f":"IF(OR(Selection_Hide2!C70=0, Selection_Hide2!C70=\"\"), \"\", Selection_Hide2!C70)","v":""},{"$f":"IF(OR(Selection_Hide2!D70=0, Selection_Hide2!D70=\"\"), \"\", Selection_Hide2!D70)","v":""},{"$f":"IF(OR(Selection_Hide2!E70=0, Selection_Hide2!E70=\"\"), \"\", Selection_Hide2!E70)","v":""},{"$f":"IF(OR(Selection_Hide2!F70=0, Selection_Hide2!F70=\"\"), \"\", Selection_Hide2!F70)","v":""},{"$f":"IF(OR(Selection_Hide2!G70=0, Selection_Hide2!G70=\"\"), \"\", Selection_Hide2!G70)","v":""},{"$f":"IF(OR(Selection_Hide2!H70=0, Selection_Hide2!H70=\"\"), \"\", Selection_Hide2!H70)","v":""},{"$f":"IF(OR(Selection_Hide2!I70=0, Selection_Hide2!I70=\"\"), \"\", Selection_Hide2!I70)","v":""},{"$f":"IF(OR(Selection_Hide2!J70=0, Selection_Hide2!J70=\"\"), \"\", Selection_Hide2!J70)","v":""},{"$f":"IF(OR(Selection_Hide2!K70=0, Selection_Hide2!K70=\"\"), \"\", Selection_Hide2!K70)","v":""},{"$f":"IF(OR(Selection_Hide2!L70=0, Selection_Hide2!L70=\"\"), \"\", Selection_Hide2!L70)","v":""},{"$f":"IF(OR(Selection_Hide2!M70=0, Selection_Hide2!M70=\"\"), \"\", Selection_Hide2!M70)","v":""},{"$f":"IF(OR(Selection_Hide2!N70=0, Selection_Hide2!N70=\"\"), \"\", Selection_Hide2!N70)","v":""},{"$f":"IF(OR(Selection_Hide2!O70=0, Selection_Hide2!O70=\"\"), \"\", Selection_Hide2!O70)","v":""},{"$f":"IF(OR(Selection_Hide2!P70=0, Selection_Hide2!P70=\"\"), \"\", Selection_Hide2!P70)","v":""},{"$f":"IF(OR(Selection_Hide2!Q70=0, Selection_Hide2!Q70=\"\"), \"\", Selection_Hide2!Q70)","v":""},{"$f":"IF(OR(Selection_Hide2!R70=0, Selection_Hide2!R70=\"\"), \"\", Selection_Hide2!R70)","v":""},{"$f":"IF(OR(Selection_Hide2!S70=0, Selection_Hide2!S70=\"\"), \"\", Selection_Hide2!S70)","v":""},{"$f":"IF(OR(Selection_Hide2!T70=0, Selection_Hide2!T70=\"\"), \"\", Selection_Hide2!T70)","v":""},{"$f":"IF(OR(Selection_Hide2!U70=0, Selection_Hide2!U70=\"\"), \"\", Selection_Hide2!U70)","v":""},{"$f":"IF(OR(Selection_Hide2!V70=0, Selection_Hide2!V70=\"\"), \"\", Selection_Hide2!V70)","v":""},{"$f":"IF(OR(Selection_Hide2!W70=0, Selection_Hide2!W70=\"\"), \"\", Selection_Hide2!W70)","v":""},{"$f":"IF(OR(Selection_Hide2!X70=0, Selection_Hide2!X70=\"\"), \"\", Selection_Hide2!X70)","v":""},{"$f":"IF(OR(Selection_Hide2!Y70=0, Selection_Hide2!Y70=\"\"), \"\", Selection_Hide2!Y70)","v":""},{"$f":"IF(OR(Selection_Hide2!Z70=0, Selection_Hide2!Z70=\"\"), \"\", Selection_Hide2!Z70)","v":""},{"$f":"IF(OR(Selection_Hide2!AA70=0, Selection_Hide2!AA70=\"\"), \"\", Selection_Hide2!AA70)","v":""},{"$f":"IF(OR(Selection_Hide2!AB70=0, Selection_Hide2!AB70=\"\"), \"\", Selection_Hide2!AB70)","v":""}]
[{"$f":"IF(OR(Selection_Hide2!A71=0, Selection_Hide2!A71=\"\"), \"\", Selection_Hide2!A71)","v":""},{"$f":"IF(OR(Selection_Hide2!B71=0, Selection_Hide2!B71=\"\"), \"\", Selection_Hide2!B71)","v":""},{"$f":"IF(OR(Selection_Hide2!C71=0, Selection_Hide2!C71=\"\"), \"\", Selection_Hide2!C71)","v":""},{"$f":"IF(OR(Selection_Hide2!D71=0, Selection_Hide2!D71=\"\"), \"\", Selection_Hide2!D71)","v":""},{"$f":"IF(OR(Selection_Hide2!E71=0, Selection_Hide2!E71=\"\"), \"\", Selection_Hide2!E71)","v":""},{"$f":"IF(OR(Selection_Hide2!F71=0, Selection_Hide2!F71=\"\"), \"\", Selection_Hide2!F71)","v":""},{"$f":"IF(OR(Selection_Hide2!G71=0, Selection_Hide2!G71=\"\"), \"\", Selection_Hide2!G71)","v":""},{"$f":"IF(OR(Selection_Hide2!H71=0, Selection_Hide2!H71=\"\"), \"\", Selection_Hide2!H71)","v":""},{"$f":"IF(OR(Selection_Hide2!I71=0, Selection_Hide2!I71=\"\"), \"\", Selection_Hide2!I71)","v":""},{"$f":"IF(OR(Selection_Hide2!J71=0, Selection_Hide2!J71=\"\"), \"\", Selection_Hide2!J71)","v":""},{"$f":"IF(OR(Selection_Hide2!K71=0, Selection_Hide2!K71=\"\"), \"\", Selection_Hide2!K71)","v":""},{"$f":"IF(OR(Selection_Hide2!L71=0, Selection_Hide2!L71=\"\"), \"\", Selection_Hide2!L71)","v":""},{"$f":"IF(OR(Selection_Hide2!M71=0, Selection_Hide2!M71=\"\"), \"\", Selection_Hide2!M71)","v":""},{"$f":"IF(OR(Selection_Hide2!N71=0, Selection_Hide2!N71=\"\"), \"\", Selection_Hide2!N71)","v":""},{"$f":"IF(OR(Selection_Hide2!O71=0, Selection_Hide2!O71=\"\"), \"\", Selection_Hide2!O71)","v":""},{"$f":"IF(OR(Selection_Hide2!P71=0, Selection_Hide2!P71=\"\"), \"\", Selection_Hide2!P71)","v":""},{"$f":"IF(OR(Selection_Hide2!Q71=0, Selection_Hide2!Q71=\"\"), \"\", Selection_Hide2!Q71)","v":""},{"$f":"IF(OR(Selection_Hide2!R71=0, Selection_Hide2!R71=\"\"), \"\", Selection_Hide2!R71)","v":""},{"$f":"IF(OR(Selection_Hide2!S71=0, Selection_Hide2!S71=\"\"), \"\", Selection_Hide2!S71)","v":""},{"$f":"IF(OR(Selection_Hide2!T71=0, Selection_Hide2!T71=\"\"), \"\", Selection_Hide2!T71)","v":""},{"$f":"IF(OR(Selection_Hide2!U71=0, Selection_Hide2!U71=\"\"), \"\", Selection_Hide2!U71)","v":""},{"$f":"IF(OR(Selection_Hide2!V71=0, Selection_Hide2!V71=\"\"), \"\", Selection_Hide2!V71)","v":""},{"$f":"IF(OR(Selection_Hide2!W71=0, Selection_Hide2!W71=\"\"), \"\", Selection_Hide2!W71)","v":""},{"$f":"IF(OR(Selection_Hide2!X71=0, Selection_Hide2!X71=\"\"), \"\", Selection_Hide2!X71)","v":""},{"$f":"IF(OR(Selection_Hide2!Y71=0, Selection_Hide2!Y71=\"\"), \"\", Selection_Hide2!Y71)","v":""},{"$f":"IF(OR(Selection_Hide2!Z71=0, Selection_Hide2!Z71=\"\"), \"\", Selection_Hide2!Z71)","v":""},{"$f":"IF(OR(Selection_Hide2!AA71=0, Selection_Hide2!AA71=\"\"), \"\", Selection_Hide2!AA71)","v":""},{"$f":"IF(OR(Selection_Hide2!AB71=0, Selection_Hide2!AB71=\"\"), \"\", Selection_Hide2!AB71)","v":""}]
[{"$f":"IF(OR(Selection_Hide2!A72=0, Selection_Hide2!A72=\"\"), \"\", Selection_Hide2!A72)","v":""},{"$f":"IF(OR(Selection_Hide2!B72=0, Selection_Hide2!B72=\"\"), \"\", Selection_Hide2!B72)","v":""},{"$f":"IF(OR(Selection_Hide2!C72=0, Selection_Hide2!C72=\"\"), \"\", Selection_Hide2!C72)","v":""},{"$f":"IF(OR(Selection_Hide2!D72=0, Selection_Hide2!D72=\"\"), \"\", Selection_Hide2!D72)","v":""},{"$f":"IF(OR(Selection_Hide2!E72=0, Selection_Hide2!E72=\"\"), \"\", Selection_Hide2!E72)","v":""},{"$f":"IF(OR(Selection_Hide2!F72=0, Selection_Hide2!F72=\"\"), \"\", Selection_Hide2!F72)","v":""},{"$f":"IF(OR(Selection_Hide2!G72=0, Selection_Hide2!G72=\"\"), \"\", Selection_Hide2!G72)","v":""},{"$f":"IF(OR(Selection_Hide2!H72=0, Selection_Hide2!H72=\"\"), \"\", Selection_Hide2!H72)","v":""},{"$f":"IF(OR(Selection_Hide2!I72=0, Selection_Hide2!I72=\"\"), \"\", Selection_Hide2!I72)","v":""},{"$f":"IF(OR(Selection_Hide2!J72=0, Selection_Hide2!J72=\"\"), \"\", Selection_Hide2!J72)","v":""},{"$f":"IF(OR(Selection_Hide2!K72=0, Selection_Hide2!K72=\"\"), \"\", Selection_Hide2!K72)","v":""},{"$f":"IF(OR(Selection_Hide2!L72=0, Selection_Hide2!L72=\"\"), \"\", Selection_Hide2!L72)","v":""},{"$f":"IF(OR(Selection_Hide2!M72=0, Selection_Hide2!M72=\"\"), \"\", Selection_Hide2!M72)","v":""},{"$f":"IF(OR(Selection_Hide2!N72=0, Selection_Hide2!N72=\"\"), \"\", Selection_Hide2!N72)","v":""},{"$f":"IF(OR(Selection_Hide2!O72=0, Selection_Hide2!O72=\"\"), \"\", Selection_Hide2!O72)","v":""},{"$f":"IF(OR(Selection_Hide2!P72=0, Selection_Hide2!P72=\"\"), \"\", Selection_Hide2!P72)","v":""},{"$f":"IF(OR(Selection_Hide2!Q72=0, Selection_Hide2!Q72=\"\"), \"\", Selection_Hide2!Q72)","v":""},{"$f":"IF(OR(Selection_Hide2!R72=0, Selection_Hide2!R72=\"\"), \"\", Selection_Hide2!R72)","v":""},{"$f":"IF(OR(Selection_Hide2!S72=0, Selection_Hide2!S72=\"\"), \"\", Selection_Hide2!S72)","v":""},{"$f":"IF(OR(Selection_Hide2!T72=0, Selection_Hide2!T72=\"\"), \"\", Selection_Hide2!T72)","v":""},{"$f":"IF(OR(Selection_Hide2!U72=0, Selection_Hide2!U72=\"\"), \"\", Selection_Hide2!U72)","v":""},{"$f":"IF(OR(Selection_Hide2!V72=0, Selection_Hide2!V72=\"\"), \"\", Selection_Hide2!V72)","v":""},{"$f":"IF(OR(Selection_Hide2!W72=0, Selection_Hide2!W72=\"\"), \"\", Selection_Hide2!W72)","v":""},{"$f":"IF(OR(Selection_Hide2!X72=0, Selection_Hide2!X72=\"\"), \"\", Selection_Hide2!X72)","v":""},{"$f":"IF(OR(Selection_Hide2!Y72=0, Selection_Hide2!Y72=\"\"), \"\", Selection_Hide2!Y72)","v":""},{"$f":"IF(OR(Selection_Hide2!Z72=0, Selection_Hide2!Z72=\"\"), \"\", Selection_Hide2!Z72)","v":""},{"$f":"IF(OR(Selection_Hide2!AA72=0, Selection_Hide2!AA72=\"\"), \"\", Selection_Hide2!AA72)","v":""},{"$f":"IF(OR(Selection_Hide2!AB72=0, Selection_Hide2!AB72=\"\"), \"\", Selection_Hide2!AB72)","v":""}]
[{"$f":"IF(OR(Selection_Hide2!A73=0, Selection_Hide2!A73=\"\"), \"\", Selection_Hide2!A73)","v":""},{"$f":"IF(OR(Selection_Hide2!B73=0, Selection_Hide2!B73=\"\"), \"\", Selection_Hide2!B73)","v":""},{"$f":"IF(OR(Selection_Hide2!C73=0, Selection_Hide2!C73=\"\"), \"\", Selection_Hide2!C73)","v":""},{"$f":"IF(OR(Selection_Hide2!D73=0, Selection_Hide2!D73=\"\"), \"\", Selection_Hide2!D73)","v":""},{"$f":"IF(OR(Selection_Hide2!E73=0, Selection_Hide2!E73=\"\"), \"\", Selection_Hide2!E73)","v":""},{"$f":"IF(OR(Selection_Hide2!F73=0, Selection_Hide2!F73=\"\"), \"\", Selection_Hide2!F73)","v":""},{"$f":"IF(OR(Selection_Hide2!G73=0, Selection_Hide2!G73=\"\"), \"\", Selection_Hide2!G73)","v":""},{"$f":"IF(OR(Selection_Hide2!H73=0, Selection_Hide2!H73=\"\"), \"\", Selection_Hide2!H73)","v":""},{"$f":"IF(OR(Selection_Hide2!I73=0, Selection_Hide2!I73=\"\"), \"\", Selection_Hide2!I73)","v":""},{"$f":"IF(OR(Selection_Hide2!J73=0, Selection_Hide2!J73=\"\"), \"\", Selection_Hide2!J73)","v":""},{"$f":"IF(OR(Selection_Hide2!K73=0, Selection_Hide2!K73=\"\"), \"\", Selection_Hide2!K73)","v":""},{"$f":"IF(OR(Selection_Hide2!L73=0, Selection_Hide2!L73=\"\"), \"\", Selection_Hide2!L73)","v":""},{"$f":"IF(OR(Selection_Hide2!M73=0, Selection_Hide2!M73=\"\"), \"\", Selection_Hide2!M73)","v":""},{"$f":"IF(OR(Selection_Hide2!N73=0, Selection_Hide2!N73=\"\"), \"\", Selection_Hide2!N73)","v":""},{"$f":"IF(OR(Selection_Hide2!O73=0, Selection_Hide2!O73=\"\"), \"\", Selection_Hide2!O73)","v":""},{"$f":"IF(OR(Selection_Hide2!P73=0, Selection_Hide2!P73=\"\"), \"\", Selection_Hide2!P73)","v":""},{"$f":"IF(OR(Selection_Hide2!Q73=0, Selection_Hide2!Q73=\"\"), \"\", Selection_Hide2!Q73)","v":""},{"$f":"IF(OR(Selection_Hide2!R73=0, Selection_Hide2!R73=\"\"), \"\", Selection_Hide2!R73)","v":""},{"$f":"IF(OR(Selection_Hide2!S73=0, Selection_Hide2!S73=\"\"), \"\", Selection_Hide2!S73)","v":""},{"$f":"IF(OR(Selection_Hide2!T73=0, Selection_Hide2!T73=\"\"), \"\", Selection_Hide2!T73)","v":""},{"$f":"IF(OR(Selection_Hide2!U73=0, Selection_Hide2!U73=\"\"), \"\", Selection_Hide2!U73)","v":""},{"$f":"IF(OR(Selection_Hide2!V73=0, Selection_Hide2!V73=\"\"), \"\", Selection_Hide2!V73)","v":""},{"$f":"IF(OR(Selection_Hide2!W73=0, Selection_Hide2!W73=\"\"), \"\", Selection_Hide2!W73)","v":""},{"$f":"IF(OR(Selection_Hide2!X73=0, Selection_Hide2!X73=\"\"), \"\", Selection_Hide2!X73)","v":""},{"$f":"IF(OR(Selection_Hide2!Y73=0, Selection_Hide2!Y73=\"\"), \"\", Selection_Hide2!Y73)","v":""},{"$f":"IF(OR(Selection_Hide2!Z73=0, Selection_Hide2!Z73=\"\"), \"\", Selection_Hide2!Z73)","v":""},{"$f":"IF(OR(Selection_Hide2!AA73=0, Selection_Hide2!AA73=\"\"), \"\", Selection_Hide2!AA73)","v":""},{"$f":"IF(OR(Selection_Hide2!AB73=0, Selection_Hide2!AB73=\"\"), \"\", Selection_Hide2!AB73)","v":""}]
[{"$f":"IF(OR(Selection_Hide2!A74=0, Selection_Hide2!A74=\"\"), \"\", Selection_Hide2!A74)","v":""},{"$f":"IF(OR(Selection_Hide2!B74=0, Selection_Hide2!B74=\"\"), \"\", Selection_Hide2!B74)","v":""},{"$f":"IF(OR(Selection_Hide2!C74=0, Selection_Hide2!C74=\"\"), \"\", Selection_Hide2!C74)","v":""},{"$f":"IF(OR(Selection_Hide2!D74=0, Selection_Hide2!D74=\"\"), \"\", Selection_Hide2!D74)","v":""},{"$f":"IF(OR(Selection_Hide2!E74=0, Selection_Hide2!E74=\"\"), \"\", Selection_Hide2!E74)","v":""},{"$f":"IF(OR(Selection_Hide2!F74=0, Selection_Hide2!F74=\"\"), \"\", Selection_Hide2!F74)","v":""},{"$f":"IF(OR(Selection_Hide2!G74=0, Selection_Hide2!G74=\"\"), \"\", Selection_Hide2!G74)","v":""},{"$f":"IF(OR(Selection_Hide2!H74=0, Selection_Hide2!H74=\"\"), \"\", Selection_Hide2!H74)","v":""},{"$f":"IF(OR(Selection_Hide2!I74=0, Selection_Hide2!I74=\"\"), \"\", Selection_Hide2!I74)","v":""},{"$f":"IF(OR(Selection_Hide2!J74=0, Selection_Hide2!J74=\"\"), \"\", Selection_Hide2!J74)","v":""},{"$f":"IF(OR(Selection_Hide2!K74=0, Selection_Hide2!K74=\"\"), \"\", Selection_Hide2!K74)","v":""},{"$f":"IF(OR(Selection_Hide2!L74=0, Selection_Hide2!L74=\"\"), \"\", Selection_Hide2!L74)","v":""},{"$f":"IF(OR(Selection_Hide2!M74=0, Selection_Hide2!M74=\"\"), \"\", Selection_Hide2!M74)","v":""},{"$f":"IF(OR(Selection_Hide2!N74=0, Selection_Hide2!N74=\"\"), \"\", Selection_Hide2!N74)","v":""},{"$f":"IF(OR(Selection_Hide2!O74=0, Selection_Hide2!O74=\"\"), \"\", Selection_Hide2!O74)","v":""},{"$f":"IF(OR(Selection_Hide2!P74=0, Selection_Hide2!P74=\"\"), \"\", Selection_Hide2!P74)","v":""},{"$f":"IF(OR(Selection_Hide2!Q74=0, Selection_Hide2!Q74=\"\"), \"\", Selection_Hide2!Q74)","v":""},{"$f":"IF(OR(Selection_Hide2!R74=0, Selection_Hide2!R74=\"\"), \"\", Selection_Hide2!R74)","v":""},{"$f":"IF(OR(Selection_Hide2!S74=0, Selection_Hide2!S74=\"\"), \"\", Selection_Hide2!S74)","v":""},{"$f":"IF(OR(Selection_Hide2!T74=0, Selection_Hide2!T74=\"\"), \"\", Selection_Hide2!T74)","v":""},{"$f":"IF(OR(Selection_Hide2!U74=0, Selection_Hide2!U74=\"\"), \"\", Selection_Hide2!U74)","v":""},{"$f":"IF(OR(Selection_Hide2!V74=0, Selection_Hide2!V74=\"\"), \"\", Selection_Hide2!V74)","v":""},{"$f":"IF(OR(Selection_Hide2!W74=0, Selection_Hide2!W74=\"\"), \"\", Selection_Hide2!W74)","v":""},{"$f":"IF(OR(Selection_Hide2!X74=0, Selection_Hide2!X74=\"\"), \"\", Selection_Hide2!X74)","v":""},{"$f":"IF(OR(Selection_Hide2!Y74=0, Selection_Hide2!Y74=\"\"), \"\", Selection_Hide2!Y74)","v":""},{"$f":"IF(OR(Selection_Hide2!Z74=0, Selection_Hide2!Z74=\"\"), \"\", Selection_Hide2!Z74)","v":""},{"$f":"IF(OR(Selection_Hide2!AA74=0, Selection_Hide2!AA74=\"\"), \"\", Selection_Hide2!AA74)","v":""},{"$f":"IF(OR(Selection_Hide2!AB74=0, Selection_Hide2!AB74=\"\"), \"\", Selection_Hide2!AB74)","v":""}]
[{"$f":"IF(OR(Selection_Hide2!A75=0, Selection_Hide2!A75=\"\"), \"\", Selection_Hide2!A75)","v":""},{"$f":"IF(OR(Selection_Hide2!B75=0, Selection_Hide2!B75=\"\"), \"\", Selection_Hide2!B75)","v":""},{"$f":"IF(OR(Selection_Hide2!C75=0, Selection_Hide2!C75=\"\"), \"\", Selection_Hide2!C75)","v":""},{"$f":"IF(OR(Selection_Hide2!D75=0, Selection_Hide2!D75=\"\"), \"\", Selection_Hide2!D75)","v":""},{"$f":"IF(OR(Selection_Hide2!E75=0, Selection_Hide2!E75=\"\"), \"\", Selection_Hide2!E75)","v":""},{"$f":"IF(OR(Selection_Hide2!F75=0, Selection_Hide2!F75=\"\"), \"\", Selection_Hide2!F75)","v":""},{"$f":"IF(OR(Selection_Hide2!G75=0, Selection_Hide2!G75=\"\"), \"\", Selection_Hide2!G75)","v":""},{"$f":"IF(OR(Selection_Hide2!H75=0, Selection_Hide2!H75=\"\"), \"\", Selection_Hide2!H75)","v":""},{"$f":"IF(OR(Selection_Hide2!I75=0, Selection_Hide2!I75=\"\"), \"\", Selection_Hide2!I75)","v":""},{"$f":"IF(OR(Selection_Hide2!J75=0, Selection_Hide2!J75=\"\"), \"\", Selection_Hide2!J75)","v":""},{"$f":"IF(OR(Selection_Hide2!K75=0, Selection_Hide2!K75=\"\"), \"\", Selection_Hide2!K75)","v":""},{"$f":"IF(OR(Selection_Hide2!L75=0, Selection_Hide2!L75=\"\"), \"\", Selection_Hide2!L75)","v":""},{"$f":"IF(OR(Selection_Hide2!M75=0, Selection_Hide2!M75=\"\"), \"\", Selection_Hide2!M75)","v":""},{"$f":"IF(OR(Selection_Hide2!N75=0, Selection_Hide2!N75=\"\"), \"\", Selection_Hide2!N75)","v":""},{"$f":"IF(OR(Selection_Hide2!O75=0, Selection_Hide2!O75=\"\"), \"\", Selection_Hide2!O75)","v":""},{"$f":"IF(OR(Selection_Hide2!P75=0, Selection_Hide2!P75=\"\"), \"\", Selection_Hide2!P75)","v":""},{"$f":"IF(OR(Selection_Hide2!Q75=0, Selection_Hide2!Q75=\"\"), \"\", Selection_Hide2!Q75)","v":""},{"$f":"IF(OR(Selection_Hide2!R75=0, Selection_Hide2!R75=\"\"), \"\", Selection_Hide2!R75)","v":""},{"$f":"IF(OR(Selection_Hide2!S75=0, Selection_Hide2!S75=\"\"), \"\", Selection_Hide2!S75)","v":""},{"$f":"IF(OR(Selection_Hide2!T75=0, Selection_Hide2!T75=\"\"), \"\", Selection_Hide2!T75)","v":""},{"$f":"IF(OR(Selection_Hide2!U75=0, Selection_Hide2!U75=\"\"), \"\", Selection_Hide2!U75)","v":""},{"$f":"IF(OR(Selection_Hide2!V75=0, Selection_Hide2!V75=\"\"), \"\", Selection_Hide2!V75)","v":""},{"$f":"IF(OR(Selection_Hide2!W75=0, Selection_Hide2!W75=\"\"), \"\", Selection_Hide2!W75)","v":""},{"$f":"IF(OR(Selection_Hide2!X75=0, Selection_Hide2!X75=\"\"), \"\", Selection_Hide2!X75)","v":""},{"$f":"IF(OR(Selection_Hide2!Y75=0, Selection_Hide2!Y75=\"\"), \"\", Selection_Hide2!Y75)","v":""},{"$f":"IF(OR(Selection_Hide2!Z75=0, Selection_Hide2!Z75=\"\"), \"\", Selection_Hide2!Z75)","v":""},{"$f":"IF(OR(Selection_Hide2!AA75=0, Selection_Hide2!AA75=\"\"), \"\", Selection_Hide2!AA75)","v":""},{"$f":"IF(OR(Selection_Hide2!AB75=0, Selection_Hide2!AB75=\"\"), \"\", Selection_Hide2!AB75)","v":""}]
[{"$f":"IF(OR(Selection_Hide2!A76=0, Selection_Hide2!A76=\"\"), \"\", Selection_Hide2!A76)","v":""},{"$f":"IF(OR(Selection_Hide2!B76=0, Selection_Hide2!B76=\"\"), \"\", Selection_Hide2!B76)","v":""},{"$f":"IF(OR(Selection_Hide2!C76=0, Selection_Hide2!C76=\"\"), \"\", Selection_Hide2!C76)","v":""},{"$f":"IF(OR(Selection_Hide2!D76=0, Selection_Hide2!D76=\"\"), \"\", Selection_Hide2!D76)","v":""},{"$f":"IF(OR(Selection_Hide2!E76=0, Selection_Hide2!E76=\"\"), \"\", Selection_Hide2!E76)","v":""},{"$f":"IF(OR(Selection_Hide2!F76=0, Selection_Hide2!F76=\"\"), \"\", Selection_Hide2!F76)","v":""},{"$f":"IF(OR(Selection_Hide2!G76=0, Selection_Hide2!G76=\"\"), \"\", Selection_Hide2!G76)","v":""},{"$f":"IF(OR(Selection_Hide2!H76=0, Selection_Hide2!H76=\"\"), \"\", Selection_Hide2!H76)","v":""},{"$f":"IF(OR(Selection_Hide2!I76=0, Selection_Hide2!I76=\"\"), \"\", Selection_Hide2!I76)","v":""},{"$f":"IF(OR(Selection_Hide2!J76=0, Selection_Hide2!J76=\"\"), \"\", Selection_Hide2!J76)","v":""},{"$f":"IF(OR(Selection_Hide2!K76=0, Selection_Hide2!K76=\"\"), \"\", Selection_Hide2!K76)","v":""},{"$f":"IF(OR(Selection_Hide2!L76=0, Selection_Hide2!L76=\"\"), \"\", Selection_Hide2!L76)","v":""},{"$f":"IF(OR(Selection_Hide2!M76=0, Selection_Hide2!M76=\"\"), \"\", Selection_Hide2!M76)","v":""},{"$f":"IF(OR(Selection_Hide2!N76=0, Selection_Hide2!N76=\"\"), \"\", Selection_Hide2!N76)","v":""},{"$f":"IF(OR(Selection_Hide2!O76=0, Selection_Hide2!O76=\"\"), \"\", Selection_Hide2!O76)","v":""},{"$f":"IF(OR(Selection_Hide2!P76=0, Selection_Hide2!P76=\"\"), \"\", Selection_Hide2!P76)","v":""},{"$f":"IF(OR(Selection_Hide2!Q76=0, Selection_Hide2!Q76=\"\"), \"\", Selection_Hide2!Q76)","v":""},{"$f":"IF(OR(Selection_Hide2!R76=0, Selection_Hide2!R76=\"\"), \"\", Selection_Hide2!R76)","v":""},{"$f":"IF(OR(Selection_Hide2!S76=0, Selection_Hide2!S76=\"\"), \"\", Selection_Hide2!S76)","v":""},{"$f":"IF(OR(Selection_Hide2!T76=0, Selection_Hide2!T76=\"\"), \"\", Selection_Hide2!T76)","v":""},{"$f":"IF(OR(Selection_Hide2!U76=0, Selection_Hide2!U76=\"\"), \"\", Selection_Hide2!U76)","v":""},{"$f":"IF(OR(Selection_Hide2!V76=0, Selection_Hide2!V76=\"\"), \"\", Selection_Hide2!V76)","v":""},{"$f":"IF(OR(Selection_Hide2!W76=0, Selection_Hide2!W76=\"\"), \"\", Selection_Hide2!W76)","v":""},{"$f":"IF(OR(Selection_Hide2!X76=0, Selection_Hide2!X76=\"\"), \"\", Selection_Hide2!X76)","v":""},{"$f":"IF(OR(Selection_Hide2!Y76=0, Selection_Hide2!Y76=\"\"), \"\", Selection_Hide2!Y76)","v":""},{"$f":"IF(OR(Selection_Hide2!Z76=0, Selection_Hide2!Z76=\"\"), \"\", Selection_Hide2!Z76)","v":""},{"$f":"IF(OR(Selection_Hide2!AA76=0, Selection_Hide2!AA76=\"\"), \"\", Selection_Hide2!AA76)","v":""},{"$f":"IF(OR(Selection_Hide2!AB76=0, Selection_Hide2!AB76=\"\"), \"\", Selection_Hide2!AB76)","v":""}]
[{"$f":"IF(OR(Selection_Hide2!A77=0, Selection_Hide2!A77=\"\"), \"\", Selection_Hide2!A77)","v":""},{"$f":"IF(OR(Selection_Hide2!B77=0, Selection_Hide2!B77=\"\"), \"\", Selection_Hide2!B77)","v":""},{"$f":"IF(OR(Selection_Hide2!C77=0, Selection_Hide2!C77=\"\"), \"\", Selection_Hide2!C77)","v":""},{"$f":"IF(OR(Selection_Hide2!D77=0, Selection_Hide2!D77=\"\"), \"\", Selection_Hide2!D77)","v":""},{"$f":"IF(OR(Selection_Hide2!E77=0, Selection_Hide2!E77=\"\"), \"\", Selection_Hide2!E77)","v":""},{"$f":"IF(OR(Selection_Hide2!F77=0, Selection_Hide2!F77=\"\"), \"\", Selection_Hide2!F77)","v":""},{"$f":"IF(OR(Selection_Hide2!G77=0, Selection_Hide2!G77=\"\"), \"\", Selection_Hide2!G77)","v":""},{"$f":"IF(OR(Selection_Hide2!H77=0, Selection_Hide2!H77=\"\"), \"\", Selection_Hide2!H77)","v":""},{"$f":"IF(OR(Selection_Hide2!I77=0, Selection_Hide2!I77=\"\"), \"\", Selection_Hide2!I77)","v":""},{"$f":"IF(OR(Selection_Hide2!J77=0, Selection_Hide2!J77=\"\"), \"\", Selection_Hide2!J77)","v":""},{"$f":"IF(OR(Selection_Hide2!K77=0, Selection_Hide2!K77=\"\"), \"\", Selection_Hide2!K77)","v":""},{"$f":"IF(OR(Selection_Hide2!L77=0, Selection_Hide2!L77=\"\"), \"\", Selection_Hide2!L77)","v":""},{"$f":"IF(OR(Selection_Hide2!M77=0, Selection_Hide2!M77=\"\"), \"\", Selection_Hide2!M77)","v":""},{"$f":"IF(OR(Selection_Hide2!N77=0, Selection_Hide2!N77=\"\"), \"\", Selection_Hide2!N77)","v":""},{"$f":"IF(OR(Selection_Hide2!O77=0, Selection_Hide2!O77=\"\"), \"\", Selection_Hide2!O77)","v":""},{"$f":"IF(OR(Selection_Hide2!P77=0, Selection_Hide2!P77=\"\"), \"\", Selection_Hide2!P77)","v":""},{"$f":"IF(OR(Selection_Hide2!Q77=0, Selection_Hide2!Q77=\"\"), \"\", Selection_Hide2!Q77)","v":""},{"$f":"IF(OR(Selection_Hide2!R77=0, Selection_Hide2!R77=\"\"), \"\", Selection_Hide2!R77)","v":""},{"$f":"IF(OR(Selection_Hide2!S77=0, Selection_Hide2!S77=\"\"), \"\", Selection_Hide2!S77)","v":""},{"$f":"IF(OR(Selection_Hide2!T77=0, Selection_Hide2!T77=\"\"), \"\", Selection_Hide2!T77)","v":""},{"$f":"IF(OR(Selection_Hide2!U77=0, Selection_Hide2!U77=\"\"), \"\", Selection_Hide2!U77)","v":""},{"$f":"IF(OR(Selection_Hide2!V77=0, Selection_Hide2!V77=\"\"), \"\", Selection_Hide2!V77)","v":""},{"$f":"IF(OR(Selection_Hide2!W77=0, Selection_Hide2!W77=\"\"), \"\", Selection_Hide2!W77)","v":""},{"$f":"IF(OR(Selection_Hide2!X77=0, Selection_Hide2!X77=\"\"), \"\", Selection_Hide2!X77)","v":""},{"$f":"IF(OR(Selection_Hide2!Y77=0, Selection_Hide2!Y77=\"\"), \"\", Selection_Hide2!Y77)","v":""},{"$f":"IF(OR(Selection_Hide2!Z77=0, Selection_Hide2!Z77=\"\"), \"\", Selection_Hide2!Z77)","v":""},{"$f":"IF(OR(Selection_Hide2!AA77=0, Selection_Hide2!AA77=\"\"), \"\", Selection_Hide2!AA77)","v":""},{"$f":"IF(OR(Selection_Hide2!AB77=0, Selection_Hide2!AB77=\"\"), \"\", Selection_Hide2!AB77)","v":""}]
[{"$f":"IF(OR(Selection_Hide2!A78=0, Selection_Hide2!A78=\"\"), \"\", Selection_Hide2!A78)","v":""},{"$f":"IF(OR(Selection_Hide2!B78=0, Selection_Hide2!B78=\"\"), \"\", Selection_Hide2!B78)","v":""},{"$f":"IF(OR(Selection_Hide2!C78=0, Selection_Hide2!C78=\"\"), \"\", Selection_Hide2!C78)","v":""},{"$f":"IF(OR(Selection_Hide2!D78=0, Selection_Hide2!D78=\"\"), \"\", Selection_Hide2!D78)","v":""},{"$f":"IF(OR(Selection_Hide2!E78=0, Selection_Hide2!E78=\"\"), \"\", Selection_Hide2!E78)","v":""},{"$f":"IF(OR(Selection_Hide2!F78=0, Selection_Hide2!F78=\"\"), \"\", Selection_Hide2!F78)","v":""},{"$f":"IF(OR(Selection_Hide2!G78=0, Selection_Hide2!G78=\"\"), \"\", Selection_Hide2!G78)","v":""},{"$f":"IF(OR(Selection_Hide2!H78=0, Selection_Hide2!H78=\"\"), \"\", Selection_Hide2!H78)","v":""},{"$f":"IF(OR(Selection_Hide2!I78=0, Selection_Hide2!I78=\"\"), \"\", Selection_Hide2!I78)","v":""},{"$f":"IF(OR(Selection_Hide2!J78=0, Selection_Hide2!J78=\"\"), \"\", Selection_Hide2!J78)","v":""},{"$f":"IF(OR(Selection_Hide2!K78=0, Selection_Hide2!K78=\"\"), \"\", Selection_Hide2!K78)","v":""},{"$f":"IF(OR(Selection_Hide2!L78=0, Selection_Hide2!L78=\"\"), \"\", Selection_Hide2!L78)","v":""},{"$f":"IF(OR(Selection_Hide2!M78=0, Selection_Hide2!M78=\"\"), \"\", Selection_Hide2!M78)","v":""},{"$f":"IF(OR(Selection_Hide2!N78=0, Selection_Hide2!N78=\"\"), \"\", Selection_Hide2!N78)","v":""},{"$f":"IF(OR(Selection_Hide2!O78=0, Selection_Hide2!O78=\"\"), \"\", Selection_Hide2!O78)","v":""},{"$f":"IF(OR(Selection_Hide2!P78=0, Selection_Hide2!P78=\"\"), \"\", Selection_Hide2!P78)","v":""},{"$f":"IF(OR(Selection_Hide2!Q78=0, Selection_Hide2!Q78=\"\"), \"\", Selection_Hide2!Q78)","v":""},{"$f":"IF(OR(Selection_Hide2!R78=0, Selection_Hide2!R78=\"\"), \"\", Selection_Hide2!R78)","v":""},{"$f":"IF(OR(Selection_Hide2!S78=0, Selection_Hide2!S78=\"\"), \"\", Selection_Hide2!S78)","v":""},{"$f":"IF(OR(Selection_Hide2!T78=0, Selection_Hide2!T78=\"\"), \"\", Selection_Hide2!T78)","v":""},{"$f":"IF(OR(Selection_Hide2!U78=0, Selection_Hide2!U78=\"\"), \"\", Selection_Hide2!U78)","v":""},{"$f":"IF(OR(Selection_Hide2!V78=0, Selection_Hide2!V78=\"\"), \"\", Selection_Hide2!V78)","v":""},{"$f":"IF(OR(Selection_Hide2!W78=0, Selection_Hide2!W78=\"\"), \"\", Selection_Hide2!W78)","v":""},{"$f":"IF(OR(Selection_Hide2!X78=0, Selection_Hide2!X78=\"\"), \"\", Selection_Hide2!X78)","v":""},{"$f":"IF(OR(Selection_Hide2!Y78=0, Selection_Hide2!Y78=\"\"), \"\", Selection_Hide2!Y78)","v":""},{"$f":"IF(OR(Selection_Hide2!Z78=0, Selection_Hide2!Z78=\"\"), \"\", Selection_Hide2!Z78)","v":""},{"$f":"IF(OR(Selection_Hide2!AA78=0, Selection_Hide2!AA78=\"\"), \"\", Selection_Hide2!AA78)","v":""},{"$f":"IF(OR(Selection_Hide2!AB78=0, Selection_Hide2!AB78=\"\"), \"\", Selection_Hide2!AB78)","v":""}]
[{"$f":"IF(OR(Selection_Hide2!A79=0, Selection_Hide2!A79=\"\"), \"\", Selection_Hide2!A79)","v":""},{"$f":"IF(OR(Selection_Hide2!B79=0, Selection_Hide2!B79=\"\"), \"\", Selection_Hide2!B79)","v":""},{"$f":"IF(OR(Selection_Hide2!C79=0, Selection_Hide2!C79=\"\"), \"\", Selection_Hide2!C79)","v":""},{"$f":"IF(OR(Selection_Hide2!D79=0, Selection_Hide2!D79=\"\"), \"\", Selection_Hide2!D79)","v":""},{"$f":"IF(OR(Selection_Hide2!E79=0, Selection_Hide2!E79=\"\"), \"\", Selection_Hide2!E79)","v":""},{"$f":"IF(OR(Selection_Hide2!F79=0, Selection_Hide2!F79=\"\"), \"\", Selection_Hide2!F79)","v":""},{"$f":"IF(OR(Selection_Hide2!G79=0, Selection_Hide2!G79=\"\"), \"\", Selection_Hide2!G79)","v":""},{"$f":"IF(OR(Selection_Hide2!H79=0, Selection_Hide2!H79=\"\"), \"\", Selection_Hide2!H79)","v":""},{"$f":"IF(OR(Selection_Hide2!I79=0, Selection_Hide2!I79=\"\"), \"\", Selection_Hide2!I79)","v":""},{"$f":"IF(OR(Selection_Hide2!J79=0, Selection_Hide2!J79=\"\"), \"\", Selection_Hide2!J79)","v":""},{"$f":"IF(OR(Selection_Hide2!K79=0, Selection_Hide2!K79=\"\"), \"\", Selection_Hide2!K79)","v":""},{"$f":"IF(OR(Selection_Hide2!L79=0, Selection_Hide2!L79=\"\"), \"\", Selection_Hide2!L79)","v":""},{"$f":"IF(OR(Selection_Hide2!M79=0, Selection_Hide2!M79=\"\"), \"\", Selection_Hide2!M79)","v":""},{"$f":"IF(OR(Selection_Hide2!N79=0, Selection_Hide2!N79=\"\"), \"\", Selection_Hide2!N79)","v":""},{"$f":"IF(OR(Selection_Hide2!O79=0, Selection_Hide2!O79=\"\"), \"\", Selection_Hide2!O79)","v":""},{"$f":"IF(OR(Selection_Hide2!P79=0, Selection_Hide2!P79=\"\"), \"\", Selection_Hide2!P79)","v":""},{"$f":"IF(OR(Selection_Hide2!Q79=0, Selection_Hide2!Q79=\"\"), \"\", Selection_Hide2!Q79)","v":""},{"$f":"IF(OR(Selection_Hide2!R79=0, Selection_Hide2!R79=\"\"), \"\", Selection_Hide2!R79)","v":""},{"$f":"IF(OR(Selection_Hide2!S79=0, Selection_Hide2!S79=\"\"), \"\", Selection_Hide2!S79)","v":""},{"$f":"IF(OR(Selection_Hide2!T79=0, Selection_Hide2!T79=\"\"), \"\", Selection_Hide2!T79)","v":""},{"$f":"IF(OR(Selection_Hide2!U79=0, Selection_Hide2!U79=\"\"), \"\", Selection_Hide2!U79)","v":""},{"$f":"IF(OR(Selection_Hide2!V79=0, Selection_Hide2!V79=\"\"), \"\", Selection_Hide2!V79)","v":""},{"$f":"IF(OR(Selection_Hide2!W79=0, Selection_Hide2!W79=\"\"), \"\", Selection_Hide2!W79)","v":""},{"$f":"IF(OR(Selection_Hide2!X79=0, Selection_Hide2!X79=\"\"), \"\", Selection_Hide2!X79)","v":""},{"$f":"IF(OR(Selection_Hide2!Y79=0, Selection_Hide2!Y79=\"\"), \"\", Selection_Hide2!Y79)","v":""},{"$f":"IF(OR(Selection_Hide2!Z79=0, Selection_Hide2!Z79=\"\"), \"\", Selection_Hide2!Z79)","v":""},{"$f":"IF(OR(Selection_Hide2!AA79=0, Selection_Hide2!AA79=\"\"), \"\", Selection_Hide2!AA79)","v":""},{"$f":"IF(OR(Selection_Hide2!AB79=0, Selection_Hide2!AB79=\"\"), \"\", Selection_Hide2!AB79)","v":""}]
[{"$f":"IF(OR(Selection_Hide2!A80=0, Selection_Hide2!A80=\"\"), \"\", Selection_Hide2!A80)","v":""},{"$f":"IF(OR(Selection_Hide2!B80=0, Selection_Hide2!B80=\"\"), \"\", Selection_Hide2!B80)","v":""},{"$f":"IF(OR(Selection_Hide2!C80=0, Selection_Hide2!C80=\"\"), \"\", Selection_Hide2!C80)","v":""},{"$f":"IF(OR(Selection_Hide2!D80=0, Selection_Hide2!D80=\"\"), \"\", Selection_Hide2!D80)","v":""},{"$f":"IF(OR(Selection_Hide2!E80=0, Selection_Hide2!E80=\"\"), \"\", Selection_Hide2!E80)","v":""},{"$f":"IF(OR(Selection_Hide2!F80=0, Selection_Hide2!F80=\"\"), \"\", Selection_Hide2!F80)","v":""},{"$f":"IF(OR(Selection_Hide2!G80=0, Selection_Hide2!G80=\"\"), \"\", Selection_Hide2!G80)","v":""},{"$f":"IF(OR(Selection_Hide2!H80=0, Selection_Hide2!H80=\"\"), \"\", Selection_Hide2!H80)","v":""},{"$f":"IF(OR(Selection_Hide2!I80=0, Selection_Hide2!I80=\"\"), \"\", Selection_Hide2!I80)","v":""},{"$f":"IF(OR(Selection_Hide2!J80=0, Selection_Hide2!J80=\"\"), \"\", Selection_Hide2!J80)","v":""},{"$f":"IF(OR(Selection_Hide2!K80=0, Selection_Hide2!K80=\"\"), \"\", Selection_Hide2!K80)","v":""},{"$f":"IF(OR(Selection_Hide2!L80=0, Selection_Hide2!L80=\"\"), \"\", Selection_Hide2!L80)","v":""},{"$f":"IF(OR(Selection_Hide2!M80=0, Selection_Hide2!M80=\"\"), \"\", Selection_Hide2!M80)","v":""},{"$f":"IF(OR(Selection_Hide2!N80=0, Selection_Hide2!N80=\"\"), \"\", Selection_Hide2!N80)","v":""},{"$f":"IF(OR(Selection_Hide2!O80=0, Selection_Hide2!O80=\"\"), \"\", Selection_Hide2!O80)","v":""},{"$f":"IF(OR(Selection_Hide2!P80=0, Selection_Hide2!P80=\"\"), \"\", Selection_Hide2!P80)","v":""},{"$f":"IF(OR(Selection_Hide2!Q80=0, Selection_Hide2!Q80=\"\"), \"\", Selection_Hide2!Q80)","v":""},{"$f":"IF(OR(Selection_Hide2!R80=0, Selection_Hide2!R80=\"\"), \"\", Selection_Hide2!R80)","v":""},{"$f":"IF(OR(Selection_Hide2!S80=0, Selection_Hide2!S80=\"\"), \"\", Selection_Hide2!S80)","v":""},{"$f":"IF(OR(Selection_Hide2!T80=0, Selection_Hide2!T80=\"\"), \"\", Selection_Hide2!T80)","v":""},{"$f":"IF(OR(Selection_Hide2!U80=0, Selection_Hide2!U80=\"\"), \"\", Selection_Hide2!U80)","v":""},{"$f":"IF(OR(Selection_Hide2!V80=0, Selection_Hide2!V80=\"\"), \"\", Selection_Hide2!V80)","v":""},{"$f":"IF(OR(Selection_Hide2!W80=0, Selection_Hide2!W80=\"\"), \"\", Selection_Hide2!W80)","v":""},{"$f":"IF(OR(Selection_Hide2!X80=0, Selection_Hide2!X80=\"\"), \"\", Selection_Hide2!X80)","v":""},{"$f":"IF(OR(Selection_Hide2!Y80=0, Selection_Hide2!Y80=\"\"), \"\", Selection_Hide2!Y80)","v":""},{"$f":"IF(OR(Selection_Hide2!Z80=0, Selection_Hide2!Z80=\"\"), \"\", Selection_Hide2!Z80)","v":""},{"$f":"IF(OR(Selection_Hide2!AA80=0, Selection_Hide2!AA80=\"\"), \"\", Selection_Hide2!AA80)","v":""},{"$f":"IF(OR(Selection_Hide2!AB80=0, Selection_Hide2!AB80=\"\"), \"\", Selection_Hide2!AB80)","v":""}]
[{"$f":"IF(OR(Selection_Hide2!A81=0, Selection_Hide2!A81=\"\"), \"\", Selection_Hide2!A81)","v":""},{"$f":"IF(OR(Selection_Hide2!B81=0, Selection_Hide2!B81=\"\"), \"\", Selection_Hide2!B81)","v":""},{"$f":"IF(OR(Selection_Hide2!C81=0, Selection_Hide2!C81=\"\"), \"\", Selection_Hide2!C81)","v":""},{"$f":"IF(OR(Selection_Hide2!D81=0, Selection_Hide2!D81=\"\"), \"\", Selection_Hide2!D81)","v":""},{"$f":"IF(OR(Selection_Hide2!E81=0, Selection_Hide2!E81=\"\"), \"\", Selection_Hide2!E81)","v":""},{"$f":"IF(OR(Selection_Hide2!F81=0, Selection_Hide2!F81=\"\"), \"\", Selection_Hide2!F81)","v":""},{"$f":"IF(OR(Selection_Hide2!G81=0, Selection_Hide2!G81=\"\"), \"\", Selection_Hide2!G81)","v":""},{"$f":"IF(OR(Selection_Hide2!H81=0, Selection_Hide2!H81=\"\"), \"\", Selection_Hide2!H81)","v":""},{"$f":"IF(OR(Selection_Hide2!I81=0, Selection_Hide2!I81=\"\"), \"\", Selection_Hide2!I81)","v":""},{"$f":"IF(OR(Selection_Hide2!J81=0, Selection_Hide2!J81=\"\"), \"\", Selection_Hide2!J81)","v":""},{"$f":"IF(OR(Selection_Hide2!K81=0, Selection_Hide2!K81=\"\"), \"\", Selection_Hide2!K81)","v":""},{"$f":"IF(OR(Selection_Hide2!L81=0, Selection_Hide2!L81=\"\"), \"\", Selection_Hide2!L81)","v":""},{"$f":"IF(OR(Selection_Hide2!M81=0, Selection_Hide2!M81=\"\"), \"\", Selection_Hide2!M81)","v":""},{"$f":"IF(OR(Selection_Hide2!N81=0, Selection_Hide2!N81=\"\"), \"\", Selection_Hide2!N81)","v":""},{"$f":"IF(OR(Selection_Hide2!O81=0, Selection_Hide2!O81=\"\"), \"\", Selection_Hide2!O81)","v":""},{"$f":"IF(OR(Selection_Hide2!P81=0, Selection_Hide2!P81=\"\"), \"\", Selection_Hide2!P81)","v":""},{"$f":"IF(OR(Selection_Hide2!Q81=0, Selection_Hide2!Q81=\"\"), \"\", Selection_Hide2!Q81)","v":""},{"$f":"IF(OR(Selection_Hide2!R81=0, Selection_Hide2!R81=\"\"), \"\", Selection_Hide2!R81)","v":""},{"$f":"IF(OR(Selection_Hide2!S81=0, Selection_Hide2!S81=\"\"), \"\", Selection_Hide2!S81)","v":""},{"$f":"IF(OR(Selection_Hide2!T81=0, Selection_Hide2!T81=\"\"), \"\", Selection_Hide2!T81)","v":""},{"$f":"IF(OR(Selection_Hide2!U81=0, Selection_Hide2!U81=\"\"), \"\", Selection_Hide2!U81)","v":""},{"$f":"IF(OR(Selection_Hide2!V81=0, Selection_Hide2!V81=\"\"), \"\", Selection_Hide2!V81)","v":""},{"$f":"IF(OR(Selection_Hide2!W81=0, Selection_Hide2!W81=\"\"), \"\", Selection_Hide2!W81)","v":""},{"$f":"IF(OR(Selection_Hide2!X81=0, Selection_Hide2!X81=\"\"), \"\", Selection_Hide2!X81)","v":""},{"$f":"IF(OR(Selection_Hide2!Y81=0, Selection_Hide2!Y81=\"\"), \"\", Selection_Hide2!Y81)","v":""},{"$f":"IF(OR(Selection_Hide2!Z81=0, Selection_Hide2!Z81=\"\"), \"\", Selection_Hide2!Z81)","v":""},{"$f":"IF(OR(Selection_Hide2!AA81=0, Selection_Hide2!AA81=\"\"), \"\", Selection_Hide2!AA81)","v":""},{"$f":"IF(OR(Selection_Hide2!AB81=0, Selection_Hide2!AB81=\"\"), \"\", Selection_Hide2!AB81)","v":""}]
[{"$f":"IF(OR(Selection_Hide2!A82=0, Selection_Hide2!A82=\"\"), \"\", Selection_Hide2!A82)","v":""},{"$f":"IF(OR(Selection_Hide2!B82=0, Selection_Hide2!B82=\"\"), \"\", Selection_Hide2!B82)","v":""},{"$f":"IF(OR(Selection_Hide2!C82=0, Selection_Hide2!C82=\"\"), \"\", Selection_Hide2!C82)","v":""},{"$f":"IF(OR(Selection_Hide2!D82=0, Selection_Hide2!D82=\"\"), \"\", Selection_Hide2!D82)","v":""},{"$f":"IF(OR(Selection_Hide2!E82=0, Selection_Hide2!E82=\"\"), \"\", Selection_Hide2!E82)","v":""},{"$f":"IF(OR(Selection_Hide2!F82=0, Selection_Hide2!F82=\"\"), \"\", Selection_Hide2!F82)","v":""},{"$f":"IF(OR(Selection_Hide2!G82=0, Selection_Hide2!G82=\"\"), \"\", Selection_Hide2!G82)","v":""},{"$f":"IF(OR(Selection_Hide2!H82=0, Selection_Hide2!H82=\"\"), \"\", Selection_Hide2!H82)","v":""},{"$f":"IF(OR(Selection_Hide2!I82=0, Selection_Hide2!I82=\"\"), \"\", Selection_Hide2!I82)","v":""},{"$f":"IF(OR(Selection_Hide2!J82=0, Selection_Hide2!J82=\"\"), \"\", Selection_Hide2!J82)","v":""},{"$f":"IF(OR(Selection_Hide2!K82=0, Selection_Hide2!K82=\"\"), \"\", Selection_Hide2!K82)","v":""},{"$f":"IF(OR(Selection_Hide2!L82=0, Selection_Hide2!L82=\"\"), \"\", Selection_Hide2!L82)","v":""},{"$f":"IF(OR(Selection_Hide2!M82=0, Selection_Hide2!M82=\"\"), \"\", Selection_Hide2!M82)","v":""},{"$f":"IF(OR(Selection_Hide2!N82=0, Selection_Hide2!N82=\"\"), \"\", Selection_Hide2!N82)","v":""},{"$f":"IF(OR(Selection_Hide2!O82=0, Selection_Hide2!O82=\"\"), \"\", Selection_Hide2!O82)","v":""},{"$f":"IF(OR(Selection_Hide2!P82=0, Selection_Hide2!P82=\"\"), \"\", Selection_Hide2!P82)","v":""},{"$f":"IF(OR(Selection_Hide2!Q82=0, Selection_Hide2!Q82=\"\"), \"\", Selection_Hide2!Q82)","v":""},{"$f":"IF(OR(Selection_Hide2!R82=0, Selection_Hide2!R82=\"\"), \"\", Selection_Hide2!R82)","v":""},{"$f":"IF(OR(Selection_Hide2!S82=0, Selection_Hide2!S82=\"\"), \"\", Selection_Hide2!S82)","v":""},{"$f":"IF(OR(Selection_Hide2!T82=0, Selection_Hide2!T82=\"\"), \"\", Selection_Hide2!T82)","v":""},{"$f":"IF(OR(Selection_Hide2!U82=0, Selection_Hide2!U82=\"\"), \"\", Selection_Hide2!U82)","v":""},{"$f":"IF(OR(Selection_Hide2!V82=0, Selection_Hide2!V82=\"\"), \"\", Selection_Hide2!V82)","v":""},{"$f":"IF(OR(Selection_Hide2!W82=0, Selection_Hide2!W82=\"\"), \"\", Selection_Hide2!W82)","v":""},{"$f":"IF(OR(Selection_Hide2!X82=0, Selection_Hide2!X82=\"\"), \"\", Selection_Hide2!X82)","v":""},{"$f":"IF(OR(Selection_Hide2!Y82=0, Selection_Hide2!Y82=\"\"), \"\", Selection_Hide2!Y82)","v":""},{"$f":"IF(OR(Selection_Hide2!Z82=0, Selection_Hide2!Z82=\"\"), \"\", Selection_Hide2!Z82)","v":""},{"$f":"IF(OR(Selection_Hide2!AA82=0, Selection_Hide2!AA82=\"\"), \"\", Selection_Hide2!AA82)","v":""},{"$f":"IF(OR(Selection_Hide2!AB82=0, Selection_Hide2!AB82=\"\"), \"\", Selection_Hide2!AB82)","v":""}]
[{"$f":"IF(OR(Selection_Hide2!A83=0, Selection_Hide2!A83=\"\"), \"\", Selection_Hide2!A83)","v":""},{"$f":"IF(OR(Selection_Hide2!B83=0, Selection_Hide2!B83=\"\"), \"\", Selection_Hide2!B83)","v":""},{"$f":"IF(OR(Selection_Hide2!C83=0, Selection_Hide2!C83=\"\"), \"\", Selection_Hide2!C83)","v":""},{"$f":"IF(OR(Selection_Hide2!D83=0, Selection_Hide2!D83=\"\"), \"\", Selection_Hide2!D83)","v":""},{"$f":"IF(OR(Selection_Hide2!E83=0, Selection_Hide2!E83=\"\"), \"\", Selection_Hide2!E83)","v":""},{"$f":"IF(OR(Selection_Hide2!F83=0, Selection_Hide2!F83=\"\"), \"\", Selection_Hide2!F83)","v":""},{"$f":"IF(OR(Selection_Hide2!G83=0, Selection_Hide2!G83=\"\"), \"\", Selection_Hide2!G83)","v":""},{"$f":"IF(OR(Selection_Hide2!H83=0, Selection_Hide2!H83=\"\"), \"\", Selection_Hide2!H83)","v":""},{"$f":"IF(OR(Selection_Hide2!I83=0, Selection_Hide2!I83=\"\"), \"\", Selection_Hide2!I83)","v":""},{"$f":"IF(OR(Selection_Hide2!J83=0, Selection_Hide2!J83=\"\"), \"\", Selection_Hide2!J83)","v":""},{"$f":"IF(OR(Selection_Hide2!K83=0, Selection_Hide2!K83=\"\"), \"\", Selection_Hide2!K83)","v":""},{"$f":"IF(OR(Selection_Hide2!L83=0, Selection_Hide2!L83=\"\"), \"\", Selection_Hide2!L83)","v":""},{"$f":"IF(OR(Selection_Hide2!M83=0, Selection_Hide2!M83=\"\"), \"\", Selection_Hide2!M83)","v":""},{"$f":"IF(OR(Selection_Hide2!N83=0, Selection_Hide2!N83=\"\"), \"\", Selection_Hide2!N83)","v":""},{"$f":"IF(OR(Selection_Hide2!O83=0, Selection_Hide2!O83=\"\"), \"\", Selection_Hide2!O83)","v":""},{"$f":"IF(OR(Selection_Hide2!P83=0, Selection_Hide2!P83=\"\"), \"\", Selection_Hide2!P83)","v":""},{"$f":"IF(OR(Selection_Hide2!Q83=0, Selection_Hide2!Q83=\"\"), \"\", Selection_Hide2!Q83)","v":""},{"$f":"IF(OR(Selection_Hide2!R83=0, Selection_Hide2!R83=\"\"), \"\", Selection_Hide2!R83)","v":""},{"$f":"IF(OR(Selection_Hide2!S83=0, Selection_Hide2!S83=\"\"), \"\", Selection_Hide2!S83)","v":""},{"$f":"IF(OR(Selection_Hide2!T83=0, Selection_Hide2!T83=\"\"), \"\", Selection_Hide2!T83)","v":""},{"$f":"IF(OR(Selection_Hide2!U83=0, Selection_Hide2!U83=\"\"), \"\", Selection_Hide2!U83)","v":""},{"$f":"IF(OR(Selection_Hide2!V83=0, Selection_Hide2!V83=\"\"), \"\", Selection_Hide2!V83)","v":""},{"$f":"IF(OR(Selection_Hide2!W83=0, Selection_Hide2!W83=\"\"), \"\", Selection_Hide2!W83)","v":""},{"$f":"IF(OR(Selection_Hide2!X83=0, Selection_Hide2!X83=\"\"), \"\", Selection_Hide2!X83)","v":""},{"$f":"IF(OR(Selection_Hide2!Y83=0, Selection_Hide2!Y83=\"\"), \"\", Selection_Hide2!Y83)","v":""},{"$f":"IF(OR(Selection_Hide2!Z83=0, Selection_Hide2!Z83=\"\"), \"\", Selection_Hide2!Z83)","v":""},{"$f":"IF(OR(Selection_Hide2!AA83=0, Selection_Hide2!AA83=\"\"), \"\", Selection_Hide2!AA83)","v":""},{"$f":"IF(OR(Selection_Hide2!AB83=0, Selection_Hide2!AB83=\"\"), \"\", Selection_Hide2!AB83)","v":""}]
[{"$f":"IF(OR(Selection_Hide2!A84=0, Selection_Hide2!A84=\"\"), \"\", Selection_Hide2!A84)","v":""},{"$f":"IF(OR(Selection_Hide2!B84=0, Selection_Hide2!B84=\"\"), \"\", Selection_Hide2!B84)","v":""},{"$f":"IF(OR(Selection_Hide2!C84=0, Selection_Hide2!C84=\"\"), \"\", Selection_Hide2!C84)","v":""},{"$f":"IF(OR(Selection_Hide2!D84=0, Selection_Hide2!D84=\"\"), \"\", Selection_Hide2!D84)","v":""},{"$f":"IF(OR(Selection_Hide2!E84=0, Selection_Hide2!E84=\"\"), \"\", Selection_Hide2!E84)","v":""},{"$f":"IF(OR(Selection_Hide2!F84=0, Selection_Hide2!F84=\"\"), \"\", Selection_Hide2!F84)","v":""},{"$f":"IF(OR(Selection_Hide2!G84=0, Selection_Hide2!G84=\"\"), \"\", Selection_Hide2!G84)","v":""},{"$f":"IF(OR(Selection_Hide2!H84=0, Selection_Hide2!H84=\"\"), \"\", Selection_Hide2!H84)","v":""},{"$f":"IF(OR(Selection_Hide2!I84=0, Selection_Hide2!I84=\"\"), \"\", Selection_Hide2!I84)","v":""},{"$f":"IF(OR(Selection_Hide2!J84=0, Selection_Hide2!J84=\"\"), \"\", Selection_Hide2!J84)","v":""},{"$f":"IF(OR(Selection_Hide2!K84=0, Selection_Hide2!K84=\"\"), \"\", Selection_Hide2!K84)","v":""},{"$f":"IF(OR(Selection_Hide2!L84=0, Selection_Hide2!L84=\"\"), \"\", Selection_Hide2!L84)","v":""},{"$f":"IF(OR(Selection_Hide2!M84=0, Selection_Hide2!M84=\"\"), \"\", Selection_Hide2!M84)","v":""},{"$f":"IF(OR(Selection_Hide2!N84=0, Selection_Hide2!N84=\"\"), \"\", Selection_Hide2!N84)","v":""},{"$f":"IF(OR(Selection_Hide2!O84=0, Selection_Hide2!O84=\"\"), \"\", Selection_Hide2!O84)","v":""},{"$f":"IF(OR(Selection_Hide2!P84=0, Selection_Hide2!P84=\"\"), \"\", Selection_Hide2!P84)","v":""},{"$f":"IF(OR(Selection_Hide2!Q84=0, Selection_Hide2!Q84=\"\"), \"\", Selection_Hide2!Q84)","v":""},{"$f":"IF(OR(Selection_Hide2!R84=0, Selection_Hide2!R84=\"\"), \"\", Selection_Hide2!R84)","v":""},{"$f":"IF(OR(Selection_Hide2!S84=0, Selection_Hide2!S84=\"\"), \"\", Selection_Hide2!S84)","v":""},{"$f":"IF(OR(Selection_Hide2!T84=0, Selection_Hide2!T84=\"\"), \"\", Selection_Hide2!T84)","v":""},{"$f":"IF(OR(Selection_Hide2!U84=0, Selection_Hide2!U84=\"\"), \"\", Selection_Hide2!U84)","v":""},{"$f":"IF(OR(Selection_Hide2!V84=0, Selection_Hide2!V84=\"\"), \"\", Selection_Hide2!V84)","v":""},{"$f":"IF(OR(Selection_Hide2!W84=0, Selection_Hide2!W84=\"\"), \"\", Selection_Hide2!W84)","v":""},{"$f":"IF(OR(Selection_Hide2!X84=0, Selection_Hide2!X84=\"\"), \"\", Selection_Hide2!X84)","v":""},{"$f":"IF(OR(Selection_Hide2!Y84=0, Selection_Hide2!Y84=\"\"), \"\", Selection_Hide2!Y84)","v":""},{"$f":"IF(OR(Selection_Hide2!Z84=0, Selection_Hide2!Z84=\"\"), \"\", Selection_Hide2!Z84)","v":""},{"$f":"IF(OR(Selection_Hide2!AA84=0, Selection_Hide2!AA84=\"\"), \"\", Selection_Hide2!AA84)","v":""},{"$f":"IF(OR(Selection_Hide2!AB84=0, Selection_Hide2!AB84=\"\"), \"\", Selection_Hide2!AB84)","v":""}]
[{"$f":"IF(OR(Selection_Hide2!A85=0, Selection_Hide2!A85=\"\"), \"\", Selection_Hide2!A85)","v":""},{"$f":"IF(OR(Selection_Hide2!B85=0, Selection_Hide2!B85=\"\"), \"\", Selection_Hide2!B85)","v":""},{"$f":"IF(OR(Selection_Hide2!C85=0, Selection_Hide2!C85=\"\"), \"\", Selection_Hide2!C85)","v":""},{"$f":"IF(OR(Selection_Hide2!D85=0, Selection_Hide2!D85=\"\"), \"\", Selection_Hide2!D85)","v":""},{"$f":"IF(OR(Selection_Hide2!E85=0, Selection_Hide2!E85=\"\"), \"\", Selection_Hide2!E85)","v":""},{"$f":"IF(OR(Selection_Hide2!F85=0, Selection_Hide2!F85=\"\"), \"\", Selection_Hide2!F85)","v":""},{"$f":"IF(OR(Selection_Hide2!G85=0, Selection_Hide2!G85=\"\"), \"\", Selection_Hide2!G85)","v":""},{"$f":"IF(OR(Selection_Hide2!H85=0, Selection_Hide2!H85=\"\"), \"\", Selection_Hide2!H85)","v":""},{"$f":"IF(OR(Selection_Hide2!I85=0, Selection_Hide2!I85=\"\"), \"\", Selection_Hide2!I85)","v":""},{"$f":"IF(OR(Selection_Hide2!J85=0, Selection_Hide2!J85=\"\"), \"\", Selection_Hide2!J85)","v":""},{"$f":"IF(OR(Selection_Hide2!K85=0, Selection_Hide2!K85=\"\"), \"\", Selection_Hide2!K85)","v":""},{"$f":"IF(OR(Selection_Hide2!L85=0, Selection_Hide2!L85=\"\"), \"\", Selection_Hide2!L85)","v":""},{"$f":"IF(OR(Selection_Hide2!M85=0, Selection_Hide2!M85=\"\"), \"\", Selection_Hide2!M85)","v":""},{"$f":"IF(OR(Selection_Hide2!N85=0, Selection_Hide2!N85=\"\"), \"\", Selection_Hide2!N85)","v":""},{"$f":"IF(OR(Selection_Hide2!O85=0, Selection_Hide2!O85=\"\"), \"\", Selection_Hide2!O85)","v":""},{"$f":"IF(OR(Selection_Hide2!P85=0, Selection_Hide2!P85=\"\"), \"\", Selection_Hide2!P85)","v":""},{"$f":"IF(OR(Selection_Hide2!Q85=0, Selection_Hide2!Q85=\"\"), \"\", Selection_Hide2!Q85)","v":""},{"$f":"IF(OR(Selection_Hide2!R85=0, Selection_Hide2!R85=\"\"), \"\", Selection_Hide2!R85)","v":""},{"$f":"IF(OR(Selection_Hide2!S85=0, Selection_Hide2!S85=\"\"), \"\", Selection_Hide2!S85)","v":""},{"$f":"IF(OR(Selection_Hide2!T85=0, Selection_Hide2!T85=\"\"), \"\", Selection_Hide2!T85)","v":""},{"$f":"IF(OR(Selection_Hide2!U85=0, Selection_Hide2!U85=\"\"), \"\", Selection_Hide2!U85)","v":""},{"$f":"IF(OR(Selection_Hide2!V85=0, Selection_Hide2!V85=\"\"), \"\", Selection_Hide2!V85)","v":""},{"$f":"IF(OR(Selection_Hide2!W85=0, Selection_Hide2!W85=\"\"), \"\", Selection_Hide2!W85)","v":""},{"$f":"IF(OR(Selection_Hide2!X85=0, Selection_Hide2!X85=\"\"), \"\", Selection_Hide2!X85)","v":""},{"$f":"IF(OR(Selection_Hide2!Y85=0, Selection_Hide2!Y85=\"\"), \"\", Selection_Hide2!Y85)","v":""},{"$f":"IF(OR(Selection_Hide2!Z85=0, Selection_Hide2!Z85=\"\"), \"\", Selection_Hide2!Z85)","v":""},{"$f":"IF(OR(Selection_Hide2!AA85=0, Selection_Hide2!AA85=\"\"), \"\", Selection_Hide2!AA85)","v":""},{"$f":"IF(OR(Selection_Hide2!AB85=0, Selection_Hide2!AB85=\"\"), \"\", Selection_Hide2!AB85)","v":""}]
[{"$f":"IF(OR(Selection_Hide2!A86=0, Selection_Hide2!A86=\"\"), \"\", Selection_Hide2!A86)","v":""},{"$f":"IF(OR(Selection_Hide2!B86=0, Selection_Hide2!B86=\"\"), \"\", Selection_Hide2!B86)","v":""},{"$f":"IF(OR(Selection_Hide2!C86=0, Selection_Hide2!C86=\"\"), \"\", Selection_Hide2!C86)","v":""},{"$f":"IF(OR(Selection_Hide2!D86=0, Selection_Hide2!D86=\"\"), \"\", Selection_Hide2!D86)","v":""},{"$f":"IF(OR(Selection_Hide2!E86=0, Selection_Hide2!E86=\"\"), \"\", Selection_Hide2!E86)","v":""},{"$f":"IF(OR(Selection_Hide2!F86=0, Selection_Hide2!F86=\"\"), \"\", Selection_Hide2!F86)","v":""},{"$f":"IF(OR(Selection_Hide2!G86=0, Selection_Hide2!G86=\"\"), \"\", Selection_Hide2!G86)","v":""},{"$f":"IF(OR(Selection_Hide2!H86=0, Selection_Hide2!H86=\"\"), \"\", Selection_Hide2!H86)","v":""},{"$f":"IF(OR(Selection_Hide2!I86=0, Selection_Hide2!I86=\"\"), \"\", Selection_Hide2!I86)","v":""},{"$f":"IF(OR(Selection_Hide2!J86=0, Selection_Hide2!J86=\"\"), \"\", Selection_Hide2!J86)","v":""},{"$f":"IF(OR(Selection_Hide2!K86=0, Selection_Hide2!K86=\"\"), \"\", Selection_Hide2!K86)","v":""},{"$f":"IF(OR(Selection_Hide2!L86=0, Selection_Hide2!L86=\"\"), \"\", Selection_Hide2!L86)","v":""},{"$f":"IF(OR(Selection_Hide2!M86=0, Selection_Hide2!M86=\"\"), \"\", Selection_Hide2!M86)","v":""},{"$f":"IF(OR(Selection_Hide2!N86=0, Selection_Hide2!N86=\"\"), \"\", Selection_Hide2!N86)","v":""},{"$f":"IF(OR(Selection_Hide2!O86=0, Selection_Hide2!O86=\"\"), \"\", Selection_Hide2!O86)","v":""},{"$f":"IF(OR(Selection_Hide2!P86=0, Selection_Hide2!P86=\"\"), \"\", Selection_Hide2!P86)","v":""},{"$f":"IF(OR(Selection_Hide2!Q86=0, Selection_Hide2!Q86=\"\"), \"\", Selection_Hide2!Q86)","v":""},{"$f":"IF(OR(Selection_Hide2!R86=0, Selection_Hide2!R86=\"\"), \"\", Selection_Hide2!R86)","v":""},{"$f":"IF(OR(Selection_Hide2!S86=0, Selection_Hide2!S86=\"\"), \"\", Selection_Hide2!S86)","v":""},{"$f":"IF(OR(Selection_Hide2!T86=0, Selection_Hide2!T86=\"\"), \"\", Selection_Hide2!T86)","v":""},{"$f":"IF(OR(Selection_Hide2!U86=0, Selection_Hide2!U86=\"\"), \"\", Selection_Hide2!U86)","v":""},{"$f":"IF(OR(Selection_Hide2!V86=0, Selection_Hide2!V86=\"\"), \"\", Selection_Hide2!V86)","v":""},{"$f":"IF(OR(Selection_Hide2!W86=0, Selection_Hide2!W86=\"\"), \"\", Selection_Hide2!W86)","v":""},{"$f":"IF(OR(Selection_Hide2!X86=0, Selection_Hide2!X86=\"\"), \"\", Selection_Hide2!X86)","v":""},{"$f":"IF(OR(Selection_Hide2!Y86=0, Selection_Hide2!Y86=\"\"), \"\", Selection_Hide2!Y86)","v":""},{"$f":"IF(OR(Selection_Hide2!Z86=0, Selection_Hide2!Z86=\"\"), \"\", Selection_Hide2!Z86)","v":""},{"$f":"IF(OR(Selection_Hide2!AA86=0, Selection_Hide2!AA86=\"\"), \"\", Selection_Hide2!AA86)","v":""},{"$f":"IF(OR(Selection_Hide2!AB86=0, Selection_Hide2!AB86=\"\"), \"\", Selection_Hide2!AB86)","v":""}]
[{"$f":"IF(OR(Selection_Hide2!A87=0, Selection_Hide2!A87=\"\"), \"\", Selection_Hide2!A87)","v":""},{"$f":"IF(OR(Selection_Hide2!B87=0, Selection_Hide2!B87=\"\"), \"\", Selection_Hide2!B87)","v":""},{"$f":"IF(OR(Selection_Hide2!C87=0, Selection_Hide2!C87=\"\"), \"\", Selection_Hide2!C87)","v":""},{"$f":"IF(OR(Selection_Hide2!D87=0, Selection_Hide2!D87=\"\"), \"\", Selection_Hide2!D87)","v":""},{"$f":"IF(OR(Selection_Hide2!E87=0, Selection_Hide2!E87=\"\"), \"\", Selection_Hide2!E87)","v":""},{"$f":"IF(OR(Selection_Hide2!F87=0, Selection_Hide2!F87=\"\"), \"\", Selection_Hide2!F87)","v":""},{"$f":"IF(OR(Selection_Hide2!G87=0, Selection_Hide2!G87=\"\"), \"\", Selection_Hide2!G87)","v":""},{"$f":"IF(OR(Selection_Hide2!H87=0, Selection_Hide2!H87=\"\"), \"\", Selection_Hide2!H87)","v":""},{"$f":"IF(OR(Selection_Hide2!I87=0, Selection_Hide2!I87=\"\"), \"\", Selection_Hide2!I87)","v":""},{"$f":"IF(OR(Selection_Hide2!J87=0, Selection_Hide2!J87=\"\"), \"\", Selection_Hide2!J87)","v":""},{"$f":"IF(OR(Selection_Hide2!K87=0, Selection_Hide2!K87=\"\"), \"\", Selection_Hide2!K87)","v":""},{"$f":"IF(OR(Selection_Hide2!L87=0, Selection_Hide2!L87=\"\"), \"\", Selection_Hide2!L87)","v":""},{"$f":"IF(OR(Selection_Hide2!M87=0, Selection_Hide2!M87=\"\"), \"\", Selection_Hide2!M87)","v":""},{"$f":"IF(OR(Selection_Hide2!N87=0, Selection_Hide2!N87=\"\"), \"\", Selection_Hide2!N87)","v":""},{"$f":"IF(OR(Selection_Hide2!O87=0, Selection_Hide2!O87=\"\"), \"\", Selection_Hide2!O87)","v":""},{"$f":"IF(OR(Selection_Hide2!P87=0, Selection_Hide2!P87=\"\"), \"\", Selection_Hide2!P87)","v":""},{"$f":"IF(OR(Selection_Hide2!Q87=0, Selection_Hide2!Q87=\"\"), \"\", Selection_Hide2!Q87)","v":""},{"$f":"IF(OR(Selection_Hide2!R87=0, Selection_Hide2!R87=\"\"), \"\", Selection_Hide2!R87)","v":""},{"$f":"IF(OR(Selection_Hide2!S87=0, Selection_Hide2!S87=\"\"), \"\", Selection_Hide2!S87)","v":""},{"$f":"IF(OR(Selection_Hide2!T87=0, Selection_Hide2!T87=\"\"), \"\", Selection_Hide2!T87)","v":""},{"$f":"IF(OR(Selection_Hide2!U87=0, Selection_Hide2!U87=\"\"), \"\", Selection_Hide2!U87)","v":""},{"$f":"IF(OR(Selection_Hide2!V87=0, Selection_Hide2!V87=\"\"), \"\", Selection_Hide2!V87)","v":""},{"$f":"IF(OR(Selection_Hide2!W87=0, Selection_Hide2!W87=\"\"), \"\", Selection_Hide2!W87)","v":""},{"$f":"IF(OR(Selection_Hide2!X87=0, Selection_Hide2!X87=\"\"), \"\", Selection_Hide2!X87)","v":""},{"$f":"IF(OR(Selection_Hide2!Y87=0, Selection_Hide2!Y87=\"\"), \"\", Selection_Hide2!Y87)","v":""},{"$f":"IF(OR(Selection_Hide2!Z87=0, Selection_Hide2!Z87=\"\"), \"\", Selection_Hide2!Z87)","v":""},{"$f":"IF(OR(Selection_Hide2!AA87=0, Selection_Hide2!AA87=\"\"), \"\", Selection_Hide2!AA87)","v":""},{"$f":"IF(OR(Selection_Hide2!AB87=0, Selection_Hide2!AB87=\"\"), \"\", Selection_Hide2!AB87)","v":""}]
[{"$f":"IF(OR(Selection_Hide2!A88=0, Selection_Hide2!A88=\"\"), \"\", Selection_Hide2!A88)","v":""},{"$f":"IF(OR(Selection_Hide2!B88=0, Selection_Hide2!B88=\"\"), \"\", Selection_Hide2!B88)","v":""},{"$f":"IF(OR(Selection_Hide2!C88=0, Selection_Hide2!C88=\"\"), \"\", Selection_Hide2!C88)","v":""},{"$f":"IF(OR(Selection_Hide2!D88=0, Selection_Hide2!D88=\"\"), \"\", Selection_Hide2!D88)","v":""},{"$f":"IF(OR(Selection_Hide2!E88=0, Selection_Hide2!E88=\"\"), \"\", Selection_Hide2!E88)","v":""},{"$f":"IF(OR(Selection_Hide2!F88=0, Selection_Hide2!F88=\"\"), \"\", Selection_Hide2!F88)","v":""},{"$f":"IF(OR(Selection_Hide2!G88=0, Selection_Hide2!G88=\"\"), \"\", Selection_Hide2!G88)","v":""},{"$f":"IF(OR(Selection_Hide2!H88=0, Selection_Hide2!H88=\"\"), \"\", Selection_Hide2!H88)","v":""},{"$f":"IF(OR(Selection_Hide2!I88=0, Selection_Hide2!I88=\"\"), \"\", Selection_Hide2!I88)","v":""},{"$f":"IF(OR(Selection_Hide2!J88=0, Selection_Hide2!J88=\"\"), \"\", Selection_Hide2!J88)","v":""},{"$f":"IF(OR(Selection_Hide2!K88=0, Selection_Hide2!K88=\"\"), \"\", Selection_Hide2!K88)","v":""},{"$f":"IF(OR(Selection_Hide2!L88=0, Selection_Hide2!L88=\"\"), \"\", Selection_Hide2!L88)","v":""},{"$f":"IF(OR(Selection_Hide2!M88=0, Selection_Hide2!M88=\"\"), \"\", Selection_Hide2!M88)","v":""},{"$f":"IF(OR(Selection_Hide2!N88=0, Selection_Hide2!N88=\"\"), \"\", Selection_Hide2!N88)","v":""},{"$f":"IF(OR(Selection_Hide2!O88=0, Selection_Hide2!O88=\"\"), \"\", Selection_Hide2!O88)","v":""},{"$f":"IF(OR(Selection_Hide2!P88=0, Selection_Hide2!P88=\"\"), \"\", Selection_Hide2!P88)","v":""},{"$f":"IF(OR(Selection_Hide2!Q88=0, Selection_Hide2!Q88=\"\"), \"\", Selection_Hide2!Q88)","v":""},{"$f":"IF(OR(Selection_Hide2!R88=0, Selection_Hide2!R88=\"\"), \"\", Selection_Hide2!R88)","v":""},{"$f":"IF(OR(Selection_Hide2!S88=0, Selection_Hide2!S88=\"\"), \"\", Selection_Hide2!S88)","v":""},{"$f":"IF(OR(Selection_Hide2!T88=0, Selection_Hide2!T88=\"\"), \"\", Selection_Hide2!T88)","v":""},{"$f":"IF(OR(Selection_Hide2!U88=0, Selection_Hide2!U88=\"\"), \"\", Selection_Hide2!U88)","v":""},{"$f":"IF(OR(Selection_Hide2!V88=0, Selection_Hide2!V88=\"\"), \"\", Selection_Hide2!V88)","v":""},{"$f":"IF(OR(Selection_Hide2!W88=0, Selection_Hide2!W88=\"\"), \"\", Selection_Hide2!W88)","v":""},{"$f":"IF(OR(Selection_Hide2!X88=0, Selection_Hide2!X88=\"\"), \"\", Selection_Hide2!X88)","v":""},{"$f":"IF(OR(Selection_Hide2!Y88=0, Selection_Hide2!Y88=\"\"), \"\", Selection_Hide2!Y88)","v":""},{"$f":"IF(OR(Selection_Hide2!Z88=0, Selection_Hide2!Z88=\"\"), \"\", Selection_Hide2!Z88)","v":""},{"$f":"IF(OR(Selection_Hide2!AA88=0, Selection_Hide2!AA88=\"\"), \"\", Selection_Hide2!AA88)","v":""},{"$f":"IF(OR(Selection_Hide2!AB88=0, Selection_Hide2!AB88=\"\"), \"\", Selection_Hide2!AB88)","v":""}]
[{"$f":"IF(OR(Selection_Hide2!A89=0, Selection_Hide2!A89=\"\"), \"\", Selection_Hide2!A89)","v":""},{"$f":"IF(OR(Selection_Hide2!B89=0, Selection_Hide2!B89=\"\"), \"\", Selection_Hide2!B89)","v":""},{"$f":"IF(OR(Selection_Hide2!C89=0, Selection_Hide2!C89=\"\"), \"\", Selection_Hide2!C89)","v":""},{"$f":"IF(OR(Selection_Hide2!D89=0, Selection_Hide2!D89=\"\"), \"\", Selection_Hide2!D89)","v":""},{"$f":"IF(OR(Selection_Hide2!E89=0, Selection_Hide2!E89=\"\"), \"\", Selection_Hide2!E89)","v":""},{"$f":"IF(OR(Selection_Hide2!F89=0, Selection_Hide2!F89=\"\"), \"\", Selection_Hide2!F89)","v":""},{"$f":"IF(OR(Selection_Hide2!G89=0, Selection_Hide2!G89=\"\"), \"\", Selection_Hide2!G89)","v":""},{"$f":"IF(OR(Selection_Hide2!H89=0, Selection_Hide2!H89=\"\"), \"\", Selection_Hide2!H89)","v":""},{"$f":"IF(OR(Selection_Hide2!I89=0, Selection_Hide2!I89=\"\"), \"\", Selection_Hide2!I89)","v":""},{"$f":"IF(OR(Selection_Hide2!J89=0, Selection_Hide2!J89=\"\"), \"\", Selection_Hide2!J89)","v":""},{"$f":"IF(OR(Selection_Hide2!K89=0, Selection_Hide2!K89=\"\"), \"\", Selection_Hide2!K89)","v":""},{"$f":"IF(OR(Selection_Hide2!L89=0, Selection_Hide2!L89=\"\"), \"\", Selection_Hide2!L89)","v":""},{"$f":"IF(OR(Selection_Hide2!M89=0, Selection_Hide2!M89=\"\"), \"\", Selection_Hide2!M89)","v":""},{"$f":"IF(OR(Selection_Hide2!N89=0, Selection_Hide2!N89=\"\"), \"\", Selection_Hide2!N89)","v":""},{"$f":"IF(OR(Selection_Hide2!O89=0, Selection_Hide2!O89=\"\"), \"\", Selection_Hide2!O89)","v":""},{"$f":"IF(OR(Selection_Hide2!P89=0, Selection_Hide2!P89=\"\"), \"\", Selection_Hide2!P89)","v":""},{"$f":"IF(OR(Selection_Hide2!Q89=0, Selection_Hide2!Q89=\"\"), \"\", Selection_Hide2!Q89)","v":""},{"$f":"IF(OR(Selection_Hide2!R89=0, Selection_Hide2!R89=\"\"), \"\", Selection_Hide2!R89)","v":""},{"$f":"IF(OR(Selection_Hide2!S89=0, Selection_Hide2!S89=\"\"), \"\", Selection_Hide2!S89)","v":""},{"$f":"IF(OR(Selection_Hide2!T89=0, Selection_Hide2!T89=\"\"), \"\", Selection_Hide2!T89)","v":""},{"$f":"IF(OR(Selection_Hide2!U89=0, Selection_Hide2!U89=\"\"), \"\", Selection_Hide2!U89)","v":""},{"$f":"IF(OR(Selection_Hide2!V89=0, Selection_Hide2!V89=\"\"), \"\", Selection_Hide2!V89)","v":""},{"$f":"IF(OR(Selection_Hide2!W89=0, Selection_Hide2!W89=\"\"), \"\", Selection_Hide2!W89)","v":""},{"$f":"IF(OR(Selection_Hide2!X89=0, Selection_Hide2!X89=\"\"), \"\", Selection_Hide2!X89)","v":""},{"$f":"IF(OR(Selection_Hide2!Y89=0, Selection_Hide2!Y89=\"\"), \"\", Selection_Hide2!Y89)","v":""},{"$f":"IF(OR(Selection_Hide2!Z89=0, Selection_Hide2!Z89=\"\"), \"\", Selection_Hide2!Z89)","v":""},{"$f":"IF(OR(Selection_Hide2!AA89=0, Selection_Hide2!AA89=\"\"), \"\", Selection_Hide2!AA89)","v":""},{"$f":"IF(OR(Selection_Hide2!AB89=0, Selection_Hide2!AB89=\"\"), \"\", Selection_Hide2!AB89)","v":""}]
[{"$f":"IF(OR(Selection_Hide2!A90=0, Selection_Hide2!A90=\"\"), \"\", Selection_Hide2!A90)","v":""},{"$f":"IF(OR(Selection_Hide2!B90=0, Selection_Hide2!B90=\"\"), \"\", Selection_Hide2!B90)","v":""},{"$f":"IF(OR(Selection_Hide2!C90=0, Selection_Hide2!C90=\"\"), \"\", Selection_Hide2!C90)","v":""},{"$f":"IF(OR(Selection_Hide2!D90=0, Selection_Hide2!D90=\"\"), \"\", Selection_Hide2!D90)","v":""},{"$f":"IF(OR(Selection_Hide2!E90=0, Selection_Hide2!E90=\"\"), \"\", Selection_Hide2!E90)","v":""},{"$f":"IF(OR(Selection_Hide2!F90=0, Selection_Hide2!F90=\"\"), \"\", Selection_Hide2!F90)","v":""},{"$f":"IF(OR(Selection_Hide2!G90=0, Selection_Hide2!G90=\"\"), \"\", Selection_Hide2!G90)","v":""},{"$f":"IF(OR(Selection_Hide2!H90=0, Selection_Hide2!H90=\"\"), \"\", Selection_Hide2!H90)","v":""},{"$f":"IF(OR(Selection_Hide2!I90=0, Selection_Hide2!I90=\"\"), \"\", Selection_Hide2!I90)","v":""},{"$f":"IF(OR(Selection_Hide2!J90=0, Selection_Hide2!J90=\"\"), \"\", Selection_Hide2!J90)","v":""},{"$f":"IF(OR(Selection_Hide2!K90=0, Selection_Hide2!K90=\"\"), \"\", Selection_Hide2!K90)","v":""},{"$f":"IF(OR(Selection_Hide2!L90=0, Selection_Hide2!L90=\"\"), \"\", Selection_Hide2!L90)","v":""},{"$f":"IF(OR(Selection_Hide2!M90=0, Selection_Hide2!M90=\"\"), \"\", Selection_Hide2!M90)","v":""},{"$f":"IF(OR(Selection_Hide2!N90=0, Selection_Hide2!N90=\"\"), \"\", Selection_Hide2!N90)","v":""},{"$f":"IF(OR(Selection_Hide2!O90=0, Selection_Hide2!O90=\"\"), \"\", Selection_Hide2!O90)","v":""},{"$f":"IF(OR(Selection_Hide2!P90=0, Selection_Hide2!P90=\"\"), \"\", Selection_Hide2!P90)","v":""},{"$f":"IF(OR(Selection_Hide2!Q90=0, Selection_Hide2!Q90=\"\"), \"\", Selection_Hide2!Q90)","v":""},{"$f":"IF(OR(Selection_Hide2!R90=0, Selection_Hide2!R90=\"\"), \"\", Selection_Hide2!R90)","v":""},{"$f":"IF(OR(Selection_Hide2!S90=0, Selection_Hide2!S90=\"\"), \"\", Selection_Hide2!S90)","v":""},{"$f":"IF(OR(Selection_Hide2!T90=0, Selection_Hide2!T90=\"\"), \"\", Selection_Hide2!T90)","v":""},{"$f":"IF(OR(Selection_Hide2!U90=0, Selection_Hide2!U90=\"\"), \"\", Selection_Hide2!U90)","v":""},{"$f":"IF(OR(Selection_Hide2!V90=0, Selection_Hide2!V90=\"\"), \"\", Selection_Hide2!V90)","v":""},{"$f":"IF(OR(Selection_Hide2!W90=0, Selection_Hide2!W90=\"\"), \"\", Selection_Hide2!W90)","v":""},{"$f":"IF(OR(Selection_Hide2!X90=0, Selection_Hide2!X90=\"\"), \"\", Selection_Hide2!X90)","v":""},{"$f":"IF(OR(Selection_Hide2!Y90=0, Selection_Hide2!Y90=\"\"), \"\", Selection_Hide2!Y90)","v":""},{"$f":"IF(OR(Selection_Hide2!Z90=0, Selection_Hide2!Z90=\"\"), \"\", Selection_Hide2!Z90)","v":""},{"$f":"IF(OR(Selection_Hide2!AA90=0, Selection_Hide2!AA90=\"\"), \"\", Selection_Hide2!AA90)","v":""},{"$f":"IF(OR(Selection_Hide2!AB90=0, Selection_Hide2!AB90=\"\"), \"\", Selection_Hide2!AB90)","v":""}]
[{"$f":"IF(OR(Selection_Hide2!A91=0, Selection_Hide2!A91=\"\"), \"\", Selection_Hide2!A91)","v":""},{"$f":"IF(OR(Selection_Hide2!B91=0, Selection_Hide2!B91=\"\"), \"\", Selection_Hide2!B91)","v":""},{"$f":"IF(OR(Selection_Hide2!C91=0, Selection_Hide2!C91=\"\"), \"\", Selection_Hide2!C91)","v":""},{"$f":"IF(OR(Selection_Hide2!D91=0, Selection_Hide2!D91=\"\"), \"\", Selection_Hide2!D91)","v":""},{"$f":"IF(OR(Selection_Hide2!E91=0, Selection_Hide2!E91=\"\"), \"\", Selection_Hide2!E91)","v":""},{"$f":"IF(OR(Selection_Hide2!F91=0, Selection_Hide2!F91=\"\"), \"\", Selection_Hide2!F91)","v":""},{"$f":"IF(OR(Selection_Hide2!G91=0, Selection_Hide2!G91=\"\"), \"\", Selection_Hide2!G91)","v":""},{"$f":"IF(OR(Selection_Hide2!H91=0, Selection_Hide2!H91=\"\"), \"\", Selection_Hide2!H91)","v":""},{"$f":"IF(OR(Selection_Hide2!I91=0, Selection_Hide2!I91=\"\"), \"\", Selection_Hide2!I91)","v":""},{"$f":"IF(OR(Selection_Hide2!J91=0, Selection_Hide2!J91=\"\"), \"\", Selection_Hide2!J91)","v":""},{"$f":"IF(OR(Selection_Hide2!K91=0, Selection_Hide2!K91=\"\"), \"\", Selection_Hide2!K91)","v":""},{"$f":"IF(OR(Selection_Hide2!L91=0, Selection_Hide2!L91=\"\"), \"\", Selection_Hide2!L91)","v":""},{"$f":"IF(OR(Selection_Hide2!M91=0, Selection_Hide2!M91=\"\"), \"\", Selection_Hide2!M91)","v":""},{"$f":"IF(OR(Selection_Hide2!N91=0, Selection_Hide2!N91=\"\"), \"\", Selection_Hide2!N91)","v":""},{"$f":"IF(OR(Selection_Hide2!O91=0, Selection_Hide2!O91=\"\"), \"\", Selection_Hide2!O91)","v":""},{"$f":"IF(OR(Selection_Hide2!P91=0, Selection_Hide2!P91=\"\"), \"\", Selection_Hide2!P91)","v":""},{"$f":"IF(OR(Selection_Hide2!Q91=0, Selection_Hide2!Q91=\"\"), \"\", Selection_Hide2!Q91)","v":""},{"$f":"IF(OR(Selection_Hide2!R91=0, Selection_Hide2!R91=\"\"), \"\", Selection_Hide2!R91)","v":""},{"$f":"IF(OR(Selection_Hide2!S91=0, Selection_Hide2!S91=\"\"), \"\", Selection_Hide2!S91)","v":""},{"$f":"IF(OR(Selection_Hide2!T91=0, Selection_Hide2!T91=\"\"), \"\", Selection_Hide2!T91)","v":""},{"$f":"IF(OR(Selection_Hide2!U91=0, Selection_Hide2!U91=\"\"), \"\", Selection_Hide2!U91)","v":""},{"$f":"IF(OR(Selection_Hide2!V91=0, Selection_Hide2!V91=\"\"), \"\", Selection_Hide2!V91)","v":""},{"$f":"IF(OR(Selection_Hide2!W91=0, Selection_Hide2!W91=\"\"), \"\", Selection_Hide2!W91)","v":""},{"$f":"IF(OR(Selection_Hide2!X91=0, Selection_Hide2!X91=\"\"), \"\", Selection_Hide2!X91)","v":""},{"$f":"IF(OR(Selection_Hide2!Y91=0, Selection_Hide2!Y91=\"\"), \"\", Selection_Hide2!Y91)","v":""},{"$f":"IF(OR(Selection_Hide2!Z91=0, Selection_Hide2!Z91=\"\"), \"\", Selection_Hide2!Z91)","v":""},{"$f":"IF(OR(Selection_Hide2!AA91=0, Selection_Hide2!AA91=\"\"), \"\", Selection_Hide2!AA91)","v":""},{"$f":"IF(OR(Selection_Hide2!AB91=0, Selection_Hide2!AB91=\"\"), \"\", Selection_Hide2!AB91)","v":""}]
[{"$f":"IF(OR(Selection_Hide2!A92=0, Selection_Hide2!A92=\"\"), \"\", Selection_Hide2!A92)","v":""},{"$f":"IF(OR(Selection_Hide2!B92=0, Selection_Hide2!B92=\"\"), \"\", Selection_Hide2!B92)","v":""},{"$f":"IF(OR(Selection_Hide2!C92=0, Selection_Hide2!C92=\"\"), \"\", Selection_Hide2!C92)","v":""},{"$f":"IF(OR(Selection_Hide2!D92=0, Selection_Hide2!D92=\"\"), \"\", Selection_Hide2!D92)","v":""},{"$f":"IF(OR(Selection_Hide2!E92=0, Selection_Hide2!E92=\"\"), \"\", Selection_Hide2!E92)","v":""},{"$f":"IF(OR(Selection_Hide2!F92=0, Selection_Hide2!F92=\"\"), \"\", Selection_Hide2!F92)","v":""},{"$f":"IF(OR(Selection_Hide2!G92=0, Selection_Hide2!G92=\"\"), \"\", Selection_Hide2!G92)","v":""},{"$f":"IF(OR(Selection_Hide2!H92=0, Selection_Hide2!H92=\"\"), \"\", Selection_Hide2!H92)","v":""},{"$f":"IF(OR(Selection_Hide2!I92=0, Selection_Hide2!I92=\"\"), \"\", Selection_Hide2!I92)","v":""},{"$f":"IF(OR(Selection_Hide2!J92=0, Selection_Hide2!J92=\"\"), \"\", Selection_Hide2!J92)","v":""},{"$f":"IF(OR(Selection_Hide2!K92=0, Selection_Hide2!K92=\"\"), \"\", Selection_Hide2!K92)","v":""},{"$f":"IF(OR(Selection_Hide2!L92=0, Selection_Hide2!L92=\"\"), \"\", Selection_Hide2!L92)","v":""},{"$f":"IF(OR(Selection_Hide2!M92=0, Selection_Hide2!M92=\"\"), \"\", Selection_Hide2!M92)","v":""},{"$f":"IF(OR(Selection_Hide2!N92=0, Selection_Hide2!N92=\"\"), \"\", Selection_Hide2!N92)","v":""},{"$f":"IF(OR(Selection_Hide2!O92=0, Selection_Hide2!O92=\"\"), \"\", Selection_Hide2!O92)","v":""},{"$f":"IF(OR(Selection_Hide2!P92=0, Selection_Hide2!P92=\"\"), \"\", Selection_Hide2!P92)","v":""},{"$f":"IF(OR(Selection_Hide2!Q92=0, Selection_Hide2!Q92=\"\"), \"\", Selection_Hide2!Q92)","v":""},{"$f":"IF(OR(Selection_Hide2!R92=0, Selection_Hide2!R92=\"\"), \"\", Selection_Hide2!R92)","v":""},{"$f":"IF(OR(Selection_Hide2!S92=0, Selection_Hide2!S92=\"\"), \"\", Selection_Hide2!S92)","v":""},{"$f":"IF(OR(Selection_Hide2!T92=0, Selection_Hide2!T92=\"\"), \"\", Selection_Hide2!T92)","v":""},{"$f":"IF(OR(Selection_Hide2!U92=0, Selection_Hide2!U92=\"\"), \"\", Selection_Hide2!U92)","v":""},{"$f":"IF(OR(Selection_Hide2!V92=0, Selection_Hide2!V92=\"\"), \"\", Selection_Hide2!V92)","v":""},{"$f":"IF(OR(Selection_Hide2!W92=0, Selection_Hide2!W92=\"\"), \"\", Selection_Hide2!W92)","v":""},{"$f":"IF(OR(Selection_Hide2!X92=0, Selection_Hide2!X92=\"\"), \"\", Selection_Hide2!X92)","v":""},{"$f":"IF(OR(Selection_Hide2!Y92=0, Selection_Hide2!Y92=\"\"), \"\", Selection_Hide2!Y92)","v":""},{"$f":"IF(OR(Selection_Hide2!Z92=0, Selection_Hide2!Z92=\"\"), \"\", Selection_Hide2!Z92)","v":""},{"$f":"IF(OR(Selection_Hide2!AA92=0, Selection_Hide2!AA92=\"\"), \"\", Selection_Hide2!AA92)","v":""},{"$f":"IF(OR(Selection_Hide2!AB92=0, Selection_Hide2!AB92=\"\"), \"\", Selection_Hide2!AB92)","v":""}]
[{"$f":"IF(OR(Selection_Hide2!A93=0, Selection_Hide2!A93=\"\"), \"\", Selection_Hide2!A93)","v":""},{"$f":"IF(OR(Selection_Hide2!B93=0, Selection_Hide2!B93=\"\"), \"\", Selection_Hide2!B93)","v":""},{"$f":"IF(OR(Selection_Hide2!C93=0, Selection_Hide2!C93=\"\"), \"\", Selection_Hide2!C93)","v":""},{"$f":"IF(OR(Selection_Hide2!D93=0, Selection_Hide2!D93=\"\"), \"\", Selection_Hide2!D93)","v":""},{"$f":"IF(OR(Selection_Hide2!E93=0, Selection_Hide2!E93=\"\"), \"\", Selection_Hide2!E93)","v":""},{"$f":"IF(OR(Selection_Hide2!F93=0, Selection_Hide2!F93=\"\"), \"\", Selection_Hide2!F93)","v":""},{"$f":"IF(OR(Selection_Hide2!G93=0, Selection_Hide2!G93=\"\"), \"\", Selection_Hide2!G93)","v":""},{"$f":"IF(OR(Selection_Hide2!H93=0, Selection_Hide2!H93=\"\"), \"\", Selection_Hide2!H93)","v":""},{"$f":"IF(OR(Selection_Hide2!I93=0, Selection_Hide2!I93=\"\"), \"\", Selection_Hide2!I93)","v":""},{"$f":"IF(OR(Selection_Hide2!J93=0, Selection_Hide2!J93=\"\"), \"\", Selection_Hide2!J93)","v":""},{"$f":"IF(OR(Selection_Hide2!K93=0, Selection_Hide2!K93=\"\"), \"\", Selection_Hide2!K93)","v":""},{"$f":"IF(OR(Selection_Hide2!L93=0, Selection_Hide2!L93=\"\"), \"\", Selection_Hide2!L93)","v":""},{"$f":"IF(OR(Selection_Hide2!M93=0, Selection_Hide2!M93=\"\"), \"\", Selection_Hide2!M93)","v":""},{"$f":"IF(OR(Selection_Hide2!N93=0, Selection_Hide2!N93=\"\"), \"\", Selection_Hide2!N93)","v":""},{"$f":"IF(OR(Selection_Hide2!O93=0, Selection_Hide2!O93=\"\"), \"\", Selection_Hide2!O93)","v":""},{"$f":"IF(OR(Selection_Hide2!P93=0, Selection_Hide2!P93=\"\"), \"\", Selection_Hide2!P93)","v":""},{"$f":"IF(OR(Selection_Hide2!Q93=0, Selection_Hide2!Q93=\"\"), \"\", Selection_Hide2!Q93)","v":""},{"$f":"IF(OR(Selection_Hide2!R93=0, Selection_Hide2!R93=\"\"), \"\", Selection_Hide2!R93)","v":""},{"$f":"IF(OR(Selection_Hide2!S93=0, Selection_Hide2!S93=\"\"), \"\", Selection_Hide2!S93)","v":""},{"$f":"IF(OR(Selection_Hide2!T93=0, Selection_Hide2!T93=\"\"), \"\", Selection_Hide2!T93)","v":""},{"$f":"IF(OR(Selection_Hide2!U93=0, Selection_Hide2!U93=\"\"), \"\", Selection_Hide2!U93)","v":""},{"$f":"IF(OR(Selection_Hide2!V93=0, Selection_Hide2!V93=\"\"), \"\", Selection_Hide2!V93)","v":""},{"$f":"IF(OR(Selection_Hide2!W93=0, Selection_Hide2!W93=\"\"), \"\", Selection_Hide2!W93)","v":""},{"$f":"IF(OR(Selection_Hide2!X93=0, Selection_Hide2!X93=\"\"), \"\", Selection_Hide2!X93)","v":""},{"$f":"IF(OR(Selection_Hide2!Y93=0, Selection_Hide2!Y93=\"\"), \"\", Selection_Hide2!Y93)","v":""},{"$f":"IF(OR(Selection_Hide2!Z93=0, Selection_Hide2!Z93=\"\"), \"\", Selection_Hide2!Z93)","v":""},{"$f":"IF(OR(Selection_Hide2!AA93=0, Selection_Hide2!AA93=\"\"), \"\", Selection_Hide2!AA93)","v":""},{"$f":"IF(OR(Selection_Hide2!AB93=0, Selection_Hide2!AB93=\"\"), \"\", Selection_Hide2!AB93)","v":""}]
[{"$f":"IF(OR(Selection_Hide2!A94=0, Selection_Hide2!A94=\"\"), \"\", Selection_Hide2!A94)","v":""},{"$f":"IF(OR(Selection_Hide2!B94=0, Selection_Hide2!B94=\"\"), \"\", Selection_Hide2!B94)","v":""},{"$f":"IF(OR(Selection_Hide2!C94=0, Selection_Hide2!C94=\"\"), \"\", Selection_Hide2!C94)","v":""},{"$f":"IF(OR(Selection_Hide2!D94=0, Selection_Hide2!D94=\"\"), \"\", Selection_Hide2!D94)","v":""},{"$f":"IF(OR(Selection_Hide2!E94=0, Selection_Hide2!E94=\"\"), \"\", Selection_Hide2!E94)","v":""},{"$f":"IF(OR(Selection_Hide2!F94=0, Selection_Hide2!F94=\"\"), \"\", Selection_Hide2!F94)","v":""},{"$f":"IF(OR(Selection_Hide2!G94=0, Selection_Hide2!G94=\"\"), \"\", Selection_Hide2!G94)","v":""},{"$f":"IF(OR(Selection_Hide2!H94=0, Selection_Hide2!H94=\"\"), \"\", Selection_Hide2!H94)","v":""},{"$f":"IF(OR(Selection_Hide2!I94=0, Selection_Hide2!I94=\"\"), \"\", Selection_Hide2!I94)","v":""},{"$f":"IF(OR(Selection_Hide2!J94=0, Selection_Hide2!J94=\"\"), \"\", Selection_Hide2!J94)","v":""},{"$f":"IF(OR(Selection_Hide2!K94=0, Selection_Hide2!K94=\"\"), \"\", Selection_Hide2!K94)","v":""},{"$f":"IF(OR(Selection_Hide2!L94=0, Selection_Hide2!L94=\"\"), \"\", Selection_Hide2!L94)","v":""},{"$f":"IF(OR(Selection_Hide2!M94=0, Selection_Hide2!M94=\"\"), \"\", Selection_Hide2!M94)","v":""},{"$f":"IF(OR(Selection_Hide2!N94=0, Selection_Hide2!N94=\"\"), \"\", Selection_Hide2!N94)","v":""},{"$f":"IF(OR(Selection_Hide2!O94=0, Selection_Hide2!O94=\"\"), \"\", Selection_Hide2!O94)","v":""},{"$f":"IF(OR(Selection_Hide2!P94=0, Selection_Hide2!P94=\"\"), \"\", Selection_Hide2!P94)","v":""},{"$f":"IF(OR(Selection_Hide2!Q94=0, Selection_Hide2!Q94=\"\"), \"\", Selection_Hide2!Q94)","v":""},{"$f":"IF(OR(Selection_Hide2!R94=0, Selection_Hide2!R94=\"\"), \"\", Selection_Hide2!R94)","v":""},{"$f":"IF(OR(Selection_Hide2!S94=0, Selection_Hide2!S94=\"\"), \"\", Selection_Hide2!S94)","v":""},{"$f":"IF(OR(Selection_Hide2!T94=0, Selection_Hide2!T94=\"\"), \"\", Selection_Hide2!T94)","v":""},{"$f":"IF(OR(Selection_Hide2!U94=0, Selection_Hide2!U94=\"\"), \"\", Selection_Hide2!U94)","v":""},{"$f":"IF(OR(Selection_Hide2!V94=0, Selection_Hide2!V94=\"\"), \"\", Selection_Hide2!V94)","v":""},{"$f":"IF(OR(Selection_Hide2!W94=0, Selection_Hide2!W94=\"\"), \"\", Selection_Hide2!W94)","v":""},{"$f":"IF(OR(Selection_Hide2!X94=0, Selection_Hide2!X94=\"\"), \"\", Selection_Hide2!X94)","v":""},{"$f":"IF(OR(Selection_Hide2!Y94=0, Selection_Hide2!Y94=\"\"), \"\", Selection_Hide2!Y94)","v":""},{"$f":"IF(OR(Selection_Hide2!Z94=0, Selection_Hide2!Z94=\"\"), \"\", Selection_Hide2!Z94)","v":""},{"$f":"IF(OR(Selection_Hide2!AA94=0, Selection_Hide2!AA94=\"\"), \"\", Selection_Hide2!AA94)","v":""},{"$f":"IF(OR(Selection_Hide2!AB94=0, Selection_Hide2!AB94=\"\"), \"\", Selection_Hide2!AB94)","v":""}]
[{"$f":"IF(OR(Selection_Hide2!A95=0, Selection_Hide2!A95=\"\"), \"\", Selection_Hide2!A95)","v":""},{"$f":"IF(OR(Selection_Hide2!B95=0, Selection_Hide2!B95=\"\"), \"\", Selection_Hide2!B95)","v":""},{"$f":"IF(OR(Selection_Hide2!C95=0, Selection_Hide2!C95=\"\"), \"\", Selection_Hide2!C95)","v":""},{"$f":"IF(OR(Selection_Hide2!D95=0, Selection_Hide2!D95=\"\"), \"\", Selection_Hide2!D95)","v":""},{"$f":"IF(OR(Selection_Hide2!E95=0, Selection_Hide2!E95=\"\"), \"\", Selection_Hide2!E95)","v":""},{"$f":"IF(OR(Selection_Hide2!F95=0, Selection_Hide2!F95=\"\"), \"\", Selection_Hide2!F95)","v":""},{"$f":"IF(OR(Selection_Hide2!G95=0, Selection_Hide2!G95=\"\"), \"\", Selection_Hide2!G95)","v":""},{"$f":"IF(OR(Selection_Hide2!H95=0, Selection_Hide2!H95=\"\"), \"\", Selection_Hide2!H95)","v":""},{"$f":"IF(OR(Selection_Hide2!I95=0, Selection_Hide2!I95=\"\"), \"\", Selection_Hide2!I95)","v":""},{"$f":"IF(OR(Selection_Hide2!J95=0, Selection_Hide2!J95=\"\"), \"\", Selection_Hide2!J95)","v":""},{"$f":"IF(OR(Selection_Hide2!K95=0, Selection_Hide2!K95=\"\"), \"\", Selection_Hide2!K95)","v":""},{"$f":"IF(OR(Selection_Hide2!L95=0, Selection_Hide2!L95=\"\"), \"\", Selection_Hide2!L95)","v":""},{"$f":"IF(OR(Selection_Hide2!M95=0, Selection_Hide2!M95=\"\"), \"\", Selection_Hide2!M95)","v":""},{"$f":"IF(OR(Selection_Hide2!N95=0, Selection_Hide2!N95=\"\"), \"\", Selection_Hide2!N95)","v":""},{"$f":"IF(OR(Selection_Hide2!O95=0, Selection_Hide2!O95=\"\"), \"\", Selection_Hide2!O95)","v":""},{"$f":"IF(OR(Selection_Hide2!P95=0, Selection_Hide2!P95=\"\"), \"\", Selection_Hide2!P95)","v":""},{"$f":"IF(OR(Selection_Hide2!Q95=0, Selection_Hide2!Q95=\"\"), \"\", Selection_Hide2!Q95)","v":""},{"$f":"IF(OR(Selection_Hide2!R95=0, Selection_Hide2!R95=\"\"), \"\", Selection_Hide2!R95)","v":""},{"$f":"IF(OR(Selection_Hide2!S95=0, Selection_Hide2!S95=\"\"), \"\", Selection_Hide2!S95)","v":""},{"$f":"IF(OR(Selection_Hide2!T95=0, Selection_Hide2!T95=\"\"), \"\", Selection_Hide2!T95)","v":""},{"$f":"IF(OR(Selection_Hide2!U95=0, Selection_Hide2!U95=\"\"), \"\", Selection_Hide2!U95)","v":""},{"$f":"IF(OR(Selection_Hide2!V95=0, Selection_Hide2!V95=\"\"), \"\", Selection_Hide2!V95)","v":""},{"$f":"IF(OR(Selection_Hide2!W95=0, Selection_Hide2!W95=\"\"), \"\", Selection_Hide2!W95)","v":""},{"$f":"IF(OR(Selection_Hide2!X95=0, Selection_Hide2!X95=\"\"), \"\", Selection_Hide2!X95)","v":""},{"$f":"IF(OR(Selection_Hide2!Y95=0, Selection_Hide2!Y95=\"\"), \"\", Selection_Hide2!Y95)","v":""},{"$f":"IF(OR(Selection_Hide2!Z95=0, Selection_Hide2!Z95=\"\"), \"\", Selection_Hide2!Z95)","v":""},{"$f":"IF(OR(Selection_Hide2!AA95=0, Selection_Hide2!AA95=\"\"), \"\", Selection_Hide2!AA95)","v":""},{"$f":"IF(OR(Selection_Hide2!AB95=0, Selection_Hide2!AB95=\"\"), \"\", Selection_Hide2!AB95)","v":""}]
[{"$f":"IF(OR(Selection_Hide2!A96=0, Selection_Hide2!A96=\"\"), \"\", Selection_Hide2!A96)","v":""},{"$f":"IF(OR(Selection_Hide2!B96=0, Selection_Hide2!B96=\"\"), \"\", Selection_Hide2!B96)","v":""},{"$f":"IF(OR(Selection_Hide2!C96=0, Selection_Hide2!C96=\"\"), \"\", Selection_Hide2!C96)","v":""},{"$f":"IF(OR(Selection_Hide2!D96=0, Selection_Hide2!D96=\"\"), \"\", Selection_Hide2!D96)","v":""},{"$f":"IF(OR(Selection_Hide2!E96=0, Selection_Hide2!E96=\"\"), \"\", Selection_Hide2!E96)","v":""},{"$f":"IF(OR(Selection_Hide2!F96=0, Selection_Hide2!F96=\"\"), \"\", Selection_Hide2!F96)","v":""},{"$f":"IF(OR(Selection_Hide2!G96=0, Selection_Hide2!G96=\"\"), \"\", Selection_Hide2!G96)","v":""},{"$f":"IF(OR(Selection_Hide2!H96=0, Selection_Hide2!H96=\"\"), \"\", Selection_Hide2!H96)","v":""},{"$f":"IF(OR(Selection_Hide2!I96=0, Selection_Hide2!I96=\"\"), \"\", Selection_Hide2!I96)","v":""},{"$f":"IF(OR(Selection_Hide2!J96=0, Selection_Hide2!J96=\"\"), \"\", Selection_Hide2!J96)","v":""},{"$f":"IF(OR(Selection_Hide2!K96=0, Selection_Hide2!K96=\"\"), \"\", Selection_Hide2!K96)","v":""},{"$f":"IF(OR(Selection_Hide2!L96=0, Selection_Hide2!L96=\"\"), \"\", Selection_Hide2!L96)","v":""},{"$f":"IF(OR(Selection_Hide2!M96=0, Selection_Hide2!M96=\"\"), \"\", Selection_Hide2!M96)","v":""},{"$f":"IF(OR(Selection_Hide2!N96=0, Selection_Hide2!N96=\"\"), \"\", Selection_Hide2!N96)","v":""},{"$f":"IF(OR(Selection_Hide2!O96=0, Selection_Hide2!O96=\"\"), \"\", Selection_Hide2!O96)","v":""},{"$f":"IF(OR(Selection_Hide2!P96=0, Selection_Hide2!P96=\"\"), \"\", Selection_Hide2!P96)","v":""},{"$f":"IF(OR(Selection_Hide2!Q96=0, Selection_Hide2!Q96=\"\"), \"\", Selection_Hide2!Q96)","v":""},{"$f":"IF(OR(Selection_Hide2!R96=0, Selection_Hide2!R96=\"\"), \"\", Selection_Hide2!R96)","v":""},{"$f":"IF(OR(Selection_Hide2!S96=0, Selection_Hide2!S96=\"\"), \"\", Selection_Hide2!S96)","v":""},{"$f":"IF(OR(Selection_Hide2!T96=0, Selection_Hide2!T96=\"\"), \"\", Selection_Hide2!T96)","v":""},{"$f":"IF(OR(Selection_Hide2!U96=0, Selection_Hide2!U96=\"\"), \"\", Selection_Hide2!U96)","v":""},{"$f":"IF(OR(Selection_Hide2!V96=0, Selection_Hide2!V96=\"\"), \"\", Selection_Hide2!V96)","v":""},{"$f":"IF(OR(Selection_Hide2!W96=0, Selection_Hide2!W96=\"\"), \"\", Selection_Hide2!W96)","v":""},{"$f":"IF(OR(Selection_Hide2!X96=0, Selection_Hide2!X96=\"\"), \"\", Selection_Hide2!X96)","v":""},{"$f":"IF(OR(Selection_Hide2!Y96=0, Selection_Hide2!Y96=\"\"), \"\", Selection_Hide2!Y96)","v":""},{"$f":"IF(OR(Selection_Hide2!Z96=0, Selection_Hide2!Z96=\"\"), \"\", Selection_Hide2!Z96)","v":""},{"$f":"IF(OR(Selection_Hide2!AA96=0, Selection_Hide2!AA96=\"\"), \"\", Selection_Hide2!AA96)","v":""},{"$f":"IF(OR(Selection_Hide2!AB96=0, Selection_Hide2!AB96=\"\"), \"\", Selection_Hide2!AB96)","v":""}]
[{"$f":"IF(OR(Selection_Hide2!A97=0, Selection_Hide2!A97=\"\"), \"\", Selection_Hide2!A97)","v":""},{"$f":"IF(OR(Selection_Hide2!B97=0, Selection_Hide2!B97=\"\"), \"\", Selection_Hide2!B97)","v":""},{"$f":"IF(OR(Selection_Hide2!C97=0, Selection_Hide2!C97=\"\"), \"\", Selection_Hide2!C97)","v":""},{"$f":"IF(OR(Selection_Hide2!D97=0, Selection_Hide2!D97=\"\"), \"\", Selection_Hide2!D97)","v":""},{"$f":"IF(OR(Selection_Hide2!E97=0, Selection_Hide2!E97=\"\"), \"\", Selection_Hide2!E97)","v":""},{"$f":"IF(OR(Selection_Hide2!F97=0, Selection_Hide2!F97=\"\"), \"\", Selection_Hide2!F97)","v":""},{"$f":"IF(OR(Selection_Hide2!G97=0, Selection_Hide2!G97=\"\"), \"\", Selection_Hide2!G97)","v":""},{"$f":"IF(OR(Selection_Hide2!H97=0, Selection_Hide2!H97=\"\"), \"\", Selection_Hide2!H97)","v":""},{"$f":"IF(OR(Selection_Hide2!I97=0, Selection_Hide2!I97=\"\"), \"\", Selection_Hide2!I97)","v":""},{"$f":"IF(OR(Selection_Hide2!J97=0, Selection_Hide2!J97=\"\"), \"\", Selection_Hide2!J97)","v":""},{"$f":"IF(OR(Selection_Hide2!K97=0, Selection_Hide2!K97=\"\"), \"\", Selection_Hide2!K97)","v":""},{"$f":"IF(OR(Selection_Hide2!L97=0, Selection_Hide2!L97=\"\"), \"\", Selection_Hide2!L97)","v":""},{"$f":"IF(OR(Selection_Hide2!M97=0, Selection_Hide2!M97=\"\"), \"\", Selection_Hide2!M97)","v":""},{"$f":"IF(OR(Selection_Hide2!N97=0, Selection_Hide2!N97=\"\"), \"\", Selection_Hide2!N97)","v":""},{"$f":"IF(OR(Selection_Hide2!O97=0, Selection_Hide2!O97=\"\"), \"\", Selection_Hide2!O97)","v":""},{"$f":"IF(OR(Selection_Hide2!P97=0, Selection_Hide2!P97=\"\"), \"\", Selection_Hide2!P97)","v":""},{"$f":"IF(OR(Selection_Hide2!Q97=0, Selection_Hide2!Q97=\"\"), \"\", Selection_Hide2!Q97)","v":""},{"$f":"IF(OR(Selection_Hide2!R97=0, Selection_Hide2!R97=\"\"), \"\", Selection_Hide2!R97)","v":""},{"$f":"IF(OR(Selection_Hide2!S97=0, Selection_Hide2!S97=\"\"), \"\", Selection_Hide2!S97)","v":""},{"$f":"IF(OR(Selection_Hide2!T97=0, Selection_Hide2!T97=\"\"), \"\", Selection_Hide2!T97)","v":""},{"$f":"IF(OR(Selection_Hide2!U97=0, Selection_Hide2!U97=\"\"), \"\", Selection_Hide2!U97)","v":""},{"$f":"IF(OR(Selection_Hide2!V97=0, Selection_Hide2!V97=\"\"), \"\", Selection_Hide2!V97)","v":""},{"$f":"IF(OR(Selection_Hide2!W97=0, Selection_Hide2!W97=\"\"), \"\", Selection_Hide2!W97)","v":""},{"$f":"IF(OR(Selection_Hide2!X97=0, Selection_Hide2!X97=\"\"), \"\", Selection_Hide2!X97)","v":""},{"$f":"IF(OR(Selection_Hide2!Y97=0, Selection_Hide2!Y97=\"\"), \"\", Selection_Hide2!Y97)","v":""},{"$f":"IF(OR(Selection_Hide2!Z97=0, Selection_Hide2!Z97=\"\"), \"\", Selection_Hide2!Z97)","v":""},{"$f":"IF(OR(Selection_Hide2!AA97=0, Selection_Hide2!AA97=\"\"), \"\", Selection_Hide2!AA97)","v":""},{"$f":"IF(OR(Selection_Hide2!AB97=0, Selection_Hide2!AB97=\"\"), \"\", Selection_Hide2!AB97)","v":""}]
[{"$f":"IF(OR(Selection_Hide2!A98=0, Selection_Hide2!A98=\"\"), \"\", Selection_Hide2!A98)","v":""},{"$f":"IF(OR(Selection_Hide2!B98=0, Selection_Hide2!B98=\"\"), \"\", Selection_Hide2!B98)","v":""},{"$f":"IF(OR(Selection_Hide2!C98=0, Selection_Hide2!C98=\"\"), \"\", Selection_Hide2!C98)","v":""},{"$f":"IF(OR(Selection_Hide2!D98=0, Selection_Hide2!D98=\"\"), \"\", Selection_Hide2!D98)","v":""},{"$f":"IF(OR(Selection_Hide2!E98=0, Selection_Hide2!E98=\"\"), \"\", Selection_Hide2!E98)","v":""},{"$f":"IF(OR(Selection_Hide2!F98=0, Selection_Hide2!F98=\"\"), \"\", Selection_Hide2!F98)","v":""},{"$f":"IF(OR(Selection_Hide2!G98=0, Selection_Hide2!G98=\"\"), \"\", Selection_Hide2!G98)","v":""},{"$f":"IF(OR(Selection_Hide2!H98=0, Selection_Hide2!H98=\"\"), \"\", Selection_Hide2!H98)","v":""},{"$f":"IF(OR(Selection_Hide2!I98=0, Selection_Hide2!I98=\"\"), \"\", Selection_Hide2!I98)","v":""},{"$f":"IF(OR(Selection_Hide2!J98=0, Selection_Hide2!J98=\"\"), \"\", Selection_Hide2!J98)","v":""},{"$f":"IF(OR(Selection_Hide2!K98=0, Selection_Hide2!K98=\"\"), \"\", Selection_Hide2!K98)","v":""},{"$f":"IF(OR(Selection_Hide2!L98=0, Selection_Hide2!L98=\"\"), \"\", Selection_Hide2!L98)","v":""},{"$f":"IF(OR(Selection_Hide2!M98=0, Selection_Hide2!M98=\"\"), \"\", Selection_Hide2!M98)","v":""},{"$f":"IF(OR(Selection_Hide2!N98=0, Selection_Hide2!N98=\"\"), \"\", Selection_Hide2!N98)","v":""},{"$f":"IF(OR(Selection_Hide2!O98=0, Selection_Hide2!O98=\"\"), \"\", Selection_Hide2!O98)","v":""},{"$f":"IF(OR(Selection_Hide2!P98=0, Selection_Hide2!P98=\"\"), \"\", Selection_Hide2!P98)","v":""},{"$f":"IF(OR(Selection_Hide2!Q98=0, Selection_Hide2!Q98=\"\"), \"\", Selection_Hide2!Q98)","v":""},{"$f":"IF(OR(Selection_Hide2!R98=0, Selection_Hide2!R98=\"\"), \"\", Selection_Hide2!R98)","v":""},{"$f":"IF(OR(Selection_Hide2!S98=0, Selection_Hide2!S98=\"\"), \"\", Selection_Hide2!S98)","v":""},{"$f":"IF(OR(Selection_Hide2!T98=0, Selection_Hide2!T98=\"\"), \"\", Selection_Hide2!T98)","v":""},{"$f":"IF(OR(Selection_Hide2!U98=0, Selection_Hide2!U98=\"\"), \"\", Selection_Hide2!U98)","v":""},{"$f":"IF(OR(Selection_Hide2!V98=0, Selection_Hide2!V98=\"\"), \"\", Selection_Hide2!V98)","v":""},{"$f":"IF(OR(Selection_Hide2!W98=0, Selection_Hide2!W98=\"\"), \"\", Selection_Hide2!W98)","v":""},{"$f":"IF(OR(Selection_Hide2!X98=0, Selection_Hide2!X98=\"\"), \"\", Selection_Hide2!X98)","v":""},{"$f":"IF(OR(Selection_Hide2!Y98=0, Selection_Hide2!Y98=\"\"), \"\", Selection_Hide2!Y98)","v":""},{"$f":"IF(OR(Selection_Hide2!Z98=0, Selection_Hide2!Z98=\"\"), \"\", Selection_Hide2!Z98)","v":""},{"$f":"IF(OR(Selection_Hide2!AA98=0, Selection_Hide2!AA98=\"\"), \"\", Selection_Hide2!AA98)","v":""},{"$f":"IF(OR(Selection_Hide2!AB98=0, Selection_Hide2!AB98=\"\"), \"\", Selection_Hide2!AB98)","v":""}]
[{"$f":"IF(OR(Selection_Hide2!A99=0, Selection_Hide2!A99=\"\"), \"\", Selection_Hide2!A99)","v":""},{"$f":"IF(OR(Selection_Hide2!B99=0, Selection_Hide2!B99=\"\"), \"\", Selection_Hide2!B99)","v":""},{"$f":"IF(OR(Selection_Hide2!C99=0, Selection_Hide2!C99=\"\"), \"\", Selection_Hide2!C99)","v":""},{"$f":"IF(OR(Selection_Hide2!D99=0, Selection_Hide2!D99=\"\"), \"\", Selection_Hide2!D99)","v":""},{"$f":"IF(OR(Selection_Hide2!E99=0, Selection_Hide2!E99=\"\"), \"\", Selection_Hide2!E99)","v":""},{"$f":"IF(OR(Selection_Hide2!F99=0, Selection_Hide2!F99=\"\"), \"\", Selection_Hide2!F99)","v":""},{"$f":"IF(OR(Selection_Hide2!G99=0, Selection_Hide2!G99=\"\"), \"\", Selection_Hide2!G99)","v":""},{"$f":"IF(OR(Selection_Hide2!H99=0, Selection_Hide2!H99=\"\"), \"\", Selection_Hide2!H99)","v":""},{"$f":"IF(OR(Selection_Hide2!I99=0, Selection_Hide2!I99=\"\"), \"\", Selection_Hide2!I99)","v":""},{"$f":"IF(OR(Selection_Hide2!J99=0, Selection_Hide2!J99=\"\"), \"\", Selection_Hide2!J99)","v":""},{"$f":"IF(OR(Selection_Hide2!K99=0, Selection_Hide2!K99=\"\"), \"\", Selection_Hide2!K99)","v":""},{"$f":"IF(OR(Selection_Hide2!L99=0, Selection_Hide2!L99=\"\"), \"\", Selection_Hide2!L99)","v":""},{"$f":"IF(OR(Selection_Hide2!M99=0, Selection_Hide2!M99=\"\"), \"\", Selection_Hide2!M99)","v":""},{"$f":"IF(OR(Selection_Hide2!N99=0, Selection_Hide2!N99=\"\"), \"\", Selection_Hide2!N99)","v":""},{"$f":"IF(OR(Selection_Hide2!O99=0, Selection_Hide2!O99=\"\"), \"\", Selection_Hide2!O99)","v":""},{"$f":"IF(OR(Selection_Hide2!P99=0, Selection_Hide2!P99=\"\"), \"\", Selection_Hide2!P99)","v":""},{"$f":"IF(OR(Selection_Hide2!Q99=0, Selection_Hide2!Q99=\"\"), \"\", Selection_Hide2!Q99)","v":""},{"$f":"IF(OR(Selection_Hide2!R99=0, Selection_Hide2!R99=\"\"), \"\", Selection_Hide2!R99)","v":""},{"$f":"IF(OR(Selection_Hide2!S99=0, Selection_Hide2!S99=\"\"), \"\", Selection_Hide2!S99)","v":""},{"$f":"IF(OR(Selection_Hide2!T99=0, Selection_Hide2!T99=\"\"), \"\", Selection_Hide2!T99)","v":""},{"$f":"IF(OR(Selection_Hide2!U99=0, Selection_Hide2!U99=\"\"), \"\", Selection_Hide2!U99)","v":""},{"$f":"IF(OR(Selection_Hide2!V99=0, Selection_Hide2!V99=\"\"), \"\", Selection_Hide2!V99)","v":""},{"$f":"IF(OR(Selection_Hide2!W99=0, Selection_Hide2!W99=\"\"), \"\", Selection_Hide2!W99)","v":""},{"$f":"IF(OR(Selection_Hide2!X99=0, Selection_Hide2!X99=\"\"), \"\", Selection_Hide2!X99)","v":""},{"$f":"IF(OR(Selection_Hide2!Y99=0, Selection_Hide2!Y99=\"\"), \"\", Selection_Hide2!Y99)","v":""},{"$f":"IF(OR(Selection_Hide2!Z99=0, Selection_Hide2!Z99=\"\"), \"\", Selection_Hide2!Z99)","v":""},{"$f":"IF(OR(Selection_Hide2!AA99=0, Selection_Hide2!AA99=\"\"), \"\", Selection_Hide2!AA99)","v":""},{"$f":"IF(OR(Selection_Hide2!AB99=0, Selection_Hide2!AB99=\"\"), \"\", Selection_Hide2!AB99)","v":""}]
[{"$f":"IF(OR(Selection_Hide2!A100=0, Selection_Hide2!A100=\"\"), \"\", Selection_Hide2!A100)","v":""},{"$f":"IF(OR(Selection_Hide2!B100=0, Selection_Hide2!B100=\"\"), \"\", Selection_Hide2!B100)","v":""},{"$f":"IF(OR(Selection_Hide2!C100=0, Selection_Hide2!C100=\"\"), \"\", Selection_Hide2!C100)","v":""},{"$f":"IF(OR(Selection_Hide2!D100=0, Selection_Hide2!D100=\"\"), \"\", Selection_Hide2!D100)","v":""},{"$f":"IF(OR(Selection_Hide2!E100=0, Selection_Hide2!E100=\"\"), \"\", Selection_Hide2!E100)","v":""},{"$f":"IF(OR(Selection_Hide2!F100=0, Selection_Hide2!F100=\"\"), \"\", Selection_Hide2!F100)","v":""},{"$f":"IF(OR(Selection_Hide2!G100=0, Selection_Hide2!G100=\"\"), \"\", Selection_Hide2!G100)","v":""},{"$f":"IF(OR(Selection_Hide2!H100=0, Selection_Hide2!H100=\"\"), \"\", Selection_Hide2!H100)","v":""},{"$f":"IF(OR(Selection_Hide2!I100=0, Selection_Hide2!I100=\"\"), \"\", Selection_Hide2!I100)","v":""},{"$f":"IF(OR(Selection_Hide2!J100=0, Selection_Hide2!J100=\"\"), \"\", Selection_Hide2!J100)","v":""},{"$f":"IF(OR(Selection_Hide2!K100=0, Selection_Hide2!K100=\"\"), \"\", Selection_Hide2!K100)","v":""},{"$f":"IF(OR(Selection_Hide2!L100=0, Selection_Hide2!L100=\"\"), \"\", Selection_Hide2!L100)","v":""},{"$f":"IF(OR(Selection_Hide2!M100=0, Selection_Hide2!M100=\"\"), \"\", Selection_Hide2!M100)","v":""},{"$f":"IF(OR(Selection_Hide2!N100=0, Selection_Hide2!N100=\"\"), \"\", Selection_Hide2!N100)","v":""},{"$f":"IF(OR(Selection_Hide2!O100=0, Selection_Hide2!O100=\"\"), \"\", Selection_Hide2!O100)","v":""},{"$f":"IF(OR(Selection_Hide2!P100=0, Selection_Hide2!P100=\"\"), \"\", Selection_Hide2!P100)","v":""},{"$f":"IF(OR(Selection_Hide2!Q100=0, Selection_Hide2!Q100=\"\"), \"\", Selection_Hide2!Q100)","v":""},{"$f":"IF(OR(Selection_Hide2!R100=0, Selection_Hide2!R100=\"\"), \"\", Selection_Hide2!R100)","v":""},{"$f":"IF(OR(Selection_Hide2!S100=0, Selection_Hide2!S100=\"\"), \"\", Selection_Hide2!S100)","v":""},{"$f":"IF(OR(Selection_Hide2!T100=0, Selection_Hide2!T100=\"\"), \"\", Selection_Hide2!T100)","v":""},{"$f":"IF(OR(Selection_Hide2!U100=0, Selection_Hide2!U100=\"\"), \"\", Selection_Hide2!U100)","v":""},{"$f":"IF(OR(Selection_Hide2!V100=0, Selection_Hide2!V100=\"\"), \"\", Selection_Hide2!V100)","v":""},{"$f":"IF(OR(Selection_Hide2!W100=0, Selection_Hide2!W100=\"\"), \"\", Selection_Hide2!W100)","v":""},{"$f":"IF(OR(Selection_Hide2!X100=0, Selection_Hide2!X100=\"\"), \"\", Selection_Hide2!X100)","v":""},{"$f":"IF(OR(Selection_Hide2!Y100=0, Selection_Hide2!Y100=\"\"), \"\", Selection_Hide2!Y100)","v":""},{"$f":"IF(OR(Selection_Hide2!Z100=0, Selection_Hide2!Z100=\"\"), \"\", Selection_Hide2!Z100)","v":""},{"$f":"IF(OR(Selection_Hide2!AA100=0, Selection_Hide2!AA100=\"\"), \"\", Selection_Hide2!AA100)","v":""},{"$f":"IF(OR(Selection_Hide2!AB100=0, Selection_Hide2!AB100=\"\"), \"\", Selection_Hide2!AB100)","v":""}]
[{"$f":"IF(OR(Selection_Hide2!A101=0, Selection_Hide2!A101=\"\"), \"\", Selection_Hide2!A101)","v":""},{"$f":"IF(OR(Selection_Hide2!B101=0, Selection_Hide2!B101=\"\"), \"\", Selection_Hide2!B101)","v":""},{"$f":"IF(OR(Selection_Hide2!C101=0, Selection_Hide2!C101=\"\"), \"\", Selection_Hide2!C101)","v":""},{"$f":"IF(OR(Selection_Hide2!D101=0, Selection_Hide2!D101=\"\"), \"\", Selection_Hide2!D101)","v":""},{"$f":"IF(OR(Selection_Hide2!E101=0, Selection_Hide2!E101=\"\"), \"\", Selection_Hide2!E101)","v":""},{"$f":"IF(OR(Selection_Hide2!F101=0, Selection_Hide2!F101=\"\"), \"\", Selection_Hide2!F101)","v":""},{"$f":"IF(OR(Selection_Hide2!G101=0, Selection_Hide2!G101=\"\"), \"\", Selection_Hide2!G101)","v":""},{"$f":"IF(OR(Selection_Hide2!H101=0, Selection_Hide2!H101=\"\"), \"\", Selection_Hide2!H101)","v":""},{"$f":"IF(OR(Selection_Hide2!I101=0, Selection_Hide2!I101=\"\"), \"\", Selection_Hide2!I101)","v":""},{"$f":"IF(OR(Selection_Hide2!J101=0, Selection_Hide2!J101=\"\"), \"\", Selection_Hide2!J101)","v":""},{"$f":"IF(OR(Selection_Hide2!K101=0, Selection_Hide2!K101=\"\"), \"\", Selection_Hide2!K101)","v":""},{"$f":"IF(OR(Selection_Hide2!L101=0, Selection_Hide2!L101=\"\"), \"\", Selection_Hide2!L101)","v":""},{"$f":"IF(OR(Selection_Hide2!M101=0, Selection_Hide2!M101=\"\"), \"\", Selection_Hide2!M101)","v":""},{"$f":"IF(OR(Selection_Hide2!N101=0, Selection_Hide2!N101=\"\"), \"\", Selection_Hide2!N101)","v":""},{"$f":"IF(OR(Selection_Hide2!O101=0, Selection_Hide2!O101=\"\"), \"\", Selection_Hide2!O101)","v":""},{"$f":"IF(OR(Selection_Hide2!P101=0, Selection_Hide2!P101=\"\"), \"\", Selection_Hide2!P101)","v":""},{"$f":"IF(OR(Selection_Hide2!Q101=0, Selection_Hide2!Q101=\"\"), \"\", Selection_Hide2!Q101)","v":""},{"$f":"IF(OR(Selection_Hide2!R101=0, Selection_Hide2!R101=\"\"), \"\", Selection_Hide2!R101)","v":""},{"$f":"IF(OR(Selection_Hide2!S101=0, Selection_Hide2!S101=\"\"), \"\", Selection_Hide2!S101)","v":""},{"$f":"IF(OR(Selection_Hide2!T101=0, Selection_Hide2!T101=\"\"), \"\", Selection_Hide2!T101)","v":""},{"$f":"IF(OR(Selection_Hide2!U101=0, Selection_Hide2!U101=\"\"), \"\", Selection_Hide2!U101)","v":""},{"$f":"IF(OR(Selection_Hide2!V101=0, Selection_Hide2!V101=\"\"), \"\", Selection_Hide2!V101)","v":""},{"$f":"IF(OR(Selection_Hide2!W101=0, Selection_Hide2!W101=\"\"), \"\", Selection_Hide2!W101)","v":""},{"$f":"IF(OR(Selection_Hide2!X101=0, Selection_Hide2!X101=\"\"), \"\", Selection_Hide2!X101)","v":""},{"$f":"IF(OR(Selection_Hide2!Y101=0, Selection_Hide2!Y101=\"\"), \"\", Selection_Hide2!Y101)","v":""},{"$f":"IF(OR(Selection_Hide2!Z101=0, Selection_Hide2!Z101=\"\"), \"\", Selection_Hide2!Z101)","v":""},{"$f":"IF(OR(Selection_Hide2!AA101=0, Selection_Hide2!AA101=\"\"), \"\", Selection_Hide2!AA101)","v":""},{"$f":"IF(OR(Selection_Hide2!AB101=0, Selection_Hide2!AB101=\"\"), \"\", Selection_Hide2!AB101)","v":""}]
[{"$f":"IF(OR(Selection_Hide2!A102=0, Selection_Hide2!A102=\"\"), \"\", Selection_Hide2!A102)","v":""},{"$f":"IF(OR(Selection_Hide2!B102=0, Selection_Hide2!B102=\"\"), \"\", Selection_Hide2!B102)","v":""},{"$f":"IF(OR(Selection_Hide2!C102=0, Selection_Hide2!C102=\"\"), \"\", Selection_Hide2!C102)","v":""},{"$f":"IF(OR(Selection_Hide2!D102=0, Selection_Hide2!D102=\"\"), \"\", Selection_Hide2!D102)","v":""},{"$f":"IF(OR(Selection_Hide2!E102=0, Selection_Hide2!E102=\"\"), \"\", Selection_Hide2!E102)","v":""},{"$f":"IF(OR(Selection_Hide2!F102=0, Selection_Hide2!F102=\"\"), \"\", Selection_Hide2!F102)","v":""},{"$f":"IF(OR(Selection_Hide2!G102=0, Selection_Hide2!G102=\"\"), \"\", Selection_Hide2!G102)","v":""},{"$f":"IF(OR(Selection_Hide2!H102=0, Selection_Hide2!H102=\"\"), \"\", Selection_Hide2!H102)","v":""},{"$f":"IF(OR(Selection_Hide2!I102=0, Selection_Hide2!I102=\"\"), \"\", Selection_Hide2!I102)","v":""},{"$f":"IF(OR(Selection_Hide2!J102=0, Selection_Hide2!J102=\"\"), \"\", Selection_Hide2!J102)","v":""},{"$f":"IF(OR(Selection_Hide2!K102=0, Selection_Hide2!K102=\"\"), \"\", Selection_Hide2!K102)","v":""},{"$f":"IF(OR(Selection_Hide2!L102=0, Selection_Hide2!L102=\"\"), \"\", Selection_Hide2!L102)","v":""},{"$f":"IF(OR(Selection_Hide2!M102=0, Selection_Hide2!M102=\"\"), \"\", Selection_Hide2!M102)","v":""},{"$f":"IF(OR(Selection_Hide2!N102=0, Selection_Hide2!N102=\"\"), \"\", Selection_Hide2!N102)","v":""},{"$f":"IF(OR(Selection_Hide2!O102=0, Selection_Hide2!O102=\"\"), \"\", Selection_Hide2!O102)","v":""},{"$f":"IF(OR(Selection_Hide2!P102=0, Selection_Hide2!P102=\"\"), \"\", Selection_Hide2!P102)","v":""},{"$f":"IF(OR(Selection_Hide2!Q102=0, Selection_Hide2!Q102=\"\"), \"\", Selection_Hide2!Q102)","v":""},{"$f":"IF(OR(Selection_Hide2!R102=0, Selection_Hide2!R102=\"\"), \"\", Selection_Hide2!R102)","v":""},{"$f":"IF(OR(Selection_Hide2!S102=0, Selection_Hide2!S102=\"\"), \"\", Selection_Hide2!S102)","v":""},{"$f":"IF(OR(Selection_Hide2!T102=0, Selection_Hide2!T102=\"\"), \"\", Selection_Hide2!T102)","v":""},{"$f":"IF(OR(Selection_Hide2!U102=0, Selection_Hide2!U102=\"\"), \"\", Selection_Hide2!U102)","v":""},{"$f":"IF(OR(Selection_Hide2!V102=0, Selection_Hide2!V102=\"\"), \"\", Selection_Hide2!V102)","v":""},{"$f":"IF(OR(Selection_Hide2!W102=0, Selection_Hide2!W102=\"\"), \"\", Selection_Hide2!W102)","v":""},{"$f":"IF(OR(Selection_Hide2!X102=0, Selection_Hide2!X102=\"\"), \"\", Selection_Hide2!X102)","v":""},{"$f":"IF(OR(Selection_Hide2!Y102=0, Selection_Hide2!Y102=\"\"), \"\", Selection_Hide2!Y102)","v":""},{"$f":"IF(OR(Selection_Hide2!Z102=0, Selection_Hide2!Z102=\"\"), \"\", Selection_Hide2!Z102)","v":""},{"$f":"IF(OR(Selection_Hide2!AA102=0, Selection_Hide2!AA102=\"\"), \"\", Selection_Hide2!AA102)","v":""},{"$f":"IF(OR(Selection_Hide2!AB102=0, Selection_Hide2!AB102=\"\"), \"\", Selection_Hide2!AB102)","v":""}]
[{"$f":"IF(OR(Selection_Hide2!A103=0, Selection_Hide2!A103=\"\"), \"\", Selection_Hide2!A103)","v":""},{"$f":"IF(OR(Selection_Hide2!B103=0, Selection_Hide2!B103=\"\"), \"\", Selection_Hide2!B103)","v":""},{"$f":"IF(OR(Selection_Hide2!C103=0, Selection_Hide2!C103=\"\"), \"\", Selection_Hide2!C103)","v":""},{"$f":"IF(OR(Selection_Hide2!D103=0, Selection_Hide2!D103=\"\"), \"\", Selection_Hide2!D103)","v":""},{"$f":"IF(OR(Selection_Hide2!E103=0, Selection_Hide2!E103=\"\"), \"\", Selection_Hide2!E103)","v":""},{"$f":"IF(OR(Selection_Hide2!F103=0, Selection_Hide2!F103=\"\"), \"\", Selection_Hide2!F103)","v":""},{"$f":"IF(OR(Selection_Hide2!G103=0, Selection_Hide2!G103=\"\"), \"\", Selection_Hide2!G103)","v":""},{"$f":"IF(OR(Selection_Hide2!H103=0, Selection_Hide2!H103=\"\"), \"\", Selection_Hide2!H103)","v":""},{"$f":"IF(OR(Selection_Hide2!I103=0, Selection_Hide2!I103=\"\"), \"\", Selection_Hide2!I103)","v":""},{"$f":"IF(OR(Selection_Hide2!J103=0, Selection_Hide2!J103=\"\"), \"\", Selection_Hide2!J103)","v":""},{"$f":"IF(OR(Selection_Hide2!K103=0, Selection_Hide2!K103=\"\"), \"\", Selection_Hide2!K103)","v":""},{"$f":"IF(OR(Selection_Hide2!L103=0, Selection_Hide2!L103=\"\"), \"\", Selection_Hide2!L103)","v":""},{"$f":"IF(OR(Selection_Hide2!M103=0, Selection_Hide2!M103=\"\"), \"\", Selection_Hide2!M103)","v":""},{"$f":"IF(OR(Selection_Hide2!N103=0, Selection_Hide2!N103=\"\"), \"\", Selection_Hide2!N103)","v":""},{"$f":"IF(OR(Selection_Hide2!O103=0, Selection_Hide2!O103=\"\"), \"\", Selection_Hide2!O103)","v":""},{"$f":"IF(OR(Selection_Hide2!P103=0, Selection_Hide2!P103=\"\"), \"\", Selection_Hide2!P103)","v":""},{"$f":"IF(OR(Selection_Hide2!Q103=0, Selection_Hide2!Q103=\"\"), \"\", Selection_Hide2!Q103)","v":""},{"$f":"IF(OR(Selection_Hide2!R103=0, Selection_Hide2!R103=\"\"), \"\", Selection_Hide2!R103)","v":""},{"$f":"IF(OR(Selection_Hide2!S103=0, Selection_Hide2!S103=\"\"), \"\", Selection_Hide2!S103)","v":""},{"$f":"IF(OR(Selection_Hide2!T103=0, Selection_Hide2!T103=\"\"), \"\", Selection_Hide2!T103)","v":""},{"$f":"IF(OR(Selection_Hide2!U103=0, Selection_Hide2!U103=\"\"), \"\", Selection_Hide2!U103)","v":""},{"$f":"IF(OR(Selection_Hide2!V103=0, Selection_Hide2!V103=\"\"), \"\", Selection_Hide2!V103)","v":""},{"$f":"IF(OR(Selection_Hide2!W103=0, Selection_Hide2!W103=\"\"), \"\", Selection_Hide2!W103)","v":""},{"$f":"IF(OR(Selection_Hide2!X103=0, Selection_Hide2!X103=\"\"), \"\", Selection_Hide2!X103)","v":""},{"$f":"IF(OR(Selection_Hide2!Y103=0, Selection_Hide2!Y103=\"\"), \"\", Selection_Hide2!Y103)","v":""},{"$f":"IF(OR(Selection_Hide2!Z103=0, Selection_Hide2!Z103=\"\"), \"\", Selection_Hide2!Z103)","v":""},{"$f":"IF(OR(Selection_Hide2!AA103=0, Selection_Hide2!AA103=\"\"), \"\", Selection_Hide2!AA103)","v":""},{"$f":"IF(OR(Selection_Hide2!AB103=0, Selection_Hide2!AB103=\"\"), \"\", Selection_Hide2!AB103)","v":""}]
[{"$f":"IF(OR(Selection_Hide2!A104=0, Selection_Hide2!A104=\"\"), \"\", Selection_Hide2!A104)","v":""},{"$f":"IF(OR(Selection_Hide2!B104=0, Selection_Hide2!B104=\"\"), \"\", Selection_Hide2!B104)","v":""},{"$f":"IF(OR(Selection_Hide2!C104=0, Selection_Hide2!C104=\"\"), \"\", Selection_Hide2!C104)","v":""},{"$f":"IF(OR(Selection_Hide2!D104=0, Selection_Hide2!D104=\"\"), \"\", Selection_Hide2!D104)","v":""},{"$f":"IF(OR(Selection_Hide2!E104=0, Selection_Hide2!E104=\"\"), \"\", Selection_Hide2!E104)","v":""},{"$f":"IF(OR(Selection_Hide2!F104=0, Selection_Hide2!F104=\"\"), \"\", Selection_Hide2!F104)","v":""},{"$f":"IF(OR(Selection_Hide2!G104=0, Selection_Hide2!G104=\"\"), \"\", Selection_Hide2!G104)","v":""},{"$f":"IF(OR(Selection_Hide2!H104=0, Selection_Hide2!H104=\"\"), \"\", Selection_Hide2!H104)","v":""},{"$f":"IF(OR(Selection_Hide2!I104=0, Selection_Hide2!I104=\"\"), \"\", Selection_Hide2!I104)","v":""},{"$f":"IF(OR(Selection_Hide2!J104=0, Selection_Hide2!J104=\"\"), \"\", Selection_Hide2!J104)","v":""},{"$f":"IF(OR(Selection_Hide2!K104=0, Selection_Hide2!K104=\"\"), \"\", Selection_Hide2!K104)","v":""},{"$f":"IF(OR(Selection_Hide2!L104=0, Selection_Hide2!L104=\"\"), \"\", Selection_Hide2!L104)","v":""},{"$f":"IF(OR(Selection_Hide2!M104=0, Selection_Hide2!M104=\"\"), \"\", Selection_Hide2!M104)","v":""},{"$f":"IF(OR(Selection_Hide2!N104=0, Selection_Hide2!N104=\"\"), \"\", Selection_Hide2!N104)","v":""},{"$f":"IF(OR(Selection_Hide2!O104=0, Selection_Hide2!O104=\"\"), \"\", Selection_Hide2!O104)","v":""},{"$f":"IF(OR(Selection_Hide2!P104=0, Selection_Hide2!P104=\"\"), \"\", Selection_Hide2!P104)","v":""},{"$f":"IF(OR(Selection_Hide2!Q104=0, Selection_Hide2!Q104=\"\"), \"\", Selection_Hide2!Q104)","v":""},{"$f":"IF(OR(Selection_Hide2!R104=0, Selection_Hide2!R104=\"\"), \"\", Selection_Hide2!R104)","v":""},{"$f":"IF(OR(Selection_Hide2!S104=0, Selection_Hide2!S104=\"\"), \"\", Selection_Hide2!S104)","v":""},{"$f":"IF(OR(Selection_Hide2!T104=0, Selection_Hide2!T104=\"\"), \"\", Selection_Hide2!T104)","v":""},{"$f":"IF(OR(Selection_Hide2!U104=0, Selection_Hide2!U104=\"\"), \"\", Selection_Hide2!U104)","v":""},{"$f":"IF(OR(Selection_Hide2!V104=0, Selection_Hide2!V104=\"\"), \"\", Selection_Hide2!V104)","v":""},{"$f":"IF(OR(Selection_Hide2!W104=0, Selection_Hide2!W104=\"\"), \"\", Selection_Hide2!W104)","v":""},{"$f":"IF(OR(Selection_Hide2!X104=0, Selection_Hide2!X104=\"\"), \"\", Selection_Hide2!X104)","v":""},{"$f":"IF(OR(Selection_Hide2!Y104=0, Selection_Hide2!Y104=\"\"), \"\", Selection_Hide2!Y104)","v":""},{"$f":"IF(OR(Selection_Hide2!Z104=0, Selection_Hide2!Z104=\"\"), \"\", Selection_Hide2!Z104)","v":""},{"$f":"IF(OR(Selection_Hide2!AA104=0, Selection_Hide2!AA104=\"\"), \"\", Selection_Hide2!AA104)","v":""},{"$f":"IF(OR(Selection_Hide2!AB104=0, Selection_Hide2!AB104=\"\"), \"\", Selection_Hide2!AB104)","v":""}]
[{"$f":"IF(OR(Selection_Hide2!A105=0, Selection_Hide2!A105=\"\"), \"\", Selection_Hide2!A105)","v":""},{"$f":"IF(OR(Selection_Hide2!B105=0, Selection_Hide2!B105=\"\"), \"\", Selection_Hide2!B105)","v":""},{"$f":"IF(OR(Selection_Hide2!C105=0, Selection_Hide2!C105=\"\"), \"\", Selection_Hide2!C105)","v":""},{"$f":"IF(OR(Selection_Hide2!D105=0, Selection_Hide2!D105=\"\"), \"\", Selection_Hide2!D105)","v":""},{"$f":"IF(OR(Selection_Hide2!E105=0, Selection_Hide2!E105=\"\"), \"\", Selection_Hide2!E105)","v":""},{"$f":"IF(OR(Selection_Hide2!F105=0, Selection_Hide2!F105=\"\"), \"\", Selection_Hide2!F105)","v":""},{"$f":"IF(OR(Selection_Hide2!G105=0, Selection_Hide2!G105=\"\"), \"\", Selection_Hide2!G105)","v":""},{"$f":"IF(OR(Selection_Hide2!H105=0, Selection_Hide2!H105=\"\"), \"\", Selection_Hide2!H105)","v":""},{"$f":"IF(OR(Selection_Hide2!I105=0, Selection_Hide2!I105=\"\"), \"\", Selection_Hide2!I105)","v":""},{"$f":"IF(OR(Selection_Hide2!J105=0, Selection_Hide2!J105=\"\"), \"\", Selection_Hide2!J105)","v":""},{"$f":"IF(OR(Selection_Hide2!K105=0, Selection_Hide2!K105=\"\"), \"\", Selection_Hide2!K105)","v":""},{"$f":"IF(OR(Selection_Hide2!L105=0, Selection_Hide2!L105=\"\"), \"\", Selection_Hide2!L105)","v":""},{"$f":"IF(OR(Selection_Hide2!M105=0, Selection_Hide2!M105=\"\"), \"\", Selection_Hide2!M105)","v":""},{"$f":"IF(OR(Selection_Hide2!N105=0, Selection_Hide2!N105=\"\"), \"\", Selection_Hide2!N105)","v":""},{"$f":"IF(OR(Selection_Hide2!O105=0, Selection_Hide2!O105=\"\"), \"\", Selection_Hide2!O105)","v":""},{"$f":"IF(OR(Selection_Hide2!P105=0, Selection_Hide2!P105=\"\"), \"\", Selection_Hide2!P105)","v":""},{"$f":"IF(OR(Selection_Hide2!Q105=0, Selection_Hide2!Q105=\"\"), \"\", Selection_Hide2!Q105)","v":""},{"$f":"IF(OR(Selection_Hide2!R105=0, Selection_Hide2!R105=\"\"), \"\", Selection_Hide2!R105)","v":""},{"$f":"IF(OR(Selection_Hide2!S105=0, Selection_Hide2!S105=\"\"), \"\", Selection_Hide2!S105)","v":""},{"$f":"IF(OR(Selection_Hide2!T105=0, Selection_Hide2!T105=\"\"), \"\", Selection_Hide2!T105)","v":""},{"$f":"IF(OR(Selection_Hide2!U105=0, Selection_Hide2!U105=\"\"), \"\", Selection_Hide2!U105)","v":""},{"$f":"IF(OR(Selection_Hide2!V105=0, Selection_Hide2!V105=\"\"), \"\", Selection_Hide2!V105)","v":""},{"$f":"IF(OR(Selection_Hide2!W105=0, Selection_Hide2!W105=\"\"), \"\", Selection_Hide2!W105)","v":""},{"$f":"IF(OR(Selection_Hide2!X105=0, Selection_Hide2!X105=\"\"), \"\", Selection_Hide2!X105)","v":""},{"$f":"IF(OR(Selection_Hide2!Y105=0, Selection_Hide2!Y105=\"\"), \"\", Selection_Hide2!Y105)","v":""},{"$f":"IF(OR(Selection_Hide2!Z105=0, Selection_Hide2!Z105=\"\"), \"\", Selection_Hide2!Z105)","v":""},{"$f":"IF(OR(Selection_Hide2!AA105=0, Selection_Hide2!AA105=\"\"), \"\", Selection_Hide2!AA105)","v":""},{"$f":"IF(OR(Selection_Hide2!AB105=0, Selection_Hide2!AB105=\"\"), \"\", Selection_Hide2!AB105)","v":""}]
[{"$f":"IF(OR(Selection_Hide2!A106=0, Selection_Hide2!A106=\"\"), \"\", Selection_Hide2!A106)","v":""},{"$f":"IF(OR(Selection_Hide2!B106=0, Selection_Hide2!B106=\"\"), \"\", Selection_Hide2!B106)","v":""},{"$f":"IF(OR(Selection_Hide2!C106=0, Selection_Hide2!C106=\"\"), \"\", Selection_Hide2!C106)","v":""},{"$f":"IF(OR(Selection_Hide2!D106=0, Selection_Hide2!D106=\"\"), \"\", Selection_Hide2!D106)","v":""},{"$f":"IF(OR(Selection_Hide2!E106=0, Selection_Hide2!E106=\"\"), \"\", Selection_Hide2!E106)","v":""},{"$f":"IF(OR(Selection_Hide2!F106=0, Selection_Hide2!F106=\"\"), \"\", Selection_Hide2!F106)","v":""},{"$f":"IF(OR(Selection_Hide2!G106=0, Selection_Hide2!G106=\"\"), \"\", Selection_Hide2!G106)","v":""},{"$f":"IF(OR(Selection_Hide2!H106=0, Selection_Hide2!H106=\"\"), \"\", Selection_Hide2!H106)","v":""},{"$f":"IF(OR(Selection_Hide2!I106=0, Selection_Hide2!I106=\"\"), \"\", Selection_Hide2!I106)","v":""},{"$f":"IF(OR(Selection_Hide2!J106=0, Selection_Hide2!J106=\"\"), \"\", Selection_Hide2!J106)","v":""},{"$f":"IF(OR(Selection_Hide2!K106=0, Selection_Hide2!K106=\"\"), \"\", Selection_Hide2!K106)","v":""},{"$f":"IF(OR(Selection_Hide2!L106=0, Selection_Hide2!L106=\"\"), \"\", Selection_Hide2!L106)","v":""},{"$f":"IF(OR(Selection_Hide2!M106=0, Selection_Hide2!M106=\"\"), \"\", Selection_Hide2!M106)","v":""},{"$f":"IF(OR(Selection_Hide2!N106=0, Selection_Hide2!N106=\"\"), \"\", Selection_Hide2!N106)","v":""},{"$f":"IF(OR(Selection_Hide2!O106=0, Selection_Hide2!O106=\"\"), \"\", Selection_Hide2!O106)","v":""},{"$f":"IF(OR(Selection_Hide2!P106=0, Selection_Hide2!P106=\"\"), \"\", Selection_Hide2!P106)","v":""},{"$f":"IF(OR(Selection_Hide2!Q106=0, Selection_Hide2!Q106=\"\"), \"\", Selection_Hide2!Q106)","v":""},{"$f":"IF(OR(Selection_Hide2!R106=0, Selection_Hide2!R106=\"\"), \"\", Selection_Hide2!R106)","v":""},{"$f":"IF(OR(Selection_Hide2!S106=0, Selection_Hide2!S106=\"\"), \"\", Selection_Hide2!S106)","v":""},{"$f":"IF(OR(Selection_Hide2!T106=0, Selection_Hide2!T106=\"\"), \"\", Selection_Hide2!T106)","v":""},{"$f":"IF(OR(Selection_Hide2!U106=0, Selection_Hide2!U106=\"\"), \"\", Selection_Hide2!U106)","v":""},{"$f":"IF(OR(Selection_Hide2!V106=0, Selection_Hide2!V106=\"\"), \"\", Selection_Hide2!V106)","v":""},{"$f":"IF(OR(Selection_Hide2!W106=0, Selection_Hide2!W106=\"\"), \"\", Selection_Hide2!W106)","v":""},{"$f":"IF(OR(Selection_Hide2!X106=0, Selection_Hide2!X106=\"\"), \"\", Selection_Hide2!X106)","v":""},{"$f":"IF(OR(Selection_Hide2!Y106=0, Selection_Hide2!Y106=\"\"), \"\", Selection_Hide2!Y106)","v":""},{"$f":"IF(OR(Selection_Hide2!Z106=0, Selection_Hide2!Z106=\"\"), \"\", Selection_Hide2!Z106)","v":""},{"$f":"IF(OR(Selection_Hide2!AA106=0, Selection_Hide2!AA106=\"\"), \"\", Selection_Hide2!AA106)","v":""},{"$f":"IF(OR(Selection_Hide2!AB106=0, Selection_Hide2!AB106=\"\"), \"\", Selection_Hide2!AB106)","v":""}]
[{"$f":"IF(OR(Selection_Hide2!A107=0, Selection_Hide2!A107=\"\"), \"\", Selection_Hide2!A107)","v":""},{"$f":"IF(OR(Selection_Hide2!B107=0, Selection_Hide2!B107=\"\"), \"\", Selection_Hide2!B107)","v":""},{"$f":"IF(OR(Selection_Hide2!C107=0, Selection_Hide2!C107=\"\"), \"\", Selection_Hide2!C107)","v":""},{"$f":"IF(OR(Selection_Hide2!D107=0, Selection_Hide2!D107=\"\"), \"\", Selection_Hide2!D107)","v":""},{"$f":"IF(OR(Selection_Hide2!E107=0, Selection_Hide2!E107=\"\"), \"\", Selection_Hide2!E107)","v":""},{"$f":"IF(OR(Selection_Hide2!F107=0, Selection_Hide2!F107=\"\"), \"\", Selection_Hide2!F107)","v":""},{"$f":"IF(OR(Selection_Hide2!G107=0, Selection_Hide2!G107=\"\"), \"\", Selection_Hide2!G107)","v":""},{"$f":"IF(OR(Selection_Hide2!H107=0, Selection_Hide2!H107=\"\"), \"\", Selection_Hide2!H107)","v":""},{"$f":"IF(OR(Selection_Hide2!I107=0, Selection_Hide2!I107=\"\"), \"\", Selection_Hide2!I107)","v":""},{"$f":"IF(OR(Selection_Hide2!J107=0, Selection_Hide2!J107=\"\"), \"\", Selection_Hide2!J107)","v":""},{"$f":"IF(OR(Selection_Hide2!K107=0, Selection_Hide2!K107=\"\"), \"\", Selection_Hide2!K107)","v":""},{"$f":"IF(OR(Selection_Hide2!L107=0, Selection_Hide2!L107=\"\"), \"\", Selection_Hide2!L107)","v":""},{"$f":"IF(OR(Selection_Hide2!M107=0, Selection_Hide2!M107=\"\"), \"\", Selection_Hide2!M107)","v":""},{"$f":"IF(OR(Selection_Hide2!N107=0, Selection_Hide2!N107=\"\"), \"\", Selection_Hide2!N107)","v":""},{"$f":"IF(OR(Selection_Hide2!O107=0, Selection_Hide2!O107=\"\"), \"\", Selection_Hide2!O107)","v":""},{"$f":"IF(OR(Selection_Hide2!P107=0, Selection_Hide2!P107=\"\"), \"\", Selection_Hide2!P107)","v":""},{"$f":"IF(OR(Selection_Hide2!Q107=0, Selection_Hide2!Q107=\"\"), \"\", Selection_Hide2!Q107)","v":""},{"$f":"IF(OR(Selection_Hide2!R107=0, Selection_Hide2!R107=\"\"), \"\", Selection_Hide2!R107)","v":""},{"$f":"IF(OR(Selection_Hide2!S107=0, Selection_Hide2!S107=\"\"), \"\", Selection_Hide2!S107)","v":""},{"$f":"IF(OR(Selection_Hide2!T107=0, Selection_Hide2!T107=\"\"), \"\", Selection_Hide2!T107)","v":""},{"$f":"IF(OR(Selection_Hide2!U107=0, Selection_Hide2!U107=\"\"), \"\", Selection_Hide2!U107)","v":""},{"$f":"IF(OR(Selection_Hide2!V107=0, Selection_Hide2!V107=\"\"), \"\", Selection_Hide2!V107)","v":""},{"$f":"IF(OR(Selection_Hide2!W107=0, Selection_Hide2!W107=\"\"), \"\", Selection_Hide2!W107)","v":""},{"$f":"IF(OR(Selection_Hide2!X107=0, Selection_Hide2!X107=\"\"), \"\", Selection_Hide2!X107)","v":""},{"$f":"IF(OR(Selection_Hide2!Y107=0, Selection_Hide2!Y107=\"\"), \"\", Selection_Hide2!Y107)","v":""},{"$f":"IF(OR(Selection_Hide2!Z107=0, Selection_Hide2!Z107=\"\"), \"\", Selection_Hide2!Z107)","v":""},{"$f":"IF(OR(Selection_Hide2!AA107=0, Selection_Hide2!AA107=\"\"), \"\", Selection_Hide2!AA107)","v":""},{"$f":"IF(OR(Selection_Hide2!AB107=0, Selection_Hide2!AB107=\"\"), \"\", Selection_Hide2!AB107)","v":""}]
[{"$f":"IF(OR(Selection_Hide2!A108=0, Selection_Hide2!A108=\"\"), \"\", Selection_Hide2!A108)","v":""},{"$f":"IF(OR(Selection_Hide2!B108=0, Selection_Hide2!B108=\"\"), \"\", Selection_Hide2!B108)","v":""},{"$f":"IF(OR(Selection_Hide2!C108=0, Selection_Hide2!C108=\"\"), \"\", Selection_Hide2!C108)","v":""},{"$f":"IF(OR(Selection_Hide2!D108=0, Selection_Hide2!D108=\"\"), \"\", Selection_Hide2!D108)","v":""},{"$f":"IF(OR(Selection_Hide2!E108=0, Selection_Hide2!E108=\"\"), \"\", Selection_Hide2!E108)","v":""},{"$f":"IF(OR(Selection_Hide2!F108=0, Selection_Hide2!F108=\"\"), \"\", Selection_Hide2!F108)","v":""},{"$f":"IF(OR(Selection_Hide2!G108=0, Selection_Hide2!G108=\"\"), \"\", Selection_Hide2!G108)","v":""},{"$f":"IF(OR(Selection_Hide2!H108=0, Selection_Hide2!H108=\"\"), \"\", Selection_Hide2!H108)","v":""},{"$f":"IF(OR(Selection_Hide2!I108=0, Selection_Hide2!I108=\"\"), \"\", Selection_Hide2!I108)","v":""},{"$f":"IF(OR(Selection_Hide2!J108=0, Selection_Hide2!J108=\"\"), \"\", Selection_Hide2!J108)","v":""},{"$f":"IF(OR(Selection_Hide2!K108=0, Selection_Hide2!K108=\"\"), \"\", Selection_Hide2!K108)","v":""},{"$f":"IF(OR(Selection_Hide2!L108=0, Selection_Hide2!L108=\"\"), \"\", Selection_Hide2!L108)","v":""},{"$f":"IF(OR(Selection_Hide2!M108=0, Selection_Hide2!M108=\"\"), \"\", Selection_Hide2!M108)","v":""},{"$f":"IF(OR(Selection_Hide2!N108=0, Selection_Hide2!N108=\"\"), \"\", Selection_Hide2!N108)","v":""},{"$f":"IF(OR(Selection_Hide2!O108=0, Selection_Hide2!O108=\"\"), \"\", Selection_Hide2!O108)","v":""},{"$f":"IF(OR(Selection_Hide2!P108=0, Selection_Hide2!P108=\"\"), \"\", Selection_Hide2!P108)","v":""},{"$f":"IF(OR(Selection_Hide2!Q108=0, Selection_Hide2!Q108=\"\"), \"\", Selection_Hide2!Q108)","v":""},{"$f":"IF(OR(Selection_Hide2!R108=0, Selection_Hide2!R108=\"\"), \"\", Selection_Hide2!R108)","v":""},{"$f":"IF(OR(Selection_Hide2!S108=0, Selection_Hide2!S108=\"\"), \"\", Selection_Hide2!S108)","v":""},{"$f":"IF(OR(Selection_Hide2!T108=0, Selection_Hide2!T108=\"\"), \"\", Selection_Hide2!T108)","v":""},{"$f":"IF(OR(Selection_Hide2!U108=0, Selection_Hide2!U108=\"\"), \"\", Selection_Hide2!U108)","v":""},{"$f":"IF(OR(Selection_Hide2!V108=0, Selection_Hide2!V108=\"\"), \"\", Selection_Hide2!V108)","v":""},{"$f":"IF(OR(Selection_Hide2!W108=0, Selection_Hide2!W108=\"\"), \"\", Selection_Hide2!W108)","v":""},{"$f":"IF(OR(Selection_Hide2!X108=0, Selection_Hide2!X108=\"\"), \"\", Selection_Hide2!X108)","v":""},{"$f":"IF(OR(Selection_Hide2!Y108=0, Selection_Hide2!Y108=\"\"), \"\", Selection_Hide2!Y108)","v":""},{"$f":"IF(OR(Selection_Hide2!Z108=0, Selection_Hide2!Z108=\"\"), \"\", Selection_Hide2!Z108)","v":""},{"$f":"IF(OR(Selection_Hide2!AA108=0, Selection_Hide2!AA108=\"\"), \"\", Selection_Hide2!AA108)","v":""},{"$f":"IF(OR(Selection_Hide2!AB108=0, Selection_Hide2!AB108=\"\"), \"\", Selection_Hide2!AB108)","v":""}]
[{"$f":"IF(OR(Selection_Hide2!A109=0, Selection_Hide2!A109=\"\"), \"\", Selection_Hide2!A109)","v":""},{"$f":"IF(OR(Selection_Hide2!B109=0, Selection_Hide2!B109=\"\"), \"\", Selection_Hide2!B109)","v":""},{"$f":"IF(OR(Selection_Hide2!C109=0, Selection_Hide2!C109=\"\"), \"\", Selection_Hide2!C109)","v":""},{"$f":"IF(OR(Selection_Hide2!D109=0, Selection_Hide2!D109=\"\"), \"\", Selection_Hide2!D109)","v":""},{"$f":"IF(OR(Selection_Hide2!E109=0, Selection_Hide2!E109=\"\"), \"\", Selection_Hide2!E109)","v":""},{"$f":"IF(OR(Selection_Hide2!F109=0, Selection_Hide2!F109=\"\"), \"\", Selection_Hide2!F109)","v":""},{"$f":"IF(OR(Selection_Hide2!G109=0, Selection_Hide2!G109=\"\"), \"\", Selection_Hide2!G109)","v":""},{"$f":"IF(OR(Selection_Hide2!H109=0, Selection_Hide2!H109=\"\"), \"\", Selection_Hide2!H109)","v":""},{"$f":"IF(OR(Selection_Hide2!I109=0, Selection_Hide2!I109=\"\"), \"\", Selection_Hide2!I109)","v":""},{"$f":"IF(OR(Selection_Hide2!J109=0, Selection_Hide2!J109=\"\"), \"\", Selection_Hide2!J109)","v":""},{"$f":"IF(OR(Selection_Hide2!K109=0, Selection_Hide2!K109=\"\"), \"\", Selection_Hide2!K109)","v":""},{"$f":"IF(OR(Selection_Hide2!L109=0, Selection_Hide2!L109=\"\"), \"\", Selection_Hide2!L109)","v":""},{"$f":"IF(OR(Selection_Hide2!M109=0, Selection_Hide2!M109=\"\"), \"\", Selection_Hide2!M109)","v":""},{"$f":"IF(OR(Selection_Hide2!N109=0, Selection_Hide2!N109=\"\"), \"\", Selection_Hide2!N109)","v":""},{"$f":"IF(OR(Selection_Hide2!O109=0, Selection_Hide2!O109=\"\"), \"\", Selection_Hide2!O109)","v":""},{"$f":"IF(OR(Selection_Hide2!P109=0, Selection_Hide2!P109=\"\"), \"\", Selection_Hide2!P109)","v":""},{"$f":"IF(OR(Selection_Hide2!Q109=0, Selection_Hide2!Q109=\"\"), \"\", Selection_Hide2!Q109)","v":""},{"$f":"IF(OR(Selection_Hide2!R109=0, Selection_Hide2!R109=\"\"), \"\", Selection_Hide2!R109)","v":""},{"$f":"IF(OR(Selection_Hide2!S109=0, Selection_Hide2!S109=\"\"), \"\", Selection_Hide2!S109)","v":""},{"$f":"IF(OR(Selection_Hide2!T109=0, Selection_Hide2!T109=\"\"), \"\", Selection_Hide2!T109)","v":""},{"$f":"IF(OR(Selection_Hide2!U109=0, Selection_Hide2!U109=\"\"), \"\", Selection_Hide2!U109)","v":""},{"$f":"IF(OR(Selection_Hide2!V109=0, Selection_Hide2!V109=\"\"), \"\", Selection_Hide2!V109)","v":""},{"$f":"IF(OR(Selection_Hide2!W109=0, Selection_Hide2!W109=\"\"), \"\", Selection_Hide2!W109)","v":""},{"$f":"IF(OR(Selection_Hide2!X109=0, Selection_Hide2!X109=\"\"), \"\", Selection_Hide2!X109)","v":""},{"$f":"IF(OR(Selection_Hide2!Y109=0, Selection_Hide2!Y109=\"\"), \"\", Selection_Hide2!Y109)","v":""},{"$f":"IF(OR(Selection_Hide2!Z109=0, Selection_Hide2!Z109=\"\"), \"\", Selection_Hide2!Z109)","v":""},{"$f":"IF(OR(Selection_Hide2!AA109=0, Selection_Hide2!AA109=\"\"), \"\", Selection_Hide2!AA109)","v":""},{"$f":"IF(OR(Selection_Hide2!AB109=0, Selection_Hide2!AB109=\"\"), \"\", Selection_Hide2!AB109)","v":""}]
[{"$f":"IF(OR(Selection_Hide2!A110=0, Selection_Hide2!A110=\"\"), \"\", Selection_Hide2!A110)","v":""},{"$f":"IF(OR(Selection_Hide2!B110=0, Selection_Hide2!B110=\"\"), \"\", Selection_Hide2!B110)","v":""},{"$f":"IF(OR(Selection_Hide2!C110=0, Selection_Hide2!C110=\"\"), \"\", Selection_Hide2!C110)","v":""},{"$f":"IF(OR(Selection_Hide2!D110=0, Selection_Hide2!D110=\"\"), \"\", Selection_Hide2!D110)","v":""},{"$f":"IF(OR(Selection_Hide2!E110=0, Selection_Hide2!E110=\"\"), \"\", Selection_Hide2!E110)","v":""},{"$f":"IF(OR(Selection_Hide2!F110=0, Selection_Hide2!F110=\"\"), \"\", Selection_Hide2!F110)","v":""},{"$f":"IF(OR(Selection_Hide2!G110=0, Selection_Hide2!G110=\"\"), \"\", Selection_Hide2!G110)","v":""},{"$f":"IF(OR(Selection_Hide2!H110=0, Selection_Hide2!H110=\"\"), \"\", Selection_Hide2!H110)","v":""},{"$f":"IF(OR(Selection_Hide2!I110=0, Selection_Hide2!I110=\"\"), \"\", Selection_Hide2!I110)","v":""},{"$f":"IF(OR(Selection_Hide2!J110=0, Selection_Hide2!J110=\"\"), \"\", Selection_Hide2!J110)","v":""},{"$f":"IF(OR(Selection_Hide2!K110=0, Selection_Hide2!K110=\"\"), \"\", Selection_Hide2!K110)","v":""},{"$f":"IF(OR(Selection_Hide2!L110=0, Selection_Hide2!L110=\"\"), \"\", Selection_Hide2!L110)","v":""},{"$f":"IF(OR(Selection_Hide2!M110=0, Selection_Hide2!M110=\"\"), \"\", Selection_Hide2!M110)","v":""},{"$f":"IF(OR(Selection_Hide2!N110=0, Selection_Hide2!N110=\"\"), \"\", Selection_Hide2!N110)","v":""},{"$f":"IF(OR(Selection_Hide2!O110=0, Selection_Hide2!O110=\"\"), \"\", Selection_Hide2!O110)","v":""},{"$f":"IF(OR(Selection_Hide2!P110=0, Selection_Hide2!P110=\"\"), \"\", Selection_Hide2!P110)","v":""},{"$f":"IF(OR(Selection_Hide2!Q110=0, Selection_Hide2!Q110=\"\"), \"\", Selection_Hide2!Q110)","v":""},{"$f":"IF(OR(Selection_Hide2!R110=0, Selection_Hide2!R110=\"\"), \"\", Selection_Hide2!R110)","v":""},{"$f":"IF(OR(Selection_Hide2!S110=0, Selection_Hide2!S110=\"\"), \"\", Selection_Hide2!S110)","v":""},{"$f":"IF(OR(Selection_Hide2!T110=0, Selection_Hide2!T110=\"\"), \"\", Selection_Hide2!T110)","v":""},{"$f":"IF(OR(Selection_Hide2!U110=0, Selection_Hide2!U110=\"\"), \"\", Selection_Hide2!U110)","v":""},{"$f":"IF(OR(Selection_Hide2!V110=0, Selection_Hide2!V110=\"\"), \"\", Selection_Hide2!V110)","v":""},{"$f":"IF(OR(Selection_Hide2!W110=0, Selection_Hide2!W110=\"\"), \"\", Selection_Hide2!W110)","v":""},{"$f":"IF(OR(Selection_Hide2!X110=0, Selection_Hide2!X110=\"\"), \"\", Selection_Hide2!X110)","v":""},{"$f":"IF(OR(Selection_Hide2!Y110=0, Selection_Hide2!Y110=\"\"), \"\", Selection_Hide2!Y110)","v":""},{"$f":"IF(OR(Selection_Hide2!Z110=0, Selection_Hide2!Z110=\"\"), \"\", Selection_Hide2!Z110)","v":""},{"$f":"IF(OR(Selection_Hide2!AA110=0, Selection_Hide2!AA110=\"\"), \"\", Selection_Hide2!AA110)","v":""},{"$f":"IF(OR(Selection_Hide2!AB110=0, Selection_Hide2!AB110=\"\"), \"\", Selection_Hide2!AB110)","v":""}]
[{"$f":"IF(OR(Selection_Hide2!A111=0, Selection_Hide2!A111=\"\"), \"\", Selection_Hide2!A111)","v":""},{"$f":"IF(OR(Selection_Hide2!B111=0, Selection_Hide2!B111=\"\"), \"\", Selection_Hide2!B111)","v":""},{"$f":"IF(OR(Selection_Hide2!C111=0, Selection_Hide2!C111=\"\"), \"\", Selection_Hide2!C111)","v":""},{"$f":"IF(OR(Selection_Hide2!D111=0, Selection_Hide2!D111=\"\"), \"\", Selection_Hide2!D111)","v":""},{"$f":"IF(OR(Selection_Hide2!E111=0, Selection_Hide2!E111=\"\"), \"\", Selection_Hide2!E111)","v":""},{"$f":"IF(OR(Selection_Hide2!F111=0, Selection_Hide2!F111=\"\"), \"\", Selection_Hide2!F111)","v":""},{"$f":"IF(OR(Selection_Hide2!G111=0, Selection_Hide2!G111=\"\"), \"\", Selection_Hide2!G111)","v":""},{"$f":"IF(OR(Selection_Hide2!H111=0, Selection_Hide2!H111=\"\"), \"\", Selection_Hide2!H111)","v":""},{"$f":"IF(OR(Selection_Hide2!I111=0, Selection_Hide2!I111=\"\"), \"\", Selection_Hide2!I111)","v":""},{"$f":"IF(OR(Selection_Hide2!J111=0, Selection_Hide2!J111=\"\"), \"\", Selection_Hide2!J111)","v":""},{"$f":"IF(OR(Selection_Hide2!K111=0, Selection_Hide2!K111=\"\"), \"\", Selection_Hide2!K111)","v":""},{"$f":"IF(OR(Selection_Hide2!L111=0, Selection_Hide2!L111=\"\"), \"\", Selection_Hide2!L111)","v":""},{"$f":"IF(OR(Selection_Hide2!M111=0, Selection_Hide2!M111=\"\"), \"\", Selection_Hide2!M111)","v":""},{"$f":"IF(OR(Selection_Hide2!N111=0, Selection_Hide2!N111=\"\"), \"\", Selection_Hide2!N111)","v":""},{"$f":"IF(OR(Selection_Hide2!O111=0, Selection_Hide2!O111=\"\"), \"\", Selection_Hide2!O111)","v":""},{"$f":"IF(OR(Selection_Hide2!P111=0, Selection_Hide2!P111=\"\"), \"\", Selection_Hide2!P111)","v":""},{"$f":"IF(OR(Selection_Hide2!Q111=0, Selection_Hide2!Q111=\"\"), \"\", Selection_Hide2!Q111)","v":""},{"$f":"IF(OR(Selection_Hide2!R111=0, Selection_Hide2!R111=\"\"), \"\", Selection_Hide2!R111)","v":""},{"$f":"IF(OR(Selection_Hide2!S111=0, Selection_Hide2!S111=\"\"), \"\", Selection_Hide2!S111)","v":""},{"$f":"IF(OR(Selection_Hide2!T111=0, Selection_Hide2!T111=\"\"), \"\", Selection_Hide2!T111)","v":""},{"$f":"IF(OR(Selection_Hide2!U111=0, Selection_Hide2!U111=\"\"), \"\", Selection_Hide2!U111)","v":""},{"$f":"IF(OR(Selection_Hide2!V111=0, Selection_Hide2!V111=\"\"), \"\", Selection_Hide2!V111)","v":""},{"$f":"IF(OR(Selection_Hide2!W111=0, Selection_Hide2!W111=\"\"), \"\", Selection_Hide2!W111)","v":""},{"$f":"IF(OR(Selection_Hide2!X111=0, Selection_Hide2!X111=\"\"), \"\", Selection_Hide2!X111)","v":""},{"$f":"IF(OR(Selection_Hide2!Y111=0, Selection_Hide2!Y111=\"\"), \"\", Selection_Hide2!Y111)","v":""},{"$f":"IF(OR(Selection_Hide2!Z111=0, Selection_Hide2!Z111=\"\"), \"\", Selection_Hide2!Z111)","v":""},{"$f":"IF(OR(Selection_Hide2!AA111=0, Selection_Hide2!AA111=\"\"), \"\", Selection_Hide2!AA111)","v":""},{"$f":"IF(OR(Selection_Hide2!AB111=0, Selection_Hide2!AB111=\"\"), \"\", Selection_Hide2!AB111)","v":""}]
[{"$f":"IF(OR(Selection_Hide2!A112=0, Selection_Hide2!A112=\"\"), \"\", Selection_Hide2!A112)","v":""},{"$f":"IF(OR(Selection_Hide2!B112=0, Selection_Hide2!B112=\"\"), \"\", Selection_Hide2!B112)","v":""},{"$f":"IF(OR(Selection_Hide2!C112=0, Selection_Hide2!C112=\"\"), \"\", Selection_Hide2!C112)","v":""},{"$f":"IF(OR(Selection_Hide2!D112=0, Selection_Hide2!D112=\"\"), \"\", Selection_Hide2!D112)","v":""},{"$f":"IF(OR(Selection_Hide2!E112=0, Selection_Hide2!E112=\"\"), \"\", Selection_Hide2!E112)","v":""},{"$f":"IF(OR(Selection_Hide2!F112=0, Selection_Hide2!F112=\"\"), \"\", Selection_Hide2!F112)","v":""},{"$f":"IF(OR(Selection_Hide2!G112=0, Selection_Hide2!G112=\"\"), \"\", Selection_Hide2!G112)","v":""},{"$f":"IF(OR(Selection_Hide2!H112=0, Selection_Hide2!H112=\"\"), \"\", Selection_Hide2!H112)","v":""},{"$f":"IF(OR(Selection_Hide2!I112=0, Selection_Hide2!I112=\"\"), \"\", Selection_Hide2!I112)","v":""},{"$f":"IF(OR(Selection_Hide2!J112=0, Selection_Hide2!J112=\"\"), \"\", Selection_Hide2!J112)","v":""},{"$f":"IF(OR(Selection_Hide2!K112=0, Selection_Hide2!K112=\"\"), \"\", Selection_Hide2!K112)","v":""},{"$f":"IF(OR(Selection_Hide2!L112=0, Selection_Hide2!L112=\"\"), \"\", Selection_Hide2!L112)","v":""},{"$f":"IF(OR(Selection_Hide2!M112=0, Selection_Hide2!M112=\"\"), \"\", Selection_Hide2!M112)","v":""},{"$f":"IF(OR(Selection_Hide2!N112=0, Selection_Hide2!N112=\"\"), \"\", Selection_Hide2!N112)","v":""},{"$f":"IF(OR(Selection_Hide2!O112=0, Selection_Hide2!O112=\"\"), \"\", Selection_Hide2!O112)","v":""},{"$f":"IF(OR(Selection_Hide2!P112=0, Selection_Hide2!P112=\"\"), \"\", Selection_Hide2!P112)","v":""},{"$f":"IF(OR(Selection_Hide2!Q112=0, Selection_Hide2!Q112=\"\"), \"\", Selection_Hide2!Q112)","v":""},{"$f":"IF(OR(Selection_Hide2!R112=0, Selection_Hide2!R112=\"\"), \"\", Selection_Hide2!R112)","v":""},{"$f":"IF(OR(Selection_Hide2!S112=0, Selection_Hide2!S112=\"\"), \"\", Selection_Hide2!S112)","v":""},{"$f":"IF(OR(Selection_Hide2!T112=0, Selection_Hide2!T112=\"\"), \"\", Selection_Hide2!T112)","v":""},{"$f":"IF(OR(Selection_Hide2!U112=0, Selection_Hide2!U112=\"\"), \"\", Selection_Hide2!U112)","v":""},{"$f":"IF(OR(Selection_Hide2!V112=0, Selection_Hide2!V112=\"\"), \"\", Selection_Hide2!V112)","v":""},{"$f":"IF(OR(Selection_Hide2!W112=0, Selection_Hide2!W112=\"\"), \"\", Selection_Hide2!W112)","v":""},{"$f":"IF(OR(Selection_Hide2!X112=0, Selection_Hide2!X112=\"\"), \"\", Selection_Hide2!X112)","v":""},{"$f":"IF(OR(Selection_Hide2!Y112=0, Selection_Hide2!Y112=\"\"), \"\", Selection_Hide2!Y112)","v":""},{"$f":"IF(OR(Selection_Hide2!Z112=0, Selection_Hide2!Z112=\"\"), \"\", Selection_Hide2!Z112)","v":""},{"$f":"IF(OR(Selection_Hide2!AA112=0, Selection_Hide2!AA112=\"\"), \"\", Selection_Hide2!AA112)","v":""},{"$f":"IF(OR(Selection_Hide2!AB112=0, Selection_Hide2!AB112=\"\"), \"\", Selection_Hide2!AB112)","v":""}]
[{"$f":"IF(OR(Selection_Hide2!A113=0, Selection_Hide2!A113=\"\"), \"\", Selection_Hide2!A113)","v":""},{"$f":"IF(OR(Selection_Hide2!B113=0, Selection_Hide2!B113=\"\"), \"\", Selection_Hide2!B113)","v":""},{"$f":"IF(OR(Selection_Hide2!C113=0, Selection_Hide2!C113=\"\"), \"\", Selection_Hide2!C113)","v":""},{"$f":"IF(OR(Selection_Hide2!D113=0, Selection_Hide2!D113=\"\"), \"\", Selection_Hide2!D113)","v":""},{"$f":"IF(OR(Selection_Hide2!E113=0, Selection_Hide2!E113=\"\"), \"\", Selection_Hide2!E113)","v":""},{"$f":"IF(OR(Selection_Hide2!F113=0, Selection_Hide2!F113=\"\"), \"\", Selection_Hide2!F113)","v":""},{"$f":"IF(OR(Selection_Hide2!G113=0, Selection_Hide2!G113=\"\"), \"\", Selection_Hide2!G113)","v":""},{"$f":"IF(OR(Selection_Hide2!H113=0, Selection_Hide2!H113=\"\"), \"\", Selection_Hide2!H113)","v":""},{"$f":"IF(OR(Selection_Hide2!I113=0, Selection_Hide2!I113=\"\"), \"\", Selection_Hide2!I113)","v":""},{"$f":"IF(OR(Selection_Hide2!J113=0, Selection_Hide2!J113=\"\"), \"\", Selection_Hide2!J113)","v":""},{"$f":"IF(OR(Selection_Hide2!K113=0, Selection_Hide2!K113=\"\"), \"\", Selection_Hide2!K113)","v":""},{"$f":"IF(OR(Selection_Hide2!L113=0, Selection_Hide2!L113=\"\"), \"\", Selection_Hide2!L113)","v":""},{"$f":"IF(OR(Selection_Hide2!M113=0, Selection_Hide2!M113=\"\"), \"\", Selection_Hide2!M113)","v":""},{"$f":"IF(OR(Selection_Hide2!N113=0, Selection_Hide2!N113=\"\"), \"\", Selection_Hide2!N113)","v":""},{"$f":"IF(OR(Selection_Hide2!O113=0, Selection_Hide2!O113=\"\"), \"\", Selection_Hide2!O113)","v":""},{"$f":"IF(OR(Selection_Hide2!P113=0, Selection_Hide2!P113=\"\"), \"\", Selection_Hide2!P113)","v":""},{"$f":"IF(OR(Selection_Hide2!Q113=0, Selection_Hide2!Q113=\"\"), \"\", Selection_Hide2!Q113)","v":""},{"$f":"IF(OR(Selection_Hide2!R113=0, Selection_Hide2!R113=\"\"), \"\", Selection_Hide2!R113)","v":""},{"$f":"IF(OR(Selection_Hide2!S113=0, Selection_Hide2!S113=\"\"), \"\", Selection_Hide2!S113)","v":""},{"$f":"IF(OR(Selection_Hide2!T113=0, Selection_Hide2!T113=\"\"), \"\", Selection_Hide2!T113)","v":""},{"$f":"IF(OR(Selection_Hide2!U113=0, Selection_Hide2!U113=\"\"), \"\", Selection_Hide2!U113)","v":""},{"$f":"IF(OR(Selection_Hide2!V113=0, Selection_Hide2!V113=\"\"), \"\", Selection_Hide2!V113)","v":""},{"$f":"IF(OR(Selection_Hide2!W113=0, Selection_Hide2!W113=\"\"), \"\", Selection_Hide2!W113)","v":""},{"$f":"IF(OR(Selection_Hide2!X113=0, Selection_Hide2!X113=\"\"), \"\", Selection_Hide2!X113)","v":""},{"$f":"IF(OR(Selection_Hide2!Y113=0, Selection_Hide2!Y113=\"\"), \"\", Selection_Hide2!Y113)","v":""},{"$f":"IF(OR(Selection_Hide2!Z113=0, Selection_Hide2!Z113=\"\"), \"\", Selection_Hide2!Z113)","v":""},{"$f":"IF(OR(Selection_Hide2!AA113=0, Selection_Hide2!AA113=\"\"), \"\", Selection_Hide2!AA113)","v":""},{"$f":"IF(OR(Selection_Hide2!AB113=0, Selection_Hide2!AB113=\"\"), \"\", Selection_Hide2!AB113)","v":""}]
[{"$f":"IF(OR(Selection_Hide2!A114=0, Selection_Hide2!A114=\"\"), \"\", Selection_Hide2!A114)","v":""},{"$f":"IF(OR(Selection_Hide2!B114=0, Selection_Hide2!B114=\"\"), \"\", Selection_Hide2!B114)","v":""},{"$f":"IF(OR(Selection_Hide2!C114=0, Selection_Hide2!C114=\"\"), \"\", Selection_Hide2!C114)","v":""},{"$f":"IF(OR(Selection_Hide2!D114=0, Selection_Hide2!D114=\"\"), \"\", Selection_Hide2!D114)","v":""},{"$f":"IF(OR(Selection_Hide2!E114=0, Selection_Hide2!E114=\"\"), \"\", Selection_Hide2!E114)","v":""},{"$f":"IF(OR(Selection_Hide2!F114=0, Selection_Hide2!F114=\"\"), \"\", Selection_Hide2!F114)","v":""},{"$f":"IF(OR(Selection_Hide2!G114=0, Selection_Hide2!G114=\"\"), \"\", Selection_Hide2!G114)","v":""},{"$f":"IF(OR(Selection_Hide2!H114=0, Selection_Hide2!H114=\"\"), \"\", Selection_Hide2!H114)","v":""},{"$f":"IF(OR(Selection_Hide2!I114=0, Selection_Hide2!I114=\"\"), \"\", Selection_Hide2!I114)","v":""},{"$f":"IF(OR(Selection_Hide2!J114=0, Selection_Hide2!J114=\"\"), \"\", Selection_Hide2!J114)","v":""},{"$f":"IF(OR(Selection_Hide2!K114=0, Selection_Hide2!K114=\"\"), \"\", Selection_Hide2!K114)","v":""},{"$f":"IF(OR(Selection_Hide2!L114=0, Selection_Hide2!L114=\"\"), \"\", Selection_Hide2!L114)","v":""},{"$f":"IF(OR(Selection_Hide2!M114=0, Selection_Hide2!M114=\"\"), \"\", Selection_Hide2!M114)","v":""},{"$f":"IF(OR(Selection_Hide2!N114=0, Selection_Hide2!N114=\"\"), \"\", Selection_Hide2!N114)","v":""},{"$f":"IF(OR(Selection_Hide2!O114=0, Selection_Hide2!O114=\"\"), \"\", Selection_Hide2!O114)","v":""},{"$f":"IF(OR(Selection_Hide2!P114=0, Selection_Hide2!P114=\"\"), \"\", Selection_Hide2!P114)","v":""},{"$f":"IF(OR(Selection_Hide2!Q114=0, Selection_Hide2!Q114=\"\"), \"\", Selection_Hide2!Q114)","v":""},{"$f":"IF(OR(Selection_Hide2!R114=0, Selection_Hide2!R114=\"\"), \"\", Selection_Hide2!R114)","v":""},{"$f":"IF(OR(Selection_Hide2!S114=0, Selection_Hide2!S114=\"\"), \"\", Selection_Hide2!S114)","v":""},{"$f":"IF(OR(Selection_Hide2!T114=0, Selection_Hide2!T114=\"\"), \"\", Selection_Hide2!T114)","v":""},{"$f":"IF(OR(Selection_Hide2!U114=0, Selection_Hide2!U114=\"\"), \"\", Selection_Hide2!U114)","v":""},{"$f":"IF(OR(Selection_Hide2!V114=0, Selection_Hide2!V114=\"\"), \"\", Selection_Hide2!V114)","v":""},{"$f":"IF(OR(Selection_Hide2!W114=0, Selection_Hide2!W114=\"\"), \"\", Selection_Hide2!W114)","v":""},{"$f":"IF(OR(Selection_Hide2!X114=0, Selection_Hide2!X114=\"\"), \"\", Selection_Hide2!X114)","v":""},{"$f":"IF(OR(Selection_Hide2!Y114=0, Selection_Hide2!Y114=\"\"), \"\", Selection_Hide2!Y114)","v":""},{"$f":"IF(OR(Selection_Hide2!Z114=0, Selection_Hide2!Z114=\"\"), \"\", Selection_Hide2!Z114)","v":""},{"$f":"IF(OR(Selection_Hide2!AA114=0, Selection_Hide2!AA114=\"\"), \"\", Selection_Hide2!AA114)","v":""},{"$f":"IF(OR(Selection_Hide2!AB114=0, Selection_Hide2!AB114=\"\"), \"\", Selection_Hide2!AB114)","v":""}]
[{"$f":"IF(OR(Selection_Hide2!A115=0, Selection_Hide2!A115=\"\"), \"\", Selection_Hide2!A115)","v":""},{"$f":"IF(OR(Selection_Hide2!B115=0, Selection_Hide2!B115=\"\"), \"\", Selection_Hide2!B115)","v":""},{"$f":"IF(OR(Selection_Hide2!C115=0, Selection_Hide2!C115=\"\"), \"\", Selection_Hide2!C115)","v":""},{"$f":"IF(OR(Selection_Hide2!D115=0, Selection_Hide2!D115=\"\"), \"\", Selection_Hide2!D115)","v":""},{"$f":"IF(OR(Selection_Hide2!E115=0, Selection_Hide2!E115=\"\"), \"\", Selection_Hide2!E115)","v":""},{"$f":"IF(OR(Selection_Hide2!F115=0, Selection_Hide2!F115=\"\"), \"\", Selection_Hide2!F115)","v":""},{"$f":"IF(OR(Selection_Hide2!G115=0, Selection_Hide2!G115=\"\"), \"\", Selection_Hide2!G115)","v":""},{"$f":"IF(OR(Selection_Hide2!H115=0, Selection_Hide2!H115=\"\"), \"\", Selection_Hide2!H115)","v":""},{"$f":"IF(OR(Selection_Hide2!I115=0, Selection_Hide2!I115=\"\"), \"\", Selection_Hide2!I115)","v":""},{"$f":"IF(OR(Selection_Hide2!J115=0, Selection_Hide2!J115=\"\"), \"\", Selection_Hide2!J115)","v":""},{"$f":"IF(OR(Selection_Hide2!K115=0, Selection_Hide2!K115=\"\"), \"\", Selection_Hide2!K115)","v":""},{"$f":"IF(OR(Selection_Hide2!L115=0, Selection_Hide2!L115=\"\"), \"\", Selection_Hide2!L115)","v":""},{"$f":"IF(OR(Selection_Hide2!M115=0, Selection_Hide2!M115=\"\"), \"\", Selection_Hide2!M115)","v":""},{"$f":"IF(OR(Selection_Hide2!N115=0, Selection_Hide2!N115=\"\"), \"\", Selection_Hide2!N115)","v":""},{"$f":"IF(OR(Selection_Hide2!O115=0, Selection_Hide2!O115=\"\"), \"\", Selection_Hide2!O115)","v":""},{"$f":"IF(OR(Selection_Hide2!P115=0, Selection_Hide2!P115=\"\"), \"\", Selection_Hide2!P115)","v":""},{"$f":"IF(OR(Selection_Hide2!Q115=0, Selection_Hide2!Q115=\"\"), \"\", Selection_Hide2!Q115)","v":""},{"$f":"IF(OR(Selection_Hide2!R115=0, Selection_Hide2!R115=\"\"), \"\", Selection_Hide2!R115)","v":""},{"$f":"IF(OR(Selection_Hide2!S115=0, Selection_Hide2!S115=\"\"), \"\", Selection_Hide2!S115)","v":""},{"$f":"IF(OR(Selection_Hide2!T115=0, Selection_Hide2!T115=\"\"), \"\", Selection_Hide2!T115)","v":""},{"$f":"IF(OR(Selection_Hide2!U115=0, Selection_Hide2!U115=\"\"), \"\", Selection_Hide2!U115)","v":""},{"$f":"IF(OR(Selection_Hide2!V115=0, Selection_Hide2!V115=\"\"), \"\", Selection_Hide2!V115)","v":""},{"$f":"IF(OR(Selection_Hide2!W115=0, Selection_Hide2!W115=\"\"), \"\", Selection_Hide2!W115)","v":""},{"$f":"IF(OR(Selection_Hide2!X115=0, Selection_Hide2!X115=\"\"), \"\", Selection_Hide2!X115)","v":""},{"$f":"IF(OR(Selection_Hide2!Y115=0, Selection_Hide2!Y115=\"\"), \"\", Selection_Hide2!Y115)","v":""},{"$f":"IF(OR(Selection_Hide2!Z115=0, Selection_Hide2!Z115=\"\"), \"\", Selection_Hide2!Z115)","v":""},{"$f":"IF(OR(Selection_Hide2!AA115=0, Selection_Hide2!AA115=\"\"), \"\", Selection_Hide2!AA115)","v":""},{"$f":"IF(OR(Selection_Hide2!AB115=0, Selection_Hide2!AB115=\"\"), \"\", Selection_Hide2!AB115)","v":""}]
[{"$f":"IF(OR(Selection_Hide2!A116=0, Selection_Hide2!A116=\"\"), \"\", Selection_Hide2!A116)","v":""},{"$f":"IF(OR(Selection_Hide2!B116=0, Selection_Hide2!B116=\"\"), \"\", Selection_Hide2!B116)","v":""},{"$f":"IF(OR(Selection_Hide2!C116=0, Selection_Hide2!C116=\"\"), \"\", Selection_Hide2!C116)","v":""},{"$f":"IF(OR(Selection_Hide2!D116=0, Selection_Hide2!D116=\"\"), \"\", Selection_Hide2!D116)","v":""},{"$f":"IF(OR(Selection_Hide2!E116=0, Selection_Hide2!E116=\"\"), \"\", Selection_Hide2!E116)","v":""},{"$f":"IF(OR(Selection_Hide2!F116=0, Selection_Hide2!F116=\"\"), \"\", Selection_Hide2!F116)","v":""},{"$f":"IF(OR(Selection_Hide2!G116=0, Selection_Hide2!G116=\"\"), \"\", Selection_Hide2!G116)","v":""},{"$f":"IF(OR(Selection_Hide2!H116=0, Selection_Hide2!H116=\"\"), \"\", Selection_Hide2!H116)","v":""},{"$f":"IF(OR(Selection_Hide2!I116=0, Selection_Hide2!I116=\"\"), \"\", Selection_Hide2!I116)","v":""},{"$f":"IF(OR(Selection_Hide2!J116=0, Selection_Hide2!J116=\"\"), \"\", Selection_Hide2!J116)","v":""},{"$f":"IF(OR(Selection_Hide2!K116=0, Selection_Hide2!K116=\"\"), \"\", Selection_Hide2!K116)","v":""},{"$f":"IF(OR(Selection_Hide2!L116=0, Selection_Hide2!L116=\"\"), \"\", Selection_Hide2!L116)","v":""},{"$f":"IF(OR(Selection_Hide2!M116=0, Selection_Hide2!M116=\"\"), \"\", Selection_Hide2!M116)","v":""},{"$f":"IF(OR(Selection_Hide2!N116=0, Selection_Hide2!N116=\"\"), \"\", Selection_Hide2!N116)","v":""},{"$f":"IF(OR(Selection_Hide2!O116=0, Selection_Hide2!O116=\"\"), \"\", Selection_Hide2!O116)","v":""},{"$f":"IF(OR(Selection_Hide2!P116=0, Selection_Hide2!P116=\"\"), \"\", Selection_Hide2!P116)","v":""},{"$f":"IF(OR(Selection_Hide2!Q116=0, Selection_Hide2!Q116=\"\"), \"\", Selection_Hide2!Q116)","v":""},{"$f":"IF(OR(Selection_Hide2!R116=0, Selection_Hide2!R116=\"\"), \"\", Selection_Hide2!R116)","v":""},{"$f":"IF(OR(Selection_Hide2!S116=0, Selection_Hide2!S116=\"\"), \"\", Selection_Hide2!S116)","v":""},{"$f":"IF(OR(Selection_Hide2!T116=0, Selection_Hide2!T116=\"\"), \"\", Selection_Hide2!T116)","v":""},{"$f":"IF(OR(Selection_Hide2!U116=0, Selection_Hide2!U116=\"\"), \"\", Selection_Hide2!U116)","v":""},{"$f":"IF(OR(Selection_Hide2!V116=0, Selection_Hide2!V116=\"\"), \"\", Selection_Hide2!V116)","v":""},{"$f":"IF(OR(Selection_Hide2!W116=0, Selection_Hide2!W116=\"\"), \"\", Selection_Hide2!W116)","v":""},{"$f":"IF(OR(Selection_Hide2!X116=0, Selection_Hide2!X116=\"\"), \"\", Selection_Hide2!X116)","v":""},{"$f":"IF(OR(Selection_Hide2!Y116=0, Selection_Hide2!Y116=\"\"), \"\", Selection_Hide2!Y116)","v":""},{"$f":"IF(OR(Selection_Hide2!Z116=0, Selection_Hide2!Z116=\"\"), \"\", Selection_Hide2!Z116)","v":""},{"$f":"IF(OR(Selection_Hide2!AA116=0, Selection_Hide2!AA116=\"\"), \"\", Selection_Hide2!AA116)","v":""},{"$f":"IF(OR(Selection_Hide2!AB116=0, Selection_Hide2!AB116=\"\"), \"\", Selection_Hide2!AB116)","v":""}]
[{"$f":"IF(OR(Selection_Hide2!A117=0, Selection_Hide2!A117=\"\"), \"\", Selection_Hide2!A117)","v":""},{"$f":"IF(OR(Selection_Hide2!B117=0, Selection_Hide2!B117=\"\"), \"\", Selection_Hide2!B117)","v":""},{"$f":"IF(OR(Selection_Hide2!C117=0, Selection_Hide2!C117=\"\"), \"\", Selection_Hide2!C117)","v":""},{"$f":"IF(OR(Selection_Hide2!D117=0, Selection_Hide2!D117=\"\"), \"\", Selection_Hide2!D117)","v":""},{"$f":"IF(OR(Selection_Hide2!E117=0, Selection_Hide2!E117=\"\"), \"\", Selection_Hide2!E117)","v":""},{"$f":"IF(OR(Selection_Hide2!F117=0, Selection_Hide2!F117=\"\"), \"\", Selection_Hide2!F117)","v":""},{"$f":"IF(OR(Selection_Hide2!G117=0, Selection_Hide2!G117=\"\"), \"\", Selection_Hide2!G117)","v":""},{"$f":"IF(OR(Selection_Hide2!H117=0, Selection_Hide2!H117=\"\"), \"\", Selection_Hide2!H117)","v":""},{"$f":"IF(OR(Selection_Hide2!I117=0, Selection_Hide2!I117=\"\"), \"\", Selection_Hide2!I117)","v":""},{"$f":"IF(OR(Selection_Hide2!J117=0, Selection_Hide2!J117=\"\"), \"\", Selection_Hide2!J117)","v":""},{"$f":"IF(OR(Selection_Hide2!K117=0, Selection_Hide2!K117=\"\"), \"\", Selection_Hide2!K117)","v":""},{"$f":"IF(OR(Selection_Hide2!L117=0, Selection_Hide2!L117=\"\"), \"\", Selection_Hide2!L117)","v":""},{"$f":"IF(OR(Selection_Hide2!M117=0, Selection_Hide2!M117=\"\"), \"\", Selection_Hide2!M117)","v":""},{"$f":"IF(OR(Selection_Hide2!N117=0, Selection_Hide2!N117=\"\"), \"\", Selection_Hide2!N117)","v":""},{"$f":"IF(OR(Selection_Hide2!O117=0, Selection_Hide2!O117=\"\"), \"\", Selection_Hide2!O117)","v":""},{"$f":"IF(OR(Selection_Hide2!P117=0, Selection_Hide2!P117=\"\"), \"\", Selection_Hide2!P117)","v":""},{"$f":"IF(OR(Selection_Hide2!Q117=0, Selection_Hide2!Q117=\"\"), \"\", Selection_Hide2!Q117)","v":""},{"$f":"IF(OR(Selection_Hide2!R117=0, Selection_Hide2!R117=\"\"), \"\", Selection_Hide2!R117)","v":""},{"$f":"IF(OR(Selection_Hide2!S117=0, Selection_Hide2!S117=\"\"), \"\", Selection_Hide2!S117)","v":""},{"$f":"IF(OR(Selection_Hide2!T117=0, Selection_Hide2!T117=\"\"), \"\", Selection_Hide2!T117)","v":""},{"$f":"IF(OR(Selection_Hide2!U117=0, Selection_Hide2!U117=\"\"), \"\", Selection_Hide2!U117)","v":""},{"$f":"IF(OR(Selection_Hide2!V117=0, Selection_Hide2!V117=\"\"), \"\", Selection_Hide2!V117)","v":""},{"$f":"IF(OR(Selection_Hide2!W117=0, Selection_Hide2!W117=\"\"), \"\", Selection_Hide2!W117)","v":""},{"$f":"IF(OR(Selection_Hide2!X117=0, Selection_Hide2!X117=\"\"), \"\", Selection_Hide2!X117)","v":""},{"$f":"IF(OR(Selection_Hide2!Y117=0, Selection_Hide2!Y117=\"\"), \"\", Selection_Hide2!Y117)","v":""},{"$f":"IF(OR(Selection_Hide2!Z117=0, Selection_Hide2!Z117=\"\"), \"\", Selection_Hide2!Z117)","v":""},{"$f":"IF(OR(Selection_Hide2!AA117=0, Selection_Hide2!AA117=\"\"), \"\", Selection_Hide2!AA117)","v":""},{"$f":"IF(OR(Selection_Hide2!AB117=0, Selection_Hide2!AB117=\"\"), \"\", Selection_Hide2!AB117)","v":""}]
[{"$f":"IF(OR(Selection_Hide2!A118=0, Selection_Hide2!A118=\"\"), \"\", Selection_Hide2!A118)","v":""},{"$f":"IF(OR(Selection_Hide2!B118=0, Selection_Hide2!B118=\"\"), \"\", Selection_Hide2!B118)","v":""},{"$f":"IF(OR(Selection_Hide2!C118=0, Selection_Hide2!C118=\"\"), \"\", Selection_Hide2!C118)","v":""},{"$f":"IF(OR(Selection_Hide2!D118=0, Selection_Hide2!D118=\"\"), \"\", Selection_Hide2!D118)","v":""},{"$f":"IF(OR(Selection_Hide2!E118=0, Selection_Hide2!E118=\"\"), \"\", Selection_Hide2!E118)","v":""},{"$f":"IF(OR(Selection_Hide2!F118=0, Selection_Hide2!F118=\"\"), \"\", Selection_Hide2!F118)","v":""},{"$f":"IF(OR(Selection_Hide2!G118=0, Selection_Hide2!G118=\"\"), \"\", Selection_Hide2!G118)","v":""},{"$f":"IF(OR(Selection_Hide2!H118=0, Selection_Hide2!H118=\"\"), \"\", Selection_Hide2!H118)","v":""},{"$f":"IF(OR(Selection_Hide2!I118=0, Selection_Hide2!I118=\"\"), \"\", Selection_Hide2!I118)","v":""},{"$f":"IF(OR(Selection_Hide2!J118=0, Selection_Hide2!J118=\"\"), \"\", Selection_Hide2!J118)","v":""},{"$f":"IF(OR(Selection_Hide2!K118=0, Selection_Hide2!K118=\"\"), \"\", Selection_Hide2!K118)","v":""},{"$f":"IF(OR(Selection_Hide2!L118=0, Selection_Hide2!L118=\"\"), \"\", Selection_Hide2!L118)","v":""},{"$f":"IF(OR(Selection_Hide2!M118=0, Selection_Hide2!M118=\"\"), \"\", Selection_Hide2!M118)","v":""},{"$f":"IF(OR(Selection_Hide2!N118=0, Selection_Hide2!N118=\"\"), \"\", Selection_Hide2!N118)","v":""},{"$f":"IF(OR(Selection_Hide2!O118=0, Selection_Hide2!O118=\"\"), \"\", Selection_Hide2!O118)","v":""},{"$f":"IF(OR(Selection_Hide2!P118=0, Selection_Hide2!P118=\"\"), \"\", Selection_Hide2!P118)","v":""},{"$f":"IF(OR(Selection_Hide2!Q118=0, Selection_Hide2!Q118=\"\"), \"\", Selection_Hide2!Q118)","v":""},{"$f":"IF(OR(Selection_Hide2!R118=0, Selection_Hide2!R118=\"\"), \"\", Selection_Hide2!R118)","v":""},{"$f":"IF(OR(Selection_Hide2!S118=0, Selection_Hide2!S118=\"\"), \"\", Selection_Hide2!S118)","v":""},{"$f":"IF(OR(Selection_Hide2!T118=0, Selection_Hide2!T118=\"\"), \"\", Selection_Hide2!T118)","v":""},{"$f":"IF(OR(Selection_Hide2!U118=0, Selection_Hide2!U118=\"\"), \"\", Selection_Hide2!U118)","v":""},{"$f":"IF(OR(Selection_Hide2!V118=0, Selection_Hide2!V118=\"\"), \"\", Selection_Hide2!V118)","v":""},{"$f":"IF(OR(Selection_Hide2!W118=0, Selection_Hide2!W118=\"\"), \"\", Selection_Hide2!W118)","v":""},{"$f":"IF(OR(Selection_Hide2!X118=0, Selection_Hide2!X118=\"\"), \"\", Selection_Hide2!X118)","v":""},{"$f":"IF(OR(Selection_Hide2!Y118=0, Selection_Hide2!Y118=\"\"), \"\", Selection_Hide2!Y118)","v":""},{"$f":"IF(OR(Selection_Hide2!Z118=0, Selection_Hide2!Z118=\"\"), \"\", Selection_Hide2!Z118)","v":""},{"$f":"IF(OR(Selection_Hide2!AA118=0, Selection_Hide2!AA118=\"\"), \"\", Selection_Hide2!AA118)","v":""},{"$f":"IF(OR(Selection_Hide2!AB118=0, Selection_Hide2!AB118=\"\"), \"\", Selection_Hide2!AB118)","v":""}]
[{"$f":"IF(OR(Selection_Hide2!A119=0, Selection_Hide2!A119=\"\"), \"\", Selection_Hide2!A119)","v":""},{"$f":"IF(OR(Selection_Hide2!B119=0, Selection_Hide2!B119=\"\"), \"\", Selection_Hide2!B119)","v":""},{"$f":"IF(OR(Selection_Hide2!C119=0, Selection_Hide2!C119=\"\"), \"\", Selection_Hide2!C119)","v":""},{"$f":"IF(OR(Selection_Hide2!D119=0, Selection_Hide2!D119=\"\"), \"\", Selection_Hide2!D119)","v":""},{"$f":"IF(OR(Selection_Hide2!E119=0, Selection_Hide2!E119=\"\"), \"\", Selection_Hide2!E119)","v":""},{"$f":"IF(OR(Selection_Hide2!F119=0, Selection_Hide2!F119=\"\"), \"\", Selection_Hide2!F119)","v":""},{"$f":"IF(OR(Selection_Hide2!G119=0, Selection_Hide2!G119=\"\"), \"\", Selection_Hide2!G119)","v":""},{"$f":"IF(OR(Selection_Hide2!H119=0, Selection_Hide2!H119=\"\"), \"\", Selection_Hide2!H119)","v":""},{"$f":"IF(OR(Selection_Hide2!I119=0, Selection_Hide2!I119=\"\"), \"\", Selection_Hide2!I119)","v":""},{"$f":"IF(OR(Selection_Hide2!J119=0, Selection_Hide2!J119=\"\"), \"\", Selection_Hide2!J119)","v":""},{"$f":"IF(OR(Selection_Hide2!K119=0, Selection_Hide2!K119=\"\"), \"\", Selection_Hide2!K119)","v":""},{"$f":"IF(OR(Selection_Hide2!L119=0, Selection_Hide2!L119=\"\"), \"\", Selection_Hide2!L119)","v":""},{"$f":"IF(OR(Selection_Hide2!M119=0, Selection_Hide2!M119=\"\"), \"\", Selection_Hide2!M119)","v":""},{"$f":"IF(OR(Selection_Hide2!N119=0, Selection_Hide2!N119=\"\"), \"\", Selection_Hide2!N119)","v":""},{"$f":"IF(OR(Selection_Hide2!O119=0, Selection_Hide2!O119=\"\"), \"\", Selection_Hide2!O119)","v":""},{"$f":"IF(OR(Selection_Hide2!P119=0, Selection_Hide2!P119=\"\"), \"\", Selection_Hide2!P119)","v":""},{"$f":"IF(OR(Selection_Hide2!Q119=0, Selection_Hide2!Q119=\"\"), \"\", Selection_Hide2!Q119)","v":""},{"$f":"IF(OR(Selection_Hide2!R119=0, Selection_Hide2!R119=\"\"), \"\", Selection_Hide2!R119)","v":""},{"$f":"IF(OR(Selection_Hide2!S119=0, Selection_Hide2!S119=\"\"), \"\", Selection_Hide2!S119)","v":""},{"$f":"IF(OR(Selection_Hide2!T119=0, Selection_Hide2!T119=\"\"), \"\", Selection_Hide2!T119)","v":""},{"$f":"IF(OR(Selection_Hide2!U119=0, Selection_Hide2!U119=\"\"), \"\", Selection_Hide2!U119)","v":""},{"$f":"IF(OR(Selection_Hide2!V119=0, Selection_Hide2!V119=\"\"), \"\", Selection_Hide2!V119)","v":""},{"$f":"IF(OR(Selection_Hide2!W119=0, Selection_Hide2!W119=\"\"), \"\", Selection_Hide2!W119)","v":""},{"$f":"IF(OR(Selection_Hide2!X119=0, Selection_Hide2!X119=\"\"), \"\", Selection_Hide2!X119)","v":""},{"$f":"IF(OR(Selection_Hide2!Y119=0, Selection_Hide2!Y119=\"\"), \"\", Selection_Hide2!Y119)","v":""},{"$f":"IF(OR(Selection_Hide2!Z119=0, Selection_Hide2!Z119=\"\"), \"\", Selection_Hide2!Z119)","v":""},{"$f":"IF(OR(Selection_Hide2!AA119=0, Selection_Hide2!AA119=\"\"), \"\", Selection_Hide2!AA119)","v":""},{"$f":"IF(OR(Selection_Hide2!AB119=0, Selection_Hide2!AB119=\"\"), \"\", Selection_Hide2!AB119)","v":""}]
[{"$f":"IF(OR(Selection_Hide2!A120=0, Selection_Hide2!A120=\"\"), \"\", Selection_Hide2!A120)","v":""},{"$f":"IF(OR(Selection_Hide2!B120=0, Selection_Hide2!B120=\"\"), \"\", Selection_Hide2!B120)","v":""},{"$f":"IF(OR(Selection_Hide2!C120=0, Selection_Hide2!C120=\"\"), \"\", Selection_Hide2!C120)","v":""},{"$f":"IF(OR(Selection_Hide2!D120=0, Selection_Hide2!D120=\"\"), \"\", Selection_Hide2!D120)","v":""},{"$f":"IF(OR(Selection_Hide2!E120=0, Selection_Hide2!E120=\"\"), \"\", Selection_Hide2!E120)","v":""},{"$f":"IF(OR(Selection_Hide2!F120=0, Selection_Hide2!F120=\"\"), \"\", Selection_Hide2!F120)","v":""},{"$f":"IF(OR(Selection_Hide2!G120=0, Selection_Hide2!G120=\"\"), \"\", Selection_Hide2!G120)","v":""},{"$f":"IF(OR(Selection_Hide2!H120=0, Selection_Hide2!H120=\"\"), \"\", Selection_Hide2!H120)","v":""},{"$f":"IF(OR(Selection_Hide2!I120=0, Selection_Hide2!I120=\"\"), \"\", Selection_Hide2!I120)","v":""},{"$f":"IF(OR(Selection_Hide2!J120=0, Selection_Hide2!J120=\"\"), \"\", Selection_Hide2!J120)","v":""},{"$f":"IF(OR(Selection_Hide2!K120=0, Selection_Hide2!K120=\"\"), \"\", Selection_Hide2!K120)","v":""},{"$f":"IF(OR(Selection_Hide2!L120=0, Selection_Hide2!L120=\"\"), \"\", Selection_Hide2!L120)","v":""},{"$f":"IF(OR(Selection_Hide2!M120=0, Selection_Hide2!M120=\"\"), \"\", Selection_Hide2!M120)","v":""},{"$f":"IF(OR(Selection_Hide2!N120=0, Selection_Hide2!N120=\"\"), \"\", Selection_Hide2!N120)","v":""},{"$f":"IF(OR(Selection_Hide2!O120=0, Selection_Hide2!O120=\"\"), \"\", Selection_Hide2!O120)","v":""},{"$f":"IF(OR(Selection_Hide2!P120=0, Selection_Hide2!P120=\"\"), \"\", Selection_Hide2!P120)","v":""},{"$f":"IF(OR(Selection_Hide2!Q120=0, Selection_Hide2!Q120=\"\"), \"\", Selection_Hide2!Q120)","v":""},{"$f":"IF(OR(Selection_Hide2!R120=0, Selection_Hide2!R120=\"\"), \"\", Selection_Hide2!R120)","v":""},{"$f":"IF(OR(Selection_Hide2!S120=0, Selection_Hide2!S120=\"\"), \"\", Selection_Hide2!S120)","v":""},{"$f":"IF(OR(Selection_Hide2!T120=0, Selection_Hide2!T120=\"\"), \"\", Selection_Hide2!T120)","v":""},{"$f":"IF(OR(Selection_Hide2!U120=0, Selection_Hide2!U120=\"\"), \"\", Selection_Hide2!U120)","v":""},{"$f":"IF(OR(Selection_Hide2!V120=0, Selection_Hide2!V120=\"\"), \"\", Selection_Hide2!V120)","v":""},{"$f":"IF(OR(Selection_Hide2!W120=0, Selection_Hide2!W120=\"\"), \"\", Selection_Hide2!W120)","v":""},{"$f":"IF(OR(Selection_Hide2!X120=0, Selection_Hide2!X120=\"\"), \"\", Selection_Hide2!X120)","v":""},{"$f":"IF(OR(Selection_Hide2!Y120=0, Selection_Hide2!Y120=\"\"), \"\", Selection_Hide2!Y120)","v":""},{"$f":"IF(OR(Selection_Hide2!Z120=0, Selection_Hide2!Z120=\"\"), \"\", Selection_Hide2!Z120)","v":""},{"$f":"IF(OR(Selection_Hide2!AA120=0, Selection_Hide2!AA120=\"\"), \"\", Selection_Hide2!AA120)","v":""},{"$f":"IF(OR(Selection_Hide2!AB120=0, Selection_Hide2!AB120=\"\"), \"\", Selection_Hide2!AB120)","v":""}]
[{"$f":"IF(OR(Selection_Hide2!A121=0, Selection_Hide2!A121=\"\"), \"\", Selection_Hide2!A121)","v":""},{"$f":"IF(OR(Selection_Hide2!B121=0, Selection_Hide2!B121=\"\"), \"\", Selection_Hide2!B121)","v":""},{"$f":"IF(OR(Selection_Hide2!C121=0, Selection_Hide2!C121=\"\"), \"\", Selection_Hide2!C121)","v":""},{"$f":"IF(OR(Selection_Hide2!D121=0, Selection_Hide2!D121=\"\"), \"\", Selection_Hide2!D121)","v":""},{"$f":"IF(OR(Selection_Hide2!E121=0, Selection_Hide2!E121=\"\"), \"\", Selection_Hide2!E121)","v":""},{"$f":"IF(OR(Selection_Hide2!F121=0, Selection_Hide2!F121=\"\"), \"\", Selection_Hide2!F121)","v":""},{"$f":"IF(OR(Selection_Hide2!G121=0, Selection_Hide2!G121=\"\"), \"\", Selection_Hide2!G121)","v":""},{"$f":"IF(OR(Selection_Hide2!H121=0, Selection_Hide2!H121=\"\"), \"\", Selection_Hide2!H121)","v":""},{"$f":"IF(OR(Selection_Hide2!I121=0, Selection_Hide2!I121=\"\"), \"\", Selection_Hide2!I121)","v":""},{"$f":"IF(OR(Selection_Hide2!J121=0, Selection_Hide2!J121=\"\"), \"\", Selection_Hide2!J121)","v":""},{"$f":"IF(OR(Selection_Hide2!K121=0, Selection_Hide2!K121=\"\"), \"\", Selection_Hide2!K121)","v":""},{"$f":"IF(OR(Selection_Hide2!L121=0, Selection_Hide2!L121=\"\"), \"\", Selection_Hide2!L121)","v":""},{"$f":"IF(OR(Selection_Hide2!M121=0, Selection_Hide2!M121=\"\"), \"\", Selection_Hide2!M121)","v":""},{"$f":"IF(OR(Selection_Hide2!N121=0, Selection_Hide2!N121=\"\"), \"\", Selection_Hide2!N121)","v":""},{"$f":"IF(OR(Selection_Hide2!O121=0, Selection_Hide2!O121=\"\"), \"\", Selection_Hide2!O121)","v":""},{"$f":"IF(OR(Selection_Hide2!P121=0, Selection_Hide2!P121=\"\"), \"\", Selection_Hide2!P121)","v":""},{"$f":"IF(OR(Selection_Hide2!Q121=0, Selection_Hide2!Q121=\"\"), \"\", Selection_Hide2!Q121)","v":""},{"$f":"IF(OR(Selection_Hide2!R121=0, Selection_Hide2!R121=\"\"), \"\", Selection_Hide2!R121)","v":""},{"$f":"IF(OR(Selection_Hide2!S121=0, Selection_Hide2!S121=\"\"), \"\", Selection_Hide2!S121)","v":""},{"$f":"IF(OR(Selection_Hide2!T121=0, Selection_Hide2!T121=\"\"), \"\", Selection_Hide2!T121)","v":""},{"$f":"IF(OR(Selection_Hide2!U121=0, Selection_Hide2!U121=\"\"), \"\", Selection_Hide2!U121)","v":""},{"$f":"IF(OR(Selection_Hide2!V121=0, Selection_Hide2!V121=\"\"), \"\", Selection_Hide2!V121)","v":""},{"$f":"IF(OR(Selection_Hide2!W121=0, Selection_Hide2!W121=\"\"), \"\", Selection_Hide2!W121)","v":""},{"$f":"IF(OR(Selection_Hide2!X121=0, Selection_Hide2!X121=\"\"), \"\", Selection_Hide2!X121)","v":""},{"$f":"IF(OR(Selection_Hide2!Y121=0, Selection_Hide2!Y121=\"\"), \"\", Selection_Hide2!Y121)","v":""},{"$f":"IF(OR(Selection_Hide2!Z121=0, Selection_Hide2!Z121=\"\"), \"\", Selection_Hide2!Z121)","v":""},{"$f":"IF(OR(Selection_Hide2!AA121=0, Selection_Hide2!AA121=\"\"), \"\", Selection_Hide2!AA121)","v":""},{"$f":"IF(OR(Selection_Hide2!AB121=0, Selection_Hide2!AB121=\"\"), \"\", Selection_Hide2!AB121)","v":""}]
[{"$f":"IF(OR(Selection_Hide2!A122=0, Selection_Hide2!A122=\"\"), \"\", Selection_Hide2!A122)","v":""},{"$f":"IF(OR(Selection_Hide2!B122=0, Selection_Hide2!B122=\"\"), \"\", Selection_Hide2!B122)","v":""},{"$f":"IF(OR(Selection_Hide2!C122=0, Selection_Hide2!C122=\"\"), \"\", Selection_Hide2!C122)","v":""},{"$f":"IF(OR(Selection_Hide2!D122=0, Selection_Hide2!D122=\"\"), \"\", Selection_Hide2!D122)","v":""},{"$f":"IF(OR(Selection_Hide2!E122=0, Selection_Hide2!E122=\"\"), \"\", Selection_Hide2!E122)","v":""},{"$f":"IF(OR(Selection_Hide2!F122=0, Selection_Hide2!F122=\"\"), \"\", Selection_Hide2!F122)","v":""},{"$f":"IF(OR(Selection_Hide2!G122=0, Selection_Hide2!G122=\"\"), \"\", Selection_Hide2!G122)","v":""},{"$f":"IF(OR(Selection_Hide2!H122=0, Selection_Hide2!H122=\"\"), \"\", Selection_Hide2!H122)","v":""},{"$f":"IF(OR(Selection_Hide2!I122=0, Selection_Hide2!I122=\"\"), \"\", Selection_Hide2!I122)","v":""},{"$f":"IF(OR(Selection_Hide2!J122=0, Selection_Hide2!J122=\"\"), \"\", Selection_Hide2!J122)","v":""},{"$f":"IF(OR(Selection_Hide2!K122=0, Selection_Hide2!K122=\"\"), \"\", Selection_Hide2!K122)","v":""},{"$f":"IF(OR(Selection_Hide2!L122=0, Selection_Hide2!L122=\"\"), \"\", Selection_Hide2!L122)","v":""},{"$f":"IF(OR(Selection_Hide2!M122=0, Selection_Hide2!M122=\"\"), \"\", Selection_Hide2!M122)","v":""},{"$f":"IF(OR(Selection_Hide2!N122=0, Selection_Hide2!N122=\"\"), \"\", Selection_Hide2!N122)","v":""},{"$f":"IF(OR(Selection_Hide2!O122=0, Selection_Hide2!O122=\"\"), \"\", Selection_Hide2!O122)","v":""},{"$f":"IF(OR(Selection_Hide2!P122=0, Selection_Hide2!P122=\"\"), \"\", Selection_Hide2!P122)","v":""},{"$f":"IF(OR(Selection_Hide2!Q122=0, Selection_Hide2!Q122=\"\"), \"\", Selection_Hide2!Q122)","v":""},{"$f":"IF(OR(Selection_Hide2!R122=0, Selection_Hide2!R122=\"\"), \"\", Selection_Hide2!R122)","v":""},{"$f":"IF(OR(Selection_Hide2!S122=0, Selection_Hide2!S122=\"\"), \"\", Selection_Hide2!S122)","v":""},{"$f":"IF(OR(Selection_Hide2!T122=0, Selection_Hide2!T122=\"\"), \"\", Selection_Hide2!T122)","v":""},{"$f":"IF(OR(Selection_Hide2!U122=0, Selection_Hide2!U122=\"\"), \"\", Selection_Hide2!U122)","v":""},{"$f":"IF(OR(Selection_Hide2!V122=0, Selection_Hide2!V122=\"\"), \"\", Selection_Hide2!V122)","v":""},{"$f":"IF(OR(Selection_Hide2!W122=0, Selection_Hide2!W122=\"\"), \"\", Selection_Hide2!W122)","v":""},{"$f":"IF(OR(Selection_Hide2!X122=0, Selection_Hide2!X122=\"\"), \"\", Selection_Hide2!X122)","v":""},{"$f":"IF(OR(Selection_Hide2!Y122=0, Selection_Hide2!Y122=\"\"), \"\", Selection_Hide2!Y122)","v":""},{"$f":"IF(OR(Selection_Hide2!Z122=0, Selection_Hide2!Z122=\"\"), \"\", Selection_Hide2!Z122)","v":""},{"$f":"IF(OR(Selection_Hide2!AA122=0, Selection_Hide2!AA122=\"\"), \"\", Selection_Hide2!AA122)","v":""},{"$f":"IF(OR(Selection_Hide2!AB122=0, Selection_Hide2!AB122=\"\"), \"\", Selection_Hide2!AB122)","v":""}]
[{"$f":"IF(OR(Selection_Hide2!A123=0, Selection_Hide2!A123=\"\"), \"\", Selection_Hide2!A123)","v":""},{"$f":"IF(OR(Selection_Hide2!B123=0, Selection_Hide2!B123=\"\"), \"\", Selection_Hide2!B123)","v":""},{"$f":"IF(OR(Selection_Hide2!C123=0, Selection_Hide2!C123=\"\"), \"\", Selection_Hide2!C123)","v":""},{"$f":"IF(OR(Selection_Hide2!D123=0, Selection_Hide2!D123=\"\"), \"\", Selection_Hide2!D123)","v":""},{"$f":"IF(OR(Selection_Hide2!E123=0, Selection_Hide2!E123=\"\"), \"\", Selection_Hide2!E123)","v":""},{"$f":"IF(OR(Selection_Hide2!F123=0, Selection_Hide2!F123=\"\"), \"\", Selection_Hide2!F123)","v":""},{"$f":"IF(OR(Selection_Hide2!G123=0, Selection_Hide2!G123=\"\"), \"\", Selection_Hide2!G123)","v":""},{"$f":"IF(OR(Selection_Hide2!H123=0, Selection_Hide2!H123=\"\"), \"\", Selection_Hide2!H123)","v":""},{"$f":"IF(OR(Selection_Hide2!I123=0, Selection_Hide2!I123=\"\"), \"\", Selection_Hide2!I123)","v":""},{"$f":"IF(OR(Selection_Hide2!J123=0, Selection_Hide2!J123=\"\"), \"\", Selection_Hide2!J123)","v":""},{"$f":"IF(OR(Selection_Hide2!K123=0, Selection_Hide2!K123=\"\"), \"\", Selection_Hide2!K123)","v":""},{"$f":"IF(OR(Selection_Hide2!L123=0, Selection_Hide2!L123=\"\"), \"\", Selection_Hide2!L123)","v":""},{"$f":"IF(OR(Selection_Hide2!M123=0, Selection_Hide2!M123=\"\"), \"\", Selection_Hide2!M123)","v":""},{"$f":"IF(OR(Selection_Hide2!N123=0, Selection_Hide2!N123=\"\"), \"\", Selection_Hide2!N123)","v":""},{"$f":"IF(OR(Selection_Hide2!O123=0, Selection_Hide2!O123=\"\"), \"\", Selection_Hide2!O123)","v":""},{"$f":"IF(OR(Selection_Hide2!P123=0, Selection_Hide2!P123=\"\"), \"\", Selection_Hide2!P123)","v":""},{"$f":"IF(OR(Selection_Hide2!Q123=0, Selection_Hide2!Q123=\"\"), \"\", Selection_Hide2!Q123)","v":""},{"$f":"IF(OR(Selection_Hide2!R123=0, Selection_Hide2!R123=\"\"), \"\", Selection_Hide2!R123)","v":""},{"$f":"IF(OR(Selection_Hide2!S123=0, Selection_Hide2!S123=\"\"), \"\", Selection_Hide2!S123)","v":""},{"$f":"IF(OR(Selection_Hide2!T123=0, Selection_Hide2!T123=\"\"), \"\", Selection_Hide2!T123)","v":""},{"$f":"IF(OR(Selection_Hide2!U123=0, Selection_Hide2!U123=\"\"), \"\", Selection_Hide2!U123)","v":""},{"$f":"IF(OR(Selection_Hide2!V123=0, Selection_Hide2!V123=\"\"), \"\", Selection_Hide2!V123)","v":""},{"$f":"IF(OR(Selection_Hide2!W123=0, Selection_Hide2!W123=\"\"), \"\", Selection_Hide2!W123)","v":""},{"$f":"IF(OR(Selection_Hide2!X123=0, Selection_Hide2!X123=\"\"), \"\", Selection_Hide2!X123)","v":""},{"$f":"IF(OR(Selection_Hide2!Y123=0, Selection_Hide2!Y123=\"\"), \"\", Selection_Hide2!Y123)","v":""},{"$f":"IF(OR(Selection_Hide2!Z123=0, Selection_Hide2!Z123=\"\"), \"\", Selection_Hide2!Z123)","v":""},{"$f":"IF(OR(Selection_Hide2!AA123=0, Selection_Hide2!AA123=\"\"), \"\", Selection_Hide2!AA123)","v":""},{"$f":"IF(OR(Selection_Hide2!AB123=0, Selection_Hide2!AB123=\"\"), \"\", Selection_Hide2!AB123)","v":""}]
[{"$f":"IF(OR(Selection_Hide2!A124=0, Selection_Hide2!A124=\"\"), \"\", Selection_Hide2!A124)","v":""},{"$f":"IF(OR(Selection_Hide2!B124=0, Selection_Hide2!B124=\"\"), \"\", Selection_Hide2!B124)","v":""},{"$f":"IF(OR(Selection_Hide2!C124=0, Selection_Hide2!C124=\"\"), \"\", Selection_Hide2!C124)","v":""},{"$f":"IF(OR(Selection_Hide2!D124=0, Selection_Hide2!D124=\"\"), \"\", Selection_Hide2!D124)","v":""},{"$f":"IF(OR(Selection_Hide2!E124=0, Selection_Hide2!E124=\"\"), \"\", Selection_Hide2!E124)","v":""},{"$f":"IF(OR(Selection_Hide2!F124=0, Selection_Hide2!F124=\"\"), \"\", Selection_Hide2!F124)","v":""},{"$f":"IF(OR(Selection_Hide2!G124=0, Selection_Hide2!G124=\"\"), \"\", Selection_Hide2!G124)","v":""},{"$f":"IF(OR(Selection_Hide2!H124=0, Selection_Hide2!H124=\"\"), \"\", Selection_Hide2!H124)","v":""},{"$f":"IF(OR(Selection_Hide2!I124=0, Selection_Hide2!I124=\"\"), \"\", Selection_Hide2!I124)","v":""},{"$f":"IF(OR(Selection_Hide2!J124=0, Selection_Hide2!J124=\"\"), \"\", Selection_Hide2!J124)","v":""},{"$f":"IF(OR(Selection_Hide2!K124=0, Selection_Hide2!K124=\"\"), \"\", Selection_Hide2!K124)","v":""},{"$f":"IF(OR(Selection_Hide2!L124=0, Selection_Hide2!L124=\"\"), \"\", Selection_Hide2!L124)","v":""},{"$f":"IF(OR(Selection_Hide2!M124=0, Selection_Hide2!M124=\"\"), \"\", Selection_Hide2!M124)","v":""},{"$f":"IF(OR(Selection_Hide2!N124=0, Selection_Hide2!N124=\"\"), \"\", Selection_Hide2!N124)","v":""},{"$f":"IF(OR(Selection_Hide2!O124=0, Selection_Hide2!O124=\"\"), \"\", Selection_Hide2!O124)","v":""},{"$f":"IF(OR(Selection_Hide2!P124=0, Selection_Hide2!P124=\"\"), \"\", Selection_Hide2!P124)","v":""},{"$f":"IF(OR(Selection_Hide2!Q124=0, Selection_Hide2!Q124=\"\"), \"\", Selection_Hide2!Q124)","v":""},{"$f":"IF(OR(Selection_Hide2!R124=0, Selection_Hide2!R124=\"\"), \"\", Selection_Hide2!R124)","v":""},{"$f":"IF(OR(Selection_Hide2!S124=0, Selection_Hide2!S124=\"\"), \"\", Selection_Hide2!S124)","v":""},{"$f":"IF(OR(Selection_Hide2!T124=0, Selection_Hide2!T124=\"\"), \"\", Selection_Hide2!T124)","v":""},{"$f":"IF(OR(Selection_Hide2!U124=0, Selection_Hide2!U124=\"\"), \"\", Selection_Hide2!U124)","v":""},{"$f":"IF(OR(Selection_Hide2!V124=0, Selection_Hide2!V124=\"\"), \"\", Selection_Hide2!V124)","v":""},{"$f":"IF(OR(Selection_Hide2!W124=0, Selection_Hide2!W124=\"\"), \"\", Selection_Hide2!W124)","v":""},{"$f":"IF(OR(Selection_Hide2!X124=0, Selection_Hide2!X124=\"\"), \"\", Selection_Hide2!X124)","v":""},{"$f":"IF(OR(Selection_Hide2!Y124=0, Selection_Hide2!Y124=\"\"), \"\", Selection_Hide2!Y124)","v":""},{"$f":"IF(OR(Selection_Hide2!Z124=0, Selection_Hide2!Z124=\"\"), \"\", Selection_Hide2!Z124)","v":""},{"$f":"IF(OR(Selection_Hide2!AA124=0, Selection_Hide2!AA124=\"\"), \"\", Selection_Hide2!AA124)","v":""},{"$f":"IF(OR(Selection_Hide2!AB124=0, Selection_Hide2!AB124=\"\"), \"\", Selection_Hide2!AB124)","v":""}]
[{"$f":"IF(OR(Selection_Hide2!A125=0, Selection_Hide2!A125=\"\"), \"\", Selection_Hide2!A125)","v":""},{"$f":"IF(OR(Selection_Hide2!B125=0, Selection_Hide2!B125=\"\"), \"\", Selection_Hide2!B125)","v":""},{"$f":"IF(OR(Selection_Hide2!C125=0, Selection_Hide2!C125=\"\"), \"\", Selection_Hide2!C125)","v":""},{"$f":"IF(OR(Selection_Hide2!D125=0, Selection_Hide2!D125=\"\"), \"\", Selection_Hide2!D125)","v":""},{"$f":"IF(OR(Selection_Hide2!E125=0, Selection_Hide2!E125=\"\"), \"\", Selection_Hide2!E125)","v":""},{"$f":"IF(OR(Selection_Hide2!F125=0, Selection_Hide2!F125=\"\"), \"\", Selection_Hide2!F125)","v":""},{"$f":"IF(OR(Selection_Hide2!G125=0, Selection_Hide2!G125=\"\"), \"\", Selection_Hide2!G125)","v":""},{"$f":"IF(OR(Selection_Hide2!H125=0, Selection_Hide2!H125=\"\"), \"\", Selection_Hide2!H125)","v":""},{"$f":"IF(OR(Selection_Hide2!I125=0, Selection_Hide2!I125=\"\"), \"\", Selection_Hide2!I125)","v":""},{"$f":"IF(OR(Selection_Hide2!J125=0, Selection_Hide2!J125=\"\"), \"\", Selection_Hide2!J125)","v":""},{"$f":"IF(OR(Selection_Hide2!K125=0, Selection_Hide2!K125=\"\"), \"\", Selection_Hide2!K125)","v":""},{"$f":"IF(OR(Selection_Hide2!L125=0, Selection_Hide2!L125=\"\"), \"\", Selection_Hide2!L125)","v":""},{"$f":"IF(OR(Selection_Hide2!M125=0, Selection_Hide2!M125=\"\"), \"\", Selection_Hide2!M125)","v":""},{"$f":"IF(OR(Selection_Hide2!N125=0, Selection_Hide2!N125=\"\"), \"\", Selection_Hide2!N125)","v":""},{"$f":"IF(OR(Selection_Hide2!O125=0, Selection_Hide2!O125=\"\"), \"\", Selection_Hide2!O125)","v":""},{"$f":"IF(OR(Selection_Hide2!P125=0, Selection_Hide2!P125=\"\"), \"\", Selection_Hide2!P125)","v":""},{"$f":"IF(OR(Selection_Hide2!Q125=0, Selection_Hide2!Q125=\"\"), \"\", Selection_Hide2!Q125)","v":""},{"$f":"IF(OR(Selection_Hide2!R125=0, Selection_Hide2!R125=\"\"), \"\", Selection_Hide2!R125)","v":""},{"$f":"IF(OR(Selection_Hide2!S125=0, Selection_Hide2!S125=\"\"), \"\", Selection_Hide2!S125)","v":""},{"$f":"IF(OR(Selection_Hide2!T125=0, Selection_Hide2!T125=\"\"), \"\", Selection_Hide2!T125)","v":""},{"$f":"IF(OR(Selection_Hide2!U125=0, Selection_Hide2!U125=\"\"), \"\", Selection_Hide2!U125)","v":""},{"$f":"IF(OR(Selection_Hide2!V125=0, Selection_Hide2!V125=\"\"), \"\", Selection_Hide2!V125)","v":""},{"$f":"IF(OR(Selection_Hide2!W125=0, Selection_Hide2!W125=\"\"), \"\", Selection_Hide2!W125)","v":""},{"$f":"IF(OR(Selection_Hide2!X125=0, Selection_Hide2!X125=\"\"), \"\", Selection_Hide2!X125)","v":""},{"$f":"IF(OR(Selection_Hide2!Y125=0, Selection_Hide2!Y125=\"\"), \"\", Selection_Hide2!Y125)","v":""},{"$f":"IF(OR(Selection_Hide2!Z125=0, Selection_Hide2!Z125=\"\"), \"\", Selection_Hide2!Z125)","v":""},{"$f":"IF(OR(Selection_Hide2!AA125=0, Selection_Hide2!AA125=\"\"), \"\", Selection_Hide2!AA125)","v":""},{"$f":"IF(OR(Selection_Hide2!AB125=0, Selection_Hide2!AB125=\"\"), \"\", Selection_Hide2!AB125)","v":""}]
[{"$f":"IF(OR(Selection_Hide2!A126=0, Selection_Hide2!A126=\"\"), \"\", Selection_Hide2!A126)","v":""},{"$f":"IF(OR(Selection_Hide2!B126=0, Selection_Hide2!B126=\"\"), \"\", Selection_Hide2!B126)","v":""},{"$f":"IF(OR(Selection_Hide2!C126=0, Selection_Hide2!C126=\"\"), \"\", Selection_Hide2!C126)","v":""},{"$f":"IF(OR(Selection_Hide2!D126=0, Selection_Hide2!D126=\"\"), \"\", Selection_Hide2!D126)","v":""},{"$f":"IF(OR(Selection_Hide2!E126=0, Selection_Hide2!E126=\"\"), \"\", Selection_Hide2!E126)","v":""},{"$f":"IF(OR(Selection_Hide2!F126=0, Selection_Hide2!F126=\"\"), \"\", Selection_Hide2!F126)","v":""},{"$f":"IF(OR(Selection_Hide2!G126=0, Selection_Hide2!G126=\"\"), \"\", Selection_Hide2!G126)","v":""},{"$f":"IF(OR(Selection_Hide2!H126=0, Selection_Hide2!H126=\"\"), \"\", Selection_Hide2!H126)","v":""},{"$f":"IF(OR(Selection_Hide2!I126=0, Selection_Hide2!I126=\"\"), \"\", Selection_Hide2!I126)","v":""},{"$f":"IF(OR(Selection_Hide2!J126=0, Selection_Hide2!J126=\"\"), \"\", Selection_Hide2!J126)","v":""},{"$f":"IF(OR(Selection_Hide2!K126=0, Selection_Hide2!K126=\"\"), \"\", Selection_Hide2!K126)","v":""},{"$f":"IF(OR(Selection_Hide2!L126=0, Selection_Hide2!L126=\"\"), \"\", Selection_Hide2!L126)","v":""},{"$f":"IF(OR(Selection_Hide2!M126=0, Selection_Hide2!M126=\"\"), \"\", Selection_Hide2!M126)","v":""},{"$f":"IF(OR(Selection_Hide2!N126=0, Selection_Hide2!N126=\"\"), \"\", Selection_Hide2!N126)","v":""},{"$f":"IF(OR(Selection_Hide2!O126=0, Selection_Hide2!O126=\"\"), \"\", Selection_Hide2!O126)","v":""},{"$f":"IF(OR(Selection_Hide2!P126=0, Selection_Hide2!P126=\"\"), \"\", Selection_Hide2!P126)","v":""},{"$f":"IF(OR(Selection_Hide2!Q126=0, Selection_Hide2!Q126=\"\"), \"\", Selection_Hide2!Q126)","v":""},{"$f":"IF(OR(Selection_Hide2!R126=0, Selection_Hide2!R126=\"\"), \"\", Selection_Hide2!R126)","v":""},{"$f":"IF(OR(Selection_Hide2!S126=0, Selection_Hide2!S126=\"\"), \"\", Selection_Hide2!S126)","v":""},{"$f":"IF(OR(Selection_Hide2!T126=0, Selection_Hide2!T126=\"\"), \"\", Selection_Hide2!T126)","v":""},{"$f":"IF(OR(Selection_Hide2!U126=0, Selection_Hide2!U126=\"\"), \"\", Selection_Hide2!U126)","v":""},{"$f":"IF(OR(Selection_Hide2!V126=0, Selection_Hide2!V126=\"\"), \"\", Selection_Hide2!V126)","v":""},{"$f":"IF(OR(Selection_Hide2!W126=0, Selection_Hide2!W126=\"\"), \"\", Selection_Hide2!W126)","v":""},{"$f":"IF(OR(Selection_Hide2!X126=0, Selection_Hide2!X126=\"\"), \"\", Selection_Hide2!X126)","v":""},{"$f":"IF(OR(Selection_Hide2!Y126=0, Selection_Hide2!Y126=\"\"), \"\", Selection_Hide2!Y126)","v":""},{"$f":"IF(OR(Selection_Hide2!Z126=0, Selection_Hide2!Z126=\"\"), \"\", Selection_Hide2!Z126)","v":""},{"$f":"IF(OR(Selection_Hide2!AA126=0, Selection_Hide2!AA126=\"\"), \"\", Selection_Hide2!AA126)","v":""},{"$f":"IF(OR(Selection_Hide2!AB126=0, Selection_Hide2!AB126=\"\"), \"\", Selection_Hide2!AB126)","v":""}]
[{"$f":"IF(OR(Selection_Hide2!A127=0, Selection_Hide2!A127=\"\"), \"\", Selection_Hide2!A127)","v":""},{"$f":"IF(OR(Selection_Hide2!B127=0, Selection_Hide2!B127=\"\"), \"\", Selection_Hide2!B127)","v":""},{"$f":"IF(OR(Selection_Hide2!C127=0, Selection_Hide2!C127=\"\"), \"\", Selection_Hide2!C127)","v":""},{"$f":"IF(OR(Selection_Hide2!D127=0, Selection_Hide2!D127=\"\"), \"\", Selection_Hide2!D127)","v":""},{"$f":"IF(OR(Selection_Hide2!E127=0, Selection_Hide2!E127=\"\"), \"\", Selection_Hide2!E127)","v":""},{"$f":"IF(OR(Selection_Hide2!F127=0, Selection_Hide2!F127=\"\"), \"\", Selection_Hide2!F127)","v":""},{"$f":"IF(OR(Selection_Hide2!G127=0, Selection_Hide2!G127=\"\"), \"\", Selection_Hide2!G127)","v":""},{"$f":"IF(OR(Selection_Hide2!H127=0, Selection_Hide2!H127=\"\"), \"\", Selection_Hide2!H127)","v":""},{"$f":"IF(OR(Selection_Hide2!I127=0, Selection_Hide2!I127=\"\"), \"\", Selection_Hide2!I127)","v":""},{"$f":"IF(OR(Selection_Hide2!J127=0, Selection_Hide2!J127=\"\"), \"\", Selection_Hide2!J127)","v":""},{"$f":"IF(OR(Selection_Hide2!K127=0, Selection_Hide2!K127=\"\"), \"\", Selection_Hide2!K127)","v":""},{"$f":"IF(OR(Selection_Hide2!L127=0, Selection_Hide2!L127=\"\"), \"\", Selection_Hide2!L127)","v":""},{"$f":"IF(OR(Selection_Hide2!M127=0, Selection_Hide2!M127=\"\"), \"\", Selection_Hide2!M127)","v":""},{"$f":"IF(OR(Selection_Hide2!N127=0, Selection_Hide2!N127=\"\"), \"\", Selection_Hide2!N127)","v":""},{"$f":"IF(OR(Selection_Hide2!O127=0, Selection_Hide2!O127=\"\"), \"\", Selection_Hide2!O127)","v":""},{"$f":"IF(OR(Selection_Hide2!P127=0, Selection_Hide2!P127=\"\"), \"\", Selection_Hide2!P127)","v":""},{"$f":"IF(OR(Selection_Hide2!Q127=0, Selection_Hide2!Q127=\"\"), \"\", Selection_Hide2!Q127)","v":""},{"$f":"IF(OR(Selection_Hide2!R127=0, Selection_Hide2!R127=\"\"), \"\", Selection_Hide2!R127)","v":""},{"$f":"IF(OR(Selection_Hide2!S127=0, Selection_Hide2!S127=\"\"), \"\", Selection_Hide2!S127)","v":""},{"$f":"IF(OR(Selection_Hide2!T127=0, Selection_Hide2!T127=\"\"), \"\", Selection_Hide2!T127)","v":""},{"$f":"IF(OR(Selection_Hide2!U127=0, Selection_Hide2!U127=\"\"), \"\", Selection_Hide2!U127)","v":""},{"$f":"IF(OR(Selection_Hide2!V127=0, Selection_Hide2!V127=\"\"), \"\", Selection_Hide2!V127)","v":""},{"$f":"IF(OR(Selection_Hide2!W127=0, Selection_Hide2!W127=\"\"), \"\", Selection_Hide2!W127)","v":""},{"$f":"IF(OR(Selection_Hide2!X127=0, Selection_Hide2!X127=\"\"), \"\", Selection_Hide2!X127)","v":""},{"$f":"IF(OR(Selection_Hide2!Y127=0, Selection_Hide2!Y127=\"\"), \"\", Selection_Hide2!Y127)","v":""},{"$f":"IF(OR(Selection_Hide2!Z127=0, Selection_Hide2!Z127=\"\"), \"\", Selection_Hide2!Z127)","v":""},{"$f":"IF(OR(Selection_Hide2!AA127=0, Selection_Hide2!AA127=\"\"), \"\", Selection_Hide2!AA127)","v":""},{"$f":"IF(OR(Selection_Hide2!AB127=0, Selection_Hide2!AB127=\"\"), \"\", Selection_Hide2!AB127)","v":""}]
[{"$f":"IF(OR(Selection_Hide2!A128=0, Selection_Hide2!A128=\"\"), \"\", Selection_Hide2!A128)","v":""},{"$f":"IF(OR(Selection_Hide2!B128=0, Selection_Hide2!B128=\"\"), \"\", Selection_Hide2!B128)","v":""},{"$f":"IF(OR(Selection_Hide2!C128=0, Selection_Hide2!C128=\"\"), \"\", Selection_Hide2!C128)","v":""},{"$f":"IF(OR(Selection_Hide2!D128=0, Selection_Hide2!D128=\"\"), \"\", Selection_Hide2!D128)","v":""},{"$f":"IF(OR(Selection_Hide2!E128=0, Selection_Hide2!E128=\"\"), \"\", Selection_Hide2!E128)","v":""},{"$f":"IF(OR(Selection_Hide2!F128=0, Selection_Hide2!F128=\"\"), \"\", Selection_Hide2!F128)","v":""},{"$f":"IF(OR(Selection_Hide2!G128=0, Selection_Hide2!G128=\"\"), \"\", Selection_Hide2!G128)","v":""},{"$f":"IF(OR(Selection_Hide2!H128=0, Selection_Hide2!H128=\"\"), \"\", Selection_Hide2!H128)","v":""},{"$f":"IF(OR(Selection_Hide2!I128=0, Selection_Hide2!I128=\"\"), \"\", Selection_Hide2!I128)","v":""},{"$f":"IF(OR(Selection_Hide2!J128=0, Selection_Hide2!J128=\"\"), \"\", Selection_Hide2!J128)","v":""},{"$f":"IF(OR(Selection_Hide2!K128=0, Selection_Hide2!K128=\"\"), \"\", Selection_Hide2!K128)","v":""},{"$f":"IF(OR(Selection_Hide2!L128=0, Selection_Hide2!L128=\"\"), \"\", Selection_Hide2!L128)","v":""},{"$f":"IF(OR(Selection_Hide2!M128=0, Selection_Hide2!M128=\"\"), \"\", Selection_Hide2!M128)","v":""},{"$f":"IF(OR(Selection_Hide2!N128=0, Selection_Hide2!N128=\"\"), \"\", Selection_Hide2!N128)","v":""},{"$f":"IF(OR(Selection_Hide2!O128=0, Selection_Hide2!O128=\"\"), \"\", Selection_Hide2!O128)","v":""},{"$f":"IF(OR(Selection_Hide2!P128=0, Selection_Hide2!P128=\"\"), \"\", Selection_Hide2!P128)","v":""},{"$f":"IF(OR(Selection_Hide2!Q128=0, Selection_Hide2!Q128=\"\"), \"\", Selection_Hide2!Q128)","v":""},{"$f":"IF(OR(Selection_Hide2!R128=0, Selection_Hide2!R128=\"\"), \"\", Selection_Hide2!R128)","v":""},{"$f":"IF(OR(Selection_Hide2!S128=0, Selection_Hide2!S128=\"\"), \"\", Selection_Hide2!S128)","v":""},{"$f":"IF(OR(Selection_Hide2!T128=0, Selection_Hide2!T128=\"\"), \"\", Selection_Hide2!T128)","v":""},{"$f":"IF(OR(Selection_Hide2!U128=0, Selection_Hide2!U128=\"\"), \"\", Selection_Hide2!U128)","v":""},{"$f":"IF(OR(Selection_Hide2!V128=0, Selection_Hide2!V128=\"\"), \"\", Selection_Hide2!V128)","v":""},{"$f":"IF(OR(Selection_Hide2!W128=0, Selection_Hide2!W128=\"\"), \"\", Selection_Hide2!W128)","v":""},{"$f":"IF(OR(Selection_Hide2!X128=0, Selection_Hide2!X128=\"\"), \"\", Selection_Hide2!X128)","v":""},{"$f":"IF(OR(Selection_Hide2!Y128=0, Selection_Hide2!Y128=\"\"), \"\", Selection_Hide2!Y128)","v":""},{"$f":"IF(OR(Selection_Hide2!Z128=0, Selection_Hide2!Z128=\"\"), \"\", Selection_Hide2!Z128)","v":""},{"$f":"IF(OR(Selection_Hide2!AA128=0, Selection_Hide2!AA128=\"\"), \"\", Selection_Hide2!AA128)","v":""},{"$f":"IF(OR(Selection_Hide2!AB128=0, Selection_Hide2!AB128=\"\"), \"\", Selection_Hide2!AB128)","v":""}]
[{"$f":"IF(OR(Selection_Hide2!A129=0, Selection_Hide2!A129=\"\"), \"\", Selection_Hide2!A129)","v":""},{"$f":"IF(OR(Selection_Hide2!B129=0, Selection_Hide2!B129=\"\"), \"\", Selection_Hide2!B129)","v":""},{"$f":"IF(OR(Selection_Hide2!C129=0, Selection_Hide2!C129=\"\"), \"\", Selection_Hide2!C129)","v":""},{"$f":"IF(OR(Selection_Hide2!D129=0, Selection_Hide2!D129=\"\"), \"\", Selection_Hide2!D129)","v":""},{"$f":"IF(OR(Selection_Hide2!E129=0, Selection_Hide2!E129=\"\"), \"\", Selection_Hide2!E129)","v":""},{"$f":"IF(OR(Selection_Hide2!F129=0, Selection_Hide2!F129=\"\"), \"\", Selection_Hide2!F129)","v":""},{"$f":"IF(OR(Selection_Hide2!G129=0, Selection_Hide2!G129=\"\"), \"\", Selection_Hide2!G129)","v":""},{"$f":"IF(OR(Selection_Hide2!H129=0, Selection_Hide2!H129=\"\"), \"\", Selection_Hide2!H129)","v":""},{"$f":"IF(OR(Selection_Hide2!I129=0, Selection_Hide2!I129=\"\"), \"\", Selection_Hide2!I129)","v":""},{"$f":"IF(OR(Selection_Hide2!J129=0, Selection_Hide2!J129=\"\"), \"\", Selection_Hide2!J129)","v":""},{"$f":"IF(OR(Selection_Hide2!K129=0, Selection_Hide2!K129=\"\"), \"\", Selection_Hide2!K129)","v":""},{"$f":"IF(OR(Selection_Hide2!L129=0, Selection_Hide2!L129=\"\"), \"\", Selection_Hide2!L129)","v":""},{"$f":"IF(OR(Selection_Hide2!M129=0, Selection_Hide2!M129=\"\"), \"\", Selection_Hide2!M129)","v":""},{"$f":"IF(OR(Selection_Hide2!N129=0, Selection_Hide2!N129=\"\"), \"\", Selection_Hide2!N129)","v":""},{"$f":"IF(OR(Selection_Hide2!O129=0, Selection_Hide2!O129=\"\"), \"\", Selection_Hide2!O129)","v":""},{"$f":"IF(OR(Selection_Hide2!P129=0, Selection_Hide2!P129=\"\"), \"\", Selection_Hide2!P129)","v":""},{"$f":"IF(OR(Selection_Hide2!Q129=0, Selection_Hide2!Q129=\"\"), \"\", Selection_Hide2!Q129)","v":""},{"$f":"IF(OR(Selection_Hide2!R129=0, Selection_Hide2!R129=\"\"), \"\", Selection_Hide2!R129)","v":""},{"$f":"IF(OR(Selection_Hide2!S129=0, Selection_Hide2!S129=\"\"), \"\", Selection_Hide2!S129)","v":""},{"$f":"IF(OR(Selection_Hide2!T129=0, Selection_Hide2!T129=\"\"), \"\", Selection_Hide2!T129)","v":""},{"$f":"IF(OR(Selection_Hide2!U129=0, Selection_Hide2!U129=\"\"), \"\", Selection_Hide2!U129)","v":""},{"$f":"IF(OR(Selection_Hide2!V129=0, Selection_Hide2!V129=\"\"), \"\", Selection_Hide2!V129)","v":""},{"$f":"IF(OR(Selection_Hide2!W129=0, Selection_Hide2!W129=\"\"), \"\", Selection_Hide2!W129)","v":""},{"$f":"IF(OR(Selection_Hide2!X129=0, Selection_Hide2!X129=\"\"), \"\", Selection_Hide2!X129)","v":""},{"$f":"IF(OR(Selection_Hide2!Y129=0, Selection_Hide2!Y129=\"\"), \"\", Selection_Hide2!Y129)","v":""},{"$f":"IF(OR(Selection_Hide2!Z129=0, Selection_Hide2!Z129=\"\"), \"\", Selection_Hide2!Z129)","v":""},{"$f":"IF(OR(Selection_Hide2!AA129=0, Selection_Hide2!AA129=\"\"), \"\", Selection_Hide2!AA129)","v":""},{"$f":"IF(OR(Selection_Hide2!AB129=0, Selection_Hide2!AB129=\"\"), \"\", Selection_Hide2!AB129)","v":""}]
[{"$f":"IF(OR(Selection_Hide2!A130=0, Selection_Hide2!A130=\"\"), \"\", Selection_Hide2!A130)","v":""},{"$f":"IF(OR(Selection_Hide2!B130=0, Selection_Hide2!B130=\"\"), \"\", Selection_Hide2!B130)","v":""},{"$f":"IF(OR(Selection_Hide2!C130=0, Selection_Hide2!C130=\"\"), \"\", Selection_Hide2!C130)","v":""},{"$f":"IF(OR(Selection_Hide2!D130=0, Selection_Hide2!D130=\"\"), \"\", Selection_Hide2!D130)","v":""},{"$f":"IF(OR(Selection_Hide2!E130=0, Selection_Hide2!E130=\"\"), \"\", Selection_Hide2!E130)","v":""},{"$f":"IF(OR(Selection_Hide2!F130=0, Selection_Hide2!F130=\"\"), \"\", Selection_Hide2!F130)","v":""},{"$f":"IF(OR(Selection_Hide2!G130=0, Selection_Hide2!G130=\"\"), \"\", Selection_Hide2!G130)","v":""},{"$f":"IF(OR(Selection_Hide2!H130=0, Selection_Hide2!H130=\"\"), \"\", Selection_Hide2!H130)","v":""},{"$f":"IF(OR(Selection_Hide2!I130=0, Selection_Hide2!I130=\"\"), \"\", Selection_Hide2!I130)","v":""},{"$f":"IF(OR(Selection_Hide2!J130=0, Selection_Hide2!J130=\"\"), \"\", Selection_Hide2!J130)","v":""},{"$f":"IF(OR(Selection_Hide2!K130=0, Selection_Hide2!K130=\"\"), \"\", Selection_Hide2!K130)","v":""},{"$f":"IF(OR(Selection_Hide2!L130=0, Selection_Hide2!L130=\"\"), \"\", Selection_Hide2!L130)","v":""},{"$f":"IF(OR(Selection_Hide2!M130=0, Selection_Hide2!M130=\"\"), \"\", Selection_Hide2!M130)","v":""},{"$f":"IF(OR(Selection_Hide2!N130=0, Selection_Hide2!N130=\"\"), \"\", Selection_Hide2!N130)","v":""},{"$f":"IF(OR(Selection_Hide2!O130=0, Selection_Hide2!O130=\"\"), \"\", Selection_Hide2!O130)","v":""},{"$f":"IF(OR(Selection_Hide2!P130=0, Selection_Hide2!P130=\"\"), \"\", Selection_Hide2!P130)","v":""},{"$f":"IF(OR(Selection_Hide2!Q130=0, Selection_Hide2!Q130=\"\"), \"\", Selection_Hide2!Q130)","v":""},{"$f":"IF(OR(Selection_Hide2!R130=0, Selection_Hide2!R130=\"\"), \"\", Selection_Hide2!R130)","v":""},{"$f":"IF(OR(Selection_Hide2!S130=0, Selection_Hide2!S130=\"\"), \"\", Selection_Hide2!S130)","v":""},{"$f":"IF(OR(Selection_Hide2!T130=0, Selection_Hide2!T130=\"\"), \"\", Selection_Hide2!T130)","v":""},{"$f":"IF(OR(Selection_Hide2!U130=0, Selection_Hide2!U130=\"\"), \"\", Selection_Hide2!U130)","v":""},{"$f":"IF(OR(Selection_Hide2!V130=0, Selection_Hide2!V130=\"\"), \"\", Selection_Hide2!V130)","v":""},{"$f":"IF(OR(Selection_Hide2!W130=0, Selection_Hide2!W130=\"\"), \"\", Selection_Hide2!W130)","v":""},{"$f":"IF(OR(Selection_Hide2!X130=0, Selection_Hide2!X130=\"\"), \"\", Selection_Hide2!X130)","v":""},{"$f":"IF(OR(Selection_Hide2!Y130=0, Selection_Hide2!Y130=\"\"), \"\", Selection_Hide2!Y130)","v":""},{"$f":"IF(OR(Selection_Hide2!Z130=0, Selection_Hide2!Z130=\"\"), \"\", Selection_Hide2!Z130)","v":""},{"$f":"IF(OR(Selection_Hide2!AA130=0, Selection_Hide2!AA130=\"\"), \"\", Selection_Hide2!AA130)","v":""},{"$f":"IF(OR(Selection_Hide2!AB130=0, Selection_Hide2!AB130=\"\"), \"\", Selection_Hide2!AB130)","v":""}]
[{"$f":"IF(OR(Selection_Hide2!A131=0, Selection_Hide2!A131=\"\"), \"\", Selection_Hide2!A131)","v":""},{"$f":"IF(OR(Selection_Hide2!B131=0, Selection_Hide2!B131=\"\"), \"\", Selection_Hide2!B131)","v":""},{"$f":"IF(OR(Selection_Hide2!C131=0, Selection_Hide2!C131=\"\"), \"\", Selection_Hide2!C131)","v":""},{"$f":"IF(OR(Selection_Hide2!D131=0, Selection_Hide2!D131=\"\"), \"\", Selection_Hide2!D131)","v":""},{"$f":"IF(OR(Selection_Hide2!E131=0, Selection_Hide2!E131=\"\"), \"\", Selection_Hide2!E131)","v":""},{"$f":"IF(OR(Selection_Hide2!F131=0, Selection_Hide2!F131=\"\"), \"\", Selection_Hide2!F131)","v":""},{"$f":"IF(OR(Selection_Hide2!G131=0, Selection_Hide2!G131=\"\"), \"\", Selection_Hide2!G131)","v":""},{"$f":"IF(OR(Selection_Hide2!H131=0, Selection_Hide2!H131=\"\"), \"\", Selection_Hide2!H131)","v":""},{"$f":"IF(OR(Selection_Hide2!I131=0, Selection_Hide2!I131=\"\"), \"\", Selection_Hide2!I131)","v":""},{"$f":"IF(OR(Selection_Hide2!J131=0, Selection_Hide2!J131=\"\"), \"\", Selection_Hide2!J131)","v":""},{"$f":"IF(OR(Selection_Hide2!K131=0, Selection_Hide2!K131=\"\"), \"\", Selection_Hide2!K131)","v":""},{"$f":"IF(OR(Selection_Hide2!L131=0, Selection_Hide2!L131=\"\"), \"\", Selection_Hide2!L131)","v":""},{"$f":"IF(OR(Selection_Hide2!M131=0, Selection_Hide2!M131=\"\"), \"\", Selection_Hide2!M131)","v":""},{"$f":"IF(OR(Selection_Hide2!N131=0, Selection_Hide2!N131=\"\"), \"\", Selection_Hide2!N131)","v":""},{"$f":"IF(OR(Selection_Hide2!O131=0, Selection_Hide2!O131=\"\"), \"\", Selection_Hide2!O131)","v":""},{"$f":"IF(OR(Selection_Hide2!P131=0, Selection_Hide2!P131=\"\"), \"\", Selection_Hide2!P131)","v":""},{"$f":"IF(OR(Selection_Hide2!Q131=0, Selection_Hide2!Q131=\"\"), \"\", Selection_Hide2!Q131)","v":""},{"$f":"IF(OR(Selection_Hide2!R131=0, Selection_Hide2!R131=\"\"), \"\", Selection_Hide2!R131)","v":""},{"$f":"IF(OR(Selection_Hide2!S131=0, Selection_Hide2!S131=\"\"), \"\", Selection_Hide2!S131)","v":""},{"$f":"IF(OR(Selection_Hide2!T131=0, Selection_Hide2!T131=\"\"), \"\", Selection_Hide2!T131)","v":""},{"$f":"IF(OR(Selection_Hide2!U131=0, Selection_Hide2!U131=\"\"), \"\", Selection_Hide2!U131)","v":""},{"$f":"IF(OR(Selection_Hide2!V131=0, Selection_Hide2!V131=\"\"), \"\", Selection_Hide2!V131)","v":""},{"$f":"IF(OR(Selection_Hide2!W131=0, Selection_Hide2!W131=\"\"), \"\", Selection_Hide2!W131)","v":""},{"$f":"IF(OR(Selection_Hide2!X131=0, Selection_Hide2!X131=\"\"), \"\", Selection_Hide2!X131)","v":""},{"$f":"IF(OR(Selection_Hide2!Y131=0, Selection_Hide2!Y131=\"\"), \"\", Selection_Hide2!Y131)","v":""},{"$f":"IF(OR(Selection_Hide2!Z131=0, Selection_Hide2!Z131=\"\"), \"\", Selection_Hide2!Z131)","v":""},{"$f":"IF(OR(Selection_Hide2!AA131=0, Selection_Hide2!AA131=\"\"), \"\", Selection_Hide2!AA131)","v":""},{"$f":"IF(OR(Selection_Hide2!AB131=0, Selection_Hide2!AB131=\"\"), \"\", Selection_Hide2!AB131)","v":""}]
[{"$f":"IF(OR(Selection_Hide2!A132=0, Selection_Hide2!A132=\"\"), \"\", Selection_Hide2!A132)","v":""},{"$f":"IF(OR(Selection_Hide2!B132=0, Selection_Hide2!B132=\"\"), \"\", Selection_Hide2!B132)","v":""},{"$f":"IF(OR(Selection_Hide2!C132=0, Selection_Hide2!C132=\"\"), \"\", Selection_Hide2!C132)","v":""},{"$f":"IF(OR(Selection_Hide2!D132=0, Selection_Hide2!D132=\"\"), \"\", Selection_Hide2!D132)","v":""},{"$f":"IF(OR(Selection_Hide2!E132=0, Selection_Hide2!E132=\"\"), \"\", Selection_Hide2!E132)","v":""},{"$f":"IF(OR(Selection_Hide2!F132=0, Selection_Hide2!F132=\"\"), \"\", Selection_Hide2!F132)","v":""},{"$f":"IF(OR(Selection_Hide2!G132=0, Selection_Hide2!G132=\"\"), \"\", Selection_Hide2!G132)","v":""},{"$f":"IF(OR(Selection_Hide2!H132=0, Selection_Hide2!H132=\"\"), \"\", Selection_Hide2!H132)","v":""},{"$f":"IF(OR(Selection_Hide2!I132=0, Selection_Hide2!I132=\"\"), \"\", Selection_Hide2!I132)","v":""},{"$f":"IF(OR(Selection_Hide2!J132=0, Selection_Hide2!J132=\"\"), \"\", Selection_Hide2!J132)","v":""},{"$f":"IF(OR(Selection_Hide2!K132=0, Selection_Hide2!K132=\"\"), \"\", Selection_Hide2!K132)","v":""},{"$f":"IF(OR(Selection_Hide2!L132=0, Selection_Hide2!L132=\"\"), \"\", Selection_Hide2!L132)","v":""},{"$f":"IF(OR(Selection_Hide2!M132=0, Selection_Hide2!M132=\"\"), \"\", Selection_Hide2!M132)","v":""},{"$f":"IF(OR(Selection_Hide2!N132=0, Selection_Hide2!N132=\"\"), \"\", Selection_Hide2!N132)","v":""},{"$f":"IF(OR(Selection_Hide2!O132=0, Selection_Hide2!O132=\"\"), \"\", Selection_Hide2!O132)","v":""},{"$f":"IF(OR(Selection_Hide2!P132=0, Selection_Hide2!P132=\"\"), \"\", Selection_Hide2!P132)","v":""},{"$f":"IF(OR(Selection_Hide2!Q132=0, Selection_Hide2!Q132=\"\"), \"\", Selection_Hide2!Q132)","v":""},{"$f":"IF(OR(Selection_Hide2!R132=0, Selection_Hide2!R132=\"\"), \"\", Selection_Hide2!R132)","v":""},{"$f":"IF(OR(Selection_Hide2!S132=0, Selection_Hide2!S132=\"\"), \"\", Selection_Hide2!S132)","v":""},{"$f":"IF(OR(Selection_Hide2!T132=0, Selection_Hide2!T132=\"\"), \"\", Selection_Hide2!T132)","v":""},{"$f":"IF(OR(Selection_Hide2!U132=0, Selection_Hide2!U132=\"\"), \"\", Selection_Hide2!U132)","v":""},{"$f":"IF(OR(Selection_Hide2!V132=0, Selection_Hide2!V132=\"\"), \"\", Selection_Hide2!V132)","v":""},{"$f":"IF(OR(Selection_Hide2!W132=0, Selection_Hide2!W132=\"\"), \"\", Selection_Hide2!W132)","v":""},{"$f":"IF(OR(Selection_Hide2!X132=0, Selection_Hide2!X132=\"\"), \"\", Selection_Hide2!X132)","v":""},{"$f":"IF(OR(Selection_Hide2!Y132=0, Selection_Hide2!Y132=\"\"), \"\", Selection_Hide2!Y132)","v":""},{"$f":"IF(OR(Selection_Hide2!Z132=0, Selection_Hide2!Z132=\"\"), \"\", Selection_Hide2!Z132)","v":""},{"$f":"IF(OR(Selection_Hide2!AA132=0, Selection_Hide2!AA132=\"\"), \"\", Selection_Hide2!AA132)","v":""},{"$f":"IF(OR(Selection_Hide2!AB132=0, Selection_Hide2!AB132=\"\"), \"\", Selection_Hide2!AB132)","v":""}]
[{"$f":"IF(OR(Selection_Hide2!A133=0, Selection_Hide2!A133=\"\"), \"\", Selection_Hide2!A133)","v":""},{"$f":"IF(OR(Selection_Hide2!B133=0, Selection_Hide2!B133=\"\"), \"\", Selection_Hide2!B133)","v":""},{"$f":"IF(OR(Selection_Hide2!C133=0, Selection_Hide2!C133=\"\"), \"\", Selection_Hide2!C133)","v":""},{"$f":"IF(OR(Selection_Hide2!D133=0, Selection_Hide2!D133=\"\"), \"\", Selection_Hide2!D133)","v":""},{"$f":"IF(OR(Selection_Hide2!E133=0, Selection_Hide2!E133=\"\"), \"\", Selection_Hide2!E133)","v":""},{"$f":"IF(OR(Selection_Hide2!F133=0, Selection_Hide2!F133=\"\"), \"\", Selection_Hide2!F133)","v":""},{"$f":"IF(OR(Selection_Hide2!G133=0, Selection_Hide2!G133=\"\"), \"\", Selection_Hide2!G133)","v":""},{"$f":"IF(OR(Selection_Hide2!H133=0, Selection_Hide2!H133=\"\"), \"\", Selection_Hide2!H133)","v":""},{"$f":"IF(OR(Selection_Hide2!I133=0, Selection_Hide2!I133=\"\"), \"\", Selection_Hide2!I133)","v":""},{"$f":"IF(OR(Selection_Hide2!J133=0, Selection_Hide2!J133=\"\"), \"\", Selection_Hide2!J133)","v":""},{"$f":"IF(OR(Selection_Hide2!K133=0, Selection_Hide2!K133=\"\"), \"\", Selection_Hide2!K133)","v":""},{"$f":"IF(OR(Selection_Hide2!L133=0, Selection_Hide2!L133=\"\"), \"\", Selection_Hide2!L133)","v":""},{"$f":"IF(OR(Selection_Hide2!M133=0, Selection_Hide2!M133=\"\"), \"\", Selection_Hide2!M133)","v":""},{"$f":"IF(OR(Selection_Hide2!N133=0, Selection_Hide2!N133=\"\"), \"\", Selection_Hide2!N133)","v":""},{"$f":"IF(OR(Selection_Hide2!O133=0, Selection_Hide2!O133=\"\"), \"\", Selection_Hide2!O133)","v":""},{"$f":"IF(OR(Selection_Hide2!P133=0, Selection_Hide2!P133=\"\"), \"\", Selection_Hide2!P133)","v":""},{"$f":"IF(OR(Selection_Hide2!Q133=0, Selection_Hide2!Q133=\"\"), \"\", Selection_Hide2!Q133)","v":""},{"$f":"IF(OR(Selection_Hide2!R133=0, Selection_Hide2!R133=\"\"), \"\", Selection_Hide2!R133)","v":""},{"$f":"IF(OR(Selection_Hide2!S133=0, Selection_Hide2!S133=\"\"), \"\", Selection_Hide2!S133)","v":""},{"$f":"IF(OR(Selection_Hide2!T133=0, Selection_Hide2!T133=\"\"), \"\", Selection_Hide2!T133)","v":""},{"$f":"IF(OR(Selection_Hide2!U133=0, Selection_Hide2!U133=\"\"), \"\", Selection_Hide2!U133)","v":""},{"$f":"IF(OR(Selection_Hide2!V133=0, Selection_Hide2!V133=\"\"), \"\", Selection_Hide2!V133)","v":""},{"$f":"IF(OR(Selection_Hide2!W133=0, Selection_Hide2!W133=\"\"), \"\", Selection_Hide2!W133)","v":""},{"$f":"IF(OR(Selection_Hide2!X133=0, Selection_Hide2!X133=\"\"), \"\", Selection_Hide2!X133)","v":""},{"$f":"IF(OR(Selection_Hide2!Y133=0, Selection_Hide2!Y133=\"\"), \"\", Selection_Hide2!Y133)","v":""},{"$f":"IF(OR(Selection_Hide2!Z133=0, Selection_Hide2!Z133=\"\"), \"\", Selection_Hide2!Z133)","v":""},{"$f":"IF(OR(Selection_Hide2!AA133=0, Selection_Hide2!AA133=\"\"), \"\", Selection_Hide2!AA133)","v":""},{"$f":"IF(OR(Selection_Hide2!AB133=0, Selection_Hide2!AB133=\"\"), \"\", Selection_Hide2!AB133)","v":""}]
[{"$f":"IF(OR(Selection_Hide2!A134=0, Selection_Hide2!A134=\"\"), \"\", Selection_Hide2!A134)","v":""},{"$f":"IF(OR(Selection_Hide2!B134=0, Selection_Hide2!B134=\"\"), \"\", Selection_Hide2!B134)","v":""},{"$f":"IF(OR(Selection_Hide2!C134=0, Selection_Hide2!C134=\"\"), \"\", Selection_Hide2!C134)","v":""},{"$f":"IF(OR(Selection_Hide2!D134=0, Selection_Hide2!D134=\"\"), \"\", Selection_Hide2!D134)","v":""},{"$f":"IF(OR(Selection_Hide2!E134=0, Selection_Hide2!E134=\"\"), \"\", Selection_Hide2!E134)","v":""},{"$f":"IF(OR(Selection_Hide2!F134=0, Selection_Hide2!F134=\"\"), \"\", Selection_Hide2!F134)","v":""},{"$f":"IF(OR(Selection_Hide2!G134=0, Selection_Hide2!G134=\"\"), \"\", Selection_Hide2!G134)","v":""},{"$f":"IF(OR(Selection_Hide2!H134=0, Selection_Hide2!H134=\"\"), \"\", Selection_Hide2!H134)","v":""},{"$f":"IF(OR(Selection_Hide2!I134=0, Selection_Hide2!I134=\"\"), \"\", Selection_Hide2!I134)","v":""},{"$f":"IF(OR(Selection_Hide2!J134=0, Selection_Hide2!J134=\"\"), \"\", Selection_Hide2!J134)","v":""},{"$f":"IF(OR(Selection_Hide2!K134=0, Selection_Hide2!K134=\"\"), \"\", Selection_Hide2!K134)","v":""},{"$f":"IF(OR(Selection_Hide2!L134=0, Selection_Hide2!L134=\"\"), \"\", Selection_Hide2!L134)","v":""},{"$f":"IF(OR(Selection_Hide2!M134=0, Selection_Hide2!M134=\"\"), \"\", Selection_Hide2!M134)","v":""},{"$f":"IF(OR(Selection_Hide2!N134=0, Selection_Hide2!N134=\"\"), \"\", Selection_Hide2!N134)","v":""},{"$f":"IF(OR(Selection_Hide2!O134=0, Selection_Hide2!O134=\"\"), \"\", Selection_Hide2!O134)","v":""},{"$f":"IF(OR(Selection_Hide2!P134=0, Selection_Hide2!P134=\"\"), \"\", Selection_Hide2!P134)","v":""},{"$f":"IF(OR(Selection_Hide2!Q134=0, Selection_Hide2!Q134=\"\"), \"\", Selection_Hide2!Q134)","v":""},{"$f":"IF(OR(Selection_Hide2!R134=0, Selection_Hide2!R134=\"\"), \"\", Selection_Hide2!R134)","v":""},{"$f":"IF(OR(Selection_Hide2!S134=0, Selection_Hide2!S134=\"\"), \"\", Selection_Hide2!S134)","v":""},{"$f":"IF(OR(Selection_Hide2!T134=0, Selection_Hide2!T134=\"\"), \"\", Selection_Hide2!T134)","v":""},{"$f":"IF(OR(Selection_Hide2!U134=0, Selection_Hide2!U134=\"\"), \"\", Selection_Hide2!U134)","v":""},{"$f":"IF(OR(Selection_Hide2!V134=0, Selection_Hide2!V134=\"\"), \"\", Selection_Hide2!V134)","v":""},{"$f":"IF(OR(Selection_Hide2!W134=0, Selection_Hide2!W134=\"\"), \"\", Selection_Hide2!W134)","v":""},{"$f":"IF(OR(Selection_Hide2!X134=0, Selection_Hide2!X134=\"\"), \"\", Selection_Hide2!X134)","v":""},{"$f":"IF(OR(Selection_Hide2!Y134=0, Selection_Hide2!Y134=\"\"), \"\", Selection_Hide2!Y134)","v":""},{"$f":"IF(OR(Selection_Hide2!Z134=0, Selection_Hide2!Z134=\"\"), \"\", Selection_Hide2!Z134)","v":""},{"$f":"IF(OR(Selection_Hide2!AA134=0, Selection_Hide2!AA134=\"\"), \"\", Selection_Hide2!AA134)","v":""},{"$f":"IF(OR(Selection_Hide2!AB134=0, Selection_Hide2!AB134=\"\"), \"\", Selection_Hide2!AB134)","v":""}]
[{"$f":"IF(OR(Selection_Hide2!A135=0, Selection_Hide2!A135=\"\"), \"\", Selection_Hide2!A135)","v":""},{"$f":"IF(OR(Selection_Hide2!B135=0, Selection_Hide2!B135=\"\"), \"\", Selection_Hide2!B135)","v":""},{"$f":"IF(OR(Selection_Hide2!C135=0, Selection_Hide2!C135=\"\"), \"\", Selection_Hide2!C135)","v":""},{"$f":"IF(OR(Selection_Hide2!D135=0, Selection_Hide2!D135=\"\"), \"\", Selection_Hide2!D135)","v":""},{"$f":"IF(OR(Selection_Hide2!E135=0, Selection_Hide2!E135=\"\"), \"\", Selection_Hide2!E135)","v":""},{"$f":"IF(OR(Selection_Hide2!F135=0, Selection_Hide2!F135=\"\"), \"\", Selection_Hide2!F135)","v":""},{"$f":"IF(OR(Selection_Hide2!G135=0, Selection_Hide2!G135=\"\"), \"\", Selection_Hide2!G135)","v":""},{"$f":"IF(OR(Selection_Hide2!H135=0, Selection_Hide2!H135=\"\"), \"\", Selection_Hide2!H135)","v":""},{"$f":"IF(OR(Selection_Hide2!I135=0, Selection_Hide2!I135=\"\"), \"\", Selection_Hide2!I135)","v":""},{"$f":"IF(OR(Selection_Hide2!J135=0, Selection_Hide2!J135=\"\"), \"\", Selection_Hide2!J135)","v":""},{"$f":"IF(OR(Selection_Hide2!K135=0, Selection_Hide2!K135=\"\"), \"\", Selection_Hide2!K135)","v":""},{"$f":"IF(OR(Selection_Hide2!L135=0, Selection_Hide2!L135=\"\"), \"\", Selection_Hide2!L135)","v":""},{"$f":"IF(OR(Selection_Hide2!M135=0, Selection_Hide2!M135=\"\"), \"\", Selection_Hide2!M135)","v":""},{"$f":"IF(OR(Selection_Hide2!N135=0, Selection_Hide2!N135=\"\"), \"\", Selection_Hide2!N135)","v":""},{"$f":"IF(OR(Selection_Hide2!O135=0, Selection_Hide2!O135=\"\"), \"\", Selection_Hide2!O135)","v":""},{"$f":"IF(OR(Selection_Hide2!P135=0, Selection_Hide2!P135=\"\"), \"\", Selection_Hide2!P135)","v":""},{"$f":"IF(OR(Selection_Hide2!Q135=0, Selection_Hide2!Q135=\"\"), \"\", Selection_Hide2!Q135)","v":""},{"$f":"IF(OR(Selection_Hide2!R135=0, Selection_Hide2!R135=\"\"), \"\", Selection_Hide2!R135)","v":""},{"$f":"IF(OR(Selection_Hide2!S135=0, Selection_Hide2!S135=\"\"), \"\", Selection_Hide2!S135)","v":""},{"$f":"IF(OR(Selection_Hide2!T135=0, Selection_Hide2!T135=\"\"), \"\", Selection_Hide2!T135)","v":""},{"$f":"IF(OR(Selection_Hide2!U135=0, Selection_Hide2!U135=\"\"), \"\", Selection_Hide2!U135)","v":""},{"$f":"IF(OR(Selection_Hide2!V135=0, Selection_Hide2!V135=\"\"), \"\", Selection_Hide2!V135)","v":""},{"$f":"IF(OR(Selection_Hide2!W135=0, Selection_Hide2!W135=\"\"), \"\", Selection_Hide2!W135)","v":""},{"$f":"IF(OR(Selection_Hide2!X135=0, Selection_Hide2!X135=\"\"), \"\", Selection_Hide2!X135)","v":""},{"$f":"IF(OR(Selection_Hide2!Y135=0, Selection_Hide2!Y135=\"\"), \"\", Selection_Hide2!Y135)","v":""},{"$f":"IF(OR(Selection_Hide2!Z135=0, Selection_Hide2!Z135=\"\"), \"\", Selection_Hide2!Z135)","v":""},{"$f":"IF(OR(Selection_Hide2!AA135=0, Selection_Hide2!AA135=\"\"), \"\", Selection_Hide2!AA135)","v":""},{"$f":"IF(OR(Selection_Hide2!AB135=0, Selection_Hide2!AB135=\"\"), \"\", Selection_Hide2!AB135)","v":""}]
[{"$f":"IF(OR(Selection_Hide2!A136=0, Selection_Hide2!A136=\"\"), \"\", Selection_Hide2!A136)","v":""},{"$f":"IF(OR(Selection_Hide2!B136=0, Selection_Hide2!B136=\"\"), \"\", Selection_Hide2!B136)","v":""},{"$f":"IF(OR(Selection_Hide2!C136=0, Selection_Hide2!C136=\"\"), \"\", Selection_Hide2!C136)","v":""},{"$f":"IF(OR(Selection_Hide2!D136=0, Selection_Hide2!D136=\"\"), \"\", Selection_Hide2!D136)","v":""},{"$f":"IF(OR(Selection_Hide2!E136=0, Selection_Hide2!E136=\"\"), \"\", Selection_Hide2!E136)","v":""},{"$f":"IF(OR(Selection_Hide2!F136=0, Selection_Hide2!F136=\"\"), \"\", Selection_Hide2!F136)","v":""},{"$f":"IF(OR(Selection_Hide2!G136=0, Selection_Hide2!G136=\"\"), \"\", Selection_Hide2!G136)","v":""},{"$f":"IF(OR(Selection_Hide2!H136=0, Selection_Hide2!H136=\"\"), \"\", Selection_Hide2!H136)","v":""},{"$f":"IF(OR(Selection_Hide2!I136=0, Selection_Hide2!I136=\"\"), \"\", Selection_Hide2!I136)","v":""},{"$f":"IF(OR(Selection_Hide2!J136=0, Selection_Hide2!J136=\"\"), \"\", Selection_Hide2!J136)","v":""},{"$f":"IF(OR(Selection_Hide2!K136=0, Selection_Hide2!K136=\"\"), \"\", Selection_Hide2!K136)","v":""},{"$f":"IF(OR(Selection_Hide2!L136=0, Selection_Hide2!L136=\"\"), \"\", Selection_Hide2!L136)","v":""},{"$f":"IF(OR(Selection_Hide2!M136=0, Selection_Hide2!M136=\"\"), \"\", Selection_Hide2!M136)","v":""},{"$f":"IF(OR(Selection_Hide2!N136=0, Selection_Hide2!N136=\"\"), \"\", Selection_Hide2!N136)","v":""},{"$f":"IF(OR(Selection_Hide2!O136=0, Selection_Hide2!O136=\"\"), \"\", Selection_Hide2!O136)","v":""},{"$f":"IF(OR(Selection_Hide2!P136=0, Selection_Hide2!P136=\"\"), \"\", Selection_Hide2!P136)","v":""},{"$f":"IF(OR(Selection_Hide2!Q136=0, Selection_Hide2!Q136=\"\"), \"\", Selection_Hide2!Q136)","v":""},{"$f":"IF(OR(Selection_Hide2!R136=0, Selection_Hide2!R136=\"\"), \"\", Selection_Hide2!R136)","v":""},{"$f":"IF(OR(Selection_Hide2!S136=0, Selection_Hide2!S136=\"\"), \"\", Selection_Hide2!S136)","v":""},{"$f":"IF(OR(Selection_Hide2!T136=0, Selection_Hide2!T136=\"\"), \"\", Selection_Hide2!T136)","v":""},{"$f":"IF(OR(Selection_Hide2!U136=0, Selection_Hide2!U136=\"\"), \"\", Selection_Hide2!U136)","v":""},{"$f":"IF(OR(Selection_Hide2!V136=0, Selection_Hide2!V136=\"\"), \"\", Selection_Hide2!V136)","v":""},{"$f":"IF(OR(Selection_Hide2!W136=0, Selection_Hide2!W136=\"\"), \"\", Selection_Hide2!W136)","v":""},{"$f":"IF(OR(Selection_Hide2!X136=0, Selection_Hide2!X136=\"\"), \"\", Selection_Hide2!X136)","v":""},{"$f":"IF(OR(Selection_Hide2!Y136=0, Selection_Hide2!Y136=\"\"), \"\", Selection_Hide2!Y136)","v":""},{"$f":"IF(OR(Selection_Hide2!Z136=0, Selection_Hide2!Z136=\"\"), \"\", Selection_Hide2!Z136)","v":""},{"$f":"IF(OR(Selection_Hide2!AA136=0, Selection_Hide2!AA136=\"\"), \"\", Selection_Hide2!AA136)","v":""},{"$f":"IF(OR(Selection_Hide2!AB136=0, Selection_Hide2!AB136=\"\"), \"\", Selection_Hide2!AB136)","v":""}]
[{"$f":"IF(OR(Selection_Hide2!A137=0, Selection_Hide2!A137=\"\"), \"\", Selection_Hide2!A137)","v":""},{"$f":"IF(OR(Selection_Hide2!B137=0, Selection_Hide2!B137=\"\"), \"\", Selection_Hide2!B137)","v":""},{"$f":"IF(OR(Selection_Hide2!C137=0, Selection_Hide2!C137=\"\"), \"\", Selection_Hide2!C137)","v":""},{"$f":"IF(OR(Selection_Hide2!D137=0, Selection_Hide2!D137=\"\"), \"\", Selection_Hide2!D137)","v":""},{"$f":"IF(OR(Selection_Hide2!E137=0, Selection_Hide2!E137=\"\"), \"\", Selection_Hide2!E137)","v":""},{"$f":"IF(OR(Selection_Hide2!F137=0, Selection_Hide2!F137=\"\"), \"\", Selection_Hide2!F137)","v":""},{"$f":"IF(OR(Selection_Hide2!G137=0, Selection_Hide2!G137=\"\"), \"\", Selection_Hide2!G137)","v":""},{"$f":"IF(OR(Selection_Hide2!H137=0, Selection_Hide2!H137=\"\"), \"\", Selection_Hide2!H137)","v":""},{"$f":"IF(OR(Selection_Hide2!I137=0, Selection_Hide2!I137=\"\"), \"\", Selection_Hide2!I137)","v":""},{"$f":"IF(OR(Selection_Hide2!J137=0, Selection_Hide2!J137=\"\"), \"\", Selection_Hide2!J137)","v":""},{"$f":"IF(OR(Selection_Hide2!K137=0, Selection_Hide2!K137=\"\"), \"\", Selection_Hide2!K137)","v":""},{"$f":"IF(OR(Selection_Hide2!L137=0, Selection_Hide2!L137=\"\"), \"\", Selection_Hide2!L137)","v":""},{"$f":"IF(OR(Selection_Hide2!M137=0, Selection_Hide2!M137=\"\"), \"\", Selection_Hide2!M137)","v":""},{"$f":"IF(OR(Selection_Hide2!N137=0, Selection_Hide2!N137=\"\"), \"\", Selection_Hide2!N137)","v":""},{"$f":"IF(OR(Selection_Hide2!O137=0, Selection_Hide2!O137=\"\"), \"\", Selection_Hide2!O137)","v":""},{"$f":"IF(OR(Selection_Hide2!P137=0, Selection_Hide2!P137=\"\"), \"\", Selection_Hide2!P137)","v":""},{"$f":"IF(OR(Selection_Hide2!Q137=0, Selection_Hide2!Q137=\"\"), \"\", Selection_Hide2!Q137)","v":""},{"$f":"IF(OR(Selection_Hide2!R137=0, Selection_Hide2!R137=\"\"), \"\", Selection_Hide2!R137)","v":""},{"$f":"IF(OR(Selection_Hide2!S137=0, Selection_Hide2!S137=\"\"), \"\", Selection_Hide2!S137)","v":""},{"$f":"IF(OR(Selection_Hide2!T137=0, Selection_Hide2!T137=\"\"), \"\", Selection_Hide2!T137)","v":""},{"$f":"IF(OR(Selection_Hide2!U137=0, Selection_Hide2!U137=\"\"), \"\", Selection_Hide2!U137)","v":""},{"$f":"IF(OR(Selection_Hide2!V137=0, Selection_Hide2!V137=\"\"), \"\", Selection_Hide2!V137)","v":""},{"$f":"IF(OR(Selection_Hide2!W137=0, Selection_Hide2!W137=\"\"), \"\", Selection_Hide2!W137)","v":""},{"$f":"IF(OR(Selection_Hide2!X137=0, Selection_Hide2!X137=\"\"), \"\", Selection_Hide2!X137)","v":""},{"$f":"IF(OR(Selection_Hide2!Y137=0, Selection_Hide2!Y137=\"\"), \"\", Selection_Hide2!Y137)","v":""},{"$f":"IF(OR(Selection_Hide2!Z137=0, Selection_Hide2!Z137=\"\"), \"\", Selection_Hide2!Z137)","v":""},{"$f":"IF(OR(Selection_Hide2!AA137=0, Selection_Hide2!AA137=\"\"), \"\", Selection_Hide2!AA137)","v":""},{"$f":"IF(OR(Selection_Hide2!AB137=0, Selection_Hide2!AB137=\"\"), \"\", Selection_Hide2!AB137)","v":""}]
[{"$f":"IF(OR(Selection_Hide2!A138=0, Selection_Hide2!A138=\"\"), \"\", Selection_Hide2!A138)","v":""},{"$f":"IF(OR(Selection_Hide2!B138=0, Selection_Hide2!B138=\"\"), \"\", Selection_Hide2!B138)","v":""},{"$f":"IF(OR(Selection_Hide2!C138=0, Selection_Hide2!C138=\"\"), \"\", Selection_Hide2!C138)","v":""},{"$f":"IF(OR(Selection_Hide2!D138=0, Selection_Hide2!D138=\"\"), \"\", Selection_Hide2!D138)","v":""},{"$f":"IF(OR(Selection_Hide2!E138=0, Selection_Hide2!E138=\"\"), \"\", Selection_Hide2!E138)","v":""},{"$f":"IF(OR(Selection_Hide2!F138=0, Selection_Hide2!F138=\"\"), \"\", Selection_Hide2!F138)","v":""},{"$f":"IF(OR(Selection_Hide2!G138=0, Selection_Hide2!G138=\"\"), \"\", Selection_Hide2!G138)","v":""},{"$f":"IF(OR(Selection_Hide2!H138=0, Selection_Hide2!H138=\"\"), \"\", Selection_Hide2!H138)","v":""},{"$f":"IF(OR(Selection_Hide2!I138=0, Selection_Hide2!I138=\"\"), \"\", Selection_Hide2!I138)","v":""},{"$f":"IF(OR(Selection_Hide2!J138=0, Selection_Hide2!J138=\"\"), \"\", Selection_Hide2!J138)","v":""},{"$f":"IF(OR(Selection_Hide2!K138=0, Selection_Hide2!K138=\"\"), \"\", Selection_Hide2!K138)","v":""},{"$f":"IF(OR(Selection_Hide2!L138=0, Selection_Hide2!L138=\"\"), \"\", Selection_Hide2!L138)","v":""},{"$f":"IF(OR(Selection_Hide2!M138=0, Selection_Hide2!M138=\"\"), \"\", Selection_Hide2!M138)","v":""},{"$f":"IF(OR(Selection_Hide2!N138=0, Selection_Hide2!N138=\"\"), \"\", Selection_Hide2!N138)","v":""},{"$f":"IF(OR(Selection_Hide2!O138=0, Selection_Hide2!O138=\"\"), \"\", Selection_Hide2!O138)","v":""},{"$f":"IF(OR(Selection_Hide2!P138=0, Selection_Hide2!P138=\"\"), \"\", Selection_Hide2!P138)","v":""},{"$f":"IF(OR(Selection_Hide2!Q138=0, Selection_Hide2!Q138=\"\"), \"\", Selection_Hide2!Q138)","v":""},{"$f":"IF(OR(Selection_Hide2!R138=0, Selection_Hide2!R138=\"\"), \"\", Selection_Hide2!R138)","v":""},{"$f":"IF(OR(Selection_Hide2!S138=0, Selection_Hide2!S138=\"\"), \"\", Selection_Hide2!S138)","v":""},{"$f":"IF(OR(Selection_Hide2!T138=0, Selection_Hide2!T138=\"\"), \"\", Selection_Hide2!T138)","v":""},{"$f":"IF(OR(Selection_Hide2!U138=0, Selection_Hide2!U138=\"\"), \"\", Selection_Hide2!U138)","v":""},{"$f":"IF(OR(Selection_Hide2!V138=0, Selection_Hide2!V138=\"\"), \"\", Selection_Hide2!V138)","v":""},{"$f":"IF(OR(Selection_Hide2!W138=0, Selection_Hide2!W138=\"\"), \"\", Selection_Hide2!W138)","v":""},{"$f":"IF(OR(Selection_Hide2!X138=0, Selection_Hide2!X138=\"\"), \"\", Selection_Hide2!X138)","v":""},{"$f":"IF(OR(Selection_Hide2!Y138=0, Selection_Hide2!Y138=\"\"), \"\", Selection_Hide2!Y138)","v":""},{"$f":"IF(OR(Selection_Hide2!Z138=0, Selection_Hide2!Z138=\"\"), \"\", Selection_Hide2!Z138)","v":""},{"$f":"IF(OR(Selection_Hide2!AA138=0, Selection_Hide2!AA138=\"\"), \"\", Selection_Hide2!AA138)","v":""},{"$f":"IF(OR(Selection_Hide2!AB138=0, Selection_Hide2!AB138=\"\"), \"\", Selection_Hide2!AB138)","v":""}]
[{"$f":"IF(OR(Selection_Hide2!A139=0, Selection_Hide2!A139=\"\"), \"\", Selection_Hide2!A139)","v":""},{"$f":"IF(OR(Selection_Hide2!B139=0, Selection_Hide2!B139=\"\"), \"\", Selection_Hide2!B139)","v":""},{"$f":"IF(OR(Selection_Hide2!C139=0, Selection_Hide2!C139=\"\"), \"\", Selection_Hide2!C139)","v":""},{"$f":"IF(OR(Selection_Hide2!D139=0, Selection_Hide2!D139=\"\"), \"\", Selection_Hide2!D139)","v":""},{"$f":"IF(OR(Selection_Hide2!E139=0, Selection_Hide2!E139=\"\"), \"\", Selection_Hide2!E139)","v":""},{"$f":"IF(OR(Selection_Hide2!F139=0, Selection_Hide2!F139=\"\"), \"\", Selection_Hide2!F139)","v":""},{"$f":"IF(OR(Selection_Hide2!G139=0, Selection_Hide2!G139=\"\"), \"\", Selection_Hide2!G139)","v":""},{"$f":"IF(OR(Selection_Hide2!H139=0, Selection_Hide2!H139=\"\"), \"\", Selection_Hide2!H139)","v":""},{"$f":"IF(OR(Selection_Hide2!I139=0, Selection_Hide2!I139=\"\"), \"\", Selection_Hide2!I139)","v":""},{"$f":"IF(OR(Selection_Hide2!J139=0, Selection_Hide2!J139=\"\"), \"\", Selection_Hide2!J139)","v":""},{"$f":"IF(OR(Selection_Hide2!K139=0, Selection_Hide2!K139=\"\"), \"\", Selection_Hide2!K139)","v":""},{"$f":"IF(OR(Selection_Hide2!L139=0, Selection_Hide2!L139=\"\"), \"\", Selection_Hide2!L139)","v":""},{"$f":"IF(OR(Selection_Hide2!M139=0, Selection_Hide2!M139=\"\"), \"\", Selection_Hide2!M139)","v":""},{"$f":"IF(OR(Selection_Hide2!N139=0, Selection_Hide2!N139=\"\"), \"\", Selection_Hide2!N139)","v":""},{"$f":"IF(OR(Selection_Hide2!O139=0, Selection_Hide2!O139=\"\"), \"\", Selection_Hide2!O139)","v":""},{"$f":"IF(OR(Selection_Hide2!P139=0, Selection_Hide2!P139=\"\"), \"\", Selection_Hide2!P139)","v":""},{"$f":"IF(OR(Selection_Hide2!Q139=0, Selection_Hide2!Q139=\"\"), \"\", Selection_Hide2!Q139)","v":""},{"$f":"IF(OR(Selection_Hide2!R139=0, Selection_Hide2!R139=\"\"), \"\", Selection_Hide2!R139)","v":""},{"$f":"IF(OR(Selection_Hide2!S139=0, Selection_Hide2!S139=\"\"), \"\", Selection_Hide2!S139)","v":""},{"$f":"IF(OR(Selection_Hide2!T139=0, Selection_Hide2!T139=\"\"), \"\", Selection_Hide2!T139)","v":""},{"$f":"IF(OR(Selection_Hide2!U139=0, Selection_Hide2!U139=\"\"), \"\", Selection_Hide2!U139)","v":""},{"$f":"IF(OR(Selection_Hide2!V139=0, Selection_Hide2!V139=\"\"), \"\", Selection_Hide2!V139)","v":""},{"$f":"IF(OR(Selection_Hide2!W139=0, Selection_Hide2!W139=\"\"), \"\", Selection_Hide2!W139)","v":""},{"$f":"IF(OR(Selection_Hide2!X139=0, Selection_Hide2!X139=\"\"), \"\", Selection_Hide2!X139)","v":""},{"$f":"IF(OR(Selection_Hide2!Y139=0, Selection_Hide2!Y139=\"\"), \"\", Selection_Hide2!Y139)","v":""},{"$f":"IF(OR(Selection_Hide2!Z139=0, Selection_Hide2!Z139=\"\"), \"\", Selection_Hide2!Z139)","v":""},{"$f":"IF(OR(Selection_Hide2!AA139=0, Selection_Hide2!AA139=\"\"), \"\", Selection_Hide2!AA139)","v":""},{"$f":"IF(OR(Selection_Hide2!AB139=0, Selection_Hide2!AB139=\"\"), \"\", Selection_Hide2!AB139)","v":""}]
[{"$f":"IF(OR(Selection_Hide2!A140=0, Selection_Hide2!A140=\"\"), \"\", Selection_Hide2!A140)","v":""},{"$f":"IF(OR(Selection_Hide2!B140=0, Selection_Hide2!B140=\"\"), \"\", Selection_Hide2!B140)","v":""},{"$f":"IF(OR(Selection_Hide2!C140=0, Selection_Hide2!C140=\"\"), \"\", Selection_Hide2!C140)","v":""},{"$f":"IF(OR(Selection_Hide2!D140=0, Selection_Hide2!D140=\"\"), \"\", Selection_Hide2!D140)","v":""},{"$f":"IF(OR(Selection_Hide2!E140=0, Selection_Hide2!E140=\"\"), \"\", Selection_Hide2!E140)","v":""},{"$f":"IF(OR(Selection_Hide2!F140=0, Selection_Hide2!F140=\"\"), \"\", Selection_Hide2!F140)","v":""},{"$f":"IF(OR(Selection_Hide2!G140=0, Selection_Hide2!G140=\"\"), \"\", Selection_Hide2!G140)","v":""},{"$f":"IF(OR(Selection_Hide2!H140=0, Selection_Hide2!H140=\"\"), \"\", Selection_Hide2!H140)","v":""},{"$f":"IF(OR(Selection_Hide2!I140=0, Selection_Hide2!I140=\"\"), \"\", Selection_Hide2!I140)","v":""},{"$f":"IF(OR(Selection_Hide2!J140=0, Selection_Hide2!J140=\"\"), \"\", Selection_Hide2!J140)","v":""},{"$f":"IF(OR(Selection_Hide2!K140=0, Selection_Hide2!K140=\"\"), \"\", Selection_Hide2!K140)","v":""},{"$f":"IF(OR(Selection_Hide2!L140=0, Selection_Hide2!L140=\"\"), \"\", Selection_Hide2!L140)","v":""},{"$f":"IF(OR(Selection_Hide2!M140=0, Selection_Hide2!M140=\"\"), \"\", Selection_Hide2!M140)","v":""},{"$f":"IF(OR(Selection_Hide2!N140=0, Selection_Hide2!N140=\"\"), \"\", Selection_Hide2!N140)","v":""},{"$f":"IF(OR(Selection_Hide2!O140=0, Selection_Hide2!O140=\"\"), \"\", Selection_Hide2!O140)","v":""},{"$f":"IF(OR(Selection_Hide2!P140=0, Selection_Hide2!P140=\"\"), \"\", Selection_Hide2!P140)","v":""},{"$f":"IF(OR(Selection_Hide2!Q140=0, Selection_Hide2!Q140=\"\"), \"\", Selection_Hide2!Q140)","v":""},{"$f":"IF(OR(Selection_Hide2!R140=0, Selection_Hide2!R140=\"\"), \"\", Selection_Hide2!R140)","v":""},{"$f":"IF(OR(Selection_Hide2!S140=0, Selection_Hide2!S140=\"\"), \"\", Selection_Hide2!S140)","v":""},{"$f":"IF(OR(Selection_Hide2!T140=0, Selection_Hide2!T140=\"\"), \"\", Selection_Hide2!T140)","v":""},{"$f":"IF(OR(Selection_Hide2!U140=0, Selection_Hide2!U140=\"\"), \"\", Selection_Hide2!U140)","v":""},{"$f":"IF(OR(Selection_Hide2!V140=0, Selection_Hide2!V140=\"\"), \"\", Selection_Hide2!V140)","v":""},{"$f":"IF(OR(Selection_Hide2!W140=0, Selection_Hide2!W140=\"\"), \"\", Selection_Hide2!W140)","v":""},{"$f":"IF(OR(Selection_Hide2!X140=0, Selection_Hide2!X140=\"\"), \"\", Selection_Hide2!X140)","v":""},{"$f":"IF(OR(Selection_Hide2!Y140=0, Selection_Hide2!Y140=\"\"), \"\", Selection_Hide2!Y140)","v":""},{"$f":"IF(OR(Selection_Hide2!Z140=0, Selection_Hide2!Z140=\"\"), \"\", Selection_Hide2!Z140)","v":""},{"$f":"IF(OR(Selection_Hide2!AA140=0, Selection_Hide2!AA140=\"\"), \"\", Selection_Hide2!AA140)","v":""},{"$f":"IF(OR(Selection_Hide2!AB140=0, Selection_Hide2!AB140=\"\"), \"\", Selection_Hide2!AB140)","v":""}]
[{"$f":"IF(OR(Selection_Hide2!A141=0, Selection_Hide2!A141=\"\"), \"\", Selection_Hide2!A141)","v":""},{"$f":"IF(OR(Selection_Hide2!B141=0, Selection_Hide2!B141=\"\"), \"\", Selection_Hide2!B141)","v":""},{"$f":"IF(OR(Selection_Hide2!C141=0, Selection_Hide2!C141=\"\"), \"\", Selection_Hide2!C141)","v":""},{"$f":"IF(OR(Selection_Hide2!D141=0, Selection_Hide2!D141=\"\"), \"\", Selection_Hide2!D141)","v":""},{"$f":"IF(OR(Selection_Hide2!E141=0, Selection_Hide2!E141=\"\"), \"\", Selection_Hide2!E141)","v":""},{"$f":"IF(OR(Selection_Hide2!F141=0, Selection_Hide2!F141=\"\"), \"\", Selection_Hide2!F141)","v":""},{"$f":"IF(OR(Selection_Hide2!G141=0, Selection_Hide2!G141=\"\"), \"\", Selection_Hide2!G141)","v":""},{"$f":"IF(OR(Selection_Hide2!H141=0, Selection_Hide2!H141=\"\"), \"\", Selection_Hide2!H141)","v":""},{"$f":"IF(OR(Selection_Hide2!I141=0, Selection_Hide2!I141=\"\"), \"\", Selection_Hide2!I141)","v":""},{"$f":"IF(OR(Selection_Hide2!J141=0, Selection_Hide2!J141=\"\"), \"\", Selection_Hide2!J141)","v":""},{"$f":"IF(OR(Selection_Hide2!K141=0, Selection_Hide2!K141=\"\"), \"\", Selection_Hide2!K141)","v":""},{"$f":"IF(OR(Selection_Hide2!L141=0, Selection_Hide2!L141=\"\"), \"\", Selection_Hide2!L141)","v":""},{"$f":"IF(OR(Selection_Hide2!M141=0, Selection_Hide2!M141=\"\"), \"\", Selection_Hide2!M141)","v":""},{"$f":"IF(OR(Selection_Hide2!N141=0, Selection_Hide2!N141=\"\"), \"\", Selection_Hide2!N141)","v":""},{"$f":"IF(OR(Selection_Hide2!O141=0, Selection_Hide2!O141=\"\"), \"\", Selection_Hide2!O141)","v":""},{"$f":"IF(OR(Selection_Hide2!P141=0, Selection_Hide2!P141=\"\"), \"\", Selection_Hide2!P141)","v":""},{"$f":"IF(OR(Selection_Hide2!Q141=0, Selection_Hide2!Q141=\"\"), \"\", Selection_Hide2!Q141)","v":""},{"$f":"IF(OR(Selection_Hide2!R141=0, Selection_Hide2!R141=\"\"), \"\", Selection_Hide2!R141)","v":""},{"$f":"IF(OR(Selection_Hide2!S141=0, Selection_Hide2!S141=\"\"), \"\", Selection_Hide2!S141)","v":""},{"$f":"IF(OR(Selection_Hide2!T141=0, Selection_Hide2!T141=\"\"), \"\", Selection_Hide2!T141)","v":""},{"$f":"IF(OR(Selection_Hide2!U141=0, Selection_Hide2!U141=\"\"), \"\", Selection_Hide2!U141)","v":""},{"$f":"IF(OR(Selection_Hide2!V141=0, Selection_Hide2!V141=\"\"), \"\", Selection_Hide2!V141)","v":""},{"$f":"IF(OR(Selection_Hide2!W141=0, Selection_Hide2!W141=\"\"), \"\", Selection_Hide2!W141)","v":""},{"$f":"IF(OR(Selection_Hide2!X141=0, Selection_Hide2!X141=\"\"), \"\", Selection_Hide2!X141)","v":""},{"$f":"IF(OR(Selection_Hide2!Y141=0, Selection_Hide2!Y141=\"\"), \"\", Selection_Hide2!Y141)","v":""},{"$f":"IF(OR(Selection_Hide2!Z141=0, Selection_Hide2!Z141=\"\"), \"\", Selection_Hide2!Z141)","v":""},{"$f":"IF(OR(Selection_Hide2!AA141=0, Selection_Hide2!AA141=\"\"), \"\", Selection_Hide2!AA141)","v":""},{"$f":"IF(OR(Selection_Hide2!AB141=0, Selection_Hide2!AB141=\"\"), \"\", Selection_Hide2!AB141)","v":""}]
[{"$f":"IF(OR(Selection_Hide2!A142=0, Selection_Hide2!A142=\"\"), \"\", Selection_Hide2!A142)","v":""},{"$f":"IF(OR(Selection_Hide2!B142=0, Selection_Hide2!B142=\"\"), \"\", Selection_Hide2!B142)","v":""},{"$f":"IF(OR(Selection_Hide2!C142=0, Selection_Hide2!C142=\"\"), \"\", Selection_Hide2!C142)","v":""},{"$f":"IF(OR(Selection_Hide2!D142=0, Selection_Hide2!D142=\"\"), \"\", Selection_Hide2!D142)","v":""},{"$f":"IF(OR(Selection_Hide2!E142=0, Selection_Hide2!E142=\"\"), \"\", Selection_Hide2!E142)","v":""},{"$f":"IF(OR(Selection_Hide2!F142=0, Selection_Hide2!F142=\"\"), \"\", Selection_Hide2!F142)","v":""},{"$f":"IF(OR(Selection_Hide2!G142=0, Selection_Hide2!G142=\"\"), \"\", Selection_Hide2!G142)","v":""},{"$f":"IF(OR(Selection_Hide2!H142=0, Selection_Hide2!H142=\"\"), \"\", Selection_Hide2!H142)","v":""},{"$f":"IF(OR(Selection_Hide2!I142=0, Selection_Hide2!I142=\"\"), \"\", Selection_Hide2!I142)","v":""},{"$f":"IF(OR(Selection_Hide2!J142=0, Selection_Hide2!J142=\"\"), \"\", Selection_Hide2!J142)","v":""},{"$f":"IF(OR(Selection_Hide2!K142=0, Selection_Hide2!K142=\"\"), \"\", Selection_Hide2!K142)","v":""},{"$f":"IF(OR(Selection_Hide2!L142=0, Selection_Hide2!L142=\"\"), \"\", Selection_Hide2!L142)","v":""},{"$f":"IF(OR(Selection_Hide2!M142=0, Selection_Hide2!M142=\"\"), \"\", Selection_Hide2!M142)","v":""},{"$f":"IF(OR(Selection_Hide2!N142=0, Selection_Hide2!N142=\"\"), \"\", Selection_Hide2!N142)","v":""},{"$f":"IF(OR(Selection_Hide2!O142=0, Selection_Hide2!O142=\"\"), \"\", Selection_Hide2!O142)","v":""},{"$f":"IF(OR(Selection_Hide2!P142=0, Selection_Hide2!P142=\"\"), \"\", Selection_Hide2!P142)","v":""},{"$f":"IF(OR(Selection_Hide2!Q142=0, Selection_Hide2!Q142=\"\"), \"\", Selection_Hide2!Q142)","v":""},{"$f":"IF(OR(Selection_Hide2!R142=0, Selection_Hide2!R142=\"\"), \"\", Selection_Hide2!R142)","v":""},{"$f":"IF(OR(Selection_Hide2!S142=0, Selection_Hide2!S142=\"\"), \"\", Selection_Hide2!S142)","v":""},{"$f":"IF(OR(Selection_Hide2!T142=0, Selection_Hide2!T142=\"\"), \"\", Selection_Hide2!T142)","v":""},{"$f":"IF(OR(Selection_Hide2!U142=0, Selection_Hide2!U142=\"\"), \"\", Selection_Hide2!U142)","v":""},{"$f":"IF(OR(Selection_Hide2!V142=0, Selection_Hide2!V142=\"\"), \"\", Selection_Hide2!V142)","v":""},{"$f":"IF(OR(Selection_Hide2!W142=0, Selection_Hide2!W142=\"\"), \"\", Selection_Hide2!W142)","v":""},{"$f":"IF(OR(Selection_Hide2!X142=0, Selection_Hide2!X142=\"\"), \"\", Selection_Hide2!X142)","v":""},{"$f":"IF(OR(Selection_Hide2!Y142=0, Selection_Hide2!Y142=\"\"), \"\", Selection_Hide2!Y142)","v":""},{"$f":"IF(OR(Selection_Hide2!Z142=0, Selection_Hide2!Z142=\"\"), \"\", Selection_Hide2!Z142)","v":""},{"$f":"IF(OR(Selection_Hide2!AA142=0, Selection_Hide2!AA142=\"\"), \"\", Selection_Hide2!AA142)","v":""},{"$f":"IF(OR(Selection_Hide2!AB142=0, Selection_Hide2!AB142=\"\"), \"\", Selection_Hide2!AB142)","v":""}]
[{"$f":"IF(OR(Selection_Hide2!A143=0, Selection_Hide2!A143=\"\"), \"\", Selection_Hide2!A143)","v":""},{"$f":"IF(OR(Selection_Hide2!B143=0, Selection_Hide2!B143=\"\"), \"\", Selection_Hide2!B143)","v":""},{"$f":"IF(OR(Selection_Hide2!C143=0, Selection_Hide2!C143=\"\"), \"\", Selection_Hide2!C143)","v":""},{"$f":"IF(OR(Selection_Hide2!D143=0, Selection_Hide2!D143=\"\"), \"\", Selection_Hide2!D143)","v":""},{"$f":"IF(OR(Selection_Hide2!E143=0, Selection_Hide2!E143=\"\"), \"\", Selection_Hide2!E143)","v":""},{"$f":"IF(OR(Selection_Hide2!F143=0, Selection_Hide2!F143=\"\"), \"\", Selection_Hide2!F143)","v":""},{"$f":"IF(OR(Selection_Hide2!G143=0, Selection_Hide2!G143=\"\"), \"\", Selection_Hide2!G143)","v":""},{"$f":"IF(OR(Selection_Hide2!H143=0, Selection_Hide2!H143=\"\"), \"\", Selection_Hide2!H143)","v":""},{"$f":"IF(OR(Selection_Hide2!I143=0, Selection_Hide2!I143=\"\"), \"\", Selection_Hide2!I143)","v":""},{"$f":"IF(OR(Selection_Hide2!J143=0, Selection_Hide2!J143=\"\"), \"\", Selection_Hide2!J143)","v":""},{"$f":"IF(OR(Selection_Hide2!K143=0, Selection_Hide2!K143=\"\"), \"\", Selection_Hide2!K143)","v":""},{"$f":"IF(OR(Selection_Hide2!L143=0, Selection_Hide2!L143=\"\"), \"\", Selection_Hide2!L143)","v":""},{"$f":"IF(OR(Selection_Hide2!M143=0, Selection_Hide2!M143=\"\"), \"\", Selection_Hide2!M143)","v":""},{"$f":"IF(OR(Selection_Hide2!N143=0, Selection_Hide2!N143=\"\"), \"\", Selection_Hide2!N143)","v":""},{"$f":"IF(OR(Selection_Hide2!O143=0, Selection_Hide2!O143=\"\"), \"\", Selection_Hide2!O143)","v":""},{"$f":"IF(OR(Selection_Hide2!P143=0, Selection_Hide2!P143=\"\"), \"\", Selection_Hide2!P143)","v":""},{"$f":"IF(OR(Selection_Hide2!Q143=0, Selection_Hide2!Q143=\"\"), \"\", Selection_Hide2!Q143)","v":""},{"$f":"IF(OR(Selection_Hide2!R143=0, Selection_Hide2!R143=\"\"), \"\", Selection_Hide2!R143)","v":""},{"$f":"IF(OR(Selection_Hide2!S143=0, Selection_Hide2!S143=\"\"), \"\", Selection_Hide2!S143)","v":""},{"$f":"IF(OR(Selection_Hide2!T143=0, Selection_Hide2!T143=\"\"), \"\", Selection_Hide2!T143)","v":""},{"$f":"IF(OR(Selection_Hide2!U143=0, Selection_Hide2!U143=\"\"), \"\", Selection_Hide2!U143)","v":""},{"$f":"IF(OR(Selection_Hide2!V143=0, Selection_Hide2!V143=\"\"), \"\", Selection_Hide2!V143)","v":""},{"$f":"IF(OR(Selection_Hide2!W143=0, Selection_Hide2!W143=\"\"), \"\", Selection_Hide2!W143)","v":""},{"$f":"IF(OR(Selection_Hide2!X143=0, Selection_Hide2!X143=\"\"), \"\", Selection_Hide2!X143)","v":""},{"$f":"IF(OR(Selection_Hide2!Y143=0, Selection_Hide2!Y143=\"\"), \"\", Selection_Hide2!Y143)","v":""},{"$f":"IF(OR(Selection_Hide2!Z143=0, Selection_Hide2!Z143=\"\"), \"\", Selection_Hide2!Z143)","v":""},{"$f":"IF(OR(Selection_Hide2!AA143=0, Selection_Hide2!AA143=\"\"), \"\", Selection_Hide2!AA143)","v":""},{"$f":"IF(OR(Selection_Hide2!AB143=0, Selection_Hide2!AB143=\"\"), \"\", Selection_Hide2!AB143)","v":""}]
[{"$f":"IF(OR(Selection_Hide2!A144=0, Selection_Hide2!A144=\"\"), \"\", Selection_Hide2!A144)","v":""},{"$f":"IF(OR(Selection_Hide2!B144=0, Selection_Hide2!B144=\"\"), \"\", Selection_Hide2!B144)","v":""},{"$f":"IF(OR(Selection_Hide2!C144=0, Selection_Hide2!C144=\"\"), \"\", Selection_Hide2!C144)","v":""},{"$f":"IF(OR(Selection_Hide2!D144=0, Selection_Hide2!D144=\"\"), \"\", Selection_Hide2!D144)","v":""},{"$f":"IF(OR(Selection_Hide2!E144=0, Selection_Hide2!E144=\"\"), \"\", Selection_Hide2!E144)","v":""},{"$f":"IF(OR(Selection_Hide2!F144=0, Selection_Hide2!F144=\"\"), \"\", Selection_Hide2!F144)","v":""},{"$f":"IF(OR(Selection_Hide2!G144=0, Selection_Hide2!G144=\"\"), \"\", Selection_Hide2!G144)","v":""},{"$f":"IF(OR(Selection_Hide2!H144=0, Selection_Hide2!H144=\"\"), \"\", Selection_Hide2!H144)","v":""},{"$f":"IF(OR(Selection_Hide2!I144=0, Selection_Hide2!I144=\"\"), \"\", Selection_Hide2!I144)","v":""},{"$f":"IF(OR(Selection_Hide2!J144=0, Selection_Hide2!J144=\"\"), \"\", Selection_Hide2!J144)","v":""},{"$f":"IF(OR(Selection_Hide2!K144=0, Selection_Hide2!K144=\"\"), \"\", Selection_Hide2!K144)","v":""},{"$f":"IF(OR(Selection_Hide2!L144=0, Selection_Hide2!L144=\"\"), \"\", Selection_Hide2!L144)","v":""},{"$f":"IF(OR(Selection_Hide2!M144=0, Selection_Hide2!M144=\"\"), \"\", Selection_Hide2!M144)","v":""},{"$f":"IF(OR(Selection_Hide2!N144=0, Selection_Hide2!N144=\"\"), \"\", Selection_Hide2!N144)","v":""},{"$f":"IF(OR(Selection_Hide2!O144=0, Selection_Hide2!O144=\"\"), \"\", Selection_Hide2!O144)","v":""},{"$f":"IF(OR(Selection_Hide2!P144=0, Selection_Hide2!P144=\"\"), \"\", Selection_Hide2!P144)","v":""},{"$f":"IF(OR(Selection_Hide2!Q144=0, Selection_Hide2!Q144=\"\"), \"\", Selection_Hide2!Q144)","v":""},{"$f":"IF(OR(Selection_Hide2!R144=0, Selection_Hide2!R144=\"\"), \"\", Selection_Hide2!R144)","v":""},{"$f":"IF(OR(Selection_Hide2!S144=0, Selection_Hide2!S144=\"\"), \"\", Selection_Hide2!S144)","v":""},{"$f":"IF(OR(Selection_Hide2!T144=0, Selection_Hide2!T144=\"\"), \"\", Selection_Hide2!T144)","v":""},{"$f":"IF(OR(Selection_Hide2!U144=0, Selection_Hide2!U144=\"\"), \"\", Selection_Hide2!U144)","v":""},{"$f":"IF(OR(Selection_Hide2!V144=0, Selection_Hide2!V144=\"\"), \"\", Selection_Hide2!V144)","v":""},{"$f":"IF(OR(Selection_Hide2!W144=0, Selection_Hide2!W144=\"\"), \"\", Selection_Hide2!W144)","v":""},{"$f":"IF(OR(Selection_Hide2!X144=0, Selection_Hide2!X144=\"\"), \"\", Selection_Hide2!X144)","v":""},{"$f":"IF(OR(Selection_Hide2!Y144=0, Selection_Hide2!Y144=\"\"), \"\", Selection_Hide2!Y144)","v":""},{"$f":"IF(OR(Selection_Hide2!Z144=0, Selection_Hide2!Z144=\"\"), \"\", Selection_Hide2!Z144)","v":""},{"$f":"IF(OR(Selection_Hide2!AA144=0, Selection_Hide2!AA144=\"\"), \"\", Selection_Hide2!AA144)","v":""},{"$f":"IF(OR(Selection_Hide2!AB144=0, Selection_Hide2!AB144=\"\"), \"\", Selection_Hide2!AB144)","v":""}]
[{"$f":"IF(OR(Selection_Hide2!A145=0, Selection_Hide2!A145=\"\"), \"\", Selection_Hide2!A145)","v":""},{"$f":"IF(OR(Selection_Hide2!B145=0, Selection_Hide2!B145=\"\"), \"\", Selection_Hide2!B145)","v":""},{"$f":"IF(OR(Selection_Hide2!C145=0, Selection_Hide2!C145=\"\"), \"\", Selection_Hide2!C145)","v":""},{"$f":"IF(OR(Selection_Hide2!D145=0, Selection_Hide2!D145=\"\"), \"\", Selection_Hide2!D145)","v":""},{"$f":"IF(OR(Selection_Hide2!E145=0, Selection_Hide2!E145=\"\"), \"\", Selection_Hide2!E145)","v":""},{"$f":"IF(OR(Selection_Hide2!F145=0, Selection_Hide2!F145=\"\"), \"\", Selection_Hide2!F145)","v":""},{"$f":"IF(OR(Selection_Hide2!G145=0, Selection_Hide2!G145=\"\"), \"\", Selection_Hide2!G145)","v":""},{"$f":"IF(OR(Selection_Hide2!H145=0, Selection_Hide2!H145=\"\"), \"\", Selection_Hide2!H145)","v":""},{"$f":"IF(OR(Selection_Hide2!I145=0, Selection_Hide2!I145=\"\"), \"\", Selection_Hide2!I145)","v":""},{"$f":"IF(OR(Selection_Hide2!J145=0, Selection_Hide2!J145=\"\"), \"\", Selection_Hide2!J145)","v":""},{"$f":"IF(OR(Selection_Hide2!K145=0, Selection_Hide2!K145=\"\"), \"\", Selection_Hide2!K145)","v":""},{"$f":"IF(OR(Selection_Hide2!L145=0, Selection_Hide2!L145=\"\"), \"\", Selection_Hide2!L145)","v":""},{"$f":"IF(OR(Selection_Hide2!M145=0, Selection_Hide2!M145=\"\"), \"\", Selection_Hide2!M145)","v":""},{"$f":"IF(OR(Selection_Hide2!N145=0, Selection_Hide2!N145=\"\"), \"\", Selection_Hide2!N145)","v":""},{"$f":"IF(OR(Selection_Hide2!O145=0, Selection_Hide2!O145=\"\"), \"\", Selection_Hide2!O145)","v":""},{"$f":"IF(OR(Selection_Hide2!P145=0, Selection_Hide2!P145=\"\"), \"\", Selection_Hide2!P145)","v":""},{"$f":"IF(OR(Selection_Hide2!Q145=0, Selection_Hide2!Q145=\"\"), \"\", Selection_Hide2!Q145)","v":""},{"$f":"IF(OR(Selection_Hide2!R145=0, Selection_Hide2!R145=\"\"), \"\", Selection_Hide2!R145)","v":""},{"$f":"IF(OR(Selection_Hide2!S145=0, Selection_Hide2!S145=\"\"), \"\", Selection_Hide2!S145)","v":""},{"$f":"IF(OR(Selection_Hide2!T145=0, Selection_Hide2!T145=\"\"), \"\", Selection_Hide2!T145)","v":""},{"$f":"IF(OR(Selection_Hide2!U145=0, Selection_Hide2!U145=\"\"), \"\", Selection_Hide2!U145)","v":""},{"$f":"IF(OR(Selection_Hide2!V145=0, Selection_Hide2!V145=\"\"), \"\", Selection_Hide2!V145)","v":""},{"$f":"IF(OR(Selection_Hide2!W145=0, Selection_Hide2!W145=\"\"), \"\", Selection_Hide2!W145)","v":""},{"$f":"IF(OR(Selection_Hide2!X145=0, Selection_Hide2!X145=\"\"), \"\", Selection_Hide2!X145)","v":""},{"$f":"IF(OR(Selection_Hide2!Y145=0, Selection_Hide2!Y145=\"\"), \"\", Selection_Hide2!Y145)","v":""},{"$f":"IF(OR(Selection_Hide2!Z145=0, Selection_Hide2!Z145=\"\"), \"\", Selection_Hide2!Z145)","v":""},{"$f":"IF(OR(Selection_Hide2!AA145=0, Selection_Hide2!AA145=\"\"), \"\", Selection_Hide2!AA145)","v":""},{"$f":"IF(OR(Selection_Hide2!AB145=0, Selection_Hide2!AB145=\"\"), \"\", Selection_Hide2!AB145)","v":""}]
[{"$f":"IF(OR(Selection_Hide2!A146=0, Selection_Hide2!A146=\"\"), \"\", Selection_Hide2!A146)","v":""},{"$f":"IF(OR(Selection_Hide2!B146=0, Selection_Hide2!B146=\"\"), \"\", Selection_Hide2!B146)","v":""},{"$f":"IF(OR(Selection_Hide2!C146=0, Selection_Hide2!C146=\"\"), \"\", Selection_Hide2!C146)","v":""},{"$f":"IF(OR(Selection_Hide2!D146=0, Selection_Hide2!D146=\"\"), \"\", Selection_Hide2!D146)","v":""},{"$f":"IF(OR(Selection_Hide2!E146=0, Selection_Hide2!E146=\"\"), \"\", Selection_Hide2!E146)","v":""},{"$f":"IF(OR(Selection_Hide2!F146=0, Selection_Hide2!F146=\"\"), \"\", Selection_Hide2!F146)","v":""},{"$f":"IF(OR(Selection_Hide2!G146=0, Selection_Hide2!G146=\"\"), \"\", Selection_Hide2!G146)","v":""},{"$f":"IF(OR(Selection_Hide2!H146=0, Selection_Hide2!H146=\"\"), \"\", Selection_Hide2!H146)","v":""},{"$f":"IF(OR(Selection_Hide2!I146=0, Selection_Hide2!I146=\"\"), \"\", Selection_Hide2!I146)","v":""},{"$f":"IF(OR(Selection_Hide2!J146=0, Selection_Hide2!J146=\"\"), \"\", Selection_Hide2!J146)","v":""},{"$f":"IF(OR(Selection_Hide2!K146=0, Selection_Hide2!K146=\"\"), \"\", Selection_Hide2!K146)","v":""},{"$f":"IF(OR(Selection_Hide2!L146=0, Selection_Hide2!L146=\"\"), \"\", Selection_Hide2!L146)","v":""},{"$f":"IF(OR(Selection_Hide2!M146=0, Selection_Hide2!M146=\"\"), \"\", Selection_Hide2!M146)","v":""},{"$f":"IF(OR(Selection_Hide2!N146=0, Selection_Hide2!N146=\"\"), \"\", Selection_Hide2!N146)","v":""},{"$f":"IF(OR(Selection_Hide2!O146=0, Selection_Hide2!O146=\"\"), \"\", Selection_Hide2!O146)","v":""},{"$f":"IF(OR(Selection_Hide2!P146=0, Selection_Hide2!P146=\"\"), \"\", Selection_Hide2!P146)","v":""},{"$f":"IF(OR(Selection_Hide2!Q146=0, Selection_Hide2!Q146=\"\"), \"\", Selection_Hide2!Q146)","v":""},{"$f":"IF(OR(Selection_Hide2!R146=0, Selection_Hide2!R146=\"\"), \"\", Selection_Hide2!R146)","v":""},{"$f":"IF(OR(Selection_Hide2!S146=0, Selection_Hide2!S146=\"\"), \"\", Selection_Hide2!S146)","v":""},{"$f":"IF(OR(Selection_Hide2!T146=0, Selection_Hide2!T146=\"\"), \"\", Selection_Hide2!T146)","v":""},{"$f":"IF(OR(Selection_Hide2!U146=0, Selection_Hide2!U146=\"\"), \"\", Selection_Hide2!U146)","v":""},{"$f":"IF(OR(Selection_Hide2!V146=0, Selection_Hide2!V146=\"\"), \"\", Selection_Hide2!V146)","v":""},{"$f":"IF(OR(Selection_Hide2!W146=0, Selection_Hide2!W146=\"\"), \"\", Selection_Hide2!W146)","v":""},{"$f":"IF(OR(Selection_Hide2!X146=0, Selection_Hide2!X146=\"\"), \"\", Selection_Hide2!X146)","v":""},{"$f":"IF(OR(Selection_Hide2!Y146=0, Selection_Hide2!Y146=\"\"), \"\", Selection_Hide2!Y146)","v":""},{"$f":"IF(OR(Selection_Hide2!Z146=0, Selection_Hide2!Z146=\"\"), \"\", Selection_Hide2!Z146)","v":""},{"$f":"IF(OR(Selection_Hide2!AA146=0, Selection_Hide2!AA146=\"\"), \"\", Selection_Hide2!AA146)","v":""},{"$f":"IF(OR(Selection_Hide2!AB146=0, Selection_Hide2!AB146=\"\"), \"\", Selection_Hide2!AB146)","v":""}]
[{"$f":"IF(OR(Selection_Hide2!A147=0, Selection_Hide2!A147=\"\"), \"\", Selection_Hide2!A147)","v":""},{"$f":"IF(OR(Selection_Hide2!B147=0, Selection_Hide2!B147=\"\"), \"\", Selection_Hide2!B147)","v":""},{"$f":"IF(OR(Selection_Hide2!C147=0, Selection_Hide2!C147=\"\"), \"\", Selection_Hide2!C147)","v":""},{"$f":"IF(OR(Selection_Hide2!D147=0, Selection_Hide2!D147=\"\"), \"\", Selection_Hide2!D147)","v":""},{"$f":"IF(OR(Selection_Hide2!E147=0, Selection_Hide2!E147=\"\"), \"\", Selection_Hide2!E147)","v":""},{"$f":"IF(OR(Selection_Hide2!F147=0, Selection_Hide2!F147=\"\"), \"\", Selection_Hide2!F147)","v":""},{"$f":"IF(OR(Selection_Hide2!G147=0, Selection_Hide2!G147=\"\"), \"\", Selection_Hide2!G147)","v":""},{"$f":"IF(OR(Selection_Hide2!H147=0, Selection_Hide2!H147=\"\"), \"\", Selection_Hide2!H147)","v":""},{"$f":"IF(OR(Selection_Hide2!I147=0, Selection_Hide2!I147=\"\"), \"\", Selection_Hide2!I147)","v":""},{"$f":"IF(OR(Selection_Hide2!J147=0, Selection_Hide2!J147=\"\"), \"\", Selection_Hide2!J147)","v":""},{"$f":"IF(OR(Selection_Hide2!K147=0, Selection_Hide2!K147=\"\"), \"\", Selection_Hide2!K147)","v":""},{"$f":"IF(OR(Selection_Hide2!L147=0, Selection_Hide2!L147=\"\"), \"\", Selection_Hide2!L147)","v":""},{"$f":"IF(OR(Selection_Hide2!M147=0, Selection_Hide2!M147=\"\"), \"\", Selection_Hide2!M147)","v":""},{"$f":"IF(OR(Selection_Hide2!N147=0, Selection_Hide2!N147=\"\"), \"\", Selection_Hide2!N147)","v":""},{"$f":"IF(OR(Selection_Hide2!O147=0, Selection_Hide2!O147=\"\"), \"\", Selection_Hide2!O147)","v":""},{"$f":"IF(OR(Selection_Hide2!P147=0, Selection_Hide2!P147=\"\"), \"\", Selection_Hide2!P147)","v":""},{"$f":"IF(OR(Selection_Hide2!Q147=0, Selection_Hide2!Q147=\"\"), \"\", Selection_Hide2!Q147)","v":""},{"$f":"IF(OR(Selection_Hide2!R147=0, Selection_Hide2!R147=\"\"), \"\", Selection_Hide2!R147)","v":""},{"$f":"IF(OR(Selection_Hide2!S147=0, Selection_Hide2!S147=\"\"), \"\", Selection_Hide2!S147)","v":""},{"$f":"IF(OR(Selection_Hide2!T147=0, Selection_Hide2!T147=\"\"), \"\", Selection_Hide2!T147)","v":""},{"$f":"IF(OR(Selection_Hide2!U147=0, Selection_Hide2!U147=\"\"), \"\", Selection_Hide2!U147)","v":""},{"$f":"IF(OR(Selection_Hide2!V147=0, Selection_Hide2!V147=\"\"), \"\", Selection_Hide2!V147)","v":""},{"$f":"IF(OR(Selection_Hide2!W147=0, Selection_Hide2!W147=\"\"), \"\", Selection_Hide2!W147)","v":""},{"$f":"IF(OR(Selection_Hide2!X147=0, Selection_Hide2!X147=\"\"), \"\", Selection_Hide2!X147)","v":""},{"$f":"IF(OR(Selection_Hide2!Y147=0, Selection_Hide2!Y147=\"\"), \"\", Selection_Hide2!Y147)","v":""},{"$f":"IF(OR(Selection_Hide2!Z147=0, Selection_Hide2!Z147=\"\"), \"\", Selection_Hide2!Z147)","v":""},{"$f":"IF(OR(Selection_Hide2!AA147=0, Selection_Hide2!AA147=\"\"), \"\", Selection_Hide2!AA147)","v":""},{"$f":"IF(OR(Selection_Hide2!AB147=0, Selection_Hide2!AB147=\"\"), \"\", Selection_Hide2!AB147)","v":""}]
[{"$f":"IF(OR(Selection_Hide2!A148=0, Selection_Hide2!A148=\"\"), \"\", Selection_Hide2!A148)","v":""},{"$f":"IF(OR(Selection_Hide2!B148=0, Selection_Hide2!B148=\"\"), \"\", Selection_Hide2!B148)","v":""},{"$f":"IF(OR(Selection_Hide2!C148=0, Selection_Hide2!C148=\"\"), \"\", Selection_Hide2!C148)","v":""},{"$f":"IF(OR(Selection_Hide2!D148=0, Selection_Hide2!D148=\"\"), \"\", Selection_Hide2!D148)","v":""},{"$f":"IF(OR(Selection_Hide2!E148=0, Selection_Hide2!E148=\"\"), \"\", Selection_Hide2!E148)","v":""},{"$f":"IF(OR(Selection_Hide2!F148=0, Selection_Hide2!F148=\"\"), \"\", Selection_Hide2!F148)","v":""},{"$f":"IF(OR(Selection_Hide2!G148=0, Selection_Hide2!G148=\"\"), \"\", Selection_Hide2!G148)","v":""},{"$f":"IF(OR(Selection_Hide2!H148=0, Selection_Hide2!H148=\"\"), \"\", Selection_Hide2!H148)","v":""},{"$f":"IF(OR(Selection_Hide2!I148=0, Selection_Hide2!I148=\"\"), \"\", Selection_Hide2!I148)","v":""},{"$f":"IF(OR(Selection_Hide2!J148=0, Selection_Hide2!J148=\"\"), \"\", Selection_Hide2!J148)","v":""},{"$f":"IF(OR(Selection_Hide2!K148=0, Selection_Hide2!K148=\"\"), \"\", Selection_Hide2!K148)","v":""},{"$f":"IF(OR(Selection_Hide2!L148=0, Selection_Hide2!L148=\"\"), \"\", Selection_Hide2!L148)","v":""},{"$f":"IF(OR(Selection_Hide2!M148=0, Selection_Hide2!M148=\"\"), \"\", Selection_Hide2!M148)","v":""},{"$f":"IF(OR(Selection_Hide2!N148=0, Selection_Hide2!N148=\"\"), \"\", Selection_Hide2!N148)","v":""},{"$f":"IF(OR(Selection_Hide2!O148=0, Selection_Hide2!O148=\"\"), \"\", Selection_Hide2!O148)","v":""},{"$f":"IF(OR(Selection_Hide2!P148=0, Selection_Hide2!P148=\"\"), \"\", Selection_Hide2!P148)","v":""},{"$f":"IF(OR(Selection_Hide2!Q148=0, Selection_Hide2!Q148=\"\"), \"\", Selection_Hide2!Q148)","v":""},{"$f":"IF(OR(Selection_Hide2!R148=0, Selection_Hide2!R148=\"\"), \"\", Selection_Hide2!R148)","v":""},{"$f":"IF(OR(Selection_Hide2!S148=0, Selection_Hide2!S148=\"\"), \"\", Selection_Hide2!S148)","v":""},{"$f":"IF(OR(Selection_Hide2!T148=0, Selection_Hide2!T148=\"\"), \"\", Selection_Hide2!T148)","v":""},{"$f":"IF(OR(Selection_Hide2!U148=0, Selection_Hide2!U148=\"\"), \"\", Selection_Hide2!U148)","v":""},{"$f":"IF(OR(Selection_Hide2!V148=0, Selection_Hide2!V148=\"\"), \"\", Selection_Hide2!V148)","v":""},{"$f":"IF(OR(Selection_Hide2!W148=0, Selection_Hide2!W148=\"\"), \"\", Selection_Hide2!W148)","v":""},{"$f":"IF(OR(Selection_Hide2!X148=0, Selection_Hide2!X148=\"\"), \"\", Selection_Hide2!X148)","v":""},{"$f":"IF(OR(Selection_Hide2!Y148=0, Selection_Hide2!Y148=\"\"), \"\", Selection_Hide2!Y148)","v":""},{"$f":"IF(OR(Selection_Hide2!Z148=0, Selection_Hide2!Z148=\"\"), \"\", Selection_Hide2!Z148)","v":""},{"$f":"IF(OR(Selection_Hide2!AA148=0, Selection_Hide2!AA148=\"\"), \"\", Selection_Hide2!AA148)","v":""},{"$f":"IF(OR(Selection_Hide2!AB148=0, Selection_Hide2!AB148=\"\"), \"\", Selection_Hide2!AB148)","v":""}]
[{"$f":"IF(OR(Selection_Hide2!A149=0, Selection_Hide2!A149=\"\"), \"\", Selection_Hide2!A149)","v":""},{"$f":"IF(OR(Selection_Hide2!B149=0, Selection_Hide2!B149=\"\"), \"\", Selection_Hide2!B149)","v":""},{"$f":"IF(OR(Selection_Hide2!C149=0, Selection_Hide2!C149=\"\"), \"\", Selection_Hide2!C149)","v":""},{"$f":"IF(OR(Selection_Hide2!D149=0, Selection_Hide2!D149=\"\"), \"\", Selection_Hide2!D149)","v":""},{"$f":"IF(OR(Selection_Hide2!E149=0, Selection_Hide2!E149=\"\"), \"\", Selection_Hide2!E149)","v":""},{"$f":"IF(OR(Selection_Hide2!F149=0, Selection_Hide2!F149=\"\"), \"\", Selection_Hide2!F149)","v":""},{"$f":"IF(OR(Selection_Hide2!G149=0, Selection_Hide2!G149=\"\"), \"\", Selection_Hide2!G149)","v":""},{"$f":"IF(OR(Selection_Hide2!H149=0, Selection_Hide2!H149=\"\"), \"\", Selection_Hide2!H149)","v":""},{"$f":"IF(OR(Selection_Hide2!I149=0, Selection_Hide2!I149=\"\"), \"\", Selection_Hide2!I149)","v":""},{"$f":"IF(OR(Selection_Hide2!J149=0, Selection_Hide2!J149=\"\"), \"\", Selection_Hide2!J149)","v":""},{"$f":"IF(OR(Selection_Hide2!K149=0, Selection_Hide2!K149=\"\"), \"\", Selection_Hide2!K149)","v":""},{"$f":"IF(OR(Selection_Hide2!L149=0, Selection_Hide2!L149=\"\"), \"\", Selection_Hide2!L149)","v":""},{"$f":"IF(OR(Selection_Hide2!M149=0, Selection_Hide2!M149=\"\"), \"\", Selection_Hide2!M149)","v":""},{"$f":"IF(OR(Selection_Hide2!N149=0, Selection_Hide2!N149=\"\"), \"\", Selection_Hide2!N149)","v":""},{"$f":"IF(OR(Selection_Hide2!O149=0, Selection_Hide2!O149=\"\"), \"\", Selection_Hide2!O149)","v":""},{"$f":"IF(OR(Selection_Hide2!P149=0, Selection_Hide2!P149=\"\"), \"\", Selection_Hide2!P149)","v":""},{"$f":"IF(OR(Selection_Hide2!Q149=0, Selection_Hide2!Q149=\"\"), \"\", Selection_Hide2!Q149)","v":""},{"$f":"IF(OR(Selection_Hide2!R149=0, Selection_Hide2!R149=\"\"), \"\", Selection_Hide2!R149)","v":""},{"$f":"IF(OR(Selection_Hide2!S149=0, Selection_Hide2!S149=\"\"), \"\", Selection_Hide2!S149)","v":""},{"$f":"IF(OR(Selection_Hide2!T149=0, Selection_Hide2!T149=\"\"), \"\", Selection_Hide2!T149)","v":""},{"$f":"IF(OR(Selection_Hide2!U149=0, Selection_Hide2!U149=\"\"), \"\", Selection_Hide2!U149)","v":""},{"$f":"IF(OR(Selection_Hide2!V149=0, Selection_Hide2!V149=\"\"), \"\", Selection_Hide2!V149)","v":""},{"$f":"IF(OR(Selection_Hide2!W149=0, Selection_Hide2!W149=\"\"), \"\", Selection_Hide2!W149)","v":""},{"$f":"IF(OR(Selection_Hide2!X149=0, Selection_Hide2!X149=\"\"), \"\", Selection_Hide2!X149)","v":""},{"$f":"IF(OR(Selection_Hide2!Y149=0, Selection_Hide2!Y149=\"\"), \"\", Selection_Hide2!Y149)","v":""},{"$f":"IF(OR(Selection_Hide2!Z149=0, Selection_Hide2!Z149=\"\"), \"\", Selection_Hide2!Z149)","v":""},{"$f":"IF(OR(Selection_Hide2!AA149=0, Selection_Hide2!AA149=\"\"), \"\", Selection_Hide2!AA149)","v":""},{"$f":"IF(OR(Selection_Hide2!AB149=0, Selection_Hide2!AB149=\"\"), \"\", Selection_Hide2!AB149)","v":""}]
[{"$f":"IF(OR(Selection_Hide2!A150=0, Selection_Hide2!A150=\"\"), \"\", Selection_Hide2!A150)","v":""},{"$f":"IF(OR(Selection_Hide2!B150=0, Selection_Hide2!B150=\"\"), \"\", Selection_Hide2!B150)","v":""},{"$f":"IF(OR(Selection_Hide2!C150=0, Selection_Hide2!C150=\"\"), \"\", Selection_Hide2!C150)","v":""},{"$f":"IF(OR(Selection_Hide2!D150=0, Selection_Hide2!D150=\"\"), \"\", Selection_Hide2!D150)","v":""},{"$f":"IF(OR(Selection_Hide2!E150=0, Selection_Hide2!E150=\"\"), \"\", Selection_Hide2!E150)","v":""},{"$f":"IF(OR(Selection_Hide2!F150=0, Selection_Hide2!F150=\"\"), \"\", Selection_Hide2!F150)","v":""},{"$f":"IF(OR(Selection_Hide2!G150=0, Selection_Hide2!G150=\"\"), \"\", Selection_Hide2!G150)","v":""},{"$f":"IF(OR(Selection_Hide2!H150=0, Selection_Hide2!H150=\"\"), \"\", Selection_Hide2!H150)","v":""},{"$f":"IF(OR(Selection_Hide2!I150=0, Selection_Hide2!I150=\"\"), \"\", Selection_Hide2!I150)","v":""},{"$f":"IF(OR(Selection_Hide2!J150=0, Selection_Hide2!J150=\"\"), \"\", Selection_Hide2!J150)","v":""},{"$f":"IF(OR(Selection_Hide2!K150=0, Selection_Hide2!K150=\"\"), \"\", Selection_Hide2!K150)","v":""},{"$f":"IF(OR(Selection_Hide2!L150=0, Selection_Hide2!L150=\"\"), \"\", Selection_Hide2!L150)","v":""},{"$f":"IF(OR(Selection_Hide2!M150=0, Selection_Hide2!M150=\"\"), \"\", Selection_Hide2!M150)","v":""},{"$f":"IF(OR(Selection_Hide2!N150=0, Selection_Hide2!N150=\"\"), \"\", Selection_Hide2!N150)","v":""},{"$f":"IF(OR(Selection_Hide2!O150=0, Selection_Hide2!O150=\"\"), \"\", Selection_Hide2!O150)","v":""},{"$f":"IF(OR(Selection_Hide2!P150=0, Selection_Hide2!P150=\"\"), \"\", Selection_Hide2!P150)","v":""},{"$f":"IF(OR(Selection_Hide2!Q150=0, Selection_Hide2!Q150=\"\"), \"\", Selection_Hide2!Q150)","v":""},{"$f":"IF(OR(Selection_Hide2!R150=0, Selection_Hide2!R150=\"\"), \"\", Selection_Hide2!R150)","v":""},{"$f":"IF(OR(Selection_Hide2!S150=0, Selection_Hide2!S150=\"\"), \"\", Selection_Hide2!S150)","v":""},{"$f":"IF(OR(Selection_Hide2!T150=0, Selection_Hide2!T150=\"\"), \"\", Selection_Hide2!T150)","v":""},{"$f":"IF(OR(Selection_Hide2!U150=0, Selection_Hide2!U150=\"\"), \"\", Selection_Hide2!U150)","v":""},{"$f":"IF(OR(Selection_Hide2!V150=0, Selection_Hide2!V150=\"\"), \"\", Selection_Hide2!V150)","v":""},{"$f":"IF(OR(Selection_Hide2!W150=0, Selection_Hide2!W150=\"\"), \"\", Selection_Hide2!W150)","v":""},{"$f":"IF(OR(Selection_Hide2!X150=0, Selection_Hide2!X150=\"\"), \"\", Selection_Hide2!X150)","v":""},{"$f":"IF(OR(Selection_Hide2!Y150=0, Selection_Hide2!Y150=\"\"), \"\", Selection_Hide2!Y150)","v":""},{"$f":"IF(OR(Selection_Hide2!Z150=0, Selection_Hide2!Z150=\"\"), \"\", Selection_Hide2!Z150)","v":""},{"$f":"IF(OR(Selection_Hide2!AA150=0, Selection_Hide2!AA150=\"\"), \"\", Selection_Hide2!AA150)","v":""},{"$f":"IF(OR(Selection_Hide2!AB150=0, Selection_Hide2!AB150=\"\"), \"\", Selection_Hide2!AB150)","v":""}]
[{"$f":"IF(OR(Selection_Hide2!A151=0, Selection_Hide2!A151=\"\"), \"\", Selection_Hide2!A151)","v":""},{"$f":"IF(OR(Selection_Hide2!B151=0, Selection_Hide2!B151=\"\"), \"\", Selection_Hide2!B151)","v":""},{"$f":"IF(OR(Selection_Hide2!C151=0, Selection_Hide2!C151=\"\"), \"\", Selection_Hide2!C151)","v":""},{"$f":"IF(OR(Selection_Hide2!D151=0, Selection_Hide2!D151=\"\"), \"\", Selection_Hide2!D151)","v":""},{"$f":"IF(OR(Selection_Hide2!E151=0, Selection_Hide2!E151=\"\"), \"\", Selection_Hide2!E151)","v":""},{"$f":"IF(OR(Selection_Hide2!F151=0, Selection_Hide2!F151=\"\"), \"\", Selection_Hide2!F151)","v":""},{"$f":"IF(OR(Selection_Hide2!G151=0, Selection_Hide2!G151=\"\"), \"\", Selection_Hide2!G151)","v":""},{"$f":"IF(OR(Selection_Hide2!H151=0, Selection_Hide2!H151=\"\"), \"\", Selection_Hide2!H151)","v":""},{"$f":"IF(OR(Selection_Hide2!I151=0, Selection_Hide2!I151=\"\"), \"\", Selection_Hide2!I151)","v":""},{"$f":"IF(OR(Selection_Hide2!J151=0, Selection_Hide2!J151=\"\"), \"\", Selection_Hide2!J151)","v":""},{"$f":"IF(OR(Selection_Hide2!K151=0, Selection_Hide2!K151=\"\"), \"\", Selection_Hide2!K151)","v":""},{"$f":"IF(OR(Selection_Hide2!L151=0, Selection_Hide2!L151=\"\"), \"\", Selection_Hide2!L151)","v":""},{"$f":"IF(OR(Selection_Hide2!M151=0, Selection_Hide2!M151=\"\"), \"\", Selection_Hide2!M151)","v":""},{"$f":"IF(OR(Selection_Hide2!N151=0, Selection_Hide2!N151=\"\"), \"\", Selection_Hide2!N151)","v":""},{"$f":"IF(OR(Selection_Hide2!O151=0, Selection_Hide2!O151=\"\"), \"\", Selection_Hide2!O151)","v":""},{"$f":"IF(OR(Selection_Hide2!P151=0, Selection_Hide2!P151=\"\"), \"\", Selection_Hide2!P151)","v":""},{"$f":"IF(OR(Selection_Hide2!Q151=0, Selection_Hide2!Q151=\"\"), \"\", Selection_Hide2!Q151)","v":""},{"$f":"IF(OR(Selection_Hide2!R151=0, Selection_Hide2!R151=\"\"), \"\", Selection_Hide2!R151)","v":""},{"$f":"IF(OR(Selection_Hide2!S151=0, Selection_Hide2!S151=\"\"), \"\", Selection_Hide2!S151)","v":""},{"$f":"IF(OR(Selection_Hide2!T151=0, Selection_Hide2!T151=\"\"), \"\", Selection_Hide2!T151)","v":""},{"$f":"IF(OR(Selection_Hide2!U151=0, Selection_Hide2!U151=\"\"), \"\", Selection_Hide2!U151)","v":""},{"$f":"IF(OR(Selection_Hide2!V151=0, Selection_Hide2!V151=\"\"), \"\", Selection_Hide2!V151)","v":""},{"$f":"IF(OR(Selection_Hide2!W151=0, Selection_Hide2!W151=\"\"), \"\", Selection_Hide2!W151)","v":""},{"$f":"IF(OR(Selection_Hide2!X151=0, Selection_Hide2!X151=\"\"), \"\", Selection_Hide2!X151)","v":""},{"$f":"IF(OR(Selection_Hide2!Y151=0, Selection_Hide2!Y151=\"\"), \"\", Selection_Hide2!Y151)","v":""},{"$f":"IF(OR(Selection_Hide2!Z151=0, Selection_Hide2!Z151=\"\"), \"\", Selection_Hide2!Z151)","v":""},{"$f":"IF(OR(Selection_Hide2!AA151=0, Selection_Hide2!AA151=\"\"), \"\", Selection_Hide2!AA151)","v":""},{"$f":"IF(OR(Selection_Hide2!AB151=0, Selection_Hide2!AB151=\"\"), \"\", Selection_Hide2!AB151)","v":""}]
[{"$f":"IF(OR(Selection_Hide2!A152=0, Selection_Hide2!A152=\"\"), \"\", Selection_Hide2!A152)","v":""},{"$f":"IF(OR(Selection_Hide2!B152=0, Selection_Hide2!B152=\"\"), \"\", Selection_Hide2!B152)","v":""},{"$f":"IF(OR(Selection_Hide2!C152=0, Selection_Hide2!C152=\"\"), \"\", Selection_Hide2!C152)","v":""},{"$f":"IF(OR(Selection_Hide2!D152=0, Selection_Hide2!D152=\"\"), \"\", Selection_Hide2!D152)","v":""},{"$f":"IF(OR(Selection_Hide2!E152=0, Selection_Hide2!E152=\"\"), \"\", Selection_Hide2!E152)","v":""},{"$f":"IF(OR(Selection_Hide2!F152=0, Selection_Hide2!F152=\"\"), \"\", Selection_Hide2!F152)","v":""},{"$f":"IF(OR(Selection_Hide2!G152=0, Selection_Hide2!G152=\"\"), \"\", Selection_Hide2!G152)","v":""},{"$f":"IF(OR(Selection_Hide2!H152=0, Selection_Hide2!H152=\"\"), \"\", Selection_Hide2!H152)","v":""},{"$f":"IF(OR(Selection_Hide2!I152=0, Selection_Hide2!I152=\"\"), \"\", Selection_Hide2!I152)","v":""},{"$f":"IF(OR(Selection_Hide2!J152=0, Selection_Hide2!J152=\"\"), \"\", Selection_Hide2!J152)","v":""},{"$f":"IF(OR(Selection_Hide2!K152=0, Selection_Hide2!K152=\"\"), \"\", Selection_Hide2!K152)","v":""},{"$f":"IF(OR(Selection_Hide2!L152=0, Selection_Hide2!L152=\"\"), \"\", Selection_Hide2!L152)","v":""},{"$f":"IF(OR(Selection_Hide2!M152=0, Selection_Hide2!M152=\"\"), \"\", Selection_Hide2!M152)","v":""},{"$f":"IF(OR(Selection_Hide2!N152=0, Selection_Hide2!N152=\"\"), \"\", Selection_Hide2!N152)","v":""},{"$f":"IF(OR(Selection_Hide2!O152=0, Selection_Hide2!O152=\"\"), \"\", Selection_Hide2!O152)","v":""},{"$f":"IF(OR(Selection_Hide2!P152=0, Selection_Hide2!P152=\"\"), \"\", Selection_Hide2!P152)","v":""},{"$f":"IF(OR(Selection_Hide2!Q152=0, Selection_Hide2!Q152=\"\"), \"\", Selection_Hide2!Q152)","v":""},{"$f":"IF(OR(Selection_Hide2!R152=0, Selection_Hide2!R152=\"\"), \"\", Selection_Hide2!R152)","v":""},{"$f":"IF(OR(Selection_Hide2!S152=0, Selection_Hide2!S152=\"\"), \"\", Selection_Hide2!S152)","v":""},{"$f":"IF(OR(Selection_Hide2!T152=0, Selection_Hide2!T152=\"\"), \"\", Selection_Hide2!T152)","v":""},{"$f":"IF(OR(Selection_Hide2!U152=0, Selection_Hide2!U152=\"\"), \"\", Selection_Hide2!U152)","v":""},{"$f":"IF(OR(Selection_Hide2!V152=0, Selection_Hide2!V152=\"\"), \"\", Selection_Hide2!V152)","v":""},{"$f":"IF(OR(Selection_Hide2!W152=0, Selection_Hide2!W152=\"\"), \"\", Selection_Hide2!W152)","v":""},{"$f":"IF(OR(Selection_Hide2!X152=0, Selection_Hide2!X152=\"\"), \"\", Selection_Hide2!X152)","v":""},{"$f":"IF(OR(Selection_Hide2!Y152=0, Selection_Hide2!Y152=\"\"), \"\", Selection_Hide2!Y152)","v":""},{"$f":"IF(OR(Selection_Hide2!Z152=0, Selection_Hide2!Z152=\"\"), \"\", Selection_Hide2!Z152)","v":""},{"$f":"IF(OR(Selection_Hide2!AA152=0, Selection_Hide2!AA152=\"\"), \"\", Selection_Hide2!AA152)","v":""},{"$f":"IF(OR(Selection_Hide2!AB152=0, Selection_Hide2!AB152=\"\"), \"\", Selection_Hide2!AB152)","v":""}]
[{"$f":"IF(OR(Selection_Hide2!A153=0, Selection_Hide2!A153=\"\"), \"\", Selection_Hide2!A153)","v":""},{"$f":"IF(OR(Selection_Hide2!B153=0, Selection_Hide2!B153=\"\"), \"\", Selection_Hide2!B153)","v":""},{"$f":"IF(OR(Selection_Hide2!C153=0, Selection_Hide2!C153=\"\"), \"\", Selection_Hide2!C153)","v":""},{"$f":"IF(OR(Selection_Hide2!D153=0, Selection_Hide2!D153=\"\"), \"\", Selection_Hide2!D153)","v":""},{"$f":"IF(OR(Selection_Hide2!E153=0, Selection_Hide2!E153=\"\"), \"\", Selection_Hide2!E153)","v":""},{"$f":"IF(OR(Selection_Hide2!F153=0, Selection_Hide2!F153=\"\"), \"\", Selection_Hide2!F153)","v":""},{"$f":"IF(OR(Selection_Hide2!G153=0, Selection_Hide2!G153=\"\"), \"\", Selection_Hide2!G153)","v":""},{"$f":"IF(OR(Selection_Hide2!H153=0, Selection_Hide2!H153=\"\"), \"\", Selection_Hide2!H153)","v":""},{"$f":"IF(OR(Selection_Hide2!I153=0, Selection_Hide2!I153=\"\"), \"\", Selection_Hide2!I153)","v":""},{"$f":"IF(OR(Selection_Hide2!J153=0, Selection_Hide2!J153=\"\"), \"\", Selection_Hide2!J153)","v":""},{"$f":"IF(OR(Selection_Hide2!K153=0, Selection_Hide2!K153=\"\"), \"\", Selection_Hide2!K153)","v":""},{"$f":"IF(OR(Selection_Hide2!L153=0, Selection_Hide2!L153=\"\"), \"\", Selection_Hide2!L153)","v":""},{"$f":"IF(OR(Selection_Hide2!M153=0, Selection_Hide2!M153=\"\"), \"\", Selection_Hide2!M153)","v":""},{"$f":"IF(OR(Selection_Hide2!N153=0, Selection_Hide2!N153=\"\"), \"\", Selection_Hide2!N153)","v":""},{"$f":"IF(OR(Selection_Hide2!O153=0, Selection_Hide2!O153=\"\"), \"\", Selection_Hide2!O153)","v":""},{"$f":"IF(OR(Selection_Hide2!P153=0, Selection_Hide2!P153=\"\"), \"\", Selection_Hide2!P153)","v":""},{"$f":"IF(OR(Selection_Hide2!Q153=0, Selection_Hide2!Q153=\"\"), \"\", Selection_Hide2!Q153)","v":""},{"$f":"IF(OR(Selection_Hide2!R153=0, Selection_Hide2!R153=\"\"), \"\", Selection_Hide2!R153)","v":""},{"$f":"IF(OR(Selection_Hide2!S153=0, Selection_Hide2!S153=\"\"), \"\", Selection_Hide2!S153)","v":""},{"$f":"IF(OR(Selection_Hide2!T153=0, Selection_Hide2!T153=\"\"), \"\", Selection_Hide2!T153)","v":""},{"$f":"IF(OR(Selection_Hide2!U153=0, Selection_Hide2!U153=\"\"), \"\", Selection_Hide2!U153)","v":""},{"$f":"IF(OR(Selection_Hide2!V153=0, Selection_Hide2!V153=\"\"), \"\", Selection_Hide2!V153)","v":""},{"$f":"IF(OR(Selection_Hide2!W153=0, Selection_Hide2!W153=\"\"), \"\", Selection_Hide2!W153)","v":""},{"$f":"IF(OR(Selection_Hide2!X153=0, Selection_Hide2!X153=\"\"), \"\", Selection_Hide2!X153)","v":""},{"$f":"IF(OR(Selection_Hide2!Y153=0, Selection_Hide2!Y153=\"\"), \"\", Selection_Hide2!Y153)","v":""},{"$f":"IF(OR(Selection_Hide2!Z153=0, Selection_Hide2!Z153=\"\"), \"\", Selection_Hide2!Z153)","v":""},{"$f":"IF(OR(Selection_Hide2!AA153=0, Selection_Hide2!AA153=\"\"), \"\", Selection_Hide2!AA153)","v":""},{"$f":"IF(OR(Selection_Hide2!AB153=0, Selection_Hide2!AB153=\"\"), \"\", Selection_Hide2!AB153)","v":""}]
[{"$f":"IF(OR(Selection_Hide2!A154=0, Selection_Hide2!A154=\"\"), \"\", Selection_Hide2!A154)","v":""},{"$f":"IF(OR(Selection_Hide2!B154=0, Selection_Hide2!B154=\"\"), \"\", Selection_Hide2!B154)","v":""},{"$f":"IF(OR(Selection_Hide2!C154=0, Selection_Hide2!C154=\"\"), \"\", Selection_Hide2!C154)","v":""},{"$f":"IF(OR(Selection_Hide2!D154=0, Selection_Hide2!D154=\"\"), \"\", Selection_Hide2!D154)","v":""},{"$f":"IF(OR(Selection_Hide2!E154=0, Selection_Hide2!E154=\"\"), \"\", Selection_Hide2!E154)","v":""},{"$f":"IF(OR(Selection_Hide2!F154=0, Selection_Hide2!F154=\"\"), \"\", Selection_Hide2!F154)","v":""},{"$f":"IF(OR(Selection_Hide2!G154=0, Selection_Hide2!G154=\"\"), \"\", Selection_Hide2!G154)","v":""},{"$f":"IF(OR(Selection_Hide2!H154=0, Selection_Hide2!H154=\"\"), \"\", Selection_Hide2!H154)","v":""},{"$f":"IF(OR(Selection_Hide2!I154=0, Selection_Hide2!I154=\"\"), \"\", Selection_Hide2!I154)","v":""},{"$f":"IF(OR(Selection_Hide2!J154=0, Selection_Hide2!J154=\"\"), \"\", Selection_Hide2!J154)","v":""},{"$f":"IF(OR(Selection_Hide2!K154=0, Selection_Hide2!K154=\"\"), \"\", Selection_Hide2!K154)","v":""},{"$f":"IF(OR(Selection_Hide2!L154=0, Selection_Hide2!L154=\"\"), \"\", Selection_Hide2!L154)","v":""},{"$f":"IF(OR(Selection_Hide2!M154=0, Selection_Hide2!M154=\"\"), \"\", Selection_Hide2!M154)","v":""},{"$f":"IF(OR(Selection_Hide2!N154=0, Selection_Hide2!N154=\"\"), \"\", Selection_Hide2!N154)","v":""},{"$f":"IF(OR(Selection_Hide2!O154=0, Selection_Hide2!O154=\"\"), \"\", Selection_Hide2!O154)","v":""},{"$f":"IF(OR(Selection_Hide2!P154=0, Selection_Hide2!P154=\"\"), \"\", Selection_Hide2!P154)","v":""},{"$f":"IF(OR(Selection_Hide2!Q154=0, Selection_Hide2!Q154=\"\"), \"\", Selection_Hide2!Q154)","v":""},{"$f":"IF(OR(Selection_Hide2!R154=0, Selection_Hide2!R154=\"\"), \"\", Selection_Hide2!R154)","v":""},{"$f":"IF(OR(Selection_Hide2!S154=0, Selection_Hide2!S154=\"\"), \"\", Selection_Hide2!S154)","v":""},{"$f":"IF(OR(Selection_Hide2!T154=0, Selection_Hide2!T154=\"\"), \"\", Selection_Hide2!T154)","v":""},{"$f":"IF(OR(Selection_Hide2!U154=0, Selection_Hide2!U154=\"\"), \"\", Selection_Hide2!U154)","v":""},{"$f":"IF(OR(Selection_Hide2!V154=0, Selection_Hide2!V154=\"\"), \"\", Selection_Hide2!V154)","v":""},{"$f":"IF(OR(Selection_Hide2!W154=0, Selection_Hide2!W154=\"\"), \"\", Selection_Hide2!W154)","v":""},{"$f":"IF(OR(Selection_Hide2!X154=0, Selection_Hide2!X154=\"\"), \"\", Selection_Hide2!X154)","v":""},{"$f":"IF(OR(Selection_Hide2!Y154=0, Selection_Hide2!Y154=\"\"), \"\", Selection_Hide2!Y154)","v":""},{"$f":"IF(OR(Selection_Hide2!Z154=0, Selection_Hide2!Z154=\"\"), \"\", Selection_Hide2!Z154)","v":""},{"$f":"IF(OR(Selection_Hide2!AA154=0, Selection_Hide2!AA154=\"\"), \"\", Selection_Hide2!AA154)","v":""},{"$f":"IF(OR(Selection_Hide2!AB154=0, Selection_Hide2!AB154=\"\"), \"\", Selection_Hide2!AB154)","v":""}]
[{"$f":"IF(OR(Selection_Hide2!A155=0, Selection_Hide2!A155=\"\"), \"\", Selection_Hide2!A155)","v":""},{"$f":"IF(OR(Selection_Hide2!B155=0, Selection_Hide2!B155=\"\"), \"\", Selection_Hide2!B155)","v":""},{"$f":"IF(OR(Selection_Hide2!C155=0, Selection_Hide2!C155=\"\"), \"\", Selection_Hide2!C155)","v":""},{"$f":"IF(OR(Selection_Hide2!D155=0, Selection_Hide2!D155=\"\"), \"\", Selection_Hide2!D155)","v":""},{"$f":"IF(OR(Selection_Hide2!E155=0, Selection_Hide2!E155=\"\"), \"\", Selection_Hide2!E155)","v":""},{"$f":"IF(OR(Selection_Hide2!F155=0, Selection_Hide2!F155=\"\"), \"\", Selection_Hide2!F155)","v":""},{"$f":"IF(OR(Selection_Hide2!G155=0, Selection_Hide2!G155=\"\"), \"\", Selection_Hide2!G155)","v":""},{"$f":"IF(OR(Selection_Hide2!H155=0, Selection_Hide2!H155=\"\"), \"\", Selection_Hide2!H155)","v":""},{"$f":"IF(OR(Selection_Hide2!I155=0, Selection_Hide2!I155=\"\"), \"\", Selection_Hide2!I155)","v":""},{"$f":"IF(OR(Selection_Hide2!J155=0, Selection_Hide2!J155=\"\"), \"\", Selection_Hide2!J155)","v":""},{"$f":"IF(OR(Selection_Hide2!K155=0, Selection_Hide2!K155=\"\"), \"\", Selection_Hide2!K155)","v":""},{"$f":"IF(OR(Selection_Hide2!L155=0, Selection_Hide2!L155=\"\"), \"\", Selection_Hide2!L155)","v":""},{"$f":"IF(OR(Selection_Hide2!M155=0, Selection_Hide2!M155=\"\"), \"\", Selection_Hide2!M155)","v":""},{"$f":"IF(OR(Selection_Hide2!N155=0, Selection_Hide2!N155=\"\"), \"\", Selection_Hide2!N155)","v":""},{"$f":"IF(OR(Selection_Hide2!O155=0, Selection_Hide2!O155=\"\"), \"\", Selection_Hide2!O155)","v":""},{"$f":"IF(OR(Selection_Hide2!P155=0, Selection_Hide2!P155=\"\"), \"\", Selection_Hide2!P155)","v":""},{"$f":"IF(OR(Selection_Hide2!Q155=0, Selection_Hide2!Q155=\"\"), \"\", Selection_Hide2!Q155)","v":""},{"$f":"IF(OR(Selection_Hide2!R155=0, Selection_Hide2!R155=\"\"), \"\", Selection_Hide2!R155)","v":""},{"$f":"IF(OR(Selection_Hide2!S155=0, Selection_Hide2!S155=\"\"), \"\", Selection_Hide2!S155)","v":""},{"$f":"IF(OR(Selection_Hide2!T155=0, Selection_Hide2!T155=\"\"), \"\", Selection_Hide2!T155)","v":""},{"$f":"IF(OR(Selection_Hide2!U155=0, Selection_Hide2!U155=\"\"), \"\", Selection_Hide2!U155)","v":""},{"$f":"IF(OR(Selection_Hide2!V155=0, Selection_Hide2!V155=\"\"), \"\", Selection_Hide2!V155)","v":""},{"$f":"IF(OR(Selection_Hide2!W155=0, Selection_Hide2!W155=\"\"), \"\", Selection_Hide2!W155)","v":""},{"$f":"IF(OR(Selection_Hide2!X155=0, Selection_Hide2!X155=\"\"), \"\", Selection_Hide2!X155)","v":""},{"$f":"IF(OR(Selection_Hide2!Y155=0, Selection_Hide2!Y155=\"\"), \"\", Selection_Hide2!Y155)","v":""},{"$f":"IF(OR(Selection_Hide2!Z155=0, Selection_Hide2!Z155=\"\"), \"\", Selection_Hide2!Z155)","v":""},{"$f":"IF(OR(Selection_Hide2!AA155=0, Selection_Hide2!AA155=\"\"), \"\", Selection_Hide2!AA155)","v":""},{"$f":"IF(OR(Selection_Hide2!AB155=0, Selection_Hide2!AB155=\"\"), \"\", Selection_Hide2!AB155)","v":""}]
[{"$f":"IF(OR(Selection_Hide2!A156=0, Selection_Hide2!A156=\"\"), \"\", Selection_Hide2!A156)","v":""},{"$f":"IF(OR(Selection_Hide2!B156=0, Selection_Hide2!B156=\"\"), \"\", Selection_Hide2!B156)","v":""},{"$f":"IF(OR(Selection_Hide2!C156=0, Selection_Hide2!C156=\"\"), \"\", Selection_Hide2!C156)","v":""},{"$f":"IF(OR(Selection_Hide2!D156=0, Selection_Hide2!D156=\"\"), \"\", Selection_Hide2!D156)","v":""},{"$f":"IF(OR(Selection_Hide2!E156=0, Selection_Hide2!E156=\"\"), \"\", Selection_Hide2!E156)","v":""},{"$f":"IF(OR(Selection_Hide2!F156=0, Selection_Hide2!F156=\"\"), \"\", Selection_Hide2!F156)","v":""},{"$f":"IF(OR(Selection_Hide2!G156=0, Selection_Hide2!G156=\"\"), \"\", Selection_Hide2!G156)","v":""},{"$f":"IF(OR(Selection_Hide2!H156=0, Selection_Hide2!H156=\"\"), \"\", Selection_Hide2!H156)","v":""},{"$f":"IF(OR(Selection_Hide2!I156=0, Selection_Hide2!I156=\"\"), \"\", Selection_Hide2!I156)","v":""},{"$f":"IF(OR(Selection_Hide2!J156=0, Selection_Hide2!J156=\"\"), \"\", Selection_Hide2!J156)","v":""},{"$f":"IF(OR(Selection_Hide2!K156=0, Selection_Hide2!K156=\"\"), \"\", Selection_Hide2!K156)","v":""},{"$f":"IF(OR(Selection_Hide2!L156=0, Selection_Hide2!L156=\"\"), \"\", Selection_Hide2!L156)","v":""},{"$f":"IF(OR(Selection_Hide2!M156=0, Selection_Hide2!M156=\"\"), \"\", Selection_Hide2!M156)","v":""},{"$f":"IF(OR(Selection_Hide2!N156=0, Selection_Hide2!N156=\"\"), \"\", Selection_Hide2!N156)","v":""},{"$f":"IF(OR(Selection_Hide2!O156=0, Selection_Hide2!O156=\"\"), \"\", Selection_Hide2!O156)","v":""},{"$f":"IF(OR(Selection_Hide2!P156=0, Selection_Hide2!P156=\"\"), \"\", Selection_Hide2!P156)","v":""},{"$f":"IF(OR(Selection_Hide2!Q156=0, Selection_Hide2!Q156=\"\"), \"\", Selection_Hide2!Q156)","v":""},{"$f":"IF(OR(Selection_Hide2!R156=0, Selection_Hide2!R156=\"\"), \"\", Selection_Hide2!R156)","v":""},{"$f":"IF(OR(Selection_Hide2!S156=0, Selection_Hide2!S156=\"\"), \"\", Selection_Hide2!S156)","v":""},{"$f":"IF(OR(Selection_Hide2!T156=0, Selection_Hide2!T156=\"\"), \"\", Selection_Hide2!T156)","v":""},{"$f":"IF(OR(Selection_Hide2!U156=0, Selection_Hide2!U156=\"\"), \"\", Selection_Hide2!U156)","v":""},{"$f":"IF(OR(Selection_Hide2!V156=0, Selection_Hide2!V156=\"\"), \"\", Selection_Hide2!V156)","v":""},{"$f":"IF(OR(Selection_Hide2!W156=0, Selection_Hide2!W156=\"\"), \"\", Selection_Hide2!W156)","v":""},{"$f":"IF(OR(Selection_Hide2!X156=0, Selection_Hide2!X156=\"\"), \"\", Selection_Hide2!X156)","v":""},{"$f":"IF(OR(Selection_Hide2!Y156=0, Selection_Hide2!Y156=\"\"), \"\", Selection_Hide2!Y156)","v":""},{"$f":"IF(OR(Selection_Hide2!Z156=0, Selection_Hide2!Z156=\"\"), \"\", Selection_Hide2!Z156)","v":""},{"$f":"IF(OR(Selection_Hide2!AA156=0, Selection_Hide2!AA156=\"\"), \"\", Selection_Hide2!AA156)","v":""},{"$f":"IF(OR(Selection_Hide2!AB156=0, Selection_Hide2!AB156=\"\"), \"\", Selection_Hide2!AB156)","v":""}]
[{"$f":"IF(OR(Selection_Hide2!A157=0, Selection_Hide2!A157=\"\"), \"\", Selection_Hide2!A157)","v":""},{"$f":"IF(OR(Selection_Hide2!B157=0, Selection_Hide2!B157=\"\"), \"\", Selection_Hide2!B157)","v":""},{"$f":"IF(OR(Selection_Hide2!C157=0, Selection_Hide2!C157=\"\"), \"\", Selection_Hide2!C157)","v":""},{"$f":"IF(OR(Selection_Hide2!D157=0, Selection_Hide2!D157=\"\"), \"\", Selection_Hide2!D157)","v":""},{"$f":"IF(OR(Selection_Hide2!E157=0, Selection_Hide2!E157=\"\"), \"\", Selection_Hide2!E157)","v":""},{"$f":"IF(OR(Selection_Hide2!F157=0, Selection_Hide2!F157=\"\"), \"\", Selection_Hide2!F157)","v":""},{"$f":"IF(OR(Selection_Hide2!G157=0, Selection_Hide2!G157=\"\"), \"\", Selection_Hide2!G157)","v":""},{"$f":"IF(OR(Selection_Hide2!H157=0, Selection_Hide2!H157=\"\"), \"\", Selection_Hide2!H157)","v":""},{"$f":"IF(OR(Selection_Hide2!I157=0, Selection_Hide2!I157=\"\"), \"\", Selection_Hide2!I157)","v":""},{"$f":"IF(OR(Selection_Hide2!J157=0, Selection_Hide2!J157=\"\"), \"\", Selection_Hide2!J157)","v":""},{"$f":"IF(OR(Selection_Hide2!K157=0, Selection_Hide2!K157=\"\"), \"\", Selection_Hide2!K157)","v":""},{"$f":"IF(OR(Selection_Hide2!L157=0, Selection_Hide2!L157=\"\"), \"\", Selection_Hide2!L157)","v":""},{"$f":"IF(OR(Selection_Hide2!M157=0, Selection_Hide2!M157=\"\"), \"\", Selection_Hide2!M157)","v":""},{"$f":"IF(OR(Selection_Hide2!N157=0, Selection_Hide2!N157=\"\"), \"\", Selection_Hide2!N157)","v":""},{"$f":"IF(OR(Selection_Hide2!O157=0, Selection_Hide2!O157=\"\"), \"\", Selection_Hide2!O157)","v":""},{"$f":"IF(OR(Selection_Hide2!P157=0, Selection_Hide2!P157=\"\"), \"\", Selection_Hide2!P157)","v":""},{"$f":"IF(OR(Selection_Hide2!Q157=0, Selection_Hide2!Q157=\"\"), \"\", Selection_Hide2!Q157)","v":""},{"$f":"IF(OR(Selection_Hide2!R157=0, Selection_Hide2!R157=\"\"), \"\", Selection_Hide2!R157)","v":""},{"$f":"IF(OR(Selection_Hide2!S157=0, Selection_Hide2!S157=\"\"), \"\", Selection_Hide2!S157)","v":""},{"$f":"IF(OR(Selection_Hide2!T157=0, Selection_Hide2!T157=\"\"), \"\", Selection_Hide2!T157)","v":""},{"$f":"IF(OR(Selection_Hide2!U157=0, Selection_Hide2!U157=\"\"), \"\", Selection_Hide2!U157)","v":""},{"$f":"IF(OR(Selection_Hide2!V157=0, Selection_Hide2!V157=\"\"), \"\", Selection_Hide2!V157)","v":""},{"$f":"IF(OR(Selection_Hide2!W157=0, Selection_Hide2!W157=\"\"), \"\", Selection_Hide2!W157)","v":""},{"$f":"IF(OR(Selection_Hide2!X157=0, Selection_Hide2!X157=\"\"), \"\", Selection_Hide2!X157)","v":""},{"$f":"IF(OR(Selection_Hide2!Y157=0, Selection_Hide2!Y157=\"\"), \"\", Selection_Hide2!Y157)","v":""},{"$f":"IF(OR(Selection_Hide2!Z157=0, Selection_Hide2!Z157=\"\"), \"\", Selection_Hide2!Z157)","v":""},{"$f":"IF(OR(Selection_Hide2!AA157=0, Selection_Hide2!AA157=\"\"), \"\", Selection_Hide2!AA157)","v":""},{"$f":"IF(OR(Selection_Hide2!AB157=0, Selection_Hide2!AB157=\"\"), \"\", Selection_Hide2!AB157)","v":""}]
[{"$f":"IF(OR(Selection_Hide2!A158=0, Selection_Hide2!A158=\"\"), \"\", Selection_Hide2!A158)","v":""},{"$f":"IF(OR(Selection_Hide2!B158=0, Selection_Hide2!B158=\"\"), \"\", Selection_Hide2!B158)","v":""},{"$f":"IF(OR(Selection_Hide2!C158=0, Selection_Hide2!C158=\"\"), \"\", Selection_Hide2!C158)","v":""},{"$f":"IF(OR(Selection_Hide2!D158=0, Selection_Hide2!D158=\"\"), \"\", Selection_Hide2!D158)","v":""},{"$f":"IF(OR(Selection_Hide2!E158=0, Selection_Hide2!E158=\"\"), \"\", Selection_Hide2!E158)","v":""},{"$f":"IF(OR(Selection_Hide2!F158=0, Selection_Hide2!F158=\"\"), \"\", Selection_Hide2!F158)","v":""},{"$f":"IF(OR(Selection_Hide2!G158=0, Selection_Hide2!G158=\"\"), \"\", Selection_Hide2!G158)","v":""},{"$f":"IF(OR(Selection_Hide2!H158=0, Selection_Hide2!H158=\"\"), \"\", Selection_Hide2!H158)","v":""},{"$f":"IF(OR(Selection_Hide2!I158=0, Selection_Hide2!I158=\"\"), \"\", Selection_Hide2!I158)","v":""},{"$f":"IF(OR(Selection_Hide2!J158=0, Selection_Hide2!J158=\"\"), \"\", Selection_Hide2!J158)","v":""},{"$f":"IF(OR(Selection_Hide2!K158=0, Selection_Hide2!K158=\"\"), \"\", Selection_Hide2!K158)","v":""},{"$f":"IF(OR(Selection_Hide2!L158=0, Selection_Hide2!L158=\"\"), \"\", Selection_Hide2!L158)","v":""},{"$f":"IF(OR(Selection_Hide2!M158=0, Selection_Hide2!M158=\"\"), \"\", Selection_Hide2!M158)","v":""},{"$f":"IF(OR(Selection_Hide2!N158=0, Selection_Hide2!N158=\"\"), \"\", Selection_Hide2!N158)","v":""},{"$f":"IF(OR(Selection_Hide2!O158=0, Selection_Hide2!O158=\"\"), \"\", Selection_Hide2!O158)","v":""},{"$f":"IF(OR(Selection_Hide2!P158=0, Selection_Hide2!P158=\"\"), \"\", Selection_Hide2!P158)","v":""},{"$f":"IF(OR(Selection_Hide2!Q158=0, Selection_Hide2!Q158=\"\"), \"\", Selection_Hide2!Q158)","v":""},{"$f":"IF(OR(Selection_Hide2!R158=0, Selection_Hide2!R158=\"\"), \"\", Selection_Hide2!R158)","v":""},{"$f":"IF(OR(Selection_Hide2!S158=0, Selection_Hide2!S158=\"\"), \"\", Selection_Hide2!S158)","v":""},{"$f":"IF(OR(Selection_Hide2!T158=0, Selection_Hide2!T158=\"\"), \"\", Selection_Hide2!T158)","v":""},{"$f":"IF(OR(Selection_Hide2!U158=0, Selection_Hide2!U158=\"\"), \"\", Selection_Hide2!U158)","v":""},{"$f":"IF(OR(Selection_Hide2!V158=0, Selection_Hide2!V158=\"\"), \"\", Selection_Hide2!V158)","v":""},{"$f":"IF(OR(Selection_Hide2!W158=0, Selection_Hide2!W158=\"\"), \"\", Selection_Hide2!W158)","v":""},{"$f":"IF(OR(Selection_Hide2!X158=0, Selection_Hide2!X158=\"\"), \"\", Selection_Hide2!X158)","v":""},{"$f":"IF(OR(Selection_Hide2!Y158=0, Selection_Hide2!Y158=\"\"), \"\", Selection_Hide2!Y158)","v":""},{"$f":"IF(OR(Selection_Hide2!Z158=0, Selection_Hide2!Z158=\"\"), \"\", Selection_Hide2!Z158)","v":""},{"$f":"IF(OR(Selection_Hide2!AA158=0, Selection_Hide2!AA158=\"\"), \"\", Selection_Hide2!AA158)","v":""},{"$f":"IF(OR(Selection_Hide2!AB158=0, Selection_Hide2!AB158=\"\"), \"\", Selection_Hide2!AB158)","v":""}]
[{"$f":"IF(OR(Selection_Hide2!A159=0, Selection_Hide2!A159=\"\"), \"\", Selection_Hide2!A159)","v":""},{"$f":"IF(OR(Selection_Hide2!B159=0, Selection_Hide2!B159=\"\"), \"\", Selection_Hide2!B159)","v":""},{"$f":"IF(OR(Selection_Hide2!C159=0, Selection_Hide2!C159=\"\"), \"\", Selection_Hide2!C159)","v":""},{"$f":"IF(OR(Selection_Hide2!D159=0, Selection_Hide2!D159=\"\"), \"\", Selection_Hide2!D159)","v":""},{"$f":"IF(OR(Selection_Hide2!E159=0, Selection_Hide2!E159=\"\"), \"\", Selection_Hide2!E159)","v":""},{"$f":"IF(OR(Selection_Hide2!F159=0, Selection_Hide2!F159=\"\"), \"\", Selection_Hide2!F159)","v":""},{"$f":"IF(OR(Selection_Hide2!G159=0, Selection_Hide2!G159=\"\"), \"\", Selection_Hide2!G159)","v":""},{"$f":"IF(OR(Selection_Hide2!H159=0, Selection_Hide2!H159=\"\"), \"\", Selection_Hide2!H159)","v":""},{"$f":"IF(OR(Selection_Hide2!I159=0, Selection_Hide2!I159=\"\"), \"\", Selection_Hide2!I159)","v":""},{"$f":"IF(OR(Selection_Hide2!J159=0, Selection_Hide2!J159=\"\"), \"\", Selection_Hide2!J159)","v":""},{"$f":"IF(OR(Selection_Hide2!K159=0, Selection_Hide2!K159=\"\"), \"\", Selection_Hide2!K159)","v":""},{"$f":"IF(OR(Selection_Hide2!L159=0, Selection_Hide2!L159=\"\"), \"\", Selection_Hide2!L159)","v":""},{"$f":"IF(OR(Selection_Hide2!M159=0, Selection_Hide2!M159=\"\"), \"\", Selection_Hide2!M159)","v":""},{"$f":"IF(OR(Selection_Hide2!N159=0, Selection_Hide2!N159=\"\"), \"\", Selection_Hide2!N159)","v":""},{"$f":"IF(OR(Selection_Hide2!O159=0, Selection_Hide2!O159=\"\"), \"\", Selection_Hide2!O159)","v":""},{"$f":"IF(OR(Selection_Hide2!P159=0, Selection_Hide2!P159=\"\"), \"\", Selection_Hide2!P159)","v":""},{"$f":"IF(OR(Selection_Hide2!Q159=0, Selection_Hide2!Q159=\"\"), \"\", Selection_Hide2!Q159)","v":""},{"$f":"IF(OR(Selection_Hide2!R159=0, Selection_Hide2!R159=\"\"), \"\", Selection_Hide2!R159)","v":""},{"$f":"IF(OR(Selection_Hide2!S159=0, Selection_Hide2!S159=\"\"), \"\", Selection_Hide2!S159)","v":""},{"$f":"IF(OR(Selection_Hide2!T159=0, Selection_Hide2!T159=\"\"), \"\", Selection_Hide2!T159)","v":""},{"$f":"IF(OR(Selection_Hide2!U159=0, Selection_Hide2!U159=\"\"), \"\", Selection_Hide2!U159)","v":""},{"$f":"IF(OR(Selection_Hide2!V159=0, Selection_Hide2!V159=\"\"), \"\", Selection_Hide2!V159)","v":""},{"$f":"IF(OR(Selection_Hide2!W159=0, Selection_Hide2!W159=\"\"), \"\", Selection_Hide2!W159)","v":""},{"$f":"IF(OR(Selection_Hide2!X159=0, Selection_Hide2!X159=\"\"), \"\", Selection_Hide2!X159)","v":""},{"$f":"IF(OR(Selection_Hide2!Y159=0, Selection_Hide2!Y159=\"\"), \"\", Selection_Hide2!Y159)","v":""},{"$f":"IF(OR(Selection_Hide2!Z159=0, Selection_Hide2!Z159=\"\"), \"\", Selection_Hide2!Z159)","v":""},{"$f":"IF(OR(Selection_Hide2!AA159=0, Selection_Hide2!AA159=\"\"), \"\", Selection_Hide2!AA159)","v":""},{"$f":"IF(OR(Selection_Hide2!AB159=0, Selection_Hide2!AB159=\"\"), \"\", Selection_Hide2!AB159)","v":""}]
[{"$f":"IF(OR(Selection_Hide2!A160=0, Selection_Hide2!A160=\"\"), \"\", Selection_Hide2!A160)","v":""},{"$f":"IF(OR(Selection_Hide2!B160=0, Selection_Hide2!B160=\"\"), \"\", Selection_Hide2!B160)","v":""},{"$f":"IF(OR(Selection_Hide2!C160=0, Selection_Hide2!C160=\"\"), \"\", Selection_Hide2!C160)","v":""},{"$f":"IF(OR(Selection_Hide2!D160=0, Selection_Hide2!D160=\"\"), \"\", Selection_Hide2!D160)","v":""},{"$f":"IF(OR(Selection_Hide2!E160=0, Selection_Hide2!E160=\"\"), \"\", Selection_Hide2!E160)","v":""},{"$f":"IF(OR(Selection_Hide2!F160=0, Selection_Hide2!F160=\"\"), \"\", Selection_Hide2!F160)","v":""},{"$f":"IF(OR(Selection_Hide2!G160=0, Selection_Hide2!G160=\"\"), \"\", Selection_Hide2!G160)","v":""},{"$f":"IF(OR(Selection_Hide2!H160=0, Selection_Hide2!H160=\"\"), \"\", Selection_Hide2!H160)","v":""},{"$f":"IF(OR(Selection_Hide2!I160=0, Selection_Hide2!I160=\"\"), \"\", Selection_Hide2!I160)","v":""},{"$f":"IF(OR(Selection_Hide2!J160=0, Selection_Hide2!J160=\"\"), \"\", Selection_Hide2!J160)","v":""},{"$f":"IF(OR(Selection_Hide2!K160=0, Selection_Hide2!K160=\"\"), \"\", Selection_Hide2!K160)","v":""},{"$f":"IF(OR(Selection_Hide2!L160=0, Selection_Hide2!L160=\"\"), \"\", Selection_Hide2!L160)","v":""},{"$f":"IF(OR(Selection_Hide2!M160=0, Selection_Hide2!M160=\"\"), \"\", Selection_Hide2!M160)","v":""},{"$f":"IF(OR(Selection_Hide2!N160=0, Selection_Hide2!N160=\"\"), \"\", Selection_Hide2!N160)","v":""},{"$f":"IF(OR(Selection_Hide2!O160=0, Selection_Hide2!O160=\"\"), \"\", Selection_Hide2!O160)","v":""},{"$f":"IF(OR(Selection_Hide2!P160=0, Selection_Hide2!P160=\"\"), \"\", Selection_Hide2!P160)","v":""},{"$f":"IF(OR(Selection_Hide2!Q160=0, Selection_Hide2!Q160=\"\"), \"\", Selection_Hide2!Q160)","v":""},{"$f":"IF(OR(Selection_Hide2!R160=0, Selection_Hide2!R160=\"\"), \"\", Selection_Hide2!R160)","v":""},{"$f":"IF(OR(Selection_Hide2!S160=0, Selection_Hide2!S160=\"\"), \"\", Selection_Hide2!S160)","v":""},{"$f":"IF(OR(Selection_Hide2!T160=0, Selection_Hide2!T160=\"\"), \"\", Selection_Hide2!T160)","v":""},{"$f":"IF(OR(Selection_Hide2!U160=0, Selection_Hide2!U160=\"\"), \"\", Selection_Hide2!U160)","v":""},{"$f":"IF(OR(Selection_Hide2!V160=0, Selection_Hide2!V160=\"\"), \"\", Selection_Hide2!V160)","v":""},{"$f":"IF(OR(Selection_Hide2!W160=0, Selection_Hide2!W160=\"\"), \"\", Selection_Hide2!W160)","v":""},{"$f":"IF(OR(Selection_Hide2!X160=0, Selection_Hide2!X160=\"\"), \"\", Selection_Hide2!X160)","v":""},{"$f":"IF(OR(Selection_Hide2!Y160=0, Selection_Hide2!Y160=\"\"), \"\", Selection_Hide2!Y160)","v":""},{"$f":"IF(OR(Selection_Hide2!Z160=0, Selection_Hide2!Z160=\"\"), \"\", Selection_Hide2!Z160)","v":""},{"$f":"IF(OR(Selection_Hide2!AA160=0, Selection_Hide2!AA160=\"\"), \"\", Selection_Hide2!AA160)","v":""},{"$f":"IF(OR(Selection_Hide2!AB160=0, Selection_Hide2!AB160=\"\"), \"\", Selection_Hide2!AB160)","v":""}]
[{"$f":"IF(OR(Selection_Hide2!A161=0, Selection_Hide2!A161=\"\"), \"\", Selection_Hide2!A161)","v":""},{"$f":"IF(OR(Selection_Hide2!B161=0, Selection_Hide2!B161=\"\"), \"\", Selection_Hide2!B161)","v":""},{"$f":"IF(OR(Selection_Hide2!C161=0, Selection_Hide2!C161=\"\"), \"\", Selection_Hide2!C161)","v":""},{"$f":"IF(OR(Selection_Hide2!D161=0, Selection_Hide2!D161=\"\"), \"\", Selection_Hide2!D161)","v":""},{"$f":"IF(OR(Selection_Hide2!E161=0, Selection_Hide2!E161=\"\"), \"\", Selection_Hide2!E161)","v":""},{"$f":"IF(OR(Selection_Hide2!F161=0, Selection_Hide2!F161=\"\"), \"\", Selection_Hide2!F161)","v":""},{"$f":"IF(OR(Selection_Hide2!G161=0, Selection_Hide2!G161=\"\"), \"\", Selection_Hide2!G161)","v":""},{"$f":"IF(OR(Selection_Hide2!H161=0, Selection_Hide2!H161=\"\"), \"\", Selection_Hide2!H161)","v":""},{"$f":"IF(OR(Selection_Hide2!I161=0, Selection_Hide2!I161=\"\"), \"\", Selection_Hide2!I161)","v":""},{"$f":"IF(OR(Selection_Hide2!J161=0, Selection_Hide2!J161=\"\"), \"\", Selection_Hide2!J161)","v":""},{"$f":"IF(OR(Selection_Hide2!K161=0, Selection_Hide2!K161=\"\"), \"\", Selection_Hide2!K161)","v":""},{"$f":"IF(OR(Selection_Hide2!L161=0, Selection_Hide2!L161=\"\"), \"\", Selection_Hide2!L161)","v":""},{"$f":"IF(OR(Selection_Hide2!M161=0, Selection_Hide2!M161=\"\"), \"\", Selection_Hide2!M161)","v":""},{"$f":"IF(OR(Selection_Hide2!N161=0, Selection_Hide2!N161=\"\"), \"\", Selection_Hide2!N161)","v":""},{"$f":"IF(OR(Selection_Hide2!O161=0, Selection_Hide2!O161=\"\"), \"\", Selection_Hide2!O161)","v":""},{"$f":"IF(OR(Selection_Hide2!P161=0, Selection_Hide2!P161=\"\"), \"\", Selection_Hide2!P161)","v":""},{"$f":"IF(OR(Selection_Hide2!Q161=0, Selection_Hide2!Q161=\"\"), \"\", Selection_Hide2!Q161)","v":""},{"$f":"IF(OR(Selection_Hide2!R161=0, Selection_Hide2!R161=\"\"), \"\", Selection_Hide2!R161)","v":""},{"$f":"IF(OR(Selection_Hide2!S161=0, Selection_Hide2!S161=\"\"), \"\", Selection_Hide2!S161)","v":""},{"$f":"IF(OR(Selection_Hide2!T161=0, Selection_Hide2!T161=\"\"), \"\", Selection_Hide2!T161)","v":""},{"$f":"IF(OR(Selection_Hide2!U161=0, Selection_Hide2!U161=\"\"), \"\", Selection_Hide2!U161)","v":""},{"$f":"IF(OR(Selection_Hide2!V161=0, Selection_Hide2!V161=\"\"), \"\", Selection_Hide2!V161)","v":""},{"$f":"IF(OR(Selection_Hide2!W161=0, Selection_Hide2!W161=\"\"), \"\", Selection_Hide2!W161)","v":""},{"$f":"IF(OR(Selection_Hide2!X161=0, Selection_Hide2!X161=\"\"), \"\", Selection_Hide2!X161)","v":""},{"$f":"IF(OR(Selection_Hide2!Y161=0, Selection_Hide2!Y161=\"\"), \"\", Selection_Hide2!Y161)","v":""},{"$f":"IF(OR(Selection_Hide2!Z161=0, Selection_Hide2!Z161=\"\"), \"\", Selection_Hide2!Z161)","v":""},{"$f":"IF(OR(Selection_Hide2!AA161=0, Selection_Hide2!AA161=\"\"), \"\", Selection_Hide2!AA161)","v":""},{"$f":"IF(OR(Selection_Hide2!AB161=0, Selection_Hide2!AB161=\"\"), \"\", Selection_Hide2!AB161)","v":""}]
[{"$f":"IF(OR(Selection_Hide2!A162=0, Selection_Hide2!A162=\"\"), \"\", Selection_Hide2!A162)","v":""},{"$f":"IF(OR(Selection_Hide2!B162=0, Selection_Hide2!B162=\"\"), \"\", Selection_Hide2!B162)","v":""},{"$f":"IF(OR(Selection_Hide2!C162=0, Selection_Hide2!C162=\"\"), \"\", Selection_Hide2!C162)","v":""},{"$f":"IF(OR(Selection_Hide2!D162=0, Selection_Hide2!D162=\"\"), \"\", Selection_Hide2!D162)","v":""},{"$f":"IF(OR(Selection_Hide2!E162=0, Selection_Hide2!E162=\"\"), \"\", Selection_Hide2!E162)","v":""},{"$f":"IF(OR(Selection_Hide2!F162=0, Selection_Hide2!F162=\"\"), \"\", Selection_Hide2!F162)","v":""},{"$f":"IF(OR(Selection_Hide2!G162=0, Selection_Hide2!G162=\"\"), \"\", Selection_Hide2!G162)","v":""},{"$f":"IF(OR(Selection_Hide2!H162=0, Selection_Hide2!H162=\"\"), \"\", Selection_Hide2!H162)","v":""},{"$f":"IF(OR(Selection_Hide2!I162=0, Selection_Hide2!I162=\"\"), \"\", Selection_Hide2!I162)","v":""},{"$f":"IF(OR(Selection_Hide2!J162=0, Selection_Hide2!J162=\"\"), \"\", Selection_Hide2!J162)","v":""},{"$f":"IF(OR(Selection_Hide2!K162=0, Selection_Hide2!K162=\"\"), \"\", Selection_Hide2!K162)","v":""},{"$f":"IF(OR(Selection_Hide2!L162=0, Selection_Hide2!L162=\"\"), \"\", Selection_Hide2!L162)","v":""},{"$f":"IF(OR(Selection_Hide2!M162=0, Selection_Hide2!M162=\"\"), \"\", Selection_Hide2!M162)","v":""},{"$f":"IF(OR(Selection_Hide2!N162=0, Selection_Hide2!N162=\"\"), \"\", Selection_Hide2!N162)","v":""},{"$f":"IF(OR(Selection_Hide2!O162=0, Selection_Hide2!O162=\"\"), \"\", Selection_Hide2!O162)","v":""},{"$f":"IF(OR(Selection_Hide2!P162=0, Selection_Hide2!P162=\"\"), \"\", Selection_Hide2!P162)","v":""},{"$f":"IF(OR(Selection_Hide2!Q162=0, Selection_Hide2!Q162=\"\"), \"\", Selection_Hide2!Q162)","v":""},{"$f":"IF(OR(Selection_Hide2!R162=0, Selection_Hide2!R162=\"\"), \"\", Selection_Hide2!R162)","v":""},{"$f":"IF(OR(Selection_Hide2!S162=0, Selection_Hide2!S162=\"\"), \"\", Selection_Hide2!S162)","v":""},{"$f":"IF(OR(Selection_Hide2!T162=0, Selection_Hide2!T162=\"\"), \"\", Selection_Hide2!T162)","v":""},{"$f":"IF(OR(Selection_Hide2!U162=0, Selection_Hide2!U162=\"\"), \"\", Selection_Hide2!U162)","v":""},{"$f":"IF(OR(Selection_Hide2!V162=0, Selection_Hide2!V162=\"\"), \"\", Selection_Hide2!V162)","v":""},{"$f":"IF(OR(Selection_Hide2!W162=0, Selection_Hide2!W162=\"\"), \"\", Selection_Hide2!W162)","v":""},{"$f":"IF(OR(Selection_Hide2!X162=0, Selection_Hide2!X162=\"\"), \"\", Selection_Hide2!X162)","v":""},{"$f":"IF(OR(Selection_Hide2!Y162=0, Selection_Hide2!Y162=\"\"), \"\", Selection_Hide2!Y162)","v":""},{"$f":"IF(OR(Selection_Hide2!Z162=0, Selection_Hide2!Z162=\"\"), \"\", Selection_Hide2!Z162)","v":""},{"$f":"IF(OR(Selection_Hide2!AA162=0, Selection_Hide2!AA162=\"\"), \"\", Selection_Hide2!AA162)","v":""},{"$f":"IF(OR(Selection_Hide2!AB162=0, Selection_Hide2!AB162=\"\"), \"\", Selection_Hide2!AB162)","v":""}]
[{"$f":"IF(OR(Selection_Hide2!A163=0, Selection_Hide2!A163=\"\"), \"\", Selection_Hide2!A163)","v":""},{"$f":"IF(OR(Selection_Hide2!B163=0, Selection_Hide2!B163=\"\"), \"\", Selection_Hide2!B163)","v":""},{"$f":"IF(OR(Selection_Hide2!C163=0, Selection_Hide2!C163=\"\"), \"\", Selection_Hide2!C163)","v":""},{"$f":"IF(OR(Selection_Hide2!D163=0, Selection_Hide2!D163=\"\"), \"\", Selection_Hide2!D163)","v":""},{"$f":"IF(OR(Selection_Hide2!E163=0, Selection_Hide2!E163=\"\"), \"\", Selection_Hide2!E163)","v":""},{"$f":"IF(OR(Selection_Hide2!F163=0, Selection_Hide2!F163=\"\"), \"\", Selection_Hide2!F163)","v":""},{"$f":"IF(OR(Selection_Hide2!G163=0, Selection_Hide2!G163=\"\"), \"\", Selection_Hide2!G163)","v":""},{"$f":"IF(OR(Selection_Hide2!H163=0, Selection_Hide2!H163=\"\"), \"\", Selection_Hide2!H163)","v":""},{"$f":"IF(OR(Selection_Hide2!I163=0, Selection_Hide2!I163=\"\"), \"\", Selection_Hide2!I163)","v":""},{"$f":"IF(OR(Selection_Hide2!J163=0, Selection_Hide2!J163=\"\"), \"\", Selection_Hide2!J163)","v":""},{"$f":"IF(OR(Selection_Hide2!K163=0, Selection_Hide2!K163=\"\"), \"\", Selection_Hide2!K163)","v":""},{"$f":"IF(OR(Selection_Hide2!L163=0, Selection_Hide2!L163=\"\"), \"\", Selection_Hide2!L163)","v":""},{"$f":"IF(OR(Selection_Hide2!M163=0, Selection_Hide2!M163=\"\"), \"\", Selection_Hide2!M163)","v":""},{"$f":"IF(OR(Selection_Hide2!N163=0, Selection_Hide2!N163=\"\"), \"\", Selection_Hide2!N163)","v":""},{"$f":"IF(OR(Selection_Hide2!O163=0, Selection_Hide2!O163=\"\"), \"\", Selection_Hide2!O163)","v":""},{"$f":"IF(OR(Selection_Hide2!P163=0, Selection_Hide2!P163=\"\"), \"\", Selection_Hide2!P163)","v":""},{"$f":"IF(OR(Selection_Hide2!Q163=0, Selection_Hide2!Q163=\"\"), \"\", Selection_Hide2!Q163)","v":""},{"$f":"IF(OR(Selection_Hide2!R163=0, Selection_Hide2!R163=\"\"), \"\", Selection_Hide2!R163)","v":""},{"$f":"IF(OR(Selection_Hide2!S163=0, Selection_Hide2!S163=\"\"), \"\", Selection_Hide2!S163)","v":""},{"$f":"IF(OR(Selection_Hide2!T163=0, Selection_Hide2!T163=\"\"), \"\", Selection_Hide2!T163)","v":""},{"$f":"IF(OR(Selection_Hide2!U163=0, Selection_Hide2!U163=\"\"), \"\", Selection_Hide2!U163)","v":""},{"$f":"IF(OR(Selection_Hide2!V163=0, Selection_Hide2!V163=\"\"), \"\", Selection_Hide2!V163)","v":""},{"$f":"IF(OR(Selection_Hide2!W163=0, Selection_Hide2!W163=\"\"), \"\", Selection_Hide2!W163)","v":""},{"$f":"IF(OR(Selection_Hide2!X163=0, Selection_Hide2!X163=\"\"), \"\", Selection_Hide2!X163)","v":""},{"$f":"IF(OR(Selection_Hide2!Y163=0, Selection_Hide2!Y163=\"\"), \"\", Selection_Hide2!Y163)","v":""},{"$f":"IF(OR(Selection_Hide2!Z163=0, Selection_Hide2!Z163=\"\"), \"\", Selection_Hide2!Z163)","v":""},{"$f":"IF(OR(Selection_Hide2!AA163=0, Selection_Hide2!AA163=\"\"), \"\", Selection_Hide2!AA163)","v":""},{"$f":"IF(OR(Selection_Hide2!AB163=0, Selection_Hide2!AB163=\"\"), \"\", Selection_Hide2!AB163)","v":""}]
[{"$f":"IF(OR(Selection_Hide2!A164=0, Selection_Hide2!A164=\"\"), \"\", Selection_Hide2!A164)","v":""},{"$f":"IF(OR(Selection_Hide2!B164=0, Selection_Hide2!B164=\"\"), \"\", Selection_Hide2!B164)","v":""},{"$f":"IF(OR(Selection_Hide2!C164=0, Selection_Hide2!C164=\"\"), \"\", Selection_Hide2!C164)","v":""},{"$f":"IF(OR(Selection_Hide2!D164=0, Selection_Hide2!D164=\"\"), \"\", Selection_Hide2!D164)","v":""},{"$f":"IF(OR(Selection_Hide2!E164=0, Selection_Hide2!E164=\"\"), \"\", Selection_Hide2!E164)","v":""},{"$f":"IF(OR(Selection_Hide2!F164=0, Selection_Hide2!F164=\"\"), \"\", Selection_Hide2!F164)","v":""},{"$f":"IF(OR(Selection_Hide2!G164=0, Selection_Hide2!G164=\"\"), \"\", Selection_Hide2!G164)","v":""},{"$f":"IF(OR(Selection_Hide2!H164=0, Selection_Hide2!H164=\"\"), \"\", Selection_Hide2!H164)","v":""},{"$f":"IF(OR(Selection_Hide2!I164=0, Selection_Hide2!I164=\"\"), \"\", Selection_Hide2!I164)","v":""},{"$f":"IF(OR(Selection_Hide2!J164=0, Selection_Hide2!J164=\"\"), \"\", Selection_Hide2!J164)","v":""},{"$f":"IF(OR(Selection_Hide2!K164=0, Selection_Hide2!K164=\"\"), \"\", Selection_Hide2!K164)","v":""},{"$f":"IF(OR(Selection_Hide2!L164=0, Selection_Hide2!L164=\"\"), \"\", Selection_Hide2!L164)","v":""},{"$f":"IF(OR(Selection_Hide2!M164=0, Selection_Hide2!M164=\"\"), \"\", Selection_Hide2!M164)","v":""},{"$f":"IF(OR(Selection_Hide2!N164=0, Selection_Hide2!N164=\"\"), \"\", Selection_Hide2!N164)","v":""},{"$f":"IF(OR(Selection_Hide2!O164=0, Selection_Hide2!O164=\"\"), \"\", Selection_Hide2!O164)","v":""},{"$f":"IF(OR(Selection_Hide2!P164=0, Selection_Hide2!P164=\"\"), \"\", Selection_Hide2!P164)","v":""},{"$f":"IF(OR(Selection_Hide2!Q164=0, Selection_Hide2!Q164=\"\"), \"\", Selection_Hide2!Q164)","v":""},{"$f":"IF(OR(Selection_Hide2!R164=0, Selection_Hide2!R164=\"\"), \"\", Selection_Hide2!R164)","v":""},{"$f":"IF(OR(Selection_Hide2!S164=0, Selection_Hide2!S164=\"\"), \"\", Selection_Hide2!S164)","v":""},{"$f":"IF(OR(Selection_Hide2!T164=0, Selection_Hide2!T164=\"\"), \"\", Selection_Hide2!T164)","v":""},{"$f":"IF(OR(Selection_Hide2!U164=0, Selection_Hide2!U164=\"\"), \"\", Selection_Hide2!U164)","v":""},{"$f":"IF(OR(Selection_Hide2!V164=0, Selection_Hide2!V164=\"\"), \"\", Selection_Hide2!V164)","v":""},{"$f":"IF(OR(Selection_Hide2!W164=0, Selection_Hide2!W164=\"\"), \"\", Selection_Hide2!W164)","v":""},{"$f":"IF(OR(Selection_Hide2!X164=0, Selection_Hide2!X164=\"\"), \"\", Selection_Hide2!X164)","v":""},{"$f":"IF(OR(Selection_Hide2!Y164=0, Selection_Hide2!Y164=\"\"), \"\", Selection_Hide2!Y164)","v":""},{"$f":"IF(OR(Selection_Hide2!Z164=0, Selection_Hide2!Z164=\"\"), \"\", Selection_Hide2!Z164)","v":""},{"$f":"IF(OR(Selection_Hide2!AA164=0, Selection_Hide2!AA164=\"\"), \"\", Selection_Hide2!AA164)","v":""},{"$f":"IF(OR(Selection_Hide2!AB164=0, Selection_Hide2!AB164=\"\"), \"\", Selection_Hide2!AB164)","v":""}]
[{"$f":"IF(OR(Selection_Hide2!A165=0, Selection_Hide2!A165=\"\"), \"\", Selection_Hide2!A165)","v":""},{"$f":"IF(OR(Selection_Hide2!B165=0, Selection_Hide2!B165=\"\"), \"\", Selection_Hide2!B165)","v":""},{"$f":"IF(OR(Selection_Hide2!C165=0, Selection_Hide2!C165=\"\"), \"\", Selection_Hide2!C165)","v":""},{"$f":"IF(OR(Selection_Hide2!D165=0, Selection_Hide2!D165=\"\"), \"\", Selection_Hide2!D165)","v":""},{"$f":"IF(OR(Selection_Hide2!E165=0, Selection_Hide2!E165=\"\"), \"\", Selection_Hide2!E165)","v":""},{"$f":"IF(OR(Selection_Hide2!F165=0, Selection_Hide2!F165=\"\"), \"\", Selection_Hide2!F165)","v":""},{"$f":"IF(OR(Selection_Hide2!G165=0, Selection_Hide2!G165=\"\"), \"\", Selection_Hide2!G165)","v":""},{"$f":"IF(OR(Selection_Hide2!H165=0, Selection_Hide2!H165=\"\"), \"\", Selection_Hide2!H165)","v":""},{"$f":"IF(OR(Selection_Hide2!I165=0, Selection_Hide2!I165=\"\"), \"\", Selection_Hide2!I165)","v":""},{"$f":"IF(OR(Selection_Hide2!J165=0, Selection_Hide2!J165=\"\"), \"\", Selection_Hide2!J165)","v":""},{"$f":"IF(OR(Selection_Hide2!K165=0, Selection_Hide2!K165=\"\"), \"\", Selection_Hide2!K165)","v":""},{"$f":"IF(OR(Selection_Hide2!L165=0, Selection_Hide2!L165=\"\"), \"\", Selection_Hide2!L165)","v":""},{"$f":"IF(OR(Selection_Hide2!M165=0, Selection_Hide2!M165=\"\"), \"\", Selection_Hide2!M165)","v":""},{"$f":"IF(OR(Selection_Hide2!N165=0, Selection_Hide2!N165=\"\"), \"\", Selection_Hide2!N165)","v":""},{"$f":"IF(OR(Selection_Hide2!O165=0, Selection_Hide2!O165=\"\"), \"\", Selection_Hide2!O165)","v":""},{"$f":"IF(OR(Selection_Hide2!P165=0, Selection_Hide2!P165=\"\"), \"\", Selection_Hide2!P165)","v":""},{"$f":"IF(OR(Selection_Hide2!Q165=0, Selection_Hide2!Q165=\"\"), \"\", Selection_Hide2!Q165)","v":""},{"$f":"IF(OR(Selection_Hide2!R165=0, Selection_Hide2!R165=\"\"), \"\", Selection_Hide2!R165)","v":""},{"$f":"IF(OR(Selection_Hide2!S165=0, Selection_Hide2!S165=\"\"), \"\", Selection_Hide2!S165)","v":""},{"$f":"IF(OR(Selection_Hide2!T165=0, Selection_Hide2!T165=\"\"), \"\", Selection_Hide2!T165)","v":""},{"$f":"IF(OR(Selection_Hide2!U165=0, Selection_Hide2!U165=\"\"), \"\", Selection_Hide2!U165)","v":""},{"$f":"IF(OR(Selection_Hide2!V165=0, Selection_Hide2!V165=\"\"), \"\", Selection_Hide2!V165)","v":""},{"$f":"IF(OR(Selection_Hide2!W165=0, Selection_Hide2!W165=\"\"), \"\", Selection_Hide2!W165)","v":""},{"$f":"IF(OR(Selection_Hide2!X165=0, Selection_Hide2!X165=\"\"), \"\", Selection_Hide2!X165)","v":""},{"$f":"IF(OR(Selection_Hide2!Y165=0, Selection_Hide2!Y165=\"\"), \"\", Selection_Hide2!Y165)","v":""},{"$f":"IF(OR(Selection_Hide2!Z165=0, Selection_Hide2!Z165=\"\"), \"\", Selection_Hide2!Z165)","v":""},{"$f":"IF(OR(Selection_Hide2!AA165=0, Selection_Hide2!AA165=\"\"), \"\", Selection_Hide2!AA165)","v":""},{"$f":"IF(OR(Selection_Hide2!AB165=0, Selection_Hide2!AB165=\"\"), \"\", Selection_Hide2!AB165)","v":""}]
[{"$f":"IF(OR(Selection_Hide2!A166=0, Selection_Hide2!A166=\"\"), \"\", Selection_Hide2!A166)","v":""},{"$f":"IF(OR(Selection_Hide2!B166=0, Selection_Hide2!B166=\"\"), \"\", Selection_Hide2!B166)","v":""},{"$f":"IF(OR(Selection_Hide2!C166=0, Selection_Hide2!C166=\"\"), \"\", Selection_Hide2!C166)","v":""},{"$f":"IF(OR(Selection_Hide2!D166=0, Selection_Hide2!D166=\"\"), \"\", Selection_Hide2!D166)","v":""},{"$f":"IF(OR(Selection_Hide2!E166=0, Selection_Hide2!E166=\"\"), \"\", Selection_Hide2!E166)","v":""},{"$f":"IF(OR(Selection_Hide2!F166=0, Selection_Hide2!F166=\"\"), \"\", Selection_Hide2!F166)","v":""},{"$f":"IF(OR(Selection_Hide2!G166=0, Selection_Hide2!G166=\"\"), \"\", Selection_Hide2!G166)","v":""},{"$f":"IF(OR(Selection_Hide2!H166=0, Selection_Hide2!H166=\"\"), \"\", Selection_Hide2!H166)","v":""},{"$f":"IF(OR(Selection_Hide2!I166=0, Selection_Hide2!I166=\"\"), \"\", Selection_Hide2!I166)","v":""},{"$f":"IF(OR(Selection_Hide2!J166=0, Selection_Hide2!J166=\"\"), \"\", Selection_Hide2!J166)","v":""},{"$f":"IF(OR(Selection_Hide2!K166=0, Selection_Hide2!K166=\"\"), \"\", Selection_Hide2!K166)","v":""},{"$f":"IF(OR(Selection_Hide2!L166=0, Selection_Hide2!L166=\"\"), \"\", Selection_Hide2!L166)","v":""},{"$f":"IF(OR(Selection_Hide2!M166=0, Selection_Hide2!M166=\"\"), \"\", Selection_Hide2!M166)","v":""},{"$f":"IF(OR(Selection_Hide2!N166=0, Selection_Hide2!N166=\"\"), \"\", Selection_Hide2!N166)","v":""},{"$f":"IF(OR(Selection_Hide2!O166=0, Selection_Hide2!O166=\"\"), \"\", Selection_Hide2!O166)","v":""},{"$f":"IF(OR(Selection_Hide2!P166=0, Selection_Hide2!P166=\"\"), \"\", Selection_Hide2!P166)","v":""},{"$f":"IF(OR(Selection_Hide2!Q166=0, Selection_Hide2!Q166=\"\"), \"\", Selection_Hide2!Q166)","v":""},{"$f":"IF(OR(Selection_Hide2!R166=0, Selection_Hide2!R166=\"\"), \"\", Selection_Hide2!R166)","v":""},{"$f":"IF(OR(Selection_Hide2!S166=0, Selection_Hide2!S166=\"\"), \"\", Selection_Hide2!S166)","v":""},{"$f":"IF(OR(Selection_Hide2!T166=0, Selection_Hide2!T166=\"\"), \"\", Selection_Hide2!T166)","v":""},{"$f":"IF(OR(Selection_Hide2!U166=0, Selection_Hide2!U166=\"\"), \"\", Selection_Hide2!U166)","v":""},{"$f":"IF(OR(Selection_Hide2!V166=0, Selection_Hide2!V166=\"\"), \"\", Selection_Hide2!V166)","v":""},{"$f":"IF(OR(Selection_Hide2!W166=0, Selection_Hide2!W166=\"\"), \"\", Selection_Hide2!W166)","v":""},{"$f":"IF(OR(Selection_Hide2!X166=0, Selection_Hide2!X166=\"\"), \"\", Selection_Hide2!X166)","v":""},{"$f":"IF(OR(Selection_Hide2!Y166=0, Selection_Hide2!Y166=\"\"), \"\", Selection_Hide2!Y166)","v":""},{"$f":"IF(OR(Selection_Hide2!Z166=0, Selection_Hide2!Z166=\"\"), \"\", Selection_Hide2!Z166)","v":""},{"$f":"IF(OR(Selection_Hide2!AA166=0, Selection_Hide2!AA166=\"\"), \"\", Selection_Hide2!AA166)","v":""},{"$f":"IF(OR(Selection_Hide2!AB166=0, Selection_Hide2!AB166=\"\"), \"\", Selection_Hide2!AB166)","v":""}]
[{"$f":"IF(OR(Selection_Hide2!A167=0, Selection_Hide2!A167=\"\"), \"\", Selection_Hide2!A167)","v":""},{"$f":"IF(OR(Selection_Hide2!B167=0, Selection_Hide2!B167=\"\"), \"\", Selection_Hide2!B167)","v":""},{"$f":"IF(OR(Selection_Hide2!C167=0, Selection_Hide2!C167=\"\"), \"\", Selection_Hide2!C167)","v":""},{"$f":"IF(OR(Selection_Hide2!D167=0, Selection_Hide2!D167=\"\"), \"\", Selection_Hide2!D167)","v":""},{"$f":"IF(OR(Selection_Hide2!E167=0, Selection_Hide2!E167=\"\"), \"\", Selection_Hide2!E167)","v":""},{"$f":"IF(OR(Selection_Hide2!F167=0, Selection_Hide2!F167=\"\"), \"\", Selection_Hide2!F167)","v":""},{"$f":"IF(OR(Selection_Hide2!G167=0, Selection_Hide2!G167=\"\"), \"\", Selection_Hide2!G167)","v":""},{"$f":"IF(OR(Selection_Hide2!H167=0, Selection_Hide2!H167=\"\"), \"\", Selection_Hide2!H167)","v":""},{"$f":"IF(OR(Selection_Hide2!I167=0, Selection_Hide2!I167=\"\"), \"\", Selection_Hide2!I167)","v":""},{"$f":"IF(OR(Selection_Hide2!J167=0, Selection_Hide2!J167=\"\"), \"\", Selection_Hide2!J167)","v":""},{"$f":"IF(OR(Selection_Hide2!K167=0, Selection_Hide2!K167=\"\"), \"\", Selection_Hide2!K167)","v":""},{"$f":"IF(OR(Selection_Hide2!L167=0, Selection_Hide2!L167=\"\"), \"\", Selection_Hide2!L167)","v":""},{"$f":"IF(OR(Selection_Hide2!M167=0, Selection_Hide2!M167=\"\"), \"\", Selection_Hide2!M167)","v":""},{"$f":"IF(OR(Selection_Hide2!N167=0, Selection_Hide2!N167=\"\"), \"\", Selection_Hide2!N167)","v":""},{"$f":"IF(OR(Selection_Hide2!O167=0, Selection_Hide2!O167=\"\"), \"\", Selection_Hide2!O167)","v":""},{"$f":"IF(OR(Selection_Hide2!P167=0, Selection_Hide2!P167=\"\"), \"\", Selection_Hide2!P167)","v":""},{"$f":"IF(OR(Selection_Hide2!Q167=0, Selection_Hide2!Q167=\"\"), \"\", Selection_Hide2!Q167)","v":""},{"$f":"IF(OR(Selection_Hide2!R167=0, Selection_Hide2!R167=\"\"), \"\", Selection_Hide2!R167)","v":""},{"$f":"IF(OR(Selection_Hide2!S167=0, Selection_Hide2!S167=\"\"), \"\", Selection_Hide2!S167)","v":""},{"$f":"IF(OR(Selection_Hide2!T167=0, Selection_Hide2!T167=\"\"), \"\", Selection_Hide2!T167)","v":""},{"$f":"IF(OR(Selection_Hide2!U167=0, Selection_Hide2!U167=\"\"), \"\", Selection_Hide2!U167)","v":""},{"$f":"IF(OR(Selection_Hide2!V167=0, Selection_Hide2!V167=\"\"), \"\", Selection_Hide2!V167)","v":""},{"$f":"IF(OR(Selection_Hide2!W167=0, Selection_Hide2!W167=\"\"), \"\", Selection_Hide2!W167)","v":""},{"$f":"IF(OR(Selection_Hide2!X167=0, Selection_Hide2!X167=\"\"), \"\", Selection_Hide2!X167)","v":""},{"$f":"IF(OR(Selection_Hide2!Y167=0, Selection_Hide2!Y167=\"\"), \"\", Selection_Hide2!Y167)","v":""},{"$f":"IF(OR(Selection_Hide2!Z167=0, Selection_Hide2!Z167=\"\"), \"\", Selection_Hide2!Z167)","v":""},{"$f":"IF(OR(Selection_Hide2!AA167=0, Selection_Hide2!AA167=\"\"), \"\", Selection_Hide2!AA167)","v":""},{"$f":"IF(OR(Selection_Hide2!AB167=0, Selection_Hide2!AB167=\"\"), \"\", Selection_Hide2!AB167)","v":""}]
[{"$f":"IF(OR(Selection_Hide2!A168=0, Selection_Hide2!A168=\"\"), \"\", Selection_Hide2!A168)","v":""},{"$f":"IF(OR(Selection_Hide2!B168=0, Selection_Hide2!B168=\"\"), \"\", Selection_Hide2!B168)","v":""},{"$f":"IF(OR(Selection_Hide2!C168=0, Selection_Hide2!C168=\"\"), \"\", Selection_Hide2!C168)","v":""},{"$f":"IF(OR(Selection_Hide2!D168=0, Selection_Hide2!D168=\"\"), \"\", Selection_Hide2!D168)","v":""},{"$f":"IF(OR(Selection_Hide2!E168=0, Selection_Hide2!E168=\"\"), \"\", Selection_Hide2!E168)","v":""},{"$f":"IF(OR(Selection_Hide2!F168=0, Selection_Hide2!F168=\"\"), \"\", Selection_Hide2!F168)","v":""},{"$f":"IF(OR(Selection_Hide2!G168=0, Selection_Hide2!G168=\"\"), \"\", Selection_Hide2!G168)","v":""},{"$f":"IF(OR(Selection_Hide2!H168=0, Selection_Hide2!H168=\"\"), \"\", Selection_Hide2!H168)","v":""},{"$f":"IF(OR(Selection_Hide2!I168=0, Selection_Hide2!I168=\"\"), \"\", Selection_Hide2!I168)","v":""},{"$f":"IF(OR(Selection_Hide2!J168=0, Selection_Hide2!J168=\"\"), \"\", Selection_Hide2!J168)","v":""},{"$f":"IF(OR(Selection_Hide2!K168=0, Selection_Hide2!K168=\"\"), \"\", Selection_Hide2!K168)","v":""},{"$f":"IF(OR(Selection_Hide2!L168=0, Selection_Hide2!L168=\"\"), \"\", Selection_Hide2!L168)","v":""},{"$f":"IF(OR(Selection_Hide2!M168=0, Selection_Hide2!M168=\"\"), \"\", Selection_Hide2!M168)","v":""},{"$f":"IF(OR(Selection_Hide2!N168=0, Selection_Hide2!N168=\"\"), \"\", Selection_Hide2!N168)","v":""},{"$f":"IF(OR(Selection_Hide2!O168=0, Selection_Hide2!O168=\"\"), \"\", Selection_Hide2!O168)","v":""},{"$f":"IF(OR(Selection_Hide2!P168=0, Selection_Hide2!P168=\"\"), \"\", Selection_Hide2!P168)","v":""},{"$f":"IF(OR(Selection_Hide2!Q168=0, Selection_Hide2!Q168=\"\"), \"\", Selection_Hide2!Q168)","v":""},{"$f":"IF(OR(Selection_Hide2!R168=0, Selection_Hide2!R168=\"\"), \"\", Selection_Hide2!R168)","v":""},{"$f":"IF(OR(Selection_Hide2!S168=0, Selection_Hide2!S168=\"\"), \"\", Selection_Hide2!S168)","v":""},{"$f":"IF(OR(Selection_Hide2!T168=0, Selection_Hide2!T168=\"\"), \"\", Selection_Hide2!T168)","v":""},{"$f":"IF(OR(Selection_Hide2!U168=0, Selection_Hide2!U168=\"\"), \"\", Selection_Hide2!U168)","v":""},{"$f":"IF(OR(Selection_Hide2!V168=0, Selection_Hide2!V168=\"\"), \"\", Selection_Hide2!V168)","v":""},{"$f":"IF(OR(Selection_Hide2!W168=0, Selection_Hide2!W168=\"\"), \"\", Selection_Hide2!W168)","v":""},{"$f":"IF(OR(Selection_Hide2!X168=0, Selection_Hide2!X168=\"\"), \"\", Selection_Hide2!X168)","v":""},{"$f":"IF(OR(Selection_Hide2!Y168=0, Selection_Hide2!Y168=\"\"), \"\", Selection_Hide2!Y168)","v":""},{"$f":"IF(OR(Selection_Hide2!Z168=0, Selection_Hide2!Z168=\"\"), \"\", Selection_Hide2!Z168)","v":""},{"$f":"IF(OR(Selection_Hide2!AA168=0, Selection_Hide2!AA168=\"\"), \"\", Selection_Hide2!AA168)","v":""},{"$f":"IF(OR(Selection_Hide2!AB168=0, Selection_Hide2!AB168=\"\"), \"\", Selection_Hide2!AB168)","v":""}]
[{"$f":"IF(OR(Selection_Hide2!A169=0, Selection_Hide2!A169=\"\"), \"\", Selection_Hide2!A169)","v":""},{"$f":"IF(OR(Selection_Hide2!B169=0, Selection_Hide2!B169=\"\"), \"\", Selection_Hide2!B169)","v":""},{"$f":"IF(OR(Selection_Hide2!C169=0, Selection_Hide2!C169=\"\"), \"\", Selection_Hide2!C169)","v":""},{"$f":"IF(OR(Selection_Hide2!D169=0, Selection_Hide2!D169=\"\"), \"\", Selection_Hide2!D169)","v":""},{"$f":"IF(OR(Selection_Hide2!E169=0, Selection_Hide2!E169=\"\"), \"\", Selection_Hide2!E169)","v":""},{"$f":"IF(OR(Selection_Hide2!F169=0, Selection_Hide2!F169=\"\"), \"\", Selection_Hide2!F169)","v":""},{"$f":"IF(OR(Selection_Hide2!G169=0, Selection_Hide2!G169=\"\"), \"\", Selection_Hide2!G169)","v":""},{"$f":"IF(OR(Selection_Hide2!H169=0, Selection_Hide2!H169=\"\"), \"\", Selection_Hide2!H169)","v":""},{"$f":"IF(OR(Selection_Hide2!I169=0, Selection_Hide2!I169=\"\"), \"\", Selection_Hide2!I169)","v":""},{"$f":"IF(OR(Selection_Hide2!J169=0, Selection_Hide2!J169=\"\"), \"\", Selection_Hide2!J169)","v":""},{"$f":"IF(OR(Selection_Hide2!K169=0, Selection_Hide2!K169=\"\"), \"\", Selection_Hide2!K169)","v":""},{"$f":"IF(OR(Selection_Hide2!L169=0, Selection_Hide2!L169=\"\"), \"\", Selection_Hide2!L169)","v":""},{"$f":"IF(OR(Selection_Hide2!M169=0, Selection_Hide2!M169=\"\"), \"\", Selection_Hide2!M169)","v":""},{"$f":"IF(OR(Selection_Hide2!N169=0, Selection_Hide2!N169=\"\"), \"\", Selection_Hide2!N169)","v":""},{"$f":"IF(OR(Selection_Hide2!O169=0, Selection_Hide2!O169=\"\"), \"\", Selection_Hide2!O169)","v":""},{"$f":"IF(OR(Selection_Hide2!P169=0, Selection_Hide2!P169=\"\"), \"\", Selection_Hide2!P169)","v":""},{"$f":"IF(OR(Selection_Hide2!Q169=0, Selection_Hide2!Q169=\"\"), \"\", Selection_Hide2!Q169)","v":""},{"$f":"IF(OR(Selection_Hide2!R169=0, Selection_Hide2!R169=\"\"), \"\", Selection_Hide2!R169)","v":""},{"$f":"IF(OR(Selection_Hide2!S169=0, Selection_Hide2!S169=\"\"), \"\", Selection_Hide2!S169)","v":""},{"$f":"IF(OR(Selection_Hide2!T169=0, Selection_Hide2!T169=\"\"), \"\", Selection_Hide2!T169)","v":""},{"$f":"IF(OR(Selection_Hide2!U169=0, Selection_Hide2!U169=\"\"), \"\", Selection_Hide2!U169)","v":""},{"$f":"IF(OR(Selection_Hide2!V169=0, Selection_Hide2!V169=\"\"), \"\", Selection_Hide2!V169)","v":""},{"$f":"IF(OR(Selection_Hide2!W169=0, Selection_Hide2!W169=\"\"), \"\", Selection_Hide2!W169)","v":""},{"$f":"IF(OR(Selection_Hide2!X169=0, Selection_Hide2!X169=\"\"), \"\", Selection_Hide2!X169)","v":""},{"$f":"IF(OR(Selection_Hide2!Y169=0, Selection_Hide2!Y169=\"\"), \"\", Selection_Hide2!Y169)","v":""},{"$f":"IF(OR(Selection_Hide2!Z169=0, Selection_Hide2!Z169=\"\"), \"\", Selection_Hide2!Z169)","v":""},{"$f":"IF(OR(Selection_Hide2!AA169=0, Selection_Hide2!AA169=\"\"), \"\", Selection_Hide2!AA169)","v":""},{"$f":"IF(OR(Selection_Hide2!AB169=0, Selection_Hide2!AB169=\"\"), \"\", Selection_Hide2!AB169)","v":""}]
[{"$f":"IF(OR(Selection_Hide2!A170=0, Selection_Hide2!A170=\"\"), \"\", Selection_Hide2!A170)","v":""},{"$f":"IF(OR(Selection_Hide2!B170=0, Selection_Hide2!B170=\"\"), \"\", Selection_Hide2!B170)","v":""},{"$f":"IF(OR(Selection_Hide2!C170=0, Selection_Hide2!C170=\"\"), \"\", Selection_Hide2!C170)","v":""},{"$f":"IF(OR(Selection_Hide2!D170=0, Selection_Hide2!D170=\"\"), \"\", Selection_Hide2!D170)","v":""},{"$f":"IF(OR(Selection_Hide2!E170=0, Selection_Hide2!E170=\"\"), \"\", Selection_Hide2!E170)","v":""},{"$f":"IF(OR(Selection_Hide2!F170=0, Selection_Hide2!F170=\"\"), \"\", Selection_Hide2!F170)","v":""},{"$f":"IF(OR(Selection_Hide2!G170=0, Selection_Hide2!G170=\"\"), \"\", Selection_Hide2!G170)","v":""},{"$f":"IF(OR(Selection_Hide2!H170=0, Selection_Hide2!H170=\"\"), \"\", Selection_Hide2!H170)","v":""},{"$f":"IF(OR(Selection_Hide2!I170=0, Selection_Hide2!I170=\"\"), \"\", Selection_Hide2!I170)","v":""},{"$f":"IF(OR(Selection_Hide2!J170=0, Selection_Hide2!J170=\"\"), \"\", Selection_Hide2!J170)","v":""},{"$f":"IF(OR(Selection_Hide2!K170=0, Selection_Hide2!K170=\"\"), \"\", Selection_Hide2!K170)","v":""},{"$f":"IF(OR(Selection_Hide2!L170=0, Selection_Hide2!L170=\"\"), \"\", Selection_Hide2!L170)","v":""},{"$f":"IF(OR(Selection_Hide2!M170=0, Selection_Hide2!M170=\"\"), \"\", Selection_Hide2!M170)","v":""},{"$f":"IF(OR(Selection_Hide2!N170=0, Selection_Hide2!N170=\"\"), \"\", Selection_Hide2!N170)","v":""},{"$f":"IF(OR(Selection_Hide2!O170=0, Selection_Hide2!O170=\"\"), \"\", Selection_Hide2!O170)","v":""},{"$f":"IF(OR(Selection_Hide2!P170=0, Selection_Hide2!P170=\"\"), \"\", Selection_Hide2!P170)","v":""},{"$f":"IF(OR(Selection_Hide2!Q170=0, Selection_Hide2!Q170=\"\"), \"\", Selection_Hide2!Q170)","v":""},{"$f":"IF(OR(Selection_Hide2!R170=0, Selection_Hide2!R170=\"\"), \"\", Selection_Hide2!R170)","v":""},{"$f":"IF(OR(Selection_Hide2!S170=0, Selection_Hide2!S170=\"\"), \"\", Selection_Hide2!S170)","v":""},{"$f":"IF(OR(Selection_Hide2!T170=0, Selection_Hide2!T170=\"\"), \"\", Selection_Hide2!T170)","v":""},{"$f":"IF(OR(Selection_Hide2!U170=0, Selection_Hide2!U170=\"\"), \"\", Selection_Hide2!U170)","v":""},{"$f":"IF(OR(Selection_Hide2!V170=0, Selection_Hide2!V170=\"\"), \"\", Selection_Hide2!V170)","v":""},{"$f":"IF(OR(Selection_Hide2!W170=0, Selection_Hide2!W170=\"\"), \"\", Selection_Hide2!W170)","v":""},{"$f":"IF(OR(Selection_Hide2!X170=0, Selection_Hide2!X170=\"\"), \"\", Selection_Hide2!X170)","v":""},{"$f":"IF(OR(Selection_Hide2!Y170=0, Selection_Hide2!Y170=\"\"), \"\", Selection_Hide2!Y170)","v":""},{"$f":"IF(OR(Selection_Hide2!Z170=0, Selection_Hide2!Z170=\"\"), \"\", Selection_Hide2!Z170)","v":""},{"$f":"IF(OR(Selection_Hide2!AA170=0, Selection_Hide2!AA170=\"\"), \"\", Selection_Hide2!AA170)","v":""},{"$f":"IF(OR(Selection_Hide2!AB170=0, Selection_Hide2!AB170=\"\"), \"\", Selection_Hide2!AB170)","v":""}]
[{"$f":"IF(OR(Selection_Hide2!A171=0, Selection_Hide2!A171=\"\"), \"\", Selection_Hide2!A171)","v":""},{"$f":"IF(OR(Selection_Hide2!B171=0, Selection_Hide2!B171=\"\"), \"\", Selection_Hide2!B171)","v":""},{"$f":"IF(OR(Selection_Hide2!C171=0, Selection_Hide2!C171=\"\"), \"\", Selection_Hide2!C171)","v":""},{"$f":"IF(OR(Selection_Hide2!D171=0, Selection_Hide2!D171=\"\"), \"\", Selection_Hide2!D171)","v":""},{"$f":"IF(OR(Selection_Hide2!E171=0, Selection_Hide2!E171=\"\"), \"\", Selection_Hide2!E171)","v":""},{"$f":"IF(OR(Selection_Hide2!F171=0, Selection_Hide2!F171=\"\"), \"\", Selection_Hide2!F171)","v":""},{"$f":"IF(OR(Selection_Hide2!G171=0, Selection_Hide2!G171=\"\"), \"\", Selection_Hide2!G171)","v":""},{"$f":"IF(OR(Selection_Hide2!H171=0, Selection_Hide2!H171=\"\"), \"\", Selection_Hide2!H171)","v":""},{"$f":"IF(OR(Selection_Hide2!I171=0, Selection_Hide2!I171=\"\"), \"\", Selection_Hide2!I171)","v":""},{"$f":"IF(OR(Selection_Hide2!J171=0, Selection_Hide2!J171=\"\"), \"\", Selection_Hide2!J171)","v":""},{"$f":"IF(OR(Selection_Hide2!K171=0, Selection_Hide2!K171=\"\"), \"\", Selection_Hide2!K171)","v":""},{"$f":"IF(OR(Selection_Hide2!L171=0, Selection_Hide2!L171=\"\"), \"\", Selection_Hide2!L171)","v":""},{"$f":"IF(OR(Selection_Hide2!M171=0, Selection_Hide2!M171=\"\"), \"\", Selection_Hide2!M171)","v":""},{"$f":"IF(OR(Selection_Hide2!N171=0, Selection_Hide2!N171=\"\"), \"\", Selection_Hide2!N171)","v":""},{"$f":"IF(OR(Selection_Hide2!O171=0, Selection_Hide2!O171=\"\"), \"\", Selection_Hide2!O171)","v":""},{"$f":"IF(OR(Selection_Hide2!P171=0, Selection_Hide2!P171=\"\"), \"\", Selection_Hide2!P171)","v":""},{"$f":"IF(OR(Selection_Hide2!Q171=0, Selection_Hide2!Q171=\"\"), \"\", Selection_Hide2!Q171)","v":""},{"$f":"IF(OR(Selection_Hide2!R171=0, Selection_Hide2!R171=\"\"), \"\", Selection_Hide2!R171)","v":""},{"$f":"IF(OR(Selection_Hide2!S171=0, Selection_Hide2!S171=\"\"), \"\", Selection_Hide2!S171)","v":""},{"$f":"IF(OR(Selection_Hide2!T171=0, Selection_Hide2!T171=\"\"), \"\", Selection_Hide2!T171)","v":""},{"$f":"IF(OR(Selection_Hide2!U171=0, Selection_Hide2!U171=\"\"), \"\", Selection_Hide2!U171)","v":""},{"$f":"IF(OR(Selection_Hide2!V171=0, Selection_Hide2!V171=\"\"), \"\", Selection_Hide2!V171)","v":""},{"$f":"IF(OR(Selection_Hide2!W171=0, Selection_Hide2!W171=\"\"), \"\", Selection_Hide2!W171)","v":""},{"$f":"IF(OR(Selection_Hide2!X171=0, Selection_Hide2!X171=\"\"), \"\", Selection_Hide2!X171)","v":""},{"$f":"IF(OR(Selection_Hide2!Y171=0, Selection_Hide2!Y171=\"\"), \"\", Selection_Hide2!Y171)","v":""},{"$f":"IF(OR(Selection_Hide2!Z171=0, Selection_Hide2!Z171=\"\"), \"\", Selection_Hide2!Z171)","v":""},{"$f":"IF(OR(Selection_Hide2!AA171=0, Selection_Hide2!AA171=\"\"), \"\", Selection_Hide2!AA171)","v":""},{"$f":"IF(OR(Selection_Hide2!AB171=0, Selection_Hide2!AB171=\"\"), \"\", Selection_Hide2!AB171)","v":""}]
[{"$f":"IF(OR(Selection_Hide2!A172=0, Selection_Hide2!A172=\"\"), \"\", Selection_Hide2!A172)","v":""},{"$f":"IF(OR(Selection_Hide2!B172=0, Selection_Hide2!B172=\"\"), \"\", Selection_Hide2!B172)","v":""},{"$f":"IF(OR(Selection_Hide2!C172=0, Selection_Hide2!C172=\"\"), \"\", Selection_Hide2!C172)","v":""},{"$f":"IF(OR(Selection_Hide2!D172=0, Selection_Hide2!D172=\"\"), \"\", Selection_Hide2!D172)","v":""},{"$f":"IF(OR(Selection_Hide2!E172=0, Selection_Hide2!E172=\"\"), \"\", Selection_Hide2!E172)","v":""},{"$f":"IF(OR(Selection_Hide2!F172=0, Selection_Hide2!F172=\"\"), \"\", Selection_Hide2!F172)","v":""},{"$f":"IF(OR(Selection_Hide2!G172=0, Selection_Hide2!G172=\"\"), \"\", Selection_Hide2!G172)","v":""},{"$f":"IF(OR(Selection_Hide2!H172=0, Selection_Hide2!H172=\"\"), \"\", Selection_Hide2!H172)","v":""},{"$f":"IF(OR(Selection_Hide2!I172=0, Selection_Hide2!I172=\"\"), \"\", Selection_Hide2!I172)","v":""},{"$f":"IF(OR(Selection_Hide2!J172=0, Selection_Hide2!J172=\"\"), \"\", Selection_Hide2!J172)","v":""},{"$f":"IF(OR(Selection_Hide2!K172=0, Selection_Hide2!K172=\"\"), \"\", Selection_Hide2!K172)","v":""},{"$f":"IF(OR(Selection_Hide2!L172=0, Selection_Hide2!L172=\"\"), \"\", Selection_Hide2!L172)","v":""},{"$f":"IF(OR(Selection_Hide2!M172=0, Selection_Hide2!M172=\"\"), \"\", Selection_Hide2!M172)","v":""},{"$f":"IF(OR(Selection_Hide2!N172=0, Selection_Hide2!N172=\"\"), \"\", Selection_Hide2!N172)","v":""},{"$f":"IF(OR(Selection_Hide2!O172=0, Selection_Hide2!O172=\"\"), \"\", Selection_Hide2!O172)","v":""},{"$f":"IF(OR(Selection_Hide2!P172=0, Selection_Hide2!P172=\"\"), \"\", Selection_Hide2!P172)","v":""},{"$f":"IF(OR(Selection_Hide2!Q172=0, Selection_Hide2!Q172=\"\"), \"\", Selection_Hide2!Q172)","v":""},{"$f":"IF(OR(Selection_Hide2!R172=0, Selection_Hide2!R172=\"\"), \"\", Selection_Hide2!R172)","v":""},{"$f":"IF(OR(Selection_Hide2!S172=0, Selection_Hide2!S172=\"\"), \"\", Selection_Hide2!S172)","v":""},{"$f":"IF(OR(Selection_Hide2!T172=0, Selection_Hide2!T172=\"\"), \"\", Selection_Hide2!T172)","v":""},{"$f":"IF(OR(Selection_Hide2!U172=0, Selection_Hide2!U172=\"\"), \"\", Selection_Hide2!U172)","v":""},{"$f":"IF(OR(Selection_Hide2!V172=0, Selection_Hide2!V172=\"\"), \"\", Selection_Hide2!V172)","v":""},{"$f":"IF(OR(Selection_Hide2!W172=0, Selection_Hide2!W172=\"\"), \"\", Selection_Hide2!W172)","v":""},{"$f":"IF(OR(Selection_Hide2!X172=0, Selection_Hide2!X172=\"\"), \"\", Selection_Hide2!X172)","v":""},{"$f":"IF(OR(Selection_Hide2!Y172=0, Selection_Hide2!Y172=\"\"), \"\", Selection_Hide2!Y172)","v":""},{"$f":"IF(OR(Selection_Hide2!Z172=0, Selection_Hide2!Z172=\"\"), \"\", Selection_Hide2!Z172)","v":""},{"$f":"IF(OR(Selection_Hide2!AA172=0, Selection_Hide2!AA172=\"\"), \"\", Selection_Hide2!AA172)","v":""},{"$f":"IF(OR(Selection_Hide2!AB172=0, Selection_Hide2!AB172=\"\"), \"\", Selection_Hide2!AB172)","v":""}]
[{"$f":"IF(OR(Selection_Hide2!A173=0, Selection_Hide2!A173=\"\"), \"\", Selection_Hide2!A173)","v":""},{"$f":"IF(OR(Selection_Hide2!B173=0, Selection_Hide2!B173=\"\"), \"\", Selection_Hide2!B173)","v":""},{"$f":"IF(OR(Selection_Hide2!C173=0, Selection_Hide2!C173=\"\"), \"\", Selection_Hide2!C173)","v":""},{"$f":"IF(OR(Selection_Hide2!D173=0, Selection_Hide2!D173=\"\"), \"\", Selection_Hide2!D173)","v":""},{"$f":"IF(OR(Selection_Hide2!E173=0, Selection_Hide2!E173=\"\"), \"\", Selection_Hide2!E173)","v":""},{"$f":"IF(OR(Selection_Hide2!F173=0, Selection_Hide2!F173=\"\"), \"\", Selection_Hide2!F173)","v":""},{"$f":"IF(OR(Selection_Hide2!G173=0, Selection_Hide2!G173=\"\"), \"\", Selection_Hide2!G173)","v":""},{"$f":"IF(OR(Selection_Hide2!H173=0, Selection_Hide2!H173=\"\"), \"\", Selection_Hide2!H173)","v":""},{"$f":"IF(OR(Selection_Hide2!I173=0, Selection_Hide2!I173=\"\"), \"\", Selection_Hide2!I173)","v":""},{"$f":"IF(OR(Selection_Hide2!J173=0, Selection_Hide2!J173=\"\"), \"\", Selection_Hide2!J173)","v":""},{"$f":"IF(OR(Selection_Hide2!K173=0, Selection_Hide2!K173=\"\"), \"\", Selection_Hide2!K173)","v":""},{"$f":"IF(OR(Selection_Hide2!L173=0, Selection_Hide2!L173=\"\"), \"\", Selection_Hide2!L173)","v":""},{"$f":"IF(OR(Selection_Hide2!M173=0, Selection_Hide2!M173=\"\"), \"\", Selection_Hide2!M173)","v":""},{"$f":"IF(OR(Selection_Hide2!N173=0, Selection_Hide2!N173=\"\"), \"\", Selection_Hide2!N173)","v":""},{"$f":"IF(OR(Selection_Hide2!O173=0, Selection_Hide2!O173=\"\"), \"\", Selection_Hide2!O173)","v":""},{"$f":"IF(OR(Selection_Hide2!P173=0, Selection_Hide2!P173=\"\"), \"\", Selection_Hide2!P173)","v":""},{"$f":"IF(OR(Selection_Hide2!Q173=0, Selection_Hide2!Q173=\"\"), \"\", Selection_Hide2!Q173)","v":""},{"$f":"IF(OR(Selection_Hide2!R173=0, Selection_Hide2!R173=\"\"), \"\", Selection_Hide2!R173)","v":""},{"$f":"IF(OR(Selection_Hide2!S173=0, Selection_Hide2!S173=\"\"), \"\", Selection_Hide2!S173)","v":""},{"$f":"IF(OR(Selection_Hide2!T173=0, Selection_Hide2!T173=\"\"), \"\", Selection_Hide2!T173)","v":""},{"$f":"IF(OR(Selection_Hide2!U173=0, Selection_Hide2!U173=\"\"), \"\", Selection_Hide2!U173)","v":""},{"$f":"IF(OR(Selection_Hide2!V173=0, Selection_Hide2!V173=\"\"), \"\", Selection_Hide2!V173)","v":""},{"$f":"IF(OR(Selection_Hide2!W173=0, Selection_Hide2!W173=\"\"), \"\", Selection_Hide2!W173)","v":""},{"$f":"IF(OR(Selection_Hide2!X173=0, Selection_Hide2!X173=\"\"), \"\", Selection_Hide2!X173)","v":""},{"$f":"IF(OR(Selection_Hide2!Y173=0, Selection_Hide2!Y173=\"\"), \"\", Selection_Hide2!Y173)","v":""},{"$f":"IF(OR(Selection_Hide2!Z173=0, Selection_Hide2!Z173=\"\"), \"\", Selection_Hide2!Z173)","v":""},{"$f":"IF(OR(Selection_Hide2!AA173=0, Selection_Hide2!AA173=\"\"), \"\", Selection_Hide2!AA173)","v":""},{"$f":"IF(OR(Selection_Hide2!AB173=0, Selection_Hide2!AB173=\"\"), \"\", Selection_Hide2!AB173)","v":""}]
[{"$f":"IF(OR(Selection_Hide2!A174=0, Selection_Hide2!A174=\"\"), \"\", Selection_Hide2!A174)","v":""},{"$f":"IF(OR(Selection_Hide2!B174=0, Selection_Hide2!B174=\"\"), \"\", Selection_Hide2!B174)","v":""},{"$f":"IF(OR(Selection_Hide2!C174=0, Selection_Hide2!C174=\"\"), \"\", Selection_Hide2!C174)","v":""},{"$f":"IF(OR(Selection_Hide2!D174=0, Selection_Hide2!D174=\"\"), \"\", Selection_Hide2!D174)","v":""},{"$f":"IF(OR(Selection_Hide2!E174=0, Selection_Hide2!E174=\"\"), \"\", Selection_Hide2!E174)","v":""},{"$f":"IF(OR(Selection_Hide2!F174=0, Selection_Hide2!F174=\"\"), \"\", Selection_Hide2!F174)","v":""},{"$f":"IF(OR(Selection_Hide2!G174=0, Selection_Hide2!G174=\"\"), \"\", Selection_Hide2!G174)","v":""},{"$f":"IF(OR(Selection_Hide2!H174=0, Selection_Hide2!H174=\"\"), \"\", Selection_Hide2!H174)","v":""},{"$f":"IF(OR(Selection_Hide2!I174=0, Selection_Hide2!I174=\"\"), \"\", Selection_Hide2!I174)","v":""},{"$f":"IF(OR(Selection_Hide2!J174=0, Selection_Hide2!J174=\"\"), \"\", Selection_Hide2!J174)","v":""},{"$f":"IF(OR(Selection_Hide2!K174=0, Selection_Hide2!K174=\"\"), \"\", Selection_Hide2!K174)","v":""},{"$f":"IF(OR(Selection_Hide2!L174=0, Selection_Hide2!L174=\"\"), \"\", Selection_Hide2!L174)","v":""},{"$f":"IF(OR(Selection_Hide2!M174=0, Selection_Hide2!M174=\"\"), \"\", Selection_Hide2!M174)","v":""},{"$f":"IF(OR(Selection_Hide2!N174=0, Selection_Hide2!N174=\"\"), \"\", Selection_Hide2!N174)","v":""},{"$f":"IF(OR(Selection_Hide2!O174=0, Selection_Hide2!O174=\"\"), \"\", Selection_Hide2!O174)","v":""},{"$f":"IF(OR(Selection_Hide2!P174=0, Selection_Hide2!P174=\"\"), \"\", Selection_Hide2!P174)","v":""},{"$f":"IF(OR(Selection_Hide2!Q174=0, Selection_Hide2!Q174=\"\"), \"\", Selection_Hide2!Q174)","v":""},{"$f":"IF(OR(Selection_Hide2!R174=0, Selection_Hide2!R174=\"\"), \"\", Selection_Hide2!R174)","v":""},{"$f":"IF(OR(Selection_Hide2!S174=0, Selection_Hide2!S174=\"\"), \"\", Selection_Hide2!S174)","v":""},{"$f":"IF(OR(Selection_Hide2!T174=0, Selection_Hide2!T174=\"\"), \"\", Selection_Hide2!T174)","v":""},{"$f":"IF(OR(Selection_Hide2!U174=0, Selection_Hide2!U174=\"\"), \"\", Selection_Hide2!U174)","v":""},{"$f":"IF(OR(Selection_Hide2!V174=0, Selection_Hide2!V174=\"\"), \"\", Selection_Hide2!V174)","v":""},{"$f":"IF(OR(Selection_Hide2!W174=0, Selection_Hide2!W174=\"\"), \"\", Selection_Hide2!W174)","v":""},{"$f":"IF(OR(Selection_Hide2!X174=0, Selection_Hide2!X174=\"\"), \"\", Selection_Hide2!X174)","v":""},{"$f":"IF(OR(Selection_Hide2!Y174=0, Selection_Hide2!Y174=\"\"), \"\", Selection_Hide2!Y174)","v":""},{"$f":"IF(OR(Selection_Hide2!Z174=0, Selection_Hide2!Z174=\"\"), \"\", Selection_Hide2!Z174)","v":""},{"$f":"IF(OR(Selection_Hide2!AA174=0, Selection_Hide2!AA174=\"\"), \"\", Selection_Hide2!AA174)","v":""},{"$f":"IF(OR(Selection_Hide2!AB174=0, Selection_Hide2!AB174=\"\"), \"\", Selection_Hide2!AB174)","v":""}]
[{"$f":"IF(OR(Selection_Hide2!A175=0, Selection_Hide2!A175=\"\"), \"\", Selection_Hide2!A175)","v":""},{"$f":"IF(OR(Selection_Hide2!B175=0, Selection_Hide2!B175=\"\"), \"\", Selection_Hide2!B175)","v":""},{"$f":"IF(OR(Selection_Hide2!C175=0, Selection_Hide2!C175=\"\"), \"\", Selection_Hide2!C175)","v":""},{"$f":"IF(OR(Selection_Hide2!D175=0, Selection_Hide2!D175=\"\"), \"\", Selection_Hide2!D175)","v":""},{"$f":"IF(OR(Selection_Hide2!E175=0, Selection_Hide2!E175=\"\"), \"\", Selection_Hide2!E175)","v":""},{"$f":"IF(OR(Selection_Hide2!F175=0, Selection_Hide2!F175=\"\"), \"\", Selection_Hide2!F175)","v":""},{"$f":"IF(OR(Selection_Hide2!G175=0, Selection_Hide2!G175=\"\"), \"\", Selection_Hide2!G175)","v":""},{"$f":"IF(OR(Selection_Hide2!H175=0, Selection_Hide2!H175=\"\"), \"\", Selection_Hide2!H175)","v":""},{"$f":"IF(OR(Selection_Hide2!I175=0, Selection_Hide2!I175=\"\"), \"\", Selection_Hide2!I175)","v":""},{"$f":"IF(OR(Selection_Hide2!J175=0, Selection_Hide2!J175=\"\"), \"\", Selection_Hide2!J175)","v":""},{"$f":"IF(OR(Selection_Hide2!K175=0, Selection_Hide2!K175=\"\"), \"\", Selection_Hide2!K175)","v":""},{"$f":"IF(OR(Selection_Hide2!L175=0, Selection_Hide2!L175=\"\"), \"\", Selection_Hide2!L175)","v":""},{"$f":"IF(OR(Selection_Hide2!M175=0, Selection_Hide2!M175=\"\"), \"\", Selection_Hide2!M175)","v":""},{"$f":"IF(OR(Selection_Hide2!N175=0, Selection_Hide2!N175=\"\"), \"\", Selection_Hide2!N175)","v":""},{"$f":"IF(OR(Selection_Hide2!O175=0, Selection_Hide2!O175=\"\"), \"\", Selection_Hide2!O175)","v":""},{"$f":"IF(OR(Selection_Hide2!P175=0, Selection_Hide2!P175=\"\"), \"\", Selection_Hide2!P175)","v":""},{"$f":"IF(OR(Selection_Hide2!Q175=0, Selection_Hide2!Q175=\"\"), \"\", Selection_Hide2!Q175)","v":""},{"$f":"IF(OR(Selection_Hide2!R175=0, Selection_Hide2!R175=\"\"), \"\", Selection_Hide2!R175)","v":""},{"$f":"IF(OR(Selection_Hide2!S175=0, Selection_Hide2!S175=\"\"), \"\", Selection_Hide2!S175)","v":""},{"$f":"IF(OR(Selection_Hide2!T175=0, Selection_Hide2!T175=\"\"), \"\", Selection_Hide2!T175)","v":""},{"$f":"IF(OR(Selection_Hide2!U175=0, Selection_Hide2!U175=\"\"), \"\", Selection_Hide2!U175)","v":""},{"$f":"IF(OR(Selection_Hide2!V175=0, Selection_Hide2!V175=\"\"), \"\", Selection_Hide2!V175)","v":""},{"$f":"IF(OR(Selection_Hide2!W175=0, Selection_Hide2!W175=\"\"), \"\", Selection_Hide2!W175)","v":""},{"$f":"IF(OR(Selection_Hide2!X175=0, Selection_Hide2!X175=\"\"), \"\", Selection_Hide2!X175)","v":""},{"$f":"IF(OR(Selection_Hide2!Y175=0, Selection_Hide2!Y175=\"\"), \"\", Selection_Hide2!Y175)","v":""},{"$f":"IF(OR(Selection_Hide2!Z175=0, Selection_Hide2!Z175=\"\"), \"\", Selection_Hide2!Z175)","v":""},{"$f":"IF(OR(Selection_Hide2!AA175=0, Selection_Hide2!AA175=\"\"), \"\", Selection_Hide2!AA175)","v":""},{"$f":"IF(OR(Selection_Hide2!AB175=0, Selection_Hide2!AB175=\"\"), \"\", Selection_Hide2!AB175)","v":""}]
[{"$f":"IF(OR(Selection_Hide2!A176=0, Selection_Hide2!A176=\"\"), \"\", Selection_Hide2!A176)","v":""},{"$f":"IF(OR(Selection_Hide2!B176=0, Selection_Hide2!B176=\"\"), \"\", Selection_Hide2!B176)","v":""},{"$f":"IF(OR(Selection_Hide2!C176=0, Selection_Hide2!C176=\"\"), \"\", Selection_Hide2!C176)","v":""},{"$f":"IF(OR(Selection_Hide2!D176=0, Selection_Hide2!D176=\"\"), \"\", Selection_Hide2!D176)","v":""},{"$f":"IF(OR(Selection_Hide2!E176=0, Selection_Hide2!E176=\"\"), \"\", Selection_Hide2!E176)","v":""},{"$f":"IF(OR(Selection_Hide2!F176=0, Selection_Hide2!F176=\"\"), \"\", Selection_Hide2!F176)","v":""},{"$f":"IF(OR(Selection_Hide2!G176=0, Selection_Hide2!G176=\"\"), \"\", Selection_Hide2!G176)","v":""},{"$f":"IF(OR(Selection_Hide2!H176=0, Selection_Hide2!H176=\"\"), \"\", Selection_Hide2!H176)","v":""},{"$f":"IF(OR(Selection_Hide2!I176=0, Selection_Hide2!I176=\"\"), \"\", Selection_Hide2!I176)","v":""},{"$f":"IF(OR(Selection_Hide2!J176=0, Selection_Hide2!J176=\"\"), \"\", Selection_Hide2!J176)","v":""},{"$f":"IF(OR(Selection_Hide2!K176=0, Selection_Hide2!K176=\"\"), \"\", Selection_Hide2!K176)","v":""},{"$f":"IF(OR(Selection_Hide2!L176=0, Selection_Hide2!L176=\"\"), \"\", Selection_Hide2!L176)","v":""},{"$f":"IF(OR(Selection_Hide2!M176=0, Selection_Hide2!M176=\"\"), \"\", Selection_Hide2!M176)","v":""},{"$f":"IF(OR(Selection_Hide2!N176=0, Selection_Hide2!N176=\"\"), \"\", Selection_Hide2!N176)","v":""},{"$f":"IF(OR(Selection_Hide2!O176=0, Selection_Hide2!O176=\"\"), \"\", Selection_Hide2!O176)","v":""},{"$f":"IF(OR(Selection_Hide2!P176=0, Selection_Hide2!P176=\"\"), \"\", Selection_Hide2!P176)","v":""},{"$f":"IF(OR(Selection_Hide2!Q176=0, Selection_Hide2!Q176=\"\"), \"\", Selection_Hide2!Q176)","v":""},{"$f":"IF(OR(Selection_Hide2!R176=0, Selection_Hide2!R176=\"\"), \"\", Selection_Hide2!R176)","v":""},{"$f":"IF(OR(Selection_Hide2!S176=0, Selection_Hide2!S176=\"\"), \"\", Selection_Hide2!S176)","v":""},{"$f":"IF(OR(Selection_Hide2!T176=0, Selection_Hide2!T176=\"\"), \"\", Selection_Hide2!T176)","v":""},{"$f":"IF(OR(Selection_Hide2!U176=0, Selection_Hide2!U176=\"\"), \"\", Selection_Hide2!U176)","v":""},{"$f":"IF(OR(Selection_Hide2!V176=0, Selection_Hide2!V176=\"\"), \"\", Selection_Hide2!V176)","v":""},{"$f":"IF(OR(Selection_Hide2!W176=0, Selection_Hide2!W176=\"\"), \"\", Selection_Hide2!W176)","v":""},{"$f":"IF(OR(Selection_Hide2!X176=0, Selection_Hide2!X176=\"\"), \"\", Selection_Hide2!X176)","v":""},{"$f":"IF(OR(Selection_Hide2!Y176=0, Selection_Hide2!Y176=\"\"), \"\", Selection_Hide2!Y176)","v":""},{"$f":"IF(OR(Selection_Hide2!Z176=0, Selection_Hide2!Z176=\"\"), \"\", Selection_Hide2!Z176)","v":""},{"$f":"IF(OR(Selection_Hide2!AA176=0, Selection_Hide2!AA176=\"\"), \"\", Selection_Hide2!AA176)","v":""},{"$f":"IF(OR(Selection_Hide2!AB176=0, Selection_Hide2!AB176=\"\"), \"\", Selection_Hide2!AB176)","v":""}]
[{"$f":"IF(OR(Selection_Hide2!A177=0, Selection_Hide2!A177=\"\"), \"\", Selection_Hide2!A177)","v":""},{"$f":"IF(OR(Selection_Hide2!B177=0, Selection_Hide2!B177=\"\"), \"\", Selection_Hide2!B177)","v":""},{"$f":"IF(OR(Selection_Hide2!C177=0, Selection_Hide2!C177=\"\"), \"\", Selection_Hide2!C177)","v":""},{"$f":"IF(OR(Selection_Hide2!D177=0, Selection_Hide2!D177=\"\"), \"\", Selection_Hide2!D177)","v":""},{"$f":"IF(OR(Selection_Hide2!E177=0, Selection_Hide2!E177=\"\"), \"\", Selection_Hide2!E177)","v":""},{"$f":"IF(OR(Selection_Hide2!F177=0, Selection_Hide2!F177=\"\"), \"\", Selection_Hide2!F177)","v":""},{"$f":"IF(OR(Selection_Hide2!G177=0, Selection_Hide2!G177=\"\"), \"\", Selection_Hide2!G177)","v":""},{"$f":"IF(OR(Selection_Hide2!H177=0, Selection_Hide2!H177=\"\"), \"\", Selection_Hide2!H177)","v":""},{"$f":"IF(OR(Selection_Hide2!I177=0, Selection_Hide2!I177=\"\"), \"\", Selection_Hide2!I177)","v":""},{"$f":"IF(OR(Selection_Hide2!J177=0, Selection_Hide2!J177=\"\"), \"\", Selection_Hide2!J177)","v":""},{"$f":"IF(OR(Selection_Hide2!K177=0, Selection_Hide2!K177=\"\"), \"\", Selection_Hide2!K177)","v":""},{"$f":"IF(OR(Selection_Hide2!L177=0, Selection_Hide2!L177=\"\"), \"\", Selection_Hide2!L177)","v":""},{"$f":"IF(OR(Selection_Hide2!M177=0, Selection_Hide2!M177=\"\"), \"\", Selection_Hide2!M177)","v":""},{"$f":"IF(OR(Selection_Hide2!N177=0, Selection_Hide2!N177=\"\"), \"\", Selection_Hide2!N177)","v":""},{"$f":"IF(OR(Selection_Hide2!O177=0, Selection_Hide2!O177=\"\"), \"\", Selection_Hide2!O177)","v":""},{"$f":"IF(OR(Selection_Hide2!P177=0, Selection_Hide2!P177=\"\"), \"\", Selection_Hide2!P177)","v":""},{"$f":"IF(OR(Selection_Hide2!Q177=0, Selection_Hide2!Q177=\"\"), \"\", Selection_Hide2!Q177)","v":""},{"$f":"IF(OR(Selection_Hide2!R177=0, Selection_Hide2!R177=\"\"), \"\", Selection_Hide2!R177)","v":""},{"$f":"IF(OR(Selection_Hide2!S177=0, Selection_Hide2!S177=\"\"), \"\", Selection_Hide2!S177)","v":""},{"$f":"IF(OR(Selection_Hide2!T177=0, Selection_Hide2!T177=\"\"), \"\", Selection_Hide2!T177)","v":""},{"$f":"IF(OR(Selection_Hide2!U177=0, Selection_Hide2!U177=\"\"), \"\", Selection_Hide2!U177)","v":""},{"$f":"IF(OR(Selection_Hide2!V177=0, Selection_Hide2!V177=\"\"), \"\", Selection_Hide2!V177)","v":""},{"$f":"IF(OR(Selection_Hide2!W177=0, Selection_Hide2!W177=\"\"), \"\", Selection_Hide2!W177)","v":""},{"$f":"IF(OR(Selection_Hide2!X177=0, Selection_Hide2!X177=\"\"), \"\", Selection_Hide2!X177)","v":""},{"$f":"IF(OR(Selection_Hide2!Y177=0, Selection_Hide2!Y177=\"\"), \"\", Selection_Hide2!Y177)","v":""},{"$f":"IF(OR(Selection_Hide2!Z177=0, Selection_Hide2!Z177=\"\"), \"\", Selection_Hide2!Z177)","v":""},{"$f":"IF(OR(Selection_Hide2!AA177=0, Selection_Hide2!AA177=\"\"), \"\", Selection_Hide2!AA177)","v":""},{"$f":"IF(OR(Selection_Hide2!AB177=0, Selection_Hide2!AB177=\"\"), \"\", Selection_Hide2!AB177)","v":""}]
[{"$f":"IF(OR(Selection_Hide2!A178=0, Selection_Hide2!A178=\"\"), \"\", Selection_Hide2!A178)","v":""},{"$f":"IF(OR(Selection_Hide2!B178=0, Selection_Hide2!B178=\"\"), \"\", Selection_Hide2!B178)","v":""},{"$f":"IF(OR(Selection_Hide2!C178=0, Selection_Hide2!C178=\"\"), \"\", Selection_Hide2!C178)","v":""},{"$f":"IF(OR(Selection_Hide2!D178=0, Selection_Hide2!D178=\"\"), \"\", Selection_Hide2!D178)","v":""},{"$f":"IF(OR(Selection_Hide2!E178=0, Selection_Hide2!E178=\"\"), \"\", Selection_Hide2!E178)","v":""},{"$f":"IF(OR(Selection_Hide2!F178=0, Selection_Hide2!F178=\"\"), \"\", Selection_Hide2!F178)","v":""},{"$f":"IF(OR(Selection_Hide2!G178=0, Selection_Hide2!G178=\"\"), \"\", Selection_Hide2!G178)","v":""},{"$f":"IF(OR(Selection_Hide2!H178=0, Selection_Hide2!H178=\"\"), \"\", Selection_Hide2!H178)","v":""},{"$f":"IF(OR(Selection_Hide2!I178=0, Selection_Hide2!I178=\"\"), \"\", Selection_Hide2!I178)","v":""},{"$f":"IF(OR(Selection_Hide2!J178=0, Selection_Hide2!J178=\"\"), \"\", Selection_Hide2!J178)","v":""},{"$f":"IF(OR(Selection_Hide2!K178=0, Selection_Hide2!K178=\"\"), \"\", Selection_Hide2!K178)","v":""},{"$f":"IF(OR(Selection_Hide2!L178=0, Selection_Hide2!L178=\"\"), \"\", Selection_Hide2!L178)","v":""},{"$f":"IF(OR(Selection_Hide2!M178=0, Selection_Hide2!M178=\"\"), \"\", Selection_Hide2!M178)","v":""},{"$f":"IF(OR(Selection_Hide2!N178=0, Selection_Hide2!N178=\"\"), \"\", Selection_Hide2!N178)","v":""},{"$f":"IF(OR(Selection_Hide2!O178=0, Selection_Hide2!O178=\"\"), \"\", Selection_Hide2!O178)","v":""},{"$f":"IF(OR(Selection_Hide2!P178=0, Selection_Hide2!P178=\"\"), \"\", Selection_Hide2!P178)","v":""},{"$f":"IF(OR(Selection_Hide2!Q178=0, Selection_Hide2!Q178=\"\"), \"\", Selection_Hide2!Q178)","v":""},{"$f":"IF(OR(Selection_Hide2!R178=0, Selection_Hide2!R178=\"\"), \"\", Selection_Hide2!R178)","v":""},{"$f":"IF(OR(Selection_Hide2!S178=0, Selection_Hide2!S178=\"\"), \"\", Selection_Hide2!S178)","v":""},{"$f":"IF(OR(Selection_Hide2!T178=0, Selection_Hide2!T178=\"\"), \"\", Selection_Hide2!T178)","v":""},{"$f":"IF(OR(Selection_Hide2!U178=0, Selection_Hide2!U178=\"\"), \"\", Selection_Hide2!U178)","v":""},{"$f":"IF(OR(Selection_Hide2!V178=0, Selection_Hide2!V178=\"\"), \"\", Selection_Hide2!V178)","v":""},{"$f":"IF(OR(Selection_Hide2!W178=0, Selection_Hide2!W178=\"\"), \"\", Selection_Hide2!W178)","v":""},{"$f":"IF(OR(Selection_Hide2!X178=0, Selection_Hide2!X178=\"\"), \"\", Selection_Hide2!X178)","v":""},{"$f":"IF(OR(Selection_Hide2!Y178=0, Selection_Hide2!Y178=\"\"), \"\", Selection_Hide2!Y178)","v":""},{"$f":"IF(OR(Selection_Hide2!Z178=0, Selection_Hide2!Z178=\"\"), \"\", Selection_Hide2!Z178)","v":""},{"$f":"IF(OR(Selection_Hide2!AA178=0, Selection_Hide2!AA178=\"\"), \"\", Selection_Hide2!AA178)","v":""},{"$f":"IF(OR(Selection_Hide2!AB178=0, Selection_Hide2!AB178=\"\"), \"\", Selection_Hide2!AB178)","v":""}]
[{"$f":"IF(OR(Selection_Hide2!A179=0, Selection_Hide2!A179=\"\"), \"\", Selection_Hide2!A179)","v":""},{"$f":"IF(OR(Selection_Hide2!B179=0, Selection_Hide2!B179=\"\"), \"\", Selection_Hide2!B179)","v":""},{"$f":"IF(OR(Selection_Hide2!C179=0, Selection_Hide2!C179=\"\"), \"\", Selection_Hide2!C179)","v":""},{"$f":"IF(OR(Selection_Hide2!D179=0, Selection_Hide2!D179=\"\"), \"\", Selection_Hide2!D179)","v":""},{"$f":"IF(OR(Selection_Hide2!E179=0, Selection_Hide2!E179=\"\"), \"\", Selection_Hide2!E179)","v":""},{"$f":"IF(OR(Selection_Hide2!F179=0, Selection_Hide2!F179=\"\"), \"\", Selection_Hide2!F179)","v":""},{"$f":"IF(OR(Selection_Hide2!G179=0, Selection_Hide2!G179=\"\"), \"\", Selection_Hide2!G179)","v":""},{"$f":"IF(OR(Selection_Hide2!H179=0, Selection_Hide2!H179=\"\"), \"\", Selection_Hide2!H179)","v":""},{"$f":"IF(OR(Selection_Hide2!I179=0, Selection_Hide2!I179=\"\"), \"\", Selection_Hide2!I179)","v":""},{"$f":"IF(OR(Selection_Hide2!J179=0, Selection_Hide2!J179=\"\"), \"\", Selection_Hide2!J179)","v":""},{"$f":"IF(OR(Selection_Hide2!K179=0, Selection_Hide2!K179=\"\"), \"\", Selection_Hide2!K179)","v":""},{"$f":"IF(OR(Selection_Hide2!L179=0, Selection_Hide2!L179=\"\"), \"\", Selection_Hide2!L179)","v":""},{"$f":"IF(OR(Selection_Hide2!M179=0, Selection_Hide2!M179=\"\"), \"\", Selection_Hide2!M179)","v":""},{"$f":"IF(OR(Selection_Hide2!N179=0, Selection_Hide2!N179=\"\"), \"\", Selection_Hide2!N179)","v":""},{"$f":"IF(OR(Selection_Hide2!O179=0, Selection_Hide2!O179=\"\"), \"\", Selection_Hide2!O179)","v":""},{"$f":"IF(OR(Selection_Hide2!P179=0, Selection_Hide2!P179=\"\"), \"\", Selection_Hide2!P179)","v":""},{"$f":"IF(OR(Selection_Hide2!Q179=0, Selection_Hide2!Q179=\"\"), \"\", Selection_Hide2!Q179)","v":""},{"$f":"IF(OR(Selection_Hide2!R179=0, Selection_Hide2!R179=\"\"), \"\", Selection_Hide2!R179)","v":""},{"$f":"IF(OR(Selection_Hide2!S179=0, Selection_Hide2!S179=\"\"), \"\", Selection_Hide2!S179)","v":""},{"$f":"IF(OR(Selection_Hide2!T179=0, Selection_Hide2!T179=\"\"), \"\", Selection_Hide2!T179)","v":""},{"$f":"IF(OR(Selection_Hide2!U179=0, Selection_Hide2!U179=\"\"), \"\", Selection_Hide2!U179)","v":""},{"$f":"IF(OR(Selection_Hide2!V179=0, Selection_Hide2!V179=\"\"), \"\", Selection_Hide2!V179)","v":""},{"$f":"IF(OR(Selection_Hide2!W179=0, Selection_Hide2!W179=\"\"), \"\", Selection_Hide2!W179)","v":""},{"$f":"IF(OR(Selection_Hide2!X179=0, Selection_Hide2!X179=\"\"), \"\", Selection_Hide2!X179)","v":""},{"$f":"IF(OR(Selection_Hide2!Y179=0, Selection_Hide2!Y179=\"\"), \"\", Selection_Hide2!Y179)","v":""},{"$f":"IF(OR(Selection_Hide2!Z179=0, Selection_Hide2!Z179=\"\"), \"\", Selection_Hide2!Z179)","v":""},{"$f":"IF(OR(Selection_Hide2!AA179=0, Selection_Hide2!AA179=\"\"), \"\", Selection_Hide2!AA179)","v":""},{"$f":"IF(OR(Selection_Hide2!AB179=0, Selection_Hide2!AB179=\"\"), \"\", Selection_Hide2!AB179)","v":""}]
[{"$f":"IF(OR(Selection_Hide2!A180=0, Selection_Hide2!A180=\"\"), \"\", Selection_Hide2!A180)","v":""},{"$f":"IF(OR(Selection_Hide2!B180=0, Selection_Hide2!B180=\"\"), \"\", Selection_Hide2!B180)","v":""},{"$f":"IF(OR(Selection_Hide2!C180=0, Selection_Hide2!C180=\"\"), \"\", Selection_Hide2!C180)","v":""},{"$f":"IF(OR(Selection_Hide2!D180=0, Selection_Hide2!D180=\"\"), \"\", Selection_Hide2!D180)","v":""},{"$f":"IF(OR(Selection_Hide2!E180=0, Selection_Hide2!E180=\"\"), \"\", Selection_Hide2!E180)","v":""},{"$f":"IF(OR(Selection_Hide2!F180=0, Selection_Hide2!F180=\"\"), \"\", Selection_Hide2!F180)","v":""},{"$f":"IF(OR(Selection_Hide2!G180=0, Selection_Hide2!G180=\"\"), \"\", Selection_Hide2!G180)","v":""},{"$f":"IF(OR(Selection_Hide2!H180=0, Selection_Hide2!H180=\"\"), \"\", Selection_Hide2!H180)","v":""},{"$f":"IF(OR(Selection_Hide2!I180=0, Selection_Hide2!I180=\"\"), \"\", Selection_Hide2!I180)","v":""},{"$f":"IF(OR(Selection_Hide2!J180=0, Selection_Hide2!J180=\"\"), \"\", Selection_Hide2!J180)","v":""},{"$f":"IF(OR(Selection_Hide2!K180=0, Selection_Hide2!K180=\"\"), \"\", Selection_Hide2!K180)","v":""},{"$f":"IF(OR(Selection_Hide2!L180=0, Selection_Hide2!L180=\"\"), \"\", Selection_Hide2!L180)","v":""},{"$f":"IF(OR(Selection_Hide2!M180=0, Selection_Hide2!M180=\"\"), \"\", Selection_Hide2!M180)","v":""},{"$f":"IF(OR(Selection_Hide2!N180=0, Selection_Hide2!N180=\"\"), \"\", Selection_Hide2!N180)","v":""},{"$f":"IF(OR(Selection_Hide2!O180=0, Selection_Hide2!O180=\"\"), \"\", Selection_Hide2!O180)","v":""},{"$f":"IF(OR(Selection_Hide2!P180=0, Selection_Hide2!P180=\"\"), \"\", Selection_Hide2!P180)","v":""},{"$f":"IF(OR(Selection_Hide2!Q180=0, Selection_Hide2!Q180=\"\"), \"\", Selection_Hide2!Q180)","v":""},{"$f":"IF(OR(Selection_Hide2!R180=0, Selection_Hide2!R180=\"\"), \"\", Selection_Hide2!R180)","v":""},{"$f":"IF(OR(Selection_Hide2!S180=0, Selection_Hide2!S180=\"\"), \"\", Selection_Hide2!S180)","v":""},{"$f":"IF(OR(Selection_Hide2!T180=0, Selection_Hide2!T180=\"\"), \"\", Selection_Hide2!T180)","v":""},{"$f":"IF(OR(Selection_Hide2!U180=0, Selection_Hide2!U180=\"\"), \"\", Selection_Hide2!U180)","v":""},{"$f":"IF(OR(Selection_Hide2!V180=0, Selection_Hide2!V180=\"\"), \"\", Selection_Hide2!V180)","v":""},{"$f":"IF(OR(Selection_Hide2!W180=0, Selection_Hide2!W180=\"\"), \"\", Selection_Hide2!W180)","v":""},{"$f":"IF(OR(Selection_Hide2!X180=0, Selection_Hide2!X180=\"\"), \"\", Selection_Hide2!X180)","v":""},{"$f":"IF(OR(Selection_Hide2!Y180=0, Selection_Hide2!Y180=\"\"), \"\", Selection_Hide2!Y180)","v":""},{"$f":"IF(OR(Selection_Hide2!Z180=0, Selection_Hide2!Z180=\"\"), \"\", Selection_Hide2!Z180)","v":""},{"$f":"IF(OR(Selection_Hide2!AA180=0, Selection_Hide2!AA180=\"\"), \"\", Selection_Hide2!AA180)","v":""},{"$f":"IF(OR(Selection_Hide2!AB180=0, Selection_Hide2!AB180=\"\"), \"\", Selection_Hide2!AB180)","v":""}]
[{"$f":"IF(OR(Selection_Hide2!A181=0, Selection_Hide2!A181=\"\"), \"\", Selection_Hide2!A181)","v":""},{"$f":"IF(OR(Selection_Hide2!B181=0, Selection_Hide2!B181=\"\"), \"\", Selection_Hide2!B181)","v":""},{"$f":"IF(OR(Selection_Hide2!C181=0, Selection_Hide2!C181=\"\"), \"\", Selection_Hide2!C181)","v":""},{"$f":"IF(OR(Selection_Hide2!D181=0, Selection_Hide2!D181=\"\"), \"\", Selection_Hide2!D181)","v":""},{"$f":"IF(OR(Selection_Hide2!E181=0, Selection_Hide2!E181=\"\"), \"\", Selection_Hide2!E181)","v":""},{"$f":"IF(OR(Selection_Hide2!F181=0, Selection_Hide2!F181=\"\"), \"\", Selection_Hide2!F181)","v":""},{"$f":"IF(OR(Selection_Hide2!G181=0, Selection_Hide2!G181=\"\"), \"\", Selection_Hide2!G181)","v":""},{"$f":"IF(OR(Selection_Hide2!H181=0, Selection_Hide2!H181=\"\"), \"\", Selection_Hide2!H181)","v":""},{"$f":"IF(OR(Selection_Hide2!I181=0, Selection_Hide2!I181=\"\"), \"\", Selection_Hide2!I181)","v":""},{"$f":"IF(OR(Selection_Hide2!J181=0, Selection_Hide2!J181=\"\"), \"\", Selection_Hide2!J181)","v":""},{"$f":"IF(OR(Selection_Hide2!K181=0, Selection_Hide2!K181=\"\"), \"\", Selection_Hide2!K181)","v":""},{"$f":"IF(OR(Selection_Hide2!L181=0, Selection_Hide2!L181=\"\"), \"\", Selection_Hide2!L181)","v":""},{"$f":"IF(OR(Selection_Hide2!M181=0, Selection_Hide2!M181=\"\"), \"\", Selection_Hide2!M181)","v":""},{"$f":"IF(OR(Selection_Hide2!N181=0, Selection_Hide2!N181=\"\"), \"\", Selection_Hide2!N181)","v":""},{"$f":"IF(OR(Selection_Hide2!O181=0, Selection_Hide2!O181=\"\"), \"\", Selection_Hide2!O181)","v":""},{"$f":"IF(OR(Selection_Hide2!P181=0, Selection_Hide2!P181=\"\"), \"\", Selection_Hide2!P181)","v":""},{"$f":"IF(OR(Selection_Hide2!Q181=0, Selection_Hide2!Q181=\"\"), \"\", Selection_Hide2!Q181)","v":""},{"$f":"IF(OR(Selection_Hide2!R181=0, Selection_Hide2!R181=\"\"), \"\", Selection_Hide2!R181)","v":""},{"$f":"IF(OR(Selection_Hide2!S181=0, Selection_Hide2!S181=\"\"), \"\", Selection_Hide2!S181)","v":""},{"$f":"IF(OR(Selection_Hide2!T181=0, Selection_Hide2!T181=\"\"), \"\", Selection_Hide2!T181)","v":""},{"$f":"IF(OR(Selection_Hide2!U181=0, Selection_Hide2!U181=\"\"), \"\", Selection_Hide2!U181)","v":""},{"$f":"IF(OR(Selection_Hide2!V181=0, Selection_Hide2!V181=\"\"), \"\", Selection_Hide2!V181)","v":""},{"$f":"IF(OR(Selection_Hide2!W181=0, Selection_Hide2!W181=\"\"), \"\", Selection_Hide2!W181)","v":""},{"$f":"IF(OR(Selection_Hide2!X181=0, Selection_Hide2!X181=\"\"), \"\", Selection_Hide2!X181)","v":""},{"$f":"IF(OR(Selection_Hide2!Y181=0, Selection_Hide2!Y181=\"\"), \"\", Selection_Hide2!Y181)","v":""},{"$f":"IF(OR(Selection_Hide2!Z181=0, Selection_Hide2!Z181=\"\"), \"\", Selection_Hide2!Z181)","v":""},{"$f":"IF(OR(Selection_Hide2!AA181=0, Selection_Hide2!AA181=\"\"), \"\", Selection_Hide2!AA181)","v":""},{"$f":"IF(OR(Selection_Hide2!AB181=0, Selection_Hide2!AB181=\"\"), \"\", Selection_Hide2!AB181)","v":""}]
[{"$f":"IF(OR(Selection_Hide2!A182=0, Selection_Hide2!A182=\"\"), \"\", Selection_Hide2!A182)","v":""},{"$f":"IF(OR(Selection_Hide2!B182=0, Selection_Hide2!B182=\"\"), \"\", Selection_Hide2!B182)","v":""},{"$f":"IF(OR(Selection_Hide2!C182=0, Selection_Hide2!C182=\"\"), \"\", Selection_Hide2!C182)","v":""},{"$f":"IF(OR(Selection_Hide2!D182=0, Selection_Hide2!D182=\"\"), \"\", Selection_Hide2!D182)","v":""},{"$f":"IF(OR(Selection_Hide2!E182=0, Selection_Hide2!E182=\"\"), \"\", Selection_Hide2!E182)","v":""},{"$f":"IF(OR(Selection_Hide2!F182=0, Selection_Hide2!F182=\"\"), \"\", Selection_Hide2!F182)","v":""},{"$f":"IF(OR(Selection_Hide2!G182=0, Selection_Hide2!G182=\"\"), \"\", Selection_Hide2!G182)","v":""},{"$f":"IF(OR(Selection_Hide2!H182=0, Selection_Hide2!H182=\"\"), \"\", Selection_Hide2!H182)","v":""},{"$f":"IF(OR(Selection_Hide2!I182=0, Selection_Hide2!I182=\"\"), \"\", Selection_Hide2!I182)","v":""},{"$f":"IF(OR(Selection_Hide2!J182=0, Selection_Hide2!J182=\"\"), \"\", Selection_Hide2!J182)","v":""},{"$f":"IF(OR(Selection_Hide2!K182=0, Selection_Hide2!K182=\"\"), \"\", Selection_Hide2!K182)","v":""},{"$f":"IF(OR(Selection_Hide2!L182=0, Selection_Hide2!L182=\"\"), \"\", Selection_Hide2!L182)","v":""},{"$f":"IF(OR(Selection_Hide2!M182=0, Selection_Hide2!M182=\"\"), \"\", Selection_Hide2!M182)","v":""},{"$f":"IF(OR(Selection_Hide2!N182=0, Selection_Hide2!N182=\"\"), \"\", Selection_Hide2!N182)","v":""},{"$f":"IF(OR(Selection_Hide2!O182=0, Selection_Hide2!O182=\"\"), \"\", Selection_Hide2!O182)","v":""},{"$f":"IF(OR(Selection_Hide2!P182=0, Selection_Hide2!P182=\"\"), \"\", Selection_Hide2!P182)","v":""},{"$f":"IF(OR(Selection_Hide2!Q182=0, Selection_Hide2!Q182=\"\"), \"\", Selection_Hide2!Q182)","v":""},{"$f":"IF(OR(Selection_Hide2!R182=0, Selection_Hide2!R182=\"\"), \"\", Selection_Hide2!R182)","v":""},{"$f":"IF(OR(Selection_Hide2!S182=0, Selection_Hide2!S182=\"\"), \"\", Selection_Hide2!S182)","v":""},{"$f":"IF(OR(Selection_Hide2!T182=0, Selection_Hide2!T182=\"\"), \"\", Selection_Hide2!T182)","v":""},{"$f":"IF(OR(Selection_Hide2!U182=0, Selection_Hide2!U182=\"\"), \"\", Selection_Hide2!U182)","v":""},{"$f":"IF(OR(Selection_Hide2!V182=0, Selection_Hide2!V182=\"\"), \"\", Selection_Hide2!V182)","v":""},{"$f":"IF(OR(Selection_Hide2!W182=0, Selection_Hide2!W182=\"\"), \"\", Selection_Hide2!W182)","v":""},{"$f":"IF(OR(Selection_Hide2!X182=0, Selection_Hide2!X182=\"\"), \"\", Selection_Hide2!X182)","v":""},{"$f":"IF(OR(Selection_Hide2!Y182=0, Selection_Hide2!Y182=\"\"), \"\", Selection_Hide2!Y182)","v":""},{"$f":"IF(OR(Selection_Hide2!Z182=0, Selection_Hide2!Z182=\"\"), \"\", Selection_Hide2!Z182)","v":""},{"$f":"IF(OR(Selection_Hide2!AA182=0, Selection_Hide2!AA182=\"\"), \"\", Selection_Hide2!AA182)","v":""},{"$f":"IF(OR(Selection_Hide2!AB182=0, Selection_Hide2!AB182=\"\"), \"\", Selection_Hide2!AB182)","v":""}]
[{"$f":"IF(OR(Selection_Hide2!A183=0, Selection_Hide2!A183=\"\"), \"\", Selection_Hide2!A183)","v":""},{"$f":"IF(OR(Selection_Hide2!B183=0, Selection_Hide2!B183=\"\"), \"\", Selection_Hide2!B183)","v":""},{"$f":"IF(OR(Selection_Hide2!C183=0, Selection_Hide2!C183=\"\"), \"\", Selection_Hide2!C183)","v":""},{"$f":"IF(OR(Selection_Hide2!D183=0, Selection_Hide2!D183=\"\"), \"\", Selection_Hide2!D183)","v":""},{"$f":"IF(OR(Selection_Hide2!E183=0, Selection_Hide2!E183=\"\"), \"\", Selection_Hide2!E183)","v":""},{"$f":"IF(OR(Selection_Hide2!F183=0, Selection_Hide2!F183=\"\"), \"\", Selection_Hide2!F183)","v":""},{"$f":"IF(OR(Selection_Hide2!G183=0, Selection_Hide2!G183=\"\"), \"\", Selection_Hide2!G183)","v":""},{"$f":"IF(OR(Selection_Hide2!H183=0, Selection_Hide2!H183=\"\"), \"\", Selection_Hide2!H183)","v":""},{"$f":"IF(OR(Selection_Hide2!I183=0, Selection_Hide2!I183=\"\"), \"\", Selection_Hide2!I183)","v":""},{"$f":"IF(OR(Selection_Hide2!J183=0, Selection_Hide2!J183=\"\"), \"\", Selection_Hide2!J183)","v":""},{"$f":"IF(OR(Selection_Hide2!K183=0, Selection_Hide2!K183=\"\"), \"\", Selection_Hide2!K183)","v":""},{"$f":"IF(OR(Selection_Hide2!L183=0, Selection_Hide2!L183=\"\"), \"\", Selection_Hide2!L183)","v":""},{"$f":"IF(OR(Selection_Hide2!M183=0, Selection_Hide2!M183=\"\"), \"\", Selection_Hide2!M183)","v":""},{"$f":"IF(OR(Selection_Hide2!N183=0, Selection_Hide2!N183=\"\"), \"\", Selection_Hide2!N183)","v":""},{"$f":"IF(OR(Selection_Hide2!O183=0, Selection_Hide2!O183=\"\"), \"\", Selection_Hide2!O183)","v":""},{"$f":"IF(OR(Selection_Hide2!P183=0, Selection_Hide2!P183=\"\"), \"\", Selection_Hide2!P183)","v":""},{"$f":"IF(OR(Selection_Hide2!Q183=0, Selection_Hide2!Q183=\"\"), \"\", Selection_Hide2!Q183)","v":""},{"$f":"IF(OR(Selection_Hide2!R183=0, Selection_Hide2!R183=\"\"), \"\", Selection_Hide2!R183)","v":""},{"$f":"IF(OR(Selection_Hide2!S183=0, Selection_Hide2!S183=\"\"), \"\", Selection_Hide2!S183)","v":""},{"$f":"IF(OR(Selection_Hide2!T183=0, Selection_Hide2!T183=\"\"), \"\", Selection_Hide2!T183)","v":""},{"$f":"IF(OR(Selection_Hide2!U183=0, Selection_Hide2!U183=\"\"), \"\", Selection_Hide2!U183)","v":""},{"$f":"IF(OR(Selection_Hide2!V183=0, Selection_Hide2!V183=\"\"), \"\", Selection_Hide2!V183)","v":""},{"$f":"IF(OR(Selection_Hide2!W183=0, Selection_Hide2!W183=\"\"), \"\", Selection_Hide2!W183)","v":""},{"$f":"IF(OR(Selection_Hide2!X183=0, Selection_Hide2!X183=\"\"), \"\", Selection_Hide2!X183)","v":""},{"$f":"IF(OR(Selection_Hide2!Y183=0, Selection_Hide2!Y183=\"\"), \"\", Selection_Hide2!Y183)","v":""},{"$f":"IF(OR(Selection_Hide2!Z183=0, Selection_Hide2!Z183=\"\"), \"\", Selection_Hide2!Z183)","v":""},{"$f":"IF(OR(Selection_Hide2!AA183=0, Selection_Hide2!AA183=\"\"), \"\", Selection_Hide2!AA183)","v":""},{"$f":"IF(OR(Selection_Hide2!AB183=0, Selection_Hide2!AB183=\"\"), \"\", Selection_Hide2!AB183)","v":""}]
[{"$f":"IF(OR(Selection_Hide2!A184=0, Selection_Hide2!A184=\"\"), \"\", Selection_Hide2!A184)","v":""},{"$f":"IF(OR(Selection_Hide2!B184=0, Selection_Hide2!B184=\"\"), \"\", Selection_Hide2!B184)","v":""},{"$f":"IF(OR(Selection_Hide2!C184=0, Selection_Hide2!C184=\"\"), \"\", Selection_Hide2!C184)","v":""},{"$f":"IF(OR(Selection_Hide2!D184=0, Selection_Hide2!D184=\"\"), \"\", Selection_Hide2!D184)","v":""},{"$f":"IF(OR(Selection_Hide2!E184=0, Selection_Hide2!E184=\"\"), \"\", Selection_Hide2!E184)","v":""},{"$f":"IF(OR(Selection_Hide2!F184=0, Selection_Hide2!F184=\"\"), \"\", Selection_Hide2!F184)","v":""},{"$f":"IF(OR(Selection_Hide2!G184=0, Selection_Hide2!G184=\"\"), \"\", Selection_Hide2!G184)","v":""},{"$f":"IF(OR(Selection_Hide2!H184=0, Selection_Hide2!H184=\"\"), \"\", Selection_Hide2!H184)","v":""},{"$f":"IF(OR(Selection_Hide2!I184=0, Selection_Hide2!I184=\"\"), \"\", Selection_Hide2!I184)","v":""},{"$f":"IF(OR(Selection_Hide2!J184=0, Selection_Hide2!J184=\"\"), \"\", Selection_Hide2!J184)","v":""},{"$f":"IF(OR(Selection_Hide2!K184=0, Selection_Hide2!K184=\"\"), \"\", Selection_Hide2!K184)","v":""},{"$f":"IF(OR(Selection_Hide2!L184=0, Selection_Hide2!L184=\"\"), \"\", Selection_Hide2!L184)","v":""},{"$f":"IF(OR(Selection_Hide2!M184=0, Selection_Hide2!M184=\"\"), \"\", Selection_Hide2!M184)","v":""},{"$f":"IF(OR(Selection_Hide2!N184=0, Selection_Hide2!N184=\"\"), \"\", Selection_Hide2!N184)","v":""},{"$f":"IF(OR(Selection_Hide2!O184=0, Selection_Hide2!O184=\"\"), \"\", Selection_Hide2!O184)","v":""},{"$f":"IF(OR(Selection_Hide2!P184=0, Selection_Hide2!P184=\"\"), \"\", Selection_Hide2!P184)","v":""},{"$f":"IF(OR(Selection_Hide2!Q184=0, Selection_Hide2!Q184=\"\"), \"\", Selection_Hide2!Q184)","v":""},{"$f":"IF(OR(Selection_Hide2!R184=0, Selection_Hide2!R184=\"\"), \"\", Selection_Hide2!R184)","v":""},{"$f":"IF(OR(Selection_Hide2!S184=0, Selection_Hide2!S184=\"\"), \"\", Selection_Hide2!S184)","v":""},{"$f":"IF(OR(Selection_Hide2!T184=0, Selection_Hide2!T184=\"\"), \"\", Selection_Hide2!T184)","v":""},{"$f":"IF(OR(Selection_Hide2!U184=0, Selection_Hide2!U184=\"\"), \"\", Selection_Hide2!U184)","v":""},{"$f":"IF(OR(Selection_Hide2!V184=0, Selection_Hide2!V184=\"\"), \"\", Selection_Hide2!V184)","v":""},{"$f":"IF(OR(Selection_Hide2!W184=0, Selection_Hide2!W184=\"\"), \"\", Selection_Hide2!W184)","v":""},{"$f":"IF(OR(Selection_Hide2!X184=0, Selection_Hide2!X184=\"\"), \"\", Selection_Hide2!X184)","v":""},{"$f":"IF(OR(Selection_Hide2!Y184=0, Selection_Hide2!Y184=\"\"), \"\", Selection_Hide2!Y184)","v":""},{"$f":"IF(OR(Selection_Hide2!Z184=0, Selection_Hide2!Z184=\"\"), \"\", Selection_Hide2!Z184)","v":""},{"$f":"IF(OR(Selection_Hide2!AA184=0, Selection_Hide2!AA184=\"\"), \"\", Selection_Hide2!AA184)","v":""},{"$f":"IF(OR(Selection_Hide2!AB184=0, Selection_Hide2!AB184=\"\"), \"\", Selection_Hide2!AB184)","v":""}]
[{"$f":"IF(OR(Selection_Hide2!A185=0, Selection_Hide2!A185=\"\"), \"\", Selection_Hide2!A185)","v":""},{"$f":"IF(OR(Selection_Hide2!B185=0, Selection_Hide2!B185=\"\"), \"\", Selection_Hide2!B185)","v":""},{"$f":"IF(OR(Selection_Hide2!C185=0, Selection_Hide2!C185=\"\"), \"\", Selection_Hide2!C185)","v":""},{"$f":"IF(OR(Selection_Hide2!D185=0, Selection_Hide2!D185=\"\"), \"\", Selection_Hide2!D185)","v":""},{"$f":"IF(OR(Selection_Hide2!E185=0, Selection_Hide2!E185=\"\"), \"\", Selection_Hide2!E185)","v":""},{"$f":"IF(OR(Selection_Hide2!F185=0, Selection_Hide2!F185=\"\"), \"\", Selection_Hide2!F185)","v":""},{"$f":"IF(OR(Selection_Hide2!G185=0, Selection_Hide2!G185=\"\"), \"\", Selection_Hide2!G185)","v":""},{"$f":"IF(OR(Selection_Hide2!H185=0, Selection_Hide2!H185=\"\"), \"\", Selection_Hide2!H185)","v":""},{"$f":"IF(OR(Selection_Hide2!I185=0, Selection_Hide2!I185=\"\"), \"\", Selection_Hide2!I185)","v":""},{"$f":"IF(OR(Selection_Hide2!J185=0, Selection_Hide2!J185=\"\"), \"\", Selection_Hide2!J185)","v":""},{"$f":"IF(OR(Selection_Hide2!K185=0, Selection_Hide2!K185=\"\"), \"\", Selection_Hide2!K185)","v":""},{"$f":"IF(OR(Selection_Hide2!L185=0, Selection_Hide2!L185=\"\"), \"\", Selection_Hide2!L185)","v":""},{"$f":"IF(OR(Selection_Hide2!M185=0, Selection_Hide2!M185=\"\"), \"\", Selection_Hide2!M185)","v":""},{"$f":"IF(OR(Selection_Hide2!N185=0, Selection_Hide2!N185=\"\"), \"\", Selection_Hide2!N185)","v":""},{"$f":"IF(OR(Selection_Hide2!O185=0, Selection_Hide2!O185=\"\"), \"\", Selection_Hide2!O185)","v":""},{"$f":"IF(OR(Selection_Hide2!P185=0, Selection_Hide2!P185=\"\"), \"\", Selection_Hide2!P185)","v":""},{"$f":"IF(OR(Selection_Hide2!Q185=0, Selection_Hide2!Q185=\"\"), \"\", Selection_Hide2!Q185)","v":""},{"$f":"IF(OR(Selection_Hide2!R185=0, Selection_Hide2!R185=\"\"), \"\", Selection_Hide2!R185)","v":""},{"$f":"IF(OR(Selection_Hide2!S185=0, Selection_Hide2!S185=\"\"), \"\", Selection_Hide2!S185)","v":""},{"$f":"IF(OR(Selection_Hide2!T185=0, Selection_Hide2!T185=\"\"), \"\", Selection_Hide2!T185)","v":""},{"$f":"IF(OR(Selection_Hide2!U185=0, Selection_Hide2!U185=\"\"), \"\", Selection_Hide2!U185)","v":""},{"$f":"IF(OR(Selection_Hide2!V185=0, Selection_Hide2!V185=\"\"), \"\", Selection_Hide2!V185)","v":""},{"$f":"IF(OR(Selection_Hide2!W185=0, Selection_Hide2!W185=\"\"), \"\", Selection_Hide2!W185)","v":""},{"$f":"IF(OR(Selection_Hide2!X185=0, Selection_Hide2!X185=\"\"), \"\", Selection_Hide2!X185)","v":""},{"$f":"IF(OR(Selection_Hide2!Y185=0, Selection_Hide2!Y185=\"\"), \"\", Selection_Hide2!Y185)","v":""},{"$f":"IF(OR(Selection_Hide2!Z185=0, Selection_Hide2!Z185=\"\"), \"\", Selection_Hide2!Z185)","v":""},{"$f":"IF(OR(Selection_Hide2!AA185=0, Selection_Hide2!AA185=\"\"), \"\", Selection_Hide2!AA185)","v":""},{"$f":"IF(OR(Selection_Hide2!AB185=0, Selection_Hide2!AB185=\"\"), \"\", Selection_Hide2!AB185)","v":""}]
[{"$f":"IF(OR(Selection_Hide2!A186=0, Selection_Hide2!A186=\"\"), \"\", Selection_Hide2!A186)","v":""},{"$f":"IF(OR(Selection_Hide2!B186=0, Selection_Hide2!B186=\"\"), \"\", Selection_Hide2!B186)","v":""},{"$f":"IF(OR(Selection_Hide2!C186=0, Selection_Hide2!C186=\"\"), \"\", Selection_Hide2!C186)","v":""},{"$f":"IF(OR(Selection_Hide2!D186=0, Selection_Hide2!D186=\"\"), \"\", Selection_Hide2!D186)","v":""},{"$f":"IF(OR(Selection_Hide2!E186=0, Selection_Hide2!E186=\"\"), \"\", Selection_Hide2!E186)","v":""},{"$f":"IF(OR(Selection_Hide2!F186=0, Selection_Hide2!F186=\"\"), \"\", Selection_Hide2!F186)","v":""},{"$f":"IF(OR(Selection_Hide2!G186=0, Selection_Hide2!G186=\"\"), \"\", Selection_Hide2!G186)","v":""},{"$f":"IF(OR(Selection_Hide2!H186=0, Selection_Hide2!H186=\"\"), \"\", Selection_Hide2!H186)","v":""},{"$f":"IF(OR(Selection_Hide2!I186=0, Selection_Hide2!I186=\"\"), \"\", Selection_Hide2!I186)","v":""},{"$f":"IF(OR(Selection_Hide2!J186=0, Selection_Hide2!J186=\"\"), \"\", Selection_Hide2!J186)","v":""},{"$f":"IF(OR(Selection_Hide2!K186=0, Selection_Hide2!K186=\"\"), \"\", Selection_Hide2!K186)","v":""},{"$f":"IF(OR(Selection_Hide2!L186=0, Selection_Hide2!L186=\"\"), \"\", Selection_Hide2!L186)","v":""},{"$f":"IF(OR(Selection_Hide2!M186=0, Selection_Hide2!M186=\"\"), \"\", Selection_Hide2!M186)","v":""},{"$f":"IF(OR(Selection_Hide2!N186=0, Selection_Hide2!N186=\"\"), \"\", Selection_Hide2!N186)","v":""},{"$f":"IF(OR(Selection_Hide2!O186=0, Selection_Hide2!O186=\"\"), \"\", Selection_Hide2!O186)","v":""},{"$f":"IF(OR(Selection_Hide2!P186=0, Selection_Hide2!P186=\"\"), \"\", Selection_Hide2!P186)","v":""},{"$f":"IF(OR(Selection_Hide2!Q186=0, Selection_Hide2!Q186=\"\"), \"\", Selection_Hide2!Q186)","v":""},{"$f":"IF(OR(Selection_Hide2!R186=0, Selection_Hide2!R186=\"\"), \"\", Selection_Hide2!R186)","v":""},{"$f":"IF(OR(Selection_Hide2!S186=0, Selection_Hide2!S186=\"\"), \"\", Selection_Hide2!S186)","v":""},{"$f":"IF(OR(Selection_Hide2!T186=0, Selection_Hide2!T186=\"\"), \"\", Selection_Hide2!T186)","v":""},{"$f":"IF(OR(Selection_Hide2!U186=0, Selection_Hide2!U186=\"\"), \"\", Selection_Hide2!U186)","v":""},{"$f":"IF(OR(Selection_Hide2!V186=0, Selection_Hide2!V186=\"\"), \"\", Selection_Hide2!V186)","v":""},{"$f":"IF(OR(Selection_Hide2!W186=0, Selection_Hide2!W186=\"\"), \"\", Selection_Hide2!W186)","v":""},{"$f":"IF(OR(Selection_Hide2!X186=0, Selection_Hide2!X186=\"\"), \"\", Selection_Hide2!X186)","v":""},{"$f":"IF(OR(Selection_Hide2!Y186=0, Selection_Hide2!Y186=\"\"), \"\", Selection_Hide2!Y186)","v":""},{"$f":"IF(OR(Selection_Hide2!Z186=0, Selection_Hide2!Z186=\"\"), \"\", Selection_Hide2!Z186)","v":""},{"$f":"IF(OR(Selection_Hide2!AA186=0, Selection_Hide2!AA186=\"\"), \"\", Selection_Hide2!AA186)","v":""},{"$f":"IF(OR(Selection_Hide2!AB186=0, Selection_Hide2!AB186=\"\"), \"\", Selection_Hide2!AB186)","v":""}]
[{"$f":"IF(OR(Selection_Hide2!A187=0, Selection_Hide2!A187=\"\"), \"\", Selection_Hide2!A187)","v":""},{"$f":"IF(OR(Selection_Hide2!B187=0, Selection_Hide2!B187=\"\"), \"\", Selection_Hide2!B187)","v":""},{"$f":"IF(OR(Selection_Hide2!C187=0, Selection_Hide2!C187=\"\"), \"\", Selection_Hide2!C187)","v":""},{"$f":"IF(OR(Selection_Hide2!D187=0, Selection_Hide2!D187=\"\"), \"\", Selection_Hide2!D187)","v":""},{"$f":"IF(OR(Selection_Hide2!E187=0, Selection_Hide2!E187=\"\"), \"\", Selection_Hide2!E187)","v":""},{"$f":"IF(OR(Selection_Hide2!F187=0, Selection_Hide2!F187=\"\"), \"\", Selection_Hide2!F187)","v":""},{"$f":"IF(OR(Selection_Hide2!G187=0, Selection_Hide2!G187=\"\"), \"\", Selection_Hide2!G187)","v":""},{"$f":"IF(OR(Selection_Hide2!H187=0, Selection_Hide2!H187=\"\"), \"\", Selection_Hide2!H187)","v":""},{"$f":"IF(OR(Selection_Hide2!I187=0, Selection_Hide2!I187=\"\"), \"\", Selection_Hide2!I187)","v":""},{"$f":"IF(OR(Selection_Hide2!J187=0, Selection_Hide2!J187=\"\"), \"\", Selection_Hide2!J187)","v":""},{"$f":"IF(OR(Selection_Hide2!K187=0, Selection_Hide2!K187=\"\"), \"\", Selection_Hide2!K187)","v":""},{"$f":"IF(OR(Selection_Hide2!L187=0, Selection_Hide2!L187=\"\"), \"\", Selection_Hide2!L187)","v":""},{"$f":"IF(OR(Selection_Hide2!M187=0, Selection_Hide2!M187=\"\"), \"\", Selection_Hide2!M187)","v":""},{"$f":"IF(OR(Selection_Hide2!N187=0, Selection_Hide2!N187=\"\"), \"\", Selection_Hide2!N187)","v":""},{"$f":"IF(OR(Selection_Hide2!O187=0, Selection_Hide2!O187=\"\"), \"\", Selection_Hide2!O187)","v":""},{"$f":"IF(OR(Selection_Hide2!P187=0, Selection_Hide2!P187=\"\"), \"\", Selection_Hide2!P187)","v":""},{"$f":"IF(OR(Selection_Hide2!Q187=0, Selection_Hide2!Q187=\"\"), \"\", Selection_Hide2!Q187)","v":""},{"$f":"IF(OR(Selection_Hide2!R187=0, Selection_Hide2!R187=\"\"), \"\", Selection_Hide2!R187)","v":""},{"$f":"IF(OR(Selection_Hide2!S187=0, Selection_Hide2!S187=\"\"), \"\", Selection_Hide2!S187)","v":""},{"$f":"IF(OR(Selection_Hide2!T187=0, Selection_Hide2!T187=\"\"), \"\", Selection_Hide2!T187)","v":""},{"$f":"IF(OR(Selection_Hide2!U187=0, Selection_Hide2!U187=\"\"), \"\", Selection_Hide2!U187)","v":""},{"$f":"IF(OR(Selection_Hide2!V187=0, Selection_Hide2!V187=\"\"), \"\", Selection_Hide2!V187)","v":""},{"$f":"IF(OR(Selection_Hide2!W187=0, Selection_Hide2!W187=\"\"), \"\", Selection_Hide2!W187)","v":""},{"$f":"IF(OR(Selection_Hide2!X187=0, Selection_Hide2!X187=\"\"), \"\", Selection_Hide2!X187)","v":""},{"$f":"IF(OR(Selection_Hide2!Y187=0, Selection_Hide2!Y187=\"\"), \"\", Selection_Hide2!Y187)","v":""},{"$f":"IF(OR(Selection_Hide2!Z187=0, Selection_Hide2!Z187=\"\"), \"\", Selection_Hide2!Z187)","v":""},{"$f":"IF(OR(Selection_Hide2!AA187=0, Selection_Hide2!AA187=\"\"), \"\", Selection_Hide2!AA187)","v":""},{"$f":"IF(OR(Selection_Hide2!AB187=0, Selection_Hide2!AB187=\"\"), \"\", Selection_Hide2!AB187)","v":""}]
[{"$f":"IF(OR(Selection_Hide2!A188=0, Selection_Hide2!A188=\"\"), \"\", Selection_Hide2!A188)","v":""},{"$f":"IF(OR(Selection_Hide2!B188=0, Selection_Hide2!B188=\"\"), \"\", Selection_Hide2!B188)","v":""},{"$f":"IF(OR(Selection_Hide2!C188=0, Selection_Hide2!C188=\"\"), \"\", Selection_Hide2!C188)","v":""},{"$f":"IF(OR(Selection_Hide2!D188=0, Selection_Hide2!D188=\"\"), \"\", Selection_Hide2!D188)","v":""},{"$f":"IF(OR(Selection_Hide2!E188=0, Selection_Hide2!E188=\"\"), \"\", Selection_Hide2!E188)","v":""},{"$f":"IF(OR(Selection_Hide2!F188=0, Selection_Hide2!F188=\"\"), \"\", Selection_Hide2!F188)","v":""},{"$f":"IF(OR(Selection_Hide2!G188=0, Selection_Hide2!G188=\"\"), \"\", Selection_Hide2!G188)","v":""},{"$f":"IF(OR(Selection_Hide2!H188=0, Selection_Hide2!H188=\"\"), \"\", Selection_Hide2!H188)","v":""},{"$f":"IF(OR(Selection_Hide2!I188=0, Selection_Hide2!I188=\"\"), \"\", Selection_Hide2!I188)","v":""},{"$f":"IF(OR(Selection_Hide2!J188=0, Selection_Hide2!J188=\"\"), \"\", Selection_Hide2!J188)","v":""},{"$f":"IF(OR(Selection_Hide2!K188=0, Selection_Hide2!K188=\"\"), \"\", Selection_Hide2!K188)","v":""},{"$f":"IF(OR(Selection_Hide2!L188=0, Selection_Hide2!L188=\"\"), \"\", Selection_Hide2!L188)","v":""},{"$f":"IF(OR(Selection_Hide2!M188=0, Selection_Hide2!M188=\"\"), \"\", Selection_Hide2!M188)","v":""},{"$f":"IF(OR(Selection_Hide2!N188=0, Selection_Hide2!N188=\"\"), \"\", Selection_Hide2!N188)","v":""},{"$f":"IF(OR(Selection_Hide2!O188=0, Selection_Hide2!O188=\"\"), \"\", Selection_Hide2!O188)","v":""},{"$f":"IF(OR(Selection_Hide2!P188=0, Selection_Hide2!P188=\"\"), \"\", Selection_Hide2!P188)","v":""},{"$f":"IF(OR(Selection_Hide2!Q188=0, Selection_Hide2!Q188=\"\"), \"\", Selection_Hide2!Q188)","v":""},{"$f":"IF(OR(Selection_Hide2!R188=0, Selection_Hide2!R188=\"\"), \"\", Selection_Hide2!R188)","v":""},{"$f":"IF(OR(Selection_Hide2!S188=0, Selection_Hide2!S188=\"\"), \"\", Selection_Hide2!S188)","v":""},{"$f":"IF(OR(Selection_Hide2!T188=0, Selection_Hide2!T188=\"\"), \"\", Selection_Hide2!T188)","v":""},{"$f":"IF(OR(Selection_Hide2!U188=0, Selection_Hide2!U188=\"\"), \"\", Selection_Hide2!U188)","v":""},{"$f":"IF(OR(Selection_Hide2!V188=0, Selection_Hide2!V188=\"\"), \"\", Selection_Hide2!V188)","v":""},{"$f":"IF(OR(Selection_Hide2!W188=0, Selection_Hide2!W188=\"\"), \"\", Selection_Hide2!W188)","v":""},{"$f":"IF(OR(Selection_Hide2!X188=0, Selection_Hide2!X188=\"\"), \"\", Selection_Hide2!X188)","v":""},{"$f":"IF(OR(Selection_Hide2!Y188=0, Selection_Hide2!Y188=\"\"), \"\", Selection_Hide2!Y188)","v":""},{"$f":"IF(OR(Selection_Hide2!Z188=0, Selection_Hide2!Z188=\"\"), \"\", Selection_Hide2!Z188)","v":""},{"$f":"IF(OR(Selection_Hide2!AA188=0, Selection_Hide2!AA188=\"\"), \"\", Selection_Hide2!AA188)","v":""},{"$f":"IF(OR(Selection_Hide2!AB188=0, Selection_Hide2!AB188=\"\"), \"\", Selection_Hide2!AB188)","v":""}]
[{"$f":"IF(OR(Selection_Hide2!A189=0, Selection_Hide2!A189=\"\"), \"\", Selection_Hide2!A189)","v":""},{"$f":"IF(OR(Selection_Hide2!B189=0, Selection_Hide2!B189=\"\"), \"\", Selection_Hide2!B189)","v":""},{"$f":"IF(OR(Selection_Hide2!C189=0, Selection_Hide2!C189=\"\"), \"\", Selection_Hide2!C189)","v":""},{"$f":"IF(OR(Selection_Hide2!D189=0, Selection_Hide2!D189=\"\"), \"\", Selection_Hide2!D189)","v":""},{"$f":"IF(OR(Selection_Hide2!E189=0, Selection_Hide2!E189=\"\"), \"\", Selection_Hide2!E189)","v":""},{"$f":"IF(OR(Selection_Hide2!F189=0, Selection_Hide2!F189=\"\"), \"\", Selection_Hide2!F189)","v":""},{"$f":"IF(OR(Selection_Hide2!G189=0, Selection_Hide2!G189=\"\"), \"\", Selection_Hide2!G189)","v":""},{"$f":"IF(OR(Selection_Hide2!H189=0, Selection_Hide2!H189=\"\"), \"\", Selection_Hide2!H189)","v":""},{"$f":"IF(OR(Selection_Hide2!I189=0, Selection_Hide2!I189=\"\"), \"\", Selection_Hide2!I189)","v":""},{"$f":"IF(OR(Selection_Hide2!J189=0, Selection_Hide2!J189=\"\"), \"\", Selection_Hide2!J189)","v":""},{"$f":"IF(OR(Selection_Hide2!K189=0, Selection_Hide2!K189=\"\"), \"\", Selection_Hide2!K189)","v":""},{"$f":"IF(OR(Selection_Hide2!L189=0, Selection_Hide2!L189=\"\"), \"\", Selection_Hide2!L189)","v":""},{"$f":"IF(OR(Selection_Hide2!M189=0, Selection_Hide2!M189=\"\"), \"\", Selection_Hide2!M189)","v":""},{"$f":"IF(OR(Selection_Hide2!N189=0, Selection_Hide2!N189=\"\"), \"\", Selection_Hide2!N189)","v":""},{"$f":"IF(OR(Selection_Hide2!O189=0, Selection_Hide2!O189=\"\"), \"\", Selection_Hide2!O189)","v":""},{"$f":"IF(OR(Selection_Hide2!P189=0, Selection_Hide2!P189=\"\"), \"\", Selection_Hide2!P189)","v":""},{"$f":"IF(OR(Selection_Hide2!Q189=0, Selection_Hide2!Q189=\"\"), \"\", Selection_Hide2!Q189)","v":""},{"$f":"IF(OR(Selection_Hide2!R189=0, Selection_Hide2!R189=\"\"), \"\", Selection_Hide2!R189)","v":""},{"$f":"IF(OR(Selection_Hide2!S189=0, Selection_Hide2!S189=\"\"), \"\", Selection_Hide2!S189)","v":""},{"$f":"IF(OR(Selection_Hide2!T189=0, Selection_Hide2!T189=\"\"), \"\", Selection_Hide2!T189)","v":""},{"$f":"IF(OR(Selection_Hide2!U189=0, Selection_Hide2!U189=\"\"), \"\", Selection_Hide2!U189)","v":""},{"$f":"IF(OR(Selection_Hide2!V189=0, Selection_Hide2!V189=\"\"), \"\", Selection_Hide2!V189)","v":""},{"$f":"IF(OR(Selection_Hide2!W189=0, Selection_Hide2!W189=\"\"), \"\", Selection_Hide2!W189)","v":""},{"$f":"IF(OR(Selection_Hide2!X189=0, Selection_Hide2!X189=\"\"), \"\", Selection_Hide2!X189)","v":""},{"$f":"IF(OR(Selection_Hide2!Y189=0, Selection_Hide2!Y189=\"\"), \"\", Selection_Hide2!Y189)","v":""},{"$f":"IF(OR(Selection_Hide2!Z189=0, Selection_Hide2!Z189=\"\"), \"\", Selection_Hide2!Z189)","v":""},{"$f":"IF(OR(Selection_Hide2!AA189=0, Selection_Hide2!AA189=\"\"), \"\", Selection_Hide2!AA189)","v":""},{"$f":"IF(OR(Selection_Hide2!AB189=0, Selection_Hide2!AB189=\"\"), \"\", Selection_Hide2!AB189)","v":""}]
[{"$f":"IF(OR(Selection_Hide2!A190=0, Selection_Hide2!A190=\"\"), \"\", Selection_Hide2!A190)","v":""},{"$f":"IF(OR(Selection_Hide2!B190=0, Selection_Hide2!B190=\"\"), \"\", Selection_Hide2!B190)","v":""},{"$f":"IF(OR(Selection_Hide2!C190=0, Selection_Hide2!C190=\"\"), \"\", Selection_Hide2!C190)","v":""},{"$f":"IF(OR(Selection_Hide2!D190=0, Selection_Hide2!D190=\"\"), \"\", Selection_Hide2!D190)","v":""},{"$f":"IF(OR(Selection_Hide2!E190=0, Selection_Hide2!E190=\"\"), \"\", Selection_Hide2!E190)","v":""},{"$f":"IF(OR(Selection_Hide2!F190=0, Selection_Hide2!F190=\"\"), \"\", Selection_Hide2!F190)","v":""},{"$f":"IF(OR(Selection_Hide2!G190=0, Selection_Hide2!G190=\"\"), \"\", Selection_Hide2!G190)","v":""},{"$f":"IF(OR(Selection_Hide2!H190=0, Selection_Hide2!H190=\"\"), \"\", Selection_Hide2!H190)","v":""},{"$f":"IF(OR(Selection_Hide2!I190=0, Selection_Hide2!I190=\"\"), \"\", Selection_Hide2!I190)","v":""},{"$f":"IF(OR(Selection_Hide2!J190=0, Selection_Hide2!J190=\"\"), \"\", Selection_Hide2!J190)","v":""},{"$f":"IF(OR(Selection_Hide2!K190=0, Selection_Hide2!K190=\"\"), \"\", Selection_Hide2!K190)","v":""},{"$f":"IF(OR(Selection_Hide2!L190=0, Selection_Hide2!L190=\"\"), \"\", Selection_Hide2!L190)","v":""},{"$f":"IF(OR(Selection_Hide2!M190=0, Selection_Hide2!M190=\"\"), \"\", Selection_Hide2!M190)","v":""},{"$f":"IF(OR(Selection_Hide2!N190=0, Selection_Hide2!N190=\"\"), \"\", Selection_Hide2!N190)","v":""},{"$f":"IF(OR(Selection_Hide2!O190=0, Selection_Hide2!O190=\"\"), \"\", Selection_Hide2!O190)","v":""},{"$f":"IF(OR(Selection_Hide2!P190=0, Selection_Hide2!P190=\"\"), \"\", Selection_Hide2!P190)","v":""},{"$f":"IF(OR(Selection_Hide2!Q190=0, Selection_Hide2!Q190=\"\"), \"\", Selection_Hide2!Q190)","v":""},{"$f":"IF(OR(Selection_Hide2!R190=0, Selection_Hide2!R190=\"\"), \"\", Selection_Hide2!R190)","v":""},{"$f":"IF(OR(Selection_Hide2!S190=0, Selection_Hide2!S190=\"\"), \"\", Selection_Hide2!S190)","v":""},{"$f":"IF(OR(Selection_Hide2!T190=0, Selection_Hide2!T190=\"\"), \"\", Selection_Hide2!T190)","v":""},{"$f":"IF(OR(Selection_Hide2!U190=0, Selection_Hide2!U190=\"\"), \"\", Selection_Hide2!U190)","v":""},{"$f":"IF(OR(Selection_Hide2!V190=0, Selection_Hide2!V190=\"\"), \"\", Selection_Hide2!V190)","v":""},{"$f":"IF(OR(Selection_Hide2!W190=0, Selection_Hide2!W190=\"\"), \"\", Selection_Hide2!W190)","v":""},{"$f":"IF(OR(Selection_Hide2!X190=0, Selection_Hide2!X190=\"\"), \"\", Selection_Hide2!X190)","v":""},{"$f":"IF(OR(Selection_Hide2!Y190=0, Selection_Hide2!Y190=\"\"), \"\", Selection_Hide2!Y190)","v":""},{"$f":"IF(OR(Selection_Hide2!Z190=0, Selection_Hide2!Z190=\"\"), \"\", Selection_Hide2!Z190)","v":""},{"$f":"IF(OR(Selection_Hide2!AA190=0, Selection_Hide2!AA190=\"\"), \"\", Selection_Hide2!AA190)","v":""},{"$f":"IF(OR(Selection_Hide2!AB190=0, Selection_Hide2!AB190=\"\"), \"\", Selection_Hide2!AB190)","v":""}]
[{"$f":"IF(OR(Selection_Hide2!A191=0, Selection_Hide2!A191=\"\"), \"\", Selection_Hide2!A191)","v":""},{"$f":"IF(OR(Selection_Hide2!B191=0, Selection_Hide2!B191=\"\"), \"\", Selection_Hide2!B191)","v":""},{"$f":"IF(OR(Selection_Hide2!C191=0, Selection_Hide2!C191=\"\"), \"\", Selection_Hide2!C191)","v":""},{"$f":"IF(OR(Selection_Hide2!D191=0, Selection_Hide2!D191=\"\"), \"\", Selection_Hide2!D191)","v":""},{"$f":"IF(OR(Selection_Hide2!E191=0, Selection_Hide2!E191=\"\"), \"\", Selection_Hide2!E191)","v":""},{"$f":"IF(OR(Selection_Hide2!F191=0, Selection_Hide2!F191=\"\"), \"\", Selection_Hide2!F191)","v":""},{"$f":"IF(OR(Selection_Hide2!G191=0, Selection_Hide2!G191=\"\"), \"\", Selection_Hide2!G191)","v":""},{"$f":"IF(OR(Selection_Hide2!H191=0, Selection_Hide2!H191=\"\"), \"\", Selection_Hide2!H191)","v":""},{"$f":"IF(OR(Selection_Hide2!I191=0, Selection_Hide2!I191=\"\"), \"\", Selection_Hide2!I191)","v":""},{"$f":"IF(OR(Selection_Hide2!J191=0, Selection_Hide2!J191=\"\"), \"\", Selection_Hide2!J191)","v":""},{"$f":"IF(OR(Selection_Hide2!K191=0, Selection_Hide2!K191=\"\"), \"\", Selection_Hide2!K191)","v":""},{"$f":"IF(OR(Selection_Hide2!L191=0, Selection_Hide2!L191=\"\"), \"\", Selection_Hide2!L191)","v":""},{"$f":"IF(OR(Selection_Hide2!M191=0, Selection_Hide2!M191=\"\"), \"\", Selection_Hide2!M191)","v":""},{"$f":"IF(OR(Selection_Hide2!N191=0, Selection_Hide2!N191=\"\"), \"\", Selection_Hide2!N191)","v":""},{"$f":"IF(OR(Selection_Hide2!O191=0, Selection_Hide2!O191=\"\"), \"\", Selection_Hide2!O191)","v":""},{"$f":"IF(OR(Selection_Hide2!P191=0, Selection_Hide2!P191=\"\"), \"\", Selection_Hide2!P191)","v":""},{"$f":"IF(OR(Selection_Hide2!Q191=0, Selection_Hide2!Q191=\"\"), \"\", Selection_Hide2!Q191)","v":""},{"$f":"IF(OR(Selection_Hide2!R191=0, Selection_Hide2!R191=\"\"), \"\", Selection_Hide2!R191)","v":""},{"$f":"IF(OR(Selection_Hide2!S191=0, Selection_Hide2!S191=\"\"), \"\", Selection_Hide2!S191)","v":""},{"$f":"IF(OR(Selection_Hide2!T191=0, Selection_Hide2!T191=\"\"), \"\", Selection_Hide2!T191)","v":""},{"$f":"IF(OR(Selection_Hide2!U191=0, Selection_Hide2!U191=\"\"), \"\", Selection_Hide2!U191)","v":""},{"$f":"IF(OR(Selection_Hide2!V191=0, Selection_Hide2!V191=\"\"), \"\", Selection_Hide2!V191)","v":""},{"$f":"IF(OR(Selection_Hide2!W191=0, Selection_Hide2!W191=\"\"), \"\", Selection_Hide2!W191)","v":""},{"$f":"IF(OR(Selection_Hide2!X191=0, Selection_Hide2!X191=\"\"), \"\", Selection_Hide2!X191)","v":""},{"$f":"IF(OR(Selection_Hide2!Y191=0, Selection_Hide2!Y191=\"\"), \"\", Selection_Hide2!Y191)","v":""},{"$f":"IF(OR(Selection_Hide2!Z191=0, Selection_Hide2!Z191=\"\"), \"\", Selection_Hide2!Z191)","v":""},{"$f":"IF(OR(Selection_Hide2!AA191=0, Selection_Hide2!AA191=\"\"), \"\", Selection_Hide2!AA191)","v":""},{"$f":"IF(OR(Selection_Hide2!AB191=0, Selection_Hide2!AB191=\"\"), \"\", Selection_Hide2!AB191)","v":""}]
[{"$f":"IF(OR(Selection_Hide2!A192=0, Selection_Hide2!A192=\"\"), \"\", Selection_Hide2!A192)","v":""},{"$f":"IF(OR(Selection_Hide2!B192=0, Selection_Hide2!B192=\"\"), \"\", Selection_Hide2!B192)","v":""},{"$f":"IF(OR(Selection_Hide2!C192=0, Selection_Hide2!C192=\"\"), \"\", Selection_Hide2!C192)","v":""},{"$f":"IF(OR(Selection_Hide2!D192=0, Selection_Hide2!D192=\"\"), \"\", Selection_Hide2!D192)","v":""},{"$f":"IF(OR(Selection_Hide2!E192=0, Selection_Hide2!E192=\"\"), \"\", Selection_Hide2!E192)","v":""},{"$f":"IF(OR(Selection_Hide2!F192=0, Selection_Hide2!F192=\"\"), \"\", Selection_Hide2!F192)","v":""},{"$f":"IF(OR(Selection_Hide2!G192=0, Selection_Hide2!G192=\"\"), \"\", Selection_Hide2!G192)","v":""},{"$f":"IF(OR(Selection_Hide2!H192=0, Selection_Hide2!H192=\"\"), \"\", Selection_Hide2!H192)","v":""},{"$f":"IF(OR(Selection_Hide2!I192=0, Selection_Hide2!I192=\"\"), \"\", Selection_Hide2!I192)","v":""},{"$f":"IF(OR(Selection_Hide2!J192=0, Selection_Hide2!J192=\"\"), \"\", Selection_Hide2!J192)","v":""},{"$f":"IF(OR(Selection_Hide2!K192=0, Selection_Hide2!K192=\"\"), \"\", Selection_Hide2!K192)","v":""},{"$f":"IF(OR(Selection_Hide2!L192=0, Selection_Hide2!L192=\"\"), \"\", Selection_Hide2!L192)","v":""},{"$f":"IF(OR(Selection_Hide2!M192=0, Selection_Hide2!M192=\"\"), \"\", Selection_Hide2!M192)","v":""},{"$f":"IF(OR(Selection_Hide2!N192=0, Selection_Hide2!N192=\"\"), \"\", Selection_Hide2!N192)","v":""},{"$f":"IF(OR(Selection_Hide2!O192=0, Selection_Hide2!O192=\"\"), \"\", Selection_Hide2!O192)","v":""},{"$f":"IF(OR(Selection_Hide2!P192=0, Selection_Hide2!P192=\"\"), \"\", Selection_Hide2!P192)","v":""},{"$f":"IF(OR(Selection_Hide2!Q192=0, Selection_Hide2!Q192=\"\"), \"\", Selection_Hide2!Q192)","v":""},{"$f":"IF(OR(Selection_Hide2!R192=0, Selection_Hide2!R192=\"\"), \"\", Selection_Hide2!R192)","v":""},{"$f":"IF(OR(Selection_Hide2!S192=0, Selection_Hide2!S192=\"\"), \"\", Selection_Hide2!S192)","v":""},{"$f":"IF(OR(Selection_Hide2!T192=0, Selection_Hide2!T192=\"\"), \"\", Selection_Hide2!T192)","v":""},{"$f":"IF(OR(Selection_Hide2!U192=0, Selection_Hide2!U192=\"\"), \"\", Selection_Hide2!U192)","v":""},{"$f":"IF(OR(Selection_Hide2!V192=0, Selection_Hide2!V192=\"\"), \"\", Selection_Hide2!V192)","v":""},{"$f":"IF(OR(Selection_Hide2!W192=0, Selection_Hide2!W192=\"\"), \"\", Selection_Hide2!W192)","v":""},{"$f":"IF(OR(Selection_Hide2!X192=0, Selection_Hide2!X192=\"\"), \"\", Selection_Hide2!X192)","v":""},{"$f":"IF(OR(Selection_Hide2!Y192=0, Selection_Hide2!Y192=\"\"), \"\", Selection_Hide2!Y192)","v":""},{"$f":"IF(OR(Selection_Hide2!Z192=0, Selection_Hide2!Z192=\"\"), \"\", Selection_Hide2!Z192)","v":""},{"$f":"IF(OR(Selection_Hide2!AA192=0, Selection_Hide2!AA192=\"\"), \"\", Selection_Hide2!AA192)","v":""},{"$f":"IF(OR(Selection_Hide2!AB192=0, Selection_Hide2!AB192=\"\"), \"\", Selection_Hide2!AB192)","v":""}]
[{"$f":"IF(OR(Selection_Hide2!A193=0, Selection_Hide2!A193=\"\"), \"\", Selection_Hide2!A193)","v":""},{"$f":"IF(OR(Selection_Hide2!B193=0, Selection_Hide2!B193=\"\"), \"\", Selection_Hide2!B193)","v":""},{"$f":"IF(OR(Selection_Hide2!C193=0, Selection_Hide2!C193=\"\"), \"\", Selection_Hide2!C193)","v":""},{"$f":"IF(OR(Selection_Hide2!D193=0, Selection_Hide2!D193=\"\"), \"\", Selection_Hide2!D193)","v":""},{"$f":"IF(OR(Selection_Hide2!E193=0, Selection_Hide2!E193=\"\"), \"\", Selection_Hide2!E193)","v":""},{"$f":"IF(OR(Selection_Hide2!F193=0, Selection_Hide2!F193=\"\"), \"\", Selection_Hide2!F193)","v":""},{"$f":"IF(OR(Selection_Hide2!G193=0, Selection_Hide2!G193=\"\"), \"\", Selection_Hide2!G193)","v":""},{"$f":"IF(OR(Selection_Hide2!H193=0, Selection_Hide2!H193=\"\"), \"\", Selection_Hide2!H193)","v":""},{"$f":"IF(OR(Selection_Hide2!I193=0, Selection_Hide2!I193=\"\"), \"\", Selection_Hide2!I193)","v":""},{"$f":"IF(OR(Selection_Hide2!J193=0, Selection_Hide2!J193=\"\"), \"\", Selection_Hide2!J193)","v":""},{"$f":"IF(OR(Selection_Hide2!K193=0, Selection_Hide2!K193=\"\"), \"\", Selection_Hide2!K193)","v":""},{"$f":"IF(OR(Selection_Hide2!L193=0, Selection_Hide2!L193=\"\"), \"\", Selection_Hide2!L193)","v":""},{"$f":"IF(OR(Selection_Hide2!M193=0, Selection_Hide2!M193=\"\"), \"\", Selection_Hide2!M193)","v":""},{"$f":"IF(OR(Selection_Hide2!N193=0, Selection_Hide2!N193=\"\"), \"\", Selection_Hide2!N193)","v":""},{"$f":"IF(OR(Selection_Hide2!O193=0, Selection_Hide2!O193=\"\"), \"\", Selection_Hide2!O193)","v":""},{"$f":"IF(OR(Selection_Hide2!P193=0, Selection_Hide2!P193=\"\"), \"\", Selection_Hide2!P193)","v":""},{"$f":"IF(OR(Selection_Hide2!Q193=0, Selection_Hide2!Q193=\"\"), \"\", Selection_Hide2!Q193)","v":""},{"$f":"IF(OR(Selection_Hide2!R193=0, Selection_Hide2!R193=\"\"), \"\", Selection_Hide2!R193)","v":""},{"$f":"IF(OR(Selection_Hide2!S193=0, Selection_Hide2!S193=\"\"), \"\", Selection_Hide2!S193)","v":""},{"$f":"IF(OR(Selection_Hide2!T193=0, Selection_Hide2!T193=\"\"), \"\", Selection_Hide2!T193)","v":""},{"$f":"IF(OR(Selection_Hide2!U193=0, Selection_Hide2!U193=\"\"), \"\", Selection_Hide2!U193)","v":""},{"$f":"IF(OR(Selection_Hide2!V193=0, Selection_Hide2!V193=\"\"), \"\", Selection_Hide2!V193)","v":""},{"$f":"IF(OR(Selection_Hide2!W193=0, Selection_Hide2!W193=\"\"), \"\", Selection_Hide2!W193)","v":""},{"$f":"IF(OR(Selection_Hide2!X193=0, Selection_Hide2!X193=\"\"), \"\", Selection_Hide2!X193)","v":""},{"$f":"IF(OR(Selection_Hide2!Y193=0, Selection_Hide2!Y193=\"\"), \"\", Selection_Hide2!Y193)","v":""},{"$f":"IF(OR(Selection_Hide2!Z193=0, Selection_Hide2!Z193=\"\"), \"\", Selection_Hide2!Z193)","v":""},{"$f":"IF(OR(Selection_Hide2!AA193=0, Selection_Hide2!AA193=\"\"), \"\", Selection_Hide2!AA193)","v":""},{"$f":"IF(OR(Selection_Hide2!AB193=0, Selection_Hide2!AB193=\"\"), \"\", Selection_Hide2!AB193)","v":""}]
[{"$f":"IF(OR(Selection_Hide2!A194=0, Selection_Hide2!A194=\"\"), \"\", Selection_Hide2!A194)","v":""},{"$f":"IF(OR(Selection_Hide2!B194=0, Selection_Hide2!B194=\"\"), \"\", Selection_Hide2!B194)","v":""},{"$f":"IF(OR(Selection_Hide2!C194=0, Selection_Hide2!C194=\"\"), \"\", Selection_Hide2!C194)","v":""},{"$f":"IF(OR(Selection_Hide2!D194=0, Selection_Hide2!D194=\"\"), \"\", Selection_Hide2!D194)","v":""},{"$f":"IF(OR(Selection_Hide2!E194=0, Selection_Hide2!E194=\"\"), \"\", Selection_Hide2!E194)","v":""},{"$f":"IF(OR(Selection_Hide2!F194=0, Selection_Hide2!F194=\"\"), \"\", Selection_Hide2!F194)","v":""},{"$f":"IF(OR(Selection_Hide2!G194=0, Selection_Hide2!G194=\"\"), \"\", Selection_Hide2!G194)","v":""},{"$f":"IF(OR(Selection_Hide2!H194=0, Selection_Hide2!H194=\"\"), \"\", Selection_Hide2!H194)","v":""},{"$f":"IF(OR(Selection_Hide2!I194=0, Selection_Hide2!I194=\"\"), \"\", Selection_Hide2!I194)","v":""},{"$f":"IF(OR(Selection_Hide2!J194=0, Selection_Hide2!J194=\"\"), \"\", Selection_Hide2!J194)","v":""},{"$f":"IF(OR(Selection_Hide2!K194=0, Selection_Hide2!K194=\"\"), \"\", Selection_Hide2!K194)","v":""},{"$f":"IF(OR(Selection_Hide2!L194=0, Selection_Hide2!L194=\"\"), \"\", Selection_Hide2!L194)","v":""},{"$f":"IF(OR(Selection_Hide2!M194=0, Selection_Hide2!M194=\"\"), \"\", Selection_Hide2!M194)","v":""},{"$f":"IF(OR(Selection_Hide2!N194=0, Selection_Hide2!N194=\"\"), \"\", Selection_Hide2!N194)","v":""},{"$f":"IF(OR(Selection_Hide2!O194=0, Selection_Hide2!O194=\"\"), \"\", Selection_Hide2!O194)","v":""},{"$f":"IF(OR(Selection_Hide2!P194=0, Selection_Hide2!P194=\"\"), \"\", Selection_Hide2!P194)","v":""},{"$f":"IF(OR(Selection_Hide2!Q194=0, Selection_Hide2!Q194=\"\"), \"\", Selection_Hide2!Q194)","v":""},{"$f":"IF(OR(Selection_Hide2!R194=0, Selection_Hide2!R194=\"\"), \"\", Selection_Hide2!R194)","v":""},{"$f":"IF(OR(Selection_Hide2!S194=0, Selection_Hide2!S194=\"\"), \"\", Selection_Hide2!S194)","v":""},{"$f":"IF(OR(Selection_Hide2!T194=0, Selection_Hide2!T194=\"\"), \"\", Selection_Hide2!T194)","v":""},{"$f":"IF(OR(Selection_Hide2!U194=0, Selection_Hide2!U194=\"\"), \"\", Selection_Hide2!U194)","v":""},{"$f":"IF(OR(Selection_Hide2!V194=0, Selection_Hide2!V194=\"\"), \"\", Selection_Hide2!V194)","v":""},{"$f":"IF(OR(Selection_Hide2!W194=0, Selection_Hide2!W194=\"\"), \"\", Selection_Hide2!W194)","v":""},{"$f":"IF(OR(Selection_Hide2!X194=0, Selection_Hide2!X194=\"\"), \"\", Selection_Hide2!X194)","v":""},{"$f":"IF(OR(Selection_Hide2!Y194=0, Selection_Hide2!Y194=\"\"), \"\", Selection_Hide2!Y194)","v":""},{"$f":"IF(OR(Selection_Hide2!Z194=0, Selection_Hide2!Z194=\"\"), \"\", Selection_Hide2!Z194)","v":""},{"$f":"IF(OR(Selection_Hide2!AA194=0, Selection_Hide2!AA194=\"\"), \"\", Selection_Hide2!AA194)","v":""},{"$f":"IF(OR(Selection_Hide2!AB194=0, Selection_Hide2!AB194=\"\"), \"\", Selection_Hide2!AB194)","v":""}]
[{"$f":"IF(OR(Selection_Hide2!A195=0, Selection_Hide2!A195=\"\"), \"\", Selection_Hide2!A195)","v":""},{"$f":"IF(OR(Selection_Hide2!B195=0, Selection_Hide2!B195=\"\"), \"\", Selection_Hide2!B195)","v":""},{"$f":"IF(OR(Selection_Hide2!C195=0, Selection_Hide2!C195=\"\"), \"\", Selection_Hide2!C195)","v":""},{"$f":"IF(OR(Selection_Hide2!D195=0, Selection_Hide2!D195=\"\"), \"\", Selection_Hide2!D195)","v":""},{"$f":"IF(OR(Selection_Hide2!E195=0, Selection_Hide2!E195=\"\"), \"\", Selection_Hide2!E195)","v":""},{"$f":"IF(OR(Selection_Hide2!F195=0, Selection_Hide2!F195=\"\"), \"\", Selection_Hide2!F195)","v":""},{"$f":"IF(OR(Selection_Hide2!G195=0, Selection_Hide2!G195=\"\"), \"\", Selection_Hide2!G195)","v":""},{"$f":"IF(OR(Selection_Hide2!H195=0, Selection_Hide2!H195=\"\"), \"\", Selection_Hide2!H195)","v":""},{"$f":"IF(OR(Selection_Hide2!I195=0, Selection_Hide2!I195=\"\"), \"\", Selection_Hide2!I195)","v":""},{"$f":"IF(OR(Selection_Hide2!J195=0, Selection_Hide2!J195=\"\"), \"\", Selection_Hide2!J195)","v":""},{"$f":"IF(OR(Selection_Hide2!K195=0, Selection_Hide2!K195=\"\"), \"\", Selection_Hide2!K195)","v":""},{"$f":"IF(OR(Selection_Hide2!L195=0, Selection_Hide2!L195=\"\"), \"\", Selection_Hide2!L195)","v":""},{"$f":"IF(OR(Selection_Hide2!M195=0, Selection_Hide2!M195=\"\"), \"\", Selection_Hide2!M195)","v":""},{"$f":"IF(OR(Selection_Hide2!N195=0, Selection_Hide2!N195=\"\"), \"\", Selection_Hide2!N195)","v":""},{"$f":"IF(OR(Selection_Hide2!O195=0, Selection_Hide2!O195=\"\"), \"\", Selection_Hide2!O195)","v":""},{"$f":"IF(OR(Selection_Hide2!P195=0, Selection_Hide2!P195=\"\"), \"\", Selection_Hide2!P195)","v":""},{"$f":"IF(OR(Selection_Hide2!Q195=0, Selection_Hide2!Q195=\"\"), \"\", Selection_Hide2!Q195)","v":""},{"$f":"IF(OR(Selection_Hide2!R195=0, Selection_Hide2!R195=\"\"), \"\", Selection_Hide2!R195)","v":""},{"$f":"IF(OR(Selection_Hide2!S195=0, Selection_Hide2!S195=\"\"), \"\", Selection_Hide2!S195)","v":""},{"$f":"IF(OR(Selection_Hide2!T195=0, Selection_Hide2!T195=\"\"), \"\", Selection_Hide2!T195)","v":""},{"$f":"IF(OR(Selection_Hide2!U195=0, Selection_Hide2!U195=\"\"), \"\", Selection_Hide2!U195)","v":""},{"$f":"IF(OR(Selection_Hide2!V195=0, Selection_Hide2!V195=\"\"), \"\", Selection_Hide2!V195)","v":""},{"$f":"IF(OR(Selection_Hide2!W195=0, Selection_Hide2!W195=\"\"), \"\", Selection_Hide2!W195)","v":""},{"$f":"IF(OR(Selection_Hide2!X195=0, Selection_Hide2!X195=\"\"), \"\", Selection_Hide2!X195)","v":""},{"$f":"IF(OR(Selection_Hide2!Y195=0, Selection_Hide2!Y195=\"\"), \"\", Selection_Hide2!Y195)","v":""},{"$f":"IF(OR(Selection_Hide2!Z195=0, Selection_Hide2!Z195=\"\"), \"\", Selection_Hide2!Z195)","v":""},{"$f":"IF(OR(Selection_Hide2!AA195=0, Selection_Hide2!AA195=\"\"), \"\", Selection_Hide2!AA195)","v":""},{"$f":"IF(OR(Selection_Hide2!AB195=0, Selection_Hide2!AB195=\"\"), \"\", Selection_Hide2!AB195)","v":""}]
[{"$f":"IF(OR(Selection_Hide2!A196=0, Selection_Hide2!A196=\"\"), \"\", Selection_Hide2!A196)","v":""},{"$f":"IF(OR(Selection_Hide2!B196=0, Selection_Hide2!B196=\"\"), \"\", Selection_Hide2!B196)","v":""},{"$f":"IF(OR(Selection_Hide2!C196=0, Selection_Hide2!C196=\"\"), \"\", Selection_Hide2!C196)","v":""},{"$f":"IF(OR(Selection_Hide2!D196=0, Selection_Hide2!D196=\"\"), \"\", Selection_Hide2!D196)","v":""},{"$f":"IF(OR(Selection_Hide2!E196=0, Selection_Hide2!E196=\"\"), \"\", Selection_Hide2!E196)","v":""},{"$f":"IF(OR(Selection_Hide2!F196=0, Selection_Hide2!F196=\"\"), \"\", Selection_Hide2!F196)","v":""},{"$f":"IF(OR(Selection_Hide2!G196=0, Selection_Hide2!G196=\"\"), \"\", Selection_Hide2!G196)","v":""},{"$f":"IF(OR(Selection_Hide2!H196=0, Selection_Hide2!H196=\"\"), \"\", Selection_Hide2!H196)","v":""},{"$f":"IF(OR(Selection_Hide2!I196=0, Selection_Hide2!I196=\"\"), \"\", Selection_Hide2!I196)","v":""},{"$f":"IF(OR(Selection_Hide2!J196=0, Selection_Hide2!J196=\"\"), \"\", Selection_Hide2!J196)","v":""},{"$f":"IF(OR(Selection_Hide2!K196=0, Selection_Hide2!K196=\"\"), \"\", Selection_Hide2!K196)","v":""},{"$f":"IF(OR(Selection_Hide2!L196=0, Selection_Hide2!L196=\"\"), \"\", Selection_Hide2!L196)","v":""},{"$f":"IF(OR(Selection_Hide2!M196=0, Selection_Hide2!M196=\"\"), \"\", Selection_Hide2!M196)","v":""},{"$f":"IF(OR(Selection_Hide2!N196=0, Selection_Hide2!N196=\"\"), \"\", Selection_Hide2!N196)","v":""},{"$f":"IF(OR(Selection_Hide2!O196=0, Selection_Hide2!O196=\"\"), \"\", Selection_Hide2!O196)","v":""},{"$f":"IF(OR(Selection_Hide2!P196=0, Selection_Hide2!P196=\"\"), \"\", Selection_Hide2!P196)","v":""},{"$f":"IF(OR(Selection_Hide2!Q196=0, Selection_Hide2!Q196=\"\"), \"\", Selection_Hide2!Q196)","v":""},{"$f":"IF(OR(Selection_Hide2!R196=0, Selection_Hide2!R196=\"\"), \"\", Selection_Hide2!R196)","v":""},{"$f":"IF(OR(Selection_Hide2!S196=0, Selection_Hide2!S196=\"\"), \"\", Selection_Hide2!S196)","v":""},{"$f":"IF(OR(Selection_Hide2!T196=0, Selection_Hide2!T196=\"\"), \"\", Selection_Hide2!T196)","v":""},{"$f":"IF(OR(Selection_Hide2!U196=0, Selection_Hide2!U196=\"\"), \"\", Selection_Hide2!U196)","v":""},{"$f":"IF(OR(Selection_Hide2!V196=0, Selection_Hide2!V196=\"\"), \"\", Selection_Hide2!V196)","v":""},{"$f":"IF(OR(Selection_Hide2!W196=0, Selection_Hide2!W196=\"\"), \"\", Selection_Hide2!W196)","v":""},{"$f":"IF(OR(Selection_Hide2!X196=0, Selection_Hide2!X196=\"\"), \"\", Selection_Hide2!X196)","v":""},{"$f":"IF(OR(Selection_Hide2!Y196=0, Selection_Hide2!Y196=\"\"), \"\", Selection_Hide2!Y196)","v":""},{"$f":"IF(OR(Selection_Hide2!Z196=0, Selection_Hide2!Z196=\"\"), \"\", Selection_Hide2!Z196)","v":""},{"$f":"IF(OR(Selection_Hide2!AA196=0, Selection_Hide2!AA196=\"\"), \"\", Selection_Hide2!AA196)","v":""},{"$f":"IF(OR(Selection_Hide2!AB196=0, Selection_Hide2!AB196=\"\"), \"\", Selection_Hide2!AB196)","v":""}]
[{"$f":"IF(OR(Selection_Hide2!A197=0, Selection_Hide2!A197=\"\"), \"\", Selection_Hide2!A197)","v":""},{"$f":"IF(OR(Selection_Hide2!B197=0, Selection_Hide2!B197=\"\"), \"\", Selection_Hide2!B197)","v":""},{"$f":"IF(OR(Selection_Hide2!C197=0, Selection_Hide2!C197=\"\"), \"\", Selection_Hide2!C197)","v":""},{"$f":"IF(OR(Selection_Hide2!D197=0, Selection_Hide2!D197=\"\"), \"\", Selection_Hide2!D197)","v":""},{"$f":"IF(OR(Selection_Hide2!E197=0, Selection_Hide2!E197=\"\"), \"\", Selection_Hide2!E197)","v":""},{"$f":"IF(OR(Selection_Hide2!F197=0, Selection_Hide2!F197=\"\"), \"\", Selection_Hide2!F197)","v":""},{"$f":"IF(OR(Selection_Hide2!G197=0, Selection_Hide2!G197=\"\"), \"\", Selection_Hide2!G197)","v":""},{"$f":"IF(OR(Selection_Hide2!H197=0, Selection_Hide2!H197=\"\"), \"\", Selection_Hide2!H197)","v":""},{"$f":"IF(OR(Selection_Hide2!I197=0, Selection_Hide2!I197=\"\"), \"\", Selection_Hide2!I197)","v":""},{"$f":"IF(OR(Selection_Hide2!J197=0, Selection_Hide2!J197=\"\"), \"\", Selection_Hide2!J197)","v":""},{"$f":"IF(OR(Selection_Hide2!K197=0, Selection_Hide2!K197=\"\"), \"\", Selection_Hide2!K197)","v":""},{"$f":"IF(OR(Selection_Hide2!L197=0, Selection_Hide2!L197=\"\"), \"\", Selection_Hide2!L197)","v":""},{"$f":"IF(OR(Selection_Hide2!M197=0, Selection_Hide2!M197=\"\"), \"\", Selection_Hide2!M197)","v":""},{"$f":"IF(OR(Selection_Hide2!N197=0, Selection_Hide2!N197=\"\"), \"\", Selection_Hide2!N197)","v":""},{"$f":"IF(OR(Selection_Hide2!O197=0, Selection_Hide2!O197=\"\"), \"\", Selection_Hide2!O197)","v":""},{"$f":"IF(OR(Selection_Hide2!P197=0, Selection_Hide2!P197=\"\"), \"\", Selection_Hide2!P197)","v":""},{"$f":"IF(OR(Selection_Hide2!Q197=0, Selection_Hide2!Q197=\"\"), \"\", Selection_Hide2!Q197)","v":""},{"$f":"IF(OR(Selection_Hide2!R197=0, Selection_Hide2!R197=\"\"), \"\", Selection_Hide2!R197)","v":""},{"$f":"IF(OR(Selection_Hide2!S197=0, Selection_Hide2!S197=\"\"), \"\", Selection_Hide2!S197)","v":""},{"$f":"IF(OR(Selection_Hide2!T197=0, Selection_Hide2!T197=\"\"), \"\", Selection_Hide2!T197)","v":""},{"$f":"IF(OR(Selection_Hide2!U197=0, Selection_Hide2!U197=\"\"), \"\", Selection_Hide2!U197)","v":""},{"$f":"IF(OR(Selection_Hide2!V197=0, Selection_Hide2!V197=\"\"), \"\", Selection_Hide2!V197)","v":""},{"$f":"IF(OR(Selection_Hide2!W197=0, Selection_Hide2!W197=\"\"), \"\", Selection_Hide2!W197)","v":""},{"$f":"IF(OR(Selection_Hide2!X197=0, Selection_Hide2!X197=\"\"), \"\", Selection_Hide2!X197)","v":""},{"$f":"IF(OR(Selection_Hide2!Y197=0, Selection_Hide2!Y197=\"\"), \"\", Selection_Hide2!Y197)","v":""},{"$f":"IF(OR(Selection_Hide2!Z197=0, Selection_Hide2!Z197=\"\"), \"\", Selection_Hide2!Z197)","v":""},{"$f":"IF(OR(Selection_Hide2!AA197=0, Selection_Hide2!AA197=\"\"), \"\", Selection_Hide2!AA197)","v":""},{"$f":"IF(OR(Selection_Hide2!AB197=0, Selection_Hide2!AB197=\"\"), \"\", Selection_Hide2!AB197)","v":""}]
[{"$f":"IF(OR(Selection_Hide2!A198=0, Selection_Hide2!A198=\"\"), \"\", Selection_Hide2!A198)","v":""},{"$f":"IF(OR(Selection_Hide2!B198=0, Selection_Hide2!B198=\"\"), \"\", Selection_Hide2!B198)","v":""},{"$f":"IF(OR(Selection_Hide2!C198=0, Selection_Hide2!C198=\"\"), \"\", Selection_Hide2!C198)","v":""},{"$f":"IF(OR(Selection_Hide2!D198=0, Selection_Hide2!D198=\"\"), \"\", Selection_Hide2!D198)","v":""},{"$f":"IF(OR(Selection_Hide2!E198=0, Selection_Hide2!E198=\"\"), \"\", Selection_Hide2!E198)","v":""},{"$f":"IF(OR(Selection_Hide2!F198=0, Selection_Hide2!F198=\"\"), \"\", Selection_Hide2!F198)","v":""},{"$f":"IF(OR(Selection_Hide2!G198=0, Selection_Hide2!G198=\"\"), \"\", Selection_Hide2!G198)","v":""},{"$f":"IF(OR(Selection_Hide2!H198=0, Selection_Hide2!H198=\"\"), \"\", Selection_Hide2!H198)","v":""},{"$f":"IF(OR(Selection_Hide2!I198=0, Selection_Hide2!I198=\"\"), \"\", Selection_Hide2!I198)","v":""},{"$f":"IF(OR(Selection_Hide2!J198=0, Selection_Hide2!J198=\"\"), \"\", Selection_Hide2!J198)","v":""},{"$f":"IF(OR(Selection_Hide2!K198=0, Selection_Hide2!K198=\"\"), \"\", Selection_Hide2!K198)","v":""},{"$f":"IF(OR(Selection_Hide2!L198=0, Selection_Hide2!L198=\"\"), \"\", Selection_Hide2!L198)","v":""},{"$f":"IF(OR(Selection_Hide2!M198=0, Selection_Hide2!M198=\"\"), \"\", Selection_Hide2!M198)","v":""},{"$f":"IF(OR(Selection_Hide2!N198=0, Selection_Hide2!N198=\"\"), \"\", Selection_Hide2!N198)","v":""},{"$f":"IF(OR(Selection_Hide2!O198=0, Selection_Hide2!O198=\"\"), \"\", Selection_Hide2!O198)","v":""},{"$f":"IF(OR(Selection_Hide2!P198=0, Selection_Hide2!P198=\"\"), \"\", Selection_Hide2!P198)","v":""},{"$f":"IF(OR(Selection_Hide2!Q198=0, Selection_Hide2!Q198=\"\"), \"\", Selection_Hide2!Q198)","v":""},{"$f":"IF(OR(Selection_Hide2!R198=0, Selection_Hide2!R198=\"\"), \"\", Selection_Hide2!R198)","v":""},{"$f":"IF(OR(Selection_Hide2!S198=0, Selection_Hide2!S198=\"\"), \"\", Selection_Hide2!S198)","v":""},{"$f":"IF(OR(Selection_Hide2!T198=0, Selection_Hide2!T198=\"\"), \"\", Selection_Hide2!T198)","v":""},{"$f":"IF(OR(Selection_Hide2!U198=0, Selection_Hide2!U198=\"\"), \"\", Selection_Hide2!U198)","v":""},{"$f":"IF(OR(Selection_Hide2!V198=0, Selection_Hide2!V198=\"\"), \"\", Selection_Hide2!V198)","v":""},{"$f":"IF(OR(Selection_Hide2!W198=0, Selection_Hide2!W198=\"\"), \"\", Selection_Hide2!W198)","v":""},{"$f":"IF(OR(Selection_Hide2!X198=0, Selection_Hide2!X198=\"\"), \"\", Selection_Hide2!X198)","v":""},{"$f":"IF(OR(Selection_Hide2!Y198=0, Selection_Hide2!Y198=\"\"), \"\", Selection_Hide2!Y198)","v":""},{"$f":"IF(OR(Selection_Hide2!Z198=0, Selection_Hide2!Z198=\"\"), \"\", Selection_Hide2!Z198)","v":""},{"$f":"IF(OR(Selection_Hide2!AA198=0, Selection_Hide2!AA198=\"\"), \"\", Selection_Hide2!AA198)","v":""},{"$f":"IF(OR(Selection_Hide2!AB198=0, Selection_Hide2!AB198=\"\"), \"\", Selection_Hide2!AB198)","v":""}]
[{"$f":"IF(OR(Selection_Hide2!A199=0, Selection_Hide2!A199=\"\"), \"\", Selection_Hide2!A199)","v":""},{"$f":"IF(OR(Selection_Hide2!B199=0, Selection_Hide2!B199=\"\"), \"\", Selection_Hide2!B199)","v":""},{"$f":"IF(OR(Selection_Hide2!C199=0, Selection_Hide2!C199=\"\"), \"\", Selection_Hide2!C199)","v":""},{"$f":"IF(OR(Selection_Hide2!D199=0, Selection_Hide2!D199=\"\"), \"\", Selection_Hide2!D199)","v":""},{"$f":"IF(OR(Selection_Hide2!E199=0, Selection_Hide2!E199=\"\"), \"\", Selection_Hide2!E199)","v":""},{"$f":"IF(OR(Selection_Hide2!F199=0, Selection_Hide2!F199=\"\"), \"\", Selection_Hide2!F199)","v":""},{"$f":"IF(OR(Selection_Hide2!G199=0, Selection_Hide2!G199=\"\"), \"\", Selection_Hide2!G199)","v":""},{"$f":"IF(OR(Selection_Hide2!H199=0, Selection_Hide2!H199=\"\"), \"\", Selection_Hide2!H199)","v":""},{"$f":"IF(OR(Selection_Hide2!I199=0, Selection_Hide2!I199=\"\"), \"\", Selection_Hide2!I199)","v":""},{"$f":"IF(OR(Selection_Hide2!J199=0, Selection_Hide2!J199=\"\"), \"\", Selection_Hide2!J199)","v":""},{"$f":"IF(OR(Selection_Hide2!K199=0, Selection_Hide2!K199=\"\"), \"\", Selection_Hide2!K199)","v":""},{"$f":"IF(OR(Selection_Hide2!L199=0, Selection_Hide2!L199=\"\"), \"\", Selection_Hide2!L199)","v":""},{"$f":"IF(OR(Selection_Hide2!M199=0, Selection_Hide2!M199=\"\"), \"\", Selection_Hide2!M199)","v":""},{"$f":"IF(OR(Selection_Hide2!N199=0, Selection_Hide2!N199=\"\"), \"\", Selection_Hide2!N199)","v":""},{"$f":"IF(OR(Selection_Hide2!O199=0, Selection_Hide2!O199=\"\"), \"\", Selection_Hide2!O199)","v":""},{"$f":"IF(OR(Selection_Hide2!P199=0, Selection_Hide2!P199=\"\"), \"\", Selection_Hide2!P199)","v":""},{"$f":"IF(OR(Selection_Hide2!Q199=0, Selection_Hide2!Q199=\"\"), \"\", Selection_Hide2!Q199)","v":""},{"$f":"IF(OR(Selection_Hide2!R199=0, Selection_Hide2!R199=\"\"), \"\", Selection_Hide2!R199)","v":""},{"$f":"IF(OR(Selection_Hide2!S199=0, Selection_Hide2!S199=\"\"), \"\", Selection_Hide2!S199)","v":""},{"$f":"IF(OR(Selection_Hide2!T199=0, Selection_Hide2!T199=\"\"), \"\", Selection_Hide2!T199)","v":""},{"$f":"IF(OR(Selection_Hide2!U199=0, Selection_Hide2!U199=\"\"), \"\", Selection_Hide2!U199)","v":""},{"$f":"IF(OR(Selection_Hide2!V199=0, Selection_Hide2!V199=\"\"), \"\", Selection_Hide2!V199)","v":""},{"$f":"IF(OR(Selection_Hide2!W199=0, Selection_Hide2!W199=\"\"), \"\", Selection_Hide2!W199)","v":""},{"$f":"IF(OR(Selection_Hide2!X199=0, Selection_Hide2!X199=\"\"), \"\", Selection_Hide2!X199)","v":""},{"$f":"IF(OR(Selection_Hide2!Y199=0, Selection_Hide2!Y199=\"\"), \"\", Selection_Hide2!Y199)","v":""},{"$f":"IF(OR(Selection_Hide2!Z199=0, Selection_Hide2!Z199=\"\"), \"\", Selection_Hide2!Z199)","v":""},{"$f":"IF(OR(Selection_Hide2!AA199=0, Selection_Hide2!AA199=\"\"), \"\", Selection_Hide2!AA199)","v":""},{"$f":"IF(OR(Selection_Hide2!AB199=0, Selection_Hide2!AB199=\"\"), \"\", Selection_Hide2!AB199)","v":""}]
[{"$f":"IF(OR(Selection_Hide2!A200=0, Selection_Hide2!A200=\"\"), \"\", Selection_Hide2!A200)","v":""},{"$f":"IF(OR(Selection_Hide2!B200=0, Selection_Hide2!B200=\"\"), \"\", Selection_Hide2!B200)","v":""},{"$f":"IF(OR(Selection_Hide2!C200=0, Selection_Hide2!C200=\"\"), \"\", Selection_Hide2!C200)","v":""},{"$f":"IF(OR(Selection_Hide2!D200=0, Selection_Hide2!D200=\"\"), \"\", Selection_Hide2!D200)","v":""},{"$f":"IF(OR(Selection_Hide2!E200=0, Selection_Hide2!E200=\"\"), \"\", Selection_Hide2!E200)","v":""},{"$f":"IF(OR(Selection_Hide2!F200=0, Selection_Hide2!F200=\"\"), \"\", Selection_Hide2!F200)","v":""},{"$f":"IF(OR(Selection_Hide2!G200=0, Selection_Hide2!G200=\"\"), \"\", Selection_Hide2!G200)","v":""},{"$f":"IF(OR(Selection_Hide2!H200=0, Selection_Hide2!H200=\"\"), \"\", Selection_Hide2!H200)","v":""},{"$f":"IF(OR(Selection_Hide2!I200=0, Selection_Hide2!I200=\"\"), \"\", Selection_Hide2!I200)","v":""},{"$f":"IF(OR(Selection_Hide2!J200=0, Selection_Hide2!J200=\"\"), \"\", Selection_Hide2!J200)","v":""},{"$f":"IF(OR(Selection_Hide2!K200=0, Selection_Hide2!K200=\"\"), \"\", Selection_Hide2!K200)","v":""},{"$f":"IF(OR(Selection_Hide2!L200=0, Selection_Hide2!L200=\"\"), \"\", Selection_Hide2!L200)","v":""},{"$f":"IF(OR(Selection_Hide2!M200=0, Selection_Hide2!M200=\"\"), \"\", Selection_Hide2!M200)","v":""},{"$f":"IF(OR(Selection_Hide2!N200=0, Selection_Hide2!N200=\"\"), \"\", Selection_Hide2!N200)","v":""},{"$f":"IF(OR(Selection_Hide2!O200=0, Selection_Hide2!O200=\"\"), \"\", Selection_Hide2!O200)","v":""},{"$f":"IF(OR(Selection_Hide2!P200=0, Selection_Hide2!P200=\"\"), \"\", Selection_Hide2!P200)","v":""},{"$f":"IF(OR(Selection_Hide2!Q200=0, Selection_Hide2!Q200=\"\"), \"\", Selection_Hide2!Q200)","v":""},{"$f":"IF(OR(Selection_Hide2!R200=0, Selection_Hide2!R200=\"\"), \"\", Selection_Hide2!R200)","v":""},{"$f":"IF(OR(Selection_Hide2!S200=0, Selection_Hide2!S200=\"\"), \"\", Selection_Hide2!S200)","v":""},{"$f":"IF(OR(Selection_Hide2!T200=0, Selection_Hide2!T200=\"\"), \"\", Selection_Hide2!T200)","v":""},{"$f":"IF(OR(Selection_Hide2!U200=0, Selection_Hide2!U200=\"\"), \"\", Selection_Hide2!U200)","v":""},{"$f":"IF(OR(Selection_Hide2!V200=0, Selection_Hide2!V200=\"\"), \"\", Selection_Hide2!V200)","v":""},{"$f":"IF(OR(Selection_Hide2!W200=0, Selection_Hide2!W200=\"\"), \"\", Selection_Hide2!W200)","v":""},{"$f":"IF(OR(Selection_Hide2!X200=0, Selection_Hide2!X200=\"\"), \"\", Selection_Hide2!X200)","v":""},{"$f":"IF(OR(Selection_Hide2!Y200=0, Selection_Hide2!Y200=\"\"), \"\", Selection_Hide2!Y200)","v":""},{"$f":"IF(OR(Selection_Hide2!Z200=0, Selection_Hide2!Z200=\"\"), \"\", Selection_Hide2!Z200)","v":""},{"$f":"IF(OR(Selection_Hide2!AA200=0, Selection_Hide2!AA200=\"\"), \"\", Selection_Hide2!AA200)","v":""},{"$f":"IF(OR(Selection_Hide2!AB200=0, Selection_Hide2!AB200=\"\"), \"\", Selection_Hide2!AB200)","v":""}]
[{"$f":"IF(OR(Selection_Hide2!A201=0, Selection_Hide2!A201=\"\"), \"\", Selection_Hide2!A201)","v":""},{"$f":"IF(OR(Selection_Hide2!B201=0, Selection_Hide2!B201=\"\"), \"\", Selection_Hide2!B201)","v":""},{"$f":"IF(OR(Selection_Hide2!C201=0, Selection_Hide2!C201=\"\"), \"\", Selection_Hide2!C201)","v":""},{"$f":"IF(OR(Selection_Hide2!D201=0, Selection_Hide2!D201=\"\"), \"\", Selection_Hide2!D201)","v":""},{"$f":"IF(OR(Selection_Hide2!E201=0, Selection_Hide2!E201=\"\"), \"\", Selection_Hide2!E201)","v":""},{"$f":"IF(OR(Selection_Hide2!F201=0, Selection_Hide2!F201=\"\"), \"\", Selection_Hide2!F201)","v":""},{"$f":"IF(OR(Selection_Hide2!G201=0, Selection_Hide2!G201=\"\"), \"\", Selection_Hide2!G201)","v":""},{"$f":"IF(OR(Selection_Hide2!H201=0, Selection_Hide2!H201=\"\"), \"\", Selection_Hide2!H201)","v":""},{"$f":"IF(OR(Selection_Hide2!I201=0, Selection_Hide2!I201=\"\"), \"\", Selection_Hide2!I201)","v":""},{"$f":"IF(OR(Selection_Hide2!J201=0, Selection_Hide2!J201=\"\"), \"\", Selection_Hide2!J201)","v":""},{"$f":"IF(OR(Selection_Hide2!K201=0, Selection_Hide2!K201=\"\"), \"\", Selection_Hide2!K201)","v":""},{"$f":"IF(OR(Selection_Hide2!L201=0, Selection_Hide2!L201=\"\"), \"\", Selection_Hide2!L201)","v":""},{"$f":"IF(OR(Selection_Hide2!M201=0, Selection_Hide2!M201=\"\"), \"\", Selection_Hide2!M201)","v":""},{"$f":"IF(OR(Selection_Hide2!N201=0, Selection_Hide2!N201=\"\"), \"\", Selection_Hide2!N201)","v":""},{"$f":"IF(OR(Selection_Hide2!O201=0, Selection_Hide2!O201=\"\"), \"\", Selection_Hide2!O201)","v":""},{"$f":"IF(OR(Selection_Hide2!P201=0, Selection_Hide2!P201=\"\"), \"\", Selection_Hide2!P201)","v":""},{"$f":"IF(OR(Selection_Hide2!Q201=0, Selection_Hide2!Q201=\"\"), \"\", Selection_Hide2!Q201)","v":""},{"$f":"IF(OR(Selection_Hide2!R201=0, Selection_Hide2!R201=\"\"), \"\", Selection_Hide2!R201)","v":""},{"$f":"IF(OR(Selection_Hide2!S201=0, Selection_Hide2!S201=\"\"), \"\", Selection_Hide2!S201)","v":""},{"$f":"IF(OR(Selection_Hide2!T201=0, Selection_Hide2!T201=\"\"), \"\", Selection_Hide2!T201)","v":""},{"$f":"IF(OR(Selection_Hide2!U201=0, Selection_Hide2!U201=\"\"), \"\", Selection_Hide2!U201)","v":""},{"$f":"IF(OR(Selection_Hide2!V201=0, Selection_Hide2!V201=\"\"), \"\", Selection_Hide2!V201)","v":""},{"$f":"IF(OR(Selection_Hide2!W201=0, Selection_Hide2!W201=\"\"), \"\", Selection_Hide2!W201)","v":""},{"$f":"IF(OR(Selection_Hide2!X201=0, Selection_Hide2!X201=\"\"), \"\", Selection_Hide2!X201)","v":""},{"$f":"IF(OR(Selection_Hide2!Y201=0, Selection_Hide2!Y201=\"\"), \"\", Selection_Hide2!Y201)","v":""},{"$f":"IF(OR(Selection_Hide2!Z201=0, Selection_Hide2!Z201=\"\"), \"\", Selection_Hide2!Z201)","v":""},{"$f":"IF(OR(Selection_Hide2!AA201=0, Selection_Hide2!AA201=\"\"), \"\", Selection_Hide2!AA201)","v":""},{"$f":"IF(OR(Selection_Hide2!AB201=0, Selection_Hide2!AB201=\"\"), \"\", Selection_Hide2!AB201)","v":""}]
[{"$f":"IF(OR(Selection_Hide2!A202=0, Selection_Hide2!A202=\"\"), \"\", Selection_Hide2!A202)","v":""},{"$f":"IF(OR(Selection_Hide2!B202=0, Selection_Hide2!B202=\"\"), \"\", Selection_Hide2!B202)","v":""},{"$f":"IF(OR(Selection_Hide2!C202=0, Selection_Hide2!C202=\"\"), \"\", Selection_Hide2!C202)","v":""},{"$f":"IF(OR(Selection_Hide2!D202=0, Selection_Hide2!D202=\"\"), \"\", Selection_Hide2!D202)","v":""},{"$f":"IF(OR(Selection_Hide2!E202=0, Selection_Hide2!E202=\"\"), \"\", Selection_Hide2!E202)","v":""},{"$f":"IF(OR(Selection_Hide2!F202=0, Selection_Hide2!F202=\"\"), \"\", Selection_Hide2!F202)","v":""},{"$f":"IF(OR(Selection_Hide2!G202=0, Selection_Hide2!G202=\"\"), \"\", Selection_Hide2!G202)","v":""},{"$f":"IF(OR(Selection_Hide2!H202=0, Selection_Hide2!H202=\"\"), \"\", Selection_Hide2!H202)","v":""},{"$f":"IF(OR(Selection_Hide2!I202=0, Selection_Hide2!I202=\"\"), \"\", Selection_Hide2!I202)","v":""},{"$f":"IF(OR(Selection_Hide2!J202=0, Selection_Hide2!J202=\"\"), \"\", Selection_Hide2!J202)","v":""},{"$f":"IF(OR(Selection_Hide2!K202=0, Selection_Hide2!K202=\"\"), \"\", Selection_Hide2!K202)","v":""},{"$f":"IF(OR(Selection_Hide2!L202=0, Selection_Hide2!L202=\"\"), \"\", Selection_Hide2!L202)","v":""},{"$f":"IF(OR(Selection_Hide2!M202=0, Selection_Hide2!M202=\"\"), \"\", Selection_Hide2!M202)","v":""},{"$f":"IF(OR(Selection_Hide2!N202=0, Selection_Hide2!N202=\"\"), \"\", Selection_Hide2!N202)","v":""},{"$f":"IF(OR(Selection_Hide2!O202=0, Selection_Hide2!O202=\"\"), \"\", Selection_Hide2!O202)","v":""},{"$f":"IF(OR(Selection_Hide2!P202=0, Selection_Hide2!P202=\"\"), \"\", Selection_Hide2!P202)","v":""},{"$f":"IF(OR(Selection_Hide2!Q202=0, Selection_Hide2!Q202=\"\"), \"\", Selection_Hide2!Q202)","v":""},{"$f":"IF(OR(Selection_Hide2!R202=0, Selection_Hide2!R202=\"\"), \"\", Selection_Hide2!R202)","v":""},{"$f":"IF(OR(Selection_Hide2!S202=0, Selection_Hide2!S202=\"\"), \"\", Selection_Hide2!S202)","v":""},{"$f":"IF(OR(Selection_Hide2!T202=0, Selection_Hide2!T202=\"\"), \"\", Selection_Hide2!T202)","v":""},{"$f":"IF(OR(Selection_Hide2!U202=0, Selection_Hide2!U202=\"\"), \"\", Selection_Hide2!U202)","v":""},{"$f":"IF(OR(Selection_Hide2!V202=0, Selection_Hide2!V202=\"\"), \"\", Selection_Hide2!V202)","v":""},{"$f":"IF(OR(Selection_Hide2!W202=0, Selection_Hide2!W202=\"\"), \"\", Selection_Hide2!W202)","v":""},{"$f":"IF(OR(Selection_Hide2!X202=0, Selection_Hide2!X202=\"\"), \"\", Selection_Hide2!X202)","v":""},{"$f":"IF(OR(Selection_Hide2!Y202=0, Selection_Hide2!Y202=\"\"), \"\", Selection_Hide2!Y202)","v":""},{"$f":"IF(OR(Selection_Hide2!Z202=0, Selection_Hide2!Z202=\"\"), \"\", Selection_Hide2!Z202)","v":""},{"$f":"IF(OR(Selection_Hide2!AA202=0, Selection_Hide2!AA202=\"\"), \"\", Selection_Hide2!AA202)","v":""},{"$f":"IF(OR(Selection_Hide2!AB202=0, Selection_Hide2!AB202=\"\"), \"\", Selection_Hide2!AB202)","v":""}]
[{"$f":"IF(OR(Selection_Hide2!A203=0, Selection_Hide2!A203=\"\"), \"\", Selection_Hide2!A203)","v":""},{"$f":"IF(OR(Selection_Hide2!B203=0, Selection_Hide2!B203=\"\"), \"\", Selection_Hide2!B203)","v":""},{"$f":"IF(OR(Selection_Hide2!C203=0, Selection_Hide2!C203=\"\"), \"\", Selection_Hide2!C203)","v":""},{"$f":"IF(OR(Selection_Hide2!D203=0, Selection_Hide2!D203=\"\"), \"\", Selection_Hide2!D203)","v":""},{"$f":"IF(OR(Selection_Hide2!E203=0, Selection_Hide2!E203=\"\"), \"\", Selection_Hide2!E203)","v":""},{"$f":"IF(OR(Selection_Hide2!F203=0, Selection_Hide2!F203=\"\"), \"\", Selection_Hide2!F203)","v":""},{"$f":"IF(OR(Selection_Hide2!G203=0, Selection_Hide2!G203=\"\"), \"\", Selection_Hide2!G203)","v":""},{"$f":"IF(OR(Selection_Hide2!H203=0, Selection_Hide2!H203=\"\"), \"\", Selection_Hide2!H203)","v":""},{"$f":"IF(OR(Selection_Hide2!I203=0, Selection_Hide2!I203=\"\"), \"\", Selection_Hide2!I203)","v":""},{"$f":"IF(OR(Selection_Hide2!J203=0, Selection_Hide2!J203=\"\"), \"\", Selection_Hide2!J203)","v":""},{"$f":"IF(OR(Selection_Hide2!K203=0, Selection_Hide2!K203=\"\"), \"\", Selection_Hide2!K203)","v":""},{"$f":"IF(OR(Selection_Hide2!L203=0, Selection_Hide2!L203=\"\"), \"\", Selection_Hide2!L203)","v":""},{"$f":"IF(OR(Selection_Hide2!M203=0, Selection_Hide2!M203=\"\"), \"\", Selection_Hide2!M203)","v":""},{"$f":"IF(OR(Selection_Hide2!N203=0, Selection_Hide2!N203=\"\"), \"\", Selection_Hide2!N203)","v":""},{"$f":"IF(OR(Selection_Hide2!O203=0, Selection_Hide2!O203=\"\"), \"\", Selection_Hide2!O203)","v":""},{"$f":"IF(OR(Selection_Hide2!P203=0, Selection_Hide2!P203=\"\"), \"\", Selection_Hide2!P203)","v":""},{"$f":"IF(OR(Selection_Hide2!Q203=0, Selection_Hide2!Q203=\"\"), \"\", Selection_Hide2!Q203)","v":""},{"$f":"IF(OR(Selection_Hide2!R203=0, Selection_Hide2!R203=\"\"), \"\", Selection_Hide2!R203)","v":""},{"$f":"IF(OR(Selection_Hide2!S203=0, Selection_Hide2!S203=\"\"), \"\", Selection_Hide2!S203)","v":""},{"$f":"IF(OR(Selection_Hide2!T203=0, Selection_Hide2!T203=\"\"), \"\", Selection_Hide2!T203)","v":""},{"$f":"IF(OR(Selection_Hide2!U203=0, Selection_Hide2!U203=\"\"), \"\", Selection_Hide2!U203)","v":""},{"$f":"IF(OR(Selection_Hide2!V203=0, Selection_Hide2!V203=\"\"), \"\", Selection_Hide2!V203)","v":""},{"$f":"IF(OR(Selection_Hide2!W203=0, Selection_Hide2!W203=\"\"), \"\", Selection_Hide2!W203)","v":""},{"$f":"IF(OR(Selection_Hide2!X203=0, Selection_Hide2!X203=\"\"), \"\", Selection_Hide2!X203)","v":""},{"$f":"IF(OR(Selection_Hide2!Y203=0, Selection_Hide2!Y203=\"\"), \"\", Selection_Hide2!Y203)","v":""},{"$f":"IF(OR(Selection_Hide2!Z203=0, Selection_Hide2!Z203=\"\"), \"\", Selection_Hide2!Z203)","v":""},{"$f":"IF(OR(Selection_Hide2!AA203=0, Selection_Hide2!AA203=\"\"), \"\", Selection_Hide2!AA203)","v":""},{"$f":"IF(OR(Selection_Hide2!AB203=0, Selection_Hide2!AB203=\"\"), \"\", Selection_Hide2!AB203)","v":""}]
[{"$f":"IF(OR(Selection_Hide2!A204=0, Selection_Hide2!A204=\"\"), \"\", Selection_Hide2!A204)","v":""},{"$f":"IF(OR(Selection_Hide2!B204=0, Selection_Hide2!B204=\"\"), \"\", Selection_Hide2!B204)","v":""},{"$f":"IF(OR(Selection_Hide2!C204=0, Selection_Hide2!C204=\"\"), \"\", Selection_Hide2!C204)","v":""},{"$f":"IF(OR(Selection_Hide2!D204=0, Selection_Hide2!D204=\"\"), \"\", Selection_Hide2!D204)","v":""},{"$f":"IF(OR(Selection_Hide2!E204=0, Selection_Hide2!E204=\"\"), \"\", Selection_Hide2!E204)","v":""},{"$f":"IF(OR(Selection_Hide2!F204=0, Selection_Hide2!F204=\"\"), \"\", Selection_Hide2!F204)","v":""},{"$f":"IF(OR(Selection_Hide2!G204=0, Selection_Hide2!G204=\"\"), \"\", Selection_Hide2!G204)","v":""},{"$f":"IF(OR(Selection_Hide2!H204=0, Selection_Hide2!H204=\"\"), \"\", Selection_Hide2!H204)","v":""},{"$f":"IF(OR(Selection_Hide2!I204=0, Selection_Hide2!I204=\"\"), \"\", Selection_Hide2!I204)","v":""},{"$f":"IF(OR(Selection_Hide2!J204=0, Selection_Hide2!J204=\"\"), \"\", Selection_Hide2!J204)","v":""},{"$f":"IF(OR(Selection_Hide2!K204=0, Selection_Hide2!K204=\"\"), \"\", Selection_Hide2!K204)","v":""},{"$f":"IF(OR(Selection_Hide2!L204=0, Selection_Hide2!L204=\"\"), \"\", Selection_Hide2!L204)","v":""},{"$f":"IF(OR(Selection_Hide2!M204=0, Selection_Hide2!M204=\"\"), \"\", Selection_Hide2!M204)","v":""},{"$f":"IF(OR(Selection_Hide2!N204=0, Selection_Hide2!N204=\"\"), \"\", Selection_Hide2!N204)","v":""},{"$f":"IF(OR(Selection_Hide2!O204=0, Selection_Hide2!O204=\"\"), \"\", Selection_Hide2!O204)","v":""},{"$f":"IF(OR(Selection_Hide2!P204=0, Selection_Hide2!P204=\"\"), \"\", Selection_Hide2!P204)","v":""},{"$f":"IF(OR(Selection_Hide2!Q204=0, Selection_Hide2!Q204=\"\"), \"\", Selection_Hide2!Q204)","v":""},{"$f":"IF(OR(Selection_Hide2!R204=0, Selection_Hide2!R204=\"\"), \"\", Selection_Hide2!R204)","v":""},{"$f":"IF(OR(Selection_Hide2!S204=0, Selection_Hide2!S204=\"\"), \"\", Selection_Hide2!S204)","v":""},{"$f":"IF(OR(Selection_Hide2!T204=0, Selection_Hide2!T204=\"\"), \"\", Selection_Hide2!T204)","v":""},{"$f":"IF(OR(Selection_Hide2!U204=0, Selection_Hide2!U204=\"\"), \"\", Selection_Hide2!U204)","v":""},{"$f":"IF(OR(Selection_Hide2!V204=0, Selection_Hide2!V204=\"\"), \"\", Selection_Hide2!V204)","v":""},{"$f":"IF(OR(Selection_Hide2!W204=0, Selection_Hide2!W204=\"\"), \"\", Selection_Hide2!W204)","v":""},{"$f":"IF(OR(Selection_Hide2!X204=0, Selection_Hide2!X204=\"\"), \"\", Selection_Hide2!X204)","v":""},{"$f":"IF(OR(Selection_Hide2!Y204=0, Selection_Hide2!Y204=\"\"), \"\", Selection_Hide2!Y204)","v":""},{"$f":"IF(OR(Selection_Hide2!Z204=0, Selection_Hide2!Z204=\"\"), \"\", Selection_Hide2!Z204)","v":""},{"$f":"IF(OR(Selection_Hide2!AA204=0, Selection_Hide2!AA204=\"\"), \"\", Selection_Hide2!AA204)","v":""},{"$f":"IF(OR(Selection_Hide2!AB204=0, Selection_Hide2!AB204=\"\"), \"\", Selection_Hide2!AB204)","v":""}]
[{"$f":"IF(OR(Selection_Hide2!A205=0, Selection_Hide2!A205=\"\"), \"\", Selection_Hide2!A205)","v":""},{"$f":"IF(OR(Selection_Hide2!B205=0, Selection_Hide2!B205=\"\"), \"\", Selection_Hide2!B205)","v":""},{"$f":"IF(OR(Selection_Hide2!C205=0, Selection_Hide2!C205=\"\"), \"\", Selection_Hide2!C205)","v":""},{"$f":"IF(OR(Selection_Hide2!D205=0, Selection_Hide2!D205=\"\"), \"\", Selection_Hide2!D205)","v":""},{"$f":"IF(OR(Selection_Hide2!E205=0, Selection_Hide2!E205=\"\"), \"\", Selection_Hide2!E205)","v":""},{"$f":"IF(OR(Selection_Hide2!F205=0, Selection_Hide2!F205=\"\"), \"\", Selection_Hide2!F205)","v":""},{"$f":"IF(OR(Selection_Hide2!G205=0, Selection_Hide2!G205=\"\"), \"\", Selection_Hide2!G205)","v":""},{"$f":"IF(OR(Selection_Hide2!H205=0, Selection_Hide2!H205=\"\"), \"\", Selection_Hide2!H205)","v":""},{"$f":"IF(OR(Selection_Hide2!I205=0, Selection_Hide2!I205=\"\"), \"\", Selection_Hide2!I205)","v":""},{"$f":"IF(OR(Selection_Hide2!J205=0, Selection_Hide2!J205=\"\"), \"\", Selection_Hide2!J205)","v":""},{"$f":"IF(OR(Selection_Hide2!K205=0, Selection_Hide2!K205=\"\"), \"\", Selection_Hide2!K205)","v":""},{"$f":"IF(OR(Selection_Hide2!L205=0, Selection_Hide2!L205=\"\"), \"\", Selection_Hide2!L205)","v":""},{"$f":"IF(OR(Selection_Hide2!M205=0, Selection_Hide2!M205=\"\"), \"\", Selection_Hide2!M205)","v":""},{"$f":"IF(OR(Selection_Hide2!N205=0, Selection_Hide2!N205=\"\"), \"\", Selection_Hide2!N205)","v":""},{"$f":"IF(OR(Selection_Hide2!O205=0, Selection_Hide2!O205=\"\"), \"\", Selection_Hide2!O205)","v":""},{"$f":"IF(OR(Selection_Hide2!P205=0, Selection_Hide2!P205=\"\"), \"\", Selection_Hide2!P205)","v":""},{"$f":"IF(OR(Selection_Hide2!Q205=0, Selection_Hide2!Q205=\"\"), \"\", Selection_Hide2!Q205)","v":""},{"$f":"IF(OR(Selection_Hide2!R205=0, Selection_Hide2!R205=\"\"), \"\", Selection_Hide2!R205)","v":""},{"$f":"IF(OR(Selection_Hide2!S205=0, Selection_Hide2!S205=\"\"), \"\", Selection_Hide2!S205)","v":""},{"$f":"IF(OR(Selection_Hide2!T205=0, Selection_Hide2!T205=\"\"), \"\", Selection_Hide2!T205)","v":""},{"$f":"IF(OR(Selection_Hide2!U205=0, Selection_Hide2!U205=\"\"), \"\", Selection_Hide2!U205)","v":""},{"$f":"IF(OR(Selection_Hide2!V205=0, Selection_Hide2!V205=\"\"), \"\", Selection_Hide2!V205)","v":""},{"$f":"IF(OR(Selection_Hide2!W205=0, Selection_Hide2!W205=\"\"), \"\", Selection_Hide2!W205)","v":""},{"$f":"IF(OR(Selection_Hide2!X205=0, Selection_Hide2!X205=\"\"), \"\", Selection_Hide2!X205)","v":""},{"$f":"IF(OR(Selection_Hide2!Y205=0, Selection_Hide2!Y205=\"\"), \"\", Selection_Hide2!Y205)","v":""},{"$f":"IF(OR(Selection_Hide2!Z205=0, Selection_Hide2!Z205=\"\"), \"\", Selection_Hide2!Z205)","v":""},{"$f":"IF(OR(Selection_Hide2!AA205=0, Selection_Hide2!AA205=\"\"), \"\", Selection_Hide2!AA205)","v":""},{"$f":"IF(OR(Selection_Hide2!AB205=0, Selection_Hide2!AB205=\"\"), \"\", Selection_Hide2!AB205)","v":""}]
[{"$f":"IF(OR(Selection_Hide2!A206=0, Selection_Hide2!A206=\"\"), \"\", Selection_Hide2!A206)","v":""},{"$f":"IF(OR(Selection_Hide2!B206=0, Selection_Hide2!B206=\"\"), \"\", Selection_Hide2!B206)","v":""},{"$f":"IF(OR(Selection_Hide2!C206=0, Selection_Hide2!C206=\"\"), \"\", Selection_Hide2!C206)","v":""},{"$f":"IF(OR(Selection_Hide2!D206=0, Selection_Hide2!D206=\"\"), \"\", Selection_Hide2!D206)","v":""},{"$f":"IF(OR(Selection_Hide2!E206=0, Selection_Hide2!E206=\"\"), \"\", Selection_Hide2!E206)","v":""},{"$f":"IF(OR(Selection_Hide2!F206=0, Selection_Hide2!F206=\"\"), \"\", Selection_Hide2!F206)","v":""},{"$f":"IF(OR(Selection_Hide2!G206=0, Selection_Hide2!G206=\"\"), \"\", Selection_Hide2!G206)","v":""},{"$f":"IF(OR(Selection_Hide2!H206=0, Selection_Hide2!H206=\"\"), \"\", Selection_Hide2!H206)","v":""},{"$f":"IF(OR(Selection_Hide2!I206=0, Selection_Hide2!I206=\"\"), \"\", Selection_Hide2!I206)","v":""},{"$f":"IF(OR(Selection_Hide2!J206=0, Selection_Hide2!J206=\"\"), \"\", Selection_Hide2!J206)","v":""},{"$f":"IF(OR(Selection_Hide2!K206=0, Selection_Hide2!K206=\"\"), \"\", Selection_Hide2!K206)","v":""},{"$f":"IF(OR(Selection_Hide2!L206=0, Selection_Hide2!L206=\"\"), \"\", Selection_Hide2!L206)","v":""},{"$f":"IF(OR(Selection_Hide2!M206=0, Selection_Hide2!M206=\"\"), \"\", Selection_Hide2!M206)","v":""},{"$f":"IF(OR(Selection_Hide2!N206=0, Selection_Hide2!N206=\"\"), \"\", Selection_Hide2!N206)","v":""},{"$f":"IF(OR(Selection_Hide2!O206=0, Selection_Hide2!O206=\"\"), \"\", Selection_Hide2!O206)","v":""},{"$f":"IF(OR(Selection_Hide2!P206=0, Selection_Hide2!P206=\"\"), \"\", Selection_Hide2!P206)","v":""},{"$f":"IF(OR(Selection_Hide2!Q206=0, Selection_Hide2!Q206=\"\"), \"\", Selection_Hide2!Q206)","v":""},{"$f":"IF(OR(Selection_Hide2!R206=0, Selection_Hide2!R206=\"\"), \"\", Selection_Hide2!R206)","v":""},{"$f":"IF(OR(Selection_Hide2!S206=0, Selection_Hide2!S206=\"\"), \"\", Selection_Hide2!S206)","v":""},{"$f":"IF(OR(Selection_Hide2!T206=0, Selection_Hide2!T206=\"\"), \"\", Selection_Hide2!T206)","v":""},{"$f":"IF(OR(Selection_Hide2!U206=0, Selection_Hide2!U206=\"\"), \"\", Selection_Hide2!U206)","v":""},{"$f":"IF(OR(Selection_Hide2!V206=0, Selection_Hide2!V206=\"\"), \"\", Selection_Hide2!V206)","v":""},{"$f":"IF(OR(Selection_Hide2!W206=0, Selection_Hide2!W206=\"\"), \"\", Selection_Hide2!W206)","v":""},{"$f":"IF(OR(Selection_Hide2!X206=0, Selection_Hide2!X206=\"\"), \"\", Selection_Hide2!X206)","v":""},{"$f":"IF(OR(Selection_Hide2!Y206=0, Selection_Hide2!Y206=\"\"), \"\", Selection_Hide2!Y206)","v":""},{"$f":"IF(OR(Selection_Hide2!Z206=0, Selection_Hide2!Z206=\"\"), \"\", Selection_Hide2!Z206)","v":""},{"$f":"IF(OR(Selection_Hide2!AA206=0, Selection_Hide2!AA206=\"\"), \"\", Selection_Hide2!AA206)","v":""},{"$f":"IF(OR(Selection_Hide2!AB206=0, Selection_Hide2!AB206=\"\"), \"\", Selection_Hide2!AB206)","v":""}]
[{"$f":"IF(OR(Selection_Hide2!A207=0, Selection_Hide2!A207=\"\"), \"\", Selection_Hide2!A207)","v":""},{"$f":"IF(OR(Selection_Hide2!B207=0, Selection_Hide2!B207=\"\"), \"\", Selection_Hide2!B207)","v":""},{"$f":"IF(OR(Selection_Hide2!C207=0, Selection_Hide2!C207=\"\"), \"\", Selection_Hide2!C207)","v":""},{"$f":"IF(OR(Selection_Hide2!D207=0, Selection_Hide2!D207=\"\"), \"\", Selection_Hide2!D207)","v":""},{"$f":"IF(OR(Selection_Hide2!E207=0, Selection_Hide2!E207=\"\"), \"\", Selection_Hide2!E207)","v":""},{"$f":"IF(OR(Selection_Hide2!F207=0, Selection_Hide2!F207=\"\"), \"\", Selection_Hide2!F207)","v":""},{"$f":"IF(OR(Selection_Hide2!G207=0, Selection_Hide2!G207=\"\"), \"\", Selection_Hide2!G207)","v":""},{"$f":"IF(OR(Selection_Hide2!H207=0, Selection_Hide2!H207=\"\"), \"\", Selection_Hide2!H207)","v":""},{"$f":"IF(OR(Selection_Hide2!I207=0, Selection_Hide2!I207=\"\"), \"\", Selection_Hide2!I207)","v":""},{"$f":"IF(OR(Selection_Hide2!J207=0, Selection_Hide2!J207=\"\"), \"\", Selection_Hide2!J207)","v":""},{"$f":"IF(OR(Selection_Hide2!K207=0, Selection_Hide2!K207=\"\"), \"\", Selection_Hide2!K207)","v":""},{"$f":"IF(OR(Selection_Hide2!L207=0, Selection_Hide2!L207=\"\"), \"\", Selection_Hide2!L207)","v":""},{"$f":"IF(OR(Selection_Hide2!M207=0, Selection_Hide2!M207=\"\"), \"\", Selection_Hide2!M207)","v":""},{"$f":"IF(OR(Selection_Hide2!N207=0, Selection_Hide2!N207=\"\"), \"\", Selection_Hide2!N207)","v":""},{"$f":"IF(OR(Selection_Hide2!O207=0, Selection_Hide2!O207=\"\"), \"\", Selection_Hide2!O207)","v":""},{"$f":"IF(OR(Selection_Hide2!P207=0, Selection_Hide2!P207=\"\"), \"\", Selection_Hide2!P207)","v":""},{"$f":"IF(OR(Selection_Hide2!Q207=0, Selection_Hide2!Q207=\"\"), \"\", Selection_Hide2!Q207)","v":""},{"$f":"IF(OR(Selection_Hide2!R207=0, Selection_Hide2!R207=\"\"), \"\", Selection_Hide2!R207)","v":""},{"$f":"IF(OR(Selection_Hide2!S207=0, Selection_Hide2!S207=\"\"), \"\", Selection_Hide2!S207)","v":""},{"$f":"IF(OR(Selection_Hide2!T207=0, Selection_Hide2!T207=\"\"), \"\", Selection_Hide2!T207)","v":""},{"$f":"IF(OR(Selection_Hide2!U207=0, Selection_Hide2!U207=\"\"), \"\", Selection_Hide2!U207)","v":""},{"$f":"IF(OR(Selection_Hide2!V207=0, Selection_Hide2!V207=\"\"), \"\", Selection_Hide2!V207)","v":""},{"$f":"IF(OR(Selection_Hide2!W207=0, Selection_Hide2!W207=\"\"), \"\", Selection_Hide2!W207)","v":""},{"$f":"IF(OR(Selection_Hide2!X207=0, Selection_Hide2!X207=\"\"), \"\", Selection_Hide2!X207)","v":""},{"$f":"IF(OR(Selection_Hide2!Y207=0, Selection_Hide2!Y207=\"\"), \"\", Selection_Hide2!Y207)","v":""},{"$f":"IF(OR(Selection_Hide2!Z207=0, Selection_Hide2!Z207=\"\"), \"\", Selection_Hide2!Z207)","v":""},{"$f":"IF(OR(Selection_Hide2!AA207=0, Selection_Hide2!AA207=\"\"), \"\", Selection_Hide2!AA207)","v":""},{"$f":"IF(OR(Selection_Hide2!AB207=0, Selection_Hide2!AB207=\"\"), \"\", Selection_Hide2!AB207)","v":""}]
[{"$f":"IF(OR(Selection_Hide2!A208=0, Selection_Hide2!A208=\"\"), \"\", Selection_Hide2!A208)","v":""},{"$f":"IF(OR(Selection_Hide2!B208=0, Selection_Hide2!B208=\"\"), \"\", Selection_Hide2!B208)","v":""},{"$f":"IF(OR(Selection_Hide2!C208=0, Selection_Hide2!C208=\"\"), \"\", Selection_Hide2!C208)","v":""},{"$f":"IF(OR(Selection_Hide2!D208=0, Selection_Hide2!D208=\"\"), \"\", Selection_Hide2!D208)","v":""},{"$f":"IF(OR(Selection_Hide2!E208=0, Selection_Hide2!E208=\"\"), \"\", Selection_Hide2!E208)","v":""},{"$f":"IF(OR(Selection_Hide2!F208=0, Selection_Hide2!F208=\"\"), \"\", Selection_Hide2!F208)","v":""},{"$f":"IF(OR(Selection_Hide2!G208=0, Selection_Hide2!G208=\"\"), \"\", Selection_Hide2!G208)","v":""},{"$f":"IF(OR(Selection_Hide2!H208=0, Selection_Hide2!H208=\"\"), \"\", Selection_Hide2!H208)","v":""},{"$f":"IF(OR(Selection_Hide2!I208=0, Selection_Hide2!I208=\"\"), \"\", Selection_Hide2!I208)","v":""},{"$f":"IF(OR(Selection_Hide2!J208=0, Selection_Hide2!J208=\"\"), \"\", Selection_Hide2!J208)","v":""},{"$f":"IF(OR(Selection_Hide2!K208=0, Selection_Hide2!K208=\"\"), \"\", Selection_Hide2!K208)","v":""},{"$f":"IF(OR(Selection_Hide2!L208=0, Selection_Hide2!L208=\"\"), \"\", Selection_Hide2!L208)","v":""},{"$f":"IF(OR(Selection_Hide2!M208=0, Selection_Hide2!M208=\"\"), \"\", Selection_Hide2!M208)","v":""},{"$f":"IF(OR(Selection_Hide2!N208=0, Selection_Hide2!N208=\"\"), \"\", Selection_Hide2!N208)","v":""},{"$f":"IF(OR(Selection_Hide2!O208=0, Selection_Hide2!O208=\"\"), \"\", Selection_Hide2!O208)","v":""},{"$f":"IF(OR(Selection_Hide2!P208=0, Selection_Hide2!P208=\"\"), \"\", Selection_Hide2!P208)","v":""},{"$f":"IF(OR(Selection_Hide2!Q208=0, Selection_Hide2!Q208=\"\"), \"\", Selection_Hide2!Q208)","v":""},{"$f":"IF(OR(Selection_Hide2!R208=0, Selection_Hide2!R208=\"\"), \"\", Selection_Hide2!R208)","v":""},{"$f":"IF(OR(Selection_Hide2!S208=0, Selection_Hide2!S208=\"\"), \"\", Selection_Hide2!S208)","v":""},{"$f":"IF(OR(Selection_Hide2!T208=0, Selection_Hide2!T208=\"\"), \"\", Selection_Hide2!T208)","v":""},{"$f":"IF(OR(Selection_Hide2!U208=0, Selection_Hide2!U208=\"\"), \"\", Selection_Hide2!U208)","v":""},{"$f":"IF(OR(Selection_Hide2!V208=0, Selection_Hide2!V208=\"\"), \"\", Selection_Hide2!V208)","v":""},{"$f":"IF(OR(Selection_Hide2!W208=0, Selection_Hide2!W208=\"\"), \"\", Selection_Hide2!W208)","v":""},{"$f":"IF(OR(Selection_Hide2!X208=0, Selection_Hide2!X208=\"\"), \"\", Selection_Hide2!X208)","v":""},{"$f":"IF(OR(Selection_Hide2!Y208=0, Selection_Hide2!Y208=\"\"), \"\", Selection_Hide2!Y208)","v":""},{"$f":"IF(OR(Selection_Hide2!Z208=0, Selection_Hide2!Z208=\"\"), \"\", Selection_Hide2!Z208)","v":""},{"$f":"IF(OR(Selection_Hide2!AA208=0, Selection_Hide2!AA208=\"\"), \"\", Selection_Hide2!AA208)","v":""},{"$f":"IF(OR(Selection_Hide2!AB208=0, Selection_Hide2!AB208=\"\"), \"\", Selection_Hide2!AB208)","v":""}]
[{"$f":"IF(OR(Selection_Hide2!A209=0, Selection_Hide2!A209=\"\"), \"\", Selection_Hide2!A209)","v":""},{"$f":"IF(OR(Selection_Hide2!B209=0, Selection_Hide2!B209=\"\"), \"\", Selection_Hide2!B209)","v":""},{"$f":"IF(OR(Selection_Hide2!C209=0, Selection_Hide2!C209=\"\"), \"\", Selection_Hide2!C209)","v":""},{"$f":"IF(OR(Selection_Hide2!D209=0, Selection_Hide2!D209=\"\"), \"\", Selection_Hide2!D209)","v":""},{"$f":"IF(OR(Selection_Hide2!E209=0, Selection_Hide2!E209=\"\"), \"\", Selection_Hide2!E209)","v":""},{"$f":"IF(OR(Selection_Hide2!F209=0, Selection_Hide2!F209=\"\"), \"\", Selection_Hide2!F209)","v":""},{"$f":"IF(OR(Selection_Hide2!G209=0, Selection_Hide2!G209=\"\"), \"\", Selection_Hide2!G209)","v":""},{"$f":"IF(OR(Selection_Hide2!H209=0, Selection_Hide2!H209=\"\"), \"\", Selection_Hide2!H209)","v":""},{"$f":"IF(OR(Selection_Hide2!I209=0, Selection_Hide2!I209=\"\"), \"\", Selection_Hide2!I209)","v":""},{"$f":"IF(OR(Selection_Hide2!J209=0, Selection_Hide2!J209=\"\"), \"\", Selection_Hide2!J209)","v":""},{"$f":"IF(OR(Selection_Hide2!K209=0, Selection_Hide2!K209=\"\"), \"\", Selection_Hide2!K209)","v":""},{"$f":"IF(OR(Selection_Hide2!L209=0, Selection_Hide2!L209=\"\"), \"\", Selection_Hide2!L209)","v":""},{"$f":"IF(OR(Selection_Hide2!M209=0, Selection_Hide2!M209=\"\"), \"\", Selection_Hide2!M209)","v":""},{"$f":"IF(OR(Selection_Hide2!N209=0, Selection_Hide2!N209=\"\"), \"\", Selection_Hide2!N209)","v":""},{"$f":"IF(OR(Selection_Hide2!O209=0, Selection_Hide2!O209=\"\"), \"\", Selection_Hide2!O209)","v":""},{"$f":"IF(OR(Selection_Hide2!P209=0, Selection_Hide2!P209=\"\"), \"\", Selection_Hide2!P209)","v":""},{"$f":"IF(OR(Selection_Hide2!Q209=0, Selection_Hide2!Q209=\"\"), \"\", Selection_Hide2!Q209)","v":""},{"$f":"IF(OR(Selection_Hide2!R209=0, Selection_Hide2!R209=\"\"), \"\", Selection_Hide2!R209)","v":""},{"$f":"IF(OR(Selection_Hide2!S209=0, Selection_Hide2!S209=\"\"), \"\", Selection_Hide2!S209)","v":""},{"$f":"IF(OR(Selection_Hide2!T209=0, Selection_Hide2!T209=\"\"), \"\", Selection_Hide2!T209)","v":""},{"$f":"IF(OR(Selection_Hide2!U209=0, Selection_Hide2!U209=\"\"), \"\", Selection_Hide2!U209)","v":""},{"$f":"IF(OR(Selection_Hide2!V209=0, Selection_Hide2!V209=\"\"), \"\", Selection_Hide2!V209)","v":""},{"$f":"IF(OR(Selection_Hide2!W209=0, Selection_Hide2!W209=\"\"), \"\", Selection_Hide2!W209)","v":""},{"$f":"IF(OR(Selection_Hide2!X209=0, Selection_Hide2!X209=\"\"), \"\", Selection_Hide2!X209)","v":""},{"$f":"IF(OR(Selection_Hide2!Y209=0, Selection_Hide2!Y209=\"\"), \"\", Selection_Hide2!Y209)","v":""},{"$f":"IF(OR(Selection_Hide2!Z209=0, Selection_Hide2!Z209=\"\"), \"\", Selection_Hide2!Z209)","v":""},{"$f":"IF(OR(Selection_Hide2!AA209=0, Selection_Hide2!AA209=\"\"), \"\", Selection_Hide2!AA209)","v":""},{"$f":"IF(OR(Selection_Hide2!AB209=0, Selection_Hide2!AB209=\"\"), \"\", Selection_Hide2!AB209)","v":""}]
[{"$f":"IF(OR(Selection_Hide2!A210=0, Selection_Hide2!A210=\"\"), \"\", Selection_Hide2!A210)","v":""},{"$f":"IF(OR(Selection_Hide2!B210=0, Selection_Hide2!B210=\"\"), \"\", Selection_Hide2!B210)","v":""},{"$f":"IF(OR(Selection_Hide2!C210=0, Selection_Hide2!C210=\"\"), \"\", Selection_Hide2!C210)","v":""},{"$f":"IF(OR(Selection_Hide2!D210=0, Selection_Hide2!D210=\"\"), \"\", Selection_Hide2!D210)","v":""},{"$f":"IF(OR(Selection_Hide2!E210=0, Selection_Hide2!E210=\"\"), \"\", Selection_Hide2!E210)","v":""},{"$f":"IF(OR(Selection_Hide2!F210=0, Selection_Hide2!F210=\"\"), \"\", Selection_Hide2!F210)","v":""},{"$f":"IF(OR(Selection_Hide2!G210=0, Selection_Hide2!G210=\"\"), \"\", Selection_Hide2!G210)","v":""},{"$f":"IF(OR(Selection_Hide2!H210=0, Selection_Hide2!H210=\"\"), \"\", Selection_Hide2!H210)","v":""},{"$f":"IF(OR(Selection_Hide2!I210=0, Selection_Hide2!I210=\"\"), \"\", Selection_Hide2!I210)","v":""},{"$f":"IF(OR(Selection_Hide2!J210=0, Selection_Hide2!J210=\"\"), \"\", Selection_Hide2!J210)","v":""},{"$f":"IF(OR(Selection_Hide2!K210=0, Selection_Hide2!K210=\"\"), \"\", Selection_Hide2!K210)","v":""},{"$f":"IF(OR(Selection_Hide2!L210=0, Selection_Hide2!L210=\"\"), \"\", Selection_Hide2!L210)","v":""},{"$f":"IF(OR(Selection_Hide2!M210=0, Selection_Hide2!M210=\"\"), \"\", Selection_Hide2!M210)","v":""},{"$f":"IF(OR(Selection_Hide2!N210=0, Selection_Hide2!N210=\"\"), \"\", Selection_Hide2!N210)","v":""},{"$f":"IF(OR(Selection_Hide2!O210=0, Selection_Hide2!O210=\"\"), \"\", Selection_Hide2!O210)","v":""},{"$f":"IF(OR(Selection_Hide2!P210=0, Selection_Hide2!P210=\"\"), \"\", Selection_Hide2!P210)","v":""},{"$f":"IF(OR(Selection_Hide2!Q210=0, Selection_Hide2!Q210=\"\"), \"\", Selection_Hide2!Q210)","v":""},{"$f":"IF(OR(Selection_Hide2!R210=0, Selection_Hide2!R210=\"\"), \"\", Selection_Hide2!R210)","v":""},{"$f":"IF(OR(Selection_Hide2!S210=0, Selection_Hide2!S210=\"\"), \"\", Selection_Hide2!S210)","v":""},{"$f":"IF(OR(Selection_Hide2!T210=0, Selection_Hide2!T210=\"\"), \"\", Selection_Hide2!T210)","v":""},{"$f":"IF(OR(Selection_Hide2!U210=0, Selection_Hide2!U210=\"\"), \"\", Selection_Hide2!U210)","v":""},{"$f":"IF(OR(Selection_Hide2!V210=0, Selection_Hide2!V210=\"\"), \"\", Selection_Hide2!V210)","v":""},{"$f":"IF(OR(Selection_Hide2!W210=0, Selection_Hide2!W210=\"\"), \"\", Selection_Hide2!W210)","v":""},{"$f":"IF(OR(Selection_Hide2!X210=0, Selection_Hide2!X210=\"\"), \"\", Selection_Hide2!X210)","v":""},{"$f":"IF(OR(Selection_Hide2!Y210=0, Selection_Hide2!Y210=\"\"), \"\", Selection_Hide2!Y210)","v":""},{"$f":"IF(OR(Selection_Hide2!Z210=0, Selection_Hide2!Z210=\"\"), \"\", Selection_Hide2!Z210)","v":""},{"$f":"IF(OR(Selection_Hide2!AA210=0, Selection_Hide2!AA210=\"\"), \"\", Selection_Hide2!AA210)","v":""},{"$f":"IF(OR(Selection_Hide2!AB210=0, Selection_Hide2!AB210=\"\"), \"\", Selection_Hide2!AB210)","v":""}]
[{"$f":"IF(OR(Selection_Hide2!A211=0, Selection_Hide2!A211=\"\"), \"\", Selection_Hide2!A211)","v":""},{"$f":"IF(OR(Selection_Hide2!B211=0, Selection_Hide2!B211=\"\"), \"\", Selection_Hide2!B211)","v":""},{"$f":"IF(OR(Selection_Hide2!C211=0, Selection_Hide2!C211=\"\"), \"\", Selection_Hide2!C211)","v":""},{"$f":"IF(OR(Selection_Hide2!D211=0, Selection_Hide2!D211=\"\"), \"\", Selection_Hide2!D211)","v":""},{"$f":"IF(OR(Selection_Hide2!E211=0, Selection_Hide2!E211=\"\"), \"\", Selection_Hide2!E211)","v":""},{"$f":"IF(OR(Selection_Hide2!F211=0, Selection_Hide2!F211=\"\"), \"\", Selection_Hide2!F211)","v":""},{"$f":"IF(OR(Selection_Hide2!G211=0, Selection_Hide2!G211=\"\"), \"\", Selection_Hide2!G211)","v":""},{"$f":"IF(OR(Selection_Hide2!H211=0, Selection_Hide2!H211=\"\"), \"\", Selection_Hide2!H211)","v":""},{"$f":"IF(OR(Selection_Hide2!I211=0, Selection_Hide2!I211=\"\"), \"\", Selection_Hide2!I211)","v":""},{"$f":"IF(OR(Selection_Hide2!J211=0, Selection_Hide2!J211=\"\"), \"\", Selection_Hide2!J211)","v":""},{"$f":"IF(OR(Selection_Hide2!K211=0, Selection_Hide2!K211=\"\"), \"\", Selection_Hide2!K211)","v":""},{"$f":"IF(OR(Selection_Hide2!L211=0, Selection_Hide2!L211=\"\"), \"\", Selection_Hide2!L211)","v":""},{"$f":"IF(OR(Selection_Hide2!M211=0, Selection_Hide2!M211=\"\"), \"\", Selection_Hide2!M211)","v":""},{"$f":"IF(OR(Selection_Hide2!N211=0, Selection_Hide2!N211=\"\"), \"\", Selection_Hide2!N211)","v":""},{"$f":"IF(OR(Selection_Hide2!O211=0, Selection_Hide2!O211=\"\"), \"\", Selection_Hide2!O211)","v":""},{"$f":"IF(OR(Selection_Hide2!P211=0, Selection_Hide2!P211=\"\"), \"\", Selection_Hide2!P211)","v":""},{"$f":"IF(OR(Selection_Hide2!Q211=0, Selection_Hide2!Q211=\"\"), \"\", Selection_Hide2!Q211)","v":""},{"$f":"IF(OR(Selection_Hide2!R211=0, Selection_Hide2!R211=\"\"), \"\", Selection_Hide2!R211)","v":""},{"$f":"IF(OR(Selection_Hide2!S211=0, Selection_Hide2!S211=\"\"), \"\", Selection_Hide2!S211)","v":""},{"$f":"IF(OR(Selection_Hide2!T211=0, Selection_Hide2!T211=\"\"), \"\", Selection_Hide2!T211)","v":""},{"$f":"IF(OR(Selection_Hide2!U211=0, Selection_Hide2!U211=\"\"), \"\", Selection_Hide2!U211)","v":""},{"$f":"IF(OR(Selection_Hide2!V211=0, Selection_Hide2!V211=\"\"), \"\", Selection_Hide2!V211)","v":""},{"$f":"IF(OR(Selection_Hide2!W211=0, Selection_Hide2!W211=\"\"), \"\", Selection_Hide2!W211)","v":""},{"$f":"IF(OR(Selection_Hide2!X211=0, Selection_Hide2!X211=\"\"), \"\", Selection_Hide2!X211)","v":""},{"$f":"IF(OR(Selection_Hide2!Y211=0, Selection_Hide2!Y211=\"\"), \"\", Selection_Hide2!Y211)","v":""},{"$f":"IF(OR(Selection_Hide2!Z211=0, Selection_Hide2!Z211=\"\"), \"\", Selection_Hide2!Z211)","v":""},{"$f":"IF(OR(Selection_Hide2!AA211=0, Selection_Hide2!AA211=\"\"), \"\", Selection_Hide2!AA211)","v":""},{"$f":"IF(OR(Selection_Hide2!AB211=0, Selection_Hide2!AB211=\"\"), \"\", Selection_Hide2!AB211)","v":""}]
[{"$f":"IF(OR(Selection_Hide2!A212=0, Selection_Hide2!A212=\"\"), \"\", Selection_Hide2!A212)","v":""},{"$f":"IF(OR(Selection_Hide2!B212=0, Selection_Hide2!B212=\"\"), \"\", Selection_Hide2!B212)","v":""},{"$f":"IF(OR(Selection_Hide2!C212=0, Selection_Hide2!C212=\"\"), \"\", Selection_Hide2!C212)","v":""},{"$f":"IF(OR(Selection_Hide2!D212=0, Selection_Hide2!D212=\"\"), \"\", Selection_Hide2!D212)","v":""},{"$f":"IF(OR(Selection_Hide2!E212=0, Selection_Hide2!E212=\"\"), \"\", Selection_Hide2!E212)","v":""},{"$f":"IF(OR(Selection_Hide2!F212=0, Selection_Hide2!F212=\"\"), \"\", Selection_Hide2!F212)","v":""},{"$f":"IF(OR(Selection_Hide2!G212=0, Selection_Hide2!G212=\"\"), \"\", Selection_Hide2!G212)","v":""},{"$f":"IF(OR(Selection_Hide2!H212=0, Selection_Hide2!H212=\"\"), \"\", Selection_Hide2!H212)","v":""},{"$f":"IF(OR(Selection_Hide2!I212=0, Selection_Hide2!I212=\"\"), \"\", Selection_Hide2!I212)","v":""},{"$f":"IF(OR(Selection_Hide2!J212=0, Selection_Hide2!J212=\"\"), \"\", Selection_Hide2!J212)","v":""},{"$f":"IF(OR(Selection_Hide2!K212=0, Selection_Hide2!K212=\"\"), \"\", Selection_Hide2!K212)","v":""},{"$f":"IF(OR(Selection_Hide2!L212=0, Selection_Hide2!L212=\"\"), \"\", Selection_Hide2!L212)","v":""},{"$f":"IF(OR(Selection_Hide2!M212=0, Selection_Hide2!M212=\"\"), \"\", Selection_Hide2!M212)","v":""},{"$f":"IF(OR(Selection_Hide2!N212=0, Selection_Hide2!N212=\"\"), \"\", Selection_Hide2!N212)","v":""},{"$f":"IF(OR(Selection_Hide2!O212=0, Selection_Hide2!O212=\"\"), \"\", Selection_Hide2!O212)","v":""},{"$f":"IF(OR(Selection_Hide2!P212=0, Selection_Hide2!P212=\"\"), \"\", Selection_Hide2!P212)","v":""},{"$f":"IF(OR(Selection_Hide2!Q212=0, Selection_Hide2!Q212=\"\"), \"\", Selection_Hide2!Q212)","v":""},{"$f":"IF(OR(Selection_Hide2!R212=0, Selection_Hide2!R212=\"\"), \"\", Selection_Hide2!R212)","v":""},{"$f":"IF(OR(Selection_Hide2!S212=0, Selection_Hide2!S212=\"\"), \"\", Selection_Hide2!S212)","v":""},{"$f":"IF(OR(Selection_Hide2!T212=0, Selection_Hide2!T212=\"\"), \"\", Selection_Hide2!T212)","v":""},{"$f":"IF(OR(Selection_Hide2!U212=0, Selection_Hide2!U212=\"\"), \"\", Selection_Hide2!U212)","v":""},{"$f":"IF(OR(Selection_Hide2!V212=0, Selection_Hide2!V212=\"\"), \"\", Selection_Hide2!V212)","v":""},{"$f":"IF(OR(Selection_Hide2!W212=0, Selection_Hide2!W212=\"\"), \"\", Selection_Hide2!W212)","v":""},{"$f":"IF(OR(Selection_Hide2!X212=0, Selection_Hide2!X212=\"\"), \"\", Selection_Hide2!X212)","v":""},{"$f":"IF(OR(Selection_Hide2!Y212=0, Selection_Hide2!Y212=\"\"), \"\", Selection_Hide2!Y212)","v":""},{"$f":"IF(OR(Selection_Hide2!Z212=0, Selection_Hide2!Z212=\"\"), \"\", Selection_Hide2!Z212)","v":""},{"$f":"IF(OR(Selection_Hide2!AA212=0, Selection_Hide2!AA212=\"\"), \"\", Selection_Hide2!AA212)","v":""},{"$f":"IF(OR(Selection_Hide2!AB212=0, Selection_Hide2!AB212=\"\"), \"\", Selection_Hide2!AB212)","v":""}]
[{"$f":"IF(OR(Selection_Hide2!A213=0, Selection_Hide2!A213=\"\"), \"\", Selection_Hide2!A213)","v":""},{"$f":"IF(OR(Selection_Hide2!B213=0, Selection_Hide2!B213=\"\"), \"\", Selection_Hide2!B213)","v":""},{"$f":"IF(OR(Selection_Hide2!C213=0, Selection_Hide2!C213=\"\"), \"\", Selection_Hide2!C213)","v":""},{"$f":"IF(OR(Selection_Hide2!D213=0, Selection_Hide2!D213=\"\"), \"\", Selection_Hide2!D213)","v":""},{"$f":"IF(OR(Selection_Hide2!E213=0, Selection_Hide2!E213=\"\"), \"\", Selection_Hide2!E213)","v":""},{"$f":"IF(OR(Selection_Hide2!F213=0, Selection_Hide2!F213=\"\"), \"\", Selection_Hide2!F213)","v":""},{"$f":"IF(OR(Selection_Hide2!G213=0, Selection_Hide2!G213=\"\"), \"\", Selection_Hide2!G213)","v":""},{"$f":"IF(OR(Selection_Hide2!H213=0, Selection_Hide2!H213=\"\"), \"\", Selection_Hide2!H213)","v":""},{"$f":"IF(OR(Selection_Hide2!I213=0, Selection_Hide2!I213=\"\"), \"\", Selection_Hide2!I213)","v":""},{"$f":"IF(OR(Selection_Hide2!J213=0, Selection_Hide2!J213=\"\"), \"\", Selection_Hide2!J213)","v":""},{"$f":"IF(OR(Selection_Hide2!K213=0, Selection_Hide2!K213=\"\"), \"\", Selection_Hide2!K213)","v":""},{"$f":"IF(OR(Selection_Hide2!L213=0, Selection_Hide2!L213=\"\"), \"\", Selection_Hide2!L213)","v":""},{"$f":"IF(OR(Selection_Hide2!M213=0, Selection_Hide2!M213=\"\"), \"\", Selection_Hide2!M213)","v":""},{"$f":"IF(OR(Selection_Hide2!N213=0, Selection_Hide2!N213=\"\"), \"\", Selection_Hide2!N213)","v":""},{"$f":"IF(OR(Selection_Hide2!O213=0, Selection_Hide2!O213=\"\"), \"\", Selection_Hide2!O213)","v":""},{"$f":"IF(OR(Selection_Hide2!P213=0, Selection_Hide2!P213=\"\"), \"\", Selection_Hide2!P213)","v":""},{"$f":"IF(OR(Selection_Hide2!Q213=0, Selection_Hide2!Q213=\"\"), \"\", Selection_Hide2!Q213)","v":""},{"$f":"IF(OR(Selection_Hide2!R213=0, Selection_Hide2!R213=\"\"), \"\", Selection_Hide2!R213)","v":""},{"$f":"IF(OR(Selection_Hide2!S213=0, Selection_Hide2!S213=\"\"), \"\", Selection_Hide2!S213)","v":""},{"$f":"IF(OR(Selection_Hide2!T213=0, Selection_Hide2!T213=\"\"), \"\", Selection_Hide2!T213)","v":""},{"$f":"IF(OR(Selection_Hide2!U213=0, Selection_Hide2!U213=\"\"), \"\", Selection_Hide2!U213)","v":""},{"$f":"IF(OR(Selection_Hide2!V213=0, Selection_Hide2!V213=\"\"), \"\", Selection_Hide2!V213)","v":""},{"$f":"IF(OR(Selection_Hide2!W213=0, Selection_Hide2!W213=\"\"), \"\", Selection_Hide2!W213)","v":""},{"$f":"IF(OR(Selection_Hide2!X213=0, Selection_Hide2!X213=\"\"), \"\", Selection_Hide2!X213)","v":""},{"$f":"IF(OR(Selection_Hide2!Y213=0, Selection_Hide2!Y213=\"\"), \"\", Selection_Hide2!Y213)","v":""},{"$f":"IF(OR(Selection_Hide2!Z213=0, Selection_Hide2!Z213=\"\"), \"\", Selection_Hide2!Z213)","v":""},{"$f":"IF(OR(Selection_Hide2!AA213=0, Selection_Hide2!AA213=\"\"), \"\", Selection_Hide2!AA213)","v":""},{"$f":"IF(OR(Selection_Hide2!AB213=0, Selection_Hide2!AB213=\"\"), \"\", Selection_Hide2!AB213)","v":""}]
[{"$f":"IF(OR(Selection_Hide2!A214=0, Selection_Hide2!A214=\"\"), \"\", Selection_Hide2!A214)","v":""},{"$f":"IF(OR(Selection_Hide2!B214=0, Selection_Hide2!B214=\"\"), \"\", Selection_Hide2!B214)","v":""},{"$f":"IF(OR(Selection_Hide2!C214=0, Selection_Hide2!C214=\"\"), \"\", Selection_Hide2!C214)","v":""},{"$f":"IF(OR(Selection_Hide2!D214=0, Selection_Hide2!D214=\"\"), \"\", Selection_Hide2!D214)","v":""},{"$f":"IF(OR(Selection_Hide2!E214=0, Selection_Hide2!E214=\"\"), \"\", Selection_Hide2!E214)","v":""},{"$f":"IF(OR(Selection_Hide2!F214=0, Selection_Hide2!F214=\"\"), \"\", Selection_Hide2!F214)","v":""},{"$f":"IF(OR(Selection_Hide2!G214=0, Selection_Hide2!G214=\"\"), \"\", Selection_Hide2!G214)","v":""},{"$f":"IF(OR(Selection_Hide2!H214=0, Selection_Hide2!H214=\"\"), \"\", Selection_Hide2!H214)","v":""},{"$f":"IF(OR(Selection_Hide2!I214=0, Selection_Hide2!I214=\"\"), \"\", Selection_Hide2!I214)","v":""},{"$f":"IF(OR(Selection_Hide2!J214=0, Selection_Hide2!J214=\"\"), \"\", Selection_Hide2!J214)","v":""},{"$f":"IF(OR(Selection_Hide2!K214=0, Selection_Hide2!K214=\"\"), \"\", Selection_Hide2!K214)","v":""},{"$f":"IF(OR(Selection_Hide2!L214=0, Selection_Hide2!L214=\"\"), \"\", Selection_Hide2!L214)","v":""},{"$f":"IF(OR(Selection_Hide2!M214=0, Selection_Hide2!M214=\"\"), \"\", Selection_Hide2!M214)","v":""},{"$f":"IF(OR(Selection_Hide2!N214=0, Selection_Hide2!N214=\"\"), \"\", Selection_Hide2!N214)","v":""},{"$f":"IF(OR(Selection_Hide2!O214=0, Selection_Hide2!O214=\"\"), \"\", Selection_Hide2!O214)","v":""},{"$f":"IF(OR(Selection_Hide2!P214=0, Selection_Hide2!P214=\"\"), \"\", Selection_Hide2!P214)","v":""},{"$f":"IF(OR(Selection_Hide2!Q214=0, Selection_Hide2!Q214=\"\"), \"\", Selection_Hide2!Q214)","v":""},{"$f":"IF(OR(Selection_Hide2!R214=0, Selection_Hide2!R214=\"\"), \"\", Selection_Hide2!R214)","v":""},{"$f":"IF(OR(Selection_Hide2!S214=0, Selection_Hide2!S214=\"\"), \"\", Selection_Hide2!S214)","v":""},{"$f":"IF(OR(Selection_Hide2!T214=0, Selection_Hide2!T214=\"\"), \"\", Selection_Hide2!T214)","v":""},{"$f":"IF(OR(Selection_Hide2!U214=0, Selection_Hide2!U214=\"\"), \"\", Selection_Hide2!U214)","v":""},{"$f":"IF(OR(Selection_Hide2!V214=0, Selection_Hide2!V214=\"\"), \"\", Selection_Hide2!V214)","v":""},{"$f":"IF(OR(Selection_Hide2!W214=0, Selection_Hide2!W214=\"\"), \"\", Selection_Hide2!W214)","v":""},{"$f":"IF(OR(Selection_Hide2!X214=0, Selection_Hide2!X214=\"\"), \"\", Selection_Hide2!X214)","v":""},{"$f":"IF(OR(Selection_Hide2!Y214=0, Selection_Hide2!Y214=\"\"), \"\", Selection_Hide2!Y214)","v":""},{"$f":"IF(OR(Selection_Hide2!Z214=0, Selection_Hide2!Z214=\"\"), \"\", Selection_Hide2!Z214)","v":""},{"$f":"IF(OR(Selection_Hide2!AA214=0, Selection_Hide2!AA214=\"\"), \"\", Selection_Hide2!AA214)","v":""},{"$f":"IF(OR(Selection_Hide2!AB214=0, Selection_Hide2!AB214=\"\"), \"\", Selection_Hide2!AB214)","v":""}]
[{"$f":"IF(OR(Selection_Hide2!A215=0, Selection_Hide2!A215=\"\"), \"\", Selection_Hide2!A215)","v":""},{"$f":"IF(OR(Selection_Hide2!B215=0, Selection_Hide2!B215=\"\"), \"\", Selection_Hide2!B215)","v":""},{"$f":"IF(OR(Selection_Hide2!C215=0, Selection_Hide2!C215=\"\"), \"\", Selection_Hide2!C215)","v":""},{"$f":"IF(OR(Selection_Hide2!D215=0, Selection_Hide2!D215=\"\"), \"\", Selection_Hide2!D215)","v":""},{"$f":"IF(OR(Selection_Hide2!E215=0, Selection_Hide2!E215=\"\"), \"\", Selection_Hide2!E215)","v":""},{"$f":"IF(OR(Selection_Hide2!F215=0, Selection_Hide2!F215=\"\"), \"\", Selection_Hide2!F215)","v":""},{"$f":"IF(OR(Selection_Hide2!G215=0, Selection_Hide2!G215=\"\"), \"\", Selection_Hide2!G215)","v":""},{"$f":"IF(OR(Selection_Hide2!H215=0, Selection_Hide2!H215=\"\"), \"\", Selection_Hide2!H215)","v":""},{"$f":"IF(OR(Selection_Hide2!I215=0, Selection_Hide2!I215=\"\"), \"\", Selection_Hide2!I215)","v":""},{"$f":"IF(OR(Selection_Hide2!J215=0, Selection_Hide2!J215=\"\"), \"\", Selection_Hide2!J215)","v":""},{"$f":"IF(OR(Selection_Hide2!K215=0, Selection_Hide2!K215=\"\"), \"\", Selection_Hide2!K215)","v":""},{"$f":"IF(OR(Selection_Hide2!L215=0, Selection_Hide2!L215=\"\"), \"\", Selection_Hide2!L215)","v":""},{"$f":"IF(OR(Selection_Hide2!M215=0, Selection_Hide2!M215=\"\"), \"\", Selection_Hide2!M215)","v":""},{"$f":"IF(OR(Selection_Hide2!N215=0, Selection_Hide2!N215=\"\"), \"\", Selection_Hide2!N215)","v":""},{"$f":"IF(OR(Selection_Hide2!O215=0, Selection_Hide2!O215=\"\"), \"\", Selection_Hide2!O215)","v":""},{"$f":"IF(OR(Selection_Hide2!P215=0, Selection_Hide2!P215=\"\"), \"\", Selection_Hide2!P215)","v":""},{"$f":"IF(OR(Selection_Hide2!Q215=0, Selection_Hide2!Q215=\"\"), \"\", Selection_Hide2!Q215)","v":""},{"$f":"IF(OR(Selection_Hide2!R215=0, Selection_Hide2!R215=\"\"), \"\", Selection_Hide2!R215)","v":""},{"$f":"IF(OR(Selection_Hide2!S215=0, Selection_Hide2!S215=\"\"), \"\", Selection_Hide2!S215)","v":""},{"$f":"IF(OR(Selection_Hide2!T215=0, Selection_Hide2!T215=\"\"), \"\", Selection_Hide2!T215)","v":""},{"$f":"IF(OR(Selection_Hide2!U215=0, Selection_Hide2!U215=\"\"), \"\", Selection_Hide2!U215)","v":""},{"$f":"IF(OR(Selection_Hide2!V215=0, Selection_Hide2!V215=\"\"), \"\", Selection_Hide2!V215)","v":""},{"$f":"IF(OR(Selection_Hide2!W215=0, Selection_Hide2!W215=\"\"), \"\", Selection_Hide2!W215)","v":""},{"$f":"IF(OR(Selection_Hide2!X215=0, Selection_Hide2!X215=\"\"), \"\", Selection_Hide2!X215)","v":""},{"$f":"IF(OR(Selection_Hide2!Y215=0, Selection_Hide2!Y215=\"\"), \"\", Selection_Hide2!Y215)","v":""},{"$f":"IF(OR(Selection_Hide2!Z215=0, Selection_Hide2!Z215=\"\"), \"\", Selection_Hide2!Z215)","v":""},{"$f":"IF(OR(Selection_Hide2!AA215=0, Selection_Hide2!AA215=\"\"), \"\", Selection_Hide2!AA215)","v":""},{"$f":"IF(OR(Selection_Hide2!AB215=0, Selection_Hide2!AB215=\"\"), \"\", Selection_Hide2!AB215)","v":""}]
[{"$f":"IF(OR(Selection_Hide2!A216=0, Selection_Hide2!A216=\"\"), \"\", Selection_Hide2!A216)","v":""},{"$f":"IF(OR(Selection_Hide2!B216=0, Selection_Hide2!B216=\"\"), \"\", Selection_Hide2!B216)","v":""},{"$f":"IF(OR(Selection_Hide2!C216=0, Selection_Hide2!C216=\"\"), \"\", Selection_Hide2!C216)","v":""},{"$f":"IF(OR(Selection_Hide2!D216=0, Selection_Hide2!D216=\"\"), \"\", Selection_Hide2!D216)","v":""},{"$f":"IF(OR(Selection_Hide2!E216=0, Selection_Hide2!E216=\"\"), \"\", Selection_Hide2!E216)","v":""},{"$f":"IF(OR(Selection_Hide2!F216=0, Selection_Hide2!F216=\"\"), \"\", Selection_Hide2!F216)","v":""},{"$f":"IF(OR(Selection_Hide2!G216=0, Selection_Hide2!G216=\"\"), \"\", Selection_Hide2!G216)","v":""},{"$f":"IF(OR(Selection_Hide2!H216=0, Selection_Hide2!H216=\"\"), \"\", Selection_Hide2!H216)","v":""},{"$f":"IF(OR(Selection_Hide2!I216=0, Selection_Hide2!I216=\"\"), \"\", Selection_Hide2!I216)","v":""},{"$f":"IF(OR(Selection_Hide2!J216=0, Selection_Hide2!J216=\"\"), \"\", Selection_Hide2!J216)","v":""},{"$f":"IF(OR(Selection_Hide2!K216=0, Selection_Hide2!K216=\"\"), \"\", Selection_Hide2!K216)","v":""},{"$f":"IF(OR(Selection_Hide2!L216=0, Selection_Hide2!L216=\"\"), \"\", Selection_Hide2!L216)","v":""},{"$f":"IF(OR(Selection_Hide2!M216=0, Selection_Hide2!M216=\"\"), \"\", Selection_Hide2!M216)","v":""},{"$f":"IF(OR(Selection_Hide2!N216=0, Selection_Hide2!N216=\"\"), \"\", Selection_Hide2!N216)","v":""},{"$f":"IF(OR(Selection_Hide2!O216=0, Selection_Hide2!O216=\"\"), \"\", Selection_Hide2!O216)","v":""},{"$f":"IF(OR(Selection_Hide2!P216=0, Selection_Hide2!P216=\"\"), \"\", Selection_Hide2!P216)","v":""},{"$f":"IF(OR(Selection_Hide2!Q216=0, Selection_Hide2!Q216=\"\"), \"\", Selection_Hide2!Q216)","v":""},{"$f":"IF(OR(Selection_Hide2!R216=0, Selection_Hide2!R216=\"\"), \"\", Selection_Hide2!R216)","v":""},{"$f":"IF(OR(Selection_Hide2!S216=0, Selection_Hide2!S216=\"\"), \"\", Selection_Hide2!S216)","v":""},{"$f":"IF(OR(Selection_Hide2!T216=0, Selection_Hide2!T216=\"\"), \"\", Selection_Hide2!T216)","v":""},{"$f":"IF(OR(Selection_Hide2!U216=0, Selection_Hide2!U216=\"\"), \"\", Selection_Hide2!U216)","v":""},{"$f":"IF(OR(Selection_Hide2!V216=0, Selection_Hide2!V216=\"\"), \"\", Selection_Hide2!V216)","v":""},{"$f":"IF(OR(Selection_Hide2!W216=0, Selection_Hide2!W216=\"\"), \"\", Selection_Hide2!W216)","v":""},{"$f":"IF(OR(Selection_Hide2!X216=0, Selection_Hide2!X216=\"\"), \"\", Selection_Hide2!X216)","v":""},{"$f":"IF(OR(Selection_Hide2!Y216=0, Selection_Hide2!Y216=\"\"), \"\", Selection_Hide2!Y216)","v":""},{"$f":"IF(OR(Selection_Hide2!Z216=0, Selection_Hide2!Z216=\"\"), \"\", Selection_Hide2!Z216)","v":""},{"$f":"IF(OR(Selection_Hide2!AA216=0, Selection_Hide2!AA216=\"\"), \"\", Selection_Hide2!AA216)","v":""},{"$f":"IF(OR(Selection_Hide2!AB216=0, Selection_Hide2!AB216=\"\"), \"\", Selection_Hide2!AB216)","v":""}]
[{"$f":"IF(OR(Selection_Hide2!A217=0, Selection_Hide2!A217=\"\"), \"\", Selection_Hide2!A217)","v":""},{"$f":"IF(OR(Selection_Hide2!B217=0, Selection_Hide2!B217=\"\"), \"\", Selection_Hide2!B217)","v":""},{"$f":"IF(OR(Selection_Hide2!C217=0, Selection_Hide2!C217=\"\"), \"\", Selection_Hide2!C217)","v":""},{"$f":"IF(OR(Selection_Hide2!D217=0, Selection_Hide2!D217=\"\"), \"\", Selection_Hide2!D217)","v":""},{"$f":"IF(OR(Selection_Hide2!E217=0, Selection_Hide2!E217=\"\"), \"\", Selection_Hide2!E217)","v":""},{"$f":"IF(OR(Selection_Hide2!F217=0, Selection_Hide2!F217=\"\"), \"\", Selection_Hide2!F217)","v":""},{"$f":"IF(OR(Selection_Hide2!G217=0, Selection_Hide2!G217=\"\"), \"\", Selection_Hide2!G217)","v":""},{"$f":"IF(OR(Selection_Hide2!H217=0, Selection_Hide2!H217=\"\"), \"\", Selection_Hide2!H217)","v":""},{"$f":"IF(OR(Selection_Hide2!I217=0, Selection_Hide2!I217=\"\"), \"\", Selection_Hide2!I217)","v":""},{"$f":"IF(OR(Selection_Hide2!J217=0, Selection_Hide2!J217=\"\"), \"\", Selection_Hide2!J217)","v":""},{"$f":"IF(OR(Selection_Hide2!K217=0, Selection_Hide2!K217=\"\"), \"\", Selection_Hide2!K217)","v":""},{"$f":"IF(OR(Selection_Hide2!L217=0, Selection_Hide2!L217=\"\"), \"\", Selection_Hide2!L217)","v":""},{"$f":"IF(OR(Selection_Hide2!M217=0, Selection_Hide2!M217=\"\"), \"\", Selection_Hide2!M217)","v":""},{"$f":"IF(OR(Selection_Hide2!N217=0, Selection_Hide2!N217=\"\"), \"\", Selection_Hide2!N217)","v":""},{"$f":"IF(OR(Selection_Hide2!O217=0, Selection_Hide2!O217=\"\"), \"\", Selection_Hide2!O217)","v":""},{"$f":"IF(OR(Selection_Hide2!P217=0, Selection_Hide2!P217=\"\"), \"\", Selection_Hide2!P217)","v":""},{"$f":"IF(OR(Selection_Hide2!Q217=0, Selection_Hide2!Q217=\"\"), \"\", Selection_Hide2!Q217)","v":""},{"$f":"IF(OR(Selection_Hide2!R217=0, Selection_Hide2!R217=\"\"), \"\", Selection_Hide2!R217)","v":""},{"$f":"IF(OR(Selection_Hide2!S217=0, Selection_Hide2!S217=\"\"), \"\", Selection_Hide2!S217)","v":""},{"$f":"IF(OR(Selection_Hide2!T217=0, Selection_Hide2!T217=\"\"), \"\", Selection_Hide2!T217)","v":""},{"$f":"IF(OR(Selection_Hide2!U217=0, Selection_Hide2!U217=\"\"), \"\", Selection_Hide2!U217)","v":""},{"$f":"IF(OR(Selection_Hide2!V217=0, Selection_Hide2!V217=\"\"), \"\", Selection_Hide2!V217)","v":""},{"$f":"IF(OR(Selection_Hide2!W217=0, Selection_Hide2!W217=\"\"), \"\", Selection_Hide2!W217)","v":""},{"$f":"IF(OR(Selection_Hide2!X217=0, Selection_Hide2!X217=\"\"), \"\", Selection_Hide2!X217)","v":""},{"$f":"IF(OR(Selection_Hide2!Y217=0, Selection_Hide2!Y217=\"\"), \"\", Selection_Hide2!Y217)","v":""},{"$f":"IF(OR(Selection_Hide2!Z217=0, Selection_Hide2!Z217=\"\"), \"\", Selection_Hide2!Z217)","v":""},{"$f":"IF(OR(Selection_Hide2!AA217=0, Selection_Hide2!AA217=\"\"), \"\", Selection_Hide2!AA217)","v":""},{"$f":"IF(OR(Selection_Hide2!AB217=0, Selection_Hide2!AB217=\"\"), \"\", Selection_Hide2!AB217)","v":""}]
[{"$f":"IF(OR(Selection_Hide2!A218=0, Selection_Hide2!A218=\"\"), \"\", Selection_Hide2!A218)","v":""},{"$f":"IF(OR(Selection_Hide2!B218=0, Selection_Hide2!B218=\"\"), \"\", Selection_Hide2!B218)","v":""},{"$f":"IF(OR(Selection_Hide2!C218=0, Selection_Hide2!C218=\"\"), \"\", Selection_Hide2!C218)","v":""},{"$f":"IF(OR(Selection_Hide2!D218=0, Selection_Hide2!D218=\"\"), \"\", Selection_Hide2!D218)","v":""},{"$f":"IF(OR(Selection_Hide2!E218=0, Selection_Hide2!E218=\"\"), \"\", Selection_Hide2!E218)","v":""},{"$f":"IF(OR(Selection_Hide2!F218=0, Selection_Hide2!F218=\"\"), \"\", Selection_Hide2!F218)","v":""},{"$f":"IF(OR(Selection_Hide2!G218=0, Selection_Hide2!G218=\"\"), \"\", Selection_Hide2!G218)","v":""},{"$f":"IF(OR(Selection_Hide2!H218=0, Selection_Hide2!H218=\"\"), \"\", Selection_Hide2!H218)","v":""},{"$f":"IF(OR(Selection_Hide2!I218=0, Selection_Hide2!I218=\"\"), \"\", Selection_Hide2!I218)","v":""},{"$f":"IF(OR(Selection_Hide2!J218=0, Selection_Hide2!J218=\"\"), \"\", Selection_Hide2!J218)","v":""},{"$f":"IF(OR(Selection_Hide2!K218=0, Selection_Hide2!K218=\"\"), \"\", Selection_Hide2!K218)","v":""},{"$f":"IF(OR(Selection_Hide2!L218=0, Selection_Hide2!L218=\"\"), \"\", Selection_Hide2!L218)","v":""},{"$f":"IF(OR(Selection_Hide2!M218=0, Selection_Hide2!M218=\"\"), \"\", Selection_Hide2!M218)","v":""},{"$f":"IF(OR(Selection_Hide2!N218=0, Selection_Hide2!N218=\"\"), \"\", Selection_Hide2!N218)","v":""},{"$f":"IF(OR(Selection_Hide2!O218=0, Selection_Hide2!O218=\"\"), \"\", Selection_Hide2!O218)","v":""},{"$f":"IF(OR(Selection_Hide2!P218=0, Selection_Hide2!P218=\"\"), \"\", Selection_Hide2!P218)","v":""},{"$f":"IF(OR(Selection_Hide2!Q218=0, Selection_Hide2!Q218=\"\"), \"\", Selection_Hide2!Q218)","v":""},{"$f":"IF(OR(Selection_Hide2!R218=0, Selection_Hide2!R218=\"\"), \"\", Selection_Hide2!R218)","v":""},{"$f":"IF(OR(Selection_Hide2!S218=0, Selection_Hide2!S218=\"\"), \"\", Selection_Hide2!S218)","v":""},{"$f":"IF(OR(Selection_Hide2!T218=0, Selection_Hide2!T218=\"\"), \"\", Selection_Hide2!T218)","v":""},{"$f":"IF(OR(Selection_Hide2!U218=0, Selection_Hide2!U218=\"\"), \"\", Selection_Hide2!U218)","v":""},{"$f":"IF(OR(Selection_Hide2!V218=0, Selection_Hide2!V218=\"\"), \"\", Selection_Hide2!V218)","v":""},{"$f":"IF(OR(Selection_Hide2!W218=0, Selection_Hide2!W218=\"\"), \"\", Selection_Hide2!W218)","v":""},{"$f":"IF(OR(Selection_Hide2!X218=0, Selection_Hide2!X218=\"\"), \"\", Selection_Hide2!X218)","v":""},{"$f":"IF(OR(Selection_Hide2!Y218=0, Selection_Hide2!Y218=\"\"), \"\", Selection_Hide2!Y218)","v":""},{"$f":"IF(OR(Selection_Hide2!Z218=0, Selection_Hide2!Z218=\"\"), \"\", Selection_Hide2!Z218)","v":""},{"$f":"IF(OR(Selection_Hide2!AA218=0, Selection_Hide2!AA218=\"\"), \"\", Selection_Hide2!AA218)","v":""},{"$f":"IF(OR(Selection_Hide2!AB218=0, Selection_Hide2!AB218=\"\"), \"\", Selection_Hide2!AB218)","v":""}]
[{"$f":"IF(OR(Selection_Hide2!A219=0, Selection_Hide2!A219=\"\"), \"\", Selection_Hide2!A219)","v":""},{"$f":"IF(OR(Selection_Hide2!B219=0, Selection_Hide2!B219=\"\"), \"\", Selection_Hide2!B219)","v":""},{"$f":"IF(OR(Selection_Hide2!C219=0, Selection_Hide2!C219=\"\"), \"\", Selection_Hide2!C219)","v":""},{"$f":"IF(OR(Selection_Hide2!D219=0, Selection_Hide2!D219=\"\"), \"\", Selection_Hide2!D219)","v":""},{"$f":"IF(OR(Selection_Hide2!E219=0, Selection_Hide2!E219=\"\"), \"\", Selection_Hide2!E219)","v":""},{"$f":"IF(OR(Selection_Hide2!F219=0, Selection_Hide2!F219=\"\"), \"\", Selection_Hide2!F219)","v":""},{"$f":"IF(OR(Selection_Hide2!G219=0, Selection_Hide2!G219=\"\"), \"\", Selection_Hide2!G219)","v":""},{"$f":"IF(OR(Selection_Hide2!H219=0, Selection_Hide2!H219=\"\"), \"\", Selection_Hide2!H219)","v":""},{"$f":"IF(OR(Selection_Hide2!I219=0, Selection_Hide2!I219=\"\"), \"\", Selection_Hide2!I219)","v":""},{"$f":"IF(OR(Selection_Hide2!J219=0, Selection_Hide2!J219=\"\"), \"\", Selection_Hide2!J219)","v":""},{"$f":"IF(OR(Selection_Hide2!K219=0, Selection_Hide2!K219=\"\"), \"\", Selection_Hide2!K219)","v":""},{"$f":"IF(OR(Selection_Hide2!L219=0, Selection_Hide2!L219=\"\"), \"\", Selection_Hide2!L219)","v":""},{"$f":"IF(OR(Selection_Hide2!M219=0, Selection_Hide2!M219=\"\"), \"\", Selection_Hide2!M219)","v":""},{"$f":"IF(OR(Selection_Hide2!N219=0, Selection_Hide2!N219=\"\"), \"\", Selection_Hide2!N219)","v":""},{"$f":"IF(OR(Selection_Hide2!O219=0, Selection_Hide2!O219=\"\"), \"\", Selection_Hide2!O219)","v":""},{"$f":"IF(OR(Selection_Hide2!P219=0, Selection_Hide2!P219=\"\"), \"\", Selection_Hide2!P219)","v":""},{"$f":"IF(OR(Selection_Hide2!Q219=0, Selection_Hide2!Q219=\"\"), \"\", Selection_Hide2!Q219)","v":""},{"$f":"IF(OR(Selection_Hide2!R219=0, Selection_Hide2!R219=\"\"), \"\", Selection_Hide2!R219)","v":""},{"$f":"IF(OR(Selection_Hide2!S219=0, Selection_Hide2!S219=\"\"), \"\", Selection_Hide2!S219)","v":""},{"$f":"IF(OR(Selection_Hide2!T219=0, Selection_Hide2!T219=\"\"), \"\", Selection_Hide2!T219)","v":""},{"$f":"IF(OR(Selection_Hide2!U219=0, Selection_Hide2!U219=\"\"), \"\", Selection_Hide2!U219)","v":""},{"$f":"IF(OR(Selection_Hide2!V219=0, Selection_Hide2!V219=\"\"), \"\", Selection_Hide2!V219)","v":""},{"$f":"IF(OR(Selection_Hide2!W219=0, Selection_Hide2!W219=\"\"), \"\", Selection_Hide2!W219)","v":""},{"$f":"IF(OR(Selection_Hide2!X219=0, Selection_Hide2!X219=\"\"), \"\", Selection_Hide2!X219)","v":""},{"$f":"IF(OR(Selection_Hide2!Y219=0, Selection_Hide2!Y219=\"\"), \"\", Selection_Hide2!Y219)","v":""},{"$f":"IF(OR(Selection_Hide2!Z219=0, Selection_Hide2!Z219=\"\"), \"\", Selection_Hide2!Z219)","v":""},{"$f":"IF(OR(Selection_Hide2!AA219=0, Selection_Hide2!AA219=\"\"), \"\", Selection_Hide2!AA219)","v":""},{"$f":"IF(OR(Selection_Hide2!AB219=0, Selection_Hide2!AB219=\"\"), \"\", Selection_Hide2!AB219)","v":""}]
[{"$f":"IF(OR(Selection_Hide2!A220=0, Selection_Hide2!A220=\"\"), \"\", Selection_Hide2!A220)","v":""},{"$f":"IF(OR(Selection_Hide2!B220=0, Selection_Hide2!B220=\"\"), \"\", Selection_Hide2!B220)","v":""},{"$f":"IF(OR(Selection_Hide2!C220=0, Selection_Hide2!C220=\"\"), \"\", Selection_Hide2!C220)","v":""},{"$f":"IF(OR(Selection_Hide2!D220=0, Selection_Hide2!D220=\"\"), \"\", Selection_Hide2!D220)","v":""},{"$f":"IF(OR(Selection_Hide2!E220=0, Selection_Hide2!E220=\"\"), \"\", Selection_Hide2!E220)","v":""},{"$f":"IF(OR(Selection_Hide2!F220=0, Selection_Hide2!F220=\"\"), \"\", Selection_Hide2!F220)","v":""},{"$f":"IF(OR(Selection_Hide2!G220=0, Selection_Hide2!G220=\"\"), \"\", Selection_Hide2!G220)","v":""},{"$f":"IF(OR(Selection_Hide2!H220=0, Selection_Hide2!H220=\"\"), \"\", Selection_Hide2!H220)","v":""},{"$f":"IF(OR(Selection_Hide2!I220=0, Selection_Hide2!I220=\"\"), \"\", Selection_Hide2!I220)","v":""},{"$f":"IF(OR(Selection_Hide2!J220=0, Selection_Hide2!J220=\"\"), \"\", Selection_Hide2!J220)","v":""},{"$f":"IF(OR(Selection_Hide2!K220=0, Selection_Hide2!K220=\"\"), \"\", Selection_Hide2!K220)","v":""},{"$f":"IF(OR(Selection_Hide2!L220=0, Selection_Hide2!L220=\"\"), \"\", Selection_Hide2!L220)","v":""},{"$f":"IF(OR(Selection_Hide2!M220=0, Selection_Hide2!M220=\"\"), \"\", Selection_Hide2!M220)","v":""},{"$f":"IF(OR(Selection_Hide2!N220=0, Selection_Hide2!N220=\"\"), \"\", Selection_Hide2!N220)","v":""},{"$f":"IF(OR(Selection_Hide2!O220=0, Selection_Hide2!O220=\"\"), \"\", Selection_Hide2!O220)","v":""},{"$f":"IF(OR(Selection_Hide2!P220=0, Selection_Hide2!P220=\"\"), \"\", Selection_Hide2!P220)","v":""},{"$f":"IF(OR(Selection_Hide2!Q220=0, Selection_Hide2!Q220=\"\"), \"\", Selection_Hide2!Q220)","v":""},{"$f":"IF(OR(Selection_Hide2!R220=0, Selection_Hide2!R220=\"\"), \"\", Selection_Hide2!R220)","v":""},{"$f":"IF(OR(Selection_Hide2!S220=0, Selection_Hide2!S220=\"\"), \"\", Selection_Hide2!S220)","v":""},{"$f":"IF(OR(Selection_Hide2!T220=0, Selection_Hide2!T220=\"\"), \"\", Selection_Hide2!T220)","v":""},{"$f":"IF(OR(Selection_Hide2!U220=0, Selection_Hide2!U220=\"\"), \"\", Selection_Hide2!U220)","v":""},{"$f":"IF(OR(Selection_Hide2!V220=0, Selection_Hide2!V220=\"\"), \"\", Selection_Hide2!V220)","v":""},{"$f":"IF(OR(Selection_Hide2!W220=0, Selection_Hide2!W220=\"\"), \"\", Selection_Hide2!W220)","v":""},{"$f":"IF(OR(Selection_Hide2!X220=0, Selection_Hide2!X220=\"\"), \"\", Selection_Hide2!X220)","v":""},{"$f":"IF(OR(Selection_Hide2!Y220=0, Selection_Hide2!Y220=\"\"), \"\", Selection_Hide2!Y220)","v":""},{"$f":"IF(OR(Selection_Hide2!Z220=0, Selection_Hide2!Z220=\"\"), \"\", Selection_Hide2!Z220)","v":""},{"$f":"IF(OR(Selection_Hide2!AA220=0, Selection_Hide2!AA220=\"\"), \"\", Selection_Hide2!AA220)","v":""},{"$f":"IF(OR(Selection_Hide2!AB220=0, Selection_Hide2!AB220=\"\"), \"\", Selection_Hide2!AB220)","v":""}]
[{"$f":"IF(OR(Selection_Hide2!A221=0, Selection_Hide2!A221=\"\"), \"\", Selection_Hide2!A221)","v":""},{"$f":"IF(OR(Selection_Hide2!B221=0, Selection_Hide2!B221=\"\"), \"\", Selection_Hide2!B221)","v":""},{"$f":"IF(OR(Selection_Hide2!C221=0, Selection_Hide2!C221=\"\"), \"\", Selection_Hide2!C221)","v":""},{"$f":"IF(OR(Selection_Hide2!D221=0, Selection_Hide2!D221=\"\"), \"\", Selection_Hide2!D221)","v":""},{"$f":"IF(OR(Selection_Hide2!E221=0, Selection_Hide2!E221=\"\"), \"\", Selection_Hide2!E221)","v":""},{"$f":"IF(OR(Selection_Hide2!F221=0, Selection_Hide2!F221=\"\"), \"\", Selection_Hide2!F221)","v":""},{"$f":"IF(OR(Selection_Hide2!G221=0, Selection_Hide2!G221=\"\"), \"\", Selection_Hide2!G221)","v":""},{"$f":"IF(OR(Selection_Hide2!H221=0, Selection_Hide2!H221=\"\"), \"\", Selection_Hide2!H221)","v":""},{"$f":"IF(OR(Selection_Hide2!I221=0, Selection_Hide2!I221=\"\"), \"\", Selection_Hide2!I221)","v":""},{"$f":"IF(OR(Selection_Hide2!J221=0, Selection_Hide2!J221=\"\"), \"\", Selection_Hide2!J221)","v":""},{"$f":"IF(OR(Selection_Hide2!K221=0, Selection_Hide2!K221=\"\"), \"\", Selection_Hide2!K221)","v":""},{"$f":"IF(OR(Selection_Hide2!L221=0, Selection_Hide2!L221=\"\"), \"\", Selection_Hide2!L221)","v":""},{"$f":"IF(OR(Selection_Hide2!M221=0, Selection_Hide2!M221=\"\"), \"\", Selection_Hide2!M221)","v":""},{"$f":"IF(OR(Selection_Hide2!N221=0, Selection_Hide2!N221=\"\"), \"\", Selection_Hide2!N221)","v":""},{"$f":"IF(OR(Selection_Hide2!O221=0, Selection_Hide2!O221=\"\"), \"\", Selection_Hide2!O221)","v":""},{"$f":"IF(OR(Selection_Hide2!P221=0, Selection_Hide2!P221=\"\"), \"\", Selection_Hide2!P221)","v":""},{"$f":"IF(OR(Selection_Hide2!Q221=0, Selection_Hide2!Q221=\"\"), \"\", Selection_Hide2!Q221)","v":""},{"$f":"IF(OR(Selection_Hide2!R221=0, Selection_Hide2!R221=\"\"), \"\", Selection_Hide2!R221)","v":""},{"$f":"IF(OR(Selection_Hide2!S221=0, Selection_Hide2!S221=\"\"), \"\", Selection_Hide2!S221)","v":""},{"$f":"IF(OR(Selection_Hide2!T221=0, Selection_Hide2!T221=\"\"), \"\", Selection_Hide2!T221)","v":""},{"$f":"IF(OR(Selection_Hide2!U221=0, Selection_Hide2!U221=\"\"), \"\", Selection_Hide2!U221)","v":""},{"$f":"IF(OR(Selection_Hide2!V221=0, Selection_Hide2!V221=\"\"), \"\", Selection_Hide2!V221)","v":""},{"$f":"IF(OR(Selection_Hide2!W221=0, Selection_Hide2!W221=\"\"), \"\", Selection_Hide2!W221)","v":""},{"$f":"IF(OR(Selection_Hide2!X221=0, Selection_Hide2!X221=\"\"), \"\", Selection_Hide2!X221)","v":""},{"$f":"IF(OR(Selection_Hide2!Y221=0, Selection_Hide2!Y221=\"\"), \"\", Selection_Hide2!Y221)","v":""},{"$f":"IF(OR(Selection_Hide2!Z221=0, Selection_Hide2!Z221=\"\"), \"\", Selection_Hide2!Z221)","v":""},{"$f":"IF(OR(Selection_Hide2!AA221=0, Selection_Hide2!AA221=\"\"), \"\", Selection_Hide2!AA221)","v":""},{"$f":"IF(OR(Selection_Hide2!AB221=0, Selection_Hide2!AB221=\"\"), \"\", Selection_Hide2!AB221)","v":""}]
[{"$f":"IF(OR(Selection_Hide2!A222=0, Selection_Hide2!A222=\"\"), \"\", Selection_Hide2!A222)","v":""},{"$f":"IF(OR(Selection_Hide2!B222=0, Selection_Hide2!B222=\"\"), \"\", Selection_Hide2!B222)","v":""},{"$f":"IF(OR(Selection_Hide2!C222=0, Selection_Hide2!C222=\"\"), \"\", Selection_Hide2!C222)","v":""},{"$f":"IF(OR(Selection_Hide2!D222=0, Selection_Hide2!D222=\"\"), \"\", Selection_Hide2!D222)","v":""},{"$f":"IF(OR(Selection_Hide2!E222=0, Selection_Hide2!E222=\"\"), \"\", Selection_Hide2!E222)","v":""},{"$f":"IF(OR(Selection_Hide2!F222=0, Selection_Hide2!F222=\"\"), \"\", Selection_Hide2!F222)","v":""},{"$f":"IF(OR(Selection_Hide2!G222=0, Selection_Hide2!G222=\"\"), \"\", Selection_Hide2!G222)","v":""},{"$f":"IF(OR(Selection_Hide2!H222=0, Selection_Hide2!H222=\"\"), \"\", Selection_Hide2!H222)","v":""},{"$f":"IF(OR(Selection_Hide2!I222=0, Selection_Hide2!I222=\"\"), \"\", Selection_Hide2!I222)","v":""},{"$f":"IF(OR(Selection_Hide2!J222=0, Selection_Hide2!J222=\"\"), \"\", Selection_Hide2!J222)","v":""},{"$f":"IF(OR(Selection_Hide2!K222=0, Selection_Hide2!K222=\"\"), \"\", Selection_Hide2!K222)","v":""},{"$f":"IF(OR(Selection_Hide2!L222=0, Selection_Hide2!L222=\"\"), \"\", Selection_Hide2!L222)","v":""},{"$f":"IF(OR(Selection_Hide2!M222=0, Selection_Hide2!M222=\"\"), \"\", Selection_Hide2!M222)","v":""},{"$f":"IF(OR(Selection_Hide2!N222=0, Selection_Hide2!N222=\"\"), \"\", Selection_Hide2!N222)","v":""},{"$f":"IF(OR(Selection_Hide2!O222=0, Selection_Hide2!O222=\"\"), \"\", Selection_Hide2!O222)","v":""},{"$f":"IF(OR(Selection_Hide2!P222=0, Selection_Hide2!P222=\"\"), \"\", Selection_Hide2!P222)","v":""},{"$f":"IF(OR(Selection_Hide2!Q222=0, Selection_Hide2!Q222=\"\"), \"\", Selection_Hide2!Q222)","v":""},{"$f":"IF(OR(Selection_Hide2!R222=0, Selection_Hide2!R222=\"\"), \"\", Selection_Hide2!R222)","v":""},{"$f":"IF(OR(Selection_Hide2!S222=0, Selection_Hide2!S222=\"\"), \"\", Selection_Hide2!S222)","v":""},{"$f":"IF(OR(Selection_Hide2!T222=0, Selection_Hide2!T222=\"\"), \"\", Selection_Hide2!T222)","v":""},{"$f":"IF(OR(Selection_Hide2!U222=0, Selection_Hide2!U222=\"\"), \"\", Selection_Hide2!U222)","v":""},{"$f":"IF(OR(Selection_Hide2!V222=0, Selection_Hide2!V222=\"\"), \"\", Selection_Hide2!V222)","v":""},{"$f":"IF(OR(Selection_Hide2!W222=0, Selection_Hide2!W222=\"\"), \"\", Selection_Hide2!W222)","v":""},{"$f":"IF(OR(Selection_Hide2!X222=0, Selection_Hide2!X222=\"\"), \"\", Selection_Hide2!X222)","v":""},{"$f":"IF(OR(Selection_Hide2!Y222=0, Selection_Hide2!Y222=\"\"), \"\", Selection_Hide2!Y222)","v":""},{"$f":"IF(OR(Selection_Hide2!Z222=0, Selection_Hide2!Z222=\"\"), \"\", Selection_Hide2!Z222)","v":""},{"$f":"IF(OR(Selection_Hide2!AA222=0, Selection_Hide2!AA222=\"\"), \"\", Selection_Hide2!AA222)","v":""},{"$f":"IF(OR(Selection_Hide2!AB222=0, Selection_Hide2!AB222=\"\"), \"\", Selection_Hide2!AB222)","v":""}]
[{"$f":"IF(OR(Selection_Hide2!A223=0, Selection_Hide2!A223=\"\"), \"\", Selection_Hide2!A223)","v":""},{"$f":"IF(OR(Selection_Hide2!B223=0, Selection_Hide2!B223=\"\"), \"\", Selection_Hide2!B223)","v":""},{"$f":"IF(OR(Selection_Hide2!C223=0, Selection_Hide2!C223=\"\"), \"\", Selection_Hide2!C223)","v":""},{"$f":"IF(OR(Selection_Hide2!D223=0, Selection_Hide2!D223=\"\"), \"\", Selection_Hide2!D223)","v":""},{"$f":"IF(OR(Selection_Hide2!E223=0, Selection_Hide2!E223=\"\"), \"\", Selection_Hide2!E223)","v":""},{"$f":"IF(OR(Selection_Hide2!F223=0, Selection_Hide2!F223=\"\"), \"\", Selection_Hide2!F223)","v":""},{"$f":"IF(OR(Selection_Hide2!G223=0, Selection_Hide2!G223=\"\"), \"\", Selection_Hide2!G223)","v":""},{"$f":"IF(OR(Selection_Hide2!H223=0, Selection_Hide2!H223=\"\"), \"\", Selection_Hide2!H223)","v":""},{"$f":"IF(OR(Selection_Hide2!I223=0, Selection_Hide2!I223=\"\"), \"\", Selection_Hide2!I223)","v":""},{"$f":"IF(OR(Selection_Hide2!J223=0, Selection_Hide2!J223=\"\"), \"\", Selection_Hide2!J223)","v":""},{"$f":"IF(OR(Selection_Hide2!K223=0, Selection_Hide2!K223=\"\"), \"\", Selection_Hide2!K223)","v":""},{"$f":"IF(OR(Selection_Hide2!L223=0, Selection_Hide2!L223=\"\"), \"\", Selection_Hide2!L223)","v":""},{"$f":"IF(OR(Selection_Hide2!M223=0, Selection_Hide2!M223=\"\"), \"\", Selection_Hide2!M223)","v":""},{"$f":"IF(OR(Selection_Hide2!N223=0, Selection_Hide2!N223=\"\"), \"\", Selection_Hide2!N223)","v":""},{"$f":"IF(OR(Selection_Hide2!O223=0, Selection_Hide2!O223=\"\"), \"\", Selection_Hide2!O223)","v":""},{"$f":"IF(OR(Selection_Hide2!P223=0, Selection_Hide2!P223=\"\"), \"\", Selection_Hide2!P223)","v":""},{"$f":"IF(OR(Selection_Hide2!Q223=0, Selection_Hide2!Q223=\"\"), \"\", Selection_Hide2!Q223)","v":""},{"$f":"IF(OR(Selection_Hide2!R223=0, Selection_Hide2!R223=\"\"), \"\", Selection_Hide2!R223)","v":""},{"$f":"IF(OR(Selection_Hide2!S223=0, Selection_Hide2!S223=\"\"), \"\", Selection_Hide2!S223)","v":""},{"$f":"IF(OR(Selection_Hide2!T223=0, Selection_Hide2!T223=\"\"), \"\", Selection_Hide2!T223)","v":""},{"$f":"IF(OR(Selection_Hide2!U223=0, Selection_Hide2!U223=\"\"), \"\", Selection_Hide2!U223)","v":""},{"$f":"IF(OR(Selection_Hide2!V223=0, Selection_Hide2!V223=\"\"), \"\", Selection_Hide2!V223)","v":""},{"$f":"IF(OR(Selection_Hide2!W223=0, Selection_Hide2!W223=\"\"), \"\", Selection_Hide2!W223)","v":""},{"$f":"IF(OR(Selection_Hide2!X223=0, Selection_Hide2!X223=\"\"), \"\", Selection_Hide2!X223)","v":""},{"$f":"IF(OR(Selection_Hide2!Y223=0, Selection_Hide2!Y223=\"\"), \"\", Selection_Hide2!Y223)","v":""},{"$f":"IF(OR(Selection_Hide2!Z223=0, Selection_Hide2!Z223=\"\"), \"\", Selection_Hide2!Z223)","v":""},{"$f":"IF(OR(Selection_Hide2!AA223=0, Selection_Hide2!AA223=\"\"), \"\", Selection_Hide2!AA223)","v":""},{"$f":"IF(OR(Selection_Hide2!AB223=0, Selection_Hide2!AB223=\"\"), \"\", Selection_Hide2!AB223)","v":""}]
[{"$f":"IF(OR(Selection_Hide2!A224=0, Selection_Hide2!A224=\"\"), \"\", Selection_Hide2!A224)","v":""},{"$f":"IF(OR(Selection_Hide2!B224=0, Selection_Hide2!B224=\"\"), \"\", Selection_Hide2!B224)","v":""},{"$f":"IF(OR(Selection_Hide2!C224=0, Selection_Hide2!C224=\"\"), \"\", Selection_Hide2!C224)","v":""},{"$f":"IF(OR(Selection_Hide2!D224=0, Selection_Hide2!D224=\"\"), \"\", Selection_Hide2!D224)","v":""},{"$f":"IF(OR(Selection_Hide2!E224=0, Selection_Hide2!E224=\"\"), \"\", Selection_Hide2!E224)","v":""},{"$f":"IF(OR(Selection_Hide2!F224=0, Selection_Hide2!F224=\"\"), \"\", Selection_Hide2!F224)","v":""},{"$f":"IF(OR(Selection_Hide2!G224=0, Selection_Hide2!G224=\"\"), \"\", Selection_Hide2!G224)","v":""},{"$f":"IF(OR(Selection_Hide2!H224=0, Selection_Hide2!H224=\"\"), \"\", Selection_Hide2!H224)","v":""},{"$f":"IF(OR(Selection_Hide2!I224=0, Selection_Hide2!I224=\"\"), \"\", Selection_Hide2!I224)","v":""},{"$f":"IF(OR(Selection_Hide2!J224=0, Selection_Hide2!J224=\"\"), \"\", Selection_Hide2!J224)","v":""},{"$f":"IF(OR(Selection_Hide2!K224=0, Selection_Hide2!K224=\"\"), \"\", Selection_Hide2!K224)","v":""},{"$f":"IF(OR(Selection_Hide2!L224=0, Selection_Hide2!L224=\"\"), \"\", Selection_Hide2!L224)","v":""},{"$f":"IF(OR(Selection_Hide2!M224=0, Selection_Hide2!M224=\"\"), \"\", Selection_Hide2!M224)","v":""},{"$f":"IF(OR(Selection_Hide2!N224=0, Selection_Hide2!N224=\"\"), \"\", Selection_Hide2!N224)","v":""},{"$f":"IF(OR(Selection_Hide2!O224=0, Selection_Hide2!O224=\"\"), \"\", Selection_Hide2!O224)","v":""},{"$f":"IF(OR(Selection_Hide2!P224=0, Selection_Hide2!P224=\"\"), \"\", Selection_Hide2!P224)","v":""},{"$f":"IF(OR(Selection_Hide2!Q224=0, Selection_Hide2!Q224=\"\"), \"\", Selection_Hide2!Q224)","v":""},{"$f":"IF(OR(Selection_Hide2!R224=0, Selection_Hide2!R224=\"\"), \"\", Selection_Hide2!R224)","v":""},{"$f":"IF(OR(Selection_Hide2!S224=0, Selection_Hide2!S224=\"\"), \"\", Selection_Hide2!S224)","v":""},{"$f":"IF(OR(Selection_Hide2!T224=0, Selection_Hide2!T224=\"\"), \"\", Selection_Hide2!T224)","v":""},{"$f":"IF(OR(Selection_Hide2!U224=0, Selection_Hide2!U224=\"\"), \"\", Selection_Hide2!U224)","v":""},{"$f":"IF(OR(Selection_Hide2!V224=0, Selection_Hide2!V224=\"\"), \"\", Selection_Hide2!V224)","v":""},{"$f":"IF(OR(Selection_Hide2!W224=0, Selection_Hide2!W224=\"\"), \"\", Selection_Hide2!W224)","v":""},{"$f":"IF(OR(Selection_Hide2!X224=0, Selection_Hide2!X224=\"\"), \"\", Selection_Hide2!X224)","v":""},{"$f":"IF(OR(Selection_Hide2!Y224=0, Selection_Hide2!Y224=\"\"), \"\", Selection_Hide2!Y224)","v":""},{"$f":"IF(OR(Selection_Hide2!Z224=0, Selection_Hide2!Z224=\"\"), \"\", Selection_Hide2!Z224)","v":""},{"$f":"IF(OR(Selection_Hide2!AA224=0, Selection_Hide2!AA224=\"\"), \"\", Selection_Hide2!AA224)","v":""},{"$f":"IF(OR(Selection_Hide2!AB224=0, Selection_Hide2!AB224=\"\"), \"\", Selection_Hide2!AB224)","v":""}]
[{"$f":"IF(OR(Selection_Hide2!A225=0, Selection_Hide2!A225=\"\"), \"\", Selection_Hide2!A225)","v":""},{"$f":"IF(OR(Selection_Hide2!B225=0, Selection_Hide2!B225=\"\"), \"\", Selection_Hide2!B225)","v":""},{"$f":"IF(OR(Selection_Hide2!C225=0, Selection_Hide2!C225=\"\"), \"\", Selection_Hide2!C225)","v":""},{"$f":"IF(OR(Selection_Hide2!D225=0, Selection_Hide2!D225=\"\"), \"\", Selection_Hide2!D225)","v":""},{"$f":"IF(OR(Selection_Hide2!E225=0, Selection_Hide2!E225=\"\"), \"\", Selection_Hide2!E225)","v":""},{"$f":"IF(OR(Selection_Hide2!F225=0, Selection_Hide2!F225=\"\"), \"\", Selection_Hide2!F225)","v":""},{"$f":"IF(OR(Selection_Hide2!G225=0, Selection_Hide2!G225=\"\"), \"\", Selection_Hide2!G225)","v":""},{"$f":"IF(OR(Selection_Hide2!H225=0, Selection_Hide2!H225=\"\"), \"\", Selection_Hide2!H225)","v":""},{"$f":"IF(OR(Selection_Hide2!I225=0, Selection_Hide2!I225=\"\"), \"\", Selection_Hide2!I225)","v":""},{"$f":"IF(OR(Selection_Hide2!J225=0, Selection_Hide2!J225=\"\"), \"\", Selection_Hide2!J225)","v":""},{"$f":"IF(OR(Selection_Hide2!K225=0, Selection_Hide2!K225=\"\"), \"\", Selection_Hide2!K225)","v":""},{"$f":"IF(OR(Selection_Hide2!L225=0, Selection_Hide2!L225=\"\"), \"\", Selection_Hide2!L225)","v":""},{"$f":"IF(OR(Selection_Hide2!M225=0, Selection_Hide2!M225=\"\"), \"\", Selection_Hide2!M225)","v":""},{"$f":"IF(OR(Selection_Hide2!N225=0, Selection_Hide2!N225=\"\"), \"\", Selection_Hide2!N225)","v":""},{"$f":"IF(OR(Selection_Hide2!O225=0, Selection_Hide2!O225=\"\"), \"\", Selection_Hide2!O225)","v":""},{"$f":"IF(OR(Selection_Hide2!P225=0, Selection_Hide2!P225=\"\"), \"\", Selection_Hide2!P225)","v":""},{"$f":"IF(OR(Selection_Hide2!Q225=0, Selection_Hide2!Q225=\"\"), \"\", Selection_Hide2!Q225)","v":""},{"$f":"IF(OR(Selection_Hide2!R225=0, Selection_Hide2!R225=\"\"), \"\", Selection_Hide2!R225)","v":""},{"$f":"IF(OR(Selection_Hide2!S225=0, Selection_Hide2!S225=\"\"), \"\", Selection_Hide2!S225)","v":""},{"$f":"IF(OR(Selection_Hide2!T225=0, Selection_Hide2!T225=\"\"), \"\", Selection_Hide2!T225)","v":""},{"$f":"IF(OR(Selection_Hide2!U225=0, Selection_Hide2!U225=\"\"), \"\", Selection_Hide2!U225)","v":""},{"$f":"IF(OR(Selection_Hide2!V225=0, Selection_Hide2!V225=\"\"), \"\", Selection_Hide2!V225)","v":""},{"$f":"IF(OR(Selection_Hide2!W225=0, Selection_Hide2!W225=\"\"), \"\", Selection_Hide2!W225)","v":""},{"$f":"IF(OR(Selection_Hide2!X225=0, Selection_Hide2!X225=\"\"), \"\", Selection_Hide2!X225)","v":""},{"$f":"IF(OR(Selection_Hide2!Y225=0, Selection_Hide2!Y225=\"\"), \"\", Selection_Hide2!Y225)","v":""},{"$f":"IF(OR(Selection_Hide2!Z225=0, Selection_Hide2!Z225=\"\"), \"\", Selection_Hide2!Z225)","v":""},{"$f":"IF(OR(Selection_Hide2!AA225=0, Selection_Hide2!AA225=\"\"), \"\", Selection_Hide2!AA225)","v":""},{"$f":"IF(OR(Selection_Hide2!AB225=0, Selection_Hide2!AB225=\"\"), \"\", Selection_Hide2!AB225)","v":""}]
[{"$f":"IF(OR(Selection_Hide2!A226=0, Selection_Hide2!A226=\"\"), \"\", Selection_Hide2!A226)","v":""},{"$f":"IF(OR(Selection_Hide2!B226=0, Selection_Hide2!B226=\"\"), \"\", Selection_Hide2!B226)","v":""},{"$f":"IF(OR(Selection_Hide2!C226=0, Selection_Hide2!C226=\"\"), \"\", Selection_Hide2!C226)","v":""},{"$f":"IF(OR(Selection_Hide2!D226=0, Selection_Hide2!D226=\"\"), \"\", Selection_Hide2!D226)","v":""},{"$f":"IF(OR(Selection_Hide2!E226=0, Selection_Hide2!E226=\"\"), \"\", Selection_Hide2!E226)","v":""},{"$f":"IF(OR(Selection_Hide2!F226=0, Selection_Hide2!F226=\"\"), \"\", Selection_Hide2!F226)","v":""},{"$f":"IF(OR(Selection_Hide2!G226=0, Selection_Hide2!G226=\"\"), \"\", Selection_Hide2!G226)","v":""},{"$f":"IF(OR(Selection_Hide2!H226=0, Selection_Hide2!H226=\"\"), \"\", Selection_Hide2!H226)","v":""},{"$f":"IF(OR(Selection_Hide2!I226=0, Selection_Hide2!I226=\"\"), \"\", Selection_Hide2!I226)","v":""},{"$f":"IF(OR(Selection_Hide2!J226=0, Selection_Hide2!J226=\"\"), \"\", Selection_Hide2!J226)","v":""},{"$f":"IF(OR(Selection_Hide2!K226=0, Selection_Hide2!K226=\"\"), \"\", Selection_Hide2!K226)","v":""},{"$f":"IF(OR(Selection_Hide2!L226=0, Selection_Hide2!L226=\"\"), \"\", Selection_Hide2!L226)","v":""},{"$f":"IF(OR(Selection_Hide2!M226=0, Selection_Hide2!M226=\"\"), \"\", Selection_Hide2!M226)","v":""},{"$f":"IF(OR(Selection_Hide2!N226=0, Selection_Hide2!N226=\"\"), \"\", Selection_Hide2!N226)","v":""},{"$f":"IF(OR(Selection_Hide2!O226=0, Selection_Hide2!O226=\"\"), \"\", Selection_Hide2!O226)","v":""},{"$f":"IF(OR(Selection_Hide2!P226=0, Selection_Hide2!P226=\"\"), \"\", Selection_Hide2!P226)","v":""},{"$f":"IF(OR(Selection_Hide2!Q226=0, Selection_Hide2!Q226=\"\"), \"\", Selection_Hide2!Q226)","v":""},{"$f":"IF(OR(Selection_Hide2!R226=0, Selection_Hide2!R226=\"\"), \"\", Selection_Hide2!R226)","v":""},{"$f":"IF(OR(Selection_Hide2!S226=0, Selection_Hide2!S226=\"\"), \"\", Selection_Hide2!S226)","v":""},{"$f":"IF(OR(Selection_Hide2!T226=0, Selection_Hide2!T226=\"\"), \"\", Selection_Hide2!T226)","v":""},{"$f":"IF(OR(Selection_Hide2!U226=0, Selection_Hide2!U226=\"\"), \"\", Selection_Hide2!U226)","v":""},{"$f":"IF(OR(Selection_Hide2!V226=0, Selection_Hide2!V226=\"\"), \"\", Selection_Hide2!V226)","v":""},{"$f":"IF(OR(Selection_Hide2!W226=0, Selection_Hide2!W226=\"\"), \"\", Selection_Hide2!W226)","v":""},{"$f":"IF(OR(Selection_Hide2!X226=0, Selection_Hide2!X226=\"\"), \"\", Selection_Hide2!X226)","v":""},{"$f":"IF(OR(Selection_Hide2!Y226=0, Selection_Hide2!Y226=\"\"), \"\", Selection_Hide2!Y226)","v":""},{"$f":"IF(OR(Selection_Hide2!Z226=0, Selection_Hide2!Z226=\"\"), \"\", Selection_Hide2!Z226)","v":""},{"$f":"IF(OR(Selection_Hide2!AA226=0, Selection_Hide2!AA226=\"\"), \"\", Selection_Hide2!AA226)","v":""},{"$f":"IF(OR(Selection_Hide2!AB226=0, Selection_Hide2!AB226=\"\"), \"\", Selection_Hide2!AB226)","v":""}]
[{"$f":"IF(OR(Selection_Hide2!A227=0, Selection_Hide2!A227=\"\"), \"\", Selection_Hide2!A227)","v":""},{"$f":"IF(OR(Selection_Hide2!B227=0, Selection_Hide2!B227=\"\"), \"\", Selection_Hide2!B227)","v":""},{"$f":"IF(OR(Selection_Hide2!C227=0, Selection_Hide2!C227=\"\"), \"\", Selection_Hide2!C227)","v":""},{"$f":"IF(OR(Selection_Hide2!D227=0, Selection_Hide2!D227=\"\"), \"\", Selection_Hide2!D227)","v":""},{"$f":"IF(OR(Selection_Hide2!E227=0, Selection_Hide2!E227=\"\"), \"\", Selection_Hide2!E227)","v":""},{"$f":"IF(OR(Selection_Hide2!F227=0, Selection_Hide2!F227=\"\"), \"\", Selection_Hide2!F227)","v":""},{"$f":"IF(OR(Selection_Hide2!G227=0, Selection_Hide2!G227=\"\"), \"\", Selection_Hide2!G227)","v":""},{"$f":"IF(OR(Selection_Hide2!H227=0, Selection_Hide2!H227=\"\"), \"\", Selection_Hide2!H227)","v":""},{"$f":"IF(OR(Selection_Hide2!I227=0, Selection_Hide2!I227=\"\"), \"\", Selection_Hide2!I227)","v":""},{"$f":"IF(OR(Selection_Hide2!J227=0, Selection_Hide2!J227=\"\"), \"\", Selection_Hide2!J227)","v":""},{"$f":"IF(OR(Selection_Hide2!K227=0, Selection_Hide2!K227=\"\"), \"\", Selection_Hide2!K227)","v":""},{"$f":"IF(OR(Selection_Hide2!L227=0, Selection_Hide2!L227=\"\"), \"\", Selection_Hide2!L227)","v":""},{"$f":"IF(OR(Selection_Hide2!M227=0, Selection_Hide2!M227=\"\"), \"\", Selection_Hide2!M227)","v":""},{"$f":"IF(OR(Selection_Hide2!N227=0, Selection_Hide2!N227=\"\"), \"\", Selection_Hide2!N227)","v":""},{"$f":"IF(OR(Selection_Hide2!O227=0, Selection_Hide2!O227=\"\"), \"\", Selection_Hide2!O227)","v":""},{"$f":"IF(OR(Selection_Hide2!P227=0, Selection_Hide2!P227=\"\"), \"\", Selection_Hide2!P227)","v":""},{"$f":"IF(OR(Selection_Hide2!Q227=0, Selection_Hide2!Q227=\"\"), \"\", Selection_Hide2!Q227)","v":""},{"$f":"IF(OR(Selection_Hide2!R227=0, Selection_Hide2!R227=\"\"), \"\", Selection_Hide2!R227)","v":""},{"$f":"IF(OR(Selection_Hide2!S227=0, Selection_Hide2!S227=\"\"), \"\", Selection_Hide2!S227)","v":""},{"$f":"IF(OR(Selection_Hide2!T227=0, Selection_Hide2!T227=\"\"), \"\", Selection_Hide2!T227)","v":""},{"$f":"IF(OR(Selection_Hide2!U227=0, Selection_Hide2!U227=\"\"), \"\", Selection_Hide2!U227)","v":""},{"$f":"IF(OR(Selection_Hide2!V227=0, Selection_Hide2!V227=\"\"), \"\", Selection_Hide2!V227)","v":""},{"$f":"IF(OR(Selection_Hide2!W227=0, Selection_Hide2!W227=\"\"), \"\", Selection_Hide2!W227)","v":""},{"$f":"IF(OR(Selection_Hide2!X227=0, Selection_Hide2!X227=\"\"), \"\", Selection_Hide2!X227)","v":""},{"$f":"IF(OR(Selection_Hide2!Y227=0, Selection_Hide2!Y227=\"\"), \"\", Selection_Hide2!Y227)","v":""},{"$f":"IF(OR(Selection_Hide2!Z227=0, Selection_Hide2!Z227=\"\"), \"\", Selection_Hide2!Z227)","v":""},{"$f":"IF(OR(Selection_Hide2!AA227=0, Selection_Hide2!AA227=\"\"), \"\", Selection_Hide2!AA227)","v":""},{"$f":"IF(OR(Selection_Hide2!AB227=0, Selection_Hide2!AB227=\"\"), \"\", Selection_Hide2!AB227)","v":""}]
[{"$f":"IF(OR(Selection_Hide2!A228=0, Selection_Hide2!A228=\"\"), \"\", Selection_Hide2!A228)","v":""},{"$f":"IF(OR(Selection_Hide2!B228=0, Selection_Hide2!B228=\"\"), \"\", Selection_Hide2!B228)","v":""},{"$f":"IF(OR(Selection_Hide2!C228=0, Selection_Hide2!C228=\"\"), \"\", Selection_Hide2!C228)","v":""},{"$f":"IF(OR(Selection_Hide2!D228=0, Selection_Hide2!D228=\"\"), \"\", Selection_Hide2!D228)","v":""},{"$f":"IF(OR(Selection_Hide2!E228=0, Selection_Hide2!E228=\"\"), \"\", Selection_Hide2!E228)","v":""},{"$f":"IF(OR(Selection_Hide2!F228=0, Selection_Hide2!F228=\"\"), \"\", Selection_Hide2!F228)","v":""},{"$f":"IF(OR(Selection_Hide2!G228=0, Selection_Hide2!G228=\"\"), \"\", Selection_Hide2!G228)","v":""},{"$f":"IF(OR(Selection_Hide2!H228=0, Selection_Hide2!H228=\"\"), \"\", Selection_Hide2!H228)","v":""},{"$f":"IF(OR(Selection_Hide2!I228=0, Selection_Hide2!I228=\"\"), \"\", Selection_Hide2!I228)","v":""},{"$f":"IF(OR(Selection_Hide2!J228=0, Selection_Hide2!J228=\"\"), \"\", Selection_Hide2!J228)","v":""},{"$f":"IF(OR(Selection_Hide2!K228=0, Selection_Hide2!K228=\"\"), \"\", Selection_Hide2!K228)","v":""},{"$f":"IF(OR(Selection_Hide2!L228=0, Selection_Hide2!L228=\"\"), \"\", Selection_Hide2!L228)","v":""},{"$f":"IF(OR(Selection_Hide2!M228=0, Selection_Hide2!M228=\"\"), \"\", Selection_Hide2!M228)","v":""},{"$f":"IF(OR(Selection_Hide2!N228=0, Selection_Hide2!N228=\"\"), \"\", Selection_Hide2!N228)","v":""},{"$f":"IF(OR(Selection_Hide2!O228=0, Selection_Hide2!O228=\"\"), \"\", Selection_Hide2!O228)","v":""},{"$f":"IF(OR(Selection_Hide2!P228=0, Selection_Hide2!P228=\"\"), \"\", Selection_Hide2!P228)","v":""},{"$f":"IF(OR(Selection_Hide2!Q228=0, Selection_Hide2!Q228=\"\"), \"\", Selection_Hide2!Q228)","v":""},{"$f":"IF(OR(Selection_Hide2!R228=0, Selection_Hide2!R228=\"\"), \"\", Selection_Hide2!R228)","v":""},{"$f":"IF(OR(Selection_Hide2!S228=0, Selection_Hide2!S228=\"\"), \"\", Selection_Hide2!S228)","v":""},{"$f":"IF(OR(Selection_Hide2!T228=0, Selection_Hide2!T228=\"\"), \"\", Selection_Hide2!T228)","v":""},{"$f":"IF(OR(Selection_Hide2!U228=0, Selection_Hide2!U228=\"\"), \"\", Selection_Hide2!U228)","v":""},{"$f":"IF(OR(Selection_Hide2!V228=0, Selection_Hide2!V228=\"\"), \"\", Selection_Hide2!V228)","v":""},{"$f":"IF(OR(Selection_Hide2!W228=0, Selection_Hide2!W228=\"\"), \"\", Selection_Hide2!W228)","v":""},{"$f":"IF(OR(Selection_Hide2!X228=0, Selection_Hide2!X228=\"\"), \"\", Selection_Hide2!X228)","v":""},{"$f":"IF(OR(Selection_Hide2!Y228=0, Selection_Hide2!Y228=\"\"), \"\", Selection_Hide2!Y228)","v":""},{"$f":"IF(OR(Selection_Hide2!Z228=0, Selection_Hide2!Z228=\"\"), \"\", Selection_Hide2!Z228)","v":""},{"$f":"IF(OR(Selection_Hide2!AA228=0, Selection_Hide2!AA228=\"\"), \"\", Selection_Hide2!AA228)","v":""},{"$f":"IF(OR(Selection_Hide2!AB228=0, Selection_Hide2!AB228=\"\"), \"\", Selection_Hide2!AB228)","v":""}]
[{"$f":"IF(OR(Selection_Hide2!A229=0, Selection_Hide2!A229=\"\"), \"\", Selection_Hide2!A229)","v":""},{"$f":"IF(OR(Selection_Hide2!B229=0, Selection_Hide2!B229=\"\"), \"\", Selection_Hide2!B229)","v":""},{"$f":"IF(OR(Selection_Hide2!C229=0, Selection_Hide2!C229=\"\"), \"\", Selection_Hide2!C229)","v":""},{"$f":"IF(OR(Selection_Hide2!D229=0, Selection_Hide2!D229=\"\"), \"\", Selection_Hide2!D229)","v":""},{"$f":"IF(OR(Selection_Hide2!E229=0, Selection_Hide2!E229=\"\"), \"\", Selection_Hide2!E229)","v":""},{"$f":"IF(OR(Selection_Hide2!F229=0, Selection_Hide2!F229=\"\"), \"\", Selection_Hide2!F229)","v":""},{"$f":"IF(OR(Selection_Hide2!G229=0, Selection_Hide2!G229=\"\"), \"\", Selection_Hide2!G229)","v":""},{"$f":"IF(OR(Selection_Hide2!H229=0, Selection_Hide2!H229=\"\"), \"\", Selection_Hide2!H229)","v":""},{"$f":"IF(OR(Selection_Hide2!I229=0, Selection_Hide2!I229=\"\"), \"\", Selection_Hide2!I229)","v":""},{"$f":"IF(OR(Selection_Hide2!J229=0, Selection_Hide2!J229=\"\"), \"\", Selection_Hide2!J229)","v":""},{"$f":"IF(OR(Selection_Hide2!K229=0, Selection_Hide2!K229=\"\"), \"\", Selection_Hide2!K229)","v":""},{"$f":"IF(OR(Selection_Hide2!L229=0, Selection_Hide2!L229=\"\"), \"\", Selection_Hide2!L229)","v":""},{"$f":"IF(OR(Selection_Hide2!M229=0, Selection_Hide2!M229=\"\"), \"\", Selection_Hide2!M229)","v":""},{"$f":"IF(OR(Selection_Hide2!N229=0, Selection_Hide2!N229=\"\"), \"\", Selection_Hide2!N229)","v":""},{"$f":"IF(OR(Selection_Hide2!O229=0, Selection_Hide2!O229=\"\"), \"\", Selection_Hide2!O229)","v":""},{"$f":"IF(OR(Selection_Hide2!P229=0, Selection_Hide2!P229=\"\"), \"\", Selection_Hide2!P229)","v":""},{"$f":"IF(OR(Selection_Hide2!Q229=0, Selection_Hide2!Q229=\"\"), \"\", Selection_Hide2!Q229)","v":""},{"$f":"IF(OR(Selection_Hide2!R229=0, Selection_Hide2!R229=\"\"), \"\", Selection_Hide2!R229)","v":""},{"$f":"IF(OR(Selection_Hide2!S229=0, Selection_Hide2!S229=\"\"), \"\", Selection_Hide2!S229)","v":""},{"$f":"IF(OR(Selection_Hide2!T229=0, Selection_Hide2!T229=\"\"), \"\", Selection_Hide2!T229)","v":""},{"$f":"IF(OR(Selection_Hide2!U229=0, Selection_Hide2!U229=\"\"), \"\", Selection_Hide2!U229)","v":""},{"$f":"IF(OR(Selection_Hide2!V229=0, Selection_Hide2!V229=\"\"), \"\", Selection_Hide2!V229)","v":""},{"$f":"IF(OR(Selection_Hide2!W229=0, Selection_Hide2!W229=\"\"), \"\", Selection_Hide2!W229)","v":""},{"$f":"IF(OR(Selection_Hide2!X229=0, Selection_Hide2!X229=\"\"), \"\", Selection_Hide2!X229)","v":""},{"$f":"IF(OR(Selection_Hide2!Y229=0, Selection_Hide2!Y229=\"\"), \"\", Selection_Hide2!Y229)","v":""},{"$f":"IF(OR(Selection_Hide2!Z229=0, Selection_Hide2!Z229=\"\"), \"\", Selection_Hide2!Z229)","v":""},{"$f":"IF(OR(Selection_Hide2!AA229=0, Selection_Hide2!AA229=\"\"), \"\", Selection_Hide2!AA229)","v":""},{"$f":"IF(OR(Selection_Hide2!AB229=0, Selection_Hide2!AB229=\"\"), \"\", Selection_Hide2!AB229)","v":""}]
[{"$f":"IF(OR(Selection_Hide2!A230=0, Selection_Hide2!A230=\"\"), \"\", Selection_Hide2!A230)","v":""},{"$f":"IF(OR(Selection_Hide2!B230=0, Selection_Hide2!B230=\"\"), \"\", Selection_Hide2!B230)","v":""},{"$f":"IF(OR(Selection_Hide2!C230=0, Selection_Hide2!C230=\"\"), \"\", Selection_Hide2!C230)","v":""},{"$f":"IF(OR(Selection_Hide2!D230=0, Selection_Hide2!D230=\"\"), \"\", Selection_Hide2!D230)","v":""},{"$f":"IF(OR(Selection_Hide2!E230=0, Selection_Hide2!E230=\"\"), \"\", Selection_Hide2!E230)","v":""},{"$f":"IF(OR(Selection_Hide2!F230=0, Selection_Hide2!F230=\"\"), \"\", Selection_Hide2!F230)","v":""},{"$f":"IF(OR(Selection_Hide2!G230=0, Selection_Hide2!G230=\"\"), \"\", Selection_Hide2!G230)","v":""},{"$f":"IF(OR(Selection_Hide2!H230=0, Selection_Hide2!H230=\"\"), \"\", Selection_Hide2!H230)","v":""},{"$f":"IF(OR(Selection_Hide2!I230=0, Selection_Hide2!I230=\"\"), \"\", Selection_Hide2!I230)","v":""},{"$f":"IF(OR(Selection_Hide2!J230=0, Selection_Hide2!J230=\"\"), \"\", Selection_Hide2!J230)","v":""},{"$f":"IF(OR(Selection_Hide2!K230=0, Selection_Hide2!K230=\"\"), \"\", Selection_Hide2!K230)","v":""},{"$f":"IF(OR(Selection_Hide2!L230=0, Selection_Hide2!L230=\"\"), \"\", Selection_Hide2!L230)","v":""},{"$f":"IF(OR(Selection_Hide2!M230=0, Selection_Hide2!M230=\"\"), \"\", Selection_Hide2!M230)","v":""},{"$f":"IF(OR(Selection_Hide2!N230=0, Selection_Hide2!N230=\"\"), \"\", Selection_Hide2!N230)","v":""},{"$f":"IF(OR(Selection_Hide2!O230=0, Selection_Hide2!O230=\"\"), \"\", Selection_Hide2!O230)","v":""},{"$f":"IF(OR(Selection_Hide2!P230=0, Selection_Hide2!P230=\"\"), \"\", Selection_Hide2!P230)","v":""},{"$f":"IF(OR(Selection_Hide2!Q230=0, Selection_Hide2!Q230=\"\"), \"\", Selection_Hide2!Q230)","v":""},{"$f":"IF(OR(Selection_Hide2!R230=0, Selection_Hide2!R230=\"\"), \"\", Selection_Hide2!R230)","v":""},{"$f":"IF(OR(Selection_Hide2!S230=0, Selection_Hide2!S230=\"\"), \"\", Selection_Hide2!S230)","v":""},{"$f":"IF(OR(Selection_Hide2!T230=0, Selection_Hide2!T230=\"\"), \"\", Selection_Hide2!T230)","v":""},{"$f":"IF(OR(Selection_Hide2!U230=0, Selection_Hide2!U230=\"\"), \"\", Selection_Hide2!U230)","v":""},{"$f":"IF(OR(Selection_Hide2!V230=0, Selection_Hide2!V230=\"\"), \"\", Selection_Hide2!V230)","v":""},{"$f":"IF(OR(Selection_Hide2!W230=0, Selection_Hide2!W230=\"\"), \"\", Selection_Hide2!W230)","v":""},{"$f":"IF(OR(Selection_Hide2!X230=0, Selection_Hide2!X230=\"\"), \"\", Selection_Hide2!X230)","v":""},{"$f":"IF(OR(Selection_Hide2!Y230=0, Selection_Hide2!Y230=\"\"), \"\", Selection_Hide2!Y230)","v":""},{"$f":"IF(OR(Selection_Hide2!Z230=0, Selection_Hide2!Z230=\"\"), \"\", Selection_Hide2!Z230)","v":""},{"$f":"IF(OR(Selection_Hide2!AA230=0, Selection_Hide2!AA230=\"\"), \"\", Selection_Hide2!AA230)","v":""},{"$f":"IF(OR(Selection_Hide2!AB230=0, Selection_Hide2!AB230=\"\"), \"\", Selection_Hide2!AB230)","v":""}]
[{"$f":"IF(OR(Selection_Hide2!A231=0, Selection_Hide2!A231=\"\"), \"\", Selection_Hide2!A231)","v":""},{"$f":"IF(OR(Selection_Hide2!B231=0, Selection_Hide2!B231=\"\"), \"\", Selection_Hide2!B231)","v":""},{"$f":"IF(OR(Selection_Hide2!C231=0, Selection_Hide2!C231=\"\"), \"\", Selection_Hide2!C231)","v":""},{"$f":"IF(OR(Selection_Hide2!D231=0, Selection_Hide2!D231=\"\"), \"\", Selection_Hide2!D231)","v":""},{"$f":"IF(OR(Selection_Hide2!E231=0, Selection_Hide2!E231=\"\"), \"\", Selection_Hide2!E231)","v":""},{"$f":"IF(OR(Selection_Hide2!F231=0, Selection_Hide2!F231=\"\"), \"\", Selection_Hide2!F231)","v":""},{"$f":"IF(OR(Selection_Hide2!G231=0, Selection_Hide2!G231=\"\"), \"\", Selection_Hide2!G231)","v":""},{"$f":"IF(OR(Selection_Hide2!H231=0, Selection_Hide2!H231=\"\"), \"\", Selection_Hide2!H231)","v":""},{"$f":"IF(OR(Selection_Hide2!I231=0, Selection_Hide2!I231=\"\"), \"\", Selection_Hide2!I231)","v":""},{"$f":"IF(OR(Selection_Hide2!J231=0, Selection_Hide2!J231=\"\"), \"\", Selection_Hide2!J231)","v":""},{"$f":"IF(OR(Selection_Hide2!K231=0, Selection_Hide2!K231=\"\"), \"\", Selection_Hide2!K231)","v":""},{"$f":"IF(OR(Selection_Hide2!L231=0, Selection_Hide2!L231=\"\"), \"\", Selection_Hide2!L231)","v":""},{"$f":"IF(OR(Selection_Hide2!M231=0, Selection_Hide2!M231=\"\"), \"\", Selection_Hide2!M231)","v":""},{"$f":"IF(OR(Selection_Hide2!N231=0, Selection_Hide2!N231=\"\"), \"\", Selection_Hide2!N231)","v":""},{"$f":"IF(OR(Selection_Hide2!O231=0, Selection_Hide2!O231=\"\"), \"\", Selection_Hide2!O231)","v":""},{"$f":"IF(OR(Selection_Hide2!P231=0, Selection_Hide2!P231=\"\"), \"\", Selection_Hide2!P231)","v":""},{"$f":"IF(OR(Selection_Hide2!Q231=0, Selection_Hide2!Q231=\"\"), \"\", Selection_Hide2!Q231)","v":""},{"$f":"IF(OR(Selection_Hide2!R231=0, Selection_Hide2!R231=\"\"), \"\", Selection_Hide2!R231)","v":""},{"$f":"IF(OR(Selection_Hide2!S231=0, Selection_Hide2!S231=\"\"), \"\", Selection_Hide2!S231)","v":""},{"$f":"IF(OR(Selection_Hide2!T231=0, Selection_Hide2!T231=\"\"), \"\", Selection_Hide2!T231)","v":""},{"$f":"IF(OR(Selection_Hide2!U231=0, Selection_Hide2!U231=\"\"), \"\", Selection_Hide2!U231)","v":""},{"$f":"IF(OR(Selection_Hide2!V231=0, Selection_Hide2!V231=\"\"), \"\", Selection_Hide2!V231)","v":""},{"$f":"IF(OR(Selection_Hide2!W231=0, Selection_Hide2!W231=\"\"), \"\", Selection_Hide2!W231)","v":""},{"$f":"IF(OR(Selection_Hide2!X231=0, Selection_Hide2!X231=\"\"), \"\", Selection_Hide2!X231)","v":""},{"$f":"IF(OR(Selection_Hide2!Y231=0, Selection_Hide2!Y231=\"\"), \"\", Selection_Hide2!Y231)","v":""},{"$f":"IF(OR(Selection_Hide2!Z231=0, Selection_Hide2!Z231=\"\"), \"\", Selection_Hide2!Z231)","v":""},{"$f":"IF(OR(Selection_Hide2!AA231=0, Selection_Hide2!AA231=\"\"), \"\", Selection_Hide2!AA231)","v":""},{"$f":"IF(OR(Selection_Hide2!AB231=0, Selection_Hide2!AB231=\"\"), \"\", Selection_Hide2!AB231)","v":""}]
[{"$f":"IF(OR(Selection_Hide2!A232=0, Selection_Hide2!A232=\"\"), \"\", Selection_Hide2!A232)","v":""},{"$f":"IF(OR(Selection_Hide2!B232=0, Selection_Hide2!B232=\"\"), \"\", Selection_Hide2!B232)","v":""},{"$f":"IF(OR(Selection_Hide2!C232=0, Selection_Hide2!C232=\"\"), \"\", Selection_Hide2!C232)","v":""},{"$f":"IF(OR(Selection_Hide2!D232=0, Selection_Hide2!D232=\"\"), \"\", Selection_Hide2!D232)","v":""},{"$f":"IF(OR(Selection_Hide2!E232=0, Selection_Hide2!E232=\"\"), \"\", Selection_Hide2!E232)","v":""},{"$f":"IF(OR(Selection_Hide2!F232=0, Selection_Hide2!F232=\"\"), \"\", Selection_Hide2!F232)","v":""},{"$f":"IF(OR(Selection_Hide2!G232=0, Selection_Hide2!G232=\"\"), \"\", Selection_Hide2!G232)","v":""},{"$f":"IF(OR(Selection_Hide2!H232=0, Selection_Hide2!H232=\"\"), \"\", Selection_Hide2!H232)","v":""},{"$f":"IF(OR(Selection_Hide2!I232=0, Selection_Hide2!I232=\"\"), \"\", Selection_Hide2!I232)","v":""},{"$f":"IF(OR(Selection_Hide2!J232=0, Selection_Hide2!J232=\"\"), \"\", Selection_Hide2!J232)","v":""},{"$f":"IF(OR(Selection_Hide2!K232=0, Selection_Hide2!K232=\"\"), \"\", Selection_Hide2!K232)","v":""},{"$f":"IF(OR(Selection_Hide2!L232=0, Selection_Hide2!L232=\"\"), \"\", Selection_Hide2!L232)","v":""},{"$f":"IF(OR(Selection_Hide2!M232=0, Selection_Hide2!M232=\"\"), \"\", Selection_Hide2!M232)","v":""},{"$f":"IF(OR(Selection_Hide2!N232=0, Selection_Hide2!N232=\"\"), \"\", Selection_Hide2!N232)","v":""},{"$f":"IF(OR(Selection_Hide2!O232=0, Selection_Hide2!O232=\"\"), \"\", Selection_Hide2!O232)","v":""},{"$f":"IF(OR(Selection_Hide2!P232=0, Selection_Hide2!P232=\"\"), \"\", Selection_Hide2!P232)","v":""},{"$f":"IF(OR(Selection_Hide2!Q232=0, Selection_Hide2!Q232=\"\"), \"\", Selection_Hide2!Q232)","v":""},{"$f":"IF(OR(Selection_Hide2!R232=0, Selection_Hide2!R232=\"\"), \"\", Selection_Hide2!R232)","v":""},{"$f":"IF(OR(Selection_Hide2!S232=0, Selection_Hide2!S232=\"\"), \"\", Selection_Hide2!S232)","v":""},{"$f":"IF(OR(Selection_Hide2!T232=0, Selection_Hide2!T232=\"\"), \"\", Selection_Hide2!T232)","v":""},{"$f":"IF(OR(Selection_Hide2!U232=0, Selection_Hide2!U232=\"\"), \"\", Selection_Hide2!U232)","v":""},{"$f":"IF(OR(Selection_Hide2!V232=0, Selection_Hide2!V232=\"\"), \"\", Selection_Hide2!V232)","v":""},{"$f":"IF(OR(Selection_Hide2!W232=0, Selection_Hide2!W232=\"\"), \"\", Selection_Hide2!W232)","v":""},{"$f":"IF(OR(Selection_Hide2!X232=0, Selection_Hide2!X232=\"\"), \"\", Selection_Hide2!X232)","v":""},{"$f":"IF(OR(Selection_Hide2!Y232=0, Selection_Hide2!Y232=\"\"), \"\", Selection_Hide2!Y232)","v":""},{"$f":"IF(OR(Selection_Hide2!Z232=0, Selection_Hide2!Z232=\"\"), \"\", Selection_Hide2!Z232)","v":""},{"$f":"IF(OR(Selection_Hide2!AA232=0, Selection_Hide2!AA232=\"\"), \"\", Selection_Hide2!AA232)","v":""},{"$f":"IF(OR(Selection_Hide2!AB232=0, Selection_Hide2!AB232=\"\"), \"\", Selection_Hide2!AB232)","v":""}]
[{"$f":"IF(OR(Selection_Hide2!A233=0, Selection_Hide2!A233=\"\"), \"\", Selection_Hide2!A233)","v":""},{"$f":"IF(OR(Selection_Hide2!B233=0, Selection_Hide2!B233=\"\"), \"\", Selection_Hide2!B233)","v":""},{"$f":"IF(OR(Selection_Hide2!C233=0, Selection_Hide2!C233=\"\"), \"\", Selection_Hide2!C233)","v":""},{"$f":"IF(OR(Selection_Hide2!D233=0, Selection_Hide2!D233=\"\"), \"\", Selection_Hide2!D233)","v":""},{"$f":"IF(OR(Selection_Hide2!E233=0, Selection_Hide2!E233=\"\"), \"\", Selection_Hide2!E233)","v":""},{"$f":"IF(OR(Selection_Hide2!F233=0, Selection_Hide2!F233=\"\"), \"\", Selection_Hide2!F233)","v":""},{"$f":"IF(OR(Selection_Hide2!G233=0, Selection_Hide2!G233=\"\"), \"\", Selection_Hide2!G233)","v":""},{"$f":"IF(OR(Selection_Hide2!H233=0, Selection_Hide2!H233=\"\"), \"\", Selection_Hide2!H233)","v":""},{"$f":"IF(OR(Selection_Hide2!I233=0, Selection_Hide2!I233=\"\"), \"\", Selection_Hide2!I233)","v":""},{"$f":"IF(OR(Selection_Hide2!J233=0, Selection_Hide2!J233=\"\"), \"\", Selection_Hide2!J233)","v":""},{"$f":"IF(OR(Selection_Hide2!K233=0, Selection_Hide2!K233=\"\"), \"\", Selection_Hide2!K233)","v":""},{"$f":"IF(OR(Selection_Hide2!L233=0, Selection_Hide2!L233=\"\"), \"\", Selection_Hide2!L233)","v":""},{"$f":"IF(OR(Selection_Hide2!M233=0, Selection_Hide2!M233=\"\"), \"\", Selection_Hide2!M233)","v":""},{"$f":"IF(OR(Selection_Hide2!N233=0, Selection_Hide2!N233=\"\"), \"\", Selection_Hide2!N233)","v":""},{"$f":"IF(OR(Selection_Hide2!O233=0, Selection_Hide2!O233=\"\"), \"\", Selection_Hide2!O233)","v":""},{"$f":"IF(OR(Selection_Hide2!P233=0, Selection_Hide2!P233=\"\"), \"\", Selection_Hide2!P233)","v":""},{"$f":"IF(OR(Selection_Hide2!Q233=0, Selection_Hide2!Q233=\"\"), \"\", Selection_Hide2!Q233)","v":""},{"$f":"IF(OR(Selection_Hide2!R233=0, Selection_Hide2!R233=\"\"), \"\", Selection_Hide2!R233)","v":""},{"$f":"IF(OR(Selection_Hide2!S233=0, Selection_Hide2!S233=\"\"), \"\", Selection_Hide2!S233)","v":""},{"$f":"IF(OR(Selection_Hide2!T233=0, Selection_Hide2!T233=\"\"), \"\", Selection_Hide2!T233)","v":""},{"$f":"IF(OR(Selection_Hide2!U233=0, Selection_Hide2!U233=\"\"), \"\", Selection_Hide2!U233)","v":""},{"$f":"IF(OR(Selection_Hide2!V233=0, Selection_Hide2!V233=\"\"), \"\", Selection_Hide2!V233)","v":""},{"$f":"IF(OR(Selection_Hide2!W233=0, Selection_Hide2!W233=\"\"), \"\", Selection_Hide2!W233)","v":""},{"$f":"IF(OR(Selection_Hide2!X233=0, Selection_Hide2!X233=\"\"), \"\", Selection_Hide2!X233)","v":""},{"$f":"IF(OR(Selection_Hide2!Y233=0, Selection_Hide2!Y233=\"\"), \"\", Selection_Hide2!Y233)","v":""},{"$f":"IF(OR(Selection_Hide2!Z233=0, Selection_Hide2!Z233=\"\"), \"\", Selection_Hide2!Z233)","v":""},{"$f":"IF(OR(Selection_Hide2!AA233=0, Selection_Hide2!AA233=\"\"), \"\", Selection_Hide2!AA233)","v":""},{"$f":"IF(OR(Selection_Hide2!AB233=0, Selection_Hide2!AB233=\"\"), \"\", Selection_Hide2!AB233)","v":""}]
[{"$f":"IF(OR(Selection_Hide2!A234=0, Selection_Hide2!A234=\"\"), \"\", Selection_Hide2!A234)","v":""},{"$f":"IF(OR(Selection_Hide2!B234=0, Selection_Hide2!B234=\"\"), \"\", Selection_Hide2!B234)","v":""},{"$f":"IF(OR(Selection_Hide2!C234=0, Selection_Hide2!C234=\"\"), \"\", Selection_Hide2!C234)","v":""},{"$f":"IF(OR(Selection_Hide2!D234=0, Selection_Hide2!D234=\"\"), \"\", Selection_Hide2!D234)","v":""},{"$f":"IF(OR(Selection_Hide2!E234=0, Selection_Hide2!E234=\"\"), \"\", Selection_Hide2!E234)","v":""},{"$f":"IF(OR(Selection_Hide2!F234=0, Selection_Hide2!F234=\"\"), \"\", Selection_Hide2!F234)","v":""},{"$f":"IF(OR(Selection_Hide2!G234=0, Selection_Hide2!G234=\"\"), \"\", Selection_Hide2!G234)","v":""},{"$f":"IF(OR(Selection_Hide2!H234=0, Selection_Hide2!H234=\"\"), \"\", Selection_Hide2!H234)","v":""},{"$f":"IF(OR(Selection_Hide2!I234=0, Selection_Hide2!I234=\"\"), \"\", Selection_Hide2!I234)","v":""},{"$f":"IF(OR(Selection_Hide2!J234=0, Selection_Hide2!J234=\"\"), \"\", Selection_Hide2!J234)","v":""},{"$f":"IF(OR(Selection_Hide2!K234=0, Selection_Hide2!K234=\"\"), \"\", Selection_Hide2!K234)","v":""},{"$f":"IF(OR(Selection_Hide2!L234=0, Selection_Hide2!L234=\"\"), \"\", Selection_Hide2!L234)","v":""},{"$f":"IF(OR(Selection_Hide2!M234=0, Selection_Hide2!M234=\"\"), \"\", Selection_Hide2!M234)","v":""},{"$f":"IF(OR(Selection_Hide2!N234=0, Selection_Hide2!N234=\"\"), \"\", Selection_Hide2!N234)","v":""},{"$f":"IF(OR(Selection_Hide2!O234=0, Selection_Hide2!O234=\"\"), \"\", Selection_Hide2!O234)","v":""},{"$f":"IF(OR(Selection_Hide2!P234=0, Selection_Hide2!P234=\"\"), \"\", Selection_Hide2!P234)","v":""},{"$f":"IF(OR(Selection_Hide2!Q234=0, Selection_Hide2!Q234=\"\"), \"\", Selection_Hide2!Q234)","v":""},{"$f":"IF(OR(Selection_Hide2!R234=0, Selection_Hide2!R234=\"\"), \"\", Selection_Hide2!R234)","v":""},{"$f":"IF(OR(Selection_Hide2!S234=0, Selection_Hide2!S234=\"\"), \"\", Selection_Hide2!S234)","v":""},{"$f":"IF(OR(Selection_Hide2!T234=0, Selection_Hide2!T234=\"\"), \"\", Selection_Hide2!T234)","v":""},{"$f":"IF(OR(Selection_Hide2!U234=0, Selection_Hide2!U234=\"\"), \"\", Selection_Hide2!U234)","v":""},{"$f":"IF(OR(Selection_Hide2!V234=0, Selection_Hide2!V234=\"\"), \"\", Selection_Hide2!V234)","v":""},{"$f":"IF(OR(Selection_Hide2!W234=0, Selection_Hide2!W234=\"\"), \"\", Selection_Hide2!W234)","v":""},{"$f":"IF(OR(Selection_Hide2!X234=0, Selection_Hide2!X234=\"\"), \"\", Selection_Hide2!X234)","v":""},{"$f":"IF(OR(Selection_Hide2!Y234=0, Selection_Hide2!Y234=\"\"), \"\", Selection_Hide2!Y234)","v":""},{"$f":"IF(OR(Selection_Hide2!Z234=0, Selection_Hide2!Z234=\"\"), \"\", Selection_Hide2!Z234)","v":""},{"$f":"IF(OR(Selection_Hide2!AA234=0, Selection_Hide2!AA234=\"\"), \"\", Selection_Hide2!AA234)","v":""},{"$f":"IF(OR(Selection_Hide2!AB234=0, Selection_Hide2!AB234=\"\"), \"\", Selection_Hide2!AB234)","v":""}]
[{"$f":"IF(OR(Selection_Hide2!A235=0, Selection_Hide2!A235=\"\"), \"\", Selection_Hide2!A235)","v":""},{"$f":"IF(OR(Selection_Hide2!B235=0, Selection_Hide2!B235=\"\"), \"\", Selection_Hide2!B235)","v":""},{"$f":"IF(OR(Selection_Hide2!C235=0, Selection_Hide2!C235=\"\"), \"\", Selection_Hide2!C235)","v":""},{"$f":"IF(OR(Selection_Hide2!D235=0, Selection_Hide2!D235=\"\"), \"\", Selection_Hide2!D235)","v":""},{"$f":"IF(OR(Selection_Hide2!E235=0, Selection_Hide2!E235=\"\"), \"\", Selection_Hide2!E235)","v":""},{"$f":"IF(OR(Selection_Hide2!F235=0, Selection_Hide2!F235=\"\"), \"\", Selection_Hide2!F235)","v":""},{"$f":"IF(OR(Selection_Hide2!G235=0, Selection_Hide2!G235=\"\"), \"\", Selection_Hide2!G235)","v":""},{"$f":"IF(OR(Selection_Hide2!H235=0, Selection_Hide2!H235=\"\"), \"\", Selection_Hide2!H235)","v":""},{"$f":"IF(OR(Selection_Hide2!I235=0, Selection_Hide2!I235=\"\"), \"\", Selection_Hide2!I235)","v":""},{"$f":"IF(OR(Selection_Hide2!J235=0, Selection_Hide2!J235=\"\"), \"\", Selection_Hide2!J235)","v":""},{"$f":"IF(OR(Selection_Hide2!K235=0, Selection_Hide2!K235=\"\"), \"\", Selection_Hide2!K235)","v":""},{"$f":"IF(OR(Selection_Hide2!L235=0, Selection_Hide2!L235=\"\"), \"\", Selection_Hide2!L235)","v":""},{"$f":"IF(OR(Selection_Hide2!M235=0, Selection_Hide2!M235=\"\"), \"\", Selection_Hide2!M235)","v":""},{"$f":"IF(OR(Selection_Hide2!N235=0, Selection_Hide2!N235=\"\"), \"\", Selection_Hide2!N235)","v":""},{"$f":"IF(OR(Selection_Hide2!O235=0, Selection_Hide2!O235=\"\"), \"\", Selection_Hide2!O235)","v":""},{"$f":"IF(OR(Selection_Hide2!P235=0, Selection_Hide2!P235=\"\"), \"\", Selection_Hide2!P235)","v":""},{"$f":"IF(OR(Selection_Hide2!Q235=0, Selection_Hide2!Q235=\"\"), \"\", Selection_Hide2!Q235)","v":""},{"$f":"IF(OR(Selection_Hide2!R235=0, Selection_Hide2!R235=\"\"), \"\", Selection_Hide2!R235)","v":""},{"$f":"IF(OR(Selection_Hide2!S235=0, Selection_Hide2!S235=\"\"), \"\", Selection_Hide2!S235)","v":""},{"$f":"IF(OR(Selection_Hide2!T235=0, Selection_Hide2!T235=\"\"), \"\", Selection_Hide2!T235)","v":""},{"$f":"IF(OR(Selection_Hide2!U235=0, Selection_Hide2!U235=\"\"), \"\", Selection_Hide2!U235)","v":""},{"$f":"IF(OR(Selection_Hide2!V235=0, Selection_Hide2!V235=\"\"), \"\", Selection_Hide2!V235)","v":""},{"$f":"IF(OR(Selection_Hide2!W235=0, Selection_Hide2!W235=\"\"), \"\", Selection_Hide2!W235)","v":""},{"$f":"IF(OR(Selection_Hide2!X235=0, Selection_Hide2!X235=\"\"), \"\", Selection_Hide2!X235)","v":""},{"$f":"IF(OR(Selection_Hide2!Y235=0, Selection_Hide2!Y235=\"\"), \"\", Selection_Hide2!Y235)","v":""},{"$f":"IF(OR(Selection_Hide2!Z235=0, Selection_Hide2!Z235=\"\"), \"\", Selection_Hide2!Z235)","v":""},{"$f":"IF(OR(Selection_Hide2!AA235=0, Selection_Hide2!AA235=\"\"), \"\", Selection_Hide2!AA235)","v":""},{"$f":"IF(OR(Selection_Hide2!AB235=0, Selection_Hide2!AB235=\"\"), \"\", Selection_Hide2!AB235)","v":""}]
[{"$f":"IF(OR(Selection_Hide2!A236=0, Selection_Hide2!A236=\"\"), \"\", Selection_Hide2!A236)","v":""},{"$f":"IF(OR(Selection_Hide2!B236=0, Selection_Hide2!B236=\"\"), \"\", Selection_Hide2!B236)","v":""},{"$f":"IF(OR(Selection_Hide2!C236=0, Selection_Hide2!C236=\"\"), \"\", Selection_Hide2!C236)","v":""},{"$f":"IF(OR(Selection_Hide2!D236=0, Selection_Hide2!D236=\"\"), \"\", Selection_Hide2!D236)","v":""},{"$f":"IF(OR(Selection_Hide2!E236=0, Selection_Hide2!E236=\"\"), \"\", Selection_Hide2!E236)","v":""},{"$f":"IF(OR(Selection_Hide2!F236=0, Selection_Hide2!F236=\"\"), \"\", Selection_Hide2!F236)","v":""},{"$f":"IF(OR(Selection_Hide2!G236=0, Selection_Hide2!G236=\"\"), \"\", Selection_Hide2!G236)","v":""},{"$f":"IF(OR(Selection_Hide2!H236=0, Selection_Hide2!H236=\"\"), \"\", Selection_Hide2!H236)","v":""},{"$f":"IF(OR(Selection_Hide2!I236=0, Selection_Hide2!I236=\"\"), \"\", Selection_Hide2!I236)","v":""},{"$f":"IF(OR(Selection_Hide2!J236=0, Selection_Hide2!J236=\"\"), \"\", Selection_Hide2!J236)","v":""},{"$f":"IF(OR(Selection_Hide2!K236=0, Selection_Hide2!K236=\"\"), \"\", Selection_Hide2!K236)","v":""},{"$f":"IF(OR(Selection_Hide2!L236=0, Selection_Hide2!L236=\"\"), \"\", Selection_Hide2!L236)","v":""},{"$f":"IF(OR(Selection_Hide2!M236=0, Selection_Hide2!M236=\"\"), \"\", Selection_Hide2!M236)","v":""},{"$f":"IF(OR(Selection_Hide2!N236=0, Selection_Hide2!N236=\"\"), \"\", Selection_Hide2!N236)","v":""},{"$f":"IF(OR(Selection_Hide2!O236=0, Selection_Hide2!O236=\"\"), \"\", Selection_Hide2!O236)","v":""},{"$f":"IF(OR(Selection_Hide2!P236=0, Selection_Hide2!P236=\"\"), \"\", Selection_Hide2!P236)","v":""},{"$f":"IF(OR(Selection_Hide2!Q236=0, Selection_Hide2!Q236=\"\"), \"\", Selection_Hide2!Q236)","v":""},{"$f":"IF(OR(Selection_Hide2!R236=0, Selection_Hide2!R236=\"\"), \"\", Selection_Hide2!R236)","v":""},{"$f":"IF(OR(Selection_Hide2!S236=0, Selection_Hide2!S236=\"\"), \"\", Selection_Hide2!S236)","v":""},{"$f":"IF(OR(Selection_Hide2!T236=0, Selection_Hide2!T236=\"\"), \"\", Selection_Hide2!T236)","v":""},{"$f":"IF(OR(Selection_Hide2!U236=0, Selection_Hide2!U236=\"\"), \"\", Selection_Hide2!U236)","v":""},{"$f":"IF(OR(Selection_Hide2!V236=0, Selection_Hide2!V236=\"\"), \"\", Selection_Hide2!V236)","v":""},{"$f":"IF(OR(Selection_Hide2!W236=0, Selection_Hide2!W236=\"\"), \"\", Selection_Hide2!W236)","v":""},{"$f":"IF(OR(Selection_Hide2!X236=0, Selection_Hide2!X236=\"\"), \"\", Selection_Hide2!X236)","v":""},{"$f":"IF(OR(Selection_Hide2!Y236=0, Selection_Hide2!Y236=\"\"), \"\", Selection_Hide2!Y236)","v":""},{"$f":"IF(OR(Selection_Hide2!Z236=0, Selection_Hide2!Z236=\"\"), \"\", Selection_Hide2!Z236)","v":""},{"$f":"IF(OR(Selection_Hide2!AA236=0, Selection_Hide2!AA236=\"\"), \"\", Selection_Hide2!AA236)","v":""},{"$f":"IF(OR(Selection_Hide2!AB236=0, Selection_Hide2!AB236=\"\"), \"\", Selection_Hide2!AB236)","v":""}]
[{"$f":"IF(OR(Selection_Hide2!A237=0, Selection_Hide2!A237=\"\"), \"\", Selection_Hide2!A237)","v":""},{"$f":"IF(OR(Selection_Hide2!B237=0, Selection_Hide2!B237=\"\"), \"\", Selection_Hide2!B237)","v":""},{"$f":"IF(OR(Selection_Hide2!C237=0, Selection_Hide2!C237=\"\"), \"\", Selection_Hide2!C237)","v":""},{"$f":"IF(OR(Selection_Hide2!D237=0, Selection_Hide2!D237=\"\"), \"\", Selection_Hide2!D237)","v":""},{"$f":"IF(OR(Selection_Hide2!E237=0, Selection_Hide2!E237=\"\"), \"\", Selection_Hide2!E237)","v":""},{"$f":"IF(OR(Selection_Hide2!F237=0, Selection_Hide2!F237=\"\"), \"\", Selection_Hide2!F237)","v":""},{"$f":"IF(OR(Selection_Hide2!G237=0, Selection_Hide2!G237=\"\"), \"\", Selection_Hide2!G237)","v":""},{"$f":"IF(OR(Selection_Hide2!H237=0, Selection_Hide2!H237=\"\"), \"\", Selection_Hide2!H237)","v":""},{"$f":"IF(OR(Selection_Hide2!I237=0, Selection_Hide2!I237=\"\"), \"\", Selection_Hide2!I237)","v":""},{"$f":"IF(OR(Selection_Hide2!J237=0, Selection_Hide2!J237=\"\"), \"\", Selection_Hide2!J237)","v":""},{"$f":"IF(OR(Selection_Hide2!K237=0, Selection_Hide2!K237=\"\"), \"\", Selection_Hide2!K237)","v":""},{"$f":"IF(OR(Selection_Hide2!L237=0, Selection_Hide2!L237=\"\"), \"\", Selection_Hide2!L237)","v":""},{"$f":"IF(OR(Selection_Hide2!M237=0, Selection_Hide2!M237=\"\"), \"\", Selection_Hide2!M237)","v":""},{"$f":"IF(OR(Selection_Hide2!N237=0, Selection_Hide2!N237=\"\"), \"\", Selection_Hide2!N237)","v":""},{"$f":"IF(OR(Selection_Hide2!O237=0, Selection_Hide2!O237=\"\"), \"\", Selection_Hide2!O237)","v":""},{"$f":"IF(OR(Selection_Hide2!P237=0, Selection_Hide2!P237=\"\"), \"\", Selection_Hide2!P237)","v":""},{"$f":"IF(OR(Selection_Hide2!Q237=0, Selection_Hide2!Q237=\"\"), \"\", Selection_Hide2!Q237)","v":""},{"$f":"IF(OR(Selection_Hide2!R237=0, Selection_Hide2!R237=\"\"), \"\", Selection_Hide2!R237)","v":""},{"$f":"IF(OR(Selection_Hide2!S237=0, Selection_Hide2!S237=\"\"), \"\", Selection_Hide2!S237)","v":""},{"$f":"IF(OR(Selection_Hide2!T237=0, Selection_Hide2!T237=\"\"), \"\", Selection_Hide2!T237)","v":""},{"$f":"IF(OR(Selection_Hide2!U237=0, Selection_Hide2!U237=\"\"), \"\", Selection_Hide2!U237)","v":""},{"$f":"IF(OR(Selection_Hide2!V237=0, Selection_Hide2!V237=\"\"), \"\", Selection_Hide2!V237)","v":""},{"$f":"IF(OR(Selection_Hide2!W237=0, Selection_Hide2!W237=\"\"), \"\", Selection_Hide2!W237)","v":""},{"$f":"IF(OR(Selection_Hide2!X237=0, Selection_Hide2!X237=\"\"), \"\", Selection_Hide2!X237)","v":""},{"$f":"IF(OR(Selection_Hide2!Y237=0, Selection_Hide2!Y237=\"\"), \"\", Selection_Hide2!Y237)","v":""},{"$f":"IF(OR(Selection_Hide2!Z237=0, Selection_Hide2!Z237=\"\"), \"\", Selection_Hide2!Z237)","v":""},{"$f":"IF(OR(Selection_Hide2!AA237=0, Selection_Hide2!AA237=\"\"), \"\", Selection_Hide2!AA237)","v":""},{"$f":"IF(OR(Selection_Hide2!AB237=0, Selection_Hide2!AB237=\"\"), \"\", Selection_Hide2!AB237)","v":""}]
[{"$f":"IF(OR(Selection_Hide2!A238=0, Selection_Hide2!A238=\"\"), \"\", Selection_Hide2!A238)","v":""},{"$f":"IF(OR(Selection_Hide2!B238=0, Selection_Hide2!B238=\"\"), \"\", Selection_Hide2!B238)","v":""},{"$f":"IF(OR(Selection_Hide2!C238=0, Selection_Hide2!C238=\"\"), \"\", Selection_Hide2!C238)","v":""},{"$f":"IF(OR(Selection_Hide2!D238=0, Selection_Hide2!D238=\"\"), \"\", Selection_Hide2!D238)","v":""},{"$f":"IF(OR(Selection_Hide2!E238=0, Selection_Hide2!E238=\"\"), \"\", Selection_Hide2!E238)","v":""},{"$f":"IF(OR(Selection_Hide2!F238=0, Selection_Hide2!F238=\"\"), \"\", Selection_Hide2!F238)","v":""},{"$f":"IF(OR(Selection_Hide2!G238=0, Selection_Hide2!G238=\"\"), \"\", Selection_Hide2!G238)","v":""},{"$f":"IF(OR(Selection_Hide2!H238=0, Selection_Hide2!H238=\"\"), \"\", Selection_Hide2!H238)","v":""},{"$f":"IF(OR(Selection_Hide2!I238=0, Selection_Hide2!I238=\"\"), \"\", Selection_Hide2!I238)","v":""},{"$f":"IF(OR(Selection_Hide2!J238=0, Selection_Hide2!J238=\"\"), \"\", Selection_Hide2!J238)","v":""},{"$f":"IF(OR(Selection_Hide2!K238=0, Selection_Hide2!K238=\"\"), \"\", Selection_Hide2!K238)","v":""},{"$f":"IF(OR(Selection_Hide2!L238=0, Selection_Hide2!L238=\"\"), \"\", Selection_Hide2!L238)","v":""},{"$f":"IF(OR(Selection_Hide2!M238=0, Selection_Hide2!M238=\"\"), \"\", Selection_Hide2!M238)","v":""},{"$f":"IF(OR(Selection_Hide2!N238=0, Selection_Hide2!N238=\"\"), \"\", Selection_Hide2!N238)","v":""},{"$f":"IF(OR(Selection_Hide2!O238=0, Selection_Hide2!O238=\"\"), \"\", Selection_Hide2!O238)","v":""},{"$f":"IF(OR(Selection_Hide2!P238=0, Selection_Hide2!P238=\"\"), \"\", Selection_Hide2!P238)","v":""},{"$f":"IF(OR(Selection_Hide2!Q238=0, Selection_Hide2!Q238=\"\"), \"\", Selection_Hide2!Q238)","v":""},{"$f":"IF(OR(Selection_Hide2!R238=0, Selection_Hide2!R238=\"\"), \"\", Selection_Hide2!R238)","v":""},{"$f":"IF(OR(Selection_Hide2!S238=0, Selection_Hide2!S238=\"\"), \"\", Selection_Hide2!S238)","v":""},{"$f":"IF(OR(Selection_Hide2!T238=0, Selection_Hide2!T238=\"\"), \"\", Selection_Hide2!T238)","v":""},{"$f":"IF(OR(Selection_Hide2!U238=0, Selection_Hide2!U238=\"\"), \"\", Selection_Hide2!U238)","v":""},{"$f":"IF(OR(Selection_Hide2!V238=0, Selection_Hide2!V238=\"\"), \"\", Selection_Hide2!V238)","v":""},{"$f":"IF(OR(Selection_Hide2!W238=0, Selection_Hide2!W238=\"\"), \"\", Selection_Hide2!W238)","v":""},{"$f":"IF(OR(Selection_Hide2!X238=0, Selection_Hide2!X238=\"\"), \"\", Selection_Hide2!X238)","v":""},{"$f":"IF(OR(Selection_Hide2!Y238=0, Selection_Hide2!Y238=\"\"), \"\", Selection_Hide2!Y238)","v":""},{"$f":"IF(OR(Selection_Hide2!Z238=0, Selection_Hide2!Z238=\"\"), \"\", Selection_Hide2!Z238)","v":""},{"$f":"IF(OR(Selection_Hide2!AA238=0, Selection_Hide2!AA238=\"\"), \"\", Selection_Hide2!AA238)","v":""},{"$f":"IF(OR(Selection_Hide2!AB238=0, Selection_Hide2!AB238=\"\"), \"\", Selection_Hide2!AB238)","v":""}]
[{"$f":"IF(OR(Selection_Hide2!A239=0, Selection_Hide2!A239=\"\"), \"\", Selection_Hide2!A239)","v":""},{"$f":"IF(OR(Selection_Hide2!B239=0, Selection_Hide2!B239=\"\"), \"\", Selection_Hide2!B239)","v":""},{"$f":"IF(OR(Selection_Hide2!C239=0, Selection_Hide2!C239=\"\"), \"\", Selection_Hide2!C239)","v":""},{"$f":"IF(OR(Selection_Hide2!D239=0, Selection_Hide2!D239=\"\"), \"\", Selection_Hide2!D239)","v":""},{"$f":"IF(OR(Selection_Hide2!E239=0, Selection_Hide2!E239=\"\"), \"\", Selection_Hide2!E239)","v":""},{"$f":"IF(OR(Selection_Hide2!F239=0, Selection_Hide2!F239=\"\"), \"\", Selection_Hide2!F239)","v":""},{"$f":"IF(OR(Selection_Hide2!G239=0, Selection_Hide2!G239=\"\"), \"\", Selection_Hide2!G239)","v":""},{"$f":"IF(OR(Selection_Hide2!H239=0, Selection_Hide2!H239=\"\"), \"\", Selection_Hide2!H239)","v":""},{"$f":"IF(OR(Selection_Hide2!I239=0, Selection_Hide2!I239=\"\"), \"\", Selection_Hide2!I239)","v":""},{"$f":"IF(OR(Selection_Hide2!J239=0, Selection_Hide2!J239=\"\"), \"\", Selection_Hide2!J239)","v":""},{"$f":"IF(OR(Selection_Hide2!K239=0, Selection_Hide2!K239=\"\"), \"\", Selection_Hide2!K239)","v":""},{"$f":"IF(OR(Selection_Hide2!L239=0, Selection_Hide2!L239=\"\"), \"\", Selection_Hide2!L239)","v":""},{"$f":"IF(OR(Selection_Hide2!M239=0, Selection_Hide2!M239=\"\"), \"\", Selection_Hide2!M239)","v":""},{"$f":"IF(OR(Selection_Hide2!N239=0, Selection_Hide2!N239=\"\"), \"\", Selection_Hide2!N239)","v":""},{"$f":"IF(OR(Selection_Hide2!O239=0, Selection_Hide2!O239=\"\"), \"\", Selection_Hide2!O239)","v":""},{"$f":"IF(OR(Selection_Hide2!P239=0, Selection_Hide2!P239=\"\"), \"\", Selection_Hide2!P239)","v":""},{"$f":"IF(OR(Selection_Hide2!Q239=0, Selection_Hide2!Q239=\"\"), \"\", Selection_Hide2!Q239)","v":""},{"$f":"IF(OR(Selection_Hide2!R239=0, Selection_Hide2!R239=\"\"), \"\", Selection_Hide2!R239)","v":""},{"$f":"IF(OR(Selection_Hide2!S239=0, Selection_Hide2!S239=\"\"), \"\", Selection_Hide2!S239)","v":""},{"$f":"IF(OR(Selection_Hide2!T239=0, Selection_Hide2!T239=\"\"), \"\", Selection_Hide2!T239)","v":""},{"$f":"IF(OR(Selection_Hide2!U239=0, Selection_Hide2!U239=\"\"), \"\", Selection_Hide2!U239)","v":""},{"$f":"IF(OR(Selection_Hide2!V239=0, Selection_Hide2!V239=\"\"), \"\", Selection_Hide2!V239)","v":""},{"$f":"IF(OR(Selection_Hide2!W239=0, Selection_Hide2!W239=\"\"), \"\", Selection_Hide2!W239)","v":""},{"$f":"IF(OR(Selection_Hide2!X239=0, Selection_Hide2!X239=\"\"), \"\", Selection_Hide2!X239)","v":""},{"$f":"IF(OR(Selection_Hide2!Y239=0, Selection_Hide2!Y239=\"\"), \"\", Selection_Hide2!Y239)","v":""},{"$f":"IF(OR(Selection_Hide2!Z239=0, Selection_Hide2!Z239=\"\"), \"\", Selection_Hide2!Z239)","v":""},{"$f":"IF(OR(Selection_Hide2!AA239=0, Selection_Hide2!AA239=\"\"), \"\", Selection_Hide2!AA239)","v":""},{"$f":"IF(OR(Selection_Hide2!AB239=0, Selection_Hide2!AB239=\"\"), \"\", Selection_Hide2!AB239)","v":""}]
[{"$f":"IF(OR(Selection_Hide2!A240=0, Selection_Hide2!A240=\"\"), \"\", Selection_Hide2!A240)","v":""},{"$f":"IF(OR(Selection_Hide2!B240=0, Selection_Hide2!B240=\"\"), \"\", Selection_Hide2!B240)","v":""},{"$f":"IF(OR(Selection_Hide2!C240=0, Selection_Hide2!C240=\"\"), \"\", Selection_Hide2!C240)","v":""},{"$f":"IF(OR(Selection_Hide2!D240=0, Selection_Hide2!D240=\"\"), \"\", Selection_Hide2!D240)","v":""},{"$f":"IF(OR(Selection_Hide2!E240=0, Selection_Hide2!E240=\"\"), \"\", Selection_Hide2!E240)","v":""},{"$f":"IF(OR(Selection_Hide2!F240=0, Selection_Hide2!F240=\"\"), \"\", Selection_Hide2!F240)","v":""},{"$f":"IF(OR(Selection_Hide2!G240=0, Selection_Hide2!G240=\"\"), \"\", Selection_Hide2!G240)","v":""},{"$f":"IF(OR(Selection_Hide2!H240=0, Selection_Hide2!H240=\"\"), \"\", Selection_Hide2!H240)","v":""},{"$f":"IF(OR(Selection_Hide2!I240=0, Selection_Hide2!I240=\"\"), \"\", Selection_Hide2!I240)","v":""},{"$f":"IF(OR(Selection_Hide2!J240=0, Selection_Hide2!J240=\"\"), \"\", Selection_Hide2!J240)","v":""},{"$f":"IF(OR(Selection_Hide2!K240=0, Selection_Hide2!K240=\"\"), \"\", Selection_Hide2!K240)","v":""},{"$f":"IF(OR(Selection_Hide2!L240=0, Selection_Hide2!L240=\"\"), \"\", Selection_Hide2!L240)","v":""},{"$f":"IF(OR(Selection_Hide2!M240=0, Selection_Hide2!M240=\"\"), \"\", Selection_Hide2!M240)","v":""},{"$f":"IF(OR(Selection_Hide2!N240=0, Selection_Hide2!N240=\"\"), \"\", Selection_Hide2!N240)","v":""},{"$f":"IF(OR(Selection_Hide2!O240=0, Selection_Hide2!O240=\"\"), \"\", Selection_Hide2!O240)","v":""},{"$f":"IF(OR(Selection_Hide2!P240=0, Selection_Hide2!P240=\"\"), \"\", Selection_Hide2!P240)","v":""},{"$f":"IF(OR(Selection_Hide2!Q240=0, Selection_Hide2!Q240=\"\"), \"\", Selection_Hide2!Q240)","v":""},{"$f":"IF(OR(Selection_Hide2!R240=0, Selection_Hide2!R240=\"\"), \"\", Selection_Hide2!R240)","v":""},{"$f":"IF(OR(Selection_Hide2!S240=0, Selection_Hide2!S240=\"\"), \"\", Selection_Hide2!S240)","v":""},{"$f":"IF(OR(Selection_Hide2!T240=0, Selection_Hide2!T240=\"\"), \"\", Selection_Hide2!T240)","v":""},{"$f":"IF(OR(Selection_Hide2!U240=0, Selection_Hide2!U240=\"\"), \"\", Selection_Hide2!U240)","v":""},{"$f":"IF(OR(Selection_Hide2!V240=0, Selection_Hide2!V240=\"\"), \"\", Selection_Hide2!V240)","v":""},{"$f":"IF(OR(Selection_Hide2!W240=0, Selection_Hide2!W240=\"\"), \"\", Selection_Hide2!W240)","v":""},{"$f":"IF(OR(Selection_Hide2!X240=0, Selection_Hide2!X240=\"\"), \"\", Selection_Hide2!X240)","v":""},{"$f":"IF(OR(Selection_Hide2!Y240=0, Selection_Hide2!Y240=\"\"), \"\", Selection_Hide2!Y240)","v":""},{"$f":"IF(OR(Selection_Hide2!Z240=0, Selection_Hide2!Z240=\"\"), \"\", Selection_Hide2!Z240)","v":""},{"$f":"IF(OR(Selection_Hide2!AA240=0, Selection_Hide2!AA240=\"\"), \"\", Selection_Hide2!AA240)","v":""},{"$f":"IF(OR(Selection_Hide2!AB240=0, Selection_Hide2!AB240=\"\"), \"\", Selection_Hide2!AB240)","v":""}]
[{"$f":"IF(OR(Selection_Hide2!A241=0, Selection_Hide2!A241=\"\"), \"\", Selection_Hide2!A241)","v":""},{"$f":"IF(OR(Selection_Hide2!B241=0, Selection_Hide2!B241=\"\"), \"\", Selection_Hide2!B241)","v":""},{"$f":"IF(OR(Selection_Hide2!C241=0, Selection_Hide2!C241=\"\"), \"\", Selection_Hide2!C241)","v":""},{"$f":"IF(OR(Selection_Hide2!D241=0, Selection_Hide2!D241=\"\"), \"\", Selection_Hide2!D241)","v":""},{"$f":"IF(OR(Selection_Hide2!E241=0, Selection_Hide2!E241=\"\"), \"\", Selection_Hide2!E241)","v":""},{"$f":"IF(OR(Selection_Hide2!F241=0, Selection_Hide2!F241=\"\"), \"\", Selection_Hide2!F241)","v":""},{"$f":"IF(OR(Selection_Hide2!G241=0, Selection_Hide2!G241=\"\"), \"\", Selection_Hide2!G241)","v":""},{"$f":"IF(OR(Selection_Hide2!H241=0, Selection_Hide2!H241=\"\"), \"\", Selection_Hide2!H241)","v":""},{"$f":"IF(OR(Selection_Hide2!I241=0, Selection_Hide2!I241=\"\"), \"\", Selection_Hide2!I241)","v":""},{"$f":"IF(OR(Selection_Hide2!J241=0, Selection_Hide2!J241=\"\"), \"\", Selection_Hide2!J241)","v":""},{"$f":"IF(OR(Selection_Hide2!K241=0, Selection_Hide2!K241=\"\"), \"\", Selection_Hide2!K241)","v":""},{"$f":"IF(OR(Selection_Hide2!L241=0, Selection_Hide2!L241=\"\"), \"\", Selection_Hide2!L241)","v":""},{"$f":"IF(OR(Selection_Hide2!M241=0, Selection_Hide2!M241=\"\"), \"\", Selection_Hide2!M241)","v":""},{"$f":"IF(OR(Selection_Hide2!N241=0, Selection_Hide2!N241=\"\"), \"\", Selection_Hide2!N241)","v":""},{"$f":"IF(OR(Selection_Hide2!O241=0, Selection_Hide2!O241=\"\"), \"\", Selection_Hide2!O241)","v":""},{"$f":"IF(OR(Selection_Hide2!P241=0, Selection_Hide2!P241=\"\"), \"\", Selection_Hide2!P241)","v":""},{"$f":"IF(OR(Selection_Hide2!Q241=0, Selection_Hide2!Q241=\"\"), \"\", Selection_Hide2!Q241)","v":""},{"$f":"IF(OR(Selection_Hide2!R241=0, Selection_Hide2!R241=\"\"), \"\", Selection_Hide2!R241)","v":""},{"$f":"IF(OR(Selection_Hide2!S241=0, Selection_Hide2!S241=\"\"), \"\", Selection_Hide2!S241)","v":""},{"$f":"IF(OR(Selection_Hide2!T241=0, Selection_Hide2!T241=\"\"), \"\", Selection_Hide2!T241)","v":""},{"$f":"IF(OR(Selection_Hide2!U241=0, Selection_Hide2!U241=\"\"), \"\", Selection_Hide2!U241)","v":""},{"$f":"IF(OR(Selection_Hide2!V241=0, Selection_Hide2!V241=\"\"), \"\", Selection_Hide2!V241)","v":""},{"$f":"IF(OR(Selection_Hide2!W241=0, Selection_Hide2!W241=\"\"), \"\", Selection_Hide2!W241)","v":""},{"$f":"IF(OR(Selection_Hide2!X241=0, Selection_Hide2!X241=\"\"), \"\", Selection_Hide2!X241)","v":""},{"$f":"IF(OR(Selection_Hide2!Y241=0, Selection_Hide2!Y241=\"\"), \"\", Selection_Hide2!Y241)","v":""},{"$f":"IF(OR(Selection_Hide2!Z241=0, Selection_Hide2!Z241=\"\"), \"\", Selection_Hide2!Z241)","v":""},{"$f":"IF(OR(Selection_Hide2!AA241=0, Selection_Hide2!AA241=\"\"), \"\", Selection_Hide2!AA241)","v":""},{"$f":"IF(OR(Selection_Hide2!AB241=0, Selection_Hide2!AB241=\"\"), \"\", Selection_Hide2!AB241)","v":""}]
[{"$f":"IF(OR(Selection_Hide2!A242=0, Selection_Hide2!A242=\"\"), \"\", Selection_Hide2!A242)","v":""},{"$f":"IF(OR(Selection_Hide2!B242=0, Selection_Hide2!B242=\"\"), \"\", Selection_Hide2!B242)","v":""},{"$f":"IF(OR(Selection_Hide2!C242=0, Selection_Hide2!C242=\"\"), \"\", Selection_Hide2!C242)","v":""},{"$f":"IF(OR(Selection_Hide2!D242=0, Selection_Hide2!D242=\"\"), \"\", Selection_Hide2!D242)","v":""},{"$f":"IF(OR(Selection_Hide2!E242=0, Selection_Hide2!E242=\"\"), \"\", Selection_Hide2!E242)","v":""},{"$f":"IF(OR(Selection_Hide2!F242=0, Selection_Hide2!F242=\"\"), \"\", Selection_Hide2!F242)","v":""},{"$f":"IF(OR(Selection_Hide2!G242=0, Selection_Hide2!G242=\"\"), \"\", Selection_Hide2!G242)","v":""},{"$f":"IF(OR(Selection_Hide2!H242=0, Selection_Hide2!H242=\"\"), \"\", Selection_Hide2!H242)","v":""},{"$f":"IF(OR(Selection_Hide2!I242=0, Selection_Hide2!I242=\"\"), \"\", Selection_Hide2!I242)","v":""},{"$f":"IF(OR(Selection_Hide2!J242=0, Selection_Hide2!J242=\"\"), \"\", Selection_Hide2!J242)","v":""},{"$f":"IF(OR(Selection_Hide2!K242=0, Selection_Hide2!K242=\"\"), \"\", Selection_Hide2!K242)","v":""},{"$f":"IF(OR(Selection_Hide2!L242=0, Selection_Hide2!L242=\"\"), \"\", Selection_Hide2!L242)","v":""},{"$f":"IF(OR(Selection_Hide2!M242=0, Selection_Hide2!M242=\"\"), \"\", Selection_Hide2!M242)","v":""},{"$f":"IF(OR(Selection_Hide2!N242=0, Selection_Hide2!N242=\"\"), \"\", Selection_Hide2!N242)","v":""},{"$f":"IF(OR(Selection_Hide2!O242=0, Selection_Hide2!O242=\"\"), \"\", Selection_Hide2!O242)","v":""},{"$f":"IF(OR(Selection_Hide2!P242=0, Selection_Hide2!P242=\"\"), \"\", Selection_Hide2!P242)","v":""},{"$f":"IF(OR(Selection_Hide2!Q242=0, Selection_Hide2!Q242=\"\"), \"\", Selection_Hide2!Q242)","v":""},{"$f":"IF(OR(Selection_Hide2!R242=0, Selection_Hide2!R242=\"\"), \"\", Selection_Hide2!R242)","v":""},{"$f":"IF(OR(Selection_Hide2!S242=0, Selection_Hide2!S242=\"\"), \"\", Selection_Hide2!S242)","v":""},{"$f":"IF(OR(Selection_Hide2!T242=0, Selection_Hide2!T242=\"\"), \"\", Selection_Hide2!T242)","v":""},{"$f":"IF(OR(Selection_Hide2!U242=0, Selection_Hide2!U242=\"\"), \"\", Selection_Hide2!U242)","v":""},{"$f":"IF(OR(Selection_Hide2!V242=0, Selection_Hide2!V242=\"\"), \"\", Selection_Hide2!V242)","v":""},{"$f":"IF(OR(Selection_Hide2!W242=0, Selection_Hide2!W242=\"\"), \"\", Selection_Hide2!W242)","v":""},{"$f":"IF(OR(Selection_Hide2!X242=0, Selection_Hide2!X242=\"\"), \"\", Selection_Hide2!X242)","v":""},{"$f":"IF(OR(Selection_Hide2!Y242=0, Selection_Hide2!Y242=\"\"), \"\", Selection_Hide2!Y242)","v":""},{"$f":"IF(OR(Selection_Hide2!Z242=0, Selection_Hide2!Z242=\"\"), \"\", Selection_Hide2!Z242)","v":""},{"$f":"IF(OR(Selection_Hide2!AA242=0, Selection_Hide2!AA242=\"\"), \"\", Selection_Hide2!AA242)","v":""},{"$f":"IF(OR(Selection_Hide2!AB242=0, Selection_Hide2!AB242=\"\"), \"\", Selection_Hide2!AB242)","v":""}]
[{"$f":"IF(OR(Selection_Hide2!A243=0, Selection_Hide2!A243=\"\"), \"\", Selection_Hide2!A243)","v":""},{"$f":"IF(OR(Selection_Hide2!B243=0, Selection_Hide2!B243=\"\"), \"\", Selection_Hide2!B243)","v":""},{"$f":"IF(OR(Selection_Hide2!C243=0, Selection_Hide2!C243=\"\"), \"\", Selection_Hide2!C243)","v":""},{"$f":"IF(OR(Selection_Hide2!D243=0, Selection_Hide2!D243=\"\"), \"\", Selection_Hide2!D243)","v":""},{"$f":"IF(OR(Selection_Hide2!E243=0, Selection_Hide2!E243=\"\"), \"\", Selection_Hide2!E243)","v":""},{"$f":"IF(OR(Selection_Hide2!F243=0, Selection_Hide2!F243=\"\"), \"\", Selection_Hide2!F243)","v":""},{"$f":"IF(OR(Selection_Hide2!G243=0, Selection_Hide2!G243=\"\"), \"\", Selection_Hide2!G243)","v":""},{"$f":"IF(OR(Selection_Hide2!H243=0, Selection_Hide2!H243=\"\"), \"\", Selection_Hide2!H243)","v":""},{"$f":"IF(OR(Selection_Hide2!I243=0, Selection_Hide2!I243=\"\"), \"\", Selection_Hide2!I243)","v":""},{"$f":"IF(OR(Selection_Hide2!J243=0, Selection_Hide2!J243=\"\"), \"\", Selection_Hide2!J243)","v":""},{"$f":"IF(OR(Selection_Hide2!K243=0, Selection_Hide2!K243=\"\"), \"\", Selection_Hide2!K243)","v":""},{"$f":"IF(OR(Selection_Hide2!L243=0, Selection_Hide2!L243=\"\"), \"\", Selection_Hide2!L243)","v":""},{"$f":"IF(OR(Selection_Hide2!M243=0, Selection_Hide2!M243=\"\"), \"\", Selection_Hide2!M243)","v":""},{"$f":"IF(OR(Selection_Hide2!N243=0, Selection_Hide2!N243=\"\"), \"\", Selection_Hide2!N243)","v":""},{"$f":"IF(OR(Selection_Hide2!O243=0, Selection_Hide2!O243=\"\"), \"\", Selection_Hide2!O243)","v":""},{"$f":"IF(OR(Selection_Hide2!P243=0, Selection_Hide2!P243=\"\"), \"\", Selection_Hide2!P243)","v":""},{"$f":"IF(OR(Selection_Hide2!Q243=0, Selection_Hide2!Q243=\"\"), \"\", Selection_Hide2!Q243)","v":""},{"$f":"IF(OR(Selection_Hide2!R243=0, Selection_Hide2!R243=\"\"), \"\", Selection_Hide2!R243)","v":""},{"$f":"IF(OR(Selection_Hide2!S243=0, Selection_Hide2!S243=\"\"), \"\", Selection_Hide2!S243)","v":""},{"$f":"IF(OR(Selection_Hide2!T243=0, Selection_Hide2!T243=\"\"), \"\", Selection_Hide2!T243)","v":""},{"$f":"IF(OR(Selection_Hide2!U243=0, Selection_Hide2!U243=\"\"), \"\", Selection_Hide2!U243)","v":""},{"$f":"IF(OR(Selection_Hide2!V243=0, Selection_Hide2!V243=\"\"), \"\", Selection_Hide2!V243)","v":""},{"$f":"IF(OR(Selection_Hide2!W243=0, Selection_Hide2!W243=\"\"), \"\", Selection_Hide2!W243)","v":""},{"$f":"IF(OR(Selection_Hide2!X243=0, Selection_Hide2!X243=\"\"), \"\", Selection_Hide2!X243)","v":""},{"$f":"IF(OR(Selection_Hide2!Y243=0, Selection_Hide2!Y243=\"\"), \"\", Selection_Hide2!Y243)","v":""},{"$f":"IF(OR(Selection_Hide2!Z243=0, Selection_Hide2!Z243=\"\"), \"\", Selection_Hide2!Z243)","v":""},{"$f":"IF(OR(Selection_Hide2!AA243=0, Selection_Hide2!AA243=\"\"), \"\", Selection_Hide2!AA243)","v":""},{"$f":"IF(OR(Selection_Hide2!AB243=0, Selection_Hide2!AB243=\"\"), \"\", Selection_Hide2!AB243)","v":""}]
[{"$f":"IF(OR(Selection_Hide2!A244=0, Selection_Hide2!A244=\"\"), \"\", Selection_Hide2!A244)","v":""},{"$f":"IF(OR(Selection_Hide2!B244=0, Selection_Hide2!B244=\"\"), \"\", Selection_Hide2!B244)","v":""},{"$f":"IF(OR(Selection_Hide2!C244=0, Selection_Hide2!C244=\"\"), \"\", Selection_Hide2!C244)","v":""},{"$f":"IF(OR(Selection_Hide2!D244=0, Selection_Hide2!D244=\"\"), \"\", Selection_Hide2!D244)","v":""},{"$f":"IF(OR(Selection_Hide2!E244=0, Selection_Hide2!E244=\"\"), \"\", Selection_Hide2!E244)","v":""},{"$f":"IF(OR(Selection_Hide2!F244=0, Selection_Hide2!F244=\"\"), \"\", Selection_Hide2!F244)","v":""},{"$f":"IF(OR(Selection_Hide2!G244=0, Selection_Hide2!G244=\"\"), \"\", Selection_Hide2!G244)","v":""},{"$f":"IF(OR(Selection_Hide2!H244=0, Selection_Hide2!H244=\"\"), \"\", Selection_Hide2!H244)","v":""},{"$f":"IF(OR(Selection_Hide2!I244=0, Selection_Hide2!I244=\"\"), \"\", Selection_Hide2!I244)","v":""},{"$f":"IF(OR(Selection_Hide2!J244=0, Selection_Hide2!J244=\"\"), \"\", Selection_Hide2!J244)","v":""},{"$f":"IF(OR(Selection_Hide2!K244=0, Selection_Hide2!K244=\"\"), \"\", Selection_Hide2!K244)","v":""},{"$f":"IF(OR(Selection_Hide2!L244=0, Selection_Hide2!L244=\"\"), \"\", Selection_Hide2!L244)","v":""},{"$f":"IF(OR(Selection_Hide2!M244=0, Selection_Hide2!M244=\"\"), \"\", Selection_Hide2!M244)","v":""},{"$f":"IF(OR(Selection_Hide2!N244=0, Selection_Hide2!N244=\"\"), \"\", Selection_Hide2!N244)","v":""},{"$f":"IF(OR(Selection_Hide2!O244=0, Selection_Hide2!O244=\"\"), \"\", Selection_Hide2!O244)","v":""},{"$f":"IF(OR(Selection_Hide2!P244=0, Selection_Hide2!P244=\"\"), \"\", Selection_Hide2!P244)","v":""},{"$f":"IF(OR(Selection_Hide2!Q244=0, Selection_Hide2!Q244=\"\"), \"\", Selection_Hide2!Q244)","v":""},{"$f":"IF(OR(Selection_Hide2!R244=0, Selection_Hide2!R244=\"\"), \"\", Selection_Hide2!R244)","v":""},{"$f":"IF(OR(Selection_Hide2!S244=0, Selection_Hide2!S244=\"\"), \"\", Selection_Hide2!S244)","v":""},{"$f":"IF(OR(Selection_Hide2!T244=0, Selection_Hide2!T244=\"\"), \"\", Selection_Hide2!T244)","v":""},{"$f":"IF(OR(Selection_Hide2!U244=0, Selection_Hide2!U244=\"\"), \"\", Selection_Hide2!U244)","v":""},{"$f":"IF(OR(Selection_Hide2!V244=0, Selection_Hide2!V244=\"\"), \"\", Selection_Hide2!V244)","v":""},{"$f":"IF(OR(Selection_Hide2!W244=0, Selection_Hide2!W244=\"\"), \"\", Selection_Hide2!W244)","v":""},{"$f":"IF(OR(Selection_Hide2!X244=0, Selection_Hide2!X244=\"\"), \"\", Selection_Hide2!X244)","v":""},{"$f":"IF(OR(Selection_Hide2!Y244=0, Selection_Hide2!Y244=\"\"), \"\", Selection_Hide2!Y244)","v":""},{"$f":"IF(OR(Selection_Hide2!Z244=0, Selection_Hide2!Z244=\"\"), \"\", Selection_Hide2!Z244)","v":""},{"$f":"IF(OR(Selection_Hide2!AA244=0, Selection_Hide2!AA244=\"\"), \"\", Selection_Hide2!AA244)","v":""},{"$f":"IF(OR(Selection_Hide2!AB244=0, Selection_Hide2!AB244=\"\"), \"\", Selection_Hide2!AB244)","v":""}]
[{"$f":"IF(OR(Selection_Hide2!A245=0, Selection_Hide2!A245=\"\"), \"\", Selection_Hide2!A245)","v":""},{"$f":"IF(OR(Selection_Hide2!B245=0, Selection_Hide2!B245=\"\"), \"\", Selection_Hide2!B245)","v":""},{"$f":"IF(OR(Selection_Hide2!C245=0, Selection_Hide2!C245=\"\"), \"\", Selection_Hide2!C245)","v":""},{"$f":"IF(OR(Selection_Hide2!D245=0, Selection_Hide2!D245=\"\"), \"\", Selection_Hide2!D245)","v":""},{"$f":"IF(OR(Selection_Hide2!E245=0, Selection_Hide2!E245=\"\"), \"\", Selection_Hide2!E245)","v":""},{"$f":"IF(OR(Selection_Hide2!F245=0, Selection_Hide2!F245=\"\"), \"\", Selection_Hide2!F245)","v":""},{"$f":"IF(OR(Selection_Hide2!G245=0, Selection_Hide2!G245=\"\"), \"\", Selection_Hide2!G245)","v":""},{"$f":"IF(OR(Selection_Hide2!H245=0, Selection_Hide2!H245=\"\"), \"\", Selection_Hide2!H245)","v":""},{"$f":"IF(OR(Selection_Hide2!I245=0, Selection_Hide2!I245=\"\"), \"\", Selection_Hide2!I245)","v":""},{"$f":"IF(OR(Selection_Hide2!J245=0, Selection_Hide2!J245=\"\"), \"\", Selection_Hide2!J245)","v":""},{"$f":"IF(OR(Selection_Hide2!K245=0, Selection_Hide2!K245=\"\"), \"\", Selection_Hide2!K245)","v":""},{"$f":"IF(OR(Selection_Hide2!L245=0, Selection_Hide2!L245=\"\"), \"\", Selection_Hide2!L245)","v":""},{"$f":"IF(OR(Selection_Hide2!M245=0, Selection_Hide2!M245=\"\"), \"\", Selection_Hide2!M245)","v":""},{"$f":"IF(OR(Selection_Hide2!N245=0, Selection_Hide2!N245=\"\"), \"\", Selection_Hide2!N245)","v":""},{"$f":"IF(OR(Selection_Hide2!O245=0, Selection_Hide2!O245=\"\"), \"\", Selection_Hide2!O245)","v":""},{"$f":"IF(OR(Selection_Hide2!P245=0, Selection_Hide2!P245=\"\"), \"\", Selection_Hide2!P245)","v":""},{"$f":"IF(OR(Selection_Hide2!Q245=0, Selection_Hide2!Q245=\"\"), \"\", Selection_Hide2!Q245)","v":""},{"$f":"IF(OR(Selection_Hide2!R245=0, Selection_Hide2!R245=\"\"), \"\", Selection_Hide2!R245)","v":""},{"$f":"IF(OR(Selection_Hide2!S245=0, Selection_Hide2!S245=\"\"), \"\", Selection_Hide2!S245)","v":""},{"$f":"IF(OR(Selection_Hide2!T245=0, Selection_Hide2!T245=\"\"), \"\", Selection_Hide2!T245)","v":""},{"$f":"IF(OR(Selection_Hide2!U245=0, Selection_Hide2!U245=\"\"), \"\", Selection_Hide2!U245)","v":""},{"$f":"IF(OR(Selection_Hide2!V245=0, Selection_Hide2!V245=\"\"), \"\", Selection_Hide2!V245)","v":""},{"$f":"IF(OR(Selection_Hide2!W245=0, Selection_Hide2!W245=\"\"), \"\", Selection_Hide2!W245)","v":""},{"$f":"IF(OR(Selection_Hide2!X245=0, Selection_Hide2!X245=\"\"), \"\", Selection_Hide2!X245)","v":""},{"$f":"IF(OR(Selection_Hide2!Y245=0, Selection_Hide2!Y245=\"\"), \"\", Selection_Hide2!Y245)","v":""},{"$f":"IF(OR(Selection_Hide2!Z245=0, Selection_Hide2!Z245=\"\"), \"\", Selection_Hide2!Z245)","v":""},{"$f":"IF(OR(Selection_Hide2!AA245=0, Selection_Hide2!AA245=\"\"), \"\", Selection_Hide2!AA245)","v":""},{"$f":"IF(OR(Selection_Hide2!AB245=0, Selection_Hide2!AB245=\"\"), \"\", Selection_Hide2!AB245)","v":""}]
[{"$f":"IF(OR(Selection_Hide2!A246=0, Selection_Hide2!A246=\"\"), \"\", Selection_Hide2!A246)","v":""},{"$f":"IF(OR(Selection_Hide2!B246=0, Selection_Hide2!B246=\"\"), \"\", Selection_Hide2!B246)","v":""},{"$f":"IF(OR(Selection_Hide2!C246=0, Selection_Hide2!C246=\"\"), \"\", Selection_Hide2!C246)","v":""},{"$f":"IF(OR(Selection_Hide2!D246=0, Selection_Hide2!D246=\"\"), \"\", Selection_Hide2!D246)","v":""},{"$f":"IF(OR(Selection_Hide2!E246=0, Selection_Hide2!E246=\"\"), \"\", Selection_Hide2!E246)","v":""},{"$f":"IF(OR(Selection_Hide2!F246=0, Selection_Hide2!F246=\"\"), \"\", Selection_Hide2!F246)","v":""},{"$f":"IF(OR(Selection_Hide2!G246=0, Selection_Hide2!G246=\"\"), \"\", Selection_Hide2!G246)","v":""},{"$f":"IF(OR(Selection_Hide2!H246=0, Selection_Hide2!H246=\"\"), \"\", Selection_Hide2!H246)","v":""},{"$f":"IF(OR(Selection_Hide2!I246=0, Selection_Hide2!I246=\"\"), \"\", Selection_Hide2!I246)","v":""},{"$f":"IF(OR(Selection_Hide2!J246=0, Selection_Hide2!J246=\"\"), \"\", Selection_Hide2!J246)","v":""},{"$f":"IF(OR(Selection_Hide2!K246=0, Selection_Hide2!K246=\"\"), \"\", Selection_Hide2!K246)","v":""},{"$f":"IF(OR(Selection_Hide2!L246=0, Selection_Hide2!L246=\"\"), \"\", Selection_Hide2!L246)","v":""},{"$f":"IF(OR(Selection_Hide2!M246=0, Selection_Hide2!M246=\"\"), \"\", Selection_Hide2!M246)","v":""},{"$f":"IF(OR(Selection_Hide2!N246=0, Selection_Hide2!N246=\"\"), \"\", Selection_Hide2!N246)","v":""},{"$f":"IF(OR(Selection_Hide2!O246=0, Selection_Hide2!O246=\"\"), \"\", Selection_Hide2!O246)","v":""},{"$f":"IF(OR(Selection_Hide2!P246=0, Selection_Hide2!P246=\"\"), \"\", Selection_Hide2!P246)","v":""},{"$f":"IF(OR(Selection_Hide2!Q246=0, Selection_Hide2!Q246=\"\"), \"\", Selection_Hide2!Q246)","v":""},{"$f":"IF(OR(Selection_Hide2!R246=0, Selection_Hide2!R246=\"\"), \"\", Selection_Hide2!R246)","v":""},{"$f":"IF(OR(Selection_Hide2!S246=0, Selection_Hide2!S246=\"\"), \"\", Selection_Hide2!S246)","v":""},{"$f":"IF(OR(Selection_Hide2!T246=0, Selection_Hide2!T246=\"\"), \"\", Selection_Hide2!T246)","v":""},{"$f":"IF(OR(Selection_Hide2!U246=0, Selection_Hide2!U246=\"\"), \"\", Selection_Hide2!U246)","v":""},{"$f":"IF(OR(Selection_Hide2!V246=0, Selection_Hide2!V246=\"\"), \"\", Selection_Hide2!V246)","v":""},{"$f":"IF(OR(Selection_Hide2!W246=0, Selection_Hide2!W246=\"\"), \"\", Selection_Hide2!W246)","v":""},{"$f":"IF(OR(Selection_Hide2!X246=0, Selection_Hide2!X246=\"\"), \"\", Selection_Hide2!X246)","v":""},{"$f":"IF(OR(Selection_Hide2!Y246=0, Selection_Hide2!Y246=\"\"), \"\", Selection_Hide2!Y246)","v":""},{"$f":"IF(OR(Selection_Hide2!Z246=0, Selection_Hide2!Z246=\"\"), \"\", Selection_Hide2!Z246)","v":""},{"$f":"IF(OR(Selection_Hide2!AA246=0, Selection_Hide2!AA246=\"\"), \"\", Selection_Hide2!AA246)","v":""},{"$f":"IF(OR(Selection_Hide2!AB246=0, Selection_Hide2!AB246=\"\"), \"\", Selection_Hide2!AB246)","v":""}]
[{"$f":"IF(OR(Selection_Hide2!A247=0, Selection_Hide2!A247=\"\"), \"\", Selection_Hide2!A247)","v":""},{"$f":"IF(OR(Selection_Hide2!B247=0, Selection_Hide2!B247=\"\"), \"\", Selection_Hide2!B247)","v":""},{"$f":"IF(OR(Selection_Hide2!C247=0, Selection_Hide2!C247=\"\"), \"\", Selection_Hide2!C247)","v":""},{"$f":"IF(OR(Selection_Hide2!D247=0, Selection_Hide2!D247=\"\"), \"\", Selection_Hide2!D247)","v":""},{"$f":"IF(OR(Selection_Hide2!E247=0, Selection_Hide2!E247=\"\"), \"\", Selection_Hide2!E247)","v":""},{"$f":"IF(OR(Selection_Hide2!F247=0, Selection_Hide2!F247=\"\"), \"\", Selection_Hide2!F247)","v":""},{"$f":"IF(OR(Selection_Hide2!G247=0, Selection_Hide2!G247=\"\"), \"\", Selection_Hide2!G247)","v":""},{"$f":"IF(OR(Selection_Hide2!H247=0, Selection_Hide2!H247=\"\"), \"\", Selection_Hide2!H247)","v":""},{"$f":"IF(OR(Selection_Hide2!I247=0, Selection_Hide2!I247=\"\"), \"\", Selection_Hide2!I247)","v":""},{"$f":"IF(OR(Selection_Hide2!J247=0, Selection_Hide2!J247=\"\"), \"\", Selection_Hide2!J247)","v":""},{"$f":"IF(OR(Selection_Hide2!K247=0, Selection_Hide2!K247=\"\"), \"\", Selection_Hide2!K247)","v":""},{"$f":"IF(OR(Selection_Hide2!L247=0, Selection_Hide2!L247=\"\"), \"\", Selection_Hide2!L247)","v":""},{"$f":"IF(OR(Selection_Hide2!M247=0, Selection_Hide2!M247=\"\"), \"\", Selection_Hide2!M247)","v":""},{"$f":"IF(OR(Selection_Hide2!N247=0, Selection_Hide2!N247=\"\"), \"\", Selection_Hide2!N247)","v":""},{"$f":"IF(OR(Selection_Hide2!O247=0, Selection_Hide2!O247=\"\"), \"\", Selection_Hide2!O247)","v":""},{"$f":"IF(OR(Selection_Hide2!P247=0, Selection_Hide2!P247=\"\"), \"\", Selection_Hide2!P247)","v":""},{"$f":"IF(OR(Selection_Hide2!Q247=0, Selection_Hide2!Q247=\"\"), \"\", Selection_Hide2!Q247)","v":""},{"$f":"IF(OR(Selection_Hide2!R247=0, Selection_Hide2!R247=\"\"), \"\", Selection_Hide2!R247)","v":""},{"$f":"IF(OR(Selection_Hide2!S247=0, Selection_Hide2!S247=\"\"), \"\", Selection_Hide2!S247)","v":""},{"$f":"IF(OR(Selection_Hide2!T247=0, Selection_Hide2!T247=\"\"), \"\", Selection_Hide2!T247)","v":""},{"$f":"IF(OR(Selection_Hide2!U247=0, Selection_Hide2!U247=\"\"), \"\", Selection_Hide2!U247)","v":""},{"$f":"IF(OR(Selection_Hide2!V247=0, Selection_Hide2!V247=\"\"), \"\", Selection_Hide2!V247)","v":""},{"$f":"IF(OR(Selection_Hide2!W247=0, Selection_Hide2!W247=\"\"), \"\", Selection_Hide2!W247)","v":""},{"$f":"IF(OR(Selection_Hide2!X247=0, Selection_Hide2!X247=\"\"), \"\", Selection_Hide2!X247)","v":""},{"$f":"IF(OR(Selection_Hide2!Y247=0, Selection_Hide2!Y247=\"\"), \"\", Selection_Hide2!Y247)","v":""},{"$f":"IF(OR(Selection_Hide2!Z247=0, Selection_Hide2!Z247=\"\"), \"\", Selection_Hide2!Z247)","v":""},{"$f":"IF(OR(Selection_Hide2!AA247=0, Selection_Hide2!AA247=\"\"), \"\", Selection_Hide2!AA247)","v":""},{"$f":"IF(OR(Selection_Hide2!AB247=0, Selection_Hide2!AB247=\"\"), \"\", Selection_Hide2!AB247)","v":""}]
[{"$f":"IF(OR(Selection_Hide2!A248=0, Selection_Hide2!A248=\"\"), \"\", Selection_Hide2!A248)","v":""},{"$f":"IF(OR(Selection_Hide2!B248=0, Selection_Hide2!B248=\"\"), \"\", Selection_Hide2!B248)","v":""},{"$f":"IF(OR(Selection_Hide2!C248=0, Selection_Hide2!C248=\"\"), \"\", Selection_Hide2!C248)","v":""},{"$f":"IF(OR(Selection_Hide2!D248=0, Selection_Hide2!D248=\"\"), \"\", Selection_Hide2!D248)","v":""},{"$f":"IF(OR(Selection_Hide2!E248=0, Selection_Hide2!E248=\"\"), \"\", Selection_Hide2!E248)","v":""},{"$f":"IF(OR(Selection_Hide2!F248=0, Selection_Hide2!F248=\"\"), \"\", Selection_Hide2!F248)","v":""},{"$f":"IF(OR(Selection_Hide2!G248=0, Selection_Hide2!G248=\"\"), \"\", Selection_Hide2!G248)","v":""},{"$f":"IF(OR(Selection_Hide2!H248=0, Selection_Hide2!H248=\"\"), \"\", Selection_Hide2!H248)","v":""},{"$f":"IF(OR(Selection_Hide2!I248=0, Selection_Hide2!I248=\"\"), \"\", Selection_Hide2!I248)","v":""},{"$f":"IF(OR(Selection_Hide2!J248=0, Selection_Hide2!J248=\"\"), \"\", Selection_Hide2!J248)","v":""},{"$f":"IF(OR(Selection_Hide2!K248=0, Selection_Hide2!K248=\"\"), \"\", Selection_Hide2!K248)","v":""},{"$f":"IF(OR(Selection_Hide2!L248=0, Selection_Hide2!L248=\"\"), \"\", Selection_Hide2!L248)","v":""},{"$f":"IF(OR(Selection_Hide2!M248=0, Selection_Hide2!M248=\"\"), \"\", Selection_Hide2!M248)","v":""},{"$f":"IF(OR(Selection_Hide2!N248=0, Selection_Hide2!N248=\"\"), \"\", Selection_Hide2!N248)","v":""},{"$f":"IF(OR(Selection_Hide2!O248=0, Selection_Hide2!O248=\"\"), \"\", Selection_Hide2!O248)","v":""},{"$f":"IF(OR(Selection_Hide2!P248=0, Selection_Hide2!P248=\"\"), \"\", Selection_Hide2!P248)","v":""},{"$f":"IF(OR(Selection_Hide2!Q248=0, Selection_Hide2!Q248=\"\"), \"\", Selection_Hide2!Q248)","v":""},{"$f":"IF(OR(Selection_Hide2!R248=0, Selection_Hide2!R248=\"\"), \"\", Selection_Hide2!R248)","v":""},{"$f":"IF(OR(Selection_Hide2!S248=0, Selection_Hide2!S248=\"\"), \"\", Selection_Hide2!S248)","v":""},{"$f":"IF(OR(Selection_Hide2!T248=0, Selection_Hide2!T248=\"\"), \"\", Selection_Hide2!T248)","v":""},{"$f":"IF(OR(Selection_Hide2!U248=0, Selection_Hide2!U248=\"\"), \"\", Selection_Hide2!U248)","v":""},{"$f":"IF(OR(Selection_Hide2!V248=0, Selection_Hide2!V248=\"\"), \"\", Selection_Hide2!V248)","v":""},{"$f":"IF(OR(Selection_Hide2!W248=0, Selection_Hide2!W248=\"\"), \"\", Selection_Hide2!W248)","v":""},{"$f":"IF(OR(Selection_Hide2!X248=0, Selection_Hide2!X248=\"\"), \"\", Selection_Hide2!X248)","v":""},{"$f":"IF(OR(Selection_Hide2!Y248=0, Selection_Hide2!Y248=\"\"), \"\", Selection_Hide2!Y248)","v":""},{"$f":"IF(OR(Selection_Hide2!Z248=0, Selection_Hide2!Z248=\"\"), \"\", Selection_Hide2!Z248)","v":""},{"$f":"IF(OR(Selection_Hide2!AA248=0, Selection_Hide2!AA248=\"\"), \"\", Selection_Hide2!AA248)","v":""},{"$f":"IF(OR(Selection_Hide2!AB248=0, Selection_Hide2!AB248=\"\"), \"\", Selection_Hide2!AB248)","v":""}]
[{"$f":"IF(OR(Selection_Hide2!A249=0, Selection_Hide2!A249=\"\"), \"\", Selection_Hide2!A249)","v":""},{"$f":"IF(OR(Selection_Hide2!B249=0, Selection_Hide2!B249=\"\"), \"\", Selection_Hide2!B249)","v":""},{"$f":"IF(OR(Selection_Hide2!C249=0, Selection_Hide2!C249=\"\"), \"\", Selection_Hide2!C249)","v":""},{"$f":"IF(OR(Selection_Hide2!D249=0, Selection_Hide2!D249=\"\"), \"\", Selection_Hide2!D249)","v":""},{"$f":"IF(OR(Selection_Hide2!E249=0, Selection_Hide2!E249=\"\"), \"\", Selection_Hide2!E249)","v":""},{"$f":"IF(OR(Selection_Hide2!F249=0, Selection_Hide2!F249=\"\"), \"\", Selection_Hide2!F249)","v":""},{"$f":"IF(OR(Selection_Hide2!G249=0, Selection_Hide2!G249=\"\"), \"\", Selection_Hide2!G249)","v":""},{"$f":"IF(OR(Selection_Hide2!H249=0, Selection_Hide2!H249=\"\"), \"\", Selection_Hide2!H249)","v":""},{"$f":"IF(OR(Selection_Hide2!I249=0, Selection_Hide2!I249=\"\"), \"\", Selection_Hide2!I249)","v":""},{"$f":"IF(OR(Selection_Hide2!J249=0, Selection_Hide2!J249=\"\"), \"\", Selection_Hide2!J249)","v":""},{"$f":"IF(OR(Selection_Hide2!K249=0, Selection_Hide2!K249=\"\"), \"\", Selection_Hide2!K249)","v":""},{"$f":"IF(OR(Selection_Hide2!L249=0, Selection_Hide2!L249=\"\"), \"\", Selection_Hide2!L249)","v":""},{"$f":"IF(OR(Selection_Hide2!M249=0, Selection_Hide2!M249=\"\"), \"\", Selection_Hide2!M249)","v":""},{"$f":"IF(OR(Selection_Hide2!N249=0, Selection_Hide2!N249=\"\"), \"\", Selection_Hide2!N249)","v":""},{"$f":"IF(OR(Selection_Hide2!O249=0, Selection_Hide2!O249=\"\"), \"\", Selection_Hide2!O249)","v":""},{"$f":"IF(OR(Selection_Hide2!P249=0, Selection_Hide2!P249=\"\"), \"\", Selection_Hide2!P249)","v":""},{"$f":"IF(OR(Selection_Hide2!Q249=0, Selection_Hide2!Q249=\"\"), \"\", Selection_Hide2!Q249)","v":""},{"$f":"IF(OR(Selection_Hide2!R249=0, Selection_Hide2!R249=\"\"), \"\", Selection_Hide2!R249)","v":""},{"$f":"IF(OR(Selection_Hide2!S249=0, Selection_Hide2!S249=\"\"), \"\", Selection_Hide2!S249)","v":""},{"$f":"IF(OR(Selection_Hide2!T249=0, Selection_Hide2!T249=\"\"), \"\", Selection_Hide2!T249)","v":""},{"$f":"IF(OR(Selection_Hide2!U249=0, Selection_Hide2!U249=\"\"), \"\", Selection_Hide2!U249)","v":""},{"$f":"IF(OR(Selection_Hide2!V249=0, Selection_Hide2!V249=\"\"), \"\", Selection_Hide2!V249)","v":""},{"$f":"IF(OR(Selection_Hide2!W249=0, Selection_Hide2!W249=\"\"), \"\", Selection_Hide2!W249)","v":""},{"$f":"IF(OR(Selection_Hide2!X249=0, Selection_Hide2!X249=\"\"), \"\", Selection_Hide2!X249)","v":""},{"$f":"IF(OR(Selection_Hide2!Y249=0, Selection_Hide2!Y249=\"\"), \"\", Selection_Hide2!Y249)","v":""},{"$f":"IF(OR(Selection_Hide2!Z249=0, Selection_Hide2!Z249=\"\"), \"\", Selection_Hide2!Z249)","v":""},{"$f":"IF(OR(Selection_Hide2!AA249=0, Selection_Hide2!AA249=\"\"), \"\", Selection_Hide2!AA249)","v":""},{"$f":"IF(OR(Selection_Hide2!AB249=0, Selection_Hide2!AB249=\"\"), \"\", Selection_Hide2!AB249)","v":""}]
[{"$f":"IF(OR(Selection_Hide2!A250=0, Selection_Hide2!A250=\"\"), \"\", Selection_Hide2!A250)","v":""},{"$f":"IF(OR(Selection_Hide2!B250=0, Selection_Hide2!B250=\"\"), \"\", Selection_Hide2!B250)","v":""},{"$f":"IF(OR(Selection_Hide2!C250=0, Selection_Hide2!C250=\"\"), \"\", Selection_Hide2!C250)","v":""},{"$f":"IF(OR(Selection_Hide2!D250=0, Selection_Hide2!D250=\"\"), \"\", Selection_Hide2!D250)","v":""},{"$f":"IF(OR(Selection_Hide2!E250=0, Selection_Hide2!E250=\"\"), \"\", Selection_Hide2!E250)","v":""},{"$f":"IF(OR(Selection_Hide2!F250=0, Selection_Hide2!F250=\"\"), \"\", Selection_Hide2!F250)","v":""},{"$f":"IF(OR(Selection_Hide2!G250=0, Selection_Hide2!G250=\"\"), \"\", Selection_Hide2!G250)","v":""},{"$f":"IF(OR(Selection_Hide2!H250=0, Selection_Hide2!H250=\"\"), \"\", Selection_Hide2!H250)","v":""},{"$f":"IF(OR(Selection_Hide2!I250=0, Selection_Hide2!I250=\"\"), \"\", Selection_Hide2!I250)","v":""},{"$f":"IF(OR(Selection_Hide2!J250=0, Selection_Hide2!J250=\"\"), \"\", Selection_Hide2!J250)","v":""},{"$f":"IF(OR(Selection_Hide2!K250=0, Selection_Hide2!K250=\"\"), \"\", Selection_Hide2!K250)","v":""},{"$f":"IF(OR(Selection_Hide2!L250=0, Selection_Hide2!L250=\"\"), \"\", Selection_Hide2!L250)","v":""},{"$f":"IF(OR(Selection_Hide2!M250=0, Selection_Hide2!M250=\"\"), \"\", Selection_Hide2!M250)","v":""},{"$f":"IF(OR(Selection_Hide2!N250=0, Selection_Hide2!N250=\"\"), \"\", Selection_Hide2!N250)","v":""},{"$f":"IF(OR(Selection_Hide2!O250=0, Selection_Hide2!O250=\"\"), \"\", Selection_Hide2!O250)","v":""},{"$f":"IF(OR(Selection_Hide2!P250=0, Selection_Hide2!P250=\"\"), \"\", Selection_Hide2!P250)","v":""},{"$f":"IF(OR(Selection_Hide2!Q250=0, Selection_Hide2!Q250=\"\"), \"\", Selection_Hide2!Q250)","v":""},{"$f":"IF(OR(Selection_Hide2!R250=0, Selection_Hide2!R250=\"\"), \"\", Selection_Hide2!R250)","v":""},{"$f":"IF(OR(Selection_Hide2!S250=0, Selection_Hide2!S250=\"\"), \"\", Selection_Hide2!S250)","v":""},{"$f":"IF(OR(Selection_Hide2!T250=0, Selection_Hide2!T250=\"\"), \"\", Selection_Hide2!T250)","v":""},{"$f":"IF(OR(Selection_Hide2!U250=0, Selection_Hide2!U250=\"\"), \"\", Selection_Hide2!U250)","v":""},{"$f":"IF(OR(Selection_Hide2!V250=0, Selection_Hide2!V250=\"\"), \"\", Selection_Hide2!V250)","v":""},{"$f":"IF(OR(Selection_Hide2!W250=0, Selection_Hide2!W250=\"\"), \"\", Selection_Hide2!W250)","v":""},{"$f":"IF(OR(Selection_Hide2!X250=0, Selection_Hide2!X250=\"\"), \"\", Selection_Hide2!X250)","v":""},{"$f":"IF(OR(Selection_Hide2!Y250=0, Selection_Hide2!Y250=\"\"), \"\", Selection_Hide2!Y250)","v":""},{"$f":"IF(OR(Selection_Hide2!Z250=0, Selection_Hide2!Z250=\"\"), \"\", Selection_Hide2!Z250)","v":""},{"$f":"IF(OR(Selection_Hide2!AA250=0, Selection_Hide2!AA250=\"\"), \"\", Selection_Hide2!AA250)","v":""},{"$f":"IF(OR(Selection_Hide2!AB250=0, Selection_Hide2!AB250=\"\"), \"\", Selection_Hide2!AB250)","v":""}]
[{"$f":"IF(OR(Selection_Hide2!A251=0, Selection_Hide2!A251=\"\"), \"\", Selection_Hide2!A251)","v":""},{"$f":"IF(OR(Selection_Hide2!B251=0, Selection_Hide2!B251=\"\"), \"\", Selection_Hide2!B251)","v":""},{"$f":"IF(OR(Selection_Hide2!C251=0, Selection_Hide2!C251=\"\"), \"\", Selection_Hide2!C251)","v":""},{"$f":"IF(OR(Selection_Hide2!D251=0, Selection_Hide2!D251=\"\"), \"\", Selection_Hide2!D251)","v":""},{"$f":"IF(OR(Selection_Hide2!E251=0, Selection_Hide2!E251=\"\"), \"\", Selection_Hide2!E251)","v":""},{"$f":"IF(OR(Selection_Hide2!F251=0, Selection_Hide2!F251=\"\"), \"\", Selection_Hide2!F251)","v":""},{"$f":"IF(OR(Selection_Hide2!G251=0, Selection_Hide2!G251=\"\"), \"\", Selection_Hide2!G251)","v":""},{"$f":"IF(OR(Selection_Hide2!H251=0, Selection_Hide2!H251=\"\"), \"\", Selection_Hide2!H251)","v":""},{"$f":"IF(OR(Selection_Hide2!I251=0, Selection_Hide2!I251=\"\"), \"\", Selection_Hide2!I251)","v":""},{"$f":"IF(OR(Selection_Hide2!J251=0, Selection_Hide2!J251=\"\"), \"\", Selection_Hide2!J251)","v":""},{"$f":"IF(OR(Selection_Hide2!K251=0, Selection_Hide2!K251=\"\"), \"\", Selection_Hide2!K251)","v":""},{"$f":"IF(OR(Selection_Hide2!L251=0, Selection_Hide2!L251=\"\"), \"\", Selection_Hide2!L251)","v":""},{"$f":"IF(OR(Selection_Hide2!M251=0, Selection_Hide2!M251=\"\"), \"\", Selection_Hide2!M251)","v":""},{"$f":"IF(OR(Selection_Hide2!N251=0, Selection_Hide2!N251=\"\"), \"\", Selection_Hide2!N251)","v":""},{"$f":"IF(OR(Selection_Hide2!O251=0, Selection_Hide2!O251=\"\"), \"\", Selection_Hide2!O251)","v":""},{"$f":"IF(OR(Selection_Hide2!P251=0, Selection_Hide2!P251=\"\"), \"\", Selection_Hide2!P251)","v":""},{"$f":"IF(OR(Selection_Hide2!Q251=0, Selection_Hide2!Q251=\"\"), \"\", Selection_Hide2!Q251)","v":""},{"$f":"IF(OR(Selection_Hide2!R251=0, Selection_Hide2!R251=\"\"), \"\", Selection_Hide2!R251)","v":""},{"$f":"IF(OR(Selection_Hide2!S251=0, Selection_Hide2!S251=\"\"), \"\", Selection_Hide2!S251)","v":""},{"$f":"IF(OR(Selection_Hide2!T251=0, Selection_Hide2!T251=\"\"), \"\", Selection_Hide2!T251)","v":""},{"$f":"IF(OR(Selection_Hide2!U251=0, Selection_Hide2!U251=\"\"), \"\", Selection_Hide2!U251)","v":""},{"$f":"IF(OR(Selection_Hide2!V251=0, Selection_Hide2!V251=\"\"), \"\", Selection_Hide2!V251)","v":""},{"$f":"IF(OR(Selection_Hide2!W251=0, Selection_Hide2!W251=\"\"), \"\", Selection_Hide2!W251)","v":""},{"$f":"IF(OR(Selection_Hide2!X251=0, Selection_Hide2!X251=\"\"), \"\", Selection_Hide2!X251)","v":""},{"$f":"IF(OR(Selection_Hide2!Y251=0, Selection_Hide2!Y251=\"\"), \"\", Selection_Hide2!Y251)","v":""},{"$f":"IF(OR(Selection_Hide2!Z251=0, Selection_Hide2!Z251=\"\"), \"\", Selection_Hide2!Z251)","v":""},{"$f":"IF(OR(Selection_Hide2!AA251=0, Selection_Hide2!AA251=\"\"), \"\", Selection_Hide2!AA251)","v":""},{"$f":"IF(OR(Selection_Hide2!AB251=0, Selection_Hide2!AB251=\"\"), \"\", Selection_Hide2!AB251)","v":""}]
[{"$f":"IF(OR(Selection_Hide2!A252=0, Selection_Hide2!A252=\"\"), \"\", Selection_Hide2!A252)","v":""},{"$f":"IF(OR(Selection_Hide2!B252=0, Selection_Hide2!B252=\"\"), \"\", Selection_Hide2!B252)","v":""},{"$f":"IF(OR(Selection_Hide2!C252=0, Selection_Hide2!C252=\"\"), \"\", Selection_Hide2!C252)","v":""},{"$f":"IF(OR(Selection_Hide2!D252=0, Selection_Hide2!D252=\"\"), \"\", Selection_Hide2!D252)","v":""},{"$f":"IF(OR(Selection_Hide2!E252=0, Selection_Hide2!E252=\"\"), \"\", Selection_Hide2!E252)","v":""},{"$f":"IF(OR(Selection_Hide2!F252=0, Selection_Hide2!F252=\"\"), \"\", Selection_Hide2!F252)","v":""},{"$f":"IF(OR(Selection_Hide2!G252=0, Selection_Hide2!G252=\"\"), \"\", Selection_Hide2!G252)","v":""},{"$f":"IF(OR(Selection_Hide2!H252=0, Selection_Hide2!H252=\"\"), \"\", Selection_Hide2!H252)","v":""},{"$f":"IF(OR(Selection_Hide2!I252=0, Selection_Hide2!I252=\"\"), \"\", Selection_Hide2!I252)","v":""},{"$f":"IF(OR(Selection_Hide2!J252=0, Selection_Hide2!J252=\"\"), \"\", Selection_Hide2!J252)","v":""},{"$f":"IF(OR(Selection_Hide2!K252=0, Selection_Hide2!K252=\"\"), \"\", Selection_Hide2!K252)","v":""},{"$f":"IF(OR(Selection_Hide2!L252=0, Selection_Hide2!L252=\"\"), \"\", Selection_Hide2!L252)","v":""},{"$f":"IF(OR(Selection_Hide2!M252=0, Selection_Hide2!M252=\"\"), \"\", Selection_Hide2!M252)","v":""},{"$f":"IF(OR(Selection_Hide2!N252=0, Selection_Hide2!N252=\"\"), \"\", Selection_Hide2!N252)","v":""},{"$f":"IF(OR(Selection_Hide2!O252=0, Selection_Hide2!O252=\"\"), \"\", Selection_Hide2!O252)","v":""},{"$f":"IF(OR(Selection_Hide2!P252=0, Selection_Hide2!P252=\"\"), \"\", Selection_Hide2!P252)","v":""},{"$f":"IF(OR(Selection_Hide2!Q252=0, Selection_Hide2!Q252=\"\"), \"\", Selection_Hide2!Q252)","v":""},{"$f":"IF(OR(Selection_Hide2!R252=0, Selection_Hide2!R252=\"\"), \"\", Selection_Hide2!R252)","v":""},{"$f":"IF(OR(Selection_Hide2!S252=0, Selection_Hide2!S252=\"\"), \"\", Selection_Hide2!S252)","v":""},{"$f":"IF(OR(Selection_Hide2!T252=0, Selection_Hide2!T252=\"\"), \"\", Selection_Hide2!T252)","v":""},{"$f":"IF(OR(Selection_Hide2!U252=0, Selection_Hide2!U252=\"\"), \"\", Selection_Hide2!U252)","v":""},{"$f":"IF(OR(Selection_Hide2!V252=0, Selection_Hide2!V252=\"\"), \"\", Selection_Hide2!V252)","v":""},{"$f":"IF(OR(Selection_Hide2!W252=0, Selection_Hide2!W252=\"\"), \"\", Selection_Hide2!W252)","v":""},{"$f":"IF(OR(Selection_Hide2!X252=0, Selection_Hide2!X252=\"\"), \"\", Selection_Hide2!X252)","v":""},{"$f":"IF(OR(Selection_Hide2!Y252=0, Selection_Hide2!Y252=\"\"), \"\", Selection_Hide2!Y252)","v":""},{"$f":"IF(OR(Selection_Hide2!Z252=0, Selection_Hide2!Z252=\"\"), \"\", Selection_Hide2!Z252)","v":""},{"$f":"IF(OR(Selection_Hide2!AA252=0, Selection_Hide2!AA252=\"\"), \"\", Selection_Hide2!AA252)","v":""},{"$f":"IF(OR(Selection_Hide2!AB252=0, Selection_Hide2!AB252=\"\"), \"\", Selection_Hide2!AB252)","v":""}]
[{"$f":"IF(OR(Selection_Hide2!A253=0, Selection_Hide2!A253=\"\"), \"\", Selection_Hide2!A253)","v":""},{"$f":"IF(OR(Selection_Hide2!B253=0, Selection_Hide2!B253=\"\"), \"\", Selection_Hide2!B253)","v":""},{"$f":"IF(OR(Selection_Hide2!C253=0, Selection_Hide2!C253=\"\"), \"\", Selection_Hide2!C253)","v":""},{"$f":"IF(OR(Selection_Hide2!D253=0, Selection_Hide2!D253=\"\"), \"\", Selection_Hide2!D253)","v":""},{"$f":"IF(OR(Selection_Hide2!E253=0, Selection_Hide2!E253=\"\"), \"\", Selection_Hide2!E253)","v":""},{"$f":"IF(OR(Selection_Hide2!F253=0, Selection_Hide2!F253=\"\"), \"\", Selection_Hide2!F253)","v":""},{"$f":"IF(OR(Selection_Hide2!G253=0, Selection_Hide2!G253=\"\"), \"\", Selection_Hide2!G253)","v":""},{"$f":"IF(OR(Selection_Hide2!H253=0, Selection_Hide2!H253=\"\"), \"\", Selection_Hide2!H253)","v":""},{"$f":"IF(OR(Selection_Hide2!I253=0, Selection_Hide2!I253=\"\"), \"\", Selection_Hide2!I253)","v":""},{"$f":"IF(OR(Selection_Hide2!J253=0, Selection_Hide2!J253=\"\"), \"\", Selection_Hide2!J253)","v":""},{"$f":"IF(OR(Selection_Hide2!K253=0, Selection_Hide2!K253=\"\"), \"\", Selection_Hide2!K253)","v":""},{"$f":"IF(OR(Selection_Hide2!L253=0, Selection_Hide2!L253=\"\"), \"\", Selection_Hide2!L253)","v":""},{"$f":"IF(OR(Selection_Hide2!M253=0, Selection_Hide2!M253=\"\"), \"\", Selection_Hide2!M253)","v":""},{"$f":"IF(OR(Selection_Hide2!N253=0, Selection_Hide2!N253=\"\"), \"\", Selection_Hide2!N253)","v":""},{"$f":"IF(OR(Selection_Hide2!O253=0, Selection_Hide2!O253=\"\"), \"\", Selection_Hide2!O253)","v":""},{"$f":"IF(OR(Selection_Hide2!P253=0, Selection_Hide2!P253=\"\"), \"\", Selection_Hide2!P253)","v":""},{"$f":"IF(OR(Selection_Hide2!Q253=0, Selection_Hide2!Q253=\"\"), \"\", Selection_Hide2!Q253)","v":""},{"$f":"IF(OR(Selection_Hide2!R253=0, Selection_Hide2!R253=\"\"), \"\", Selection_Hide2!R253)","v":""},{"$f":"IF(OR(Selection_Hide2!S253=0, Selection_Hide2!S253=\"\"), \"\", Selection_Hide2!S253)","v":""},{"$f":"IF(OR(Selection_Hide2!T253=0, Selection_Hide2!T253=\"\"), \"\", Selection_Hide2!T253)","v":""},{"$f":"IF(OR(Selection_Hide2!U253=0, Selection_Hide2!U253=\"\"), \"\", Selection_Hide2!U253)","v":""},{"$f":"IF(OR(Selection_Hide2!V253=0, Selection_Hide2!V253=\"\"), \"\", Selection_Hide2!V253)","v":""},{"$f":"IF(OR(Selection_Hide2!W253=0, Selection_Hide2!W253=\"\"), \"\", Selection_Hide2!W253)","v":""},{"$f":"IF(OR(Selection_Hide2!X253=0, Selection_Hide2!X253=\"\"), \"\", Selection_Hide2!X253)","v":""},{"$f":"IF(OR(Selection_Hide2!Y253=0, Selection_Hide2!Y253=\"\"), \"\", Selection_Hide2!Y253)","v":""},{"$f":"IF(OR(Selection_Hide2!Z253=0, Selection_Hide2!Z253=\"\"), \"\", Selection_Hide2!Z253)","v":""},{"$f":"IF(OR(Selection_Hide2!AA253=0, Selection_Hide2!AA253=\"\"), \"\", Selection_Hide2!AA253)","v":""},{"$f":"IF(OR(Selection_Hide2!AB253=0, Selection_Hide2!AB253=\"\"), \"\", Selection_Hide2!AB253)","v":""}]
[{"$f":"IF(OR(Selection_Hide2!A254=0, Selection_Hide2!A254=\"\"), \"\", Selection_Hide2!A254)","v":""},{"$f":"IF(OR(Selection_Hide2!B254=0, Selection_Hide2!B254=\"\"), \"\", Selection_Hide2!B254)","v":""},{"$f":"IF(OR(Selection_Hide2!C254=0, Selection_Hide2!C254=\"\"), \"\", Selection_Hide2!C254)","v":""},{"$f":"IF(OR(Selection_Hide2!D254=0, Selection_Hide2!D254=\"\"), \"\", Selection_Hide2!D254)","v":""},{"$f":"IF(OR(Selection_Hide2!E254=0, Selection_Hide2!E254=\"\"), \"\", Selection_Hide2!E254)","v":""},{"$f":"IF(OR(Selection_Hide2!F254=0, Selection_Hide2!F254=\"\"), \"\", Selection_Hide2!F254)","v":""},{"$f":"IF(OR(Selection_Hide2!G254=0, Selection_Hide2!G254=\"\"), \"\", Selection_Hide2!G254)","v":""},{"$f":"IF(OR(Selection_Hide2!H254=0, Selection_Hide2!H254=\"\"), \"\", Selection_Hide2!H254)","v":""},{"$f":"IF(OR(Selection_Hide2!I254=0, Selection_Hide2!I254=\"\"), \"\", Selection_Hide2!I254)","v":""},{"$f":"IF(OR(Selection_Hide2!J254=0, Selection_Hide2!J254=\"\"), \"\", Selection_Hide2!J254)","v":""},{"$f":"IF(OR(Selection_Hide2!K254=0, Selection_Hide2!K254=\"\"), \"\", Selection_Hide2!K254)","v":""},{"$f":"IF(OR(Selection_Hide2!L254=0, Selection_Hide2!L254=\"\"), \"\", Selection_Hide2!L254)","v":""},{"$f":"IF(OR(Selection_Hide2!M254=0, Selection_Hide2!M254=\"\"), \"\", Selection_Hide2!M254)","v":""},{"$f":"IF(OR(Selection_Hide2!N254=0, Selection_Hide2!N254=\"\"), \"\", Selection_Hide2!N254)","v":""},{"$f":"IF(OR(Selection_Hide2!O254=0, Selection_Hide2!O254=\"\"), \"\", Selection_Hide2!O254)","v":""},{"$f":"IF(OR(Selection_Hide2!P254=0, Selection_Hide2!P254=\"\"), \"\", Selection_Hide2!P254)","v":""},{"$f":"IF(OR(Selection_Hide2!Q254=0, Selection_Hide2!Q254=\"\"), \"\", Selection_Hide2!Q254)","v":""},{"$f":"IF(OR(Selection_Hide2!R254=0, Selection_Hide2!R254=\"\"), \"\", Selection_Hide2!R254)","v":""},{"$f":"IF(OR(Selection_Hide2!S254=0, Selection_Hide2!S254=\"\"), \"\", Selection_Hide2!S254)","v":""},{"$f":"IF(OR(Selection_Hide2!T254=0, Selection_Hide2!T254=\"\"), \"\", Selection_Hide2!T254)","v":""},{"$f":"IF(OR(Selection_Hide2!U254=0, Selection_Hide2!U254=\"\"), \"\", Selection_Hide2!U254)","v":""},{"$f":"IF(OR(Selection_Hide2!V254=0, Selection_Hide2!V254=\"\"), \"\", Selection_Hide2!V254)","v":""},{"$f":"IF(OR(Selection_Hide2!W254=0, Selection_Hide2!W254=\"\"), \"\", Selection_Hide2!W254)","v":""},{"$f":"IF(OR(Selection_Hide2!X254=0, Selection_Hide2!X254=\"\"), \"\", Selection_Hide2!X254)","v":""},{"$f":"IF(OR(Selection_Hide2!Y254=0, Selection_Hide2!Y254=\"\"), \"\", Selection_Hide2!Y254)","v":""},{"$f":"IF(OR(Selection_Hide2!Z254=0, Selection_Hide2!Z254=\"\"), \"\", Selection_Hide2!Z254)","v":""},{"$f":"IF(OR(Selection_Hide2!AA254=0, Selection_Hide2!AA254=\"\"), \"\", Selection_Hide2!AA254)","v":""},{"$f":"IF(OR(Selection_Hide2!AB254=0, Selection_Hide2!AB254=\"\"), \"\", Selection_Hide2!AB254)","v":""}]
[{"$f":"IF(OR(Selection_Hide2!A255=0, Selection_Hide2!A255=\"\"), \"\", Selection_Hide2!A255)","v":""},{"$f":"IF(OR(Selection_Hide2!B255=0, Selection_Hide2!B255=\"\"), \"\", Selection_Hide2!B255)","v":""},{"$f":"IF(OR(Selection_Hide2!C255=0, Selection_Hide2!C255=\"\"), \"\", Selection_Hide2!C255)","v":""},{"$f":"IF(OR(Selection_Hide2!D255=0, Selection_Hide2!D255=\"\"), \"\", Selection_Hide2!D255)","v":""},{"$f":"IF(OR(Selection_Hide2!E255=0, Selection_Hide2!E255=\"\"), \"\", Selection_Hide2!E255)","v":""},{"$f":"IF(OR(Selection_Hide2!F255=0, Selection_Hide2!F255=\"\"), \"\", Selection_Hide2!F255)","v":""},{"$f":"IF(OR(Selection_Hide2!G255=0, Selection_Hide2!G255=\"\"), \"\", Selection_Hide2!G255)","v":""},{"$f":"IF(OR(Selection_Hide2!H255=0, Selection_Hide2!H255=\"\"), \"\", Selection_Hide2!H255)","v":""},{"$f":"IF(OR(Selection_Hide2!I255=0, Selection_Hide2!I255=\"\"), \"\", Selection_Hide2!I255)","v":""},{"$f":"IF(OR(Selection_Hide2!J255=0, Selection_Hide2!J255=\"\"), \"\", Selection_Hide2!J255)","v":""},{"$f":"IF(OR(Selection_Hide2!K255=0, Selection_Hide2!K255=\"\"), \"\", Selection_Hide2!K255)","v":""},{"$f":"IF(OR(Selection_Hide2!L255=0, Selection_Hide2!L255=\"\"), \"\", Selection_Hide2!L255)","v":""},{"$f":"IF(OR(Selection_Hide2!M255=0, Selection_Hide2!M255=\"\"), \"\", Selection_Hide2!M255)","v":""},{"$f":"IF(OR(Selection_Hide2!N255=0, Selection_Hide2!N255=\"\"), \"\", Selection_Hide2!N255)","v":""},{"$f":"IF(OR(Selection_Hide2!O255=0, Selection_Hide2!O255=\"\"), \"\", Selection_Hide2!O255)","v":""},{"$f":"IF(OR(Selection_Hide2!P255=0, Selection_Hide2!P255=\"\"), \"\", Selection_Hide2!P255)","v":""},{"$f":"IF(OR(Selection_Hide2!Q255=0, Selection_Hide2!Q255=\"\"), \"\", Selection_Hide2!Q255)","v":""},{"$f":"IF(OR(Selection_Hide2!R255=0, Selection_Hide2!R255=\"\"), \"\", Selection_Hide2!R255)","v":""},{"$f":"IF(OR(Selection_Hide2!S255=0, Selection_Hide2!S255=\"\"), \"\", Selection_Hide2!S255)","v":""},{"$f":"IF(OR(Selection_Hide2!T255=0, Selection_Hide2!T255=\"\"), \"\", Selection_Hide2!T255)","v":""},{"$f":"IF(OR(Selection_Hide2!U255=0, Selection_Hide2!U255=\"\"), \"\", Selection_Hide2!U255)","v":""},{"$f":"IF(OR(Selection_Hide2!V255=0, Selection_Hide2!V255=\"\"), \"\", Selection_Hide2!V255)","v":""},{"$f":"IF(OR(Selection_Hide2!W255=0, Selection_Hide2!W255=\"\"), \"\", Selection_Hide2!W255)","v":""},{"$f":"IF(OR(Selection_Hide2!X255=0, Selection_Hide2!X255=\"\"), \"\", Selection_Hide2!X255)","v":""},{"$f":"IF(OR(Selection_Hide2!Y255=0, Selection_Hide2!Y255=\"\"), \"\", Selection_Hide2!Y255)","v":""},{"$f":"IF(OR(Selection_Hide2!Z255=0, Selection_Hide2!Z255=\"\"), \"\", Selection_Hide2!Z255)","v":""},{"$f":"IF(OR(Selection_Hide2!AA255=0, Selection_Hide2!AA255=\"\"), \"\", Selection_Hide2!AA255)","v":""},{"$f":"IF(OR(Selection_Hide2!AB255=0, Selection_Hide2!AB255=\"\"), \"\", Selection_Hide2!AB255)","v":""}]
[{"$f":"IF(OR(Selection_Hide2!A256=0, Selection_Hide2!A256=\"\"), \"\", Selection_Hide2!A256)","v":""},{"$f":"IF(OR(Selection_Hide2!B256=0, Selection_Hide2!B256=\"\"), \"\", Selection_Hide2!B256)","v":""},{"$f":"IF(OR(Selection_Hide2!C256=0, Selection_Hide2!C256=\"\"), \"\", Selection_Hide2!C256)","v":""},{"$f":"IF(OR(Selection_Hide2!D256=0, Selection_Hide2!D256=\"\"), \"\", Selection_Hide2!D256)","v":""},{"$f":"IF(OR(Selection_Hide2!E256=0, Selection_Hide2!E256=\"\"), \"\", Selection_Hide2!E256)","v":""},{"$f":"IF(OR(Selection_Hide2!F256=0, Selection_Hide2!F256=\"\"), \"\", Selection_Hide2!F256)","v":""},{"$f":"IF(OR(Selection_Hide2!G256=0, Selection_Hide2!G256=\"\"), \"\", Selection_Hide2!G256)","v":""},{"$f":"IF(OR(Selection_Hide2!H256=0, Selection_Hide2!H256=\"\"), \"\", Selection_Hide2!H256)","v":""},{"$f":"IF(OR(Selection_Hide2!I256=0, Selection_Hide2!I256=\"\"), \"\", Selection_Hide2!I256)","v":""},{"$f":"IF(OR(Selection_Hide2!J256=0, Selection_Hide2!J256=\"\"), \"\", Selection_Hide2!J256)","v":""},{"$f":"IF(OR(Selection_Hide2!K256=0, Selection_Hide2!K256=\"\"), \"\", Selection_Hide2!K256)","v":""},{"$f":"IF(OR(Selection_Hide2!L256=0, Selection_Hide2!L256=\"\"), \"\", Selection_Hide2!L256)","v":""},{"$f":"IF(OR(Selection_Hide2!M256=0, Selection_Hide2!M256=\"\"), \"\", Selection_Hide2!M256)","v":""},{"$f":"IF(OR(Selection_Hide2!N256=0, Selection_Hide2!N256=\"\"), \"\", Selection_Hide2!N256)","v":""},{"$f":"IF(OR(Selection_Hide2!O256=0, Selection_Hide2!O256=\"\"), \"\", Selection_Hide2!O256)","v":""},{"$f":"IF(OR(Selection_Hide2!P256=0, Selection_Hide2!P256=\"\"), \"\", Selection_Hide2!P256)","v":""},{"$f":"IF(OR(Selection_Hide2!Q256=0, Selection_Hide2!Q256=\"\"), \"\", Selection_Hide2!Q256)","v":""},{"$f":"IF(OR(Selection_Hide2!R256=0, Selection_Hide2!R256=\"\"), \"\", Selection_Hide2!R256)","v":""},{"$f":"IF(OR(Selection_Hide2!S256=0, Selection_Hide2!S256=\"\"), \"\", Selection_Hide2!S256)","v":""},{"$f":"IF(OR(Selection_Hide2!T256=0, Selection_Hide2!T256=\"\"), \"\", Selection_Hide2!T256)","v":""},{"$f":"IF(OR(Selection_Hide2!U256=0, Selection_Hide2!U256=\"\"), \"\", Selection_Hide2!U256)","v":""},{"$f":"IF(OR(Selection_Hide2!V256=0, Selection_Hide2!V256=\"\"), \"\", Selection_Hide2!V256)","v":""},{"$f":"IF(OR(Selection_Hide2!W256=0, Selection_Hide2!W256=\"\"), \"\", Selection_Hide2!W256)","v":""},{"$f":"IF(OR(Selection_Hide2!X256=0, Selection_Hide2!X256=\"\"), \"\", Selection_Hide2!X256)","v":""},{"$f":"IF(OR(Selection_Hide2!Y256=0, Selection_Hide2!Y256=\"\"), \"\", Selection_Hide2!Y256)","v":""},{"$f":"IF(OR(Selection_Hide2!Z256=0, Selection_Hide2!Z256=\"\"), \"\", Selection_Hide2!Z256)","v":""},{"$f":"IF(OR(Selection_Hide2!AA256=0, Selection_Hide2!AA256=\"\"), \"\", Selection_Hide2!AA256)","v":""},{"$f":"IF(OR(Selection_Hide2!AB256=0, Selection_Hide2!AB256=\"\"), \"\", Selection_Hide2!AB256)","v":""}]
[{"$f":"IF(OR(Selection_Hide2!A257=0, Selection_Hide2!A257=\"\"), \"\", Selection_Hide2!A257)","v":""},{"$f":"IF(OR(Selection_Hide2!B257=0, Selection_Hide2!B257=\"\"), \"\", Selection_Hide2!B257)","v":""},{"$f":"IF(OR(Selection_Hide2!C257=0, Selection_Hide2!C257=\"\"), \"\", Selection_Hide2!C257)","v":""},{"$f":"IF(OR(Selection_Hide2!D257=0, Selection_Hide2!D257=\"\"), \"\", Selection_Hide2!D257)","v":""},{"$f":"IF(OR(Selection_Hide2!E257=0, Selection_Hide2!E257=\"\"), \"\", Selection_Hide2!E257)","v":""},{"$f":"IF(OR(Selection_Hide2!F257=0, Selection_Hide2!F257=\"\"), \"\", Selection_Hide2!F257)","v":""},{"$f":"IF(OR(Selection_Hide2!G257=0, Selection_Hide2!G257=\"\"), \"\", Selection_Hide2!G257)","v":""},{"$f":"IF(OR(Selection_Hide2!H257=0, Selection_Hide2!H257=\"\"), \"\", Selection_Hide2!H257)","v":""},{"$f":"IF(OR(Selection_Hide2!I257=0, Selection_Hide2!I257=\"\"), \"\", Selection_Hide2!I257)","v":""},{"$f":"IF(OR(Selection_Hide2!J257=0, Selection_Hide2!J257=\"\"), \"\", Selection_Hide2!J257)","v":""},{"$f":"IF(OR(Selection_Hide2!K257=0, Selection_Hide2!K257=\"\"), \"\", Selection_Hide2!K257)","v":""},{"$f":"IF(OR(Selection_Hide2!L257=0, Selection_Hide2!L257=\"\"), \"\", Selection_Hide2!L257)","v":""},{"$f":"IF(OR(Selection_Hide2!M257=0, Selection_Hide2!M257=\"\"), \"\", Selection_Hide2!M257)","v":""},{"$f":"IF(OR(Selection_Hide2!N257=0, Selection_Hide2!N257=\"\"), \"\", Selection_Hide2!N257)","v":""},{"$f":"IF(OR(Selection_Hide2!O257=0, Selection_Hide2!O257=\"\"), \"\", Selection_Hide2!O257)","v":""},{"$f":"IF(OR(Selection_Hide2!P257=0, Selection_Hide2!P257=\"\"), \"\", Selection_Hide2!P257)","v":""},{"$f":"IF(OR(Selection_Hide2!Q257=0, Selection_Hide2!Q257=\"\"), \"\", Selection_Hide2!Q257)","v":""},{"$f":"IF(OR(Selection_Hide2!R257=0, Selection_Hide2!R257=\"\"), \"\", Selection_Hide2!R257)","v":""},{"$f":"IF(OR(Selection_Hide2!S257=0, Selection_Hide2!S257=\"\"), \"\", Selection_Hide2!S257)","v":""},{"$f":"IF(OR(Selection_Hide2!T257=0, Selection_Hide2!T257=\"\"), \"\", Selection_Hide2!T257)","v":""},{"$f":"IF(OR(Selection_Hide2!U257=0, Selection_Hide2!U257=\"\"), \"\", Selection_Hide2!U257)","v":""},{"$f":"IF(OR(Selection_Hide2!V257=0, Selection_Hide2!V257=\"\"), \"\", Selection_Hide2!V257)","v":""},{"$f":"IF(OR(Selection_Hide2!W257=0, Selection_Hide2!W257=\"\"), \"\", Selection_Hide2!W257)","v":""},{"$f":"IF(OR(Selection_Hide2!X257=0, Selection_Hide2!X257=\"\"), \"\", Selection_Hide2!X257)","v":""},{"$f":"IF(OR(Selection_Hide2!Y257=0, Selection_Hide2!Y257=\"\"), \"\", Selection_Hide2!Y257)","v":""},{"$f":"IF(OR(Selection_Hide2!Z257=0, Selection_Hide2!Z257=\"\"), \"\", Selection_Hide2!Z257)","v":""},{"$f":"IF(OR(Selection_Hide2!AA257=0, Selection_Hide2!AA257=\"\"), \"\", Selection_Hide2!AA257)","v":""},{"$f":"IF(OR(Selection_Hide2!AB257=0, Selection_Hide2!AB257=\"\"), \"\", Selection_Hide2!AB257)","v":""}]
[{"$f":"IF(OR(Selection_Hide2!A258=0, Selection_Hide2!A258=\"\"), \"\", Selection_Hide2!A258)","v":""},{"$f":"IF(OR(Selection_Hide2!B258=0, Selection_Hide2!B258=\"\"), \"\", Selection_Hide2!B258)","v":""},{"$f":"IF(OR(Selection_Hide2!C258=0, Selection_Hide2!C258=\"\"), \"\", Selection_Hide2!C258)","v":""},{"$f":"IF(OR(Selection_Hide2!D258=0, Selection_Hide2!D258=\"\"), \"\", Selection_Hide2!D258)","v":""},{"$f":"IF(OR(Selection_Hide2!E258=0, Selection_Hide2!E258=\"\"), \"\", Selection_Hide2!E258)","v":""},{"$f":"IF(OR(Selection_Hide2!F258=0, Selection_Hide2!F258=\"\"), \"\", Selection_Hide2!F258)","v":""},{"$f":"IF(OR(Selection_Hide2!G258=0, Selection_Hide2!G258=\"\"), \"\", Selection_Hide2!G258)","v":""},{"$f":"IF(OR(Selection_Hide2!H258=0, Selection_Hide2!H258=\"\"), \"\", Selection_Hide2!H258)","v":""},{"$f":"IF(OR(Selection_Hide2!I258=0, Selection_Hide2!I258=\"\"), \"\", Selection_Hide2!I258)","v":""},{"$f":"IF(OR(Selection_Hide2!J258=0, Selection_Hide2!J258=\"\"), \"\", Selection_Hide2!J258)","v":""},{"$f":"IF(OR(Selection_Hide2!K258=0, Selection_Hide2!K258=\"\"), \"\", Selection_Hide2!K258)","v":""},{"$f":"IF(OR(Selection_Hide2!L258=0, Selection_Hide2!L258=\"\"), \"\", Selection_Hide2!L258)","v":""},{"$f":"IF(OR(Selection_Hide2!M258=0, Selection_Hide2!M258=\"\"), \"\", Selection_Hide2!M258)","v":""},{"$f":"IF(OR(Selection_Hide2!N258=0, Selection_Hide2!N258=\"\"), \"\", Selection_Hide2!N258)","v":""},{"$f":"IF(OR(Selection_Hide2!O258=0, Selection_Hide2!O258=\"\"), \"\", Selection_Hide2!O258)","v":""},{"$f":"IF(OR(Selection_Hide2!P258=0, Selection_Hide2!P258=\"\"), \"\", Selection_Hide2!P258)","v":""},{"$f":"IF(OR(Selection_Hide2!Q258=0, Selection_Hide2!Q258=\"\"), \"\", Selection_Hide2!Q258)","v":""},{"$f":"IF(OR(Selection_Hide2!R258=0, Selection_Hide2!R258=\"\"), \"\", Selection_Hide2!R258)","v":""},{"$f":"IF(OR(Selection_Hide2!S258=0, Selection_Hide2!S258=\"\"), \"\", Selection_Hide2!S258)","v":""},{"$f":"IF(OR(Selection_Hide2!T258=0, Selection_Hide2!T258=\"\"), \"\", Selection_Hide2!T258)","v":""},{"$f":"IF(OR(Selection_Hide2!U258=0, Selection_Hide2!U258=\"\"), \"\", Selection_Hide2!U258)","v":""},{"$f":"IF(OR(Selection_Hide2!V258=0, Selection_Hide2!V258=\"\"), \"\", Selection_Hide2!V258)","v":""},{"$f":"IF(OR(Selection_Hide2!W258=0, Selection_Hide2!W258=\"\"), \"\", Selection_Hide2!W258)","v":""},{"$f":"IF(OR(Selection_Hide2!X258=0, Selection_Hide2!X258=\"\"), \"\", Selection_Hide2!X258)","v":""},{"$f":"IF(OR(Selection_Hide2!Y258=0, Selection_Hide2!Y258=\"\"), \"\", Selection_Hide2!Y258)","v":""},{"$f":"IF(OR(Selection_Hide2!Z258=0, Selection_Hide2!Z258=\"\"), \"\", Selection_Hide2!Z258)","v":""},{"$f":"IF(OR(Selection_Hide2!AA258=0, Selection_Hide2!AA258=\"\"), \"\", Selection_Hide2!AA258)","v":""},{"$f":"IF(OR(Selection_Hide2!AB258=0, Selection_Hide2!AB258=\"\"), \"\", Selection_Hide2!AB258)","v":""}]
[{"$f":"IF(OR(Selection_Hide2!A259=0, Selection_Hide2!A259=\"\"), \"\", Selection_Hide2!A259)","v":""},{"$f":"IF(OR(Selection_Hide2!B259=0, Selection_Hide2!B259=\"\"), \"\", Selection_Hide2!B259)","v":""},{"$f":"IF(OR(Selection_Hide2!C259=0, Selection_Hide2!C259=\"\"), \"\", Selection_Hide2!C259)","v":""},{"$f":"IF(OR(Selection_Hide2!D259=0, Selection_Hide2!D259=\"\"), \"\", Selection_Hide2!D259)","v":""},{"$f":"IF(OR(Selection_Hide2!E259=0, Selection_Hide2!E259=\"\"), \"\", Selection_Hide2!E259)","v":""},{"$f":"IF(OR(Selection_Hide2!F259=0, Selection_Hide2!F259=\"\"), \"\", Selection_Hide2!F259)","v":""},{"$f":"IF(OR(Selection_Hide2!G259=0, Selection_Hide2!G259=\"\"), \"\", Selection_Hide2!G259)","v":""},{"$f":"IF(OR(Selection_Hide2!H259=0, Selection_Hide2!H259=\"\"), \"\", Selection_Hide2!H259)","v":""},{"$f":"IF(OR(Selection_Hide2!I259=0, Selection_Hide2!I259=\"\"), \"\", Selection_Hide2!I259)","v":""},{"$f":"IF(OR(Selection_Hide2!J259=0, Selection_Hide2!J259=\"\"), \"\", Selection_Hide2!J259)","v":""},{"$f":"IF(OR(Selection_Hide2!K259=0, Selection_Hide2!K259=\"\"), \"\", Selection_Hide2!K259)","v":""},{"$f":"IF(OR(Selection_Hide2!L259=0, Selection_Hide2!L259=\"\"), \"\", Selection_Hide2!L259)","v":""},{"$f":"IF(OR(Selection_Hide2!M259=0, Selection_Hide2!M259=\"\"), \"\", Selection_Hide2!M259)","v":""},{"$f":"IF(OR(Selection_Hide2!N259=0, Selection_Hide2!N259=\"\"), \"\", Selection_Hide2!N259)","v":""},{"$f":"IF(OR(Selection_Hide2!O259=0, Selection_Hide2!O259=\"\"), \"\", Selection_Hide2!O259)","v":""},{"$f":"IF(OR(Selection_Hide2!P259=0, Selection_Hide2!P259=\"\"), \"\", Selection_Hide2!P259)","v":""},{"$f":"IF(OR(Selection_Hide2!Q259=0, Selection_Hide2!Q259=\"\"), \"\", Selection_Hide2!Q259)","v":""},{"$f":"IF(OR(Selection_Hide2!R259=0, Selection_Hide2!R259=\"\"), \"\", Selection_Hide2!R259)","v":""},{"$f":"IF(OR(Selection_Hide2!S259=0, Selection_Hide2!S259=\"\"), \"\", Selection_Hide2!S259)","v":""},{"$f":"IF(OR(Selection_Hide2!T259=0, Selection_Hide2!T259=\"\"), \"\", Selection_Hide2!T259)","v":""},{"$f":"IF(OR(Selection_Hide2!U259=0, Selection_Hide2!U259=\"\"), \"\", Selection_Hide2!U259)","v":""},{"$f":"IF(OR(Selection_Hide2!V259=0, Selection_Hide2!V259=\"\"), \"\", Selection_Hide2!V259)","v":""},{"$f":"IF(OR(Selection_Hide2!W259=0, Selection_Hide2!W259=\"\"), \"\", Selection_Hide2!W259)","v":""},{"$f":"IF(OR(Selection_Hide2!X259=0, Selection_Hide2!X259=\"\"), \"\", Selection_Hide2!X259)","v":""},{"$f":"IF(OR(Selection_Hide2!Y259=0, Selection_Hide2!Y259=\"\"), \"\", Selection_Hide2!Y259)","v":""},{"$f":"IF(OR(Selection_Hide2!Z259=0, Selection_Hide2!Z259=\"\"), \"\", Selection_Hide2!Z259)","v":""},{"$f":"IF(OR(Selection_Hide2!AA259=0, Selection_Hide2!AA259=\"\"), \"\", Selection_Hide2!AA259)","v":""},{"$f":"IF(OR(Selection_Hide2!AB259=0, Selection_Hide2!AB259=\"\"), \"\", Selection_Hide2!AB259)","v":""}]
[{"$f":"IF(OR(Selection_Hide2!A260=0, Selection_Hide2!A260=\"\"), \"\", Selection_Hide2!A260)","v":""},{"$f":"IF(OR(Selection_Hide2!B260=0, Selection_Hide2!B260=\"\"), \"\", Selection_Hide2!B260)","v":""},{"$f":"IF(OR(Selection_Hide2!C260=0, Selection_Hide2!C260=\"\"), \"\", Selection_Hide2!C260)","v":""},{"$f":"IF(OR(Selection_Hide2!D260=0, Selection_Hide2!D260=\"\"), \"\", Selection_Hide2!D260)","v":""},{"$f":"IF(OR(Selection_Hide2!E260=0, Selection_Hide2!E260=\"\"), \"\", Selection_Hide2!E260)","v":""},{"$f":"IF(OR(Selection_Hide2!F260=0, Selection_Hide2!F260=\"\"), \"\", Selection_Hide2!F260)","v":""},{"$f":"IF(OR(Selection_Hide2!G260=0, Selection_Hide2!G260=\"\"), \"\", Selection_Hide2!G260)","v":""},{"$f":"IF(OR(Selection_Hide2!H260=0, Selection_Hide2!H260=\"\"), \"\", Selection_Hide2!H260)","v":""},{"$f":"IF(OR(Selection_Hide2!I260=0, Selection_Hide2!I260=\"\"), \"\", Selection_Hide2!I260)","v":""},{"$f":"IF(OR(Selection_Hide2!J260=0, Selection_Hide2!J260=\"\"), \"\", Selection_Hide2!J260)","v":""},{"$f":"IF(OR(Selection_Hide2!K260=0, Selection_Hide2!K260=\"\"), \"\", Selection_Hide2!K260)","v":""},{"$f":"IF(OR(Selection_Hide2!L260=0, Selection_Hide2!L260=\"\"), \"\", Selection_Hide2!L260)","v":""},{"$f":"IF(OR(Selection_Hide2!M260=0, Selection_Hide2!M260=\"\"), \"\", Selection_Hide2!M260)","v":""},{"$f":"IF(OR(Selection_Hide2!N260=0, Selection_Hide2!N260=\"\"), \"\", Selection_Hide2!N260)","v":""},{"$f":"IF(OR(Selection_Hide2!O260=0, Selection_Hide2!O260=\"\"), \"\", Selection_Hide2!O260)","v":""},{"$f":"IF(OR(Selection_Hide2!P260=0, Selection_Hide2!P260=\"\"), \"\", Selection_Hide2!P260)","v":""},{"$f":"IF(OR(Selection_Hide2!Q260=0, Selection_Hide2!Q260=\"\"), \"\", Selection_Hide2!Q260)","v":""},{"$f":"IF(OR(Selection_Hide2!R260=0, Selection_Hide2!R260=\"\"), \"\", Selection_Hide2!R260)","v":""},{"$f":"IF(OR(Selection_Hide2!S260=0, Selection_Hide2!S260=\"\"), \"\", Selection_Hide2!S260)","v":""},{"$f":"IF(OR(Selection_Hide2!T260=0, Selection_Hide2!T260=\"\"), \"\", Selection_Hide2!T260)","v":""},{"$f":"IF(OR(Selection_Hide2!U260=0, Selection_Hide2!U260=\"\"), \"\", Selection_Hide2!U260)","v":""},{"$f":"IF(OR(Selection_Hide2!V260=0, Selection_Hide2!V260=\"\"), \"\", Selection_Hide2!V260)","v":""},{"$f":"IF(OR(Selection_Hide2!W260=0, Selection_Hide2!W260=\"\"), \"\", Selection_Hide2!W260)","v":""},{"$f":"IF(OR(Selection_Hide2!X260=0, Selection_Hide2!X260=\"\"), \"\", Selection_Hide2!X260)","v":""},{"$f":"IF(OR(Selection_Hide2!Y260=0, Selection_Hide2!Y260=\"\"), \"\", Selection_Hide2!Y260)","v":""},{"$f":"IF(OR(Selection_Hide2!Z260=0, Selection_Hide2!Z260=\"\"), \"\", Selection_Hide2!Z260)","v":""},{"$f":"IF(OR(Selection_Hide2!AA260=0, Selection_Hide2!AA260=\"\"), \"\", Selection_Hide2!AA260)","v":""},{"$f":"IF(OR(Selection_Hide2!AB260=0, Selection_Hide2!AB260=\"\"), \"\", Selection_Hide2!AB260)","v":""}]
[{"$f":"IF(OR(Selection_Hide2!A261=0, Selection_Hide2!A261=\"\"), \"\", Selection_Hide2!A261)","v":""},{"$f":"IF(OR(Selection_Hide2!B261=0, Selection_Hide2!B261=\"\"), \"\", Selection_Hide2!B261)","v":""},{"$f":"IF(OR(Selection_Hide2!C261=0, Selection_Hide2!C261=\"\"), \"\", Selection_Hide2!C261)","v":""},{"$f":"IF(OR(Selection_Hide2!D261=0, Selection_Hide2!D261=\"\"), \"\", Selection_Hide2!D261)","v":""},{"$f":"IF(OR(Selection_Hide2!E261=0, Selection_Hide2!E261=\"\"), \"\", Selection_Hide2!E261)","v":""},{"$f":"IF(OR(Selection_Hide2!F261=0, Selection_Hide2!F261=\"\"), \"\", Selection_Hide2!F261)","v":""},{"$f":"IF(OR(Selection_Hide2!G261=0, Selection_Hide2!G261=\"\"), \"\", Selection_Hide2!G261)","v":""},{"$f":"IF(OR(Selection_Hide2!H261=0, Selection_Hide2!H261=\"\"), \"\", Selection_Hide2!H261)","v":""},{"$f":"IF(OR(Selection_Hide2!I261=0, Selection_Hide2!I261=\"\"), \"\", Selection_Hide2!I261)","v":""},{"$f":"IF(OR(Selection_Hide2!J261=0, Selection_Hide2!J261=\"\"), \"\", Selection_Hide2!J261)","v":""},{"$f":"IF(OR(Selection_Hide2!K261=0, Selection_Hide2!K261=\"\"), \"\", Selection_Hide2!K261)","v":""},{"$f":"IF(OR(Selection_Hide2!L261=0, Selection_Hide2!L261=\"\"), \"\", Selection_Hide2!L261)","v":""},{"$f":"IF(OR(Selection_Hide2!M261=0, Selection_Hide2!M261=\"\"), \"\", Selection_Hide2!M261)","v":""},{"$f":"IF(OR(Selection_Hide2!N261=0, Selection_Hide2!N261=\"\"), \"\", Selection_Hide2!N261)","v":""},{"$f":"IF(OR(Selection_Hide2!O261=0, Selection_Hide2!O261=\"\"), \"\", Selection_Hide2!O261)","v":""},{"$f":"IF(OR(Selection_Hide2!P261=0, Selection_Hide2!P261=\"\"), \"\", Selection_Hide2!P261)","v":""},{"$f":"IF(OR(Selection_Hide2!Q261=0, Selection_Hide2!Q261=\"\"), \"\", Selection_Hide2!Q261)","v":""},{"$f":"IF(OR(Selection_Hide2!R261=0, Selection_Hide2!R261=\"\"), \"\", Selection_Hide2!R261)","v":""},{"$f":"IF(OR(Selection_Hide2!S261=0, Selection_Hide2!S261=\"\"), \"\", Selection_Hide2!S261)","v":""},{"$f":"IF(OR(Selection_Hide2!T261=0, Selection_Hide2!T261=\"\"), \"\", Selection_Hide2!T261)","v":""},{"$f":"IF(OR(Selection_Hide2!U261=0, Selection_Hide2!U261=\"\"), \"\", Selection_Hide2!U261)","v":""},{"$f":"IF(OR(Selection_Hide2!V261=0, Selection_Hide2!V261=\"\"), \"\", Selection_Hide2!V261)","v":""},{"$f":"IF(OR(Selection_Hide2!W261=0, Selection_Hide2!W261=\"\"), \"\", Selection_Hide2!W261)","v":""},{"$f":"IF(OR(Selection_Hide2!X261=0, Selection_Hide2!X261=\"\"), \"\", Selection_Hide2!X261)","v":""},{"$f":"IF(OR(Selection_Hide2!Y261=0, Selection_Hide2!Y261=\"\"), \"\", Selection_Hide2!Y261)","v":""},{"$f":"IF(OR(Selection_Hide2!Z261=0, Selection_Hide2!Z261=\"\"), \"\", Selection_Hide2!Z261)","v":""},{"$f":"IF(OR(Selection_Hide2!AA261=0, Selection_Hide2!AA261=\"\"), \"\", Selection_Hide2!AA261)","v":""},{"$f":"IF(OR(Selection_Hide2!AB261=0, Selection_Hide2!AB261=\"\"), \"\", Selection_Hide2!AB261)","v":""}]
[{"$f":"IF(OR(Selection_Hide2!A262=0, Selection_Hide2!A262=\"\"), \"\", Selection_Hide2!A262)","v":""},{"$f":"IF(OR(Selection_Hide2!B262=0, Selection_Hide2!B262=\"\"), \"\", Selection_Hide2!B262)","v":""},{"$f":"IF(OR(Selection_Hide2!C262=0, Selection_Hide2!C262=\"\"), \"\", Selection_Hide2!C262)","v":""},{"$f":"IF(OR(Selection_Hide2!D262=0, Selection_Hide2!D262=\"\"), \"\", Selection_Hide2!D262)","v":""},{"$f":"IF(OR(Selection_Hide2!E262=0, Selection_Hide2!E262=\"\"), \"\", Selection_Hide2!E262)","v":""},{"$f":"IF(OR(Selection_Hide2!F262=0, Selection_Hide2!F262=\"\"), \"\", Selection_Hide2!F262)","v":""},{"$f":"IF(OR(Selection_Hide2!G262=0, Selection_Hide2!G262=\"\"), \"\", Selection_Hide2!G262)","v":""},{"$f":"IF(OR(Selection_Hide2!H262=0, Selection_Hide2!H262=\"\"), \"\", Selection_Hide2!H262)","v":""},{"$f":"IF(OR(Selection_Hide2!I262=0, Selection_Hide2!I262=\"\"), \"\", Selection_Hide2!I262)","v":""},{"$f":"IF(OR(Selection_Hide2!J262=0, Selection_Hide2!J262=\"\"), \"\", Selection_Hide2!J262)","v":""},{"$f":"IF(OR(Selection_Hide2!K262=0, Selection_Hide2!K262=\"\"), \"\", Selection_Hide2!K262)","v":""},{"$f":"IF(OR(Selection_Hide2!L262=0, Selection_Hide2!L262=\"\"), \"\", Selection_Hide2!L262)","v":""},{"$f":"IF(OR(Selection_Hide2!M262=0, Selection_Hide2!M262=\"\"), \"\", Selection_Hide2!M262)","v":""},{"$f":"IF(OR(Selection_Hide2!N262=0, Selection_Hide2!N262=\"\"), \"\", Selection_Hide2!N262)","v":""},{"$f":"IF(OR(Selection_Hide2!O262=0, Selection_Hide2!O262=\"\"), \"\", Selection_Hide2!O262)","v":""},{"$f":"IF(OR(Selection_Hide2!P262=0, Selection_Hide2!P262=\"\"), \"\", Selection_Hide2!P262)","v":""},{"$f":"IF(OR(Selection_Hide2!Q262=0, Selection_Hide2!Q262=\"\"), \"\", Selection_Hide2!Q262)","v":""},{"$f":"IF(OR(Selection_Hide2!R262=0, Selection_Hide2!R262=\"\"), \"\", Selection_Hide2!R262)","v":""},{"$f":"IF(OR(Selection_Hide2!S262=0, Selection_Hide2!S262=\"\"), \"\", Selection_Hide2!S262)","v":""},{"$f":"IF(OR(Selection_Hide2!T262=0, Selection_Hide2!T262=\"\"), \"\", Selection_Hide2!T262)","v":""},{"$f":"IF(OR(Selection_Hide2!U262=0, Selection_Hide2!U262=\"\"), \"\", Selection_Hide2!U262)","v":""},{"$f":"IF(OR(Selection_Hide2!V262=0, Selection_Hide2!V262=\"\"), \"\", Selection_Hide2!V262)","v":""},{"$f":"IF(OR(Selection_Hide2!W262=0, Selection_Hide2!W262=\"\"), \"\", Selection_Hide2!W262)","v":""},{"$f":"IF(OR(Selection_Hide2!X262=0, Selection_Hide2!X262=\"\"), \"\", Selection_Hide2!X262)","v":""},{"$f":"IF(OR(Selection_Hide2!Y262=0, Selection_Hide2!Y262=\"\"), \"\", Selection_Hide2!Y262)","v":""},{"$f":"IF(OR(Selection_Hide2!Z262=0, Selection_Hide2!Z262=\"\"), \"\", Selection_Hide2!Z262)","v":""},{"$f":"IF(OR(Selection_Hide2!AA262=0, Selection_Hide2!AA262=\"\"), \"\", Selection_Hide2!AA262)","v":""},{"$f":"IF(OR(Selection_Hide2!AB262=0, Selection_Hide2!AB262=\"\"), \"\", Selection_Hide2!AB262)","v":""}]
[{"$f":"IF(OR(Selection_Hide2!A263=0, Selection_Hide2!A263=\"\"), \"\", Selection_Hide2!A263)","v":""},{"$f":"IF(OR(Selection_Hide2!B263=0, Selection_Hide2!B263=\"\"), \"\", Selection_Hide2!B263)","v":""},{"$f":"IF(OR(Selection_Hide2!C263=0, Selection_Hide2!C263=\"\"), \"\", Selection_Hide2!C263)","v":""},{"$f":"IF(OR(Selection_Hide2!D263=0, Selection_Hide2!D263=\"\"), \"\", Selection_Hide2!D263)","v":""},{"$f":"IF(OR(Selection_Hide2!E263=0, Selection_Hide2!E263=\"\"), \"\", Selection_Hide2!E263)","v":""},{"$f":"IF(OR(Selection_Hide2!F263=0, Selection_Hide2!F263=\"\"), \"\", Selection_Hide2!F263)","v":""},{"$f":"IF(OR(Selection_Hide2!G263=0, Selection_Hide2!G263=\"\"), \"\", Selection_Hide2!G263)","v":""},{"$f":"IF(OR(Selection_Hide2!H263=0, Selection_Hide2!H263=\"\"), \"\", Selection_Hide2!H263)","v":""},{"$f":"IF(OR(Selection_Hide2!I263=0, Selection_Hide2!I263=\"\"), \"\", Selection_Hide2!I263)","v":""},{"$f":"IF(OR(Selection_Hide2!J263=0, Selection_Hide2!J263=\"\"), \"\", Selection_Hide2!J263)","v":""},{"$f":"IF(OR(Selection_Hide2!K263=0, Selection_Hide2!K263=\"\"), \"\", Selection_Hide2!K263)","v":""},{"$f":"IF(OR(Selection_Hide2!L263=0, Selection_Hide2!L263=\"\"), \"\", Selection_Hide2!L263)","v":""},{"$f":"IF(OR(Selection_Hide2!M263=0, Selection_Hide2!M263=\"\"), \"\", Selection_Hide2!M263)","v":""},{"$f":"IF(OR(Selection_Hide2!N263=0, Selection_Hide2!N263=\"\"), \"\", Selection_Hide2!N263)","v":""},{"$f":"IF(OR(Selection_Hide2!O263=0, Selection_Hide2!O263=\"\"), \"\", Selection_Hide2!O263)","v":""},{"$f":"IF(OR(Selection_Hide2!P263=0, Selection_Hide2!P263=\"\"), \"\", Selection_Hide2!P263)","v":""},{"$f":"IF(OR(Selection_Hide2!Q263=0, Selection_Hide2!Q263=\"\"), \"\", Selection_Hide2!Q263)","v":""},{"$f":"IF(OR(Selection_Hide2!R263=0, Selection_Hide2!R263=\"\"), \"\", Selection_Hide2!R263)","v":""},{"$f":"IF(OR(Selection_Hide2!S263=0, Selection_Hide2!S263=\"\"), \"\", Selection_Hide2!S263)","v":""},{"$f":"IF(OR(Selection_Hide2!T263=0, Selection_Hide2!T263=\"\"), \"\", Selection_Hide2!T263)","v":""},{"$f":"IF(OR(Selection_Hide2!U263=0, Selection_Hide2!U263=\"\"), \"\", Selection_Hide2!U263)","v":""},{"$f":"IF(OR(Selection_Hide2!V263=0, Selection_Hide2!V263=\"\"), \"\", Selection_Hide2!V263)","v":""},{"$f":"IF(OR(Selection_Hide2!W263=0, Selection_Hide2!W263=\"\"), \"\", Selection_Hide2!W263)","v":""},{"$f":"IF(OR(Selection_Hide2!X263=0, Selection_Hide2!X263=\"\"), \"\", Selection_Hide2!X263)","v":""},{"$f":"IF(OR(Selection_Hide2!Y263=0, Selection_Hide2!Y263=\"\"), \"\", Selection_Hide2!Y263)","v":""},{"$f":"IF(OR(Selection_Hide2!Z263=0, Selection_Hide2!Z263=\"\"), \"\", Selection_Hide2!Z263)","v":""},{"$f":"IF(OR(Selection_Hide2!AA263=0, Selection_Hide2!AA263=\"\"), \"\", Selection_Hide2!AA263)","v":""},{"$f":"IF(OR(Selection_Hide2!AB263=0, Selection_Hide2!AB263=\"\"), \"\", Selection_Hide2!AB263)","v":""}]
[{"$f":"IF(OR(Selection_Hide2!A264=0, Selection_Hide2!A264=\"\"), \"\", Selection_Hide2!A264)","v":""},{"$f":"IF(OR(Selection_Hide2!B264=0, Selection_Hide2!B264=\"\"), \"\", Selection_Hide2!B264)","v":""},{"$f":"IF(OR(Selection_Hide2!C264=0, Selection_Hide2!C264=\"\"), \"\", Selection_Hide2!C264)","v":""},{"$f":"IF(OR(Selection_Hide2!D264=0, Selection_Hide2!D264=\"\"), \"\", Selection_Hide2!D264)","v":""},{"$f":"IF(OR(Selection_Hide2!E264=0, Selection_Hide2!E264=\"\"), \"\", Selection_Hide2!E264)","v":""},{"$f":"IF(OR(Selection_Hide2!F264=0, Selection_Hide2!F264=\"\"), \"\", Selection_Hide2!F264)","v":""},{"$f":"IF(OR(Selection_Hide2!G264=0, Selection_Hide2!G264=\"\"), \"\", Selection_Hide2!G264)","v":""},{"$f":"IF(OR(Selection_Hide2!H264=0, Selection_Hide2!H264=\"\"), \"\", Selection_Hide2!H264)","v":""},{"$f":"IF(OR(Selection_Hide2!I264=0, Selection_Hide2!I264=\"\"), \"\", Selection_Hide2!I264)","v":""},{"$f":"IF(OR(Selection_Hide2!J264=0, Selection_Hide2!J264=\"\"), \"\", Selection_Hide2!J264)","v":""},{"$f":"IF(OR(Selection_Hide2!K264=0, Selection_Hide2!K264=\"\"), \"\", Selection_Hide2!K264)","v":""},{"$f":"IF(OR(Selection_Hide2!L264=0, Selection_Hide2!L264=\"\"), \"\", Selection_Hide2!L264)","v":""},{"$f":"IF(OR(Selection_Hide2!M264=0, Selection_Hide2!M264=\"\"), \"\", Selection_Hide2!M264)","v":""},{"$f":"IF(OR(Selection_Hide2!N264=0, Selection_Hide2!N264=\"\"), \"\", Selection_Hide2!N264)","v":""},{"$f":"IF(OR(Selection_Hide2!O264=0, Selection_Hide2!O264=\"\"), \"\", Selection_Hide2!O264)","v":""},{"$f":"IF(OR(Selection_Hide2!P264=0, Selection_Hide2!P264=\"\"), \"\", Selection_Hide2!P264)","v":""},{"$f":"IF(OR(Selection_Hide2!Q264=0, Selection_Hide2!Q264=\"\"), \"\", Selection_Hide2!Q264)","v":""},{"$f":"IF(OR(Selection_Hide2!R264=0, Selection_Hide2!R264=\"\"), \"\", Selection_Hide2!R264)","v":""},{"$f":"IF(OR(Selection_Hide2!S264=0, Selection_Hide2!S264=\"\"), \"\", Selection_Hide2!S264)","v":""},{"$f":"IF(OR(Selection_Hide2!T264=0, Selection_Hide2!T264=\"\"), \"\", Selection_Hide2!T264)","v":""},{"$f":"IF(OR(Selection_Hide2!U264=0, Selection_Hide2!U264=\"\"), \"\", Selection_Hide2!U264)","v":""},{"$f":"IF(OR(Selection_Hide2!V264=0, Selection_Hide2!V264=\"\"), \"\", Selection_Hide2!V264)","v":""},{"$f":"IF(OR(Selection_Hide2!W264=0, Selection_Hide2!W264=\"\"), \"\", Selection_Hide2!W264)","v":""},{"$f":"IF(OR(Selection_Hide2!X264=0, Selection_Hide2!X264=\"\"), \"\", Selection_Hide2!X264)","v":""},{"$f":"IF(OR(Selection_Hide2!Y264=0, Selection_Hide2!Y264=\"\"), \"\", Selection_Hide2!Y264)","v":""},{"$f":"IF(OR(Selection_Hide2!Z264=0, Selection_Hide2!Z264=\"\"), \"\", Selection_Hide2!Z264)","v":""},{"$f":"IF(OR(Selection_Hide2!AA264=0, Selection_Hide2!AA264=\"\"), \"\", Selection_Hide2!AA264)","v":""},{"$f":"IF(OR(Selection_Hide2!AB264=0, Selection_Hide2!AB264=\"\"), \"\", Selection_Hide2!AB264)","v":""}]
[{"$f":"IF(OR(Selection_Hide2!A265=0, Selection_Hide2!A265=\"\"), \"\", Selection_Hide2!A265)","v":""},{"$f":"IF(OR(Selection_Hide2!B265=0, Selection_Hide2!B265=\"\"), \"\", Selection_Hide2!B265)","v":""},{"$f":"IF(OR(Selection_Hide2!C265=0, Selection_Hide2!C265=\"\"), \"\", Selection_Hide2!C265)","v":""},{"$f":"IF(OR(Selection_Hide2!D265=0, Selection_Hide2!D265=\"\"), \"\", Selection_Hide2!D265)","v":""},{"$f":"IF(OR(Selection_Hide2!E265=0, Selection_Hide2!E265=\"\"), \"\", Selection_Hide2!E265)","v":""},{"$f":"IF(OR(Selection_Hide2!F265=0, Selection_Hide2!F265=\"\"), \"\", Selection_Hide2!F265)","v":""},{"$f":"IF(OR(Selection_Hide2!G265=0, Selection_Hide2!G265=\"\"), \"\", Selection_Hide2!G265)","v":""},{"$f":"IF(OR(Selection_Hide2!H265=0, Selection_Hide2!H265=\"\"), \"\", Selection_Hide2!H265)","v":""},{"$f":"IF(OR(Selection_Hide2!I265=0, Selection_Hide2!I265=\"\"), \"\", Selection_Hide2!I265)","v":""},{"$f":"IF(OR(Selection_Hide2!J265=0, Selection_Hide2!J265=\"\"), \"\", Selection_Hide2!J265)","v":""},{"$f":"IF(OR(Selection_Hide2!K265=0, Selection_Hide2!K265=\"\"), \"\", Selection_Hide2!K265)","v":""},{"$f":"IF(OR(Selection_Hide2!L265=0, Selection_Hide2!L265=\"\"), \"\", Selection_Hide2!L265)","v":""},{"$f":"IF(OR(Selection_Hide2!M265=0, Selection_Hide2!M265=\"\"), \"\", Selection_Hide2!M265)","v":""},{"$f":"IF(OR(Selection_Hide2!N265=0, Selection_Hide2!N265=\"\"), \"\", Selection_Hide2!N265)","v":""},{"$f":"IF(OR(Selection_Hide2!O265=0, Selection_Hide2!O265=\"\"), \"\", Selection_Hide2!O265)","v":""},{"$f":"IF(OR(Selection_Hide2!P265=0, Selection_Hide2!P265=\"\"), \"\", Selection_Hide2!P265)","v":""},{"$f":"IF(OR(Selection_Hide2!Q265=0, Selection_Hide2!Q265=\"\"), \"\", Selection_Hide2!Q265)","v":""},{"$f":"IF(OR(Selection_Hide2!R265=0, Selection_Hide2!R265=\"\"), \"\", Selection_Hide2!R265)","v":""},{"$f":"IF(OR(Selection_Hide2!S265=0, Selection_Hide2!S265=\"\"), \"\", Selection_Hide2!S265)","v":""},{"$f":"IF(OR(Selection_Hide2!T265=0, Selection_Hide2!T265=\"\"), \"\", Selection_Hide2!T265)","v":""},{"$f":"IF(OR(Selection_Hide2!U265=0, Selection_Hide2!U265=\"\"), \"\", Selection_Hide2!U265)","v":""},{"$f":"IF(OR(Selection_Hide2!V265=0, Selection_Hide2!V265=\"\"), \"\", Selection_Hide2!V265)","v":""},{"$f":"IF(OR(Selection_Hide2!W265=0, Selection_Hide2!W265=\"\"), \"\", Selection_Hide2!W265)","v":""},{"$f":"IF(OR(Selection_Hide2!X265=0, Selection_Hide2!X265=\"\"), \"\", Selection_Hide2!X265)","v":""},{"$f":"IF(OR(Selection_Hide2!Y265=0, Selection_Hide2!Y265=\"\"), \"\", Selection_Hide2!Y265)","v":""},{"$f":"IF(OR(Selection_Hide2!Z265=0, Selection_Hide2!Z265=\"\"), \"\", Selection_Hide2!Z265)","v":""},{"$f":"IF(OR(Selection_Hide2!AA265=0, Selection_Hide2!AA265=\"\"), \"\", Selection_Hide2!AA265)","v":""},{"$f":"IF(OR(Selection_Hide2!AB265=0, Selection_Hide2!AB265=\"\"), \"\", Selection_Hide2!AB265)","v":""}]
[{"$f":"IF(OR(Selection_Hide2!A266=0, Selection_Hide2!A266=\"\"), \"\", Selection_Hide2!A266)","v":""},{"$f":"IF(OR(Selection_Hide2!B266=0, Selection_Hide2!B266=\"\"), \"\", Selection_Hide2!B266)","v":""},{"$f":"IF(OR(Selection_Hide2!C266=0, Selection_Hide2!C266=\"\"), \"\", Selection_Hide2!C266)","v":""},{"$f":"IF(OR(Selection_Hide2!D266=0, Selection_Hide2!D266=\"\"), \"\", Selection_Hide2!D266)","v":""},{"$f":"IF(OR(Selection_Hide2!E266=0, Selection_Hide2!E266=\"\"), \"\", Selection_Hide2!E266)","v":""},{"$f":"IF(OR(Selection_Hide2!F266=0, Selection_Hide2!F266=\"\"), \"\", Selection_Hide2!F266)","v":""},{"$f":"IF(OR(Selection_Hide2!G266=0, Selection_Hide2!G266=\"\"), \"\", Selection_Hide2!G266)","v":""},{"$f":"IF(OR(Selection_Hide2!H266=0, Selection_Hide2!H266=\"\"), \"\", Selection_Hide2!H266)","v":""},{"$f":"IF(OR(Selection_Hide2!I266=0, Selection_Hide2!I266=\"\"), \"\", Selection_Hide2!I266)","v":""},{"$f":"IF(OR(Selection_Hide2!J266=0, Selection_Hide2!J266=\"\"), \"\", Selection_Hide2!J266)","v":""},{"$f":"IF(OR(Selection_Hide2!K266=0, Selection_Hide2!K266=\"\"), \"\", Selection_Hide2!K266)","v":""},{"$f":"IF(OR(Selection_Hide2!L266=0, Selection_Hide2!L266=\"\"), \"\", Selection_Hide2!L266)","v":""},{"$f":"IF(OR(Selection_Hide2!M266=0, Selection_Hide2!M266=\"\"), \"\", Selection_Hide2!M266)","v":""},{"$f":"IF(OR(Selection_Hide2!N266=0, Selection_Hide2!N266=\"\"), \"\", Selection_Hide2!N266)","v":""},{"$f":"IF(OR(Selection_Hide2!O266=0, Selection_Hide2!O266=\"\"), \"\", Selection_Hide2!O266)","v":""},{"$f":"IF(OR(Selection_Hide2!P266=0, Selection_Hide2!P266=\"\"), \"\", Selection_Hide2!P266)","v":""},{"$f":"IF(OR(Selection_Hide2!Q266=0, Selection_Hide2!Q266=\"\"), \"\", Selection_Hide2!Q266)","v":""},{"$f":"IF(OR(Selection_Hide2!R266=0, Selection_Hide2!R266=\"\"), \"\", Selection_Hide2!R266)","v":""},{"$f":"IF(OR(Selection_Hide2!S266=0, Selection_Hide2!S266=\"\"), \"\", Selection_Hide2!S266)","v":""},{"$f":"IF(OR(Selection_Hide2!T266=0, Selection_Hide2!T266=\"\"), \"\", Selection_Hide2!T266)","v":""},{"$f":"IF(OR(Selection_Hide2!U266=0, Selection_Hide2!U266=\"\"), \"\", Selection_Hide2!U266)","v":""},{"$f":"IF(OR(Selection_Hide2!V266=0, Selection_Hide2!V266=\"\"), \"\", Selection_Hide2!V266)","v":""},{"$f":"IF(OR(Selection_Hide2!W266=0, Selection_Hide2!W266=\"\"), \"\", Selection_Hide2!W266)","v":""},{"$f":"IF(OR(Selection_Hide2!X266=0, Selection_Hide2!X266=\"\"), \"\", Selection_Hide2!X266)","v":""},{"$f":"IF(OR(Selection_Hide2!Y266=0, Selection_Hide2!Y266=\"\"), \"\", Selection_Hide2!Y266)","v":""},{"$f":"IF(OR(Selection_Hide2!Z266=0, Selection_Hide2!Z266=\"\"), \"\", Selection_Hide2!Z266)","v":""},{"$f":"IF(OR(Selection_Hide2!AA266=0, Selection_Hide2!AA266=\"\"), \"\", Selection_Hide2!AA266)","v":""},{"$f":"IF(OR(Selection_Hide2!AB266=0, Selection_Hide2!AB266=\"\"), \"\", Selection_Hide2!AB266)","v":""}]
[{"$f":"IF(OR(Selection_Hide2!A267=0, Selection_Hide2!A267=\"\"), \"\", Selection_Hide2!A267)","v":""},{"$f":"IF(OR(Selection_Hide2!B267=0, Selection_Hide2!B267=\"\"), \"\", Selection_Hide2!B267)","v":""},{"$f":"IF(OR(Selection_Hide2!C267=0, Selection_Hide2!C267=\"\"), \"\", Selection_Hide2!C267)","v":""},{"$f":"IF(OR(Selection_Hide2!D267=0, Selection_Hide2!D267=\"\"), \"\", Selection_Hide2!D267)","v":""},{"$f":"IF(OR(Selection_Hide2!E267=0, Selection_Hide2!E267=\"\"), \"\", Selection_Hide2!E267)","v":""},{"$f":"IF(OR(Selection_Hide2!F267=0, Selection_Hide2!F267=\"\"), \"\", Selection_Hide2!F267)","v":""},{"$f":"IF(OR(Selection_Hide2!G267=0, Selection_Hide2!G267=\"\"), \"\", Selection_Hide2!G267)","v":""},{"$f":"IF(OR(Selection_Hide2!H267=0, Selection_Hide2!H267=\"\"), \"\", Selection_Hide2!H267)","v":""},{"$f":"IF(OR(Selection_Hide2!I267=0, Selection_Hide2!I267=\"\"), \"\", Selection_Hide2!I267)","v":""},{"$f":"IF(OR(Selection_Hide2!J267=0, Selection_Hide2!J267=\"\"), \"\", Selection_Hide2!J267)","v":""},{"$f":"IF(OR(Selection_Hide2!K267=0, Selection_Hide2!K267=\"\"), \"\", Selection_Hide2!K267)","v":""},{"$f":"IF(OR(Selection_Hide2!L267=0, Selection_Hide2!L267=\"\"), \"\", Selection_Hide2!L267)","v":""},{"$f":"IF(OR(Selection_Hide2!M267=0, Selection_Hide2!M267=\"\"), \"\", Selection_Hide2!M267)","v":""},{"$f":"IF(OR(Selection_Hide2!N267=0, Selection_Hide2!N267=\"\"), \"\", Selection_Hide2!N267)","v":""},{"$f":"IF(OR(Selection_Hide2!O267=0, Selection_Hide2!O267=\"\"), \"\", Selection_Hide2!O267)","v":""},{"$f":"IF(OR(Selection_Hide2!P267=0, Selection_Hide2!P267=\"\"), \"\", Selection_Hide2!P267)","v":""},{"$f":"IF(OR(Selection_Hide2!Q267=0, Selection_Hide2!Q267=\"\"), \"\", Selection_Hide2!Q267)","v":""},{"$f":"IF(OR(Selection_Hide2!R267=0, Selection_Hide2!R267=\"\"), \"\", Selection_Hide2!R267)","v":""},{"$f":"IF(OR(Selection_Hide2!S267=0, Selection_Hide2!S267=\"\"), \"\", Selection_Hide2!S267)","v":""},{"$f":"IF(OR(Selection_Hide2!T267=0, Selection_Hide2!T267=\"\"), \"\", Selection_Hide2!T267)","v":""},{"$f":"IF(OR(Selection_Hide2!U267=0, Selection_Hide2!U267=\"\"), \"\", Selection_Hide2!U267)","v":""},{"$f":"IF(OR(Selection_Hide2!V267=0, Selection_Hide2!V267=\"\"), \"\", Selection_Hide2!V267)","v":""},{"$f":"IF(OR(Selection_Hide2!W267=0, Selection_Hide2!W267=\"\"), \"\", Selection_Hide2!W267)","v":""},{"$f":"IF(OR(Selection_Hide2!X267=0, Selection_Hide2!X267=\"\"), \"\", Selection_Hide2!X267)","v":""},{"$f":"IF(OR(Selection_Hide2!Y267=0, Selection_Hide2!Y267=\"\"), \"\", Selection_Hide2!Y267)","v":""},{"$f":"IF(OR(Selection_Hide2!Z267=0, Selection_Hide2!Z267=\"\"), \"\", Selection_Hide2!Z267)","v":""},{"$f":"IF(OR(Selection_Hide2!AA267=0, Selection_Hide2!AA267=\"\"), \"\", Selection_Hide2!AA267)","v":""},{"$f":"IF(OR(Selection_Hide2!AB267=0, Selection_Hide2!AB267=\"\"), \"\", Selection_Hide2!AB267)","v":""}]
[{"$f":"IF(OR(Selection_Hide2!A268=0, Selection_Hide2!A268=\"\"), \"\", Selection_Hide2!A268)","v":""},{"$f":"IF(OR(Selection_Hide2!B268=0, Selection_Hide2!B268=\"\"), \"\", Selection_Hide2!B268)","v":""},{"$f":"IF(OR(Selection_Hide2!C268=0, Selection_Hide2!C268=\"\"), \"\", Selection_Hide2!C268)","v":""},{"$f":"IF(OR(Selection_Hide2!D268=0, Selection_Hide2!D268=\"\"), \"\", Selection_Hide2!D268)","v":""},{"$f":"IF(OR(Selection_Hide2!E268=0, Selection_Hide2!E268=\"\"), \"\", Selection_Hide2!E268)","v":""},{"$f":"IF(OR(Selection_Hide2!F268=0, Selection_Hide2!F268=\"\"), \"\", Selection_Hide2!F268)","v":""},{"$f":"IF(OR(Selection_Hide2!G268=0, Selection_Hide2!G268=\"\"), \"\", Selection_Hide2!G268)","v":""},{"$f":"IF(OR(Selection_Hide2!H268=0, Selection_Hide2!H268=\"\"), \"\", Selection_Hide2!H268)","v":""},{"$f":"IF(OR(Selection_Hide2!I268=0, Selection_Hide2!I268=\"\"), \"\", Selection_Hide2!I268)","v":""},{"$f":"IF(OR(Selection_Hide2!J268=0, Selection_Hide2!J268=\"\"), \"\", Selection_Hide2!J268)","v":""},{"$f":"IF(OR(Selection_Hide2!K268=0, Selection_Hide2!K268=\"\"), \"\", Selection_Hide2!K268)","v":""},{"$f":"IF(OR(Selection_Hide2!L268=0, Selection_Hide2!L268=\"\"), \"\", Selection_Hide2!L268)","v":""},{"$f":"IF(OR(Selection_Hide2!M268=0, Selection_Hide2!M268=\"\"), \"\", Selection_Hide2!M268)","v":""},{"$f":"IF(OR(Selection_Hide2!N268=0, Selection_Hide2!N268=\"\"), \"\", Selection_Hide2!N268)","v":""},{"$f":"IF(OR(Selection_Hide2!O268=0, Selection_Hide2!O268=\"\"), \"\", Selection_Hide2!O268)","v":""},{"$f":"IF(OR(Selection_Hide2!P268=0, Selection_Hide2!P268=\"\"), \"\", Selection_Hide2!P268)","v":""},{"$f":"IF(OR(Selection_Hide2!Q268=0, Selection_Hide2!Q268=\"\"), \"\", Selection_Hide2!Q268)","v":""},{"$f":"IF(OR(Selection_Hide2!R268=0, Selection_Hide2!R268=\"\"), \"\", Selection_Hide2!R268)","v":""},{"$f":"IF(OR(Selection_Hide2!S268=0, Selection_Hide2!S268=\"\"), \"\", Selection_Hide2!S268)","v":""},{"$f":"IF(OR(Selection_Hide2!T268=0, Selection_Hide2!T268=\"\"), \"\", Selection_Hide2!T268)","v":""},{"$f":"IF(OR(Selection_Hide2!U268=0, Selection_Hide2!U268=\"\"), \"\", Selection_Hide2!U268)","v":""},{"$f":"IF(OR(Selection_Hide2!V268=0, Selection_Hide2!V268=\"\"), \"\", Selection_Hide2!V268)","v":""},{"$f":"IF(OR(Selection_Hide2!W268=0, Selection_Hide2!W268=\"\"), \"\", Selection_Hide2!W268)","v":""},{"$f":"IF(OR(Selection_Hide2!X268=0, Selection_Hide2!X268=\"\"), \"\", Selection_Hide2!X268)","v":""},{"$f":"IF(OR(Selection_Hide2!Y268=0, Selection_Hide2!Y268=\"\"), \"\", Selection_Hide2!Y268)","v":""},{"$f":"IF(OR(Selection_Hide2!Z268=0, Selection_Hide2!Z268=\"\"), \"\", Selection_Hide2!Z268)","v":""},{"$f":"IF(OR(Selection_Hide2!AA268=0, Selection_Hide2!AA268=\"\"), \"\", Selection_Hide2!AA268)","v":""},{"$f":"IF(OR(Selection_Hide2!AB268=0, Selection_Hide2!AB268=\"\"), \"\", Selection_Hide2!AB268)","v":""}]
[{"$f":"IF(OR(Selection_Hide2!A269=0, Selection_Hide2!A269=\"\"), \"\", Selection_Hide2!A269)","v":""},{"$f":"IF(OR(Selection_Hide2!B269=0, Selection_Hide2!B269=\"\"), \"\", Selection_Hide2!B269)","v":""},{"$f":"IF(OR(Selection_Hide2!C269=0, Selection_Hide2!C269=\"\"), \"\", Selection_Hide2!C269)","v":""},{"$f":"IF(OR(Selection_Hide2!D269=0, Selection_Hide2!D269=\"\"), \"\", Selection_Hide2!D269)","v":""},{"$f":"IF(OR(Selection_Hide2!E269=0, Selection_Hide2!E269=\"\"), \"\", Selection_Hide2!E269)","v":""},{"$f":"IF(OR(Selection_Hide2!F269=0, Selection_Hide2!F269=\"\"), \"\", Selection_Hide2!F269)","v":""},{"$f":"IF(OR(Selection_Hide2!G269=0, Selection_Hide2!G269=\"\"), \"\", Selection_Hide2!G269)","v":""},{"$f":"IF(OR(Selection_Hide2!H269=0, Selection_Hide2!H269=\"\"), \"\", Selection_Hide2!H269)","v":""},{"$f":"IF(OR(Selection_Hide2!I269=0, Selection_Hide2!I269=\"\"), \"\", Selection_Hide2!I269)","v":""},{"$f":"IF(OR(Selection_Hide2!J269=0, Selection_Hide2!J269=\"\"), \"\", Selection_Hide2!J269)","v":""},{"$f":"IF(OR(Selection_Hide2!K269=0, Selection_Hide2!K269=\"\"), \"\", Selection_Hide2!K269)","v":""},{"$f":"IF(OR(Selection_Hide2!L269=0, Selection_Hide2!L269=\"\"), \"\", Selection_Hide2!L269)","v":""},{"$f":"IF(OR(Selection_Hide2!M269=0, Selection_Hide2!M269=\"\"), \"\", Selection_Hide2!M269)","v":""},{"$f":"IF(OR(Selection_Hide2!N269=0, Selection_Hide2!N269=\"\"), \"\", Selection_Hide2!N269)","v":""},{"$f":"IF(OR(Selection_Hide2!O269=0, Selection_Hide2!O269=\"\"), \"\", Selection_Hide2!O269)","v":""},{"$f":"IF(OR(Selection_Hide2!P269=0, Selection_Hide2!P269=\"\"), \"\", Selection_Hide2!P269)","v":""},{"$f":"IF(OR(Selection_Hide2!Q269=0, Selection_Hide2!Q269=\"\"), \"\", Selection_Hide2!Q269)","v":""},{"$f":"IF(OR(Selection_Hide2!R269=0, Selection_Hide2!R269=\"\"), \"\", Selection_Hide2!R269)","v":""},{"$f":"IF(OR(Selection_Hide2!S269=0, Selection_Hide2!S269=\"\"), \"\", Selection_Hide2!S269)","v":""},{"$f":"IF(OR(Selection_Hide2!T269=0, Selection_Hide2!T269=\"\"), \"\", Selection_Hide2!T269)","v":""},{"$f":"IF(OR(Selection_Hide2!U269=0, Selection_Hide2!U269=\"\"), \"\", Selection_Hide2!U269)","v":""},{"$f":"IF(OR(Selection_Hide2!V269=0, Selection_Hide2!V269=\"\"), \"\", Selection_Hide2!V269)","v":""},{"$f":"IF(OR(Selection_Hide2!W269=0, Selection_Hide2!W269=\"\"), \"\", Selection_Hide2!W269)","v":""},{"$f":"IF(OR(Selection_Hide2!X269=0, Selection_Hide2!X269=\"\"), \"\", Selection_Hide2!X269)","v":""},{"$f":"IF(OR(Selection_Hide2!Y269=0, Selection_Hide2!Y269=\"\"), \"\", Selection_Hide2!Y269)","v":""},{"$f":"IF(OR(Selection_Hide2!Z269=0, Selection_Hide2!Z269=\"\"), \"\", Selection_Hide2!Z269)","v":""},{"$f":"IF(OR(Selection_Hide2!AA269=0, Selection_Hide2!AA269=\"\"), \"\", Selection_Hide2!AA269)","v":""},{"$f":"IF(OR(Selection_Hide2!AB269=0, Selection_Hide2!AB269=\"\"), \"\", Selection_Hide2!AB269)","v":""}]
[{"$f":"IF(OR(Selection_Hide2!A270=0, Selection_Hide2!A270=\"\"), \"\", Selection_Hide2!A270)","v":""},{"$f":"IF(OR(Selection_Hide2!B270=0, Selection_Hide2!B270=\"\"), \"\", Selection_Hide2!B270)","v":""},{"$f":"IF(OR(Selection_Hide2!C270=0, Selection_Hide2!C270=\"\"), \"\", Selection_Hide2!C270)","v":""},{"$f":"IF(OR(Selection_Hide2!D270=0, Selection_Hide2!D270=\"\"), \"\", Selection_Hide2!D270)","v":""},{"$f":"IF(OR(Selection_Hide2!E270=0, Selection_Hide2!E270=\"\"), \"\", Selection_Hide2!E270)","v":""},{"$f":"IF(OR(Selection_Hide2!F270=0, Selection_Hide2!F270=\"\"), \"\", Selection_Hide2!F270)","v":""},{"$f":"IF(OR(Selection_Hide2!G270=0, Selection_Hide2!G270=\"\"), \"\", Selection_Hide2!G270)","v":""},{"$f":"IF(OR(Selection_Hide2!H270=0, Selection_Hide2!H270=\"\"), \"\", Selection_Hide2!H270)","v":""},{"$f":"IF(OR(Selection_Hide2!I270=0, Selection_Hide2!I270=\"\"), \"\", Selection_Hide2!I270)","v":""},{"$f":"IF(OR(Selection_Hide2!J270=0, Selection_Hide2!J270=\"\"), \"\", Selection_Hide2!J270)","v":""},{"$f":"IF(OR(Selection_Hide2!K270=0, Selection_Hide2!K270=\"\"), \"\", Selection_Hide2!K270)","v":""},{"$f":"IF(OR(Selection_Hide2!L270=0, Selection_Hide2!L270=\"\"), \"\", Selection_Hide2!L270)","v":""},{"$f":"IF(OR(Selection_Hide2!M270=0, Selection_Hide2!M270=\"\"), \"\", Selection_Hide2!M270)","v":""},{"$f":"IF(OR(Selection_Hide2!N270=0, Selection_Hide2!N270=\"\"), \"\", Selection_Hide2!N270)","v":""},{"$f":"IF(OR(Selection_Hide2!O270=0, Selection_Hide2!O270=\"\"), \"\", Selection_Hide2!O270)","v":""},{"$f":"IF(OR(Selection_Hide2!P270=0, Selection_Hide2!P270=\"\"), \"\", Selection_Hide2!P270)","v":""},{"$f":"IF(OR(Selection_Hide2!Q270=0, Selection_Hide2!Q270=\"\"), \"\", Selection_Hide2!Q270)","v":""},{"$f":"IF(OR(Selection_Hide2!R270=0, Selection_Hide2!R270=\"\"), \"\", Selection_Hide2!R270)","v":""},{"$f":"IF(OR(Selection_Hide2!S270=0, Selection_Hide2!S270=\"\"), \"\", Selection_Hide2!S270)","v":""},{"$f":"IF(OR(Selection_Hide2!T270=0, Selection_Hide2!T270=\"\"), \"\", Selection_Hide2!T270)","v":""},{"$f":"IF(OR(Selection_Hide2!U270=0, Selection_Hide2!U270=\"\"), \"\", Selection_Hide2!U270)","v":""},{"$f":"IF(OR(Selection_Hide2!V270=0, Selection_Hide2!V270=\"\"), \"\", Selection_Hide2!V270)","v":""},{"$f":"IF(OR(Selection_Hide2!W270=0, Selection_Hide2!W270=\"\"), \"\", Selection_Hide2!W270)","v":""},{"$f":"IF(OR(Selection_Hide2!X270=0, Selection_Hide2!X270=\"\"), \"\", Selection_Hide2!X270)","v":""},{"$f":"IF(OR(Selection_Hide2!Y270=0, Selection_Hide2!Y270=\"\"), \"\", Selection_Hide2!Y270)","v":""},{"$f":"IF(OR(Selection_Hide2!Z270=0, Selection_Hide2!Z270=\"\"), \"\", Selection_Hide2!Z270)","v":""},{"$f":"IF(OR(Selection_Hide2!AA270=0, Selection_Hide2!AA270=\"\"), \"\", Selection_Hide2!AA270)","v":""},{"$f":"IF(OR(Selection_Hide2!AB270=0, Selection_Hide2!AB270=\"\"), \"\", Selection_Hide2!AB270)","v":""}]
[{"$f":"IF(OR(Selection_Hide2!A271=0, Selection_Hide2!A271=\"\"), \"\", Selection_Hide2!A271)","v":""},{"$f":"IF(OR(Selection_Hide2!B271=0, Selection_Hide2!B271=\"\"), \"\", Selection_Hide2!B271)","v":""},{"$f":"IF(OR(Selection_Hide2!C271=0, Selection_Hide2!C271=\"\"), \"\", Selection_Hide2!C271)","v":""},{"$f":"IF(OR(Selection_Hide2!D271=0, Selection_Hide2!D271=\"\"), \"\", Selection_Hide2!D271)","v":""},{"$f":"IF(OR(Selection_Hide2!E271=0, Selection_Hide2!E271=\"\"), \"\", Selection_Hide2!E271)","v":""},{"$f":"IF(OR(Selection_Hide2!F271=0, Selection_Hide2!F271=\"\"), \"\", Selection_Hide2!F271)","v":""},{"$f":"IF(OR(Selection_Hide2!G271=0, Selection_Hide2!G271=\"\"), \"\", Selection_Hide2!G271)","v":""},{"$f":"IF(OR(Selection_Hide2!H271=0, Selection_Hide2!H271=\"\"), \"\", Selection_Hide2!H271)","v":""},{"$f":"IF(OR(Selection_Hide2!I271=0, Selection_Hide2!I271=\"\"), \"\", Selection_Hide2!I271)","v":""},{"$f":"IF(OR(Selection_Hide2!J271=0, Selection_Hide2!J271=\"\"), \"\", Selection_Hide2!J271)","v":""},{"$f":"IF(OR(Selection_Hide2!K271=0, Selection_Hide2!K271=\"\"), \"\", Selection_Hide2!K271)","v":""},{"$f":"IF(OR(Selection_Hide2!L271=0, Selection_Hide2!L271=\"\"), \"\", Selection_Hide2!L271)","v":""},{"$f":"IF(OR(Selection_Hide2!M271=0, Selection_Hide2!M271=\"\"), \"\", Selection_Hide2!M271)","v":""},{"$f":"IF(OR(Selection_Hide2!N271=0, Selection_Hide2!N271=\"\"), \"\", Selection_Hide2!N271)","v":""},{"$f":"IF(OR(Selection_Hide2!O271=0, Selection_Hide2!O271=\"\"), \"\", Selection_Hide2!O271)","v":""},{"$f":"IF(OR(Selection_Hide2!P271=0, Selection_Hide2!P271=\"\"), \"\", Selection_Hide2!P271)","v":""},{"$f":"IF(OR(Selection_Hide2!Q271=0, Selection_Hide2!Q271=\"\"), \"\", Selection_Hide2!Q271)","v":""},{"$f":"IF(OR(Selection_Hide2!R271=0, Selection_Hide2!R271=\"\"), \"\", Selection_Hide2!R271)","v":""},{"$f":"IF(OR(Selection_Hide2!S271=0, Selection_Hide2!S271=\"\"), \"\", Selection_Hide2!S271)","v":""},{"$f":"IF(OR(Selection_Hide2!T271=0, Selection_Hide2!T271=\"\"), \"\", Selection_Hide2!T271)","v":""},{"$f":"IF(OR(Selection_Hide2!U271=0, Selection_Hide2!U271=\"\"), \"\", Selection_Hide2!U271)","v":""},{"$f":"IF(OR(Selection_Hide2!V271=0, Selection_Hide2!V271=\"\"), \"\", Selection_Hide2!V271)","v":""},{"$f":"IF(OR(Selection_Hide2!W271=0, Selection_Hide2!W271=\"\"), \"\", Selection_Hide2!W271)","v":""},{"$f":"IF(OR(Selection_Hide2!X271=0, Selection_Hide2!X271=\"\"), \"\", Selection_Hide2!X271)","v":""},{"$f":"IF(OR(Selection_Hide2!Y271=0, Selection_Hide2!Y271=\"\"), \"\", Selection_Hide2!Y271)","v":""},{"$f":"IF(OR(Selection_Hide2!Z271=0, Selection_Hide2!Z271=\"\"), \"\", Selection_Hide2!Z271)","v":""},{"$f":"IF(OR(Selection_Hide2!AA271=0, Selection_Hide2!AA271=\"\"), \"\", Selection_Hide2!AA271)","v":""},{"$f":"IF(OR(Selection_Hide2!AB271=0, Selection_Hide2!AB271=\"\"), \"\", Selection_Hide2!AB271)","v":""}]
[{"$f":"IF(OR(Selection_Hide2!A272=0, Selection_Hide2!A272=\"\"), \"\", Selection_Hide2!A272)","v":""},{"$f":"IF(OR(Selection_Hide2!B272=0, Selection_Hide2!B272=\"\"), \"\", Selection_Hide2!B272)","v":""},{"$f":"IF(OR(Selection_Hide2!C272=0, Selection_Hide2!C272=\"\"), \"\", Selection_Hide2!C272)","v":""},{"$f":"IF(OR(Selection_Hide2!D272=0, Selection_Hide2!D272=\"\"), \"\", Selection_Hide2!D272)","v":""},{"$f":"IF(OR(Selection_Hide2!E272=0, Selection_Hide2!E272=\"\"), \"\", Selection_Hide2!E272)","v":""},{"$f":"IF(OR(Selection_Hide2!F272=0, Selection_Hide2!F272=\"\"), \"\", Selection_Hide2!F272)","v":""},{"$f":"IF(OR(Selection_Hide2!G272=0, Selection_Hide2!G272=\"\"), \"\", Selection_Hide2!G272)","v":""},{"$f":"IF(OR(Selection_Hide2!H272=0, Selection_Hide2!H272=\"\"), \"\", Selection_Hide2!H272)","v":""},{"$f":"IF(OR(Selection_Hide2!I272=0, Selection_Hide2!I272=\"\"), \"\", Selection_Hide2!I272)","v":""},{"$f":"IF(OR(Selection_Hide2!J272=0, Selection_Hide2!J272=\"\"), \"\", Selection_Hide2!J272)","v":""},{"$f":"IF(OR(Selection_Hide2!K272=0, Selection_Hide2!K272=\"\"), \"\", Selection_Hide2!K272)","v":""},{"$f":"IF(OR(Selection_Hide2!L272=0, Selection_Hide2!L272=\"\"), \"\", Selection_Hide2!L272)","v":""},{"$f":"IF(OR(Selection_Hide2!M272=0, Selection_Hide2!M272=\"\"), \"\", Selection_Hide2!M272)","v":""},{"$f":"IF(OR(Selection_Hide2!N272=0, Selection_Hide2!N272=\"\"), \"\", Selection_Hide2!N272)","v":""},{"$f":"IF(OR(Selection_Hide2!O272=0, Selection_Hide2!O272=\"\"), \"\", Selection_Hide2!O272)","v":""},{"$f":"IF(OR(Selection_Hide2!P272=0, Selection_Hide2!P272=\"\"), \"\", Selection_Hide2!P272)","v":""},{"$f":"IF(OR(Selection_Hide2!Q272=0, Selection_Hide2!Q272=\"\"), \"\", Selection_Hide2!Q272)","v":""},{"$f":"IF(OR(Selection_Hide2!R272=0, Selection_Hide2!R272=\"\"), \"\", Selection_Hide2!R272)","v":""},{"$f":"IF(OR(Selection_Hide2!S272=0, Selection_Hide2!S272=\"\"), \"\", Selection_Hide2!S272)","v":""},{"$f":"IF(OR(Selection_Hide2!T272=0, Selection_Hide2!T272=\"\"), \"\", Selection_Hide2!T272)","v":""},{"$f":"IF(OR(Selection_Hide2!U272=0, Selection_Hide2!U272=\"\"), \"\", Selection_Hide2!U272)","v":""},{"$f":"IF(OR(Selection_Hide2!V272=0, Selection_Hide2!V272=\"\"), \"\", Selection_Hide2!V272)","v":""},{"$f":"IF(OR(Selection_Hide2!W272=0, Selection_Hide2!W272=\"\"), \"\", Selection_Hide2!W272)","v":""},{"$f":"IF(OR(Selection_Hide2!X272=0, Selection_Hide2!X272=\"\"), \"\", Selection_Hide2!X272)","v":""},{"$f":"IF(OR(Selection_Hide2!Y272=0, Selection_Hide2!Y272=\"\"), \"\", Selection_Hide2!Y272)","v":""},{"$f":"IF(OR(Selection_Hide2!Z272=0, Selection_Hide2!Z272=\"\"), \"\", Selection_Hide2!Z272)","v":""},{"$f":"IF(OR(Selection_Hide2!AA272=0, Selection_Hide2!AA272=\"\"), \"\", Selection_Hide2!AA272)","v":""},{"$f":"IF(OR(Selection_Hide2!AB272=0, Selection_Hide2!AB272=\"\"), \"\", Selection_Hide2!AB272)","v":""}]
[{"$f":"IF(OR(Selection_Hide2!A273=0, Selection_Hide2!A273=\"\"), \"\", Selection_Hide2!A273)","v":""},{"$f":"IF(OR(Selection_Hide2!B273=0, Selection_Hide2!B273=\"\"), \"\", Selection_Hide2!B273)","v":""},{"$f":"IF(OR(Selection_Hide2!C273=0, Selection_Hide2!C273=\"\"), \"\", Selection_Hide2!C273)","v":""},{"$f":"IF(OR(Selection_Hide2!D273=0, Selection_Hide2!D273=\"\"), \"\", Selection_Hide2!D273)","v":""},{"$f":"IF(OR(Selection_Hide2!E273=0, Selection_Hide2!E273=\"\"), \"\", Selection_Hide2!E273)","v":""},{"$f":"IF(OR(Selection_Hide2!F273=0, Selection_Hide2!F273=\"\"), \"\", Selection_Hide2!F273)","v":""},{"$f":"IF(OR(Selection_Hide2!G273=0, Selection_Hide2!G273=\"\"), \"\", Selection_Hide2!G273)","v":""},{"$f":"IF(OR(Selection_Hide2!H273=0, Selection_Hide2!H273=\"\"), \"\", Selection_Hide2!H273)","v":""},{"$f":"IF(OR(Selection_Hide2!I273=0, Selection_Hide2!I273=\"\"), \"\", Selection_Hide2!I273)","v":""},{"$f":"IF(OR(Selection_Hide2!J273=0, Selection_Hide2!J273=\"\"), \"\", Selection_Hide2!J273)","v":""},{"$f":"IF(OR(Selection_Hide2!K273=0, Selection_Hide2!K273=\"\"), \"\", Selection_Hide2!K273)","v":""},{"$f":"IF(OR(Selection_Hide2!L273=0, Selection_Hide2!L273=\"\"), \"\", Selection_Hide2!L273)","v":""},{"$f":"IF(OR(Selection_Hide2!M273=0, Selection_Hide2!M273=\"\"), \"\", Selection_Hide2!M273)","v":""},{"$f":"IF(OR(Selection_Hide2!N273=0, Selection_Hide2!N273=\"\"), \"\", Selection_Hide2!N273)","v":""},{"$f":"IF(OR(Selection_Hide2!O273=0, Selection_Hide2!O273=\"\"), \"\", Selection_Hide2!O273)","v":""},{"$f":"IF(OR(Selection_Hide2!P273=0, Selection_Hide2!P273=\"\"), \"\", Selection_Hide2!P273)","v":""},{"$f":"IF(OR(Selection_Hide2!Q273=0, Selection_Hide2!Q273=\"\"), \"\", Selection_Hide2!Q273)","v":""},{"$f":"IF(OR(Selection_Hide2!R273=0, Selection_Hide2!R273=\"\"), \"\", Selection_Hide2!R273)","v":""},{"$f":"IF(OR(Selection_Hide2!S273=0, Selection_Hide2!S273=\"\"), \"\", Selection_Hide2!S273)","v":""},{"$f":"IF(OR(Selection_Hide2!T273=0, Selection_Hide2!T273=\"\"), \"\", Selection_Hide2!T273)","v":""},{"$f":"IF(OR(Selection_Hide2!U273=0, Selection_Hide2!U273=\"\"), \"\", Selection_Hide2!U273)","v":""},{"$f":"IF(OR(Selection_Hide2!V273=0, Selection_Hide2!V273=\"\"), \"\", Selection_Hide2!V273)","v":""},{"$f":"IF(OR(Selection_Hide2!W273=0, Selection_Hide2!W273=\"\"), \"\", Selection_Hide2!W273)","v":""},{"$f":"IF(OR(Selection_Hide2!X273=0, Selection_Hide2!X273=\"\"), \"\", Selection_Hide2!X273)","v":""},{"$f":"IF(OR(Selection_Hide2!Y273=0, Selection_Hide2!Y273=\"\"), \"\", Selection_Hide2!Y273)","v":""},{"$f":"IF(OR(Selection_Hide2!Z273=0, Selection_Hide2!Z273=\"\"), \"\", Selection_Hide2!Z273)","v":""},{"$f":"IF(OR(Selection_Hide2!AA273=0, Selection_Hide2!AA273=\"\"), \"\", Selection_Hide2!AA273)","v":""},{"$f":"IF(OR(Selection_Hide2!AB273=0, Selection_Hide2!AB273=\"\"), \"\", Selection_Hide2!AB273)","v":""}]
[{"$f":"IF(OR(Selection_Hide2!A274=0, Selection_Hide2!A274=\"\"), \"\", Selection_Hide2!A274)","v":""},{"$f":"IF(OR(Selection_Hide2!B274=0, Selection_Hide2!B274=\"\"), \"\", Selection_Hide2!B274)","v":""},{"$f":"IF(OR(Selection_Hide2!C274=0, Selection_Hide2!C274=\"\"), \"\", Selection_Hide2!C274)","v":""},{"$f":"IF(OR(Selection_Hide2!D274=0, Selection_Hide2!D274=\"\"), \"\", Selection_Hide2!D274)","v":""},{"$f":"IF(OR(Selection_Hide2!E274=0, Selection_Hide2!E274=\"\"), \"\", Selection_Hide2!E274)","v":""},{"$f":"IF(OR(Selection_Hide2!F274=0, Selection_Hide2!F274=\"\"), \"\", Selection_Hide2!F274)","v":""},{"$f":"IF(OR(Selection_Hide2!G274=0, Selection_Hide2!G274=\"\"), \"\", Selection_Hide2!G274)","v":""},{"$f":"IF(OR(Selection_Hide2!H274=0, Selection_Hide2!H274=\"\"), \"\", Selection_Hide2!H274)","v":""},{"$f":"IF(OR(Selection_Hide2!I274=0, Selection_Hide2!I274=\"\"), \"\", Selection_Hide2!I274)","v":""},{"$f":"IF(OR(Selection_Hide2!J274=0, Selection_Hide2!J274=\"\"), \"\", Selection_Hide2!J274)","v":""},{"$f":"IF(OR(Selection_Hide2!K274=0, Selection_Hide2!K274=\"\"), \"\", Selection_Hide2!K274)","v":""},{"$f":"IF(OR(Selection_Hide2!L274=0, Selection_Hide2!L274=\"\"), \"\", Selection_Hide2!L274)","v":""},{"$f":"IF(OR(Selection_Hide2!M274=0, Selection_Hide2!M274=\"\"), \"\", Selection_Hide2!M274)","v":""},{"$f":"IF(OR(Selection_Hide2!N274=0, Selection_Hide2!N274=\"\"), \"\", Selection_Hide2!N274)","v":""},{"$f":"IF(OR(Selection_Hide2!O274=0, Selection_Hide2!O274=\"\"), \"\", Selection_Hide2!O274)","v":""},{"$f":"IF(OR(Selection_Hide2!P274=0, Selection_Hide2!P274=\"\"), \"\", Selection_Hide2!P274)","v":""},{"$f":"IF(OR(Selection_Hide2!Q274=0, Selection_Hide2!Q274=\"\"), \"\", Selection_Hide2!Q274)","v":""},{"$f":"IF(OR(Selection_Hide2!R274=0, Selection_Hide2!R274=\"\"), \"\", Selection_Hide2!R274)","v":""},{"$f":"IF(OR(Selection_Hide2!S274=0, Selection_Hide2!S274=\"\"), \"\", Selection_Hide2!S274)","v":""},{"$f":"IF(OR(Selection_Hide2!T274=0, Selection_Hide2!T274=\"\"), \"\", Selection_Hide2!T274)","v":""},{"$f":"IF(OR(Selection_Hide2!U274=0, Selection_Hide2!U274=\"\"), \"\", Selection_Hide2!U274)","v":""},{"$f":"IF(OR(Selection_Hide2!V274=0, Selection_Hide2!V274=\"\"), \"\", Selection_Hide2!V274)","v":""},{"$f":"IF(OR(Selection_Hide2!W274=0, Selection_Hide2!W274=\"\"), \"\", Selection_Hide2!W274)","v":""},{"$f":"IF(OR(Selection_Hide2!X274=0, Selection_Hide2!X274=\"\"), \"\", Selection_Hide2!X274)","v":""},{"$f":"IF(OR(Selection_Hide2!Y274=0, Selection_Hide2!Y274=\"\"), \"\", Selection_Hide2!Y274)","v":""},{"$f":"IF(OR(Selection_Hide2!Z274=0, Selection_Hide2!Z274=\"\"), \"\", Selection_Hide2!Z274)","v":""},{"$f":"IF(OR(Selection_Hide2!AA274=0, Selection_Hide2!AA274=\"\"), \"\", Selection_Hide2!AA274)","v":""},{"$f":"IF(OR(Selection_Hide2!AB274=0, Selection_Hide2!AB274=\"\"), \"\", Selection_Hide2!AB274)","v":""}]
[{"$f":"IF(OR(Selection_Hide2!A275=0, Selection_Hide2!A275=\"\"), \"\", Selection_Hide2!A275)","v":""},{"$f":"IF(OR(Selection_Hide2!B275=0, Selection_Hide2!B275=\"\"), \"\", Selection_Hide2!B275)","v":""},{"$f":"IF(OR(Selection_Hide2!C275=0, Selection_Hide2!C275=\"\"), \"\", Selection_Hide2!C275)","v":""},{"$f":"IF(OR(Selection_Hide2!D275=0, Selection_Hide2!D275=\"\"), \"\", Selection_Hide2!D275)","v":""},{"$f":"IF(OR(Selection_Hide2!E275=0, Selection_Hide2!E275=\"\"), \"\", Selection_Hide2!E275)","v":""},{"$f":"IF(OR(Selection_Hide2!F275=0, Selection_Hide2!F275=\"\"), \"\", Selection_Hide2!F275)","v":""},{"$f":"IF(OR(Selection_Hide2!G275=0, Selection_Hide2!G275=\"\"), \"\", Selection_Hide2!G275)","v":""},{"$f":"IF(OR(Selection_Hide2!H275=0, Selection_Hide2!H275=\"\"), \"\", Selection_Hide2!H275)","v":""},{"$f":"IF(OR(Selection_Hide2!I275=0, Selection_Hide2!I275=\"\"), \"\", Selection_Hide2!I275)","v":""},{"$f":"IF(OR(Selection_Hide2!J275=0, Selection_Hide2!J275=\"\"), \"\", Selection_Hide2!J275)","v":""},{"$f":"IF(OR(Selection_Hide2!K275=0, Selection_Hide2!K275=\"\"), \"\", Selection_Hide2!K275)","v":""},{"$f":"IF(OR(Selection_Hide2!L275=0, Selection_Hide2!L275=\"\"), \"\", Selection_Hide2!L275)","v":""},{"$f":"IF(OR(Selection_Hide2!M275=0, Selection_Hide2!M275=\"\"), \"\", Selection_Hide2!M275)","v":""},{"$f":"IF(OR(Selection_Hide2!N275=0, Selection_Hide2!N275=\"\"), \"\", Selection_Hide2!N275)","v":""},{"$f":"IF(OR(Selection_Hide2!O275=0, Selection_Hide2!O275=\"\"), \"\", Selection_Hide2!O275)","v":""},{"$f":"IF(OR(Selection_Hide2!P275=0, Selection_Hide2!P275=\"\"), \"\", Selection_Hide2!P275)","v":""},{"$f":"IF(OR(Selection_Hide2!Q275=0, Selection_Hide2!Q275=\"\"), \"\", Selection_Hide2!Q275)","v":""},{"$f":"IF(OR(Selection_Hide2!R275=0, Selection_Hide2!R275=\"\"), \"\", Selection_Hide2!R275)","v":""},{"$f":"IF(OR(Selection_Hide2!S275=0, Selection_Hide2!S275=\"\"), \"\", Selection_Hide2!S275)","v":""},{"$f":"IF(OR(Selection_Hide2!T275=0, Selection_Hide2!T275=\"\"), \"\", Selection_Hide2!T275)","v":""},{"$f":"IF(OR(Selection_Hide2!U275=0, Selection_Hide2!U275=\"\"), \"\", Selection_Hide2!U275)","v":""},{"$f":"IF(OR(Selection_Hide2!V275=0, Selection_Hide2!V275=\"\"), \"\", Selection_Hide2!V275)","v":""},{"$f":"IF(OR(Selection_Hide2!W275=0, Selection_Hide2!W275=\"\"), \"\", Selection_Hide2!W275)","v":""},{"$f":"IF(OR(Selection_Hide2!X275=0, Selection_Hide2!X275=\"\"), \"\", Selection_Hide2!X275)","v":""},{"$f":"IF(OR(Selection_Hide2!Y275=0, Selection_Hide2!Y275=\"\"), \"\", Selection_Hide2!Y275)","v":""},{"$f":"IF(OR(Selection_Hide2!Z275=0, Selection_Hide2!Z275=\"\"), \"\", Selection_Hide2!Z275)","v":""},{"$f":"IF(OR(Selection_Hide2!AA275=0, Selection_Hide2!AA275=\"\"), \"\", Selection_Hide2!AA275)","v":""},{"$f":"IF(OR(Selection_Hide2!AB275=0, Selection_Hide2!AB275=\"\"), \"\", Selection_Hide2!AB275)","v":""}]
[{"$f":"IF(OR(Selection_Hide2!A276=0, Selection_Hide2!A276=\"\"), \"\", Selection_Hide2!A276)","v":""},{"$f":"IF(OR(Selection_Hide2!B276=0, Selection_Hide2!B276=\"\"), \"\", Selection_Hide2!B276)","v":""},{"$f":"IF(OR(Selection_Hide2!C276=0, Selection_Hide2!C276=\"\"), \"\", Selection_Hide2!C276)","v":""},{"$f":"IF(OR(Selection_Hide2!D276=0, Selection_Hide2!D276=\"\"), \"\", Selection_Hide2!D276)","v":""},{"$f":"IF(OR(Selection_Hide2!E276=0, Selection_Hide2!E276=\"\"), \"\", Selection_Hide2!E276)","v":""},{"$f":"IF(OR(Selection_Hide2!F276=0, Selection_Hide2!F276=\"\"), \"\", Selection_Hide2!F276)","v":""},{"$f":"IF(OR(Selection_Hide2!G276=0, Selection_Hide2!G276=\"\"), \"\", Selection_Hide2!G276)","v":""},{"$f":"IF(OR(Selection_Hide2!H276=0, Selection_Hide2!H276=\"\"), \"\", Selection_Hide2!H276)","v":""},{"$f":"IF(OR(Selection_Hide2!I276=0, Selection_Hide2!I276=\"\"), \"\", Selection_Hide2!I276)","v":""},{"$f":"IF(OR(Selection_Hide2!J276=0, Selection_Hide2!J276=\"\"), \"\", Selection_Hide2!J276)","v":""},{"$f":"IF(OR(Selection_Hide2!K276=0, Selection_Hide2!K276=\"\"), \"\", Selection_Hide2!K276)","v":""},{"$f":"IF(OR(Selection_Hide2!L276=0, Selection_Hide2!L276=\"\"), \"\", Selection_Hide2!L276)","v":""},{"$f":"IF(OR(Selection_Hide2!M276=0, Selection_Hide2!M276=\"\"), \"\", Selection_Hide2!M276)","v":""},{"$f":"IF(OR(Selection_Hide2!N276=0, Selection_Hide2!N276=\"\"), \"\", Selection_Hide2!N276)","v":""},{"$f":"IF(OR(Selection_Hide2!O276=0, Selection_Hide2!O276=\"\"), \"\", Selection_Hide2!O276)","v":""},{"$f":"IF(OR(Selection_Hide2!P276=0, Selection_Hide2!P276=\"\"), \"\", Selection_Hide2!P276)","v":""},{"$f":"IF(OR(Selection_Hide2!Q276=0, Selection_Hide2!Q276=\"\"), \"\", Selection_Hide2!Q276)","v":""},{"$f":"IF(OR(Selection_Hide2!R276=0, Selection_Hide2!R276=\"\"), \"\", Selection_Hide2!R276)","v":""},{"$f":"IF(OR(Selection_Hide2!S276=0, Selection_Hide2!S276=\"\"), \"\", Selection_Hide2!S276)","v":""},{"$f":"IF(OR(Selection_Hide2!T276=0, Selection_Hide2!T276=\"\"), \"\", Selection_Hide2!T276)","v":""},{"$f":"IF(OR(Selection_Hide2!U276=0, Selection_Hide2!U276=\"\"), \"\", Selection_Hide2!U276)","v":""},{"$f":"IF(OR(Selection_Hide2!V276=0, Selection_Hide2!V276=\"\"), \"\", Selection_Hide2!V276)","v":""},{"$f":"IF(OR(Selection_Hide2!W276=0, Selection_Hide2!W276=\"\"), \"\", Selection_Hide2!W276)","v":""},{"$f":"IF(OR(Selection_Hide2!X276=0, Selection_Hide2!X276=\"\"), \"\", Selection_Hide2!X276)","v":""},{"$f":"IF(OR(Selection_Hide2!Y276=0, Selection_Hide2!Y276=\"\"), \"\", Selection_Hide2!Y276)","v":""},{"$f":"IF(OR(Selection_Hide2!Z276=0, Selection_Hide2!Z276=\"\"), \"\", Selection_Hide2!Z276)","v":""},{"$f":"IF(OR(Selection_Hide2!AA276=0, Selection_Hide2!AA276=\"\"), \"\", Selection_Hide2!AA276)","v":""},{"$f":"IF(OR(Selection_Hide2!AB276=0, Selection_Hide2!AB276=\"\"), \"\", Selection_Hide2!AB276)","v":""}]
[{"$f":"IF(OR(Selection_Hide2!A277=0, Selection_Hide2!A277=\"\"), \"\", Selection_Hide2!A277)","v":""},{"$f":"IF(OR(Selection_Hide2!B277=0, Selection_Hide2!B277=\"\"), \"\", Selection_Hide2!B277)","v":""},{"$f":"IF(OR(Selection_Hide2!C277=0, Selection_Hide2!C277=\"\"), \"\", Selection_Hide2!C277)","v":""},{"$f":"IF(OR(Selection_Hide2!D277=0, Selection_Hide2!D277=\"\"), \"\", Selection_Hide2!D277)","v":""},{"$f":"IF(OR(Selection_Hide2!E277=0, Selection_Hide2!E277=\"\"), \"\", Selection_Hide2!E277)","v":""},{"$f":"IF(OR(Selection_Hide2!F277=0, Selection_Hide2!F277=\"\"), \"\", Selection_Hide2!F277)","v":""},{"$f":"IF(OR(Selection_Hide2!G277=0, Selection_Hide2!G277=\"\"), \"\", Selection_Hide2!G277)","v":""},{"$f":"IF(OR(Selection_Hide2!H277=0, Selection_Hide2!H277=\"\"), \"\", Selection_Hide2!H277)","v":""},{"$f":"IF(OR(Selection_Hide2!I277=0, Selection_Hide2!I277=\"\"), \"\", Selection_Hide2!I277)","v":""},{"$f":"IF(OR(Selection_Hide2!J277=0, Selection_Hide2!J277=\"\"), \"\", Selection_Hide2!J277)","v":""},{"$f":"IF(OR(Selection_Hide2!K277=0, Selection_Hide2!K277=\"\"), \"\", Selection_Hide2!K277)","v":""},{"$f":"IF(OR(Selection_Hide2!L277=0, Selection_Hide2!L277=\"\"), \"\", Selection_Hide2!L277)","v":""},{"$f":"IF(OR(Selection_Hide2!M277=0, Selection_Hide2!M277=\"\"), \"\", Selection_Hide2!M277)","v":""},{"$f":"IF(OR(Selection_Hide2!N277=0, Selection_Hide2!N277=\"\"), \"\", Selection_Hide2!N277)","v":""},{"$f":"IF(OR(Selection_Hide2!O277=0, Selection_Hide2!O277=\"\"), \"\", Selection_Hide2!O277)","v":""},{"$f":"IF(OR(Selection_Hide2!P277=0, Selection_Hide2!P277=\"\"), \"\", Selection_Hide2!P277)","v":""},{"$f":"IF(OR(Selection_Hide2!Q277=0, Selection_Hide2!Q277=\"\"), \"\", Selection_Hide2!Q277)","v":""},{"$f":"IF(OR(Selection_Hide2!R277=0, Selection_Hide2!R277=\"\"), \"\", Selection_Hide2!R277)","v":""},{"$f":"IF(OR(Selection_Hide2!S277=0, Selection_Hide2!S277=\"\"), \"\", Selection_Hide2!S277)","v":""},{"$f":"IF(OR(Selection_Hide2!T277=0, Selection_Hide2!T277=\"\"), \"\", Selection_Hide2!T277)","v":""},{"$f":"IF(OR(Selection_Hide2!U277=0, Selection_Hide2!U277=\"\"), \"\", Selection_Hide2!U277)","v":""},{"$f":"IF(OR(Selection_Hide2!V277=0, Selection_Hide2!V277=\"\"), \"\", Selection_Hide2!V277)","v":""},{"$f":"IF(OR(Selection_Hide2!W277=0, Selection_Hide2!W277=\"\"), \"\", Selection_Hide2!W277)","v":""},{"$f":"IF(OR(Selection_Hide2!X277=0, Selection_Hide2!X277=\"\"), \"\", Selection_Hide2!X277)","v":""},{"$f":"IF(OR(Selection_Hide2!Y277=0, Selection_Hide2!Y277=\"\"), \"\", Selection_Hide2!Y277)","v":""},{"$f":"IF(OR(Selection_Hide2!Z277=0, Selection_Hide2!Z277=\"\"), \"\", Selection_Hide2!Z277)","v":""},{"$f":"IF(OR(Selection_Hide2!AA277=0, Selection_Hide2!AA277=\"\"), \"\", Selection_Hide2!AA277)","v":""},{"$f":"IF(OR(Selection_Hide2!AB277=0, Selection_Hide2!AB277=\"\"), \"\", Selection_Hide2!AB277)","v":""}]
[{"$f":"IF(OR(Selection_Hide2!A278=0, Selection_Hide2!A278=\"\"), \"\", Selection_Hide2!A278)","v":""},{"$f":"IF(OR(Selection_Hide2!B278=0, Selection_Hide2!B278=\"\"), \"\", Selection_Hide2!B278)","v":""},{"$f":"IF(OR(Selection_Hide2!C278=0, Selection_Hide2!C278=\"\"), \"\", Selection_Hide2!C278)","v":""},{"$f":"IF(OR(Selection_Hide2!D278=0, Selection_Hide2!D278=\"\"), \"\", Selection_Hide2!D278)","v":""},{"$f":"IF(OR(Selection_Hide2!E278=0, Selection_Hide2!E278=\"\"), \"\", Selection_Hide2!E278)","v":""},{"$f":"IF(OR(Selection_Hide2!F278=0, Selection_Hide2!F278=\"\"), \"\", Selection_Hide2!F278)","v":""},{"$f":"IF(OR(Selection_Hide2!G278=0, Selection_Hide2!G278=\"\"), \"\", Selection_Hide2!G278)","v":""},{"$f":"IF(OR(Selection_Hide2!H278=0, Selection_Hide2!H278=\"\"), \"\", Selection_Hide2!H278)","v":""},{"$f":"IF(OR(Selection_Hide2!I278=0, Selection_Hide2!I278=\"\"), \"\", Selection_Hide2!I278)","v":""},{"$f":"IF(OR(Selection_Hide2!J278=0, Selection_Hide2!J278=\"\"), \"\", Selection_Hide2!J278)","v":""},{"$f":"IF(OR(Selection_Hide2!K278=0, Selection_Hide2!K278=\"\"), \"\", Selection_Hide2!K278)","v":""},{"$f":"IF(OR(Selection_Hide2!L278=0, Selection_Hide2!L278=\"\"), \"\", Selection_Hide2!L278)","v":""},{"$f":"IF(OR(Selection_Hide2!M278=0, Selection_Hide2!M278=\"\"), \"\", Selection_Hide2!M278)","v":""},{"$f":"IF(OR(Selection_Hide2!N278=0, Selection_Hide2!N278=\"\"), \"\", Selection_Hide2!N278)","v":""},{"$f":"IF(OR(Selection_Hide2!O278=0, Selection_Hide2!O278=\"\"), \"\", Selection_Hide2!O278)","v":""},{"$f":"IF(OR(Selection_Hide2!P278=0, Selection_Hide2!P278=\"\"), \"\", Selection_Hide2!P278)","v":""},{"$f":"IF(OR(Selection_Hide2!Q278=0, Selection_Hide2!Q278=\"\"), \"\", Selection_Hide2!Q278)","v":""},{"$f":"IF(OR(Selection_Hide2!R278=0, Selection_Hide2!R278=\"\"), \"\", Selection_Hide2!R278)","v":""},{"$f":"IF(OR(Selection_Hide2!S278=0, Selection_Hide2!S278=\"\"), \"\", Selection_Hide2!S278)","v":""},{"$f":"IF(OR(Selection_Hide2!T278=0, Selection_Hide2!T278=\"\"), \"\", Selection_Hide2!T278)","v":""},{"$f":"IF(OR(Selection_Hide2!U278=0, Selection_Hide2!U278=\"\"), \"\", Selection_Hide2!U278)","v":""},{"$f":"IF(OR(Selection_Hide2!V278=0, Selection_Hide2!V278=\"\"), \"\", Selection_Hide2!V278)","v":""},{"$f":"IF(OR(Selection_Hide2!W278=0, Selection_Hide2!W278=\"\"), \"\", Selection_Hide2!W278)","v":""},{"$f":"IF(OR(Selection_Hide2!X278=0, Selection_Hide2!X278=\"\"), \"\", Selection_Hide2!X278)","v":""},{"$f":"IF(OR(Selection_Hide2!Y278=0, Selection_Hide2!Y278=\"\"), \"\", Selection_Hide2!Y278)","v":""},{"$f":"IF(OR(Selection_Hide2!Z278=0, Selection_Hide2!Z278=\"\"), \"\", Selection_Hide2!Z278)","v":""},{"$f":"IF(OR(Selection_Hide2!AA278=0, Selection_Hide2!AA278=\"\"), \"\", Selection_Hide2!AA278)","v":""},{"$f":"IF(OR(Selection_Hide2!AB278=0, Selection_Hide2!AB278=\"\"), \"\", Selection_Hide2!AB278)","v":""}]
[{"$f":"IF(OR(Selection_Hide2!A279=0, Selection_Hide2!A279=\"\"), \"\", Selection_Hide2!A279)","v":""},{"$f":"IF(OR(Selection_Hide2!B279=0, Selection_Hide2!B279=\"\"), \"\", Selection_Hide2!B279)","v":""},{"$f":"IF(OR(Selection_Hide2!C279=0, Selection_Hide2!C279=\"\"), \"\", Selection_Hide2!C279)","v":""},{"$f":"IF(OR(Selection_Hide2!D279=0, Selection_Hide2!D279=\"\"), \"\", Selection_Hide2!D279)","v":""},{"$f":"IF(OR(Selection_Hide2!E279=0, Selection_Hide2!E279=\"\"), \"\", Selection_Hide2!E279)","v":""},{"$f":"IF(OR(Selection_Hide2!F279=0, Selection_Hide2!F279=\"\"), \"\", Selection_Hide2!F279)","v":""},{"$f":"IF(OR(Selection_Hide2!G279=0, Selection_Hide2!G279=\"\"), \"\", Selection_Hide2!G279)","v":""},{"$f":"IF(OR(Selection_Hide2!H279=0, Selection_Hide2!H279=\"\"), \"\", Selection_Hide2!H279)","v":""},{"$f":"IF(OR(Selection_Hide2!I279=0, Selection_Hide2!I279=\"\"), \"\", Selection_Hide2!I279)","v":""},{"$f":"IF(OR(Selection_Hide2!J279=0, Selection_Hide2!J279=\"\"), \"\", Selection_Hide2!J279)","v":""},{"$f":"IF(OR(Selection_Hide2!K279=0, Selection_Hide2!K279=\"\"), \"\", Selection_Hide2!K279)","v":""},{"$f":"IF(OR(Selection_Hide2!L279=0, Selection_Hide2!L279=\"\"), \"\", Selection_Hide2!L279)","v":""},{"$f":"IF(OR(Selection_Hide2!M279=0, Selection_Hide2!M279=\"\"), \"\", Selection_Hide2!M279)","v":""},{"$f":"IF(OR(Selection_Hide2!N279=0, Selection_Hide2!N279=\"\"), \"\", Selection_Hide2!N279)","v":""},{"$f":"IF(OR(Selection_Hide2!O279=0, Selection_Hide2!O279=\"\"), \"\", Selection_Hide2!O279)","v":""},{"$f":"IF(OR(Selection_Hide2!P279=0, Selection_Hide2!P279=\"\"), \"\", Selection_Hide2!P279)","v":""},{"$f":"IF(OR(Selection_Hide2!Q279=0, Selection_Hide2!Q279=\"\"), \"\", Selection_Hide2!Q279)","v":""},{"$f":"IF(OR(Selection_Hide2!R279=0, Selection_Hide2!R279=\"\"), \"\", Selection_Hide2!R279)","v":""},{"$f":"IF(OR(Selection_Hide2!S279=0, Selection_Hide2!S279=\"\"), \"\", Selection_Hide2!S279)","v":""},{"$f":"IF(OR(Selection_Hide2!T279=0, Selection_Hide2!T279=\"\"), \"\", Selection_Hide2!T279)","v":""},{"$f":"IF(OR(Selection_Hide2!U279=0, Selection_Hide2!U279=\"\"), \"\", Selection_Hide2!U279)","v":""},{"$f":"IF(OR(Selection_Hide2!V279=0, Selection_Hide2!V279=\"\"), \"\", Selection_Hide2!V279)","v":""},{"$f":"IF(OR(Selection_Hide2!W279=0, Selection_Hide2!W279=\"\"), \"\", Selection_Hide2!W279)","v":""},{"$f":"IF(OR(Selection_Hide2!X279=0, Selection_Hide2!X279=\"\"), \"\", Selection_Hide2!X279)","v":""},{"$f":"IF(OR(Selection_Hide2!Y279=0, Selection_Hide2!Y279=\"\"), \"\", Selection_Hide2!Y279)","v":""},{"$f":"IF(OR(Selection_Hide2!Z279=0, Selection_Hide2!Z279=\"\"), \"\", Selection_Hide2!Z279)","v":""},{"$f":"IF(OR(Selection_Hide2!AA279=0, Selection_Hide2!AA279=\"\"), \"\", Selection_Hide2!AA279)","v":""},{"$f":"IF(OR(Selection_Hide2!AB279=0, Selection_Hide2!AB279=\"\"), \"\", Selection_Hide2!AB279)","v":""}]
[{"$f":"IF(OR(Selection_Hide2!A280=0, Selection_Hide2!A280=\"\"), \"\", Selection_Hide2!A280)","v":""},{"$f":"IF(OR(Selection_Hide2!B280=0, Selection_Hide2!B280=\"\"), \"\", Selection_Hide2!B280)","v":""},{"$f":"IF(OR(Selection_Hide2!C280=0, Selection_Hide2!C280=\"\"), \"\", Selection_Hide2!C280)","v":""},{"$f":"IF(OR(Selection_Hide2!D280=0, Selection_Hide2!D280=\"\"), \"\", Selection_Hide2!D280)","v":""},{"$f":"IF(OR(Selection_Hide2!E280=0, Selection_Hide2!E280=\"\"), \"\", Selection_Hide2!E280)","v":""},{"$f":"IF(OR(Selection_Hide2!F280=0, Selection_Hide2!F280=\"\"), \"\", Selection_Hide2!F280)","v":""},{"$f":"IF(OR(Selection_Hide2!G280=0, Selection_Hide2!G280=\"\"), \"\", Selection_Hide2!G280)","v":""},{"$f":"IF(OR(Selection_Hide2!H280=0, Selection_Hide2!H280=\"\"), \"\", Selection_Hide2!H280)","v":""},{"$f":"IF(OR(Selection_Hide2!I280=0, Selection_Hide2!I280=\"\"), \"\", Selection_Hide2!I280)","v":""},{"$f":"IF(OR(Selection_Hide2!J280=0, Selection_Hide2!J280=\"\"), \"\", Selection_Hide2!J280)","v":""},{"$f":"IF(OR(Selection_Hide2!K280=0, Selection_Hide2!K280=\"\"), \"\", Selection_Hide2!K280)","v":""},{"$f":"IF(OR(Selection_Hide2!L280=0, Selection_Hide2!L280=\"\"), \"\", Selection_Hide2!L280)","v":""},{"$f":"IF(OR(Selection_Hide2!M280=0, Selection_Hide2!M280=\"\"), \"\", Selection_Hide2!M280)","v":""},{"$f":"IF(OR(Selection_Hide2!N280=0, Selection_Hide2!N280=\"\"), \"\", Selection_Hide2!N280)","v":""},{"$f":"IF(OR(Selection_Hide2!O280=0, Selection_Hide2!O280=\"\"), \"\", Selection_Hide2!O280)","v":""},{"$f":"IF(OR(Selection_Hide2!P280=0, Selection_Hide2!P280=\"\"), \"\", Selection_Hide2!P280)","v":""},{"$f":"IF(OR(Selection_Hide2!Q280=0, Selection_Hide2!Q280=\"\"), \"\", Selection_Hide2!Q280)","v":""},{"$f":"IF(OR(Selection_Hide2!R280=0, Selection_Hide2!R280=\"\"), \"\", Selection_Hide2!R280)","v":""},{"$f":"IF(OR(Selection_Hide2!S280=0, Selection_Hide2!S280=\"\"), \"\", Selection_Hide2!S280)","v":""},{"$f":"IF(OR(Selection_Hide2!T280=0, Selection_Hide2!T280=\"\"), \"\", Selection_Hide2!T280)","v":""},{"$f":"IF(OR(Selection_Hide2!U280=0, Selection_Hide2!U280=\"\"), \"\", Selection_Hide2!U280)","v":""},{"$f":"IF(OR(Selection_Hide2!V280=0, Selection_Hide2!V280=\"\"), \"\", Selection_Hide2!V280)","v":""},{"$f":"IF(OR(Selection_Hide2!W280=0, Selection_Hide2!W280=\"\"), \"\", Selection_Hide2!W280)","v":""},{"$f":"IF(OR(Selection_Hide2!X280=0, Selection_Hide2!X280=\"\"), \"\", Selection_Hide2!X280)","v":""},{"$f":"IF(OR(Selection_Hide2!Y280=0, Selection_Hide2!Y280=\"\"), \"\", Selection_Hide2!Y280)","v":""},{"$f":"IF(OR(Selection_Hide2!Z280=0, Selection_Hide2!Z280=\"\"), \"\", Selection_Hide2!Z280)","v":""},{"$f":"IF(OR(Selection_Hide2!AA280=0, Selection_Hide2!AA280=\"\"), \"\", Selection_Hide2!AA280)","v":""},{"$f":"IF(OR(Selection_Hide2!AB280=0, Selection_Hide2!AB280=\"\"), \"\", Selection_Hide2!AB280)","v":""}]
[{"$f":"IF(OR(Selection_Hide2!A281=0, Selection_Hide2!A281=\"\"), \"\", Selection_Hide2!A281)","v":""},{"$f":"IF(OR(Selection_Hide2!B281=0, Selection_Hide2!B281=\"\"), \"\", Selection_Hide2!B281)","v":""},{"$f":"IF(OR(Selection_Hide2!C281=0, Selection_Hide2!C281=\"\"), \"\", Selection_Hide2!C281)","v":""},{"$f":"IF(OR(Selection_Hide2!D281=0, Selection_Hide2!D281=\"\"), \"\", Selection_Hide2!D281)","v":""},{"$f":"IF(OR(Selection_Hide2!E281=0, Selection_Hide2!E281=\"\"), \"\", Selection_Hide2!E281)","v":""},{"$f":"IF(OR(Selection_Hide2!F281=0, Selection_Hide2!F281=\"\"), \"\", Selection_Hide2!F281)","v":""},{"$f":"IF(OR(Selection_Hide2!G281=0, Selection_Hide2!G281=\"\"), \"\", Selection_Hide2!G281)","v":""},{"$f":"IF(OR(Selection_Hide2!H281=0, Selection_Hide2!H281=\"\"), \"\", Selection_Hide2!H281)","v":""},{"$f":"IF(OR(Selection_Hide2!I281=0, Selection_Hide2!I281=\"\"), \"\", Selection_Hide2!I281)","v":""},{"$f":"IF(OR(Selection_Hide2!J281=0, Selection_Hide2!J281=\"\"), \"\", Selection_Hide2!J281)","v":""},{"$f":"IF(OR(Selection_Hide2!K281=0, Selection_Hide2!K281=\"\"), \"\", Selection_Hide2!K281)","v":""},{"$f":"IF(OR(Selection_Hide2!L281=0, Selection_Hide2!L281=\"\"), \"\", Selection_Hide2!L281)","v":""},{"$f":"IF(OR(Selection_Hide2!M281=0, Selection_Hide2!M281=\"\"), \"\", Selection_Hide2!M281)","v":""},{"$f":"IF(OR(Selection_Hide2!N281=0, Selection_Hide2!N281=\"\"), \"\", Selection_Hide2!N281)","v":""},{"$f":"IF(OR(Selection_Hide2!O281=0, Selection_Hide2!O281=\"\"), \"\", Selection_Hide2!O281)","v":""},{"$f":"IF(OR(Selection_Hide2!P281=0, Selection_Hide2!P281=\"\"), \"\", Selection_Hide2!P281)","v":""},{"$f":"IF(OR(Selection_Hide2!Q281=0, Selection_Hide2!Q281=\"\"), \"\", Selection_Hide2!Q281)","v":""},{"$f":"IF(OR(Selection_Hide2!R281=0, Selection_Hide2!R281=\"\"), \"\", Selection_Hide2!R281)","v":""},{"$f":"IF(OR(Selection_Hide2!S281=0, Selection_Hide2!S281=\"\"), \"\", Selection_Hide2!S281)","v":""},{"$f":"IF(OR(Selection_Hide2!T281=0, Selection_Hide2!T281=\"\"), \"\", Selection_Hide2!T281)","v":""},{"$f":"IF(OR(Selection_Hide2!U281=0, Selection_Hide2!U281=\"\"), \"\", Selection_Hide2!U281)","v":""},{"$f":"IF(OR(Selection_Hide2!V281=0, Selection_Hide2!V281=\"\"), \"\", Selection_Hide2!V281)","v":""},{"$f":"IF(OR(Selection_Hide2!W281=0, Selection_Hide2!W281=\"\"), \"\", Selection_Hide2!W281)","v":""},{"$f":"IF(OR(Selection_Hide2!X281=0, Selection_Hide2!X281=\"\"), \"\", Selection_Hide2!X281)","v":""},{"$f":"IF(OR(Selection_Hide2!Y281=0, Selection_Hide2!Y281=\"\"), \"\", Selection_Hide2!Y281)","v":""},{"$f":"IF(OR(Selection_Hide2!Z281=0, Selection_Hide2!Z281=\"\"), \"\", Selection_Hide2!Z281)","v":""},{"$f":"IF(OR(Selection_Hide2!AA281=0, Selection_Hide2!AA281=\"\"), \"\", Selection_Hide2!AA281)","v":""},{"$f":"IF(OR(Selection_Hide2!AB281=0, Selection_Hide2!AB281=\"\"), \"\", Selection_Hide2!AB281)","v":""}]
[{"$f":"IF(OR(Selection_Hide2!A282=0, Selection_Hide2!A282=\"\"), \"\", Selection_Hide2!A282)","v":""},{"$f":"IF(OR(Selection_Hide2!B282=0, Selection_Hide2!B282=\"\"), \"\", Selection_Hide2!B282)","v":""},{"$f":"IF(OR(Selection_Hide2!C282=0, Selection_Hide2!C282=\"\"), \"\", Selection_Hide2!C282)","v":""},{"$f":"IF(OR(Selection_Hide2!D282=0, Selection_Hide2!D282=\"\"), \"\", Selection_Hide2!D282)","v":""},{"$f":"IF(OR(Selection_Hide2!E282=0, Selection_Hide2!E282=\"\"), \"\", Selection_Hide2!E282)","v":""},{"$f":"IF(OR(Selection_Hide2!F282=0, Selection_Hide2!F282=\"\"), \"\", Selection_Hide2!F282)","v":""},{"$f":"IF(OR(Selection_Hide2!G282=0, Selection_Hide2!G282=\"\"), \"\", Selection_Hide2!G282)","v":""},{"$f":"IF(OR(Selection_Hide2!H282=0, Selection_Hide2!H282=\"\"), \"\", Selection_Hide2!H282)","v":""},{"$f":"IF(OR(Selection_Hide2!I282=0, Selection_Hide2!I282=\"\"), \"\", Selection_Hide2!I282)","v":""},{"$f":"IF(OR(Selection_Hide2!J282=0, Selection_Hide2!J282=\"\"), \"\", Selection_Hide2!J282)","v":""},{"$f":"IF(OR(Selection_Hide2!K282=0, Selection_Hide2!K282=\"\"), \"\", Selection_Hide2!K282)","v":""},{"$f":"IF(OR(Selection_Hide2!L282=0, Selection_Hide2!L282=\"\"), \"\", Selection_Hide2!L282)","v":""},{"$f":"IF(OR(Selection_Hide2!M282=0, Selection_Hide2!M282=\"\"), \"\", Selection_Hide2!M282)","v":""},{"$f":"IF(OR(Selection_Hide2!N282=0, Selection_Hide2!N282=\"\"), \"\", Selection_Hide2!N282)","v":""},{"$f":"IF(OR(Selection_Hide2!O282=0, Selection_Hide2!O282=\"\"), \"\", Selection_Hide2!O282)","v":""},{"$f":"IF(OR(Selection_Hide2!P282=0, Selection_Hide2!P282=\"\"), \"\", Selection_Hide2!P282)","v":""},{"$f":"IF(OR(Selection_Hide2!Q282=0, Selection_Hide2!Q282=\"\"), \"\", Selection_Hide2!Q282)","v":""},{"$f":"IF(OR(Selection_Hide2!R282=0, Selection_Hide2!R282=\"\"), \"\", Selection_Hide2!R282)","v":""},{"$f":"IF(OR(Selection_Hide2!S282=0, Selection_Hide2!S282=\"\"), \"\", Selection_Hide2!S282)","v":""},{"$f":"IF(OR(Selection_Hide2!T282=0, Selection_Hide2!T282=\"\"), \"\", Selection_Hide2!T282)","v":""},{"$f":"IF(OR(Selection_Hide2!U282=0, Selection_Hide2!U282=\"\"), \"\", Selection_Hide2!U282)","v":""},{"$f":"IF(OR(Selection_Hide2!V282=0, Selection_Hide2!V282=\"\"), \"\", Selection_Hide2!V282)","v":""},{"$f":"IF(OR(Selection_Hide2!W282=0, Selection_Hide2!W282=\"\"), \"\", Selection_Hide2!W282)","v":""},{"$f":"IF(OR(Selection_Hide2!X282=0, Selection_Hide2!X282=\"\"), \"\", Selection_Hide2!X282)","v":""},{"$f":"IF(OR(Selection_Hide2!Y282=0, Selection_Hide2!Y282=\"\"), \"\", Selection_Hide2!Y282)","v":""},{"$f":"IF(OR(Selection_Hide2!Z282=0, Selection_Hide2!Z282=\"\"), \"\", Selection_Hide2!Z282)","v":""},{"$f":"IF(OR(Selection_Hide2!AA282=0, Selection_Hide2!AA282=\"\"), \"\", Selection_Hide2!AA282)","v":""},{"$f":"IF(OR(Selection_Hide2!AB282=0, Selection_Hide2!AB282=\"\"), \"\", Selection_Hide2!AB282)","v":""}]
[{"$f":"IF(OR(Selection_Hide2!A283=0, Selection_Hide2!A283=\"\"), \"\", Selection_Hide2!A283)","v":""},{"$f":"IF(OR(Selection_Hide2!B283=0, Selection_Hide2!B283=\"\"), \"\", Selection_Hide2!B283)","v":""},{"$f":"IF(OR(Selection_Hide2!C283=0, Selection_Hide2!C283=\"\"), \"\", Selection_Hide2!C283)","v":""},{"$f":"IF(OR(Selection_Hide2!D283=0, Selection_Hide2!D283=\"\"), \"\", Selection_Hide2!D283)","v":""},{"$f":"IF(OR(Selection_Hide2!E283=0, Selection_Hide2!E283=\"\"), \"\", Selection_Hide2!E283)","v":""},{"$f":"IF(OR(Selection_Hide2!F283=0, Selection_Hide2!F283=\"\"), \"\", Selection_Hide2!F283)","v":""},{"$f":"IF(OR(Selection_Hide2!G283=0, Selection_Hide2!G283=\"\"), \"\", Selection_Hide2!G283)","v":""},{"$f":"IF(OR(Selection_Hide2!H283=0, Selection_Hide2!H283=\"\"), \"\", Selection_Hide2!H283)","v":""},{"$f":"IF(OR(Selection_Hide2!I283=0, Selection_Hide2!I283=\"\"), \"\", Selection_Hide2!I283)","v":""},{"$f":"IF(OR(Selection_Hide2!J283=0, Selection_Hide2!J283=\"\"), \"\", Selection_Hide2!J283)","v":""},{"$f":"IF(OR(Selection_Hide2!K283=0, Selection_Hide2!K283=\"\"), \"\", Selection_Hide2!K283)","v":""},{"$f":"IF(OR(Selection_Hide2!L283=0, Selection_Hide2!L283=\"\"), \"\", Selection_Hide2!L283)","v":""},{"$f":"IF(OR(Selection_Hide2!M283=0, Selection_Hide2!M283=\"\"), \"\", Selection_Hide2!M283)","v":""},{"$f":"IF(OR(Selection_Hide2!N283=0, Selection_Hide2!N283=\"\"), \"\", Selection_Hide2!N283)","v":""},{"$f":"IF(OR(Selection_Hide2!O283=0, Selection_Hide2!O283=\"\"), \"\", Selection_Hide2!O283)","v":""},{"$f":"IF(OR(Selection_Hide2!P283=0, Selection_Hide2!P283=\"\"), \"\", Selection_Hide2!P283)","v":""},{"$f":"IF(OR(Selection_Hide2!Q283=0, Selection_Hide2!Q283=\"\"), \"\", Selection_Hide2!Q283)","v":""},{"$f":"IF(OR(Selection_Hide2!R283=0, Selection_Hide2!R283=\"\"), \"\", Selection_Hide2!R283)","v":""},{"$f":"IF(OR(Selection_Hide2!S283=0, Selection_Hide2!S283=\"\"), \"\", Selection_Hide2!S283)","v":""},{"$f":"IF(OR(Selection_Hide2!T283=0, Selection_Hide2!T283=\"\"), \"\", Selection_Hide2!T283)","v":""},{"$f":"IF(OR(Selection_Hide2!U283=0, Selection_Hide2!U283=\"\"), \"\", Selection_Hide2!U283)","v":""},{"$f":"IF(OR(Selection_Hide2!V283=0, Selection_Hide2!V283=\"\"), \"\", Selection_Hide2!V283)","v":""},{"$f":"IF(OR(Selection_Hide2!W283=0, Selection_Hide2!W283=\"\"), \"\", Selection_Hide2!W283)","v":""},{"$f":"IF(OR(Selection_Hide2!X283=0, Selection_Hide2!X283=\"\"), \"\", Selection_Hide2!X283)","v":""},{"$f":"IF(OR(Selection_Hide2!Y283=0, Selection_Hide2!Y283=\"\"), \"\", Selection_Hide2!Y283)","v":""},{"$f":"IF(OR(Selection_Hide2!Z283=0, Selection_Hide2!Z283=\"\"), \"\", Selection_Hide2!Z283)","v":""},{"$f":"IF(OR(Selection_Hide2!AA283=0, Selection_Hide2!AA283=\"\"), \"\", Selection_Hide2!AA283)","v":""},{"$f":"IF(OR(Selection_Hide2!AB283=0, Selection_Hide2!AB283=\"\"), \"\", Selection_Hide2!AB283)","v":""}]
[{"$f":"IF(OR(Selection_Hide2!A284=0, Selection_Hide2!A284=\"\"), \"\", Selection_Hide2!A284)","v":""},{"$f":"IF(OR(Selection_Hide2!B284=0, Selection_Hide2!B284=\"\"), \"\", Selection_Hide2!B284)","v":""},{"$f":"IF(OR(Selection_Hide2!C284=0, Selection_Hide2!C284=\"\"), \"\", Selection_Hide2!C284)","v":""},{"$f":"IF(OR(Selection_Hide2!D284=0, Selection_Hide2!D284=\"\"), \"\", Selection_Hide2!D284)","v":""},{"$f":"IF(OR(Selection_Hide2!E284=0, Selection_Hide2!E284=\"\"), \"\", Selection_Hide2!E284)","v":""},{"$f":"IF(OR(Selection_Hide2!F284=0, Selection_Hide2!F284=\"\"), \"\", Selection_Hide2!F284)","v":""},{"$f":"IF(OR(Selection_Hide2!G284=0, Selection_Hide2!G284=\"\"), \"\", Selection_Hide2!G284)","v":""},{"$f":"IF(OR(Selection_Hide2!H284=0, Selection_Hide2!H284=\"\"), \"\", Selection_Hide2!H284)","v":""},{"$f":"IF(OR(Selection_Hide2!I284=0, Selection_Hide2!I284=\"\"), \"\", Selection_Hide2!I284)","v":""},{"$f":"IF(OR(Selection_Hide2!J284=0, Selection_Hide2!J284=\"\"), \"\", Selection_Hide2!J284)","v":""},{"$f":"IF(OR(Selection_Hide2!K284=0, Selection_Hide2!K284=\"\"), \"\", Selection_Hide2!K284)","v":""},{"$f":"IF(OR(Selection_Hide2!L284=0, Selection_Hide2!L284=\"\"), \"\", Selection_Hide2!L284)","v":""},{"$f":"IF(OR(Selection_Hide2!M284=0, Selection_Hide2!M284=\"\"), \"\", Selection_Hide2!M284)","v":""},{"$f":"IF(OR(Selection_Hide2!N284=0, Selection_Hide2!N284=\"\"), \"\", Selection_Hide2!N284)","v":""},{"$f":"IF(OR(Selection_Hide2!O284=0, Selection_Hide2!O284=\"\"), \"\", Selection_Hide2!O284)","v":""},{"$f":"IF(OR(Selection_Hide2!P284=0, Selection_Hide2!P284=\"\"), \"\", Selection_Hide2!P284)","v":""},{"$f":"IF(OR(Selection_Hide2!Q284=0, Selection_Hide2!Q284=\"\"), \"\", Selection_Hide2!Q284)","v":""},{"$f":"IF(OR(Selection_Hide2!R284=0, Selection_Hide2!R284=\"\"), \"\", Selection_Hide2!R284)","v":""},{"$f":"IF(OR(Selection_Hide2!S284=0, Selection_Hide2!S284=\"\"), \"\", Selection_Hide2!S284)","v":""},{"$f":"IF(OR(Selection_Hide2!T284=0, Selection_Hide2!T284=\"\"), \"\", Selection_Hide2!T284)","v":""},{"$f":"IF(OR(Selection_Hide2!U284=0, Selection_Hide2!U284=\"\"), \"\", Selection_Hide2!U284)","v":""},{"$f":"IF(OR(Selection_Hide2!V284=0, Selection_Hide2!V284=\"\"), \"\", Selection_Hide2!V284)","v":""},{"$f":"IF(OR(Selection_Hide2!W284=0, Selection_Hide2!W284=\"\"), \"\", Selection_Hide2!W284)","v":""},{"$f":"IF(OR(Selection_Hide2!X284=0, Selection_Hide2!X284=\"\"), \"\", Selection_Hide2!X284)","v":""},{"$f":"IF(OR(Selection_Hide2!Y284=0, Selection_Hide2!Y284=\"\"), \"\", Selection_Hide2!Y284)","v":""},{"$f":"IF(OR(Selection_Hide2!Z284=0, Selection_Hide2!Z284=\"\"), \"\", Selection_Hide2!Z284)","v":""},{"$f":"IF(OR(Selection_Hide2!AA284=0, Selection_Hide2!AA284=\"\"), \"\", Selection_Hide2!AA284)","v":""},{"$f":"IF(OR(Selection_Hide2!AB284=0, Selection_Hide2!AB284=\"\"), \"\", Selection_Hide2!AB284)","v":""}]
[{"$f":"IF(OR(Selection_Hide2!A285=0, Selection_Hide2!A285=\"\"), \"\", Selection_Hide2!A285)","v":""},{"$f":"IF(OR(Selection_Hide2!B285=0, Selection_Hide2!B285=\"\"), \"\", Selection_Hide2!B285)","v":""},{"$f":"IF(OR(Selection_Hide2!C285=0, Selection_Hide2!C285=\"\"), \"\", Selection_Hide2!C285)","v":""},{"$f":"IF(OR(Selection_Hide2!D285=0, Selection_Hide2!D285=\"\"), \"\", Selection_Hide2!D285)","v":""},{"$f":"IF(OR(Selection_Hide2!E285=0, Selection_Hide2!E285=\"\"), \"\", Selection_Hide2!E285)","v":""},{"$f":"IF(OR(Selection_Hide2!F285=0, Selection_Hide2!F285=\"\"), \"\", Selection_Hide2!F285)","v":""},{"$f":"IF(OR(Selection_Hide2!G285=0, Selection_Hide2!G285=\"\"), \"\", Selection_Hide2!G285)","v":""},{"$f":"IF(OR(Selection_Hide2!H285=0, Selection_Hide2!H285=\"\"), \"\", Selection_Hide2!H285)","v":""},{"$f":"IF(OR(Selection_Hide2!I285=0, Selection_Hide2!I285=\"\"), \"\", Selection_Hide2!I285)","v":""},{"$f":"IF(OR(Selection_Hide2!J285=0, Selection_Hide2!J285=\"\"), \"\", Selection_Hide2!J285)","v":""},{"$f":"IF(OR(Selection_Hide2!K285=0, Selection_Hide2!K285=\"\"), \"\", Selection_Hide2!K285)","v":""},{"$f":"IF(OR(Selection_Hide2!L285=0, Selection_Hide2!L285=\"\"), \"\", Selection_Hide2!L285)","v":""},{"$f":"IF(OR(Selection_Hide2!M285=0, Selection_Hide2!M285=\"\"), \"\", Selection_Hide2!M285)","v":""},{"$f":"IF(OR(Selection_Hide2!N285=0, Selection_Hide2!N285=\"\"), \"\", Selection_Hide2!N285)","v":""},{"$f":"IF(OR(Selection_Hide2!O285=0, Selection_Hide2!O285=\"\"), \"\", Selection_Hide2!O285)","v":""},{"$f":"IF(OR(Selection_Hide2!P285=0, Selection_Hide2!P285=\"\"), \"\", Selection_Hide2!P285)","v":""},{"$f":"IF(OR(Selection_Hide2!Q285=0, Selection_Hide2!Q285=\"\"), \"\", Selection_Hide2!Q285)","v":""},{"$f":"IF(OR(Selection_Hide2!R285=0, Selection_Hide2!R285=\"\"), \"\", Selection_Hide2!R285)","v":""},{"$f":"IF(OR(Selection_Hide2!S285=0, Selection_Hide2!S285=\"\"), \"\", Selection_Hide2!S285)","v":""},{"$f":"IF(OR(Selection_Hide2!T285=0, Selection_Hide2!T285=\"\"), \"\", Selection_Hide2!T285)","v":""},{"$f":"IF(OR(Selection_Hide2!U285=0, Selection_Hide2!U285=\"\"), \"\", Selection_Hide2!U285)","v":""},{"$f":"IF(OR(Selection_Hide2!V285=0, Selection_Hide2!V285=\"\"), \"\", Selection_Hide2!V285)","v":""},{"$f":"IF(OR(Selection_Hide2!W285=0, Selection_Hide2!W285=\"\"), \"\", Selection_Hide2!W285)","v":""},{"$f":"IF(OR(Selection_Hide2!X285=0, Selection_Hide2!X285=\"\"), \"\", Selection_Hide2!X285)","v":""},{"$f":"IF(OR(Selection_Hide2!Y285=0, Selection_Hide2!Y285=\"\"), \"\", Selection_Hide2!Y285)","v":""},{"$f":"IF(OR(Selection_Hide2!Z285=0, Selection_Hide2!Z285=\"\"), \"\", Selection_Hide2!Z285)","v":""},{"$f":"IF(OR(Selection_Hide2!AA285=0, Selection_Hide2!AA285=\"\"), \"\", Selection_Hide2!AA285)","v":""},{"$f":"IF(OR(Selection_Hide2!AB285=0, Selection_Hide2!AB285=\"\"), \"\", Selection_Hide2!AB285)","v":""}]
[{"$f":"IF(OR(Selection_Hide2!A286=0, Selection_Hide2!A286=\"\"), \"\", Selection_Hide2!A286)","v":""},{"$f":"IF(OR(Selection_Hide2!B286=0, Selection_Hide2!B286=\"\"), \"\", Selection_Hide2!B286)","v":""},{"$f":"IF(OR(Selection_Hide2!C286=0, Selection_Hide2!C286=\"\"), \"\", Selection_Hide2!C286)","v":""},{"$f":"IF(OR(Selection_Hide2!D286=0, Selection_Hide2!D286=\"\"), \"\", Selection_Hide2!D286)","v":""},{"$f":"IF(OR(Selection_Hide2!E286=0, Selection_Hide2!E286=\"\"), \"\", Selection_Hide2!E286)","v":""},{"$f":"IF(OR(Selection_Hide2!F286=0, Selection_Hide2!F286=\"\"), \"\", Selection_Hide2!F286)","v":""},{"$f":"IF(OR(Selection_Hide2!G286=0, Selection_Hide2!G286=\"\"), \"\", Selection_Hide2!G286)","v":""},{"$f":"IF(OR(Selection_Hide2!H286=0, Selection_Hide2!H286=\"\"), \"\", Selection_Hide2!H286)","v":""},{"$f":"IF(OR(Selection_Hide2!I286=0, Selection_Hide2!I286=\"\"), \"\", Selection_Hide2!I286)","v":""},{"$f":"IF(OR(Selection_Hide2!J286=0, Selection_Hide2!J286=\"\"), \"\", Selection_Hide2!J286)","v":""},{"$f":"IF(OR(Selection_Hide2!K286=0, Selection_Hide2!K286=\"\"), \"\", Selection_Hide2!K286)","v":""},{"$f":"IF(OR(Selection_Hide2!L286=0, Selection_Hide2!L286=\"\"), \"\", Selection_Hide2!L286)","v":""},{"$f":"IF(OR(Selection_Hide2!M286=0, Selection_Hide2!M286=\"\"), \"\", Selection_Hide2!M286)","v":""},{"$f":"IF(OR(Selection_Hide2!N286=0, Selection_Hide2!N286=\"\"), \"\", Selection_Hide2!N286)","v":""},{"$f":"IF(OR(Selection_Hide2!O286=0, Selection_Hide2!O286=\"\"), \"\", Selection_Hide2!O286)","v":""},{"$f":"IF(OR(Selection_Hide2!P286=0, Selection_Hide2!P286=\"\"), \"\", Selection_Hide2!P286)","v":""},{"$f":"IF(OR(Selection_Hide2!Q286=0, Selection_Hide2!Q286=\"\"), \"\", Selection_Hide2!Q286)","v":""},{"$f":"IF(OR(Selection_Hide2!R286=0, Selection_Hide2!R286=\"\"), \"\", Selection_Hide2!R286)","v":""},{"$f":"IF(OR(Selection_Hide2!S286=0, Selection_Hide2!S286=\"\"), \"\", Selection_Hide2!S286)","v":""},{"$f":"IF(OR(Selection_Hide2!T286=0, Selection_Hide2!T286=\"\"), \"\", Selection_Hide2!T286)","v":""},{"$f":"IF(OR(Selection_Hide2!U286=0, Selection_Hide2!U286=\"\"), \"\", Selection_Hide2!U286)","v":""},{"$f":"IF(OR(Selection_Hide2!V286=0, Selection_Hide2!V286=\"\"), \"\", Selection_Hide2!V286)","v":""},{"$f":"IF(OR(Selection_Hide2!W286=0, Selection_Hide2!W286=\"\"), \"\", Selection_Hide2!W286)","v":""},{"$f":"IF(OR(Selection_Hide2!X286=0, Selection_Hide2!X286=\"\"), \"\", Selection_Hide2!X286)","v":""},{"$f":"IF(OR(Selection_Hide2!Y286=0, Selection_Hide2!Y286=\"\"), \"\", Selection_Hide2!Y286)","v":""},{"$f":"IF(OR(Selection_Hide2!Z286=0, Selection_Hide2!Z286=\"\"), \"\", Selection_Hide2!Z286)","v":""},{"$f":"IF(OR(Selection_Hide2!AA286=0, Selection_Hide2!AA286=\"\"), \"\", Selection_Hide2!AA286)","v":""},{"$f":"IF(OR(Selection_Hide2!AB286=0, Selection_Hide2!AB286=\"\"), \"\", Selection_Hide2!AB286)","v":""}]
[{"$f":"IF(OR(Selection_Hide2!A287=0, Selection_Hide2!A287=\"\"), \"\", Selection_Hide2!A287)","v":""},{"$f":"IF(OR(Selection_Hide2!B287=0, Selection_Hide2!B287=\"\"), \"\", Selection_Hide2!B287)","v":""},{"$f":"IF(OR(Selection_Hide2!C287=0, Selection_Hide2!C287=\"\"), \"\", Selection_Hide2!C287)","v":""},{"$f":"IF(OR(Selection_Hide2!D287=0, Selection_Hide2!D287=\"\"), \"\", Selection_Hide2!D287)","v":""},{"$f":"IF(OR(Selection_Hide2!E287=0, Selection_Hide2!E287=\"\"), \"\", Selection_Hide2!E287)","v":""},{"$f":"IF(OR(Selection_Hide2!F287=0, Selection_Hide2!F287=\"\"), \"\", Selection_Hide2!F287)","v":""},{"$f":"IF(OR(Selection_Hide2!G287=0, Selection_Hide2!G287=\"\"), \"\", Selection_Hide2!G287)","v":""},{"$f":"IF(OR(Selection_Hide2!H287=0, Selection_Hide2!H287=\"\"), \"\", Selection_Hide2!H287)","v":""},{"$f":"IF(OR(Selection_Hide2!I287=0, Selection_Hide2!I287=\"\"), \"\", Selection_Hide2!I287)","v":""},{"$f":"IF(OR(Selection_Hide2!J287=0, Selection_Hide2!J287=\"\"), \"\", Selection_Hide2!J287)","v":""},{"$f":"IF(OR(Selection_Hide2!K287=0, Selection_Hide2!K287=\"\"), \"\", Selection_Hide2!K287)","v":""},{"$f":"IF(OR(Selection_Hide2!L287=0, Selection_Hide2!L287=\"\"), \"\", Selection_Hide2!L287)","v":""},{"$f":"IF(OR(Selection_Hide2!M287=0, Selection_Hide2!M287=\"\"), \"\", Selection_Hide2!M287)","v":""},{"$f":"IF(OR(Selection_Hide2!N287=0, Selection_Hide2!N287=\"\"), \"\", Selection_Hide2!N287)","v":""},{"$f":"IF(OR(Selection_Hide2!O287=0, Selection_Hide2!O287=\"\"), \"\", Selection_Hide2!O287)","v":""},{"$f":"IF(OR(Selection_Hide2!P287=0, Selection_Hide2!P287=\"\"), \"\", Selection_Hide2!P287)","v":""},{"$f":"IF(OR(Selection_Hide2!Q287=0, Selection_Hide2!Q287=\"\"), \"\", Selection_Hide2!Q287)","v":""},{"$f":"IF(OR(Selection_Hide2!R287=0, Selection_Hide2!R287=\"\"), \"\", Selection_Hide2!R287)","v":""},{"$f":"IF(OR(Selection_Hide2!S287=0, Selection_Hide2!S287=\"\"), \"\", Selection_Hide2!S287)","v":""},{"$f":"IF(OR(Selection_Hide2!T287=0, Selection_Hide2!T287=\"\"), \"\", Selection_Hide2!T287)","v":""},{"$f":"IF(OR(Selection_Hide2!U287=0, Selection_Hide2!U287=\"\"), \"\", Selection_Hide2!U287)","v":""},{"$f":"IF(OR(Selection_Hide2!V287=0, Selection_Hide2!V287=\"\"), \"\", Selection_Hide2!V287)","v":""},{"$f":"IF(OR(Selection_Hide2!W287=0, Selection_Hide2!W287=\"\"), \"\", Selection_Hide2!W287)","v":""},{"$f":"IF(OR(Selection_Hide2!X287=0, Selection_Hide2!X287=\"\"), \"\", Selection_Hide2!X287)","v":""},{"$f":"IF(OR(Selection_Hide2!Y287=0, Selection_Hide2!Y287=\"\"), \"\", Selection_Hide2!Y287)","v":""},{"$f":"IF(OR(Selection_Hide2!Z287=0, Selection_Hide2!Z287=\"\"), \"\", Selection_Hide2!Z287)","v":""},{"$f":"IF(OR(Selection_Hide2!AA287=0, Selection_Hide2!AA287=\"\"), \"\", Selection_Hide2!AA287)","v":""},{"$f":"IF(OR(Selection_Hide2!AB287=0, Selection_Hide2!AB287=\"\"), \"\", Selection_Hide2!AB287)","v":""}]
[{"$f":"IF(OR(Selection_Hide2!A288=0, Selection_Hide2!A288=\"\"), \"\", Selection_Hide2!A288)","v":""},{"$f":"IF(OR(Selection_Hide2!B288=0, Selection_Hide2!B288=\"\"), \"\", Selection_Hide2!B288)","v":""},{"$f":"IF(OR(Selection_Hide2!C288=0, Selection_Hide2!C288=\"\"), \"\", Selection_Hide2!C288)","v":""},{"$f":"IF(OR(Selection_Hide2!D288=0, Selection_Hide2!D288=\"\"), \"\", Selection_Hide2!D288)","v":""},{"$f":"IF(OR(Selection_Hide2!E288=0, Selection_Hide2!E288=\"\"), \"\", Selection_Hide2!E288)","v":""},{"$f":"IF(OR(Selection_Hide2!F288=0, Selection_Hide2!F288=\"\"), \"\", Selection_Hide2!F288)","v":""},{"$f":"IF(OR(Selection_Hide2!G288=0, Selection_Hide2!G288=\"\"), \"\", Selection_Hide2!G288)","v":""},{"$f":"IF(OR(Selection_Hide2!H288=0, Selection_Hide2!H288=\"\"), \"\", Selection_Hide2!H288)","v":""},{"$f":"IF(OR(Selection_Hide2!I288=0, Selection_Hide2!I288=\"\"), \"\", Selection_Hide2!I288)","v":""},{"$f":"IF(OR(Selection_Hide2!J288=0, Selection_Hide2!J288=\"\"), \"\", Selection_Hide2!J288)","v":""},{"$f":"IF(OR(Selection_Hide2!K288=0, Selection_Hide2!K288=\"\"), \"\", Selection_Hide2!K288)","v":""},{"$f":"IF(OR(Selection_Hide2!L288=0, Selection_Hide2!L288=\"\"), \"\", Selection_Hide2!L288)","v":""},{"$f":"IF(OR(Selection_Hide2!M288=0, Selection_Hide2!M288=\"\"), \"\", Selection_Hide2!M288)","v":""},{"$f":"IF(OR(Selection_Hide2!N288=0, Selection_Hide2!N288=\"\"), \"\", Selection_Hide2!N288)","v":""},{"$f":"IF(OR(Selection_Hide2!O288=0, Selection_Hide2!O288=\"\"), \"\", Selection_Hide2!O288)","v":""},{"$f":"IF(OR(Selection_Hide2!P288=0, Selection_Hide2!P288=\"\"), \"\", Selection_Hide2!P288)","v":""},{"$f":"IF(OR(Selection_Hide2!Q288=0, Selection_Hide2!Q288=\"\"), \"\", Selection_Hide2!Q288)","v":""},{"$f":"IF(OR(Selection_Hide2!R288=0, Selection_Hide2!R288=\"\"), \"\", Selection_Hide2!R288)","v":""},{"$f":"IF(OR(Selection_Hide2!S288=0, Selection_Hide2!S288=\"\"), \"\", Selection_Hide2!S288)","v":""},{"$f":"IF(OR(Selection_Hide2!T288=0, Selection_Hide2!T288=\"\"), \"\", Selection_Hide2!T288)","v":""},{"$f":"IF(OR(Selection_Hide2!U288=0, Selection_Hide2!U288=\"\"), \"\", Selection_Hide2!U288)","v":""},{"$f":"IF(OR(Selection_Hide2!V288=0, Selection_Hide2!V288=\"\"), \"\", Selection_Hide2!V288)","v":""},{"$f":"IF(OR(Selection_Hide2!W288=0, Selection_Hide2!W288=\"\"), \"\", Selection_Hide2!W288)","v":""},{"$f":"IF(OR(Selection_Hide2!X288=0, Selection_Hide2!X288=\"\"), \"\", Selection_Hide2!X288)","v":""},{"$f":"IF(OR(Selection_Hide2!Y288=0, Selection_Hide2!Y288=\"\"), \"\", Selection_Hide2!Y288)","v":""},{"$f":"IF(OR(Selection_Hide2!Z288=0, Selection_Hide2!Z288=\"\"), \"\", Selection_Hide2!Z288)","v":""},{"$f":"IF(OR(Selection_Hide2!AA288=0, Selection_Hide2!AA288=\"\"), \"\", Selection_Hide2!AA288)","v":""},{"$f":"IF(OR(Selection_Hide2!AB288=0, Selection_Hide2!AB288=\"\"), \"\", Selection_Hide2!AB288)","v":""}]
[{"$f":"IF(OR(Selection_Hide2!A289=0, Selection_Hide2!A289=\"\"), \"\", Selection_Hide2!A289)","v":""},{"$f":"IF(OR(Selection_Hide2!B289=0, Selection_Hide2!B289=\"\"), \"\", Selection_Hide2!B289)","v":""},{"$f":"IF(OR(Selection_Hide2!C289=0, Selection_Hide2!C289=\"\"), \"\", Selection_Hide2!C289)","v":""},{"$f":"IF(OR(Selection_Hide2!D289=0, Selection_Hide2!D289=\"\"), \"\", Selection_Hide2!D289)","v":""},{"$f":"IF(OR(Selection_Hide2!E289=0, Selection_Hide2!E289=\"\"), \"\", Selection_Hide2!E289)","v":""},{"$f":"IF(OR(Selection_Hide2!F289=0, Selection_Hide2!F289=\"\"), \"\", Selection_Hide2!F289)","v":""},{"$f":"IF(OR(Selection_Hide2!G289=0, Selection_Hide2!G289=\"\"), \"\", Selection_Hide2!G289)","v":""},{"$f":"IF(OR(Selection_Hide2!H289=0, Selection_Hide2!H289=\"\"), \"\", Selection_Hide2!H289)","v":""},{"$f":"IF(OR(Selection_Hide2!I289=0, Selection_Hide2!I289=\"\"), \"\", Selection_Hide2!I289)","v":""},{"$f":"IF(OR(Selection_Hide2!J289=0, Selection_Hide2!J289=\"\"), \"\", Selection_Hide2!J289)","v":""},{"$f":"IF(OR(Selection_Hide2!K289=0, Selection_Hide2!K289=\"\"), \"\", Selection_Hide2!K289)","v":""},{"$f":"IF(OR(Selection_Hide2!L289=0, Selection_Hide2!L289=\"\"), \"\", Selection_Hide2!L289)","v":""},{"$f":"IF(OR(Selection_Hide2!M289=0, Selection_Hide2!M289=\"\"), \"\", Selection_Hide2!M289)","v":""},{"$f":"IF(OR(Selection_Hide2!N289=0, Selection_Hide2!N289=\"\"), \"\", Selection_Hide2!N289)","v":""},{"$f":"IF(OR(Selection_Hide2!O289=0, Selection_Hide2!O289=\"\"), \"\", Selection_Hide2!O289)","v":""},{"$f":"IF(OR(Selection_Hide2!P289=0, Selection_Hide2!P289=\"\"), \"\", Selection_Hide2!P289)","v":""},{"$f":"IF(OR(Selection_Hide2!Q289=0, Selection_Hide2!Q289=\"\"), \"\", Selection_Hide2!Q289)","v":""},{"$f":"IF(OR(Selection_Hide2!R289=0, Selection_Hide2!R289=\"\"), \"\", Selection_Hide2!R289)","v":""},{"$f":"IF(OR(Selection_Hide2!S289=0, Selection_Hide2!S289=\"\"), \"\", Selection_Hide2!S289)","v":""},{"$f":"IF(OR(Selection_Hide2!T289=0, Selection_Hide2!T289=\"\"), \"\", Selection_Hide2!T289)","v":""},{"$f":"IF(OR(Selection_Hide2!U289=0, Selection_Hide2!U289=\"\"), \"\", Selection_Hide2!U289)","v":""},{"$f":"IF(OR(Selection_Hide2!V289=0, Selection_Hide2!V289=\"\"), \"\", Selection_Hide2!V289)","v":""},{"$f":"IF(OR(Selection_Hide2!W289=0, Selection_Hide2!W289=\"\"), \"\", Selection_Hide2!W289)","v":""},{"$f":"IF(OR(Selection_Hide2!X289=0, Selection_Hide2!X289=\"\"), \"\", Selection_Hide2!X289)","v":""},{"$f":"IF(OR(Selection_Hide2!Y289=0, Selection_Hide2!Y289=\"\"), \"\", Selection_Hide2!Y289)","v":""},{"$f":"IF(OR(Selection_Hide2!Z289=0, Selection_Hide2!Z289=\"\"), \"\", Selection_Hide2!Z289)","v":""},{"$f":"IF(OR(Selection_Hide2!AA289=0, Selection_Hide2!AA289=\"\"), \"\", Selection_Hide2!AA289)","v":""},{"$f":"IF(OR(Selection_Hide2!AB289=0, Selection_Hide2!AB289=\"\"), \"\", Selection_Hide2!AB289)","v":""}]
[{"$f":"IF(OR(Selection_Hide2!A290=0, Selection_Hide2!A290=\"\"), \"\", Selection_Hide2!A290)","v":""},{"$f":"IF(OR(Selection_Hide2!B290=0, Selection_Hide2!B290=\"\"), \"\", Selection_Hide2!B290)","v":""},{"$f":"IF(OR(Selection_Hide2!C290=0, Selection_Hide2!C290=\"\"), \"\", Selection_Hide2!C290)","v":""},{"$f":"IF(OR(Selection_Hide2!D290=0, Selection_Hide2!D290=\"\"), \"\", Selection_Hide2!D290)","v":""},{"$f":"IF(OR(Selection_Hide2!E290=0, Selection_Hide2!E290=\"\"), \"\", Selection_Hide2!E290)","v":""},{"$f":"IF(OR(Selection_Hide2!F290=0, Selection_Hide2!F290=\"\"), \"\", Selection_Hide2!F290)","v":""},{"$f":"IF(OR(Selection_Hide2!G290=0, Selection_Hide2!G290=\"\"), \"\", Selection_Hide2!G290)","v":""},{"$f":"IF(OR(Selection_Hide2!H290=0, Selection_Hide2!H290=\"\"), \"\", Selection_Hide2!H290)","v":""},{"$f":"IF(OR(Selection_Hide2!I290=0, Selection_Hide2!I290=\"\"), \"\", Selection_Hide2!I290)","v":""},{"$f":"IF(OR(Selection_Hide2!J290=0, Selection_Hide2!J290=\"\"), \"\", Selection_Hide2!J290)","v":""},{"$f":"IF(OR(Selection_Hide2!K290=0, Selection_Hide2!K290=\"\"), \"\", Selection_Hide2!K290)","v":""},{"$f":"IF(OR(Selection_Hide2!L290=0, Selection_Hide2!L290=\"\"), \"\", Selection_Hide2!L290)","v":""},{"$f":"IF(OR(Selection_Hide2!M290=0, Selection_Hide2!M290=\"\"), \"\", Selection_Hide2!M290)","v":""},{"$f":"IF(OR(Selection_Hide2!N290=0, Selection_Hide2!N290=\"\"), \"\", Selection_Hide2!N290)","v":""},{"$f":"IF(OR(Selection_Hide2!O290=0, Selection_Hide2!O290=\"\"), \"\", Selection_Hide2!O290)","v":""},{"$f":"IF(OR(Selection_Hide2!P290=0, Selection_Hide2!P290=\"\"), \"\", Selection_Hide2!P290)","v":""},{"$f":"IF(OR(Selection_Hide2!Q290=0, Selection_Hide2!Q290=\"\"), \"\", Selection_Hide2!Q290)","v":""},{"$f":"IF(OR(Selection_Hide2!R290=0, Selection_Hide2!R290=\"\"), \"\", Selection_Hide2!R290)","v":""},{"$f":"IF(OR(Selection_Hide2!S290=0, Selection_Hide2!S290=\"\"), \"\", Selection_Hide2!S290)","v":""},{"$f":"IF(OR(Selection_Hide2!T290=0, Selection_Hide2!T290=\"\"), \"\", Selection_Hide2!T290)","v":""},{"$f":"IF(OR(Selection_Hide2!U290=0, Selection_Hide2!U290=\"\"), \"\", Selection_Hide2!U290)","v":""},{"$f":"IF(OR(Selection_Hide2!V290=0, Selection_Hide2!V290=\"\"), \"\", Selection_Hide2!V290)","v":""},{"$f":"IF(OR(Selection_Hide2!W290=0, Selection_Hide2!W290=\"\"), \"\", Selection_Hide2!W290)","v":""},{"$f":"IF(OR(Selection_Hide2!X290=0, Selection_Hide2!X290=\"\"), \"\", Selection_Hide2!X290)","v":""},{"$f":"IF(OR(Selection_Hide2!Y290=0, Selection_Hide2!Y290=\"\"), \"\", Selection_Hide2!Y290)","v":""},{"$f":"IF(OR(Selection_Hide2!Z290=0, Selection_Hide2!Z290=\"\"), \"\", Selection_Hide2!Z290)","v":""},{"$f":"IF(OR(Selection_Hide2!AA290=0, Selection_Hide2!AA290=\"\"), \"\", Selection_Hide2!AA290)","v":""},{"$f":"IF(OR(Selection_Hide2!AB290=0, Selection_Hide2!AB290=\"\"), \"\", Selection_Hide2!AB290)","v":""}]
[{"$f":"IF(OR(Selection_Hide2!A291=0, Selection_Hide2!A291=\"\"), \"\", Selection_Hide2!A291)","v":""},{"$f":"IF(OR(Selection_Hide2!B291=0, Selection_Hide2!B291=\"\"), \"\", Selection_Hide2!B291)","v":""},{"$f":"IF(OR(Selection_Hide2!C291=0, Selection_Hide2!C291=\"\"), \"\", Selection_Hide2!C291)","v":""},{"$f":"IF(OR(Selection_Hide2!D291=0, Selection_Hide2!D291=\"\"), \"\", Selection_Hide2!D291)","v":""},{"$f":"IF(OR(Selection_Hide2!E291=0, Selection_Hide2!E291=\"\"), \"\", Selection_Hide2!E291)","v":""},{"$f":"IF(OR(Selection_Hide2!F291=0, Selection_Hide2!F291=\"\"), \"\", Selection_Hide2!F291)","v":""},{"$f":"IF(OR(Selection_Hide2!G291=0, Selection_Hide2!G291=\"\"), \"\", Selection_Hide2!G291)","v":""},{"$f":"IF(OR(Selection_Hide2!H291=0, Selection_Hide2!H291=\"\"), \"\", Selection_Hide2!H291)","v":""},{"$f":"IF(OR(Selection_Hide2!I291=0, Selection_Hide2!I291=\"\"), \"\", Selection_Hide2!I291)","v":""},{"$f":"IF(OR(Selection_Hide2!J291=0, Selection_Hide2!J291=\"\"), \"\", Selection_Hide2!J291)","v":""},{"$f":"IF(OR(Selection_Hide2!K291=0, Selection_Hide2!K291=\"\"), \"\", Selection_Hide2!K291)","v":""},{"$f":"IF(OR(Selection_Hide2!L291=0, Selection_Hide2!L291=\"\"), \"\", Selection_Hide2!L291)","v":""},{"$f":"IF(OR(Selection_Hide2!M291=0, Selection_Hide2!M291=\"\"), \"\", Selection_Hide2!M291)","v":""},{"$f":"IF(OR(Selection_Hide2!N291=0, Selection_Hide2!N291=\"\"), \"\", Selection_Hide2!N291)","v":""},{"$f":"IF(OR(Selection_Hide2!O291=0, Selection_Hide2!O291=\"\"), \"\", Selection_Hide2!O291)","v":""},{"$f":"IF(OR(Selection_Hide2!P291=0, Selection_Hide2!P291=\"\"), \"\", Selection_Hide2!P291)","v":""},{"$f":"IF(OR(Selection_Hide2!Q291=0, Selection_Hide2!Q291=\"\"), \"\", Selection_Hide2!Q291)","v":""},{"$f":"IF(OR(Selection_Hide2!R291=0, Selection_Hide2!R291=\"\"), \"\", Selection_Hide2!R291)","v":""},{"$f":"IF(OR(Selection_Hide2!S291=0, Selection_Hide2!S291=\"\"), \"\", Selection_Hide2!S291)","v":""},{"$f":"IF(OR(Selection_Hide2!T291=0, Selection_Hide2!T291=\"\"), \"\", Selection_Hide2!T291)","v":""},{"$f":"IF(OR(Selection_Hide2!U291=0, Selection_Hide2!U291=\"\"), \"\", Selection_Hide2!U291)","v":""},{"$f":"IF(OR(Selection_Hide2!V291=0, Selection_Hide2!V291=\"\"), \"\", Selection_Hide2!V291)","v":""},{"$f":"IF(OR(Selection_Hide2!W291=0, Selection_Hide2!W291=\"\"), \"\", Selection_Hide2!W291)","v":""},{"$f":"IF(OR(Selection_Hide2!X291=0, Selection_Hide2!X291=\"\"), \"\", Selection_Hide2!X291)","v":""},{"$f":"IF(OR(Selection_Hide2!Y291=0, Selection_Hide2!Y291=\"\"), \"\", Selection_Hide2!Y291)","v":""},{"$f":"IF(OR(Selection_Hide2!Z291=0, Selection_Hide2!Z291=\"\"), \"\", Selection_Hide2!Z291)","v":""},{"$f":"IF(OR(Selection_Hide2!AA291=0, Selection_Hide2!AA291=\"\"), \"\", Selection_Hide2!AA291)","v":""},{"$f":"IF(OR(Selection_Hide2!AB291=0, Selection_Hide2!AB291=\"\"), \"\", Selection_Hide2!AB291)","v":""}]
[{"$f":"IF(OR(Selection_Hide2!A292=0, Selection_Hide2!A292=\"\"), \"\", Selection_Hide2!A292)","v":""},{"$f":"IF(OR(Selection_Hide2!B292=0, Selection_Hide2!B292=\"\"), \"\", Selection_Hide2!B292)","v":""},{"$f":"IF(OR(Selection_Hide2!C292=0, Selection_Hide2!C292=\"\"), \"\", Selection_Hide2!C292)","v":""},{"$f":"IF(OR(Selection_Hide2!D292=0, Selection_Hide2!D292=\"\"), \"\", Selection_Hide2!D292)","v":""},{"$f":"IF(OR(Selection_Hide2!E292=0, Selection_Hide2!E292=\"\"), \"\", Selection_Hide2!E292)","v":""},{"$f":"IF(OR(Selection_Hide2!F292=0, Selection_Hide2!F292=\"\"), \"\", Selection_Hide2!F292)","v":""},{"$f":"IF(OR(Selection_Hide2!G292=0, Selection_Hide2!G292=\"\"), \"\", Selection_Hide2!G292)","v":""},{"$f":"IF(OR(Selection_Hide2!H292=0, Selection_Hide2!H292=\"\"), \"\", Selection_Hide2!H292)","v":""},{"$f":"IF(OR(Selection_Hide2!I292=0, Selection_Hide2!I292=\"\"), \"\", Selection_Hide2!I292)","v":""},{"$f":"IF(OR(Selection_Hide2!J292=0, Selection_Hide2!J292=\"\"), \"\", Selection_Hide2!J292)","v":""},{"$f":"IF(OR(Selection_Hide2!K292=0, Selection_Hide2!K292=\"\"), \"\", Selection_Hide2!K292)","v":""},{"$f":"IF(OR(Selection_Hide2!L292=0, Selection_Hide2!L292=\"\"), \"\", Selection_Hide2!L292)","v":""},{"$f":"IF(OR(Selection_Hide2!M292=0, Selection_Hide2!M292=\"\"), \"\", Selection_Hide2!M292)","v":""},{"$f":"IF(OR(Selection_Hide2!N292=0, Selection_Hide2!N292=\"\"), \"\", Selection_Hide2!N292)","v":""},{"$f":"IF(OR(Selection_Hide2!O292=0, Selection_Hide2!O292=\"\"), \"\", Selection_Hide2!O292)","v":""},{"$f":"IF(OR(Selection_Hide2!P292=0, Selection_Hide2!P292=\"\"), \"\", Selection_Hide2!P292)","v":""},{"$f":"IF(OR(Selection_Hide2!Q292=0, Selection_Hide2!Q292=\"\"), \"\", Selection_Hide2!Q292)","v":""},{"$f":"IF(OR(Selection_Hide2!R292=0, Selection_Hide2!R292=\"\"), \"\", Selection_Hide2!R292)","v":""},{"$f":"IF(OR(Selection_Hide2!S292=0, Selection_Hide2!S292=\"\"), \"\", Selection_Hide2!S292)","v":""},{"$f":"IF(OR(Selection_Hide2!T292=0, Selection_Hide2!T292=\"\"), \"\", Selection_Hide2!T292)","v":""},{"$f":"IF(OR(Selection_Hide2!U292=0, Selection_Hide2!U292=\"\"), \"\", Selection_Hide2!U292)","v":""},{"$f":"IF(OR(Selection_Hide2!V292=0, Selection_Hide2!V292=\"\"), \"\", Selection_Hide2!V292)","v":""},{"$f":"IF(OR(Selection_Hide2!W292=0, Selection_Hide2!W292=\"\"), \"\", Selection_Hide2!W292)","v":""},{"$f":"IF(OR(Selection_Hide2!X292=0, Selection_Hide2!X292=\"\"), \"\", Selection_Hide2!X292)","v":""},{"$f":"IF(OR(Selection_Hide2!Y292=0, Selection_Hide2!Y292=\"\"), \"\", Selection_Hide2!Y292)","v":""},{"$f":"IF(OR(Selection_Hide2!Z292=0, Selection_Hide2!Z292=\"\"), \"\", Selection_Hide2!Z292)","v":""},{"$f":"IF(OR(Selection_Hide2!AA292=0, Selection_Hide2!AA292=\"\"), \"\", Selection_Hide2!AA292)","v":""},{"$f":"IF(OR(Selection_Hide2!AB292=0, Selection_Hide2!AB292=\"\"), \"\", Selection_Hide2!AB292)","v":""}]
[{"$f":"IF(OR(Selection_Hide2!A293=0, Selection_Hide2!A293=\"\"), \"\", Selection_Hide2!A293)","v":""},{"$f":"IF(OR(Selection_Hide2!B293=0, Selection_Hide2!B293=\"\"), \"\", Selection_Hide2!B293)","v":""},{"$f":"IF(OR(Selection_Hide2!C293=0, Selection_Hide2!C293=\"\"), \"\", Selection_Hide2!C293)","v":""},{"$f":"IF(OR(Selection_Hide2!D293=0, Selection_Hide2!D293=\"\"), \"\", Selection_Hide2!D293)","v":""},{"$f":"IF(OR(Selection_Hide2!E293=0, Selection_Hide2!E293=\"\"), \"\", Selection_Hide2!E293)","v":""},{"$f":"IF(OR(Selection_Hide2!F293=0, Selection_Hide2!F293=\"\"), \"\", Selection_Hide2!F293)","v":""},{"$f":"IF(OR(Selection_Hide2!G293=0, Selection_Hide2!G293=\"\"), \"\", Selection_Hide2!G293)","v":""},{"$f":"IF(OR(Selection_Hide2!H293=0, Selection_Hide2!H293=\"\"), \"\", Selection_Hide2!H293)","v":""},{"$f":"IF(OR(Selection_Hide2!I293=0, Selection_Hide2!I293=\"\"), \"\", Selection_Hide2!I293)","v":""},{"$f":"IF(OR(Selection_Hide2!J293=0, Selection_Hide2!J293=\"\"), \"\", Selection_Hide2!J293)","v":""},{"$f":"IF(OR(Selection_Hide2!K293=0, Selection_Hide2!K293=\"\"), \"\", Selection_Hide2!K293)","v":""},{"$f":"IF(OR(Selection_Hide2!L293=0, Selection_Hide2!L293=\"\"), \"\", Selection_Hide2!L293)","v":""},{"$f":"IF(OR(Selection_Hide2!M293=0, Selection_Hide2!M293=\"\"), \"\", Selection_Hide2!M293)","v":""},{"$f":"IF(OR(Selection_Hide2!N293=0, Selection_Hide2!N293=\"\"), \"\", Selection_Hide2!N293)","v":""},{"$f":"IF(OR(Selection_Hide2!O293=0, Selection_Hide2!O293=\"\"), \"\", Selection_Hide2!O293)","v":""},{"$f":"IF(OR(Selection_Hide2!P293=0, Selection_Hide2!P293=\"\"), \"\", Selection_Hide2!P293)","v":""},{"$f":"IF(OR(Selection_Hide2!Q293=0, Selection_Hide2!Q293=\"\"), \"\", Selection_Hide2!Q293)","v":""},{"$f":"IF(OR(Selection_Hide2!R293=0, Selection_Hide2!R293=\"\"), \"\", Selection_Hide2!R293)","v":""},{"$f":"IF(OR(Selection_Hide2!S293=0, Selection_Hide2!S293=\"\"), \"\", Selection_Hide2!S293)","v":""},{"$f":"IF(OR(Selection_Hide2!T293=0, Selection_Hide2!T293=\"\"), \"\", Selection_Hide2!T293)","v":""},{"$f":"IF(OR(Selection_Hide2!U293=0, Selection_Hide2!U293=\"\"), \"\", Selection_Hide2!U293)","v":""},{"$f":"IF(OR(Selection_Hide2!V293=0, Selection_Hide2!V293=\"\"), \"\", Selection_Hide2!V293)","v":""},{"$f":"IF(OR(Selection_Hide2!W293=0, Selection_Hide2!W293=\"\"), \"\", Selection_Hide2!W293)","v":""},{"$f":"IF(OR(Selection_Hide2!X293=0, Selection_Hide2!X293=\"\"), \"\", Selection_Hide2!X293)","v":""},{"$f":"IF(OR(Selection_Hide2!Y293=0, Selection_Hide2!Y293=\"\"), \"\", Selection_Hide2!Y293)","v":""},{"$f":"IF(OR(Selection_Hide2!Z293=0, Selection_Hide2!Z293=\"\"), \"\", Selection_Hide2!Z293)","v":""},{"$f":"IF(OR(Selection_Hide2!AA293=0, Selection_Hide2!AA293=\"\"), \"\", Selection_Hide2!AA293)","v":""},{"$f":"IF(OR(Selection_Hide2!AB293=0, Selection_Hide2!AB293=\"\"), \"\", Selection_Hide2!AB293)","v":""}]
[{"$f":"IF(OR(Selection_Hide2!A294=0, Selection_Hide2!A294=\"\"), \"\", Selection_Hide2!A294)","v":""},{"$f":"IF(OR(Selection_Hide2!B294=0, Selection_Hide2!B294=\"\"), \"\", Selection_Hide2!B294)","v":""},{"$f":"IF(OR(Selection_Hide2!C294=0, Selection_Hide2!C294=\"\"), \"\", Selection_Hide2!C294)","v":""},{"$f":"IF(OR(Selection_Hide2!D294=0, Selection_Hide2!D294=\"\"), \"\", Selection_Hide2!D294)","v":""},{"$f":"IF(OR(Selection_Hide2!E294=0, Selection_Hide2!E294=\"\"), \"\", Selection_Hide2!E294)","v":""},{"$f":"IF(OR(Selection_Hide2!F294=0, Selection_Hide2!F294=\"\"), \"\", Selection_Hide2!F294)","v":""},{"$f":"IF(OR(Selection_Hide2!G294=0, Selection_Hide2!G294=\"\"), \"\", Selection_Hide2!G294)","v":""},{"$f":"IF(OR(Selection_Hide2!H294=0, Selection_Hide2!H294=\"\"), \"\", Selection_Hide2!H294)","v":""},{"$f":"IF(OR(Selection_Hide2!I294=0, Selection_Hide2!I294=\"\"), \"\", Selection_Hide2!I294)","v":""},{"$f":"IF(OR(Selection_Hide2!J294=0, Selection_Hide2!J294=\"\"), \"\", Selection_Hide2!J294)","v":""},{"$f":"IF(OR(Selection_Hide2!K294=0, Selection_Hide2!K294=\"\"), \"\", Selection_Hide2!K294)","v":""},{"$f":"IF(OR(Selection_Hide2!L294=0, Selection_Hide2!L294=\"\"), \"\", Selection_Hide2!L294)","v":""},{"$f":"IF(OR(Selection_Hide2!M294=0, Selection_Hide2!M294=\"\"), \"\", Selection_Hide2!M294)","v":""},{"$f":"IF(OR(Selection_Hide2!N294=0, Selection_Hide2!N294=\"\"), \"\", Selection_Hide2!N294)","v":""},{"$f":"IF(OR(Selection_Hide2!O294=0, Selection_Hide2!O294=\"\"), \"\", Selection_Hide2!O294)","v":""},{"$f":"IF(OR(Selection_Hide2!P294=0, Selection_Hide2!P294=\"\"), \"\", Selection_Hide2!P294)","v":""},{"$f":"IF(OR(Selection_Hide2!Q294=0, Selection_Hide2!Q294=\"\"), \"\", Selection_Hide2!Q294)","v":""},{"$f":"IF(OR(Selection_Hide2!R294=0, Selection_Hide2!R294=\"\"), \"\", Selection_Hide2!R294)","v":""},{"$f":"IF(OR(Selection_Hide2!S294=0, Selection_Hide2!S294=\"\"), \"\", Selection_Hide2!S294)","v":""},{"$f":"IF(OR(Selection_Hide2!T294=0, Selection_Hide2!T294=\"\"), \"\", Selection_Hide2!T294)","v":""},{"$f":"IF(OR(Selection_Hide2!U294=0, Selection_Hide2!U294=\"\"), \"\", Selection_Hide2!U294)","v":""},{"$f":"IF(OR(Selection_Hide2!V294=0, Selection_Hide2!V294=\"\"), \"\", Selection_Hide2!V294)","v":""},{"$f":"IF(OR(Selection_Hide2!W294=0, Selection_Hide2!W294=\"\"), \"\", Selection_Hide2!W294)","v":""},{"$f":"IF(OR(Selection_Hide2!X294=0, Selection_Hide2!X294=\"\"), \"\", Selection_Hide2!X294)","v":""},{"$f":"IF(OR(Selection_Hide2!Y294=0, Selection_Hide2!Y294=\"\"), \"\", Selection_Hide2!Y294)","v":""},{"$f":"IF(OR(Selection_Hide2!Z294=0, Selection_Hide2!Z294=\"\"), \"\", Selection_Hide2!Z294)","v":""},{"$f":"IF(OR(Selection_Hide2!AA294=0, Selection_Hide2!AA294=\"\"), \"\", Selection_Hide2!AA294)","v":""},{"$f":"IF(OR(Selection_Hide2!AB294=0, Selection_Hide2!AB294=\"\"), \"\", Selection_Hide2!AB294)","v":""}]
[{"$f":"IF(OR(Selection_Hide2!A295=0, Selection_Hide2!A295=\"\"), \"\", Selection_Hide2!A295)","v":""},{"$f":"IF(OR(Selection_Hide2!B295=0, Selection_Hide2!B295=\"\"), \"\", Selection_Hide2!B295)","v":""},{"$f":"IF(OR(Selection_Hide2!C295=0, Selection_Hide2!C295=\"\"), \"\", Selection_Hide2!C295)","v":""},{"$f":"IF(OR(Selection_Hide2!D295=0, Selection_Hide2!D295=\"\"), \"\", Selection_Hide2!D295)","v":""},{"$f":"IF(OR(Selection_Hide2!E295=0, Selection_Hide2!E295=\"\"), \"\", Selection_Hide2!E295)","v":""},{"$f":"IF(OR(Selection_Hide2!F295=0, Selection_Hide2!F295=\"\"), \"\", Selection_Hide2!F295)","v":""},{"$f":"IF(OR(Selection_Hide2!G295=0, Selection_Hide2!G295=\"\"), \"\", Selection_Hide2!G295)","v":""},{"$f":"IF(OR(Selection_Hide2!H295=0, Selection_Hide2!H295=\"\"), \"\", Selection_Hide2!H295)","v":""},{"$f":"IF(OR(Selection_Hide2!I295=0, Selection_Hide2!I295=\"\"), \"\", Selection_Hide2!I295)","v":""},{"$f":"IF(OR(Selection_Hide2!J295=0, Selection_Hide2!J295=\"\"), \"\", Selection_Hide2!J295)","v":""},{"$f":"IF(OR(Selection_Hide2!K295=0, Selection_Hide2!K295=\"\"), \"\", Selection_Hide2!K295)","v":""},{"$f":"IF(OR(Selection_Hide2!L295=0, Selection_Hide2!L295=\"\"), \"\", Selection_Hide2!L295)","v":""},{"$f":"IF(OR(Selection_Hide2!M295=0, Selection_Hide2!M295=\"\"), \"\", Selection_Hide2!M295)","v":""},{"$f":"IF(OR(Selection_Hide2!N295=0, Selection_Hide2!N295=\"\"), \"\", Selection_Hide2!N295)","v":""},{"$f":"IF(OR(Selection_Hide2!O295=0, Selection_Hide2!O295=\"\"), \"\", Selection_Hide2!O295)","v":""},{"$f":"IF(OR(Selection_Hide2!P295=0, Selection_Hide2!P295=\"\"), \"\", Selection_Hide2!P295)","v":""},{"$f":"IF(OR(Selection_Hide2!Q295=0, Selection_Hide2!Q295=\"\"), \"\", Selection_Hide2!Q295)","v":""},{"$f":"IF(OR(Selection_Hide2!R295=0, Selection_Hide2!R295=\"\"), \"\", Selection_Hide2!R295)","v":""},{"$f":"IF(OR(Selection_Hide2!S295=0, Selection_Hide2!S295=\"\"), \"\", Selection_Hide2!S295)","v":""},{"$f":"IF(OR(Selection_Hide2!T295=0, Selection_Hide2!T295=\"\"), \"\", Selection_Hide2!T295)","v":""},{"$f":"IF(OR(Selection_Hide2!U295=0, Selection_Hide2!U295=\"\"), \"\", Selection_Hide2!U295)","v":""},{"$f":"IF(OR(Selection_Hide2!V295=0, Selection_Hide2!V295=\"\"), \"\", Selection_Hide2!V295)","v":""},{"$f":"IF(OR(Selection_Hide2!W295=0, Selection_Hide2!W295=\"\"), \"\", Selection_Hide2!W295)","v":""},{"$f":"IF(OR(Selection_Hide2!X295=0, Selection_Hide2!X295=\"\"), \"\", Selection_Hide2!X295)","v":""},{"$f":"IF(OR(Selection_Hide2!Y295=0, Selection_Hide2!Y295=\"\"), \"\", Selection_Hide2!Y295)","v":""},{"$f":"IF(OR(Selection_Hide2!Z295=0, Selection_Hide2!Z295=\"\"), \"\", Selection_Hide2!Z295)","v":""},{"$f":"IF(OR(Selection_Hide2!AA295=0, Selection_Hide2!AA295=\"\"), \"\", Selection_Hide2!AA295)","v":""},{"$f":"IF(OR(Selection_Hide2!AB295=0, Selection_Hide2!AB295=\"\"), \"\", Selection_Hide2!AB295)","v":""}]
[{"$f":"IF(OR(Selection_Hide2!A296=0, Selection_Hide2!A296=\"\"), \"\", Selection_Hide2!A296)","v":""},{"$f":"IF(OR(Selection_Hide2!B296=0, Selection_Hide2!B296=\"\"), \"\", Selection_Hide2!B296)","v":""},{"$f":"IF(OR(Selection_Hide2!C296=0, Selection_Hide2!C296=\"\"), \"\", Selection_Hide2!C296)","v":""},{"$f":"IF(OR(Selection_Hide2!D296=0, Selection_Hide2!D296=\"\"), \"\", Selection_Hide2!D296)","v":""},{"$f":"IF(OR(Selection_Hide2!E296=0, Selection_Hide2!E296=\"\"), \"\", Selection_Hide2!E296)","v":""},{"$f":"IF(OR(Selection_Hide2!F296=0, Selection_Hide2!F296=\"\"), \"\", Selection_Hide2!F296)","v":""},{"$f":"IF(OR(Selection_Hide2!G296=0, Selection_Hide2!G296=\"\"), \"\", Selection_Hide2!G296)","v":""},{"$f":"IF(OR(Selection_Hide2!H296=0, Selection_Hide2!H296=\"\"), \"\", Selection_Hide2!H296)","v":""},{"$f":"IF(OR(Selection_Hide2!I296=0, Selection_Hide2!I296=\"\"), \"\", Selection_Hide2!I296)","v":""},{"$f":"IF(OR(Selection_Hide2!J296=0, Selection_Hide2!J296=\"\"), \"\", Selection_Hide2!J296)","v":""},{"$f":"IF(OR(Selection_Hide2!K296=0, Selection_Hide2!K296=\"\"), \"\", Selection_Hide2!K296)","v":""},{"$f":"IF(OR(Selection_Hide2!L296=0, Selection_Hide2!L296=\"\"), \"\", Selection_Hide2!L296)","v":""},{"$f":"IF(OR(Selection_Hide2!M296=0, Selection_Hide2!M296=\"\"), \"\", Selection_Hide2!M296)","v":""},{"$f":"IF(OR(Selection_Hide2!N296=0, Selection_Hide2!N296=\"\"), \"\", Selection_Hide2!N296)","v":""},{"$f":"IF(OR(Selection_Hide2!O296=0, Selection_Hide2!O296=\"\"), \"\", Selection_Hide2!O296)","v":""},{"$f":"IF(OR(Selection_Hide2!P296=0, Selection_Hide2!P296=\"\"), \"\", Selection_Hide2!P296)","v":""},{"$f":"IF(OR(Selection_Hide2!Q296=0, Selection_Hide2!Q296=\"\"), \"\", Selection_Hide2!Q296)","v":""},{"$f":"IF(OR(Selection_Hide2!R296=0, Selection_Hide2!R296=\"\"), \"\", Selection_Hide2!R296)","v":""},{"$f":"IF(OR(Selection_Hide2!S296=0, Selection_Hide2!S296=\"\"), \"\", Selection_Hide2!S296)","v":""},{"$f":"IF(OR(Selection_Hide2!T296=0, Selection_Hide2!T296=\"\"), \"\", Selection_Hide2!T296)","v":""},{"$f":"IF(OR(Selection_Hide2!U296=0, Selection_Hide2!U296=\"\"), \"\", Selection_Hide2!U296)","v":""},{"$f":"IF(OR(Selection_Hide2!V296=0, Selection_Hide2!V296=\"\"), \"\", Selection_Hide2!V296)","v":""},{"$f":"IF(OR(Selection_Hide2!W296=0, Selection_Hide2!W296=\"\"), \"\", Selection_Hide2!W296)","v":""},{"$f":"IF(OR(Selection_Hide2!X296=0, Selection_Hide2!X296=\"\"), \"\", Selection_Hide2!X296)","v":""},{"$f":"IF(OR(Selection_Hide2!Y296=0, Selection_Hide2!Y296=\"\"), \"\", Selection_Hide2!Y296)","v":""},{"$f":"IF(OR(Selection_Hide2!Z296=0, Selection_Hide2!Z296=\"\"), \"\", Selection_Hide2!Z296)","v":""},{"$f":"IF(OR(Selection_Hide2!AA296=0, Selection_Hide2!AA296=\"\"), \"\", Selection_Hide2!AA296)","v":""},{"$f":"IF(OR(Selection_Hide2!AB296=0, Selection_Hide2!AB296=\"\"), \"\", Selection_Hide2!AB296)","v":""}]
[{"$f":"IF(OR(Selection_Hide2!A297=0, Selection_Hide2!A297=\"\"), \"\", Selection_Hide2!A297)","v":""},{"$f":"IF(OR(Selection_Hide2!B297=0, Selection_Hide2!B297=\"\"), \"\", Selection_Hide2!B297)","v":""},{"$f":"IF(OR(Selection_Hide2!C297=0, Selection_Hide2!C297=\"\"), \"\", Selection_Hide2!C297)","v":""},{"$f":"IF(OR(Selection_Hide2!D297=0, Selection_Hide2!D297=\"\"), \"\", Selection_Hide2!D297)","v":""},{"$f":"IF(OR(Selection_Hide2!E297=0, Selection_Hide2!E297=\"\"), \"\", Selection_Hide2!E297)","v":""},{"$f":"IF(OR(Selection_Hide2!F297=0, Selection_Hide2!F297=\"\"), \"\", Selection_Hide2!F297)","v":""},{"$f":"IF(OR(Selection_Hide2!G297=0, Selection_Hide2!G297=\"\"), \"\", Selection_Hide2!G297)","v":""},{"$f":"IF(OR(Selection_Hide2!H297=0, Selection_Hide2!H297=\"\"), \"\", Selection_Hide2!H297)","v":""},{"$f":"IF(OR(Selection_Hide2!I297=0, Selection_Hide2!I297=\"\"), \"\", Selection_Hide2!I297)","v":""},{"$f":"IF(OR(Selection_Hide2!J297=0, Selection_Hide2!J297=\"\"), \"\", Selection_Hide2!J297)","v":""},{"$f":"IF(OR(Selection_Hide2!K297=0, Selection_Hide2!K297=\"\"), \"\", Selection_Hide2!K297)","v":""},{"$f":"IF(OR(Selection_Hide2!L297=0, Selection_Hide2!L297=\"\"), \"\", Selection_Hide2!L297)","v":""},{"$f":"IF(OR(Selection_Hide2!M297=0, Selection_Hide2!M297=\"\"), \"\", Selection_Hide2!M297)","v":""},{"$f":"IF(OR(Selection_Hide2!N297=0, Selection_Hide2!N297=\"\"), \"\", Selection_Hide2!N297)","v":""},{"$f":"IF(OR(Selection_Hide2!O297=0, Selection_Hide2!O297=\"\"), \"\", Selection_Hide2!O297)","v":""},{"$f":"IF(OR(Selection_Hide2!P297=0, Selection_Hide2!P297=\"\"), \"\", Selection_Hide2!P297)","v":""},{"$f":"IF(OR(Selection_Hide2!Q297=0, Selection_Hide2!Q297=\"\"), \"\", Selection_Hide2!Q297)","v":""},{"$f":"IF(OR(Selection_Hide2!R297=0, Selection_Hide2!R297=\"\"), \"\", Selection_Hide2!R297)","v":""},{"$f":"IF(OR(Selection_Hide2!S297=0, Selection_Hide2!S297=\"\"), \"\", Selection_Hide2!S297)","v":""},{"$f":"IF(OR(Selection_Hide2!T297=0, Selection_Hide2!T297=\"\"), \"\", Selection_Hide2!T297)","v":""},{"$f":"IF(OR(Selection_Hide2!U297=0, Selection_Hide2!U297=\"\"), \"\", Selection_Hide2!U297)","v":""},{"$f":"IF(OR(Selection_Hide2!V297=0, Selection_Hide2!V297=\"\"), \"\", Selection_Hide2!V297)","v":""},{"$f":"IF(OR(Selection_Hide2!W297=0, Selection_Hide2!W297=\"\"), \"\", Selection_Hide2!W297)","v":""},{"$f":"IF(OR(Selection_Hide2!X297=0, Selection_Hide2!X297=\"\"), \"\", Selection_Hide2!X297)","v":""},{"$f":"IF(OR(Selection_Hide2!Y297=0, Selection_Hide2!Y297=\"\"), \"\", Selection_Hide2!Y297)","v":""},{"$f":"IF(OR(Selection_Hide2!Z297=0, Selection_Hide2!Z297=\"\"), \"\", Selection_Hide2!Z297)","v":""},{"$f":"IF(OR(Selection_Hide2!AA297=0, Selection_Hide2!AA297=\"\"), \"\", Selection_Hide2!AA297)","v":""},{"$f":"IF(OR(Selection_Hide2!AB297=0, Selection_Hide2!AB297=\"\"), \"\", Selection_Hide2!AB297)","v":""}]
[{"$f":"IF(OR(Selection_Hide2!A298=0, Selection_Hide2!A298=\"\"), \"\", Selection_Hide2!A298)","v":""},{"$f":"IF(OR(Selection_Hide2!B298=0, Selection_Hide2!B298=\"\"), \"\", Selection_Hide2!B298)","v":""},{"$f":"IF(OR(Selection_Hide2!C298=0, Selection_Hide2!C298=\"\"), \"\", Selection_Hide2!C298)","v":""},{"$f":"IF(OR(Selection_Hide2!D298=0, Selection_Hide2!D298=\"\"), \"\", Selection_Hide2!D298)","v":""},{"$f":"IF(OR(Selection_Hide2!E298=0, Selection_Hide2!E298=\"\"), \"\", Selection_Hide2!E298)","v":""},{"$f":"IF(OR(Selection_Hide2!F298=0, Selection_Hide2!F298=\"\"), \"\", Selection_Hide2!F298)","v":""},{"$f":"IF(OR(Selection_Hide2!G298=0, Selection_Hide2!G298=\"\"), \"\", Selection_Hide2!G298)","v":""},{"$f":"IF(OR(Selection_Hide2!H298=0, Selection_Hide2!H298=\"\"), \"\", Selection_Hide2!H298)","v":""},{"$f":"IF(OR(Selection_Hide2!I298=0, Selection_Hide2!I298=\"\"), \"\", Selection_Hide2!I298)","v":""},{"$f":"IF(OR(Selection_Hide2!J298=0, Selection_Hide2!J298=\"\"), \"\", Selection_Hide2!J298)","v":""},{"$f":"IF(OR(Selection_Hide2!K298=0, Selection_Hide2!K298=\"\"), \"\", Selection_Hide2!K298)","v":""},{"$f":"IF(OR(Selection_Hide2!L298=0, Selection_Hide2!L298=\"\"), \"\", Selection_Hide2!L298)","v":""},{"$f":"IF(OR(Selection_Hide2!M298=0, Selection_Hide2!M298=\"\"), \"\", Selection_Hide2!M298)","v":""},{"$f":"IF(OR(Selection_Hide2!N298=0, Selection_Hide2!N298=\"\"), \"\", Selection_Hide2!N298)","v":""},{"$f":"IF(OR(Selection_Hide2!O298=0, Selection_Hide2!O298=\"\"), \"\", Selection_Hide2!O298)","v":""},{"$f":"IF(OR(Selection_Hide2!P298=0, Selection_Hide2!P298=\"\"), \"\", Selection_Hide2!P298)","v":""},{"$f":"IF(OR(Selection_Hide2!Q298=0, Selection_Hide2!Q298=\"\"), \"\", Selection_Hide2!Q298)","v":""},{"$f":"IF(OR(Selection_Hide2!R298=0, Selection_Hide2!R298=\"\"), \"\", Selection_Hide2!R298)","v":""},{"$f":"IF(OR(Selection_Hide2!S298=0, Selection_Hide2!S298=\"\"), \"\", Selection_Hide2!S298)","v":""},{"$f":"IF(OR(Selection_Hide2!T298=0, Selection_Hide2!T298=\"\"), \"\", Selection_Hide2!T298)","v":""},{"$f":"IF(OR(Selection_Hide2!U298=0, Selection_Hide2!U298=\"\"), \"\", Selection_Hide2!U298)","v":""},{"$f":"IF(OR(Selection_Hide2!V298=0, Selection_Hide2!V298=\"\"), \"\", Selection_Hide2!V298)","v":""},{"$f":"IF(OR(Selection_Hide2!W298=0, Selection_Hide2!W298=\"\"), \"\", Selection_Hide2!W298)","v":""},{"$f":"IF(OR(Selection_Hide2!X298=0, Selection_Hide2!X298=\"\"), \"\", Selection_Hide2!X298)","v":""},{"$f":"IF(OR(Selection_Hide2!Y298=0, Selection_Hide2!Y298=\"\"), \"\", Selection_Hide2!Y298)","v":""},{"$f":"IF(OR(Selection_Hide2!Z298=0, Selection_Hide2!Z298=\"\"), \"\", Selection_Hide2!Z298)","v":""},{"$f":"IF(OR(Selection_Hide2!AA298=0, Selection_Hide2!AA298=\"\"), \"\", Selection_Hide2!AA298)","v":""},{"$f":"IF(OR(Selection_Hide2!AB298=0, Selection_Hide2!AB298=\"\"), \"\", Selection_Hide2!AB298)","v":""}]
[{"$f":"IF(OR(Selection_Hide2!A299=0, Selection_Hide2!A299=\"\"), \"\", Selection_Hide2!A299)","v":""},{"$f":"IF(OR(Selection_Hide2!B299=0, Selection_Hide2!B299=\"\"), \"\", Selection_Hide2!B299)","v":""},{"$f":"IF(OR(Selection_Hide2!C299=0, Selection_Hide2!C299=\"\"), \"\", Selection_Hide2!C299)","v":""},{"$f":"IF(OR(Selection_Hide2!D299=0, Selection_Hide2!D299=\"\"), \"\", Selection_Hide2!D299)","v":""},{"$f":"IF(OR(Selection_Hide2!E299=0, Selection_Hide2!E299=\"\"), \"\", Selection_Hide2!E299)","v":""},{"$f":"IF(OR(Selection_Hide2!F299=0, Selection_Hide2!F299=\"\"), \"\", Selection_Hide2!F299)","v":""},{"$f":"IF(OR(Selection_Hide2!G299=0, Selection_Hide2!G299=\"\"), \"\", Selection_Hide2!G299)","v":""},{"$f":"IF(OR(Selection_Hide2!H299=0, Selection_Hide2!H299=\"\"), \"\", Selection_Hide2!H299)","v":""},{"$f":"IF(OR(Selection_Hide2!I299=0, Selection_Hide2!I299=\"\"), \"\", Selection_Hide2!I299)","v":""},{"$f":"IF(OR(Selection_Hide2!J299=0, Selection_Hide2!J299=\"\"), \"\", Selection_Hide2!J299)","v":""},{"$f":"IF(OR(Selection_Hide2!K299=0, Selection_Hide2!K299=\"\"), \"\", Selection_Hide2!K299)","v":""},{"$f":"IF(OR(Selection_Hide2!L299=0, Selection_Hide2!L299=\"\"), \"\", Selection_Hide2!L299)","v":""},{"$f":"IF(OR(Selection_Hide2!M299=0, Selection_Hide2!M299=\"\"), \"\", Selection_Hide2!M299)","v":""},{"$f":"IF(OR(Selection_Hide2!N299=0, Selection_Hide2!N299=\"\"), \"\", Selection_Hide2!N299)","v":""},{"$f":"IF(OR(Selection_Hide2!O299=0, Selection_Hide2!O299=\"\"), \"\", Selection_Hide2!O299)","v":""},{"$f":"IF(OR(Selection_Hide2!P299=0, Selection_Hide2!P299=\"\"), \"\", Selection_Hide2!P299)","v":""},{"$f":"IF(OR(Selection_Hide2!Q299=0, Selection_Hide2!Q299=\"\"), \"\", Selection_Hide2!Q299)","v":""},{"$f":"IF(OR(Selection_Hide2!R299=0, Selection_Hide2!R299=\"\"), \"\", Selection_Hide2!R299)","v":""},{"$f":"IF(OR(Selection_Hide2!S299=0, Selection_Hide2!S299=\"\"), \"\", Selection_Hide2!S299)","v":""},{"$f":"IF(OR(Selection_Hide2!T299=0, Selection_Hide2!T299=\"\"), \"\", Selection_Hide2!T299)","v":""},{"$f":"IF(OR(Selection_Hide2!U299=0, Selection_Hide2!U299=\"\"), \"\", Selection_Hide2!U299)","v":""},{"$f":"IF(OR(Selection_Hide2!V299=0, Selection_Hide2!V299=\"\"), \"\", Selection_Hide2!V299)","v":""},{"$f":"IF(OR(Selection_Hide2!W299=0, Selection_Hide2!W299=\"\"), \"\", Selection_Hide2!W299)","v":""},{"$f":"IF(OR(Selection_Hide2!X299=0, Selection_Hide2!X299=\"\"), \"\", Selection_Hide2!X299)","v":""},{"$f":"IF(OR(Selection_Hide2!Y299=0, Selection_Hide2!Y299=\"\"), \"\", Selection_Hide2!Y299)","v":""},{"$f":"IF(OR(Selection_Hide2!Z299=0, Selection_Hide2!Z299=\"\"), \"\", Selection_Hide2!Z299)","v":""},{"$f":"IF(OR(Selection_Hide2!AA299=0, Selection_Hide2!AA299=\"\"), \"\", Selection_Hide2!AA299)","v":""},{"$f":"IF(OR(Selection_Hide2!AB299=0, Selection_Hide2!AB299=\"\"), \"\", Selection_Hide2!AB299)","v":""}]
[{"$f":"IF(OR(Selection_Hide2!A300=0, Selection_Hide2!A300=\"\"), \"\", Selection_Hide2!A300)","v":""},{"$f":"IF(OR(Selection_Hide2!B300=0, Selection_Hide2!B300=\"\"), \"\", Selection_Hide2!B300)","v":""},{"$f":"IF(OR(Selection_Hide2!C300=0, Selection_Hide2!C300=\"\"), \"\", Selection_Hide2!C300)","v":""},{"$f":"IF(OR(Selection_Hide2!D300=0, Selection_Hide2!D300=\"\"), \"\", Selection_Hide2!D300)","v":""},{"$f":"IF(OR(Selection_Hide2!E300=0, Selection_Hide2!E300=\"\"), \"\", Selection_Hide2!E300)","v":""},{"$f":"IF(OR(Selection_Hide2!F300=0, Selection_Hide2!F300=\"\"), \"\", Selection_Hide2!F300)","v":""},{"$f":"IF(OR(Selection_Hide2!G300=0, Selection_Hide2!G300=\"\"), \"\", Selection_Hide2!G300)","v":""},{"$f":"IF(OR(Selection_Hide2!H300=0, Selection_Hide2!H300=\"\"), \"\", Selection_Hide2!H300)","v":""},{"$f":"IF(OR(Selection_Hide2!I300=0, Selection_Hide2!I300=\"\"), \"\", Selection_Hide2!I300)","v":""},{"$f":"IF(OR(Selection_Hide2!J300=0, Selection_Hide2!J300=\"\"), \"\", Selection_Hide2!J300)","v":""},{"$f":"IF(OR(Selection_Hide2!K300=0, Selection_Hide2!K300=\"\"), \"\", Selection_Hide2!K300)","v":""},{"$f":"IF(OR(Selection_Hide2!L300=0, Selection_Hide2!L300=\"\"), \"\", Selection_Hide2!L300)","v":""},{"$f":"IF(OR(Selection_Hide2!M300=0, Selection_Hide2!M300=\"\"), \"\", Selection_Hide2!M300)","v":""},{"$f":"IF(OR(Selection_Hide2!N300=0, Selection_Hide2!N300=\"\"), \"\", Selection_Hide2!N300)","v":""},{"$f":"IF(OR(Selection_Hide2!O300=0, Selection_Hide2!O300=\"\"), \"\", Selection_Hide2!O300)","v":""},{"$f":"IF(OR(Selection_Hide2!P300=0, Selection_Hide2!P300=\"\"), \"\", Selection_Hide2!P300)","v":""},{"$f":"IF(OR(Selection_Hide2!Q300=0, Selection_Hide2!Q300=\"\"), \"\", Selection_Hide2!Q300)","v":""},{"$f":"IF(OR(Selection_Hide2!R300=0, Selection_Hide2!R300=\"\"), \"\", Selection_Hide2!R300)","v":""},{"$f":"IF(OR(Selection_Hide2!S300=0, Selection_Hide2!S300=\"\"), \"\", Selection_Hide2!S300)","v":""},{"$f":"IF(OR(Selection_Hide2!T300=0, Selection_Hide2!T300=\"\"), \"\", Selection_Hide2!T300)","v":""},{"$f":"IF(OR(Selection_Hide2!U300=0, Selection_Hide2!U300=\"\"), \"\", Selection_Hide2!U300)","v":""},{"$f":"IF(OR(Selection_Hide2!V300=0, Selection_Hide2!V300=\"\"), \"\", Selection_Hide2!V300)","v":""},{"$f":"IF(OR(Selection_Hide2!W300=0, Selection_Hide2!W300=\"\"), \"\", Selection_Hide2!W300)","v":""},{"$f":"IF(OR(Selection_Hide2!X300=0, Selection_Hide2!X300=\"\"), \"\", Selection_Hide2!X300)","v":""},{"$f":"IF(OR(Selection_Hide2!Y300=0, Selection_Hide2!Y300=\"\"), \"\", Selection_Hide2!Y300)","v":""},{"$f":"IF(OR(Selection_Hide2!Z300=0, Selection_Hide2!Z300=\"\"), \"\", Selection_Hide2!Z300)","v":""},{"$f":"IF(OR(Selection_Hide2!AA300=0, Selection_Hide2!AA300=\"\"), \"\", Selection_Hide2!AA300)","v":""},{"$f":"IF(OR(Selection_Hide2!AB300=0, Selection_Hide2!AB300=\"\"), \"\", Selection_Hide2!AB300)","v":""}]
[{"$f":"IF(OR(Selection_Hide2!A301=0, Selection_Hide2!A301=\"\"), \"\", Selection_Hide2!A301)","v":""},{"$f":"IF(OR(Selection_Hide2!B301=0, Selection_Hide2!B301=\"\"), \"\", Selection_Hide2!B301)","v":""},{"$f":"IF(OR(Selection_Hide2!C301=0, Selection_Hide2!C301=\"\"), \"\", Selection_Hide2!C301)","v":""},{"$f":"IF(OR(Selection_Hide2!D301=0, Selection_Hide2!D301=\"\"), \"\", Selection_Hide2!D301)","v":""},{"$f":"IF(OR(Selection_Hide2!E301=0, Selection_Hide2!E301=\"\"), \"\", Selection_Hide2!E301)","v":""},{"$f":"IF(OR(Selection_Hide2!F301=0, Selection_Hide2!F301=\"\"), \"\", Selection_Hide2!F301)","v":""},{"$f":"IF(OR(Selection_Hide2!G301=0, Selection_Hide2!G301=\"\"), \"\", Selection_Hide2!G301)","v":""},{"$f":"IF(OR(Selection_Hide2!H301=0, Selection_Hide2!H301=\"\"), \"\", Selection_Hide2!H301)","v":""},{"$f":"IF(OR(Selection_Hide2!I301=0, Selection_Hide2!I301=\"\"), \"\", Selection_Hide2!I301)","v":""},{"$f":"IF(OR(Selection_Hide2!J301=0, Selection_Hide2!J301=\"\"), \"\", Selection_Hide2!J301)","v":""},{"$f":"IF(OR(Selection_Hide2!K301=0, Selection_Hide2!K301=\"\"), \"\", Selection_Hide2!K301)","v":""},{"$f":"IF(OR(Selection_Hide2!L301=0, Selection_Hide2!L301=\"\"), \"\", Selection_Hide2!L301)","v":""},{"$f":"IF(OR(Selection_Hide2!M301=0, Selection_Hide2!M301=\"\"), \"\", Selection_Hide2!M301)","v":""},{"$f":"IF(OR(Selection_Hide2!N301=0, Selection_Hide2!N301=\"\"), \"\", Selection_Hide2!N301)","v":""},{"$f":"IF(OR(Selection_Hide2!O301=0, Selection_Hide2!O301=\"\"), \"\", Selection_Hide2!O301)","v":""},{"$f":"IF(OR(Selection_Hide2!P301=0, Selection_Hide2!P301=\"\"), \"\", Selection_Hide2!P301)","v":""},{"$f":"IF(OR(Selection_Hide2!Q301=0, Selection_Hide2!Q301=\"\"), \"\", Selection_Hide2!Q301)","v":""},{"$f":"IF(OR(Selection_Hide2!R301=0, Selection_Hide2!R301=\"\"), \"\", Selection_Hide2!R301)","v":""},{"$f":"IF(OR(Selection_Hide2!S301=0, Selection_Hide2!S301=\"\"), \"\", Selection_Hide2!S301)","v":""},{"$f":"IF(OR(Selection_Hide2!T301=0, Selection_Hide2!T301=\"\"), \"\", Selection_Hide2!T301)","v":""},{"$f":"IF(OR(Selection_Hide2!U301=0, Selection_Hide2!U301=\"\"), \"\", Selection_Hide2!U301)","v":""},{"$f":"IF(OR(Selection_Hide2!V301=0, Selection_Hide2!V301=\"\"), \"\", Selection_Hide2!V301)","v":""},{"$f":"IF(OR(Selection_Hide2!W301=0, Selection_Hide2!W301=\"\"), \"\", Selection_Hide2!W301)","v":""},{"$f":"IF(OR(Selection_Hide2!X301=0, Selection_Hide2!X301=\"\"), \"\", Selection_Hide2!X301)","v":""},{"$f":"IF(OR(Selection_Hide2!Y301=0, Selection_Hide2!Y301=\"\"), \"\", Selection_Hide2!Y301)","v":""},{"$f":"IF(OR(Selection_Hide2!Z301=0, Selection_Hide2!Z301=\"\"), \"\", Selection_Hide2!Z301)","v":""},{"$f":"IF(OR(Selection_Hide2!AA301=0, Selection_Hide2!AA301=\"\"), \"\", Selection_Hide2!AA301)","v":""},{"$f":"IF(OR(Selection_Hide2!AB301=0, Selection_Hide2!AB301=\"\"), \"\", Selection_Hide2!AB301)","v":""}]
[{"$f":"IF(OR(Selection_Hide2!A302=0, Selection_Hide2!A302=\"\"), \"\", Selection_Hide2!A302)","v":""},{"$f":"IF(OR(Selection_Hide2!B302=0, Selection_Hide2!B302=\"\"), \"\", Selection_Hide2!B302)","v":""},{"$f":"IF(OR(Selection_Hide2!C302=0, Selection_Hide2!C302=\"\"), \"\", Selection_Hide2!C302)","v":""},{"$f":"IF(OR(Selection_Hide2!D302=0, Selection_Hide2!D302=\"\"), \"\", Selection_Hide2!D302)","v":""},{"$f":"IF(OR(Selection_Hide2!E302=0, Selection_Hide2!E302=\"\"), \"\", Selection_Hide2!E302)","v":""},{"$f":"IF(OR(Selection_Hide2!F302=0, Selection_Hide2!F302=\"\"), \"\", Selection_Hide2!F302)","v":""},{"$f":"IF(OR(Selection_Hide2!G302=0, Selection_Hide2!G302=\"\"), \"\", Selection_Hide2!G302)","v":""},{"$f":"IF(OR(Selection_Hide2!H302=0, Selection_Hide2!H302=\"\"), \"\", Selection_Hide2!H302)","v":""},{"$f":"IF(OR(Selection_Hide2!I302=0, Selection_Hide2!I302=\"\"), \"\", Selection_Hide2!I302)","v":""},{"$f":"IF(OR(Selection_Hide2!J302=0, Selection_Hide2!J302=\"\"), \"\", Selection_Hide2!J302)","v":""},{"$f":"IF(OR(Selection_Hide2!K302=0, Selection_Hide2!K302=\"\"), \"\", Selection_Hide2!K302)","v":""},{"$f":"IF(OR(Selection_Hide2!L302=0, Selection_Hide2!L302=\"\"), \"\", Selection_Hide2!L302)","v":""},{"$f":"IF(OR(Selection_Hide2!M302=0, Selection_Hide2!M302=\"\"), \"\", Selection_Hide2!M302)","v":""},{"$f":"IF(OR(Selection_Hide2!N302=0, Selection_Hide2!N302=\"\"), \"\", Selection_Hide2!N302)","v":""},{"$f":"IF(OR(Selection_Hide2!O302=0, Selection_Hide2!O302=\"\"), \"\", Selection_Hide2!O302)","v":""},{"$f":"IF(OR(Selection_Hide2!P302=0, Selection_Hide2!P302=\"\"), \"\", Selection_Hide2!P302)","v":""},{"$f":"IF(OR(Selection_Hide2!Q302=0, Selection_Hide2!Q302=\"\"), \"\", Selection_Hide2!Q302)","v":""},{"$f":"IF(OR(Selection_Hide2!R302=0, Selection_Hide2!R302=\"\"), \"\", Selection_Hide2!R302)","v":""},{"$f":"IF(OR(Selection_Hide2!S302=0, Selection_Hide2!S302=\"\"), \"\", Selection_Hide2!S302)","v":""},{"$f":"IF(OR(Selection_Hide2!T302=0, Selection_Hide2!T302=\"\"), \"\", Selection_Hide2!T302)","v":""},{"$f":"IF(OR(Selection_Hide2!U302=0, Selection_Hide2!U302=\"\"), \"\", Selection_Hide2!U302)","v":""},{"$f":"IF(OR(Selection_Hide2!V302=0, Selection_Hide2!V302=\"\"), \"\", Selection_Hide2!V302)","v":""},{"$f":"IF(OR(Selection_Hide2!W302=0, Selection_Hide2!W302=\"\"), \"\", Selection_Hide2!W302)","v":""},{"$f":"IF(OR(Selection_Hide2!X302=0, Selection_Hide2!X302=\"\"), \"\", Selection_Hide2!X302)","v":""},{"$f":"IF(OR(Selection_Hide2!Y302=0, Selection_Hide2!Y302=\"\"), \"\", Selection_Hide2!Y302)","v":""},{"$f":"IF(OR(Selection_Hide2!Z302=0, Selection_Hide2!Z302=\"\"), \"\", Selection_Hide2!Z302)","v":""},{"$f":"IF(OR(Selection_Hide2!AA302=0, Selection_Hide2!AA302=\"\"), \"\", Selection_Hide2!AA302)","v":""},{"$f":"IF(OR(Selection_Hide2!AB302=0, Selection_Hide2!AB302=\"\"), \"\", Selection_Hide2!AB302)","v":""}]
[{"$f":"IF(OR(Selection_Hide2!A303=0, Selection_Hide2!A303=\"\"), \"\", Selection_Hide2!A303)","v":""},{"$f":"IF(OR(Selection_Hide2!B303=0, Selection_Hide2!B303=\"\"), \"\", Selection_Hide2!B303)","v":""},{"$f":"IF(OR(Selection_Hide2!C303=0, Selection_Hide2!C303=\"\"), \"\", Selection_Hide2!C303)","v":""},{"$f":"IF(OR(Selection_Hide2!D303=0, Selection_Hide2!D303=\"\"), \"\", Selection_Hide2!D303)","v":""},{"$f":"IF(OR(Selection_Hide2!E303=0, Selection_Hide2!E303=\"\"), \"\", Selection_Hide2!E303)","v":""},{"$f":"IF(OR(Selection_Hide2!F303=0, Selection_Hide2!F303=\"\"), \"\", Selection_Hide2!F303)","v":""},{"$f":"IF(OR(Selection_Hide2!G303=0, Selection_Hide2!G303=\"\"), \"\", Selection_Hide2!G303)","v":""},{"$f":"IF(OR(Selection_Hide2!H303=0, Selection_Hide2!H303=\"\"), \"\", Selection_Hide2!H303)","v":""},{"$f":"IF(OR(Selection_Hide2!I303=0, Selection_Hide2!I303=\"\"), \"\", Selection_Hide2!I303)","v":""},{"$f":"IF(OR(Selection_Hide2!J303=0, Selection_Hide2!J303=\"\"), \"\", Selection_Hide2!J303)","v":""},{"$f":"IF(OR(Selection_Hide2!K303=0, Selection_Hide2!K303=\"\"), \"\", Selection_Hide2!K303)","v":""},{"$f":"IF(OR(Selection_Hide2!L303=0, Selection_Hide2!L303=\"\"), \"\", Selection_Hide2!L303)","v":""},{"$f":"IF(OR(Selection_Hide2!M303=0, Selection_Hide2!M303=\"\"), \"\", Selection_Hide2!M303)","v":""},{"$f":"IF(OR(Selection_Hide2!N303=0, Selection_Hide2!N303=\"\"), \"\", Selection_Hide2!N303)","v":""},{"$f":"IF(OR(Selection_Hide2!O303=0, Selection_Hide2!O303=\"\"), \"\", Selection_Hide2!O303)","v":""},{"$f":"IF(OR(Selection_Hide2!P303=0, Selection_Hide2!P303=\"\"), \"\", Selection_Hide2!P303)","v":""},{"$f":"IF(OR(Selection_Hide2!Q303=0, Selection_Hide2!Q303=\"\"), \"\", Selection_Hide2!Q303)","v":""},{"$f":"IF(OR(Selection_Hide2!R303=0, Selection_Hide2!R303=\"\"), \"\", Selection_Hide2!R303)","v":""},{"$f":"IF(OR(Selection_Hide2!S303=0, Selection_Hide2!S303=\"\"), \"\", Selection_Hide2!S303)","v":""},{"$f":"IF(OR(Selection_Hide2!T303=0, Selection_Hide2!T303=\"\"), \"\", Selection_Hide2!T303)","v":""},{"$f":"IF(OR(Selection_Hide2!U303=0, Selection_Hide2!U303=\"\"), \"\", Selection_Hide2!U303)","v":""},{"$f":"IF(OR(Selection_Hide2!V303=0, Selection_Hide2!V303=\"\"), \"\", Selection_Hide2!V303)","v":""},{"$f":"IF(OR(Selection_Hide2!W303=0, Selection_Hide2!W303=\"\"), \"\", Selection_Hide2!W303)","v":""},{"$f":"IF(OR(Selection_Hide2!X303=0, Selection_Hide2!X303=\"\"), \"\", Selection_Hide2!X303)","v":""},{"$f":"IF(OR(Selection_Hide2!Y303=0, Selection_Hide2!Y303=\"\"), \"\", Selection_Hide2!Y303)","v":""},{"$f":"IF(OR(Selection_Hide2!Z303=0, Selection_Hide2!Z303=\"\"), \"\", Selection_Hide2!Z303)","v":""},{"$f":"IF(OR(Selection_Hide2!AA303=0, Selection_Hide2!AA303=\"\"), \"\", Selection_Hide2!AA303)","v":""},{"$f":"IF(OR(Selection_Hide2!AB303=0, Selection_Hide2!AB303=\"\"), \"\", Selection_Hide2!AB303)","v":""}]
[{"$f":"IF(OR(Selection_Hide2!A304=0, Selection_Hide2!A304=\"\"), \"\", Selection_Hide2!A304)","v":""},{"$f":"IF(OR(Selection_Hide2!B304=0, Selection_Hide2!B304=\"\"), \"\", Selection_Hide2!B304)","v":""},{"$f":"IF(OR(Selection_Hide2!C304=0, Selection_Hide2!C304=\"\"), \"\", Selection_Hide2!C304)","v":""},{"$f":"IF(OR(Selection_Hide2!D304=0, Selection_Hide2!D304=\"\"), \"\", Selection_Hide2!D304)","v":""},{"$f":"IF(OR(Selection_Hide2!E304=0, Selection_Hide2!E304=\"\"), \"\", Selection_Hide2!E304)","v":""},{"$f":"IF(OR(Selection_Hide2!F304=0, Selection_Hide2!F304=\"\"), \"\", Selection_Hide2!F304)","v":""},{"$f":"IF(OR(Selection_Hide2!G304=0, Selection_Hide2!G304=\"\"), \"\", Selection_Hide2!G304)","v":""},{"$f":"IF(OR(Selection_Hide2!H304=0, Selection_Hide2!H304=\"\"), \"\", Selection_Hide2!H304)","v":""},{"$f":"IF(OR(Selection_Hide2!I304=0, Selection_Hide2!I304=\"\"), \"\", Selection_Hide2!I304)","v":""},{"$f":"IF(OR(Selection_Hide2!J304=0, Selection_Hide2!J304=\"\"), \"\", Selection_Hide2!J304)","v":""},{"$f":"IF(OR(Selection_Hide2!K304=0, Selection_Hide2!K304=\"\"), \"\", Selection_Hide2!K304)","v":""},{"$f":"IF(OR(Selection_Hide2!L304=0, Selection_Hide2!L304=\"\"), \"\", Selection_Hide2!L304)","v":""},{"$f":"IF(OR(Selection_Hide2!M304=0, Selection_Hide2!M304=\"\"), \"\", Selection_Hide2!M304)","v":""},{"$f":"IF(OR(Selection_Hide2!N304=0, Selection_Hide2!N304=\"\"), \"\", Selection_Hide2!N304)","v":""},{"$f":"IF(OR(Selection_Hide2!O304=0, Selection_Hide2!O304=\"\"), \"\", Selection_Hide2!O304)","v":""},{"$f":"IF(OR(Selection_Hide2!P304=0, Selection_Hide2!P304=\"\"), \"\", Selection_Hide2!P304)","v":""},{"$f":"IF(OR(Selection_Hide2!Q304=0, Selection_Hide2!Q304=\"\"), \"\", Selection_Hide2!Q304)","v":""},{"$f":"IF(OR(Selection_Hide2!R304=0, Selection_Hide2!R304=\"\"), \"\", Selection_Hide2!R304)","v":""},{"$f":"IF(OR(Selection_Hide2!S304=0, Selection_Hide2!S304=\"\"), \"\", Selection_Hide2!S304)","v":""},{"$f":"IF(OR(Selection_Hide2!T304=0, Selection_Hide2!T304=\"\"), \"\", Selection_Hide2!T304)","v":""},{"$f":"IF(OR(Selection_Hide2!U304=0, Selection_Hide2!U304=\"\"), \"\", Selection_Hide2!U304)","v":""},{"$f":"IF(OR(Selection_Hide2!V304=0, Selection_Hide2!V304=\"\"), \"\", Selection_Hide2!V304)","v":""},{"$f":"IF(OR(Selection_Hide2!W304=0, Selection_Hide2!W304=\"\"), \"\", Selection_Hide2!W304)","v":""},{"$f":"IF(OR(Selection_Hide2!X304=0, Selection_Hide2!X304=\"\"), \"\", Selection_Hide2!X304)","v":""},{"$f":"IF(OR(Selection_Hide2!Y304=0, Selection_Hide2!Y304=\"\"), \"\", Selection_Hide2!Y304)","v":""},{"$f":"IF(OR(Selection_Hide2!Z304=0, Selection_Hide2!Z304=\"\"), \"\", Selection_Hide2!Z304)","v":""},{"$f":"IF(OR(Selection_Hide2!AA304=0, Selection_Hide2!AA304=\"\"), \"\", Selection_Hide2!AA304)","v":""},{"$f":"IF(OR(Selection_Hide2!AB304=0, Selection_Hide2!AB304=\"\"), \"\", Selection_Hide2!AB304)","v":""}]
[{"$f":"IF(OR(Selection_Hide2!A305=0, Selection_Hide2!A305=\"\"), \"\", Selection_Hide2!A305)","v":""},{"$f":"IF(OR(Selection_Hide2!B305=0, Selection_Hide2!B305=\"\"), \"\", Selection_Hide2!B305)","v":""},{"$f":"IF(OR(Selection_Hide2!C305=0, Selection_Hide2!C305=\"\"), \"\", Selection_Hide2!C305)","v":""},{"$f":"IF(OR(Selection_Hide2!D305=0, Selection_Hide2!D305=\"\"), \"\", Selection_Hide2!D305)","v":""},{"$f":"IF(OR(Selection_Hide2!E305=0, Selection_Hide2!E305=\"\"), \"\", Selection_Hide2!E305)","v":""},{"$f":"IF(OR(Selection_Hide2!F305=0, Selection_Hide2!F305=\"\"), \"\", Selection_Hide2!F305)","v":""},{"$f":"IF(OR(Selection_Hide2!G305=0, Selection_Hide2!G305=\"\"), \"\", Selection_Hide2!G305)","v":""},{"$f":"IF(OR(Selection_Hide2!H305=0, Selection_Hide2!H305=\"\"), \"\", Selection_Hide2!H305)","v":""},{"$f":"IF(OR(Selection_Hide2!I305=0, Selection_Hide2!I305=\"\"), \"\", Selection_Hide2!I305)","v":""},{"$f":"IF(OR(Selection_Hide2!J305=0, Selection_Hide2!J305=\"\"), \"\", Selection_Hide2!J305)","v":""},{"$f":"IF(OR(Selection_Hide2!K305=0, Selection_Hide2!K305=\"\"), \"\", Selection_Hide2!K305)","v":""},{"$f":"IF(OR(Selection_Hide2!L305=0, Selection_Hide2!L305=\"\"), \"\", Selection_Hide2!L305)","v":""},{"$f":"IF(OR(Selection_Hide2!M305=0, Selection_Hide2!M305=\"\"), \"\", Selection_Hide2!M305)","v":""},{"$f":"IF(OR(Selection_Hide2!N305=0, Selection_Hide2!N305=\"\"), \"\", Selection_Hide2!N305)","v":""},{"$f":"IF(OR(Selection_Hide2!O305=0, Selection_Hide2!O305=\"\"), \"\", Selection_Hide2!O305)","v":""},{"$f":"IF(OR(Selection_Hide2!P305=0, Selection_Hide2!P305=\"\"), \"\", Selection_Hide2!P305)","v":""},{"$f":"IF(OR(Selection_Hide2!Q305=0, Selection_Hide2!Q305=\"\"), \"\", Selection_Hide2!Q305)","v":""},{"$f":"IF(OR(Selection_Hide2!R305=0, Selection_Hide2!R305=\"\"), \"\", Selection_Hide2!R305)","v":""},{"$f":"IF(OR(Selection_Hide2!S305=0, Selection_Hide2!S305=\"\"), \"\", Selection_Hide2!S305)","v":""},{"$f":"IF(OR(Selection_Hide2!T305=0, Selection_Hide2!T305=\"\"), \"\", Selection_Hide2!T305)","v":""},{"$f":"IF(OR(Selection_Hide2!U305=0, Selection_Hide2!U305=\"\"), \"\", Selection_Hide2!U305)","v":""},{"$f":"IF(OR(Selection_Hide2!V305=0, Selection_Hide2!V305=\"\"), \"\", Selection_Hide2!V305)","v":""},{"$f":"IF(OR(Selection_Hide2!W305=0, Selection_Hide2!W305=\"\"), \"\", Selection_Hide2!W305)","v":""},{"$f":"IF(OR(Selection_Hide2!X305=0, Selection_Hide2!X305=\"\"), \"\", Selection_Hide2!X305)","v":""},{"$f":"IF(OR(Selection_Hide2!Y305=0, Selection_Hide2!Y305=\"\"), \"\", Selection_Hide2!Y305)","v":""},{"$f":"IF(OR(Selection_Hide2!Z305=0, Selection_Hide2!Z305=\"\"), \"\", Selection_Hide2!Z305)","v":""},{"$f":"IF(OR(Selection_Hide2!AA305=0, Selection_Hide2!AA305=\"\"), \"\", Selection_Hide2!AA305)","v":""},{"$f":"IF(OR(Selection_Hide2!AB305=0, Selection_Hide2!AB305=\"\"), \"\", Selection_Hide2!AB305)","v":""}]
[{"$f":"IF(OR(Selection_Hide2!A306=0, Selection_Hide2!A306=\"\"), \"\", Selection_Hide2!A306)","v":""},{"$f":"IF(OR(Selection_Hide2!B306=0, Selection_Hide2!B306=\"\"), \"\", Selection_Hide2!B306)","v":""},{"$f":"IF(OR(Selection_Hide2!C306=0, Selection_Hide2!C306=\"\"), \"\", Selection_Hide2!C306)","v":""},{"$f":"IF(OR(Selection_Hide2!D306=0, Selection_Hide2!D306=\"\"), \"\", Selection_Hide2!D306)","v":""},{"$f":"IF(OR(Selection_Hide2!E306=0, Selection_Hide2!E306=\"\"), \"\", Selection_Hide2!E306)","v":""},{"$f":"IF(OR(Selection_Hide2!F306=0, Selection_Hide2!F306=\"\"), \"\", Selection_Hide2!F306)","v":""},{"$f":"IF(OR(Selection_Hide2!G306=0, Selection_Hide2!G306=\"\"), \"\", Selection_Hide2!G306)","v":""},{"$f":"IF(OR(Selection_Hide2!H306=0, Selection_Hide2!H306=\"\"), \"\", Selection_Hide2!H306)","v":""},{"$f":"IF(OR(Selection_Hide2!I306=0, Selection_Hide2!I306=\"\"), \"\", Selection_Hide2!I306)","v":""},{"$f":"IF(OR(Selection_Hide2!J306=0, Selection_Hide2!J306=\"\"), \"\", Selection_Hide2!J306)","v":""},{"$f":"IF(OR(Selection_Hide2!K306=0, Selection_Hide2!K306=\"\"), \"\", Selection_Hide2!K306)","v":""},{"$f":"IF(OR(Selection_Hide2!L306=0, Selection_Hide2!L306=\"\"), \"\", Selection_Hide2!L306)","v":""},{"$f":"IF(OR(Selection_Hide2!M306=0, Selection_Hide2!M306=\"\"), \"\", Selection_Hide2!M306)","v":""},{"$f":"IF(OR(Selection_Hide2!N306=0, Selection_Hide2!N306=\"\"), \"\", Selection_Hide2!N306)","v":""},{"$f":"IF(OR(Selection_Hide2!O306=0, Selection_Hide2!O306=\"\"), \"\", Selection_Hide2!O306)","v":""},{"$f":"IF(OR(Selection_Hide2!P306=0, Selection_Hide2!P306=\"\"), \"\", Selection_Hide2!P306)","v":""},{"$f":"IF(OR(Selection_Hide2!Q306=0, Selection_Hide2!Q306=\"\"), \"\", Selection_Hide2!Q306)","v":""},{"$f":"IF(OR(Selection_Hide2!R306=0, Selection_Hide2!R306=\"\"), \"\", Selection_Hide2!R306)","v":""},{"$f":"IF(OR(Selection_Hide2!S306=0, Selection_Hide2!S306=\"\"), \"\", Selection_Hide2!S306)","v":""},{"$f":"IF(OR(Selection_Hide2!T306=0, Selection_Hide2!T306=\"\"), \"\", Selection_Hide2!T306)","v":""},{"$f":"IF(OR(Selection_Hide2!U306=0, Selection_Hide2!U306=\"\"), \"\", Selection_Hide2!U306)","v":""},{"$f":"IF(OR(Selection_Hide2!V306=0, Selection_Hide2!V306=\"\"), \"\", Selection_Hide2!V306)","v":""},{"$f":"IF(OR(Selection_Hide2!W306=0, Selection_Hide2!W306=\"\"), \"\", Selection_Hide2!W306)","v":""},{"$f":"IF(OR(Selection_Hide2!X306=0, Selection_Hide2!X306=\"\"), \"\", Selection_Hide2!X306)","v":""},{"$f":"IF(OR(Selection_Hide2!Y306=0, Selection_Hide2!Y306=\"\"), \"\", Selection_Hide2!Y306)","v":""},{"$f":"IF(OR(Selection_Hide2!Z306=0, Selection_Hide2!Z306=\"\"), \"\", Selection_Hide2!Z306)","v":""},{"$f":"IF(OR(Selection_Hide2!AA306=0, Selection_Hide2!AA306=\"\"), \"\", Selection_Hide2!AA306)","v":""},{"$f":"IF(OR(Selection_Hide2!AB306=0, Selection_Hide2!AB306=\"\"), \"\", Selection_Hide2!AB306)","v":""}]
[{"$f":"IF(OR(Selection_Hide2!A307=0, Selection_Hide2!A307=\"\"), \"\", Selection_Hide2!A307)","v":""},{"$f":"IF(OR(Selection_Hide2!B307=0, Selection_Hide2!B307=\"\"), \"\", Selection_Hide2!B307)","v":""},{"$f":"IF(OR(Selection_Hide2!C307=0, Selection_Hide2!C307=\"\"), \"\", Selection_Hide2!C307)","v":""},{"$f":"IF(OR(Selection_Hide2!D307=0, Selection_Hide2!D307=\"\"), \"\", Selection_Hide2!D307)","v":""},{"$f":"IF(OR(Selection_Hide2!E307=0, Selection_Hide2!E307=\"\"), \"\", Selection_Hide2!E307)","v":""},{"$f":"IF(OR(Selection_Hide2!F307=0, Selection_Hide2!F307=\"\"), \"\", Selection_Hide2!F307)","v":""},{"$f":"IF(OR(Selection_Hide2!G307=0, Selection_Hide2!G307=\"\"), \"\", Selection_Hide2!G307)","v":""},{"$f":"IF(OR(Selection_Hide2!H307=0, Selection_Hide2!H307=\"\"), \"\", Selection_Hide2!H307)","v":""},{"$f":"IF(OR(Selection_Hide2!I307=0, Selection_Hide2!I307=\"\"), \"\", Selection_Hide2!I307)","v":""},{"$f":"IF(OR(Selection_Hide2!J307=0, Selection_Hide2!J307=\"\"), \"\", Selection_Hide2!J307)","v":""},{"$f":"IF(OR(Selection_Hide2!K307=0, Selection_Hide2!K307=\"\"), \"\", Selection_Hide2!K307)","v":""},{"$f":"IF(OR(Selection_Hide2!L307=0, Selection_Hide2!L307=\"\"), \"\", Selection_Hide2!L307)","v":""},{"$f":"IF(OR(Selection_Hide2!M307=0, Selection_Hide2!M307=\"\"), \"\", Selection_Hide2!M307)","v":""},{"$f":"IF(OR(Selection_Hide2!N307=0, Selection_Hide2!N307=\"\"), \"\", Selection_Hide2!N307)","v":""},{"$f":"IF(OR(Selection_Hide2!O307=0, Selection_Hide2!O307=\"\"), \"\", Selection_Hide2!O307)","v":""},{"$f":"IF(OR(Selection_Hide2!P307=0, Selection_Hide2!P307=\"\"), \"\", Selection_Hide2!P307)","v":""},{"$f":"IF(OR(Selection_Hide2!Q307=0, Selection_Hide2!Q307=\"\"), \"\", Selection_Hide2!Q307)","v":""},{"$f":"IF(OR(Selection_Hide2!R307=0, Selection_Hide2!R307=\"\"), \"\", Selection_Hide2!R307)","v":""},{"$f":"IF(OR(Selection_Hide2!S307=0, Selection_Hide2!S307=\"\"), \"\", Selection_Hide2!S307)","v":""},{"$f":"IF(OR(Selection_Hide2!T307=0, Selection_Hide2!T307=\"\"), \"\", Selection_Hide2!T307)","v":""},{"$f":"IF(OR(Selection_Hide2!U307=0, Selection_Hide2!U307=\"\"), \"\", Selection_Hide2!U307)","v":""},{"$f":"IF(OR(Selection_Hide2!V307=0, Selection_Hide2!V307=\"\"), \"\", Selection_Hide2!V307)","v":""},{"$f":"IF(OR(Selection_Hide2!W307=0, Selection_Hide2!W307=\"\"), \"\", Selection_Hide2!W307)","v":""},{"$f":"IF(OR(Selection_Hide2!X307=0, Selection_Hide2!X307=\"\"), \"\", Selection_Hide2!X307)","v":""},{"$f":"IF(OR(Selection_Hide2!Y307=0, Selection_Hide2!Y307=\"\"), \"\", Selection_Hide2!Y307)","v":""},{"$f":"IF(OR(Selection_Hide2!Z307=0, Selection_Hide2!Z307=\"\"), \"\", Selection_Hide2!Z307)","v":""},{"$f":"IF(OR(Selection_Hide2!AA307=0, Selection_Hide2!AA307=\"\"), \"\", Selection_Hide2!AA307)","v":""},{"$f":"IF(OR(Selection_Hide2!AB307=0, Selection_Hide2!AB307=\"\"), \"\", Selection_Hide2!AB307)","v":""}]
[{"$f":"IF(OR(Selection_Hide2!A308=0, Selection_Hide2!A308=\"\"), \"\", Selection_Hide2!A308)","v":""},{"$f":"IF(OR(Selection_Hide2!B308=0, Selection_Hide2!B308=\"\"), \"\", Selection_Hide2!B308)","v":""},{"$f":"IF(OR(Selection_Hide2!C308=0, Selection_Hide2!C308=\"\"), \"\", Selection_Hide2!C308)","v":""},{"$f":"IF(OR(Selection_Hide2!D308=0, Selection_Hide2!D308=\"\"), \"\", Selection_Hide2!D308)","v":""},{"$f":"IF(OR(Selection_Hide2!E308=0, Selection_Hide2!E308=\"\"), \"\", Selection_Hide2!E308)","v":""},{"$f":"IF(OR(Selection_Hide2!F308=0, Selection_Hide2!F308=\"\"), \"\", Selection_Hide2!F308)","v":""},{"$f":"IF(OR(Selection_Hide2!G308=0, Selection_Hide2!G308=\"\"), \"\", Selection_Hide2!G308)","v":""},{"$f":"IF(OR(Selection_Hide2!H308=0, Selection_Hide2!H308=\"\"), \"\", Selection_Hide2!H308)","v":""},{"$f":"IF(OR(Selection_Hide2!I308=0, Selection_Hide2!I308=\"\"), \"\", Selection_Hide2!I308)","v":""},{"$f":"IF(OR(Selection_Hide2!J308=0, Selection_Hide2!J308=\"\"), \"\", Selection_Hide2!J308)","v":""},{"$f":"IF(OR(Selection_Hide2!K308=0, Selection_Hide2!K308=\"\"), \"\", Selection_Hide2!K308)","v":""},{"$f":"IF(OR(Selection_Hide2!L308=0, Selection_Hide2!L308=\"\"), \"\", Selection_Hide2!L308)","v":""},{"$f":"IF(OR(Selection_Hide2!M308=0, Selection_Hide2!M308=\"\"), \"\", Selection_Hide2!M308)","v":""},{"$f":"IF(OR(Selection_Hide2!N308=0, Selection_Hide2!N308=\"\"), \"\", Selection_Hide2!N308)","v":""},{"$f":"IF(OR(Selection_Hide2!O308=0, Selection_Hide2!O308=\"\"), \"\", Selection_Hide2!O308)","v":""},{"$f":"IF(OR(Selection_Hide2!P308=0, Selection_Hide2!P308=\"\"), \"\", Selection_Hide2!P308)","v":""},{"$f":"IF(OR(Selection_Hide2!Q308=0, Selection_Hide2!Q308=\"\"), \"\", Selection_Hide2!Q308)","v":""},{"$f":"IF(OR(Selection_Hide2!R308=0, Selection_Hide2!R308=\"\"), \"\", Selection_Hide2!R308)","v":""},{"$f":"IF(OR(Selection_Hide2!S308=0, Selection_Hide2!S308=\"\"), \"\", Selection_Hide2!S308)","v":""},{"$f":"IF(OR(Selection_Hide2!T308=0, Selection_Hide2!T308=\"\"), \"\", Selection_Hide2!T308)","v":""},{"$f":"IF(OR(Selection_Hide2!U308=0, Selection_Hide2!U308=\"\"), \"\", Selection_Hide2!U308)","v":""},{"$f":"IF(OR(Selection_Hide2!V308=0, Selection_Hide2!V308=\"\"), \"\", Selection_Hide2!V308)","v":""},{"$f":"IF(OR(Selection_Hide2!W308=0, Selection_Hide2!W308=\"\"), \"\", Selection_Hide2!W308)","v":""},{"$f":"IF(OR(Selection_Hide2!X308=0, Selection_Hide2!X308=\"\"), \"\", Selection_Hide2!X308)","v":""},{"$f":"IF(OR(Selection_Hide2!Y308=0, Selection_Hide2!Y308=\"\"), \"\", Selection_Hide2!Y308)","v":""},{"$f":"IF(OR(Selection_Hide2!Z308=0, Selection_Hide2!Z308=\"\"), \"\", Selection_Hide2!Z308)","v":""},{"$f":"IF(OR(Selection_Hide2!AA308=0, Selection_Hide2!AA308=\"\"), \"\", Selection_Hide2!AA308)","v":""},{"$f":"IF(OR(Selection_Hide2!AB308=0, Selection_Hide2!AB308=\"\"), \"\", Selection_Hide2!AB308)","v":""}]
[{"$f":"IF(OR(Selection_Hide2!A309=0, Selection_Hide2!A309=\"\"), \"\", Selection_Hide2!A309)","v":""},{"$f":"IF(OR(Selection_Hide2!B309=0, Selection_Hide2!B309=\"\"), \"\", Selection_Hide2!B309)","v":""},{"$f":"IF(OR(Selection_Hide2!C309=0, Selection_Hide2!C309=\"\"), \"\", Selection_Hide2!C309)","v":""},{"$f":"IF(OR(Selection_Hide2!D309=0, Selection_Hide2!D309=\"\"), \"\", Selection_Hide2!D309)","v":""},{"$f":"IF(OR(Selection_Hide2!E309=0, Selection_Hide2!E309=\"\"), \"\", Selection_Hide2!E309)","v":""},{"$f":"IF(OR(Selection_Hide2!F309=0, Selection_Hide2!F309=\"\"), \"\", Selection_Hide2!F309)","v":""},{"$f":"IF(OR(Selection_Hide2!G309=0, Selection_Hide2!G309=\"\"), \"\", Selection_Hide2!G309)","v":""},{"$f":"IF(OR(Selection_Hide2!H309=0, Selection_Hide2!H309=\"\"), \"\", Selection_Hide2!H309)","v":""},{"$f":"IF(OR(Selection_Hide2!I309=0, Selection_Hide2!I309=\"\"), \"\", Selection_Hide2!I309)","v":""},{"$f":"IF(OR(Selection_Hide2!J309=0, Selection_Hide2!J309=\"\"), \"\", Selection_Hide2!J309)","v":""},{"$f":"IF(OR(Selection_Hide2!K309=0, Selection_Hide2!K309=\"\"), \"\", Selection_Hide2!K309)","v":""},{"$f":"IF(OR(Selection_Hide2!L309=0, Selection_Hide2!L309=\"\"), \"\", Selection_Hide2!L309)","v":""},{"$f":"IF(OR(Selection_Hide2!M309=0, Selection_Hide2!M309=\"\"), \"\", Selection_Hide2!M309)","v":""},{"$f":"IF(OR(Selection_Hide2!N309=0, Selection_Hide2!N309=\"\"), \"\", Selection_Hide2!N309)","v":""},{"$f":"IF(OR(Selection_Hide2!O309=0, Selection_Hide2!O309=\"\"), \"\", Selection_Hide2!O309)","v":""},{"$f":"IF(OR(Selection_Hide2!P309=0, Selection_Hide2!P309=\"\"), \"\", Selection_Hide2!P309)","v":""},{"$f":"IF(OR(Selection_Hide2!Q309=0, Selection_Hide2!Q309=\"\"), \"\", Selection_Hide2!Q309)","v":""},{"$f":"IF(OR(Selection_Hide2!R309=0, Selection_Hide2!R309=\"\"), \"\", Selection_Hide2!R309)","v":""},{"$f":"IF(OR(Selection_Hide2!S309=0, Selection_Hide2!S309=\"\"), \"\", Selection_Hide2!S309)","v":""},{"$f":"IF(OR(Selection_Hide2!T309=0, Selection_Hide2!T309=\"\"), \"\", Selection_Hide2!T309)","v":""},{"$f":"IF(OR(Selection_Hide2!U309=0, Selection_Hide2!U309=\"\"), \"\", Selection_Hide2!U309)","v":""},{"$f":"IF(OR(Selection_Hide2!V309=0, Selection_Hide2!V309=\"\"), \"\", Selection_Hide2!V309)","v":""},{"$f":"IF(OR(Selection_Hide2!W309=0, Selection_Hide2!W309=\"\"), \"\", Selection_Hide2!W309)","v":""},{"$f":"IF(OR(Selection_Hide2!X309=0, Selection_Hide2!X309=\"\"), \"\", Selection_Hide2!X309)","v":""},{"$f":"IF(OR(Selection_Hide2!Y309=0, Selection_Hide2!Y309=\"\"), \"\", Selection_Hide2!Y309)","v":""},{"$f":"IF(OR(Selection_Hide2!Z309=0, Selection_Hide2!Z309=\"\"), \"\", Selection_Hide2!Z309)","v":""},{"$f":"IF(OR(Selection_Hide2!AA309=0, Selection_Hide2!AA309=\"\"), \"\", Selection_Hide2!AA309)","v":""},{"$f":"IF(OR(Selection_Hide2!AB309=0, Selection_Hide2!AB309=\"\"), \"\", Selection_Hide2!AB309)","v":""}]
[{"$f":"IF(OR(Selection_Hide2!A310=0, Selection_Hide2!A310=\"\"), \"\", Selection_Hide2!A310)","v":""},{"$f":"IF(OR(Selection_Hide2!B310=0, Selection_Hide2!B310=\"\"), \"\", Selection_Hide2!B310)","v":""},{"$f":"IF(OR(Selection_Hide2!C310=0, Selection_Hide2!C310=\"\"), \"\", Selection_Hide2!C310)","v":""},{"$f":"IF(OR(Selection_Hide2!D310=0, Selection_Hide2!D310=\"\"), \"\", Selection_Hide2!D310)","v":""},{"$f":"IF(OR(Selection_Hide2!E310=0, Selection_Hide2!E310=\"\"), \"\", Selection_Hide2!E310)","v":""},{"$f":"IF(OR(Selection_Hide2!F310=0, Selection_Hide2!F310=\"\"), \"\", Selection_Hide2!F310)","v":""},{"$f":"IF(OR(Selection_Hide2!G310=0, Selection_Hide2!G310=\"\"), \"\", Selection_Hide2!G310)","v":""},{"$f":"IF(OR(Selection_Hide2!H310=0, Selection_Hide2!H310=\"\"), \"\", Selection_Hide2!H310)","v":""},{"$f":"IF(OR(Selection_Hide2!I310=0, Selection_Hide2!I310=\"\"), \"\", Selection_Hide2!I310)","v":""},{"$f":"IF(OR(Selection_Hide2!J310=0, Selection_Hide2!J310=\"\"), \"\", Selection_Hide2!J310)","v":""},{"$f":"IF(OR(Selection_Hide2!K310=0, Selection_Hide2!K310=\"\"), \"\", Selection_Hide2!K310)","v":""},{"$f":"IF(OR(Selection_Hide2!L310=0, Selection_Hide2!L310=\"\"), \"\", Selection_Hide2!L310)","v":""},{"$f":"IF(OR(Selection_Hide2!M310=0, Selection_Hide2!M310=\"\"), \"\", Selection_Hide2!M310)","v":""},{"$f":"IF(OR(Selection_Hide2!N310=0, Selection_Hide2!N310=\"\"), \"\", Selection_Hide2!N310)","v":""},{"$f":"IF(OR(Selection_Hide2!O310=0, Selection_Hide2!O310=\"\"), \"\", Selection_Hide2!O310)","v":""},{"$f":"IF(OR(Selection_Hide2!P310=0, Selection_Hide2!P310=\"\"), \"\", Selection_Hide2!P310)","v":""},{"$f":"IF(OR(Selection_Hide2!Q310=0, Selection_Hide2!Q310=\"\"), \"\", Selection_Hide2!Q310)","v":""},{"$f":"IF(OR(Selection_Hide2!R310=0, Selection_Hide2!R310=\"\"), \"\", Selection_Hide2!R310)","v":""},{"$f":"IF(OR(Selection_Hide2!S310=0, Selection_Hide2!S310=\"\"), \"\", Selection_Hide2!S310)","v":""},{"$f":"IF(OR(Selection_Hide2!T310=0, Selection_Hide2!T310=\"\"), \"\", Selection_Hide2!T310)","v":""},{"$f":"IF(OR(Selection_Hide2!U310=0, Selection_Hide2!U310=\"\"), \"\", Selection_Hide2!U310)","v":""},{"$f":"IF(OR(Selection_Hide2!V310=0, Selection_Hide2!V310=\"\"), \"\", Selection_Hide2!V310)","v":""},{"$f":"IF(OR(Selection_Hide2!W310=0, Selection_Hide2!W310=\"\"), \"\", Selection_Hide2!W310)","v":""},{"$f":"IF(OR(Selection_Hide2!X310=0, Selection_Hide2!X310=\"\"), \"\", Selection_Hide2!X310)","v":""},{"$f":"IF(OR(Selection_Hide2!Y310=0, Selection_Hide2!Y310=\"\"), \"\", Selection_Hide2!Y310)","v":""},{"$f":"IF(OR(Selection_Hide2!Z310=0, Selection_Hide2!Z310=\"\"), \"\", Selection_Hide2!Z310)","v":""},{"$f":"IF(OR(Selection_Hide2!AA310=0, Selection_Hide2!AA310=\"\"), \"\", Selection_Hide2!AA310)","v":""},{"$f":"IF(OR(Selection_Hide2!AB310=0, Selection_Hide2!AB310=\"\"), \"\", Selection_Hide2!AB310)","v":""}]
[{"$f":"IF(OR(Selection_Hide2!A311=0, Selection_Hide2!A311=\"\"), \"\", Selection_Hide2!A311)","v":""},{"$f":"IF(OR(Selection_Hide2!B311=0, Selection_Hide2!B311=\"\"), \"\", Selection_Hide2!B311)","v":""},{"$f":"IF(OR(Selection_Hide2!C311=0, Selection_Hide2!C311=\"\"), \"\", Selection_Hide2!C311)","v":""},{"$f":"IF(OR(Selection_Hide2!D311=0, Selection_Hide2!D311=\"\"), \"\", Selection_Hide2!D311)","v":""},{"$f":"IF(OR(Selection_Hide2!E311=0, Selection_Hide2!E311=\"\"), \"\", Selection_Hide2!E311)","v":""},{"$f":"IF(OR(Selection_Hide2!F311=0, Selection_Hide2!F311=\"\"), \"\", Selection_Hide2!F311)","v":""},{"$f":"IF(OR(Selection_Hide2!G311=0, Selection_Hide2!G311=\"\"), \"\", Selection_Hide2!G311)","v":""},{"$f":"IF(OR(Selection_Hide2!H311=0, Selection_Hide2!H311=\"\"), \"\", Selection_Hide2!H311)","v":""},{"$f":"IF(OR(Selection_Hide2!I311=0, Selection_Hide2!I311=\"\"), \"\", Selection_Hide2!I311)","v":""},{"$f":"IF(OR(Selection_Hide2!J311=0, Selection_Hide2!J311=\"\"), \"\", Selection_Hide2!J311)","v":""},{"$f":"IF(OR(Selection_Hide2!K311=0, Selection_Hide2!K311=\"\"), \"\", Selection_Hide2!K311)","v":""},{"$f":"IF(OR(Selection_Hide2!L311=0, Selection_Hide2!L311=\"\"), \"\", Selection_Hide2!L311)","v":""},{"$f":"IF(OR(Selection_Hide2!M311=0, Selection_Hide2!M311=\"\"), \"\", Selection_Hide2!M311)","v":""},{"$f":"IF(OR(Selection_Hide2!N311=0, Selection_Hide2!N311=\"\"), \"\", Selection_Hide2!N311)","v":""},{"$f":"IF(OR(Selection_Hide2!O311=0, Selection_Hide2!O311=\"\"), \"\", Selection_Hide2!O311)","v":""},{"$f":"IF(OR(Selection_Hide2!P311=0, Selection_Hide2!P311=\"\"), \"\", Selection_Hide2!P311)","v":""},{"$f":"IF(OR(Selection_Hide2!Q311=0, Selection_Hide2!Q311=\"\"), \"\", Selection_Hide2!Q311)","v":""},{"$f":"IF(OR(Selection_Hide2!R311=0, Selection_Hide2!R311=\"\"), \"\", Selection_Hide2!R311)","v":""},{"$f":"IF(OR(Selection_Hide2!S311=0, Selection_Hide2!S311=\"\"), \"\", Selection_Hide2!S311)","v":""},{"$f":"IF(OR(Selection_Hide2!T311=0, Selection_Hide2!T311=\"\"), \"\", Selection_Hide2!T311)","v":""},{"$f":"IF(OR(Selection_Hide2!U311=0, Selection_Hide2!U311=\"\"), \"\", Selection_Hide2!U311)","v":""},{"$f":"IF(OR(Selection_Hide2!V311=0, Selection_Hide2!V311=\"\"), \"\", Selection_Hide2!V311)","v":""},{"$f":"IF(OR(Selection_Hide2!W311=0, Selection_Hide2!W311=\"\"), \"\", Selection_Hide2!W311)","v":""},{"$f":"IF(OR(Selection_Hide2!X311=0, Selection_Hide2!X311=\"\"), \"\", Selection_Hide2!X311)","v":""},{"$f":"IF(OR(Selection_Hide2!Y311=0, Selection_Hide2!Y311=\"\"), \"\", Selection_Hide2!Y311)","v":""},{"$f":"IF(OR(Selection_Hide2!Z311=0, Selection_Hide2!Z311=\"\"), \"\", Selection_Hide2!Z311)","v":""},{"$f":"IF(OR(Selection_Hide2!AA311=0, Selection_Hide2!AA311=\"\"), \"\", Selection_Hide2!AA311)","v":""},{"$f":"IF(OR(Selection_Hide2!AB311=0, Selection_Hide2!AB311=\"\"), \"\", Selection_Hide2!AB311)","v":""}]
[{"$f":"IF(OR(Selection_Hide2!A312=0, Selection_Hide2!A312=\"\"), \"\", Selection_Hide2!A312)","v":""},{"$f":"IF(OR(Selection_Hide2!B312=0, Selection_Hide2!B312=\"\"), \"\", Selection_Hide2!B312)","v":""},{"$f":"IF(OR(Selection_Hide2!C312=0, Selection_Hide2!C312=\"\"), \"\", Selection_Hide2!C312)","v":""},{"$f":"IF(OR(Selection_Hide2!D312=0, Selection_Hide2!D312=\"\"), \"\", Selection_Hide2!D312)","v":""},{"$f":"IF(OR(Selection_Hide2!E312=0, Selection_Hide2!E312=\"\"), \"\", Selection_Hide2!E312)","v":""},{"$f":"IF(OR(Selection_Hide2!F312=0, Selection_Hide2!F312=\"\"), \"\", Selection_Hide2!F312)","v":""},{"$f":"IF(OR(Selection_Hide2!G312=0, Selection_Hide2!G312=\"\"), \"\", Selection_Hide2!G312)","v":""},{"$f":"IF(OR(Selection_Hide2!H312=0, Selection_Hide2!H312=\"\"), \"\", Selection_Hide2!H312)","v":""},{"$f":"IF(OR(Selection_Hide2!I312=0, Selection_Hide2!I312=\"\"), \"\", Selection_Hide2!I312)","v":""},{"$f":"IF(OR(Selection_Hide2!J312=0, Selection_Hide2!J312=\"\"), \"\", Selection_Hide2!J312)","v":""},{"$f":"IF(OR(Selection_Hide2!K312=0, Selection_Hide2!K312=\"\"), \"\", Selection_Hide2!K312)","v":""},{"$f":"IF(OR(Selection_Hide2!L312=0, Selection_Hide2!L312=\"\"), \"\", Selection_Hide2!L312)","v":""},{"$f":"IF(OR(Selection_Hide2!M312=0, Selection_Hide2!M312=\"\"), \"\", Selection_Hide2!M312)","v":""},{"$f":"IF(OR(Selection_Hide2!N312=0, Selection_Hide2!N312=\"\"), \"\", Selection_Hide2!N312)","v":""},{"$f":"IF(OR(Selection_Hide2!O312=0, Selection_Hide2!O312=\"\"), \"\", Selection_Hide2!O312)","v":""},{"$f":"IF(OR(Selection_Hide2!P312=0, Selection_Hide2!P312=\"\"), \"\", Selection_Hide2!P312)","v":""},{"$f":"IF(OR(Selection_Hide2!Q312=0, Selection_Hide2!Q312=\"\"), \"\", Selection_Hide2!Q312)","v":""},{"$f":"IF(OR(Selection_Hide2!R312=0, Selection_Hide2!R312=\"\"), \"\", Selection_Hide2!R312)","v":""},{"$f":"IF(OR(Selection_Hide2!S312=0, Selection_Hide2!S312=\"\"), \"\", Selection_Hide2!S312)","v":""},{"$f":"IF(OR(Selection_Hide2!T312=0, Selection_Hide2!T312=\"\"), \"\", Selection_Hide2!T312)","v":""},{"$f":"IF(OR(Selection_Hide2!U312=0, Selection_Hide2!U312=\"\"), \"\", Selection_Hide2!U312)","v":""},{"$f":"IF(OR(Selection_Hide2!V312=0, Selection_Hide2!V312=\"\"), \"\", Selection_Hide2!V312)","v":""},{"$f":"IF(OR(Selection_Hide2!W312=0, Selection_Hide2!W312=\"\"), \"\", Selection_Hide2!W312)","v":""},{"$f":"IF(OR(Selection_Hide2!X312=0, Selection_Hide2!X312=\"\"), \"\", Selection_Hide2!X312)","v":""},{"$f":"IF(OR(Selection_Hide2!Y312=0, Selection_Hide2!Y312=\"\"), \"\", Selection_Hide2!Y312)","v":""},{"$f":"IF(OR(Selection_Hide2!Z312=0, Selection_Hide2!Z312=\"\"), \"\", Selection_Hide2!Z312)","v":""},{"$f":"IF(OR(Selection_Hide2!AA312=0, Selection_Hide2!AA312=\"\"), \"\", Selection_Hide2!AA312)","v":""},{"$f":"IF(OR(Selection_Hide2!AB312=0, Selection_Hide2!AB312=\"\"), \"\", Selection_Hide2!AB312)","v":""}]
[{"$f":"IF(OR(Selection_Hide2!A313=0, Selection_Hide2!A313=\"\"), \"\", Selection_Hide2!A313)","v":""},{"$f":"IF(OR(Selection_Hide2!B313=0, Selection_Hide2!B313=\"\"), \"\", Selection_Hide2!B313)","v":""},{"$f":"IF(OR(Selection_Hide2!C313=0, Selection_Hide2!C313=\"\"), \"\", Selection_Hide2!C313)","v":""},{"$f":"IF(OR(Selection_Hide2!D313=0, Selection_Hide2!D313=\"\"), \"\", Selection_Hide2!D313)","v":""},{"$f":"IF(OR(Selection_Hide2!E313=0, Selection_Hide2!E313=\"\"), \"\", Selection_Hide2!E313)","v":""},{"$f":"IF(OR(Selection_Hide2!F313=0, Selection_Hide2!F313=\"\"), \"\", Selection_Hide2!F313)","v":""},{"$f":"IF(OR(Selection_Hide2!G313=0, Selection_Hide2!G313=\"\"), \"\", Selection_Hide2!G313)","v":""},{"$f":"IF(OR(Selection_Hide2!H313=0, Selection_Hide2!H313=\"\"), \"\", Selection_Hide2!H313)","v":""},{"$f":"IF(OR(Selection_Hide2!I313=0, Selection_Hide2!I313=\"\"), \"\", Selection_Hide2!I313)","v":""},{"$f":"IF(OR(Selection_Hide2!J313=0, Selection_Hide2!J313=\"\"), \"\", Selection_Hide2!J313)","v":""},{"$f":"IF(OR(Selection_Hide2!K313=0, Selection_Hide2!K313=\"\"), \"\", Selection_Hide2!K313)","v":""},{"$f":"IF(OR(Selection_Hide2!L313=0, Selection_Hide2!L313=\"\"), \"\", Selection_Hide2!L313)","v":""},{"$f":"IF(OR(Selection_Hide2!M313=0, Selection_Hide2!M313=\"\"), \"\", Selection_Hide2!M313)","v":""},{"$f":"IF(OR(Selection_Hide2!N313=0, Selection_Hide2!N313=\"\"), \"\", Selection_Hide2!N313)","v":""},{"$f":"IF(OR(Selection_Hide2!O313=0, Selection_Hide2!O313=\"\"), \"\", Selection_Hide2!O313)","v":""},{"$f":"IF(OR(Selection_Hide2!P313=0, Selection_Hide2!P313=\"\"), \"\", Selection_Hide2!P313)","v":""},{"$f":"IF(OR(Selection_Hide2!Q313=0, Selection_Hide2!Q313=\"\"), \"\", Selection_Hide2!Q313)","v":""},{"$f":"IF(OR(Selection_Hide2!R313=0, Selection_Hide2!R313=\"\"), \"\", Selection_Hide2!R313)","v":""},{"$f":"IF(OR(Selection_Hide2!S313=0, Selection_Hide2!S313=\"\"), \"\", Selection_Hide2!S313)","v":""},{"$f":"IF(OR(Selection_Hide2!T313=0, Selection_Hide2!T313=\"\"), \"\", Selection_Hide2!T313)","v":""},{"$f":"IF(OR(Selection_Hide2!U313=0, Selection_Hide2!U313=\"\"), \"\", Selection_Hide2!U313)","v":""},{"$f":"IF(OR(Selection_Hide2!V313=0, Selection_Hide2!V313=\"\"), \"\", Selection_Hide2!V313)","v":""},{"$f":"IF(OR(Selection_Hide2!W313=0, Selection_Hide2!W313=\"\"), \"\", Selection_Hide2!W313)","v":""},{"$f":"IF(OR(Selection_Hide2!X313=0, Selection_Hide2!X313=\"\"), \"\", Selection_Hide2!X313)","v":""},{"$f":"IF(OR(Selection_Hide2!Y313=0, Selection_Hide2!Y313=\"\"), \"\", Selection_Hide2!Y313)","v":""},{"$f":"IF(OR(Selection_Hide2!Z313=0, Selection_Hide2!Z313=\"\"), \"\", Selection_Hide2!Z313)","v":""},{"$f":"IF(OR(Selection_Hide2!AA313=0, Selection_Hide2!AA313=\"\"), \"\", Selection_Hide2!AA313)","v":""},{"$f":"IF(OR(Selection_Hide2!AB313=0, Selection_Hide2!AB313=\"\"), \"\", Selection_Hide2!AB313)","v":""}]
[{"$f":"IF(OR(Selection_Hide2!A314=0, Selection_Hide2!A314=\"\"), \"\", Selection_Hide2!A314)","v":""},{"$f":"IF(OR(Selection_Hide2!B314=0, Selection_Hide2!B314=\"\"), \"\", Selection_Hide2!B314)","v":""},{"$f":"IF(OR(Selection_Hide2!C314=0, Selection_Hide2!C314=\"\"), \"\", Selection_Hide2!C314)","v":""},{"$f":"IF(OR(Selection_Hide2!D314=0, Selection_Hide2!D314=\"\"), \"\", Selection_Hide2!D314)","v":""},{"$f":"IF(OR(Selection_Hide2!E314=0, Selection_Hide2!E314=\"\"), \"\", Selection_Hide2!E314)","v":""},{"$f":"IF(OR(Selection_Hide2!F314=0, Selection_Hide2!F314=\"\"), \"\", Selection_Hide2!F314)","v":""},{"$f":"IF(OR(Selection_Hide2!G314=0, Selection_Hide2!G314=\"\"), \"\", Selection_Hide2!G314)","v":""},{"$f":"IF(OR(Selection_Hide2!H314=0, Selection_Hide2!H314=\"\"), \"\", Selection_Hide2!H314)","v":""},{"$f":"IF(OR(Selection_Hide2!I314=0, Selection_Hide2!I314=\"\"), \"\", Selection_Hide2!I314)","v":""},{"$f":"IF(OR(Selection_Hide2!J314=0, Selection_Hide2!J314=\"\"), \"\", Selection_Hide2!J314)","v":""},{"$f":"IF(OR(Selection_Hide2!K314=0, Selection_Hide2!K314=\"\"), \"\", Selection_Hide2!K314)","v":""},{"$f":"IF(OR(Selection_Hide2!L314=0, Selection_Hide2!L314=\"\"), \"\", Selection_Hide2!L314)","v":""},{"$f":"IF(OR(Selection_Hide2!M314=0, Selection_Hide2!M314=\"\"), \"\", Selection_Hide2!M314)","v":""},{"$f":"IF(OR(Selection_Hide2!N314=0, Selection_Hide2!N314=\"\"), \"\", Selection_Hide2!N314)","v":""},{"$f":"IF(OR(Selection_Hide2!O314=0, Selection_Hide2!O314=\"\"), \"\", Selection_Hide2!O314)","v":""},{"$f":"IF(OR(Selection_Hide2!P314=0, Selection_Hide2!P314=\"\"), \"\", Selection_Hide2!P314)","v":""},{"$f":"IF(OR(Selection_Hide2!Q314=0, Selection_Hide2!Q314=\"\"), \"\", Selection_Hide2!Q314)","v":""},{"$f":"IF(OR(Selection_Hide2!R314=0, Selection_Hide2!R314=\"\"), \"\", Selection_Hide2!R314)","v":""},{"$f":"IF(OR(Selection_Hide2!S314=0, Selection_Hide2!S314=\"\"), \"\", Selection_Hide2!S314)","v":""},{"$f":"IF(OR(Selection_Hide2!T314=0, Selection_Hide2!T314=\"\"), \"\", Selection_Hide2!T314)","v":""},{"$f":"IF(OR(Selection_Hide2!U314=0, Selection_Hide2!U314=\"\"), \"\", Selection_Hide2!U314)","v":""},{"$f":"IF(OR(Selection_Hide2!V314=0, Selection_Hide2!V314=\"\"), \"\", Selection_Hide2!V314)","v":""},{"$f":"IF(OR(Selection_Hide2!W314=0, Selection_Hide2!W314=\"\"), \"\", Selection_Hide2!W314)","v":""},{"$f":"IF(OR(Selection_Hide2!X314=0, Selection_Hide2!X314=\"\"), \"\", Selection_Hide2!X314)","v":""},{"$f":"IF(OR(Selection_Hide2!Y314=0, Selection_Hide2!Y314=\"\"), \"\", Selection_Hide2!Y314)","v":""},{"$f":"IF(OR(Selection_Hide2!Z314=0, Selection_Hide2!Z314=\"\"), \"\", Selection_Hide2!Z314)","v":""},{"$f":"IF(OR(Selection_Hide2!AA314=0, Selection_Hide2!AA314=\"\"), \"\", Selection_Hide2!AA314)","v":""},{"$f":"IF(OR(Selection_Hide2!AB314=0, Selection_Hide2!AB314=\"\"), \"\", Selection_Hide2!AB314)","v":""}]
[{"$f":"IF(OR(Selection_Hide2!A315=0, Selection_Hide2!A315=\"\"), \"\", Selection_Hide2!A315)","v":""},{"$f":"IF(OR(Selection_Hide2!B315=0, Selection_Hide2!B315=\"\"), \"\", Selection_Hide2!B315)","v":""},{"$f":"IF(OR(Selection_Hide2!C315=0, Selection_Hide2!C315=\"\"), \"\", Selection_Hide2!C315)","v":""},{"$f":"IF(OR(Selection_Hide2!D315=0, Selection_Hide2!D315=\"\"), \"\", Selection_Hide2!D315)","v":""},{"$f":"IF(OR(Selection_Hide2!E315=0, Selection_Hide2!E315=\"\"), \"\", Selection_Hide2!E315)","v":""},{"$f":"IF(OR(Selection_Hide2!F315=0, Selection_Hide2!F315=\"\"), \"\", Selection_Hide2!F315)","v":""},{"$f":"IF(OR(Selection_Hide2!G315=0, Selection_Hide2!G315=\"\"), \"\", Selection_Hide2!G315)","v":""},{"$f":"IF(OR(Selection_Hide2!H315=0, Selection_Hide2!H315=\"\"), \"\", Selection_Hide2!H315)","v":""},{"$f":"IF(OR(Selection_Hide2!I315=0, Selection_Hide2!I315=\"\"), \"\", Selection_Hide2!I315)","v":""},{"$f":"IF(OR(Selection_Hide2!J315=0, Selection_Hide2!J315=\"\"), \"\", Selection_Hide2!J315)","v":""},{"$f":"IF(OR(Selection_Hide2!K315=0, Selection_Hide2!K315=\"\"), \"\", Selection_Hide2!K315)","v":""},{"$f":"IF(OR(Selection_Hide2!L315=0, Selection_Hide2!L315=\"\"), \"\", Selection_Hide2!L315)","v":""},{"$f":"IF(OR(Selection_Hide2!M315=0, Selection_Hide2!M315=\"\"), \"\", Selection_Hide2!M315)","v":""},{"$f":"IF(OR(Selection_Hide2!N315=0, Selection_Hide2!N315=\"\"), \"\", Selection_Hide2!N315)","v":""},{"$f":"IF(OR(Selection_Hide2!O315=0, Selection_Hide2!O315=\"\"), \"\", Selection_Hide2!O315)","v":""},{"$f":"IF(OR(Selection_Hide2!P315=0, Selection_Hide2!P315=\"\"), \"\", Selection_Hide2!P315)","v":""},{"$f":"IF(OR(Selection_Hide2!Q315=0, Selection_Hide2!Q315=\"\"), \"\", Selection_Hide2!Q315)","v":""},{"$f":"IF(OR(Selection_Hide2!R315=0, Selection_Hide2!R315=\"\"), \"\", Selection_Hide2!R315)","v":""},{"$f":"IF(OR(Selection_Hide2!S315=0, Selection_Hide2!S315=\"\"), \"\", Selection_Hide2!S315)","v":""},{"$f":"IF(OR(Selection_Hide2!T315=0, Selection_Hide2!T315=\"\"), \"\", Selection_Hide2!T315)","v":""},{"$f":"IF(OR(Selection_Hide2!U315=0, Selection_Hide2!U315=\"\"), \"\", Selection_Hide2!U315)","v":""},{"$f":"IF(OR(Selection_Hide2!V315=0, Selection_Hide2!V315=\"\"), \"\", Selection_Hide2!V315)","v":""},{"$f":"IF(OR(Selection_Hide2!W315=0, Selection_Hide2!W315=\"\"), \"\", Selection_Hide2!W315)","v":""},{"$f":"IF(OR(Selection_Hide2!X315=0, Selection_Hide2!X315=\"\"), \"\", Selection_Hide2!X315)","v":""},{"$f":"IF(OR(Selection_Hide2!Y315=0, Selection_Hide2!Y315=\"\"), \"\", Selection_Hide2!Y315)","v":""},{"$f":"IF(OR(Selection_Hide2!Z315=0, Selection_Hide2!Z315=\"\"), \"\", Selection_Hide2!Z315)","v":""},{"$f":"IF(OR(Selection_Hide2!AA315=0, Selection_Hide2!AA315=\"\"), \"\", Selection_Hide2!AA315)","v":""},{"$f":"IF(OR(Selection_Hide2!AB315=0, Selection_Hide2!AB315=\"\"), \"\", Selection_Hide2!AB315)","v":""}]
[{"$f":"IF(OR(Selection_Hide2!A316=0, Selection_Hide2!A316=\"\"), \"\", Selection_Hide2!A316)","v":""},{"$f":"IF(OR(Selection_Hide2!B316=0, Selection_Hide2!B316=\"\"), \"\", Selection_Hide2!B316)","v":""},{"$f":"IF(OR(Selection_Hide2!C316=0, Selection_Hide2!C316=\"\"), \"\", Selection_Hide2!C316)","v":""},{"$f":"IF(OR(Selection_Hide2!D316=0, Selection_Hide2!D316=\"\"), \"\", Selection_Hide2!D316)","v":""},{"$f":"IF(OR(Selection_Hide2!E316=0, Selection_Hide2!E316=\"\"), \"\", Selection_Hide2!E316)","v":""},{"$f":"IF(OR(Selection_Hide2!F316=0, Selection_Hide2!F316=\"\"), \"\", Selection_Hide2!F316)","v":""},{"$f":"IF(OR(Selection_Hide2!G316=0, Selection_Hide2!G316=\"\"), \"\", Selection_Hide2!G316)","v":""},{"$f":"IF(OR(Selection_Hide2!H316=0, Selection_Hide2!H316=\"\"), \"\", Selection_Hide2!H316)","v":""},{"$f":"IF(OR(Selection_Hide2!I316=0, Selection_Hide2!I316=\"\"), \"\", Selection_Hide2!I316)","v":""},{"$f":"IF(OR(Selection_Hide2!J316=0, Selection_Hide2!J316=\"\"), \"\", Selection_Hide2!J316)","v":""},{"$f":"IF(OR(Selection_Hide2!K316=0, Selection_Hide2!K316=\"\"), \"\", Selection_Hide2!K316)","v":""},{"$f":"IF(OR(Selection_Hide2!L316=0, Selection_Hide2!L316=\"\"), \"\", Selection_Hide2!L316)","v":""},{"$f":"IF(OR(Selection_Hide2!M316=0, Selection_Hide2!M316=\"\"), \"\", Selection_Hide2!M316)","v":""},{"$f":"IF(OR(Selection_Hide2!N316=0, Selection_Hide2!N316=\"\"), \"\", Selection_Hide2!N316)","v":""},{"$f":"IF(OR(Selection_Hide2!O316=0, Selection_Hide2!O316=\"\"), \"\", Selection_Hide2!O316)","v":""},{"$f":"IF(OR(Selection_Hide2!P316=0, Selection_Hide2!P316=\"\"), \"\", Selection_Hide2!P316)","v":""},{"$f":"IF(OR(Selection_Hide2!Q316=0, Selection_Hide2!Q316=\"\"), \"\", Selection_Hide2!Q316)","v":""},{"$f":"IF(OR(Selection_Hide2!R316=0, Selection_Hide2!R316=\"\"), \"\", Selection_Hide2!R316)","v":""},{"$f":"IF(OR(Selection_Hide2!S316=0, Selection_Hide2!S316=\"\"), \"\", Selection_Hide2!S316)","v":""},{"$f":"IF(OR(Selection_Hide2!T316=0, Selection_Hide2!T316=\"\"), \"\", Selection_Hide2!T316)","v":""},{"$f":"IF(OR(Selection_Hide2!U316=0, Selection_Hide2!U316=\"\"), \"\", Selection_Hide2!U316)","v":""},{"$f":"IF(OR(Selection_Hide2!V316=0, Selection_Hide2!V316=\"\"), \"\", Selection_Hide2!V316)","v":""},{"$f":"IF(OR(Selection_Hide2!W316=0, Selection_Hide2!W316=\"\"), \"\", Selection_Hide2!W316)","v":""},{"$f":"IF(OR(Selection_Hide2!X316=0, Selection_Hide2!X316=\"\"), \"\", Selection_Hide2!X316)","v":""},{"$f":"IF(OR(Selection_Hide2!Y316=0, Selection_Hide2!Y316=\"\"), \"\", Selection_Hide2!Y316)","v":""},{"$f":"IF(OR(Selection_Hide2!Z316=0, Selection_Hide2!Z316=\"\"), \"\", Selection_Hide2!Z316)","v":""},{"$f":"IF(OR(Selection_Hide2!AA316=0, Selection_Hide2!AA316=\"\"), \"\", Selection_Hide2!AA316)","v":""},{"$f":"IF(OR(Selection_Hide2!AB316=0, Selection_Hide2!AB316=\"\"), \"\", Selection_Hide2!AB316)","v":""}]
[{"$f":"IF(OR(Selection_Hide2!A317=0, Selection_Hide2!A317=\"\"), \"\", Selection_Hide2!A317)","v":""},{"$f":"IF(OR(Selection_Hide2!B317=0, Selection_Hide2!B317=\"\"), \"\", Selection_Hide2!B317)","v":""},{"$f":"IF(OR(Selection_Hide2!C317=0, Selection_Hide2!C317=\"\"), \"\", Selection_Hide2!C317)","v":""},{"$f":"IF(OR(Selection_Hide2!D317=0, Selection_Hide2!D317=\"\"), \"\", Selection_Hide2!D317)","v":""},{"$f":"IF(OR(Selection_Hide2!E317=0, Selection_Hide2!E317=\"\"), \"\", Selection_Hide2!E317)","v":""},{"$f":"IF(OR(Selection_Hide2!F317=0, Selection_Hide2!F317=\"\"), \"\", Selection_Hide2!F317)","v":""},{"$f":"IF(OR(Selection_Hide2!G317=0, Selection_Hide2!G317=\"\"), \"\", Selection_Hide2!G317)","v":""},{"$f":"IF(OR(Selection_Hide2!H317=0, Selection_Hide2!H317=\"\"), \"\", Selection_Hide2!H317)","v":""},{"$f":"IF(OR(Selection_Hide2!I317=0, Selection_Hide2!I317=\"\"), \"\", Selection_Hide2!I317)","v":""},{"$f":"IF(OR(Selection_Hide2!J317=0, Selection_Hide2!J317=\"\"), \"\", Selection_Hide2!J317)","v":""},{"$f":"IF(OR(Selection_Hide2!K317=0, Selection_Hide2!K317=\"\"), \"\", Selection_Hide2!K317)","v":""},{"$f":"IF(OR(Selection_Hide2!L317=0, Selection_Hide2!L317=\"\"), \"\", Selection_Hide2!L317)","v":""},{"$f":"IF(OR(Selection_Hide2!M317=0, Selection_Hide2!M317=\"\"), \"\", Selection_Hide2!M317)","v":""},{"$f":"IF(OR(Selection_Hide2!N317=0, Selection_Hide2!N317=\"\"), \"\", Selection_Hide2!N317)","v":""},{"$f":"IF(OR(Selection_Hide2!O317=0, Selection_Hide2!O317=\"\"), \"\", Selection_Hide2!O317)","v":""},{"$f":"IF(OR(Selection_Hide2!P317=0, Selection_Hide2!P317=\"\"), \"\", Selection_Hide2!P317)","v":""},{"$f":"IF(OR(Selection_Hide2!Q317=0, Selection_Hide2!Q317=\"\"), \"\", Selection_Hide2!Q317)","v":""},{"$f":"IF(OR(Selection_Hide2!R317=0, Selection_Hide2!R317=\"\"), \"\", Selection_Hide2!R317)","v":""},{"$f":"IF(OR(Selection_Hide2!S317=0, Selection_Hide2!S317=\"\"), \"\", Selection_Hide2!S317)","v":""},{"$f":"IF(OR(Selection_Hide2!T317=0, Selection_Hide2!T317=\"\"), \"\", Selection_Hide2!T317)","v":""},{"$f":"IF(OR(Selection_Hide2!U317=0, Selection_Hide2!U317=\"\"), \"\", Selection_Hide2!U317)","v":""},{"$f":"IF(OR(Selection_Hide2!V317=0, Selection_Hide2!V317=\"\"), \"\", Selection_Hide2!V317)","v":""},{"$f":"IF(OR(Selection_Hide2!W317=0, Selection_Hide2!W317=\"\"), \"\", Selection_Hide2!W317)","v":""},{"$f":"IF(OR(Selection_Hide2!X317=0, Selection_Hide2!X317=\"\"), \"\", Selection_Hide2!X317)","v":""},{"$f":"IF(OR(Selection_Hide2!Y317=0, Selection_Hide2!Y317=\"\"), \"\", Selection_Hide2!Y317)","v":""},{"$f":"IF(OR(Selection_Hide2!Z317=0, Selection_Hide2!Z317=\"\"), \"\", Selection_Hide2!Z317)","v":""},{"$f":"IF(OR(Selection_Hide2!AA317=0, Selection_Hide2!AA317=\"\"), \"\", Selection_Hide2!AA317)","v":""},{"$f":"IF(OR(Selection_Hide2!AB317=0, Selection_Hide2!AB317=\"\"), \"\", Selection_Hide2!AB317)","v":""}]
[{"$f":"IF(OR(Selection_Hide2!A318=0, Selection_Hide2!A318=\"\"), \"\", Selection_Hide2!A318)","v":""},{"$f":"IF(OR(Selection_Hide2!B318=0, Selection_Hide2!B318=\"\"), \"\", Selection_Hide2!B318)","v":""},{"$f":"IF(OR(Selection_Hide2!C318=0, Selection_Hide2!C318=\"\"), \"\", Selection_Hide2!C318)","v":""},{"$f":"IF(OR(Selection_Hide2!D318=0, Selection_Hide2!D318=\"\"), \"\", Selection_Hide2!D318)","v":""},{"$f":"IF(OR(Selection_Hide2!E318=0, Selection_Hide2!E318=\"\"), \"\", Selection_Hide2!E318)","v":""},{"$f":"IF(OR(Selection_Hide2!F318=0, Selection_Hide2!F318=\"\"), \"\", Selection_Hide2!F318)","v":""},{"$f":"IF(OR(Selection_Hide2!G318=0, Selection_Hide2!G318=\"\"), \"\", Selection_Hide2!G318)","v":""},{"$f":"IF(OR(Selection_Hide2!H318=0, Selection_Hide2!H318=\"\"), \"\", Selection_Hide2!H318)","v":""},{"$f":"IF(OR(Selection_Hide2!I318=0, Selection_Hide2!I318=\"\"), \"\", Selection_Hide2!I318)","v":""},{"$f":"IF(OR(Selection_Hide2!J318=0, Selection_Hide2!J318=\"\"), \"\", Selection_Hide2!J318)","v":""},{"$f":"IF(OR(Selection_Hide2!K318=0, Selection_Hide2!K318=\"\"), \"\", Selection_Hide2!K318)","v":""},{"$f":"IF(OR(Selection_Hide2!L318=0, Selection_Hide2!L318=\"\"), \"\", Selection_Hide2!L318)","v":""},{"$f":"IF(OR(Selection_Hide2!M318=0, Selection_Hide2!M318=\"\"), \"\", Selection_Hide2!M318)","v":""},{"$f":"IF(OR(Selection_Hide2!N318=0, Selection_Hide2!N318=\"\"), \"\", Selection_Hide2!N318)","v":""},{"$f":"IF(OR(Selection_Hide2!O318=0, Selection_Hide2!O318=\"\"), \"\", Selection_Hide2!O318)","v":""},{"$f":"IF(OR(Selection_Hide2!P318=0, Selection_Hide2!P318=\"\"), \"\", Selection_Hide2!P318)","v":""},{"$f":"IF(OR(Selection_Hide2!Q318=0, Selection_Hide2!Q318=\"\"), \"\", Selection_Hide2!Q318)","v":""},{"$f":"IF(OR(Selection_Hide2!R318=0, Selection_Hide2!R318=\"\"), \"\", Selection_Hide2!R318)","v":""},{"$f":"IF(OR(Selection_Hide2!S318=0, Selection_Hide2!S318=\"\"), \"\", Selection_Hide2!S318)","v":""},{"$f":"IF(OR(Selection_Hide2!T318=0, Selection_Hide2!T318=\"\"), \"\", Selection_Hide2!T318)","v":""},{"$f":"IF(OR(Selection_Hide2!U318=0, Selection_Hide2!U318=\"\"), \"\", Selection_Hide2!U318)","v":""},{"$f":"IF(OR(Selection_Hide2!V318=0, Selection_Hide2!V318=\"\"), \"\", Selection_Hide2!V318)","v":""},{"$f":"IF(OR(Selection_Hide2!W318=0, Selection_Hide2!W318=\"\"), \"\", Selection_Hide2!W318)","v":""},{"$f":"IF(OR(Selection_Hide2!X318=0, Selection_Hide2!X318=\"\"), \"\", Selection_Hide2!X318)","v":""},{"$f":"IF(OR(Selection_Hide2!Y318=0, Selection_Hide2!Y318=\"\"), \"\", Selection_Hide2!Y318)","v":""},{"$f":"IF(OR(Selection_Hide2!Z318=0, Selection_Hide2!Z318=\"\"), \"\", Selection_Hide2!Z318)","v":""},{"$f":"IF(OR(Selection_Hide2!AA318=0, Selection_Hide2!AA318=\"\"), \"\", Selection_Hide2!AA318)","v":""},{"$f":"IF(OR(Selection_Hide2!AB318=0, Selection_Hide2!AB318=\"\"), \"\", Selection_Hide2!AB318)","v":""}]
[{"$f":"IF(OR(Selection_Hide2!A319=0, Selection_Hide2!A319=\"\"), \"\", Selection_Hide2!A319)","v":""},{"$f":"IF(OR(Selection_Hide2!B319=0, Selection_Hide2!B319=\"\"), \"\", Selection_Hide2!B319)","v":""},{"$f":"IF(OR(Selection_Hide2!C319=0, Selection_Hide2!C319=\"\"), \"\", Selection_Hide2!C319)","v":""},{"$f":"IF(OR(Selection_Hide2!D319=0, Selection_Hide2!D319=\"\"), \"\", Selection_Hide2!D319)","v":""},{"$f":"IF(OR(Selection_Hide2!E319=0, Selection_Hide2!E319=\"\"), \"\", Selection_Hide2!E319)","v":""},{"$f":"IF(OR(Selection_Hide2!F319=0, Selection_Hide2!F319=\"\"), \"\", Selection_Hide2!F319)","v":""},{"$f":"IF(OR(Selection_Hide2!G319=0, Selection_Hide2!G319=\"\"), \"\", Selection_Hide2!G319)","v":""},{"$f":"IF(OR(Selection_Hide2!H319=0, Selection_Hide2!H319=\"\"), \"\", Selection_Hide2!H319)","v":""},{"$f":"IF(OR(Selection_Hide2!I319=0, Selection_Hide2!I319=\"\"), \"\", Selection_Hide2!I319)","v":""},{"$f":"IF(OR(Selection_Hide2!J319=0, Selection_Hide2!J319=\"\"), \"\", Selection_Hide2!J319)","v":""},{"$f":"IF(OR(Selection_Hide2!K319=0, Selection_Hide2!K319=\"\"), \"\", Selection_Hide2!K319)","v":""},{"$f":"IF(OR(Selection_Hide2!L319=0, Selection_Hide2!L319=\"\"), \"\", Selection_Hide2!L319)","v":""},{"$f":"IF(OR(Selection_Hide2!M319=0, Selection_Hide2!M319=\"\"), \"\", Selection_Hide2!M319)","v":""},{"$f":"IF(OR(Selection_Hide2!N319=0, Selection_Hide2!N319=\"\"), \"\", Selection_Hide2!N319)","v":""},{"$f":"IF(OR(Selection_Hide2!O319=0, Selection_Hide2!O319=\"\"), \"\", Selection_Hide2!O319)","v":""},{"$f":"IF(OR(Selection_Hide2!P319=0, Selection_Hide2!P319=\"\"), \"\", Selection_Hide2!P319)","v":""},{"$f":"IF(OR(Selection_Hide2!Q319=0, Selection_Hide2!Q319=\"\"), \"\", Selection_Hide2!Q319)","v":""},{"$f":"IF(OR(Selection_Hide2!R319=0, Selection_Hide2!R319=\"\"), \"\", Selection_Hide2!R319)","v":""},{"$f":"IF(OR(Selection_Hide2!S319=0, Selection_Hide2!S319=\"\"), \"\", Selection_Hide2!S319)","v":""},{"$f":"IF(OR(Selection_Hide2!T319=0, Selection_Hide2!T319=\"\"), \"\", Selection_Hide2!T319)","v":""},{"$f":"IF(OR(Selection_Hide2!U319=0, Selection_Hide2!U319=\"\"), \"\", Selection_Hide2!U319)","v":""},{"$f":"IF(OR(Selection_Hide2!V319=0, Selection_Hide2!V319=\"\"), \"\", Selection_Hide2!V319)","v":""},{"$f":"IF(OR(Selection_Hide2!W319=0, Selection_Hide2!W319=\"\"), \"\", Selection_Hide2!W319)","v":""},{"$f":"IF(OR(Selection_Hide2!X319=0, Selection_Hide2!X319=\"\"), \"\", Selection_Hide2!X319)","v":""},{"$f":"IF(OR(Selection_Hide2!Y319=0, Selection_Hide2!Y319=\"\"), \"\", Selection_Hide2!Y319)","v":""},{"$f":"IF(OR(Selection_Hide2!Z319=0, Selection_Hide2!Z319=\"\"), \"\", Selection_Hide2!Z319)","v":""},{"$f":"IF(OR(Selection_Hide2!AA319=0, Selection_Hide2!AA319=\"\"), \"\", Selection_Hide2!AA319)","v":""},{"$f":"IF(OR(Selection_Hide2!AB319=0, Selection_Hide2!AB319=\"\"), \"\", Selection_Hide2!AB319)","v":""}]
[{"$f":"IF(OR(Selection_Hide2!A320=0, Selection_Hide2!A320=\"\"), \"\", Selection_Hide2!A320)","v":""},{"$f":"IF(OR(Selection_Hide2!B320=0, Selection_Hide2!B320=\"\"), \"\", Selection_Hide2!B320)","v":""},{"$f":"IF(OR(Selection_Hide2!C320=0, Selection_Hide2!C320=\"\"), \"\", Selection_Hide2!C320)","v":""},{"$f":"IF(OR(Selection_Hide2!D320=0, Selection_Hide2!D320=\"\"), \"\", Selection_Hide2!D320)","v":""},{"$f":"IF(OR(Selection_Hide2!E320=0, Selection_Hide2!E320=\"\"), \"\", Selection_Hide2!E320)","v":""},{"$f":"IF(OR(Selection_Hide2!F320=0, Selection_Hide2!F320=\"\"), \"\", Selection_Hide2!F320)","v":""},{"$f":"IF(OR(Selection_Hide2!G320=0, Selection_Hide2!G320=\"\"), \"\", Selection_Hide2!G320)","v":""},{"$f":"IF(OR(Selection_Hide2!H320=0, Selection_Hide2!H320=\"\"), \"\", Selection_Hide2!H320)","v":""},{"$f":"IF(OR(Selection_Hide2!I320=0, Selection_Hide2!I320=\"\"), \"\", Selection_Hide2!I320)","v":""},{"$f":"IF(OR(Selection_Hide2!J320=0, Selection_Hide2!J320=\"\"), \"\", Selection_Hide2!J320)","v":""},{"$f":"IF(OR(Selection_Hide2!K320=0, Selection_Hide2!K320=\"\"), \"\", Selection_Hide2!K320)","v":""},{"$f":"IF(OR(Selection_Hide2!L320=0, Selection_Hide2!L320=\"\"), \"\", Selection_Hide2!L320)","v":""},{"$f":"IF(OR(Selection_Hide2!M320=0, Selection_Hide2!M320=\"\"), \"\", Selection_Hide2!M320)","v":""},{"$f":"IF(OR(Selection_Hide2!N320=0, Selection_Hide2!N320=\"\"), \"\", Selection_Hide2!N320)","v":""},{"$f":"IF(OR(Selection_Hide2!O320=0, Selection_Hide2!O320=\"\"), \"\", Selection_Hide2!O320)","v":""},{"$f":"IF(OR(Selection_Hide2!P320=0, Selection_Hide2!P320=\"\"), \"\", Selection_Hide2!P320)","v":""},{"$f":"IF(OR(Selection_Hide2!Q320=0, Selection_Hide2!Q320=\"\"), \"\", Selection_Hide2!Q320)","v":""},{"$f":"IF(OR(Selection_Hide2!R320=0, Selection_Hide2!R320=\"\"), \"\", Selection_Hide2!R320)","v":""},{"$f":"IF(OR(Selection_Hide2!S320=0, Selection_Hide2!S320=\"\"), \"\", Selection_Hide2!S320)","v":""},{"$f":"IF(OR(Selection_Hide2!T320=0, Selection_Hide2!T320=\"\"), \"\", Selection_Hide2!T320)","v":""},{"$f":"IF(OR(Selection_Hide2!U320=0, Selection_Hide2!U320=\"\"), \"\", Selection_Hide2!U320)","v":""},{"$f":"IF(OR(Selection_Hide2!V320=0, Selection_Hide2!V320=\"\"), \"\", Selection_Hide2!V320)","v":""},{"$f":"IF(OR(Selection_Hide2!W320=0, Selection_Hide2!W320=\"\"), \"\", Selection_Hide2!W320)","v":""},{"$f":"IF(OR(Selection_Hide2!X320=0, Selection_Hide2!X320=\"\"), \"\", Selection_Hide2!X320)","v":""},{"$f":"IF(OR(Selection_Hide2!Y320=0, Selection_Hide2!Y320=\"\"), \"\", Selection_Hide2!Y320)","v":""},{"$f":"IF(OR(Selection_Hide2!Z320=0, Selection_Hide2!Z320=\"\"), \"\", Selection_Hide2!Z320)","v":""},{"$f":"IF(OR(Selection_Hide2!AA320=0, Selection_Hide2!AA320=\"\"), \"\", Selection_Hide2!AA320)","v":""},{"$f":"IF(OR(Selection_Hide2!AB320=0, Selection_Hide2!AB320=\"\"), \"\", Selection_Hide2!AB320)","v":""}]
[{"$f":"IF(OR(Selection_Hide2!A321=0, Selection_Hide2!A321=\"\"), \"\", Selection_Hide2!A321)","v":""},{"$f":"IF(OR(Selection_Hide2!B321=0, Selection_Hide2!B321=\"\"), \"\", Selection_Hide2!B321)","v":""},{"$f":"IF(OR(Selection_Hide2!C321=0, Selection_Hide2!C321=\"\"), \"\", Selection_Hide2!C321)","v":""},{"$f":"IF(OR(Selection_Hide2!D321=0, Selection_Hide2!D321=\"\"), \"\", Selection_Hide2!D321)","v":""},{"$f":"IF(OR(Selection_Hide2!E321=0, Selection_Hide2!E321=\"\"), \"\", Selection_Hide2!E321)","v":""},{"$f":"IF(OR(Selection_Hide2!F321=0, Selection_Hide2!F321=\"\"), \"\", Selection_Hide2!F321)","v":""},{"$f":"IF(OR(Selection_Hide2!G321=0, Selection_Hide2!G321=\"\"), \"\", Selection_Hide2!G321)","v":""},{"$f":"IF(OR(Selection_Hide2!H321=0, Selection_Hide2!H321=\"\"), \"\", Selection_Hide2!H321)","v":""},{"$f":"IF(OR(Selection_Hide2!I321=0, Selection_Hide2!I321=\"\"), \"\", Selection_Hide2!I321)","v":""},{"$f":"IF(OR(Selection_Hide2!J321=0, Selection_Hide2!J321=\"\"), \"\", Selection_Hide2!J321)","v":""},{"$f":"IF(OR(Selection_Hide2!K321=0, Selection_Hide2!K321=\"\"), \"\", Selection_Hide2!K321)","v":""},{"$f":"IF(OR(Selection_Hide2!L321=0, Selection_Hide2!L321=\"\"), \"\", Selection_Hide2!L321)","v":""},{"$f":"IF(OR(Selection_Hide2!M321=0, Selection_Hide2!M321=\"\"), \"\", Selection_Hide2!M321)","v":""},{"$f":"IF(OR(Selection_Hide2!N321=0, Selection_Hide2!N321=\"\"), \"\", Selection_Hide2!N321)","v":""},{"$f":"IF(OR(Selection_Hide2!O321=0, Selection_Hide2!O321=\"\"), \"\", Selection_Hide2!O321)","v":""},{"$f":"IF(OR(Selection_Hide2!P321=0, Selection_Hide2!P321=\"\"), \"\", Selection_Hide2!P321)","v":""},{"$f":"IF(OR(Selection_Hide2!Q321=0, Selection_Hide2!Q321=\"\"), \"\", Selection_Hide2!Q321)","v":""},{"$f":"IF(OR(Selection_Hide2!R321=0, Selection_Hide2!R321=\"\"), \"\", Selection_Hide2!R321)","v":""},{"$f":"IF(OR(Selection_Hide2!S321=0, Selection_Hide2!S321=\"\"), \"\", Selection_Hide2!S321)","v":""},{"$f":"IF(OR(Selection_Hide2!T321=0, Selection_Hide2!T321=\"\"), \"\", Selection_Hide2!T321)","v":""},{"$f":"IF(OR(Selection_Hide2!U321=0, Selection_Hide2!U321=\"\"), \"\", Selection_Hide2!U321)","v":""},{"$f":"IF(OR(Selection_Hide2!V321=0, Selection_Hide2!V321=\"\"), \"\", Selection_Hide2!V321)","v":""},{"$f":"IF(OR(Selection_Hide2!W321=0, Selection_Hide2!W321=\"\"), \"\", Selection_Hide2!W321)","v":""},{"$f":"IF(OR(Selection_Hide2!X321=0, Selection_Hide2!X321=\"\"), \"\", Selection_Hide2!X321)","v":""},{"$f":"IF(OR(Selection_Hide2!Y321=0, Selection_Hide2!Y321=\"\"), \"\", Selection_Hide2!Y321)","v":""},{"$f":"IF(OR(Selection_Hide2!Z321=0, Selection_Hide2!Z321=\"\"), \"\", Selection_Hide2!Z321)","v":""},{"$f":"IF(OR(Selection_Hide2!AA321=0, Selection_Hide2!AA321=\"\"), \"\", Selection_Hide2!AA321)","v":""},{"$f":"IF(OR(Selection_Hide2!AB321=0, Selection_Hide2!AB321=\"\"), \"\", Selection_Hide2!AB321)","v":""}]
[{"$f":"IF(OR(Selection_Hide2!A322=0, Selection_Hide2!A322=\"\"), \"\", Selection_Hide2!A322)","v":""},{"$f":"IF(OR(Selection_Hide2!B322=0, Selection_Hide2!B322=\"\"), \"\", Selection_Hide2!B322)","v":""},{"$f":"IF(OR(Selection_Hide2!C322=0, Selection_Hide2!C322=\"\"), \"\", Selection_Hide2!C322)","v":""},{"$f":"IF(OR(Selection_Hide2!D322=0, Selection_Hide2!D322=\"\"), \"\", Selection_Hide2!D322)","v":""},{"$f":"IF(OR(Selection_Hide2!E322=0, Selection_Hide2!E322=\"\"), \"\", Selection_Hide2!E322)","v":""},{"$f":"IF(OR(Selection_Hide2!F322=0, Selection_Hide2!F322=\"\"), \"\", Selection_Hide2!F322)","v":""},{"$f":"IF(OR(Selection_Hide2!G322=0, Selection_Hide2!G322=\"\"), \"\", Selection_Hide2!G322)","v":""},{"$f":"IF(OR(Selection_Hide2!H322=0, Selection_Hide2!H322=\"\"), \"\", Selection_Hide2!H322)","v":""},{"$f":"IF(OR(Selection_Hide2!I322=0, Selection_Hide2!I322=\"\"), \"\", Selection_Hide2!I322)","v":""},{"$f":"IF(OR(Selection_Hide2!J322=0, Selection_Hide2!J322=\"\"), \"\", Selection_Hide2!J322)","v":""},{"$f":"IF(OR(Selection_Hide2!K322=0, Selection_Hide2!K322=\"\"), \"\", Selection_Hide2!K322)","v":""},{"$f":"IF(OR(Selection_Hide2!L322=0, Selection_Hide2!L322=\"\"), \"\", Selection_Hide2!L322)","v":""},{"$f":"IF(OR(Selection_Hide2!M322=0, Selection_Hide2!M322=\"\"), \"\", Selection_Hide2!M322)","v":""},{"$f":"IF(OR(Selection_Hide2!N322=0, Selection_Hide2!N322=\"\"), \"\", Selection_Hide2!N322)","v":""},{"$f":"IF(OR(Selection_Hide2!O322=0, Selection_Hide2!O322=\"\"), \"\", Selection_Hide2!O322)","v":""},{"$f":"IF(OR(Selection_Hide2!P322=0, Selection_Hide2!P322=\"\"), \"\", Selection_Hide2!P322)","v":""},{"$f":"IF(OR(Selection_Hide2!Q322=0, Selection_Hide2!Q322=\"\"), \"\", Selection_Hide2!Q322)","v":""},{"$f":"IF(OR(Selection_Hide2!R322=0, Selection_Hide2!R322=\"\"), \"\", Selection_Hide2!R322)","v":""},{"$f":"IF(OR(Selection_Hide2!S322=0, Selection_Hide2!S322=\"\"), \"\", Selection_Hide2!S322)","v":""},{"$f":"IF(OR(Selection_Hide2!T322=0, Selection_Hide2!T322=\"\"), \"\", Selection_Hide2!T322)","v":""},{"$f":"IF(OR(Selection_Hide2!U322=0, Selection_Hide2!U322=\"\"), \"\", Selection_Hide2!U322)","v":""},{"$f":"IF(OR(Selection_Hide2!V322=0, Selection_Hide2!V322=\"\"), \"\", Selection_Hide2!V322)","v":""},{"$f":"IF(OR(Selection_Hide2!W322=0, Selection_Hide2!W322=\"\"), \"\", Selection_Hide2!W322)","v":""},{"$f":"IF(OR(Selection_Hide2!X322=0, Selection_Hide2!X322=\"\"), \"\", Selection_Hide2!X322)","v":""},{"$f":"IF(OR(Selection_Hide2!Y322=0, Selection_Hide2!Y322=\"\"), \"\", Selection_Hide2!Y322)","v":""},{"$f":"IF(OR(Selection_Hide2!Z322=0, Selection_Hide2!Z322=\"\"), \"\", Selection_Hide2!Z322)","v":""},{"$f":"IF(OR(Selection_Hide2!AA322=0, Selection_Hide2!AA322=\"\"), \"\", Selection_Hide2!AA322)","v":""},{"$f":"IF(OR(Selection_Hide2!AB322=0, Selection_Hide2!AB322=\"\"), \"\", Selection_Hide2!AB322)","v":""}]
[{"$f":"IF(OR(Selection_Hide2!A323=0, Selection_Hide2!A323=\"\"), \"\", Selection_Hide2!A323)","v":""},{"$f":"IF(OR(Selection_Hide2!B323=0, Selection_Hide2!B323=\"\"), \"\", Selection_Hide2!B323)","v":""},{"$f":"IF(OR(Selection_Hide2!C323=0, Selection_Hide2!C323=\"\"), \"\", Selection_Hide2!C323)","v":""},{"$f":"IF(OR(Selection_Hide2!D323=0, Selection_Hide2!D323=\"\"), \"\", Selection_Hide2!D323)","v":""},{"$f":"IF(OR(Selection_Hide2!E323=0, Selection_Hide2!E323=\"\"), \"\", Selection_Hide2!E323)","v":""},{"$f":"IF(OR(Selection_Hide2!F323=0, Selection_Hide2!F323=\"\"), \"\", Selection_Hide2!F323)","v":""},{"$f":"IF(OR(Selection_Hide2!G323=0, Selection_Hide2!G323=\"\"), \"\", Selection_Hide2!G323)","v":""},{"$f":"IF(OR(Selection_Hide2!H323=0, Selection_Hide2!H323=\"\"), \"\", Selection_Hide2!H323)","v":""},{"$f":"IF(OR(Selection_Hide2!I323=0, Selection_Hide2!I323=\"\"), \"\", Selection_Hide2!I323)","v":""},{"$f":"IF(OR(Selection_Hide2!J323=0, Selection_Hide2!J323=\"\"), \"\", Selection_Hide2!J323)","v":""},{"$f":"IF(OR(Selection_Hide2!K323=0, Selection_Hide2!K323=\"\"), \"\", Selection_Hide2!K323)","v":""},{"$f":"IF(OR(Selection_Hide2!L323=0, Selection_Hide2!L323=\"\"), \"\", Selection_Hide2!L323)","v":""},{"$f":"IF(OR(Selection_Hide2!M323=0, Selection_Hide2!M323=\"\"), \"\", Selection_Hide2!M323)","v":""},{"$f":"IF(OR(Selection_Hide2!N323=0, Selection_Hide2!N323=\"\"), \"\", Selection_Hide2!N323)","v":""},{"$f":"IF(OR(Selection_Hide2!O323=0, Selection_Hide2!O323=\"\"), \"\", Selection_Hide2!O323)","v":""},{"$f":"IF(OR(Selection_Hide2!P323=0, Selection_Hide2!P323=\"\"), \"\", Selection_Hide2!P323)","v":""},{"$f":"IF(OR(Selection_Hide2!Q323=0, Selection_Hide2!Q323=\"\"), \"\", Selection_Hide2!Q323)","v":""},{"$f":"IF(OR(Selection_Hide2!R323=0, Selection_Hide2!R323=\"\"), \"\", Selection_Hide2!R323)","v":""},{"$f":"IF(OR(Selection_Hide2!S323=0, Selection_Hide2!S323=\"\"), \"\", Selection_Hide2!S323)","v":""},{"$f":"IF(OR(Selection_Hide2!T323=0, Selection_Hide2!T323=\"\"), \"\", Selection_Hide2!T323)","v":""},{"$f":"IF(OR(Selection_Hide2!U323=0, Selection_Hide2!U323=\"\"), \"\", Selection_Hide2!U323)","v":""},{"$f":"IF(OR(Selection_Hide2!V323=0, Selection_Hide2!V323=\"\"), \"\", Selection_Hide2!V323)","v":""},{"$f":"IF(OR(Selection_Hide2!W323=0, Selection_Hide2!W323=\"\"), \"\", Selection_Hide2!W323)","v":""},{"$f":"IF(OR(Selection_Hide2!X323=0, Selection_Hide2!X323=\"\"), \"\", Selection_Hide2!X323)","v":""},{"$f":"IF(OR(Selection_Hide2!Y323=0, Selection_Hide2!Y323=\"\"), \"\", Selection_Hide2!Y323)","v":""},{"$f":"IF(OR(Selection_Hide2!Z323=0, Selection_Hide2!Z323=\"\"), \"\", Selection_Hide2!Z323)","v":""},{"$f":"IF(OR(Selection_Hide2!AA323=0, Selection_Hide2!AA323=\"\"), \"\", Selection_Hide2!AA323)","v":""},{"$f":"IF(OR(Selection_Hide2!AB323=0, Selection_Hide2!AB323=\"\"), \"\", Selection_Hide2!AB323)","v":""}]
[{"$f":"IF(OR(Selection_Hide2!A324=0, Selection_Hide2!A324=\"\"), \"\", Selection_Hide2!A324)","v":""},{"$f":"IF(OR(Selection_Hide2!B324=0, Selection_Hide2!B324=\"\"), \"\", Selection_Hide2!B324)","v":""},{"$f":"IF(OR(Selection_Hide2!C324=0, Selection_Hide2!C324=\"\"), \"\", Selection_Hide2!C324)","v":""},{"$f":"IF(OR(Selection_Hide2!D324=0, Selection_Hide2!D324=\"\"), \"\", Selection_Hide2!D324)","v":""},{"$f":"IF(OR(Selection_Hide2!E324=0, Selection_Hide2!E324=\"\"), \"\", Selection_Hide2!E324)","v":""},{"$f":"IF(OR(Selection_Hide2!F324=0, Selection_Hide2!F324=\"\"), \"\", Selection_Hide2!F324)","v":""},{"$f":"IF(OR(Selection_Hide2!G324=0, Selection_Hide2!G324=\"\"), \"\", Selection_Hide2!G324)","v":""},{"$f":"IF(OR(Selection_Hide2!H324=0, Selection_Hide2!H324=\"\"), \"\", Selection_Hide2!H324)","v":""},{"$f":"IF(OR(Selection_Hide2!I324=0, Selection_Hide2!I324=\"\"), \"\", Selection_Hide2!I324)","v":""},{"$f":"IF(OR(Selection_Hide2!J324=0, Selection_Hide2!J324=\"\"), \"\", Selection_Hide2!J324)","v":""},{"$f":"IF(OR(Selection_Hide2!K324=0, Selection_Hide2!K324=\"\"), \"\", Selection_Hide2!K324)","v":""},{"$f":"IF(OR(Selection_Hide2!L324=0, Selection_Hide2!L324=\"\"), \"\", Selection_Hide2!L324)","v":""},{"$f":"IF(OR(Selection_Hide2!M324=0, Selection_Hide2!M324=\"\"), \"\", Selection_Hide2!M324)","v":""},{"$f":"IF(OR(Selection_Hide2!N324=0, Selection_Hide2!N324=\"\"), \"\", Selection_Hide2!N324)","v":""},{"$f":"IF(OR(Selection_Hide2!O324=0, Selection_Hide2!O324=\"\"), \"\", Selection_Hide2!O324)","v":""},{"$f":"IF(OR(Selection_Hide2!P324=0, Selection_Hide2!P324=\"\"), \"\", Selection_Hide2!P324)","v":""},{"$f":"IF(OR(Selection_Hide2!Q324=0, Selection_Hide2!Q324=\"\"), \"\", Selection_Hide2!Q324)","v":""},{"$f":"IF(OR(Selection_Hide2!R324=0, Selection_Hide2!R324=\"\"), \"\", Selection_Hide2!R324)","v":""},{"$f":"IF(OR(Selection_Hide2!S324=0, Selection_Hide2!S324=\"\"), \"\", Selection_Hide2!S324)","v":""},{"$f":"IF(OR(Selection_Hide2!T324=0, Selection_Hide2!T324=\"\"), \"\", Selection_Hide2!T324)","v":""},{"$f":"IF(OR(Selection_Hide2!U324=0, Selection_Hide2!U324=\"\"), \"\", Selection_Hide2!U324)","v":""},{"$f":"IF(OR(Selection_Hide2!V324=0, Selection_Hide2!V324=\"\"), \"\", Selection_Hide2!V324)","v":""},{"$f":"IF(OR(Selection_Hide2!W324=0, Selection_Hide2!W324=\"\"), \"\", Selection_Hide2!W324)","v":""},{"$f":"IF(OR(Selection_Hide2!X324=0, Selection_Hide2!X324=\"\"), \"\", Selection_Hide2!X324)","v":""},{"$f":"IF(OR(Selection_Hide2!Y324=0, Selection_Hide2!Y324=\"\"), \"\", Selection_Hide2!Y324)","v":""},{"$f":"IF(OR(Selection_Hide2!Z324=0, Selection_Hide2!Z324=\"\"), \"\", Selection_Hide2!Z324)","v":""},{"$f":"IF(OR(Selection_Hide2!AA324=0, Selection_Hide2!AA324=\"\"), \"\", Selection_Hide2!AA324)","v":""},{"$f":"IF(OR(Selection_Hide2!AB324=0, Selection_Hide2!AB324=\"\"), \"\", Selection_Hide2!AB324)","v":""}]
[{"$f":"IF(OR(Selection_Hide2!A325=0, Selection_Hide2!A325=\"\"), \"\", Selection_Hide2!A325)","v":""},{"$f":"IF(OR(Selection_Hide2!B325=0, Selection_Hide2!B325=\"\"), \"\", Selection_Hide2!B325)","v":""},{"$f":"IF(OR(Selection_Hide2!C325=0, Selection_Hide2!C325=\"\"), \"\", Selection_Hide2!C325)","v":""},{"$f":"IF(OR(Selection_Hide2!D325=0, Selection_Hide2!D325=\"\"), \"\", Selection_Hide2!D325)","v":""},{"$f":"IF(OR(Selection_Hide2!E325=0, Selection_Hide2!E325=\"\"), \"\", Selection_Hide2!E325)","v":""},{"$f":"IF(OR(Selection_Hide2!F325=0, Selection_Hide2!F325=\"\"), \"\", Selection_Hide2!F325)","v":""},{"$f":"IF(OR(Selection_Hide2!G325=0, Selection_Hide2!G325=\"\"), \"\", Selection_Hide2!G325)","v":""},{"$f":"IF(OR(Selection_Hide2!H325=0, Selection_Hide2!H325=\"\"), \"\", Selection_Hide2!H325)","v":""},{"$f":"IF(OR(Selection_Hide2!I325=0, Selection_Hide2!I325=\"\"), \"\", Selection_Hide2!I325)","v":""},{"$f":"IF(OR(Selection_Hide2!J325=0, Selection_Hide2!J325=\"\"), \"\", Selection_Hide2!J325)","v":""},{"$f":"IF(OR(Selection_Hide2!K325=0, Selection_Hide2!K325=\"\"), \"\", Selection_Hide2!K325)","v":""},{"$f":"IF(OR(Selection_Hide2!L325=0, Selection_Hide2!L325=\"\"), \"\", Selection_Hide2!L325)","v":""},{"$f":"IF(OR(Selection_Hide2!M325=0, Selection_Hide2!M325=\"\"), \"\", Selection_Hide2!M325)","v":""},{"$f":"IF(OR(Selection_Hide2!N325=0, Selection_Hide2!N325=\"\"), \"\", Selection_Hide2!N325)","v":""},{"$f":"IF(OR(Selection_Hide2!O325=0, Selection_Hide2!O325=\"\"), \"\", Selection_Hide2!O325)","v":""},{"$f":"IF(OR(Selection_Hide2!P325=0, Selection_Hide2!P325=\"\"), \"\", Selection_Hide2!P325)","v":""},{"$f":"IF(OR(Selection_Hide2!Q325=0, Selection_Hide2!Q325=\"\"), \"\", Selection_Hide2!Q325)","v":""},{"$f":"IF(OR(Selection_Hide2!R325=0, Selection_Hide2!R325=\"\"), \"\", Selection_Hide2!R325)","v":""},{"$f":"IF(OR(Selection_Hide2!S325=0, Selection_Hide2!S325=\"\"), \"\", Selection_Hide2!S325)","v":""},{"$f":"IF(OR(Selection_Hide2!T325=0, Selection_Hide2!T325=\"\"), \"\", Selection_Hide2!T325)","v":""},{"$f":"IF(OR(Selection_Hide2!U325=0, Selection_Hide2!U325=\"\"), \"\", Selection_Hide2!U325)","v":""},{"$f":"IF(OR(Selection_Hide2!V325=0, Selection_Hide2!V325=\"\"), \"\", Selection_Hide2!V325)","v":""},{"$f":"IF(OR(Selection_Hide2!W325=0, Selection_Hide2!W325=\"\"), \"\", Selection_Hide2!W325)","v":""},{"$f":"IF(OR(Selection_Hide2!X325=0, Selection_Hide2!X325=\"\"), \"\", Selection_Hide2!X325)","v":""},{"$f":"IF(OR(Selection_Hide2!Y325=0, Selection_Hide2!Y325=\"\"), \"\", Selection_Hide2!Y325)","v":""},{"$f":"IF(OR(Selection_Hide2!Z325=0, Selection_Hide2!Z325=\"\"), \"\", Selection_Hide2!Z325)","v":""},{"$f":"IF(OR(Selection_Hide2!AA325=0, Selection_Hide2!AA325=\"\"), \"\", Selection_Hide2!AA325)","v":""},{"$f":"IF(OR(Selection_Hide2!AB325=0, Selection_Hide2!AB325=\"\"), \"\", Selection_Hide2!AB325)","v":""}]
[{"$f":"IF(OR(Selection_Hide2!A326=0, Selection_Hide2!A326=\"\"), \"\", Selection_Hide2!A326)","v":""},{"$f":"IF(OR(Selection_Hide2!B326=0, Selection_Hide2!B326=\"\"), \"\", Selection_Hide2!B326)","v":""},{"$f":"IF(OR(Selection_Hide2!C326=0, Selection_Hide2!C326=\"\"), \"\", Selection_Hide2!C326)","v":""},{"$f":"IF(OR(Selection_Hide2!D326=0, Selection_Hide2!D326=\"\"), \"\", Selection_Hide2!D326)","v":""},{"$f":"IF(OR(Selection_Hide2!E326=0, Selection_Hide2!E326=\"\"), \"\", Selection_Hide2!E326)","v":""},{"$f":"IF(OR(Selection_Hide2!F326=0, Selection_Hide2!F326=\"\"), \"\", Selection_Hide2!F326)","v":""},{"$f":"IF(OR(Selection_Hide2!G326=0, Selection_Hide2!G326=\"\"), \"\", Selection_Hide2!G326)","v":""},{"$f":"IF(OR(Selection_Hide2!H326=0, Selection_Hide2!H326=\"\"), \"\", Selection_Hide2!H326)","v":""},{"$f":"IF(OR(Selection_Hide2!I326=0, Selection_Hide2!I326=\"\"), \"\", Selection_Hide2!I326)","v":""},{"$f":"IF(OR(Selection_Hide2!J326=0, Selection_Hide2!J326=\"\"), \"\", Selection_Hide2!J326)","v":""},{"$f":"IF(OR(Selection_Hide2!K326=0, Selection_Hide2!K326=\"\"), \"\", Selection_Hide2!K326)","v":""},{"$f":"IF(OR(Selection_Hide2!L326=0, Selection_Hide2!L326=\"\"), \"\", Selection_Hide2!L326)","v":""},{"$f":"IF(OR(Selection_Hide2!M326=0, Selection_Hide2!M326=\"\"), \"\", Selection_Hide2!M326)","v":""},{"$f":"IF(OR(Selection_Hide2!N326=0, Selection_Hide2!N326=\"\"), \"\", Selection_Hide2!N326)","v":""},{"$f":"IF(OR(Selection_Hide2!O326=0, Selection_Hide2!O326=\"\"), \"\", Selection_Hide2!O326)","v":""},{"$f":"IF(OR(Selection_Hide2!P326=0, Selection_Hide2!P326=\"\"), \"\", Selection_Hide2!P326)","v":""},{"$f":"IF(OR(Selection_Hide2!Q326=0, Selection_Hide2!Q326=\"\"), \"\", Selection_Hide2!Q326)","v":""},{"$f":"IF(OR(Selection_Hide2!R326=0, Selection_Hide2!R326=\"\"), \"\", Selection_Hide2!R326)","v":""},{"$f":"IF(OR(Selection_Hide2!S326=0, Selection_Hide2!S326=\"\"), \"\", Selection_Hide2!S326)","v":""},{"$f":"IF(OR(Selection_Hide2!T326=0, Selection_Hide2!T326=\"\"), \"\", Selection_Hide2!T326)","v":""},{"$f":"IF(OR(Selection_Hide2!U326=0, Selection_Hide2!U326=\"\"), \"\", Selection_Hide2!U326)","v":""},{"$f":"IF(OR(Selection_Hide2!V326=0, Selection_Hide2!V326=\"\"), \"\", Selection_Hide2!V326)","v":""},{"$f":"IF(OR(Selection_Hide2!W326=0, Selection_Hide2!W326=\"\"), \"\", Selection_Hide2!W326)","v":""},{"$f":"IF(OR(Selection_Hide2!X326=0, Selection_Hide2!X326=\"\"), \"\", Selection_Hide2!X326)","v":""},{"$f":"IF(OR(Selection_Hide2!Y326=0, Selection_Hide2!Y326=\"\"), \"\", Selection_Hide2!Y326)","v":""},{"$f":"IF(OR(Selection_Hide2!Z326=0, Selection_Hide2!Z326=\"\"), \"\", Selection_Hide2!Z326)","v":""},{"$f":"IF(OR(Selection_Hide2!AA326=0, Selection_Hide2!AA326=\"\"), \"\", Selection_Hide2!AA326)","v":""},{"$f":"IF(OR(Selection_Hide2!AB326=0, Selection_Hide2!AB326=\"\"), \"\", Selection_Hide2!AB326)","v":""}]
[{"$f":"IF(OR(Selection_Hide2!A327=0, Selection_Hide2!A327=\"\"), \"\", Selection_Hide2!A327)","v":""},{"$f":"IF(OR(Selection_Hide2!B327=0, Selection_Hide2!B327=\"\"), \"\", Selection_Hide2!B327)","v":""},{"$f":"IF(OR(Selection_Hide2!C327=0, Selection_Hide2!C327=\"\"), \"\", Selection_Hide2!C327)","v":""},{"$f":"IF(OR(Selection_Hide2!D327=0, Selection_Hide2!D327=\"\"), \"\", Selection_Hide2!D327)","v":""},{"$f":"IF(OR(Selection_Hide2!E327=0, Selection_Hide2!E327=\"\"), \"\", Selection_Hide2!E327)","v":""},{"$f":"IF(OR(Selection_Hide2!F327=0, Selection_Hide2!F327=\"\"), \"\", Selection_Hide2!F327)","v":""},{"$f":"IF(OR(Selection_Hide2!G327=0, Selection_Hide2!G327=\"\"), \"\", Selection_Hide2!G327)","v":""},{"$f":"IF(OR(Selection_Hide2!H327=0, Selection_Hide2!H327=\"\"), \"\", Selection_Hide2!H327)","v":""},{"$f":"IF(OR(Selection_Hide2!I327=0, Selection_Hide2!I327=\"\"), \"\", Selection_Hide2!I327)","v":""},{"$f":"IF(OR(Selection_Hide2!J327=0, Selection_Hide2!J327=\"\"), \"\", Selection_Hide2!J327)","v":""},{"$f":"IF(OR(Selection_Hide2!K327=0, Selection_Hide2!K327=\"\"), \"\", Selection_Hide2!K327)","v":""},{"$f":"IF(OR(Selection_Hide2!L327=0, Selection_Hide2!L327=\"\"), \"\", Selection_Hide2!L327)","v":""},{"$f":"IF(OR(Selection_Hide2!M327=0, Selection_Hide2!M327=\"\"), \"\", Selection_Hide2!M327)","v":""},{"$f":"IF(OR(Selection_Hide2!N327=0, Selection_Hide2!N327=\"\"), \"\", Selection_Hide2!N327)","v":""},{"$f":"IF(OR(Selection_Hide2!O327=0, Selection_Hide2!O327=\"\"), \"\", Selection_Hide2!O327)","v":""},{"$f":"IF(OR(Selection_Hide2!P327=0, Selection_Hide2!P327=\"\"), \"\", Selection_Hide2!P327)","v":""},{"$f":"IF(OR(Selection_Hide2!Q327=0, Selection_Hide2!Q327=\"\"), \"\", Selection_Hide2!Q327)","v":""},{"$f":"IF(OR(Selection_Hide2!R327=0, Selection_Hide2!R327=\"\"), \"\", Selection_Hide2!R327)","v":""},{"$f":"IF(OR(Selection_Hide2!S327=0, Selection_Hide2!S327=\"\"), \"\", Selection_Hide2!S327)","v":""},{"$f":"IF(OR(Selection_Hide2!T327=0, Selection_Hide2!T327=\"\"), \"\", Selection_Hide2!T327)","v":""},{"$f":"IF(OR(Selection_Hide2!U327=0, Selection_Hide2!U327=\"\"), \"\", Selection_Hide2!U327)","v":""},{"$f":"IF(OR(Selection_Hide2!V327=0, Selection_Hide2!V327=\"\"), \"\", Selection_Hide2!V327)","v":""},{"$f":"IF(OR(Selection_Hide2!W327=0, Selection_Hide2!W327=\"\"), \"\", Selection_Hide2!W327)","v":""},{"$f":"IF(OR(Selection_Hide2!X327=0, Selection_Hide2!X327=\"\"), \"\", Selection_Hide2!X327)","v":""},{"$f":"IF(OR(Selection_Hide2!Y327=0, Selection_Hide2!Y327=\"\"), \"\", Selection_Hide2!Y327)","v":""},{"$f":"IF(OR(Selection_Hide2!Z327=0, Selection_Hide2!Z327=\"\"), \"\", Selection_Hide2!Z327)","v":""},{"$f":"IF(OR(Selection_Hide2!AA327=0, Selection_Hide2!AA327=\"\"), \"\", Selection_Hide2!AA327)","v":""},{"$f":"IF(OR(Selection_Hide2!AB327=0, Selection_Hide2!AB327=\"\"), \"\", Selection_Hide2!AB327)","v":""}]
[{"$f":"IF(OR(Selection_Hide2!A328=0, Selection_Hide2!A328=\"\"), \"\", Selection_Hide2!A328)","v":""},{"$f":"IF(OR(Selection_Hide2!B328=0, Selection_Hide2!B328=\"\"), \"\", Selection_Hide2!B328)","v":""},{"$f":"IF(OR(Selection_Hide2!C328=0, Selection_Hide2!C328=\"\"), \"\", Selection_Hide2!C328)","v":""},{"$f":"IF(OR(Selection_Hide2!D328=0, Selection_Hide2!D328=\"\"), \"\", Selection_Hide2!D328)","v":""},{"$f":"IF(OR(Selection_Hide2!E328=0, Selection_Hide2!E328=\"\"), \"\", Selection_Hide2!E328)","v":""},{"$f":"IF(OR(Selection_Hide2!F328=0, Selection_Hide2!F328=\"\"), \"\", Selection_Hide2!F328)","v":""},{"$f":"IF(OR(Selection_Hide2!G328=0, Selection_Hide2!G328=\"\"), \"\", Selection_Hide2!G328)","v":""},{"$f":"IF(OR(Selection_Hide2!H328=0, Selection_Hide2!H328=\"\"), \"\", Selection_Hide2!H328)","v":""},{"$f":"IF(OR(Selection_Hide2!I328=0, Selection_Hide2!I328=\"\"), \"\", Selection_Hide2!I328)","v":""},{"$f":"IF(OR(Selection_Hide2!J328=0, Selection_Hide2!J328=\"\"), \"\", Selection_Hide2!J328)","v":""},{"$f":"IF(OR(Selection_Hide2!K328=0, Selection_Hide2!K328=\"\"), \"\", Selection_Hide2!K328)","v":""},{"$f":"IF(OR(Selection_Hide2!L328=0, Selection_Hide2!L328=\"\"), \"\", Selection_Hide2!L328)","v":""},{"$f":"IF(OR(Selection_Hide2!M328=0, Selection_Hide2!M328=\"\"), \"\", Selection_Hide2!M328)","v":""},{"$f":"IF(OR(Selection_Hide2!N328=0, Selection_Hide2!N328=\"\"), \"\", Selection_Hide2!N328)","v":""},{"$f":"IF(OR(Selection_Hide2!O328=0, Selection_Hide2!O328=\"\"), \"\", Selection_Hide2!O328)","v":""},{"$f":"IF(OR(Selection_Hide2!P328=0, Selection_Hide2!P328=\"\"), \"\", Selection_Hide2!P328)","v":""},{"$f":"IF(OR(Selection_Hide2!Q328=0, Selection_Hide2!Q328=\"\"), \"\", Selection_Hide2!Q328)","v":""},{"$f":"IF(OR(Selection_Hide2!R328=0, Selection_Hide2!R328=\"\"), \"\", Selection_Hide2!R328)","v":""},{"$f":"IF(OR(Selection_Hide2!S328=0, Selection_Hide2!S328=\"\"), \"\", Selection_Hide2!S328)","v":""},{"$f":"IF(OR(Selection_Hide2!T328=0, Selection_Hide2!T328=\"\"), \"\", Selection_Hide2!T328)","v":""},{"$f":"IF(OR(Selection_Hide2!U328=0, Selection_Hide2!U328=\"\"), \"\", Selection_Hide2!U328)","v":""},{"$f":"IF(OR(Selection_Hide2!V328=0, Selection_Hide2!V328=\"\"), \"\", Selection_Hide2!V328)","v":""},{"$f":"IF(OR(Selection_Hide2!W328=0, Selection_Hide2!W328=\"\"), \"\", Selection_Hide2!W328)","v":""},{"$f":"IF(OR(Selection_Hide2!X328=0, Selection_Hide2!X328=\"\"), \"\", Selection_Hide2!X328)","v":""},{"$f":"IF(OR(Selection_Hide2!Y328=0, Selection_Hide2!Y328=\"\"), \"\", Selection_Hide2!Y328)","v":""},{"$f":"IF(OR(Selection_Hide2!Z328=0, Selection_Hide2!Z328=\"\"), \"\", Selection_Hide2!Z328)","v":""},{"$f":"IF(OR(Selection_Hide2!AA328=0, Selection_Hide2!AA328=\"\"), \"\", Selection_Hide2!AA328)","v":""},{"$f":"IF(OR(Selection_Hide2!AB328=0, Selection_Hide2!AB328=\"\"), \"\", Selection_Hide2!AB328)","v":""}]
[{"$f":"IF(OR(Selection_Hide2!A329=0, Selection_Hide2!A329=\"\"), \"\", Selection_Hide2!A329)","v":""},{"$f":"IF(OR(Selection_Hide2!B329=0, Selection_Hide2!B329=\"\"), \"\", Selection_Hide2!B329)","v":""},{"$f":"IF(OR(Selection_Hide2!C329=0, Selection_Hide2!C329=\"\"), \"\", Selection_Hide2!C329)","v":""},{"$f":"IF(OR(Selection_Hide2!D329=0, Selection_Hide2!D329=\"\"), \"\", Selection_Hide2!D329)","v":""},{"$f":"IF(OR(Selection_Hide2!E329=0, Selection_Hide2!E329=\"\"), \"\", Selection_Hide2!E329)","v":""},{"$f":"IF(OR(Selection_Hide2!F329=0, Selection_Hide2!F329=\"\"), \"\", Selection_Hide2!F329)","v":""},{"$f":"IF(OR(Selection_Hide2!G329=0, Selection_Hide2!G329=\"\"), \"\", Selection_Hide2!G329)","v":""},{"$f":"IF(OR(Selection_Hide2!H329=0, Selection_Hide2!H329=\"\"), \"\", Selection_Hide2!H329)","v":""},{"$f":"IF(OR(Selection_Hide2!I329=0, Selection_Hide2!I329=\"\"), \"\", Selection_Hide2!I329)","v":""},{"$f":"IF(OR(Selection_Hide2!J329=0, Selection_Hide2!J329=\"\"), \"\", Selection_Hide2!J329)","v":""},{"$f":"IF(OR(Selection_Hide2!K329=0, Selection_Hide2!K329=\"\"), \"\", Selection_Hide2!K329)","v":""},{"$f":"IF(OR(Selection_Hide2!L329=0, Selection_Hide2!L329=\"\"), \"\", Selection_Hide2!L329)","v":""},{"$f":"IF(OR(Selection_Hide2!M329=0, Selection_Hide2!M329=\"\"), \"\", Selection_Hide2!M329)","v":""},{"$f":"IF(OR(Selection_Hide2!N329=0, Selection_Hide2!N329=\"\"), \"\", Selection_Hide2!N329)","v":""},{"$f":"IF(OR(Selection_Hide2!O329=0, Selection_Hide2!O329=\"\"), \"\", Selection_Hide2!O329)","v":""},{"$f":"IF(OR(Selection_Hide2!P329=0, Selection_Hide2!P329=\"\"), \"\", Selection_Hide2!P329)","v":""},{"$f":"IF(OR(Selection_Hide2!Q329=0, Selection_Hide2!Q329=\"\"), \"\", Selection_Hide2!Q329)","v":""},{"$f":"IF(OR(Selection_Hide2!R329=0, Selection_Hide2!R329=\"\"), \"\", Selection_Hide2!R329)","v":""},{"$f":"IF(OR(Selection_Hide2!S329=0, Selection_Hide2!S329=\"\"), \"\", Selection_Hide2!S329)","v":""},{"$f":"IF(OR(Selection_Hide2!T329=0, Selection_Hide2!T329=\"\"), \"\", Selection_Hide2!T329)","v":""},{"$f":"IF(OR(Selection_Hide2!U329=0, Selection_Hide2!U329=\"\"), \"\", Selection_Hide2!U329)","v":""},{"$f":"IF(OR(Selection_Hide2!V329=0, Selection_Hide2!V329=\"\"), \"\", Selection_Hide2!V329)","v":""},{"$f":"IF(OR(Selection_Hide2!W329=0, Selection_Hide2!W329=\"\"), \"\", Selection_Hide2!W329)","v":""},{"$f":"IF(OR(Selection_Hide2!X329=0, Selection_Hide2!X329=\"\"), \"\", Selection_Hide2!X329)","v":""},{"$f":"IF(OR(Selection_Hide2!Y329=0, Selection_Hide2!Y329=\"\"), \"\", Selection_Hide2!Y329)","v":""},{"$f":"IF(OR(Selection_Hide2!Z329=0, Selection_Hide2!Z329=\"\"), \"\", Selection_Hide2!Z329)","v":""},{"$f":"IF(OR(Selection_Hide2!AA329=0, Selection_Hide2!AA329=\"\"), \"\", Selection_Hide2!AA329)","v":""},{"$f":"IF(OR(Selection_Hide2!AB329=0, Selection_Hide2!AB329=\"\"), \"\", Selection_Hide2!AB329)","v":""}]
[{"$f":"IF(OR(Selection_Hide2!A330=0, Selection_Hide2!A330=\"\"), \"\", Selection_Hide2!A330)","v":""},{"$f":"IF(OR(Selection_Hide2!B330=0, Selection_Hide2!B330=\"\"), \"\", Selection_Hide2!B330)","v":""},{"$f":"IF(OR(Selection_Hide2!C330=0, Selection_Hide2!C330=\"\"), \"\", Selection_Hide2!C330)","v":""},{"$f":"IF(OR(Selection_Hide2!D330=0, Selection_Hide2!D330=\"\"), \"\", Selection_Hide2!D330)","v":""},{"$f":"IF(OR(Selection_Hide2!E330=0, Selection_Hide2!E330=\"\"), \"\", Selection_Hide2!E330)","v":""},{"$f":"IF(OR(Selection_Hide2!F330=0, Selection_Hide2!F330=\"\"), \"\", Selection_Hide2!F330)","v":""},{"$f":"IF(OR(Selection_Hide2!G330=0, Selection_Hide2!G330=\"\"), \"\", Selection_Hide2!G330)","v":""},{"$f":"IF(OR(Selection_Hide2!H330=0, Selection_Hide2!H330=\"\"), \"\", Selection_Hide2!H330)","v":""},{"$f":"IF(OR(Selection_Hide2!I330=0, Selection_Hide2!I330=\"\"), \"\", Selection_Hide2!I330)","v":""},{"$f":"IF(OR(Selection_Hide2!J330=0, Selection_Hide2!J330=\"\"), \"\", Selection_Hide2!J330)","v":""},{"$f":"IF(OR(Selection_Hide2!K330=0, Selection_Hide2!K330=\"\"), \"\", Selection_Hide2!K330)","v":""},{"$f":"IF(OR(Selection_Hide2!L330=0, Selection_Hide2!L330=\"\"), \"\", Selection_Hide2!L330)","v":""},{"$f":"IF(OR(Selection_Hide2!M330=0, Selection_Hide2!M330=\"\"), \"\", Selection_Hide2!M330)","v":""},{"$f":"IF(OR(Selection_Hide2!N330=0, Selection_Hide2!N330=\"\"), \"\", Selection_Hide2!N330)","v":""},{"$f":"IF(OR(Selection_Hide2!O330=0, Selection_Hide2!O330=\"\"), \"\", Selection_Hide2!O330)","v":""},{"$f":"IF(OR(Selection_Hide2!P330=0, Selection_Hide2!P330=\"\"), \"\", Selection_Hide2!P330)","v":""},{"$f":"IF(OR(Selection_Hide2!Q330=0, Selection_Hide2!Q330=\"\"), \"\", Selection_Hide2!Q330)","v":""},{"$f":"IF(OR(Selection_Hide2!R330=0, Selection_Hide2!R330=\"\"), \"\", Selection_Hide2!R330)","v":""},{"$f":"IF(OR(Selection_Hide2!S330=0, Selection_Hide2!S330=\"\"), \"\", Selection_Hide2!S330)","v":""},{"$f":"IF(OR(Selection_Hide2!T330=0, Selection_Hide2!T330=\"\"), \"\", Selection_Hide2!T330)","v":""},{"$f":"IF(OR(Selection_Hide2!U330=0, Selection_Hide2!U330=\"\"), \"\", Selection_Hide2!U330)","v":""},{"$f":"IF(OR(Selection_Hide2!V330=0, Selection_Hide2!V330=\"\"), \"\", Selection_Hide2!V330)","v":""},{"$f":"IF(OR(Selection_Hide2!W330=0, Selection_Hide2!W330=\"\"), \"\", Selection_Hide2!W330)","v":""},{"$f":"IF(OR(Selection_Hide2!X330=0, Selection_Hide2!X330=\"\"), \"\", Selection_Hide2!X330)","v":""},{"$f":"IF(OR(Selection_Hide2!Y330=0, Selection_Hide2!Y330=\"\"), \"\", Selection_Hide2!Y330)","v":""},{"$f":"IF(OR(Selection_Hide2!Z330=0, Selection_Hide2!Z330=\"\"), \"\", Selection_Hide2!Z330)","v":""},{"$f":"IF(OR(Selection_Hide2!AA330=0, Selection_Hide2!AA330=\"\"), \"\", Selection_Hide2!AA330)","v":""},{"$f":"IF(OR(Selection_Hide2!AB330=0, Selection_Hide2!AB330=\"\"), \"\", Selection_Hide2!AB330)","v":""}]
[{"$f":"IF(OR(Selection_Hide2!A331=0, Selection_Hide2!A331=\"\"), \"\", Selection_Hide2!A331)","v":""},{"$f":"IF(OR(Selection_Hide2!B331=0, Selection_Hide2!B331=\"\"), \"\", Selection_Hide2!B331)","v":""},{"$f":"IF(OR(Selection_Hide2!C331=0, Selection_Hide2!C331=\"\"), \"\", Selection_Hide2!C331)","v":""},{"$f":"IF(OR(Selection_Hide2!D331=0, Selection_Hide2!D331=\"\"), \"\", Selection_Hide2!D331)","v":""},{"$f":"IF(OR(Selection_Hide2!E331=0, Selection_Hide2!E331=\"\"), \"\", Selection_Hide2!E331)","v":""},{"$f":"IF(OR(Selection_Hide2!F331=0, Selection_Hide2!F331=\"\"), \"\", Selection_Hide2!F331)","v":""},{"$f":"IF(OR(Selection_Hide2!G331=0, Selection_Hide2!G331=\"\"), \"\", Selection_Hide2!G331)","v":""},{"$f":"IF(OR(Selection_Hide2!H331=0, Selection_Hide2!H331=\"\"), \"\", Selection_Hide2!H331)","v":""},{"$f":"IF(OR(Selection_Hide2!I331=0, Selection_Hide2!I331=\"\"), \"\", Selection_Hide2!I331)","v":""},{"$f":"IF(OR(Selection_Hide2!J331=0, Selection_Hide2!J331=\"\"), \"\", Selection_Hide2!J331)","v":""},{"$f":"IF(OR(Selection_Hide2!K331=0, Selection_Hide2!K331=\"\"), \"\", Selection_Hide2!K331)","v":""},{"$f":"IF(OR(Selection_Hide2!L331=0, Selection_Hide2!L331=\"\"), \"\", Selection_Hide2!L331)","v":""},{"$f":"IF(OR(Selection_Hide2!M331=0, Selection_Hide2!M331=\"\"), \"\", Selection_Hide2!M331)","v":""},{"$f":"IF(OR(Selection_Hide2!N331=0, Selection_Hide2!N331=\"\"), \"\", Selection_Hide2!N331)","v":""},{"$f":"IF(OR(Selection_Hide2!O331=0, Selection_Hide2!O331=\"\"), \"\", Selection_Hide2!O331)","v":""},{"$f":"IF(OR(Selection_Hide2!P331=0, Selection_Hide2!P331=\"\"), \"\", Selection_Hide2!P331)","v":""},{"$f":"IF(OR(Selection_Hide2!Q331=0, Selection_Hide2!Q331=\"\"), \"\", Selection_Hide2!Q331)","v":""},{"$f":"IF(OR(Selection_Hide2!R331=0, Selection_Hide2!R331=\"\"), \"\", Selection_Hide2!R331)","v":""},{"$f":"IF(OR(Selection_Hide2!S331=0, Selection_Hide2!S331=\"\"), \"\", Selection_Hide2!S331)","v":""},{"$f":"IF(OR(Selection_Hide2!T331=0, Selection_Hide2!T331=\"\"), \"\", Selection_Hide2!T331)","v":""},{"$f":"IF(OR(Selection_Hide2!U331=0, Selection_Hide2!U331=\"\"), \"\", Selection_Hide2!U331)","v":""},{"$f":"IF(OR(Selection_Hide2!V331=0, Selection_Hide2!V331=\"\"), \"\", Selection_Hide2!V331)","v":""},{"$f":"IF(OR(Selection_Hide2!W331=0, Selection_Hide2!W331=\"\"), \"\", Selection_Hide2!W331)","v":""},{"$f":"IF(OR(Selection_Hide2!X331=0, Selection_Hide2!X331=\"\"), \"\", Selection_Hide2!X331)","v":""},{"$f":"IF(OR(Selection_Hide2!Y331=0, Selection_Hide2!Y331=\"\"), \"\", Selection_Hide2!Y331)","v":""},{"$f":"IF(OR(Selection_Hide2!Z331=0, Selection_Hide2!Z331=\"\"), \"\", Selection_Hide2!Z331)","v":""},{"$f":"IF(OR(Selection_Hide2!AA331=0, Selection_Hide2!AA331=\"\"), \"\", Selection_Hide2!AA331)","v":""},{"$f":"IF(OR(Selection_Hide2!AB331=0, Selection_Hide2!AB331=\"\"), \"\", Selection_Hide2!AB331)","v":""}]
[{"$f":"IF(OR(Selection_Hide2!A332=0, Selection_Hide2!A332=\"\"), \"\", Selection_Hide2!A332)","v":""},{"$f":"IF(OR(Selection_Hide2!B332=0, Selection_Hide2!B332=\"\"), \"\", Selection_Hide2!B332)","v":""},{"$f":"IF(OR(Selection_Hide2!C332=0, Selection_Hide2!C332=\"\"), \"\", Selection_Hide2!C332)","v":""},{"$f":"IF(OR(Selection_Hide2!D332=0, Selection_Hide2!D332=\"\"), \"\", Selection_Hide2!D332)","v":""},{"$f":"IF(OR(Selection_Hide2!E332=0, Selection_Hide2!E332=\"\"), \"\", Selection_Hide2!E332)","v":""},{"$f":"IF(OR(Selection_Hide2!F332=0, Selection_Hide2!F332=\"\"), \"\", Selection_Hide2!F332)","v":""},{"$f":"IF(OR(Selection_Hide2!G332=0, Selection_Hide2!G332=\"\"), \"\", Selection_Hide2!G332)","v":""},{"$f":"IF(OR(Selection_Hide2!H332=0, Selection_Hide2!H332=\"\"), \"\", Selection_Hide2!H332)","v":""},{"$f":"IF(OR(Selection_Hide2!I332=0, Selection_Hide2!I332=\"\"), \"\", Selection_Hide2!I332)","v":""},{"$f":"IF(OR(Selection_Hide2!J332=0, Selection_Hide2!J332=\"\"), \"\", Selection_Hide2!J332)","v":""},{"$f":"IF(OR(Selection_Hide2!K332=0, Selection_Hide2!K332=\"\"), \"\", Selection_Hide2!K332)","v":""},{"$f":"IF(OR(Selection_Hide2!L332=0, Selection_Hide2!L332=\"\"), \"\", Selection_Hide2!L332)","v":""},{"$f":"IF(OR(Selection_Hide2!M332=0, Selection_Hide2!M332=\"\"), \"\", Selection_Hide2!M332)","v":""},{"$f":"IF(OR(Selection_Hide2!N332=0, Selection_Hide2!N332=\"\"), \"\", Selection_Hide2!N332)","v":""},{"$f":"IF(OR(Selection_Hide2!O332=0, Selection_Hide2!O332=\"\"), \"\", Selection_Hide2!O332)","v":""},{"$f":"IF(OR(Selection_Hide2!P332=0, Selection_Hide2!P332=\"\"), \"\", Selection_Hide2!P332)","v":""},{"$f":"IF(OR(Selection_Hide2!Q332=0, Selection_Hide2!Q332=\"\"), \"\", Selection_Hide2!Q332)","v":""},{"$f":"IF(OR(Selection_Hide2!R332=0, Selection_Hide2!R332=\"\"), \"\", Selection_Hide2!R332)","v":""},{"$f":"IF(OR(Selection_Hide2!S332=0, Selection_Hide2!S332=\"\"), \"\", Selection_Hide2!S332)","v":""},{"$f":"IF(OR(Selection_Hide2!T332=0, Selection_Hide2!T332=\"\"), \"\", Selection_Hide2!T332)","v":""},{"$f":"IF(OR(Selection_Hide2!U332=0, Selection_Hide2!U332=\"\"), \"\", Selection_Hide2!U332)","v":""},{"$f":"IF(OR(Selection_Hide2!V332=0, Selection_Hide2!V332=\"\"), \"\", Selection_Hide2!V332)","v":""},{"$f":"IF(OR(Selection_Hide2!W332=0, Selection_Hide2!W332=\"\"), \"\", Selection_Hide2!W332)","v":""},{"$f":"IF(OR(Selection_Hide2!X332=0, Selection_Hide2!X332=\"\"), \"\", Selection_Hide2!X332)","v":""},{"$f":"IF(OR(Selection_Hide2!Y332=0, Selection_Hide2!Y332=\"\"), \"\", Selection_Hide2!Y332)","v":""},{"$f":"IF(OR(Selection_Hide2!Z332=0, Selection_Hide2!Z332=\"\"), \"\", Selection_Hide2!Z332)","v":""},{"$f":"IF(OR(Selection_Hide2!AA332=0, Selection_Hide2!AA332=\"\"), \"\", Selection_Hide2!AA332)","v":""},{"$f":"IF(OR(Selection_Hide2!AB332=0, Selection_Hide2!AB332=\"\"), \"\", Selection_Hide2!AB332)","v":""}]
[{"$f":"IF(OR(Selection_Hide2!A333=0, Selection_Hide2!A333=\"\"), \"\", Selection_Hide2!A333)","v":""},{"$f":"IF(OR(Selection_Hide2!B333=0, Selection_Hide2!B333=\"\"), \"\", Selection_Hide2!B333)","v":""},{"$f":"IF(OR(Selection_Hide2!C333=0, Selection_Hide2!C333=\"\"), \"\", Selection_Hide2!C333)","v":""},{"$f":"IF(OR(Selection_Hide2!D333=0, Selection_Hide2!D333=\"\"), \"\", Selection_Hide2!D333)","v":""},{"$f":"IF(OR(Selection_Hide2!E333=0, Selection_Hide2!E333=\"\"), \"\", Selection_Hide2!E333)","v":""},{"$f":"IF(OR(Selection_Hide2!F333=0, Selection_Hide2!F333=\"\"), \"\", Selection_Hide2!F333)","v":""},{"$f":"IF(OR(Selection_Hide2!G333=0, Selection_Hide2!G333=\"\"), \"\", Selection_Hide2!G333)","v":""},{"$f":"IF(OR(Selection_Hide2!H333=0, Selection_Hide2!H333=\"\"), \"\", Selection_Hide2!H333)","v":""},{"$f":"IF(OR(Selection_Hide2!I333=0, Selection_Hide2!I333=\"\"), \"\", Selection_Hide2!I333)","v":""},{"$f":"IF(OR(Selection_Hide2!J333=0, Selection_Hide2!J333=\"\"), \"\", Selection_Hide2!J333)","v":""},{"$f":"IF(OR(Selection_Hide2!K333=0, Selection_Hide2!K333=\"\"), \"\", Selection_Hide2!K333)","v":""},{"$f":"IF(OR(Selection_Hide2!L333=0, Selection_Hide2!L333=\"\"), \"\", Selection_Hide2!L333)","v":""},{"$f":"IF(OR(Selection_Hide2!M333=0, Selection_Hide2!M333=\"\"), \"\", Selection_Hide2!M333)","v":""},{"$f":"IF(OR(Selection_Hide2!N333=0, Selection_Hide2!N333=\"\"), \"\", Selection_Hide2!N333)","v":""},{"$f":"IF(OR(Selection_Hide2!O333=0, Selection_Hide2!O333=\"\"), \"\", Selection_Hide2!O333)","v":""},{"$f":"IF(OR(Selection_Hide2!P333=0, Selection_Hide2!P333=\"\"), \"\", Selection_Hide2!P333)","v":""},{"$f":"IF(OR(Selection_Hide2!Q333=0, Selection_Hide2!Q333=\"\"), \"\", Selection_Hide2!Q333)","v":""},{"$f":"IF(OR(Selection_Hide2!R333=0, Selection_Hide2!R333=\"\"), \"\", Selection_Hide2!R333)","v":""},{"$f":"IF(OR(Selection_Hide2!S333=0, Selection_Hide2!S333=\"\"), \"\", Selection_Hide2!S333)","v":""},{"$f":"IF(OR(Selection_Hide2!T333=0, Selection_Hide2!T333=\"\"), \"\", Selection_Hide2!T333)","v":""},{"$f":"IF(OR(Selection_Hide2!U333=0, Selection_Hide2!U333=\"\"), \"\", Selection_Hide2!U333)","v":""},{"$f":"IF(OR(Selection_Hide2!V333=0, Selection_Hide2!V333=\"\"), \"\", Selection_Hide2!V333)","v":""},{"$f":"IF(OR(Selection_Hide2!W333=0, Selection_Hide2!W333=\"\"), \"\", Selection_Hide2!W333)","v":""},{"$f":"IF(OR(Selection_Hide2!X333=0, Selection_Hide2!X333=\"\"), \"\", Selection_Hide2!X333)","v":""},{"$f":"IF(OR(Selection_Hide2!Y333=0, Selection_Hide2!Y333=\"\"), \"\", Selection_Hide2!Y333)","v":""},{"$f":"IF(OR(Selection_Hide2!Z333=0, Selection_Hide2!Z333=\"\"), \"\", Selection_Hide2!Z333)","v":""},{"$f":"IF(OR(Selection_Hide2!AA333=0, Selection_Hide2!AA333=\"\"), \"\", Selection_Hide2!AA333)","v":""},{"$f":"IF(OR(Selection_Hide2!AB333=0, Selection_Hide2!AB333=\"\"), \"\", Selection_Hide2!AB333)","v":""}]
[{"$f":"IF(OR(Selection_Hide2!A334=0, Selection_Hide2!A334=\"\"), \"\", Selection_Hide2!A334)","v":""},{"$f":"IF(OR(Selection_Hide2!B334=0, Selection_Hide2!B334=\"\"), \"\", Selection_Hide2!B334)","v":""},{"$f":"IF(OR(Selection_Hide2!C334=0, Selection_Hide2!C334=\"\"), \"\", Selection_Hide2!C334)","v":""},{"$f":"IF(OR(Selection_Hide2!D334=0, Selection_Hide2!D334=\"\"), \"\", Selection_Hide2!D334)","v":""},{"$f":"IF(OR(Selection_Hide2!E334=0, Selection_Hide2!E334=\"\"), \"\", Selection_Hide2!E334)","v":""},{"$f":"IF(OR(Selection_Hide2!F334=0, Selection_Hide2!F334=\"\"), \"\", Selection_Hide2!F334)","v":""},{"$f":"IF(OR(Selection_Hide2!G334=0, Selection_Hide2!G334=\"\"), \"\", Selection_Hide2!G334)","v":""},{"$f":"IF(OR(Selection_Hide2!H334=0, Selection_Hide2!H334=\"\"), \"\", Selection_Hide2!H334)","v":""},{"$f":"IF(OR(Selection_Hide2!I334=0, Selection_Hide2!I334=\"\"), \"\", Selection_Hide2!I334)","v":""},{"$f":"IF(OR(Selection_Hide2!J334=0, Selection_Hide2!J334=\"\"), \"\", Selection_Hide2!J334)","v":""},{"$f":"IF(OR(Selection_Hide2!K334=0, Selection_Hide2!K334=\"\"), \"\", Selection_Hide2!K334)","v":""},{"$f":"IF(OR(Selection_Hide2!L334=0, Selection_Hide2!L334=\"\"), \"\", Selection_Hide2!L334)","v":""},{"$f":"IF(OR(Selection_Hide2!M334=0, Selection_Hide2!M334=\"\"), \"\", Selection_Hide2!M334)","v":""},{"$f":"IF(OR(Selection_Hide2!N334=0, Selection_Hide2!N334=\"\"), \"\", Selection_Hide2!N334)","v":""},{"$f":"IF(OR(Selection_Hide2!O334=0, Selection_Hide2!O334=\"\"), \"\", Selection_Hide2!O334)","v":""},{"$f":"IF(OR(Selection_Hide2!P334=0, Selection_Hide2!P334=\"\"), \"\", Selection_Hide2!P334)","v":""},{"$f":"IF(OR(Selection_Hide2!Q334=0, Selection_Hide2!Q334=\"\"), \"\", Selection_Hide2!Q334)","v":""},{"$f":"IF(OR(Selection_Hide2!R334=0, Selection_Hide2!R334=\"\"), \"\", Selection_Hide2!R334)","v":""},{"$f":"IF(OR(Selection_Hide2!S334=0, Selection_Hide2!S334=\"\"), \"\", Selection_Hide2!S334)","v":""},{"$f":"IF(OR(Selection_Hide2!T334=0, Selection_Hide2!T334=\"\"), \"\", Selection_Hide2!T334)","v":""},{"$f":"IF(OR(Selection_Hide2!U334=0, Selection_Hide2!U334=\"\"), \"\", Selection_Hide2!U334)","v":""},{"$f":"IF(OR(Selection_Hide2!V334=0, Selection_Hide2!V334=\"\"), \"\", Selection_Hide2!V334)","v":""},{"$f":"IF(OR(Selection_Hide2!W334=0, Selection_Hide2!W334=\"\"), \"\", Selection_Hide2!W334)","v":""},{"$f":"IF(OR(Selection_Hide2!X334=0, Selection_Hide2!X334=\"\"), \"\", Selection_Hide2!X334)","v":""},{"$f":"IF(OR(Selection_Hide2!Y334=0, Selection_Hide2!Y334=\"\"), \"\", Selection_Hide2!Y334)","v":""},{"$f":"IF(OR(Selection_Hide2!Z334=0, Selection_Hide2!Z334=\"\"), \"\", Selection_Hide2!Z334)","v":""},{"$f":"IF(OR(Selection_Hide2!AA334=0, Selection_Hide2!AA334=\"\"), \"\", Selection_Hide2!AA334)","v":""},{"$f":"IF(OR(Selection_Hide2!AB334=0, Selection_Hide2!AB334=\"\"), \"\", Selection_Hide2!AB334)","v":""}]
[{"$f":"IF(OR(Selection_Hide2!A335=0, Selection_Hide2!A335=\"\"), \"\", Selection_Hide2!A335)","v":""},{"$f":"IF(OR(Selection_Hide2!B335=0, Selection_Hide2!B335=\"\"), \"\", Selection_Hide2!B335)","v":""},{"$f":"IF(OR(Selection_Hide2!C335=0, Selection_Hide2!C335=\"\"), \"\", Selection_Hide2!C335)","v":""},{"$f":"IF(OR(Selection_Hide2!D335=0, Selection_Hide2!D335=\"\"), \"\", Selection_Hide2!D335)","v":""},{"$f":"IF(OR(Selection_Hide2!E335=0, Selection_Hide2!E335=\"\"), \"\", Selection_Hide2!E335)","v":""},{"$f":"IF(OR(Selection_Hide2!F335=0, Selection_Hide2!F335=\"\"), \"\", Selection_Hide2!F335)","v":""},{"$f":"IF(OR(Selection_Hide2!G335=0, Selection_Hide2!G335=\"\"), \"\", Selection_Hide2!G335)","v":""},{"$f":"IF(OR(Selection_Hide2!H335=0, Selection_Hide2!H335=\"\"), \"\", Selection_Hide2!H335)","v":""},{"$f":"IF(OR(Selection_Hide2!I335=0, Selection_Hide2!I335=\"\"), \"\", Selection_Hide2!I335)","v":""},{"$f":"IF(OR(Selection_Hide2!J335=0, Selection_Hide2!J335=\"\"), \"\", Selection_Hide2!J335)","v":""},{"$f":"IF(OR(Selection_Hide2!K335=0, Selection_Hide2!K335=\"\"), \"\", Selection_Hide2!K335)","v":""},{"$f":"IF(OR(Selection_Hide2!L335=0, Selection_Hide2!L335=\"\"), \"\", Selection_Hide2!L335)","v":""},{"$f":"IF(OR(Selection_Hide2!M335=0, Selection_Hide2!M335=\"\"), \"\", Selection_Hide2!M335)","v":""},{"$f":"IF(OR(Selection_Hide2!N335=0, Selection_Hide2!N335=\"\"), \"\", Selection_Hide2!N335)","v":""},{"$f":"IF(OR(Selection_Hide2!O335=0, Selection_Hide2!O335=\"\"), \"\", Selection_Hide2!O335)","v":""},{"$f":"IF(OR(Selection_Hide2!P335=0, Selection_Hide2!P335=\"\"), \"\", Selection_Hide2!P335)","v":""},{"$f":"IF(OR(Selection_Hide2!Q335=0, Selection_Hide2!Q335=\"\"), \"\", Selection_Hide2!Q335)","v":""},{"$f":"IF(OR(Selection_Hide2!R335=0, Selection_Hide2!R335=\"\"), \"\", Selection_Hide2!R335)","v":""},{"$f":"IF(OR(Selection_Hide2!S335=0, Selection_Hide2!S335=\"\"), \"\", Selection_Hide2!S335)","v":""},{"$f":"IF(OR(Selection_Hide2!T335=0, Selection_Hide2!T335=\"\"), \"\", Selection_Hide2!T335)","v":""},{"$f":"IF(OR(Selection_Hide2!U335=0, Selection_Hide2!U335=\"\"), \"\", Selection_Hide2!U335)","v":""},{"$f":"IF(OR(Selection_Hide2!V335=0, Selection_Hide2!V335=\"\"), \"\", Selection_Hide2!V335)","v":""},{"$f":"IF(OR(Selection_Hide2!W335=0, Selection_Hide2!W335=\"\"), \"\", Selection_Hide2!W335)","v":""},{"$f":"IF(OR(Selection_Hide2!X335=0, Selection_Hide2!X335=\"\"), \"\", Selection_Hide2!X335)","v":""},{"$f":"IF(OR(Selection_Hide2!Y335=0, Selection_Hide2!Y335=\"\"), \"\", Selection_Hide2!Y335)","v":""},{"$f":"IF(OR(Selection_Hide2!Z335=0, Selection_Hide2!Z335=\"\"), \"\", Selection_Hide2!Z335)","v":""},{"$f":"IF(OR(Selection_Hide2!AA335=0, Selection_Hide2!AA335=\"\"), \"\", Selection_Hide2!AA335)","v":""},{"$f":"IF(OR(Selection_Hide2!AB335=0, Selection_Hide2!AB335=\"\"), \"\", Selection_Hide2!AB335)","v":""}]
[{"$f":"IF(OR(Selection_Hide2!A336=0, Selection_Hide2!A336=\"\"), \"\", Selection_Hide2!A336)","v":""},{"$f":"IF(OR(Selection_Hide2!B336=0, Selection_Hide2!B336=\"\"), \"\", Selection_Hide2!B336)","v":""},{"$f":"IF(OR(Selection_Hide2!C336=0, Selection_Hide2!C336=\"\"), \"\", Selection_Hide2!C336)","v":""},{"$f":"IF(OR(Selection_Hide2!D336=0, Selection_Hide2!D336=\"\"), \"\", Selection_Hide2!D336)","v":""},{"$f":"IF(OR(Selection_Hide2!E336=0, Selection_Hide2!E336=\"\"), \"\", Selection_Hide2!E336)","v":""},{"$f":"IF(OR(Selection_Hide2!F336=0, Selection_Hide2!F336=\"\"), \"\", Selection_Hide2!F336)","v":""},{"$f":"IF(OR(Selection_Hide2!G336=0, Selection_Hide2!G336=\"\"), \"\", Selection_Hide2!G336)","v":""},{"$f":"IF(OR(Selection_Hide2!H336=0, Selection_Hide2!H336=\"\"), \"\", Selection_Hide2!H336)","v":""},{"$f":"IF(OR(Selection_Hide2!I336=0, Selection_Hide2!I336=\"\"), \"\", Selection_Hide2!I336)","v":""},{"$f":"IF(OR(Selection_Hide2!J336=0, Selection_Hide2!J336=\"\"), \"\", Selection_Hide2!J336)","v":""},{"$f":"IF(OR(Selection_Hide2!K336=0, Selection_Hide2!K336=\"\"), \"\", Selection_Hide2!K336)","v":""},{"$f":"IF(OR(Selection_Hide2!L336=0, Selection_Hide2!L336=\"\"), \"\", Selection_Hide2!L336)","v":""},{"$f":"IF(OR(Selection_Hide2!M336=0, Selection_Hide2!M336=\"\"), \"\", Selection_Hide2!M336)","v":""},{"$f":"IF(OR(Selection_Hide2!N336=0, Selection_Hide2!N336=\"\"), \"\", Selection_Hide2!N336)","v":""},{"$f":"IF(OR(Selection_Hide2!O336=0, Selection_Hide2!O336=\"\"), \"\", Selection_Hide2!O336)","v":""},{"$f":"IF(OR(Selection_Hide2!P336=0, Selection_Hide2!P336=\"\"), \"\", Selection_Hide2!P336)","v":""},{"$f":"IF(OR(Selection_Hide2!Q336=0, Selection_Hide2!Q336=\"\"), \"\", Selection_Hide2!Q336)","v":""},{"$f":"IF(OR(Selection_Hide2!R336=0, Selection_Hide2!R336=\"\"), \"\", Selection_Hide2!R336)","v":""},{"$f":"IF(OR(Selection_Hide2!S336=0, Selection_Hide2!S336=\"\"), \"\", Selection_Hide2!S336)","v":""},{"$f":"IF(OR(Selection_Hide2!T336=0, Selection_Hide2!T336=\"\"), \"\", Selection_Hide2!T336)","v":""},{"$f":"IF(OR(Selection_Hide2!U336=0, Selection_Hide2!U336=\"\"), \"\", Selection_Hide2!U336)","v":""},{"$f":"IF(OR(Selection_Hide2!V336=0, Selection_Hide2!V336=\"\"), \"\", Selection_Hide2!V336)","v":""},{"$f":"IF(OR(Selection_Hide2!W336=0, Selection_Hide2!W336=\"\"), \"\", Selection_Hide2!W336)","v":""},{"$f":"IF(OR(Selection_Hide2!X336=0, Selection_Hide2!X336=\"\"), \"\", Selection_Hide2!X336)","v":""},{"$f":"IF(OR(Selection_Hide2!Y336=0, Selection_Hide2!Y336=\"\"), \"\", Selection_Hide2!Y336)","v":""},{"$f":"IF(OR(Selection_Hide2!Z336=0, Selection_Hide2!Z336=\"\"), \"\", Selection_Hide2!Z336)","v":""},{"$f":"IF(OR(Selection_Hide2!AA336=0, Selection_Hide2!AA336=\"\"), \"\", Selection_Hide2!AA336)","v":""},{"$f":"IF(OR(Selection_Hide2!AB336=0, Selection_Hide2!AB336=\"\"), \"\", Selection_Hide2!AB336)","v":""}]
[{"$f":"IF(OR(Selection_Hide2!A337=0, Selection_Hide2!A337=\"\"), \"\", Selection_Hide2!A337)","v":""},{"$f":"IF(OR(Selection_Hide2!B337=0, Selection_Hide2!B337=\"\"), \"\", Selection_Hide2!B337)","v":""},{"$f":"IF(OR(Selection_Hide2!C337=0, Selection_Hide2!C337=\"\"), \"\", Selection_Hide2!C337)","v":""},{"$f":"IF(OR(Selection_Hide2!D337=0, Selection_Hide2!D337=\"\"), \"\", Selection_Hide2!D337)","v":""},{"$f":"IF(OR(Selection_Hide2!E337=0, Selection_Hide2!E337=\"\"), \"\", Selection_Hide2!E337)","v":""},{"$f":"IF(OR(Selection_Hide2!F337=0, Selection_Hide2!F337=\"\"), \"\", Selection_Hide2!F337)","v":""},{"$f":"IF(OR(Selection_Hide2!G337=0, Selection_Hide2!G337=\"\"), \"\", Selection_Hide2!G337)","v":""},{"$f":"IF(OR(Selection_Hide2!H337=0, Selection_Hide2!H337=\"\"), \"\", Selection_Hide2!H337)","v":""},{"$f":"IF(OR(Selection_Hide2!I337=0, Selection_Hide2!I337=\"\"), \"\", Selection_Hide2!I337)","v":""},{"$f":"IF(OR(Selection_Hide2!J337=0, Selection_Hide2!J337=\"\"), \"\", Selection_Hide2!J337)","v":""},{"$f":"IF(OR(Selection_Hide2!K337=0, Selection_Hide2!K337=\"\"), \"\", Selection_Hide2!K337)","v":""},{"$f":"IF(OR(Selection_Hide2!L337=0, Selection_Hide2!L337=\"\"), \"\", Selection_Hide2!L337)","v":""},{"$f":"IF(OR(Selection_Hide2!M337=0, Selection_Hide2!M337=\"\"), \"\", Selection_Hide2!M337)","v":""},{"$f":"IF(OR(Selection_Hide2!N337=0, Selection_Hide2!N337=\"\"), \"\", Selection_Hide2!N337)","v":""},{"$f":"IF(OR(Selection_Hide2!O337=0, Selection_Hide2!O337=\"\"), \"\", Selection_Hide2!O337)","v":""},{"$f":"IF(OR(Selection_Hide2!P337=0, Selection_Hide2!P337=\"\"), \"\", Selection_Hide2!P337)","v":""},{"$f":"IF(OR(Selection_Hide2!Q337=0, Selection_Hide2!Q337=\"\"), \"\", Selection_Hide2!Q337)","v":""},{"$f":"IF(OR(Selection_Hide2!R337=0, Selection_Hide2!R337=\"\"), \"\", Selection_Hide2!R337)","v":""},{"$f":"IF(OR(Selection_Hide2!S337=0, Selection_Hide2!S337=\"\"), \"\", Selection_Hide2!S337)","v":""},{"$f":"IF(OR(Selection_Hide2!T337=0, Selection_Hide2!T337=\"\"), \"\", Selection_Hide2!T337)","v":""},{"$f":"IF(OR(Selection_Hide2!U337=0, Selection_Hide2!U337=\"\"), \"\", Selection_Hide2!U337)","v":""},{"$f":"IF(OR(Selection_Hide2!V337=0, Selection_Hide2!V337=\"\"), \"\", Selection_Hide2!V337)","v":""},{"$f":"IF(OR(Selection_Hide2!W337=0, Selection_Hide2!W337=\"\"), \"\", Selection_Hide2!W337)","v":""},{"$f":"IF(OR(Selection_Hide2!X337=0, Selection_Hide2!X337=\"\"), \"\", Selection_Hide2!X337)","v":""},{"$f":"IF(OR(Selection_Hide2!Y337=0, Selection_Hide2!Y337=\"\"), \"\", Selection_Hide2!Y337)","v":""},{"$f":"IF(OR(Selection_Hide2!Z337=0, Selection_Hide2!Z337=\"\"), \"\", Selection_Hide2!Z337)","v":""},{"$f":"IF(OR(Selection_Hide2!AA337=0, Selection_Hide2!AA337=\"\"), \"\", Selection_Hide2!AA337)","v":""},{"$f":"IF(OR(Selection_Hide2!AB337=0, Selection_Hide2!AB337=\"\"), \"\", Selection_Hide2!AB337)","v":""}]
[{"$f":"IF(OR(Selection_Hide2!A338=0, Selection_Hide2!A338=\"\"), \"\", Selection_Hide2!A338)","v":""},{"$f":"IF(OR(Selection_Hide2!B338=0, Selection_Hide2!B338=\"\"), \"\", Selection_Hide2!B338)","v":""},{"$f":"IF(OR(Selection_Hide2!C338=0, Selection_Hide2!C338=\"\"), \"\", Selection_Hide2!C338)","v":""},{"$f":"IF(OR(Selection_Hide2!D338=0, Selection_Hide2!D338=\"\"), \"\", Selection_Hide2!D338)","v":""},{"$f":"IF(OR(Selection_Hide2!E338=0, Selection_Hide2!E338=\"\"), \"\", Selection_Hide2!E338)","v":""},{"$f":"IF(OR(Selection_Hide2!F338=0, Selection_Hide2!F338=\"\"), \"\", Selection_Hide2!F338)","v":""},{"$f":"IF(OR(Selection_Hide2!G338=0, Selection_Hide2!G338=\"\"), \"\", Selection_Hide2!G338)","v":""},{"$f":"IF(OR(Selection_Hide2!H338=0, Selection_Hide2!H338=\"\"), \"\", Selection_Hide2!H338)","v":""},{"$f":"IF(OR(Selection_Hide2!I338=0, Selection_Hide2!I338=\"\"), \"\", Selection_Hide2!I338)","v":""},{"$f":"IF(OR(Selection_Hide2!J338=0, Selection_Hide2!J338=\"\"), \"\", Selection_Hide2!J338)","v":""},{"$f":"IF(OR(Selection_Hide2!K338=0, Selection_Hide2!K338=\"\"), \"\", Selection_Hide2!K338)","v":""},{"$f":"IF(OR(Selection_Hide2!L338=0, Selection_Hide2!L338=\"\"), \"\", Selection_Hide2!L338)","v":""},{"$f":"IF(OR(Selection_Hide2!M338=0, Selection_Hide2!M338=\"\"), \"\", Selection_Hide2!M338)","v":""},{"$f":"IF(OR(Selection_Hide2!N338=0, Selection_Hide2!N338=\"\"), \"\", Selection_Hide2!N338)","v":""},{"$f":"IF(OR(Selection_Hide2!O338=0, Selection_Hide2!O338=\"\"), \"\", Selection_Hide2!O338)","v":""},{"$f":"IF(OR(Selection_Hide2!P338=0, Selection_Hide2!P338=\"\"), \"\", Selection_Hide2!P338)","v":""},{"$f":"IF(OR(Selection_Hide2!Q338=0, Selection_Hide2!Q338=\"\"), \"\", Selection_Hide2!Q338)","v":""},{"$f":"IF(OR(Selection_Hide2!R338=0, Selection_Hide2!R338=\"\"), \"\", Selection_Hide2!R338)","v":""},{"$f":"IF(OR(Selection_Hide2!S338=0, Selection_Hide2!S338=\"\"), \"\", Selection_Hide2!S338)","v":""},{"$f":"IF(OR(Selection_Hide2!T338=0, Selection_Hide2!T338=\"\"), \"\", Selection_Hide2!T338)","v":""},{"$f":"IF(OR(Selection_Hide2!U338=0, Selection_Hide2!U338=\"\"), \"\", Selection_Hide2!U338)","v":""},{"$f":"IF(OR(Selection_Hide2!V338=0, Selection_Hide2!V338=\"\"), \"\", Selection_Hide2!V338)","v":""},{"$f":"IF(OR(Selection_Hide2!W338=0, Selection_Hide2!W338=\"\"), \"\", Selection_Hide2!W338)","v":""},{"$f":"IF(OR(Selection_Hide2!X338=0, Selection_Hide2!X338=\"\"), \"\", Selection_Hide2!X338)","v":""},{"$f":"IF(OR(Selection_Hide2!Y338=0, Selection_Hide2!Y338=\"\"), \"\", Selection_Hide2!Y338)","v":""},{"$f":"IF(OR(Selection_Hide2!Z338=0, Selection_Hide2!Z338=\"\"), \"\", Selection_Hide2!Z338)","v":""},{"$f":"IF(OR(Selection_Hide2!AA338=0, Selection_Hide2!AA338=\"\"), \"\", Selection_Hide2!AA338)","v":""},{"$f":"IF(OR(Selection_Hide2!AB338=0, Selection_Hide2!AB338=\"\"), \"\", Selection_Hide2!AB338)","v":""}]
[{"$f":"IF(OR(Selection_Hide2!A339=0, Selection_Hide2!A339=\"\"), \"\", Selection_Hide2!A339)","v":""},{"$f":"IF(OR(Selection_Hide2!B339=0, Selection_Hide2!B339=\"\"), \"\", Selection_Hide2!B339)","v":""},{"$f":"IF(OR(Selection_Hide2!C339=0, Selection_Hide2!C339=\"\"), \"\", Selection_Hide2!C339)","v":""},{"$f":"IF(OR(Selection_Hide2!D339=0, Selection_Hide2!D339=\"\"), \"\", Selection_Hide2!D339)","v":""},{"$f":"IF(OR(Selection_Hide2!E339=0, Selection_Hide2!E339=\"\"), \"\", Selection_Hide2!E339)","v":""},{"$f":"IF(OR(Selection_Hide2!F339=0, Selection_Hide2!F339=\"\"), \"\", Selection_Hide2!F339)","v":""},{"$f":"IF(OR(Selection_Hide2!G339=0, Selection_Hide2!G339=\"\"), \"\", Selection_Hide2!G339)","v":""},{"$f":"IF(OR(Selection_Hide2!H339=0, Selection_Hide2!H339=\"\"), \"\", Selection_Hide2!H339)","v":""},{"$f":"IF(OR(Selection_Hide2!I339=0, Selection_Hide2!I339=\"\"), \"\", Selection_Hide2!I339)","v":""},{"$f":"IF(OR(Selection_Hide2!J339=0, Selection_Hide2!J339=\"\"), \"\", Selection_Hide2!J339)","v":""},{"$f":"IF(OR(Selection_Hide2!K339=0, Selection_Hide2!K339=\"\"), \"\", Selection_Hide2!K339)","v":""},{"$f":"IF(OR(Selection_Hide2!L339=0, Selection_Hide2!L339=\"\"), \"\", Selection_Hide2!L339)","v":""},{"$f":"IF(OR(Selection_Hide2!M339=0, Selection_Hide2!M339=\"\"), \"\", Selection_Hide2!M339)","v":""},{"$f":"IF(OR(Selection_Hide2!N339=0, Selection_Hide2!N339=\"\"), \"\", Selection_Hide2!N339)","v":""},{"$f":"IF(OR(Selection_Hide2!O339=0, Selection_Hide2!O339=\"\"), \"\", Selection_Hide2!O339)","v":""},{"$f":"IF(OR(Selection_Hide2!P339=0, Selection_Hide2!P339=\"\"), \"\", Selection_Hide2!P339)","v":""},{"$f":"IF(OR(Selection_Hide2!Q339=0, Selection_Hide2!Q339=\"\"), \"\", Selection_Hide2!Q339)","v":""},{"$f":"IF(OR(Selection_Hide2!R339=0, Selection_Hide2!R339=\"\"), \"\", Selection_Hide2!R339)","v":""},{"$f":"IF(OR(Selection_Hide2!S339=0, Selection_Hide2!S339=\"\"), \"\", Selection_Hide2!S339)","v":""},{"$f":"IF(OR(Selection_Hide2!T339=0, Selection_Hide2!T339=\"\"), \"\", Selection_Hide2!T339)","v":""},{"$f":"IF(OR(Selection_Hide2!U339=0, Selection_Hide2!U339=\"\"), \"\", Selection_Hide2!U339)","v":""},{"$f":"IF(OR(Selection_Hide2!V339=0, Selection_Hide2!V339=\"\"), \"\", Selection_Hide2!V339)","v":""},{"$f":"IF(OR(Selection_Hide2!W339=0, Selection_Hide2!W339=\"\"), \"\", Selection_Hide2!W339)","v":""},{"$f":"IF(OR(Selection_Hide2!X339=0, Selection_Hide2!X339=\"\"), \"\", Selection_Hide2!X339)","v":""},{"$f":"IF(OR(Selection_Hide2!Y339=0, Selection_Hide2!Y339=\"\"), \"\", Selection_Hide2!Y339)","v":""},{"$f":"IF(OR(Selection_Hide2!Z339=0, Selection_Hide2!Z339=\"\"), \"\", Selection_Hide2!Z339)","v":""},{"$f":"IF(OR(Selection_Hide2!AA339=0, Selection_Hide2!AA339=\"\"), \"\", Selection_Hide2!AA339)","v":""},{"$f":"IF(OR(Selection_Hide2!AB339=0, Selection_Hide2!AB339=\"\"), \"\", Selection_Hide2!AB339)","v":""}]
[{"$f":"IF(OR(Selection_Hide2!A340=0, Selection_Hide2!A340=\"\"), \"\", Selection_Hide2!A340)","v":""},{"$f":"IF(OR(Selection_Hide2!B340=0, Selection_Hide2!B340=\"\"), \"\", Selection_Hide2!B340)","v":""},{"$f":"IF(OR(Selection_Hide2!C340=0, Selection_Hide2!C340=\"\"), \"\", Selection_Hide2!C340)","v":""},{"$f":"IF(OR(Selection_Hide2!D340=0, Selection_Hide2!D340=\"\"), \"\", Selection_Hide2!D340)","v":""},{"$f":"IF(OR(Selection_Hide2!E340=0, Selection_Hide2!E340=\"\"), \"\", Selection_Hide2!E340)","v":""},{"$f":"IF(OR(Selection_Hide2!F340=0, Selection_Hide2!F340=\"\"), \"\", Selection_Hide2!F340)","v":""},{"$f":"IF(OR(Selection_Hide2!G340=0, Selection_Hide2!G340=\"\"), \"\", Selection_Hide2!G340)","v":""},{"$f":"IF(OR(Selection_Hide2!H340=0, Selection_Hide2!H340=\"\"), \"\", Selection_Hide2!H340)","v":""},{"$f":"IF(OR(Selection_Hide2!I340=0, Selection_Hide2!I340=\"\"), \"\", Selection_Hide2!I340)","v":""},{"$f":"IF(OR(Selection_Hide2!J340=0, Selection_Hide2!J340=\"\"), \"\", Selection_Hide2!J340)","v":""},{"$f":"IF(OR(Selection_Hide2!K340=0, Selection_Hide2!K340=\"\"), \"\", Selection_Hide2!K340)","v":""},{"$f":"IF(OR(Selection_Hide2!L340=0, Selection_Hide2!L340=\"\"), \"\", Selection_Hide2!L340)","v":""},{"$f":"IF(OR(Selection_Hide2!M340=0, Selection_Hide2!M340=\"\"), \"\", Selection_Hide2!M340)","v":""},{"$f":"IF(OR(Selection_Hide2!N340=0, Selection_Hide2!N340=\"\"), \"\", Selection_Hide2!N340)","v":""},{"$f":"IF(OR(Selection_Hide2!O340=0, Selection_Hide2!O340=\"\"), \"\", Selection_Hide2!O340)","v":""},{"$f":"IF(OR(Selection_Hide2!P340=0, Selection_Hide2!P340=\"\"), \"\", Selection_Hide2!P340)","v":""},{"$f":"IF(OR(Selection_Hide2!Q340=0, Selection_Hide2!Q340=\"\"), \"\", Selection_Hide2!Q340)","v":""},{"$f":"IF(OR(Selection_Hide2!R340=0, Selection_Hide2!R340=\"\"), \"\", Selection_Hide2!R340)","v":""},{"$f":"IF(OR(Selection_Hide2!S340=0, Selection_Hide2!S340=\"\"), \"\", Selection_Hide2!S340)","v":""},{"$f":"IF(OR(Selection_Hide2!T340=0, Selection_Hide2!T340=\"\"), \"\", Selection_Hide2!T340)","v":""},{"$f":"IF(OR(Selection_Hide2!U340=0, Selection_Hide2!U340=\"\"), \"\", Selection_Hide2!U340)","v":""},{"$f":"IF(OR(Selection_Hide2!V340=0, Selection_Hide2!V340=\"\"), \"\", Selection_Hide2!V340)","v":""},{"$f":"IF(OR(Selection_Hide2!W340=0, Selection_Hide2!W340=\"\"), \"\", Selection_Hide2!W340)","v":""},{"$f":"IF(OR(Selection_Hide2!X340=0, Selection_Hide2!X340=\"\"), \"\", Selection_Hide2!X340)","v":""},{"$f":"IF(OR(Selection_Hide2!Y340=0, Selection_Hide2!Y340=\"\"), \"\", Selection_Hide2!Y340)","v":""},{"$f":"IF(OR(Selection_Hide2!Z340=0, Selection_Hide2!Z340=\"\"), \"\", Selection_Hide2!Z340)","v":""},{"$f":"IF(OR(Selection_Hide2!AA340=0, Selection_Hide2!AA340=\"\"), \"\", Selection_Hide2!AA340)","v":""},{"$f":"IF(OR(Selection_Hide2!AB340=0, Selection_Hide2!AB340=\"\"), \"\", Selection_Hide2!AB340)","v":""}]
[{"$f":"IF(OR(Selection_Hide2!A341=0, Selection_Hide2!A341=\"\"), \"\", Selection_Hide2!A341)","v":""},{"$f":"IF(OR(Selection_Hide2!B341=0, Selection_Hide2!B341=\"\"), \"\", Selection_Hide2!B341)","v":""},{"$f":"IF(OR(Selection_Hide2!C341=0, Selection_Hide2!C341=\"\"), \"\", Selection_Hide2!C341)","v":""},{"$f":"IF(OR(Selection_Hide2!D341=0, Selection_Hide2!D341=\"\"), \"\", Selection_Hide2!D341)","v":""},{"$f":"IF(OR(Selection_Hide2!E341=0, Selection_Hide2!E341=\"\"), \"\", Selection_Hide2!E341)","v":""},{"$f":"IF(OR(Selection_Hide2!F341=0, Selection_Hide2!F341=\"\"), \"\", Selection_Hide2!F341)","v":""},{"$f":"IF(OR(Selection_Hide2!G341=0, Selection_Hide2!G341=\"\"), \"\", Selection_Hide2!G341)","v":""},{"$f":"IF(OR(Selection_Hide2!H341=0, Selection_Hide2!H341=\"\"), \"\", Selection_Hide2!H341)","v":""},{"$f":"IF(OR(Selection_Hide2!I341=0, Selection_Hide2!I341=\"\"), \"\", Selection_Hide2!I341)","v":""},{"$f":"IF(OR(Selection_Hide2!J341=0, Selection_Hide2!J341=\"\"), \"\", Selection_Hide2!J341)","v":""},{"$f":"IF(OR(Selection_Hide2!K341=0, Selection_Hide2!K341=\"\"), \"\", Selection_Hide2!K341)","v":""},{"$f":"IF(OR(Selection_Hide2!L341=0, Selection_Hide2!L341=\"\"), \"\", Selection_Hide2!L341)","v":""},{"$f":"IF(OR(Selection_Hide2!M341=0, Selection_Hide2!M341=\"\"), \"\", Selection_Hide2!M341)","v":""},{"$f":"IF(OR(Selection_Hide2!N341=0, Selection_Hide2!N341=\"\"), \"\", Selection_Hide2!N341)","v":""},{"$f":"IF(OR(Selection_Hide2!O341=0, Selection_Hide2!O341=\"\"), \"\", Selection_Hide2!O341)","v":""},{"$f":"IF(OR(Selection_Hide2!P341=0, Selection_Hide2!P341=\"\"), \"\", Selection_Hide2!P341)","v":""},{"$f":"IF(OR(Selection_Hide2!Q341=0, Selection_Hide2!Q341=\"\"), \"\", Selection_Hide2!Q341)","v":""},{"$f":"IF(OR(Selection_Hide2!R341=0, Selection_Hide2!R341=\"\"), \"\", Selection_Hide2!R341)","v":""},{"$f":"IF(OR(Selection_Hide2!S341=0, Selection_Hide2!S341=\"\"), \"\", Selection_Hide2!S341)","v":""},{"$f":"IF(OR(Selection_Hide2!T341=0, Selection_Hide2!T341=\"\"), \"\", Selection_Hide2!T341)","v":""},{"$f":"IF(OR(Selection_Hide2!U341=0, Selection_Hide2!U341=\"\"), \"\", Selection_Hide2!U341)","v":""},{"$f":"IF(OR(Selection_Hide2!V341=0, Selection_Hide2!V341=\"\"), \"\", Selection_Hide2!V341)","v":""},{"$f":"IF(OR(Selection_Hide2!W341=0, Selection_Hide2!W341=\"\"), \"\", Selection_Hide2!W341)","v":""},{"$f":"IF(OR(Selection_Hide2!X341=0, Selection_Hide2!X341=\"\"), \"\", Selection_Hide2!X341)","v":""},{"$f":"IF(OR(Selection_Hide2!Y341=0, Selection_Hide2!Y341=\"\"), \"\", Selection_Hide2!Y341)","v":""},{"$f":"IF(OR(Selection_Hide2!Z341=0, Selection_Hide2!Z341=\"\"), \"\", Selection_Hide2!Z341)","v":""},{"$f":"IF(OR(Selection_Hide2!AA341=0, Selection_Hide2!AA341=\"\"), \"\", Selection_Hide2!AA341)","v":""},{"$f":"IF(OR(Selection_Hide2!AB341=0, Selection_Hide2!AB341=\"\"), \"\", Selection_Hide2!AB341)","v":""}]
[{"$f":"IF(OR(Selection_Hide2!A342=0, Selection_Hide2!A342=\"\"), \"\", Selection_Hide2!A342)","v":""},{"$f":"IF(OR(Selection_Hide2!B342=0, Selection_Hide2!B342=\"\"), \"\", Selection_Hide2!B342)","v":""},{"$f":"IF(OR(Selection_Hide2!C342=0, Selection_Hide2!C342=\"\"), \"\", Selection_Hide2!C342)","v":""},{"$f":"IF(OR(Selection_Hide2!D342=0, Selection_Hide2!D342=\"\"), \"\", Selection_Hide2!D342)","v":""},{"$f":"IF(OR(Selection_Hide2!E342=0, Selection_Hide2!E342=\"\"), \"\", Selection_Hide2!E342)","v":""},{"$f":"IF(OR(Selection_Hide2!F342=0, Selection_Hide2!F342=\"\"), \"\", Selection_Hide2!F342)","v":""},{"$f":"IF(OR(Selection_Hide2!G342=0, Selection_Hide2!G342=\"\"), \"\", Selection_Hide2!G342)","v":""},{"$f":"IF(OR(Selection_Hide2!H342=0, Selection_Hide2!H342=\"\"), \"\", Selection_Hide2!H342)","v":""},{"$f":"IF(OR(Selection_Hide2!I342=0, Selection_Hide2!I342=\"\"), \"\", Selection_Hide2!I342)","v":""},{"$f":"IF(OR(Selection_Hide2!J342=0, Selection_Hide2!J342=\"\"), \"\", Selection_Hide2!J342)","v":""},{"$f":"IF(OR(Selection_Hide2!K342=0, Selection_Hide2!K342=\"\"), \"\", Selection_Hide2!K342)","v":""},{"$f":"IF(OR(Selection_Hide2!L342=0, Selection_Hide2!L342=\"\"), \"\", Selection_Hide2!L342)","v":""},{"$f":"IF(OR(Selection_Hide2!M342=0, Selection_Hide2!M342=\"\"), \"\", Selection_Hide2!M342)","v":""},{"$f":"IF(OR(Selection_Hide2!N342=0, Selection_Hide2!N342=\"\"), \"\", Selection_Hide2!N342)","v":""},{"$f":"IF(OR(Selection_Hide2!O342=0, Selection_Hide2!O342=\"\"), \"\", Selection_Hide2!O342)","v":""},{"$f":"IF(OR(Selection_Hide2!P342=0, Selection_Hide2!P342=\"\"), \"\", Selection_Hide2!P342)","v":""},{"$f":"IF(OR(Selection_Hide2!Q342=0, Selection_Hide2!Q342=\"\"), \"\", Selection_Hide2!Q342)","v":""},{"$f":"IF(OR(Selection_Hide2!R342=0, Selection_Hide2!R342=\"\"), \"\", Selection_Hide2!R342)","v":""},{"$f":"IF(OR(Selection_Hide2!S342=0, Selection_Hide2!S342=\"\"), \"\", Selection_Hide2!S342)","v":""},{"$f":"IF(OR(Selection_Hide2!T342=0, Selection_Hide2!T342=\"\"), \"\", Selection_Hide2!T342)","v":""},{"$f":"IF(OR(Selection_Hide2!U342=0, Selection_Hide2!U342=\"\"), \"\", Selection_Hide2!U342)","v":""},{"$f":"IF(OR(Selection_Hide2!V342=0, Selection_Hide2!V342=\"\"), \"\", Selection_Hide2!V342)","v":""},{"$f":"IF(OR(Selection_Hide2!W342=0, Selection_Hide2!W342=\"\"), \"\", Selection_Hide2!W342)","v":""},{"$f":"IF(OR(Selection_Hide2!X342=0, Selection_Hide2!X342=\"\"), \"\", Selection_Hide2!X342)","v":""},{"$f":"IF(OR(Selection_Hide2!Y342=0, Selection_Hide2!Y342=\"\"), \"\", Selection_Hide2!Y342)","v":""},{"$f":"IF(OR(Selection_Hide2!Z342=0, Selection_Hide2!Z342=\"\"), \"\", Selection_Hide2!Z342)","v":""},{"$f":"IF(OR(Selection_Hide2!AA342=0, Selection_Hide2!AA342=\"\"), \"\", Selection_Hide2!AA342)","v":""},{"$f":"IF(OR(Selection_Hide2!AB342=0, Selection_Hide2!AB342=\"\"), \"\", Selection_Hide2!AB342)","v":""}]
[{"$f":"IF(OR(Selection_Hide2!A343=0, Selection_Hide2!A343=\"\"), \"\", Selection_Hide2!A343)","v":""},{"$f":"IF(OR(Selection_Hide2!B343=0, Selection_Hide2!B343=\"\"), \"\", Selection_Hide2!B343)","v":""},{"$f":"IF(OR(Selection_Hide2!C343=0, Selection_Hide2!C343=\"\"), \"\", Selection_Hide2!C343)","v":""},{"$f":"IF(OR(Selection_Hide2!D343=0, Selection_Hide2!D343=\"\"), \"\", Selection_Hide2!D343)","v":""},{"$f":"IF(OR(Selection_Hide2!E343=0, Selection_Hide2!E343=\"\"), \"\", Selection_Hide2!E343)","v":""},{"$f":"IF(OR(Selection_Hide2!F343=0, Selection_Hide2!F343=\"\"), \"\", Selection_Hide2!F343)","v":""},{"$f":"IF(OR(Selection_Hide2!G343=0, Selection_Hide2!G343=\"\"), \"\", Selection_Hide2!G343)","v":""},{"$f":"IF(OR(Selection_Hide2!H343=0, Selection_Hide2!H343=\"\"), \"\", Selection_Hide2!H343)","v":""},{"$f":"IF(OR(Selection_Hide2!I343=0, Selection_Hide2!I343=\"\"), \"\", Selection_Hide2!I343)","v":""},{"$f":"IF(OR(Selection_Hide2!J343=0, Selection_Hide2!J343=\"\"), \"\", Selection_Hide2!J343)","v":""},{"$f":"IF(OR(Selection_Hide2!K343=0, Selection_Hide2!K343=\"\"), \"\", Selection_Hide2!K343)","v":""},{"$f":"IF(OR(Selection_Hide2!L343=0, Selection_Hide2!L343=\"\"), \"\", Selection_Hide2!L343)","v":""},{"$f":"IF(OR(Selection_Hide2!M343=0, Selection_Hide2!M343=\"\"), \"\", Selection_Hide2!M343)","v":""},{"$f":"IF(OR(Selection_Hide2!N343=0, Selection_Hide2!N343=\"\"), \"\", Selection_Hide2!N343)","v":""},{"$f":"IF(OR(Selection_Hide2!O343=0, Selection_Hide2!O343=\"\"), \"\", Selection_Hide2!O343)","v":""},{"$f":"IF(OR(Selection_Hide2!P343=0, Selection_Hide2!P343=\"\"), \"\", Selection_Hide2!P343)","v":""},{"$f":"IF(OR(Selection_Hide2!Q343=0, Selection_Hide2!Q343=\"\"), \"\", Selection_Hide2!Q343)","v":""},{"$f":"IF(OR(Selection_Hide2!R343=0, Selection_Hide2!R343=\"\"), \"\", Selection_Hide2!R343)","v":""},{"$f":"IF(OR(Selection_Hide2!S343=0, Selection_Hide2!S343=\"\"), \"\", Selection_Hide2!S343)","v":""},{"$f":"IF(OR(Selection_Hide2!T343=0, Selection_Hide2!T343=\"\"), \"\", Selection_Hide2!T343)","v":""},{"$f":"IF(OR(Selection_Hide2!U343=0, Selection_Hide2!U343=\"\"), \"\", Selection_Hide2!U343)","v":""},{"$f":"IF(OR(Selection_Hide2!V343=0, Selection_Hide2!V343=\"\"), \"\", Selection_Hide2!V343)","v":""},{"$f":"IF(OR(Selection_Hide2!W343=0, Selection_Hide2!W343=\"\"), \"\", Selection_Hide2!W343)","v":""},{"$f":"IF(OR(Selection_Hide2!X343=0, Selection_Hide2!X343=\"\"), \"\", Selection_Hide2!X343)","v":""},{"$f":"IF(OR(Selection_Hide2!Y343=0, Selection_Hide2!Y343=\"\"), \"\", Selection_Hide2!Y343)","v":""},{"$f":"IF(OR(Selection_Hide2!Z343=0, Selection_Hide2!Z343=\"\"), \"\", Selection_Hide2!Z343)","v":""},{"$f":"IF(OR(Selection_Hide2!AA343=0, Selection_Hide2!AA343=\"\"), \"\", Selection_Hide2!AA343)","v":""},{"$f":"IF(OR(Selection_Hide2!AB343=0, Selection_Hide2!AB343=\"\"), \"\", Selection_Hide2!AB343)","v":""}]
[{"$f":"IF(OR(Selection_Hide2!A344=0, Selection_Hide2!A344=\"\"), \"\", Selection_Hide2!A344)","v":""},{"$f":"IF(OR(Selection_Hide2!B344=0, Selection_Hide2!B344=\"\"), \"\", Selection_Hide2!B344)","v":""},{"$f":"IF(OR(Selection_Hide2!C344=0, Selection_Hide2!C344=\"\"), \"\", Selection_Hide2!C344)","v":""},{"$f":"IF(OR(Selection_Hide2!D344=0, Selection_Hide2!D344=\"\"), \"\", Selection_Hide2!D344)","v":""},{"$f":"IF(OR(Selection_Hide2!E344=0, Selection_Hide2!E344=\"\"), \"\", Selection_Hide2!E344)","v":""},{"$f":"IF(OR(Selection_Hide2!F344=0, Selection_Hide2!F344=\"\"), \"\", Selection_Hide2!F344)","v":""},{"$f":"IF(OR(Selection_Hide2!G344=0, Selection_Hide2!G344=\"\"), \"\", Selection_Hide2!G344)","v":""},{"$f":"IF(OR(Selection_Hide2!H344=0, Selection_Hide2!H344=\"\"), \"\", Selection_Hide2!H344)","v":""},{"$f":"IF(OR(Selection_Hide2!I344=0, Selection_Hide2!I344=\"\"), \"\", Selection_Hide2!I344)","v":""},{"$f":"IF(OR(Selection_Hide2!J344=0, Selection_Hide2!J344=\"\"), \"\", Selection_Hide2!J344)","v":""},{"$f":"IF(OR(Selection_Hide2!K344=0, Selection_Hide2!K344=\"\"), \"\", Selection_Hide2!K344)","v":""},{"$f":"IF(OR(Selection_Hide2!L344=0, Selection_Hide2!L344=\"\"), \"\", Selection_Hide2!L344)","v":""},{"$f":"IF(OR(Selection_Hide2!M344=0, Selection_Hide2!M344=\"\"), \"\", Selection_Hide2!M344)","v":""},{"$f":"IF(OR(Selection_Hide2!N344=0, Selection_Hide2!N344=\"\"), \"\", Selection_Hide2!N344)","v":""},{"$f":"IF(OR(Selection_Hide2!O344=0, Selection_Hide2!O344=\"\"), \"\", Selection_Hide2!O344)","v":""},{"$f":"IF(OR(Selection_Hide2!P344=0, Selection_Hide2!P344=\"\"), \"\", Selection_Hide2!P344)","v":""},{"$f":"IF(OR(Selection_Hide2!Q344=0, Selection_Hide2!Q344=\"\"), \"\", Selection_Hide2!Q344)","v":""},{"$f":"IF(OR(Selection_Hide2!R344=0, Selection_Hide2!R344=\"\"), \"\", Selection_Hide2!R344)","v":""},{"$f":"IF(OR(Selection_Hide2!S344=0, Selection_Hide2!S344=\"\"), \"\", Selection_Hide2!S344)","v":""},{"$f":"IF(OR(Selection_Hide2!T344=0, Selection_Hide2!T344=\"\"), \"\", Selection_Hide2!T344)","v":""},{"$f":"IF(OR(Selection_Hide2!U344=0, Selection_Hide2!U344=\"\"), \"\", Selection_Hide2!U344)","v":""},{"$f":"IF(OR(Selection_Hide2!V344=0, Selection_Hide2!V344=\"\"), \"\", Selection_Hide2!V344)","v":""},{"$f":"IF(OR(Selection_Hide2!W344=0, Selection_Hide2!W344=\"\"), \"\", Selection_Hide2!W344)","v":""},{"$f":"IF(OR(Selection_Hide2!X344=0, Selection_Hide2!X344=\"\"), \"\", Selection_Hide2!X344)","v":""},{"$f":"IF(OR(Selection_Hide2!Y344=0, Selection_Hide2!Y344=\"\"), \"\", Selection_Hide2!Y344)","v":""},{"$f":"IF(OR(Selection_Hide2!Z344=0, Selection_Hide2!Z344=\"\"), \"\", Selection_Hide2!Z344)","v":""},{"$f":"IF(OR(Selection_Hide2!AA344=0, Selection_Hide2!AA344=\"\"), \"\", Selection_Hide2!AA344)","v":""},{"$f":"IF(OR(Selection_Hide2!AB344=0, Selection_Hide2!AB344=\"\"), \"\", Selection_Hide2!AB344)","v":""}]
[{"$f":"IF(OR(Selection_Hide2!A345=0, Selection_Hide2!A345=\"\"), \"\", Selection_Hide2!A345)","v":""},{"$f":"IF(OR(Selection_Hide2!B345=0, Selection_Hide2!B345=\"\"), \"\", Selection_Hide2!B345)","v":""},{"$f":"IF(OR(Selection_Hide2!C345=0, Selection_Hide2!C345=\"\"), \"\", Selection_Hide2!C345)","v":""},{"$f":"IF(OR(Selection_Hide2!D345=0, Selection_Hide2!D345=\"\"), \"\", Selection_Hide2!D345)","v":""},{"$f":"IF(OR(Selection_Hide2!E345=0, Selection_Hide2!E345=\"\"), \"\", Selection_Hide2!E345)","v":""},{"$f":"IF(OR(Selection_Hide2!F345=0, Selection_Hide2!F345=\"\"), \"\", Selection_Hide2!F345)","v":""},{"$f":"IF(OR(Selection_Hide2!G345=0, Selection_Hide2!G345=\"\"), \"\", Selection_Hide2!G345)","v":""},{"$f":"IF(OR(Selection_Hide2!H345=0, Selection_Hide2!H345=\"\"), \"\", Selection_Hide2!H345)","v":""},{"$f":"IF(OR(Selection_Hide2!I345=0, Selection_Hide2!I345=\"\"), \"\", Selection_Hide2!I345)","v":""},{"$f":"IF(OR(Selection_Hide2!J345=0, Selection_Hide2!J345=\"\"), \"\", Selection_Hide2!J345)","v":""},{"$f":"IF(OR(Selection_Hide2!K345=0, Selection_Hide2!K345=\"\"), \"\", Selection_Hide2!K345)","v":""},{"$f":"IF(OR(Selection_Hide2!L345=0, Selection_Hide2!L345=\"\"), \"\", Selection_Hide2!L345)","v":""},{"$f":"IF(OR(Selection_Hide2!M345=0, Selection_Hide2!M345=\"\"), \"\", Selection_Hide2!M345)","v":""},{"$f":"IF(OR(Selection_Hide2!N345=0, Selection_Hide2!N345=\"\"), \"\", Selection_Hide2!N345)","v":""},{"$f":"IF(OR(Selection_Hide2!O345=0, Selection_Hide2!O345=\"\"), \"\", Selection_Hide2!O345)","v":""},{"$f":"IF(OR(Selection_Hide2!P345=0, Selection_Hide2!P345=\"\"), \"\", Selection_Hide2!P345)","v":""},{"$f":"IF(OR(Selection_Hide2!Q345=0, Selection_Hide2!Q345=\"\"), \"\", Selection_Hide2!Q345)","v":""},{"$f":"IF(OR(Selection_Hide2!R345=0, Selection_Hide2!R345=\"\"), \"\", Selection_Hide2!R345)","v":""},{"$f":"IF(OR(Selection_Hide2!S345=0, Selection_Hide2!S345=\"\"), \"\", Selection_Hide2!S345)","v":""},{"$f":"IF(OR(Selection_Hide2!T345=0, Selection_Hide2!T345=\"\"), \"\", Selection_Hide2!T345)","v":""},{"$f":"IF(OR(Selection_Hide2!U345=0, Selection_Hide2!U345=\"\"), \"\", Selection_Hide2!U345)","v":""},{"$f":"IF(OR(Selection_Hide2!V345=0, Selection_Hide2!V345=\"\"), \"\", Selection_Hide2!V345)","v":""},{"$f":"IF(OR(Selection_Hide2!W345=0, Selection_Hide2!W345=\"\"), \"\", Selection_Hide2!W345)","v":""},{"$f":"IF(OR(Selection_Hide2!X345=0, Selection_Hide2!X345=\"\"), \"\", Selection_Hide2!X345)","v":""},{"$f":"IF(OR(Selection_Hide2!Y345=0, Selection_Hide2!Y345=\"\"), \"\", Selection_Hide2!Y345)","v":""},{"$f":"IF(OR(Selection_Hide2!Z345=0, Selection_Hide2!Z345=\"\"), \"\", Selection_Hide2!Z345)","v":""},{"$f":"IF(OR(Selection_Hide2!AA345=0, Selection_Hide2!AA345=\"\"), \"\", Selection_Hide2!AA345)","v":""},{"$f":"IF(OR(Selection_Hide2!AB345=0, Selection_Hide2!AB345=\"\"), \"\", Selection_Hide2!AB345)","v":""}]
[{"$f":"IF(OR(Selection_Hide2!A346=0, Selection_Hide2!A346=\"\"), \"\", Selection_Hide2!A346)","v":""},{"$f":"IF(OR(Selection_Hide2!B346=0, Selection_Hide2!B346=\"\"), \"\", Selection_Hide2!B346)","v":""},{"$f":"IF(OR(Selection_Hide2!C346=0, Selection_Hide2!C346=\"\"), \"\", Selection_Hide2!C346)","v":""},{"$f":"IF(OR(Selection_Hide2!D346=0, Selection_Hide2!D346=\"\"), \"\", Selection_Hide2!D346)","v":""},{"$f":"IF(OR(Selection_Hide2!E346=0, Selection_Hide2!E346=\"\"), \"\", Selection_Hide2!E346)","v":""},{"$f":"IF(OR(Selection_Hide2!F346=0, Selection_Hide2!F346=\"\"), \"\", Selection_Hide2!F346)","v":""},{"$f":"IF(OR(Selection_Hide2!G346=0, Selection_Hide2!G346=\"\"), \"\", Selection_Hide2!G346)","v":""},{"$f":"IF(OR(Selection_Hide2!H346=0, Selection_Hide2!H346=\"\"), \"\", Selection_Hide2!H346)","v":""},{"$f":"IF(OR(Selection_Hide2!I346=0, Selection_Hide2!I346=\"\"), \"\", Selection_Hide2!I346)","v":""},{"$f":"IF(OR(Selection_Hide2!J346=0, Selection_Hide2!J346=\"\"), \"\", Selection_Hide2!J346)","v":""},{"$f":"IF(OR(Selection_Hide2!K346=0, Selection_Hide2!K346=\"\"), \"\", Selection_Hide2!K346)","v":""},{"$f":"IF(OR(Selection_Hide2!L346=0, Selection_Hide2!L346=\"\"), \"\", Selection_Hide2!L346)","v":""},{"$f":"IF(OR(Selection_Hide2!M346=0, Selection_Hide2!M346=\"\"), \"\", Selection_Hide2!M346)","v":""},{"$f":"IF(OR(Selection_Hide2!N346=0, Selection_Hide2!N346=\"\"), \"\", Selection_Hide2!N346)","v":""},{"$f":"IF(OR(Selection_Hide2!O346=0, Selection_Hide2!O346=\"\"), \"\", Selection_Hide2!O346)","v":""},{"$f":"IF(OR(Selection_Hide2!P346=0, Selection_Hide2!P346=\"\"), \"\", Selection_Hide2!P346)","v":""},{"$f":"IF(OR(Selection_Hide2!Q346=0, Selection_Hide2!Q346=\"\"), \"\", Selection_Hide2!Q346)","v":""},{"$f":"IF(OR(Selection_Hide2!R346=0, Selection_Hide2!R346=\"\"), \"\", Selection_Hide2!R346)","v":""},{"$f":"IF(OR(Selection_Hide2!S346=0, Selection_Hide2!S346=\"\"), \"\", Selection_Hide2!S346)","v":""},{"$f":"IF(OR(Selection_Hide2!T346=0, Selection_Hide2!T346=\"\"), \"\", Selection_Hide2!T346)","v":""},{"$f":"IF(OR(Selection_Hide2!U346=0, Selection_Hide2!U346=\"\"), \"\", Selection_Hide2!U346)","v":""},{"$f":"IF(OR(Selection_Hide2!V346=0, Selection_Hide2!V346=\"\"), \"\", Selection_Hide2!V346)","v":""},{"$f":"IF(OR(Selection_Hide2!W346=0, Selection_Hide2!W346=\"\"), \"\", Selection_Hide2!W346)","v":""},{"$f":"IF(OR(Selection_Hide2!X346=0, Selection_Hide2!X346=\"\"), \"\", Selection_Hide2!X346)","v":""},{"$f":"IF(OR(Selection_Hide2!Y346=0, Selection_Hide2!Y346=\"\"), \"\", Selection_Hide2!Y346)","v":""},{"$f":"IF(OR(Selection_Hide2!Z346=0, Selection_Hide2!Z346=\"\"), \"\", Selection_Hide2!Z346)","v":""},{"$f":"IF(OR(Selection_Hide2!AA346=0, Selection_Hide2!AA346=\"\"), \"\", Selection_Hide2!AA346)","v":""},{"$f":"IF(OR(Selection_Hide2!AB346=0, Selection_Hide2!AB346=\"\"), \"\", Selection_Hide2!AB346)","v":""}]
[{"$f":"IF(OR(Selection_Hide2!A347=0, Selection_Hide2!A347=\"\"), \"\", Selection_Hide2!A347)","v":""},{"$f":"IF(OR(Selection_Hide2!B347=0, Selection_Hide2!B347=\"\"), \"\", Selection_Hide2!B347)","v":""},{"$f":"IF(OR(Selection_Hide2!C347=0, Selection_Hide2!C347=\"\"), \"\", Selection_Hide2!C347)","v":""},{"$f":"IF(OR(Selection_Hide2!D347=0, Selection_Hide2!D347=\"\"), \"\", Selection_Hide2!D347)","v":""},{"$f":"IF(OR(Selection_Hide2!E347=0, Selection_Hide2!E347=\"\"), \"\", Selection_Hide2!E347)","v":""},{"$f":"IF(OR(Selection_Hide2!F347=0, Selection_Hide2!F347=\"\"), \"\", Selection_Hide2!F347)","v":""},{"$f":"IF(OR(Selection_Hide2!G347=0, Selection_Hide2!G347=\"\"), \"\", Selection_Hide2!G347)","v":""},{"$f":"IF(OR(Selection_Hide2!H347=0, Selection_Hide2!H347=\"\"), \"\", Selection_Hide2!H347)","v":""},{"$f":"IF(OR(Selection_Hide2!I347=0, Selection_Hide2!I347=\"\"), \"\", Selection_Hide2!I347)","v":""},{"$f":"IF(OR(Selection_Hide2!J347=0, Selection_Hide2!J347=\"\"), \"\", Selection_Hide2!J347)","v":""},{"$f":"IF(OR(Selection_Hide2!K347=0, Selection_Hide2!K347=\"\"), \"\", Selection_Hide2!K347)","v":""},{"$f":"IF(OR(Selection_Hide2!L347=0, Selection_Hide2!L347=\"\"), \"\", Selection_Hide2!L347)","v":""},{"$f":"IF(OR(Selection_Hide2!M347=0, Selection_Hide2!M347=\"\"), \"\", Selection_Hide2!M347)","v":""},{"$f":"IF(OR(Selection_Hide2!N347=0, Selection_Hide2!N347=\"\"), \"\", Selection_Hide2!N347)","v":""},{"$f":"IF(OR(Selection_Hide2!O347=0, Selection_Hide2!O347=\"\"), \"\", Selection_Hide2!O347)","v":""},{"$f":"IF(OR(Selection_Hide2!P347=0, Selection_Hide2!P347=\"\"), \"\", Selection_Hide2!P347)","v":""},{"$f":"IF(OR(Selection_Hide2!Q347=0, Selection_Hide2!Q347=\"\"), \"\", Selection_Hide2!Q347)","v":""},{"$f":"IF(OR(Selection_Hide2!R347=0, Selection_Hide2!R347=\"\"), \"\", Selection_Hide2!R347)","v":""},{"$f":"IF(OR(Selection_Hide2!S347=0, Selection_Hide2!S347=\"\"), \"\", Selection_Hide2!S347)","v":""},{"$f":"IF(OR(Selection_Hide2!T347=0, Selection_Hide2!T347=\"\"), \"\", Selection_Hide2!T347)","v":""},{"$f":"IF(OR(Selection_Hide2!U347=0, Selection_Hide2!U347=\"\"), \"\", Selection_Hide2!U347)","v":""},{"$f":"IF(OR(Selection_Hide2!V347=0, Selection_Hide2!V347=\"\"), \"\", Selection_Hide2!V347)","v":""},{"$f":"IF(OR(Selection_Hide2!W347=0, Selection_Hide2!W347=\"\"), \"\", Selection_Hide2!W347)","v":""},{"$f":"IF(OR(Selection_Hide2!X347=0, Selection_Hide2!X347=\"\"), \"\", Selection_Hide2!X347)","v":""},{"$f":"IF(OR(Selection_Hide2!Y347=0, Selection_Hide2!Y347=\"\"), \"\", Selection_Hide2!Y347)","v":""},{"$f":"IF(OR(Selection_Hide2!Z347=0, Selection_Hide2!Z347=\"\"), \"\", Selection_Hide2!Z347)","v":""},{"$f":"IF(OR(Selection_Hide2!AA347=0, Selection_Hide2!AA347=\"\"), \"\", Selection_Hide2!AA347)","v":""},{"$f":"IF(OR(Selection_Hide2!AB347=0, Selection_Hide2!AB347=\"\"), \"\", Selection_Hide2!AB347)","v":""}]
[{"$f":"IF(OR(Selection_Hide2!A348=0, Selection_Hide2!A348=\"\"), \"\", Selection_Hide2!A348)","v":""},{"$f":"IF(OR(Selection_Hide2!B348=0, Selection_Hide2!B348=\"\"), \"\", Selection_Hide2!B348)","v":""},{"$f":"IF(OR(Selection_Hide2!C348=0, Selection_Hide2!C348=\"\"), \"\", Selection_Hide2!C348)","v":""},{"$f":"IF(OR(Selection_Hide2!D348=0, Selection_Hide2!D348=\"\"), \"\", Selection_Hide2!D348)","v":""},{"$f":"IF(OR(Selection_Hide2!E348=0, Selection_Hide2!E348=\"\"), \"\", Selection_Hide2!E348)","v":""},{"$f":"IF(OR(Selection_Hide2!F348=0, Selection_Hide2!F348=\"\"), \"\", Selection_Hide2!F348)","v":""},{"$f":"IF(OR(Selection_Hide2!G348=0, Selection_Hide2!G348=\"\"), \"\", Selection_Hide2!G348)","v":""},{"$f":"IF(OR(Selection_Hide2!H348=0, Selection_Hide2!H348=\"\"), \"\", Selection_Hide2!H348)","v":""},{"$f":"IF(OR(Selection_Hide2!I348=0, Selection_Hide2!I348=\"\"), \"\", Selection_Hide2!I348)","v":""},{"$f":"IF(OR(Selection_Hide2!J348=0, Selection_Hide2!J348=\"\"), \"\", Selection_Hide2!J348)","v":""},{"$f":"IF(OR(Selection_Hide2!K348=0, Selection_Hide2!K348=\"\"), \"\", Selection_Hide2!K348)","v":""},{"$f":"IF(OR(Selection_Hide2!L348=0, Selection_Hide2!L348=\"\"), \"\", Selection_Hide2!L348)","v":""},{"$f":"IF(OR(Selection_Hide2!M348=0, Selection_Hide2!M348=\"\"), \"\", Selection_Hide2!M348)","v":""},{"$f":"IF(OR(Selection_Hide2!N348=0, Selection_Hide2!N348=\"\"), \"\", Selection_Hide2!N348)","v":""},{"$f":"IF(OR(Selection_Hide2!O348=0, Selection_Hide2!O348=\"\"), \"\", Selection_Hide2!O348)","v":""},{"$f":"IF(OR(Selection_Hide2!P348=0, Selection_Hide2!P348=\"\"), \"\", Selection_Hide2!P348)","v":""},{"$f":"IF(OR(Selection_Hide2!Q348=0, Selection_Hide2!Q348=\"\"), \"\", Selection_Hide2!Q348)","v":""},{"$f":"IF(OR(Selection_Hide2!R348=0, Selection_Hide2!R348=\"\"), \"\", Selection_Hide2!R348)","v":""},{"$f":"IF(OR(Selection_Hide2!S348=0, Selection_Hide2!S348=\"\"), \"\", Selection_Hide2!S348)","v":""},{"$f":"IF(OR(Selection_Hide2!T348=0, Selection_Hide2!T348=\"\"), \"\", Selection_Hide2!T348)","v":""},{"$f":"IF(OR(Selection_Hide2!U348=0, Selection_Hide2!U348=\"\"), \"\", Selection_Hide2!U348)","v":""},{"$f":"IF(OR(Selection_Hide2!V348=0, Selection_Hide2!V348=\"\"), \"\", Selection_Hide2!V348)","v":""},{"$f":"IF(OR(Selection_Hide2!W348=0, Selection_Hide2!W348=\"\"), \"\", Selection_Hide2!W348)","v":""},{"$f":"IF(OR(Selection_Hide2!X348=0, Selection_Hide2!X348=\"\"), \"\", Selection_Hide2!X348)","v":""},{"$f":"IF(OR(Selection_Hide2!Y348=0, Selection_Hide2!Y348=\"\"), \"\", Selection_Hide2!Y348)","v":""},{"$f":"IF(OR(Selection_Hide2!Z348=0, Selection_Hide2!Z348=\"\"), \"\", Selection_Hide2!Z348)","v":""},{"$f":"IF(OR(Selection_Hide2!AA348=0, Selection_Hide2!AA348=\"\"), \"\", Selection_Hide2!AA348)","v":""},{"$f":"IF(OR(Selection_Hide2!AB348=0, Selection_Hide2!AB348=\"\"), \"\", Selection_Hide2!AB348)","v":""}]
[{"$f":"IF(OR(Selection_Hide2!A349=0, Selection_Hide2!A349=\"\"), \"\", Selection_Hide2!A349)","v":""},{"$f":"IF(OR(Selection_Hide2!B349=0, Selection_Hide2!B349=\"\"), \"\", Selection_Hide2!B349)","v":""},{"$f":"IF(OR(Selection_Hide2!C349=0, Selection_Hide2!C349=\"\"), \"\", Selection_Hide2!C349)","v":""},{"$f":"IF(OR(Selection_Hide2!D349=0, Selection_Hide2!D349=\"\"), \"\", Selection_Hide2!D349)","v":""},{"$f":"IF(OR(Selection_Hide2!E349=0, Selection_Hide2!E349=\"\"), \"\", Selection_Hide2!E349)","v":""},{"$f":"IF(OR(Selection_Hide2!F349=0, Selection_Hide2!F349=\"\"), \"\", Selection_Hide2!F349)","v":""},{"$f":"IF(OR(Selection_Hide2!G349=0, Selection_Hide2!G349=\"\"), \"\", Selection_Hide2!G349)","v":""},{"$f":"IF(OR(Selection_Hide2!H349=0, Selection_Hide2!H349=\"\"), \"\", Selection_Hide2!H349)","v":""},{"$f":"IF(OR(Selection_Hide2!I349=0, Selection_Hide2!I349=\"\"), \"\", Selection_Hide2!I349)","v":""},{"$f":"IF(OR(Selection_Hide2!J349=0, Selection_Hide2!J349=\"\"), \"\", Selection_Hide2!J349)","v":""},{"$f":"IF(OR(Selection_Hide2!K349=0, Selection_Hide2!K349=\"\"), \"\", Selection_Hide2!K349)","v":""},{"$f":"IF(OR(Selection_Hide2!L349=0, Selection_Hide2!L349=\"\"), \"\", Selection_Hide2!L349)","v":""},{"$f":"IF(OR(Selection_Hide2!M349=0, Selection_Hide2!M349=\"\"), \"\", Selection_Hide2!M349)","v":""},{"$f":"IF(OR(Selection_Hide2!N349=0, Selection_Hide2!N349=\"\"), \"\", Selection_Hide2!N349)","v":""},{"$f":"IF(OR(Selection_Hide2!O349=0, Selection_Hide2!O349=\"\"), \"\", Selection_Hide2!O349)","v":""},{"$f":"IF(OR(Selection_Hide2!P349=0, Selection_Hide2!P349=\"\"), \"\", Selection_Hide2!P349)","v":""},{"$f":"IF(OR(Selection_Hide2!Q349=0, Selection_Hide2!Q349=\"\"), \"\", Selection_Hide2!Q349)","v":""},{"$f":"IF(OR(Selection_Hide2!R349=0, Selection_Hide2!R349=\"\"), \"\", Selection_Hide2!R349)","v":""},{"$f":"IF(OR(Selection_Hide2!S349=0, Selection_Hide2!S349=\"\"), \"\", Selection_Hide2!S349)","v":""},{"$f":"IF(OR(Selection_Hide2!T349=0, Selection_Hide2!T349=\"\"), \"\", Selection_Hide2!T349)","v":""},{"$f":"IF(OR(Selection_Hide2!U349=0, Selection_Hide2!U349=\"\"), \"\", Selection_Hide2!U349)","v":""},{"$f":"IF(OR(Selection_Hide2!V349=0, Selection_Hide2!V349=\"\"), \"\", Selection_Hide2!V349)","v":""},{"$f":"IF(OR(Selection_Hide2!W349=0, Selection_Hide2!W349=\"\"), \"\", Selection_Hide2!W349)","v":""},{"$f":"IF(OR(Selection_Hide2!X349=0, Selection_Hide2!X349=\"\"), \"\", Selection_Hide2!X349)","v":""},{"$f":"IF(OR(Selection_Hide2!Y349=0, Selection_Hide2!Y349=\"\"), \"\", Selection_Hide2!Y349)","v":""},{"$f":"IF(OR(Selection_Hide2!Z349=0, Selection_Hide2!Z349=\"\"), \"\", Selection_Hide2!Z349)","v":""},{"$f":"IF(OR(Selection_Hide2!AA349=0, Selection_Hide2!AA349=\"\"), \"\", Selection_Hide2!AA349)","v":""},{"$f":"IF(OR(Selection_Hide2!AB349=0, Selection_Hide2!AB349=\"\"), \"\", Selection_Hide2!AB349)","v":""}]
[{"$f":"IF(OR(Selection_Hide2!A350=0, Selection_Hide2!A350=\"\"), \"\", Selection_Hide2!A350)","v":""},{"$f":"IF(OR(Selection_Hide2!B350=0, Selection_Hide2!B350=\"\"), \"\", Selection_Hide2!B350)","v":""},{"$f":"IF(OR(Selection_Hide2!C350=0, Selection_Hide2!C350=\"\"), \"\", Selection_Hide2!C350)","v":""},{"$f":"IF(OR(Selection_Hide2!D350=0, Selection_Hide2!D350=\"\"), \"\", Selection_Hide2!D350)","v":""},{"$f":"IF(OR(Selection_Hide2!E350=0, Selection_Hide2!E350=\"\"), \"\", Selection_Hide2!E350)","v":""},{"$f":"IF(OR(Selection_Hide2!F350=0, Selection_Hide2!F350=\"\"), \"\", Selection_Hide2!F350)","v":""},{"$f":"IF(OR(Selection_Hide2!G350=0, Selection_Hide2!G350=\"\"), \"\", Selection_Hide2!G350)","v":""},{"$f":"IF(OR(Selection_Hide2!H350=0, Selection_Hide2!H350=\"\"), \"\", Selection_Hide2!H350)","v":""},{"$f":"IF(OR(Selection_Hide2!I350=0, Selection_Hide2!I350=\"\"), \"\", Selection_Hide2!I350)","v":""},{"$f":"IF(OR(Selection_Hide2!J350=0, Selection_Hide2!J350=\"\"), \"\", Selection_Hide2!J350)","v":""},{"$f":"IF(OR(Selection_Hide2!K350=0, Selection_Hide2!K350=\"\"), \"\", Selection_Hide2!K350)","v":""},{"$f":"IF(OR(Selection_Hide2!L350=0, Selection_Hide2!L350=\"\"), \"\", Selection_Hide2!L350)","v":""},{"$f":"IF(OR(Selection_Hide2!M350=0, Selection_Hide2!M350=\"\"), \"\", Selection_Hide2!M350)","v":""},{"$f":"IF(OR(Selection_Hide2!N350=0, Selection_Hide2!N350=\"\"), \"\", Selection_Hide2!N350)","v":""},{"$f":"IF(OR(Selection_Hide2!O350=0, Selection_Hide2!O350=\"\"), \"\", Selection_Hide2!O350)","v":""},{"$f":"IF(OR(Selection_Hide2!P350=0, Selection_Hide2!P350=\"\"), \"\", Selection_Hide2!P350)","v":""},{"$f":"IF(OR(Selection_Hide2!Q350=0, Selection_Hide2!Q350=\"\"), \"\", Selection_Hide2!Q350)","v":""},{"$f":"IF(OR(Selection_Hide2!R350=0, Selection_Hide2!R350=\"\"), \"\", Selection_Hide2!R350)","v":""},{"$f":"IF(OR(Selection_Hide2!S350=0, Selection_Hide2!S350=\"\"), \"\", Selection_Hide2!S350)","v":""},{"$f":"IF(OR(Selection_Hide2!T350=0, Selection_Hide2!T350=\"\"), \"\", Selection_Hide2!T350)","v":""},{"$f":"IF(OR(Selection_Hide2!U350=0, Selection_Hide2!U350=\"\"), \"\", Selection_Hide2!U350)","v":""},{"$f":"IF(OR(Selection_Hide2!V350=0, Selection_Hide2!V350=\"\"), \"\", Selection_Hide2!V350)","v":""},{"$f":"IF(OR(Selection_Hide2!W350=0, Selection_Hide2!W350=\"\"), \"\", Selection_Hide2!W350)","v":""},{"$f":"IF(OR(Selection_Hide2!X350=0, Selection_Hide2!X350=\"\"), \"\", Selection_Hide2!X350)","v":""},{"$f":"IF(OR(Selection_Hide2!Y350=0, Selection_Hide2!Y350=\"\"), \"\", Selection_Hide2!Y350)","v":""},{"$f":"IF(OR(Selection_Hide2!Z350=0, Selection_Hide2!Z350=\"\"), \"\", Selection_Hide2!Z350)","v":""},{"$f":"IF(OR(Selection_Hide2!AA350=0, Selection_Hide2!AA350=\"\"), \"\", Selection_Hide2!AA350)","v":""},{"$f":"IF(OR(Selection_Hide2!AB350=0, Selection_Hide2!AB350=\"\"), \"\", Selection_Hide2!AB350)","v":""}]
[{"$f":"IF(OR(Selection_Hide2!A351=0, Selection_Hide2!A351=\"\"), \"\", Selection_Hide2!A351)","v":""},{"$f":"IF(OR(Selection_Hide2!B351=0, Selection_Hide2!B351=\"\"), \"\", Selection_Hide2!B351)","v":""},{"$f":"IF(OR(Selection_Hide2!C351=0, Selection_Hide2!C351=\"\"), \"\", Selection_Hide2!C351)","v":""},{"$f":"IF(OR(Selection_Hide2!D351=0, Selection_Hide2!D351=\"\"), \"\", Selection_Hide2!D351)","v":""},{"$f":"IF(OR(Selection_Hide2!E351=0, Selection_Hide2!E351=\"\"), \"\", Selection_Hide2!E351)","v":""},{"$f":"IF(OR(Selection_Hide2!F351=0, Selection_Hide2!F351=\"\"), \"\", Selection_Hide2!F351)","v":""},{"$f":"IF(OR(Selection_Hide2!G351=0, Selection_Hide2!G351=\"\"), \"\", Selection_Hide2!G351)","v":""},{"$f":"IF(OR(Selection_Hide2!H351=0, Selection_Hide2!H351=\"\"), \"\", Selection_Hide2!H351)","v":""},{"$f":"IF(OR(Selection_Hide2!I351=0, Selection_Hide2!I351=\"\"), \"\", Selection_Hide2!I351)","v":""},{"$f":"IF(OR(Selection_Hide2!J351=0, Selection_Hide2!J351=\"\"), \"\", Selection_Hide2!J351)","v":""},{"$f":"IF(OR(Selection_Hide2!K351=0, Selection_Hide2!K351=\"\"), \"\", Selection_Hide2!K351)","v":""},{"$f":"IF(OR(Selection_Hide2!L351=0, Selection_Hide2!L351=\"\"), \"\", Selection_Hide2!L351)","v":""},{"$f":"IF(OR(Selection_Hide2!M351=0, Selection_Hide2!M351=\"\"), \"\", Selection_Hide2!M351)","v":""},{"$f":"IF(OR(Selection_Hide2!N351=0, Selection_Hide2!N351=\"\"), \"\", Selection_Hide2!N351)","v":""},{"$f":"IF(OR(Selection_Hide2!O351=0, Selection_Hide2!O351=\"\"), \"\", Selection_Hide2!O351)","v":""},{"$f":"IF(OR(Selection_Hide2!P351=0, Selection_Hide2!P351=\"\"), \"\", Selection_Hide2!P351)","v":""},{"$f":"IF(OR(Selection_Hide2!Q351=0, Selection_Hide2!Q351=\"\"), \"\", Selection_Hide2!Q351)","v":""},{"$f":"IF(OR(Selection_Hide2!R351=0, Selection_Hide2!R351=\"\"), \"\", Selection_Hide2!R351)","v":""},{"$f":"IF(OR(Selection_Hide2!S351=0, Selection_Hide2!S351=\"\"), \"\", Selection_Hide2!S351)","v":""},{"$f":"IF(OR(Selection_Hide2!T351=0, Selection_Hide2!T351=\"\"), \"\", Selection_Hide2!T351)","v":""},{"$f":"IF(OR(Selection_Hide2!U351=0, Selection_Hide2!U351=\"\"), \"\", Selection_Hide2!U351)","v":""},{"$f":"IF(OR(Selection_Hide2!V351=0, Selection_Hide2!V351=\"\"), \"\", Selection_Hide2!V351)","v":""},{"$f":"IF(OR(Selection_Hide2!W351=0, Selection_Hide2!W351=\"\"), \"\", Selection_Hide2!W351)","v":""},{"$f":"IF(OR(Selection_Hide2!X351=0, Selection_Hide2!X351=\"\"), \"\", Selection_Hide2!X351)","v":""},{"$f":"IF(OR(Selection_Hide2!Y351=0, Selection_Hide2!Y351=\"\"), \"\", Selection_Hide2!Y351)","v":""},{"$f":"IF(OR(Selection_Hide2!Z351=0, Selection_Hide2!Z351=\"\"), \"\", Selection_Hide2!Z351)","v":""},{"$f":"IF(OR(Selection_Hide2!AA351=0, Selection_Hide2!AA351=\"\"), \"\", Selection_Hide2!AA351)","v":""},{"$f":"IF(OR(Selection_Hide2!AB351=0, Selection_Hide2!AB351=\"\"), \"\", Selection_Hide2!AB351)","v":""}]
[{"$f":"IF(OR(Selection_Hide2!A352=0, Selection_Hide2!A352=\"\"), \"\", Selection_Hide2!A352)","v":""},{"$f":"IF(OR(Selection_Hide2!B352=0, Selection_Hide2!B352=\"\"), \"\", Selection_Hide2!B352)","v":""},{"$f":"IF(OR(Selection_Hide2!C352=0, Selection_Hide2!C352=\"\"), \"\", Selection_Hide2!C352)","v":""},{"$f":"IF(OR(Selection_Hide2!D352=0, Selection_Hide2!D352=\"\"), \"\", Selection_Hide2!D352)","v":""},{"$f":"IF(OR(Selection_Hide2!E352=0, Selection_Hide2!E352=\"\"), \"\", Selection_Hide2!E352)","v":""},{"$f":"IF(OR(Selection_Hide2!F352=0, Selection_Hide2!F352=\"\"), \"\", Selection_Hide2!F352)","v":""},{"$f":"IF(OR(Selection_Hide2!G352=0, Selection_Hide2!G352=\"\"), \"\", Selection_Hide2!G352)","v":""},{"$f":"IF(OR(Selection_Hide2!H352=0, Selection_Hide2!H352=\"\"), \"\", Selection_Hide2!H352)","v":""},{"$f":"IF(OR(Selection_Hide2!I352=0, Selection_Hide2!I352=\"\"), \"\", Selection_Hide2!I352)","v":""},{"$f":"IF(OR(Selection_Hide2!J352=0, Selection_Hide2!J352=\"\"), \"\", Selection_Hide2!J352)","v":""},{"$f":"IF(OR(Selection_Hide2!K352=0, Selection_Hide2!K352=\"\"), \"\", Selection_Hide2!K352)","v":""},{"$f":"IF(OR(Selection_Hide2!L352=0, Selection_Hide2!L352=\"\"), \"\", Selection_Hide2!L352)","v":""},{"$f":"IF(OR(Selection_Hide2!M352=0, Selection_Hide2!M352=\"\"), \"\", Selection_Hide2!M352)","v":""},{"$f":"IF(OR(Selection_Hide2!N352=0, Selection_Hide2!N352=\"\"), \"\", Selection_Hide2!N352)","v":""},{"$f":"IF(OR(Selection_Hide2!O352=0, Selection_Hide2!O352=\"\"), \"\", Selection_Hide2!O352)","v":""},{"$f":"IF(OR(Selection_Hide2!P352=0, Selection_Hide2!P352=\"\"), \"\", Selection_Hide2!P352)","v":""},{"$f":"IF(OR(Selection_Hide2!Q352=0, Selection_Hide2!Q352=\"\"), \"\", Selection_Hide2!Q352)","v":""},{"$f":"IF(OR(Selection_Hide2!R352=0, Selection_Hide2!R352=\"\"), \"\", Selection_Hide2!R352)","v":""},{"$f":"IF(OR(Selection_Hide2!S352=0, Selection_Hide2!S352=\"\"), \"\", Selection_Hide2!S352)","v":""},{"$f":"IF(OR(Selection_Hide2!T352=0, Selection_Hide2!T352=\"\"), \"\", Selection_Hide2!T352)","v":""},{"$f":"IF(OR(Selection_Hide2!U352=0, Selection_Hide2!U352=\"\"), \"\", Selection_Hide2!U352)","v":""},{"$f":"IF(OR(Selection_Hide2!V352=0, Selection_Hide2!V352=\"\"), \"\", Selection_Hide2!V352)","v":""},{"$f":"IF(OR(Selection_Hide2!W352=0, Selection_Hide2!W352=\"\"), \"\", Selection_Hide2!W352)","v":""},{"$f":"IF(OR(Selection_Hide2!X352=0, Selection_Hide2!X352=\"\"), \"\", Selection_Hide2!X352)","v":""},{"$f":"IF(OR(Selection_Hide2!Y352=0, Selection_Hide2!Y352=\"\"), \"\", Selection_Hide2!Y352)","v":""},{"$f":"IF(OR(Selection_Hide2!Z352=0, Selection_Hide2!Z352=\"\"), \"\", Selection_Hide2!Z352)","v":""},{"$f":"IF(OR(Selection_Hide2!AA352=0, Selection_Hide2!AA352=\"\"), \"\", Selection_Hide2!AA352)","v":""},{"$f":"IF(OR(Selection_Hide2!AB352=0, Selection_Hide2!AB352=\"\"), \"\", Selection_Hide2!AB352)","v":""}]
[{"$f":"IF(OR(Selection_Hide2!A353=0, Selection_Hide2!A353=\"\"), \"\", Selection_Hide2!A353)","v":""},{"$f":"IF(OR(Selection_Hide2!B353=0, Selection_Hide2!B353=\"\"), \"\", Selection_Hide2!B353)","v":""},{"$f":"IF(OR(Selection_Hide2!C353=0, Selection_Hide2!C353=\"\"), \"\", Selection_Hide2!C353)","v":""},{"$f":"IF(OR(Selection_Hide2!D353=0, Selection_Hide2!D353=\"\"), \"\", Selection_Hide2!D353)","v":""},{"$f":"IF(OR(Selection_Hide2!E353=0, Selection_Hide2!E353=\"\"), \"\", Selection_Hide2!E353)","v":""},{"$f":"IF(OR(Selection_Hide2!F353=0, Selection_Hide2!F353=\"\"), \"\", Selection_Hide2!F353)","v":""},{"$f":"IF(OR(Selection_Hide2!G353=0, Selection_Hide2!G353=\"\"), \"\", Selection_Hide2!G353)","v":""},{"$f":"IF(OR(Selection_Hide2!H353=0, Selection_Hide2!H353=\"\"), \"\", Selection_Hide2!H353)","v":""},{"$f":"IF(OR(Selection_Hide2!I353=0, Selection_Hide2!I353=\"\"), \"\", Selection_Hide2!I353)","v":""},{"$f":"IF(OR(Selection_Hide2!J353=0, Selection_Hide2!J353=\"\"), \"\", Selection_Hide2!J353)","v":""},{"$f":"IF(OR(Selection_Hide2!K353=0, Selection_Hide2!K353=\"\"), \"\", Selection_Hide2!K353)","v":""},{"$f":"IF(OR(Selection_Hide2!L353=0, Selection_Hide2!L353=\"\"), \"\", Selection_Hide2!L353)","v":""},{"$f":"IF(OR(Selection_Hide2!M353=0, Selection_Hide2!M353=\"\"), \"\", Selection_Hide2!M353)","v":""},{"$f":"IF(OR(Selection_Hide2!N353=0, Selection_Hide2!N353=\"\"), \"\", Selection_Hide2!N353)","v":""},{"$f":"IF(OR(Selection_Hide2!O353=0, Selection_Hide2!O353=\"\"), \"\", Selection_Hide2!O353)","v":""},{"$f":"IF(OR(Selection_Hide2!P353=0, Selection_Hide2!P353=\"\"), \"\", Selection_Hide2!P353)","v":""},{"$f":"IF(OR(Selection_Hide2!Q353=0, Selection_Hide2!Q353=\"\"), \"\", Selection_Hide2!Q353)","v":""},{"$f":"IF(OR(Selection_Hide2!R353=0, Selection_Hide2!R353=\"\"), \"\", Selection_Hide2!R353)","v":""},{"$f":"IF(OR(Selection_Hide2!S353=0, Selection_Hide2!S353=\"\"), \"\", Selection_Hide2!S353)","v":""},{"$f":"IF(OR(Selection_Hide2!T353=0, Selection_Hide2!T353=\"\"), \"\", Selection_Hide2!T353)","v":""},{"$f":"IF(OR(Selection_Hide2!U353=0, Selection_Hide2!U353=\"\"), \"\", Selection_Hide2!U353)","v":""},{"$f":"IF(OR(Selection_Hide2!V353=0, Selection_Hide2!V353=\"\"), \"\", Selection_Hide2!V353)","v":""},{"$f":"IF(OR(Selection_Hide2!W353=0, Selection_Hide2!W353=\"\"), \"\", Selection_Hide2!W353)","v":""},{"$f":"IF(OR(Selection_Hide2!X353=0, Selection_Hide2!X353=\"\"), \"\", Selection_Hide2!X353)","v":""},{"$f":"IF(OR(Selection_Hide2!Y353=0, Selection_Hide2!Y353=\"\"), \"\", Selection_Hide2!Y353)","v":""},{"$f":"IF(OR(Selection_Hide2!Z353=0, Selection_Hide2!Z353=\"\"), \"\", Selection_Hide2!Z353)","v":""},{"$f":"IF(OR(Selection_Hide2!AA353=0, Selection_Hide2!AA353=\"\"), \"\", Selection_Hide2!AA353)","v":""},{"$f":"IF(OR(Selection_Hide2!AB353=0, Selection_Hide2!AB353=\"\"), \"\", Selection_Hide2!AB353)","v":""}]

{"sheet":"Selection_Hide2","index":5,"n_rows":353,"n_cols":28,"rows_kept":353,"cut":false,"hidden":true,"merged":[[1,0,1,4]]}
[]
["Core Client Outcomes and Indicators"]
[null,"Select Outcome Domain:",{"$f":"'Select Outcome Domain'!C3","v":"Health"}]
[]
["ID","Outcome domain","Client outcome","Indicator","Measures","Measure source","Data availability status","Data Report","Data elements","Counting rules","Data custodian","Linkage platform","Age ranges 0-4","Age ranges 5-12","Age ranges 13-17","Age ranges 18-24","Age ranges 25-64","Age ranges 65+","Client data avaliable for TEI","Client data avaliable for  Child Protection and OOHC","Client data avaliable for Public Housing and AHO","Client data avaliable for Community Housing","Client data avaliable for Specialist Homelessness Services","Data available from (full year)","Frequency of data collection","Collection method","Known data issues","Notes"]
[{"$f":"IF(AND(Selection_Hide1!C4<>0, Selection_Hide1!C4<>\"Grand Total\"), Selection_Hide1!C4, \"\")","v":"100"},{"$f":"IF(A6<>\"\", INDEX('Full set Core Client Indicator'!$A$3:$AB$351, MATCH(Selection_Hide2!$A6, 'Full set Core Client Indicator'!$A$3:$A$351, 0), MATCH(Selection_Hide2!B$5, 'Full set Core Client Indicator'!$A$3:$AB$3, 0)), \"\")","v":"Health"},{"$f":"IF(B6<>\"\", INDEX('Full set Core Client Indicator'!$A$3:$AB$351, MATCH(Selection_Hide2!$A6, 'Full set Core Client Indicator'!$A$3:$A$351, 0), MATCH(Selection_Hide2!C$5, 'Full set Core Client Indicator'!$A$3:$AB$3, 0)), \"\")","v":"People have a healthy lifestyle and avoid risk taking behaviours that negatively impact their health"},{"$f":"IF(C6<>\"\", INDEX('Full set Core Client Indicator'!$A$3:$AB$351, MATCH(Selection_Hide2!$A6, 'Full set Core Client Indicator'!$A$3:$A$351, 0), MATCH(Selection_Hide2!D$5, 'Full set Core Client Indicator'!$A$3:$AB$3, 0)), \"\")","v":"Proportion (%) of people who have not used an illicit substance within the last 12 months"},{"$f":"IF(D6<>\"\", INDEX('Full set Core Client Indicator'!$A$3:$AB$351, MATCH(Selection_Hide2!$A6, 'Full set Core Client Indicator'!$A$3:$A$351, 0), MATCH(Selection_Hide2!E$5, 'Full set Core Client Indicator'!$A$3:$AB$3, 0)), \"\")","v":"QAF measure under development\n\nPOCLS (Recommended)\nThe next few questions are about drug use other than for medical reasons (e.g. marijuana, ecstasy, speed, pills). Have you had drugs in the last 12 months?\n• Yes\n• No \n• Pass "},{"$f":"IF(E6<>\"\", INDEX('Full set Core Client Indicator'!$A$3:$AB$351, MATCH(Selection_Hide2!$A6, 'Full set Core Client Indicator'!$A$3:$A$351, 0), MATCH(Selection_Hide2!F$5, 'Full set Core Client Indicator'!$A$3:$AB$3, 0)), \"\")","v":"Existing DCJ measure (POCLS)"},{"$f":"IF(F6<>\"\", INDEX('Full set Core Client Indicator'!$A$3:$AB$351, MATCH(Selection_Hide2!$A6, 'Full set Core Client Indicator'!$A$3:$A$351, 0), MATCH(Selection_Hide2!G$5, 'Full set Core Client Indicator'!$A$3:$AB$3, 0)), \"\")","v":"New data"},{"$f":"IF(G6<>\"\", INDEX('Full set Core Client Indicator'!$A$3:$AB$351, MATCH(Selection_Hide2!$A6, 'Full set Core Client Indicator'!$A$3:$A$351, 0), MATCH(Selection_Hide2!H$5, 'Full set Core Client Indicator'!$A$3:$AB$3, 0)), \"\")","v":"No data source"},{"$f":"IF(H6<>\"\", INDEX('Full set Core Client Indicator'!$A$3:$AB$351, MATCH(Selection_Hide2!$A6, 'Full set Core Client Indicator'!$A$3:$A$351, 0), MATCH(Selection_Hide2!I$5, 'Full set Core Client Indicator'!$A$3:$AB$3, 0)), \"\")","v":"* Persons status of illicit drug use in last 12 months"},{"$f":"IF(I6<>\"\", INDEX('Full set Core Client Indicator'!$A$3:$AB$351, MATCH(Selection_Hide2!$A6, 'Full set Core Client Indicator'!$A$3:$A$351, 0), MATCH(Selection_Hide2!J$5, 'Full set Core Client Indicator'!$A$3:$AB$3, 0)), \"\")","v":"Numerator: Number of people who have not have used illicit drug in last 12 months\nDenominator: Number of people surveyed"},{"$f":"IF(J6<>\"\", INDEX('Full set Core Client Indicator'!$A$3:$AB$351, MATCH(Selection_Hide2!$A6, 'Full set Core Client Indicator'!$A$3:$A$351, 0), MATCH(Selection_Hide2!K$5, 'Full set Core Client Indicator'!$A$3:$AB$3, 0)), \"\")","v":0},{"$f":"IF(K6<>\"\", INDEX('Full set Core Client Indicator'!$A$3:$AB$351, MATCH(Selection_Hide2!$A6, 'Full set Core Client Indicator'!$A$3:$A$351, 0), MATCH(Selection_Hide2!L$5, 'Full set Core Client Indicator'!$A$3:$AB$3, 0)), \"\")","v":0},{"$f":"IF(L6<>\"\", INDEX('Full set Core Client Indicator'!$A$3:$AB$351, MATCH(Selection_Hide2!$A6, 'Full set Core Client Indicator'!$A$3:$A$351, 0), MATCH(Selection_Hide2!M$5, 'Full set Core Client Indicator'!$A$3:$AB$3, 0)), \"\")","v":0},{"$f":"IF(M6<>\"\", INDEX('Full set Core Client Indicator'!$A$3:$AB$351, MATCH(Selection_Hide2!$A6, 'Full set Core Client Indicator'!$A$3:$A$351, 0), MATCH(Selection_Hide2!N$5, 'Full set Core Client Indicator'!$A$3:$AB$3, 0)), \"\")","v":0},{"$f":"IF(N6<>\"\", INDEX('Full set Core Client Indicator'!$A$3:$AB$351, MATCH(Selection_Hide2!$A6, 'Full set Core Client Indicator'!$A$3:$A$351, 0), MATCH(Selection_Hide2!O$5, 'Full set Core Client Indicator'!$A$3:$AB$3, 0)), \"\")","v":"y"},{"$f":"IF(O6<>\"\", INDEX('Full set Core Client Indicator'!$A$3:$AB$351, MATCH(Selection_Hide2!$A6, 'Full set Core Client Indicator'!$A$3:$A$351, 0), MATCH(Selection_Hide2!P$5, 'Full set Core Client Indicator'!$A$3:$AB$3, 0)), \"\")","v":"y"},{"$f":"IF(P6<>\"\", INDEX('Full set Core Client Indicator'!$A$3:$AB$351, MATCH(Selection_Hide2!$A6, 'Full set Core Client Indicator'!$A$3:$A$351, 0), MATCH(Selection_Hide2!Q$5, 'Full set Core Client Indicator'!$A$3:$AB$3, 0)), \"\")","v":"y"},{"$f":"IF(Q6<>\"\", INDEX('Full set Core Client Indicator'!$A$3:$AB$351, MATCH(Selection_Hide2!$A6, 'Full set Core Client Indicator'!$A$3:$A$351, 0), MATCH(Selection_Hide2!R$5, 'Full set Core Client Indicator'!$A$3:$AB$3, 0)), \"\")","v":"y"},{"$f":"IF(R6<>\"\", INDEX('Full set Core Client Indicator'!$A$3:$AB$351, MATCH(Selection_Hide2!$A6, 'Full set Core Client Indicator'!$A$3:$A$351, 0), MATCH(Selection_Hide2!S$5, 'Full set Core Client Indicator'!$A$3:$AB$3, 0)), \"\")","v":"No"},{"$f":"IF(S6<>\"\", INDEX('Full set Core Client Indicator'!$A$3:$AB$351, MATCH(Selection_Hide2!$A6, 'Full set Core Client Indicator'!$A$3:$A$351, 0), MATCH(Selection_Hide2!T$5, 'Full set Core Client Indicator'!$A$3:$AB$3, 0)), \"\")","v":"No"},{"$f":"IF(T6<>\"\", INDEX('Full set Core Client Indicator'!$A$3:$AB$351, MATCH(Selection_Hide2!$A6, 'Full set Core Client Indicator'!$A$3:$A$351, 0), MATCH(Selection_Hide2!U$5, 'Full set Core Client Indicator'!$A$3:$AB$3, 0)), \"\")","v":"No"},{"$f":"IF(U6<>\"\", INDEX('Full set Core Client Indicator'!$A$3:$AB$351, MATCH(Selection_Hide2!$A6, 'Full set Core Client Indicator'!$A$3:$A$351, 0), MATCH(Selection_Hide2!V$5, 'Full set Core Client Indicator'!$A$3:$AB$3, 0)), \"\")","v":"No"},{"$f":"IF(V6<>\"\", INDEX('Full set Core Client Indicator'!$A$3:$AB$351, MATCH(Selection_Hide2!$A6, 'Full set Core Client Indicator'!$A$3:$A$351, 0), MATCH(Selection_Hide2!W$5, 'Full set Core Client Indicator'!$A$3:$AB$3, 0)), \"\")","v":"No"},{"$f":"IF(W6<>\"\", INDEX('Full set Core Client Indicator'!$A$3:$AB$351, MATCH(Selection_Hide2!$A6, 'Full set Core Client Indicator'!$A$3:$A$351, 0), MATCH(Selection_Hide2!X$5, 'Full set Core Client Indicator'!$A$3:$AB$3, 0)), \"\")","v":0},{"$f":"IF(X6<>\"\", INDEX('Full set Core Client Indicator'!$A$3:$AB$351, MATCH(Selection_Hide2!$A6, 'Full set Core Client Indicator'!$A$3:$A$351, 0), MATCH(Selection_Hide2!Y$5, 'Full set Core Client Indicator'!$A$3:$AB$3, 0)), \"\")","v":0},{"$f":"IF(Y6<>\"\", INDEX('Full set Core Client Indicator'!$A$3:$AB$351, MATCH(Selection_Hide2!$A6, 'Full set Core Client Indicator'!$A$3:$A$351, 0), MATCH(Selection_Hide2!Z$5, 'Full set Core Client Indicator'!$A$3:$AB$3, 0)), \"\")","v":"self reported client survey"},{"$f":"IF(Z6<>\"\", INDEX('Full set Core Client Indicator'!$A$3:$AB$351, MATCH(Selection_Hide2!$A6, 'Full set Core Client Indicator'!$A$3:$A$351, 0), MATCH(Selection_Hide2!AA$5, 'Full set Core Client Indicator'!$A$3:$AB$3, 0)), \"\")","v":0},{"$f":"IF(AA6<>\"\", INDEX('Full set Core Client Indicator'!$A$3:$AB$351, MATCH(Selection_Hide2!$A6, 'Full set Core Client Indicator'!$A$3:$A$351, 0), MATCH(Selection_Hide2!AB$5, 'Full set Core Client Indicator'!$A$3:$AB$3, 0)), \"\")","v":"* ‘Illicit use of a drug’ or ‘illicit drug use’ (used interchangeably in this report) can encompass a number of broad categories including:\n• illegal drugs—a drug that is prohibited from manufacture, sale or possession in Australia—for example cannabis, cocaine, heroin and amphetamine-type stimulants\n• pharmaceuticals—a drug that is available from a pharmacy, over the counter or by prescription, which may be subject to misuse—for example opioid-based pain-relief medications, opioid substitution therapies, benzodiazepines, over-the-counter codeine and steroids\n• other psychoactive substances—legal or illegal, potentially used in a harmful way—for example kava, synthetic cannabis and other synthetic drugs, or inhalants such as petrol, paint or glue (MCDS 2011)."}]
[{"$f":"IF(AND(Selection_Hide1!C5<>0, Selection_Hide1!C5<>\"Grand Total\"), Selection_Hide1!C5, \"\")","v":"107"},{"$f":"IF(A7<>\"\", IF(INDEX('Full set Core Client Indicator'!$A$3:$AB$351, MATCH(Selection_Hide2!$A7, 'Full set Core Client Indicator'!$A$3:$A$351, 0), MATCH(Selection_Hide2!B$5, 'Full set Core Client Indicator'!$A$3:$AB$3, 0))=\"\", \"\",  INDEX('Full set Core Client Indicator'!$A$3:$AB$351, MATCH(Selection_Hide2!$A7, 'Full set Core Client Indicator'!$A$3:$A$351, 0), MATCH(Selection_Hide2!B$5, 'Full set Core Client Indicator'!$A$3:$AB$3, 0))), \"\")","v":"Health"},{"$f":"IF(B7<>\"\", IF(INDEX('Full set Core Client Indicator'!$A$3:$AB$351, MATCH(Selection_Hide2!$A7, 'Full set Core Client Indicator'!$A$3:$A$351, 0), MATCH(Selection_Hide2!C$5, 'Full set Core Client Indicator'!$A$3:$AB$3, 0))=\"\", \"\",  INDEX('Full set Core Client Indicator'!$A$3:$AB$351, MATCH(Selection_Hide2!$A7, 'Full set Core Client Indicator'!$A$3:$A$351, 0), MATCH(Selection_Hide2!C$5, 'Full set Core Client Indicator'!$A$3:$AB$3, 0))), \"\")","v":"People have good mental health and social and emotional wellbeing"},{"$f":"IF(C7<>\"\", IF(INDEX('Full set Core Client Indicator'!$A$3:$AB$351, MATCH(Selection_Hide2!$A7, 'Full set Core Client Indicator'!$A$3:$A$351, 0), MATCH(Selection_Hide2!D$5, 'Full set Core Client Indicator'!$A$3:$AB$3, 0))=\"\", \"\",  INDEX('Full set Core Client Indicator'!$A$3:$AB$351, MATCH(Selection_Hide2!$A7, 'Full set Core Client Indicator'!$A$3:$A$351, 0), MATCH(Selection_Hide2!D$5, 'Full set Core Client Indicator'!$A$3:$AB$3, 0))), \"\")","v":"Proportion (%) of people who report having high levels of psychological distress"},{"$f":"IF(D7<>\"\", IF(INDEX('Full set Core Client Indicator'!$A$3:$AB$351, MATCH(Selection_Hide2!$A7, 'Full set Core Client Indicator'!$A$3:$A$351, 0), MATCH(Selection_Hide2!E$5, 'Full set Core Client Indicator'!$A$3:$AB$3, 0))=\"\", \"\",  INDEX('Full set Core Client Indicator'!$A$3:$AB$351, MATCH(Selection_Hide2!$A7, 'Full set Core Client Indicator'!$A$3:$A$351, 0), MATCH(Selection_Hide2!E$5, 'Full set Core Client Indicator'!$A$3:$AB$3, 0))), \"\")","v":"Kessler 10 (K10) scale"},{"$f":"IF(E7<>\"\", IF(INDEX('Full set Core Client Indicator'!$A$3:$AB$351, MATCH(Selection_Hide2!$A7, 'Full set Core Client Indicator'!$A$3:$A$351, 0), MATCH(Selection_Hide2!F$5, 'Full set Core Client Indicator'!$A$3:$AB$3, 0))=\"\", \"\",  INDEX('Full set Core Client Indicator'!$A$3:$AB$351, MATCH(Selection_Hide2!$A7, 'Full set Core Client Indicator'!$A$3:$A$351, 0), MATCH(Selection_Hide2!F$5, 'Full set Core Client Indicator'!$A$3:$AB$3, 0))), \"\")","v":"Existing DCJ measure (POCLS and QAF)"},{"$f":"IF(F7<>\"\", IF(INDEX('Full set Core Client Indicator'!$A$3:$AB$351, MATCH(Selection_Hide2!$A7, 'Full set Core Client Indicator'!$A$3:$A$351, 0), MATCH(Selection_Hide2!G$5, 'Full set Core Client Indicator'!$A$3:$AB$3, 0))=\"\", \"\",  INDEX('Full set Core Client Indicator'!$A$3:$AB$351, MATCH(Selection_Hide2!$A7, 'Full set Core Client Indicator'!$A$3:$A$351, 0), MATCH(Selection_Hide2!G$5, 'Full set Core Client Indicator'!$A$3:$AB$3, 0))), \"\")","v":"New data"},{"$f":"IF(G7<>\"\", IF(INDEX('Full set Core Client Indicator'!$A$3:$AB$351, MATCH(Selection_Hide2!$A7, 'Full set Core Client Indicator'!$A$3:$A$351, 0), MATCH(Selection_Hide2!H$5, 'Full set Core Client Indicator'!$A$3:$AB$3, 0))=\"\", \"\",  INDEX('Full set Core Client Indicator'!$A$3:$AB$351, MATCH(Selection_Hide2!$A7, 'Full set Core Client Indicator'!$A$3:$A$351, 0), MATCH(Selection_Hide2!H$5, 'Full set Core Client Indicator'!$A$3:$AB$3, 0))), \"\")","v":"No data source"},{"$f":"IF(H7<>\"\", IF(INDEX('Full set Core Client Indicator'!$A$3:$AB$351, MATCH(Selection_Hide2!$A7, 'Full set Core Client Indicator'!$A$3:$A$351, 0), MATCH(Selection_Hide2!I$5, 'Full set Core Client Indicator'!$A$3:$AB$3, 0))=\"\", \"\",  INDEX('Full set Core Client Indicator'!$A$3:$AB$351, MATCH(Selection_Hide2!$A7, 'Full set Core Client Indicator'!$A$3:$A$351, 0), MATCH(Selection_Hide2!I$5, 'Full set Core Client Indicator'!$A$3:$AB$3, 0))), \"\")","v":"* Persons Kessler score"},{"$f":"IF(I7<>\"\", IF(INDEX('Full set Core Client Indicator'!$A$3:$AB$351, MATCH(Selection_Hide2!$A7, 'Full set Core Client Indicator'!$A$3:$A$351, 0), MATCH(Selection_Hide2!J$5, 'Full set Core Client Indicator'!$A$3:$AB$3, 0))=\"\", \"\",  INDEX('Full set Core Client Indicator'!$A$3:$AB$351, MATCH(Selection_Hide2!$A7, 'Full set Core Client Indicator'!$A$3:$A$351, 0), MATCH(Selection_Hide2!J$5, 'Full set Core Client Indicator'!$A$3:$AB$3, 0))), \"\")","v":"Numerator: Number of people with Kessler score of >= 22\nDenominator: Number of people surveyed"},{"$f":"IF(J7<>\"\", IF(INDEX('Full set Core Client Indicator'!$A$3:$AB$351, MATCH(Selection_Hide2!$A7, 'Full set Core Client Indicator'!$A$3:$A$351, 0), MATCH(Selection_Hide2!K$5, 'Full set Core Client Indicator'!$A$3:$AB$3, 0))=\"\", \"\",  INDEX('Full set Core Client Indicator'!$A$3:$AB$351, MATCH(Selection_Hide2!$A7, 'Full set Core Client Indicator'!$A$3:$A$351, 0), MATCH(Selection_Hide2!K$5, 'Full set Core Client Indicator'!$A$3:$AB$3, 0))), \"\")","v":""},{"$f":"IF(K7<>\"\", IF(INDEX('Full set Core Client Indicator'!$A$3:$AB$351, MATCH(Selection_Hide2!$A7, 'Full set Core Client Indicator'!$A$3:$A$351, 0), MATCH(Selection_Hide2!L$5, 'Full set Core Client Indicator'!$A$3:$AB$3, 0))=\"\", \"\",  INDEX('Full set Core Client Indicator'!$A$3:$AB$351, MATCH(Selection_Hide2!$A7, 'Full set Core Client Indicator'!$A$3:$A$351, 0), MATCH(Selection_Hide2!L$5, 'Full set Core Client Indicator'!$A$3:$AB$3, 0))), \"\")","v":""},{"$f":"IF(L7<>\"\", IF(INDEX('Full set Core Client Indicator'!$A$3:$AB$351, MATCH(Selection_Hide2!$A7, 'Full set Core Client Indicator'!$A$3:$A$351, 0), MATCH(Selection_Hide2!M$5, 'Full set Core Client Indicator'!$A$3:$AB$3, 0))=\"\", \"\",  INDEX('Full set Core Client Indicator'!$A$3:$AB$351, MATCH(Selection_Hide2!$A7, 'Full set Core Client Indicator'!$A$3:$A$351, 0), MATCH(Selection_Hide2!M$5, 'Full set Core Client Indicator'!$A$3:$AB$3, 0))), \"\")","v":""},{"$f":"IF(M7<>\"\", IF(INDEX('Full set Core Client Indicator'!$A$3:$AB$351, MATCH(Selection_Hide2!$A7, 'Full set Core Client Indicator'!$A$3:$A$351, 0), MATCH(Selection_Hide2!N$5, 'Full set Core Client Indicator'!$A$3:$AB$3, 0))=\"\", \"\",  INDEX('Full set Core Client Indicator'!$A$3:$AB$351, MATCH(Selection_Hide2!$A7, 'Full set Core Client Indicator'!$A$3:$A$351, 0), MATCH(Selection_Hide2!N$5, 'Full set Core Client Indicator'!$A$3:$AB$3, 0))), \"\")","v":""},{"$f":"IF(N7<>\"\", IF(INDEX('Full set Core Client Indicator'!$A$3:$AB$351, MATCH(Selection_Hide2!$A7, 'Full set Core Client Indicator'!$A$3:$A$351, 0), MATCH(Selection_Hide2!O$5, 'Full set Core Client Indicator'!$A$3:$AB$3, 0))=\"\", \"\",  INDEX('Full set Core Client Indicator'!$A$3:$AB$351, MATCH(Selection_Hide2!$A7, 'Full set Core Client Indicator'!$A$3:$A$351, 0), MATCH(Selection_Hide2!O$5, 'Full set Core Client Indicator'!$A$3:$AB$3, 0))), \"\")","v":""},{"$f":"IF(O7<>\"\", IF(INDEX('Full set Core Client Indicator'!$A$3:$AB$351, MATCH(Selection_Hide2!$A7, 'Full set Core Client Indicator'!$A$3:$A$351, 0), MATCH(Selection_Hide2!P$5, 'Full set Core Client Indicator'!$A$3:$AB$3, 0))=\"\", \"\",  INDEX('Full set Core Client Indicator'!$A$3:$AB$351, MATCH(Selection_Hide2!$A7, 'Full set Core Client Indicator'!$A$3:$A$351, 0), MATCH(Selection_Hide2!P$5, 'Full set Core Client Indicator'!$A$3:$AB$3, 0))), \"\")","v":""},{"$f":"IF(P7<>\"\", IF(INDEX('Full set Core Client Indicator'!$A$3:$AB$351, MATCH(Selection_Hide2!$A7, 'Full set Core Client Indicator'!$A$3:$A$351, 0), MATCH(Selection_Hide2!Q$5, 'Full set Core Client Indicator'!$A$3:$AB$3, 0))=\"\", \"\",  INDEX('Full set Core Client Indicator'!$A$3:$AB$351, MATCH(Selection_Hide2!$A7, 'Full set Core Client Indicator'!$A$3:$A$351, 0), MATCH(Selection_Hide2!Q$5, 'Full set Core Client Indicator'!$A$3:$AB$3, 0))), \"\")","v":""},{"$f":"IF(Q7<>\"\", IF(INDEX('Full set Core Client Indicator'!$A$3:$AB$351, MATCH(Selection_Hide2!$A7, 'Full set Core Client Indicator'!$A$3:$A$351, 0), MATCH(Selection_Hide2!R$5, 'Full set Core Client Indicator'!$A$3:$AB$3, 0))=\"\", \"\",  INDEX('Full set Core Client Indicator'!$A$3:$AB$351, MATCH(Selection_Hide2!$A7, 'Full set Core Client Indicator'!$A$3:$A$351, 0), MATCH(Selection_Hide2!R$5, 'Full set Core Client Indicator'!$A$3:$AB$3, 0))), \"\")","v":""},{"$f":"IF(R7<>\"\", IF(INDEX('Full set Core Client Indicator'!$A$3:$AB$351, MATCH(Selection_Hide2!$A7, 'Full set Core Client Indicator'!$A$3:$A$351, 0), MATCH(Selection_Hide2!S$5, 'Full set Core Client Indicator'!$A$3:$AB$3, 0))=\"\", \"\",  INDEX('Full set Core Client Indicator'!$A$3:$AB$351, MATCH(Selection_Hide2!$A7, 'Full set Core Client Indicator'!$A$3:$A$351, 0), MATCH(Selection_Hide2!S$5, 'Full set Core Client Indicator'!$A$3:$AB$3, 0))), \"\")","v":""},{"$f":"IF(S7<>\"\", IF(INDEX('Full set Core Client Indicator'!$A$3:$AB$351, MATCH(Selection_Hide2!$A7, 'Full set Core Client Indicator'!$A$3:$A$351, 0), MATCH(Selection_Hide2!T$5, 'Full set Core Client Indicator'!$A$3:$AB$3, 0))=\"\", \"\",  INDEX('Full set Core Client Indicator'!$A$3:$AB$351, MATCH(Selection_Hide2!$A7, 'Full set Core Client Indicator'!$A$3:$A$351, 0), MATCH(Selection_Hide2!T$5, 'Full set Core Client Indicator'!$A$3:$AB$3, 0))), \"\")","v":""},{"$f":"IF(T7<>\"\", IF(INDEX('Full set Core Client Indicator'!$A$3:$AB$351, MATCH(Selection_Hide2!$A7, 'Full set Core Client Indicator'!$A$3:$A$351, 0), MATCH(Selection_Hide2!U$5, 'Full set Core Client Indicator'!$A$3:$AB$3, 0))=\"\", \"\",  INDEX('Full set Core Client Indicator'!$A$3:$AB$351, MATCH(Selection_Hide2!$A7, 'Full set Core Client Indicator'!$A$3:$A$351, 0), MATCH(Selection_Hide2!U$5, 'Full set Core Client Indicator'!$A$3:$AB$3, 0))), \"\")","v":""},{"$f":"IF(U7<>\"\", IF(INDEX('Full set Core Client Indicator'!$A$3:$AB$351, MATCH(Selection_Hide2!$A7, 'Full set Core Client Indicator'!$A$3:$A$351, 0), MATCH(Selection_Hide2!V$5, 'Full set Core Client Indicator'!$A$3:$AB$3, 0))=\"\", \"\",  INDEX('Full set Core Client Indicator'!$A$3:$AB$351, MATCH(Selection_Hide2!$A7, 'Full set Core Client Indicator'!$A$3:$A$351, 0), MATCH(Selection_Hide2!V$5, 'Full set Core Client Indicator'!$A$3:$AB$3, 0))), \"\")","v":""},{"$f":"IF(V7<>\"\", IF(INDEX('Full set Core Client Indicator'!$A$3:$AB$351, MATCH(Selection_Hide2!$A7, 'Full set Core Client Indicator'!$A$3:$A$351, 0), MATCH(Selection_Hide2!W$5, 'Full set Core Client Indicator'!$A$3:$AB$3, 0))=\"\", \"\",  INDEX('Full set Core Client Indicator'!$A$3:$AB$351, MATCH(Selection_Hide2!$A7, 'Full set Core Client Indicator'!$A$3:$A$351, 0), MATCH(Selection_Hide2!W$5, 'Full set Core Client Indicator'!$A$3:$AB$3, 0))), \"\")","v":""},{"$f":"IF(W7<>\"\", IF(INDEX('Full set Core Client Indicator'!$A$3:$AB$351, MATCH(Selection_Hide2!$A7, 'Full set Core Client Indicator'!$A$3:$A$351, 0), MATCH(Selection_Hide2!X$5, 'Full set Core Client Indicator'!$A$3:$AB$3, 0))=\"\", \"\",  INDEX('Full set Core Client Indicator'!$A$3:$AB$351, MATCH(Selection_Hide2!$A7, 'Full set Core Client Indicator'!$A$3:$A$351, 0), MATCH(Selection_Hide2!X$5, 'Full set Core Client Indicator'!$A$3:$AB$3, 0))), \"\")","v":""},{"$f":"IF(X7<>\"\", IF(INDEX('Full set Core Client Indicator'!$A$3:$AB$351, MATCH(Selection_Hide2!$A7, 'Full set Core Client Indicator'!$A$3:$A$351, 0), MATCH(Selection_Hide2!Y$5, 'Full set Core Client Indicator'!$A$3:$AB$3, 0))=\"\", \"\",  INDEX('Full set Core Client Indicator'!$A$3:$AB$351, MATCH(Selection_Hide2!$A7, 'Full set Core Client Indicator'!$A$3:$A$351, 0), MATCH(Selection_Hide2!Y$5, 'Full set Core Client Indicator'!$A$3:$AB$3, 0))), \"\")","v":""},{"$f":"IF(Y7<>\"\", IF(INDEX('Full set Core Client Indicator'!$A$3:$AB$351, MATCH(Selection_Hide2!$A7, 'Full set Core Client Indicator'!$A$3:$A$351, 0), MATCH(Selection_Hide2!Z$5, 'Full set Core Client Indicator'!$A$3:$AB$3, 0))=\"\", \"\",  INDEX('Full set Core Client Indicator'!$A$3:$AB$351, MATCH(Selection_Hide2!$A7, 'Full set Core Client Indicator'!$A$3:$A$351, 0), MATCH(Selection_Hide2!Z$5, 'Full set Core Client Indicator'!$A$3:$AB$3, 0))), \"\")","v":""},{"$f":"IF(Z7<>\"\", IF(INDEX('Full set Core Client Indicator'!$A$3:$AB$351, MATCH(Selection_Hide2!$A7, 'Full set Core Client Indicator'!$A$3:$A$351, 0), MATCH(Selection_Hide2!AA$5, 'Full set Core Client Indicator'!$A$3:$AB$3, 0))=\"\", \"\",  INDEX('Full set Core Client Indicator'!$A$3:$AB$351, MATCH(Selection_Hide2!$A7, 'Full set Core Client Indicator'!$A$3:$A$351, 0), MATCH(Selection_Hide2!AA$5, 'Full set Core Client Indicator'!$A$3:$AB$3, 0))), \"\")","v":""},{"$f":"IF(AA7<>\"\", IF(INDEX('Full set Core Client Indicator'!$A$3:$AB$351, MATCH(Selection_Hide2!$A7, 'Full set Core Client Indicator'!$A$3:$A$351, 0), MATCH(Selection_Hide2!AB$5, 'Full set Core Client Indicator'!$A$3:$AB$3, 0))=\"\", \"\",  INDEX('Full set Core Client Indicator'!$A$3:$AB$351, MATCH(Selection_Hide2!$A7, 'Full set Core Client Indicator'!$A$3:$A$351, 0), MATCH(Selection_Hide2!AB$5, 'Full set Core Client Indicator'!$A$3:$AB$3, 0))), \"\")","v":""}]
[{"$f":"IF(AND(Selection_Hide1!C6<>0, Selection_Hide1!C6<>\"Grand Total\"), Selection_Hide1!C6, \"\")","v":"113"},{"$f":"IF(A8<>\"\", IF(INDEX('Full set Core Client Indicator'!$A$3:$AB$351, MATCH(Selection_Hide2!$A8, 'Full set Core Client Indicator'!$A$3:$A$351, 0), MATCH(Selection_Hide2!B$5, 'Full set Core Client Indicator'!$A$3:$AB$3, 0))=\"\", \"\",  INDEX('Full set Core Client Indicator'!$A$3:$AB$351, MATCH(Selection_Hide2!$A8, 'Full set Core Client Indicator'!$A$3:$A$351, 0), MATCH(Selection_Hide2!B$5, 'Full set Core Client Indicator'!$A$3:$AB$3, 0))), \"\")","v":"Health"},{"$f":"IF(B8<>\"\", IF(INDEX('Full set Core Client Indicator'!$A$3:$AB$351, MATCH(Selection_Hide2!$A8, 'Full set Core Client Indicator'!$A$3:$A$351, 0), MATCH(Selection_Hide2!C$5, 'Full set Core Client Indicator'!$A$3:$AB$3, 0))=\"\", \"\",  INDEX('Full set Core Client Indicator'!$A$3:$AB$351, MATCH(Selection_Hide2!$A8, 'Full set Core Client Indicator'!$A$3:$A$351, 0), MATCH(Selection_Hide2!C$5, 'Full set Core Client Indicator'!$A$3:$AB$3, 0))), \"\")","v":"People have good mental health and social and emotional wellbeing"},{"$f":"IF(C8<>\"\", IF(INDEX('Full set Core Client Indicator'!$A$3:$AB$351, MATCH(Selection_Hide2!$A8, 'Full set Core Client Indicator'!$A$3:$A$351, 0), MATCH(Selection_Hide2!D$5, 'Full set Core Client Indicator'!$A$3:$AB$3, 0))=\"\", \"\",  INDEX('Full set Core Client Indicator'!$A$3:$AB$351, MATCH(Selection_Hide2!$A8, 'Full set Core Client Indicator'!$A$3:$A$351, 0), MATCH(Selection_Hide2!D$5, 'Full set Core Client Indicator'!$A$3:$AB$3, 0))), \"\")","v":"Suicide rate per 100,000 population by age"},{"$f":"IF(D8<>\"\", IF(INDEX('Full set Core Client Indicator'!$A$3:$AB$351, MATCH(Selection_Hide2!$A8, 'Full set Core Client Indicator'!$A$3:$A$351, 0), MATCH(Selection_Hide2!E$5, 'Full set Core Client Indicator'!$A$3:$AB$3, 0))=\"\", \"\",  INDEX('Full set Core Client Indicator'!$A$3:$AB$351, MATCH(Selection_Hide2!$A8, 'Full set Core Client Indicator'!$A$3:$A$351, 0), MATCH(Selection_Hide2!E$5, 'Full set Core Client Indicator'!$A$3:$AB$3, 0))), \"\")","v":"Notice of death"},{"$f":"IF(E8<>\"\", IF(INDEX('Full set Core Client Indicator'!$A$3:$AB$351, MATCH(Selection_Hide2!$A8, 'Full set Core Client Indicator'!$A$3:$A$351, 0), MATCH(Selection_Hide2!F$5, 'Full set Core Client Indicator'!$A$3:$AB$3, 0))=\"\", \"\",  INDEX('Full set Core Client Indicator'!$A$3:$AB$351, MATCH(Selection_Hide2!$A8, 'Full set Core Client Indicator'!$A$3:$A$351, 0), MATCH(Selection_Hide2!F$5, 'Full set Core Client Indicator'!$A$3:$AB$3, 0))), \"\")","v":"External agency measure (RBDM)"},{"$f":"IF(F8<>\"\", IF(INDEX('Full set Core Client Indicator'!$A$3:$AB$351, MATCH(Selection_Hide2!$A8, 'Full set Core Client Indicator'!$A$3:$A$351, 0), MATCH(Selection_Hide2!G$5, 'Full set Core Client Indicator'!$A$3:$AB$3, 0))=\"\", \"\",  INDEX('Full set Core Client Indicator'!$A$3:$AB$351, MATCH(Selection_Hide2!$A8, 'Full set Core Client Indicator'!$A$3:$A$351, 0), MATCH(Selection_Hide2!G$5, 'Full set Core Client Indicator'!$A$3:$AB$3, 0))), \"\")","v":"Data linkage "},{"$f":"IF(G8<>\"\", IF(INDEX('Full set Core Client Indicator'!$A$3:$AB$351, MATCH(Selection_Hide2!$A8, 'Full set Core Client Indicator'!$A$3:$A$351, 0), MATCH(Selection_Hide2!H$5, 'Full set Core Client Indicator'!$A$3:$AB$3, 0))=\"\", \"\",  INDEX('Full set Core Client Indicator'!$A$3:$AB$351, MATCH(Selection_Hide2!$A8, 'Full set Core Client Indicator'!$A$3:$A$351, 0), MATCH(Selection_Hide2!H$5, 'Full set Core Client Indicator'!$A$3:$AB$3, 0))), \"\")","v":"NSW Mortality Data"},{"$f":"IF(H8<>\"\", IF(INDEX('Full set Core Client Indicator'!$A$3:$AB$351, MATCH(Selection_Hide2!$A8, 'Full set Core Client Indicator'!$A$3:$A$351, 0), MATCH(Selection_Hide2!I$5, 'Full set Core Client Indicator'!$A$3:$AB$3, 0))=\"\", \"\",  INDEX('Full set Core Client Indicator'!$A$3:$AB$351, MATCH(Selection_Hide2!$A8, 'Full set Core Client Indicator'!$A$3:$A$351, 0), MATCH(Selection_Hide2!I$5, 'Full set Core Client Indicator'!$A$3:$AB$3, 0))), \"\")","v":"* Underlying Cause of Death Diagnosis Code [ucod_recode]"},{"$f":"IF(I8<>\"\", IF(INDEX('Full set Core Client Indicator'!$A$3:$AB$351, MATCH(Selection_Hide2!$A8, 'Full set Core Client Indicator'!$A$3:$A$351, 0), MATCH(Selection_Hide2!J$5, 'Full set Core Client Indicator'!$A$3:$AB$3, 0))=\"\", \"\",  INDEX('Full set Core Client Indicator'!$A$3:$AB$351, MATCH(Selection_Hide2!$A8, 'Full set Core Client Indicator'!$A$3:$A$351, 0), MATCH(Selection_Hide2!J$5, 'Full set Core Client Indicator'!$A$3:$AB$3, 0))), \"\")","v":"Numerator: total number of deaths where Underlying Cause of Death Diagnosis Code is self harm (ICD10 X60 - X84, Y87.0)\nDenominator: Number of DCJ clients"},{"$f":"IF(J8<>\"\", IF(INDEX('Full set Core Client Indicator'!$A$3:$AB$351, MATCH(Selection_Hide2!$A8, 'Full set Core Client Indicator'!$A$3:$A$351, 0), MATCH(Selection_Hide2!K$5, 'Full set Core Client Indicator'!$A$3:$AB$3, 0))=\"\", \"\",  INDEX('Full set Core Client Indicator'!$A$3:$AB$351, MATCH(Selection_Hide2!$A8, 'Full set Core Client Indicator'!$A$3:$A$351, 0), MATCH(Selection_Hide2!K$5, 'Full set Core Client Indicator'!$A$3:$AB$3, 0))), \"\")","v":"NSW Registry of Births, Deaths and Marriages"},{"$f":"IF(K8<>\"\", IF(INDEX('Full set Core Client Indicator'!$A$3:$AB$351, MATCH(Selection_Hide2!$A8, 'Full set Core Client Indicator'!$A$3:$A$351, 0), MATCH(Selection_Hide2!L$5, 'Full set Core Client Indicator'!$A$3:$AB$3, 0))=\"\", \"\",  INDEX('Full set Core Client Indicator'!$A$3:$AB$351, MATCH(Selection_Hide2!$A8, 'Full set Core Client Indicator'!$A$3:$A$351, 0), MATCH(Selection_Hide2!L$5, 'Full set Core Client Indicator'!$A$3:$AB$3, 0))), \"\")","v":"CHeReL"},{"$f":"IF(L8<>\"\", IF(INDEX('Full set Core Client Indicator'!$A$3:$AB$351, MATCH(Selection_Hide2!$A8, 'Full set Core Client Indicator'!$A$3:$A$351, 0), MATCH(Selection_Hide2!M$5, 'Full set Core Client Indicator'!$A$3:$AB$3, 0))=\"\", \"\",  INDEX('Full set Core Client Indicator'!$A$3:$AB$351, MATCH(Selection_Hide2!$A8, 'Full set Core Client Indicator'!$A$3:$A$351, 0), MATCH(Selection_Hide2!M$5, 'Full set Core Client Indicator'!$A$3:$AB$3, 0))), \"\")","v":""},{"$f":"IF(M8<>\"\", IF(INDEX('Full set Core Client Indicator'!$A$3:$AB$351, MATCH(Selection_Hide2!$A8, 'Full set Core Client Indicator'!$A$3:$A$351, 0), MATCH(Selection_Hide2!N$5, 'Full set Core Client Indicator'!$A$3:$AB$3, 0))=\"\", \"\",  INDEX('Full set Core Client Indicator'!$A$3:$AB$351, MATCH(Selection_Hide2!$A8, 'Full set Core Client Indicator'!$A$3:$A$351, 0), MATCH(Selection_Hide2!N$5, 'Full set Core Client Indicator'!$A$3:$AB$3, 0))), \"\")","v":""},{"$f":"IF(N8<>\"\", IF(INDEX('Full set Core Client Indicator'!$A$3:$AB$351, MATCH(Selection_Hide2!$A8, 'Full set Core Client Indicator'!$A$3:$A$351, 0), MATCH(Selection_Hide2!O$5, 'Full set Core Client Indicator'!$A$3:$AB$3, 0))=\"\", \"\",  INDEX('Full set Core Client Indicator'!$A$3:$AB$351, MATCH(Selection_Hide2!$A8, 'Full set Core Client Indicator'!$A$3:$A$351, 0), MATCH(Selection_Hide2!O$5, 'Full set Core Client Indicator'!$A$3:$AB$3, 0))), \"\")","v":""},{"$f":"IF(O8<>\"\", IF(INDEX('Full set Core Client Indicator'!$A$3:$AB$351, MATCH(Selection_Hide2!$A8, 'Full set Core Client Indicator'!$A$3:$A$351, 0), MATCH(Selection_Hide2!P$5, 'Full set Core Client Indicator'!$A$3:$AB$3, 0))=\"\", \"\",  INDEX('Full set Core Client Indicator'!$A$3:$AB$351, MATCH(Selection_Hide2!$A8, 'Full set Core Client Indicator'!$A$3:$A$351, 0), MATCH(Selection_Hide2!P$5, 'Full set Core Client Indicator'!$A$3:$AB$3, 0))), \"\")","v":""},{"$f":"IF(P8<>\"\", IF(INDEX('Full set Core Client Indicator'!$A$3:$AB$351, MATCH(Selection_Hide2!$A8, 'Full set Core Client Indicator'!$A$3:$A$351, 0), MATCH(Selection_Hide2!Q$5, 'Full set Core Client Indicator'!$A$3:$AB$3, 0))=\"\", \"\",  INDEX('Full set Core Client Indicator'!$A$3:$AB$351, MATCH(Selection_Hide2!$A8, 'Full set Core Client Indicator'!$A$3:$A$351, 0), MATCH(Selection_Hide2!Q$5, 'Full set Core Client Indicator'!$A$3:$AB$3, 0))), \"\")","v":""},{"$f":"IF(Q8<>\"\", IF(INDEX('Full set Core Client Indicator'!$A$3:$AB$351, MATCH(Selection_Hide2!$A8, 'Full set Core Client Indicator'!$A$3:$A$351, 0), MATCH(Selection_Hide2!R$5, 'Full set Core Client Indicator'!$A$3:$AB$3, 0))=\"\", \"\",  INDEX('Full set Core Client Indicator'!$A$3:$AB$351, MATCH(Selection_Hide2!$A8, 'Full set Core Client Indicator'!$A$3:$A$351, 0), MATCH(Selection_Hide2!R$5, 'Full set Core Client Indicator'!$A$3:$AB$3, 0))), \"\")","v":""},{"$f":"IF(R8<>\"\", IF(INDEX('Full set Core Client Indicator'!$A$3:$AB$351, MATCH(Selection_Hide2!$A8, 'Full set Core Client Indicator'!$A$3:$A$351, 0), MATCH(Selection_Hide2!S$5, 'Full set Core Client Indicator'!$A$3:$AB$3, 0))=\"\", \"\",  INDEX('Full set Core Client Indicator'!$A$3:$AB$351, MATCH(Selection_Hide2!$A8, 'Full set Core Client Indicator'!$A$3:$A$351, 0), MATCH(Selection_Hide2!S$5, 'Full set Core Client Indicator'!$A$3:$AB$3, 0))), \"\")","v":""},{"$f":"IF(S8<>\"\", IF(INDEX('Full set Core Client Indicator'!$A$3:$AB$351, MATCH(Selection_Hide2!$A8, 'Full set Core Client Indicator'!$A$3:$A$351, 0), MATCH(Selection_Hide2!T$5, 'Full set Core Client Indicator'!$A$3:$AB$3, 0))=\"\", \"\",  INDEX('Full set Core Client Indicator'!$A$3:$AB$351, MATCH(Selection_Hide2!$A8, 'Full set Core Client Indicator'!$A$3:$A$351, 0), MATCH(Selection_Hide2!T$5, 'Full set Core Client Indicator'!$A$3:$AB$3, 0))), \"\")","v":""},{"$f":"IF(T8<>\"\", IF(INDEX('Full set Core Client Indicator'!$A$3:$AB$351, MATCH(Selection_Hide2!$A8, 'Full set Core Client Indicator'!$A$3:$A$351, 0), MATCH(Selection_Hide2!U$5, 'Full set Core Client Indicator'!$A$3:$AB$3, 0))=\"\", \"\",  INDEX('Full set Core Client Indicator'!$A$3:$AB$351, MATCH(Selection_Hide2!$A8, 'Full set Core Client Indicator'!$A$3:$A$351, 0), MATCH(Selection_Hide2!U$5, 'Full set Core Client Indicator'!$A$3:$AB$3, 0))), \"\")","v":""},{"$f":"IF(U8<>\"\", IF(INDEX('Full set Core Client Indicator'!$A$3:$AB$351, MATCH(Selection_Hide2!$A8, 'Full set Core Client Indicator'!$A$3:$A$351, 0), MATCH(Selection_Hide2!V$5, 'Full set Core Client Indicator'!$A$3:$AB$3, 0))=\"\", \"\",  INDEX('Full set Core Client Indicator'!$A$3:$AB$351, MATCH(Selection_Hide2!$A8, 'Full set Core Client Indicator'!$A$3:$A$351, 0), MATCH(Selection_Hide2!V$5, 'Full set Core Client Indicator'!$A$3:$AB$3, 0))), \"\")","v":""},{"$f":"IF(V8<>\"\", IF(INDEX('Full set Core Client Indicator'!$A$3:$AB$351, MATCH(Selection_Hide2!$A8, 'Full set Core Client Indicator'!$A$3:$A$351, 0), MATCH(Selection_Hide2!W$5, 'Full set Core Client Indicator'!$A$3:$AB$3, 0))=\"\", \"\",  INDEX('Full set Core Client Indicator'!$A$3:$AB$351, MATCH(Selection_Hide2!$A8, 'Full set Core Client Indicator'!$A$3:$A$351, 0), MATCH(Selection_Hide2!W$5, 'Full set Core Client Indicator'!$A$3:$AB$3, 0))), \"\")","v":""},{"$f":"IF(W8<>\"\", IF(INDEX('Full set Core Client Indicator'!$A$3:$AB$351, MATCH(Selection_Hide2!$A8, 'Full set Core Client Indicator'!$A$3:$A$351, 0), MATCH(Selection_Hide2!X$5, 'Full set Core Client Indicator'!$A$3:$AB$3, 0))=\"\", \"\",  INDEX('Full set Core Client Indicator'!$A$3:$AB$351, MATCH(Selection_Hide2!$A8, 'Full set Core Client Indicator'!$A$3:$A$351, 0), MATCH(Selection_Hide2!X$5, 'Full set Core Client Indicator'!$A$3:$AB$3, 0))), \"\")","v":""},{"$f":"IF(X8<>\"\", IF(INDEX('Full set Core Client Indicator'!$A$3:$AB$351, MATCH(Selection_Hide2!$A8, 'Full set Core Client Indicator'!$A$3:$A$351, 0), MATCH(Selection_Hide2!Y$5, 'Full set Core Client Indicator'!$A$3:$AB$3, 0))=\"\", \"\",  INDEX('Full set Core Client Indicator'!$A$3:$AB$351, MATCH(Selection_Hide2!$A8, 'Full set Core Client Indicator'!$A$3:$A$351, 0), MATCH(Selection_Hide2!Y$5, 'Full set Core Client Indicator'!$A$3:$AB$3, 0))), \"\")","v":""},{"$f":"IF(Y8<>\"\", IF(INDEX('Full set Core Client Indicator'!$A$3:$AB$351, MATCH(Selection_Hide2!$A8, 'Full set Core Client Indicator'!$A$3:$A$351, 0), MATCH(Selection_Hide2!Z$5, 'Full set Core Client Indicator'!$A$3:$AB$3, 0))=\"\", \"\",  INDEX('Full set Core Client Indicator'!$A$3:$AB$351, MATCH(Selection_Hide2!$A8, 'Full set Core Client Indicator'!$A$3:$A$351, 0), MATCH(Selection_Hide2!Z$5, 'Full set Core Client Indicator'!$A$3:$AB$3, 0))), \"\")","v":""},{"$f":"IF(Z8<>\"\", IF(INDEX('Full set Core Client Indicator'!$A$3:$AB$351, MATCH(Selection_Hide2!$A8, 'Full set Core Client Indicator'!$A$3:$A$351, 0), MATCH(Selection_Hide2!AA$5, 'Full set Core Client Indicator'!$A$3:$AB$3, 0))=\"\", \"\",  INDEX('Full set Core Client Indicator'!$A$3:$AB$351, MATCH(Selection_Hide2!$A8, 'Full set Core Client Indicator'!$A$3:$A$351, 0), MATCH(Selection_Hide2!AA$5, 'Full set Core Client Indicator'!$A$3:$AB$3, 0))), \"\")","v":""},{"$f":"IF(AA8<>\"\", IF(INDEX('Full set Core Client Indicator'!$A$3:$AB$351, MATCH(Selection_Hide2!$A8, 'Full set Core Client Indicator'!$A$3:$A$351, 0), MATCH(Selection_Hide2!AB$5, 'Full set Core Client Indicator'!$A$3:$AB$3, 0))=\"\", \"\",  INDEX('Full set Core Client Indicator'!$A$3:$AB$351, MATCH(Selection_Hide2!$A8, 'Full set Core Client Indicator'!$A$3:$A$351, 0), MATCH(Selection_Hide2!AB$5, 'Full set Core Client Indicator'!$A$3:$AB$3, 0))), \"\")","v":""}]
[{"$f":"IF(AND(Selection_Hide1!C7<>0, Selection_Hide1!C7<>\"Grand Total\"), Selection_Hide1!C7, \"\")","v":"114"},{"$f":"IF(A9<>\"\", IF(INDEX('Full set Core Client Indicator'!$A$3:$AB$351, MATCH(Selection_Hide2!$A9, 'Full set Core Client Indicator'!$A$3:$A$351, 0), MATCH(Selection_Hide2!B$5, 'Full set Core Client Indicator'!$A$3:$AB$3, 0))=\"\", \"\",  INDEX('Full set Core Client Indicator'!$A$3:$AB$351, MATCH(Selection_Hide2!$A9, 'Full set Core Client Indicator'!$A$3:$A$351, 0), MATCH(Selection_Hide2!B$5, 'Full set Core Client Indicator'!$A$3:$AB$3, 0))), \"\")","v":"Health"},{"$f":"IF(B9<>\"\", IF(INDEX('Full set Core Client Indicator'!$A$3:$AB$351, MATCH(Selection_Hide2!$A9, 'Full set Core Client Indicator'!$A$3:$A$351, 0), MATCH(Selection_Hide2!C$5, 'Full set Core Client Indicator'!$A$3:$AB$3, 0))=\"\", \"\",  INDEX('Full set Core Client Indicator'!$A$3:$AB$351, MATCH(Selection_Hide2!$A9, 'Full set Core Client Indicator'!$A$3:$A$351, 0), MATCH(Selection_Hide2!C$5, 'Full set Core Client Indicator'!$A$3:$AB$3, 0))), \"\")","v":"People have good mental health and social and emotional wellbeing"},{"$f":"IF(C9<>\"\", IF(INDEX('Full set Core Client Indicator'!$A$3:$AB$351, MATCH(Selection_Hide2!$A9, 'Full set Core Client Indicator'!$A$3:$A$351, 0), MATCH(Selection_Hide2!D$5, 'Full set Core Client Indicator'!$A$3:$AB$3, 0))=\"\", \"\",  INDEX('Full set Core Client Indicator'!$A$3:$AB$351, MATCH(Selection_Hide2!$A9, 'Full set Core Client Indicator'!$A$3:$A$351, 0), MATCH(Selection_Hide2!D$5, 'Full set Core Client Indicator'!$A$3:$AB$3, 0))), \"\")","v":"Proportion (%) of people who report often feeling lonely"},{"$f":"IF(D9<>\"\", IF(INDEX('Full set Core Client Indicator'!$A$3:$AB$351, MATCH(Selection_Hide2!$A9, 'Full set Core Client Indicator'!$A$3:$A$351, 0), MATCH(Selection_Hide2!E$5, 'Full set Core Client Indicator'!$A$3:$AB$3, 0))=\"\", \"\",  INDEX('Full set Core Client Indicator'!$A$3:$AB$351, MATCH(Selection_Hide2!$A9, 'Full set Core Client Indicator'!$A$3:$A$351, 0), MATCH(Selection_Hide2!E$5, 'Full set Core Client Indicator'!$A$3:$AB$3, 0))), \"\")","v":" HILDA Question: \nI often feel very lonely\n1 (strongly disagree) - 7 (strongly agree)\n\n"},{"$f":"IF(E9<>\"\", IF(INDEX('Full set Core Client Indicator'!$A$3:$AB$351, MATCH(Selection_Hide2!$A9, 'Full set Core Client Indicator'!$A$3:$A$351, 0), MATCH(Selection_Hide2!F$5, 'Full set Core Client Indicator'!$A$3:$AB$3, 0))=\"\", \"\",  INDEX('Full set Core Client Indicator'!$A$3:$AB$351, MATCH(Selection_Hide2!$A9, 'Full set Core Client Indicator'!$A$3:$A$351, 0), MATCH(Selection_Hide2!F$5, 'Full set Core Client Indicator'!$A$3:$AB$3, 0))), \"\")","v":"External agency measure (HILDS)"},{"$f":"IF(F9<>\"\", IF(INDEX('Full set Core Client Indicator'!$A$3:$AB$351, MATCH(Selection_Hide2!$A9, 'Full set Core Client Indicator'!$A$3:$A$351, 0), MATCH(Selection_Hide2!G$5, 'Full set Core Client Indicator'!$A$3:$AB$3, 0))=\"\", \"\",  INDEX('Full set Core Client Indicator'!$A$3:$AB$351, MATCH(Selection_Hide2!$A9, 'Full set Core Client Indicator'!$A$3:$A$351, 0), MATCH(Selection_Hide2!G$5, 'Full set Core Client Indicator'!$A$3:$AB$3, 0))), \"\")","v":"New data"},{"$f":"IF(G9<>\"\", IF(INDEX('Full set Core Client Indicator'!$A$3:$AB$351, MATCH(Selection_Hide2!$A9, 'Full set Core Client Indicator'!$A$3:$A$351, 0), MATCH(Selection_Hide2!H$5, 'Full set Core Client Indicator'!$A$3:$AB$3, 0))=\"\", \"\",  INDEX('Full set Core Client Indicator'!$A$3:$AB$351, MATCH(Selection_Hide2!$A9, 'Full set Core Client Indicator'!$A$3:$A$351, 0), MATCH(Selection_Hide2!H$5, 'Full set Core Client Indicator'!$A$3:$AB$3, 0))), \"\")","v":"No data source"},{"$f":"IF(H9<>\"\", IF(INDEX('Full set Core Client Indicator'!$A$3:$AB$351, MATCH(Selection_Hide2!$A9, 'Full set Core Client Indicator'!$A$3:$A$351, 0), MATCH(Selection_Hide2!I$5, 'Full set Core Client Indicator'!$A$3:$AB$3, 0))=\"\", \"\",  INDEX('Full set Core Client Indicator'!$A$3:$AB$351, MATCH(Selection_Hide2!$A9, 'Full set Core Client Indicator'!$A$3:$A$351, 0), MATCH(Selection_Hide2!I$5, 'Full set Core Client Indicator'!$A$3:$AB$3, 0))), \"\")","v":"* Persons loneliness score"},{"$f":"IF(I9<>\"\", IF(INDEX('Full set Core Client Indicator'!$A$3:$AB$351, MATCH(Selection_Hide2!$A9, 'Full set Core Client Indicator'!$A$3:$A$351, 0), MATCH(Selection_Hide2!J$5, 'Full set Core Client Indicator'!$A$3:$AB$3, 0))=\"\", \"\",  INDEX('Full set Core Client Indicator'!$A$3:$AB$351, MATCH(Selection_Hide2!$A9, 'Full set Core Client Indicator'!$A$3:$A$351, 0), MATCH(Selection_Hide2!J$5, 'Full set Core Client Indicator'!$A$3:$AB$3, 0))), \"\")","v":"Numerator: Number of people with a loneliness score >=5\nDenominator: Number of people surveyed"},{"$f":"IF(J9<>\"\", IF(INDEX('Full set Core Client Indicator'!$A$3:$AB$351, MATCH(Selection_Hide2!$A9, 'Full set Core Client Indicator'!$A$3:$A$351, 0), MATCH(Selection_Hide2!K$5, 'Full set Core Client Indicator'!$A$3:$AB$3, 0))=\"\", \"\",  INDEX('Full set Core Client Indicator'!$A$3:$AB$351, MATCH(Selection_Hide2!$A9, 'Full set Core Client Indicator'!$A$3:$A$351, 0), MATCH(Selection_Hide2!K$5, 'Full set Core Client Indicator'!$A$3:$AB$3, 0))), \"\")","v":""},{"$f":"IF(K9<>\"\", IF(INDEX('Full set Core Client Indicator'!$A$3:$AB$351, MATCH(Selection_Hide2!$A9, 'Full set Core Client Indicator'!$A$3:$A$351, 0), MATCH(Selection_Hide2!L$5, 'Full set Core Client Indicator'!$A$3:$AB$3, 0))=\"\", \"\",  INDEX('Full set Core Client Indicator'!$A$3:$AB$351, MATCH(Selection_Hide2!$A9, 'Full set Core Client Indicator'!$A$3:$A$351, 0), MATCH(Selection_Hide2!L$5, 'Full set Core Client Indicator'!$A$3:$AB$3, 0))), \"\")","v":""},{"$f":"IF(L9<>\"\", IF(INDEX('Full set Core Client Indicator'!$A$3:$AB$351, MATCH(Selection_Hide2!$A9, 'Full set Core Client Indicator'!$A$3:$A$351, 0), MATCH(Selection_Hide2!M$5, 'Full set Core Client Indicator'!$A$3:$AB$3, 0))=\"\", \"\",  INDEX('Full set Core Client Indicator'!$A$3:$AB$351, MATCH(Selection_Hide2!$A9, 'Full set Core Client Indicator'!$A$3:$A$351, 0), MATCH(Selection_Hide2!M$5, 'Full set Core Client Indicator'!$A$3:$AB$3, 0))), \"\")","v":""},{"$f":"IF(M9<>\"\", IF(INDEX('Full set Core Client Indicator'!$A$3:$AB$351, MATCH(Selection_Hide2!$A9, 'Full set Core Client Indicator'!$A$3:$A$351, 0), MATCH(Selection_Hide2!N$5, 'Full set Core Client Indicator'!$A$3:$AB$3, 0))=\"\", \"\",  INDEX('Full set Core Client Indicator'!$A$3:$AB$351, MATCH(Selection_Hide2!$A9, 'Full set Core Client Indicator'!$A$3:$A$351, 0), MATCH(Selection_Hide2!N$5, 'Full set Core Client Indicator'!$A$3:$AB$3, 0))), \"\")","v":""},{"$f":"IF(N9<>\"\", IF(INDEX('Full set Core Client Indicator'!$A$3:$AB$351, MATCH(Selection_Hide2!$A9, 'Full set Core Client Indicator'!$A$3:$A$351, 0), MATCH(Selection_Hide2!O$5, 'Full set Core Client Indicator'!$A$3:$AB$3, 0))=\"\", \"\",  INDEX('Full set Core Client Indicator'!$A$3:$AB$351, MATCH(Selection_Hide2!$A9, 'Full set Core Client Indicator'!$A$3:$A$351, 0), MATCH(Selection_Hide2!O$5, 'Full set Core Client Indicator'!$A$3:$AB$3, 0))), \"\")","v":""},{"$f":"IF(O9<>\"\", IF(INDEX('Full set Core Client Indicator'!$A$3:$AB$351, MATCH(Selection_Hide2!$A9, 'Full set Core Client Indicator'!$A$3:$A$351, 0), MATCH(Selection_Hide2!P$5, 'Full set Core Client Indicator'!$A$3:$AB$3, 0))=\"\", \"\",  INDEX('Full set Core Client Indicator'!$A$3:$AB$351, MATCH(Selection_Hide2!$A9, 'Full set Core Client Indicator'!$A$3:$A$351, 0), MATCH(Selection_Hide2!P$5, 'Full set Core Client Indicator'!$A$3:$AB$3, 0))), \"\")","v":""},{"$f":"IF(P9<>\"\", IF(INDEX('Full set Core Client Indicator'!$A$3:$AB$351, MATCH(Selection_Hide2!$A9, 'Full set Core Client Indicator'!$A$3:$A$351, 0), MATCH(Selection_Hide2!Q$5, 'Full set Core Client Indicator'!$A$3:$AB$3, 0))=\"\", \"\",  INDEX('Full set Core Client Indicator'!$A$3:$AB$351, MATCH(Selection_Hide2!$A9, 'Full set Core Client Indicator'!$A$3:$A$351, 0), MATCH(Selection_Hide2!Q$5, 'Full set Core Client Indicator'!$A$3:$AB$3, 0))), \"\")","v":""},{"$f":"IF(Q9<>\"\", IF(INDEX('Full set Core Client Indicator'!$A$3:$AB$351, MATCH(Selection_Hide2!$A9, 'Full set Core Client Indicator'!$A$3:$A$351, 0), MATCH(Selection_Hide2!R$5, 'Full set Core Client Indicator'!$A$3:$AB$3, 0))=\"\", \"\",  INDEX('Full set Core Client Indicator'!$A$3:$AB$351, MATCH(Selection_Hide2!$A9, 'Full set Core Client Indicator'!$A$3:$A$351, 0), MATCH(Selection_Hide2!R$5, 'Full set Core Client Indicator'!$A$3:$AB$3, 0))), \"\")","v":""},{"$f":"IF(R9<>\"\", IF(INDEX('Full set Core Client Indicator'!$A$3:$AB$351, MATCH(Selection_Hide2!$A9, 'Full set Core Client Indicator'!$A$3:$A$351, 0), MATCH(Selection_Hide2!S$5, 'Full set Core Client Indicator'!$A$3:$AB$3, 0))=\"\", \"\",  INDEX('Full set Core Client Indicator'!$A$3:$AB$351, MATCH(Selection_Hide2!$A9, 'Full set Core Client Indicator'!$A$3:$A$351, 0), MATCH(Selection_Hide2!S$5, 'Full set Core Client Indicator'!$A$3:$AB$3, 0))), \"\")","v":""},{"$f":"IF(S9<>\"\", IF(INDEX('Full set Core Client Indicator'!$A$3:$AB$351, MATCH(Selection_Hide2!$A9, 'Full set Core Client Indicator'!$A$3:$A$351, 0), MATCH(Selection_Hide2!T$5, 'Full set Core Client Indicator'!$A$3:$AB$3, 0))=\"\", \"\",  INDEX('Full set Core Client Indicator'!$A$3:$AB$351, MATCH(Selection_Hide2!$A9, 'Full set Core Client Indicator'!$A$3:$A$351, 0), MATCH(Selection_Hide2!T$5, 'Full set Core Client Indicator'!$A$3:$AB$3, 0))), \"\")","v":""},{"$f":"IF(T9<>\"\", IF(INDEX('Full set Core Client Indicator'!$A$3:$AB$351, MATCH(Selection_Hide2!$A9, 'Full set Core Client Indicator'!$A$3:$A$351, 0), MATCH(Selection_Hide2!U$5, 'Full set Core Client Indicator'!$A$3:$AB$3, 0))=\"\", \"\",  INDEX('Full set Core Client Indicator'!$A$3:$AB$351, MATCH(Selection_Hide2!$A9, 'Full set Core Client Indicator'!$A$3:$A$351, 0), MATCH(Selection_Hide2!U$5, 'Full set Core Client Indicator'!$A$3:$AB$3, 0))), \"\")","v":""},{"$f":"IF(U9<>\"\", IF(INDEX('Full set Core Client Indicator'!$A$3:$AB$351, MATCH(Selection_Hide2!$A9, 'Full set Core Client Indicator'!$A$3:$A$351, 0), MATCH(Selection_Hide2!V$5, 'Full set Core Client Indicator'!$A$3:$AB$3, 0))=\"\", \"\",  INDEX('Full set Core Client Indicator'!$A$3:$AB$351, MATCH(Selection_Hide2!$A9, 'Full set Core Client Indicator'!$A$3:$A$351, 0), MATCH(Selection_Hide2!V$5, 'Full set Core Client Indicator'!$A$3:$AB$3, 0))), \"\")","v":""},{"$f":"IF(V9<>\"\", IF(INDEX('Full set Core Client Indicator'!$A$3:$AB$351, MATCH(Selection_Hide2!$A9, 'Full set Core Client Indicator'!$A$3:$A$351, 0), MATCH(Selection_Hide2!W$5, 'Full set Core Client Indicator'!$A$3:$AB$3, 0))=\"\", \"\",  INDEX('Full set Core Client Indicator'!$A$3:$AB$351, MATCH(Selection_Hide2!$A9, 'Full set Core Client Indicator'!$A$3:$A$351, 0), MATCH(Selection_Hide2!W$5, 'Full set Core Client Indicator'!$A$3:$AB$3, 0))), \"\")","v":""},{"$f":"IF(W9<>\"\", IF(INDEX('Full set Core Client Indicator'!$A$3:$AB$351, MATCH(Selection_Hide2!$A9, 'Full set Core Client Indicator'!$A$3:$A$351, 0), MATCH(Selection_Hide2!X$5, 'Full set Core Client Indicator'!$A$3:$AB$3, 0))=\"\", \"\",  INDEX('Full set Core Client Indicator'!$A$3:$AB$351, MATCH(Selection_Hide2!$A9, 'Full set Core Client Indicator'!$A$3:$A$351, 0), MATCH(Selection_Hide2!X$5, 'Full set Core Client Indicator'!$A$3:$AB$3, 0))), \"\")","v":""},{"$f":"IF(X9<>\"\", IF(INDEX('Full set Core Client Indicator'!$A$3:$AB$351, MATCH(Selection_Hide2!$A9, 'Full set Core Client Indicator'!$A$3:$A$351, 0), MATCH(Selection_Hide2!Y$5, 'Full set Core Client Indicator'!$A$3:$AB$3, 0))=\"\", \"\",  INDEX('Full set Core Client Indicator'!$A$3:$AB$351, MATCH(Selection_Hide2!$A9, 'Full set Core Client Indicator'!$A$3:$A$351, 0), MATCH(Selection_Hide2!Y$5, 'Full set Core Client Indicator'!$A$3:$AB$3, 0))), \"\")","v":""},{"$f":"IF(Y9<>\"\", IF(INDEX('Full set Core Client Indicator'!$A$3:$AB$351, MATCH(Selection_Hide2!$A9, 'Full set Core Client Indicator'!$A$3:$A$351, 0), MATCH(Selection_Hide2!Z$5, 'Full set Core Client Indicator'!$A$3:$AB$3, 0))=\"\", \"\",  INDEX('Full set Core Client Indicator'!$A$3:$AB$351, MATCH(Selection_Hide2!$A9, 'Full set Core Client Indicator'!$A$3:$A$351, 0), MATCH(Selection_Hide2!Z$5, 'Full set Core Client Indicator'!$A$3:$AB$3, 0))), \"\")","v":""},{"$f":"IF(Z9<>\"\", IF(INDEX('Full set Core Client Indicator'!$A$3:$AB$351, MATCH(Selection_Hide2!$A9, 'Full set Core Client Indicator'!$A$3:$A$351, 0), MATCH(Selection_Hide2!AA$5, 'Full set Core Client Indicator'!$A$3:$AB$3, 0))=\"\", \"\",  INDEX('Full set Core Client Indicator'!$A$3:$AB$351, MATCH(Selection_Hide2!$A9, 'Full set Core Client Indicator'!$A$3:$A$351, 0), MATCH(Selection_Hide2!AA$5, 'Full set Core Client Indicator'!$A$3:$AB$3, 0))), \"\")","v":""},{"$f":"IF(AA9<>\"\", IF(INDEX('Full set Core Client Indicator'!$A$3:$AB$351, MATCH(Selection_Hide2!$A9, 'Full set Core Client Indicator'!$A$3:$A$351, 0), MATCH(Selection_Hide2!AB$5, 'Full set Core Client Indicator'!$A$3:$AB$3, 0))=\"\", \"\",  INDEX('Full set Core Client Indicator'!$A$3:$AB$351, MATCH(Selection_Hide2!$A9, 'Full set Core Client Indicator'!$A$3:$A$351, 0), MATCH(Selection_Hide2!AB$5, 'Full set Core Client Indicator'!$A$3:$AB$3, 0))), \"\")","v":""}]
[{"$f":"IF(AND(Selection_Hide1!C8<>0, Selection_Hide1!C8<>\"Grand Total\"), Selection_Hide1!C8, \"\")","v":"115"},{"$f":"IF(A10<>\"\", IF(INDEX('Full set Core Client Indicator'!$A$3:$AB$351, MATCH(Selection_Hide2!$A10, 'Full set Core Client Indicator'!$A$3:$A$351, 0), MATCH(Selection_Hide2!B$5, 'Full set Core Client Indicator'!$A$3:$AB$3, 0))=\"\", \"\",  INDEX('Full set Core Client Indicator'!$A$3:$AB$351, MATCH(Selection_Hide2!$A10, 'Full set Core Client Indicator'!$A$3:$A$351, 0), MATCH(Selection_Hide2!B$5, 'Full set Core Client Indicator'!$A$3:$AB$3, 0))), \"\")","v":"Health"},{"$f":"IF(B10<>\"\", IF(INDEX('Full set Core Client Indicator'!$A$3:$AB$351, MATCH(Selection_Hide2!$A10, 'Full set Core Client Indicator'!$A$3:$A$351, 0), MATCH(Selection_Hide2!C$5, 'Full set Core Client Indicator'!$A$3:$AB$3, 0))=\"\", \"\",  INDEX('Full set Core Client Indicator'!$A$3:$AB$351, MATCH(Selection_Hide2!$A10, 'Full set Core Client Indicator'!$A$3:$A$351, 0), MATCH(Selection_Hide2!C$5, 'Full set Core Client Indicator'!$A$3:$AB$3, 0))), \"\")","v":"People have good mental health and social and emotional wellbeing"},{"$f":"IF(C10<>\"\", IF(INDEX('Full set Core Client Indicator'!$A$3:$AB$351, MATCH(Selection_Hide2!$A10, 'Full set Core Client Indicator'!$A$3:$A$351, 0), MATCH(Selection_Hide2!D$5, 'Full set Core Client Indicator'!$A$3:$AB$3, 0))=\"\", \"\",  INDEX('Full set Core Client Indicator'!$A$3:$AB$351, MATCH(Selection_Hide2!$A10, 'Full set Core Client Indicator'!$A$3:$A$351, 0), MATCH(Selection_Hide2!D$5, 'Full set Core Client Indicator'!$A$3:$AB$3, 0))), \"\")","v":"Proportion (%) of children with good social and emotional functioning"},{"$f":"IF(D10<>\"\", IF(INDEX('Full set Core Client Indicator'!$A$3:$AB$351, MATCH(Selection_Hide2!$A10, 'Full set Core Client Indicator'!$A$3:$A$351, 0), MATCH(Selection_Hide2!E$5, 'Full set Core Client Indicator'!$A$3:$AB$3, 0))=\"\", \"\",  INDEX('Full set Core Client Indicator'!$A$3:$AB$351, MATCH(Selection_Hide2!$A10, 'Full set Core Client Indicator'!$A$3:$A$351, 0), MATCH(Selection_Hide2!E$5, 'Full set Core Client Indicator'!$A$3:$AB$3, 0))), \"\")","v":"QAF (Recommended)\nStrengths and Difficulties Questionnaire (SDQ) \n\nPOCLS\nAged 9-35 months - Brief Infant-toddler Social and Emotional Assessment (BITSEA)\nAged 6-18 years - Child Behavior Checklist (CBCL)"},{"$f":"IF(E10<>\"\", IF(INDEX('Full set Core Client Indicator'!$A$3:$AB$351, MATCH(Selection_Hide2!$A10, 'Full set Core Client Indicator'!$A$3:$A$351, 0), MATCH(Selection_Hide2!F$5, 'Full set Core Client Indicator'!$A$3:$AB$3, 0))=\"\", \"\",  INDEX('Full set Core Client Indicator'!$A$3:$AB$351, MATCH(Selection_Hide2!$A10, 'Full set Core Client Indicator'!$A$3:$A$351, 0), MATCH(Selection_Hide2!F$5, 'Full set Core Client Indicator'!$A$3:$AB$3, 0))), \"\")","v":"Existing DCJ measure (QAF and POCLS)"},{"$f":"IF(F10<>\"\", IF(INDEX('Full set Core Client Indicator'!$A$3:$AB$351, MATCH(Selection_Hide2!$A10, 'Full set Core Client Indicator'!$A$3:$A$351, 0), MATCH(Selection_Hide2!G$5, 'Full set Core Client Indicator'!$A$3:$AB$3, 0))=\"\", \"\",  INDEX('Full set Core Client Indicator'!$A$3:$AB$351, MATCH(Selection_Hide2!$A10, 'Full set Core Client Indicator'!$A$3:$A$351, 0), MATCH(Selection_Hide2!G$5, 'Full set Core Client Indicator'!$A$3:$AB$3, 0))), \"\")","v":"New data"},{"$f":"IF(G10<>\"\", IF(INDEX('Full set Core Client Indicator'!$A$3:$AB$351, MATCH(Selection_Hide2!$A10, 'Full set Core Client Indicator'!$A$3:$A$351, 0), MATCH(Selection_Hide2!H$5, 'Full set Core Client Indicator'!$A$3:$AB$3, 0))=\"\", \"\",  INDEX('Full set Core Client Indicator'!$A$3:$AB$351, MATCH(Selection_Hide2!$A10, 'Full set Core Client Indicator'!$A$3:$A$351, 0), MATCH(Selection_Hide2!H$5, 'Full set Core Client Indicator'!$A$3:$AB$3, 0))), \"\")","v":"No data source"},{"$f":"IF(H10<>\"\", IF(INDEX('Full set Core Client Indicator'!$A$3:$AB$351, MATCH(Selection_Hide2!$A10, 'Full set Core Client Indicator'!$A$3:$A$351, 0), MATCH(Selection_Hide2!I$5, 'Full set Core Client Indicator'!$A$3:$AB$3, 0))=\"\", \"\",  INDEX('Full set Core Client Indicator'!$A$3:$AB$351, MATCH(Selection_Hide2!$A10, 'Full set Core Client Indicator'!$A$3:$A$351, 0), MATCH(Selection_Hide2!I$5, 'Full set Core Client Indicator'!$A$3:$AB$3, 0))), \"\")","v":"QAF developing data elements"},{"$f":"IF(I10<>\"\", IF(INDEX('Full set Core Client Indicator'!$A$3:$AB$351, MATCH(Selection_Hide2!$A10, 'Full set Core Client Indicator'!$A$3:$A$351, 0), MATCH(Selection_Hide2!J$5, 'Full set Core Client Indicator'!$A$3:$AB$3, 0))=\"\", \"\",  INDEX('Full set Core Client Indicator'!$A$3:$AB$351, MATCH(Selection_Hide2!$A10, 'Full set Core Client Indicator'!$A$3:$A$351, 0), MATCH(Selection_Hide2!J$5, 'Full set Core Client Indicator'!$A$3:$AB$3, 0))), \"\")","v":"QAF developing counting rules"},{"$f":"IF(J10<>\"\", IF(INDEX('Full set Core Client Indicator'!$A$3:$AB$351, MATCH(Selection_Hide2!$A10, 'Full set Core Client Indicator'!$A$3:$A$351, 0), MATCH(Selection_Hide2!K$5, 'Full set Core Client Indicator'!$A$3:$AB$3, 0))=\"\", \"\",  INDEX('Full set Core Client Indicator'!$A$3:$AB$351, MATCH(Selection_Hide2!$A10, 'Full set Core Client Indicator'!$A$3:$A$351, 0), MATCH(Selection_Hide2!K$5, 'Full set Core Client Indicator'!$A$3:$AB$3, 0))), \"\")","v":""},{"$f":"IF(K10<>\"\", IF(INDEX('Full set Core Client Indicator'!$A$3:$AB$351, MATCH(Selection_Hide2!$A10, 'Full set Core Client Indicator'!$A$3:$A$351, 0), MATCH(Selection_Hide2!L$5, 'Full set Core Client Indicator'!$A$3:$AB$3, 0))=\"\", \"\",  INDEX('Full set Core Client Indicator'!$A$3:$AB$351, MATCH(Selection_Hide2!$A10, 'Full set Core Client Indicator'!$A$3:$A$351, 0), MATCH(Selection_Hide2!L$5, 'Full set Core Client Indicator'!$A$3:$AB$3, 0))), \"\")","v":""},{"$f":"IF(L10<>\"\", IF(INDEX('Full set Core Client Indicator'!$A$3:$AB$351, MATCH(Selection_Hide2!$A10, 'Full set Core Client Indicator'!$A$3:$A$351, 0), MATCH(Selection_Hide2!M$5, 'Full set Core Client Indicator'!$A$3:$AB$3, 0))=\"\", \"\",  INDEX('Full set Core Client Indicator'!$A$3:$AB$351, MATCH(Selection_Hide2!$A10, 'Full set Core Client Indicator'!$A$3:$A$351, 0), MATCH(Selection_Hide2!M$5, 'Full set Core Client Indicator'!$A$3:$AB$3, 0))), \"\")","v":""},{"$f":"IF(M10<>\"\", IF(INDEX('Full set Core Client Indicator'!$A$3:$AB$351, MATCH(Selection_Hide2!$A10, 'Full set Core Client Indicator'!$A$3:$A$351, 0), MATCH(Selection_Hide2!N$5, 'Full set Core Client Indicator'!$A$3:$AB$3, 0))=\"\", \"\",  INDEX('Full set Core Client Indicator'!$A$3:$AB$351, MATCH(Selection_Hide2!$A10, 'Full set Core Client Indicator'!$A$3:$A$351, 0), MATCH(Selection_Hide2!N$5, 'Full set Core Client Indicator'!$A$3:$AB$3, 0))), \"\")","v":""},{"$f":"IF(N10<>\"\", IF(INDEX('Full set Core Client Indicator'!$A$3:$AB$351, MATCH(Selection_Hide2!$A10, 'Full set Core Client Indicator'!$A$3:$A$351, 0), MATCH(Selection_Hide2!O$5, 'Full set Core Client Indicator'!$A$3:$AB$3, 0))=\"\", \"\",  INDEX('Full set Core Client Indicator'!$A$3:$AB$351, MATCH(Selection_Hide2!$A10, 'Full set Core Client Indicator'!$A$3:$A$351, 0), MATCH(Selection_Hide2!O$5, 'Full set Core Client Indicator'!$A$3:$AB$3, 0))), \"\")","v":""},{"$f":"IF(O10<>\"\", IF(INDEX('Full set Core Client Indicator'!$A$3:$AB$351, MATCH(Selection_Hide2!$A10, 'Full set Core Client Indicator'!$A$3:$A$351, 0), MATCH(Selection_Hide2!P$5, 'Full set Core Client Indicator'!$A$3:$AB$3, 0))=\"\", \"\",  INDEX('Full set Core Client Indicator'!$A$3:$AB$351, MATCH(Selection_Hide2!$A10, 'Full set Core Client Indicator'!$A$3:$A$351, 0), MATCH(Selection_Hide2!P$5, 'Full set Core Client Indicator'!$A$3:$AB$3, 0))), \"\")","v":""},{"$f":"IF(P10<>\"\", IF(INDEX('Full set Core Client Indicator'!$A$3:$AB$351, MATCH(Selection_Hide2!$A10, 'Full set Core Client Indicator'!$A$3:$A$351, 0), MATCH(Selection_Hide2!Q$5, 'Full set Core Client Indicator'!$A$3:$AB$3, 0))=\"\", \"\",  INDEX('Full set Core Client Indicator'!$A$3:$AB$351, MATCH(Selection_Hide2!$A10, 'Full set Core Client Indicator'!$A$3:$A$351, 0), MATCH(Selection_Hide2!Q$5, 'Full set Core Client Indicator'!$A$3:$AB$3, 0))), \"\")","v":""},{"$f":"IF(Q10<>\"\", IF(INDEX('Full set Core Client Indicator'!$A$3:$AB$351, MATCH(Selection_Hide2!$A10, 'Full set Core Client Indicator'!$A$3:$A$351, 0), MATCH(Selection_Hide2!R$5, 'Full set Core Client Indicator'!$A$3:$AB$3, 0))=\"\", \"\",  INDEX('Full set Core Client Indicator'!$A$3:$AB$351, MATCH(Selection_Hide2!$A10, 'Full set Core Client Indicator'!$A$3:$A$351, 0), MATCH(Selection_Hide2!R$5, 'Full set Core Client Indicator'!$A$3:$AB$3, 0))), \"\")","v":""},{"$f":"IF(R10<>\"\", IF(INDEX('Full set Core Client Indicator'!$A$3:$AB$351, MATCH(Selection_Hide2!$A10, 'Full set Core Client Indicator'!$A$3:$A$351, 0), MATCH(Selection_Hide2!S$5, 'Full set Core Client Indicator'!$A$3:$AB$3, 0))=\"\", \"\",  INDEX('Full set Core Client Indicator'!$A$3:$AB$351, MATCH(Selection_Hide2!$A10, 'Full set Core Client Indicator'!$A$3:$A$351, 0), MATCH(Selection_Hide2!S$5, 'Full set Core Client Indicator'!$A$3:$AB$3, 0))), \"\")","v":""},{"$f":"IF(S10<>\"\", IF(INDEX('Full set Core Client Indicator'!$A$3:$AB$351, MATCH(Selection_Hide2!$A10, 'Full set Core Client Indicator'!$A$3:$A$351, 0), MATCH(Selection_Hide2!T$5, 'Full set Core Client Indicator'!$A$3:$AB$3, 0))=\"\", \"\",  INDEX('Full set Core Client Indicator'!$A$3:$AB$351, MATCH(Selection_Hide2!$A10, 'Full set Core Client Indicator'!$A$3:$A$351, 0), MATCH(Selection_Hide2!T$5, 'Full set Core Client Indicator'!$A$3:$AB$3, 0))), \"\")","v":""},{"$f":"IF(T10<>\"\", IF(INDEX('Full set Core Client Indicator'!$A$3:$AB$351, MATCH(Selection_Hide2!$A10, 'Full set Core Client Indicator'!$A$3:$A$351, 0), MATCH(Selection_Hide2!U$5, 'Full set Core Client Indicator'!$A$3:$AB$3, 0))=\"\", \"\",  INDEX('Full set Core Client Indicator'!$A$3:$AB$351, MATCH(Selection_Hide2!$A10, 'Full set Core Client Indicator'!$A$3:$A$351, 0), MATCH(Selection_Hide2!U$5, 'Full set Core Client Indicator'!$A$3:$AB$3, 0))), \"\")","v":""},{"$f":"IF(U10<>\"\", IF(INDEX('Full set Core Client Indicator'!$A$3:$AB$351, MATCH(Selection_Hide2!$A10, 'Full set Core Client Indicator'!$A$3:$A$351, 0), MATCH(Selection_Hide2!V$5, 'Full set Core Client Indicator'!$A$3:$AB$3, 0))=\"\", \"\",  INDEX('Full set Core Client Indicator'!$A$3:$AB$351, MATCH(Selection_Hide2!$A10, 'Full set Core Client Indicator'!$A$3:$A$351, 0), MATCH(Selection_Hide2!V$5, 'Full set Core Client Indicator'!$A$3:$AB$3, 0))), \"\")","v":""},{"$f":"IF(V10<>\"\", IF(INDEX('Full set Core Client Indicator'!$A$3:$AB$351, MATCH(Selection_Hide2!$A10, 'Full set Core Client Indicator'!$A$3:$A$351, 0), MATCH(Selection_Hide2!W$5, 'Full set Core Client Indicator'!$A$3:$AB$3, 0))=\"\", \"\",  INDEX('Full set Core Client Indicator'!$A$3:$AB$351, MATCH(Selection_Hide2!$A10, 'Full set Core Client Indicator'!$A$3:$A$351, 0), MATCH(Selection_Hide2!W$5, 'Full set Core Client Indicator'!$A$3:$AB$3, 0))), \"\")","v":""},{"$f":"IF(W10<>\"\", IF(INDEX('Full set Core Client Indicator'!$A$3:$AB$351, MATCH(Selection_Hide2!$A10, 'Full set Core Client Indicator'!$A$3:$A$351, 0), MATCH(Selection_Hide2!X$5, 'Full set Core Client Indicator'!$A$3:$AB$3, 0))=\"\", \"\",  INDEX('Full set Core Client Indicator'!$A$3:$AB$351, MATCH(Selection_Hide2!$A10, 'Full set Core Client Indicator'!$A$3:$A$351, 0), MATCH(Selection_Hide2!X$5, 'Full set Core Client Indicator'!$A$3:$AB$3, 0))), \"\")","v":""},{"$f":"IF(X10<>\"\", IF(INDEX('Full set Core Client Indicator'!$A$3:$AB$351, MATCH(Selection_Hide2!$A10, 'Full set Core Client Indicator'!$A$3:$A$351, 0), MATCH(Selection_Hide2!Y$5, 'Full set Core Client Indicator'!$A$3:$AB$3, 0))=\"\", \"\",  INDEX('Full set Core Client Indicator'!$A$3:$AB$351, MATCH(Selection_Hide2!$A10, 'Full set Core Client Indicator'!$A$3:$A$351, 0), MATCH(Selection_Hide2!Y$5, 'Full set Core Client Indicator'!$A$3:$AB$3, 0))), \"\")","v":""},{"$f":"IF(Y10<>\"\", IF(INDEX('Full set Core Client Indicator'!$A$3:$AB$351, MATCH(Selection_Hide2!$A10, 'Full set Core Client Indicator'!$A$3:$A$351, 0), MATCH(Selection_Hide2!Z$5, 'Full set Core Client Indicator'!$A$3:$AB$3, 0))=\"\", \"\",  INDEX('Full set Core Client Indicator'!$A$3:$AB$351, MATCH(Selection_Hide2!$A10, 'Full set Core Client Indicator'!$A$3:$A$351, 0), MATCH(Selection_Hide2!Z$5, 'Full set Core Client Indicator'!$A$3:$AB$3, 0))), \"\")","v":""},{"$f":"IF(Z10<>\"\", IF(INDEX('Full set Core Client Indicator'!$A$3:$AB$351, MATCH(Selection_Hide2!$A10, 'Full set Core Client Indicator'!$A$3:$A$351, 0), MATCH(Selection_Hide2!AA$5, 'Full set Core Client Indicator'!$A$3:$AB$3, 0))=\"\", \"\",  INDEX('Full set Core Client Indicator'!$A$3:$AB$351, MATCH(Selection_Hide2!$A10, 'Full set Core Client Indicator'!$A$3:$A$351, 0), MATCH(Selection_Hide2!AA$5, 'Full set Core Client Indicator'!$A$3:$AB$3, 0))), \"\")","v":""},{"$f":"IF(AA10<>\"\", IF(INDEX('Full set Core Client Indicator'!$A$3:$AB$351, MATCH(Selection_Hide2!$A10, 'Full set Core Client Indicator'!$A$3:$A$351, 0), MATCH(Selection_Hide2!AB$5, 'Full set Core Client Indicator'!$A$3:$AB$3, 0))=\"\", \"\",  INDEX('Full set Core Client Indicator'!$A$3:$AB$351, MATCH(Selection_Hide2!$A10, 'Full set Core Client Indicator'!$A$3:$A$351, 0), MATCH(Selection_Hide2!AB$5, 'Full set Core Client Indicator'!$A$3:$AB$3, 0))), \"\")","v":""}]
[{"$f":"IF(AND(Selection_Hide1!C9<>0, Selection_Hide1!C9<>\"Grand Total\"), Selection_Hide1!C9, \"\")","v":"116"},{"$f":"IF(A11<>\"\", IF(INDEX('Full set Core Client Indicator'!$A$3:$AB$351, MATCH(Selection_Hide2!$A11, 'Full set Core Client Indicator'!$A$3:$A$351, 0), MATCH(Selection_Hide2!B$5, 'Full set Core Client Indicator'!$A$3:$AB$3, 0))=\"\", \"\",  INDEX('Full set Core Client Indicator'!$A$3:$AB$351, MATCH(Selection_Hide2!$A11, 'Full set Core Client Indicator'!$A$3:$A$351, 0), MATCH(Selection_Hide2!B$5, 'Full set Core Client Indicator'!$A$3:$AB$3, 0))), \"\")","v":"Health"},{"$f":"IF(B11<>\"\", IF(INDEX('Full set Core Client Indicator'!$A$3:$AB$351, MATCH(Selection_Hide2!$A11, 'Full set Core Client Indicator'!$A$3:$A$351, 0), MATCH(Selection_Hide2!C$5, 'Full set Core Client Indicator'!$A$3:$AB$3, 0))=\"\", \"\",  INDEX('Full set Core Client Indicator'!$A$3:$AB$351, MATCH(Selection_Hide2!$A11, 'Full set Core Client Indicator'!$A$3:$A$351, 0), MATCH(Selection_Hide2!C$5, 'Full set Core Client Indicator'!$A$3:$AB$3, 0))), \"\")","v":"People have good mental health and social and emotional wellbeing"},{"$f":"IF(C11<>\"\", IF(INDEX('Full set Core Client Indicator'!$A$3:$AB$351, MATCH(Selection_Hide2!$A11, 'Full set Core Client Indicator'!$A$3:$A$351, 0), MATCH(Selection_Hide2!D$5, 'Full set Core Client Indicator'!$A$3:$AB$3, 0))=\"\", \"\",  INDEX('Full set Core Client Indicator'!$A$3:$AB$351, MATCH(Selection_Hide2!$A11, 'Full set Core Client Indicator'!$A$3:$A$351, 0), MATCH(Selection_Hide2!D$5, 'Full set Core Client Indicator'!$A$3:$AB$3, 0))), \"\")","v":"Proportion (%) of children aged 0-5 years with developmental delays"},{"$f":"IF(D11<>\"\", IF(INDEX('Full set Core Client Indicator'!$A$3:$AB$351, MATCH(Selection_Hide2!$A11, 'Full set Core Client Indicator'!$A$3:$A$351, 0), MATCH(Selection_Hide2!E$5, 'Full set Core Client Indicator'!$A$3:$AB$3, 0))=\"\", \"\",  INDEX('Full set Core Client Indicator'!$A$3:$AB$351, MATCH(Selection_Hide2!$A11, 'Full set Core Client Indicator'!$A$3:$A$351, 0), MATCH(Selection_Hide2!E$5, 'Full set Core Client Indicator'!$A$3:$AB$3, 0))), \"\")","v":"QAF measure under development\n\nPOCLS (Recommended measures)\nAge 6 months - 2 years\nCommunication and Symbolic Behaviour Scale Infant and Toddler Checklist (CSBS ITC)\n\nAge 2-3 years\nMacarthur-Bates Communicative Developmental Inventories III (MCDI-III)  for children aged 24-35 months\n\nAge >3\nPeabody Picture Vocabulary Test (PPVT-4)\n\nNote: no measure have been identified for gross and fine motor delays, and social functioning delays"},{"$f":"IF(E11<>\"\", IF(INDEX('Full set Core Client Indicator'!$A$3:$AB$351, MATCH(Selection_Hide2!$A11, 'Full set Core Client Indicator'!$A$3:$A$351, 0), MATCH(Selection_Hide2!F$5, 'Full set Core Client Indicator'!$A$3:$AB$3, 0))=\"\", \"\",  INDEX('Full set Core Client Indicator'!$A$3:$AB$351, MATCH(Selection_Hide2!$A11, 'Full set Core Client Indicator'!$A$3:$A$351, 0), MATCH(Selection_Hide2!F$5, 'Full set Core Client Indicator'!$A$3:$AB$3, 0))), \"\")","v":"Existing DCJ measure (POCLS)"},{"$f":"IF(F11<>\"\", IF(INDEX('Full set Core Client Indicator'!$A$3:$AB$351, MATCH(Selection_Hide2!$A11, 'Full set Core Client Indicator'!$A$3:$A$351, 0), MATCH(Selection_Hide2!G$5, 'Full set Core Client Indicator'!$A$3:$AB$3, 0))=\"\", \"\",  INDEX('Full set Core Client Indicator'!$A$3:$AB$351, MATCH(Selection_Hide2!$A11, 'Full set Core Client Indicator'!$A$3:$A$351, 0), MATCH(Selection_Hide2!G$5, 'Full set Core Client Indicator'!$A$3:$AB$3, 0))), \"\")","v":"New data"},{"$f":"IF(G11<>\"\", IF(INDEX('Full set Core Client Indicator'!$A$3:$AB$351, MATCH(Selection_Hide2!$A11, 'Full set Core Client Indicator'!$A$3:$A$351, 0), MATCH(Selection_Hide2!H$5, 'Full set Core Client Indicator'!$A$3:$AB$3, 0))=\"\", \"\",  INDEX('Full set Core Client Indicator'!$A$3:$AB$351, MATCH(Selection_Hide2!$A11, 'Full set Core Client Indicator'!$A$3:$A$351, 0), MATCH(Selection_Hide2!H$5, 'Full set Core Client Indicator'!$A$3:$AB$3, 0))), \"\")","v":"No data source"},{"$f":"IF(H11<>\"\", IF(INDEX('Full set Core Client Indicator'!$A$3:$AB$351, MATCH(Selection_Hide2!$A11, 'Full set Core Client Indicator'!$A$3:$A$351, 0), MATCH(Selection_Hide2!I$5, 'Full set Core Client Indicator'!$A$3:$AB$3, 0))=\"\", \"\",  INDEX('Full set Core Client Indicator'!$A$3:$AB$351, MATCH(Selection_Hide2!$A11, 'Full set Core Client Indicator'!$A$3:$A$351, 0), MATCH(Selection_Hide2!I$5, 'Full set Core Client Indicator'!$A$3:$AB$3, 0))), \"\")","v":"* persons overall score on assessment\n* indicator if person has overall developmental delay\n"},{"$f":"IF(I11<>\"\", IF(INDEX('Full set Core Client Indicator'!$A$3:$AB$351, MATCH(Selection_Hide2!$A11, 'Full set Core Client Indicator'!$A$3:$A$351, 0), MATCH(Selection_Hide2!J$5, 'Full set Core Client Indicator'!$A$3:$AB$3, 0))=\"\", \"\",  INDEX('Full set Core Client Indicator'!$A$3:$AB$351, MATCH(Selection_Hide2!$A11, 'Full set Core Client Indicator'!$A$3:$A$351, 0), MATCH(Selection_Hide2!J$5, 'Full set Core Client Indicator'!$A$3:$AB$3, 0))), \"\")","v":"Numerator: Number of children who have received a score of developmentally delayed\nDenominator: Total number of children assessed"},{"$f":"IF(J11<>\"\", IF(INDEX('Full set Core Client Indicator'!$A$3:$AB$351, MATCH(Selection_Hide2!$A11, 'Full set Core Client Indicator'!$A$3:$A$351, 0), MATCH(Selection_Hide2!K$5, 'Full set Core Client Indicator'!$A$3:$AB$3, 0))=\"\", \"\",  INDEX('Full set Core Client Indicator'!$A$3:$AB$351, MATCH(Selection_Hide2!$A11, 'Full set Core Client Indicator'!$A$3:$A$351, 0), MATCH(Selection_Hide2!K$5, 'Full set Core Client Indicator'!$A$3:$AB$3, 0))), \"\")","v":""},{"$f":"IF(K11<>\"\", IF(INDEX('Full set Core Client Indicator'!$A$3:$AB$351, MATCH(Selection_Hide2!$A11, 'Full set Core Client Indicator'!$A$3:$A$351, 0), MATCH(Selection_Hide2!L$5, 'Full set Core Client Indicator'!$A$3:$AB$3, 0))=\"\", \"\",  INDEX('Full set Core Client Indicator'!$A$3:$AB$351, MATCH(Selection_Hide2!$A11, 'Full set Core Client Indicator'!$A$3:$A$351, 0), MATCH(Selection_Hide2!L$5, 'Full set Core Client Indicator'!$A$3:$AB$3, 0))), \"\")","v":""},{"$f":"IF(L11<>\"\", IF(INDEX('Full set Core Client Indicator'!$A$3:$AB$351, MATCH(Selection_Hide2!$A11, 'Full set Core Client Indicator'!$A$3:$A$351, 0), MATCH(Selection_Hide2!M$5, 'Full set Core Client Indicator'!$A$3:$AB$3, 0))=\"\", \"\",  INDEX('Full set Core Client Indicator'!$A$3:$AB$351, MATCH(Selection_Hide2!$A11, 'Full set Core Client Indicator'!$A$3:$A$351, 0), MATCH(Selection_Hide2!M$5, 'Full set Core Client Indicator'!$A$3:$AB$3, 0))), \"\")","v":""},{"$f":"IF(M11<>\"\", IF(INDEX('Full set Core Client Indicator'!$A$3:$AB$351, MATCH(Selection_Hide2!$A11, 'Full set Core Client Indicator'!$A$3:$A$351, 0), MATCH(Selection_Hide2!N$5, 'Full set Core Client Indicator'!$A$3:$AB$3, 0))=\"\", \"\",  INDEX('Full set Core Client Indicator'!$A$3:$AB$351, MATCH(Selection_Hide2!$A11, 'Full set Core Client Indicator'!$A$3:$A$351, 0), MATCH(Selection_Hide2!N$5, 'Full set Core Client Indicator'!$A$3:$AB$3, 0))), \"\")","v":""},{"$f":"IF(N11<>\"\", IF(INDEX('Full set Core Client Indicator'!$A$3:$AB$351, MATCH(Selection_Hide2!$A11, 'Full set Core Client Indicator'!$A$3:$A$351, 0), MATCH(Selection_Hide2!O$5, 'Full set Core Client Indicator'!$A$3:$AB$3, 0))=\"\", \"\",  INDEX('Full set Core Client Indicator'!$A$3:$AB$351, MATCH(Selection_Hide2!$A11, 'Full set Core Client Indicator'!$A$3:$A$351, 0), MATCH(Selection_Hide2!O$5, 'Full set Core Client Indicator'!$A$3:$AB$3, 0))), \"\")","v":""},{"$f":"IF(O11<>\"\", IF(INDEX('Full set Core Client Indicator'!$A$3:$AB$351, MATCH(Selection_Hide2!$A11, 'Full set Core Client Indicator'!$A$3:$A$351, 0), MATCH(Selection_Hide2!P$5, 'Full set Core Client Indicator'!$A$3:$AB$3, 0))=\"\", \"\",  INDEX('Full set Core Client Indicator'!$A$3:$AB$351, MATCH(Selection_Hide2!$A11, 'Full set Core Client Indicator'!$A$3:$A$351, 0), MATCH(Selection_Hide2!P$5, 'Full set Core Client Indicator'!$A$3:$AB$3, 0))), \"\")","v":""},{"$f":"IF(P11<>\"\", IF(INDEX('Full set Core Client Indicator'!$A$3:$AB$351, MATCH(Selection_Hide2!$A11, 'Full set Core Client Indicator'!$A$3:$A$351, 0), MATCH(Selection_Hide2!Q$5, 'Full set Core Client Indicator'!$A$3:$AB$3, 0))=\"\", \"\",  INDEX('Full set Core Client Indicator'!$A$3:$AB$351, MATCH(Selection_Hide2!$A11, 'Full set Core Client Indicator'!$A$3:$A$351, 0), MATCH(Selection_Hide2!Q$5, 'Full set Core Client Indicator'!$A$3:$AB$3, 0))), \"\")","v":""},{"$f":"IF(Q11<>\"\", IF(INDEX('Full set Core Client Indicator'!$A$3:$AB$351, MATCH(Selection_Hide2!$A11, 'Full set Core Client Indicator'!$A$3:$A$351, 0), MATCH(Selection_Hide2!R$5, 'Full set Core Client Indicator'!$A$3:$AB$3, 0))=\"\", \"\",  INDEX('Full set Core Client Indicator'!$A$3:$AB$351, MATCH(Selection_Hide2!$A11, 'Full set Core Client Indicator'!$A$3:$A$351, 0), MATCH(Selection_Hide2!R$5, 'Full set Core Client Indicator'!$A$3:$AB$3, 0))), \"\")","v":""},{"$f":"IF(R11<>\"\", IF(INDEX('Full set Core Client Indicator'!$A$3:$AB$351, MATCH(Selection_Hide2!$A11, 'Full set Core Client Indicator'!$A$3:$A$351, 0), MATCH(Selection_Hide2!S$5, 'Full set Core Client Indicator'!$A$3:$AB$3, 0))=\"\", \"\",  INDEX('Full set Core Client Indicator'!$A$3:$AB$351, MATCH(Selection_Hide2!$A11, 'Full set Core Client Indicator'!$A$3:$A$351, 0), MATCH(Selection_Hide2!S$5, 'Full set Core Client Indicator'!$A$3:$AB$3, 0))), \"\")","v":""},{"$f":"IF(S11<>\"\", IF(INDEX('Full set Core Client Indicator'!$A$3:$AB$351, MATCH(Selection_Hide2!$A11, 'Full set Core Client Indicator'!$A$3:$A$351, 0), MATCH(Selection_Hide2!T$5, 'Full set Core Client Indicator'!$A$3:$AB$3, 0))=\"\", \"\",  INDEX('Full set Core Client Indicator'!$A$3:$AB$351, MATCH(Selection_Hide2!$A11, 'Full set Core Client Indicator'!$A$3:$A$351, 0), MATCH(Selection_Hide2!T$5, 'Full set Core Client Indicator'!$A$3:$AB$3, 0))), \"\")","v":""},{"$f":"IF(T11<>\"\", IF(INDEX('Full set Core Client Indicator'!$A$3:$AB$351, MATCH(Selection_Hide2!$A11, 'Full set Core Client Indicator'!$A$3:$A$351, 0), MATCH(Selection_Hide2!U$5, 'Full set Core Client Indicator'!$A$3:$AB$3, 0))=\"\", \"\",  INDEX('Full set Core Client Indicator'!$A$3:$AB$351, MATCH(Selection_Hide2!$A11, 'Full set Core Client Indicator'!$A$3:$A$351, 0), MATCH(Selection_Hide2!U$5, 'Full set Core Client Indicator'!$A$3:$AB$3, 0))), \"\")","v":""},{"$f":"IF(U11<>\"\", IF(INDEX('Full set Core Client Indicator'!$A$3:$AB$351, MATCH(Selection_Hide2!$A11, 'Full set Core Client Indicator'!$A$3:$A$351, 0), MATCH(Selection_Hide2!V$5, 'Full set Core Client Indicator'!$A$3:$AB$3, 0))=\"\", \"\",  INDEX('Full set Core Client Indicator'!$A$3:$AB$351, MATCH(Selection_Hide2!$A11, 'Full set Core Client Indicator'!$A$3:$A$351, 0), MATCH(Selection_Hide2!V$5, 'Full set Core Client Indicator'!$A$3:$AB$3, 0))), \"\")","v":""},{"$f":"IF(V11<>\"\", IF(INDEX('Full set Core Client Indicator'!$A$3:$AB$351, MATCH(Selection_Hide2!$A11, 'Full set Core Client Indicator'!$A$3:$A$351, 0), MATCH(Selection_Hide2!W$5, 'Full set Core Client Indicator'!$A$3:$AB$3, 0))=\"\", \"\",  INDEX('Full set Core Client Indicator'!$A$3:$AB$351, MATCH(Selection_Hide2!$A11, 'Full set Core Client Indicator'!$A$3:$A$351, 0), MATCH(Selection_Hide2!W$5, 'Full set Core Client Indicator'!$A$3:$AB$3, 0))), \"\")","v":""},{"$f":"IF(W11<>\"\", IF(INDEX('Full set Core Client Indicator'!$A$3:$AB$351, MATCH(Selection_Hide2!$A11, 'Full set Core Client Indicator'!$A$3:$A$351, 0), MATCH(Selection_Hide2!X$5, 'Full set Core Client Indicator'!$A$3:$AB$3, 0))=\"\", \"\",  INDEX('Full set Core Client Indicator'!$A$3:$AB$351, MATCH(Selection_Hide2!$A11, 'Full set Core Client Indicator'!$A$3:$A$351, 0), MATCH(Selection_Hide2!X$5, 'Full set Core Client Indicator'!$A$3:$AB$3, 0))), \"\")","v":""},{"$f":"IF(X11<>\"\", IF(INDEX('Full set Core Client Indicator'!$A$3:$AB$351, MATCH(Selection_Hide2!$A11, 'Full set Core Client Indicator'!$A$3:$A$351, 0), MATCH(Selection_Hide2!Y$5, 'Full set Core Client Indicator'!$A$3:$AB$3, 0))=\"\", \"\",  INDEX('Full set Core Client Indicator'!$A$3:$AB$351, MATCH(Selection_Hide2!$A11, 'Full set Core Client Indicator'!$A$3:$A$351, 0), MATCH(Selection_Hide2!Y$5, 'Full set Core Client Indicator'!$A$3:$AB$3, 0))), \"\")","v":""},{"$f":"IF(Y11<>\"\", IF(INDEX('Full set Core Client Indicator'!$A$3:$AB$351, MATCH(Selection_Hide2!$A11, 'Full set Core Client Indicator'!$A$3:$A$351, 0), MATCH(Selection_Hide2!Z$5, 'Full set Core Client Indicator'!$A$3:$AB$3, 0))=\"\", \"\",  INDEX('Full set Core Client Indicator'!$A$3:$AB$351, MATCH(Selection_Hide2!$A11, 'Full set Core Client Indicator'!$A$3:$A$351, 0), MATCH(Selection_Hide2!Z$5, 'Full set Core Client Indicator'!$A$3:$AB$3, 0))), \"\")","v":""},{"$f":"IF(Z11<>\"\", IF(INDEX('Full set Core Client Indicator'!$A$3:$AB$351, MATCH(Selection_Hide2!$A11, 'Full set Core Client Indicator'!$A$3:$A$351, 0), MATCH(Selection_Hide2!AA$5, 'Full set Core Client Indicator'!$A$3:$AB$3, 0))=\"\", \"\",  INDEX('Full set Core Client Indicator'!$A$3:$AB$351, MATCH(Selection_Hide2!$A11, 'Full set Core Client Indicator'!$A$3:$A$351, 0), MATCH(Selection_Hide2!AA$5, 'Full set Core Client Indicator'!$A$3:$AB$3, 0))), \"\")","v":""},{"$f":"IF(AA11<>\"\", IF(INDEX('Full set Core Client Indicator'!$A$3:$AB$351, MATCH(Selection_Hide2!$A11, 'Full set Core Client Indicator'!$A$3:$A$351, 0), MATCH(Selection_Hide2!AB$5, 'Full set Core Client Indicator'!$A$3:$AB$3, 0))=\"\", \"\",  INDEX('Full set Core Client Indicator'!$A$3:$AB$351, MATCH(Selection_Hide2!$A11, 'Full set Core Client Indicator'!$A$3:$A$351, 0), MATCH(Selection_Hide2!AB$5, 'Full set Core Client Indicator'!$A$3:$AB$3, 0))), \"\")","v":""}]
[{"$f":"IF(AND(Selection_Hide1!C10<>0, Selection_Hide1!C10<>\"Grand Total\"), Selection_Hide1!C10, \"\")","v":"117"},{"$f":"IF(A12<>\"\", IF(INDEX('Full set Core Client Indicator'!$A$3:$AB$351, MATCH(Selection_Hide2!$A12, 'Full set Core Client Indicator'!$A$3:$A$351, 0), MATCH(Selection_Hide2!B$5, 'Full set Core Client Indicator'!$A$3:$AB$3, 0))=\"\", \"\",  INDEX('Full set Core Client Indicator'!$A$3:$AB$351, MATCH(Selection_Hide2!$A12, 'Full set Core Client Indicator'!$A$3:$A$351, 0), MATCH(Selection_Hide2!B$5, 'Full set Core Client Indicator'!$A$3:$AB$3, 0))), \"\")","v":"Health"},{"$f":"IF(B12<>\"\", IF(INDEX('Full set Core Client Indicator'!$A$3:$AB$351, MATCH(Selection_Hide2!$A12, 'Full set Core Client Indicator'!$A$3:$A$351, 0), MATCH(Selection_Hide2!C$5, 'Full set Core Client Indicator'!$A$3:$AB$3, 0))=\"\", \"\",  INDEX('Full set Core Client Indicator'!$A$3:$AB$351, MATCH(Selection_Hide2!$A12, 'Full set Core Client Indicator'!$A$3:$A$351, 0), MATCH(Selection_Hide2!C$5, 'Full set Core Client Indicator'!$A$3:$AB$3, 0))), \"\")","v":"People have good physical health"},{"$f":"IF(C12<>\"\", IF(INDEX('Full set Core Client Indicator'!$A$3:$AB$351, MATCH(Selection_Hide2!$A12, 'Full set Core Client Indicator'!$A$3:$A$351, 0), MATCH(Selection_Hide2!D$5, 'Full set Core Client Indicator'!$A$3:$AB$3, 0))=\"\", \"\",  INDEX('Full set Core Client Indicator'!$A$3:$AB$351, MATCH(Selection_Hide2!$A12, 'Full set Core Client Indicator'!$A$3:$A$351, 0), MATCH(Selection_Hide2!D$5, 'Full set Core Client Indicator'!$A$3:$AB$3, 0))), \"\")","v":"Proportion (%) of children who are free from tooth decay"},{"$f":"IF(D12<>\"\", IF(INDEX('Full set Core Client Indicator'!$A$3:$AB$351, MATCH(Selection_Hide2!$A12, 'Full set Core Client Indicator'!$A$3:$A$351, 0), MATCH(Selection_Hide2!E$5, 'Full set Core Client Indicator'!$A$3:$AB$3, 0))=\"\", \"\",  INDEX('Full set Core Client Indicator'!$A$3:$AB$351, MATCH(Selection_Hide2!$A12, 'Full set Core Client Indicator'!$A$3:$A$351, 0), MATCH(Selection_Hide2!E$5, 'Full set Core Client Indicator'!$A$3:$AB$3, 0))), \"\")","v":"No measure identified"},{"$f":"IF(E12<>\"\", IF(INDEX('Full set Core Client Indicator'!$A$3:$AB$351, MATCH(Selection_Hide2!$A12, 'Full set Core Client Indicator'!$A$3:$A$351, 0), MATCH(Selection_Hide2!F$5, 'Full set Core Client Indicator'!$A$3:$AB$3, 0))=\"\", \"\",  INDEX('Full set Core Client Indicator'!$A$3:$AB$351, MATCH(Selection_Hide2!$A12, 'Full set Core Client Indicator'!$A$3:$A$351, 0), MATCH(Selection_Hide2!F$5, 'Full set Core Client Indicator'!$A$3:$AB$3, 0))), \"\")","v":"Evidence development required"},{"$f":"IF(F12<>\"\", IF(INDEX('Full set Core Client Indicator'!$A$3:$AB$351, MATCH(Selection_Hide2!$A12, 'Full set Core Client Indicator'!$A$3:$A$351, 0), MATCH(Selection_Hide2!G$5, 'Full set Core Client Indicator'!$A$3:$AB$3, 0))=\"\", \"\",  INDEX('Full set Core Client Indicator'!$A$3:$AB$351, MATCH(Selection_Hide2!$A12, 'Full set Core Client Indicator'!$A$3:$A$351, 0), MATCH(Selection_Hide2!G$5, 'Full set Core Client Indicator'!$A$3:$AB$3, 0))), \"\")","v":"New data"},{"$f":"IF(G12<>\"\", IF(INDEX('Full set Core Client Indicator'!$A$3:$AB$351, MATCH(Selection_Hide2!$A12, 'Full set Core Client Indicator'!$A$3:$A$351, 0), MATCH(Selection_Hide2!H$5, 'Full set Core Client Indicator'!$A$3:$AB$3, 0))=\"\", \"\",  INDEX('Full set Core Client Indicator'!$A$3:$AB$351, MATCH(Selection_Hide2!$A12, 'Full set Core Client Indicator'!$A$3:$A$351, 0), MATCH(Selection_Hide2!H$5, 'Full set Core Client Indicator'!$A$3:$AB$3, 0))), \"\")","v":"No data source"},{"$f":"IF(H12<>\"\", IF(INDEX('Full set Core Client Indicator'!$A$3:$AB$351, MATCH(Selection_Hide2!$A12, 'Full set Core Client Indicator'!$A$3:$A$351, 0), MATCH(Selection_Hide2!I$5, 'Full set Core Client Indicator'!$A$3:$AB$3, 0))=\"\", \"\",  INDEX('Full set Core Client Indicator'!$A$3:$AB$351, MATCH(Selection_Hide2!$A12, 'Full set Core Client Indicator'!$A$3:$A$351, 0), MATCH(Selection_Hide2!I$5, 'Full set Core Client Indicator'!$A$3:$AB$3, 0))), \"\")","v":""},{"$f":"IF(I12<>\"\", IF(INDEX('Full set Core Client Indicator'!$A$3:$AB$351, MATCH(Selection_Hide2!$A12, 'Full set Core Client Indicator'!$A$3:$A$351, 0), MATCH(Selection_Hide2!J$5, 'Full set Core Client Indicator'!$A$3:$AB$3, 0))=\"\", \"\",  INDEX('Full set Core Client Indicator'!$A$3:$AB$351, MATCH(Selection_Hide2!$A12, 'Full set Core Client Indicator'!$A$3:$A$351, 0), MATCH(Selection_Hide2!J$5, 'Full set Core Client Indicator'!$A$3:$AB$3, 0))), \"\")","v":""},{"$f":"IF(J12<>\"\", IF(INDEX('Full set Core Client Indicator'!$A$3:$AB$351, MATCH(Selection_Hide2!$A12, 'Full set Core Client Indicator'!$A$3:$A$351, 0), MATCH(Selection_Hide2!K$5, 'Full set Core Client Indicator'!$A$3:$AB$3, 0))=\"\", \"\",  INDEX('Full set Core Client Indicator'!$A$3:$AB$351, MATCH(Selection_Hide2!$A12, 'Full set Core Client Indicator'!$A$3:$A$351, 0), MATCH(Selection_Hide2!K$5, 'Full set Core Client Indicator'!$A$3:$AB$3, 0))), \"\")","v":""},{"$f":"IF(K12<>\"\", IF(INDEX('Full set Core Client Indicator'!$A$3:$AB$351, MATCH(Selection_Hide2!$A12, 'Full set Core Client Indicator'!$A$3:$A$351, 0), MATCH(Selection_Hide2!L$5, 'Full set Core Client Indicator'!$A$3:$AB$3, 0))=\"\", \"\",  INDEX('Full set Core Client Indicator'!$A$3:$AB$351, MATCH(Selection_Hide2!$A12, 'Full set Core Client Indicator'!$A$3:$A$351, 0), MATCH(Selection_Hide2!L$5, 'Full set Core Client Indicator'!$A$3:$AB$3, 0))), \"\")","v":""},{"$f":"IF(L12<>\"\", IF(INDEX('Full set Core Client Indicator'!$A$3:$AB$351, MATCH(Selection_Hide2!$A12, 'Full set Core Client Indicator'!$A$3:$A$351, 0), MATCH(Selection_Hide2!M$5, 'Full set Core Client Indicator'!$A$3:$AB$3, 0))=\"\", \"\",  INDEX('Full set Core Client Indicator'!$A$3:$AB$351, MATCH(Selection_Hide2!$A12, 'Full set Core Client Indicator'!$A$3:$A$351, 0), MATCH(Selection_Hide2!M$5, 'Full set Core Client Indicator'!$A$3:$AB$3, 0))), \"\")","v":""},{"$f":"IF(M12<>\"\", IF(INDEX('Full set Core Client Indicator'!$A$3:$AB$351, MATCH(Selection_Hide2!$A12, 'Full set Core Client Indicator'!$A$3:$A$351, 0), MATCH(Selection_Hide2!N$5, 'Full set Core Client Indicator'!$A$3:$AB$3, 0))=\"\", \"\",  INDEX('Full set Core Client Indicator'!$A$3:$AB$351, MATCH(Selection_Hide2!$A12, 'Full set Core Client Indicator'!$A$3:$A$351, 0), MATCH(Selection_Hide2!N$5, 'Full set Core Client Indicator'!$A$3:$AB$3, 0))), \"\")","v":""},{"$f":"IF(N12<>\"\", IF(INDEX('Full set Core Client Indicator'!$A$3:$AB$351, MATCH(Selection_Hide2!$A12, 'Full set Core Client Indicator'!$A$3:$A$351, 0), MATCH(Selection_Hide2!O$5, 'Full set Core Client Indicator'!$A$3:$AB$3, 0))=\"\", \"\",  INDEX('Full set Core Client Indicator'!$A$3:$AB$351, MATCH(Selection_Hide2!$A12, 'Full set Core Client Indicator'!$A$3:$A$351, 0), MATCH(Selection_Hide2!O$5, 'Full set Core Client Indicator'!$A$3:$AB$3, 0))), \"\")","v":""},{"$f":"IF(O12<>\"\", IF(INDEX('Full set Core Client Indicator'!$A$3:$AB$351, MATCH(Selection_Hide2!$A12, 'Full set Core Client Indicator'!$A$3:$A$351, 0), MATCH(Selection_Hide2!P$5, 'Full set Core Client Indicator'!$A$3:$AB$3, 0))=\"\", \"\",  INDEX('Full set Core Client Indicator'!$A$3:$AB$351, MATCH(Selection_Hide2!$A12, 'Full set Core Client Indicator'!$A$3:$A$351, 0), MATCH(Selection_Hide2!P$5, 'Full set Core Client Indicator'!$A$3:$AB$3, 0))), \"\")","v":""},{"$f":"IF(P12<>\"\", IF(INDEX('Full set Core Client Indicator'!$A$3:$AB$351, MATCH(Selection_Hide2!$A12, 'Full set Core Client Indicator'!$A$3:$A$351, 0), MATCH(Selection_Hide2!Q$5, 'Full set Core Client Indicator'!$A$3:$AB$3, 0))=\"\", \"\",  INDEX('Full set Core Client Indicator'!$A$3:$AB$351, MATCH(Selection_Hide2!$A12, 'Full set Core Client Indicator'!$A$3:$A$351, 0), MATCH(Selection_Hide2!Q$5, 'Full set Core Client Indicator'!$A$3:$AB$3, 0))), \"\")","v":""},{"$f":"IF(Q12<>\"\", IF(INDEX('Full set Core Client Indicator'!$A$3:$AB$351, MATCH(Selection_Hide2!$A12, 'Full set Core Client Indicator'!$A$3:$A$351, 0), MATCH(Selection_Hide2!R$5, 'Full set Core Client Indicator'!$A$3:$AB$3, 0))=\"\", \"\",  INDEX('Full set Core Client Indicator'!$A$3:$AB$351, MATCH(Selection_Hide2!$A12, 'Full set Core Client Indicator'!$A$3:$A$351, 0), MATCH(Selection_Hide2!R$5, 'Full set Core Client Indicator'!$A$3:$AB$3, 0))), \"\")","v":""},{"$f":"IF(R12<>\"\", IF(INDEX('Full set Core Client Indicator'!$A$3:$AB$351, MATCH(Selection_Hide2!$A12, 'Full set Core Client Indicator'!$A$3:$A$351, 0), MATCH(Selection_Hide2!S$5, 'Full set Core Client Indicator'!$A$3:$AB$3, 0))=\"\", \"\",  INDEX('Full set Core Client Indicator'!$A$3:$AB$351, MATCH(Selection_Hide2!$A12, 'Full set Core Client Indicator'!$A$3:$A$351, 0), MATCH(Selection_Hide2!S$5, 'Full set Core Client Indicator'!$A$3:$AB$3, 0))), \"\")","v":""},{"$f":"IF(S12<>\"\", IF(INDEX('Full set Core Client Indicator'!$A$3:$AB$351, MATCH(Selection_Hide2!$A12, 'Full set Core Client Indicator'!$A$3:$A$351, 0), MATCH(Selection_Hide2!T$5, 'Full set Core Client Indicator'!$A$3:$AB$3, 0))=\"\", \"\",  INDEX('Full set Core Client Indicator'!$A$3:$AB$351, MATCH(Selection_Hide2!$A12, 'Full set Core Client Indicator'!$A$3:$A$351, 0), MATCH(Selection_Hide2!T$5, 'Full set Core Client Indicator'!$A$3:$AB$3, 0))), \"\")","v":""},{"$f":"IF(T12<>\"\", IF(INDEX('Full set Core Client Indicator'!$A$3:$AB$351, MATCH(Selection_Hide2!$A12, 'Full set Core Client Indicator'!$A$3:$A$351, 0), MATCH(Selection_Hide2!U$5, 'Full set Core Client Indicator'!$A$3:$AB$3, 0))=\"\", \"\",  INDEX('Full set Core Client Indicator'!$A$3:$AB$351, MATCH(Selection_Hide2!$A12, 'Full set Core Client Indicator'!$A$3:$A$351, 0), MATCH(Selection_Hide2!U$5, 'Full set Core Client Indicator'!$A$3:$AB$3, 0))), \"\")","v":""},{"$f":"IF(U12<>\"\", IF(INDEX('Full set Core Client Indicator'!$A$3:$AB$351, MATCH(Selection_Hide2!$A12, 'Full set Core Client Indicator'!$A$3:$A$351, 0), MATCH(Selection_Hide2!V$5, 'Full set Core Client Indicator'!$A$3:$AB$3, 0))=\"\", \"\",  INDEX('Full set Core Client Indicator'!$A$3:$AB$351, MATCH(Selection_Hide2!$A12, 'Full set Core Client Indicator'!$A$3:$A$351, 0), MATCH(Selection_Hide2!V$5, 'Full set Core Client Indicator'!$A$3:$AB$3, 0))), \"\")","v":""},{"$f":"IF(V12<>\"\", IF(INDEX('Full set Core Client Indicator'!$A$3:$AB$351, MATCH(Selection_Hide2!$A12, 'Full set Core Client Indicator'!$A$3:$A$351, 0), MATCH(Selection_Hide2!W$5, 'Full set Core Client Indicator'!$A$3:$AB$3, 0))=\"\", \"\",  INDEX('Full set Core Client Indicator'!$A$3:$AB$351, MATCH(Selection_Hide2!$A12, 'Full set Core Client Indicator'!$A$3:$A$351, 0), MATCH(Selection_Hide2!W$5, 'Full set Core Client Indicator'!$A$3:$AB$3, 0))), \"\")","v":""},{"$f":"IF(W12<>\"\", IF(INDEX('Full set Core Client Indicator'!$A$3:$AB$351, MATCH(Selection_Hide2!$A12, 'Full set Core Client Indicator'!$A$3:$A$351, 0), MATCH(Selection_Hide2!X$5, 'Full set Core Client Indicator'!$A$3:$AB$3, 0))=\"\", \"\",  INDEX('Full set Core Client Indicator'!$A$3:$AB$351, MATCH(Selection_Hide2!$A12, 'Full set Core Client Indicator'!$A$3:$A$351, 0), MATCH(Selection_Hide2!X$5, 'Full set Core Client Indicator'!$A$3:$AB$3, 0))), \"\")","v":""},{"$f":"IF(X12<>\"\", IF(INDEX('Full set Core Client Indicator'!$A$3:$AB$351, MATCH(Selection_Hide2!$A12, 'Full set Core Client Indicator'!$A$3:$A$351, 0), MATCH(Selection_Hide2!Y$5, 'Full set Core Client Indicator'!$A$3:$AB$3, 0))=\"\", \"\",  INDEX('Full set Core Client Indicator'!$A$3:$AB$351, MATCH(Selection_Hide2!$A12, 'Full set Core Client Indicator'!$A$3:$A$351, 0), MATCH(Selection_Hide2!Y$5, 'Full set Core Client Indicator'!$A$3:$AB$3, 0))), \"\")","v":""},{"$f":"IF(Y12<>\"\", IF(INDEX('Full set Core Client Indicator'!$A$3:$AB$351, MATCH(Selection_Hide2!$A12, 'Full set Core Client Indicator'!$A$3:$A$351, 0), MATCH(Selection_Hide2!Z$5, 'Full set Core Client Indicator'!$A$3:$AB$3, 0))=\"\", \"\",  INDEX('Full set Core Client Indicator'!$A$3:$AB$351, MATCH(Selection_Hide2!$A12, 'Full set Core Client Indicator'!$A$3:$A$351, 0), MATCH(Selection_Hide2!Z$5, 'Full set Core Client Indicator'!$A$3:$AB$3, 0))), \"\")","v":""},{"$f":"IF(Z12<>\"\", IF(INDEX('Full set Core Client Indicator'!$A$3:$AB$351, MATCH(Selection_Hide2!$A12, 'Full set Core Client Indicator'!$A$3:$A$351, 0), MATCH(Selection_Hide2!AA$5, 'Full set Core Client Indicator'!$A$3:$AB$3, 0))=\"\", \"\",  INDEX('Full set Core Client Indicator'!$A$3:$AB$351, MATCH(Selection_Hide2!$A12, 'Full set Core Client Indicator'!$A$3:$A$351, 0), MATCH(Selection_Hide2!AA$5, 'Full set Core Client Indicator'!$A$3:$AB$3, 0))), \"\")","v":""},{"$f":"IF(AA12<>\"\", IF(INDEX('Full set Core Client Indicator'!$A$3:$AB$351, MATCH(Selection_Hide2!$A12, 'Full set Core Client Indicator'!$A$3:$A$351, 0), MATCH(Selection_Hide2!AB$5, 'Full set Core Client Indicator'!$A$3:$AB$3, 0))=\"\", \"\",  INDEX('Full set Core Client Indicator'!$A$3:$AB$351, MATCH(Selection_Hide2!$A12, 'Full set Core Client Indicator'!$A$3:$A$351, 0), MATCH(Selection_Hide2!AB$5, 'Full set Core Client Indicator'!$A$3:$AB$3, 0))), \"\")","v":""}]
[{"$f":"IF(AND(Selection_Hide1!C11<>0, Selection_Hide1!C11<>\"Grand Total\"), Selection_Hide1!C11, \"\")","v":"119"},{"$f":"IF(A13<>\"\", IF(INDEX('Full set Core Client Indicator'!$A$3:$AB$351, MATCH(Selection_Hide2!$A13, 'Full set Core Client Indicator'!$A$3:$A$351, 0), MATCH(Selection_Hide2!B$5, 'Full set Core Client Indicator'!$A$3:$AB$3, 0))=\"\", \"\",  INDEX('Full set Core Client Indicator'!$A$3:$AB$351, MATCH(Selection_Hide2!$A13, 'Full set Core Client Indicator'!$A$3:$A$351, 0), MATCH(Selection_Hide2!B$5, 'Full set Core Client Indicator'!$A$3:$AB$3, 0))), \"\")","v":"Health"},{"$f":"IF(B13<>\"\", IF(INDEX('Full set Core Client Indicator'!$A$3:$AB$351, MATCH(Selection_Hide2!$A13, 'Full set Core Client Indicator'!$A$3:$A$351, 0), MATCH(Selection_Hide2!C$5, 'Full set Core Client Indicator'!$A$3:$AB$3, 0))=\"\", \"\",  INDEX('Full set Core Client Indicator'!$A$3:$AB$351, MATCH(Selection_Hide2!$A13, 'Full set Core Client Indicator'!$A$3:$A$351, 0), MATCH(Selection_Hide2!C$5, 'Full set Core Client Indicator'!$A$3:$AB$3, 0))), \"\")","v":"People have good physical health"},{"$f":"IF(C13<>\"\", IF(INDEX('Full set Core Client Indicator'!$A$3:$AB$351, MATCH(Selection_Hide2!$A13, 'Full set Core Client Indicator'!$A$3:$A$351, 0), MATCH(Selection_Hide2!D$5, 'Full set Core Client Indicator'!$A$3:$AB$3, 0))=\"\", \"\",  INDEX('Full set Core Client Indicator'!$A$3:$AB$351, MATCH(Selection_Hide2!$A13, 'Full set Core Client Indicator'!$A$3:$A$351, 0), MATCH(Selection_Hide2!D$5, 'Full set Core Client Indicator'!$A$3:$AB$3, 0))), \"\")","v":"Proportion (%) of people who report having excellent/very good/good/fair/poor health"},{"$f":"IF(D13<>\"\", IF(INDEX('Full set Core Client Indicator'!$A$3:$AB$351, MATCH(Selection_Hide2!$A13, 'Full set Core Client Indicator'!$A$3:$A$351, 0), MATCH(Selection_Hide2!E$5, 'Full set Core Client Indicator'!$A$3:$AB$3, 0))=\"\", \"\",  INDEX('Full set Core Client Indicator'!$A$3:$AB$351, MATCH(Selection_Hide2!$A13, 'Full set Core Client Indicator'!$A$3:$A$351, 0), MATCH(Selection_Hide2!E$5, 'Full set Core Client Indicator'!$A$3:$AB$3, 0))), \"\")","v":"In the last 4 weeks, how has your health been? \n\n• Excellent\n• Very Good\n• Good\n• Not very good\n• Poor\n• Pass"},{"$f":"IF(E13<>\"\", IF(INDEX('Full set Core Client Indicator'!$A$3:$AB$351, MATCH(Selection_Hide2!$A13, 'Full set Core Client Indicator'!$A$3:$A$351, 0), MATCH(Selection_Hide2!F$5, 'Full set Core Client Indicator'!$A$3:$AB$3, 0))=\"\", \"\",  INDEX('Full set Core Client Indicator'!$A$3:$AB$351, MATCH(Selection_Hide2!$A13, 'Full set Core Client Indicator'!$A$3:$A$351, 0), MATCH(Selection_Hide2!F$5, 'Full set Core Client Indicator'!$A$3:$AB$3, 0))), \"\")","v":"Existing DCJ measure (POCLS)"},{"$f":"IF(F13<>\"\", IF(INDEX('Full set Core Client Indicator'!$A$3:$AB$351, MATCH(Selection_Hide2!$A13, 'Full set Core Client Indicator'!$A$3:$A$351, 0), MATCH(Selection_Hide2!G$5, 'Full set Core Client Indicator'!$A$3:$AB$3, 0))=\"\", \"\",  INDEX('Full set Core Client Indicator'!$A$3:$AB$351, MATCH(Selection_Hide2!$A13, 'Full set Core Client Indicator'!$A$3:$A$351, 0), MATCH(Selection_Hide2!G$5, 'Full set Core Client Indicator'!$A$3:$AB$3, 0))), \"\")","v":"New data"},{"$f":"IF(G13<>\"\", IF(INDEX('Full set Core Client Indicator'!$A$3:$AB$351, MATCH(Selection_Hide2!$A13, 'Full set Core Client Indicator'!$A$3:$A$351, 0), MATCH(Selection_Hide2!H$5, 'Full set Core Client Indicator'!$A$3:$AB$3, 0))=\"\", \"\",  INDEX('Full set Core Client Indicator'!$A$3:$AB$351, MATCH(Selection_Hide2!$A13, 'Full set Core Client Indicator'!$A$3:$A$351, 0), MATCH(Selection_Hide2!H$5, 'Full set Core Client Indicator'!$A$3:$AB$3, 0))), \"\")","v":"No data source"},{"$f":"IF(H13<>\"\", IF(INDEX('Full set Core Client Indicator'!$A$3:$AB$351, MATCH(Selection_Hide2!$A13, 'Full set Core Client Indicator'!$A$3:$A$351, 0), MATCH(Selection_Hide2!I$5, 'Full set Core Client Indicator'!$A$3:$AB$3, 0))=\"\", \"\",  INDEX('Full set Core Client Indicator'!$A$3:$AB$351, MATCH(Selection_Hide2!$A13, 'Full set Core Client Indicator'!$A$3:$A$351, 0), MATCH(Selection_Hide2!I$5, 'Full set Core Client Indicator'!$A$3:$AB$3, 0))), \"\")","v":"* Persons health rating"},{"$f":"IF(I13<>\"\", IF(INDEX('Full set Core Client Indicator'!$A$3:$AB$351, MATCH(Selection_Hide2!$A13, 'Full set Core Client Indicator'!$A$3:$A$351, 0), MATCH(Selection_Hide2!J$5, 'Full set Core Client Indicator'!$A$3:$AB$3, 0))=\"\", \"\",  INDEX('Full set Core Client Indicator'!$A$3:$AB$351, MATCH(Selection_Hide2!$A13, 'Full set Core Client Indicator'!$A$3:$A$351, 0), MATCH(Selection_Hide2!J$5, 'Full set Core Client Indicator'!$A$3:$AB$3, 0))), \"\")","v":"Numerator: Number of people who gave specific health rating\nDenominator: Number of people surveyed"},{"$f":"IF(J13<>\"\", IF(INDEX('Full set Core Client Indicator'!$A$3:$AB$351, MATCH(Selection_Hide2!$A13, 'Full set Core Client Indicator'!$A$3:$A$351, 0), MATCH(Selection_Hide2!K$5, 'Full set Core Client Indicator'!$A$3:$AB$3, 0))=\"\", \"\",  INDEX('Full set Core Client Indicator'!$A$3:$AB$351, MATCH(Selection_Hide2!$A13, 'Full set Core Client Indicator'!$A$3:$A$351, 0), MATCH(Selection_Hide2!K$5, 'Full set Core Client Indicator'!$A$3:$AB$3, 0))), \"\")","v":""},{"$f":"IF(K13<>\"\", IF(INDEX('Full set Core Client Indicator'!$A$3:$AB$351, MATCH(Selection_Hide2!$A13, 'Full set Core Client Indicator'!$A$3:$A$351, 0), MATCH(Selection_Hide2!L$5, 'Full set Core Client Indicator'!$A$3:$AB$3, 0))=\"\", \"\",  INDEX('Full set Core Client Indicator'!$A$3:$AB$351, MATCH(Selection_Hide2!$A13, 'Full set Core Client Indicator'!$A$3:$A$351, 0), MATCH(Selection_Hide2!L$5, 'Full set Core Client Indicator'!$A$3:$AB$3, 0))), \"\")","v":""},{"$f":"IF(L13<>\"\", IF(INDEX('Full set Core Client Indicator'!$A$3:$AB$351, MATCH(Selection_Hide2!$A13, 'Full set Core Client Indicator'!$A$3:$A$351, 0), MATCH(Selection_Hide2!M$5, 'Full set Core Client Indicator'!$A$3:$AB$3, 0))=\"\", \"\",  INDEX('Full set Core Client Indicator'!$A$3:$AB$351, MATCH(Selection_Hide2!$A13, 'Full set Core Client Indicator'!$A$3:$A$351, 0), MATCH(Selection_Hide2!M$5, 'Full set Core Client Indicator'!$A$3:$AB$3, 0))), \"\")","v":""},{"$f":"IF(M13<>\"\", IF(INDEX('Full set Core Client Indicator'!$A$3:$AB$351, MATCH(Selection_Hide2!$A13, 'Full set Core Client Indicator'!$A$3:$A$351, 0), MATCH(Selection_Hide2!N$5, 'Full set Core Client Indicator'!$A$3:$AB$3, 0))=\"\", \"\",  INDEX('Full set Core Client Indicator'!$A$3:$AB$351, MATCH(Selection_Hide2!$A13, 'Full set Core Client Indicator'!$A$3:$A$351, 0), MATCH(Selection_Hide2!N$5, 'Full set Core Client Indicator'!$A$3:$AB$3, 0))), \"\")","v":""},{"$f":"IF(N13<>\"\", IF(INDEX('Full set Core Client Indicator'!$A$3:$AB$351, MATCH(Selection_Hide2!$A13, 'Full set Core Client Indicator'!$A$3:$A$351, 0), MATCH(Selection_Hide2!O$5, 'Full set Core Client Indicator'!$A$3:$AB$3, 0))=\"\", \"\",  INDEX('Full set Core Client Indicator'!$A$3:$AB$351, MATCH(Selection_Hide2!$A13, 'Full set Core Client Indicator'!$A$3:$A$351, 0), MATCH(Selection_Hide2!O$5, 'Full set Core Client Indicator'!$A$3:$AB$3, 0))), \"\")","v":""},{"$f":"IF(O13<>\"\", IF(INDEX('Full set Core Client Indicator'!$A$3:$AB$351, MATCH(Selection_Hide2!$A13, 'Full set Core Client Indicator'!$A$3:$A$351, 0), MATCH(Selection_Hide2!P$5, 'Full set Core Client Indicator'!$A$3:$AB$3, 0))=\"\", \"\",  INDEX('Full set Core Client Indicator'!$A$3:$AB$351, MATCH(Selection_Hide2!$A13, 'Full set Core Client Indicator'!$A$3:$A$351, 0), MATCH(Selection_Hide2!P$5, 'Full set Core Client Indicator'!$A$3:$AB$3, 0))), \"\")","v":""},{"$f":"IF(P13<>\"\", IF(INDEX('Full set Core Client Indicator'!$A$3:$AB$351, MATCH(Selection_Hide2!$A13, 'Full set Core Client Indicator'!$A$3:$A$351, 0), MATCH(Selection_Hide2!Q$5, 'Full set Core Client Indicator'!$A$3:$AB$3, 0))=\"\", \"\",  INDEX('Full set Core Client Indicator'!$A$3:$AB$351, MATCH(Selection_Hide2!$A13, 'Full set Core Client Indicator'!$A$3:$A$351, 0), MATCH(Selection_Hide2!Q$5, 'Full set Core Client Indicator'!$A$3:$AB$3, 0))), \"\")","v":""},{"$f":"IF(Q13<>\"\", IF(INDEX('Full set Core Client Indicator'!$A$3:$AB$351, MATCH(Selection_Hide2!$A13, 'Full set Core Client Indicator'!$A$3:$A$351, 0), MATCH(Selection_Hide2!R$5, 'Full set Core Client Indicator'!$A$3:$AB$3, 0))=\"\", \"\",  INDEX('Full set Core Client Indicator'!$A$3:$AB$351, MATCH(Selection_Hide2!$A13, 'Full set Core Client Indicator'!$A$3:$A$351, 0), MATCH(Selection_Hide2!R$5, 'Full set Core Client Indicator'!$A$3:$AB$3, 0))), \"\")","v":""},{"$f":"IF(R13<>\"\", IF(INDEX('Full set Core Client Indicator'!$A$3:$AB$351, MATCH(Selection_Hide2!$A13, 'Full set Core Client Indicator'!$A$3:$A$351, 0), MATCH(Selection_Hide2!S$5, 'Full set Core Client Indicator'!$A$3:$AB$3, 0))=\"\", \"\",  INDEX('Full set Core Client Indicator'!$A$3:$AB$351, MATCH(Selection_Hide2!$A13, 'Full set Core Client Indicator'!$A$3:$A$351, 0), MATCH(Selection_Hide2!S$5, 'Full set Core Client Indicator'!$A$3:$AB$3, 0))), \"\")","v":""},{"$f":"IF(S13<>\"\", IF(INDEX('Full set Core Client Indicator'!$A$3:$AB$351, MATCH(Selection_Hide2!$A13, 'Full set Core Client Indicator'!$A$3:$A$351, 0), MATCH(Selection_Hide2!T$5, 'Full set Core Client Indicator'!$A$3:$AB$3, 0))=\"\", \"\",  INDEX('Full set Core Client Indicator'!$A$3:$AB$351, MATCH(Selection_Hide2!$A13, 'Full set Core Client Indicator'!$A$3:$A$351, 0), MATCH(Selection_Hide2!T$5, 'Full set Core Client Indicator'!$A$3:$AB$3, 0))), \"\")","v":""},{"$f":"IF(T13<>\"\", IF(INDEX('Full set Core Client Indicator'!$A$3:$AB$351, MATCH(Selection_Hide2!$A13, 'Full set Core Client Indicator'!$A$3:$A$351, 0), MATCH(Selection_Hide2!U$5, 'Full set Core Client Indicator'!$A$3:$AB$3, 0))=\"\", \"\",  INDEX('Full set Core Client Indicator'!$A$3:$AB$351, MATCH(Selection_Hide2!$A13, 'Full set Core Client Indicator'!$A$3:$A$351, 0), MATCH(Selection_Hide2!U$5, 'Full set Core Client Indicator'!$A$3:$AB$3, 0))), \"\")","v":""},{"$f":"IF(U13<>\"\", IF(INDEX('Full set Core Client Indicator'!$A$3:$AB$351, MATCH(Selection_Hide2!$A13, 'Full set Core Client Indicator'!$A$3:$A$351, 0), MATCH(Selection_Hide2!V$5, 'Full set Core Client Indicator'!$A$3:$AB$3, 0))=\"\", \"\",  INDEX('Full set Core Client Indicator'!$A$3:$AB$351, MATCH(Selection_Hide2!$A13, 'Full set Core Client Indicator'!$A$3:$A$351, 0), MATCH(Selection_Hide2!V$5, 'Full set Core Client Indicator'!$A$3:$AB$3, 0))), \"\")","v":""},{"$f":"IF(V13<>\"\", IF(INDEX('Full set Core Client Indicator'!$A$3:$AB$351, MATCH(Selection_Hide2!$A13, 'Full set Core Client Indicator'!$A$3:$A$351, 0), MATCH(Selection_Hide2!W$5, 'Full set Core Client Indicator'!$A$3:$AB$3, 0))=\"\", \"\",  INDEX('Full set Core Client Indicator'!$A$3:$AB$351, MATCH(Selection_Hide2!$A13, 'Full set Core Client Indicator'!$A$3:$A$351, 0), MATCH(Selection_Hide2!W$5, 'Full set Core Client Indicator'!$A$3:$AB$3, 0))), \"\")","v":""},{"$f":"IF(W13<>\"\", IF(INDEX('Full set Core Client Indicator'!$A$3:$AB$351, MATCH(Selection_Hide2!$A13, 'Full set Core Client Indicator'!$A$3:$A$351, 0), MATCH(Selection_Hide2!X$5, 'Full set Core Client Indicator'!$A$3:$AB$3, 0))=\"\", \"\",  INDEX('Full set Core Client Indicator'!$A$3:$AB$351, MATCH(Selection_Hide2!$A13, 'Full set Core Client Indicator'!$A$3:$A$351, 0), MATCH(Selection_Hide2!X$5, 'Full set Core Client Indicator'!$A$3:$AB$3, 0))), \"\")","v":""},{"$f":"IF(X13<>\"\", IF(INDEX('Full set Core Client Indicator'!$A$3:$AB$351, MATCH(Selection_Hide2!$A13, 'Full set Core Client Indicator'!$A$3:$A$351, 0), MATCH(Selection_Hide2!Y$5, 'Full set Core Client Indicator'!$A$3:$AB$3, 0))=\"\", \"\",  INDEX('Full set Core Client Indicator'!$A$3:$AB$351, MATCH(Selection_Hide2!$A13, 'Full set Core Client Indicator'!$A$3:$A$351, 0), MATCH(Selection_Hide2!Y$5, 'Full set Core Client Indicator'!$A$3:$AB$3, 0))), \"\")","v":""},{"$f":"IF(Y13<>\"\", IF(INDEX('Full set Core Client Indicator'!$A$3:$AB$351, MATCH(Selection_Hide2!$A13, 'Full set Core Client Indicator'!$A$3:$A$351, 0), MATCH(Selection_Hide2!Z$5, 'Full set Core Client Indicator'!$A$3:$AB$3, 0))=\"\", \"\",  INDEX('Full set Core Client Indicator'!$A$3:$AB$351, MATCH(Selection_Hide2!$A13, 'Full set Core Client Indicator'!$A$3:$A$351, 0), MATCH(Selection_Hide2!Z$5, 'Full set Core Client Indicator'!$A$3:$AB$3, 0))), \"\")","v":""},{"$f":"IF(Z13<>\"\", IF(INDEX('Full set Core Client Indicator'!$A$3:$AB$351, MATCH(Selection_Hide2!$A13, 'Full set Core Client Indicator'!$A$3:$A$351, 0), MATCH(Selection_Hide2!AA$5, 'Full set Core Client Indicator'!$A$3:$AB$3, 0))=\"\", \"\",  INDEX('Full set Core Client Indicator'!$A$3:$AB$351, MATCH(Selection_Hide2!$A13, 'Full set Core Client Indicator'!$A$3:$A$351, 0), MATCH(Selection_Hide2!AA$5, 'Full set Core Client Indicator'!$A$3:$AB$3, 0))), \"\")","v":""},{"$f":"IF(AA13<>\"\", IF(INDEX('Full set Core Client Indicator'!$A$3:$AB$351, MATCH(Selection_Hide2!$A13, 'Full set Core Client Indicator'!$A$3:$A$351, 0), MATCH(Selection_Hide2!AB$5, 'Full set Core Client Indicator'!$A$3:$AB$3, 0))=\"\", \"\",  INDEX('Full set Core Client Indicator'!$A$3:$AB$351, MATCH(Selection_Hide2!$A13, 'Full set Core Client Indicator'!$A$3:$A$351, 0), MATCH(Selection_Hide2!AB$5, 'Full set Core Client Indicator'!$A$3:$AB$3, 0))), \"\")","v":""}]
[{"$f":"IF(AND(Selection_Hide1!C12<>0, Selection_Hide1!C12<>\"Grand Total\"), Selection_Hide1!C12, \"\")","v":"121"},{"$f":"IF(A14<>\"\", IF(INDEX('Full set Core Client Indicator'!$A$3:$AB$351, MATCH(Selection_Hide2!$A14, 'Full set Core Client Indicator'!$A$3:$A$351, 0), MATCH(Selection_Hide2!B$5, 'Full set Core Client Indicator'!$A$3:$AB$3, 0))=\"\", \"\",  INDEX('Full set Core Client Indicator'!$A$3:$AB$351, MATCH(Selection_Hide2!$A14, 'Full set Core Client Indicator'!$A$3:$A$351, 0), MATCH(Selection_Hide2!B$5, 'Full set Core Client Indicator'!$A$3:$AB$3, 0))), \"\")","v":"Health"},{"$f":"IF(B14<>\"\", IF(INDEX('Full set Core Client Indicator'!$A$3:$AB$351, MATCH(Selection_Hide2!$A14, 'Full set Core Client Indicator'!$A$3:$A$351, 0), MATCH(Selection_Hide2!C$5, 'Full set Core Client Indicator'!$A$3:$AB$3, 0))=\"\", \"\",  INDEX('Full set Core Client Indicator'!$A$3:$AB$351, MATCH(Selection_Hide2!$A14, 'Full set Core Client Indicator'!$A$3:$A$351, 0), MATCH(Selection_Hide2!C$5, 'Full set Core Client Indicator'!$A$3:$AB$3, 0))), \"\")","v":"People have good physical health"},{"$f":"IF(C14<>\"\", IF(INDEX('Full set Core Client Indicator'!$A$3:$AB$351, MATCH(Selection_Hide2!$A14, 'Full set Core Client Indicator'!$A$3:$A$351, 0), MATCH(Selection_Hide2!D$5, 'Full set Core Client Indicator'!$A$3:$AB$3, 0))=\"\", \"\",  INDEX('Full set Core Client Indicator'!$A$3:$AB$351, MATCH(Selection_Hide2!$A14, 'Full set Core Client Indicator'!$A$3:$A$351, 0), MATCH(Selection_Hide2!D$5, 'Full set Core Client Indicator'!$A$3:$AB$3, 0))), \"\")","v":"Proportion (%) of children and young people with up-to-date immunisation record"},{"$f":"IF(D14<>\"\", IF(INDEX('Full set Core Client Indicator'!$A$3:$AB$351, MATCH(Selection_Hide2!$A14, 'Full set Core Client Indicator'!$A$3:$A$351, 0), MATCH(Selection_Hide2!E$5, 'Full set Core Client Indicator'!$A$3:$AB$3, 0))=\"\", \"\",  INDEX('Full set Core Client Indicator'!$A$3:$AB$351, MATCH(Selection_Hide2!$A14, 'Full set Core Client Indicator'!$A$3:$A$351, 0), MATCH(Selection_Hide2!E$5, 'Full set Core Client Indicator'!$A$3:$AB$3, 0))), \"\")","v":"Medical records submitted to Australian Immunisation Register"},{"$f":"IF(E14<>\"\", IF(INDEX('Full set Core Client Indicator'!$A$3:$AB$351, MATCH(Selection_Hide2!$A14, 'Full set Core Client Indicator'!$A$3:$A$351, 0), MATCH(Selection_Hide2!F$5, 'Full set Core Client Indicator'!$A$3:$AB$3, 0))=\"\", \"\",  INDEX('Full set Core Client Indicator'!$A$3:$AB$351, MATCH(Selection_Hide2!$A14, 'Full set Core Client Indicator'!$A$3:$A$351, 0), MATCH(Selection_Hide2!F$5, 'Full set Core Client Indicator'!$A$3:$AB$3, 0))), \"\")","v":"External agency measure (Department of Human Services)"},{"$f":"IF(F14<>\"\", IF(INDEX('Full set Core Client Indicator'!$A$3:$AB$351, MATCH(Selection_Hide2!$A14, 'Full set Core Client Indicator'!$A$3:$A$351, 0), MATCH(Selection_Hide2!G$5, 'Full set Core Client Indicator'!$A$3:$AB$3, 0))=\"\", \"\",  INDEX('Full set Core Client Indicator'!$A$3:$AB$351, MATCH(Selection_Hide2!$A14, 'Full set Core Client Indicator'!$A$3:$A$351, 0), MATCH(Selection_Hide2!G$5, 'Full set Core Client Indicator'!$A$3:$AB$3, 0))), \"\")","v":"Data linkage "},{"$f":"IF(G14<>\"\", IF(INDEX('Full set Core Client Indicator'!$A$3:$AB$351, MATCH(Selection_Hide2!$A14, 'Full set Core Client Indicator'!$A$3:$A$351, 0), MATCH(Selection_Hide2!H$5, 'Full set Core Client Indicator'!$A$3:$AB$3, 0))=\"\", \"\",  INDEX('Full set Core Client Indicator'!$A$3:$AB$351, MATCH(Selection_Hide2!$A14, 'Full set Core Client Indicator'!$A$3:$A$351, 0), MATCH(Selection_Hide2!H$5, 'Full set Core Client Indicator'!$A$3:$AB$3, 0))), \"\")","v":"Australian Immunisation Register"},{"$f":"IF(H14<>\"\", IF(INDEX('Full set Core Client Indicator'!$A$3:$AB$351, MATCH(Selection_Hide2!$A14, 'Full set Core Client Indicator'!$A$3:$A$351, 0), MATCH(Selection_Hide2!I$5, 'Full set Core Client Indicator'!$A$3:$AB$3, 0))=\"\", \"\",  INDEX('Full set Core Client Indicator'!$A$3:$AB$351, MATCH(Selection_Hide2!$A14, 'Full set Core Client Indicator'!$A$3:$A$351, 0), MATCH(Selection_Hide2!I$5, 'Full set Core Client Indicator'!$A$3:$AB$3, 0))), \"\")","v":"Information not publicly available"},{"$f":"IF(I14<>\"\", IF(INDEX('Full set Core Client Indicator'!$A$3:$AB$351, MATCH(Selection_Hide2!$A14, 'Full set Core Client Indicator'!$A$3:$A$351, 0), MATCH(Selection_Hide2!J$5, 'Full set Core Client Indicator'!$A$3:$AB$3, 0))=\"\", \"\",  INDEX('Full set Core Client Indicator'!$A$3:$AB$351, MATCH(Selection_Hide2!$A14, 'Full set Core Client Indicator'!$A$3:$A$351, 0), MATCH(Selection_Hide2!J$5, 'Full set Core Client Indicator'!$A$3:$AB$3, 0))), \"\")","v":"Counting rules to be develop in consultation with data custodian"},{"$f":"IF(J14<>\"\", IF(INDEX('Full set Core Client Indicator'!$A$3:$AB$351, MATCH(Selection_Hide2!$A14, 'Full set Core Client Indicator'!$A$3:$A$351, 0), MATCH(Selection_Hide2!K$5, 'Full set Core Client Indicator'!$A$3:$AB$3, 0))=\"\", \"\",  INDEX('Full set Core Client Indicator'!$A$3:$AB$351, MATCH(Selection_Hide2!$A14, 'Full set Core Client Indicator'!$A$3:$A$351, 0), MATCH(Selection_Hide2!K$5, 'Full set Core Client Indicator'!$A$3:$AB$3, 0))), \"\")","v":"Department of Human Services"},{"$f":"IF(K14<>\"\", IF(INDEX('Full set Core Client Indicator'!$A$3:$AB$351, MATCH(Selection_Hide2!$A14, 'Full set Core Client Indicator'!$A$3:$A$351, 0), MATCH(Selection_Hide2!L$5, 'Full set Core Client Indicator'!$A$3:$AB$3, 0))=\"\", \"\",  INDEX('Full set Core Client Indicator'!$A$3:$AB$351, MATCH(Selection_Hide2!$A14, 'Full set Core Client Indicator'!$A$3:$A$351, 0), MATCH(Selection_Hide2!L$5, 'Full set Core Client Indicator'!$A$3:$AB$3, 0))), \"\")","v":"Department of Human Services"},{"$f":"IF(L14<>\"\", IF(INDEX('Full set Core Client Indicator'!$A$3:$AB$351, MATCH(Selection_Hide2!$A14, 'Full set Core Client Indicator'!$A$3:$A$351, 0), MATCH(Selection_Hide2!M$5, 'Full set Core Client Indicator'!$A$3:$AB$3, 0))=\"\", \"\",  INDEX('Full set Core Client Indicator'!$A$3:$AB$351, MATCH(Selection_Hide2!$A14, 'Full set Core Client Indicator'!$A$3:$A$351, 0), MATCH(Selection_Hide2!M$5, 'Full set Core Client Indicator'!$A$3:$AB$3, 0))), \"\")","v":"y"},{"$f":"IF(M14<>\"\", IF(INDEX('Full set Core Client Indicator'!$A$3:$AB$351, MATCH(Selection_Hide2!$A14, 'Full set Core Client Indicator'!$A$3:$A$351, 0), MATCH(Selection_Hide2!N$5, 'Full set Core Client Indicator'!$A$3:$AB$3, 0))=\"\", \"\",  INDEX('Full set Core Client Indicator'!$A$3:$AB$351, MATCH(Selection_Hide2!$A14, 'Full set Core Client Indicator'!$A$3:$A$351, 0), MATCH(Selection_Hide2!N$5, 'Full set Core Client Indicator'!$A$3:$AB$3, 0))), \"\")","v":"y"},{"$f":"IF(N14<>\"\", IF(INDEX('Full set Core Client Indicator'!$A$3:$AB$351, MATCH(Selection_Hide2!$A14, 'Full set Core Client Indicator'!$A$3:$A$351, 0), MATCH(Selection_Hide2!O$5, 'Full set Core Client Indicator'!$A$3:$AB$3, 0))=\"\", \"\",  INDEX('Full set Core Client Indicator'!$A$3:$AB$351, MATCH(Selection_Hide2!$A14, 'Full set Core Client Indicator'!$A$3:$A$351, 0), MATCH(Selection_Hide2!O$5, 'Full set Core Client Indicator'!$A$3:$AB$3, 0))), \"\")","v":"y"},{"$f":"IF(O14<>\"\", IF(INDEX('Full set Core Client Indicator'!$A$3:$AB$351, MATCH(Selection_Hide2!$A14, 'Full set Core Client Indicator'!$A$3:$A$351, 0), MATCH(Selection_Hide2!P$5, 'Full set Core Client Indicator'!$A$3:$AB$3, 0))=\"\", \"\",  INDEX('Full set Core Client Indicator'!$A$3:$AB$351, MATCH(Selection_Hide2!$A14, 'Full set Core Client Indicator'!$A$3:$A$351, 0), MATCH(Selection_Hide2!P$5, 'Full set Core Client Indicator'!$A$3:$AB$3, 0))), \"\")","v":""},{"$f":"IF(P14<>\"\", IF(INDEX('Full set Core Client Indicator'!$A$3:$AB$351, MATCH(Selection_Hide2!$A14, 'Full set Core Client Indicator'!$A$3:$A$351, 0), MATCH(Selection_Hide2!Q$5, 'Full set Core Client Indicator'!$A$3:$AB$3, 0))=\"\", \"\",  INDEX('Full set Core Client Indicator'!$A$3:$AB$351, MATCH(Selection_Hide2!$A14, 'Full set Core Client Indicator'!$A$3:$A$351, 0), MATCH(Selection_Hide2!Q$5, 'Full set Core Client Indicator'!$A$3:$AB$3, 0))), \"\")","v":""},{"$f":"IF(Q14<>\"\", IF(INDEX('Full set Core Client Indicator'!$A$3:$AB$351, MATCH(Selection_Hide2!$A14, 'Full set Core Client Indicator'!$A$3:$A$351, 0), MATCH(Selection_Hide2!R$5, 'Full set Core Client Indicator'!$A$3:$AB$3, 0))=\"\", \"\",  INDEX('Full set Core Client Indicator'!$A$3:$AB$351, MATCH(Selection_Hide2!$A14, 'Full set Core Client Indicator'!$A$3:$A$351, 0), MATCH(Selection_Hide2!R$5, 'Full set Core Client Indicator'!$A$3:$AB$3, 0))), \"\")","v":""},{"$f":"IF(R14<>\"\", IF(INDEX('Full set Core Client Indicator'!$A$3:$AB$351, MATCH(Selection_Hide2!$A14, 'Full set Core Client Indicator'!$A$3:$A$351, 0), MATCH(Selection_Hide2!S$5, 'Full set Core Client Indicator'!$A$3:$AB$3, 0))=\"\", \"\",  INDEX('Full set Core Client Indicator'!$A$3:$AB$351, MATCH(Selection_Hide2!$A14, 'Full set Core Client Indicator'!$A$3:$A$351, 0), MATCH(Selection_Hide2!S$5, 'Full set Core Client Indicator'!$A$3:$AB$3, 0))), \"\")","v":""},{"$f":"IF(S14<>\"\", IF(INDEX('Full set Core Client Indicator'!$A$3:$AB$351, MATCH(Selection_Hide2!$A14, 'Full set Core Client Indicator'!$A$3:$A$351, 0), MATCH(Selection_Hide2!T$5, 'Full set Core Client Indicator'!$A$3:$AB$3, 0))=\"\", \"\",  INDEX('Full set Core Client Indicator'!$A$3:$AB$351, MATCH(Selection_Hide2!$A14, 'Full set Core Client Indicator'!$A$3:$A$351, 0), MATCH(Selection_Hide2!T$5, 'Full set Core Client Indicator'!$A$3:$AB$3, 0))), \"\")","v":""},{"$f":"IF(T14<>\"\", IF(INDEX('Full set Core Client Indicator'!$A$3:$AB$351, MATCH(Selection_Hide2!$A14, 'Full set Core Client Indicator'!$A$3:$A$351, 0), MATCH(Selection_Hide2!U$5, 'Full set Core Client Indicator'!$A$3:$AB$3, 0))=\"\", \"\",  INDEX('Full set Core Client Indicator'!$A$3:$AB$351, MATCH(Selection_Hide2!$A14, 'Full set Core Client Indicator'!$A$3:$A$351, 0), MATCH(Selection_Hide2!U$5, 'Full set Core Client Indicator'!$A$3:$AB$3, 0))), \"\")","v":""},{"$f":"IF(U14<>\"\", IF(INDEX('Full set Core Client Indicator'!$A$3:$AB$351, MATCH(Selection_Hide2!$A14, 'Full set Core Client Indicator'!$A$3:$A$351, 0), MATCH(Selection_Hide2!V$5, 'Full set Core Client Indicator'!$A$3:$AB$3, 0))=\"\", \"\",  INDEX('Full set Core Client Indicator'!$A$3:$AB$351, MATCH(Selection_Hide2!$A14, 'Full set Core Client Indicator'!$A$3:$A$351, 0), MATCH(Selection_Hide2!V$5, 'Full set Core Client Indicator'!$A$3:$AB$3, 0))), \"\")","v":""},{"$f":"IF(V14<>\"\", IF(INDEX('Full set Core Client Indicator'!$A$3:$AB$351, MATCH(Selection_Hide2!$A14, 'Full set Core Client Indicator'!$A$3:$A$351, 0), MATCH(Selection_Hide2!W$5, 'Full set Core Client Indicator'!$A$3:$AB$3, 0))=\"\", \"\",  INDEX('Full set Core Client Indicator'!$A$3:$AB$351, MATCH(Selection_Hide2!$A14, 'Full set Core Client Indicator'!$A$3:$A$351, 0), MATCH(Selection_Hide2!W$5, 'Full set Core Client Indicator'!$A$3:$AB$3, 0))), \"\")","v":""},{"$f":"IF(W14<>\"\", IF(INDEX('Full set Core Client Indicator'!$A$3:$AB$351, MATCH(Selection_Hide2!$A14, 'Full set Core Client Indicator'!$A$3:$A$351, 0), MATCH(Selection_Hide2!X$5, 'Full set Core Client Indicator'!$A$3:$AB$3, 0))=\"\", \"\",  INDEX('Full set Core Client Indicator'!$A$3:$AB$351, MATCH(Selection_Hide2!$A14, 'Full set Core Client Indicator'!$A$3:$A$351, 0), MATCH(Selection_Hide2!X$5, 'Full set Core Client Indicator'!$A$3:$AB$3, 0))), \"\")","v":""},{"$f":"IF(X14<>\"\", IF(INDEX('Full set Core Client Indicator'!$A$3:$AB$351, MATCH(Selection_Hide2!$A14, 'Full set Core Client Indicator'!$A$3:$A$351, 0), MATCH(Selection_Hide2!Y$5, 'Full set Core Client Indicator'!$A$3:$AB$3, 0))=\"\", \"\",  INDEX('Full set Core Client Indicator'!$A$3:$AB$351, MATCH(Selection_Hide2!$A14, 'Full set Core Client Indicator'!$A$3:$A$351, 0), MATCH(Selection_Hide2!Y$5, 'Full set Core Client Indicator'!$A$3:$AB$3, 0))), \"\")","v":""},{"$f":"IF(Y14<>\"\", IF(INDEX('Full set Core Client Indicator'!$A$3:$AB$351, MATCH(Selection_Hide2!$A14, 'Full set Core Client Indicator'!$A$3:$A$351, 0), MATCH(Selection_Hide2!Z$5, 'Full set Core Client Indicator'!$A$3:$AB$3, 0))=\"\", \"\",  INDEX('Full set Core Client Indicator'!$A$3:$AB$351, MATCH(Selection_Hide2!$A14, 'Full set Core Client Indicator'!$A$3:$A$351, 0), MATCH(Selection_Hide2!Z$5, 'Full set Core Client Indicator'!$A$3:$AB$3, 0))), \"\")","v":""},{"$f":"IF(Z14<>\"\", IF(INDEX('Full set Core Client Indicator'!$A$3:$AB$351, MATCH(Selection_Hide2!$A14, 'Full set Core Client Indicator'!$A$3:$A$351, 0), MATCH(Selection_Hide2!AA$5, 'Full set Core Client Indicator'!$A$3:$AB$3, 0))=\"\", \"\",  INDEX('Full set Core Client Indicator'!$A$3:$AB$351, MATCH(Selection_Hide2!$A14, 'Full set Core Client Indicator'!$A$3:$A$351, 0), MATCH(Selection_Hide2!AA$5, 'Full set Core Client Indicator'!$A$3:$AB$3, 0))), \"\")","v":""},{"$f":"IF(AA14<>\"\", IF(INDEX('Full set Core Client Indicator'!$A$3:$AB$351, MATCH(Selection_Hide2!$A14, 'Full set Core Client Indicator'!$A$3:$A$351, 0), MATCH(Selection_Hide2!AB$5, 'Full set Core Client Indicator'!$A$3:$AB$3, 0))=\"\", \"\",  INDEX('Full set Core Client Indicator'!$A$3:$AB$351, MATCH(Selection_Hide2!$A14, 'Full set Core Client Indicator'!$A$3:$A$351, 0), MATCH(Selection_Hide2!AB$5, 'Full set Core Client Indicator'!$A$3:$AB$3, 0))), \"\")","v":""}]
[{"$f":"IF(AND(Selection_Hide1!C13<>0, Selection_Hide1!C13<>\"Grand Total\"), Selection_Hide1!C13, \"\")","v":"122"},{"$f":"IF(A15<>\"\", IF(INDEX('Full set Core Client Indicator'!$A$3:$AB$351, MATCH(Selection_Hide2!$A15, 'Full set Core Client Indicator'!$A$3:$A$351, 0), MATCH(Selection_Hide2!B$5, 'Full set Core Client Indicator'!$A$3:$AB$3, 0))=\"\", \"\",  INDEX('Full set Core Client Indicator'!$A$3:$AB$351, MATCH(Selection_Hide2!$A15, 'Full set Core Client Indicator'!$A$3:$A$351, 0), MATCH(Selection_Hide2!B$5, 'Full set Core Client Indicator'!$A$3:$AB$3, 0))), \"\")","v":"Health"},{"$f":"IF(B15<>\"\", IF(INDEX('Full set Core Client Indicator'!$A$3:$AB$351, MATCH(Selection_Hide2!$A15, 'Full set Core Client Indicator'!$A$3:$A$351, 0), MATCH(Selection_Hide2!C$5, 'Full set Core Client Indicator'!$A$3:$AB$3, 0))=\"\", \"\",  INDEX('Full set Core Client Indicator'!$A$3:$AB$351, MATCH(Selection_Hide2!$A15, 'Full set Core Client Indicator'!$A$3:$A$351, 0), MATCH(Selection_Hide2!C$5, 'Full set Core Client Indicator'!$A$3:$AB$3, 0))), \"\")","v":"People have good physical health"},{"$f":"IF(C15<>\"\", IF(INDEX('Full set Core Client Indicator'!$A$3:$AB$351, MATCH(Selection_Hide2!$A15, 'Full set Core Client Indicator'!$A$3:$A$351, 0), MATCH(Selection_Hide2!D$5, 'Full set Core Client Indicator'!$A$3:$AB$3, 0))=\"\", \"\",  INDEX('Full set Core Client Indicator'!$A$3:$AB$351, MATCH(Selection_Hide2!$A15, 'Full set Core Client Indicator'!$A$3:$A$351, 0), MATCH(Selection_Hide2!D$5, 'Full set Core Client Indicator'!$A$3:$AB$3, 0))), \"\")","v":"Proportion (%) of people who are overweight or obese"},{"$f":"IF(D15<>\"\", IF(INDEX('Full set Core Client Indicator'!$A$3:$AB$351, MATCH(Selection_Hide2!$A15, 'Full set Core Client Indicator'!$A$3:$A$351, 0), MATCH(Selection_Hide2!E$5, 'Full set Core Client Indicator'!$A$3:$AB$3, 0))=\"\", \"\",  INDEX('Full set Core Client Indicator'!$A$3:$AB$351, MATCH(Selection_Hide2!$A15, 'Full set Core Client Indicator'!$A$3:$A$351, 0), MATCH(Selection_Hide2!E$5, 'Full set Core Client Indicator'!$A$3:$AB$3, 0))), \"\")","v":"Body Mass Index (BMI)"},{"$f":"IF(E15<>\"\", IF(INDEX('Full set Core Client Indicator'!$A$3:$AB$351, MATCH(Selection_Hide2!$A15, 'Full set Core Client Indicator'!$A$3:$A$351, 0), MATCH(Selection_Hide2!F$5, 'Full set Core Client Indicator'!$A$3:$AB$3, 0))=\"\", \"\",  INDEX('Full set Core Client Indicator'!$A$3:$AB$351, MATCH(Selection_Hide2!$A15, 'Full set Core Client Indicator'!$A$3:$A$351, 0), MATCH(Selection_Hide2!F$5, 'Full set Core Client Indicator'!$A$3:$AB$3, 0))), \"\")","v":"Existing DCJ measure (QAF)"},{"$f":"IF(F15<>\"\", IF(INDEX('Full set Core Client Indicator'!$A$3:$AB$351, MATCH(Selection_Hide2!$A15, 'Full set Core Client Indicator'!$A$3:$A$351, 0), MATCH(Selection_Hide2!G$5, 'Full set Core Client Indicator'!$A$3:$AB$3, 0))=\"\", \"\",  INDEX('Full set Core Client Indicator'!$A$3:$AB$351, MATCH(Selection_Hide2!$A15, 'Full set Core Client Indicator'!$A$3:$A$351, 0), MATCH(Selection_Hide2!G$5, 'Full set Core Client Indicator'!$A$3:$AB$3, 0))), \"\")","v":"New data"},{"$f":"IF(G15<>\"\", IF(INDEX('Full set Core Client Indicator'!$A$3:$AB$351, MATCH(Selection_Hide2!$A15, 'Full set Core Client Indicator'!$A$3:$A$351, 0), MATCH(Selection_Hide2!H$5, 'Full set Core Client Indicator'!$A$3:$AB$3, 0))=\"\", \"\",  INDEX('Full set Core Client Indicator'!$A$3:$AB$351, MATCH(Selection_Hide2!$A15, 'Full set Core Client Indicator'!$A$3:$A$351, 0), MATCH(Selection_Hide2!H$5, 'Full set Core Client Indicator'!$A$3:$AB$3, 0))), \"\")","v":"No data source"},{"$f":"IF(H15<>\"\", IF(INDEX('Full set Core Client Indicator'!$A$3:$AB$351, MATCH(Selection_Hide2!$A15, 'Full set Core Client Indicator'!$A$3:$A$351, 0), MATCH(Selection_Hide2!I$5, 'Full set Core Client Indicator'!$A$3:$AB$3, 0))=\"\", \"\",  INDEX('Full set Core Client Indicator'!$A$3:$AB$351, MATCH(Selection_Hide2!$A15, 'Full set Core Client Indicator'!$A$3:$A$351, 0), MATCH(Selection_Hide2!I$5, 'Full set Core Client Indicator'!$A$3:$AB$3, 0))), \"\")","v":"* Persons BMI score"},{"$f":"IF(I15<>\"\", IF(INDEX('Full set Core Client Indicator'!$A$3:$AB$351, MATCH(Selection_Hide2!$A15, 'Full set Core Client Indicator'!$A$3:$A$351, 0), MATCH(Selection_Hide2!J$5, 'Full set Core Client Indicator'!$A$3:$AB$3, 0))=\"\", \"\",  INDEX('Full set Core Client Indicator'!$A$3:$AB$351, MATCH(Selection_Hide2!$A15, 'Full set Core Client Indicator'!$A$3:$A$351, 0), MATCH(Selection_Hide2!J$5, 'Full set Core Client Indicator'!$A$3:$AB$3, 0))), \"\")","v":"Numerator: Number of people rated as overweight or obese\nDenominator: Total number of people whose weight is known"},{"$f":"IF(J15<>\"\", IF(INDEX('Full set Core Client Indicator'!$A$3:$AB$351, MATCH(Selection_Hide2!$A15, 'Full set Core Client Indicator'!$A$3:$A$351, 0), MATCH(Selection_Hide2!K$5, 'Full set Core Client Indicator'!$A$3:$AB$3, 0))=\"\", \"\",  INDEX('Full set Core Client Indicator'!$A$3:$AB$351, MATCH(Selection_Hide2!$A15, 'Full set Core Client Indicator'!$A$3:$A$351, 0), MATCH(Selection_Hide2!K$5, 'Full set Core Client Indicator'!$A$3:$AB$3, 0))), \"\")","v":""},{"$f":"IF(K15<>\"\", IF(INDEX('Full set Core Client Indicator'!$A$3:$AB$351, MATCH(Selection_Hide2!$A15, 'Full set Core Client Indicator'!$A$3:$A$351, 0), MATCH(Selection_Hide2!L$5, 'Full set Core Client Indicator'!$A$3:$AB$3, 0))=\"\", \"\",  INDEX('Full set Core Client Indicator'!$A$3:$AB$351, MATCH(Selection_Hide2!$A15, 'Full set Core Client Indicator'!$A$3:$A$351, 0), MATCH(Selection_Hide2!L$5, 'Full set Core Client Indicator'!$A$3:$AB$3, 0))), \"\")","v":""},{"$f":"IF(L15<>\"\", IF(INDEX('Full set Core Client Indicator'!$A$3:$AB$351, MATCH(Selection_Hide2!$A15, 'Full set Core Client Indicator'!$A$3:$A$351, 0), MATCH(Selection_Hide2!M$5, 'Full set Core Client Indicator'!$A$3:$AB$3, 0))=\"\", \"\",  INDEX('Full set Core Client Indicator'!$A$3:$AB$351, MATCH(Selection_Hide2!$A15, 'Full set Core Client Indicator'!$A$3:$A$351, 0), MATCH(Selection_Hide2!M$5, 'Full set Core Client Indicator'!$A$3:$AB$3, 0))), \"\")","v":""},{"$f":"IF(M15<>\"\", IF(INDEX('Full set Core Client Indicator'!$A$3:$AB$351, MATCH(Selection_Hide2!$A15, 'Full set Core Client Indicator'!$A$3:$A$351, 0), MATCH(Selection_Hide2!N$5, 'Full set Core Client Indicator'!$A$3:$AB$3, 0))=\"\", \"\",  INDEX('Full set Core Client Indicator'!$A$3:$AB$351, MATCH(Selection_Hide2!$A15, 'Full set Core Client Indicator'!$A$3:$A$351, 0), MATCH(Selection_Hide2!N$5, 'Full set Core Client Indicator'!$A$3:$AB$3, 0))), \"\")","v":""},{"$f":"IF(N15<>\"\", IF(INDEX('Full set Core Client Indicator'!$A$3:$AB$351, MATCH(Selection_Hide2!$A15, 'Full set Core Client Indicator'!$A$3:$A$351, 0), MATCH(Selection_Hide2!O$5, 'Full set Core Client Indicator'!$A$3:$AB$3, 0))=\"\", \"\",  INDEX('Full set Core Client Indicator'!$A$3:$AB$351, MATCH(Selection_Hide2!$A15, 'Full set Core Client Indicator'!$A$3:$A$351, 0), MATCH(Selection_Hide2!O$5, 'Full set Core Client Indicator'!$A$3:$AB$3, 0))), \"\")","v":""},{"$f":"IF(O15<>\"\", IF(INDEX('Full set Core Client Indicator'!$A$3:$AB$351, MATCH(Selection_Hide2!$A15, 'Full set Core Client Indicator'!$A$3:$A$351, 0), MATCH(Selection_Hide2!P$5, 'Full set Core Client Indicator'!$A$3:$AB$3, 0))=\"\", \"\",  INDEX('Full set Core Client Indicator'!$A$3:$AB$351, MATCH(Selection_Hide2!$A15, 'Full set Core Client Indicator'!$A$3:$A$351, 0), MATCH(Selection_Hide2!P$5, 'Full set Core Client Indicator'!$A$3:$AB$3, 0))), \"\")","v":""},{"$f":"IF(P15<>\"\", IF(INDEX('Full set Core Client Indicator'!$A$3:$AB$351, MATCH(Selection_Hide2!$A15, 'Full set Core Client Indicator'!$A$3:$A$351, 0), MATCH(Selection_Hide2!Q$5, 'Full set Core Client Indicator'!$A$3:$AB$3, 0))=\"\", \"\",  INDEX('Full set Core Client Indicator'!$A$3:$AB$351, MATCH(Selection_Hide2!$A15, 'Full set Core Client Indicator'!$A$3:$A$351, 0), MATCH(Selection_Hide2!Q$5, 'Full set Core Client Indicator'!$A$3:$AB$3, 0))), \"\")","v":""},{"$f":"IF(Q15<>\"\", IF(INDEX('Full set Core Client Indicator'!$A$3:$AB$351, MATCH(Selection_Hide2!$A15, 'Full set Core Client Indicator'!$A$3:$A$351, 0), MATCH(Selection_Hide2!R$5, 'Full set Core Client Indicator'!$A$3:$AB$3, 0))=\"\", \"\",  INDEX('Full set Core Client Indicator'!$A$3:$AB$351, MATCH(Selection_Hide2!$A15, 'Full set Core Client Indicator'!$A$3:$A$351, 0), MATCH(Selection_Hide2!R$5, 'Full set Core Client Indicator'!$A$3:$AB$3, 0))), \"\")","v":""},{"$f":"IF(R15<>\"\", IF(INDEX('Full set Core Client Indicator'!$A$3:$AB$351, MATCH(Selection_Hide2!$A15, 'Full set Core Client Indicator'!$A$3:$A$351, 0), MATCH(Selection_Hide2!S$5, 'Full set Core Client Indicator'!$A$3:$AB$3, 0))=\"\", \"\",  INDEX('Full set Core Client Indicator'!$A$3:$AB$351, MATCH(Selection_Hide2!$A15, 'Full set Core Client Indicator'!$A$3:$A$351, 0), MATCH(Selection_Hide2!S$5, 'Full set Core Client Indicator'!$A$3:$AB$3, 0))), \"\")","v":""},{"$f":"IF(S15<>\"\", IF(INDEX('Full set Core Client Indicator'!$A$3:$AB$351, MATCH(Selection_Hide2!$A15, 'Full set Core Client Indicator'!$A$3:$A$351, 0), MATCH(Selection_Hide2!T$5, 'Full set Core Client Indicator'!$A$3:$AB$3, 0))=\"\", \"\",  INDEX('Full set Core Client Indicator'!$A$3:$AB$351, MATCH(Selection_Hide2!$A15, 'Full set Core Client Indicator'!$A$3:$A$351, 0), MATCH(Selection_Hide2!T$5, 'Full set Core Client Indicator'!$A$3:$AB$3, 0))), \"\")","v":""},{"$f":"IF(T15<>\"\", IF(INDEX('Full set Core Client Indicator'!$A$3:$AB$351, MATCH(Selection_Hide2!$A15, 'Full set Core Client Indicator'!$A$3:$A$351, 0), MATCH(Selection_Hide2!U$5, 'Full set Core Client Indicator'!$A$3:$AB$3, 0))=\"\", \"\",  INDEX('Full set Core Client Indicator'!$A$3:$AB$351, MATCH(Selection_Hide2!$A15, 'Full set Core Client Indicator'!$A$3:$A$351, 0), MATCH(Selection_Hide2!U$5, 'Full set Core Client Indicator'!$A$3:$AB$3, 0))), \"\")","v":""},{"$f":"IF(U15<>\"\", IF(INDEX('Full set Core Client Indicator'!$A$3:$AB$351, MATCH(Selection_Hide2!$A15, 'Full set Core Client Indicator'!$A$3:$A$351, 0), MATCH(Selection_Hide2!V$5, 'Full set Core Client Indicator'!$A$3:$AB$3, 0))=\"\", \"\",  INDEX('Full set Core Client Indicator'!$A$3:$AB$351, MATCH(Selection_Hide2!$A15, 'Full set Core Client Indicator'!$A$3:$A$351, 0), MATCH(Selection_Hide2!V$5, 'Full set Core Client Indicator'!$A$3:$AB$3, 0))), \"\")","v":""},{"$f":"IF(V15<>\"\", IF(INDEX('Full set Core Client Indicator'!$A$3:$AB$351, MATCH(Selection_Hide2!$A15, 'Full set Core Client Indicator'!$A$3:$A$351, 0), MATCH(Selection_Hide2!W$5, 'Full set Core Client Indicator'!$A$3:$AB$3, 0))=\"\", \"\",  INDEX('Full set Core Client Indicator'!$A$3:$AB$351, MATCH(Selection_Hide2!$A15, 'Full set Core Client Indicator'!$A$3:$A$351, 0), MATCH(Selection_Hide2!W$5, 'Full set Core Client Indicator'!$A$3:$AB$3, 0))), \"\")","v":""},{"$f":"IF(W15<>\"\", IF(INDEX('Full set Core Client Indicator'!$A$3:$AB$351, MATCH(Selection_Hide2!$A15, 'Full set Core Client Indicator'!$A$3:$A$351, 0), MATCH(Selection_Hide2!X$5, 'Full set Core Client Indicator'!$A$3:$AB$3, 0))=\"\", \"\",  INDEX('Full set Core Client Indicator'!$A$3:$AB$351, MATCH(Selection_Hide2!$A15, 'Full set Core Client Indicator'!$A$3:$A$351, 0), MATCH(Selection_Hide2!X$5, 'Full set Core Client Indicator'!$A$3:$AB$3, 0))), \"\")","v":""},{"$f":"IF(X15<>\"\", IF(INDEX('Full set Core Client Indicator'!$A$3:$AB$351, MATCH(Selection_Hide2!$A15, 'Full set Core Client Indicator'!$A$3:$A$351, 0), MATCH(Selection_Hide2!Y$5, 'Full set Core Client Indicator'!$A$3:$AB$3, 0))=\"\", \"\",  INDEX('Full set Core Client Indicator'!$A$3:$AB$351, MATCH(Selection_Hide2!$A15, 'Full set Core Client Indicator'!$A$3:$A$351, 0), MATCH(Selection_Hide2!Y$5, 'Full set Core Client Indicator'!$A$3:$AB$3, 0))), \"\")","v":""},{"$f":"IF(Y15<>\"\", IF(INDEX('Full set Core Client Indicator'!$A$3:$AB$351, MATCH(Selection_Hide2!$A15, 'Full set Core Client Indicator'!$A$3:$A$351, 0), MATCH(Selection_Hide2!Z$5, 'Full set Core Client Indicator'!$A$3:$AB$3, 0))=\"\", \"\",  INDEX('Full set Core Client Indicator'!$A$3:$AB$351, MATCH(Selection_Hide2!$A15, 'Full set Core Client Indicator'!$A$3:$A$351, 0), MATCH(Selection_Hide2!Z$5, 'Full set Core Client Indicator'!$A$3:$AB$3, 0))), \"\")","v":""},{"$f":"IF(Z15<>\"\", IF(INDEX('Full set Core Client Indicator'!$A$3:$AB$351, MATCH(Selection_Hide2!$A15, 'Full set Core Client Indicator'!$A$3:$A$351, 0), MATCH(Selection_Hide2!AA$5, 'Full set Core Client Indicator'!$A$3:$AB$3, 0))=\"\", \"\",  INDEX('Full set Core Client Indicator'!$A$3:$AB$351, MATCH(Selection_Hide2!$A15, 'Full set Core Client Indicator'!$A$3:$A$351, 0), MATCH(Selection_Hide2!AA$5, 'Full set Core Client Indicator'!$A$3:$AB$3, 0))), \"\")","v":""},{"$f":"IF(AA15<>\"\", IF(INDEX('Full set Core Client Indicator'!$A$3:$AB$351, MATCH(Selection_Hide2!$A15, 'Full set Core Client Indicator'!$A$3:$A$351, 0), MATCH(Selection_Hide2!AB$5, 'Full set Core Client Indicator'!$A$3:$AB$3, 0))=\"\", \"\",  INDEX('Full set Core Client Indicator'!$A$3:$AB$351, MATCH(Selection_Hide2!$A15, 'Full set Core Client Indicator'!$A$3:$A$351, 0), MATCH(Selection_Hide2!AB$5, 'Full set Core Client Indicator'!$A$3:$AB$3, 0))), \"\")","v":""}]
[{"$f":"IF(AND(Selection_Hide1!C14<>0, Selection_Hide1!C14<>\"Grand Total\"), Selection_Hide1!C14, \"\")","v":"264"},{"$f":"IF(A16<>\"\", IF(INDEX('Full set Core Client Indicator'!$A$3:$AB$351, MATCH(Selection_Hide2!$A16, 'Full set Core Client Indicator'!$A$3:$A$351, 0), MATCH(Selection_Hide2!B$5, 'Full set Core Client Indicator'!$A$3:$AB$3, 0))=\"\", \"\",  INDEX('Full set Core Client Indicator'!$A$3:$AB$351, MATCH(Selection_Hide2!$A16, 'Full set Core Client Indicator'!$A$3:$A$351, 0), MATCH(Selection_Hide2!B$5, 'Full set Core Client Indicator'!$A$3:$AB$3, 0))), \"\")","v":"Health"},{"$f":"IF(B16<>\"\", IF(INDEX('Full set Core Client Indicator'!$A$3:$AB$351, MATCH(Selection_Hide2!$A16, 'Full set Core Client Indicator'!$A$3:$A$351, 0), MATCH(Selection_Hide2!C$5, 'Full set Core Client Indicator'!$A$3:$AB$3, 0))=\"\", \"\",  INDEX('Full set Core Client Indicator'!$A$3:$AB$351, MATCH(Selection_Hide2!$A16, 'Full set Core Client Indicator'!$A$3:$A$351, 0), MATCH(Selection_Hide2!C$5, 'Full set Core Client Indicator'!$A$3:$AB$3, 0))), \"\")","v":"People have a healthy lifestyle and avoid risk taking behaviours that negatively impact their health"},{"$f":"IF(C16<>\"\", IF(INDEX('Full set Core Client Indicator'!$A$3:$AB$351, MATCH(Selection_Hide2!$A16, 'Full set Core Client Indicator'!$A$3:$A$351, 0), MATCH(Selection_Hide2!D$5, 'Full set Core Client Indicator'!$A$3:$AB$3, 0))=\"\", \"\",  INDEX('Full set Core Client Indicator'!$A$3:$AB$351, MATCH(Selection_Hide2!$A16, 'Full set Core Client Indicator'!$A$3:$A$351, 0), MATCH(Selection_Hide2!D$5, 'Full set Core Client Indicator'!$A$3:$AB$3, 0))), \"\")","v":"Age-specific birth rate for 15 to 19 year old women per 1,000 females"},{"$f":"IF(D16<>\"\", IF(INDEX('Full set Core Client Indicator'!$A$3:$AB$351, MATCH(Selection_Hide2!$A16, 'Full set Core Client Indicator'!$A$3:$A$351, 0), MATCH(Selection_Hide2!E$5, 'Full set Core Client Indicator'!$A$3:$AB$3, 0))=\"\", \"\",  INDEX('Full set Core Client Indicator'!$A$3:$AB$351, MATCH(Selection_Hide2!$A16, 'Full set Core Client Indicator'!$A$3:$A$351, 0), MATCH(Selection_Hide2!E$5, 'Full set Core Client Indicator'!$A$3:$AB$3, 0))), \"\")","v":"Perinatal data collection record"},{"$f":"IF(E16<>\"\", IF(INDEX('Full set Core Client Indicator'!$A$3:$AB$351, MATCH(Selection_Hide2!$A16, 'Full set Core Client Indicator'!$A$3:$A$351, 0), MATCH(Selection_Hide2!F$5, 'Full set Core Client Indicator'!$A$3:$AB$3, 0))=\"\", \"\",  INDEX('Full set Core Client Indicator'!$A$3:$AB$351, MATCH(Selection_Hide2!$A16, 'Full set Core Client Indicator'!$A$3:$A$351, 0), MATCH(Selection_Hide2!F$5, 'Full set Core Client Indicator'!$A$3:$AB$3, 0))), \"\")","v":"External agency measure (NSW Ministry of Health)"},{"$f":"IF(F16<>\"\", IF(INDEX('Full set Core Client Indicator'!$A$3:$AB$351, MATCH(Selection_Hide2!$A16, 'Full set Core Client Indicator'!$A$3:$A$351, 0), MATCH(Selection_Hide2!G$5, 'Full set Core Client Indicator'!$A$3:$AB$3, 0))=\"\", \"\",  INDEX('Full set Core Client Indicator'!$A$3:$AB$351, MATCH(Selection_Hide2!$A16, 'Full set Core Client Indicator'!$A$3:$A$351, 0), MATCH(Selection_Hide2!G$5, 'Full set Core Client Indicator'!$A$3:$AB$3, 0))), \"\")","v":"Data linkage "},{"$f":"IF(G16<>\"\", IF(INDEX('Full set Core Client Indicator'!$A$3:$AB$351, MATCH(Selection_Hide2!$A16, 'Full set Core Client Indicator'!$A$3:$A$351, 0), MATCH(Selection_Hide2!H$5, 'Full set Core Client Indicator'!$A$3:$AB$3, 0))=\"\", \"\",  INDEX('Full set Core Client Indicator'!$A$3:$AB$351, MATCH(Selection_Hide2!$A16, 'Full set Core Client Indicator'!$A$3:$A$351, 0), MATCH(Selection_Hide2!H$5, 'Full set Core Client Indicator'!$A$3:$AB$3, 0))), \"\")","v":"NSW Perinatal Data Collection (PDC)"},{"$f":"IF(H16<>\"\", IF(INDEX('Full set Core Client Indicator'!$A$3:$AB$351, MATCH(Selection_Hide2!$A16, 'Full set Core Client Indicator'!$A$3:$A$351, 0), MATCH(Selection_Hide2!I$5, 'Full set Core Client Indicator'!$A$3:$AB$3, 0))=\"\", \"\",  INDEX('Full set Core Client Indicator'!$A$3:$AB$351, MATCH(Selection_Hide2!$A16, 'Full set Core Client Indicator'!$A$3:$A$351, 0), MATCH(Selection_Hide2!I$5, 'Full set Core Client Indicator'!$A$3:$AB$3, 0))), \"\")","v":"* Mother’s age [age]"},{"$f":"IF(I16<>\"\", IF(INDEX('Full set Core Client Indicator'!$A$3:$AB$351, MATCH(Selection_Hide2!$A16, 'Full set Core Client Indicator'!$A$3:$A$351, 0), MATCH(Selection_Hide2!J$5, 'Full set Core Client Indicator'!$A$3:$AB$3, 0))=\"\", \"\",  INDEX('Full set Core Client Indicator'!$A$3:$AB$351, MATCH(Selection_Hide2!$A16, 'Full set Core Client Indicator'!$A$3:$A$351, 0), MATCH(Selection_Hide2!J$5, 'Full set Core Client Indicator'!$A$3:$AB$3, 0))), \"\")","v":"Numerator: Number of children born where Mother's age >= 15 and <= 19\nDenominator: Number of DCJ clients age >= 15 and <= 19\nFilters: Persons who are female and aged >= 15 and <= 19\n"},{"$f":"IF(J16<>\"\", IF(INDEX('Full set Core Client Indicator'!$A$3:$AB$351, MATCH(Selection_Hide2!$A16, 'Full set Core Client Indicator'!$A$3:$A$351, 0), MATCH(Selection_Hide2!K$5, 'Full set Core Client Indicator'!$A$3:$AB$3, 0))=\"\", \"\",  INDEX('Full set Core Client Indicator'!$A$3:$AB$351, MATCH(Selection_Hide2!$A16, 'Full set Core Client Indicator'!$A$3:$A$351, 0), MATCH(Selection_Hide2!K$5, 'Full set Core Client Indicator'!$A$3:$AB$3, 0))), \"\")","v":"NSW Ministry of Health"},{"$f":"IF(K16<>\"\", IF(INDEX('Full set Core Client Indicator'!$A$3:$AB$351, MATCH(Selection_Hide2!$A16, 'Full set Core Client Indicator'!$A$3:$A$351, 0), MATCH(Selection_Hide2!L$5, 'Full set Core Client Indicator'!$A$3:$AB$3, 0))=\"\", \"\",  INDEX('Full set Core Client Indicator'!$A$3:$AB$351, MATCH(Selection_Hide2!$A16, 'Full set Core Client Indicator'!$A$3:$A$351, 0), MATCH(Selection_Hide2!L$5, 'Full set Core Client Indicator'!$A$3:$AB$3, 0))), \"\")","v":"CHeReL"},{"$f":"IF(L16<>\"\", IF(INDEX('Full set Core Client Indicator'!$A$3:$AB$351, MATCH(Selection_Hide2!$A16, 'Full set Core Client Indicator'!$A$3:$A$351, 0), MATCH(Selection_Hide2!M$5, 'Full set Core Client Indicator'!$A$3:$AB$3, 0))=\"\", \"\",  INDEX('Full set Core Client Indicator'!$A$3:$AB$351, MATCH(Selection_Hide2!$A16, 'Full set Core Client Indicator'!$A$3:$A$351, 0), MATCH(Selection_Hide2!M$5, 'Full set Core Client Indicator'!$A$3:$AB$3, 0))), \"\")","v":""},{"$f":"IF(M16<>\"\", IF(INDEX('Full set Core Client Indicator'!$A$3:$AB$351, MATCH(Selection_Hide2!$A16, 'Full set Core Client Indicator'!$A$3:$A$351, 0), MATCH(Selection_Hide2!N$5, 'Full set Core Client Indicator'!$A$3:$AB$3, 0))=\"\", \"\",  INDEX('Full set Core Client Indicator'!$A$3:$AB$351, MATCH(Selection_Hide2!$A16, 'Full set Core Client Indicator'!$A$3:$A$351, 0), MATCH(Selection_Hide2!N$5, 'Full set Core Client Indicator'!$A$3:$AB$3, 0))), \"\")","v":""},{"$f":"IF(N16<>\"\", IF(INDEX('Full set Core Client Indicator'!$A$3:$AB$351, MATCH(Selection_Hide2!$A16, 'Full set Core Client Indicator'!$A$3:$A$351, 0), MATCH(Selection_Hide2!O$5, 'Full set Core Client Indicator'!$A$3:$AB$3, 0))=\"\", \"\",  INDEX('Full set Core Client Indicator'!$A$3:$AB$351, MATCH(Selection_Hide2!$A16, 'Full set Core Client Indicator'!$A$3:$A$351, 0), MATCH(Selection_Hide2!O$5, 'Full set Core Client Indicator'!$A$3:$AB$3, 0))), \"\")","v":""},{"$f":"IF(O16<>\"\", IF(INDEX('Full set Core Client Indicator'!$A$3:$AB$351, MATCH(Selection_Hide2!$A16, 'Full set Core Client Indicator'!$A$3:$A$351, 0), MATCH(Selection_Hide2!P$5, 'Full set Core Client Indicator'!$A$3:$AB$3, 0))=\"\", \"\",  INDEX('Full set Core Client Indicator'!$A$3:$AB$351, MATCH(Selection_Hide2!$A16, 'Full set Core Client Indicator'!$A$3:$A$351, 0), MATCH(Selection_Hide2!P$5, 'Full set Core Client Indicator'!$A$3:$AB$3, 0))), \"\")","v":""},{"$f":"IF(P16<>\"\", IF(INDEX('Full set Core Client Indicator'!$A$3:$AB$351, MATCH(Selection_Hide2!$A16, 'Full set Core Client Indicator'!$A$3:$A$351, 0), MATCH(Selection_Hide2!Q$5, 'Full set Core Client Indicator'!$A$3:$AB$3, 0))=\"\", \"\",  INDEX('Full set Core Client Indicator'!$A$3:$AB$351, MATCH(Selection_Hide2!$A16, 'Full set Core Client Indicator'!$A$3:$A$351, 0), MATCH(Selection_Hide2!Q$5, 'Full set Core Client Indicator'!$A$3:$AB$3, 0))), \"\")","v":""},{"$f":"IF(Q16<>\"\", IF(INDEX('Full set Core Client Indicator'!$A$3:$AB$351, MATCH(Selection_Hide2!$A16, 'Full set Core Client Indicator'!$A$3:$A$351, 0), MATCH(Selection_Hide2!R$5, 'Full set Core Client Indicator'!$A$3:$AB$3, 0))=\"\", \"\",  INDEX('Full set Core Client Indicator'!$A$3:$AB$351, MATCH(Selection_Hide2!$A16, 'Full set Core Client Indicator'!$A$3:$A$351, 0), MATCH(Selection_Hide2!R$5, 'Full set Core Client Indicator'!$A$3:$AB$3, 0))), \"\")","v":""},{"$f":"IF(R16<>\"\", IF(INDEX('Full set Core Client Indicator'!$A$3:$AB$351, MATCH(Selection_Hide2!$A16, 'Full set Core Client Indicator'!$A$3:$A$351, 0), MATCH(Selection_Hide2!S$5, 'Full set Core Client Indicator'!$A$3:$AB$3, 0))=\"\", \"\",  INDEX('Full set Core Client Indicator'!$A$3:$AB$351, MATCH(Selection_Hide2!$A16, 'Full set Core Client Indicator'!$A$3:$A$351, 0), MATCH(Selection_Hide2!S$5, 'Full set Core Client Indicator'!$A$3:$AB$3, 0))), \"\")","v":""},{"$f":"IF(S16<>\"\", IF(INDEX('Full set Core Client Indicator'!$A$3:$AB$351, MATCH(Selection_Hide2!$A16, 'Full set Core Client Indicator'!$A$3:$A$351, 0), MATCH(Selection_Hide2!T$5, 'Full set Core Client Indicator'!$A$3:$AB$3, 0))=\"\", \"\",  INDEX('Full set Core Client Indicator'!$A$3:$AB$351, MATCH(Selection_Hide2!$A16, 'Full set Core Client Indicator'!$A$3:$A$351, 0), MATCH(Selection_Hide2!T$5, 'Full set Core Client Indicator'!$A$3:$AB$3, 0))), \"\")","v":""},{"$f":"IF(T16<>\"\", IF(INDEX('Full set Core Client Indicator'!$A$3:$AB$351, MATCH(Selection_Hide2!$A16, 'Full set Core Client Indicator'!$A$3:$A$351, 0), MATCH(Selection_Hide2!U$5, 'Full set Core Client Indicator'!$A$3:$AB$3, 0))=\"\", \"\",  INDEX('Full set Core Client Indicator'!$A$3:$AB$351, MATCH(Selection_Hide2!$A16, 'Full set Core Client Indicator'!$A$3:$A$351, 0), MATCH(Selection_Hide2!U$5, 'Full set Core Client Indicator'!$A$3:$AB$3, 0))), \"\")","v":""},{"$f":"IF(U16<>\"\", IF(INDEX('Full set Core Client Indicator'!$A$3:$AB$351, MATCH(Selection_Hide2!$A16, 'Full set Core Client Indicator'!$A$3:$A$351, 0), MATCH(Selection_Hide2!V$5, 'Full set Core Client Indicator'!$A$3:$AB$3, 0))=\"\", \"\",  INDEX('Full set Core Client Indicator'!$A$3:$AB$351, MATCH(Selection_Hide2!$A16, 'Full set Core Client Indicator'!$A$3:$A$351, 0), MATCH(Selection_Hide2!V$5, 'Full set Core Client Indicator'!$A$3:$AB$3, 0))), \"\")","v":""},{"$f":"IF(V16<>\"\", IF(INDEX('Full set Core Client Indicator'!$A$3:$AB$351, MATCH(Selection_Hide2!$A16, 'Full set Core Client Indicator'!$A$3:$A$351, 0), MATCH(Selection_Hide2!W$5, 'Full set Core Client Indicator'!$A$3:$AB$3, 0))=\"\", \"\",  INDEX('Full set Core Client Indicator'!$A$3:$AB$351, MATCH(Selection_Hide2!$A16, 'Full set Core Client Indicator'!$A$3:$A$351, 0), MATCH(Selection_Hide2!W$5, 'Full set Core Client Indicator'!$A$3:$AB$3, 0))), \"\")","v":""},{"$f":"IF(W16<>\"\", IF(INDEX('Full set Core Client Indicator'!$A$3:$AB$351, MATCH(Selection_Hide2!$A16, 'Full set Core Client Indicator'!$A$3:$A$351, 0), MATCH(Selection_Hide2!X$5, 'Full set Core Client Indicator'!$A$3:$AB$3, 0))=\"\", \"\",  INDEX('Full set Core Client Indicator'!$A$3:$AB$351, MATCH(Selection_Hide2!$A16, 'Full set Core Client Indicator'!$A$3:$A$351, 0), MATCH(Selection_Hide2!X$5, 'Full set Core Client Indicator'!$A$3:$AB$3, 0))), \"\")","v":""},{"$f":"IF(X16<>\"\", IF(INDEX('Full set Core Client Indicator'!$A$3:$AB$351, MATCH(Selection_Hide2!$A16, 'Full set Core Client Indicator'!$A$3:$A$351, 0), MATCH(Selection_Hide2!Y$5, 'Full set Core Client Indicator'!$A$3:$AB$3, 0))=\"\", \"\",  INDEX('Full set Core Client Indicator'!$A$3:$AB$351, MATCH(Selection_Hide2!$A16, 'Full set Core Client Indicator'!$A$3:$A$351, 0), MATCH(Selection_Hide2!Y$5, 'Full set Core Client Indicator'!$A$3:$AB$3, 0))), \"\")","v":""},{"$f":"IF(Y16<>\"\", IF(INDEX('Full set Core Client Indicator'!$A$3:$AB$351, MATCH(Selection_Hide2!$A16, 'Full set Core Client Indicator'!$A$3:$A$351, 0), MATCH(Selection_Hide2!Z$5, 'Full set Core Client Indicator'!$A$3:$AB$3, 0))=\"\", \"\",  INDEX('Full set Core Client Indicator'!$A$3:$AB$351, MATCH(Selection_Hide2!$A16, 'Full set Core Client Indicator'!$A$3:$A$351, 0), MATCH(Selection_Hide2!Z$5, 'Full set Core Client Indicator'!$A$3:$AB$3, 0))), \"\")","v":""},{"$f":"IF(Z16<>\"\", IF(INDEX('Full set Core Client Indicator'!$A$3:$AB$351, MATCH(Selection_Hide2!$A16, 'Full set Core Client Indicator'!$A$3:$A$351, 0), MATCH(Selection_Hide2!AA$5, 'Full set Core Client Indicator'!$A$3:$AB$3, 0))=\"\", \"\",  INDEX('Full set Core Client Indicator'!$A$3:$AB$351, MATCH(Selection_Hide2!$A16, 'Full set Core Client Indicator'!$A$3:$A$351, 0), MATCH(Selection_Hide2!AA$5, 'Full set Core Client Indicator'!$A$3:$AB$3, 0))), \"\")","v":""},{"$f":"IF(AA16<>\"\", IF(INDEX('Full set Core Client Indicator'!$A$3:$AB$351, MATCH(Selection_Hide2!$A16, 'Full set Core Client Indicator'!$A$3:$A$351, 0), MATCH(Selection_Hide2!AB$5, 'Full set Core Client Indicator'!$A$3:$AB$3, 0))=\"\", \"\",  INDEX('Full set Core Client Indicator'!$A$3:$AB$351, MATCH(Selection_Hide2!$A16, 'Full set Core Client Indicator'!$A$3:$A$351, 0), MATCH(Selection_Hide2!AB$5, 'Full set Core Client Indicator'!$A$3:$AB$3, 0))), \"\")","v":""}]
[{"$f":"IF(AND(Selection_Hide1!C15<>0, Selection_Hide1!C15<>\"Grand Total\"), Selection_Hide1!C15, \"\")","v":"297"},{"$f":"IF(A17<>\"\", IF(INDEX('Full set Core Client Indicator'!$A$3:$AB$351, MATCH(Selection_Hide2!$A17, 'Full set Core Client Indicator'!$A$3:$A$351, 0), MATCH(Selection_Hide2!B$5, 'Full set Core Client Indicator'!$A$3:$AB$3, 0))=\"\", \"\",  INDEX('Full set Core Client Indicator'!$A$3:$AB$351, MATCH(Selection_Hide2!$A17, 'Full set Core Client Indicator'!$A$3:$A$351, 0), MATCH(Selection_Hide2!B$5, 'Full set Core Client Indicator'!$A$3:$AB$3, 0))), \"\")","v":"Health"},{"$f":"IF(B17<>\"\", IF(INDEX('Full set Core Client Indicator'!$A$3:$AB$351, MATCH(Selection_Hide2!$A17, 'Full set Core Client Indicator'!$A$3:$A$351, 0), MATCH(Selection_Hide2!C$5, 'Full set Core Client Indicator'!$A$3:$AB$3, 0))=\"\", \"\",  INDEX('Full set Core Client Indicator'!$A$3:$AB$351, MATCH(Selection_Hide2!$A17, 'Full set Core Client Indicator'!$A$3:$A$351, 0), MATCH(Selection_Hide2!C$5, 'Full set Core Client Indicator'!$A$3:$AB$3, 0))), \"\")","v":"Aboriginal people heal from inter-generational trauma and loss"},{"$f":"IF(C17<>\"\", IF(INDEX('Full set Core Client Indicator'!$A$3:$AB$351, MATCH(Selection_Hide2!$A17, 'Full set Core Client Indicator'!$A$3:$A$351, 0), MATCH(Selection_Hide2!D$5, 'Full set Core Client Indicator'!$A$3:$AB$3, 0))=\"\", \"\",  INDEX('Full set Core Client Indicator'!$A$3:$AB$351, MATCH(Selection_Hide2!$A17, 'Full set Core Client Indicator'!$A$3:$A$351, 0), MATCH(Selection_Hide2!D$5, 'Full set Core Client Indicator'!$A$3:$AB$3, 0))), \"\")","v":"Proportion (%) of Aboriginal people who report that they know when and where to seek culturally appropriate support to prevent escalation to crisis"},{"$f":"IF(D17<>\"\", IF(INDEX('Full set Core Client Indicator'!$A$3:$AB$351, MATCH(Selection_Hide2!$A17, 'Full set Core Client Indicator'!$A$3:$A$351, 0), MATCH(Selection_Hide2!E$5, 'Full set Core Client Indicator'!$A$3:$AB$3, 0))=\"\", \"\",  INDEX('Full set Core Client Indicator'!$A$3:$AB$351, MATCH(Selection_Hide2!$A17, 'Full set Core Client Indicator'!$A$3:$A$351, 0), MATCH(Selection_Hide2!E$5, 'Full set Core Client Indicator'!$A$3:$AB$3, 0))), \"\")","v":"No measure identified"},{"$f":"IF(E17<>\"\", IF(INDEX('Full set Core Client Indicator'!$A$3:$AB$351, MATCH(Selection_Hide2!$A17, 'Full set Core Client Indicator'!$A$3:$A$351, 0), MATCH(Selection_Hide2!F$5, 'Full set Core Client Indicator'!$A$3:$AB$3, 0))=\"\", \"\",  INDEX('Full set Core Client Indicator'!$A$3:$AB$351, MATCH(Selection_Hide2!$A17, 'Full set Core Client Indicator'!$A$3:$A$351, 0), MATCH(Selection_Hide2!F$5, 'Full set Core Client Indicator'!$A$3:$AB$3, 0))), \"\")","v":"Evidence development required"},{"$f":"IF(F17<>\"\", IF(INDEX('Full set Core Client Indicator'!$A$3:$AB$351, MATCH(Selection_Hide2!$A17, 'Full set Core Client Indicator'!$A$3:$A$351, 0), MATCH(Selection_Hide2!G$5, 'Full set Core Client Indicator'!$A$3:$AB$3, 0))=\"\", \"\",  INDEX('Full set Core Client Indicator'!$A$3:$AB$351, MATCH(Selection_Hide2!$A17, 'Full set Core Client Indicator'!$A$3:$A$351, 0), MATCH(Selection_Hide2!G$5, 'Full set Core Client Indicator'!$A$3:$AB$3, 0))), \"\")","v":"New data"},{"$f":"IF(G17<>\"\", IF(INDEX('Full set Core Client Indicator'!$A$3:$AB$351, MATCH(Selection_Hide2!$A17, 'Full set Core Client Indicator'!$A$3:$A$351, 0), MATCH(Selection_Hide2!H$5, 'Full set Core Client Indicator'!$A$3:$AB$3, 0))=\"\", \"\",  INDEX('Full set Core Client Indicator'!$A$3:$AB$351, MATCH(Selection_Hide2!$A17, 'Full set Core Client Indicator'!$A$3:$A$351, 0), MATCH(Selection_Hide2!H$5, 'Full set Core Client Indicator'!$A$3:$AB$3, 0))), \"\")","v":"No data source"},{"$f":"IF(H17<>\"\", IF(INDEX('Full set Core Client Indicator'!$A$3:$AB$351, MATCH(Selection_Hide2!$A17, 'Full set Core Client Indicator'!$A$3:$A$351, 0), MATCH(Selection_Hide2!I$5, 'Full set Core Client Indicator'!$A$3:$AB$3, 0))=\"\", \"\",  INDEX('Full set Core Client Indicator'!$A$3:$AB$351, MATCH(Selection_Hide2!$A17, 'Full set Core Client Indicator'!$A$3:$A$351, 0), MATCH(Selection_Hide2!I$5, 'Full set Core Client Indicator'!$A$3:$AB$3, 0))), \"\")","v":""},{"$f":"IF(I17<>\"\", IF(INDEX('Full set Core Client Indicator'!$A$3:$AB$351, MATCH(Selection_Hide2!$A17, 'Full set Core Client Indicator'!$A$3:$A$351, 0), MATCH(Selection_Hide2!J$5, 'Full set Core Client Indicator'!$A$3:$AB$3, 0))=\"\", \"\",  INDEX('Full set Core Client Indicator'!$A$3:$AB$351, MATCH(Selection_Hide2!$A17, 'Full set Core Client Indicator'!$A$3:$A$351, 0), MATCH(Selection_Hide2!J$5, 'Full set Core Client Indicator'!$A$3:$AB$3, 0))), \"\")","v":""},{"$f":"IF(J17<>\"\", IF(INDEX('Full set Core Client Indicator'!$A$3:$AB$351, MATCH(Selection_Hide2!$A17, 'Full set Core Client Indicator'!$A$3:$A$351, 0), MATCH(Selection_Hide2!K$5, 'Full set Core Client Indicator'!$A$3:$AB$3, 0))=\"\", \"\",  INDEX('Full set Core Client Indicator'!$A$3:$AB$351, MATCH(Selection_Hide2!$A17, 'Full set Core Client Indicator'!$A$3:$A$351, 0), MATCH(Selection_Hide2!K$5, 'Full set Core Client Indicator'!$A$3:$AB$3, 0))), \"\")","v":""},{"$f":"IF(K17<>\"\", IF(INDEX('Full set Core Client Indicator'!$A$3:$AB$351, MATCH(Selection_Hide2!$A17, 'Full set Core Client Indicator'!$A$3:$A$351, 0), MATCH(Selection_Hide2!L$5, 'Full set Core Client Indicator'!$A$3:$AB$3, 0))=\"\", \"\",  INDEX('Full set Core Client Indicator'!$A$3:$AB$351, MATCH(Selection_Hide2!$A17, 'Full set Core Client Indicator'!$A$3:$A$351, 0), MATCH(Selection_Hide2!L$5, 'Full set Core Client Indicator'!$A$3:$AB$3, 0))), \"\")","v":""},{"$f":"IF(L17<>\"\", IF(INDEX('Full set Core Client Indicator'!$A$3:$AB$351, MATCH(Selection_Hide2!$A17, 'Full set Core Client Indicator'!$A$3:$A$351, 0), MATCH(Selection_Hide2!M$5, 'Full set Core Client Indicator'!$A$3:$AB$3, 0))=\"\", \"\",  INDEX('Full set Core Client Indicator'!$A$3:$AB$351, MATCH(Selection_Hide2!$A17, 'Full set Core Client Indicator'!$A$3:$A$351, 0), MATCH(Selection_Hide2!M$5, 'Full set Core Client Indicator'!$A$3:$AB$3, 0))), \"\")","v":""},{"$f":"IF(M17<>\"\", IF(INDEX('Full set Core Client Indicator'!$A$3:$AB$351, MATCH(Selection_Hide2!$A17, 'Full set Core Client Indicator'!$A$3:$A$351, 0), MATCH(Selection_Hide2!N$5, 'Full set Core Client Indicator'!$A$3:$AB$3, 0))=\"\", \"\",  INDEX('Full set Core Client Indicator'!$A$3:$AB$351, MATCH(Selection_Hide2!$A17, 'Full set Core Client Indicator'!$A$3:$A$351, 0), MATCH(Selection_Hide2!N$5, 'Full set Core Client Indicator'!$A$3:$AB$3, 0))), \"\")","v":""},{"$f":"IF(N17<>\"\", IF(INDEX('Full set Core Client Indicator'!$A$3:$AB$351, MATCH(Selection_Hide2!$A17, 'Full set Core Client Indicator'!$A$3:$A$351, 0), MATCH(Selection_Hide2!O$5, 'Full set Core Client Indicator'!$A$3:$AB$3, 0))=\"\", \"\",  INDEX('Full set Core Client Indicator'!$A$3:$AB$351, MATCH(Selection_Hide2!$A17, 'Full set Core Client Indicator'!$A$3:$A$351, 0), MATCH(Selection_Hide2!O$5, 'Full set Core Client Indicator'!$A$3:$AB$3, 0))), \"\")","v":""},{"$f":"IF(O17<>\"\", IF(INDEX('Full set Core Client Indicator'!$A$3:$AB$351, MATCH(Selection_Hide2!$A17, 'Full set Core Client Indicator'!$A$3:$A$351, 0), MATCH(Selection_Hide2!P$5, 'Full set Core Client Indicator'!$A$3:$AB$3, 0))=\"\", \"\",  INDEX('Full set Core Client Indicator'!$A$3:$AB$351, MATCH(Selection_Hide2!$A17, 'Full set Core Client Indicator'!$A$3:$A$351, 0), MATCH(Selection_Hide2!P$5, 'Full set Core Client Indicator'!$A$3:$AB$3, 0))), \"\")","v":""},{"$f":"IF(P17<>\"\", IF(INDEX('Full set Core Client Indicator'!$A$3:$AB$351, MATCH(Selection_Hide2!$A17, 'Full set Core Client Indicator'!$A$3:$A$351, 0), MATCH(Selection_Hide2!Q$5, 'Full set Core Client Indicator'!$A$3:$AB$3, 0))=\"\", \"\",  INDEX('Full set Core Client Indicator'!$A$3:$AB$351, MATCH(Selection_Hide2!$A17, 'Full set Core Client Indicator'!$A$3:$A$351, 0), MATCH(Selection_Hide2!Q$5, 'Full set Core Client Indicator'!$A$3:$AB$3, 0))), \"\")","v":""},{"$f":"IF(Q17<>\"\", IF(INDEX('Full set Core Client Indicator'!$A$3:$AB$351, MATCH(Selection_Hide2!$A17, 'Full set Core Client Indicator'!$A$3:$A$351, 0), MATCH(Selection_Hide2!R$5, 'Full set Core Client Indicator'!$A$3:$AB$3, 0))=\"\", \"\",  INDEX('Full set Core Client Indicator'!$A$3:$AB$351, MATCH(Selection_Hide2!$A17, 'Full set Core Client Indicator'!$A$3:$A$351, 0), MATCH(Selection_Hide2!R$5, 'Full set Core Client Indicator'!$A$3:$AB$3, 0))), \"\")","v":""},{"$f":"IF(R17<>\"\", IF(INDEX('Full set Core Client Indicator'!$A$3:$AB$351, MATCH(Selection_Hide2!$A17, 'Full set Core Client Indicator'!$A$3:$A$351, 0), MATCH(Selection_Hide2!S$5, 'Full set Core Client Indicator'!$A$3:$AB$3, 0))=\"\", \"\",  INDEX('Full set Core Client Indicator'!$A$3:$AB$351, MATCH(Selection_Hide2!$A17, 'Full set Core Client Indicator'!$A$3:$A$351, 0), MATCH(Selection_Hide2!S$5, 'Full set Core Client Indicator'!$A$3:$AB$3, 0))), \"\")","v":""},{"$f":"IF(S17<>\"\", IF(INDEX('Full set Core Client Indicator'!$A$3:$AB$351, MATCH(Selection_Hide2!$A17, 'Full set Core Client Indicator'!$A$3:$A$351, 0), MATCH(Selection_Hide2!T$5, 'Full set Core Client Indicator'!$A$3:$AB$3, 0))=\"\", \"\",  INDEX('Full set Core Client Indicator'!$A$3:$AB$351, MATCH(Selection_Hide2!$A17, 'Full set Core Client Indicator'!$A$3:$A$351, 0), MATCH(Selection_Hide2!T$5, 'Full set Core Client Indicator'!$A$3:$AB$3, 0))), \"\")","v":""},{"$f":"IF(T17<>\"\", IF(INDEX('Full set Core Client Indicator'!$A$3:$AB$351, MATCH(Selection_Hide2!$A17, 'Full set Core Client Indicator'!$A$3:$A$351, 0), MATCH(Selection_Hide2!U$5, 'Full set Core Client Indicator'!$A$3:$AB$3, 0))=\"\", \"\",  INDEX('Full set Core Client Indicator'!$A$3:$AB$351, MATCH(Selection_Hide2!$A17, 'Full set Core Client Indicator'!$A$3:$A$351, 0), MATCH(Selection_Hide2!U$5, 'Full set Core Client Indicator'!$A$3:$AB$3, 0))), \"\")","v":""},{"$f":"IF(U17<>\"\", IF(INDEX('Full set Core Client Indicator'!$A$3:$AB$351, MATCH(Selection_Hide2!$A17, 'Full set Core Client Indicator'!$A$3:$A$351, 0), MATCH(Selection_Hide2!V$5, 'Full set Core Client Indicator'!$A$3:$AB$3, 0))=\"\", \"\",  INDEX('Full set Core Client Indicator'!$A$3:$AB$351, MATCH(Selection_Hide2!$A17, 'Full set Core Client Indicator'!$A$3:$A$351, 0), MATCH(Selection_Hide2!V$5, 'Full set Core Client Indicator'!$A$3:$AB$3, 0))), \"\")","v":""},{"$f":"IF(V17<>\"\", IF(INDEX('Full set Core Client Indicator'!$A$3:$AB$351, MATCH(Selection_Hide2!$A17, 'Full set Core Client Indicator'!$A$3:$A$351, 0), MATCH(Selection_Hide2!W$5, 'Full set Core Client Indicator'!$A$3:$AB$3, 0))=\"\", \"\",  INDEX('Full set Core Client Indicator'!$A$3:$AB$351, MATCH(Selection_Hide2!$A17, 'Full set Core Client Indicator'!$A$3:$A$351, 0), MATCH(Selection_Hide2!W$5, 'Full set Core Client Indicator'!$A$3:$AB$3, 0))), \"\")","v":""},{"$f":"IF(W17<>\"\", IF(INDEX('Full set Core Client Indicator'!$A$3:$AB$351, MATCH(Selection_Hide2!$A17, 'Full set Core Client Indicator'!$A$3:$A$351, 0), MATCH(Selection_Hide2!X$5, 'Full set Core Client Indicator'!$A$3:$AB$3, 0))=\"\", \"\",  INDEX('Full set Core Client Indicator'!$A$3:$AB$351, MATCH(Selection_Hide2!$A17, 'Full set Core Client Indicator'!$A$3:$A$351, 0), MATCH(Selection_Hide2!X$5, 'Full set Core Client Indicator'!$A$3:$AB$3, 0))), \"\")","v":""},{"$f":"IF(X17<>\"\", IF(INDEX('Full set Core Client Indicator'!$A$3:$AB$351, MATCH(Selection_Hide2!$A17, 'Full set Core Client Indicator'!$A$3:$A$351, 0), MATCH(Selection_Hide2!Y$5, 'Full set Core Client Indicator'!$A$3:$AB$3, 0))=\"\", \"\",  INDEX('Full set Core Client Indicator'!$A$3:$AB$351, MATCH(Selection_Hide2!$A17, 'Full set Core Client Indicator'!$A$3:$A$351, 0), MATCH(Selection_Hide2!Y$5, 'Full set Core Client Indicator'!$A$3:$AB$3, 0))), \"\")","v":""},{"$f":"IF(Y17<>\"\", IF(INDEX('Full set Core Client Indicator'!$A$3:$AB$351, MATCH(Selection_Hide2!$A17, 'Full set Core Client Indicator'!$A$3:$A$351, 0), MATCH(Selection_Hide2!Z$5, 'Full set Core Client Indicator'!$A$3:$AB$3, 0))=\"\", \"\",  INDEX('Full set Core Client Indicator'!$A$3:$AB$351, MATCH(Selection_Hide2!$A17, 'Full set Core Client Indicator'!$A$3:$A$351, 0), MATCH(Selection_Hide2!Z$5, 'Full set Core Client Indicator'!$A$3:$AB$3, 0))), \"\")","v":""},{"$f":"IF(Z17<>\"\", IF(INDEX('Full set Core Client Indicator'!$A$3:$AB$351, MATCH(Selection_Hide2!$A17, 'Full set Core Client Indicator'!$A$3:$A$351, 0), MATCH(Selection_Hide2!AA$5, 'Full set Core Client Indicator'!$A$3:$AB$3, 0))=\"\", \"\",  INDEX('Full set Core Client Indicator'!$A$3:$AB$351, MATCH(Selection_Hide2!$A17, 'Full set Core Client Indicator'!$A$3:$A$351, 0), MATCH(Selection_Hide2!AA$5, 'Full set Core Client Indicator'!$A$3:$AB$3, 0))), \"\")","v":""},{"$f":"IF(AA17<>\"\", IF(INDEX('Full set Core Client Indicator'!$A$3:$AB$351, MATCH(Selection_Hide2!$A17, 'Full set Core Client Indicator'!$A$3:$A$351, 0), MATCH(Selection_Hide2!AB$5, 'Full set Core Client Indicator'!$A$3:$AB$3, 0))=\"\", \"\",  INDEX('Full set Core Client Indicator'!$A$3:$AB$351, MATCH(Selection_Hide2!$A17, 'Full set Core Client Indicator'!$A$3:$A$351, 0), MATCH(Selection_Hide2!AB$5, 'Full set Core Client Indicator'!$A$3:$AB$3, 0))), \"\")","v":""}]
[{"$f":"IF(AND(Selection_Hide1!C16<>0, Selection_Hide1!C16<>\"Grand Total\"), Selection_Hide1!C16, \"\")","v":"308"},{"$f":"IF(A18<>\"\", IF(INDEX('Full set Core Client Indicator'!$A$3:$AB$351, MATCH(Selection_Hide2!$A18, 'Full set Core Client Indicator'!$A$3:$A$351, 0), MATCH(Selection_Hide2!B$5, 'Full set Core Client Indicator'!$A$3:$AB$3, 0))=\"\", \"\",  INDEX('Full set Core Client Indicator'!$A$3:$AB$351, MATCH(Selection_Hide2!$A18, 'Full set Core Client Indicator'!$A$3:$A$351, 0), MATCH(Selection_Hide2!B$5, 'Full set Core Client Indicator'!$A$3:$AB$3, 0))), \"\")","v":"Health"},{"$f":"IF(B18<>\"\", IF(INDEX('Full set Core Client Indicator'!$A$3:$AB$351, MATCH(Selection_Hide2!$A18, 'Full set Core Client Indicator'!$A$3:$A$351, 0), MATCH(Selection_Hide2!C$5, 'Full set Core Client Indicator'!$A$3:$AB$3, 0))=\"\", \"\",  INDEX('Full set Core Client Indicator'!$A$3:$AB$351, MATCH(Selection_Hide2!$A18, 'Full set Core Client Indicator'!$A$3:$A$351, 0), MATCH(Selection_Hide2!C$5, 'Full set Core Client Indicator'!$A$3:$AB$3, 0))), \"\")","v":"Mothers have healthy pregnancies and babies have good birth outcomes"},{"$f":"IF(C18<>\"\", IF(INDEX('Full set Core Client Indicator'!$A$3:$AB$351, MATCH(Selection_Hide2!$A18, 'Full set Core Client Indicator'!$A$3:$A$351, 0), MATCH(Selection_Hide2!D$5, 'Full set Core Client Indicator'!$A$3:$AB$3, 0))=\"\", \"\",  INDEX('Full set Core Client Indicator'!$A$3:$AB$351, MATCH(Selection_Hide2!$A18, 'Full set Core Client Indicator'!$A$3:$A$351, 0), MATCH(Selection_Hide2!D$5, 'Full set Core Client Indicator'!$A$3:$AB$3, 0))), \"\")","v":"Proportion (%) of mothers who experience high levels of maternal stress"},{"$f":"IF(D18<>\"\", IF(INDEX('Full set Core Client Indicator'!$A$3:$AB$351, MATCH(Selection_Hide2!$A18, 'Full set Core Client Indicator'!$A$3:$A$351, 0), MATCH(Selection_Hide2!E$5, 'Full set Core Client Indicator'!$A$3:$AB$3, 0))=\"\", \"\",  INDEX('Full set Core Client Indicator'!$A$3:$AB$351, MATCH(Selection_Hide2!$A18, 'Full set Core Client Indicator'!$A$3:$A$351, 0), MATCH(Selection_Hide2!E$5, 'Full set Core Client Indicator'!$A$3:$AB$3, 0))), \"\")","v":"No measure identified"},{"$f":"IF(E18<>\"\", IF(INDEX('Full set Core Client Indicator'!$A$3:$AB$351, MATCH(Selection_Hide2!$A18, 'Full set Core Client Indicator'!$A$3:$A$351, 0), MATCH(Selection_Hide2!F$5, 'Full set Core Client Indicator'!$A$3:$AB$3, 0))=\"\", \"\",  INDEX('Full set Core Client Indicator'!$A$3:$AB$351, MATCH(Selection_Hide2!$A18, 'Full set Core Client Indicator'!$A$3:$A$351, 0), MATCH(Selection_Hide2!F$5, 'Full set Core Client Indicator'!$A$3:$AB$3, 0))), \"\")","v":"Evidence development required"},{"$f":"IF(F18<>\"\", IF(INDEX('Full set Core Client Indicator'!$A$3:$AB$351, MATCH(Selection_Hide2!$A18, 'Full set Core Client Indicator'!$A$3:$A$351, 0), MATCH(Selection_Hide2!G$5, 'Full set Core Client Indicator'!$A$3:$AB$3, 0))=\"\", \"\",  INDEX('Full set Core Client Indicator'!$A$3:$AB$351, MATCH(Selection_Hide2!$A18, 'Full set Core Client Indicator'!$A$3:$A$351, 0), MATCH(Selection_Hide2!G$5, 'Full set Core Client Indicator'!$A$3:$AB$3, 0))), \"\")","v":"New data"},{"$f":"IF(G18<>\"\", IF(INDEX('Full set Core Client Indicator'!$A$3:$AB$351, MATCH(Selection_Hide2!$A18, 'Full set Core Client Indicator'!$A$3:$A$351, 0), MATCH(Selection_Hide2!H$5, 'Full set Core Client Indicator'!$A$3:$AB$3, 0))=\"\", \"\",  INDEX('Full set Core Client Indicator'!$A$3:$AB$351, MATCH(Selection_Hide2!$A18, 'Full set Core Client Indicator'!$A$3:$A$351, 0), MATCH(Selection_Hide2!H$5, 'Full set Core Client Indicator'!$A$3:$AB$3, 0))), \"\")","v":"No data source"},{"$f":"IF(H18<>\"\", IF(INDEX('Full set Core Client Indicator'!$A$3:$AB$351, MATCH(Selection_Hide2!$A18, 'Full set Core Client Indicator'!$A$3:$A$351, 0), MATCH(Selection_Hide2!I$5, 'Full set Core Client Indicator'!$A$3:$AB$3, 0))=\"\", \"\",  INDEX('Full set Core Client Indicator'!$A$3:$AB$351, MATCH(Selection_Hide2!$A18, 'Full set Core Client Indicator'!$A$3:$A$351, 0), MATCH(Selection_Hide2!I$5, 'Full set Core Client Indicator'!$A$3:$AB$3, 0))), \"\")","v":""},{"$f":"IF(I18<>\"\", IF(INDEX('Full set Core Client Indicator'!$A$3:$AB$351, MATCH(Selection_Hide2!$A18, 'Full set Core Client Indicator'!$A$3:$A$351, 0), MATCH(Selection_Hide2!J$5, 'Full set Core Client Indicator'!$A$3:$AB$3, 0))=\"\", \"\",  INDEX('Full set Core Client Indicator'!$A$3:$AB$351, MATCH(Selection_Hide2!$A18, 'Full set Core Client Indicator'!$A$3:$A$351, 0), MATCH(Selection_Hide2!J$5, 'Full set Core Client Indicator'!$A$3:$AB$3, 0))), \"\")","v":""},{"$f":"IF(J18<>\"\", IF(INDEX('Full set Core Client Indicator'!$A$3:$AB$351, MATCH(Selection_Hide2!$A18, 'Full set Core Client Indicator'!$A$3:$A$351, 0), MATCH(Selection_Hide2!K$5, 'Full set Core Client Indicator'!$A$3:$AB$3, 0))=\"\", \"\",  INDEX('Full set Core Client Indicator'!$A$3:$AB$351, MATCH(Selection_Hide2!$A18, 'Full set Core Client Indicator'!$A$3:$A$351, 0), MATCH(Selection_Hide2!K$5, 'Full set Core Client Indicator'!$A$3:$AB$3, 0))), \"\")","v":""},{"$f":"IF(K18<>\"\", IF(INDEX('Full set Core Client Indicator'!$A$3:$AB$351, MATCH(Selection_Hide2!$A18, 'Full set Core Client Indicator'!$A$3:$A$351, 0), MATCH(Selection_Hide2!L$5, 'Full set Core Client Indicator'!$A$3:$AB$3, 0))=\"\", \"\",  INDEX('Full set Core Client Indicator'!$A$3:$AB$351, MATCH(Selection_Hide2!$A18, 'Full set Core Client Indicator'!$A$3:$A$351, 0), MATCH(Selection_Hide2!L$5, 'Full set Core Client Indicator'!$A$3:$AB$3, 0))), \"\")","v":""},{"$f":"IF(L18<>\"\", IF(INDEX('Full set Core Client Indicator'!$A$3:$AB$351, MATCH(Selection_Hide2!$A18, 'Full set Core Client Indicator'!$A$3:$A$351, 0), MATCH(Selection_Hide2!M$5, 'Full set Core Client Indicator'!$A$3:$AB$3, 0))=\"\", \"\",  INDEX('Full set Core Client Indicator'!$A$3:$AB$351, MATCH(Selection_Hide2!$A18, 'Full set Core Client Indicator'!$A$3:$A$351, 0), MATCH(Selection_Hide2!M$5, 'Full set Core Client Indicator'!$A$3:$AB$3, 0))), \"\")","v":""},{"$f":"IF(M18<>\"\", IF(INDEX('Full set Core Client Indicator'!$A$3:$AB$351, MATCH(Selection_Hide2!$A18, 'Full set Core Client Indicator'!$A$3:$A$351, 0), MATCH(Selection_Hide2!N$5, 'Full set Core Client Indicator'!$A$3:$AB$3, 0))=\"\", \"\",  INDEX('Full set Core Client Indicator'!$A$3:$AB$351, MATCH(Selection_Hide2!$A18, 'Full set Core Client Indicator'!$A$3:$A$351, 0), MATCH(Selection_Hide2!N$5, 'Full set Core Client Indicator'!$A$3:$AB$3, 0))), \"\")","v":""},{"$f":"IF(N18<>\"\", IF(INDEX('Full set Core Client Indicator'!$A$3:$AB$351, MATCH(Selection_Hide2!$A18, 'Full set Core Client Indicator'!$A$3:$A$351, 0), MATCH(Selection_Hide2!O$5, 'Full set Core Client Indicator'!$A$3:$AB$3, 0))=\"\", \"\",  INDEX('Full set Core Client Indicator'!$A$3:$AB$351, MATCH(Selection_Hide2!$A18, 'Full set Core Client Indicator'!$A$3:$A$351, 0), MATCH(Selection_Hide2!O$5, 'Full set Core Client Indicator'!$A$3:$AB$3, 0))), \"\")","v":""},{"$f":"IF(O18<>\"\", IF(INDEX('Full set Core Client Indicator'!$A$3:$AB$351, MATCH(Selection_Hide2!$A18, 'Full set Core Client Indicator'!$A$3:$A$351, 0), MATCH(Selection_Hide2!P$5, 'Full set Core Client Indicator'!$A$3:$AB$3, 0))=\"\", \"\",  INDEX('Full set Core Client Indicator'!$A$3:$AB$351, MATCH(Selection_Hide2!$A18, 'Full set Core Client Indicator'!$A$3:$A$351, 0), MATCH(Selection_Hide2!P$5, 'Full set Core Client Indicator'!$A$3:$AB$3, 0))), \"\")","v":""},{"$f":"IF(P18<>\"\", IF(INDEX('Full set Core Client Indicator'!$A$3:$AB$351, MATCH(Selection_Hide2!$A18, 'Full set Core Client Indicator'!$A$3:$A$351, 0), MATCH(Selection_Hide2!Q$5, 'Full set Core Client Indicator'!$A$3:$AB$3, 0))=\"\", \"\",  INDEX('Full set Core Client Indicator'!$A$3:$AB$351, MATCH(Selection_Hide2!$A18, 'Full set Core Client Indicator'!$A$3:$A$351, 0), MATCH(Selection_Hide2!Q$5, 'Full set Core Client Indicator'!$A$3:$AB$3, 0))), \"\")","v":""},{"$f":"IF(Q18<>\"\", IF(INDEX('Full set Core Client Indicator'!$A$3:$AB$351, MATCH(Selection_Hide2!$A18, 'Full set Core Client Indicator'!$A$3:$A$351, 0), MATCH(Selection_Hide2!R$5, 'Full set Core Client Indicator'!$A$3:$AB$3, 0))=\"\", \"\",  INDEX('Full set Core Client Indicator'!$A$3:$AB$351, MATCH(Selection_Hide2!$A18, 'Full set Core Client Indicator'!$A$3:$A$351, 0), MATCH(Selection_Hide2!R$5, 'Full set Core Client Indicator'!$A$3:$AB$3, 0))), \"\")","v":""},{"$f":"IF(R18<>\"\", IF(INDEX('Full set Core Client Indicator'!$A$3:$AB$351, MATCH(Selection_Hide2!$A18, 'Full set Core Client Indicator'!$A$3:$A$351, 0), MATCH(Selection_Hide2!S$5, 'Full set Core Client Indicator'!$A$3:$AB$3, 0))=\"\", \"\",  INDEX('Full set Core Client Indicator'!$A$3:$AB$351, MATCH(Selection_Hide2!$A18, 'Full set Core Client Indicator'!$A$3:$A$351, 0), MATCH(Selection_Hide2!S$5, 'Full set Core Client Indicator'!$A$3:$AB$3, 0))), \"\")","v":""},{"$f":"IF(S18<>\"\", IF(INDEX('Full set Core Client Indicator'!$A$3:$AB$351, MATCH(Selection_Hide2!$A18, 'Full set Core Client Indicator'!$A$3:$A$351, 0), MATCH(Selection_Hide2!T$5, 'Full set Core Client Indicator'!$A$3:$AB$3, 0))=\"\", \"\",  INDEX('Full set Core Client Indicator'!$A$3:$AB$351, MATCH(Selection_Hide2!$A18, 'Full set Core Client Indicator'!$A$3:$A$351, 0), MATCH(Selection_Hide2!T$5, 'Full set Core Client Indicator'!$A$3:$AB$3, 0))), \"\")","v":""},{"$f":"IF(T18<>\"\", IF(INDEX('Full set Core Client Indicator'!$A$3:$AB$351, MATCH(Selection_Hide2!$A18, 'Full set Core Client Indicator'!$A$3:$A$351, 0), MATCH(Selection_Hide2!U$5, 'Full set Core Client Indicator'!$A$3:$AB$3, 0))=\"\", \"\",  INDEX('Full set Core Client Indicator'!$A$3:$AB$351, MATCH(Selection_Hide2!$A18, 'Full set Core Client Indicator'!$A$3:$A$351, 0), MATCH(Selection_Hide2!U$5, 'Full set Core Client Indicator'!$A$3:$AB$3, 0))), \"\")","v":""},{"$f":"IF(U18<>\"\", IF(INDEX('Full set Core Client Indicator'!$A$3:$AB$351, MATCH(Selection_Hide2!$A18, 'Full set Core Client Indicator'!$A$3:$A$351, 0), MATCH(Selection_Hide2!V$5, 'Full set Core Client Indicator'!$A$3:$AB$3, 0))=\"\", \"\",  INDEX('Full set Core Client Indicator'!$A$3:$AB$351, MATCH(Selection_Hide2!$A18, 'Full set Core Client Indicator'!$A$3:$A$351, 0), MATCH(Selection_Hide2!V$5, 'Full set Core Client Indicator'!$A$3:$AB$3, 0))), \"\")","v":""},{"$f":"IF(V18<>\"\", IF(INDEX('Full set Core Client Indicator'!$A$3:$AB$351, MATCH(Selection_Hide2!$A18, 'Full set Core Client Indicator'!$A$3:$A$351, 0), MATCH(Selection_Hide2!W$5, 'Full set Core Client Indicator'!$A$3:$AB$3, 0))=\"\", \"\",  INDEX('Full set Core Client Indicator'!$A$3:$AB$351, MATCH(Selection_Hide2!$A18, 'Full set Core Client Indicator'!$A$3:$A$351, 0), MATCH(Selection_Hide2!W$5, 'Full set Core Client Indicator'!$A$3:$AB$3, 0))), \"\")","v":""},{"$f":"IF(W18<>\"\", IF(INDEX('Full set Core Client Indicator'!$A$3:$AB$351, MATCH(Selection_Hide2!$A18, 'Full set Core Client Indicator'!$A$3:$A$351, 0), MATCH(Selection_Hide2!X$5, 'Full set Core Client Indicator'!$A$3:$AB$3, 0))=\"\", \"\",  INDEX('Full set Core Client Indicator'!$A$3:$AB$351, MATCH(Selection_Hide2!$A18, 'Full set Core Client Indicator'!$A$3:$A$351, 0), MATCH(Selection_Hide2!X$5, 'Full set Core Client Indicator'!$A$3:$AB$3, 0))), \"\")","v":""},{"$f":"IF(X18<>\"\", IF(INDEX('Full set Core Client Indicator'!$A$3:$AB$351, MATCH(Selection_Hide2!$A18, 'Full set Core Client Indicator'!$A$3:$A$351, 0), MATCH(Selection_Hide2!Y$5, 'Full set Core Client Indicator'!$A$3:$AB$3, 0))=\"\", \"\",  INDEX('Full set Core Client Indicator'!$A$3:$AB$351, MATCH(Selection_Hide2!$A18, 'Full set Core Client Indicator'!$A$3:$A$351, 0), MATCH(Selection_Hide2!Y$5, 'Full set Core Client Indicator'!$A$3:$AB$3, 0))), \"\")","v":""},{"$f":"IF(Y18<>\"\", IF(INDEX('Full set Core Client Indicator'!$A$3:$AB$351, MATCH(Selection_Hide2!$A18, 'Full set Core Client Indicator'!$A$3:$A$351, 0), MATCH(Selection_Hide2!Z$5, 'Full set Core Client Indicator'!$A$3:$AB$3, 0))=\"\", \"\",  INDEX('Full set Core Client Indicator'!$A$3:$AB$351, MATCH(Selection_Hide2!$A18, 'Full set Core Client Indicator'!$A$3:$A$351, 0), MATCH(Selection_Hide2!Z$5, 'Full set Core Client Indicator'!$A$3:$AB$3, 0))), \"\")","v":""},{"$f":"IF(Z18<>\"\", IF(INDEX('Full set Core Client Indicator'!$A$3:$AB$351, MATCH(Selection_Hide2!$A18, 'Full set Core Client Indicator'!$A$3:$A$351, 0), MATCH(Selection_Hide2!AA$5, 'Full set Core Client Indicator'!$A$3:$AB$3, 0))=\"\", \"\",  INDEX('Full set Core Client Indicator'!$A$3:$AB$351, MATCH(Selection_Hide2!$A18, 'Full set Core Client Indicator'!$A$3:$A$351, 0), MATCH(Selection_Hide2!AA$5, 'Full set Core Client Indicator'!$A$3:$AB$3, 0))), \"\")","v":""},{"$f":"IF(AA18<>\"\", IF(INDEX('Full set Core Client Indicator'!$A$3:$AB$351, MATCH(Selection_Hide2!$A18, 'Full set Core Client Indicator'!$A$3:$A$351, 0), MATCH(Selection_Hide2!AB$5, 'Full set Core Client Indicator'!$A$3:$AB$3, 0))=\"\", \"\",  INDEX('Full set Core Client Indicator'!$A$3:$AB$351, MATCH(Selection_Hide2!$A18, 'Full set Core Client Indicator'!$A$3:$A$351, 0), MATCH(Selection_Hide2!AB$5, 'Full set Core Client Indicator'!$A$3:$AB$3, 0))), \"\")","v":""}]
[{"$f":"IF(AND(Selection_Hide1!C17<>0, Selection_Hide1!C17<>\"Grand Total\"), Selection_Hide1!C17, \"\")","v":"323"},{"$f":"IF(A19<>\"\", IF(INDEX('Full set Core Client Indicator'!$A$3:$AB$351, MATCH(Selection_Hide2!$A19, 'Full set Core Client Indicator'!$A$3:$A$351, 0), MATCH(Selection_Hide2!B$5, 'Full set Core Client Indicator'!$A$3:$AB$3, 0))=\"\", \"\",  INDEX('Full set Core Client Indicator'!$A$3:$AB$351, MATCH(Selection_Hide2!$A19, 'Full set Core Client Indicator'!$A$3:$A$351, 0), MATCH(Selection_Hide2!B$5, 'Full set Core Client Indicator'!$A$3:$AB$3, 0))), \"\")","v":"Health"},{"$f":"IF(B19<>\"\", IF(INDEX('Full set Core Client Indicator'!$A$3:$AB$351, MATCH(Selection_Hide2!$A19, 'Full set Core Client Indicator'!$A$3:$A$351, 0), MATCH(Selection_Hide2!C$5, 'Full set Core Client Indicator'!$A$3:$AB$3, 0))=\"\", \"\",  INDEX('Full set Core Client Indicator'!$A$3:$AB$351, MATCH(Selection_Hide2!$A19, 'Full set Core Client Indicator'!$A$3:$A$351, 0), MATCH(Selection_Hide2!C$5, 'Full set Core Client Indicator'!$A$3:$AB$3, 0))), \"\")","v":"Aboriginal people heal from inter-generational trauma and loss"},{"$f":"IF(C19<>\"\", IF(INDEX('Full set Core Client Indicator'!$A$3:$AB$351, MATCH(Selection_Hide2!$A19, 'Full set Core Client Indicator'!$A$3:$A$351, 0), MATCH(Selection_Hide2!D$5, 'Full set Core Client Indicator'!$A$3:$AB$3, 0))=\"\", \"\",  INDEX('Full set Core Client Indicator'!$A$3:$AB$351, MATCH(Selection_Hide2!$A19, 'Full set Core Client Indicator'!$A$3:$A$351, 0), MATCH(Selection_Hide2!D$5, 'Full set Core Client Indicator'!$A$3:$AB$3, 0))), \"\")","v":"Proportion (%) of children and young people in Out-of-Home-Care who have a parent who was also in Out-of-Home-Care"},{"$f":"IF(D19<>\"\", IF(INDEX('Full set Core Client Indicator'!$A$3:$AB$351, MATCH(Selection_Hide2!$A19, 'Full set Core Client Indicator'!$A$3:$A$351, 0), MATCH(Selection_Hide2!E$5, 'Full set Core Client Indicator'!$A$3:$AB$3, 0))=\"\", \"\",  INDEX('Full set Core Client Indicator'!$A$3:$AB$351, MATCH(Selection_Hide2!$A19, 'Full set Core Client Indicator'!$A$3:$A$351, 0), MATCH(Selection_Hide2!E$5, 'Full set Core Client Indicator'!$A$3:$AB$3, 0))), \"\")","v":"Derived from administrative data"},{"$f":"IF(E19<>\"\", IF(INDEX('Full set Core Client Indicator'!$A$3:$AB$351, MATCH(Selection_Hide2!$A19, 'Full set Core Client Indicator'!$A$3:$A$351, 0), MATCH(Selection_Hide2!F$5, 'Full set Core Client Indicator'!$A$3:$AB$3, 0))=\"\", \"\",  INDEX('Full set Core Client Indicator'!$A$3:$AB$351, MATCH(Selection_Hide2!$A19, 'Full set Core Client Indicator'!$A$3:$A$351, 0), MATCH(Selection_Hide2!F$5, 'Full set Core Client Indicator'!$A$3:$AB$3, 0))), \"\")","v":"Existing DCJ measure "},{"$f":"IF(F19<>\"\", IF(INDEX('Full set Core Client Indicator'!$A$3:$AB$351, MATCH(Selection_Hide2!$A19, 'Full set Core Client Indicator'!$A$3:$A$351, 0), MATCH(Selection_Hide2!G$5, 'Full set Core Client Indicator'!$A$3:$AB$3, 0))=\"\", \"\",  INDEX('Full set Core Client Indicator'!$A$3:$AB$351, MATCH(Selection_Hide2!$A19, 'Full set Core Client Indicator'!$A$3:$A$351, 0), MATCH(Selection_Hide2!G$5, 'Full set Core Client Indicator'!$A$3:$AB$3, 0))), \"\")","v":"DCJ data"},{"$f":"IF(G19<>\"\", IF(INDEX('Full set Core Client Indicator'!$A$3:$AB$351, MATCH(Selection_Hide2!$A19, 'Full set Core Client Indicator'!$A$3:$A$351, 0), MATCH(Selection_Hide2!H$5, 'Full set Core Client Indicator'!$A$3:$AB$3, 0))=\"\", \"\",  INDEX('Full set Core Client Indicator'!$A$3:$AB$351, MATCH(Selection_Hide2!$A19, 'Full set Core Client Indicator'!$A$3:$A$351, 0), MATCH(Selection_Hide2!H$5, 'Full set Core Client Indicator'!$A$3:$AB$3, 0))), \"\")","v":"ChildStory - Client Information Warehouse (CIW)"},{"$f":"IF(H19<>\"\", IF(INDEX('Full set Core Client Indicator'!$A$3:$AB$351, MATCH(Selection_Hide2!$A19, 'Full set Core Client Indicator'!$A$3:$A$351, 0), MATCH(Selection_Hide2!I$5, 'Full set Core Client Indicator'!$A$3:$AB$3, 0))=\"\", \"\",  INDEX('Full set Core Client Indicator'!$A$3:$AB$351, MATCH(Selection_Hide2!$A19, 'Full set Core Client Indicator'!$A$3:$A$351, 0), MATCH(Selection_Hide2!I$5, 'Full set Core Client Indicator'!$A$3:$AB$3, 0))), \"\")","v":"* Parents OOHC history status\n* Child or young persons OOHC status"},{"$f":"IF(I19<>\"\", IF(INDEX('Full set Core Client Indicator'!$A$3:$AB$351, MATCH(Selection_Hide2!$A19, 'Full set Core Client Indicator'!$A$3:$A$351, 0), MATCH(Selection_Hide2!J$5, 'Full set Core Client Indicator'!$A$3:$AB$3, 0))=\"\", \"\",  INDEX('Full set Core Client Indicator'!$A$3:$AB$351, MATCH(Selection_Hide2!$A19, 'Full set Core Client Indicator'!$A$3:$A$351, 0), MATCH(Selection_Hide2!J$5, 'Full set Core Client Indicator'!$A$3:$AB$3, 0))), \"\")","v":"Numerator: Number of children and young people in OOHC who also had a parent in OOHC\nDenominator: Number of children and young people in OOHC"},{"$f":"IF(J19<>\"\", IF(INDEX('Full set Core Client Indicator'!$A$3:$AB$351, MATCH(Selection_Hide2!$A19, 'Full set Core Client Indicator'!$A$3:$A$351, 0), MATCH(Selection_Hide2!K$5, 'Full set Core Client Indicator'!$A$3:$AB$3, 0))=\"\", \"\",  INDEX('Full set Core Client Indicator'!$A$3:$AB$351, MATCH(Selection_Hide2!$A19, 'Full set Core Client Indicator'!$A$3:$A$351, 0), MATCH(Selection_Hide2!K$5, 'Full set Core Client Indicator'!$A$3:$AB$3, 0))), \"\")","v":"DCJ"},{"$f":"IF(K19<>\"\", IF(INDEX('Full set Core Client Indicator'!$A$3:$AB$351, MATCH(Selection_Hide2!$A19, 'Full set Core Client Indicator'!$A$3:$A$351, 0), MATCH(Selection_Hide2!L$5, 'Full set Core Client Indicator'!$A$3:$AB$3, 0))=\"\", \"\",  INDEX('Full set Core Client Indicator'!$A$3:$AB$351, MATCH(Selection_Hide2!$A19, 'Full set Core Client Indicator'!$A$3:$A$351, 0), MATCH(Selection_Hide2!L$5, 'Full set Core Client Indicator'!$A$3:$AB$3, 0))), \"\")","v":""},{"$f":"IF(L19<>\"\", IF(INDEX('Full set Core Client Indicator'!$A$3:$AB$351, MATCH(Selection_Hide2!$A19, 'Full set Core Client Indicator'!$A$3:$A$351, 0), MATCH(Selection_Hide2!M$5, 'Full set Core Client Indicator'!$A$3:$AB$3, 0))=\"\", \"\",  INDEX('Full set Core Client Indicator'!$A$3:$AB$351, MATCH(Selection_Hide2!$A19, 'Full set Core Client Indicator'!$A$3:$A$351, 0), MATCH(Selection_Hide2!M$5, 'Full set Core Client Indicator'!$A$3:$AB$3, 0))), \"\")","v":""},{"$f":"IF(M19<>\"\", IF(INDEX('Full set Core Client Indicator'!$A$3:$AB$351, MATCH(Selection_Hide2!$A19, 'Full set Core Client Indicator'!$A$3:$A$351, 0), MATCH(Selection_Hide2!N$5, 'Full set Core Client Indicator'!$A$3:$AB$3, 0))=\"\", \"\",  INDEX('Full set Core Client Indicator'!$A$3:$AB$351, MATCH(Selection_Hide2!$A19, 'Full set Core Client Indicator'!$A$3:$A$351, 0), MATCH(Selection_Hide2!N$5, 'Full set Core Client Indicator'!$A$3:$AB$3, 0))), \"\")","v":""},{"$f":"IF(N19<>\"\", IF(INDEX('Full set Core Client Indicator'!$A$3:$AB$351, MATCH(Selection_Hide2!$A19, 'Full set Core Client Indicator'!$A$3:$A$351, 0), MATCH(Selection_Hide2!O$5, 'Full set Core Client Indicator'!$A$3:$AB$3, 0))=\"\", \"\",  INDEX('Full set Core Client Indicator'!$A$3:$AB$351, MATCH(Selection_Hide2!$A19, 'Full set Core Client Indicator'!$A$3:$A$351, 0), MATCH(Selection_Hide2!O$5, 'Full set Core Client Indicator'!$A$3:$AB$3, 0))), \"\")","v":""},{"$f":"IF(O19<>\"\", IF(INDEX('Full set Core Client Indicator'!$A$3:$AB$351, MATCH(Selection_Hide2!$A19, 'Full set Core Client Indicator'!$A$3:$A$351, 0), MATCH(Selection_Hide2!P$5, 'Full set Core Client Indicator'!$A$3:$AB$3, 0))=\"\", \"\",  INDEX('Full set Core Client Indicator'!$A$3:$AB$351, MATCH(Selection_Hide2!$A19, 'Full set Core Client Indicator'!$A$3:$A$351, 0), MATCH(Selection_Hide2!P$5, 'Full set Core Client Indicator'!$A$3:$AB$3, 0))), \"\")","v":""},{"$f":"IF(P19<>\"\", IF(INDEX('Full set Core Client Indicator'!$A$3:$AB$351, MATCH(Selection_Hide2!$A19, 'Full set Core Client Indicator'!$A$3:$A$351, 0), MATCH(Selection_Hide2!Q$5, 'Full set Core Client Indicator'!$A$3:$AB$3, 0))=\"\", \"\",  INDEX('Full set Core Client Indicator'!$A$3:$AB$351, MATCH(Selection_Hide2!$A19, 'Full set Core Client Indicator'!$A$3:$A$351, 0), MATCH(Selection_Hide2!Q$5, 'Full set Core Client Indicator'!$A$3:$AB$3, 0))), \"\")","v":""},{"$f":"IF(Q19<>\"\", IF(INDEX('Full set Core Client Indicator'!$A$3:$AB$351, MATCH(Selection_Hide2!$A19, 'Full set Core Client Indicator'!$A$3:$A$351, 0), MATCH(Selection_Hide2!R$5, 'Full set Core Client Indicator'!$A$3:$AB$3, 0))=\"\", \"\",  INDEX('Full set Core Client Indicator'!$A$3:$AB$351, MATCH(Selection_Hide2!$A19, 'Full set Core Client Indicator'!$A$3:$A$351, 0), MATCH(Selection_Hide2!R$5, 'Full set Core Client Indicator'!$A$3:$AB$3, 0))), \"\")","v":""},{"$f":"IF(R19<>\"\", IF(INDEX('Full set Core Client Indicator'!$A$3:$AB$351, MATCH(Selection_Hide2!$A19, 'Full set Core Client Indicator'!$A$3:$A$351, 0), MATCH(Selection_Hide2!S$5, 'Full set Core Client Indicator'!$A$3:$AB$3, 0))=\"\", \"\",  INDEX('Full set Core Client Indicator'!$A$3:$AB$351, MATCH(Selection_Hide2!$A19, 'Full set Core Client Indicator'!$A$3:$A$351, 0), MATCH(Selection_Hide2!S$5, 'Full set Core Client Indicator'!$A$3:$AB$3, 0))), \"\")","v":""},{"$f":"IF(S19<>\"\", IF(INDEX('Full set Core Client Indicator'!$A$3:$AB$351, MATCH(Selection_Hide2!$A19, 'Full set Core Client Indicator'!$A$3:$A$351, 0), MATCH(Selection_Hide2!T$5, 'Full set Core Client Indicator'!$A$3:$AB$3, 0))=\"\", \"\",  INDEX('Full set Core Client Indicator'!$A$3:$AB$351, MATCH(Selection_Hide2!$A19, 'Full set Core Client Indicator'!$A$3:$A$351, 0), MATCH(Selection_Hide2!T$5, 'Full set Core Client Indicator'!$A$3:$AB$3, 0))), \"\")","v":""},{"$f":"IF(T19<>\"\", IF(INDEX('Full set Core Client Indicator'!$A$3:$AB$351, MATCH(Selection_Hide2!$A19, 'Full set Core Client Indicator'!$A$3:$A$351, 0), MATCH(Selection_Hide2!U$5, 'Full set Core Client Indicator'!$A$3:$AB$3, 0))=\"\", \"\",  INDEX('Full set Core Client Indicator'!$A$3:$AB$351, MATCH(Selection_Hide2!$A19, 'Full set Core Client Indicator'!$A$3:$A$351, 0), MATCH(Selection_Hide2!U$5, 'Full set Core Client Indicator'!$A$3:$AB$3, 0))), \"\")","v":""},{"$f":"IF(U19<>\"\", IF(INDEX('Full set Core Client Indicator'!$A$3:$AB$351, MATCH(Selection_Hide2!$A19, 'Full set Core Client Indicator'!$A$3:$A$351, 0), MATCH(Selection_Hide2!V$5, 'Full set Core Client Indicator'!$A$3:$AB$3, 0))=\"\", \"\",  INDEX('Full set Core Client Indicator'!$A$3:$AB$351, MATCH(Selection_Hide2!$A19, 'Full set Core Client Indicator'!$A$3:$A$351, 0), MATCH(Selection_Hide2!V$5, 'Full set Core Client Indicator'!$A$3:$AB$3, 0))), \"\")","v":""},{"$f":"IF(V19<>\"\", IF(INDEX('Full set Core Client Indicator'!$A$3:$AB$351, MATCH(Selection_Hide2!$A19, 'Full set Core Client Indicator'!$A$3:$A$351, 0), MATCH(Selection_Hide2!W$5, 'Full set Core Client Indicator'!$A$3:$AB$3, 0))=\"\", \"\",  INDEX('Full set Core Client Indicator'!$A$3:$AB$351, MATCH(Selection_Hide2!$A19, 'Full set Core Client Indicator'!$A$3:$A$351, 0), MATCH(Selection_Hide2!W$5, 'Full set Core Client Indicator'!$A$3:$AB$3, 0))), \"\")","v":""},{"$f":"IF(W19<>\"\", IF(INDEX('Full set Core Client Indicator'!$A$3:$AB$351, MATCH(Selection_Hide2!$A19, 'Full set Core Client Indicator'!$A$3:$A$351, 0), MATCH(Selection_Hide2!X$5, 'Full set Core Client Indicator'!$A$3:$AB$3, 0))=\"\", \"\",  INDEX('Full set Core Client Indicator'!$A$3:$AB$351, MATCH(Selection_Hide2!$A19, 'Full set Core Client Indicator'!$A$3:$A$351, 0), MATCH(Selection_Hide2!X$5, 'Full set Core Client Indicator'!$A$3:$AB$3, 0))), \"\")","v":""},{"$f":"IF(X19<>\"\", IF(INDEX('Full set Core Client Indicator'!$A$3:$AB$351, MATCH(Selection_Hide2!$A19, 'Full set Core Client Indicator'!$A$3:$A$351, 0), MATCH(Selection_Hide2!Y$5, 'Full set Core Client Indicator'!$A$3:$AB$3, 0))=\"\", \"\",  INDEX('Full set Core Client Indicator'!$A$3:$AB$351, MATCH(Selection_Hide2!$A19, 'Full set Core Client Indicator'!$A$3:$A$351, 0), MATCH(Selection_Hide2!Y$5, 'Full set Core Client Indicator'!$A$3:$AB$3, 0))), \"\")","v":""},{"$f":"IF(Y19<>\"\", IF(INDEX('Full set Core Client Indicator'!$A$3:$AB$351, MATCH(Selection_Hide2!$A19, 'Full set Core Client Indicator'!$A$3:$A$351, 0), MATCH(Selection_Hide2!Z$5, 'Full set Core Client Indicator'!$A$3:$AB$3, 0))=\"\", \"\",  INDEX('Full set Core Client Indicator'!$A$3:$AB$351, MATCH(Selection_Hide2!$A19, 'Full set Core Client Indicator'!$A$3:$A$351, 0), MATCH(Selection_Hide2!Z$5, 'Full set Core Client Indicator'!$A$3:$AB$3, 0))), \"\")","v":""},{"$f":"IF(Z19<>\"\", IF(INDEX('Full set Core Client Indicator'!$A$3:$AB$351, MATCH(Selection_Hide2!$A19, 'Full set Core Client Indicator'!$A$3:$A$351, 0), MATCH(Selection_Hide2!AA$5, 'Full set Core Client Indicator'!$A$3:$AB$3, 0))=\"\", \"\",  INDEX('Full set Core Client Indicator'!$A$3:$AB$351, MATCH(Selection_Hide2!$A19, 'Full set Core Client Indicator'!$A$3:$A$351, 0), MATCH(Selection_Hide2!AA$5, 'Full set Core Client Indicator'!$A$3:$AB$3, 0))), \"\")","v":""},{"$f":"IF(AA19<>\"\", IF(INDEX('Full set Core Client Indicator'!$A$3:$AB$351, MATCH(Selection_Hide2!$A19, 'Full set Core Client Indicator'!$A$3:$A$351, 0), MATCH(Selection_Hide2!AB$5, 'Full set Core Client Indicator'!$A$3:$AB$3, 0))=\"\", \"\",  INDEX('Full set Core Client Indicator'!$A$3:$AB$351, MATCH(Selection_Hide2!$A19, 'Full set Core Client Indicator'!$A$3:$A$351, 0), MATCH(Selection_Hide2!AB$5, 'Full set Core Client Indicator'!$A$3:$AB$3, 0))), \"\")","v":""}]
[{"$f":"IF(AND(Selection_Hide1!C18<>0, Selection_Hide1!C18<>\"Grand Total\"), Selection_Hide1!C18, \"\")","v":"85"},{"$f":"IF(A20<>\"\", IF(INDEX('Full set Core Client Indicator'!$A$3:$AB$351, MATCH(Selection_Hide2!$A20, 'Full set Core Client Indicator'!$A$3:$A$351, 0), MATCH(Selection_Hide2!B$5, 'Full set Core Client Indicator'!$A$3:$AB$3, 0))=\"\", \"\",  INDEX('Full set Core Client Indicator'!$A$3:$AB$351, MATCH(Selection_Hide2!$A20, 'Full set Core Client Indicator'!$A$3:$A$351, 0), MATCH(Selection_Hide2!B$5, 'Full set Core Client Indicator'!$A$3:$AB$3, 0))), \"\")","v":"Health"},{"$f":"IF(B20<>\"\", IF(INDEX('Full set Core Client Indicator'!$A$3:$AB$351, MATCH(Selection_Hide2!$A20, 'Full set Core Client Indicator'!$A$3:$A$351, 0), MATCH(Selection_Hide2!C$5, 'Full set Core Client Indicator'!$A$3:$AB$3, 0))=\"\", \"\",  INDEX('Full set Core Client Indicator'!$A$3:$AB$351, MATCH(Selection_Hide2!$A20, 'Full set Core Client Indicator'!$A$3:$A$351, 0), MATCH(Selection_Hide2!C$5, 'Full set Core Client Indicator'!$A$3:$AB$3, 0))), \"\")","v":"Mothers have healthy pregnancies and babies have good birth outcomes"},{"$f":"IF(C20<>\"\", IF(INDEX('Full set Core Client Indicator'!$A$3:$AB$351, MATCH(Selection_Hide2!$A20, 'Full set Core Client Indicator'!$A$3:$A$351, 0), MATCH(Selection_Hide2!D$5, 'Full set Core Client Indicator'!$A$3:$AB$3, 0))=\"\", \"\",  INDEX('Full set Core Client Indicator'!$A$3:$AB$351, MATCH(Selection_Hide2!$A20, 'Full set Core Client Indicator'!$A$3:$A$351, 0), MATCH(Selection_Hide2!D$5, 'Full set Core Client Indicator'!$A$3:$AB$3, 0))), \"\")","v":"Proportion (%) of mothers who smoke during pregnancy"},{"$f":"IF(D20<>\"\", IF(INDEX('Full set Core Client Indicator'!$A$3:$AB$351, MATCH(Selection_Hide2!$A20, 'Full set Core Client Indicator'!$A$3:$A$351, 0), MATCH(Selection_Hide2!E$5, 'Full set Core Client Indicator'!$A$3:$AB$3, 0))=\"\", \"\",  INDEX('Full set Core Client Indicator'!$A$3:$AB$351, MATCH(Selection_Hide2!$A20, 'Full set Core Client Indicator'!$A$3:$A$351, 0), MATCH(Selection_Hide2!E$5, 'Full set Core Client Indicator'!$A$3:$AB$3, 0))), \"\")","v":"Information not publicly available"},{"$f":"IF(E20<>\"\", IF(INDEX('Full set Core Client Indicator'!$A$3:$AB$351, MATCH(Selection_Hide2!$A20, 'Full set Core Client Indicator'!$A$3:$A$351, 0), MATCH(Selection_Hide2!F$5, 'Full set Core Client Indicator'!$A$3:$AB$3, 0))=\"\", \"\",  INDEX('Full set Core Client Indicator'!$A$3:$AB$351, MATCH(Selection_Hide2!$A20, 'Full set Core Client Indicator'!$A$3:$A$351, 0), MATCH(Selection_Hide2!F$5, 'Full set Core Client Indicator'!$A$3:$AB$3, 0))), \"\")","v":"External agency measure (NSW Ministry of Health)"},{"$f":"IF(F20<>\"\", IF(INDEX('Full set Core Client Indicator'!$A$3:$AB$351, MATCH(Selection_Hide2!$A20, 'Full set Core Client Indicator'!$A$3:$A$351, 0), MATCH(Selection_Hide2!G$5, 'Full set Core Client Indicator'!$A$3:$AB$3, 0))=\"\", \"\",  INDEX('Full set Core Client Indicator'!$A$3:$AB$351, MATCH(Selection_Hide2!$A20, 'Full set Core Client Indicator'!$A$3:$A$351, 0), MATCH(Selection_Hide2!G$5, 'Full set Core Client Indicator'!$A$3:$AB$3, 0))), \"\")","v":"Data linkage "},{"$f":"IF(G20<>\"\", IF(INDEX('Full set Core Client Indicator'!$A$3:$AB$351, MATCH(Selection_Hide2!$A20, 'Full set Core Client Indicator'!$A$3:$A$351, 0), MATCH(Selection_Hide2!H$5, 'Full set Core Client Indicator'!$A$3:$AB$3, 0))=\"\", \"\",  INDEX('Full set Core Client Indicator'!$A$3:$AB$351, MATCH(Selection_Hide2!$A20, 'Full set Core Client Indicator'!$A$3:$A$351, 0), MATCH(Selection_Hide2!H$5, 'Full set Core Client Indicator'!$A$3:$AB$3, 0))), \"\")","v":"NSW Perinatal Data Collection (PDC)"},{"$f":"IF(H20<>\"\", IF(INDEX('Full set Core Client Indicator'!$A$3:$AB$351, MATCH(Selection_Hide2!$A20, 'Full set Core Client Indicator'!$A$3:$A$351, 0), MATCH(Selection_Hide2!I$5, 'Full set Core Client Indicator'!$A$3:$AB$3, 0))=\"\", \"\",  INDEX('Full set Core Client Indicator'!$A$3:$AB$351, MATCH(Selection_Hide2!$A20, 'Full set Core Client Indicator'!$A$3:$A$351, 0), MATCH(Selection_Hide2!I$5, 'Full set Core Client Indicator'!$A$3:$AB$3, 0))), \"\")","v":"* Smoking during pregnancy [smoke]"},{"$f":"IF(I20<>\"\", IF(INDEX('Full set Core Client Indicator'!$A$3:$AB$351, MATCH(Selection_Hide2!$A20, 'Full set Core Client Indicator'!$A$3:$A$351, 0), MATCH(Selection_Hide2!J$5, 'Full set Core Client Indicator'!$A$3:$AB$3, 0))=\"\", \"\",  INDEX('Full set Core Client Indicator'!$A$3:$AB$351, MATCH(Selection_Hide2!$A20, 'Full set Core Client Indicator'!$A$3:$A$351, 0), MATCH(Selection_Hide2!J$5, 'Full set Core Client Indicator'!$A$3:$AB$3, 0))), \"\")","v":"Numerator: Number of women who smoked during pregnancy = Yes\nDenominator: Number of women who have given birth"},{"$f":"IF(J20<>\"\", IF(INDEX('Full set Core Client Indicator'!$A$3:$AB$351, MATCH(Selection_Hide2!$A20, 'Full set Core Client Indicator'!$A$3:$A$351, 0), MATCH(Selection_Hide2!K$5, 'Full set Core Client Indicator'!$A$3:$AB$3, 0))=\"\", \"\",  INDEX('Full set Core Client Indicator'!$A$3:$AB$351, MATCH(Selection_Hide2!$A20, 'Full set Core Client Indicator'!$A$3:$A$351, 0), MATCH(Selection_Hide2!K$5, 'Full set Core Client Indicator'!$A$3:$AB$3, 0))), \"\")","v":"NSW Ministry of Health"},{"$f":"IF(K20<>\"\", IF(INDEX('Full set Core Client Indicator'!$A$3:$AB$351, MATCH(Selection_Hide2!$A20, 'Full set Core Client Indicator'!$A$3:$A$351, 0), MATCH(Selection_Hide2!L$5, 'Full set Core Client Indicator'!$A$3:$AB$3, 0))=\"\", \"\",  INDEX('Full set Core Client Indicator'!$A$3:$AB$351, MATCH(Selection_Hide2!$A20, 'Full set Core Client Indicator'!$A$3:$A$351, 0), MATCH(Selection_Hide2!L$5, 'Full set Core Client Indicator'!$A$3:$AB$3, 0))), \"\")","v":"CHeReL"},{"$f":"IF(L20<>\"\", IF(INDEX('Full set Core Client Indicator'!$A$3:$AB$351, MATCH(Selection_Hide2!$A20, 'Full set Core Client Indicator'!$A$3:$A$351, 0), MATCH(Selection_Hide2!M$5, 'Full set Core Client Indicator'!$A$3:$AB$3, 0))=\"\", \"\",  INDEX('Full set Core Client Indicator'!$A$3:$AB$351, MATCH(Selection_Hide2!$A20, 'Full set Core Client Indicator'!$A$3:$A$351, 0), MATCH(Selection_Hide2!M$5, 'Full set Core Client Indicator'!$A$3:$AB$3, 0))), \"\")","v":"y"},{"$f":"IF(M20<>\"\", IF(INDEX('Full set Core Client Indicator'!$A$3:$AB$351, MATCH(Selection_Hide2!$A20, 'Full set Core Client Indicator'!$A$3:$A$351, 0), MATCH(Selection_Hide2!N$5, 'Full set Core Client Indicator'!$A$3:$AB$3, 0))=\"\", \"\",  INDEX('Full set Core Client Indicator'!$A$3:$AB$351, MATCH(Selection_Hide2!$A20, 'Full set Core Client Indicator'!$A$3:$A$351, 0), MATCH(Selection_Hide2!N$5, 'Full set Core Client Indicator'!$A$3:$AB$3, 0))), \"\")","v":""},{"$f":"IF(N20<>\"\", IF(INDEX('Full set Core Client Indicator'!$A$3:$AB$351, MATCH(Selection_Hide2!$A20, 'Full set Core Client Indicator'!$A$3:$A$351, 0), MATCH(Selection_Hide2!O$5, 'Full set Core Client Indicator'!$A$3:$AB$3, 0))=\"\", \"\",  INDEX('Full set Core Client Indicator'!$A$3:$AB$351, MATCH(Selection_Hide2!$A20, 'Full set Core Client Indicator'!$A$3:$A$351, 0), MATCH(Selection_Hide2!O$5, 'Full set Core Client Indicator'!$A$3:$AB$3, 0))), \"\")","v":""},{"$f":"IF(O20<>\"\", IF(INDEX('Full set Core Client Indicator'!$A$3:$AB$351, MATCH(Selection_Hide2!$A20, 'Full set Core Client Indicator'!$A$3:$A$351, 0), MATCH(Selection_Hide2!P$5, 'Full set Core Client Indicator'!$A$3:$AB$3, 0))=\"\", \"\",  INDEX('Full set Core Client Indicator'!$A$3:$AB$351, MATCH(Selection_Hide2!$A20, 'Full set Core Client Indicator'!$A$3:$A$351, 0), MATCH(Selection_Hide2!P$5, 'Full set Core Client Indicator'!$A$3:$AB$3, 0))), \"\")","v":""},{"$f":"IF(P20<>\"\", IF(INDEX('Full set Core Client Indicator'!$A$3:$AB$351, MATCH(Selection_Hide2!$A20, 'Full set Core Client Indicator'!$A$3:$A$351, 0), MATCH(Selection_Hide2!Q$5, 'Full set Core Client Indicator'!$A$3:$AB$3, 0))=\"\", \"\",  INDEX('Full set Core Client Indicator'!$A$3:$AB$351, MATCH(Selection_Hide2!$A20, 'Full set Core Client Indicator'!$A$3:$A$351, 0), MATCH(Selection_Hide2!Q$5, 'Full set Core Client Indicator'!$A$3:$AB$3, 0))), \"\")","v":""},{"$f":"IF(Q20<>\"\", IF(INDEX('Full set Core Client Indicator'!$A$3:$AB$351, MATCH(Selection_Hide2!$A20, 'Full set Core Client Indicator'!$A$3:$A$351, 0), MATCH(Selection_Hide2!R$5, 'Full set Core Client Indicator'!$A$3:$AB$3, 0))=\"\", \"\",  INDEX('Full set Core Client Indicator'!$A$3:$AB$351, MATCH(Selection_Hide2!$A20, 'Full set Core Client Indicator'!$A$3:$A$351, 0), MATCH(Selection_Hide2!R$5, 'Full set Core Client Indicator'!$A$3:$AB$3, 0))), \"\")","v":""},{"$f":"IF(R20<>\"\", IF(INDEX('Full set Core Client Indicator'!$A$3:$AB$351, MATCH(Selection_Hide2!$A20, 'Full set Core Client Indicator'!$A$3:$A$351, 0), MATCH(Selection_Hide2!S$5, 'Full set Core Client Indicator'!$A$3:$AB$3, 0))=\"\", \"\",  INDEX('Full set Core Client Indicator'!$A$3:$AB$351, MATCH(Selection_Hide2!$A20, 'Full set Core Client Indicator'!$A$3:$A$351, 0), MATCH(Selection_Hide2!S$5, 'Full set Core Client Indicator'!$A$3:$AB$3, 0))), \"\")","v":""},{"$f":"IF(S20<>\"\", IF(INDEX('Full set Core Client Indicator'!$A$3:$AB$351, MATCH(Selection_Hide2!$A20, 'Full set Core Client Indicator'!$A$3:$A$351, 0), MATCH(Selection_Hide2!T$5, 'Full set Core Client Indicator'!$A$3:$AB$3, 0))=\"\", \"\",  INDEX('Full set Core Client Indicator'!$A$3:$AB$351, MATCH(Selection_Hide2!$A20, 'Full set Core Client Indicator'!$A$3:$A$351, 0), MATCH(Selection_Hide2!T$5, 'Full set Core Client Indicator'!$A$3:$AB$3, 0))), \"\")","v":""},{"$f":"IF(T20<>\"\", IF(INDEX('Full set Core Client Indicator'!$A$3:$AB$351, MATCH(Selection_Hide2!$A20, 'Full set Core Client Indicator'!$A$3:$A$351, 0), MATCH(Selection_Hide2!U$5, 'Full set Core Client Indicator'!$A$3:$AB$3, 0))=\"\", \"\",  INDEX('Full set Core Client Indicator'!$A$3:$AB$351, MATCH(Selection_Hide2!$A20, 'Full set Core Client Indicator'!$A$3:$A$351, 0), MATCH(Selection_Hide2!U$5, 'Full set Core Client Indicator'!$A$3:$AB$3, 0))), \"\")","v":""},{"$f":"IF(U20<>\"\", IF(INDEX('Full set Core Client Indicator'!$A$3:$AB$351, MATCH(Selection_Hide2!$A20, 'Full set Core Client Indicator'!$A$3:$A$351, 0), MATCH(Selection_Hide2!V$5, 'Full set Core Client Indicator'!$A$3:$AB$3, 0))=\"\", \"\",  INDEX('Full set Core Client Indicator'!$A$3:$AB$351, MATCH(Selection_Hide2!$A20, 'Full set Core Client Indicator'!$A$3:$A$351, 0), MATCH(Selection_Hide2!V$5, 'Full set Core Client Indicator'!$A$3:$AB$3, 0))), \"\")","v":""},{"$f":"IF(V20<>\"\", IF(INDEX('Full set Core Client Indicator'!$A$3:$AB$351, MATCH(Selection_Hide2!$A20, 'Full set Core Client Indicator'!$A$3:$A$351, 0), MATCH(Selection_Hide2!W$5, 'Full set Core Client Indicator'!$A$3:$AB$3, 0))=\"\", \"\",  INDEX('Full set Core Client Indicator'!$A$3:$AB$351, MATCH(Selection_Hide2!$A20, 'Full set Core Client Indicator'!$A$3:$A$351, 0), MATCH(Selection_Hide2!W$5, 'Full set Core Client Indicator'!$A$3:$AB$3, 0))), \"\")","v":""},{"$f":"IF(W20<>\"\", IF(INDEX('Full set Core Client Indicator'!$A$3:$AB$351, MATCH(Selection_Hide2!$A20, 'Full set Core Client Indicator'!$A$3:$A$351, 0), MATCH(Selection_Hide2!X$5, 'Full set Core Client Indicator'!$A$3:$AB$3, 0))=\"\", \"\",  INDEX('Full set Core Client Indicator'!$A$3:$AB$351, MATCH(Selection_Hide2!$A20, 'Full set Core Client Indicator'!$A$3:$A$351, 0), MATCH(Selection_Hide2!X$5, 'Full set Core Client Indicator'!$A$3:$AB$3, 0))), \"\")","v":""},{"$f":"IF(X20<>\"\", IF(INDEX('Full set Core Client Indicator'!$A$3:$AB$351, MATCH(Selection_Hide2!$A20, 'Full set Core Client Indicator'!$A$3:$A$351, 0), MATCH(Selection_Hide2!Y$5, 'Full set Core Client Indicator'!$A$3:$AB$3, 0))=\"\", \"\",  INDEX('Full set Core Client Indicator'!$A$3:$AB$351, MATCH(Selection_Hide2!$A20, 'Full set Core Client Indicator'!$A$3:$A$351, 0), MATCH(Selection_Hide2!Y$5, 'Full set Core Client Indicator'!$A$3:$AB$3, 0))), \"\")","v":""},{"$f":"IF(Y20<>\"\", IF(INDEX('Full set Core Client Indicator'!$A$3:$AB$351, MATCH(Selection_Hide2!$A20, 'Full set Core Client Indicator'!$A$3:$A$351, 0), MATCH(Selection_Hide2!Z$5, 'Full set Core Client Indicator'!$A$3:$AB$3, 0))=\"\", \"\",  INDEX('Full set Core Client Indicator'!$A$3:$AB$351, MATCH(Selection_Hide2!$A20, 'Full set Core Client Indicator'!$A$3:$A$351, 0), MATCH(Selection_Hide2!Z$5, 'Full set Core Client Indicator'!$A$3:$AB$3, 0))), \"\")","v":""},{"$f":"IF(Z20<>\"\", IF(INDEX('Full set Core Client Indicator'!$A$3:$AB$351, MATCH(Selection_Hide2!$A20, 'Full set Core Client Indicator'!$A$3:$A$351, 0), MATCH(Selection_Hide2!AA$5, 'Full set Core Client Indicator'!$A$3:$AB$3, 0))=\"\", \"\",  INDEX('Full set Core Client Indicator'!$A$3:$AB$351, MATCH(Selection_Hide2!$A20, 'Full set Core Client Indicator'!$A$3:$A$351, 0), MATCH(Selection_Hide2!AA$5, 'Full set Core Client Indicator'!$A$3:$AB$3, 0))), \"\")","v":""},{"$f":"IF(AA20<>\"\", IF(INDEX('Full set Core Client Indicator'!$A$3:$AB$351, MATCH(Selection_Hide2!$A20, 'Full set Core Client Indicator'!$A$3:$A$351, 0), MATCH(Selection_Hide2!AB$5, 'Full set Core Client Indicator'!$A$3:$AB$3, 0))=\"\", \"\",  INDEX('Full set Core Client Indicator'!$A$3:$AB$351, MATCH(Selection_Hide2!$A20, 'Full set Core Client Indicator'!$A$3:$A$351, 0), MATCH(Selection_Hide2!AB$5, 'Full set Core Client Indicator'!$A$3:$AB$3, 0))), \"\")","v":""}]
[{"$f":"IF(AND(Selection_Hide1!C19<>0, Selection_Hide1!C19<>\"Grand Total\"), Selection_Hide1!C19, \"\")","v":"87"},{"$f":"IF(A21<>\"\", IF(INDEX('Full set Core Client Indicator'!$A$3:$AB$351, MATCH(Selection_Hide2!$A21, 'Full set Core Client Indicator'!$A$3:$A$351, 0), MATCH(Selection_Hide2!B$5, 'Full set Core Client Indicator'!$A$3:$AB$3, 0))=\"\", \"\",  INDEX('Full set Core Client Indicator'!$A$3:$AB$351, MATCH(Selection_Hide2!$A21, 'Full set Core Client Indicator'!$A$3:$A$351, 0), MATCH(Selection_Hide2!B$5, 'Full set Core Client Indicator'!$A$3:$AB$3, 0))), \"\")","v":"Health"},{"$f":"IF(B21<>\"\", IF(INDEX('Full set Core Client Indicator'!$A$3:$AB$351, MATCH(Selection_Hide2!$A21, 'Full set Core Client Indicator'!$A$3:$A$351, 0), MATCH(Selection_Hide2!C$5, 'Full set Core Client Indicator'!$A$3:$AB$3, 0))=\"\", \"\",  INDEX('Full set Core Client Indicator'!$A$3:$AB$351, MATCH(Selection_Hide2!$A21, 'Full set Core Client Indicator'!$A$3:$A$351, 0), MATCH(Selection_Hide2!C$5, 'Full set Core Client Indicator'!$A$3:$AB$3, 0))), \"\")","v":"Mothers have healthy pregnancies and babies have good birth outcomes"},{"$f":"IF(C21<>\"\", IF(INDEX('Full set Core Client Indicator'!$A$3:$AB$351, MATCH(Selection_Hide2!$A21, 'Full set Core Client Indicator'!$A$3:$A$351, 0), MATCH(Selection_Hide2!D$5, 'Full set Core Client Indicator'!$A$3:$AB$3, 0))=\"\", \"\",  INDEX('Full set Core Client Indicator'!$A$3:$AB$351, MATCH(Selection_Hide2!$A21, 'Full set Core Client Indicator'!$A$3:$A$351, 0), MATCH(Selection_Hide2!D$5, 'Full set Core Client Indicator'!$A$3:$AB$3, 0))), \"\")","v":"Proportion (%) of live-born infants below a healthy weight at birth"},{"$f":"IF(D21<>\"\", IF(INDEX('Full set Core Client Indicator'!$A$3:$AB$351, MATCH(Selection_Hide2!$A21, 'Full set Core Client Indicator'!$A$3:$A$351, 0), MATCH(Selection_Hide2!E$5, 'Full set Core Client Indicator'!$A$3:$AB$3, 0))=\"\", \"\",  INDEX('Full set Core Client Indicator'!$A$3:$AB$351, MATCH(Selection_Hide2!$A21, 'Full set Core Client Indicator'!$A$3:$A$351, 0), MATCH(Selection_Hide2!E$5, 'Full set Core Client Indicator'!$A$3:$AB$3, 0))), \"\")","v":"Weight at birth"},{"$f":"IF(E21<>\"\", IF(INDEX('Full set Core Client Indicator'!$A$3:$AB$351, MATCH(Selection_Hide2!$A21, 'Full set Core Client Indicator'!$A$3:$A$351, 0), MATCH(Selection_Hide2!F$5, 'Full set Core Client Indicator'!$A$3:$AB$3, 0))=\"\", \"\",  INDEX('Full set Core Client Indicator'!$A$3:$AB$351, MATCH(Selection_Hide2!$A21, 'Full set Core Client Indicator'!$A$3:$A$351, 0), MATCH(Selection_Hide2!F$5, 'Full set Core Client Indicator'!$A$3:$AB$3, 0))), \"\")","v":"External agency measure (NSW Ministry of Health)"},{"$f":"IF(F21<>\"\", IF(INDEX('Full set Core Client Indicator'!$A$3:$AB$351, MATCH(Selection_Hide2!$A21, 'Full set Core Client Indicator'!$A$3:$A$351, 0), MATCH(Selection_Hide2!G$5, 'Full set Core Client Indicator'!$A$3:$AB$3, 0))=\"\", \"\",  INDEX('Full set Core Client Indicator'!$A$3:$AB$351, MATCH(Selection_Hide2!$A21, 'Full set Core Client Indicator'!$A$3:$A$351, 0), MATCH(Selection_Hide2!G$5, 'Full set Core Client Indicator'!$A$3:$AB$3, 0))), \"\")","v":"Data linkage "},{"$f":"IF(G21<>\"\", IF(INDEX('Full set Core Client Indicator'!$A$3:$AB$351, MATCH(Selection_Hide2!$A21, 'Full set Core Client Indicator'!$A$3:$A$351, 0), MATCH(Selection_Hide2!H$5, 'Full set Core Client Indicator'!$A$3:$AB$3, 0))=\"\", \"\",  INDEX('Full set Core Client Indicator'!$A$3:$AB$351, MATCH(Selection_Hide2!$A21, 'Full set Core Client Indicator'!$A$3:$A$351, 0), MATCH(Selection_Hide2!H$5, 'Full set Core Client Indicator'!$A$3:$AB$3, 0))), \"\")","v":"NSW Perinatal Data Collection (PDC)"},{"$f":"IF(H21<>\"\", IF(INDEX('Full set Core Client Indicator'!$A$3:$AB$351, MATCH(Selection_Hide2!$A21, 'Full set Core Client Indicator'!$A$3:$A$351, 0), MATCH(Selection_Hide2!I$5, 'Full set Core Client Indicator'!$A$3:$AB$3, 0))=\"\", \"\",  INDEX('Full set Core Client Indicator'!$A$3:$AB$351, MATCH(Selection_Hide2!$A21, 'Full set Core Client Indicator'!$A$3:$A$351, 0), MATCH(Selection_Hide2!I$5, 'Full set Core Client Indicator'!$A$3:$AB$3, 0))), \"\")","v":"* Birthweight [weight]"},{"$f":"IF(I21<>\"\", IF(INDEX('Full set Core Client Indicator'!$A$3:$AB$351, MATCH(Selection_Hide2!$A21, 'Full set Core Client Indicator'!$A$3:$A$351, 0), MATCH(Selection_Hide2!J$5, 'Full set Core Client Indicator'!$A$3:$AB$3, 0))=\"\", \"\",  INDEX('Full set Core Client Indicator'!$A$3:$AB$351, MATCH(Selection_Hide2!$A21, 'Full set Core Client Indicator'!$A$3:$A$351, 0), MATCH(Selection_Hide2!J$5, 'Full set Core Client Indicator'!$A$3:$AB$3, 0))), \"\")","v":"Numerator: Number of children with birth weight > 2,500 grams\nDenominator: Number of children"},{"$f":"IF(J21<>\"\", IF(INDEX('Full set Core Client Indicator'!$A$3:$AB$351, MATCH(Selection_Hide2!$A21, 'Full set Core Client Indicator'!$A$3:$A$351, 0), MATCH(Selection_Hide2!K$5, 'Full set Core Client Indicator'!$A$3:$AB$3, 0))=\"\", \"\",  INDEX('Full set Core Client Indicator'!$A$3:$AB$351, MATCH(Selection_Hide2!$A21, 'Full set Core Client Indicator'!$A$3:$A$351, 0), MATCH(Selection_Hide2!K$5, 'Full set Core Client Indicator'!$A$3:$AB$3, 0))), \"\")","v":"NSW Ministry of Health"},{"$f":"IF(K21<>\"\", IF(INDEX('Full set Core Client Indicator'!$A$3:$AB$351, MATCH(Selection_Hide2!$A21, 'Full set Core Client Indicator'!$A$3:$A$351, 0), MATCH(Selection_Hide2!L$5, 'Full set Core Client Indicator'!$A$3:$AB$3, 0))=\"\", \"\",  INDEX('Full set Core Client Indicator'!$A$3:$AB$351, MATCH(Selection_Hide2!$A21, 'Full set Core Client Indicator'!$A$3:$A$351, 0), MATCH(Selection_Hide2!L$5, 'Full set Core Client Indicator'!$A$3:$AB$3, 0))), \"\")","v":"CHeReL"},{"$f":"IF(L21<>\"\", IF(INDEX('Full set Core Client Indicator'!$A$3:$AB$351, MATCH(Selection_Hide2!$A21, 'Full set Core Client Indicator'!$A$3:$A$351, 0), MATCH(Selection_Hide2!M$5, 'Full set Core Client Indicator'!$A$3:$AB$3, 0))=\"\", \"\",  INDEX('Full set Core Client Indicator'!$A$3:$AB$351, MATCH(Selection_Hide2!$A21, 'Full set Core Client Indicator'!$A$3:$A$351, 0), MATCH(Selection_Hide2!M$5, 'Full set Core Client Indicator'!$A$3:$AB$3, 0))), \"\")","v":"y"},{"$f":"IF(M21<>\"\", IF(INDEX('Full set Core Client Indicator'!$A$3:$AB$351, MATCH(Selection_Hide2!$A21, 'Full set Core Client Indicator'!$A$3:$A$351, 0), MATCH(Selection_Hide2!N$5, 'Full set Core Client Indicator'!$A$3:$AB$3, 0))=\"\", \"\",  INDEX('Full set Core Client Indicator'!$A$3:$AB$351, MATCH(Selection_Hide2!$A21, 'Full set Core Client Indicator'!$A$3:$A$351, 0), MATCH(Selection_Hide2!N$5, 'Full set Core Client Indicator'!$A$3:$AB$3, 0))), \"\")","v":""},{"$f":"IF(N21<>\"\", IF(INDEX('Full set Core Client Indicator'!$A$3:$AB$351, MATCH(Selection_Hide2!$A21, 'Full set Core Client Indicator'!$A$3:$A$351, 0), MATCH(Selection_Hide2!O$5, 'Full set Core Client Indicator'!$A$3:$AB$3, 0))=\"\", \"\",  INDEX('Full set Core Client Indicator'!$A$3:$AB$351, MATCH(Selection_Hide2!$A21, 'Full set Core Client Indicator'!$A$3:$A$351, 0), MATCH(Selection_Hide2!O$5, 'Full set Core Client Indicator'!$A$3:$AB$3, 0))), \"\")","v":""},{"$f":"IF(O21<>\"\", IF(INDEX('Full set Core Client Indicator'!$A$3:$AB$351, MATCH(Selection_Hide2!$A21, 'Full set Core Client Indicator'!$A$3:$A$351, 0), MATCH(Selection_Hide2!P$5, 'Full set Core Client Indicator'!$A$3:$AB$3, 0))=\"\", \"\",  INDEX('Full set Core Client Indicator'!$A$3:$AB$351, MATCH(Selection_Hide2!$A21, 'Full set Core Client Indicator'!$A$3:$A$351, 0), MATCH(Selection_Hide2!P$5, 'Full set Core Client Indicator'!$A$3:$AB$3, 0))), \"\")","v":""},{"$f":"IF(P21<>\"\", IF(INDEX('Full set Core Client Indicator'!$A$3:$AB$351, MATCH(Selection_Hide2!$A21, 'Full set Core Client Indicator'!$A$3:$A$351, 0), MATCH(Selection_Hide2!Q$5, 'Full set Core Client Indicator'!$A$3:$AB$3, 0))=\"\", \"\",  INDEX('Full set Core Client Indicator'!$A$3:$AB$351, MATCH(Selection_Hide2!$A21, 'Full set Core Client Indicator'!$A$3:$A$351, 0), MATCH(Selection_Hide2!Q$5, 'Full set Core Client Indicator'!$A$3:$AB$3, 0))), \"\")","v":""},{"$f":"IF(Q21<>\"\", IF(INDEX('Full set Core Client Indicator'!$A$3:$AB$351, MATCH(Selection_Hide2!$A21, 'Full set Core Client Indicator'!$A$3:$A$351, 0), MATCH(Selection_Hide2!R$5, 'Full set Core Client Indicator'!$A$3:$AB$3, 0))=\"\", \"\",  INDEX('Full set Core Client Indicator'!$A$3:$AB$351, MATCH(Selection_Hide2!$A21, 'Full set Core Client Indicator'!$A$3:$A$351, 0), MATCH(Selection_Hide2!R$5, 'Full set Core Client Indicator'!$A$3:$AB$3, 0))), \"\")","v":""},{"$f":"IF(R21<>\"\", IF(INDEX('Full set Core Client Indicator'!$A$3:$AB$351, MATCH(Selection_Hide2!$A21, 'Full set Core Client Indicator'!$A$3:$A$351, 0), MATCH(Selection_Hide2!S$5, 'Full set Core Client Indicator'!$A$3:$AB$3, 0))=\"\", \"\",  INDEX('Full set Core Client Indicator'!$A$3:$AB$351, MATCH(Selection_Hide2!$A21, 'Full set Core Client Indicator'!$A$3:$A$351, 0), MATCH(Selection_Hide2!S$5, 'Full set Core Client Indicator'!$A$3:$AB$3, 0))), \"\")","v":""},{"$f":"IF(S21<>\"\", IF(INDEX('Full set Core Client Indicator'!$A$3:$AB$351, MATCH(Selection_Hide2!$A21, 'Full set Core Client Indicator'!$A$3:$A$351, 0), MATCH(Selection_Hide2!T$5, 'Full set Core Client Indicator'!$A$3:$AB$3, 0))=\"\", \"\",  INDEX('Full set Core Client Indicator'!$A$3:$AB$351, MATCH(Selection_Hide2!$A21, 'Full set Core Client Indicator'!$A$3:$A$351, 0), MATCH(Selection_Hide2!T$5, 'Full set Core Client Indicator'!$A$3:$AB$3, 0))), \"\")","v":""},{"$f":"IF(T21<>\"\", IF(INDEX('Full set Core Client Indicator'!$A$3:$AB$351, MATCH(Selection_Hide2!$A21, 'Full set Core Client Indicator'!$A$3:$A$351, 0), MATCH(Selection_Hide2!U$5, 'Full set Core Client Indicator'!$A$3:$AB$3, 0))=\"\", \"\",  INDEX('Full set Core Client Indicator'!$A$3:$AB$351, MATCH(Selection_Hide2!$A21, 'Full set Core Client Indicator'!$A$3:$A$351, 0), MATCH(Selection_Hide2!U$5, 'Full set Core Client Indicator'!$A$3:$AB$3, 0))), \"\")","v":""},{"$f":"IF(U21<>\"\", IF(INDEX('Full set Core Client Indicator'!$A$3:$AB$351, MATCH(Selection_Hide2!$A21, 'Full set Core Client Indicator'!$A$3:$A$351, 0), MATCH(Selection_Hide2!V$5, 'Full set Core Client Indicator'!$A$3:$AB$3, 0))=\"\", \"\",  INDEX('Full set Core Client Indicator'!$A$3:$AB$351, MATCH(Selection_Hide2!$A21, 'Full set Core Client Indicator'!$A$3:$A$351, 0), MATCH(Selection_Hide2!V$5, 'Full set Core Client Indicator'!$A$3:$AB$3, 0))), \"\")","v":""},{"$f":"IF(V21<>\"\", IF(INDEX('Full set Core Client Indicator'!$A$3:$AB$351, MATCH(Selection_Hide2!$A21, 'Full set Core Client Indicator'!$A$3:$A$351, 0), MATCH(Selection_Hide2!W$5, 'Full set Core Client Indicator'!$A$3:$AB$3, 0))=\"\", \"\",  INDEX('Full set Core Client Indicator'!$A$3:$AB$351, MATCH(Selection_Hide2!$A21, 'Full set Core Client Indicator'!$A$3:$A$351, 0), MATCH(Selection_Hide2!W$5, 'Full set Core Client Indicator'!$A$3:$AB$3, 0))), \"\")","v":""},{"$f":"IF(W21<>\"\", IF(INDEX('Full set Core Client Indicator'!$A$3:$AB$351, MATCH(Selection_Hide2!$A21, 'Full set Core Client Indicator'!$A$3:$A$351, 0), MATCH(Selection_Hide2!X$5, 'Full set Core Client Indicator'!$A$3:$AB$3, 0))=\"\", \"\",  INDEX('Full set Core Client Indicator'!$A$3:$AB$351, MATCH(Selection_Hide2!$A21, 'Full set Core Client Indicator'!$A$3:$A$351, 0), MATCH(Selection_Hide2!X$5, 'Full set Core Client Indicator'!$A$3:$AB$3, 0))), \"\")","v":""},{"$f":"IF(X21<>\"\", IF(INDEX('Full set Core Client Indicator'!$A$3:$AB$351, MATCH(Selection_Hide2!$A21, 'Full set Core Client Indicator'!$A$3:$A$351, 0), MATCH(Selection_Hide2!Y$5, 'Full set Core Client Indicator'!$A$3:$AB$3, 0))=\"\", \"\",  INDEX('Full set Core Client Indicator'!$A$3:$AB$351, MATCH(Selection_Hide2!$A21, 'Full set Core Client Indicator'!$A$3:$A$351, 0), MATCH(Selection_Hide2!Y$5, 'Full set Core Client Indicator'!$A$3:$AB$3, 0))), \"\")","v":""},{"$f":"IF(Y21<>\"\", IF(INDEX('Full set Core Client Indicator'!$A$3:$AB$351, MATCH(Selection_Hide2!$A21, 'Full set Core Client Indicator'!$A$3:$A$351, 0), MATCH(Selection_Hide2!Z$5, 'Full set Core Client Indicator'!$A$3:$AB$3, 0))=\"\", \"\",  INDEX('Full set Core Client Indicator'!$A$3:$AB$351, MATCH(Selection_Hide2!$A21, 'Full set Core Client Indicator'!$A$3:$A$351, 0), MATCH(Selection_Hide2!Z$5, 'Full set Core Client Indicator'!$A$3:$AB$3, 0))), \"\")","v":""},{"$f":"IF(Z21<>\"\", IF(INDEX('Full set Core Client Indicator'!$A$3:$AB$351, MATCH(Selection_Hide2!$A21, 'Full set Core Client Indicator'!$A$3:$A$351, 0), MATCH(Selection_Hide2!AA$5, 'Full set Core Client Indicator'!$A$3:$AB$3, 0))=\"\", \"\",  INDEX('Full set Core Client Indicator'!$A$3:$AB$351, MATCH(Selection_Hide2!$A21, 'Full set Core Client Indicator'!$A$3:$A$351, 0), MATCH(Selection_Hide2!AA$5, 'Full set Core Client Indicator'!$A$3:$AB$3, 0))), \"\")","v":""},{"$f":"IF(AA21<>\"\", IF(INDEX('Full set Core Client Indicator'!$A$3:$AB$351, MATCH(Selection_Hide2!$A21, 'Full set Core Client Indicator'!$A$3:$A$351, 0), MATCH(Selection_Hide2!AB$5, 'Full set Core Client Indicator'!$A$3:$AB$3, 0))=\"\", \"\",  INDEX('Full set Core Client Indicator'!$A$3:$AB$351, MATCH(Selection_Hide2!$A21, 'Full set Core Client Indicator'!$A$3:$A$351, 0), MATCH(Selection_Hide2!AB$5, 'Full set Core Client Indicator'!$A$3:$AB$3, 0))), \"\")","v":""}]
[{"$f":"IF(AND(Selection_Hide1!C20<>0, Selection_Hide1!C20<>\"Grand Total\"), Selection_Hide1!C20, \"\")","v":"88"},{"$f":"IF(A22<>\"\", IF(INDEX('Full set Core Client Indicator'!$A$3:$AB$351, MATCH(Selection_Hide2!$A22, 'Full set Core Client Indicator'!$A$3:$A$351, 0), MATCH(Selection_Hide2!B$5, 'Full set Core Client Indicator'!$A$3:$AB$3, 0))=\"\", \"\",  INDEX('Full set Core Client Indicator'!$A$3:$AB$351, MATCH(Selection_Hide2!$A22, 'Full set Core Client Indicator'!$A$3:$A$351, 0), MATCH(Selection_Hide2!B$5, 'Full set Core Client Indicator'!$A$3:$AB$3, 0))), \"\")","v":"Health"},{"$f":"IF(B22<>\"\", IF(INDEX('Full set Core Client Indicator'!$A$3:$AB$351, MATCH(Selection_Hide2!$A22, 'Full set Core Client Indicator'!$A$3:$A$351, 0), MATCH(Selection_Hide2!C$5, 'Full set Core Client Indicator'!$A$3:$AB$3, 0))=\"\", \"\",  INDEX('Full set Core Client Indicator'!$A$3:$AB$351, MATCH(Selection_Hide2!$A22, 'Full set Core Client Indicator'!$A$3:$A$351, 0), MATCH(Selection_Hide2!C$5, 'Full set Core Client Indicator'!$A$3:$AB$3, 0))), \"\")","v":"Mothers have healthy pregnancies and babies have good birth outcomes"},{"$f":"IF(C22<>\"\", IF(INDEX('Full set Core Client Indicator'!$A$3:$AB$351, MATCH(Selection_Hide2!$A22, 'Full set Core Client Indicator'!$A$3:$A$351, 0), MATCH(Selection_Hide2!D$5, 'Full set Core Client Indicator'!$A$3:$AB$3, 0))=\"\", \"\",  INDEX('Full set Core Client Indicator'!$A$3:$AB$351, MATCH(Selection_Hide2!$A22, 'Full set Core Client Indicator'!$A$3:$A$351, 0), MATCH(Selection_Hide2!D$5, 'Full set Core Client Indicator'!$A$3:$AB$3, 0))), \"\")","v":"Proportion (%) of women who report substance misuse during pregnancy"},{"$f":"IF(D22<>\"\", IF(INDEX('Full set Core Client Indicator'!$A$3:$AB$351, MATCH(Selection_Hide2!$A22, 'Full set Core Client Indicator'!$A$3:$A$351, 0), MATCH(Selection_Hide2!E$5, 'Full set Core Client Indicator'!$A$3:$AB$3, 0))=\"\", \"\",  INDEX('Full set Core Client Indicator'!$A$3:$AB$351, MATCH(Selection_Hide2!$A22, 'Full set Core Client Indicator'!$A$3:$A$351, 0), MATCH(Selection_Hide2!E$5, 'Full set Core Client Indicator'!$A$3:$AB$3, 0))), \"\")","v":"No measure identified"},{"$f":"IF(E22<>\"\", IF(INDEX('Full set Core Client Indicator'!$A$3:$AB$351, MATCH(Selection_Hide2!$A22, 'Full set Core Client Indicator'!$A$3:$A$351, 0), MATCH(Selection_Hide2!F$5, 'Full set Core Client Indicator'!$A$3:$AB$3, 0))=\"\", \"\",  INDEX('Full set Core Client Indicator'!$A$3:$AB$351, MATCH(Selection_Hide2!$A22, 'Full set Core Client Indicator'!$A$3:$A$351, 0), MATCH(Selection_Hide2!F$5, 'Full set Core Client Indicator'!$A$3:$AB$3, 0))), \"\")","v":"Evidence development required"},{"$f":"IF(F22<>\"\", IF(INDEX('Full set Core Client Indicator'!$A$3:$AB$351, MATCH(Selection_Hide2!$A22, 'Full set Core Client Indicator'!$A$3:$A$351, 0), MATCH(Selection_Hide2!G$5, 'Full set Core Client Indicator'!$A$3:$AB$3, 0))=\"\", \"\",  INDEX('Full set Core Client Indicator'!$A$3:$AB$351, MATCH(Selection_Hide2!$A22, 'Full set Core Client Indicator'!$A$3:$A$351, 0), MATCH(Selection_Hide2!G$5, 'Full set Core Client Indicator'!$A$3:$AB$3, 0))), \"\")","v":"New data"},{"$f":"IF(G22<>\"\", IF(INDEX('Full set Core Client Indicator'!$A$3:$AB$351, MATCH(Selection_Hide2!$A22, 'Full set Core Client Indicator'!$A$3:$A$351, 0), MATCH(Selection_Hide2!H$5, 'Full set Core Client Indicator'!$A$3:$AB$3, 0))=\"\", \"\",  INDEX('Full set Core Client Indicator'!$A$3:$AB$351, MATCH(Selection_Hide2!$A22, 'Full set Core Client Indicator'!$A$3:$A$351, 0), MATCH(Selection_Hide2!H$5, 'Full set Core Client Indicator'!$A$3:$AB$3, 0))), \"\")","v":"No data source"},{"$f":"IF(H22<>\"\", IF(INDEX('Full set Core Client Indicator'!$A$3:$AB$351, MATCH(Selection_Hide2!$A22, 'Full set Core Client Indicator'!$A$3:$A$351, 0), MATCH(Selection_Hide2!I$5, 'Full set Core Client Indicator'!$A$3:$AB$3, 0))=\"\", \"\",  INDEX('Full set Core Client Indicator'!$A$3:$AB$351, MATCH(Selection_Hide2!$A22, 'Full set Core Client Indicator'!$A$3:$A$351, 0), MATCH(Selection_Hide2!I$5, 'Full set Core Client Indicator'!$A$3:$AB$3, 0))), \"\")","v":""},{"$f":"IF(I22<>\"\", IF(INDEX('Full set Core Client Indicator'!$A$3:$AB$351, MATCH(Selection_Hide2!$A22, 'Full set Core Client Indicator'!$A$3:$A$351, 0), MATCH(Selection_Hide2!J$5, 'Full set Core Client Indicator'!$A$3:$AB$3, 0))=\"\", \"\",  INDEX('Full set Core Client Indicator'!$A$3:$AB$351, MATCH(Selection_Hide2!$A22, 'Full set Core Client Indicator'!$A$3:$A$351, 0), MATCH(Selection_Hide2!J$5, 'Full set Core Client Indicator'!$A$3:$AB$3, 0))), \"\")","v":""},{"$f":"IF(J22<>\"\", IF(INDEX('Full set Core Client Indicator'!$A$3:$AB$351, MATCH(Selection_Hide2!$A22, 'Full set Core Client Indicator'!$A$3:$A$351, 0), MATCH(Selection_Hide2!K$5, 'Full set Core Client Indicator'!$A$3:$AB$3, 0))=\"\", \"\",  INDEX('Full set Core Client Indicator'!$A$3:$AB$351, MATCH(Selection_Hide2!$A22, 'Full set Core Client Indicator'!$A$3:$A$351, 0), MATCH(Selection_Hide2!K$5, 'Full set Core Client Indicator'!$A$3:$AB$3, 0))), \"\")","v":""},{"$f":"IF(K22<>\"\", IF(INDEX('Full set Core Client Indicator'!$A$3:$AB$351, MATCH(Selection_Hide2!$A22, 'Full set Core Client Indicator'!$A$3:$A$351, 0), MATCH(Selection_Hide2!L$5, 'Full set Core Client Indicator'!$A$3:$AB$3, 0))=\"\", \"\",  INDEX('Full set Core Client Indicator'!$A$3:$AB$351, MATCH(Selection_Hide2!$A22, 'Full set Core Client Indicator'!$A$3:$A$351, 0), MATCH(Selection_Hide2!L$5, 'Full set Core Client Indicator'!$A$3:$AB$3, 0))), \"\")","v":""},{"$f":"IF(L22<>\"\", IF(INDEX('Full set Core Client Indicator'!$A$3:$AB$351, MATCH(Selection_Hide2!$A22, 'Full set Core Client Indicator'!$A$3:$A$351, 0), MATCH(Selection_Hide2!M$5, 'Full set Core Client Indicator'!$A$3:$AB$3, 0))=\"\", \"\",  INDEX('Full set Core Client Indicator'!$A$3:$AB$351, MATCH(Selection_Hide2!$A22, 'Full set Core Client Indicator'!$A$3:$A$351, 0), MATCH(Selection_Hide2!M$5, 'Full set Core Client Indicator'!$A$3:$AB$3, 0))), \"\")","v":""},{"$f":"IF(M22<>\"\", IF(INDEX('Full set Core Client Indicator'!$A$3:$AB$351, MATCH(Selection_Hide2!$A22, 'Full set Core Client Indicator'!$A$3:$A$351, 0), MATCH(Selection_Hide2!N$5, 'Full set Core Client Indicator'!$A$3:$AB$3, 0))=\"\", \"\",  INDEX('Full set Core Client Indicator'!$A$3:$AB$351, MATCH(Selection_Hide2!$A22, 'Full set Core Client Indicator'!$A$3:$A$351, 0), MATCH(Selection_Hide2!N$5, 'Full set Core Client Indicator'!$A$3:$AB$3, 0))), \"\")","v":""},{"$f":"IF(N22<>\"\", IF(INDEX('Full set Core Client Indicator'!$A$3:$AB$351, MATCH(Selection_Hide2!$A22, 'Full set Core Client Indicator'!$A$3:$A$351, 0), MATCH(Selection_Hide2!O$5, 'Full set Core Client Indicator'!$A$3:$AB$3, 0))=\"\", \"\",  INDEX('Full set Core Client Indicator'!$A$3:$AB$351, MATCH(Selection_Hide2!$A22, 'Full set Core Client Indicator'!$A$3:$A$351, 0), MATCH(Selection_Hide2!O$5, 'Full set Core Client Indicator'!$A$3:$AB$3, 0))), \"\")","v":""},{"$f":"IF(O22<>\"\", IF(INDEX('Full set Core Client Indicator'!$A$3:$AB$351, MATCH(Selection_Hide2!$A22, 'Full set Core Client Indicator'!$A$3:$A$351, 0), MATCH(Selection_Hide2!P$5, 'Full set Core Client Indicator'!$A$3:$AB$3, 0))=\"\", \"\",  INDEX('Full set Core Client Indicator'!$A$3:$AB$351, MATCH(Selection_Hide2!$A22, 'Full set Core Client Indicator'!$A$3:$A$351, 0), MATCH(Selection_Hide2!P$5, 'Full set Core Client Indicator'!$A$3:$AB$3, 0))), \"\")","v":""},{"$f":"IF(P22<>\"\", IF(INDEX('Full set Core Client Indicator'!$A$3:$AB$351, MATCH(Selection_Hide2!$A22, 'Full set Core Client Indicator'!$A$3:$A$351, 0), MATCH(Selection_Hide2!Q$5, 'Full set Core Client Indicator'!$A$3:$AB$3, 0))=\"\", \"\",  INDEX('Full set Core Client Indicator'!$A$3:$AB$351, MATCH(Selection_Hide2!$A22, 'Full set Core Client Indicator'!$A$3:$A$351, 0), MATCH(Selection_Hide2!Q$5, 'Full set Core Client Indicator'!$A$3:$AB$3, 0))), \"\")","v":""},{"$f":"IF(Q22<>\"\", IF(INDEX('Full set Core Client Indicator'!$A$3:$AB$351, MATCH(Selection_Hide2!$A22, 'Full set Core Client Indicator'!$A$3:$A$351, 0), MATCH(Selection_Hide2!R$5, 'Full set Core Client Indicator'!$A$3:$AB$3, 0))=\"\", \"\",  INDEX('Full set Core Client Indicator'!$A$3:$AB$351, MATCH(Selection_Hide2!$A22, 'Full set Core Client Indicator'!$A$3:$A$351, 0), MATCH(Selection_Hide2!R$5, 'Full set Core Client Indicator'!$A$3:$AB$3, 0))), \"\")","v":""},{"$f":"IF(R22<>\"\", IF(INDEX('Full set Core Client Indicator'!$A$3:$AB$351, MATCH(Selection_Hide2!$A22, 'Full set Core Client Indicator'!$A$3:$A$351, 0), MATCH(Selection_Hide2!S$5, 'Full set Core Client Indicator'!$A$3:$AB$3, 0))=\"\", \"\",  INDEX('Full set Core Client Indicator'!$A$3:$AB$351, MATCH(Selection_Hide2!$A22, 'Full set Core Client Indicator'!$A$3:$A$351, 0), MATCH(Selection_Hide2!S$5, 'Full set Core Client Indicator'!$A$3:$AB$3, 0))), \"\")","v":""},{"$f":"IF(S22<>\"\", IF(INDEX('Full set Core Client Indicator'!$A$3:$AB$351, MATCH(Selection_Hide2!$A22, 'Full set Core Client Indicator'!$A$3:$A$351, 0), MATCH(Selection_Hide2!T$5, 'Full set Core Client Indicator'!$A$3:$AB$3, 0))=\"\", \"\",  INDEX('Full set Core Client Indicator'!$A$3:$AB$351, MATCH(Selection_Hide2!$A22, 'Full set Core Client Indicator'!$A$3:$A$351, 0), MATCH(Selection_Hide2!T$5, 'Full set Core Client Indicator'!$A$3:$AB$3, 0))), \"\")","v":""},{"$f":"IF(T22<>\"\", IF(INDEX('Full set Core Client Indicator'!$A$3:$AB$351, MATCH(Selection_Hide2!$A22, 'Full set Core Client Indicator'!$A$3:$A$351, 0), MATCH(Selection_Hide2!U$5, 'Full set Core Client Indicator'!$A$3:$AB$3, 0))=\"\", \"\",  INDEX('Full set Core Client Indicator'!$A$3:$AB$351, MATCH(Selection_Hide2!$A22, 'Full set Core Client Indicator'!$A$3:$A$351, 0), MATCH(Selection_Hide2!U$5, 'Full set Core Client Indicator'!$A$3:$AB$3, 0))), \"\")","v":""},{"$f":"IF(U22<>\"\", IF(INDEX('Full set Core Client Indicator'!$A$3:$AB$351, MATCH(Selection_Hide2!$A22, 'Full set Core Client Indicator'!$A$3:$A$351, 0), MATCH(Selection_Hide2!V$5, 'Full set Core Client Indicator'!$A$3:$AB$3, 0))=\"\", \"\",  INDEX('Full set Core Client Indicator'!$A$3:$AB$351, MATCH(Selection_Hide2!$A22, 'Full set Core Client Indicator'!$A$3:$A$351, 0), MATCH(Selection_Hide2!V$5, 'Full set Core Client Indicator'!$A$3:$AB$3, 0))), \"\")","v":""},{"$f":"IF(V22<>\"\", IF(INDEX('Full set Core Client Indicator'!$A$3:$AB$351, MATCH(Selection_Hide2!$A22, 'Full set Core Client Indicator'!$A$3:$A$351, 0), MATCH(Selection_Hide2!W$5, 'Full set Core Client Indicator'!$A$3:$AB$3, 0))=\"\", \"\",  INDEX('Full set Core Client Indicator'!$A$3:$AB$351, MATCH(Selection_Hide2!$A22, 'Full set Core Client Indicator'!$A$3:$A$351, 0), MATCH(Selection_Hide2!W$5, 'Full set Core Client Indicator'!$A$3:$AB$3, 0))), \"\")","v":""},{"$f":"IF(W22<>\"\", IF(INDEX('Full set Core Client Indicator'!$A$3:$AB$351, MATCH(Selection_Hide2!$A22, 'Full set Core Client Indicator'!$A$3:$A$351, 0), MATCH(Selection_Hide2!X$5, 'Full set Core Client Indicator'!$A$3:$AB$3, 0))=\"\", \"\",  INDEX('Full set Core Client Indicator'!$A$3:$AB$351, MATCH(Selection_Hide2!$A22, 'Full set Core Client Indicator'!$A$3:$A$351, 0), MATCH(Selection_Hide2!X$5, 'Full set Core Client Indicator'!$A$3:$AB$3, 0))), \"\")","v":""},{"$f":"IF(X22<>\"\", IF(INDEX('Full set Core Client Indicator'!$A$3:$AB$351, MATCH(Selection_Hide2!$A22, 'Full set Core Client Indicator'!$A$3:$A$351, 0), MATCH(Selection_Hide2!Y$5, 'Full set Core Client Indicator'!$A$3:$AB$3, 0))=\"\", \"\",  INDEX('Full set Core Client Indicator'!$A$3:$AB$351, MATCH(Selection_Hide2!$A22, 'Full set Core Client Indicator'!$A$3:$A$351, 0), MATCH(Selection_Hide2!Y$5, 'Full set Core Client Indicator'!$A$3:$AB$3, 0))), \"\")","v":""},{"$f":"IF(Y22<>\"\", IF(INDEX('Full set Core Client Indicator'!$A$3:$AB$351, MATCH(Selection_Hide2!$A22, 'Full set Core Client Indicator'!$A$3:$A$351, 0), MATCH(Selection_Hide2!Z$5, 'Full set Core Client Indicator'!$A$3:$AB$3, 0))=\"\", \"\",  INDEX('Full set Core Client Indicator'!$A$3:$AB$351, MATCH(Selection_Hide2!$A22, 'Full set Core Client Indicator'!$A$3:$A$351, 0), MATCH(Selection_Hide2!Z$5, 'Full set Core Client Indicator'!$A$3:$AB$3, 0))), \"\")","v":""},{"$f":"IF(Z22<>\"\", IF(INDEX('Full set Core Client Indicator'!$A$3:$AB$351, MATCH(Selection_Hide2!$A22, 'Full set Core Client Indicator'!$A$3:$A$351, 0), MATCH(Selection_Hide2!AA$5, 'Full set Core Client Indicator'!$A$3:$AB$3, 0))=\"\", \"\",  INDEX('Full set Core Client Indicator'!$A$3:$AB$351, MATCH(Selection_Hide2!$A22, 'Full set Core Client Indicator'!$A$3:$A$351, 0), MATCH(Selection_Hide2!AA$5, 'Full set Core Client Indicator'!$A$3:$AB$3, 0))), \"\")","v":""},{"$f":"IF(AA22<>\"\", IF(INDEX('Full set Core Client Indicator'!$A$3:$AB$351, MATCH(Selection_Hide2!$A22, 'Full set Core Client Indicator'!$A$3:$A$351, 0), MATCH(Selection_Hide2!AB$5, 'Full set Core Client Indicator'!$A$3:$AB$3, 0))=\"\", \"\",  INDEX('Full set Core Client Indicator'!$A$3:$AB$351, MATCH(Selection_Hide2!$A22, 'Full set Core Client Indicator'!$A$3:$A$351, 0), MATCH(Selection_Hide2!AB$5, 'Full set Core Client Indicator'!$A$3:$AB$3, 0))), \"\")","v":""}]
[{"$f":"IF(AND(Selection_Hide1!C21<>0, Selection_Hide1!C21<>\"Grand Total\"), Selection_Hide1!C21, \"\")","v":"89"},{"$f":"IF(A23<>\"\", IF(INDEX('Full set Core Client Indicator'!$A$3:$AB$351, MATCH(Selection_Hide2!$A23, 'Full set Core Client Indicator'!$A$3:$A$351, 0), MATCH(Selection_Hide2!B$5, 'Full set Core Client Indicator'!$A$3:$AB$3, 0))=\"\", \"\",  INDEX('Full set Core Client Indicator'!$A$3:$AB$351, MATCH(Selection_Hide2!$A23, 'Full set Core Client Indicator'!$A$3:$A$351, 0), MATCH(Selection_Hide2!B$5, 'Full set Core Client Indicator'!$A$3:$AB$3, 0))), \"\")","v":"Health"},{"$f":"IF(B23<>\"\", IF(INDEX('Full set Core Client Indicator'!$A$3:$AB$351, MATCH(Selection_Hide2!$A23, 'Full set Core Client Indicator'!$A$3:$A$351, 0), MATCH(Selection_Hide2!C$5, 'Full set Core Client Indicator'!$A$3:$AB$3, 0))=\"\", \"\",  INDEX('Full set Core Client Indicator'!$A$3:$AB$351, MATCH(Selection_Hide2!$A23, 'Full set Core Client Indicator'!$A$3:$A$351, 0), MATCH(Selection_Hide2!C$5, 'Full set Core Client Indicator'!$A$3:$AB$3, 0))), \"\")","v":"Mothers have healthy pregnancies and babies have good birth outcomes"},{"$f":"IF(C23<>\"\", IF(INDEX('Full set Core Client Indicator'!$A$3:$AB$351, MATCH(Selection_Hide2!$A23, 'Full set Core Client Indicator'!$A$3:$A$351, 0), MATCH(Selection_Hide2!D$5, 'Full set Core Client Indicator'!$A$3:$AB$3, 0))=\"\", \"\",  INDEX('Full set Core Client Indicator'!$A$3:$AB$351, MATCH(Selection_Hide2!$A23, 'Full set Core Client Indicator'!$A$3:$A$351, 0), MATCH(Selection_Hide2!D$5, 'Full set Core Client Indicator'!$A$3:$AB$3, 0))), \"\")","v":"Proportion (%) of women who present for antenatal care programs"},{"$f":"IF(D23<>\"\", IF(INDEX('Full set Core Client Indicator'!$A$3:$AB$351, MATCH(Selection_Hide2!$A23, 'Full set Core Client Indicator'!$A$3:$A$351, 0), MATCH(Selection_Hide2!E$5, 'Full set Core Client Indicator'!$A$3:$AB$3, 0))=\"\", \"\",  INDEX('Full set Core Client Indicator'!$A$3:$AB$351, MATCH(Selection_Hide2!$A23, 'Full set Core Client Indicator'!$A$3:$A$351, 0), MATCH(Selection_Hide2!E$5, 'Full set Core Client Indicator'!$A$3:$AB$3, 0))), \"\")","v":"Information not publicly available"},{"$f":"IF(E23<>\"\", IF(INDEX('Full set Core Client Indicator'!$A$3:$AB$351, MATCH(Selection_Hide2!$A23, 'Full set Core Client Indicator'!$A$3:$A$351, 0), MATCH(Selection_Hide2!F$5, 'Full set Core Client Indicator'!$A$3:$AB$3, 0))=\"\", \"\",  INDEX('Full set Core Client Indicator'!$A$3:$AB$351, MATCH(Selection_Hide2!$A23, 'Full set Core Client Indicator'!$A$3:$A$351, 0), MATCH(Selection_Hide2!F$5, 'Full set Core Client Indicator'!$A$3:$AB$3, 0))), \"\")","v":"External agency measure (NSW Ministry of Health)"},{"$f":"IF(F23<>\"\", IF(INDEX('Full set Core Client Indicator'!$A$3:$AB$351, MATCH(Selection_Hide2!$A23, 'Full set Core Client Indicator'!$A$3:$A$351, 0), MATCH(Selection_Hide2!G$5, 'Full set Core Client Indicator'!$A$3:$AB$3, 0))=\"\", \"\",  INDEX('Full set Core Client Indicator'!$A$3:$AB$351, MATCH(Selection_Hide2!$A23, 'Full set Core Client Indicator'!$A$3:$A$351, 0), MATCH(Selection_Hide2!G$5, 'Full set Core Client Indicator'!$A$3:$AB$3, 0))), \"\")","v":"Data linkage "},{"$f":"IF(G23<>\"\", IF(INDEX('Full set Core Client Indicator'!$A$3:$AB$351, MATCH(Selection_Hide2!$A23, 'Full set Core Client Indicator'!$A$3:$A$351, 0), MATCH(Selection_Hide2!H$5, 'Full set Core Client Indicator'!$A$3:$AB$3, 0))=\"\", \"\",  INDEX('Full set Core Client Indicator'!$A$3:$AB$351, MATCH(Selection_Hide2!$A23, 'Full set Core Client Indicator'!$A$3:$A$351, 0), MATCH(Selection_Hide2!H$5, 'Full set Core Client Indicator'!$A$3:$AB$3, 0))), \"\")","v":"NSW Perinatal Data Collection (PDC)"},{"$f":"IF(H23<>\"\", IF(INDEX('Full set Core Client Indicator'!$A$3:$AB$351, MATCH(Selection_Hide2!$A23, 'Full set Core Client Indicator'!$A$3:$A$351, 0), MATCH(Selection_Hide2!I$5, 'Full set Core Client Indicator'!$A$3:$AB$3, 0))=\"\", \"\",  INDEX('Full set Core Client Indicator'!$A$3:$AB$351, MATCH(Selection_Hide2!$A23, 'Full set Core Client Indicator'!$A$3:$A$351, 0), MATCH(Selection_Hide2!I$5, 'Full set Core Client Indicator'!$A$3:$AB$3, 0))), \"\")","v":"* Antenatal care [and]"},{"$f":"IF(I23<>\"\", IF(INDEX('Full set Core Client Indicator'!$A$3:$AB$351, MATCH(Selection_Hide2!$A23, 'Full set Core Client Indicator'!$A$3:$A$351, 0), MATCH(Selection_Hide2!J$5, 'Full set Core Client Indicator'!$A$3:$AB$3, 0))=\"\", \"\",  INDEX('Full set Core Client Indicator'!$A$3:$AB$351, MATCH(Selection_Hide2!$A23, 'Full set Core Client Indicator'!$A$3:$A$351, 0), MATCH(Selection_Hide2!J$5, 'Full set Core Client Indicator'!$A$3:$AB$3, 0))), \"\")","v":"Numerator: Number of women where Antenatal care = YES\nDenominator: Number of women who have given birth"},{"$f":"IF(J23<>\"\", IF(INDEX('Full set Core Client Indicator'!$A$3:$AB$351, MATCH(Selection_Hide2!$A23, 'Full set Core Client Indicator'!$A$3:$A$351, 0), MATCH(Selection_Hide2!K$5, 'Full set Core Client Indicator'!$A$3:$AB$3, 0))=\"\", \"\",  INDEX('Full set Core Client Indicator'!$A$3:$AB$351, MATCH(Selection_Hide2!$A23, 'Full set Core Client Indicator'!$A$3:$A$351, 0), MATCH(Selection_Hide2!K$5, 'Full set Core Client Indicator'!$A$3:$AB$3, 0))), \"\")","v":"NSW Ministry of Health"},{"$f":"IF(K23<>\"\", IF(INDEX('Full set Core Client Indicator'!$A$3:$AB$351, MATCH(Selection_Hide2!$A23, 'Full set Core Client Indicator'!$A$3:$A$351, 0), MATCH(Selection_Hide2!L$5, 'Full set Core Client Indicator'!$A$3:$AB$3, 0))=\"\", \"\",  INDEX('Full set Core Client Indicator'!$A$3:$AB$351, MATCH(Selection_Hide2!$A23, 'Full set Core Client Indicator'!$A$3:$A$351, 0), MATCH(Selection_Hide2!L$5, 'Full set Core Client Indicator'!$A$3:$AB$3, 0))), \"\")","v":"CHeReL"},{"$f":"IF(L23<>\"\", IF(INDEX('Full set Core Client Indicator'!$A$3:$AB$351, MATCH(Selection_Hide2!$A23, 'Full set Core Client Indicator'!$A$3:$A$351, 0), MATCH(Selection_Hide2!M$5, 'Full set Core Client Indicator'!$A$3:$AB$3, 0))=\"\", \"\",  INDEX('Full set Core Client Indicator'!$A$3:$AB$351, MATCH(Selection_Hide2!$A23, 'Full set Core Client Indicator'!$A$3:$A$351, 0), MATCH(Selection_Hide2!M$5, 'Full set Core Client Indicator'!$A$3:$AB$3, 0))), \"\")","v":"y"},{"$f":"IF(M23<>\"\", IF(INDEX('Full set Core Client Indicator'!$A$3:$AB$351, MATCH(Selection_Hide2!$A23, 'Full set Core Client Indicator'!$A$3:$A$351, 0), MATCH(Selection_Hide2!N$5, 'Full set Core Client Indicator'!$A$3:$AB$3, 0))=\"\", \"\",  INDEX('Full set Core Client Indicator'!$A$3:$AB$351, MATCH(Selection_Hide2!$A23, 'Full set Core Client Indicator'!$A$3:$A$351, 0), MATCH(Selection_Hide2!N$5, 'Full set Core Client Indicator'!$A$3:$AB$3, 0))), \"\")","v":""},{"$f":"IF(N23<>\"\", IF(INDEX('Full set Core Client Indicator'!$A$3:$AB$351, MATCH(Selection_Hide2!$A23, 'Full set Core Client Indicator'!$A$3:$A$351, 0), MATCH(Selection_Hide2!O$5, 'Full set Core Client Indicator'!$A$3:$AB$3, 0))=\"\", \"\",  INDEX('Full set Core Client Indicator'!$A$3:$AB$351, MATCH(Selection_Hide2!$A23, 'Full set Core Client Indicator'!$A$3:$A$351, 0), MATCH(Selection_Hide2!O$5, 'Full set Core Client Indicator'!$A$3:$AB$3, 0))), \"\")","v":""},{"$f":"IF(O23<>\"\", IF(INDEX('Full set Core Client Indicator'!$A$3:$AB$351, MATCH(Selection_Hide2!$A23, 'Full set Core Client Indicator'!$A$3:$A$351, 0), MATCH(Selection_Hide2!P$5, 'Full set Core Client Indicator'!$A$3:$AB$3, 0))=\"\", \"\",  INDEX('Full set Core Client Indicator'!$A$3:$AB$351, MATCH(Selection_Hide2!$A23, 'Full set Core Client Indicator'!$A$3:$A$351, 0), MATCH(Selection_Hide2!P$5, 'Full set Core Client Indicator'!$A$3:$AB$3, 0))), \"\")","v":""},{"$f":"IF(P23<>\"\", IF(INDEX('Full set Core Client Indicator'!$A$3:$AB$351, MATCH(Selection_Hide2!$A23, 'Full set Core Client Indicator'!$A$3:$A$351, 0), MATCH(Selection_Hide2!Q$5, 'Full set Core Client Indicator'!$A$3:$AB$3, 0))=\"\", \"\",  INDEX('Full set Core Client Indicator'!$A$3:$AB$351, MATCH(Selection_Hide2!$A23, 'Full set Core Client Indicator'!$A$3:$A$351, 0), MATCH(Selection_Hide2!Q$5, 'Full set Core Client Indicator'!$A$3:$AB$3, 0))), \"\")","v":""},{"$f":"IF(Q23<>\"\", IF(INDEX('Full set Core Client Indicator'!$A$3:$AB$351, MATCH(Selection_Hide2!$A23, 'Full set Core Client Indicator'!$A$3:$A$351, 0), MATCH(Selection_Hide2!R$5, 'Full set Core Client Indicator'!$A$3:$AB$3, 0))=\"\", \"\",  INDEX('Full set Core Client Indicator'!$A$3:$AB$351, MATCH(Selection_Hide2!$A23, 'Full set Core Client Indicator'!$A$3:$A$351, 0), MATCH(Selection_Hide2!R$5, 'Full set Core Client Indicator'!$A$3:$AB$3, 0))), \"\")","v":""},{"$f":"IF(R23<>\"\", IF(INDEX('Full set Core Client Indicator'!$A$3:$AB$351, MATCH(Selection_Hide2!$A23, 'Full set Core Client Indicator'!$A$3:$A$351, 0), MATCH(Selection_Hide2!S$5, 'Full set Core Client Indicator'!$A$3:$AB$3, 0))=\"\", \"\",  INDEX('Full set Core Client Indicator'!$A$3:$AB$351, MATCH(Selection_Hide2!$A23, 'Full set Core Client Indicator'!$A$3:$A$351, 0), MATCH(Selection_Hide2!S$5, 'Full set Core Client Indicator'!$A$3:$AB$3, 0))), \"\")","v":""},{"$f":"IF(S23<>\"\", IF(INDEX('Full set Core Client Indicator'!$A$3:$AB$351, MATCH(Selection_Hide2!$A23, 'Full set Core Client Indicator'!$A$3:$A$351, 0), MATCH(Selection_Hide2!T$5, 'Full set Core Client Indicator'!$A$3:$AB$3, 0))=\"\", \"\",  INDEX('Full set Core Client Indicator'!$A$3:$AB$351, MATCH(Selection_Hide2!$A23, 'Full set Core Client Indicator'!$A$3:$A$351, 0), MATCH(Selection_Hide2!T$5, 'Full set Core Client Indicator'!$A$3:$AB$3, 0))), \"\")","v":""},{"$f":"IF(T23<>\"\", IF(INDEX('Full set Core Client Indicator'!$A$3:$AB$351, MATCH(Selection_Hide2!$A23, 'Full set Core Client Indicator'!$A$3:$A$351, 0), MATCH(Selection_Hide2!U$5, 'Full set Core Client Indicator'!$A$3:$AB$3, 0))=\"\", \"\",  INDEX('Full set Core Client Indicator'!$A$3:$AB$351, MATCH(Selection_Hide2!$A23, 'Full set Core Client Indicator'!$A$3:$A$351, 0), MATCH(Selection_Hide2!U$5, 'Full set Core Client Indicator'!$A$3:$AB$3, 0))), \"\")","v":""},{"$f":"IF(U23<>\"\", IF(INDEX('Full set Core Client Indicator'!$A$3:$AB$351, MATCH(Selection_Hide2!$A23, 'Full set Core Client Indicator'!$A$3:$A$351, 0), MATCH(Selection_Hide2!V$5, 'Full set Core Client Indicator'!$A$3:$AB$3, 0))=\"\", \"\",  INDEX('Full set Core Client Indicator'!$A$3:$AB$351, MATCH(Selection_Hide2!$A23, 'Full set Core Client Indicator'!$A$3:$A$351, 0), MATCH(Selection_Hide2!V$5, 'Full set Core Client Indicator'!$A$3:$AB$3, 0))), \"\")","v":""},{"$f":"IF(V23<>\"\", IF(INDEX('Full set Core Client Indicator'!$A$3:$AB$351, MATCH(Selection_Hide2!$A23, 'Full set Core Client Indicator'!$A$3:$A$351, 0), MATCH(Selection_Hide2!W$5, 'Full set Core Client Indicator'!$A$3:$AB$3, 0))=\"\", \"\",  INDEX('Full set Core Client Indicator'!$A$3:$AB$351, MATCH(Selection_Hide2!$A23, 'Full set Core Client Indicator'!$A$3:$A$351, 0), MATCH(Selection_Hide2!W$5, 'Full set Core Client Indicator'!$A$3:$AB$3, 0))), \"\")","v":""},{"$f":"IF(W23<>\"\", IF(INDEX('Full set Core Client Indicator'!$A$3:$AB$351, MATCH(Selection_Hide2!$A23, 'Full set Core Client Indicator'!$A$3:$A$351, 0), MATCH(Selection_Hide2!X$5, 'Full set Core Client Indicator'!$A$3:$AB$3, 0))=\"\", \"\",  INDEX('Full set Core Client Indicator'!$A$3:$AB$351, MATCH(Selection_Hide2!$A23, 'Full set Core Client Indicator'!$A$3:$A$351, 0), MATCH(Selection_Hide2!X$5, 'Full set Core Client Indicator'!$A$3:$AB$3, 0))), \"\")","v":""},{"$f":"IF(X23<>\"\", IF(INDEX('Full set Core Client Indicator'!$A$3:$AB$351, MATCH(Selection_Hide2!$A23, 'Full set Core Client Indicator'!$A$3:$A$351, 0), MATCH(Selection_Hide2!Y$5, 'Full set Core Client Indicator'!$A$3:$AB$3, 0))=\"\", \"\",  INDEX('Full set Core Client Indicator'!$A$3:$AB$351, MATCH(Selection_Hide2!$A23, 'Full set Core Client Indicator'!$A$3:$A$351, 0), MATCH(Selection_Hide2!Y$5, 'Full set Core Client Indicator'!$A$3:$AB$3, 0))), \"\")","v":""},{"$f":"IF(Y23<>\"\", IF(INDEX('Full set Core Client Indicator'!$A$3:$AB$351, MATCH(Selection_Hide2!$A23, 'Full set Core Client Indicator'!$A$3:$A$351, 0), MATCH(Selection_Hide2!Z$5, 'Full set Core Client Indicator'!$A$3:$AB$3, 0))=\"\", \"\",  INDEX('Full set Core Client Indicator'!$A$3:$AB$351, MATCH(Selection_Hide2!$A23, 'Full set Core Client Indicator'!$A$3:$A$351, 0), MATCH(Selection_Hide2!Z$5, 'Full set Core Client Indicator'!$A$3:$AB$3, 0))), \"\")","v":""},{"$f":"IF(Z23<>\"\", IF(INDEX('Full set Core Client Indicator'!$A$3:$AB$351, MATCH(Selection_Hide2!$A23, 'Full set Core Client Indicator'!$A$3:$A$351, 0), MATCH(Selection_Hide2!AA$5, 'Full set Core Client Indicator'!$A$3:$AB$3, 0))=\"\", \"\",  INDEX('Full set Core Client Indicator'!$A$3:$AB$351, MATCH(Selection_Hide2!$A23, 'Full set Core Client Indicator'!$A$3:$A$351, 0), MATCH(Selection_Hide2!AA$5, 'Full set Core Client Indicator'!$A$3:$AB$3, 0))), \"\")","v":""},{"$f":"IF(AA23<>\"\", IF(INDEX('Full set Core Client Indicator'!$A$3:$AB$351, MATCH(Selection_Hide2!$A23, 'Full set Core Client Indicator'!$A$3:$A$351, 0), MATCH(Selection_Hide2!AB$5, 'Full set Core Client Indicator'!$A$3:$AB$3, 0))=\"\", \"\",  INDEX('Full set Core Client Indicator'!$A$3:$AB$351, MATCH(Selection_Hide2!$A23, 'Full set Core Client Indicator'!$A$3:$A$351, 0), MATCH(Selection_Hide2!AB$5, 'Full set Core Client Indicator'!$A$3:$AB$3, 0))), \"\")","v":""}]
[{"$f":"IF(AND(Selection_Hide1!C22<>0, Selection_Hide1!C22<>\"Grand Total\"), Selection_Hide1!C22, \"\")","v":"90"},{"$f":"IF(A24<>\"\", IF(INDEX('Full set Core Client Indicator'!$A$3:$AB$351, MATCH(Selection_Hide2!$A24, 'Full set Core Client Indicator'!$A$3:$A$351, 0), MATCH(Selection_Hide2!B$5, 'Full set Core Client Indicator'!$A$3:$AB$3, 0))=\"\", \"\",  INDEX('Full set Core Client Indicator'!$A$3:$AB$351, MATCH(Selection_Hide2!$A24, 'Full set Core Client Indicator'!$A$3:$A$351, 0), MATCH(Selection_Hide2!B$5, 'Full set Core Client Indicator'!$A$3:$AB$3, 0))), \"\")","v":"Health"},{"$f":"IF(B24<>\"\", IF(INDEX('Full set Core Client Indicator'!$A$3:$AB$351, MATCH(Selection_Hide2!$A24, 'Full set Core Client Indicator'!$A$3:$A$351, 0), MATCH(Selection_Hide2!C$5, 'Full set Core Client Indicator'!$A$3:$AB$3, 0))=\"\", \"\",  INDEX('Full set Core Client Indicator'!$A$3:$AB$351, MATCH(Selection_Hide2!$A24, 'Full set Core Client Indicator'!$A$3:$A$351, 0), MATCH(Selection_Hide2!C$5, 'Full set Core Client Indicator'!$A$3:$AB$3, 0))), \"\")","v":"Mothers have healthy pregnancies and babies have good birth outcomes"},{"$f":"IF(C24<>\"\", IF(INDEX('Full set Core Client Indicator'!$A$3:$AB$351, MATCH(Selection_Hide2!$A24, 'Full set Core Client Indicator'!$A$3:$A$351, 0), MATCH(Selection_Hide2!D$5, 'Full set Core Client Indicator'!$A$3:$AB$3, 0))=\"\", \"\",  INDEX('Full set Core Client Indicator'!$A$3:$AB$351, MATCH(Selection_Hide2!$A24, 'Full set Core Client Indicator'!$A$3:$A$351, 0), MATCH(Selection_Hide2!D$5, 'Full set Core Client Indicator'!$A$3:$AB$3, 0))), \"\")","v":"Proportion (%) of infants exclusively breastfed at 4 months of age"},{"$f":"IF(D24<>\"\", IF(INDEX('Full set Core Client Indicator'!$A$3:$AB$351, MATCH(Selection_Hide2!$A24, 'Full set Core Client Indicator'!$A$3:$A$351, 0), MATCH(Selection_Hide2!E$5, 'Full set Core Client Indicator'!$A$3:$AB$3, 0))=\"\", \"\",  INDEX('Full set Core Client Indicator'!$A$3:$AB$351, MATCH(Selection_Hide2!$A24, 'Full set Core Client Indicator'!$A$3:$A$351, 0), MATCH(Selection_Hide2!E$5, 'Full set Core Client Indicator'!$A$3:$AB$3, 0))), \"\")","v":"ABS National Health Survey\nHas [child’s name] ever received breast milk?\n1. Yes\n5. No\n\nIs [child’s name] currently receiving breast milk?\n1. Yes\n5. No\n\nHow old was [child’s name] when [he/she]\nstopped receiving any breast milk?\n1. [number of months]\n2. Less than 1 month\n\nHas [child’s name] ever had any food or drink\nother than breast milk?\n1. Yes\n5. No\n\nIncluding water, formula, and juice, how old was\n[child’s name] when [he/she] first had any food or\ndrink other than breast milk?\n1. [number of months]\n2. Less than 1 month"},{"$f":"IF(E24<>\"\", IF(INDEX('Full set Core Client Indicator'!$A$3:$AB$351, MATCH(Selection_Hide2!$A24, 'Full set Core Client Indicator'!$A$3:$A$351, 0), MATCH(Selection_Hide2!F$5, 'Full set Core Client Indicator'!$A$3:$AB$3, 0))=\"\", \"\",  INDEX('Full set Core Client Indicator'!$A$3:$AB$351, MATCH(Selection_Hide2!$A24, 'Full set Core Client Indicator'!$A$3:$A$351, 0), MATCH(Selection_Hide2!F$5, 'Full set Core Client Indicator'!$A$3:$AB$3, 0))), \"\")","v":"External agency measure (ABS)"},{"$f":"IF(F24<>\"\", IF(INDEX('Full set Core Client Indicator'!$A$3:$AB$351, MATCH(Selection_Hide2!$A24, 'Full set Core Client Indicator'!$A$3:$A$351, 0), MATCH(Selection_Hide2!G$5, 'Full set Core Client Indicator'!$A$3:$AB$3, 0))=\"\", \"\",  INDEX('Full set Core Client Indicator'!$A$3:$AB$351, MATCH(Selection_Hide2!$A24, 'Full set Core Client Indicator'!$A$3:$A$351, 0), MATCH(Selection_Hide2!G$5, 'Full set Core Client Indicator'!$A$3:$AB$3, 0))), \"\")","v":"New data"},{"$f":"IF(G24<>\"\", IF(INDEX('Full set Core Client Indicator'!$A$3:$AB$351, MATCH(Selection_Hide2!$A24, 'Full set Core Client Indicator'!$A$3:$A$351, 0), MATCH(Selection_Hide2!H$5, 'Full set Core Client Indicator'!$A$3:$AB$3, 0))=\"\", \"\",  INDEX('Full set Core Client Indicator'!$A$3:$AB$351, MATCH(Selection_Hide2!$A24, 'Full set Core Client Indicator'!$A$3:$A$351, 0), MATCH(Selection_Hide2!H$5, 'Full set Core Client Indicator'!$A$3:$AB$3, 0))), \"\")","v":"No data source"},{"$f":"IF(H24<>\"\", IF(INDEX('Full set Core Client Indicator'!$A$3:$AB$351, MATCH(Selection_Hide2!$A24, 'Full set Core Client Indicator'!$A$3:$A$351, 0), MATCH(Selection_Hide2!I$5, 'Full set Core Client Indicator'!$A$3:$AB$3, 0))=\"\", \"\",  INDEX('Full set Core Client Indicator'!$A$3:$AB$351, MATCH(Selection_Hide2!$A24, 'Full set Core Client Indicator'!$A$3:$A$351, 0), MATCH(Selection_Hide2!I$5, 'Full set Core Client Indicator'!$A$3:$AB$3, 0))), \"\")","v":"* Child's breast feeding status\n* Child's age where breastfeeding stopped\n* Child's age at which other consumed food or drink was first consumed"},{"$f":"IF(I24<>\"\", IF(INDEX('Full set Core Client Indicator'!$A$3:$AB$351, MATCH(Selection_Hide2!$A24, 'Full set Core Client Indicator'!$A$3:$A$351, 0), MATCH(Selection_Hide2!J$5, 'Full set Core Client Indicator'!$A$3:$AB$3, 0))=\"\", \"\",  INDEX('Full set Core Client Indicator'!$A$3:$AB$351, MATCH(Selection_Hide2!$A24, 'Full set Core Client Indicator'!$A$3:$A$351, 0), MATCH(Selection_Hide2!J$5, 'Full set Core Client Indicator'!$A$3:$AB$3, 0))), \"\")","v":"Numerator: (Number of children who are currently breastfeeding AND have not had other food or drink) + (Number of children who stop breastfeeding >= 4 months AND first had other food or drink at age >= 4 months) \nDenominator: All children surveyed\nFilters: Children over age of four months"},{"$f":"IF(J24<>\"\", IF(INDEX('Full set Core Client Indicator'!$A$3:$AB$351, MATCH(Selection_Hide2!$A24, 'Full set Core Client Indicator'!$A$3:$A$351, 0), MATCH(Selection_Hide2!K$5, 'Full set Core Client Indicator'!$A$3:$AB$3, 0))=\"\", \"\",  INDEX('Full set Core Client Indicator'!$A$3:$AB$351, MATCH(Selection_Hide2!$A24, 'Full set Core Client Indicator'!$A$3:$A$351, 0), MATCH(Selection_Hide2!K$5, 'Full set Core Client Indicator'!$A$3:$AB$3, 0))), \"\")","v":""},{"$f":"IF(K24<>\"\", IF(INDEX('Full set Core Client Indicator'!$A$3:$AB$351, MATCH(Selection_Hide2!$A24, 'Full set Core Client Indicator'!$A$3:$A$351, 0), MATCH(Selection_Hide2!L$5, 'Full set Core Client Indicator'!$A$3:$AB$3, 0))=\"\", \"\",  INDEX('Full set Core Client Indicator'!$A$3:$AB$351, MATCH(Selection_Hide2!$A24, 'Full set Core Client Indicator'!$A$3:$A$351, 0), MATCH(Selection_Hide2!L$5, 'Full set Core Client Indicator'!$A$3:$AB$3, 0))), \"\")","v":""},{"$f":"IF(L24<>\"\", IF(INDEX('Full set Core Client Indicator'!$A$3:$AB$351, MATCH(Selection_Hide2!$A24, 'Full set Core Client Indicator'!$A$3:$A$351, 0), MATCH(Selection_Hide2!M$5, 'Full set Core Client Indicator'!$A$3:$AB$3, 0))=\"\", \"\",  INDEX('Full set Core Client Indicator'!$A$3:$AB$351, MATCH(Selection_Hide2!$A24, 'Full set Core Client Indicator'!$A$3:$A$351, 0), MATCH(Selection_Hide2!M$5, 'Full set Core Client Indicator'!$A$3:$AB$3, 0))), \"\")","v":""},{"$f":"IF(M24<>\"\", IF(INDEX('Full set Core Client Indicator'!$A$3:$AB$351, MATCH(Selection_Hide2!$A24, 'Full set Core Client Indicator'!$A$3:$A$351, 0), MATCH(Selection_Hide2!N$5, 'Full set Core Client Indicator'!$A$3:$AB$3, 0))=\"\", \"\",  INDEX('Full set Core Client Indicator'!$A$3:$AB$351, MATCH(Selection_Hide2!$A24, 'Full set Core Client Indicator'!$A$3:$A$351, 0), MATCH(Selection_Hide2!N$5, 'Full set Core Client Indicator'!$A$3:$AB$3, 0))), \"\")","v":""},{"$f":"IF(N24<>\"\", IF(INDEX('Full set Core Client Indicator'!$A$3:$AB$351, MATCH(Selection_Hide2!$A24, 'Full set Core Client Indicator'!$A$3:$A$351, 0), MATCH(Selection_Hide2!O$5, 'Full set Core Client Indicator'!$A$3:$AB$3, 0))=\"\", \"\",  INDEX('Full set Core Client Indicator'!$A$3:$AB$351, MATCH(Selection_Hide2!$A24, 'Full set Core Client Indicator'!$A$3:$A$351, 0), MATCH(Selection_Hide2!O$5, 'Full set Core Client Indicator'!$A$3:$AB$3, 0))), \"\")","v":""},{"$f":"IF(O24<>\"\", IF(INDEX('Full set Core Client Indicator'!$A$3:$AB$351, MATCH(Selection_Hide2!$A24, 'Full set Core Client Indicator'!$A$3:$A$351, 0), MATCH(Selection_Hide2!P$5, 'Full set Core Client Indicator'!$A$3:$AB$3, 0))=\"\", \"\",  INDEX('Full set Core Client Indicator'!$A$3:$AB$351, MATCH(Selection_Hide2!$A24, 'Full set Core Client Indicator'!$A$3:$A$351, 0), MATCH(Selection_Hide2!P$5, 'Full set Core Client Indicator'!$A$3:$AB$3, 0))), \"\")","v":""},{"$f":"IF(P24<>\"\", IF(INDEX('Full set Core Client Indicator'!$A$3:$AB$351, MATCH(Selection_Hide2!$A24, 'Full set Core Client Indicator'!$A$3:$A$351, 0), MATCH(Selection_Hide2!Q$5, 'Full set Core Client Indicator'!$A$3:$AB$3, 0))=\"\", \"\",  INDEX('Full set Core Client Indicator'!$A$3:$AB$351, MATCH(Selection_Hide2!$A24, 'Full set Core Client Indicator'!$A$3:$A$351, 0), MATCH(Selection_Hide2!Q$5, 'Full set Core Client Indicator'!$A$3:$AB$3, 0))), \"\")","v":""},{"$f":"IF(Q24<>\"\", IF(INDEX('Full set Core Client Indicator'!$A$3:$AB$351, MATCH(Selection_Hide2!$A24, 'Full set Core Client Indicator'!$A$3:$A$351, 0), MATCH(Selection_Hide2!R$5, 'Full set Core Client Indicator'!$A$3:$AB$3, 0))=\"\", \"\",  INDEX('Full set Core Client Indicator'!$A$3:$AB$351, MATCH(Selection_Hide2!$A24, 'Full set Core Client Indicator'!$A$3:$A$351, 0), MATCH(Selection_Hide2!R$5, 'Full set Core Client Indicator'!$A$3:$AB$3, 0))), \"\")","v":""},{"$f":"IF(R24<>\"\", IF(INDEX('Full set Core Client Indicator'!$A$3:$AB$351, MATCH(Selection_Hide2!$A24, 'Full set Core Client Indicator'!$A$3:$A$351, 0), MATCH(Selection_Hide2!S$5, 'Full set Core Client Indicator'!$A$3:$AB$3, 0))=\"\", \"\",  INDEX('Full set Core Client Indicator'!$A$3:$AB$351, MATCH(Selection_Hide2!$A24, 'Full set Core Client Indicator'!$A$3:$A$351, 0), MATCH(Selection_Hide2!S$5, 'Full set Core Client Indicator'!$A$3:$AB$3, 0))), \"\")","v":""},{"$f":"IF(S24<>\"\", IF(INDEX('Full set Core Client Indicator'!$A$3:$AB$351, MATCH(Selection_Hide2!$A24, 'Full set Core Client Indicator'!$A$3:$A$351, 0), MATCH(Selection_Hide2!T$5, 'Full set Core Client Indicator'!$A$3:$AB$3, 0))=\"\", \"\",  INDEX('Full set Core Client Indicator'!$A$3:$AB$351, MATCH(Selection_Hide2!$A24, 'Full set Core Client Indicator'!$A$3:$A$351, 0), MATCH(Selection_Hide2!T$5, 'Full set Core Client Indicator'!$A$3:$AB$3, 0))), \"\")","v":""},{"$f":"IF(T24<>\"\", IF(INDEX('Full set Core Client Indicator'!$A$3:$AB$351, MATCH(Selection_Hide2!$A24, 'Full set Core Client Indicator'!$A$3:$A$351, 0), MATCH(Selection_Hide2!U$5, 'Full set Core Client Indicator'!$A$3:$AB$3, 0))=\"\", \"\",  INDEX('Full set Core Client Indicator'!$A$3:$AB$351, MATCH(Selection_Hide2!$A24, 'Full set Core Client Indicator'!$A$3:$A$351, 0), MATCH(Selection_Hide2!U$5, 'Full set Core Client Indicator'!$A$3:$AB$3, 0))), \"\")","v":""},{"$f":"IF(U24<>\"\", IF(INDEX('Full set Core Client Indicator'!$A$3:$AB$351, MATCH(Selection_Hide2!$A24, 'Full set Core Client Indicator'!$A$3:$A$351, 0), MATCH(Selection_Hide2!V$5, 'Full set Core Client Indicator'!$A$3:$AB$3, 0))=\"\", \"\",  INDEX('Full set Core Client Indicator'!$A$3:$AB$351, MATCH(Selection_Hide2!$A24, 'Full set Core Client Indicator'!$A$3:$A$351, 0), MATCH(Selection_Hide2!V$5, 'Full set Core Client Indicator'!$A$3:$AB$3, 0))), \"\")","v":""},{"$f":"IF(V24<>\"\", IF(INDEX('Full set Core Client Indicator'!$A$3:$AB$351, MATCH(Selection_Hide2!$A24, 'Full set Core Client Indicator'!$A$3:$A$351, 0), MATCH(Selection_Hide2!W$5, 'Full set Core Client Indicator'!$A$3:$AB$3, 0))=\"\", \"\",  INDEX('Full set Core Client Indicator'!$A$3:$AB$351, MATCH(Selection_Hide2!$A24, 'Full set Core Client Indicator'!$A$3:$A$351, 0), MATCH(Selection_Hide2!W$5, 'Full set Core Client Indicator'!$A$3:$AB$3, 0))), \"\")","v":""},{"$f":"IF(W24<>\"\", IF(INDEX('Full set Core Client Indicator'!$A$3:$AB$351, MATCH(Selection_Hide2!$A24, 'Full set Core Client Indicator'!$A$3:$A$351, 0), MATCH(Selection_Hide2!X$5, 'Full set Core Client Indicator'!$A$3:$AB$3, 0))=\"\", \"\",  INDEX('Full set Core Client Indicator'!$A$3:$AB$351, MATCH(Selection_Hide2!$A24, 'Full set Core Client Indicator'!$A$3:$A$351, 0), MATCH(Selection_Hide2!X$5, 'Full set Core Client Indicator'!$A$3:$AB$3, 0))), \"\")","v":""},{"$f":"IF(X24<>\"\", IF(INDEX('Full set Core Client Indicator'!$A$3:$AB$351, MATCH(Selection_Hide2!$A24, 'Full set Core Client Indicator'!$A$3:$A$351, 0), MATCH(Selection_Hide2!Y$5, 'Full set Core Client Indicator'!$A$3:$AB$3, 0))=\"\", \"\",  INDEX('Full set Core Client Indicator'!$A$3:$AB$351, MATCH(Selection_Hide2!$A24, 'Full set Core Client Indicator'!$A$3:$A$351, 0), MATCH(Selection_Hide2!Y$5, 'Full set Core Client Indicator'!$A$3:$AB$3, 0))), \"\")","v":""},{"$f":"IF(Y24<>\"\", IF(INDEX('Full set Core Client Indicator'!$A$3:$AB$351, MATCH(Selection_Hide2!$A24, 'Full set Core Client Indicator'!$A$3:$A$351, 0), MATCH(Selection_Hide2!Z$5, 'Full set Core Client Indicator'!$A$3:$AB$3, 0))=\"\", \"\",  INDEX('Full set Core Client Indicator'!$A$3:$AB$351, MATCH(Selection_Hide2!$A24, 'Full set Core Client Indicator'!$A$3:$A$351, 0), MATCH(Selection_Hide2!Z$5, 'Full set Core Client Indicator'!$A$3:$AB$3, 0))), \"\")","v":""},{"$f":"IF(Z24<>\"\", IF(INDEX('Full set Core Client Indicator'!$A$3:$AB$351, MATCH(Selection_Hide2!$A24, 'Full set Core Client Indicator'!$A$3:$A$351, 0), MATCH(Selection_Hide2!AA$5, 'Full set Core Client Indicator'!$A$3:$AB$3, 0))=\"\", \"\",  INDEX('Full set Core Client Indicator'!$A$3:$AB$351, MATCH(Selection_Hide2!$A24, 'Full set Core Client Indicator'!$A$3:$A$351, 0), MATCH(Selection_Hide2!AA$5, 'Full set Core Client Indicator'!$A$3:$AB$3, 0))), \"\")","v":""},{"$f":"IF(AA24<>\"\", IF(INDEX('Full set Core Client Indicator'!$A$3:$AB$351, MATCH(Selection_Hide2!$A24, 'Full set Core Client Indicator'!$A$3:$A$351, 0), MATCH(Selection_Hide2!AB$5, 'Full set Core Client Indicator'!$A$3:$AB$3, 0))=\"\", \"\",  INDEX('Full set Core Client Indicator'!$A$3:$AB$351, MATCH(Selection_Hide2!$A24, 'Full set Core Client Indicator'!$A$3:$A$351, 0), MATCH(Selection_Hide2!AB$5, 'Full set Core Client Indicator'!$A$3:$AB$3, 0))), \"\")","v":""}]
[{"$f":"IF(AND(Selection_Hide1!C23<>0, Selection_Hide1!C23<>\"Grand Total\"), Selection_Hide1!C23, \"\")","v":"91"},{"$f":"IF(A25<>\"\", IF(INDEX('Full set Core Client Indicator'!$A$3:$AB$351, MATCH(Selection_Hide2!$A25, 'Full set Core Client Indicator'!$A$3:$A$351, 0), MATCH(Selection_Hide2!B$5, 'Full set Core Client Indicator'!$A$3:$AB$3, 0))=\"\", \"\",  INDEX('Full set Core Client Indicator'!$A$3:$AB$351, MATCH(Selection_Hide2!$A25, 'Full set Core Client Indicator'!$A$3:$A$351, 0), MATCH(Selection_Hide2!B$5, 'Full set Core Client Indicator'!$A$3:$AB$3, 0))), \"\")","v":"Health"},{"$f":"IF(B25<>\"\", IF(INDEX('Full set Core Client Indicator'!$A$3:$AB$351, MATCH(Selection_Hide2!$A25, 'Full set Core Client Indicator'!$A$3:$A$351, 0), MATCH(Selection_Hide2!C$5, 'Full set Core Client Indicator'!$A$3:$AB$3, 0))=\"\", \"\",  INDEX('Full set Core Client Indicator'!$A$3:$AB$351, MATCH(Selection_Hide2!$A25, 'Full set Core Client Indicator'!$A$3:$A$351, 0), MATCH(Selection_Hide2!C$5, 'Full set Core Client Indicator'!$A$3:$AB$3, 0))), \"\")","v":"People have a healthy lifestyle and avoid risk taking behaviours that negatively impact their health"},{"$f":"IF(C25<>\"\", IF(INDEX('Full set Core Client Indicator'!$A$3:$AB$351, MATCH(Selection_Hide2!$A25, 'Full set Core Client Indicator'!$A$3:$A$351, 0), MATCH(Selection_Hide2!D$5, 'Full set Core Client Indicator'!$A$3:$AB$3, 0))=\"\", \"\",  INDEX('Full set Core Client Indicator'!$A$3:$AB$351, MATCH(Selection_Hide2!$A25, 'Full set Core Client Indicator'!$A$3:$A$351, 0), MATCH(Selection_Hide2!D$5, 'Full set Core Client Indicator'!$A$3:$AB$3, 0))), \"\")","v":"Proportion (%) of people who report levels of physical activity below nationally recommended levels"},{"$f":"IF(D25<>\"\", IF(INDEX('Full set Core Client Indicator'!$A$3:$AB$351, MATCH(Selection_Hide2!$A25, 'Full set Core Client Indicator'!$A$3:$A$351, 0), MATCH(Selection_Hide2!E$5, 'Full set Core Client Indicator'!$A$3:$AB$3, 0))=\"\", \"\",  INDEX('Full set Core Client Indicator'!$A$3:$AB$351, MATCH(Selection_Hide2!$A25, 'Full set Core Client Indicator'!$A$3:$A$351, 0), MATCH(Selection_Hide2!E$5, 'Full set Core Client Indicator'!$A$3:$AB$3, 0))), \"\")","v":"ABS questions:\n1. What was the total amount of time you spent walking for fitness, recreation or sport in the last week?\nHours:\nMinutes:\n\n2. How much time in total did you spend walking to get to and from places in the last week?\nHours:\nMinutes:\n\nThe next few questions are about moderate and vigorous exercise.\nPlease exclude any walking that you may have done, household chores, gardening or yardwork and any activity you do as part of your job.\n\n3. In the last week, did you do any exercise which caused a moderate increase in your heart rate or breathing, that is, moderate exercise? (e.g. gentle swimming, social tennis, golf)\nYes\nNo\n\n4. What was the total amount of time you  spent doing moderate exercise in the last week?\nHours:\nMinutes:\n\n5. In the last week, did you do any exercise which caused a large increase in your heart rate or breathing, that is, vigorous exercise? (e.g. jogging, cycling, aerobics, competitive tennis)\nYes\nNo\n\n6. What was the total amount of time you spent doing vigorous exercise in the last week?\nHours:\nMinutes:\n\nSome activities are designed to increase muscle strength or tone, such as lifting weights, resistance training, pull-ups, push-ups, or sit-ups.\n\n7. Including any activities already mentioned, in the last week did you do any strength or toning activities?\nYes\nNo\n\n8. On how many days last week did you do any strength or toning activities?"},{"$f":"IF(E25<>\"\", IF(INDEX('Full set Core Client Indicator'!$A$3:$AB$351, MATCH(Selection_Hide2!$A25, 'Full set Core Client Indicator'!$A$3:$A$351, 0), MATCH(Selection_Hide2!F$5, 'Full set Core Client Indicator'!$A$3:$AB$3, 0))=\"\", \"\",  INDEX('Full set Core Client Indicator'!$A$3:$AB$351, MATCH(Selection_Hide2!$A25, 'Full set Core Client Indicator'!$A$3:$A$351, 0), MATCH(Selection_Hide2!F$5, 'Full set Core Client Indicator'!$A$3:$AB$3, 0))), \"\")","v":"External agency measure (ABS)"},{"$f":"IF(F25<>\"\", IF(INDEX('Full set Core Client Indicator'!$A$3:$AB$351, MATCH(Selection_Hide2!$A25, 'Full set Core Client Indicator'!$A$3:$A$351, 0), MATCH(Selection_Hide2!G$5, 'Full set Core Client Indicator'!$A$3:$AB$3, 0))=\"\", \"\",  INDEX('Full set Core Client Indicator'!$A$3:$AB$351, MATCH(Selection_Hide2!$A25, 'Full set Core Client Indicator'!$A$3:$A$351, 0), MATCH(Selection_Hide2!G$5, 'Full set Core Client Indicator'!$A$3:$AB$3, 0))), \"\")","v":"New data"},{"$f":"IF(G25<>\"\", IF(INDEX('Full set Core Client Indicator'!$A$3:$AB$351, MATCH(Selection_Hide2!$A25, 'Full set Core Client Indicator'!$A$3:$A$351, 0), MATCH(Selection_Hide2!H$5, 'Full set Core Client Indicator'!$A$3:$AB$3, 0))=\"\", \"\",  INDEX('Full set Core Client Indicator'!$A$3:$AB$351, MATCH(Selection_Hide2!$A25, 'Full set Core Client Indicator'!$A$3:$A$351, 0), MATCH(Selection_Hide2!H$5, 'Full set Core Client Indicator'!$A$3:$AB$3, 0))), \"\")","v":"No data source"},{"$f":"IF(H25<>\"\", IF(INDEX('Full set Core Client Indicator'!$A$3:$AB$351, MATCH(Selection_Hide2!$A25, 'Full set Core Client Indicator'!$A$3:$A$351, 0), MATCH(Selection_Hide2!I$5, 'Full set Core Client Indicator'!$A$3:$AB$3, 0))=\"\", \"\",  INDEX('Full set Core Client Indicator'!$A$3:$AB$351, MATCH(Selection_Hide2!$A25, 'Full set Core Client Indicator'!$A$3:$A$351, 0), MATCH(Selection_Hide2!I$5, 'Full set Core Client Indicator'!$A$3:$AB$3, 0))), \"\")","v":"* Number of minutes person spent on walking for fitness, recreation or sport in the last week\n* Number of hours person spent on walking for fitness, recreation or sport in the last week\n* Number of minutes person spent walking to get to and from places in the last week\n* Number of hours person spend walking to get to and from places in the last week\n* Number of minutes person spent on moderate exercise\n* Number of hours person spend on moderate exercise\n* Number of minutes person spent on vigorous exercise\n* Number of hours person spend on vigorous exercise\n* Number of days where person did strength or toning activities\n* Age\n\nDerived values:\n* Person meeting Australian's Physical Activity and Sedentary Behaviour Guidelines\nAustralian's Physical Activity and Sedentary Behaviour Guidelines (2014) outlined that people should be active on most, if not all, days and recommend that:\n-- For young persons aged 15-17 years, at least 60 minutes of moderate to vigorous intensity physical activity every day. The guidelines also recommend that young persons aged 15-17 years do muscle strengthening activities on at least 3 days per week.\n-- For adults aged 18-64 years, 150-300 minutes of moderate intensity physical activity or 75-150 minutes of vigorous intensity physical activity, or an equivalent combination of both, per week. The guidelines also recommend that adults aged 18-64 years do muscle strengthening activities on at least 2 days per week.\n-- For adults aged 65 years and over, at least 30 minutes of physical activity on most, preferably all days. For the NHS, we interpret this recommendation as carried out at least 30 minutes of physical activity on at least 5 or more days."},{"$f":"IF(I25<>\"\", IF(INDEX('Full set Core Client Indicator'!$A$3:$AB$351, MATCH(Selection_Hide2!$A25, 'Full set Core Client Indicator'!$A$3:$A$351, 0), MATCH(Selection_Hide2!J$5, 'Full set Core Client Indicator'!$A$3:$AB$3, 0))=\"\", \"\",  INDEX('Full set Core Client Indicator'!$A$3:$AB$351, MATCH(Selection_Hide2!$A25, 'Full set Core Client Indicator'!$A$3:$A$351, 0), MATCH(Selection_Hide2!J$5, 'Full set Core Client Indicator'!$A$3:$AB$3, 0))), \"\")","v":"Numerator: Number of people who are not meeting Australian's Physical Activity and Sedentary Behaviour Guidelines \nDenominator: Number of people surveyed"},{"$f":"IF(J25<>\"\", IF(INDEX('Full set Core Client Indicator'!$A$3:$AB$351, MATCH(Selection_Hide2!$A25, 'Full set Core Client Indicator'!$A$3:$A$351, 0), MATCH(Selection_Hide2!K$5, 'Full set Core Client Indicator'!$A$3:$AB$3, 0))=\"\", \"\",  INDEX('Full set Core Client Indicator'!$A$3:$AB$351, MATCH(Selection_Hide2!$A25, 'Full set Core Client Indicator'!$A$3:$A$351, 0), MATCH(Selection_Hide2!K$5, 'Full set Core Client Indicator'!$A$3:$AB$3, 0))), \"\")","v":""},{"$f":"IF(K25<>\"\", IF(INDEX('Full set Core Client Indicator'!$A$3:$AB$351, MATCH(Selection_Hide2!$A25, 'Full set Core Client Indicator'!$A$3:$A$351, 0), MATCH(Selection_Hide2!L$5, 'Full set Core Client Indicator'!$A$3:$AB$3, 0))=\"\", \"\",  INDEX('Full set Core Client Indicator'!$A$3:$AB$351, MATCH(Selection_Hide2!$A25, 'Full set Core Client Indicator'!$A$3:$A$351, 0), MATCH(Selection_Hide2!L$5, 'Full set Core Client Indicator'!$A$3:$AB$3, 0))), \"\")","v":""},{"$f":"IF(L25<>\"\", IF(INDEX('Full set Core Client Indicator'!$A$3:$AB$351, MATCH(Selection_Hide2!$A25, 'Full set Core Client Indicator'!$A$3:$A$351, 0), MATCH(Selection_Hide2!M$5, 'Full set Core Client Indicator'!$A$3:$AB$3, 0))=\"\", \"\",  INDEX('Full set Core Client Indicator'!$A$3:$AB$351, MATCH(Selection_Hide2!$A25, 'Full set Core Client Indicator'!$A$3:$A$351, 0), MATCH(Selection_Hide2!M$5, 'Full set Core Client Indicator'!$A$3:$AB$3, 0))), \"\")","v":""},{"$f":"IF(M25<>\"\", IF(INDEX('Full set Core Client Indicator'!$A$3:$AB$351, MATCH(Selection_Hide2!$A25, 'Full set Core Client Indicator'!$A$3:$A$351, 0), MATCH(Selection_Hide2!N$5, 'Full set Core Client Indicator'!$A$3:$AB$3, 0))=\"\", \"\",  INDEX('Full set Core Client Indicator'!$A$3:$AB$351, MATCH(Selection_Hide2!$A25, 'Full set Core Client Indicator'!$A$3:$A$351, 0), MATCH(Selection_Hide2!N$5, 'Full set Core Client Indicator'!$A$3:$AB$3, 0))), \"\")","v":""},{"$f":"IF(N25<>\"\", IF(INDEX('Full set Core Client Indicator'!$A$3:$AB$351, MATCH(Selection_Hide2!$A25, 'Full set Core Client Indicator'!$A$3:$A$351, 0), MATCH(Selection_Hide2!O$5, 'Full set Core Client Indicator'!$A$3:$AB$3, 0))=\"\", \"\",  INDEX('Full set Core Client Indicator'!$A$3:$AB$351, MATCH(Selection_Hide2!$A25, 'Full set Core Client Indicator'!$A$3:$A$351, 0), MATCH(Selection_Hide2!O$5, 'Full set Core Client Indicator'!$A$3:$AB$3, 0))), \"\")","v":""},{"$f":"IF(O25<>\"\", IF(INDEX('Full set Core Client Indicator'!$A$3:$AB$351, MATCH(Selection_Hide2!$A25, 'Full set Core Client Indicator'!$A$3:$A$351, 0), MATCH(Selection_Hide2!P$5, 'Full set Core Client Indicator'!$A$3:$AB$3, 0))=\"\", \"\",  INDEX('Full set Core Client Indicator'!$A$3:$AB$351, MATCH(Selection_Hide2!$A25, 'Full set Core Client Indicator'!$A$3:$A$351, 0), MATCH(Selection_Hide2!P$5, 'Full set Core Client Indicator'!$A$3:$AB$3, 0))), \"\")","v":""},{"$f":"IF(P25<>\"\", IF(INDEX('Full set Core Client Indicator'!$A$3:$AB$351, MATCH(Selection_Hide2!$A25, 'Full set Core Client Indicator'!$A$3:$A$351, 0), MATCH(Selection_Hide2!Q$5, 'Full set Core Client Indicator'!$A$3:$AB$3, 0))=\"\", \"\",  INDEX('Full set Core Client Indicator'!$A$3:$AB$351, MATCH(Selection_Hide2!$A25, 'Full set Core Client Indicator'!$A$3:$A$351, 0), MATCH(Selection_Hide2!Q$5, 'Full set Core Client Indicator'!$A$3:$AB$3, 0))), \"\")","v":""},{"$f":"IF(Q25<>\"\", IF(INDEX('Full set Core Client Indicator'!$A$3:$AB$351, MATCH(Selection_Hide2!$A25, 'Full set Core Client Indicator'!$A$3:$A$351, 0), MATCH(Selection_Hide2!R$5, 'Full set Core Client Indicator'!$A$3:$AB$3, 0))=\"\", \"\",  INDEX('Full set Core Client Indicator'!$A$3:$AB$351, MATCH(Selection_Hide2!$A25, 'Full set Core Client Indicator'!$A$3:$A$351, 0), MATCH(Selection_Hide2!R$5, 'Full set Core Client Indicator'!$A$3:$AB$3, 0))), \"\")","v":""},{"$f":"IF(R25<>\"\", IF(INDEX('Full set Core Client Indicator'!$A$3:$AB$351, MATCH(Selection_Hide2!$A25, 'Full set Core Client Indicator'!$A$3:$A$351, 0), MATCH(Selection_Hide2!S$5, 'Full set Core Client Indicator'!$A$3:$AB$3, 0))=\"\", \"\",  INDEX('Full set Core Client Indicator'!$A$3:$AB$351, MATCH(Selection_Hide2!$A25, 'Full set Core Client Indicator'!$A$3:$A$351, 0), MATCH(Selection_Hide2!S$5, 'Full set Core Client Indicator'!$A$3:$AB$3, 0))), \"\")","v":""},{"$f":"IF(S25<>\"\", IF(INDEX('Full set Core Client Indicator'!$A$3:$AB$351, MATCH(Selection_Hide2!$A25, 'Full set Core Client Indicator'!$A$3:$A$351, 0), MATCH(Selection_Hide2!T$5, 'Full set Core Client Indicator'!$A$3:$AB$3, 0))=\"\", \"\",  INDEX('Full set Core Client Indicator'!$A$3:$AB$351, MATCH(Selection_Hide2!$A25, 'Full set Core Client Indicator'!$A$3:$A$351, 0), MATCH(Selection_Hide2!T$5, 'Full set Core Client Indicator'!$A$3:$AB$3, 0))), \"\")","v":""},{"$f":"IF(T25<>\"\", IF(INDEX('Full set Core Client Indicator'!$A$3:$AB$351, MATCH(Selection_Hide2!$A25, 'Full set Core Client Indicator'!$A$3:$A$351, 0), MATCH(Selection_Hide2!U$5, 'Full set Core Client Indicator'!$A$3:$AB$3, 0))=\"\", \"\",  INDEX('Full set Core Client Indicator'!$A$3:$AB$351, MATCH(Selection_Hide2!$A25, 'Full set Core Client Indicator'!$A$3:$A$351, 0), MATCH(Selection_Hide2!U$5, 'Full set Core Client Indicator'!$A$3:$AB$3, 0))), \"\")","v":""},{"$f":"IF(U25<>\"\", IF(INDEX('Full set Core Client Indicator'!$A$3:$AB$351, MATCH(Selection_Hide2!$A25, 'Full set Core Client Indicator'!$A$3:$A$351, 0), MATCH(Selection_Hide2!V$5, 'Full set Core Client Indicator'!$A$3:$AB$3, 0))=\"\", \"\",  INDEX('Full set Core Client Indicator'!$A$3:$AB$351, MATCH(Selection_Hide2!$A25, 'Full set Core Client Indicator'!$A$3:$A$351, 0), MATCH(Selection_Hide2!V$5, 'Full set Core Client Indicator'!$A$3:$AB$3, 0))), \"\")","v":""},{"$f":"IF(V25<>\"\", IF(INDEX('Full set Core Client Indicator'!$A$3:$AB$351, MATCH(Selection_Hide2!$A25, 'Full set Core Client Indicator'!$A$3:$A$351, 0), MATCH(Selection_Hide2!W$5, 'Full set Core Client Indicator'!$A$3:$AB$3, 0))=\"\", \"\",  INDEX('Full set Core Client Indicator'!$A$3:$AB$351, MATCH(Selection_Hide2!$A25, 'Full set Core Client Indicator'!$A$3:$A$351, 0), MATCH(Selection_Hide2!W$5, 'Full set Core Client Indicator'!$A$3:$AB$3, 0))), \"\")","v":""},{"$f":"IF(W25<>\"\", IF(INDEX('Full set Core Client Indicator'!$A$3:$AB$351, MATCH(Selection_Hide2!$A25, 'Full set Core Client Indicator'!$A$3:$A$351, 0), MATCH(Selection_Hide2!X$5, 'Full set Core Client Indicator'!$A$3:$AB$3, 0))=\"\", \"\",  INDEX('Full set Core Client Indicator'!$A$3:$AB$351, MATCH(Selection_Hide2!$A25, 'Full set Core Client Indicator'!$A$3:$A$351, 0), MATCH(Selection_Hide2!X$5, 'Full set Core Client Indicator'!$A$3:$AB$3, 0))), \"\")","v":""},{"$f":"IF(X25<>\"\", IF(INDEX('Full set Core Client Indicator'!$A$3:$AB$351, MATCH(Selection_Hide2!$A25, 'Full set Core Client Indicator'!$A$3:$A$351, 0), MATCH(Selection_Hide2!Y$5, 'Full set Core Client Indicator'!$A$3:$AB$3, 0))=\"\", \"\",  INDEX('Full set Core Client Indicator'!$A$3:$AB$351, MATCH(Selection_Hide2!$A25, 'Full set Core Client Indicator'!$A$3:$A$351, 0), MATCH(Selection_Hide2!Y$5, 'Full set Core Client Indicator'!$A$3:$AB$3, 0))), \"\")","v":""},{"$f":"IF(Y25<>\"\", IF(INDEX('Full set Core Client Indicator'!$A$3:$AB$351, MATCH(Selection_Hide2!$A25, 'Full set Core Client Indicator'!$A$3:$A$351, 0), MATCH(Selection_Hide2!Z$5, 'Full set Core Client Indicator'!$A$3:$AB$3, 0))=\"\", \"\",  INDEX('Full set Core Client Indicator'!$A$3:$AB$351, MATCH(Selection_Hide2!$A25, 'Full set Core Client Indicator'!$A$3:$A$351, 0), MATCH(Selection_Hide2!Z$5, 'Full set Core Client Indicator'!$A$3:$AB$3, 0))), \"\")","v":""},{"$f":"IF(Z25<>\"\", IF(INDEX('Full set Core Client Indicator'!$A$3:$AB$351, MATCH(Selection_Hide2!$A25, 'Full set Core Client Indicator'!$A$3:$A$351, 0), MATCH(Selection_Hide2!AA$5, 'Full set Core Client Indicator'!$A$3:$AB$3, 0))=\"\", \"\",  INDEX('Full set Core Client Indicator'!$A$3:$AB$351, MATCH(Selection_Hide2!$A25, 'Full set Core Client Indicator'!$A$3:$A$351, 0), MATCH(Selection_Hide2!AA$5, 'Full set Core Client Indicator'!$A$3:$AB$3, 0))), \"\")","v":""},{"$f":"IF(AA25<>\"\", IF(INDEX('Full set Core Client Indicator'!$A$3:$AB$351, MATCH(Selection_Hide2!$A25, 'Full set Core Client Indicator'!$A$3:$A$351, 0), MATCH(Selection_Hide2!AB$5, 'Full set Core Client Indicator'!$A$3:$AB$3, 0))=\"\", \"\",  INDEX('Full set Core Client Indicator'!$A$3:$AB$351, MATCH(Selection_Hide2!$A25, 'Full set Core Client Indicator'!$A$3:$A$351, 0), MATCH(Selection_Hide2!AB$5, 'Full set Core Client Indicator'!$A$3:$AB$3, 0))), \"\")","v":""}]
[{"$f":"IF(AND(Selection_Hide1!C24<>0, Selection_Hide1!C24<>\"Grand Total\"), Selection_Hide1!C24, \"\")","v":"98"},{"$f":"IF(A26<>\"\", IF(INDEX('Full set Core Client Indicator'!$A$3:$AB$351, MATCH(Selection_Hide2!$A26, 'Full set Core Client Indicator'!$A$3:$A$351, 0), MATCH(Selection_Hide2!B$5, 'Full set Core Client Indicator'!$A$3:$AB$3, 0))=\"\", \"\",  INDEX('Full set Core Client Indicator'!$A$3:$AB$351, MATCH(Selection_Hide2!$A26, 'Full set Core Client Indicator'!$A$3:$A$351, 0), MATCH(Selection_Hide2!B$5, 'Full set Core Client Indicator'!$A$3:$AB$3, 0))), \"\")","v":"Health"},{"$f":"IF(B26<>\"\", IF(INDEX('Full set Core Client Indicator'!$A$3:$AB$351, MATCH(Selection_Hide2!$A26, 'Full set Core Client Indicator'!$A$3:$A$351, 0), MATCH(Selection_Hide2!C$5, 'Full set Core Client Indicator'!$A$3:$AB$3, 0))=\"\", \"\",  INDEX('Full set Core Client Indicator'!$A$3:$AB$351, MATCH(Selection_Hide2!$A26, 'Full set Core Client Indicator'!$A$3:$A$351, 0), MATCH(Selection_Hide2!C$5, 'Full set Core Client Indicator'!$A$3:$AB$3, 0))), \"\")","v":"People have a healthy lifestyle and avoid risk taking behaviours that negatively impact their health"},{"$f":"IF(C26<>\"\", IF(INDEX('Full set Core Client Indicator'!$A$3:$AB$351, MATCH(Selection_Hide2!$A26, 'Full set Core Client Indicator'!$A$3:$A$351, 0), MATCH(Selection_Hide2!D$5, 'Full set Core Client Indicator'!$A$3:$AB$3, 0))=\"\", \"\",  INDEX('Full set Core Client Indicator'!$A$3:$AB$351, MATCH(Selection_Hide2!$A26, 'Full set Core Client Indicator'!$A$3:$A$351, 0), MATCH(Selection_Hide2!D$5, 'Full set Core Client Indicator'!$A$3:$AB$3, 0))), \"\")","v":"Proportion (%) of people who currently smoke tobacco "},{"$f":"IF(D26<>\"\", IF(INDEX('Full set Core Client Indicator'!$A$3:$AB$351, MATCH(Selection_Hide2!$A26, 'Full set Core Client Indicator'!$A$3:$A$351, 0), MATCH(Selection_Hide2!E$5, 'Full set Core Client Indicator'!$A$3:$AB$3, 0))=\"\", \"\",  INDEX('Full set Core Client Indicator'!$A$3:$AB$351, MATCH(Selection_Hide2!$A26, 'Full set Core Client Indicator'!$A$3:$A$351, 0), MATCH(Selection_Hide2!E$5, 'Full set Core Client Indicator'!$A$3:$AB$3, 0))), \"\")","v":"QAF measure under development\n\nNSW Population Health Survey (SAPHaRI)\nWhich of the following best describes your smoking status?\n1 I smoke daily\n2 I smoke occasionally \n3 I don't smoke now, but I used to\n4 I've tried it a few times but never smoked regularly\n5 I've never smoked \nX Don't know -> SMKX\nR Refused -> SMKX"},{"$f":"IF(E26<>\"\", IF(INDEX('Full set Core Client Indicator'!$A$3:$AB$351, MATCH(Selection_Hide2!$A26, 'Full set Core Client Indicator'!$A$3:$A$351, 0), MATCH(Selection_Hide2!F$5, 'Full set Core Client Indicator'!$A$3:$AB$3, 0))=\"\", \"\",  INDEX('Full set Core Client Indicator'!$A$3:$AB$351, MATCH(Selection_Hide2!$A26, 'Full set Core Client Indicator'!$A$3:$A$351, 0), MATCH(Selection_Hide2!F$5, 'Full set Core Client Indicator'!$A$3:$AB$3, 0))), \"\")","v":"External agency measure (HealthStats)"},{"$f":"IF(F26<>\"\", IF(INDEX('Full set Core Client Indicator'!$A$3:$AB$351, MATCH(Selection_Hide2!$A26, 'Full set Core Client Indicator'!$A$3:$A$351, 0), MATCH(Selection_Hide2!G$5, 'Full set Core Client Indicator'!$A$3:$AB$3, 0))=\"\", \"\",  INDEX('Full set Core Client Indicator'!$A$3:$AB$351, MATCH(Selection_Hide2!$A26, 'Full set Core Client Indicator'!$A$3:$A$351, 0), MATCH(Selection_Hide2!G$5, 'Full set Core Client Indicator'!$A$3:$AB$3, 0))), \"\")","v":"New data"},{"$f":"IF(G26<>\"\", IF(INDEX('Full set Core Client Indicator'!$A$3:$AB$351, MATCH(Selection_Hide2!$A26, 'Full set Core Client Indicator'!$A$3:$A$351, 0), MATCH(Selection_Hide2!H$5, 'Full set Core Client Indicator'!$A$3:$AB$3, 0))=\"\", \"\",  INDEX('Full set Core Client Indicator'!$A$3:$AB$351, MATCH(Selection_Hide2!$A26, 'Full set Core Client Indicator'!$A$3:$A$351, 0), MATCH(Selection_Hide2!H$5, 'Full set Core Client Indicator'!$A$3:$AB$3, 0))), \"\")","v":"No data source"},{"$f":"IF(H26<>\"\", IF(INDEX('Full set Core Client Indicator'!$A$3:$AB$351, MATCH(Selection_Hide2!$A26, 'Full set Core Client Indicator'!$A$3:$A$351, 0), MATCH(Selection_Hide2!I$5, 'Full set Core Client Indicator'!$A$3:$AB$3, 0))=\"\", \"\",  INDEX('Full set Core Client Indicator'!$A$3:$AB$351, MATCH(Selection_Hide2!$A26, 'Full set Core Client Indicator'!$A$3:$A$351, 0), MATCH(Selection_Hide2!I$5, 'Full set Core Client Indicator'!$A$3:$AB$3, 0))), \"\")","v":"* Persons smoking status"},{"$f":"IF(I26<>\"\", IF(INDEX('Full set Core Client Indicator'!$A$3:$AB$351, MATCH(Selection_Hide2!$A26, 'Full set Core Client Indicator'!$A$3:$A$351, 0), MATCH(Selection_Hide2!J$5, 'Full set Core Client Indicator'!$A$3:$AB$3, 0))=\"\", \"\",  INDEX('Full set Core Client Indicator'!$A$3:$AB$351, MATCH(Selection_Hide2!$A26, 'Full set Core Client Indicator'!$A$3:$A$351, 0), MATCH(Selection_Hide2!J$5, 'Full set Core Client Indicator'!$A$3:$AB$3, 0))), \"\")","v":"Numerator: Number of people who smoke daily or occasionally\nDenominator: Number of people surveyed"},{"$f":"IF(J26<>\"\", IF(INDEX('Full set Core Client Indicator'!$A$3:$AB$351, MATCH(Selection_Hide2!$A26, 'Full set Core Client Indicator'!$A$3:$A$351, 0), MATCH(Selection_Hide2!K$5, 'Full set Core Client Indicator'!$A$3:$AB$3, 0))=\"\", \"\",  INDEX('Full set Core Client Indicator'!$A$3:$AB$351, MATCH(Selection_Hide2!$A26, 'Full set Core Client Indicator'!$A$3:$A$351, 0), MATCH(Selection_Hide2!K$5, 'Full set Core Client Indicator'!$A$3:$AB$3, 0))), \"\")","v":""},{"$f":"IF(K26<>\"\", IF(INDEX('Full set Core Client Indicator'!$A$3:$AB$351, MATCH(Selection_Hide2!$A26, 'Full set Core Client Indicator'!$A$3:$A$351, 0), MATCH(Selection_Hide2!L$5, 'Full set Core Client Indicator'!$A$3:$AB$3, 0))=\"\", \"\",  INDEX('Full set Core Client Indicator'!$A$3:$AB$351, MATCH(Selection_Hide2!$A26, 'Full set Core Client Indicator'!$A$3:$A$351, 0), MATCH(Selection_Hide2!L$5, 'Full set Core Client Indicator'!$A$3:$AB$3, 0))), \"\")","v":""},{"$f":"IF(L26<>\"\", IF(INDEX('Full set Core Client Indicator'!$A$3:$AB$351, MATCH(Selection_Hide2!$A26, 'Full set Core Client Indicator'!$A$3:$A$351, 0), MATCH(Selection_Hide2!M$5, 'Full set Core Client Indicator'!$A$3:$AB$3, 0))=\"\", \"\",  INDEX('Full set Core Client Indicator'!$A$3:$AB$351, MATCH(Selection_Hide2!$A26, 'Full set Core Client Indicator'!$A$3:$A$351, 0), MATCH(Selection_Hide2!M$5, 'Full set Core Client Indicator'!$A$3:$AB$3, 0))), \"\")","v":""},{"$f":"IF(M26<>\"\", IF(INDEX('Full set Core Client Indicator'!$A$3:$AB$351, MATCH(Selection_Hide2!$A26, 'Full set Core Client Indicator'!$A$3:$A$351, 0), MATCH(Selection_Hide2!N$5, 'Full set Core Client Indicator'!$A$3:$AB$3, 0))=\"\", \"\",  INDEX('Full set Core Client Indicator'!$A$3:$AB$351, MATCH(Selection_Hide2!$A26, 'Full set Core Client Indicator'!$A$3:$A$351, 0), MATCH(Selection_Hide2!N$5, 'Full set Core Client Indicator'!$A$3:$AB$3, 0))), \"\")","v":""},{"$f":"IF(N26<>\"\", IF(INDEX('Full set Core Client Indicator'!$A$3:$AB$351, MATCH(Selection_Hide2!$A26, 'Full set Core Client Indicator'!$A$3:$A$351, 0), MATCH(Selection_Hide2!O$5, 'Full set Core Client Indicator'!$A$3:$AB$3, 0))=\"\", \"\",  INDEX('Full set Core Client Indicator'!$A$3:$AB$351, MATCH(Selection_Hide2!$A26, 'Full set Core Client Indicator'!$A$3:$A$351, 0), MATCH(Selection_Hide2!O$5, 'Full set Core Client Indicator'!$A$3:$AB$3, 0))), \"\")","v":""},{"$f":"IF(O26<>\"\", IF(INDEX('Full set Core Client Indicator'!$A$3:$AB$351, MATCH(Selection_Hide2!$A26, 'Full set Core Client Indicator'!$A$3:$A$351, 0), MATCH(Selection_Hide2!P$5, 'Full set Core Client Indicator'!$A$3:$AB$3, 0))=\"\", \"\",  INDEX('Full set Core Client Indicator'!$A$3:$AB$351, MATCH(Selection_Hide2!$A26, 'Full set Core Client Indicator'!$A$3:$A$351, 0), MATCH(Selection_Hide2!P$5, 'Full set Core Client Indicator'!$A$3:$AB$3, 0))), \"\")","v":""},{"$f":"IF(P26<>\"\", IF(INDEX('Full set Core Client Indicator'!$A$3:$AB$351, MATCH(Selection_Hide2!$A26, 'Full set Core Client Indicator'!$A$3:$A$351, 0), MATCH(Selection_Hide2!Q$5, 'Full set Core Client Indicator'!$A$3:$AB$3, 0))=\"\", \"\",  INDEX('Full set Core Client Indicator'!$A$3:$AB$351, MATCH(Selection_Hide2!$A26, 'Full set Core Client Indicator'!$A$3:$A$351, 0), MATCH(Selection_Hide2!Q$5, 'Full set Core Client Indicator'!$A$3:$AB$3, 0))), \"\")","v":""},{"$f":"IF(Q26<>\"\", IF(INDEX('Full set Core Client Indicator'!$A$3:$AB$351, MATCH(Selection_Hide2!$A26, 'Full set Core Client Indicator'!$A$3:$A$351, 0), MATCH(Selection_Hide2!R$5, 'Full set Core Client Indicator'!$A$3:$AB$3, 0))=\"\", \"\",  INDEX('Full set Core Client Indicator'!$A$3:$AB$351, MATCH(Selection_Hide2!$A26, 'Full set Core Client Indicator'!$A$3:$A$351, 0), MATCH(Selection_Hide2!R$5, 'Full set Core Client Indicator'!$A$3:$AB$3, 0))), \"\")","v":""},{"$f":"IF(R26<>\"\", IF(INDEX('Full set Core Client Indicator'!$A$3:$AB$351, MATCH(Selection_Hide2!$A26, 'Full set Core Client Indicator'!$A$3:$A$351, 0), MATCH(Selection_Hide2!S$5, 'Full set Core Client Indicator'!$A$3:$AB$3, 0))=\"\", \"\",  INDEX('Full set Core Client Indicator'!$A$3:$AB$351, MATCH(Selection_Hide2!$A26, 'Full set Core Client Indicator'!$A$3:$A$351, 0), MATCH(Selection_Hide2!S$5, 'Full set Core Client Indicator'!$A$3:$AB$3, 0))), \"\")","v":""},{"$f":"IF(S26<>\"\", IF(INDEX('Full set Core Client Indicator'!$A$3:$AB$351, MATCH(Selection_Hide2!$A26, 'Full set Core Client Indicator'!$A$3:$A$351, 0), MATCH(Selection_Hide2!T$5, 'Full set Core Client Indicator'!$A$3:$AB$3, 0))=\"\", \"\",  INDEX('Full set Core Client Indicator'!$A$3:$AB$351, MATCH(Selection_Hide2!$A26, 'Full set Core Client Indicator'!$A$3:$A$351, 0), MATCH(Selection_Hide2!T$5, 'Full set Core Client Indicator'!$A$3:$AB$3, 0))), \"\")","v":""},{"$f":"IF(T26<>\"\", IF(INDEX('Full set Core Client Indicator'!$A$3:$AB$351, MATCH(Selection_Hide2!$A26, 'Full set Core Client Indicator'!$A$3:$A$351, 0), MATCH(Selection_Hide2!U$5, 'Full set Core Client Indicator'!$A$3:$AB$3, 0))=\"\", \"\",  INDEX('Full set Core Client Indicator'!$A$3:$AB$351, MATCH(Selection_Hide2!$A26, 'Full set Core Client Indicator'!$A$3:$A$351, 0), MATCH(Selection_Hide2!U$5, 'Full set Core Client Indicator'!$A$3:$AB$3, 0))), \"\")","v":""},{"$f":"IF(U26<>\"\", IF(INDEX('Full set Core Client Indicator'!$A$3:$AB$351, MATCH(Selection_Hide2!$A26, 'Full set Core Client Indicator'!$A$3:$A$351, 0), MATCH(Selection_Hide2!V$5, 'Full set Core Client Indicator'!$A$3:$AB$3, 0))=\"\", \"\",  INDEX('Full set Core Client Indicator'!$A$3:$AB$351, MATCH(Selection_Hide2!$A26, 'Full set Core Client Indicator'!$A$3:$A$351, 0), MATCH(Selection_Hide2!V$5, 'Full set Core Client Indicator'!$A$3:$AB$3, 0))), \"\")","v":""},{"$f":"IF(V26<>\"\", IF(INDEX('Full set Core Client Indicator'!$A$3:$AB$351, MATCH(Selection_Hide2!$A26, 'Full set Core Client Indicator'!$A$3:$A$351, 0), MATCH(Selection_Hide2!W$5, 'Full set Core Client Indicator'!$A$3:$AB$3, 0))=\"\", \"\",  INDEX('Full set Core Client Indicator'!$A$3:$AB$351, MATCH(Selection_Hide2!$A26, 'Full set Core Client Indicator'!$A$3:$A$351, 0), MATCH(Selection_Hide2!W$5, 'Full set Core Client Indicator'!$A$3:$AB$3, 0))), \"\")","v":""},{"$f":"IF(W26<>\"\", IF(INDEX('Full set Core Client Indicator'!$A$3:$AB$351, MATCH(Selection_Hide2!$A26, 'Full set Core Client Indicator'!$A$3:$A$351, 0), MATCH(Selection_Hide2!X$5, 'Full set Core Client Indicator'!$A$3:$AB$3, 0))=\"\", \"\",  INDEX('Full set Core Client Indicator'!$A$3:$AB$351, MATCH(Selection_Hide2!$A26, 'Full set Core Client Indicator'!$A$3:$A$351, 0), MATCH(Selection_Hide2!X$5, 'Full set Core Client Indicator'!$A$3:$AB$3, 0))), \"\")","v":""},{"$f":"IF(X26<>\"\", IF(INDEX('Full set Core Client Indicator'!$A$3:$AB$351, MATCH(Selection_Hide2!$A26, 'Full set Core Client Indicator'!$A$3:$A$351, 0), MATCH(Selection_Hide2!Y$5, 'Full set Core Client Indicator'!$A$3:$AB$3, 0))=\"\", \"\",  INDEX('Full set Core Client Indicator'!$A$3:$AB$351, MATCH(Selection_Hide2!$A26, 'Full set Core Client Indicator'!$A$3:$A$351, 0), MATCH(Selection_Hide2!Y$5, 'Full set Core Client Indicator'!$A$3:$AB$3, 0))), \"\")","v":""},{"$f":"IF(Y26<>\"\", IF(INDEX('Full set Core Client Indicator'!$A$3:$AB$351, MATCH(Selection_Hide2!$A26, 'Full set Core Client Indicator'!$A$3:$A$351, 0), MATCH(Selection_Hide2!Z$5, 'Full set Core Client Indicator'!$A$3:$AB$3, 0))=\"\", \"\",  INDEX('Full set Core Client Indicator'!$A$3:$AB$351, MATCH(Selection_Hide2!$A26, 'Full set Core Client Indicator'!$A$3:$A$351, 0), MATCH(Selection_Hide2!Z$5, 'Full set Core Client Indicator'!$A$3:$AB$3, 0))), \"\")","v":""},{"$f":"IF(Z26<>\"\", IF(INDEX('Full set Core Client Indicator'!$A$3:$AB$351, MATCH(Selection_Hide2!$A26, 'Full set Core Client Indicator'!$A$3:$A$351, 0), MATCH(Selection_Hide2!AA$5, 'Full set Core Client Indicator'!$A$3:$AB$3, 0))=\"\", \"\",  INDEX('Full set Core Client Indicator'!$A$3:$AB$351, MATCH(Selection_Hide2!$A26, 'Full set Core Client Indicator'!$A$3:$A$351, 0), MATCH(Selection_Hide2!AA$5, 'Full set Core Client Indicator'!$A$3:$AB$3, 0))), \"\")","v":""},{"$f":"IF(AA26<>\"\", IF(INDEX('Full set Core Client Indicator'!$A$3:$AB$351, MATCH(Selection_Hide2!$A26, 'Full set Core Client Indicator'!$A$3:$A$351, 0), MATCH(Selection_Hide2!AB$5, 'Full set Core Client Indicator'!$A$3:$AB$3, 0))=\"\", \"\",  INDEX('Full set Core Client Indicator'!$A$3:$AB$351, MATCH(Selection_Hide2!$A26, 'Full set Core Client Indicator'!$A$3:$A$351, 0), MATCH(Selection_Hide2!AB$5, 'Full set Core Client Indicator'!$A$3:$AB$3, 0))), \"\")","v":""}]
[{"$f":"IF(AND(Selection_Hide1!C25<>0, Selection_Hide1!C25<>\"Grand Total\"), Selection_Hide1!C25, \"\")","v":"99"},{"$f":"IF(A27<>\"\", IF(INDEX('Full set Core Client Indicator'!$A$3:$AB$351, MATCH(Selection_Hide2!$A27, 'Full set Core Client Indicator'!$A$3:$A$351, 0), MATCH(Selection_Hide2!B$5, 'Full set Core Client Indicator'!$A$3:$AB$3, 0))=\"\", \"\",  INDEX('Full set Core Client Indicator'!$A$3:$AB$351, MATCH(Selection_Hide2!$A27, 'Full set Core Client Indicator'!$A$3:$A$351, 0), MATCH(Selection_Hide2!B$5, 'Full set Core Client Indicator'!$A$3:$AB$3, 0))), \"\")","v":"Health"},{"$f":"IF(B27<>\"\", IF(INDEX('Full set Core Client Indicator'!$A$3:$AB$351, MATCH(Selection_Hide2!$A27, 'Full set Core Client Indicator'!$A$3:$A$351, 0), MATCH(Selection_Hide2!C$5, 'Full set Core Client Indicator'!$A$3:$AB$3, 0))=\"\", \"\",  INDEX('Full set Core Client Indicator'!$A$3:$AB$351, MATCH(Selection_Hide2!$A27, 'Full set Core Client Indicator'!$A$3:$A$351, 0), MATCH(Selection_Hide2!C$5, 'Full set Core Client Indicator'!$A$3:$AB$3, 0))), \"\")","v":"People have a healthy lifestyle and avoid risk taking behaviours that negatively impact their health"},{"$f":"IF(C27<>\"\", IF(INDEX('Full set Core Client Indicator'!$A$3:$AB$351, MATCH(Selection_Hide2!$A27, 'Full set Core Client Indicator'!$A$3:$A$351, 0), MATCH(Selection_Hide2!D$5, 'Full set Core Client Indicator'!$A$3:$AB$3, 0))=\"\", \"\",  INDEX('Full set Core Client Indicator'!$A$3:$AB$351, MATCH(Selection_Hide2!$A27, 'Full set Core Client Indicator'!$A$3:$A$351, 0), MATCH(Selection_Hide2!D$5, 'Full set Core Client Indicator'!$A$3:$AB$3, 0))), \"\")","v":"Proportion (%) of adults currently consuming alcohol at levels posing long-term risk to health"},{"$f":"IF(D27<>\"\", IF(INDEX('Full set Core Client Indicator'!$A$3:$AB$351, MATCH(Selection_Hide2!$A27, 'Full set Core Client Indicator'!$A$3:$A$351, 0), MATCH(Selection_Hide2!E$5, 'Full set Core Client Indicator'!$A$3:$AB$3, 0))=\"\", \"\",  INDEX('Full set Core Client Indicator'!$A$3:$AB$351, MATCH(Selection_Hide2!$A27, 'Full set Core Client Indicator'!$A$3:$A$351, 0), MATCH(Selection_Hide2!E$5, 'Full set Core Client Indicator'!$A$3:$AB$3, 0))), \"\")","v":"NSW Population Health Survey:\nAlcoholic drinks are measured in terms of a \"standard drink\". A standard drink is equal to 1 middy of full-strength beer, 1 schooner of light beer, 1 small glass of wine or 1 pub-sized nip of spirits. On a day when you drink alcohol, how many standard drinks do you usually have?\n1 Record number of drinks\nX Don't know\nR Refused\n\nNational Drug Strategy Household Survey:\nOn a day that you have an alcoholic drink, how many standard drinks do you usually have?  (Mark one response only)\n9 – 10 drinks\n7 – 8 drinks\n5 – 6 drinks\n3 – 4 drinks\n20 or more drinks\n16 – 19 drinks\n13 – 15 drinks\n11 – 12 drinks\n2 drinks\n1 drink\nHalf a drink "},{"$f":"IF(E27<>\"\", IF(INDEX('Full set Core Client Indicator'!$A$3:$AB$351, MATCH(Selection_Hide2!$A27, 'Full set Core Client Indicator'!$A$3:$A$351, 0), MATCH(Selection_Hide2!F$5, 'Full set Core Client Indicator'!$A$3:$AB$3, 0))=\"\", \"\",  INDEX('Full set Core Client Indicator'!$A$3:$AB$351, MATCH(Selection_Hide2!$A27, 'Full set Core Client Indicator'!$A$3:$A$351, 0), MATCH(Selection_Hide2!F$5, 'Full set Core Client Indicator'!$A$3:$AB$3, 0))), \"\")","v":"External agency measure (HealthStats)"},{"$f":"IF(F27<>\"\", IF(INDEX('Full set Core Client Indicator'!$A$3:$AB$351, MATCH(Selection_Hide2!$A27, 'Full set Core Client Indicator'!$A$3:$A$351, 0), MATCH(Selection_Hide2!G$5, 'Full set Core Client Indicator'!$A$3:$AB$3, 0))=\"\", \"\",  INDEX('Full set Core Client Indicator'!$A$3:$AB$351, MATCH(Selection_Hide2!$A27, 'Full set Core Client Indicator'!$A$3:$A$351, 0), MATCH(Selection_Hide2!G$5, 'Full set Core Client Indicator'!$A$3:$AB$3, 0))), \"\")","v":"New data"},{"$f":"IF(G27<>\"\", IF(INDEX('Full set Core Client Indicator'!$A$3:$AB$351, MATCH(Selection_Hide2!$A27, 'Full set Core Client Indicator'!$A$3:$A$351, 0), MATCH(Selection_Hide2!H$5, 'Full set Core Client Indicator'!$A$3:$AB$3, 0))=\"\", \"\",  INDEX('Full set Core Client Indicator'!$A$3:$AB$351, MATCH(Selection_Hide2!$A27, 'Full set Core Client Indicator'!$A$3:$A$351, 0), MATCH(Selection_Hide2!H$5, 'Full set Core Client Indicator'!$A$3:$AB$3, 0))), \"\")","v":"No data source"},{"$f":"IF(H27<>\"\", IF(INDEX('Full set Core Client Indicator'!$A$3:$AB$351, MATCH(Selection_Hide2!$A27, 'Full set Core Client Indicator'!$A$3:$A$351, 0), MATCH(Selection_Hide2!I$5, 'Full set Core Client Indicator'!$A$3:$AB$3, 0))=\"\", \"\",  INDEX('Full set Core Client Indicator'!$A$3:$AB$351, MATCH(Selection_Hide2!$A27, 'Full set Core Client Indicator'!$A$3:$A$351, 0), MATCH(Selection_Hide2!I$5, 'Full set Core Client Indicator'!$A$3:$AB$3, 0))), \"\")","v":"* Number of standard alcoholic drinks a person has in a day"},{"$f":"IF(I27<>\"\", IF(INDEX('Full set Core Client Indicator'!$A$3:$AB$351, MATCH(Selection_Hide2!$A27, 'Full set Core Client Indicator'!$A$3:$A$351, 0), MATCH(Selection_Hide2!J$5, 'Full set Core Client Indicator'!$A$3:$AB$3, 0))=\"\", \"\",  INDEX('Full set Core Client Indicator'!$A$3:$AB$351, MATCH(Selection_Hide2!$A27, 'Full set Core Client Indicator'!$A$3:$A$351, 0), MATCH(Selection_Hide2!J$5, 'Full set Core Client Indicator'!$A$3:$AB$3, 0))), \"\")","v":"Numerator: Number of people who have >= 2 standard alcoholic drinks on a day\nDenominator: Number of people surveyed"},{"$f":"IF(J27<>\"\", IF(INDEX('Full set Core Client Indicator'!$A$3:$AB$351, MATCH(Selection_Hide2!$A27, 'Full set Core Client Indicator'!$A$3:$A$351, 0), MATCH(Selection_Hide2!K$5, 'Full set Core Client Indicator'!$A$3:$AB$3, 0))=\"\", \"\",  INDEX('Full set Core Client Indicator'!$A$3:$AB$351, MATCH(Selection_Hide2!$A27, 'Full set Core Client Indicator'!$A$3:$A$351, 0), MATCH(Selection_Hide2!K$5, 'Full set Core Client Indicator'!$A$3:$AB$3, 0))), \"\")","v":""},{"$f":"IF(K27<>\"\", IF(INDEX('Full set Core Client Indicator'!$A$3:$AB$351, MATCH(Selection_Hide2!$A27, 'Full set Core Client Indicator'!$A$3:$A$351, 0), MATCH(Selection_Hide2!L$5, 'Full set Core Client Indicator'!$A$3:$AB$3, 0))=\"\", \"\",  INDEX('Full set Core Client Indicator'!$A$3:$AB$351, MATCH(Selection_Hide2!$A27, 'Full set Core Client Indicator'!$A$3:$A$351, 0), MATCH(Selection_Hide2!L$5, 'Full set Core Client Indicator'!$A$3:$AB$3, 0))), \"\")","v":""},{"$f":"IF(L27<>\"\", IF(INDEX('Full set Core Client Indicator'!$A$3:$AB$351, MATCH(Selection_Hide2!$A27, 'Full set Core Client Indicator'!$A$3:$A$351, 0), MATCH(Selection_Hide2!M$5, 'Full set Core Client Indicator'!$A$3:$AB$3, 0))=\"\", \"\",  INDEX('Full set Core Client Indicator'!$A$3:$AB$351, MATCH(Selection_Hide2!$A27, 'Full set Core Client Indicator'!$A$3:$A$351, 0), MATCH(Selection_Hide2!M$5, 'Full set Core Client Indicator'!$A$3:$AB$3, 0))), \"\")","v":""},{"$f":"IF(M27<>\"\", IF(INDEX('Full set Core Client Indicator'!$A$3:$AB$351, MATCH(Selection_Hide2!$A27, 'Full set Core Client Indicator'!$A$3:$A$351, 0), MATCH(Selection_Hide2!N$5, 'Full set Core Client Indicator'!$A$3:$AB$3, 0))=\"\", \"\",  INDEX('Full set Core Client Indicator'!$A$3:$AB$351, MATCH(Selection_Hide2!$A27, 'Full set Core Client Indicator'!$A$3:$A$351, 0), MATCH(Selection_Hide2!N$5, 'Full set Core Client Indicator'!$A$3:$AB$3, 0))), \"\")","v":""},{"$f":"IF(N27<>\"\", IF(INDEX('Full set Core Client Indicator'!$A$3:$AB$351, MATCH(Selection_Hide2!$A27, 'Full set Core Client Indicator'!$A$3:$A$351, 0), MATCH(Selection_Hide2!O$5, 'Full set Core Client Indicator'!$A$3:$AB$3, 0))=\"\", \"\",  INDEX('Full set Core Client Indicator'!$A$3:$AB$351, MATCH(Selection_Hide2!$A27, 'Full set Core Client Indicator'!$A$3:$A$351, 0), MATCH(Selection_Hide2!O$5, 'Full set Core Client Indicator'!$A$3:$AB$3, 0))), \"\")","v":""},{"$f":"IF(O27<>\"\", IF(INDEX('Full set Core Client Indicator'!$A$3:$AB$351, MATCH(Selection_Hide2!$A27, 'Full set Core Client Indicator'!$A$3:$A$351, 0), MATCH(Selection_Hide2!P$5, 'Full set Core Client Indicator'!$A$3:$AB$3, 0))=\"\", \"\",  INDEX('Full set Core Client Indicator'!$A$3:$AB$351, MATCH(Selection_Hide2!$A27, 'Full set Core Client Indicator'!$A$3:$A$351, 0), MATCH(Selection_Hide2!P$5, 'Full set Core Client Indicator'!$A$3:$AB$3, 0))), \"\")","v":""},{"$f":"IF(P27<>\"\", IF(INDEX('Full set Core Client Indicator'!$A$3:$AB$351, MATCH(Selection_Hide2!$A27, 'Full set Core Client Indicator'!$A$3:$A$351, 0), MATCH(Selection_Hide2!Q$5, 'Full set Core Client Indicator'!$A$3:$AB$3, 0))=\"\", \"\",  INDEX('Full set Core Client Indicator'!$A$3:$AB$351, MATCH(Selection_Hide2!$A27, 'Full set Core Client Indicator'!$A$3:$A$351, 0), MATCH(Selection_Hide2!Q$5, 'Full set Core Client Indicator'!$A$3:$AB$3, 0))), \"\")","v":""},{"$f":"IF(Q27<>\"\", IF(INDEX('Full set Core Client Indicator'!$A$3:$AB$351, MATCH(Selection_Hide2!$A27, 'Full set Core Client Indicator'!$A$3:$A$351, 0), MATCH(Selection_Hide2!R$5, 'Full set Core Client Indicator'!$A$3:$AB$3, 0))=\"\", \"\",  INDEX('Full set Core Client Indicator'!$A$3:$AB$351, MATCH(Selection_Hide2!$A27, 'Full set Core Client Indicator'!$A$3:$A$351, 0), MATCH(Selection_Hide2!R$5, 'Full set Core Client Indicator'!$A$3:$AB$3, 0))), \"\")","v":""},{"$f":"IF(R27<>\"\", IF(INDEX('Full set Core Client Indicator'!$A$3:$AB$351, MATCH(Selection_Hide2!$A27, 'Full set Core Client Indicator'!$A$3:$A$351, 0), MATCH(Selection_Hide2!S$5, 'Full set Core Client Indicator'!$A$3:$AB$3, 0))=\"\", \"\",  INDEX('Full set Core Client Indicator'!$A$3:$AB$351, MATCH(Selection_Hide2!$A27, 'Full set Core Client Indicator'!$A$3:$A$351, 0), MATCH(Selection_Hide2!S$5, 'Full set Core Client Indicator'!$A$3:$AB$3, 0))), \"\")","v":""},{"$f":"IF(S27<>\"\", IF(INDEX('Full set Core Client Indicator'!$A$3:$AB$351, MATCH(Selection_Hide2!$A27, 'Full set Core Client Indicator'!$A$3:$A$351, 0), MATCH(Selection_Hide2!T$5, 'Full set Core Client Indicator'!$A$3:$AB$3, 0))=\"\", \"\",  INDEX('Full set Core Client Indicator'!$A$3:$AB$351, MATCH(Selection_Hide2!$A27, 'Full set Core Client Indicator'!$A$3:$A$351, 0), MATCH(Selection_Hide2!T$5, 'Full set Core Client Indicator'!$A$3:$AB$3, 0))), \"\")","v":""},{"$f":"IF(T27<>\"\", IF(INDEX('Full set Core Client Indicator'!$A$3:$AB$351, MATCH(Selection_Hide2!$A27, 'Full set Core Client Indicator'!$A$3:$A$351, 0), MATCH(Selection_Hide2!U$5, 'Full set Core Client Indicator'!$A$3:$AB$3, 0))=\"\", \"\",  INDEX('Full set Core Client Indicator'!$A$3:$AB$351, MATCH(Selection_Hide2!$A27, 'Full set Core Client Indicator'!$A$3:$A$351, 0), MATCH(Selection_Hide2!U$5, 'Full set Core Client Indicator'!$A$3:$AB$3, 0))), \"\")","v":""},{"$f":"IF(U27<>\"\", IF(INDEX('Full set Core Client Indicator'!$A$3:$AB$351, MATCH(Selection_Hide2!$A27, 'Full set Core Client Indicator'!$A$3:$A$351, 0), MATCH(Selection_Hide2!V$5, 'Full set Core Client Indicator'!$A$3:$AB$3, 0))=\"\", \"\",  INDEX('Full set Core Client Indicator'!$A$3:$AB$351, MATCH(Selection_Hide2!$A27, 'Full set Core Client Indicator'!$A$3:$A$351, 0), MATCH(Selection_Hide2!V$5, 'Full set Core Client Indicator'!$A$3:$AB$3, 0))), \"\")","v":""},{"$f":"IF(V27<>\"\", IF(INDEX('Full set Core Client Indicator'!$A$3:$AB$351, MATCH(Selection_Hide2!$A27, 'Full set Core Client Indicator'!$A$3:$A$351, 0), MATCH(Selection_Hide2!W$5, 'Full set Core Client Indicator'!$A$3:$AB$3, 0))=\"\", \"\",  INDEX('Full set Core Client Indicator'!$A$3:$AB$351, MATCH(Selection_Hide2!$A27, 'Full set Core Client Indicator'!$A$3:$A$351, 0), MATCH(Selection_Hide2!W$5, 'Full set Core Client Indicator'!$A$3:$AB$3, 0))), \"\")","v":""},{"$f":"IF(W27<>\"\", IF(INDEX('Full set Core Client Indicator'!$A$3:$AB$351, MATCH(Selection_Hide2!$A27, 'Full set Core Client Indicator'!$A$3:$A$351, 0), MATCH(Selection_Hide2!X$5, 'Full set Core Client Indicator'!$A$3:$AB$3, 0))=\"\", \"\",  INDEX('Full set Core Client Indicator'!$A$3:$AB$351, MATCH(Selection_Hide2!$A27, 'Full set Core Client Indicator'!$A$3:$A$351, 0), MATCH(Selection_Hide2!X$5, 'Full set Core Client Indicator'!$A$3:$AB$3, 0))), \"\")","v":""},{"$f":"IF(X27<>\"\", IF(INDEX('Full set Core Client Indicator'!$A$3:$AB$351, MATCH(Selection_Hide2!$A27, 'Full set Core Client Indicator'!$A$3:$A$351, 0), MATCH(Selection_Hide2!Y$5, 'Full set Core Client Indicator'!$A$3:$AB$3, 0))=\"\", \"\",  INDEX('Full set Core Client Indicator'!$A$3:$AB$351, MATCH(Selection_Hide2!$A27, 'Full set Core Client Indicator'!$A$3:$A$351, 0), MATCH(Selection_Hide2!Y$5, 'Full set Core Client Indicator'!$A$3:$AB$3, 0))), \"\")","v":""},{"$f":"IF(Y27<>\"\", IF(INDEX('Full set Core Client Indicator'!$A$3:$AB$351, MATCH(Selection_Hide2!$A27, 'Full set Core Client Indicator'!$A$3:$A$351, 0), MATCH(Selection_Hide2!Z$5, 'Full set Core Client Indicator'!$A$3:$AB$3, 0))=\"\", \"\",  INDEX('Full set Core Client Indicator'!$A$3:$AB$351, MATCH(Selection_Hide2!$A27, 'Full set Core Client Indicator'!$A$3:$A$351, 0), MATCH(Selection_Hide2!Z$5, 'Full set Core Client Indicator'!$A$3:$AB$3, 0))), \"\")","v":""},{"$f":"IF(Z27<>\"\", IF(INDEX('Full set Core Client Indicator'!$A$3:$AB$351, MATCH(Selection_Hide2!$A27, 'Full set Core Client Indicator'!$A$3:$A$351, 0), MATCH(Selection_Hide2!AA$5, 'Full set Core Client Indicator'!$A$3:$AB$3, 0))=\"\", \"\",  INDEX('Full set Core Client Indicator'!$A$3:$AB$351, MATCH(Selection_Hide2!$A27, 'Full set Core Client Indicator'!$A$3:$A$351, 0), MATCH(Selection_Hide2!AA$5, 'Full set Core Client Indicator'!$A$3:$AB$3, 0))), \"\")","v":""},{"$f":"IF(AA27<>\"\", IF(INDEX('Full set Core Client Indicator'!$A$3:$AB$351, MATCH(Selection_Hide2!$A27, 'Full set Core Client Indicator'!$A$3:$A$351, 0), MATCH(Selection_Hide2!AB$5, 'Full set Core Client Indicator'!$A$3:$AB$3, 0))=\"\", \"\",  INDEX('Full set Core Client Indicator'!$A$3:$AB$351, MATCH(Selection_Hide2!$A27, 'Full set Core Client Indicator'!$A$3:$A$351, 0), MATCH(Selection_Hide2!AB$5, 'Full set Core Client Indicator'!$A$3:$AB$3, 0))), \"\")","v":""}]
[{"$f":"IF(AND(Selection_Hide1!C26<>0, Selection_Hide1!C26<>\"Grand Total\"), Selection_Hide1!C26, \"\")","v":""},{"$f":"IF(A28<>\"\", IF(INDEX('Full set Core Client Indicator'!$A$3:$AB$351, MATCH(Selection_Hide2!$A28, 'Full set Core Client Indicator'!$A$3:$A$351, 0), MATCH(Selection_Hide2!B$5, 'Full set Core Client Indicator'!$A$3:$AB$3, 0))=\"\", \"\",  INDEX('Full set Core Client Indicator'!$A$3:$AB$351, MATCH(Selection_Hide2!$A28, 'Full set Core Client Indicator'!$A$3:$A$351, 0), MATCH(Selection_Hide2!B$5, 'Full set Core Client Indicator'!$A$3:$AB$3, 0))), \"\")","v":""},{"$f":"IF(B28<>\"\", IF(INDEX('Full set Core Client Indicator'!$A$3:$AB$351, MATCH(Selection_Hide2!$A28, 'Full set Core Client Indicator'!$A$3:$A$351, 0), MATCH(Selection_Hide2!C$5, 'Full set Core Client Indicator'!$A$3:$AB$3, 0))=\"\", \"\",  INDEX('Full set Core Client Indicator'!$A$3:$AB$351, MATCH(Selection_Hide2!$A28, 'Full set Core Client Indicator'!$A$3:$A$351, 0), MATCH(Selection_Hide2!C$5, 'Full set Core Client Indicator'!$A$3:$AB$3, 0))), \"\")","v":""},{"$f":"IF(C28<>\"\", IF(INDEX('Full set Core Client Indicator'!$A$3:$AB$351, MATCH(Selection_Hide2!$A28, 'Full set Core Client Indicator'!$A$3:$A$351, 0), MATCH(Selection_Hide2!D$5, 'Full set Core Client Indicator'!$A$3:$AB$3, 0))=\"\", \"\",  INDEX('Full set Core Client Indicator'!$A$3:$AB$351, MATCH(Selection_Hide2!$A28, 'Full set Core Client Indicator'!$A$3:$A$351, 0), MATCH(Selection_Hide2!D$5, 'Full set Core Client Indicator'!$A$3:$AB$3, 0))), \"\")","v":""},{"$f":"IF(D28<>\"\", IF(INDEX('Full set Core Client Indicator'!$A$3:$AB$351, MATCH(Selection_Hide2!$A28, 'Full set Core Client Indicator'!$A$3:$A$351, 0), MATCH(Selection_Hide2!E$5, 'Full set Core Client Indicator'!$A$3:$AB$3, 0))=\"\", \"\",  INDEX('Full set Core Client Indicator'!$A$3:$AB$351, MATCH(Selection_Hide2!$A28, 'Full set Core Client Indicator'!$A$3:$A$351, 0), MATCH(Selection_Hide2!E$5, 'Full set Core Client Indicator'!$A$3:$AB$3, 0))), \"\")","v":""},{"$f":"IF(E28<>\"\", IF(INDEX('Full set Core Client Indicator'!$A$3:$AB$351, MATCH(Selection_Hide2!$A28, 'Full set Core Client Indicator'!$A$3:$A$351, 0), MATCH(Selection_Hide2!F$5, 'Full set Core Client Indicator'!$A$3:$AB$3, 0))=\"\", \"\",  INDEX('Full set Core Client Indicator'!$A$3:$AB$351, MATCH(Selection_Hide2!$A28, 'Full set Core Client Indicator'!$A$3:$A$351, 0), MATCH(Selection_Hide2!F$5, 'Full set Core Client Indicator'!$A$3:$AB$3, 0))), \"\")","v":""},{"$f":"IF(F28<>\"\", IF(INDEX('Full set Core Client Indicator'!$A$3:$AB$351, MATCH(Selection_Hide2!$A28, 'Full set Core Client Indicator'!$A$3:$A$351, 0), MATCH(Selection_Hide2!G$5, 'Full set Core Client Indicator'!$A$3:$AB$3, 0))=\"\", \"\",  INDEX('Full set Core Client Indicator'!$A$3:$AB$351, MATCH(Selection_Hide2!$A28, 'Full set Core Client Indicator'!$A$3:$A$351, 0), MATCH(Selection_Hide2!G$5, 'Full set Core Client Indicator'!$A$3:$AB$3, 0))), \"\")","v":""},{"$f":"IF(G28<>\"\", IF(INDEX('Full set Core Client Indicator'!$A$3:$AB$351, MATCH(Selection_Hide2!$A28, 'Full set Core Client Indicator'!$A$3:$A$351, 0), MATCH(Selection_Hide2!H$5, 'Full set Core Client Indicator'!$A$3:$AB$3, 0))=\"\", \"\",  INDEX('Full set Core Client Indicator'!$A$3:$AB$351, MATCH(Selection_Hide2!$A28, 'Full set Core Client Indicator'!$A$3:$A$351, 0), MATCH(Selection_Hide2!H$5, 'Full set Core Client Indicator'!$A$3:$AB$3, 0))), \"\")","v":""},{"$f":"IF(H28<>\"\", IF(INDEX('Full set Core Client Indicator'!$A$3:$AB$351, MATCH(Selection_Hide2!$A28, 'Full set Core Client Indicator'!$A$3:$A$351, 0), MATCH(Selection_Hide2!I$5, 'Full set Core Client Indicator'!$A$3:$AB$3, 0))=\"\", \"\",  INDEX('Full set Core Client Indicator'!$A$3:$AB$351, MATCH(Selection_Hide2!$A28, 'Full set Core Client Indicator'!$A$3:$A$351, 0), MATCH(Selection_Hide2!I$5, 'Full set Core Client Indicator'!$A$3:$AB$3, 0))), \"\")","v":""},{"$f":"IF(I28<>\"\", IF(INDEX('Full set Core Client Indicator'!$A$3:$AB$351, MATCH(Selection_Hide2!$A28, 'Full set Core Client Indicator'!$A$3:$A$351, 0), MATCH(Selection_Hide2!J$5, 'Full set Core Client Indicator'!$A$3:$AB$3, 0))=\"\", \"\",  INDEX('Full set Core Client Indicator'!$A$3:$AB$351, MATCH(Selection_Hide2!$A28, 'Full set Core Client Indicator'!$A$3:$A$351, 0), MATCH(Selection_Hide2!J$5, 'Full set Core Client Indicator'!$A$3:$AB$3, 0))), \"\")","v":""},{"$f":"IF(J28<>\"\", IF(INDEX('Full set Core Client Indicator'!$A$3:$AB$351, MATCH(Selection_Hide2!$A28, 'Full set Core Client Indicator'!$A$3:$A$351, 0), MATCH(Selection_Hide2!K$5, 'Full set Core Client Indicator'!$A$3:$AB$3, 0))=\"\", \"\",  INDEX('Full set Core Client Indicator'!$A$3:$AB$351, MATCH(Selection_Hide2!$A28, 'Full set Core Client Indicator'!$A$3:$A$351, 0), MATCH(Selection_Hide2!K$5, 'Full set Core Client Indicator'!$A$3:$AB$3, 0))), \"\")","v":""},{"$f":"IF(K28<>\"\", IF(INDEX('Full set Core Client Indicator'!$A$3:$AB$351, MATCH(Selection_Hide2!$A28, 'Full set Core Client Indicator'!$A$3:$A$351, 0), MATCH(Selection_Hide2!L$5, 'Full set Core Client Indicator'!$A$3:$AB$3, 0))=\"\", \"\",  INDEX('Full set Core Client Indicator'!$A$3:$AB$351, MATCH(Selection_Hide2!$A28, 'Full set Core Client Indicator'!$A$3:$A$351, 0), MATCH(Selection_Hide2!L$5, 'Full set Core Client Indicator'!$A$3:$AB$3, 0))), \"\")","v":""},{"$f":"IF(L28<>\"\", IF(INDEX('Full set Core Client Indicator'!$A$3:$AB$351, MATCH(Selection_Hide2!$A28, 'Full set Core Client Indicator'!$A$3:$A$351, 0), MATCH(Selection_Hide2!M$5, 'Full set Core Client Indicator'!$A$3:$AB$3, 0))=\"\", \"\",  INDEX('Full set Core Client Indicator'!$A$3:$AB$351, MATCH(Selection_Hide2!$A28, 'Full set Core Client Indicator'!$A$3:$A$351, 0), MATCH(Selection_Hide2!M$5, 'Full set Core Client Indicator'!$A$3:$AB$3, 0))), \"\")","v":""},{"$f":"IF(M28<>\"\", IF(INDEX('Full set Core Client Indicator'!$A$3:$AB$351, MATCH(Selection_Hide2!$A28, 'Full set Core Client Indicator'!$A$3:$A$351, 0), MATCH(Selection_Hide2!N$5, 'Full set Core Client Indicator'!$A$3:$AB$3, 0))=\"\", \"\",  INDEX('Full set Core Client Indicator'!$A$3:$AB$351, MATCH(Selection_Hide2!$A28, 'Full set Core Client Indicator'!$A$3:$A$351, 0), MATCH(Selection_Hide2!N$5, 'Full set Core Client Indicator'!$A$3:$AB$3, 0))), \"\")","v":""},{"$f":"IF(N28<>\"\", IF(INDEX('Full set Core Client Indicator'!$A$3:$AB$351, MATCH(Selection_Hide2!$A28, 'Full set Core Client Indicator'!$A$3:$A$351, 0), MATCH(Selection_Hide2!O$5, 'Full set Core Client Indicator'!$A$3:$AB$3, 0))=\"\", \"\",  INDEX('Full set Core Client Indicator'!$A$3:$AB$351, MATCH(Selection_Hide2!$A28, 'Full set Core Client Indicator'!$A$3:$A$351, 0), MATCH(Selection_Hide2!O$5, 'Full set Core Client Indicator'!$A$3:$AB$3, 0))), \"\")","v":""},{"$f":"IF(O28<>\"\", IF(INDEX('Full set Core Client Indicator'!$A$3:$AB$351, MATCH(Selection_Hide2!$A28, 'Full set Core Client Indicator'!$A$3:$A$351, 0), MATCH(Selection_Hide2!P$5, 'Full set Core Client Indicator'!$A$3:$AB$3, 0))=\"\", \"\",  INDEX('Full set Core Client Indicator'!$A$3:$AB$351, MATCH(Selection_Hide2!$A28, 'Full set Core Client Indicator'!$A$3:$A$351, 0), MATCH(Selection_Hide2!P$5, 'Full set Core Client Indicator'!$A$3:$AB$3, 0))), \"\")","v":""},{"$f":"IF(P28<>\"\", IF(INDEX('Full set Core Client Indicator'!$A$3:$AB$351, MATCH(Selection_Hide2!$A28, 'Full set Core Client Indicator'!$A$3:$A$351, 0), MATCH(Selection_Hide2!Q$5, 'Full set Core Client Indicator'!$A$3:$AB$3, 0))=\"\", \"\",  INDEX('Full set Core Client Indicator'!$A$3:$AB$351, MATCH(Selection_Hide2!$A28, 'Full set Core Client Indicator'!$A$3:$A$351, 0), MATCH(Selection_Hide2!Q$5, 'Full set Core Client Indicator'!$A$3:$AB$3, 0))), \"\")","v":""},{"$f":"IF(Q28<>\"\", IF(INDEX('Full set Core Client Indicator'!$A$3:$AB$351, MATCH(Selection_Hide2!$A28, 'Full set Core Client Indicator'!$A$3:$A$351, 0), MATCH(Selection_Hide2!R$5, 'Full set Core Client Indicator'!$A$3:$AB$3, 0))=\"\", \"\",  INDEX('Full set Core Client Indicator'!$A$3:$AB$351, MATCH(Selection_Hide2!$A28, 'Full set Core Client Indicator'!$A$3:$A$351, 0), MATCH(Selection_Hide2!R$5, 'Full set Core Client Indicator'!$A$3:$AB$3, 0))), \"\")","v":""},{"$f":"IF(R28<>\"\", IF(INDEX('Full set Core Client Indicator'!$A$3:$AB$351, MATCH(Selection_Hide2!$A28, 'Full set Core Client Indicator'!$A$3:$A$351, 0), MATCH(Selection_Hide2!S$5, 'Full set Core Client Indicator'!$A$3:$AB$3, 0))=\"\", \"\",  INDEX('Full set Core Client Indicator'!$A$3:$AB$351, MATCH(Selection_Hide2!$A28, 'Full set Core Client Indicator'!$A$3:$A$351, 0), MATCH(Selection_Hide2!S$5, 'Full set Core Client Indicator'!$A$3:$AB$3, 0))), \"\")","v":""},{"$f":"IF(S28<>\"\", IF(INDEX('Full set Core Client Indicator'!$A$3:$AB$351, MATCH(Selection_Hide2!$A28, 'Full set Core Client Indicator'!$A$3:$A$351, 0), MATCH(Selection_Hide2!T$5, 'Full set Core Client Indicator'!$A$3:$AB$3, 0))=\"\", \"\",  INDEX('Full set Core Client Indicator'!$A$3:$AB$351, MATCH(Selection_Hide2!$A28, 'Full set Core Client Indicator'!$A$3:$A$351, 0), MATCH(Selection_Hide2!T$5, 'Full set Core Client Indicator'!$A$3:$AB$3, 0))), \"\")","v":""},{"$f":"IF(T28<>\"\", IF(INDEX('Full set Core Client Indicator'!$A$3:$AB$351, MATCH(Selection_Hide2!$A28, 'Full set Core Client Indicator'!$A$3:$A$351, 0), MATCH(Selection_Hide2!U$5, 'Full set Core Client Indicator'!$A$3:$AB$3, 0))=\"\", \"\",  INDEX('Full set Core Client Indicator'!$A$3:$AB$351, MATCH(Selection_Hide2!$A28, 'Full set Core Client Indicator'!$A$3:$A$351, 0), MATCH(Selection_Hide2!U$5, 'Full set Core Client Indicator'!$A$3:$AB$3, 0))), \"\")","v":""},{"$f":"IF(U28<>\"\", IF(INDEX('Full set Core Client Indicator'!$A$3:$AB$351, MATCH(Selection_Hide2!$A28, 'Full set Core Client Indicator'!$A$3:$A$351, 0), MATCH(Selection_Hide2!V$5, 'Full set Core Client Indicator'!$A$3:$AB$3, 0))=\"\", \"\",  INDEX('Full set Core Client Indicator'!$A$3:$AB$351, MATCH(Selection_Hide2!$A28, 'Full set Core Client Indicator'!$A$3:$A$351, 0), MATCH(Selection_Hide2!V$5, 'Full set Core Client Indicator'!$A$3:$AB$3, 0))), \"\")","v":""},{"$f":"IF(V28<>\"\", IF(INDEX('Full set Core Client Indicator'!$A$3:$AB$351, MATCH(Selection_Hide2!$A28, 'Full set Core Client Indicator'!$A$3:$A$351, 0), MATCH(Selection_Hide2!W$5, 'Full set Core Client Indicator'!$A$3:$AB$3, 0))=\"\", \"\",  INDEX('Full set Core Client Indicator'!$A$3:$AB$351, MATCH(Selection_Hide2!$A28, 'Full set Core Client Indicator'!$A$3:$A$351, 0), MATCH(Selection_Hide2!W$5, 'Full set Core Client Indicator'!$A$3:$AB$3, 0))), \"\")","v":""},{"$f":"IF(W28<>\"\", IF(INDEX('Full set Core Client Indicator'!$A$3:$AB$351, MATCH(Selection_Hide2!$A28, 'Full set Core Client Indicator'!$A$3:$A$351, 0), MATCH(Selection_Hide2!X$5, 'Full set Core Client Indicator'!$A$3:$AB$3, 0))=\"\", \"\",  INDEX('Full set Core Client Indicator'!$A$3:$AB$351, MATCH(Selection_Hide2!$A28, 'Full set Core Client Indicator'!$A$3:$A$351, 0), MATCH(Selection_Hide2!X$5, 'Full set Core Client Indicator'!$A$3:$AB$3, 0))), \"\")","v":""},{"$f":"IF(X28<>\"\", IF(INDEX('Full set Core Client Indicator'!$A$3:$AB$351, MATCH(Selection_Hide2!$A28, 'Full set Core Client Indicator'!$A$3:$A$351, 0), MATCH(Selection_Hide2!Y$5, 'Full set Core Client Indicator'!$A$3:$AB$3, 0))=\"\", \"\",  INDEX('Full set Core Client Indicator'!$A$3:$AB$351, MATCH(Selection_Hide2!$A28, 'Full set Core Client Indicator'!$A$3:$A$351, 0), MATCH(Selection_Hide2!Y$5, 'Full set Core Client Indicator'!$A$3:$AB$3, 0))), \"\")","v":""},{"$f":"IF(Y28<>\"\", IF(INDEX('Full set Core Client Indicator'!$A$3:$AB$351, MATCH(Selection_Hide2!$A28, 'Full set Core Client Indicator'!$A$3:$A$351, 0), MATCH(Selection_Hide2!Z$5, 'Full set Core Client Indicator'!$A$3:$AB$3, 0))=\"\", \"\",  INDEX('Full set Core Client Indicator'!$A$3:$AB$351, MATCH(Selection_Hide2!$A28, 'Full set Core Client Indicator'!$A$3:$A$351, 0), MATCH(Selection_Hide2!Z$5, 'Full set Core Client Indicator'!$A$3:$AB$3, 0))), \"\")","v":""},{"$f":"IF(Z28<>\"\", IF(INDEX('Full set Core Client Indicator'!$A$3:$AB$351, MATCH(Selection_Hide2!$A28, 'Full set Core Client Indicator'!$A$3:$A$351, 0), MATCH(Selection_Hide2!AA$5, 'Full set Core Client Indicator'!$A$3:$AB$3, 0))=\"\", \"\",  INDEX('Full set Core Client Indicator'!$A$3:$AB$351, MATCH(Selection_Hide2!$A28, 'Full set Core Client Indicator'!$A$3:$A$351, 0), MATCH(Selection_Hide2!AA$5, 'Full set Core Client Indicator'!$A$3:$AB$3, 0))), \"\")","v":""},{"$f":"IF(AA28<>\"\", IF(INDEX('Full set Core Client Indicator'!$A$3:$AB$351, MATCH(Selection_Hide2!$A28, 'Full set Core Client Indicator'!$A$3:$A$351, 0), MATCH(Selection_Hide2!AB$5, 'Full set Core Client Indicator'!$A$3:$AB$3, 0))=\"\", \"\",  INDEX('Full set Core Client Indicator'!$A$3:$AB$351, MATCH(Selection_Hide2!$A28, 'Full set Core Client Indicator'!$A$3:$A$351, 0), MATCH(Selection_Hide2!AB$5, 'Full set Core Client Indicator'!$A$3:$AB$3, 0))), \"\")","v":""}]
[{"$f":"IF(AND(Selection_Hide1!C27<>0, Selection_Hide1!C27<>\"Grand Total\"), Selection_Hide1!C27, \"\")","v":""},{"$f":"IF(A29<>\"\", IF(INDEX('Full set Core Client Indicator'!$A$3:$AB$351, MATCH(Selection_Hide2!$A29, 'Full set Core Client Indicator'!$A$3:$A$351, 0), MATCH(Selection_Hide2!B$5, 'Full set Core Client Indicator'!$A$3:$AB$3, 0))=\"\", \"\",  INDEX('Full set Core Client Indicator'!$A$3:$AB$351, MATCH(Selection_Hide2!$A29, 'Full set Core Client Indicator'!$A$3:$A$351, 0), MATCH(Selection_Hide2!B$5, 'Full set Core Client Indicator'!$A$3:$AB$3, 0))), \"\")","v":""},{"$f":"IF(B29<>\"\", IF(INDEX('Full set Core Client Indicator'!$A$3:$AB$351, MATCH(Selection_Hide2!$A29, 'Full set Core Client Indicator'!$A$3:$A$351, 0), MATCH(Selection_Hide2!C$5, 'Full set Core Client Indicator'!$A$3:$AB$3, 0))=\"\", \"\",  INDEX('Full set Core Client Indicator'!$A$3:$AB$351, MATCH(Selection_Hide2!$A29, 'Full set Core Client Indicator'!$A$3:$A$351, 0), MATCH(Selection_Hide2!C$5, 'Full set Core Client Indicator'!$A$3:$AB$3, 0))), \"\")","v":""},{"$f":"IF(C29<>\"\", IF(INDEX('Full set Core Client Indicator'!$A$3:$AB$351, MATCH(Selection_Hide2!$A29, 'Full set Core Client Indicator'!$A$3:$A$351, 0), MATCH(Selection_Hide2!D$5, 'Full set Core Client Indicator'!$A$3:$AB$3, 0))=\"\", \"\",  INDEX('Full set Core Client Indicator'!$A$3:$AB$351, MATCH(Selection_Hide2!$A29, 'Full set Core Client Indicator'!$A$3:$A$351, 0), MATCH(Selection_Hide2!D$5, 'Full set Core Client Indicator'!$A$3:$AB$3, 0))), \"\")","v":""},{"$f":"IF(D29<>\"\", IF(INDEX('Full set Core Client Indicator'!$A$3:$AB$351, MATCH(Selection_Hide2!$A29, 'Full set Core Client Indicator'!$A$3:$A$351, 0), MATCH(Selection_Hide2!E$5, 'Full set Core Client Indicator'!$A$3:$AB$3, 0))=\"\", \"\",  INDEX('Full set Core Client Indicator'!$A$3:$AB$351, MATCH(Selection_Hide2!$A29, 'Full set Core Client Indicator'!$A$3:$A$351, 0), MATCH(Selection_Hide2!E$5, 'Full set Core Client Indicator'!$A$3:$AB$3, 0))), \"\")","v":""},{"$f":"IF(E29<>\"\", IF(INDEX('Full set Core Client Indicator'!$A$3:$AB$351, MATCH(Selection_Hide2!$A29, 'Full set Core Client Indicator'!$A$3:$A$351, 0), MATCH(Selection_Hide2!F$5, 'Full set Core Client Indicator'!$A$3:$AB$3, 0))=\"\", \"\",  INDEX('Full set Core Client Indicator'!$A$3:$AB$351, MATCH(Selection_Hide2!$A29, 'Full set Core Client Indicator'!$A$3:$A$351, 0), MATCH(Selection_Hide2!F$5, 'Full set Core Client Indicator'!$A$3:$AB$3, 0))), \"\")","v":""},{"$f":"IF(F29<>\"\", IF(INDEX('Full set Core Client Indicator'!$A$3:$AB$351, MATCH(Selection_Hide2!$A29, 'Full set Core Client Indicator'!$A$3:$A$351, 0), MATCH(Selection_Hide2!G$5, 'Full set Core Client Indicator'!$A$3:$AB$3, 0))=\"\", \"\",  INDEX('Full set Core Client Indicator'!$A$3:$AB$351, MATCH(Selection_Hide2!$A29, 'Full set Core Client Indicator'!$A$3:$A$351, 0), MATCH(Selection_Hide2!G$5, 'Full set Core Client Indicator'!$A$3:$AB$3, 0))), \"\")","v":""},{"$f":"IF(G29<>\"\", IF(INDEX('Full set Core Client Indicator'!$A$3:$AB$351, MATCH(Selection_Hide2!$A29, 'Full set Core Client Indicator'!$A$3:$A$351, 0), MATCH(Selection_Hide2!H$5, 'Full set Core Client Indicator'!$A$3:$AB$3, 0))=\"\", \"\",  INDEX('Full set Core Client Indicator'!$A$3:$AB$351, MATCH(Selection_Hide2!$A29, 'Full set Core Client Indicator'!$A$3:$A$351, 0), MATCH(Selection_Hide2!H$5, 'Full set Core Client Indicator'!$A$3:$AB$3, 0))), \"\")","v":""},{"$f":"IF(H29<>\"\", IF(INDEX('Full set Core Client Indicator'!$A$3:$AB$351, MATCH(Selection_Hide2!$A29, 'Full set Core Client Indicator'!$A$3:$A$351, 0), MATCH(Selection_Hide2!I$5, 'Full set Core Client Indicator'!$A$3:$AB$3, 0))=\"\", \"\",  INDEX('Full set Core Client Indicator'!$A$3:$AB$351, MATCH(Selection_Hide2!$A29, 'Full set Core Client Indicator'!$A$3:$A$351, 0), MATCH(Selection_Hide2!I$5, 'Full set Core Client Indicator'!$A$3:$AB$3, 0))), \"\")","v":""},{"$f":"IF(I29<>\"\", IF(INDEX('Full set Core Client Indicator'!$A$3:$AB$351, MATCH(Selection_Hide2!$A29, 'Full set Core Client Indicator'!$A$3:$A$351, 0), MATCH(Selection_Hide2!J$5, 'Full set Core Client Indicator'!$A$3:$AB$3, 0))=\"\", \"\",  INDEX('Full set Core Client Indicator'!$A$3:$AB$351, MATCH(Selection_Hide2!$A29, 'Full set Core Client Indicator'!$A$3:$A$351, 0), MATCH(Selection_Hide2!J$5, 'Full set Core Client Indicator'!$A$3:$AB$3, 0))), \"\")","v":""},{"$f":"IF(J29<>\"\", IF(INDEX('Full set Core Client Indicator'!$A$3:$AB$351, MATCH(Selection_Hide2!$A29, 'Full set Core Client Indicator'!$A$3:$A$351, 0), MATCH(Selection_Hide2!K$5, 'Full set Core Client Indicator'!$A$3:$AB$3, 0))=\"\", \"\",  INDEX('Full set Core Client Indicator'!$A$3:$AB$351, MATCH(Selection_Hide2!$A29, 'Full set Core Client Indicator'!$A$3:$A$351, 0), MATCH(Selection_Hide2!K$5, 'Full set Core Client Indicator'!$A$3:$AB$3, 0))), \"\")","v":""},{"$f":"IF(K29<>\"\", IF(INDEX('Full set Core Client Indicator'!$A$3:$AB$351, MATCH(Selection_Hide2!$A29, 'Full set Core Client Indicator'!$A$3:$A$351, 0), MATCH(Selection_Hide2!L$5, 'Full set Core Client Indicator'!$A$3:$AB$3, 0))=\"\", \"\",  INDEX('Full set Core Client Indicator'!$A$3:$AB$351, MATCH(Selection_Hide2!$A29, 'Full set Core Client Indicator'!$A$3:$A$351, 0), MATCH(Selection_Hide2!L$5, 'Full set Core Client Indicator'!$A$3:$AB$3, 0))), \"\")","v":""},{"$f":"IF(L29<>\"\", IF(INDEX('Full set Core Client Indicator'!$A$3:$AB$351, MATCH(Selection_Hide2!$A29, 'Full set Core Client Indicator'!$A$3:$A$351, 0), MATCH(Selection_Hide2!M$5, 'Full set Core Client Indicator'!$A$3:$AB$3, 0))=\"\", \"\",  INDEX('Full set Core Client Indicator'!$A$3:$AB$351, MATCH(Selection_Hide2!$A29, 'Full set Core Client Indicator'!$A$3:$A$351, 0), MATCH(Selection_Hide2!M$5, 'Full set Core Client Indicator'!$A$3:$AB$3, 0))), \"\")","v":""},{"$f":"IF(M29<>\"\", IF(INDEX('Full set Core Client Indicator'!$A$3:$AB$351, MATCH(Selection_Hide2!$A29, 'Full set Core Client Indicator'!$A$3:$A$351, 0), MATCH(Selection_Hide2!N$5, 'Full set Core Client Indicator'!$A$3:$AB$3, 0))=\"\", \"\",  INDEX('Full set Core Client Indicator'!$A$3:$AB$351, MATCH(Selection_Hide2!$A29, 'Full set Core Client Indicator'!$A$3:$A$351, 0), MATCH(Selection_Hide2!N$5, 'Full set Core Client Indicator'!$A$3:$AB$3, 0))), \"\")","v":""},{"$f":"IF(N29<>\"\", IF(INDEX('Full set Core Client Indicator'!$A$3:$AB$351, MATCH(Selection_Hide2!$A29, 'Full set Core Client Indicator'!$A$3:$A$351, 0), MATCH(Selection_Hide2!O$5, 'Full set Core Client Indicator'!$A$3:$AB$3, 0))=\"\", \"\",  INDEX('Full set Core Client Indicator'!$A$3:$AB$351, MATCH(Selection_Hide2!$A29, 'Full set Core Client Indicator'!$A$3:$A$351, 0), MATCH(Selection_Hide2!O$5, 'Full set Core Client Indicator'!$A$3:$AB$3, 0))), \"\")","v":""},{"$f":"IF(O29<>\"\", IF(INDEX('Full set Core Client Indicator'!$A$3:$AB$351, MATCH(Selection_Hide2!$A29, 'Full set Core Client Indicator'!$A$3:$A$351, 0), MATCH(Selection_Hide2!P$5, 'Full set Core Client Indicator'!$A$3:$AB$3, 0))=\"\", \"\",  INDEX('Full set Core Client Indicator'!$A$3:$AB$351, MATCH(Selection_Hide2!$A29, 'Full set Core Client Indicator'!$A$3:$A$351, 0), MATCH(Selection_Hide2!P$5, 'Full set Core Client Indicator'!$A$3:$AB$3, 0))), \"\")","v":""},{"$f":"IF(P29<>\"\", IF(INDEX('Full set Core Client Indicator'!$A$3:$AB$351, MATCH(Selection_Hide2!$A29, 'Full set Core Client Indicator'!$A$3:$A$351, 0), MATCH(Selection_Hide2!Q$5, 'Full set Core Client Indicator'!$A$3:$AB$3, 0))=\"\", \"\",  INDEX('Full set Core Client Indicator'!$A$3:$AB$351, MATCH(Selection_Hide2!$A29, 'Full set Core Client Indicator'!$A$3:$A$351, 0), MATCH(Selection_Hide2!Q$5, 'Full set Core Client Indicator'!$A$3:$AB$3, 0))), \"\")","v":""},{"$f":"IF(Q29<>\"\", IF(INDEX('Full set Core Client Indicator'!$A$3:$AB$351, MATCH(Selection_Hide2!$A29, 'Full set Core Client Indicator'!$A$3:$A$351, 0), MATCH(Selection_Hide2!R$5, 'Full set Core Client Indicator'!$A$3:$AB$3, 0))=\"\", \"\",  INDEX('Full set Core Client Indicator'!$A$3:$AB$351, MATCH(Selection_Hide2!$A29, 'Full set Core Client Indicator'!$A$3:$A$351, 0), MATCH(Selection_Hide2!R$5, 'Full set Core Client Indicator'!$A$3:$AB$3, 0))), \"\")","v":""},{"$f":"IF(R29<>\"\", IF(INDEX('Full set Core Client Indicator'!$A$3:$AB$351, MATCH(Selection_Hide2!$A29, 'Full set Core Client Indicator'!$A$3:$A$351, 0), MATCH(Selection_Hide2!S$5, 'Full set Core Client Indicator'!$A$3:$AB$3, 0))=\"\", \"\",  INDEX('Full set Core Client Indicator'!$A$3:$AB$351, MATCH(Selection_Hide2!$A29, 'Full set Core Client Indicator'!$A$3:$A$351, 0), MATCH(Selection_Hide2!S$5, 'Full set Core Client Indicator'!$A$3:$AB$3, 0))), \"\")","v":""},{"$f":"IF(S29<>\"\", IF(INDEX('Full set Core Client Indicator'!$A$3:$AB$351, MATCH(Selection_Hide2!$A29, 'Full set Core Client Indicator'!$A$3:$A$351, 0), MATCH(Selection_Hide2!T$5, 'Full set Core Client Indicator'!$A$3:$AB$3, 0))=\"\", \"\",  INDEX('Full set Core Client Indicator'!$A$3:$AB$351, MATCH(Selection_Hide2!$A29, 'Full set Core Client Indicator'!$A$3:$A$351, 0), MATCH(Selection_Hide2!T$5, 'Full set Core Client Indicator'!$A$3:$AB$3, 0))), \"\")","v":""},{"$f":"IF(T29<>\"\", IF(INDEX('Full set Core Client Indicator'!$A$3:$AB$351, MATCH(Selection_Hide2!$A29, 'Full set Core Client Indicator'!$A$3:$A$351, 0), MATCH(Selection_Hide2!U$5, 'Full set Core Client Indicator'!$A$3:$AB$3, 0))=\"\", \"\",  INDEX('Full set Core Client Indicator'!$A$3:$AB$351, MATCH(Selection_Hide2!$A29, 'Full set Core Client Indicator'!$A$3:$A$351, 0), MATCH(Selection_Hide2!U$5, 'Full set Core Client Indicator'!$A$3:$AB$3, 0))), \"\")","v":""},{"$f":"IF(U29<>\"\", IF(INDEX('Full set Core Client Indicator'!$A$3:$AB$351, MATCH(Selection_Hide2!$A29, 'Full set Core Client Indicator'!$A$3:$A$351, 0), MATCH(Selection_Hide2!V$5, 'Full set Core Client Indicator'!$A$3:$AB$3, 0))=\"\", \"\",  INDEX('Full set Core Client Indicator'!$A$3:$AB$351, MATCH(Selection_Hide2!$A29, 'Full set Core Client Indicator'!$A$3:$A$351, 0), MATCH(Selection_Hide2!V$5, 'Full set Core Client Indicator'!$A$3:$AB$3, 0))), \"\")","v":""},{"$f":"IF(V29<>\"\", IF(INDEX('Full set Core Client Indicator'!$A$3:$AB$351, MATCH(Selection_Hide2!$A29, 'Full set Core Client Indicator'!$A$3:$A$351, 0), MATCH(Selection_Hide2!W$5, 'Full set Core Client Indicator'!$A$3:$AB$3, 0))=\"\", \"\",  INDEX('Full set Core Client Indicator'!$A$3:$AB$351, MATCH(Selection_Hide2!$A29, 'Full set Core Client Indicator'!$A$3:$A$351, 0), MATCH(Selection_Hide2!W$5, 'Full set Core Client Indicator'!$A$3:$AB$3, 0))), \"\")","v":""},{"$f":"IF(W29<>\"\", IF(INDEX('Full set Core Client Indicator'!$A$3:$AB$351, MATCH(Selection_Hide2!$A29, 'Full set Core Client Indicator'!$A$3:$A$351, 0), MATCH(Selection_Hide2!X$5, 'Full set Core Client Indicator'!$A$3:$AB$3, 0))=\"\", \"\",  INDEX('Full set Core Client Indicator'!$A$3:$AB$351, MATCH(Selection_Hide2!$A29, 'Full set Core Client Indicator'!$A$3:$A$351, 0), MATCH(Selection_Hide2!X$5, 'Full set Core Client Indicator'!$A$3:$AB$3, 0))), \"\")","v":""},{"$f":"IF(X29<>\"\", IF(INDEX('Full set Core Client Indicator'!$A$3:$AB$351, MATCH(Selection_Hide2!$A29, 'Full set Core Client Indicator'!$A$3:$A$351, 0), MATCH(Selection_Hide2!Y$5, 'Full set Core Client Indicator'!$A$3:$AB$3, 0))=\"\", \"\",  INDEX('Full set Core Client Indicator'!$A$3:$AB$351, MATCH(Selection_Hide2!$A29, 'Full set Core Client Indicator'!$A$3:$A$351, 0), MATCH(Selection_Hide2!Y$5, 'Full set Core Client Indicator'!$A$3:$AB$3, 0))), \"\")","v":""},{"$f":"IF(Y29<>\"\", IF(INDEX('Full set Core Client Indicator'!$A$3:$AB$351, MATCH(Selection_Hide2!$A29, 'Full set Core Client Indicator'!$A$3:$A$351, 0), MATCH(Selection_Hide2!Z$5, 'Full set Core Client Indicator'!$A$3:$AB$3, 0))=\"\", \"\",  INDEX('Full set Core Client Indicator'!$A$3:$AB$351, MATCH(Selection_Hide2!$A29, 'Full set Core Client Indicator'!$A$3:$A$351, 0), MATCH(Selection_Hide2!Z$5, 'Full set Core Client Indicator'!$A$3:$AB$3, 0))), \"\")","v":""},{"$f":"IF(Z29<>\"\", IF(INDEX('Full set Core Client Indicator'!$A$3:$AB$351, MATCH(Selection_Hide2!$A29, 'Full set Core Client Indicator'!$A$3:$A$351, 0), MATCH(Selection_Hide2!AA$5, 'Full set Core Client Indicator'!$A$3:$AB$3, 0))=\"\", \"\",  INDEX('Full set Core Client Indicator'!$A$3:$AB$351, MATCH(Selection_Hide2!$A29, 'Full set Core Client Indicator'!$A$3:$A$351, 0), MATCH(Selection_Hide2!AA$5, 'Full set Core Client Indicator'!$A$3:$AB$3, 0))), \"\")","v":""},{"$f":"IF(AA29<>\"\", IF(INDEX('Full set Core Client Indicator'!$A$3:$AB$351, MATCH(Selection_Hide2!$A29, 'Full set Core Client Indicator'!$A$3:$A$351, 0), MATCH(Selection_Hide2!AB$5, 'Full set Core Client Indicator'!$A$3:$AB$3, 0))=\"\", \"\",  INDEX('Full set Core Client Indicator'!$A$3:$AB$351, MATCH(Selection_Hide2!$A29, 'Full set Core Client Indicator'!$A$3:$A$351, 0), MATCH(Selection_Hide2!AB$5, 'Full set Core Client Indicator'!$A$3:$AB$3, 0))), \"\")","v":""}]
[{"$f":"IF(AND(Selection_Hide1!C28<>0, Selection_Hide1!C28<>\"Grand Total\"), Selection_Hide1!C28, \"\")","v":""},{"$f":"IF(A30<>\"\", IF(INDEX('Full set Core Client Indicator'!$A$3:$AB$351, MATCH(Selection_Hide2!$A30, 'Full set Core Client Indicator'!$A$3:$A$351, 0), MATCH(Selection_Hide2!B$5, 'Full set Core Client Indicator'!$A$3:$AB$3, 0))=\"\", \"\",  INDEX('Full set Core Client Indicator'!$A$3:$AB$351, MATCH(Selection_Hide2!$A30, 'Full set Core Client Indicator'!$A$3:$A$351, 0), MATCH(Selection_Hide2!B$5, 'Full set Core Client Indicator'!$A$3:$AB$3, 0))), \"\")","v":""},{"$f":"IF(B30<>\"\", IF(INDEX('Full set Core Client Indicator'!$A$3:$AB$351, MATCH(Selection_Hide2!$A30, 'Full set Core Client Indicator'!$A$3:$A$351, 0), MATCH(Selection_Hide2!C$5, 'Full set Core Client Indicator'!$A$3:$AB$3, 0))=\"\", \"\",  INDEX('Full set Core Client Indicator'!$A$3:$AB$351, MATCH(Selection_Hide2!$A30, 'Full set Core Client Indicator'!$A$3:$A$351, 0), MATCH(Selection_Hide2!C$5, 'Full set Core Client Indicator'!$A$3:$AB$3, 0))), \"\")","v":""},{"$f":"IF(C30<>\"\", IF(INDEX('Full set Core Client Indicator'!$A$3:$AB$351, MATCH(Selection_Hide2!$A30, 'Full set Core Client Indicator'!$A$3:$A$351, 0), MATCH(Selection_Hide2!D$5, 'Full set Core Client Indicator'!$A$3:$AB$3, 0))=\"\", \"\",  INDEX('Full set Core Client Indicator'!$A$3:$AB$351, MATCH(Selection_Hide2!$A30, 'Full set Core Client Indicator'!$A$3:$A$351, 0), MATCH(Selection_Hide2!D$5, 'Full set Core Client Indicator'!$A$3:$AB$3, 0))), \"\")","v":""},{"$f":"IF(D30<>\"\", IF(INDEX('Full set Core Client Indicator'!$A$3:$AB$351, MATCH(Selection_Hide2!$A30, 'Full set Core Client Indicator'!$A$3:$A$351, 0), MATCH(Selection_Hide2!E$5, 'Full set Core Client Indicator'!$A$3:$AB$3, 0))=\"\", \"\",  INDEX('Full set Core Client Indicator'!$A$3:$AB$351, MATCH(Selection_Hide2!$A30, 'Full set Core Client Indicator'!$A$3:$A$351, 0), MATCH(Selection_Hide2!E$5, 'Full set Core Client Indicator'!$A$3:$AB$3, 0))), \"\")","v":""},{"$f":"IF(E30<>\"\", IF(INDEX('Full set Core Client Indicator'!$A$3:$AB$351, MATCH(Selection_Hide2!$A30, 'Full set Core Client Indicator'!$A$3:$A$351, 0), MATCH(Selection_Hide2!F$5, 'Full set Core Client Indicator'!$A$3:$AB$3, 0))=\"\", \"\",  INDEX('Full set Core Client Indicator'!$A$3:$AB$351, MATCH(Selection_Hide2!$A30, 'Full set Core Client Indicator'!$A$3:$A$351, 0), MATCH(Selection_Hide2!F$5, 'Full set Core Client Indicator'!$A$3:$AB$3, 0))), \"\")","v":""},{"$f":"IF(F30<>\"\", IF(INDEX('Full set Core Client Indicator'!$A$3:$AB$351, MATCH(Selection_Hide2!$A30, 'Full set Core Client Indicator'!$A$3:$A$351, 0), MATCH(Selection_Hide2!G$5, 'Full set Core Client Indicator'!$A$3:$AB$3, 0))=\"\", \"\",  INDEX('Full set Core Client Indicator'!$A$3:$AB$351, MATCH(Selection_Hide2!$A30, 'Full set Core Client Indicator'!$A$3:$A$351, 0), MATCH(Selection_Hide2!G$5, 'Full set Core Client Indicator'!$A$3:$AB$3, 0))), \"\")","v":""},{"$f":"IF(G30<>\"\", IF(INDEX('Full set Core Client Indicator'!$A$3:$AB$351, MATCH(Selection_Hide2!$A30, 'Full set Core Client Indicator'!$A$3:$A$351, 0), MATCH(Selection_Hide2!H$5, 'Full set Core Client Indicator'!$A$3:$AB$3, 0))=\"\", \"\",  INDEX('Full set Core Client Indicator'!$A$3:$AB$351, MATCH(Selection_Hide2!$A30, 'Full set Core Client Indicator'!$A$3:$A$351, 0), MATCH(Selection_Hide2!H$5, 'Full set Core Client Indicator'!$A$3:$AB$3, 0))), \"\")","v":""},{"$f":"IF(H30<>\"\", IF(INDEX('Full set Core Client Indicator'!$A$3:$AB$351, MATCH(Selection_Hide2!$A30, 'Full set Core Client Indicator'!$A$3:$A$351, 0), MATCH(Selection_Hide2!I$5, 'Full set Core Client Indicator'!$A$3:$AB$3, 0))=\"\", \"\",  INDEX('Full set Core Client Indicator'!$A$3:$AB$351, MATCH(Selection_Hide2!$A30, 'Full set Core Client Indicator'!$A$3:$A$351, 0), MATCH(Selection_Hide2!I$5, 'Full set Core Client Indicator'!$A$3:$AB$3, 0))), \"\")","v":""},{"$f":"IF(I30<>\"\", IF(INDEX('Full set Core Client Indicator'!$A$3:$AB$351, MATCH(Selection_Hide2!$A30, 'Full set Core Client Indicator'!$A$3:$A$351, 0), MATCH(Selection_Hide2!J$5, 'Full set Core Client Indicator'!$A$3:$AB$3, 0))=\"\", \"\",  INDEX('Full set Core Client Indicator'!$A$3:$AB$351, MATCH(Selection_Hide2!$A30, 'Full set Core Client Indicator'!$A$3:$A$351, 0), MATCH(Selection_Hide2!J$5, 'Full set Core Client Indicator'!$A$3:$AB$3, 0))), \"\")","v":""},{"$f":"IF(J30<>\"\", IF(INDEX('Full set Core Client Indicator'!$A$3:$AB$351, MATCH(Selection_Hide2!$A30, 'Full set Core Client Indicator'!$A$3:$A$351, 0), MATCH(Selection_Hide2!K$5, 'Full set Core Client Indicator'!$A$3:$AB$3, 0))=\"\", \"\",  INDEX('Full set Core Client Indicator'!$A$3:$AB$351, MATCH(Selection_Hide2!$A30, 'Full set Core Client Indicator'!$A$3:$A$351, 0), MATCH(Selection_Hide2!K$5, 'Full set Core Client Indicator'!$A$3:$AB$3, 0))), \"\")","v":""},{"$f":"IF(K30<>\"\", IF(INDEX('Full set Core Client Indicator'!$A$3:$AB$351, MATCH(Selection_Hide2!$A30, 'Full set Core Client Indicator'!$A$3:$A$351, 0), MATCH(Selection_Hide2!L$5, 'Full set Core Client Indicator'!$A$3:$AB$3, 0))=\"\", \"\",  INDEX('Full set Core Client Indicator'!$A$3:$AB$351, MATCH(Selection_Hide2!$A30, 'Full set Core Client Indicator'!$A$3:$A$351, 0), MATCH(Selection_Hide2!L$5, 'Full set Core Client Indicator'!$A$3:$AB$3, 0))), \"\")","v":""},{"$f":"IF(L30<>\"\", IF(INDEX('Full set Core Client Indicator'!$A$3:$AB$351, MATCH(Selection_Hide2!$A30, 'Full set Core Client Indicator'!$A$3:$A$351, 0), MATCH(Selection_Hide2!M$5, 'Full set Core Client Indicator'!$A$3:$AB$3, 0))=\"\", \"\",  INDEX('Full set Core Client Indicator'!$A$3:$AB$351, MATCH(Selection_Hide2!$A30, 'Full set Core Client Indicator'!$A$3:$A$351, 0), MATCH(Selection_Hide2!M$5, 'Full set Core Client Indicator'!$A$3:$AB$3, 0))), \"\")","v":""},{"$f":"IF(M30<>\"\", IF(INDEX('Full set Core Client Indicator'!$A$3:$AB$351, MATCH(Selection_Hide2!$A30, 'Full set Core Client Indicator'!$A$3:$A$351, 0), MATCH(Selection_Hide2!N$5, 'Full set Core Client Indicator'!$A$3:$AB$3, 0))=\"\", \"\",  INDEX('Full set Core Client Indicator'!$A$3:$AB$351, MATCH(Selection_Hide2!$A30, 'Full set Core Client Indicator'!$A$3:$A$351, 0), MATCH(Selection_Hide2!N$5, 'Full set Core Client Indicator'!$A$3:$AB$3, 0))), \"\")","v":""},{"$f":"IF(N30<>\"\", IF(INDEX('Full set Core Client Indicator'!$A$3:$AB$351, MATCH(Selection_Hide2!$A30, 'Full set Core Client Indicator'!$A$3:$A$351, 0), MATCH(Selection_Hide2!O$5, 'Full set Core Client Indicator'!$A$3:$AB$3, 0))=\"\", \"\",  INDEX('Full set Core Client Indicator'!$A$3:$AB$351, MATCH(Selection_Hide2!$A30, 'Full set Core Client Indicator'!$A$3:$A$351, 0), MATCH(Selection_Hide2!O$5, 'Full set Core Client Indicator'!$A$3:$AB$3, 0))), \"\")","v":""},{"$f":"IF(O30<>\"\", IF(INDEX('Full set Core Client Indicator'!$A$3:$AB$351, MATCH(Selection_Hide2!$A30, 'Full set Core Client Indicator'!$A$3:$A$351, 0), MATCH(Selection_Hide2!P$5, 'Full set Core Client Indicator'!$A$3:$AB$3, 0))=\"\", \"\",  INDEX('Full set Core Client Indicator'!$A$3:$AB$351, MATCH(Selection_Hide2!$A30, 'Full set Core Client Indicator'!$A$3:$A$351, 0), MATCH(Selection_Hide2!P$5, 'Full set Core Client Indicator'!$A$3:$AB$3, 0))), \"\")","v":""},{"$f":"IF(P30<>\"\", IF(INDEX('Full set Core Client Indicator'!$A$3:$AB$351, MATCH(Selection_Hide2!$A30, 'Full set Core Client Indicator'!$A$3:$A$351, 0), MATCH(Selection_Hide2!Q$5, 'Full set Core Client Indicator'!$A$3:$AB$3, 0))=\"\", \"\",  INDEX('Full set Core Client Indicator'!$A$3:$AB$351, MATCH(Selection_Hide2!$A30, 'Full set Core Client Indicator'!$A$3:$A$351, 0), MATCH(Selection_Hide2!Q$5, 'Full set Core Client Indicator'!$A$3:$AB$3, 0))), \"\")","v":""},{"$f":"IF(Q30<>\"\", IF(INDEX('Full set Core Client Indicator'!$A$3:$AB$351, MATCH(Selection_Hide2!$A30, 'Full set Core Client Indicator'!$A$3:$A$351, 0), MATCH(Selection_Hide2!R$5, 'Full set Core Client Indicator'!$A$3:$AB$3, 0))=\"\", \"\",  INDEX('Full set Core Client Indicator'!$A$3:$AB$351, MATCH(Selection_Hide2!$A30, 'Full set Core Client Indicator'!$A$3:$A$351, 0), MATCH(Selection_Hide2!R$5, 'Full set Core Client Indicator'!$A$3:$AB$3, 0))), \"\")","v":""},{"$f":"IF(R30<>\"\", IF(INDEX('Full set Core Client Indicator'!$A$3:$AB$351, MATCH(Selection_Hide2!$A30, 'Full set Core Client Indicator'!$A$3:$A$351, 0), MATCH(Selection_Hide2!S$5, 'Full set Core Client Indicator'!$A$3:$AB$3, 0))=\"\", \"\",  INDEX('Full set Core Client Indicator'!$A$3:$AB$351, MATCH(Selection_Hide2!$A30, 'Full set Core Client Indicator'!$A$3:$A$351, 0), MATCH(Selection_Hide2!S$5, 'Full set Core Client Indicator'!$A$3:$AB$3, 0))), \"\")","v":""},{"$f":"IF(S30<>\"\", IF(INDEX('Full set Core Client Indicator'!$A$3:$AB$351, MATCH(Selection_Hide2!$A30, 'Full set Core Client Indicator'!$A$3:$A$351, 0), MATCH(Selection_Hide2!T$5, 'Full set Core Client Indicator'!$A$3:$AB$3, 0))=\"\", \"\",  INDEX('Full set Core Client Indicator'!$A$3:$AB$351, MATCH(Selection_Hide2!$A30, 'Full set Core Client Indicator'!$A$3:$A$351, 0), MATCH(Selection_Hide2!T$5, 'Full set Core Client Indicator'!$A$3:$AB$3, 0))), \"\")","v":""},{"$f":"IF(T30<>\"\", IF(INDEX('Full set Core Client Indicator'!$A$3:$AB$351, MATCH(Selection_Hide2!$A30, 'Full set Core Client Indicator'!$A$3:$A$351, 0), MATCH(Selection_Hide2!U$5, 'Full set Core Client Indicator'!$A$3:$AB$3, 0))=\"\", \"\",  INDEX('Full set Core Client Indicator'!$A$3:$AB$351, MATCH(Selection_Hide2!$A30, 'Full set Core Client Indicator'!$A$3:$A$351, 0), MATCH(Selection_Hide2!U$5, 'Full set Core Client Indicator'!$A$3:$AB$3, 0))), \"\")","v":""},{"$f":"IF(U30<>\"\", IF(INDEX('Full set Core Client Indicator'!$A$3:$AB$351, MATCH(Selection_Hide2!$A30, 'Full set Core Client Indicator'!$A$3:$A$351, 0), MATCH(Selection_Hide2!V$5, 'Full set Core Client Indicator'!$A$3:$AB$3, 0))=\"\", \"\",  INDEX('Full set Core Client Indicator'!$A$3:$AB$351, MATCH(Selection_Hide2!$A30, 'Full set Core Client Indicator'!$A$3:$A$351, 0), MATCH(Selection_Hide2!V$5, 'Full set Core Client Indicator'!$A$3:$AB$3, 0))), \"\")","v":""},{"$f":"IF(V30<>\"\", IF(INDEX('Full set Core Client Indicator'!$A$3:$AB$351, MATCH(Selection_Hide2!$A30, 'Full set Core Client Indicator'!$A$3:$A$351, 0), MATCH(Selection_Hide2!W$5, 'Full set Core Client Indicator'!$A$3:$AB$3, 0))=\"\", \"\",  INDEX('Full set Core Client Indicator'!$A$3:$AB$351, MATCH(Selection_Hide2!$A30, 'Full set Core Client Indicator'!$A$3:$A$351, 0), MATCH(Selection_Hide2!W$5, 'Full set Core Client Indicator'!$A$3:$AB$3, 0))), \"\")","v":""},{"$f":"IF(W30<>\"\", IF(INDEX('Full set Core Client Indicator'!$A$3:$AB$351, MATCH(Selection_Hide2!$A30, 'Full set Core Client Indicator'!$A$3:$A$351, 0), MATCH(Selection_Hide2!X$5, 'Full set Core Client Indicator'!$A$3:$AB$3, 0))=\"\", \"\",  INDEX('Full set Core Client Indicator'!$A$3:$AB$351, MATCH(Selection_Hide2!$A30, 'Full set Core Client Indicator'!$A$3:$A$351, 0), MATCH(Selection_Hide2!X$5, 'Full set Core Client Indicator'!$A$3:$AB$3, 0))), \"\")","v":""},{"$f":"IF(X30<>\"\", IF(INDEX('Full set Core Client Indicator'!$A$3:$AB$351, MATCH(Selection_Hide2!$A30, 'Full set Core Client Indicator'!$A$3:$A$351, 0), MATCH(Selection_Hide2!Y$5, 'Full set Core Client Indicator'!$A$3:$AB$3, 0))=\"\", \"\",  INDEX('Full set Core Client Indicator'!$A$3:$AB$351, MATCH(Selection_Hide2!$A30, 'Full set Core Client Indicator'!$A$3:$A$351, 0), MATCH(Selection_Hide2!Y$5, 'Full set Core Client Indicator'!$A$3:$AB$3, 0))), \"\")","v":""},{"$f":"IF(Y30<>\"\", IF(INDEX('Full set Core Client Indicator'!$A$3:$AB$351, MATCH(Selection_Hide2!$A30, 'Full set Core Client Indicator'!$A$3:$A$351, 0), MATCH(Selection_Hide2!Z$5, 'Full set Core Client Indicator'!$A$3:$AB$3, 0))=\"\", \"\",  INDEX('Full set Core Client Indicator'!$A$3:$AB$351, MATCH(Selection_Hide2!$A30, 'Full set Core Client Indicator'!$A$3:$A$351, 0), MATCH(Selection_Hide2!Z$5, 'Full set Core Client Indicator'!$A$3:$AB$3, 0))), \"\")","v":""},{"$f":"IF(Z30<>\"\", IF(INDEX('Full set Core Client Indicator'!$A$3:$AB$351, MATCH(Selection_Hide2!$A30, 'Full set Core Client Indicator'!$A$3:$A$351, 0), MATCH(Selection_Hide2!AA$5, 'Full set Core Client Indicator'!$A$3:$AB$3, 0))=\"\", \"\",  INDEX('Full set Core Client Indicator'!$A$3:$AB$351, MATCH(Selection_Hide2!$A30, 'Full set Core Client Indicator'!$A$3:$A$351, 0), MATCH(Selection_Hide2!AA$5, 'Full set Core Client Indicator'!$A$3:$AB$3, 0))), \"\")","v":""},{"$f":"IF(AA30<>\"\", IF(INDEX('Full set Core Client Indicator'!$A$3:$AB$351, MATCH(Selection_Hide2!$A30, 'Full set Core Client Indicator'!$A$3:$A$351, 0), MATCH(Selection_Hide2!AB$5, 'Full set Core Client Indicator'!$A$3:$AB$3, 0))=\"\", \"\",  INDEX('Full set Core Client Indicator'!$A$3:$AB$351, MATCH(Selection_Hide2!$A30, 'Full set Core Client Indicator'!$A$3:$A$351, 0), MATCH(Selection_Hide2!AB$5, 'Full set Core Client Indicator'!$A$3:$AB$3, 0))), \"\")","v":""}]
[{"$f":"IF(AND(Selection_Hide1!C29<>0, Selection_Hide1!C29<>\"Grand Total\"), Selection_Hide1!C29, \"\")","v":""},{"$f":"IF(A31<>\"\", IF(INDEX('Full set Core Client Indicator'!$A$3:$AB$351, MATCH(Selection_Hide2!$A31, 'Full set Core Client Indicator'!$A$3:$A$351, 0), MATCH(Selection_Hide2!B$5, 'Full set Core Client Indicator'!$A$3:$AB$3, 0))=\"\", \"\",  INDEX('Full set Core Client Indicator'!$A$3:$AB$351, MATCH(Selection_Hide2!$A31, 'Full set Core Client Indicator'!$A$3:$A$351, 0), MATCH(Selection_Hide2!B$5, 'Full set Core Client Indicator'!$A$3:$AB$3, 0))), \"\")","v":""},{"$f":"IF(B31<>\"\", IF(INDEX('Full set Core Client Indicator'!$A$3:$AB$351, MATCH(Selection_Hide2!$A31, 'Full set Core Client Indicator'!$A$3:$A$351, 0), MATCH(Selection_Hide2!C$5, 'Full set Core Client Indicator'!$A$3:$AB$3, 0))=\"\", \"\",  INDEX('Full set Core Client Indicator'!$A$3:$AB$351, MATCH(Selection_Hide2!$A31, 'Full set Core Client Indicator'!$A$3:$A$351, 0), MATCH(Selection_Hide2!C$5, 'Full set Core Client Indicator'!$A$3:$AB$3, 0))), \"\")","v":""},{"$f":"IF(C31<>\"\", IF(INDEX('Full set Core Client Indicator'!$A$3:$AB$351, MATCH(Selection_Hide2!$A31, 'Full set Core Client Indicator'!$A$3:$A$351, 0), MATCH(Selection_Hide2!D$5, 'Full set Core Client Indicator'!$A$3:$AB$3, 0))=\"\", \"\",  INDEX('Full set Core Client Indicator'!$A$3:$AB$351, MATCH(Selection_Hide2!$A31, 'Full set Core Client Indicator'!$A$3:$A$351, 0), MATCH(Selection_Hide2!D$5, 'Full set Core Client Indicator'!$A$3:$AB$3, 0))), \"\")","v":""},{"$f":"IF(D31<>\"\", IF(INDEX('Full set Core Client Indicator'!$A$3:$AB$351, MATCH(Selection_Hide2!$A31, 'Full set Core Client Indicator'!$A$3:$A$351, 0), MATCH(Selection_Hide2!E$5, 'Full set Core Client Indicator'!$A$3:$AB$3, 0))=\"\", \"\",  INDEX('Full set Core Client Indicator'!$A$3:$AB$351, MATCH(Selection_Hide2!$A31, 'Full set Core Client Indicator'!$A$3:$A$351, 0), MATCH(Selection_Hide2!E$5, 'Full set Core Client Indicator'!$A$3:$AB$3, 0))), \"\")","v":""},{"$f":"IF(E31<>\"\", IF(INDEX('Full set Core Client Indicator'!$A$3:$AB$351, MATCH(Selection_Hide2!$A31, 'Full set Core Client Indicator'!$A$3:$A$351, 0), MATCH(Selection_Hide2!F$5, 'Full set Core Client Indicator'!$A$3:$AB$3, 0))=\"\", \"\",  INDEX('Full set Core Client Indicator'!$A$3:$AB$351, MATCH(Selection_Hide2!$A31, 'Full set Core Client Indicator'!$A$3:$A$351, 0), MATCH(Selection_Hide2!F$5, 'Full set Core Client Indicator'!$A$3:$AB$3, 0))), \"\")","v":""},{"$f":"IF(F31<>\"\", IF(INDEX('Full set Core Client Indicator'!$A$3:$AB$351, MATCH(Selection_Hide2!$A31, 'Full set Core Client Indicator'!$A$3:$A$351, 0), MATCH(Selection_Hide2!G$5, 'Full set Core Client Indicator'!$A$3:$AB$3, 0))=\"\", \"\",  INDEX('Full set Core Client Indicator'!$A$3:$AB$351, MATCH(Selection_Hide2!$A31, 'Full set Core Client Indicator'!$A$3:$A$351, 0), MATCH(Selection_Hide2!G$5, 'Full set Core Client Indicator'!$A$3:$AB$3, 0))), \"\")","v":""},{"$f":"IF(G31<>\"\", IF(INDEX('Full set Core Client Indicator'!$A$3:$AB$351, MATCH(Selection_Hide2!$A31, 'Full set Core Client Indicator'!$A$3:$A$351, 0), MATCH(Selection_Hide2!H$5, 'Full set Core Client Indicator'!$A$3:$AB$3, 0))=\"\", \"\",  INDEX('Full set Core Client Indicator'!$A$3:$AB$351, MATCH(Selection_Hide2!$A31, 'Full set Core Client Indicator'!$A$3:$A$351, 0), MATCH(Selection_Hide2!H$5, 'Full set Core Client Indicator'!$A$3:$AB$3, 0))), \"\")","v":""},{"$f":"IF(H31<>\"\", IF(INDEX('Full set Core Client Indicator'!$A$3:$AB$351, MATCH(Selection_Hide2!$A31, 'Full set Core Client Indicator'!$A$3:$A$351, 0), MATCH(Selection_Hide2!I$5, 'Full set Core Client Indicator'!$A$3:$AB$3, 0))=\"\", \"\",  INDEX('Full set Core Client Indicator'!$A$3:$AB$351, MATCH(Selection_Hide2!$A31, 'Full set Core Client Indicator'!$A$3:$A$351, 0), MATCH(Selection_Hide2!I$5, 'Full set Core Client Indicator'!$A$3:$AB$3, 0))), \"\")","v":""},{"$f":"IF(I31<>\"\", IF(INDEX('Full set Core Client Indicator'!$A$3:$AB$351, MATCH(Selection_Hide2!$A31, 'Full set Core Client Indicator'!$A$3:$A$351, 0), MATCH(Selection_Hide2!J$5, 'Full set Core Client Indicator'!$A$3:$AB$3, 0))=\"\", \"\",  INDEX('Full set Core Client Indicator'!$A$3:$AB$351, MATCH(Selection_Hide2!$A31, 'Full set Core Client Indicator'!$A$3:$A$351, 0), MATCH(Selection_Hide2!J$5, 'Full set Core Client Indicator'!$A$3:$AB$3, 0))), \"\")","v":""},{"$f":"IF(J31<>\"\", IF(INDEX('Full set Core Client Indicator'!$A$3:$AB$351, MATCH(Selection_Hide2!$A31, 'Full set Core Client Indicator'!$A$3:$A$351, 0), MATCH(Selection_Hide2!K$5, 'Full set Core Client Indicator'!$A$3:$AB$3, 0))=\"\", \"\",  INDEX('Full set Core Client Indicator'!$A$3:$AB$351, MATCH(Selection_Hide2!$A31, 'Full set Core Client Indicator'!$A$3:$A$351, 0), MATCH(Selection_Hide2!K$5, 'Full set Core Client Indicator'!$A$3:$AB$3, 0))), \"\")","v":""},{"$f":"IF(K31<>\"\", IF(INDEX('Full set Core Client Indicator'!$A$3:$AB$351, MATCH(Selection_Hide2!$A31, 'Full set Core Client Indicator'!$A$3:$A$351, 0), MATCH(Selection_Hide2!L$5, 'Full set Core Client Indicator'!$A$3:$AB$3, 0))=\"\", \"\",  INDEX('Full set Core Client Indicator'!$A$3:$AB$351, MATCH(Selection_Hide2!$A31, 'Full set Core Client Indicator'!$A$3:$A$351, 0), MATCH(Selection_Hide2!L$5, 'Full set Core Client Indicator'!$A$3:$AB$3, 0))), \"\")","v":""},{"$f":"IF(L31<>\"\", IF(INDEX('Full set Core Client Indicator'!$A$3:$AB$351, MATCH(Selection_Hide2!$A31, 'Full set Core Client Indicator'!$A$3:$A$351, 0), MATCH(Selection_Hide2!M$5, 'Full set Core Client Indicator'!$A$3:$AB$3, 0))=\"\", \"\",  INDEX('Full set Core Client Indicator'!$A$3:$AB$351, MATCH(Selection_Hide2!$A31, 'Full set Core Client Indicator'!$A$3:$A$351, 0), MATCH(Selection_Hide2!M$5, 'Full set Core Client Indicator'!$A$3:$AB$3, 0))), \"\")","v":""},{"$f":"IF(M31<>\"\", IF(INDEX('Full set Core Client Indicator'!$A$3:$AB$351, MATCH(Selection_Hide2!$A31, 'Full set Core Client Indicator'!$A$3:$A$351, 0), MATCH(Selection_Hide2!N$5, 'Full set Core Client Indicator'!$A$3:$AB$3, 0))=\"\", \"\",  INDEX('Full set Core Client Indicator'!$A$3:$AB$351, MATCH(Selection_Hide2!$A31, 'Full set Core Client Indicator'!$A$3:$A$351, 0), MATCH(Selection_Hide2!N$5, 'Full set Core Client Indicator'!$A$3:$AB$3, 0))), \"\")","v":""},{"$f":"IF(N31<>\"\", IF(INDEX('Full set Core Client Indicator'!$A$3:$AB$351, MATCH(Selection_Hide2!$A31, 'Full set Core Client Indicator'!$A$3:$A$351, 0), MATCH(Selection_Hide2!O$5, 'Full set Core Client Indicator'!$A$3:$AB$3, 0))=\"\", \"\",  INDEX('Full set Core Client Indicator'!$A$3:$AB$351, MATCH(Selection_Hide2!$A31, 'Full set Core Client Indicator'!$A$3:$A$351, 0), MATCH(Selection_Hide2!O$5, 'Full set Core Client Indicator'!$A$3:$AB$3, 0))), \"\")","v":""},{"$f":"IF(O31<>\"\", IF(INDEX('Full set Core Client Indicator'!$A$3:$AB$351, MATCH(Selection_Hide2!$A31, 'Full set Core Client Indicator'!$A$3:$A$351, 0), MATCH(Selection_Hide2!P$5, 'Full set Core Client Indicator'!$A$3:$AB$3, 0))=\"\", \"\",  INDEX('Full set Core Client Indicator'!$A$3:$AB$351, MATCH(Selection_Hide2!$A31, 'Full set Core Client Indicator'!$A$3:$A$351, 0), MATCH(Selection_Hide2!P$5, 'Full set Core Client Indicator'!$A$3:$AB$3, 0))), \"\")","v":""},{"$f":"IF(P31<>\"\", IF(INDEX('Full set Core Client Indicator'!$A$3:$AB$351, MATCH(Selection_Hide2!$A31, 'Full set Core Client Indicator'!$A$3:$A$351, 0), MATCH(Selection_Hide2!Q$5, 'Full set Core Client Indicator'!$A$3:$AB$3, 0))=\"\", \"\",  INDEX('Full set Core Client Indicator'!$A$3:$AB$351, MATCH(Selection_Hide2!$A31, 'Full set Core Client Indicator'!$A$3:$A$351, 0), MATCH(Selection_Hide2!Q$5, 'Full set Core Client Indicator'!$A$3:$AB$3, 0))), \"\")","v":""},{"$f":"IF(Q31<>\"\", IF(INDEX('Full set Core Client Indicator'!$A$3:$AB$351, MATCH(Selection_Hide2!$A31, 'Full set Core Client Indicator'!$A$3:$A$351, 0), MATCH(Selection_Hide2!R$5, 'Full set Core Client Indicator'!$A$3:$AB$3, 0))=\"\", \"\",  INDEX('Full set Core Client Indicator'!$A$3:$AB$351, MATCH(Selection_Hide2!$A31, 'Full set Core Client Indicator'!$A$3:$A$351, 0), MATCH(Selection_Hide2!R$5, 'Full set Core Client Indicator'!$A$3:$AB$3, 0))), \"\")","v":""},{"$f":"IF(R31<>\"\", IF(INDEX('Full set Core Client Indicator'!$A$3:$AB$351, MATCH(Selection_Hide2!$A31, 'Full set Core Client Indicator'!$A$3:$A$351, 0), MATCH(Selection_Hide2!S$5, 'Full set Core Client Indicator'!$A$3:$AB$3, 0))=\"\", \"\",  INDEX('Full set Core Client Indicator'!$A$3:$AB$351, MATCH(Selection_Hide2!$A31, 'Full set Core Client Indicator'!$A$3:$A$351, 0), MATCH(Selection_Hide2!S$5, 'Full set Core Client Indicator'!$A$3:$AB$3, 0))), \"\")","v":""},{"$f":"IF(S31<>\"\", IF(INDEX('Full set Core Client Indicator'!$A$3:$AB$351, MATCH(Selection_Hide2!$A31, 'Full set Core Client Indicator'!$A$3:$A$351, 0), MATCH(Selection_Hide2!T$5, 'Full set Core Client Indicator'!$A$3:$AB$3, 0))=\"\", \"\",  INDEX('Full set Core Client Indicator'!$A$3:$AB$351, MATCH(Selection_Hide2!$A31, 'Full set Core Client Indicator'!$A$3:$A$351, 0), MATCH(Selection_Hide2!T$5, 'Full set Core Client Indicator'!$A$3:$AB$3, 0))), \"\")","v":""},{"$f":"IF(T31<>\"\", IF(INDEX('Full set Core Client Indicator'!$A$3:$AB$351, MATCH(Selection_Hide2!$A31, 'Full set Core Client Indicator'!$A$3:$A$351, 0), MATCH(Selection_Hide2!U$5, 'Full set Core Client Indicator'!$A$3:$AB$3, 0))=\"\", \"\",  INDEX('Full set Core Client Indicator'!$A$3:$AB$351, MATCH(Selection_Hide2!$A31, 'Full set Core Client Indicator'!$A$3:$A$351, 0), MATCH(Selection_Hide2!U$5, 'Full set Core Client Indicator'!$A$3:$AB$3, 0))), \"\")","v":""},{"$f":"IF(U31<>\"\", IF(INDEX('Full set Core Client Indicator'!$A$3:$AB$351, MATCH(Selection_Hide2!$A31, 'Full set Core Client Indicator'!$A$3:$A$351, 0), MATCH(Selection_Hide2!V$5, 'Full set Core Client Indicator'!$A$3:$AB$3, 0))=\"\", \"\",  INDEX('Full set Core Client Indicator'!$A$3:$AB$351, MATCH(Selection_Hide2!$A31, 'Full set Core Client Indicator'!$A$3:$A$351, 0), MATCH(Selection_Hide2!V$5, 'Full set Core Client Indicator'!$A$3:$AB$3, 0))), \"\")","v":""},{"$f":"IF(V31<>\"\", IF(INDEX('Full set Core Client Indicator'!$A$3:$AB$351, MATCH(Selection_Hide2!$A31, 'Full set Core Client Indicator'!$A$3:$A$351, 0), MATCH(Selection_Hide2!W$5, 'Full set Core Client Indicator'!$A$3:$AB$3, 0))=\"\", \"\",  INDEX('Full set Core Client Indicator'!$A$3:$AB$351, MATCH(Selection_Hide2!$A31, 'Full set Core Client Indicator'!$A$3:$A$351, 0), MATCH(Selection_Hide2!W$5, 'Full set Core Client Indicator'!$A$3:$AB$3, 0))), \"\")","v":""},{"$f":"IF(W31<>\"\", IF(INDEX('Full set Core Client Indicator'!$A$3:$AB$351, MATCH(Selection_Hide2!$A31, 'Full set Core Client Indicator'!$A$3:$A$351, 0), MATCH(Selection_Hide2!X$5, 'Full set Core Client Indicator'!$A$3:$AB$3, 0))=\"\", \"\",  INDEX('Full set Core Client Indicator'!$A$3:$AB$351, MATCH(Selection_Hide2!$A31, 'Full set Core Client Indicator'!$A$3:$A$351, 0), MATCH(Selection_Hide2!X$5, 'Full set Core Client Indicator'!$A$3:$AB$3, 0))), \"\")","v":""},{"$f":"IF(X31<>\"\", IF(INDEX('Full set Core Client Indicator'!$A$3:$AB$351, MATCH(Selection_Hide2!$A31, 'Full set Core Client Indicator'!$A$3:$A$351, 0), MATCH(Selection_Hide2!Y$5, 'Full set Core Client Indicator'!$A$3:$AB$3, 0))=\"\", \"\",  INDEX('Full set Core Client Indicator'!$A$3:$AB$351, MATCH(Selection_Hide2!$A31, 'Full set Core Client Indicator'!$A$3:$A$351, 0), MATCH(Selection_Hide2!Y$5, 'Full set Core Client Indicator'!$A$3:$AB$3, 0))), \"\")","v":""},{"$f":"IF(Y31<>\"\", IF(INDEX('Full set Core Client Indicator'!$A$3:$AB$351, MATCH(Selection_Hide2!$A31, 'Full set Core Client Indicator'!$A$3:$A$351, 0), MATCH(Selection_Hide2!Z$5, 'Full set Core Client Indicator'!$A$3:$AB$3, 0))=\"\", \"\",  INDEX('Full set Core Client Indicator'!$A$3:$AB$351, MATCH(Selection_Hide2!$A31, 'Full set Core Client Indicator'!$A$3:$A$351, 0), MATCH(Selection_Hide2!Z$5, 'Full set Core Client Indicator'!$A$3:$AB$3, 0))), \"\")","v":""},{"$f":"IF(Z31<>\"\", IF(INDEX('Full set Core Client Indicator'!$A$3:$AB$351, MATCH(Selection_Hide2!$A31, 'Full set Core Client Indicator'!$A$3:$A$351, 0), MATCH(Selection_Hide2!AA$5, 'Full set Core Client Indicator'!$A$3:$AB$3, 0))=\"\", \"\",  INDEX('Full set Core Client Indicator'!$A$3:$AB$351, MATCH(Selection_Hide2!$A31, 'Full set Core Client Indicator'!$A$3:$A$351, 0), MATCH(Selection_Hide2!AA$5, 'Full set Core Client Indicator'!$A$3:$AB$3, 0))), \"\")","v":""},{"$f":"IF(AA31<>\"\", IF(INDEX('Full set Core Client Indicator'!$A$3:$AB$351, MATCH(Selection_Hide2!$A31, 'Full set Core Client Indicator'!$A$3:$A$351, 0), MATCH(Selection_Hide2!AB$5, 'Full set Core Client Indicator'!$A$3:$AB$3, 0))=\"\", \"\",  INDEX('Full set Core Client Indicator'!$A$3:$AB$351, MATCH(Selection_Hide2!$A31, 'Full set Core Client Indicator'!$A$3:$A$351, 0), MATCH(Selection_Hide2!AB$5, 'Full set Core Client Indicator'!$A$3:$AB$3, 0))), \"\")","v":""}]
[{"$f":"IF(AND(Selection_Hide1!C30<>0, Selection_Hide1!C30<>\"Grand Total\"), Selection_Hide1!C30, \"\")","v":""},{"$f":"IF(A32<>\"\", IF(INDEX('Full set Core Client Indicator'!$A$3:$AB$351, MATCH(Selection_Hide2!$A32, 'Full set Core Client Indicator'!$A$3:$A$351, 0), MATCH(Selection_Hide2!B$5, 'Full set Core Client Indicator'!$A$3:$AB$3, 0))=\"\", \"\",  INDEX('Full set Core Client Indicator'!$A$3:$AB$351, MATCH(Selection_Hide2!$A32, 'Full set Core Client Indicator'!$A$3:$A$351, 0), MATCH(Selection_Hide2!B$5, 'Full set Core Client Indicator'!$A$3:$AB$3, 0))), \"\")","v":""},{"$f":"IF(B32<>\"\", IF(INDEX('Full set Core Client Indicator'!$A$3:$AB$351, MATCH(Selection_Hide2!$A32, 'Full set Core Client Indicator'!$A$3:$A$351, 0), MATCH(Selection_Hide2!C$5, 'Full set Core Client Indicator'!$A$3:$AB$3, 0))=\"\", \"\",  INDEX('Full set Core Client Indicator'!$A$3:$AB$351, MATCH(Selection_Hide2!$A32, 'Full set Core Client Indicator'!$A$3:$A$351, 0), MATCH(Selection_Hide2!C$5, 'Full set Core Client Indicator'!$A$3:$AB$3, 0))), \"\")","v":""},{"$f":"IF(C32<>\"\", IF(INDEX('Full set Core Client Indicator'!$A$3:$AB$351, MATCH(Selection_Hide2!$A32, 'Full set Core Client Indicator'!$A$3:$A$351, 0), MATCH(Selection_Hide2!D$5, 'Full set Core Client Indicator'!$A$3:$AB$3, 0))=\"\", \"\",  INDEX('Full set Core Client Indicator'!$A$3:$AB$351, MATCH(Selection_Hide2!$A32, 'Full set Core Client Indicator'!$A$3:$A$351, 0), MATCH(Selection_Hide2!D$5, 'Full set Core Client Indicator'!$A$3:$AB$3, 0))), \"\")","v":""},{"$f":"IF(D32<>\"\", IF(INDEX('Full set Core Client Indicator'!$A$3:$AB$351, MATCH(Selection_Hide2!$A32, 'Full set Core Client Indicator'!$A$3:$A$351, 0), MATCH(Selection_Hide2!E$5, 'Full set Core Client Indicator'!$A$3:$AB$3, 0))=\"\", \"\",  INDEX('Full set Core Client Indicator'!$A$3:$AB$351, MATCH(Selection_Hide2!$A32, 'Full set Core Client Indicator'!$A$3:$A$351, 0), MATCH(Selection_Hide2!E$5, 'Full set Core Client Indicator'!$A$3:$AB$3, 0))), \"\")","v":""},{"$f":"IF(E32<>\"\", IF(INDEX('Full set Core Client Indicator'!$A$3:$AB$351, MATCH(Selection_Hide2!$A32, 'Full set Core Client Indicator'!$A$3:$A$351, 0), MATCH(Selection_Hide2!F$5, 'Full set Core Client Indicator'!$A$3:$AB$3, 0))=\"\", \"\",  INDEX('Full set Core Client Indicator'!$A$3:$AB$351, MATCH(Selection_Hide2!$A32, 'Full set Core Client Indicator'!$A$3:$A$351, 0), MATCH(Selection_Hide2!F$5, 'Full set Core Client Indicator'!$A$3:$AB$3, 0))), \"\")","v":""},{"$f":"IF(F32<>\"\", IF(INDEX('Full set Core Client Indicator'!$A$3:$AB$351, MATCH(Selection_Hide2!$A32, 'Full set Core Client Indicator'!$A$3:$A$351, 0), MATCH(Selection_Hide2!G$5, 'Full set Core Client Indicator'!$A$3:$AB$3, 0))=\"\", \"\",  INDEX('Full set Core Client Indicator'!$A$3:$AB$351, MATCH(Selection_Hide2!$A32, 'Full set Core Client Indicator'!$A$3:$A$351, 0), MATCH(Selection_Hide2!G$5, 'Full set Core Client Indicator'!$A$3:$AB$3, 0))), \"\")","v":""},{"$f":"IF(G32<>\"\", IF(INDEX('Full set Core Client Indicator'!$A$3:$AB$351, MATCH(Selection_Hide2!$A32, 'Full set Core Client Indicator'!$A$3:$A$351, 0), MATCH(Selection_Hide2!H$5, 'Full set Core Client Indicator'!$A$3:$AB$3, 0))=\"\", \"\",  INDEX('Full set Core Client Indicator'!$A$3:$AB$351, MATCH(Selection_Hide2!$A32, 'Full set Core Client Indicator'!$A$3:$A$351, 0), MATCH(Selection_Hide2!H$5, 'Full set Core Client Indicator'!$A$3:$AB$3, 0))), \"\")","v":""},{"$f":"IF(H32<>\"\", IF(INDEX('Full set Core Client Indicator'!$A$3:$AB$351, MATCH(Selection_Hide2!$A32, 'Full set Core Client Indicator'!$A$3:$A$351, 0), MATCH(Selection_Hide2!I$5, 'Full set Core Client Indicator'!$A$3:$AB$3, 0))=\"\", \"\",  INDEX('Full set Core Client Indicator'!$A$3:$AB$351, MATCH(Selection_Hide2!$A32, 'Full set Core Client Indicator'!$A$3:$A$351, 0), MATCH(Selection_Hide2!I$5, 'Full set Core Client Indicator'!$A$3:$AB$3, 0))), \"\")","v":""},{"$f":"IF(I32<>\"\", IF(INDEX('Full set Core Client Indicator'!$A$3:$AB$351, MATCH(Selection_Hide2!$A32, 'Full set Core Client Indicator'!$A$3:$A$351, 0), MATCH(Selection_Hide2!J$5, 'Full set Core Client Indicator'!$A$3:$AB$3, 0))=\"\", \"\",  INDEX('Full set Core Client Indicator'!$A$3:$AB$351, MATCH(Selection_Hide2!$A32, 'Full set Core Client Indicator'!$A$3:$A$351, 0), MATCH(Selection_Hide2!J$5, 'Full set Core Client Indicator'!$A$3:$AB$3, 0))), \"\")","v":""},{"$f":"IF(J32<>\"\", IF(INDEX('Full set Core Client Indicator'!$A$3:$AB$351, MATCH(Selection_Hide2!$A32, 'Full set Core Client Indicator'!$A$3:$A$351, 0), MATCH(Selection_Hide2!K$5, 'Full set Core Client Indicator'!$A$3:$AB$3, 0))=\"\", \"\",  INDEX('Full set Core Client Indicator'!$A$3:$AB$351, MATCH(Selection_Hide2!$A32, 'Full set Core Client Indicator'!$A$3:$A$351, 0), MATCH(Selection_Hide2!K$5, 'Full set Core Client Indicator'!$A$3:$AB$3, 0))), \"\")","v":""},{"$f":"IF(K32<>\"\", IF(INDEX('Full set Core Client Indicator'!$A$3:$AB$351, MATCH(Selection_Hide2!$A32, 'Full set Core Client Indicator'!$A$3:$A$351, 0), MATCH(Selection_Hide2!L$5, 'Full set Core Client Indicator'!$A$3:$AB$3, 0))=\"\", \"\",  INDEX('Full set Core Client Indicator'!$A$3:$AB$351, MATCH(Selection_Hide2!$A32, 'Full set Core Client Indicator'!$A$3:$A$351, 0), MATCH(Selection_Hide2!L$5, 'Full set Core Client Indicator'!$A$3:$AB$3, 0))), \"\")","v":""},{"$f":"IF(L32<>\"\", IF(INDEX('Full set Core Client Indicator'!$A$3:$AB$351, MATCH(Selection_Hide2!$A32, 'Full set Core Client Indicator'!$A$3:$A$351, 0), MATCH(Selection_Hide2!M$5, 'Full set Core Client Indicator'!$A$3:$AB$3, 0))=\"\", \"\",  INDEX('Full set Core Client Indicator'!$A$3:$AB$351, MATCH(Selection_Hide2!$A32, 'Full set Core Client Indicator'!$A$3:$A$351, 0), MATCH(Selection_Hide2!M$5, 'Full set Core Client Indicator'!$A$3:$AB$3, 0))), \"\")","v":""},{"$f":"IF(M32<>\"\", IF(INDEX('Full set Core Client Indicator'!$A$3:$AB$351, MATCH(Selection_Hide2!$A32, 'Full set Core Client Indicator'!$A$3:$A$351, 0), MATCH(Selection_Hide2!N$5, 'Full set Core Client Indicator'!$A$3:$AB$3, 0))=\"\", \"\",  INDEX('Full set Core Client Indicator'!$A$3:$AB$351, MATCH(Selection_Hide2!$A32, 'Full set Core Client Indicator'!$A$3:$A$351, 0), MATCH(Selection_Hide2!N$5, 'Full set Core Client Indicator'!$A$3:$AB$3, 0))), \"\")","v":""},{"$f":"IF(N32<>\"\", IF(INDEX('Full set Core Client Indicator'!$A$3:$AB$351, MATCH(Selection_Hide2!$A32, 'Full set Core Client Indicator'!$A$3:$A$351, 0), MATCH(Selection_Hide2!O$5, 'Full set Core Client Indicator'!$A$3:$AB$3, 0))=\"\", \"\",  INDEX('Full set Core Client Indicator'!$A$3:$AB$351, MATCH(Selection_Hide2!$A32, 'Full set Core Client Indicator'!$A$3:$A$351, 0), MATCH(Selection_Hide2!O$5, 'Full set Core Client Indicator'!$A$3:$AB$3, 0))), \"\")","v":""},{"$f":"IF(O32<>\"\", IF(INDEX('Full set Core Client Indicator'!$A$3:$AB$351, MATCH(Selection_Hide2!$A32, 'Full set Core Client Indicator'!$A$3:$A$351, 0), MATCH(Selection_Hide2!P$5, 'Full set Core Client Indicator'!$A$3:$AB$3, 0))=\"\", \"\",  INDEX('Full set Core Client Indicator'!$A$3:$AB$351, MATCH(Selection_Hide2!$A32, 'Full set Core Client Indicator'!$A$3:$A$351, 0), MATCH(Selection_Hide2!P$5, 'Full set Core Client Indicator'!$A$3:$AB$3, 0))), \"\")","v":""},{"$f":"IF(P32<>\"\", IF(INDEX('Full set Core Client Indicator'!$A$3:$AB$351, MATCH(Selection_Hide2!$A32, 'Full set Core Client Indicator'!$A$3:$A$351, 0), MATCH(Selection_Hide2!Q$5, 'Full set Core Client Indicator'!$A$3:$AB$3, 0))=\"\", \"\",  INDEX('Full set Core Client Indicator'!$A$3:$AB$351, MATCH(Selection_Hide2!$A32, 'Full set Core Client Indicator'!$A$3:$A$351, 0), MATCH(Selection_Hide2!Q$5, 'Full set Core Client Indicator'!$A$3:$AB$3, 0))), \"\")","v":""},{"$f":"IF(Q32<>\"\", IF(INDEX('Full set Core Client Indicator'!$A$3:$AB$351, MATCH(Selection_Hide2!$A32, 'Full set Core Client Indicator'!$A$3:$A$351, 0), MATCH(Selection_Hide2!R$5, 'Full set Core Client Indicator'!$A$3:$AB$3, 0))=\"\", \"\",  INDEX('Full set Core Client Indicator'!$A$3:$AB$351, MATCH(Selection_Hide2!$A32, 'Full set Core Client Indicator'!$A$3:$A$351, 0), MATCH(Selection_Hide2!R$5, 'Full set Core Client Indicator'!$A$3:$AB$3, 0))), \"\")","v":""},{"$f":"IF(R32<>\"\", IF(INDEX('Full set Core Client Indicator'!$A$3:$AB$351, MATCH(Selection_Hide2!$A32, 'Full set Core Client Indicator'!$A$3:$A$351, 0), MATCH(Selection_Hide2!S$5, 'Full set Core Client Indicator'!$A$3:$AB$3, 0))=\"\", \"\",  INDEX('Full set Core Client Indicator'!$A$3:$AB$351, MATCH(Selection_Hide2!$A32, 'Full set Core Client Indicator'!$A$3:$A$351, 0), MATCH(Selection_Hide2!S$5, 'Full set Core Client Indicator'!$A$3:$AB$3, 0))), \"\")","v":""},{"$f":"IF(S32<>\"\", IF(INDEX('Full set Core Client Indicator'!$A$3:$AB$351, MATCH(Selection_Hide2!$A32, 'Full set Core Client Indicator'!$A$3:$A$351, 0), MATCH(Selection_Hide2!T$5, 'Full set Core Client Indicator'!$A$3:$AB$3, 0))=\"\", \"\",  INDEX('Full set Core Client Indicator'!$A$3:$AB$351, MATCH(Selection_Hide2!$A32, 'Full set Core Client Indicator'!$A$3:$A$351, 0), MATCH(Selection_Hide2!T$5, 'Full set Core Client Indicator'!$A$3:$AB$3, 0))), \"\")","v":""},{"$f":"IF(T32<>\"\", IF(INDEX('Full set Core Client Indicator'!$A$3:$AB$351, MATCH(Selection_Hide2!$A32, 'Full set Core Client Indicator'!$A$3:$A$351, 0), MATCH(Selection_Hide2!U$5, 'Full set Core Client Indicator'!$A$3:$AB$3, 0))=\"\", \"\",  INDEX('Full set Core Client Indicator'!$A$3:$AB$351, MATCH(Selection_Hide2!$A32, 'Full set Core Client Indicator'!$A$3:$A$351, 0), MATCH(Selection_Hide2!U$5, 'Full set Core Client Indicator'!$A$3:$AB$3, 0))), \"\")","v":""},{"$f":"IF(U32<>\"\", IF(INDEX('Full set Core Client Indicator'!$A$3:$AB$351, MATCH(Selection_Hide2!$A32, 'Full set Core Client Indicator'!$A$3:$A$351, 0), MATCH(Selection_Hide2!V$5, 'Full set Core Client Indicator'!$A$3:$AB$3, 0))=\"\", \"\",  INDEX('Full set Core Client Indicator'!$A$3:$AB$351, MATCH(Selection_Hide2!$A32, 'Full set Core Client Indicator'!$A$3:$A$351, 0), MATCH(Selection_Hide2!V$5, 'Full set Core Client Indicator'!$A$3:$AB$3, 0))), \"\")","v":""},{"$f":"IF(V32<>\"\", IF(INDEX('Full set Core Client Indicator'!$A$3:$AB$351, MATCH(Selection_Hide2!$A32, 'Full set Core Client Indicator'!$A$3:$A$351, 0), MATCH(Selection_Hide2!W$5, 'Full set Core Client Indicator'!$A$3:$AB$3, 0))=\"\", \"\",  INDEX('Full set Core Client Indicator'!$A$3:$AB$351, MATCH(Selection_Hide2!$A32, 'Full set Core Client Indicator'!$A$3:$A$351, 0), MATCH(Selection_Hide2!W$5, 'Full set Core Client Indicator'!$A$3:$AB$3, 0))), \"\")","v":""},{"$f":"IF(W32<>\"\", IF(INDEX('Full set Core Client Indicator'!$A$3:$AB$351, MATCH(Selection_Hide2!$A32, 'Full set Core Client Indicator'!$A$3:$A$351, 0), MATCH(Selection_Hide2!X$5, 'Full set Core Client Indicator'!$A$3:$AB$3, 0))=\"\", \"\",  INDEX('Full set Core Client Indicator'!$A$3:$AB$351, MATCH(Selection_Hide2!$A32, 'Full set Core Client Indicator'!$A$3:$A$351, 0), MATCH(Selection_Hide2!X$5, 'Full set Core Client Indicator'!$A$3:$AB$3, 0))), \"\")","v":""},{"$f":"IF(X32<>\"\", IF(INDEX('Full set Core Client Indicator'!$A$3:$AB$351, MATCH(Selection_Hide2!$A32, 'Full set Core Client Indicator'!$A$3:$A$351, 0), MATCH(Selection_Hide2!Y$5, 'Full set Core Client Indicator'!$A$3:$AB$3, 0))=\"\", \"\",  INDEX('Full set Core Client Indicator'!$A$3:$AB$351, MATCH(Selection_Hide2!$A32, 'Full set Core Client Indicator'!$A$3:$A$351, 0), MATCH(Selection_Hide2!Y$5, 'Full set Core Client Indicator'!$A$3:$AB$3, 0))), \"\")","v":""},{"$f":"IF(Y32<>\"\", IF(INDEX('Full set Core Client Indicator'!$A$3:$AB$351, MATCH(Selection_Hide2!$A32, 'Full set Core Client Indicator'!$A$3:$A$351, 0), MATCH(Selection_Hide2!Z$5, 'Full set Core Client Indicator'!$A$3:$AB$3, 0))=\"\", \"\",  INDEX('Full set Core Client Indicator'!$A$3:$AB$351, MATCH(Selection_Hide2!$A32, 'Full set Core Client Indicator'!$A$3:$A$351, 0), MATCH(Selection_Hide2!Z$5, 'Full set Core Client Indicator'!$A$3:$AB$3, 0))), \"\")","v":""},{"$f":"IF(Z32<>\"\", IF(INDEX('Full set Core Client Indicator'!$A$3:$AB$351, MATCH(Selection_Hide2!$A32, 'Full set Core Client Indicator'!$A$3:$A$351, 0), MATCH(Selection_Hide2!AA$5, 'Full set Core Client Indicator'!$A$3:$AB$3, 0))=\"\", \"\",  INDEX('Full set Core Client Indicator'!$A$3:$AB$351, MATCH(Selection_Hide2!$A32, 'Full set Core Client Indicator'!$A$3:$A$351, 0), MATCH(Selection_Hide2!AA$5, 'Full set Core Client Indicator'!$A$3:$AB$3, 0))), \"\")","v":""},{"$f":"IF(AA32<>\"\", IF(INDEX('Full set Core Client Indicator'!$A$3:$AB$351, MATCH(Selection_Hide2!$A32, 'Full set Core Client Indicator'!$A$3:$A$351, 0), MATCH(Selection_Hide2!AB$5, 'Full set Core Client Indicator'!$A$3:$AB$3, 0))=\"\", \"\",  INDEX('Full set Core Client Indicator'!$A$3:$AB$351, MATCH(Selection_Hide2!$A32, 'Full set Core Client Indicator'!$A$3:$A$351, 0), MATCH(Selection_Hide2!AB$5, 'Full set Core Client Indicator'!$A$3:$AB$3, 0))), \"\")","v":""}]
[{"$f":"IF(AND(Selection_Hide1!C31<>0, Selection_Hide1!C31<>\"Grand Total\"), Selection_Hide1!C31, \"\")","v":""},{"$f":"IF(A33<>\"\", IF(INDEX('Full set Core Client Indicator'!$A$3:$AB$351, MATCH(Selection_Hide2!$A33, 'Full set Core Client Indicator'!$A$3:$A$351, 0), MATCH(Selection_Hide2!B$5, 'Full set Core Client Indicator'!$A$3:$AB$3, 0))=\"\", \"\",  INDEX('Full set Core Client Indicator'!$A$3:$AB$351, MATCH(Selection_Hide2!$A33, 'Full set Core Client Indicator'!$A$3:$A$351, 0), MATCH(Selection_Hide2!B$5, 'Full set Core Client Indicator'!$A$3:$AB$3, 0))), \"\")","v":""},{"$f":"IF(B33<>\"\", IF(INDEX('Full set Core Client Indicator'!$A$3:$AB$351, MATCH(Selection_Hide2!$A33, 'Full set Core Client Indicator'!$A$3:$A$351, 0), MATCH(Selection_Hide2!C$5, 'Full set Core Client Indicator'!$A$3:$AB$3, 0))=\"\", \"\",  INDEX('Full set Core Client Indicator'!$A$3:$AB$351, MATCH(Selection_Hide2!$A33, 'Full set Core Client Indicator'!$A$3:$A$351, 0), MATCH(Selection_Hide2!C$5, 'Full set Core Client Indicator'!$A$3:$AB$3, 0))), \"\")","v":""},{"$f":"IF(C33<>\"\", IF(INDEX('Full set Core Client Indicator'!$A$3:$AB$351, MATCH(Selection_Hide2!$A33, 'Full set Core Client Indicator'!$A$3:$A$351, 0), MATCH(Selection_Hide2!D$5, 'Full set Core Client Indicator'!$A$3:$AB$3, 0))=\"\", \"\",  INDEX('Full set Core Client Indicator'!$A$3:$AB$351, MATCH(Selection_Hide2!$A33, 'Full set Core Client Indicator'!$A$3:$A$351, 0), MATCH(Selection_Hide2!D$5, 'Full set Core Client Indicator'!$A$3:$AB$3, 0))), \"\")","v":""},{"$f":"IF(D33<>\"\", IF(INDEX('Full set Core Client Indicator'!$A$3:$AB$351, MATCH(Selection_Hide2!$A33, 'Full set Core Client Indicator'!$A$3:$A$351, 0), MATCH(Selection_Hide2!E$5, 'Full set Core Client Indicator'!$A$3:$AB$3, 0))=\"\", \"\",  INDEX('Full set Core Client Indicator'!$A$3:$AB$351, MATCH(Selection_Hide2!$A33, 'Full set Core Client Indicator'!$A$3:$A$351, 0), MATCH(Selection_Hide2!E$5, 'Full set Core Client Indicator'!$A$3:$AB$3, 0))), \"\")","v":""},{"$f":"IF(E33<>\"\", IF(INDEX('Full set Core Client Indicator'!$A$3:$AB$351, MATCH(Selection_Hide2!$A33, 'Full set Core Client Indicator'!$A$3:$A$351, 0), MATCH(Selection_Hide2!F$5, 'Full set Core Client Indicator'!$A$3:$AB$3, 0))=\"\", \"\",  INDEX('Full set Core Client Indicator'!$A$3:$AB$351, MATCH(Selection_Hide2!$A33, 'Full set Core Client Indicator'!$A$3:$A$351, 0), MATCH(Selection_Hide2!F$5, 'Full set Core Client Indicator'!$A$3:$AB$3, 0))), \"\")","v":""},{"$f":"IF(F33<>\"\", IF(INDEX('Full set Core Client Indicator'!$A$3:$AB$351, MATCH(Selection_Hide2!$A33, 'Full set Core Client Indicator'!$A$3:$A$351, 0), MATCH(Selection_Hide2!G$5, 'Full set Core Client Indicator'!$A$3:$AB$3, 0))=\"\", \"\",  INDEX('Full set Core Client Indicator'!$A$3:$AB$351, MATCH(Selection_Hide2!$A33, 'Full set Core Client Indicator'!$A$3:$A$351, 0), MATCH(Selection_Hide2!G$5, 'Full set Core Client Indicator'!$A$3:$AB$3, 0))), \"\")","v":""},{"$f":"IF(G33<>\"\", IF(INDEX('Full set Core Client Indicator'!$A$3:$AB$351, MATCH(Selection_Hide2!$A33, 'Full set Core Client Indicator'!$A$3:$A$351, 0), MATCH(Selection_Hide2!H$5, 'Full set Core Client Indicator'!$A$3:$AB$3, 0))=\"\", \"\",  INDEX('Full set Core Client Indicator'!$A$3:$AB$351, MATCH(Selection_Hide2!$A33, 'Full set Core Client Indicator'!$A$3:$A$351, 0), MATCH(Selection_Hide2!H$5, 'Full set Core Client Indicator'!$A$3:$AB$3, 0))), \"\")","v":""},{"$f":"IF(H33<>\"\", IF(INDEX('Full set Core Client Indicator'!$A$3:$AB$351, MATCH(Selection_Hide2!$A33, 'Full set Core Client Indicator'!$A$3:$A$351, 0), MATCH(Selection_Hide2!I$5, 'Full set Core Client Indicator'!$A$3:$AB$3, 0))=\"\", \"\",  INDEX('Full set Core Client Indicator'!$A$3:$AB$351, MATCH(Selection_Hide2!$A33, 'Full set Core Client Indicator'!$A$3:$A$351, 0), MATCH(Selection_Hide2!I$5, 'Full set Core Client Indicator'!$A$3:$AB$3, 0))), \"\")","v":""},{"$f":"IF(I33<>\"\", IF(INDEX('Full set Core Client Indicator'!$A$3:$AB$351, MATCH(Selection_Hide2!$A33, 'Full set Core Client Indicator'!$A$3:$A$351, 0), MATCH(Selection_Hide2!J$5, 'Full set Core Client Indicator'!$A$3:$AB$3, 0))=\"\", \"\",  INDEX('Full set Core Client Indicator'!$A$3:$AB$351, MATCH(Selection_Hide2!$A33, 'Full set Core Client Indicator'!$A$3:$A$351, 0), MATCH(Selection_Hide2!J$5, 'Full set Core Client Indicator'!$A$3:$AB$3, 0))), \"\")","v":""},{"$f":"IF(J33<>\"\", IF(INDEX('Full set Core Client Indicator'!$A$3:$AB$351, MATCH(Selection_Hide2!$A33, 'Full set Core Client Indicator'!$A$3:$A$351, 0), MATCH(Selection_Hide2!K$5, 'Full set Core Client Indicator'!$A$3:$AB$3, 0))=\"\", \"\",  INDEX('Full set Core Client Indicator'!$A$3:$AB$351, MATCH(Selection_Hide2!$A33, 'Full set Core Client Indicator'!$A$3:$A$351, 0), MATCH(Selection_Hide2!K$5, 'Full set Core Client Indicator'!$A$3:$AB$3, 0))), \"\")","v":""},{"$f":"IF(K33<>\"\", IF(INDEX('Full set Core Client Indicator'!$A$3:$AB$351, MATCH(Selection_Hide2!$A33, 'Full set Core Client Indicator'!$A$3:$A$351, 0), MATCH(Selection_Hide2!L$5, 'Full set Core Client Indicator'!$A$3:$AB$3, 0))=\"\", \"\",  INDEX('Full set Core Client Indicator'!$A$3:$AB$351, MATCH(Selection_Hide2!$A33, 'Full set Core Client Indicator'!$A$3:$A$351, 0), MATCH(Selection_Hide2!L$5, 'Full set Core Client Indicator'!$A$3:$AB$3, 0))), \"\")","v":""},{"$f":"IF(L33<>\"\", IF(INDEX('Full set Core Client Indicator'!$A$3:$AB$351, MATCH(Selection_Hide2!$A33, 'Full set Core Client Indicator'!$A$3:$A$351, 0), MATCH(Selection_Hide2!M$5, 'Full set Core Client Indicator'!$A$3:$AB$3, 0))=\"\", \"\",  INDEX('Full set Core Client Indicator'!$A$3:$AB$351, MATCH(Selection_Hide2!$A33, 'Full set Core Client Indicator'!$A$3:$A$351, 0), MATCH(Selection_Hide2!M$5, 'Full set Core Client Indicator'!$A$3:$AB$3, 0))), \"\")","v":""},{"$f":"IF(M33<>\"\", IF(INDEX('Full set Core Client Indicator'!$A$3:$AB$351, MATCH(Selection_Hide2!$A33, 'Full set Core Client Indicator'!$A$3:$A$351, 0), MATCH(Selection_Hide2!N$5, 'Full set Core Client Indicator'!$A$3:$AB$3, 0))=\"\", \"\",  INDEX('Full set Core Client Indicator'!$A$3:$AB$351, MATCH(Selection_Hide2!$A33, 'Full set Core Client Indicator'!$A$3:$A$351, 0), MATCH(Selection_Hide2!N$5, 'Full set Core Client Indicator'!$A$3:$AB$3, 0))), \"\")","v":""},{"$f":"IF(N33<>\"\", IF(INDEX('Full set Core Client Indicator'!$A$3:$AB$351, MATCH(Selection_Hide2!$A33, 'Full set Core Client Indicator'!$A$3:$A$351, 0), MATCH(Selection_Hide2!O$5, 'Full set Core Client Indicator'!$A$3:$AB$3, 0))=\"\", \"\",  INDEX('Full set Core Client Indicator'!$A$3:$AB$351, MATCH(Selection_Hide2!$A33, 'Full set Core Client Indicator'!$A$3:$A$351, 0), MATCH(Selection_Hide2!O$5, 'Full set Core Client Indicator'!$A$3:$AB$3, 0))), \"\")","v":""},{"$f":"IF(O33<>\"\", IF(INDEX('Full set Core Client Indicator'!$A$3:$AB$351, MATCH(Selection_Hide2!$A33, 'Full set Core Client Indicator'!$A$3:$A$351, 0), MATCH(Selection_Hide2!P$5, 'Full set Core Client Indicator'!$A$3:$AB$3, 0))=\"\", \"\",  INDEX('Full set Core Client Indicator'!$A$3:$AB$351, MATCH(Selection_Hide2!$A33, 'Full set Core Client Indicator'!$A$3:$A$351, 0), MATCH(Selection_Hide2!P$5, 'Full set Core Client Indicator'!$A$3:$AB$3, 0))), \"\")","v":""},{"$f":"IF(P33<>\"\", IF(INDEX('Full set Core Client Indicator'!$A$3:$AB$351, MATCH(Selection_Hide2!$A33, 'Full set Core Client Indicator'!$A$3:$A$351, 0), MATCH(Selection_Hide2!Q$5, 'Full set Core Client Indicator'!$A$3:$AB$3, 0))=\"\", \"\",  INDEX('Full set Core Client Indicator'!$A$3:$AB$351, MATCH(Selection_Hide2!$A33, 'Full set Core Client Indicator'!$A$3:$A$351, 0), MATCH(Selection_Hide2!Q$5, 'Full set Core Client Indicator'!$A$3:$AB$3, 0))), \"\")","v":""},{"$f":"IF(Q33<>\"\", IF(INDEX('Full set Core Client Indicator'!$A$3:$AB$351, MATCH(Selection_Hide2!$A33, 'Full set Core Client Indicator'!$A$3:$A$351, 0), MATCH(Selection_Hide2!R$5, 'Full set Core Client Indicator'!$A$3:$AB$3, 0))=\"\", \"\",  INDEX('Full set Core Client Indicator'!$A$3:$AB$351, MATCH(Selection_Hide2!$A33, 'Full set Core Client Indicator'!$A$3:$A$351, 0), MATCH(Selection_Hide2!R$5, 'Full set Core Client Indicator'!$A$3:$AB$3, 0))), \"\")","v":""},{"$f":"IF(R33<>\"\", IF(INDEX('Full set Core Client Indicator'!$A$3:$AB$351, MATCH(Selection_Hide2!$A33, 'Full set Core Client Indicator'!$A$3:$A$351, 0), MATCH(Selection_Hide2!S$5, 'Full set Core Client Indicator'!$A$3:$AB$3, 0))=\"\", \"\",  INDEX('Full set Core Client Indicator'!$A$3:$AB$351, MATCH(Selection_Hide2!$A33, 'Full set Core Client Indicator'!$A$3:$A$351, 0), MATCH(Selection_Hide2!S$5, 'Full set Core Client Indicator'!$A$3:$AB$3, 0))), \"\")","v":""},{"$f":"IF(S33<>\"\", IF(INDEX('Full set Core Client Indicator'!$A$3:$AB$351, MATCH(Selection_Hide2!$A33, 'Full set Core Client Indicator'!$A$3:$A$351, 0), MATCH(Selection_Hide2!T$5, 'Full set Core Client Indicator'!$A$3:$AB$3, 0))=\"\", \"\",  INDEX('Full set Core Client Indicator'!$A$3:$AB$351, MATCH(Selection_Hide2!$A33, 'Full set Core Client Indicator'!$A$3:$A$351, 0), MATCH(Selection_Hide2!T$5, 'Full set Core Client Indicator'!$A$3:$AB$3, 0))), \"\")","v":""},{"$f":"IF(T33<>\"\", IF(INDEX('Full set Core Client Indicator'!$A$3:$AB$351, MATCH(Selection_Hide2!$A33, 'Full set Core Client Indicator'!$A$3:$A$351, 0), MATCH(Selection_Hide2!U$5, 'Full set Core Client Indicator'!$A$3:$AB$3, 0))=\"\", \"\",  INDEX('Full set Core Client Indicator'!$A$3:$AB$351, MATCH(Selection_Hide2!$A33, 'Full set Core Client Indicator'!$A$3:$A$351, 0), MATCH(Selection_Hide2!U$5, 'Full set Core Client Indicator'!$A$3:$AB$3, 0))), \"\")","v":""},{"$f":"IF(U33<>\"\", IF(INDEX('Full set Core Client Indicator'!$A$3:$AB$351, MATCH(Selection_Hide2!$A33, 'Full set Core Client Indicator'!$A$3:$A$351, 0), MATCH(Selection_Hide2!V$5, 'Full set Core Client Indicator'!$A$3:$AB$3, 0))=\"\", \"\",  INDEX('Full set Core Client Indicator'!$A$3:$AB$351, MATCH(Selection_Hide2!$A33, 'Full set Core Client Indicator'!$A$3:$A$351, 0), MATCH(Selection_Hide2!V$5, 'Full set Core Client Indicator'!$A$3:$AB$3, 0))), \"\")","v":""},{"$f":"IF(V33<>\"\", IF(INDEX('Full set Core Client Indicator'!$A$3:$AB$351, MATCH(Selection_Hide2!$A33, 'Full set Core Client Indicator'!$A$3:$A$351, 0), MATCH(Selection_Hide2!W$5, 'Full set Core Client Indicator'!$A$3:$AB$3, 0))=\"\", \"\",  INDEX('Full set Core Client Indicator'!$A$3:$AB$351, MATCH(Selection_Hide2!$A33, 'Full set Core Client Indicator'!$A$3:$A$351, 0), MATCH(Selection_Hide2!W$5, 'Full set Core Client Indicator'!$A$3:$AB$3, 0))), \"\")","v":""},{"$f":"IF(W33<>\"\", IF(INDEX('Full set Core Client Indicator'!$A$3:$AB$351, MATCH(Selection_Hide2!$A33, 'Full set Core Client Indicator'!$A$3:$A$351, 0), MATCH(Selection_Hide2!X$5, 'Full set Core Client Indicator'!$A$3:$AB$3, 0))=\"\", \"\",  INDEX('Full set Core Client Indicator'!$A$3:$AB$351, MATCH(Selection_Hide2!$A33, 'Full set Core Client Indicator'!$A$3:$A$351, 0), MATCH(Selection_Hide2!X$5, 'Full set Core Client Indicator'!$A$3:$AB$3, 0))), \"\")","v":""},{"$f":"IF(X33<>\"\", IF(INDEX('Full set Core Client Indicator'!$A$3:$AB$351, MATCH(Selection_Hide2!$A33, 'Full set Core Client Indicator'!$A$3:$A$351, 0), MATCH(Selection_Hide2!Y$5, 'Full set Core Client Indicator'!$A$3:$AB$3, 0))=\"\", \"\",  INDEX('Full set Core Client Indicator'!$A$3:$AB$351, MATCH(Selection_Hide2!$A33, 'Full set Core Client Indicator'!$A$3:$A$351, 0), MATCH(Selection_Hide2!Y$5, 'Full set Core Client Indicator'!$A$3:$AB$3, 0))), \"\")","v":""},{"$f":"IF(Y33<>\"\", IF(INDEX('Full set Core Client Indicator'!$A$3:$AB$351, MATCH(Selection_Hide2!$A33, 'Full set Core Client Indicator'!$A$3:$A$351, 0), MATCH(Selection_Hide2!Z$5, 'Full set Core Client Indicator'!$A$3:$AB$3, 0))=\"\", \"\",  INDEX('Full set Core Client Indicator'!$A$3:$AB$351, MATCH(Selection_Hide2!$A33, 'Full set Core Client Indicator'!$A$3:$A$351, 0), MATCH(Selection_Hide2!Z$5, 'Full set Core Client Indicator'!$A$3:$AB$3, 0))), \"\")","v":""},{"$f":"IF(Z33<>\"\", IF(INDEX('Full set Core Client Indicator'!$A$3:$AB$351, MATCH(Selection_Hide2!$A33, 'Full set Core Client Indicator'!$A$3:$A$351, 0), MATCH(Selection_Hide2!AA$5, 'Full set Core Client Indicator'!$A$3:$AB$3, 0))=\"\", \"\",  INDEX('Full set Core Client Indicator'!$A$3:$AB$351, MATCH(Selection_Hide2!$A33, 'Full set Core Client Indicator'!$A$3:$A$351, 0), MATCH(Selection_Hide2!AA$5, 'Full set Core Client Indicator'!$A$3:$AB$3, 0))), \"\")","v":""},{"$f":"IF(AA33<>\"\", IF(INDEX('Full set Core Client Indicator'!$A$3:$AB$351, MATCH(Selection_Hide2!$A33, 'Full set Core Client Indicator'!$A$3:$A$351, 0), MATCH(Selection_Hide2!AB$5, 'Full set Core Client Indicator'!$A$3:$AB$3, 0))=\"\", \"\",  INDEX('Full set Core Client Indicator'!$A$3:$AB$351, MATCH(Selection_Hide2!$A33, 'Full set Core Client Indicator'!$A$3:$A$351, 0), MATCH(Selection_Hide2!AB$5, 'Full set Core Client Indicator'!$A$3:$AB$3, 0))), \"\")","v":""}]
[{"$f":"IF(AND(Selection_Hide1!C32<>0, Selection_Hide1!C32<>\"Grand Total\"), Selection_Hide1!C32, \"\")","v":""},{"$f":"IF(A34<>\"\", IF(INDEX('Full set Core Client Indicator'!$A$3:$AB$351, MATCH(Selection_Hide2!$A34, 'Full set Core Client Indicator'!$A$3:$A$351, 0), MATCH(Selection_Hide2!B$5, 'Full set Core Client Indicator'!$A$3:$AB$3, 0))=\"\", \"\",  INDEX('Full set Core Client Indicator'!$A$3:$AB$351, MATCH(Selection_Hide2!$A34, 'Full set Core Client Indicator'!$A$3:$A$351, 0), MATCH(Selection_Hide2!B$5, 'Full set Core Client Indicator'!$A$3:$AB$3, 0))), \"\")","v":""},{"$f":"IF(B34<>\"\", IF(INDEX('Full set Core Client Indicator'!$A$3:$AB$351, MATCH(Selection_Hide2!$A34, 'Full set Core Client Indicator'!$A$3:$A$351, 0), MATCH(Selection_Hide2!C$5, 'Full set Core Client Indicator'!$A$3:$AB$3, 0))=\"\", \"\",  INDEX('Full set Core Client Indicator'!$A$3:$AB$351, MATCH(Selection_Hide2!$A34, 'Full set Core Client Indicator'!$A$3:$A$351, 0), MATCH(Selection_Hide2!C$5, 'Full set Core Client Indicator'!$A$3:$AB$3, 0))), \"\")","v":""},{"$f":"IF(C34<>\"\", IF(INDEX('Full set Core Client Indicator'!$A$3:$AB$351, MATCH(Selection_Hide2!$A34, 'Full set Core Client Indicator'!$A$3:$A$351, 0), MATCH(Selection_Hide2!D$5, 'Full set Core Client Indicator'!$A$3:$AB$3, 0))=\"\", \"\",  INDEX('Full set Core Client Indicator'!$A$3:$AB$351, MATCH(Selection_Hide2!$A34, 'Full set Core Client Indicator'!$A$3:$A$351, 0), MATCH(Selection_Hide2!D$5, 'Full set Core Client Indicator'!$A$3:$AB$3, 0))), \"\")","v":""},{"$f":"IF(D34<>\"\", IF(INDEX('Full set Core Client Indicator'!$A$3:$AB$351, MATCH(Selection_Hide2!$A34, 'Full set Core Client Indicator'!$A$3:$A$351, 0), MATCH(Selection_Hide2!E$5, 'Full set Core Client Indicator'!$A$3:$AB$3, 0))=\"\", \"\",  INDEX('Full set Core Client Indicator'!$A$3:$AB$351, MATCH(Selection_Hide2!$A34, 'Full set Core Client Indicator'!$A$3:$A$351, 0), MATCH(Selection_Hide2!E$5, 'Full set Core Client Indicator'!$A$3:$AB$3, 0))), \"\")","v":""},{"$f":"IF(E34<>\"\", IF(INDEX('Full set Core Client Indicator'!$A$3:$AB$351, MATCH(Selection_Hide2!$A34, 'Full set Core Client Indicator'!$A$3:$A$351, 0), MATCH(Selection_Hide2!F$5, 'Full set Core Client Indicator'!$A$3:$AB$3, 0))=\"\", \"\",  INDEX('Full set Core Client Indicator'!$A$3:$AB$351, MATCH(Selection_Hide2!$A34, 'Full set Core Client Indicator'!$A$3:$A$351, 0), MATCH(Selection_Hide2!F$5, 'Full set Core Client Indicator'!$A$3:$AB$3, 0))), \"\")","v":""},{"$f":"IF(F34<>\"\", IF(INDEX('Full set Core Client Indicator'!$A$3:$AB$351, MATCH(Selection_Hide2!$A34, 'Full set Core Client Indicator'!$A$3:$A$351, 0), MATCH(Selection_Hide2!G$5, 'Full set Core Client Indicator'!$A$3:$AB$3, 0))=\"\", \"\",  INDEX('Full set Core Client Indicator'!$A$3:$AB$351, MATCH(Selection_Hide2!$A34, 'Full set Core Client Indicator'!$A$3:$A$351, 0), MATCH(Selection_Hide2!G$5, 'Full set Core Client Indicator'!$A$3:$AB$3, 0))), \"\")","v":""},{"$f":"IF(G34<>\"\", IF(INDEX('Full set Core Client Indicator'!$A$3:$AB$351, MATCH(Selection_Hide2!$A34, 'Full set Core Client Indicator'!$A$3:$A$351, 0), MATCH(Selection_Hide2!H$5, 'Full set Core Client Indicator'!$A$3:$AB$3, 0))=\"\", \"\",  INDEX('Full set Core Client Indicator'!$A$3:$AB$351, MATCH(Selection_Hide2!$A34, 'Full set Core Client Indicator'!$A$3:$A$351, 0), MATCH(Selection_Hide2!H$5, 'Full set Core Client Indicator'!$A$3:$AB$3, 0))), \"\")","v":""},{"$f":"IF(H34<>\"\", IF(INDEX('Full set Core Client Indicator'!$A$3:$AB$351, MATCH(Selection_Hide2!$A34, 'Full set Core Client Indicator'!$A$3:$A$351, 0), MATCH(Selection_Hide2!I$5, 'Full set Core Client Indicator'!$A$3:$AB$3, 0))=\"\", \"\",  INDEX('Full set Core Client Indicator'!$A$3:$AB$351, MATCH(Selection_Hide2!$A34, 'Full set Core Client Indicator'!$A$3:$A$351, 0), MATCH(Selection_Hide2!I$5, 'Full set Core Client Indicator'!$A$3:$AB$3, 0))), \"\")","v":""},{"$f":"IF(I34<>\"\", IF(INDEX('Full set Core Client Indicator'!$A$3:$AB$351, MATCH(Selection_Hide2!$A34, 'Full set Core Client Indicator'!$A$3:$A$351, 0), MATCH(Selection_Hide2!J$5, 'Full set Core Client Indicator'!$A$3:$AB$3, 0))=\"\", \"\",  INDEX('Full set Core Client Indicator'!$A$3:$AB$351, MATCH(Selection_Hide2!$A34, 'Full set Core Client Indicator'!$A$3:$A$351, 0), MATCH(Selection_Hide2!J$5, 'Full set Core Client Indicator'!$A$3:$AB$3, 0))), \"\")","v":""},{"$f":"IF(J34<>\"\", IF(INDEX('Full set Core Client Indicator'!$A$3:$AB$351, MATCH(Selection_Hide2!$A34, 'Full set Core Client Indicator'!$A$3:$A$351, 0), MATCH(Selection_Hide2!K$5, 'Full set Core Client Indicator'!$A$3:$AB$3, 0))=\"\", \"\",  INDEX('Full set Core Client Indicator'!$A$3:$AB$351, MATCH(Selection_Hide2!$A34, 'Full set Core Client Indicator'!$A$3:$A$351, 0), MATCH(Selection_Hide2!K$5, 'Full set Core Client Indicator'!$A$3:$AB$3, 0))), \"\")","v":""},{"$f":"IF(K34<>\"\", IF(INDEX('Full set Core Client Indicator'!$A$3:$AB$351, MATCH(Selection_Hide2!$A34, 'Full set Core Client Indicator'!$A$3:$A$351, 0), MATCH(Selection_Hide2!L$5, 'Full set Core Client Indicator'!$A$3:$AB$3, 0))=\"\", \"\",  INDEX('Full set Core Client Indicator'!$A$3:$AB$351, MATCH(Selection_Hide2!$A34, 'Full set Core Client Indicator'!$A$3:$A$351, 0), MATCH(Selection_Hide2!L$5, 'Full set Core Client Indicator'!$A$3:$AB$3, 0))), \"\")","v":""},{"$f":"IF(L34<>\"\", IF(INDEX('Full set Core Client Indicator'!$A$3:$AB$351, MATCH(Selection_Hide2!$A34, 'Full set Core Client Indicator'!$A$3:$A$351, 0), MATCH(Selection_Hide2!M$5, 'Full set Core Client Indicator'!$A$3:$AB$3, 0))=\"\", \"\",  INDEX('Full set Core Client Indicator'!$A$3:$AB$351, MATCH(Selection_Hide2!$A34, 'Full set Core Client Indicator'!$A$3:$A$351, 0), MATCH(Selection_Hide2!M$5, 'Full set Core Client Indicator'!$A$3:$AB$3, 0))), \"\")","v":""},{"$f":"IF(M34<>\"\", IF(INDEX('Full set Core Client Indicator'!$A$3:$AB$351, MATCH(Selection_Hide2!$A34, 'Full set Core Client Indicator'!$A$3:$A$351, 0), MATCH(Selection_Hide2!N$5, 'Full set Core Client Indicator'!$A$3:$AB$3, 0))=\"\", \"\",  INDEX('Full set Core Client Indicator'!$A$3:$AB$351, MATCH(Selection_Hide2!$A34, 'Full set Core Client Indicator'!$A$3:$A$351, 0), MATCH(Selection_Hide2!N$5, 'Full set Core Client Indicator'!$A$3:$AB$3, 0))), \"\")","v":""},{"$f":"IF(N34<>\"\", IF(INDEX('Full set Core Client Indicator'!$A$3:$AB$351, MATCH(Selection_Hide2!$A34, 'Full set Core Client Indicator'!$A$3:$A$351, 0), MATCH(Selection_Hide2!O$5, 'Full set Core Client Indicator'!$A$3:$AB$3, 0))=\"\", \"\",  INDEX('Full set Core Client Indicator'!$A$3:$AB$351, MATCH(Selection_Hide2!$A34, 'Full set Core Client Indicator'!$A$3:$A$351, 0), MATCH(Selection_Hide2!O$5, 'Full set Core Client Indicator'!$A$3:$AB$3, 0))), \"\")","v":""},{"$f":"IF(O34<>\"\", IF(INDEX('Full set Core Client Indicator'!$A$3:$AB$351, MATCH(Selection_Hide2!$A34, 'Full set Core Client Indicator'!$A$3:$A$351, 0), MATCH(Selection_Hide2!P$5, 'Full set Core Client Indicator'!$A$3:$AB$3, 0))=\"\", \"\",  INDEX('Full set Core Client Indicator'!$A$3:$AB$351, MATCH(Selection_Hide2!$A34, 'Full set Core Client Indicator'!$A$3:$A$351, 0), MATCH(Selection_Hide2!P$5, 'Full set Core Client Indicator'!$A$3:$AB$3, 0))), \"\")","v":""},{"$f":"IF(P34<>\"\", IF(INDEX('Full set Core Client Indicator'!$A$3:$AB$351, MATCH(Selection_Hide2!$A34, 'Full set Core Client Indicator'!$A$3:$A$351, 0), MATCH(Selection_Hide2!Q$5, 'Full set Core Client Indicator'!$A$3:$AB$3, 0))=\"\", \"\",  INDEX('Full set Core Client Indicator'!$A$3:$AB$351, MATCH(Selection_Hide2!$A34, 'Full set Core Client Indicator'!$A$3:$A$351, 0), MATCH(Selection_Hide2!Q$5, 'Full set Core Client Indicator'!$A$3:$AB$3, 0))), \"\")","v":""},{"$f":"IF(Q34<>\"\", IF(INDEX('Full set Core Client Indicator'!$A$3:$AB$351, MATCH(Selection_Hide2!$A34, 'Full set Core Client Indicator'!$A$3:$A$351, 0), MATCH(Selection_Hide2!R$5, 'Full set Core Client Indicator'!$A$3:$AB$3, 0))=\"\", \"\",  INDEX('Full set Core Client Indicator'!$A$3:$AB$351, MATCH(Selection_Hide2!$A34, 'Full set Core Client Indicator'!$A$3:$A$351, 0), MATCH(Selection_Hide2!R$5, 'Full set Core Client Indicator'!$A$3:$AB$3, 0))), \"\")","v":""},{"$f":"IF(R34<>\"\", IF(INDEX('Full set Core Client Indicator'!$A$3:$AB$351, MATCH(Selection_Hide2!$A34, 'Full set Core Client Indicator'!$A$3:$A$351, 0), MATCH(Selection_Hide2!S$5, 'Full set Core Client Indicator'!$A$3:$AB$3, 0))=\"\", \"\",  INDEX('Full set Core Client Indicator'!$A$3:$AB$351, MATCH(Selection_Hide2!$A34, 'Full set Core Client Indicator'!$A$3:$A$351, 0), MATCH(Selection_Hide2!S$5, 'Full set Core Client Indicator'!$A$3:$AB$3, 0))), \"\")","v":""},{"$f":"IF(S34<>\"\", IF(INDEX('Full set Core Client Indicator'!$A$3:$AB$351, MATCH(Selection_Hide2!$A34, 'Full set Core Client Indicator'!$A$3:$A$351, 0), MATCH(Selection_Hide2!T$5, 'Full set Core Client Indicator'!$A$3:$AB$3, 0))=\"\", \"\",  INDEX('Full set Core Client Indicator'!$A$3:$AB$351, MATCH(Selection_Hide2!$A34, 'Full set Core Client Indicator'!$A$3:$A$351, 0), MATCH(Selection_Hide2!T$5, 'Full set Core Client Indicator'!$A$3:$AB$3, 0))), \"\")","v":""},{"$f":"IF(T34<>\"\", IF(INDEX('Full set Core Client Indicator'!$A$3:$AB$351, MATCH(Selection_Hide2!$A34, 'Full set Core Client Indicator'!$A$3:$A$351, 0), MATCH(Selection_Hide2!U$5, 'Full set Core Client Indicator'!$A$3:$AB$3, 0))=\"\", \"\",  INDEX('Full set Core Client Indicator'!$A$3:$AB$351, MATCH(Selection_Hide2!$A34, 'Full set Core Client Indicator'!$A$3:$A$351, 0), MATCH(Selection_Hide2!U$5, 'Full set Core Client Indicator'!$A$3:$AB$3, 0))), \"\")","v":""},{"$f":"IF(U34<>\"\", IF(INDEX('Full set Core Client Indicator'!$A$3:$AB$351, MATCH(Selection_Hide2!$A34, 'Full set Core Client Indicator'!$A$3:$A$351, 0), MATCH(Selection_Hide2!V$5, 'Full set Core Client Indicator'!$A$3:$AB$3, 0))=\"\", \"\",  INDEX('Full set Core Client Indicator'!$A$3:$AB$351, MATCH(Selection_Hide2!$A34, 'Full set Core Client Indicator'!$A$3:$A$351, 0), MATCH(Selection_Hide2!V$5, 'Full set Core Client Indicator'!$A$3:$AB$3, 0))), \"\")","v":""},{"$f":"IF(V34<>\"\", IF(INDEX('Full set Core Client Indicator'!$A$3:$AB$351, MATCH(Selection_Hide2!$A34, 'Full set Core Client Indicator'!$A$3:$A$351, 0), MATCH(Selection_Hide2!W$5, 'Full set Core Client Indicator'!$A$3:$AB$3, 0))=\"\", \"\",  INDEX('Full set Core Client Indicator'!$A$3:$AB$351, MATCH(Selection_Hide2!$A34, 'Full set Core Client Indicator'!$A$3:$A$351, 0), MATCH(Selection_Hide2!W$5, 'Full set Core Client Indicator'!$A$3:$AB$3, 0))), \"\")","v":""},{"$f":"IF(W34<>\"\", IF(INDEX('Full set Core Client Indicator'!$A$3:$AB$351, MATCH(Selection_Hide2!$A34, 'Full set Core Client Indicator'!$A$3:$A$351, 0), MATCH(Selection_Hide2!X$5, 'Full set Core Client Indicator'!$A$3:$AB$3, 0))=\"\", \"\",  INDEX('Full set Core Client Indicator'!$A$3:$AB$351, MATCH(Selection_Hide2!$A34, 'Full set Core Client Indicator'!$A$3:$A$351, 0), MATCH(Selection_Hide2!X$5, 'Full set Core Client Indicator'!$A$3:$AB$3, 0))), \"\")","v":""},{"$f":"IF(X34<>\"\", IF(INDEX('Full set Core Client Indicator'!$A$3:$AB$351, MATCH(Selection_Hide2!$A34, 'Full set Core Client Indicator'!$A$3:$A$351, 0), MATCH(Selection_Hide2!Y$5, 'Full set Core Client Indicator'!$A$3:$AB$3, 0))=\"\", \"\",  INDEX('Full set Core Client Indicator'!$A$3:$AB$351, MATCH(Selection_Hide2!$A34, 'Full set Core Client Indicator'!$A$3:$A$351, 0), MATCH(Selection_Hide2!Y$5, 'Full set Core Client Indicator'!$A$3:$AB$3, 0))), \"\")","v":""},{"$f":"IF(Y34<>\"\", IF(INDEX('Full set Core Client Indicator'!$A$3:$AB$351, MATCH(Selection_Hide2!$A34, 'Full set Core Client Indicator'!$A$3:$A$351, 0), MATCH(Selection_Hide2!Z$5, 'Full set Core Client Indicator'!$A$3:$AB$3, 0))=\"\", \"\",  INDEX('Full set Core Client Indicator'!$A$3:$AB$351, MATCH(Selection_Hide2!$A34, 'Full set Core Client Indicator'!$A$3:$A$351, 0), MATCH(Selection_Hide2!Z$5, 'Full set Core Client Indicator'!$A$3:$AB$3, 0))), \"\")","v":""},{"$f":"IF(Z34<>\"\", IF(INDEX('Full set Core Client Indicator'!$A$3:$AB$351, MATCH(Selection_Hide2!$A34, 'Full set Core Client Indicator'!$A$3:$A$351, 0), MATCH(Selection_Hide2!AA$5, 'Full set Core Client Indicator'!$A$3:$AB$3, 0))=\"\", \"\",  INDEX('Full set Core Client Indicator'!$A$3:$AB$351, MATCH(Selection_Hide2!$A34, 'Full set Core Client Indicator'!$A$3:$A$351, 0), MATCH(Selection_Hide2!AA$5, 'Full set Core Client Indicator'!$A$3:$AB$3, 0))), \"\")","v":""},{"$f":"IF(AA34<>\"\", IF(INDEX('Full set Core Client Indicator'!$A$3:$AB$351, MATCH(Selection_Hide2!$A34, 'Full set Core Client Indicator'!$A$3:$A$351, 0), MATCH(Selection_Hide2!AB$5, 'Full set Core Client Indicator'!$A$3:$AB$3, 0))=\"\", \"\",  INDEX('Full set Core Client Indicator'!$A$3:$AB$351, MATCH(Selection_Hide2!$A34, 'Full set Core Client Indicator'!$A$3:$A$351, 0), MATCH(Selection_Hide2!AB$5, 'Full set Core Client Indicator'!$A$3:$AB$3, 0))), \"\")","v":""}]
[{"$f":"IF(AND(Selection_Hide1!C33<>0, Selection_Hide1!C33<>\"Grand Total\"), Selection_Hide1!C33, \"\")","v":""},{"$f":"IF(A35<>\"\", IF(INDEX('Full set Core Client Indicator'!$A$3:$AB$351, MATCH(Selection_Hide2!$A35, 'Full set Core Client Indicator'!$A$3:$A$351, 0), MATCH(Selection_Hide2!B$5, 'Full set Core Client Indicator'!$A$3:$AB$3, 0))=\"\", \"\",  INDEX('Full set Core Client Indicator'!$A$3:$AB$351, MATCH(Selection_Hide2!$A35, 'Full set Core Client Indicator'!$A$3:$A$351, 0), MATCH(Selection_Hide2!B$5, 'Full set Core Client Indicator'!$A$3:$AB$3, 0))), \"\")","v":""},{"$f":"IF(B35<>\"\", IF(INDEX('Full set Core Client Indicator'!$A$3:$AB$351, MATCH(Selection_Hide2!$A35, 'Full set Core Client Indicator'!$A$3:$A$351, 0), MATCH(Selection_Hide2!C$5, 'Full set Core Client Indicator'!$A$3:$AB$3, 0))=\"\", \"\",  INDEX('Full set Core Client Indicator'!$A$3:$AB$351, MATCH(Selection_Hide2!$A35, 'Full set Core Client Indicator'!$A$3:$A$351, 0), MATCH(Selection_Hide2!C$5, 'Full set Core Client Indicator'!$A$3:$AB$3, 0))), \"\")","v":""},{"$f":"IF(C35<>\"\", IF(INDEX('Full set Core Client Indicator'!$A$3:$AB$351, MATCH(Selection_Hide2!$A35, 'Full set Core Client Indicator'!$A$3:$A$351, 0), MATCH(Selection_Hide2!D$5, 'Full set Core Client Indicator'!$A$3:$AB$3, 0))=\"\", \"\",  INDEX('Full set Core Client Indicator'!$A$3:$AB$351, MATCH(Selection_Hide2!$A35, 'Full set Core Client Indicator'!$A$3:$A$351, 0), MATCH(Selection_Hide2!D$5, 'Full set Core Client Indicator'!$A$3:$AB$3, 0))), \"\")","v":""},{"$f":"IF(D35<>\"\", IF(INDEX('Full set Core Client Indicator'!$A$3:$AB$351, MATCH(Selection_Hide2!$A35, 'Full set Core Client Indicator'!$A$3:$A$351, 0), MATCH(Selection_Hide2!E$5, 'Full set Core Client Indicator'!$A$3:$AB$3, 0))=\"\", \"\",  INDEX('Full set Core Client Indicator'!$A$3:$AB$351, MATCH(Selection_Hide2!$A35, 'Full set Core Client Indicator'!$A$3:$A$351, 0), MATCH(Selection_Hide2!E$5, 'Full set Core Client Indicator'!$A$3:$AB$3, 0))), \"\")","v":""},{"$f":"IF(E35<>\"\", IF(INDEX('Full set Core Client Indicator'!$A$3:$AB$351, MATCH(Selection_Hide2!$A35, 'Full set Core Client Indicator'!$A$3:$A$351, 0), MATCH(Selection_Hide2!F$5, 'Full set Core Client Indicator'!$A$3:$AB$3, 0))=\"\", \"\",  INDEX('Full set Core Client Indicator'!$A$3:$AB$351, MATCH(Selection_Hide2!$A35, 'Full set Core Client Indicator'!$A$3:$A$351, 0), MATCH(Selection_Hide2!F$5, 'Full set Core Client Indicator'!$A$3:$AB$3, 0))), \"\")","v":""},{"$f":"IF(F35<>\"\", IF(INDEX('Full set Core Client Indicator'!$A$3:$AB$351, MATCH(Selection_Hide2!$A35, 'Full set Core Client Indicator'!$A$3:$A$351, 0), MATCH(Selection_Hide2!G$5, 'Full set Core Client Indicator'!$A$3:$AB$3, 0))=\"\", \"\",  INDEX('Full set Core Client Indicator'!$A$3:$AB$351, MATCH(Selection_Hide2!$A35, 'Full set Core Client Indicator'!$A$3:$A$351, 0), MATCH(Selection_Hide2!G$5, 'Full set Core Client Indicator'!$A$3:$AB$3, 0))), \"\")","v":""},{"$f":"IF(G35<>\"\", IF(INDEX('Full set Core Client Indicator'!$A$3:$AB$351, MATCH(Selection_Hide2!$A35, 'Full set Core Client Indicator'!$A$3:$A$351, 0), MATCH(Selection_Hide2!H$5, 'Full set Core Client Indicator'!$A$3:$AB$3, 0))=\"\", \"\",  INDEX('Full set Core Client Indicator'!$A$3:$AB$351, MATCH(Selection_Hide2!$A35, 'Full set Core Client Indicator'!$A$3:$A$351, 0), MATCH(Selection_Hide2!H$5, 'Full set Core Client Indicator'!$A$3:$AB$3, 0))), \"\")","v":""},{"$f":"IF(H35<>\"\", IF(INDEX('Full set Core Client Indicator'!$A$3:$AB$351, MATCH(Selection_Hide2!$A35, 'Full set Core Client Indicator'!$A$3:$A$351, 0), MATCH(Selection_Hide2!I$5, 'Full set Core Client Indicator'!$A$3:$AB$3, 0))=\"\", \"\",  INDEX('Full set Core Client Indicator'!$A$3:$AB$351, MATCH(Selection_Hide2!$A35, 'Full set Core Client Indicator'!$A$3:$A$351, 0), MATCH(Selection_Hide2!I$5, 'Full set Core Client Indicator'!$A$3:$AB$3, 0))), \"\")","v":""},{"$f":"IF(I35<>\"\", IF(INDEX('Full set Core Client Indicator'!$A$3:$AB$351, MATCH(Selection_Hide2!$A35, 'Full set Core Client Indicator'!$A$3:$A$351, 0), MATCH(Selection_Hide2!J$5, 'Full set Core Client Indicator'!$A$3:$AB$3, 0))=\"\", \"\",  INDEX('Full set Core Client Indicator'!$A$3:$AB$351, MATCH(Selection_Hide2!$A35, 'Full set Core Client Indicator'!$A$3:$A$351, 0), MATCH(Selection_Hide2!J$5, 'Full set Core Client Indicator'!$A$3:$AB$3, 0))), \"\")","v":""},{"$f":"IF(J35<>\"\", IF(INDEX('Full set Core Client Indicator'!$A$3:$AB$351, MATCH(Selection_Hide2!$A35, 'Full set Core Client Indicator'!$A$3:$A$351, 0), MATCH(Selection_Hide2!K$5, 'Full set Core Client Indicator'!$A$3:$AB$3, 0))=\"\", \"\",  INDEX('Full set Core Client Indicator'!$A$3:$AB$351, MATCH(Selection_Hide2!$A35, 'Full set Core Client Indicator'!$A$3:$A$351, 0), MATCH(Selection_Hide2!K$5, 'Full set Core Client Indicator'!$A$3:$AB$3, 0))), \"\")","v":""},{"$f":"IF(K35<>\"\", IF(INDEX('Full set Core Client Indicator'!$A$3:$AB$351, MATCH(Selection_Hide2!$A35, 'Full set Core Client Indicator'!$A$3:$A$351, 0), MATCH(Selection_Hide2!L$5, 'Full set Core Client Indicator'!$A$3:$AB$3, 0))=\"\", \"\",  INDEX('Full set Core Client Indicator'!$A$3:$AB$351, MATCH(Selection_Hide2!$A35, 'Full set Core Client Indicator'!$A$3:$A$351, 0), MATCH(Selection_Hide2!L$5, 'Full set Core Client Indicator'!$A$3:$AB$3, 0))), \"\")","v":""},{"$f":"IF(L35<>\"\", IF(INDEX('Full set Core Client Indicator'!$A$3:$AB$351, MATCH(Selection_Hide2!$A35, 'Full set Core Client Indicator'!$A$3:$A$351, 0), MATCH(Selection_Hide2!M$5, 'Full set Core Client Indicator'!$A$3:$AB$3, 0))=\"\", \"\",  INDEX('Full set Core Client Indicator'!$A$3:$AB$351, MATCH(Selection_Hide2!$A35, 'Full set Core Client Indicator'!$A$3:$A$351, 0), MATCH(Selection_Hide2!M$5, 'Full set Core Client Indicator'!$A$3:$AB$3, 0))), \"\")","v":""},{"$f":"IF(M35<>\"\", IF(INDEX('Full set Core Client Indicator'!$A$3:$AB$351, MATCH(Selection_Hide2!$A35, 'Full set Core Client Indicator'!$A$3:$A$351, 0), MATCH(Selection_Hide2!N$5, 'Full set Core Client Indicator'!$A$3:$AB$3, 0))=\"\", \"\",  INDEX('Full set Core Client Indicator'!$A$3:$AB$351, MATCH(Selection_Hide2!$A35, 'Full set Core Client Indicator'!$A$3:$A$351, 0), MATCH(Selection_Hide2!N$5, 'Full set Core Client Indicator'!$A$3:$AB$3, 0))), \"\")","v":""},{"$f":"IF(N35<>\"\", IF(INDEX('Full set Core Client Indicator'!$A$3:$AB$351, MATCH(Selection_Hide2!$A35, 'Full set Core Client Indicator'!$A$3:$A$351, 0), MATCH(Selection_Hide2!O$5, 'Full set Core Client Indicator'!$A$3:$AB$3, 0))=\"\", \"\",  INDEX('Full set Core Client Indicator'!$A$3:$AB$351, MATCH(Selection_Hide2!$A35, 'Full set Core Client Indicator'!$A$3:$A$351, 0), MATCH(Selection_Hide2!O$5, 'Full set Core Client Indicator'!$A$3:$AB$3, 0))), \"\")","v":""},{"$f":"IF(O35<>\"\", IF(INDEX('Full set Core Client Indicator'!$A$3:$AB$351, MATCH(Selection_Hide2!$A35, 'Full set Core Client Indicator'!$A$3:$A$351, 0), MATCH(Selection_Hide2!P$5, 'Full set Core Client Indicator'!$A$3:$AB$3, 0))=\"\", \"\",  INDEX('Full set Core Client Indicator'!$A$3:$AB$351, MATCH(Selection_Hide2!$A35, 'Full set Core Client Indicator'!$A$3:$A$351, 0), MATCH(Selection_Hide2!P$5, 'Full set Core Client Indicator'!$A$3:$AB$3, 0))), \"\")","v":""},{"$f":"IF(P35<>\"\", IF(INDEX('Full set Core Client Indicator'!$A$3:$AB$351, MATCH(Selection_Hide2!$A35, 'Full set Core Client Indicator'!$A$3:$A$351, 0), MATCH(Selection_Hide2!Q$5, 'Full set Core Client Indicator'!$A$3:$AB$3, 0))=\"\", \"\",  INDEX('Full set Core Client Indicator'!$A$3:$AB$351, MATCH(Selection_Hide2!$A35, 'Full set Core Client Indicator'!$A$3:$A$351, 0), MATCH(Selection_Hide2!Q$5, 'Full set Core Client Indicator'!$A$3:$AB$3, 0))), \"\")","v":""},{"$f":"IF(Q35<>\"\", IF(INDEX('Full set Core Client Indicator'!$A$3:$AB$351, MATCH(Selection_Hide2!$A35, 'Full set Core Client Indicator'!$A$3:$A$351, 0), MATCH(Selection_Hide2!R$5, 'Full set Core Client Indicator'!$A$3:$AB$3, 0))=\"\", \"\",  INDEX('Full set Core Client Indicator'!$A$3:$AB$351, MATCH(Selection_Hide2!$A35, 'Full set Core Client Indicator'!$A$3:$A$351, 0), MATCH(Selection_Hide2!R$5, 'Full set Core Client Indicator'!$A$3:$AB$3, 0))), \"\")","v":""},{"$f":"IF(R35<>\"\", IF(INDEX('Full set Core Client Indicator'!$A$3:$AB$351, MATCH(Selection_Hide2!$A35, 'Full set Core Client Indicator'!$A$3:$A$351, 0), MATCH(Selection_Hide2!S$5, 'Full set Core Client Indicator'!$A$3:$AB$3, 0))=\"\", \"\",  INDEX('Full set Core Client Indicator'!$A$3:$AB$351, MATCH(Selection_Hide2!$A35, 'Full set Core Client Indicator'!$A$3:$A$351, 0), MATCH(Selection_Hide2!S$5, 'Full set Core Client Indicator'!$A$3:$AB$3, 0))), \"\")","v":""},{"$f":"IF(S35<>\"\", IF(INDEX('Full set Core Client Indicator'!$A$3:$AB$351, MATCH(Selection_Hide2!$A35, 'Full set Core Client Indicator'!$A$3:$A$351, 0), MATCH(Selection_Hide2!T$5, 'Full set Core Client Indicator'!$A$3:$AB$3, 0))=\"\", \"\",  INDEX('Full set Core Client Indicator'!$A$3:$AB$351, MATCH(Selection_Hide2!$A35, 'Full set Core Client Indicator'!$A$3:$A$351, 0), MATCH(Selection_Hide2!T$5, 'Full set Core Client Indicator'!$A$3:$AB$3, 0))), \"\")","v":""},{"$f":"IF(T35<>\"\", IF(INDEX('Full set Core Client Indicator'!$A$3:$AB$351, MATCH(Selection_Hide2!$A35, 'Full set Core Client Indicator'!$A$3:$A$351, 0), MATCH(Selection_Hide2!U$5, 'Full set Core Client Indicator'!$A$3:$AB$3, 0))=\"\", \"\",  INDEX('Full set Core Client Indicator'!$A$3:$AB$351, MATCH(Selection_Hide2!$A35, 'Full set Core Client Indicator'!$A$3:$A$351, 0), MATCH(Selection_Hide2!U$5, 'Full set Core Client Indicator'!$A$3:$AB$3, 0))), \"\")","v":""},{"$f":"IF(U35<>\"\", IF(INDEX('Full set Core Client Indicator'!$A$3:$AB$351, MATCH(Selection_Hide2!$A35, 'Full set Core Client Indicator'!$A$3:$A$351, 0), MATCH(Selection_Hide2!V$5, 'Full set Core Client Indicator'!$A$3:$AB$3, 0))=\"\", \"\",  INDEX('Full set Core Client Indicator'!$A$3:$AB$351, MATCH(Selection_Hide2!$A35, 'Full set Core Client Indicator'!$A$3:$A$351, 0), MATCH(Selection_Hide2!V$5, 'Full set Core Client Indicator'!$A$3:$AB$3, 0))), \"\")","v":""},{"$f":"IF(V35<>\"\", IF(INDEX('Full set Core Client Indicator'!$A$3:$AB$351, MATCH(Selection_Hide2!$A35, 'Full set Core Client Indicator'!$A$3:$A$351, 0), MATCH(Selection_Hide2!W$5, 'Full set Core Client Indicator'!$A$3:$AB$3, 0))=\"\", \"\",  INDEX('Full set Core Client Indicator'!$A$3:$AB$351, MATCH(Selection_Hide2!$A35, 'Full set Core Client Indicator'!$A$3:$A$351, 0), MATCH(Selection_Hide2!W$5, 'Full set Core Client Indicator'!$A$3:$AB$3, 0))), \"\")","v":""},{"$f":"IF(W35<>\"\", IF(INDEX('Full set Core Client Indicator'!$A$3:$AB$351, MATCH(Selection_Hide2!$A35, 'Full set Core Client Indicator'!$A$3:$A$351, 0), MATCH(Selection_Hide2!X$5, 'Full set Core Client Indicator'!$A$3:$AB$3, 0))=\"\", \"\",  INDEX('Full set Core Client Indicator'!$A$3:$AB$351, MATCH(Selection_Hide2!$A35, 'Full set Core Client Indicator'!$A$3:$A$351, 0), MATCH(Selection_Hide2!X$5, 'Full set Core Client Indicator'!$A$3:$AB$3, 0))), \"\")","v":""},{"$f":"IF(X35<>\"\", IF(INDEX('Full set Core Client Indicator'!$A$3:$AB$351, MATCH(Selection_Hide2!$A35, 'Full set Core Client Indicator'!$A$3:$A$351, 0), MATCH(Selection_Hide2!Y$5, 'Full set Core Client Indicator'!$A$3:$AB$3, 0))=\"\", \"\",  INDEX('Full set Core Client Indicator'!$A$3:$AB$351, MATCH(Selection_Hide2!$A35, 'Full set Core Client Indicator'!$A$3:$A$351, 0), MATCH(Selection_Hide2!Y$5, 'Full set Core Client Indicator'!$A$3:$AB$3, 0))), \"\")","v":""},{"$f":"IF(Y35<>\"\", IF(INDEX('Full set Core Client Indicator'!$A$3:$AB$351, MATCH(Selection_Hide2!$A35, 'Full set Core Client Indicator'!$A$3:$A$351, 0), MATCH(Selection_Hide2!Z$5, 'Full set Core Client Indicator'!$A$3:$AB$3, 0))=\"\", \"\",  INDEX('Full set Core Client Indicator'!$A$3:$AB$351, MATCH(Selection_Hide2!$A35, 'Full set Core Client Indicator'!$A$3:$A$351, 0), MATCH(Selection_Hide2!Z$5, 'Full set Core Client Indicator'!$A$3:$AB$3, 0))), \"\")","v":""},{"$f":"IF(Z35<>\"\", IF(INDEX('Full set Core Client Indicator'!$A$3:$AB$351, MATCH(Selection_Hide2!$A35, 'Full set Core Client Indicator'!$A$3:$A$351, 0), MATCH(Selection_Hide2!AA$5, 'Full set Core Client Indicator'!$A$3:$AB$3, 0))=\"\", \"\",  INDEX('Full set Core Client Indicator'!$A$3:$AB$351, MATCH(Selection_Hide2!$A35, 'Full set Core Client Indicator'!$A$3:$A$351, 0), MATCH(Selection_Hide2!AA$5, 'Full set Core Client Indicator'!$A$3:$AB$3, 0))), \"\")","v":""},{"$f":"IF(AA35<>\"\", IF(INDEX('Full set Core Client Indicator'!$A$3:$AB$351, MATCH(Selection_Hide2!$A35, 'Full set Core Client Indicator'!$A$3:$A$351, 0), MATCH(Selection_Hide2!AB$5, 'Full set Core Client Indicator'!$A$3:$AB$3, 0))=\"\", \"\",  INDEX('Full set Core Client Indicator'!$A$3:$AB$351, MATCH(Selection_Hide2!$A35, 'Full set Core Client Indicator'!$A$3:$A$351, 0), MATCH(Selection_Hide2!AB$5, 'Full set Core Client Indicator'!$A$3:$AB$3, 0))), \"\")","v":""}]
[{"$f":"IF(AND(Selection_Hide1!C34<>0, Selection_Hide1!C34<>\"Grand Total\"), Selection_Hide1!C34, \"\")","v":""},{"$f":"IF(A36<>\"\", IF(INDEX('Full set Core Client Indicator'!$A$3:$AB$351, MATCH(Selection_Hide2!$A36, 'Full set Core Client Indicator'!$A$3:$A$351, 0), MATCH(Selection_Hide2!B$5, 'Full set Core Client Indicator'!$A$3:$AB$3, 0))=\"\", \"\",  INDEX('Full set Core Client Indicator'!$A$3:$AB$351, MATCH(Selection_Hide2!$A36, 'Full set Core Client Indicator'!$A$3:$A$351, 0), MATCH(Selection_Hide2!B$5, 'Full set Core Client Indicator'!$A$3:$AB$3, 0))), \"\")","v":""},{"$f":"IF(B36<>\"\", IF(INDEX('Full set Core Client Indicator'!$A$3:$AB$351, MATCH(Selection_Hide2!$A36, 'Full set Core Client Indicator'!$A$3:$A$351, 0), MATCH(Selection_Hide2!C$5, 'Full set Core Client Indicator'!$A$3:$AB$3, 0))=\"\", \"\",  INDEX('Full set Core Client Indicator'!$A$3:$AB$351, MATCH(Selection_Hide2!$A36, 'Full set Core Client Indicator'!$A$3:$A$351, 0), MATCH(Selection_Hide2!C$5, 'Full set Core Client Indicator'!$A$3:$AB$3, 0))), \"\")","v":""},{"$f":"IF(C36<>\"\", IF(INDEX('Full set Core Client Indicator'!$A$3:$AB$351, MATCH(Selection_Hide2!$A36, 'Full set Core Client Indicator'!$A$3:$A$351, 0), MATCH(Selection_Hide2!D$5, 'Full set Core Client Indicator'!$A$3:$AB$3, 0))=\"\", \"\",  INDEX('Full set Core Client Indicator'!$A$3:$AB$351, MATCH(Selection_Hide2!$A36, 'Full set Core Client Indicator'!$A$3:$A$351, 0), MATCH(Selection_Hide2!D$5, 'Full set Core Client Indicator'!$A$3:$AB$3, 0))), \"\")","v":""},{"$f":"IF(D36<>\"\", IF(INDEX('Full set Core Client Indicator'!$A$3:$AB$351, MATCH(Selection_Hide2!$A36, 'Full set Core Client Indicator'!$A$3:$A$351, 0), MATCH(Selection_Hide2!E$5, 'Full set Core Client Indicator'!$A$3:$AB$3, 0))=\"\", \"\",  INDEX('Full set Core Client Indicator'!$A$3:$AB$351, MATCH(Selection_Hide2!$A36, 'Full set Core Client Indicator'!$A$3:$A$351, 0), MATCH(Selection_Hide2!E$5, 'Full set Core Client Indicator'!$A$3:$AB$3, 0))), \"\")","v":""},{"$f":"IF(E36<>\"\", IF(INDEX('Full set Core Client Indicator'!$A$3:$AB$351, MATCH(Selection_Hide2!$A36, 'Full set Core Client Indicator'!$A$3:$A$351, 0), MATCH(Selection_Hide2!F$5, 'Full set Core Client Indicator'!$A$3:$AB$3, 0))=\"\", \"\",  INDEX('Full set Core Client Indicator'!$A$3:$AB$351, MATCH(Selection_Hide2!$A36, 'Full set Core Client Indicator'!$A$3:$A$351, 0), MATCH(Selection_Hide2!F$5, 'Full set Core Client Indicator'!$A$3:$AB$3, 0))), \"\")","v":""},{"$f":"IF(F36<>\"\", IF(INDEX('Full set Core Client Indicator'!$A$3:$AB$351, MATCH(Selection_Hide2!$A36, 'Full set Core Client Indicator'!$A$3:$A$351, 0), MATCH(Selection_Hide2!G$5, 'Full set Core Client Indicator'!$A$3:$AB$3, 0))=\"\", \"\",  INDEX('Full set Core Client Indicator'!$A$3:$AB$351, MATCH(Selection_Hide2!$A36, 'Full set Core Client Indicator'!$A$3:$A$351, 0), MATCH(Selection_Hide2!G$5, 'Full set Core Client Indicator'!$A$3:$AB$3, 0))), \"\")","v":""},{"$f":"IF(G36<>\"\", IF(INDEX('Full set Core Client Indicator'!$A$3:$AB$351, MATCH(Selection_Hide2!$A36, 'Full set Core Client Indicator'!$A$3:$A$351, 0), MATCH(Selection_Hide2!H$5, 'Full set Core Client Indicator'!$A$3:$AB$3, 0))=\"\", \"\",  INDEX('Full set Core Client Indicator'!$A$3:$AB$351, MATCH(Selection_Hide2!$A36, 'Full set Core Client Indicator'!$A$3:$A$351, 0), MATCH(Selection_Hide2!H$5, 'Full set Core Client Indicator'!$A$3:$AB$3, 0))), \"\")","v":""},{"$f":"IF(H36<>\"\", IF(INDEX('Full set Core Client Indicator'!$A$3:$AB$351, MATCH(Selection_Hide2!$A36, 'Full set Core Client Indicator'!$A$3:$A$351, 0), MATCH(Selection_Hide2!I$5, 'Full set Core Client Indicator'!$A$3:$AB$3, 0))=\"\", \"\",  INDEX('Full set Core Client Indicator'!$A$3:$AB$351, MATCH(Selection_Hide2!$A36, 'Full set Core Client Indicator'!$A$3:$A$351, 0), MATCH(Selection_Hide2!I$5, 'Full set Core Client Indicator'!$A$3:$AB$3, 0))), \"\")","v":""},{"$f":"IF(I36<>\"\", IF(INDEX('Full set Core Client Indicator'!$A$3:$AB$351, MATCH(Selection_Hide2!$A36, 'Full set Core Client Indicator'!$A$3:$A$351, 0), MATCH(Selection_Hide2!J$5, 'Full set Core Client Indicator'!$A$3:$AB$3, 0))=\"\", \"\",  INDEX('Full set Core Client Indicator'!$A$3:$AB$351, MATCH(Selection_Hide2!$A36, 'Full set Core Client Indicator'!$A$3:$A$351, 0), MATCH(Selection_Hide2!J$5, 'Full set Core Client Indicator'!$A$3:$AB$3, 0))), \"\")","v":""},{"$f":"IF(J36<>\"\", IF(INDEX('Full set Core Client Indicator'!$A$3:$AB$351, MATCH(Selection_Hide2!$A36, 'Full set Core Client Indicator'!$A$3:$A$351, 0), MATCH(Selection_Hide2!K$5, 'Full set Core Client Indicator'!$A$3:$AB$3, 0))=\"\", \"\",  INDEX('Full set Core Client Indicator'!$A$3:$AB$351, MATCH(Selection_Hide2!$A36, 'Full set Core Client Indicator'!$A$3:$A$351, 0), MATCH(Selection_Hide2!K$5, 'Full set Core Client Indicator'!$A$3:$AB$3, 0))), \"\")","v":""},{"$f":"IF(K36<>\"\", IF(INDEX('Full set Core Client Indicator'!$A$3:$AB$351, MATCH(Selection_Hide2!$A36, 'Full set Core Client Indicator'!$A$3:$A$351, 0), MATCH(Selection_Hide2!L$5, 'Full set Core Client Indicator'!$A$3:$AB$3, 0))=\"\", \"\",  INDEX('Full set Core Client Indicator'!$A$3:$AB$351, MATCH(Selection_Hide2!$A36, 'Full set Core Client Indicator'!$A$3:$A$351, 0), MATCH(Selection_Hide2!L$5, 'Full set Core Client Indicator'!$A$3:$AB$3, 0))), \"\")","v":""},{"$f":"IF(L36<>\"\", IF(INDEX('Full set Core Client Indicator'!$A$3:$AB$351, MATCH(Selection_Hide2!$A36, 'Full set Core Client Indicator'!$A$3:$A$351, 0), MATCH(Selection_Hide2!M$5, 'Full set Core Client Indicator'!$A$3:$AB$3, 0))=\"\", \"\",  INDEX('Full set Core Client Indicator'!$A$3:$AB$351, MATCH(Selection_Hide2!$A36, 'Full set Core Client Indicator'!$A$3:$A$351, 0), MATCH(Selection_Hide2!M$5, 'Full set Core Client Indicator'!$A$3:$AB$3, 0))), \"\")","v":""},{"$f":"IF(M36<>\"\", IF(INDEX('Full set Core Client Indicator'!$A$3:$AB$351, MATCH(Selection_Hide2!$A36, 'Full set Core Client Indicator'!$A$3:$A$351, 0), MATCH(Selection_Hide2!N$5, 'Full set Core Client Indicator'!$A$3:$AB$3, 0))=\"\", \"\",  INDEX('Full set Core Client Indicator'!$A$3:$AB$351, MATCH(Selection_Hide2!$A36, 'Full set Core Client Indicator'!$A$3:$A$351, 0), MATCH(Selection_Hide2!N$5, 'Full set Core Client Indicator'!$A$3:$AB$3, 0))), \"\")","v":""},{"$f":"IF(N36<>\"\", IF(INDEX('Full set Core Client Indicator'!$A$3:$AB$351, MATCH(Selection_Hide2!$A36, 'Full set Core Client Indicator'!$A$3:$A$351, 0), MATCH(Selection_Hide2!O$5, 'Full set Core Client Indicator'!$A$3:$AB$3, 0))=\"\", \"\",  INDEX('Full set Core Client Indicator'!$A$3:$AB$351, MATCH(Selection_Hide2!$A36, 'Full set Core Client Indicator'!$A$3:$A$351, 0), MATCH(Selection_Hide2!O$5, 'Full set Core Client Indicator'!$A$3:$AB$3, 0))), \"\")","v":""},{"$f":"IF(O36<>\"\", IF(INDEX('Full set Core Client Indicator'!$A$3:$AB$351, MATCH(Selection_Hide2!$A36, 'Full set Core Client Indicator'!$A$3:$A$351, 0), MATCH(Selection_Hide2!P$5, 'Full set Core Client Indicator'!$A$3:$AB$3, 0))=\"\", \"\",  INDEX('Full set Core Client Indicator'!$A$3:$AB$351, MATCH(Selection_Hide2!$A36, 'Full set Core Client Indicator'!$A$3:$A$351, 0), MATCH(Selection_Hide2!P$5, 'Full set Core Client Indicator'!$A$3:$AB$3, 0))), \"\")","v":""},{"$f":"IF(P36<>\"\", IF(INDEX('Full set Core Client Indicator'!$A$3:$AB$351, MATCH(Selection_Hide2!$A36, 'Full set Core Client Indicator'!$A$3:$A$351, 0), MATCH(Selection_Hide2!Q$5, 'Full set Core Client Indicator'!$A$3:$AB$3, 0))=\"\", \"\",  INDEX('Full set Core Client Indicator'!$A$3:$AB$351, MATCH(Selection_Hide2!$A36, 'Full set Core Client Indicator'!$A$3:$A$351, 0), MATCH(Selection_Hide2!Q$5, 'Full set Core Client Indicator'!$A$3:$AB$3, 0))), \"\")","v":""},{"$f":"IF(Q36<>\"\", IF(INDEX('Full set Core Client Indicator'!$A$3:$AB$351, MATCH(Selection_Hide2!$A36, 'Full set Core Client Indicator'!$A$3:$A$351, 0), MATCH(Selection_Hide2!R$5, 'Full set Core Client Indicator'!$A$3:$AB$3, 0))=\"\", \"\",  INDEX('Full set Core Client Indicator'!$A$3:$AB$351, MATCH(Selection_Hide2!$A36, 'Full set Core Client Indicator'!$A$3:$A$351, 0), MATCH(Selection_Hide2!R$5, 'Full set Core Client Indicator'!$A$3:$AB$3, 0))), \"\")","v":""},{"$f":"IF(R36<>\"\", IF(INDEX('Full set Core Client Indicator'!$A$3:$AB$351, MATCH(Selection_Hide2!$A36, 'Full set Core Client Indicator'!$A$3:$A$351, 0), MATCH(Selection_Hide2!S$5, 'Full set Core Client Indicator'!$A$3:$AB$3, 0))=\"\", \"\",  INDEX('Full set Core Client Indicator'!$A$3:$AB$351, MATCH(Selection_Hide2!$A36, 'Full set Core Client Indicator'!$A$3:$A$351, 0), MATCH(Selection_Hide2!S$5, 'Full set Core Client Indicator'!$A$3:$AB$3, 0))), \"\")","v":""},{"$f":"IF(S36<>\"\", IF(INDEX('Full set Core Client Indicator'!$A$3:$AB$351, MATCH(Selection_Hide2!$A36, 'Full set Core Client Indicator'!$A$3:$A$351, 0), MATCH(Selection_Hide2!T$5, 'Full set Core Client Indicator'!$A$3:$AB$3, 0))=\"\", \"\",  INDEX('Full set Core Client Indicator'!$A$3:$AB$351, MATCH(Selection_Hide2!$A36, 'Full set Core Client Indicator'!$A$3:$A$351, 0), MATCH(Selection_Hide2!T$5, 'Full set Core Client Indicator'!$A$3:$AB$3, 0))), \"\")","v":""},{"$f":"IF(T36<>\"\", IF(INDEX('Full set Core Client Indicator'!$A$3:$AB$351, MATCH(Selection_Hide2!$A36, 'Full set Core Client Indicator'!$A$3:$A$351, 0), MATCH(Selection_Hide2!U$5, 'Full set Core Client Indicator'!$A$3:$AB$3, 0))=\"\", \"\",  INDEX('Full set Core Client Indicator'!$A$3:$AB$351, MATCH(Selection_Hide2!$A36, 'Full set Core Client Indicator'!$A$3:$A$351, 0), MATCH(Selection_Hide2!U$5, 'Full set Core Client Indicator'!$A$3:$AB$3, 0))), \"\")","v":""},{"$f":"IF(U36<>\"\", IF(INDEX('Full set Core Client Indicator'!$A$3:$AB$351, MATCH(Selection_Hide2!$A36, 'Full set Core Client Indicator'!$A$3:$A$351, 0), MATCH(Selection_Hide2!V$5, 'Full set Core Client Indicator'!$A$3:$AB$3, 0))=\"\", \"\",  INDEX('Full set Core Client Indicator'!$A$3:$AB$351, MATCH(Selection_Hide2!$A36, 'Full set Core Client Indicator'!$A$3:$A$351, 0), MATCH(Selection_Hide2!V$5, 'Full set Core Client Indicator'!$A$3:$AB$3, 0))), \"\")","v":""},{"$f":"IF(V36<>\"\", IF(INDEX('Full set Core Client Indicator'!$A$3:$AB$351, MATCH(Selection_Hide2!$A36, 'Full set Core Client Indicator'!$A$3:$A$351, 0), MATCH(Selection_Hide2!W$5, 'Full set Core Client Indicator'!$A$3:$AB$3, 0))=\"\", \"\",  INDEX('Full set Core Client Indicator'!$A$3:$AB$351, MATCH(Selection_Hide2!$A36, 'Full set Core Client Indicator'!$A$3:$A$351, 0), MATCH(Selection_Hide2!W$5, 'Full set Core Client Indicator'!$A$3:$AB$3, 0))), \"\")","v":""},{"$f":"IF(W36<>\"\", IF(INDEX('Full set Core Client Indicator'!$A$3:$AB$351, MATCH(Selection_Hide2!$A36, 'Full set Core Client Indicator'!$A$3:$A$351, 0), MATCH(Selection_Hide2!X$5, 'Full set Core Client Indicator'!$A$3:$AB$3, 0))=\"\", \"\",  INDEX('Full set Core Client Indicator'!$A$3:$AB$351, MATCH(Selection_Hide2!$A36, 'Full set Core Client Indicator'!$A$3:$A$351, 0), MATCH(Selection_Hide2!X$5, 'Full set Core Client Indicator'!$A$3:$AB$3, 0))), \"\")","v":""},{"$f":"IF(X36<>\"\", IF(INDEX('Full set Core Client Indicator'!$A$3:$AB$351, MATCH(Selection_Hide2!$A36, 'Full set Core Client Indicator'!$A$3:$A$351, 0), MATCH(Selection_Hide2!Y$5, 'Full set Core Client Indicator'!$A$3:$AB$3, 0))=\"\", \"\",  INDEX('Full set Core Client Indicator'!$A$3:$AB$351, MATCH(Selection_Hide2!$A36, 'Full set Core Client Indicator'!$A$3:$A$351, 0), MATCH(Selection_Hide2!Y$5, 'Full set Core Client Indicator'!$A$3:$AB$3, 0))), \"\")","v":""},{"$f":"IF(Y36<>\"\", IF(INDEX('Full set Core Client Indicator'!$A$3:$AB$351, MATCH(Selection_Hide2!$A36, 'Full set Core Client Indicator'!$A$3:$A$351, 0), MATCH(Selection_Hide2!Z$5, 'Full set Core Client Indicator'!$A$3:$AB$3, 0))=\"\", \"\",  INDEX('Full set Core Client Indicator'!$A$3:$AB$351, MATCH(Selection_Hide2!$A36, 'Full set Core Client Indicator'!$A$3:$A$351, 0), MATCH(Selection_Hide2!Z$5, 'Full set Core Client Indicator'!$A$3:$AB$3, 0))), \"\")","v":""},{"$f":"IF(Z36<>\"\", IF(INDEX('Full set Core Client Indicator'!$A$3:$AB$351, MATCH(Selection_Hide2!$A36, 'Full set Core Client Indicator'!$A$3:$A$351, 0), MATCH(Selection_Hide2!AA$5, 'Full set Core Client Indicator'!$A$3:$AB$3, 0))=\"\", \"\",  INDEX('Full set Core Client Indicator'!$A$3:$AB$351, MATCH(Selection_Hide2!$A36, 'Full set Core Client Indicator'!$A$3:$A$351, 0), MATCH(Selection_Hide2!AA$5, 'Full set Core Client Indicator'!$A$3:$AB$3, 0))), \"\")","v":""},{"$f":"IF(AA36<>\"\", IF(INDEX('Full set Core Client Indicator'!$A$3:$AB$351, MATCH(Selection_Hide2!$A36, 'Full set Core Client Indicator'!$A$3:$A$351, 0), MATCH(Selection_Hide2!AB$5, 'Full set Core Client Indicator'!$A$3:$AB$3, 0))=\"\", \"\",  INDEX('Full set Core Client Indicator'!$A$3:$AB$351, MATCH(Selection_Hide2!$A36, 'Full set Core Client Indicator'!$A$3:$A$351, 0), MATCH(Selection_Hide2!AB$5, 'Full set Core Client Indicator'!$A$3:$AB$3, 0))), \"\")","v":""}]
[{"$f":"IF(AND(Selection_Hide1!C35<>0, Selection_Hide1!C35<>\"Grand Total\"), Selection_Hide1!C35, \"\")","v":""},{"$f":"IF(A37<>\"\", IF(INDEX('Full set Core Client Indicator'!$A$3:$AB$351, MATCH(Selection_Hide2!$A37, 'Full set Core Client Indicator'!$A$3:$A$351, 0), MATCH(Selection_Hide2!B$5, 'Full set Core Client Indicator'!$A$3:$AB$3, 0))=\"\", \"\",  INDEX('Full set Core Client Indicator'!$A$3:$AB$351, MATCH(Selection_Hide2!$A37, 'Full set Core Client Indicator'!$A$3:$A$351, 0), MATCH(Selection_Hide2!B$5, 'Full set Core Client Indicator'!$A$3:$AB$3, 0))), \"\")","v":""},{"$f":"IF(B37<>\"\", IF(INDEX('Full set Core Client Indicator'!$A$3:$AB$351, MATCH(Selection_Hide2!$A37, 'Full set Core Client Indicator'!$A$3:$A$351, 0), MATCH(Selection_Hide2!C$5, 'Full set Core Client Indicator'!$A$3:$AB$3, 0))=\"\", \"\",  INDEX('Full set Core Client Indicator'!$A$3:$AB$351, MATCH(Selection_Hide2!$A37, 'Full set Core Client Indicator'!$A$3:$A$351, 0), MATCH(Selection_Hide2!C$5, 'Full set Core Client Indicator'!$A$3:$AB$3, 0))), \"\")","v":""},{"$f":"IF(C37<>\"\", IF(INDEX('Full set Core Client Indicator'!$A$3:$AB$351, MATCH(Selection_Hide2!$A37, 'Full set Core Client Indicator'!$A$3:$A$351, 0), MATCH(Selection_Hide2!D$5, 'Full set Core Client Indicator'!$A$3:$AB$3, 0))=\"\", \"\",  INDEX('Full set Core Client Indicator'!$A$3:$AB$351, MATCH(Selection_Hide2!$A37, 'Full set Core Client Indicator'!$A$3:$A$351, 0), MATCH(Selection_Hide2!D$5, 'Full set Core Client Indicator'!$A$3:$AB$3, 0))), \"\")","v":""},{"$f":"IF(D37<>\"\", IF(INDEX('Full set Core Client Indicator'!$A$3:$AB$351, MATCH(Selection_Hide2!$A37, 'Full set Core Client Indicator'!$A$3:$A$351, 0), MATCH(Selection_Hide2!E$5, 'Full set Core Client Indicator'!$A$3:$AB$3, 0))=\"\", \"\",  INDEX('Full set Core Client Indicator'!$A$3:$AB$351, MATCH(Selection_Hide2!$A37, 'Full set Core Client Indicator'!$A$3:$A$351, 0), MATCH(Selection_Hide2!E$5, 'Full set Core Client Indicator'!$A$3:$AB$3, 0))), \"\")","v":""},{"$f":"IF(E37<>\"\", IF(INDEX('Full set Core Client Indicator'!$A$3:$AB$351, MATCH(Selection_Hide2!$A37, 'Full set Core Client Indicator'!$A$3:$A$351, 0), MATCH(Selection_Hide2!F$5, 'Full set Core Client Indicator'!$A$3:$AB$3, 0))=\"\", \"\",  INDEX('Full set Core Client Indicator'!$A$3:$AB$351, MATCH(Selection_Hide2!$A37, 'Full set Core Client Indicator'!$A$3:$A$351, 0), MATCH(Selection_Hide2!F$5, 'Full set Core Client Indicator'!$A$3:$AB$3, 0))), \"\")","v":""},{"$f":"IF(F37<>\"\", IF(INDEX('Full set Core Client Indicator'!$A$3:$AB$351, MATCH(Selection_Hide2!$A37, 'Full set Core Client Indicator'!$A$3:$A$351, 0), MATCH(Selection_Hide2!G$5, 'Full set Core Client Indicator'!$A$3:$AB$3, 0))=\"\", \"\",  INDEX('Full set Core Client Indicator'!$A$3:$AB$351, MATCH(Selection_Hide2!$A37, 'Full set Core Client Indicator'!$A$3:$A$351, 0), MATCH(Selection_Hide2!G$5, 'Full set Core Client Indicator'!$A$3:$AB$3, 0))), \"\")","v":""},{"$f":"IF(G37<>\"\", IF(INDEX('Full set Core Client Indicator'!$A$3:$AB$351, MATCH(Selection_Hide2!$A37, 'Full set Core Client Indicator'!$A$3:$A$351, 0), MATCH(Selection_Hide2!H$5, 'Full set Core Client Indicator'!$A$3:$AB$3, 0))=\"\", \"\",  INDEX('Full set Core Client Indicator'!$A$3:$AB$351, MATCH(Selection_Hide2!$A37, 'Full set Core Client Indicator'!$A$3:$A$351, 0), MATCH(Selection_Hide2!H$5, 'Full set Core Client Indicator'!$A$3:$AB$3, 0))), \"\")","v":""},{"$f":"IF(H37<>\"\", IF(INDEX('Full set Core Client Indicator'!$A$3:$AB$351, MATCH(Selection_Hide2!$A37, 'Full set Core Client Indicator'!$A$3:$A$351, 0), MATCH(Selection_Hide2!I$5, 'Full set Core Client Indicator'!$A$3:$AB$3, 0))=\"\", \"\",  INDEX('Full set Core Client Indicator'!$A$3:$AB$351, MATCH(Selection_Hide2!$A37, 'Full set Core Client Indicator'!$A$3:$A$351, 0), MATCH(Selection_Hide2!I$5, 'Full set Core Client Indicator'!$A$3:$AB$3, 0))), \"\")","v":""},{"$f":"IF(I37<>\"\", IF(INDEX('Full set Core Client Indicator'!$A$3:$AB$351, MATCH(Selection_Hide2!$A37, 'Full set Core Client Indicator'!$A$3:$A$351, 0), MATCH(Selection_Hide2!J$5, 'Full set Core Client Indicator'!$A$3:$AB$3, 0))=\"\", \"\",  INDEX('Full set Core Client Indicator'!$A$3:$AB$351, MATCH(Selection_Hide2!$A37, 'Full set Core Client Indicator'!$A$3:$A$351, 0), MATCH(Selection_Hide2!J$5, 'Full set Core Client Indicator'!$A$3:$AB$3, 0))), \"\")","v":""},{"$f":"IF(J37<>\"\", IF(INDEX('Full set Core Client Indicator'!$A$3:$AB$351, MATCH(Selection_Hide2!$A37, 'Full set Core Client Indicator'!$A$3:$A$351, 0), MATCH(Selection_Hide2!K$5, 'Full set Core Client Indicator'!$A$3:$AB$3, 0))=\"\", \"\",  INDEX('Full set Core Client Indicator'!$A$3:$AB$351, MATCH(Selection_Hide2!$A37, 'Full set Core Client Indicator'!$A$3:$A$351, 0), MATCH(Selection_Hide2!K$5, 'Full set Core Client Indicator'!$A$3:$AB$3, 0))), \"\")","v":""},{"$f":"IF(K37<>\"\", IF(INDEX('Full set Core Client Indicator'!$A$3:$AB$351, MATCH(Selection_Hide2!$A37, 'Full set Core Client Indicator'!$A$3:$A$351, 0), MATCH(Selection_Hide2!L$5, 'Full set Core Client Indicator'!$A$3:$AB$3, 0))=\"\", \"\",  INDEX('Full set Core Client Indicator'!$A$3:$AB$351, MATCH(Selection_Hide2!$A37, 'Full set Core Client Indicator'!$A$3:$A$351, 0), MATCH(Selection_Hide2!L$5, 'Full set Core Client Indicator'!$A$3:$AB$3, 0))), \"\")","v":""},{"$f":"IF(L37<>\"\", IF(INDEX('Full set Core Client Indicator'!$A$3:$AB$351, MATCH(Selection_Hide2!$A37, 'Full set Core Client Indicator'!$A$3:$A$351, 0), MATCH(Selection_Hide2!M$5, 'Full set Core Client Indicator'!$A$3:$AB$3, 0))=\"\", \"\",  INDEX('Full set Core Client Indicator'!$A$3:$AB$351, MATCH(Selection_Hide2!$A37, 'Full set Core Client Indicator'!$A$3:$A$351, 0), MATCH(Selection_Hide2!M$5, 'Full set Core Client Indicator'!$A$3:$AB$3, 0))), \"\")","v":""},{"$f":"IF(M37<>\"\", IF(INDEX('Full set Core Client Indicator'!$A$3:$AB$351, MATCH(Selection_Hide2!$A37, 'Full set Core Client Indicator'!$A$3:$A$351, 0), MATCH(Selection_Hide2!N$5, 'Full set Core Client Indicator'!$A$3:$AB$3, 0))=\"\", \"\",  INDEX('Full set Core Client Indicator'!$A$3:$AB$351, MATCH(Selection_Hide2!$A37, 'Full set Core Client Indicator'!$A$3:$A$351, 0), MATCH(Selection_Hide2!N$5, 'Full set Core Client Indicator'!$A$3:$AB$3, 0))), \"\")","v":""},{"$f":"IF(N37<>\"\", IF(INDEX('Full set Core Client Indicator'!$A$3:$AB$351, MATCH(Selection_Hide2!$A37, 'Full set Core Client Indicator'!$A$3:$A$351, 0), MATCH(Selection_Hide2!O$5, 'Full set Core Client Indicator'!$A$3:$AB$3, 0))=\"\", \"\",  INDEX('Full set Core Client Indicator'!$A$3:$AB$351, MATCH(Selection_Hide2!$A37, 'Full set Core Client Indicator'!$A$3:$A$351, 0), MATCH(Selection_Hide2!O$5, 'Full set Core Client Indicator'!$A$3:$AB$3, 0))), \"\")","v":""},{"$f":"IF(O37<>\"\", IF(INDEX('Full set Core Client Indicator'!$A$3:$AB$351, MATCH(Selection_Hide2!$A37, 'Full set Core Client Indicator'!$A$3:$A$351, 0), MATCH(Selection_Hide2!P$5, 'Full set Core Client Indicator'!$A$3:$AB$3, 0))=\"\", \"\",  INDEX('Full set Core Client Indicator'!$A$3:$AB$351, MATCH(Selection_Hide2!$A37, 'Full set Core Client Indicator'!$A$3:$A$351, 0), MATCH(Selection_Hide2!P$5, 'Full set Core Client Indicator'!$A$3:$AB$3, 0))), \"\")","v":""},{"$f":"IF(P37<>\"\", IF(INDEX('Full set Core Client Indicator'!$A$3:$AB$351, MATCH(Selection_Hide2!$A37, 'Full set Core Client Indicator'!$A$3:$A$351, 0), MATCH(Selection_Hide2!Q$5, 'Full set Core Client Indicator'!$A$3:$AB$3, 0))=\"\", \"\",  INDEX('Full set Core Client Indicator'!$A$3:$AB$351, MATCH(Selection_Hide2!$A37, 'Full set Core Client Indicator'!$A$3:$A$351, 0), MATCH(Selection_Hide2!Q$5, 'Full set Core Client Indicator'!$A$3:$AB$3, 0))), \"\")","v":""},{"$f":"IF(Q37<>\"\", IF(INDEX('Full set Core Client Indicator'!$A$3:$AB$351, MATCH(Selection_Hide2!$A37, 'Full set Core Client Indicator'!$A$3:$A$351, 0), MATCH(Selection_Hide2!R$5, 'Full set Core Client Indicator'!$A$3:$AB$3, 0))=\"\", \"\",  INDEX('Full set Core Client Indicator'!$A$3:$AB$351, MATCH(Selection_Hide2!$A37, 'Full set Core Client Indicator'!$A$3:$A$351, 0), MATCH(Selection_Hide2!R$5, 'Full set Core Client Indicator'!$A$3:$AB$3, 0))), \"\")","v":""},{"$f":"IF(R37<>\"\", IF(INDEX('Full set Core Client Indicator'!$A$3:$AB$351, MATCH(Selection_Hide2!$A37, 'Full set Core Client Indicator'!$A$3:$A$351, 0), MATCH(Selection_Hide2!S$5, 'Full set Core Client Indicator'!$A$3:$AB$3, 0))=\"\", \"\",  INDEX('Full set Core Client Indicator'!$A$3:$AB$351, MATCH(Selection_Hide2!$A37, 'Full set Core Client Indicator'!$A$3:$A$351, 0), MATCH(Selection_Hide2!S$5, 'Full set Core Client Indicator'!$A$3:$AB$3, 0))), \"\")","v":""},{"$f":"IF(S37<>\"\", IF(INDEX('Full set Core Client Indicator'!$A$3:$AB$351, MATCH(Selection_Hide2!$A37, 'Full set Core Client Indicator'!$A$3:$A$351, 0), MATCH(Selection_Hide2!T$5, 'Full set Core Client Indicator'!$A$3:$AB$3, 0))=\"\", \"\",  INDEX('Full set Core Client Indicator'!$A$3:$AB$351, MATCH(Selection_Hide2!$A37, 'Full set Core Client Indicator'!$A$3:$A$351, 0), MATCH(Selection_Hide2!T$5, 'Full set Core Client Indicator'!$A$3:$AB$3, 0))), \"\")","v":""},{"$f":"IF(T37<>\"\", IF(INDEX('Full set Core Client Indicator'!$A$3:$AB$351, MATCH(Selection_Hide2!$A37, 'Full set Core Client Indicator'!$A$3:$A$351, 0), MATCH(Selection_Hide2!U$5, 'Full set Core Client Indicator'!$A$3:$AB$3, 0))=\"\", \"\",  INDEX('Full set Core Client Indicator'!$A$3:$AB$351, MATCH(Selection_Hide2!$A37, 'Full set Core Client Indicator'!$A$3:$A$351, 0), MATCH(Selection_Hide2!U$5, 'Full set Core Client Indicator'!$A$3:$AB$3, 0))), \"\")","v":""},{"$f":"IF(U37<>\"\", IF(INDEX('Full set Core Client Indicator'!$A$3:$AB$351, MATCH(Selection_Hide2!$A37, 'Full set Core Client Indicator'!$A$3:$A$351, 0), MATCH(Selection_Hide2!V$5, 'Full set Core Client Indicator'!$A$3:$AB$3, 0))=\"\", \"\",  INDEX('Full set Core Client Indicator'!$A$3:$AB$351, MATCH(Selection_Hide2!$A37, 'Full set Core Client Indicator'!$A$3:$A$351, 0), MATCH(Selection_Hide2!V$5, 'Full set Core Client Indicator'!$A$3:$AB$3, 0))), \"\")","v":""},{"$f":"IF(V37<>\"\", IF(INDEX('Full set Core Client Indicator'!$A$3:$AB$351, MATCH(Selection_Hide2!$A37, 'Full set Core Client Indicator'!$A$3:$A$351, 0), MATCH(Selection_Hide2!W$5, 'Full set Core Client Indicator'!$A$3:$AB$3, 0))=\"\", \"\",  INDEX('Full set Core Client Indicator'!$A$3:$AB$351, MATCH(Selection_Hide2!$A37, 'Full set Core Client Indicator'!$A$3:$A$351, 0), MATCH(Selection_Hide2!W$5, 'Full set Core Client Indicator'!$A$3:$AB$3, 0))), \"\")","v":""},{"$f":"IF(W37<>\"\", IF(INDEX('Full set Core Client Indicator'!$A$3:$AB$351, MATCH(Selection_Hide2!$A37, 'Full set Core Client Indicator'!$A$3:$A$351, 0), MATCH(Selection_Hide2!X$5, 'Full set Core Client Indicator'!$A$3:$AB$3, 0))=\"\", \"\",  INDEX('Full set Core Client Indicator'!$A$3:$AB$351, MATCH(Selection_Hide2!$A37, 'Full set Core Client Indicator'!$A$3:$A$351, 0), MATCH(Selection_Hide2!X$5, 'Full set Core Client Indicator'!$A$3:$AB$3, 0))), \"\")","v":""},{"$f":"IF(X37<>\"\", IF(INDEX('Full set Core Client Indicator'!$A$3:$AB$351, MATCH(Selection_Hide2!$A37, 'Full set Core Client Indicator'!$A$3:$A$351, 0), MATCH(Selection_Hide2!Y$5, 'Full set Core Client Indicator'!$A$3:$AB$3, 0))=\"\", \"\",  INDEX('Full set Core Client Indicator'!$A$3:$AB$351, MATCH(Selection_Hide2!$A37, 'Full set Core Client Indicator'!$A$3:$A$351, 0), MATCH(Selection_Hide2!Y$5, 'Full set Core Client Indicator'!$A$3:$AB$3, 0))), \"\")","v":""},{"$f":"IF(Y37<>\"\", IF(INDEX('Full set Core Client Indicator'!$A$3:$AB$351, MATCH(Selection_Hide2!$A37, 'Full set Core Client Indicator'!$A$3:$A$351, 0), MATCH(Selection_Hide2!Z$5, 'Full set Core Client Indicator'!$A$3:$AB$3, 0))=\"\", \"\",  INDEX('Full set Core Client Indicator'!$A$3:$AB$351, MATCH(Selection_Hide2!$A37, 'Full set Core Client Indicator'!$A$3:$A$351, 0), MATCH(Selection_Hide2!Z$5, 'Full set Core Client Indicator'!$A$3:$AB$3, 0))), \"\")","v":""},{"$f":"IF(Z37<>\"\", IF(INDEX('Full set Core Client Indicator'!$A$3:$AB$351, MATCH(Selection_Hide2!$A37, 'Full set Core Client Indicator'!$A$3:$A$351, 0), MATCH(Selection_Hide2!AA$5, 'Full set Core Client Indicator'!$A$3:$AB$3, 0))=\"\", \"\",  INDEX('Full set Core Client Indicator'!$A$3:$AB$351, MATCH(Selection_Hide2!$A37, 'Full set Core Client Indicator'!$A$3:$A$351, 0), MATCH(Selection_Hide2!AA$5, 'Full set Core Client Indicator'!$A$3:$AB$3, 0))), \"\")","v":""},{"$f":"IF(AA37<>\"\", IF(INDEX('Full set Core Client Indicator'!$A$3:$AB$351, MATCH(Selection_Hide2!$A37, 'Full set Core Client Indicator'!$A$3:$A$351, 0), MATCH(Selection_Hide2!AB$5, 'Full set Core Client Indicator'!$A$3:$AB$3, 0))=\"\", \"\",  INDEX('Full set Core Client Indicator'!$A$3:$AB$351, MATCH(Selection_Hide2!$A37, 'Full set Core Client Indicator'!$A$3:$A$351, 0), MATCH(Selection_Hide2!AB$5, 'Full set Core Client Indicator'!$A$3:$AB$3, 0))), \"\")","v":""}]
[{"$f":"IF(AND(Selection_Hide1!C36<>0, Selection_Hide1!C36<>\"Grand Total\"), Selection_Hide1!C36, \"\")","v":""},{"$f":"IF(A38<>\"\", IF(INDEX('Full set Core Client Indicator'!$A$3:$AB$351, MATCH(Selection_Hide2!$A38, 'Full set Core Client Indicator'!$A$3:$A$351, 0), MATCH(Selection_Hide2!B$5, 'Full set Core Client Indicator'!$A$3:$AB$3, 0))=\"\", \"\",  INDEX('Full set Core Client Indicator'!$A$3:$AB$351, MATCH(Selection_Hide2!$A38, 'Full set Core Client Indicator'!$A$3:$A$351, 0), MATCH(Selection_Hide2!B$5, 'Full set Core Client Indicator'!$A$3:$AB$3, 0))), \"\")","v":""},{"$f":"IF(B38<>\"\", IF(INDEX('Full set Core Client Indicator'!$A$3:$AB$351, MATCH(Selection_Hide2!$A38, 'Full set Core Client Indicator'!$A$3:$A$351, 0), MATCH(Selection_Hide2!C$5, 'Full set Core Client Indicator'!$A$3:$AB$3, 0))=\"\", \"\",  INDEX('Full set Core Client Indicator'!$A$3:$AB$351, MATCH(Selection_Hide2!$A38, 'Full set Core Client Indicator'!$A$3:$A$351, 0), MATCH(Selection_Hide2!C$5, 'Full set Core Client Indicator'!$A$3:$AB$3, 0))), \"\")","v":""},{"$f":"IF(C38<>\"\", IF(INDEX('Full set Core Client Indicator'!$A$3:$AB$351, MATCH(Selection_Hide2!$A38, 'Full set Core Client Indicator'!$A$3:$A$351, 0), MATCH(Selection_Hide2!D$5, 'Full set Core Client Indicator'!$A$3:$AB$3, 0))=\"\", \"\",  INDEX('Full set Core Client Indicator'!$A$3:$AB$351, MATCH(Selection_Hide2!$A38, 'Full set Core Client Indicator'!$A$3:$A$351, 0), MATCH(Selection_Hide2!D$5, 'Full set Core Client Indicator'!$A$3:$AB$3, 0))), \"\")","v":""},{"$f":"IF(D38<>\"\", IF(INDEX('Full set Core Client Indicator'!$A$3:$AB$351, MATCH(Selection_Hide2!$A38, 'Full set Core Client Indicator'!$A$3:$A$351, 0), MATCH(Selection_Hide2!E$5, 'Full set Core Client Indicator'!$A$3:$AB$3, 0))=\"\", \"\",  INDEX('Full set Core Client Indicator'!$A$3:$AB$351, MATCH(Selection_Hide2!$A38, 'Full set Core Client Indicator'!$A$3:$A$351, 0), MATCH(Selection_Hide2!E$5, 'Full set Core Client Indicator'!$A$3:$AB$3, 0))), \"\")","v":""},{"$f":"IF(E38<>\"\", IF(INDEX('Full set Core Client Indicator'!$A$3:$AB$351, MATCH(Selection_Hide2!$A38, 'Full set Core Client Indicator'!$A$3:$A$351, 0), MATCH(Selection_Hide2!F$5, 'Full set Core Client Indicator'!$A$3:$AB$3, 0))=\"\", \"\",  INDEX('Full set Core Client Indicator'!$A$3:$AB$351, MATCH(Selection_Hide2!$A38, 'Full set Core Client Indicator'!$A$3:$A$351, 0), MATCH(Selection_Hide2!F$5, 'Full set Core Client Indicator'!$A$3:$AB$3, 0))), \"\")","v":""},{"$f":"IF(F38<>\"\", IF(INDEX('Full set Core Client Indicator'!$A$3:$AB$351, MATCH(Selection_Hide2!$A38, 'Full set Core Client Indicator'!$A$3:$A$351, 0), MATCH(Selection_Hide2!G$5, 'Full set Core Client Indicator'!$A$3:$AB$3, 0))=\"\", \"\",  INDEX('Full set Core Client Indicator'!$A$3:$AB$351, MATCH(Selection_Hide2!$A38, 'Full set Core Client Indicator'!$A$3:$A$351, 0), MATCH(Selection_Hide2!G$5, 'Full set Core Client Indicator'!$A$3:$AB$3, 0))), \"\")","v":""},{"$f":"IF(G38<>\"\", IF(INDEX('Full set Core Client Indicator'!$A$3:$AB$351, MATCH(Selection_Hide2!$A38, 'Full set Core Client Indicator'!$A$3:$A$351, 0), MATCH(Selection_Hide2!H$5, 'Full set Core Client Indicator'!$A$3:$AB$3, 0))=\"\", \"\",  INDEX('Full set Core Client Indicator'!$A$3:$AB$351, MATCH(Selection_Hide2!$A38, 'Full set Core Client Indicator'!$A$3:$A$351, 0), MATCH(Selection_Hide2!H$5, 'Full set Core Client Indicator'!$A$3:$AB$3, 0))), \"\")","v":""},{"$f":"IF(H38<>\"\", IF(INDEX('Full set Core Client Indicator'!$A$3:$AB$351, MATCH(Selection_Hide2!$A38, 'Full set Core Client Indicator'!$A$3:$A$351, 0), MATCH(Selection_Hide2!I$5, 'Full set Core Client Indicator'!$A$3:$AB$3, 0))=\"\", \"\",  INDEX('Full set Core Client Indicator'!$A$3:$AB$351, MATCH(Selection_Hide2!$A38, 'Full set Core Client Indicator'!$A$3:$A$351, 0), MATCH(Selection_Hide2!I$5, 'Full set Core Client Indicator'!$A$3:$AB$3, 0))), \"\")","v":""},{"$f":"IF(I38<>\"\", IF(INDEX('Full set Core Client Indicator'!$A$3:$AB$351, MATCH(Selection_Hide2!$A38, 'Full set Core Client Indicator'!$A$3:$A$351, 0), MATCH(Selection_Hide2!J$5, 'Full set Core Client Indicator'!$A$3:$AB$3, 0))=\"\", \"\",  INDEX('Full set Core Client Indicator'!$A$3:$AB$351, MATCH(Selection_Hide2!$A38, 'Full set Core Client Indicator'!$A$3:$A$351, 0), MATCH(Selection_Hide2!J$5, 'Full set Core Client Indicator'!$A$3:$AB$3, 0))), \"\")","v":""},{"$f":"IF(J38<>\"\", IF(INDEX('Full set Core Client Indicator'!$A$3:$AB$351, MATCH(Selection_Hide2!$A38, 'Full set Core Client Indicator'!$A$3:$A$351, 0), MATCH(Selection_Hide2!K$5, 'Full set Core Client Indicator'!$A$3:$AB$3, 0))=\"\", \"\",  INDEX('Full set Core Client Indicator'!$A$3:$AB$351, MATCH(Selection_Hide2!$A38, 'Full set Core Client Indicator'!$A$3:$A$351, 0), MATCH(Selection_Hide2!K$5, 'Full set Core Client Indicator'!$A$3:$AB$3, 0))), \"\")","v":""},{"$f":"IF(K38<>\"\", IF(INDEX('Full set Core Client Indicator'!$A$3:$AB$351, MATCH(Selection_Hide2!$A38, 'Full set Core Client Indicator'!$A$3:$A$351, 0), MATCH(Selection_Hide2!L$5, 'Full set Core Client Indicator'!$A$3:$AB$3, 0))=\"\", \"\",  INDEX('Full set Core Client Indicator'!$A$3:$AB$351, MATCH(Selection_Hide2!$A38, 'Full set Core Client Indicator'!$A$3:$A$351, 0), MATCH(Selection_Hide2!L$5, 'Full set Core Client Indicator'!$A$3:$AB$3, 0))), \"\")","v":""},{"$f":"IF(L38<>\"\", IF(INDEX('Full set Core Client Indicator'!$A$3:$AB$351, MATCH(Selection_Hide2!$A38, 'Full set Core Client Indicator'!$A$3:$A$351, 0), MATCH(Selection_Hide2!M$5, 'Full set Core Client Indicator'!$A$3:$AB$3, 0))=\"\", \"\",  INDEX('Full set Core Client Indicator'!$A$3:$AB$351, MATCH(Selection_Hide2!$A38, 'Full set Core Client Indicator'!$A$3:$A$351, 0), MATCH(Selection_Hide2!M$5, 'Full set Core Client Indicator'!$A$3:$AB$3, 0))), \"\")","v":""},{"$f":"IF(M38<>\"\", IF(INDEX('Full set Core Client Indicator'!$A$3:$AB$351, MATCH(Selection_Hide2!$A38, 'Full set Core Client Indicator'!$A$3:$A$351, 0), MATCH(Selection_Hide2!N$5, 'Full set Core Client Indicator'!$A$3:$AB$3, 0))=\"\", \"\",  INDEX('Full set Core Client Indicator'!$A$3:$AB$351, MATCH(Selection_Hide2!$A38, 'Full set Core Client Indicator'!$A$3:$A$351, 0), MATCH(Selection_Hide2!N$5, 'Full set Core Client Indicator'!$A$3:$AB$3, 0))), \"\")","v":""},{"$f":"IF(N38<>\"\", IF(INDEX('Full set Core Client Indicator'!$A$3:$AB$351, MATCH(Selection_Hide2!$A38, 'Full set Core Client Indicator'!$A$3:$A$351, 0), MATCH(Selection_Hide2!O$5, 'Full set Core Client Indicator'!$A$3:$AB$3, 0))=\"\", \"\",  INDEX('Full set Core Client Indicator'!$A$3:$AB$351, MATCH(Selection_Hide2!$A38, 'Full set Core Client Indicator'!$A$3:$A$351, 0), MATCH(Selection_Hide2!O$5, 'Full set Core Client Indicator'!$A$3:$AB$3, 0))), \"\")","v":""},{"$f":"IF(O38<>\"\", IF(INDEX('Full set Core Client Indicator'!$A$3:$AB$351, MATCH(Selection_Hide2!$A38, 'Full set Core Client Indicator'!$A$3:$A$351, 0), MATCH(Selection_Hide2!P$5, 'Full set Core Client Indicator'!$A$3:$AB$3, 0))=\"\", \"\",  INDEX('Full set Core Client Indicator'!$A$3:$AB$351, MATCH(Selection_Hide2!$A38, 'Full set Core Client Indicator'!$A$3:$A$351, 0), MATCH(Selection_Hide2!P$5, 'Full set Core Client Indicator'!$A$3:$AB$3, 0))), \"\")","v":""},{"$f":"IF(P38<>\"\", IF(INDEX('Full set Core Client Indicator'!$A$3:$AB$351, MATCH(Selection_Hide2!$A38, 'Full set Core Client Indicator'!$A$3:$A$351, 0), MATCH(Selection_Hide2!Q$5, 'Full set Core Client Indicator'!$A$3:$AB$3, 0))=\"\", \"\",  INDEX('Full set Core Client Indicator'!$A$3:$AB$351, MATCH(Selection_Hide2!$A38, 'Full set Core Client Indicator'!$A$3:$A$351, 0), MATCH(Selection_Hide2!Q$5, 'Full set Core Client Indicator'!$A$3:$AB$3, 0))), \"\")","v":""},{"$f":"IF(Q38<>\"\", IF(INDEX('Full set Core Client Indicator'!$A$3:$AB$351, MATCH(Selection_Hide2!$A38, 'Full set Core Client Indicator'!$A$3:$A$351, 0), MATCH(Selection_Hide2!R$5, 'Full set Core Client Indicator'!$A$3:$AB$3, 0))=\"\", \"\",  INDEX('Full set Core Client Indicator'!$A$3:$AB$351, MATCH(Selection_Hide2!$A38, 'Full set Core Client Indicator'!$A$3:$A$351, 0), MATCH(Selection_Hide2!R$5, 'Full set Core Client Indicator'!$A$3:$AB$3, 0))), \"\")","v":""},{"$f":"IF(R38<>\"\", IF(INDEX('Full set Core Client Indicator'!$A$3:$AB$351, MATCH(Selection_Hide2!$A38, 'Full set Core Client Indicator'!$A$3:$A$351, 0), MATCH(Selection_Hide2!S$5, 'Full set Core Client Indicator'!$A$3:$AB$3, 0))=\"\", \"\",  INDEX('Full set Core Client Indicator'!$A$3:$AB$351, MATCH(Selection_Hide2!$A38, 'Full set Core Client Indicator'!$A$3:$A$351, 0), MATCH(Selection_Hide2!S$5, 'Full set Core Client Indicator'!$A$3:$AB$3, 0))), \"\")","v":""},{"$f":"IF(S38<>\"\", IF(INDEX('Full set Core Client Indicator'!$A$3:$AB$351, MATCH(Selection_Hide2!$A38, 'Full set Core Client Indicator'!$A$3:$A$351, 0), MATCH(Selection_Hide2!T$5, 'Full set Core Client Indicator'!$A$3:$AB$3, 0))=\"\", \"\",  INDEX('Full set Core Client Indicator'!$A$3:$AB$351, MATCH(Selection_Hide2!$A38, 'Full set Core Client Indicator'!$A$3:$A$351, 0), MATCH(Selection_Hide2!T$5, 'Full set Core Client Indicator'!$A$3:$AB$3, 0))), \"\")","v":""},{"$f":"IF(T38<>\"\", IF(INDEX('Full set Core Client Indicator'!$A$3:$AB$351, MATCH(Selection_Hide2!$A38, 'Full set Core Client Indicator'!$A$3:$A$351, 0), MATCH(Selection_Hide2!U$5, 'Full set Core Client Indicator'!$A$3:$AB$3, 0))=\"\", \"\",  INDEX('Full set Core Client Indicator'!$A$3:$AB$351, MATCH(Selection_Hide2!$A38, 'Full set Core Client Indicator'!$A$3:$A$351, 0), MATCH(Selection_Hide2!U$5, 'Full set Core Client Indicator'!$A$3:$AB$3, 0))), \"\")","v":""},{"$f":"IF(U38<>\"\", IF(INDEX('Full set Core Client Indicator'!$A$3:$AB$351, MATCH(Selection_Hide2!$A38, 'Full set Core Client Indicator'!$A$3:$A$351, 0), MATCH(Selection_Hide2!V$5, 'Full set Core Client Indicator'!$A$3:$AB$3, 0))=\"\", \"\",  INDEX('Full set Core Client Indicator'!$A$3:$AB$351, MATCH(Selection_Hide2!$A38, 'Full set Core Client Indicator'!$A$3:$A$351, 0), MATCH(Selection_Hide2!V$5, 'Full set Core Client Indicator'!$A$3:$AB$3, 0))), \"\")","v":""},{"$f":"IF(V38<>\"\", IF(INDEX('Full set Core Client Indicator'!$A$3:$AB$351, MATCH(Selection_Hide2!$A38, 'Full set Core Client Indicator'!$A$3:$A$351, 0), MATCH(Selection_Hide2!W$5, 'Full set Core Client Indicator'!$A$3:$AB$3, 0))=\"\", \"\",  INDEX('Full set Core Client Indicator'!$A$3:$AB$351, MATCH(Selection_Hide2!$A38, 'Full set Core Client Indicator'!$A$3:$A$351, 0), MATCH(Selection_Hide2!W$5, 'Full set Core Client Indicator'!$A$3:$AB$3, 0))), \"\")","v":""},{"$f":"IF(W38<>\"\", IF(INDEX('Full set Core Client Indicator'!$A$3:$AB$351, MATCH(Selection_Hide2!$A38, 'Full set Core Client Indicator'!$A$3:$A$351, 0), MATCH(Selection_Hide2!X$5, 'Full set Core Client Indicator'!$A$3:$AB$3, 0))=\"\", \"\",  INDEX('Full set Core Client Indicator'!$A$3:$AB$351, MATCH(Selection_Hide2!$A38, 'Full set Core Client Indicator'!$A$3:$A$351, 0), MATCH(Selection_Hide2!X$5, 'Full set Core Client Indicator'!$A$3:$AB$3, 0))), \"\")","v":""},{"$f":"IF(X38<>\"\", IF(INDEX('Full set Core Client Indicator'!$A$3:$AB$351, MATCH(Selection_Hide2!$A38, 'Full set Core Client Indicator'!$A$3:$A$351, 0), MATCH(Selection_Hide2!Y$5, 'Full set Core Client Indicator'!$A$3:$AB$3, 0))=\"\", \"\",  INDEX('Full set Core Client Indicator'!$A$3:$AB$351, MATCH(Selection_Hide2!$A38, 'Full set Core Client Indicator'!$A$3:$A$351, 0), MATCH(Selection_Hide2!Y$5, 'Full set Core Client Indicator'!$A$3:$AB$3, 0))), \"\")","v":""},{"$f":"IF(Y38<>\"\", IF(INDEX('Full set Core Client Indicator'!$A$3:$AB$351, MATCH(Selection_Hide2!$A38, 'Full set Core Client Indicator'!$A$3:$A$351, 0), MATCH(Selection_Hide2!Z$5, 'Full set Core Client Indicator'!$A$3:$AB$3, 0))=\"\", \"\",  INDEX('Full set Core Client Indicator'!$A$3:$AB$351, MATCH(Selection_Hide2!$A38, 'Full set Core Client Indicator'!$A$3:$A$351, 0), MATCH(Selection_Hide2!Z$5, 'Full set Core Client Indicator'!$A$3:$AB$3, 0))), \"\")","v":""},{"$f":"IF(Z38<>\"\", IF(INDEX('Full set Core Client Indicator'!$A$3:$AB$351, MATCH(Selection_Hide2!$A38, 'Full set Core Client Indicator'!$A$3:$A$351, 0), MATCH(Selection_Hide2!AA$5, 'Full set Core Client Indicator'!$A$3:$AB$3, 0))=\"\", \"\",  INDEX('Full set Core Client Indicator'!$A$3:$AB$351, MATCH(Selection_Hide2!$A38, 'Full set Core Client Indicator'!$A$3:$A$351, 0), MATCH(Selection_Hide2!AA$5, 'Full set Core Client Indicator'!$A$3:$AB$3, 0))), \"\")","v":""},{"$f":"IF(AA38<>\"\", IF(INDEX('Full set Core Client Indicator'!$A$3:$AB$351, MATCH(Selection_Hide2!$A38, 'Full set Core Client Indicator'!$A$3:$A$351, 0), MATCH(Selection_Hide2!AB$5, 'Full set Core Client Indicator'!$A$3:$AB$3, 0))=\"\", \"\",  INDEX('Full set Core Client Indicator'!$A$3:$AB$351, MATCH(Selection_Hide2!$A38, 'Full set Core Client Indicator'!$A$3:$A$351, 0), MATCH(Selection_Hide2!AB$5, 'Full set Core Client Indicator'!$A$3:$AB$3, 0))), \"\")","v":""}]
[{"$f":"IF(AND(Selection_Hide1!C37<>0, Selection_Hide1!C37<>\"Grand Total\"), Selection_Hide1!C37, \"\")","v":""},{"$f":"IF(A39<>\"\", IF(INDEX('Full set Core Client Indicator'!$A$3:$AB$351, MATCH(Selection_Hide2!$A39, 'Full set Core Client Indicator'!$A$3:$A$351, 0), MATCH(Selection_Hide2!B$5, 'Full set Core Client Indicator'!$A$3:$AB$3, 0))=\"\", \"\",  INDEX('Full set Core Client Indicator'!$A$3:$AB$351, MATCH(Selection_Hide2!$A39, 'Full set Core Client Indicator'!$A$3:$A$351, 0), MATCH(Selection_Hide2!B$5, 'Full set Core Client Indicator'!$A$3:$AB$3, 0))), \"\")","v":""},{"$f":"IF(B39<>\"\", IF(INDEX('Full set Core Client Indicator'!$A$3:$AB$351, MATCH(Selection_Hide2!$A39, 'Full set Core Client Indicator'!$A$3:$A$351, 0), MATCH(Selection_Hide2!C$5, 'Full set Core Client Indicator'!$A$3:$AB$3, 0))=\"\", \"\",  INDEX('Full set Core Client Indicator'!$A$3:$AB$351, MATCH(Selection_Hide2!$A39, 'Full set Core Client Indicator'!$A$3:$A$351, 0), MATCH(Selection_Hide2!C$5, 'Full set Core Client Indicator'!$A$3:$AB$3, 0))), \"\")","v":""},{"$f":"IF(C39<>\"\", IF(INDEX('Full set Core Client Indicator'!$A$3:$AB$351, MATCH(Selection_Hide2!$A39, 'Full set Core Client Indicator'!$A$3:$A$351, 0), MATCH(Selection_Hide2!D$5, 'Full set Core Client Indicator'!$A$3:$AB$3, 0))=\"\", \"\",  INDEX('Full set Core Client Indicator'!$A$3:$AB$351, MATCH(Selection_Hide2!$A39, 'Full set Core Client Indicator'!$A$3:$A$351, 0), MATCH(Selection_Hide2!D$5, 'Full set Core Client Indicator'!$A$3:$AB$3, 0))), \"\")","v":""},{"$f":"IF(D39<>\"\", IF(INDEX('Full set Core Client Indicator'!$A$3:$AB$351, MATCH(Selection_Hide2!$A39, 'Full set Core Client Indicator'!$A$3:$A$351, 0), MATCH(Selection_Hide2!E$5, 'Full set Core Client Indicator'!$A$3:$AB$3, 0))=\"\", \"\",  INDEX('Full set Core Client Indicator'!$A$3:$AB$351, MATCH(Selection_Hide2!$A39, 'Full set Core Client Indicator'!$A$3:$A$351, 0), MATCH(Selection_Hide2!E$5, 'Full set Core Client Indicator'!$A$3:$AB$3, 0))), \"\")","v":""},{"$f":"IF(E39<>\"\", IF(INDEX('Full set Core Client Indicator'!$A$3:$AB$351, MATCH(Selection_Hide2!$A39, 'Full set Core Client Indicator'!$A$3:$A$351, 0), MATCH(Selection_Hide2!F$5, 'Full set Core Client Indicator'!$A$3:$AB$3, 0))=\"\", \"\",  INDEX('Full set Core Client Indicator'!$A$3:$AB$351, MATCH(Selection_Hide2!$A39, 'Full set Core Client Indicator'!$A$3:$A$351, 0), MATCH(Selection_Hide2!F$5, 'Full set Core Client Indicator'!$A$3:$AB$3, 0))), \"\")","v":""},{"$f":"IF(F39<>\"\", IF(INDEX('Full set Core Client Indicator'!$A$3:$AB$351, MATCH(Selection_Hide2!$A39, 'Full set Core Client Indicator'!$A$3:$A$351, 0), MATCH(Selection_Hide2!G$5, 'Full set Core Client Indicator'!$A$3:$AB$3, 0))=\"\", \"\",  INDEX('Full set Core Client Indicator'!$A$3:$AB$351, MATCH(Selection_Hide2!$A39, 'Full set Core Client Indicator'!$A$3:$A$351, 0), MATCH(Selection_Hide2!G$5, 'Full set Core Client Indicator'!$A$3:$AB$3, 0))), \"\")","v":""},{"$f":"IF(G39<>\"\", IF(INDEX('Full set Core Client Indicator'!$A$3:$AB$351, MATCH(Selection_Hide2!$A39, 'Full set Core Client Indicator'!$A$3:$A$351, 0), MATCH(Selection_Hide2!H$5, 'Full set Core Client Indicator'!$A$3:$AB$3, 0))=\"\", \"\",  INDEX('Full set Core Client Indicator'!$A$3:$AB$351, MATCH(Selection_Hide2!$A39, 'Full set Core Client Indicator'!$A$3:$A$351, 0), MATCH(Selection_Hide2!H$5, 'Full set Core Client Indicator'!$A$3:$AB$3, 0))), \"\")","v":""},{"$f":"IF(H39<>\"\", IF(INDEX('Full set Core Client Indicator'!$A$3:$AB$351, MATCH(Selection_Hide2!$A39, 'Full set Core Client Indicator'!$A$3:$A$351, 0), MATCH(Selection_Hide2!I$5, 'Full set Core Client Indicator'!$A$3:$AB$3, 0))=\"\", \"\",  INDEX('Full set Core Client Indicator'!$A$3:$AB$351, MATCH(Selection_Hide2!$A39, 'Full set Core Client Indicator'!$A$3:$A$351, 0), MATCH(Selection_Hide2!I$5, 'Full set Core Client Indicator'!$A$3:$AB$3, 0))), \"\")","v":""},{"$f":"IF(I39<>\"\", IF(INDEX('Full set Core Client Indicator'!$A$3:$AB$351, MATCH(Selection_Hide2!$A39, 'Full set Core Client Indicator'!$A$3:$A$351, 0), MATCH(Selection_Hide2!J$5, 'Full set Core Client Indicator'!$A$3:$AB$3, 0))=\"\", \"\",  INDEX('Full set Core Client Indicator'!$A$3:$AB$351, MATCH(Selection_Hide2!$A39, 'Full set Core Client Indicator'!$A$3:$A$351, 0), MATCH(Selection_Hide2!J$5, 'Full set Core Client Indicator'!$A$3:$AB$3, 0))), \"\")","v":""},{"$f":"IF(J39<>\"\", IF(INDEX('Full set Core Client Indicator'!$A$3:$AB$351, MATCH(Selection_Hide2!$A39, 'Full set Core Client Indicator'!$A$3:$A$351, 0), MATCH(Selection_Hide2!K$5, 'Full set Core Client Indicator'!$A$3:$AB$3, 0))=\"\", \"\",  INDEX('Full set Core Client Indicator'!$A$3:$AB$351, MATCH(Selection_Hide2!$A39, 'Full set Core Client Indicator'!$A$3:$A$351, 0), MATCH(Selection_Hide2!K$5, 'Full set Core Client Indicator'!$A$3:$AB$3, 0))), \"\")","v":""},{"$f":"IF(K39<>\"\", IF(INDEX('Full set Core Client Indicator'!$A$3:$AB$351, MATCH(Selection_Hide2!$A39, 'Full set Core Client Indicator'!$A$3:$A$351, 0), MATCH(Selection_Hide2!L$5, 'Full set Core Client Indicator'!$A$3:$AB$3, 0))=\"\", \"\",  INDEX('Full set Core Client Indicator'!$A$3:$AB$351, MATCH(Selection_Hide2!$A39, 'Full set Core Client Indicator'!$A$3:$A$351, 0), MATCH(Selection_Hide2!L$5, 'Full set Core Client Indicator'!$A$3:$AB$3, 0))), \"\")","v":""},{"$f":"IF(L39<>\"\", IF(INDEX('Full set Core Client Indicator'!$A$3:$AB$351, MATCH(Selection_Hide2!$A39, 'Full set Core Client Indicator'!$A$3:$A$351, 0), MATCH(Selection_Hide2!M$5, 'Full set Core Client Indicator'!$A$3:$AB$3, 0))=\"\", \"\",  INDEX('Full set Core Client Indicator'!$A$3:$AB$351, MATCH(Selection_Hide2!$A39, 'Full set Core Client Indicator'!$A$3:$A$351, 0), MATCH(Selection_Hide2!M$5, 'Full set Core Client Indicator'!$A$3:$AB$3, 0))), \"\")","v":""},{"$f":"IF(M39<>\"\", IF(INDEX('Full set Core Client Indicator'!$A$3:$AB$351, MATCH(Selection_Hide2!$A39, 'Full set Core Client Indicator'!$A$3:$A$351, 0), MATCH(Selection_Hide2!N$5, 'Full set Core Client Indicator'!$A$3:$AB$3, 0))=\"\", \"\",  INDEX('Full set Core Client Indicator'!$A$3:$AB$351, MATCH(Selection_Hide2!$A39, 'Full set Core Client Indicator'!$A$3:$A$351, 0), MATCH(Selection_Hide2!N$5, 'Full set Core Client Indicator'!$A$3:$AB$3, 0))), \"\")","v":""},{"$f":"IF(N39<>\"\", IF(INDEX('Full set Core Client Indicator'!$A$3:$AB$351, MATCH(Selection_Hide2!$A39, 'Full set Core Client Indicator'!$A$3:$A$351, 0), MATCH(Selection_Hide2!O$5, 'Full set Core Client Indicator'!$A$3:$AB$3, 0))=\"\", \"\",  INDEX('Full set Core Client Indicator'!$A$3:$AB$351, MATCH(Selection_Hide2!$A39, 'Full set Core Client Indicator'!$A$3:$A$351, 0), MATCH(Selection_Hide2!O$5, 'Full set Core Client Indicator'!$A$3:$AB$3, 0))), \"\")","v":""},{"$f":"IF(O39<>\"\", IF(INDEX('Full set Core Client Indicator'!$A$3:$AB$351, MATCH(Selection_Hide2!$A39, 'Full set Core Client Indicator'!$A$3:$A$351, 0), MATCH(Selection_Hide2!P$5, 'Full set Core Client Indicator'!$A$3:$AB$3, 0))=\"\", \"\",  INDEX('Full set Core Client Indicator'!$A$3:$AB$351, MATCH(Selection_Hide2!$A39, 'Full set Core Client Indicator'!$A$3:$A$351, 0), MATCH(Selection_Hide2!P$5, 'Full set Core Client Indicator'!$A$3:$AB$3, 0))), \"\")","v":""},{"$f":"IF(P39<>\"\", IF(INDEX('Full set Core Client Indicator'!$A$3:$AB$351, MATCH(Selection_Hide2!$A39, 'Full set Core Client Indicator'!$A$3:$A$351, 0), MATCH(Selection_Hide2!Q$5, 'Full set Core Client Indicator'!$A$3:$AB$3, 0))=\"\", \"\",  INDEX('Full set Core Client Indicator'!$A$3:$AB$351, MATCH(Selection_Hide2!$A39, 'Full set Core Client Indicator'!$A$3:$A$351, 0), MATCH(Selection_Hide2!Q$5, 'Full set Core Client Indicator'!$A$3:$AB$3, 0))), \"\")","v":""},{"$f":"IF(Q39<>\"\", IF(INDEX('Full set Core Client Indicator'!$A$3:$AB$351, MATCH(Selection_Hide2!$A39, 'Full set Core Client Indicator'!$A$3:$A$351, 0), MATCH(Selection_Hide2!R$5, 'Full set Core Client Indicator'!$A$3:$AB$3, 0))=\"\", \"\",  INDEX('Full set Core Client Indicator'!$A$3:$AB$351, MATCH(Selection_Hide2!$A39, 'Full set Core Client Indicator'!$A$3:$A$351, 0), MATCH(Selection_Hide2!R$5, 'Full set Core Client Indicator'!$A$3:$AB$3, 0))), \"\")","v":""},{"$f":"IF(R39<>\"\", IF(INDEX('Full set Core Client Indicator'!$A$3:$AB$351, MATCH(Selection_Hide2!$A39, 'Full set Core Client Indicator'!$A$3:$A$351, 0), MATCH(Selection_Hide2!S$5, 'Full set Core Client Indicator'!$A$3:$AB$3, 0))=\"\", \"\",  INDEX('Full set Core Client Indicator'!$A$3:$AB$351, MATCH(Selection_Hide2!$A39, 'Full set Core Client Indicator'!$A$3:$A$351, 0), MATCH(Selection_Hide2!S$5, 'Full set Core Client Indicator'!$A$3:$AB$3, 0))), \"\")","v":""},{"$f":"IF(S39<>\"\", IF(INDEX('Full set Core Client Indicator'!$A$3:$AB$351, MATCH(Selection_Hide2!$A39, 'Full set Core Client Indicator'!$A$3:$A$351, 0), MATCH(Selection_Hide2!T$5, 'Full set Core Client Indicator'!$A$3:$AB$3, 0))=\"\", \"\",  INDEX('Full set Core Client Indicator'!$A$3:$AB$351, MATCH(Selection_Hide2!$A39, 'Full set Core Client Indicator'!$A$3:$A$351, 0), MATCH(Selection_Hide2!T$5, 'Full set Core Client Indicator'!$A$3:$AB$3, 0))), \"\")","v":""},{"$f":"IF(T39<>\"\", IF(INDEX('Full set Core Client Indicator'!$A$3:$AB$351, MATCH(Selection_Hide2!$A39, 'Full set Core Client Indicator'!$A$3:$A$351, 0), MATCH(Selection_Hide2!U$5, 'Full set Core Client Indicator'!$A$3:$AB$3, 0))=\"\", \"\",  INDEX('Full set Core Client Indicator'!$A$3:$AB$351, MATCH(Selection_Hide2!$A39, 'Full set Core Client Indicator'!$A$3:$A$351, 0), MATCH(Selection_Hide2!U$5, 'Full set Core Client Indicator'!$A$3:$AB$3, 0))), \"\")","v":""},{"$f":"IF(U39<>\"\", IF(INDEX('Full set Core Client Indicator'!$A$3:$AB$351, MATCH(Selection_Hide2!$A39, 'Full set Core Client Indicator'!$A$3:$A$351, 0), MATCH(Selection_Hide2!V$5, 'Full set Core Client Indicator'!$A$3:$AB$3, 0))=\"\", \"\",  INDEX('Full set Core Client Indicator'!$A$3:$AB$351, MATCH(Selection_Hide2!$A39, 'Full set Core Client Indicator'!$A$3:$A$351, 0), MATCH(Selection_Hide2!V$5, 'Full set Core Client Indicator'!$A$3:$AB$3, 0))), \"\")","v":""},{"$f":"IF(V39<>\"\", IF(INDEX('Full set Core Client Indicator'!$A$3:$AB$351, MATCH(Selection_Hide2!$A39, 'Full set Core Client Indicator'!$A$3:$A$351, 0), MATCH(Selection_Hide2!W$5, 'Full set Core Client Indicator'!$A$3:$AB$3, 0))=\"\", \"\",  INDEX('Full set Core Client Indicator'!$A$3:$AB$351, MATCH(Selection_Hide2!$A39, 'Full set Core Client Indicator'!$A$3:$A$351, 0), MATCH(Selection_Hide2!W$5, 'Full set Core Client Indicator'!$A$3:$AB$3, 0))), \"\")","v":""},{"$f":"IF(W39<>\"\", IF(INDEX('Full set Core Client Indicator'!$A$3:$AB$351, MATCH(Selection_Hide2!$A39, 'Full set Core Client Indicator'!$A$3:$A$351, 0), MATCH(Selection_Hide2!X$5, 'Full set Core Client Indicator'!$A$3:$AB$3, 0))=\"\", \"\",  INDEX('Full set Core Client Indicator'!$A$3:$AB$351, MATCH(Selection_Hide2!$A39, 'Full set Core Client Indicator'!$A$3:$A$351, 0), MATCH(Selection_Hide2!X$5, 'Full set Core Client Indicator'!$A$3:$AB$3, 0))), \"\")","v":""},{"$f":"IF(X39<>\"\", IF(INDEX('Full set Core Client Indicator'!$A$3:$AB$351, MATCH(Selection_Hide2!$A39, 'Full set Core Client Indicator'!$A$3:$A$351, 0), MATCH(Selection_Hide2!Y$5, 'Full set Core Client Indicator'!$A$3:$AB$3, 0))=\"\", \"\",  INDEX('Full set Core Client Indicator'!$A$3:$AB$351, MATCH(Selection_Hide2!$A39, 'Full set Core Client Indicator'!$A$3:$A$351, 0), MATCH(Selection_Hide2!Y$5, 'Full set Core Client Indicator'!$A$3:$AB$3, 0))), \"\")","v":""},{"$f":"IF(Y39<>\"\", IF(INDEX('Full set Core Client Indicator'!$A$3:$AB$351, MATCH(Selection_Hide2!$A39, 'Full set Core Client Indicator'!$A$3:$A$351, 0), MATCH(Selection_Hide2!Z$5, 'Full set Core Client Indicator'!$A$3:$AB$3, 0))=\"\", \"\",  INDEX('Full set Core Client Indicator'!$A$3:$AB$351, MATCH(Selection_Hide2!$A39, 'Full set Core Client Indicator'!$A$3:$A$351, 0), MATCH(Selection_Hide2!Z$5, 'Full set Core Client Indicator'!$A$3:$AB$3, 0))), \"\")","v":""},{"$f":"IF(Z39<>\"\", IF(INDEX('Full set Core Client Indicator'!$A$3:$AB$351, MATCH(Selection_Hide2!$A39, 'Full set Core Client Indicator'!$A$3:$A$351, 0), MATCH(Selection_Hide2!AA$5, 'Full set Core Client Indicator'!$A$3:$AB$3, 0))=\"\", \"\",  INDEX('Full set Core Client Indicator'!$A$3:$AB$351, MATCH(Selection_Hide2!$A39, 'Full set Core Client Indicator'!$A$3:$A$351, 0), MATCH(Selection_Hide2!AA$5, 'Full set Core Client Indicator'!$A$3:$AB$3, 0))), \"\")","v":""},{"$f":"IF(AA39<>\"\", IF(INDEX('Full set Core Client Indicator'!$A$3:$AB$351, MATCH(Selection_Hide2!$A39, 'Full set Core Client Indicator'!$A$3:$A$351, 0), MATCH(Selection_Hide2!AB$5, 'Full set Core Client Indicator'!$A$3:$AB$3, 0))=\"\", \"\",  INDEX('Full set Core Client Indicator'!$A$3:$AB$351, MATCH(Selection_Hide2!$A39, 'Full set Core Client Indicator'!$A$3:$A$351, 0), MATCH(Selection_Hide2!AB$5, 'Full set Core Client Indicator'!$A$3:$AB$3, 0))), \"\")","v":""}]
[{"$f":"IF(AND(Selection_Hide1!C38<>0, Selection_Hide1!C38<>\"Grand Total\"), Selection_Hide1!C38, \"\")","v":""},{"$f":"IF(A40<>\"\", IF(INDEX('Full set Core Client Indicator'!$A$3:$AB$351, MATCH(Selection_Hide2!$A40, 'Full set Core Client Indicator'!$A$3:$A$351, 0), MATCH(Selection_Hide2!B$5, 'Full set Core Client Indicator'!$A$3:$AB$3, 0))=\"\", \"\",  INDEX('Full set Core Client Indicator'!$A$3:$AB$351, MATCH(Selection_Hide2!$A40, 'Full set Core Client Indicator'!$A$3:$A$351, 0), MATCH(Selection_Hide2!B$5, 'Full set Core Client Indicator'!$A$3:$AB$3, 0))), \"\")","v":""},{"$f":"IF(B40<>\"\", IF(INDEX('Full set Core Client Indicator'!$A$3:$AB$351, MATCH(Selection_Hide2!$A40, 'Full set Core Client Indicator'!$A$3:$A$351, 0), MATCH(Selection_Hide2!C$5, 'Full set Core Client Indicator'!$A$3:$AB$3, 0))=\"\", \"\",  INDEX('Full set Core Client Indicator'!$A$3:$AB$351, MATCH(Selection_Hide2!$A40, 'Full set Core Client Indicator'!$A$3:$A$351, 0), MATCH(Selection_Hide2!C$5, 'Full set Core Client Indicator'!$A$3:$AB$3, 0))), \"\")","v":""},{"$f":"IF(C40<>\"\", IF(INDEX('Full set Core Client Indicator'!$A$3:$AB$351, MATCH(Selection_Hide2!$A40, 'Full set Core Client Indicator'!$A$3:$A$351, 0), MATCH(Selection_Hide2!D$5, 'Full set Core Client Indicator'!$A$3:$AB$3, 0))=\"\", \"\",  INDEX('Full set Core Client Indicator'!$A$3:$AB$351, MATCH(Selection_Hide2!$A40, 'Full set Core Client Indicator'!$A$3:$A$351, 0), MATCH(Selection_Hide2!D$5, 'Full set Core Client Indicator'!$A$3:$AB$3, 0))), \"\")","v":""},{"$f":"IF(D40<>\"\", IF(INDEX('Full set Core Client Indicator'!$A$3:$AB$351, MATCH(Selection_Hide2!$A40, 'Full set Core Client Indicator'!$A$3:$A$351, 0), MATCH(Selection_Hide2!E$5, 'Full set Core Client Indicator'!$A$3:$AB$3, 0))=\"\", \"\",  INDEX('Full set Core Client Indicator'!$A$3:$AB$351, MATCH(Selection_Hide2!$A40, 'Full set Core Client Indicator'!$A$3:$A$351, 0), MATCH(Selection_Hide2!E$5, 'Full set Core Client Indicator'!$A$3:$AB$3, 0))), \"\")","v":""},{"$f":"IF(E40<>\"\", IF(INDEX('Full set Core Client Indicator'!$A$3:$AB$351, MATCH(Selection_Hide2!$A40, 'Full set Core Client Indicator'!$A$3:$A$351, 0), MATCH(Selection_Hide2!F$5, 'Full set Core Client Indicator'!$A$3:$AB$3, 0))=\"\", \"\",  INDEX('Full set Core Client Indicator'!$A$3:$AB$351, MATCH(Selection_Hide2!$A40, 'Full set Core Client Indicator'!$A$3:$A$351, 0), MATCH(Selection_Hide2!F$5, 'Full set Core Client Indicator'!$A$3:$AB$3, 0))), \"\")","v":""},{"$f":"IF(F40<>\"\", IF(INDEX('Full set Core Client Indicator'!$A$3:$AB$351, MATCH(Selection_Hide2!$A40, 'Full set Core Client Indicator'!$A$3:$A$351, 0), MATCH(Selection_Hide2!G$5, 'Full set Core Client Indicator'!$A$3:$AB$3, 0))=\"\", \"\",  INDEX('Full set Core Client Indicator'!$A$3:$AB$351, MATCH(Selection_Hide2!$A40, 'Full set Core Client Indicator'!$A$3:$A$351, 0), MATCH(Selection_Hide2!G$5, 'Full set Core Client Indicator'!$A$3:$AB$3, 0))), \"\")","v":""},{"$f":"IF(G40<>\"\", IF(INDEX('Full set Core Client Indicator'!$A$3:$AB$351, MATCH(Selection_Hide2!$A40, 'Full set Core Client Indicator'!$A$3:$A$351, 0), MATCH(Selection_Hide2!H$5, 'Full set Core Client Indicator'!$A$3:$AB$3, 0))=\"\", \"\",  INDEX('Full set Core Client Indicator'!$A$3:$AB$351, MATCH(Selection_Hide2!$A40, 'Full set Core Client Indicator'!$A$3:$A$351, 0), MATCH(Selection_Hide2!H$5, 'Full set Core Client Indicator'!$A$3:$AB$3, 0))), \"\")","v":""},{"$f":"IF(H40<>\"\", IF(INDEX('Full set Core Client Indicator'!$A$3:$AB$351, MATCH(Selection_Hide2!$A40, 'Full set Core Client Indicator'!$A$3:$A$351, 0), MATCH(Selection_Hide2!I$5, 'Full set Core Client Indicator'!$A$3:$AB$3, 0))=\"\", \"\",  INDEX('Full set Core Client Indicator'!$A$3:$AB$351, MATCH(Selection_Hide2!$A40, 'Full set Core Client Indicator'!$A$3:$A$351, 0), MATCH(Selection_Hide2!I$5, 'Full set Core Client Indicator'!$A$3:$AB$3, 0))), \"\")","v":""},{"$f":"IF(I40<>\"\", IF(INDEX('Full set Core Client Indicator'!$A$3:$AB$351, MATCH(Selection_Hide2!$A40, 'Full set Core Client Indicator'!$A$3:$A$351, 0), MATCH(Selection_Hide2!J$5, 'Full set Core Client Indicator'!$A$3:$AB$3, 0))=\"\", \"\",  INDEX('Full set Core Client Indicator'!$A$3:$AB$351, MATCH(Selection_Hide2!$A40, 'Full set Core Client Indicator'!$A$3:$A$351, 0), MATCH(Selection_Hide2!J$5, 'Full set Core Client Indicator'!$A$3:$AB$3, 0))), \"\")","v":""},{"$f":"IF(J40<>\"\", IF(INDEX('Full set Core Client Indicator'!$A$3:$AB$351, MATCH(Selection_Hide2!$A40, 'Full set Core Client Indicator'!$A$3:$A$351, 0), MATCH(Selection_Hide2!K$5, 'Full set Core Client Indicator'!$A$3:$AB$3, 0))=\"\", \"\",  INDEX('Full set Core Client Indicator'!$A$3:$AB$351, MATCH(Selection_Hide2!$A40, 'Full set Core Client Indicator'!$A$3:$A$351, 0), MATCH(Selection_Hide2!K$5, 'Full set Core Client Indicator'!$A$3:$AB$3, 0))), \"\")","v":""},{"$f":"IF(K40<>\"\", IF(INDEX('Full set Core Client Indicator'!$A$3:$AB$351, MATCH(Selection_Hide2!$A40, 'Full set Core Client Indicator'!$A$3:$A$351, 0), MATCH(Selection_Hide2!L$5, 'Full set Core Client Indicator'!$A$3:$AB$3, 0))=\"\", \"\",  INDEX('Full set Core Client Indicator'!$A$3:$AB$351, MATCH(Selection_Hide2!$A40, 'Full set Core Client Indicator'!$A$3:$A$351, 0), MATCH(Selection_Hide2!L$5, 'Full set Core Client Indicator'!$A$3:$AB$3, 0))), \"\")","v":""},{"$f":"IF(L40<>\"\", IF(INDEX('Full set Core Client Indicator'!$A$3:$AB$351, MATCH(Selection_Hide2!$A40, 'Full set Core Client Indicator'!$A$3:$A$351, 0), MATCH(Selection_Hide2!M$5, 'Full set Core Client Indicator'!$A$3:$AB$3, 0))=\"\", \"\",  INDEX('Full set Core Client Indicator'!$A$3:$AB$351, MATCH(Selection_Hide2!$A40, 'Full set Core Client Indicator'!$A$3:$A$351, 0), MATCH(Selection_Hide2!M$5, 'Full set Core Client Indicator'!$A$3:$AB$3, 0))), \"\")","v":""},{"$f":"IF(M40<>\"\", IF(INDEX('Full set Core Client Indicator'!$A$3:$AB$351, MATCH(Selection_Hide2!$A40, 'Full set Core Client Indicator'!$A$3:$A$351, 0), MATCH(Selection_Hide2!N$5, 'Full set Core Client Indicator'!$A$3:$AB$3, 0))=\"\", \"\",  INDEX('Full set Core Client Indicator'!$A$3:$AB$351, MATCH(Selection_Hide2!$A40, 'Full set Core Client Indicator'!$A$3:$A$351, 0), MATCH(Selection_Hide2!N$5, 'Full set Core Client Indicator'!$A$3:$AB$3, 0))), \"\")","v":""},{"$f":"IF(N40<>\"\", IF(INDEX('Full set Core Client Indicator'!$A$3:$AB$351, MATCH(Selection_Hide2!$A40, 'Full set Core Client Indicator'!$A$3:$A$351, 0), MATCH(Selection_Hide2!O$5, 'Full set Core Client Indicator'!$A$3:$AB$3, 0))=\"\", \"\",  INDEX('Full set Core Client Indicator'!$A$3:$AB$351, MATCH(Selection_Hide2!$A40, 'Full set Core Client Indicator'!$A$3:$A$351, 0), MATCH(Selection_Hide2!O$5, 'Full set Core Client Indicator'!$A$3:$AB$3, 0))), \"\")","v":""},{"$f":"IF(O40<>\"\", IF(INDEX('Full set Core Client Indicator'!$A$3:$AB$351, MATCH(Selection_Hide2!$A40, 'Full set Core Client Indicator'!$A$3:$A$351, 0), MATCH(Selection_Hide2!P$5, 'Full set Core Client Indicator'!$A$3:$AB$3, 0))=\"\", \"\",  INDEX('Full set Core Client Indicator'!$A$3:$AB$351, MATCH(Selection_Hide2!$A40, 'Full set Core Client Indicator'!$A$3:$A$351, 0), MATCH(Selection_Hide2!P$5, 'Full set Core Client Indicator'!$A$3:$AB$3, 0))), \"\")","v":""},{"$f":"IF(P40<>\"\", IF(INDEX('Full set Core Client Indicator'!$A$3:$AB$351, MATCH(Selection_Hide2!$A40, 'Full set Core Client Indicator'!$A$3:$A$351, 0), MATCH(Selection_Hide2!Q$5, 'Full set Core Client Indicator'!$A$3:$AB$3, 0))=\"\", \"\",  INDEX('Full set Core Client Indicator'!$A$3:$AB$351, MATCH(Selection_Hide2!$A40, 'Full set Core Client Indicator'!$A$3:$A$351, 0), MATCH(Selection_Hide2!Q$5, 'Full set Core Client Indicator'!$A$3:$AB$3, 0))), \"\")","v":""},{"$f":"IF(Q40<>\"\", IF(INDEX('Full set Core Client Indicator'!$A$3:$AB$351, MATCH(Selection_Hide2!$A40, 'Full set Core Client Indicator'!$A$3:$A$351, 0), MATCH(Selection_Hide2!R$5, 'Full set Core Client Indicator'!$A$3:$AB$3, 0))=\"\", \"\",  INDEX('Full set Core Client Indicator'!$A$3:$AB$351, MATCH(Selection_Hide2!$A40, 'Full set Core Client Indicator'!$A$3:$A$351, 0), MATCH(Selection_Hide2!R$5, 'Full set Core Client Indicator'!$A$3:$AB$3, 0))), \"\")","v":""},{"$f":"IF(R40<>\"\", IF(INDEX('Full set Core Client Indicator'!$A$3:$AB$351, MATCH(Selection_Hide2!$A40, 'Full set Core Client Indicator'!$A$3:$A$351, 0), MATCH(Selection_Hide2!S$5, 'Full set Core Client Indicator'!$A$3:$AB$3, 0))=\"\", \"\",  INDEX('Full set Core Client Indicator'!$A$3:$AB$351, MATCH(Selection_Hide2!$A40, 'Full set Core Client Indicator'!$A$3:$A$351, 0), MATCH(Selection_Hide2!S$5, 'Full set Core Client Indicator'!$A$3:$AB$3, 0))), \"\")","v":""},{"$f":"IF(S40<>\"\", IF(INDEX('Full set Core Client Indicator'!$A$3:$AB$351, MATCH(Selection_Hide2!$A40, 'Full set Core Client Indicator'!$A$3:$A$351, 0), MATCH(Selection_Hide2!T$5, 'Full set Core Client Indicator'!$A$3:$AB$3, 0))=\"\", \"\",  INDEX('Full set Core Client Indicator'!$A$3:$AB$351, MATCH(Selection_Hide2!$A40, 'Full set Core Client Indicator'!$A$3:$A$351, 0), MATCH(Selection_Hide2!T$5, 'Full set Core Client Indicator'!$A$3:$AB$3, 0))), \"\")","v":""},{"$f":"IF(T40<>\"\", IF(INDEX('Full set Core Client Indicator'!$A$3:$AB$351, MATCH(Selection_Hide2!$A40, 'Full set Core Client Indicator'!$A$3:$A$351, 0), MATCH(Selection_Hide2!U$5, 'Full set Core Client Indicator'!$A$3:$AB$3, 0))=\"\", \"\",  INDEX('Full set Core Client Indicator'!$A$3:$AB$351, MATCH(Selection_Hide2!$A40, 'Full set Core Client Indicator'!$A$3:$A$351, 0), MATCH(Selection_Hide2!U$5, 'Full set Core Client Indicator'!$A$3:$AB$3, 0))), \"\")","v":""},{"$f":"IF(U40<>\"\", IF(INDEX('Full set Core Client Indicator'!$A$3:$AB$351, MATCH(Selection_Hide2!$A40, 'Full set Core Client Indicator'!$A$3:$A$351, 0), MATCH(Selection_Hide2!V$5, 'Full set Core Client Indicator'!$A$3:$AB$3, 0))=\"\", \"\",  INDEX('Full set Core Client Indicator'!$A$3:$AB$351, MATCH(Selection_Hide2!$A40, 'Full set Core Client Indicator'!$A$3:$A$351, 0), MATCH(Selection_Hide2!V$5, 'Full set Core Client Indicator'!$A$3:$AB$3, 0))), \"\")","v":""},{"$f":"IF(V40<>\"\", IF(INDEX('Full set Core Client Indicator'!$A$3:$AB$351, MATCH(Selection_Hide2!$A40, 'Full set Core Client Indicator'!$A$3:$A$351, 0), MATCH(Selection_Hide2!W$5, 'Full set Core Client Indicator'!$A$3:$AB$3, 0))=\"\", \"\",  INDEX('Full set Core Client Indicator'!$A$3:$AB$351, MATCH(Selection_Hide2!$A40, 'Full set Core Client Indicator'!$A$3:$A$351, 0), MATCH(Selection_Hide2!W$5, 'Full set Core Client Indicator'!$A$3:$AB$3, 0))), \"\")","v":""},{"$f":"IF(W40<>\"\", IF(INDEX('Full set Core Client Indicator'!$A$3:$AB$351, MATCH(Selection_Hide2!$A40, 'Full set Core Client Indicator'!$A$3:$A$351, 0), MATCH(Selection_Hide2!X$5, 'Full set Core Client Indicator'!$A$3:$AB$3, 0))=\"\", \"\",  INDEX('Full set Core Client Indicator'!$A$3:$AB$351, MATCH(Selection_Hide2!$A40, 'Full set Core Client Indicator'!$A$3:$A$351, 0), MATCH(Selection_Hide2!X$5, 'Full set Core Client Indicator'!$A$3:$AB$3, 0))), \"\")","v":""},{"$f":"IF(X40<>\"\", IF(INDEX('Full set Core Client Indicator'!$A$3:$AB$351, MATCH(Selection_Hide2!$A40, 'Full set Core Client Indicator'!$A$3:$A$351, 0), MATCH(Selection_Hide2!Y$5, 'Full set Core Client Indicator'!$A$3:$AB$3, 0))=\"\", \"\",  INDEX('Full set Core Client Indicator'!$A$3:$AB$351, MATCH(Selection_Hide2!$A40, 'Full set Core Client Indicator'!$A$3:$A$351, 0), MATCH(Selection_Hide2!Y$5, 'Full set Core Client Indicator'!$A$3:$AB$3, 0))), \"\")","v":""},{"$f":"IF(Y40<>\"\", IF(INDEX('Full set Core Client Indicator'!$A$3:$AB$351, MATCH(Selection_Hide2!$A40, 'Full set Core Client Indicator'!$A$3:$A$351, 0), MATCH(Selection_Hide2!Z$5, 'Full set Core Client Indicator'!$A$3:$AB$3, 0))=\"\", \"\",  INDEX('Full set Core Client Indicator'!$A$3:$AB$351, MATCH(Selection_Hide2!$A40, 'Full set Core Client Indicator'!$A$3:$A$351, 0), MATCH(Selection_Hide2!Z$5, 'Full set Core Client Indicator'!$A$3:$AB$3, 0))), \"\")","v":""},{"$f":"IF(Z40<>\"\", IF(INDEX('Full set Core Client Indicator'!$A$3:$AB$351, MATCH(Selection_Hide2!$A40, 'Full set Core Client Indicator'!$A$3:$A$351, 0), MATCH(Selection_Hide2!AA$5, 'Full set Core Client Indicator'!$A$3:$AB$3, 0))=\"\", \"\",  INDEX('Full set Core Client Indicator'!$A$3:$AB$351, MATCH(Selection_Hide2!$A40, 'Full set Core Client Indicator'!$A$3:$A$351, 0), MATCH(Selection_Hide2!AA$5, 'Full set Core Client Indicator'!$A$3:$AB$3, 0))), \"\")","v":""},{"$f":"IF(AA40<>\"\", IF(INDEX('Full set Core Client Indicator'!$A$3:$AB$351, MATCH(Selection_Hide2!$A40, 'Full set Core Client Indicator'!$A$3:$A$351, 0), MATCH(Selection_Hide2!AB$5, 'Full set Core Client Indicator'!$A$3:$AB$3, 0))=\"\", \"\",  INDEX('Full set Core Client Indicator'!$A$3:$AB$351, MATCH(Selection_Hide2!$A40, 'Full set Core Client Indicator'!$A$3:$A$351, 0), MATCH(Selection_Hide2!AB$5, 'Full set Core Client Indicator'!$A$3:$AB$3, 0))), \"\")","v":""}]
[{"$f":"IF(AND(Selection_Hide1!C39<>0, Selection_Hide1!C39<>\"Grand Total\"), Selection_Hide1!C39, \"\")","v":""},{"$f":"IF(A41<>\"\", IF(INDEX('Full set Core Client Indicator'!$A$3:$AB$351, MATCH(Selection_Hide2!$A41, 'Full set Core Client Indicator'!$A$3:$A$351, 0), MATCH(Selection_Hide2!B$5, 'Full set Core Client Indicator'!$A$3:$AB$3, 0))=\"\", \"\",  INDEX('Full set Core Client Indicator'!$A$3:$AB$351, MATCH(Selection_Hide2!$A41, 'Full set Core Client Indicator'!$A$3:$A$351, 0), MATCH(Selection_Hide2!B$5, 'Full set Core Client Indicator'!$A$3:$AB$3, 0))), \"\")","v":""},{"$f":"IF(B41<>\"\", IF(INDEX('Full set Core Client Indicator'!$A$3:$AB$351, MATCH(Selection_Hide2!$A41, 'Full set Core Client Indicator'!$A$3:$A$351, 0), MATCH(Selection_Hide2!C$5, 'Full set Core Client Indicator'!$A$3:$AB$3, 0))=\"\", \"\",  INDEX('Full set Core Client Indicator'!$A$3:$AB$351, MATCH(Selection_Hide2!$A41, 'Full set Core Client Indicator'!$A$3:$A$351, 0), MATCH(Selection_Hide2!C$5, 'Full set Core Client Indicator'!$A$3:$AB$3, 0))), \"\")","v":""},{"$f":"IF(C41<>\"\", IF(INDEX('Full set Core Client Indicator'!$A$3:$AB$351, MATCH(Selection_Hide2!$A41, 'Full set Core Client Indicator'!$A$3:$A$351, 0), MATCH(Selection_Hide2!D$5, 'Full set Core Client Indicator'!$A$3:$AB$3, 0))=\"\", \"\",  INDEX('Full set Core Client Indicator'!$A$3:$AB$351, MATCH(Selection_Hide2!$A41, 'Full set Core Client Indicator'!$A$3:$A$351, 0), MATCH(Selection_Hide2!D$5, 'Full set Core Client Indicator'!$A$3:$AB$3, 0))), \"\")","v":""},{"$f":"IF(D41<>\"\", IF(INDEX('Full set Core Client Indicator'!$A$3:$AB$351, MATCH(Selection_Hide2!$A41, 'Full set Core Client Indicator'!$A$3:$A$351, 0), MATCH(Selection_Hide2!E$5, 'Full set Core Client Indicator'!$A$3:$AB$3, 0))=\"\", \"\",  INDEX('Full set Core Client Indicator'!$A$3:$AB$351, MATCH(Selection_Hide2!$A41, 'Full set Core Client Indicator'!$A$3:$A$351, 0), MATCH(Selection_Hide2!E$5, 'Full set Core Client Indicator'!$A$3:$AB$3, 0))), \"\")","v":""},{"$f":"IF(E41<>\"\", IF(INDEX('Full set Core Client Indicator'!$A$3:$AB$351, MATCH(Selection_Hide2!$A41, 'Full set Core Client Indicator'!$A$3:$A$351, 0), MATCH(Selection_Hide2!F$5, 'Full set Core Client Indicator'!$A$3:$AB$3, 0))=\"\", \"\",  INDEX('Full set Core Client Indicator'!$A$3:$AB$351, MATCH(Selection_Hide2!$A41, 'Full set Core Client Indicator'!$A$3:$A$351, 0), MATCH(Selection_Hide2!F$5, 'Full set Core Client Indicator'!$A$3:$AB$3, 0))), \"\")","v":""},{"$f":"IF(F41<>\"\", IF(INDEX('Full set Core Client Indicator'!$A$3:$AB$351, MATCH(Selection_Hide2!$A41, 'Full set Core Client Indicator'!$A$3:$A$351, 0), MATCH(Selection_Hide2!G$5, 'Full set Core Client Indicator'!$A$3:$AB$3, 0))=\"\", \"\",  INDEX('Full set Core Client Indicator'!$A$3:$AB$351, MATCH(Selection_Hide2!$A41, 'Full set Core Client Indicator'!$A$3:$A$351, 0), MATCH(Selection_Hide2!G$5, 'Full set Core Client Indicator'!$A$3:$AB$3, 0))), \"\")","v":""},{"$f":"IF(G41<>\"\", IF(INDEX('Full set Core Client Indicator'!$A$3:$AB$351, MATCH(Selection_Hide2!$A41, 'Full set Core Client Indicator'!$A$3:$A$351, 0), MATCH(Selection_Hide2!H$5, 'Full set Core Client Indicator'!$A$3:$AB$3, 0))=\"\", \"\",  INDEX('Full set Core Client Indicator'!$A$3:$AB$351, MATCH(Selection_Hide2!$A41, 'Full set Core Client Indicator'!$A$3:$A$351, 0), MATCH(Selection_Hide2!H$5, 'Full set Core Client Indicator'!$A$3:$AB$3, 0))), \"\")","v":""},{"$f":"IF(H41<>\"\", IF(INDEX('Full set Core Client Indicator'!$A$3:$AB$351, MATCH(Selection_Hide2!$A41, 'Full set Core Client Indicator'!$A$3:$A$351, 0), MATCH(Selection_Hide2!I$5, 'Full set Core Client Indicator'!$A$3:$AB$3, 0))=\"\", \"\",  INDEX('Full set Core Client Indicator'!$A$3:$AB$351, MATCH(Selection_Hide2!$A41, 'Full set Core Client Indicator'!$A$3:$A$351, 0), MATCH(Selection_Hide2!I$5, 'Full set Core Client Indicator'!$A$3:$AB$3, 0))), \"\")","v":""},{"$f":"IF(I41<>\"\", IF(INDEX('Full set Core Client Indicator'!$A$3:$AB$351, MATCH(Selection_Hide2!$A41, 'Full set Core Client Indicator'!$A$3:$A$351, 0), MATCH(Selection_Hide2!J$5, 'Full set Core Client Indicator'!$A$3:$AB$3, 0))=\"\", \"\",  INDEX('Full set Core Client Indicator'!$A$3:$AB$351, MATCH(Selection_Hide2!$A41, 'Full set Core Client Indicator'!$A$3:$A$351, 0), MATCH(Selection_Hide2!J$5, 'Full set Core Client Indicator'!$A$3:$AB$3, 0))), \"\")","v":""},{"$f":"IF(J41<>\"\", IF(INDEX('Full set Core Client Indicator'!$A$3:$AB$351, MATCH(Selection_Hide2!$A41, 'Full set Core Client Indicator'!$A$3:$A$351, 0), MATCH(Selection_Hide2!K$5, 'Full set Core Client Indicator'!$A$3:$AB$3, 0))=\"\", \"\",  INDEX('Full set Core Client Indicator'!$A$3:$AB$351, MATCH(Selection_Hide2!$A41, 'Full set Core Client Indicator'!$A$3:$A$351, 0), MATCH(Selection_Hide2!K$5, 'Full set Core Client Indicator'!$A$3:$AB$3, 0))), \"\")","v":""},{"$f":"IF(K41<>\"\", IF(INDEX('Full set Core Client Indicator'!$A$3:$AB$351, MATCH(Selection_Hide2!$A41, 'Full set Core Client Indicator'!$A$3:$A$351, 0), MATCH(Selection_Hide2!L$5, 'Full set Core Client Indicator'!$A$3:$AB$3, 0))=\"\", \"\",  INDEX('Full set Core Client Indicator'!$A$3:$AB$351, MATCH(Selection_Hide2!$A41, 'Full set Core Client Indicator'!$A$3:$A$351, 0), MATCH(Selection_Hide2!L$5, 'Full set Core Client Indicator'!$A$3:$AB$3, 0))), \"\")","v":""},{"$f":"IF(L41<>\"\", IF(INDEX('Full set Core Client Indicator'!$A$3:$AB$351, MATCH(Selection_Hide2!$A41, 'Full set Core Client Indicator'!$A$3:$A$351, 0), MATCH(Selection_Hide2!M$5, 'Full set Core Client Indicator'!$A$3:$AB$3, 0))=\"\", \"\",  INDEX('Full set Core Client Indicator'!$A$3:$AB$351, MATCH(Selection_Hide2!$A41, 'Full set Core Client Indicator'!$A$3:$A$351, 0), MATCH(Selection_Hide2!M$5, 'Full set Core Client Indicator'!$A$3:$AB$3, 0))), \"\")","v":""},{"$f":"IF(M41<>\"\", IF(INDEX('Full set Core Client Indicator'!$A$3:$AB$351, MATCH(Selection_Hide2!$A41, 'Full set Core Client Indicator'!$A$3:$A$351, 0), MATCH(Selection_Hide2!N$5, 'Full set Core Client Indicator'!$A$3:$AB$3, 0))=\"\", \"\",  INDEX('Full set Core Client Indicator'!$A$3:$AB$351, MATCH(Selection_Hide2!$A41, 'Full set Core Client Indicator'!$A$3:$A$351, 0), MATCH(Selection_Hide2!N$5, 'Full set Core Client Indicator'!$A$3:$AB$3, 0))), \"\")","v":""},{"$f":"IF(N41<>\"\", IF(INDEX('Full set Core Client Indicator'!$A$3:$AB$351, MATCH(Selection_Hide2!$A41, 'Full set Core Client Indicator'!$A$3:$A$351, 0), MATCH(Selection_Hide2!O$5, 'Full set Core Client Indicator'!$A$3:$AB$3, 0))=\"\", \"\",  INDEX('Full set Core Client Indicator'!$A$3:$AB$351, MATCH(Selection_Hide2!$A41, 'Full set Core Client Indicator'!$A$3:$A$351, 0), MATCH(Selection_Hide2!O$5, 'Full set Core Client Indicator'!$A$3:$AB$3, 0))), \"\")","v":""},{"$f":"IF(O41<>\"\", IF(INDEX('Full set Core Client Indicator'!$A$3:$AB$351, MATCH(Selection_Hide2!$A41, 'Full set Core Client Indicator'!$A$3:$A$351, 0), MATCH(Selection_Hide2!P$5, 'Full set Core Client Indicator'!$A$3:$AB$3, 0))=\"\", \"\",  INDEX('Full set Core Client Indicator'!$A$3:$AB$351, MATCH(Selection_Hide2!$A41, 'Full set Core Client Indicator'!$A$3:$A$351, 0), MATCH(Selection_Hide2!P$5, 'Full set Core Client Indicator'!$A$3:$AB$3, 0))), \"\")","v":""},{"$f":"IF(P41<>\"\", IF(INDEX('Full set Core Client Indicator'!$A$3:$AB$351, MATCH(Selection_Hide2!$A41, 'Full set Core Client Indicator'!$A$3:$A$351, 0), MATCH(Selection_Hide2!Q$5, 'Full set Core Client Indicator'!$A$3:$AB$3, 0))=\"\", \"\",  INDEX('Full set Core Client Indicator'!$A$3:$AB$351, MATCH(Selection_Hide2!$A41, 'Full set Core Client Indicator'!$A$3:$A$351, 0), MATCH(Selection_Hide2!Q$5, 'Full set Core Client Indicator'!$A$3:$AB$3, 0))), \"\")","v":""},{"$f":"IF(Q41<>\"\", IF(INDEX('Full set Core Client Indicator'!$A$3:$AB$351, MATCH(Selection_Hide2!$A41, 'Full set Core Client Indicator'!$A$3:$A$351, 0), MATCH(Selection_Hide2!R$5, 'Full set Core Client Indicator'!$A$3:$AB$3, 0))=\"\", \"\",  INDEX('Full set Core Client Indicator'!$A$3:$AB$351, MATCH(Selection_Hide2!$A41, 'Full set Core Client Indicator'!$A$3:$A$351, 0), MATCH(Selection_Hide2!R$5, 'Full set Core Client Indicator'!$A$3:$AB$3, 0))), \"\")","v":""},{"$f":"IF(R41<>\"\", IF(INDEX('Full set Core Client Indicator'!$A$3:$AB$351, MATCH(Selection_Hide2!$A41, 'Full set Core Client Indicator'!$A$3:$A$351, 0), MATCH(Selection_Hide2!S$5, 'Full set Core Client Indicator'!$A$3:$AB$3, 0))=\"\", \"\",  INDEX('Full set Core Client Indicator'!$A$3:$AB$351, MATCH(Selection_Hide2!$A41, 'Full set Core Client Indicator'!$A$3:$A$351, 0), MATCH(Selection_Hide2!S$5, 'Full set Core Client Indicator'!$A$3:$AB$3, 0))), \"\")","v":""},{"$f":"IF(S41<>\"\", IF(INDEX('Full set Core Client Indicator'!$A$3:$AB$351, MATCH(Selection_Hide2!$A41, 'Full set Core Client Indicator'!$A$3:$A$351, 0), MATCH(Selection_Hide2!T$5, 'Full set Core Client Indicator'!$A$3:$AB$3, 0))=\"\", \"\",  INDEX('Full set Core Client Indicator'!$A$3:$AB$351, MATCH(Selection_Hide2!$A41, 'Full set Core Client Indicator'!$A$3:$A$351, 0), MATCH(Selection_Hide2!T$5, 'Full set Core Client Indicator'!$A$3:$AB$3, 0))), \"\")","v":""},{"$f":"IF(T41<>\"\", IF(INDEX('Full set Core Client Indicator'!$A$3:$AB$351, MATCH(Selection_Hide2!$A41, 'Full set Core Client Indicator'!$A$3:$A$351, 0), MATCH(Selection_Hide2!U$5, 'Full set Core Client Indicator'!$A$3:$AB$3, 0))=\"\", \"\",  INDEX('Full set Core Client Indicator'!$A$3:$AB$351, MATCH(Selection_Hide2!$A41, 'Full set Core Client Indicator'!$A$3:$A$351, 0), MATCH(Selection_Hide2!U$5, 'Full set Core Client Indicator'!$A$3:$AB$3, 0))), \"\")","v":""},{"$f":"IF(U41<>\"\", IF(INDEX('Full set Core Client Indicator'!$A$3:$AB$351, MATCH(Selection_Hide2!$A41, 'Full set Core Client Indicator'!$A$3:$A$351, 0), MATCH(Selection_Hide2!V$5, 'Full set Core Client Indicator'!$A$3:$AB$3, 0))=\"\", \"\",  INDEX('Full set Core Client Indicator'!$A$3:$AB$351, MATCH(Selection_Hide2!$A41, 'Full set Core Client Indicator'!$A$3:$A$351, 0), MATCH(Selection_Hide2!V$5, 'Full set Core Client Indicator'!$A$3:$AB$3, 0))), \"\")","v":""},{"$f":"IF(V41<>\"\", IF(INDEX('Full set Core Client Indicator'!$A$3:$AB$351, MATCH(Selection_Hide2!$A41, 'Full set Core Client Indicator'!$A$3:$A$351, 0), MATCH(Selection_Hide2!W$5, 'Full set Core Client Indicator'!$A$3:$AB$3, 0))=\"\", \"\",  INDEX('Full set Core Client Indicator'!$A$3:$AB$351, MATCH(Selection_Hide2!$A41, 'Full set Core Client Indicator'!$A$3:$A$351, 0), MATCH(Selection_Hide2!W$5, 'Full set Core Client Indicator'!$A$3:$AB$3, 0))), \"\")","v":""},{"$f":"IF(W41<>\"\", IF(INDEX('Full set Core Client Indicator'!$A$3:$AB$351, MATCH(Selection_Hide2!$A41, 'Full set Core Client Indicator'!$A$3:$A$351, 0), MATCH(Selection_Hide2!X$5, 'Full set Core Client Indicator'!$A$3:$AB$3, 0))=\"\", \"\",  INDEX('Full set Core Client Indicator'!$A$3:$AB$351, MATCH(Selection_Hide2!$A41, 'Full set Core Client Indicator'!$A$3:$A$351, 0), MATCH(Selection_Hide2!X$5, 'Full set Core Client Indicator'!$A$3:$AB$3, 0))), \"\")","v":""},{"$f":"IF(X41<>\"\", IF(INDEX('Full set Core Client Indicator'!$A$3:$AB$351, MATCH(Selection_Hide2!$A41, 'Full set Core Client Indicator'!$A$3:$A$351, 0), MATCH(Selection_Hide2!Y$5, 'Full set Core Client Indicator'!$A$3:$AB$3, 0))=\"\", \"\",  INDEX('Full set Core Client Indicator'!$A$3:$AB$351, MATCH(Selection_Hide2!$A41, 'Full set Core Client Indicator'!$A$3:$A$351, 0), MATCH(Selection_Hide2!Y$5, 'Full set Core Client Indicator'!$A$3:$AB$3, 0))), \"\")","v":""},{"$f":"IF(Y41<>\"\", IF(INDEX('Full set Core Client Indicator'!$A$3:$AB$351, MATCH(Selection_Hide2!$A41, 'Full set Core Client Indicator'!$A$3:$A$351, 0), MATCH(Selection_Hide2!Z$5, 'Full set Core Client Indicator'!$A$3:$AB$3, 0))=\"\", \"\",  INDEX('Full set Core Client Indicator'!$A$3:$AB$351, MATCH(Selection_Hide2!$A41, 'Full set Core Client Indicator'!$A$3:$A$351, 0), MATCH(Selection_Hide2!Z$5, 'Full set Core Client Indicator'!$A$3:$AB$3, 0))), \"\")","v":""},{"$f":"IF(Z41<>\"\", IF(INDEX('Full set Core Client Indicator'!$A$3:$AB$351, MATCH(Selection_Hide2!$A41, 'Full set Core Client Indicator'!$A$3:$A$351, 0), MATCH(Selection_Hide2!AA$5, 'Full set Core Client Indicator'!$A$3:$AB$3, 0))=\"\", \"\",  INDEX('Full set Core Client Indicator'!$A$3:$AB$351, MATCH(Selection_Hide2!$A41, 'Full set Core Client Indicator'!$A$3:$A$351, 0), MATCH(Selection_Hide2!AA$5, 'Full set Core Client Indicator'!$A$3:$AB$3, 0))), \"\")","v":""},{"$f":"IF(AA41<>\"\", IF(INDEX('Full set Core Client Indicator'!$A$3:$AB$351, MATCH(Selection_Hide2!$A41, 'Full set Core Client Indicator'!$A$3:$A$351, 0), MATCH(Selection_Hide2!AB$5, 'Full set Core Client Indicator'!$A$3:$AB$3, 0))=\"\", \"\",  INDEX('Full set Core Client Indicator'!$A$3:$AB$351, MATCH(Selection_Hide2!$A41, 'Full set Core Client Indicator'!$A$3:$A$351, 0), MATCH(Selection_Hide2!AB$5, 'Full set Core Client Indicator'!$A$3:$AB$3, 0))), \"\")","v":""}]
[{"$f":"IF(AND(Selection_Hide1!C40<>0, Selection_Hide1!C40<>\"Grand Total\"), Selection_Hide1!C40, \"\")","v":""},{"$f":"IF(A42<>\"\", IF(INDEX('Full set Core Client Indicator'!$A$3:$AB$351, MATCH(Selection_Hide2!$A42, 'Full set Core Client Indicator'!$A$3:$A$351, 0), MATCH(Selection_Hide2!B$5, 'Full set Core Client Indicator'!$A$3:$AB$3, 0))=\"\", \"\",  INDEX('Full set Core Client Indicator'!$A$3:$AB$351, MATCH(Selection_Hide2!$A42, 'Full set Core Client Indicator'!$A$3:$A$351, 0), MATCH(Selection_Hide2!B$5, 'Full set Core Client Indicator'!$A$3:$AB$3, 0))), \"\")","v":""},{"$f":"IF(B42<>\"\", IF(INDEX('Full set Core Client Indicator'!$A$3:$AB$351, MATCH(Selection_Hide2!$A42, 'Full set Core Client Indicator'!$A$3:$A$351, 0), MATCH(Selection_Hide2!C$5, 'Full set Core Client Indicator'!$A$3:$AB$3, 0))=\"\", \"\",  INDEX('Full set Core Client Indicator'!$A$3:$AB$351, MATCH(Selection_Hide2!$A42, 'Full set Core Client Indicator'!$A$3:$A$351, 0), MATCH(Selection_Hide2!C$5, 'Full set Core Client Indicator'!$A$3:$AB$3, 0))), \"\")","v":""},{"$f":"IF(C42<>\"\", IF(INDEX('Full set Core Client Indicator'!$A$3:$AB$351, MATCH(Selection_Hide2!$A42, 'Full set Core Client Indicator'!$A$3:$A$351, 0), MATCH(Selection_Hide2!D$5, 'Full set Core Client Indicator'!$A$3:$AB$3, 0))=\"\", \"\",  INDEX('Full set Core Client Indicator'!$A$3:$AB$351, MATCH(Selection_Hide2!$A42, 'Full set Core Client Indicator'!$A$3:$A$351, 0), MATCH(Selection_Hide2!D$5, 'Full set Core Client Indicator'!$A$3:$AB$3, 0))), \"\")","v":""},{"$f":"IF(D42<>\"\", IF(INDEX('Full set Core Client Indicator'!$A$3:$AB$351, MATCH(Selection_Hide2!$A42, 'Full set Core Client Indicator'!$A$3:$A$351, 0), MATCH(Selection_Hide2!E$5, 'Full set Core Client Indicator'!$A$3:$AB$3, 0))=\"\", \"\",  INDEX('Full set Core Client Indicator'!$A$3:$AB$351, MATCH(Selection_Hide2!$A42, 'Full set Core Client Indicator'!$A$3:$A$351, 0), MATCH(Selection_Hide2!E$5, 'Full set Core Client Indicator'!$A$3:$AB$3, 0))), \"\")","v":""},{"$f":"IF(E42<>\"\", IF(INDEX('Full set Core Client Indicator'!$A$3:$AB$351, MATCH(Selection_Hide2!$A42, 'Full set Core Client Indicator'!$A$3:$A$351, 0), MATCH(Selection_Hide2!F$5, 'Full set Core Client Indicator'!$A$3:$AB$3, 0))=\"\", \"\",  INDEX('Full set Core Client Indicator'!$A$3:$AB$351, MATCH(Selection_Hide2!$A42, 'Full set Core Client Indicator'!$A$3:$A$351, 0), MATCH(Selection_Hide2!F$5, 'Full set Core Client Indicator'!$A$3:$AB$3, 0))), \"\")","v":""},{"$f":"IF(F42<>\"\", IF(INDEX('Full set Core Client Indicator'!$A$3:$AB$351, MATCH(Selection_Hide2!$A42, 'Full set Core Client Indicator'!$A$3:$A$351, 0), MATCH(Selection_Hide2!G$5, 'Full set Core Client Indicator'!$A$3:$AB$3, 0))=\"\", \"\",  INDEX('Full set Core Client Indicator'!$A$3:$AB$351, MATCH(Selection_Hide2!$A42, 'Full set Core Client Indicator'!$A$3:$A$351, 0), MATCH(Selection_Hide2!G$5, 'Full set Core Client Indicator'!$A$3:$AB$3, 0))), \"\")","v":""},{"$f":"IF(G42<>\"\", IF(INDEX('Full set Core Client Indicator'!$A$3:$AB$351, MATCH(Selection_Hide2!$A42, 'Full set Core Client Indicator'!$A$3:$A$351, 0), MATCH(Selection_Hide2!H$5, 'Full set Core Client Indicator'!$A$3:$AB$3, 0))=\"\", \"\",  INDEX('Full set Core Client Indicator'!$A$3:$AB$351, MATCH(Selection_Hide2!$A42, 'Full set Core Client Indicator'!$A$3:$A$351, 0), MATCH(Selection_Hide2!H$5, 'Full set Core Client Indicator'!$A$3:$AB$3, 0))), \"\")","v":""},{"$f":"IF(H42<>\"\", IF(INDEX('Full set Core Client Indicator'!$A$3:$AB$351, MATCH(Selection_Hide2!$A42, 'Full set Core Client Indicator'!$A$3:$A$351, 0), MATCH(Selection_Hide2!I$5, 'Full set Core Client Indicator'!$A$3:$AB$3, 0))=\"\", \"\",  INDEX('Full set Core Client Indicator'!$A$3:$AB$351, MATCH(Selection_Hide2!$A42, 'Full set Core Client Indicator'!$A$3:$A$351, 0), MATCH(Selection_Hide2!I$5, 'Full set Core Client Indicator'!$A$3:$AB$3, 0))), \"\")","v":""},{"$f":"IF(I42<>\"\", IF(INDEX('Full set Core Client Indicator'!$A$3:$AB$351, MATCH(Selection_Hide2!$A42, 'Full set Core Client Indicator'!$A$3:$A$351, 0), MATCH(Selection_Hide2!J$5, 'Full set Core Client Indicator'!$A$3:$AB$3, 0))=\"\", \"\",  INDEX('Full set Core Client Indicator'!$A$3:$AB$351, MATCH(Selection_Hide2!$A42, 'Full set Core Client Indicator'!$A$3:$A$351, 0), MATCH(Selection_Hide2!J$5, 'Full set Core Client Indicator'!$A$3:$AB$3, 0))), \"\")","v":""},{"$f":"IF(J42<>\"\", IF(INDEX('Full set Core Client Indicator'!$A$3:$AB$351, MATCH(Selection_Hide2!$A42, 'Full set Core Client Indicator'!$A$3:$A$351, 0), MATCH(Selection_Hide2!K$5, 'Full set Core Client Indicator'!$A$3:$AB$3, 0))=\"\", \"\",  INDEX('Full set Core Client Indicator'!$A$3:$AB$351, MATCH(Selection_Hide2!$A42, 'Full set Core Client Indicator'!$A$3:$A$351, 0), MATCH(Selection_Hide2!K$5, 'Full set Core Client Indicator'!$A$3:$AB$3, 0))), \"\")","v":""},{"$f":"IF(K42<>\"\", IF(INDEX('Full set Core Client Indicator'!$A$3:$AB$351, MATCH(Selection_Hide2!$A42, 'Full set Core Client Indicator'!$A$3:$A$351, 0), MATCH(Selection_Hide2!L$5, 'Full set Core Client Indicator'!$A$3:$AB$3, 0))=\"\", \"\",  INDEX('Full set Core Client Indicator'!$A$3:$AB$351, MATCH(Selection_Hide2!$A42, 'Full set Core Client Indicator'!$A$3:$A$351, 0), MATCH(Selection_Hide2!L$5, 'Full set Core Client Indicator'!$A$3:$AB$3, 0))), \"\")","v":""},{"$f":"IF(L42<>\"\", IF(INDEX('Full set Core Client Indicator'!$A$3:$AB$351, MATCH(Selection_Hide2!$A42, 'Full set Core Client Indicator'!$A$3:$A$351, 0), MATCH(Selection_Hide2!M$5, 'Full set Core Client Indicator'!$A$3:$AB$3, 0))=\"\", \"\",  INDEX('Full set Core Client Indicator'!$A$3:$AB$351, MATCH(Selection_Hide2!$A42, 'Full set Core Client Indicator'!$A$3:$A$351, 0), MATCH(Selection_Hide2!M$5, 'Full set Core Client Indicator'!$A$3:$AB$3, 0))), \"\")","v":""},{"$f":"IF(M42<>\"\", IF(INDEX('Full set Core Client Indicator'!$A$3:$AB$351, MATCH(Selection_Hide2!$A42, 'Full set Core Client Indicator'!$A$3:$A$351, 0), MATCH(Selection_Hide2!N$5, 'Full set Core Client Indicator'!$A$3:$AB$3, 0))=\"\", \"\",  INDEX('Full set Core Client Indicator'!$A$3:$AB$351, MATCH(Selection_Hide2!$A42, 'Full set Core Client Indicator'!$A$3:$A$351, 0), MATCH(Selection_Hide2!N$5, 'Full set Core Client Indicator'!$A$3:$AB$3, 0))), \"\")","v":""},{"$f":"IF(N42<>\"\", IF(INDEX('Full set Core Client Indicator'!$A$3:$AB$351, MATCH(Selection_Hide2!$A42, 'Full set Core Client Indicator'!$A$3:$A$351, 0), MATCH(Selection_Hide2!O$5, 'Full set Core Client Indicator'!$A$3:$AB$3, 0))=\"\", \"\",  INDEX('Full set Core Client Indicator'!$A$3:$AB$351, MATCH(Selection_Hide2!$A42, 'Full set Core Client Indicator'!$A$3:$A$351, 0), MATCH(Selection_Hide2!O$5, 'Full set Core Client Indicator'!$A$3:$AB$3, 0))), \"\")","v":""},{"$f":"IF(O42<>\"\", IF(INDEX('Full set Core Client Indicator'!$A$3:$AB$351, MATCH(Selection_Hide2!$A42, 'Full set Core Client Indicator'!$A$3:$A$351, 0), MATCH(Selection_Hide2!P$5, 'Full set Core Client Indicator'!$A$3:$AB$3, 0))=\"\", \"\",  INDEX('Full set Core Client Indicator'!$A$3:$AB$351, MATCH(Selection_Hide2!$A42, 'Full set Core Client Indicator'!$A$3:$A$351, 0), MATCH(Selection_Hide2!P$5, 'Full set Core Client Indicator'!$A$3:$AB$3, 0))), \"\")","v":""},{"$f":"IF(P42<>\"\", IF(INDEX('Full set Core Client Indicator'!$A$3:$AB$351, MATCH(Selection_Hide2!$A42, 'Full set Core Client Indicator'!$A$3:$A$351, 0), MATCH(Selection_Hide2!Q$5, 'Full set Core Client Indicator'!$A$3:$AB$3, 0))=\"\", \"\",  INDEX('Full set Core Client Indicator'!$A$3:$AB$351, MATCH(Selection_Hide2!$A42, 'Full set Core Client Indicator'!$A$3:$A$351, 0), MATCH(Selection_Hide2!Q$5, 'Full set Core Client Indicator'!$A$3:$AB$3, 0))), \"\")","v":""},{"$f":"IF(Q42<>\"\", IF(INDEX('Full set Core Client Indicator'!$A$3:$AB$351, MATCH(Selection_Hide2!$A42, 'Full set Core Client Indicator'!$A$3:$A$351, 0), MATCH(Selection_Hide2!R$5, 'Full set Core Client Indicator'!$A$3:$AB$3, 0))=\"\", \"\",  INDEX('Full set Core Client Indicator'!$A$3:$AB$351, MATCH(Selection_Hide2!$A42, 'Full set Core Client Indicator'!$A$3:$A$351, 0), MATCH(Selection_Hide2!R$5, 'Full set Core Client Indicator'!$A$3:$AB$3, 0))), \"\")","v":""},{"$f":"IF(R42<>\"\", IF(INDEX('Full set Core Client Indicator'!$A$3:$AB$351, MATCH(Selection_Hide2!$A42, 'Full set Core Client Indicator'!$A$3:$A$351, 0), MATCH(Selection_Hide2!S$5, 'Full set Core Client Indicator'!$A$3:$AB$3, 0))=\"\", \"\",  INDEX('Full set Core Client Indicator'!$A$3:$AB$351, MATCH(Selection_Hide2!$A42, 'Full set Core Client Indicator'!$A$3:$A$351, 0), MATCH(Selection_Hide2!S$5, 'Full set Core Client Indicator'!$A$3:$AB$3, 0))), \"\")","v":""},{"$f":"IF(S42<>\"\", IF(INDEX('Full set Core Client Indicator'!$A$3:$AB$351, MATCH(Selection_Hide2!$A42, 'Full set Core Client Indicator'!$A$3:$A$351, 0), MATCH(Selection_Hide2!T$5, 'Full set Core Client Indicator'!$A$3:$AB$3, 0))=\"\", \"\",  INDEX('Full set Core Client Indicator'!$A$3:$AB$351, MATCH(Selection_Hide2!$A42, 'Full set Core Client Indicator'!$A$3:$A$351, 0), MATCH(Selection_Hide2!T$5, 'Full set Core Client Indicator'!$A$3:$AB$3, 0))), \"\")","v":""},{"$f":"IF(T42<>\"\", IF(INDEX('Full set Core Client Indicator'!$A$3:$AB$351, MATCH(Selection_Hide2!$A42, 'Full set Core Client Indicator'!$A$3:$A$351, 0), MATCH(Selection_Hide2!U$5, 'Full set Core Client Indicator'!$A$3:$AB$3, 0))=\"\", \"\",  INDEX('Full set Core Client Indicator'!$A$3:$AB$351, MATCH(Selection_Hide2!$A42, 'Full set Core Client Indicator'!$A$3:$A$351, 0), MATCH(Selection_Hide2!U$5, 'Full set Core Client Indicator'!$A$3:$AB$3, 0))), \"\")","v":""},{"$f":"IF(U42<>\"\", IF(INDEX('Full set Core Client Indicator'!$A$3:$AB$351, MATCH(Selection_Hide2!$A42, 'Full set Core Client Indicator'!$A$3:$A$351, 0), MATCH(Selection_Hide2!V$5, 'Full set Core Client Indicator'!$A$3:$AB$3, 0))=\"\", \"\",  INDEX('Full set Core Client Indicator'!$A$3:$AB$351, MATCH(Selection_Hide2!$A42, 'Full set Core Client Indicator'!$A$3:$A$351, 0), MATCH(Selection_Hide2!V$5, 'Full set Core Client Indicator'!$A$3:$AB$3, 0))), \"\")","v":""},{"$f":"IF(V42<>\"\", IF(INDEX('Full set Core Client Indicator'!$A$3:$AB$351, MATCH(Selection_Hide2!$A42, 'Full set Core Client Indicator'!$A$3:$A$351, 0), MATCH(Selection_Hide2!W$5, 'Full set Core Client Indicator'!$A$3:$AB$3, 0))=\"\", \"\",  INDEX('Full set Core Client Indicator'!$A$3:$AB$351, MATCH(Selection_Hide2!$A42, 'Full set Core Client Indicator'!$A$3:$A$351, 0), MATCH(Selection_Hide2!W$5, 'Full set Core Client Indicator'!$A$3:$AB$3, 0))), \"\")","v":""},{"$f":"IF(W42<>\"\", IF(INDEX('Full set Core Client Indicator'!$A$3:$AB$351, MATCH(Selection_Hide2!$A42, 'Full set Core Client Indicator'!$A$3:$A$351, 0), MATCH(Selection_Hide2!X$5, 'Full set Core Client Indicator'!$A$3:$AB$3, 0))=\"\", \"\",  INDEX('Full set Core Client Indicator'!$A$3:$AB$351, MATCH(Selection_Hide2!$A42, 'Full set Core Client Indicator'!$A$3:$A$351, 0), MATCH(Selection_Hide2!X$5, 'Full set Core Client Indicator'!$A$3:$AB$3, 0))), \"\")","v":""},{"$f":"IF(X42<>\"\", IF(INDEX('Full set Core Client Indicator'!$A$3:$AB$351, MATCH(Selection_Hide2!$A42, 'Full set Core Client Indicator'!$A$3:$A$351, 0), MATCH(Selection_Hide2!Y$5, 'Full set Core Client Indicator'!$A$3:$AB$3, 0))=\"\", \"\",  INDEX('Full set Core Client Indicator'!$A$3:$AB$351, MATCH(Selection_Hide2!$A42, 'Full set Core Client Indicator'!$A$3:$A$351, 0), MATCH(Selection_Hide2!Y$5, 'Full set Core Client Indicator'!$A$3:$AB$3, 0))), \"\")","v":""},{"$f":"IF(Y42<>\"\", IF(INDEX('Full set Core Client Indicator'!$A$3:$AB$351, MATCH(Selection_Hide2!$A42, 'Full set Core Client Indicator'!$A$3:$A$351, 0), MATCH(Selection_Hide2!Z$5, 'Full set Core Client Indicator'!$A$3:$AB$3, 0))=\"\", \"\",  INDEX('Full set Core Client Indicator'!$A$3:$AB$351, MATCH(Selection_Hide2!$A42, 'Full set Core Client Indicator'!$A$3:$A$351, 0), MATCH(Selection_Hide2!Z$5, 'Full set Core Client Indicator'!$A$3:$AB$3, 0))), \"\")","v":""},{"$f":"IF(Z42<>\"\", IF(INDEX('Full set Core Client Indicator'!$A$3:$AB$351, MATCH(Selection_Hide2!$A42, 'Full set Core Client Indicator'!$A$3:$A$351, 0), MATCH(Selection_Hide2!AA$5, 'Full set Core Client Indicator'!$A$3:$AB$3, 0))=\"\", \"\",  INDEX('Full set Core Client Indicator'!$A$3:$AB$351, MATCH(Selection_Hide2!$A42, 'Full set Core Client Indicator'!$A$3:$A$351, 0), MATCH(Selection_Hide2!AA$5, 'Full set Core Client Indicator'!$A$3:$AB$3, 0))), \"\")","v":""},{"$f":"IF(AA42<>\"\", IF(INDEX('Full set Core Client Indicator'!$A$3:$AB$351, MATCH(Selection_Hide2!$A42, 'Full set Core Client Indicator'!$A$3:$A$351, 0), MATCH(Selection_Hide2!AB$5, 'Full set Core Client Indicator'!$A$3:$AB$3, 0))=\"\", \"\",  INDEX('Full set Core Client Indicator'!$A$3:$AB$351, MATCH(Selection_Hide2!$A42, 'Full set Core Client Indicator'!$A$3:$A$351, 0), MATCH(Selection_Hide2!AB$5, 'Full set Core Client Indicator'!$A$3:$AB$3, 0))), \"\")","v":""}]
[{"$f":"IF(AND(Selection_Hide1!C41<>0, Selection_Hide1!C41<>\"Grand Total\"), Selection_Hide1!C41, \"\")","v":""},{"$f":"IF(A43<>\"\", IF(INDEX('Full set Core Client Indicator'!$A$3:$AB$351, MATCH(Selection_Hide2!$A43, 'Full set Core Client Indicator'!$A$3:$A$351, 0), MATCH(Selection_Hide2!B$5, 'Full set Core Client Indicator'!$A$3:$AB$3, 0))=\"\", \"\",  INDEX('Full set Core Client Indicator'!$A$3:$AB$351, MATCH(Selection_Hide2!$A43, 'Full set Core Client Indicator'!$A$3:$A$351, 0), MATCH(Selection_Hide2!B$5, 'Full set Core Client Indicator'!$A$3:$AB$3, 0))), \"\")","v":""},{"$f":"IF(B43<>\"\", IF(INDEX('Full set Core Client Indicator'!$A$3:$AB$351, MATCH(Selection_Hide2!$A43, 'Full set Core Client Indicator'!$A$3:$A$351, 0), MATCH(Selection_Hide2!C$5, 'Full set Core Client Indicator'!$A$3:$AB$3, 0))=\"\", \"\",  INDEX('Full set Core Client Indicator'!$A$3:$AB$351, MATCH(Selection_Hide2!$A43, 'Full set Core Client Indicator'!$A$3:$A$351, 0), MATCH(Selection_Hide2!C$5, 'Full set Core Client Indicator'!$A$3:$AB$3, 0))), \"\")","v":""},{"$f":"IF(C43<>\"\", IF(INDEX('Full set Core Client Indicator'!$A$3:$AB$351, MATCH(Selection_Hide2!$A43, 'Full set Core Client Indicator'!$A$3:$A$351, 0), MATCH(Selection_Hide2!D$5, 'Full set Core Client Indicator'!$A$3:$AB$3, 0))=\"\", \"\",  INDEX('Full set Core Client Indicator'!$A$3:$AB$351, MATCH(Selection_Hide2!$A43, 'Full set Core Client Indicator'!$A$3:$A$351, 0), MATCH(Selection_Hide2!D$5, 'Full set Core Client Indicator'!$A$3:$AB$3, 0))), \"\")","v":""},{"$f":"IF(D43<>\"\", IF(INDEX('Full set Core Client Indicator'!$A$3:$AB$351, MATCH(Selection_Hide2!$A43, 'Full set Core Client Indicator'!$A$3:$A$351, 0), MATCH(Selection_Hide2!E$5, 'Full set Core Client Indicator'!$A$3:$AB$3, 0))=\"\", \"\",  INDEX('Full set Core Client Indicator'!$A$3:$AB$351, MATCH(Selection_Hide2!$A43, 'Full set Core Client Indicator'!$A$3:$A$351, 0), MATCH(Selection_Hide2!E$5, 'Full set Core Client Indicator'!$A$3:$AB$3, 0))), \"\")","v":""},{"$f":"IF(E43<>\"\", IF(INDEX('Full set Core Client Indicator'!$A$3:$AB$351, MATCH(Selection_Hide2!$A43, 'Full set Core Client Indicator'!$A$3:$A$351, 0), MATCH(Selection_Hide2!F$5, 'Full set Core Client Indicator'!$A$3:$AB$3, 0))=\"\", \"\",  INDEX('Full set Core Client Indicator'!$A$3:$AB$351, MATCH(Selection_Hide2!$A43, 'Full set Core Client Indicator'!$A$3:$A$351, 0), MATCH(Selection_Hide2!F$5, 'Full set Core Client Indicator'!$A$3:$AB$3, 0))), \"\")","v":""},{"$f":"IF(F43<>\"\", IF(INDEX('Full set Core Client Indicator'!$A$3:$AB$351, MATCH(Selection_Hide2!$A43, 'Full set Core Client Indicator'!$A$3:$A$351, 0), MATCH(Selection_Hide2!G$5, 'Full set Core Client Indicator'!$A$3:$AB$3, 0))=\"\", \"\",  INDEX('Full set Core Client Indicator'!$A$3:$AB$351, MATCH(Selection_Hide2!$A43, 'Full set Core Client Indicator'!$A$3:$A$351, 0), MATCH(Selection_Hide2!G$5, 'Full set Core Client Indicator'!$A$3:$AB$3, 0))), \"\")","v":""},{"$f":"IF(G43<>\"\", IF(INDEX('Full set Core Client Indicator'!$A$3:$AB$351, MATCH(Selection_Hide2!$A43, 'Full set Core Client Indicator'!$A$3:$A$351, 0), MATCH(Selection_Hide2!H$5, 'Full set Core Client Indicator'!$A$3:$AB$3, 0))=\"\", \"\",  INDEX('Full set Core Client Indicator'!$A$3:$AB$351, MATCH(Selection_Hide2!$A43, 'Full set Core Client Indicator'!$A$3:$A$351, 0), MATCH(Selection_Hide2!H$5, 'Full set Core Client Indicator'!$A$3:$AB$3, 0))), \"\")","v":""},{"$f":"IF(H43<>\"\", IF(INDEX('Full set Core Client Indicator'!$A$3:$AB$351, MATCH(Selection_Hide2!$A43, 'Full set Core Client Indicator'!$A$3:$A$351, 0), MATCH(Selection_Hide2!I$5, 'Full set Core Client Indicator'!$A$3:$AB$3, 0))=\"\", \"\",  INDEX('Full set Core Client Indicator'!$A$3:$AB$351, MATCH(Selection_Hide2!$A43, 'Full set Core Client Indicator'!$A$3:$A$351, 0), MATCH(Selection_Hide2!I$5, 'Full set Core Client Indicator'!$A$3:$AB$3, 0))), \"\")","v":""},{"$f":"IF(I43<>\"\", IF(INDEX('Full set Core Client Indicator'!$A$3:$AB$351, MATCH(Selection_Hide2!$A43, 'Full set Core Client Indicator'!$A$3:$A$351, 0), MATCH(Selection_Hide2!J$5, 'Full set Core Client Indicator'!$A$3:$AB$3, 0))=\"\", \"\",  INDEX('Full set Core Client Indicator'!$A$3:$AB$351, MATCH(Selection_Hide2!$A43, 'Full set Core Client Indicator'!$A$3:$A$351, 0), MATCH(Selection_Hide2!J$5, 'Full set Core Client Indicator'!$A$3:$AB$3, 0))), \"\")","v":""},{"$f":"IF(J43<>\"\", IF(INDEX('Full set Core Client Indicator'!$A$3:$AB$351, MATCH(Selection_Hide2!$A43, 'Full set Core Client Indicator'!$A$3:$A$351, 0), MATCH(Selection_Hide2!K$5, 'Full set Core Client Indicator'!$A$3:$AB$3, 0))=\"\", \"\",  INDEX('Full set Core Client Indicator'!$A$3:$AB$351, MATCH(Selection_Hide2!$A43, 'Full set Core Client Indicator'!$A$3:$A$351, 0), MATCH(Selection_Hide2!K$5, 'Full set Core Client Indicator'!$A$3:$AB$3, 0))), \"\")","v":""},{"$f":"IF(K43<>\"\", IF(INDEX('Full set Core Client Indicator'!$A$3:$AB$351, MATCH(Selection_Hide2!$A43, 'Full set Core Client Indicator'!$A$3:$A$351, 0), MATCH(Selection_Hide2!L$5, 'Full set Core Client Indicator'!$A$3:$AB$3, 0))=\"\", \"\",  INDEX('Full set Core Client Indicator'!$A$3:$AB$351, MATCH(Selection_Hide2!$A43, 'Full set Core Client Indicator'!$A$3:$A$351, 0), MATCH(Selection_Hide2!L$5, 'Full set Core Client Indicator'!$A$3:$AB$3, 0))), \"\")","v":""},{"$f":"IF(L43<>\"\", IF(INDEX('Full set Core Client Indicator'!$A$3:$AB$351, MATCH(Selection_Hide2!$A43, 'Full set Core Client Indicator'!$A$3:$A$351, 0), MATCH(Selection_Hide2!M$5, 'Full set Core Client Indicator'!$A$3:$AB$3, 0))=\"\", \"\",  INDEX('Full set Core Client Indicator'!$A$3:$AB$351, MATCH(Selection_Hide2!$A43, 'Full set Core Client Indicator'!$A$3:$A$351, 0), MATCH(Selection_Hide2!M$5, 'Full set Core Client Indicator'!$A$3:$AB$3, 0))), \"\")","v":""},{"$f":"IF(M43<>\"\", IF(INDEX('Full set Core Client Indicator'!$A$3:$AB$351, MATCH(Selection_Hide2!$A43, 'Full set Core Client Indicator'!$A$3:$A$351, 0), MATCH(Selection_Hide2!N$5, 'Full set Core Client Indicator'!$A$3:$AB$3, 0))=\"\", \"\",  INDEX('Full set Core Client Indicator'!$A$3:$AB$351, MATCH(Selection_Hide2!$A43, 'Full set Core Client Indicator'!$A$3:$A$351, 0), MATCH(Selection_Hide2!N$5, 'Full set Core Client Indicator'!$A$3:$AB$3, 0))), \"\")","v":""},{"$f":"IF(N43<>\"\", IF(INDEX('Full set Core Client Indicator'!$A$3:$AB$351, MATCH(Selection_Hide2!$A43, 'Full set Core Client Indicator'!$A$3:$A$351, 0), MATCH(Selection_Hide2!O$5, 'Full set Core Client Indicator'!$A$3:$AB$3, 0))=\"\", \"\",  INDEX('Full set Core Client Indicator'!$A$3:$AB$351, MATCH(Selection_Hide2!$A43, 'Full set Core Client Indicator'!$A$3:$A$351, 0), MATCH(Selection_Hide2!O$5, 'Full set Core Client Indicator'!$A$3:$AB$3, 0))), \"\")","v":""},{"$f":"IF(O43<>\"\", IF(INDEX('Full set Core Client Indicator'!$A$3:$AB$351, MATCH(Selection_Hide2!$A43, 'Full set Core Client Indicator'!$A$3:$A$351, 0), MATCH(Selection_Hide2!P$5, 'Full set Core Client Indicator'!$A$3:$AB$3, 0))=\"\", \"\",  INDEX('Full set Core Client Indicator'!$A$3:$AB$351, MATCH(Selection_Hide2!$A43, 'Full set Core Client Indicator'!$A$3:$A$351, 0), MATCH(Selection_Hide2!P$5, 'Full set Core Client Indicator'!$A$3:$AB$3, 0))), \"\")","v":""},{"$f":"IF(P43<>\"\", IF(INDEX('Full set Core Client Indicator'!$A$3:$AB$351, MATCH(Selection_Hide2!$A43, 'Full set Core Client Indicator'!$A$3:$A$351, 0), MATCH(Selection_Hide2!Q$5, 'Full set Core Client Indicator'!$A$3:$AB$3, 0))=\"\", \"\",  INDEX('Full set Core Client Indicator'!$A$3:$AB$351, MATCH(Selection_Hide2!$A43, 'Full set Core Client Indicator'!$A$3:$A$351, 0), MATCH(Selection_Hide2!Q$5, 'Full set Core Client Indicator'!$A$3:$AB$3, 0))), \"\")","v":""},{"$f":"IF(Q43<>\"\", IF(INDEX('Full set Core Client Indicator'!$A$3:$AB$351, MATCH(Selection_Hide2!$A43, 'Full set Core Client Indicator'!$A$3:$A$351, 0), MATCH(Selection_Hide2!R$5, 'Full set Core Client Indicator'!$A$3:$AB$3, 0))=\"\", \"\",  INDEX('Full set Core Client Indicator'!$A$3:$AB$351, MATCH(Selection_Hide2!$A43, 'Full set Core Client Indicator'!$A$3:$A$351, 0), MATCH(Selection_Hide2!R$5, 'Full set Core Client Indicator'!$A$3:$AB$3, 0))), \"\")","v":""},{"$f":"IF(R43<>\"\", IF(INDEX('Full set Core Client Indicator'!$A$3:$AB$351, MATCH(Selection_Hide2!$A43, 'Full set Core Client Indicator'!$A$3:$A$351, 0), MATCH(Selection_Hide2!S$5, 'Full set Core Client Indicator'!$A$3:$AB$3, 0))=\"\", \"\",  INDEX('Full set Core Client Indicator'!$A$3:$AB$351, MATCH(Selection_Hide2!$A43, 'Full set Core Client Indicator'!$A$3:$A$351, 0), MATCH(Selection_Hide2!S$5, 'Full set Core Client Indicator'!$A$3:$AB$3, 0))), \"\")","v":""},{"$f":"IF(S43<>\"\", IF(INDEX('Full set Core Client Indicator'!$A$3:$AB$351, MATCH(Selection_Hide2!$A43, 'Full set Core Client Indicator'!$A$3:$A$351, 0), MATCH(Selection_Hide2!T$5, 'Full set Core Client Indicator'!$A$3:$AB$3, 0))=\"\", \"\",  INDEX('Full set Core Client Indicator'!$A$3:$AB$351, MATCH(Selection_Hide2!$A43, 'Full set Core Client Indicator'!$A$3:$A$351, 0), MATCH(Selection_Hide2!T$5, 'Full set Core Client Indicator'!$A$3:$AB$3, 0))), \"\")","v":""},{"$f":"IF(T43<>\"\", IF(INDEX('Full set Core Client Indicator'!$A$3:$AB$351, MATCH(Selection_Hide2!$A43, 'Full set Core Client Indicator'!$A$3:$A$351, 0), MATCH(Selection_Hide2!U$5, 'Full set Core Client Indicator'!$A$3:$AB$3, 0))=\"\", \"\",  INDEX('Full set Core Client Indicator'!$A$3:$AB$351, MATCH(Selection_Hide2!$A43, 'Full set Core Client Indicator'!$A$3:$A$351, 0), MATCH(Selection_Hide2!U$5, 'Full set Core Client Indicator'!$A$3:$AB$3, 0))), \"\")","v":""},{"$f":"IF(U43<>\"\", IF(INDEX('Full set Core Client Indicator'!$A$3:$AB$351, MATCH(Selection_Hide2!$A43, 'Full set Core Client Indicator'!$A$3:$A$351, 0), MATCH(Selection_Hide2!V$5, 'Full set Core Client Indicator'!$A$3:$AB$3, 0))=\"\", \"\",  INDEX('Full set Core Client Indicator'!$A$3:$AB$351, MATCH(Selection_Hide2!$A43, 'Full set Core Client Indicator'!$A$3:$A$351, 0), MATCH(Selection_Hide2!V$5, 'Full set Core Client Indicator'!$A$3:$AB$3, 0))), \"\")","v":""},{"$f":"IF(V43<>\"\", IF(INDEX('Full set Core Client Indicator'!$A$3:$AB$351, MATCH(Selection_Hide2!$A43, 'Full set Core Client Indicator'!$A$3:$A$351, 0), MATCH(Selection_Hide2!W$5, 'Full set Core Client Indicator'!$A$3:$AB$3, 0))=\"\", \"\",  INDEX('Full set Core Client Indicator'!$A$3:$AB$351, MATCH(Selection_Hide2!$A43, 'Full set Core Client Indicator'!$A$3:$A$351, 0), MATCH(Selection_Hide2!W$5, 'Full set Core Client Indicator'!$A$3:$AB$3, 0))), \"\")","v":""},{"$f":"IF(W43<>\"\", IF(INDEX('Full set Core Client Indicator'!$A$3:$AB$351, MATCH(Selection_Hide2!$A43, 'Full set Core Client Indicator'!$A$3:$A$351, 0), MATCH(Selection_Hide2!X$5, 'Full set Core Client Indicator'!$A$3:$AB$3, 0))=\"\", \"\",  INDEX('Full set Core Client Indicator'!$A$3:$AB$351, MATCH(Selection_Hide2!$A43, 'Full set Core Client Indicator'!$A$3:$A$351, 0), MATCH(Selection_Hide2!X$5, 'Full set Core Client Indicator'!$A$3:$AB$3, 0))), \"\")","v":""},{"$f":"IF(X43<>\"\", IF(INDEX('Full set Core Client Indicator'!$A$3:$AB$351, MATCH(Selection_Hide2!$A43, 'Full set Core Client Indicator'!$A$3:$A$351, 0), MATCH(Selection_Hide2!Y$5, 'Full set Core Client Indicator'!$A$3:$AB$3, 0))=\"\", \"\",  INDEX('Full set Core Client Indicator'!$A$3:$AB$351, MATCH(Selection_Hide2!$A43, 'Full set Core Client Indicator'!$A$3:$A$351, 0), MATCH(Selection_Hide2!Y$5, 'Full set Core Client Indicator'!$A$3:$AB$3, 0))), \"\")","v":""},{"$f":"IF(Y43<>\"\", IF(INDEX('Full set Core Client Indicator'!$A$3:$AB$351, MATCH(Selection_Hide2!$A43, 'Full set Core Client Indicator'!$A$3:$A$351, 0), MATCH(Selection_Hide2!Z$5, 'Full set Core Client Indicator'!$A$3:$AB$3, 0))=\"\", \"\",  INDEX('Full set Core Client Indicator'!$A$3:$AB$351, MATCH(Selection_Hide2!$A43, 'Full set Core Client Indicator'!$A$3:$A$351, 0), MATCH(Selection_Hide2!Z$5, 'Full set Core Client Indicator'!$A$3:$AB$3, 0))), \"\")","v":""},{"$f":"IF(Z43<>\"\", IF(INDEX('Full set Core Client Indicator'!$A$3:$AB$351, MATCH(Selection_Hide2!$A43, 'Full set Core Client Indicator'!$A$3:$A$351, 0), MATCH(Selection_Hide2!AA$5, 'Full set Core Client Indicator'!$A$3:$AB$3, 0))=\"\", \"\",  INDEX('Full set Core Client Indicator'!$A$3:$AB$351, MATCH(Selection_Hide2!$A43, 'Full set Core Client Indicator'!$A$3:$A$351, 0), MATCH(Selection_Hide2!AA$5, 'Full set Core Client Indicator'!$A$3:$AB$3, 0))), \"\")","v":""},{"$f":"IF(AA43<>\"\", IF(INDEX('Full set Core Client Indicator'!$A$3:$AB$351, MATCH(Selection_Hide2!$A43, 'Full set Core Client Indicator'!$A$3:$A$351, 0), MATCH(Selection_Hide2!AB$5, 'Full set Core Client Indicator'!$A$3:$AB$3, 0))=\"\", \"\",  INDEX('Full set Core Client Indicator'!$A$3:$AB$351, MATCH(Selection_Hide2!$A43, 'Full set Core Client Indicator'!$A$3:$A$351, 0), MATCH(Selection_Hide2!AB$5, 'Full set Core Client Indicator'!$A$3:$AB$3, 0))), \"\")","v":""}]
[{"$f":"IF(AND(Selection_Hide1!C42<>0, Selection_Hide1!C42<>\"Grand Total\"), Selection_Hide1!C42, \"\")","v":""},{"$f":"IF(A44<>\"\", IF(INDEX('Full set Core Client Indicator'!$A$3:$AB$351, MATCH(Selection_Hide2!$A44, 'Full set Core Client Indicator'!$A$3:$A$351, 0), MATCH(Selection_Hide2!B$5, 'Full set Core Client Indicator'!$A$3:$AB$3, 0))=\"\", \"\",  INDEX('Full set Core Client Indicator'!$A$3:$AB$351, MATCH(Selection_Hide2!$A44, 'Full set Core Client Indicator'!$A$3:$A$351, 0), MATCH(Selection_Hide2!B$5, 'Full set Core Client Indicator'!$A$3:$AB$3, 0))), \"\")","v":""},{"$f":"IF(B44<>\"\", IF(INDEX('Full set Core Client Indicator'!$A$3:$AB$351, MATCH(Selection_Hide2!$A44, 'Full set Core Client Indicator'!$A$3:$A$351, 0), MATCH(Selection_Hide2!C$5, 'Full set Core Client Indicator'!$A$3:$AB$3, 0))=\"\", \"\",  INDEX('Full set Core Client Indicator'!$A$3:$AB$351, MATCH(Selection_Hide2!$A44, 'Full set Core Client Indicator'!$A$3:$A$351, 0), MATCH(Selection_Hide2!C$5, 'Full set Core Client Indicator'!$A$3:$AB$3, 0))), \"\")","v":""},{"$f":"IF(C44<>\"\", IF(INDEX('Full set Core Client Indicator'!$A$3:$AB$351, MATCH(Selection_Hide2!$A44, 'Full set Core Client Indicator'!$A$3:$A$351, 0), MATCH(Selection_Hide2!D$5, 'Full set Core Client Indicator'!$A$3:$AB$3, 0))=\"\", \"\",  INDEX('Full set Core Client Indicator'!$A$3:$AB$351, MATCH(Selection_Hide2!$A44, 'Full set Core Client Indicator'!$A$3:$A$351, 0), MATCH(Selection_Hide2!D$5, 'Full set Core Client Indicator'!$A$3:$AB$3, 0))), \"\")","v":""},{"$f":"IF(D44<>\"\", IF(INDEX('Full set Core Client Indicator'!$A$3:$AB$351, MATCH(Selection_Hide2!$A44, 'Full set Core Client Indicator'!$A$3:$A$351, 0), MATCH(Selection_Hide2!E$5, 'Full set Core Client Indicator'!$A$3:$AB$3, 0))=\"\", \"\",  INDEX('Full set Core Client Indicator'!$A$3:$AB$351, MATCH(Selection_Hide2!$A44, 'Full set Core Client Indicator'!$A$3:$A$351, 0), MATCH(Selection_Hide2!E$5, 'Full set Core Client Indicator'!$A$3:$AB$3, 0))), \"\")","v":""},{"$f":"IF(E44<>\"\", IF(INDEX('Full set Core Client Indicator'!$A$3:$AB$351, MATCH(Selection_Hide2!$A44, 'Full set Core Client Indicator'!$A$3:$A$351, 0), MATCH(Selection_Hide2!F$5, 'Full set Core Client Indicator'!$A$3:$AB$3, 0))=\"\", \"\",  INDEX('Full set Core Client Indicator'!$A$3:$AB$351, MATCH(Selection_Hide2!$A44, 'Full set Core Client Indicator'!$A$3:$A$351, 0), MATCH(Selection_Hide2!F$5, 'Full set Core Client Indicator'!$A$3:$AB$3, 0))), \"\")","v":""},{"$f":"IF(F44<>\"\", IF(INDEX('Full set Core Client Indicator'!$A$3:$AB$351, MATCH(Selection_Hide2!$A44, 'Full set Core Client Indicator'!$A$3:$A$351, 0), MATCH(Selection_Hide2!G$5, 'Full set Core Client Indicator'!$A$3:$AB$3, 0))=\"\", \"\",  INDEX('Full set Core Client Indicator'!$A$3:$AB$351, MATCH(Selection_Hide2!$A44, 'Full set Core Client Indicator'!$A$3:$A$351, 0), MATCH(Selection_Hide2!G$5, 'Full set Core Client Indicator'!$A$3:$AB$3, 0))), \"\")","v":""},{"$f":"IF(G44<>\"\", IF(INDEX('Full set Core Client Indicator'!$A$3:$AB$351, MATCH(Selection_Hide2!$A44, 'Full set Core Client Indicator'!$A$3:$A$351, 0), MATCH(Selection_Hide2!H$5, 'Full set Core Client Indicator'!$A$3:$AB$3, 0))=\"\", \"\",  INDEX('Full set Core Client Indicator'!$A$3:$AB$351, MATCH(Selection_Hide2!$A44, 'Full set Core Client Indicator'!$A$3:$A$351, 0), MATCH(Selection_Hide2!H$5, 'Full set Core Client Indicator'!$A$3:$AB$3, 0))), \"\")","v":""},{"$f":"IF(H44<>\"\", IF(INDEX('Full set Core Client Indicator'!$A$3:$AB$351, MATCH(Selection_Hide2!$A44, 'Full set Core Client Indicator'!$A$3:$A$351, 0), MATCH(Selection_Hide2!I$5, 'Full set Core Client Indicator'!$A$3:$AB$3, 0))=\"\", \"\",  INDEX('Full set Core Client Indicator'!$A$3:$AB$351, MATCH(Selection_Hide2!$A44, 'Full set Core Client Indicator'!$A$3:$A$351, 0), MATCH(Selection_Hide2!I$5, 'Full set Core Client Indicator'!$A$3:$AB$3, 0))), \"\")","v":""},{"$f":"IF(I44<>\"\", IF(INDEX('Full set Core Client Indicator'!$A$3:$AB$351, MATCH(Selection_Hide2!$A44, 'Full set Core Client Indicator'!$A$3:$A$351, 0), MATCH(Selection_Hide2!J$5, 'Full set Core Client Indicator'!$A$3:$AB$3, 0))=\"\", \"\",  INDEX('Full set Core Client Indicator'!$A$3:$AB$351, MATCH(Selection_Hide2!$A44, 'Full set Core Client Indicator'!$A$3:$A$351, 0), MATCH(Selection_Hide2!J$5, 'Full set Core Client Indicator'!$A$3:$AB$3, 0))), \"\")","v":""},{"$f":"IF(J44<>\"\", IF(INDEX('Full set Core Client Indicator'!$A$3:$AB$351, MATCH(Selection_Hide2!$A44, 'Full set Core Client Indicator'!$A$3:$A$351, 0), MATCH(Selection_Hide2!K$5, 'Full set Core Client Indicator'!$A$3:$AB$3, 0))=\"\", \"\",  INDEX('Full set Core Client Indicator'!$A$3:$AB$351, MATCH(Selection_Hide2!$A44, 'Full set Core Client Indicator'!$A$3:$A$351, 0), MATCH(Selection_Hide2!K$5, 'Full set Core Client Indicator'!$A$3:$AB$3, 0))), \"\")","v":""},{"$f":"IF(K44<>\"\", IF(INDEX('Full set Core Client Indicator'!$A$3:$AB$351, MATCH(Selection_Hide2!$A44, 'Full set Core Client Indicator'!$A$3:$A$351, 0), MATCH(Selection_Hide2!L$5, 'Full set Core Client Indicator'!$A$3:$AB$3, 0))=\"\", \"\",  INDEX('Full set Core Client Indicator'!$A$3:$AB$351, MATCH(Selection_Hide2!$A44, 'Full set Core Client Indicator'!$A$3:$A$351, 0), MATCH(Selection_Hide2!L$5, 'Full set Core Client Indicator'!$A$3:$AB$3, 0))), \"\")","v":""},{"$f":"IF(L44<>\"\", IF(INDEX('Full set Core Client Indicator'!$A$3:$AB$351, MATCH(Selection_Hide2!$A44, 'Full set Core Client Indicator'!$A$3:$A$351, 0), MATCH(Selection_Hide2!M$5, 'Full set Core Client Indicator'!$A$3:$AB$3, 0))=\"\", \"\",  INDEX('Full set Core Client Indicator'!$A$3:$AB$351, MATCH(Selection_Hide2!$A44, 'Full set Core Client Indicator'!$A$3:$A$351, 0), MATCH(Selection_Hide2!M$5, 'Full set Core Client Indicator'!$A$3:$AB$3, 0))), \"\")","v":""},{"$f":"IF(M44<>\"\", IF(INDEX('Full set Core Client Indicator'!$A$3:$AB$351, MATCH(Selection_Hide2!$A44, 'Full set Core Client Indicator'!$A$3:$A$351, 0), MATCH(Selection_Hide2!N$5, 'Full set Core Client Indicator'!$A$3:$AB$3, 0))=\"\", \"\",  INDEX('Full set Core Client Indicator'!$A$3:$AB$351, MATCH(Selection_Hide2!$A44, 'Full set Core Client Indicator'!$A$3:$A$351, 0), MATCH(Selection_Hide2!N$5, 'Full set Core Client Indicator'!$A$3:$AB$3, 0))), \"\")","v":""},{"$f":"IF(N44<>\"\", IF(INDEX('Full set Core Client Indicator'!$A$3:$AB$351, MATCH(Selection_Hide2!$A44, 'Full set Core Client Indicator'!$A$3:$A$351, 0), MATCH(Selection_Hide2!O$5, 'Full set Core Client Indicator'!$A$3:$AB$3, 0))=\"\", \"\",  INDEX('Full set Core Client Indicator'!$A$3:$AB$351, MATCH(Selection_Hide2!$A44, 'Full set Core Client Indicator'!$A$3:$A$351, 0), MATCH(Selection_Hide2!O$5, 'Full set Core Client Indicator'!$A$3:$AB$3, 0))), \"\")","v":""},{"$f":"IF(O44<>\"\", IF(INDEX('Full set Core Client Indicator'!$A$3:$AB$351, MATCH(Selection_Hide2!$A44, 'Full set Core Client Indicator'!$A$3:$A$351, 0), MATCH(Selection_Hide2!P$5, 'Full set Core Client Indicator'!$A$3:$AB$3, 0))=\"\", \"\",  INDEX('Full set Core Client Indicator'!$A$3:$AB$351, MATCH(Selection_Hide2!$A44, 'Full set Core Client Indicator'!$A$3:$A$351, 0), MATCH(Selection_Hide2!P$5, 'Full set Core Client Indicator'!$A$3:$AB$3, 0))), \"\")","v":""},{"$f":"IF(P44<>\"\", IF(INDEX('Full set Core Client Indicator'!$A$3:$AB$351, MATCH(Selection_Hide2!$A44, 'Full set Core Client Indicator'!$A$3:$A$351, 0), MATCH(Selection_Hide2!Q$5, 'Full set Core Client Indicator'!$A$3:$AB$3, 0))=\"\", \"\",  INDEX('Full set Core Client Indicator'!$A$3:$AB$351, MATCH(Selection_Hide2!$A44, 'Full set Core Client Indicator'!$A$3:$A$351, 0), MATCH(Selection_Hide2!Q$5, 'Full set Core Client Indicator'!$A$3:$AB$3, 0))), \"\")","v":""},{"$f":"IF(Q44<>\"\", IF(INDEX('Full set Core Client Indicator'!$A$3:$AB$351, MATCH(Selection_Hide2!$A44, 'Full set Core Client Indicator'!$A$3:$A$351, 0), MATCH(Selection_Hide2!R$5, 'Full set Core Client Indicator'!$A$3:$AB$3, 0))=\"\", \"\",  INDEX('Full set Core Client Indicator'!$A$3:$AB$351, MATCH(Selection_Hide2!$A44, 'Full set Core Client Indicator'!$A$3:$A$351, 0), MATCH(Selection_Hide2!R$5, 'Full set Core Client Indicator'!$A$3:$AB$3, 0))), \"\")","v":""},{"$f":"IF(R44<>\"\", IF(INDEX('Full set Core Client Indicator'!$A$3:$AB$351, MATCH(Selection_Hide2!$A44, 'Full set Core Client Indicator'!$A$3:$A$351, 0), MATCH(Selection_Hide2!S$5, 'Full set Core Client Indicator'!$A$3:$AB$3, 0))=\"\", \"\",  INDEX('Full set Core Client Indicator'!$A$3:$AB$351, MATCH(Selection_Hide2!$A44, 'Full set Core Client Indicator'!$A$3:$A$351, 0), MATCH(Selection_Hide2!S$5, 'Full set Core Client Indicator'!$A$3:$AB$3, 0))), \"\")","v":""},{"$f":"IF(S44<>\"\", IF(INDEX('Full set Core Client Indicator'!$A$3:$AB$351, MATCH(Selection_Hide2!$A44, 'Full set Core Client Indicator'!$A$3:$A$351, 0), MATCH(Selection_Hide2!T$5, 'Full set Core Client Indicator'!$A$3:$AB$3, 0))=\"\", \"\",  INDEX('Full set Core Client Indicator'!$A$3:$AB$351, MATCH(Selection_Hide2!$A44, 'Full set Core Client Indicator'!$A$3:$A$351, 0), MATCH(Selection_Hide2!T$5, 'Full set Core Client Indicator'!$A$3:$AB$3, 0))), \"\")","v":""},{"$f":"IF(T44<>\"\", IF(INDEX('Full set Core Client Indicator'!$A$3:$AB$351, MATCH(Selection_Hide2!$A44, 'Full set Core Client Indicator'!$A$3:$A$351, 0), MATCH(Selection_Hide2!U$5, 'Full set Core Client Indicator'!$A$3:$AB$3, 0))=\"\", \"\",  INDEX('Full set Core Client Indicator'!$A$3:$AB$351, MATCH(Selection_Hide2!$A44, 'Full set Core Client Indicator'!$A$3:$A$351, 0), MATCH(Selection_Hide2!U$5, 'Full set Core Client Indicator'!$A$3:$AB$3, 0))), \"\")","v":""},{"$f":"IF(U44<>\"\", IF(INDEX('Full set Core Client Indicator'!$A$3:$AB$351, MATCH(Selection_Hide2!$A44, 'Full set Core Client Indicator'!$A$3:$A$351, 0), MATCH(Selection_Hide2!V$5, 'Full set Core Client Indicator'!$A$3:$AB$3, 0))=\"\", \"\",  INDEX('Full set Core Client Indicator'!$A$3:$AB$351, MATCH(Selection_Hide2!$A44, 'Full set Core Client Indicator'!$A$3:$A$351, 0), MATCH(Selection_Hide2!V$5, 'Full set Core Client Indicator'!$A$3:$AB$3, 0))), \"\")","v":""},{"$f":"IF(V44<>\"\", IF(INDEX('Full set Core Client Indicator'!$A$3:$AB$351, MATCH(Selection_Hide2!$A44, 'Full set Core Client Indicator'!$A$3:$A$351, 0), MATCH(Selection_Hide2!W$5, 'Full set Core Client Indicator'!$A$3:$AB$3, 0))=\"\", \"\",  INDEX('Full set Core Client Indicator'!$A$3:$AB$351, MATCH(Selection_Hide2!$A44, 'Full set Core Client Indicator'!$A$3:$A$351, 0), MATCH(Selection_Hide2!W$5, 'Full set Core Client Indicator'!$A$3:$AB$3, 0))), \"\")","v":""},{"$f":"IF(W44<>\"\", IF(INDEX('Full set Core Client Indicator'!$A$3:$AB$351, MATCH(Selection_Hide2!$A44, 'Full set Core Client Indicator'!$A$3:$A$351, 0), MATCH(Selection_Hide2!X$5, 'Full set Core Client Indicator'!$A$3:$AB$3, 0))=\"\", \"\",  INDEX('Full set Core Client Indicator'!$A$3:$AB$351, MATCH(Selection_Hide2!$A44, 'Full set Core Client Indicator'!$A$3:$A$351, 0), MATCH(Selection_Hide2!X$5, 'Full set Core Client Indicator'!$A$3:$AB$3, 0))), \"\")","v":""},{"$f":"IF(X44<>\"\", IF(INDEX('Full set Core Client Indicator'!$A$3:$AB$351, MATCH(Selection_Hide2!$A44, 'Full set Core Client Indicator'!$A$3:$A$351, 0), MATCH(Selection_Hide2!Y$5, 'Full set Core Client Indicator'!$A$3:$AB$3, 0))=\"\", \"\",  INDEX('Full set Core Client Indicator'!$A$3:$AB$351, MATCH(Selection_Hide2!$A44, 'Full set Core Client Indicator'!$A$3:$A$351, 0), MATCH(Selection_Hide2!Y$5, 'Full set Core Client Indicator'!$A$3:$AB$3, 0))), \"\")","v":""},{"$f":"IF(Y44<>\"\", IF(INDEX('Full set Core Client Indicator'!$A$3:$AB$351, MATCH(Selection_Hide2!$A44, 'Full set Core Client Indicator'!$A$3:$A$351, 0), MATCH(Selection_Hide2!Z$5, 'Full set Core Client Indicator'!$A$3:$AB$3, 0))=\"\", \"\",  INDEX('Full set Core Client Indicator'!$A$3:$AB$351, MATCH(Selection_Hide2!$A44, 'Full set Core Client Indicator'!$A$3:$A$351, 0), MATCH(Selection_Hide2!Z$5, 'Full set Core Client Indicator'!$A$3:$AB$3, 0))), \"\")","v":""},{"$f":"IF(Z44<>\"\", IF(INDEX('Full set Core Client Indicator'!$A$3:$AB$351, MATCH(Selection_Hide2!$A44, 'Full set Core Client Indicator'!$A$3:$A$351, 0), MATCH(Selection_Hide2!AA$5, 'Full set Core Client Indicator'!$A$3:$AB$3, 0))=\"\", \"\",  INDEX('Full set Core Client Indicator'!$A$3:$AB$351, MATCH(Selection_Hide2!$A44, 'Full set Core Client Indicator'!$A$3:$A$351, 0), MATCH(Selection_Hide2!AA$5, 'Full set Core Client Indicator'!$A$3:$AB$3, 0))), \"\")","v":""},{"$f":"IF(AA44<>\"\", IF(INDEX('Full set Core Client Indicator'!$A$3:$AB$351, MATCH(Selection_Hide2!$A44, 'Full set Core Client Indicator'!$A$3:$A$351, 0), MATCH(Selection_Hide2!AB$5, 'Full set Core Client Indicator'!$A$3:$AB$3, 0))=\"\", \"\",  INDEX('Full set Core Client Indicator'!$A$3:$AB$351, MATCH(Selection_Hide2!$A44, 'Full set Core Client Indicator'!$A$3:$A$351, 0), MATCH(Selection_Hide2!AB$5, 'Full set Core Client Indicator'!$A$3:$AB$3, 0))), \"\")","v":""}]
[{"$f":"IF(AND(Selection_Hide1!C43<>0, Selection_Hide1!C43<>\"Grand Total\"), Selection_Hide1!C43, \"\")","v":""},{"$f":"IF(A45<>\"\", IF(INDEX('Full set Core Client Indicator'!$A$3:$AB$351, MATCH(Selection_Hide2!$A45, 'Full set Core Client Indicator'!$A$3:$A$351, 0), MATCH(Selection_Hide2!B$5, 'Full set Core Client Indicator'!$A$3:$AB$3, 0))=\"\", \"\",  INDEX('Full set Core Client Indicator'!$A$3:$AB$351, MATCH(Selection_Hide2!$A45, 'Full set Core Client Indicator'!$A$3:$A$351, 0), MATCH(Selection_Hide2!B$5, 'Full set Core Client Indicator'!$A$3:$AB$3, 0))), \"\")","v":""},{"$f":"IF(B45<>\"\", IF(INDEX('Full set Core Client Indicator'!$A$3:$AB$351, MATCH(Selection_Hide2!$A45, 'Full set Core Client Indicator'!$A$3:$A$351, 0), MATCH(Selection_Hide2!C$5, 'Full set Core Client Indicator'!$A$3:$AB$3, 0))=\"\", \"\",  INDEX('Full set Core Client Indicator'!$A$3:$AB$351, MATCH(Selection_Hide2!$A45, 'Full set Core Client Indicator'!$A$3:$A$351, 0), MATCH(Selection_Hide2!C$5, 'Full set Core Client Indicator'!$A$3:$AB$3, 0))), \"\")","v":""},{"$f":"IF(C45<>\"\", IF(INDEX('Full set Core Client Indicator'!$A$3:$AB$351, MATCH(Selection_Hide2!$A45, 'Full set Core Client Indicator'!$A$3:$A$351, 0), MATCH(Selection_Hide2!D$5, 'Full set Core Client Indicator'!$A$3:$AB$3, 0))=\"\", \"\",  INDEX('Full set Core Client Indicator'!$A$3:$AB$351, MATCH(Selection_Hide2!$A45, 'Full set Core Client Indicator'!$A$3:$A$351, 0), MATCH(Selection_Hide2!D$5, 'Full set Core Client Indicator'!$A$3:$AB$3, 0))), \"\")","v":""},{"$f":"IF(D45<>\"\", IF(INDEX('Full set Core Client Indicator'!$A$3:$AB$351, MATCH(Selection_Hide2!$A45, 'Full set Core Client Indicator'!$A$3:$A$351, 0), MATCH(Selection_Hide2!E$5, 'Full set Core Client Indicator'!$A$3:$AB$3, 0))=\"\", \"\",  INDEX('Full set Core Client Indicator'!$A$3:$AB$351, MATCH(Selection_Hide2!$A45, 'Full set Core Client Indicator'!$A$3:$A$351, 0), MATCH(Selection_Hide2!E$5, 'Full set Core Client Indicator'!$A$3:$AB$3, 0))), \"\")","v":""},{"$f":"IF(E45<>\"\", IF(INDEX('Full set Core Client Indicator'!$A$3:$AB$351, MATCH(Selection_Hide2!$A45, 'Full set Core Client Indicator'!$A$3:$A$351, 0), MATCH(Selection_Hide2!F$5, 'Full set Core Client Indicator'!$A$3:$AB$3, 0))=\"\", \"\",  INDEX('Full set Core Client Indicator'!$A$3:$AB$351, MATCH(Selection_Hide2!$A45, 'Full set Core Client Indicator'!$A$3:$A$351, 0), MATCH(Selection_Hide2!F$5, 'Full set Core Client Indicator'!$A$3:$AB$3, 0))), \"\")","v":""},{"$f":"IF(F45<>\"\", IF(INDEX('Full set Core Client Indicator'!$A$3:$AB$351, MATCH(Selection_Hide2!$A45, 'Full set Core Client Indicator'!$A$3:$A$351, 0), MATCH(Selection_Hide2!G$5, 'Full set Core Client Indicator'!$A$3:$AB$3, 0))=\"\", \"\",  INDEX('Full set Core Client Indicator'!$A$3:$AB$351, MATCH(Selection_Hide2!$A45, 'Full set Core Client Indicator'!$A$3:$A$351, 0), MATCH(Selection_Hide2!G$5, 'Full set Core Client Indicator'!$A$3:$AB$3, 0))), \"\")","v":""},{"$f":"IF(G45<>\"\", IF(INDEX('Full set Core Client Indicator'!$A$3:$AB$351, MATCH(Selection_Hide2!$A45, 'Full set Core Client Indicator'!$A$3:$A$351, 0), MATCH(Selection_Hide2!H$5, 'Full set Core Client Indicator'!$A$3:$AB$3, 0))=\"\", \"\",  INDEX('Full set Core Client Indicator'!$A$3:$AB$351, MATCH(Selection_Hide2!$A45, 'Full set Core Client Indicator'!$A$3:$A$351, 0), MATCH(Selection_Hide2!H$5, 'Full set Core Client Indicator'!$A$3:$AB$3, 0))), \"\")","v":""},{"$f":"IF(H45<>\"\", IF(INDEX('Full set Core Client Indicator'!$A$3:$AB$351, MATCH(Selection_Hide2!$A45, 'Full set Core Client Indicator'!$A$3:$A$351, 0), MATCH(Selection_Hide2!I$5, 'Full set Core Client Indicator'!$A$3:$AB$3, 0))=\"\", \"\",  INDEX('Full set Core Client Indicator'!$A$3:$AB$351, MATCH(Selection_Hide2!$A45, 'Full set Core Client Indicator'!$A$3:$A$351, 0), MATCH(Selection_Hide2!I$5, 'Full set Core Client Indicator'!$A$3:$AB$3, 0))), \"\")","v":""},{"$f":"IF(I45<>\"\", IF(INDEX('Full set Core Client Indicator'!$A$3:$AB$351, MATCH(Selection_Hide2!$A45, 'Full set Core Client Indicator'!$A$3:$A$351, 0), MATCH(Selection_Hide2!J$5, 'Full set Core Client Indicator'!$A$3:$AB$3, 0))=\"\", \"\",  INDEX('Full set Core Client Indicator'!$A$3:$AB$351, MATCH(Selection_Hide2!$A45, 'Full set Core Client Indicator'!$A$3:$A$351, 0), MATCH(Selection_Hide2!J$5, 'Full set Core Client Indicator'!$A$3:$AB$3, 0))), \"\")","v":""},{"$f":"IF(J45<>\"\", IF(INDEX('Full set Core Client Indicator'!$A$3:$AB$351, MATCH(Selection_Hide2!$A45, 'Full set Core Client Indicator'!$A$3:$A$351, 0), MATCH(Selection_Hide2!K$5, 'Full set Core Client Indicator'!$A$3:$AB$3, 0))=\"\", \"\",  INDEX('Full set Core Client Indicator'!$A$3:$AB$351, MATCH(Selection_Hide2!$A45, 'Full set Core Client Indicator'!$A$3:$A$351, 0), MATCH(Selection_Hide2!K$5, 'Full set Core Client Indicator'!$A$3:$AB$3, 0))), \"\")","v":""},{"$f":"IF(K45<>\"\", IF(INDEX('Full set Core Client Indicator'!$A$3:$AB$351, MATCH(Selection_Hide2!$A45, 'Full set Core Client Indicator'!$A$3:$A$351, 0), MATCH(Selection_Hide2!L$5, 'Full set Core Client Indicator'!$A$3:$AB$3, 0))=\"\", \"\",  INDEX('Full set Core Client Indicator'!$A$3:$AB$351, MATCH(Selection_Hide2!$A45, 'Full set Core Client Indicator'!$A$3:$A$351, 0), MATCH(Selection_Hide2!L$5, 'Full set Core Client Indicator'!$A$3:$AB$3, 0))), \"\")","v":""},{"$f":"IF(L45<>\"\", IF(INDEX('Full set Core Client Indicator'!$A$3:$AB$351, MATCH(Selection_Hide2!$A45, 'Full set Core Client Indicator'!$A$3:$A$351, 0), MATCH(Selection_Hide2!M$5, 'Full set Core Client Indicator'!$A$3:$AB$3, 0))=\"\", \"\",  INDEX('Full set Core Client Indicator'!$A$3:$AB$351, MATCH(Selection_Hide2!$A45, 'Full set Core Client Indicator'!$A$3:$A$351, 0), MATCH(Selection_Hide2!M$5, 'Full set Core Client Indicator'!$A$3:$AB$3, 0))), \"\")","v":""},{"$f":"IF(M45<>\"\", IF(INDEX('Full set Core Client Indicator'!$A$3:$AB$351, MATCH(Selection_Hide2!$A45, 'Full set Core Client Indicator'!$A$3:$A$351, 0), MATCH(Selection_Hide2!N$5, 'Full set Core Client Indicator'!$A$3:$AB$3, 0))=\"\", \"\",  INDEX('Full set Core Client Indicator'!$A$3:$AB$351, MATCH(Selection_Hide2!$A45, 'Full set Core Client Indicator'!$A$3:$A$351, 0), MATCH(Selection_Hide2!N$5, 'Full set Core Client Indicator'!$A$3:$AB$3, 0))), \"\")","v":""},{"$f":"IF(N45<>\"\", IF(INDEX('Full set Core Client Indicator'!$A$3:$AB$351, MATCH(Selection_Hide2!$A45, 'Full set Core Client Indicator'!$A$3:$A$351, 0), MATCH(Selection_Hide2!O$5, 'Full set Core Client Indicator'!$A$3:$AB$3, 0))=\"\", \"\",  INDEX('Full set Core Client Indicator'!$A$3:$AB$351, MATCH(Selection_Hide2!$A45, 'Full set Core Client Indicator'!$A$3:$A$351, 0), MATCH(Selection_Hide2!O$5, 'Full set Core Client Indicator'!$A$3:$AB$3, 0))), \"\")","v":""},{"$f":"IF(O45<>\"\", IF(INDEX('Full set Core Client Indicator'!$A$3:$AB$351, MATCH(Selection_Hide2!$A45, 'Full set Core Client Indicator'!$A$3:$A$351, 0), MATCH(Selection_Hide2!P$5, 'Full set Core Client Indicator'!$A$3:$AB$3, 0))=\"\", \"\",  INDEX('Full set Core Client Indicator'!$A$3:$AB$351, MATCH(Selection_Hide2!$A45, 'Full set Core Client Indicator'!$A$3:$A$351, 0), MATCH(Selection_Hide2!P$5, 'Full set Core Client Indicator'!$A$3:$AB$3, 0))), \"\")","v":""},{"$f":"IF(P45<>\"\", IF(INDEX('Full set Core Client Indicator'!$A$3:$AB$351, MATCH(Selection_Hide2!$A45, 'Full set Core Client Indicator'!$A$3:$A$351, 0), MATCH(Selection_Hide2!Q$5, 'Full set Core Client Indicator'!$A$3:$AB$3, 0))=\"\", \"\",  INDEX('Full set Core Client Indicator'!$A$3:$AB$351, MATCH(Selection_Hide2!$A45, 'Full set Core Client Indicator'!$A$3:$A$351, 0), MATCH(Selection_Hide2!Q$5, 'Full set Core Client Indicator'!$A$3:$AB$3, 0))), \"\")","v":""},{"$f":"IF(Q45<>\"\", IF(INDEX('Full set Core Client Indicator'!$A$3:$AB$351, MATCH(Selection_Hide2!$A45, 'Full set Core Client Indicator'!$A$3:$A$351, 0), MATCH(Selection_Hide2!R$5, 'Full set Core Client Indicator'!$A$3:$AB$3, 0))=\"\", \"\",  INDEX('Full set Core Client Indicator'!$A$3:$AB$351, MATCH(Selection_Hide2!$A45, 'Full set Core Client Indicator'!$A$3:$A$351, 0), MATCH(Selection_Hide2!R$5, 'Full set Core Client Indicator'!$A$3:$AB$3, 0))), \"\")","v":""},{"$f":"IF(R45<>\"\", IF(INDEX('Full set Core Client Indicator'!$A$3:$AB$351, MATCH(Selection_Hide2!$A45, 'Full set Core Client Indicator'!$A$3:$A$351, 0), MATCH(Selection_Hide2!S$5, 'Full set Core Client Indicator'!$A$3:$AB$3, 0))=\"\", \"\",  INDEX('Full set Core Client Indicator'!$A$3:$AB$351, MATCH(Selection_Hide2!$A45, 'Full set Core Client Indicator'!$A$3:$A$351, 0), MATCH(Selection_Hide2!S$5, 'Full set Core Client Indicator'!$A$3:$AB$3, 0))), \"\")","v":""},{"$f":"IF(S45<>\"\", IF(INDEX('Full set Core Client Indicator'!$A$3:$AB$351, MATCH(Selection_Hide2!$A45, 'Full set Core Client Indicator'!$A$3:$A$351, 0), MATCH(Selection_Hide2!T$5, 'Full set Core Client Indicator'!$A$3:$AB$3, 0))=\"\", \"\",  INDEX('Full set Core Client Indicator'!$A$3:$AB$351, MATCH(Selection_Hide2!$A45, 'Full set Core Client Indicator'!$A$3:$A$351, 0), MATCH(Selection_Hide2!T$5, 'Full set Core Client Indicator'!$A$3:$AB$3, 0))), \"\")","v":""},{"$f":"IF(T45<>\"\", IF(INDEX('Full set Core Client Indicator'!$A$3:$AB$351, MATCH(Selection_Hide2!$A45, 'Full set Core Client Indicator'!$A$3:$A$351, 0), MATCH(Selection_Hide2!U$5, 'Full set Core Client Indicator'!$A$3:$AB$3, 0))=\"\", \"\",  INDEX('Full set Core Client Indicator'!$A$3:$AB$351, MATCH(Selection_Hide2!$A45, 'Full set Core Client Indicator'!$A$3:$A$351, 0), MATCH(Selection_Hide2!U$5, 'Full set Core Client Indicator'!$A$3:$AB$3, 0))), \"\")","v":""},{"$f":"IF(U45<>\"\", IF(INDEX('Full set Core Client Indicator'!$A$3:$AB$351, MATCH(Selection_Hide2!$A45, 'Full set Core Client Indicator'!$A$3:$A$351, 0), MATCH(Selection_Hide2!V$5, 'Full set Core Client Indicator'!$A$3:$AB$3, 0))=\"\", \"\",  INDEX('Full set Core Client Indicator'!$A$3:$AB$351, MATCH(Selection_Hide2!$A45, 'Full set Core Client Indicator'!$A$3:$A$351, 0), MATCH(Selection_Hide2!V$5, 'Full set Core Client Indicator'!$A$3:$AB$3, 0))), \"\")","v":""},{"$f":"IF(V45<>\"\", IF(INDEX('Full set Core Client Indicator'!$A$3:$AB$351, MATCH(Selection_Hide2!$A45, 'Full set Core Client Indicator'!$A$3:$A$351, 0), MATCH(Selection_Hide2!W$5, 'Full set Core Client Indicator'!$A$3:$AB$3, 0))=\"\", \"\",  INDEX('Full set Core Client Indicator'!$A$3:$AB$351, MATCH(Selection_Hide2!$A45, 'Full set Core Client Indicator'!$A$3:$A$351, 0), MATCH(Selection_Hide2!W$5, 'Full set Core Client Indicator'!$A$3:$AB$3, 0))), \"\")","v":""},{"$f":"IF(W45<>\"\", IF(INDEX('Full set Core Client Indicator'!$A$3:$AB$351, MATCH(Selection_Hide2!$A45, 'Full set Core Client Indicator'!$A$3:$A$351, 0), MATCH(Selection_Hide2!X$5, 'Full set Core Client Indicator'!$A$3:$AB$3, 0))=\"\", \"\",  INDEX('Full set Core Client Indicator'!$A$3:$AB$351, MATCH(Selection_Hide2!$A45, 'Full set Core Client Indicator'!$A$3:$A$351, 0), MATCH(Selection_Hide2!X$5, 'Full set Core Client Indicator'!$A$3:$AB$3, 0))), \"\")","v":""},{"$f":"IF(X45<>\"\", IF(INDEX('Full set Core Client Indicator'!$A$3:$AB$351, MATCH(Selection_Hide2!$A45, 'Full set Core Client Indicator'!$A$3:$A$351, 0), MATCH(Selection_Hide2!Y$5, 'Full set Core Client Indicator'!$A$3:$AB$3, 0))=\"\", \"\",  INDEX('Full set Core Client Indicator'!$A$3:$AB$351, MATCH(Selection_Hide2!$A45, 'Full set Core Client Indicator'!$A$3:$A$351, 0), MATCH(Selection_Hide2!Y$5, 'Full set Core Client Indicator'!$A$3:$AB$3, 0))), \"\")","v":""},{"$f":"IF(Y45<>\"\", IF(INDEX('Full set Core Client Indicator'!$A$3:$AB$351, MATCH(Selection_Hide2!$A45, 'Full set Core Client Indicator'!$A$3:$A$351, 0), MATCH(Selection_Hide2!Z$5, 'Full set Core Client Indicator'!$A$3:$AB$3, 0))=\"\", \"\",  INDEX('Full set Core Client Indicator'!$A$3:$AB$351, MATCH(Selection_Hide2!$A45, 'Full set Core Client Indicator'!$A$3:$A$351, 0), MATCH(Selection_Hide2!Z$5, 'Full set Core Client Indicator'!$A$3:$AB$3, 0))), \"\")","v":""},{"$f":"IF(Z45<>\"\", IF(INDEX('Full set Core Client Indicator'!$A$3:$AB$351, MATCH(Selection_Hide2!$A45, 'Full set Core Client Indicator'!$A$3:$A$351, 0), MATCH(Selection_Hide2!AA$5, 'Full set Core Client Indicator'!$A$3:$AB$3, 0))=\"\", \"\",  INDEX('Full set Core Client Indicator'!$A$3:$AB$351, MATCH(Selection_Hide2!$A45, 'Full set Core Client Indicator'!$A$3:$A$351, 0), MATCH(Selection_Hide2!AA$5, 'Full set Core Client Indicator'!$A$3:$AB$3, 0))), \"\")","v":""},{"$f":"IF(AA45<>\"\", IF(INDEX('Full set Core Client Indicator'!$A$3:$AB$351, MATCH(Selection_Hide2!$A45, 'Full set Core Client Indicator'!$A$3:$A$351, 0), MATCH(Selection_Hide2!AB$5, 'Full set Core Client Indicator'!$A$3:$AB$3, 0))=\"\", \"\",  INDEX('Full set Core Client Indicator'!$A$3:$AB$351, MATCH(Selection_Hide2!$A45, 'Full set Core Client Indicator'!$A$3:$A$351, 0), MATCH(Selection_Hide2!AB$5, 'Full set Core Client Indicator'!$A$3:$AB$3, 0))), \"\")","v":""}]
[{"$f":"IF(AND(Selection_Hide1!C44<>0, Selection_Hide1!C44<>\"Grand Total\"), Selection_Hide1!C44, \"\")","v":""},{"$f":"IF(A46<>\"\", IF(INDEX('Full set Core Client Indicator'!$A$3:$AB$351, MATCH(Selection_Hide2!$A46, 'Full set Core Client Indicator'!$A$3:$A$351, 0), MATCH(Selection_Hide2!B$5, 'Full set Core Client Indicator'!$A$3:$AB$3, 0))=\"\", \"\",  INDEX('Full set Core Client Indicator'!$A$3:$AB$351, MATCH(Selection_Hide2!$A46, 'Full set Core Client Indicator'!$A$3:$A$351, 0), MATCH(Selection_Hide2!B$5, 'Full set Core Client Indicator'!$A$3:$AB$3, 0))), \"\")","v":""},{"$f":"IF(B46<>\"\", IF(INDEX('Full set Core Client Indicator'!$A$3:$AB$351, MATCH(Selection_Hide2!$A46, 'Full set Core Client Indicator'!$A$3:$A$351, 0), MATCH(Selection_Hide2!C$5, 'Full set Core Client Indicator'!$A$3:$AB$3, 0))=\"\", \"\",  INDEX('Full set Core Client Indicator'!$A$3:$AB$351, MATCH(Selection_Hide2!$A46, 'Full set Core Client Indicator'!$A$3:$A$351, 0), MATCH(Selection_Hide2!C$5, 'Full set Core Client Indicator'!$A$3:$AB$3, 0))), \"\")","v":""},{"$f":"IF(C46<>\"\", IF(INDEX('Full set Core Client Indicator'!$A$3:$AB$351, MATCH(Selection_Hide2!$A46, 'Full set Core Client Indicator'!$A$3:$A$351, 0), MATCH(Selection_Hide2!D$5, 'Full set Core Client Indicator'!$A$3:$AB$3, 0))=\"\", \"\",  INDEX('Full set Core Client Indicator'!$A$3:$AB$351, MATCH(Selection_Hide2!$A46, 'Full set Core Client Indicator'!$A$3:$A$351, 0), MATCH(Selection_Hide2!D$5, 'Full set Core Client Indicator'!$A$3:$AB$3, 0))), \"\")","v":""},{"$f":"IF(D46<>\"\", IF(INDEX('Full set Core Client Indicator'!$A$3:$AB$351, MATCH(Selection_Hide2!$A46, 'Full set Core Client Indicator'!$A$3:$A$351, 0), MATCH(Selection_Hide2!E$5, 'Full set Core Client Indicator'!$A$3:$AB$3, 0))=\"\", \"\",  INDEX('Full set Core Client Indicator'!$A$3:$AB$351, MATCH(Selection_Hide2!$A46, 'Full set Core Client Indicator'!$A$3:$A$351, 0), MATCH(Selection_Hide2!E$5, 'Full set Core Client Indicator'!$A$3:$AB$3, 0))), \"\")","v":""},{"$f":"IF(E46<>\"\", IF(INDEX('Full set Core Client Indicator'!$A$3:$AB$351, MATCH(Selection_Hide2!$A46, 'Full set Core Client Indicator'!$A$3:$A$351, 0), MATCH(Selection_Hide2!F$5, 'Full set Core Client Indicator'!$A$3:$AB$3, 0))=\"\", \"\",  INDEX('Full set Core Client Indicator'!$A$3:$AB$351, MATCH(Selection_Hide2!$A46, 'Full set Core Client Indicator'!$A$3:$A$351, 0), MATCH(Selection_Hide2!F$5, 'Full set Core Client Indicator'!$A$3:$AB$3, 0))), \"\")","v":""},{"$f":"IF(F46<>\"\", IF(INDEX('Full set Core Client Indicator'!$A$3:$AB$351, MATCH(Selection_Hide2!$A46, 'Full set Core Client Indicator'!$A$3:$A$351, 0), MATCH(Selection_Hide2!G$5, 'Full set Core Client Indicator'!$A$3:$AB$3, 0))=\"\", \"\",  INDEX('Full set Core Client Indicator'!$A$3:$AB$351, MATCH(Selection_Hide2!$A46, 'Full set Core Client Indicator'!$A$3:$A$351, 0), MATCH(Selection_Hide2!G$5, 'Full set Core Client Indicator'!$A$3:$AB$3, 0))), \"\")","v":""},{"$f":"IF(G46<>\"\", IF(INDEX('Full set Core Client Indicator'!$A$3:$AB$351, MATCH(Selection_Hide2!$A46, 'Full set Core Client Indicator'!$A$3:$A$351, 0), MATCH(Selection_Hide2!H$5, 'Full set Core Client Indicator'!$A$3:$AB$3, 0))=\"\", \"\",  INDEX('Full set Core Client Indicator'!$A$3:$AB$351, MATCH(Selection_Hide2!$A46, 'Full set Core Client Indicator'!$A$3:$A$351, 0), MATCH(Selection_Hide2!H$5, 'Full set Core Client Indicator'!$A$3:$AB$3, 0))), \"\")","v":""},{"$f":"IF(H46<>\"\", IF(INDEX('Full set Core Client Indicator'!$A$3:$AB$351, MATCH(Selection_Hide2!$A46, 'Full set Core Client Indicator'!$A$3:$A$351, 0), MATCH(Selection_Hide2!I$5, 'Full set Core Client Indicator'!$A$3:$AB$3, 0))=\"\", \"\",  INDEX('Full set Core Client Indicator'!$A$3:$AB$351, MATCH(Selection_Hide2!$A46, 'Full set Core Client Indicator'!$A$3:$A$351, 0), MATCH(Selection_Hide2!I$5, 'Full set Core Client Indicator'!$A$3:$AB$3, 0))), \"\")","v":""},{"$f":"IF(I46<>\"\", IF(INDEX('Full set Core Client Indicator'!$A$3:$AB$351, MATCH(Selection_Hide2!$A46, 'Full set Core Client Indicator'!$A$3:$A$351, 0), MATCH(Selection_Hide2!J$5, 'Full set Core Client Indicator'!$A$3:$AB$3, 0))=\"\", \"\",  INDEX('Full set Core Client Indicator'!$A$3:$AB$351, MATCH(Selection_Hide2!$A46, 'Full set Core Client Indicator'!$A$3:$A$351, 0), MATCH(Selection_Hide2!J$5, 'Full set Core Client Indicator'!$A$3:$AB$3, 0))), \"\")","v":""},{"$f":"IF(J46<>\"\", IF(INDEX('Full set Core Client Indicator'!$A$3:$AB$351, MATCH(Selection_Hide2!$A46, 'Full set Core Client Indicator'!$A$3:$A$351, 0), MATCH(Selection_Hide2!K$5, 'Full set Core Client Indicator'!$A$3:$AB$3, 0))=\"\", \"\",  INDEX('Full set Core Client Indicator'!$A$3:$AB$351, MATCH(Selection_Hide2!$A46, 'Full set Core Client Indicator'!$A$3:$A$351, 0), MATCH(Selection_Hide2!K$5, 'Full set Core Client Indicator'!$A$3:$AB$3, 0))), \"\")","v":""},{"$f":"IF(K46<>\"\", IF(INDEX('Full set Core Client Indicator'!$A$3:$AB$351, MATCH(Selection_Hide2!$A46, 'Full set Core Client Indicator'!$A$3:$A$351, 0), MATCH(Selection_Hide2!L$5, 'Full set Core Client Indicator'!$A$3:$AB$3, 0))=\"\", \"\",  INDEX('Full set Core Client Indicator'!$A$3:$AB$351, MATCH(Selection_Hide2!$A46, 'Full set Core Client Indicator'!$A$3:$A$351, 0), MATCH(Selection_Hide2!L$5, 'Full set Core Client Indicator'!$A$3:$AB$3, 0))), \"\")","v":""},{"$f":"IF(L46<>\"\", IF(INDEX('Full set Core Client Indicator'!$A$3:$AB$351, MATCH(Selection_Hide2!$A46, 'Full set Core Client Indicator'!$A$3:$A$351, 0), MATCH(Selection_Hide2!M$5, 'Full set Core Client Indicator'!$A$3:$AB$3, 0))=\"\", \"\",  INDEX('Full set Core Client Indicator'!$A$3:$AB$351, MATCH(Selection_Hide2!$A46, 'Full set Core Client Indicator'!$A$3:$A$351, 0), MATCH(Selection_Hide2!M$5, 'Full set Core Client Indicator'!$A$3:$AB$3, 0))), \"\")","v":""},{"$f":"IF(M46<>\"\", IF(INDEX('Full set Core Client Indicator'!$A$3:$AB$351, MATCH(Selection_Hide2!$A46, 'Full set Core Client Indicator'!$A$3:$A$351, 0), MATCH(Selection_Hide2!N$5, 'Full set Core Client Indicator'!$A$3:$AB$3, 0))=\"\", \"\",  INDEX('Full set Core Client Indicator'!$A$3:$AB$351, MATCH(Selection_Hide2!$A46, 'Full set Core Client Indicator'!$A$3:$A$351, 0), MATCH(Selection_Hide2!N$5, 'Full set Core Client Indicator'!$A$3:$AB$3, 0))), \"\")","v":""},{"$f":"IF(N46<>\"\", IF(INDEX('Full set Core Client Indicator'!$A$3:$AB$351, MATCH(Selection_Hide2!$A46, 'Full set Core Client Indicator'!$A$3:$A$351, 0), MATCH(Selection_Hide2!O$5, 'Full set Core Client Indicator'!$A$3:$AB$3, 0))=\"\", \"\",  INDEX('Full set Core Client Indicator'!$A$3:$AB$351, MATCH(Selection_Hide2!$A46, 'Full set Core Client Indicator'!$A$3:$A$351, 0), MATCH(Selection_Hide2!O$5, 'Full set Core Client Indicator'!$A$3:$AB$3, 0))), \"\")","v":""},{"$f":"IF(O46<>\"\", IF(INDEX('Full set Core Client Indicator'!$A$3:$AB$351, MATCH(Selection_Hide2!$A46, 'Full set Core Client Indicator'!$A$3:$A$351, 0), MATCH(Selection_Hide2!P$5, 'Full set Core Client Indicator'!$A$3:$AB$3, 0))=\"\", \"\",  INDEX('Full set Core Client Indicator'!$A$3:$AB$351, MATCH(Selection_Hide2!$A46, 'Full set Core Client Indicator'!$A$3:$A$351, 0), MATCH(Selection_Hide2!P$5, 'Full set Core Client Indicator'!$A$3:$AB$3, 0))), \"\")","v":""},{"$f":"IF(P46<>\"\", IF(INDEX('Full set Core Client Indicator'!$A$3:$AB$351, MATCH(Selection_Hide2!$A46, 'Full set Core Client Indicator'!$A$3:$A$351, 0), MATCH(Selection_Hide2!Q$5, 'Full set Core Client Indicator'!$A$3:$AB$3, 0))=\"\", \"\",  INDEX('Full set Core Client Indicator'!$A$3:$AB$351, MATCH(Selection_Hide2!$A46, 'Full set Core Client Indicator'!$A$3:$A$351, 0), MATCH(Selection_Hide2!Q$5, 'Full set Core Client Indicator'!$A$3:$AB$3, 0))), \"\")","v":""},{"$f":"IF(Q46<>\"\", IF(INDEX('Full set Core Client Indicator'!$A$3:$AB$351, MATCH(Selection_Hide2!$A46, 'Full set Core Client Indicator'!$A$3:$A$351, 0), MATCH(Selection_Hide2!R$5, 'Full set Core Client Indicator'!$A$3:$AB$3, 0))=\"\", \"\",  INDEX('Full set Core Client Indicator'!$A$3:$AB$351, MATCH(Selection_Hide2!$A46, 'Full set Core Client Indicator'!$A$3:$A$351, 0), MATCH(Selection_Hide2!R$5, 'Full set Core Client Indicator'!$A$3:$AB$3, 0))), \"\")","v":""},{"$f":"IF(R46<>\"\", IF(INDEX('Full set Core Client Indicator'!$A$3:$AB$351, MATCH(Selection_Hide2!$A46, 'Full set Core Client Indicator'!$A$3:$A$351, 0), MATCH(Selection_Hide2!S$5, 'Full set Core Client Indicator'!$A$3:$AB$3, 0))=\"\", \"\",  INDEX('Full set Core Client Indicator'!$A$3:$AB$351, MATCH(Selection_Hide2!$A46, 'Full set Core Client Indicator'!$A$3:$A$351, 0), MATCH(Selection_Hide2!S$5, 'Full set Core Client Indicator'!$A$3:$AB$3, 0))), \"\")","v":""},{"$f":"IF(S46<>\"\", IF(INDEX('Full set Core Client Indicator'!$A$3:$AB$351, MATCH(Selection_Hide2!$A46, 'Full set Core Client Indicator'!$A$3:$A$351, 0), MATCH(Selection_Hide2!T$5, 'Full set Core Client Indicator'!$A$3:$AB$3, 0))=\"\", \"\",  INDEX('Full set Core Client Indicator'!$A$3:$AB$351, MATCH(Selection_Hide2!$A46, 'Full set Core Client Indicator'!$A$3:$A$351, 0), MATCH(Selection_Hide2!T$5, 'Full set Core Client Indicator'!$A$3:$AB$3, 0))), \"\")","v":""},{"$f":"IF(T46<>\"\", IF(INDEX('Full set Core Client Indicator'!$A$3:$AB$351, MATCH(Selection_Hide2!$A46, 'Full set Core Client Indicator'!$A$3:$A$351, 0), MATCH(Selection_Hide2!U$5, 'Full set Core Client Indicator'!$A$3:$AB$3, 0))=\"\", \"\",  INDEX('Full set Core Client Indicator'!$A$3:$AB$351, MATCH(Selection_Hide2!$A46, 'Full set Core Client Indicator'!$A$3:$A$351, 0), MATCH(Selection_Hide2!U$5, 'Full set Core Client Indicator'!$A$3:$AB$3, 0))), \"\")","v":""},{"$f":"IF(U46<>\"\", IF(INDEX('Full set Core Client Indicator'!$A$3:$AB$351, MATCH(Selection_Hide2!$A46, 'Full set Core Client Indicator'!$A$3:$A$351, 0), MATCH(Selection_Hide2!V$5, 'Full set Core Client Indicator'!$A$3:$AB$3, 0))=\"\", \"\",  INDEX('Full set Core Client Indicator'!$A$3:$AB$351, MATCH(Selection_Hide2!$A46, 'Full set Core Client Indicator'!$A$3:$A$351, 0), MATCH(Selection_Hide2!V$5, 'Full set Core Client Indicator'!$A$3:$AB$3, 0))), \"\")","v":""},{"$f":"IF(V46<>\"\", IF(INDEX('Full set Core Client Indicator'!$A$3:$AB$351, MATCH(Selection_Hide2!$A46, 'Full set Core Client Indicator'!$A$3:$A$351, 0), MATCH(Selection_Hide2!W$5, 'Full set Core Client Indicator'!$A$3:$AB$3, 0))=\"\", \"\",  INDEX('Full set Core Client Indicator'!$A$3:$AB$351, MATCH(Selection_Hide2!$A46, 'Full set Core Client Indicator'!$A$3:$A$351, 0), MATCH(Selection_Hide2!W$5, 'Full set Core Client Indicator'!$A$3:$AB$3, 0))), \"\")","v":""},{"$f":"IF(W46<>\"\", IF(INDEX('Full set Core Client Indicator'!$A$3:$AB$351, MATCH(Selection_Hide2!$A46, 'Full set Core Client Indicator'!$A$3:$A$351, 0), MATCH(Selection_Hide2!X$5, 'Full set Core Client Indicator'!$A$3:$AB$3, 0))=\"\", \"\",  INDEX('Full set Core Client Indicator'!$A$3:$AB$351, MATCH(Selection_Hide2!$A46, 'Full set Core Client Indicator'!$A$3:$A$351, 0), MATCH(Selection_Hide2!X$5, 'Full set Core Client Indicator'!$A$3:$AB$3, 0))), \"\")","v":""},{"$f":"IF(X46<>\"\", IF(INDEX('Full set Core Client Indicator'!$A$3:$AB$351, MATCH(Selection_Hide2!$A46, 'Full set Core Client Indicator'!$A$3:$A$351, 0), MATCH(Selection_Hide2!Y$5, 'Full set Core Client Indicator'!$A$3:$AB$3, 0))=\"\", \"\",  INDEX('Full set Core Client Indicator'!$A$3:$AB$351, MATCH(Selection_Hide2!$A46, 'Full set Core Client Indicator'!$A$3:$A$351, 0), MATCH(Selection_Hide2!Y$5, 'Full set Core Client Indicator'!$A$3:$AB$3, 0))), \"\")","v":""},{"$f":"IF(Y46<>\"\", IF(INDEX('Full set Core Client Indicator'!$A$3:$AB$351, MATCH(Selection_Hide2!$A46, 'Full set Core Client Indicator'!$A$3:$A$351, 0), MATCH(Selection_Hide2!Z$5, 'Full set Core Client Indicator'!$A$3:$AB$3, 0))=\"\", \"\",  INDEX('Full set Core Client Indicator'!$A$3:$AB$351, MATCH(Selection_Hide2!$A46, 'Full set Core Client Indicator'!$A$3:$A$351, 0), MATCH(Selection_Hide2!Z$5, 'Full set Core Client Indicator'!$A$3:$AB$3, 0))), \"\")","v":""},{"$f":"IF(Z46<>\"\", IF(INDEX('Full set Core Client Indicator'!$A$3:$AB$351, MATCH(Selection_Hide2!$A46, 'Full set Core Client Indicator'!$A$3:$A$351, 0), MATCH(Selection_Hide2!AA$5, 'Full set Core Client Indicator'!$A$3:$AB$3, 0))=\"\", \"\",  INDEX('Full set Core Client Indicator'!$A$3:$AB$351, MATCH(Selection_Hide2!$A46, 'Full set Core Client Indicator'!$A$3:$A$351, 0), MATCH(Selection_Hide2!AA$5, 'Full set Core Client Indicator'!$A$3:$AB$3, 0))), \"\")","v":""},{"$f":"IF(AA46<>\"\", IF(INDEX('Full set Core Client Indicator'!$A$3:$AB$351, MATCH(Selection_Hide2!$A46, 'Full set Core Client Indicator'!$A$3:$A$351, 0), MATCH(Selection_Hide2!AB$5, 'Full set Core Client Indicator'!$A$3:$AB$3, 0))=\"\", \"\",  INDEX('Full set Core Client Indicator'!$A$3:$AB$351, MATCH(Selection_Hide2!$A46, 'Full set Core Client Indicator'!$A$3:$A$351, 0), MATCH(Selection_Hide2!AB$5, 'Full set Core Client Indicator'!$A$3:$AB$3, 0))), \"\")","v":""}]
[{"$f":"IF(AND(Selection_Hide1!C45<>0, Selection_Hide1!C45<>\"Grand Total\"), Selection_Hide1!C45, \"\")","v":""},{"$f":"IF(A47<>\"\", IF(INDEX('Full set Core Client Indicator'!$A$3:$AB$351, MATCH(Selection_Hide2!$A47, 'Full set Core Client Indicator'!$A$3:$A$351, 0), MATCH(Selection_Hide2!B$5, 'Full set Core Client Indicator'!$A$3:$AB$3, 0))=\"\", \"\",  INDEX('Full set Core Client Indicator'!$A$3:$AB$351, MATCH(Selection_Hide2!$A47, 'Full set Core Client Indicator'!$A$3:$A$351, 0), MATCH(Selection_Hide2!B$5, 'Full set Core Client Indicator'!$A$3:$AB$3, 0))), \"\")","v":""},{"$f":"IF(B47<>\"\", IF(INDEX('Full set Core Client Indicator'!$A$3:$AB$351, MATCH(Selection_Hide2!$A47, 'Full set Core Client Indicator'!$A$3:$A$351, 0), MATCH(Selection_Hide2!C$5, 'Full set Core Client Indicator'!$A$3:$AB$3, 0))=\"\", \"\",  INDEX('Full set Core Client Indicator'!$A$3:$AB$351, MATCH(Selection_Hide2!$A47, 'Full set Core Client Indicator'!$A$3:$A$351, 0), MATCH(Selection_Hide2!C$5, 'Full set Core Client Indicator'!$A$3:$AB$3, 0))), \"\")","v":""},{"$f":"IF(C47<>\"\", IF(INDEX('Full set Core Client Indicator'!$A$3:$AB$351, MATCH(Selection_Hide2!$A47, 'Full set Core Client Indicator'!$A$3:$A$351, 0), MATCH(Selection_Hide2!D$5, 'Full set Core Client Indicator'!$A$3:$AB$3, 0))=\"\", \"\",  INDEX('Full set Core Client Indicator'!$A$3:$AB$351, MATCH(Selection_Hide2!$A47, 'Full set Core Client Indicator'!$A$3:$A$351, 0), MATCH(Selection_Hide2!D$5, 'Full set Core Client Indicator'!$A$3:$AB$3, 0))), \"\")","v":""},{"$f":"IF(D47<>\"\", IF(INDEX('Full set Core Client Indicator'!$A$3:$AB$351, MATCH(Selection_Hide2!$A47, 'Full set Core Client Indicator'!$A$3:$A$351, 0), MATCH(Selection_Hide2!E$5, 'Full set Core Client Indicator'!$A$3:$AB$3, 0))=\"\", \"\",  INDEX('Full set Core Client Indicator'!$A$3:$AB$351, MATCH(Selection_Hide2!$A47, 'Full set Core Client Indicator'!$A$3:$A$351, 0), MATCH(Selection_Hide2!E$5, 'Full set Core Client Indicator'!$A$3:$AB$3, 0))), \"\")","v":""},{"$f":"IF(E47<>\"\", IF(INDEX('Full set Core Client Indicator'!$A$3:$AB$351, MATCH(Selection_Hide2!$A47, 'Full set Core Client Indicator'!$A$3:$A$351, 0), MATCH(Selection_Hide2!F$5, 'Full set Core Client Indicator'!$A$3:$AB$3, 0))=\"\", \"\",  INDEX('Full set Core Client Indicator'!$A$3:$AB$351, MATCH(Selection_Hide2!$A47, 'Full set Core Client Indicator'!$A$3:$A$351, 0), MATCH(Selection_Hide2!F$5, 'Full set Core Client Indicator'!$A$3:$AB$3, 0))), \"\")","v":""},{"$f":"IF(F47<>\"\", IF(INDEX('Full set Core Client Indicator'!$A$3:$AB$351, MATCH(Selection_Hide2!$A47, 'Full set Core Client Indicator'!$A$3:$A$351, 0), MATCH(Selection_Hide2!G$5, 'Full set Core Client Indicator'!$A$3:$AB$3, 0))=\"\", \"\",  INDEX('Full set Core Client Indicator'!$A$3:$AB$351, MATCH(Selection_Hide2!$A47, 'Full set Core Client Indicator'!$A$3:$A$351, 0), MATCH(Selection_Hide2!G$5, 'Full set Core Client Indicator'!$A$3:$AB$3, 0))), \"\")","v":""},{"$f":"IF(G47<>\"\", IF(INDEX('Full set Core Client Indicator'!$A$3:$AB$351, MATCH(Selection_Hide2!$A47, 'Full set Core Client Indicator'!$A$3:$A$351, 0), MATCH(Selection_Hide2!H$5, 'Full set Core Client Indicator'!$A$3:$AB$3, 0))=\"\", \"\",  INDEX('Full set Core Client Indicator'!$A$3:$AB$351, MATCH(Selection_Hide2!$A47, 'Full set Core Client Indicator'!$A$3:$A$351, 0), MATCH(Selection_Hide2!H$5, 'Full set Core Client Indicator'!$A$3:$AB$3, 0))), \"\")","v":""},{"$f":"IF(H47<>\"\", IF(INDEX('Full set Core Client Indicator'!$A$3:$AB$351, MATCH(Selection_Hide2!$A47, 'Full set Core Client Indicator'!$A$3:$A$351, 0), MATCH(Selection_Hide2!I$5, 'Full set Core Client Indicator'!$A$3:$AB$3, 0))=\"\", \"\",  INDEX('Full set Core Client Indicator'!$A$3:$AB$351, MATCH(Selection_Hide2!$A47, 'Full set Core Client Indicator'!$A$3:$A$351, 0), MATCH(Selection_Hide2!I$5, 'Full set Core Client Indicator'!$A$3:$AB$3, 0))), \"\")","v":""},{"$f":"IF(I47<>\"\", IF(INDEX('Full set Core Client Indicator'!$A$3:$AB$351, MATCH(Selection_Hide2!$A47, 'Full set Core Client Indicator'!$A$3:$A$351, 0), MATCH(Selection_Hide2!J$5, 'Full set Core Client Indicator'!$A$3:$AB$3, 0))=\"\", \"\",  INDEX('Full set Core Client Indicator'!$A$3:$AB$351, MATCH(Selection_Hide2!$A47, 'Full set Core Client Indicator'!$A$3:$A$351, 0), MATCH(Selection_Hide2!J$5, 'Full set Core Client Indicator'!$A$3:$AB$3, 0))), \"\")","v":""},{"$f":"IF(J47<>\"\", IF(INDEX('Full set Core Client Indicator'!$A$3:$AB$351, MATCH(Selection_Hide2!$A47, 'Full set Core Client Indicator'!$A$3:$A$351, 0), MATCH(Selection_Hide2!K$5, 'Full set Core Client Indicator'!$A$3:$AB$3, 0))=\"\", \"\",  INDEX('Full set Core Client Indicator'!$A$3:$AB$351, MATCH(Selection_Hide2!$A47, 'Full set Core Client Indicator'!$A$3:$A$351, 0), MATCH(Selection_Hide2!K$5, 'Full set Core Client Indicator'!$A$3:$AB$3, 0))), \"\")","v":""},{"$f":"IF(K47<>\"\", IF(INDEX('Full set Core Client Indicator'!$A$3:$AB$351, MATCH(Selection_Hide2!$A47, 'Full set Core Client Indicator'!$A$3:$A$351, 0), MATCH(Selection_Hide2!L$5, 'Full set Core Client Indicator'!$A$3:$AB$3, 0))=\"\", \"\",  INDEX('Full set Core Client Indicator'!$A$3:$AB$351, MATCH(Selection_Hide2!$A47, 'Full set Core Client Indicator'!$A$3:$A$351, 0), MATCH(Selection_Hide2!L$5, 'Full set Core Client Indicator'!$A$3:$AB$3, 0))), \"\")","v":""},{"$f":"IF(L47<>\"\", IF(INDEX('Full set Core Client Indicator'!$A$3:$AB$351, MATCH(Selection_Hide2!$A47, 'Full set Core Client Indicator'!$A$3:$A$351, 0), MATCH(Selection_Hide2!M$5, 'Full set Core Client Indicator'!$A$3:$AB$3, 0))=\"\", \"\",  INDEX('Full set Core Client Indicator'!$A$3:$AB$351, MATCH(Selection_Hide2!$A47, 'Full set Core Client Indicator'!$A$3:$A$351, 0), MATCH(Selection_Hide2!M$5, 'Full set Core Client Indicator'!$A$3:$AB$3, 0))), \"\")","v":""},{"$f":"IF(M47<>\"\", IF(INDEX('Full set Core Client Indicator'!$A$3:$AB$351, MATCH(Selection_Hide2!$A47, 'Full set Core Client Indicator'!$A$3:$A$351, 0), MATCH(Selection_Hide2!N$5, 'Full set Core Client Indicator'!$A$3:$AB$3, 0))=\"\", \"\",  INDEX('Full set Core Client Indicator'!$A$3:$AB$351, MATCH(Selection_Hide2!$A47, 'Full set Core Client Indicator'!$A$3:$A$351, 0), MATCH(Selection_Hide2!N$5, 'Full set Core Client Indicator'!$A$3:$AB$3, 0))), \"\")","v":""},{"$f":"IF(N47<>\"\", IF(INDEX('Full set Core Client Indicator'!$A$3:$AB$351, MATCH(Selection_Hide2!$A47, 'Full set Core Client Indicator'!$A$3:$A$351, 0), MATCH(Selection_Hide2!O$5, 'Full set Core Client Indicator'!$A$3:$AB$3, 0))=\"\", \"\",  INDEX('Full set Core Client Indicator'!$A$3:$AB$351, MATCH(Selection_Hide2!$A47, 'Full set Core Client Indicator'!$A$3:$A$351, 0), MATCH(Selection_Hide2!O$5, 'Full set Core Client Indicator'!$A$3:$AB$3, 0))), \"\")","v":""},{"$f":"IF(O47<>\"\", IF(INDEX('Full set Core Client Indicator'!$A$3:$AB$351, MATCH(Selection_Hide2!$A47, 'Full set Core Client Indicator'!$A$3:$A$351, 0), MATCH(Selection_Hide2!P$5, 'Full set Core Client Indicator'!$A$3:$AB$3, 0))=\"\", \"\",  INDEX('Full set Core Client Indicator'!$A$3:$AB$351, MATCH(Selection_Hide2!$A47, 'Full set Core Client Indicator'!$A$3:$A$351, 0), MATCH(Selection_Hide2!P$5, 'Full set Core Client Indicator'!$A$3:$AB$3, 0))), \"\")","v":""},{"$f":"IF(P47<>\"\", IF(INDEX('Full set Core Client Indicator'!$A$3:$AB$351, MATCH(Selection_Hide2!$A47, 'Full set Core Client Indicator'!$A$3:$A$351, 0), MATCH(Selection_Hide2!Q$5, 'Full set Core Client Indicator'!$A$3:$AB$3, 0))=\"\", \"\",  INDEX('Full set Core Client Indicator'!$A$3:$AB$351, MATCH(Selection_Hide2!$A47, 'Full set Core Client Indicator'!$A$3:$A$351, 0), MATCH(Selection_Hide2!Q$5, 'Full set Core Client Indicator'!$A$3:$AB$3, 0))), \"\")","v":""},{"$f":"IF(Q47<>\"\", IF(INDEX('Full set Core Client Indicator'!$A$3:$AB$351, MATCH(Selection_Hide2!$A47, 'Full set Core Client Indicator'!$A$3:$A$351, 0), MATCH(Selection_Hide2!R$5, 'Full set Core Client Indicator'!$A$3:$AB$3, 0))=\"\", \"\",  INDEX('Full set Core Client Indicator'!$A$3:$AB$351, MATCH(Selection_Hide2!$A47, 'Full set Core Client Indicator'!$A$3:$A$351, 0), MATCH(Selection_Hide2!R$5, 'Full set Core Client Indicator'!$A$3:$AB$3, 0))), \"\")","v":""},{"$f":"IF(R47<>\"\", IF(INDEX('Full set Core Client Indicator'!$A$3:$AB$351, MATCH(Selection_Hide2!$A47, 'Full set Core Client Indicator'!$A$3:$A$351, 0), MATCH(Selection_Hide2!S$5, 'Full set Core Client Indicator'!$A$3:$AB$3, 0))=\"\", \"\",  INDEX('Full set Core Client Indicator'!$A$3:$AB$351, MATCH(Selection_Hide2!$A47, 'Full set Core Client Indicator'!$A$3:$A$351, 0), MATCH(Selection_Hide2!S$5, 'Full set Core Client Indicator'!$A$3:$AB$3, 0))), \"\")","v":""},{"$f":"IF(S47<>\"\", IF(INDEX('Full set Core Client Indicator'!$A$3:$AB$351, MATCH(Selection_Hide2!$A47, 'Full set Core Client Indicator'!$A$3:$A$351, 0), MATCH(Selection_Hide2!T$5, 'Full set Core Client Indicator'!$A$3:$AB$3, 0))=\"\", \"\",  INDEX('Full set Core Client Indicator'!$A$3:$AB$351, MATCH(Selection_Hide2!$A47, 'Full set Core Client Indicator'!$A$3:$A$351, 0), MATCH(Selection_Hide2!T$5, 'Full set Core Client Indicator'!$A$3:$AB$3, 0))), \"\")","v":""},{"$f":"IF(T47<>\"\", IF(INDEX('Full set Core Client Indicator'!$A$3:$AB$351, MATCH(Selection_Hide2!$A47, 'Full set Core Client Indicator'!$A$3:$A$351, 0), MATCH(Selection_Hide2!U$5, 'Full set Core Client Indicator'!$A$3:$AB$3, 0))=\"\", \"\",  INDEX('Full set Core Client Indicator'!$A$3:$AB$351, MATCH(Selection_Hide2!$A47, 'Full set Core Client Indicator'!$A$3:$A$351, 0), MATCH(Selection_Hide2!U$5, 'Full set Core Client Indicator'!$A$3:$AB$3, 0))), \"\")","v":""},{"$f":"IF(U47<>\"\", IF(INDEX('Full set Core Client Indicator'!$A$3:$AB$351, MATCH(Selection_Hide2!$A47, 'Full set Core Client Indicator'!$A$3:$A$351, 0), MATCH(Selection_Hide2!V$5, 'Full set Core Client Indicator'!$A$3:$AB$3, 0))=\"\", \"\",  INDEX('Full set Core Client Indicator'!$A$3:$AB$351, MATCH(Selection_Hide2!$A47, 'Full set Core Client Indicator'!$A$3:$A$351, 0), MATCH(Selection_Hide2!V$5, 'Full set Core Client Indicator'!$A$3:$AB$3, 0))), \"\")","v":""},{"$f":"IF(V47<>\"\", IF(INDEX('Full set Core Client Indicator'!$A$3:$AB$351, MATCH(Selection_Hide2!$A47, 'Full set Core Client Indicator'!$A$3:$A$351, 0), MATCH(Selection_Hide2!W$5, 'Full set Core Client Indicator'!$A$3:$AB$3, 0))=\"\", \"\",  INDEX('Full set Core Client Indicator'!$A$3:$AB$351, MATCH(Selection_Hide2!$A47, 'Full set Core Client Indicator'!$A$3:$A$351, 0), MATCH(Selection_Hide2!W$5, 'Full set Core Client Indicator'!$A$3:$AB$3, 0))), \"\")","v":""},{"$f":"IF(W47<>\"\", IF(INDEX('Full set Core Client Indicator'!$A$3:$AB$351, MATCH(Selection_Hide2!$A47, 'Full set Core Client Indicator'!$A$3:$A$351, 0), MATCH(Selection_Hide2!X$5, 'Full set Core Client Indicator'!$A$3:$AB$3, 0))=\"\", \"\",  INDEX('Full set Core Client Indicator'!$A$3:$AB$351, MATCH(Selection_Hide2!$A47, 'Full set Core Client Indicator'!$A$3:$A$351, 0), MATCH(Selection_Hide2!X$5, 'Full set Core Client Indicator'!$A$3:$AB$3, 0))), \"\")","v":""},{"$f":"IF(X47<>\"\", IF(INDEX('Full set Core Client Indicator'!$A$3:$AB$351, MATCH(Selection_Hide2!$A47, 'Full set Core Client Indicator'!$A$3:$A$351, 0), MATCH(Selection_Hide2!Y$5, 'Full set Core Client Indicator'!$A$3:$AB$3, 0))=\"\", \"\",  INDEX('Full set Core Client Indicator'!$A$3:$AB$351, MATCH(Selection_Hide2!$A47, 'Full set Core Client Indicator'!$A$3:$A$351, 0), MATCH(Selection_Hide2!Y$5, 'Full set Core Client Indicator'!$A$3:$AB$3, 0))), \"\")","v":""},{"$f":"IF(Y47<>\"\", IF(INDEX('Full set Core Client Indicator'!$A$3:$AB$351, MATCH(Selection_Hide2!$A47, 'Full set Core Client Indicator'!$A$3:$A$351, 0), MATCH(Selection_Hide2!Z$5, 'Full set Core Client Indicator'!$A$3:$AB$3, 0))=\"\", \"\",  INDEX('Full set Core Client Indicator'!$A$3:$AB$351, MATCH(Selection_Hide2!$A47, 'Full set Core Client Indicator'!$A$3:$A$351, 0), MATCH(Selection_Hide2!Z$5, 'Full set Core Client Indicator'!$A$3:$AB$3, 0))), \"\")","v":""},{"$f":"IF(Z47<>\"\", IF(INDEX('Full set Core Client Indicator'!$A$3:$AB$351, MATCH(Selection_Hide2!$A47, 'Full set Core Client Indicator'!$A$3:$A$351, 0), MATCH(Selection_Hide2!AA$5, 'Full set Core Client Indicator'!$A$3:$AB$3, 0))=\"\", \"\",  INDEX('Full set Core Client Indicator'!$A$3:$AB$351, MATCH(Selection_Hide2!$A47, 'Full set Core Client Indicator'!$A$3:$A$351, 0), MATCH(Selection_Hide2!AA$5, 'Full set Core Client Indicator'!$A$3:$AB$3, 0))), \"\")","v":""},{"$f":"IF(AA47<>\"\", IF(INDEX('Full set Core Client Indicator'!$A$3:$AB$351, MATCH(Selection_Hide2!$A47, 'Full set Core Client Indicator'!$A$3:$A$351, 0), MATCH(Selection_Hide2!AB$5, 'Full set Core Client Indicator'!$A$3:$AB$3, 0))=\"\", \"\",  INDEX('Full set Core Client Indicator'!$A$3:$AB$351, MATCH(Selection_Hide2!$A47, 'Full set Core Client Indicator'!$A$3:$A$351, 0), MATCH(Selection_Hide2!AB$5, 'Full set Core Client Indicator'!$A$3:$AB$3, 0))), \"\")","v":""}]
[{"$f":"IF(AND(Selection_Hide1!C46<>0, Selection_Hide1!C46<>\"Grand Total\"), Selection_Hide1!C46, \"\")","v":""},{"$f":"IF(A48<>\"\", IF(INDEX('Full set Core Client Indicator'!$A$3:$AB$351, MATCH(Selection_Hide2!$A48, 'Full set Core Client Indicator'!$A$3:$A$351, 0), MATCH(Selection_Hide2!B$5, 'Full set Core Client Indicator'!$A$3:$AB$3, 0))=\"\", \"\",  INDEX('Full set Core Client Indicator'!$A$3:$AB$351, MATCH(Selection_Hide2!$A48, 'Full set Core Client Indicator'!$A$3:$A$351, 0), MATCH(Selection_Hide2!B$5, 'Full set Core Client Indicator'!$A$3:$AB$3, 0))), \"\")","v":""},{"$f":"IF(B48<>\"\", IF(INDEX('Full set Core Client Indicator'!$A$3:$AB$351, MATCH(Selection_Hide2!$A48, 'Full set Core Client Indicator'!$A$3:$A$351, 0), MATCH(Selection_Hide2!C$5, 'Full set Core Client Indicator'!$A$3:$AB$3, 0))=\"\", \"\",  INDEX('Full set Core Client Indicator'!$A$3:$AB$351, MATCH(Selection_Hide2!$A48, 'Full set Core Client Indicator'!$A$3:$A$351, 0), MATCH(Selection_Hide2!C$5, 'Full set Core Client Indicator'!$A$3:$AB$3, 0))), \"\")","v":""},{"$f":"IF(C48<>\"\", IF(INDEX('Full set Core Client Indicator'!$A$3:$AB$351, MATCH(Selection_Hide2!$A48, 'Full set Core Client Indicator'!$A$3:$A$351, 0), MATCH(Selection_Hide2!D$5, 'Full set Core Client Indicator'!$A$3:$AB$3, 0))=\"\", \"\",  INDEX('Full set Core Client Indicator'!$A$3:$AB$351, MATCH(Selection_Hide2!$A48, 'Full set Core Client Indicator'!$A$3:$A$351, 0), MATCH(Selection_Hide2!D$5, 'Full set Core Client Indicator'!$A$3:$AB$3, 0))), \"\")","v":""},{"$f":"IF(D48<>\"\", IF(INDEX('Full set Core Client Indicator'!$A$3:$AB$351, MATCH(Selection_Hide2!$A48, 'Full set Core Client Indicator'!$A$3:$A$351, 0), MATCH(Selection_Hide2!E$5, 'Full set Core Client Indicator'!$A$3:$AB$3, 0))=\"\", \"\",  INDEX('Full set Core Client Indicator'!$A$3:$AB$351, MATCH(Selection_Hide2!$A48, 'Full set Core Client Indicator'!$A$3:$A$351, 0), MATCH(Selection_Hide2!E$5, 'Full set Core Client Indicator'!$A$3:$AB$3, 0))), \"\")","v":""},{"$f":"IF(E48<>\"\", IF(INDEX('Full set Core Client Indicator'!$A$3:$AB$351, MATCH(Selection_Hide2!$A48, 'Full set Core Client Indicator'!$A$3:$A$351, 0), MATCH(Selection_Hide2!F$5, 'Full set Core Client Indicator'!$A$3:$AB$3, 0))=\"\", \"\",  INDEX('Full set Core Client Indicator'!$A$3:$AB$351, MATCH(Selection_Hide2!$A48, 'Full set Core Client Indicator'!$A$3:$A$351, 0), MATCH(Selection_Hide2!F$5, 'Full set Core Client Indicator'!$A$3:$AB$3, 0))), \"\")","v":""},{"$f":"IF(F48<>\"\", IF(INDEX('Full set Core Client Indicator'!$A$3:$AB$351, MATCH(Selection_Hide2!$A48, 'Full set Core Client Indicator'!$A$3:$A$351, 0), MATCH(Selection_Hide2!G$5, 'Full set Core Client Indicator'!$A$3:$AB$3, 0))=\"\", \"\",  INDEX('Full set Core Client Indicator'!$A$3:$AB$351, MATCH(Selection_Hide2!$A48, 'Full set Core Client Indicator'!$A$3:$A$351, 0), MATCH(Selection_Hide2!G$5, 'Full set Core Client Indicator'!$A$3:$AB$3, 0))), \"\")","v":""},{"$f":"IF(G48<>\"\", IF(INDEX('Full set Core Client Indicator'!$A$3:$AB$351, MATCH(Selection_Hide2!$A48, 'Full set Core Client Indicator'!$A$3:$A$351, 0), MATCH(Selection_Hide2!H$5, 'Full set Core Client Indicator'!$A$3:$AB$3, 0))=\"\", \"\",  INDEX('Full set Core Client Indicator'!$A$3:$AB$351, MATCH(Selection_Hide2!$A48, 'Full set Core Client Indicator'!$A$3:$A$351, 0), MATCH(Selection_Hide2!H$5, 'Full set Core Client Indicator'!$A$3:$AB$3, 0))), \"\")","v":""},{"$f":"IF(H48<>\"\", IF(INDEX('Full set Core Client Indicator'!$A$3:$AB$351, MATCH(Selection_Hide2!$A48, 'Full set Core Client Indicator'!$A$3:$A$351, 0), MATCH(Selection_Hide2!I$5, 'Full set Core Client Indicator'!$A$3:$AB$3, 0))=\"\", \"\",  INDEX('Full set Core Client Indicator'!$A$3:$AB$351, MATCH(Selection_Hide2!$A48, 'Full set Core Client Indicator'!$A$3:$A$351, 0), MATCH(Selection_Hide2!I$5, 'Full set Core Client Indicator'!$A$3:$AB$3, 0))), \"\")","v":""},{"$f":"IF(I48<>\"\", IF(INDEX('Full set Core Client Indicator'!$A$3:$AB$351, MATCH(Selection_Hide2!$A48, 'Full set Core Client Indicator'!$A$3:$A$351, 0), MATCH(Selection_Hide2!J$5, 'Full set Core Client Indicator'!$A$3:$AB$3, 0))=\"\", \"\",  INDEX('Full set Core Client Indicator'!$A$3:$AB$351, MATCH(Selection_Hide2!$A48, 'Full set Core Client Indicator'!$A$3:$A$351, 0), MATCH(Selection_Hide2!J$5, 'Full set Core Client Indicator'!$A$3:$AB$3, 0))), \"\")","v":""},{"$f":"IF(J48<>\"\", IF(INDEX('Full set Core Client Indicator'!$A$3:$AB$351, MATCH(Selection_Hide2!$A48, 'Full set Core Client Indicator'!$A$3:$A$351, 0), MATCH(Selection_Hide2!K$5, 'Full set Core Client Indicator'!$A$3:$AB$3, 0))=\"\", \"\",  INDEX('Full set Core Client Indicator'!$A$3:$AB$351, MATCH(Selection_Hide2!$A48, 'Full set Core Client Indicator'!$A$3:$A$351, 0), MATCH(Selection_Hide2!K$5, 'Full set Core Client Indicator'!$A$3:$AB$3, 0))), \"\")","v":""},{"$f":"IF(K48<>\"\", IF(INDEX('Full set Core Client Indicator'!$A$3:$AB$351, MATCH(Selection_Hide2!$A48, 'Full set Core Client Indicator'!$A$3:$A$351, 0), MATCH(Selection_Hide2!L$5, 'Full set Core Client Indicator'!$A$3:$AB$3, 0))=\"\", \"\",  INDEX('Full set Core Client Indicator'!$A$3:$AB$351, MATCH(Selection_Hide2!$A48, 'Full set Core Client Indicator'!$A$3:$A$351, 0), MATCH(Selection_Hide2!L$5, 'Full set Core Client Indicator'!$A$3:$AB$3, 0))), \"\")","v":""},{"$f":"IF(L48<>\"\", IF(INDEX('Full set Core Client Indicator'!$A$3:$AB$351, MATCH(Selection_Hide2!$A48, 'Full set Core Client Indicator'!$A$3:$A$351, 0), MATCH(Selection_Hide2!M$5, 'Full set Core Client Indicator'!$A$3:$AB$3, 0))=\"\", \"\",  INDEX('Full set Core Client Indicator'!$A$3:$AB$351, MATCH(Selection_Hide2!$A48, 'Full set Core Client Indicator'!$A$3:$A$351, 0), MATCH(Selection_Hide2!M$5, 'Full set Core Client Indicator'!$A$3:$AB$3, 0))), \"\")","v":""},{"$f":"IF(M48<>\"\", IF(INDEX('Full set Core Client Indicator'!$A$3:$AB$351, MATCH(Selection_Hide2!$A48, 'Full set Core Client Indicator'!$A$3:$A$351, 0), MATCH(Selection_Hide2!N$5, 'Full set Core Client Indicator'!$A$3:$AB$3, 0))=\"\", \"\",  INDEX('Full set Core Client Indicator'!$A$3:$AB$351, MATCH(Selection_Hide2!$A48, 'Full set Core Client Indicator'!$A$3:$A$351, 0), MATCH(Selection_Hide2!N$5, 'Full set Core Client Indicator'!$A$3:$AB$3, 0))), \"\")","v":""},{"$f":"IF(N48<>\"\", IF(INDEX('Full set Core Client Indicator'!$A$3:$AB$351, MATCH(Selection_Hide2!$A48, 'Full set Core Client Indicator'!$A$3:$A$351, 0), MATCH(Selection_Hide2!O$5, 'Full set Core Client Indicator'!$A$3:$AB$3, 0))=\"\", \"\",  INDEX('Full set Core Client Indicator'!$A$3:$AB$351, MATCH(Selection_Hide2!$A48, 'Full set Core Client Indicator'!$A$3:$A$351, 0), MATCH(Selection_Hide2!O$5, 'Full set Core Client Indicator'!$A$3:$AB$3, 0))), \"\")","v":""},{"$f":"IF(O48<>\"\", IF(INDEX('Full set Core Client Indicator'!$A$3:$AB$351, MATCH(Selection_Hide2!$A48, 'Full set Core Client Indicator'!$A$3:$A$351, 0), MATCH(Selection_Hide2!P$5, 'Full set Core Client Indicator'!$A$3:$AB$3, 0))=\"\", \"\",  INDEX('Full set Core Client Indicator'!$A$3:$AB$351, MATCH(Selection_Hide2!$A48, 'Full set Core Client Indicator'!$A$3:$A$351, 0), MATCH(Selection_Hide2!P$5, 'Full set Core Client Indicator'!$A$3:$AB$3, 0))), \"\")","v":""},{"$f":"IF(P48<>\"\", IF(INDEX('Full set Core Client Indicator'!$A$3:$AB$351, MATCH(Selection_Hide2!$A48, 'Full set Core Client Indicator'!$A$3:$A$351, 0), MATCH(Selection_Hide2!Q$5, 'Full set Core Client Indicator'!$A$3:$AB$3, 0))=\"\", \"\",  INDEX('Full set Core Client Indicator'!$A$3:$AB$351, MATCH(Selection_Hide2!$A48, 'Full set Core Client Indicator'!$A$3:$A$351, 0), MATCH(Selection_Hide2!Q$5, 'Full set Core Client Indicator'!$A$3:$AB$3, 0))), \"\")","v":""},{"$f":"IF(Q48<>\"\", IF(INDEX('Full set Core Client Indicator'!$A$3:$AB$351, MATCH(Selection_Hide2!$A48, 'Full set Core Client Indicator'!$A$3:$A$351, 0), MATCH(Selection_Hide2!R$5, 'Full set Core Client Indicator'!$A$3:$AB$3, 0))=\"\", \"\",  INDEX('Full set Core Client Indicator'!$A$3:$AB$351, MATCH(Selection_Hide2!$A48, 'Full set Core Client Indicator'!$A$3:$A$351, 0), MATCH(Selection_Hide2!R$5, 'Full set Core Client Indicator'!$A$3:$AB$3, 0))), \"\")","v":""},{"$f":"IF(R48<>\"\", IF(INDEX('Full set Core Client Indicator'!$A$3:$AB$351, MATCH(Selection_Hide2!$A48, 'Full set Core Client Indicator'!$A$3:$A$351, 0), MATCH(Selection_Hide2!S$5, 'Full set Core Client Indicator'!$A$3:$AB$3, 0))=\"\", \"\",  INDEX('Full set Core Client Indicator'!$A$3:$AB$351, MATCH(Selection_Hide2!$A48, 'Full set Core Client Indicator'!$A$3:$A$351, 0), MATCH(Selection_Hide2!S$5, 'Full set Core Client Indicator'!$A$3:$AB$3, 0))), \"\")","v":""},{"$f":"IF(S48<>\"\", IF(INDEX('Full set Core Client Indicator'!$A$3:$AB$351, MATCH(Selection_Hide2!$A48, 'Full set Core Client Indicator'!$A$3:$A$351, 0), MATCH(Selection_Hide2!T$5, 'Full set Core Client Indicator'!$A$3:$AB$3, 0))=\"\", \"\",  INDEX('Full set Core Client Indicator'!$A$3:$AB$351, MATCH(Selection_Hide2!$A48, 'Full set Core Client Indicator'!$A$3:$A$351, 0), MATCH(Selection_Hide2!T$5, 'Full set Core Client Indicator'!$A$3:$AB$3, 0))), \"\")","v":""},{"$f":"IF(T48<>\"\", IF(INDEX('Full set Core Client Indicator'!$A$3:$AB$351, MATCH(Selection_Hide2!$A48, 'Full set Core Client Indicator'!$A$3:$A$351, 0), MATCH(Selection_Hide2!U$5, 'Full set Core Client Indicator'!$A$3:$AB$3, 0))=\"\", \"\",  INDEX('Full set Core Client Indicator'!$A$3:$AB$351, MATCH(Selection_Hide2!$A48, 'Full set Core Client Indicator'!$A$3:$A$351, 0), MATCH(Selection_Hide2!U$5, 'Full set Core Client Indicator'!$A$3:$AB$3, 0))), \"\")","v":""},{"$f":"IF(U48<>\"\", IF(INDEX('Full set Core Client Indicator'!$A$3:$AB$351, MATCH(Selection_Hide2!$A48, 'Full set Core Client Indicator'!$A$3:$A$351, 0), MATCH(Selection_Hide2!V$5, 'Full set Core Client Indicator'!$A$3:$AB$3, 0))=\"\", \"\",  INDEX('Full set Core Client Indicator'!$A$3:$AB$351, MATCH(Selection_Hide2!$A48, 'Full set Core Client Indicator'!$A$3:$A$351, 0), MATCH(Selection_Hide2!V$5, 'Full set Core Client Indicator'!$A$3:$AB$3, 0))), \"\")","v":""},{"$f":"IF(V48<>\"\", IF(INDEX('Full set Core Client Indicator'!$A$3:$AB$351, MATCH(Selection_Hide2!$A48, 'Full set Core Client Indicator'!$A$3:$A$351, 0), MATCH(Selection_Hide2!W$5, 'Full set Core Client Indicator'!$A$3:$AB$3, 0))=\"\", \"\",  INDEX('Full set Core Client Indicator'!$A$3:$AB$351, MATCH(Selection_Hide2!$A48, 'Full set Core Client Indicator'!$A$3:$A$351, 0), MATCH(Selection_Hide2!W$5, 'Full set Core Client Indicator'!$A$3:$AB$3, 0))), \"\")","v":""},{"$f":"IF(W48<>\"\", IF(INDEX('Full set Core Client Indicator'!$A$3:$AB$351, MATCH(Selection_Hide2!$A48, 'Full set Core Client Indicator'!$A$3:$A$351, 0), MATCH(Selection_Hide2!X$5, 'Full set Core Client Indicator'!$A$3:$AB$3, 0))=\"\", \"\",  INDEX('Full set Core Client Indicator'!$A$3:$AB$351, MATCH(Selection_Hide2!$A48, 'Full set Core Client Indicator'!$A$3:$A$351, 0), MATCH(Selection_Hide2!X$5, 'Full set Core Client Indicator'!$A$3:$AB$3, 0))), \"\")","v":""},{"$f":"IF(X48<>\"\", IF(INDEX('Full set Core Client Indicator'!$A$3:$AB$351, MATCH(Selection_Hide2!$A48, 'Full set Core Client Indicator'!$A$3:$A$351, 0), MATCH(Selection_Hide2!Y$5, 'Full set Core Client Indicator'!$A$3:$AB$3, 0))=\"\", \"\",  INDEX('Full set Core Client Indicator'!$A$3:$AB$351, MATCH(Selection_Hide2!$A48, 'Full set Core Client Indicator'!$A$3:$A$351, 0), MATCH(Selection_Hide2!Y$5, 'Full set Core Client Indicator'!$A$3:$AB$3, 0))), \"\")","v":""},{"$f":"IF(Y48<>\"\", IF(INDEX('Full set Core Client Indicator'!$A$3:$AB$351, MATCH(Selection_Hide2!$A48, 'Full set Core Client Indicator'!$A$3:$A$351, 0), MATCH(Selection_Hide2!Z$5, 'Full set Core Client Indicator'!$A$3:$AB$3, 0))=\"\", \"\",  INDEX('Full set Core Client Indicator'!$A$3:$AB$351, MATCH(Selection_Hide2!$A48, 'Full set Core Client Indicator'!$A$3:$A$351, 0), MATCH(Selection_Hide2!Z$5, 'Full set Core Client Indicator'!$A$3:$AB$3, 0))), \"\")","v":""},{"$f":"IF(Z48<>\"\", IF(INDEX('Full set Core Client Indicator'!$A$3:$AB$351, MATCH(Selection_Hide2!$A48, 'Full set Core Client Indicator'!$A$3:$A$351, 0), MATCH(Selection_Hide2!AA$5, 'Full set Core Client Indicator'!$A$3:$AB$3, 0))=\"\", \"\",  INDEX('Full set Core Client Indicator'!$A$3:$AB$351, MATCH(Selection_Hide2!$A48, 'Full set Core Client Indicator'!$A$3:$A$351, 0), MATCH(Selection_Hide2!AA$5, 'Full set Core Client Indicator'!$A$3:$AB$3, 0))), \"\")","v":""},{"$f":"IF(AA48<>\"\", IF(INDEX('Full set Core Client Indicator'!$A$3:$AB$351, MATCH(Selection_Hide2!$A48, 'Full set Core Client Indicator'!$A$3:$A$351, 0), MATCH(Selection_Hide2!AB$5, 'Full set Core Client Indicator'!$A$3:$AB$3, 0))=\"\", \"\",  INDEX('Full set Core Client Indicator'!$A$3:$AB$351, MATCH(Selection_Hide2!$A48, 'Full set Core Client Indicator'!$A$3:$A$351, 0), MATCH(Selection_Hide2!AB$5, 'Full set Core Client Indicator'!$A$3:$AB$3, 0))), \"\")","v":""}]
[{"$f":"IF(AND(Selection_Hide1!C47<>0, Selection_Hide1!C47<>\"Grand Total\"), Selection_Hide1!C47, \"\")","v":""},{"$f":"IF(A49<>\"\", IF(INDEX('Full set Core Client Indicator'!$A$3:$AB$351, MATCH(Selection_Hide2!$A49, 'Full set Core Client Indicator'!$A$3:$A$351, 0), MATCH(Selection_Hide2!B$5, 'Full set Core Client Indicator'!$A$3:$AB$3, 0))=\"\", \"\",  INDEX('Full set Core Client Indicator'!$A$3:$AB$351, MATCH(Selection_Hide2!$A49, 'Full set Core Client Indicator'!$A$3:$A$351, 0), MATCH(Selection_Hide2!B$5, 'Full set Core Client Indicator'!$A$3:$AB$3, 0))), \"\")","v":""},{"$f":"IF(B49<>\"\", IF(INDEX('Full set Core Client Indicator'!$A$3:$AB$351, MATCH(Selection_Hide2!$A49, 'Full set Core Client Indicator'!$A$3:$A$351, 0), MATCH(Selection_Hide2!C$5, 'Full set Core Client Indicator'!$A$3:$AB$3, 0))=\"\", \"\",  INDEX('Full set Core Client Indicator'!$A$3:$AB$351, MATCH(Selection_Hide2!$A49, 'Full set Core Client Indicator'!$A$3:$A$351, 0), MATCH(Selection_Hide2!C$5, 'Full set Core Client Indicator'!$A$3:$AB$3, 0))), \"\")","v":""},{"$f":"IF(C49<>\"\", IF(INDEX('Full set Core Client Indicator'!$A$3:$AB$351, MATCH(Selection_Hide2!$A49, 'Full set Core Client Indicator'!$A$3:$A$351, 0), MATCH(Selection_Hide2!D$5, 'Full set Core Client Indicator'!$A$3:$AB$3, 0))=\"\", \"\",  INDEX('Full set Core Client Indicator'!$A$3:$AB$351, MATCH(Selection_Hide2!$A49, 'Full set Core Client Indicator'!$A$3:$A$351, 0), MATCH(Selection_Hide2!D$5, 'Full set Core Client Indicator'!$A$3:$AB$3, 0))), \"\")","v":""},{"$f":"IF(D49<>\"\", IF(INDEX('Full set Core Client Indicator'!$A$3:$AB$351, MATCH(Selection_Hide2!$A49, 'Full set Core Client Indicator'!$A$3:$A$351, 0), MATCH(Selection_Hide2!E$5, 'Full set Core Client Indicator'!$A$3:$AB$3, 0))=\"\", \"\",  INDEX('Full set Core Client Indicator'!$A$3:$AB$351, MATCH(Selection_Hide2!$A49, 'Full set Core Client Indicator'!$A$3:$A$351, 0), MATCH(Selection_Hide2!E$5, 'Full set Core Client Indicator'!$A$3:$AB$3, 0))), \"\")","v":""},{"$f":"IF(E49<>\"\", IF(INDEX('Full set Core Client Indicator'!$A$3:$AB$351, MATCH(Selection_Hide2!$A49, 'Full set Core Client Indicator'!$A$3:$A$351, 0), MATCH(Selection_Hide2!F$5, 'Full set Core Client Indicator'!$A$3:$AB$3, 0))=\"\", \"\",  INDEX('Full set Core Client Indicator'!$A$3:$AB$351, MATCH(Selection_Hide2!$A49, 'Full set Core Client Indicator'!$A$3:$A$351, 0), MATCH(Selection_Hide2!F$5, 'Full set Core Client Indicator'!$A$3:$AB$3, 0))), \"\")","v":""},{"$f":"IF(F49<>\"\", IF(INDEX('Full set Core Client Indicator'!$A$3:$AB$351, MATCH(Selection_Hide2!$A49, 'Full set Core Client Indicator'!$A$3:$A$351, 0), MATCH(Selection_Hide2!G$5, 'Full set Core Client Indicator'!$A$3:$AB$3, 0))=\"\", \"\",  INDEX('Full set Core Client Indicator'!$A$3:$AB$351, MATCH(Selection_Hide2!$A49, 'Full set Core Client Indicator'!$A$3:$A$351, 0), MATCH(Selection_Hide2!G$5, 'Full set Core Client Indicator'!$A$3:$AB$3, 0))), \"\")","v":""},{"$f":"IF(G49<>\"\", IF(INDEX('Full set Core Client Indicator'!$A$3:$AB$351, MATCH(Selection_Hide2!$A49, 'Full set Core Client Indicator'!$A$3:$A$351, 0), MATCH(Selection_Hide2!H$5, 'Full set Core Client Indicator'!$A$3:$AB$3, 0))=\"\", \"\",  INDEX('Full set Core Client Indicator'!$A$3:$AB$351, MATCH(Selection_Hide2!$A49, 'Full set Core Client Indicator'!$A$3:$A$351, 0), MATCH(Selection_Hide2!H$5, 'Full set Core Client Indicator'!$A$3:$AB$3, 0))), \"\")","v":""},{"$f":"IF(H49<>\"\", IF(INDEX('Full set Core Client Indicator'!$A$3:$AB$351, MATCH(Selection_Hide2!$A49, 'Full set Core Client Indicator'!$A$3:$A$351, 0), MATCH(Selection_Hide2!I$5, 'Full set Core Client Indicator'!$A$3:$AB$3, 0))=\"\", \"\",  INDEX('Full set Core Client Indicator'!$A$3:$AB$351, MATCH(Selection_Hide2!$A49, 'Full set Core Client Indicator'!$A$3:$A$351, 0), MATCH(Selection_Hide2!I$5, 'Full set Core Client Indicator'!$A$3:$AB$3, 0))), \"\")","v":""},{"$f":"IF(I49<>\"\", IF(INDEX('Full set Core Client Indicator'!$A$3:$AB$351, MATCH(Selection_Hide2!$A49, 'Full set Core Client Indicator'!$A$3:$A$351, 0), MATCH(Selection_Hide2!J$5, 'Full set Core Client Indicator'!$A$3:$AB$3, 0))=\"\", \"\",  INDEX('Full set Core Client Indicator'!$A$3:$AB$351, MATCH(Selection_Hide2!$A49, 'Full set Core Client Indicator'!$A$3:$A$351, 0), MATCH(Selection_Hide2!J$5, 'Full set Core Client Indicator'!$A$3:$AB$3, 0))), \"\")","v":""},{"$f":"IF(J49<>\"\", IF(INDEX('Full set Core Client Indicator'!$A$3:$AB$351, MATCH(Selection_Hide2!$A49, 'Full set Core Client Indicator'!$A$3:$A$351, 0), MATCH(Selection_Hide2!K$5, 'Full set Core Client Indicator'!$A$3:$AB$3, 0))=\"\", \"\",  INDEX('Full set Core Client Indicator'!$A$3:$AB$351, MATCH(Selection_Hide2!$A49, 'Full set Core Client Indicator'!$A$3:$A$351, 0), MATCH(Selection_Hide2!K$5, 'Full set Core Client Indicator'!$A$3:$AB$3, 0))), \"\")","v":""},{"$f":"IF(K49<>\"\", IF(INDEX('Full set Core Client Indicator'!$A$3:$AB$351, MATCH(Selection_Hide2!$A49, 'Full set Core Client Indicator'!$A$3:$A$351, 0), MATCH(Selection_Hide2!L$5, 'Full set Core Client Indicator'!$A$3:$AB$3, 0))=\"\", \"\",  INDEX('Full set Core Client Indicator'!$A$3:$AB$351, MATCH(Selection_Hide2!$A49, 'Full set Core Client Indicator'!$A$3:$A$351, 0), MATCH(Selection_Hide2!L$5, 'Full set Core Client Indicator'!$A$3:$AB$3, 0))), \"\")","v":""},{"$f":"IF(L49<>\"\", IF(INDEX('Full set Core Client Indicator'!$A$3:$AB$351, MATCH(Selection_Hide2!$A49, 'Full set Core Client Indicator'!$A$3:$A$351, 0), MATCH(Selection_Hide2!M$5, 'Full set Core Client Indicator'!$A$3:$AB$3, 0))=\"\", \"\",  INDEX('Full set Core Client Indicator'!$A$3:$AB$351, MATCH(Selection_Hide2!$A49, 'Full set Core Client Indicator'!$A$3:$A$351, 0), MATCH(Selection_Hide2!M$5, 'Full set Core Client Indicator'!$A$3:$AB$3, 0))), \"\")","v":""},{"$f":"IF(M49<>\"\", IF(INDEX('Full set Core Client Indicator'!$A$3:$AB$351, MATCH(Selection_Hide2!$A49, 'Full set Core Client Indicator'!$A$3:$A$351, 0), MATCH(Selection_Hide2!N$5, 'Full set Core Client Indicator'!$A$3:$AB$3, 0))=\"\", \"\",  INDEX('Full set Core Client Indicator'!$A$3:$AB$351, MATCH(Selection_Hide2!$A49, 'Full set Core Client Indicator'!$A$3:$A$351, 0), MATCH(Selection_Hide2!N$5, 'Full set Core Client Indicator'!$A$3:$AB$3, 0))), \"\")","v":""},{"$f":"IF(N49<>\"\", IF(INDEX('Full set Core Client Indicator'!$A$3:$AB$351, MATCH(Selection_Hide2!$A49, 'Full set Core Client Indicator'!$A$3:$A$351, 0), MATCH(Selection_Hide2!O$5, 'Full set Core Client Indicator'!$A$3:$AB$3, 0))=\"\", \"\",  INDEX('Full set Core Client Indicator'!$A$3:$AB$351, MATCH(Selection_Hide2!$A49, 'Full set Core Client Indicator'!$A$3:$A$351, 0), MATCH(Selection_Hide2!O$5, 'Full set Core Client Indicator'!$A$3:$AB$3, 0))), \"\")","v":""},{"$f":"IF(O49<>\"\", IF(INDEX('Full set Core Client Indicator'!$A$3:$AB$351, MATCH(Selection_Hide2!$A49, 'Full set Core Client Indicator'!$A$3:$A$351, 0), MATCH(Selection_Hide2!P$5, 'Full set Core Client Indicator'!$A$3:$AB$3, 0))=\"\", \"\",  INDEX('Full set Core Client Indicator'!$A$3:$AB$351, MATCH(Selection_Hide2!$A49, 'Full set Core Client Indicator'!$A$3:$A$351, 0), MATCH(Selection_Hide2!P$5, 'Full set Core Client Indicator'!$A$3:$AB$3, 0))), \"\")","v":""},{"$f":"IF(P49<>\"\", IF(INDEX('Full set Core Client Indicator'!$A$3:$AB$351, MATCH(Selection_Hide2!$A49, 'Full set Core Client Indicator'!$A$3:$A$351, 0), MATCH(Selection_Hide2!Q$5, 'Full set Core Client Indicator'!$A$3:$AB$3, 0))=\"\", \"\",  INDEX('Full set Core Client Indicator'!$A$3:$AB$351, MATCH(Selection_Hide2!$A49, 'Full set Core Client Indicator'!$A$3:$A$351, 0), MATCH(Selection_Hide2!Q$5, 'Full set Core Client Indicator'!$A$3:$AB$3, 0))), \"\")","v":""},{"$f":"IF(Q49<>\"\", IF(INDEX('Full set Core Client Indicator'!$A$3:$AB$351, MATCH(Selection_Hide2!$A49, 'Full set Core Client Indicator'!$A$3:$A$351, 0), MATCH(Selection_Hide2!R$5, 'Full set Core Client Indicator'!$A$3:$AB$3, 0))=\"\", \"\",  INDEX('Full set Core Client Indicator'!$A$3:$AB$351, MATCH(Selection_Hide2!$A49, 'Full set Core Client Indicator'!$A$3:$A$351, 0), MATCH(Selection_Hide2!R$5, 'Full set Core Client Indicator'!$A$3:$AB$3, 0))), \"\")","v":""},{"$f":"IF(R49<>\"\", IF(INDEX('Full set Core Client Indicator'!$A$3:$AB$351, MATCH(Selection_Hide2!$A49, 'Full set Core Client Indicator'!$A$3:$A$351, 0), MATCH(Selection_Hide2!S$5, 'Full set Core Client Indicator'!$A$3:$AB$3, 0))=\"\", \"\",  INDEX('Full set Core Client Indicator'!$A$3:$AB$351, MATCH(Selection_Hide2!$A49, 'Full set Core Client Indicator'!$A$3:$A$351, 0), MATCH(Selection_Hide2!S$5, 'Full set Core Client Indicator'!$A$3:$AB$3, 0))), \"\")","v":""},{"$f":"IF(S49<>\"\", IF(INDEX('Full set Core Client Indicator'!$A$3:$AB$351, MATCH(Selection_Hide2!$A49, 'Full set Core Client Indicator'!$A$3:$A$351, 0), MATCH(Selection_Hide2!T$5, 'Full set Core Client Indicator'!$A$3:$AB$3, 0))=\"\", \"\",  INDEX('Full set Core Client Indicator'!$A$3:$AB$351, MATCH(Selection_Hide2!$A49, 'Full set Core Client Indicator'!$A$3:$A$351, 0), MATCH(Selection_Hide2!T$5, 'Full set Core Client Indicator'!$A$3:$AB$3, 0))), \"\")","v":""},{"$f":"IF(T49<>\"\", IF(INDEX('Full set Core Client Indicator'!$A$3:$AB$351, MATCH(Selection_Hide2!$A49, 'Full set Core Client Indicator'!$A$3:$A$351, 0), MATCH(Selection_Hide2!U$5, 'Full set Core Client Indicator'!$A$3:$AB$3, 0))=\"\", \"\",  INDEX('Full set Core Client Indicator'!$A$3:$AB$351, MATCH(Selection_Hide2!$A49, 'Full set Core Client Indicator'!$A$3:$A$351, 0), MATCH(Selection_Hide2!U$5, 'Full set Core Client Indicator'!$A$3:$AB$3, 0))), \"\")","v":""},{"$f":"IF(U49<>\"\", IF(INDEX('Full set Core Client Indicator'!$A$3:$AB$351, MATCH(Selection_Hide2!$A49, 'Full set Core Client Indicator'!$A$3:$A$351, 0), MATCH(Selection_Hide2!V$5, 'Full set Core Client Indicator'!$A$3:$AB$3, 0))=\"\", \"\",  INDEX('Full set Core Client Indicator'!$A$3:$AB$351, MATCH(Selection_Hide2!$A49, 'Full set Core Client Indicator'!$A$3:$A$351, 0), MATCH(Selection_Hide2!V$5, 'Full set Core Client Indicator'!$A$3:$AB$3, 0))), \"\")","v":""},{"$f":"IF(V49<>\"\", IF(INDEX('Full set Core Client Indicator'!$A$3:$AB$351, MATCH(Selection_Hide2!$A49, 'Full set Core Client Indicator'!$A$3:$A$351, 0), MATCH(Selection_Hide2!W$5, 'Full set Core Client Indicator'!$A$3:$AB$3, 0))=\"\", \"\",  INDEX('Full set Core Client Indicator'!$A$3:$AB$351, MATCH(Selection_Hide2!$A49, 'Full set Core Client Indicator'!$A$3:$A$351, 0), MATCH(Selection_Hide2!W$5, 'Full set Core Client Indicator'!$A$3:$AB$3, 0))), \"\")","v":""},{"$f":"IF(W49<>\"\", IF(INDEX('Full set Core Client Indicator'!$A$3:$AB$351, MATCH(Selection_Hide2!$A49, 'Full set Core Client Indicator'!$A$3:$A$351, 0), MATCH(Selection_Hide2!X$5, 'Full set Core Client Indicator'!$A$3:$AB$3, 0))=\"\", \"\",  INDEX('Full set Core Client Indicator'!$A$3:$AB$351, MATCH(Selection_Hide2!$A49, 'Full set Core Client Indicator'!$A$3:$A$351, 0), MATCH(Selection_Hide2!X$5, 'Full set Core Client Indicator'!$A$3:$AB$3, 0))), \"\")","v":""},{"$f":"IF(X49<>\"\", IF(INDEX('Full set Core Client Indicator'!$A$3:$AB$351, MATCH(Selection_Hide2!$A49, 'Full set Core Client Indicator'!$A$3:$A$351, 0), MATCH(Selection_Hide2!Y$5, 'Full set Core Client Indicator'!$A$3:$AB$3, 0))=\"\", \"\",  INDEX('Full set Core Client Indicator'!$A$3:$AB$351, MATCH(Selection_Hide2!$A49, 'Full set Core Client Indicator'!$A$3:$A$351, 0), MATCH(Selection_Hide2!Y$5, 'Full set Core Client Indicator'!$A$3:$AB$3, 0))), \"\")","v":""},{"$f":"IF(Y49<>\"\", IF(INDEX('Full set Core Client Indicator'!$A$3:$AB$351, MATCH(Selection_Hide2!$A49, 'Full set Core Client Indicator'!$A$3:$A$351, 0), MATCH(Selection_Hide2!Z$5, 'Full set Core Client Indicator'!$A$3:$AB$3, 0))=\"\", \"\",  INDEX('Full set Core Client Indicator'!$A$3:$AB$351, MATCH(Selection_Hide2!$A49, 'Full set Core Client Indicator'!$A$3:$A$351, 0), MATCH(Selection_Hide2!Z$5, 'Full set Core Client Indicator'!$A$3:$AB$3, 0))), \"\")","v":""},{"$f":"IF(Z49<>\"\", IF(INDEX('Full set Core Client Indicator'!$A$3:$AB$351, MATCH(Selection_Hide2!$A49, 'Full set Core Client Indicator'!$A$3:$A$351, 0), MATCH(Selection_Hide2!AA$5, 'Full set Core Client Indicator'!$A$3:$AB$3, 0))=\"\", \"\",  INDEX('Full set Core Client Indicator'!$A$3:$AB$351, MATCH(Selection_Hide2!$A49, 'Full set Core Client Indicator'!$A$3:$A$351, 0), MATCH(Selection_Hide2!AA$5, 'Full set Core Client Indicator'!$A$3:$AB$3, 0))), \"\")","v":""},{"$f":"IF(AA49<>\"\", IF(INDEX('Full set Core Client Indicator'!$A$3:$AB$351, MATCH(Selection_Hide2!$A49, 'Full set Core Client Indicator'!$A$3:$A$351, 0), MATCH(Selection_Hide2!AB$5, 'Full set Core Client Indicator'!$A$3:$AB$3, 0))=\"\", \"\",  INDEX('Full set Core Client Indicator'!$A$3:$AB$351, MATCH(Selection_Hide2!$A49, 'Full set Core Client Indicator'!$A$3:$A$351, 0), MATCH(Selection_Hide2!AB$5, 'Full set Core Client Indicator'!$A$3:$AB$3, 0))), \"\")","v":""}]
[{"$f":"IF(AND(Selection_Hide1!C48<>0, Selection_Hide1!C48<>\"Grand Total\"), Selection_Hide1!C48, \"\")","v":""},{"$f":"IF(A50<>\"\", IF(INDEX('Full set Core Client Indicator'!$A$3:$AB$351, MATCH(Selection_Hide2!$A50, 'Full set Core Client Indicator'!$A$3:$A$351, 0), MATCH(Selection_Hide2!B$5, 'Full set Core Client Indicator'!$A$3:$AB$3, 0))=\"\", \"\",  INDEX('Full set Core Client Indicator'!$A$3:$AB$351, MATCH(Selection_Hide2!$A50, 'Full set Core Client Indicator'!$A$3:$A$351, 0), MATCH(Selection_Hide2!B$5, 'Full set Core Client Indicator'!$A$3:$AB$3, 0))), \"\")","v":""},{"$f":"IF(B50<>\"\", IF(INDEX('Full set Core Client Indicator'!$A$3:$AB$351, MATCH(Selection_Hide2!$A50, 'Full set Core Client Indicator'!$A$3:$A$351, 0), MATCH(Selection_Hide2!C$5, 'Full set Core Client Indicator'!$A$3:$AB$3, 0))=\"\", \"\",  INDEX('Full set Core Client Indicator'!$A$3:$AB$351, MATCH(Selection_Hide2!$A50, 'Full set Core Client Indicator'!$A$3:$A$351, 0), MATCH(Selection_Hide2!C$5, 'Full set Core Client Indicator'!$A$3:$AB$3, 0))), \"\")","v":""},{"$f":"IF(C50<>\"\", IF(INDEX('Full set Core Client Indicator'!$A$3:$AB$351, MATCH(Selection_Hide2!$A50, 'Full set Core Client Indicator'!$A$3:$A$351, 0), MATCH(Selection_Hide2!D$5, 'Full set Core Client Indicator'!$A$3:$AB$3, 0))=\"\", \"\",  INDEX('Full set Core Client Indicator'!$A$3:$AB$351, MATCH(Selection_Hide2!$A50, 'Full set Core Client Indicator'!$A$3:$A$351, 0), MATCH(Selection_Hide2!D$5, 'Full set Core Client Indicator'!$A$3:$AB$3, 0))), \"\")","v":""},{"$f":"IF(D50<>\"\", IF(INDEX('Full set Core Client Indicator'!$A$3:$AB$351, MATCH(Selection_Hide2!$A50, 'Full set Core Client Indicator'!$A$3:$A$351, 0), MATCH(Selection_Hide2!E$5, 'Full set Core Client Indicator'!$A$3:$AB$3, 0))=\"\", \"\",  INDEX('Full set Core Client Indicator'!$A$3:$AB$351, MATCH(Selection_Hide2!$A50, 'Full set Core Client Indicator'!$A$3:$A$351, 0), MATCH(Selection_Hide2!E$5, 'Full set Core Client Indicator'!$A$3:$AB$3, 0))), \"\")","v":""},{"$f":"IF(E50<>\"\", IF(INDEX('Full set Core Client Indicator'!$A$3:$AB$351, MATCH(Selection_Hide2!$A50, 'Full set Core Client Indicator'!$A$3:$A$351, 0), MATCH(Selection_Hide2!F$5, 'Full set Core Client Indicator'!$A$3:$AB$3, 0))=\"\", \"\",  INDEX('Full set Core Client Indicator'!$A$3:$AB$351, MATCH(Selection_Hide2!$A50, 'Full set Core Client Indicator'!$A$3:$A$351, 0), MATCH(Selection_Hide2!F$5, 'Full set Core Client Indicator'!$A$3:$AB$3, 0))), \"\")","v":""},{"$f":"IF(F50<>\"\", IF(INDEX('Full set Core Client Indicator'!$A$3:$AB$351, MATCH(Selection_Hide2!$A50, 'Full set Core Client Indicator'!$A$3:$A$351, 0), MATCH(Selection_Hide2!G$5, 'Full set Core Client Indicator'!$A$3:$AB$3, 0))=\"\", \"\",  INDEX('Full set Core Client Indicator'!$A$3:$AB$351, MATCH(Selection_Hide2!$A50, 'Full set Core Client Indicator'!$A$3:$A$351, 0), MATCH(Selection_Hide2!G$5, 'Full set Core Client Indicator'!$A$3:$AB$3, 0))), \"\")","v":""},{"$f":"IF(G50<>\"\", IF(INDEX('Full set Core Client Indicator'!$A$3:$AB$351, MATCH(Selection_Hide2!$A50, 'Full set Core Client Indicator'!$A$3:$A$351, 0), MATCH(Selection_Hide2!H$5, 'Full set Core Client Indicator'!$A$3:$AB$3, 0))=\"\", \"\",  INDEX('Full set Core Client Indicator'!$A$3:$AB$351, MATCH(Selection_Hide2!$A50, 'Full set Core Client Indicator'!$A$3:$A$351, 0), MATCH(Selection_Hide2!H$5, 'Full set Core Client Indicator'!$A$3:$AB$3, 0))), \"\")","v":""},{"$f":"IF(H50<>\"\", IF(INDEX('Full set Core Client Indicator'!$A$3:$AB$351, MATCH(Selection_Hide2!$A50, 'Full set Core Client Indicator'!$A$3:$A$351, 0), MATCH(Selection_Hide2!I$5, 'Full set Core Client Indicator'!$A$3:$AB$3, 0))=\"\", \"\",  INDEX('Full set Core Client Indicator'!$A$3:$AB$351, MATCH(Selection_Hide2!$A50, 'Full set Core Client Indicator'!$A$3:$A$351, 0), MATCH(Selection_Hide2!I$5, 'Full set Core Client Indicator'!$A$3:$AB$3, 0))), \"\")","v":""},{"$f":"IF(I50<>\"\", IF(INDEX('Full set Core Client Indicator'!$A$3:$AB$351, MATCH(Selection_Hide2!$A50, 'Full set Core Client Indicator'!$A$3:$A$351, 0), MATCH(Selection_Hide2!J$5, 'Full set Core Client Indicator'!$A$3:$AB$3, 0))=\"\", \"\",  INDEX('Full set Core Client Indicator'!$A$3:$AB$351, MATCH(Selection_Hide2!$A50, 'Full set Core Client Indicator'!$A$3:$A$351, 0), MATCH(Selection_Hide2!J$5, 'Full set Core Client Indicator'!$A$3:$AB$3, 0))), \"\")","v":""},{"$f":"IF(J50<>\"\", IF(INDEX('Full set Core Client Indicator'!$A$3:$AB$351, MATCH(Selection_Hide2!$A50, 'Full set Core Client Indicator'!$A$3:$A$351, 0), MATCH(Selection_Hide2!K$5, 'Full set Core Client Indicator'!$A$3:$AB$3, 0))=\"\", \"\",  INDEX('Full set Core Client Indicator'!$A$3:$AB$351, MATCH(Selection_Hide2!$A50, 'Full set Core Client Indicator'!$A$3:$A$351, 0), MATCH(Selection_Hide2!K$5, 'Full set Core Client Indicator'!$A$3:$AB$3, 0))), \"\")","v":""},{"$f":"IF(K50<>\"\", IF(INDEX('Full set Core Client Indicator'!$A$3:$AB$351, MATCH(Selection_Hide2!$A50, 'Full set Core Client Indicator'!$A$3:$A$351, 0), MATCH(Selection_Hide2!L$5, 'Full set Core Client Indicator'!$A$3:$AB$3, 0))=\"\", \"\",  INDEX('Full set Core Client Indicator'!$A$3:$AB$351, MATCH(Selection_Hide2!$A50, 'Full set Core Client Indicator'!$A$3:$A$351, 0), MATCH(Selection_Hide2!L$5, 'Full set Core Client Indicator'!$A$3:$AB$3, 0))), \"\")","v":""},{"$f":"IF(L50<>\"\", IF(INDEX('Full set Core Client Indicator'!$A$3:$AB$351, MATCH(Selection_Hide2!$A50, 'Full set Core Client Indicator'!$A$3:$A$351, 0), MATCH(Selection_Hide2!M$5, 'Full set Core Client Indicator'!$A$3:$AB$3, 0))=\"\", \"\",  INDEX('Full set Core Client Indicator'!$A$3:$AB$351, MATCH(Selection_Hide2!$A50, 'Full set Core Client Indicator'!$A$3:$A$351, 0), MATCH(Selection_Hide2!M$5, 'Full set Core Client Indicator'!$A$3:$AB$3, 0))), \"\")","v":""},{"$f":"IF(M50<>\"\", IF(INDEX('Full set Core Client Indicator'!$A$3:$AB$351, MATCH(Selection_Hide2!$A50, 'Full set Core Client Indicator'!$A$3:$A$351, 0), MATCH(Selection_Hide2!N$5, 'Full set Core Client Indicator'!$A$3:$AB$3, 0))=\"\", \"\",  INDEX('Full set Core Client Indicator'!$A$3:$AB$351, MATCH(Selection_Hide2!$A50, 'Full set Core Client Indicator'!$A$3:$A$351, 0), MATCH(Selection_Hide2!N$5, 'Full set Core Client Indicator'!$A$3:$AB$3, 0))), \"\")","v":""},{"$f":"IF(N50<>\"\", IF(INDEX('Full set Core Client Indicator'!$A$3:$AB$351, MATCH(Selection_Hide2!$A50, 'Full set Core Client Indicator'!$A$3:$A$351, 0), MATCH(Selection_Hide2!O$5, 'Full set Core Client Indicator'!$A$3:$AB$3, 0))=\"\", \"\",  INDEX('Full set Core Client Indicator'!$A$3:$AB$351, MATCH(Selection_Hide2!$A50, 'Full set Core Client Indicator'!$A$3:$A$351, 0), MATCH(Selection_Hide2!O$5, 'Full set Core Client Indicator'!$A$3:$AB$3, 0))), \"\")","v":""},{"$f":"IF(O50<>\"\", IF(INDEX('Full set Core Client Indicator'!$A$3:$AB$351, MATCH(Selection_Hide2!$A50, 'Full set Core Client Indicator'!$A$3:$A$351, 0), MATCH(Selection_Hide2!P$5, 'Full set Core Client Indicator'!$A$3:$AB$3, 0))=\"\", \"\",  INDEX('Full set Core Client Indicator'!$A$3:$AB$351, MATCH(Selection_Hide2!$A50, 'Full set Core Client Indicator'!$A$3:$A$351, 0), MATCH(Selection_Hide2!P$5, 'Full set Core Client Indicator'!$A$3:$AB$3, 0))), \"\")","v":""},{"$f":"IF(P50<>\"\", IF(INDEX('Full set Core Client Indicator'!$A$3:$AB$351, MATCH(Selection_Hide2!$A50, 'Full set Core Client Indicator'!$A$3:$A$351, 0), MATCH(Selection_Hide2!Q$5, 'Full set Core Client Indicator'!$A$3:$AB$3, 0))=\"\", \"\",  INDEX('Full set Core Client Indicator'!$A$3:$AB$351, MATCH(Selection_Hide2!$A50, 'Full set Core Client Indicator'!$A$3:$A$351, 0), MATCH(Selection_Hide2!Q$5, 'Full set Core Client Indicator'!$A$3:$AB$3, 0))), \"\")","v":""},{"$f":"IF(Q50<>\"\", IF(INDEX('Full set Core Client Indicator'!$A$3:$AB$351, MATCH(Selection_Hide2!$A50, 'Full set Core Client Indicator'!$A$3:$A$351, 0), MATCH(Selection_Hide2!R$5, 'Full set Core Client Indicator'!$A$3:$AB$3, 0))=\"\", \"\",  INDEX('Full set Core Client Indicator'!$A$3:$AB$351, MATCH(Selection_Hide2!$A50, 'Full set Core Client Indicator'!$A$3:$A$351, 0), MATCH(Selection_Hide2!R$5, 'Full set Core Client Indicator'!$A$3:$AB$3, 0))), \"\")","v":""},{"$f":"IF(R50<>\"\", IF(INDEX('Full set Core Client Indicator'!$A$3:$AB$351, MATCH(Selection_Hide2!$A50, 'Full set Core Client Indicator'!$A$3:$A$351, 0), MATCH(Selection_Hide2!S$5, 'Full set Core Client Indicator'!$A$3:$AB$3, 0))=\"\", \"\",  INDEX('Full set Core Client Indicator'!$A$3:$AB$351, MATCH(Selection_Hide2!$A50, 'Full set Core Client Indicator'!$A$3:$A$351, 0), MATCH(Selection_Hide2!S$5, 'Full set Core Client Indicator'!$A$3:$AB$3, 0))), \"\")","v":""},{"$f":"IF(S50<>\"\", IF(INDEX('Full set Core Client Indicator'!$A$3:$AB$351, MATCH(Selection_Hide2!$A50, 'Full set Core Client Indicator'!$A$3:$A$351, 0), MATCH(Selection_Hide2!T$5, 'Full set Core Client Indicator'!$A$3:$AB$3, 0))=\"\", \"\",  INDEX('Full set Core Client Indicator'!$A$3:$AB$351, MATCH(Selection_Hide2!$A50, 'Full set Core Client Indicator'!$A$3:$A$351, 0), MATCH(Selection_Hide2!T$5, 'Full set Core Client Indicator'!$A$3:$AB$3, 0))), \"\")","v":""},{"$f":"IF(T50<>\"\", IF(INDEX('Full set Core Client Indicator'!$A$3:$AB$351, MATCH(Selection_Hide2!$A50, 'Full set Core Client Indicator'!$A$3:$A$351, 0), MATCH(Selection_Hide2!U$5, 'Full set Core Client Indicator'!$A$3:$AB$3, 0))=\"\", \"\",  INDEX('Full set Core Client Indicator'!$A$3:$AB$351, MATCH(Selection_Hide2!$A50, 'Full set Core Client Indicator'!$A$3:$A$351, 0), MATCH(Selection_Hide2!U$5, 'Full set Core Client Indicator'!$A$3:$AB$3, 0))), \"\")","v":""},{"$f":"IF(U50<>\"\", IF(INDEX('Full set Core Client Indicator'!$A$3:$AB$351, MATCH(Selection_Hide2!$A50, 'Full set Core Client Indicator'!$A$3:$A$351, 0), MATCH(Selection_Hide2!V$5, 'Full set Core Client Indicator'!$A$3:$AB$3, 0))=\"\", \"\",  INDEX('Full set Core Client Indicator'!$A$3:$AB$351, MATCH(Selection_Hide2!$A50, 'Full set Core Client Indicator'!$A$3:$A$351, 0), MATCH(Selection_Hide2!V$5, 'Full set Core Client Indicator'!$A$3:$AB$3, 0))), \"\")","v":""},{"$f":"IF(V50<>\"\", IF(INDEX('Full set Core Client Indicator'!$A$3:$AB$351, MATCH(Selection_Hide2!$A50, 'Full set Core Client Indicator'!$A$3:$A$351, 0), MATCH(Selection_Hide2!W$5, 'Full set Core Client Indicator'!$A$3:$AB$3, 0))=\"\", \"\",  INDEX('Full set Core Client Indicator'!$A$3:$AB$351, MATCH(Selection_Hide2!$A50, 'Full set Core Client Indicator'!$A$3:$A$351, 0), MATCH(Selection_Hide2!W$5, 'Full set Core Client Indicator'!$A$3:$AB$3, 0))), \"\")","v":""},{"$f":"IF(W50<>\"\", IF(INDEX('Full set Core Client Indicator'!$A$3:$AB$351, MATCH(Selection_Hide2!$A50, 'Full set Core Client Indicator'!$A$3:$A$351, 0), MATCH(Selection_Hide2!X$5, 'Full set Core Client Indicator'!$A$3:$AB$3, 0))=\"\", \"\",  INDEX('Full set Core Client Indicator'!$A$3:$AB$351, MATCH(Selection_Hide2!$A50, 'Full set Core Client Indicator'!$A$3:$A$351, 0), MATCH(Selection_Hide2!X$5, 'Full set Core Client Indicator'!$A$3:$AB$3, 0))), \"\")","v":""},{"$f":"IF(X50<>\"\", IF(INDEX('Full set Core Client Indicator'!$A$3:$AB$351, MATCH(Selection_Hide2!$A50, 'Full set Core Client Indicator'!$A$3:$A$351, 0), MATCH(Selection_Hide2!Y$5, 'Full set Core Client Indicator'!$A$3:$AB$3, 0))=\"\", \"\",  INDEX('Full set Core Client Indicator'!$A$3:$AB$351, MATCH(Selection_Hide2!$A50, 'Full set Core Client Indicator'!$A$3:$A$351, 0), MATCH(Selection_Hide2!Y$5, 'Full set Core Client Indicator'!$A$3:$AB$3, 0))), \"\")","v":""},{"$f":"IF(Y50<>\"\", IF(INDEX('Full set Core Client Indicator'!$A$3:$AB$351, MATCH(Selection_Hide2!$A50, 'Full set Core Client Indicator'!$A$3:$A$351, 0), MATCH(Selection_Hide2!Z$5, 'Full set Core Client Indicator'!$A$3:$AB$3, 0))=\"\", \"\",  INDEX('Full set Core Client Indicator'!$A$3:$AB$351, MATCH(Selection_Hide2!$A50, 'Full set Core Client Indicator'!$A$3:$A$351, 0), MATCH(Selection_Hide2!Z$5, 'Full set Core Client Indicator'!$A$3:$AB$3, 0))), \"\")","v":""},{"$f":"IF(Z50<>\"\", IF(INDEX('Full set Core Client Indicator'!$A$3:$AB$351, MATCH(Selection_Hide2!$A50, 'Full set Core Client Indicator'!$A$3:$A$351, 0), MATCH(Selection_Hide2!AA$5, 'Full set Core Client Indicator'!$A$3:$AB$3, 0))=\"\", \"\",  INDEX('Full set Core Client Indicator'!$A$3:$AB$351, MATCH(Selection_Hide2!$A50, 'Full set Core Client Indicator'!$A$3:$A$351, 0), MATCH(Selection_Hide2!AA$5, 'Full set Core Client Indicator'!$A$3:$AB$3, 0))), \"\")","v":""},{"$f":"IF(AA50<>\"\", IF(INDEX('Full set Core Client Indicator'!$A$3:$AB$351, MATCH(Selection_Hide2!$A50, 'Full set Core Client Indicator'!$A$3:$A$351, 0), MATCH(Selection_Hide2!AB$5, 'Full set Core Client Indicator'!$A$3:$AB$3, 0))=\"\", \"\",  INDEX('Full set Core Client Indicator'!$A$3:$AB$351, MATCH(Selection_Hide2!$A50, 'Full set Core Client Indicator'!$A$3:$A$351, 0), MATCH(Selection_Hide2!AB$5, 'Full set Core Client Indicator'!$A$3:$AB$3, 0))), \"\")","v":""}]
[{"$f":"IF(AND(Selection_Hide1!C49<>0, Selection_Hide1!C49<>\"Grand Total\"), Selection_Hide1!C49, \"\")","v":""},{"$f":"IF(A51<>\"\", IF(INDEX('Full set Core Client Indicator'!$A$3:$AB$351, MATCH(Selection_Hide2!$A51, 'Full set Core Client Indicator'!$A$3:$A$351, 0), MATCH(Selection_Hide2!B$5, 'Full set Core Client Indicator'!$A$3:$AB$3, 0))=\"\", \"\",  INDEX('Full set Core Client Indicator'!$A$3:$AB$351, MATCH(Selection_Hide2!$A51, 'Full set Core Client Indicator'!$A$3:$A$351, 0), MATCH(Selection_Hide2!B$5, 'Full set Core Client Indicator'!$A$3:$AB$3, 0))), \"\")","v":""},{"$f":"IF(B51<>\"\", IF(INDEX('Full set Core Client Indicator'!$A$3:$AB$351, MATCH(Selection_Hide2!$A51, 'Full set Core Client Indicator'!$A$3:$A$351, 0), MATCH(Selection_Hide2!C$5, 'Full set Core Client Indicator'!$A$3:$AB$3, 0))=\"\", \"\",  INDEX('Full set Core Client Indicator'!$A$3:$AB$351, MATCH(Selection_Hide2!$A51, 'Full set Core Client Indicator'!$A$3:$A$351, 0), MATCH(Selection_Hide2!C$5, 'Full set Core Client Indicator'!$A$3:$AB$3, 0))), \"\")","v":""},{"$f":"IF(C51<>\"\", IF(INDEX('Full set Core Client Indicator'!$A$3:$AB$351, MATCH(Selection_Hide2!$A51, 'Full set Core Client Indicator'!$A$3:$A$351, 0), MATCH(Selection_Hide2!D$5, 'Full set Core Client Indicator'!$A$3:$AB$3, 0))=\"\", \"\",  INDEX('Full set Core Client Indicator'!$A$3:$AB$351, MATCH(Selection_Hide2!$A51, 'Full set Core Client Indicator'!$A$3:$A$351, 0), MATCH(Selection_Hide2!D$5, 'Full set Core Client Indicator'!$A$3:$AB$3, 0))), \"\")","v":""},{"$f":"IF(D51<>\"\", IF(INDEX('Full set Core Client Indicator'!$A$3:$AB$351, MATCH(Selection_Hide2!$A51, 'Full set Core Client Indicator'!$A$3:$A$351, 0), MATCH(Selection_Hide2!E$5, 'Full set Core Client Indicator'!$A$3:$AB$3, 0))=\"\", \"\",  INDEX('Full set Core Client Indicator'!$A$3:$AB$351, MATCH(Selection_Hide2!$A51, 'Full set Core Client Indicator'!$A$3:$A$351, 0), MATCH(Selection_Hide2!E$5, 'Full set Core Client Indicator'!$A$3:$AB$3, 0))), \"\")","v":""},{"$f":"IF(E51<>\"\", IF(INDEX('Full set Core Client Indicator'!$A$3:$AB$351, MATCH(Selection_Hide2!$A51, 'Full set Core Client Indicator'!$A$3:$A$351, 0), MATCH(Selection_Hide2!F$5, 'Full set Core Client Indicator'!$A$3:$AB$3, 0))=\"\", \"\",  INDEX('Full set Core Client Indicator'!$A$3:$AB$351, MATCH(Selection_Hide2!$A51, 'Full set Core Client Indicator'!$A$3:$A$351, 0), MATCH(Selection_Hide2!F$5, 'Full set Core Client Indicator'!$A$3:$AB$3, 0))), \"\")","v":""},{"$f":"IF(F51<>\"\", IF(INDEX('Full set Core Client Indicator'!$A$3:$AB$351, MATCH(Selection_Hide2!$A51, 'Full set Core Client Indicator'!$A$3:$A$351, 0), MATCH(Selection_Hide2!G$5, 'Full set Core Client Indicator'!$A$3:$AB$3, 0))=\"\", \"\",  INDEX('Full set Core Client Indicator'!$A$3:$AB$351, MATCH(Selection_Hide2!$A51, 'Full set Core Client Indicator'!$A$3:$A$351, 0), MATCH(Selection_Hide2!G$5, 'Full set Core Client Indicator'!$A$3:$AB$3, 0))), \"\")","v":""},{"$f":"IF(G51<>\"\", IF(INDEX('Full set Core Client Indicator'!$A$3:$AB$351, MATCH(Selection_Hide2!$A51, 'Full set Core Client Indicator'!$A$3:$A$351, 0), MATCH(Selection_Hide2!H$5, 'Full set Core Client Indicator'!$A$3:$AB$3, 0))=\"\", \"\",  INDEX('Full set Core Client Indicator'!$A$3:$AB$351, MATCH(Selection_Hide2!$A51, 'Full set Core Client Indicator'!$A$3:$A$351, 0), MATCH(Selection_Hide2!H$5, 'Full set Core Client Indicator'!$A$3:$AB$3, 0))), \"\")","v":""},{"$f":"IF(H51<>\"\", IF(INDEX('Full set Core Client Indicator'!$A$3:$AB$351, MATCH(Selection_Hide2!$A51, 'Full set Core Client Indicator'!$A$3:$A$351, 0), MATCH(Selection_Hide2!I$5, 'Full set Core Client Indicator'!$A$3:$AB$3, 0))=\"\", \"\",  INDEX('Full set Core Client Indicator'!$A$3:$AB$351, MATCH(Selection_Hide2!$A51, 'Full set Core Client Indicator'!$A$3:$A$351, 0), MATCH(Selection_Hide2!I$5, 'Full set Core Client Indicator'!$A$3:$AB$3, 0))), \"\")","v":""},{"$f":"IF(I51<>\"\", IF(INDEX('Full set Core Client Indicator'!$A$3:$AB$351, MATCH(Selection_Hide2!$A51, 'Full set Core Client Indicator'!$A$3:$A$351, 0), MATCH(Selection_Hide2!J$5, 'Full set Core Client Indicator'!$A$3:$AB$3, 0))=\"\", \"\",  INDEX('Full set Core Client Indicator'!$A$3:$AB$351, MATCH(Selection_Hide2!$A51, 'Full set Core Client Indicator'!$A$3:$A$351, 0), MATCH(Selection_Hide2!J$5, 'Full set Core Client Indicator'!$A$3:$AB$3, 0))), \"\")","v":""},{"$f":"IF(J51<>\"\", IF(INDEX('Full set Core Client Indicator'!$A$3:$AB$351, MATCH(Selection_Hide2!$A51, 'Full set Core Client Indicator'!$A$3:$A$351, 0), MATCH(Selection_Hide2!K$5, 'Full set Core Client Indicator'!$A$3:$AB$3, 0))=\"\", \"\",  INDEX('Full set Core Client Indicator'!$A$3:$AB$351, MATCH(Selection_Hide2!$A51, 'Full set Core Client Indicator'!$A$3:$A$351, 0), MATCH(Selection_Hide2!K$5, 'Full set Core Client Indicator'!$A$3:$AB$3, 0))), \"\")","v":""},{"$f":"IF(K51<>\"\", IF(INDEX('Full set Core Client Indicator'!$A$3:$AB$351, MATCH(Selection_Hide2!$A51, 'Full set Core Client Indicator'!$A$3:$A$351, 0), MATCH(Selection_Hide2!L$5, 'Full set Core Client Indicator'!$A$3:$AB$3, 0))=\"\", \"\",  INDEX('Full set Core Client Indicator'!$A$3:$AB$351, MATCH(Selection_Hide2!$A51, 'Full set Core Client Indicator'!$A$3:$A$351, 0), MATCH(Selection_Hide2!L$5, 'Full set Core Client Indicator'!$A$3:$AB$3, 0))), \"\")","v":""},{"$f":"IF(L51<>\"\", IF(INDEX('Full set Core Client Indicator'!$A$3:$AB$351, MATCH(Selection_Hide2!$A51, 'Full set Core Client Indicator'!$A$3:$A$351, 0), MATCH(Selection_Hide2!M$5, 'Full set Core Client Indicator'!$A$3:$AB$3, 0))=\"\", \"\",  INDEX('Full set Core Client Indicator'!$A$3:$AB$351, MATCH(Selection_Hide2!$A51, 'Full set Core Client Indicator'!$A$3:$A$351, 0), MATCH(Selection_Hide2!M$5, 'Full set Core Client Indicator'!$A$3:$AB$3, 0))), \"\")","v":""},{"$f":"IF(M51<>\"\", IF(INDEX('Full set Core Client Indicator'!$A$3:$AB$351, MATCH(Selection_Hide2!$A51, 'Full set Core Client Indicator'!$A$3:$A$351, 0), MATCH(Selection_Hide2!N$5, 'Full set Core Client Indicator'!$A$3:$AB$3, 0))=\"\", \"\",  INDEX('Full set Core Client Indicator'!$A$3:$AB$351, MATCH(Selection_Hide2!$A51, 'Full set Core Client Indicator'!$A$3:$A$351, 0), MATCH(Selection_Hide2!N$5, 'Full set Core Client Indicator'!$A$3:$AB$3, 0))), \"\")","v":""},{"$f":"IF(N51<>\"\", IF(INDEX('Full set Core Client Indicator'!$A$3:$AB$351, MATCH(Selection_Hide2!$A51, 'Full set Core Client Indicator'!$A$3:$A$351, 0), MATCH(Selection_Hide2!O$5, 'Full set Core Client Indicator'!$A$3:$AB$3, 0))=\"\", \"\",  INDEX('Full set Core Client Indicator'!$A$3:$AB$351, MATCH(Selection_Hide2!$A51, 'Full set Core Client Indicator'!$A$3:$A$351, 0), MATCH(Selection_Hide2!O$5, 'Full set Core Client Indicator'!$A$3:$AB$3, 0))), \"\")","v":""},{"$f":"IF(O51<>\"\", IF(INDEX('Full set Core Client Indicator'!$A$3:$AB$351, MATCH(Selection_Hide2!$A51, 'Full set Core Client Indicator'!$A$3:$A$351, 0), MATCH(Selection_Hide2!P$5, 'Full set Core Client Indicator'!$A$3:$AB$3, 0))=\"\", \"\",  INDEX('Full set Core Client Indicator'!$A$3:$AB$351, MATCH(Selection_Hide2!$A51, 'Full set Core Client Indicator'!$A$3:$A$351, 0), MATCH(Selection_Hide2!P$5, 'Full set Core Client Indicator'!$A$3:$AB$3, 0))), \"\")","v":""},{"$f":"IF(P51<>\"\", IF(INDEX('Full set Core Client Indicator'!$A$3:$AB$351, MATCH(Selection_Hide2!$A51, 'Full set Core Client Indicator'!$A$3:$A$351, 0), MATCH(Selection_Hide2!Q$5, 'Full set Core Client Indicator'!$A$3:$AB$3, 0))=\"\", \"\",  INDEX('Full set Core Client Indicator'!$A$3:$AB$351, MATCH(Selection_Hide2!$A51, 'Full set Core Client Indicator'!$A$3:$A$351, 0), MATCH(Selection_Hide2!Q$5, 'Full set Core Client Indicator'!$A$3:$AB$3, 0))), \"\")","v":""},{"$f":"IF(Q51<>\"\", IF(INDEX('Full set Core Client Indicator'!$A$3:$AB$351, MATCH(Selection_Hide2!$A51, 'Full set Core Client Indicator'!$A$3:$A$351, 0), MATCH(Selection_Hide2!R$5, 'Full set Core Client Indicator'!$A$3:$AB$3, 0))=\"\", \"\",  INDEX('Full set Core Client Indicator'!$A$3:$AB$351, MATCH(Selection_Hide2!$A51, 'Full set Core Client Indicator'!$A$3:$A$351, 0), MATCH(Selection_Hide2!R$5, 'Full set Core Client Indicator'!$A$3:$AB$3, 0))), \"\")","v":""},{"$f":"IF(R51<>\"\", IF(INDEX('Full set Core Client Indicator'!$A$3:$AB$351, MATCH(Selection_Hide2!$A51, 'Full set Core Client Indicator'!$A$3:$A$351, 0), MATCH(Selection_Hide2!S$5, 'Full set Core Client Indicator'!$A$3:$AB$3, 0))=\"\", \"\",  INDEX('Full set Core Client Indicator'!$A$3:$AB$351, MATCH(Selection_Hide2!$A51, 'Full set Core Client Indicator'!$A$3:$A$351, 0), MATCH(Selection_Hide2!S$5, 'Full set Core Client Indicator'!$A$3:$AB$3, 0))), \"\")","v":""},{"$f":"IF(S51<>\"\", IF(INDEX('Full set Core Client Indicator'!$A$3:$AB$351, MATCH(Selection_Hide2!$A51, 'Full set Core Client Indicator'!$A$3:$A$351, 0), MATCH(Selection_Hide2!T$5, 'Full set Core Client Indicator'!$A$3:$AB$3, 0))=\"\", \"\",  INDEX('Full set Core Client Indicator'!$A$3:$AB$351, MATCH(Selection_Hide2!$A51, 'Full set Core Client Indicator'!$A$3:$A$351, 0), MATCH(Selection_Hide2!T$5, 'Full set Core Client Indicator'!$A$3:$AB$3, 0))), \"\")","v":""},{"$f":"IF(T51<>\"\", IF(INDEX('Full set Core Client Indicator'!$A$3:$AB$351, MATCH(Selection_Hide2!$A51, 'Full set Core Client Indicator'!$A$3:$A$351, 0), MATCH(Selection_Hide2!U$5, 'Full set Core Client Indicator'!$A$3:$AB$3, 0))=\"\", \"\",  INDEX('Full set Core Client Indicator'!$A$3:$AB$351, MATCH(Selection_Hide2!$A51, 'Full set Core Client Indicator'!$A$3:$A$351, 0), MATCH(Selection_Hide2!U$5, 'Full set Core Client Indicator'!$A$3:$AB$3, 0))), \"\")","v":""},{"$f":"IF(U51<>\"\", IF(INDEX('Full set Core Client Indicator'!$A$3:$AB$351, MATCH(Selection_Hide2!$A51, 'Full set Core Client Indicator'!$A$3:$A$351, 0), MATCH(Selection_Hide2!V$5, 'Full set Core Client Indicator'!$A$3:$AB$3, 0))=\"\", \"\",  INDEX('Full set Core Client Indicator'!$A$3:$AB$351, MATCH(Selection_Hide2!$A51, 'Full set Core Client Indicator'!$A$3:$A$351, 0), MATCH(Selection_Hide2!V$5, 'Full set Core Client Indicator'!$A$3:$AB$3, 0))), \"\")","v":""},{"$f":"IF(V51<>\"\", IF(INDEX('Full set Core Client Indicator'!$A$3:$AB$351, MATCH(Selection_Hide2!$A51, 'Full set Core Client Indicator'!$A$3:$A$351, 0), MATCH(Selection_Hide2!W$5, 'Full set Core Client Indicator'!$A$3:$AB$3, 0))=\"\", \"\",  INDEX('Full set Core Client Indicator'!$A$3:$AB$351, MATCH(Selection_Hide2!$A51, 'Full set Core Client Indicator'!$A$3:$A$351, 0), MATCH(Selection_Hide2!W$5, 'Full set Core Client Indicator'!$A$3:$AB$3, 0))), \"\")","v":""},{"$f":"IF(W51<>\"\", IF(INDEX('Full set Core Client Indicator'!$A$3:$AB$351, MATCH(Selection_Hide2!$A51, 'Full set Core Client Indicator'!$A$3:$A$351, 0), MATCH(Selection_Hide2!X$5, 'Full set Core Client Indicator'!$A$3:$AB$3, 0))=\"\", \"\",  INDEX('Full set Core Client Indicator'!$A$3:$AB$351, MATCH(Selection_Hide2!$A51, 'Full set Core Client Indicator'!$A$3:$A$351, 0), MATCH(Selection_Hide2!X$5, 'Full set Core Client Indicator'!$A$3:$AB$3, 0))), \"\")","v":""},{"$f":"IF(X51<>\"\", IF(INDEX('Full set Core Client Indicator'!$A$3:$AB$351, MATCH(Selection_Hide2!$A51, 'Full set Core Client Indicator'!$A$3:$A$351, 0), MATCH(Selection_Hide2!Y$5, 'Full set Core Client Indicator'!$A$3:$AB$3, 0))=\"\", \"\",  INDEX('Full set Core Client Indicator'!$A$3:$AB$351, MATCH(Selection_Hide2!$A51, 'Full set Core Client Indicator'!$A$3:$A$351, 0), MATCH(Selection_Hide2!Y$5, 'Full set Core Client Indicator'!$A$3:$AB$3, 0))), \"\")","v":""},{"$f":"IF(Y51<>\"\", IF(INDEX('Full set Core Client Indicator'!$A$3:$AB$351, MATCH(Selection_Hide2!$A51, 'Full set Core Client Indicator'!$A$3:$A$351, 0), MATCH(Selection_Hide2!Z$5, 'Full set Core Client Indicator'!$A$3:$AB$3, 0))=\"\", \"\",  INDEX('Full set Core Client Indicator'!$A$3:$AB$351, MATCH(Selection_Hide2!$A51, 'Full set Core Client Indicator'!$A$3:$A$351, 0), MATCH(Selection_Hide2!Z$5, 'Full set Core Client Indicator'!$A$3:$AB$3, 0))), \"\")","v":""},{"$f":"IF(Z51<>\"\", IF(INDEX('Full set Core Client Indicator'!$A$3:$AB$351, MATCH(Selection_Hide2!$A51, 'Full set Core Client Indicator'!$A$3:$A$351, 0), MATCH(Selection_Hide2!AA$5, 'Full set Core Client Indicator'!$A$3:$AB$3, 0))=\"\", \"\",  INDEX('Full set Core Client Indicator'!$A$3:$AB$351, MATCH(Selection_Hide2!$A51, 'Full set Core Client Indicator'!$A$3:$A$351, 0), MATCH(Selection_Hide2!AA$5, 'Full set Core Client Indicator'!$A$3:$AB$3, 0))), \"\")","v":""},{"$f":"IF(AA51<>\"\", IF(INDEX('Full set Core Client Indicator'!$A$3:$AB$351, MATCH(Selection_Hide2!$A51, 'Full set Core Client Indicator'!$A$3:$A$351, 0), MATCH(Selection_Hide2!AB$5, 'Full set Core Client Indicator'!$A$3:$AB$3, 0))=\"\", \"\",  INDEX('Full set Core Client Indicator'!$A$3:$AB$351, MATCH(Selection_Hide2!$A51, 'Full set Core Client Indicator'!$A$3:$A$351, 0), MATCH(Selection_Hide2!AB$5, 'Full set Core Client Indicator'!$A$3:$AB$3, 0))), \"\")","v":""}]
[{"$f":"IF(AND(Selection_Hide1!C50<>0, Selection_Hide1!C50<>\"Grand Total\"), Selection_Hide1!C50, \"\")","v":""},{"$f":"IF(A52<>\"\", IF(INDEX('Full set Core Client Indicator'!$A$3:$AB$351, MATCH(Selection_Hide2!$A52, 'Full set Core Client Indicator'!$A$3:$A$351, 0), MATCH(Selection_Hide2!B$5, 'Full set Core Client Indicator'!$A$3:$AB$3, 0))=\"\", \"\",  INDEX('Full set Core Client Indicator'!$A$3:$AB$351, MATCH(Selection_Hide2!$A52, 'Full set Core Client Indicator'!$A$3:$A$351, 0), MATCH(Selection_Hide2!B$5, 'Full set Core Client Indicator'!$A$3:$AB$3, 0))), \"\")","v":""},{"$f":"IF(B52<>\"\", IF(INDEX('Full set Core Client Indicator'!$A$3:$AB$351, MATCH(Selection_Hide2!$A52, 'Full set Core Client Indicator'!$A$3:$A$351, 0), MATCH(Selection_Hide2!C$5, 'Full set Core Client Indicator'!$A$3:$AB$3, 0))=\"\", \"\",  INDEX('Full set Core Client Indicator'!$A$3:$AB$351, MATCH(Selection_Hide2!$A52, 'Full set Core Client Indicator'!$A$3:$A$351, 0), MATCH(Selection_Hide2!C$5, 'Full set Core Client Indicator'!$A$3:$AB$3, 0))), \"\")","v":""},{"$f":"IF(C52<>\"\", IF(INDEX('Full set Core Client Indicator'!$A$3:$AB$351, MATCH(Selection_Hide2!$A52, 'Full set Core Client Indicator'!$A$3:$A$351, 0), MATCH(Selection_Hide2!D$5, 'Full set Core Client Indicator'!$A$3:$AB$3, 0))=\"\", \"\",  INDEX('Full set Core Client Indicator'!$A$3:$AB$351, MATCH(Selection_Hide2!$A52, 'Full set Core Client Indicator'!$A$3:$A$351, 0), MATCH(Selection_Hide2!D$5, 'Full set Core Client Indicator'!$A$3:$AB$3, 0))), \"\")","v":""},{"$f":"IF(D52<>\"\", IF(INDEX('Full set Core Client Indicator'!$A$3:$AB$351, MATCH(Selection_Hide2!$A52, 'Full set Core Client Indicator'!$A$3:$A$351, 0), MATCH(Selection_Hide2!E$5, 'Full set Core Client Indicator'!$A$3:$AB$3, 0))=\"\", \"\",  INDEX('Full set Core Client Indicator'!$A$3:$AB$351, MATCH(Selection_Hide2!$A52, 'Full set Core Client Indicator'!$A$3:$A$351, 0), MATCH(Selection_Hide2!E$5, 'Full set Core Client Indicator'!$A$3:$AB$3, 0))), \"\")","v":""},{"$f":"IF(E52<>\"\", IF(INDEX('Full set Core Client Indicator'!$A$3:$AB$351, MATCH(Selection_Hide2!$A52, 'Full set Core Client Indicator'!$A$3:$A$351, 0), MATCH(Selection_Hide2!F$5, 'Full set Core Client Indicator'!$A$3:$AB$3, 0))=\"\", \"\",  INDEX('Full set Core Client Indicator'!$A$3:$AB$351, MATCH(Selection_Hide2!$A52, 'Full set Core Client Indicator'!$A$3:$A$351, 0), MATCH(Selection_Hide2!F$5, 'Full set Core Client Indicator'!$A$3:$AB$3, 0))), \"\")","v":""},{"$f":"IF(F52<>\"\", IF(INDEX('Full set Core Client Indicator'!$A$3:$AB$351, MATCH(Selection_Hide2!$A52, 'Full set Core Client Indicator'!$A$3:$A$351, 0), MATCH(Selection_Hide2!G$5, 'Full set Core Client Indicator'!$A$3:$AB$3, 0))=\"\", \"\",  INDEX('Full set Core Client Indicator'!$A$3:$AB$351, MATCH(Selection_Hide2!$A52, 'Full set Core Client Indicator'!$A$3:$A$351, 0), MATCH(Selection_Hide2!G$5, 'Full set Core Client Indicator'!$A$3:$AB$3, 0))), \"\")","v":""},{"$f":"IF(G52<>\"\", IF(INDEX('Full set Core Client Indicator'!$A$3:$AB$351, MATCH(Selection_Hide2!$A52, 'Full set Core Client Indicator'!$A$3:$A$351, 0), MATCH(Selection_Hide2!H$5, 'Full set Core Client Indicator'!$A$3:$AB$3, 0))=\"\", \"\",  INDEX('Full set Core Client Indicator'!$A$3:$AB$351, MATCH(Selection_Hide2!$A52, 'Full set Core Client Indicator'!$A$3:$A$351, 0), MATCH(Selection_Hide2!H$5, 'Full set Core Client Indicator'!$A$3:$AB$3, 0))), \"\")","v":""},{"$f":"IF(H52<>\"\", IF(INDEX('Full set Core Client Indicator'!$A$3:$AB$351, MATCH(Selection_Hide2!$A52, 'Full set Core Client Indicator'!$A$3:$A$351, 0), MATCH(Selection_Hide2!I$5, 'Full set Core Client Indicator'!$A$3:$AB$3, 0))=\"\", \"\",  INDEX('Full set Core Client Indicator'!$A$3:$AB$351, MATCH(Selection_Hide2!$A52, 'Full set Core Client Indicator'!$A$3:$A$351, 0), MATCH(Selection_Hide2!I$5, 'Full set Core Client Indicator'!$A$3:$AB$3, 0))), \"\")","v":""},{"$f":"IF(I52<>\"\", IF(INDEX('Full set Core Client Indicator'!$A$3:$AB$351, MATCH(Selection_Hide2!$A52, 'Full set Core Client Indicator'!$A$3:$A$351, 0), MATCH(Selection_Hide2!J$5, 'Full set Core Client Indicator'!$A$3:$AB$3, 0))=\"\", \"\",  INDEX('Full set Core Client Indicator'!$A$3:$AB$351, MATCH(Selection_Hide2!$A52, 'Full set Core Client Indicator'!$A$3:$A$351, 0), MATCH(Selection_Hide2!J$5, 'Full set Core Client Indicator'!$A$3:$AB$3, 0))), \"\")","v":""},{"$f":"IF(J52<>\"\", IF(INDEX('Full set Core Client Indicator'!$A$3:$AB$351, MATCH(Selection_Hide2!$A52, 'Full set Core Client Indicator'!$A$3:$A$351, 0), MATCH(Selection_Hide2!K$5, 'Full set Core Client Indicator'!$A$3:$AB$3, 0))=\"\", \"\",  INDEX('Full set Core Client Indicator'!$A$3:$AB$351, MATCH(Selection_Hide2!$A52, 'Full set Core Client Indicator'!$A$3:$A$351, 0), MATCH(Selection_Hide2!K$5, 'Full set Core Client Indicator'!$A$3:$AB$3, 0))), \"\")","v":""},{"$f":"IF(K52<>\"\", IF(INDEX('Full set Core Client Indicator'!$A$3:$AB$351, MATCH(Selection_Hide2!$A52, 'Full set Core Client Indicator'!$A$3:$A$351, 0), MATCH(Selection_Hide2!L$5, 'Full set Core Client Indicator'!$A$3:$AB$3, 0))=\"\", \"\",  INDEX('Full set Core Client Indicator'!$A$3:$AB$351, MATCH(Selection_Hide2!$A52, 'Full set Core Client Indicator'!$A$3:$A$351, 0), MATCH(Selection_Hide2!L$5, 'Full set Core Client Indicator'!$A$3:$AB$3, 0))), \"\")","v":""},{"$f":"IF(L52<>\"\", IF(INDEX('Full set Core Client Indicator'!$A$3:$AB$351, MATCH(Selection_Hide2!$A52, 'Full set Core Client Indicator'!$A$3:$A$351, 0), MATCH(Selection_Hide2!M$5, 'Full set Core Client Indicator'!$A$3:$AB$3, 0))=\"\", \"\",  INDEX('Full set Core Client Indicator'!$A$3:$AB$351, MATCH(Selection_Hide2!$A52, 'Full set Core Client Indicator'!$A$3:$A$351, 0), MATCH(Selection_Hide2!M$5, 'Full set Core Client Indicator'!$A$3:$AB$3, 0))), \"\")","v":""},{"$f":"IF(M52<>\"\", IF(INDEX('Full set Core Client Indicator'!$A$3:$AB$351, MATCH(Selection_Hide2!$A52, 'Full set Core Client Indicator'!$A$3:$A$351, 0), MATCH(Selection_Hide2!N$5, 'Full set Core Client Indicator'!$A$3:$AB$3, 0))=\"\", \"\",  INDEX('Full set Core Client Indicator'!$A$3:$AB$351, MATCH(Selection_Hide2!$A52, 'Full set Core Client Indicator'!$A$3:$A$351, 0), MATCH(Selection_Hide2!N$5, 'Full set Core Client Indicator'!$A$3:$AB$3, 0))), \"\")","v":""},{"$f":"IF(N52<>\"\", IF(INDEX('Full set Core Client Indicator'!$A$3:$AB$351, MATCH(Selection_Hide2!$A52, 'Full set Core Client Indicator'!$A$3:$A$351, 0), MATCH(Selection_Hide2!O$5, 'Full set Core Client Indicator'!$A$3:$AB$3, 0))=\"\", \"\",  INDEX('Full set Core Client Indicator'!$A$3:$AB$351, MATCH(Selection_Hide2!$A52, 'Full set Core Client Indicator'!$A$3:$A$351, 0), MATCH(Selection_Hide2!O$5, 'Full set Core Client Indicator'!$A$3:$AB$3, 0))), \"\")","v":""},{"$f":"IF(O52<>\"\", IF(INDEX('Full set Core Client Indicator'!$A$3:$AB$351, MATCH(Selection_Hide2!$A52, 'Full set Core Client Indicator'!$A$3:$A$351, 0), MATCH(Selection_Hide2!P$5, 'Full set Core Client Indicator'!$A$3:$AB$3, 0))=\"\", \"\",  INDEX('Full set Core Client Indicator'!$A$3:$AB$351, MATCH(Selection_Hide2!$A52, 'Full set Core Client Indicator'!$A$3:$A$351, 0), MATCH(Selection_Hide2!P$5, 'Full set Core Client Indicator'!$A$3:$AB$3, 0))), \"\")","v":""},{"$f":"IF(P52<>\"\", IF(INDEX('Full set Core Client Indicator'!$A$3:$AB$351, MATCH(Selection_Hide2!$A52, 'Full set Core Client Indicator'!$A$3:$A$351, 0), MATCH(Selection_Hide2!Q$5, 'Full set Core Client Indicator'!$A$3:$AB$3, 0))=\"\", \"\",  INDEX('Full set Core Client Indicator'!$A$3:$AB$351, MATCH(Selection_Hide2!$A52, 'Full set Core Client Indicator'!$A$3:$A$351, 0), MATCH(Selection_Hide2!Q$5, 'Full set Core Client Indicator'!$A$3:$AB$3, 0))), \"\")","v":""},{"$f":"IF(Q52<>\"\", IF(INDEX('Full set Core Client Indicator'!$A$3:$AB$351, MATCH(Selection_Hide2!$A52, 'Full set Core Client Indicator'!$A$3:$A$351, 0), MATCH(Selection_Hide2!R$5, 'Full set Core Client Indicator'!$A$3:$AB$3, 0))=\"\", \"\",  INDEX('Full set Core Client Indicator'!$A$3:$AB$351, MATCH(Selection_Hide2!$A52, 'Full set Core Client Indicator'!$A$3:$A$351, 0), MATCH(Selection_Hide2!R$5, 'Full set Core Client Indicator'!$A$3:$AB$3, 0))), \"\")","v":""},{"$f":"IF(R52<>\"\", IF(INDEX('Full set Core Client Indicator'!$A$3:$AB$351, MATCH(Selection_Hide2!$A52, 'Full set Core Client Indicator'!$A$3:$A$351, 0), MATCH(Selection_Hide2!S$5, 'Full set Core Client Indicator'!$A$3:$AB$3, 0))=\"\", \"\",  INDEX('Full set Core Client Indicator'!$A$3:$AB$351, MATCH(Selection_Hide2!$A52, 'Full set Core Client Indicator'!$A$3:$A$351, 0), MATCH(Selection_Hide2!S$5, 'Full set Core Client Indicator'!$A$3:$AB$3, 0))), \"\")","v":""},{"$f":"IF(S52<>\"\", IF(INDEX('Full set Core Client Indicator'!$A$3:$AB$351, MATCH(Selection_Hide2!$A52, 'Full set Core Client Indicator'!$A$3:$A$351, 0), MATCH(Selection_Hide2!T$5, 'Full set Core Client Indicator'!$A$3:$AB$3, 0))=\"\", \"\",  INDEX('Full set Core Client Indicator'!$A$3:$AB$351, MATCH(Selection_Hide2!$A52, 'Full set Core Client Indicator'!$A$3:$A$351, 0), MATCH(Selection_Hide2!T$5, 'Full set Core Client Indicator'!$A$3:$AB$3, 0))), \"\")","v":""},{"$f":"IF(T52<>\"\", IF(INDEX('Full set Core Client Indicator'!$A$3:$AB$351, MATCH(Selection_Hide2!$A52, 'Full set Core Client Indicator'!$A$3:$A$351, 0), MATCH(Selection_Hide2!U$5, 'Full set Core Client Indicator'!$A$3:$AB$3, 0))=\"\", \"\",  INDEX('Full set Core Client Indicator'!$A$3:$AB$351, MATCH(Selection_Hide2!$A52, 'Full set Core Client Indicator'!$A$3:$A$351, 0), MATCH(Selection_Hide2!U$5, 'Full set Core Client Indicator'!$A$3:$AB$3, 0))), \"\")","v":""},{"$f":"IF(U52<>\"\", IF(INDEX('Full set Core Client Indicator'!$A$3:$AB$351, MATCH(Selection_Hide2!$A52, 'Full set Core Client Indicator'!$A$3:$A$351, 0), MATCH(Selection_Hide2!V$5, 'Full set Core Client Indicator'!$A$3:$AB$3, 0))=\"\", \"\",  INDEX('Full set Core Client Indicator'!$A$3:$AB$351, MATCH(Selection_Hide2!$A52, 'Full set Core Client Indicator'!$A$3:$A$351, 0), MATCH(Selection_Hide2!V$5, 'Full set Core Client Indicator'!$A$3:$AB$3, 0))), \"\")","v":""},{"$f":"IF(V52<>\"\", IF(INDEX('Full set Core Client Indicator'!$A$3:$AB$351, MATCH(Selection_Hide2!$A52, 'Full set Core Client Indicator'!$A$3:$A$351, 0), MATCH(Selection_Hide2!W$5, 'Full set Core Client Indicator'!$A$3:$AB$3, 0))=\"\", \"\",  INDEX('Full set Core Client Indicator'!$A$3:$AB$351, MATCH(Selection_Hide2!$A52, 'Full set Core Client Indicator'!$A$3:$A$351, 0), MATCH(Selection_Hide2!W$5, 'Full set Core Client Indicator'!$A$3:$AB$3, 0))), \"\")","v":""},{"$f":"IF(W52<>\"\", IF(INDEX('Full set Core Client Indicator'!$A$3:$AB$351, MATCH(Selection_Hide2!$A52, 'Full set Core Client Indicator'!$A$3:$A$351, 0), MATCH(Selection_Hide2!X$5, 'Full set Core Client Indicator'!$A$3:$AB$3, 0))=\"\", \"\",  INDEX('Full set Core Client Indicator'!$A$3:$AB$351, MATCH(Selection_Hide2!$A52, 'Full set Core Client Indicator'!$A$3:$A$351, 0), MATCH(Selection_Hide2!X$5, 'Full set Core Client Indicator'!$A$3:$AB$3, 0))), \"\")","v":""},{"$f":"IF(X52<>\"\", IF(INDEX('Full set Core Client Indicator'!$A$3:$AB$351, MATCH(Selection_Hide2!$A52, 'Full set Core Client Indicator'!$A$3:$A$351, 0), MATCH(Selection_Hide2!Y$5, 'Full set Core Client Indicator'!$A$3:$AB$3, 0))=\"\", \"\",  INDEX('Full set Core Client Indicator'!$A$3:$AB$351, MATCH(Selection_Hide2!$A52, 'Full set Core Client Indicator'!$A$3:$A$351, 0), MATCH(Selection_Hide2!Y$5, 'Full set Core Client Indicator'!$A$3:$AB$3, 0))), \"\")","v":""},{"$f":"IF(Y52<>\"\", IF(INDEX('Full set Core Client Indicator'!$A$3:$AB$351, MATCH(Selection_Hide2!$A52, 'Full set Core Client Indicator'!$A$3:$A$351, 0), MATCH(Selection_Hide2!Z$5, 'Full set Core Client Indicator'!$A$3:$AB$3, 0))=\"\", \"\",  INDEX('Full set Core Client Indicator'!$A$3:$AB$351, MATCH(Selection_Hide2!$A52, 'Full set Core Client Indicator'!$A$3:$A$351, 0), MATCH(Selection_Hide2!Z$5, 'Full set Core Client Indicator'!$A$3:$AB$3, 0))), \"\")","v":""},{"$f":"IF(Z52<>\"\", IF(INDEX('Full set Core Client Indicator'!$A$3:$AB$351, MATCH(Selection_Hide2!$A52, 'Full set Core Client Indicator'!$A$3:$A$351, 0), MATCH(Selection_Hide2!AA$5, 'Full set Core Client Indicator'!$A$3:$AB$3, 0))=\"\", \"\",  INDEX('Full set Core Client Indicator'!$A$3:$AB$351, MATCH(Selection_Hide2!$A52, 'Full set Core Client Indicator'!$A$3:$A$351, 0), MATCH(Selection_Hide2!AA$5, 'Full set Core Client Indicator'!$A$3:$AB$3, 0))), \"\")","v":""},{"$f":"IF(AA52<>\"\", IF(INDEX('Full set Core Client Indicator'!$A$3:$AB$351, MATCH(Selection_Hide2!$A52, 'Full set Core Client Indicator'!$A$3:$A$351, 0), MATCH(Selection_Hide2!AB$5, 'Full set Core Client Indicator'!$A$3:$AB$3, 0))=\"\", \"\",  INDEX('Full set Core Client Indicator'!$A$3:$AB$351, MATCH(Selection_Hide2!$A52, 'Full set Core Client Indicator'!$A$3:$A$351, 0), MATCH(Selection_Hide2!AB$5, 'Full set Core Client Indicator'!$A$3:$AB$3, 0))), \"\")","v":""}]
[{"$f":"IF(AND(Selection_Hide1!C51<>0, Selection_Hide1!C51<>\"Grand Total\"), Selection_Hide1!C51, \"\")","v":""},{"$f":"IF(A53<>\"\", IF(INDEX('Full set Core Client Indicator'!$A$3:$AB$351, MATCH(Selection_Hide2!$A53, 'Full set Core Client Indicator'!$A$3:$A$351, 0), MATCH(Selection_Hide2!B$5, 'Full set Core Client Indicator'!$A$3:$AB$3, 0))=\"\", \"\",  INDEX('Full set Core Client Indicator'!$A$3:$AB$351, MATCH(Selection_Hide2!$A53, 'Full set Core Client Indicator'!$A$3:$A$351, 0), MATCH(Selection_Hide2!B$5, 'Full set Core Client Indicator'!$A$3:$AB$3, 0))), \"\")","v":""},{"$f":"IF(B53<>\"\", IF(INDEX('Full set Core Client Indicator'!$A$3:$AB$351, MATCH(Selection_Hide2!$A53, 'Full set Core Client Indicator'!$A$3:$A$351, 0), MATCH(Selection_Hide2!C$5, 'Full set Core Client Indicator'!$A$3:$AB$3, 0))=\"\", \"\",  INDEX('Full set Core Client Indicator'!$A$3:$AB$351, MATCH(Selection_Hide2!$A53, 'Full set Core Client Indicator'!$A$3:$A$351, 0), MATCH(Selection_Hide2!C$5, 'Full set Core Client Indicator'!$A$3:$AB$3, 0))), \"\")","v":""},{"$f":"IF(C53<>\"\", IF(INDEX('Full set Core Client Indicator'!$A$3:$AB$351, MATCH(Selection_Hide2!$A53, 'Full set Core Client Indicator'!$A$3:$A$351, 0), MATCH(Selection_Hide2!D$5, 'Full set Core Client Indicator'!$A$3:$AB$3, 0))=\"\", \"\",  INDEX('Full set Core Client Indicator'!$A$3:$AB$351, MATCH(Selection_Hide2!$A53, 'Full set Core Client Indicator'!$A$3:$A$351, 0), MATCH(Selection_Hide2!D$5, 'Full set Core Client Indicator'!$A$3:$AB$3, 0))), \"\")","v":""},{"$f":"IF(D53<>\"\", IF(INDEX('Full set Core Client Indicator'!$A$3:$AB$351, MATCH(Selection_Hide2!$A53, 'Full set Core Client Indicator'!$A$3:$A$351, 0), MATCH(Selection_Hide2!E$5, 'Full set Core Client Indicator'!$A$3:$AB$3, 0))=\"\", \"\",  INDEX('Full set Core Client Indicator'!$A$3:$AB$351, MATCH(Selection_Hide2!$A53, 'Full set Core Client Indicator'!$A$3:$A$351, 0), MATCH(Selection_Hide2!E$5, 'Full set Core Client Indicator'!$A$3:$AB$3, 0))), \"\")","v":""},{"$f":"IF(E53<>\"\", IF(INDEX('Full set Core Client Indicator'!$A$3:$AB$351, MATCH(Selection_Hide2!$A53, 'Full set Core Client Indicator'!$A$3:$A$351, 0), MATCH(Selection_Hide2!F$5, 'Full set Core Client Indicator'!$A$3:$AB$3, 0))=\"\", \"\",  INDEX('Full set Core Client Indicator'!$A$3:$AB$351, MATCH(Selection_Hide2!$A53, 'Full set Core Client Indicator'!$A$3:$A$351, 0), MATCH(Selection_Hide2!F$5, 'Full set Core Client Indicator'!$A$3:$AB$3, 0))), \"\")","v":""},{"$f":"IF(F53<>\"\", IF(INDEX('Full set Core Client Indicator'!$A$3:$AB$351, MATCH(Selection_Hide2!$A53, 'Full set Core Client Indicator'!$A$3:$A$351, 0), MATCH(Selection_Hide2!G$5, 'Full set Core Client Indicator'!$A$3:$AB$3, 0))=\"\", \"\",  INDEX('Full set Core Client Indicator'!$A$3:$AB$351, MATCH(Selection_Hide2!$A53, 'Full set Core Client Indicator'!$A$3:$A$351, 0), MATCH(Selection_Hide2!G$5, 'Full set Core Client Indicator'!$A$3:$AB$3, 0))), \"\")","v":""},{"$f":"IF(G53<>\"\", IF(INDEX('Full set Core Client Indicator'!$A$3:$AB$351, MATCH(Selection_Hide2!$A53, 'Full set Core Client Indicator'!$A$3:$A$351, 0), MATCH(Selection_Hide2!H$5, 'Full set Core Client Indicator'!$A$3:$AB$3, 0))=\"\", \"\",  INDEX('Full set Core Client Indicator'!$A$3:$AB$351, MATCH(Selection_Hide2!$A53, 'Full set Core Client Indicator'!$A$3:$A$351, 0), MATCH(Selection_Hide2!H$5, 'Full set Core Client Indicator'!$A$3:$AB$3, 0))), \"\")","v":""},{"$f":"IF(H53<>\"\", IF(INDEX('Full set Core Client Indicator'!$A$3:$AB$351, MATCH(Selection_Hide2!$A53, 'Full set Core Client Indicator'!$A$3:$A$351, 0), MATCH(Selection_Hide2!I$5, 'Full set Core Client Indicator'!$A$3:$AB$3, 0))=\"\", \"\",  INDEX('Full set Core Client Indicator'!$A$3:$AB$351, MATCH(Selection_Hide2!$A53, 'Full set Core Client Indicator'!$A$3:$A$351, 0), MATCH(Selection_Hide2!I$5, 'Full set Core Client Indicator'!$A$3:$AB$3, 0))), \"\")","v":""},{"$f":"IF(I53<>\"\", IF(INDEX('Full set Core Client Indicator'!$A$3:$AB$351, MATCH(Selection_Hide2!$A53, 'Full set Core Client Indicator'!$A$3:$A$351, 0), MATCH(Selection_Hide2!J$5, 'Full set Core Client Indicator'!$A$3:$AB$3, 0))=\"\", \"\",  INDEX('Full set Core Client Indicator'!$A$3:$AB$351, MATCH(Selection_Hide2!$A53, 'Full set Core Client Indicator'!$A$3:$A$351, 0), MATCH(Selection_Hide2!J$5, 'Full set Core Client Indicator'!$A$3:$AB$3, 0))), \"\")","v":""},{"$f":"IF(J53<>\"\", IF(INDEX('Full set Core Client Indicator'!$A$3:$AB$351, MATCH(Selection_Hide2!$A53, 'Full set Core Client Indicator'!$A$3:$A$351, 0), MATCH(Selection_Hide2!K$5, 'Full set Core Client Indicator'!$A$3:$AB$3, 0))=\"\", \"\",  INDEX('Full set Core Client Indicator'!$A$3:$AB$351, MATCH(Selection_Hide2!$A53, 'Full set Core Client Indicator'!$A$3:$A$351, 0), MATCH(Selection_Hide2!K$5, 'Full set Core Client Indicator'!$A$3:$AB$3, 0))), \"\")","v":""},{"$f":"IF(K53<>\"\", IF(INDEX('Full set Core Client Indicator'!$A$3:$AB$351, MATCH(Selection_Hide2!$A53, 'Full set Core Client Indicator'!$A$3:$A$351, 0), MATCH(Selection_Hide2!L$5, 'Full set Core Client Indicator'!$A$3:$AB$3, 0))=\"\", \"\",  INDEX('Full set Core Client Indicator'!$A$3:$AB$351, MATCH(Selection_Hide2!$A53, 'Full set Core Client Indicator'!$A$3:$A$351, 0), MATCH(Selection_Hide2!L$5, 'Full set Core Client Indicator'!$A$3:$AB$3, 0))), \"\")","v":""},{"$f":"IF(L53<>\"\", IF(INDEX('Full set Core Client Indicator'!$A$3:$AB$351, MATCH(Selection_Hide2!$A53, 'Full set Core Client Indicator'!$A$3:$A$351, 0), MATCH(Selection_Hide2!M$5, 'Full set Core Client Indicator'!$A$3:$AB$3, 0))=\"\", \"\",  INDEX('Full set Core Client Indicator'!$A$3:$AB$351, MATCH(Selection_Hide2!$A53, 'Full set Core Client Indicator'!$A$3:$A$351, 0), MATCH(Selection_Hide2!M$5, 'Full set Core Client Indicator'!$A$3:$AB$3, 0))), \"\")","v":""},{"$f":"IF(M53<>\"\", IF(INDEX('Full set Core Client Indicator'!$A$3:$AB$351, MATCH(Selection_Hide2!$A53, 'Full set Core Client Indicator'!$A$3:$A$351, 0), MATCH(Selection_Hide2!N$5, 'Full set Core Client Indicator'!$A$3:$AB$3, 0))=\"\", \"\",  INDEX('Full set Core Client Indicator'!$A$3:$AB$351, MATCH(Selection_Hide2!$A53, 'Full set Core Client Indicator'!$A$3:$A$351, 0), MATCH(Selection_Hide2!N$5, 'Full set Core Client Indicator'!$A$3:$AB$3, 0))), \"\")","v":""},{"$f":"IF(N53<>\"\", IF(INDEX('Full set Core Client Indicator'!$A$3:$AB$351, MATCH(Selection_Hide2!$A53, 'Full set Core Client Indicator'!$A$3:$A$351, 0), MATCH(Selection_Hide2!O$5, 'Full set Core Client Indicator'!$A$3:$AB$3, 0))=\"\", \"\",  INDEX('Full set Core Client Indicator'!$A$3:$AB$351, MATCH(Selection_Hide2!$A53, 'Full set Core Client Indicator'!$A$3:$A$351, 0), MATCH(Selection_Hide2!O$5, 'Full set Core Client Indicator'!$A$3:$AB$3, 0))), \"\")","v":""},{"$f":"IF(O53<>\"\", IF(INDEX('Full set Core Client Indicator'!$A$3:$AB$351, MATCH(Selection_Hide2!$A53, 'Full set Core Client Indicator'!$A$3:$A$351, 0), MATCH(Selection_Hide2!P$5, 'Full set Core Client Indicator'!$A$3:$AB$3, 0))=\"\", \"\",  INDEX('Full set Core Client Indicator'!$A$3:$AB$351, MATCH(Selection_Hide2!$A53, 'Full set Core Client Indicator'!$A$3:$A$351, 0), MATCH(Selection_Hide2!P$5, 'Full set Core Client Indicator'!$A$3:$AB$3, 0))), \"\")","v":""},{"$f":"IF(P53<>\"\", IF(INDEX('Full set Core Client Indicator'!$A$3:$AB$351, MATCH(Selection_Hide2!$A53, 'Full set Core Client Indicator'!$A$3:$A$351, 0), MATCH(Selection_Hide2!Q$5, 'Full set Core Client Indicator'!$A$3:$AB$3, 0))=\"\", \"\",  INDEX('Full set Core Client Indicator'!$A$3:$AB$351, MATCH(Selection_Hide2!$A53, 'Full set Core Client Indicator'!$A$3:$A$351, 0), MATCH(Selection_Hide2!Q$5, 'Full set Core Client Indicator'!$A$3:$AB$3, 0))), \"\")","v":""},{"$f":"IF(Q53<>\"\", IF(INDEX('Full set Core Client Indicator'!$A$3:$AB$351, MATCH(Selection_Hide2!$A53, 'Full set Core Client Indicator'!$A$3:$A$351, 0), MATCH(Selection_Hide2!R$5, 'Full set Core Client Indicator'!$A$3:$AB$3, 0))=\"\", \"\",  INDEX('Full set Core Client Indicator'!$A$3:$AB$351, MATCH(Selection_Hide2!$A53, 'Full set Core Client Indicator'!$A$3:$A$351, 0), MATCH(Selection_Hide2!R$5, 'Full set Core Client Indicator'!$A$3:$AB$3, 0))), \"\")","v":""},{"$f":"IF(R53<>\"\", IF(INDEX('Full set Core Client Indicator'!$A$3:$AB$351, MATCH(Selection_Hide2!$A53, 'Full set Core Client Indicator'!$A$3:$A$351, 0), MATCH(Selection_Hide2!S$5, 'Full set Core Client Indicator'!$A$3:$AB$3, 0))=\"\", \"\",  INDEX('Full set Core Client Indicator'!$A$3:$AB$351, MATCH(Selection_Hide2!$A53, 'Full set Core Client Indicator'!$A$3:$A$351, 0), MATCH(Selection_Hide2!S$5, 'Full set Core Client Indicator'!$A$3:$AB$3, 0))), \"\")","v":""},{"$f":"IF(S53<>\"\", IF(INDEX('Full set Core Client Indicator'!$A$3:$AB$351, MATCH(Selection_Hide2!$A53, 'Full set Core Client Indicator'!$A$3:$A$351, 0), MATCH(Selection_Hide2!T$5, 'Full set Core Client Indicator'!$A$3:$AB$3, 0))=\"\", \"\",  INDEX('Full set Core Client Indicator'!$A$3:$AB$351, MATCH(Selection_Hide2!$A53, 'Full set Core Client Indicator'!$A$3:$A$351, 0), MATCH(Selection_Hide2!T$5, 'Full set Core Client Indicator'!$A$3:$AB$3, 0))), \"\")","v":""},{"$f":"IF(T53<>\"\", IF(INDEX('Full set Core Client Indicator'!$A$3:$AB$351, MATCH(Selection_Hide2!$A53, 'Full set Core Client Indicator'!$A$3:$A$351, 0), MATCH(Selection_Hide2!U$5, 'Full set Core Client Indicator'!$A$3:$AB$3, 0))=\"\", \"\",  INDEX('Full set Core Client Indicator'!$A$3:$AB$351, MATCH(Selection_Hide2!$A53, 'Full set Core Client Indicator'!$A$3:$A$351, 0), MATCH(Selection_Hide2!U$5, 'Full set Core Client Indicator'!$A$3:$AB$3, 0))), \"\")","v":""},{"$f":"IF(U53<>\"\", IF(INDEX('Full set Core Client Indicator'!$A$3:$AB$351, MATCH(Selection_Hide2!$A53, 'Full set Core Client Indicator'!$A$3:$A$351, 0), MATCH(Selection_Hide2!V$5, 'Full set Core Client Indicator'!$A$3:$AB$3, 0))=\"\", \"\",  INDEX('Full set Core Client Indicator'!$A$3:$AB$351, MATCH(Selection_Hide2!$A53, 'Full set Core Client Indicator'!$A$3:$A$351, 0), MATCH(Selection_Hide2!V$5, 'Full set Core Client Indicator'!$A$3:$AB$3, 0))), \"\")","v":""},{"$f":"IF(V53<>\"\", IF(INDEX('Full set Core Client Indicator'!$A$3:$AB$351, MATCH(Selection_Hide2!$A53, 'Full set Core Client Indicator'!$A$3:$A$351, 0), MATCH(Selection_Hide2!W$5, 'Full set Core Client Indicator'!$A$3:$AB$3, 0))=\"\", \"\",  INDEX('Full set Core Client Indicator'!$A$3:$AB$351, MATCH(Selection_Hide2!$A53, 'Full set Core Client Indicator'!$A$3:$A$351, 0), MATCH(Selection_Hide2!W$5, 'Full set Core Client Indicator'!$A$3:$AB$3, 0))), \"\")","v":""},{"$f":"IF(W53<>\"\", IF(INDEX('Full set Core Client Indicator'!$A$3:$AB$351, MATCH(Selection_Hide2!$A53, 'Full set Core Client Indicator'!$A$3:$A$351, 0), MATCH(Selection_Hide2!X$5, 'Full set Core Client Indicator'!$A$3:$AB$3, 0))=\"\", \"\",  INDEX('Full set Core Client Indicator'!$A$3:$AB$351, MATCH(Selection_Hide2!$A53, 'Full set Core Client Indicator'!$A$3:$A$351, 0), MATCH(Selection_Hide2!X$5, 'Full set Core Client Indicator'!$A$3:$AB$3, 0))), \"\")","v":""},{"$f":"IF(X53<>\"\", IF(INDEX('Full set Core Client Indicator'!$A$3:$AB$351, MATCH(Selection_Hide2!$A53, 'Full set Core Client Indicator'!$A$3:$A$351, 0), MATCH(Selection_Hide2!Y$5, 'Full set Core Client Indicator'!$A$3:$AB$3, 0))=\"\", \"\",  INDEX('Full set Core Client Indicator'!$A$3:$AB$351, MATCH(Selection_Hide2!$A53, 'Full set Core Client Indicator'!$A$3:$A$351, 0), MATCH(Selection_Hide2!Y$5, 'Full set Core Client Indicator'!$A$3:$AB$3, 0))), \"\")","v":""},{"$f":"IF(Y53<>\"\", IF(INDEX('Full set Core Client Indicator'!$A$3:$AB$351, MATCH(Selection_Hide2!$A53, 'Full set Core Client Indicator'!$A$3:$A$351, 0), MATCH(Selection_Hide2!Z$5, 'Full set Core Client Indicator'!$A$3:$AB$3, 0))=\"\", \"\",  INDEX('Full set Core Client Indicator'!$A$3:$AB$351, MATCH(Selection_Hide2!$A53, 'Full set Core Client Indicator'!$A$3:$A$351, 0), MATCH(Selection_Hide2!Z$5, 'Full set Core Client Indicator'!$A$3:$AB$3, 0))), \"\")","v":""},{"$f":"IF(Z53<>\"\", IF(INDEX('Full set Core Client Indicator'!$A$3:$AB$351, MATCH(Selection_Hide2!$A53, 'Full set Core Client Indicator'!$A$3:$A$351, 0), MATCH(Selection_Hide2!AA$5, 'Full set Core Client Indicator'!$A$3:$AB$3, 0))=\"\", \"\",  INDEX('Full set Core Client Indicator'!$A$3:$AB$351, MATCH(Selection_Hide2!$A53, 'Full set Core Client Indicator'!$A$3:$A$351, 0), MATCH(Selection_Hide2!AA$5, 'Full set Core Client Indicator'!$A$3:$AB$3, 0))), \"\")","v":""},{"$f":"IF(AA53<>\"\", IF(INDEX('Full set Core Client Indicator'!$A$3:$AB$351, MATCH(Selection_Hide2!$A53, 'Full set Core Client Indicator'!$A$3:$A$351, 0), MATCH(Selection_Hide2!AB$5, 'Full set Core Client Indicator'!$A$3:$AB$3, 0))=\"\", \"\",  INDEX('Full set Core Client Indicator'!$A$3:$AB$351, MATCH(Selection_Hide2!$A53, 'Full set Core Client Indicator'!$A$3:$A$351, 0), MATCH(Selection_Hide2!AB$5, 'Full set Core Client Indicator'!$A$3:$AB$3, 0))), \"\")","v":""}]
[{"$f":"IF(AND(Selection_Hide1!C52<>0, Selection_Hide1!C52<>\"Grand Total\"), Selection_Hide1!C52, \"\")","v":""},{"$f":"IF(A54<>\"\", IF(INDEX('Full set Core Client Indicator'!$A$3:$AB$351, MATCH(Selection_Hide2!$A54, 'Full set Core Client Indicator'!$A$3:$A$351, 0), MATCH(Selection_Hide2!B$5, 'Full set Core Client Indicator'!$A$3:$AB$3, 0))=\"\", \"\",  INDEX('Full set Core Client Indicator'!$A$3:$AB$351, MATCH(Selection_Hide2!$A54, 'Full set Core Client Indicator'!$A$3:$A$351, 0), MATCH(Selection_Hide2!B$5, 'Full set Core Client Indicator'!$A$3:$AB$3, 0))), \"\")","v":""},{"$f":"IF(B54<>\"\", IF(INDEX('Full set Core Client Indicator'!$A$3:$AB$351, MATCH(Selection_Hide2!$A54, 'Full set Core Client Indicator'!$A$3:$A$351, 0), MATCH(Selection_Hide2!C$5, 'Full set Core Client Indicator'!$A$3:$AB$3, 0))=\"\", \"\",  INDEX('Full set Core Client Indicator'!$A$3:$AB$351, MATCH(Selection_Hide2!$A54, 'Full set Core Client Indicator'!$A$3:$A$351, 0), MATCH(Selection_Hide2!C$5, 'Full set Core Client Indicator'!$A$3:$AB$3, 0))), \"\")","v":""},{"$f":"IF(C54<>\"\", IF(INDEX('Full set Core Client Indicator'!$A$3:$AB$351, MATCH(Selection_Hide2!$A54, 'Full set Core Client Indicator'!$A$3:$A$351, 0), MATCH(Selection_Hide2!D$5, 'Full set Core Client Indicator'!$A$3:$AB$3, 0))=\"\", \"\",  INDEX('Full set Core Client Indicator'!$A$3:$AB$351, MATCH(Selection_Hide2!$A54, 'Full set Core Client Indicator'!$A$3:$A$351, 0), MATCH(Selection_Hide2!D$5, 'Full set Core Client Indicator'!$A$3:$AB$3, 0))), \"\")","v":""},{"$f":"IF(D54<>\"\", IF(INDEX('Full set Core Client Indicator'!$A$3:$AB$351, MATCH(Selection_Hide2!$A54, 'Full set Core Client Indicator'!$A$3:$A$351, 0), MATCH(Selection_Hide2!E$5, 'Full set Core Client Indicator'!$A$3:$AB$3, 0))=\"\", \"\",  INDEX('Full set Core Client Indicator'!$A$3:$AB$351, MATCH(Selection_Hide2!$A54, 'Full set Core Client Indicator'!$A$3:$A$351, 0), MATCH(Selection_Hide2!E$5, 'Full set Core Client Indicator'!$A$3:$AB$3, 0))), \"\")","v":""},{"$f":"IF(E54<>\"\", IF(INDEX('Full set Core Client Indicator'!$A$3:$AB$351, MATCH(Selection_Hide2!$A54, 'Full set Core Client Indicator'!$A$3:$A$351, 0), MATCH(Selection_Hide2!F$5, 'Full set Core Client Indicator'!$A$3:$AB$3, 0))=\"\", \"\",  INDEX('Full set Core Client Indicator'!$A$3:$AB$351, MATCH(Selection_Hide2!$A54, 'Full set Core Client Indicator'!$A$3:$A$351, 0), MATCH(Selection_Hide2!F$5, 'Full set Core Client Indicator'!$A$3:$AB$3, 0))), \"\")","v":""},{"$f":"IF(F54<>\"\", IF(INDEX('Full set Core Client Indicator'!$A$3:$AB$351, MATCH(Selection_Hide2!$A54, 'Full set Core Client Indicator'!$A$3:$A$351, 0), MATCH(Selection_Hide2!G$5, 'Full set Core Client Indicator'!$A$3:$AB$3, 0))=\"\", \"\",  INDEX('Full set Core Client Indicator'!$A$3:$AB$351, MATCH(Selection_Hide2!$A54, 'Full set Core Client Indicator'!$A$3:$A$351, 0), MATCH(Selection_Hide2!G$5, 'Full set Core Client Indicator'!$A$3:$AB$3, 0))), \"\")","v":""},{"$f":"IF(G54<>\"\", IF(INDEX('Full set Core Client Indicator'!$A$3:$AB$351, MATCH(Selection_Hide2!$A54, 'Full set Core Client Indicator'!$A$3:$A$351, 0), MATCH(Selection_Hide2!H$5, 'Full set Core Client Indicator'!$A$3:$AB$3, 0))=\"\", \"\",  INDEX('Full set Core Client Indicator'!$A$3:$AB$351, MATCH(Selection_Hide2!$A54, 'Full set Core Client Indicator'!$A$3:$A$351, 0), MATCH(Selection_Hide2!H$5, 'Full set Core Client Indicator'!$A$3:$AB$3, 0))), \"\")","v":""},{"$f":"IF(H54<>\"\", IF(INDEX('Full set Core Client Indicator'!$A$3:$AB$351, MATCH(Selection_Hide2!$A54, 'Full set Core Client Indicator'!$A$3:$A$351, 0), MATCH(Selection_Hide2!I$5, 'Full set Core Client Indicator'!$A$3:$AB$3, 0))=\"\", \"\",  INDEX('Full set Core Client Indicator'!$A$3:$AB$351, MATCH(Selection_Hide2!$A54, 'Full set Core Client Indicator'!$A$3:$A$351, 0), MATCH(Selection_Hide2!I$5, 'Full set Core Client Indicator'!$A$3:$AB$3, 0))), \"\")","v":""},{"$f":"IF(I54<>\"\", IF(INDEX('Full set Core Client Indicator'!$A$3:$AB$351, MATCH(Selection_Hide2!$A54, 'Full set Core Client Indicator'!$A$3:$A$351, 0), MATCH(Selection_Hide2!J$5, 'Full set Core Client Indicator'!$A$3:$AB$3, 0))=\"\", \"\",  INDEX('Full set Core Client Indicator'!$A$3:$AB$351, MATCH(Selection_Hide2!$A54, 'Full set Core Client Indicator'!$A$3:$A$351, 0), MATCH(Selection_Hide2!J$5, 'Full set Core Client Indicator'!$A$3:$AB$3, 0))), \"\")","v":""},{"$f":"IF(J54<>\"\", IF(INDEX('Full set Core Client Indicator'!$A$3:$AB$351, MATCH(Selection_Hide2!$A54, 'Full set Core Client Indicator'!$A$3:$A$351, 0), MATCH(Selection_Hide2!K$5, 'Full set Core Client Indicator'!$A$3:$AB$3, 0))=\"\", \"\",  INDEX('Full set Core Client Indicator'!$A$3:$AB$351, MATCH(Selection_Hide2!$A54, 'Full set Core Client Indicator'!$A$3:$A$351, 0), MATCH(Selection_Hide2!K$5, 'Full set Core Client Indicator'!$A$3:$AB$3, 0))), \"\")","v":""},{"$f":"IF(K54<>\"\", IF(INDEX('Full set Core Client Indicator'!$A$3:$AB$351, MATCH(Selection_Hide2!$A54, 'Full set Core Client Indicator'!$A$3:$A$351, 0), MATCH(Selection_Hide2!L$5, 'Full set Core Client Indicator'!$A$3:$AB$3, 0))=\"\", \"\",  INDEX('Full set Core Client Indicator'!$A$3:$AB$351, MATCH(Selection_Hide2!$A54, 'Full set Core Client Indicator'!$A$3:$A$351, 0), MATCH(Selection_Hide2!L$5, 'Full set Core Client Indicator'!$A$3:$AB$3, 0))), \"\")","v":""},{"$f":"IF(L54<>\"\", IF(INDEX('Full set Core Client Indicator'!$A$3:$AB$351, MATCH(Selection_Hide2!$A54, 'Full set Core Client Indicator'!$A$3:$A$351, 0), MATCH(Selection_Hide2!M$5, 'Full set Core Client Indicator'!$A$3:$AB$3, 0))=\"\", \"\",  INDEX('Full set Core Client Indicator'!$A$3:$AB$351, MATCH(Selection_Hide2!$A54, 'Full set Core Client Indicator'!$A$3:$A$351, 0), MATCH(Selection_Hide2!M$5, 'Full set Core Client Indicator'!$A$3:$AB$3, 0))), \"\")","v":""},{"$f":"IF(M54<>\"\", IF(INDEX('Full set Core Client Indicator'!$A$3:$AB$351, MATCH(Selection_Hide2!$A54, 'Full set Core Client Indicator'!$A$3:$A$351, 0), MATCH(Selection_Hide2!N$5, 'Full set Core Client Indicator'!$A$3:$AB$3, 0))=\"\", \"\",  INDEX('Full set Core Client Indicator'!$A$3:$AB$351, MATCH(Selection_Hide2!$A54, 'Full set Core Client Indicator'!$A$3:$A$351, 0), MATCH(Selection_Hide2!N$5, 'Full set Core Client Indicator'!$A$3:$AB$3, 0))), \"\")","v":""},{"$f":"IF(N54<>\"\", IF(INDEX('Full set Core Client Indicator'!$A$3:$AB$351, MATCH(Selection_Hide2!$A54, 'Full set Core Client Indicator'!$A$3:$A$351, 0), MATCH(Selection_Hide2!O$5, 'Full set Core Client Indicator'!$A$3:$AB$3, 0))=\"\", \"\",  INDEX('Full set Core Client Indicator'!$A$3:$AB$351, MATCH(Selection_Hide2!$A54, 'Full set Core Client Indicator'!$A$3:$A$351, 0), MATCH(Selection_Hide2!O$5, 'Full set Core Client Indicator'!$A$3:$AB$3, 0))), \"\")","v":""},{"$f":"IF(O54<>\"\", IF(INDEX('Full set Core Client Indicator'!$A$3:$AB$351, MATCH(Selection_Hide2!$A54, 'Full set Core Client Indicator'!$A$3:$A$351, 0), MATCH(Selection_Hide2!P$5, 'Full set Core Client Indicator'!$A$3:$AB$3, 0))=\"\", \"\",  INDEX('Full set Core Client Indicator'!$A$3:$AB$351, MATCH(Selection_Hide2!$A54, 'Full set Core Client Indicator'!$A$3:$A$351, 0), MATCH(Selection_Hide2!P$5, 'Full set Core Client Indicator'!$A$3:$AB$3, 0))), \"\")","v":""},{"$f":"IF(P54<>\"\", IF(INDEX('Full set Core Client Indicator'!$A$3:$AB$351, MATCH(Selection_Hide2!$A54, 'Full set Core Client Indicator'!$A$3:$A$351, 0), MATCH(Selection_Hide2!Q$5, 'Full set Core Client Indicator'!$A$3:$AB$3, 0))=\"\", \"\",  INDEX('Full set Core Client Indicator'!$A$3:$AB$351, MATCH(Selection_Hide2!$A54, 'Full set Core Client Indicator'!$A$3:$A$351, 0), MATCH(Selection_Hide2!Q$5, 'Full set Core Client Indicator'!$A$3:$AB$3, 0))), \"\")","v":""},{"$f":"IF(Q54<>\"\", IF(INDEX('Full set Core Client Indicator'!$A$3:$AB$351, MATCH(Selection_Hide2!$A54, 'Full set Core Client Indicator'!$A$3:$A$351, 0), MATCH(Selection_Hide2!R$5, 'Full set Core Client Indicator'!$A$3:$AB$3, 0))=\"\", \"\",  INDEX('Full set Core Client Indicator'!$A$3:$AB$351, MATCH(Selection_Hide2!$A54, 'Full set Core Client Indicator'!$A$3:$A$351, 0), MATCH(Selection_Hide2!R$5, 'Full set Core Client Indicator'!$A$3:$AB$3, 0))), \"\")","v":""},{"$f":"IF(R54<>\"\", IF(INDEX('Full set Core Client Indicator'!$A$3:$AB$351, MATCH(Selection_Hide2!$A54, 'Full set Core Client Indicator'!$A$3:$A$351, 0), MATCH(Selection_Hide2!S$5, 'Full set Core Client Indicator'!$A$3:$AB$3, 0))=\"\", \"\",  INDEX('Full set Core Client Indicator'!$A$3:$AB$351, MATCH(Selection_Hide2!$A54, 'Full set Core Client Indicator'!$A$3:$A$351, 0), MATCH(Selection_Hide2!S$5, 'Full set Core Client Indicator'!$A$3:$AB$3, 0))), \"\")","v":""},{"$f":"IF(S54<>\"\", IF(INDEX('Full set Core Client Indicator'!$A$3:$AB$351, MATCH(Selection_Hide2!$A54, 'Full set Core Client Indicator'!$A$3:$A$351, 0), MATCH(Selection_Hide2!T$5, 'Full set Core Client Indicator'!$A$3:$AB$3, 0))=\"\", \"\",  INDEX('Full set Core Client Indicator'!$A$3:$AB$351, MATCH(Selection_Hide2!$A54, 'Full set Core Client Indicator'!$A$3:$A$351, 0), MATCH(Selection_Hide2!T$5, 'Full set Core Client Indicator'!$A$3:$AB$3, 0))), \"\")","v":""},{"$f":"IF(T54<>\"\", IF(INDEX('Full set Core Client Indicator'!$A$3:$AB$351, MATCH(Selection_Hide2!$A54, 'Full set Core Client Indicator'!$A$3:$A$351, 0), MATCH(Selection_Hide2!U$5, 'Full set Core Client Indicator'!$A$3:$AB$3, 0))=\"\", \"\",  INDEX('Full set Core Client Indicator'!$A$3:$AB$351, MATCH(Selection_Hide2!$A54, 'Full set Core Client Indicator'!$A$3:$A$351, 0), MATCH(Selection_Hide2!U$5, 'Full set Core Client Indicator'!$A$3:$AB$3, 0))), \"\")","v":""},{"$f":"IF(U54<>\"\", IF(INDEX('Full set Core Client Indicator'!$A$3:$AB$351, MATCH(Selection_Hide2!$A54, 'Full set Core Client Indicator'!$A$3:$A$351, 0), MATCH(Selection_Hide2!V$5, 'Full set Core Client Indicator'!$A$3:$AB$3, 0))=\"\", \"\",  INDEX('Full set Core Client Indicator'!$A$3:$AB$351, MATCH(Selection_Hide2!$A54, 'Full set Core Client Indicator'!$A$3:$A$351, 0), MATCH(Selection_Hide2!V$5, 'Full set Core Client Indicator'!$A$3:$AB$3, 0))), \"\")","v":""},{"$f":"IF(V54<>\"\", IF(INDEX('Full set Core Client Indicator'!$A$3:$AB$351, MATCH(Selection_Hide2!$A54, 'Full set Core Client Indicator'!$A$3:$A$351, 0), MATCH(Selection_Hide2!W$5, 'Full set Core Client Indicator'!$A$3:$AB$3, 0))=\"\", \"\",  INDEX('Full set Core Client Indicator'!$A$3:$AB$351, MATCH(Selection_Hide2!$A54, 'Full set Core Client Indicator'!$A$3:$A$351, 0), MATCH(Selection_Hide2!W$5, 'Full set Core Client Indicator'!$A$3:$AB$3, 0))), \"\")","v":""},{"$f":"IF(W54<>\"\", IF(INDEX('Full set Core Client Indicator'!$A$3:$AB$351, MATCH(Selection_Hide2!$A54, 'Full set Core Client Indicator'!$A$3:$A$351, 0), MATCH(Selection_Hide2!X$5, 'Full set Core Client Indicator'!$A$3:$AB$3, 0))=\"\", \"\",  INDEX('Full set Core Client Indicator'!$A$3:$AB$351, MATCH(Selection_Hide2!$A54, 'Full set Core Client Indicator'!$A$3:$A$351, 0), MATCH(Selection_Hide2!X$5, 'Full set Core Client Indicator'!$A$3:$AB$3, 0))), \"\")","v":""},{"$f":"IF(X54<>\"\", IF(INDEX('Full set Core Client Indicator'!$A$3:$AB$351, MATCH(Selection_Hide2!$A54, 'Full set Core Client Indicator'!$A$3:$A$351, 0), MATCH(Selection_Hide2!Y$5, 'Full set Core Client Indicator'!$A$3:$AB$3, 0))=\"\", \"\",  INDEX('Full set Core Client Indicator'!$A$3:$AB$351, MATCH(Selection_Hide2!$A54, 'Full set Core Client Indicator'!$A$3:$A$351, 0), MATCH(Selection_Hide2!Y$5, 'Full set Core Client Indicator'!$A$3:$AB$3, 0))), \"\")","v":""},{"$f":"IF(Y54<>\"\", IF(INDEX('Full set Core Client Indicator'!$A$3:$AB$351, MATCH(Selection_Hide2!$A54, 'Full set Core Client Indicator'!$A$3:$A$351, 0), MATCH(Selection_Hide2!Z$5, 'Full set Core Client Indicator'!$A$3:$AB$3, 0))=\"\", \"\",  INDEX('Full set Core Client Indicator'!$A$3:$AB$351, MATCH(Selection_Hide2!$A54, 'Full set Core Client Indicator'!$A$3:$A$351, 0), MATCH(Selection_Hide2!Z$5, 'Full set Core Client Indicator'!$A$3:$AB$3, 0))), \"\")","v":""},{"$f":"IF(Z54<>\"\", IF(INDEX('Full set Core Client Indicator'!$A$3:$AB$351, MATCH(Selection_Hide2!$A54, 'Full set Core Client Indicator'!$A$3:$A$351, 0), MATCH(Selection_Hide2!AA$5, 'Full set Core Client Indicator'!$A$3:$AB$3, 0))=\"\", \"\",  INDEX('Full set Core Client Indicator'!$A$3:$AB$351, MATCH(Selection_Hide2!$A54, 'Full set Core Client Indicator'!$A$3:$A$351, 0), MATCH(Selection_Hide2!AA$5, 'Full set Core Client Indicator'!$A$3:$AB$3, 0))), \"\")","v":""},{"$f":"IF(AA54<>\"\", IF(INDEX('Full set Core Client Indicator'!$A$3:$AB$351, MATCH(Selection_Hide2!$A54, 'Full set Core Client Indicator'!$A$3:$A$351, 0), MATCH(Selection_Hide2!AB$5, 'Full set Core Client Indicator'!$A$3:$AB$3, 0))=\"\", \"\",  INDEX('Full set Core Client Indicator'!$A$3:$AB$351, MATCH(Selection_Hide2!$A54, 'Full set Core Client Indicator'!$A$3:$A$351, 0), MATCH(Selection_Hide2!AB$5, 'Full set Core Client Indicator'!$A$3:$AB$3, 0))), \"\")","v":""}]
[{"$f":"IF(AND(Selection_Hide1!C53<>0, Selection_Hide1!C53<>\"Grand Total\"), Selection_Hide1!C53, \"\")","v":""},{"$f":"IF(A55<>\"\", IF(INDEX('Full set Core Client Indicator'!$A$3:$AB$351, MATCH(Selection_Hide2!$A55, 'Full set Core Client Indicator'!$A$3:$A$351, 0), MATCH(Selection_Hide2!B$5, 'Full set Core Client Indicator'!$A$3:$AB$3, 0))=\"\", \"\",  INDEX('Full set Core Client Indicator'!$A$3:$AB$351, MATCH(Selection_Hide2!$A55, 'Full set Core Client Indicator'!$A$3:$A$351, 0), MATCH(Selection_Hide2!B$5, 'Full set Core Client Indicator'!$A$3:$AB$3, 0))), \"\")","v":""},{"$f":"IF(B55<>\"\", IF(INDEX('Full set Core Client Indicator'!$A$3:$AB$351, MATCH(Selection_Hide2!$A55, 'Full set Core Client Indicator'!$A$3:$A$351, 0), MATCH(Selection_Hide2!C$5, 'Full set Core Client Indicator'!$A$3:$AB$3, 0))=\"\", \"\",  INDEX('Full set Core Client Indicator'!$A$3:$AB$351, MATCH(Selection_Hide2!$A55, 'Full set Core Client Indicator'!$A$3:$A$351, 0), MATCH(Selection_Hide2!C$5, 'Full set Core Client Indicator'!$A$3:$AB$3, 0))), \"\")","v":""},{"$f":"IF(C55<>\"\", IF(INDEX('Full set Core Client Indicator'!$A$3:$AB$351, MATCH(Selection_Hide2!$A55, 'Full set Core Client Indicator'!$A$3:$A$351, 0), MATCH(Selection_Hide2!D$5, 'Full set Core Client Indicator'!$A$3:$AB$3, 0))=\"\", \"\",  INDEX('Full set Core Client Indicator'!$A$3:$AB$351, MATCH(Selection_Hide2!$A55, 'Full set Core Client Indicator'!$A$3:$A$351, 0), MATCH(Selection_Hide2!D$5, 'Full set Core Client Indicator'!$A$3:$AB$3, 0))), \"\")","v":""},{"$f":"IF(D55<>\"\", IF(INDEX('Full set Core Client Indicator'!$A$3:$AB$351, MATCH(Selection_Hide2!$A55, 'Full set Core Client Indicator'!$A$3:$A$351, 0), MATCH(Selection_Hide2!E$5, 'Full set Core Client Indicator'!$A$3:$AB$3, 0))=\"\", \"\",  INDEX('Full set Core Client Indicator'!$A$3:$AB$351, MATCH(Selection_Hide2!$A55, 'Full set Core Client Indicator'!$A$3:$A$351, 0), MATCH(Selection_Hide2!E$5, 'Full set Core Client Indicator'!$A$3:$AB$3, 0))), \"\")","v":""},{"$f":"IF(E55<>\"\", IF(INDEX('Full set Core Client Indicator'!$A$3:$AB$351, MATCH(Selection_Hide2!$A55, 'Full set Core Client Indicator'!$A$3:$A$351, 0), MATCH(Selection_Hide2!F$5, 'Full set Core Client Indicator'!$A$3:$AB$3, 0))=\"\", \"\",  INDEX('Full set Core Client Indicator'!$A$3:$AB$351, MATCH(Selection_Hide2!$A55, 'Full set Core Client Indicator'!$A$3:$A$351, 0), MATCH(Selection_Hide2!F$5, 'Full set Core Client Indicator'!$A$3:$AB$3, 0))), \"\")","v":""},{"$f":"IF(F55<>\"\", IF(INDEX('Full set Core Client Indicator'!$A$3:$AB$351, MATCH(Selection_Hide2!$A55, 'Full set Core Client Indicator'!$A$3:$A$351, 0), MATCH(Selection_Hide2!G$5, 'Full set Core Client Indicator'!$A$3:$AB$3, 0))=\"\", \"\",  INDEX('Full set Core Client Indicator'!$A$3:$AB$351, MATCH(Selection_Hide2!$A55, 'Full set Core Client Indicator'!$A$3:$A$351, 0), MATCH(Selection_Hide2!G$5, 'Full set Core Client Indicator'!$A$3:$AB$3, 0))), \"\")","v":""},{"$f":"IF(G55<>\"\", IF(INDEX('Full set Core Client Indicator'!$A$3:$AB$351, MATCH(Selection_Hide2!$A55, 'Full set Core Client Indicator'!$A$3:$A$351, 0), MATCH(Selection_Hide2!H$5, 'Full set Core Client Indicator'!$A$3:$AB$3, 0))=\"\", \"\",  INDEX('Full set Core Client Indicator'!$A$3:$AB$351, MATCH(Selection_Hide2!$A55, 'Full set Core Client Indicator'!$A$3:$A$351, 0), MATCH(Selection_Hide2!H$5, 'Full set Core Client Indicator'!$A$3:$AB$3, 0))), \"\")","v":""},{"$f":"IF(H55<>\"\", IF(INDEX('Full set Core Client Indicator'!$A$3:$AB$351, MATCH(Selection_Hide2!$A55, 'Full set Core Client Indicator'!$A$3:$A$351, 0), MATCH(Selection_Hide2!I$5, 'Full set Core Client Indicator'!$A$3:$AB$3, 0))=\"\", \"\",  INDEX('Full set Core Client Indicator'!$A$3:$AB$351, MATCH(Selection_Hide2!$A55, 'Full set Core Client Indicator'!$A$3:$A$351, 0), MATCH(Selection_Hide2!I$5, 'Full set Core Client Indicator'!$A$3:$AB$3, 0))), \"\")","v":""},{"$f":"IF(I55<>\"\", IF(INDEX('Full set Core Client Indicator'!$A$3:$AB$351, MATCH(Selection_Hide2!$A55, 'Full set Core Client Indicator'!$A$3:$A$351, 0), MATCH(Selection_Hide2!J$5, 'Full set Core Client Indicator'!$A$3:$AB$3, 0))=\"\", \"\",  INDEX('Full set Core Client Indicator'!$A$3:$AB$351, MATCH(Selection_Hide2!$A55, 'Full set Core Client Indicator'!$A$3:$A$351, 0), MATCH(Selection_Hide2!J$5, 'Full set Core Client Indicator'!$A$3:$AB$3, 0))), \"\")","v":""},{"$f":"IF(J55<>\"\", IF(INDEX('Full set Core Client Indicator'!$A$3:$AB$351, MATCH(Selection_Hide2!$A55, 'Full set Core Client Indicator'!$A$3:$A$351, 0), MATCH(Selection_Hide2!K$5, 'Full set Core Client Indicator'!$A$3:$AB$3, 0))=\"\", \"\",  INDEX('Full set Core Client Indicator'!$A$3:$AB$351, MATCH(Selection_Hide2!$A55, 'Full set Core Client Indicator'!$A$3:$A$351, 0), MATCH(Selection_Hide2!K$5, 'Full set Core Client Indicator'!$A$3:$AB$3, 0))), \"\")","v":""},{"$f":"IF(K55<>\"\", IF(INDEX('Full set Core Client Indicator'!$A$3:$AB$351, MATCH(Selection_Hide2!$A55, 'Full set Core Client Indicator'!$A$3:$A$351, 0), MATCH(Selection_Hide2!L$5, 'Full set Core Client Indicator'!$A$3:$AB$3, 0))=\"\", \"\",  INDEX('Full set Core Client Indicator'!$A$3:$AB$351, MATCH(Selection_Hide2!$A55, 'Full set Core Client Indicator'!$A$3:$A$351, 0), MATCH(Selection_Hide2!L$5, 'Full set Core Client Indicator'!$A$3:$AB$3, 0))), \"\")","v":""},{"$f":"IF(L55<>\"\", IF(INDEX('Full set Core Client Indicator'!$A$3:$AB$351, MATCH(Selection_Hide2!$A55, 'Full set Core Client Indicator'!$A$3:$A$351, 0), MATCH(Selection_Hide2!M$5, 'Full set Core Client Indicator'!$A$3:$AB$3, 0))=\"\", \"\",  INDEX('Full set Core Client Indicator'!$A$3:$AB$351, MATCH(Selection_Hide2!$A55, 'Full set Core Client Indicator'!$A$3:$A$351, 0), MATCH(Selection_Hide2!M$5, 'Full set Core Client Indicator'!$A$3:$AB$3, 0))), \"\")","v":""},{"$f":"IF(M55<>\"\", IF(INDEX('Full set Core Client Indicator'!$A$3:$AB$351, MATCH(Selection_Hide2!$A55, 'Full set Core Client Indicator'!$A$3:$A$351, 0), MATCH(Selection_Hide2!N$5, 'Full set Core Client Indicator'!$A$3:$AB$3, 0))=\"\", \"\",  INDEX('Full set Core Client Indicator'!$A$3:$AB$351, MATCH(Selection_Hide2!$A55, 'Full set Core Client Indicator'!$A$3:$A$351, 0), MATCH(Selection_Hide2!N$5, 'Full set Core Client Indicator'!$A$3:$AB$3, 0))), \"\")","v":""},{"$f":"IF(N55<>\"\", IF(INDEX('Full set Core Client Indicator'!$A$3:$AB$351, MATCH(Selection_Hide2!$A55, 'Full set Core Client Indicator'!$A$3:$A$351, 0), MATCH(Selection_Hide2!O$5, 'Full set Core Client Indicator'!$A$3:$AB$3, 0))=\"\", \"\",  INDEX('Full set Core Client Indicator'!$A$3:$AB$351, MATCH(Selection_Hide2!$A55, 'Full set Core Client Indicator'!$A$3:$A$351, 0), MATCH(Selection_Hide2!O$5, 'Full set Core Client Indicator'!$A$3:$AB$3, 0))), \"\")","v":""},{"$f":"IF(O55<>\"\", IF(INDEX('Full set Core Client Indicator'!$A$3:$AB$351, MATCH(Selection_Hide2!$A55, 'Full set Core Client Indicator'!$A$3:$A$351, 0), MATCH(Selection_Hide2!P$5, 'Full set Core Client Indicator'!$A$3:$AB$3, 0))=\"\", \"\",  INDEX('Full set Core Client Indicator'!$A$3:$AB$351, MATCH(Selection_Hide2!$A55, 'Full set Core Client Indicator'!$A$3:$A$351, 0), MATCH(Selection_Hide2!P$5, 'Full set Core Client Indicator'!$A$3:$AB$3, 0))), \"\")","v":""},{"$f":"IF(P55<>\"\", IF(INDEX('Full set Core Client Indicator'!$A$3:$AB$351, MATCH(Selection_Hide2!$A55, 'Full set Core Client Indicator'!$A$3:$A$351, 0), MATCH(Selection_Hide2!Q$5, 'Full set Core Client Indicator'!$A$3:$AB$3, 0))=\"\", \"\",  INDEX('Full set Core Client Indicator'!$A$3:$AB$351, MATCH(Selection_Hide2!$A55, 'Full set Core Client Indicator'!$A$3:$A$351, 0), MATCH(Selection_Hide2!Q$5, 'Full set Core Client Indicator'!$A$3:$AB$3, 0))), \"\")","v":""},{"$f":"IF(Q55<>\"\", IF(INDEX('Full set Core Client Indicator'!$A$3:$AB$351, MATCH(Selection_Hide2!$A55, 'Full set Core Client Indicator'!$A$3:$A$351, 0), MATCH(Selection_Hide2!R$5, 'Full set Core Client Indicator'!$A$3:$AB$3, 0))=\"\", \"\",  INDEX('Full set Core Client Indicator'!$A$3:$AB$351, MATCH(Selection_Hide2!$A55, 'Full set Core Client Indicator'!$A$3:$A$351, 0), MATCH(Selection_Hide2!R$5, 'Full set Core Client Indicator'!$A$3:$AB$3, 0))), \"\")","v":""},{"$f":"IF(R55<>\"\", IF(INDEX('Full set Core Client Indicator'!$A$3:$AB$351, MATCH(Selection_Hide2!$A55, 'Full set Core Client Indicator'!$A$3:$A$351, 0), MATCH(Selection_Hide2!S$5, 'Full set Core Client Indicator'!$A$3:$AB$3, 0))=\"\", \"\",  INDEX('Full set Core Client Indicator'!$A$3:$AB$351, MATCH(Selection_Hide2!$A55, 'Full set Core Client Indicator'!$A$3:$A$351, 0), MATCH(Selection_Hide2!S$5, 'Full set Core Client Indicator'!$A$3:$AB$3, 0))), \"\")","v":""},{"$f":"IF(S55<>\"\", IF(INDEX('Full set Core Client Indicator'!$A$3:$AB$351, MATCH(Selection_Hide2!$A55, 'Full set Core Client Indicator'!$A$3:$A$351, 0), MATCH(Selection_Hide2!T$5, 'Full set Core Client Indicator'!$A$3:$AB$3, 0))=\"\", \"\",  INDEX('Full set Core Client Indicator'!$A$3:$AB$351, MATCH(Selection_Hide2!$A55, 'Full set Core Client Indicator'!$A$3:$A$351, 0), MATCH(Selection_Hide2!T$5, 'Full set Core Client Indicator'!$A$3:$AB$3, 0))), \"\")","v":""},{"$f":"IF(T55<>\"\", IF(INDEX('Full set Core Client Indicator'!$A$3:$AB$351, MATCH(Selection_Hide2!$A55, 'Full set Core Client Indicator'!$A$3:$A$351, 0), MATCH(Selection_Hide2!U$5, 'Full set Core Client Indicator'!$A$3:$AB$3, 0))=\"\", \"\",  INDEX('Full set Core Client Indicator'!$A$3:$AB$351, MATCH(Selection_Hide2!$A55, 'Full set Core Client Indicator'!$A$3:$A$351, 0), MATCH(Selection_Hide2!U$5, 'Full set Core Client Indicator'!$A$3:$AB$3, 0))), \"\")","v":""},{"$f":"IF(U55<>\"\", IF(INDEX('Full set Core Client Indicator'!$A$3:$AB$351, MATCH(Selection_Hide2!$A55, 'Full set Core Client Indicator'!$A$3:$A$351, 0), MATCH(Selection_Hide2!V$5, 'Full set Core Client Indicator'!$A$3:$AB$3, 0))=\"\", \"\",  INDEX('Full set Core Client Indicator'!$A$3:$AB$351, MATCH(Selection_Hide2!$A55, 'Full set Core Client Indicator'!$A$3:$A$351, 0), MATCH(Selection_Hide2!V$5, 'Full set Core Client Indicator'!$A$3:$AB$3, 0))), \"\")","v":""},{"$f":"IF(V55<>\"\", IF(INDEX('Full set Core Client Indicator'!$A$3:$AB$351, MATCH(Selection_Hide2!$A55, 'Full set Core Client Indicator'!$A$3:$A$351, 0), MATCH(Selection_Hide2!W$5, 'Full set Core Client Indicator'!$A$3:$AB$3, 0))=\"\", \"\",  INDEX('Full set Core Client Indicator'!$A$3:$AB$351, MATCH(Selection_Hide2!$A55, 'Full set Core Client Indicator'!$A$3:$A$351, 0), MATCH(Selection_Hide2!W$5, 'Full set Core Client Indicator'!$A$3:$AB$3, 0))), \"\")","v":""},{"$f":"IF(W55<>\"\", IF(INDEX('Full set Core Client Indicator'!$A$3:$AB$351, MATCH(Selection_Hide2!$A55, 'Full set Core Client Indicator'!$A$3:$A$351, 0), MATCH(Selection_Hide2!X$5, 'Full set Core Client Indicator'!$A$3:$AB$3, 0))=\"\", \"\",  INDEX('Full set Core Client Indicator'!$A$3:$AB$351, MATCH(Selection_Hide2!$A55, 'Full set Core Client Indicator'!$A$3:$A$351, 0), MATCH(Selection_Hide2!X$5, 'Full set Core Client Indicator'!$A$3:$AB$3, 0))), \"\")","v":""},{"$f":"IF(X55<>\"\", IF(INDEX('Full set Core Client Indicator'!$A$3:$AB$351, MATCH(Selection_Hide2!$A55, 'Full set Core Client Indicator'!$A$3:$A$351, 0), MATCH(Selection_Hide2!Y$5, 'Full set Core Client Indicator'!$A$3:$AB$3, 0))=\"\", \"\",  INDEX('Full set Core Client Indicator'!$A$3:$AB$351, MATCH(Selection_Hide2!$A55, 'Full set Core Client Indicator'!$A$3:$A$351, 0), MATCH(Selection_Hide2!Y$5, 'Full set Core Client Indicator'!$A$3:$AB$3, 0))), \"\")","v":""},{"$f":"IF(Y55<>\"\", IF(INDEX('Full set Core Client Indicator'!$A$3:$AB$351, MATCH(Selection_Hide2!$A55, 'Full set Core Client Indicator'!$A$3:$A$351, 0), MATCH(Selection_Hide2!Z$5, 'Full set Core Client Indicator'!$A$3:$AB$3, 0))=\"\", \"\",  INDEX('Full set Core Client Indicator'!$A$3:$AB$351, MATCH(Selection_Hide2!$A55, 'Full set Core Client Indicator'!$A$3:$A$351, 0), MATCH(Selection_Hide2!Z$5, 'Full set Core Client Indicator'!$A$3:$AB$3, 0))), \"\")","v":""},{"$f":"IF(Z55<>\"\", IF(INDEX('Full set Core Client Indicator'!$A$3:$AB$351, MATCH(Selection_Hide2!$A55, 'Full set Core Client Indicator'!$A$3:$A$351, 0), MATCH(Selection_Hide2!AA$5, 'Full set Core Client Indicator'!$A$3:$AB$3, 0))=\"\", \"\",  INDEX('Full set Core Client Indicator'!$A$3:$AB$351, MATCH(Selection_Hide2!$A55, 'Full set Core Client Indicator'!$A$3:$A$351, 0), MATCH(Selection_Hide2!AA$5, 'Full set Core Client Indicator'!$A$3:$AB$3, 0))), \"\")","v":""},{"$f":"IF(AA55<>\"\", IF(INDEX('Full set Core Client Indicator'!$A$3:$AB$351, MATCH(Selection_Hide2!$A55, 'Full set Core Client Indicator'!$A$3:$A$351, 0), MATCH(Selection_Hide2!AB$5, 'Full set Core Client Indicator'!$A$3:$AB$3, 0))=\"\", \"\",  INDEX('Full set Core Client Indicator'!$A$3:$AB$351, MATCH(Selection_Hide2!$A55, 'Full set Core Client Indicator'!$A$3:$A$351, 0), MATCH(Selection_Hide2!AB$5, 'Full set Core Client Indicator'!$A$3:$AB$3, 0))), \"\")","v":""}]
[{"$f":"IF(AND(Selection_Hide1!C54<>0, Selection_Hide1!C54<>\"Grand Total\"), Selection_Hide1!C54, \"\")","v":""},{"$f":"IF(A56<>\"\", IF(INDEX('Full set Core Client Indicator'!$A$3:$AB$351, MATCH(Selection_Hide2!$A56, 'Full set Core Client Indicator'!$A$3:$A$351, 0), MATCH(Selection_Hide2!B$5, 'Full set Core Client Indicator'!$A$3:$AB$3, 0))=\"\", \"\",  INDEX('Full set Core Client Indicator'!$A$3:$AB$351, MATCH(Selection_Hide2!$A56, 'Full set Core Client Indicator'!$A$3:$A$351, 0), MATCH(Selection_Hide2!B$5, 'Full set Core Client Indicator'!$A$3:$AB$3, 0))), \"\")","v":""},{"$f":"IF(B56<>\"\", IF(INDEX('Full set Core Client Indicator'!$A$3:$AB$351, MATCH(Selection_Hide2!$A56, 'Full set Core Client Indicator'!$A$3:$A$351, 0), MATCH(Selection_Hide2!C$5, 'Full set Core Client Indicator'!$A$3:$AB$3, 0))=\"\", \"\",  INDEX('Full set Core Client Indicator'!$A$3:$AB$351, MATCH(Selection_Hide2!$A56, 'Full set Core Client Indicator'!$A$3:$A$351, 0), MATCH(Selection_Hide2!C$5, 'Full set Core Client Indicator'!$A$3:$AB$3, 0))), \"\")","v":""},{"$f":"IF(C56<>\"\", IF(INDEX('Full set Core Client Indicator'!$A$3:$AB$351, MATCH(Selection_Hide2!$A56, 'Full set Core Client Indicator'!$A$3:$A$351, 0), MATCH(Selection_Hide2!D$5, 'Full set Core Client Indicator'!$A$3:$AB$3, 0))=\"\", \"\",  INDEX('Full set Core Client Indicator'!$A$3:$AB$351, MATCH(Selection_Hide2!$A56, 'Full set Core Client Indicator'!$A$3:$A$351, 0), MATCH(Selection_Hide2!D$5, 'Full set Core Client Indicator'!$A$3:$AB$3, 0))), \"\")","v":""},{"$f":"IF(D56<>\"\", IF(INDEX('Full set Core Client Indicator'!$A$3:$AB$351, MATCH(Selection_Hide2!$A56, 'Full set Core Client Indicator'!$A$3:$A$351, 0), MATCH(Selection_Hide2!E$5, 'Full set Core Client Indicator'!$A$3:$AB$3, 0))=\"\", \"\",  INDEX('Full set Core Client Indicator'!$A$3:$AB$351, MATCH(Selection_Hide2!$A56, 'Full set Core Client Indicator'!$A$3:$A$351, 0), MATCH(Selection_Hide2!E$5, 'Full set Core Client Indicator'!$A$3:$AB$3, 0))), \"\")","v":""},{"$f":"IF(E56<>\"\", IF(INDEX('Full set Core Client Indicator'!$A$3:$AB$351, MATCH(Selection_Hide2!$A56, 'Full set Core Client Indicator'!$A$3:$A$351, 0), MATCH(Selection_Hide2!F$5, 'Full set Core Client Indicator'!$A$3:$AB$3, 0))=\"\", \"\",  INDEX('Full set Core Client Indicator'!$A$3:$AB$351, MATCH(Selection_Hide2!$A56, 'Full set Core Client Indicator'!$A$3:$A$351, 0), MATCH(Selection_Hide2!F$5, 'Full set Core Client Indicator'!$A$3:$AB$3, 0))), \"\")","v":""},{"$f":"IF(F56<>\"\", IF(INDEX('Full set Core Client Indicator'!$A$3:$AB$351, MATCH(Selection_Hide2!$A56, 'Full set Core Client Indicator'!$A$3:$A$351, 0), MATCH(Selection_Hide2!G$5, 'Full set Core Client Indicator'!$A$3:$AB$3, 0))=\"\", \"\",  INDEX('Full set Core Client Indicator'!$A$3:$AB$351, MATCH(Selection_Hide2!$A56, 'Full set Core Client Indicator'!$A$3:$A$351, 0), MATCH(Selection_Hide2!G$5, 'Full set Core Client Indicator'!$A$3:$AB$3, 0))), \"\")","v":""},{"$f":"IF(G56<>\"\", IF(INDEX('Full set Core Client Indicator'!$A$3:$AB$351, MATCH(Selection_Hide2!$A56, 'Full set Core Client Indicator'!$A$3:$A$351, 0), MATCH(Selection_Hide2!H$5, 'Full set Core Client Indicator'!$A$3:$AB$3, 0))=\"\", \"\",  INDEX('Full set Core Client Indicator'!$A$3:$AB$351, MATCH(Selection_Hide2!$A56, 'Full set Core Client Indicator'!$A$3:$A$351, 0), MATCH(Selection_Hide2!H$5, 'Full set Core Client Indicator'!$A$3:$AB$3, 0))), \"\")","v":""},{"$f":"IF(H56<>\"\", IF(INDEX('Full set Core Client Indicator'!$A$3:$AB$351, MATCH(Selection_Hide2!$A56, 'Full set Core Client Indicator'!$A$3:$A$351, 0), MATCH(Selection_Hide2!I$5, 'Full set Core Client Indicator'!$A$3:$AB$3, 0))=\"\", \"\",  INDEX('Full set Core Client Indicator'!$A$3:$AB$351, MATCH(Selection_Hide2!$A56, 'Full set Core Client Indicator'!$A$3:$A$351, 0), MATCH(Selection_Hide2!I$5, 'Full set Core Client Indicator'!$A$3:$AB$3, 0))), \"\")","v":""},{"$f":"IF(I56<>\"\", IF(INDEX('Full set Core Client Indicator'!$A$3:$AB$351, MATCH(Selection_Hide2!$A56, 'Full set Core Client Indicator'!$A$3:$A$351, 0), MATCH(Selection_Hide2!J$5, 'Full set Core Client Indicator'!$A$3:$AB$3, 0))=\"\", \"\",  INDEX('Full set Core Client Indicator'!$A$3:$AB$351, MATCH(Selection_Hide2!$A56, 'Full set Core Client Indicator'!$A$3:$A$351, 0), MATCH(Selection_Hide2!J$5, 'Full set Core Client Indicator'!$A$3:$AB$3, 0))), \"\")","v":""},{"$f":"IF(J56<>\"\", IF(INDEX('Full set Core Client Indicator'!$A$3:$AB$351, MATCH(Selection_Hide2!$A56, 'Full set Core Client Indicator'!$A$3:$A$351, 0), MATCH(Selection_Hide2!K$5, 'Full set Core Client Indicator'!$A$3:$AB$3, 0))=\"\", \"\",  INDEX('Full set Core Client Indicator'!$A$3:$AB$351, MATCH(Selection_Hide2!$A56, 'Full set Core Client Indicator'!$A$3:$A$351, 0), MATCH(Selection_Hide2!K$5, 'Full set Core Client Indicator'!$A$3:$AB$3, 0))), \"\")","v":""},{"$f":"IF(K56<>\"\", IF(INDEX('Full set Core Client Indicator'!$A$3:$AB$351, MATCH(Selection_Hide2!$A56, 'Full set Core Client Indicator'!$A$3:$A$351, 0), MATCH(Selection_Hide2!L$5, 'Full set Core Client Indicator'!$A$3:$AB$3, 0))=\"\", \"\",  INDEX('Full set Core Client Indicator'!$A$3:$AB$351, MATCH(Selection_Hide2!$A56, 'Full set Core Client Indicator'!$A$3:$A$351, 0), MATCH(Selection_Hide2!L$5, 'Full set Core Client Indicator'!$A$3:$AB$3, 0))), \"\")","v":""},{"$f":"IF(L56<>\"\", IF(INDEX('Full set Core Client Indicator'!$A$3:$AB$351, MATCH(Selection_Hide2!$A56, 'Full set Core Client Indicator'!$A$3:$A$351, 0), MATCH(Selection_Hide2!M$5, 'Full set Core Client Indicator'!$A$3:$AB$3, 0))=\"\", \"\",  INDEX('Full set Core Client Indicator'!$A$3:$AB$351, MATCH(Selection_Hide2!$A56, 'Full set Core Client Indicator'!$A$3:$A$351, 0), MATCH(Selection_Hide2!M$5, 'Full set Core Client Indicator'!$A$3:$AB$3, 0))), \"\")","v":""},{"$f":"IF(M56<>\"\", IF(INDEX('Full set Core Client Indicator'!$A$3:$AB$351, MATCH(Selection_Hide2!$A56, 'Full set Core Client Indicator'!$A$3:$A$351, 0), MATCH(Selection_Hide2!N$5, 'Full set Core Client Indicator'!$A$3:$AB$3, 0))=\"\", \"\",  INDEX('Full set Core Client Indicator'!$A$3:$AB$351, MATCH(Selection_Hide2!$A56, 'Full set Core Client Indicator'!$A$3:$A$351, 0), MATCH(Selection_Hide2!N$5, 'Full set Core Client Indicator'!$A$3:$AB$3, 0))), \"\")","v":""},{"$f":"IF(N56<>\"\", IF(INDEX('Full set Core Client Indicator'!$A$3:$AB$351, MATCH(Selection_Hide2!$A56, 'Full set Core Client Indicator'!$A$3:$A$351, 0), MATCH(Selection_Hide2!O$5, 'Full set Core Client Indicator'!$A$3:$AB$3, 0))=\"\", \"\",  INDEX('Full set Core Client Indicator'!$A$3:$AB$351, MATCH(Selection_Hide2!$A56, 'Full set Core Client Indicator'!$A$3:$A$351, 0), MATCH(Selection_Hide2!O$5, 'Full set Core Client Indicator'!$A$3:$AB$3, 0))), \"\")","v":""},{"$f":"IF(O56<>\"\", IF(INDEX('Full set Core Client Indicator'!$A$3:$AB$351, MATCH(Selection_Hide2!$A56, 'Full set Core Client Indicator'!$A$3:$A$351, 0), MATCH(Selection_Hide2!P$5, 'Full set Core Client Indicator'!$A$3:$AB$3, 0))=\"\", \"\",  INDEX('Full set Core Client Indicator'!$A$3:$AB$351, MATCH(Selection_Hide2!$A56, 'Full set Core Client Indicator'!$A$3:$A$351, 0), MATCH(Selection_Hide2!P$5, 'Full set Core Client Indicator'!$A$3:$AB$3, 0))), \"\")","v":""},{"$f":"IF(P56<>\"\", IF(INDEX('Full set Core Client Indicator'!$A$3:$AB$351, MATCH(Selection_Hide2!$A56, 'Full set Core Client Indicator'!$A$3:$A$351, 0), MATCH(Selection_Hide2!Q$5, 'Full set Core Client Indicator'!$A$3:$AB$3, 0))=\"\", \"\",  INDEX('Full set Core Client Indicator'!$A$3:$AB$351, MATCH(Selection_Hide2!$A56, 'Full set Core Client Indicator'!$A$3:$A$351, 0), MATCH(Selection_Hide2!Q$5, 'Full set Core Client Indicator'!$A$3:$AB$3, 0))), \"\")","v":""},{"$f":"IF(Q56<>\"\", IF(INDEX('Full set Core Client Indicator'!$A$3:$AB$351, MATCH(Selection_Hide2!$A56, 'Full set Core Client Indicator'!$A$3:$A$351, 0), MATCH(Selection_Hide2!R$5, 'Full set Core Client Indicator'!$A$3:$AB$3, 0))=\"\", \"\",  INDEX('Full set Core Client Indicator'!$A$3:$AB$351, MATCH(Selection_Hide2!$A56, 'Full set Core Client Indicator'!$A$3:$A$351, 0), MATCH(Selection_Hide2!R$5, 'Full set Core Client Indicator'!$A$3:$AB$3, 0))), \"\")","v":""},{"$f":"IF(R56<>\"\", IF(INDEX('Full set Core Client Indicator'!$A$3:$AB$351, MATCH(Selection_Hide2!$A56, 'Full set Core Client Indicator'!$A$3:$A$351, 0), MATCH(Selection_Hide2!S$5, 'Full set Core Client Indicator'!$A$3:$AB$3, 0))=\"\", \"\",  INDEX('Full set Core Client Indicator'!$A$3:$AB$351, MATCH(Selection_Hide2!$A56, 'Full set Core Client Indicator'!$A$3:$A$351, 0), MATCH(Selection_Hide2!S$5, 'Full set Core Client Indicator'!$A$3:$AB$3, 0))), \"\")","v":""},{"$f":"IF(S56<>\"\", IF(INDEX('Full set Core Client Indicator'!$A$3:$AB$351, MATCH(Selection_Hide2!$A56, 'Full set Core Client Indicator'!$A$3:$A$351, 0), MATCH(Selection_Hide2!T$5, 'Full set Core Client Indicator'!$A$3:$AB$3, 0))=\"\", \"\",  INDEX('Full set Core Client Indicator'!$A$3:$AB$351, MATCH(Selection_Hide2!$A56, 'Full set Core Client Indicator'!$A$3:$A$351, 0), MATCH(Selection_Hide2!T$5, 'Full set Core Client Indicator'!$A$3:$AB$3, 0))), \"\")","v":""},{"$f":"IF(T56<>\"\", IF(INDEX('Full set Core Client Indicator'!$A$3:$AB$351, MATCH(Selection_Hide2!$A56, 'Full set Core Client Indicator'!$A$3:$A$351, 0), MATCH(Selection_Hide2!U$5, 'Full set Core Client Indicator'!$A$3:$AB$3, 0))=\"\", \"\",  INDEX('Full set Core Client Indicator'!$A$3:$AB$351, MATCH(Selection_Hide2!$A56, 'Full set Core Client Indicator'!$A$3:$A$351, 0), MATCH(Selection_Hide2!U$5, 'Full set Core Client Indicator'!$A$3:$AB$3, 0))), \"\")","v":""},{"$f":"IF(U56<>\"\", IF(INDEX('Full set Core Client Indicator'!$A$3:$AB$351, MATCH(Selection_Hide2!$A56, 'Full set Core Client Indicator'!$A$3:$A$351, 0), MATCH(Selection_Hide2!V$5, 'Full set Core Client Indicator'!$A$3:$AB$3, 0))=\"\", \"\",  INDEX('Full set Core Client Indicator'!$A$3:$AB$351, MATCH(Selection_Hide2!$A56, 'Full set Core Client Indicator'!$A$3:$A$351, 0), MATCH(Selection_Hide2!V$5, 'Full set Core Client Indicator'!$A$3:$AB$3, 0))), \"\")","v":""},{"$f":"IF(V56<>\"\", IF(INDEX('Full set Core Client Indicator'!$A$3:$AB$351, MATCH(Selection_Hide2!$A56, 'Full set Core Client Indicator'!$A$3:$A$351, 0), MATCH(Selection_Hide2!W$5, 'Full set Core Client Indicator'!$A$3:$AB$3, 0))=\"\", \"\",  INDEX('Full set Core Client Indicator'!$A$3:$AB$351, MATCH(Selection_Hide2!$A56, 'Full set Core Client Indicator'!$A$3:$A$351, 0), MATCH(Selection_Hide2!W$5, 'Full set Core Client Indicator'!$A$3:$AB$3, 0))), \"\")","v":""},{"$f":"IF(W56<>\"\", IF(INDEX('Full set Core Client Indicator'!$A$3:$AB$351, MATCH(Selection_Hide2!$A56, 'Full set Core Client Indicator'!$A$3:$A$351, 0), MATCH(Selection_Hide2!X$5, 'Full set Core Client Indicator'!$A$3:$AB$3, 0))=\"\", \"\",  INDEX('Full set Core Client Indicator'!$A$3:$AB$351, MATCH(Selection_Hide2!$A56, 'Full set Core Client Indicator'!$A$3:$A$351, 0), MATCH(Selection_Hide2!X$5, 'Full set Core Client Indicator'!$A$3:$AB$3, 0))), \"\")","v":""},{"$f":"IF(X56<>\"\", IF(INDEX('Full set Core Client Indicator'!$A$3:$AB$351, MATCH(Selection_Hide2!$A56, 'Full set Core Client Indicator'!$A$3:$A$351, 0), MATCH(Selection_Hide2!Y$5, 'Full set Core Client Indicator'!$A$3:$AB$3, 0))=\"\", \"\",  INDEX('Full set Core Client Indicator'!$A$3:$AB$351, MATCH(Selection_Hide2!$A56, 'Full set Core Client Indicator'!$A$3:$A$351, 0), MATCH(Selection_Hide2!Y$5, 'Full set Core Client Indicator'!$A$3:$AB$3, 0))), \"\")","v":""},{"$f":"IF(Y56<>\"\", IF(INDEX('Full set Core Client Indicator'!$A$3:$AB$351, MATCH(Selection_Hide2!$A56, 'Full set Core Client Indicator'!$A$3:$A$351, 0), MATCH(Selection_Hide2!Z$5, 'Full set Core Client Indicator'!$A$3:$AB$3, 0))=\"\", \"\",  INDEX('Full set Core Client Indicator'!$A$3:$AB$351, MATCH(Selection_Hide2!$A56, 'Full set Core Client Indicator'!$A$3:$A$351, 0), MATCH(Selection_Hide2!Z$5, 'Full set Core Client Indicator'!$A$3:$AB$3, 0))), \"\")","v":""},{"$f":"IF(Z56<>\"\", IF(INDEX('Full set Core Client Indicator'!$A$3:$AB$351, MATCH(Selection_Hide2!$A56, 'Full set Core Client Indicator'!$A$3:$A$351, 0), MATCH(Selection_Hide2!AA$5, 'Full set Core Client Indicator'!$A$3:$AB$3, 0))=\"\", \"\",  INDEX('Full set Core Client Indicator'!$A$3:$AB$351, MATCH(Selection_Hide2!$A56, 'Full set Core Client Indicator'!$A$3:$A$351, 0), MATCH(Selection_Hide2!AA$5, 'Full set Core Client Indicator'!$A$3:$AB$3, 0))), \"\")","v":""},{"$f":"IF(AA56<>\"\", IF(INDEX('Full set Core Client Indicator'!$A$3:$AB$351, MATCH(Selection_Hide2!$A56, 'Full set Core Client Indicator'!$A$3:$A$351, 0), MATCH(Selection_Hide2!AB$5, 'Full set Core Client Indicator'!$A$3:$AB$3, 0))=\"\", \"\",  INDEX('Full set Core Client Indicator'!$A$3:$AB$351, MATCH(Selection_Hide2!$A56, 'Full set Core Client Indicator'!$A$3:$A$351, 0), MATCH(Selection_Hide2!AB$5, 'Full set Core Client Indicator'!$A$3:$AB$3, 0))), \"\")","v":""}]
[{"$f":"IF(AND(Selection_Hide1!C55<>0, Selection_Hide1!C55<>\"Grand Total\"), Selection_Hide1!C55, \"\")","v":""},{"$f":"IF(A57<>\"\", IF(INDEX('Full set Core Client Indicator'!$A$3:$AB$351, MATCH(Selection_Hide2!$A57, 'Full set Core Client Indicator'!$A$3:$A$351, 0), MATCH(Selection_Hide2!B$5, 'Full set Core Client Indicator'!$A$3:$AB$3, 0))=\"\", \"\",  INDEX('Full set Core Client Indicator'!$A$3:$AB$351, MATCH(Selection_Hide2!$A57, 'Full set Core Client Indicator'!$A$3:$A$351, 0), MATCH(Selection_Hide2!B$5, 'Full set Core Client Indicator'!$A$3:$AB$3, 0))), \"\")","v":""},{"$f":"IF(B57<>\"\", IF(INDEX('Full set Core Client Indicator'!$A$3:$AB$351, MATCH(Selection_Hide2!$A57, 'Full set Core Client Indicator'!$A$3:$A$351, 0), MATCH(Selection_Hide2!C$5, 'Full set Core Client Indicator'!$A$3:$AB$3, 0))=\"\", \"\",  INDEX('Full set Core Client Indicator'!$A$3:$AB$351, MATCH(Selection_Hide2!$A57, 'Full set Core Client Indicator'!$A$3:$A$351, 0), MATCH(Selection_Hide2!C$5, 'Full set Core Client Indicator'!$A$3:$AB$3, 0))), \"\")","v":""},{"$f":"IF(C57<>\"\", IF(INDEX('Full set Core Client Indicator'!$A$3:$AB$351, MATCH(Selection_Hide2!$A57, 'Full set Core Client Indicator'!$A$3:$A$351, 0), MATCH(Selection_Hide2!D$5, 'Full set Core Client Indicator'!$A$3:$AB$3, 0))=\"\", \"\",  INDEX('Full set Core Client Indicator'!$A$3:$AB$351, MATCH(Selection_Hide2!$A57, 'Full set Core Client Indicator'!$A$3:$A$351, 0), MATCH(Selection_Hide2!D$5, 'Full set Core Client Indicator'!$A$3:$AB$3, 0))), \"\")","v":""},{"$f":"IF(D57<>\"\", IF(INDEX('Full set Core Client Indicator'!$A$3:$AB$351, MATCH(Selection_Hide2!$A57, 'Full set Core Client Indicator'!$A$3:$A$351, 0), MATCH(Selection_Hide2!E$5, 'Full set Core Client Indicator'!$A$3:$AB$3, 0))=\"\", \"\",  INDEX('Full set Core Client Indicator'!$A$3:$AB$351, MATCH(Selection_Hide2!$A57, 'Full set Core Client Indicator'!$A$3:$A$351, 0), MATCH(Selection_Hide2!E$5, 'Full set Core Client Indicator'!$A$3:$AB$3, 0))), \"\")","v":""},{"$f":"IF(E57<>\"\", IF(INDEX('Full set Core Client Indicator'!$A$3:$AB$351, MATCH(Selection_Hide2!$A57, 'Full set Core Client Indicator'!$A$3:$A$351, 0), MATCH(Selection_Hide2!F$5, 'Full set Core Client Indicator'!$A$3:$AB$3, 0))=\"\", \"\",  INDEX('Full set Core Client Indicator'!$A$3:$AB$351, MATCH(Selection_Hide2!$A57, 'Full set Core Client Indicator'!$A$3:$A$351, 0), MATCH(Selection_Hide2!F$5, 'Full set Core Client Indicator'!$A$3:$AB$3, 0))), \"\")","v":""},{"$f":"IF(F57<>\"\", IF(INDEX('Full set Core Client Indicator'!$A$3:$AB$351, MATCH(Selection_Hide2!$A57, 'Full set Core Client Indicator'!$A$3:$A$351, 0), MATCH(Selection_Hide2!G$5, 'Full set Core Client Indicator'!$A$3:$AB$3, 0))=\"\", \"\",  INDEX('Full set Core Client Indicator'!$A$3:$AB$351, MATCH(Selection_Hide2!$A57, 'Full set Core Client Indicator'!$A$3:$A$351, 0), MATCH(Selection_Hide2!G$5, 'Full set Core Client Indicator'!$A$3:$AB$3, 0))), \"\")","v":""},{"$f":"IF(G57<>\"\", IF(INDEX('Full set Core Client Indicator'!$A$3:$AB$351, MATCH(Selection_Hide2!$A57, 'Full set Core Client Indicator'!$A$3:$A$351, 0), MATCH(Selection_Hide2!H$5, 'Full set Core Client Indicator'!$A$3:$AB$3, 0))=\"\", \"\",  INDEX('Full set Core Client Indicator'!$A$3:$AB$351, MATCH(Selection_Hide2!$A57, 'Full set Core Client Indicator'!$A$3:$A$351, 0), MATCH(Selection_Hide2!H$5, 'Full set Core Client Indicator'!$A$3:$AB$3, 0))), \"\")","v":""},{"$f":"IF(H57<>\"\", IF(INDEX('Full set Core Client Indicator'!$A$3:$AB$351, MATCH(Selection_Hide2!$A57, 'Full set Core Client Indicator'!$A$3:$A$351, 0), MATCH(Selection_Hide2!I$5, 'Full set Core Client Indicator'!$A$3:$AB$3, 0))=\"\", \"\",  INDEX('Full set Core Client Indicator'!$A$3:$AB$351, MATCH(Selection_Hide2!$A57, 'Full set Core Client Indicator'!$A$3:$A$351, 0), MATCH(Selection_Hide2!I$5, 'Full set Core Client Indicator'!$A$3:$AB$3, 0))), \"\")","v":""},{"$f":"IF(I57<>\"\", IF(INDEX('Full set Core Client Indicator'!$A$3:$AB$351, MATCH(Selection_Hide2!$A57, 'Full set Core Client Indicator'!$A$3:$A$351, 0), MATCH(Selection_Hide2!J$5, 'Full set Core Client Indicator'!$A$3:$AB$3, 0))=\"\", \"\",  INDEX('Full set Core Client Indicator'!$A$3:$AB$351, MATCH(Selection_Hide2!$A57, 'Full set Core Client Indicator'!$A$3:$A$351, 0), MATCH(Selection_Hide2!J$5, 'Full set Core Client Indicator'!$A$3:$AB$3, 0))), \"\")","v":""},{"$f":"IF(J57<>\"\", IF(INDEX('Full set Core Client Indicator'!$A$3:$AB$351, MATCH(Selection_Hide2!$A57, 'Full set Core Client Indicator'!$A$3:$A$351, 0), MATCH(Selection_Hide2!K$5, 'Full set Core Client Indicator'!$A$3:$AB$3, 0))=\"\", \"\",  INDEX('Full set Core Client Indicator'!$A$3:$AB$351, MATCH(Selection_Hide2!$A57, 'Full set Core Client Indicator'!$A$3:$A$351, 0), MATCH(Selection_Hide2!K$5, 'Full set Core Client Indicator'!$A$3:$AB$3, 0))), \"\")","v":""},{"$f":"IF(K57<>\"\", IF(INDEX('Full set Core Client Indicator'!$A$3:$AB$351, MATCH(Selection_Hide2!$A57, 'Full set Core Client Indicator'!$A$3:$A$351, 0), MATCH(Selection_Hide2!L$5, 'Full set Core Client Indicator'!$A$3:$AB$3, 0))=\"\", \"\",  INDEX('Full set Core Client Indicator'!$A$3:$AB$351, MATCH(Selection_Hide2!$A57, 'Full set Core Client Indicator'!$A$3:$A$351, 0), MATCH(Selection_Hide2!L$5, 'Full set Core Client Indicator'!$A$3:$AB$3, 0))), \"\")","v":""},{"$f":"IF(L57<>\"\", IF(INDEX('Full set Core Client Indicator'!$A$3:$AB$351, MATCH(Selection_Hide2!$A57, 'Full set Core Client Indicator'!$A$3:$A$351, 0), MATCH(Selection_Hide2!M$5, 'Full set Core Client Indicator'!$A$3:$AB$3, 0))=\"\", \"\",  INDEX('Full set Core Client Indicator'!$A$3:$AB$351, MATCH(Selection_Hide2!$A57, 'Full set Core Client Indicator'!$A$3:$A$351, 0), MATCH(Selection_Hide2!M$5, 'Full set Core Client Indicator'!$A$3:$AB$3, 0))), \"\")","v":""},{"$f":"IF(M57<>\"\", IF(INDEX('Full set Core Client Indicator'!$A$3:$AB$351, MATCH(Selection_Hide2!$A57, 'Full set Core Client Indicator'!$A$3:$A$351, 0), MATCH(Selection_Hide2!N$5, 'Full set Core Client Indicator'!$A$3:$AB$3, 0))=\"\", \"\",  INDEX('Full set Core Client Indicator'!$A$3:$AB$351, MATCH(Selection_Hide2!$A57, 'Full set Core Client Indicator'!$A$3:$A$351, 0), MATCH(Selection_Hide2!N$5, 'Full set Core Client Indicator'!$A$3:$AB$3, 0))), \"\")","v":""},{"$f":"IF(N57<>\"\", IF(INDEX('Full set Core Client Indicator'!$A$3:$AB$351, MATCH(Selection_Hide2!$A57, 'Full set Core Client Indicator'!$A$3:$A$351, 0), MATCH(Selection_Hide2!O$5, 'Full set Core Client Indicator'!$A$3:$AB$3, 0))=\"\", \"\",  INDEX('Full set Core Client Indicator'!$A$3:$AB$351, MATCH(Selection_Hide2!$A57, 'Full set Core Client Indicator'!$A$3:$A$351, 0), MATCH(Selection_Hide2!O$5, 'Full set Core Client Indicator'!$A$3:$AB$3, 0))), \"\")","v":""},{"$f":"IF(O57<>\"\", IF(INDEX('Full set Core Client Indicator'!$A$3:$AB$351, MATCH(Selection_Hide2!$A57, 'Full set Core Client Indicator'!$A$3:$A$351, 0), MATCH(Selection_Hide2!P$5, 'Full set Core Client Indicator'!$A$3:$AB$3, 0))=\"\", \"\",  INDEX('Full set Core Client Indicator'!$A$3:$AB$351, MATCH(Selection_Hide2!$A57, 'Full set Core Client Indicator'!$A$3:$A$351, 0), MATCH(Selection_Hide2!P$5, 'Full set Core Client Indicator'!$A$3:$AB$3, 0))), \"\")","v":""},{"$f":"IF(P57<>\"\", IF(INDEX('Full set Core Client Indicator'!$A$3:$AB$351, MATCH(Selection_Hide2!$A57, 'Full set Core Client Indicator'!$A$3:$A$351, 0), MATCH(Selection_Hide2!Q$5, 'Full set Core Client Indicator'!$A$3:$AB$3, 0))=\"\", \"\",  INDEX('Full set Core Client Indicator'!$A$3:$AB$351, MATCH(Selection_Hide2!$A57, 'Full set Core Client Indicator'!$A$3:$A$351, 0), MATCH(Selection_Hide2!Q$5, 'Full set Core Client Indicator'!$A$3:$AB$3, 0))), \"\")","v":""},{"$f":"IF(Q57<>\"\", IF(INDEX('Full set Core Client Indicator'!$A$3:$AB$351, MATCH(Selection_Hide2!$A57, 'Full set Core Client Indicator'!$A$3:$A$351, 0), MATCH(Selection_Hide2!R$5, 'Full set Core Client Indicator'!$A$3:$AB$3, 0))=\"\", \"\",  INDEX('Full set Core Client Indicator'!$A$3:$AB$351, MATCH(Selection_Hide2!$A57, 'Full set Core Client Indicator'!$A$3:$A$351, 0), MATCH(Selection_Hide2!R$5, 'Full set Core Client Indicator'!$A$3:$AB$3, 0))), \"\")","v":""},{"$f":"IF(R57<>\"\", IF(INDEX('Full set Core Client Indicator'!$A$3:$AB$351, MATCH(Selection_Hide2!$A57, 'Full set Core Client Indicator'!$A$3:$A$351, 0), MATCH(Selection_Hide2!S$5, 'Full set Core Client Indicator'!$A$3:$AB$3, 0))=\"\", \"\",  INDEX('Full set Core Client Indicator'!$A$3:$AB$351, MATCH(Selection_Hide2!$A57, 'Full set Core Client Indicator'!$A$3:$A$351, 0), MATCH(Selection_Hide2!S$5, 'Full set Core Client Indicator'!$A$3:$AB$3, 0))), \"\")","v":""},{"$f":"IF(S57<>\"\", IF(INDEX('Full set Core Client Indicator'!$A$3:$AB$351, MATCH(Selection_Hide2!$A57, 'Full set Core Client Indicator'!$A$3:$A$351, 0), MATCH(Selection_Hide2!T$5, 'Full set Core Client Indicator'!$A$3:$AB$3, 0))=\"\", \"\",  INDEX('Full set Core Client Indicator'!$A$3:$AB$351, MATCH(Selection_Hide2!$A57, 'Full set Core Client Indicator'!$A$3:$A$351, 0), MATCH(Selection_Hide2!T$5, 'Full set Core Client Indicator'!$A$3:$AB$3, 0))), \"\")","v":""},{"$f":"IF(T57<>\"\", IF(INDEX('Full set Core Client Indicator'!$A$3:$AB$351, MATCH(Selection_Hide2!$A57, 'Full set Core Client Indicator'!$A$3:$A$351, 0), MATCH(Selection_Hide2!U$5, 'Full set Core Client Indicator'!$A$3:$AB$3, 0))=\"\", \"\",  INDEX('Full set Core Client Indicator'!$A$3:$AB$351, MATCH(Selection_Hide2!$A57, 'Full set Core Client Indicator'!$A$3:$A$351, 0), MATCH(Selection_Hide2!U$5, 'Full set Core Client Indicator'!$A$3:$AB$3, 0))), \"\")","v":""},{"$f":"IF(U57<>\"\", IF(INDEX('Full set Core Client Indicator'!$A$3:$AB$351, MATCH(Selection_Hide2!$A57, 'Full set Core Client Indicator'!$A$3:$A$351, 0), MATCH(Selection_Hide2!V$5, 'Full set Core Client Indicator'!$A$3:$AB$3, 0))=\"\", \"\",  INDEX('Full set Core Client Indicator'!$A$3:$AB$351, MATCH(Selection_Hide2!$A57, 'Full set Core Client Indicator'!$A$3:$A$351, 0), MATCH(Selection_Hide2!V$5, 'Full set Core Client Indicator'!$A$3:$AB$3, 0))), \"\")","v":""},{"$f":"IF(V57<>\"\", IF(INDEX('Full set Core Client Indicator'!$A$3:$AB$351, MATCH(Selection_Hide2!$A57, 'Full set Core Client Indicator'!$A$3:$A$351, 0), MATCH(Selection_Hide2!W$5, 'Full set Core Client Indicator'!$A$3:$AB$3, 0))=\"\", \"\",  INDEX('Full set Core Client Indicator'!$A$3:$AB$351, MATCH(Selection_Hide2!$A57, 'Full set Core Client Indicator'!$A$3:$A$351, 0), MATCH(Selection_Hide2!W$5, 'Full set Core Client Indicator'!$A$3:$AB$3, 0))), \"\")","v":""},{"$f":"IF(W57<>\"\", IF(INDEX('Full set Core Client Indicator'!$A$3:$AB$351, MATCH(Selection_Hide2!$A57, 'Full set Core Client Indicator'!$A$3:$A$351, 0), MATCH(Selection_Hide2!X$5, 'Full set Core Client Indicator'!$A$3:$AB$3, 0))=\"\", \"\",  INDEX('Full set Core Client Indicator'!$A$3:$AB$351, MATCH(Selection_Hide2!$A57, 'Full set Core Client Indicator'!$A$3:$A$351, 0), MATCH(Selection_Hide2!X$5, 'Full set Core Client Indicator'!$A$3:$AB$3, 0))), \"\")","v":""},{"$f":"IF(X57<>\"\", IF(INDEX('Full set Core Client Indicator'!$A$3:$AB$351, MATCH(Selection_Hide2!$A57, 'Full set Core Client Indicator'!$A$3:$A$351, 0), MATCH(Selection_Hide2!Y$5, 'Full set Core Client Indicator'!$A$3:$AB$3, 0))=\"\", \"\",  INDEX('Full set Core Client Indicator'!$A$3:$AB$351, MATCH(Selection_Hide2!$A57, 'Full set Core Client Indicator'!$A$3:$A$351, 0), MATCH(Selection_Hide2!Y$5, 'Full set Core Client Indicator'!$A$3:$AB$3, 0))), \"\")","v":""},{"$f":"IF(Y57<>\"\", IF(INDEX('Full set Core Client Indicator'!$A$3:$AB$351, MATCH(Selection_Hide2!$A57, 'Full set Core Client Indicator'!$A$3:$A$351, 0), MATCH(Selection_Hide2!Z$5, 'Full set Core Client Indicator'!$A$3:$AB$3, 0))=\"\", \"\",  INDEX('Full set Core Client Indicator'!$A$3:$AB$351, MATCH(Selection_Hide2!$A57, 'Full set Core Client Indicator'!$A$3:$A$351, 0), MATCH(Selection_Hide2!Z$5, 'Full set Core Client Indicator'!$A$3:$AB$3, 0))), \"\")","v":""},{"$f":"IF(Z57<>\"\", IF(INDEX('Full set Core Client Indicator'!$A$3:$AB$351, MATCH(Selection_Hide2!$A57, 'Full set Core Client Indicator'!$A$3:$A$351, 0), MATCH(Selection_Hide2!AA$5, 'Full set Core Client Indicator'!$A$3:$AB$3, 0))=\"\", \"\",  INDEX('Full set Core Client Indicator'!$A$3:$AB$351, MATCH(Selection_Hide2!$A57, 'Full set Core Client Indicator'!$A$3:$A$351, 0), MATCH(Selection_Hide2!AA$5, 'Full set Core Client Indicator'!$A$3:$AB$3, 0))), \"\")","v":""},{"$f":"IF(AA57<>\"\", IF(INDEX('Full set Core Client Indicator'!$A$3:$AB$351, MATCH(Selection_Hide2!$A57, 'Full set Core Client Indicator'!$A$3:$A$351, 0), MATCH(Selection_Hide2!AB$5, 'Full set Core Client Indicator'!$A$3:$AB$3, 0))=\"\", \"\",  INDEX('Full set Core Client Indicator'!$A$3:$AB$351, MATCH(Selection_Hide2!$A57, 'Full set Core Client Indicator'!$A$3:$A$351, 0), MATCH(Selection_Hide2!AB$5, 'Full set Core Client Indicator'!$A$3:$AB$3, 0))), \"\")","v":""}]
[{"$f":"IF(AND(Selection_Hide1!C56<>0, Selection_Hide1!C56<>\"Grand Total\"), Selection_Hide1!C56, \"\")","v":""},{"$f":"IF(A58<>\"\", IF(INDEX('Full set Core Client Indicator'!$A$3:$AB$351, MATCH(Selection_Hide2!$A58, 'Full set Core Client Indicator'!$A$3:$A$351, 0), MATCH(Selection_Hide2!B$5, 'Full set Core Client Indicator'!$A$3:$AB$3, 0))=\"\", \"\",  INDEX('Full set Core Client Indicator'!$A$3:$AB$351, MATCH(Selection_Hide2!$A58, 'Full set Core Client Indicator'!$A$3:$A$351, 0), MATCH(Selection_Hide2!B$5, 'Full set Core Client Indicator'!$A$3:$AB$3, 0))), \"\")","v":""},{"$f":"IF(B58<>\"\", IF(INDEX('Full set Core Client Indicator'!$A$3:$AB$351, MATCH(Selection_Hide2!$A58, 'Full set Core Client Indicator'!$A$3:$A$351, 0), MATCH(Selection_Hide2!C$5, 'Full set Core Client Indicator'!$A$3:$AB$3, 0))=\"\", \"\",  INDEX('Full set Core Client Indicator'!$A$3:$AB$351, MATCH(Selection_Hide2!$A58, 'Full set Core Client Indicator'!$A$3:$A$351, 0), MATCH(Selection_Hide2!C$5, 'Full set Core Client Indicator'!$A$3:$AB$3, 0))), \"\")","v":""},{"$f":"IF(C58<>\"\", IF(INDEX('Full set Core Client Indicator'!$A$3:$AB$351, MATCH(Selection_Hide2!$A58, 'Full set Core Client Indicator'!$A$3:$A$351, 0), MATCH(Selection_Hide2!D$5, 'Full set Core Client Indicator'!$A$3:$AB$3, 0))=\"\", \"\",  INDEX('Full set Core Client Indicator'!$A$3:$AB$351, MATCH(Selection_Hide2!$A58, 'Full set Core Client Indicator'!$A$3:$A$351, 0), MATCH(Selection_Hide2!D$5, 'Full set Core Client Indicator'!$A$3:$AB$3, 0))), \"\")","v":""},{"$f":"IF(D58<>\"\", IF(INDEX('Full set Core Client Indicator'!$A$3:$AB$351, MATCH(Selection_Hide2!$A58, 'Full set Core Client Indicator'!$A$3:$A$351, 0), MATCH(Selection_Hide2!E$5, 'Full set Core Client Indicator'!$A$3:$AB$3, 0))=\"\", \"\",  INDEX('Full set Core Client Indicator'!$A$3:$AB$351, MATCH(Selection_Hide2!$A58, 'Full set Core Client Indicator'!$A$3:$A$351, 0), MATCH(Selection_Hide2!E$5, 'Full set Core Client Indicator'!$A$3:$AB$3, 0))), \"\")","v":""},{"$f":"IF(E58<>\"\", IF(INDEX('Full set Core Client Indicator'!$A$3:$AB$351, MATCH(Selection_Hide2!$A58, 'Full set Core Client Indicator'!$A$3:$A$351, 0), MATCH(Selection_Hide2!F$5, 'Full set Core Client Indicator'!$A$3:$AB$3, 0))=\"\", \"\",  INDEX('Full set Core Client Indicator'!$A$3:$AB$351, MATCH(Selection_Hide2!$A58, 'Full set Core Client Indicator'!$A$3:$A$351, 0), MATCH(Selection_Hide2!F$5, 'Full set Core Client Indicator'!$A$3:$AB$3, 0))), \"\")","v":""},{"$f":"IF(F58<>\"\", IF(INDEX('Full set Core Client Indicator'!$A$3:$AB$351, MATCH(Selection_Hide2!$A58, 'Full set Core Client Indicator'!$A$3:$A$351, 0), MATCH(Selection_Hide2!G$5, 'Full set Core Client Indicator'!$A$3:$AB$3, 0))=\"\", \"\",  INDEX('Full set Core Client Indicator'!$A$3:$AB$351, MATCH(Selection_Hide2!$A58, 'Full set Core Client Indicator'!$A$3:$A$351, 0), MATCH(Selection_Hide2!G$5, 'Full set Core Client Indicator'!$A$3:$AB$3, 0))), \"\")","v":""},{"$f":"IF(G58<>\"\", IF(INDEX('Full set Core Client Indicator'!$A$3:$AB$351, MATCH(Selection_Hide2!$A58, 'Full set Core Client Indicator'!$A$3:$A$351, 0), MATCH(Selection_Hide2!H$5, 'Full set Core Client Indicator'!$A$3:$AB$3, 0))=\"\", \"\",  INDEX('Full set Core Client Indicator'!$A$3:$AB$351, MATCH(Selection_Hide2!$A58, 'Full set Core Client Indicator'!$A$3:$A$351, 0), MATCH(Selection_Hide2!H$5, 'Full set Core Client Indicator'!$A$3:$AB$3, 0))), \"\")","v":""},{"$f":"IF(H58<>\"\", IF(INDEX('Full set Core Client Indicator'!$A$3:$AB$351, MATCH(Selection_Hide2!$A58, 'Full set Core Client Indicator'!$A$3:$A$351, 0), MATCH(Selection_Hide2!I$5, 'Full set Core Client Indicator'!$A$3:$AB$3, 0))=\"\", \"\",  INDEX('Full set Core Client Indicator'!$A$3:$AB$351, MATCH(Selection_Hide2!$A58, 'Full set Core Client Indicator'!$A$3:$A$351, 0), MATCH(Selection_Hide2!I$5, 'Full set Core Client Indicator'!$A$3:$AB$3, 0))), \"\")","v":""},{"$f":"IF(I58<>\"\", IF(INDEX('Full set Core Client Indicator'!$A$3:$AB$351, MATCH(Selection_Hide2!$A58, 'Full set Core Client Indicator'!$A$3:$A$351, 0), MATCH(Selection_Hide2!J$5, 'Full set Core Client Indicator'!$A$3:$AB$3, 0))=\"\", \"\",  INDEX('Full set Core Client Indicator'!$A$3:$AB$351, MATCH(Selection_Hide2!$A58, 'Full set Core Client Indicator'!$A$3:$A$351, 0), MATCH(Selection_Hide2!J$5, 'Full set Core Client Indicator'!$A$3:$AB$3, 0))), \"\")","v":""},{"$f":"IF(J58<>\"\", IF(INDEX('Full set Core Client Indicator'!$A$3:$AB$351, MATCH(Selection_Hide2!$A58, 'Full set Core Client Indicator'!$A$3:$A$351, 0), MATCH(Selection_Hide2!K$5, 'Full set Core Client Indicator'!$A$3:$AB$3, 0))=\"\", \"\",  INDEX('Full set Core Client Indicator'!$A$3:$AB$351, MATCH(Selection_Hide2!$A58, 'Full set Core Client Indicator'!$A$3:$A$351, 0), MATCH(Selection_Hide2!K$5, 'Full set Core Client Indicator'!$A$3:$AB$3, 0))), \"\")","v":""},{"$f":"IF(K58<>\"\", IF(INDEX('Full set Core Client Indicator'!$A$3:$AB$351, MATCH(Selection_Hide2!$A58, 'Full set Core Client Indicator'!$A$3:$A$351, 0), MATCH(Selection_Hide2!L$5, 'Full set Core Client Indicator'!$A$3:$AB$3, 0))=\"\", \"\",  INDEX('Full set Core Client Indicator'!$A$3:$AB$351, MATCH(Selection_Hide2!$A58, 'Full set Core Client Indicator'!$A$3:$A$351, 0), MATCH(Selection_Hide2!L$5, 'Full set Core Client Indicator'!$A$3:$AB$3, 0))), \"\")","v":""},{"$f":"IF(L58<>\"\", IF(INDEX('Full set Core Client Indicator'!$A$3:$AB$351, MATCH(Selection_Hide2!$A58, 'Full set Core Client Indicator'!$A$3:$A$351, 0), MATCH(Selection_Hide2!M$5, 'Full set Core Client Indicator'!$A$3:$AB$3, 0))=\"\", \"\",  INDEX('Full set Core Client Indicator'!$A$3:$AB$351, MATCH(Selection_Hide2!$A58, 'Full set Core Client Indicator'!$A$3:$A$351, 0), MATCH(Selection_Hide2!M$5, 'Full set Core Client Indicator'!$A$3:$AB$3, 0))), \"\")","v":""},{"$f":"IF(M58<>\"\", IF(INDEX('Full set Core Client Indicator'!$A$3:$AB$351, MATCH(Selection_Hide2!$A58, 'Full set Core Client Indicator'!$A$3:$A$351, 0), MATCH(Selection_Hide2!N$5, 'Full set Core Client Indicator'!$A$3:$AB$3, 0))=\"\", \"\",  INDEX('Full set Core Client Indicator'!$A$3:$AB$351, MATCH(Selection_Hide2!$A58, 'Full set Core Client Indicator'!$A$3:$A$351, 0), MATCH(Selection_Hide2!N$5, 'Full set Core Client Indicator'!$A$3:$AB$3, 0))), \"\")","v":""},{"$f":"IF(N58<>\"\", IF(INDEX('Full set Core Client Indicator'!$A$3:$AB$351, MATCH(Selection_Hide2!$A58, 'Full set Core Client Indicator'!$A$3:$A$351, 0), MATCH(Selection_Hide2!O$5, 'Full set Core Client Indicator'!$A$3:$AB$3, 0))=\"\", \"\",  INDEX('Full set Core Client Indicator'!$A$3:$AB$351, MATCH(Selection_Hide2!$A58, 'Full set Core Client Indicator'!$A$3:$A$351, 0), MATCH(Selection_Hide2!O$5, 'Full set Core Client Indicator'!$A$3:$AB$3, 0))), \"\")","v":""},{"$f":"IF(O58<>\"\", IF(INDEX('Full set Core Client Indicator'!$A$3:$AB$351, MATCH(Selection_Hide2!$A58, 'Full set Core Client Indicator'!$A$3:$A$351, 0), MATCH(Selection_Hide2!P$5, 'Full set Core Client Indicator'!$A$3:$AB$3, 0))=\"\", \"\",  INDEX('Full set Core Client Indicator'!$A$3:$AB$351, MATCH(Selection_Hide2!$A58, 'Full set Core Client Indicator'!$A$3:$A$351, 0), MATCH(Selection_Hide2!P$5, 'Full set Core Client Indicator'!$A$3:$AB$3, 0))), \"\")","v":""},{"$f":"IF(P58<>\"\", IF(INDEX('Full set Core Client Indicator'!$A$3:$AB$351, MATCH(Selection_Hide2!$A58, 'Full set Core Client Indicator'!$A$3:$A$351, 0), MATCH(Selection_Hide2!Q$5, 'Full set Core Client Indicator'!$A$3:$AB$3, 0))=\"\", \"\",  INDEX('Full set Core Client Indicator'!$A$3:$AB$351, MATCH(Selection_Hide2!$A58, 'Full set Core Client Indicator'!$A$3:$A$351, 0), MATCH(Selection_Hide2!Q$5, 'Full set Core Client Indicator'!$A$3:$AB$3, 0))), \"\")","v":""},{"$f":"IF(Q58<>\"\", IF(INDEX('Full set Core Client Indicator'!$A$3:$AB$351, MATCH(Selection_Hide2!$A58, 'Full set Core Client Indicator'!$A$3:$A$351, 0), MATCH(Selection_Hide2!R$5, 'Full set Core Client Indicator'!$A$3:$AB$3, 0))=\"\", \"\",  INDEX('Full set Core Client Indicator'!$A$3:$AB$351, MATCH(Selection_Hide2!$A58, 'Full set Core Client Indicator'!$A$3:$A$351, 0), MATCH(Selection_Hide2!R$5, 'Full set Core Client Indicator'!$A$3:$AB$3, 0))), \"\")","v":""},{"$f":"IF(R58<>\"\", IF(INDEX('Full set Core Client Indicator'!$A$3:$AB$351, MATCH(Selection_Hide2!$A58, 'Full set Core Client Indicator'!$A$3:$A$351, 0), MATCH(Selection_Hide2!S$5, 'Full set Core Client Indicator'!$A$3:$AB$3, 0))=\"\", \"\",  INDEX('Full set Core Client Indicator'!$A$3:$AB$351, MATCH(Selection_Hide2!$A58, 'Full set Core Client Indicator'!$A$3:$A$351, 0), MATCH(Selection_Hide2!S$5, 'Full set Core Client Indicator'!$A$3:$AB$3, 0))), \"\")","v":""},{"$f":"IF(S58<>\"\", IF(INDEX('Full set Core Client Indicator'!$A$3:$AB$351, MATCH(Selection_Hide2!$A58, 'Full set Core Client Indicator'!$A$3:$A$351, 0), MATCH(Selection_Hide2!T$5, 'Full set Core Client Indicator'!$A$3:$AB$3, 0))=\"\", \"\",  INDEX('Full set Core Client Indicator'!$A$3:$AB$351, MATCH(Selection_Hide2!$A58, 'Full set Core Client Indicator'!$A$3:$A$351, 0), MATCH(Selection_Hide2!T$5, 'Full set Core Client Indicator'!$A$3:$AB$3, 0))), \"\")","v":""},{"$f":"IF(T58<>\"\", IF(INDEX('Full set Core Client Indicator'!$A$3:$AB$351, MATCH(Selection_Hide2!$A58, 'Full set Core Client Indicator'!$A$3:$A$351, 0), MATCH(Selection_Hide2!U$5, 'Full set Core Client Indicator'!$A$3:$AB$3, 0))=\"\", \"\",  INDEX('Full set Core Client Indicator'!$A$3:$AB$351, MATCH(Selection_Hide2!$A58, 'Full set Core Client Indicator'!$A$3:$A$351, 0), MATCH(Selection_Hide2!U$5, 'Full set Core Client Indicator'!$A$3:$AB$3, 0))), \"\")","v":""},{"$f":"IF(U58<>\"\", IF(INDEX('Full set Core Client Indicator'!$A$3:$AB$351, MATCH(Selection_Hide2!$A58, 'Full set Core Client Indicator'!$A$3:$A$351, 0), MATCH(Selection_Hide2!V$5, 'Full set Core Client Indicator'!$A$3:$AB$3, 0))=\"\", \"\",  INDEX('Full set Core Client Indicator'!$A$3:$AB$351, MATCH(Selection_Hide2!$A58, 'Full set Core Client Indicator'!$A$3:$A$351, 0), MATCH(Selection_Hide2!V$5, 'Full set Core Client Indicator'!$A$3:$AB$3, 0))), \"\")","v":""},{"$f":"IF(V58<>\"\", IF(INDEX('Full set Core Client Indicator'!$A$3:$AB$351, MATCH(Selection_Hide2!$A58, 'Full set Core Client Indicator'!$A$3:$A$351, 0), MATCH(Selection_Hide2!W$5, 'Full set Core Client Indicator'!$A$3:$AB$3, 0))=\"\", \"\",  INDEX('Full set Core Client Indicator'!$A$3:$AB$351, MATCH(Selection_Hide2!$A58, 'Full set Core Client Indicator'!$A$3:$A$351, 0), MATCH(Selection_Hide2!W$5, 'Full set Core Client Indicator'!$A$3:$AB$3, 0))), \"\")","v":""},{"$f":"IF(W58<>\"\", IF(INDEX('Full set Core Client Indicator'!$A$3:$AB$351, MATCH(Selection_Hide2!$A58, 'Full set Core Client Indicator'!$A$3:$A$351, 0), MATCH(Selection_Hide2!X$5, 'Full set Core Client Indicator'!$A$3:$AB$3, 0))=\"\", \"\",  INDEX('Full set Core Client Indicator'!$A$3:$AB$351, MATCH(Selection_Hide2!$A58, 'Full set Core Client Indicator'!$A$3:$A$351, 0), MATCH(Selection_Hide2!X$5, 'Full set Core Client Indicator'!$A$3:$AB$3, 0))), \"\")","v":""},{"$f":"IF(X58<>\"\", IF(INDEX('Full set Core Client Indicator'!$A$3:$AB$351, MATCH(Selection_Hide2!$A58, 'Full set Core Client Indicator'!$A$3:$A$351, 0), MATCH(Selection_Hide2!Y$5, 'Full set Core Client Indicator'!$A$3:$AB$3, 0))=\"\", \"\",  INDEX('Full set Core Client Indicator'!$A$3:$AB$351, MATCH(Selection_Hide2!$A58, 'Full set Core Client Indicator'!$A$3:$A$351, 0), MATCH(Selection_Hide2!Y$5, 'Full set Core Client Indicator'!$A$3:$AB$3, 0))), \"\")","v":""},{"$f":"IF(Y58<>\"\", IF(INDEX('Full set Core Client Indicator'!$A$3:$AB$351, MATCH(Selection_Hide2!$A58, 'Full set Core Client Indicator'!$A$3:$A$351, 0), MATCH(Selection_Hide2!Z$5, 'Full set Core Client Indicator'!$A$3:$AB$3, 0))=\"\", \"\",  INDEX('Full set Core Client Indicator'!$A$3:$AB$351, MATCH(Selection_Hide2!$A58, 'Full set Core Client Indicator'!$A$3:$A$351, 0), MATCH(Selection_Hide2!Z$5, 'Full set Core Client Indicator'!$A$3:$AB$3, 0))), \"\")","v":""},{"$f":"IF(Z58<>\"\", IF(INDEX('Full set Core Client Indicator'!$A$3:$AB$351, MATCH(Selection_Hide2!$A58, 'Full set Core Client Indicator'!$A$3:$A$351, 0), MATCH(Selection_Hide2!AA$5, 'Full set Core Client Indicator'!$A$3:$AB$3, 0))=\"\", \"\",  INDEX('Full set Core Client Indicator'!$A$3:$AB$351, MATCH(Selection_Hide2!$A58, 'Full set Core Client Indicator'!$A$3:$A$351, 0), MATCH(Selection_Hide2!AA$5, 'Full set Core Client Indicator'!$A$3:$AB$3, 0))), \"\")","v":""},{"$f":"IF(AA58<>\"\", IF(INDEX('Full set Core Client Indicator'!$A$3:$AB$351, MATCH(Selection_Hide2!$A58, 'Full set Core Client Indicator'!$A$3:$A$351, 0), MATCH(Selection_Hide2!AB$5, 'Full set Core Client Indicator'!$A$3:$AB$3, 0))=\"\", \"\",  INDEX('Full set Core Client Indicator'!$A$3:$AB$351, MATCH(Selection_Hide2!$A58, 'Full set Core Client Indicator'!$A$3:$A$351, 0), MATCH(Selection_Hide2!AB$5, 'Full set Core Client Indicator'!$A$3:$AB$3, 0))), \"\")","v":""}]
[{"$f":"IF(AND(Selection_Hide1!C57<>0, Selection_Hide1!C57<>\"Grand Total\"), Selection_Hide1!C57, \"\")","v":""},{"$f":"IF(A59<>\"\", IF(INDEX('Full set Core Client Indicator'!$A$3:$AB$351, MATCH(Selection_Hide2!$A59, 'Full set Core Client Indicator'!$A$3:$A$351, 0), MATCH(Selection_Hide2!B$5, 'Full set Core Client Indicator'!$A$3:$AB$3, 0))=\"\", \"\",  INDEX('Full set Core Client Indicator'!$A$3:$AB$351, MATCH(Selection_Hide2!$A59, 'Full set Core Client Indicator'!$A$3:$A$351, 0), MATCH(Selection_Hide2!B$5, 'Full set Core Client Indicator'!$A$3:$AB$3, 0))), \"\")","v":""},{"$f":"IF(B59<>\"\", IF(INDEX('Full set Core Client Indicator'!$A$3:$AB$351, MATCH(Selection_Hide2!$A59, 'Full set Core Client Indicator'!$A$3:$A$351, 0), MATCH(Selection_Hide2!C$5, 'Full set Core Client Indicator'!$A$3:$AB$3, 0))=\"\", \"\",  INDEX('Full set Core Client Indicator'!$A$3:$AB$351, MATCH(Selection_Hide2!$A59, 'Full set Core Client Indicator'!$A$3:$A$351, 0), MATCH(Selection_Hide2!C$5, 'Full set Core Client Indicator'!$A$3:$AB$3, 0))), \"\")","v":""},{"$f":"IF(C59<>\"\", IF(INDEX('Full set Core Client Indicator'!$A$3:$AB$351, MATCH(Selection_Hide2!$A59, 'Full set Core Client Indicator'!$A$3:$A$351, 0), MATCH(Selection_Hide2!D$5, 'Full set Core Client Indicator'!$A$3:$AB$3, 0))=\"\", \"\",  INDEX('Full set Core Client Indicator'!$A$3:$AB$351, MATCH(Selection_Hide2!$A59, 'Full set Core Client Indicator'!$A$3:$A$351, 0), MATCH(Selection_Hide2!D$5, 'Full set Core Client Indicator'!$A$3:$AB$3, 0))), \"\")","v":""},{"$f":"IF(D59<>\"\", IF(INDEX('Full set Core Client Indicator'!$A$3:$AB$351, MATCH(Selection_Hide2!$A59, 'Full set Core Client Indicator'!$A$3:$A$351, 0), MATCH(Selection_Hide2!E$5, 'Full set Core Client Indicator'!$A$3:$AB$3, 0))=\"\", \"\",  INDEX('Full set Core Client Indicator'!$A$3:$AB$351, MATCH(Selection_Hide2!$A59, 'Full set Core Client Indicator'!$A$3:$A$351, 0), MATCH(Selection_Hide2!E$5, 'Full set Core Client Indicator'!$A$3:$AB$3, 0))), \"\")","v":""},{"$f":"IF(E59<>\"\", IF(INDEX('Full set Core Client Indicator'!$A$3:$AB$351, MATCH(Selection_Hide2!$A59, 'Full set Core Client Indicator'!$A$3:$A$351, 0), MATCH(Selection_Hide2!F$5, 'Full set Core Client Indicator'!$A$3:$AB$3, 0))=\"\", \"\",  INDEX('Full set Core Client Indicator'!$A$3:$AB$351, MATCH(Selection_Hide2!$A59, 'Full set Core Client Indicator'!$A$3:$A$351, 0), MATCH(Selection_Hide2!F$5, 'Full set Core Client Indicator'!$A$3:$AB$3, 0))), \"\")","v":""},{"$f":"IF(F59<>\"\", IF(INDEX('Full set Core Client Indicator'!$A$3:$AB$351, MATCH(Selection_Hide2!$A59, 'Full set Core Client Indicator'!$A$3:$A$351, 0), MATCH(Selection_Hide2!G$5, 'Full set Core Client Indicator'!$A$3:$AB$3, 0))=\"\", \"\",  INDEX('Full set Core Client Indicator'!$A$3:$AB$351, MATCH(Selection_Hide2!$A59, 'Full set Core Client Indicator'!$A$3:$A$351, 0), MATCH(Selection_Hide2!G$5, 'Full set Core Client Indicator'!$A$3:$AB$3, 0))), \"\")","v":""},{"$f":"IF(G59<>\"\", IF(INDEX('Full set Core Client Indicator'!$A$3:$AB$351, MATCH(Selection_Hide2!$A59, 'Full set Core Client Indicator'!$A$3:$A$351, 0), MATCH(Selection_Hide2!H$5, 'Full set Core Client Indicator'!$A$3:$AB$3, 0))=\"\", \"\",  INDEX('Full set Core Client Indicator'!$A$3:$AB$351, MATCH(Selection_Hide2!$A59, 'Full set Core Client Indicator'!$A$3:$A$351, 0), MATCH(Selection_Hide2!H$5, 'Full set Core Client Indicator'!$A$3:$AB$3, 0))), \"\")","v":""},{"$f":"IF(H59<>\"\", IF(INDEX('Full set Core Client Indicator'!$A$3:$AB$351, MATCH(Selection_Hide2!$A59, 'Full set Core Client Indicator'!$A$3:$A$351, 0), MATCH(Selection_Hide2!I$5, 'Full set Core Client Indicator'!$A$3:$AB$3, 0))=\"\", \"\",  INDEX('Full set Core Client Indicator'!$A$3:$AB$351, MATCH(Selection_Hide2!$A59, 'Full set Core Client Indicator'!$A$3:$A$351, 0), MATCH(Selection_Hide2!I$5, 'Full set Core Client Indicator'!$A$3:$AB$3, 0))), \"\")","v":""},{"$f":"IF(I59<>\"\", IF(INDEX('Full set Core Client Indicator'!$A$3:$AB$351, MATCH(Selection_Hide2!$A59, 'Full set Core Client Indicator'!$A$3:$A$351, 0), MATCH(Selection_Hide2!J$5, 'Full set Core Client Indicator'!$A$3:$AB$3, 0))=\"\", \"\",  INDEX('Full set Core Client Indicator'!$A$3:$AB$351, MATCH(Selection_Hide2!$A59, 'Full set Core Client Indicator'!$A$3:$A$351, 0), MATCH(Selection_Hide2!J$5, 'Full set Core Client Indicator'!$A$3:$AB$3, 0))), \"\")","v":""},{"$f":"IF(J59<>\"\", IF(INDEX('Full set Core Client Indicator'!$A$3:$AB$351, MATCH(Selection_Hide2!$A59, 'Full set Core Client Indicator'!$A$3:$A$351, 0), MATCH(Selection_Hide2!K$5, 'Full set Core Client Indicator'!$A$3:$AB$3, 0))=\"\", \"\",  INDEX('Full set Core Client Indicator'!$A$3:$AB$351, MATCH(Selection_Hide2!$A59, 'Full set Core Client Indicator'!$A$3:$A$351, 0), MATCH(Selection_Hide2!K$5, 'Full set Core Client Indicator'!$A$3:$AB$3, 0))), \"\")","v":""},{"$f":"IF(K59<>\"\", IF(INDEX('Full set Core Client Indicator'!$A$3:$AB$351, MATCH(Selection_Hide2!$A59, 'Full set Core Client Indicator'!$A$3:$A$351, 0), MATCH(Selection_Hide2!L$5, 'Full set Core Client Indicator'!$A$3:$AB$3, 0))=\"\", \"\",  INDEX('Full set Core Client Indicator'!$A$3:$AB$351, MATCH(Selection_Hide2!$A59, 'Full set Core Client Indicator'!$A$3:$A$351, 0), MATCH(Selection_Hide2!L$5, 'Full set Core Client Indicator'!$A$3:$AB$3, 0))), \"\")","v":""},{"$f":"IF(L59<>\"\", IF(INDEX('Full set Core Client Indicator'!$A$3:$AB$351, MATCH(Selection_Hide2!$A59, 'Full set Core Client Indicator'!$A$3:$A$351, 0), MATCH(Selection_Hide2!M$5, 'Full set Core Client Indicator'!$A$3:$AB$3, 0))=\"\", \"\",  INDEX('Full set Core Client Indicator'!$A$3:$AB$351, MATCH(Selection_Hide2!$A59, 'Full set Core Client Indicator'!$A$3:$A$351, 0), MATCH(Selection_Hide2!M$5, 'Full set Core Client Indicator'!$A$3:$AB$3, 0))), \"\")","v":""},{"$f":"IF(M59<>\"\", IF(INDEX('Full set Core Client Indicator'!$A$3:$AB$351, MATCH(Selection_Hide2!$A59, 'Full set Core Client Indicator'!$A$3:$A$351, 0), MATCH(Selection_Hide2!N$5, 'Full set Core Client Indicator'!$A$3:$AB$3, 0))=\"\", \"\",  INDEX('Full set Core Client Indicator'!$A$3:$AB$351, MATCH(Selection_Hide2!$A59, 'Full set Core Client Indicator'!$A$3:$A$351, 0), MATCH(Selection_Hide2!N$5, 'Full set Core Client Indicator'!$A$3:$AB$3, 0))), \"\")","v":""},{"$f":"IF(N59<>\"\", IF(INDEX('Full set Core Client Indicator'!$A$3:$AB$351, MATCH(Selection_Hide2!$A59, 'Full set Core Client Indicator'!$A$3:$A$351, 0), MATCH(Selection_Hide2!O$5, 'Full set Core Client Indicator'!$A$3:$AB$3, 0))=\"\", \"\",  INDEX('Full set Core Client Indicator'!$A$3:$AB$351, MATCH(Selection_Hide2!$A59, 'Full set Core Client Indicator'!$A$3:$A$351, 0), MATCH(Selection_Hide2!O$5, 'Full set Core Client Indicator'!$A$3:$AB$3, 0))), \"\")","v":""},{"$f":"IF(O59<>\"\", IF(INDEX('Full set Core Client Indicator'!$A$3:$AB$351, MATCH(Selection_Hide2!$A59, 'Full set Core Client Indicator'!$A$3:$A$351, 0), MATCH(Selection_Hide2!P$5, 'Full set Core Client Indicator'!$A$3:$AB$3, 0))=\"\", \"\",  INDEX('Full set Core Client Indicator'!$A$3:$AB$351, MATCH(Selection_Hide2!$A59, 'Full set Core Client Indicator'!$A$3:$A$351, 0), MATCH(Selection_Hide2!P$5, 'Full set Core Client Indicator'!$A$3:$AB$3, 0))), \"\")","v":""},{"$f":"IF(P59<>\"\", IF(INDEX('Full set Core Client Indicator'!$A$3:$AB$351, MATCH(Selection_Hide2!$A59, 'Full set Core Client Indicator'!$A$3:$A$351, 0), MATCH(Selection_Hide2!Q$5, 'Full set Core Client Indicator'!$A$3:$AB$3, 0))=\"\", \"\",  INDEX('Full set Core Client Indicator'!$A$3:$AB$351, MATCH(Selection_Hide2!$A59, 'Full set Core Client Indicator'!$A$3:$A$351, 0), MATCH(Selection_Hide2!Q$5, 'Full set Core Client Indicator'!$A$3:$AB$3, 0))), \"\")","v":""},{"$f":"IF(Q59<>\"\", IF(INDEX('Full set Core Client Indicator'!$A$3:$AB$351, MATCH(Selection_Hide2!$A59, 'Full set Core Client Indicator'!$A$3:$A$351, 0), MATCH(Selection_Hide2!R$5, 'Full set Core Client Indicator'!$A$3:$AB$3, 0))=\"\", \"\",  INDEX('Full set Core Client Indicator'!$A$3:$AB$351, MATCH(Selection_Hide2!$A59, 'Full set Core Client Indicator'!$A$3:$A$351, 0), MATCH(Selection_Hide2!R$5, 'Full set Core Client Indicator'!$A$3:$AB$3, 0))), \"\")","v":""},{"$f":"IF(R59<>\"\", IF(INDEX('Full set Core Client Indicator'!$A$3:$AB$351, MATCH(Selection_Hide2!$A59, 'Full set Core Client Indicator'!$A$3:$A$351, 0), MATCH(Selection_Hide2!S$5, 'Full set Core Client Indicator'!$A$3:$AB$3, 0))=\"\", \"\",  INDEX('Full set Core Client Indicator'!$A$3:$AB$351, MATCH(Selection_Hide2!$A59, 'Full set Core Client Indicator'!$A$3:$A$351, 0), MATCH(Selection_Hide2!S$5, 'Full set Core Client Indicator'!$A$3:$AB$3, 0))), \"\")","v":""},{"$f":"IF(S59<>\"\", IF(INDEX('Full set Core Client Indicator'!$A$3:$AB$351, MATCH(Selection_Hide2!$A59, 'Full set Core Client Indicator'!$A$3:$A$351, 0), MATCH(Selection_Hide2!T$5, 'Full set Core Client Indicator'!$A$3:$AB$3, 0))=\"\", \"\",  INDEX('Full set Core Client Indicator'!$A$3:$AB$351, MATCH(Selection_Hide2!$A59, 'Full set Core Client Indicator'!$A$3:$A$351, 0), MATCH(Selection_Hide2!T$5, 'Full set Core Client Indicator'!$A$3:$AB$3, 0))), \"\")","v":""},{"$f":"IF(T59<>\"\", IF(INDEX('Full set Core Client Indicator'!$A$3:$AB$351, MATCH(Selection_Hide2!$A59, 'Full set Core Client Indicator'!$A$3:$A$351, 0), MATCH(Selection_Hide2!U$5, 'Full set Core Client Indicator'!$A$3:$AB$3, 0))=\"\", \"\",  INDEX('Full set Core Client Indicator'!$A$3:$AB$351, MATCH(Selection_Hide2!$A59, 'Full set Core Client Indicator'!$A$3:$A$351, 0), MATCH(Selection_Hide2!U$5, 'Full set Core Client Indicator'!$A$3:$AB$3, 0))), \"\")","v":""},{"$f":"IF(U59<>\"\", IF(INDEX('Full set Core Client Indicator'!$A$3:$AB$351, MATCH(Selection_Hide2!$A59, 'Full set Core Client Indicator'!$A$3:$A$351, 0), MATCH(Selection_Hide2!V$5, 'Full set Core Client Indicator'!$A$3:$AB$3, 0))=\"\", \"\",  INDEX('Full set Core Client Indicator'!$A$3:$AB$351, MATCH(Selection_Hide2!$A59, 'Full set Core Client Indicator'!$A$3:$A$351, 0), MATCH(Selection_Hide2!V$5, 'Full set Core Client Indicator'!$A$3:$AB$3, 0))), \"\")","v":""},{"$f":"IF(V59<>\"\", IF(INDEX('Full set Core Client Indicator'!$A$3:$AB$351, MATCH(Selection_Hide2!$A59, 'Full set Core Client Indicator'!$A$3:$A$351, 0), MATCH(Selection_Hide2!W$5, 'Full set Core Client Indicator'!$A$3:$AB$3, 0))=\"\", \"\",  INDEX('Full set Core Client Indicator'!$A$3:$AB$351, MATCH(Selection_Hide2!$A59, 'Full set Core Client Indicator'!$A$3:$A$351, 0), MATCH(Selection_Hide2!W$5, 'Full set Core Client Indicator'!$A$3:$AB$3, 0))), \"\")","v":""},{"$f":"IF(W59<>\"\", IF(INDEX('Full set Core Client Indicator'!$A$3:$AB$351, MATCH(Selection_Hide2!$A59, 'Full set Core Client Indicator'!$A$3:$A$351, 0), MATCH(Selection_Hide2!X$5, 'Full set Core Client Indicator'!$A$3:$AB$3, 0))=\"\", \"\",  INDEX('Full set Core Client Indicator'!$A$3:$AB$351, MATCH(Selection_Hide2!$A59, 'Full set Core Client Indicator'!$A$3:$A$351, 0), MATCH(Selection_Hide2!X$5, 'Full set Core Client Indicator'!$A$3:$AB$3, 0))), \"\")","v":""},{"$f":"IF(X59<>\"\", IF(INDEX('Full set Core Client Indicator'!$A$3:$AB$351, MATCH(Selection_Hide2!$A59, 'Full set Core Client Indicator'!$A$3:$A$351, 0), MATCH(Selection_Hide2!Y$5, 'Full set Core Client Indicator'!$A$3:$AB$3, 0))=\"\", \"\",  INDEX('Full set Core Client Indicator'!$A$3:$AB$351, MATCH(Selection_Hide2!$A59, 'Full set Core Client Indicator'!$A$3:$A$351, 0), MATCH(Selection_Hide2!Y$5, 'Full set Core Client Indicator'!$A$3:$AB$3, 0))), \"\")","v":""},{"$f":"IF(Y59<>\"\", IF(INDEX('Full set Core Client Indicator'!$A$3:$AB$351, MATCH(Selection_Hide2!$A59, 'Full set Core Client Indicator'!$A$3:$A$351, 0), MATCH(Selection_Hide2!Z$5, 'Full set Core Client Indicator'!$A$3:$AB$3, 0))=\"\", \"\",  INDEX('Full set Core Client Indicator'!$A$3:$AB$351, MATCH(Selection_Hide2!$A59, 'Full set Core Client Indicator'!$A$3:$A$351, 0), MATCH(Selection_Hide2!Z$5, 'Full set Core Client Indicator'!$A$3:$AB$3, 0))), \"\")","v":""},{"$f":"IF(Z59<>\"\", IF(INDEX('Full set Core Client Indicator'!$A$3:$AB$351, MATCH(Selection_Hide2!$A59, 'Full set Core Client Indicator'!$A$3:$A$351, 0), MATCH(Selection_Hide2!AA$5, 'Full set Core Client Indicator'!$A$3:$AB$3, 0))=\"\", \"\",  INDEX('Full set Core Client Indicator'!$A$3:$AB$351, MATCH(Selection_Hide2!$A59, 'Full set Core Client Indicator'!$A$3:$A$351, 0), MATCH(Selection_Hide2!AA$5, 'Full set Core Client Indicator'!$A$3:$AB$3, 0))), \"\")","v":""},{"$f":"IF(AA59<>\"\", IF(INDEX('Full set Core Client Indicator'!$A$3:$AB$351, MATCH(Selection_Hide2!$A59, 'Full set Core Client Indicator'!$A$3:$A$351, 0), MATCH(Selection_Hide2!AB$5, 'Full set Core Client Indicator'!$A$3:$AB$3, 0))=\"\", \"\",  INDEX('Full set Core Client Indicator'!$A$3:$AB$351, MATCH(Selection_Hide2!$A59, 'Full set Core Client Indicator'!$A$3:$A$351, 0), MATCH(Selection_Hide2!AB$5, 'Full set Core Client Indicator'!$A$3:$AB$3, 0))), \"\")","v":""}]
[{"$f":"IF(AND(Selection_Hide1!C58<>0, Selection_Hide1!C58<>\"Grand Total\"), Selection_Hide1!C58, \"\")","v":""},{"$f":"IF(A60<>\"\", IF(INDEX('Full set Core Client Indicator'!$A$3:$AB$351, MATCH(Selection_Hide2!$A60, 'Full set Core Client Indicator'!$A$3:$A$351, 0), MATCH(Selection_Hide2!B$5, 'Full set Core Client Indicator'!$A$3:$AB$3, 0))=\"\", \"\",  INDEX('Full set Core Client Indicator'!$A$3:$AB$351, MATCH(Selection_Hide2!$A60, 'Full set Core Client Indicator'!$A$3:$A$351, 0), MATCH(Selection_Hide2!B$5, 'Full set Core Client Indicator'!$A$3:$AB$3, 0))), \"\")","v":""},{"$f":"IF(B60<>\"\", IF(INDEX('Full set Core Client Indicator'!$A$3:$AB$351, MATCH(Selection_Hide2!$A60, 'Full set Core Client Indicator'!$A$3:$A$351, 0), MATCH(Selection_Hide2!C$5, 'Full set Core Client Indicator'!$A$3:$AB$3, 0))=\"\", \"\",  INDEX('Full set Core Client Indicator'!$A$3:$AB$351, MATCH(Selection_Hide2!$A60, 'Full set Core Client Indicator'!$A$3:$A$351, 0), MATCH(Selection_Hide2!C$5, 'Full set Core Client Indicator'!$A$3:$AB$3, 0))), \"\")","v":""},{"$f":"IF(C60<>\"\", IF(INDEX('Full set Core Client Indicator'!$A$3:$AB$351, MATCH(Selection_Hide2!$A60, 'Full set Core Client Indicator'!$A$3:$A$351, 0), MATCH(Selection_Hide2!D$5, 'Full set Core Client Indicator'!$A$3:$AB$3, 0))=\"\", \"\",  INDEX('Full set Core Client Indicator'!$A$3:$AB$351, MATCH(Selection_Hide2!$A60, 'Full set Core Client Indicator'!$A$3:$A$351, 0), MATCH(Selection_Hide2!D$5, 'Full set Core Client Indicator'!$A$3:$AB$3, 0))), \"\")","v":""},{"$f":"IF(D60<>\"\", IF(INDEX('Full set Core Client Indicator'!$A$3:$AB$351, MATCH(Selection_Hide2!$A60, 'Full set Core Client Indicator'!$A$3:$A$351, 0), MATCH(Selection_Hide2!E$5, 'Full set Core Client Indicator'!$A$3:$AB$3, 0))=\"\", \"\",  INDEX('Full set Core Client Indicator'!$A$3:$AB$351, MATCH(Selection_Hide2!$A60, 'Full set Core Client Indicator'!$A$3:$A$351, 0), MATCH(Selection_Hide2!E$5, 'Full set Core Client Indicator'!$A$3:$AB$3, 0))), \"\")","v":""},{"$f":"IF(E60<>\"\", IF(INDEX('Full set Core Client Indicator'!$A$3:$AB$351, MATCH(Selection_Hide2!$A60, 'Full set Core Client Indicator'!$A$3:$A$351, 0), MATCH(Selection_Hide2!F$5, 'Full set Core Client Indicator'!$A$3:$AB$3, 0))=\"\", \"\",  INDEX('Full set Core Client Indicator'!$A$3:$AB$351, MATCH(Selection_Hide2!$A60, 'Full set Core Client Indicator'!$A$3:$A$351, 0), MATCH(Selection_Hide2!F$5, 'Full set Core Client Indicator'!$A$3:$AB$3, 0))), \"\")","v":""},{"$f":"IF(F60<>\"\", IF(INDEX('Full set Core Client Indicator'!$A$3:$AB$351, MATCH(Selection_Hide2!$A60, 'Full set Core Client Indicator'!$A$3:$A$351, 0), MATCH(Selection_Hide2!G$5, 'Full set Core Client Indicator'!$A$3:$AB$3, 0))=\"\", \"\",  INDEX('Full set Core Client Indicator'!$A$3:$AB$351, MATCH(Selection_Hide2!$A60, 'Full set Core Client Indicator'!$A$3:$A$351, 0), MATCH(Selection_Hide2!G$5, 'Full set Core Client Indicator'!$A$3:$AB$3, 0))), \"\")","v":""},{"$f":"IF(G60<>\"\", IF(INDEX('Full set Core Client Indicator'!$A$3:$AB$351, MATCH(Selection_Hide2!$A60, 'Full set Core Client Indicator'!$A$3:$A$351, 0), MATCH(Selection_Hide2!H$5, 'Full set Core Client Indicator'!$A$3:$AB$3, 0))=\"\", \"\",  INDEX('Full set Core Client Indicator'!$A$3:$AB$351, MATCH(Selection_Hide2!$A60, 'Full set Core Client Indicator'!$A$3:$A$351, 0), MATCH(Selection_Hide2!H$5, 'Full set Core Client Indicator'!$A$3:$AB$3, 0))), \"\")","v":""},{"$f":"IF(H60<>\"\", IF(INDEX('Full set Core Client Indicator'!$A$3:$AB$351, MATCH(Selection_Hide2!$A60, 'Full set Core Client Indicator'!$A$3:$A$351, 0), MATCH(Selection_Hide2!I$5, 'Full set Core Client Indicator'!$A$3:$AB$3, 0))=\"\", \"\",  INDEX('Full set Core Client Indicator'!$A$3:$AB$351, MATCH(Selection_Hide2!$A60, 'Full set Core Client Indicator'!$A$3:$A$351, 0), MATCH(Selection_Hide2!I$5, 'Full set Core Client Indicator'!$A$3:$AB$3, 0))), \"\")","v":""},{"$f":"IF(I60<>\"\", IF(INDEX('Full set Core Client Indicator'!$A$3:$AB$351, MATCH(Selection_Hide2!$A60, 'Full set Core Client Indicator'!$A$3:$A$351, 0), MATCH(Selection_Hide2!J$5, 'Full set Core Client Indicator'!$A$3:$AB$3, 0))=\"\", \"\",  INDEX('Full set Core Client Indicator'!$A$3:$AB$351, MATCH(Selection_Hide2!$A60, 'Full set Core Client Indicator'!$A$3:$A$351, 0), MATCH(Selection_Hide2!J$5, 'Full set Core Client Indicator'!$A$3:$AB$3, 0))), \"\")","v":""},{"$f":"IF(J60<>\"\", IF(INDEX('Full set Core Client Indicator'!$A$3:$AB$351, MATCH(Selection_Hide2!$A60, 'Full set Core Client Indicator'!$A$3:$A$351, 0), MATCH(Selection_Hide2!K$5, 'Full set Core Client Indicator'!$A$3:$AB$3, 0))=\"\", \"\",  INDEX('Full set Core Client Indicator'!$A$3:$AB$351, MATCH(Selection_Hide2!$A60, 'Full set Core Client Indicator'!$A$3:$A$351, 0), MATCH(Selection_Hide2!K$5, 'Full set Core Client Indicator'!$A$3:$AB$3, 0))), \"\")","v":""},{"$f":"IF(K60<>\"\", IF(INDEX('Full set Core Client Indicator'!$A$3:$AB$351, MATCH(Selection_Hide2!$A60, 'Full set Core Client Indicator'!$A$3:$A$351, 0), MATCH(Selection_Hide2!L$5, 'Full set Core Client Indicator'!$A$3:$AB$3, 0))=\"\", \"\",  INDEX('Full set Core Client Indicator'!$A$3:$AB$351, MATCH(Selection_Hide2!$A60, 'Full set Core Client Indicator'!$A$3:$A$351, 0), MATCH(Selection_Hide2!L$5, 'Full set Core Client Indicator'!$A$3:$AB$3, 0))), \"\")","v":""},{"$f":"IF(L60<>\"\", IF(INDEX('Full set Core Client Indicator'!$A$3:$AB$351, MATCH(Selection_Hide2!$A60, 'Full set Core Client Indicator'!$A$3:$A$351, 0), MATCH(Selection_Hide2!M$5, 'Full set Core Client Indicator'!$A$3:$AB$3, 0))=\"\", \"\",  INDEX('Full set Core Client Indicator'!$A$3:$AB$351, MATCH(Selection_Hide2!$A60, 'Full set Core Client Indicator'!$A$3:$A$351, 0), MATCH(Selection_Hide2!M$5, 'Full set Core Client Indicator'!$A$3:$AB$3, 0))), \"\")","v":""},{"$f":"IF(M60<>\"\", IF(INDEX('Full set Core Client Indicator'!$A$3:$AB$351, MATCH(Selection_Hide2!$A60, 'Full set Core Client Indicator'!$A$3:$A$351, 0), MATCH(Selection_Hide2!N$5, 'Full set Core Client Indicator'!$A$3:$AB$3, 0))=\"\", \"\",  INDEX('Full set Core Client Indicator'!$A$3:$AB$351, MATCH(Selection_Hide2!$A60, 'Full set Core Client Indicator'!$A$3:$A$351, 0), MATCH(Selection_Hide2!N$5, 'Full set Core Client Indicator'!$A$3:$AB$3, 0))), \"\")","v":""},{"$f":"IF(N60<>\"\", IF(INDEX('Full set Core Client Indicator'!$A$3:$AB$351, MATCH(Selection_Hide2!$A60, 'Full set Core Client Indicator'!$A$3:$A$351, 0), MATCH(Selection_Hide2!O$5, 'Full set Core Client Indicator'!$A$3:$AB$3, 0))=\"\", \"\",  INDEX('Full set Core Client Indicator'!$A$3:$AB$351, MATCH(Selection_Hide2!$A60, 'Full set Core Client Indicator'!$A$3:$A$351, 0), MATCH(Selection_Hide2!O$5, 'Full set Core Client Indicator'!$A$3:$AB$3, 0))), \"\")","v":""},{"$f":"IF(O60<>\"\", IF(INDEX('Full set Core Client Indicator'!$A$3:$AB$351, MATCH(Selection_Hide2!$A60, 'Full set Core Client Indicator'!$A$3:$A$351, 0), MATCH(Selection_Hide2!P$5, 'Full set Core Client Indicator'!$A$3:$AB$3, 0))=\"\", \"\",  INDEX('Full set Core Client Indicator'!$A$3:$AB$351, MATCH(Selection_Hide2!$A60, 'Full set Core Client Indicator'!$A$3:$A$351, 0), MATCH(Selection_Hide2!P$5, 'Full set Core Client Indicator'!$A$3:$AB$3, 0))), \"\")","v":""},{"$f":"IF(P60<>\"\", IF(INDEX('Full set Core Client Indicator'!$A$3:$AB$351, MATCH(Selection_Hide2!$A60, 'Full set Core Client Indicator'!$A$3:$A$351, 0), MATCH(Selection_Hide2!Q$5, 'Full set Core Client Indicator'!$A$3:$AB$3, 0))=\"\", \"\",  INDEX('Full set Core Client Indicator'!$A$3:$AB$351, MATCH(Selection_Hide2!$A60, 'Full set Core Client Indicator'!$A$3:$A$351, 0), MATCH(Selection_Hide2!Q$5, 'Full set Core Client Indicator'!$A$3:$AB$3, 0))), \"\")","v":""},{"$f":"IF(Q60<>\"\", IF(INDEX('Full set Core Client Indicator'!$A$3:$AB$351, MATCH(Selection_Hide2!$A60, 'Full set Core Client Indicator'!$A$3:$A$351, 0), MATCH(Selection_Hide2!R$5, 'Full set Core Client Indicator'!$A$3:$AB$3, 0))=\"\", \"\",  INDEX('Full set Core Client Indicator'!$A$3:$AB$351, MATCH(Selection_Hide2!$A60, 'Full set Core Client Indicator'!$A$3:$A$351, 0), MATCH(Selection_Hide2!R$5, 'Full set Core Client Indicator'!$A$3:$AB$3, 0))), \"\")","v":""},{"$f":"IF(R60<>\"\", IF(INDEX('Full set Core Client Indicator'!$A$3:$AB$351, MATCH(Selection_Hide2!$A60, 'Full set Core Client Indicator'!$A$3:$A$351, 0), MATCH(Selection_Hide2!S$5, 'Full set Core Client Indicator'!$A$3:$AB$3, 0))=\"\", \"\",  INDEX('Full set Core Client Indicator'!$A$3:$AB$351, MATCH(Selection_Hide2!$A60, 'Full set Core Client Indicator'!$A$3:$A$351, 0), MATCH(Selection_Hide2!S$5, 'Full set Core Client Indicator'!$A$3:$AB$3, 0))), \"\")","v":""},{"$f":"IF(S60<>\"\", IF(INDEX('Full set Core Client Indicator'!$A$3:$AB$351, MATCH(Selection_Hide2!$A60, 'Full set Core Client Indicator'!$A$3:$A$351, 0), MATCH(Selection_Hide2!T$5, 'Full set Core Client Indicator'!$A$3:$AB$3, 0))=\"\", \"\",  INDEX('Full set Core Client Indicator'!$A$3:$AB$351, MATCH(Selection_Hide2!$A60, 'Full set Core Client Indicator'!$A$3:$A$351, 0), MATCH(Selection_Hide2!T$5, 'Full set Core Client Indicator'!$A$3:$AB$3, 0))), \"\")","v":""},{"$f":"IF(T60<>\"\", IF(INDEX('Full set Core Client Indicator'!$A$3:$AB$351, MATCH(Selection_Hide2!$A60, 'Full set Core Client Indicator'!$A$3:$A$351, 0), MATCH(Selection_Hide2!U$5, 'Full set Core Client Indicator'!$A$3:$AB$3, 0))=\"\", \"\",  INDEX('Full set Core Client Indicator'!$A$3:$AB$351, MATCH(Selection_Hide2!$A60, 'Full set Core Client Indicator'!$A$3:$A$351, 0), MATCH(Selection_Hide2!U$5, 'Full set Core Client Indicator'!$A$3:$AB$3, 0))), \"\")","v":""},{"$f":"IF(U60<>\"\", IF(INDEX('Full set Core Client Indicator'!$A$3:$AB$351, MATCH(Selection_Hide2!$A60, 'Full set Core Client Indicator'!$A$3:$A$351, 0), MATCH(Selection_Hide2!V$5, 'Full set Core Client Indicator'!$A$3:$AB$3, 0))=\"\", \"\",  INDEX('Full set Core Client Indicator'!$A$3:$AB$351, MATCH(Selection_Hide2!$A60, 'Full set Core Client Indicator'!$A$3:$A$351, 0), MATCH(Selection_Hide2!V$5, 'Full set Core Client Indicator'!$A$3:$AB$3, 0))), \"\")","v":""},{"$f":"IF(V60<>\"\", IF(INDEX('Full set Core Client Indicator'!$A$3:$AB$351, MATCH(Selection_Hide2!$A60, 'Full set Core Client Indicator'!$A$3:$A$351, 0), MATCH(Selection_Hide2!W$5, 'Full set Core Client Indicator'!$A$3:$AB$3, 0))=\"\", \"\",  INDEX('Full set Core Client Indicator'!$A$3:$AB$351, MATCH(Selection_Hide2!$A60, 'Full set Core Client Indicator'!$A$3:$A$351, 0), MATCH(Selection_Hide2!W$5, 'Full set Core Client Indicator'!$A$3:$AB$3, 0))), \"\")","v":""},{"$f":"IF(W60<>\"\", IF(INDEX('Full set Core Client Indicator'!$A$3:$AB$351, MATCH(Selection_Hide2!$A60, 'Full set Core Client Indicator'!$A$3:$A$351, 0), MATCH(Selection_Hide2!X$5, 'Full set Core Client Indicator'!$A$3:$AB$3, 0))=\"\", \"\",  INDEX('Full set Core Client Indicator'!$A$3:$AB$351, MATCH(Selection_Hide2!$A60, 'Full set Core Client Indicator'!$A$3:$A$351, 0), MATCH(Selection_Hide2!X$5, 'Full set Core Client Indicator'!$A$3:$AB$3, 0))), \"\")","v":""},{"$f":"IF(X60<>\"\", IF(INDEX('Full set Core Client Indicator'!$A$3:$AB$351, MATCH(Selection_Hide2!$A60, 'Full set Core Client Indicator'!$A$3:$A$351, 0), MATCH(Selection_Hide2!Y$5, 'Full set Core Client Indicator'!$A$3:$AB$3, 0))=\"\", \"\",  INDEX('Full set Core Client Indicator'!$A$3:$AB$351, MATCH(Selection_Hide2!$A60, 'Full set Core Client Indicator'!$A$3:$A$351, 0), MATCH(Selection_Hide2!Y$5, 'Full set Core Client Indicator'!$A$3:$AB$3, 0))), \"\")","v":""},{"$f":"IF(Y60<>\"\", IF(INDEX('Full set Core Client Indicator'!$A$3:$AB$351, MATCH(Selection_Hide2!$A60, 'Full set Core Client Indicator'!$A$3:$A$351, 0), MATCH(Selection_Hide2!Z$5, 'Full set Core Client Indicator'!$A$3:$AB$3, 0))=\"\", \"\",  INDEX('Full set Core Client Indicator'!$A$3:$AB$351, MATCH(Selection_Hide2!$A60, 'Full set Core Client Indicator'!$A$3:$A$351, 0), MATCH(Selection_Hide2!Z$5, 'Full set Core Client Indicator'!$A$3:$AB$3, 0))), \"\")","v":""},{"$f":"IF(Z60<>\"\", IF(INDEX('Full set Core Client Indicator'!$A$3:$AB$351, MATCH(Selection_Hide2!$A60, 'Full set Core Client Indicator'!$A$3:$A$351, 0), MATCH(Selection_Hide2!AA$5, 'Full set Core Client Indicator'!$A$3:$AB$3, 0))=\"\", \"\",  INDEX('Full set Core Client Indicator'!$A$3:$AB$351, MATCH(Selection_Hide2!$A60, 'Full set Core Client Indicator'!$A$3:$A$351, 0), MATCH(Selection_Hide2!AA$5, 'Full set Core Client Indicator'!$A$3:$AB$3, 0))), \"\")","v":""},{"$f":"IF(AA60<>\"\", IF(INDEX('Full set Core Client Indicator'!$A$3:$AB$351, MATCH(Selection_Hide2!$A60, 'Full set Core Client Indicator'!$A$3:$A$351, 0), MATCH(Selection_Hide2!AB$5, 'Full set Core Client Indicator'!$A$3:$AB$3, 0))=\"\", \"\",  INDEX('Full set Core Client Indicator'!$A$3:$AB$351, MATCH(Selection_Hide2!$A60, 'Full set Core Client Indicator'!$A$3:$A$351, 0), MATCH(Selection_Hide2!AB$5, 'Full set Core Client Indicator'!$A$3:$AB$3, 0))), \"\")","v":""}]
[{"$f":"IF(AND(Selection_Hide1!C59<>0, Selection_Hide1!C59<>\"Grand Total\"), Selection_Hide1!C59, \"\")","v":""},{"$f":"IF(A61<>\"\", IF(INDEX('Full set Core Client Indicator'!$A$3:$AB$351, MATCH(Selection_Hide2!$A61, 'Full set Core Client Indicator'!$A$3:$A$351, 0), MATCH(Selection_Hide2!B$5, 'Full set Core Client Indicator'!$A$3:$AB$3, 0))=\"\", \"\",  INDEX('Full set Core Client Indicator'!$A$3:$AB$351, MATCH(Selection_Hide2!$A61, 'Full set Core Client Indicator'!$A$3:$A$351, 0), MATCH(Selection_Hide2!B$5, 'Full set Core Client Indicator'!$A$3:$AB$3, 0))), \"\")","v":""},{"$f":"IF(B61<>\"\", IF(INDEX('Full set Core Client Indicator'!$A$3:$AB$351, MATCH(Selection_Hide2!$A61, 'Full set Core Client Indicator'!$A$3:$A$351, 0), MATCH(Selection_Hide2!C$5, 'Full set Core Client Indicator'!$A$3:$AB$3, 0))=\"\", \"\",  INDEX('Full set Core Client Indicator'!$A$3:$AB$351, MATCH(Selection_Hide2!$A61, 'Full set Core Client Indicator'!$A$3:$A$351, 0), MATCH(Selection_Hide2!C$5, 'Full set Core Client Indicator'!$A$3:$AB$3, 0))), \"\")","v":""},{"$f":"IF(C61<>\"\", IF(INDEX('Full set Core Client Indicator'!$A$3:$AB$351, MATCH(Selection_Hide2!$A61, 'Full set Core Client Indicator'!$A$3:$A$351, 0), MATCH(Selection_Hide2!D$5, 'Full set Core Client Indicator'!$A$3:$AB$3, 0))=\"\", \"\",  INDEX('Full set Core Client Indicator'!$A$3:$AB$351, MATCH(Selection_Hide2!$A61, 'Full set Core Client Indicator'!$A$3:$A$351, 0), MATCH(Selection_Hide2!D$5, 'Full set Core Client Indicator'!$A$3:$AB$3, 0))), \"\")","v":""},{"$f":"IF(D61<>\"\", IF(INDEX('Full set Core Client Indicator'!$A$3:$AB$351, MATCH(Selection_Hide2!$A61, 'Full set Core Client Indicator'!$A$3:$A$351, 0), MATCH(Selection_Hide2!E$5, 'Full set Core Client Indicator'!$A$3:$AB$3, 0))=\"\", \"\",  INDEX('Full set Core Client Indicator'!$A$3:$AB$351, MATCH(Selection_Hide2!$A61, 'Full set Core Client Indicator'!$A$3:$A$351, 0), MATCH(Selection_Hide2!E$5, 'Full set Core Client Indicator'!$A$3:$AB$3, 0))), \"\")","v":""},{"$f":"IF(E61<>\"\", IF(INDEX('Full set Core Client Indicator'!$A$3:$AB$351, MATCH(Selection_Hide2!$A61, 'Full set Core Client Indicator'!$A$3:$A$351, 0), MATCH(Selection_Hide2!F$5, 'Full set Core Client Indicator'!$A$3:$AB$3, 0))=\"\", \"\",  INDEX('Full set Core Client Indicator'!$A$3:$AB$351, MATCH(Selection_Hide2!$A61, 'Full set Core Client Indicator'!$A$3:$A$351, 0), MATCH(Selection_Hide2!F$5, 'Full set Core Client Indicator'!$A$3:$AB$3, 0))), \"\")","v":""},{"$f":"IF(F61<>\"\", IF(INDEX('Full set Core Client Indicator'!$A$3:$AB$351, MATCH(Selection_Hide2!$A61, 'Full set Core Client Indicator'!$A$3:$A$351, 0), MATCH(Selection_Hide2!G$5, 'Full set Core Client Indicator'!$A$3:$AB$3, 0))=\"\", \"\",  INDEX('Full set Core Client Indicator'!$A$3:$AB$351, MATCH(Selection_Hide2!$A61, 'Full set Core Client Indicator'!$A$3:$A$351, 0), MATCH(Selection_Hide2!G$5, 'Full set Core Client Indicator'!$A$3:$AB$3, 0))), \"\")","v":""},{"$f":"IF(G61<>\"\", IF(INDEX('Full set Core Client Indicator'!$A$3:$AB$351, MATCH(Selection_Hide2!$A61, 'Full set Core Client Indicator'!$A$3:$A$351, 0), MATCH(Selection_Hide2!H$5, 'Full set Core Client Indicator'!$A$3:$AB$3, 0))=\"\", \"\",  INDEX('Full set Core Client Indicator'!$A$3:$AB$351, MATCH(Selection_Hide2!$A61, 'Full set Core Client Indicator'!$A$3:$A$351, 0), MATCH(Selection_Hide2!H$5, 'Full set Core Client Indicator'!$A$3:$AB$3, 0))), \"\")","v":""},{"$f":"IF(H61<>\"\", IF(INDEX('Full set Core Client Indicator'!$A$3:$AB$351, MATCH(Selection_Hide2!$A61, 'Full set Core Client Indicator'!$A$3:$A$351, 0), MATCH(Selection_Hide2!I$5, 'Full set Core Client Indicator'!$A$3:$AB$3, 0))=\"\", \"\",  INDEX('Full set Core Client Indicator'!$A$3:$AB$351, MATCH(Selection_Hide2!$A61, 'Full set Core Client Indicator'!$A$3:$A$351, 0), MATCH(Selection_Hide2!I$5, 'Full set Core Client Indicator'!$A$3:$AB$3, 0))), \"\")","v":""},{"$f":"IF(I61<>\"\", IF(INDEX('Full set Core Client Indicator'!$A$3:$AB$351, MATCH(Selection_Hide2!$A61, 'Full set Core Client Indicator'!$A$3:$A$351, 0), MATCH(Selection_Hide2!J$5, 'Full set Core Client Indicator'!$A$3:$AB$3, 0))=\"\", \"\",  INDEX('Full set Core Client Indicator'!$A$3:$AB$351, MATCH(Selection_Hide2!$A61, 'Full set Core Client Indicator'!$A$3:$A$351, 0), MATCH(Selection_Hide2!J$5, 'Full set Core Client Indicator'!$A$3:$AB$3, 0))), \"\")","v":""},{"$f":"IF(J61<>\"\", IF(INDEX('Full set Core Client Indicator'!$A$3:$AB$351, MATCH(Selection_Hide2!$A61, 'Full set Core Client Indicator'!$A$3:$A$351, 0), MATCH(Selection_Hide2!K$5, 'Full set Core Client Indicator'!$A$3:$AB$3, 0))=\"\", \"\",  INDEX('Full set Core Client Indicator'!$A$3:$AB$351, MATCH(Selection_Hide2!$A61, 'Full set Core Client Indicator'!$A$3:$A$351, 0), MATCH(Selection_Hide2!K$5, 'Full set Core Client Indicator'!$A$3:$AB$3, 0))), \"\")","v":""},{"$f":"IF(K61<>\"\", IF(INDEX('Full set Core Client Indicator'!$A$3:$AB$351, MATCH(Selection_Hide2!$A61, 'Full set Core Client Indicator'!$A$3:$A$351, 0), MATCH(Selection_Hide2!L$5, 'Full set Core Client Indicator'!$A$3:$AB$3, 0))=\"\", \"\",  INDEX('Full set Core Client Indicator'!$A$3:$AB$351, MATCH(Selection_Hide2!$A61, 'Full set Core Client Indicator'!$A$3:$A$351, 0), MATCH(Selection_Hide2!L$5, 'Full set Core Client Indicator'!$A$3:$AB$3, 0))), \"\")","v":""},{"$f":"IF(L61<>\"\", IF(INDEX('Full set Core Client Indicator'!$A$3:$AB$351, MATCH(Selection_Hide2!$A61, 'Full set Core Client Indicator'!$A$3:$A$351, 0), MATCH(Selection_Hide2!M$5, 'Full set Core Client Indicator'!$A$3:$AB$3, 0))=\"\", \"\",  INDEX('Full set Core Client Indicator'!$A$3:$AB$351, MATCH(Selection_Hide2!$A61, 'Full set Core Client Indicator'!$A$3:$A$351, 0), MATCH(Selection_Hide2!M$5, 'Full set Core Client Indicator'!$A$3:$AB$3, 0))), \"\")","v":""},{"$f":"IF(M61<>\"\", IF(INDEX('Full set Core Client Indicator'!$A$3:$AB$351, MATCH(Selection_Hide2!$A61, 'Full set Core Client Indicator'!$A$3:$A$351, 0), MATCH(Selection_Hide2!N$5, 'Full set Core Client Indicator'!$A$3:$AB$3, 0))=\"\", \"\",  INDEX('Full set Core Client Indicator'!$A$3:$AB$351, MATCH(Selection_Hide2!$A61, 'Full set Core Client Indicator'!$A$3:$A$351, 0), MATCH(Selection_Hide2!N$5, 'Full set Core Client Indicator'!$A$3:$AB$3, 0))), \"\")","v":""},{"$f":"IF(N61<>\"\", IF(INDEX('Full set Core Client Indicator'!$A$3:$AB$351, MATCH(Selection_Hide2!$A61, 'Full set Core Client Indicator'!$A$3:$A$351, 0), MATCH(Selection_Hide2!O$5, 'Full set Core Client Indicator'!$A$3:$AB$3, 0))=\"\", \"\",  INDEX('Full set Core Client Indicator'!$A$3:$AB$351, MATCH(Selection_Hide2!$A61, 'Full set Core Client Indicator'!$A$3:$A$351, 0), MATCH(Selection_Hide2!O$5, 'Full set Core Client Indicator'!$A$3:$AB$3, 0))), \"\")","v":""},{"$f":"IF(O61<>\"\", IF(INDEX('Full set Core Client Indicator'!$A$3:$AB$351, MATCH(Selection_Hide2!$A61, 'Full set Core Client Indicator'!$A$3:$A$351, 0), MATCH(Selection_Hide2!P$5, 'Full set Core Client Indicator'!$A$3:$AB$3, 0))=\"\", \"\",  INDEX('Full set Core Client Indicator'!$A$3:$AB$351, MATCH(Selection_Hide2!$A61, 'Full set Core Client Indicator'!$A$3:$A$351, 0), MATCH(Selection_Hide2!P$5, 'Full set Core Client Indicator'!$A$3:$AB$3, 0))), \"\")","v":""},{"$f":"IF(P61<>\"\", IF(INDEX('Full set Core Client Indicator'!$A$3:$AB$351, MATCH(Selection_Hide2!$A61, 'Full set Core Client Indicator'!$A$3:$A$351, 0), MATCH(Selection_Hide2!Q$5, 'Full set Core Client Indicator'!$A$3:$AB$3, 0))=\"\", \"\",  INDEX('Full set Core Client Indicator'!$A$3:$AB$351, MATCH(Selection_Hide2!$A61, 'Full set Core Client Indicator'!$A$3:$A$351, 0), MATCH(Selection_Hide2!Q$5, 'Full set Core Client Indicator'!$A$3:$AB$3, 0))), \"\")","v":""},{"$f":"IF(Q61<>\"\", IF(INDEX('Full set Core Client Indicator'!$A$3:$AB$351, MATCH(Selection_Hide2!$A61, 'Full set Core Client Indicator'!$A$3:$A$351, 0), MATCH(Selection_Hide2!R$5, 'Full set Core Client Indicator'!$A$3:$AB$3, 0))=\"\", \"\",  INDEX('Full set Core Client Indicator'!$A$3:$AB$351, MATCH(Selection_Hide2!$A61, 'Full set Core Client Indicator'!$A$3:$A$351, 0), MATCH(Selection_Hide2!R$5, 'Full set Core Client Indicator'!$A$3:$AB$3, 0))), \"\")","v":""},{"$f":"IF(R61<>\"\", IF(INDEX('Full set Core Client Indicator'!$A$3:$AB$351, MATCH(Selection_Hide2!$A61, 'Full set Core Client Indicator'!$A$3:$A$351, 0), MATCH(Selection_Hide2!S$5, 'Full set Core Client Indicator'!$A$3:$AB$3, 0))=\"\", \"\",  INDEX('Full set Core Client Indicator'!$A$3:$AB$351, MATCH(Selection_Hide2!$A61, 'Full set Core Client Indicator'!$A$3:$A$351, 0), MATCH(Selection_Hide2!S$5, 'Full set Core Client Indicator'!$A$3:$AB$3, 0))), \"\")","v":""},{"$f":"IF(S61<>\"\", IF(INDEX('Full set Core Client Indicator'!$A$3:$AB$351, MATCH(Selection_Hide2!$A61, 'Full set Core Client Indicator'!$A$3:$A$351, 0), MATCH(Selection_Hide2!T$5, 'Full set Core Client Indicator'!$A$3:$AB$3, 0))=\"\", \"\",  INDEX('Full set Core Client Indicator'!$A$3:$AB$351, MATCH(Selection_Hide2!$A61, 'Full set Core Client Indicator'!$A$3:$A$351, 0), MATCH(Selection_Hide2!T$5, 'Full set Core Client Indicator'!$A$3:$AB$3, 0))), \"\")","v":""},{"$f":"IF(T61<>\"\", IF(INDEX('Full set Core Client Indicator'!$A$3:$AB$351, MATCH(Selection_Hide2!$A61, 'Full set Core Client Indicator'!$A$3:$A$351, 0), MATCH(Selection_Hide2!U$5, 'Full set Core Client Indicator'!$A$3:$AB$3, 0))=\"\", \"\",  INDEX('Full set Core Client Indicator'!$A$3:$AB$351, MATCH(Selection_Hide2!$A61, 'Full set Core Client Indicator'!$A$3:$A$351, 0), MATCH(Selection_Hide2!U$5, 'Full set Core Client Indicator'!$A$3:$AB$3, 0))), \"\")","v":""},{"$f":"IF(U61<>\"\", IF(INDEX('Full set Core Client Indicator'!$A$3:$AB$351, MATCH(Selection_Hide2!$A61, 'Full set Core Client Indicator'!$A$3:$A$351, 0), MATCH(Selection_Hide2!V$5, 'Full set Core Client Indicator'!$A$3:$AB$3, 0))=\"\", \"\",  INDEX('Full set Core Client Indicator'!$A$3:$AB$351, MATCH(Selection_Hide2!$A61, 'Full set Core Client Indicator'!$A$3:$A$351, 0), MATCH(Selection_Hide2!V$5, 'Full set Core Client Indicator'!$A$3:$AB$3, 0))), \"\")","v":""},{"$f":"IF(V61<>\"\", IF(INDEX('Full set Core Client Indicator'!$A$3:$AB$351, MATCH(Selection_Hide2!$A61, 'Full set Core Client Indicator'!$A$3:$A$351, 0), MATCH(Selection_Hide2!W$5, 'Full set Core Client Indicator'!$A$3:$AB$3, 0))=\"\", \"\",  INDEX('Full set Core Client Indicator'!$A$3:$AB$351, MATCH(Selection_Hide2!$A61, 'Full set Core Client Indicator'!$A$3:$A$351, 0), MATCH(Selection_Hide2!W$5, 'Full set Core Client Indicator'!$A$3:$AB$3, 0))), \"\")","v":""},{"$f":"IF(W61<>\"\", IF(INDEX('Full set Core Client Indicator'!$A$3:$AB$351, MATCH(Selection_Hide2!$A61, 'Full set Core Client Indicator'!$A$3:$A$351, 0), MATCH(Selection_Hide2!X$5, 'Full set Core Client Indicator'!$A$3:$AB$3, 0))=\"\", \"\",  INDEX('Full set Core Client Indicator'!$A$3:$AB$351, MATCH(Selection_Hide2!$A61, 'Full set Core Client Indicator'!$A$3:$A$351, 0), MATCH(Selection_Hide2!X$5, 'Full set Core Client Indicator'!$A$3:$AB$3, 0))), \"\")","v":""},{"$f":"IF(X61<>\"\", IF(INDEX('Full set Core Client Indicator'!$A$3:$AB$351, MATCH(Selection_Hide2!$A61, 'Full set Core Client Indicator'!$A$3:$A$351, 0), MATCH(Selection_Hide2!Y$5, 'Full set Core Client Indicator'!$A$3:$AB$3, 0))=\"\", \"\",  INDEX('Full set Core Client Indicator'!$A$3:$AB$351, MATCH(Selection_Hide2!$A61, 'Full set Core Client Indicator'!$A$3:$A$351, 0), MATCH(Selection_Hide2!Y$5, 'Full set Core Client Indicator'!$A$3:$AB$3, 0))), \"\")","v":""},{"$f":"IF(Y61<>\"\", IF(INDEX('Full set Core Client Indicator'!$A$3:$AB$351, MATCH(Selection_Hide2!$A61, 'Full set Core Client Indicator'!$A$3:$A$351, 0), MATCH(Selection_Hide2!Z$5, 'Full set Core Client Indicator'!$A$3:$AB$3, 0))=\"\", \"\",  INDEX('Full set Core Client Indicator'!$A$3:$AB$351, MATCH(Selection_Hide2!$A61, 'Full set Core Client Indicator'!$A$3:$A$351, 0), MATCH(Selection_Hide2!Z$5, 'Full set Core Client Indicator'!$A$3:$AB$3, 0))), \"\")","v":""},{"$f":"IF(Z61<>\"\", IF(INDEX('Full set Core Client Indicator'!$A$3:$AB$351, MATCH(Selection_Hide2!$A61, 'Full set Core Client Indicator'!$A$3:$A$351, 0), MATCH(Selection_Hide2!AA$5, 'Full set Core Client Indicator'!$A$3:$AB$3, 0))=\"\", \"\",  INDEX('Full set Core Client Indicator'!$A$3:$AB$351, MATCH(Selection_Hide2!$A61, 'Full set Core Client Indicator'!$A$3:$A$351, 0), MATCH(Selection_Hide2!AA$5, 'Full set Core Client Indicator'!$A$3:$AB$3, 0))), \"\")","v":""},{"$f":"IF(AA61<>\"\", IF(INDEX('Full set Core Client Indicator'!$A$3:$AB$351, MATCH(Selection_Hide2!$A61, 'Full set Core Client Indicator'!$A$3:$A$351, 0), MATCH(Selection_Hide2!AB$5, 'Full set Core Client Indicator'!$A$3:$AB$3, 0))=\"\", \"\",  INDEX('Full set Core Client Indicator'!$A$3:$AB$351, MATCH(Selection_Hide2!$A61, 'Full set Core Client Indicator'!$A$3:$A$351, 0), MATCH(Selection_Hide2!AB$5, 'Full set Core Client Indicator'!$A$3:$AB$3, 0))), \"\")","v":""}]
[{"$f":"IF(AND(Selection_Hide1!C60<>0, Selection_Hide1!C60<>\"Grand Total\"), Selection_Hide1!C60, \"\")","v":""},{"$f":"IF(A62<>\"\", IF(INDEX('Full set Core Client Indicator'!$A$3:$AB$351, MATCH(Selection_Hide2!$A62, 'Full set Core Client Indicator'!$A$3:$A$351, 0), MATCH(Selection_Hide2!B$5, 'Full set Core Client Indicator'!$A$3:$AB$3, 0))=\"\", \"\",  INDEX('Full set Core Client Indicator'!$A$3:$AB$351, MATCH(Selection_Hide2!$A62, 'Full set Core Client Indicator'!$A$3:$A$351, 0), MATCH(Selection_Hide2!B$5, 'Full set Core Client Indicator'!$A$3:$AB$3, 0))), \"\")","v":""},{"$f":"IF(B62<>\"\", IF(INDEX('Full set Core Client Indicator'!$A$3:$AB$351, MATCH(Selection_Hide2!$A62, 'Full set Core Client Indicator'!$A$3:$A$351, 0), MATCH(Selection_Hide2!C$5, 'Full set Core Client Indicator'!$A$3:$AB$3, 0))=\"\", \"\",  INDEX('Full set Core Client Indicator'!$A$3:$AB$351, MATCH(Selection_Hide2!$A62, 'Full set Core Client Indicator'!$A$3:$A$351, 0), MATCH(Selection_Hide2!C$5, 'Full set Core Client Indicator'!$A$3:$AB$3, 0))), \"\")","v":""},{"$f":"IF(C62<>\"\", IF(INDEX('Full set Core Client Indicator'!$A$3:$AB$351, MATCH(Selection_Hide2!$A62, 'Full set Core Client Indicator'!$A$3:$A$351, 0), MATCH(Selection_Hide2!D$5, 'Full set Core Client Indicator'!$A$3:$AB$3, 0))=\"\", \"\",  INDEX('Full set Core Client Indicator'!$A$3:$AB$351, MATCH(Selection_Hide2!$A62, 'Full set Core Client Indicator'!$A$3:$A$351, 0), MATCH(Selection_Hide2!D$5, 'Full set Core Client Indicator'!$A$3:$AB$3, 0))), \"\")","v":""},{"$f":"IF(D62<>\"\", IF(INDEX('Full set Core Client Indicator'!$A$3:$AB$351, MATCH(Selection_Hide2!$A62, 'Full set Core Client Indicator'!$A$3:$A$351, 0), MATCH(Selection_Hide2!E$5, 'Full set Core Client Indicator'!$A$3:$AB$3, 0))=\"\", \"\",  INDEX('Full set Core Client Indicator'!$A$3:$AB$351, MATCH(Selection_Hide2!$A62, 'Full set Core Client Indicator'!$A$3:$A$351, 0), MATCH(Selection_Hide2!E$5, 'Full set Core Client Indicator'!$A$3:$AB$3, 0))), \"\")","v":""},{"$f":"IF(E62<>\"\", IF(INDEX('Full set Core Client Indicator'!$A$3:$AB$351, MATCH(Selection_Hide2!$A62, 'Full set Core Client Indicator'!$A$3:$A$351, 0), MATCH(Selection_Hide2!F$5, 'Full set Core Client Indicator'!$A$3:$AB$3, 0))=\"\", \"\",  INDEX('Full set Core Client Indicator'!$A$3:$AB$351, MATCH(Selection_Hide2!$A62, 'Full set Core Client Indicator'!$A$3:$A$351, 0), MATCH(Selection_Hide2!F$5, 'Full set Core Client Indicator'!$A$3:$AB$3, 0))), \"\")","v":""},{"$f":"IF(F62<>\"\", IF(INDEX('Full set Core Client Indicator'!$A$3:$AB$351, MATCH(Selection_Hide2!$A62, 'Full set Core Client Indicator'!$A$3:$A$351, 0), MATCH(Selection_Hide2!G$5, 'Full set Core Client Indicator'!$A$3:$AB$3, 0))=\"\", \"\",  INDEX('Full set Core Client Indicator'!$A$3:$AB$351, MATCH(Selection_Hide2!$A62, 'Full set Core Client Indicator'!$A$3:$A$351, 0), MATCH(Selection_Hide2!G$5, 'Full set Core Client Indicator'!$A$3:$AB$3, 0))), \"\")","v":""},{"$f":"IF(G62<>\"\", IF(INDEX('Full set Core Client Indicator'!$A$3:$AB$351, MATCH(Selection_Hide2!$A62, 'Full set Core Client Indicator'!$A$3:$A$351, 0), MATCH(Selection_Hide2!H$5, 'Full set Core Client Indicator'!$A$3:$AB$3, 0))=\"\", \"\",  INDEX('Full set Core Client Indicator'!$A$3:$AB$351, MATCH(Selection_Hide2!$A62, 'Full set Core Client Indicator'!$A$3:$A$351, 0), MATCH(Selection_Hide2!H$5, 'Full set Core Client Indicator'!$A$3:$AB$3, 0))), \"\")","v":""},{"$f":"IF(H62<>\"\", IF(INDEX('Full set Core Client Indicator'!$A$3:$AB$351, MATCH(Selection_Hide2!$A62, 'Full set Core Client Indicator'!$A$3:$A$351, 0), MATCH(Selection_Hide2!I$5, 'Full set Core Client Indicator'!$A$3:$AB$3, 0))=\"\", \"\",  INDEX('Full set Core Client Indicator'!$A$3:$AB$351, MATCH(Selection_Hide2!$A62, 'Full set Core Client Indicator'!$A$3:$A$351, 0), MATCH(Selection_Hide2!I$5, 'Full set Core Client Indicator'!$A$3:$AB$3, 0))), \"\")","v":""},{"$f":"IF(I62<>\"\", IF(INDEX('Full set Core Client Indicator'!$A$3:$AB$351, MATCH(Selection_Hide2!$A62, 'Full set Core Client Indicator'!$A$3:$A$351, 0), MATCH(Selection_Hide2!J$5, 'Full set Core Client Indicator'!$A$3:$AB$3, 0))=\"\", \"\",  INDEX('Full set Core Client Indicator'!$A$3:$AB$351, MATCH(Selection_Hide2!$A62, 'Full set Core Client Indicator'!$A$3:$A$351, 0), MATCH(Selection_Hide2!J$5, 'Full set Core Client Indicator'!$A$3:$AB$3, 0))), \"\")","v":""},{"$f":"IF(J62<>\"\", IF(INDEX('Full set Core Client Indicator'!$A$3:$AB$351, MATCH(Selection_Hide2!$A62, 'Full set Core Client Indicator'!$A$3:$A$351, 0), MATCH(Selection_Hide2!K$5, 'Full set Core Client Indicator'!$A$3:$AB$3, 0))=\"\", \"\",  INDEX('Full set Core Client Indicator'!$A$3:$AB$351, MATCH(Selection_Hide2!$A62, 'Full set Core Client Indicator'!$A$3:$A$351, 0), MATCH(Selection_Hide2!K$5, 'Full set Core Client Indicator'!$A$3:$AB$3, 0))), \"\")","v":""},{"$f":"IF(K62<>\"\", IF(INDEX('Full set Core Client Indicator'!$A$3:$AB$351, MATCH(Selection_Hide2!$A62, 'Full set Core Client Indicator'!$A$3:$A$351, 0), MATCH(Selection_Hide2!L$5, 'Full set Core Client Indicator'!$A$3:$AB$3, 0))=\"\", \"\",  INDEX('Full set Core Client Indicator'!$A$3:$AB$351, MATCH(Selection_Hide2!$A62, 'Full set Core Client Indicator'!$A$3:$A$351, 0), MATCH(Selection_Hide2!L$5, 'Full set Core Client Indicator'!$A$3:$AB$3, 0))), \"\")","v":""},{"$f":"IF(L62<>\"\", IF(INDEX('Full set Core Client Indicator'!$A$3:$AB$351, MATCH(Selection_Hide2!$A62, 'Full set Core Client Indicator'!$A$3:$A$351, 0), MATCH(Selection_Hide2!M$5, 'Full set Core Client Indicator'!$A$3:$AB$3, 0))=\"\", \"\",  INDEX('Full set Core Client Indicator'!$A$3:$AB$351, MATCH(Selection_Hide2!$A62, 'Full set Core Client Indicator'!$A$3:$A$351, 0), MATCH(Selection_Hide2!M$5, 'Full set Core Client Indicator'!$A$3:$AB$3, 0))), \"\")","v":""},{"$f":"IF(M62<>\"\", IF(INDEX('Full set Core Client Indicator'!$A$3:$AB$351, MATCH(Selection_Hide2!$A62, 'Full set Core Client Indicator'!$A$3:$A$351, 0), MATCH(Selection_Hide2!N$5, 'Full set Core Client Indicator'!$A$3:$AB$3, 0))=\"\", \"\",  INDEX('Full set Core Client Indicator'!$A$3:$AB$351, MATCH(Selection_Hide2!$A62, 'Full set Core Client Indicator'!$A$3:$A$351, 0), MATCH(Selection_Hide2!N$5, 'Full set Core Client Indicator'!$A$3:$AB$3, 0))), \"\")","v":""},{"$f":"IF(N62<>\"\", IF(INDEX('Full set Core Client Indicator'!$A$3:$AB$351, MATCH(Selection_Hide2!$A62, 'Full set Core Client Indicator'!$A$3:$A$351, 0), MATCH(Selection_Hide2!O$5, 'Full set Core Client Indicator'!$A$3:$AB$3, 0))=\"\", \"\",  INDEX('Full set Core Client Indicator'!$A$3:$AB$351, MATCH(Selection_Hide2!$A62, 'Full set Core Client Indicator'!$A$3:$A$351, 0), MATCH(Selection_Hide2!O$5, 'Full set Core Client Indicator'!$A$3:$AB$3, 0))), \"\")","v":""},{"$f":"IF(O62<>\"\", IF(INDEX('Full set Core Client Indicator'!$A$3:$AB$351, MATCH(Selection_Hide2!$A62, 'Full set Core Client Indicator'!$A$3:$A$351, 0), MATCH(Selection_Hide2!P$5, 'Full set Core Client Indicator'!$A$3:$AB$3, 0))=\"\", \"\",  INDEX('Full set Core Client Indicator'!$A$3:$AB$351, MATCH(Selection_Hide2!$A62, 'Full set Core Client Indicator'!$A$3:$A$351, 0), MATCH(Selection_Hide2!P$5, 'Full set Core Client Indicator'!$A$3:$AB$3, 0))), \"\")","v":""},{"$f":"IF(P62<>\"\", IF(INDEX('Full set Core Client Indicator'!$A$3:$AB$351, MATCH(Selection_Hide2!$A62, 'Full set Core Client Indicator'!$A$3:$A$351, 0), MATCH(Selection_Hide2!Q$5, 'Full set Core Client Indicator'!$A$3:$AB$3, 0))=\"\", \"\",  INDEX('Full set Core Client Indicator'!$A$3:$AB$351, MATCH(Selection_Hide2!$A62, 'Full set Core Client Indicator'!$A$3:$A$351, 0), MATCH(Selection_Hide2!Q$5, 'Full set Core Client Indicator'!$A$3:$AB$3, 0))), \"\")","v":""},{"$f":"IF(Q62<>\"\", IF(INDEX('Full set Core Client Indicator'!$A$3:$AB$351, MATCH(Selection_Hide2!$A62, 'Full set Core Client Indicator'!$A$3:$A$351, 0), MATCH(Selection_Hide2!R$5, 'Full set Core Client Indicator'!$A$3:$AB$3, 0))=\"\", \"\",  INDEX('Full set Core Client Indicator'!$A$3:$AB$351, MATCH(Selection_Hide2!$A62, 'Full set Core Client Indicator'!$A$3:$A$351, 0), MATCH(Selection_Hide2!R$5, 'Full set Core Client Indicator'!$A$3:$AB$3, 0))), \"\")","v":""},{"$f":"IF(R62<>\"\", IF(INDEX('Full set Core Client Indicator'!$A$3:$AB$351, MATCH(Selection_Hide2!$A62, 'Full set Core Client Indicator'!$A$3:$A$351, 0), MATCH(Selection_Hide2!S$5, 'Full set Core Client Indicator'!$A$3:$AB$3, 0))=\"\", \"\",  INDEX('Full set Core Client Indicator'!$A$3:$AB$351, MATCH(Selection_Hide2!$A62, 'Full set Core Client Indicator'!$A$3:$A$351, 0), MATCH(Selection_Hide2!S$5, 'Full set Core Client Indicator'!$A$3:$AB$3, 0))), \"\")","v":""},{"$f":"IF(S62<>\"\", IF(INDEX('Full set Core Client Indicator'!$A$3:$AB$351, MATCH(Selection_Hide2!$A62, 'Full set Core Client Indicator'!$A$3:$A$351, 0), MATCH(Selection_Hide2!T$5, 'Full set Core Client Indicator'!$A$3:$AB$3, 0))=\"\", \"\",  INDEX('Full set Core Client Indicator'!$A$3:$AB$351, MATCH(Selection_Hide2!$A62, 'Full set Core Client Indicator'!$A$3:$A$351, 0), MATCH(Selection_Hide2!T$5, 'Full set Core Client Indicator'!$A$3:$AB$3, 0))), \"\")","v":""},{"$f":"IF(T62<>\"\", IF(INDEX('Full set Core Client Indicator'!$A$3:$AB$351, MATCH(Selection_Hide2!$A62, 'Full set Core Client Indicator'!$A$3:$A$351, 0), MATCH(Selection_Hide2!U$5, 'Full set Core Client Indicator'!$A$3:$AB$3, 0))=\"\", \"\",  INDEX('Full set Core Client Indicator'!$A$3:$AB$351, MATCH(Selection_Hide2!$A62, 'Full set Core Client Indicator'!$A$3:$A$351, 0), MATCH(Selection_Hide2!U$5, 'Full set Core Client Indicator'!$A$3:$AB$3, 0))), \"\")","v":""},{"$f":"IF(U62<>\"\", IF(INDEX('Full set Core Client Indicator'!$A$3:$AB$351, MATCH(Selection_Hide2!$A62, 'Full set Core Client Indicator'!$A$3:$A$351, 0), MATCH(Selection_Hide2!V$5, 'Full set Core Client Indicator'!$A$3:$AB$3, 0))=\"\", \"\",  INDEX('Full set Core Client Indicator'!$A$3:$AB$351, MATCH(Selection_Hide2!$A62, 'Full set Core Client Indicator'!$A$3:$A$351, 0), MATCH(Selection_Hide2!V$5, 'Full set Core Client Indicator'!$A$3:$AB$3, 0))), \"\")","v":""},{"$f":"IF(V62<>\"\", IF(INDEX('Full set Core Client Indicator'!$A$3:$AB$351, MATCH(Selection_Hide2!$A62, 'Full set Core Client Indicator'!$A$3:$A$351, 0), MATCH(Selection_Hide2!W$5, 'Full set Core Client Indicator'!$A$3:$AB$3, 0))=\"\", \"\",  INDEX('Full set Core Client Indicator'!$A$3:$AB$351, MATCH(Selection_Hide2!$A62, 'Full set Core Client Indicator'!$A$3:$A$351, 0), MATCH(Selection_Hide2!W$5, 'Full set Core Client Indicator'!$A$3:$AB$3, 0))), \"\")","v":""},{"$f":"IF(W62<>\"\", IF(INDEX('Full set Core Client Indicator'!$A$3:$AB$351, MATCH(Selection_Hide2!$A62, 'Full set Core Client Indicator'!$A$3:$A$351, 0), MATCH(Selection_Hide2!X$5, 'Full set Core Client Indicator'!$A$3:$AB$3, 0))=\"\", \"\",  INDEX('Full set Core Client Indicator'!$A$3:$AB$351, MATCH(Selection_Hide2!$A62, 'Full set Core Client Indicator'!$A$3:$A$351, 0), MATCH(Selection_Hide2!X$5, 'Full set Core Client Indicator'!$A$3:$AB$3, 0))), \"\")","v":""},{"$f":"IF(X62<>\"\", IF(INDEX('Full set Core Client Indicator'!$A$3:$AB$351, MATCH(Selection_Hide2!$A62, 'Full set Core Client Indicator'!$A$3:$A$351, 0), MATCH(Selection_Hide2!Y$5, 'Full set Core Client Indicator'!$A$3:$AB$3, 0))=\"\", \"\",  INDEX('Full set Core Client Indicator'!$A$3:$AB$351, MATCH(Selection_Hide2!$A62, 'Full set Core Client Indicator'!$A$3:$A$351, 0), MATCH(Selection_Hide2!Y$5, 'Full set Core Client Indicator'!$A$3:$AB$3, 0))), \"\")","v":""},{"$f":"IF(Y62<>\"\", IF(INDEX('Full set Core Client Indicator'!$A$3:$AB$351, MATCH(Selection_Hide2!$A62, 'Full set Core Client Indicator'!$A$3:$A$351, 0), MATCH(Selection_Hide2!Z$5, 'Full set Core Client Indicator'!$A$3:$AB$3, 0))=\"\", \"\",  INDEX('Full set Core Client Indicator'!$A$3:$AB$351, MATCH(Selection_Hide2!$A62, 'Full set Core Client Indicator'!$A$3:$A$351, 0), MATCH(Selection_Hide2!Z$5, 'Full set Core Client Indicator'!$A$3:$AB$3, 0))), \"\")","v":""},{"$f":"IF(Z62<>\"\", IF(INDEX('Full set Core Client Indicator'!$A$3:$AB$351, MATCH(Selection_Hide2!$A62, 'Full set Core Client Indicator'!$A$3:$A$351, 0), MATCH(Selection_Hide2!AA$5, 'Full set Core Client Indicator'!$A$3:$AB$3, 0))=\"\", \"\",  INDEX('Full set Core Client Indicator'!$A$3:$AB$351, MATCH(Selection_Hide2!$A62, 'Full set Core Client Indicator'!$A$3:$A$351, 0), MATCH(Selection_Hide2!AA$5, 'Full set Core Client Indicator'!$A$3:$AB$3, 0))), \"\")","v":""},{"$f":"IF(AA62<>\"\", IF(INDEX('Full set Core Client Indicator'!$A$3:$AB$351, MATCH(Selection_Hide2!$A62, 'Full set Core Client Indicator'!$A$3:$A$351, 0), MATCH(Selection_Hide2!AB$5, 'Full set Core Client Indicator'!$A$3:$AB$3, 0))=\"\", \"\",  INDEX('Full set Core Client Indicator'!$A$3:$AB$351, MATCH(Selection_Hide2!$A62, 'Full set Core Client Indicator'!$A$3:$A$351, 0), MATCH(Selection_Hide2!AB$5, 'Full set Core Client Indicator'!$A$3:$AB$3, 0))), \"\")","v":""}]
[{"$f":"IF(AND(Selection_Hide1!C61<>0, Selection_Hide1!C61<>\"Grand Total\"), Selection_Hide1!C61, \"\")","v":""},{"$f":"IF(A63<>\"\", IF(INDEX('Full set Core Client Indicator'!$A$3:$AB$351, MATCH(Selection_Hide2!$A63, 'Full set Core Client Indicator'!$A$3:$A$351, 0), MATCH(Selection_Hide2!B$5, 'Full set Core Client Indicator'!$A$3:$AB$3, 0))=\"\", \"\",  INDEX('Full set Core Client Indicator'!$A$3:$AB$351, MATCH(Selection_Hide2!$A63, 'Full set Core Client Indicator'!$A$3:$A$351, 0), MATCH(Selection_Hide2!B$5, 'Full set Core Client Indicator'!$A$3:$AB$3, 0))), \"\")","v":""},{"$f":"IF(B63<>\"\", IF(INDEX('Full set Core Client Indicator'!$A$3:$AB$351, MATCH(Selection_Hide2!$A63, 'Full set Core Client Indicator'!$A$3:$A$351, 0), MATCH(Selection_Hide2!C$5, 'Full set Core Client Indicator'!$A$3:$AB$3, 0))=\"\", \"\",  INDEX('Full set Core Client Indicator'!$A$3:$AB$351, MATCH(Selection_Hide2!$A63, 'Full set Core Client Indicator'!$A$3:$A$351, 0), MATCH(Selection_Hide2!C$5, 'Full set Core Client Indicator'!$A$3:$AB$3, 0))), \"\")","v":""},{"$f":"IF(C63<>\"\", IF(INDEX('Full set Core Client Indicator'!$A$3:$AB$351, MATCH(Selection_Hide2!$A63, 'Full set Core Client Indicator'!$A$3:$A$351, 0), MATCH(Selection_Hide2!D$5, 'Full set Core Client Indicator'!$A$3:$AB$3, 0))=\"\", \"\",  INDEX('Full set Core Client Indicator'!$A$3:$AB$351, MATCH(Selection_Hide2!$A63, 'Full set Core Client Indicator'!$A$3:$A$351, 0), MATCH(Selection_Hide2!D$5, 'Full set Core Client Indicator'!$A$3:$AB$3, 0))), \"\")","v":""},{"$f":"IF(D63<>\"\", IF(INDEX('Full set Core Client Indicator'!$A$3:$AB$351, MATCH(Selection_Hide2!$A63, 'Full set Core Client Indicator'!$A$3:$A$351, 0), MATCH(Selection_Hide2!E$5, 'Full set Core Client Indicator'!$A$3:$AB$3, 0))=\"\", \"\",  INDEX('Full set Core Client Indicator'!$A$3:$AB$351, MATCH(Selection_Hide2!$A63, 'Full set Core Client Indicator'!$A$3:$A$351, 0), MATCH(Selection_Hide2!E$5, 'Full set Core Client Indicator'!$A$3:$AB$3, 0))), \"\")","v":""},{"$f":"IF(E63<>\"\", IF(INDEX('Full set Core Client Indicator'!$A$3:$AB$351, MATCH(Selection_Hide2!$A63, 'Full set Core Client Indicator'!$A$3:$A$351, 0), MATCH(Selection_Hide2!F$5, 'Full set Core Client Indicator'!$A$3:$AB$3, 0))=\"\", \"\",  INDEX('Full set Core Client Indicator'!$A$3:$AB$351, MATCH(Selection_Hide2!$A63, 'Full set Core Client Indicator'!$A$3:$A$351, 0), MATCH(Selection_Hide2!F$5, 'Full set Core Client Indicator'!$A$3:$AB$3, 0))), \"\")","v":""},{"$f":"IF(F63<>\"\", IF(INDEX('Full set Core Client Indicator'!$A$3:$AB$351, MATCH(Selection_Hide2!$A63, 'Full set Core Client Indicator'!$A$3:$A$351, 0), MATCH(Selection_Hide2!G$5, 'Full set Core Client Indicator'!$A$3:$AB$3, 0))=\"\", \"\",  INDEX('Full set Core Client Indicator'!$A$3:$AB$351, MATCH(Selection_Hide2!$A63, 'Full set Core Client Indicator'!$A$3:$A$351, 0), MATCH(Selection_Hide2!G$5, 'Full set Core Client Indicator'!$A$3:$AB$3, 0))), \"\")","v":""},{"$f":"IF(G63<>\"\", IF(INDEX('Full set Core Client Indicator'!$A$3:$AB$351, MATCH(Selection_Hide2!$A63, 'Full set Core Client Indicator'!$A$3:$A$351, 0), MATCH(Selection_Hide2!H$5, 'Full set Core Client Indicator'!$A$3:$AB$3, 0))=\"\", \"\",  INDEX('Full set Core Client Indicator'!$A$3:$AB$351, MATCH(Selection_Hide2!$A63, 'Full set Core Client Indicator'!$A$3:$A$351, 0), MATCH(Selection_Hide2!H$5, 'Full set Core Client Indicator'!$A$3:$AB$3, 0))), \"\")","v":""},{"$f":"IF(H63<>\"\", IF(INDEX('Full set Core Client Indicator'!$A$3:$AB$351, MATCH(Selection_Hide2!$A63, 'Full set Core Client Indicator'!$A$3:$A$351, 0), MATCH(Selection_Hide2!I$5, 'Full set Core Client Indicator'!$A$3:$AB$3, 0))=\"\", \"\",  INDEX('Full set Core Client Indicator'!$A$3:$AB$351, MATCH(Selection_Hide2!$A63, 'Full set Core Client Indicator'!$A$3:$A$351, 0), MATCH(Selection_Hide2!I$5, 'Full set Core Client Indicator'!$A$3:$AB$3, 0))), \"\")","v":""},{"$f":"IF(I63<>\"\", IF(INDEX('Full set Core Client Indicator'!$A$3:$AB$351, MATCH(Selection_Hide2!$A63, 'Full set Core Client Indicator'!$A$3:$A$351, 0), MATCH(Selection_Hide2!J$5, 'Full set Core Client Indicator'!$A$3:$AB$3, 0))=\"\", \"\",  INDEX('Full set Core Client Indicator'!$A$3:$AB$351, MATCH(Selection_Hide2!$A63, 'Full set Core Client Indicator'!$A$3:$A$351, 0), MATCH(Selection_Hide2!J$5, 'Full set Core Client Indicator'!$A$3:$AB$3, 0))), \"\")","v":""},{"$f":"IF(J63<>\"\", IF(INDEX('Full set Core Client Indicator'!$A$3:$AB$351, MATCH(Selection_Hide2!$A63, 'Full set Core Client Indicator'!$A$3:$A$351, 0), MATCH(Selection_Hide2!K$5, 'Full set Core Client Indicator'!$A$3:$AB$3, 0))=\"\", \"\",  INDEX('Full set Core Client Indicator'!$A$3:$AB$351, MATCH(Selection_Hide2!$A63, 'Full set Core Client Indicator'!$A$3:$A$351, 0), MATCH(Selection_Hide2!K$5, 'Full set Core Client Indicator'!$A$3:$AB$3, 0))), \"\")","v":""},{"$f":"IF(K63<>\"\", IF(INDEX('Full set Core Client Indicator'!$A$3:$AB$351, MATCH(Selection_Hide2!$A63, 'Full set Core Client Indicator'!$A$3:$A$351, 0), MATCH(Selection_Hide2!L$5, 'Full set Core Client Indicator'!$A$3:$AB$3, 0))=\"\", \"\",  INDEX('Full set Core Client Indicator'!$A$3:$AB$351, MATCH(Selection_Hide2!$A63, 'Full set Core Client Indicator'!$A$3:$A$351, 0), MATCH(Selection_Hide2!L$5, 'Full set Core Client Indicator'!$A$3:$AB$3, 0))), \"\")","v":""},{"$f":"IF(L63<>\"\", IF(INDEX('Full set Core Client Indicator'!$A$3:$AB$351, MATCH(Selection_Hide2!$A63, 'Full set Core Client Indicator'!$A$3:$A$351, 0), MATCH(Selection_Hide2!M$5, 'Full set Core Client Indicator'!$A$3:$AB$3, 0))=\"\", \"\",  INDEX('Full set Core Client Indicator'!$A$3:$AB$351, MATCH(Selection_Hide2!$A63, 'Full set Core Client Indicator'!$A$3:$A$351, 0), MATCH(Selection_Hide2!M$5, 'Full set Core Client Indicator'!$A$3:$AB$3, 0))), \"\")","v":""},{"$f":"IF(M63<>\"\", IF(INDEX('Full set Core Client Indicator'!$A$3:$AB$351, MATCH(Selection_Hide2!$A63, 'Full set Core Client Indicator'!$A$3:$A$351, 0), MATCH(Selection_Hide2!N$5, 'Full set Core Client Indicator'!$A$3:$AB$3, 0))=\"\", \"\",  INDEX('Full set Core Client Indicator'!$A$3:$AB$351, MATCH(Selection_Hide2!$A63, 'Full set Core Client Indicator'!$A$3:$A$351, 0), MATCH(Selection_Hide2!N$5, 'Full set Core Client Indicator'!$A$3:$AB$3, 0))), \"\")","v":""},{"$f":"IF(N63<>\"\", IF(INDEX('Full set Core Client Indicator'!$A$3:$AB$351, MATCH(Selection_Hide2!$A63, 'Full set Core Client Indicator'!$A$3:$A$351, 0), MATCH(Selection_Hide2!O$5, 'Full set Core Client Indicator'!$A$3:$AB$3, 0))=\"\", \"\",  INDEX('Full set Core Client Indicator'!$A$3:$AB$351, MATCH(Selection_Hide2!$A63, 'Full set Core Client Indicator'!$A$3:$A$351, 0), MATCH(Selection_Hide2!O$5, 'Full set Core Client Indicator'!$A$3:$AB$3, 0))), \"\")","v":""},{"$f":"IF(O63<>\"\", IF(INDEX('Full set Core Client Indicator'!$A$3:$AB$351, MATCH(Selection_Hide2!$A63, 'Full set Core Client Indicator'!$A$3:$A$351, 0), MATCH(Selection_Hide2!P$5, 'Full set Core Client Indicator'!$A$3:$AB$3, 0))=\"\", \"\",  INDEX('Full set Core Client Indicator'!$A$3:$AB$351, MATCH(Selection_Hide2!$A63, 'Full set Core Client Indicator'!$A$3:$A$351, 0), MATCH(Selection_Hide2!P$5, 'Full set Core Client Indicator'!$A$3:$AB$3, 0))), \"\")","v":""},{"$f":"IF(P63<>\"\", IF(INDEX('Full set Core Client Indicator'!$A$3:$AB$351, MATCH(Selection_Hide2!$A63, 'Full set Core Client Indicator'!$A$3:$A$351, 0), MATCH(Selection_Hide2!Q$5, 'Full set Core Client Indicator'!$A$3:$AB$3, 0))=\"\", \"\",  INDEX('Full set Core Client Indicator'!$A$3:$AB$351, MATCH(Selection_Hide2!$A63, 'Full set Core Client Indicator'!$A$3:$A$351, 0), MATCH(Selection_Hide2!Q$5, 'Full set Core Client Indicator'!$A$3:$AB$3, 0))), \"\")","v":""},{"$f":"IF(Q63<>\"\", IF(INDEX('Full set Core Client Indicator'!$A$3:$AB$351, MATCH(Selection_Hide2!$A63, 'Full set Core Client Indicator'!$A$3:$A$351, 0), MATCH(Selection_Hide2!R$5, 'Full set Core Client Indicator'!$A$3:$AB$3, 0))=\"\", \"\",  INDEX('Full set Core Client Indicator'!$A$3:$AB$351, MATCH(Selection_Hide2!$A63, 'Full set Core Client Indicator'!$A$3:$A$351, 0), MATCH(Selection_Hide2!R$5, 'Full set Core Client Indicator'!$A$3:$AB$3, 0))), \"\")","v":""},{"$f":"IF(R63<>\"\", IF(INDEX('Full set Core Client Indicator'!$A$3:$AB$351, MATCH(Selection_Hide2!$A63, 'Full set Core Client Indicator'!$A$3:$A$351, 0), MATCH(Selection_Hide2!S$5, 'Full set Core Client Indicator'!$A$3:$AB$3, 0))=\"\", \"\",  INDEX('Full set Core Client Indicator'!$A$3:$AB$351, MATCH(Selection_Hide2!$A63, 'Full set Core Client Indicator'!$A$3:$A$351, 0), MATCH(Selection_Hide2!S$5, 'Full set Core Client Indicator'!$A$3:$AB$3, 0))), \"\")","v":""},{"$f":"IF(S63<>\"\", IF(INDEX('Full set Core Client Indicator'!$A$3:$AB$351, MATCH(Selection_Hide2!$A63, 'Full set Core Client Indicator'!$A$3:$A$351, 0), MATCH(Selection_Hide2!T$5, 'Full set Core Client Indicator'!$A$3:$AB$3, 0))=\"\", \"\",  INDEX('Full set Core Client Indicator'!$A$3:$AB$351, MATCH(Selection_Hide2!$A63, 'Full set Core Client Indicator'!$A$3:$A$351, 0), MATCH(Selection_Hide2!T$5, 'Full set Core Client Indicator'!$A$3:$AB$3, 0))), \"\")","v":""},{"$f":"IF(T63<>\"\", IF(INDEX('Full set Core Client Indicator'!$A$3:$AB$351, MATCH(Selection_Hide2!$A63, 'Full set Core Client Indicator'!$A$3:$A$351, 0), MATCH(Selection_Hide2!U$5, 'Full set Core Client Indicator'!$A$3:$AB$3, 0))=\"\", \"\",  INDEX('Full set Core Client Indicator'!$A$3:$AB$351, MATCH(Selection_Hide2!$A63, 'Full set Core Client Indicator'!$A$3:$A$351, 0), MATCH(Selection_Hide2!U$5, 'Full set Core Client Indicator'!$A$3:$AB$3, 0))), \"\")","v":""},{"$f":"IF(U63<>\"\", IF(INDEX('Full set Core Client Indicator'!$A$3:$AB$351, MATCH(Selection_Hide2!$A63, 'Full set Core Client Indicator'!$A$3:$A$351, 0), MATCH(Selection_Hide2!V$5, 'Full set Core Client Indicator'!$A$3:$AB$3, 0))=\"\", \"\",  INDEX('Full set Core Client Indicator'!$A$3:$AB$351, MATCH(Selection_Hide2!$A63, 'Full set Core Client Indicator'!$A$3:$A$351, 0), MATCH(Selection_Hide2!V$5, 'Full set Core Client Indicator'!$A$3:$AB$3, 0))), \"\")","v":""},{"$f":"IF(V63<>\"\", IF(INDEX('Full set Core Client Indicator'!$A$3:$AB$351, MATCH(Selection_Hide2!$A63, 'Full set Core Client Indicator'!$A$3:$A$351, 0), MATCH(Selection_Hide2!W$5, 'Full set Core Client Indicator'!$A$3:$AB$3, 0))=\"\", \"\",  INDEX('Full set Core Client Indicator'!$A$3:$AB$351, MATCH(Selection_Hide2!$A63, 'Full set Core Client Indicator'!$A$3:$A$351, 0), MATCH(Selection_Hide2!W$5, 'Full set Core Client Indicator'!$A$3:$AB$3, 0))), \"\")","v":""},{"$f":"IF(W63<>\"\", IF(INDEX('Full set Core Client Indicator'!$A$3:$AB$351, MATCH(Selection_Hide2!$A63, 'Full set Core Client Indicator'!$A$3:$A$351, 0), MATCH(Selection_Hide2!X$5, 'Full set Core Client Indicator'!$A$3:$AB$3, 0))=\"\", \"\",  INDEX('Full set Core Client Indicator'!$A$3:$AB$351, MATCH(Selection_Hide2!$A63, 'Full set Core Client Indicator'!$A$3:$A$351, 0), MATCH(Selection_Hide2!X$5, 'Full set Core Client Indicator'!$A$3:$AB$3, 0))), \"\")","v":""},{"$f":"IF(X63<>\"\", IF(INDEX('Full set Core Client Indicator'!$A$3:$AB$351, MATCH(Selection_Hide2!$A63, 'Full set Core Client Indicator'!$A$3:$A$351, 0), MATCH(Selection_Hide2!Y$5, 'Full set Core Client Indicator'!$A$3:$AB$3, 0))=\"\", \"\",  INDEX('Full set Core Client Indicator'!$A$3:$AB$351, MATCH(Selection_Hide2!$A63, 'Full set Core Client Indicator'!$A$3:$A$351, 0), MATCH(Selection_Hide2!Y$5, 'Full set Core Client Indicator'!$A$3:$AB$3, 0))), \"\")","v":""},{"$f":"IF(Y63<>\"\", IF(INDEX('Full set Core Client Indicator'!$A$3:$AB$351, MATCH(Selection_Hide2!$A63, 'Full set Core Client Indicator'!$A$3:$A$351, 0), MATCH(Selection_Hide2!Z$5, 'Full set Core Client Indicator'!$A$3:$AB$3, 0))=\"\", \"\",  INDEX('Full set Core Client Indicator'!$A$3:$AB$351, MATCH(Selection_Hide2!$A63, 'Full set Core Client Indicator'!$A$3:$A$351, 0), MATCH(Selection_Hide2!Z$5, 'Full set Core Client Indicator'!$A$3:$AB$3, 0))), \"\")","v":""},{"$f":"IF(Z63<>\"\", IF(INDEX('Full set Core Client Indicator'!$A$3:$AB$351, MATCH(Selection_Hide2!$A63, 'Full set Core Client Indicator'!$A$3:$A$351, 0), MATCH(Selection_Hide2!AA$5, 'Full set Core Client Indicator'!$A$3:$AB$3, 0))=\"\", \"\",  INDEX('Full set Core Client Indicator'!$A$3:$AB$351, MATCH(Selection_Hide2!$A63, 'Full set Core Client Indicator'!$A$3:$A$351, 0), MATCH(Selection_Hide2!AA$5, 'Full set Core Client Indicator'!$A$3:$AB$3, 0))), \"\")","v":""},{"$f":"IF(AA63<>\"\", IF(INDEX('Full set Core Client Indicator'!$A$3:$AB$351, MATCH(Selection_Hide2!$A63, 'Full set Core Client Indicator'!$A$3:$A$351, 0), MATCH(Selection_Hide2!AB$5, 'Full set Core Client Indicator'!$A$3:$AB$3, 0))=\"\", \"\",  INDEX('Full set Core Client Indicator'!$A$3:$AB$351, MATCH(Selection_Hide2!$A63, 'Full set Core Client Indicator'!$A$3:$A$351, 0), MATCH(Selection_Hide2!AB$5, 'Full set Core Client Indicator'!$A$3:$AB$3, 0))), \"\")","v":""}]
[{"$f":"IF(AND(Selection_Hide1!C62<>0, Selection_Hide1!C62<>\"Grand Total\"), Selection_Hide1!C62, \"\")","v":""},{"$f":"IF(A64<>\"\", IF(INDEX('Full set Core Client Indicator'!$A$3:$AB$351, MATCH(Selection_Hide2!$A64, 'Full set Core Client Indicator'!$A$3:$A$351, 0), MATCH(Selection_Hide2!B$5, 'Full set Core Client Indicator'!$A$3:$AB$3, 0))=\"\", \"\",  INDEX('Full set Core Client Indicator'!$A$3:$AB$351, MATCH(Selection_Hide2!$A64, 'Full set Core Client Indicator'!$A$3:$A$351, 0), MATCH(Selection_Hide2!B$5, 'Full set Core Client Indicator'!$A$3:$AB$3, 0))), \"\")","v":""},{"$f":"IF(B64<>\"\", IF(INDEX('Full set Core Client Indicator'!$A$3:$AB$351, MATCH(Selection_Hide2!$A64, 'Full set Core Client Indicator'!$A$3:$A$351, 0), MATCH(Selection_Hide2!C$5, 'Full set Core Client Indicator'!$A$3:$AB$3, 0))=\"\", \"\",  INDEX('Full set Core Client Indicator'!$A$3:$AB$351, MATCH(Selection_Hide2!$A64, 'Full set Core Client Indicator'!$A$3:$A$351, 0), MATCH(Selection_Hide2!C$5, 'Full set Core Client Indicator'!$A$3:$AB$3, 0))), \"\")","v":""},{"$f":"IF(C64<>\"\", IF(INDEX('Full set Core Client Indicator'!$A$3:$AB$351, MATCH(Selection_Hide2!$A64, 'Full set Core Client Indicator'!$A$3:$A$351, 0), MATCH(Selection_Hide2!D$5, 'Full set Core Client Indicator'!$A$3:$AB$3, 0))=\"\", \"\",  INDEX('Full set Core Client Indicator'!$A$3:$AB$351, MATCH(Selection_Hide2!$A64, 'Full set Core Client Indicator'!$A$3:$A$351, 0), MATCH(Selection_Hide2!D$5, 'Full set Core Client Indicator'!$A$3:$AB$3, 0))), \"\")","v":""},{"$f":"IF(D64<>\"\", IF(INDEX('Full set Core Client Indicator'!$A$3:$AB$351, MATCH(Selection_Hide2!$A64, 'Full set Core Client Indicator'!$A$3:$A$351, 0), MATCH(Selection_Hide2!E$5, 'Full set Core Client Indicator'!$A$3:$AB$3, 0))=\"\", \"\",  INDEX('Full set Core Client Indicator'!$A$3:$AB$351, MATCH(Selection_Hide2!$A64, 'Full set Core Client Indicator'!$A$3:$A$351, 0), MATCH(Selection_Hide2!E$5, 'Full set Core Client Indicator'!$A$3:$AB$3, 0))), \"\")","v":""},{"$f":"IF(E64<>\"\", IF(INDEX('Full set Core Client Indicator'!$A$3:$AB$351, MATCH(Selection_Hide2!$A64, 'Full set Core Client Indicator'!$A$3:$A$351, 0), MATCH(Selection_Hide2!F$5, 'Full set Core Client Indicator'!$A$3:$AB$3, 0))=\"\", \"\",  INDEX('Full set Core Client Indicator'!$A$3:$AB$351, MATCH(Selection_Hide2!$A64, 'Full set Core Client Indicator'!$A$3:$A$351, 0), MATCH(Selection_Hide2!F$5, 'Full set Core Client Indicator'!$A$3:$AB$3, 0))), \"\")","v":""},{"$f":"IF(F64<>\"\", IF(INDEX('Full set Core Client Indicator'!$A$3:$AB$351, MATCH(Selection_Hide2!$A64, 'Full set Core Client Indicator'!$A$3:$A$351, 0), MATCH(Selection_Hide2!G$5, 'Full set Core Client Indicator'!$A$3:$AB$3, 0))=\"\", \"\",  INDEX('Full set Core Client Indicator'!$A$3:$AB$351, MATCH(Selection_Hide2!$A64, 'Full set Core Client Indicator'!$A$3:$A$351, 0), MATCH(Selection_Hide2!G$5, 'Full set Core Client Indicator'!$A$3:$AB$3, 0))), \"\")","v":""},{"$f":"IF(G64<>\"\", IF(INDEX('Full set Core Client Indicator'!$A$3:$AB$351, MATCH(Selection_Hide2!$A64, 'Full set Core Client Indicator'!$A$3:$A$351, 0), MATCH(Selection_Hide2!H$5, 'Full set Core Client Indicator'!$A$3:$AB$3, 0))=\"\", \"\",  INDEX('Full set Core Client Indicator'!$A$3:$AB$351, MATCH(Selection_Hide2!$A64, 'Full set Core Client Indicator'!$A$3:$A$351, 0), MATCH(Selection_Hide2!H$5, 'Full set Core Client Indicator'!$A$3:$AB$3, 0))), \"\")","v":""},{"$f":"IF(H64<>\"\", IF(INDEX('Full set Core Client Indicator'!$A$3:$AB$351, MATCH(Selection_Hide2!$A64, 'Full set Core Client Indicator'!$A$3:$A$351, 0), MATCH(Selection_Hide2!I$5, 'Full set Core Client Indicator'!$A$3:$AB$3, 0))=\"\", \"\",  INDEX('Full set Core Client Indicator'!$A$3:$AB$351, MATCH(Selection_Hide2!$A64, 'Full set Core Client Indicator'!$A$3:$A$351, 0), MATCH(Selection_Hide2!I$5, 'Full set Core Client Indicator'!$A$3:$AB$3, 0))), \"\")","v":""},{"$f":"IF(I64<>\"\", IF(INDEX('Full set Core Client Indicator'!$A$3:$AB$351, MATCH(Selection_Hide2!$A64, 'Full set Core Client Indicator'!$A$3:$A$351, 0), MATCH(Selection_Hide2!J$5, 'Full set Core Client Indicator'!$A$3:$AB$3, 0))=\"\", \"\",  INDEX('Full set Core Client Indicator'!$A$3:$AB$351, MATCH(Selection_Hide2!$A64, 'Full set Core Client Indicator'!$A$3:$A$351, 0), MATCH(Selection_Hide2!J$5, 'Full set Core Client Indicator'!$A$3:$AB$3, 0))), \"\")","v":""},{"$f":"IF(J64<>\"\", IF(INDEX('Full set Core Client Indicator'!$A$3:$AB$351, MATCH(Selection_Hide2!$A64, 'Full set Core Client Indicator'!$A$3:$A$351, 0), MATCH(Selection_Hide2!K$5, 'Full set Core Client Indicator'!$A$3:$AB$3, 0))=\"\", \"\",  INDEX('Full set Core Client Indicator'!$A$3:$AB$351, MATCH(Selection_Hide2!$A64, 'Full set Core Client Indicator'!$A$3:$A$351, 0), MATCH(Selection_Hide2!K$5, 'Full set Core Client Indicator'!$A$3:$AB$3, 0))), \"\")","v":""},{"$f":"IF(K64<>\"\", IF(INDEX('Full set Core Client Indicator'!$A$3:$AB$351, MATCH(Selection_Hide2!$A64, 'Full set Core Client Indicator'!$A$3:$A$351, 0), MATCH(Selection_Hide2!L$5, 'Full set Core Client Indicator'!$A$3:$AB$3, 0))=\"\", \"\",  INDEX('Full set Core Client Indicator'!$A$3:$AB$351, MATCH(Selection_Hide2!$A64, 'Full set Core Client Indicator'!$A$3:$A$351, 0), MATCH(Selection_Hide2!L$5, 'Full set Core Client Indicator'!$A$3:$AB$3, 0))), \"\")","v":""},{"$f":"IF(L64<>\"\", IF(INDEX('Full set Core Client Indicator'!$A$3:$AB$351, MATCH(Selection_Hide2!$A64, 'Full set Core Client Indicator'!$A$3:$A$351, 0), MATCH(Selection_Hide2!M$5, 'Full set Core Client Indicator'!$A$3:$AB$3, 0))=\"\", \"\",  INDEX('Full set Core Client Indicator'!$A$3:$AB$351, MATCH(Selection_Hide2!$A64, 'Full set Core Client Indicator'!$A$3:$A$351, 0), MATCH(Selection_Hide2!M$5, 'Full set Core Client Indicator'!$A$3:$AB$3, 0))), \"\")","v":""},{"$f":"IF(M64<>\"\", IF(INDEX('Full set Core Client Indicator'!$A$3:$AB$351, MATCH(Selection_Hide2!$A64, 'Full set Core Client Indicator'!$A$3:$A$351, 0), MATCH(Selection_Hide2!N$5, 'Full set Core Client Indicator'!$A$3:$AB$3, 0))=\"\", \"\",  INDEX('Full set Core Client Indicator'!$A$3:$AB$351, MATCH(Selection_Hide2!$A64, 'Full set Core Client Indicator'!$A$3:$A$351, 0), MATCH(Selection_Hide2!N$5, 'Full set Core Client Indicator'!$A$3:$AB$3, 0))), \"\")","v":""},{"$f":"IF(N64<>\"\", IF(INDEX('Full set Core Client Indicator'!$A$3:$AB$351, MATCH(Selection_Hide2!$A64, 'Full set Core Client Indicator'!$A$3:$A$351, 0), MATCH(Selection_Hide2!O$5, 'Full set Core Client Indicator'!$A$3:$AB$3, 0))=\"\", \"\",  INDEX('Full set Core Client Indicator'!$A$3:$AB$351, MATCH(Selection_Hide2!$A64, 'Full set Core Client Indicator'!$A$3:$A$351, 0), MATCH(Selection_Hide2!O$5, 'Full set Core Client Indicator'!$A$3:$AB$3, 0))), \"\")","v":""},{"$f":"IF(O64<>\"\", IF(INDEX('Full set Core Client Indicator'!$A$3:$AB$351, MATCH(Selection_Hide2!$A64, 'Full set Core Client Indicator'!$A$3:$A$351, 0), MATCH(Selection_Hide2!P$5, 'Full set Core Client Indicator'!$A$3:$AB$3, 0))=\"\", \"\",  INDEX('Full set Core Client Indicator'!$A$3:$AB$351, MATCH(Selection_Hide2!$A64, 'Full set Core Client Indicator'!$A$3:$A$351, 0), MATCH(Selection_Hide2!P$5, 'Full set Core Client Indicator'!$A$3:$AB$3, 0))), \"\")","v":""},{"$f":"IF(P64<>\"\", IF(INDEX('Full set Core Client Indicator'!$A$3:$AB$351, MATCH(Selection_Hide2!$A64, 'Full set Core Client Indicator'!$A$3:$A$351, 0), MATCH(Selection_Hide2!Q$5, 'Full set Core Client Indicator'!$A$3:$AB$3, 0))=\"\", \"\",  INDEX('Full set Core Client Indicator'!$A$3:$AB$351, MATCH(Selection_Hide2!$A64, 'Full set Core Client Indicator'!$A$3:$A$351, 0), MATCH(Selection_Hide2!Q$5, 'Full set Core Client Indicator'!$A$3:$AB$3, 0))), \"\")","v":""},{"$f":"IF(Q64<>\"\", IF(INDEX('Full set Core Client Indicator'!$A$3:$AB$351, MATCH(Selection_Hide2!$A64, 'Full set Core Client Indicator'!$A$3:$A$351, 0), MATCH(Selection_Hide2!R$5, 'Full set Core Client Indicator'!$A$3:$AB$3, 0))=\"\", \"\",  INDEX('Full set Core Client Indicator'!$A$3:$AB$351, MATCH(Selection_Hide2!$A64, 'Full set Core Client Indicator'!$A$3:$A$351, 0), MATCH(Selection_Hide2!R$5, 'Full set Core Client Indicator'!$A$3:$AB$3, 0))), \"\")","v":""},{"$f":"IF(R64<>\"\", IF(INDEX('Full set Core Client Indicator'!$A$3:$AB$351, MATCH(Selection_Hide2!$A64, 'Full set Core Client Indicator'!$A$3:$A$351, 0), MATCH(Selection_Hide2!S$5, 'Full set Core Client Indicator'!$A$3:$AB$3, 0))=\"\", \"\",  INDEX('Full set Core Client Indicator'!$A$3:$AB$351, MATCH(Selection_Hide2!$A64, 'Full set Core Client Indicator'!$A$3:$A$351, 0), MATCH(Selection_Hide2!S$5, 'Full set Core Client Indicator'!$A$3:$AB$3, 0))), \"\")","v":""},{"$f":"IF(S64<>\"\", IF(INDEX('Full set Core Client Indicator'!$A$3:$AB$351, MATCH(Selection_Hide2!$A64, 'Full set Core Client Indicator'!$A$3:$A$351, 0), MATCH(Selection_Hide2!T$5, 'Full set Core Client Indicator'!$A$3:$AB$3, 0))=\"\", \"\",  INDEX('Full set Core Client Indicator'!$A$3:$AB$351, MATCH(Selection_Hide2!$A64, 'Full set Core Client Indicator'!$A$3:$A$351, 0), MATCH(Selection_Hide2!T$5, 'Full set Core Client Indicator'!$A$3:$AB$3, 0))), \"\")","v":""},{"$f":"IF(T64<>\"\", IF(INDEX('Full set Core Client Indicator'!$A$3:$AB$351, MATCH(Selection_Hide2!$A64, 'Full set Core Client Indicator'!$A$3:$A$351, 0), MATCH(Selection_Hide2!U$5, 'Full set Core Client Indicator'!$A$3:$AB$3, 0))=\"\", \"\",  INDEX('Full set Core Client Indicator'!$A$3:$AB$351, MATCH(Selection_Hide2!$A64, 'Full set Core Client Indicator'!$A$3:$A$351, 0), MATCH(Selection_Hide2!U$5, 'Full set Core Client Indicator'!$A$3:$AB$3, 0))), \"\")","v":""},{"$f":"IF(U64<>\"\", IF(INDEX('Full set Core Client Indicator'!$A$3:$AB$351, MATCH(Selection_Hide2!$A64, 'Full set Core Client Indicator'!$A$3:$A$351, 0), MATCH(Selection_Hide2!V$5, 'Full set Core Client Indicator'!$A$3:$AB$3, 0))=\"\", \"\",  INDEX('Full set Core Client Indicator'!$A$3:$AB$351, MATCH(Selection_Hide2!$A64, 'Full set Core Client Indicator'!$A$3:$A$351, 0), MATCH(Selection_Hide2!V$5, 'Full set Core Client Indicator'!$A$3:$AB$3, 0))), \"\")","v":""},{"$f":"IF(V64<>\"\", IF(INDEX('Full set Core Client Indicator'!$A$3:$AB$351, MATCH(Selection_Hide2!$A64, 'Full set Core Client Indicator'!$A$3:$A$351, 0), MATCH(Selection_Hide2!W$5, 'Full set Core Client Indicator'!$A$3:$AB$3, 0))=\"\", \"\",  INDEX('Full set Core Client Indicator'!$A$3:$AB$351, MATCH(Selection_Hide2!$A64, 'Full set Core Client Indicator'!$A$3:$A$351, 0), MATCH(Selection_Hide2!W$5, 'Full set Core Client Indicator'!$A$3:$AB$3, 0))), \"\")","v":""},{"$f":"IF(W64<>\"\", IF(INDEX('Full set Core Client Indicator'!$A$3:$AB$351, MATCH(Selection_Hide2!$A64, 'Full set Core Client Indicator'!$A$3:$A$351, 0), MATCH(Selection_Hide2!X$5, 'Full set Core Client Indicator'!$A$3:$AB$3, 0))=\"\", \"\",  INDEX('Full set Core Client Indicator'!$A$3:$AB$351, MATCH(Selection_Hide2!$A64, 'Full set Core Client Indicator'!$A$3:$A$351, 0), MATCH(Selection_Hide2!X$5, 'Full set Core Client Indicator'!$A$3:$AB$3, 0))), \"\")","v":""},{"$f":"IF(X64<>\"\", IF(INDEX('Full set Core Client Indicator'!$A$3:$AB$351, MATCH(Selection_Hide2!$A64, 'Full set Core Client Indicator'!$A$3:$A$351, 0), MATCH(Selection_Hide2!Y$5, 'Full set Core Client Indicator'!$A$3:$AB$3, 0))=\"\", \"\",  INDEX('Full set Core Client Indicator'!$A$3:$AB$351, MATCH(Selection_Hide2!$A64, 'Full set Core Client Indicator'!$A$3:$A$351, 0), MATCH(Selection_Hide2!Y$5, 'Full set Core Client Indicator'!$A$3:$AB$3, 0))), \"\")","v":""},{"$f":"IF(Y64<>\"\", IF(INDEX('Full set Core Client Indicator'!$A$3:$AB$351, MATCH(Selection_Hide2!$A64, 'Full set Core Client Indicator'!$A$3:$A$351, 0), MATCH(Selection_Hide2!Z$5, 'Full set Core Client Indicator'!$A$3:$AB$3, 0))=\"\", \"\",  INDEX('Full set Core Client Indicator'!$A$3:$AB$351, MATCH(Selection_Hide2!$A64, 'Full set Core Client Indicator'!$A$3:$A$351, 0), MATCH(Selection_Hide2!Z$5, 'Full set Core Client Indicator'!$A$3:$AB$3, 0))), \"\")","v":""},{"$f":"IF(Z64<>\"\", IF(INDEX('Full set Core Client Indicator'!$A$3:$AB$351, MATCH(Selection_Hide2!$A64, 'Full set Core Client Indicator'!$A$3:$A$351, 0), MATCH(Selection_Hide2!AA$5, 'Full set Core Client Indicator'!$A$3:$AB$3, 0))=\"\", \"\",  INDEX('Full set Core Client Indicator'!$A$3:$AB$351, MATCH(Selection_Hide2!$A64, 'Full set Core Client Indicator'!$A$3:$A$351, 0), MATCH(Selection_Hide2!AA$5, 'Full set Core Client Indicator'!$A$3:$AB$3, 0))), \"\")","v":""},{"$f":"IF(AA64<>\"\", IF(INDEX('Full set Core Client Indicator'!$A$3:$AB$351, MATCH(Selection_Hide2!$A64, 'Full set Core Client Indicator'!$A$3:$A$351, 0), MATCH(Selection_Hide2!AB$5, 'Full set Core Client Indicator'!$A$3:$AB$3, 0))=\"\", \"\",  INDEX('Full set Core Client Indicator'!$A$3:$AB$351, MATCH(Selection_Hide2!$A64, 'Full set Core Client Indicator'!$A$3:$A$351, 0), MATCH(Selection_Hide2!AB$5, 'Full set Core Client Indicator'!$A$3:$AB$3, 0))), \"\")","v":""}]
[{"$f":"IF(AND(Selection_Hide1!C63<>0, Selection_Hide1!C63<>\"Grand Total\"), Selection_Hide1!C63, \"\")","v":""},{"$f":"IF(A65<>\"\", IF(INDEX('Full set Core Client Indicator'!$A$3:$AB$351, MATCH(Selection_Hide2!$A65, 'Full set Core Client Indicator'!$A$3:$A$351, 0), MATCH(Selection_Hide2!B$5, 'Full set Core Client Indicator'!$A$3:$AB$3, 0))=\"\", \"\",  INDEX('Full set Core Client Indicator'!$A$3:$AB$351, MATCH(Selection_Hide2!$A65, 'Full set Core Client Indicator'!$A$3:$A$351, 0), MATCH(Selection_Hide2!B$5, 'Full set Core Client Indicator'!$A$3:$AB$3, 0))), \"\")","v":""},{"$f":"IF(B65<>\"\", IF(INDEX('Full set Core Client Indicator'!$A$3:$AB$351, MATCH(Selection_Hide2!$A65, 'Full set Core Client Indicator'!$A$3:$A$351, 0), MATCH(Selection_Hide2!C$5, 'Full set Core Client Indicator'!$A$3:$AB$3, 0))=\"\", \"\",  INDEX('Full set Core Client Indicator'!$A$3:$AB$351, MATCH(Selection_Hide2!$A65, 'Full set Core Client Indicator'!$A$3:$A$351, 0), MATCH(Selection_Hide2!C$5, 'Full set Core Client Indicator'!$A$3:$AB$3, 0))), \"\")","v":""},{"$f":"IF(C65<>\"\", IF(INDEX('Full set Core Client Indicator'!$A$3:$AB$351, MATCH(Selection_Hide2!$A65, 'Full set Core Client Indicator'!$A$3:$A$351, 0), MATCH(Selection_Hide2!D$5, 'Full set Core Client Indicator'!$A$3:$AB$3, 0))=\"\", \"\",  INDEX('Full set Core Client Indicator'!$A$3:$AB$351, MATCH(Selection_Hide2!$A65, 'Full set Core Client Indicator'!$A$3:$A$351, 0), MATCH(Selection_Hide2!D$5, 'Full set Core Client Indicator'!$A$3:$AB$3, 0))), \"\")","v":""},{"$f":"IF(D65<>\"\", IF(INDEX('Full set Core Client Indicator'!$A$3:$AB$351, MATCH(Selection_Hide2!$A65, 'Full set Core Client Indicator'!$A$3:$A$351, 0), MATCH(Selection_Hide2!E$5, 'Full set Core Client Indicator'!$A$3:$AB$3, 0))=\"\", \"\",  INDEX('Full set Core Client Indicator'!$A$3:$AB$351, MATCH(Selection_Hide2!$A65, 'Full set Core Client Indicator'!$A$3:$A$351, 0), MATCH(Selection_Hide2!E$5, 'Full set Core Client Indicator'!$A$3:$AB$3, 0))), \"\")","v":""},{"$f":"IF(E65<>\"\", IF(INDEX('Full set Core Client Indicator'!$A$3:$AB$351, MATCH(Selection_Hide2!$A65, 'Full set Core Client Indicator'!$A$3:$A$351, 0), MATCH(Selection_Hide2!F$5, 'Full set Core Client Indicator'!$A$3:$AB$3, 0))=\"\", \"\",  INDEX('Full set Core Client Indicator'!$A$3:$AB$351, MATCH(Selection_Hide2!$A65, 'Full set Core Client Indicator'!$A$3:$A$351, 0), MATCH(Selection_Hide2!F$5, 'Full set Core Client Indicator'!$A$3:$AB$3, 0))), \"\")","v":""},{"$f":"IF(F65<>\"\", IF(INDEX('Full set Core Client Indicator'!$A$3:$AB$351, MATCH(Selection_Hide2!$A65, 'Full set Core Client Indicator'!$A$3:$A$351, 0), MATCH(Selection_Hide2!G$5, 'Full set Core Client Indicator'!$A$3:$AB$3, 0))=\"\", \"\",  INDEX('Full set Core Client Indicator'!$A$3:$AB$351, MATCH(Selection_Hide2!$A65, 'Full set Core Client Indicator'!$A$3:$A$351, 0), MATCH(Selection_Hide2!G$5, 'Full set Core Client Indicator'!$A$3:$AB$3, 0))), \"\")","v":""},{"$f":"IF(G65<>\"\", IF(INDEX('Full set Core Client Indicator'!$A$3:$AB$351, MATCH(Selection_Hide2!$A65, 'Full set Core Client Indicator'!$A$3:$A$351, 0), MATCH(Selection_Hide2!H$5, 'Full set Core Client Indicator'!$A$3:$AB$3, 0))=\"\", \"\",  INDEX('Full set Core Client Indicator'!$A$3:$AB$351, MATCH(Selection_Hide2!$A65, 'Full set Core Client Indicator'!$A$3:$A$351, 0), MATCH(Selection_Hide2!H$5, 'Full set Core Client Indicator'!$A$3:$AB$3, 0))), \"\")","v":""},{"$f":"IF(H65<>\"\", IF(INDEX('Full set Core Client Indicator'!$A$3:$AB$351, MATCH(Selection_Hide2!$A65, 'Full set Core Client Indicator'!$A$3:$A$351, 0), MATCH(Selection_Hide2!I$5, 'Full set Core Client Indicator'!$A$3:$AB$3, 0))=\"\", \"\",  INDEX('Full set Core Client Indicator'!$A$3:$AB$351, MATCH(Selection_Hide2!$A65, 'Full set Core Client Indicator'!$A$3:$A$351, 0), MATCH(Selection_Hide2!I$5, 'Full set Core Client Indicator'!$A$3:$AB$3, 0))), \"\")","v":""},{"$f":"IF(I65<>\"\", IF(INDEX('Full set Core Client Indicator'!$A$3:$AB$351, MATCH(Selection_Hide2!$A65, 'Full set Core Client Indicator'!$A$3:$A$351, 0), MATCH(Selection_Hide2!J$5, 'Full set Core Client Indicator'!$A$3:$AB$3, 0))=\"\", \"\",  INDEX('Full set Core Client Indicator'!$A$3:$AB$351, MATCH(Selection_Hide2!$A65, 'Full set Core Client Indicator'!$A$3:$A$351, 0), MATCH(Selection_Hide2!J$5, 'Full set Core Client Indicator'!$A$3:$AB$3, 0))), \"\")","v":""},{"$f":"IF(J65<>\"\", IF(INDEX('Full set Core Client Indicator'!$A$3:$AB$351, MATCH(Selection_Hide2!$A65, 'Full set Core Client Indicator'!$A$3:$A$351, 0), MATCH(Selection_Hide2!K$5, 'Full set Core Client Indicator'!$A$3:$AB$3, 0))=\"\", \"\",  INDEX('Full set Core Client Indicator'!$A$3:$AB$351, MATCH(Selection_Hide2!$A65, 'Full set Core Client Indicator'!$A$3:$A$351, 0), MATCH(Selection_Hide2!K$5, 'Full set Core Client Indicator'!$A$3:$AB$3, 0))), \"\")","v":""},{"$f":"IF(K65<>\"\", IF(INDEX('Full set Core Client Indicator'!$A$3:$AB$351, MATCH(Selection_Hide2!$A65, 'Full set Core Client Indicator'!$A$3:$A$351, 0), MATCH(Selection_Hide2!L$5, 'Full set Core Client Indicator'!$A$3:$AB$3, 0))=\"\", \"\",  INDEX('Full set Core Client Indicator'!$A$3:$AB$351, MATCH(Selection_Hide2!$A65, 'Full set Core Client Indicator'!$A$3:$A$351, 0), MATCH(Selection_Hide2!L$5, 'Full set Core Client Indicator'!$A$3:$AB$3, 0))), \"\")","v":""},{"$f":"IF(L65<>\"\", IF(INDEX('Full set Core Client Indicator'!$A$3:$AB$351, MATCH(Selection_Hide2!$A65, 'Full set Core Client Indicator'!$A$3:$A$351, 0), MATCH(Selection_Hide2!M$5, 'Full set Core Client Indicator'!$A$3:$AB$3, 0))=\"\", \"\",  INDEX('Full set Core Client Indicator'!$A$3:$AB$351, MATCH(Selection_Hide2!$A65, 'Full set Core Client Indicator'!$A$3:$A$351, 0), MATCH(Selection_Hide2!M$5, 'Full set Core Client Indicator'!$A$3:$AB$3, 0))), \"\")","v":""},{"$f":"IF(M65<>\"\", IF(INDEX('Full set Core Client Indicator'!$A$3:$AB$351, MATCH(Selection_Hide2!$A65, 'Full set Core Client Indicator'!$A$3:$A$351, 0), MATCH(Selection_Hide2!N$5, 'Full set Core Client Indicator'!$A$3:$AB$3, 0))=\"\", \"\",  INDEX('Full set Core Client Indicator'!$A$3:$AB$351, MATCH(Selection_Hide2!$A65, 'Full set Core Client Indicator'!$A$3:$A$351, 0), MATCH(Selection_Hide2!N$5, 'Full set Core Client Indicator'!$A$3:$AB$3, 0))), \"\")","v":""},{"$f":"IF(N65<>\"\", IF(INDEX('Full set Core Client Indicator'!$A$3:$AB$351, MATCH(Selection_Hide2!$A65, 'Full set Core Client Indicator'!$A$3:$A$351, 0), MATCH(Selection_Hide2!O$5, 'Full set Core Client Indicator'!$A$3:$AB$3, 0))=\"\", \"\",  INDEX('Full set Core Client Indicator'!$A$3:$AB$351, MATCH(Selection_Hide2!$A65, 'Full set Core Client Indicator'!$A$3:$A$351, 0), MATCH(Selection_Hide2!O$5, 'Full set Core Client Indicator'!$A$3:$AB$3, 0))), \"\")","v":""},{"$f":"IF(O65<>\"\", IF(INDEX('Full set Core Client Indicator'!$A$3:$AB$351, MATCH(Selection_Hide2!$A65, 'Full set Core Client Indicator'!$A$3:$A$351, 0), MATCH(Selection_Hide2!P$5, 'Full set Core Client Indicator'!$A$3:$AB$3, 0))=\"\", \"\",  INDEX('Full set Core Client Indicator'!$A$3:$AB$351, MATCH(Selection_Hide2!$A65, 'Full set Core Client Indicator'!$A$3:$A$351, 0), MATCH(Selection_Hide2!P$5, 'Full set Core Client Indicator'!$A$3:$AB$3, 0))), \"\")","v":""},{"$f":"IF(P65<>\"\", IF(INDEX('Full set Core Client Indicator'!$A$3:$AB$351, MATCH(Selection_Hide2!$A65, 'Full set Core Client Indicator'!$A$3:$A$351, 0), MATCH(Selection_Hide2!Q$5, 'Full set Core Client Indicator'!$A$3:$AB$3, 0))=\"\", \"\",  INDEX('Full set Core Client Indicator'!$A$3:$AB$351, MATCH(Selection_Hide2!$A65, 'Full set Core Client Indicator'!$A$3:$A$351, 0), MATCH(Selection_Hide2!Q$5, 'Full set Core Client Indicator'!$A$3:$AB$3, 0))), \"\")","v":""},{"$f":"IF(Q65<>\"\", IF(INDEX('Full set Core Client Indicator'!$A$3:$AB$351, MATCH(Selection_Hide2!$A65, 'Full set Core Client Indicator'!$A$3:$A$351, 0), MATCH(Selection_Hide2!R$5, 'Full set Core Client Indicator'!$A$3:$AB$3, 0))=\"\", \"\",  INDEX('Full set Core Client Indicator'!$A$3:$AB$351, MATCH(Selection_Hide2!$A65, 'Full set Core Client Indicator'!$A$3:$A$351, 0), MATCH(Selection_Hide2!R$5, 'Full set Core Client Indicator'!$A$3:$AB$3, 0))), \"\")","v":""},{"$f":"IF(R65<>\"\", IF(INDEX('Full set Core Client Indicator'!$A$3:$AB$351, MATCH(Selection_Hide2!$A65, 'Full set Core Client Indicator'!$A$3:$A$351, 0), MATCH(Selection_Hide2!S$5, 'Full set Core Client Indicator'!$A$3:$AB$3, 0))=\"\", \"\",  INDEX('Full set Core Client Indicator'!$A$3:$AB$351, MATCH(Selection_Hide2!$A65, 'Full set Core Client Indicator'!$A$3:$A$351, 0), MATCH(Selection_Hide2!S$5, 'Full set Core Client Indicator'!$A$3:$AB$3, 0))), \"\")","v":""},{"$f":"IF(S65<>\"\", IF(INDEX('Full set Core Client Indicator'!$A$3:$AB$351, MATCH(Selection_Hide2!$A65, 'Full set Core Client Indicator'!$A$3:$A$351, 0), MATCH(Selection_Hide2!T$5, 'Full set Core Client Indicator'!$A$3:$AB$3, 0))=\"\", \"\",  INDEX('Full set Core Client Indicator'!$A$3:$AB$351, MATCH(Selection_Hide2!$A65, 'Full set Core Client Indicator'!$A$3:$A$351, 0), MATCH(Selection_Hide2!T$5, 'Full set Core Client Indicator'!$A$3:$AB$3, 0))), \"\")","v":""},{"$f":"IF(T65<>\"\", IF(INDEX('Full set Core Client Indicator'!$A$3:$AB$351, MATCH(Selection_Hide2!$A65, 'Full set Core Client Indicator'!$A$3:$A$351, 0), MATCH(Selection_Hide2!U$5, 'Full set Core Client Indicator'!$A$3:$AB$3, 0))=\"\", \"\",  INDEX('Full set Core Client Indicator'!$A$3:$AB$351, MATCH(Selection_Hide2!$A65, 'Full set Core Client Indicator'!$A$3:$A$351, 0), MATCH(Selection_Hide2!U$5, 'Full set Core Client Indicator'!$A$3:$AB$3, 0))), \"\")","v":""},{"$f":"IF(U65<>\"\", IF(INDEX('Full set Core Client Indicator'!$A$3:$AB$351, MATCH(Selection_Hide2!$A65, 'Full set Core Client Indicator'!$A$3:$A$351, 0), MATCH(Selection_Hide2!V$5, 'Full set Core Client Indicator'!$A$3:$AB$3, 0))=\"\", \"\",  INDEX('Full set Core Client Indicator'!$A$3:$AB$351, MATCH(Selection_Hide2!$A65, 'Full set Core Client Indicator'!$A$3:$A$351, 0), MATCH(Selection_Hide2!V$5, 'Full set Core Client Indicator'!$A$3:$AB$3, 0))), \"\")","v":""},{"$f":"IF(V65<>\"\", IF(INDEX('Full set Core Client Indicator'!$A$3:$AB$351, MATCH(Selection_Hide2!$A65, 'Full set Core Client Indicator'!$A$3:$A$351, 0), MATCH(Selection_Hide2!W$5, 'Full set Core Client Indicator'!$A$3:$AB$3, 0))=\"\", \"\",  INDEX('Full set Core Client Indicator'!$A$3:$AB$351, MATCH(Selection_Hide2!$A65, 'Full set Core Client Indicator'!$A$3:$A$351, 0), MATCH(Selection_Hide2!W$5, 'Full set Core Client Indicator'!$A$3:$AB$3, 0))), \"\")","v":""},{"$f":"IF(W65<>\"\", IF(INDEX('Full set Core Client Indicator'!$A$3:$AB$351, MATCH(Selection_Hide2!$A65, 'Full set Core Client Indicator'!$A$3:$A$351, 0), MATCH(Selection_Hide2!X$5, 'Full set Core Client Indicator'!$A$3:$AB$3, 0))=\"\", \"\",  INDEX('Full set Core Client Indicator'!$A$3:$AB$351, MATCH(Selection_Hide2!$A65, 'Full set Core Client Indicator'!$A$3:$A$351, 0), MATCH(Selection_Hide2!X$5, 'Full set Core Client Indicator'!$A$3:$AB$3, 0))), \"\")","v":""},{"$f":"IF(X65<>\"\", IF(INDEX('Full set Core Client Indicator'!$A$3:$AB$351, MATCH(Selection_Hide2!$A65, 'Full set Core Client Indicator'!$A$3:$A$351, 0), MATCH(Selection_Hide2!Y$5, 'Full set Core Client Indicator'!$A$3:$AB$3, 0))=\"\", \"\",  INDEX('Full set Core Client Indicator'!$A$3:$AB$351, MATCH(Selection_Hide2!$A65, 'Full set Core Client Indicator'!$A$3:$A$351, 0), MATCH(Selection_Hide2!Y$5, 'Full set Core Client Indicator'!$A$3:$AB$3, 0))), \"\")","v":""},{"$f":"IF(Y65<>\"\", IF(INDEX('Full set Core Client Indicator'!$A$3:$AB$351, MATCH(Selection_Hide2!$A65, 'Full set Core Client Indicator'!$A$3:$A$351, 0), MATCH(Selection_Hide2!Z$5, 'Full set Core Client Indicator'!$A$3:$AB$3, 0))=\"\", \"\",  INDEX('Full set Core Client Indicator'!$A$3:$AB$351, MATCH(Selection_Hide2!$A65, 'Full set Core Client Indicator'!$A$3:$A$351, 0), MATCH(Selection_Hide2!Z$5, 'Full set Core Client Indicator'!$A$3:$AB$3, 0))), \"\")","v":""},{"$f":"IF(Z65<>\"\", IF(INDEX('Full set Core Client Indicator'!$A$3:$AB$351, MATCH(Selection_Hide2!$A65, 'Full set Core Client Indicator'!$A$3:$A$351, 0), MATCH(Selection_Hide2!AA$5, 'Full set Core Client Indicator'!$A$3:$AB$3, 0))=\"\", \"\",  INDEX('Full set Core Client Indicator'!$A$3:$AB$351, MATCH(Selection_Hide2!$A65, 'Full set Core Client Indicator'!$A$3:$A$351, 0), MATCH(Selection_Hide2!AA$5, 'Full set Core Client Indicator'!$A$3:$AB$3, 0))), \"\")","v":""},{"$f":"IF(AA65<>\"\", IF(INDEX('Full set Core Client Indicator'!$A$3:$AB$351, MATCH(Selection_Hide2!$A65, 'Full set Core Client Indicator'!$A$3:$A$351, 0), MATCH(Selection_Hide2!AB$5, 'Full set Core Client Indicator'!$A$3:$AB$3, 0))=\"\", \"\",  INDEX('Full set Core Client Indicator'!$A$3:$AB$351, MATCH(Selection_Hide2!$A65, 'Full set Core Client Indicator'!$A$3:$A$351, 0), MATCH(Selection_Hide2!AB$5, 'Full set Core Client Indicator'!$A$3:$AB$3, 0))), \"\")","v":""}]
[{"$f":"IF(AND(Selection_Hide1!C64<>0, Selection_Hide1!C64<>\"Grand Total\"), Selection_Hide1!C64, \"\")","v":""},{"$f":"IF(A66<>\"\", IF(INDEX('Full set Core Client Indicator'!$A$3:$AB$351, MATCH(Selection_Hide2!$A66, 'Full set Core Client Indicator'!$A$3:$A$351, 0), MATCH(Selection_Hide2!B$5, 'Full set Core Client Indicator'!$A$3:$AB$3, 0))=\"\", \"\",  INDEX('Full set Core Client Indicator'!$A$3:$AB$351, MATCH(Selection_Hide2!$A66, 'Full set Core Client Indicator'!$A$3:$A$351, 0), MATCH(Selection_Hide2!B$5, 'Full set Core Client Indicator'!$A$3:$AB$3, 0))), \"\")","v":""},{"$f":"IF(B66<>\"\", IF(INDEX('Full set Core Client Indicator'!$A$3:$AB$351, MATCH(Selection_Hide2!$A66, 'Full set Core Client Indicator'!$A$3:$A$351, 0), MATCH(Selection_Hide2!C$5, 'Full set Core Client Indicator'!$A$3:$AB$3, 0))=\"\", \"\",  INDEX('Full set Core Client Indicator'!$A$3:$AB$351, MATCH(Selection_Hide2!$A66, 'Full set Core Client Indicator'!$A$3:$A$351, 0), MATCH(Selection_Hide2!C$5, 'Full set Core Client Indicator'!$A$3:$AB$3, 0))), \"\")","v":""},{"$f":"IF(C66<>\"\", IF(INDEX('Full set Core Client Indicator'!$A$3:$AB$351, MATCH(Selection_Hide2!$A66, 'Full set Core Client Indicator'!$A$3:$A$351, 0), MATCH(Selection_Hide2!D$5, 'Full set Core Client Indicator'!$A$3:$AB$3, 0))=\"\", \"\",  INDEX('Full set Core Client Indicator'!$A$3:$AB$351, MATCH(Selection_Hide2!$A66, 'Full set Core Client Indicator'!$A$3:$A$351, 0), MATCH(Selection_Hide2!D$5, 'Full set Core Client Indicator'!$A$3:$AB$3, 0))), \"\")","v":""},{"$f":"IF(D66<>\"\", IF(INDEX('Full set Core Client Indicator'!$A$3:$AB$351, MATCH(Selection_Hide2!$A66, 'Full set Core Client Indicator'!$A$3:$A$351, 0), MATCH(Selection_Hide2!E$5, 'Full set Core Client Indicator'!$A$3:$AB$3, 0))=\"\", \"\",  INDEX('Full set Core Client Indicator'!$A$3:$AB$351, MATCH(Selection_Hide2!$A66, 'Full set Core Client Indicator'!$A$3:$A$351, 0), MATCH(Selection_Hide2!E$5, 'Full set Core Client Indicator'!$A$3:$AB$3, 0))), \"\")","v":""},{"$f":"IF(E66<>\"\", IF(INDEX('Full set Core Client Indicator'!$A$3:$AB$351, MATCH(Selection_Hide2!$A66, 'Full set Core Client Indicator'!$A$3:$A$351, 0), MATCH(Selection_Hide2!F$5, 'Full set Core Client Indicator'!$A$3:$AB$3, 0))=\"\", \"\",  INDEX('Full set Core Client Indicator'!$A$3:$AB$351, MATCH(Selection_Hide2!$A66, 'Full set Core Client Indicator'!$A$3:$A$351, 0), MATCH(Selection_Hide2!F$5, 'Full set Core Client Indicator'!$A$3:$AB$3, 0))), \"\")","v":""},{"$f":"IF(F66<>\"\", IF(INDEX('Full set Core Client Indicator'!$A$3:$AB$351, MATCH(Selection_Hide2!$A66, 'Full set Core Client Indicator'!$A$3:$A$351, 0), MATCH(Selection_Hide2!G$5, 'Full set Core Client Indicator'!$A$3:$AB$3, 0))=\"\", \"\",  INDEX('Full set Core Client Indicator'!$A$3:$AB$351, MATCH(Selection_Hide2!$A66, 'Full set Core Client Indicator'!$A$3:$A$351, 0), MATCH(Selection_Hide2!G$5, 'Full set Core Client Indicator'!$A$3:$AB$3, 0))), \"\")","v":""},{"$f":"IF(G66<>\"\", IF(INDEX('Full set Core Client Indicator'!$A$3:$AB$351, MATCH(Selection_Hide2!$A66, 'Full set Core Client Indicator'!$A$3:$A$351, 0), MATCH(Selection_Hide2!H$5, 'Full set Core Client Indicator'!$A$3:$AB$3, 0))=\"\", \"\",  INDEX('Full set Core Client Indicator'!$A$3:$AB$351, MATCH(Selection_Hide2!$A66, 'Full set Core Client Indicator'!$A$3:$A$351, 0), MATCH(Selection_Hide2!H$5, 'Full set Core Client Indicator'!$A$3:$AB$3, 0))), \"\")","v":""},{"$f":"IF(H66<>\"\", IF(INDEX('Full set Core Client Indicator'!$A$3:$AB$351, MATCH(Selection_Hide2!$A66, 'Full set Core Client Indicator'!$A$3:$A$351, 0), MATCH(Selection_Hide2!I$5, 'Full set Core Client Indicator'!$A$3:$AB$3, 0))=\"\", \"\",  INDEX('Full set Core Client Indicator'!$A$3:$AB$351, MATCH(Selection_Hide2!$A66, 'Full set Core Client Indicator'!$A$3:$A$351, 0), MATCH(Selection_Hide2!I$5, 'Full set Core Client Indicator'!$A$3:$AB$3, 0))), \"\")","v":""},{"$f":"IF(I66<>\"\", IF(INDEX('Full set Core Client Indicator'!$A$3:$AB$351, MATCH(Selection_Hide2!$A66, 'Full set Core Client Indicator'!$A$3:$A$351, 0), MATCH(Selection_Hide2!J$5, 'Full set Core Client Indicator'!$A$3:$AB$3, 0))=\"\", \"\",  INDEX('Full set Core Client Indicator'!$A$3:$AB$351, MATCH(Selection_Hide2!$A66, 'Full set Core Client Indicator'!$A$3:$A$351, 0), MATCH(Selection_Hide2!J$5, 'Full set Core Client Indicator'!$A$3:$AB$3, 0))), \"\")","v":""},{"$f":"IF(J66<>\"\", IF(INDEX('Full set Core Client Indicator'!$A$3:$AB$351, MATCH(Selection_Hide2!$A66, 'Full set Core Client Indicator'!$A$3:$A$351, 0), MATCH(Selection_Hide2!K$5, 'Full set Core Client Indicator'!$A$3:$AB$3, 0))=\"\", \"\",  INDEX('Full set Core Client Indicator'!$A$3:$AB$351, MATCH(Selection_Hide2!$A66, 'Full set Core Client Indicator'!$A$3:$A$351, 0), MATCH(Selection_Hide2!K$5, 'Full set Core Client Indicator'!$A$3:$AB$3, 0))), \"\")","v":""},{"$f":"IF(K66<>\"\", IF(INDEX('Full set Core Client Indicator'!$A$3:$AB$351, MATCH(Selection_Hide2!$A66, 'Full set Core Client Indicator'!$A$3:$A$351, 0), MATCH(Selection_Hide2!L$5, 'Full set Core Client Indicator'!$A$3:$AB$3, 0))=\"\", \"\",  INDEX('Full set Core Client Indicator'!$A$3:$AB$351, MATCH(Selection_Hide2!$A66, 'Full set Core Client Indicator'!$A$3:$A$351, 0), MATCH(Selection_Hide2!L$5, 'Full set Core Client Indicator'!$A$3:$AB$3, 0))), \"\")","v":""},{"$f":"IF(L66<>\"\", IF(INDEX('Full set Core Client Indicator'!$A$3:$AB$351, MATCH(Selection_Hide2!$A66, 'Full set Core Client Indicator'!$A$3:$A$351, 0), MATCH(Selection_Hide2!M$5, 'Full set Core Client Indicator'!$A$3:$AB$3, 0))=\"\", \"\",  INDEX('Full set Core Client Indicator'!$A$3:$AB$351, MATCH(Selection_Hide2!$A66, 'Full set Core Client Indicator'!$A$3:$A$351, 0), MATCH(Selection_Hide2!M$5, 'Full set Core Client Indicator'!$A$3:$AB$3, 0))), \"\")","v":""},{"$f":"IF(M66<>\"\", IF(INDEX('Full set Core Client Indicator'!$A$3:$AB$351, MATCH(Selection_Hide2!$A66, 'Full set Core Client Indicator'!$A$3:$A$351, 0), MATCH(Selection_Hide2!N$5, 'Full set Core Client Indicator'!$A$3:$AB$3, 0))=\"\", \"\",  INDEX('Full set Core Client Indicator'!$A$3:$AB$351, MATCH(Selection_Hide2!$A66, 'Full set Core Client Indicator'!$A$3:$A$351, 0), MATCH(Selection_Hide2!N$5, 'Full set Core Client Indicator'!$A$3:$AB$3, 0))), \"\")","v":""},{"$f":"IF(N66<>\"\", IF(INDEX('Full set Core Client Indicator'!$A$3:$AB$351, MATCH(Selection_Hide2!$A66, 'Full set Core Client Indicator'!$A$3:$A$351, 0), MATCH(Selection_Hide2!O$5, 'Full set Core Client Indicator'!$A$3:$AB$3, 0))=\"\", \"\",  INDEX('Full set Core Client Indicator'!$A$3:$AB$351, MATCH(Selection_Hide2!$A66, 'Full set Core Client Indicator'!$A$3:$A$351, 0), MATCH(Selection_Hide2!O$5, 'Full set Core Client Indicator'!$A$3:$AB$3, 0))), \"\")","v":""},{"$f":"IF(O66<>\"\", IF(INDEX('Full set Core Client Indicator'!$A$3:$AB$351, MATCH(Selection_Hide2!$A66, 'Full set Core Client Indicator'!$A$3:$A$351, 0), MATCH(Selection_Hide2!P$5, 'Full set Core Client Indicator'!$A$3:$AB$3, 0))=\"\", \"\",  INDEX('Full set Core Client Indicator'!$A$3:$AB$351, MATCH(Selection_Hide2!$A66, 'Full set Core Client Indicator'!$A$3:$A$351, 0), MATCH(Selection_Hide2!P$5, 'Full set Core Client Indicator'!$A$3:$AB$3, 0))), \"\")","v":""},{"$f":"IF(P66<>\"\", IF(INDEX('Full set Core Client Indicator'!$A$3:$AB$351, MATCH(Selection_Hide2!$A66, 'Full set Core Client Indicator'!$A$3:$A$351, 0), MATCH(Selection_Hide2!Q$5, 'Full set Core Client Indicator'!$A$3:$AB$3, 0))=\"\", \"\",  INDEX('Full set Core Client Indicator'!$A$3:$AB$351, MATCH(Selection_Hide2!$A66, 'Full set Core Client Indicator'!$A$3:$A$351, 0), MATCH(Selection_Hide2!Q$5, 'Full set Core Client Indicator'!$A$3:$AB$3, 0))), \"\")","v":""},{"$f":"IF(Q66<>\"\", IF(INDEX('Full set Core Client Indicator'!$A$3:$AB$351, MATCH(Selection_Hide2!$A66, 'Full set Core Client Indicator'!$A$3:$A$351, 0), MATCH(Selection_Hide2!R$5, 'Full set Core Client Indicator'!$A$3:$AB$3, 0))=\"\", \"\",  INDEX('Full set Core Client Indicator'!$A$3:$AB$351, MATCH(Selection_Hide2!$A66, 'Full set Core Client Indicator'!$A$3:$A$351, 0), MATCH(Selection_Hide2!R$5, 'Full set Core Client Indicator'!$A$3:$AB$3, 0))), \"\")","v":""},{"$f":"IF(R66<>\"\", IF(INDEX('Full set Core Client Indicator'!$A$3:$AB$351, MATCH(Selection_Hide2!$A66, 'Full set Core Client Indicator'!$A$3:$A$351, 0), MATCH(Selection_Hide2!S$5, 'Full set Core Client Indicator'!$A$3:$AB$3, 0))=\"\", \"\",  INDEX('Full set Core Client Indicator'!$A$3:$AB$351, MATCH(Selection_Hide2!$A66, 'Full set Core Client Indicator'!$A$3:$A$351, 0), MATCH(Selection_Hide2!S$5, 'Full set Core Client Indicator'!$A$3:$AB$3, 0))), \"\")","v":""},{"$f":"IF(S66<>\"\", IF(INDEX('Full set Core Client Indicator'!$A$3:$AB$351, MATCH(Selection_Hide2!$A66, 'Full set Core Client Indicator'!$A$3:$A$351, 0), MATCH(Selection_Hide2!T$5, 'Full set Core Client Indicator'!$A$3:$AB$3, 0))=\"\", \"\",  INDEX('Full set Core Client Indicator'!$A$3:$AB$351, MATCH(Selection_Hide2!$A66, 'Full set Core Client Indicator'!$A$3:$A$351, 0), MATCH(Selection_Hide2!T$5, 'Full set Core Client Indicator'!$A$3:$AB$3, 0))), \"\")","v":""},{"$f":"IF(T66<>\"\", IF(INDEX('Full set Core Client Indicator'!$A$3:$AB$351, MATCH(Selection_Hide2!$A66, 'Full set Core Client Indicator'!$A$3:$A$351, 0), MATCH(Selection_Hide2!U$5, 'Full set Core Client Indicator'!$A$3:$AB$3, 0))=\"\", \"\",  INDEX('Full set Core Client Indicator'!$A$3:$AB$351, MATCH(Selection_Hide2!$A66, 'Full set Core Client Indicator'!$A$3:$A$351, 0), MATCH(Selection_Hide2!U$5, 'Full set Core Client Indicator'!$A$3:$AB$3, 0))), \"\")","v":""},{"$f":"IF(U66<>\"\", IF(INDEX('Full set Core Client Indicator'!$A$3:$AB$351, MATCH(Selection_Hide2!$A66, 'Full set Core Client Indicator'!$A$3:$A$351, 0), MATCH(Selection_Hide2!V$5, 'Full set Core Client Indicator'!$A$3:$AB$3, 0))=\"\", \"\",  INDEX('Full set Core Client Indicator'!$A$3:$AB$351, MATCH(Selection_Hide2!$A66, 'Full set Core Client Indicator'!$A$3:$A$351, 0), MATCH(Selection_Hide2!V$5, 'Full set Core Client Indicator'!$A$3:$AB$3, 0))), \"\")","v":""},{"$f":"IF(V66<>\"\", IF(INDEX('Full set Core Client Indicator'!$A$3:$AB$351, MATCH(Selection_Hide2!$A66, 'Full set Core Client Indicator'!$A$3:$A$351, 0), MATCH(Selection_Hide2!W$5, 'Full set Core Client Indicator'!$A$3:$AB$3, 0))=\"\", \"\",  INDEX('Full set Core Client Indicator'!$A$3:$AB$351, MATCH(Selection_Hide2!$A66, 'Full set Core Client Indicator'!$A$3:$A$351, 0), MATCH(Selection_Hide2!W$5, 'Full set Core Client Indicator'!$A$3:$AB$3, 0))), \"\")","v":""},{"$f":"IF(W66<>\"\", IF(INDEX('Full set Core Client Indicator'!$A$3:$AB$351, MATCH(Selection_Hide2!$A66, 'Full set Core Client Indicator'!$A$3:$A$351, 0), MATCH(Selection_Hide2!X$5, 'Full set Core Client Indicator'!$A$3:$AB$3, 0))=\"\", \"\",  INDEX('Full set Core Client Indicator'!$A$3:$AB$351, MATCH(Selection_Hide2!$A66, 'Full set Core Client Indicator'!$A$3:$A$351, 0), MATCH(Selection_Hide2!X$5, 'Full set Core Client Indicator'!$A$3:$AB$3, 0))), \"\")","v":""},{"$f":"IF(X66<>\"\", IF(INDEX('Full set Core Client Indicator'!$A$3:$AB$351, MATCH(Selection_Hide2!$A66, 'Full set Core Client Indicator'!$A$3:$A$351, 0), MATCH(Selection_Hide2!Y$5, 'Full set Core Client Indicator'!$A$3:$AB$3, 0))=\"\", \"\",  INDEX('Full set Core Client Indicator'!$A$3:$AB$351, MATCH(Selection_Hide2!$A66, 'Full set Core Client Indicator'!$A$3:$A$351, 0), MATCH(Selection_Hide2!Y$5, 'Full set Core Client Indicator'!$A$3:$AB$3, 0))), \"\")","v":""},{"$f":"IF(Y66<>\"\", IF(INDEX('Full set Core Client Indicator'!$A$3:$AB$351, MATCH(Selection_Hide2!$A66, 'Full set Core Client Indicator'!$A$3:$A$351, 0), MATCH(Selection_Hide2!Z$5, 'Full set Core Client Indicator'!$A$3:$AB$3, 0))=\"\", \"\",  INDEX('Full set Core Client Indicator'!$A$3:$AB$351, MATCH(Selection_Hide2!$A66, 'Full set Core Client Indicator'!$A$3:$A$351, 0), MATCH(Selection_Hide2!Z$5, 'Full set Core Client Indicator'!$A$3:$AB$3, 0))), \"\")","v":""},{"$f":"IF(Z66<>\"\", IF(INDEX('Full set Core Client Indicator'!$A$3:$AB$351, MATCH(Selection_Hide2!$A66, 'Full set Core Client Indicator'!$A$3:$A$351, 0), MATCH(Selection_Hide2!AA$5, 'Full set Core Client Indicator'!$A$3:$AB$3, 0))=\"\", \"\",  INDEX('Full set Core Client Indicator'!$A$3:$AB$351, MATCH(Selection_Hide2!$A66, 'Full set Core Client Indicator'!$A$3:$A$351, 0), MATCH(Selection_Hide2!AA$5, 'Full set Core Client Indicator'!$A$3:$AB$3, 0))), \"\")","v":""},{"$f":"IF(AA66<>\"\", IF(INDEX('Full set Core Client Indicator'!$A$3:$AB$351, MATCH(Selection_Hide2!$A66, 'Full set Core Client Indicator'!$A$3:$A$351, 0), MATCH(Selection_Hide2!AB$5, 'Full set Core Client Indicator'!$A$3:$AB$3, 0))=\"\", \"\",  INDEX('Full set Core Client Indicator'!$A$3:$AB$351, MATCH(Selection_Hide2!$A66, 'Full set Core Client Indicator'!$A$3:$A$351, 0), MATCH(Selection_Hide2!AB$5, 'Full set Core Client Indicator'!$A$3:$AB$3, 0))), \"\")","v":""}]
[{"$f":"IF(AND(Selection_Hide1!C65<>0, Selection_Hide1!C65<>\"Grand Total\"), Selection_Hide1!C65, \"\")","v":""},{"$f":"IF(A67<>\"\", IF(INDEX('Full set Core Client Indicator'!$A$3:$AB$351, MATCH(Selection_Hide2!$A67, 'Full set Core Client Indicator'!$A$3:$A$351, 0), MATCH(Selection_Hide2!B$5, 'Full set Core Client Indicator'!$A$3:$AB$3, 0))=\"\", \"\",  INDEX('Full set Core Client Indicator'!$A$3:$AB$351, MATCH(Selection_Hide2!$A67, 'Full set Core Client Indicator'!$A$3:$A$351, 0), MATCH(Selection_Hide2!B$5, 'Full set Core Client Indicator'!$A$3:$AB$3, 0))), \"\")","v":""},{"$f":"IF(B67<>\"\", IF(INDEX('Full set Core Client Indicator'!$A$3:$AB$351, MATCH(Selection_Hide2!$A67, 'Full set Core Client Indicator'!$A$3:$A$351, 0), MATCH(Selection_Hide2!C$5, 'Full set Core Client Indicator'!$A$3:$AB$3, 0))=\"\", \"\",  INDEX('Full set Core Client Indicator'!$A$3:$AB$351, MATCH(Selection_Hide2!$A67, 'Full set Core Client Indicator'!$A$3:$A$351, 0), MATCH(Selection_Hide2!C$5, 'Full set Core Client Indicator'!$A$3:$AB$3, 0))), \"\")","v":""},{"$f":"IF(C67<>\"\", IF(INDEX('Full set Core Client Indicator'!$A$3:$AB$351, MATCH(Selection_Hide2!$A67, 'Full set Core Client Indicator'!$A$3:$A$351, 0), MATCH(Selection_Hide2!D$5, 'Full set Core Client Indicator'!$A$3:$AB$3, 0))=\"\", \"\",  INDEX('Full set Core Client Indicator'!$A$3:$AB$351, MATCH(Selection_Hide2!$A67, 'Full set Core Client Indicator'!$A$3:$A$351, 0), MATCH(Selection_Hide2!D$5, 'Full set Core Client Indicator'!$A$3:$AB$3, 0))), \"\")","v":""},{"$f":"IF(D67<>\"\", IF(INDEX('Full set Core Client Indicator'!$A$3:$AB$351, MATCH(Selection_Hide2!$A67, 'Full set Core Client Indicator'!$A$3:$A$351, 0), MATCH(Selection_Hide2!E$5, 'Full set Core Client Indicator'!$A$3:$AB$3, 0))=\"\", \"\",  INDEX('Full set Core Client Indicator'!$A$3:$AB$351, MATCH(Selection_Hide2!$A67, 'Full set Core Client Indicator'!$A$3:$A$351, 0), MATCH(Selection_Hide2!E$5, 'Full set Core Client Indicator'!$A$3:$AB$3, 0))), \"\")","v":""},{"$f":"IF(E67<>\"\", IF(INDEX('Full set Core Client Indicator'!$A$3:$AB$351, MATCH(Selection_Hide2!$A67, 'Full set Core Client Indicator'!$A$3:$A$351, 0), MATCH(Selection_Hide2!F$5, 'Full set Core Client Indicator'!$A$3:$AB$3, 0))=\"\", \"\",  INDEX('Full set Core Client Indicator'!$A$3:$AB$351, MATCH(Selection_Hide2!$A67, 'Full set Core Client Indicator'!$A$3:$A$351, 0), MATCH(Selection_Hide2!F$5, 'Full set Core Client Indicator'!$A$3:$AB$3, 0))), \"\")","v":""},{"$f":"IF(F67<>\"\", IF(INDEX('Full set Core Client Indicator'!$A$3:$AB$351, MATCH(Selection_Hide2!$A67, 'Full set Core Client Indicator'!$A$3:$A$351, 0), MATCH(Selection_Hide2!G$5, 'Full set Core Client Indicator'!$A$3:$AB$3, 0))=\"\", \"\",  INDEX('Full set Core Client Indicator'!$A$3:$AB$351, MATCH(Selection_Hide2!$A67, 'Full set Core Client Indicator'!$A$3:$A$351, 0), MATCH(Selection_Hide2!G$5, 'Full set Core Client Indicator'!$A$3:$AB$3, 0))), \"\")","v":""},{"$f":"IF(G67<>\"\", IF(INDEX('Full set Core Client Indicator'!$A$3:$AB$351, MATCH(Selection_Hide2!$A67, 'Full set Core Client Indicator'!$A$3:$A$351, 0), MATCH(Selection_Hide2!H$5, 'Full set Core Client Indicator'!$A$3:$AB$3, 0))=\"\", \"\",  INDEX('Full set Core Client Indicator'!$A$3:$AB$351, MATCH(Selection_Hide2!$A67, 'Full set Core Client Indicator'!$A$3:$A$351, 0), MATCH(Selection_Hide2!H$5, 'Full set Core Client Indicator'!$A$3:$AB$3, 0))), \"\")","v":""},{"$f":"IF(H67<>\"\", IF(INDEX('Full set Core Client Indicator'!$A$3:$AB$351, MATCH(Selection_Hide2!$A67, 'Full set Core Client Indicator'!$A$3:$A$351, 0), MATCH(Selection_Hide2!I$5, 'Full set Core Client Indicator'!$A$3:$AB$3, 0))=\"\", \"\",  INDEX('Full set Core Client Indicator'!$A$3:$AB$351, MATCH(Selection_Hide2!$A67, 'Full set Core Client Indicator'!$A$3:$A$351, 0), MATCH(Selection_Hide2!I$5, 'Full set Core Client Indicator'!$A$3:$AB$3, 0))), \"\")","v":""},{"$f":"IF(I67<>\"\", IF(INDEX('Full set Core Client Indicator'!$A$3:$AB$351, MATCH(Selection_Hide2!$A67, 'Full set Core Client Indicator'!$A$3:$A$351, 0), MATCH(Selection_Hide2!J$5, 'Full set Core Client Indicator'!$A$3:$AB$3, 0))=\"\", \"\",  INDEX('Full set Core Client Indicator'!$A$3:$AB$351, MATCH(Selection_Hide2!$A67, 'Full set Core Client Indicator'!$A$3:$A$351, 0), MATCH(Selection_Hide2!J$5, 'Full set Core Client Indicator'!$A$3:$AB$3, 0))), \"\")","v":""},{"$f":"IF(J67<>\"\", IF(INDEX('Full set Core Client Indicator'!$A$3:$AB$351, MATCH(Selection_Hide2!$A67, 'Full set Core Client Indicator'!$A$3:$A$351, 0), MATCH(Selection_Hide2!K$5, 'Full set Core Client Indicator'!$A$3:$AB$3, 0))=\"\", \"\",  INDEX('Full set Core Client Indicator'!$A$3:$AB$351, MATCH(Selection_Hide2!$A67, 'Full set Core Client Indicator'!$A$3:$A$351, 0), MATCH(Selection_Hide2!K$5, 'Full set Core Client Indicator'!$A$3:$AB$3, 0))), \"\")","v":""},{"$f":"IF(K67<>\"\", IF(INDEX('Full set Core Client Indicator'!$A$3:$AB$351, MATCH(Selection_Hide2!$A67, 'Full set Core Client Indicator'!$A$3:$A$351, 0), MATCH(Selection_Hide2!L$5, 'Full set Core Client Indicator'!$A$3:$AB$3, 0))=\"\", \"\",  INDEX('Full set Core Client Indicator'!$A$3:$AB$351, MATCH(Selection_Hide2!$A67, 'Full set Core Client Indicator'!$A$3:$A$351, 0), MATCH(Selection_Hide2!L$5, 'Full set Core Client Indicator'!$A$3:$AB$3, 0))), \"\")","v":""},{"$f":"IF(L67<>\"\", IF(INDEX('Full set Core Client Indicator'!$A$3:$AB$351, MATCH(Selection_Hide2!$A67, 'Full set Core Client Indicator'!$A$3:$A$351, 0), MATCH(Selection_Hide2!M$5, 'Full set Core Client Indicator'!$A$3:$AB$3, 0))=\"\", \"\",  INDEX('Full set Core Client Indicator'!$A$3:$AB$351, MATCH(Selection_Hide2!$A67, 'Full set Core Client Indicator'!$A$3:$A$351, 0), MATCH(Selection_Hide2!M$5, 'Full set Core Client Indicator'!$A$3:$AB$3, 0))), \"\")","v":""},{"$f":"IF(M67<>\"\", IF(INDEX('Full set Core Client Indicator'!$A$3:$AB$351, MATCH(Selection_Hide2!$A67, 'Full set Core Client Indicator'!$A$3:$A$351, 0), MATCH(Selection_Hide2!N$5, 'Full set Core Client Indicator'!$A$3:$AB$3, 0))=\"\", \"\",  INDEX('Full set Core Client Indicator'!$A$3:$AB$351, MATCH(Selection_Hide2!$A67, 'Full set Core Client Indicator'!$A$3:$A$351, 0), MATCH(Selection_Hide2!N$5, 'Full set Core Client Indicator'!$A$3:$AB$3, 0))), \"\")","v":""},{"$f":"IF(N67<>\"\", IF(INDEX('Full set Core Client Indicator'!$A$3:$AB$351, MATCH(Selection_Hide2!$A67, 'Full set Core Client Indicator'!$A$3:$A$351, 0), MATCH(Selection_Hide2!O$5, 'Full set Core Client Indicator'!$A$3:$AB$3, 0))=\"\", \"\",  INDEX('Full set Core Client Indicator'!$A$3:$AB$351, MATCH(Selection_Hide2!$A67, 'Full set Core Client Indicator'!$A$3:$A$351, 0), MATCH(Selection_Hide2!O$5, 'Full set Core Client Indicator'!$A$3:$AB$3, 0))), \"\")","v":""},{"$f":"IF(O67<>\"\", IF(INDEX('Full set Core Client Indicator'!$A$3:$AB$351, MATCH(Selection_Hide2!$A67, 'Full set Core Client Indicator'!$A$3:$A$351, 0), MATCH(Selection_Hide2!P$5, 'Full set Core Client Indicator'!$A$3:$AB$3, 0))=\"\", \"\",  INDEX('Full set Core Client Indicator'!$A$3:$AB$351, MATCH(Selection_Hide2!$A67, 'Full set Core Client Indicator'!$A$3:$A$351, 0), MATCH(Selection_Hide2!P$5, 'Full set Core Client Indicator'!$A$3:$AB$3, 0))), \"\")","v":""},{"$f":"IF(P67<>\"\", IF(INDEX('Full set Core Client Indicator'!$A$3:$AB$351, MATCH(Selection_Hide2!$A67, 'Full set Core Client Indicator'!$A$3:$A$351, 0), MATCH(Selection_Hide2!Q$5, 'Full set Core Client Indicator'!$A$3:$AB$3, 0))=\"\", \"\",  INDEX('Full set Core Client Indicator'!$A$3:$AB$351, MATCH(Selection_Hide2!$A67, 'Full set Core Client Indicator'!$A$3:$A$351, 0), MATCH(Selection_Hide2!Q$5, 'Full set Core Client Indicator'!$A$3:$AB$3, 0))), \"\")","v":""},{"$f":"IF(Q67<>\"\", IF(INDEX('Full set Core Client Indicator'!$A$3:$AB$351, MATCH(Selection_Hide2!$A67, 'Full set Core Client Indicator'!$A$3:$A$351, 0), MATCH(Selection_Hide2!R$5, 'Full set Core Client Indicator'!$A$3:$AB$3, 0))=\"\", \"\",  INDEX('Full set Core Client Indicator'!$A$3:$AB$351, MATCH(Selection_Hide2!$A67, 'Full set Core Client Indicator'!$A$3:$A$351, 0), MATCH(Selection_Hide2!R$5, 'Full set Core Client Indicator'!$A$3:$AB$3, 0))), \"\")","v":""},{"$f":"IF(R67<>\"\", IF(INDEX('Full set Core Client Indicator'!$A$3:$AB$351, MATCH(Selection_Hide2!$A67, 'Full set Core Client Indicator'!$A$3:$A$351, 0), MATCH(Selection_Hide2!S$5, 'Full set Core Client Indicator'!$A$3:$AB$3, 0))=\"\", \"\",  INDEX('Full set Core Client Indicator'!$A$3:$AB$351, MATCH(Selection_Hide2!$A67, 'Full set Core Client Indicator'!$A$3:$A$351, 0), MATCH(Selection_Hide2!S$5, 'Full set Core Client Indicator'!$A$3:$AB$3, 0))), \"\")","v":""},{"$f":"IF(S67<>\"\", IF(INDEX('Full set Core Client Indicator'!$A$3:$AB$351, MATCH(Selection_Hide2!$A67, 'Full set Core Client Indicator'!$A$3:$A$351, 0), MATCH(Selection_Hide2!T$5, 'Full set Core Client Indicator'!$A$3:$AB$3, 0))=\"\", \"\",  INDEX('Full set Core Client Indicator'!$A$3:$AB$351, MATCH(Selection_Hide2!$A67, 'Full set Core Client Indicator'!$A$3:$A$351, 0), MATCH(Selection_Hide2!T$5, 'Full set Core Client Indicator'!$A$3:$AB$3, 0))), \"\")","v":""},{"$f":"IF(T67<>\"\", IF(INDEX('Full set Core Client Indicator'!$A$3:$AB$351, MATCH(Selection_Hide2!$A67, 'Full set Core Client Indicator'!$A$3:$A$351, 0), MATCH(Selection_Hide2!U$5, 'Full set Core Client Indicator'!$A$3:$AB$3, 0))=\"\", \"\",  INDEX('Full set Core Client Indicator'!$A$3:$AB$351, MATCH(Selection_Hide2!$A67, 'Full set Core Client Indicator'!$A$3:$A$351, 0), MATCH(Selection_Hide2!U$5, 'Full set Core Client Indicator'!$A$3:$AB$3, 0))), \"\")","v":""},{"$f":"IF(U67<>\"\", IF(INDEX('Full set Core Client Indicator'!$A$3:$AB$351, MATCH(Selection_Hide2!$A67, 'Full set Core Client Indicator'!$A$3:$A$351, 0), MATCH(Selection_Hide2!V$5, 'Full set Core Client Indicator'!$A$3:$AB$3, 0))=\"\", \"\",  INDEX('Full set Core Client Indicator'!$A$3:$AB$351, MATCH(Selection_Hide2!$A67, 'Full set Core Client Indicator'!$A$3:$A$351, 0), MATCH(Selection_Hide2!V$5, 'Full set Core Client Indicator'!$A$3:$AB$3, 0))), \"\")","v":""},{"$f":"IF(V67<>\"\", IF(INDEX('Full set Core Client Indicator'!$A$3:$AB$351, MATCH(Selection_Hide2!$A67, 'Full set Core Client Indicator'!$A$3:$A$351, 0), MATCH(Selection_Hide2!W$5, 'Full set Core Client Indicator'!$A$3:$AB$3, 0))=\"\", \"\",  INDEX('Full set Core Client Indicator'!$A$3:$AB$351, MATCH(Selection_Hide2!$A67, 'Full set Core Client Indicator'!$A$3:$A$351, 0), MATCH(Selection_Hide2!W$5, 'Full set Core Client Indicator'!$A$3:$AB$3, 0))), \"\")","v":""},{"$f":"IF(W67<>\"\", IF(INDEX('Full set Core Client Indicator'!$A$3:$AB$351, MATCH(Selection_Hide2!$A67, 'Full set Core Client Indicator'!$A$3:$A$351, 0), MATCH(Selection_Hide2!X$5, 'Full set Core Client Indicator'!$A$3:$AB$3, 0))=\"\", \"\",  INDEX('Full set Core Client Indicator'!$A$3:$AB$351, MATCH(Selection_Hide2!$A67, 'Full set Core Client Indicator'!$A$3:$A$351, 0), MATCH(Selection_Hide2!X$5, 'Full set Core Client Indicator'!$A$3:$AB$3, 0))), \"\")","v":""},{"$f":"IF(X67<>\"\", IF(INDEX('Full set Core Client Indicator'!$A$3:$AB$351, MATCH(Selection_Hide2!$A67, 'Full set Core Client Indicator'!$A$3:$A$351, 0), MATCH(Selection_Hide2!Y$5, 'Full set Core Client Indicator'!$A$3:$AB$3, 0))=\"\", \"\",  INDEX('Full set Core Client Indicator'!$A$3:$AB$351, MATCH(Selection_Hide2!$A67, 'Full set Core Client Indicator'!$A$3:$A$351, 0), MATCH(Selection_Hide2!Y$5, 'Full set Core Client Indicator'!$A$3:$AB$3, 0))), \"\")","v":""},{"$f":"IF(Y67<>\"\", IF(INDEX('Full set Core Client Indicator'!$A$3:$AB$351, MATCH(Selection_Hide2!$A67, 'Full set Core Client Indicator'!$A$3:$A$351, 0), MATCH(Selection_Hide2!Z$5, 'Full set Core Client Indicator'!$A$3:$AB$3, 0))=\"\", \"\",  INDEX('Full set Core Client Indicator'!$A$3:$AB$351, MATCH(Selection_Hide2!$A67, 'Full set Core Client Indicator'!$A$3:$A$351, 0), MATCH(Selection_Hide2!Z$5, 'Full set Core Client Indicator'!$A$3:$AB$3, 0))), \"\")","v":""},{"$f":"IF(Z67<>\"\", IF(INDEX('Full set Core Client Indicator'!$A$3:$AB$351, MATCH(Selection_Hide2!$A67, 'Full set Core Client Indicator'!$A$3:$A$351, 0), MATCH(Selection_Hide2!AA$5, 'Full set Core Client Indicator'!$A$3:$AB$3, 0))=\"\", \"\",  INDEX('Full set Core Client Indicator'!$A$3:$AB$351, MATCH(Selection_Hide2!$A67, 'Full set Core Client Indicator'!$A$3:$A$351, 0), MATCH(Selection_Hide2!AA$5, 'Full set Core Client Indicator'!$A$3:$AB$3, 0))), \"\")","v":""},{"$f":"IF(AA67<>\"\", IF(INDEX('Full set Core Client Indicator'!$A$3:$AB$351, MATCH(Selection_Hide2!$A67, 'Full set Core Client Indicator'!$A$3:$A$351, 0), MATCH(Selection_Hide2!AB$5, 'Full set Core Client Indicator'!$A$3:$AB$3, 0))=\"\", \"\",  INDEX('Full set Core Client Indicator'!$A$3:$AB$351, MATCH(Selection_Hide2!$A67, 'Full set Core Client Indicator'!$A$3:$A$351, 0), MATCH(Selection_Hide2!AB$5, 'Full set Core Client Indicator'!$A$3:$AB$3, 0))), \"\")","v":""}]
[{"$f":"IF(AND(Selection_Hide1!C66<>0, Selection_Hide1!C66<>\"Grand Total\"), Selection_Hide1!C66, \"\")","v":""},{"$f":"IF(A68<>\"\", IF(INDEX('Full set Core Client Indicator'!$A$3:$AB$351, MATCH(Selection_Hide2!$A68, 'Full set Core Client Indicator'!$A$3:$A$351, 0), MATCH(Selection_Hide2!B$5, 'Full set Core Client Indicator'!$A$3:$AB$3, 0))=\"\", \"\",  INDEX('Full set Core Client Indicator'!$A$3:$AB$351, MATCH(Selection_Hide2!$A68, 'Full set Core Client Indicator'!$A$3:$A$351, 0), MATCH(Selection_Hide2!B$5, 'Full set Core Client Indicator'!$A$3:$AB$3, 0))), \"\")","v":""},{"$f":"IF(B68<>\"\", IF(INDEX('Full set Core Client Indicator'!$A$3:$AB$351, MATCH(Selection_Hide2!$A68, 'Full set Core Client Indicator'!$A$3:$A$351, 0), MATCH(Selection_Hide2!C$5, 'Full set Core Client Indicator'!$A$3:$AB$3, 0))=\"\", \"\",  INDEX('Full set Core Client Indicator'!$A$3:$AB$351, MATCH(Selection_Hide2!$A68, 'Full set Core Client Indicator'!$A$3:$A$351, 0), MATCH(Selection_Hide2!C$5, 'Full set Core Client Indicator'!$A$3:$AB$3, 0))), \"\")","v":""},{"$f":"IF(C68<>\"\", IF(INDEX('Full set Core Client Indicator'!$A$3:$AB$351, MATCH(Selection_Hide2!$A68, 'Full set Core Client Indicator'!$A$3:$A$351, 0), MATCH(Selection_Hide2!D$5, 'Full set Core Client Indicator'!$A$3:$AB$3, 0))=\"\", \"\",  INDEX('Full set Core Client Indicator'!$A$3:$AB$351, MATCH(Selection_Hide2!$A68, 'Full set Core Client Indicator'!$A$3:$A$351, 0), MATCH(Selection_Hide2!D$5, 'Full set Core Client Indicator'!$A$3:$AB$3, 0))), \"\")","v":""},{"$f":"IF(D68<>\"\", IF(INDEX('Full set Core Client Indicator'!$A$3:$AB$351, MATCH(Selection_Hide2!$A68, 'Full set Core Client Indicator'!$A$3:$A$351, 0), MATCH(Selection_Hide2!E$5, 'Full set Core Client Indicator'!$A$3:$AB$3, 0))=\"\", \"\",  INDEX('Full set Core Client Indicator'!$A$3:$AB$351, MATCH(Selection_Hide2!$A68, 'Full set Core Client Indicator'!$A$3:$A$351, 0), MATCH(Selection_Hide2!E$5, 'Full set Core Client Indicator'!$A$3:$AB$3, 0))), \"\")","v":""},{"$f":"IF(E68<>\"\", IF(INDEX('Full set Core Client Indicator'!$A$3:$AB$351, MATCH(Selection_Hide2!$A68, 'Full set Core Client Indicator'!$A$3:$A$351, 0), MATCH(Selection_Hide2!F$5, 'Full set Core Client Indicator'!$A$3:$AB$3, 0))=\"\", \"\",  INDEX('Full set Core Client Indicator'!$A$3:$AB$351, MATCH(Selection_Hide2!$A68, 'Full set Core Client Indicator'!$A$3:$A$351, 0), MATCH(Selection_Hide2!F$5, 'Full set Core Client Indicator'!$A$3:$AB$3, 0))), \"\")","v":""},{"$f":"IF(F68<>\"\", IF(INDEX('Full set Core Client Indicator'!$A$3:$AB$351, MATCH(Selection_Hide2!$A68, 'Full set Core Client Indicator'!$A$3:$A$351, 0), MATCH(Selection_Hide2!G$5, 'Full set Core Client Indicator'!$A$3:$AB$3, 0))=\"\", \"\",  INDEX('Full set Core Client Indicator'!$A$3:$AB$351, MATCH(Selection_Hide2!$A68, 'Full set Core Client Indicator'!$A$3:$A$351, 0), MATCH(Selection_Hide2!G$5, 'Full set Core Client Indicator'!$A$3:$AB$3, 0))), \"\")","v":""},{"$f":"IF(G68<>\"\", IF(INDEX('Full set Core Client Indicator'!$A$3:$AB$351, MATCH(Selection_Hide2!$A68, 'Full set Core Client Indicator'!$A$3:$A$351, 0), MATCH(Selection_Hide2!H$5, 'Full set Core Client Indicator'!$A$3:$AB$3, 0))=\"\", \"\",  INDEX('Full set Core Client Indicator'!$A$3:$AB$351, MATCH(Selection_Hide2!$A68, 'Full set Core Client Indicator'!$A$3:$A$351, 0), MATCH(Selection_Hide2!H$5, 'Full set Core Client Indicator'!$A$3:$AB$3, 0))), \"\")","v":""},{"$f":"IF(H68<>\"\", IF(INDEX('Full set Core Client Indicator'!$A$3:$AB$351, MATCH(Selection_Hide2!$A68, 'Full set Core Client Indicator'!$A$3:$A$351, 0), MATCH(Selection_Hide2!I$5, 'Full set Core Client Indicator'!$A$3:$AB$3, 0))=\"\", \"\",  INDEX('Full set Core Client Indicator'!$A$3:$AB$351, MATCH(Selection_Hide2!$A68, 'Full set Core Client Indicator'!$A$3:$A$351, 0), MATCH(Selection_Hide2!I$5, 'Full set Core Client Indicator'!$A$3:$AB$3, 0))), \"\")","v":""},{"$f":"IF(I68<>\"\", IF(INDEX('Full set Core Client Indicator'!$A$3:$AB$351, MATCH(Selection_Hide2!$A68, 'Full set Core Client Indicator'!$A$3:$A$351, 0), MATCH(Selection_Hide2!J$5, 'Full set Core Client Indicator'!$A$3:$AB$3, 0))=\"\", \"\",  INDEX('Full set Core Client Indicator'!$A$3:$AB$351, MATCH(Selection_Hide2!$A68, 'Full set Core Client Indicator'!$A$3:$A$351, 0), MATCH(Selection_Hide2!J$5, 'Full set Core Client Indicator'!$A$3:$AB$3, 0))), \"\")","v":""},{"$f":"IF(J68<>\"\", IF(INDEX('Full set Core Client Indicator'!$A$3:$AB$351, MATCH(Selection_Hide2!$A68, 'Full set Core Client Indicator'!$A$3:$A$351, 0), MATCH(Selection_Hide2!K$5, 'Full set Core Client Indicator'!$A$3:$AB$3, 0))=\"\", \"\",  INDEX('Full set Core Client Indicator'!$A$3:$AB$351, MATCH(Selection_Hide2!$A68, 'Full set Core Client Indicator'!$A$3:$A$351, 0), MATCH(Selection_Hide2!K$5, 'Full set Core Client Indicator'!$A$3:$AB$3, 0))), \"\")","v":""},{"$f":"IF(K68<>\"\", IF(INDEX('Full set Core Client Indicator'!$A$3:$AB$351, MATCH(Selection_Hide2!$A68, 'Full set Core Client Indicator'!$A$3:$A$351, 0), MATCH(Selection_Hide2!L$5, 'Full set Core Client Indicator'!$A$3:$AB$3, 0))=\"\", \"\",  INDEX('Full set Core Client Indicator'!$A$3:$AB$351, MATCH(Selection_Hide2!$A68, 'Full set Core Client Indicator'!$A$3:$A$351, 0), MATCH(Selection_Hide2!L$5, 'Full set Core Client Indicator'!$A$3:$AB$3, 0))), \"\")","v":""},{"$f":"IF(L68<>\"\", IF(INDEX('Full set Core Client Indicator'!$A$3:$AB$351, MATCH(Selection_Hide2!$A68, 'Full set Core Client Indicator'!$A$3:$A$351, 0), MATCH(Selection_Hide2!M$5, 'Full set Core Client Indicator'!$A$3:$AB$3, 0))=\"\", \"\",  INDEX('Full set Core Client Indicator'!$A$3:$AB$351, MATCH(Selection_Hide2!$A68, 'Full set Core Client Indicator'!$A$3:$A$351, 0), MATCH(Selection_Hide2!M$5, 'Full set Core Client Indicator'!$A$3:$AB$3, 0))), \"\")","v":""},{"$f":"IF(M68<>\"\", IF(INDEX('Full set Core Client Indicator'!$A$3:$AB$351, MATCH(Selection_Hide2!$A68, 'Full set Core Client Indicator'!$A$3:$A$351, 0), MATCH(Selection_Hide2!N$5, 'Full set Core Client Indicator'!$A$3:$AB$3, 0))=\"\", \"\",  INDEX('Full set Core Client Indicator'!$A$3:$AB$351, MATCH(Selection_Hide2!$A68, 'Full set Core Client Indicator'!$A$3:$A$351, 0), MATCH(Selection_Hide2!N$5, 'Full set Core Client Indicator'!$A$3:$AB$3, 0))), \"\")","v":""},{"$f":"IF(N68<>\"\", IF(INDEX('Full set Core Client Indicator'!$A$3:$AB$351, MATCH(Selection_Hide2!$A68, 'Full set Core Client Indicator'!$A$3:$A$351, 0), MATCH(Selection_Hide2!O$5, 'Full set Core Client Indicator'!$A$3:$AB$3, 0))=\"\", \"\",  INDEX('Full set Core Client Indicator'!$A$3:$AB$351, MATCH(Selection_Hide2!$A68, 'Full set Core Client Indicator'!$A$3:$A$351, 0), MATCH(Selection_Hide2!O$5, 'Full set Core Client Indicator'!$A$3:$AB$3, 0))), \"\")","v":""},{"$f":"IF(O68<>\"\", IF(INDEX('Full set Core Client Indicator'!$A$3:$AB$351, MATCH(Selection_Hide2!$A68, 'Full set Core Client Indicator'!$A$3:$A$351, 0), MATCH(Selection_Hide2!P$5, 'Full set Core Client Indicator'!$A$3:$AB$3, 0))=\"\", \"\",  INDEX('Full set Core Client Indicator'!$A$3:$AB$351, MATCH(Selection_Hide2!$A68, 'Full set Core Client Indicator'!$A$3:$A$351, 0), MATCH(Selection_Hide2!P$5, 'Full set Core Client Indicator'!$A$3:$AB$3, 0))), \"\")","v":""},{"$f":"IF(P68<>\"\", IF(INDEX('Full set Core Client Indicator'!$A$3:$AB$351, MATCH(Selection_Hide2!$A68, 'Full set Core Client Indicator'!$A$3:$A$351, 0), MATCH(Selection_Hide2!Q$5, 'Full set Core Client Indicator'!$A$3:$AB$3, 0))=\"\", \"\",  INDEX('Full set Core Client Indicator'!$A$3:$AB$351, MATCH(Selection_Hide2!$A68, 'Full set Core Client Indicator'!$A$3:$A$351, 0), MATCH(Selection_Hide2!Q$5, 'Full set Core Client Indicator'!$A$3:$AB$3, 0))), \"\")","v":""},{"$f":"IF(Q68<>\"\", IF(INDEX('Full set Core Client Indicator'!$A$3:$AB$351, MATCH(Selection_Hide2!$A68, 'Full set Core Client Indicator'!$A$3:$A$351, 0), MATCH(Selection_Hide2!R$5, 'Full set Core Client Indicator'!$A$3:$AB$3, 0))=\"\", \"\",  INDEX('Full set Core Client Indicator'!$A$3:$AB$351, MATCH(Selection_Hide2!$A68, 'Full set Core Client Indicator'!$A$3:$A$351, 0), MATCH(Selection_Hide2!R$5, 'Full set Core Client Indicator'!$A$3:$AB$3, 0))), \"\")","v":""},{"$f":"IF(R68<>\"\", IF(INDEX('Full set Core Client Indicator'!$A$3:$AB$351, MATCH(Selection_Hide2!$A68, 'Full set Core Client Indicator'!$A$3:$A$351, 0), MATCH(Selection_Hide2!S$5, 'Full set Core Client Indicator'!$A$3:$AB$3, 0))=\"\", \"\",  INDEX('Full set Core Client Indicator'!$A$3:$AB$351, MATCH(Selection_Hide2!$A68, 'Full set Core Client Indicator'!$A$3:$A$351, 0), MATCH(Selection_Hide2!S$5, 'Full set Core Client Indicator'!$A$3:$AB$3, 0))), \"\")","v":""},{"$f":"IF(S68<>\"\", IF(INDEX('Full set Core Client Indicator'!$A$3:$AB$351, MATCH(Selection_Hide2!$A68, 'Full set Core Client Indicator'!$A$3:$A$351, 0), MATCH(Selection_Hide2!T$5, 'Full set Core Client Indicator'!$A$3:$AB$3, 0))=\"\", \"\",  INDEX('Full set Core Client Indicator'!$A$3:$AB$351, MATCH(Selection_Hide2!$A68, 'Full set Core Client Indicator'!$A$3:$A$351, 0), MATCH(Selection_Hide2!T$5, 'Full set Core Client Indicator'!$A$3:$AB$3, 0))), \"\")","v":""},{"$f":"IF(T68<>\"\", IF(INDEX('Full set Core Client Indicator'!$A$3:$AB$351, MATCH(Selection_Hide2!$A68, 'Full set Core Client Indicator'!$A$3:$A$351, 0), MATCH(Selection_Hide2!U$5, 'Full set Core Client Indicator'!$A$3:$AB$3, 0))=\"\", \"\",  INDEX('Full set Core Client Indicator'!$A$3:$AB$351, MATCH(Selection_Hide2!$A68, 'Full set Core Client Indicator'!$A$3:$A$351, 0), MATCH(Selection_Hide2!U$5, 'Full set Core Client Indicator'!$A$3:$AB$3, 0))), \"\")","v":""},{"$f":"IF(U68<>\"\", IF(INDEX('Full set Core Client Indicator'!$A$3:$AB$351, MATCH(Selection_Hide2!$A68, 'Full set Core Client Indicator'!$A$3:$A$351, 0), MATCH(Selection_Hide2!V$5, 'Full set Core Client Indicator'!$A$3:$AB$3, 0))=\"\", \"\",  INDEX('Full set Core Client Indicator'!$A$3:$AB$351, MATCH(Selection_Hide2!$A68, 'Full set Core Client Indicator'!$A$3:$A$351, 0), MATCH(Selection_Hide2!V$5, 'Full set Core Client Indicator'!$A$3:$AB$3, 0))), \"\")","v":""},{"$f":"IF(V68<>\"\", IF(INDEX('Full set Core Client Indicator'!$A$3:$AB$351, MATCH(Selection_Hide2!$A68, 'Full set Core Client Indicator'!$A$3:$A$351, 0), MATCH(Selection_Hide2!W$5, 'Full set Core Client Indicator'!$A$3:$AB$3, 0))=\"\", \"\",  INDEX('Full set Core Client Indicator'!$A$3:$AB$351, MATCH(Selection_Hide2!$A68, 'Full set Core Client Indicator'!$A$3:$A$351, 0), MATCH(Selection_Hide2!W$5, 'Full set Core Client Indicator'!$A$3:$AB$3, 0))), \"\")","v":""},{"$f":"IF(W68<>\"\", IF(INDEX('Full set Core Client Indicator'!$A$3:$AB$351, MATCH(Selection_Hide2!$A68, 'Full set Core Client Indicator'!$A$3:$A$351, 0), MATCH(Selection_Hide2!X$5, 'Full set Core Client Indicator'!$A$3:$AB$3, 0))=\"\", \"\",  INDEX('Full set Core Client Indicator'!$A$3:$AB$351, MATCH(Selection_Hide2!$A68, 'Full set Core Client Indicator'!$A$3:$A$351, 0), MATCH(Selection_Hide2!X$5, 'Full set Core Client Indicator'!$A$3:$AB$3, 0))), \"\")","v":""},{"$f":"IF(X68<>\"\", IF(INDEX('Full set Core Client Indicator'!$A$3:$AB$351, MATCH(Selection_Hide2!$A68, 'Full set Core Client Indicator'!$A$3:$A$351, 0), MATCH(Selection_Hide2!Y$5, 'Full set Core Client Indicator'!$A$3:$AB$3, 0))=\"\", \"\",  INDEX('Full set Core Client Indicator'!$A$3:$AB$351, MATCH(Selection_Hide2!$A68, 'Full set Core Client Indicator'!$A$3:$A$351, 0), MATCH(Selection_Hide2!Y$5, 'Full set Core Client Indicator'!$A$3:$AB$3, 0))), \"\")","v":""},{"$f":"IF(Y68<>\"\", IF(INDEX('Full set Core Client Indicator'!$A$3:$AB$351, MATCH(Selection_Hide2!$A68, 'Full set Core Client Indicator'!$A$3:$A$351, 0), MATCH(Selection_Hide2!Z$5, 'Full set Core Client Indicator'!$A$3:$AB$3, 0))=\"\", \"\",  INDEX('Full set Core Client Indicator'!$A$3:$AB$351, MATCH(Selection_Hide2!$A68, 'Full set Core Client Indicator'!$A$3:$A$351, 0), MATCH(Selection_Hide2!Z$5, 'Full set Core Client Indicator'!$A$3:$AB$3, 0))), \"\")","v":""},{"$f":"IF(Z68<>\"\", IF(INDEX('Full set Core Client Indicator'!$A$3:$AB$351, MATCH(Selection_Hide2!$A68, 'Full set Core Client Indicator'!$A$3:$A$351, 0), MATCH(Selection_Hide2!AA$5, 'Full set Core Client Indicator'!$A$3:$AB$3, 0))=\"\", \"\",  INDEX('Full set Core Client Indicator'!$A$3:$AB$351, MATCH(Selection_Hide2!$A68, 'Full set Core Client Indicator'!$A$3:$A$351, 0), MATCH(Selection_Hide2!AA$5, 'Full set Core Client Indicator'!$A$3:$AB$3, 0))), \"\")","v":""},{"$f":"IF(AA68<>\"\", IF(INDEX('Full set Core Client Indicator'!$A$3:$AB$351, MATCH(Selection_Hide2!$A68, 'Full set Core Client Indicator'!$A$3:$A$351, 0), MATCH(Selection_Hide2!AB$5, 'Full set Core Client Indicator'!$A$3:$AB$3, 0))=\"\", \"\",  INDEX('Full set Core Client Indicator'!$A$3:$AB$351, MATCH(Selection_Hide2!$A68, 'Full set Core Client Indicator'!$A$3:$A$351, 0), MATCH(Selection_Hide2!AB$5, 'Full set Core Client Indicator'!$A$3:$AB$3, 0))), \"\")","v":""}]
[{"$f":"IF(AND(Selection_Hide1!C67<>0, Selection_Hide1!C67<>\"Grand Total\"), Selection_Hide1!C67, \"\")","v":""},{"$f":"IF(A69<>\"\", IF(INDEX('Full set Core Client Indicator'!$A$3:$AB$351, MATCH(Selection_Hide2!$A69, 'Full set Core Client Indicator'!$A$3:$A$351, 0), MATCH(Selection_Hide2!B$5, 'Full set Core Client Indicator'!$A$3:$AB$3, 0))=\"\", \"\",  INDEX('Full set Core Client Indicator'!$A$3:$AB$351, MATCH(Selection_Hide2!$A69, 'Full set Core Client Indicator'!$A$3:$A$351, 0), MATCH(Selection_Hide2!B$5, 'Full set Core Client Indicator'!$A$3:$AB$3, 0))), \"\")","v":""},{"$f":"IF(B69<>\"\", IF(INDEX('Full set Core Client Indicator'!$A$3:$AB$351, MATCH(Selection_Hide2!$A69, 'Full set Core Client Indicator'!$A$3:$A$351, 0), MATCH(Selection_Hide2!C$5, 'Full set Core Client Indicator'!$A$3:$AB$3, 0))=\"\", \"\",  INDEX('Full set Core Client Indicator'!$A$3:$AB$351, MATCH(Selection_Hide2!$A69, 'Full set Core Client Indicator'!$A$3:$A$351, 0), MATCH(Selection_Hide2!C$5, 'Full set Core Client Indicator'!$A$3:$AB$3, 0))), \"\")","v":""},{"$f":"IF(C69<>\"\", IF(INDEX('Full set Core Client Indicator'!$A$3:$AB$351, MATCH(Selection_Hide2!$A69, 'Full set Core Client Indicator'!$A$3:$A$351, 0), MATCH(Selection_Hide2!D$5, 'Full set Core Client Indicator'!$A$3:$AB$3, 0))=\"\", \"\",  INDEX('Full set Core Client Indicator'!$A$3:$AB$351, MATCH(Selection_Hide2!$A69, 'Full set Core Client Indicator'!$A$3:$A$351, 0), MATCH(Selection_Hide2!D$5, 'Full set Core Client Indicator'!$A$3:$AB$3, 0))), \"\")","v":""},{"$f":"IF(D69<>\"\", IF(INDEX('Full set Core Client Indicator'!$A$3:$AB$351, MATCH(Selection_Hide2!$A69, 'Full set Core Client Indicator'!$A$3:$A$351, 0), MATCH(Selection_Hide2!E$5, 'Full set Core Client Indicator'!$A$3:$AB$3, 0))=\"\", \"\",  INDEX('Full set Core Client Indicator'!$A$3:$AB$351, MATCH(Selection_Hide2!$A69, 'Full set Core Client Indicator'!$A$3:$A$351, 0), MATCH(Selection_Hide2!E$5, 'Full set Core Client Indicator'!$A$3:$AB$3, 0))), \"\")","v":""},{"$f":"IF(E69<>\"\", IF(INDEX('Full set Core Client Indicator'!$A$3:$AB$351, MATCH(Selection_Hide2!$A69, 'Full set Core Client Indicator'!$A$3:$A$351, 0), MATCH(Selection_Hide2!F$5, 'Full set Core Client Indicator'!$A$3:$AB$3, 0))=\"\", \"\",  INDEX('Full set Core Client Indicator'!$A$3:$AB$351, MATCH(Selection_Hide2!$A69, 'Full set Core Client Indicator'!$A$3:$A$351, 0), MATCH(Selection_Hide2!F$5, 'Full set Core Client Indicator'!$A$3:$AB$3, 0))), \"\")","v":""},{"$f":"IF(F69<>\"\", IF(INDEX('Full set Core Client Indicator'!$A$3:$AB$351, MATCH(Selection_Hide2!$A69, 'Full set Core Client Indicator'!$A$3:$A$351, 0), MATCH(Selection_Hide2!G$5, 'Full set Core Client Indicator'!$A$3:$AB$3, 0))=\"\", \"\",  INDEX('Full set Core Client Indicator'!$A$3:$AB$351, MATCH(Selection_Hide2!$A69, 'Full set Core Client Indicator'!$A$3:$A$351, 0), MATCH(Selection_Hide2!G$5, 'Full set Core Client Indicator'!$A$3:$AB$3, 0))), \"\")","v":""},{"$f":"IF(G69<>\"\", IF(INDEX('Full set Core Client Indicator'!$A$3:$AB$351, MATCH(Selection_Hide2!$A69, 'Full set Core Client Indicator'!$A$3:$A$351, 0), MATCH(Selection_Hide2!H$5, 'Full set Core Client Indicator'!$A$3:$AB$3, 0))=\"\", \"\",  INDEX('Full set Core Client Indicator'!$A$3:$AB$351, MATCH(Selection_Hide2!$A69, 'Full set Core Client Indicator'!$A$3:$A$351, 0), MATCH(Selection_Hide2!H$5, 'Full set Core Client Indicator'!$A$3:$AB$3, 0))), \"\")","v":""},{"$f":"IF(H69<>\"\", IF(INDEX('Full set Core Client Indicator'!$A$3:$AB$351, MATCH(Selection_Hide2!$A69, 'Full set Core Client Indicator'!$A$3:$A$351, 0), MATCH(Selection_Hide2!I$5, 'Full set Core Client Indicator'!$A$3:$AB$3, 0))=\"\", \"\",  INDEX('Full set Core Client Indicator'!$A$3:$AB$351, MATCH(Selection_Hide2!$A69, 'Full set Core Client Indicator'!$A$3:$A$351, 0), MATCH(Selection_Hide2!I$5, 'Full set Core Client Indicator'!$A$3:$AB$3, 0))), \"\")","v":""},{"$f":"IF(I69<>\"\", IF(INDEX('Full set Core Client Indicator'!$A$3:$AB$351, MATCH(Selection_Hide2!$A69, 'Full set Core Client Indicator'!$A$3:$A$351, 0), MATCH(Selection_Hide2!J$5, 'Full set Core Client Indicator'!$A$3:$AB$3, 0))=\"\", \"\",  INDEX('Full set Core Client Indicator'!$A$3:$AB$351, MATCH(Selection_Hide2!$A69, 'Full set Core Client Indicator'!$A$3:$A$351, 0), MATCH(Selection_Hide2!J$5, 'Full set Core Client Indicator'!$A$3:$AB$3, 0))), \"\")","v":""},{"$f":"IF(J69<>\"\", IF(INDEX('Full set Core Client Indicator'!$A$3:$AB$351, MATCH(Selection_Hide2!$A69, 'Full set Core Client Indicator'!$A$3:$A$351, 0), MATCH(Selection_Hide2!K$5, 'Full set Core Client Indicator'!$A$3:$AB$3, 0))=\"\", \"\",  INDEX('Full set Core Client Indicator'!$A$3:$AB$351, MATCH(Selection_Hide2!$A69, 'Full set Core Client Indicator'!$A$3:$A$351, 0), MATCH(Selection_Hide2!K$5, 'Full set Core Client Indicator'!$A$3:$AB$3, 0))), \"\")","v":""},{"$f":"IF(K69<>\"\", IF(INDEX('Full set Core Client Indicator'!$A$3:$AB$351, MATCH(Selection_Hide2!$A69, 'Full set Core Client Indicator'!$A$3:$A$351, 0), MATCH(Selection_Hide2!L$5, 'Full set Core Client Indicator'!$A$3:$AB$3, 0))=\"\", \"\",  INDEX('Full set Core Client Indicator'!$A$3:$AB$351, MATCH(Selection_Hide2!$A69, 'Full set Core Client Indicator'!$A$3:$A$351, 0), MATCH(Selection_Hide2!L$5, 'Full set Core Client Indicator'!$A$3:$AB$3, 0))), \"\")","v":""},{"$f":"IF(L69<>\"\", IF(INDEX('Full set Core Client Indicator'!$A$3:$AB$351, MATCH(Selection_Hide2!$A69, 'Full set Core Client Indicator'!$A$3:$A$351, 0), MATCH(Selection_Hide2!M$5, 'Full set Core Client Indicator'!$A$3:$AB$3, 0))=\"\", \"\",  INDEX('Full set Core Client Indicator'!$A$3:$AB$351, MATCH(Selection_Hide2!$A69, 'Full set Core Client Indicator'!$A$3:$A$351, 0), MATCH(Selection_Hide2!M$5, 'Full set Core Client Indicator'!$A$3:$AB$3, 0))), \"\")","v":""},{"$f":"IF(M69<>\"\", IF(INDEX('Full set Core Client Indicator'!$A$3:$AB$351, MATCH(Selection_Hide2!$A69, 'Full set Core Client Indicator'!$A$3:$A$351, 0), MATCH(Selection_Hide2!N$5, 'Full set Core Client Indicator'!$A$3:$AB$3, 0))=\"\", \"\",  INDEX('Full set Core Client Indicator'!$A$3:$AB$351, MATCH(Selection_Hide2!$A69, 'Full set Core Client Indicator'!$A$3:$A$351, 0), MATCH(Selection_Hide2!N$5, 'Full set Core Client Indicator'!$A$3:$AB$3, 0))), \"\")","v":""},{"$f":"IF(N69<>\"\", IF(INDEX('Full set Core Client Indicator'!$A$3:$AB$351, MATCH(Selection_Hide2!$A69, 'Full set Core Client Indicator'!$A$3:$A$351, 0), MATCH(Selection_Hide2!O$5, 'Full set Core Client Indicator'!$A$3:$AB$3, 0))=\"\", \"\",  INDEX('Full set Core Client Indicator'!$A$3:$AB$351, MATCH(Selection_Hide2!$A69, 'Full set Core Client Indicator'!$A$3:$A$351, 0), MATCH(Selection_Hide2!O$5, 'Full set Core Client Indicator'!$A$3:$AB$3, 0))), \"\")","v":""},{"$f":"IF(O69<>\"\", IF(INDEX('Full set Core Client Indicator'!$A$3:$AB$351, MATCH(Selection_Hide2!$A69, 'Full set Core Client Indicator'!$A$3:$A$351, 0), MATCH(Selection_Hide2!P$5, 'Full set Core Client Indicator'!$A$3:$AB$3, 0))=\"\", \"\",  INDEX('Full set Core Client Indicator'!$A$3:$AB$351, MATCH(Selection_Hide2!$A69, 'Full set Core Client Indicator'!$A$3:$A$351, 0), MATCH(Selection_Hide2!P$5, 'Full set Core Client Indicator'!$A$3:$AB$3, 0))), \"\")","v":""},{"$f":"IF(P69<>\"\", IF(INDEX('Full set Core Client Indicator'!$A$3:$AB$351, MATCH(Selection_Hide2!$A69, 'Full set Core Client Indicator'!$A$3:$A$351, 0), MATCH(Selection_Hide2!Q$5, 'Full set Core Client Indicator'!$A$3:$AB$3, 0))=\"\", \"\",  INDEX('Full set Core Client Indicator'!$A$3:$AB$351, MATCH(Selection_Hide2!$A69, 'Full set Core Client Indicator'!$A$3:$A$351, 0), MATCH(Selection_Hide2!Q$5, 'Full set Core Client Indicator'!$A$3:$AB$3, 0))), \"\")","v":""},{"$f":"IF(Q69<>\"\", IF(INDEX('Full set Core Client Indicator'!$A$3:$AB$351, MATCH(Selection_Hide2!$A69, 'Full set Core Client Indicator'!$A$3:$A$351, 0), MATCH(Selection_Hide2!R$5, 'Full set Core Client Indicator'!$A$3:$AB$3, 0))=\"\", \"\",  INDEX('Full set Core Client Indicator'!$A$3:$AB$351, MATCH(Selection_Hide2!$A69, 'Full set Core Client Indicator'!$A$3:$A$351, 0), MATCH(Selection_Hide2!R$5, 'Full set Core Client Indicator'!$A$3:$AB$3, 0))), \"\")","v":""},{"$f":"IF(R69<>\"\", IF(INDEX('Full set Core Client Indicator'!$A$3:$AB$351, MATCH(Selection_Hide2!$A69, 'Full set Core Client Indicator'!$A$3:$A$351, 0), MATCH(Selection_Hide2!S$5, 'Full set Core Client Indicator'!$A$3:$AB$3, 0))=\"\", \"\",  INDEX('Full set Core Client Indicator'!$A$3:$AB$351, MATCH(Selection_Hide2!$A69, 'Full set Core Client Indicator'!$A$3:$A$351, 0), MATCH(Selection_Hide2!S$5, 'Full set Core Client Indicator'!$A$3:$AB$3, 0))), \"\")","v":""},{"$f":"IF(S69<>\"\", IF(INDEX('Full set Core Client Indicator'!$A$3:$AB$351, MATCH(Selection_Hide2!$A69, 'Full set Core Client Indicator'!$A$3:$A$351, 0), MATCH(Selection_Hide2!T$5, 'Full set Core Client Indicator'!$A$3:$AB$3, 0))=\"\", \"\",  INDEX('Full set Core Client Indicator'!$A$3:$AB$351, MATCH(Selection_Hide2!$A69, 'Full set Core Client Indicator'!$A$3:$A$351, 0), MATCH(Selection_Hide2!T$5, 'Full set Core Client Indicator'!$A$3:$AB$3, 0))), \"\")","v":""},{"$f":"IF(T69<>\"\", IF(INDEX('Full set Core Client Indicator'!$A$3:$AB$351, MATCH(Selection_Hide2!$A69, 'Full set Core Client Indicator'!$A$3:$A$351, 0), MATCH(Selection_Hide2!U$5, 'Full set Core Client Indicator'!$A$3:$AB$3, 0))=\"\", \"\",  INDEX('Full set Core Client Indicator'!$A$3:$AB$351, MATCH(Selection_Hide2!$A69, 'Full set Core Client Indicator'!$A$3:$A$351, 0), MATCH(Selection_Hide2!U$5, 'Full set Core Client Indicator'!$A$3:$AB$3, 0))), \"\")","v":""},{"$f":"IF(U69<>\"\", IF(INDEX('Full set Core Client Indicator'!$A$3:$AB$351, MATCH(Selection_Hide2!$A69, 'Full set Core Client Indicator'!$A$3:$A$351, 0), MATCH(Selection_Hide2!V$5, 'Full set Core Client Indicator'!$A$3:$AB$3, 0))=\"\", \"\",  INDEX('Full set Core Client Indicator'!$A$3:$AB$351, MATCH(Selection_Hide2!$A69, 'Full set Core Client Indicator'!$A$3:$A$351, 0), MATCH(Selection_Hide2!V$5, 'Full set Core Client Indicator'!$A$3:$AB$3, 0))), \"\")","v":""},{"$f":"IF(V69<>\"\", IF(INDEX('Full set Core Client Indicator'!$A$3:$AB$351, MATCH(Selection_Hide2!$A69, 'Full set Core Client Indicator'!$A$3:$A$351, 0), MATCH(Selection_Hide2!W$5, 'Full set Core Client Indicator'!$A$3:$AB$3, 0))=\"\", \"\",  INDEX('Full set Core Client Indicator'!$A$3:$AB$351, MATCH(Selection_Hide2!$A69, 'Full set Core Client Indicator'!$A$3:$A$351, 0), MATCH(Selection_Hide2!W$5, 'Full set Core Client Indicator'!$A$3:$AB$3, 0))), \"\")","v":""},{"$f":"IF(W69<>\"\", IF(INDEX('Full set Core Client Indicator'!$A$3:$AB$351, MATCH(Selection_Hide2!$A69, 'Full set Core Client Indicator'!$A$3:$A$351, 0), MATCH(Selection_Hide2!X$5, 'Full set Core Client Indicator'!$A$3:$AB$3, 0))=\"\", \"\",  INDEX('Full set Core Client Indicator'!$A$3:$AB$351, MATCH(Selection_Hide2!$A69, 'Full set Core Client Indicator'!$A$3:$A$351, 0), MATCH(Selection_Hide2!X$5, 'Full set Core Client Indicator'!$A$3:$AB$3, 0))), \"\")","v":""},{"$f":"IF(X69<>\"\", IF(INDEX('Full set Core Client Indicator'!$A$3:$AB$351, MATCH(Selection_Hide2!$A69, 'Full set Core Client Indicator'!$A$3:$A$351, 0), MATCH(Selection_Hide2!Y$5, 'Full set Core Client Indicator'!$A$3:$AB$3, 0))=\"\", \"\",  INDEX('Full set Core Client Indicator'!$A$3:$AB$351, MATCH(Selection_Hide2!$A69, 'Full set Core Client Indicator'!$A$3:$A$351, 0), MATCH(Selection_Hide2!Y$5, 'Full set Core Client Indicator'!$A$3:$AB$3, 0))), \"\")","v":""},{"$f":"IF(Y69<>\"\", IF(INDEX('Full set Core Client Indicator'!$A$3:$AB$351, MATCH(Selection_Hide2!$A69, 'Full set Core Client Indicator'!$A$3:$A$351, 0), MATCH(Selection_Hide2!Z$5, 'Full set Core Client Indicator'!$A$3:$AB$3, 0))=\"\", \"\",  INDEX('Full set Core Client Indicator'!$A$3:$AB$351, MATCH(Selection_Hide2!$A69, 'Full set Core Client Indicator'!$A$3:$A$351, 0), MATCH(Selection_Hide2!Z$5, 'Full set Core Client Indicator'!$A$3:$AB$3, 0))), \"\")","v":""},{"$f":"IF(Z69<>\"\", IF(INDEX('Full set Core Client Indicator'!$A$3:$AB$351, MATCH(Selection_Hide2!$A69, 'Full set Core Client Indicator'!$A$3:$A$351, 0), MATCH(Selection_Hide2!AA$5, 'Full set Core Client Indicator'!$A$3:$AB$3, 0))=\"\", \"\",  INDEX('Full set Core Client Indicator'!$A$3:$AB$351, MATCH(Selection_Hide2!$A69, 'Full set Core Client Indicator'!$A$3:$A$351, 0), MATCH(Selection_Hide2!AA$5, 'Full set Core Client Indicator'!$A$3:$AB$3, 0))), \"\")","v":""},{"$f":"IF(AA69<>\"\", IF(INDEX('Full set Core Client Indicator'!$A$3:$AB$351, MATCH(Selection_Hide2!$A69, 'Full set Core Client Indicator'!$A$3:$A$351, 0), MATCH(Selection_Hide2!AB$5, 'Full set Core Client Indicator'!$A$3:$AB$3, 0))=\"\", \"\",  INDEX('Full set Core Client Indicator'!$A$3:$AB$351, MATCH(Selection_Hide2!$A69, 'Full set Core Client Indicator'!$A$3:$A$351, 0), MATCH(Selection_Hide2!AB$5, 'Full set Core Client Indicator'!$A$3:$AB$3, 0))), \"\")","v":""}]
[{"$f":"IF(AND(Selection_Hide1!C68<>0, Selection_Hide1!C68<>\"Grand Total\"), Selection_Hide1!C68, \"\")","v":""},{"$f":"IF(A70<>\"\", IF(INDEX('Full set Core Client Indicator'!$A$3:$AB$351, MATCH(Selection_Hide2!$A70, 'Full set Core Client Indicator'!$A$3:$A$351, 0), MATCH(Selection_Hide2!B$5, 'Full set Core Client Indicator'!$A$3:$AB$3, 0))=\"\", \"\",  INDEX('Full set Core Client Indicator'!$A$3:$AB$351, MATCH(Selection_Hide2!$A70, 'Full set Core Client Indicator'!$A$3:$A$351, 0), MATCH(Selection_Hide2!B$5, 'Full set Core Client Indicator'!$A$3:$AB$3, 0))), \"\")","v":""},{"$f":"IF(B70<>\"\", IF(INDEX('Full set Core Client Indicator'!$A$3:$AB$351, MATCH(Selection_Hide2!$A70, 'Full set Core Client Indicator'!$A$3:$A$351, 0), MATCH(Selection_Hide2!C$5, 'Full set Core Client Indicator'!$A$3:$AB$3, 0))=\"\", \"\",  INDEX('Full set Core Client Indicator'!$A$3:$AB$351, MATCH(Selection_Hide2!$A70, 'Full set Core Client Indicator'!$A$3:$A$351, 0), MATCH(Selection_Hide2!C$5, 'Full set Core Client Indicator'!$A$3:$AB$3, 0))), \"\")","v":""},{"$f":"IF(C70<>\"\", IF(INDEX('Full set Core Client Indicator'!$A$3:$AB$351, MATCH(Selection_Hide2!$A70, 'Full set Core Client Indicator'!$A$3:$A$351, 0), MATCH(Selection_Hide2!D$5, 'Full set Core Client Indicator'!$A$3:$AB$3, 0))=\"\", \"\",  INDEX('Full set Core Client Indicator'!$A$3:$AB$351, MATCH(Selection_Hide2!$A70, 'Full set Core Client Indicator'!$A$3:$A$351, 0), MATCH(Selection_Hide2!D$5, 'Full set Core Client Indicator'!$A$3:$AB$3, 0))), \"\")","v":""},{"$f":"IF(D70<>\"\", IF(INDEX('Full set Core Client Indicator'!$A$3:$AB$351, MATCH(Selection_Hide2!$A70, 'Full set Core Client Indicator'!$A$3:$A$351, 0), MATCH(Selection_Hide2!E$5, 'Full set Core Client Indicator'!$A$3:$AB$3, 0))=\"\", \"\",  INDEX('Full set Core Client Indicator'!$A$3:$AB$351, MATCH(Selection_Hide2!$A70, 'Full set Core Client Indicator'!$A$3:$A$351, 0), MATCH(Selection_Hide2!E$5, 'Full set Core Client Indicator'!$A$3:$AB$3, 0))), \"\")","v":""},{"$f":"IF(E70<>\"\", IF(INDEX('Full set Core Client Indicator'!$A$3:$AB$351, MATCH(Selection_Hide2!$A70, 'Full set Core Client Indicator'!$A$3:$A$351, 0), MATCH(Selection_Hide2!F$5, 'Full set Core Client Indicator'!$A$3:$AB$3, 0))=\"\", \"\",  INDEX('Full set Core Client Indicator'!$A$3:$AB$351, MATCH(Selection_Hide2!$A70, 'Full set Core Client Indicator'!$A$3:$A$351, 0), MATCH(Selection_Hide2!F$5, 'Full set Core Client Indicator'!$A$3:$AB$3, 0))), \"\")","v":""},{"$f":"IF(F70<>\"\", IF(INDEX('Full set Core Client Indicator'!$A$3:$AB$351, MATCH(Selection_Hide2!$A70, 'Full set Core Client Indicator'!$A$3:$A$351, 0), MATCH(Selection_Hide2!G$5, 'Full set Core Client Indicator'!$A$3:$AB$3, 0))=\"\", \"\",  INDEX('Full set Core Client Indicator'!$A$3:$AB$351, MATCH(Selection_Hide2!$A70, 'Full set Core Client Indicator'!$A$3:$A$351, 0), MATCH(Selection_Hide2!G$5, 'Full set Core Client Indicator'!$A$3:$AB$3, 0))), \"\")","v":""},{"$f":"IF(G70<>\"\", IF(INDEX('Full set Core Client Indicator'!$A$3:$AB$351, MATCH(Selection_Hide2!$A70, 'Full set Core Client Indicator'!$A$3:$A$351, 0), MATCH(Selection_Hide2!H$5, 'Full set Core Client Indicator'!$A$3:$AB$3, 0))=\"\", \"\",  INDEX('Full set Core Client Indicator'!$A$3:$AB$351, MATCH(Selection_Hide2!$A70, 'Full set Core Client Indicator'!$A$3:$A$351, 0), MATCH(Selection_Hide2!H$5, 'Full set Core Client Indicator'!$A$3:$AB$3, 0))), \"\")","v":""},{"$f":"IF(H70<>\"\", IF(INDEX('Full set Core Client Indicator'!$A$3:$AB$351, MATCH(Selection_Hide2!$A70, 'Full set Core Client Indicator'!$A$3:$A$351, 0), MATCH(Selection_Hide2!I$5, 'Full set Core Client Indicator'!$A$3:$AB$3, 0))=\"\", \"\",  INDEX('Full set Core Client Indicator'!$A$3:$AB$351, MATCH(Selection_Hide2!$A70, 'Full set Core Client Indicator'!$A$3:$A$351, 0), MATCH(Selection_Hide2!I$5, 'Full set Core Client Indicator'!$A$3:$AB$3, 0))), \"\")","v":""},{"$f":"IF(I70<>\"\", IF(INDEX('Full set Core Client Indicator'!$A$3:$AB$351, MATCH(Selection_Hide2!$A70, 'Full set Core Client Indicator'!$A$3:$A$351, 0), MATCH(Selection_Hide2!J$5, 'Full set Core Client Indicator'!$A$3:$AB$3, 0))=\"\", \"\",  INDEX('Full set Core Client Indicator'!$A$3:$AB$351, MATCH(Selection_Hide2!$A70, 'Full set Core Client Indicator'!$A$3:$A$351, 0), MATCH(Selection_Hide2!J$5, 'Full set Core Client Indicator'!$A$3:$AB$3, 0))), \"\")","v":""},{"$f":"IF(J70<>\"\", IF(INDEX('Full set Core Client Indicator'!$A$3:$AB$351, MATCH(Selection_Hide2!$A70, 'Full set Core Client Indicator'!$A$3:$A$351, 0), MATCH(Selection_Hide2!K$5, 'Full set Core Client Indicator'!$A$3:$AB$3, 0))=\"\", \"\",  INDEX('Full set Core Client Indicator'!$A$3:$AB$351, MATCH(Selection_Hide2!$A70, 'Full set Core Client Indicator'!$A$3:$A$351, 0), MATCH(Selection_Hide2!K$5, 'Full set Core Client Indicator'!$A$3:$AB$3, 0))), \"\")","v":""},{"$f":"IF(K70<>\"\", IF(INDEX('Full set Core Client Indicator'!$A$3:$AB$351, MATCH(Selection_Hide2!$A70, 'Full set Core Client Indicator'!$A$3:$A$351, 0), MATCH(Selection_Hide2!L$5, 'Full set Core Client Indicator'!$A$3:$AB$3, 0))=\"\", \"\",  INDEX('Full set Core Client Indicator'!$A$3:$AB$351, MATCH(Selection_Hide2!$A70, 'Full set Core Client Indicator'!$A$3:$A$351, 0), MATCH(Selection_Hide2!L$5, 'Full set Core Client Indicator'!$A$3:$AB$3, 0))), \"\")","v":""},{"$f":"IF(L70<>\"\", IF(INDEX('Full set Core Client Indicator'!$A$3:$AB$351, MATCH(Selection_Hide2!$A70, 'Full set Core Client Indicator'!$A$3:$A$351, 0), MATCH(Selection_Hide2!M$5, 'Full set Core Client Indicator'!$A$3:$AB$3, 0))=\"\", \"\",  INDEX('Full set Core Client Indicator'!$A$3:$AB$351, MATCH(Selection_Hide2!$A70, 'Full set Core Client Indicator'!$A$3:$A$351, 0), MATCH(Selection_Hide2!M$5, 'Full set Core Client Indicator'!$A$3:$AB$3, 0))), \"\")","v":""},{"$f":"IF(M70<>\"\", IF(INDEX('Full set Core Client Indicator'!$A$3:$AB$351, MATCH(Selection_Hide2!$A70, 'Full set Core Client Indicator'!$A$3:$A$351, 0), MATCH(Selection_Hide2!N$5, 'Full set Core Client Indicator'!$A$3:$AB$3, 0))=\"\", \"\",  INDEX('Full set Core Client Indicator'!$A$3:$AB$351, MATCH(Selection_Hide2!$A70, 'Full set Core Client Indicator'!$A$3:$A$351, 0), MATCH(Selection_Hide2!N$5, 'Full set Core Client Indicator'!$A$3:$AB$3, 0))), \"\")","v":""},{"$f":"IF(N70<>\"\", IF(INDEX('Full set Core Client Indicator'!$A$3:$AB$351, MATCH(Selection_Hide2!$A70, 'Full set Core Client Indicator'!$A$3:$A$351, 0), MATCH(Selection_Hide2!O$5, 'Full set Core Client Indicator'!$A$3:$AB$3, 0))=\"\", \"\",  INDEX('Full set Core Client Indicator'!$A$3:$AB$351, MATCH(Selection_Hide2!$A70, 'Full set Core Client Indicator'!$A$3:$A$351, 0), MATCH(Selection_Hide2!O$5, 'Full set Core Client Indicator'!$A$3:$AB$3, 0))), \"\")","v":""},{"$f":"IF(O70<>\"\", IF(INDEX('Full set Core Client Indicator'!$A$3:$AB$351, MATCH(Selection_Hide2!$A70, 'Full set Core Client Indicator'!$A$3:$A$351, 0), MATCH(Selection_Hide2!P$5, 'Full set Core Client Indicator'!$A$3:$AB$3, 0))=\"\", \"\",  INDEX('Full set Core Client Indicator'!$A$3:$AB$351, MATCH(Selection_Hide2!$A70, 'Full set Core Client Indicator'!$A$3:$A$351, 0), MATCH(Selection_Hide2!P$5, 'Full set Core Client Indicator'!$A$3:$AB$3, 0))), \"\")","v":""},{"$f":"IF(P70<>\"\", IF(INDEX('Full set Core Client Indicator'!$A$3:$AB$351, MATCH(Selection_Hide2!$A70, 'Full set Core Client Indicator'!$A$3:$A$351, 0), MATCH(Selection_Hide2!Q$5, 'Full set Core Client Indicator'!$A$3:$AB$3, 0))=\"\", \"\",  INDEX('Full set Core Client Indicator'!$A$3:$AB$351, MATCH(Selection_Hide2!$A70, 'Full set Core Client Indicator'!$A$3:$A$351, 0), MATCH(Selection_Hide2!Q$5, 'Full set Core Client Indicator'!$A$3:$AB$3, 0))), \"\")","v":""},{"$f":"IF(Q70<>\"\", IF(INDEX('Full set Core Client Indicator'!$A$3:$AB$351, MATCH(Selection_Hide2!$A70, 'Full set Core Client Indicator'!$A$3:$A$351, 0), MATCH(Selection_Hide2!R$5, 'Full set Core Client Indicator'!$A$3:$AB$3, 0))=\"\", \"\",  INDEX('Full set Core Client Indicator'!$A$3:$AB$351, MATCH(Selection_Hide2!$A70, 'Full set Core Client Indicator'!$A$3:$A$351, 0), MATCH(Selection_Hide2!R$5, 'Full set Core Client Indicator'!$A$3:$AB$3, 0))), \"\")","v":""},{"$f":"IF(R70<>\"\", IF(INDEX('Full set Core Client Indicator'!$A$3:$AB$351, MATCH(Selection_Hide2!$A70, 'Full set Core Client Indicator'!$A$3:$A$351, 0), MATCH(Selection_Hide2!S$5, 'Full set Core Client Indicator'!$A$3:$AB$3, 0))=\"\", \"\",  INDEX('Full set Core Client Indicator'!$A$3:$AB$351, MATCH(Selection_Hide2!$A70, 'Full set Core Client Indicator'!$A$3:$A$351, 0), MATCH(Selection_Hide2!S$5, 'Full set Core Client Indicator'!$A$3:$AB$3, 0))), \"\")","v":""},{"$f":"IF(S70<>\"\", IF(INDEX('Full set Core Client Indicator'!$A$3:$AB$351, MATCH(Selection_Hide2!$A70, 'Full set Core Client Indicator'!$A$3:$A$351, 0), MATCH(Selection_Hide2!T$5, 'Full set Core Client Indicator'!$A$3:$AB$3, 0))=\"\", \"\",  INDEX('Full set Core Client Indicator'!$A$3:$AB$351, MATCH(Selection_Hide2!$A70, 'Full set Core Client Indicator'!$A$3:$A$351, 0), MATCH(Selection_Hide2!T$5, 'Full set Core Client Indicator'!$A$3:$AB$3, 0))), \"\")","v":""},{"$f":"IF(T70<>\"\", IF(INDEX('Full set Core Client Indicator'!$A$3:$AB$351, MATCH(Selection_Hide2!$A70, 'Full set Core Client Indicator'!$A$3:$A$351, 0), MATCH(Selection_Hide2!U$5, 'Full set Core Client Indicator'!$A$3:$AB$3, 0))=\"\", \"\",  INDEX('Full set Core Client Indicator'!$A$3:$AB$351, MATCH(Selection_Hide2!$A70, 'Full set Core Client Indicator'!$A$3:$A$351, 0), MATCH(Selection_Hide2!U$5, 'Full set Core Client Indicator'!$A$3:$AB$3, 0))), \"\")","v":""},{"$f":"IF(U70<>\"\", IF(INDEX('Full set Core Client Indicator'!$A$3:$AB$351, MATCH(Selection_Hide2!$A70, 'Full set Core Client Indicator'!$A$3:$A$351, 0), MATCH(Selection_Hide2!V$5, 'Full set Core Client Indicator'!$A$3:$AB$3, 0))=\"\", \"\",  INDEX('Full set Core Client Indicator'!$A$3:$AB$351, MATCH(Selection_Hide2!$A70, 'Full set Core Client Indicator'!$A$3:$A$351, 0), MATCH(Selection_Hide2!V$5, 'Full set Core Client Indicator'!$A$3:$AB$3, 0))), \"\")","v":""},{"$f":"IF(V70<>\"\", IF(INDEX('Full set Core Client Indicator'!$A$3:$AB$351, MATCH(Selection_Hide2!$A70, 'Full set Core Client Indicator'!$A$3:$A$351, 0), MATCH(Selection_Hide2!W$5, 'Full set Core Client Indicator'!$A$3:$AB$3, 0))=\"\", \"\",  INDEX('Full set Core Client Indicator'!$A$3:$AB$351, MATCH(Selection_Hide2!$A70, 'Full set Core Client Indicator'!$A$3:$A$351, 0), MATCH(Selection_Hide2!W$5, 'Full set Core Client Indicator'!$A$3:$AB$3, 0))), \"\")","v":""},{"$f":"IF(W70<>\"\", IF(INDEX('Full set Core Client Indicator'!$A$3:$AB$351, MATCH(Selection_Hide2!$A70, 'Full set Core Client Indicator'!$A$3:$A$351, 0), MATCH(Selection_Hide2!X$5, 'Full set Core Client Indicator'!$A$3:$AB$3, 0))=\"\", \"\",  INDEX('Full set Core Client Indicator'!$A$3:$AB$351, MATCH(Selection_Hide2!$A70, 'Full set Core Client Indicator'!$A$3:$A$351, 0), MATCH(Selection_Hide2!X$5, 'Full set Core Client Indicator'!$A$3:$AB$3, 0))), \"\")","v":""},{"$f":"IF(X70<>\"\", IF(INDEX('Full set Core Client Indicator'!$A$3:$AB$351, MATCH(Selection_Hide2!$A70, 'Full set Core Client Indicator'!$A$3:$A$351, 0), MATCH(Selection_Hide2!Y$5, 'Full set Core Client Indicator'!$A$3:$AB$3, 0))=\"\", \"\",  INDEX('Full set Core Client Indicator'!$A$3:$AB$351, MATCH(Selection_Hide2!$A70, 'Full set Core Client Indicator'!$A$3:$A$351, 0), MATCH(Selection_Hide2!Y$5, 'Full set Core Client Indicator'!$A$3:$AB$3, 0))), \"\")","v":""},{"$f":"IF(Y70<>\"\", IF(INDEX('Full set Core Client Indicator'!$A$3:$AB$351, MATCH(Selection_Hide2!$A70, 'Full set Core Client Indicator'!$A$3:$A$351, 0), MATCH(Selection_Hide2!Z$5, 'Full set Core Client Indicator'!$A$3:$AB$3, 0))=\"\", \"\",  INDEX('Full set Core Client Indicator'!$A$3:$AB$351, MATCH(Selection_Hide2!$A70, 'Full set Core Client Indicator'!$A$3:$A$351, 0), MATCH(Selection_Hide2!Z$5, 'Full set Core Client Indicator'!$A$3:$AB$3, 0))), \"\")","v":""},{"$f":"IF(Z70<>\"\", IF(INDEX('Full set Core Client Indicator'!$A$3:$AB$351, MATCH(Selection_Hide2!$A70, 'Full set Core Client Indicator'!$A$3:$A$351, 0), MATCH(Selection_Hide2!AA$5, 'Full set Core Client Indicator'!$A$3:$AB$3, 0))=\"\", \"\",  INDEX('Full set Core Client Indicator'!$A$3:$AB$351, MATCH(Selection_Hide2!$A70, 'Full set Core Client Indicator'!$A$3:$A$351, 0), MATCH(Selection_Hide2!AA$5, 'Full set Core Client Indicator'!$A$3:$AB$3, 0))), \"\")","v":""},{"$f":"IF(AA70<>\"\", IF(INDEX('Full set Core Client Indicator'!$A$3:$AB$351, MATCH(Selection_Hide2!$A70, 'Full set Core Client Indicator'!$A$3:$A$351, 0), MATCH(Selection_Hide2!AB$5, 'Full set Core Client Indicator'!$A$3:$AB$3, 0))=\"\", \"\",  INDEX('Full set Core Client Indicator'!$A$3:$AB$351, MATCH(Selection_Hide2!$A70, 'Full set Core Client Indicator'!$A$3:$A$351, 0), MATCH(Selection_Hide2!AB$5, 'Full set Core Client Indicator'!$A$3:$AB$3, 0))), \"\")","v":""}]
[{"$f":"IF(AND(Selection_Hide1!C69<>0, Selection_Hide1!C69<>\"Grand Total\"), Selection_Hide1!C69, \"\")","v":""},{"$f":"IF(A71<>\"\", IF(INDEX('Full set Core Client Indicator'!$A$3:$AB$351, MATCH(Selection_Hide2!$A71, 'Full set Core Client Indicator'!$A$3:$A$351, 0), MATCH(Selection_Hide2!B$5, 'Full set Core Client Indicator'!$A$3:$AB$3, 0))=\"\", \"\",  INDEX('Full set Core Client Indicator'!$A$3:$AB$351, MATCH(Selection_Hide2!$A71, 'Full set Core Client Indicator'!$A$3:$A$351, 0), MATCH(Selection_Hide2!B$5, 'Full set Core Client Indicator'!$A$3:$AB$3, 0))), \"\")","v":""},{"$f":"IF(B71<>\"\", IF(INDEX('Full set Core Client Indicator'!$A$3:$AB$351, MATCH(Selection_Hide2!$A71, 'Full set Core Client Indicator'!$A$3:$A$351, 0), MATCH(Selection_Hide2!C$5, 'Full set Core Client Indicator'!$A$3:$AB$3, 0))=\"\", \"\",  INDEX('Full set Core Client Indicator'!$A$3:$AB$351, MATCH(Selection_Hide2!$A71, 'Full set Core Client Indicator'!$A$3:$A$351, 0), MATCH(Selection_Hide2!C$5, 'Full set Core Client Indicator'!$A$3:$AB$3, 0))), \"\")","v":""},{"$f":"IF(C71<>\"\", IF(INDEX('Full set Core Client Indicator'!$A$3:$AB$351, MATCH(Selection_Hide2!$A71, 'Full set Core Client Indicator'!$A$3:$A$351, 0), MATCH(Selection_Hide2!D$5, 'Full set Core Client Indicator'!$A$3:$AB$3, 0))=\"\", \"\",  INDEX('Full set Core Client Indicator'!$A$3:$AB$351, MATCH(Selection_Hide2!$A71, 'Full set Core Client Indicator'!$A$3:$A$351, 0), MATCH(Selection_Hide2!D$5, 'Full set Core Client Indicator'!$A$3:$AB$3, 0))), \"\")","v":""},{"$f":"IF(D71<>\"\", IF(INDEX('Full set Core Client Indicator'!$A$3:$AB$351, MATCH(Selection_Hide2!$A71, 'Full set Core Client Indicator'!$A$3:$A$351, 0), MATCH(Selection_Hide2!E$5, 'Full set Core Client Indicator'!$A$3:$AB$3, 0))=\"\", \"\",  INDEX('Full set Core Client Indicator'!$A$3:$AB$351, MATCH(Selection_Hide2!$A71, 'Full set Core Client Indicator'!$A$3:$A$351, 0), MATCH(Selection_Hide2!E$5, 'Full set Core Client Indicator'!$A$3:$AB$3, 0))), \"\")","v":""},{"$f":"IF(E71<>\"\", IF(INDEX('Full set Core Client Indicator'!$A$3:$AB$351, MATCH(Selection_Hide2!$A71, 'Full set Core Client Indicator'!$A$3:$A$351, 0), MATCH(Selection_Hide2!F$5, 'Full set Core Client Indicator'!$A$3:$AB$3, 0))=\"\", \"\",  INDEX('Full set Core Client Indicator'!$A$3:$AB$351, MATCH(Selection_Hide2!$A71, 'Full set Core Client Indicator'!$A$3:$A$351, 0), MATCH(Selection_Hide2!F$5, 'Full set Core Client Indicator'!$A$3:$AB$3, 0))), \"\")","v":""},{"$f":"IF(F71<>\"\", IF(INDEX('Full set Core Client Indicator'!$A$3:$AB$351, MATCH(Selection_Hide2!$A71, 'Full set Core Client Indicator'!$A$3:$A$351, 0), MATCH(Selection_Hide2!G$5, 'Full set Core Client Indicator'!$A$3:$AB$3, 0))=\"\", \"\",  INDEX('Full set Core Client Indicator'!$A$3:$AB$351, MATCH(Selection_Hide2!$A71, 'Full set Core Client Indicator'!$A$3:$A$351, 0), MATCH(Selection_Hide2!G$5, 'Full set Core Client Indicator'!$A$3:$AB$3, 0))), \"\")","v":""},{"$f":"IF(G71<>\"\", IF(INDEX('Full set Core Client Indicator'!$A$3:$AB$351, MATCH(Selection_Hide2!$A71, 'Full set Core Client Indicator'!$A$3:$A$351, 0), MATCH(Selection_Hide2!H$5, 'Full set Core Client Indicator'!$A$3:$AB$3, 0))=\"\", \"\",  INDEX('Full set Core Client Indicator'!$A$3:$AB$351, MATCH(Selection_Hide2!$A71, 'Full set Core Client Indicator'!$A$3:$A$351, 0), MATCH(Selection_Hide2!H$5, 'Full set Core Client Indicator'!$A$3:$AB$3, 0))), \"\")","v":""},{"$f":"IF(H71<>\"\", IF(INDEX('Full set Core Client Indicator'!$A$3:$AB$351, MATCH(Selection_Hide2!$A71, 'Full set Core Client Indicator'!$A$3:$A$351, 0), MATCH(Selection_Hide2!I$5, 'Full set Core Client Indicator'!$A$3:$AB$3, 0))=\"\", \"\",  INDEX('Full set Core Client Indicator'!$A$3:$AB$351, MATCH(Selection_Hide2!$A71, 'Full set Core Client Indicator'!$A$3:$A$351, 0), MATCH(Selection_Hide2!I$5, 'Full set Core Client Indicator'!$A$3:$AB$3, 0))), \"\")","v":""},{"$f":"IF(I71<>\"\", IF(INDEX('Full set Core Client Indicator'!$A$3:$AB$351, MATCH(Selection_Hide2!$A71, 'Full set Core Client Indicator'!$A$3:$A$351, 0), MATCH(Selection_Hide2!J$5, 'Full set Core Client Indicator'!$A$3:$AB$3, 0))=\"\", \"\",  INDEX('Full set Core Client Indicator'!$A$3:$AB$351, MATCH(Selection_Hide2!$A71, 'Full set Core Client Indicator'!$A$3:$A$351, 0), MATCH(Selection_Hide2!J$5, 'Full set Core Client Indicator'!$A$3:$AB$3, 0))), \"\")","v":""},{"$f":"IF(J71<>\"\", IF(INDEX('Full set Core Client Indicator'!$A$3:$AB$351, MATCH(Selection_Hide2!$A71, 'Full set Core Client Indicator'!$A$3:$A$351, 0), MATCH(Selection_Hide2!K$5, 'Full set Core Client Indicator'!$A$3:$AB$3, 0))=\"\", \"\",  INDEX('Full set Core Client Indicator'!$A$3:$AB$351, MATCH(Selection_Hide2!$A71, 'Full set Core Client Indicator'!$A$3:$A$351, 0), MATCH(Selection_Hide2!K$5, 'Full set Core Client Indicator'!$A$3:$AB$3, 0))), \"\")","v":""},{"$f":"IF(K71<>\"\", IF(INDEX('Full set Core Client Indicator'!$A$3:$AB$351, MATCH(Selection_Hide2!$A71, 'Full set Core Client Indicator'!$A$3:$A$351, 0), MATCH(Selection_Hide2!L$5, 'Full set Core Client Indicator'!$A$3:$AB$3, 0))=\"\", \"\",  INDEX('Full set Core Client Indicator'!$A$3:$AB$351, MATCH(Selection_Hide2!$A71, 'Full set Core Client Indicator'!$A$3:$A$351, 0), MATCH(Selection_Hide2!L$5, 'Full set Core Client Indicator'!$A$3:$AB$3, 0))), \"\")","v":""},{"$f":"IF(L71<>\"\", IF(INDEX('Full set Core Client Indicator'!$A$3:$AB$351, MATCH(Selection_Hide2!$A71, 'Full set Core Client Indicator'!$A$3:$A$351, 0), MATCH(Selection_Hide2!M$5, 'Full set Core Client Indicator'!$A$3:$AB$3, 0))=\"\", \"\",  INDEX('Full set Core Client Indicator'!$A$3:$AB$351, MATCH(Selection_Hide2!$A71, 'Full set Core Client Indicator'!$A$3:$A$351, 0), MATCH(Selection_Hide2!M$5, 'Full set Core Client Indicator'!$A$3:$AB$3, 0))), \"\")","v":""},{"$f":"IF(M71<>\"\", IF(INDEX('Full set Core Client Indicator'!$A$3:$AB$351, MATCH(Selection_Hide2!$A71, 'Full set Core Client Indicator'!$A$3:$A$351, 0), MATCH(Selection_Hide2!N$5, 'Full set Core Client Indicator'!$A$3:$AB$3, 0))=\"\", \"\",  INDEX('Full set Core Client Indicator'!$A$3:$AB$351, MATCH(Selection_Hide2!$A71, 'Full set Core Client Indicator'!$A$3:$A$351, 0), MATCH(Selection_Hide2!N$5, 'Full set Core Client Indicator'!$A$3:$AB$3, 0))), \"\")","v":""},{"$f":"IF(N71<>\"\", IF(INDEX('Full set Core Client Indicator'!$A$3:$AB$351, MATCH(Selection_Hide2!$A71, 'Full set Core Client Indicator'!$A$3:$A$351, 0), MATCH(Selection_Hide2!O$5, 'Full set Core Client Indicator'!$A$3:$AB$3, 0))=\"\", \"\",  INDEX('Full set Core Client Indicator'!$A$3:$AB$351, MATCH(Selection_Hide2!$A71, 'Full set Core Client Indicator'!$A$3:$A$351, 0), MATCH(Selection_Hide2!O$5, 'Full set Core Client Indicator'!$A$3:$AB$3, 0))), \"\")","v":""},{"$f":"IF(O71<>\"\", IF(INDEX('Full set Core Client Indicator'!$A$3:$AB$351, MATCH(Selection_Hide2!$A71, 'Full set Core Client Indicator'!$A$3:$A$351, 0), MATCH(Selection_Hide2!P$5, 'Full set Core Client Indicator'!$A$3:$AB$3, 0))=\"\", \"\",  INDEX('Full set Core Client Indicator'!$A$3:$AB$351, MATCH(Selection_Hide2!$A71, 'Full set Core Client Indicator'!$A$3:$A$351, 0), MATCH(Selection_Hide2!P$5, 'Full set Core Client Indicator'!$A$3:$AB$3, 0))), \"\")","v":""},{"$f":"IF(P71<>\"\", IF(INDEX('Full set Core Client Indicator'!$A$3:$AB$351, MATCH(Selection_Hide2!$A71, 'Full set Core Client Indicator'!$A$3:$A$351, 0), MATCH(Selection_Hide2!Q$5, 'Full set Core Client Indicator'!$A$3:$AB$3, 0))=\"\", \"\",  INDEX('Full set Core Client Indicator'!$A$3:$AB$351, MATCH(Selection_Hide2!$A71, 'Full set Core Client Indicator'!$A$3:$A$351, 0), MATCH(Selection_Hide2!Q$5, 'Full set Core Client Indicator'!$A$3:$AB$3, 0))), \"\")","v":""},{"$f":"IF(Q71<>\"\", IF(INDEX('Full set Core Client Indicator'!$A$3:$AB$351, MATCH(Selection_Hide2!$A71, 'Full set Core Client Indicator'!$A$3:$A$351, 0), MATCH(Selection_Hide2!R$5, 'Full set Core Client Indicator'!$A$3:$AB$3, 0))=\"\", \"\",  INDEX('Full set Core Client Indicator'!$A$3:$AB$351, MATCH(Selection_Hide2!$A71, 'Full set Core Client Indicator'!$A$3:$A$351, 0), MATCH(Selection_Hide2!R$5, 'Full set Core Client Indicator'!$A$3:$AB$3, 0))), \"\")","v":""},{"$f":"IF(R71<>\"\", IF(INDEX('Full set Core Client Indicator'!$A$3:$AB$351, MATCH(Selection_Hide2!$A71, 'Full set Core Client Indicator'!$A$3:$A$351, 0), MATCH(Selection_Hide2!S$5, 'Full set Core Client Indicator'!$A$3:$AB$3, 0))=\"\", \"\",  INDEX('Full set Core Client Indicator'!$A$3:$AB$351, MATCH(Selection_Hide2!$A71, 'Full set Core Client Indicator'!$A$3:$A$351, 0), MATCH(Selection_Hide2!S$5, 'Full set Core Client Indicator'!$A$3:$AB$3, 0))), \"\")","v":""},{"$f":"IF(S71<>\"\", IF(INDEX('Full set Core Client Indicator'!$A$3:$AB$351, MATCH(Selection_Hide2!$A71, 'Full set Core Client Indicator'!$A$3:$A$351, 0), MATCH(Selection_Hide2!T$5, 'Full set Core Client Indicator'!$A$3:$AB$3, 0))=\"\", \"\",  INDEX('Full set Core Client Indicator'!$A$3:$AB$351, MATCH(Selection_Hide2!$A71, 'Full set Core Client Indicator'!$A$3:$A$351, 0), MATCH(Selection_Hide2!T$5, 'Full set Core Client Indicator'!$A$3:$AB$3, 0))), \"\")","v":""},{"$f":"IF(T71<>\"\", IF(INDEX('Full set Core Client Indicator'!$A$3:$AB$351, MATCH(Selection_Hide2!$A71, 'Full set Core Client Indicator'!$A$3:$A$351, 0), MATCH(Selection_Hide2!U$5, 'Full set Core Client Indicator'!$A$3:$AB$3, 0))=\"\", \"\",  INDEX('Full set Core Client Indicator'!$A$3:$AB$351, MATCH(Selection_Hide2!$A71, 'Full set Core Client Indicator'!$A$3:$A$351, 0), MATCH(Selection_Hide2!U$5, 'Full set Core Client Indicator'!$A$3:$AB$3, 0))), \"\")","v":""},{"$f":"IF(U71<>\"\", IF(INDEX('Full set Core Client Indicator'!$A$3:$AB$351, MATCH(Selection_Hide2!$A71, 'Full set Core Client Indicator'!$A$3:$A$351, 0), MATCH(Selection_Hide2!V$5, 'Full set Core Client Indicator'!$A$3:$AB$3, 0))=\"\", \"\",  INDEX('Full set Core Client Indicator'!$A$3:$AB$351, MATCH(Selection_Hide2!$A71, 'Full set Core Client Indicator'!$A$3:$A$351, 0), MATCH(Selection_Hide2!V$5, 'Full set Core Client Indicator'!$A$3:$AB$3, 0))), \"\")","v":""},{"$f":"IF(V71<>\"\", IF(INDEX('Full set Core Client Indicator'!$A$3:$AB$351, MATCH(Selection_Hide2!$A71, 'Full set Core Client Indicator'!$A$3:$A$351, 0), MATCH(Selection_Hide2!W$5, 'Full set Core Client Indicator'!$A$3:$AB$3, 0))=\"\", \"\",  INDEX('Full set Core Client Indicator'!$A$3:$AB$351, MATCH(Selection_Hide2!$A71, 'Full set Core Client Indicator'!$A$3:$A$351, 0), MATCH(Selection_Hide2!W$5, 'Full set Core Client Indicator'!$A$3:$AB$3, 0))), \"\")","v":""},{"$f":"IF(W71<>\"\", IF(INDEX('Full set Core Client Indicator'!$A$3:$AB$351, MATCH(Selection_Hide2!$A71, 'Full set Core Client Indicator'!$A$3:$A$351, 0), MATCH(Selection_Hide2!X$5, 'Full set Core Client Indicator'!$A$3:$AB$3, 0))=\"\", \"\",  INDEX('Full set Core Client Indicator'!$A$3:$AB$351, MATCH(Selection_Hide2!$A71, 'Full set Core Client Indicator'!$A$3:$A$351, 0), MATCH(Selection_Hide2!X$5, 'Full set Core Client Indicator'!$A$3:$AB$3, 0))), \"\")","v":""},{"$f":"IF(X71<>\"\", IF(INDEX('Full set Core Client Indicator'!$A$3:$AB$351, MATCH(Selection_Hide2!$A71, 'Full set Core Client Indicator'!$A$3:$A$351, 0), MATCH(Selection_Hide2!Y$5, 'Full set Core Client Indicator'!$A$3:$AB$3, 0))=\"\", \"\",  INDEX('Full set Core Client Indicator'!$A$3:$AB$351, MATCH(Selection_Hide2!$A71, 'Full set Core Client Indicator'!$A$3:$A$351, 0), MATCH(Selection_Hide2!Y$5, 'Full set Core Client Indicator'!$A$3:$AB$3, 0))), \"\")","v":""},{"$f":"IF(Y71<>\"\", IF(INDEX('Full set Core Client Indicator'!$A$3:$AB$351, MATCH(Selection_Hide2!$A71, 'Full set Core Client Indicator'!$A$3:$A$351, 0), MATCH(Selection_Hide2!Z$5, 'Full set Core Client Indicator'!$A$3:$AB$3, 0))=\"\", \"\",  INDEX('Full set Core Client Indicator'!$A$3:$AB$351, MATCH(Selection_Hide2!$A71, 'Full set Core Client Indicator'!$A$3:$A$351, 0), MATCH(Selection_Hide2!Z$5, 'Full set Core Client Indicator'!$A$3:$AB$3, 0))), \"\")","v":""},{"$f":"IF(Z71<>\"\", IF(INDEX('Full set Core Client Indicator'!$A$3:$AB$351, MATCH(Selection_Hide2!$A71, 'Full set Core Client Indicator'!$A$3:$A$351, 0), MATCH(Selection_Hide2!AA$5, 'Full set Core Client Indicator'!$A$3:$AB$3, 0))=\"\", \"\",  INDEX('Full set Core Client Indicator'!$A$3:$AB$351, MATCH(Selection_Hide2!$A71, 'Full set Core Client Indicator'!$A$3:$A$351, 0), MATCH(Selection_Hide2!AA$5, 'Full set Core Client Indicator'!$A$3:$AB$3, 0))), \"\")","v":""},{"$f":"IF(AA71<>\"\", IF(INDEX('Full set Core Client Indicator'!$A$3:$AB$351, MATCH(Selection_Hide2!$A71, 'Full set Core Client Indicator'!$A$3:$A$351, 0), MATCH(Selection_Hide2!AB$5, 'Full set Core Client Indicator'!$A$3:$AB$3, 0))=\"\", \"\",  INDEX('Full set Core Client Indicator'!$A$3:$AB$351, MATCH(Selection_Hide2!$A71, 'Full set Core Client Indicator'!$A$3:$A$351, 0), MATCH(Selection_Hide2!AB$5, 'Full set Core Client Indicator'!$A$3:$AB$3, 0))), \"\")","v":""}]
[{"$f":"IF(AND(Selection_Hide1!C70<>0, Selection_Hide1!C70<>\"Grand Total\"), Selection_Hide1!C70, \"\")","v":""},{"$f":"IF(A72<>\"\", IF(INDEX('Full set Core Client Indicator'!$A$3:$AB$351, MATCH(Selection_Hide2!$A72, 'Full set Core Client Indicator'!$A$3:$A$351, 0), MATCH(Selection_Hide2!B$5, 'Full set Core Client Indicator'!$A$3:$AB$3, 0))=\"\", \"\",  INDEX('Full set Core Client Indicator'!$A$3:$AB$351, MATCH(Selection_Hide2!$A72, 'Full set Core Client Indicator'!$A$3:$A$351, 0), MATCH(Selection_Hide2!B$5, 'Full set Core Client Indicator'!$A$3:$AB$3, 0))), \"\")","v":""},{"$f":"IF(B72<>\"\", IF(INDEX('Full set Core Client Indicator'!$A$3:$AB$351, MATCH(Selection_Hide2!$A72, 'Full set Core Client Indicator'!$A$3:$A$351, 0), MATCH(Selection_Hide2!C$5, 'Full set Core Client Indicator'!$A$3:$AB$3, 0))=\"\", \"\",  INDEX('Full set Core Client Indicator'!$A$3:$AB$351, MATCH(Selection_Hide2!$A72, 'Full set Core Client Indicator'!$A$3:$A$351, 0), MATCH(Selection_Hide2!C$5, 'Full set Core Client Indicator'!$A$3:$AB$3, 0))), \"\")","v":""},{"$f":"IF(C72<>\"\", IF(INDEX('Full set Core Client Indicator'!$A$3:$AB$351, MATCH(Selection_Hide2!$A72, 'Full set Core Client Indicator'!$A$3:$A$351, 0), MATCH(Selection_Hide2!D$5, 'Full set Core Client Indicator'!$A$3:$AB$3, 0))=\"\", \"\",  INDEX('Full set Core Client Indicator'!$A$3:$AB$351, MATCH(Selection_Hide2!$A72, 'Full set Core Client Indicator'!$A$3:$A$351, 0), MATCH(Selection_Hide2!D$5, 'Full set Core Client Indicator'!$A$3:$AB$3, 0))), \"\")","v":""},{"$f":"IF(D72<>\"\", IF(INDEX('Full set Core Client Indicator'!$A$3:$AB$351, MATCH(Selection_Hide2!$A72, 'Full set Core Client Indicator'!$A$3:$A$351, 0), MATCH(Selection_Hide2!E$5, 'Full set Core Client Indicator'!$A$3:$AB$3, 0))=\"\", \"\",  INDEX('Full set Core Client Indicator'!$A$3:$AB$351, MATCH(Selection_Hide2!$A72, 'Full set Core Client Indicator'!$A$3:$A$351, 0), MATCH(Selection_Hide2!E$5, 'Full set Core Client Indicator'!$A$3:$AB$3, 0))), \"\")","v":""},{"$f":"IF(E72<>\"\", IF(INDEX('Full set Core Client Indicator'!$A$3:$AB$351, MATCH(Selection_Hide2!$A72, 'Full set Core Client Indicator'!$A$3:$A$351, 0), MATCH(Selection_Hide2!F$5, 'Full set Core Client Indicator'!$A$3:$AB$3, 0))=\"\", \"\",  INDEX('Full set Core Client Indicator'!$A$3:$AB$351, MATCH(Selection_Hide2!$A72, 'Full set Core Client Indicator'!$A$3:$A$351, 0), MATCH(Selection_Hide2!F$5, 'Full set Core Client Indicator'!$A$3:$AB$3, 0))), \"\")","v":""},{"$f":"IF(F72<>\"\", IF(INDEX('Full set Core Client Indicator'!$A$3:$AB$351, MATCH(Selection_Hide2!$A72, 'Full set Core Client Indicator'!$A$3:$A$351, 0), MATCH(Selection_Hide2!G$5, 'Full set Core Client Indicator'!$A$3:$AB$3, 0))=\"\", \"\",  INDEX('Full set Core Client Indicator'!$A$3:$AB$351, MATCH(Selection_Hide2!$A72, 'Full set Core Client Indicator'!$A$3:$A$351, 0), MATCH(Selection_Hide2!G$5, 'Full set Core Client Indicator'!$A$3:$AB$3, 0))), \"\")","v":""},{"$f":"IF(G72<>\"\", IF(INDEX('Full set Core Client Indicator'!$A$3:$AB$351, MATCH(Selection_Hide2!$A72, 'Full set Core Client Indicator'!$A$3:$A$351, 0), MATCH(Selection_Hide2!H$5, 'Full set Core Client Indicator'!$A$3:$AB$3, 0))=\"\", \"\",  INDEX('Full set Core Client Indicator'!$A$3:$AB$351, MATCH(Selection_Hide2!$A72, 'Full set Core Client Indicator'!$A$3:$A$351, 0), MATCH(Selection_Hide2!H$5, 'Full set Core Client Indicator'!$A$3:$AB$3, 0))), \"\")","v":""},{"$f":"IF(H72<>\"\", IF(INDEX('Full set Core Client Indicator'!$A$3:$AB$351, MATCH(Selection_Hide2!$A72, 'Full set Core Client Indicator'!$A$3:$A$351, 0), MATCH(Selection_Hide2!I$5, 'Full set Core Client Indicator'!$A$3:$AB$3, 0))=\"\", \"\",  INDEX('Full set Core Client Indicator'!$A$3:$AB$351, MATCH(Selection_Hide2!$A72, 'Full set Core Client Indicator'!$A$3:$A$351, 0), MATCH(Selection_Hide2!I$5, 'Full set Core Client Indicator'!$A$3:$AB$3, 0))), \"\")","v":""},{"$f":"IF(I72<>\"\", IF(INDEX('Full set Core Client Indicator'!$A$3:$AB$351, MATCH(Selection_Hide2!$A72, 'Full set Core Client Indicator'!$A$3:$A$351, 0), MATCH(Selection_Hide2!J$5, 'Full set Core Client Indicator'!$A$3:$AB$3, 0))=\"\", \"\",  INDEX('Full set Core Client Indicator'!$A$3:$AB$351, MATCH(Selection_Hide2!$A72, 'Full set Core Client Indicator'!$A$3:$A$351, 0), MATCH(Selection_Hide2!J$5, 'Full set Core Client Indicator'!$A$3:$AB$3, 0))), \"\")","v":""},{"$f":"IF(J72<>\"\", IF(INDEX('Full set Core Client Indicator'!$A$3:$AB$351, MATCH(Selection_Hide2!$A72, 'Full set Core Client Indicator'!$A$3:$A$351, 0), MATCH(Selection_Hide2!K$5, 'Full set Core Client Indicator'!$A$3:$AB$3, 0))=\"\", \"\",  INDEX('Full set Core Client Indicator'!$A$3:$AB$351, MATCH(Selection_Hide2!$A72, 'Full set Core Client Indicator'!$A$3:$A$351, 0), MATCH(Selection_Hide2!K$5, 'Full set Core Client Indicator'!$A$3:$AB$3, 0))), \"\")","v":""},{"$f":"IF(K72<>\"\", IF(INDEX('Full set Core Client Indicator'!$A$3:$AB$351, MATCH(Selection_Hide2!$A72, 'Full set Core Client Indicator'!$A$3:$A$351, 0), MATCH(Selection_Hide2!L$5, 'Full set Core Client Indicator'!$A$3:$AB$3, 0))=\"\", \"\",  INDEX('Full set Core Client Indicator'!$A$3:$AB$351, MATCH(Selection_Hide2!$A72, 'Full set Core Client Indicator'!$A$3:$A$351, 0), MATCH(Selection_Hide2!L$5, 'Full set Core Client Indicator'!$A$3:$AB$3, 0))), \"\")","v":""},{"$f":"IF(L72<>\"\", IF(INDEX('Full set Core Client Indicator'!$A$3:$AB$351, MATCH(Selection_Hide2!$A72, 'Full set Core Client Indicator'!$A$3:$A$351, 0), MATCH(Selection_Hide2!M$5, 'Full set Core Client Indicator'!$A$3:$AB$3, 0))=\"\", \"\",  INDEX('Full set Core Client Indicator'!$A$3:$AB$351, MATCH(Selection_Hide2!$A72, 'Full set Core Client Indicator'!$A$3:$A$351, 0), MATCH(Selection_Hide2!M$5, 'Full set Core Client Indicator'!$A$3:$AB$3, 0))), \"\")","v":""},{"$f":"IF(M72<>\"\", IF(INDEX('Full set Core Client Indicator'!$A$3:$AB$351, MATCH(Selection_Hide2!$A72, 'Full set Core Client Indicator'!$A$3:$A$351, 0), MATCH(Selection_Hide2!N$5, 'Full set Core Client Indicator'!$A$3:$AB$3, 0))=\"\", \"\",  INDEX('Full set Core Client Indicator'!$A$3:$AB$351, MATCH(Selection_Hide2!$A72, 'Full set Core Client Indicator'!$A$3:$A$351, 0), MATCH(Selection_Hide2!N$5, 'Full set Core Client Indicator'!$A$3:$AB$3, 0))), \"\")","v":""},{"$f":"IF(N72<>\"\", IF(INDEX('Full set Core Client Indicator'!$A$3:$AB$351, MATCH(Selection_Hide2!$A72, 'Full set Core Client Indicator'!$A$3:$A$351, 0), MATCH(Selection_Hide2!O$5, 'Full set Core Client Indicator'!$A$3:$AB$3, 0))=\"\", \"\",  INDEX('Full set Core Client Indicator'!$A$3:$AB$351, MATCH(Selection_Hide2!$A72, 'Full set Core Client Indicator'!$A$3:$A$351, 0), MATCH(Selection_Hide2!O$5, 'Full set Core Client Indicator'!$A$3:$AB$3, 0))), \"\")","v":""},{"$f":"IF(O72<>\"\", IF(INDEX('Full set Core Client Indicator'!$A$3:$AB$351, MATCH(Selection_Hide2!$A72, 'Full set Core Client Indicator'!$A$3:$A$351, 0), MATCH(Selection_Hide2!P$5, 'Full set Core Client Indicator'!$A$3:$AB$3, 0))=\"\", \"\",  INDEX('Full set Core Client Indicator'!$A$3:$AB$351, MATCH(Selection_Hide2!$A72, 'Full set Core Client Indicator'!$A$3:$A$351, 0), MATCH(Selection_Hide2!P$5, 'Full set Core Client Indicator'!$A$3:$AB$3, 0))), \"\")","v":""},{"$f":"IF(P72<>\"\", IF(INDEX('Full set Core Client Indicator'!$A$3:$AB$351, MATCH(Selection_Hide2!$A72, 'Full set Core Client Indicator'!$A$3:$A$351, 0), MATCH(Selection_Hide2!Q$5, 'Full set Core Client Indicator'!$A$3:$AB$3, 0))=\"\", \"\",  INDEX('Full set Core Client Indicator'!$A$3:$AB$351, MATCH(Selection_Hide2!$A72, 'Full set Core Client Indicator'!$A$3:$A$351, 0), MATCH(Selection_Hide2!Q$5, 'Full set Core Client Indicator'!$A$3:$AB$3, 0))), \"\")","v":""},{"$f":"IF(Q72<>\"\", IF(INDEX('Full set Core Client Indicator'!$A$3:$AB$351, MATCH(Selection_Hide2!$A72, 'Full set Core Client Indicator'!$A$3:$A$351, 0), MATCH(Selection_Hide2!R$5, 'Full set Core Client Indicator'!$A$3:$AB$3, 0))=\"\", \"\",  INDEX('Full set Core Client Indicator'!$A$3:$AB$351, MATCH(Selection_Hide2!$A72, 'Full set Core Client Indicator'!$A$3:$A$351, 0), MATCH(Selection_Hide2!R$5, 'Full set Core Client Indicator'!$A$3:$AB$3, 0))), \"\")","v":""},{"$f":"IF(R72<>\"\", IF(INDEX('Full set Core Client Indicator'!$A$3:$AB$351, MATCH(Selection_Hide2!$A72, 'Full set Core Client Indicator'!$A$3:$A$351, 0), MATCH(Selection_Hide2!S$5, 'Full set Core Client Indicator'!$A$3:$AB$3, 0))=\"\", \"\",  INDEX('Full set Core Client Indicator'!$A$3:$AB$351, MATCH(Selection_Hide2!$A72, 'Full set Core Client Indicator'!$A$3:$A$351, 0), MATCH(Selection_Hide2!S$5, 'Full set Core Client Indicator'!$A$3:$AB$3, 0))), \"\")","v":""},{"$f":"IF(S72<>\"\", IF(INDEX('Full set Core Client Indicator'!$A$3:$AB$351, MATCH(Selection_Hide2!$A72, 'Full set Core Client Indicator'!$A$3:$A$351, 0), MATCH(Selection_Hide2!T$5, 'Full set Core Client Indicator'!$A$3:$AB$3, 0))=\"\", \"\",  INDEX('Full set Core Client Indicator'!$A$3:$AB$351, MATCH(Selection_Hide2!$A72, 'Full set Core Client Indicator'!$A$3:$A$351, 0), MATCH(Selection_Hide2!T$5, 'Full set Core Client Indicator'!$A$3:$AB$3, 0))), \"\")","v":""},{"$f":"IF(T72<>\"\", IF(INDEX('Full set Core Client Indicator'!$A$3:$AB$351, MATCH(Selection_Hide2!$A72, 'Full set Core Client Indicator'!$A$3:$A$351, 0), MATCH(Selection_Hide2!U$5, 'Full set Core Client Indicator'!$A$3:$AB$3, 0))=\"\", \"\",  INDEX('Full set Core Client Indicator'!$A$3:$AB$351, MATCH(Selection_Hide2!$A72, 'Full set Core Client Indicator'!$A$3:$A$351, 0), MATCH(Selection_Hide2!U$5, 'Full set Core Client Indicator'!$A$3:$AB$3, 0))), \"\")","v":""},{"$f":"IF(U72<>\"\", IF(INDEX('Full set Core Client Indicator'!$A$3:$AB$351, MATCH(Selection_Hide2!$A72, 'Full set Core Client Indicator'!$A$3:$A$351, 0), MATCH(Selection_Hide2!V$5, 'Full set Core Client Indicator'!$A$3:$AB$3, 0))=\"\", \"\",  INDEX('Full set Core Client Indicator'!$A$3:$AB$351, MATCH(Selection_Hide2!$A72, 'Full set Core Client Indicator'!$A$3:$A$351, 0), MATCH(Selection_Hide2!V$5, 'Full set Core Client Indicator'!$A$3:$AB$3, 0))), \"\")","v":""},{"$f":"IF(V72<>\"\", IF(INDEX('Full set Core Client Indicator'!$A$3:$AB$351, MATCH(Selection_Hide2!$A72, 'Full set Core Client Indicator'!$A$3:$A$351, 0), MATCH(Selection_Hide2!W$5, 'Full set Core Client Indicator'!$A$3:$AB$3, 0))=\"\", \"\",  INDEX('Full set Core Client Indicator'!$A$3:$AB$351, MATCH(Selection_Hide2!$A72, 'Full set Core Client Indicator'!$A$3:$A$351, 0), MATCH(Selection_Hide2!W$5, 'Full set Core Client Indicator'!$A$3:$AB$3, 0))), \"\")","v":""},{"$f":"IF(W72<>\"\", IF(INDEX('Full set Core Client Indicator'!$A$3:$AB$351, MATCH(Selection_Hide2!$A72, 'Full set Core Client Indicator'!$A$3:$A$351, 0), MATCH(Selection_Hide2!X$5, 'Full set Core Client Indicator'!$A$3:$AB$3, 0))=\"\", \"\",  INDEX('Full set Core Client Indicator'!$A$3:$AB$351, MATCH(Selection_Hide2!$A72, 'Full set Core Client Indicator'!$A$3:$A$351, 0), MATCH(Selection_Hide2!X$5, 'Full set Core Client Indicator'!$A$3:$AB$3, 0))), \"\")","v":""},{"$f":"IF(X72<>\"\", IF(INDEX('Full set Core Client Indicator'!$A$3:$AB$351, MATCH(Selection_Hide2!$A72, 'Full set Core Client Indicator'!$A$3:$A$351, 0), MATCH(Selection_Hide2!Y$5, 'Full set Core Client Indicator'!$A$3:$AB$3, 0))=\"\", \"\",  INDEX('Full set Core Client Indicator'!$A$3:$AB$351, MATCH(Selection_Hide2!$A72, 'Full set Core Client Indicator'!$A$3:$A$351, 0), MATCH(Selection_Hide2!Y$5, 'Full set Core Client Indicator'!$A$3:$AB$3, 0))), \"\")","v":""},{"$f":"IF(Y72<>\"\", IF(INDEX('Full set Core Client Indicator'!$A$3:$AB$351, MATCH(Selection_Hide2!$A72, 'Full set Core Client Indicator'!$A$3:$A$351, 0), MATCH(Selection_Hide2!Z$5, 'Full set Core Client Indicator'!$A$3:$AB$3, 0))=\"\", \"\",  INDEX('Full set Core Client Indicator'!$A$3:$AB$351, MATCH(Selection_Hide2!$A72, 'Full set Core Client Indicator'!$A$3:$A$351, 0), MATCH(Selection_Hide2!Z$5, 'Full set Core Client Indicator'!$A$3:$AB$3, 0))), \"\")","v":""},{"$f":"IF(Z72<>\"\", IF(INDEX('Full set Core Client Indicator'!$A$3:$AB$351, MATCH(Selection_Hide2!$A72, 'Full set Core Client Indicator'!$A$3:$A$351, 0), MATCH(Selection_Hide2!AA$5, 'Full set Core Client Indicator'!$A$3:$AB$3, 0))=\"\", \"\",  INDEX('Full set Core Client Indicator'!$A$3:$AB$351, MATCH(Selection_Hide2!$A72, 'Full set Core Client Indicator'!$A$3:$A$351, 0), MATCH(Selection_Hide2!AA$5, 'Full set Core Client Indicator'!$A$3:$AB$3, 0))), \"\")","v":""},{"$f":"IF(AA72<>\"\", IF(INDEX('Full set Core Client Indicator'!$A$3:$AB$351, MATCH(Selection_Hide2!$A72, 'Full set Core Client Indicator'!$A$3:$A$351, 0), MATCH(Selection_Hide2!AB$5, 'Full set Core Client Indicator'!$A$3:$AB$3, 0))=\"\", \"\",  INDEX('Full set Core Client Indicator'!$A$3:$AB$351, MATCH(Selection_Hide2!$A72, 'Full set Core Client Indicator'!$A$3:$A$351, 0), MATCH(Selection_Hide2!AB$5, 'Full set Core Client Indicator'!$A$3:$AB$3, 0))), \"\")","v":""}]
[{"$f":"IF(AND(Selection_Hide1!C71<>0, Selection_Hide1!C71<>\"Grand Total\"), Selection_Hide1!C71, \"\")","v":""},{"$f":"IF(A73<>\"\", IF(INDEX('Full set Core Client Indicator'!$A$3:$AB$351, MATCH(Selection_Hide2!$A73, 'Full set Core Client Indicator'!$A$3:$A$351, 0), MATCH(Selection_Hide2!B$5, 'Full set Core Client Indicator'!$A$3:$AB$3, 0))=\"\", \"\",  INDEX('Full set Core Client Indicator'!$A$3:$AB$351, MATCH(Selection_Hide2!$A73, 'Full set Core Client Indicator'!$A$3:$A$351, 0), MATCH(Selection_Hide2!B$5, 'Full set Core Client Indicator'!$A$3:$AB$3, 0))), \"\")","v":""},{"$f":"IF(B73<>\"\", IF(INDEX('Full set Core Client Indicator'!$A$3:$AB$351, MATCH(Selection_Hide2!$A73, 'Full set Core Client Indicator'!$A$3:$A$351, 0), MATCH(Selection_Hide2!C$5, 'Full set Core Client Indicator'!$A$3:$AB$3, 0))=\"\", \"\",  INDEX('Full set Core Client Indicator'!$A$3:$AB$351, MATCH(Selection_Hide2!$A73, 'Full set Core Client Indicator'!$A$3:$A$351, 0), MATCH(Selection_Hide2!C$5, 'Full set Core Client Indicator'!$A$3:$AB$3, 0))), \"\")","v":""},{"$f":"IF(C73<>\"\", IF(INDEX('Full set Core Client Indicator'!$A$3:$AB$351, MATCH(Selection_Hide2!$A73, 'Full set Core Client Indicator'!$A$3:$A$351, 0), MATCH(Selection_Hide2!D$5, 'Full set Core Client Indicator'!$A$3:$AB$3, 0))=\"\", \"\",  INDEX('Full set Core Client Indicator'!$A$3:$AB$351, MATCH(Selection_Hide2!$A73, 'Full set Core Client Indicator'!$A$3:$A$351, 0), MATCH(Selection_Hide2!D$5, 'Full set Core Client Indicator'!$A$3:$AB$3, 0))), \"\")","v":""},{"$f":"IF(D73<>\"\", IF(INDEX('Full set Core Client Indicator'!$A$3:$AB$351, MATCH(Selection_Hide2!$A73, 'Full set Core Client Indicator'!$A$3:$A$351, 0), MATCH(Selection_Hide2!E$5, 'Full set Core Client Indicator'!$A$3:$AB$3, 0))=\"\", \"\",  INDEX('Full set Core Client Indicator'!$A$3:$AB$351, MATCH(Selection_Hide2!$A73, 'Full set Core Client Indicator'!$A$3:$A$351, 0), MATCH(Selection_Hide2!E$5, 'Full set Core Client Indicator'!$A$3:$AB$3, 0))), \"\")","v":""},{"$f":"IF(E73<>\"\", IF(INDEX('Full set Core Client Indicator'!$A$3:$AB$351, MATCH(Selection_Hide2!$A73, 'Full set Core Client Indicator'!$A$3:$A$351, 0), MATCH(Selection_Hide2!F$5, 'Full set Core Client Indicator'!$A$3:$AB$3, 0))=\"\", \"\",  INDEX('Full set Core Client Indicator'!$A$3:$AB$351, MATCH(Selection_Hide2!$A73, 'Full set Core Client Indicator'!$A$3:$A$351, 0), MATCH(Selection_Hide2!F$5, 'Full set Core Client Indicator'!$A$3:$AB$3, 0))), \"\")","v":""},{"$f":"IF(F73<>\"\", IF(INDEX('Full set Core Client Indicator'!$A$3:$AB$351, MATCH(Selection_Hide2!$A73, 'Full set Core Client Indicator'!$A$3:$A$351, 0), MATCH(Selection_Hide2!G$5, 'Full set Core Client Indicator'!$A$3:$AB$3, 0))=\"\", \"\",  INDEX('Full set Core Client Indicator'!$A$3:$AB$351, MATCH(Selection_Hide2!$A73, 'Full set Core Client Indicator'!$A$3:$A$351, 0), MATCH(Selection_Hide2!G$5, 'Full set Core Client Indicator'!$A$3:$AB$3, 0))), \"\")","v":""},{"$f":"IF(G73<>\"\", IF(INDEX('Full set Core Client Indicator'!$A$3:$AB$351, MATCH(Selection_Hide2!$A73, 'Full set Core Client Indicator'!$A$3:$A$351, 0), MATCH(Selection_Hide2!H$5, 'Full set Core Client Indicator'!$A$3:$AB$3, 0))=\"\", \"\",  INDEX('Full set Core Client Indicator'!$A$3:$AB$351, MATCH(Selection_Hide2!$A73, 'Full set Core Client Indicator'!$A$3:$A$351, 0), MATCH(Selection_Hide2!H$5, 'Full set Core Client Indicator'!$A$3:$AB$3, 0))), \"\")","v":""},{"$f":"IF(H73<>\"\", IF(INDEX('Full set Core Client Indicator'!$A$3:$AB$351, MATCH(Selection_Hide2!$A73, 'Full set Core Client Indicator'!$A$3:$A$351, 0), MATCH(Selection_Hide2!I$5, 'Full set Core Client Indicator'!$A$3:$AB$3, 0))=\"\", \"\",  INDEX('Full set Core Client Indicator'!$A$3:$AB$351, MATCH(Selection_Hide2!$A73, 'Full set Core Client Indicator'!$A$3:$A$351, 0), MATCH(Selection_Hide2!I$5, 'Full set Core Client Indicator'!$A$3:$AB$3, 0))), \"\")","v":""},{"$f":"IF(I73<>\"\", IF(INDEX('Full set Core Client Indicator'!$A$3:$AB$351, MATCH(Selection_Hide2!$A73, 'Full set Core Client Indicator'!$A$3:$A$351, 0), MATCH(Selection_Hide2!J$5, 'Full set Core Client Indicator'!$A$3:$AB$3, 0))=\"\", \"\",  INDEX('Full set Core Client Indicator'!$A$3:$AB$351, MATCH(Selection_Hide2!$A73, 'Full set Core Client Indicator'!$A$3:$A$351, 0), MATCH(Selection_Hide2!J$5, 'Full set Core Client Indicator'!$A$3:$AB$3, 0))), \"\")","v":""},{"$f":"IF(J73<>\"\", IF(INDEX('Full set Core Client Indicator'!$A$3:$AB$351, MATCH(Selection_Hide2!$A73, 'Full set Core Client Indicator'!$A$3:$A$351, 0), MATCH(Selection_Hide2!K$5, 'Full set Core Client Indicator'!$A$3:$AB$3, 0))=\"\", \"\",  INDEX('Full set Core Client Indicator'!$A$3:$AB$351, MATCH(Selection_Hide2!$A73, 'Full set Core Client Indicator'!$A$3:$A$351, 0), MATCH(Selection_Hide2!K$5, 'Full set Core Client Indicator'!$A$3:$AB$3, 0))), \"\")","v":""},{"$f":"IF(K73<>\"\", IF(INDEX('Full set Core Client Indicator'!$A$3:$AB$351, MATCH(Selection_Hide2!$A73, 'Full set Core Client Indicator'!$A$3:$A$351, 0), MATCH(Selection_Hide2!L$5, 'Full set Core Client Indicator'!$A$3:$AB$3, 0))=\"\", \"\",  INDEX('Full set Core Client Indicator'!$A$3:$AB$351, MATCH(Selection_Hide2!$A73, 'Full set Core Client Indicator'!$A$3:$A$351, 0), MATCH(Selection_Hide2!L$5, 'Full set Core Client Indicator'!$A$3:$AB$3, 0))), \"\")","v":""},{"$f":"IF(L73<>\"\", IF(INDEX('Full set Core Client Indicator'!$A$3:$AB$351, MATCH(Selection_Hide2!$A73, 'Full set Core Client Indicator'!$A$3:$A$351, 0), MATCH(Selection_Hide2!M$5, 'Full set Core Client Indicator'!$A$3:$AB$3, 0))=\"\", \"\",  INDEX('Full set Core Client Indicator'!$A$3:$AB$351, MATCH(Selection_Hide2!$A73, 'Full set Core Client Indicator'!$A$3:$A$351, 0), MATCH(Selection_Hide2!M$5, 'Full set Core Client Indicator'!$A$3:$AB$3, 0))), \"\")","v":""},{"$f":"IF(M73<>\"\", IF(INDEX('Full set Core Client Indicator'!$A$3:$AB$351, MATCH(Selection_Hide2!$A73, 'Full set Core Client Indicator'!$A$3:$A$351, 0), MATCH(Selection_Hide2!N$5, 'Full set Core Client Indicator'!$A$3:$AB$3, 0))=\"\", \"\",  INDEX('Full set Core Client Indicator'!$A$3:$AB$351, MATCH(Selection_Hide2!$A73, 'Full set Core Client Indicator'!$A$3:$A$351, 0), MATCH(Selection_Hide2!N$5, 'Full set Core Client Indicator'!$A$3:$AB$3, 0))), \"\")","v":""},{"$f":"IF(N73<>\"\", IF(INDEX('Full set Core Client Indicator'!$A$3:$AB$351, MATCH(Selection_Hide2!$A73, 'Full set Core Client Indicator'!$A$3:$A$351, 0), MATCH(Selection_Hide2!O$5, 'Full set Core Client Indicator'!$A$3:$AB$3, 0))=\"\", \"\",  INDEX('Full set Core Client Indicator'!$A$3:$AB$351, MATCH(Selection_Hide2!$A73, 'Full set Core Client Indicator'!$A$3:$A$351, 0), MATCH(Selection_Hide2!O$5, 'Full set Core Client Indicator'!$A$3:$AB$3, 0))), \"\")","v":""},{"$f":"IF(O73<>\"\", IF(INDEX('Full set Core Client Indicator'!$A$3:$AB$351, MATCH(Selection_Hide2!$A73, 'Full set Core Client Indicator'!$A$3:$A$351, 0), MATCH(Selection_Hide2!P$5, 'Full set Core Client Indicator'!$A$3:$AB$3, 0))=\"\", \"\",  INDEX('Full set Core Client Indicator'!$A$3:$AB$351, MATCH(Selection_Hide2!$A73, 'Full set Core Client Indicator'!$A$3:$A$351, 0), MATCH(Selection_Hide2!P$5, 'Full set Core Client Indicator'!$A$3:$AB$3, 0))), \"\")","v":""},{"$f":"IF(P73<>\"\", IF(INDEX('Full set Core Client Indicator'!$A$3:$AB$351, MATCH(Selection_Hide2!$A73, 'Full set Core Client Indicator'!$A$3:$A$351, 0), MATCH(Selection_Hide2!Q$5, 'Full set Core Client Indicator'!$A$3:$AB$3, 0))=\"\", \"\",  INDEX('Full set Core Client Indicator'!$A$3:$AB$351, MATCH(Selection_Hide2!$A73, 'Full set Core Client Indicator'!$A$3:$A$351, 0), MATCH(Selection_Hide2!Q$5, 'Full set Core Client Indicator'!$A$3:$AB$3, 0))), \"\")","v":""},{"$f":"IF(Q73<>\"\", IF(INDEX('Full set Core Client Indicator'!$A$3:$AB$351, MATCH(Selection_Hide2!$A73, 'Full set Core Client Indicator'!$A$3:$A$351, 0), MATCH(Selection_Hide2!R$5, 'Full set Core Client Indicator'!$A$3:$AB$3, 0))=\"\", \"\",  INDEX('Full set Core Client Indicator'!$A$3:$AB$351, MATCH(Selection_Hide2!$A73, 'Full set Core Client Indicator'!$A$3:$A$351, 0), MATCH(Selection_Hide2!R$5, 'Full set Core Client Indicator'!$A$3:$AB$3, 0))), \"\")","v":""},{"$f":"IF(R73<>\"\", IF(INDEX('Full set Core Client Indicator'!$A$3:$AB$351, MATCH(Selection_Hide2!$A73, 'Full set Core Client Indicator'!$A$3:$A$351, 0), MATCH(Selection_Hide2!S$5, 'Full set Core Client Indicator'!$A$3:$AB$3, 0))=\"\", \"\",  INDEX('Full set Core Client Indicator'!$A$3:$AB$351, MATCH(Selection_Hide2!$A73, 'Full set Core Client Indicator'!$A$3:$A$351, 0), MATCH(Selection_Hide2!S$5, 'Full set Core Client Indicator'!$A$3:$AB$3, 0))), \"\")","v":""},{"$f":"IF(S73<>\"\", IF(INDEX('Full set Core Client Indicator'!$A$3:$AB$351, MATCH(Selection_Hide2!$A73, 'Full set Core Client Indicator'!$A$3:$A$351, 0), MATCH(Selection_Hide2!T$5, 'Full set Core Client Indicator'!$A$3:$AB$3, 0))=\"\", \"\",  INDEX('Full set Core Client Indicator'!$A$3:$AB$351, MATCH(Selection_Hide2!$A73, 'Full set Core Client Indicator'!$A$3:$A$351, 0), MATCH(Selection_Hide2!T$5, 'Full set Core Client Indicator'!$A$3:$AB$3, 0))), \"\")","v":""},{"$f":"IF(T73<>\"\", IF(INDEX('Full set Core Client Indicator'!$A$3:$AB$351, MATCH(Selection_Hide2!$A73, 'Full set Core Client Indicator'!$A$3:$A$351, 0), MATCH(Selection_Hide2!U$5, 'Full set Core Client Indicator'!$A$3:$AB$3, 0))=\"\", \"\",  INDEX('Full set Core Client Indicator'!$A$3:$AB$351, MATCH(Selection_Hide2!$A73, 'Full set Core Client Indicator'!$A$3:$A$351, 0), MATCH(Selection_Hide2!U$5, 'Full set Core Client Indicator'!$A$3:$AB$3, 0))), \"\")","v":""},{"$f":"IF(U73<>\"\", IF(INDEX('Full set Core Client Indicator'!$A$3:$AB$351, MATCH(Selection_Hide2!$A73, 'Full set Core Client Indicator'!$A$3:$A$351, 0), MATCH(Selection_Hide2!V$5, 'Full set Core Client Indicator'!$A$3:$AB$3, 0))=\"\", \"\",  INDEX('Full set Core Client Indicator'!$A$3:$AB$351, MATCH(Selection_Hide2!$A73, 'Full set Core Client Indicator'!$A$3:$A$351, 0), MATCH(Selection_Hide2!V$5, 'Full set Core Client Indicator'!$A$3:$AB$3, 0))), \"\")","v":""},{"$f":"IF(V73<>\"\", IF(INDEX('Full set Core Client Indicator'!$A$3:$AB$351, MATCH(Selection_Hide2!$A73, 'Full set Core Client Indicator'!$A$3:$A$351, 0), MATCH(Selection_Hide2!W$5, 'Full set Core Client Indicator'!$A$3:$AB$3, 0))=\"\", \"\",  INDEX('Full set Core Client Indicator'!$A$3:$AB$351, MATCH(Selection_Hide2!$A73, 'Full set Core Client Indicator'!$A$3:$A$351, 0), MATCH(Selection_Hide2!W$5, 'Full set Core Client Indicator'!$A$3:$AB$3, 0))), \"\")","v":""},{"$f":"IF(W73<>\"\", IF(INDEX('Full set Core Client Indicator'!$A$3:$AB$351, MATCH(Selection_Hide2!$A73, 'Full set Core Client Indicator'!$A$3:$A$351, 0), MATCH(Selection_Hide2!X$5, 'Full set Core Client Indicator'!$A$3:$AB$3, 0))=\"\", \"\",  INDEX('Full set Core Client Indicator'!$A$3:$AB$351, MATCH(Selection_Hide2!$A73, 'Full set Core Client Indicator'!$A$3:$A$351, 0), MATCH(Selection_Hide2!X$5, 'Full set Core Client Indicator'!$A$3:$AB$3, 0))), \"\")","v":""},{"$f":"IF(X73<>\"\", IF(INDEX('Full set Core Client Indicator'!$A$3:$AB$351, MATCH(Selection_Hide2!$A73, 'Full set Core Client Indicator'!$A$3:$A$351, 0), MATCH(Selection_Hide2!Y$5, 'Full set Core Client Indicator'!$A$3:$AB$3, 0))=\"\", \"\",  INDEX('Full set Core Client Indicator'!$A$3:$AB$351, MATCH(Selection_Hide2!$A73, 'Full set Core Client Indicator'!$A$3:$A$351, 0), MATCH(Selection_Hide2!Y$5, 'Full set Core Client Indicator'!$A$3:$AB$3, 0))), \"\")","v":""},{"$f":"IF(Y73<>\"\", IF(INDEX('Full set Core Client Indicator'!$A$3:$AB$351, MATCH(Selection_Hide2!$A73, 'Full set Core Client Indicator'!$A$3:$A$351, 0), MATCH(Selection_Hide2!Z$5, 'Full set Core Client Indicator'!$A$3:$AB$3, 0))=\"\", \"\",  INDEX('Full set Core Client Indicator'!$A$3:$AB$351, MATCH(Selection_Hide2!$A73, 'Full set Core Client Indicator'!$A$3:$A$351, 0), MATCH(Selection_Hide2!Z$5, 'Full set Core Client Indicator'!$A$3:$AB$3, 0))), \"\")","v":""},{"$f":"IF(Z73<>\"\", IF(INDEX('Full set Core Client Indicator'!$A$3:$AB$351, MATCH(Selection_Hide2!$A73, 'Full set Core Client Indicator'!$A$3:$A$351, 0), MATCH(Selection_Hide2!AA$5, 'Full set Core Client Indicator'!$A$3:$AB$3, 0))=\"\", \"\",  INDEX('Full set Core Client Indicator'!$A$3:$AB$351, MATCH(Selection_Hide2!$A73, 'Full set Core Client Indicator'!$A$3:$A$351, 0), MATCH(Selection_Hide2!AA$5, 'Full set Core Client Indicator'!$A$3:$AB$3, 0))), \"\")","v":""},{"$f":"IF(AA73<>\"\", IF(INDEX('Full set Core Client Indicator'!$A$3:$AB$351, MATCH(Selection_Hide2!$A73, 'Full set Core Client Indicator'!$A$3:$A$351, 0), MATCH(Selection_Hide2!AB$5, 'Full set Core Client Indicator'!$A$3:$AB$3, 0))=\"\", \"\",  INDEX('Full set Core Client Indicator'!$A$3:$AB$351, MATCH(Selection_Hide2!$A73, 'Full set Core Client Indicator'!$A$3:$A$351, 0), MATCH(Selection_Hide2!AB$5, 'Full set Core Client Indicator'!$A$3:$AB$3, 0))), \"\")","v":""}]
[{"$f":"IF(AND(Selection_Hide1!C72<>0, Selection_Hide1!C72<>\"Grand Total\"), Selection_Hide1!C72, \"\")","v":""},{"$f":"IF(A74<>\"\", IF(INDEX('Full set Core Client Indicator'!$A$3:$AB$351, MATCH(Selection_Hide2!$A74, 'Full set Core Client Indicator'!$A$3:$A$351, 0), MATCH(Selection_Hide2!B$5, 'Full set Core Client Indicator'!$A$3:$AB$3, 0))=\"\", \"\",  INDEX('Full set Core Client Indicator'!$A$3:$AB$351, MATCH(Selection_Hide2!$A74, 'Full set Core Client Indicator'!$A$3:$A$351, 0), MATCH(Selection_Hide2!B$5, 'Full set Core Client Indicator'!$A$3:$AB$3, 0))), \"\")","v":""},{"$f":"IF(B74<>\"\", IF(INDEX('Full set Core Client Indicator'!$A$3:$AB$351, MATCH(Selection_Hide2!$A74, 'Full set Core Client Indicator'!$A$3:$A$351, 0), MATCH(Selection_Hide2!C$5, 'Full set Core Client Indicator'!$A$3:$AB$3, 0))=\"\", \"\",  INDEX('Full set Core Client Indicator'!$A$3:$AB$351, MATCH(Selection_Hide2!$A74, 'Full set Core Client Indicator'!$A$3:$A$351, 0), MATCH(Selection_Hide2!C$5, 'Full set Core Client Indicator'!$A$3:$AB$3, 0))), \"\")","v":""},{"$f":"IF(C74<>\"\", IF(INDEX('Full set Core Client Indicator'!$A$3:$AB$351, MATCH(Selection_Hide2!$A74, 'Full set Core Client Indicator'!$A$3:$A$351, 0), MATCH(Selection_Hide2!D$5, 'Full set Core Client Indicator'!$A$3:$AB$3, 0))=\"\", \"\",  INDEX('Full set Core Client Indicator'!$A$3:$AB$351, MATCH(Selection_Hide2!$A74, 'Full set Core Client Indicator'!$A$3:$A$351, 0), MATCH(Selection_Hide2!D$5, 'Full set Core Client Indicator'!$A$3:$AB$3, 0))), \"\")","v":""},{"$f":"IF(D74<>\"\", IF(INDEX('Full set Core Client Indicator'!$A$3:$AB$351, MATCH(Selection_Hide2!$A74, 'Full set Core Client Indicator'!$A$3:$A$351, 0), MATCH(Selection_Hide2!E$5, 'Full set Core Client Indicator'!$A$3:$AB$3, 0))=\"\", \"\",  INDEX('Full set Core Client Indicator'!$A$3:$AB$351, MATCH(Selection_Hide2!$A74, 'Full set Core Client Indicator'!$A$3:$A$351, 0), MATCH(Selection_Hide2!E$5, 'Full set Core Client Indicator'!$A$3:$AB$3, 0))), \"\")","v":""},{"$f":"IF(E74<>\"\", IF(INDEX('Full set Core Client Indicator'!$A$3:$AB$351, MATCH(Selection_Hide2!$A74, 'Full set Core Client Indicator'!$A$3:$A$351, 0), MATCH(Selection_Hide2!F$5, 'Full set Core Client Indicator'!$A$3:$AB$3, 0))=\"\", \"\",  INDEX('Full set Core Client Indicator'!$A$3:$AB$351, MATCH(Selection_Hide2!$A74, 'Full set Core Client Indicator'!$A$3:$A$351, 0), MATCH(Selection_Hide2!F$5, 'Full set Core Client Indicator'!$A$3:$AB$3, 0))), \"\")","v":""},{"$f":"IF(F74<>\"\", IF(INDEX('Full set Core Client Indicator'!$A$3:$AB$351, MATCH(Selection_Hide2!$A74, 'Full set Core Client Indicator'!$A$3:$A$351, 0), MATCH(Selection_Hide2!G$5, 'Full set Core Client Indicator'!$A$3:$AB$3, 0))=\"\", \"\",  INDEX('Full set Core Client Indicator'!$A$3:$AB$351, MATCH(Selection_Hide2!$A74, 'Full set Core Client Indicator'!$A$3:$A$351, 0), MATCH(Selection_Hide2!G$5, 'Full set Core Client Indicator'!$A$3:$AB$3, 0))), \"\")","v":""},{"$f":"IF(G74<>\"\", IF(INDEX('Full set Core Client Indicator'!$A$3:$AB$351, MATCH(Selection_Hide2!$A74, 'Full set Core Client Indicator'!$A$3:$A$351, 0), MATCH(Selection_Hide2!H$5, 'Full set Core Client Indicator'!$A$3:$AB$3, 0))=\"\", \"\",  INDEX('Full set Core Client Indicator'!$A$3:$AB$351, MATCH(Selection_Hide2!$A74, 'Full set Core Client Indicator'!$A$3:$A$351, 0), MATCH(Selection_Hide2!H$5, 'Full set Core Client Indicator'!$A$3:$AB$3, 0))), \"\")","v":""},{"$f":"IF(H74<>\"\", IF(INDEX('Full set Core Client Indicator'!$A$3:$AB$351, MATCH(Selection_Hide2!$A74, 'Full set Core Client Indicator'!$A$3:$A$351, 0), MATCH(Selection_Hide2!I$5, 'Full set Core Client Indicator'!$A$3:$AB$3, 0))=\"\", \"\",  INDEX('Full set Core Client Indicator'!$A$3:$AB$351, MATCH(Selection_Hide2!$A74, 'Full set Core Client Indicator'!$A$3:$A$351, 0), MATCH(Selection_Hide2!I$5, 'Full set Core Client Indicator'!$A$3:$AB$3, 0))), \"\")","v":""},{"$f":"IF(I74<>\"\", IF(INDEX('Full set Core Client Indicator'!$A$3:$AB$351, MATCH(Selection_Hide2!$A74, 'Full set Core Client Indicator'!$A$3:$A$351, 0), MATCH(Selection_Hide2!J$5, 'Full set Core Client Indicator'!$A$3:$AB$3, 0))=\"\", \"\",  INDEX('Full set Core Client Indicator'!$A$3:$AB$351, MATCH(Selection_Hide2!$A74, 'Full set Core Client Indicator'!$A$3:$A$351, 0), MATCH(Selection_Hide2!J$5, 'Full set Core Client Indicator'!$A$3:$AB$3, 0))), \"\")","v":""},{"$f":"IF(J74<>\"\", IF(INDEX('Full set Core Client Indicator'!$A$3:$AB$351, MATCH(Selection_Hide2!$A74, 'Full set Core Client Indicator'!$A$3:$A$351, 0), MATCH(Selection_Hide2!K$5, 'Full set Core Client Indicator'!$A$3:$AB$3, 0))=\"\", \"\",  INDEX('Full set Core Client Indicator'!$A$3:$AB$351, MATCH(Selection_Hide2!$A74, 'Full set Core Client Indicator'!$A$3:$A$351, 0), MATCH(Selection_Hide2!K$5, 'Full set Core Client Indicator'!$A$3:$AB$3, 0))), \"\")","v":""},{"$f":"IF(K74<>\"\", IF(INDEX('Full set Core Client Indicator'!$A$3:$AB$351, MATCH(Selection_Hide2!$A74, 'Full set Core Client Indicator'!$A$3:$A$351, 0), MATCH(Selection_Hide2!L$5, 'Full set Core Client Indicator'!$A$3:$AB$3, 0))=\"\", \"\",  INDEX('Full set Core Client Indicator'!$A$3:$AB$351, MATCH(Selection_Hide2!$A74, 'Full set Core Client Indicator'!$A$3:$A$351, 0), MATCH(Selection_Hide2!L$5, 'Full set Core Client Indicator'!$A$3:$AB$3, 0))), \"\")","v":""},{"$f":"IF(L74<>\"\", IF(INDEX('Full set Core Client Indicator'!$A$3:$AB$351, MATCH(Selection_Hide2!$A74, 'Full set Core Client Indicator'!$A$3:$A$351, 0), MATCH(Selection_Hide2!M$5, 'Full set Core Client Indicator'!$A$3:$AB$3, 0))=\"\", \"\",  INDEX('Full set Core Client Indicator'!$A$3:$AB$351, MATCH(Selection_Hide2!$A74, 'Full set Core Client Indicator'!$A$3:$A$351, 0), MATCH(Selection_Hide2!M$5, 'Full set Core Client Indicator'!$A$3:$AB$3, 0))), \"\")","v":""},{"$f":"IF(M74<>\"\", IF(INDEX('Full set Core Client Indicator'!$A$3:$AB$351, MATCH(Selection_Hide2!$A74, 'Full set Core Client Indicator'!$A$3:$A$351, 0), MATCH(Selection_Hide2!N$5, 'Full set Core Client Indicator'!$A$3:$AB$3, 0))=\"\", \"\",  INDEX('Full set Core Client Indicator'!$A$3:$AB$351, MATCH(Selection_Hide2!$A74, 'Full set Core Client Indicator'!$A$3:$A$351, 0), MATCH(Selection_Hide2!N$5, 'Full set Core Client Indicator'!$A$3:$AB$3, 0))), \"\")","v":""},{"$f":"IF(N74<>\"\", IF(INDEX('Full set Core Client Indicator'!$A$3:$AB$351, MATCH(Selection_Hide2!$A74, 'Full set Core Client Indicator'!$A$3:$A$351, 0), MATCH(Selection_Hide2!O$5, 'Full set Core Client Indicator'!$A$3:$AB$3, 0))=\"\", \"\",  INDEX('Full set Core Client Indicator'!$A$3:$AB$351, MATCH(Selection_Hide2!$A74, 'Full set Core Client Indicator'!$A$3:$A$351, 0), MATCH(Selection_Hide2!O$5, 'Full set Core Client Indicator'!$A$3:$AB$3, 0))), \"\")","v":""},{"$f":"IF(O74<>\"\", IF(INDEX('Full set Core Client Indicator'!$A$3:$AB$351, MATCH(Selection_Hide2!$A74, 'Full set Core Client Indicator'!$A$3:$A$351, 0), MATCH(Selection_Hide2!P$5, 'Full set Core Client Indicator'!$A$3:$AB$3, 0))=\"\", \"\",  INDEX('Full set Core Client Indicator'!$A$3:$AB$351, MATCH(Selection_Hide2!$A74, 'Full set Core Client Indicator'!$A$3:$A$351, 0), MATCH(Selection_Hide2!P$5, 'Full set Core Client Indicator'!$A$3:$AB$3, 0))), \"\")","v":""},{"$f":"IF(P74<>\"\", IF(INDEX('Full set Core Client Indicator'!$A$3:$AB$351, MATCH(Selection_Hide2!$A74, 'Full set Core Client Indicator'!$A$3:$A$351, 0), MATCH(Selection_Hide2!Q$5, 'Full set Core Client Indicator'!$A$3:$AB$3, 0))=\"\", \"\",  INDEX('Full set Core Client Indicator'!$A$3:$AB$351, MATCH(Selection_Hide2!$A74, 'Full set Core Client Indicator'!$A$3:$A$351, 0), MATCH(Selection_Hide2!Q$5, 'Full set Core Client Indicator'!$A$3:$AB$3, 0))), \"\")","v":""},{"$f":"IF(Q74<>\"\", IF(INDEX('Full set Core Client Indicator'!$A$3:$AB$351, MATCH(Selection_Hide2!$A74, 'Full set Core Client Indicator'!$A$3:$A$351, 0), MATCH(Selection_Hide2!R$5, 'Full set Core Client Indicator'!$A$3:$AB$3, 0))=\"\", \"\",  INDEX('Full set Core Client Indicator'!$A$3:$AB$351, MATCH(Selection_Hide2!$A74, 'Full set Core Client Indicator'!$A$3:$A$351, 0), MATCH(Selection_Hide2!R$5, 'Full set Core Client Indicator'!$A$3:$AB$3, 0))), \"\")","v":""},{"$f":"IF(R74<>\"\", IF(INDEX('Full set Core Client Indicator'!$A$3:$AB$351, MATCH(Selection_Hide2!$A74, 'Full set Core Client Indicator'!$A$3:$A$351, 0), MATCH(Selection_Hide2!S$5, 'Full set Core Client Indicator'!$A$3:$AB$3, 0))=\"\", \"\",  INDEX('Full set Core Client Indicator'!$A$3:$AB$351, MATCH(Selection_Hide2!$A74, 'Full set Core Client Indicator'!$A$3:$A$351, 0), MATCH(Selection_Hide2!S$5, 'Full set Core Client Indicator'!$A$3:$AB$3, 0))), \"\")","v":""},{"$f":"IF(S74<>\"\", IF(INDEX('Full set Core Client Indicator'!$A$3:$AB$351, MATCH(Selection_Hide2!$A74, 'Full set Core Client Indicator'!$A$3:$A$351, 0), MATCH(Selection_Hide2!T$5, 'Full set Core Client Indicator'!$A$3:$AB$3, 0))=\"\", \"\",  INDEX('Full set Core Client Indicator'!$A$3:$AB$351, MATCH(Selection_Hide2!$A74, 'Full set Core Client Indicator'!$A$3:$A$351, 0), MATCH(Selection_Hide2!T$5, 'Full set Core Client Indicator'!$A$3:$AB$3, 0))), \"\")","v":""},{"$f":"IF(T74<>\"\", IF(INDEX('Full set Core Client Indicator'!$A$3:$AB$351, MATCH(Selection_Hide2!$A74, 'Full set Core Client Indicator'!$A$3:$A$351, 0), MATCH(Selection_Hide2!U$5, 'Full set Core Client Indicator'!$A$3:$AB$3, 0))=\"\", \"\",  INDEX('Full set Core Client Indicator'!$A$3:$AB$351, MATCH(Selection_Hide2!$A74, 'Full set Core Client Indicator'!$A$3:$A$351, 0), MATCH(Selection_Hide2!U$5, 'Full set Core Client Indicator'!$A$3:$AB$3, 0))), \"\")","v":""},{"$f":"IF(U74<>\"\", IF(INDEX('Full set Core Client Indicator'!$A$3:$AB$351, MATCH(Selection_Hide2!$A74, 'Full set Core Client Indicator'!$A$3:$A$351, 0), MATCH(Selection_Hide2!V$5, 'Full set Core Client Indicator'!$A$3:$AB$3, 0))=\"\", \"\",  INDEX('Full set Core Client Indicator'!$A$3:$AB$351, MATCH(Selection_Hide2!$A74, 'Full set Core Client Indicator'!$A$3:$A$351, 0), MATCH(Selection_Hide2!V$5, 'Full set Core Client Indicator'!$A$3:$AB$3, 0))), \"\")","v":""},{"$f":"IF(V74<>\"\", IF(INDEX('Full set Core Client Indicator'!$A$3:$AB$351, MATCH(Selection_Hide2!$A74, 'Full set Core Client Indicator'!$A$3:$A$351, 0), MATCH(Selection_Hide2!W$5, 'Full set Core Client Indicator'!$A$3:$AB$3, 0))=\"\", \"\",  INDEX('Full set Core Client Indicator'!$A$3:$AB$351, MATCH(Selection_Hide2!$A74, 'Full set Core Client Indicator'!$A$3:$A$351, 0), MATCH(Selection_Hide2!W$5, 'Full set Core Client Indicator'!$A$3:$AB$3, 0))), \"\")","v":""},{"$f":"IF(W74<>\"\", IF(INDEX('Full set Core Client Indicator'!$A$3:$AB$351, MATCH(Selection_Hide2!$A74, 'Full set Core Client Indicator'!$A$3:$A$351, 0), MATCH(Selection_Hide2!X$5, 'Full set Core Client Indicator'!$A$3:$AB$3, 0))=\"\", \"\",  INDEX('Full set Core Client Indicator'!$A$3:$AB$351, MATCH(Selection_Hide2!$A74, 'Full set Core Client Indicator'!$A$3:$A$351, 0), MATCH(Selection_Hide2!X$5, 'Full set Core Client Indicator'!$A$3:$AB$3, 0))), \"\")","v":""},{"$f":"IF(X74<>\"\", IF(INDEX('Full set Core Client Indicator'!$A$3:$AB$351, MATCH(Selection_Hide2!$A74, 'Full set Core Client Indicator'!$A$3:$A$351, 0), MATCH(Selection_Hide2!Y$5, 'Full set Core Client Indicator'!$A$3:$AB$3, 0))=\"\", \"\",  INDEX('Full set Core Client Indicator'!$A$3:$AB$351, MATCH(Selection_Hide2!$A74, 'Full set Core Client Indicator'!$A$3:$A$351, 0), MATCH(Selection_Hide2!Y$5, 'Full set Core Client Indicator'!$A$3:$AB$3, 0))), \"\")","v":""},{"$f":"IF(Y74<>\"\", IF(INDEX('Full set Core Client Indicator'!$A$3:$AB$351, MATCH(Selection_Hide2!$A74, 'Full set Core Client Indicator'!$A$3:$A$351, 0), MATCH(Selection_Hide2!Z$5, 'Full set Core Client Indicator'!$A$3:$AB$3, 0))=\"\", \"\",  INDEX('Full set Core Client Indicator'!$A$3:$AB$351, MATCH(Selection_Hide2!$A74, 'Full set Core Client Indicator'!$A$3:$A$351, 0), MATCH(Selection_Hide2!Z$5, 'Full set Core Client Indicator'!$A$3:$AB$3, 0))), \"\")","v":""},{"$f":"IF(Z74<>\"\", IF(INDEX('Full set Core Client Indicator'!$A$3:$AB$351, MATCH(Selection_Hide2!$A74, 'Full set Core Client Indicator'!$A$3:$A$351, 0), MATCH(Selection_Hide2!AA$5, 'Full set Core Client Indicator'!$A$3:$AB$3, 0))=\"\", \"\",  INDEX('Full set Core Client Indicator'!$A$3:$AB$351, MATCH(Selection_Hide2!$A74, 'Full set Core Client Indicator'!$A$3:$A$351, 0), MATCH(Selection_Hide2!AA$5, 'Full set Core Client Indicator'!$A$3:$AB$3, 0))), \"\")","v":""},{"$f":"IF(AA74<>\"\", IF(INDEX('Full set Core Client Indicator'!$A$3:$AB$351, MATCH(Selection_Hide2!$A74, 'Full set Core Client Indicator'!$A$3:$A$351, 0), MATCH(Selection_Hide2!AB$5, 'Full set Core Client Indicator'!$A$3:$AB$3, 0))=\"\", \"\",  INDEX('Full set Core Client Indicator'!$A$3:$AB$351, MATCH(Selection_Hide2!$A74, 'Full set Core Client Indicator'!$A$3:$A$351, 0), MATCH(Selection_Hide2!AB$5, 'Full set Core Client Indicator'!$A$3:$AB$3, 0))), \"\")","v":""}]
[{"$f":"IF(AND(Selection_Hide1!C73<>0, Selection_Hide1!C73<>\"Grand Total\"), Selection_Hide1!C73, \"\")","v":""},{"$f":"IF(A75<>\"\", IF(INDEX('Full set Core Client Indicator'!$A$3:$AB$351, MATCH(Selection_Hide2!$A75, 'Full set Core Client Indicator'!$A$3:$A$351, 0), MATCH(Selection_Hide2!B$5, 'Full set Core Client Indicator'!$A$3:$AB$3, 0))=\"\", \"\",  INDEX('Full set Core Client Indicator'!$A$3:$AB$351, MATCH(Selection_Hide2!$A75, 'Full set Core Client Indicator'!$A$3:$A$351, 0), MATCH(Selection_Hide2!B$5, 'Full set Core Client Indicator'!$A$3:$AB$3, 0))), \"\")","v":""},{"$f":"IF(B75<>\"\", IF(INDEX('Full set Core Client Indicator'!$A$3:$AB$351, MATCH(Selection_Hide2!$A75, 'Full set Core Client Indicator'!$A$3:$A$351, 0), MATCH(Selection_Hide2!C$5, 'Full set Core Client Indicator'!$A$3:$AB$3, 0))=\"\", \"\",  INDEX('Full set Core Client Indicator'!$A$3:$AB$351, MATCH(Selection_Hide2!$A75, 'Full set Core Client Indicator'!$A$3:$A$351, 0), MATCH(Selection_Hide2!C$5, 'Full set Core Client Indicator'!$A$3:$AB$3, 0))), \"\")","v":""},{"$f":"IF(C75<>\"\", IF(INDEX('Full set Core Client Indicator'!$A$3:$AB$351, MATCH(Selection_Hide2!$A75, 'Full set Core Client Indicator'!$A$3:$A$351, 0), MATCH(Selection_Hide2!D$5, 'Full set Core Client Indicator'!$A$3:$AB$3, 0))=\"\", \"\",  INDEX('Full set Core Client Indicator'!$A$3:$AB$351, MATCH(Selection_Hide2!$A75, 'Full set Core Client Indicator'!$A$3:$A$351, 0), MATCH(Selection_Hide2!D$5, 'Full set Core Client Indicator'!$A$3:$AB$3, 0))), \"\")","v":""},{"$f":"IF(D75<>\"\", IF(INDEX('Full set Core Client Indicator'!$A$3:$AB$351, MATCH(Selection_Hide2!$A75, 'Full set Core Client Indicator'!$A$3:$A$351, 0), MATCH(Selection_Hide2!E$5, 'Full set Core Client Indicator'!$A$3:$AB$3, 0))=\"\", \"\",  INDEX('Full set Core Client Indicator'!$A$3:$AB$351, MATCH(Selection_Hide2!$A75, 'Full set Core Client Indicator'!$A$3:$A$351, 0), MATCH(Selection_Hide2!E$5, 'Full set Core Client Indicator'!$A$3:$AB$3, 0))), \"\")","v":""},{"$f":"IF(E75<>\"\", IF(INDEX('Full set Core Client Indicator'!$A$3:$AB$351, MATCH(Selection_Hide2!$A75, 'Full set Core Client Indicator'!$A$3:$A$351, 0), MATCH(Selection_Hide2!F$5, 'Full set Core Client Indicator'!$A$3:$AB$3, 0))=\"\", \"\",  INDEX('Full set Core Client Indicator'!$A$3:$AB$351, MATCH(Selection_Hide2!$A75, 'Full set Core Client Indicator'!$A$3:$A$351, 0), MATCH(Selection_Hide2!F$5, 'Full set Core Client Indicator'!$A$3:$AB$3, 0))), \"\")","v":""},{"$f":"IF(F75<>\"\", IF(INDEX('Full set Core Client Indicator'!$A$3:$AB$351, MATCH(Selection_Hide2!$A75, 'Full set Core Client Indicator'!$A$3:$A$351, 0), MATCH(Selection_Hide2!G$5, 'Full set Core Client Indicator'!$A$3:$AB$3, 0))=\"\", \"\",  INDEX('Full set Core Client Indicator'!$A$3:$AB$351, MATCH(Selection_Hide2!$A75, 'Full set Core Client Indicator'!$A$3:$A$351, 0), MATCH(Selection_Hide2!G$5, 'Full set Core Client Indicator'!$A$3:$AB$3, 0))), \"\")","v":""},{"$f":"IF(G75<>\"\", IF(INDEX('Full set Core Client Indicator'!$A$3:$AB$351, MATCH(Selection_Hide2!$A75, 'Full set Core Client Indicator'!$A$3:$A$351, 0), MATCH(Selection_Hide2!H$5, 'Full set Core Client Indicator'!$A$3:$AB$3, 0))=\"\", \"\",  INDEX('Full set Core Client Indicator'!$A$3:$AB$351, MATCH(Selection_Hide2!$A75, 'Full set Core Client Indicator'!$A$3:$A$351, 0), MATCH(Selection_Hide2!H$5, 'Full set Core Client Indicator'!$A$3:$AB$3, 0))), \"\")","v":""},{"$f":"IF(H75<>\"\", IF(INDEX('Full set Core Client Indicator'!$A$3:$AB$351, MATCH(Selection_Hide2!$A75, 'Full set Core Client Indicator'!$A$3:$A$351, 0), MATCH(Selection_Hide2!I$5, 'Full set Core Client Indicator'!$A$3:$AB$3, 0))=\"\", \"\",  INDEX('Full set Core Client Indicator'!$A$3:$AB$351, MATCH(Selection_Hide2!$A75, 'Full set Core Client Indicator'!$A$3:$A$351, 0), MATCH(Selection_Hide2!I$5, 'Full set Core Client Indicator'!$A$3:$AB$3, 0))), \"\")","v":""},{"$f":"IF(I75<>\"\", IF(INDEX('Full set Core Client Indicator'!$A$3:$AB$351, MATCH(Selection_Hide2!$A75, 'Full set Core Client Indicator'!$A$3:$A$351, 0), MATCH(Selection_Hide2!J$5, 'Full set Core Client Indicator'!$A$3:$AB$3, 0))=\"\", \"\",  INDEX('Full set Core Client Indicator'!$A$3:$AB$351, MATCH(Selection_Hide2!$A75, 'Full set Core Client Indicator'!$A$3:$A$351, 0), MATCH(Selection_Hide2!J$5, 'Full set Core Client Indicator'!$A$3:$AB$3, 0))), \"\")","v":""},{"$f":"IF(J75<>\"\", IF(INDEX('Full set Core Client Indicator'!$A$3:$AB$351, MATCH(Selection_Hide2!$A75, 'Full set Core Client Indicator'!$A$3:$A$351, 0), MATCH(Selection_Hide2!K$5, 'Full set Core Client Indicator'!$A$3:$AB$3, 0))=\"\", \"\",  INDEX('Full set Core Client Indicator'!$A$3:$AB$351, MATCH(Selection_Hide2!$A75, 'Full set Core Client Indicator'!$A$3:$A$351, 0), MATCH(Selection_Hide2!K$5, 'Full set Core Client Indicator'!$A$3:$AB$3, 0))), \"\")","v":""},{"$f":"IF(K75<>\"\", IF(INDEX('Full set Core Client Indicator'!$A$3:$AB$351, MATCH(Selection_Hide2!$A75, 'Full set Core Client Indicator'!$A$3:$A$351, 0), MATCH(Selection_Hide2!L$5, 'Full set Core Client Indicator'!$A$3:$AB$3, 0))=\"\", \"\",  INDEX('Full set Core Client Indicator'!$A$3:$AB$351, MATCH(Selection_Hide2!$A75, 'Full set Core Client Indicator'!$A$3:$A$351, 0), MATCH(Selection_Hide2!L$5, 'Full set Core Client Indicator'!$A$3:$AB$3, 0))), \"\")","v":""},{"$f":"IF(L75<>\"\", IF(INDEX('Full set Core Client Indicator'!$A$3:$AB$351, MATCH(Selection_Hide2!$A75, 'Full set Core Client Indicator'!$A$3:$A$351, 0), MATCH(Selection_Hide2!M$5, 'Full set Core Client Indicator'!$A$3:$AB$3, 0))=\"\", \"\",  INDEX('Full set Core Client Indicator'!$A$3:$AB$351, MATCH(Selection_Hide2!$A75, 'Full set Core Client Indicator'!$A$3:$A$351, 0), MATCH(Selection_Hide2!M$5, 'Full set Core Client Indicator'!$A$3:$AB$3, 0))), \"\")","v":""},{"$f":"IF(M75<>\"\", IF(INDEX('Full set Core Client Indicator'!$A$3:$AB$351, MATCH(Selection_Hide2!$A75, 'Full set Core Client Indicator'!$A$3:$A$351, 0), MATCH(Selection_Hide2!N$5, 'Full set Core Client Indicator'!$A$3:$AB$3, 0))=\"\", \"\",  INDEX('Full set Core Client Indicator'!$A$3:$AB$351, MATCH(Selection_Hide2!$A75, 'Full set Core Client Indicator'!$A$3:$A$351, 0), MATCH(Selection_Hide2!N$5, 'Full set Core Client Indicator'!$A$3:$AB$3, 0))), \"\")","v":""},{"$f":"IF(N75<>\"\", IF(INDEX('Full set Core Client Indicator'!$A$3:$AB$351, MATCH(Selection_Hide2!$A75, 'Full set Core Client Indicator'!$A$3:$A$351, 0), MATCH(Selection_Hide2!O$5, 'Full set Core Client Indicator'!$A$3:$AB$3, 0))=\"\", \"\",  INDEX('Full set Core Client Indicator'!$A$3:$AB$351, MATCH(Selection_Hide2!$A75, 'Full set Core Client Indicator'!$A$3:$A$351, 0), MATCH(Selection_Hide2!O$5, 'Full set Core Client Indicator'!$A$3:$AB$3, 0))), \"\")","v":""},{"$f":"IF(O75<>\"\", IF(INDEX('Full set Core Client Indicator'!$A$3:$AB$351, MATCH(Selection_Hide2!$A75, 'Full set Core Client Indicator'!$A$3:$A$351, 0), MATCH(Selection_Hide2!P$5, 'Full set Core Client Indicator'!$A$3:$AB$3, 0))=\"\", \"\",  INDEX('Full set Core Client Indicator'!$A$3:$AB$351, MATCH(Selection_Hide2!$A75, 'Full set Core Client Indicator'!$A$3:$A$351, 0), MATCH(Selection_Hide2!P$5, 'Full set Core Client Indicator'!$A$3:$AB$3, 0))), \"\")","v":""},{"$f":"IF(P75<>\"\", IF(INDEX('Full set Core Client Indicator'!$A$3:$AB$351, MATCH(Selection_Hide2!$A75, 'Full set Core Client Indicator'!$A$3:$A$351, 0), MATCH(Selection_Hide2!Q$5, 'Full set Core Client Indicator'!$A$3:$AB$3, 0))=\"\", \"\",  INDEX('Full set Core Client Indicator'!$A$3:$AB$351, MATCH(Selection_Hide2!$A75, 'Full set Core Client Indicator'!$A$3:$A$351, 0), MATCH(Selection_Hide2!Q$5, 'Full set Core Client Indicator'!$A$3:$AB$3, 0))), \"\")","v":""},{"$f":"IF(Q75<>\"\", IF(INDEX('Full set Core Client Indicator'!$A$3:$AB$351, MATCH(Selection_Hide2!$A75, 'Full set Core Client Indicator'!$A$3:$A$351, 0), MATCH(Selection_Hide2!R$5, 'Full set Core Client Indicator'!$A$3:$AB$3, 0))=\"\", \"\",  INDEX('Full set Core Client Indicator'!$A$3:$AB$351, MATCH(Selection_Hide2!$A75, 'Full set Core Client Indicator'!$A$3:$A$351, 0), MATCH(Selection_Hide2!R$5, 'Full set Core Client Indicator'!$A$3:$AB$3, 0))), \"\")","v":""},{"$f":"IF(R75<>\"\", IF(INDEX('Full set Core Client Indicator'!$A$3:$AB$351, MATCH(Selection_Hide2!$A75, 'Full set Core Client Indicator'!$A$3:$A$351, 0), MATCH(Selection_Hide2!S$5, 'Full set Core Client Indicator'!$A$3:$AB$3, 0))=\"\", \"\",  INDEX('Full set Core Client Indicator'!$A$3:$AB$351, MATCH(Selection_Hide2!$A75, 'Full set Core Client Indicator'!$A$3:$A$351, 0), MATCH(Selection_Hide2!S$5, 'Full set Core Client Indicator'!$A$3:$AB$3, 0))), \"\")","v":""},{"$f":"IF(S75<>\"\", IF(INDEX('Full set Core Client Indicator'!$A$3:$AB$351, MATCH(Selection_Hide2!$A75, 'Full set Core Client Indicator'!$A$3:$A$351, 0), MATCH(Selection_Hide2!T$5, 'Full set Core Client Indicator'!$A$3:$AB$3, 0))=\"\", \"\",  INDEX('Full set Core Client Indicator'!$A$3:$AB$351, MATCH(Selection_Hide2!$A75, 'Full set Core Client Indicator'!$A$3:$A$351, 0), MATCH(Selection_Hide2!T$5, 'Full set Core Client Indicator'!$A$3:$AB$3, 0))), \"\")","v":""},{"$f":"IF(T75<>\"\", IF(INDEX('Full set Core Client Indicator'!$A$3:$AB$351, MATCH(Selection_Hide2!$A75, 'Full set Core Client Indicator'!$A$3:$A$351, 0), MATCH(Selection_Hide2!U$5, 'Full set Core Client Indicator'!$A$3:$AB$3, 0))=\"\", \"\",  INDEX('Full set Core Client Indicator'!$A$3:$AB$351, MATCH(Selection_Hide2!$A75, 'Full set Core Client Indicator'!$A$3:$A$351, 0), MATCH(Selection_Hide2!U$5, 'Full set Core Client Indicator'!$A$3:$AB$3, 0))), \"\")","v":""},{"$f":"IF(U75<>\"\", IF(INDEX('Full set Core Client Indicator'!$A$3:$AB$351, MATCH(Selection_Hide2!$A75, 'Full set Core Client Indicator'!$A$3:$A$351, 0), MATCH(Selection_Hide2!V$5, 'Full set Core Client Indicator'!$A$3:$AB$3, 0))=\"\", \"\",  INDEX('Full set Core Client Indicator'!$A$3:$AB$351, MATCH(Selection_Hide2!$A75, 'Full set Core Client Indicator'!$A$3:$A$351, 0), MATCH(Selection_Hide2!V$5, 'Full set Core Client Indicator'!$A$3:$AB$3, 0))), \"\")","v":""},{"$f":"IF(V75<>\"\", IF(INDEX('Full set Core Client Indicator'!$A$3:$AB$351, MATCH(Selection_Hide2!$A75, 'Full set Core Client Indicator'!$A$3:$A$351, 0), MATCH(Selection_Hide2!W$5, 'Full set Core Client Indicator'!$A$3:$AB$3, 0))=\"\", \"\",  INDEX('Full set Core Client Indicator'!$A$3:$AB$351, MATCH(Selection_Hide2!$A75, 'Full set Core Client Indicator'!$A$3:$A$351, 0), MATCH(Selection_Hide2!W$5, 'Full set Core Client Indicator'!$A$3:$AB$3, 0))), \"\")","v":""},{"$f":"IF(W75<>\"\", IF(INDEX('Full set Core Client Indicator'!$A$3:$AB$351, MATCH(Selection_Hide2!$A75, 'Full set Core Client Indicator'!$A$3:$A$351, 0), MATCH(Selection_Hide2!X$5, 'Full set Core Client Indicator'!$A$3:$AB$3, 0))=\"\", \"\",  INDEX('Full set Core Client Indicator'!$A$3:$AB$351, MATCH(Selection_Hide2!$A75, 'Full set Core Client Indicator'!$A$3:$A$351, 0), MATCH(Selection_Hide2!X$5, 'Full set Core Client Indicator'!$A$3:$AB$3, 0))), \"\")","v":""},{"$f":"IF(X75<>\"\", IF(INDEX('Full set Core Client Indicator'!$A$3:$AB$351, MATCH(Selection_Hide2!$A75, 'Full set Core Client Indicator'!$A$3:$A$351, 0), MATCH(Selection_Hide2!Y$5, 'Full set Core Client Indicator'!$A$3:$AB$3, 0))=\"\", \"\",  INDEX('Full set Core Client Indicator'!$A$3:$AB$351, MATCH(Selection_Hide2!$A75, 'Full set Core Client Indicator'!$A$3:$A$351, 0), MATCH(Selection_Hide2!Y$5, 'Full set Core Client Indicator'!$A$3:$AB$3, 0))), \"\")","v":""},{"$f":"IF(Y75<>\"\", IF(INDEX('Full set Core Client Indicator'!$A$3:$AB$351, MATCH(Selection_Hide2!$A75, 'Full set Core Client Indicator'!$A$3:$A$351, 0), MATCH(Selection_Hide2!Z$5, 'Full set Core Client Indicator'!$A$3:$AB$3, 0))=\"\", \"\",  INDEX('Full set Core Client Indicator'!$A$3:$AB$351, MATCH(Selection_Hide2!$A75, 'Full set Core Client Indicator'!$A$3:$A$351, 0), MATCH(Selection_Hide2!Z$5, 'Full set Core Client Indicator'!$A$3:$AB$3, 0))), \"\")","v":""},{"$f":"IF(Z75<>\"\", IF(INDEX('Full set Core Client Indicator'!$A$3:$AB$351, MATCH(Selection_Hide2!$A75, 'Full set Core Client Indicator'!$A$3:$A$351, 0), MATCH(Selection_Hide2!AA$5, 'Full set Core Client Indicator'!$A$3:$AB$3, 0))=\"\", \"\",  INDEX('Full set Core Client Indicator'!$A$3:$AB$351, MATCH(Selection_Hide2!$A75, 'Full set Core Client Indicator'!$A$3:$A$351, 0), MATCH(Selection_Hide2!AA$5, 'Full set Core Client Indicator'!$A$3:$AB$3, 0))), \"\")","v":""},{"$f":"IF(AA75<>\"\", IF(INDEX('Full set Core Client Indicator'!$A$3:$AB$351, MATCH(Selection_Hide2!$A75, 'Full set Core Client Indicator'!$A$3:$A$351, 0), MATCH(Selection_Hide2!AB$5, 'Full set Core Client Indicator'!$A$3:$AB$3, 0))=\"\", \"\",  INDEX('Full set Core Client Indicator'!$A$3:$AB$351, MATCH(Selection_Hide2!$A75, 'Full set Core Client Indicator'!$A$3:$A$351, 0), MATCH(Selection_Hide2!AB$5, 'Full set Core Client Indicator'!$A$3:$AB$3, 0))), \"\")","v":""}]
[{"$f":"IF(AND(Selection_Hide1!C74<>0, Selection_Hide1!C74<>\"Grand Total\"), Selection_Hide1!C74, \"\")","v":""},{"$f":"IF(A76<>\"\", IF(INDEX('Full set Core Client Indicator'!$A$3:$AB$351, MATCH(Selection_Hide2!$A76, 'Full set Core Client Indicator'!$A$3:$A$351, 0), MATCH(Selection_Hide2!B$5, 'Full set Core Client Indicator'!$A$3:$AB$3, 0))=\"\", \"\",  INDEX('Full set Core Client Indicator'!$A$3:$AB$351, MATCH(Selection_Hide2!$A76, 'Full set Core Client Indicator'!$A$3:$A$351, 0), MATCH(Selection_Hide2!B$5, 'Full set Core Client Indicator'!$A$3:$AB$3, 0))), \"\")","v":""},{"$f":"IF(B76<>\"\", IF(INDEX('Full set Core Client Indicator'!$A$3:$AB$351, MATCH(Selection_Hide2!$A76, 'Full set Core Client Indicator'!$A$3:$A$351, 0), MATCH(Selection_Hide2!C$5, 'Full set Core Client Indicator'!$A$3:$AB$3, 0))=\"\", \"\",  INDEX('Full set Core Client Indicator'!$A$3:$AB$351, MATCH(Selection_Hide2!$A76, 'Full set Core Client Indicator'!$A$3:$A$351, 0), MATCH(Selection_Hide2!C$5, 'Full set Core Client Indicator'!$A$3:$AB$3, 0))), \"\")","v":""},{"$f":"IF(C76<>\"\", IF(INDEX('Full set Core Client Indicator'!$A$3:$AB$351, MATCH(Selection_Hide2!$A76, 'Full set Core Client Indicator'!$A$3:$A$351, 0), MATCH(Selection_Hide2!D$5, 'Full set Core Client Indicator'!$A$3:$AB$3, 0))=\"\", \"\",  INDEX('Full set Core Client Indicator'!$A$3:$AB$351, MATCH(Selection_Hide2!$A76, 'Full set Core Client Indicator'!$A$3:$A$351, 0), MATCH(Selection_Hide2!D$5, 'Full set Core Client Indicator'!$A$3:$AB$3, 0))), \"\")","v":""},{"$f":"IF(D76<>\"\", IF(INDEX('Full set Core Client Indicator'!$A$3:$AB$351, MATCH(Selection_Hide2!$A76, 'Full set Core Client Indicator'!$A$3:$A$351, 0), MATCH(Selection_Hide2!E$5, 'Full set Core Client Indicator'!$A$3:$AB$3, 0))=\"\", \"\",  INDEX('Full set Core Client Indicator'!$A$3:$AB$351, MATCH(Selection_Hide2!$A76, 'Full set Core Client Indicator'!$A$3:$A$351, 0), MATCH(Selection_Hide2!E$5, 'Full set Core Client Indicator'!$A$3:$AB$3, 0))), \"\")","v":""},{"$f":"IF(E76<>\"\", IF(INDEX('Full set Core Client Indicator'!$A$3:$AB$351, MATCH(Selection_Hide2!$A76, 'Full set Core Client Indicator'!$A$3:$A$351, 0), MATCH(Selection_Hide2!F$5, 'Full set Core Client Indicator'!$A$3:$AB$3, 0))=\"\", \"\",  INDEX('Full set Core Client Indicator'!$A$3:$AB$351, MATCH(Selection_Hide2!$A76, 'Full set Core Client Indicator'!$A$3:$A$351, 0), MATCH(Selection_Hide2!F$5, 'Full set Core Client Indicator'!$A$3:$AB$3, 0))), \"\")","v":""},{"$f":"IF(F76<>\"\", IF(INDEX('Full set Core Client Indicator'!$A$3:$AB$351, MATCH(Selection_Hide2!$A76, 'Full set Core Client Indicator'!$A$3:$A$351, 0), MATCH(Selection_Hide2!G$5, 'Full set Core Client Indicator'!$A$3:$AB$3, 0))=\"\", \"\",  INDEX('Full set Core Client Indicator'!$A$3:$AB$351, MATCH(Selection_Hide2!$A76, 'Full set Core Client Indicator'!$A$3:$A$351, 0), MATCH(Selection_Hide2!G$5, 'Full set Core Client Indicator'!$A$3:$AB$3, 0))), \"\")","v":""},{"$f":"IF(G76<>\"\", IF(INDEX('Full set Core Client Indicator'!$A$3:$AB$351, MATCH(Selection_Hide2!$A76, 'Full set Core Client Indicator'!$A$3:$A$351, 0), MATCH(Selection_Hide2!H$5, 'Full set Core Client Indicator'!$A$3:$AB$3, 0))=\"\", \"\",  INDEX('Full set Core Client Indicator'!$A$3:$AB$351, MATCH(Selection_Hide2!$A76, 'Full set Core Client Indicator'!$A$3:$A$351, 0), MATCH(Selection_Hide2!H$5, 'Full set Core Client Indicator'!$A$3:$AB$3, 0))), \"\")","v":""},{"$f":"IF(H76<>\"\", IF(INDEX('Full set Core Client Indicator'!$A$3:$AB$351, MATCH(Selection_Hide2!$A76, 'Full set Core Client Indicator'!$A$3:$A$351, 0), MATCH(Selection_Hide2!I$5, 'Full set Core Client Indicator'!$A$3:$AB$3, 0))=\"\", \"\",  INDEX('Full set Core Client Indicator'!$A$3:$AB$351, MATCH(Selection_Hide2!$A76, 'Full set Core Client Indicator'!$A$3:$A$351, 0), MATCH(Selection_Hide2!I$5, 'Full set Core Client Indicator'!$A$3:$AB$3, 0))), \"\")","v":""},{"$f":"IF(I76<>\"\", IF(INDEX('Full set Core Client Indicator'!$A$3:$AB$351, MATCH(Selection_Hide2!$A76, 'Full set Core Client Indicator'!$A$3:$A$351, 0), MATCH(Selection_Hide2!J$5, 'Full set Core Client Indicator'!$A$3:$AB$3, 0))=\"\", \"\",  INDEX('Full set Core Client Indicator'!$A$3:$AB$351, MATCH(Selection_Hide2!$A76, 'Full set Core Client Indicator'!$A$3:$A$351, 0), MATCH(Selection_Hide2!J$5, 'Full set Core Client Indicator'!$A$3:$AB$3, 0))), \"\")","v":""},{"$f":"IF(J76<>\"\", IF(INDEX('Full set Core Client Indicator'!$A$3:$AB$351, MATCH(Selection_Hide2!$A76, 'Full set Core Client Indicator'!$A$3:$A$351, 0), MATCH(Selection_Hide2!K$5, 'Full set Core Client Indicator'!$A$3:$AB$3, 0))=\"\", \"\",  INDEX('Full set Core Client Indicator'!$A$3:$AB$351, MATCH(Selection_Hide2!$A76, 'Full set Core Client Indicator'!$A$3:$A$351, 0), MATCH(Selection_Hide2!K$5, 'Full set Core Client Indicator'!$A$3:$AB$3, 0))), \"\")","v":""},{"$f":"IF(K76<>\"\", IF(INDEX('Full set Core Client Indicator'!$A$3:$AB$351, MATCH(Selection_Hide2!$A76, 'Full set Core Client Indicator'!$A$3:$A$351, 0), MATCH(Selection_Hide2!L$5, 'Full set Core Client Indicator'!$A$3:$AB$3, 0))=\"\", \"\",  INDEX('Full set Core Client Indicator'!$A$3:$AB$351, MATCH(Selection_Hide2!$A76, 'Full set Core Client Indicator'!$A$3:$A$351, 0), MATCH(Selection_Hide2!L$5, 'Full set Core Client Indicator'!$A$3:$AB$3, 0))), \"\")","v":""},{"$f":"IF(L76<>\"\", IF(INDEX('Full set Core Client Indicator'!$A$3:$AB$351, MATCH(Selection_Hide2!$A76, 'Full set Core Client Indicator'!$A$3:$A$351, 0), MATCH(Selection_Hide2!M$5, 'Full set Core Client Indicator'!$A$3:$AB$3, 0))=\"\", \"\",  INDEX('Full set Core Client Indicator'!$A$3:$AB$351, MATCH(Selection_Hide2!$A76, 'Full set Core Client Indicator'!$A$3:$A$351, 0), MATCH(Selection_Hide2!M$5, 'Full set Core Client Indicator'!$A$3:$AB$3, 0))), \"\")","v":""},{"$f":"IF(M76<>\"\", IF(INDEX('Full set Core Client Indicator'!$A$3:$AB$351, MATCH(Selection_Hide2!$A76, 'Full set Core Client Indicator'!$A$3:$A$351, 0), MATCH(Selection_Hide2!N$5, 'Full set Core Client Indicator'!$A$3:$AB$3, 0))=\"\", \"\",  INDEX('Full set Core Client Indicator'!$A$3:$AB$351, MATCH(Selection_Hide2!$A76, 'Full set Core Client Indicator'!$A$3:$A$351, 0), MATCH(Selection_Hide2!N$5, 'Full set Core Client Indicator'!$A$3:$AB$3, 0))), \"\")","v":""},{"$f":"IF(N76<>\"\", IF(INDEX('Full set Core Client Indicator'!$A$3:$AB$351, MATCH(Selection_Hide2!$A76, 'Full set Core Client Indicator'!$A$3:$A$351, 0), MATCH(Selection_Hide2!O$5, 'Full set Core Client Indicator'!$A$3:$AB$3, 0))=\"\", \"\",  INDEX('Full set Core Client Indicator'!$A$3:$AB$351, MATCH(Selection_Hide2!$A76, 'Full set Core Client Indicator'!$A$3:$A$351, 0), MATCH(Selection_Hide2!O$5, 'Full set Core Client Indicator'!$A$3:$AB$3, 0))), \"\")","v":""},{"$f":"IF(O76<>\"\", IF(INDEX('Full set Core Client Indicator'!$A$3:$AB$351, MATCH(Selection_Hide2!$A76, 'Full set Core Client Indicator'!$A$3:$A$351, 0), MATCH(Selection_Hide2!P$5, 'Full set Core Client Indicator'!$A$3:$AB$3, 0))=\"\", \"\",  INDEX('Full set Core Client Indicator'!$A$3:$AB$351, MATCH(Selection_Hide2!$A76, 'Full set Core Client Indicator'!$A$3:$A$351, 0), MATCH(Selection_Hide2!P$5, 'Full set Core Client Indicator'!$A$3:$AB$3, 0))), \"\")","v":""},{"$f":"IF(P76<>\"\", IF(INDEX('Full set Core Client Indicator'!$A$3:$AB$351, MATCH(Selection_Hide2!$A76, 'Full set Core Client Indicator'!$A$3:$A$351, 0), MATCH(Selection_Hide2!Q$5, 'Full set Core Client Indicator'!$A$3:$AB$3, 0))=\"\", \"\",  INDEX('Full set Core Client Indicator'!$A$3:$AB$351, MATCH(Selection_Hide2!$A76, 'Full set Core Client Indicator'!$A$3:$A$351, 0), MATCH(Selection_Hide2!Q$5, 'Full set Core Client Indicator'!$A$3:$AB$3, 0))), \"\")","v":""},{"$f":"IF(Q76<>\"\", IF(INDEX('Full set Core Client Indicator'!$A$3:$AB$351, MATCH(Selection_Hide2!$A76, 'Full set Core Client Indicator'!$A$3:$A$351, 0), MATCH(Selection_Hide2!R$5, 'Full set Core Client Indicator'!$A$3:$AB$3, 0))=\"\", \"\",  INDEX('Full set Core Client Indicator'!$A$3:$AB$351, MATCH(Selection_Hide2!$A76, 'Full set Core Client Indicator'!$A$3:$A$351, 0), MATCH(Selection_Hide2!R$5, 'Full set Core Client Indicator'!$A$3:$AB$3, 0))), \"\")","v":""},{"$f":"IF(R76<>\"\", IF(INDEX('Full set Core Client Indicator'!$A$3:$AB$351, MATCH(Selection_Hide2!$A76, 'Full set Core Client Indicator'!$A$3:$A$351, 0), MATCH(Selection_Hide2!S$5, 'Full set Core Client Indicator'!$A$3:$AB$3, 0))=\"\", \"\",  INDEX('Full set Core Client Indicator'!$A$3:$AB$351, MATCH(Selection_Hide2!$A76, 'Full set Core Client Indicator'!$A$3:$A$351, 0), MATCH(Selection_Hide2!S$5, 'Full set Core Client Indicator'!$A$3:$AB$3, 0))), \"\")","v":""},{"$f":"IF(S76<>\"\", IF(INDEX('Full set Core Client Indicator'!$A$3:$AB$351, MATCH(Selection_Hide2!$A76, 'Full set Core Client Indicator'!$A$3:$A$351, 0), MATCH(Selection_Hide2!T$5, 'Full set Core Client Indicator'!$A$3:$AB$3, 0))=\"\", \"\",  INDEX('Full set Core Client Indicator'!$A$3:$AB$351, MATCH(Selection_Hide2!$A76, 'Full set Core Client Indicator'!$A$3:$A$351, 0), MATCH(Selection_Hide2!T$5, 'Full set Core Client Indicator'!$A$3:$AB$3, 0))), \"\")","v":""},{"$f":"IF(T76<>\"\", IF(INDEX('Full set Core Client Indicator'!$A$3:$AB$351, MATCH(Selection_Hide2!$A76, 'Full set Core Client Indicator'!$A$3:$A$351, 0), MATCH(Selection_Hide2!U$5, 'Full set Core Client Indicator'!$A$3:$AB$3, 0))=\"\", \"\",  INDEX('Full set Core Client Indicator'!$A$3:$AB$351, MATCH(Selection_Hide2!$A76, 'Full set Core Client Indicator'!$A$3:$A$351, 0), MATCH(Selection_Hide2!U$5, 'Full set Core Client Indicator'!$A$3:$AB$3, 0))), \"\")","v":""},{"$f":"IF(U76<>\"\", IF(INDEX('Full set Core Client Indicator'!$A$3:$AB$351, MATCH(Selection_Hide2!$A76, 'Full set Core Client Indicator'!$A$3:$A$351, 0), MATCH(Selection_Hide2!V$5, 'Full set Core Client Indicator'!$A$3:$AB$3, 0))=\"\", \"\",  INDEX('Full set Core Client Indicator'!$A$3:$AB$351, MATCH(Selection_Hide2!$A76, 'Full set Core Client Indicator'!$A$3:$A$351, 0), MATCH(Selection_Hide2!V$5, 'Full set Core Client Indicator'!$A$3:$AB$3, 0))), \"\")","v":""},{"$f":"IF(V76<>\"\", IF(INDEX('Full set Core Client Indicator'!$A$3:$AB$351, MATCH(Selection_Hide2!$A76, 'Full set Core Client Indicator'!$A$3:$A$351, 0), MATCH(Selection_Hide2!W$5, 'Full set Core Client Indicator'!$A$3:$AB$3, 0))=\"\", \"\",  INDEX('Full set Core Client Indicator'!$A$3:$AB$351, MATCH(Selection_Hide2!$A76, 'Full set Core Client Indicator'!$A$3:$A$351, 0), MATCH(Selection_Hide2!W$5, 'Full set Core Client Indicator'!$A$3:$AB$3, 0))), \"\")","v":""},{"$f":"IF(W76<>\"\", IF(INDEX('Full set Core Client Indicator'!$A$3:$AB$351, MATCH(Selection_Hide2!$A76, 'Full set Core Client Indicator'!$A$3:$A$351, 0), MATCH(Selection_Hide2!X$5, 'Full set Core Client Indicator'!$A$3:$AB$3, 0))=\"\", \"\",  INDEX('Full set Core Client Indicator'!$A$3:$AB$351, MATCH(Selection_Hide2!$A76, 'Full set Core Client Indicator'!$A$3:$A$351, 0), MATCH(Selection_Hide2!X$5, 'Full set Core Client Indicator'!$A$3:$AB$3, 0))), \"\")","v":""},{"$f":"IF(X76<>\"\", IF(INDEX('Full set Core Client Indicator'!$A$3:$AB$351, MATCH(Selection_Hide2!$A76, 'Full set Core Client Indicator'!$A$3:$A$351, 0), MATCH(Selection_Hide2!Y$5, 'Full set Core Client Indicator'!$A$3:$AB$3, 0))=\"\", \"\",  INDEX('Full set Core Client Indicator'!$A$3:$AB$351, MATCH(Selection_Hide2!$A76, 'Full set Core Client Indicator'!$A$3:$A$351, 0), MATCH(Selection_Hide2!Y$5, 'Full set Core Client Indicator'!$A$3:$AB$3, 0))), \"\")","v":""},{"$f":"IF(Y76<>\"\", IF(INDEX('Full set Core Client Indicator'!$A$3:$AB$351, MATCH(Selection_Hide2!$A76, 'Full set Core Client Indicator'!$A$3:$A$351, 0), MATCH(Selection_Hide2!Z$5, 'Full set Core Client Indicator'!$A$3:$AB$3, 0))=\"\", \"\",  INDEX('Full set Core Client Indicator'!$A$3:$AB$351, MATCH(Selection_Hide2!$A76, 'Full set Core Client Indicator'!$A$3:$A$351, 0), MATCH(Selection_Hide2!Z$5, 'Full set Core Client Indicator'!$A$3:$AB$3, 0))), \"\")","v":""},{"$f":"IF(Z76<>\"\", IF(INDEX('Full set Core Client Indicator'!$A$3:$AB$351, MATCH(Selection_Hide2!$A76, 'Full set Core Client Indicator'!$A$3:$A$351, 0), MATCH(Selection_Hide2!AA$5, 'Full set Core Client Indicator'!$A$3:$AB$3, 0))=\"\", \"\",  INDEX('Full set Core Client Indicator'!$A$3:$AB$351, MATCH(Selection_Hide2!$A76, 'Full set Core Client Indicator'!$A$3:$A$351, 0), MATCH(Selection_Hide2!AA$5, 'Full set Core Client Indicator'!$A$3:$AB$3, 0))), \"\")","v":""},{"$f":"IF(AA76<>\"\", IF(INDEX('Full set Core Client Indicator'!$A$3:$AB$351, MATCH(Selection_Hide2!$A76, 'Full set Core Client Indicator'!$A$3:$A$351, 0), MATCH(Selection_Hide2!AB$5, 'Full set Core Client Indicator'!$A$3:$AB$3, 0))=\"\", \"\",  INDEX('Full set Core Client Indicator'!$A$3:$AB$351, MATCH(Selection_Hide2!$A76, 'Full set Core Client Indicator'!$A$3:$A$351, 0), MATCH(Selection_Hide2!AB$5, 'Full set Core Client Indicator'!$A$3:$AB$3, 0))), \"\")","v":""}]
[{"$f":"IF(AND(Selection_Hide1!C75<>0, Selection_Hide1!C75<>\"Grand Total\"), Selection_Hide1!C75, \"\")","v":""},{"$f":"IF(A77<>\"\", IF(INDEX('Full set Core Client Indicator'!$A$3:$AB$351, MATCH(Selection_Hide2!$A77, 'Full set Core Client Indicator'!$A$3:$A$351, 0), MATCH(Selection_Hide2!B$5, 'Full set Core Client Indicator'!$A$3:$AB$3, 0))=\"\", \"\",  INDEX('Full set Core Client Indicator'!$A$3:$AB$351, MATCH(Selection_Hide2!$A77, 'Full set Core Client Indicator'!$A$3:$A$351, 0), MATCH(Selection_Hide2!B$5, 'Full set Core Client Indicator'!$A$3:$AB$3, 0))), \"\")","v":""},{"$f":"IF(B77<>\"\", IF(INDEX('Full set Core Client Indicator'!$A$3:$AB$351, MATCH(Selection_Hide2!$A77, 'Full set Core Client Indicator'!$A$3:$A$351, 0), MATCH(Selection_Hide2!C$5, 'Full set Core Client Indicator'!$A$3:$AB$3, 0))=\"\", \"\",  INDEX('Full set Core Client Indicator'!$A$3:$AB$351, MATCH(Selection_Hide2!$A77, 'Full set Core Client Indicator'!$A$3:$A$351, 0), MATCH(Selection_Hide2!C$5, 'Full set Core Client Indicator'!$A$3:$AB$3, 0))), \"\")","v":""},{"$f":"IF(C77<>\"\", IF(INDEX('Full set Core Client Indicator'!$A$3:$AB$351, MATCH(Selection_Hide2!$A77, 'Full set Core Client Indicator'!$A$3:$A$351, 0), MATCH(Selection_Hide2!D$5, 'Full set Core Client Indicator'!$A$3:$AB$3, 0))=\"\", \"\",  INDEX('Full set Core Client Indicator'!$A$3:$AB$351, MATCH(Selection_Hide2!$A77, 'Full set Core Client Indicator'!$A$3:$A$351, 0), MATCH(Selection_Hide2!D$5, 'Full set Core Client Indicator'!$A$3:$AB$3, 0))), \"\")","v":""},{"$f":"IF(D77<>\"\", IF(INDEX('Full set Core Client Indicator'!$A$3:$AB$351, MATCH(Selection_Hide2!$A77, 'Full set Core Client Indicator'!$A$3:$A$351, 0), MATCH(Selection_Hide2!E$5, 'Full set Core Client Indicator'!$A$3:$AB$3, 0))=\"\", \"\",  INDEX('Full set Core Client Indicator'!$A$3:$AB$351, MATCH(Selection_Hide2!$A77, 'Full set Core Client Indicator'!$A$3:$A$351, 0), MATCH(Selection_Hide2!E$5, 'Full set Core Client Indicator'!$A$3:$AB$3, 0))), \"\")","v":""},{"$f":"IF(E77<>\"\", IF(INDEX('Full set Core Client Indicator'!$A$3:$AB$351, MATCH(Selection_Hide2!$A77, 'Full set Core Client Indicator'!$A$3:$A$351, 0), MATCH(Selection_Hide2!F$5, 'Full set Core Client Indicator'!$A$3:$AB$3, 0))=\"\", \"\",  INDEX('Full set Core Client Indicator'!$A$3:$AB$351, MATCH(Selection_Hide2!$A77, 'Full set Core Client Indicator'!$A$3:$A$351, 0), MATCH(Selection_Hide2!F$5, 'Full set Core Client Indicator'!$A$3:$AB$3, 0))), \"\")","v":""},{"$f":"IF(F77<>\"\", IF(INDEX('Full set Core Client Indicator'!$A$3:$AB$351, MATCH(Selection_Hide2!$A77, 'Full set Core Client Indicator'!$A$3:$A$351, 0), MATCH(Selection_Hide2!G$5, 'Full set Core Client Indicator'!$A$3:$AB$3, 0))=\"\", \"\",  INDEX('Full set Core Client Indicator'!$A$3:$AB$351, MATCH(Selection_Hide2!$A77, 'Full set Core Client Indicator'!$A$3:$A$351, 0), MATCH(Selection_Hide2!G$5, 'Full set Core Client Indicator'!$A$3:$AB$3, 0))), \"\")","v":""},{"$f":"IF(G77<>\"\", IF(INDEX('Full set Core Client Indicator'!$A$3:$AB$351, MATCH(Selection_Hide2!$A77, 'Full set Core Client Indicator'!$A$3:$A$351, 0), MATCH(Selection_Hide2!H$5, 'Full set Core Client Indicator'!$A$3:$AB$3, 0))=\"\", \"\",  INDEX('Full set Core Client Indicator'!$A$3:$AB$351, MATCH(Selection_Hide2!$A77, 'Full set Core Client Indicator'!$A$3:$A$351, 0), MATCH(Selection_Hide2!H$5, 'Full set Core Client Indicator'!$A$3:$AB$3, 0))), \"\")","v":""},{"$f":"IF(H77<>\"\", IF(INDEX('Full set Core Client Indicator'!$A$3:$AB$351, MATCH(Selection_Hide2!$A77, 'Full set Core Client Indicator'!$A$3:$A$351, 0), MATCH(Selection_Hide2!I$5, 'Full set Core Client Indicator'!$A$3:$AB$3, 0))=\"\", \"\",  INDEX('Full set Core Client Indicator'!$A$3:$AB$351, MATCH(Selection_Hide2!$A77, 'Full set Core Client Indicator'!$A$3:$A$351, 0), MATCH(Selection_Hide2!I$5, 'Full set Core Client Indicator'!$A$3:$AB$3, 0))), \"\")","v":""},{"$f":"IF(I77<>\"\", IF(INDEX('Full set Core Client Indicator'!$A$3:$AB$351, MATCH(Selection_Hide2!$A77, 'Full set Core Client Indicator'!$A$3:$A$351, 0), MATCH(Selection_Hide2!J$5, 'Full set Core Client Indicator'!$A$3:$AB$3, 0))=\"\", \"\",  INDEX('Full set Core Client Indicator'!$A$3:$AB$351, MATCH(Selection_Hide2!$A77, 'Full set Core Client Indicator'!$A$3:$A$351, 0), MATCH(Selection_Hide2!J$5, 'Full set Core Client Indicator'!$A$3:$AB$3, 0))), \"\")","v":""},{"$f":"IF(J77<>\"\", IF(INDEX('Full set Core Client Indicator'!$A$3:$AB$351, MATCH(Selection_Hide2!$A77, 'Full set Core Client Indicator'!$A$3:$A$351, 0), MATCH(Selection_Hide2!K$5, 'Full set Core Client Indicator'!$A$3:$AB$3, 0))=\"\", \"\",  INDEX('Full set Core Client Indicator'!$A$3:$AB$351, MATCH(Selection_Hide2!$A77, 'Full set Core Client Indicator'!$A$3:$A$351, 0), MATCH(Selection_Hide2!K$5, 'Full set Core Client Indicator'!$A$3:$AB$3, 0))), \"\")","v":""},{"$f":"IF(K77<>\"\", IF(INDEX('Full set Core Client Indicator'!$A$3:$AB$351, MATCH(Selection_Hide2!$A77, 'Full set Core Client Indicator'!$A$3:$A$351, 0), MATCH(Selection_Hide2!L$5, 'Full set Core Client Indicator'!$A$3:$AB$3, 0))=\"\", \"\",  INDEX('Full set Core Client Indicator'!$A$3:$AB$351, MATCH(Selection_Hide2!$A77, 'Full set Core Client Indicator'!$A$3:$A$351, 0), MATCH(Selection_Hide2!L$5, 'Full set Core Client Indicator'!$A$3:$AB$3, 0))), \"\")","v":""},{"$f":"IF(L77<>\"\", IF(INDEX('Full set Core Client Indicator'!$A$3:$AB$351, MATCH(Selection_Hide2!$A77, 'Full set Core Client Indicator'!$A$3:$A$351, 0), MATCH(Selection_Hide2!M$5, 'Full set Core Client Indicator'!$A$3:$AB$3, 0))=\"\", \"\",  INDEX('Full set Core Client Indicator'!$A$3:$AB$351, MATCH(Selection_Hide2!$A77, 'Full set Core Client Indicator'!$A$3:$A$351, 0), MATCH(Selection_Hide2!M$5, 'Full set Core Client Indicator'!$A$3:$AB$3, 0))), \"\")","v":""},{"$f":"IF(M77<>\"\", IF(INDEX('Full set Core Client Indicator'!$A$3:$AB$351, MATCH(Selection_Hide2!$A77, 'Full set Core Client Indicator'!$A$3:$A$351, 0), MATCH(Selection_Hide2!N$5, 'Full set Core Client Indicator'!$A$3:$AB$3, 0))=\"\", \"\",  INDEX('Full set Core Client Indicator'!$A$3:$AB$351, MATCH(Selection_Hide2!$A77, 'Full set Core Client Indicator'!$A$3:$A$351, 0), MATCH(Selection_Hide2!N$5, 'Full set Core Client Indicator'!$A$3:$AB$3, 0))), \"\")","v":""},{"$f":"IF(N77<>\"\", IF(INDEX('Full set Core Client Indicator'!$A$3:$AB$351, MATCH(Selection_Hide2!$A77, 'Full set Core Client Indicator'!$A$3:$A$351, 0), MATCH(Selection_Hide2!O$5, 'Full set Core Client Indicator'!$A$3:$AB$3, 0))=\"\", \"\",  INDEX('Full set Core Client Indicator'!$A$3:$AB$351, MATCH(Selection_Hide2!$A77, 'Full set Core Client Indicator'!$A$3:$A$351, 0), MATCH(Selection_Hide2!O$5, 'Full set Core Client Indicator'!$A$3:$AB$3, 0))), \"\")","v":""},{"$f":"IF(O77<>\"\", IF(INDEX('Full set Core Client Indicator'!$A$3:$AB$351, MATCH(Selection_Hide2!$A77, 'Full set Core Client Indicator'!$A$3:$A$351, 0), MATCH(Selection_Hide2!P$5, 'Full set Core Client Indicator'!$A$3:$AB$3, 0))=\"\", \"\",  INDEX('Full set Core Client Indicator'!$A$3:$AB$351, MATCH(Selection_Hide2!$A77, 'Full set Core Client Indicator'!$A$3:$A$351, 0), MATCH(Selection_Hide2!P$5, 'Full set Core Client Indicator'!$A$3:$AB$3, 0))), \"\")","v":""},{"$f":"IF(P77<>\"\", IF(INDEX('Full set Core Client Indicator'!$A$3:$AB$351, MATCH(Selection_Hide2!$A77, 'Full set Core Client Indicator'!$A$3:$A$351, 0), MATCH(Selection_Hide2!Q$5, 'Full set Core Client Indicator'!$A$3:$AB$3, 0))=\"\", \"\",  INDEX('Full set Core Client Indicator'!$A$3:$AB$351, MATCH(Selection_Hide2!$A77, 'Full set Core Client Indicator'!$A$3:$A$351, 0), MATCH(Selection_Hide2!Q$5, 'Full set Core Client Indicator'!$A$3:$AB$3, 0))), \"\")","v":""},{"$f":"IF(Q77<>\"\", IF(INDEX('Full set Core Client Indicator'!$A$3:$AB$351, MATCH(Selection_Hide2!$A77, 'Full set Core Client Indicator'!$A$3:$A$351, 0), MATCH(Selection_Hide2!R$5, 'Full set Core Client Indicator'!$A$3:$AB$3, 0))=\"\", \"\",  INDEX('Full set Core Client Indicator'!$A$3:$AB$351, MATCH(Selection_Hide2!$A77, 'Full set Core Client Indicator'!$A$3:$A$351, 0), MATCH(Selection_Hide2!R$5, 'Full set Core Client Indicator'!$A$3:$AB$3, 0))), \"\")","v":""},{"$f":"IF(R77<>\"\", IF(INDEX('Full set Core Client Indicator'!$A$3:$AB$351, MATCH(Selection_Hide2!$A77, 'Full set Core Client Indicator'!$A$3:$A$351, 0), MATCH(Selection_Hide2!S$5, 'Full set Core Client Indicator'!$A$3:$AB$3, 0))=\"\", \"\",  INDEX('Full set Core Client Indicator'!$A$3:$AB$351, MATCH(Selection_Hide2!$A77, 'Full set Core Client Indicator'!$A$3:$A$351, 0), MATCH(Selection_Hide2!S$5, 'Full set Core Client Indicator'!$A$3:$AB$3, 0))), \"\")","v":""},{"$f":"IF(S77<>\"\", IF(INDEX('Full set Core Client Indicator'!$A$3:$AB$351, MATCH(Selection_Hide2!$A77, 'Full set Core Client Indicator'!$A$3:$A$351, 0), MATCH(Selection_Hide2!T$5, 'Full set Core Client Indicator'!$A$3:$AB$3, 0))=\"\", \"\",  INDEX('Full set Core Client Indicator'!$A$3:$AB$351, MATCH(Selection_Hide2!$A77, 'Full set Core Client Indicator'!$A$3:$A$351, 0), MATCH(Selection_Hide2!T$5, 'Full set Core Client Indicator'!$A$3:$AB$3, 0))), \"\")","v":""},{"$f":"IF(T77<>\"\", IF(INDEX('Full set Core Client Indicator'!$A$3:$AB$351, MATCH(Selection_Hide2!$A77, 'Full set Core Client Indicator'!$A$3:$A$351, 0), MATCH(Selection_Hide2!U$5, 'Full set Core Client Indicator'!$A$3:$AB$3, 0))=\"\", \"\",  INDEX('Full set Core Client Indicator'!$A$3:$AB$351, MATCH(Selection_Hide2!$A77, 'Full set Core Client Indicator'!$A$3:$A$351, 0), MATCH(Selection_Hide2!U$5, 'Full set Core Client Indicator'!$A$3:$AB$3, 0))), \"\")","v":""},{"$f":"IF(U77<>\"\", IF(INDEX('Full set Core Client Indicator'!$A$3:$AB$351, MATCH(Selection_Hide2!$A77, 'Full set Core Client Indicator'!$A$3:$A$351, 0), MATCH(Selection_Hide2!V$5, 'Full set Core Client Indicator'!$A$3:$AB$3, 0))=\"\", \"\",  INDEX('Full set Core Client Indicator'!$A$3:$AB$351, MATCH(Selection_Hide2!$A77, 'Full set Core Client Indicator'!$A$3:$A$351, 0), MATCH(Selection_Hide2!V$5, 'Full set Core Client Indicator'!$A$3:$AB$3, 0))), \"\")","v":""},{"$f":"IF(V77<>\"\", IF(INDEX('Full set Core Client Indicator'!$A$3:$AB$351, MATCH(Selection_Hide2!$A77, 'Full set Core Client Indicator'!$A$3:$A$351, 0), MATCH(Selection_Hide2!W$5, 'Full set Core Client Indicator'!$A$3:$AB$3, 0))=\"\", \"\",  INDEX('Full set Core Client Indicator'!$A$3:$AB$351, MATCH(Selection_Hide2!$A77, 'Full set Core Client Indicator'!$A$3:$A$351, 0), MATCH(Selection_Hide2!W$5, 'Full set Core Client Indicator'!$A$3:$AB$3, 0))), \"\")","v":""},{"$f":"IF(W77<>\"\", IF(INDEX('Full set Core Client Indicator'!$A$3:$AB$351, MATCH(Selection_Hide2!$A77, 'Full set Core Client Indicator'!$A$3:$A$351, 0), MATCH(Selection_Hide2!X$5, 'Full set Core Client Indicator'!$A$3:$AB$3, 0))=\"\", \"\",  INDEX('Full set Core Client Indicator'!$A$3:$AB$351, MATCH(Selection_Hide2!$A77, 'Full set Core Client Indicator'!$A$3:$A$351, 0), MATCH(Selection_Hide2!X$5, 'Full set Core Client Indicator'!$A$3:$AB$3, 0))), \"\")","v":""},{"$f":"IF(X77<>\"\", IF(INDEX('Full set Core Client Indicator'!$A$3:$AB$351, MATCH(Selection_Hide2!$A77, 'Full set Core Client Indicator'!$A$3:$A$351, 0), MATCH(Selection_Hide2!Y$5, 'Full set Core Client Indicator'!$A$3:$AB$3, 0))=\"\", \"\",  INDEX('Full set Core Client Indicator'!$A$3:$AB$351, MATCH(Selection_Hide2!$A77, 'Full set Core Client Indicator'!$A$3:$A$351, 0), MATCH(Selection_Hide2!Y$5, 'Full set Core Client Indicator'!$A$3:$AB$3, 0))), \"\")","v":""},{"$f":"IF(Y77<>\"\", IF(INDEX('Full set Core Client Indicator'!$A$3:$AB$351, MATCH(Selection_Hide2!$A77, 'Full set Core Client Indicator'!$A$3:$A$351, 0), MATCH(Selection_Hide2!Z$5, 'Full set Core Client Indicator'!$A$3:$AB$3, 0))=\"\", \"\",  INDEX('Full set Core Client Indicator'!$A$3:$AB$351, MATCH(Selection_Hide2!$A77, 'Full set Core Client Indicator'!$A$3:$A$351, 0), MATCH(Selection_Hide2!Z$5, 'Full set Core Client Indicator'!$A$3:$AB$3, 0))), \"\")","v":""},{"$f":"IF(Z77<>\"\", IF(INDEX('Full set Core Client Indicator'!$A$3:$AB$351, MATCH(Selection_Hide2!$A77, 'Full set Core Client Indicator'!$A$3:$A$351, 0), MATCH(Selection_Hide2!AA$5, 'Full set Core Client Indicator'!$A$3:$AB$3, 0))=\"\", \"\",  INDEX('Full set Core Client Indicator'!$A$3:$AB$351, MATCH(Selection_Hide2!$A77, 'Full set Core Client Indicator'!$A$3:$A$351, 0), MATCH(Selection_Hide2!AA$5, 'Full set Core Client Indicator'!$A$3:$AB$3, 0))), \"\")","v":""},{"$f":"IF(AA77<>\"\", IF(INDEX('Full set Core Client Indicator'!$A$3:$AB$351, MATCH(Selection_Hide2!$A77, 'Full set Core Client Indicator'!$A$3:$A$351, 0), MATCH(Selection_Hide2!AB$5, 'Full set Core Client Indicator'!$A$3:$AB$3, 0))=\"\", \"\",  INDEX('Full set Core Client Indicator'!$A$3:$AB$351, MATCH(Selection_Hide2!$A77, 'Full set Core Client Indicator'!$A$3:$A$351, 0), MATCH(Selection_Hide2!AB$5, 'Full set Core Client Indicator'!$A$3:$AB$3, 0))), \"\")","v":""}]
[{"$f":"IF(AND(Selection_Hide1!C76<>0, Selection_Hide1!C76<>\"Grand Total\"), Selection_Hide1!C76, \"\")","v":""},{"$f":"IF(A78<>\"\", IF(INDEX('Full set Core Client Indicator'!$A$3:$AB$351, MATCH(Selection_Hide2!$A78, 'Full set Core Client Indicator'!$A$3:$A$351, 0), MATCH(Selection_Hide2!B$5, 'Full set Core Client Indicator'!$A$3:$AB$3, 0))=\"\", \"\",  INDEX('Full set Core Client Indicator'!$A$3:$AB$351, MATCH(Selection_Hide2!$A78, 'Full set Core Client Indicator'!$A$3:$A$351, 0), MATCH(Selection_Hide2!B$5, 'Full set Core Client Indicator'!$A$3:$AB$3, 0))), \"\")","v":""},{"$f":"IF(B78<>\"\", IF(INDEX('Full set Core Client Indicator'!$A$3:$AB$351, MATCH(Selection_Hide2!$A78, 'Full set Core Client Indicator'!$A$3:$A$351, 0), MATCH(Selection_Hide2!C$5, 'Full set Core Client Indicator'!$A$3:$AB$3, 0))=\"\", \"\",  INDEX('Full set Core Client Indicator'!$A$3:$AB$351, MATCH(Selection_Hide2!$A78, 'Full set Core Client Indicator'!$A$3:$A$351, 0), MATCH(Selection_Hide2!C$5, 'Full set Core Client Indicator'!$A$3:$AB$3, 0))), \"\")","v":""},{"$f":"IF(C78<>\"\", IF(INDEX('Full set Core Client Indicator'!$A$3:$AB$351, MATCH(Selection_Hide2!$A78, 'Full set Core Client Indicator'!$A$3:$A$351, 0), MATCH(Selection_Hide2!D$5, 'Full set Core Client Indicator'!$A$3:$AB$3, 0))=\"\", \"\",  INDEX('Full set Core Client Indicator'!$A$3:$AB$351, MATCH(Selection_Hide2!$A78, 'Full set Core Client Indicator'!$A$3:$A$351, 0), MATCH(Selection_Hide2!D$5, 'Full set Core Client Indicator'!$A$3:$AB$3, 0))), \"\")","v":""},{"$f":"IF(D78<>\"\", IF(INDEX('Full set Core Client Indicator'!$A$3:$AB$351, MATCH(Selection_Hide2!$A78, 'Full set Core Client Indicator'!$A$3:$A$351, 0), MATCH(Selection_Hide2!E$5, 'Full set Core Client Indicator'!$A$3:$AB$3, 0))=\"\", \"\",  INDEX('Full set Core Client Indicator'!$A$3:$AB$351, MATCH(Selection_Hide2!$A78, 'Full set Core Client Indicator'!$A$3:$A$351, 0), MATCH(Selection_Hide2!E$5, 'Full set Core Client Indicator'!$A$3:$AB$3, 0))), \"\")","v":""},{"$f":"IF(E78<>\"\", IF(INDEX('Full set Core Client Indicator'!$A$3:$AB$351, MATCH(Selection_Hide2!$A78, 'Full set Core Client Indicator'!$A$3:$A$351, 0), MATCH(Selection_Hide2!F$5, 'Full set Core Client Indicator'!$A$3:$AB$3, 0))=\"\", \"\",  INDEX('Full set Core Client Indicator'!$A$3:$AB$351, MATCH(Selection_Hide2!$A78, 'Full set Core Client Indicator'!$A$3:$A$351, 0), MATCH(Selection_Hide2!F$5, 'Full set Core Client Indicator'!$A$3:$AB$3, 0))), \"\")","v":""},{"$f":"IF(F78<>\"\", IF(INDEX('Full set Core Client Indicator'!$A$3:$AB$351, MATCH(Selection_Hide2!$A78, 'Full set Core Client Indicator'!$A$3:$A$351, 0), MATCH(Selection_Hide2!G$5, 'Full set Core Client Indicator'!$A$3:$AB$3, 0))=\"\", \"\",  INDEX('Full set Core Client Indicator'!$A$3:$AB$351, MATCH(Selection_Hide2!$A78, 'Full set Core Client Indicator'!$A$3:$A$351, 0), MATCH(Selection_Hide2!G$5, 'Full set Core Client Indicator'!$A$3:$AB$3, 0))), \"\")","v":""},{"$f":"IF(G78<>\"\", IF(INDEX('Full set Core Client Indicator'!$A$3:$AB$351, MATCH(Selection_Hide2!$A78, 'Full set Core Client Indicator'!$A$3:$A$351, 0), MATCH(Selection_Hide2!H$5, 'Full set Core Client Indicator'!$A$3:$AB$3, 0))=\"\", \"\",  INDEX('Full set Core Client Indicator'!$A$3:$AB$351, MATCH(Selection_Hide2!$A78, 'Full set Core Client Indicator'!$A$3:$A$351, 0), MATCH(Selection_Hide2!H$5, 'Full set Core Client Indicator'!$A$3:$AB$3, 0))), \"\")","v":""},{"$f":"IF(H78<>\"\", IF(INDEX('Full set Core Client Indicator'!$A$3:$AB$351, MATCH(Selection_Hide2!$A78, 'Full set Core Client Indicator'!$A$3:$A$351, 0), MATCH(Selection_Hide2!I$5, 'Full set Core Client Indicator'!$A$3:$AB$3, 0))=\"\", \"\",  INDEX('Full set Core Client Indicator'!$A$3:$AB$351, MATCH(Selection_Hide2!$A78, 'Full set Core Client Indicator'!$A$3:$A$351, 0), MATCH(Selection_Hide2!I$5, 'Full set Core Client Indicator'!$A$3:$AB$3, 0))), \"\")","v":""},{"$f":"IF(I78<>\"\", IF(INDEX('Full set Core Client Indicator'!$A$3:$AB$351, MATCH(Selection_Hide2!$A78, 'Full set Core Client Indicator'!$A$3:$A$351, 0), MATCH(Selection_Hide2!J$5, 'Full set Core Client Indicator'!$A$3:$AB$3, 0))=\"\", \"\",  INDEX('Full set Core Client Indicator'!$A$3:$AB$351, MATCH(Selection_Hide2!$A78, 'Full set Core Client Indicator'!$A$3:$A$351, 0), MATCH(Selection_Hide2!J$5, 'Full set Core Client Indicator'!$A$3:$AB$3, 0))), \"\")","v":""},{"$f":"IF(J78<>\"\", IF(INDEX('Full set Core Client Indicator'!$A$3:$AB$351, MATCH(Selection_Hide2!$A78, 'Full set Core Client Indicator'!$A$3:$A$351, 0), MATCH(Selection_Hide2!K$5, 'Full set Core Client Indicator'!$A$3:$AB$3, 0))=\"\", \"\",  INDEX('Full set Core Client Indicator'!$A$3:$AB$351, MATCH(Selection_Hide2!$A78, 'Full set Core Client Indicator'!$A$3:$A$351, 0), MATCH(Selection_Hide2!K$5, 'Full set Core Client Indicator'!$A$3:$AB$3, 0))), \"\")","v":""},{"$f":"IF(K78<>\"\", IF(INDEX('Full set Core Client Indicator'!$A$3:$AB$351, MATCH(Selection_Hide2!$A78, 'Full set Core Client Indicator'!$A$3:$A$351, 0), MATCH(Selection_Hide2!L$5, 'Full set Core Client Indicator'!$A$3:$AB$3, 0))=\"\", \"\",  INDEX('Full set Core Client Indicator'!$A$3:$AB$351, MATCH(Selection_Hide2!$A78, 'Full set Core Client Indicator'!$A$3:$A$351, 0), MATCH(Selection_Hide2!L$5, 'Full set Core Client Indicator'!$A$3:$AB$3, 0))), \"\")","v":""},{"$f":"IF(L78<>\"\", IF(INDEX('Full set Core Client Indicator'!$A$3:$AB$351, MATCH(Selection_Hide2!$A78, 'Full set Core Client Indicator'!$A$3:$A$351, 0), MATCH(Selection_Hide2!M$5, 'Full set Core Client Indicator'!$A$3:$AB$3, 0))=\"\", \"\",  INDEX('Full set Core Client Indicator'!$A$3:$AB$351, MATCH(Selection_Hide2!$A78, 'Full set Core Client Indicator'!$A$3:$A$351, 0), MATCH(Selection_Hide2!M$5, 'Full set Core Client Indicator'!$A$3:$AB$3, 0))), \"\")","v":""},{"$f":"IF(M78<>\"\", IF(INDEX('Full set Core Client Indicator'!$A$3:$AB$351, MATCH(Selection_Hide2!$A78, 'Full set Core Client Indicator'!$A$3:$A$351, 0), MATCH(Selection_Hide2!N$5, 'Full set Core Client Indicator'!$A$3:$AB$3, 0))=\"\", \"\",  INDEX('Full set Core Client Indicator'!$A$3:$AB$351, MATCH(Selection_Hide2!$A78, 'Full set Core Client Indicator'!$A$3:$A$351, 0), MATCH(Selection_Hide2!N$5, 'Full set Core Client Indicator'!$A$3:$AB$3, 0))), \"\")","v":""},{"$f":"IF(N78<>\"\", IF(INDEX('Full set Core Client Indicator'!$A$3:$AB$351, MATCH(Selection_Hide2!$A78, 'Full set Core Client Indicator'!$A$3:$A$351, 0), MATCH(Selection_Hide2!O$5, 'Full set Core Client Indicator'!$A$3:$AB$3, 0))=\"\", \"\",  INDEX('Full set Core Client Indicator'!$A$3:$AB$351, MATCH(Selection_Hide2!$A78, 'Full set Core Client Indicator'!$A$3:$A$351, 0), MATCH(Selection_Hide2!O$5, 'Full set Core Client Indicator'!$A$3:$AB$3, 0))), \"\")","v":""},{"$f":"IF(O78<>\"\", IF(INDEX('Full set Core Client Indicator'!$A$3:$AB$351, MATCH(Selection_Hide2!$A78, 'Full set Core Client Indicator'!$A$3:$A$351, 0), MATCH(Selection_Hide2!P$5, 'Full set Core Client Indicator'!$A$3:$AB$3, 0))=\"\", \"\",  INDEX('Full set Core Client Indicator'!$A$3:$AB$351, MATCH(Selection_Hide2!$A78, 'Full set Core Client Indicator'!$A$3:$A$351, 0), MATCH(Selection_Hide2!P$5, 'Full set Core Client Indicator'!$A$3:$AB$3, 0))), \"\")","v":""},{"$f":"IF(P78<>\"\", IF(INDEX('Full set Core Client Indicator'!$A$3:$AB$351, MATCH(Selection_Hide2!$A78, 'Full set Core Client Indicator'!$A$3:$A$351, 0), MATCH(Selection_Hide2!Q$5, 'Full set Core Client Indicator'!$A$3:$AB$3, 0))=\"\", \"\",  INDEX('Full set Core Client Indicator'!$A$3:$AB$351, MATCH(Selection_Hide2!$A78, 'Full set Core Client Indicator'!$A$3:$A$351, 0), MATCH(Selection_Hide2!Q$5, 'Full set Core Client Indicator'!$A$3:$AB$3, 0))), \"\")","v":""},{"$f":"IF(Q78<>\"\", IF(INDEX('Full set Core Client Indicator'!$A$3:$AB$351, MATCH(Selection_Hide2!$A78, 'Full set Core Client Indicator'!$A$3:$A$351, 0), MATCH(Selection_Hide2!R$5, 'Full set Core Client Indicator'!$A$3:$AB$3, 0))=\"\", \"\",  INDEX('Full set Core Client Indicator'!$A$3:$AB$351, MATCH(Selection_Hide2!$A78, 'Full set Core Client Indicator'!$A$3:$A$351, 0), MATCH(Selection_Hide2!R$5, 'Full set Core Client Indicator'!$A$3:$AB$3, 0))), \"\")","v":""},{"$f":"IF(R78<>\"\", IF(INDEX('Full set Core Client Indicator'!$A$3:$AB$351, MATCH(Selection_Hide2!$A78, 'Full set Core Client Indicator'!$A$3:$A$351, 0), MATCH(Selection_Hide2!S$5, 'Full set Core Client Indicator'!$A$3:$AB$3, 0))=\"\", \"\",  INDEX('Full set Core Client Indicator'!$A$3:$AB$351, MATCH(Selection_Hide2!$A78, 'Full set Core Client Indicator'!$A$3:$A$351, 0), MATCH(Selection_Hide2!S$5, 'Full set Core Client Indicator'!$A$3:$AB$3, 0))), \"\")","v":""},{"$f":"IF(S78<>\"\", IF(INDEX('Full set Core Client Indicator'!$A$3:$AB$351, MATCH(Selection_Hide2!$A78, 'Full set Core Client Indicator'!$A$3:$A$351, 0), MATCH(Selection_Hide2!T$5, 'Full set Core Client Indicator'!$A$3:$AB$3, 0))=\"\", \"\",  INDEX('Full set Core Client Indicator'!$A$3:$AB$351, MATCH(Selection_Hide2!$A78, 'Full set Core Client Indicator'!$A$3:$A$351, 0), MATCH(Selection_Hide2!T$5, 'Full set Core Client Indicator'!$A$3:$AB$3, 0))), \"\")","v":""},{"$f":"IF(T78<>\"\", IF(INDEX('Full set Core Client Indicator'!$A$3:$AB$351, MATCH(Selection_Hide2!$A78, 'Full set Core Client Indicator'!$A$3:$A$351, 0), MATCH(Selection_Hide2!U$5, 'Full set Core Client Indicator'!$A$3:$AB$3, 0))=\"\", \"\",  INDEX('Full set Core Client Indicator'!$A$3:$AB$351, MATCH(Selection_Hide2!$A78, 'Full set Core Client Indicator'!$A$3:$A$351, 0), MATCH(Selection_Hide2!U$5, 'Full set Core Client Indicator'!$A$3:$AB$3, 0))), \"\")","v":""},{"$f":"IF(U78<>\"\", IF(INDEX('Full set Core Client Indicator'!$A$3:$AB$351, MATCH(Selection_Hide2!$A78, 'Full set Core Client Indicator'!$A$3:$A$351, 0), MATCH(Selection_Hide2!V$5, 'Full set Core Client Indicator'!$A$3:$AB$3, 0))=\"\", \"\",  INDEX('Full set Core Client Indicator'!$A$3:$AB$351, MATCH(Selection_Hide2!$A78, 'Full set Core Client Indicator'!$A$3:$A$351, 0), MATCH(Selection_Hide2!V$5, 'Full set Core Client Indicator'!$A$3:$AB$3, 0))), \"\")","v":""},{"$f":"IF(V78<>\"\", IF(INDEX('Full set Core Client Indicator'!$A$3:$AB$351, MATCH(Selection_Hide2!$A78, 'Full set Core Client Indicator'!$A$3:$A$351, 0), MATCH(Selection_Hide2!W$5, 'Full set Core Client Indicator'!$A$3:$AB$3, 0))=\"\", \"\",  INDEX('Full set Core Client Indicator'!$A$3:$AB$351, MATCH(Selection_Hide2!$A78, 'Full set Core Client Indicator'!$A$3:$A$351, 0), MATCH(Selection_Hide2!W$5, 'Full set Core Client Indicator'!$A$3:$AB$3, 0))), \"\")","v":""},{"$f":"IF(W78<>\"\", IF(INDEX('Full set Core Client Indicator'!$A$3:$AB$351, MATCH(Selection_Hide2!$A78, 'Full set Core Client Indicator'!$A$3:$A$351, 0), MATCH(Selection_Hide2!X$5, 'Full set Core Client Indicator'!$A$3:$AB$3, 0))=\"\", \"\",  INDEX('Full set Core Client Indicator'!$A$3:$AB$351, MATCH(Selection_Hide2!$A78, 'Full set Core Client Indicator'!$A$3:$A$351, 0), MATCH(Selection_Hide2!X$5, 'Full set Core Client Indicator'!$A$3:$AB$3, 0))), \"\")","v":""},{"$f":"IF(X78<>\"\", IF(INDEX('Full set Core Client Indicator'!$A$3:$AB$351, MATCH(Selection_Hide2!$A78, 'Full set Core Client Indicator'!$A$3:$A$351, 0), MATCH(Selection_Hide2!Y$5, 'Full set Core Client Indicator'!$A$3:$AB$3, 0))=\"\", \"\",  INDEX('Full set Core Client Indicator'!$A$3:$AB$351, MATCH(Selection_Hide2!$A78, 'Full set Core Client Indicator'!$A$3:$A$351, 0), MATCH(Selection_Hide2!Y$5, 'Full set Core Client Indicator'!$A$3:$AB$3, 0))), \"\")","v":""},{"$f":"IF(Y78<>\"\", IF(INDEX('Full set Core Client Indicator'!$A$3:$AB$351, MATCH(Selection_Hide2!$A78, 'Full set Core Client Indicator'!$A$3:$A$351, 0), MATCH(Selection_Hide2!Z$5, 'Full set Core Client Indicator'!$A$3:$AB$3, 0))=\"\", \"\",  INDEX('Full set Core Client Indicator'!$A$3:$AB$351, MATCH(Selection_Hide2!$A78, 'Full set Core Client Indicator'!$A$3:$A$351, 0), MATCH(Selection_Hide2!Z$5, 'Full set Core Client Indicator'!$A$3:$AB$3, 0))), \"\")","v":""},{"$f":"IF(Z78<>\"\", IF(INDEX('Full set Core Client Indicator'!$A$3:$AB$351, MATCH(Selection_Hide2!$A78, 'Full set Core Client Indicator'!$A$3:$A$351, 0), MATCH(Selection_Hide2!AA$5, 'Full set Core Client Indicator'!$A$3:$AB$3, 0))=\"\", \"\",  INDEX('Full set Core Client Indicator'!$A$3:$AB$351, MATCH(Selection_Hide2!$A78, 'Full set Core Client Indicator'!$A$3:$A$351, 0), MATCH(Selection_Hide2!AA$5, 'Full set Core Client Indicator'!$A$3:$AB$3, 0))), \"\")","v":""},{"$f":"IF(AA78<>\"\", IF(INDEX('Full set Core Client Indicator'!$A$3:$AB$351, MATCH(Selection_Hide2!$A78, 'Full set Core Client Indicator'!$A$3:$A$351, 0), MATCH(Selection_Hide2!AB$5, 'Full set Core Client Indicator'!$A$3:$AB$3, 0))=\"\", \"\",  INDEX('Full set Core Client Indicator'!$A$3:$AB$351, MATCH(Selection_Hide2!$A78, 'Full set Core Client Indicator'!$A$3:$A$351, 0), MATCH(Selection_Hide2!AB$5, 'Full set Core Client Indicator'!$A$3:$AB$3, 0))), \"\")","v":""}]
[{"$f":"IF(AND(Selection_Hide1!C77<>0, Selection_Hide1!C77<>\"Grand Total\"), Selection_Hide1!C77, \"\")","v":""},{"$f":"IF(A79<>\"\", IF(INDEX('Full set Core Client Indicator'!$A$3:$AB$351, MATCH(Selection_Hide2!$A79, 'Full set Core Client Indicator'!$A$3:$A$351, 0), MATCH(Selection_Hide2!B$5, 'Full set Core Client Indicator'!$A$3:$AB$3, 0))=\"\", \"\",  INDEX('Full set Core Client Indicator'!$A$3:$AB$351, MATCH(Selection_Hide2!$A79, 'Full set Core Client Indicator'!$A$3:$A$351, 0), MATCH(Selection_Hide2!B$5, 'Full set Core Client Indicator'!$A$3:$AB$3, 0))), \"\")","v":""},{"$f":"IF(B79<>\"\", IF(INDEX('Full set Core Client Indicator'!$A$3:$AB$351, MATCH(Selection_Hide2!$A79, 'Full set Core Client Indicator'!$A$3:$A$351, 0), MATCH(Selection_Hide2!C$5, 'Full set Core Client Indicator'!$A$3:$AB$3, 0))=\"\", \"\",  INDEX('Full set Core Client Indicator'!$A$3:$AB$351, MATCH(Selection_Hide2!$A79, 'Full set Core Client Indicator'!$A$3:$A$351, 0), MATCH(Selection_Hide2!C$5, 'Full set Core Client Indicator'!$A$3:$AB$3, 0))), \"\")","v":""},{"$f":"IF(C79<>\"\", IF(INDEX('Full set Core Client Indicator'!$A$3:$AB$351, MATCH(Selection_Hide2!$A79, 'Full set Core Client Indicator'!$A$3:$A$351, 0), MATCH(Selection_Hide2!D$5, 'Full set Core Client Indicator'!$A$3:$AB$3, 0))=\"\", \"\",  INDEX('Full set Core Client Indicator'!$A$3:$AB$351, MATCH(Selection_Hide2!$A79, 'Full set Core Client Indicator'!$A$3:$A$351, 0), MATCH(Selection_Hide2!D$5, 'Full set Core Client Indicator'!$A$3:$AB$3, 0))), \"\")","v":""},{"$f":"IF(D79<>\"\", IF(INDEX('Full set Core Client Indicator'!$A$3:$AB$351, MATCH(Selection_Hide2!$A79, 'Full set Core Client Indicator'!$A$3:$A$351, 0), MATCH(Selection_Hide2!E$5, 'Full set Core Client Indicator'!$A$3:$AB$3, 0))=\"\", \"\",  INDEX('Full set Core Client Indicator'!$A$3:$AB$351, MATCH(Selection_Hide2!$A79, 'Full set Core Client Indicator'!$A$3:$A$351, 0), MATCH(Selection_Hide2!E$5, 'Full set Core Client Indicator'!$A$3:$AB$3, 0))), \"\")","v":""},{"$f":"IF(E79<>\"\", IF(INDEX('Full set Core Client Indicator'!$A$3:$AB$351, MATCH(Selection_Hide2!$A79, 'Full set Core Client Indicator'!$A$3:$A$351, 0), MATCH(Selection_Hide2!F$5, 'Full set Core Client Indicator'!$A$3:$AB$3, 0))=\"\", \"\",  INDEX('Full set Core Client Indicator'!$A$3:$AB$351, MATCH(Selection_Hide2!$A79, 'Full set Core Client Indicator'!$A$3:$A$351, 0), MATCH(Selection_Hide2!F$5, 'Full set Core Client Indicator'!$A$3:$AB$3, 0))), \"\")","v":""},{"$f":"IF(F79<>\"\", IF(INDEX('Full set Core Client Indicator'!$A$3:$AB$351, MATCH(Selection_Hide2!$A79, 'Full set Core Client Indicator'!$A$3:$A$351, 0), MATCH(Selection_Hide2!G$5, 'Full set Core Client Indicator'!$A$3:$AB$3, 0))=\"\", \"\",  INDEX('Full set Core Client Indicator'!$A$3:$AB$351, MATCH(Selection_Hide2!$A79, 'Full set Core Client Indicator'!$A$3:$A$351, 0), MATCH(Selection_Hide2!G$5, 'Full set Core Client Indicator'!$A$3:$AB$3, 0))), \"\")","v":""},{"$f":"IF(G79<>\"\", IF(INDEX('Full set Core Client Indicator'!$A$3:$AB$351, MATCH(Selection_Hide2!$A79, 'Full set Core Client Indicator'!$A$3:$A$351, 0), MATCH(Selection_Hide2!H$5, 'Full set Core Client Indicator'!$A$3:$AB$3, 0))=\"\", \"\",  INDEX('Full set Core Client Indicator'!$A$3:$AB$351, MATCH(Selection_Hide2!$A79, 'Full set Core Client Indicator'!$A$3:$A$351, 0), MATCH(Selection_Hide2!H$5, 'Full set Core Client Indicator'!$A$3:$AB$3, 0))), \"\")","v":""},{"$f":"IF(H79<>\"\", IF(INDEX('Full set Core Client Indicator'!$A$3:$AB$351, MATCH(Selection_Hide2!$A79, 'Full set Core Client Indicator'!$A$3:$A$351, 0), MATCH(Selection_Hide2!I$5, 'Full set Core Client Indicator'!$A$3:$AB$3, 0))=\"\", \"\",  INDEX('Full set Core Client Indicator'!$A$3:$AB$351, MATCH(Selection_Hide2!$A79, 'Full set Core Client Indicator'!$A$3:$A$351, 0), MATCH(Selection_Hide2!I$5, 'Full set Core Client Indicator'!$A$3:$AB$3, 0))), \"\")","v":""},{"$f":"IF(I79<>\"\", IF(INDEX('Full set Core Client Indicator'!$A$3:$AB$351, MATCH(Selection_Hide2!$A79, 'Full set Core Client Indicator'!$A$3:$A$351, 0), MATCH(Selection_Hide2!J$5, 'Full set Core Client Indicator'!$A$3:$AB$3, 0))=\"\", \"\",  INDEX('Full set Core Client Indicator'!$A$3:$AB$351, MATCH(Selection_Hide2!$A79, 'Full set Core Client Indicator'!$A$3:$A$351, 0), MATCH(Selection_Hide2!J$5, 'Full set Core Client Indicator'!$A$3:$AB$3, 0))), \"\")","v":""},{"$f":"IF(J79<>\"\", IF(INDEX('Full set Core Client Indicator'!$A$3:$AB$351, MATCH(Selection_Hide2!$A79, 'Full set Core Client Indicator'!$A$3:$A$351, 0), MATCH(Selection_Hide2!K$5, 'Full set Core Client Indicator'!$A$3:$AB$3, 0))=\"\", \"\",  INDEX('Full set Core Client Indicator'!$A$3:$AB$351, MATCH(Selection_Hide2!$A79, 'Full set Core Client Indicator'!$A$3:$A$351, 0), MATCH(Selection_Hide2!K$5, 'Full set Core Client Indicator'!$A$3:$AB$3, 0))), \"\")","v":""},{"$f":"IF(K79<>\"\", IF(INDEX('Full set Core Client Indicator'!$A$3:$AB$351, MATCH(Selection_Hide2!$A79, 'Full set Core Client Indicator'!$A$3:$A$351, 0), MATCH(Selection_Hide2!L$5, 'Full set Core Client Indicator'!$A$3:$AB$3, 0))=\"\", \"\",  INDEX('Full set Core Client Indicator'!$A$3:$AB$351, MATCH(Selection_Hide2!$A79, 'Full set Core Client Indicator'!$A$3:$A$351, 0), MATCH(Selection_Hide2!L$5, 'Full set Core Client Indicator'!$A$3:$AB$3, 0))), \"\")","v":""},{"$f":"IF(L79<>\"\", IF(INDEX('Full set Core Client Indicator'!$A$3:$AB$351, MATCH(Selection_Hide2!$A79, 'Full set Core Client Indicator'!$A$3:$A$351, 0), MATCH(Selection_Hide2!M$5, 'Full set Core Client Indicator'!$A$3:$AB$3, 0))=\"\", \"\",  INDEX('Full set Core Client Indicator'!$A$3:$AB$351, MATCH(Selection_Hide2!$A79, 'Full set Core Client Indicator'!$A$3:$A$351, 0), MATCH(Selection_Hide2!M$5, 'Full set Core Client Indicator'!$A$3:$AB$3, 0))), \"\")","v":""},{"$f":"IF(M79<>\"\", IF(INDEX('Full set Core Client Indicator'!$A$3:$AB$351, MATCH(Selection_Hide2!$A79, 'Full set Core Client Indicator'!$A$3:$A$351, 0), MATCH(Selection_Hide2!N$5, 'Full set Core Client Indicator'!$A$3:$AB$3, 0))=\"\", \"\",  INDEX('Full set Core Client Indicator'!$A$3:$AB$351, MATCH(Selection_Hide2!$A79, 'Full set Core Client Indicator'!$A$3:$A$351, 0), MATCH(Selection_Hide2!N$5, 'Full set Core Client Indicator'!$A$3:$AB$3, 0))), \"\")","v":""},{"$f":"IF(N79<>\"\", IF(INDEX('Full set Core Client Indicator'!$A$3:$AB$351, MATCH(Selection_Hide2!$A79, 'Full set Core Client Indicator'!$A$3:$A$351, 0), MATCH(Selection_Hide2!O$5, 'Full set Core Client Indicator'!$A$3:$AB$3, 0))=\"\", \"\",  INDEX('Full set Core Client Indicator'!$A$3:$AB$351, MATCH(Selection_Hide2!$A79, 'Full set Core Client Indicator'!$A$3:$A$351, 0), MATCH(Selection_Hide2!O$5, 'Full set Core Client Indicator'!$A$3:$AB$3, 0))), \"\")","v":""},{"$f":"IF(O79<>\"\", IF(INDEX('Full set Core Client Indicator'!$A$3:$AB$351, MATCH(Selection_Hide2!$A79, 'Full set Core Client Indicator'!$A$3:$A$351, 0), MATCH(Selection_Hide2!P$5, 'Full set Core Client Indicator'!$A$3:$AB$3, 0))=\"\", \"\",  INDEX('Full set Core Client Indicator'!$A$3:$AB$351, MATCH(Selection_Hide2!$A79, 'Full set Core Client Indicator'!$A$3:$A$351, 0), MATCH(Selection_Hide2!P$5, 'Full set Core Client Indicator'!$A$3:$AB$3, 0))), \"\")","v":""},{"$f":"IF(P79<>\"\", IF(INDEX('Full set Core Client Indicator'!$A$3:$AB$351, MATCH(Selection_Hide2!$A79, 'Full set Core Client Indicator'!$A$3:$A$351, 0), MATCH(Selection_Hide2!Q$5, 'Full set Core Client Indicator'!$A$3:$AB$3, 0))=\"\", \"\",  INDEX('Full set Core Client Indicator'!$A$3:$AB$351, MATCH(Selection_Hide2!$A79, 'Full set Core Client Indicator'!$A$3:$A$351, 0), MATCH(Selection_Hide2!Q$5, 'Full set Core Client Indicator'!$A$3:$AB$3, 0))), \"\")","v":""},{"$f":"IF(Q79<>\"\", IF(INDEX('Full set Core Client Indicator'!$A$3:$AB$351, MATCH(Selection_Hide2!$A79, 'Full set Core Client Indicator'!$A$3:$A$351, 0), MATCH(Selection_Hide2!R$5, 'Full set Core Client Indicator'!$A$3:$AB$3, 0))=\"\", \"\",  INDEX('Full set Core Client Indicator'!$A$3:$AB$351, MATCH(Selection_Hide2!$A79, 'Full set Core Client Indicator'!$A$3:$A$351, 0), MATCH(Selection_Hide2!R$5, 'Full set Core Client Indicator'!$A$3:$AB$3, 0))), \"\")","v":""},{"$f":"IF(R79<>\"\", IF(INDEX('Full set Core Client Indicator'!$A$3:$AB$351, MATCH(Selection_Hide2!$A79, 'Full set Core Client Indicator'!$A$3:$A$351, 0), MATCH(Selection_Hide2!S$5, 'Full set Core Client Indicator'!$A$3:$AB$3, 0))=\"\", \"\",  INDEX('Full set Core Client Indicator'!$A$3:$AB$351, MATCH(Selection_Hide2!$A79, 'Full set Core Client Indicator'!$A$3:$A$351, 0), MATCH(Selection_Hide2!S$5, 'Full set Core Client Indicator'!$A$3:$AB$3, 0))), \"\")","v":""},{"$f":"IF(S79<>\"\", IF(INDEX('Full set Core Client Indicator'!$A$3:$AB$351, MATCH(Selection_Hide2!$A79, 'Full set Core Client Indicator'!$A$3:$A$351, 0), MATCH(Selection_Hide2!T$5, 'Full set Core Client Indicator'!$A$3:$AB$3, 0))=\"\", \"\",  INDEX('Full set Core Client Indicator'!$A$3:$AB$351, MATCH(Selection_Hide2!$A79, 'Full set Core Client Indicator'!$A$3:$A$351, 0), MATCH(Selection_Hide2!T$5, 'Full set Core Client Indicator'!$A$3:$AB$3, 0))), \"\")","v":""},{"$f":"IF(T79<>\"\", IF(INDEX('Full set Core Client Indicator'!$A$3:$AB$351, MATCH(Selection_Hide2!$A79, 'Full set Core Client Indicator'!$A$3:$A$351, 0), MATCH(Selection_Hide2!U$5, 'Full set Core Client Indicator'!$A$3:$AB$3, 0))=\"\", \"\",  INDEX('Full set Core Client Indicator'!$A$3:$AB$351, MATCH(Selection_Hide2!$A79, 'Full set Core Client Indicator'!$A$3:$A$351, 0), MATCH(Selection_Hide2!U$5, 'Full set Core Client Indicator'!$A$3:$AB$3, 0))), \"\")","v":""},{"$f":"IF(U79<>\"\", IF(INDEX('Full set Core Client Indicator'!$A$3:$AB$351, MATCH(Selection_Hide2!$A79, 'Full set Core Client Indicator'!$A$3:$A$351, 0), MATCH(Selection_Hide2!V$5, 'Full set Core Client Indicator'!$A$3:$AB$3, 0))=\"\", \"\",  INDEX('Full set Core Client Indicator'!$A$3:$AB$351, MATCH(Selection_Hide2!$A79, 'Full set Core Client Indicator'!$A$3:$A$351, 0), MATCH(Selection_Hide2!V$5, 'Full set Core Client Indicator'!$A$3:$AB$3, 0))), \"\")","v":""},{"$f":"IF(V79<>\"\", IF(INDEX('Full set Core Client Indicator'!$A$3:$AB$351, MATCH(Selection_Hide2!$A79, 'Full set Core Client Indicator'!$A$3:$A$351, 0), MATCH(Selection_Hide2!W$5, 'Full set Core Client Indicator'!$A$3:$AB$3, 0))=\"\", \"\",  INDEX('Full set Core Client Indicator'!$A$3:$AB$351, MATCH(Selection_Hide2!$A79, 'Full set Core Client Indicator'!$A$3:$A$351, 0), MATCH(Selection_Hide2!W$5, 'Full set Core Client Indicator'!$A$3:$AB$3, 0))), \"\")","v":""},{"$f":"IF(W79<>\"\", IF(INDEX('Full set Core Client Indicator'!$A$3:$AB$351, MATCH(Selection_Hide2!$A79, 'Full set Core Client Indicator'!$A$3:$A$351, 0), MATCH(Selection_Hide2!X$5, 'Full set Core Client Indicator'!$A$3:$AB$3, 0))=\"\", \"\",  INDEX('Full set Core Client Indicator'!$A$3:$AB$351, MATCH(Selection_Hide2!$A79, 'Full set Core Client Indicator'!$A$3:$A$351, 0), MATCH(Selection_Hide2!X$5, 'Full set Core Client Indicator'!$A$3:$AB$3, 0))), \"\")","v":""},{"$f":"IF(X79<>\"\", IF(INDEX('Full set Core Client Indicator'!$A$3:$AB$351, MATCH(Selection_Hide2!$A79, 'Full set Core Client Indicator'!$A$3:$A$351, 0), MATCH(Selection_Hide2!Y$5, 'Full set Core Client Indicator'!$A$3:$AB$3, 0))=\"\", \"\",  INDEX('Full set Core Client Indicator'!$A$3:$AB$351, MATCH(Selection_Hide2!$A79, 'Full set Core Client Indicator'!$A$3:$A$351, 0), MATCH(Selection_Hide2!Y$5, 'Full set Core Client Indicator'!$A$3:$AB$3, 0))), \"\")","v":""},{"$f":"IF(Y79<>\"\", IF(INDEX('Full set Core Client Indicator'!$A$3:$AB$351, MATCH(Selection_Hide2!$A79, 'Full set Core Client Indicator'!$A$3:$A$351, 0), MATCH(Selection_Hide2!Z$5, 'Full set Core Client Indicator'!$A$3:$AB$3, 0))=\"\", \"\",  INDEX('Full set Core Client Indicator'!$A$3:$AB$351, MATCH(Selection_Hide2!$A79, 'Full set Core Client Indicator'!$A$3:$A$351, 0), MATCH(Selection_Hide2!Z$5, 'Full set Core Client Indicator'!$A$3:$AB$3, 0))), \"\")","v":""},{"$f":"IF(Z79<>\"\", IF(INDEX('Full set Core Client Indicator'!$A$3:$AB$351, MATCH(Selection_Hide2!$A79, 'Full set Core Client Indicator'!$A$3:$A$351, 0), MATCH(Selection_Hide2!AA$5, 'Full set Core Client Indicator'!$A$3:$AB$3, 0))=\"\", \"\",  INDEX('Full set Core Client Indicator'!$A$3:$AB$351, MATCH(Selection_Hide2!$A79, 'Full set Core Client Indicator'!$A$3:$A$351, 0), MATCH(Selection_Hide2!AA$5, 'Full set Core Client Indicator'!$A$3:$AB$3, 0))), \"\")","v":""},{"$f":"IF(AA79<>\"\", IF(INDEX('Full set Core Client Indicator'!$A$3:$AB$351, MATCH(Selection_Hide2!$A79, 'Full set Core Client Indicator'!$A$3:$A$351, 0), MATCH(Selection_Hide2!AB$5, 'Full set Core Client Indicator'!$A$3:$AB$3, 0))=\"\", \"\",  INDEX('Full set Core Client Indicator'!$A$3:$AB$351, MATCH(Selection_Hide2!$A79, 'Full set Core Client Indicator'!$A$3:$A$351, 0), MATCH(Selection_Hide2!AB$5, 'Full set Core Client Indicator'!$A$3:$AB$3, 0))), \"\")","v":""}]
[{"$f":"IF(AND(Selection_Hide1!C78<>0, Selection_Hide1!C78<>\"Grand Total\"), Selection_Hide1!C78, \"\")","v":""},{"$f":"IF(A80<>\"\", IF(INDEX('Full set Core Client Indicator'!$A$3:$AB$351, MATCH(Selection_Hide2!$A80, 'Full set Core Client Indicator'!$A$3:$A$351, 0), MATCH(Selection_Hide2!B$5, 'Full set Core Client Indicator'!$A$3:$AB$3, 0))=\"\", \"\",  INDEX('Full set Core Client Indicator'!$A$3:$AB$351, MATCH(Selection_Hide2!$A80, 'Full set Core Client Indicator'!$A$3:$A$351, 0), MATCH(Selection_Hide2!B$5, 'Full set Core Client Indicator'!$A$3:$AB$3, 0))), \"\")","v":""},{"$f":"IF(B80<>\"\", IF(INDEX('Full set Core Client Indicator'!$A$3:$AB$351, MATCH(Selection_Hide2!$A80, 'Full set Core Client Indicator'!$A$3:$A$351, 0), MATCH(Selection_Hide2!C$5, 'Full set Core Client Indicator'!$A$3:$AB$3, 0))=\"\", \"\",  INDEX('Full set Core Client Indicator'!$A$3:$AB$351, MATCH(Selection_Hide2!$A80, 'Full set Core Client Indicator'!$A$3:$A$351, 0), MATCH(Selection_Hide2!C$5, 'Full set Core Client Indicator'!$A$3:$AB$3, 0))), \"\")","v":""},{"$f":"IF(C80<>\"\", IF(INDEX('Full set Core Client Indicator'!$A$3:$AB$351, MATCH(Selection_Hide2!$A80, 'Full set Core Client Indicator'!$A$3:$A$351, 0), MATCH(Selection_Hide2!D$5, 'Full set Core Client Indicator'!$A$3:$AB$3, 0))=\"\", \"\",  INDEX('Full set Core Client Indicator'!$A$3:$AB$351, MATCH(Selection_Hide2!$A80, 'Full set Core Client Indicator'!$A$3:$A$351, 0), MATCH(Selection_Hide2!D$5, 'Full set Core Client Indicator'!$A$3:$AB$3, 0))), \"\")","v":""},{"$f":"IF(D80<>\"\", IF(INDEX('Full set Core Client Indicator'!$A$3:$AB$351, MATCH(Selection_Hide2!$A80, 'Full set Core Client Indicator'!$A$3:$A$351, 0), MATCH(Selection_Hide2!E$5, 'Full set Core Client Indicator'!$A$3:$AB$3, 0))=\"\", \"\",  INDEX('Full set Core Client Indicator'!$A$3:$AB$351, MATCH(Selection_Hide2!$A80, 'Full set Core Client Indicator'!$A$3:$A$351, 0), MATCH(Selection_Hide2!E$5, 'Full set Core Client Indicator'!$A$3:$AB$3, 0))), \"\")","v":""},{"$f":"IF(E80<>\"\", IF(INDEX('Full set Core Client Indicator'!$A$3:$AB$351, MATCH(Selection_Hide2!$A80, 'Full set Core Client Indicator'!$A$3:$A$351, 0), MATCH(Selection_Hide2!F$5, 'Full set Core Client Indicator'!$A$3:$AB$3, 0))=\"\", \"\",  INDEX('Full set Core Client Indicator'!$A$3:$AB$351, MATCH(Selection_Hide2!$A80, 'Full set Core Client Indicator'!$A$3:$A$351, 0), MATCH(Selection_Hide2!F$5, 'Full set Core Client Indicator'!$A$3:$AB$3, 0))), \"\")","v":""},{"$f":"IF(F80<>\"\", IF(INDEX('Full set Core Client Indicator'!$A$3:$AB$351, MATCH(Selection_Hide2!$A80, 'Full set Core Client Indicator'!$A$3:$A$351, 0), MATCH(Selection_Hide2!G$5, 'Full set Core Client Indicator'!$A$3:$AB$3, 0))=\"\", \"\",  INDEX('Full set Core Client Indicator'!$A$3:$AB$351, MATCH(Selection_Hide2!$A80, 'Full set Core Client Indicator'!$A$3:$A$351, 0), MATCH(Selection_Hide2!G$5, 'Full set Core Client Indicator'!$A$3:$AB$3, 0))), \"\")","v":""},{"$f":"IF(G80<>\"\", IF(INDEX('Full set Core Client Indicator'!$A$3:$AB$351, MATCH(Selection_Hide2!$A80, 'Full set Core Client Indicator'!$A$3:$A$351, 0), MATCH(Selection_Hide2!H$5, 'Full set Core Client Indicator'!$A$3:$AB$3, 0))=\"\", \"\",  INDEX('Full set Core Client Indicator'!$A$3:$AB$351, MATCH(Selection_Hide2!$A80, 'Full set Core Client Indicator'!$A$3:$A$351, 0), MATCH(Selection_Hide2!H$5, 'Full set Core Client Indicator'!$A$3:$AB$3, 0))), \"\")","v":""},{"$f":"IF(H80<>\"\", IF(INDEX('Full set Core Client Indicator'!$A$3:$AB$351, MATCH(Selection_Hide2!$A80, 'Full set Core Client Indicator'!$A$3:$A$351, 0), MATCH(Selection_Hide2!I$5, 'Full set Core Client Indicator'!$A$3:$AB$3, 0))=\"\", \"\",  INDEX('Full set Core Client Indicator'!$A$3:$AB$351, MATCH(Selection_Hide2!$A80, 'Full set Core Client Indicator'!$A$3:$A$351, 0), MATCH(Selection_Hide2!I$5, 'Full set Core Client Indicator'!$A$3:$AB$3, 0))), \"\")","v":""},{"$f":"IF(I80<>\"\", IF(INDEX('Full set Core Client Indicator'!$A$3:$AB$351, MATCH(Selection_Hide2!$A80, 'Full set Core Client Indicator'!$A$3:$A$351, 0), MATCH(Selection_Hide2!J$5, 'Full set Core Client Indicator'!$A$3:$AB$3, 0))=\"\", \"\",  INDEX('Full set Core Client Indicator'!$A$3:$AB$351, MATCH(Selection_Hide2!$A80, 'Full set Core Client Indicator'!$A$3:$A$351, 0), MATCH(Selection_Hide2!J$5, 'Full set Core Client Indicator'!$A$3:$AB$3, 0))), \"\")","v":""},{"$f":"IF(J80<>\"\", IF(INDEX('Full set Core Client Indicator'!$A$3:$AB$351, MATCH(Selection_Hide2!$A80, 'Full set Core Client Indicator'!$A$3:$A$351, 0), MATCH(Selection_Hide2!K$5, 'Full set Core Client Indicator'!$A$3:$AB$3, 0))=\"\", \"\",  INDEX('Full set Core Client Indicator'!$A$3:$AB$351, MATCH(Selection_Hide2!$A80, 'Full set Core Client Indicator'!$A$3:$A$351, 0), MATCH(Selection_Hide2!K$5, 'Full set Core Client Indicator'!$A$3:$AB$3, 0))), \"\")","v":""},{"$f":"IF(K80<>\"\", IF(INDEX('Full set Core Client Indicator'!$A$3:$AB$351, MATCH(Selection_Hide2!$A80, 'Full set Core Client Indicator'!$A$3:$A$351, 0), MATCH(Selection_Hide2!L$5, 'Full set Core Client Indicator'!$A$3:$AB$3, 0))=\"\", \"\",  INDEX('Full set Core Client Indicator'!$A$3:$AB$351, MATCH(Selection_Hide2!$A80, 'Full set Core Client Indicator'!$A$3:$A$351, 0), MATCH(Selection_Hide2!L$5, 'Full set Core Client Indicator'!$A$3:$AB$3, 0))), \"\")","v":""},{"$f":"IF(L80<>\"\", IF(INDEX('Full set Core Client Indicator'!$A$3:$AB$351, MATCH(Selection_Hide2!$A80, 'Full set Core Client Indicator'!$A$3:$A$351, 0), MATCH(Selection_Hide2!M$5, 'Full set Core Client Indicator'!$A$3:$AB$3, 0))=\"\", \"\",  INDEX('Full set Core Client Indicator'!$A$3:$AB$351, MATCH(Selection_Hide2!$A80, 'Full set Core Client Indicator'!$A$3:$A$351, 0), MATCH(Selection_Hide2!M$5, 'Full set Core Client Indicator'!$A$3:$AB$3, 0))), \"\")","v":""},{"$f":"IF(M80<>\"\", IF(INDEX('Full set Core Client Indicator'!$A$3:$AB$351, MATCH(Selection_Hide2!$A80, 'Full set Core Client Indicator'!$A$3:$A$351, 0), MATCH(Selection_Hide2!N$5, 'Full set Core Client Indicator'!$A$3:$AB$3, 0))=\"\", \"\",  INDEX('Full set Core Client Indicator'!$A$3:$AB$351, MATCH(Selection_Hide2!$A80, 'Full set Core Client Indicator'!$A$3:$A$351, 0), MATCH(Selection_Hide2!N$5, 'Full set Core Client Indicator'!$A$3:$AB$3, 0))), \"\")","v":""},{"$f":"IF(N80<>\"\", IF(INDEX('Full set Core Client Indicator'!$A$3:$AB$351, MATCH(Selection_Hide2!$A80, 'Full set Core Client Indicator'!$A$3:$A$351, 0), MATCH(Selection_Hide2!O$5, 'Full set Core Client Indicator'!$A$3:$AB$3, 0))=\"\", \"\",  INDEX('Full set Core Client Indicator'!$A$3:$AB$351, MATCH(Selection_Hide2!$A80, 'Full set Core Client Indicator'!$A$3:$A$351, 0), MATCH(Selection_Hide2!O$5, 'Full set Core Client Indicator'!$A$3:$AB$3, 0))), \"\")","v":""},{"$f":"IF(O80<>\"\", IF(INDEX('Full set Core Client Indicator'!$A$3:$AB$351, MATCH(Selection_Hide2!$A80, 'Full set Core Client Indicator'!$A$3:$A$351, 0), MATCH(Selection_Hide2!P$5, 'Full set Core Client Indicator'!$A$3:$AB$3, 0))=\"\", \"\",  INDEX('Full set Core Client Indicator'!$A$3:$AB$351, MATCH(Selection_Hide2!$A80, 'Full set Core Client Indicator'!$A$3:$A$351, 0), MATCH(Selection_Hide2!P$5, 'Full set Core Client Indicator'!$A$3:$AB$3, 0))), \"\")","v":""},{"$f":"IF(P80<>\"\", IF(INDEX('Full set Core Client Indicator'!$A$3:$AB$351, MATCH(Selection_Hide2!$A80, 'Full set Core Client Indicator'!$A$3:$A$351, 0), MATCH(Selection_Hide2!Q$5, 'Full set Core Client Indicator'!$A$3:$AB$3, 0))=\"\", \"\",  INDEX('Full set Core Client Indicator'!$A$3:$AB$351, MATCH(Selection_Hide2!$A80, 'Full set Core Client Indicator'!$A$3:$A$351, 0), MATCH(Selection_Hide2!Q$5, 'Full set Core Client Indicator'!$A$3:$AB$3, 0))), \"\")","v":""},{"$f":"IF(Q80<>\"\", IF(INDEX('Full set Core Client Indicator'!$A$3:$AB$351, MATCH(Selection_Hide2!$A80, 'Full set Core Client Indicator'!$A$3:$A$351, 0), MATCH(Selection_Hide2!R$5, 'Full set Core Client Indicator'!$A$3:$AB$3, 0))=\"\", \"\",  INDEX('Full set Core Client Indicator'!$A$3:$AB$351, MATCH(Selection_Hide2!$A80, 'Full set Core Client Indicator'!$A$3:$A$351, 0), MATCH(Selection_Hide2!R$5, 'Full set Core Client Indicator'!$A$3:$AB$3, 0))), \"\")","v":""},{"$f":"IF(R80<>\"\", IF(INDEX('Full set Core Client Indicator'!$A$3:$AB$351, MATCH(Selection_Hide2!$A80, 'Full set Core Client Indicator'!$A$3:$A$351, 0), MATCH(Selection_Hide2!S$5, 'Full set Core Client Indicator'!$A$3:$AB$3, 0))=\"\", \"\",  INDEX('Full set Core Client Indicator'!$A$3:$AB$351, MATCH(Selection_Hide2!$A80, 'Full set Core Client Indicator'!$A$3:$A$351, 0), MATCH(Selection_Hide2!S$5, 'Full set Core Client Indicator'!$A$3:$AB$3, 0))), \"\")","v":""},{"$f":"IF(S80<>\"\", IF(INDEX('Full set Core Client Indicator'!$A$3:$AB$351, MATCH(Selection_Hide2!$A80, 'Full set Core Client Indicator'!$A$3:$A$351, 0), MATCH(Selection_Hide2!T$5, 'Full set Core Client Indicator'!$A$3:$AB$3, 0))=\"\", \"\",  INDEX('Full set Core Client Indicator'!$A$3:$AB$351, MATCH(Selection_Hide2!$A80, 'Full set Core Client Indicator'!$A$3:$A$351, 0), MATCH(Selection_Hide2!T$5, 'Full set Core Client Indicator'!$A$3:$AB$3, 0))), \"\")","v":""},{"$f":"IF(T80<>\"\", IF(INDEX('Full set Core Client Indicator'!$A$3:$AB$351, MATCH(Selection_Hide2!$A80, 'Full set Core Client Indicator'!$A$3:$A$351, 0), MATCH(Selection_Hide2!U$5, 'Full set Core Client Indicator'!$A$3:$AB$3, 0))=\"\", \"\",  INDEX('Full set Core Client Indicator'!$A$3:$AB$351, MATCH(Selection_Hide2!$A80, 'Full set Core Client Indicator'!$A$3:$A$351, 0), MATCH(Selection_Hide2!U$5, 'Full set Core Client Indicator'!$A$3:$AB$3, 0))), \"\")","v":""},{"$f":"IF(U80<>\"\", IF(INDEX('Full set Core Client Indicator'!$A$3:$AB$351, MATCH(Selection_Hide2!$A80, 'Full set Core Client Indicator'!$A$3:$A$351, 0), MATCH(Selection_Hide2!V$5, 'Full set Core Client Indicator'!$A$3:$AB$3, 0))=\"\", \"\",  INDEX('Full set Core Client Indicator'!$A$3:$AB$351, MATCH(Selection_Hide2!$A80, 'Full set Core Client Indicator'!$A$3:$A$351, 0), MATCH(Selection_Hide2!V$5, 'Full set Core Client Indicator'!$A$3:$AB$3, 0))), \"\")","v":""},{"$f":"IF(V80<>\"\", IF(INDEX('Full set Core Client Indicator'!$A$3:$AB$351, MATCH(Selection_Hide2!$A80, 'Full set Core Client Indicator'!$A$3:$A$351, 0), MATCH(Selection_Hide2!W$5, 'Full set Core Client Indicator'!$A$3:$AB$3, 0))=\"\", \"\",  INDEX('Full set Core Client Indicator'!$A$3:$AB$351, MATCH(Selection_Hide2!$A80, 'Full set Core Client Indicator'!$A$3:$A$351, 0), MATCH(Selection_Hide2!W$5, 'Full set Core Client Indicator'!$A$3:$AB$3, 0))), \"\")","v":""},{"$f":"IF(W80<>\"\", IF(INDEX('Full set Core Client Indicator'!$A$3:$AB$351, MATCH(Selection_Hide2!$A80, 'Full set Core Client Indicator'!$A$3:$A$351, 0), MATCH(Selection_Hide2!X$5, 'Full set Core Client Indicator'!$A$3:$AB$3, 0))=\"\", \"\",  INDEX('Full set Core Client Indicator'!$A$3:$AB$351, MATCH(Selection_Hide2!$A80, 'Full set Core Client Indicator'!$A$3:$A$351, 0), MATCH(Selection_Hide2!X$5, 'Full set Core Client Indicator'!$A$3:$AB$3, 0))), \"\")","v":""},{"$f":"IF(X80<>\"\", IF(INDEX('Full set Core Client Indicator'!$A$3:$AB$351, MATCH(Selection_Hide2!$A80, 'Full set Core Client Indicator'!$A$3:$A$351, 0), MATCH(Selection_Hide2!Y$5, 'Full set Core Client Indicator'!$A$3:$AB$3, 0))=\"\", \"\",  INDEX('Full set Core Client Indicator'!$A$3:$AB$351, MATCH(Selection_Hide2!$A80, 'Full set Core Client Indicator'!$A$3:$A$351, 0), MATCH(Selection_Hide2!Y$5, 'Full set Core Client Indicator'!$A$3:$AB$3, 0))), \"\")","v":""},{"$f":"IF(Y80<>\"\", IF(INDEX('Full set Core Client Indicator'!$A$3:$AB$351, MATCH(Selection_Hide2!$A80, 'Full set Core Client Indicator'!$A$3:$A$351, 0), MATCH(Selection_Hide2!Z$5, 'Full set Core Client Indicator'!$A$3:$AB$3, 0))=\"\", \"\",  INDEX('Full set Core Client Indicator'!$A$3:$AB$351, MATCH(Selection_Hide2!$A80, 'Full set Core Client Indicator'!$A$3:$A$351, 0), MATCH(Selection_Hide2!Z$5, 'Full set Core Client Indicator'!$A$3:$AB$3, 0))), \"\")","v":""},{"$f":"IF(Z80<>\"\", IF(INDEX('Full set Core Client Indicator'!$A$3:$AB$351, MATCH(Selection_Hide2!$A80, 'Full set Core Client Indicator'!$A$3:$A$351, 0), MATCH(Selection_Hide2!AA$5, 'Full set Core Client Indicator'!$A$3:$AB$3, 0))=\"\", \"\",  INDEX('Full set Core Client Indicator'!$A$3:$AB$351, MATCH(Selection_Hide2!$A80, 'Full set Core Client Indicator'!$A$3:$A$351, 0), MATCH(Selection_Hide2!AA$5, 'Full set Core Client Indicator'!$A$3:$AB$3, 0))), \"\")","v":""},{"$f":"IF(AA80<>\"\", IF(INDEX('Full set Core Client Indicator'!$A$3:$AB$351, MATCH(Selection_Hide2!$A80, 'Full set Core Client Indicator'!$A$3:$A$351, 0), MATCH(Selection_Hide2!AB$5, 'Full set Core Client Indicator'!$A$3:$AB$3, 0))=\"\", \"\",  INDEX('Full set Core Client Indicator'!$A$3:$AB$351, MATCH(Selection_Hide2!$A80, 'Full set Core Client Indicator'!$A$3:$A$351, 0), MATCH(Selection_Hide2!AB$5, 'Full set Core Client Indicator'!$A$3:$AB$3, 0))), \"\")","v":""}]
[{"$f":"IF(AND(Selection_Hide1!C79<>0, Selection_Hide1!C79<>\"Grand Total\"), Selection_Hide1!C79, \"\")","v":""},{"$f":"IF(A81<>\"\", IF(INDEX('Full set Core Client Indicator'!$A$3:$AB$351, MATCH(Selection_Hide2!$A81, 'Full set Core Client Indicator'!$A$3:$A$351, 0), MATCH(Selection_Hide2!B$5, 'Full set Core Client Indicator'!$A$3:$AB$3, 0))=\"\", \"\",  INDEX('Full set Core Client Indicator'!$A$3:$AB$351, MATCH(Selection_Hide2!$A81, 'Full set Core Client Indicator'!$A$3:$A$351, 0), MATCH(Selection_Hide2!B$5, 'Full set Core Client Indicator'!$A$3:$AB$3, 0))), \"\")","v":""},{"$f":"IF(B81<>\"\", IF(INDEX('Full set Core Client Indicator'!$A$3:$AB$351, MATCH(Selection_Hide2!$A81, 'Full set Core Client Indicator'!$A$3:$A$351, 0), MATCH(Selection_Hide2!C$5, 'Full set Core Client Indicator'!$A$3:$AB$3, 0))=\"\", \"\",  INDEX('Full set Core Client Indicator'!$A$3:$AB$351, MATCH(Selection_Hide2!$A81, 'Full set Core Client Indicator'!$A$3:$A$351, 0), MATCH(Selection_Hide2!C$5, 'Full set Core Client Indicator'!$A$3:$AB$3, 0))), \"\")","v":""},{"$f":"IF(C81<>\"\", IF(INDEX('Full set Core Client Indicator'!$A$3:$AB$351, MATCH(Selection_Hide2!$A81, 'Full set Core Client Indicator'!$A$3:$A$351, 0), MATCH(Selection_Hide2!D$5, 'Full set Core Client Indicator'!$A$3:$AB$3, 0))=\"\", \"\",  INDEX('Full set Core Client Indicator'!$A$3:$AB$351, MATCH(Selection_Hide2!$A81, 'Full set Core Client Indicator'!$A$3:$A$351, 0), MATCH(Selection_Hide2!D$5, 'Full set Core Client Indicator'!$A$3:$AB$3, 0))), \"\")","v":""},{"$f":"IF(D81<>\"\", IF(INDEX('Full set Core Client Indicator'!$A$3:$AB$351, MATCH(Selection_Hide2!$A81, 'Full set Core Client Indicator'!$A$3:$A$351, 0), MATCH(Selection_Hide2!E$5, 'Full set Core Client Indicator'!$A$3:$AB$3, 0))=\"\", \"\",  INDEX('Full set Core Client Indicator'!$A$3:$AB$351, MATCH(Selection_Hide2!$A81, 'Full set Core Client Indicator'!$A$3:$A$351, 0), MATCH(Selection_Hide2!E$5, 'Full set Core Client Indicator'!$A$3:$AB$3, 0))), \"\")","v":""},{"$f":"IF(E81<>\"\", IF(INDEX('Full set Core Client Indicator'!$A$3:$AB$351, MATCH(Selection_Hide2!$A81, 'Full set Core Client Indicator'!$A$3:$A$351, 0), MATCH(Selection_Hide2!F$5, 'Full set Core Client Indicator'!$A$3:$AB$3, 0))=\"\", \"\",  INDEX('Full set Core Client Indicator'!$A$3:$AB$351, MATCH(Selection_Hide2!$A81, 'Full set Core Client Indicator'!$A$3:$A$351, 0), MATCH(Selection_Hide2!F$5, 'Full set Core Client Indicator'!$A$3:$AB$3, 0))), \"\")","v":""},{"$f":"IF(F81<>\"\", IF(INDEX('Full set Core Client Indicator'!$A$3:$AB$351, MATCH(Selection_Hide2!$A81, 'Full set Core Client Indicator'!$A$3:$A$351, 0), MATCH(Selection_Hide2!G$5, 'Full set Core Client Indicator'!$A$3:$AB$3, 0))=\"\", \"\",  INDEX('Full set Core Client Indicator'!$A$3:$AB$351, MATCH(Selection_Hide2!$A81, 'Full set Core Client Indicator'!$A$3:$A$351, 0), MATCH(Selection_Hide2!G$5, 'Full set Core Client Indicator'!$A$3:$AB$3, 0))), \"\")","v":""},{"$f":"IF(G81<>\"\", IF(INDEX('Full set Core Client Indicator'!$A$3:$AB$351, MATCH(Selection_Hide2!$A81, 'Full set Core Client Indicator'!$A$3:$A$351, 0), MATCH(Selection_Hide2!H$5, 'Full set Core Client Indicator'!$A$3:$AB$3, 0))=\"\", \"\",  INDEX('Full set Core Client Indicator'!$A$3:$AB$351, MATCH(Selection_Hide2!$A81, 'Full set Core Client Indicator'!$A$3:$A$351, 0), MATCH(Selection_Hide2!H$5, 'Full set Core Client Indicator'!$A$3:$AB$3, 0))), \"\")","v":""},{"$f":"IF(H81<>\"\", IF(INDEX('Full set Core Client Indicator'!$A$3:$AB$351, MATCH(Selection_Hide2!$A81, 'Full set Core Client Indicator'!$A$3:$A$351, 0), MATCH(Selection_Hide2!I$5, 'Full set Core Client Indicator'!$A$3:$AB$3, 0))=\"\", \"\",  INDEX('Full set Core Client Indicator'!$A$3:$AB$351, MATCH(Selection_Hide2!$A81, 'Full set Core Client Indicator'!$A$3:$A$351, 0), MATCH(Selection_Hide2!I$5, 'Full set Core Client Indicator'!$A$3:$AB$3, 0))), \"\")","v":""},{"$f":"IF(I81<>\"\", IF(INDEX('Full set Core Client Indicator'!$A$3:$AB$351, MATCH(Selection_Hide2!$A81, 'Full set Core Client Indicator'!$A$3:$A$351, 0), MATCH(Selection_Hide2!J$5, 'Full set Core Client Indicator'!$A$3:$AB$3, 0))=\"\", \"\",  INDEX('Full set Core Client Indicator'!$A$3:$AB$351, MATCH(Selection_Hide2!$A81, 'Full set Core Client Indicator'!$A$3:$A$351, 0), MATCH(Selection_Hide2!J$5, 'Full set Core Client Indicator'!$A$3:$AB$3, 0))), \"\")","v":""},{"$f":"IF(J81<>\"\", IF(INDEX('Full set Core Client Indicator'!$A$3:$AB$351, MATCH(Selection_Hide2!$A81, 'Full set Core Client Indicator'!$A$3:$A$351, 0), MATCH(Selection_Hide2!K$5, 'Full set Core Client Indicator'!$A$3:$AB$3, 0))=\"\", \"\",  INDEX('Full set Core Client Indicator'!$A$3:$AB$351, MATCH(Selection_Hide2!$A81, 'Full set Core Client Indicator'!$A$3:$A$351, 0), MATCH(Selection_Hide2!K$5, 'Full set Core Client Indicator'!$A$3:$AB$3, 0))), \"\")","v":""},{"$f":"IF(K81<>\"\", IF(INDEX('Full set Core Client Indicator'!$A$3:$AB$351, MATCH(Selection_Hide2!$A81, 'Full set Core Client Indicator'!$A$3:$A$351, 0), MATCH(Selection_Hide2!L$5, 'Full set Core Client Indicator'!$A$3:$AB$3, 0))=\"\", \"\",  INDEX('Full set Core Client Indicator'!$A$3:$AB$351, MATCH(Selection_Hide2!$A81, 'Full set Core Client Indicator'!$A$3:$A$351, 0), MATCH(Selection_Hide2!L$5, 'Full set Core Client Indicator'!$A$3:$AB$3, 0))), \"\")","v":""},{"$f":"IF(L81<>\"\", IF(INDEX('Full set Core Client Indicator'!$A$3:$AB$351, MATCH(Selection_Hide2!$A81, 'Full set Core Client Indicator'!$A$3:$A$351, 0), MATCH(Selection_Hide2!M$5, 'Full set Core Client Indicator'!$A$3:$AB$3, 0))=\"\", \"\",  INDEX('Full set Core Client Indicator'!$A$3:$AB$351, MATCH(Selection_Hide2!$A81, 'Full set Core Client Indicator'!$A$3:$A$351, 0), MATCH(Selection_Hide2!M$5, 'Full set Core Client Indicator'!$A$3:$AB$3, 0))), \"\")","v":""},{"$f":"IF(M81<>\"\", IF(INDEX('Full set Core Client Indicator'!$A$3:$AB$351, MATCH(Selection_Hide2!$A81, 'Full set Core Client Indicator'!$A$3:$A$351, 0), MATCH(Selection_Hide2!N$5, 'Full set Core Client Indicator'!$A$3:$AB$3, 0))=\"\", \"\",  INDEX('Full set Core Client Indicator'!$A$3:$AB$351, MATCH(Selection_Hide2!$A81, 'Full set Core Client Indicator'!$A$3:$A$351, 0), MATCH(Selection_Hide2!N$5, 'Full set Core Client Indicator'!$A$3:$AB$3, 0))), \"\")","v":""},{"$f":"IF(N81<>\"\", IF(INDEX('Full set Core Client Indicator'!$A$3:$AB$351, MATCH(Selection_Hide2!$A81, 'Full set Core Client Indicator'!$A$3:$A$351, 0), MATCH(Selection_Hide2!O$5, 'Full set Core Client Indicator'!$A$3:$AB$3, 0))=\"\", \"\",  INDEX('Full set Core Client Indicator'!$A$3:$AB$351, MATCH(Selection_Hide2!$A81, 'Full set Core Client Indicator'!$A$3:$A$351, 0), MATCH(Selection_Hide2!O$5, 'Full set Core Client Indicator'!$A$3:$AB$3, 0))), \"\")","v":""},{"$f":"IF(O81<>\"\", IF(INDEX('Full set Core Client Indicator'!$A$3:$AB$351, MATCH(Selection_Hide2!$A81, 'Full set Core Client Indicator'!$A$3:$A$351, 0), MATCH(Selection_Hide2!P$5, 'Full set Core Client Indicator'!$A$3:$AB$3, 0))=\"\", \"\",  INDEX('Full set Core Client Indicator'!$A$3:$AB$351, MATCH(Selection_Hide2!$A81, 'Full set Core Client Indicator'!$A$3:$A$351, 0), MATCH(Selection_Hide2!P$5, 'Full set Core Client Indicator'!$A$3:$AB$3, 0))), \"\")","v":""},{"$f":"IF(P81<>\"\", IF(INDEX('Full set Core Client Indicator'!$A$3:$AB$351, MATCH(Selection_Hide2!$A81, 'Full set Core Client Indicator'!$A$3:$A$351, 0), MATCH(Selection_Hide2!Q$5, 'Full set Core Client Indicator'!$A$3:$AB$3, 0))=\"\", \"\",  INDEX('Full set Core Client Indicator'!$A$3:$AB$351, MATCH(Selection_Hide2!$A81, 'Full set Core Client Indicator'!$A$3:$A$351, 0), MATCH(Selection_Hide2!Q$5, 'Full set Core Client Indicator'!$A$3:$AB$3, 0))), \"\")","v":""},{"$f":"IF(Q81<>\"\", IF(INDEX('Full set Core Client Indicator'!$A$3:$AB$351, MATCH(Selection_Hide2!$A81, 'Full set Core Client Indicator'!$A$3:$A$351, 0), MATCH(Selection_Hide2!R$5, 'Full set Core Client Indicator'!$A$3:$AB$3, 0))=\"\", \"\",  INDEX('Full set Core Client Indicator'!$A$3:$AB$351, MATCH(Selection_Hide2!$A81, 'Full set Core Client Indicator'!$A$3:$A$351, 0), MATCH(Selection_Hide2!R$5, 'Full set Core Client Indicator'!$A$3:$AB$3, 0))), \"\")","v":""},{"$f":"IF(R81<>\"\", IF(INDEX('Full set Core Client Indicator'!$A$3:$AB$351, MATCH(Selection_Hide2!$A81, 'Full set Core Client Indicator'!$A$3:$A$351, 0), MATCH(Selection_Hide2!S$5, 'Full set Core Client Indicator'!$A$3:$AB$3, 0))=\"\", \"\",  INDEX('Full set Core Client Indicator'!$A$3:$AB$351, MATCH(Selection_Hide2!$A81, 'Full set Core Client Indicator'!$A$3:$A$351, 0), MATCH(Selection_Hide2!S$5, 'Full set Core Client Indicator'!$A$3:$AB$3, 0))), \"\")","v":""},{"$f":"IF(S81<>\"\", IF(INDEX('Full set Core Client Indicator'!$A$3:$AB$351, MATCH(Selection_Hide2!$A81, 'Full set Core Client Indicator'!$A$3:$A$351, 0), MATCH(Selection_Hide2!T$5, 'Full set Core Client Indicator'!$A$3:$AB$3, 0))=\"\", \"\",  INDEX('Full set Core Client Indicator'!$A$3:$AB$351, MATCH(Selection_Hide2!$A81, 'Full set Core Client Indicator'!$A$3:$A$351, 0), MATCH(Selection_Hide2!T$5, 'Full set Core Client Indicator'!$A$3:$AB$3, 0))), \"\")","v":""},{"$f":"IF(T81<>\"\", IF(INDEX('Full set Core Client Indicator'!$A$3:$AB$351, MATCH(Selection_Hide2!$A81, 'Full set Core Client Indicator'!$A$3:$A$351, 0), MATCH(Selection_Hide2!U$5, 'Full set Core Client Indicator'!$A$3:$AB$3, 0))=\"\", \"\",  INDEX('Full set Core Client Indicator'!$A$3:$AB$351, MATCH(Selection_Hide2!$A81, 'Full set Core Client Indicator'!$A$3:$A$351, 0), MATCH(Selection_Hide2!U$5, 'Full set Core Client Indicator'!$A$3:$AB$3, 0))), \"\")","v":""},{"$f":"IF(U81<>\"\", IF(INDEX('Full set Core Client Indicator'!$A$3:$AB$351, MATCH(Selection_Hide2!$A81, 'Full set Core Client Indicator'!$A$3:$A$351, 0), MATCH(Selection_Hide2!V$5, 'Full set Core Client Indicator'!$A$3:$AB$3, 0))=\"\", \"\",  INDEX('Full set Core Client Indicator'!$A$3:$AB$351, MATCH(Selection_Hide2!$A81, 'Full set Core Client Indicator'!$A$3:$A$351, 0), MATCH(Selection_Hide2!V$5, 'Full set Core Client Indicator'!$A$3:$AB$3, 0))), \"\")","v":""},{"$f":"IF(V81<>\"\", IF(INDEX('Full set Core Client Indicator'!$A$3:$AB$351, MATCH(Selection_Hide2!$A81, 'Full set Core Client Indicator'!$A$3:$A$351, 0), MATCH(Selection_Hide2!W$5, 'Full set Core Client Indicator'!$A$3:$AB$3, 0))=\"\", \"\",  INDEX('Full set Core Client Indicator'!$A$3:$AB$351, MATCH(Selection_Hide2!$A81, 'Full set Core Client Indicator'!$A$3:$A$351, 0), MATCH(Selection_Hide2!W$5, 'Full set Core Client Indicator'!$A$3:$AB$3, 0))), \"\")","v":""},{"$f":"IF(W81<>\"\", IF(INDEX('Full set Core Client Indicator'!$A$3:$AB$351, MATCH(Selection_Hide2!$A81, 'Full set Core Client Indicator'!$A$3:$A$351, 0), MATCH(Selection_Hide2!X$5, 'Full set Core Client Indicator'!$A$3:$AB$3, 0))=\"\", \"\",  INDEX('Full set Core Client Indicator'!$A$3:$AB$351, MATCH(Selection_Hide2!$A81, 'Full set Core Client Indicator'!$A$3:$A$351, 0), MATCH(Selection_Hide2!X$5, 'Full set Core Client Indicator'!$A$3:$AB$3, 0))), \"\")","v":""},{"$f":"IF(X81<>\"\", IF(INDEX('Full set Core Client Indicator'!$A$3:$AB$351, MATCH(Selection_Hide2!$A81, 'Full set Core Client Indicator'!$A$3:$A$351, 0), MATCH(Selection_Hide2!Y$5, 'Full set Core Client Indicator'!$A$3:$AB$3, 0))=\"\", \"\",  INDEX('Full set Core Client Indicator'!$A$3:$AB$351, MATCH(Selection_Hide2!$A81, 'Full set Core Client Indicator'!$A$3:$A$351, 0), MATCH(Selection_Hide2!Y$5, 'Full set Core Client Indicator'!$A$3:$AB$3, 0))), \"\")","v":""},{"$f":"IF(Y81<>\"\", IF(INDEX('Full set Core Client Indicator'!$A$3:$AB$351, MATCH(Selection_Hide2!$A81, 'Full set Core Client Indicator'!$A$3:$A$351, 0), MATCH(Selection_Hide2!Z$5, 'Full set Core Client Indicator'!$A$3:$AB$3, 0))=\"\", \"\",  INDEX('Full set Core Client Indicator'!$A$3:$AB$351, MATCH(Selection_Hide2!$A81, 'Full set Core Client Indicator'!$A$3:$A$351, 0), MATCH(Selection_Hide2!Z$5, 'Full set Core Client Indicator'!$A$3:$AB$3, 0))), \"\")","v":""},{"$f":"IF(Z81<>\"\", IF(INDEX('Full set Core Client Indicator'!$A$3:$AB$351, MATCH(Selection_Hide2!$A81, 'Full set Core Client Indicator'!$A$3:$A$351, 0), MATCH(Selection_Hide2!AA$5, 'Full set Core Client Indicator'!$A$3:$AB$3, 0))=\"\", \"\",  INDEX('Full set Core Client Indicator'!$A$3:$AB$351, MATCH(Selection_Hide2!$A81, 'Full set Core Client Indicator'!$A$3:$A$351, 0), MATCH(Selection_Hide2!AA$5, 'Full set Core Client Indicator'!$A$3:$AB$3, 0))), \"\")","v":""},{"$f":"IF(AA81<>\"\", IF(INDEX('Full set Core Client Indicator'!$A$3:$AB$351, MATCH(Selection_Hide2!$A81, 'Full set Core Client Indicator'!$A$3:$A$351, 0), MATCH(Selection_Hide2!AB$5, 'Full set Core Client Indicator'!$A$3:$AB$3, 0))=\"\", \"\",  INDEX('Full set Core Client Indicator'!$A$3:$AB$351, MATCH(Selection_Hide2!$A81, 'Full set Core Client Indicator'!$A$3:$A$351, 0), MATCH(Selection_Hide2!AB$5, 'Full set Core Client Indicator'!$A$3:$AB$3, 0))), \"\")","v":""}]
[{"$f":"IF(AND(Selection_Hide1!C80<>0, Selection_Hide1!C80<>\"Grand Total\"), Selection_Hide1!C80, \"\")","v":""},{"$f":"IF(A82<>\"\", IF(INDEX('Full set Core Client Indicator'!$A$3:$AB$351, MATCH(Selection_Hide2!$A82, 'Full set Core Client Indicator'!$A$3:$A$351, 0), MATCH(Selection_Hide2!B$5, 'Full set Core Client Indicator'!$A$3:$AB$3, 0))=\"\", \"\",  INDEX('Full set Core Client Indicator'!$A$3:$AB$351, MATCH(Selection_Hide2!$A82, 'Full set Core Client Indicator'!$A$3:$A$351, 0), MATCH(Selection_Hide2!B$5, 'Full set Core Client Indicator'!$A$3:$AB$3, 0))), \"\")","v":""},{"$f":"IF(B82<>\"\", IF(INDEX('Full set Core Client Indicator'!$A$3:$AB$351, MATCH(Selection_Hide2!$A82, 'Full set Core Client Indicator'!$A$3:$A$351, 0), MATCH(Selection_Hide2!C$5, 'Full set Core Client Indicator'!$A$3:$AB$3, 0))=\"\", \"\",  INDEX('Full set Core Client Indicator'!$A$3:$AB$351, MATCH(Selection_Hide2!$A82, 'Full set Core Client Indicator'!$A$3:$A$351, 0), MATCH(Selection_Hide2!C$5, 'Full set Core Client Indicator'!$A$3:$AB$3, 0))), \"\")","v":""},{"$f":"IF(C82<>\"\", IF(INDEX('Full set Core Client Indicator'!$A$3:$AB$351, MATCH(Selection_Hide2!$A82, 'Full set Core Client Indicator'!$A$3:$A$351, 0), MATCH(Selection_Hide2!D$5, 'Full set Core Client Indicator'!$A$3:$AB$3, 0))=\"\", \"\",  INDEX('Full set Core Client Indicator'!$A$3:$AB$351, MATCH(Selection_Hide2!$A82, 'Full set Core Client Indicator'!$A$3:$A$351, 0), MATCH(Selection_Hide2!D$5, 'Full set Core Client Indicator'!$A$3:$AB$3, 0))), \"\")","v":""},{"$f":"IF(D82<>\"\", IF(INDEX('Full set Core Client Indicator'!$A$3:$AB$351, MATCH(Selection_Hide2!$A82, 'Full set Core Client Indicator'!$A$3:$A$351, 0), MATCH(Selection_Hide2!E$5, 'Full set Core Client Indicator'!$A$3:$AB$3, 0))=\"\", \"\",  INDEX('Full set Core Client Indicator'!$A$3:$AB$351, MATCH(Selection_Hide2!$A82, 'Full set Core Client Indicator'!$A$3:$A$351, 0), MATCH(Selection_Hide2!E$5, 'Full set Core Client Indicator'!$A$3:$AB$3, 0))), \"\")","v":""},{"$f":"IF(E82<>\"\", IF(INDEX('Full set Core Client Indicator'!$A$3:$AB$351, MATCH(Selection_Hide2!$A82, 'Full set Core Client Indicator'!$A$3:$A$351, 0), MATCH(Selection_Hide2!F$5, 'Full set Core Client Indicator'!$A$3:$AB$3, 0))=\"\", \"\",  INDEX('Full set Core Client Indicator'!$A$3:$AB$351, MATCH(Selection_Hide2!$A82, 'Full set Core Client Indicator'!$A$3:$A$351, 0), MATCH(Selection_Hide2!F$5, 'Full set Core Client Indicator'!$A$3:$AB$3, 0))), \"\")","v":""},{"$f":"IF(F82<>\"\", IF(INDEX('Full set Core Client Indicator'!$A$3:$AB$351, MATCH(Selection_Hide2!$A82, 'Full set Core Client Indicator'!$A$3:$A$351, 0), MATCH(Selection_Hide2!G$5, 'Full set Core Client Indicator'!$A$3:$AB$3, 0))=\"\", \"\",  INDEX('Full set Core Client Indicator'!$A$3:$AB$351, MATCH(Selection_Hide2!$A82, 'Full set Core Client Indicator'!$A$3:$A$351, 0), MATCH(Selection_Hide2!G$5, 'Full set Core Client Indicator'!$A$3:$AB$3, 0))), \"\")","v":""},{"$f":"IF(G82<>\"\", IF(INDEX('Full set Core Client Indicator'!$A$3:$AB$351, MATCH(Selection_Hide2!$A82, 'Full set Core Client Indicator'!$A$3:$A$351, 0), MATCH(Selection_Hide2!H$5, 'Full set Core Client Indicator'!$A$3:$AB$3, 0))=\"\", \"\",  INDEX('Full set Core Client Indicator'!$A$3:$AB$351, MATCH(Selection_Hide2!$A82, 'Full set Core Client Indicator'!$A$3:$A$351, 0), MATCH(Selection_Hide2!H$5, 'Full set Core Client Indicator'!$A$3:$AB$3, 0))), \"\")","v":""},{"$f":"IF(H82<>\"\", IF(INDEX('Full set Core Client Indicator'!$A$3:$AB$351, MATCH(Selection_Hide2!$A82, 'Full set Core Client Indicator'!$A$3:$A$351, 0), MATCH(Selection_Hide2!I$5, 'Full set Core Client Indicator'!$A$3:$AB$3, 0))=\"\", \"\",  INDEX('Full set Core Client Indicator'!$A$3:$AB$351, MATCH(Selection_Hide2!$A82, 'Full set Core Client Indicator'!$A$3:$A$351, 0), MATCH(Selection_Hide2!I$5, 'Full set Core Client Indicator'!$A$3:$AB$3, 0))), \"\")","v":""},{"$f":"IF(I82<>\"\", IF(INDEX('Full set Core Client Indicator'!$A$3:$AB$351, MATCH(Selection_Hide2!$A82, 'Full set Core Client Indicator'!$A$3:$A$351, 0), MATCH(Selection_Hide2!J$5, 'Full set Core Client Indicator'!$A$3:$AB$3, 0))=\"\", \"\",  INDEX('Full set Core Client Indicator'!$A$3:$AB$351, MATCH(Selection_Hide2!$A82, 'Full set Core Client Indicator'!$A$3:$A$351, 0), MATCH(Selection_Hide2!J$5, 'Full set Core Client Indicator'!$A$3:$AB$3, 0))), \"\")","v":""},{"$f":"IF(J82<>\"\", IF(INDEX('Full set Core Client Indicator'!$A$3:$AB$351, MATCH(Selection_Hide2!$A82, 'Full set Core Client Indicator'!$A$3:$A$351, 0), MATCH(Selection_Hide2!K$5, 'Full set Core Client Indicator'!$A$3:$AB$3, 0))=\"\", \"\",  INDEX('Full set Core Client Indicator'!$A$3:$AB$351, MATCH(Selection_Hide2!$A82, 'Full set Core Client Indicator'!$A$3:$A$351, 0), MATCH(Selection_Hide2!K$5, 'Full set Core Client Indicator'!$A$3:$AB$3, 0))), \"\")","v":""},{"$f":"IF(K82<>\"\", IF(INDEX('Full set Core Client Indicator'!$A$3:$AB$351, MATCH(Selection_Hide2!$A82, 'Full set Core Client Indicator'!$A$3:$A$351, 0), MATCH(Selection_Hide2!L$5, 'Full set Core Client Indicator'!$A$3:$AB$3, 0))=\"\", \"\",  INDEX('Full set Core Client Indicator'!$A$3:$AB$351, MATCH(Selection_Hide2!$A82, 'Full set Core Client Indicator'!$A$3:$A$351, 0), MATCH(Selection_Hide2!L$5, 'Full set Core Client Indicator'!$A$3:$AB$3, 0))), \"\")","v":""},{"$f":"IF(L82<>\"\", IF(INDEX('Full set Core Client Indicator'!$A$3:$AB$351, MATCH(Selection_Hide2!$A82, 'Full set Core Client Indicator'!$A$3:$A$351, 0), MATCH(Selection_Hide2!M$5, 'Full set Core Client Indicator'!$A$3:$AB$3, 0))=\"\", \"\",  INDEX('Full set Core Client Indicator'!$A$3:$AB$351, MATCH(Selection_Hide2!$A82, 'Full set Core Client Indicator'!$A$3:$A$351, 0), MATCH(Selection_Hide2!M$5, 'Full set Core Client Indicator'!$A$3:$AB$3, 0))), \"\")","v":""},{"$f":"IF(M82<>\"\", IF(INDEX('Full set Core Client Indicator'!$A$3:$AB$351, MATCH(Selection_Hide2!$A82, 'Full set Core Client Indicator'!$A$3:$A$351, 0), MATCH(Selection_Hide2!N$5, 'Full set Core Client Indicator'!$A$3:$AB$3, 0))=\"\", \"\",  INDEX('Full set Core Client Indicator'!$A$3:$AB$351, MATCH(Selection_Hide2!$A82, 'Full set Core Client Indicator'!$A$3:$A$351, 0), MATCH(Selection_Hide2!N$5, 'Full set Core Client Indicator'!$A$3:$AB$3, 0))), \"\")","v":""},{"$f":"IF(N82<>\"\", IF(INDEX('Full set Core Client Indicator'!$A$3:$AB$351, MATCH(Selection_Hide2!$A82, 'Full set Core Client Indicator'!$A$3:$A$351, 0), MATCH(Selection_Hide2!O$5, 'Full set Core Client Indicator'!$A$3:$AB$3, 0))=\"\", \"\",  INDEX('Full set Core Client Indicator'!$A$3:$AB$351, MATCH(Selection_Hide2!$A82, 'Full set Core Client Indicator'!$A$3:$A$351, 0), MATCH(Selection_Hide2!O$5, 'Full set Core Client Indicator'!$A$3:$AB$3, 0))), \"\")","v":""},{"$f":"IF(O82<>\"\", IF(INDEX('Full set Core Client Indicator'!$A$3:$AB$351, MATCH(Selection_Hide2!$A82, 'Full set Core Client Indicator'!$A$3:$A$351, 0), MATCH(Selection_Hide2!P$5, 'Full set Core Client Indicator'!$A$3:$AB$3, 0))=\"\", \"\",  INDEX('Full set Core Client Indicator'!$A$3:$AB$351, MATCH(Selection_Hide2!$A82, 'Full set Core Client Indicator'!$A$3:$A$351, 0), MATCH(Selection_Hide2!P$5, 'Full set Core Client Indicator'!$A$3:$AB$3, 0))), \"\")","v":""},{"$f":"IF(P82<>\"\", IF(INDEX('Full set Core Client Indicator'!$A$3:$AB$351, MATCH(Selection_Hide2!$A82, 'Full set Core Client Indicator'!$A$3:$A$351, 0), MATCH(Selection_Hide2!Q$5, 'Full set Core Client Indicator'!$A$3:$AB$3, 0))=\"\", \"\",  INDEX('Full set Core Client Indicator'!$A$3:$AB$351, MATCH(Selection_Hide2!$A82, 'Full set Core Client Indicator'!$A$3:$A$351, 0), MATCH(Selection_Hide2!Q$5, 'Full set Core Client Indicator'!$A$3:$AB$3, 0))), \"\")","v":""},{"$f":"IF(Q82<>\"\", IF(INDEX('Full set Core Client Indicator'!$A$3:$AB$351, MATCH(Selection_Hide2!$A82, 'Full set Core Client Indicator'!$A$3:$A$351, 0), MATCH(Selection_Hide2!R$5, 'Full set Core Client Indicator'!$A$3:$AB$3, 0))=\"\", \"\",  INDEX('Full set Core Client Indicator'!$A$3:$AB$351, MATCH(Selection_Hide2!$A82, 'Full set Core Client Indicator'!$A$3:$A$351, 0), MATCH(Selection_Hide2!R$5, 'Full set Core Client Indicator'!$A$3:$AB$3, 0))), \"\")","v":""},{"$f":"IF(R82<>\"\", IF(INDEX('Full set Core Client Indicator'!$A$3:$AB$351, MATCH(Selection_Hide2!$A82, 'Full set Core Client Indicator'!$A$3:$A$351, 0), MATCH(Selection_Hide2!S$5, 'Full set Core Client Indicator'!$A$3:$AB$3, 0))=\"\", \"\",  INDEX('Full set Core Client Indicator'!$A$3:$AB$351, MATCH(Selection_Hide2!$A82, 'Full set Core Client Indicator'!$A$3:$A$351, 0), MATCH(Selection_Hide2!S$5, 'Full set Core Client Indicator'!$A$3:$AB$3, 0))), \"\")","v":""},{"$f":"IF(S82<>\"\", IF(INDEX('Full set Core Client Indicator'!$A$3:$AB$351, MATCH(Selection_Hide2!$A82, 'Full set Core Client Indicator'!$A$3:$A$351, 0), MATCH(Selection_Hide2!T$5, 'Full set Core Client Indicator'!$A$3:$AB$3, 0))=\"\", \"\",  INDEX('Full set Core Client Indicator'!$A$3:$AB$351, MATCH(Selection_Hide2!$A82, 'Full set Core Client Indicator'!$A$3:$A$351, 0), MATCH(Selection_Hide2!T$5, 'Full set Core Client Indicator'!$A$3:$AB$3, 0))), \"\")","v":""},{"$f":"IF(T82<>\"\", IF(INDEX('Full set Core Client Indicator'!$A$3:$AB$351, MATCH(Selection_Hide2!$A82, 'Full set Core Client Indicator'!$A$3:$A$351, 0), MATCH(Selection_Hide2!U$5, 'Full set Core Client Indicator'!$A$3:$AB$3, 0))=\"\", \"\",  INDEX('Full set Core Client Indicator'!$A$3:$AB$351, MATCH(Selection_Hide2!$A82, 'Full set Core Client Indicator'!$A$3:$A$351, 0), MATCH(Selection_Hide2!U$5, 'Full set Core Client Indicator'!$A$3:$AB$3, 0))), \"\")","v":""},{"$f":"IF(U82<>\"\", IF(INDEX('Full set Core Client Indicator'!$A$3:$AB$351, MATCH(Selection_Hide2!$A82, 'Full set Core Client Indicator'!$A$3:$A$351, 0), MATCH(Selection_Hide2!V$5, 'Full set Core Client Indicator'!$A$3:$AB$3, 0))=\"\", \"\",  INDEX('Full set Core Client Indicator'!$A$3:$AB$351, MATCH(Selection_Hide2!$A82, 'Full set Core Client Indicator'!$A$3:$A$351, 0), MATCH(Selection_Hide2!V$5, 'Full set Core Client Indicator'!$A$3:$AB$3, 0))), \"\")","v":""},{"$f":"IF(V82<>\"\", IF(INDEX('Full set Core Client Indicator'!$A$3:$AB$351, MATCH(Selection_Hide2!$A82, 'Full set Core Client Indicator'!$A$3:$A$351, 0), MATCH(Selection_Hide2!W$5, 'Full set Core Client Indicator'!$A$3:$AB$3, 0))=\"\", \"\",  INDEX('Full set Core Client Indicator'!$A$3:$AB$351, MATCH(Selection_Hide2!$A82, 'Full set Core Client Indicator'!$A$3:$A$351, 0), MATCH(Selection_Hide2!W$5, 'Full set Core Client Indicator'!$A$3:$AB$3, 0))), \"\")","v":""},{"$f":"IF(W82<>\"\", IF(INDEX('Full set Core Client Indicator'!$A$3:$AB$351, MATCH(Selection_Hide2!$A82, 'Full set Core Client Indicator'!$A$3:$A$351, 0), MATCH(Selection_Hide2!X$5, 'Full set Core Client Indicator'!$A$3:$AB$3, 0))=\"\", \"\",  INDEX('Full set Core Client Indicator'!$A$3:$AB$351, MATCH(Selection_Hide2!$A82, 'Full set Core Client Indicator'!$A$3:$A$351, 0), MATCH(Selection_Hide2!X$5, 'Full set Core Client Indicator'!$A$3:$AB$3, 0))), \"\")","v":""},{"$f":"IF(X82<>\"\", IF(INDEX('Full set Core Client Indicator'!$A$3:$AB$351, MATCH(Selection_Hide2!$A82, 'Full set Core Client Indicator'!$A$3:$A$351, 0), MATCH(Selection_Hide2!Y$5, 'Full set Core Client Indicator'!$A$3:$AB$3, 0))=\"\", \"\",  INDEX('Full set Core Client Indicator'!$A$3:$AB$351, MATCH(Selection_Hide2!$A82, 'Full set Core Client Indicator'!$A$3:$A$351, 0), MATCH(Selection_Hide2!Y$5, 'Full set Core Client Indicator'!$A$3:$AB$3, 0))), \"\")","v":""},{"$f":"IF(Y82<>\"\", IF(INDEX('Full set Core Client Indicator'!$A$3:$AB$351, MATCH(Selection_Hide2!$A82, 'Full set Core Client Indicator'!$A$3:$A$351, 0), MATCH(Selection_Hide2!Z$5, 'Full set Core Client Indicator'!$A$3:$AB$3, 0))=\"\", \"\",  INDEX('Full set Core Client Indicator'!$A$3:$AB$351, MATCH(Selection_Hide2!$A82, 'Full set Core Client Indicator'!$A$3:$A$351, 0), MATCH(Selection_Hide2!Z$5, 'Full set Core Client Indicator'!$A$3:$AB$3, 0))), \"\")","v":""},{"$f":"IF(Z82<>\"\", IF(INDEX('Full set Core Client Indicator'!$A$3:$AB$351, MATCH(Selection_Hide2!$A82, 'Full set Core Client Indicator'!$A$3:$A$351, 0), MATCH(Selection_Hide2!AA$5, 'Full set Core Client Indicator'!$A$3:$AB$3, 0))=\"\", \"\",  INDEX('Full set Core Client Indicator'!$A$3:$AB$351, MATCH(Selection_Hide2!$A82, 'Full set Core Client Indicator'!$A$3:$A$351, 0), MATCH(Selection_Hide2!AA$5, 'Full set Core Client Indicator'!$A$3:$AB$3, 0))), \"\")","v":""},{"$f":"IF(AA82<>\"\", IF(INDEX('Full set Core Client Indicator'!$A$3:$AB$351, MATCH(Selection_Hide2!$A82, 'Full set Core Client Indicator'!$A$3:$A$351, 0), MATCH(Selection_Hide2!AB$5, 'Full set Core Client Indicator'!$A$3:$AB$3, 0))=\"\", \"\",  INDEX('Full set Core Client Indicator'!$A$3:$AB$351, MATCH(Selection_Hide2!$A82, 'Full set Core Client Indicator'!$A$3:$A$351, 0), MATCH(Selection_Hide2!AB$5, 'Full set Core Client Indicator'!$A$3:$AB$3, 0))), \"\")","v":""}]
[{"$f":"IF(AND(Selection_Hide1!C81<>0, Selection_Hide1!C81<>\"Grand Total\"), Selection_Hide1!C81, \"\")","v":""},{"$f":"IF(A83<>\"\", IF(INDEX('Full set Core Client Indicator'!$A$3:$AB$351, MATCH(Selection_Hide2!$A83, 'Full set Core Client Indicator'!$A$3:$A$351, 0), MATCH(Selection_Hide2!B$5, 'Full set Core Client Indicator'!$A$3:$AB$3, 0))=\"\", \"\",  INDEX('Full set Core Client Indicator'!$A$3:$AB$351, MATCH(Selection_Hide2!$A83, 'Full set Core Client Indicator'!$A$3:$A$351, 0), MATCH(Selection_Hide2!B$5, 'Full set Core Client Indicator'!$A$3:$AB$3, 0))), \"\")","v":""},{"$f":"IF(B83<>\"\", IF(INDEX('Full set Core Client Indicator'!$A$3:$AB$351, MATCH(Selection_Hide2!$A83, 'Full set Core Client Indicator'!$A$3:$A$351, 0), MATCH(Selection_Hide2!C$5, 'Full set Core Client Indicator'!$A$3:$AB$3, 0))=\"\", \"\",  INDEX('Full set Core Client Indicator'!$A$3:$AB$351, MATCH(Selection_Hide2!$A83, 'Full set Core Client Indicator'!$A$3:$A$351, 0), MATCH(Selection_Hide2!C$5, 'Full set Core Client Indicator'!$A$3:$AB$3, 0))), \"\")","v":""},{"$f":"IF(C83<>\"\", IF(INDEX('Full set Core Client Indicator'!$A$3:$AB$351, MATCH(Selection_Hide2!$A83, 'Full set Core Client Indicator'!$A$3:$A$351, 0), MATCH(Selection_Hide2!D$5, 'Full set Core Client Indicator'!$A$3:$AB$3, 0))=\"\", \"\",  INDEX('Full set Core Client Indicator'!$A$3:$AB$351, MATCH(Selection_Hide2!$A83, 'Full set Core Client Indicator'!$A$3:$A$351, 0), MATCH(Selection_Hide2!D$5, 'Full set Core Client Indicator'!$A$3:$AB$3, 0))), \"\")","v":""},{"$f":"IF(D83<>\"\", IF(INDEX('Full set Core Client Indicator'!$A$3:$AB$351, MATCH(Selection_Hide2!$A83, 'Full set Core Client Indicator'!$A$3:$A$351, 0), MATCH(Selection_Hide2!E$5, 'Full set Core Client Indicator'!$A$3:$AB$3, 0))=\"\", \"\",  INDEX('Full set Core Client Indicator'!$A$3:$AB$351, MATCH(Selection_Hide2!$A83, 'Full set Core Client Indicator'!$A$3:$A$351, 0), MATCH(Selection_Hide2!E$5, 'Full set Core Client Indicator'!$A$3:$AB$3, 0))), \"\")","v":""},{"$f":"IF(E83<>\"\", IF(INDEX('Full set Core Client Indicator'!$A$3:$AB$351, MATCH(Selection_Hide2!$A83, 'Full set Core Client Indicator'!$A$3:$A$351, 0), MATCH(Selection_Hide2!F$5, 'Full set Core Client Indicator'!$A$3:$AB$3, 0))=\"\", \"\",  INDEX('Full set Core Client Indicator'!$A$3:$AB$351, MATCH(Selection_Hide2!$A83, 'Full set Core Client Indicator'!$A$3:$A$351, 0), MATCH(Selection_Hide2!F$5, 'Full set Core Client Indicator'!$A$3:$AB$3, 0))), \"\")","v":""},{"$f":"IF(F83<>\"\", IF(INDEX('Full set Core Client Indicator'!$A$3:$AB$351, MATCH(Selection_Hide2!$A83, 'Full set Core Client Indicator'!$A$3:$A$351, 0), MATCH(Selection_Hide2!G$5, 'Full set Core Client Indicator'!$A$3:$AB$3, 0))=\"\", \"\",  INDEX('Full set Core Client Indicator'!$A$3:$AB$351, MATCH(Selection_Hide2!$A83, 'Full set Core Client Indicator'!$A$3:$A$351, 0), MATCH(Selection_Hide2!G$5, 'Full set Core Client Indicator'!$A$3:$AB$3, 0))), \"\")","v":""},{"$f":"IF(G83<>\"\", IF(INDEX('Full set Core Client Indicator'!$A$3:$AB$351, MATCH(Selection_Hide2!$A83, 'Full set Core Client Indicator'!$A$3:$A$351, 0), MATCH(Selection_Hide2!H$5, 'Full set Core Client Indicator'!$A$3:$AB$3, 0))=\"\", \"\",  INDEX('Full set Core Client Indicator'!$A$3:$AB$351, MATCH(Selection_Hide2!$A83, 'Full set Core Client Indicator'!$A$3:$A$351, 0), MATCH(Selection_Hide2!H$5, 'Full set Core Client Indicator'!$A$3:$AB$3, 0))), \"\")","v":""},{"$f":"IF(H83<>\"\", IF(INDEX('Full set Core Client Indicator'!$A$3:$AB$351, MATCH(Selection_Hide2!$A83, 'Full set Core Client Indicator'!$A$3:$A$351, 0), MATCH(Selection_Hide2!I$5, 'Full set Core Client Indicator'!$A$3:$AB$3, 0))=\"\", \"\",  INDEX('Full set Core Client Indicator'!$A$3:$AB$351, MATCH(Selection_Hide2!$A83, 'Full set Core Client Indicator'!$A$3:$A$351, 0), MATCH(Selection_Hide2!I$5, 'Full set Core Client Indicator'!$A$3:$AB$3, 0))), \"\")","v":""},{"$f":"IF(I83<>\"\", IF(INDEX('Full set Core Client Indicator'!$A$3:$AB$351, MATCH(Selection_Hide2!$A83, 'Full set Core Client Indicator'!$A$3:$A$351, 0), MATCH(Selection_Hide2!J$5, 'Full set Core Client Indicator'!$A$3:$AB$3, 0))=\"\", \"\",  INDEX('Full set Core Client Indicator'!$A$3:$AB$351, MATCH(Selection_Hide2!$A83, 'Full set Core Client Indicator'!$A$3:$A$351, 0), MATCH(Selection_Hide2!J$5, 'Full set Core Client Indicator'!$A$3:$AB$3, 0))), \"\")","v":""},{"$f":"IF(J83<>\"\", IF(INDEX('Full set Core Client Indicator'!$A$3:$AB$351, MATCH(Selection_Hide2!$A83, 'Full set Core Client Indicator'!$A$3:$A$351, 0), MATCH(Selection_Hide2!K$5, 'Full set Core Client Indicator'!$A$3:$AB$3, 0))=\"\", \"\",  INDEX('Full set Core Client Indicator'!$A$3:$AB$351, MATCH(Selection_Hide2!$A83, 'Full set Core Client Indicator'!$A$3:$A$351, 0), MATCH(Selection_Hide2!K$5, 'Full set Core Client Indicator'!$A$3:$AB$3, 0))), \"\")","v":""},{"$f":"IF(K83<>\"\", IF(INDEX('Full set Core Client Indicator'!$A$3:$AB$351, MATCH(Selection_Hide2!$A83, 'Full set Core Client Indicator'!$A$3:$A$351, 0), MATCH(Selection_Hide2!L$5, 'Full set Core Client Indicator'!$A$3:$AB$3, 0))=\"\", \"\",  INDEX('Full set Core Client Indicator'!$A$3:$AB$351, MATCH(Selection_Hide2!$A83, 'Full set Core Client Indicator'!$A$3:$A$351, 0), MATCH(Selection_Hide2!L$5, 'Full set Core Client Indicator'!$A$3:$AB$3, 0))), \"\")","v":""},{"$f":"IF(L83<>\"\", IF(INDEX('Full set Core Client Indicator'!$A$3:$AB$351, MATCH(Selection_Hide2!$A83, 'Full set Core Client Indicator'!$A$3:$A$351, 0), MATCH(Selection_Hide2!M$5, 'Full set Core Client Indicator'!$A$3:$AB$3, 0))=\"\", \"\",  INDEX('Full set Core Client Indicator'!$A$3:$AB$351, MATCH(Selection_Hide2!$A83, 'Full set Core Client Indicator'!$A$3:$A$351, 0), MATCH(Selection_Hide2!M$5, 'Full set Core Client Indicator'!$A$3:$AB$3, 0))), \"\")","v":""},{"$f":"IF(M83<>\"\", IF(INDEX('Full set Core Client Indicator'!$A$3:$AB$351, MATCH(Selection_Hide2!$A83, 'Full set Core Client Indicator'!$A$3:$A$351, 0), MATCH(Selection_Hide2!N$5, 'Full set Core Client Indicator'!$A$3:$AB$3, 0))=\"\", \"\",  INDEX('Full set Core Client Indicator'!$A$3:$AB$351, MATCH(Selection_Hide2!$A83, 'Full set Core Client Indicator'!$A$3:$A$351, 0), MATCH(Selection_Hide2!N$5, 'Full set Core Client Indicator'!$A$3:$AB$3, 0))), \"\")","v":""},{"$f":"IF(N83<>\"\", IF(INDEX('Full set Core Client Indicator'!$A$3:$AB$351, MATCH(Selection_Hide2!$A83, 'Full set Core Client Indicator'!$A$3:$A$351, 0), MATCH(Selection_Hide2!O$5, 'Full set Core Client Indicator'!$A$3:$AB$3, 0))=\"\", \"\",  INDEX('Full set Core Client Indicator'!$A$3:$AB$351, MATCH(Selection_Hide2!$A83, 'Full set Core Client Indicator'!$A$3:$A$351, 0), MATCH(Selection_Hide2!O$5, 'Full set Core Client Indicator'!$A$3:$AB$3, 0))), \"\")","v":""},{"$f":"IF(O83<>\"\", IF(INDEX('Full set Core Client Indicator'!$A$3:$AB$351, MATCH(Selection_Hide2!$A83, 'Full set Core Client Indicator'!$A$3:$A$351, 0), MATCH(Selection_Hide2!P$5, 'Full set Core Client Indicator'!$A$3:$AB$3, 0))=\"\", \"\",  INDEX('Full set Core Client Indicator'!$A$3:$AB$351, MATCH(Selection_Hide2!$A83, 'Full set Core Client Indicator'!$A$3:$A$351, 0), MATCH(Selection_Hide2!P$5, 'Full set Core Client Indicator'!$A$3:$AB$3, 0))), \"\")","v":""},{"$f":"IF(P83<>\"\", IF(INDEX('Full set Core Client Indicator'!$A$3:$AB$351, MATCH(Selection_Hide2!$A83, 'Full set Core Client Indicator'!$A$3:$A$351, 0), MATCH(Selection_Hide2!Q$5, 'Full set Core Client Indicator'!$A$3:$AB$3, 0))=\"\", \"\",  INDEX('Full set Core Client Indicator'!$A$3:$AB$351, MATCH(Selection_Hide2!$A83, 'Full set Core Client Indicator'!$A$3:$A$351, 0), MATCH(Selection_Hide2!Q$5, 'Full set Core Client Indicator'!$A$3:$AB$3, 0))), \"\")","v":""},{"$f":"IF(Q83<>\"\", IF(INDEX('Full set Core Client Indicator'!$A$3:$AB$351, MATCH(Selection_Hide2!$A83, 'Full set Core Client Indicator'!$A$3:$A$351, 0), MATCH(Selection_Hide2!R$5, 'Full set Core Client Indicator'!$A$3:$AB$3, 0))=\"\", \"\",  INDEX('Full set Core Client Indicator'!$A$3:$AB$351, MATCH(Selection_Hide2!$A83, 'Full set Core Client Indicator'!$A$3:$A$351, 0), MATCH(Selection_Hide2!R$5, 'Full set Core Client Indicator'!$A$3:$AB$3, 0))), \"\")","v":""},{"$f":"IF(R83<>\"\", IF(INDEX('Full set Core Client Indicator'!$A$3:$AB$351, MATCH(Selection_Hide2!$A83, 'Full set Core Client Indicator'!$A$3:$A$351, 0), MATCH(Selection_Hide2!S$5, 'Full set Core Client Indicator'!$A$3:$AB$3, 0))=\"\", \"\",  INDEX('Full set Core Client Indicator'!$A$3:$AB$351, MATCH(Selection_Hide2!$A83, 'Full set Core Client Indicator'!$A$3:$A$351, 0), MATCH(Selection_Hide2!S$5, 'Full set Core Client Indicator'!$A$3:$AB$3, 0))), \"\")","v":""},{"$f":"IF(S83<>\"\", IF(INDEX('Full set Core Client Indicator'!$A$3:$AB$351, MATCH(Selection_Hide2!$A83, 'Full set Core Client Indicator'!$A$3:$A$351, 0), MATCH(Selection_Hide2!T$5, 'Full set Core Client Indicator'!$A$3:$AB$3, 0))=\"\", \"\",  INDEX('Full set Core Client Indicator'!$A$3:$AB$351, MATCH(Selection_Hide2!$A83, 'Full set Core Client Indicator'!$A$3:$A$351, 0), MATCH(Selection_Hide2!T$5, 'Full set Core Client Indicator'!$A$3:$AB$3, 0))), \"\")","v":""},{"$f":"IF(T83<>\"\", IF(INDEX('Full set Core Client Indicator'!$A$3:$AB$351, MATCH(Selection_Hide2!$A83, 'Full set Core Client Indicator'!$A$3:$A$351, 0), MATCH(Selection_Hide2!U$5, 'Full set Core Client Indicator'!$A$3:$AB$3, 0))=\"\", \"\",  INDEX('Full set Core Client Indicator'!$A$3:$AB$351, MATCH(Selection_Hide2!$A83, 'Full set Core Client Indicator'!$A$3:$A$351, 0), MATCH(Selection_Hide2!U$5, 'Full set Core Client Indicator'!$A$3:$AB$3, 0))), \"\")","v":""},{"$f":"IF(U83<>\"\", IF(INDEX('Full set Core Client Indicator'!$A$3:$AB$351, MATCH(Selection_Hide2!$A83, 'Full set Core Client Indicator'!$A$3:$A$351, 0), MATCH(Selection_Hide2!V$5, 'Full set Core Client Indicator'!$A$3:$AB$3, 0))=\"\", \"\",  INDEX('Full set Core Client Indicator'!$A$3:$AB$351, MATCH(Selection_Hide2!$A83, 'Full set Core Client Indicator'!$A$3:$A$351, 0), MATCH(Selection_Hide2!V$5, 'Full set Core Client Indicator'!$A$3:$AB$3, 0))), \"\")","v":""},{"$f":"IF(V83<>\"\", IF(INDEX('Full set Core Client Indicator'!$A$3:$AB$351, MATCH(Selection_Hide2!$A83, 'Full set Core Client Indicator'!$A$3:$A$351, 0), MATCH(Selection_Hide2!W$5, 'Full set Core Client Indicator'!$A$3:$AB$3, 0))=\"\", \"\",  INDEX('Full set Core Client Indicator'!$A$3:$AB$351, MATCH(Selection_Hide2!$A83, 'Full set Core Client Indicator'!$A$3:$A$351, 0), MATCH(Selection_Hide2!W$5, 'Full set Core Client Indicator'!$A$3:$AB$3, 0))), \"\")","v":""},{"$f":"IF(W83<>\"\", IF(INDEX('Full set Core Client Indicator'!$A$3:$AB$351, MATCH(Selection_Hide2!$A83, 'Full set Core Client Indicator'!$A$3:$A$351, 0), MATCH(Selection_Hide2!X$5, 'Full set Core Client Indicator'!$A$3:$AB$3, 0))=\"\", \"\",  INDEX('Full set Core Client Indicator'!$A$3:$AB$351, MATCH(Selection_Hide2!$A83, 'Full set Core Client Indicator'!$A$3:$A$351, 0), MATCH(Selection_Hide2!X$5, 'Full set Core Client Indicator'!$A$3:$AB$3, 0))), \"\")","v":""},{"$f":"IF(X83<>\"\", IF(INDEX('Full set Core Client Indicator'!$A$3:$AB$351, MATCH(Selection_Hide2!$A83, 'Full set Core Client Indicator'!$A$3:$A$351, 0), MATCH(Selection_Hide2!Y$5, 'Full set Core Client Indicator'!$A$3:$AB$3, 0))=\"\", \"\",  INDEX('Full set Core Client Indicator'!$A$3:$AB$351, MATCH(Selection_Hide2!$A83, 'Full set Core Client Indicator'!$A$3:$A$351, 0), MATCH(Selection_Hide2!Y$5, 'Full set Core Client Indicator'!$A$3:$AB$3, 0))), \"\")","v":""},{"$f":"IF(Y83<>\"\", IF(INDEX('Full set Core Client Indicator'!$A$3:$AB$351, MATCH(Selection_Hide2!$A83, 'Full set Core Client Indicator'!$A$3:$A$351, 0), MATCH(Selection_Hide2!Z$5, 'Full set Core Client Indicator'!$A$3:$AB$3, 0))=\"\", \"\",  INDEX('Full set Core Client Indicator'!$A$3:$AB$351, MATCH(Selection_Hide2!$A83, 'Full set Core Client Indicator'!$A$3:$A$351, 0), MATCH(Selection_Hide2!Z$5, 'Full set Core Client Indicator'!$A$3:$AB$3, 0))), \"\")","v":""},{"$f":"IF(Z83<>\"\", IF(INDEX('Full set Core Client Indicator'!$A$3:$AB$351, MATCH(Selection_Hide2!$A83, 'Full set Core Client Indicator'!$A$3:$A$351, 0), MATCH(Selection_Hide2!AA$5, 'Full set Core Client Indicator'!$A$3:$AB$3, 0))=\"\", \"\",  INDEX('Full set Core Client Indicator'!$A$3:$AB$351, MATCH(Selection_Hide2!$A83, 'Full set Core Client Indicator'!$A$3:$A$351, 0), MATCH(Selection_Hide2!AA$5, 'Full set Core Client Indicator'!$A$3:$AB$3, 0))), \"\")","v":""},{"$f":"IF(AA83<>\"\", IF(INDEX('Full set Core Client Indicator'!$A$3:$AB$351, MATCH(Selection_Hide2!$A83, 'Full set Core Client Indicator'!$A$3:$A$351, 0), MATCH(Selection_Hide2!AB$5, 'Full set Core Client Indicator'!$A$3:$AB$3, 0))=\"\", \"\",  INDEX('Full set Core Client Indicator'!$A$3:$AB$351, MATCH(Selection_Hide2!$A83, 'Full set Core Client Indicator'!$A$3:$A$351, 0), MATCH(Selection_Hide2!AB$5, 'Full set Core Client Indicator'!$A$3:$AB$3, 0))), \"\")","v":""}]
[{"$f":"IF(AND(Selection_Hide1!C82<>0, Selection_Hide1!C82<>\"Grand Total\"), Selection_Hide1!C82, \"\")","v":""},{"$f":"IF(A84<>\"\", IF(INDEX('Full set Core Client Indicator'!$A$3:$AB$351, MATCH(Selection_Hide2!$A84, 'Full set Core Client Indicator'!$A$3:$A$351, 0), MATCH(Selection_Hide2!B$5, 'Full set Core Client Indicator'!$A$3:$AB$3, 0))=\"\", \"\",  INDEX('Full set Core Client Indicator'!$A$3:$AB$351, MATCH(Selection_Hide2!$A84, 'Full set Core Client Indicator'!$A$3:$A$351, 0), MATCH(Selection_Hide2!B$5, 'Full set Core Client Indicator'!$A$3:$AB$3, 0))), \"\")","v":""},{"$f":"IF(B84<>\"\", IF(INDEX('Full set Core Client Indicator'!$A$3:$AB$351, MATCH(Selection_Hide2!$A84, 'Full set Core Client Indicator'!$A$3:$A$351, 0), MATCH(Selection_Hide2!C$5, 'Full set Core Client Indicator'!$A$3:$AB$3, 0))=\"\", \"\",  INDEX('Full set Core Client Indicator'!$A$3:$AB$351, MATCH(Selection_Hide2!$A84, 'Full set Core Client Indicator'!$A$3:$A$351, 0), MATCH(Selection_Hide2!C$5, 'Full set Core Client Indicator'!$A$3:$AB$3, 0))), \"\")","v":""},{"$f":"IF(C84<>\"\", IF(INDEX('Full set Core Client Indicator'!$A$3:$AB$351, MATCH(Selection_Hide2!$A84, 'Full set Core Client Indicator'!$A$3:$A$351, 0), MATCH(Selection_Hide2!D$5, 'Full set Core Client Indicator'!$A$3:$AB$3, 0))=\"\", \"\",  INDEX('Full set Core Client Indicator'!$A$3:$AB$351, MATCH(Selection_Hide2!$A84, 'Full set Core Client Indicator'!$A$3:$A$351, 0), MATCH(Selection_Hide2!D$5, 'Full set Core Client Indicator'!$A$3:$AB$3, 0))), \"\")","v":""},{"$f":"IF(D84<>\"\", IF(INDEX('Full set Core Client Indicator'!$A$3:$AB$351, MATCH(Selection_Hide2!$A84, 'Full set Core Client Indicator'!$A$3:$A$351, 0), MATCH(Selection_Hide2!E$5, 'Full set Core Client Indicator'!$A$3:$AB$3, 0))=\"\", \"\",  INDEX('Full set Core Client Indicator'!$A$3:$AB$351, MATCH(Selection_Hide2!$A84, 'Full set Core Client Indicator'!$A$3:$A$351, 0), MATCH(Selection_Hide2!E$5, 'Full set Core Client Indicator'!$A$3:$AB$3, 0))), \"\")","v":""},{"$f":"IF(E84<>\"\", IF(INDEX('Full set Core Client Indicator'!$A$3:$AB$351, MATCH(Selection_Hide2!$A84, 'Full set Core Client Indicator'!$A$3:$A$351, 0), MATCH(Selection_Hide2!F$5, 'Full set Core Client Indicator'!$A$3:$AB$3, 0))=\"\", \"\",  INDEX('Full set Core Client Indicator'!$A$3:$AB$351, MATCH(Selection_Hide2!$A84, 'Full set Core Client Indicator'!$A$3:$A$351, 0), MATCH(Selection_Hide2!F$5, 'Full set Core Client Indicator'!$A$3:$AB$3, 0))), \"\")","v":""},{"$f":"IF(F84<>\"\", IF(INDEX('Full set Core Client Indicator'!$A$3:$AB$351, MATCH(Selection_Hide2!$A84, 'Full set Core Client Indicator'!$A$3:$A$351, 0), MATCH(Selection_Hide2!G$5, 'Full set Core Client Indicator'!$A$3:$AB$3, 0))=\"\", \"\",  INDEX('Full set Core Client Indicator'!$A$3:$AB$351, MATCH(Selection_Hide2!$A84, 'Full set Core Client Indicator'!$A$3:$A$351, 0), MATCH(Selection_Hide2!G$5, 'Full set Core Client Indicator'!$A$3:$AB$3, 0))), \"\")","v":""},{"$f":"IF(G84<>\"\", IF(INDEX('Full set Core Client Indicator'!$A$3:$AB$351, MATCH(Selection_Hide2!$A84, 'Full set Core Client Indicator'!$A$3:$A$351, 0), MATCH(Selection_Hide2!H$5, 'Full set Core Client Indicator'!$A$3:$AB$3, 0))=\"\", \"\",  INDEX('Full set Core Client Indicator'!$A$3:$AB$351, MATCH(Selection_Hide2!$A84, 'Full set Core Client Indicator'!$A$3:$A$351, 0), MATCH(Selection_Hide2!H$5, 'Full set Core Client Indicator'!$A$3:$AB$3, 0))), \"\")","v":""},{"$f":"IF(H84<>\"\", IF(INDEX('Full set Core Client Indicator'!$A$3:$AB$351, MATCH(Selection_Hide2!$A84, 'Full set Core Client Indicator'!$A$3:$A$351, 0), MATCH(Selection_Hide2!I$5, 'Full set Core Client Indicator'!$A$3:$AB$3, 0))=\"\", \"\",  INDEX('Full set Core Client Indicator'!$A$3:$AB$351, MATCH(Selection_Hide2!$A84, 'Full set Core Client Indicator'!$A$3:$A$351, 0), MATCH(Selection_Hide2!I$5, 'Full set Core Client Indicator'!$A$3:$AB$3, 0))), \"\")","v":""},{"$f":"IF(I84<>\"\", IF(INDEX('Full set Core Client Indicator'!$A$3:$AB$351, MATCH(Selection_Hide2!$A84, 'Full set Core Client Indicator'!$A$3:$A$351, 0), MATCH(Selection_Hide2!J$5, 'Full set Core Client Indicator'!$A$3:$AB$3, 0))=\"\", \"\",  INDEX('Full set Core Client Indicator'!$A$3:$AB$351, MATCH(Selection_Hide2!$A84, 'Full set Core Client Indicator'!$A$3:$A$351, 0), MATCH(Selection_Hide2!J$5, 'Full set Core Client Indicator'!$A$3:$AB$3, 0))), \"\")","v":""},{"$f":"IF(J84<>\"\", IF(INDEX('Full set Core Client Indicator'!$A$3:$AB$351, MATCH(Selection_Hide2!$A84, 'Full set Core Client Indicator'!$A$3:$A$351, 0), MATCH(Selection_Hide2!K$5, 'Full set Core Client Indicator'!$A$3:$AB$3, 0))=\"\", \"\",  INDEX('Full set Core Client Indicator'!$A$3:$AB$351, MATCH(Selection_Hide2!$A84, 'Full set Core Client Indicator'!$A$3:$A$351, 0), MATCH(Selection_Hide2!K$5, 'Full set Core Client Indicator'!$A$3:$AB$3, 0))), \"\")","v":""},{"$f":"IF(K84<>\"\", IF(INDEX('Full set Core Client Indicator'!$A$3:$AB$351, MATCH(Selection_Hide2!$A84, 'Full set Core Client Indicator'!$A$3:$A$351, 0), MATCH(Selection_Hide2!L$5, 'Full set Core Client Indicator'!$A$3:$AB$3, 0))=\"\", \"\",  INDEX('Full set Core Client Indicator'!$A$3:$AB$351, MATCH(Selection_Hide2!$A84, 'Full set Core Client Indicator'!$A$3:$A$351, 0), MATCH(Selection_Hide2!L$5, 'Full set Core Client Indicator'!$A$3:$AB$3, 0))), \"\")","v":""},{"$f":"IF(L84<>\"\", IF(INDEX('Full set Core Client Indicator'!$A$3:$AB$351, MATCH(Selection_Hide2!$A84, 'Full set Core Client Indicator'!$A$3:$A$351, 0), MATCH(Selection_Hide2!M$5, 'Full set Core Client Indicator'!$A$3:$AB$3, 0))=\"\", \"\",  INDEX('Full set Core Client Indicator'!$A$3:$AB$351, MATCH(Selection_Hide2!$A84, 'Full set Core Client Indicator'!$A$3:$A$351, 0), MATCH(Selection_Hide2!M$5, 'Full set Core Client Indicator'!$A$3:$AB$3, 0))), \"\")","v":""},{"$f":"IF(M84<>\"\", IF(INDEX('Full set Core Client Indicator'!$A$3:$AB$351, MATCH(Selection_Hide2!$A84, 'Full set Core Client Indicator'!$A$3:$A$351, 0), MATCH(Selection_Hide2!N$5, 'Full set Core Client Indicator'!$A$3:$AB$3, 0))=\"\", \"\",  INDEX('Full set Core Client Indicator'!$A$3:$AB$351, MATCH(Selection_Hide2!$A84, 'Full set Core Client Indicator'!$A$3:$A$351, 0), MATCH(Selection_Hide2!N$5, 'Full set Core Client Indicator'!$A$3:$AB$3, 0))), \"\")","v":""},{"$f":"IF(N84<>\"\", IF(INDEX('Full set Core Client Indicator'!$A$3:$AB$351, MATCH(Selection_Hide2!$A84, 'Full set Core Client Indicator'!$A$3:$A$351, 0), MATCH(Selection_Hide2!O$5, 'Full set Core Client Indicator'!$A$3:$AB$3, 0))=\"\", \"\",  INDEX('Full set Core Client Indicator'!$A$3:$AB$351, MATCH(Selection_Hide2!$A84, 'Full set Core Client Indicator'!$A$3:$A$351, 0), MATCH(Selection_Hide2!O$5, 'Full set Core Client Indicator'!$A$3:$AB$3, 0))), \"\")","v":""},{"$f":"IF(O84<>\"\", IF(INDEX('Full set Core Client Indicator'!$A$3:$AB$351, MATCH(Selection_Hide2!$A84, 'Full set Core Client Indicator'!$A$3:$A$351, 0), MATCH(Selection_Hide2!P$5, 'Full set Core Client Indicator'!$A$3:$AB$3, 0))=\"\", \"\",  INDEX('Full set Core Client Indicator'!$A$3:$AB$351, MATCH(Selection_Hide2!$A84, 'Full set Core Client Indicator'!$A$3:$A$351, 0), MATCH(Selection_Hide2!P$5, 'Full set Core Client Indicator'!$A$3:$AB$3, 0))), \"\")","v":""},{"$f":"IF(P84<>\"\", IF(INDEX('Full set Core Client Indicator'!$A$3:$AB$351, MATCH(Selection_Hide2!$A84, 'Full set Core Client Indicator'!$A$3:$A$351, 0), MATCH(Selection_Hide2!Q$5, 'Full set Core Client Indicator'!$A$3:$AB$3, 0))=\"\", \"\",  INDEX('Full set Core Client Indicator'!$A$3:$AB$351, MATCH(Selection_Hide2!$A84, 'Full set Core Client Indicator'!$A$3:$A$351, 0), MATCH(Selection_Hide2!Q$5, 'Full set Core Client Indicator'!$A$3:$AB$3, 0))), \"\")","v":""},{"$f":"IF(Q84<>\"\", IF(INDEX('Full set Core Client Indicator'!$A$3:$AB$351, MATCH(Selection_Hide2!$A84, 'Full set Core Client Indicator'!$A$3:$A$351, 0), MATCH(Selection_Hide2!R$5, 'Full set Core Client Indicator'!$A$3:$AB$3, 0))=\"\", \"\",  INDEX('Full set Core Client Indicator'!$A$3:$AB$351, MATCH(Selection_Hide2!$A84, 'Full set Core Client Indicator'!$A$3:$A$351, 0), MATCH(Selection_Hide2!R$5, 'Full set Core Client Indicator'!$A$3:$AB$3, 0))), \"\")","v":""},{"$f":"IF(R84<>\"\", IF(INDEX('Full set Core Client Indicator'!$A$3:$AB$351, MATCH(Selection_Hide2!$A84, 'Full set Core Client Indicator'!$A$3:$A$351, 0), MATCH(Selection_Hide2!S$5, 'Full set Core Client Indicator'!$A$3:$AB$3, 0))=\"\", \"\",  INDEX('Full set Core Client Indicator'!$A$3:$AB$351, MATCH(Selection_Hide2!$A84, 'Full set Core Client Indicator'!$A$3:$A$351, 0), MATCH(Selection_Hide2!S$5, 'Full set Core Client Indicator'!$A$3:$AB$3, 0))), \"\")","v":""},{"$f":"IF(S84<>\"\", IF(INDEX('Full set Core Client Indicator'!$A$3:$AB$351, MATCH(Selection_Hide2!$A84, 'Full set Core Client Indicator'!$A$3:$A$351, 0), MATCH(Selection_Hide2!T$5, 'Full set Core Client Indicator'!$A$3:$AB$3, 0))=\"\", \"\",  INDEX('Full set Core Client Indicator'!$A$3:$AB$351, MATCH(Selection_Hide2!$A84, 'Full set Core Client Indicator'!$A$3:$A$351, 0), MATCH(Selection_Hide2!T$5, 'Full set Core Client Indicator'!$A$3:$AB$3, 0))), \"\")","v":""},{"$f":"IF(T84<>\"\", IF(INDEX('Full set Core Client Indicator'!$A$3:$AB$351, MATCH(Selection_Hide2!$A84, 'Full set Core Client Indicator'!$A$3:$A$351, 0), MATCH(Selection_Hide2!U$5, 'Full set Core Client Indicator'!$A$3:$AB$3, 0))=\"\", \"\",  INDEX('Full set Core Client Indicator'!$A$3:$AB$351, MATCH(Selection_Hide2!$A84, 'Full set Core Client Indicator'!$A$3:$A$351, 0), MATCH(Selection_Hide2!U$5, 'Full set Core Client Indicator'!$A$3:$AB$3, 0))), \"\")","v":""},{"$f":"IF(U84<>\"\", IF(INDEX('Full set Core Client Indicator'!$A$3:$AB$351, MATCH(Selection_Hide2!$A84, 'Full set Core Client Indicator'!$A$3:$A$351, 0), MATCH(Selection_Hide2!V$5, 'Full set Core Client Indicator'!$A$3:$AB$3, 0))=\"\", \"\",  INDEX('Full set Core Client Indicator'!$A$3:$AB$351, MATCH(Selection_Hide2!$A84, 'Full set Core Client Indicator'!$A$3:$A$351, 0), MATCH(Selection_Hide2!V$5, 'Full set Core Client Indicator'!$A$3:$AB$3, 0))), \"\")","v":""},{"$f":"IF(V84<>\"\", IF(INDEX('Full set Core Client Indicator'!$A$3:$AB$351, MATCH(Selection_Hide2!$A84, 'Full set Core Client Indicator'!$A$3:$A$351, 0), MATCH(Selection_Hide2!W$5, 'Full set Core Client Indicator'!$A$3:$AB$3, 0))=\"\", \"\",  INDEX('Full set Core Client Indicator'!$A$3:$AB$351, MATCH(Selection_Hide2!$A84, 'Full set Core Client Indicator'!$A$3:$A$351, 0), MATCH(Selection_Hide2!W$5, 'Full set Core Client Indicator'!$A$3:$AB$3, 0))), \"\")","v":""},{"$f":"IF(W84<>\"\", IF(INDEX('Full set Core Client Indicator'!$A$3:$AB$351, MATCH(Selection_Hide2!$A84, 'Full set Core Client Indicator'!$A$3:$A$351, 0), MATCH(Selection_Hide2!X$5, 'Full set Core Client Indicator'!$A$3:$AB$3, 0))=\"\", \"\",  INDEX('Full set Core Client Indicator'!$A$3:$AB$351, MATCH(Selection_Hide2!$A84, 'Full set Core Client Indicator'!$A$3:$A$351, 0), MATCH(Selection_Hide2!X$5, 'Full set Core Client Indicator'!$A$3:$AB$3, 0))), \"\")","v":""},{"$f":"IF(X84<>\"\", IF(INDEX('Full set Core Client Indicator'!$A$3:$AB$351, MATCH(Selection_Hide2!$A84, 'Full set Core Client Indicator'!$A$3:$A$351, 0), MATCH(Selection_Hide2!Y$5, 'Full set Core Client Indicator'!$A$3:$AB$3, 0))=\"\", \"\",  INDEX('Full set Core Client Indicator'!$A$3:$AB$351, MATCH(Selection_Hide2!$A84, 'Full set Core Client Indicator'!$A$3:$A$351, 0), MATCH(Selection_Hide2!Y$5, 'Full set Core Client Indicator'!$A$3:$AB$3, 0))), \"\")","v":""},{"$f":"IF(Y84<>\"\", IF(INDEX('Full set Core Client Indicator'!$A$3:$AB$351, MATCH(Selection_Hide2!$A84, 'Full set Core Client Indicator'!$A$3:$A$351, 0), MATCH(Selection_Hide2!Z$5, 'Full set Core Client Indicator'!$A$3:$AB$3, 0))=\"\", \"\",  INDEX('Full set Core Client Indicator'!$A$3:$AB$351, MATCH(Selection_Hide2!$A84, 'Full set Core Client Indicator'!$A$3:$A$351, 0), MATCH(Selection_Hide2!Z$5, 'Full set Core Client Indicator'!$A$3:$AB$3, 0))), \"\")","v":""},{"$f":"IF(Z84<>\"\", IF(INDEX('Full set Core Client Indicator'!$A$3:$AB$351, MATCH(Selection_Hide2!$A84, 'Full set Core Client Indicator'!$A$3:$A$351, 0), MATCH(Selection_Hide2!AA$5, 'Full set Core Client Indicator'!$A$3:$AB$3, 0))=\"\", \"\",  INDEX('Full set Core Client Indicator'!$A$3:$AB$351, MATCH(Selection_Hide2!$A84, 'Full set Core Client Indicator'!$A$3:$A$351, 0), MATCH(Selection_Hide2!AA$5, 'Full set Core Client Indicator'!$A$3:$AB$3, 0))), \"\")","v":""},{"$f":"IF(AA84<>\"\", IF(INDEX('Full set Core Client Indicator'!$A$3:$AB$351, MATCH(Selection_Hide2!$A84, 'Full set Core Client Indicator'!$A$3:$A$351, 0), MATCH(Selection_Hide2!AB$5, 'Full set Core Client Indicator'!$A$3:$AB$3, 0))=\"\", \"\",  INDEX('Full set Core Client Indicator'!$A$3:$AB$351, MATCH(Selection_Hide2!$A84, 'Full set Core Client Indicator'!$A$3:$A$351, 0), MATCH(Selection_Hide2!AB$5, 'Full set Core Client Indicator'!$A$3:$AB$3, 0))), \"\")","v":""}]
[{"$f":"IF(AND(Selection_Hide1!C83<>0, Selection_Hide1!C83<>\"Grand Total\"), Selection_Hide1!C83, \"\")","v":""},{"$f":"IF(A85<>\"\", IF(INDEX('Full set Core Client Indicator'!$A$3:$AB$351, MATCH(Selection_Hide2!$A85, 'Full set Core Client Indicator'!$A$3:$A$351, 0), MATCH(Selection_Hide2!B$5, 'Full set Core Client Indicator'!$A$3:$AB$3, 0))=\"\", \"\",  INDEX('Full set Core Client Indicator'!$A$3:$AB$351, MATCH(Selection_Hide2!$A85, 'Full set Core Client Indicator'!$A$3:$A$351, 0), MATCH(Selection_Hide2!B$5, 'Full set Core Client Indicator'!$A$3:$AB$3, 0))), \"\")","v":""},{"$f":"IF(B85<>\"\", IF(INDEX('Full set Core Client Indicator'!$A$3:$AB$351, MATCH(Selection_Hide2!$A85, 'Full set Core Client Indicator'!$A$3:$A$351, 0), MATCH(Selection_Hide2!C$5, 'Full set Core Client Indicator'!$A$3:$AB$3, 0))=\"\", \"\",  INDEX('Full set Core Client Indicator'!$A$3:$AB$351, MATCH(Selection_Hide2!$A85, 'Full set Core Client Indicator'!$A$3:$A$351, 0), MATCH(Selection_Hide2!C$5, 'Full set Core Client Indicator'!$A$3:$AB$3, 0))), \"\")","v":""},{"$f":"IF(C85<>\"\", IF(INDEX('Full set Core Client Indicator'!$A$3:$AB$351, MATCH(Selection_Hide2!$A85, 'Full set Core Client Indicator'!$A$3:$A$351, 0), MATCH(Selection_Hide2!D$5, 'Full set Core Client Indicator'!$A$3:$AB$3, 0))=\"\", \"\",  INDEX('Full set Core Client Indicator'!$A$3:$AB$351, MATCH(Selection_Hide2!$A85, 'Full set Core Client Indicator'!$A$3:$A$351, 0), MATCH(Selection_Hide2!D$5, 'Full set Core Client Indicator'!$A$3:$AB$3, 0))), \"\")","v":""},{"$f":"IF(D85<>\"\", IF(INDEX('Full set Core Client Indicator'!$A$3:$AB$351, MATCH(Selection_Hide2!$A85, 'Full set Core Client Indicator'!$A$3:$A$351, 0), MATCH(Selection_Hide2!E$5, 'Full set Core Client Indicator'!$A$3:$AB$3, 0))=\"\", \"\",  INDEX('Full set Core Client Indicator'!$A$3:$AB$351, MATCH(Selection_Hide2!$A85, 'Full set Core Client Indicator'!$A$3:$A$351, 0), MATCH(Selection_Hide2!E$5, 'Full set Core Client Indicator'!$A$3:$AB$3, 0))), \"\")","v":""},{"$f":"IF(E85<>\"\", IF(INDEX('Full set Core Client Indicator'!$A$3:$AB$351, MATCH(Selection_Hide2!$A85, 'Full set Core Client Indicator'!$A$3:$A$351, 0), MATCH(Selection_Hide2!F$5, 'Full set Core Client Indicator'!$A$3:$AB$3, 0))=\"\", \"\",  INDEX('Full set Core Client Indicator'!$A$3:$AB$351, MATCH(Selection_Hide2!$A85, 'Full set Core Client Indicator'!$A$3:$A$351, 0), MATCH(Selection_Hide2!F$5, 'Full set Core Client Indicator'!$A$3:$AB$3, 0))), \"\")","v":""},{"$f":"IF(F85<>\"\", IF(INDEX('Full set Core Client Indicator'!$A$3:$AB$351, MATCH(Selection_Hide2!$A85, 'Full set Core Client Indicator'!$A$3:$A$351, 0), MATCH(Selection_Hide2!G$5, 'Full set Core Client Indicator'!$A$3:$AB$3, 0))=\"\", \"\",  INDEX('Full set Core Client Indicator'!$A$3:$AB$351, MATCH(Selection_Hide2!$A85, 'Full set Core Client Indicator'!$A$3:$A$351, 0), MATCH(Selection_Hide2!G$5, 'Full set Core Client Indicator'!$A$3:$AB$3, 0))), \"\")","v":""},{"$f":"IF(G85<>\"\", IF(INDEX('Full set Core Client Indicator'!$A$3:$AB$351, MATCH(Selection_Hide2!$A85, 'Full set Core Client Indicator'!$A$3:$A$351, 0), MATCH(Selection_Hide2!H$5, 'Full set Core Client Indicator'!$A$3:$AB$3, 0))=\"\", \"\",  INDEX('Full set Core Client Indicator'!$A$3:$AB$351, MATCH(Selection_Hide2!$A85, 'Full set Core Client Indicator'!$A$3:$A$351, 0), MATCH(Selection_Hide2!H$5, 'Full set Core Client Indicator'!$A$3:$AB$3, 0))), \"\")","v":""},{"$f":"IF(H85<>\"\", IF(INDEX('Full set Core Client Indicator'!$A$3:$AB$351, MATCH(Selection_Hide2!$A85, 'Full set Core Client Indicator'!$A$3:$A$351, 0), MATCH(Selection_Hide2!I$5, 'Full set Core Client Indicator'!$A$3:$AB$3, 0))=\"\", \"\",  INDEX('Full set Core Client Indicator'!$A$3:$AB$351, MATCH(Selection_Hide2!$A85, 'Full set Core Client Indicator'!$A$3:$A$351, 0), MATCH(Selection_Hide2!I$5, 'Full set Core Client Indicator'!$A$3:$AB$3, 0))), \"\")","v":""},{"$f":"IF(I85<>\"\", IF(INDEX('Full set Core Client Indicator'!$A$3:$AB$351, MATCH(Selection_Hide2!$A85, 'Full set Core Client Indicator'!$A$3:$A$351, 0), MATCH(Selection_Hide2!J$5, 'Full set Core Client Indicator'!$A$3:$AB$3, 0))=\"\", \"\",  INDEX('Full set Core Client Indicator'!$A$3:$AB$351, MATCH(Selection_Hide2!$A85, 'Full set Core Client Indicator'!$A$3:$A$351, 0), MATCH(Selection_Hide2!J$5, 'Full set Core Client Indicator'!$A$3:$AB$3, 0))), \"\")","v":""},{"$f":"IF(J85<>\"\", IF(INDEX('Full set Core Client Indicator'!$A$3:$AB$351, MATCH(Selection_Hide2!$A85, 'Full set Core Client Indicator'!$A$3:$A$351, 0), MATCH(Selection_Hide2!K$5, 'Full set Core Client Indicator'!$A$3:$AB$3, 0))=\"\", \"\",  INDEX('Full set Core Client Indicator'!$A$3:$AB$351, MATCH(Selection_Hide2!$A85, 'Full set Core Client Indicator'!$A$3:$A$351, 0), MATCH(Selection_Hide2!K$5, 'Full set Core Client Indicator'!$A$3:$AB$3, 0))), \"\")","v":""},{"$f":"IF(K85<>\"\", IF(INDEX('Full set Core Client Indicator'!$A$3:$AB$351, MATCH(Selection_Hide2!$A85, 'Full set Core Client Indicator'!$A$3:$A$351, 0), MATCH(Selection_Hide2!L$5, 'Full set Core Client Indicator'!$A$3:$AB$3, 0))=\"\", \"\",  INDEX('Full set Core Client Indicator'!$A$3:$AB$351, MATCH(Selection_Hide2!$A85, 'Full set Core Client Indicator'!$A$3:$A$351, 0), MATCH(Selection_Hide2!L$5, 'Full set Core Client Indicator'!$A$3:$AB$3, 0))), \"\")","v":""},{"$f":"IF(L85<>\"\", IF(INDEX('Full set Core Client Indicator'!$A$3:$AB$351, MATCH(Selection_Hide2!$A85, 'Full set Core Client Indicator'!$A$3:$A$351, 0), MATCH(Selection_Hide2!M$5, 'Full set Core Client Indicator'!$A$3:$AB$3, 0))=\"\", \"\",  INDEX('Full set Core Client Indicator'!$A$3:$AB$351, MATCH(Selection_Hide2!$A85, 'Full set Core Client Indicator'!$A$3:$A$351, 0), MATCH(Selection_Hide2!M$5, 'Full set Core Client Indicator'!$A$3:$AB$3, 0))), \"\")","v":""},{"$f":"IF(M85<>\"\", IF(INDEX('Full set Core Client Indicator'!$A$3:$AB$351, MATCH(Selection_Hide2!$A85, 'Full set Core Client Indicator'!$A$3:$A$351, 0), MATCH(Selection_Hide2!N$5, 'Full set Core Client Indicator'!$A$3:$AB$3, 0))=\"\", \"\",  INDEX('Full set Core Client Indicator'!$A$3:$AB$351, MATCH(Selection_Hide2!$A85, 'Full set Core Client Indicator'!$A$3:$A$351, 0), MATCH(Selection_Hide2!N$5, 'Full set Core Client Indicator'!$A$3:$AB$3, 0))), \"\")","v":""},{"$f":"IF(N85<>\"\", IF(INDEX('Full set Core Client Indicator'!$A$3:$AB$351, MATCH(Selection_Hide2!$A85, 'Full set Core Client Indicator'!$A$3:$A$351, 0), MATCH(Selection_Hide2!O$5, 'Full set Core Client Indicator'!$A$3:$AB$3, 0))=\"\", \"\",  INDEX('Full set Core Client Indicator'!$A$3:$AB$351, MATCH(Selection_Hide2!$A85, 'Full set Core Client Indicator'!$A$3:$A$351, 0), MATCH(Selection_Hide2!O$5, 'Full set Core Client Indicator'!$A$3:$AB$3, 0))), \"\")","v":""},{"$f":"IF(O85<>\"\", IF(INDEX('Full set Core Client Indicator'!$A$3:$AB$351, MATCH(Selection_Hide2!$A85, 'Full set Core Client Indicator'!$A$3:$A$351, 0), MATCH(Selection_Hide2!P$5, 'Full set Core Client Indicator'!$A$3:$AB$3, 0))=\"\", \"\",  INDEX('Full set Core Client Indicator'!$A$3:$AB$351, MATCH(Selection_Hide2!$A85, 'Full set Core Client Indicator'!$A$3:$A$351, 0), MATCH(Selection_Hide2!P$5, 'Full set Core Client Indicator'!$A$3:$AB$3, 0))), \"\")","v":""},{"$f":"IF(P85<>\"\", IF(INDEX('Full set Core Client Indicator'!$A$3:$AB$351, MATCH(Selection_Hide2!$A85, 'Full set Core Client Indicator'!$A$3:$A$351, 0), MATCH(Selection_Hide2!Q$5, 'Full set Core Client Indicator'!$A$3:$AB$3, 0))=\"\", \"\",  INDEX('Full set Core Client Indicator'!$A$3:$AB$351, MATCH(Selection_Hide2!$A85, 'Full set Core Client Indicator'!$A$3:$A$351, 0), MATCH(Selection_Hide2!Q$5, 'Full set Core Client Indicator'!$A$3:$AB$3, 0))), \"\")","v":""},{"$f":"IF(Q85<>\"\", IF(INDEX('Full set Core Client Indicator'!$A$3:$AB$351, MATCH(Selection_Hide2!$A85, 'Full set Core Client Indicator'!$A$3:$A$351, 0), MATCH(Selection_Hide2!R$5, 'Full set Core Client Indicator'!$A$3:$AB$3, 0))=\"\", \"\",  INDEX('Full set Core Client Indicator'!$A$3:$AB$351, MATCH(Selection_Hide2!$A85, 'Full set Core Client Indicator'!$A$3:$A$351, 0), MATCH(Selection_Hide2!R$5, 'Full set Core Client Indicator'!$A$3:$AB$3, 0))), \"\")","v":""},{"$f":"IF(R85<>\"\", IF(INDEX('Full set Core Client Indicator'!$A$3:$AB$351, MATCH(Selection_Hide2!$A85, 'Full set Core Client Indicator'!$A$3:$A$351, 0), MATCH(Selection_Hide2!S$5, 'Full set Core Client Indicator'!$A$3:$AB$3, 0))=\"\", \"\",  INDEX('Full set Core Client Indicator'!$A$3:$AB$351, MATCH(Selection_Hide2!$A85, 'Full set Core Client Indicator'!$A$3:$A$351, 0), MATCH(Selection_Hide2!S$5, 'Full set Core Client Indicator'!$A$3:$AB$3, 0))), \"\")","v":""},{"$f":"IF(S85<>\"\", IF(INDEX('Full set Core Client Indicator'!$A$3:$AB$351, MATCH(Selection_Hide2!$A85, 'Full set Core Client Indicator'!$A$3:$A$351, 0), MATCH(Selection_Hide2!T$5, 'Full set Core Client Indicator'!$A$3:$AB$3, 0))=\"\", \"\",  INDEX('Full set Core Client Indicator'!$A$3:$AB$351, MATCH(Selection_Hide2!$A85, 'Full set Core Client Indicator'!$A$3:$A$351, 0), MATCH(Selection_Hide2!T$5, 'Full set Core Client Indicator'!$A$3:$AB$3, 0))), \"\")","v":""},{"$f":"IF(T85<>\"\", IF(INDEX('Full set Core Client Indicator'!$A$3:$AB$351, MATCH(Selection_Hide2!$A85, 'Full set Core Client Indicator'!$A$3:$A$351, 0), MATCH(Selection_Hide2!U$5, 'Full set Core Client Indicator'!$A$3:$AB$3, 0))=\"\", \"\",  INDEX('Full set Core Client Indicator'!$A$3:$AB$351, MATCH(Selection_Hide2!$A85, 'Full set Core Client Indicator'!$A$3:$A$351, 0), MATCH(Selection_Hide2!U$5, 'Full set Core Client Indicator'!$A$3:$AB$3, 0))), \"\")","v":""},{"$f":"IF(U85<>\"\", IF(INDEX('Full set Core Client Indicator'!$A$3:$AB$351, MATCH(Selection_Hide2!$A85, 'Full set Core Client Indicator'!$A$3:$A$351, 0), MATCH(Selection_Hide2!V$5, 'Full set Core Client Indicator'!$A$3:$AB$3, 0))=\"\", \"\",  INDEX('Full set Core Client Indicator'!$A$3:$AB$351, MATCH(Selection_Hide2!$A85, 'Full set Core Client Indicator'!$A$3:$A$351, 0), MATCH(Selection_Hide2!V$5, 'Full set Core Client Indicator'!$A$3:$AB$3, 0))), \"\")","v":""},{"$f":"IF(V85<>\"\", IF(INDEX('Full set Core Client Indicator'!$A$3:$AB$351, MATCH(Selection_Hide2!$A85, 'Full set Core Client Indicator'!$A$3:$A$351, 0), MATCH(Selection_Hide2!W$5, 'Full set Core Client Indicator'!$A$3:$AB$3, 0))=\"\", \"\",  INDEX('Full set Core Client Indicator'!$A$3:$AB$351, MATCH(Selection_Hide2!$A85, 'Full set Core Client Indicator'!$A$3:$A$351, 0), MATCH(Selection_Hide2!W$5, 'Full set Core Client Indicator'!$A$3:$AB$3, 0))), \"\")","v":""},{"$f":"IF(W85<>\"\", IF(INDEX('Full set Core Client Indicator'!$A$3:$AB$351, MATCH(Selection_Hide2!$A85, 'Full set Core Client Indicator'!$A$3:$A$351, 0), MATCH(Selection_Hide2!X$5, 'Full set Core Client Indicator'!$A$3:$AB$3, 0))=\"\", \"\",  INDEX('Full set Core Client Indicator'!$A$3:$AB$351, MATCH(Selection_Hide2!$A85, 'Full set Core Client Indicator'!$A$3:$A$351, 0), MATCH(Selection_Hide2!X$5, 'Full set Core Client Indicator'!$A$3:$AB$3, 0))), \"\")","v":""},{"$f":"IF(X85<>\"\", IF(INDEX('Full set Core Client Indicator'!$A$3:$AB$351, MATCH(Selection_Hide2!$A85, 'Full set Core Client Indicator'!$A$3:$A$351, 0), MATCH(Selection_Hide2!Y$5, 'Full set Core Client Indicator'!$A$3:$AB$3, 0))=\"\", \"\",  INDEX('Full set Core Client Indicator'!$A$3:$AB$351, MATCH(Selection_Hide2!$A85, 'Full set Core Client Indicator'!$A$3:$A$351, 0), MATCH(Selection_Hide2!Y$5, 'Full set Core Client Indicator'!$A$3:$AB$3, 0))), \"\")","v":""},{"$f":"IF(Y85<>\"\", IF(INDEX('Full set Core Client Indicator'!$A$3:$AB$351, MATCH(Selection_Hide2!$A85, 'Full set Core Client Indicator'!$A$3:$A$351, 0), MATCH(Selection_Hide2!Z$5, 'Full set Core Client Indicator'!$A$3:$AB$3, 0))=\"\", \"\",  INDEX('Full set Core Client Indicator'!$A$3:$AB$351, MATCH(Selection_Hide2!$A85, 'Full set Core Client Indicator'!$A$3:$A$351, 0), MATCH(Selection_Hide2!Z$5, 'Full set Core Client Indicator'!$A$3:$AB$3, 0))), \"\")","v":""},{"$f":"IF(Z85<>\"\", IF(INDEX('Full set Core Client Indicator'!$A$3:$AB$351, MATCH(Selection_Hide2!$A85, 'Full set Core Client Indicator'!$A$3:$A$351, 0), MATCH(Selection_Hide2!AA$5, 'Full set Core Client Indicator'!$A$3:$AB$3, 0))=\"\", \"\",  INDEX('Full set Core Client Indicator'!$A$3:$AB$351, MATCH(Selection_Hide2!$A85, 'Full set Core Client Indicator'!$A$3:$A$351, 0), MATCH(Selection_Hide2!AA$5, 'Full set Core Client Indicator'!$A$3:$AB$3, 0))), \"\")","v":""},{"$f":"IF(AA85<>\"\", IF(INDEX('Full set Core Client Indicator'!$A$3:$AB$351, MATCH(Selection_Hide2!$A85, 'Full set Core Client Indicator'!$A$3:$A$351, 0), MATCH(Selection_Hide2!AB$5, 'Full set Core Client Indicator'!$A$3:$AB$3, 0))=\"\", \"\",  INDEX('Full set Core Client Indicator'!$A$3:$AB$351, MATCH(Selection_Hide2!$A85, 'Full set Core Client Indicator'!$A$3:$A$351, 0), MATCH(Selection_Hide2!AB$5, 'Full set Core Client Indicator'!$A$3:$AB$3, 0))), \"\")","v":""}]
[{"$f":"IF(AND(Selection_Hide1!C84<>0, Selection_Hide1!C84<>\"Grand Total\"), Selection_Hide1!C84, \"\")","v":""},{"$f":"IF(A86<>\"\", IF(INDEX('Full set Core Client Indicator'!$A$3:$AB$351, MATCH(Selection_Hide2!$A86, 'Full set Core Client Indicator'!$A$3:$A$351, 0), MATCH(Selection_Hide2!B$5, 'Full set Core Client Indicator'!$A$3:$AB$3, 0))=\"\", \"\",  INDEX('Full set Core Client Indicator'!$A$3:$AB$351, MATCH(Selection_Hide2!$A86, 'Full set Core Client Indicator'!$A$3:$A$351, 0), MATCH(Selection_Hide2!B$5, 'Full set Core Client Indicator'!$A$3:$AB$3, 0))), \"\")","v":""},{"$f":"IF(B86<>\"\", IF(INDEX('Full set Core Client Indicator'!$A$3:$AB$351, MATCH(Selection_Hide2!$A86, 'Full set Core Client Indicator'!$A$3:$A$351, 0), MATCH(Selection_Hide2!C$5, 'Full set Core Client Indicator'!$A$3:$AB$3, 0))=\"\", \"\",  INDEX('Full set Core Client Indicator'!$A$3:$AB$351, MATCH(Selection_Hide2!$A86, 'Full set Core Client Indicator'!$A$3:$A$351, 0), MATCH(Selection_Hide2!C$5, 'Full set Core Client Indicator'!$A$3:$AB$3, 0))), \"\")","v":""},{"$f":"IF(C86<>\"\", IF(INDEX('Full set Core Client Indicator'!$A$3:$AB$351, MATCH(Selection_Hide2!$A86, 'Full set Core Client Indicator'!$A$3:$A$351, 0), MATCH(Selection_Hide2!D$5, 'Full set Core Client Indicator'!$A$3:$AB$3, 0))=\"\", \"\",  INDEX('Full set Core Client Indicator'!$A$3:$AB$351, MATCH(Selection_Hide2!$A86, 'Full set Core Client Indicator'!$A$3:$A$351, 0), MATCH(Selection_Hide2!D$5, 'Full set Core Client Indicator'!$A$3:$AB$3, 0))), \"\")","v":""},{"$f":"IF(D86<>\"\", IF(INDEX('Full set Core Client Indicator'!$A$3:$AB$351, MATCH(Selection_Hide2!$A86, 'Full set Core Client Indicator'!$A$3:$A$351, 0), MATCH(Selection_Hide2!E$5, 'Full set Core Client Indicator'!$A$3:$AB$3, 0))=\"\", \"\",  INDEX('Full set Core Client Indicator'!$A$3:$AB$351, MATCH(Selection_Hide2!$A86, 'Full set Core Client Indicator'!$A$3:$A$351, 0), MATCH(Selection_Hide2!E$5, 'Full set Core Client Indicator'!$A$3:$AB$3, 0))), \"\")","v":""},{"$f":"IF(E86<>\"\", IF(INDEX('Full set Core Client Indicator'!$A$3:$AB$351, MATCH(Selection_Hide2!$A86, 'Full set Core Client Indicator'!$A$3:$A$351, 0), MATCH(Selection_Hide2!F$5, 'Full set Core Client Indicator'!$A$3:$AB$3, 0))=\"\", \"\",  INDEX('Full set Core Client Indicator'!$A$3:$AB$351, MATCH(Selection_Hide2!$A86, 'Full set Core Client Indicator'!$A$3:$A$351, 0), MATCH(Selection_Hide2!F$5, 'Full set Core Client Indicator'!$A$3:$AB$3, 0))), \"\")","v":""},{"$f":"IF(F86<>\"\", IF(INDEX('Full set Core Client Indicator'!$A$3:$AB$351, MATCH(Selection_Hide2!$A86, 'Full set Core Client Indicator'!$A$3:$A$351, 0), MATCH(Selection_Hide2!G$5, 'Full set Core Client Indicator'!$A$3:$AB$3, 0))=\"\", \"\",  INDEX('Full set Core Client Indicator'!$A$3:$AB$351, MATCH(Selection_Hide2!$A86, 'Full set Core Client Indicator'!$A$3:$A$351, 0), MATCH(Selection_Hide2!G$5, 'Full set Core Client Indicator'!$A$3:$AB$3, 0))), \"\")","v":""},{"$f":"IF(G86<>\"\", IF(INDEX('Full set Core Client Indicator'!$A$3:$AB$351, MATCH(Selection_Hide2!$A86, 'Full set Core Client Indicator'!$A$3:$A$351, 0), MATCH(Selection_Hide2!H$5, 'Full set Core Client Indicator'!$A$3:$AB$3, 0))=\"\", \"\",  INDEX('Full set Core Client Indicator'!$A$3:$AB$351, MATCH(Selection_Hide2!$A86, 'Full set Core Client Indicator'!$A$3:$A$351, 0), MATCH(Selection_Hide2!H$5, 'Full set Core Client Indicator'!$A$3:$AB$3, 0))), \"\")","v":""},{"$f":"IF(H86<>\"\", IF(INDEX('Full set Core Client Indicator'!$A$3:$AB$351, MATCH(Selection_Hide2!$A86, 'Full set Core Client Indicator'!$A$3:$A$351, 0), MATCH(Selection_Hide2!I$5, 'Full set Core Client Indicator'!$A$3:$AB$3, 0))=\"\", \"\",  INDEX('Full set Core Client Indicator'!$A$3:$AB$351, MATCH(Selection_Hide2!$A86, 'Full set Core Client Indicator'!$A$3:$A$351, 0), MATCH(Selection_Hide2!I$5, 'Full set Core Client Indicator'!$A$3:$AB$3, 0))), \"\")","v":""},{"$f":"IF(I86<>\"\", IF(INDEX('Full set Core Client Indicator'!$A$3:$AB$351, MATCH(Selection_Hide2!$A86, 'Full set Core Client Indicator'!$A$3:$A$351, 0), MATCH(Selection_Hide2!J$5, 'Full set Core Client Indicator'!$A$3:$AB$3, 0))=\"\", \"\",  INDEX('Full set Core Client Indicator'!$A$3:$AB$351, MATCH(Selection_Hide2!$A86, 'Full set Core Client Indicator'!$A$3:$A$351, 0), MATCH(Selection_Hide2!J$5, 'Full set Core Client Indicator'!$A$3:$AB$3, 0))), \"\")","v":""},{"$f":"IF(J86<>\"\", IF(INDEX('Full set Core Client Indicator'!$A$3:$AB$351, MATCH(Selection_Hide2!$A86, 'Full set Core Client Indicator'!$A$3:$A$351, 0), MATCH(Selection_Hide2!K$5, 'Full set Core Client Indicator'!$A$3:$AB$3, 0))=\"\", \"\",  INDEX('Full set Core Client Indicator'!$A$3:$AB$351, MATCH(Selection_Hide2!$A86, 'Full set Core Client Indicator'!$A$3:$A$351, 0), MATCH(Selection_Hide2!K$5, 'Full set Core Client Indicator'!$A$3:$AB$3, 0))), \"\")","v":""},{"$f":"IF(K86<>\"\", IF(INDEX('Full set Core Client Indicator'!$A$3:$AB$351, MATCH(Selection_Hide2!$A86, 'Full set Core Client Indicator'!$A$3:$A$351, 0), MATCH(Selection_Hide2!L$5, 'Full set Core Client Indicator'!$A$3:$AB$3, 0))=\"\", \"\",  INDEX('Full set Core Client Indicator'!$A$3:$AB$351, MATCH(Selection_Hide2!$A86, 'Full set Core Client Indicator'!$A$3:$A$351, 0), MATCH(Selection_Hide2!L$5, 'Full set Core Client Indicator'!$A$3:$AB$3, 0))), \"\")","v":""},{"$f":"IF(L86<>\"\", IF(INDEX('Full set Core Client Indicator'!$A$3:$AB$351, MATCH(Selection_Hide2!$A86, 'Full set Core Client Indicator'!$A$3:$A$351, 0), MATCH(Selection_Hide2!M$5, 'Full set Core Client Indicator'!$A$3:$AB$3, 0))=\"\", \"\",  INDEX('Full set Core Client Indicator'!$A$3:$AB$351, MATCH(Selection_Hide2!$A86, 'Full set Core Client Indicator'!$A$3:$A$351, 0), MATCH(Selection_Hide2!M$5, 'Full set Core Client Indicator'!$A$3:$AB$3, 0))), \"\")","v":""},{"$f":"IF(M86<>\"\", IF(INDEX('Full set Core Client Indicator'!$A$3:$AB$351, MATCH(Selection_Hide2!$A86, 'Full set Core Client Indicator'!$A$3:$A$351, 0), MATCH(Selection_Hide2!N$5, 'Full set Core Client Indicator'!$A$3:$AB$3, 0))=\"\", \"\",  INDEX('Full set Core Client Indicator'!$A$3:$AB$351, MATCH(Selection_Hide2!$A86, 'Full set Core Client Indicator'!$A$3:$A$351, 0), MATCH(Selection_Hide2!N$5, 'Full set Core Client Indicator'!$A$3:$AB$3, 0))), \"\")","v":""},{"$f":"IF(N86<>\"\", IF(INDEX('Full set Core Client Indicator'!$A$3:$AB$351, MATCH(Selection_Hide2!$A86, 'Full set Core Client Indicator'!$A$3:$A$351, 0), MATCH(Selection_Hide2!O$5, 'Full set Core Client Indicator'!$A$3:$AB$3, 0))=\"\", \"\",  INDEX('Full set Core Client Indicator'!$A$3:$AB$351, MATCH(Selection_Hide2!$A86, 'Full set Core Client Indicator'!$A$3:$A$351, 0), MATCH(Selection_Hide2!O$5, 'Full set Core Client Indicator'!$A$3:$AB$3, 0))), \"\")","v":""},{"$f":"IF(O86<>\"\", IF(INDEX('Full set Core Client Indicator'!$A$3:$AB$351, MATCH(Selection_Hide2!$A86, 'Full set Core Client Indicator'!$A$3:$A$351, 0), MATCH(Selection_Hide2!P$5, 'Full set Core Client Indicator'!$A$3:$AB$3, 0))=\"\", \"\",  INDEX('Full set Core Client Indicator'!$A$3:$AB$351, MATCH(Selection_Hide2!$A86, 'Full set Core Client Indicator'!$A$3:$A$351, 0), MATCH(Selection_Hide2!P$5, 'Full set Core Client Indicator'!$A$3:$AB$3, 0))), \"\")","v":""},{"$f":"IF(P86<>\"\", IF(INDEX('Full set Core Client Indicator'!$A$3:$AB$351, MATCH(Selection_Hide2!$A86, 'Full set Core Client Indicator'!$A$3:$A$351, 0), MATCH(Selection_Hide2!Q$5, 'Full set Core Client Indicator'!$A$3:$AB$3, 0))=\"\", \"\",  INDEX('Full set Core Client Indicator'!$A$3:$AB$351, MATCH(Selection_Hide2!$A86, 'Full set Core Client Indicator'!$A$3:$A$351, 0), MATCH(Selection_Hide2!Q$5, 'Full set Core Client Indicator'!$A$3:$AB$3, 0))), \"\")","v":""},{"$f":"IF(Q86<>\"\", IF(INDEX('Full set Core Client Indicator'!$A$3:$AB$351, MATCH(Selection_Hide2!$A86, 'Full set Core Client Indicator'!$A$3:$A$351, 0), MATCH(Selection_Hide2!R$5, 'Full set Core Client Indicator'!$A$3:$AB$3, 0))=\"\", \"\",  INDEX('Full set Core Client Indicator'!$A$3:$AB$351, MATCH(Selection_Hide2!$A86, 'Full set Core Client Indicator'!$A$3:$A$351, 0), MATCH(Selection_Hide2!R$5, 'Full set Core Client Indicator'!$A$3:$AB$3, 0))), \"\")","v":""},{"$f":"IF(R86<>\"\", IF(INDEX('Full set Core Client Indicator'!$A$3:$AB$351, MATCH(Selection_Hide2!$A86, 'Full set Core Client Indicator'!$A$3:$A$351, 0), MATCH(Selection_Hide2!S$5, 'Full set Core Client Indicator'!$A$3:$AB$3, 0))=\"\", \"\",  INDEX('Full set Core Client Indicator'!$A$3:$AB$351, MATCH(Selection_Hide2!$A86, 'Full set Core Client Indicator'!$A$3:$A$351, 0), MATCH(Selection_Hide2!S$5, 'Full set Core Client Indicator'!$A$3:$AB$3, 0))), \"\")","v":""},{"$f":"IF(S86<>\"\", IF(INDEX('Full set Core Client Indicator'!$A$3:$AB$351, MATCH(Selection_Hide2!$A86, 'Full set Core Client Indicator'!$A$3:$A$351, 0), MATCH(Selection_Hide2!T$5, 'Full set Core Client Indicator'!$A$3:$AB$3, 0))=\"\", \"\",  INDEX('Full set Core Client Indicator'!$A$3:$AB$351, MATCH(Selection_Hide2!$A86, 'Full set Core Client Indicator'!$A$3:$A$351, 0), MATCH(Selection_Hide2!T$5, 'Full set Core Client Indicator'!$A$3:$AB$3, 0))), \"\")","v":""},{"$f":"IF(T86<>\"\", IF(INDEX('Full set Core Client Indicator'!$A$3:$AB$351, MATCH(Selection_Hide2!$A86, 'Full set Core Client Indicator'!$A$3:$A$351, 0), MATCH(Selection_Hide2!U$5, 'Full set Core Client Indicator'!$A$3:$AB$3, 0))=\"\", \"\",  INDEX('Full set Core Client Indicator'!$A$3:$AB$351, MATCH(Selection_Hide2!$A86, 'Full set Core Client Indicator'!$A$3:$A$351, 0), MATCH(Selection_Hide2!U$5, 'Full set Core Client Indicator'!$A$3:$AB$3, 0))), \"\")","v":""},{"$f":"IF(U86<>\"\", IF(INDEX('Full set Core Client Indicator'!$A$3:$AB$351, MATCH(Selection_Hide2!$A86, 'Full set Core Client Indicator'!$A$3:$A$351, 0), MATCH(Selection_Hide2!V$5, 'Full set Core Client Indicator'!$A$3:$AB$3, 0))=\"\", \"\",  INDEX('Full set Core Client Indicator'!$A$3:$AB$351, MATCH(Selection_Hide2!$A86, 'Full set Core Client Indicator'!$A$3:$A$351, 0), MATCH(Selection_Hide2!V$5, 'Full set Core Client Indicator'!$A$3:$AB$3, 0))), \"\")","v":""},{"$f":"IF(V86<>\"\", IF(INDEX('Full set Core Client Indicator'!$A$3:$AB$351, MATCH(Selection_Hide2!$A86, 'Full set Core Client Indicator'!$A$3:$A$351, 0), MATCH(Selection_Hide2!W$5, 'Full set Core Client Indicator'!$A$3:$AB$3, 0))=\"\", \"\",  INDEX('Full set Core Client Indicator'!$A$3:$AB$351, MATCH(Selection_Hide2!$A86, 'Full set Core Client Indicator'!$A$3:$A$351, 0), MATCH(Selection_Hide2!W$5, 'Full set Core Client Indicator'!$A$3:$AB$3, 0))), \"\")","v":""},{"$f":"IF(W86<>\"\", IF(INDEX('Full set Core Client Indicator'!$A$3:$AB$351, MATCH(Selection_Hide2!$A86, 'Full set Core Client Indicator'!$A$3:$A$351, 0), MATCH(Selection_Hide2!X$5, 'Full set Core Client Indicator'!$A$3:$AB$3, 0))=\"\", \"\",  INDEX('Full set Core Client Indicator'!$A$3:$AB$351, MATCH(Selection_Hide2!$A86, 'Full set Core Client Indicator'!$A$3:$A$351, 0), MATCH(Selection_Hide2!X$5, 'Full set Core Client Indicator'!$A$3:$AB$3, 0))), \"\")","v":""},{"$f":"IF(X86<>\"\", IF(INDEX('Full set Core Client Indicator'!$A$3:$AB$351, MATCH(Selection_Hide2!$A86, 'Full set Core Client Indicator'!$A$3:$A$351, 0), MATCH(Selection_Hide2!Y$5, 'Full set Core Client Indicator'!$A$3:$AB$3, 0))=\"\", \"\",  INDEX('Full set Core Client Indicator'!$A$3:$AB$351, MATCH(Selection_Hide2!$A86, 'Full set Core Client Indicator'!$A$3:$A$351, 0), MATCH(Selection_Hide2!Y$5, 'Full set Core Client Indicator'!$A$3:$AB$3, 0))), \"\")","v":""},{"$f":"IF(Y86<>\"\", IF(INDEX('Full set Core Client Indicator'!$A$3:$AB$351, MATCH(Selection_Hide2!$A86, 'Full set Core Client Indicator'!$A$3:$A$351, 0), MATCH(Selection_Hide2!Z$5, 'Full set Core Client Indicator'!$A$3:$AB$3, 0))=\"\", \"\",  INDEX('Full set Core Client Indicator'!$A$3:$AB$351, MATCH(Selection_Hide2!$A86, 'Full set Core Client Indicator'!$A$3:$A$351, 0), MATCH(Selection_Hide2!Z$5, 'Full set Core Client Indicator'!$A$3:$AB$3, 0))), \"\")","v":""},{"$f":"IF(Z86<>\"\", IF(INDEX('Full set Core Client Indicator'!$A$3:$AB$351, MATCH(Selection_Hide2!$A86, 'Full set Core Client Indicator'!$A$3:$A$351, 0), MATCH(Selection_Hide2!AA$5, 'Full set Core Client Indicator'!$A$3:$AB$3, 0))=\"\", \"\",  INDEX('Full set Core Client Indicator'!$A$3:$AB$351, MATCH(Selection_Hide2!$A86, 'Full set Core Client Indicator'!$A$3:$A$351, 0), MATCH(Selection_Hide2!AA$5, 'Full set Core Client Indicator'!$A$3:$AB$3, 0))), \"\")","v":""},{"$f":"IF(AA86<>\"\", IF(INDEX('Full set Core Client Indicator'!$A$3:$AB$351, MATCH(Selection_Hide2!$A86, 'Full set Core Client Indicator'!$A$3:$A$351, 0), MATCH(Selection_Hide2!AB$5, 'Full set Core Client Indicator'!$A$3:$AB$3, 0))=\"\", \"\",  INDEX('Full set Core Client Indicator'!$A$3:$AB$351, MATCH(Selection_Hide2!$A86, 'Full set Core Client Indicator'!$A$3:$A$351, 0), MATCH(Selection_Hide2!AB$5, 'Full set Core Client Indicator'!$A$3:$AB$3, 0))), \"\")","v":""}]
[{"$f":"IF(AND(Selection_Hide1!C85<>0, Selection_Hide1!C85<>\"Grand Total\"), Selection_Hide1!C85, \"\")","v":""},{"$f":"IF(A87<>\"\", IF(INDEX('Full set Core Client Indicator'!$A$3:$AB$351, MATCH(Selection_Hide2!$A87, 'Full set Core Client Indicator'!$A$3:$A$351, 0), MATCH(Selection_Hide2!B$5, 'Full set Core Client Indicator'!$A$3:$AB$3, 0))=\"\", \"\",  INDEX('Full set Core Client Indicator'!$A$3:$AB$351, MATCH(Selection_Hide2!$A87, 'Full set Core Client Indicator'!$A$3:$A$351, 0), MATCH(Selection_Hide2!B$5, 'Full set Core Client Indicator'!$A$3:$AB$3, 0))), \"\")","v":""},{"$f":"IF(B87<>\"\", IF(INDEX('Full set Core Client Indicator'!$A$3:$AB$351, MATCH(Selection_Hide2!$A87, 'Full set Core Client Indicator'!$A$3:$A$351, 0), MATCH(Selection_Hide2!C$5, 'Full set Core Client Indicator'!$A$3:$AB$3, 0))=\"\", \"\",  INDEX('Full set Core Client Indicator'!$A$3:$AB$351, MATCH(Selection_Hide2!$A87, 'Full set Core Client Indicator'!$A$3:$A$351, 0), MATCH(Selection_Hide2!C$5, 'Full set Core Client Indicator'!$A$3:$AB$3, 0))), \"\")","v":""},{"$f":"IF(C87<>\"\", IF(INDEX('Full set Core Client Indicator'!$A$3:$AB$351, MATCH(Selection_Hide2!$A87, 'Full set Core Client Indicator'!$A$3:$A$351, 0), MATCH(Selection_Hide2!D$5, 'Full set Core Client Indicator'!$A$3:$AB$3, 0))=\"\", \"\",  INDEX('Full set Core Client Indicator'!$A$3:$AB$351, MATCH(Selection_Hide2!$A87, 'Full set Core Client Indicator'!$A$3:$A$351, 0), MATCH(Selection_Hide2!D$5, 'Full set Core Client Indicator'!$A$3:$AB$3, 0))), \"\")","v":""},{"$f":"IF(D87<>\"\", IF(INDEX('Full set Core Client Indicator'!$A$3:$AB$351, MATCH(Selection_Hide2!$A87, 'Full set Core Client Indicator'!$A$3:$A$351, 0), MATCH(Selection_Hide2!E$5, 'Full set Core Client Indicator'!$A$3:$AB$3, 0))=\"\", \"\",  INDEX('Full set Core Client Indicator'!$A$3:$AB$351, MATCH(Selection_Hide2!$A87, 'Full set Core Client Indicator'!$A$3:$A$351, 0), MATCH(Selection_Hide2!E$5, 'Full set Core Client Indicator'!$A$3:$AB$3, 0))), \"\")","v":""},{"$f":"IF(E87<>\"\", IF(INDEX('Full set Core Client Indicator'!$A$3:$AB$351, MATCH(Selection_Hide2!$A87, 'Full set Core Client Indicator'!$A$3:$A$351, 0), MATCH(Selection_Hide2!F$5, 'Full set Core Client Indicator'!$A$3:$AB$3, 0))=\"\", \"\",  INDEX('Full set Core Client Indicator'!$A$3:$AB$351, MATCH(Selection_Hide2!$A87, 'Full set Core Client Indicator'!$A$3:$A$351, 0), MATCH(Selection_Hide2!F$5, 'Full set Core Client Indicator'!$A$3:$AB$3, 0))), \"\")","v":""},{"$f":"IF(F87<>\"\", IF(INDEX('Full set Core Client Indicator'!$A$3:$AB$351, MATCH(Selection_Hide2!$A87, 'Full set Core Client Indicator'!$A$3:$A$351, 0), MATCH(Selection_Hide2!G$5, 'Full set Core Client Indicator'!$A$3:$AB$3, 0))=\"\", \"\",  INDEX('Full set Core Client Indicator'!$A$3:$AB$351, MATCH(Selection_Hide2!$A87, 'Full set Core Client Indicator'!$A$3:$A$351, 0), MATCH(Selection_Hide2!G$5, 'Full set Core Client Indicator'!$A$3:$AB$3, 0))), \"\")","v":""},{"$f":"IF(G87<>\"\", IF(INDEX('Full set Core Client Indicator'!$A$3:$AB$351, MATCH(Selection_Hide2!$A87, 'Full set Core Client Indicator'!$A$3:$A$351, 0), MATCH(Selection_Hide2!H$5, 'Full set Core Client Indicator'!$A$3:$AB$3, 0))=\"\", \"\",  INDEX('Full set Core Client Indicator'!$A$3:$AB$351, MATCH(Selection_Hide2!$A87, 'Full set Core Client Indicator'!$A$3:$A$351, 0), MATCH(Selection_Hide2!H$5, 'Full set Core Client Indicator'!$A$3:$AB$3, 0))), \"\")","v":""},{"$f":"IF(H87<>\"\", IF(INDEX('Full set Core Client Indicator'!$A$3:$AB$351, MATCH(Selection_Hide2!$A87, 'Full set Core Client Indicator'!$A$3:$A$351, 0), MATCH(Selection_Hide2!I$5, 'Full set Core Client Indicator'!$A$3:$AB$3, 0))=\"\", \"\",  INDEX('Full set Core Client Indicator'!$A$3:$AB$351, MATCH(Selection_Hide2!$A87, 'Full set Core Client Indicator'!$A$3:$A$351, 0), MATCH(Selection_Hide2!I$5, 'Full set Core Client Indicator'!$A$3:$AB$3, 0))), \"\")","v":""},{"$f":"IF(I87<>\"\", IF(INDEX('Full set Core Client Indicator'!$A$3:$AB$351, MATCH(Selection_Hide2!$A87, 'Full set Core Client Indicator'!$A$3:$A$351, 0), MATCH(Selection_Hide2!J$5, 'Full set Core Client Indicator'!$A$3:$AB$3, 0))=\"\", \"\",  INDEX('Full set Core Client Indicator'!$A$3:$AB$351, MATCH(Selection_Hide2!$A87, 'Full set Core Client Indicator'!$A$3:$A$351, 0), MATCH(Selection_Hide2!J$5, 'Full set Core Client Indicator'!$A$3:$AB$3, 0))), \"\")","v":""},{"$f":"IF(J87<>\"\", IF(INDEX('Full set Core Client Indicator'!$A$3:$AB$351, MATCH(Selection_Hide2!$A87, 'Full set Core Client Indicator'!$A$3:$A$351, 0), MATCH(Selection_Hide2!K$5, 'Full set Core Client Indicator'!$A$3:$AB$3, 0))=\"\", \"\",  INDEX('Full set Core Client Indicator'!$A$3:$AB$351, MATCH(Selection_Hide2!$A87, 'Full set Core Client Indicator'!$A$3:$A$351, 0), MATCH(Selection_Hide2!K$5, 'Full set Core Client Indicator'!$A$3:$AB$3, 0))), \"\")","v":""},{"$f":"IF(K87<>\"\", IF(INDEX('Full set Core Client Indicator'!$A$3:$AB$351, MATCH(Selection_Hide2!$A87, 'Full set Core Client Indicator'!$A$3:$A$351, 0), MATCH(Selection_Hide2!L$5, 'Full set Core Client Indicator'!$A$3:$AB$3, 0))=\"\", \"\",  INDEX('Full set Core Client Indicator'!$A$3:$AB$351, MATCH(Selection_Hide2!$A87, 'Full set Core Client Indicator'!$A$3:$A$351, 0), MATCH(Selection_Hide2!L$5, 'Full set Core Client Indicator'!$A$3:$AB$3, 0))), \"\")","v":""},{"$f":"IF(L87<>\"\", IF(INDEX('Full set Core Client Indicator'!$A$3:$AB$351, MATCH(Selection_Hide2!$A87, 'Full set Core Client Indicator'!$A$3:$A$351, 0), MATCH(Selection_Hide2!M$5, 'Full set Core Client Indicator'!$A$3:$AB$3, 0))=\"\", \"\",  INDEX('Full set Core Client Indicator'!$A$3:$AB$351, MATCH(Selection_Hide2!$A87, 'Full set Core Client Indicator'!$A$3:$A$351, 0), MATCH(Selection_Hide2!M$5, 'Full set Core Client Indicator'!$A$3:$AB$3, 0))), \"\")","v":""},{"$f":"IF(M87<>\"\", IF(INDEX('Full set Core Client Indicator'!$A$3:$AB$351, MATCH(Selection_Hide2!$A87, 'Full set Core Client Indicator'!$A$3:$A$351, 0), MATCH(Selection_Hide2!N$5, 'Full set Core Client Indicator'!$A$3:$AB$3, 0))=\"\", \"\",  INDEX('Full set Core Client Indicator'!$A$3:$AB$351, MATCH(Selection_Hide2!$A87, 'Full set Core Client Indicator'!$A$3:$A$351, 0), MATCH(Selection_Hide2!N$5, 'Full set Core Client Indicator'!$A$3:$AB$3, 0))), \"\")","v":""},{"$f":"IF(N87<>\"\", IF(INDEX('Full set Core Client Indicator'!$A$3:$AB$351, MATCH(Selection_Hide2!$A87, 'Full set Core Client Indicator'!$A$3:$A$351, 0), MATCH(Selection_Hide2!O$5, 'Full set Core Client Indicator'!$A$3:$AB$3, 0))=\"\", \"\",  INDEX('Full set Core Client Indicator'!$A$3:$AB$351, MATCH(Selection_Hide2!$A87, 'Full set Core Client Indicator'!$A$3:$A$351, 0), MATCH(Selection_Hide2!O$5, 'Full set Core Client Indicator'!$A$3:$AB$3, 0))), \"\")","v":""},{"$f":"IF(O87<>\"\", IF(INDEX('Full set Core Client Indicator'!$A$3:$AB$351, MATCH(Selection_Hide2!$A87, 'Full set Core Client Indicator'!$A$3:$A$351, 0), MATCH(Selection_Hide2!P$5, 'Full set Core Client Indicator'!$A$3:$AB$3, 0))=\"\", \"\",  INDEX('Full set Core Client Indicator'!$A$3:$AB$351, MATCH(Selection_Hide2!$A87, 'Full set Core Client Indicator'!$A$3:$A$351, 0), MATCH(Selection_Hide2!P$5, 'Full set Core Client Indicator'!$A$3:$AB$3, 0))), \"\")","v":""},{"$f":"IF(P87<>\"\", IF(INDEX('Full set Core Client Indicator'!$A$3:$AB$351, MATCH(Selection_Hide2!$A87, 'Full set Core Client Indicator'!$A$3:$A$351, 0), MATCH(Selection_Hide2!Q$5, 'Full set Core Client Indicator'!$A$3:$AB$3, 0))=\"\", \"\",  INDEX('Full set Core Client Indicator'!$A$3:$AB$351, MATCH(Selection_Hide2!$A87, 'Full set Core Client Indicator'!$A$3:$A$351, 0), MATCH(Selection_Hide2!Q$5, 'Full set Core Client Indicator'!$A$3:$AB$3, 0))), \"\")","v":""},{"$f":"IF(Q87<>\"\", IF(INDEX('Full set Core Client Indicator'!$A$3:$AB$351, MATCH(Selection_Hide2!$A87, 'Full set Core Client Indicator'!$A$3:$A$351, 0), MATCH(Selection_Hide2!R$5, 'Full set Core Client Indicator'!$A$3:$AB$3, 0))=\"\", \"\",  INDEX('Full set Core Client Indicator'!$A$3:$AB$351, MATCH(Selection_Hide2!$A87, 'Full set Core Client Indicator'!$A$3:$A$351, 0), MATCH(Selection_Hide2!R$5, 'Full set Core Client Indicator'!$A$3:$AB$3, 0))), \"\")","v":""},{"$f":"IF(R87<>\"\", IF(INDEX('Full set Core Client Indicator'!$A$3:$AB$351, MATCH(Selection_Hide2!$A87, 'Full set Core Client Indicator'!$A$3:$A$351, 0), MATCH(Selection_Hide2!S$5, 'Full set Core Client Indicator'!$A$3:$AB$3, 0))=\"\", \"\",  INDEX('Full set Core Client Indicator'!$A$3:$AB$351, MATCH(Selection_Hide2!$A87, 'Full set Core Client Indicator'!$A$3:$A$351, 0), MATCH(Selection_Hide2!S$5, 'Full set Core Client Indicator'!$A$3:$AB$3, 0))), \"\")","v":""},{"$f":"IF(S87<>\"\", IF(INDEX('Full set Core Client Indicator'!$A$3:$AB$351, MATCH(Selection_Hide2!$A87, 'Full set Core Client Indicator'!$A$3:$A$351, 0), MATCH(Selection_Hide2!T$5, 'Full set Core Client Indicator'!$A$3:$AB$3, 0))=\"\", \"\",  INDEX('Full set Core Client Indicator'!$A$3:$AB$351, MATCH(Selection_Hide2!$A87, 'Full set Core Client Indicator'!$A$3:$A$351, 0), MATCH(Selection_Hide2!T$5, 'Full set Core Client Indicator'!$A$3:$AB$3, 0))), \"\")","v":""},{"$f":"IF(T87<>\"\", IF(INDEX('Full set Core Client Indicator'!$A$3:$AB$351, MATCH(Selection_Hide2!$A87, 'Full set Core Client Indicator'!$A$3:$A$351, 0), MATCH(Selection_Hide2!U$5, 'Full set Core Client Indicator'!$A$3:$AB$3, 0))=\"\", \"\",  INDEX('Full set Core Client Indicator'!$A$3:$AB$351, MATCH(Selection_Hide2!$A87, 'Full set Core Client Indicator'!$A$3:$A$351, 0), MATCH(Selection_Hide2!U$5, 'Full set Core Client Indicator'!$A$3:$AB$3, 0))), \"\")","v":""},{"$f":"IF(U87<>\"\", IF(INDEX('Full set Core Client Indicator'!$A$3:$AB$351, MATCH(Selection_Hide2!$A87, 'Full set Core Client Indicator'!$A$3:$A$351, 0), MATCH(Selection_Hide2!V$5, 'Full set Core Client Indicator'!$A$3:$AB$3, 0))=\"\", \"\",  INDEX('Full set Core Client Indicator'!$A$3:$AB$351, MATCH(Selection_Hide2!$A87, 'Full set Core Client Indicator'!$A$3:$A$351, 0), MATCH(Selection_Hide2!V$5, 'Full set Core Client Indicator'!$A$3:$AB$3, 0))), \"\")","v":""},{"$f":"IF(V87<>\"\", IF(INDEX('Full set Core Client Indicator'!$A$3:$AB$351, MATCH(Selection_Hide2!$A87, 'Full set Core Client Indicator'!$A$3:$A$351, 0), MATCH(Selection_Hide2!W$5, 'Full set Core Client Indicator'!$A$3:$AB$3, 0))=\"\", \"\",  INDEX('Full set Core Client Indicator'!$A$3:$AB$351, MATCH(Selection_Hide2!$A87, 'Full set Core Client Indicator'!$A$3:$A$351, 0), MATCH(Selection_Hide2!W$5, 'Full set Core Client Indicator'!$A$3:$AB$3, 0))), \"\")","v":""},{"$f":"IF(W87<>\"\", IF(INDEX('Full set Core Client Indicator'!$A$3:$AB$351, MATCH(Selection_Hide2!$A87, 'Full set Core Client Indicator'!$A$3:$A$351, 0), MATCH(Selection_Hide2!X$5, 'Full set Core Client Indicator'!$A$3:$AB$3, 0))=\"\", \"\",  INDEX('Full set Core Client Indicator'!$A$3:$AB$351, MATCH(Selection_Hide2!$A87, 'Full set Core Client Indicator'!$A$3:$A$351, 0), MATCH(Selection_Hide2!X$5, 'Full set Core Client Indicator'!$A$3:$AB$3, 0))), \"\")","v":""},{"$f":"IF(X87<>\"\", IF(INDEX('Full set Core Client Indicator'!$A$3:$AB$351, MATCH(Selection_Hide2!$A87, 'Full set Core Client Indicator'!$A$3:$A$351, 0), MATCH(Selection_Hide2!Y$5, 'Full set Core Client Indicator'!$A$3:$AB$3, 0))=\"\", \"\",  INDEX('Full set Core Client Indicator'!$A$3:$AB$351, MATCH(Selection_Hide2!$A87, 'Full set Core Client Indicator'!$A$3:$A$351, 0), MATCH(Selection_Hide2!Y$5, 'Full set Core Client Indicator'!$A$3:$AB$3, 0))), \"\")","v":""},{"$f":"IF(Y87<>\"\", IF(INDEX('Full set Core Client Indicator'!$A$3:$AB$351, MATCH(Selection_Hide2!$A87, 'Full set Core Client Indicator'!$A$3:$A$351, 0), MATCH(Selection_Hide2!Z$5, 'Full set Core Client Indicator'!$A$3:$AB$3, 0))=\"\", \"\",  INDEX('Full set Core Client Indicator'!$A$3:$AB$351, MATCH(Selection_Hide2!$A87, 'Full set Core Client Indicator'!$A$3:$A$351, 0), MATCH(Selection_Hide2!Z$5, 'Full set Core Client Indicator'!$A$3:$AB$3, 0))), \"\")","v":""},{"$f":"IF(Z87<>\"\", IF(INDEX('Full set Core Client Indicator'!$A$3:$AB$351, MATCH(Selection_Hide2!$A87, 'Full set Core Client Indicator'!$A$3:$A$351, 0), MATCH(Selection_Hide2!AA$5, 'Full set Core Client Indicator'!$A$3:$AB$3, 0))=\"\", \"\",  INDEX('Full set Core Client Indicator'!$A$3:$AB$351, MATCH(Selection_Hide2!$A87, 'Full set Core Client Indicator'!$A$3:$A$351, 0), MATCH(Selection_Hide2!AA$5, 'Full set Core Client Indicator'!$A$3:$AB$3, 0))), \"\")","v":""},{"$f":"IF(AA87<>\"\", IF(INDEX('Full set Core Client Indicator'!$A$3:$AB$351, MATCH(Selection_Hide2!$A87, 'Full set Core Client Indicator'!$A$3:$A$351, 0), MATCH(Selection_Hide2!AB$5, 'Full set Core Client Indicator'!$A$3:$AB$3, 0))=\"\", \"\",  INDEX('Full set Core Client Indicator'!$A$3:$AB$351, MATCH(Selection_Hide2!$A87, 'Full set Core Client Indicator'!$A$3:$A$351, 0), MATCH(Selection_Hide2!AB$5, 'Full set Core Client Indicator'!$A$3:$AB$3, 0))), \"\")","v":""}]
[{"$f":"IF(AND(Selection_Hide1!C86<>0, Selection_Hide1!C86<>\"Grand Total\"), Selection_Hide1!C86, \"\")","v":""},{"$f":"IF(A88<>\"\", IF(INDEX('Full set Core Client Indicator'!$A$3:$AB$351, MATCH(Selection_Hide2!$A88, 'Full set Core Client Indicator'!$A$3:$A$351, 0), MATCH(Selection_Hide2!B$5, 'Full set Core Client Indicator'!$A$3:$AB$3, 0))=\"\", \"\",  INDEX('Full set Core Client Indicator'!$A$3:$AB$351, MATCH(Selection_Hide2!$A88, 'Full set Core Client Indicator'!$A$3:$A$351, 0), MATCH(Selection_Hide2!B$5, 'Full set Core Client Indicator'!$A$3:$AB$3, 0))), \"\")","v":""},{"$f":"IF(B88<>\"\", IF(INDEX('Full set Core Client Indicator'!$A$3:$AB$351, MATCH(Selection_Hide2!$A88, 'Full set Core Client Indicator'!$A$3:$A$351, 0), MATCH(Selection_Hide2!C$5, 'Full set Core Client Indicator'!$A$3:$AB$3, 0))=\"\", \"\",  INDEX('Full set Core Client Indicator'!$A$3:$AB$351, MATCH(Selection_Hide2!$A88, 'Full set Core Client Indicator'!$A$3:$A$351, 0), MATCH(Selection_Hide2!C$5, 'Full set Core Client Indicator'!$A$3:$AB$3, 0))), \"\")","v":""},{"$f":"IF(C88<>\"\", IF(INDEX('Full set Core Client Indicator'!$A$3:$AB$351, MATCH(Selection_Hide2!$A88, 'Full set Core Client Indicator'!$A$3:$A$351, 0), MATCH(Selection_Hide2!D$5, 'Full set Core Client Indicator'!$A$3:$AB$3, 0))=\"\", \"\",  INDEX('Full set Core Client Indicator'!$A$3:$AB$351, MATCH(Selection_Hide2!$A88, 'Full set Core Client Indicator'!$A$3:$A$351, 0), MATCH(Selection_Hide2!D$5, 'Full set Core Client Indicator'!$A$3:$AB$3, 0))), \"\")","v":""},{"$f":"IF(D88<>\"\", IF(INDEX('Full set Core Client Indicator'!$A$3:$AB$351, MATCH(Selection_Hide2!$A88, 'Full set Core Client Indicator'!$A$3:$A$351, 0), MATCH(Selection_Hide2!E$5, 'Full set Core Client Indicator'!$A$3:$AB$3, 0))=\"\", \"\",  INDEX('Full set Core Client Indicator'!$A$3:$AB$351, MATCH(Selection_Hide2!$A88, 'Full set Core Client Indicator'!$A$3:$A$351, 0), MATCH(Selection_Hide2!E$5, 'Full set Core Client Indicator'!$A$3:$AB$3, 0))), \"\")","v":""},{"$f":"IF(E88<>\"\", IF(INDEX('Full set Core Client Indicator'!$A$3:$AB$351, MATCH(Selection_Hide2!$A88, 'Full set Core Client Indicator'!$A$3:$A$351, 0), MATCH(Selection_Hide2!F$5, 'Full set Core Client Indicator'!$A$3:$AB$3, 0))=\"\", \"\",  INDEX('Full set Core Client Indicator'!$A$3:$AB$351, MATCH(Selection_Hide2!$A88, 'Full set Core Client Indicator'!$A$3:$A$351, 0), MATCH(Selection_Hide2!F$5, 'Full set Core Client Indicator'!$A$3:$AB$3, 0))), \"\")","v":""},{"$f":"IF(F88<>\"\", IF(INDEX('Full set Core Client Indicator'!$A$3:$AB$351, MATCH(Selection_Hide2!$A88, 'Full set Core Client Indicator'!$A$3:$A$351, 0), MATCH(Selection_Hide2!G$5, 'Full set Core Client Indicator'!$A$3:$AB$3, 0))=\"\", \"\",  INDEX('Full set Core Client Indicator'!$A$3:$AB$351, MATCH(Selection_Hide2!$A88, 'Full set Core Client Indicator'!$A$3:$A$351, 0), MATCH(Selection_Hide2!G$5, 'Full set Core Client Indicator'!$A$3:$AB$3, 0))), \"\")","v":""},{"$f":"IF(G88<>\"\", IF(INDEX('Full set Core Client Indicator'!$A$3:$AB$351, MATCH(Selection_Hide2!$A88, 'Full set Core Client Indicator'!$A$3:$A$351, 0), MATCH(Selection_Hide2!H$5, 'Full set Core Client Indicator'!$A$3:$AB$3, 0))=\"\", \"\",  INDEX('Full set Core Client Indicator'!$A$3:$AB$351, MATCH(Selection_Hide2!$A88, 'Full set Core Client Indicator'!$A$3:$A$351, 0), MATCH(Selection_Hide2!H$5, 'Full set Core Client Indicator'!$A$3:$AB$3, 0))), \"\")","v":""},{"$f":"IF(H88<>\"\", IF(INDEX('Full set Core Client Indicator'!$A$3:$AB$351, MATCH(Selection_Hide2!$A88, 'Full set Core Client Indicator'!$A$3:$A$351, 0), MATCH(Selection_Hide2!I$5, 'Full set Core Client Indicator'!$A$3:$AB$3, 0))=\"\", \"\",  INDEX('Full set Core Client Indicator'!$A$3:$AB$351, MATCH(Selection_Hide2!$A88, 'Full set Core Client Indicator'!$A$3:$A$351, 0), MATCH(Selection_Hide2!I$5, 'Full set Core Client Indicator'!$A$3:$AB$3, 0))), \"\")","v":""},{"$f":"IF(I88<>\"\", IF(INDEX('Full set Core Client Indicator'!$A$3:$AB$351, MATCH(Selection_Hide2!$A88, 'Full set Core Client Indicator'!$A$3:$A$351, 0), MATCH(Selection_Hide2!J$5, 'Full set Core Client Indicator'!$A$3:$AB$3, 0))=\"\", \"\",  INDEX('Full set Core Client Indicator'!$A$3:$AB$351, MATCH(Selection_Hide2!$A88, 'Full set Core Client Indicator'!$A$3:$A$351, 0), MATCH(Selection_Hide2!J$5, 'Full set Core Client Indicator'!$A$3:$AB$3, 0))), \"\")","v":""},{"$f":"IF(J88<>\"\", IF(INDEX('Full set Core Client Indicator'!$A$3:$AB$351, MATCH(Selection_Hide2!$A88, 'Full set Core Client Indicator'!$A$3:$A$351, 0), MATCH(Selection_Hide2!K$5, 'Full set Core Client Indicator'!$A$3:$AB$3, 0))=\"\", \"\",  INDEX('Full set Core Client Indicator'!$A$3:$AB$351, MATCH(Selection_Hide2!$A88, 'Full set Core Client Indicator'!$A$3:$A$351, 0), MATCH(Selection_Hide2!K$5, 'Full set Core Client Indicator'!$A$3:$AB$3, 0))), \"\")","v":""},{"$f":"IF(K88<>\"\", IF(INDEX('Full set Core Client Indicator'!$A$3:$AB$351, MATCH(Selection_Hide2!$A88, 'Full set Core Client Indicator'!$A$3:$A$351, 0), MATCH(Selection_Hide2!L$5, 'Full set Core Client Indicator'!$A$3:$AB$3, 0))=\"\", \"\",  INDEX('Full set Core Client Indicator'!$A$3:$AB$351, MATCH(Selection_Hide2!$A88, 'Full set Core Client Indicator'!$A$3:$A$351, 0), MATCH(Selection_Hide2!L$5, 'Full set Core Client Indicator'!$A$3:$AB$3, 0))), \"\")","v":""},{"$f":"IF(L88<>\"\", IF(INDEX('Full set Core Client Indicator'!$A$3:$AB$351, MATCH(Selection_Hide2!$A88, 'Full set Core Client Indicator'!$A$3:$A$351, 0), MATCH(Selection_Hide2!M$5, 'Full set Core Client Indicator'!$A$3:$AB$3, 0))=\"\", \"\",  INDEX('Full set Core Client Indicator'!$A$3:$AB$351, MATCH(Selection_Hide2!$A88, 'Full set Core Client Indicator'!$A$3:$A$351, 0), MATCH(Selection_Hide2!M$5, 'Full set Core Client Indicator'!$A$3:$AB$3, 0))), \"\")","v":""},{"$f":"IF(M88<>\"\", IF(INDEX('Full set Core Client Indicator'!$A$3:$AB$351, MATCH(Selection_Hide2!$A88, 'Full set Core Client Indicator'!$A$3:$A$351, 0), MATCH(Selection_Hide2!N$5, 'Full set Core Client Indicator'!$A$3:$AB$3, 0))=\"\", \"\",  INDEX('Full set Core Client Indicator'!$A$3:$AB$351, MATCH(Selection_Hide2!$A88, 'Full set Core Client Indicator'!$A$3:$A$351, 0), MATCH(Selection_Hide2!N$5, 'Full set Core Client Indicator'!$A$3:$AB$3, 0))), \"\")","v":""},{"$f":"IF(N88<>\"\", IF(INDEX('Full set Core Client Indicator'!$A$3:$AB$351, MATCH(Selection_Hide2!$A88, 'Full set Core Client Indicator'!$A$3:$A$351, 0), MATCH(Selection_Hide2!O$5, 'Full set Core Client Indicator'!$A$3:$AB$3, 0))=\"\", \"\",  INDEX('Full set Core Client Indicator'!$A$3:$AB$351, MATCH(Selection_Hide2!$A88, 'Full set Core Client Indicator'!$A$3:$A$351, 0), MATCH(Selection_Hide2!O$5, 'Full set Core Client Indicator'!$A$3:$AB$3, 0))), \"\")","v":""},{"$f":"IF(O88<>\"\", IF(INDEX('Full set Core Client Indicator'!$A$3:$AB$351, MATCH(Selection_Hide2!$A88, 'Full set Core Client Indicator'!$A$3:$A$351, 0), MATCH(Selection_Hide2!P$5, 'Full set Core Client Indicator'!$A$3:$AB$3, 0))=\"\", \"\",  INDEX('Full set Core Client Indicator'!$A$3:$AB$351, MATCH(Selection_Hide2!$A88, 'Full set Core Client Indicator'!$A$3:$A$351, 0), MATCH(Selection_Hide2!P$5, 'Full set Core Client Indicator'!$A$3:$AB$3, 0))), \"\")","v":""},{"$f":"IF(P88<>\"\", IF(INDEX('Full set Core Client Indicator'!$A$3:$AB$351, MATCH(Selection_Hide2!$A88, 'Full set Core Client Indicator'!$A$3:$A$351, 0), MATCH(Selection_Hide2!Q$5, 'Full set Core Client Indicator'!$A$3:$AB$3, 0))=\"\", \"\",  INDEX('Full set Core Client Indicator'!$A$3:$AB$351, MATCH(Selection_Hide2!$A88, 'Full set Core Client Indicator'!$A$3:$A$351, 0), MATCH(Selection_Hide2!Q$5, 'Full set Core Client Indicator'!$A$3:$AB$3, 0))), \"\")","v":""},{"$f":"IF(Q88<>\"\", IF(INDEX('Full set Core Client Indicator'!$A$3:$AB$351, MATCH(Selection_Hide2!$A88, 'Full set Core Client Indicator'!$A$3:$A$351, 0), MATCH(Selection_Hide2!R$5, 'Full set Core Client Indicator'!$A$3:$AB$3, 0))=\"\", \"\",  INDEX('Full set Core Client Indicator'!$A$3:$AB$351, MATCH(Selection_Hide2!$A88, 'Full set Core Client Indicator'!$A$3:$A$351, 0), MATCH(Selection_Hide2!R$5, 'Full set Core Client Indicator'!$A$3:$AB$3, 0))), \"\")","v":""},{"$f":"IF(R88<>\"\", IF(INDEX('Full set Core Client Indicator'!$A$3:$AB$351, MATCH(Selection_Hide2!$A88, 'Full set Core Client Indicator'!$A$3:$A$351, 0), MATCH(Selection_Hide2!S$5, 'Full set Core Client Indicator'!$A$3:$AB$3, 0))=\"\", \"\",  INDEX('Full set Core Client Indicator'!$A$3:$AB$351, MATCH(Selection_Hide2!$A88, 'Full set Core Client Indicator'!$A$3:$A$351, 0), MATCH(Selection_Hide2!S$5, 'Full set Core Client Indicator'!$A$3:$AB$3, 0))), \"\")","v":""},{"$f":"IF(S88<>\"\", IF(INDEX('Full set Core Client Indicator'!$A$3:$AB$351, MATCH(Selection_Hide2!$A88, 'Full set Core Client Indicator'!$A$3:$A$351, 0), MATCH(Selection_Hide2!T$5, 'Full set Core Client Indicator'!$A$3:$AB$3, 0))=\"\", \"\",  INDEX('Full set Core Client Indicator'!$A$3:$AB$351, MATCH(Selection_Hide2!$A88, 'Full set Core Client Indicator'!$A$3:$A$351, 0), MATCH(Selection_Hide2!T$5, 'Full set Core Client Indicator'!$A$3:$AB$3, 0))), \"\")","v":""},{"$f":"IF(T88<>\"\", IF(INDEX('Full set Core Client Indicator'!$A$3:$AB$351, MATCH(Selection_Hide2!$A88, 'Full set Core Client Indicator'!$A$3:$A$351, 0), MATCH(Selection_Hide2!U$5, 'Full set Core Client Indicator'!$A$3:$AB$3, 0))=\"\", \"\",  INDEX('Full set Core Client Indicator'!$A$3:$AB$351, MATCH(Selection_Hide2!$A88, 'Full set Core Client Indicator'!$A$3:$A$351, 0), MATCH(Selection_Hide2!U$5, 'Full set Core Client Indicator'!$A$3:$AB$3, 0))), \"\")","v":""},{"$f":"IF(U88<>\"\", IF(INDEX('Full set Core Client Indicator'!$A$3:$AB$351, MATCH(Selection_Hide2!$A88, 'Full set Core Client Indicator'!$A$3:$A$351, 0), MATCH(Selection_Hide2!V$5, 'Full set Core Client Indicator'!$A$3:$AB$3, 0))=\"\", \"\",  INDEX('Full set Core Client Indicator'!$A$3:$AB$351, MATCH(Selection_Hide2!$A88, 'Full set Core Client Indicator'!$A$3:$A$351, 0), MATCH(Selection_Hide2!V$5, 'Full set Core Client Indicator'!$A$3:$AB$3, 0))), \"\")","v":""},{"$f":"IF(V88<>\"\", IF(INDEX('Full set Core Client Indicator'!$A$3:$AB$351, MATCH(Selection_Hide2!$A88, 'Full set Core Client Indicator'!$A$3:$A$351, 0), MATCH(Selection_Hide2!W$5, 'Full set Core Client Indicator'!$A$3:$AB$3, 0))=\"\", \"\",  INDEX('Full set Core Client Indicator'!$A$3:$AB$351, MATCH(Selection_Hide2!$A88, 'Full set Core Client Indicator'!$A$3:$A$351, 0), MATCH(Selection_Hide2!W$5, 'Full set Core Client Indicator'!$A$3:$AB$3, 0))), \"\")","v":""},{"$f":"IF(W88<>\"\", IF(INDEX('Full set Core Client Indicator'!$A$3:$AB$351, MATCH(Selection_Hide2!$A88, 'Full set Core Client Indicator'!$A$3:$A$351, 0), MATCH(Selection_Hide2!X$5, 'Full set Core Client Indicator'!$A$3:$AB$3, 0))=\"\", \"\",  INDEX('Full set Core Client Indicator'!$A$3:$AB$351, MATCH(Selection_Hide2!$A88, 'Full set Core Client Indicator'!$A$3:$A$351, 0), MATCH(Selection_Hide2!X$5, 'Full set Core Client Indicator'!$A$3:$AB$3, 0))), \"\")","v":""},{"$f":"IF(X88<>\"\", IF(INDEX('Full set Core Client Indicator'!$A$3:$AB$351, MATCH(Selection_Hide2!$A88, 'Full set Core Client Indicator'!$A$3:$A$351, 0), MATCH(Selection_Hide2!Y$5, 'Full set Core Client Indicator'!$A$3:$AB$3, 0))=\"\", \"\",  INDEX('Full set Core Client Indicator'!$A$3:$AB$351, MATCH(Selection_Hide2!$A88, 'Full set Core Client Indicator'!$A$3:$A$351, 0), MATCH(Selection_Hide2!Y$5, 'Full set Core Client Indicator'!$A$3:$AB$3, 0))), \"\")","v":""},{"$f":"IF(Y88<>\"\", IF(INDEX('Full set Core Client Indicator'!$A$3:$AB$351, MATCH(Selection_Hide2!$A88, 'Full set Core Client Indicator'!$A$3:$A$351, 0), MATCH(Selection_Hide2!Z$5, 'Full set Core Client Indicator'!$A$3:$AB$3, 0))=\"\", \"\",  INDEX('Full set Core Client Indicator'!$A$3:$AB$351, MATCH(Selection_Hide2!$A88, 'Full set Core Client Indicator'!$A$3:$A$351, 0), MATCH(Selection_Hide2!Z$5, 'Full set Core Client Indicator'!$A$3:$AB$3, 0))), \"\")","v":""},{"$f":"IF(Z88<>\"\", IF(INDEX('Full set Core Client Indicator'!$A$3:$AB$351, MATCH(Selection_Hide2!$A88, 'Full set Core Client Indicator'!$A$3:$A$351, 0), MATCH(Selection_Hide2!AA$5, 'Full set Core Client Indicator'!$A$3:$AB$3, 0))=\"\", \"\",  INDEX('Full set Core Client Indicator'!$A$3:$AB$351, MATCH(Selection_Hide2!$A88, 'Full set Core Client Indicator'!$A$3:$A$351, 0), MATCH(Selection_Hide2!AA$5, 'Full set Core Client Indicator'!$A$3:$AB$3, 0))), \"\")","v":""},{"$f":"IF(AA88<>\"\", IF(INDEX('Full set Core Client Indicator'!$A$3:$AB$351, MATCH(Selection_Hide2!$A88, 'Full set Core Client Indicator'!$A$3:$A$351, 0), MATCH(Selection_Hide2!AB$5, 'Full set Core Client Indicator'!$A$3:$AB$3, 0))=\"\", \"\",  INDEX('Full set Core Client Indicator'!$A$3:$AB$351, MATCH(Selection_Hide2!$A88, 'Full set Core Client Indicator'!$A$3:$A$351, 0), MATCH(Selection_Hide2!AB$5, 'Full set Core Client Indicator'!$A$3:$AB$3, 0))), \"\")","v":""}]
[{"$f":"IF(AND(Selection_Hide1!C87<>0, Selection_Hide1!C87<>\"Grand Total\"), Selection_Hide1!C87, \"\")","v":""},{"$f":"IF(A89<>\"\", IF(INDEX('Full set Core Client Indicator'!$A$3:$AB$351, MATCH(Selection_Hide2!$A89, 'Full set Core Client Indicator'!$A$3:$A$351, 0), MATCH(Selection_Hide2!B$5, 'Full set Core Client Indicator'!$A$3:$AB$3, 0))=\"\", \"\",  INDEX('Full set Core Client Indicator'!$A$3:$AB$351, MATCH(Selection_Hide2!$A89, 'Full set Core Client Indicator'!$A$3:$A$351, 0), MATCH(Selection_Hide2!B$5, 'Full set Core Client Indicator'!$A$3:$AB$3, 0))), \"\")","v":""},{"$f":"IF(B89<>\"\", IF(INDEX('Full set Core Client Indicator'!$A$3:$AB$351, MATCH(Selection_Hide2!$A89, 'Full set Core Client Indicator'!$A$3:$A$351, 0), MATCH(Selection_Hide2!C$5, 'Full set Core Client Indicator'!$A$3:$AB$3, 0))=\"\", \"\",  INDEX('Full set Core Client Indicator'!$A$3:$AB$351, MATCH(Selection_Hide2!$A89, 'Full set Core Client Indicator'!$A$3:$A$351, 0), MATCH(Selection_Hide2!C$5, 'Full set Core Client Indicator'!$A$3:$AB$3, 0))), \"\")","v":""},{"$f":"IF(C89<>\"\", IF(INDEX('Full set Core Client Indicator'!$A$3:$AB$351, MATCH(Selection_Hide2!$A89, 'Full set Core Client Indicator'!$A$3:$A$351, 0), MATCH(Selection_Hide2!D$5, 'Full set Core Client Indicator'!$A$3:$AB$3, 0))=\"\", \"\",  INDEX('Full set Core Client Indicator'!$A$3:$AB$351, MATCH(Selection_Hide2!$A89, 'Full set Core Client Indicator'!$A$3:$A$351, 0), MATCH(Selection_Hide2!D$5, 'Full set Core Client Indicator'!$A$3:$AB$3, 0))), \"\")","v":""},{"$f":"IF(D89<>\"\", IF(INDEX('Full set Core Client Indicator'!$A$3:$AB$351, MATCH(Selection_Hide2!$A89, 'Full set Core Client Indicator'!$A$3:$A$351, 0), MATCH(Selection_Hide2!E$5, 'Full set Core Client Indicator'!$A$3:$AB$3, 0))=\"\", \"\",  INDEX('Full set Core Client Indicator'!$A$3:$AB$351, MATCH(Selection_Hide2!$A89, 'Full set Core Client Indicator'!$A$3:$A$351, 0), MATCH(Selection_Hide2!E$5, 'Full set Core Client Indicator'!$A$3:$AB$3, 0))), \"\")","v":""},{"$f":"IF(E89<>\"\", IF(INDEX('Full set Core Client Indicator'!$A$3:$AB$351, MATCH(Selection_Hide2!$A89, 'Full set Core Client Indicator'!$A$3:$A$351, 0), MATCH(Selection_Hide2!F$5, 'Full set Core Client Indicator'!$A$3:$AB$3, 0))=\"\", \"\",  INDEX('Full set Core Client Indicator'!$A$3:$AB$351, MATCH(Selection_Hide2!$A89, 'Full set Core Client Indicator'!$A$3:$A$351, 0), MATCH(Selection_Hide2!F$5, 'Full set Core Client Indicator'!$A$3:$AB$3, 0))), \"\")","v":""},{"$f":"IF(F89<>\"\", IF(INDEX('Full set Core Client Indicator'!$A$3:$AB$351, MATCH(Selection_Hide2!$A89, 'Full set Core Client Indicator'!$A$3:$A$351, 0), MATCH(Selection_Hide2!G$5, 'Full set Core Client Indicator'!$A$3:$AB$3, 0))=\"\", \"\",  INDEX('Full set Core Client Indicator'!$A$3:$AB$351, MATCH(Selection_Hide2!$A89, 'Full set Core Client Indicator'!$A$3:$A$351, 0), MATCH(Selection_Hide2!G$5, 'Full set Core Client Indicator'!$A$3:$AB$3, 0))), \"\")","v":""},{"$f":"IF(G89<>\"\", IF(INDEX('Full set Core Client Indicator'!$A$3:$AB$351, MATCH(Selection_Hide2!$A89, 'Full set Core Client Indicator'!$A$3:$A$351, 0), MATCH(Selection_Hide2!H$5, 'Full set Core Client Indicator'!$A$3:$AB$3, 0))=\"\", \"\",  INDEX('Full set Core Client Indicator'!$A$3:$AB$351, MATCH(Selection_Hide2!$A89, 'Full set Core Client Indicator'!$A$3:$A$351, 0), MATCH(Selection_Hide2!H$5, 'Full set Core Client Indicator'!$A$3:$AB$3, 0))), \"\")","v":""},{"$f":"IF(H89<>\"\", IF(INDEX('Full set Core Client Indicator'!$A$3:$AB$351, MATCH(Selection_Hide2!$A89, 'Full set Core Client Indicator'!$A$3:$A$351, 0), MATCH(Selection_Hide2!I$5, 'Full set Core Client Indicator'!$A$3:$AB$3, 0))=\"\", \"\",  INDEX('Full set Core Client Indicator'!$A$3:$AB$351, MATCH(Selection_Hide2!$A89, 'Full set Core Client Indicator'!$A$3:$A$351, 0), MATCH(Selection_Hide2!I$5, 'Full set Core Client Indicator'!$A$3:$AB$3, 0))), \"\")","v":""},{"$f":"IF(I89<>\"\", IF(INDEX('Full set Core Client Indicator'!$A$3:$AB$351, MATCH(Selection_Hide2!$A89, 'Full set Core Client Indicator'!$A$3:$A$351, 0), MATCH(Selection_Hide2!J$5, 'Full set Core Client Indicator'!$A$3:$AB$3, 0))=\"\", \"\",  INDEX('Full set Core Client Indicator'!$A$3:$AB$351, MATCH(Selection_Hide2!$A89, 'Full set Core Client Indicator'!$A$3:$A$351, 0), MATCH(Selection_Hide2!J$5, 'Full set Core Client Indicator'!$A$3:$AB$3, 0))), \"\")","v":""},{"$f":"IF(J89<>\"\", IF(INDEX('Full set Core Client Indicator'!$A$3:$AB$351, MATCH(Selection_Hide2!$A89, 'Full set Core Client Indicator'!$A$3:$A$351, 0), MATCH(Selection_Hide2!K$5, 'Full set Core Client Indicator'!$A$3:$AB$3, 0))=\"\", \"\",  INDEX('Full set Core Client Indicator'!$A$3:$AB$351, MATCH(Selection_Hide2!$A89, 'Full set Core Client Indicator'!$A$3:$A$351, 0), MATCH(Selection_Hide2!K$5, 'Full set Core Client Indicator'!$A$3:$AB$3, 0))), \"\")","v":""},{"$f":"IF(K89<>\"\", IF(INDEX('Full set Core Client Indicator'!$A$3:$AB$351, MATCH(Selection_Hide2!$A89, 'Full set Core Client Indicator'!$A$3:$A$351, 0), MATCH(Selection_Hide2!L$5, 'Full set Core Client Indicator'!$A$3:$AB$3, 0))=\"\", \"\",  INDEX('Full set Core Client Indicator'!$A$3:$AB$351, MATCH(Selection_Hide2!$A89, 'Full set Core Client Indicator'!$A$3:$A$351, 0), MATCH(Selection_Hide2!L$5, 'Full set Core Client Indicator'!$A$3:$AB$3, 0))), \"\")","v":""},{"$f":"IF(L89<>\"\", IF(INDEX('Full set Core Client Indicator'!$A$3:$AB$351, MATCH(Selection_Hide2!$A89, 'Full set Core Client Indicator'!$A$3:$A$351, 0), MATCH(Selection_Hide2!M$5, 'Full set Core Client Indicator'!$A$3:$AB$3, 0))=\"\", \"\",  INDEX('Full set Core Client Indicator'!$A$3:$AB$351, MATCH(Selection_Hide2!$A89, 'Full set Core Client Indicator'!$A$3:$A$351, 0), MATCH(Selection_Hide2!M$5, 'Full set Core Client Indicator'!$A$3:$AB$3, 0))), \"\")","v":""},{"$f":"IF(M89<>\"\", IF(INDEX('Full set Core Client Indicator'!$A$3:$AB$351, MATCH(Selection_Hide2!$A89, 'Full set Core Client Indicator'!$A$3:$A$351, 0), MATCH(Selection_Hide2!N$5, 'Full set Core Client Indicator'!$A$3:$AB$3, 0))=\"\", \"\",  INDEX('Full set Core Client Indicator'!$A$3:$AB$351, MATCH(Selection_Hide2!$A89, 'Full set Core Client Indicator'!$A$3:$A$351, 0), MATCH(Selection_Hide2!N$5, 'Full set Core Client Indicator'!$A$3:$AB$3, 0))), \"\")","v":""},{"$f":"IF(N89<>\"\", IF(INDEX('Full set Core Client Indicator'!$A$3:$AB$351, MATCH(Selection_Hide2!$A89, 'Full set Core Client Indicator'!$A$3:$A$351, 0), MATCH(Selection_Hide2!O$5, 'Full set Core Client Indicator'!$A$3:$AB$3, 0))=\"\", \"\",  INDEX('Full set Core Client Indicator'!$A$3:$AB$351, MATCH(Selection_Hide2!$A89, 'Full set Core Client Indicator'!$A$3:$A$351, 0), MATCH(Selection_Hide2!O$5, 'Full set Core Client Indicator'!$A$3:$AB$3, 0))), \"\")","v":""},{"$f":"IF(O89<>\"\", IF(INDEX('Full set Core Client Indicator'!$A$3:$AB$351, MATCH(Selection_Hide2!$A89, 'Full set Core Client Indicator'!$A$3:$A$351, 0), MATCH(Selection_Hide2!P$5, 'Full set Core Client Indicator'!$A$3:$AB$3, 0))=\"\", \"\",  INDEX('Full set Core Client Indicator'!$A$3:$AB$351, MATCH(Selection_Hide2!$A89, 'Full set Core Client Indicator'!$A$3:$A$351, 0), MATCH(Selection_Hide2!P$5, 'Full set Core Client Indicator'!$A$3:$AB$3, 0))), \"\")","v":""},{"$f":"IF(P89<>\"\", IF(INDEX('Full set Core Client Indicator'!$A$3:$AB$351, MATCH(Selection_Hide2!$A89, 'Full set Core Client Indicator'!$A$3:$A$351, 0), MATCH(Selection_Hide2!Q$5, 'Full set Core Client Indicator'!$A$3:$AB$3, 0))=\"\", \"\",  INDEX('Full set Core Client Indicator'!$A$3:$AB$351, MATCH(Selection_Hide2!$A89, 'Full set Core Client Indicator'!$A$3:$A$351, 0), MATCH(Selection_Hide2!Q$5, 'Full set Core Client Indicator'!$A$3:$AB$3, 0))), \"\")","v":""},{"$f":"IF(Q89<>\"\", IF(INDEX('Full set Core Client Indicator'!$A$3:$AB$351, MATCH(Selection_Hide2!$A89, 'Full set Core Client Indicator'!$A$3:$A$351, 0), MATCH(Selection_Hide2!R$5, 'Full set Core Client Indicator'!$A$3:$AB$3, 0))=\"\", \"\",  INDEX('Full set Core Client Indicator'!$A$3:$AB$351, MATCH(Selection_Hide2!$A89, 'Full set Core Client Indicator'!$A$3:$A$351, 0), MATCH(Selection_Hide2!R$5, 'Full set Core Client Indicator'!$A$3:$AB$3, 0))), \"\")","v":""},{"$f":"IF(R89<>\"\", IF(INDEX('Full set Core Client Indicator'!$A$3:$AB$351, MATCH(Selection_Hide2!$A89, 'Full set Core Client Indicator'!$A$3:$A$351, 0), MATCH(Selection_Hide2!S$5, 'Full set Core Client Indicator'!$A$3:$AB$3, 0))=\"\", \"\",  INDEX('Full set Core Client Indicator'!$A$3:$AB$351, MATCH(Selection_Hide2!$A89, 'Full set Core Client Indicator'!$A$3:$A$351, 0), MATCH(Selection_Hide2!S$5, 'Full set Core Client Indicator'!$A$3:$AB$3, 0))), \"\")","v":""},{"$f":"IF(S89<>\"\", IF(INDEX('Full set Core Client Indicator'!$A$3:$AB$351, MATCH(Selection_Hide2!$A89, 'Full set Core Client Indicator'!$A$3:$A$351, 0), MATCH(Selection_Hide2!T$5, 'Full set Core Client Indicator'!$A$3:$AB$3, 0))=\"\", \"\",  INDEX('Full set Core Client Indicator'!$A$3:$AB$351, MATCH(Selection_Hide2!$A89, 'Full set Core Client Indicator'!$A$3:$A$351, 0), MATCH(Selection_Hide2!T$5, 'Full set Core Client Indicator'!$A$3:$AB$3, 0))), \"\")","v":""},{"$f":"IF(T89<>\"\", IF(INDEX('Full set Core Client Indicator'!$A$3:$AB$351, MATCH(Selection_Hide2!$A89, 'Full set Core Client Indicator'!$A$3:$A$351, 0), MATCH(Selection_Hide2!U$5, 'Full set Core Client Indicator'!$A$3:$AB$3, 0))=\"\", \"\",  INDEX('Full set Core Client Indicator'!$A$3:$AB$351, MATCH(Selection_Hide2!$A89, 'Full set Core Client Indicator'!$A$3:$A$351, 0), MATCH(Selection_Hide2!U$5, 'Full set Core Client Indicator'!$A$3:$AB$3, 0))), \"\")","v":""},{"$f":"IF(U89<>\"\", IF(INDEX('Full set Core Client Indicator'!$A$3:$AB$351, MATCH(Selection_Hide2!$A89, 'Full set Core Client Indicator'!$A$3:$A$351, 0), MATCH(Selection_Hide2!V$5, 'Full set Core Client Indicator'!$A$3:$AB$3, 0))=\"\", \"\",  INDEX('Full set Core Client Indicator'!$A$3:$AB$351, MATCH(Selection_Hide2!$A89, 'Full set Core Client Indicator'!$A$3:$A$351, 0), MATCH(Selection_Hide2!V$5, 'Full set Core Client Indicator'!$A$3:$AB$3, 0))), \"\")","v":""},{"$f":"IF(V89<>\"\", IF(INDEX('Full set Core Client Indicator'!$A$3:$AB$351, MATCH(Selection_Hide2!$A89, 'Full set Core Client Indicator'!$A$3:$A$351, 0), MATCH(Selection_Hide2!W$5, 'Full set Core Client Indicator'!$A$3:$AB$3, 0))=\"\", \"\",  INDEX('Full set Core Client Indicator'!$A$3:$AB$351, MATCH(Selection_Hide2!$A89, 'Full set Core Client Indicator'!$A$3:$A$351, 0), MATCH(Selection_Hide2!W$5, 'Full set Core Client Indicator'!$A$3:$AB$3, 0))), \"\")","v":""},{"$f":"IF(W89<>\"\", IF(INDEX('Full set Core Client Indicator'!$A$3:$AB$351, MATCH(Selection_Hide2!$A89, 'Full set Core Client Indicator'!$A$3:$A$351, 0), MATCH(Selection_Hide2!X$5, 'Full set Core Client Indicator'!$A$3:$AB$3, 0))=\"\", \"\",  INDEX('Full set Core Client Indicator'!$A$3:$AB$351, MATCH(Selection_Hide2!$A89, 'Full set Core Client Indicator'!$A$3:$A$351, 0), MATCH(Selection_Hide2!X$5, 'Full set Core Client Indicator'!$A$3:$AB$3, 0))), \"\")","v":""},{"$f":"IF(X89<>\"\", IF(INDEX('Full set Core Client Indicator'!$A$3:$AB$351, MATCH(Selection_Hide2!$A89, 'Full set Core Client Indicator'!$A$3:$A$351, 0), MATCH(Selection_Hide2!Y$5, 'Full set Core Client Indicator'!$A$3:$AB$3, 0))=\"\", \"\",  INDEX('Full set Core Client Indicator'!$A$3:$AB$351, MATCH(Selection_Hide2!$A89, 'Full set Core Client Indicator'!$A$3:$A$351, 0), MATCH(Selection_Hide2!Y$5, 'Full set Core Client Indicator'!$A$3:$AB$3, 0))), \"\")","v":""},{"$f":"IF(Y89<>\"\", IF(INDEX('Full set Core Client Indicator'!$A$3:$AB$351, MATCH(Selection_Hide2!$A89, 'Full set Core Client Indicator'!$A$3:$A$351, 0), MATCH(Selection_Hide2!Z$5, 'Full set Core Client Indicator'!$A$3:$AB$3, 0))=\"\", \"\",  INDEX('Full set Core Client Indicator'!$A$3:$AB$351, MATCH(Selection_Hide2!$A89, 'Full set Core Client Indicator'!$A$3:$A$351, 0), MATCH(Selection_Hide2!Z$5, 'Full set Core Client Indicator'!$A$3:$AB$3, 0))), \"\")","v":""},{"$f":"IF(Z89<>\"\", IF(INDEX('Full set Core Client Indicator'!$A$3:$AB$351, MATCH(Selection_Hide2!$A89, 'Full set Core Client Indicator'!$A$3:$A$351, 0), MATCH(Selection_Hide2!AA$5, 'Full set Core Client Indicator'!$A$3:$AB$3, 0))=\"\", \"\",  INDEX('Full set Core Client Indicator'!$A$3:$AB$351, MATCH(Selection_Hide2!$A89, 'Full set Core Client Indicator'!$A$3:$A$351, 0), MATCH(Selection_Hide2!AA$5, 'Full set Core Client Indicator'!$A$3:$AB$3, 0))), \"\")","v":""},{"$f":"IF(AA89<>\"\", IF(INDEX('Full set Core Client Indicator'!$A$3:$AB$351, MATCH(Selection_Hide2!$A89, 'Full set Core Client Indicator'!$A$3:$A$351, 0), MATCH(Selection_Hide2!AB$5, 'Full set Core Client Indicator'!$A$3:$AB$3, 0))=\"\", \"\",  INDEX('Full set Core Client Indicator'!$A$3:$AB$351, MATCH(Selection_Hide2!$A89, 'Full set Core Client Indicator'!$A$3:$A$351, 0), MATCH(Selection_Hide2!AB$5, 'Full set Core Client Indicator'!$A$3:$AB$3, 0))), \"\")","v":""}]
[{"$f":"IF(AND(Selection_Hide1!C88<>0, Selection_Hide1!C88<>\"Grand Total\"), Selection_Hide1!C88, \"\")","v":""},{"$f":"IF(A90<>\"\", IF(INDEX('Full set Core Client Indicator'!$A$3:$AB$351, MATCH(Selection_Hide2!$A90, 'Full set Core Client Indicator'!$A$3:$A$351, 0), MATCH(Selection_Hide2!B$5, 'Full set Core Client Indicator'!$A$3:$AB$3, 0))=\"\", \"\",  INDEX('Full set Core Client Indicator'!$A$3:$AB$351, MATCH(Selection_Hide2!$A90, 'Full set Core Client Indicator'!$A$3:$A$351, 0), MATCH(Selection_Hide2!B$5, 'Full set Core Client Indicator'!$A$3:$AB$3, 0))), \"\")","v":""},{"$f":"IF(B90<>\"\", IF(INDEX('Full set Core Client Indicator'!$A$3:$AB$351, MATCH(Selection_Hide2!$A90, 'Full set Core Client Indicator'!$A$3:$A$351, 0), MATCH(Selection_Hide2!C$5, 'Full set Core Client Indicator'!$A$3:$AB$3, 0))=\"\", \"\",  INDEX('Full set Core Client Indicator'!$A$3:$AB$351, MATCH(Selection_Hide2!$A90, 'Full set Core Client Indicator'!$A$3:$A$351, 0), MATCH(Selection_Hide2!C$5, 'Full set Core Client Indicator'!$A$3:$AB$3, 0))), \"\")","v":""},{"$f":"IF(C90<>\"\", IF(INDEX('Full set Core Client Indicator'!$A$3:$AB$351, MATCH(Selection_Hide2!$A90, 'Full set Core Client Indicator'!$A$3:$A$351, 0), MATCH(Selection_Hide2!D$5, 'Full set Core Client Indicator'!$A$3:$AB$3, 0))=\"\", \"\",  INDEX('Full set Core Client Indicator'!$A$3:$AB$351, MATCH(Selection_Hide2!$A90, 'Full set Core Client Indicator'!$A$3:$A$351, 0), MATCH(Selection_Hide2!D$5, 'Full set Core Client Indicator'!$A$3:$AB$3, 0))), \"\")","v":""},{"$f":"IF(D90<>\"\", IF(INDEX('Full set Core Client Indicator'!$A$3:$AB$351, MATCH(Selection_Hide2!$A90, 'Full set Core Client Indicator'!$A$3:$A$351, 0), MATCH(Selection_Hide2!E$5, 'Full set Core Client Indicator'!$A$3:$AB$3, 0))=\"\", \"\",  INDEX('Full set Core Client Indicator'!$A$3:$AB$351, MATCH(Selection_Hide2!$A90, 'Full set Core Client Indicator'!$A$3:$A$351, 0), MATCH(Selection_Hide2!E$5, 'Full set Core Client Indicator'!$A$3:$AB$3, 0))), \"\")","v":""},{"$f":"IF(E90<>\"\", IF(INDEX('Full set Core Client Indicator'!$A$3:$AB$351, MATCH(Selection_Hide2!$A90, 'Full set Core Client Indicator'!$A$3:$A$351, 0), MATCH(Selection_Hide2!F$5, 'Full set Core Client Indicator'!$A$3:$AB$3, 0))=\"\", \"\",  INDEX('Full set Core Client Indicator'!$A$3:$AB$351, MATCH(Selection_Hide2!$A90, 'Full set Core Client Indicator'!$A$3:$A$351, 0), MATCH(Selection_Hide2!F$5, 'Full set Core Client Indicator'!$A$3:$AB$3, 0))), \"\")","v":""},{"$f":"IF(F90<>\"\", IF(INDEX('Full set Core Client Indicator'!$A$3:$AB$351, MATCH(Selection_Hide2!$A90, 'Full set Core Client Indicator'!$A$3:$A$351, 0), MATCH(Selection_Hide2!G$5, 'Full set Core Client Indicator'!$A$3:$AB$3, 0))=\"\", \"\",  INDEX('Full set Core Client Indicator'!$A$3:$AB$351, MATCH(Selection_Hide2!$A90, 'Full set Core Client Indicator'!$A$3:$A$351, 0), MATCH(Selection_Hide2!G$5, 'Full set Core Client Indicator'!$A$3:$AB$3, 0))), \"\")","v":""},{"$f":"IF(G90<>\"\", IF(INDEX('Full set Core Client Indicator'!$A$3:$AB$351, MATCH(Selection_Hide2!$A90, 'Full set Core Client Indicator'!$A$3:$A$351, 0), MATCH(Selection_Hide2!H$5, 'Full set Core Client Indicator'!$A$3:$AB$3, 0))=\"\", \"\",  INDEX('Full set Core Client Indicator'!$A$3:$AB$351, MATCH(Selection_Hide2!$A90, 'Full set Core Client Indicator'!$A$3:$A$351, 0), MATCH(Selection_Hide2!H$5, 'Full set Core Client Indicator'!$A$3:$AB$3, 0))), \"\")","v":""},{"$f":"IF(H90<>\"\", IF(INDEX('Full set Core Client Indicator'!$A$3:$AB$351, MATCH(Selection_Hide2!$A90, 'Full set Core Client Indicator'!$A$3:$A$351, 0), MATCH(Selection_Hide2!I$5, 'Full set Core Client Indicator'!$A$3:$AB$3, 0))=\"\", \"\",  INDEX('Full set Core Client Indicator'!$A$3:$AB$351, MATCH(Selection_Hide2!$A90, 'Full set Core Client Indicator'!$A$3:$A$351, 0), MATCH(Selection_Hide2!I$5, 'Full set Core Client Indicator'!$A$3:$AB$3, 0))), \"\")","v":""},{"$f":"IF(I90<>\"\", IF(INDEX('Full set Core Client Indicator'!$A$3:$AB$351, MATCH(Selection_Hide2!$A90, 'Full set Core Client Indicator'!$A$3:$A$351, 0), MATCH(Selection_Hide2!J$5, 'Full set Core Client Indicator'!$A$3:$AB$3, 0))=\"\", \"\",  INDEX('Full set Core Client Indicator'!$A$3:$AB$351, MATCH(Selection_Hide2!$A90, 'Full set Core Client Indicator'!$A$3:$A$351, 0), MATCH(Selection_Hide2!J$5, 'Full set Core Client Indicator'!$A$3:$AB$3, 0))), \"\")","v":""},{"$f":"IF(J90<>\"\", IF(INDEX('Full set Core Client Indicator'!$A$3:$AB$351, MATCH(Selection_Hide2!$A90, 'Full set Core Client Indicator'!$A$3:$A$351, 0), MATCH(Selection_Hide2!K$5, 'Full set Core Client Indicator'!$A$3:$AB$3, 0))=\"\", \"\",  INDEX('Full set Core Client Indicator'!$A$3:$AB$351, MATCH(Selection_Hide2!$A90, 'Full set Core Client Indicator'!$A$3:$A$351, 0), MATCH(Selection_Hide2!K$5, 'Full set Core Client Indicator'!$A$3:$AB$3, 0))), \"\")","v":""},{"$f":"IF(K90<>\"\", IF(INDEX('Full set Core Client Indicator'!$A$3:$AB$351, MATCH(Selection_Hide2!$A90, 'Full set Core Client Indicator'!$A$3:$A$351, 0), MATCH(Selection_Hide2!L$5, 'Full set Core Client Indicator'!$A$3:$AB$3, 0))=\"\", \"\",  INDEX('Full set Core Client Indicator'!$A$3:$AB$351, MATCH(Selection_Hide2!$A90, 'Full set Core Client Indicator'!$A$3:$A$351, 0), MATCH(Selection_Hide2!L$5, 'Full set Core Client Indicator'!$A$3:$AB$3, 0))), \"\")","v":""},{"$f":"IF(L90<>\"\", IF(INDEX('Full set Core Client Indicator'!$A$3:$AB$351, MATCH(Selection_Hide2!$A90, 'Full set Core Client Indicator'!$A$3:$A$351, 0), MATCH(Selection_Hide2!M$5, 'Full set Core Client Indicator'!$A$3:$AB$3, 0))=\"\", \"\",  INDEX('Full set Core Client Indicator'!$A$3:$AB$351, MATCH(Selection_Hide2!$A90, 'Full set Core Client Indicator'!$A$3:$A$351, 0), MATCH(Selection_Hide2!M$5, 'Full set Core Client Indicator'!$A$3:$AB$3, 0))), \"\")","v":""},{"$f":"IF(M90<>\"\", IF(INDEX('Full set Core Client Indicator'!$A$3:$AB$351, MATCH(Selection_Hide2!$A90, 'Full set Core Client Indicator'!$A$3:$A$351, 0), MATCH(Selection_Hide2!N$5, 'Full set Core Client Indicator'!$A$3:$AB$3, 0))=\"\", \"\",  INDEX('Full set Core Client Indicator'!$A$3:$AB$351, MATCH(Selection_Hide2!$A90, 'Full set Core Client Indicator'!$A$3:$A$351, 0), MATCH(Selection_Hide2!N$5, 'Full set Core Client Indicator'!$A$3:$AB$3, 0))), \"\")","v":""},{"$f":"IF(N90<>\"\", IF(INDEX('Full set Core Client Indicator'!$A$3:$AB$351, MATCH(Selection_Hide2!$A90, 'Full set Core Client Indicator'!$A$3:$A$351, 0), MATCH(Selection_Hide2!O$5, 'Full set Core Client Indicator'!$A$3:$AB$3, 0))=\"\", \"\",  INDEX('Full set Core Client Indicator'!$A$3:$AB$351, MATCH(Selection_Hide2!$A90, 'Full set Core Client Indicator'!$A$3:$A$351, 0), MATCH(Selection_Hide2!O$5, 'Full set Core Client Indicator'!$A$3:$AB$3, 0))), \"\")","v":""},{"$f":"IF(O90<>\"\", IF(INDEX('Full set Core Client Indicator'!$A$3:$AB$351, MATCH(Selection_Hide2!$A90, 'Full set Core Client Indicator'!$A$3:$A$351, 0), MATCH(Selection_Hide2!P$5, 'Full set Core Client Indicator'!$A$3:$AB$3, 0))=\"\", \"\",  INDEX('Full set Core Client Indicator'!$A$3:$AB$351, MATCH(Selection_Hide2!$A90, 'Full set Core Client Indicator'!$A$3:$A$351, 0), MATCH(Selection_Hide2!P$5, 'Full set Core Client Indicator'!$A$3:$AB$3, 0))), \"\")","v":""},{"$f":"IF(P90<>\"\", IF(INDEX('Full set Core Client Indicator'!$A$3:$AB$351, MATCH(Selection_Hide2!$A90, 'Full set Core Client Indicator'!$A$3:$A$351, 0), MATCH(Selection_Hide2!Q$5, 'Full set Core Client Indicator'!$A$3:$AB$3, 0))=\"\", \"\",  INDEX('Full set Core Client Indicator'!$A$3:$AB$351, MATCH(Selection_Hide2!$A90, 'Full set Core Client Indicator'!$A$3:$A$351, 0), MATCH(Selection_Hide2!Q$5, 'Full set Core Client Indicator'!$A$3:$AB$3, 0))), \"\")","v":""},{"$f":"IF(Q90<>\"\", IF(INDEX('Full set Core Client Indicator'!$A$3:$AB$351, MATCH(Selection_Hide2!$A90, 'Full set Core Client Indicator'!$A$3:$A$351, 0), MATCH(Selection_Hide2!R$5, 'Full set Core Client Indicator'!$A$3:$AB$3, 0))=\"\", \"\",  INDEX('Full set Core Client Indicator'!$A$3:$AB$351, MATCH(Selection_Hide2!$A90, 'Full set Core Client Indicator'!$A$3:$A$351, 0), MATCH(Selection_Hide2!R$5, 'Full set Core Client Indicator'!$A$3:$AB$3, 0))), \"\")","v":""},{"$f":"IF(R90<>\"\", IF(INDEX('Full set Core Client Indicator'!$A$3:$AB$351, MATCH(Selection_Hide2!$A90, 'Full set Core Client Indicator'!$A$3:$A$351, 0), MATCH(Selection_Hide2!S$5, 'Full set Core Client Indicator'!$A$3:$AB$3, 0))=\"\", \"\",  INDEX('Full set Core Client Indicator'!$A$3:$AB$351, MATCH(Selection_Hide2!$A90, 'Full set Core Client Indicator'!$A$3:$A$351, 0), MATCH(Selection_Hide2!S$5, 'Full set Core Client Indicator'!$A$3:$AB$3, 0))), \"\")","v":""},{"$f":"IF(S90<>\"\", IF(INDEX('Full set Core Client Indicator'!$A$3:$AB$351, MATCH(Selection_Hide2!$A90, 'Full set Core Client Indicator'!$A$3:$A$351, 0), MATCH(Selection_Hide2!T$5, 'Full set Core Client Indicator'!$A$3:$AB$3, 0))=\"\", \"\",  INDEX('Full set Core Client Indicator'!$A$3:$AB$351, MATCH(Selection_Hide2!$A90, 'Full set Core Client Indicator'!$A$3:$A$351, 0), MATCH(Selection_Hide2!T$5, 'Full set Core Client Indicator'!$A$3:$AB$3, 0))), \"\")","v":""},{"$f":"IF(T90<>\"\", IF(INDEX('Full set Core Client Indicator'!$A$3:$AB$351, MATCH(Selection_Hide2!$A90, 'Full set Core Client Indicator'!$A$3:$A$351, 0), MATCH(Selection_Hide2!U$5, 'Full set Core Client Indicator'!$A$3:$AB$3, 0))=\"\", \"\",  INDEX('Full set Core Client Indicator'!$A$3:$AB$351, MATCH(Selection_Hide2!$A90, 'Full set Core Client Indicator'!$A$3:$A$351, 0), MATCH(Selection_Hide2!U$5, 'Full set Core Client Indicator'!$A$3:$AB$3, 0))), \"\")","v":""},{"$f":"IF(U90<>\"\", IF(INDEX('Full set Core Client Indicator'!$A$3:$AB$351, MATCH(Selection_Hide2!$A90, 'Full set Core Client Indicator'!$A$3:$A$351, 0), MATCH(Selection_Hide2!V$5, 'Full set Core Client Indicator'!$A$3:$AB$3, 0))=\"\", \"\",  INDEX('Full set Core Client Indicator'!$A$3:$AB$351, MATCH(Selection_Hide2!$A90, 'Full set Core Client Indicator'!$A$3:$A$351, 0), MATCH(Selection_Hide2!V$5, 'Full set Core Client Indicator'!$A$3:$AB$3, 0))), \"\")","v":""},{"$f":"IF(V90<>\"\", IF(INDEX('Full set Core Client Indicator'!$A$3:$AB$351, MATCH(Selection_Hide2!$A90, 'Full set Core Client Indicator'!$A$3:$A$351, 0), MATCH(Selection_Hide2!W$5, 'Full set Core Client Indicator'!$A$3:$AB$3, 0))=\"\", \"\",  INDEX('Full set Core Client Indicator'!$A$3:$AB$351, MATCH(Selection_Hide2!$A90, 'Full set Core Client Indicator'!$A$3:$A$351, 0), MATCH(Selection_Hide2!W$5, 'Full set Core Client Indicator'!$A$3:$AB$3, 0))), \"\")","v":""},{"$f":"IF(W90<>\"\", IF(INDEX('Full set Core Client Indicator'!$A$3:$AB$351, MATCH(Selection_Hide2!$A90, 'Full set Core Client Indicator'!$A$3:$A$351, 0), MATCH(Selection_Hide2!X$5, 'Full set Core Client Indicator'!$A$3:$AB$3, 0))=\"\", \"\",  INDEX('Full set Core Client Indicator'!$A$3:$AB$351, MATCH(Selection_Hide2!$A90, 'Full set Core Client Indicator'!$A$3:$A$351, 0), MATCH(Selection_Hide2!X$5, 'Full set Core Client Indicator'!$A$3:$AB$3, 0))), \"\")","v":""},{"$f":"IF(X90<>\"\", IF(INDEX('Full set Core Client Indicator'!$A$3:$AB$351, MATCH(Selection_Hide2!$A90, 'Full set Core Client Indicator'!$A$3:$A$351, 0), MATCH(Selection_Hide2!Y$5, 'Full set Core Client Indicator'!$A$3:$AB$3, 0))=\"\", \"\",  INDEX('Full set Core Client Indicator'!$A$3:$AB$351, MATCH(Selection_Hide2!$A90, 'Full set Core Client Indicator'!$A$3:$A$351, 0), MATCH(Selection_Hide2!Y$5, 'Full set Core Client Indicator'!$A$3:$AB$3, 0))), \"\")","v":""},{"$f":"IF(Y90<>\"\", IF(INDEX('Full set Core Client Indicator'!$A$3:$AB$351, MATCH(Selection_Hide2!$A90, 'Full set Core Client Indicator'!$A$3:$A$351, 0), MATCH(Selection_Hide2!Z$5, 'Full set Core Client Indicator'!$A$3:$AB$3, 0))=\"\", \"\",  INDEX('Full set Core Client Indicator'!$A$3:$AB$351, MATCH(Selection_Hide2!$A90, 'Full set Core Client Indicator'!$A$3:$A$351, 0), MATCH(Selection_Hide2!Z$5, 'Full set Core Client Indicator'!$A$3:$AB$3, 0))), \"\")","v":""},{"$f":"IF(Z90<>\"\", IF(INDEX('Full set Core Client Indicator'!$A$3:$AB$351, MATCH(Selection_Hide2!$A90, 'Full set Core Client Indicator'!$A$3:$A$351, 0), MATCH(Selection_Hide2!AA$5, 'Full set Core Client Indicator'!$A$3:$AB$3, 0))=\"\", \"\",  INDEX('Full set Core Client Indicator'!$A$3:$AB$351, MATCH(Selection_Hide2!$A90, 'Full set Core Client Indicator'!$A$3:$A$351, 0), MATCH(Selection_Hide2!AA$5, 'Full set Core Client Indicator'!$A$3:$AB$3, 0))), \"\")","v":""},{"$f":"IF(AA90<>\"\", IF(INDEX('Full set Core Client Indicator'!$A$3:$AB$351, MATCH(Selection_Hide2!$A90, 'Full set Core Client Indicator'!$A$3:$A$351, 0), MATCH(Selection_Hide2!AB$5, 'Full set Core Client Indicator'!$A$3:$AB$3, 0))=\"\", \"\",  INDEX('Full set Core Client Indicator'!$A$3:$AB$351, MATCH(Selection_Hide2!$A90, 'Full set Core Client Indicator'!$A$3:$A$351, 0), MATCH(Selection_Hide2!AB$5, 'Full set Core Client Indicator'!$A$3:$AB$3, 0))), \"\")","v":""}]
[{"$f":"IF(AND(Selection_Hide1!C89<>0, Selection_Hide1!C89<>\"Grand Total\"), Selection_Hide1!C89, \"\")","v":""},{"$f":"IF(A91<>\"\", IF(INDEX('Full set Core Client Indicator'!$A$3:$AB$351, MATCH(Selection_Hide2!$A91, 'Full set Core Client Indicator'!$A$3:$A$351, 0), MATCH(Selection_Hide2!B$5, 'Full set Core Client Indicator'!$A$3:$AB$3, 0))=\"\", \"\",  INDEX('Full set Core Client Indicator'!$A$3:$AB$351, MATCH(Selection_Hide2!$A91, 'Full set Core Client Indicator'!$A$3:$A$351, 0), MATCH(Selection_Hide2!B$5, 'Full set Core Client Indicator'!$A$3:$AB$3, 0))), \"\")","v":""},{"$f":"IF(B91<>\"\", IF(INDEX('Full set Core Client Indicator'!$A$3:$AB$351, MATCH(Selection_Hide2!$A91, 'Full set Core Client Indicator'!$A$3:$A$351, 0), MATCH(Selection_Hide2!C$5, 'Full set Core Client Indicator'!$A$3:$AB$3, 0))=\"\", \"\",  INDEX('Full set Core Client Indicator'!$A$3:$AB$351, MATCH(Selection_Hide2!$A91, 'Full set Core Client Indicator'!$A$3:$A$351, 0), MATCH(Selection_Hide2!C$5, 'Full set Core Client Indicator'!$A$3:$AB$3, 0))), \"\")","v":""},{"$f":"IF(C91<>\"\", IF(INDEX('Full set Core Client Indicator'!$A$3:$AB$351, MATCH(Selection_Hide2!$A91, 'Full set Core Client Indicator'!$A$3:$A$351, 0), MATCH(Selection_Hide2!D$5, 'Full set Core Client Indicator'!$A$3:$AB$3, 0))=\"\", \"\",  INDEX('Full set Core Client Indicator'!$A$3:$AB$351, MATCH(Selection_Hide2!$A91, 'Full set Core Client Indicator'!$A$3:$A$351, 0), MATCH(Selection_Hide2!D$5, 'Full set Core Client Indicator'!$A$3:$AB$3, 0))), \"\")","v":""},{"$f":"IF(D91<>\"\", IF(INDEX('Full set Core Client Indicator'!$A$3:$AB$351, MATCH(Selection_Hide2!$A91, 'Full set Core Client Indicator'!$A$3:$A$351, 0), MATCH(Selection_Hide2!E$5, 'Full set Core Client Indicator'!$A$3:$AB$3, 0))=\"\", \"\",  INDEX('Full set Core Client Indicator'!$A$3:$AB$351, MATCH(Selection_Hide2!$A91, 'Full set Core Client Indicator'!$A$3:$A$351, 0), MATCH(Selection_Hide2!E$5, 'Full set Core Client Indicator'!$A$3:$AB$3, 0))), \"\")","v":""},{"$f":"IF(E91<>\"\", IF(INDEX('Full set Core Client Indicator'!$A$3:$AB$351, MATCH(Selection_Hide2!$A91, 'Full set Core Client Indicator'!$A$3:$A$351, 0), MATCH(Selection_Hide2!F$5, 'Full set Core Client Indicator'!$A$3:$AB$3, 0))=\"\", \"\",  INDEX('Full set Core Client Indicator'!$A$3:$AB$351, MATCH(Selection_Hide2!$A91, 'Full set Core Client Indicator'!$A$3:$A$351, 0), MATCH(Selection_Hide2!F$5, 'Full set Core Client Indicator'!$A$3:$AB$3, 0))), \"\")","v":""},{"$f":"IF(F91<>\"\", IF(INDEX('Full set Core Client Indicator'!$A$3:$AB$351, MATCH(Selection_Hide2!$A91, 'Full set Core Client Indicator'!$A$3:$A$351, 0), MATCH(Selection_Hide2!G$5, 'Full set Core Client Indicator'!$A$3:$AB$3, 0))=\"\", \"\",  INDEX('Full set Core Client Indicator'!$A$3:$AB$351, MATCH(Selection_Hide2!$A91, 'Full set Core Client Indicator'!$A$3:$A$351, 0), MATCH(Selection_Hide2!G$5, 'Full set Core Client Indicator'!$A$3:$AB$3, 0))), \"\")","v":""},{"$f":"IF(G91<>\"\", IF(INDEX('Full set Core Client Indicator'!$A$3:$AB$351, MATCH(Selection_Hide2!$A91, 'Full set Core Client Indicator'!$A$3:$A$351, 0), MATCH(Selection_Hide2!H$5, 'Full set Core Client Indicator'!$A$3:$AB$3, 0))=\"\", \"\",  INDEX('Full set Core Client Indicator'!$A$3:$AB$351, MATCH(Selection_Hide2!$A91, 'Full set Core Client Indicator'!$A$3:$A$351, 0), MATCH(Selection_Hide2!H$5, 'Full set Core Client Indicator'!$A$3:$AB$3, 0))), \"\")","v":""},{"$f":"IF(H91<>\"\", IF(INDEX('Full set Core Client Indicator'!$A$3:$AB$351, MATCH(Selection_Hide2!$A91, 'Full set Core Client Indicator'!$A$3:$A$351, 0), MATCH(Selection_Hide2!I$5, 'Full set Core Client Indicator'!$A$3:$AB$3, 0))=\"\", \"\",  INDEX('Full set Core Client Indicator'!$A$3:$AB$351, MATCH(Selection_Hide2!$A91, 'Full set Core Client Indicator'!$A$3:$A$351, 0), MATCH(Selection_Hide2!I$5, 'Full set Core Client Indicator'!$A$3:$AB$3, 0))), \"\")","v":""},{"$f":"IF(I91<>\"\", IF(INDEX('Full set Core Client Indicator'!$A$3:$AB$351, MATCH(Selection_Hide2!$A91, 'Full set Core Client Indicator'!$A$3:$A$351, 0), MATCH(Selection_Hide2!J$5, 'Full set Core Client Indicator'!$A$3:$AB$3, 0))=\"\", \"\",  INDEX('Full set Core Client Indicator'!$A$3:$AB$351, MATCH(Selection_Hide2!$A91, 'Full set Core Client Indicator'!$A$3:$A$351, 0), MATCH(Selection_Hide2!J$5, 'Full set Core Client Indicator'!$A$3:$AB$3, 0))), \"\")","v":""},{"$f":"IF(J91<>\"\", IF(INDEX('Full set Core Client Indicator'!$A$3:$AB$351, MATCH(Selection_Hide2!$A91, 'Full set Core Client Indicator'!$A$3:$A$351, 0), MATCH(Selection_Hide2!K$5, 'Full set Core Client Indicator'!$A$3:$AB$3, 0))=\"\", \"\",  INDEX('Full set Core Client Indicator'!$A$3:$AB$351, MATCH(Selection_Hide2!$A91, 'Full set Core Client Indicator'!$A$3:$A$351, 0), MATCH(Selection_Hide2!K$5, 'Full set Core Client Indicator'!$A$3:$AB$3, 0))), \"\")","v":""},{"$f":"IF(K91<>\"\", IF(INDEX('Full set Core Client Indicator'!$A$3:$AB$351, MATCH(Selection_Hide2!$A91, 'Full set Core Client Indicator'!$A$3:$A$351, 0), MATCH(Selection_Hide2!L$5, 'Full set Core Client Indicator'!$A$3:$AB$3, 0))=\"\", \"\",  INDEX('Full set Core Client Indicator'!$A$3:$AB$351, MATCH(Selection_Hide2!$A91, 'Full set Core Client Indicator'!$A$3:$A$351, 0), MATCH(Selection_Hide2!L$5, 'Full set Core Client Indicator'!$A$3:$AB$3, 0))), \"\")","v":""},{"$f":"IF(L91<>\"\", IF(INDEX('Full set Core Client Indicator'!$A$3:$AB$351, MATCH(Selection_Hide2!$A91, 'Full set Core Client Indicator'!$A$3:$A$351, 0), MATCH(Selection_Hide2!M$5, 'Full set Core Client Indicator'!$A$3:$AB$3, 0))=\"\", \"\",  INDEX('Full set Core Client Indicator'!$A$3:$AB$351, MATCH(Selection_Hide2!$A91, 'Full set Core Client Indicator'!$A$3:$A$351, 0), MATCH(Selection_Hide2!M$5, 'Full set Core Client Indicator'!$A$3:$AB$3, 0))), \"\")","v":""},{"$f":"IF(M91<>\"\", IF(INDEX('Full set Core Client Indicator'!$A$3:$AB$351, MATCH(Selection_Hide2!$A91, 'Full set Core Client Indicator'!$A$3:$A$351, 0), MATCH(Selection_Hide2!N$5, 'Full set Core Client Indicator'!$A$3:$AB$3, 0))=\"\", \"\",  INDEX('Full set Core Client Indicator'!$A$3:$AB$351, MATCH(Selection_Hide2!$A91, 'Full set Core Client Indicator'!$A$3:$A$351, 0), MATCH(Selection_Hide2!N$5, 'Full set Core Client Indicator'!$A$3:$AB$3, 0))), \"\")","v":""},{"$f":"IF(N91<>\"\", IF(INDEX('Full set Core Client Indicator'!$A$3:$AB$351, MATCH(Selection_Hide2!$A91, 'Full set Core Client Indicator'!$A$3:$A$351, 0), MATCH(Selection_Hide2!O$5, 'Full set Core Client Indicator'!$A$3:$AB$3, 0))=\"\", \"\",  INDEX('Full set Core Client Indicator'!$A$3:$AB$351, MATCH(Selection_Hide2!$A91, 'Full set Core Client Indicator'!$A$3:$A$351, 0), MATCH(Selection_Hide2!O$5, 'Full set Core Client Indicator'!$A$3:$AB$3, 0))), \"\")","v":""},{"$f":"IF(O91<>\"\", IF(INDEX('Full set Core Client Indicator'!$A$3:$AB$351, MATCH(Selection_Hide2!$A91, 'Full set Core Client Indicator'!$A$3:$A$351, 0), MATCH(Selection_Hide2!P$5, 'Full set Core Client Indicator'!$A$3:$AB$3, 0))=\"\", \"\",  INDEX('Full set Core Client Indicator'!$A$3:$AB$351, MATCH(Selection_Hide2!$A91, 'Full set Core Client Indicator'!$A$3:$A$351, 0), MATCH(Selection_Hide2!P$5, 'Full set Core Client Indicator'!$A$3:$AB$3, 0))), \"\")","v":""},{"$f":"IF(P91<>\"\", IF(INDEX('Full set Core Client Indicator'!$A$3:$AB$351, MATCH(Selection_Hide2!$A91, 'Full set Core Client Indicator'!$A$3:$A$351, 0), MATCH(Selection_Hide2!Q$5, 'Full set Core Client Indicator'!$A$3:$AB$3, 0))=\"\", \"\",  INDEX('Full set Core Client Indicator'!$A$3:$AB$351, MATCH(Selection_Hide2!$A91, 'Full set Core Client Indicator'!$A$3:$A$351, 0), MATCH(Selection_Hide2!Q$5, 'Full set Core Client Indicator'!$A$3:$AB$3, 0))), \"\")","v":""},{"$f":"IF(Q91<>\"\", IF(INDEX('Full set Core Client Indicator'!$A$3:$AB$351, MATCH(Selection_Hide2!$A91, 'Full set Core Client Indicator'!$A$3:$A$351, 0), MATCH(Selection_Hide2!R$5, 'Full set Core Client Indicator'!$A$3:$AB$3, 0))=\"\", \"\",  INDEX('Full set Core Client Indicator'!$A$3:$AB$351, MATCH(Selection_Hide2!$A91, 'Full set Core Client Indicator'!$A$3:$A$351, 0), MATCH(Selection_Hide2!R$5, 'Full set Core Client Indicator'!$A$3:$AB$3, 0))), \"\")","v":""},{"$f":"IF(R91<>\"\", IF(INDEX('Full set Core Client Indicator'!$A$3:$AB$351, MATCH(Selection_Hide2!$A91, 'Full set Core Client Indicator'!$A$3:$A$351, 0), MATCH(Selection_Hide2!S$5, 'Full set Core Client Indicator'!$A$3:$AB$3, 0))=\"\", \"\",  INDEX('Full set Core Client Indicator'!$A$3:$AB$351, MATCH(Selection_Hide2!$A91, 'Full set Core Client Indicator'!$A$3:$A$351, 0), MATCH(Selection_Hide2!S$5, 'Full set Core Client Indicator'!$A$3:$AB$3, 0))), \"\")","v":""},{"$f":"IF(S91<>\"\", IF(INDEX('Full set Core Client Indicator'!$A$3:$AB$351, MATCH(Selection_Hide2!$A91, 'Full set Core Client Indicator'!$A$3:$A$351, 0), MATCH(Selection_Hide2!T$5, 'Full set Core Client Indicator'!$A$3:$AB$3, 0))=\"\", \"\",  INDEX('Full set Core Client Indicator'!$A$3:$AB$351, MATCH(Selection_Hide2!$A91, 'Full set Core Client Indicator'!$A$3:$A$351, 0), MATCH(Selection_Hide2!T$5, 'Full set Core Client Indicator'!$A$3:$AB$3, 0))), \"\")","v":""},{"$f":"IF(T91<>\"\", IF(INDEX('Full set Core Client Indicator'!$A$3:$AB$351, MATCH(Selection_Hide2!$A91, 'Full set Core Client Indicator'!$A$3:$A$351, 0), MATCH(Selection_Hide2!U$5, 'Full set Core Client Indicator'!$A$3:$AB$3, 0))=\"\", \"\",  INDEX('Full set Core Client Indicator'!$A$3:$AB$351, MATCH(Selection_Hide2!$A91, 'Full set Core Client Indicator'!$A$3:$A$351, 0), MATCH(Selection_Hide2!U$5, 'Full set Core Client Indicator'!$A$3:$AB$3, 0))), \"\")","v":""},{"$f":"IF(U91<>\"\", IF(INDEX('Full set Core Client Indicator'!$A$3:$AB$351, MATCH(Selection_Hide2!$A91, 'Full set Core Client Indicator'!$A$3:$A$351, 0), MATCH(Selection_Hide2!V$5, 'Full set Core Client Indicator'!$A$3:$AB$3, 0))=\"\", \"\",  INDEX('Full set Core Client Indicator'!$A$3:$AB$351, MATCH(Selection_Hide2!$A91, 'Full set Core Client Indicator'!$A$3:$A$351, 0), MATCH(Selection_Hide2!V$5, 'Full set Core Client Indicator'!$A$3:$AB$3, 0))), \"\")","v":""},{"$f":"IF(V91<>\"\", IF(INDEX('Full set Core Client Indicator'!$A$3:$AB$351, MATCH(Selection_Hide2!$A91, 'Full set Core Client Indicator'!$A$3:$A$351, 0), MATCH(Selection_Hide2!W$5, 'Full set Core Client Indicator'!$A$3:$AB$3, 0))=\"\", \"\",  INDEX('Full set Core Client Indicator'!$A$3:$AB$351, MATCH(Selection_Hide2!$A91, 'Full set Core Client Indicator'!$A$3:$A$351, 0), MATCH(Selection_Hide2!W$5, 'Full set Core Client Indicator'!$A$3:$AB$3, 0))), \"\")","v":""},{"$f":"IF(W91<>\"\", IF(INDEX('Full set Core Client Indicator'!$A$3:$AB$351, MATCH(Selection_Hide2!$A91, 'Full set Core Client Indicator'!$A$3:$A$351, 0), MATCH(Selection_Hide2!X$5, 'Full set Core Client Indicator'!$A$3:$AB$3, 0))=\"\", \"\",  INDEX('Full set Core Client Indicator'!$A$3:$AB$351, MATCH(Selection_Hide2!$A91, 'Full set Core Client Indicator'!$A$3:$A$351, 0), MATCH(Selection_Hide2!X$5, 'Full set Core Client Indicator'!$A$3:$AB$3, 0))), \"\")","v":""},{"$f":"IF(X91<>\"\", IF(INDEX('Full set Core Client Indicator'!$A$3:$AB$351, MATCH(Selection_Hide2!$A91, 'Full set Core Client Indicator'!$A$3:$A$351, 0), MATCH(Selection_Hide2!Y$5, 'Full set Core Client Indicator'!$A$3:$AB$3, 0))=\"\", \"\",  INDEX('Full set Core Client Indicator'!$A$3:$AB$351, MATCH(Selection_Hide2!$A91, 'Full set Core Client Indicator'!$A$3:$A$351, 0), MATCH(Selection_Hide2!Y$5, 'Full set Core Client Indicator'!$A$3:$AB$3, 0))), \"\")","v":""},{"$f":"IF(Y91<>\"\", IF(INDEX('Full set Core Client Indicator'!$A$3:$AB$351, MATCH(Selection_Hide2!$A91, 'Full set Core Client Indicator'!$A$3:$A$351, 0), MATCH(Selection_Hide2!Z$5, 'Full set Core Client Indicator'!$A$3:$AB$3, 0))=\"\", \"\",  INDEX('Full set Core Client Indicator'!$A$3:$AB$351, MATCH(Selection_Hide2!$A91, 'Full set Core Client Indicator'!$A$3:$A$351, 0), MATCH(Selection_Hide2!Z$5, 'Full set Core Client Indicator'!$A$3:$AB$3, 0))), \"\")","v":""},{"$f":"IF(Z91<>\"\", IF(INDEX('Full set Core Client Indicator'!$A$3:$AB$351, MATCH(Selection_Hide2!$A91, 'Full set Core Client Indicator'!$A$3:$A$351, 0), MATCH(Selection_Hide2!AA$5, 'Full set Core Client Indicator'!$A$3:$AB$3, 0))=\"\", \"\",  INDEX('Full set Core Client Indicator'!$A$3:$AB$351, MATCH(Selection_Hide2!$A91, 'Full set Core Client Indicator'!$A$3:$A$351, 0), MATCH(Selection_Hide2!AA$5, 'Full set Core Client Indicator'!$A$3:$AB$3, 0))), \"\")","v":""},{"$f":"IF(AA91<>\"\", IF(INDEX('Full set Core Client Indicator'!$A$3:$AB$351, MATCH(Selection_Hide2!$A91, 'Full set Core Client Indicator'!$A$3:$A$351, 0), MATCH(Selection_Hide2!AB$5, 'Full set Core Client Indicator'!$A$3:$AB$3, 0))=\"\", \"\",  INDEX('Full set Core Client Indicator'!$A$3:$AB$351, MATCH(Selection_Hide2!$A91, 'Full set Core Client Indicator'!$A$3:$A$351, 0), MATCH(Selection_Hide2!AB$5, 'Full set Core Client Indicator'!$A$3:$AB$3, 0))), \"\")","v":""}]
[{"$f":"IF(AND(Selection_Hide1!C90<>0, Selection_Hide1!C90<>\"Grand Total\"), Selection_Hide1!C90, \"\")","v":""},{"$f":"IF(A92<>\"\", IF(INDEX('Full set Core Client Indicator'!$A$3:$AB$351, MATCH(Selection_Hide2!$A92, 'Full set Core Client Indicator'!$A$3:$A$351, 0), MATCH(Selection_Hide2!B$5, 'Full set Core Client Indicator'!$A$3:$AB$3, 0))=\"\", \"\",  INDEX('Full set Core Client Indicator'!$A$3:$AB$351, MATCH(Selection_Hide2!$A92, 'Full set Core Client Indicator'!$A$3:$A$351, 0), MATCH(Selection_Hide2!B$5, 'Full set Core Client Indicator'!$A$3:$AB$3, 0))), \"\")","v":""},{"$f":"IF(B92<>\"\", IF(INDEX('Full set Core Client Indicator'!$A$3:$AB$351, MATCH(Selection_Hide2!$A92, 'Full set Core Client Indicator'!$A$3:$A$351, 0), MATCH(Selection_Hide2!C$5, 'Full set Core Client Indicator'!$A$3:$AB$3, 0))=\"\", \"\",  INDEX('Full set Core Client Indicator'!$A$3:$AB$351, MATCH(Selection_Hide2!$A92, 'Full set Core Client Indicator'!$A$3:$A$351, 0), MATCH(Selection_Hide2!C$5, 'Full set Core Client Indicator'!$A$3:$AB$3, 0))), \"\")","v":""},{"$f":"IF(C92<>\"\", IF(INDEX('Full set Core Client Indicator'!$A$3:$AB$351, MATCH(Selection_Hide2!$A92, 'Full set Core Client Indicator'!$A$3:$A$351, 0), MATCH(Selection_Hide2!D$5, 'Full set Core Client Indicator'!$A$3:$AB$3, 0))=\"\", \"\",  INDEX('Full set Core Client Indicator'!$A$3:$AB$351, MATCH(Selection_Hide2!$A92, 'Full set Core Client Indicator'!$A$3:$A$351, 0), MATCH(Selection_Hide2!D$5, 'Full set Core Client Indicator'!$A$3:$AB$3, 0))), \"\")","v":""},{"$f":"IF(D92<>\"\", IF(INDEX('Full set Core Client Indicator'!$A$3:$AB$351, MATCH(Selection_Hide2!$A92, 'Full set Core Client Indicator'!$A$3:$A$351, 0), MATCH(Selection_Hide2!E$5, 'Full set Core Client Indicator'!$A$3:$AB$3, 0))=\"\", \"\",  INDEX('Full set Core Client Indicator'!$A$3:$AB$351, MATCH(Selection_Hide2!$A92, 'Full set Core Client Indicator'!$A$3:$A$351, 0), MATCH(Selection_Hide2!E$5, 'Full set Core Client Indicator'!$A$3:$AB$3, 0))), \"\")","v":""},{"$f":"IF(E92<>\"\", IF(INDEX('Full set Core Client Indicator'!$A$3:$AB$351, MATCH(Selection_Hide2!$A92, 'Full set Core Client Indicator'!$A$3:$A$351, 0), MATCH(Selection_Hide2!F$5, 'Full set Core Client Indicator'!$A$3:$AB$3, 0))=\"\", \"\",  INDEX('Full set Core Client Indicator'!$A$3:$AB$351, MATCH(Selection_Hide2!$A92, 'Full set Core Client Indicator'!$A$3:$A$351, 0), MATCH(Selection_Hide2!F$5, 'Full set Core Client Indicator'!$A$3:$AB$3, 0))), \"\")","v":""},{"$f":"IF(F92<>\"\", IF(INDEX('Full set Core Client Indicator'!$A$3:$AB$351, MATCH(Selection_Hide2!$A92, 'Full set Core Client Indicator'!$A$3:$A$351, 0), MATCH(Selection_Hide2!G$5, 'Full set Core Client Indicator'!$A$3:$AB$3, 0))=\"\", \"\",  INDEX('Full set Core Client Indicator'!$A$3:$AB$351, MATCH(Selection_Hide2!$A92, 'Full set Core Client Indicator'!$A$3:$A$351, 0), MATCH(Selection_Hide2!G$5, 'Full set Core Client Indicator'!$A$3:$AB$3, 0))), \"\")","v":""},{"$f":"IF(G92<>\"\", IF(INDEX('Full set Core Client Indicator'!$A$3:$AB$351, MATCH(Selection_Hide2!$A92, 'Full set Core Client Indicator'!$A$3:$A$351, 0), MATCH(Selection_Hide2!H$5, 'Full set Core Client Indicator'!$A$3:$AB$3, 0))=\"\", \"\",  INDEX('Full set Core Client Indicator'!$A$3:$AB$351, MATCH(Selection_Hide2!$A92, 'Full set Core Client Indicator'!$A$3:$A$351, 0), MATCH(Selection_Hide2!H$5, 'Full set Core Client Indicator'!$A$3:$AB$3, 0))), \"\")","v":""},{"$f":"IF(H92<>\"\", IF(INDEX('Full set Core Client Indicator'!$A$3:$AB$351, MATCH(Selection_Hide2!$A92, 'Full set Core Client Indicator'!$A$3:$A$351, 0), MATCH(Selection_Hide2!I$5, 'Full set Core Client Indicator'!$A$3:$AB$3, 0))=\"\", \"\",  INDEX('Full set Core Client Indicator'!$A$3:$AB$351, MATCH(Selection_Hide2!$A92, 'Full set Core Client Indicator'!$A$3:$A$351, 0), MATCH(Selection_Hide2!I$5, 'Full set Core Client Indicator'!$A$3:$AB$3, 0))), \"\")","v":""},{"$f":"IF(I92<>\"\", IF(INDEX('Full set Core Client Indicator'!$A$3:$AB$351, MATCH(Selection_Hide2!$A92, 'Full set Core Client Indicator'!$A$3:$A$351, 0), MATCH(Selection_Hide2!J$5, 'Full set Core Client Indicator'!$A$3:$AB$3, 0))=\"\", \"\",  INDEX('Full set Core Client Indicator'!$A$3:$AB$351, MATCH(Selection_Hide2!$A92, 'Full set Core Client Indicator'!$A$3:$A$351, 0), MATCH(Selection_Hide2!J$5, 'Full set Core Client Indicator'!$A$3:$AB$3, 0))), \"\")","v":""},{"$f":"IF(J92<>\"\", IF(INDEX('Full set Core Client Indicator'!$A$3:$AB$351, MATCH(Selection_Hide2!$A92, 'Full set Core Client Indicator'!$A$3:$A$351, 0), MATCH(Selection_Hide2!K$5, 'Full set Core Client Indicator'!$A$3:$AB$3, 0))=\"\", \"\",  INDEX('Full set Core Client Indicator'!$A$3:$AB$351, MATCH(Selection_Hide2!$A92, 'Full set Core Client Indicator'!$A$3:$A$351, 0), MATCH(Selection_Hide2!K$5, 'Full set Core Client Indicator'!$A$3:$AB$3, 0))), \"\")","v":""},{"$f":"IF(K92<>\"\", IF(INDEX('Full set Core Client Indicator'!$A$3:$AB$351, MATCH(Selection_Hide2!$A92, 'Full set Core Client Indicator'!$A$3:$A$351, 0), MATCH(Selection_Hide2!L$5, 'Full set Core Client Indicator'!$A$3:$AB$3, 0))=\"\", \"\",  INDEX('Full set Core Client Indicator'!$A$3:$AB$351, MATCH(Selection_Hide2!$A92, 'Full set Core Client Indicator'!$A$3:$A$351, 0), MATCH(Selection_Hide2!L$5, 'Full set Core Client Indicator'!$A$3:$AB$3, 0))), \"\")","v":""},{"$f":"IF(L92<>\"\", IF(INDEX('Full set Core Client Indicator'!$A$3:$AB$351, MATCH(Selection_Hide2!$A92, 'Full set Core Client Indicator'!$A$3:$A$351, 0), MATCH(Selection_Hide2!M$5, 'Full set Core Client Indicator'!$A$3:$AB$3, 0))=\"\", \"\",  INDEX('Full set Core Client Indicator'!$A$3:$AB$351, MATCH(Selection_Hide2!$A92, 'Full set Core Client Indicator'!$A$3:$A$351, 0), MATCH(Selection_Hide2!M$5, 'Full set Core Client Indicator'!$A$3:$AB$3, 0))), \"\")","v":""},{"$f":"IF(M92<>\"\", IF(INDEX('Full set Core Client Indicator'!$A$3:$AB$351, MATCH(Selection_Hide2!$A92, 'Full set Core Client Indicator'!$A$3:$A$351, 0), MATCH(Selection_Hide2!N$5, 'Full set Core Client Indicator'!$A$3:$AB$3, 0))=\"\", \"\",  INDEX('Full set Core Client Indicator'!$A$3:$AB$351, MATCH(Selection_Hide2!$A92, 'Full set Core Client Indicator'!$A$3:$A$351, 0), MATCH(Selection_Hide2!N$5, 'Full set Core Client Indicator'!$A$3:$AB$3, 0))), \"\")","v":""},{"$f":"IF(N92<>\"\", IF(INDEX('Full set Core Client Indicator'!$A$3:$AB$351, MATCH(Selection_Hide2!$A92, 'Full set Core Client Indicator'!$A$3:$A$351, 0), MATCH(Selection_Hide2!O$5, 'Full set Core Client Indicator'!$A$3:$AB$3, 0))=\"\", \"\",  INDEX('Full set Core Client Indicator'!$A$3:$AB$351, MATCH(Selection_Hide2!$A92, 'Full set Core Client Indicator'!$A$3:$A$351, 0), MATCH(Selection_Hide2!O$5, 'Full set Core Client Indicator'!$A$3:$AB$3, 0))), \"\")","v":""},{"$f":"IF(O92<>\"\", IF(INDEX('Full set Core Client Indicator'!$A$3:$AB$351, MATCH(Selection_Hide2!$A92, 'Full set Core Client Indicator'!$A$3:$A$351, 0), MATCH(Selection_Hide2!P$5, 'Full set Core Client Indicator'!$A$3:$AB$3, 0))=\"\", \"\",  INDEX('Full set Core Client Indicator'!$A$3:$AB$351, MATCH(Selection_Hide2!$A92, 'Full set Core Client Indicator'!$A$3:$A$351, 0), MATCH(Selection_Hide2!P$5, 'Full set Core Client Indicator'!$A$3:$AB$3, 0))), \"\")","v":""},{"$f":"IF(P92<>\"\", IF(INDEX('Full set Core Client Indicator'!$A$3:$AB$351, MATCH(Selection_Hide2!$A92, 'Full set Core Client Indicator'!$A$3:$A$351, 0), MATCH(Selection_Hide2!Q$5, 'Full set Core Client Indicator'!$A$3:$AB$3, 0))=\"\", \"\",  INDEX('Full set Core Client Indicator'!$A$3:$AB$351, MATCH(Selection_Hide2!$A92, 'Full set Core Client Indicator'!$A$3:$A$351, 0), MATCH(Selection_Hide2!Q$5, 'Full set Core Client Indicator'!$A$3:$AB$3, 0))), \"\")","v":""},{"$f":"IF(Q92<>\"\", IF(INDEX('Full set Core Client Indicator'!$A$3:$AB$351, MATCH(Selection_Hide2!$A92, 'Full set Core Client Indicator'!$A$3:$A$351, 0), MATCH(Selection_Hide2!R$5, 'Full set Core Client Indicator'!$A$3:$AB$3, 0))=\"\", \"\",  INDEX('Full set Core Client Indicator'!$A$3:$AB$351, MATCH(Selection_Hide2!$A92, 'Full set Core Client Indicator'!$A$3:$A$351, 0), MATCH(Selection_Hide2!R$5, 'Full set Core Client Indicator'!$A$3:$AB$3, 0))), \"\")","v":""},{"$f":"IF(R92<>\"\", IF(INDEX('Full set Core Client Indicator'!$A$3:$AB$351, MATCH(Selection_Hide2!$A92, 'Full set Core Client Indicator'!$A$3:$A$351, 0), MATCH(Selection_Hide2!S$5, 'Full set Core Client Indicator'!$A$3:$AB$3, 0))=\"\", \"\",  INDEX('Full set Core Client Indicator'!$A$3:$AB$351, MATCH(Selection_Hide2!$A92, 'Full set Core Client Indicator'!$A$3:$A$351, 0), MATCH(Selection_Hide2!S$5, 'Full set Core Client Indicator'!$A$3:$AB$3, 0))), \"\")","v":""},{"$f":"IF(S92<>\"\", IF(INDEX('Full set Core Client Indicator'!$A$3:$AB$351, MATCH(Selection_Hide2!$A92, 'Full set Core Client Indicator'!$A$3:$A$351, 0), MATCH(Selection_Hide2!T$5, 'Full set Core Client Indicator'!$A$3:$AB$3, 0))=\"\", \"\",  INDEX('Full set Core Client Indicator'!$A$3:$AB$351, MATCH(Selection_Hide2!$A92, 'Full set Core Client Indicator'!$A$3:$A$351, 0), MATCH(Selection_Hide2!T$5, 'Full set Core Client Indicator'!$A$3:$AB$3, 0))), \"\")","v":""},{"$f":"IF(T92<>\"\", IF(INDEX('Full set Core Client Indicator'!$A$3:$AB$351, MATCH(Selection_Hide2!$A92, 'Full set Core Client Indicator'!$A$3:$A$351, 0), MATCH(Selection_Hide2!U$5, 'Full set Core Client Indicator'!$A$3:$AB$3, 0))=\"\", \"\",  INDEX('Full set Core Client Indicator'!$A$3:$AB$351, MATCH(Selection_Hide2!$A92, 'Full set Core Client Indicator'!$A$3:$A$351, 0), MATCH(Selection_Hide2!U$5, 'Full set Core Client Indicator'!$A$3:$AB$3, 0))), \"\")","v":""},{"$f":"IF(U92<>\"\", IF(INDEX('Full set Core Client Indicator'!$A$3:$AB$351, MATCH(Selection_Hide2!$A92, 'Full set Core Client Indicator'!$A$3:$A$351, 0), MATCH(Selection_Hide2!V$5, 'Full set Core Client Indicator'!$A$3:$AB$3, 0))=\"\", \"\",  INDEX('Full set Core Client Indicator'!$A$3:$AB$351, MATCH(Selection_Hide2!$A92, 'Full set Core Client Indicator'!$A$3:$A$351, 0), MATCH(Selection_Hide2!V$5, 'Full set Core Client Indicator'!$A$3:$AB$3, 0))), \"\")","v":""},{"$f":"IF(V92<>\"\", IF(INDEX('Full set Core Client Indicator'!$A$3:$AB$351, MATCH(Selection_Hide2!$A92, 'Full set Core Client Indicator'!$A$3:$A$351, 0), MATCH(Selection_Hide2!W$5, 'Full set Core Client Indicator'!$A$3:$AB$3, 0))=\"\", \"\",  INDEX('Full set Core Client Indicator'!$A$3:$AB$351, MATCH(Selection_Hide2!$A92, 'Full set Core Client Indicator'!$A$3:$A$351, 0), MATCH(Selection_Hide2!W$5, 'Full set Core Client Indicator'!$A$3:$AB$3, 0))), \"\")","v":""},{"$f":"IF(W92<>\"\", IF(INDEX('Full set Core Client Indicator'!$A$3:$AB$351, MATCH(Selection_Hide2!$A92, 'Full set Core Client Indicator'!$A$3:$A$351, 0), MATCH(Selection_Hide2!X$5, 'Full set Core Client Indicator'!$A$3:$AB$3, 0))=\"\", \"\",  INDEX('Full set Core Client Indicator'!$A$3:$AB$351, MATCH(Selection_Hide2!$A92, 'Full set Core Client Indicator'!$A$3:$A$351, 0), MATCH(Selection_Hide2!X$5, 'Full set Core Client Indicator'!$A$3:$AB$3, 0))), \"\")","v":""},{"$f":"IF(X92<>\"\", IF(INDEX('Full set Core Client Indicator'!$A$3:$AB$351, MATCH(Selection_Hide2!$A92, 'Full set Core Client Indicator'!$A$3:$A$351, 0), MATCH(Selection_Hide2!Y$5, 'Full set Core Client Indicator'!$A$3:$AB$3, 0))=\"\", \"\",  INDEX('Full set Core Client Indicator'!$A$3:$AB$351, MATCH(Selection_Hide2!$A92, 'Full set Core Client Indicator'!$A$3:$A$351, 0), MATCH(Selection_Hide2!Y$5, 'Full set Core Client Indicator'!$A$3:$AB$3, 0))), \"\")","v":""},{"$f":"IF(Y92<>\"\", IF(INDEX('Full set Core Client Indicator'!$A$3:$AB$351, MATCH(Selection_Hide2!$A92, 'Full set Core Client Indicator'!$A$3:$A$351, 0), MATCH(Selection_Hide2!Z$5, 'Full set Core Client Indicator'!$A$3:$AB$3, 0))=\"\", \"\",  INDEX('Full set Core Client Indicator'!$A$3:$AB$351, MATCH(Selection_Hide2!$A92, 'Full set Core Client Indicator'!$A$3:$A$351, 0), MATCH(Selection_Hide2!Z$5, 'Full set Core Client Indicator'!$A$3:$AB$3, 0))), \"\")","v":""},{"$f":"IF(Z92<>\"\", IF(INDEX('Full set Core Client Indicator'!$A$3:$AB$351, MATCH(Selection_Hide2!$A92, 'Full set Core Client Indicator'!$A$3:$A$351, 0), MATCH(Selection_Hide2!AA$5, 'Full set Core Client Indicator'!$A$3:$AB$3, 0))=\"\", \"\",  INDEX('Full set Core Client Indicator'!$A$3:$AB$351, MATCH(Selection_Hide2!$A92, 'Full set Core Client Indicator'!$A$3:$A$351, 0), MATCH(Selection_Hide2!AA$5, 'Full set Core Client Indicator'!$A$3:$AB$3, 0))), \"\")","v":""},{"$f":"IF(AA92<>\"\", IF(INDEX('Full set Core Client Indicator'!$A$3:$AB$351, MATCH(Selection_Hide2!$A92, 'Full set Core Client Indicator'!$A$3:$A$351, 0), MATCH(Selection_Hide2!AB$5, 'Full set Core Client Indicator'!$A$3:$AB$3, 0))=\"\", \"\",  INDEX('Full set Core Client Indicator'!$A$3:$AB$351, MATCH(Selection_Hide2!$A92, 'Full set Core Client Indicator'!$A$3:$A$351, 0), MATCH(Selection_Hide2!AB$5, 'Full set Core Client Indicator'!$A$3:$AB$3, 0))), \"\")","v":""}]
[{"$f":"IF(AND(Selection_Hide1!C91<>0, Selection_Hide1!C91<>\"Grand Total\"), Selection_Hide1!C91, \"\")","v":""},{"$f":"IF(A93<>\"\", IF(INDEX('Full set Core Client Indicator'!$A$3:$AB$351, MATCH(Selection_Hide2!$A93, 'Full set Core Client Indicator'!$A$3:$A$351, 0), MATCH(Selection_Hide2!B$5, 'Full set Core Client Indicator'!$A$3:$AB$3, 0))=\"\", \"\",  INDEX('Full set Core Client Indicator'!$A$3:$AB$351, MATCH(Selection_Hide2!$A93, 'Full set Core Client Indicator'!$A$3:$A$351, 0), MATCH(Selection_Hide2!B$5, 'Full set Core Client Indicator'!$A$3:$AB$3, 0))), \"\")","v":""},{"$f":"IF(B93<>\"\", IF(INDEX('Full set Core Client Indicator'!$A$3:$AB$351, MATCH(Selection_Hide2!$A93, 'Full set Core Client Indicator'!$A$3:$A$351, 0), MATCH(Selection_Hide2!C$5, 'Full set Core Client Indicator'!$A$3:$AB$3, 0))=\"\", \"\",  INDEX('Full set Core Client Indicator'!$A$3:$AB$351, MATCH(Selection_Hide2!$A93, 'Full set Core Client Indicator'!$A$3:$A$351, 0), MATCH(Selection_Hide2!C$5, 'Full set Core Client Indicator'!$A$3:$AB$3, 0))), \"\")","v":""},{"$f":"IF(C93<>\"\", IF(INDEX('Full set Core Client Indicator'!$A$3:$AB$351, MATCH(Selection_Hide2!$A93, 'Full set Core Client Indicator'!$A$3:$A$351, 0), MATCH(Selection_Hide2!D$5, 'Full set Core Client Indicator'!$A$3:$AB$3, 0))=\"\", \"\",  INDEX('Full set Core Client Indicator'!$A$3:$AB$351, MATCH(Selection_Hide2!$A93, 'Full set Core Client Indicator'!$A$3:$A$351, 0), MATCH(Selection_Hide2!D$5, 'Full set Core Client Indicator'!$A$3:$AB$3, 0))), \"\")","v":""},{"$f":"IF(D93<>\"\", IF(INDEX('Full set Core Client Indicator'!$A$3:$AB$351, MATCH(Selection_Hide2!$A93, 'Full set Core Client Indicator'!$A$3:$A$351, 0), MATCH(Selection_Hide2!E$5, 'Full set Core Client Indicator'!$A$3:$AB$3, 0))=\"\", \"\",  INDEX('Full set Core Client Indicator'!$A$3:$AB$351, MATCH(Selection_Hide2!$A93, 'Full set Core Client Indicator'!$A$3:$A$351, 0), MATCH(Selection_Hide2!E$5, 'Full set Core Client Indicator'!$A$3:$AB$3, 0))), \"\")","v":""},{"$f":"IF(E93<>\"\", IF(INDEX('Full set Core Client Indicator'!$A$3:$AB$351, MATCH(Selection_Hide2!$A93, 'Full set Core Client Indicator'!$A$3:$A$351, 0), MATCH(Selection_Hide2!F$5, 'Full set Core Client Indicator'!$A$3:$AB$3, 0))=\"\", \"\",  INDEX('Full set Core Client Indicator'!$A$3:$AB$351, MATCH(Selection_Hide2!$A93, 'Full set Core Client Indicator'!$A$3:$A$351, 0), MATCH(Selection_Hide2!F$5, 'Full set Core Client Indicator'!$A$3:$AB$3, 0))), \"\")","v":""},{"$f":"IF(F93<>\"\", IF(INDEX('Full set Core Client Indicator'!$A$3:$AB$351, MATCH(Selection_Hide2!$A93, 'Full set Core Client Indicator'!$A$3:$A$351, 0), MATCH(Selection_Hide2!G$5, 'Full set Core Client Indicator'!$A$3:$AB$3, 0))=\"\", \"\",  INDEX('Full set Core Client Indicator'!$A$3:$AB$351, MATCH(Selection_Hide2!$A93, 'Full set Core Client Indicator'!$A$3:$A$351, 0), MATCH(Selection_Hide2!G$5, 'Full set Core Client Indicator'!$A$3:$AB$3, 0))), \"\")","v":""},{"$f":"IF(G93<>\"\", IF(INDEX('Full set Core Client Indicator'!$A$3:$AB$351, MATCH(Selection_Hide2!$A93, 'Full set Core Client Indicator'!$A$3:$A$351, 0), MATCH(Selection_Hide2!H$5, 'Full set Core Client Indicator'!$A$3:$AB$3, 0))=\"\", \"\",  INDEX('Full set Core Client Indicator'!$A$3:$AB$351, MATCH(Selection_Hide2!$A93, 'Full set Core Client Indicator'!$A$3:$A$351, 0), MATCH(Selection_Hide2!H$5, 'Full set Core Client Indicator'!$A$3:$AB$3, 0))), \"\")","v":""},{"$f":"IF(H93<>\"\", IF(INDEX('Full set Core Client Indicator'!$A$3:$AB$351, MATCH(Selection_Hide2!$A93, 'Full set Core Client Indicator'!$A$3:$A$351, 0), MATCH(Selection_Hide2!I$5, 'Full set Core Client Indicator'!$A$3:$AB$3, 0))=\"\", \"\",  INDEX('Full set Core Client Indicator'!$A$3:$AB$351, MATCH(Selection_Hide2!$A93, 'Full set Core Client Indicator'!$A$3:$A$351, 0), MATCH(Selection_Hide2!I$5, 'Full set Core Client Indicator'!$A$3:$AB$3, 0))), \"\")","v":""},{"$f":"IF(I93<>\"\", IF(INDEX('Full set Core Client Indicator'!$A$3:$AB$351, MATCH(Selection_Hide2!$A93, 'Full set Core Client Indicator'!$A$3:$A$351, 0), MATCH(Selection_Hide2!J$5, 'Full set Core Client Indicator'!$A$3:$AB$3, 0))=\"\", \"\",  INDEX('Full set Core Client Indicator'!$A$3:$AB$351, MATCH(Selection_Hide2!$A93, 'Full set Core Client Indicator'!$A$3:$A$351, 0), MATCH(Selection_Hide2!J$5, 'Full set Core Client Indicator'!$A$3:$AB$3, 0))), \"\")","v":""},{"$f":"IF(J93<>\"\", IF(INDEX('Full set Core Client Indicator'!$A$3:$AB$351, MATCH(Selection_Hide2!$A93, 'Full set Core Client Indicator'!$A$3:$A$351, 0), MATCH(Selection_Hide2!K$5, 'Full set Core Client Indicator'!$A$3:$AB$3, 0))=\"\", \"\",  INDEX('Full set Core Client Indicator'!$A$3:$AB$351, MATCH(Selection_Hide2!$A93, 'Full set Core Client Indicator'!$A$3:$A$351, 0), MATCH(Selection_Hide2!K$5, 'Full set Core Client Indicator'!$A$3:$AB$3, 0))), \"\")","v":""},{"$f":"IF(K93<>\"\", IF(INDEX('Full set Core Client Indicator'!$A$3:$AB$351, MATCH(Selection_Hide2!$A93, 'Full set Core Client Indicator'!$A$3:$A$351, 0), MATCH(Selection_Hide2!L$5, 'Full set Core Client Indicator'!$A$3:$AB$3, 0))=\"\", \"\",  INDEX('Full set Core Client Indicator'!$A$3:$AB$351, MATCH(Selection_Hide2!$A93, 'Full set Core Client Indicator'!$A$3:$A$351, 0), MATCH(Selection_Hide2!L$5, 'Full set Core Client Indicator'!$A$3:$AB$3, 0))), \"\")","v":""},{"$f":"IF(L93<>\"\", IF(INDEX('Full set Core Client Indicator'!$A$3:$AB$351, MATCH(Selection_Hide2!$A93, 'Full set Core Client Indicator'!$A$3:$A$351, 0), MATCH(Selection_Hide2!M$5, 'Full set Core Client Indicator'!$A$3:$AB$3, 0))=\"\", \"\",  INDEX('Full set Core Client Indicator'!$A$3:$AB$351, MATCH(Selection_Hide2!$A93, 'Full set Core Client Indicator'!$A$3:$A$351, 0), MATCH(Selection_Hide2!M$5, 'Full set Core Client Indicator'!$A$3:$AB$3, 0))), \"\")","v":""},{"$f":"IF(M93<>\"\", IF(INDEX('Full set Core Client Indicator'!$A$3:$AB$351, MATCH(Selection_Hide2!$A93, 'Full set Core Client Indicator'!$A$3:$A$351, 0), MATCH(Selection_Hide2!N$5, 'Full set Core Client Indicator'!$A$3:$AB$3, 0))=\"\", \"\",  INDEX('Full set Core Client Indicator'!$A$3:$AB$351, MATCH(Selection_Hide2!$A93, 'Full set Core Client Indicator'!$A$3:$A$351, 0), MATCH(Selection_Hide2!N$5, 'Full set Core Client Indicator'!$A$3:$AB$3, 0))), \"\")","v":""},{"$f":"IF(N93<>\"\", IF(INDEX('Full set Core Client Indicator'!$A$3:$AB$351, MATCH(Selection_Hide2!$A93, 'Full set Core Client Indicator'!$A$3:$A$351, 0), MATCH(Selection_Hide2!O$5, 'Full set Core Client Indicator'!$A$3:$AB$3, 0))=\"\", \"\",  INDEX('Full set Core Client Indicator'!$A$3:$AB$351, MATCH(Selection_Hide2!$A93, 'Full set Core Client Indicator'!$A$3:$A$351, 0), MATCH(Selection_Hide2!O$5, 'Full set Core Client Indicator'!$A$3:$AB$3, 0))), \"\")","v":""},{"$f":"IF(O93<>\"\", IF(INDEX('Full set Core Client Indicator'!$A$3:$AB$351, MATCH(Selection_Hide2!$A93, 'Full set Core Client Indicator'!$A$3:$A$351, 0), MATCH(Selection_Hide2!P$5, 'Full set Core Client Indicator'!$A$3:$AB$3, 0))=\"\", \"\",  INDEX('Full set Core Client Indicator'!$A$3:$AB$351, MATCH(Selection_Hide2!$A93, 'Full set Core Client Indicator'!$A$3:$A$351, 0), MATCH(Selection_Hide2!P$5, 'Full set Core Client Indicator'!$A$3:$AB$3, 0))), \"\")","v":""},{"$f":"IF(P93<>\"\", IF(INDEX('Full set Core Client Indicator'!$A$3:$AB$351, MATCH(Selection_Hide2!$A93, 'Full set Core Client Indicator'!$A$3:$A$351, 0), MATCH(Selection_Hide2!Q$5, 'Full set Core Client Indicator'!$A$3:$AB$3, 0))=\"\", \"\",  INDEX('Full set Core Client Indicator'!$A$3:$AB$351, MATCH(Selection_Hide2!$A93, 'Full set Core Client Indicator'!$A$3:$A$351, 0), MATCH(Selection_Hide2!Q$5, 'Full set Core Client Indicator'!$A$3:$AB$3, 0))), \"\")","v":""},{"$f":"IF(Q93<>\"\", IF(INDEX('Full set Core Client Indicator'!$A$3:$AB$351, MATCH(Selection_Hide2!$A93, 'Full set Core Client Indicator'!$A$3:$A$351, 0), MATCH(Selection_Hide2!R$5, 'Full set Core Client Indicator'!$A$3:$AB$3, 0))=\"\", \"\",  INDEX('Full set Core Client Indicator'!$A$3:$AB$351, MATCH(Selection_Hide2!$A93, 'Full set Core Client Indicator'!$A$3:$A$351, 0), MATCH(Selection_Hide2!R$5, 'Full set Core Client Indicator'!$A$3:$AB$3, 0))), \"\")","v":""},{"$f":"IF(R93<>\"\", IF(INDEX('Full set Core Client Indicator'!$A$3:$AB$351, MATCH(Selection_Hide2!$A93, 'Full set Core Client Indicator'!$A$3:$A$351, 0), MATCH(Selection_Hide2!S$5, 'Full set Core Client Indicator'!$A$3:$AB$3, 0))=\"\", \"\",  INDEX('Full set Core Client Indicator'!$A$3:$AB$351, MATCH(Selection_Hide2!$A93, 'Full set Core Client Indicator'!$A$3:$A$351, 0), MATCH(Selection_Hide2!S$5, 'Full set Core Client Indicator'!$A$3:$AB$3, 0))), \"\")","v":""},{"$f":"IF(S93<>\"\", IF(INDEX('Full set Core Client Indicator'!$A$3:$AB$351, MATCH(Selection_Hide2!$A93, 'Full set Core Client Indicator'!$A$3:$A$351, 0), MATCH(Selection_Hide2!T$5, 'Full set Core Client Indicator'!$A$3:$AB$3, 0))=\"\", \"\",  INDEX('Full set Core Client Indicator'!$A$3:$AB$351, MATCH(Selection_Hide2!$A93, 'Full set Core Client Indicator'!$A$3:$A$351, 0), MATCH(Selection_Hide2!T$5, 'Full set Core Client Indicator'!$A$3:$AB$3, 0))), \"\")","v":""},{"$f":"IF(T93<>\"\", IF(INDEX('Full set Core Client Indicator'!$A$3:$AB$351, MATCH(Selection_Hide2!$A93, 'Full set Core Client Indicator'!$A$3:$A$351, 0), MATCH(Selection_Hide2!U$5, 'Full set Core Client Indicator'!$A$3:$AB$3, 0))=\"\", \"\",  INDEX('Full set Core Client Indicator'!$A$3:$AB$351, MATCH(Selection_Hide2!$A93, 'Full set Core Client Indicator'!$A$3:$A$351, 0), MATCH(Selection_Hide2!U$5, 'Full set Core Client Indicator'!$A$3:$AB$3, 0))), \"\")","v":""},{"$f":"IF(U93<>\"\", IF(INDEX('Full set Core Client Indicator'!$A$3:$AB$351, MATCH(Selection_Hide2!$A93, 'Full set Core Client Indicator'!$A$3:$A$351, 0), MATCH(Selection_Hide2!V$5, 'Full set Core Client Indicator'!$A$3:$AB$3, 0))=\"\", \"\",  INDEX('Full set Core Client Indicator'!$A$3:$AB$351, MATCH(Selection_Hide2!$A93, 'Full set Core Client Indicator'!$A$3:$A$351, 0), MATCH(Selection_Hide2!V$5, 'Full set Core Client Indicator'!$A$3:$AB$3, 0))), \"\")","v":""},{"$f":"IF(V93<>\"\", IF(INDEX('Full set Core Client Indicator'!$A$3:$AB$351, MATCH(Selection_Hide2!$A93, 'Full set Core Client Indicator'!$A$3:$A$351, 0), MATCH(Selection_Hide2!W$5, 'Full set Core Client Indicator'!$A$3:$AB$3, 0))=\"\", \"\",  INDEX('Full set Core Client Indicator'!$A$3:$AB$351, MATCH(Selection_Hide2!$A93, 'Full set Core Client Indicator'!$A$3:$A$351, 0), MATCH(Selection_Hide2!W$5, 'Full set Core Client Indicator'!$A$3:$AB$3, 0))), \"\")","v":""},{"$f":"IF(W93<>\"\", IF(INDEX('Full set Core Client Indicator'!$A$3:$AB$351, MATCH(Selection_Hide2!$A93, 'Full set Core Client Indicator'!$A$3:$A$351, 0), MATCH(Selection_Hide2!X$5, 'Full set Core Client Indicator'!$A$3:$AB$3, 0))=\"\", \"\",  INDEX('Full set Core Client Indicator'!$A$3:$AB$351, MATCH(Selection_Hide2!$A93, 'Full set Core Client Indicator'!$A$3:$A$351, 0), MATCH(Selection_Hide2!X$5, 'Full set Core Client Indicator'!$A$3:$AB$3, 0))), \"\")","v":""},{"$f":"IF(X93<>\"\", IF(INDEX('Full set Core Client Indicator'!$A$3:$AB$351, MATCH(Selection_Hide2!$A93, 'Full set Core Client Indicator'!$A$3:$A$351, 0), MATCH(Selection_Hide2!Y$5, 'Full set Core Client Indicator'!$A$3:$AB$3, 0))=\"\", \"\",  INDEX('Full set Core Client Indicator'!$A$3:$AB$351, MATCH(Selection_Hide2!$A93, 'Full set Core Client Indicator'!$A$3:$A$351, 0), MATCH(Selection_Hide2!Y$5, 'Full set Core Client Indicator'!$A$3:$AB$3, 0))), \"\")","v":""},{"$f":"IF(Y93<>\"\", IF(INDEX('Full set Core Client Indicator'!$A$3:$AB$351, MATCH(Selection_Hide2!$A93, 'Full set Core Client Indicator'!$A$3:$A$351, 0), MATCH(Selection_Hide2!Z$5, 'Full set Core Client Indicator'!$A$3:$AB$3, 0))=\"\", \"\",  INDEX('Full set Core Client Indicator'!$A$3:$AB$351, MATCH(Selection_Hide2!$A93, 'Full set Core Client Indicator'!$A$3:$A$351, 0), MATCH(Selection_Hide2!Z$5, 'Full set Core Client Indicator'!$A$3:$AB$3, 0))), \"\")","v":""},{"$f":"IF(Z93<>\"\", IF(INDEX('Full set Core Client Indicator'!$A$3:$AB$351, MATCH(Selection_Hide2!$A93, 'Full set Core Client Indicator'!$A$3:$A$351, 0), MATCH(Selection_Hide2!AA$5, 'Full set Core Client Indicator'!$A$3:$AB$3, 0))=\"\", \"\",  INDEX('Full set Core Client Indicator'!$A$3:$AB$351, MATCH(Selection_Hide2!$A93, 'Full set Core Client Indicator'!$A$3:$A$351, 0), MATCH(Selection_Hide2!AA$5, 'Full set Core Client Indicator'!$A$3:$AB$3, 0))), \"\")","v":""},{"$f":"IF(AA93<>\"\", IF(INDEX('Full set Core Client Indicator'!$A$3:$AB$351, MATCH(Selection_Hide2!$A93, 'Full set Core Client Indicator'!$A$3:$A$351, 0), MATCH(Selection_Hide2!AB$5, 'Full set Core Client Indicator'!$A$3:$AB$3, 0))=\"\", \"\",  INDEX('Full set Core Client Indicator'!$A$3:$AB$351, MATCH(Selection_Hide2!$A93, 'Full set Core Client Indicator'!$A$3:$A$351, 0), MATCH(Selection_Hide2!AB$5, 'Full set Core Client Indicator'!$A$3:$AB$3, 0))), \"\")","v":""}]
[{"$f":"IF(AND(Selection_Hide1!C92<>0, Selection_Hide1!C92<>\"Grand Total\"), Selection_Hide1!C92, \"\")","v":""},{"$f":"IF(A94<>\"\", IF(INDEX('Full set Core Client Indicator'!$A$3:$AB$351, MATCH(Selection_Hide2!$A94, 'Full set Core Client Indicator'!$A$3:$A$351, 0), MATCH(Selection_Hide2!B$5, 'Full set Core Client Indicator'!$A$3:$AB$3, 0))=\"\", \"\",  INDEX('Full set Core Client Indicator'!$A$3:$AB$351, MATCH(Selection_Hide2!$A94, 'Full set Core Client Indicator'!$A$3:$A$351, 0), MATCH(Selection_Hide2!B$5, 'Full set Core Client Indicator'!$A$3:$AB$3, 0))), \"\")","v":""},{"$f":"IF(B94<>\"\", IF(INDEX('Full set Core Client Indicator'!$A$3:$AB$351, MATCH(Selection_Hide2!$A94, 'Full set Core Client Indicator'!$A$3:$A$351, 0), MATCH(Selection_Hide2!C$5, 'Full set Core Client Indicator'!$A$3:$AB$3, 0))=\"\", \"\",  INDEX('Full set Core Client Indicator'!$A$3:$AB$351, MATCH(Selection_Hide2!$A94, 'Full set Core Client Indicator'!$A$3:$A$351, 0), MATCH(Selection_Hide2!C$5, 'Full set Core Client Indicator'!$A$3:$AB$3, 0))), \"\")","v":""},{"$f":"IF(C94<>\"\", IF(INDEX('Full set Core Client Indicator'!$A$3:$AB$351, MATCH(Selection_Hide2!$A94, 'Full set Core Client Indicator'!$A$3:$A$351, 0), MATCH(Selection_Hide2!D$5, 'Full set Core Client Indicator'!$A$3:$AB$3, 0))=\"\", \"\",  INDEX('Full set Core Client Indicator'!$A$3:$AB$351, MATCH(Selection_Hide2!$A94, 'Full set Core Client Indicator'!$A$3:$A$351, 0), MATCH(Selection_Hide2!D$5, 'Full set Core Client Indicator'!$A$3:$AB$3, 0))), \"\")","v":""},{"$f":"IF(D94<>\"\", IF(INDEX('Full set Core Client Indicator'!$A$3:$AB$351, MATCH(Selection_Hide2!$A94, 'Full set Core Client Indicator'!$A$3:$A$351, 0), MATCH(Selection_Hide2!E$5, 'Full set Core Client Indicator'!$A$3:$AB$3, 0))=\"\", \"\",  INDEX('Full set Core Client Indicator'!$A$3:$AB$351, MATCH(Selection_Hide2!$A94, 'Full set Core Client Indicator'!$A$3:$A$351, 0), MATCH(Selection_Hide2!E$5, 'Full set Core Client Indicator'!$A$3:$AB$3, 0))), \"\")","v":""},{"$f":"IF(E94<>\"\", IF(INDEX('Full set Core Client Indicator'!$A$3:$AB$351, MATCH(Selection_Hide2!$A94, 'Full set Core Client Indicator'!$A$3:$A$351, 0), MATCH(Selection_Hide2!F$5, 'Full set Core Client Indicator'!$A$3:$AB$3, 0))=\"\", \"\",  INDEX('Full set Core Client Indicator'!$A$3:$AB$351, MATCH(Selection_Hide2!$A94, 'Full set Core Client Indicator'!$A$3:$A$351, 0), MATCH(Selection_Hide2!F$5, 'Full set Core Client Indicator'!$A$3:$AB$3, 0))), \"\")","v":""},{"$f":"IF(F94<>\"\", IF(INDEX('Full set Core Client Indicator'!$A$3:$AB$351, MATCH(Selection_Hide2!$A94, 'Full set Core Client Indicator'!$A$3:$A$351, 0), MATCH(Selection_Hide2!G$5, 'Full set Core Client Indicator'!$A$3:$AB$3, 0))=\"\", \"\",  INDEX('Full set Core Client Indicator'!$A$3:$AB$351, MATCH(Selection_Hide2!$A94, 'Full set Core Client Indicator'!$A$3:$A$351, 0), MATCH(Selection_Hide2!G$5, 'Full set Core Client Indicator'!$A$3:$AB$3, 0))), \"\")","v":""},{"$f":"IF(G94<>\"\", IF(INDEX('Full set Core Client Indicator'!$A$3:$AB$351, MATCH(Selection_Hide2!$A94, 'Full set Core Client Indicator'!$A$3:$A$351, 0), MATCH(Selection_Hide2!H$5, 'Full set Core Client Indicator'!$A$3:$AB$3, 0))=\"\", \"\",  INDEX('Full set Core Client Indicator'!$A$3:$AB$351, MATCH(Selection_Hide2!$A94, 'Full set Core Client Indicator'!$A$3:$A$351, 0), MATCH(Selection_Hide2!H$5, 'Full set Core Client Indicator'!$A$3:$AB$3, 0))), \"\")","v":""},{"$f":"IF(H94<>\"\", IF(INDEX('Full set Core Client Indicator'!$A$3:$AB$351, MATCH(Selection_Hide2!$A94, 'Full set Core Client Indicator'!$A$3:$A$351, 0), MATCH(Selection_Hide2!I$5, 'Full set Core Client Indicator'!$A$3:$AB$3, 0))=\"\", \"\",  INDEX('Full set Core Client Indicator'!$A$3:$AB$351, MATCH(Selection_Hide2!$A94, 'Full set Core Client Indicator'!$A$3:$A$351, 0), MATCH(Selection_Hide2!I$5, 'Full set Core Client Indicator'!$A$3:$AB$3, 0))), \"\")","v":""},{"$f":"IF(I94<>\"\", IF(INDEX('Full set Core Client Indicator'!$A$3:$AB$351, MATCH(Selection_Hide2!$A94, 'Full set Core Client Indicator'!$A$3:$A$351, 0), MATCH(Selection_Hide2!J$5, 'Full set Core Client Indicator'!$A$3:$AB$3, 0))=\"\", \"\",  INDEX('Full set Core Client Indicator'!$A$3:$AB$351, MATCH(Selection_Hide2!$A94, 'Full set Core Client Indicator'!$A$3:$A$351, 0), MATCH(Selection_Hide2!J$5, 'Full set Core Client Indicator'!$A$3:$AB$3, 0))), \"\")","v":""},{"$f":"IF(J94<>\"\", IF(INDEX('Full set Core Client Indicator'!$A$3:$AB$351, MATCH(Selection_Hide2!$A94, 'Full set Core Client Indicator'!$A$3:$A$351, 0), MATCH(Selection_Hide2!K$5, 'Full set Core Client Indicator'!$A$3:$AB$3, 0))=\"\", \"\",  INDEX('Full set Core Client Indicator'!$A$3:$AB$351, MATCH(Selection_Hide2!$A94, 'Full set Core Client Indicator'!$A$3:$A$351, 0), MATCH(Selection_Hide2!K$5, 'Full set Core Client Indicator'!$A$3:$AB$3, 0))), \"\")","v":""},{"$f":"IF(K94<>\"\", IF(INDEX('Full set Core Client Indicator'!$A$3:$AB$351, MATCH(Selection_Hide2!$A94, 'Full set Core Client Indicator'!$A$3:$A$351, 0), MATCH(Selection_Hide2!L$5, 'Full set Core Client Indicator'!$A$3:$AB$3, 0))=\"\", \"\",  INDEX('Full set Core Client Indicator'!$A$3:$AB$351, MATCH(Selection_Hide2!$A94, 'Full set Core Client Indicator'!$A$3:$A$351, 0), MATCH(Selection_Hide2!L$5, 'Full set Core Client Indicator'!$A$3:$AB$3, 0))), \"\")","v":""},{"$f":"IF(L94<>\"\", IF(INDEX('Full set Core Client Indicator'!$A$3:$AB$351, MATCH(Selection_Hide2!$A94, 'Full set Core Client Indicator'!$A$3:$A$351, 0), MATCH(Selection_Hide2!M$5, 'Full set Core Client Indicator'!$A$3:$AB$3, 0))=\"\", \"\",  INDEX('Full set Core Client Indicator'!$A$3:$AB$351, MATCH(Selection_Hide2!$A94, 'Full set Core Client Indicator'!$A$3:$A$351, 0), MATCH(Selection_Hide2!M$5, 'Full set Core Client Indicator'!$A$3:$AB$3, 0))), \"\")","v":""},{"$f":"IF(M94<>\"\", IF(INDEX('Full set Core Client Indicator'!$A$3:$AB$351, MATCH(Selection_Hide2!$A94, 'Full set Core Client Indicator'!$A$3:$A$351, 0), MATCH(Selection_Hide2!N$5, 'Full set Core Client Indicator'!$A$3:$AB$3, 0))=\"\", \"\",  INDEX('Full set Core Client Indicator'!$A$3:$AB$351, MATCH(Selection_Hide2!$A94, 'Full set Core Client Indicator'!$A$3:$A$351, 0), MATCH(Selection_Hide2!N$5, 'Full set Core Client Indicator'!$A$3:$AB$3, 0))), \"\")","v":""},{"$f":"IF(N94<>\"\", IF(INDEX('Full set Core Client Indicator'!$A$3:$AB$351, MATCH(Selection_Hide2!$A94, 'Full set Core Client Indicator'!$A$3:$A$351, 0), MATCH(Selection_Hide2!O$5, 'Full set Core Client Indicator'!$A$3:$AB$3, 0))=\"\", \"\",  INDEX('Full set Core Client Indicator'!$A$3:$AB$351, MATCH(Selection_Hide2!$A94, 'Full set Core Client Indicator'!$A$3:$A$351, 0), MATCH(Selection_Hide2!O$5, 'Full set Core Client Indicator'!$A$3:$AB$3, 0))), \"\")","v":""},{"$f":"IF(O94<>\"\", IF(INDEX('Full set Core Client Indicator'!$A$3:$AB$351, MATCH(Selection_Hide2!$A94, 'Full set Core Client Indicator'!$A$3:$A$351, 0), MATCH(Selection_Hide2!P$5, 'Full set Core Client Indicator'!$A$3:$AB$3, 0))=\"\", \"\",  INDEX('Full set Core Client Indicator'!$A$3:$AB$351, MATCH(Selection_Hide2!$A94, 'Full set Core Client Indicator'!$A$3:$A$351, 0), MATCH(Selection_Hide2!P$5, 'Full set Core Client Indicator'!$A$3:$AB$3, 0))), \"\")","v":""},{"$f":"IF(P94<>\"\", IF(INDEX('Full set Core Client Indicator'!$A$3:$AB$351, MATCH(Selection_Hide2!$A94, 'Full set Core Client Indicator'!$A$3:$A$351, 0), MATCH(Selection_Hide2!Q$5, 'Full set Core Client Indicator'!$A$3:$AB$3, 0))=\"\", \"\",  INDEX('Full set Core Client Indicator'!$A$3:$AB$351, MATCH(Selection_Hide2!$A94, 'Full set Core Client Indicator'!$A$3:$A$351, 0), MATCH(Selection_Hide2!Q$5, 'Full set Core Client Indicator'!$A$3:$AB$3, 0))), \"\")","v":""},{"$f":"IF(Q94<>\"\", IF(INDEX('Full set Core Client Indicator'!$A$3:$AB$351, MATCH(Selection_Hide2!$A94, 'Full set Core Client Indicator'!$A$3:$A$351, 0), MATCH(Selection_Hide2!R$5, 'Full set Core Client Indicator'!$A$3:$AB$3, 0))=\"\", \"\",  INDEX('Full set Core Client Indicator'!$A$3:$AB$351, MATCH(Selection_Hide2!$A94, 'Full set Core Client Indicator'!$A$3:$A$351, 0), MATCH(Selection_Hide2!R$5, 'Full set Core Client Indicator'!$A$3:$AB$3, 0))), \"\")","v":""},{"$f":"IF(R94<>\"\", IF(INDEX('Full set Core Client Indicator'!$A$3:$AB$351, MATCH(Selection_Hide2!$A94, 'Full set Core Client Indicator'!$A$3:$A$351, 0), MATCH(Selection_Hide2!S$5, 'Full set Core Client Indicator'!$A$3:$AB$3, 0))=\"\", \"\",  INDEX('Full set Core Client Indicator'!$A$3:$AB$351, MATCH(Selection_Hide2!$A94, 'Full set Core Client Indicator'!$A$3:$A$351, 0), MATCH(Selection_Hide2!S$5, 'Full set Core Client Indicator'!$A$3:$AB$3, 0))), \"\")","v":""},{"$f":"IF(S94<>\"\", IF(INDEX('Full set Core Client Indicator'!$A$3:$AB$351, MATCH(Selection_Hide2!$A94, 'Full set Core Client Indicator'!$A$3:$A$351, 0), MATCH(Selection_Hide2!T$5, 'Full set Core Client Indicator'!$A$3:$AB$3, 0))=\"\", \"\",  INDEX('Full set Core Client Indicator'!$A$3:$AB$351, MATCH(Selection_Hide2!$A94, 'Full set Core Client Indicator'!$A$3:$A$351, 0), MATCH(Selection_Hide2!T$5, 'Full set Core Client Indicator'!$A$3:$AB$3, 0))), \"\")","v":""},{"$f":"IF(T94<>\"\", IF(INDEX('Full set Core Client Indicator'!$A$3:$AB$351, MATCH(Selection_Hide2!$A94, 'Full set Core Client Indicator'!$A$3:$A$351, 0), MATCH(Selection_Hide2!U$5, 'Full set Core Client Indicator'!$A$3:$AB$3, 0))=\"\", \"\",  INDEX('Full set Core Client Indicator'!$A$3:$AB$351, MATCH(Selection_Hide2!$A94, 'Full set Core Client Indicator'!$A$3:$A$351, 0), MATCH(Selection_Hide2!U$5, 'Full set Core Client Indicator'!$A$3:$AB$3, 0))), \"\")","v":""},{"$f":"IF(U94<>\"\", IF(INDEX('Full set Core Client Indicator'!$A$3:$AB$351, MATCH(Selection_Hide2!$A94, 'Full set Core Client Indicator'!$A$3:$A$351, 0), MATCH(Selection_Hide2!V$5, 'Full set Core Client Indicator'!$A$3:$AB$3, 0))=\"\", \"\",  INDEX('Full set Core Client Indicator'!$A$3:$AB$351, MATCH(Selection_Hide2!$A94, 'Full set Core Client Indicator'!$A$3:$A$351, 0), MATCH(Selection_Hide2!V$5, 'Full set Core Client Indicator'!$A$3:$AB$3, 0))), \"\")","v":""},{"$f":"IF(V94<>\"\", IF(INDEX('Full set Core Client Indicator'!$A$3:$AB$351, MATCH(Selection_Hide2!$A94, 'Full set Core Client Indicator'!$A$3:$A$351, 0), MATCH(Selection_Hide2!W$5, 'Full set Core Client Indicator'!$A$3:$AB$3, 0))=\"\", \"\",  INDEX('Full set Core Client Indicator'!$A$3:$AB$351, MATCH(Selection_Hide2!$A94, 'Full set Core Client Indicator'!$A$3:$A$351, 0), MATCH(Selection_Hide2!W$5, 'Full set Core Client Indicator'!$A$3:$AB$3, 0))), \"\")","v":""},{"$f":"IF(W94<>\"\", IF(INDEX('Full set Core Client Indicator'!$A$3:$AB$351, MATCH(Selection_Hide2!$A94, 'Full set Core Client Indicator'!$A$3:$A$351, 0), MATCH(Selection_Hide2!X$5, 'Full set Core Client Indicator'!$A$3:$AB$3, 0))=\"\", \"\",  INDEX('Full set Core Client Indicator'!$A$3:$AB$351, MATCH(Selection_Hide2!$A94, 'Full set Core Client Indicator'!$A$3:$A$351, 0), MATCH(Selection_Hide2!X$5, 'Full set Core Client Indicator'!$A$3:$AB$3, 0))), \"\")","v":""},{"$f":"IF(X94<>\"\", IF(INDEX('Full set Core Client Indicator'!$A$3:$AB$351, MATCH(Selection_Hide2!$A94, 'Full set Core Client Indicator'!$A$3:$A$351, 0), MATCH(Selection_Hide2!Y$5, 'Full set Core Client Indicator'!$A$3:$AB$3, 0))=\"\", \"\",  INDEX('Full set Core Client Indicator'!$A$3:$AB$351, MATCH(Selection_Hide2!$A94, 'Full set Core Client Indicator'!$A$3:$A$351, 0), MATCH(Selection_Hide2!Y$5, 'Full set Core Client Indicator'!$A$3:$AB$3, 0))), \"\")","v":""},{"$f":"IF(Y94<>\"\", IF(INDEX('Full set Core Client Indicator'!$A$3:$AB$351, MATCH(Selection_Hide2!$A94, 'Full set Core Client Indicator'!$A$3:$A$351, 0), MATCH(Selection_Hide2!Z$5, 'Full set Core Client Indicator'!$A$3:$AB$3, 0))=\"\", \"\",  INDEX('Full set Core Client Indicator'!$A$3:$AB$351, MATCH(Selection_Hide2!$A94, 'Full set Core Client Indicator'!$A$3:$A$351, 0), MATCH(Selection_Hide2!Z$5, 'Full set Core Client Indicator'!$A$3:$AB$3, 0))), \"\")","v":""},{"$f":"IF(Z94<>\"\", IF(INDEX('Full set Core Client Indicator'!$A$3:$AB$351, MATCH(Selection_Hide2!$A94, 'Full set Core Client Indicator'!$A$3:$A$351, 0), MATCH(Selection_Hide2!AA$5, 'Full set Core Client Indicator'!$A$3:$AB$3, 0))=\"\", \"\",  INDEX('Full set Core Client Indicator'!$A$3:$AB$351, MATCH(Selection_Hide2!$A94, 'Full set Core Client Indicator'!$A$3:$A$351, 0), MATCH(Selection_Hide2!AA$5, 'Full set Core Client Indicator'!$A$3:$AB$3, 0))), \"\")","v":""},{"$f":"IF(AA94<>\"\", IF(INDEX('Full set Core Client Indicator'!$A$3:$AB$351, MATCH(Selection_Hide2!$A94, 'Full set Core Client Indicator'!$A$3:$A$351, 0), MATCH(Selection_Hide2!AB$5, 'Full set Core Client Indicator'!$A$3:$AB$3, 0))=\"\", \"\",  INDEX('Full set Core Client Indicator'!$A$3:$AB$351, MATCH(Selection_Hide2!$A94, 'Full set Core Client Indicator'!$A$3:$A$351, 0), MATCH(Selection_Hide2!AB$5, 'Full set Core Client Indicator'!$A$3:$AB$3, 0))), \"\")","v":""}]
[{"$f":"IF(AND(Selection_Hide1!C93<>0, Selection_Hide1!C93<>\"Grand Total\"), Selection_Hide1!C93, \"\")","v":""},{"$f":"IF(A95<>\"\", IF(INDEX('Full set Core Client Indicator'!$A$3:$AB$351, MATCH(Selection_Hide2!$A95, 'Full set Core Client Indicator'!$A$3:$A$351, 0), MATCH(Selection_Hide2!B$5, 'Full set Core Client Indicator'!$A$3:$AB$3, 0))=\"\", \"\",  INDEX('Full set Core Client Indicator'!$A$3:$AB$351, MATCH(Selection_Hide2!$A95, 'Full set Core Client Indicator'!$A$3:$A$351, 0), MATCH(Selection_Hide2!B$5, 'Full set Core Client Indicator'!$A$3:$AB$3, 0))), \"\")","v":""},{"$f":"IF(B95<>\"\", IF(INDEX('Full set Core Client Indicator'!$A$3:$AB$351, MATCH(Selection_Hide2!$A95, 'Full set Core Client Indicator'!$A$3:$A$351, 0), MATCH(Selection_Hide2!C$5, 'Full set Core Client Indicator'!$A$3:$AB$3, 0))=\"\", \"\",  INDEX('Full set Core Client Indicator'!$A$3:$AB$351, MATCH(Selection_Hide2!$A95, 'Full set Core Client Indicator'!$A$3:$A$351, 0), MATCH(Selection_Hide2!C$5, 'Full set Core Client Indicator'!$A$3:$AB$3, 0))), \"\")","v":""},{"$f":"IF(C95<>\"\", IF(INDEX('Full set Core Client Indicator'!$A$3:$AB$351, MATCH(Selection_Hide2!$A95, 'Full set Core Client Indicator'!$A$3:$A$351, 0), MATCH(Selection_Hide2!D$5, 'Full set Core Client Indicator'!$A$3:$AB$3, 0))=\"\", \"\",  INDEX('Full set Core Client Indicator'!$A$3:$AB$351, MATCH(Selection_Hide2!$A95, 'Full set Core Client Indicator'!$A$3:$A$351, 0), MATCH(Selection_Hide2!D$5, 'Full set Core Client Indicator'!$A$3:$AB$3, 0))), \"\")","v":""},{"$f":"IF(D95<>\"\", IF(INDEX('Full set Core Client Indicator'!$A$3:$AB$351, MATCH(Selection_Hide2!$A95, 'Full set Core Client Indicator'!$A$3:$A$351, 0), MATCH(Selection_Hide2!E$5, 'Full set Core Client Indicator'!$A$3:$AB$3, 0))=\"\", \"\",  INDEX('Full set Core Client Indicator'!$A$3:$AB$351, MATCH(Selection_Hide2!$A95, 'Full set Core Client Indicator'!$A$3:$A$351, 0), MATCH(Selection_Hide2!E$5, 'Full set Core Client Indicator'!$A$3:$AB$3, 0))), \"\")","v":""},{"$f":"IF(E95<>\"\", IF(INDEX('Full set Core Client Indicator'!$A$3:$AB$351, MATCH(Selection_Hide2!$A95, 'Full set Core Client Indicator'!$A$3:$A$351, 0), MATCH(Selection_Hide2!F$5, 'Full set Core Client Indicator'!$A$3:$AB$3, 0))=\"\", \"\",  INDEX('Full set Core Client Indicator'!$A$3:$AB$351, MATCH(Selection_Hide2!$A95, 'Full set Core Client Indicator'!$A$3:$A$351, 0), MATCH(Selection_Hide2!F$5, 'Full set Core Client Indicator'!$A$3:$AB$3, 0))), \"\")","v":""},{"$f":"IF(F95<>\"\", IF(INDEX('Full set Core Client Indicator'!$A$3:$AB$351, MATCH(Selection_Hide2!$A95, 'Full set Core Client Indicator'!$A$3:$A$351, 0), MATCH(Selection_Hide2!G$5, 'Full set Core Client Indicator'!$A$3:$AB$3, 0))=\"\", \"\",  INDEX('Full set Core Client Indicator'!$A$3:$AB$351, MATCH(Selection_Hide2!$A95, 'Full set Core Client Indicator'!$A$3:$A$351, 0), MATCH(Selection_Hide2!G$5, 'Full set Core Client Indicator'!$A$3:$AB$3, 0))), \"\")","v":""},{"$f":"IF(G95<>\"\", IF(INDEX('Full set Core Client Indicator'!$A$3:$AB$351, MATCH(Selection_Hide2!$A95, 'Full set Core Client Indicator'!$A$3:$A$351, 0), MATCH(Selection_Hide2!H$5, 'Full set Core Client Indicator'!$A$3:$AB$3, 0))=\"\", \"\",  INDEX('Full set Core Client Indicator'!$A$3:$AB$351, MATCH(Selection_Hide2!$A95, 'Full set Core Client Indicator'!$A$3:$A$351, 0), MATCH(Selection_Hide2!H$5, 'Full set Core Client Indicator'!$A$3:$AB$3, 0))), \"\")","v":""},{"$f":"IF(H95<>\"\", IF(INDEX('Full set Core Client Indicator'!$A$3:$AB$351, MATCH(Selection_Hide2!$A95, 'Full set Core Client Indicator'!$A$3:$A$351, 0), MATCH(Selection_Hide2!I$5, 'Full set Core Client Indicator'!$A$3:$AB$3, 0))=\"\", \"\",  INDEX('Full set Core Client Indicator'!$A$3:$AB$351, MATCH(Selection_Hide2!$A95, 'Full set Core Client Indicator'!$A$3:$A$351, 0), MATCH(Selection_Hide2!I$5, 'Full set Core Client Indicator'!$A$3:$AB$3, 0))), \"\")","v":""},{"$f":"IF(I95<>\"\", IF(INDEX('Full set Core Client Indicator'!$A$3:$AB$351, MATCH(Selection_Hide2!$A95, 'Full set Core Client Indicator'!$A$3:$A$351, 0), MATCH(Selection_Hide2!J$5, 'Full set Core Client Indicator'!$A$3:$AB$3, 0))=\"\", \"\",  INDEX('Full set Core Client Indicator'!$A$3:$AB$351, MATCH(Selection_Hide2!$A95, 'Full set Core Client Indicator'!$A$3:$A$351, 0), MATCH(Selection_Hide2!J$5, 'Full set Core Client Indicator'!$A$3:$AB$3, 0))), \"\")","v":""},{"$f":"IF(J95<>\"\", IF(INDEX('Full set Core Client Indicator'!$A$3:$AB$351, MATCH(Selection_Hide2!$A95, 'Full set Core Client Indicator'!$A$3:$A$351, 0), MATCH(Selection_Hide2!K$5, 'Full set Core Client Indicator'!$A$3:$AB$3, 0))=\"\", \"\",  INDEX('Full set Core Client Indicator'!$A$3:$AB$351, MATCH(Selection_Hide2!$A95, 'Full set Core Client Indicator'!$A$3:$A$351, 0), MATCH(Selection_Hide2!K$5, 'Full set Core Client Indicator'!$A$3:$AB$3, 0))), \"\")","v":""},{"$f":"IF(K95<>\"\", IF(INDEX('Full set Core Client Indicator'!$A$3:$AB$351, MATCH(Selection_Hide2!$A95, 'Full set Core Client Indicator'!$A$3:$A$351, 0), MATCH(Selection_Hide2!L$5, 'Full set Core Client Indicator'!$A$3:$AB$3, 0))=\"\", \"\",  INDEX('Full set Core Client Indicator'!$A$3:$AB$351, MATCH(Selection_Hide2!$A95, 'Full set Core Client Indicator'!$A$3:$A$351, 0), MATCH(Selection_Hide2!L$5, 'Full set Core Client Indicator'!$A$3:$AB$3, 0))), \"\")","v":""},{"$f":"IF(L95<>\"\", IF(INDEX('Full set Core Client Indicator'!$A$3:$AB$351, MATCH(Selection_Hide2!$A95, 'Full set Core Client Indicator'!$A$3:$A$351, 0), MATCH(Selection_Hide2!M$5, 'Full set Core Client Indicator'!$A$3:$AB$3, 0))=\"\", \"\",  INDEX('Full set Core Client Indicator'!$A$3:$AB$351, MATCH(Selection_Hide2!$A95, 'Full set Core Client Indicator'!$A$3:$A$351, 0), MATCH(Selection_Hide2!M$5, 'Full set Core Client Indicator'!$A$3:$AB$3, 0))), \"\")","v":""},{"$f":"IF(M95<>\"\", IF(INDEX('Full set Core Client Indicator'!$A$3:$AB$351, MATCH(Selection_Hide2!$A95, 'Full set Core Client Indicator'!$A$3:$A$351, 0), MATCH(Selection_Hide2!N$5, 'Full set Core Client Indicator'!$A$3:$AB$3, 0))=\"\", \"\",  INDEX('Full set Core Client Indicator'!$A$3:$AB$351, MATCH(Selection_Hide2!$A95, 'Full set Core Client Indicator'!$A$3:$A$351, 0), MATCH(Selection_Hide2!N$5, 'Full set Core Client Indicator'!$A$3:$AB$3, 0))), \"\")","v":""},{"$f":"IF(N95<>\"\", IF(INDEX('Full set Core Client Indicator'!$A$3:$AB$351, MATCH(Selection_Hide2!$A95, 'Full set Core Client Indicator'!$A$3:$A$351, 0), MATCH(Selection_Hide2!O$5, 'Full set Core Client Indicator'!$A$3:$AB$3, 0))=\"\", \"\",  INDEX('Full set Core Client Indicator'!$A$3:$AB$351, MATCH(Selection_Hide2!$A95, 'Full set Core Client Indicator'!$A$3:$A$351, 0), MATCH(Selection_Hide2!O$5, 'Full set Core Client Indicator'!$A$3:$AB$3, 0))), \"\")","v":""},{"$f":"IF(O95<>\"\", IF(INDEX('Full set Core Client Indicator'!$A$3:$AB$351, MATCH(Selection_Hide2!$A95, 'Full set Core Client Indicator'!$A$3:$A$351, 0), MATCH(Selection_Hide2!P$5, 'Full set Core Client Indicator'!$A$3:$AB$3, 0))=\"\", \"\",  INDEX('Full set Core Client Indicator'!$A$3:$AB$351, MATCH(Selection_Hide2!$A95, 'Full set Core Client Indicator'!$A$3:$A$351, 0), MATCH(Selection_Hide2!P$5, 'Full set Core Client Indicator'!$A$3:$AB$3, 0))), \"\")","v":""},{"$f":"IF(P95<>\"\", IF(INDEX('Full set Core Client Indicator'!$A$3:$AB$351, MATCH(Selection_Hide2!$A95, 'Full set Core Client Indicator'!$A$3:$A$351, 0), MATCH(Selection_Hide2!Q$5, 'Full set Core Client Indicator'!$A$3:$AB$3, 0))=\"\", \"\",  INDEX('Full set Core Client Indicator'!$A$3:$AB$351, MATCH(Selection_Hide2!$A95, 'Full set Core Client Indicator'!$A$3:$A$351, 0), MATCH(Selection_Hide2!Q$5, 'Full set Core Client Indicator'!$A$3:$AB$3, 0))), \"\")","v":""},{"$f":"IF(Q95<>\"\", IF(INDEX('Full set Core Client Indicator'!$A$3:$AB$351, MATCH(Selection_Hide2!$A95, 'Full set Core Client Indicator'!$A$3:$A$351, 0), MATCH(Selection_Hide2!R$5, 'Full set Core Client Indicator'!$A$3:$AB$3, 0))=\"\", \"\",  INDEX('Full set Core Client Indicator'!$A$3:$AB$351, MATCH(Selection_Hide2!$A95, 'Full set Core Client Indicator'!$A$3:$A$351, 0), MATCH(Selection_Hide2!R$5, 'Full set Core Client Indicator'!$A$3:$AB$3, 0))), \"\")","v":""},{"$f":"IF(R95<>\"\", IF(INDEX('Full set Core Client Indicator'!$A$3:$AB$351, MATCH(Selection_Hide2!$A95, 'Full set Core Client Indicator'!$A$3:$A$351, 0), MATCH(Selection_Hide2!S$5, 'Full set Core Client Indicator'!$A$3:$AB$3, 0))=\"\", \"\",  INDEX('Full set Core Client Indicator'!$A$3:$AB$351, MATCH(Selection_Hide2!$A95, 'Full set Core Client Indicator'!$A$3:$A$351, 0), MATCH(Selection_Hide2!S$5, 'Full set Core Client Indicator'!$A$3:$AB$3, 0))), \"\")","v":""},{"$f":"IF(S95<>\"\", IF(INDEX('Full set Core Client Indicator'!$A$3:$AB$351, MATCH(Selection_Hide2!$A95, 'Full set Core Client Indicator'!$A$3:$A$351, 0), MATCH(Selection_Hide2!T$5, 'Full set Core Client Indicator'!$A$3:$AB$3, 0))=\"\", \"\",  INDEX('Full set Core Client Indicator'!$A$3:$AB$351, MATCH(Selection_Hide2!$A95, 'Full set Core Client Indicator'!$A$3:$A$351, 0), MATCH(Selection_Hide2!T$5, 'Full set Core Client Indicator'!$A$3:$AB$3, 0))), \"\")","v":""},{"$f":"IF(T95<>\"\", IF(INDEX('Full set Core Client Indicator'!$A$3:$AB$351, MATCH(Selection_Hide2!$A95, 'Full set Core Client Indicator'!$A$3:$A$351, 0), MATCH(Selection_Hide2!U$5, 'Full set Core Client Indicator'!$A$3:$AB$3, 0))=\"\", \"\",  INDEX('Full set Core Client Indicator'!$A$3:$AB$351, MATCH(Selection_Hide2!$A95, 'Full set Core Client Indicator'!$A$3:$A$351, 0), MATCH(Selection_Hide2!U$5, 'Full set Core Client Indicator'!$A$3:$AB$3, 0))), \"\")","v":""},{"$f":"IF(U95<>\"\", IF(INDEX('Full set Core Client Indicator'!$A$3:$AB$351, MATCH(Selection_Hide2!$A95, 'Full set Core Client Indicator'!$A$3:$A$351, 0), MATCH(Selection_Hide2!V$5, 'Full set Core Client Indicator'!$A$3:$AB$3, 0))=\"\", \"\",  INDEX('Full set Core Client Indicator'!$A$3:$AB$351, MATCH(Selection_Hide2!$A95, 'Full set Core Client Indicator'!$A$3:$A$351, 0), MATCH(Selection_Hide2!V$5, 'Full set Core Client Indicator'!$A$3:$AB$3, 0))), \"\")","v":""},{"$f":"IF(V95<>\"\", IF(INDEX('Full set Core Client Indicator'!$A$3:$AB$351, MATCH(Selection_Hide2!$A95, 'Full set Core Client Indicator'!$A$3:$A$351, 0), MATCH(Selection_Hide2!W$5, 'Full set Core Client Indicator'!$A$3:$AB$3, 0))=\"\", \"\",  INDEX('Full set Core Client Indicator'!$A$3:$AB$351, MATCH(Selection_Hide2!$A95, 'Full set Core Client Indicator'!$A$3:$A$351, 0), MATCH(Selection_Hide2!W$5, 'Full set Core Client Indicator'!$A$3:$AB$3, 0))), \"\")","v":""},{"$f":"IF(W95<>\"\", IF(INDEX('Full set Core Client Indicator'!$A$3:$AB$351, MATCH(Selection_Hide2!$A95, 'Full set Core Client Indicator'!$A$3:$A$351, 0), MATCH(Selection_Hide2!X$5, 'Full set Core Client Indicator'!$A$3:$AB$3, 0))=\"\", \"\",  INDEX('Full set Core Client Indicator'!$A$3:$AB$351, MATCH(Selection_Hide2!$A95, 'Full set Core Client Indicator'!$A$3:$A$351, 0), MATCH(Selection_Hide2!X$5, 'Full set Core Client Indicator'!$A$3:$AB$3, 0))), \"\")","v":""},{"$f":"IF(X95<>\"\", IF(INDEX('Full set Core Client Indicator'!$A$3:$AB$351, MATCH(Selection_Hide2!$A95, 'Full set Core Client Indicator'!$A$3:$A$351, 0), MATCH(Selection_Hide2!Y$5, 'Full set Core Client Indicator'!$A$3:$AB$3, 0))=\"\", \"\",  INDEX('Full set Core Client Indicator'!$A$3:$AB$351, MATCH(Selection_Hide2!$A95, 'Full set Core Client Indicator'!$A$3:$A$351, 0), MATCH(Selection_Hide2!Y$5, 'Full set Core Client Indicator'!$A$3:$AB$3, 0))), \"\")","v":""},{"$f":"IF(Y95<>\"\", IF(INDEX('Full set Core Client Indicator'!$A$3:$AB$351, MATCH(Selection_Hide2!$A95, 'Full set Core Client Indicator'!$A$3:$A$351, 0), MATCH(Selection_Hide2!Z$5, 'Full set Core Client Indicator'!$A$3:$AB$3, 0))=\"\", \"\",  INDEX('Full set Core Client Indicator'!$A$3:$AB$351, MATCH(Selection_Hide2!$A95, 'Full set Core Client Indicator'!$A$3:$A$351, 0), MATCH(Selection_Hide2!Z$5, 'Full set Core Client Indicator'!$A$3:$AB$3, 0))), \"\")","v":""},{"$f":"IF(Z95<>\"\", IF(INDEX('Full set Core Client Indicator'!$A$3:$AB$351, MATCH(Selection_Hide2!$A95, 'Full set Core Client Indicator'!$A$3:$A$351, 0), MATCH(Selection_Hide2!AA$5, 'Full set Core Client Indicator'!$A$3:$AB$3, 0))=\"\", \"\",  INDEX('Full set Core Client Indicator'!$A$3:$AB$351, MATCH(Selection_Hide2!$A95, 'Full set Core Client Indicator'!$A$3:$A$351, 0), MATCH(Selection_Hide2!AA$5, 'Full set Core Client Indicator'!$A$3:$AB$3, 0))), \"\")","v":""},{"$f":"IF(AA95<>\"\", IF(INDEX('Full set Core Client Indicator'!$A$3:$AB$351, MATCH(Selection_Hide2!$A95, 'Full set Core Client Indicator'!$A$3:$A$351, 0), MATCH(Selection_Hide2!AB$5, 'Full set Core Client Indicator'!$A$3:$AB$3, 0))=\"\", \"\",  INDEX('Full set Core Client Indicator'!$A$3:$AB$351, MATCH(Selection_Hide2!$A95, 'Full set Core Client Indicator'!$A$3:$A$351, 0), MATCH(Selection_Hide2!AB$5, 'Full set Core Client Indicator'!$A$3:$AB$3, 0))), \"\")","v":""}]
[{"$f":"IF(AND(Selection_Hide1!C94<>0, Selection_Hide1!C94<>\"Grand Total\"), Selection_Hide1!C94, \"\")","v":""},{"$f":"IF(A96<>\"\", IF(INDEX('Full set Core Client Indicator'!$A$3:$AB$351, MATCH(Selection_Hide2!$A96, 'Full set Core Client Indicator'!$A$3:$A$351, 0), MATCH(Selection_Hide2!B$5, 'Full set Core Client Indicator'!$A$3:$AB$3, 0))=\"\", \"\",  INDEX('Full set Core Client Indicator'!$A$3:$AB$351, MATCH(Selection_Hide2!$A96, 'Full set Core Client Indicator'!$A$3:$A$351, 0), MATCH(Selection_Hide2!B$5, 'Full set Core Client Indicator'!$A$3:$AB$3, 0))), \"\")","v":""},{"$f":"IF(B96<>\"\", IF(INDEX('Full set Core Client Indicator'!$A$3:$AB$351, MATCH(Selection_Hide2!$A96, 'Full set Core Client Indicator'!$A$3:$A$351, 0), MATCH(Selection_Hide2!C$5, 'Full set Core Client Indicator'!$A$3:$AB$3, 0))=\"\", \"\",  INDEX('Full set Core Client Indicator'!$A$3:$AB$351, MATCH(Selection_Hide2!$A96, 'Full set Core Client Indicator'!$A$3:$A$351, 0), MATCH(Selection_Hide2!C$5, 'Full set Core Client Indicator'!$A$3:$AB$3, 0))), \"\")","v":""},{"$f":"IF(C96<>\"\", IF(INDEX('Full set Core Client Indicator'!$A$3:$AB$351, MATCH(Selection_Hide2!$A96, 'Full set Core Client Indicator'!$A$3:$A$351, 0), MATCH(Selection_Hide2!D$5, 'Full set Core Client Indicator'!$A$3:$AB$3, 0))=\"\", \"\",  INDEX('Full set Core Client Indicator'!$A$3:$AB$351, MATCH(Selection_Hide2!$A96, 'Full set Core Client Indicator'!$A$3:$A$351, 0), MATCH(Selection_Hide2!D$5, 'Full set Core Client Indicator'!$A$3:$AB$3, 0))), \"\")","v":""},{"$f":"IF(D96<>\"\", IF(INDEX('Full set Core Client Indicator'!$A$3:$AB$351, MATCH(Selection_Hide2!$A96, 'Full set Core Client Indicator'!$A$3:$A$351, 0), MATCH(Selection_Hide2!E$5, 'Full set Core Client Indicator'!$A$3:$AB$3, 0))=\"\", \"\",  INDEX('Full set Core Client Indicator'!$A$3:$AB$351, MATCH(Selection_Hide2!$A96, 'Full set Core Client Indicator'!$A$3:$A$351, 0), MATCH(Selection_Hide2!E$5, 'Full set Core Client Indicator'!$A$3:$AB$3, 0))), \"\")","v":""},{"$f":"IF(E96<>\"\", IF(INDEX('Full set Core Client Indicator'!$A$3:$AB$351, MATCH(Selection_Hide2!$A96, 'Full set Core Client Indicator'!$A$3:$A$351, 0), MATCH(Selection_Hide2!F$5, 'Full set Core Client Indicator'!$A$3:$AB$3, 0))=\"\", \"\",  INDEX('Full set Core Client Indicator'!$A$3:$AB$351, MATCH(Selection_Hide2!$A96, 'Full set Core Client Indicator'!$A$3:$A$351, 0), MATCH(Selection_Hide2!F$5, 'Full set Core Client Indicator'!$A$3:$AB$3, 0))), \"\")","v":""},{"$f":"IF(F96<>\"\", IF(INDEX('Full set Core Client Indicator'!$A$3:$AB$351, MATCH(Selection_Hide2!$A96, 'Full set Core Client Indicator'!$A$3:$A$351, 0), MATCH(Selection_Hide2!G$5, 'Full set Core Client Indicator'!$A$3:$AB$3, 0))=\"\", \"\",  INDEX('Full set Core Client Indicator'!$A$3:$AB$351, MATCH(Selection_Hide2!$A96, 'Full set Core Client Indicator'!$A$3:$A$351, 0), MATCH(Selection_Hide2!G$5, 'Full set Core Client Indicator'!$A$3:$AB$3, 0))), \"\")","v":""},{"$f":"IF(G96<>\"\", IF(INDEX('Full set Core Client Indicator'!$A$3:$AB$351, MATCH(Selection_Hide2!$A96, 'Full set Core Client Indicator'!$A$3:$A$351, 0), MATCH(Selection_Hide2!H$5, 'Full set Core Client Indicator'!$A$3:$AB$3, 0))=\"\", \"\",  INDEX('Full set Core Client Indicator'!$A$3:$AB$351, MATCH(Selection_Hide2!$A96, 'Full set Core Client Indicator'!$A$3:$A$351, 0), MATCH(Selection_Hide2!H$5, 'Full set Core Client Indicator'!$A$3:$AB$3, 0))), \"\")","v":""},{"$f":"IF(H96<>\"\", IF(INDEX('Full set Core Client Indicator'!$A$3:$AB$351, MATCH(Selection_Hide2!$A96, 'Full set Core Client Indicator'!$A$3:$A$351, 0), MATCH(Selection_Hide2!I$5, 'Full set Core Client Indicator'!$A$3:$AB$3, 0))=\"\", \"\",  INDEX('Full set Core Client Indicator'!$A$3:$AB$351, MATCH(Selection_Hide2!$A96, 'Full set Core Client Indicator'!$A$3:$A$351, 0), MATCH(Selection_Hide2!I$5, 'Full set Core Client Indicator'!$A$3:$AB$3, 0))), \"\")","v":""},{"$f":"IF(I96<>\"\", IF(INDEX('Full set Core Client Indicator'!$A$3:$AB$351, MATCH(Selection_Hide2!$A96, 'Full set Core Client Indicator'!$A$3:$A$351, 0), MATCH(Selection_Hide2!J$5, 'Full set Core Client Indicator'!$A$3:$AB$3, 0))=\"\", \"\",  INDEX('Full set Core Client Indicator'!$A$3:$AB$351, MATCH(Selection_Hide2!$A96, 'Full set Core Client Indicator'!$A$3:$A$351, 0), MATCH(Selection_Hide2!J$5, 'Full set Core Client Indicator'!$A$3:$AB$3, 0))), \"\")","v":""},{"$f":"IF(J96<>\"\", IF(INDEX('Full set Core Client Indicator'!$A$3:$AB$351, MATCH(Selection_Hide2!$A96, 'Full set Core Client Indicator'!$A$3:$A$351, 0), MATCH(Selection_Hide2!K$5, 'Full set Core Client Indicator'!$A$3:$AB$3, 0))=\"\", \"\",  INDEX('Full set Core Client Indicator'!$A$3:$AB$351, MATCH(Selection_Hide2!$A96, 'Full set Core Client Indicator'!$A$3:$A$351, 0), MATCH(Selection_Hide2!K$5, 'Full set Core Client Indicator'!$A$3:$AB$3, 0))), \"\")","v":""},{"$f":"IF(K96<>\"\", IF(INDEX('Full set Core Client Indicator'!$A$3:$AB$351, MATCH(Selection_Hide2!$A96, 'Full set Core Client Indicator'!$A$3:$A$351, 0), MATCH(Selection_Hide2!L$5, 'Full set Core Client Indicator'!$A$3:$AB$3, 0))=\"\", \"\",  INDEX('Full set Core Client Indicator'!$A$3:$AB$351, MATCH(Selection_Hide2!$A96, 'Full set Core Client Indicator'!$A$3:$A$351, 0), MATCH(Selection_Hide2!L$5, 'Full set Core Client Indicator'!$A$3:$AB$3, 0))), \"\")","v":""},{"$f":"IF(L96<>\"\", IF(INDEX('Full set Core Client Indicator'!$A$3:$AB$351, MATCH(Selection_Hide2!$A96, 'Full set Core Client Indicator'!$A$3:$A$351, 0), MATCH(Selection_Hide2!M$5, 'Full set Core Client Indicator'!$A$3:$AB$3, 0))=\"\", \"\",  INDEX('Full set Core Client Indicator'!$A$3:$AB$351, MATCH(Selection_Hide2!$A96, 'Full set Core Client Indicator'!$A$3:$A$351, 0), MATCH(Selection_Hide2!M$5, 'Full set Core Client Indicator'!$A$3:$AB$3, 0))), \"\")","v":""},{"$f":"IF(M96<>\"\", IF(INDEX('Full set Core Client Indicator'!$A$3:$AB$351, MATCH(Selection_Hide2!$A96, 'Full set Core Client Indicator'!$A$3:$A$351, 0), MATCH(Selection_Hide2!N$5, 'Full set Core Client Indicator'!$A$3:$AB$3, 0))=\"\", \"\",  INDEX('Full set Core Client Indicator'!$A$3:$AB$351, MATCH(Selection_Hide2!$A96, 'Full set Core Client Indicator'!$A$3:$A$351, 0), MATCH(Selection_Hide2!N$5, 'Full set Core Client Indicator'!$A$3:$AB$3, 0))), \"\")","v":""},{"$f":"IF(N96<>\"\", IF(INDEX('Full set Core Client Indicator'!$A$3:$AB$351, MATCH(Selection_Hide2!$A96, 'Full set Core Client Indicator'!$A$3:$A$351, 0), MATCH(Selection_Hide2!O$5, 'Full set Core Client Indicator'!$A$3:$AB$3, 0))=\"\", \"\",  INDEX('Full set Core Client Indicator'!$A$3:$AB$351, MATCH(Selection_Hide2!$A96, 'Full set Core Client Indicator'!$A$3:$A$351, 0), MATCH(Selection_Hide2!O$5, 'Full set Core Client Indicator'!$A$3:$AB$3, 0))), \"\")","v":""},{"$f":"IF(O96<>\"\", IF(INDEX('Full set Core Client Indicator'!$A$3:$AB$351, MATCH(Selection_Hide2!$A96, 'Full set Core Client Indicator'!$A$3:$A$351, 0), MATCH(Selection_Hide2!P$5, 'Full set Core Client Indicator'!$A$3:$AB$3, 0))=\"\", \"\",  INDEX('Full set Core Client Indicator'!$A$3:$AB$351, MATCH(Selection_Hide2!$A96, 'Full set Core Client Indicator'!$A$3:$A$351, 0), MATCH(Selection_Hide2!P$5, 'Full set Core Client Indicator'!$A$3:$AB$3, 0))), \"\")","v":""},{"$f":"IF(P96<>\"\", IF(INDEX('Full set Core Client Indicator'!$A$3:$AB$351, MATCH(Selection_Hide2!$A96, 'Full set Core Client Indicator'!$A$3:$A$351, 0), MATCH(Selection_Hide2!Q$5, 'Full set Core Client Indicator'!$A$3:$AB$3, 0))=\"\", \"\",  INDEX('Full set Core Client Indicator'!$A$3:$AB$351, MATCH(Selection_Hide2!$A96, 'Full set Core Client Indicator'!$A$3:$A$351, 0), MATCH(Selection_Hide2!Q$5, 'Full set Core Client Indicator'!$A$3:$AB$3, 0))), \"\")","v":""},{"$f":"IF(Q96<>\"\", IF(INDEX('Full set Core Client Indicator'!$A$3:$AB$351, MATCH(Selection_Hide2!$A96, 'Full set Core Client Indicator'!$A$3:$A$351, 0), MATCH(Selection_Hide2!R$5, 'Full set Core Client Indicator'!$A$3:$AB$3, 0))=\"\", \"\",  INDEX('Full set Core Client Indicator'!$A$3:$AB$351, MATCH(Selection_Hide2!$A96, 'Full set Core Client Indicator'!$A$3:$A$351, 0), MATCH(Selection_Hide2!R$5, 'Full set Core Client Indicator'!$A$3:$AB$3, 0))), \"\")","v":""},{"$f":"IF(R96<>\"\", IF(INDEX('Full set Core Client Indicator'!$A$3:$AB$351, MATCH(Selection_Hide2!$A96, 'Full set Core Client Indicator'!$A$3:$A$351, 0), MATCH(Selection_Hide2!S$5, 'Full set Core Client Indicator'!$A$3:$AB$3, 0))=\"\", \"\",  INDEX('Full set Core Client Indicator'!$A$3:$AB$351, MATCH(Selection_Hide2!$A96, 'Full set Core Client Indicator'!$A$3:$A$351, 0), MATCH(Selection_Hide2!S$5, 'Full set Core Client Indicator'!$A$3:$AB$3, 0))), \"\")","v":""},{"$f":"IF(S96<>\"\", IF(INDEX('Full set Core Client Indicator'!$A$3:$AB$351, MATCH(Selection_Hide2!$A96, 'Full set Core Client Indicator'!$A$3:$A$351, 0), MATCH(Selection_Hide2!T$5, 'Full set Core Client Indicator'!$A$3:$AB$3, 0))=\"\", \"\",  INDEX('Full set Core Client Indicator'!$A$3:$AB$351, MATCH(Selection_Hide2!$A96, 'Full set Core Client Indicator'!$A$3:$A$351, 0), MATCH(Selection_Hide2!T$5, 'Full set Core Client Indicator'!$A$3:$AB$3, 0))), \"\")","v":""},{"$f":"IF(T96<>\"\", IF(INDEX('Full set Core Client Indicator'!$A$3:$AB$351, MATCH(Selection_Hide2!$A96, 'Full set Core Client Indicator'!$A$3:$A$351, 0), MATCH(Selection_Hide2!U$5, 'Full set Core Client Indicator'!$A$3:$AB$3, 0))=\"\", \"\",  INDEX('Full set Core Client Indicator'!$A$3:$AB$351, MATCH(Selection_Hide2!$A96, 'Full set Core Client Indicator'!$A$3:$A$351, 0), MATCH(Selection_Hide2!U$5, 'Full set Core Client Indicator'!$A$3:$AB$3, 0))), \"\")","v":""},{"$f":"IF(U96<>\"\", IF(INDEX('Full set Core Client Indicator'!$A$3:$AB$351, MATCH(Selection_Hide2!$A96, 'Full set Core Client Indicator'!$A$3:$A$351, 0), MATCH(Selection_Hide2!V$5, 'Full set Core Client Indicator'!$A$3:$AB$3, 0))=\"\", \"\",  INDEX('Full set Core Client Indicator'!$A$3:$AB$351, MATCH(Selection_Hide2!$A96, 'Full set Core Client Indicator'!$A$3:$A$351, 0), MATCH(Selection_Hide2!V$5, 'Full set Core Client Indicator'!$A$3:$AB$3, 0))), \"\")","v":""},{"$f":"IF(V96<>\"\", IF(INDEX('Full set Core Client Indicator'!$A$3:$AB$351, MATCH(Selection_Hide2!$A96, 'Full set Core Client Indicator'!$A$3:$A$351, 0), MATCH(Selection_Hide2!W$5, 'Full set Core Client Indicator'!$A$3:$AB$3, 0))=\"\", \"\",  INDEX('Full set Core Client Indicator'!$A$3:$AB$351, MATCH(Selection_Hide2!$A96, 'Full set Core Client Indicator'!$A$3:$A$351, 0), MATCH(Selection_Hide2!W$5, 'Full set Core Client Indicator'!$A$3:$AB$3, 0))), \"\")","v":""},{"$f":"IF(W96<>\"\", IF(INDEX('Full set Core Client Indicator'!$A$3:$AB$351, MATCH(Selection_Hide2!$A96, 'Full set Core Client Indicator'!$A$3:$A$351, 0), MATCH(Selection_Hide2!X$5, 'Full set Core Client Indicator'!$A$3:$AB$3, 0))=\"\", \"\",  INDEX('Full set Core Client Indicator'!$A$3:$AB$351, MATCH(Selection_Hide2!$A96, 'Full set Core Client Indicator'!$A$3:$A$351, 0), MATCH(Selection_Hide2!X$5, 'Full set Core Client Indicator'!$A$3:$AB$3, 0))), \"\")","v":""},{"$f":"IF(X96<>\"\", IF(INDEX('Full set Core Client Indicator'!$A$3:$AB$351, MATCH(Selection_Hide2!$A96, 'Full set Core Client Indicator'!$A$3:$A$351, 0), MATCH(Selection_Hide2!Y$5, 'Full set Core Client Indicator'!$A$3:$AB$3, 0))=\"\", \"\",  INDEX('Full set Core Client Indicator'!$A$3:$AB$351, MATCH(Selection_Hide2!$A96, 'Full set Core Client Indicator'!$A$3:$A$351, 0), MATCH(Selection_Hide2!Y$5, 'Full set Core Client Indicator'!$A$3:$AB$3, 0))), \"\")","v":""},{"$f":"IF(Y96<>\"\", IF(INDEX('Full set Core Client Indicator'!$A$3:$AB$351, MATCH(Selection_Hide2!$A96, 'Full set Core Client Indicator'!$A$3:$A$351, 0), MATCH(Selection_Hide2!Z$5, 'Full set Core Client Indicator'!$A$3:$AB$3, 0))=\"\", \"\",  INDEX('Full set Core Client Indicator'!$A$3:$AB$351, MATCH(Selection_Hide2!$A96, 'Full set Core Client Indicator'!$A$3:$A$351, 0), MATCH(Selection_Hide2!Z$5, 'Full set Core Client Indicator'!$A$3:$AB$3, 0))), \"\")","v":""},{"$f":"IF(Z96<>\"\", IF(INDEX('Full set Core Client Indicator'!$A$3:$AB$351, MATCH(Selection_Hide2!$A96, 'Full set Core Client Indicator'!$A$3:$A$351, 0), MATCH(Selection_Hide2!AA$5, 'Full set Core Client Indicator'!$A$3:$AB$3, 0))=\"\", \"\",  INDEX('Full set Core Client Indicator'!$A$3:$AB$351, MATCH(Selection_Hide2!$A96, 'Full set Core Client Indicator'!$A$3:$A$351, 0), MATCH(Selection_Hide2!AA$5, 'Full set Core Client Indicator'!$A$3:$AB$3, 0))), \"\")","v":""},{"$f":"IF(AA96<>\"\", IF(INDEX('Full set Core Client Indicator'!$A$3:$AB$351, MATCH(Selection_Hide2!$A96, 'Full set Core Client Indicator'!$A$3:$A$351, 0), MATCH(Selection_Hide2!AB$5, 'Full set Core Client Indicator'!$A$3:$AB$3, 0))=\"\", \"\",  INDEX('Full set Core Client Indicator'!$A$3:$AB$351, MATCH(Selection_Hide2!$A96, 'Full set Core Client Indicator'!$A$3:$A$351, 0), MATCH(Selection_Hide2!AB$5, 'Full set Core Client Indicator'!$A$3:$AB$3, 0))), \"\")","v":""}]
[{"$f":"IF(AND(Selection_Hide1!C95<>0, Selection_Hide1!C95<>\"Grand Total\"), Selection_Hide1!C95, \"\")","v":""},{"$f":"IF(A97<>\"\", IF(INDEX('Full set Core Client Indicator'!$A$3:$AB$351, MATCH(Selection_Hide2!$A97, 'Full set Core Client Indicator'!$A$3:$A$351, 0), MATCH(Selection_Hide2!B$5, 'Full set Core Client Indicator'!$A$3:$AB$3, 0))=\"\", \"\",  INDEX('Full set Core Client Indicator'!$A$3:$AB$351, MATCH(Selection_Hide2!$A97, 'Full set Core Client Indicator'!$A$3:$A$351, 0), MATCH(Selection_Hide2!B$5, 'Full set Core Client Indicator'!$A$3:$AB$3, 0))), \"\")","v":""},{"$f":"IF(B97<>\"\", IF(INDEX('Full set Core Client Indicator'!$A$3:$AB$351, MATCH(Selection_Hide2!$A97, 'Full set Core Client Indicator'!$A$3:$A$351, 0), MATCH(Selection_Hide2!C$5, 'Full set Core Client Indicator'!$A$3:$AB$3, 0))=\"\", \"\",  INDEX('Full set Core Client Indicator'!$A$3:$AB$351, MATCH(Selection_Hide2!$A97, 'Full set Core Client Indicator'!$A$3:$A$351, 0), MATCH(Selection_Hide2!C$5, 'Full set Core Client Indicator'!$A$3:$AB$3, 0))), \"\")","v":""},{"$f":"IF(C97<>\"\", IF(INDEX('Full set Core Client Indicator'!$A$3:$AB$351, MATCH(Selection_Hide2!$A97, 'Full set Core Client Indicator'!$A$3:$A$351, 0), MATCH(Selection_Hide2!D$5, 'Full set Core Client Indicator'!$A$3:$AB$3, 0))=\"\", \"\",  INDEX('Full set Core Client Indicator'!$A$3:$AB$351, MATCH(Selection_Hide2!$A97, 'Full set Core Client Indicator'!$A$3:$A$351, 0), MATCH(Selection_Hide2!D$5, 'Full set Core Client Indicator'!$A$3:$AB$3, 0))), \"\")","v":""},{"$f":"IF(D97<>\"\", IF(INDEX('Full set Core Client Indicator'!$A$3:$AB$351, MATCH(Selection_Hide2!$A97, 'Full set Core Client Indicator'!$A$3:$A$351, 0), MATCH(Selection_Hide2!E$5, 'Full set Core Client Indicator'!$A$3:$AB$3, 0))=\"\", \"\",  INDEX('Full set Core Client Indicator'!$A$3:$AB$351, MATCH(Selection_Hide2!$A97, 'Full set Core Client Indicator'!$A$3:$A$351, 0), MATCH(Selection_Hide2!E$5, 'Full set Core Client Indicator'!$A$3:$AB$3, 0))), \"\")","v":""},{"$f":"IF(E97<>\"\", IF(INDEX('Full set Core Client Indicator'!$A$3:$AB$351, MATCH(Selection_Hide2!$A97, 'Full set Core Client Indicator'!$A$3:$A$351, 0), MATCH(Selection_Hide2!F$5, 'Full set Core Client Indicator'!$A$3:$AB$3, 0))=\"\", \"\",  INDEX('Full set Core Client Indicator'!$A$3:$AB$351, MATCH(Selection_Hide2!$A97, 'Full set Core Client Indicator'!$A$3:$A$351, 0), MATCH(Selection_Hide2!F$5, 'Full set Core Client Indicator'!$A$3:$AB$3, 0))), \"\")","v":""},{"$f":"IF(F97<>\"\", IF(INDEX('Full set Core Client Indicator'!$A$3:$AB$351, MATCH(Selection_Hide2!$A97, 'Full set Core Client Indicator'!$A$3:$A$351, 0), MATCH(Selection_Hide2!G$5, 'Full set Core Client Indicator'!$A$3:$AB$3, 0))=\"\", \"\",  INDEX('Full set Core Client Indicator'!$A$3:$AB$351, MATCH(Selection_Hide2!$A97, 'Full set Core Client Indicator'!$A$3:$A$351, 0), MATCH(Selection_Hide2!G$5, 'Full set Core Client Indicator'!$A$3:$AB$3, 0))), \"\")","v":""},{"$f":"IF(G97<>\"\", IF(INDEX('Full set Core Client Indicator'!$A$3:$AB$351, MATCH(Selection_Hide2!$A97, 'Full set Core Client Indicator'!$A$3:$A$351, 0), MATCH(Selection_Hide2!H$5, 'Full set Core Client Indicator'!$A$3:$AB$3, 0))=\"\", \"\",  INDEX('Full set Core Client Indicator'!$A$3:$AB$351, MATCH(Selection_Hide2!$A97, 'Full set Core Client Indicator'!$A$3:$A$351, 0), MATCH(Selection_Hide2!H$5, 'Full set Core Client Indicator'!$A$3:$AB$3, 0))), \"\")","v":""},{"$f":"IF(H97<>\"\", IF(INDEX('Full set Core Client Indicator'!$A$3:$AB$351, MATCH(Selection_Hide2!$A97, 'Full set Core Client Indicator'!$A$3:$A$351, 0), MATCH(Selection_Hide2!I$5, 'Full set Core Client Indicator'!$A$3:$AB$3, 0))=\"\", \"\",  INDEX('Full set Core Client Indicator'!$A$3:$AB$351, MATCH(Selection_Hide2!$A97, 'Full set Core Client Indicator'!$A$3:$A$351, 0), MATCH(Selection_Hide2!I$5, 'Full set Core Client Indicator'!$A$3:$AB$3, 0))), \"\")","v":""},{"$f":"IF(I97<>\"\", IF(INDEX('Full set Core Client Indicator'!$A$3:$AB$351, MATCH(Selection_Hide2!$A97, 'Full set Core Client Indicator'!$A$3:$A$351, 0), MATCH(Selection_Hide2!J$5, 'Full set Core Client Indicator'!$A$3:$AB$3, 0))=\"\", \"\",  INDEX('Full set Core Client Indicator'!$A$3:$AB$351, MATCH(Selection_Hide2!$A97, 'Full set Core Client Indicator'!$A$3:$A$351, 0), MATCH(Selection_Hide2!J$5, 'Full set Core Client Indicator'!$A$3:$AB$3, 0))), \"\")","v":""},{"$f":"IF(J97<>\"\", IF(INDEX('Full set Core Client Indicator'!$A$3:$AB$351, MATCH(Selection_Hide2!$A97, 'Full set Core Client Indicator'!$A$3:$A$351, 0), MATCH(Selection_Hide2!K$5, 'Full set Core Client Indicator'!$A$3:$AB$3, 0))=\"\", \"\",  INDEX('Full set Core Client Indicator'!$A$3:$AB$351, MATCH(Selection_Hide2!$A97, 'Full set Core Client Indicator'!$A$3:$A$351, 0), MATCH(Selection_Hide2!K$5, 'Full set Core Client Indicator'!$A$3:$AB$3, 0))), \"\")","v":""},{"$f":"IF(K97<>\"\", IF(INDEX('Full set Core Client Indicator'!$A$3:$AB$351, MATCH(Selection_Hide2!$A97, 'Full set Core Client Indicator'!$A$3:$A$351, 0), MATCH(Selection_Hide2!L$5, 'Full set Core Client Indicator'!$A$3:$AB$3, 0))=\"\", \"\",  INDEX('Full set Core Client Indicator'!$A$3:$AB$351, MATCH(Selection_Hide2!$A97, 'Full set Core Client Indicator'!$A$3:$A$351, 0), MATCH(Selection_Hide2!L$5, 'Full set Core Client Indicator'!$A$3:$AB$3, 0))), \"\")","v":""},{"$f":"IF(L97<>\"\", IF(INDEX('Full set Core Client Indicator'!$A$3:$AB$351, MATCH(Selection_Hide2!$A97, 'Full set Core Client Indicator'!$A$3:$A$351, 0), MATCH(Selection_Hide2!M$5, 'Full set Core Client Indicator'!$A$3:$AB$3, 0))=\"\", \"\",  INDEX('Full set Core Client Indicator'!$A$3:$AB$351, MATCH(Selection_Hide2!$A97, 'Full set Core Client Indicator'!$A$3:$A$351, 0), MATCH(Selection_Hide2!M$5, 'Full set Core Client Indicator'!$A$3:$AB$3, 0))), \"\")","v":""},{"$f":"IF(M97<>\"\", IF(INDEX('Full set Core Client Indicator'!$A$3:$AB$351, MATCH(Selection_Hide2!$A97, 'Full set Core Client Indicator'!$A$3:$A$351, 0), MATCH(Selection_Hide2!N$5, 'Full set Core Client Indicator'!$A$3:$AB$3, 0))=\"\", \"\",  INDEX('Full set Core Client Indicator'!$A$3:$AB$351, MATCH(Selection_Hide2!$A97, 'Full set Core Client Indicator'!$A$3:$A$351, 0), MATCH(Selection_Hide2!N$5, 'Full set Core Client Indicator'!$A$3:$AB$3, 0))), \"\")","v":""},{"$f":"IF(N97<>\"\", IF(INDEX('Full set Core Client Indicator'!$A$3:$AB$351, MATCH(Selection_Hide2!$A97, 'Full set Core Client Indicator'!$A$3:$A$351, 0), MATCH(Selection_Hide2!O$5, 'Full set Core Client Indicator'!$A$3:$AB$3, 0))=\"\", \"\",  INDEX('Full set Core Client Indicator'!$A$3:$AB$351, MATCH(Selection_Hide2!$A97, 'Full set Core Client Indicator'!$A$3:$A$351, 0), MATCH(Selection_Hide2!O$5, 'Full set Core Client Indicator'!$A$3:$AB$3, 0))), \"\")","v":""},{"$f":"IF(O97<>\"\", IF(INDEX('Full set Core Client Indicator'!$A$3:$AB$351, MATCH(Selection_Hide2!$A97, 'Full set Core Client Indicator'!$A$3:$A$351, 0), MATCH(Selection_Hide2!P$5, 'Full set Core Client Indicator'!$A$3:$AB$3, 0))=\"\", \"\",  INDEX('Full set Core Client Indicator'!$A$3:$AB$351, MATCH(Selection_Hide2!$A97, 'Full set Core Client Indicator'!$A$3:$A$351, 0), MATCH(Selection_Hide2!P$5, 'Full set Core Client Indicator'!$A$3:$AB$3, 0))), \"\")","v":""},{"$f":"IF(P97<>\"\", IF(INDEX('Full set Core Client Indicator'!$A$3:$AB$351, MATCH(Selection_Hide2!$A97, 'Full set Core Client Indicator'!$A$3:$A$351, 0), MATCH(Selection_Hide2!Q$5, 'Full set Core Client Indicator'!$A$3:$AB$3, 0))=\"\", \"\",  INDEX('Full set Core Client Indicator'!$A$3:$AB$351, MATCH(Selection_Hide2!$A97, 'Full set Core Client Indicator'!$A$3:$A$351, 0), MATCH(Selection_Hide2!Q$5, 'Full set Core Client Indicator'!$A$3:$AB$3, 0))), \"\")","v":""},{"$f":"IF(Q97<>\"\", IF(INDEX('Full set Core Client Indicator'!$A$3:$AB$351, MATCH(Selection_Hide2!$A97, 'Full set Core Client Indicator'!$A$3:$A$351, 0), MATCH(Selection_Hide2!R$5, 'Full set Core Client Indicator'!$A$3:$AB$3, 0))=\"\", \"\",  INDEX('Full set Core Client Indicator'!$A$3:$AB$351, MATCH(Selection_Hide2!$A97, 'Full set Core Client Indicator'!$A$3:$A$351, 0), MATCH(Selection_Hide2!R$5, 'Full set Core Client Indicator'!$A$3:$AB$3, 0))), \"\")","v":""},{"$f":"IF(R97<>\"\", IF(INDEX('Full set Core Client Indicator'!$A$3:$AB$351, MATCH(Selection_Hide2!$A97, 'Full set Core Client Indicator'!$A$3:$A$351, 0), MATCH(Selection_Hide2!S$5, 'Full set Core Client Indicator'!$A$3:$AB$3, 0))=\"\", \"\",  INDEX('Full set Core Client Indicator'!$A$3:$AB$351, MATCH(Selection_Hide2!$A97, 'Full set Core Client Indicator'!$A$3:$A$351, 0), MATCH(Selection_Hide2!S$5, 'Full set Core Client Indicator'!$A$3:$AB$3, 0))), \"\")","v":""},{"$f":"IF(S97<>\"\", IF(INDEX('Full set Core Client Indicator'!$A$3:$AB$351, MATCH(Selection_Hide2!$A97, 'Full set Core Client Indicator'!$A$3:$A$351, 0), MATCH(Selection_Hide2!T$5, 'Full set Core Client Indicator'!$A$3:$AB$3, 0))=\"\", \"\",  INDEX('Full set Core Client Indicator'!$A$3:$AB$351, MATCH(Selection_Hide2!$A97, 'Full set Core Client Indicator'!$A$3:$A$351, 0), MATCH(Selection_Hide2!T$5, 'Full set Core Client Indicator'!$A$3:$AB$3, 0))), \"\")","v":""},{"$f":"IF(T97<>\"\", IF(INDEX('Full set Core Client Indicator'!$A$3:$AB$351, MATCH(Selection_Hide2!$A97, 'Full set Core Client Indicator'!$A$3:$A$351, 0), MATCH(Selection_Hide2!U$5, 'Full set Core Client Indicator'!$A$3:$AB$3, 0))=\"\", \"\",  INDEX('Full set Core Client Indicator'!$A$3:$AB$351, MATCH(Selection_Hide2!$A97, 'Full set Core Client Indicator'!$A$3:$A$351, 0), MATCH(Selection_Hide2!U$5, 'Full set Core Client Indicator'!$A$3:$AB$3, 0))), \"\")","v":""},{"$f":"IF(U97<>\"\", IF(INDEX('Full set Core Client Indicator'!$A$3:$AB$351, MATCH(Selection_Hide2!$A97, 'Full set Core Client Indicator'!$A$3:$A$351, 0), MATCH(Selection_Hide2!V$5, 'Full set Core Client Indicator'!$A$3:$AB$3, 0))=\"\", \"\",  INDEX('Full set Core Client Indicator'!$A$3:$AB$351, MATCH(Selection_Hide2!$A97, 'Full set Core Client Indicator'!$A$3:$A$351, 0), MATCH(Selection_Hide2!V$5, 'Full set Core Client Indicator'!$A$3:$AB$3, 0))), \"\")","v":""},{"$f":"IF(V97<>\"\", IF(INDEX('Full set Core Client Indicator'!$A$3:$AB$351, MATCH(Selection_Hide2!$A97, 'Full set Core Client Indicator'!$A$3:$A$351, 0), MATCH(Selection_Hide2!W$5, 'Full set Core Client Indicator'!$A$3:$AB$3, 0))=\"\", \"\",  INDEX('Full set Core Client Indicator'!$A$3:$AB$351, MATCH(Selection_Hide2!$A97, 'Full set Core Client Indicator'!$A$3:$A$351, 0), MATCH(Selection_Hide2!W$5, 'Full set Core Client Indicator'!$A$3:$AB$3, 0))), \"\")","v":""},{"$f":"IF(W97<>\"\", IF(INDEX('Full set Core Client Indicator'!$A$3:$AB$351, MATCH(Selection_Hide2!$A97, 'Full set Core Client Indicator'!$A$3:$A$351, 0), MATCH(Selection_Hide2!X$5, 'Full set Core Client Indicator'!$A$3:$AB$3, 0))=\"\", \"\",  INDEX('Full set Core Client Indicator'!$A$3:$AB$351, MATCH(Selection_Hide2!$A97, 'Full set Core Client Indicator'!$A$3:$A$351, 0), MATCH(Selection_Hide2!X$5, 'Full set Core Client Indicator'!$A$3:$AB$3, 0))), \"\")","v":""},{"$f":"IF(X97<>\"\", IF(INDEX('Full set Core Client Indicator'!$A$3:$AB$351, MATCH(Selection_Hide2!$A97, 'Full set Core Client Indicator'!$A$3:$A$351, 0), MATCH(Selection_Hide2!Y$5, 'Full set Core Client Indicator'!$A$3:$AB$3, 0))=\"\", \"\",  INDEX('Full set Core Client Indicator'!$A$3:$AB$351, MATCH(Selection_Hide2!$A97, 'Full set Core Client Indicator'!$A$3:$A$351, 0), MATCH(Selection_Hide2!Y$5, 'Full set Core Client Indicator'!$A$3:$AB$3, 0))), \"\")","v":""},{"$f":"IF(Y97<>\"\", IF(INDEX('Full set Core Client Indicator'!$A$3:$AB$351, MATCH(Selection_Hide2!$A97, 'Full set Core Client Indicator'!$A$3:$A$351, 0), MATCH(Selection_Hide2!Z$5, 'Full set Core Client Indicator'!$A$3:$AB$3, 0))=\"\", \"\",  INDEX('Full set Core Client Indicator'!$A$3:$AB$351, MATCH(Selection_Hide2!$A97, 'Full set Core Client Indicator'!$A$3:$A$351, 0), MATCH(Selection_Hide2!Z$5, 'Full set Core Client Indicator'!$A$3:$AB$3, 0))), \"\")","v":""},{"$f":"IF(Z97<>\"\", IF(INDEX('Full set Core Client Indicator'!$A$3:$AB$351, MATCH(Selection_Hide2!$A97, 'Full set Core Client Indicator'!$A$3:$A$351, 0), MATCH(Selection_Hide2!AA$5, 'Full set Core Client Indicator'!$A$3:$AB$3, 0))=\"\", \"\",  INDEX('Full set Core Client Indicator'!$A$3:$AB$351, MATCH(Selection_Hide2!$A97, 'Full set Core Client Indicator'!$A$3:$A$351, 0), MATCH(Selection_Hide2!AA$5, 'Full set Core Client Indicator'!$A$3:$AB$3, 0))), \"\")","v":""},{"$f":"IF(AA97<>\"\", IF(INDEX('Full set Core Client Indicator'!$A$3:$AB$351, MATCH(Selection_Hide2!$A97, 'Full set Core Client Indicator'!$A$3:$A$351, 0), MATCH(Selection_Hide2!AB$5, 'Full set Core Client Indicator'!$A$3:$AB$3, 0))=\"\", \"\",  INDEX('Full set Core Client Indicator'!$A$3:$AB$351, MATCH(Selection_Hide2!$A97, 'Full set Core Client Indicator'!$A$3:$A$351, 0), MATCH(Selection_Hide2!AB$5, 'Full set Core Client Indicator'!$A$3:$AB$3, 0))), \"\")","v":""}]
[{"$f":"IF(AND(Selection_Hide1!C96<>0, Selection_Hide1!C96<>\"Grand Total\"), Selection_Hide1!C96, \"\")","v":""},{"$f":"IF(A98<>\"\", IF(INDEX('Full set Core Client Indicator'!$A$3:$AB$351, MATCH(Selection_Hide2!$A98, 'Full set Core Client Indicator'!$A$3:$A$351, 0), MATCH(Selection_Hide2!B$5, 'Full set Core Client Indicator'!$A$3:$AB$3, 0))=\"\", \"\",  INDEX('Full set Core Client Indicator'!$A$3:$AB$351, MATCH(Selection_Hide2!$A98, 'Full set Core Client Indicator'!$A$3:$A$351, 0), MATCH(Selection_Hide2!B$5, 'Full set Core Client Indicator'!$A$3:$AB$3, 0))), \"\")","v":""},{"$f":"IF(B98<>\"\", IF(INDEX('Full set Core Client Indicator'!$A$3:$AB$351, MATCH(Selection_Hide2!$A98, 'Full set Core Client Indicator'!$A$3:$A$351, 0), MATCH(Selection_Hide2!C$5, 'Full set Core Client Indicator'!$A$3:$AB$3, 0))=\"\", \"\",  INDEX('Full set Core Client Indicator'!$A$3:$AB$351, MATCH(Selection_Hide2!$A98, 'Full set Core Client Indicator'!$A$3:$A$351, 0), MATCH(Selection_Hide2!C$5, 'Full set Core Client Indicator'!$A$3:$AB$3, 0))), \"\")","v":""},{"$f":"IF(C98<>\"\", IF(INDEX('Full set Core Client Indicator'!$A$3:$AB$351, MATCH(Selection_Hide2!$A98, 'Full set Core Client Indicator'!$A$3:$A$351, 0), MATCH(Selection_Hide2!D$5, 'Full set Core Client Indicator'!$A$3:$AB$3, 0))=\"\", \"\",  INDEX('Full set Core Client Indicator'!$A$3:$AB$351, MATCH(Selection_Hide2!$A98, 'Full set Core Client Indicator'!$A$3:$A$351, 0), MATCH(Selection_Hide2!D$5, 'Full set Core Client Indicator'!$A$3:$AB$3, 0))), \"\")","v":""},{"$f":"IF(D98<>\"\", IF(INDEX('Full set Core Client Indicator'!$A$3:$AB$351, MATCH(Selection_Hide2!$A98, 'Full set Core Client Indicator'!$A$3:$A$351, 0), MATCH(Selection_Hide2!E$5, 'Full set Core Client Indicator'!$A$3:$AB$3, 0))=\"\", \"\",  INDEX('Full set Core Client Indicator'!$A$3:$AB$351, MATCH(Selection_Hide2!$A98, 'Full set Core Client Indicator'!$A$3:$A$351, 0), MATCH(Selection_Hide2!E$5, 'Full set Core Client Indicator'!$A$3:$AB$3, 0))), \"\")","v":""},{"$f":"IF(E98<>\"\", IF(INDEX('Full set Core Client Indicator'!$A$3:$AB$351, MATCH(Selection_Hide2!$A98, 'Full set Core Client Indicator'!$A$3:$A$351, 0), MATCH(Selection_Hide2!F$5, 'Full set Core Client Indicator'!$A$3:$AB$3, 0))=\"\", \"\",  INDEX('Full set Core Client Indicator'!$A$3:$AB$351, MATCH(Selection_Hide2!$A98, 'Full set Core Client Indicator'!$A$3:$A$351, 0), MATCH(Selection_Hide2!F$5, 'Full set Core Client Indicator'!$A$3:$AB$3, 0))), \"\")","v":""},{"$f":"IF(F98<>\"\", IF(INDEX('Full set Core Client Indicator'!$A$3:$AB$351, MATCH(Selection_Hide2!$A98, 'Full set Core Client Indicator'!$A$3:$A$351, 0), MATCH(Selection_Hide2!G$5, 'Full set Core Client Indicator'!$A$3:$AB$3, 0))=\"\", \"\",  INDEX('Full set Core Client Indicator'!$A$3:$AB$351, MATCH(Selection_Hide2!$A98, 'Full set Core Client Indicator'!$A$3:$A$351, 0), MATCH(Selection_Hide2!G$5, 'Full set Core Client Indicator'!$A$3:$AB$3, 0))), \"\")","v":""},{"$f":"IF(G98<>\"\", IF(INDEX('Full set Core Client Indicator'!$A$3:$AB$351, MATCH(Selection_Hide2!$A98, 'Full set Core Client Indicator'!$A$3:$A$351, 0), MATCH(Selection_Hide2!H$5, 'Full set Core Client Indicator'!$A$3:$AB$3, 0))=\"\", \"\",  INDEX('Full set Core Client Indicator'!$A$3:$AB$351, MATCH(Selection_Hide2!$A98, 'Full set Core Client Indicator'!$A$3:$A$351, 0), MATCH(Selection_Hide2!H$5, 'Full set Core Client Indicator'!$A$3:$AB$3, 0))), \"\")","v":""},{"$f":"IF(H98<>\"\", IF(INDEX('Full set Core Client Indicator'!$A$3:$AB$351, MATCH(Selection_Hide2!$A98, 'Full set Core Client Indicator'!$A$3:$A$351, 0), MATCH(Selection_Hide2!I$5, 'Full set Core Client Indicator'!$A$3:$AB$3, 0))=\"\", \"\",  INDEX('Full set Core Client Indicator'!$A$3:$AB$351, MATCH(Selection_Hide2!$A98, 'Full set Core Client Indicator'!$A$3:$A$351, 0), MATCH(Selection_Hide2!I$5, 'Full set Core Client Indicator'!$A$3:$AB$3, 0))), \"\")","v":""},{"$f":"IF(I98<>\"\", IF(INDEX('Full set Core Client Indicator'!$A$3:$AB$351, MATCH(Selection_Hide2!$A98, 'Full set Core Client Indicator'!$A$3:$A$351, 0), MATCH(Selection_Hide2!J$5, 'Full set Core Client Indicator'!$A$3:$AB$3, 0))=\"\", \"\",  INDEX('Full set Core Client Indicator'!$A$3:$AB$351, MATCH(Selection_Hide2!$A98, 'Full set Core Client Indicator'!$A$3:$A$351, 0), MATCH(Selection_Hide2!J$5, 'Full set Core Client Indicator'!$A$3:$AB$3, 0))), \"\")","v":""},{"$f":"IF(J98<>\"\", IF(INDEX('Full set Core Client Indicator'!$A$3:$AB$351, MATCH(Selection_Hide2!$A98, 'Full set Core Client Indicator'!$A$3:$A$351, 0), MATCH(Selection_Hide2!K$5, 'Full set Core Client Indicator'!$A$3:$AB$3, 0))=\"\", \"\",  INDEX('Full set Core Client Indicator'!$A$3:$AB$351, MATCH(Selection_Hide2!$A98, 'Full set Core Client Indicator'!$A$3:$A$351, 0), MATCH(Selection_Hide2!K$5, 'Full set Core Client Indicator'!$A$3:$AB$3, 0))), \"\")","v":""},{"$f":"IF(K98<>\"\", IF(INDEX('Full set Core Client Indicator'!$A$3:$AB$351, MATCH(Selection_Hide2!$A98, 'Full set Core Client Indicator'!$A$3:$A$351, 0), MATCH(Selection_Hide2!L$5, 'Full set Core Client Indicator'!$A$3:$AB$3, 0))=\"\", \"\",  INDEX('Full set Core Client Indicator'!$A$3:$AB$351, MATCH(Selection_Hide2!$A98, 'Full set Core Client Indicator'!$A$3:$A$351, 0), MATCH(Selection_Hide2!L$5, 'Full set Core Client Indicator'!$A$3:$AB$3, 0))), \"\")","v":""},{"$f":"IF(L98<>\"\", IF(INDEX('Full set Core Client Indicator'!$A$3:$AB$351, MATCH(Selection_Hide2!$A98, 'Full set Core Client Indicator'!$A$3:$A$351, 0), MATCH(Selection_Hide2!M$5, 'Full set Core Client Indicator'!$A$3:$AB$3, 0))=\"\", \"\",  INDEX('Full set Core Client Indicator'!$A$3:$AB$351, MATCH(Selection_Hide2!$A98, 'Full set Core Client Indicator'!$A$3:$A$351, 0), MATCH(Selection_Hide2!M$5, 'Full set Core Client Indicator'!$A$3:$AB$3, 0))), \"\")","v":""},{"$f":"IF(M98<>\"\", IF(INDEX('Full set Core Client Indicator'!$A$3:$AB$351, MATCH(Selection_Hide2!$A98, 'Full set Core Client Indicator'!$A$3:$A$351, 0), MATCH(Selection_Hide2!N$5, 'Full set Core Client Indicator'!$A$3:$AB$3, 0))=\"\", \"\",  INDEX('Full set Core Client Indicator'!$A$3:$AB$351, MATCH(Selection_Hide2!$A98, 'Full set Core Client Indicator'!$A$3:$A$351, 0), MATCH(Selection_Hide2!N$5, 'Full set Core Client Indicator'!$A$3:$AB$3, 0))), \"\")","v":""},{"$f":"IF(N98<>\"\", IF(INDEX('Full set Core Client Indicator'!$A$3:$AB$351, MATCH(Selection_Hide2!$A98, 'Full set Core Client Indicator'!$A$3:$A$351, 0), MATCH(Selection_Hide2!O$5, 'Full set Core Client Indicator'!$A$3:$AB$3, 0))=\"\", \"\",  INDEX('Full set Core Client Indicator'!$A$3:$AB$351, MATCH(Selection_Hide2!$A98, 'Full set Core Client Indicator'!$A$3:$A$351, 0), MATCH(Selection_Hide2!O$5, 'Full set Core Client Indicator'!$A$3:$AB$3, 0))), \"\")","v":""},{"$f":"IF(O98<>\"\", IF(INDEX('Full set Core Client Indicator'!$A$3:$AB$351, MATCH(Selection_Hide2!$A98, 'Full set Core Client Indicator'!$A$3:$A$351, 0), MATCH(Selection_Hide2!P$5, 'Full set Core Client Indicator'!$A$3:$AB$3, 0))=\"\", \"\",  INDEX('Full set Core Client Indicator'!$A$3:$AB$351, MATCH(Selection_Hide2!$A98, 'Full set Core Client Indicator'!$A$3:$A$351, 0), MATCH(Selection_Hide2!P$5, 'Full set Core Client Indicator'!$A$3:$AB$3, 0))), \"\")","v":""},{"$f":"IF(P98<>\"\", IF(INDEX('Full set Core Client Indicator'!$A$3:$AB$351, MATCH(Selection_Hide2!$A98, 'Full set Core Client Indicator'!$A$3:$A$351, 0), MATCH(Selection_Hide2!Q$5, 'Full set Core Client Indicator'!$A$3:$AB$3, 0))=\"\", \"\",  INDEX('Full set Core Client Indicator'!$A$3:$AB$351, MATCH(Selection_Hide2!$A98, 'Full set Core Client Indicator'!$A$3:$A$351, 0), MATCH(Selection_Hide2!Q$5, 'Full set Core Client Indicator'!$A$3:$AB$3, 0))), \"\")","v":""},{"$f":"IF(Q98<>\"\", IF(INDEX('Full set Core Client Indicator'!$A$3:$AB$351, MATCH(Selection_Hide2!$A98, 'Full set Core Client Indicator'!$A$3:$A$351, 0), MATCH(Selection_Hide2!R$5, 'Full set Core Client Indicator'!$A$3:$AB$3, 0))=\"\", \"\",  INDEX('Full set Core Client Indicator'!$A$3:$AB$351, MATCH(Selection_Hide2!$A98, 'Full set Core Client Indicator'!$A$3:$A$351, 0), MATCH(Selection_Hide2!R$5, 'Full set Core Client Indicator'!$A$3:$AB$3, 0))), \"\")","v":""},{"$f":"IF(R98<>\"\", IF(INDEX('Full set Core Client Indicator'!$A$3:$AB$351, MATCH(Selection_Hide2!$A98, 'Full set Core Client Indicator'!$A$3:$A$351, 0), MATCH(Selection_Hide2!S$5, 'Full set Core Client Indicator'!$A$3:$AB$3, 0))=\"\", \"\",  INDEX('Full set Core Client Indicator'!$A$3:$AB$351, MATCH(Selection_Hide2!$A98, 'Full set Core Client Indicator'!$A$3:$A$351, 0), MATCH(Selection_Hide2!S$5, 'Full set Core Client Indicator'!$A$3:$AB$3, 0))), \"\")","v":""},{"$f":"IF(S98<>\"\", IF(INDEX('Full set Core Client Indicator'!$A$3:$AB$351, MATCH(Selection_Hide2!$A98, 'Full set Core Client Indicator'!$A$3:$A$351, 0), MATCH(Selection_Hide2!T$5, 'Full set Core Client Indicator'!$A$3:$AB$3, 0))=\"\", \"\",  INDEX('Full set Core Client Indicator'!$A$3:$AB$351, MATCH(Selection_Hide2!$A98, 'Full set Core Client Indicator'!$A$3:$A$351, 0), MATCH(Selection_Hide2!T$5, 'Full set Core Client Indicator'!$A$3:$AB$3, 0))), \"\")","v":""},{"$f":"IF(T98<>\"\", IF(INDEX('Full set Core Client Indicator'!$A$3:$AB$351, MATCH(Selection_Hide2!$A98, 'Full set Core Client Indicator'!$A$3:$A$351, 0), MATCH(Selection_Hide2!U$5, 'Full set Core Client Indicator'!$A$3:$AB$3, 0))=\"\", \"\",  INDEX('Full set Core Client Indicator'!$A$3:$AB$351, MATCH(Selection_Hide2!$A98, 'Full set Core Client Indicator'!$A$3:$A$351, 0), MATCH(Selection_Hide2!U$5, 'Full set Core Client Indicator'!$A$3:$AB$3, 0))), \"\")","v":""},{"$f":"IF(U98<>\"\", IF(INDEX('Full set Core Client Indicator'!$A$3:$AB$351, MATCH(Selection_Hide2!$A98, 'Full set Core Client Indicator'!$A$3:$A$351, 0), MATCH(Selection_Hide2!V$5, 'Full set Core Client Indicator'!$A$3:$AB$3, 0))=\"\", \"\",  INDEX('Full set Core Client Indicator'!$A$3:$AB$351, MATCH(Selection_Hide2!$A98, 'Full set Core Client Indicator'!$A$3:$A$351, 0), MATCH(Selection_Hide2!V$5, 'Full set Core Client Indicator'!$A$3:$AB$3, 0))), \"\")","v":""},{"$f":"IF(V98<>\"\", IF(INDEX('Full set Core Client Indicator'!$A$3:$AB$351, MATCH(Selection_Hide2!$A98, 'Full set Core Client Indicator'!$A$3:$A$351, 0), MATCH(Selection_Hide2!W$5, 'Full set Core Client Indicator'!$A$3:$AB$3, 0))=\"\", \"\",  INDEX('Full set Core Client Indicator'!$A$3:$AB$351, MATCH(Selection_Hide2!$A98, 'Full set Core Client Indicator'!$A$3:$A$351, 0), MATCH(Selection_Hide2!W$5, 'Full set Core Client Indicator'!$A$3:$AB$3, 0))), \"\")","v":""},{"$f":"IF(W98<>\"\", IF(INDEX('Full set Core Client Indicator'!$A$3:$AB$351, MATCH(Selection_Hide2!$A98, 'Full set Core Client Indicator'!$A$3:$A$351, 0), MATCH(Selection_Hide2!X$5, 'Full set Core Client Indicator'!$A$3:$AB$3, 0))=\"\", \"\",  INDEX('Full set Core Client Indicator'!$A$3:$AB$351, MATCH(Selection_Hide2!$A98, 'Full set Core Client Indicator'!$A$3:$A$351, 0), MATCH(Selection_Hide2!X$5, 'Full set Core Client Indicator'!$A$3:$AB$3, 0))), \"\")","v":""},{"$f":"IF(X98<>\"\", IF(INDEX('Full set Core Client Indicator'!$A$3:$AB$351, MATCH(Selection_Hide2!$A98, 'Full set Core Client Indicator'!$A$3:$A$351, 0), MATCH(Selection_Hide2!Y$5, 'Full set Core Client Indicator'!$A$3:$AB$3, 0))=\"\", \"\",  INDEX('Full set Core Client Indicator'!$A$3:$AB$351, MATCH(Selection_Hide2!$A98, 'Full set Core Client Indicator'!$A$3:$A$351, 0), MATCH(Selection_Hide2!Y$5, 'Full set Core Client Indicator'!$A$3:$AB$3, 0))), \"\")","v":""},{"$f":"IF(Y98<>\"\", IF(INDEX('Full set Core Client Indicator'!$A$3:$AB$351, MATCH(Selection_Hide2!$A98, 'Full set Core Client Indicator'!$A$3:$A$351, 0), MATCH(Selection_Hide2!Z$5, 'Full set Core Client Indicator'!$A$3:$AB$3, 0))=\"\", \"\",  INDEX('Full set Core Client Indicator'!$A$3:$AB$351, MATCH(Selection_Hide2!$A98, 'Full set Core Client Indicator'!$A$3:$A$351, 0), MATCH(Selection_Hide2!Z$5, 'Full set Core Client Indicator'!$A$3:$AB$3, 0))), \"\")","v":""},{"$f":"IF(Z98<>\"\", IF(INDEX('Full set Core Client Indicator'!$A$3:$AB$351, MATCH(Selection_Hide2!$A98, 'Full set Core Client Indicator'!$A$3:$A$351, 0), MATCH(Selection_Hide2!AA$5, 'Full set Core Client Indicator'!$A$3:$AB$3, 0))=\"\", \"\",  INDEX('Full set Core Client Indicator'!$A$3:$AB$351, MATCH(Selection_Hide2!$A98, 'Full set Core Client Indicator'!$A$3:$A$351, 0), MATCH(Selection_Hide2!AA$5, 'Full set Core Client Indicator'!$A$3:$AB$3, 0))), \"\")","v":""},{"$f":"IF(AA98<>\"\", IF(INDEX('Full set Core Client Indicator'!$A$3:$AB$351, MATCH(Selection_Hide2!$A98, 'Full set Core Client Indicator'!$A$3:$A$351, 0), MATCH(Selection_Hide2!AB$5, 'Full set Core Client Indicator'!$A$3:$AB$3, 0))=\"\", \"\",  INDEX('Full set Core Client Indicator'!$A$3:$AB$351, MATCH(Selection_Hide2!$A98, 'Full set Core Client Indicator'!$A$3:$A$351, 0), MATCH(Selection_Hide2!AB$5, 'Full set Core Client Indicator'!$A$3:$AB$3, 0))), \"\")","v":""}]
[{"$f":"IF(AND(Selection_Hide1!C97<>0, Selection_Hide1!C97<>\"Grand Total\"), Selection_Hide1!C97, \"\")","v":""},{"$f":"IF(A99<>\"\", IF(INDEX('Full set Core Client Indicator'!$A$3:$AB$351, MATCH(Selection_Hide2!$A99, 'Full set Core Client Indicator'!$A$3:$A$351, 0), MATCH(Selection_Hide2!B$5, 'Full set Core Client Indicator'!$A$3:$AB$3, 0))=\"\", \"\",  INDEX('Full set Core Client Indicator'!$A$3:$AB$351, MATCH(Selection_Hide2!$A99, 'Full set Core Client Indicator'!$A$3:$A$351, 0), MATCH(Selection_Hide2!B$5, 'Full set Core Client Indicator'!$A$3:$AB$3, 0))), \"\")","v":""},{"$f":"IF(B99<>\"\", IF(INDEX('Full set Core Client Indicator'!$A$3:$AB$351, MATCH(Selection_Hide2!$A99, 'Full set Core Client Indicator'!$A$3:$A$351, 0), MATCH(Selection_Hide2!C$5, 'Full set Core Client Indicator'!$A$3:$AB$3, 0))=\"\", \"\",  INDEX('Full set Core Client Indicator'!$A$3:$AB$351, MATCH(Selection_Hide2!$A99, 'Full set Core Client Indicator'!$A$3:$A$351, 0), MATCH(Selection_Hide2!C$5, 'Full set Core Client Indicator'!$A$3:$AB$3, 0))), \"\")","v":""},{"$f":"IF(C99<>\"\", IF(INDEX('Full set Core Client Indicator'!$A$3:$AB$351, MATCH(Selection_Hide2!$A99, 'Full set Core Client Indicator'!$A$3:$A$351, 0), MATCH(Selection_Hide2!D$5, 'Full set Core Client Indicator'!$A$3:$AB$3, 0))=\"\", \"\",  INDEX('Full set Core Client Indicator'!$A$3:$AB$351, MATCH(Selection_Hide2!$A99, 'Full set Core Client Indicator'!$A$3:$A$351, 0), MATCH(Selection_Hide2!D$5, 'Full set Core Client Indicator'!$A$3:$AB$3, 0))), \"\")","v":""},{"$f":"IF(D99<>\"\", IF(INDEX('Full set Core Client Indicator'!$A$3:$AB$351, MATCH(Selection_Hide2!$A99, 'Full set Core Client Indicator'!$A$3:$A$351, 0), MATCH(Selection_Hide2!E$5, 'Full set Core Client Indicator'!$A$3:$AB$3, 0))=\"\", \"\",  INDEX('Full set Core Client Indicator'!$A$3:$AB$351, MATCH(Selection_Hide2!$A99, 'Full set Core Client Indicator'!$A$3:$A$351, 0), MATCH(Selection_Hide2!E$5, 'Full set Core Client Indicator'!$A$3:$AB$3, 0))), \"\")","v":""},{"$f":"IF(E99<>\"\", IF(INDEX('Full set Core Client Indicator'!$A$3:$AB$351, MATCH(Selection_Hide2!$A99, 'Full set Core Client Indicator'!$A$3:$A$351, 0), MATCH(Selection_Hide2!F$5, 'Full set Core Client Indicator'!$A$3:$AB$3, 0))=\"\", \"\",  INDEX('Full set Core Client Indicator'!$A$3:$AB$351, MATCH(Selection_Hide2!$A99, 'Full set Core Client Indicator'!$A$3:$A$351, 0), MATCH(Selection_Hide2!F$5, 'Full set Core Client Indicator'!$A$3:$AB$3, 0))), \"\")","v":""},{"$f":"IF(F99<>\"\", IF(INDEX('Full set Core Client Indicator'!$A$3:$AB$351, MATCH(Selection_Hide2!$A99, 'Full set Core Client Indicator'!$A$3:$A$351, 0), MATCH(Selection_Hide2!G$5, 'Full set Core Client Indicator'!$A$3:$AB$3, 0))=\"\", \"\",  INDEX('Full set Core Client Indicator'!$A$3:$AB$351, MATCH(Selection_Hide2!$A99, 'Full set Core Client Indicator'!$A$3:$A$351, 0), MATCH(Selection_Hide2!G$5, 'Full set Core Client Indicator'!$A$3:$AB$3, 0))), \"\")","v":""},{"$f":"IF(G99<>\"\", IF(INDEX('Full set Core Client Indicator'!$A$3:$AB$351, MATCH(Selection_Hide2!$A99, 'Full set Core Client Indicator'!$A$3:$A$351, 0), MATCH(Selection_Hide2!H$5, 'Full set Core Client Indicator'!$A$3:$AB$3, 0))=\"\", \"\",  INDEX('Full set Core Client Indicator'!$A$3:$AB$351, MATCH(Selection_Hide2!$A99, 'Full set Core Client Indicator'!$A$3:$A$351, 0), MATCH(Selection_Hide2!H$5, 'Full set Core Client Indicator'!$A$3:$AB$3, 0))), \"\")","v":""},{"$f":"IF(H99<>\"\", IF(INDEX('Full set Core Client Indicator'!$A$3:$AB$351, MATCH(Selection_Hide2!$A99, 'Full set Core Client Indicator'!$A$3:$A$351, 0), MATCH(Selection_Hide2!I$5, 'Full set Core Client Indicator'!$A$3:$AB$3, 0))=\"\", \"\",  INDEX('Full set Core Client Indicator'!$A$3:$AB$351, MATCH(Selection_Hide2!$A99, 'Full set Core Client Indicator'!$A$3:$A$351, 0), MATCH(Selection_Hide2!I$5, 'Full set Core Client Indicator'!$A$3:$AB$3, 0))), \"\")","v":""},{"$f":"IF(I99<>\"\", IF(INDEX('Full set Core Client Indicator'!$A$3:$AB$351, MATCH(Selection_Hide2!$A99, 'Full set Core Client Indicator'!$A$3:$A$351, 0), MATCH(Selection_Hide2!J$5, 'Full set Core Client Indicator'!$A$3:$AB$3, 0))=\"\", \"\",  INDEX('Full set Core Client Indicator'!$A$3:$AB$351, MATCH(Selection_Hide2!$A99, 'Full set Core Client Indicator'!$A$3:$A$351, 0), MATCH(Selection_Hide2!J$5, 'Full set Core Client Indicator'!$A$3:$AB$3, 0))), \"\")","v":""},{"$f":"IF(J99<>\"\", IF(INDEX('Full set Core Client Indicator'!$A$3:$AB$351, MATCH(Selection_Hide2!$A99, 'Full set Core Client Indicator'!$A$3:$A$351, 0), MATCH(Selection_Hide2!K$5, 'Full set Core Client Indicator'!$A$3:$AB$3, 0))=\"\", \"\",  INDEX('Full set Core Client Indicator'!$A$3:$AB$351, MATCH(Selection_Hide2!$A99, 'Full set Core Client Indicator'!$A$3:$A$351, 0), MATCH(Selection_Hide2!K$5, 'Full set Core Client Indicator'!$A$3:$AB$3, 0))), \"\")","v":""},{"$f":"IF(K99<>\"\", IF(INDEX('Full set Core Client Indicator'!$A$3:$AB$351, MATCH(Selection_Hide2!$A99, 'Full set Core Client Indicator'!$A$3:$A$351, 0), MATCH(Selection_Hide2!L$5, 'Full set Core Client Indicator'!$A$3:$AB$3, 0))=\"\", \"\",  INDEX('Full set Core Client Indicator'!$A$3:$AB$351, MATCH(Selection_Hide2!$A99, 'Full set Core Client Indicator'!$A$3:$A$351, 0), MATCH(Selection_Hide2!L$5, 'Full set Core Client Indicator'!$A$3:$AB$3, 0))), \"\")","v":""},{"$f":"IF(L99<>\"\", IF(INDEX('Full set Core Client Indicator'!$A$3:$AB$351, MATCH(Selection_Hide2!$A99, 'Full set Core Client Indicator'!$A$3:$A$351, 0), MATCH(Selection_Hide2!M$5, 'Full set Core Client Indicator'!$A$3:$AB$3, 0))=\"\", \"\",  INDEX('Full set Core Client Indicator'!$A$3:$AB$351, MATCH(Selection_Hide2!$A99, 'Full set Core Client Indicator'!$A$3:$A$351, 0), MATCH(Selection_Hide2!M$5, 'Full set Core Client Indicator'!$A$3:$AB$3, 0))), \"\")","v":""},{"$f":"IF(M99<>\"\", IF(INDEX('Full set Core Client Indicator'!$A$3:$AB$351, MATCH(Selection_Hide2!$A99, 'Full set Core Client Indicator'!$A$3:$A$351, 0), MATCH(Selection_Hide2!N$5, 'Full set Core Client Indicator'!$A$3:$AB$3, 0))=\"\", \"\",  INDEX('Full set Core Client Indicator'!$A$3:$AB$351, MATCH(Selection_Hide2!$A99, 'Full set Core Client Indicator'!$A$3:$A$351, 0), MATCH(Selection_Hide2!N$5, 'Full set Core Client Indicator'!$A$3:$AB$3, 0))), \"\")","v":""},{"$f":"IF(N99<>\"\", IF(INDEX('Full set Core Client Indicator'!$A$3:$AB$351, MATCH(Selection_Hide2!$A99, 'Full set Core Client Indicator'!$A$3:$A$351, 0), MATCH(Selection_Hide2!O$5, 'Full set Core Client Indicator'!$A$3:$AB$3, 0))=\"\", \"\",  INDEX('Full set Core Client Indicator'!$A$3:$AB$351, MATCH(Selection_Hide2!$A99, 'Full set Core Client Indicator'!$A$3:$A$351, 0), MATCH(Selection_Hide2!O$5, 'Full set Core Client Indicator'!$A$3:$AB$3, 0))), \"\")","v":""},{"$f":"IF(O99<>\"\", IF(INDEX('Full set Core Client Indicator'!$A$3:$AB$351, MATCH(Selection_Hide2!$A99, 'Full set Core Client Indicator'!$A$3:$A$351, 0), MATCH(Selection_Hide2!P$5, 'Full set Core Client Indicator'!$A$3:$AB$3, 0))=\"\", \"\",  INDEX('Full set Core Client Indicator'!$A$3:$AB$351, MATCH(Selection_Hide2!$A99, 'Full set Core Client Indicator'!$A$3:$A$351, 0), MATCH(Selection_Hide2!P$5, 'Full set Core Client Indicator'!$A$3:$AB$3, 0))), \"\")","v":""},{"$f":"IF(P99<>\"\", IF(INDEX('Full set Core Client Indicator'!$A$3:$AB$351, MATCH(Selection_Hide2!$A99, 'Full set Core Client Indicator'!$A$3:$A$351, 0), MATCH(Selection_Hide2!Q$5, 'Full set Core Client Indicator'!$A$3:$AB$3, 0))=\"\", \"\",  INDEX('Full set Core Client Indicator'!$A$3:$AB$351, MATCH(Selection_Hide2!$A99, 'Full set Core Client Indicator'!$A$3:$A$351, 0), MATCH(Selection_Hide2!Q$5, 'Full set Core Client Indicator'!$A$3:$AB$3, 0))), \"\")","v":""},{"$f":"IF(Q99<>\"\", IF(INDEX('Full set Core Client Indicator'!$A$3:$AB$351, MATCH(Selection_Hide2!$A99, 'Full set Core Client Indicator'!$A$3:$A$351, 0), MATCH(Selection_Hide2!R$5, 'Full set Core Client Indicator'!$A$3:$AB$3, 0))=\"\", \"\",  INDEX('Full set Core Client Indicator'!$A$3:$AB$351, MATCH(Selection_Hide2!$A99, 'Full set Core Client Indicator'!$A$3:$A$351, 0), MATCH(Selection_Hide2!R$5, 'Full set Core Client Indicator'!$A$3:$AB$3, 0))), \"\")","v":""},{"$f":"IF(R99<>\"\", IF(INDEX('Full set Core Client Indicator'!$A$3:$AB$351, MATCH(Selection_Hide2!$A99, 'Full set Core Client Indicator'!$A$3:$A$351, 0), MATCH(Selection_Hide2!S$5, 'Full set Core Client Indicator'!$A$3:$AB$3, 0))=\"\", \"\",  INDEX('Full set Core Client Indicator'!$A$3:$AB$351, MATCH(Selection_Hide2!$A99, 'Full set Core Client Indicator'!$A$3:$A$351, 0), MATCH(Selection_Hide2!S$5, 'Full set Core Client Indicator'!$A$3:$AB$3, 0))), \"\")","v":""},{"$f":"IF(S99<>\"\", IF(INDEX('Full set Core Client Indicator'!$A$3:$AB$351, MATCH(Selection_Hide2!$A99, 'Full set Core Client Indicator'!$A$3:$A$351, 0), MATCH(Selection_Hide2!T$5, 'Full set Core Client Indicator'!$A$3:$AB$3, 0))=\"\", \"\",  INDEX('Full set Core Client Indicator'!$A$3:$AB$351, MATCH(Selection_Hide2!$A99, 'Full set Core Client Indicator'!$A$3:$A$351, 0), MATCH(Selection_Hide2!T$5, 'Full set Core Client Indicator'!$A$3:$AB$3, 0))), \"\")","v":""},{"$f":"IF(T99<>\"\", IF(INDEX('Full set Core Client Indicator'!$A$3:$AB$351, MATCH(Selection_Hide2!$A99, 'Full set Core Client Indicator'!$A$3:$A$351, 0), MATCH(Selection_Hide2!U$5, 'Full set Core Client Indicator'!$A$3:$AB$3, 0))=\"\", \"\",  INDEX('Full set Core Client Indicator'!$A$3:$AB$351, MATCH(Selection_Hide2!$A99, 'Full set Core Client Indicator'!$A$3:$A$351, 0), MATCH(Selection_Hide2!U$5, 'Full set Core Client Indicator'!$A$3:$AB$3, 0))), \"\")","v":""},{"$f":"IF(U99<>\"\", IF(INDEX('Full set Core Client Indicator'!$A$3:$AB$351, MATCH(Selection_Hide2!$A99, 'Full set Core Client Indicator'!$A$3:$A$351, 0), MATCH(Selection_Hide2!V$5, 'Full set Core Client Indicator'!$A$3:$AB$3, 0))=\"\", \"\",  INDEX('Full set Core Client Indicator'!$A$3:$AB$351, MATCH(Selection_Hide2!$A99, 'Full set Core Client Indicator'!$A$3:$A$351, 0), MATCH(Selection_Hide2!V$5, 'Full set Core Client Indicator'!$A$3:$AB$3, 0))), \"\")","v":""},{"$f":"IF(V99<>\"\", IF(INDEX('Full set Core Client Indicator'!$A$3:$AB$351, MATCH(Selection_Hide2!$A99, 'Full set Core Client Indicator'!$A$3:$A$351, 0), MATCH(Selection_Hide2!W$5, 'Full set Core Client Indicator'!$A$3:$AB$3, 0))=\"\", \"\",  INDEX('Full set Core Client Indicator'!$A$3:$AB$351, MATCH(Selection_Hide2!$A99, 'Full set Core Client Indicator'!$A$3:$A$351, 0), MATCH(Selection_Hide2!W$5, 'Full set Core Client Indicator'!$A$3:$AB$3, 0))), \"\")","v":""},{"$f":"IF(W99<>\"\", IF(INDEX('Full set Core Client Indicator'!$A$3:$AB$351, MATCH(Selection_Hide2!$A99, 'Full set Core Client Indicator'!$A$3:$A$351, 0), MATCH(Selection_Hide2!X$5, 'Full set Core Client Indicator'!$A$3:$AB$3, 0))=\"\", \"\",  INDEX('Full set Core Client Indicator'!$A$3:$AB$351, MATCH(Selection_Hide2!$A99, 'Full set Core Client Indicator'!$A$3:$A$351, 0), MATCH(Selection_Hide2!X$5, 'Full set Core Client Indicator'!$A$3:$AB$3, 0))), \"\")","v":""},{"$f":"IF(X99<>\"\", IF(INDEX('Full set Core Client Indicator'!$A$3:$AB$351, MATCH(Selection_Hide2!$A99, 'Full set Core Client Indicator'!$A$3:$A$351, 0), MATCH(Selection_Hide2!Y$5, 'Full set Core Client Indicator'!$A$3:$AB$3, 0))=\"\", \"\",  INDEX('Full set Core Client Indicator'!$A$3:$AB$351, MATCH(Selection_Hide2!$A99, 'Full set Core Client Indicator'!$A$3:$A$351, 0), MATCH(Selection_Hide2!Y$5, 'Full set Core Client Indicator'!$A$3:$AB$3, 0))), \"\")","v":""},{"$f":"IF(Y99<>\"\", IF(INDEX('Full set Core Client Indicator'!$A$3:$AB$351, MATCH(Selection_Hide2!$A99, 'Full set Core Client Indicator'!$A$3:$A$351, 0), MATCH(Selection_Hide2!Z$5, 'Full set Core Client Indicator'!$A$3:$AB$3, 0))=\"\", \"\",  INDEX('Full set Core Client Indicator'!$A$3:$AB$351, MATCH(Selection_Hide2!$A99, 'Full set Core Client Indicator'!$A$3:$A$351, 0), MATCH(Selection_Hide2!Z$5, 'Full set Core Client Indicator'!$A$3:$AB$3, 0))), \"\")","v":""},{"$f":"IF(Z99<>\"\", IF(INDEX('Full set Core Client Indicator'!$A$3:$AB$351, MATCH(Selection_Hide2!$A99, 'Full set Core Client Indicator'!$A$3:$A$351, 0), MATCH(Selection_Hide2!AA$5, 'Full set Core Client Indicator'!$A$3:$AB$3, 0))=\"\", \"\",  INDEX('Full set Core Client Indicator'!$A$3:$AB$351, MATCH(Selection_Hide2!$A99, 'Full set Core Client Indicator'!$A$3:$A$351, 0), MATCH(Selection_Hide2!AA$5, 'Full set Core Client Indicator'!$A$3:$AB$3, 0))), \"\")","v":""},{"$f":"IF(AA99<>\"\", IF(INDEX('Full set Core Client Indicator'!$A$3:$AB$351, MATCH(Selection_Hide2!$A99, 'Full set Core Client Indicator'!$A$3:$A$351, 0), MATCH(Selection_Hide2!AB$5, 'Full set Core Client Indicator'!$A$3:$AB$3, 0))=\"\", \"\",  INDEX('Full set Core Client Indicator'!$A$3:$AB$351, MATCH(Selection_Hide2!$A99, 'Full set Core Client Indicator'!$A$3:$A$351, 0), MATCH(Selection_Hide2!AB$5, 'Full set Core Client Indicator'!$A$3:$AB$3, 0))), \"\")","v":""}]
[{"$f":"IF(AND(Selection_Hide1!C98<>0, Selection_Hide1!C98<>\"Grand Total\"), Selection_Hide1!C98, \"\")","v":""},{"$f":"IF(A100<>\"\", IF(INDEX('Full set Core Client Indicator'!$A$3:$AB$351, MATCH(Selection_Hide2!$A100, 'Full set Core Client Indicator'!$A$3:$A$351, 0), MATCH(Selection_Hide2!B$5, 'Full set Core Client Indicator'!$A$3:$AB$3, 0))=\"\", \"\",  INDEX('Full set Core Client Indicator'!$A$3:$AB$351, MATCH(Selection_Hide2!$A100, 'Full set Core Client Indicator'!$A$3:$A$351, 0), MATCH(Selection_Hide2!B$5, 'Full set Core Client Indicator'!$A$3:$AB$3, 0))), \"\")","v":""},{"$f":"IF(B100<>\"\", IF(INDEX('Full set Core Client Indicator'!$A$3:$AB$351, MATCH(Selection_Hide2!$A100, 'Full set Core Client Indicator'!$A$3:$A$351, 0), MATCH(Selection_Hide2!C$5, 'Full set Core Client Indicator'!$A$3:$AB$3, 0))=\"\", \"\",  INDEX('Full set Core Client Indicator'!$A$3:$AB$351, MATCH(Selection_Hide2!$A100, 'Full set Core Client Indicator'!$A$3:$A$351, 0), MATCH(Selection_Hide2!C$5, 'Full set Core Client Indicator'!$A$3:$AB$3, 0))), \"\")","v":""},{"$f":"IF(C100<>\"\", IF(INDEX('Full set Core Client Indicator'!$A$3:$AB$351, MATCH(Selection_Hide2!$A100, 'Full set Core Client Indicator'!$A$3:$A$351, 0), MATCH(Selection_Hide2!D$5, 'Full set Core Client Indicator'!$A$3:$AB$3, 0))=\"\", \"\",  INDEX('Full set Core Client Indicator'!$A$3:$AB$351, MATCH(Selection_Hide2!$A100, 'Full set Core Client Indicator'!$A$3:$A$351, 0), MATCH(Selection_Hide2!D$5, 'Full set Core Client Indicator'!$A$3:$AB$3, 0))), \"\")","v":""},{"$f":"IF(D100<>\"\", IF(INDEX('Full set Core Client Indicator'!$A$3:$AB$351, MATCH(Selection_Hide2!$A100, 'Full set Core Client Indicator'!$A$3:$A$351, 0), MATCH(Selection_Hide2!E$5, 'Full set Core Client Indicator'!$A$3:$AB$3, 0))=\"\", \"\",  INDEX('Full set Core Client Indicator'!$A$3:$AB$351, MATCH(Selection_Hide2!$A100, 'Full set Core Client Indicator'!$A$3:$A$351, 0), MATCH(Selection_Hide2!E$5, 'Full set Core Client Indicator'!$A$3:$AB$3, 0))), \"\")","v":""},{"$f":"IF(E100<>\"\", IF(INDEX('Full set Core Client Indicator'!$A$3:$AB$351, MATCH(Selection_Hide2!$A100, 'Full set Core Client Indicator'!$A$3:$A$351, 0), MATCH(Selection_Hide2!F$5, 'Full set Core Client Indicator'!$A$3:$AB$3, 0))=\"\", \"\",  INDEX('Full set Core Client Indicator'!$A$3:$AB$351, MATCH(Selection_Hide2!$A100, 'Full set Core Client Indicator'!$A$3:$A$351, 0), MATCH(Selection_Hide2!F$5, 'Full set Core Client Indicator'!$A$3:$AB$3, 0))), \"\")","v":""},{"$f":"IF(F100<>\"\", IF(INDEX('Full set Core Client Indicator'!$A$3:$AB$351, MATCH(Selection_Hide2!$A100, 'Full set Core Client Indicator'!$A$3:$A$351, 0), MATCH(Selection_Hide2!G$5, 'Full set Core Client Indicator'!$A$3:$AB$3, 0))=\"\", \"\",  INDEX('Full set Core Client Indicator'!$A$3:$AB$351, MATCH(Selection_Hide2!$A100, 'Full set Core Client Indicator'!$A$3:$A$351, 0), MATCH(Selection_Hide2!G$5, 'Full set Core Client Indicator'!$A$3:$AB$3, 0))), \"\")","v":""},{"$f":"IF(G100<>\"\", IF(INDEX('Full set Core Client Indicator'!$A$3:$AB$351, MATCH(Selection_Hide2!$A100, 'Full set Core Client Indicator'!$A$3:$A$351, 0), MATCH(Selection_Hide2!H$5, 'Full set Core Client Indicator'!$A$3:$AB$3, 0))=\"\", \"\",  INDEX('Full set Core Client Indicator'!$A$3:$AB$351, MATCH(Selection_Hide2!$A100, 'Full set Core Client Indicator'!$A$3:$A$351, 0), MATCH(Selection_Hide2!H$5, 'Full set Core Client Indicator'!$A$3:$AB$3, 0))), \"\")","v":""},{"$f":"IF(H100<>\"\", IF(INDEX('Full set Core Client Indicator'!$A$3:$AB$351, MATCH(Selection_Hide2!$A100, 'Full set Core Client Indicator'!$A$3:$A$351, 0), MATCH(Selection_Hide2!I$5, 'Full set Core Client Indicator'!$A$3:$AB$3, 0))=\"\", \"\",  INDEX('Full set Core Client Indicator'!$A$3:$AB$351, MATCH(Selection_Hide2!$A100, 'Full set Core Client Indicator'!$A$3:$A$351, 0), MATCH(Selection_Hide2!I$5, 'Full set Core Client Indicator'!$A$3:$AB$3, 0))), \"\")","v":""},{"$f":"IF(I100<>\"\", IF(INDEX('Full set Core Client Indicator'!$A$3:$AB$351, MATCH(Selection_Hide2!$A100, 'Full set Core Client Indicator'!$A$3:$A$351, 0), MATCH(Selection_Hide2!J$5, 'Full set Core Client Indicator'!$A$3:$AB$3, 0))=\"\", \"\",  INDEX('Full set Core Client Indicator'!$A$3:$AB$351, MATCH(Selection_Hide2!$A100, 'Full set Core Client Indicator'!$A$3:$A$351, 0), MATCH(Selection_Hide2!J$5, 'Full set Core Client Indicator'!$A$3:$AB$3, 0))), \"\")","v":""},{"$f":"IF(J100<>\"\", IF(INDEX('Full set Core Client Indicator'!$A$3:$AB$351, MATCH(Selection_Hide2!$A100, 'Full set Core Client Indicator'!$A$3:$A$351, 0), MATCH(Selection_Hide2!K$5, 'Full set Core Client Indicator'!$A$3:$AB$3, 0))=\"\", \"\",  INDEX('Full set Core Client Indicator'!$A$3:$AB$351, MATCH(Selection_Hide2!$A100, 'Full set Core Client Indicator'!$A$3:$A$351, 0), MATCH(Selection_Hide2!K$5, 'Full set Core Client Indicator'!$A$3:$AB$3, 0))), \"\")","v":""},{"$f":"IF(K100<>\"\", IF(INDEX('Full set Core Client Indicator'!$A$3:$AB$351, MATCH(Selection_Hide2!$A100, 'Full set Core Client Indicator'!$A$3:$A$351, 0), MATCH(Selection_Hide2!L$5, 'Full set Core Client Indicator'!$A$3:$AB$3, 0))=\"\", \"\",  INDEX('Full set Core Client Indicator'!$A$3:$AB$351, MATCH(Selection_Hide2!$A100, 'Full set Core Client Indicator'!$A$3:$A$351, 0), MATCH(Selection_Hide2!L$5, 'Full set Core Client Indicator'!$A$3:$AB$3, 0))), \"\")","v":""},{"$f":"IF(L100<>\"\", IF(INDEX('Full set Core Client Indicator'!$A$3:$AB$351, MATCH(Selection_Hide2!$A100, 'Full set Core Client Indicator'!$A$3:$A$351, 0), MATCH(Selection_Hide2!M$5, 'Full set Core Client Indicator'!$A$3:$AB$3, 0))=\"\", \"\",  INDEX('Full set Core Client Indicator'!$A$3:$AB$351, MATCH(Selection_Hide2!$A100, 'Full set Core Client Indicator'!$A$3:$A$351, 0), MATCH(Selection_Hide2!M$5, 'Full set Core Client Indicator'!$A$3:$AB$3, 0))), \"\")","v":""},{"$f":"IF(M100<>\"\", IF(INDEX('Full set Core Client Indicator'!$A$3:$AB$351, MATCH(Selection_Hide2!$A100, 'Full set Core Client Indicator'!$A$3:$A$351, 0), MATCH(Selection_Hide2!N$5, 'Full set Core Client Indicator'!$A$3:$AB$3, 0))=\"\", \"\",  INDEX('Full set Core Client Indicator'!$A$3:$AB$351, MATCH(Selection_Hide2!$A100, 'Full set Core Client Indicator'!$A$3:$A$351, 0), MATCH(Selection_Hide2!N$5, 'Full set Core Client Indicator'!$A$3:$AB$3, 0))), \"\")","v":""},{"$f":"IF(N100<>\"\", IF(INDEX('Full set Core Client Indicator'!$A$3:$AB$351, MATCH(Selection_Hide2!$A100, 'Full set Core Client Indicator'!$A$3:$A$351, 0), MATCH(Selection_Hide2!O$5, 'Full set Core Client Indicator'!$A$3:$AB$3, 0))=\"\", \"\",  INDEX('Full set Core Client Indicator'!$A$3:$AB$351, MATCH(Selection_Hide2!$A100, 'Full set Core Client Indicator'!$A$3:$A$351, 0), MATCH(Selection_Hide2!O$5, 'Full set Core Client Indicator'!$A$3:$AB$3, 0))), \"\")","v":""},{"$f":"IF(O100<>\"\", IF(INDEX('Full set Core Client Indicator'!$A$3:$AB$351, MATCH(Selection_Hide2!$A100, 'Full set Core Client Indicator'!$A$3:$A$351, 0), MATCH(Selection_Hide2!P$5, 'Full set Core Client Indicator'!$A$3:$AB$3, 0))=\"\", \"\",  INDEX('Full set Core Client Indicator'!$A$3:$AB$351, MATCH(Selection_Hide2!$A100, 'Full set Core Client Indicator'!$A$3:$A$351, 0), MATCH(Selection_Hide2!P$5, 'Full set Core Client Indicator'!$A$3:$AB$3, 0))), \"\")","v":""},{"$f":"IF(P100<>\"\", IF(INDEX('Full set Core Client Indicator'!$A$3:$AB$351, MATCH(Selection_Hide2!$A100, 'Full set Core Client Indicator'!$A$3:$A$351, 0), MATCH(Selection_Hide2!Q$5, 'Full set Core Client Indicator'!$A$3:$AB$3, 0))=\"\", \"\",  INDEX('Full set Core Client Indicator'!$A$3:$AB$351, MATCH(Selection_Hide2!$A100, 'Full set Core Client Indicator'!$A$3:$A$351, 0), MATCH(Selection_Hide2!Q$5, 'Full set Core Client Indicator'!$A$3:$AB$3, 0))), \"\")","v":""},{"$f":"IF(Q100<>\"\", IF(INDEX('Full set Core Client Indicator'!$A$3:$AB$351, MATCH(Selection_Hide2!$A100, 'Full set Core Client Indicator'!$A$3:$A$351, 0), MATCH(Selection_Hide2!R$5, 'Full set Core Client Indicator'!$A$3:$AB$3, 0))=\"\", \"\",  INDEX('Full set Core Client Indicator'!$A$3:$AB$351, MATCH(Selection_Hide2!$A100, 'Full set Core Client Indicator'!$A$3:$A$351, 0), MATCH(Selection_Hide2!R$5, 'Full set Core Client Indicator'!$A$3:$AB$3, 0))), \"\")","v":""},{"$f":"IF(R100<>\"\", IF(INDEX('Full set Core Client Indicator'!$A$3:$AB$351, MATCH(Selection_Hide2!$A100, 'Full set Core Client Indicator'!$A$3:$A$351, 0), MATCH(Selection_Hide2!S$5, 'Full set Core Client Indicator'!$A$3:$AB$3, 0))=\"\", \"\",  INDEX('Full set Core Client Indicator'!$A$3:$AB$351, MATCH(Selection_Hide2!$A100, 'Full set Core Client Indicator'!$A$3:$A$351, 0), MATCH(Selection_Hide2!S$5, 'Full set Core Client Indicator'!$A$3:$AB$3, 0))), \"\")","v":""},{"$f":"IF(S100<>\"\", IF(INDEX('Full set Core Client Indicator'!$A$3:$AB$351, MATCH(Selection_Hide2!$A100, 'Full set Core Client Indicator'!$A$3:$A$351, 0), MATCH(Selection_Hide2!T$5, 'Full set Core Client Indicator'!$A$3:$AB$3, 0))=\"\", \"\",  INDEX('Full set Core Client Indicator'!$A$3:$AB$351, MATCH(Selection_Hide2!$A100, 'Full set Core Client Indicator'!$A$3:$A$351, 0), MATCH(Selection_Hide2!T$5, 'Full set Core Client Indicator'!$A$3:$AB$3, 0))), \"\")","v":""},{"$f":"IF(T100<>\"\", IF(INDEX('Full set Core Client Indicator'!$A$3:$AB$351, MATCH(Selection_Hide2!$A100, 'Full set Core Client Indicator'!$A$3:$A$351, 0), MATCH(Selection_Hide2!U$5, 'Full set Core Client Indicator'!$A$3:$AB$3, 0))=\"\", \"\",  INDEX('Full set Core Client Indicator'!$A$3:$AB$351, MATCH(Selection_Hide2!$A100, 'Full set Core Client Indicator'!$A$3:$A$351, 0), MATCH(Selection_Hide2!U$5, 'Full set Core Client Indicator'!$A$3:$AB$3, 0))), \"\")","v":""},{"$f":"IF(U100<>\"\", IF(INDEX('Full set Core Client Indicator'!$A$3:$AB$351, MATCH(Selection_Hide2!$A100, 'Full set Core Client Indicator'!$A$3:$A$351, 0), MATCH(Selection_Hide2!V$5, 'Full set Core Client Indicator'!$A$3:$AB$3, 0))=\"\", \"\",  INDEX('Full set Core Client Indicator'!$A$3:$AB$351, MATCH(Selection_Hide2!$A100, 'Full set Core Client Indicator'!$A$3:$A$351, 0), MATCH(Selection_Hide2!V$5, 'Full set Core Client Indicator'!$A$3:$AB$3, 0))), \"\")","v":""},{"$f":"IF(V100<>\"\", IF(INDEX('Full set Core Client Indicator'!$A$3:$AB$351, MATCH(Selection_Hide2!$A100, 'Full set Core Client Indicator'!$A$3:$A$351, 0), MATCH(Selection_Hide2!W$5, 'Full set Core Client Indicator'!$A$3:$AB$3, 0))=\"\", \"\",  INDEX('Full set Core Client Indicator'!$A$3:$AB$351, MATCH(Selection_Hide2!$A100, 'Full set Core Client Indicator'!$A$3:$A$351, 0), MATCH(Selection_Hide2!W$5, 'Full set Core Client Indicator'!$A$3:$AB$3, 0))), \"\")","v":""},{"$f":"IF(W100<>\"\", IF(INDEX('Full set Core Client Indicator'!$A$3:$AB$351, MATCH(Selection_Hide2!$A100, 'Full set Core Client Indicator'!$A$3:$A$351, 0), MATCH(Selection_Hide2!X$5, 'Full set Core Client Indicator'!$A$3:$AB$3, 0))=\"\", \"\",  INDEX('Full set Core Client Indicator'!$A$3:$AB$351, MATCH(Selection_Hide2!$A100, 'Full set Core Client Indicator'!$A$3:$A$351, 0), MATCH(Selection_Hide2!X$5, 'Full set Core Client Indicator'!$A$3:$AB$3, 0))), \"\")","v":""},{"$f":"IF(X100<>\"\", IF(INDEX('Full set Core Client Indicator'!$A$3:$AB$351, MATCH(Selection_Hide2!$A100, 'Full set Core Client Indicator'!$A$3:$A$351, 0), MATCH(Selection_Hide2!Y$5, 'Full set Core Client Indicator'!$A$3:$AB$3, 0))=\"\", \"\",  INDEX('Full set Core Client Indicator'!$A$3:$AB$351, MATCH(Selection_Hide2!$A100, 'Full set Core Client Indicator'!$A$3:$A$351, 0), MATCH(Selection_Hide2!Y$5, 'Full set Core Client Indicator'!$A$3:$AB$3, 0))), \"\")","v":""},{"$f":"IF(Y100<>\"\", IF(INDEX('Full set Core Client Indicator'!$A$3:$AB$351, MATCH(Selection_Hide2!$A100, 'Full set Core Client Indicator'!$A$3:$A$351, 0), MATCH(Selection_Hide2!Z$5, 'Full set Core Client Indicator'!$A$3:$AB$3, 0))=\"\", \"\",  INDEX('Full set Core Client Indicator'!$A$3:$AB$351, MATCH(Selection_Hide2!$A100, 'Full set Core Client Indicator'!$A$3:$A$351, 0), MATCH(Selection_Hide2!Z$5, 'Full set Core Client Indicator'!$A$3:$AB$3, 0))), \"\")","v":""},{"$f":"IF(Z100<>\"\", IF(INDEX('Full set Core Client Indicator'!$A$3:$AB$351, MATCH(Selection_Hide2!$A100, 'Full set Core Client Indicator'!$A$3:$A$351, 0), MATCH(Selection_Hide2!AA$5, 'Full set Core Client Indicator'!$A$3:$AB$3, 0))=\"\", \"\",  INDEX('Full set Core Client Indicator'!$A$3:$AB$351, MATCH(Selection_Hide2!$A100, 'Full set Core Client Indicator'!$A$3:$A$351, 0), MATCH(Selection_Hide2!AA$5, 'Full set Core Client Indicator'!$A$3:$AB$3, 0))), \"\")","v":""},{"$f":"IF(AA100<>\"\", IF(INDEX('Full set Core Client Indicator'!$A$3:$AB$351, MATCH(Selection_Hide2!$A100, 'Full set Core Client Indicator'!$A$3:$A$351, 0), MATCH(Selection_Hide2!AB$5, 'Full set Core Client Indicator'!$A$3:$AB$3, 0))=\"\", \"\",  INDEX('Full set Core Client Indicator'!$A$3:$AB$351, MATCH(Selection_Hide2!$A100, 'Full set Core Client Indicator'!$A$3:$A$351, 0), MATCH(Selection_Hide2!AB$5, 'Full set Core Client Indicator'!$A$3:$AB$3, 0))), \"\")","v":""}]
[{"$f":"IF(AND(Selection_Hide1!C99<>0, Selection_Hide1!C99<>\"Grand Total\"), Selection_Hide1!C99, \"\")","v":""},{"$f":"IF(A101<>\"\", IF(INDEX('Full set Core Client Indicator'!$A$3:$AB$351, MATCH(Selection_Hide2!$A101, 'Full set Core Client Indicator'!$A$3:$A$351, 0), MATCH(Selection_Hide2!B$5, 'Full set Core Client Indicator'!$A$3:$AB$3, 0))=\"\", \"\",  INDEX('Full set Core Client Indicator'!$A$3:$AB$351, MATCH(Selection_Hide2!$A101, 'Full set Core Client Indicator'!$A$3:$A$351, 0), MATCH(Selection_Hide2!B$5, 'Full set Core Client Indicator'!$A$3:$AB$3, 0))), \"\")","v":""},{"$f":"IF(B101<>\"\", IF(INDEX('Full set Core Client Indicator'!$A$3:$AB$351, MATCH(Selection_Hide2!$A101, 'Full set Core Client Indicator'!$A$3:$A$351, 0), MATCH(Selection_Hide2!C$5, 'Full set Core Client Indicator'!$A$3:$AB$3, 0))=\"\", \"\",  INDEX('Full set Core Client Indicator'!$A$3:$AB$351, MATCH(Selection_Hide2!$A101, 'Full set Core Client Indicator'!$A$3:$A$351, 0), MATCH(Selection_Hide2!C$5, 'Full set Core Client Indicator'!$A$3:$AB$3, 0))), \"\")","v":""},{"$f":"IF(C101<>\"\", IF(INDEX('Full set Core Client Indicator'!$A$3:$AB$351, MATCH(Selection_Hide2!$A101, 'Full set Core Client Indicator'!$A$3:$A$351, 0), MATCH(Selection_Hide2!D$5, 'Full set Core Client Indicator'!$A$3:$AB$3, 0))=\"\", \"\",  INDEX('Full set Core Client Indicator'!$A$3:$AB$351, MATCH(Selection_Hide2!$A101, 'Full set Core Client Indicator'!$A$3:$A$351, 0), MATCH(Selection_Hide2!D$5, 'Full set Core Client Indicator'!$A$3:$AB$3, 0))), \"\")","v":""},{"$f":"IF(D101<>\"\", IF(INDEX('Full set Core Client Indicator'!$A$3:$AB$351, MATCH(Selection_Hide2!$A101, 'Full set Core Client Indicator'!$A$3:$A$351, 0), MATCH(Selection_Hide2!E$5, 'Full set Core Client Indicator'!$A$3:$AB$3, 0))=\"\", \"\",  INDEX('Full set Core Client Indicator'!$A$3:$AB$351, MATCH(Selection_Hide2!$A101, 'Full set Core Client Indicator'!$A$3:$A$351, 0), MATCH(Selection_Hide2!E$5, 'Full set Core Client Indicator'!$A$3:$AB$3, 0))), \"\")","v":""},{"$f":"IF(E101<>\"\", IF(INDEX('Full set Core Client Indicator'!$A$3:$AB$351, MATCH(Selection_Hide2!$A101, 'Full set Core Client Indicator'!$A$3:$A$351, 0), MATCH(Selection_Hide2!F$5, 'Full set Core Client Indicator'!$A$3:$AB$3, 0))=\"\", \"\",  INDEX('Full set Core Client Indicator'!$A$3:$AB$351, MATCH(Selection_Hide2!$A101, 'Full set Core Client Indicator'!$A$3:$A$351, 0), MATCH(Selection_Hide2!F$5, 'Full set Core Client Indicator'!$A$3:$AB$3, 0))), \"\")","v":""},{"$f":"IF(F101<>\"\", IF(INDEX('Full set Core Client Indicator'!$A$3:$AB$351, MATCH(Selection_Hide2!$A101, 'Full set Core Client Indicator'!$A$3:$A$351, 0), MATCH(Selection_Hide2!G$5, 'Full set Core Client Indicator'!$A$3:$AB$3, 0))=\"\", \"\",  INDEX('Full set Core Client Indicator'!$A$3:$AB$351, MATCH(Selection_Hide2!$A101, 'Full set Core Client Indicator'!$A$3:$A$351, 0), MATCH(Selection_Hide2!G$5, 'Full set Core Client Indicator'!$A$3:$AB$3, 0))), \"\")","v":""},{"$f":"IF(G101<>\"\", IF(INDEX('Full set Core Client Indicator'!$A$3:$AB$351, MATCH(Selection_Hide2!$A101, 'Full set Core Client Indicator'!$A$3:$A$351, 0), MATCH(Selection_Hide2!H$5, 'Full set Core Client Indicator'!$A$3:$AB$3, 0))=\"\", \"\",  INDEX('Full set Core Client Indicator'!$A$3:$AB$351, MATCH(Selection_Hide2!$A101, 'Full set Core Client Indicator'!$A$3:$A$351, 0), MATCH(Selection_Hide2!H$5, 'Full set Core Client Indicator'!$A$3:$AB$3, 0))), \"\")","v":""},{"$f":"IF(H101<>\"\", IF(INDEX('Full set Core Client Indicator'!$A$3:$AB$351, MATCH(Selection_Hide2!$A101, 'Full set Core Client Indicator'!$A$3:$A$351, 0), MATCH(Selection_Hide2!I$5, 'Full set Core Client Indicator'!$A$3:$AB$3, 0))=\"\", \"\",  INDEX('Full set Core Client Indicator'!$A$3:$AB$351, MATCH(Selection_Hide2!$A101, 'Full set Core Client Indicator'!$A$3:$A$351, 0), MATCH(Selection_Hide2!I$5, 'Full set Core Client Indicator'!$A$3:$AB$3, 0))), \"\")","v":""},{"$f":"IF(I101<>\"\", IF(INDEX('Full set Core Client Indicator'!$A$3:$AB$351, MATCH(Selection_Hide2!$A101, 'Full set Core Client Indicator'!$A$3:$A$351, 0), MATCH(Selection_Hide2!J$5, 'Full set Core Client Indicator'!$A$3:$AB$3, 0))=\"\", \"\",  INDEX('Full set Core Client Indicator'!$A$3:$AB$351, MATCH(Selection_Hide2!$A101, 'Full set Core Client Indicator'!$A$3:$A$351, 0), MATCH(Selection_Hide2!J$5, 'Full set Core Client Indicator'!$A$3:$AB$3, 0))), \"\")","v":""},{"$f":"IF(J101<>\"\", IF(INDEX('Full set Core Client Indicator'!$A$3:$AB$351, MATCH(Selection_Hide2!$A101, 'Full set Core Client Indicator'!$A$3:$A$351, 0), MATCH(Selection_Hide2!K$5, 'Full set Core Client Indicator'!$A$3:$AB$3, 0))=\"\", \"\",  INDEX('Full set Core Client Indicator'!$A$3:$AB$351, MATCH(Selection_Hide2!$A101, 'Full set Core Client Indicator'!$A$3:$A$351, 0), MATCH(Selection_Hide2!K$5, 'Full set Core Client Indicator'!$A$3:$AB$3, 0))), \"\")","v":""},{"$f":"IF(K101<>\"\", IF(INDEX('Full set Core Client Indicator'!$A$3:$AB$351, MATCH(Selection_Hide2!$A101, 'Full set Core Client Indicator'!$A$3:$A$351, 0), MATCH(Selection_Hide2!L$5, 'Full set Core Client Indicator'!$A$3:$AB$3, 0))=\"\", \"\",  INDEX('Full set Core Client Indicator'!$A$3:$AB$351, MATCH(Selection_Hide2!$A101, 'Full set Core Client Indicator'!$A$3:$A$351, 0), MATCH(Selection_Hide2!L$5, 'Full set Core Client Indicator'!$A$3:$AB$3, 0))), \"\")","v":""},{"$f":"IF(L101<>\"\", IF(INDEX('Full set Core Client Indicator'!$A$3:$AB$351, MATCH(Selection_Hide2!$A101, 'Full set Core Client Indicator'!$A$3:$A$351, 0), MATCH(Selection_Hide2!M$5, 'Full set Core Client Indicator'!$A$3:$AB$3, 0))=\"\", \"\",  INDEX('Full set Core Client Indicator'!$A$3:$AB$351, MATCH(Selection_Hide2!$A101, 'Full set Core Client Indicator'!$A$3:$A$351, 0), MATCH(Selection_Hide2!M$5, 'Full set Core Client Indicator'!$A$3:$AB$3, 0))), \"\")","v":""},{"$f":"IF(M101<>\"\", IF(INDEX('Full set Core Client Indicator'!$A$3:$AB$351, MATCH(Selection_Hide2!$A101, 'Full set Core Client Indicator'!$A$3:$A$351, 0), MATCH(Selection_Hide2!N$5, 'Full set Core Client Indicator'!$A$3:$AB$3, 0))=\"\", \"\",  INDEX('Full set Core Client Indicator'!$A$3:$AB$351, MATCH(Selection_Hide2!$A101, 'Full set Core Client Indicator'!$A$3:$A$351, 0), MATCH(Selection_Hide2!N$5, 'Full set Core Client Indicator'!$A$3:$AB$3, 0))), \"\")","v":""},{"$f":"IF(N101<>\"\", IF(INDEX('Full set Core Client Indicator'!$A$3:$AB$351, MATCH(Selection_Hide2!$A101, 'Full set Core Client Indicator'!$A$3:$A$351, 0), MATCH(Selection_Hide2!O$5, 'Full set Core Client Indicator'!$A$3:$AB$3, 0))=\"\", \"\",  INDEX('Full set Core Client Indicator'!$A$3:$AB$351, MATCH(Selection_Hide2!$A101, 'Full set Core Client Indicator'!$A$3:$A$351, 0), MATCH(Selection_Hide2!O$5, 'Full set Core Client Indicator'!$A$3:$AB$3, 0))), \"\")","v":""},{"$f":"IF(O101<>\"\", IF(INDEX('Full set Core Client Indicator'!$A$3:$AB$351, MATCH(Selection_Hide2!$A101, 'Full set Core Client Indicator'!$A$3:$A$351, 0), MATCH(Selection_Hide2!P$5, 'Full set Core Client Indicator'!$A$3:$AB$3, 0))=\"\", \"\",  INDEX('Full set Core Client Indicator'!$A$3:$AB$351, MATCH(Selection_Hide2!$A101, 'Full set Core Client Indicator'!$A$3:$A$351, 0), MATCH(Selection_Hide2!P$5, 'Full set Core Client Indicator'!$A$3:$AB$3, 0))), \"\")","v":""},{"$f":"IF(P101<>\"\", IF(INDEX('Full set Core Client Indicator'!$A$3:$AB$351, MATCH(Selection_Hide2!$A101, 'Full set Core Client Indicator'!$A$3:$A$351, 0), MATCH(Selection_Hide2!Q$5, 'Full set Core Client Indicator'!$A$3:$AB$3, 0))=\"\", \"\",  INDEX('Full set Core Client Indicator'!$A$3:$AB$351, MATCH(Selection_Hide2!$A101, 'Full set Core Client Indicator'!$A$3:$A$351, 0), MATCH(Selection_Hide2!Q$5, 'Full set Core Client Indicator'!$A$3:$AB$3, 0))), \"\")","v":""},{"$f":"IF(Q101<>\"\", IF(INDEX('Full set Core Client Indicator'!$A$3:$AB$351, MATCH(Selection_Hide2!$A101, 'Full set Core Client Indicator'!$A$3:$A$351, 0), MATCH(Selection_Hide2!R$5, 'Full set Core Client Indicator'!$A$3:$AB$3, 0))=\"\", \"\",  INDEX('Full set Core Client Indicator'!$A$3:$AB$351, MATCH(Selection_Hide2!$A101, 'Full set Core Client Indicator'!$A$3:$A$351, 0), MATCH(Selection_Hide2!R$5, 'Full set Core Client Indicator'!$A$3:$AB$3, 0))), \"\")","v":""},{"$f":"IF(R101<>\"\", IF(INDEX('Full set Core Client Indicator'!$A$3:$AB$351, MATCH(Selection_Hide2!$A101, 'Full set Core Client Indicator'!$A$3:$A$351, 0), MATCH(Selection_Hide2!S$5, 'Full set Core Client Indicator'!$A$3:$AB$3, 0))=\"\", \"\",  INDEX('Full set Core Client Indicator'!$A$3:$AB$351, MATCH(Selection_Hide2!$A101, 'Full set Core Client Indicator'!$A$3:$A$351, 0), MATCH(Selection_Hide2!S$5, 'Full set Core Client Indicator'!$A$3:$AB$3, 0))), \"\")","v":""},{"$f":"IF(S101<>\"\", IF(INDEX('Full set Core Client Indicator'!$A$3:$AB$351, MATCH(Selection_Hide2!$A101, 'Full set Core Client Indicator'!$A$3:$A$351, 0), MATCH(Selection_Hide2!T$5, 'Full set Core Client Indicator'!$A$3:$AB$3, 0))=\"\", \"\",  INDEX('Full set Core Client Indicator'!$A$3:$AB$351, MATCH(Selection_Hide2!$A101, 'Full set Core Client Indicator'!$A$3:$A$351, 0), MATCH(Selection_Hide2!T$5, 'Full set Core Client Indicator'!$A$3:$AB$3, 0))), \"\")","v":""},{"$f":"IF(T101<>\"\", IF(INDEX('Full set Core Client Indicator'!$A$3:$AB$351, MATCH(Selection_Hide2!$A101, 'Full set Core Client Indicator'!$A$3:$A$351, 0), MATCH(Selection_Hide2!U$5, 'Full set Core Client Indicator'!$A$3:$AB$3, 0))=\"\", \"\",  INDEX('Full set Core Client Indicator'!$A$3:$AB$351, MATCH(Selection_Hide2!$A101, 'Full set Core Client Indicator'!$A$3:$A$351, 0), MATCH(Selection_Hide2!U$5, 'Full set Core Client Indicator'!$A$3:$AB$3, 0))), \"\")","v":""},{"$f":"IF(U101<>\"\", IF(INDEX('Full set Core Client Indicator'!$A$3:$AB$351, MATCH(Selection_Hide2!$A101, 'Full set Core Client Indicator'!$A$3:$A$351, 0), MATCH(Selection_Hide2!V$5, 'Full set Core Client Indicator'!$A$3:$AB$3, 0))=\"\", \"\",  INDEX('Full set Core Client Indicator'!$A$3:$AB$351, MATCH(Selection_Hide2!$A101, 'Full set Core Client Indicator'!$A$3:$A$351, 0), MATCH(Selection_Hide2!V$5, 'Full set Core Client Indicator'!$A$3:$AB$3, 0))), \"\")","v":""},{"$f":"IF(V101<>\"\", IF(INDEX('Full set Core Client Indicator'!$A$3:$AB$351, MATCH(Selection_Hide2!$A101, 'Full set Core Client Indicator'!$A$3:$A$351, 0), MATCH(Selection_Hide2!W$5, 'Full set Core Client Indicator'!$A$3:$AB$3, 0))=\"\", \"\",  INDEX('Full set Core Client Indicator'!$A$3:$AB$351, MATCH(Selection_Hide2!$A101, 'Full set Core Client Indicator'!$A$3:$A$351, 0), MATCH(Selection_Hide2!W$5, 'Full set Core Client Indicator'!$A$3:$AB$3, 0))), \"\")","v":""},{"$f":"IF(W101<>\"\", IF(INDEX('Full set Core Client Indicator'!$A$3:$AB$351, MATCH(Selection_Hide2!$A101, 'Full set Core Client Indicator'!$A$3:$A$351, 0), MATCH(Selection_Hide2!X$5, 'Full set Core Client Indicator'!$A$3:$AB$3, 0))=\"\", \"\",  INDEX('Full set Core Client Indicator'!$A$3:$AB$351, MATCH(Selection_Hide2!$A101, 'Full set Core Client Indicator'!$A$3:$A$351, 0), MATCH(Selection_Hide2!X$5, 'Full set Core Client Indicator'!$A$3:$AB$3, 0))), \"\")","v":""},{"$f":"IF(X101<>\"\", IF(INDEX('Full set Core Client Indicator'!$A$3:$AB$351, MATCH(Selection_Hide2!$A101, 'Full set Core Client Indicator'!$A$3:$A$351, 0), MATCH(Selection_Hide2!Y$5, 'Full set Core Client Indicator'!$A$3:$AB$3, 0))=\"\", \"\",  INDEX('Full set Core Client Indicator'!$A$3:$AB$351, MATCH(Selection_Hide2!$A101, 'Full set Core Client Indicator'!$A$3:$A$351, 0), MATCH(Selection_Hide2!Y$5, 'Full set Core Client Indicator'!$A$3:$AB$3, 0))), \"\")","v":""},{"$f":"IF(Y101<>\"\", IF(INDEX('Full set Core Client Indicator'!$A$3:$AB$351, MATCH(Selection_Hide2!$A101, 'Full set Core Client Indicator'!$A$3:$A$351, 0), MATCH(Selection_Hide2!Z$5, 'Full set Core Client Indicator'!$A$3:$AB$3, 0))=\"\", \"\",  INDEX('Full set Core Client Indicator'!$A$3:$AB$351, MATCH(Selection_Hide2!$A101, 'Full set Core Client Indicator'!$A$3:$A$351, 0), MATCH(Selection_Hide2!Z$5, 'Full set Core Client Indicator'!$A$3:$AB$3, 0))), \"\")","v":""},{"$f":"IF(Z101<>\"\", IF(INDEX('Full set Core Client Indicator'!$A$3:$AB$351, MATCH(Selection_Hide2!$A101, 'Full set Core Client Indicator'!$A$3:$A$351, 0), MATCH(Selection_Hide2!AA$5, 'Full set Core Client Indicator'!$A$3:$AB$3, 0))=\"\", \"\",  INDEX('Full set Core Client Indicator'!$A$3:$AB$351, MATCH(Selection_Hide2!$A101, 'Full set Core Client Indicator'!$A$3:$A$351, 0), MATCH(Selection_Hide2!AA$5, 'Full set Core Client Indicator'!$A$3:$AB$3, 0))), \"\")","v":""},{"$f":"IF(AA101<>\"\", IF(INDEX('Full set Core Client Indicator'!$A$3:$AB$351, MATCH(Selection_Hide2!$A101, 'Full set Core Client Indicator'!$A$3:$A$351, 0), MATCH(Selection_Hide2!AB$5, 'Full set Core Client Indicator'!$A$3:$AB$3, 0))=\"\", \"\",  INDEX('Full set Core Client Indicator'!$A$3:$AB$351, MATCH(Selection_Hide2!$A101, 'Full set Core Client Indicator'!$A$3:$A$351, 0), MATCH(Selection_Hide2!AB$5, 'Full set Core Client Indicator'!$A$3:$AB$3, 0))), \"\")","v":""}]
[{"$f":"IF(AND(Selection_Hide1!C100<>0, Selection_Hide1!C100<>\"Grand Total\"), Selection_Hide1!C100, \"\")","v":""},{"$f":"IF(A102<>\"\", IF(INDEX('Full set Core Client Indicator'!$A$3:$AB$351, MATCH(Selection_Hide2!$A102, 'Full set Core Client Indicator'!$A$3:$A$351, 0), MATCH(Selection_Hide2!B$5, 'Full set Core Client Indicator'!$A$3:$AB$3, 0))=\"\", \"\",  INDEX('Full set Core Client Indicator'!$A$3:$AB$351, MATCH(Selection_Hide2!$A102, 'Full set Core Client Indicator'!$A$3:$A$351, 0), MATCH(Selection_Hide2!B$5, 'Full set Core Client Indicator'!$A$3:$AB$3, 0))), \"\")","v":""},{"$f":"IF(B102<>\"\", IF(INDEX('Full set Core Client Indicator'!$A$3:$AB$351, MATCH(Selection_Hide2!$A102, 'Full set Core Client Indicator'!$A$3:$A$351, 0), MATCH(Selection_Hide2!C$5, 'Full set Core Client Indicator'!$A$3:$AB$3, 0))=\"\", \"\",  INDEX('Full set Core Client Indicator'!$A$3:$AB$351, MATCH(Selection_Hide2!$A102, 'Full set Core Client Indicator'!$A$3:$A$351, 0), MATCH(Selection_Hide2!C$5, 'Full set Core Client Indicator'!$A$3:$AB$3, 0))), \"\")","v":""},{"$f":"IF(C102<>\"\", IF(INDEX('Full set Core Client Indicator'!$A$3:$AB$351, MATCH(Selection_Hide2!$A102, 'Full set Core Client Indicator'!$A$3:$A$351, 0), MATCH(Selection_Hide2!D$5, 'Full set Core Client Indicator'!$A$3:$AB$3, 0))=\"\", \"\",  INDEX('Full set Core Client Indicator'!$A$3:$AB$351, MATCH(Selection_Hide2!$A102, 'Full set Core Client Indicator'!$A$3:$A$351, 0), MATCH(Selection_Hide2!D$5, 'Full set Core Client Indicator'!$A$3:$AB$3, 0))), \"\")","v":""},{"$f":"IF(D102<>\"\", IF(INDEX('Full set Core Client Indicator'!$A$3:$AB$351, MATCH(Selection_Hide2!$A102, 'Full set Core Client Indicator'!$A$3:$A$351, 0), MATCH(Selection_Hide2!E$5, 'Full set Core Client Indicator'!$A$3:$AB$3, 0))=\"\", \"\",  INDEX('Full set Core Client Indicator'!$A$3:$AB$351, MATCH(Selection_Hide2!$A102, 'Full set Core Client Indicator'!$A$3:$A$351, 0), MATCH(Selection_Hide2!E$5, 'Full set Core Client Indicator'!$A$3:$AB$3, 0))), \"\")","v":""},{"$f":"IF(E102<>\"\", IF(INDEX('Full set Core Client Indicator'!$A$3:$AB$351, MATCH(Selection_Hide2!$A102, 'Full set Core Client Indicator'!$A$3:$A$351, 0), MATCH(Selection_Hide2!F$5, 'Full set Core Client Indicator'!$A$3:$AB$3, 0))=\"\", \"\",  INDEX('Full set Core Client Indicator'!$A$3:$AB$351, MATCH(Selection_Hide2!$A102, 'Full set Core Client Indicator'!$A$3:$A$351, 0), MATCH(Selection_Hide2!F$5, 'Full set Core Client Indicator'!$A$3:$AB$3, 0))), \"\")","v":""},{"$f":"IF(F102<>\"\", IF(INDEX('Full set Core Client Indicator'!$A$3:$AB$351, MATCH(Selection_Hide2!$A102, 'Full set Core Client Indicator'!$A$3:$A$351, 0), MATCH(Selection_Hide2!G$5, 'Full set Core Client Indicator'!$A$3:$AB$3, 0))=\"\", \"\",  INDEX('Full set Core Client Indicator'!$A$3:$AB$351, MATCH(Selection_Hide2!$A102, 'Full set Core Client Indicator'!$A$3:$A$351, 0), MATCH(Selection_Hide2!G$5, 'Full set Core Client Indicator'!$A$3:$AB$3, 0))), \"\")","v":""},{"$f":"IF(G102<>\"\", IF(INDEX('Full set Core Client Indicator'!$A$3:$AB$351, MATCH(Selection_Hide2!$A102, 'Full set Core Client Indicator'!$A$3:$A$351, 0), MATCH(Selection_Hide2!H$5, 'Full set Core Client Indicator'!$A$3:$AB$3, 0))=\"\", \"\",  INDEX('Full set Core Client Indicator'!$A$3:$AB$351, MATCH(Selection_Hide2!$A102, 'Full set Core Client Indicator'!$A$3:$A$351, 0), MATCH(Selection_Hide2!H$5, 'Full set Core Client Indicator'!$A$3:$AB$3, 0))), \"\")","v":""},{"$f":"IF(H102<>\"\", IF(INDEX('Full set Core Client Indicator'!$A$3:$AB$351, MATCH(Selection_Hide2!$A102, 'Full set Core Client Indicator'!$A$3:$A$351, 0), MATCH(Selection_Hide2!I$5, 'Full set Core Client Indicator'!$A$3:$AB$3, 0))=\"\", \"\",  INDEX('Full set Core Client Indicator'!$A$3:$AB$351, MATCH(Selection_Hide2!$A102, 'Full set Core Client Indicator'!$A$3:$A$351, 0), MATCH(Selection_Hide2!I$5, 'Full set Core Client Indicator'!$A$3:$AB$3, 0))), \"\")","v":""},{"$f":"IF(I102<>\"\", IF(INDEX('Full set Core Client Indicator'!$A$3:$AB$351, MATCH(Selection_Hide2!$A102, 'Full set Core Client Indicator'!$A$3:$A$351, 0), MATCH(Selection_Hide2!J$5, 'Full set Core Client Indicator'!$A$3:$AB$3, 0))=\"\", \"\",  INDEX('Full set Core Client Indicator'!$A$3:$AB$351, MATCH(Selection_Hide2!$A102, 'Full set Core Client Indicator'!$A$3:$A$351, 0), MATCH(Selection_Hide2!J$5, 'Full set Core Client Indicator'!$A$3:$AB$3, 0))), \"\")","v":""},{"$f":"IF(J102<>\"\", IF(INDEX('Full set Core Client Indicator'!$A$3:$AB$351, MATCH(Selection_Hide2!$A102, 'Full set Core Client Indicator'!$A$3:$A$351, 0), MATCH(Selection_Hide2!K$5, 'Full set Core Client Indicator'!$A$3:$AB$3, 0))=\"\", \"\",  INDEX('Full set Core Client Indicator'!$A$3:$AB$351, MATCH(Selection_Hide2!$A102, 'Full set Core Client Indicator'!$A$3:$A$351, 0), MATCH(Selection_Hide2!K$5, 'Full set Core Client Indicator'!$A$3:$AB$3, 0))), \"\")","v":""},{"$f":"IF(K102<>\"\", IF(INDEX('Full set Core Client Indicator'!$A$3:$AB$351, MATCH(Selection_Hide2!$A102, 'Full set Core Client Indicator'!$A$3:$A$351, 0), MATCH(Selection_Hide2!L$5, 'Full set Core Client Indicator'!$A$3:$AB$3, 0))=\"\", \"\",  INDEX('Full set Core Client Indicator'!$A$3:$AB$351, MATCH(Selection_Hide2!$A102, 'Full set Core Client Indicator'!$A$3:$A$351, 0), MATCH(Selection_Hide2!L$5, 'Full set Core Client Indicator'!$A$3:$AB$3, 0))), \"\")","v":""},{"$f":"IF(L102<>\"\", IF(INDEX('Full set Core Client Indicator'!$A$3:$AB$351, MATCH(Selection_Hide2!$A102, 'Full set Core Client Indicator'!$A$3:$A$351, 0), MATCH(Selection_Hide2!M$5, 'Full set Core Client Indicator'!$A$3:$AB$3, 0))=\"\", \"\",  INDEX('Full set Core Client Indicator'!$A$3:$AB$351, MATCH(Selection_Hide2!$A102, 'Full set Core Client Indicator'!$A$3:$A$351, 0), MATCH(Selection_Hide2!M$5, 'Full set Core Client Indicator'!$A$3:$AB$3, 0))), \"\")","v":""},{"$f":"IF(M102<>\"\", IF(INDEX('Full set Core Client Indicator'!$A$3:$AB$351, MATCH(Selection_Hide2!$A102, 'Full set Core Client Indicator'!$A$3:$A$351, 0), MATCH(Selection_Hide2!N$5, 'Full set Core Client Indicator'!$A$3:$AB$3, 0))=\"\", \"\",  INDEX('Full set Core Client Indicator'!$A$3:$AB$351, MATCH(Selection_Hide2!$A102, 'Full set Core Client Indicator'!$A$3:$A$351, 0), MATCH(Selection_Hide2!N$5, 'Full set Core Client Indicator'!$A$3:$AB$3, 0))), \"\")","v":""},{"$f":"IF(N102<>\"\", IF(INDEX('Full set Core Client Indicator'!$A$3:$AB$351, MATCH(Selection_Hide2!$A102, 'Full set Core Client Indicator'!$A$3:$A$351, 0), MATCH(Selection_Hide2!O$5, 'Full set Core Client Indicator'!$A$3:$AB$3, 0))=\"\", \"\",  INDEX('Full set Core Client Indicator'!$A$3:$AB$351, MATCH(Selection_Hide2!$A102, 'Full set Core Client Indicator'!$A$3:$A$351, 0), MATCH(Selection_Hide2!O$5, 'Full set Core Client Indicator'!$A$3:$AB$3, 0))), \"\")","v":""},{"$f":"IF(O102<>\"\", IF(INDEX('Full set Core Client Indicator'!$A$3:$AB$351, MATCH(Selection_Hide2!$A102, 'Full set Core Client Indicator'!$A$3:$A$351, 0), MATCH(Selection_Hide2!P$5, 'Full set Core Client Indicator'!$A$3:$AB$3, 0))=\"\", \"\",  INDEX('Full set Core Client Indicator'!$A$3:$AB$351, MATCH(Selection_Hide2!$A102, 'Full set Core Client Indicator'!$A$3:$A$351, 0), MATCH(Selection_Hide2!P$5, 'Full set Core Client Indicator'!$A$3:$AB$3, 0))), \"\")","v":""},{"$f":"IF(P102<>\"\", IF(INDEX('Full set Core Client Indicator'!$A$3:$AB$351, MATCH(Selection_Hide2!$A102, 'Full set Core Client Indicator'!$A$3:$A$351, 0), MATCH(Selection_Hide2!Q$5, 'Full set Core Client Indicator'!$A$3:$AB$3, 0))=\"\", \"\",  INDEX('Full set Core Client Indicator'!$A$3:$AB$351, MATCH(Selection_Hide2!$A102, 'Full set Core Client Indicator'!$A$3:$A$351, 0), MATCH(Selection_Hide2!Q$5, 'Full set Core Client Indicator'!$A$3:$AB$3, 0))), \"\")","v":""},{"$f":"IF(Q102<>\"\", IF(INDEX('Full set Core Client Indicator'!$A$3:$AB$351, MATCH(Selection_Hide2!$A102, 'Full set Core Client Indicator'!$A$3:$A$351, 0), MATCH(Selection_Hide2!R$5, 'Full set Core Client Indicator'!$A$3:$AB$3, 0))=\"\", \"\",  INDEX('Full set Core Client Indicator'!$A$3:$AB$351, MATCH(Selection_Hide2!$A102, 'Full set Core Client Indicator'!$A$3:$A$351, 0), MATCH(Selection_Hide2!R$5, 'Full set Core Client Indicator'!$A$3:$AB$3, 0))), \"\")","v":""},{"$f":"IF(R102<>\"\", IF(INDEX('Full set Core Client Indicator'!$A$3:$AB$351, MATCH(Selection_Hide2!$A102, 'Full set Core Client Indicator'!$A$3:$A$351, 0), MATCH(Selection_Hide2!S$5, 'Full set Core Client Indicator'!$A$3:$AB$3, 0))=\"\", \"\",  INDEX('Full set Core Client Indicator'!$A$3:$AB$351, MATCH(Selection_Hide2!$A102, 'Full set Core Client Indicator'!$A$3:$A$351, 0), MATCH(Selection_Hide2!S$5, 'Full set Core Client Indicator'!$A$3:$AB$3, 0))), \"\")","v":""},{"$f":"IF(S102<>\"\", IF(INDEX('Full set Core Client Indicator'!$A$3:$AB$351, MATCH(Selection_Hide2!$A102, 'Full set Core Client Indicator'!$A$3:$A$351, 0), MATCH(Selection_Hide2!T$5, 'Full set Core Client Indicator'!$A$3:$AB$3, 0))=\"\", \"\",  INDEX('Full set Core Client Indicator'!$A$3:$AB$351, MATCH(Selection_Hide2!$A102, 'Full set Core Client Indicator'!$A$3:$A$351, 0), MATCH(Selection_Hide2!T$5, 'Full set Core Client Indicator'!$A$3:$AB$3, 0))), \"\")","v":""},{"$f":"IF(T102<>\"\", IF(INDEX('Full set Core Client Indicator'!$A$3:$AB$351, MATCH(Selection_Hide2!$A102, 'Full set Core Client Indicator'!$A$3:$A$351, 0), MATCH(Selection_Hide2!U$5, 'Full set Core Client Indicator'!$A$3:$AB$3, 0))=\"\", \"\",  INDEX('Full set Core Client Indicator'!$A$3:$AB$351, MATCH(Selection_Hide2!$A102, 'Full set Core Client Indicator'!$A$3:$A$351, 0), MATCH(Selection_Hide2!U$5, 'Full set Core Client Indicator'!$A$3:$AB$3, 0))), \"\")","v":""},{"$f":"IF(U102<>\"\", IF(INDEX('Full set Core Client Indicator'!$A$3:$AB$351, MATCH(Selection_Hide2!$A102, 'Full set Core Client Indicator'!$A$3:$A$351, 0), MATCH(Selection_Hide2!V$5, 'Full set Core Client Indicator'!$A$3:$AB$3, 0))=\"\", \"\",  INDEX('Full set Core Client Indicator'!$A$3:$AB$351, MATCH(Selection_Hide2!$A102, 'Full set Core Client Indicator'!$A$3:$A$351, 0), MATCH(Selection_Hide2!V$5, 'Full set Core Client Indicator'!$A$3:$AB$3, 0))), \"\")","v":""},{"$f":"IF(V102<>\"\", IF(INDEX('Full set Core Client Indicator'!$A$3:$AB$351, MATCH(Selection_Hide2!$A102, 'Full set Core Client Indicator'!$A$3:$A$351, 0), MATCH(Selection_Hide2!W$5, 'Full set Core Client Indicator'!$A$3:$AB$3, 0))=\"\", \"\",  INDEX('Full set Core Client Indicator'!$A$3:$AB$351, MATCH(Selection_Hide2!$A102, 'Full set Core Client Indicator'!$A$3:$A$351, 0), MATCH(Selection_Hide2!W$5, 'Full set Core Client Indicator'!$A$3:$AB$3, 0))), \"\")","v":""},{"$f":"IF(W102<>\"\", IF(INDEX('Full set Core Client Indicator'!$A$3:$AB$351, MATCH(Selection_Hide2!$A102, 'Full set Core Client Indicator'!$A$3:$A$351, 0), MATCH(Selection_Hide2!X$5, 'Full set Core Client Indicator'!$A$3:$AB$3, 0))=\"\", \"\",  INDEX('Full set Core Client Indicator'!$A$3:$AB$351, MATCH(Selection_Hide2!$A102, 'Full set Core Client Indicator'!$A$3:$A$351, 0), MATCH(Selection_Hide2!X$5, 'Full set Core Client Indicator'!$A$3:$AB$3, 0))), \"\")","v":""},{"$f":"IF(X102<>\"\", IF(INDEX('Full set Core Client Indicator'!$A$3:$AB$351, MATCH(Selection_Hide2!$A102, 'Full set Core Client Indicator'!$A$3:$A$351, 0), MATCH(Selection_Hide2!Y$5, 'Full set Core Client Indicator'!$A$3:$AB$3, 0))=\"\", \"\",  INDEX('Full set Core Client Indicator'!$A$3:$AB$351, MATCH(Selection_Hide2!$A102, 'Full set Core Client Indicator'!$A$3:$A$351, 0), MATCH(Selection_Hide2!Y$5, 'Full set Core Client Indicator'!$A$3:$AB$3, 0))), \"\")","v":""},{"$f":"IF(Y102<>\"\", IF(INDEX('Full set Core Client Indicator'!$A$3:$AB$351, MATCH(Selection_Hide2!$A102, 'Full set Core Client Indicator'!$A$3:$A$351, 0), MATCH(Selection_Hide2!Z$5, 'Full set Core Client Indicator'!$A$3:$AB$3, 0))=\"\", \"\",  INDEX('Full set Core Client Indicator'!$A$3:$AB$351, MATCH(Selection_Hide2!$A102, 'Full set Core Client Indicator'!$A$3:$A$351, 0), MATCH(Selection_Hide2!Z$5, 'Full set Core Client Indicator'!$A$3:$AB$3, 0))), \"\")","v":""},{"$f":"IF(Z102<>\"\", IF(INDEX('Full set Core Client Indicator'!$A$3:$AB$351, MATCH(Selection_Hide2!$A102, 'Full set Core Client Indicator'!$A$3:$A$351, 0), MATCH(Selection_Hide2!AA$5, 'Full set Core Client Indicator'!$A$3:$AB$3, 0))=\"\", \"\",  INDEX('Full set Core Client Indicator'!$A$3:$AB$351, MATCH(Selection_Hide2!$A102, 'Full set Core Client Indicator'!$A$3:$A$351, 0), MATCH(Selection_Hide2!AA$5, 'Full set Core Client Indicator'!$A$3:$AB$3, 0))), \"\")","v":""},{"$f":"IF(AA102<>\"\", IF(INDEX('Full set Core Client Indicator'!$A$3:$AB$351, MATCH(Selection_Hide2!$A102, 'Full set Core Client Indicator'!$A$3:$A$351, 0), MATCH(Selection_Hide2!AB$5, 'Full set Core Client Indicator'!$A$3:$AB$3, 0))=\"\", \"\",  INDEX('Full set Core Client Indicator'!$A$3:$AB$351, MATCH(Selection_Hide2!$A102, 'Full set Core Client Indicator'!$A$3:$A$351, 0), MATCH(Selection_Hide2!AB$5, 'Full set Core Client Indicator'!$A$3:$AB$3, 0))), \"\")","v":""}]
[{"$f":"IF(AND(Selection_Hide1!C101<>0, Selection_Hide1!C101<>\"Grand Total\"), Selection_Hide1!C101, \"\")","v":""},{"$f":"IF(A103<>\"\", IF(INDEX('Full set Core Client Indicator'!$A$3:$AB$351, MATCH(Selection_Hide2!$A103, 'Full set Core Client Indicator'!$A$3:$A$351, 0), MATCH(Selection_Hide2!B$5, 'Full set Core Client Indicator'!$A$3:$AB$3, 0))=\"\", \"\",  INDEX('Full set Core Client Indicator'!$A$3:$AB$351, MATCH(Selection_Hide2!$A103, 'Full set Core Client Indicator'!$A$3:$A$351, 0), MATCH(Selection_Hide2!B$5, 'Full set Core Client Indicator'!$A$3:$AB$3, 0))), \"\")","v":""},{"$f":"IF(B103<>\"\", IF(INDEX('Full set Core Client Indicator'!$A$3:$AB$351, MATCH(Selection_Hide2!$A103, 'Full set Core Client Indicator'!$A$3:$A$351, 0), MATCH(Selection_Hide2!C$5, 'Full set Core Client Indicator'!$A$3:$AB$3, 0))=\"\", \"\",  INDEX('Full set Core Client Indicator'!$A$3:$AB$351, MATCH(Selection_Hide2!$A103, 'Full set Core Client Indicator'!$A$3:$A$351, 0), MATCH(Selection_Hide2!C$5, 'Full set Core Client Indicator'!$A$3:$AB$3, 0))), \"\")","v":""},{"$f":"IF(C103<>\"\", IF(INDEX('Full set Core Client Indicator'!$A$3:$AB$351, MATCH(Selection_Hide2!$A103, 'Full set Core Client Indicator'!$A$3:$A$351, 0), MATCH(Selection_Hide2!D$5, 'Full set Core Client Indicator'!$A$3:$AB$3, 0))=\"\", \"\",  INDEX('Full set Core Client Indicator'!$A$3:$AB$351, MATCH(Selection_Hide2!$A103, 'Full set Core Client Indicator'!$A$3:$A$351, 0), MATCH(Selection_Hide2!D$5, 'Full set Core Client Indicator'!$A$3:$AB$3, 0))), \"\")","v":""},{"$f":"IF(D103<>\"\", IF(INDEX('Full set Core Client Indicator'!$A$3:$AB$351, MATCH(Selection_Hide2!$A103, 'Full set Core Client Indicator'!$A$3:$A$351, 0), MATCH(Selection_Hide2!E$5, 'Full set Core Client Indicator'!$A$3:$AB$3, 0))=\"\", \"\",  INDEX('Full set Core Client Indicator'!$A$3:$AB$351, MATCH(Selection_Hide2!$A103, 'Full set Core Client Indicator'!$A$3:$A$351, 0), MATCH(Selection_Hide2!E$5, 'Full set Core Client Indicator'!$A$3:$AB$3, 0))), \"\")","v":""},{"$f":"IF(E103<>\"\", IF(INDEX('Full set Core Client Indicator'!$A$3:$AB$351, MATCH(Selection_Hide2!$A103, 'Full set Core Client Indicator'!$A$3:$A$351, 0), MATCH(Selection_Hide2!F$5, 'Full set Core Client Indicator'!$A$3:$AB$3, 0))=\"\", \"\",  INDEX('Full set Core Client Indicator'!$A$3:$AB$351, MATCH(Selection_Hide2!$A103, 'Full set Core Client Indicator'!$A$3:$A$351, 0), MATCH(Selection_Hide2!F$5, 'Full set Core Client Indicator'!$A$3:$AB$3, 0))), \"\")","v":""},{"$f":"IF(F103<>\"\", IF(INDEX('Full set Core Client Indicator'!$A$3:$AB$351, MATCH(Selection_Hide2!$A103, 'Full set Core Client Indicator'!$A$3:$A$351, 0), MATCH(Selection_Hide2!G$5, 'Full set Core Client Indicator'!$A$3:$AB$3, 0))=\"\", \"\",  INDEX('Full set Core Client Indicator'!$A$3:$AB$351, MATCH(Selection_Hide2!$A103, 'Full set Core Client Indicator'!$A$3:$A$351, 0), MATCH(Selection_Hide2!G$5, 'Full set Core Client Indicator'!$A$3:$AB$3, 0))), \"\")","v":""},{"$f":"IF(G103<>\"\", IF(INDEX('Full set Core Client Indicator'!$A$3:$AB$351, MATCH(Selection_Hide2!$A103, 'Full set Core Client Indicator'!$A$3:$A$351, 0), MATCH(Selection_Hide2!H$5, 'Full set Core Client Indicator'!$A$3:$AB$3, 0))=\"\", \"\",  INDEX('Full set Core Client Indicator'!$A$3:$AB$351, MATCH(Selection_Hide2!$A103, 'Full set Core Client Indicator'!$A$3:$A$351, 0), MATCH(Selection_Hide2!H$5, 'Full set Core Client Indicator'!$A$3:$AB$3, 0))), \"\")","v":""},{"$f":"IF(H103<>\"\", IF(INDEX('Full set Core Client Indicator'!$A$3:$AB$351, MATCH(Selection_Hide2!$A103, 'Full set Core Client Indicator'!$A$3:$A$351, 0), MATCH(Selection_Hide2!I$5, 'Full set Core Client Indicator'!$A$3:$AB$3, 0))=\"\", \"\",  INDEX('Full set Core Client Indicator'!$A$3:$AB$351, MATCH(Selection_Hide2!$A103, 'Full set Core Client Indicator'!$A$3:$A$351, 0), MATCH(Selection_Hide2!I$5, 'Full set Core Client Indicator'!$A$3:$AB$3, 0))), \"\")","v":""},{"$f":"IF(I103<>\"\", IF(INDEX('Full set Core Client Indicator'!$A$3:$AB$351, MATCH(Selection_Hide2!$A103, 'Full set Core Client Indicator'!$A$3:$A$351, 0), MATCH(Selection_Hide2!J$5, 'Full set Core Client Indicator'!$A$3:$AB$3, 0))=\"\", \"\",  INDEX('Full set Core Client Indicator'!$A$3:$AB$351, MATCH(Selection_Hide2!$A103, 'Full set Core Client Indicator'!$A$3:$A$351, 0), MATCH(Selection_Hide2!J$5, 'Full set Core Client Indicator'!$A$3:$AB$3, 0))), \"\")","v":""},{"$f":"IF(J103<>\"\", IF(INDEX('Full set Core Client Indicator'!$A$3:$AB$351, MATCH(Selection_Hide2!$A103, 'Full set Core Client Indicator'!$A$3:$A$351, 0), MATCH(Selection_Hide2!K$5, 'Full set Core Client Indicator'!$A$3:$AB$3, 0))=\"\", \"\",  INDEX('Full set Core Client Indicator'!$A$3:$AB$351, MATCH(Selection_Hide2!$A103, 'Full set Core Client Indicator'!$A$3:$A$351, 0), MATCH(Selection_Hide2!K$5, 'Full set Core Client Indicator'!$A$3:$AB$3, 0))), \"\")","v":""},{"$f":"IF(K103<>\"\", IF(INDEX('Full set Core Client Indicator'!$A$3:$AB$351, MATCH(Selection_Hide2!$A103, 'Full set Core Client Indicator'!$A$3:$A$351, 0), MATCH(Selection_Hide2!L$5, 'Full set Core Client Indicator'!$A$3:$AB$3, 0))=\"\", \"\",  INDEX('Full set Core Client Indicator'!$A$3:$AB$351, MATCH(Selection_Hide2!$A103, 'Full set Core Client Indicator'!$A$3:$A$351, 0), MATCH(Selection_Hide2!L$5, 'Full set Core Client Indicator'!$A$3:$AB$3, 0))), \"\")","v":""},{"$f":"IF(L103<>\"\", IF(INDEX('Full set Core Client Indicator'!$A$3:$AB$351, MATCH(Selection_Hide2!$A103, 'Full set Core Client Indicator'!$A$3:$A$351, 0), MATCH(Selection_Hide2!M$5, 'Full set Core Client Indicator'!$A$3:$AB$3, 0))=\"\", \"\",  INDEX('Full set Core Client Indicator'!$A$3:$AB$351, MATCH(Selection_Hide2!$A103, 'Full set Core Client Indicator'!$A$3:$A$351, 0), MATCH(Selection_Hide2!M$5, 'Full set Core Client Indicator'!$A$3:$AB$3, 0))), \"\")","v":""},{"$f":"IF(M103<>\"\", IF(INDEX('Full set Core Client Indicator'!$A$3:$AB$351, MATCH(Selection_Hide2!$A103, 'Full set Core Client Indicator'!$A$3:$A$351, 0), MATCH(Selection_Hide2!N$5, 'Full set Core Client Indicator'!$A$3:$AB$3, 0))=\"\", \"\",  INDEX('Full set Core Client Indicator'!$A$3:$AB$351, MATCH(Selection_Hide2!$A103, 'Full set Core Client Indicator'!$A$3:$A$351, 0), MATCH(Selection_Hide2!N$5, 'Full set Core Client Indicator'!$A$3:$AB$3, 0))), \"\")","v":""},{"$f":"IF(N103<>\"\", IF(INDEX('Full set Core Client Indicator'!$A$3:$AB$351, MATCH(Selection_Hide2!$A103, 'Full set Core Client Indicator'!$A$3:$A$351, 0), MATCH(Selection_Hide2!O$5, 'Full set Core Client Indicator'!$A$3:$AB$3, 0))=\"\", \"\",  INDEX('Full set Core Client Indicator'!$A$3:$AB$351, MATCH(Selection_Hide2!$A103, 'Full set Core Client Indicator'!$A$3:$A$351, 0), MATCH(Selection_Hide2!O$5, 'Full set Core Client Indicator'!$A$3:$AB$3, 0))), \"\")","v":""},{"$f":"IF(O103<>\"\", IF(INDEX('Full set Core Client Indicator'!$A$3:$AB$351, MATCH(Selection_Hide2!$A103, 'Full set Core Client Indicator'!$A$3:$A$351, 0), MATCH(Selection_Hide2!P$5, 'Full set Core Client Indicator'!$A$3:$AB$3, 0))=\"\", \"\",  INDEX('Full set Core Client Indicator'!$A$3:$AB$351, MATCH(Selection_Hide2!$A103, 'Full set Core Client Indicator'!$A$3:$A$351, 0), MATCH(Selection_Hide2!P$5, 'Full set Core Client Indicator'!$A$3:$AB$3, 0))), \"\")","v":""},{"$f":"IF(P103<>\"\", IF(INDEX('Full set Core Client Indicator'!$A$3:$AB$351, MATCH(Selection_Hide2!$A103, 'Full set Core Client Indicator'!$A$3:$A$351, 0), MATCH(Selection_Hide2!Q$5, 'Full set Core Client Indicator'!$A$3:$AB$3, 0))=\"\", \"\",  INDEX('Full set Core Client Indicator'!$A$3:$AB$351, MATCH(Selection_Hide2!$A103, 'Full set Core Client Indicator'!$A$3:$A$351, 0), MATCH(Selection_Hide2!Q$5, 'Full set Core Client Indicator'!$A$3:$AB$3, 0))), \"\")","v":""},{"$f":"IF(Q103<>\"\", IF(INDEX('Full set Core Client Indicator'!$A$3:$AB$351, MATCH(Selection_Hide2!$A103, 'Full set Core Client Indicator'!$A$3:$A$351, 0), MATCH(Selection_Hide2!R$5, 'Full set Core Client Indicator'!$A$3:$AB$3, 0))=\"\", \"\",  INDEX('Full set Core Client Indicator'!$A$3:$AB$351, MATCH(Selection_Hide2!$A103, 'Full set Core Client Indicator'!$A$3:$A$351, 0), MATCH(Selection_Hide2!R$5, 'Full set Core Client Indicator'!$A$3:$AB$3, 0))), \"\")","v":""},{"$f":"IF(R103<>\"\", IF(INDEX('Full set Core Client Indicator'!$A$3:$AB$351, MATCH(Selection_Hide2!$A103, 'Full set Core Client Indicator'!$A$3:$A$351, 0), MATCH(Selection_Hide2!S$5, 'Full set Core Client Indicator'!$A$3:$AB$3, 0))=\"\", \"\",  INDEX('Full set Core Client Indicator'!$A$3:$AB$351, MATCH(Selection_Hide2!$A103, 'Full set Core Client Indicator'!$A$3:$A$351, 0), MATCH(Selection_Hide2!S$5, 'Full set Core Client Indicator'!$A$3:$AB$3, 0))), \"\")","v":""},{"$f":"IF(S103<>\"\", IF(INDEX('Full set Core Client Indicator'!$A$3:$AB$351, MATCH(Selection_Hide2!$A103, 'Full set Core Client Indicator'!$A$3:$A$351, 0), MATCH(Selection_Hide2!T$5, 'Full set Core Client Indicator'!$A$3:$AB$3, 0))=\"\", \"\",  INDEX('Full set Core Client Indicator'!$A$3:$AB$351, MATCH(Selection_Hide2!$A103, 'Full set Core Client Indicator'!$A$3:$A$351, 0), MATCH(Selection_Hide2!T$5, 'Full set Core Client Indicator'!$A$3:$AB$3, 0))), \"\")","v":""},{"$f":"IF(T103<>\"\", IF(INDEX('Full set Core Client Indicator'!$A$3:$AB$351, MATCH(Selection_Hide2!$A103, 'Full set Core Client Indicator'!$A$3:$A$351, 0), MATCH(Selection_Hide2!U$5, 'Full set Core Client Indicator'!$A$3:$AB$3, 0))=\"\", \"\",  INDEX('Full set Core Client Indicator'!$A$3:$AB$351, MATCH(Selection_Hide2!$A103, 'Full set Core Client Indicator'!$A$3:$A$351, 0), MATCH(Selection_Hide2!U$5, 'Full set Core Client Indicator'!$A$3:$AB$3, 0))), \"\")","v":""},{"$f":"IF(U103<>\"\", IF(INDEX('Full set Core Client Indicator'!$A$3:$AB$351, MATCH(Selection_Hide2!$A103, 'Full set Core Client Indicator'!$A$3:$A$351, 0), MATCH(Selection_Hide2!V$5, 'Full set Core Client Indicator'!$A$3:$AB$3, 0))=\"\", \"\",  INDEX('Full set Core Client Indicator'!$A$3:$AB$351, MATCH(Selection_Hide2!$A103, 'Full set Core Client Indicator'!$A$3:$A$351, 0), MATCH(Selection_Hide2!V$5, 'Full set Core Client Indicator'!$A$3:$AB$3, 0))), \"\")","v":""},{"$f":"IF(V103<>\"\", IF(INDEX('Full set Core Client Indicator'!$A$3:$AB$351, MATCH(Selection_Hide2!$A103, 'Full set Core Client Indicator'!$A$3:$A$351, 0), MATCH(Selection_Hide2!W$5, 'Full set Core Client Indicator'!$A$3:$AB$3, 0))=\"\", \"\",  INDEX('Full set Core Client Indicator'!$A$3:$AB$351, MATCH(Selection_Hide2!$A103, 'Full set Core Client Indicator'!$A$3:$A$351, 0), MATCH(Selection_Hide2!W$5, 'Full set Core Client Indicator'!$A$3:$AB$3, 0))), \"\")","v":""},{"$f":"IF(W103<>\"\", IF(INDEX('Full set Core Client Indicator'!$A$3:$AB$351, MATCH(Selection_Hide2!$A103, 'Full set Core Client Indicator'!$A$3:$A$351, 0), MATCH(Selection_Hide2!X$5, 'Full set Core Client Indicator'!$A$3:$AB$3, 0))=\"\", \"\",  INDEX('Full set Core Client Indicator'!$A$3:$AB$351, MATCH(Selection_Hide2!$A103, 'Full set Core Client Indicator'!$A$3:$A$351, 0), MATCH(Selection_Hide2!X$5, 'Full set Core Client Indicator'!$A$3:$AB$3, 0))), \"\")","v":""},{"$f":"IF(X103<>\"\", IF(INDEX('Full set Core Client Indicator'!$A$3:$AB$351, MATCH(Selection_Hide2!$A103, 'Full set Core Client Indicator'!$A$3:$A$351, 0), MATCH(Selection_Hide2!Y$5, 'Full set Core Client Indicator'!$A$3:$AB$3, 0))=\"\", \"\",  INDEX('Full set Core Client Indicator'!$A$3:$AB$351, MATCH(Selection_Hide2!$A103, 'Full set Core Client Indicator'!$A$3:$A$351, 0), MATCH(Selection_Hide2!Y$5, 'Full set Core Client Indicator'!$A$3:$AB$3, 0))), \"\")","v":""},{"$f":"IF(Y103<>\"\", IF(INDEX('Full set Core Client Indicator'!$A$3:$AB$351, MATCH(Selection_Hide2!$A103, 'Full set Core Client Indicator'!$A$3:$A$351, 0), MATCH(Selection_Hide2!Z$5, 'Full set Core Client Indicator'!$A$3:$AB$3, 0))=\"\", \"\",  INDEX('Full set Core Client Indicator'!$A$3:$AB$351, MATCH(Selection_Hide2!$A103, 'Full set Core Client Indicator'!$A$3:$A$351, 0), MATCH(Selection_Hide2!Z$5, 'Full set Core Client Indicator'!$A$3:$AB$3, 0))), \"\")","v":""},{"$f":"IF(Z103<>\"\", IF(INDEX('Full set Core Client Indicator'!$A$3:$AB$351, MATCH(Selection_Hide2!$A103, 'Full set Core Client Indicator'!$A$3:$A$351, 0), MATCH(Selection_Hide2!AA$5, 'Full set Core Client Indicator'!$A$3:$AB$3, 0))=\"\", \"\",  INDEX('Full set Core Client Indicator'!$A$3:$AB$351, MATCH(Selection_Hide2!$A103, 'Full set Core Client Indicator'!$A$3:$A$351, 0), MATCH(Selection_Hide2!AA$5, 'Full set Core Client Indicator'!$A$3:$AB$3, 0))), \"\")","v":""},{"$f":"IF(AA103<>\"\", IF(INDEX('Full set Core Client Indicator'!$A$3:$AB$351, MATCH(Selection_Hide2!$A103, 'Full set Core Client Indicator'!$A$3:$A$351, 0), MATCH(Selection_Hide2!AB$5, 'Full set Core Client Indicator'!$A$3:$AB$3, 0))=\"\", \"\",  INDEX('Full set Core Client Indicator'!$A$3:$AB$351, MATCH(Selection_Hide2!$A103, 'Full set Core Client Indicator'!$A$3:$A$351, 0), MATCH(Selection_Hide2!AB$5, 'Full set Core Client Indicator'!$A$3:$AB$3, 0))), \"\")","v":""}]
[{"$f":"IF(AND(Selection_Hide1!C102<>0, Selection_Hide1!C102<>\"Grand Total\"), Selection_Hide1!C102, \"\")","v":""},{"$f":"IF(A104<>\"\", IF(INDEX('Full set Core Client Indicator'!$A$3:$AB$351, MATCH(Selection_Hide2!$A104, 'Full set Core Client Indicator'!$A$3:$A$351, 0), MATCH(Selection_Hide2!B$5, 'Full set Core Client Indicator'!$A$3:$AB$3, 0))=\"\", \"\",  INDEX('Full set Core Client Indicator'!$A$3:$AB$351, MATCH(Selection_Hide2!$A104, 'Full set Core Client Indicator'!$A$3:$A$351, 0), MATCH(Selection_Hide2!B$5, 'Full set Core Client Indicator'!$A$3:$AB$3, 0))), \"\")","v":""},{"$f":"IF(B104<>\"\", IF(INDEX('Full set Core Client Indicator'!$A$3:$AB$351, MATCH(Selection_Hide2!$A104, 'Full set Core Client Indicator'!$A$3:$A$351, 0), MATCH(Selection_Hide2!C$5, 'Full set Core Client Indicator'!$A$3:$AB$3, 0))=\"\", \"\",  INDEX('Full set Core Client Indicator'!$A$3:$AB$351, MATCH(Selection_Hide2!$A104, 'Full set Core Client Indicator'!$A$3:$A$351, 0), MATCH(Selection_Hide2!C$5, 'Full set Core Client Indicator'!$A$3:$AB$3, 0))), \"\")","v":""},{"$f":"IF(C104<>\"\", IF(INDEX('Full set Core Client Indicator'!$A$3:$AB$351, MATCH(Selection_Hide2!$A104, 'Full set Core Client Indicator'!$A$3:$A$351, 0), MATCH(Selection_Hide2!D$5, 'Full set Core Client Indicator'!$A$3:$AB$3, 0))=\"\", \"\",  INDEX('Full set Core Client Indicator'!$A$3:$AB$351, MATCH(Selection_Hide2!$A104, 'Full set Core Client Indicator'!$A$3:$A$351, 0), MATCH(Selection_Hide2!D$5, 'Full set Core Client Indicator'!$A$3:$AB$3, 0))), \"\")","v":""},{"$f":"IF(D104<>\"\", IF(INDEX('Full set Core Client Indicator'!$A$3:$AB$351, MATCH(Selection_Hide2!$A104, 'Full set Core Client Indicator'!$A$3:$A$351, 0), MATCH(Selection_Hide2!E$5, 'Full set Core Client Indicator'!$A$3:$AB$3, 0))=\"\", \"\",  INDEX('Full set Core Client Indicator'!$A$3:$AB$351, MATCH(Selection_Hide2!$A104, 'Full set Core Client Indicator'!$A$3:$A$351, 0), MATCH(Selection_Hide2!E$5, 'Full set Core Client Indicator'!$A$3:$AB$3, 0))), \"\")","v":""},{"$f":"IF(E104<>\"\", IF(INDEX('Full set Core Client Indicator'!$A$3:$AB$351, MATCH(Selection_Hide2!$A104, 'Full set Core Client Indicator'!$A$3:$A$351, 0), MATCH(Selection_Hide2!F$5, 'Full set Core Client Indicator'!$A$3:$AB$3, 0))=\"\", \"\",  INDEX('Full set Core Client Indicator'!$A$3:$AB$351, MATCH(Selection_Hide2!$A104, 'Full set Core Client Indicator'!$A$3:$A$351, 0), MATCH(Selection_Hide2!F$5, 'Full set Core Client Indicator'!$A$3:$AB$3, 0))), \"\")","v":""},{"$f":"IF(F104<>\"\", IF(INDEX('Full set Core Client Indicator'!$A$3:$AB$351, MATCH(Selection_Hide2!$A104, 'Full set Core Client Indicator'!$A$3:$A$351, 0), MATCH(Selection_Hide2!G$5, 'Full set Core Client Indicator'!$A$3:$AB$3, 0))=\"\", \"\",  INDEX('Full set Core Client Indicator'!$A$3:$AB$351, MATCH(Selection_Hide2!$A104, 'Full set Core Client Indicator'!$A$3:$A$351, 0), MATCH(Selection_Hide2!G$5, 'Full set Core Client Indicator'!$A$3:$AB$3, 0))), \"\")","v":""},{"$f":"IF(G104<>\"\", IF(INDEX('Full set Core Client Indicator'!$A$3:$AB$351, MATCH(Selection_Hide2!$A104, 'Full set Core Client Indicator'!$A$3:$A$351, 0), MATCH(Selection_Hide2!H$5, 'Full set Core Client Indicator'!$A$3:$AB$3, 0))=\"\", \"\",  INDEX('Full set Core Client Indicator'!$A$3:$AB$351, MATCH(Selection_Hide2!$A104, 'Full set Core Client Indicator'!$A$3:$A$351, 0), MATCH(Selection_Hide2!H$5, 'Full set Core Client Indicator'!$A$3:$AB$3, 0))), \"\")","v":""},{"$f":"IF(H104<>\"\", IF(INDEX('Full set Core Client Indicator'!$A$3:$AB$351, MATCH(Selection_Hide2!$A104, 'Full set Core Client Indicator'!$A$3:$A$351, 0), MATCH(Selection_Hide2!I$5, 'Full set Core Client Indicator'!$A$3:$AB$3, 0))=\"\", \"\",  INDEX('Full set Core Client Indicator'!$A$3:$AB$351, MATCH(Selection_Hide2!$A104, 'Full set Core Client Indicator'!$A$3:$A$351, 0), MATCH(Selection_Hide2!I$5, 'Full set Core Client Indicator'!$A$3:$AB$3, 0))), \"\")","v":""},{"$f":"IF(I104<>\"\", IF(INDEX('Full set Core Client Indicator'!$A$3:$AB$351, MATCH(Selection_Hide2!$A104, 'Full set Core Client Indicator'!$A$3:$A$351, 0), MATCH(Selection_Hide2!J$5, 'Full set Core Client Indicator'!$A$3:$AB$3, 0))=\"\", \"\",  INDEX('Full set Core Client Indicator'!$A$3:$AB$351, MATCH(Selection_Hide2!$A104, 'Full set Core Client Indicator'!$A$3:$A$351, 0), MATCH(Selection_Hide2!J$5, 'Full set Core Client Indicator'!$A$3:$AB$3, 0))), \"\")","v":""},{"$f":"IF(J104<>\"\", IF(INDEX('Full set Core Client Indicator'!$A$3:$AB$351, MATCH(Selection_Hide2!$A104, 'Full set Core Client Indicator'!$A$3:$A$351, 0), MATCH(Selection_Hide2!K$5, 'Full set Core Client Indicator'!$A$3:$AB$3, 0))=\"\", \"\",  INDEX('Full set Core Client Indicator'!$A$3:$AB$351, MATCH(Selection_Hide2!$A104, 'Full set Core Client Indicator'!$A$3:$A$351, 0), MATCH(Selection_Hide2!K$5, 'Full set Core Client Indicator'!$A$3:$AB$3, 0))), \"\")","v":""},{"$f":"IF(K104<>\"\", IF(INDEX('Full set Core Client Indicator'!$A$3:$AB$351, MATCH(Selection_Hide2!$A104, 'Full set Core Client Indicator'!$A$3:$A$351, 0), MATCH(Selection_Hide2!L$5, 'Full set Core Client Indicator'!$A$3:$AB$3, 0))=\"\", \"\",  INDEX('Full set Core Client Indicator'!$A$3:$AB$351, MATCH(Selection_Hide2!$A104, 'Full set Core Client Indicator'!$A$3:$A$351, 0), MATCH(Selection_Hide2!L$5, 'Full set Core Client Indicator'!$A$3:$AB$3, 0))), \"\")","v":""},{"$f":"IF(L104<>\"\", IF(INDEX('Full set Core Client Indicator'!$A$3:$AB$351, MATCH(Selection_Hide2!$A104, 'Full set Core Client Indicator'!$A$3:$A$351, 0), MATCH(Selection_Hide2!M$5, 'Full set Core Client Indicator'!$A$3:$AB$3, 0))=\"\", \"\",  INDEX('Full set Core Client Indicator'!$A$3:$AB$351, MATCH(Selection_Hide2!$A104, 'Full set Core Client Indicator'!$A$3:$A$351, 0), MATCH(Selection_Hide2!M$5, 'Full set Core Client Indicator'!$A$3:$AB$3, 0))), \"\")","v":""},{"$f":"IF(M104<>\"\", IF(INDEX('Full set Core Client Indicator'!$A$3:$AB$351, MATCH(Selection_Hide2!$A104, 'Full set Core Client Indicator'!$A$3:$A$351, 0), MATCH(Selection_Hide2!N$5, 'Full set Core Client Indicator'!$A$3:$AB$3, 0))=\"\", \"\",  INDEX('Full set Core Client Indicator'!$A$3:$AB$351, MATCH(Selection_Hide2!$A104, 'Full set Core Client Indicator'!$A$3:$A$351, 0), MATCH(Selection_Hide2!N$5, 'Full set Core Client Indicator'!$A$3:$AB$3, 0))), \"\")","v":""},{"$f":"IF(N104<>\"\", IF(INDEX('Full set Core Client Indicator'!$A$3:$AB$351, MATCH(Selection_Hide2!$A104, 'Full set Core Client Indicator'!$A$3:$A$351, 0), MATCH(Selection_Hide2!O$5, 'Full set Core Client Indicator'!$A$3:$AB$3, 0))=\"\", \"\",  INDEX('Full set Core Client Indicator'!$A$3:$AB$351, MATCH(Selection_Hide2!$A104, 'Full set Core Client Indicator'!$A$3:$A$351, 0), MATCH(Selection_Hide2!O$5, 'Full set Core Client Indicator'!$A$3:$AB$3, 0))), \"\")","v":""},{"$f":"IF(O104<>\"\", IF(INDEX('Full set Core Client Indicator'!$A$3:$AB$351, MATCH(Selection_Hide2!$A104, 'Full set Core Client Indicator'!$A$3:$A$351, 0), MATCH(Selection_Hide2!P$5, 'Full set Core Client Indicator'!$A$3:$AB$3, 0))=\"\", \"\",  INDEX('Full set Core Client Indicator'!$A$3:$AB$351, MATCH(Selection_Hide2!$A104, 'Full set Core Client Indicator'!$A$3:$A$351, 0), MATCH(Selection_Hide2!P$5, 'Full set Core Client Indicator'!$A$3:$AB$3, 0))), \"\")","v":""},{"$f":"IF(P104<>\"\", IF(INDEX('Full set Core Client Indicator'!$A$3:$AB$351, MATCH(Selection_Hide2!$A104, 'Full set Core Client Indicator'!$A$3:$A$351, 0), MATCH(Selection_Hide2!Q$5, 'Full set Core Client Indicator'!$A$3:$AB$3, 0))=\"\", \"\",  INDEX('Full set Core Client Indicator'!$A$3:$AB$351, MATCH(Selection_Hide2!$A104, 'Full set Core Client Indicator'!$A$3:$A$351, 0), MATCH(Selection_Hide2!Q$5, 'Full set Core Client Indicator'!$A$3:$AB$3, 0))), \"\")","v":""},{"$f":"IF(Q104<>\"\", IF(INDEX('Full set Core Client Indicator'!$A$3:$AB$351, MATCH(Selection_Hide2!$A104, 'Full set Core Client Indicator'!$A$3:$A$351, 0), MATCH(Selection_Hide2!R$5, 'Full set Core Client Indicator'!$A$3:$AB$3, 0))=\"\", \"\",  INDEX('Full set Core Client Indicator'!$A$3:$AB$351, MATCH(Selection_Hide2!$A104, 'Full set Core Client Indicator'!$A$3:$A$351, 0), MATCH(Selection_Hide2!R$5, 'Full set Core Client Indicator'!$A$3:$AB$3, 0))), \"\")","v":""},{"$f":"IF(R104<>\"\", IF(INDEX('Full set Core Client Indicator'!$A$3:$AB$351, MATCH(Selection_Hide2!$A104, 'Full set Core Client Indicator'!$A$3:$A$351, 0), MATCH(Selection_Hide2!S$5, 'Full set Core Client Indicator'!$A$3:$AB$3, 0))=\"\", \"\",  INDEX('Full set Core Client Indicator'!$A$3:$AB$351, MATCH(Selection_Hide2!$A104, 'Full set Core Client Indicator'!$A$3:$A$351, 0), MATCH(Selection_Hide2!S$5, 'Full set Core Client Indicator'!$A$3:$AB$3, 0))), \"\")","v":""},{"$f":"IF(S104<>\"\", IF(INDEX('Full set Core Client Indicator'!$A$3:$AB$351, MATCH(Selection_Hide2!$A104, 'Full set Core Client Indicator'!$A$3:$A$351, 0), MATCH(Selection_Hide2!T$5, 'Full set Core Client Indicator'!$A$3:$AB$3, 0))=\"\", \"\",  INDEX('Full set Core Client Indicator'!$A$3:$AB$351, MATCH(Selection_Hide2!$A104, 'Full set Core Client Indicator'!$A$3:$A$351, 0), MATCH(Selection_Hide2!T$5, 'Full set Core Client Indicator'!$A$3:$AB$3, 0))), \"\")","v":""},{"$f":"IF(T104<>\"\", IF(INDEX('Full set Core Client Indicator'!$A$3:$AB$351, MATCH(Selection_Hide2!$A104, 'Full set Core Client Indicator'!$A$3:$A$351, 0), MATCH(Selection_Hide2!U$5, 'Full set Core Client Indicator'!$A$3:$AB$3, 0))=\"\", \"\",  INDEX('Full set Core Client Indicator'!$A$3:$AB$351, MATCH(Selection_Hide2!$A104, 'Full set Core Client Indicator'!$A$3:$A$351, 0), MATCH(Selection_Hide2!U$5, 'Full set Core Client Indicator'!$A$3:$AB$3, 0))), \"\")","v":""},{"$f":"IF(U104<>\"\", IF(INDEX('Full set Core Client Indicator'!$A$3:$AB$351, MATCH(Selection_Hide2!$A104, 'Full set Core Client Indicator'!$A$3:$A$351, 0), MATCH(Selection_Hide2!V$5, 'Full set Core Client Indicator'!$A$3:$AB$3, 0))=\"\", \"\",  INDEX('Full set Core Client Indicator'!$A$3:$AB$351, MATCH(Selection_Hide2!$A104, 'Full set Core Client Indicator'!$A$3:$A$351, 0), MATCH(Selection_Hide2!V$5, 'Full set Core Client Indicator'!$A$3:$AB$3, 0))), \"\")","v":""},{"$f":"IF(V104<>\"\", IF(INDEX('Full set Core Client Indicator'!$A$3:$AB$351, MATCH(Selection_Hide2!$A104, 'Full set Core Client Indicator'!$A$3:$A$351, 0), MATCH(Selection_Hide2!W$5, 'Full set Core Client Indicator'!$A$3:$AB$3, 0))=\"\", \"\",  INDEX('Full set Core Client Indicator'!$A$3:$AB$351, MATCH(Selection_Hide2!$A104, 'Full set Core Client Indicator'!$A$3:$A$351, 0), MATCH(Selection_Hide2!W$5, 'Full set Core Client Indicator'!$A$3:$AB$3, 0))), \"\")","v":""},{"$f":"IF(W104<>\"\", IF(INDEX('Full set Core Client Indicator'!$A$3:$AB$351, MATCH(Selection_Hide2!$A104, 'Full set Core Client Indicator'!$A$3:$A$351, 0), MATCH(Selection_Hide2!X$5, 'Full set Core Client Indicator'!$A$3:$AB$3, 0))=\"\", \"\",  INDEX('Full set Core Client Indicator'!$A$3:$AB$351, MATCH(Selection_Hide2!$A104, 'Full set Core Client Indicator'!$A$3:$A$351, 0), MATCH(Selection_Hide2!X$5, 'Full set Core Client Indicator'!$A$3:$AB$3, 0))), \"\")","v":""},{"$f":"IF(X104<>\"\", IF(INDEX('Full set Core Client Indicator'!$A$3:$AB$351, MATCH(Selection_Hide2!$A104, 'Full set Core Client Indicator'!$A$3:$A$351, 0), MATCH(Selection_Hide2!Y$5, 'Full set Core Client Indicator'!$A$3:$AB$3, 0))=\"\", \"\",  INDEX('Full set Core Client Indicator'!$A$3:$AB$351, MATCH(Selection_Hide2!$A104, 'Full set Core Client Indicator'!$A$3:$A$351, 0), MATCH(Selection_Hide2!Y$5, 'Full set Core Client Indicator'!$A$3:$AB$3, 0))), \"\")","v":""},{"$f":"IF(Y104<>\"\", IF(INDEX('Full set Core Client Indicator'!$A$3:$AB$351, MATCH(Selection_Hide2!$A104, 'Full set Core Client Indicator'!$A$3:$A$351, 0), MATCH(Selection_Hide2!Z$5, 'Full set Core Client Indicator'!$A$3:$AB$3, 0))=\"\", \"\",  INDEX('Full set Core Client Indicator'!$A$3:$AB$351, MATCH(Selection_Hide2!$A104, 'Full set Core Client Indicator'!$A$3:$A$351, 0), MATCH(Selection_Hide2!Z$5, 'Full set Core Client Indicator'!$A$3:$AB$3, 0))), \"\")","v":""},{"$f":"IF(Z104<>\"\", IF(INDEX('Full set Core Client Indicator'!$A$3:$AB$351, MATCH(Selection_Hide2!$A104, 'Full set Core Client Indicator'!$A$3:$A$351, 0), MATCH(Selection_Hide2!AA$5, 'Full set Core Client Indicator'!$A$3:$AB$3, 0))=\"\", \"\",  INDEX('Full set Core Client Indicator'!$A$3:$AB$351, MATCH(Selection_Hide2!$A104, 'Full set Core Client Indicator'!$A$3:$A$351, 0), MATCH(Selection_Hide2!AA$5, 'Full set Core Client Indicator'!$A$3:$AB$3, 0))), \"\")","v":""},{"$f":"IF(AA104<>\"\", IF(INDEX('Full set Core Client Indicator'!$A$3:$AB$351, MATCH(Selection_Hide2!$A104, 'Full set Core Client Indicator'!$A$3:$A$351, 0), MATCH(Selection_Hide2!AB$5, 'Full set Core Client Indicator'!$A$3:$AB$3, 0))=\"\", \"\",  INDEX('Full set Core Client Indicator'!$A$3:$AB$351, MATCH(Selection_Hide2!$A104, 'Full set Core Client Indicator'!$A$3:$A$351, 0), MATCH(Selection_Hide2!AB$5, 'Full set Core Client Indicator'!$A$3:$AB$3, 0))), \"\")","v":""}]
[{"$f":"IF(AND(Selection_Hide1!C103<>0, Selection_Hide1!C103<>\"Grand Total\"), Selection_Hide1!C103, \"\")","v":""},{"$f":"IF(A105<>\"\", IF(INDEX('Full set Core Client Indicator'!$A$3:$AB$351, MATCH(Selection_Hide2!$A105, 'Full set Core Client Indicator'!$A$3:$A$351, 0), MATCH(Selection_Hide2!B$5, 'Full set Core Client Indicator'!$A$3:$AB$3, 0))=\"\", \"\",  INDEX('Full set Core Client Indicator'!$A$3:$AB$351, MATCH(Selection_Hide2!$A105, 'Full set Core Client Indicator'!$A$3:$A$351, 0), MATCH(Selection_Hide2!B$5, 'Full set Core Client Indicator'!$A$3:$AB$3, 0))), \"\")","v":""},{"$f":"IF(B105<>\"\", IF(INDEX('Full set Core Client Indicator'!$A$3:$AB$351, MATCH(Selection_Hide2!$A105, 'Full set Core Client Indicator'!$A$3:$A$351, 0), MATCH(Selection_Hide2!C$5, 'Full set Core Client Indicator'!$A$3:$AB$3, 0))=\"\", \"\",  INDEX('Full set Core Client Indicator'!$A$3:$AB$351, MATCH(Selection_Hide2!$A105, 'Full set Core Client Indicator'!$A$3:$A$351, 0), MATCH(Selection_Hide2!C$5, 'Full set Core Client Indicator'!$A$3:$AB$3, 0))), \"\")","v":""},{"$f":"IF(C105<>\"\", IF(INDEX('Full set Core Client Indicator'!$A$3:$AB$351, MATCH(Selection_Hide2!$A105, 'Full set Core Client Indicator'!$A$3:$A$351, 0), MATCH(Selection_Hide2!D$5, 'Full set Core Client Indicator'!$A$3:$AB$3, 0))=\"\", \"\",  INDEX('Full set Core Client Indicator'!$A$3:$AB$351, MATCH(Selection_Hide2!$A105, 'Full set Core Client Indicator'!$A$3:$A$351, 0), MATCH(Selection_Hide2!D$5, 'Full set Core Client Indicator'!$A$3:$AB$3, 0))), \"\")","v":""},{"$f":"IF(D105<>\"\", IF(INDEX('Full set Core Client Indicator'!$A$3:$AB$351, MATCH(Selection_Hide2!$A105, 'Full set Core Client Indicator'!$A$3:$A$351, 0), MATCH(Selection_Hide2!E$5, 'Full set Core Client Indicator'!$A$3:$AB$3, 0))=\"\", \"\",  INDEX('Full set Core Client Indicator'!$A$3:$AB$351, MATCH(Selection_Hide2!$A105, 'Full set Core Client Indicator'!$A$3:$A$351, 0), MATCH(Selection_Hide2!E$5, 'Full set Core Client Indicator'!$A$3:$AB$3, 0))), \"\")","v":""},{"$f":"IF(E105<>\"\", IF(INDEX('Full set Core Client Indicator'!$A$3:$AB$351, MATCH(Selection_Hide2!$A105, 'Full set Core Client Indicator'!$A$3:$A$351, 0), MATCH(Selection_Hide2!F$5, 'Full set Core Client Indicator'!$A$3:$AB$3, 0))=\"\", \"\",  INDEX('Full set Core Client Indicator'!$A$3:$AB$351, MATCH(Selection_Hide2!$A105, 'Full set Core Client Indicator'!$A$3:$A$351, 0), MATCH(Selection_Hide2!F$5, 'Full set Core Client Indicator'!$A$3:$AB$3, 0))), \"\")","v":""},{"$f":"IF(F105<>\"\", IF(INDEX('Full set Core Client Indicator'!$A$3:$AB$351, MATCH(Selection_Hide2!$A105, 'Full set Core Client Indicator'!$A$3:$A$351, 0), MATCH(Selection_Hide2!G$5, 'Full set Core Client Indicator'!$A$3:$AB$3, 0))=\"\", \"\",  INDEX('Full set Core Client Indicator'!$A$3:$AB$351, MATCH(Selection_Hide2!$A105, 'Full set Core Client Indicator'!$A$3:$A$351, 0), MATCH(Selection_Hide2!G$5, 'Full set Core Client Indicator'!$A$3:$AB$3, 0))), \"\")","v":""},{"$f":"IF(G105<>\"\", IF(INDEX('Full set Core Client Indicator'!$A$3:$AB$351, MATCH(Selection_Hide2!$A105, 'Full set Core Client Indicator'!$A$3:$A$351, 0), MATCH(Selection_Hide2!H$5, 'Full set Core Client Indicator'!$A$3:$AB$3, 0))=\"\", \"\",  INDEX('Full set Core Client Indicator'!$A$3:$AB$351, MATCH(Selection_Hide2!$A105, 'Full set Core Client Indicator'!$A$3:$A$351, 0), MATCH(Selection_Hide2!H$5, 'Full set Core Client Indicator'!$A$3:$AB$3, 0))), \"\")","v":""},{"$f":"IF(H105<>\"\", IF(INDEX('Full set Core Client Indicator'!$A$3:$AB$351, MATCH(Selection_Hide2!$A105, 'Full set Core Client Indicator'!$A$3:$A$351, 0), MATCH(Selection_Hide2!I$5, 'Full set Core Client Indicator'!$A$3:$AB$3, 0))=\"\", \"\",  INDEX('Full set Core Client Indicator'!$A$3:$AB$351, MATCH(Selection_Hide2!$A105, 'Full set Core Client Indicator'!$A$3:$A$351, 0), MATCH(Selection_Hide2!I$5, 'Full set Core Client Indicator'!$A$3:$AB$3, 0))), \"\")","v":""},{"$f":"IF(I105<>\"\", IF(INDEX('Full set Core Client Indicator'!$A$3:$AB$351, MATCH(Selection_Hide2!$A105, 'Full set Core Client Indicator'!$A$3:$A$351, 0), MATCH(Selection_Hide2!J$5, 'Full set Core Client Indicator'!$A$3:$AB$3, 0))=\"\", \"\",  INDEX('Full set Core Client Indicator'!$A$3:$AB$351, MATCH(Selection_Hide2!$A105, 'Full set Core Client Indicator'!$A$3:$A$351, 0), MATCH(Selection_Hide2!J$5, 'Full set Core Client Indicator'!$A$3:$AB$3, 0))), \"\")","v":""},{"$f":"IF(J105<>\"\", IF(INDEX('Full set Core Client Indicator'!$A$3:$AB$351, MATCH(Selection_Hide2!$A105, 'Full set Core Client Indicator'!$A$3:$A$351, 0), MATCH(Selection_Hide2!K$5, 'Full set Core Client Indicator'!$A$3:$AB$3, 0))=\"\", \"\",  INDEX('Full set Core Client Indicator'!$A$3:$AB$351, MATCH(Selection_Hide2!$A105, 'Full set Core Client Indicator'!$A$3:$A$351, 0), MATCH(Selection_Hide2!K$5, 'Full set Core Client Indicator'!$A$3:$AB$3, 0))), \"\")","v":""},{"$f":"IF(K105<>\"\", IF(INDEX('Full set Core Client Indicator'!$A$3:$AB$351, MATCH(Selection_Hide2!$A105, 'Full set Core Client Indicator'!$A$3:$A$351, 0), MATCH(Selection_Hide2!L$5, 'Full set Core Client Indicator'!$A$3:$AB$3, 0))=\"\", \"\",  INDEX('Full set Core Client Indicator'!$A$3:$AB$351, MATCH(Selection_Hide2!$A105, 'Full set Core Client Indicator'!$A$3:$A$351, 0), MATCH(Selection_Hide2!L$5, 'Full set Core Client Indicator'!$A$3:$AB$3, 0))), \"\")","v":""},{"$f":"IF(L105<>\"\", IF(INDEX('Full set Core Client Indicator'!$A$3:$AB$351, MATCH(Selection_Hide2!$A105, 'Full set Core Client Indicator'!$A$3:$A$351, 0), MATCH(Selection_Hide2!M$5, 'Full set Core Client Indicator'!$A$3:$AB$3, 0))=\"\", \"\",  INDEX('Full set Core Client Indicator'!$A$3:$AB$351, MATCH(Selection_Hide2!$A105, 'Full set Core Client Indicator'!$A$3:$A$351, 0), MATCH(Selection_Hide2!M$5, 'Full set Core Client Indicator'!$A$3:$AB$3, 0))), \"\")","v":""},{"$f":"IF(M105<>\"\", IF(INDEX('Full set Core Client Indicator'!$A$3:$AB$351, MATCH(Selection_Hide2!$A105, 'Full set Core Client Indicator'!$A$3:$A$351, 0), MATCH(Selection_Hide2!N$5, 'Full set Core Client Indicator'!$A$3:$AB$3, 0))=\"\", \"\",  INDEX('Full set Core Client Indicator'!$A$3:$AB$351, MATCH(Selection_Hide2!$A105, 'Full set Core Client Indicator'!$A$3:$A$351, 0), MATCH(Selection_Hide2!N$5, 'Full set Core Client Indicator'!$A$3:$AB$3, 0))), \"\")","v":""},{"$f":"IF(N105<>\"\", IF(INDEX('Full set Core Client Indicator'!$A$3:$AB$351, MATCH(Selection_Hide2!$A105, 'Full set Core Client Indicator'!$A$3:$A$351, 0), MATCH(Selection_Hide2!O$5, 'Full set Core Client Indicator'!$A$3:$AB$3, 0))=\"\", \"\",  INDEX('Full set Core Client Indicator'!$A$3:$AB$351, MATCH(Selection_Hide2!$A105, 'Full set Core Client Indicator'!$A$3:$A$351, 0), MATCH(Selection_Hide2!O$5, 'Full set Core Client Indicator'!$A$3:$AB$3, 0))), \"\")","v":""},{"$f":"IF(O105<>\"\", IF(INDEX('Full set Core Client Indicator'!$A$3:$AB$351, MATCH(Selection_Hide2!$A105, 'Full set Core Client Indicator'!$A$3:$A$351, 0), MATCH(Selection_Hide2!P$5, 'Full set Core Client Indicator'!$A$3:$AB$3, 0))=\"\", \"\",  INDEX('Full set Core Client Indicator'!$A$3:$AB$351, MATCH(Selection_Hide2!$A105, 'Full set Core Client Indicator'!$A$3:$A$351, 0), MATCH(Selection_Hide2!P$5, 'Full set Core Client Indicator'!$A$3:$AB$3, 0))), \"\")","v":""},{"$f":"IF(P105<>\"\", IF(INDEX('Full set Core Client Indicator'!$A$3:$AB$351, MATCH(Selection_Hide2!$A105, 'Full set Core Client Indicator'!$A$3:$A$351, 0), MATCH(Selection_Hide2!Q$5, 'Full set Core Client Indicator'!$A$3:$AB$3, 0))=\"\", \"\",  INDEX('Full set Core Client Indicator'!$A$3:$AB$351, MATCH(Selection_Hide2!$A105, 'Full set Core Client Indicator'!$A$3:$A$351, 0), MATCH(Selection_Hide2!Q$5, 'Full set Core Client Indicator'!$A$3:$AB$3, 0))), \"\")","v":""},{"$f":"IF(Q105<>\"\", IF(INDEX('Full set Core Client Indicator'!$A$3:$AB$351, MATCH(Selection_Hide2!$A105, 'Full set Core Client Indicator'!$A$3:$A$351, 0), MATCH(Selection_Hide2!R$5, 'Full set Core Client Indicator'!$A$3:$AB$3, 0))=\"\", \"\",  INDEX('Full set Core Client Indicator'!$A$3:$AB$351, MATCH(Selection_Hide2!$A105, 'Full set Core Client Indicator'!$A$3:$A$351, 0), MATCH(Selection_Hide2!R$5, 'Full set Core Client Indicator'!$A$3:$AB$3, 0))), \"\")","v":""},{"$f":"IF(R105<>\"\", IF(INDEX('Full set Core Client Indicator'!$A$3:$AB$351, MATCH(Selection_Hide2!$A105, 'Full set Core Client Indicator'!$A$3:$A$351, 0), MATCH(Selection_Hide2!S$5, 'Full set Core Client Indicator'!$A$3:$AB$3, 0))=\"\", \"\",  INDEX('Full set Core Client Indicator'!$A$3:$AB$351, MATCH(Selection_Hide2!$A105, 'Full set Core Client Indicator'!$A$3:$A$351, 0), MATCH(Selection_Hide2!S$5, 'Full set Core Client Indicator'!$A$3:$AB$3, 0))), \"\")","v":""},{"$f":"IF(S105<>\"\", IF(INDEX('Full set Core Client Indicator'!$A$3:$AB$351, MATCH(Selection_Hide2!$A105, 'Full set Core Client Indicator'!$A$3:$A$351, 0), MATCH(Selection_Hide2!T$5, 'Full set Core Client Indicator'!$A$3:$AB$3, 0))=\"\", \"\",  INDEX('Full set Core Client Indicator'!$A$3:$AB$351, MATCH(Selection_Hide2!$A105, 'Full set Core Client Indicator'!$A$3:$A$351, 0), MATCH(Selection_Hide2!T$5, 'Full set Core Client Indicator'!$A$3:$AB$3, 0))), \"\")","v":""},{"$f":"IF(T105<>\"\", IF(INDEX('Full set Core Client Indicator'!$A$3:$AB$351, MATCH(Selection_Hide2!$A105, 'Full set Core Client Indicator'!$A$3:$A$351, 0), MATCH(Selection_Hide2!U$5, 'Full set Core Client Indicator'!$A$3:$AB$3, 0))=\"\", \"\",  INDEX('Full set Core Client Indicator'!$A$3:$AB$351, MATCH(Selection_Hide2!$A105, 'Full set Core Client Indicator'!$A$3:$A$351, 0), MATCH(Selection_Hide2!U$5, 'Full set Core Client Indicator'!$A$3:$AB$3, 0))), \"\")","v":""},{"$f":"IF(U105<>\"\", IF(INDEX('Full set Core Client Indicator'!$A$3:$AB$351, MATCH(Selection_Hide2!$A105, 'Full set Core Client Indicator'!$A$3:$A$351, 0), MATCH(Selection_Hide2!V$5, 'Full set Core Client Indicator'!$A$3:$AB$3, 0))=\"\", \"\",  INDEX('Full set Core Client Indicator'!$A$3:$AB$351, MATCH(Selection_Hide2!$A105, 'Full set Core Client Indicator'!$A$3:$A$351, 0), MATCH(Selection_Hide2!V$5, 'Full set Core Client Indicator'!$A$3:$AB$3, 0))), \"\")","v":""},{"$f":"IF(V105<>\"\", IF(INDEX('Full set Core Client Indicator'!$A$3:$AB$351, MATCH(Selection_Hide2!$A105, 'Full set Core Client Indicator'!$A$3:$A$351, 0), MATCH(Selection_Hide2!W$5, 'Full set Core Client Indicator'!$A$3:$AB$3, 0))=\"\", \"\",  INDEX('Full set Core Client Indicator'!$A$3:$AB$351, MATCH(Selection_Hide2!$A105, 'Full set Core Client Indicator'!$A$3:$A$351, 0), MATCH(Selection_Hide2!W$5, 'Full set Core Client Indicator'!$A$3:$AB$3, 0))), \"\")","v":""},{"$f":"IF(W105<>\"\", IF(INDEX('Full set Core Client Indicator'!$A$3:$AB$351, MATCH(Selection_Hide2!$A105, 'Full set Core Client Indicator'!$A$3:$A$351, 0), MATCH(Selection_Hide2!X$5, 'Full set Core Client Indicator'!$A$3:$AB$3, 0))=\"\", \"\",  INDEX('Full set Core Client Indicator'!$A$3:$AB$351, MATCH(Selection_Hide2!$A105, 'Full set Core Client Indicator'!$A$3:$A$351, 0), MATCH(Selection_Hide2!X$5, 'Full set Core Client Indicator'!$A$3:$AB$3, 0))), \"\")","v":""},{"$f":"IF(X105<>\"\", IF(INDEX('Full set Core Client Indicator'!$A$3:$AB$351, MATCH(Selection_Hide2!$A105, 'Full set Core Client Indicator'!$A$3:$A$351, 0), MATCH(Selection_Hide2!Y$5, 'Full set Core Client Indicator'!$A$3:$AB$3, 0))=\"\", \"\",  INDEX('Full set Core Client Indicator'!$A$3:$AB$351, MATCH(Selection_Hide2!$A105, 'Full set Core Client Indicator'!$A$3:$A$351, 0), MATCH(Selection_Hide2!Y$5, 'Full set Core Client Indicator'!$A$3:$AB$3, 0))), \"\")","v":""},{"$f":"IF(Y105<>\"\", IF(INDEX('Full set Core Client Indicator'!$A$3:$AB$351, MATCH(Selection_Hide2!$A105, 'Full set Core Client Indicator'!$A$3:$A$351, 0), MATCH(Selection_Hide2!Z$5, 'Full set Core Client Indicator'!$A$3:$AB$3, 0))=\"\", \"\",  INDEX('Full set Core Client Indicator'!$A$3:$AB$351, MATCH(Selection_Hide2!$A105, 'Full set Core Client Indicator'!$A$3:$A$351, 0), MATCH(Selection_Hide2!Z$5, 'Full set Core Client Indicator'!$A$3:$AB$3, 0))), \"\")","v":""},{"$f":"IF(Z105<>\"\", IF(INDEX('Full set Core Client Indicator'!$A$3:$AB$351, MATCH(Selection_Hide2!$A105, 'Full set Core Client Indicator'!$A$3:$A$351, 0), MATCH(Selection_Hide2!AA$5, 'Full set Core Client Indicator'!$A$3:$AB$3, 0))=\"\", \"\",  INDEX('Full set Core Client Indicator'!$A$3:$AB$351, MATCH(Selection_Hide2!$A105, 'Full set Core Client Indicator'!$A$3:$A$351, 0), MATCH(Selection_Hide2!AA$5, 'Full set Core Client Indicator'!$A$3:$AB$3, 0))), \"\")","v":""},{"$f":"IF(AA105<>\"\", IF(INDEX('Full set Core Client Indicator'!$A$3:$AB$351, MATCH(Selection_Hide2!$A105, 'Full set Core Client Indicator'!$A$3:$A$351, 0), MATCH(Selection_Hide2!AB$5, 'Full set Core Client Indicator'!$A$3:$AB$3, 0))=\"\", \"\",  INDEX('Full set Core Client Indicator'!$A$3:$AB$351, MATCH(Selection_Hide2!$A105, 'Full set Core Client Indicator'!$A$3:$A$351, 0), MATCH(Selection_Hide2!AB$5, 'Full set Core Client Indicator'!$A$3:$AB$3, 0))), \"\")","v":""}]
[{"$f":"IF(AND(Selection_Hide1!C104<>0, Selection_Hide1!C104<>\"Grand Total\"), Selection_Hide1!C104, \"\")","v":""},{"$f":"IF(A106<>\"\", IF(INDEX('Full set Core Client Indicator'!$A$3:$AB$351, MATCH(Selection_Hide2!$A106, 'Full set Core Client Indicator'!$A$3:$A$351, 0), MATCH(Selection_Hide2!B$5, 'Full set Core Client Indicator'!$A$3:$AB$3, 0))=\"\", \"\",  INDEX('Full set Core Client Indicator'!$A$3:$AB$351, MATCH(Selection_Hide2!$A106, 'Full set Core Client Indicator'!$A$3:$A$351, 0), MATCH(Selection_Hide2!B$5, 'Full set Core Client Indicator'!$A$3:$AB$3, 0))), \"\")","v":""},{"$f":"IF(B106<>\"\", IF(INDEX('Full set Core Client Indicator'!$A$3:$AB$351, MATCH(Selection_Hide2!$A106, 'Full set Core Client Indicator'!$A$3:$A$351, 0), MATCH(Selection_Hide2!C$5, 'Full set Core Client Indicator'!$A$3:$AB$3, 0))=\"\", \"\",  INDEX('Full set Core Client Indicator'!$A$3:$AB$351, MATCH(Selection_Hide2!$A106, 'Full set Core Client Indicator'!$A$3:$A$351, 0), MATCH(Selection_Hide2!C$5, 'Full set Core Client Indicator'!$A$3:$AB$3, 0))), \"\")","v":""},{"$f":"IF(C106<>\"\", IF(INDEX('Full set Core Client Indicator'!$A$3:$AB$351, MATCH(Selection_Hide2!$A106, 'Full set Core Client Indicator'!$A$3:$A$351, 0), MATCH(Selection_Hide2!D$5, 'Full set Core Client Indicator'!$A$3:$AB$3, 0))=\"\", \"\",  INDEX('Full set Core Client Indicator'!$A$3:$AB$351, MATCH(Selection_Hide2!$A106, 'Full set Core Client Indicator'!$A$3:$A$351, 0), MATCH(Selection_Hide2!D$5, 'Full set Core Client Indicator'!$A$3:$AB$3, 0))), \"\")","v":""},{"$f":"IF(D106<>\"\", IF(INDEX('Full set Core Client Indicator'!$A$3:$AB$351, MATCH(Selection_Hide2!$A106, 'Full set Core Client Indicator'!$A$3:$A$351, 0), MATCH(Selection_Hide2!E$5, 'Full set Core Client Indicator'!$A$3:$AB$3, 0))=\"\", \"\",  INDEX('Full set Core Client Indicator'!$A$3:$AB$351, MATCH(Selection_Hide2!$A106, 'Full set Core Client Indicator'!$A$3:$A$351, 0), MATCH(Selection_Hide2!E$5, 'Full set Core Client Indicator'!$A$3:$AB$3, 0))), \"\")","v":""},{"$f":"IF(E106<>\"\", IF(INDEX('Full set Core Client Indicator'!$A$3:$AB$351, MATCH(Selection_Hide2!$A106, 'Full set Core Client Indicator'!$A$3:$A$351, 0), MATCH(Selection_Hide2!F$5, 'Full set Core Client Indicator'!$A$3:$AB$3, 0))=\"\", \"\",  INDEX('Full set Core Client Indicator'!$A$3:$AB$351, MATCH(Selection_Hide2!$A106, 'Full set Core Client Indicator'!$A$3:$A$351, 0), MATCH(Selection_Hide2!F$5, 'Full set Core Client Indicator'!$A$3:$AB$3, 0))), \"\")","v":""},{"$f":"IF(F106<>\"\", IF(INDEX('Full set Core Client Indicator'!$A$3:$AB$351, MATCH(Selection_Hide2!$A106, 'Full set Core Client Indicator'!$A$3:$A$351, 0), MATCH(Selection_Hide2!G$5, 'Full set Core Client Indicator'!$A$3:$AB$3, 0))=\"\", \"\",  INDEX('Full set Core Client Indicator'!$A$3:$AB$351, MATCH(Selection_Hide2!$A106, 'Full set Core Client Indicator'!$A$3:$A$351, 0), MATCH(Selection_Hide2!G$5, 'Full set Core Client Indicator'!$A$3:$AB$3, 0))), \"\")","v":""},{"$f":"IF(G106<>\"\", IF(INDEX('Full set Core Client Indicator'!$A$3:$AB$351, MATCH(Selection_Hide2!$A106, 'Full set Core Client Indicator'!$A$3:$A$351, 0), MATCH(Selection_Hide2!H$5, 'Full set Core Client Indicator'!$A$3:$AB$3, 0))=\"\", \"\",  INDEX('Full set Core Client Indicator'!$A$3:$AB$351, MATCH(Selection_Hide2!$A106, 'Full set Core Client Indicator'!$A$3:$A$351, 0), MATCH(Selection_Hide2!H$5, 'Full set Core Client Indicator'!$A$3:$AB$3, 0))), \"\")","v":""},{"$f":"IF(H106<>\"\", IF(INDEX('Full set Core Client Indicator'!$A$3:$AB$351, MATCH(Selection_Hide2!$A106, 'Full set Core Client Indicator'!$A$3:$A$351, 0), MATCH(Selection_Hide2!I$5, 'Full set Core Client Indicator'!$A$3:$AB$3, 0))=\"\", \"\",  INDEX('Full set Core Client Indicator'!$A$3:$AB$351, MATCH(Selection_Hide2!$A106, 'Full set Core Client Indicator'!$A$3:$A$351, 0), MATCH(Selection_Hide2!I$5, 'Full set Core Client Indicator'!$A$3:$AB$3, 0))), \"\")","v":""},{"$f":"IF(I106<>\"\", IF(INDEX('Full set Core Client Indicator'!$A$3:$AB$351, MATCH(Selection_Hide2!$A106, 'Full set Core Client Indicator'!$A$3:$A$351, 0), MATCH(Selection_Hide2!J$5, 'Full set Core Client Indicator'!$A$3:$AB$3, 0))=\"\", \"\",  INDEX('Full set Core Client Indicator'!$A$3:$AB$351, MATCH(Selection_Hide2!$A106, 'Full set Core Client Indicator'!$A$3:$A$351, 0), MATCH(Selection_Hide2!J$5, 'Full set Core Client Indicator'!$A$3:$AB$3, 0))), \"\")","v":""},{"$f":"IF(J106<>\"\", IF(INDEX('Full set Core Client Indicator'!$A$3:$AB$351, MATCH(Selection_Hide2!$A106, 'Full set Core Client Indicator'!$A$3:$A$351, 0), MATCH(Selection_Hide2!K$5, 'Full set Core Client Indicator'!$A$3:$AB$3, 0))=\"\", \"\",  INDEX('Full set Core Client Indicator'!$A$3:$AB$351, MATCH(Selection_Hide2!$A106, 'Full set Core Client Indicator'!$A$3:$A$351, 0), MATCH(Selection_Hide2!K$5, 'Full set Core Client Indicator'!$A$3:$AB$3, 0))), \"\")","v":""},{"$f":"IF(K106<>\"\", IF(INDEX('Full set Core Client Indicator'!$A$3:$AB$351, MATCH(Selection_Hide2!$A106, 'Full set Core Client Indicator'!$A$3:$A$351, 0), MATCH(Selection_Hide2!L$5, 'Full set Core Client Indicator'!$A$3:$AB$3, 0))=\"\", \"\",  INDEX('Full set Core Client Indicator'!$A$3:$AB$351, MATCH(Selection_Hide2!$A106, 'Full set Core Client Indicator'!$A$3:$A$351, 0), MATCH(Selection_Hide2!L$5, 'Full set Core Client Indicator'!$A$3:$AB$3, 0))), \"\")","v":""},{"$f":"IF(L106<>\"\", IF(INDEX('Full set Core Client Indicator'!$A$3:$AB$351, MATCH(Selection_Hide2!$A106, 'Full set Core Client Indicator'!$A$3:$A$351, 0), MATCH(Selection_Hide2!M$5, 'Full set Core Client Indicator'!$A$3:$AB$3, 0))=\"\", \"\",  INDEX('Full set Core Client Indicator'!$A$3:$AB$351, MATCH(Selection_Hide2!$A106, 'Full set Core Client Indicator'!$A$3:$A$351, 0), MATCH(Selection_Hide2!M$5, 'Full set Core Client Indicator'!$A$3:$AB$3, 0))), \"\")","v":""},{"$f":"IF(M106<>\"\", IF(INDEX('Full set Core Client Indicator'!$A$3:$AB$351, MATCH(Selection_Hide2!$A106, 'Full set Core Client Indicator'!$A$3:$A$351, 0), MATCH(Selection_Hide2!N$5, 'Full set Core Client Indicator'!$A$3:$AB$3, 0))=\"\", \"\",  INDEX('Full set Core Client Indicator'!$A$3:$AB$351, MATCH(Selection_Hide2!$A106, 'Full set Core Client Indicator'!$A$3:$A$351, 0), MATCH(Selection_Hide2!N$5, 'Full set Core Client Indicator'!$A$3:$AB$3, 0))), \"\")","v":""},{"$f":"IF(N106<>\"\", IF(INDEX('Full set Core Client Indicator'!$A$3:$AB$351, MATCH(Selection_Hide2!$A106, 'Full set Core Client Indicator'!$A$3:$A$351, 0), MATCH(Selection_Hide2!O$5, 'Full set Core Client Indicator'!$A$3:$AB$3, 0))=\"\", \"\",  INDEX('Full set Core Client Indicator'!$A$3:$AB$351, MATCH(Selection_Hide2!$A106, 'Full set Core Client Indicator'!$A$3:$A$351, 0), MATCH(Selection_Hide2!O$5, 'Full set Core Client Indicator'!$A$3:$AB$3, 0))), \"\")","v":""},{"$f":"IF(O106<>\"\", IF(INDEX('Full set Core Client Indicator'!$A$3:$AB$351, MATCH(Selection_Hide2!$A106, 'Full set Core Client Indicator'!$A$3:$A$351, 0), MATCH(Selection_Hide2!P$5, 'Full set Core Client Indicator'!$A$3:$AB$3, 0))=\"\", \"\",  INDEX('Full set Core Client Indicator'!$A$3:$AB$351, MATCH(Selection_Hide2!$A106, 'Full set Core Client Indicator'!$A$3:$A$351, 0), MATCH(Selection_Hide2!P$5, 'Full set Core Client Indicator'!$A$3:$AB$3, 0))), \"\")","v":""},{"$f":"IF(P106<>\"\", IF(INDEX('Full set Core Client Indicator'!$A$3:$AB$351, MATCH(Selection_Hide2!$A106, 'Full set Core Client Indicator'!$A$3:$A$351, 0), MATCH(Selection_Hide2!Q$5, 'Full set Core Client Indicator'!$A$3:$AB$3, 0))=\"\", \"\",  INDEX('Full set Core Client Indicator'!$A$3:$AB$351, MATCH(Selection_Hide2!$A106, 'Full set Core Client Indicator'!$A$3:$A$351, 0), MATCH(Selection_Hide2!Q$5, 'Full set Core Client Indicator'!$A$3:$AB$3, 0))), \"\")","v":""},{"$f":"IF(Q106<>\"\", IF(INDEX('Full set Core Client Indicator'!$A$3:$AB$351, MATCH(Selection_Hide2!$A106, 'Full set Core Client Indicator'!$A$3:$A$351, 0), MATCH(Selection_Hide2!R$5, 'Full set Core Client Indicator'!$A$3:$AB$3, 0))=\"\", \"\",  INDEX('Full set Core Client Indicator'!$A$3:$AB$351, MATCH(Selection_Hide2!$A106, 'Full set Core Client Indicator'!$A$3:$A$351, 0), MATCH(Selection_Hide2!R$5, 'Full set Core Client Indicator'!$A$3:$AB$3, 0))), \"\")","v":""},{"$f":"IF(R106<>\"\", IF(INDEX('Full set Core Client Indicator'!$A$3:$AB$351, MATCH(Selection_Hide2!$A106, 'Full set Core Client Indicator'!$A$3:$A$351, 0), MATCH(Selection_Hide2!S$5, 'Full set Core Client Indicator'!$A$3:$AB$3, 0))=\"\", \"\",  INDEX('Full set Core Client Indicator'!$A$3:$AB$351, MATCH(Selection_Hide2!$A106, 'Full set Core Client Indicator'!$A$3:$A$351, 0), MATCH(Selection_Hide2!S$5, 'Full set Core Client Indicator'!$A$3:$AB$3, 0))), \"\")","v":""},{"$f":"IF(S106<>\"\", IF(INDEX('Full set Core Client Indicator'!$A$3:$AB$351, MATCH(Selection_Hide2!$A106, 'Full set Core Client Indicator'!$A$3:$A$351, 0), MATCH(Selection_Hide2!T$5, 'Full set Core Client Indicator'!$A$3:$AB$3, 0))=\"\", \"\",  INDEX('Full set Core Client Indicator'!$A$3:$AB$351, MATCH(Selection_Hide2!$A106, 'Full set Core Client Indicator'!$A$3:$A$351, 0), MATCH(Selection_Hide2!T$5, 'Full set Core Client Indicator'!$A$3:$AB$3, 0))), \"\")","v":""},{"$f":"IF(T106<>\"\", IF(INDEX('Full set Core Client Indicator'!$A$3:$AB$351, MATCH(Selection_Hide2!$A106, 'Full set Core Client Indicator'!$A$3:$A$351, 0), MATCH(Selection_Hide2!U$5, 'Full set Core Client Indicator'!$A$3:$AB$3, 0))=\"\", \"\",  INDEX('Full set Core Client Indicator'!$A$3:$AB$351, MATCH(Selection_Hide2!$A106, 'Full set Core Client Indicator'!$A$3:$A$351, 0), MATCH(Selection_Hide2!U$5, 'Full set Core Client Indicator'!$A$3:$AB$3, 0))), \"\")","v":""},{"$f":"IF(U106<>\"\", IF(INDEX('Full set Core Client Indicator'!$A$3:$AB$351, MATCH(Selection_Hide2!$A106, 'Full set Core Client Indicator'!$A$3:$A$351, 0), MATCH(Selection_Hide2!V$5, 'Full set Core Client Indicator'!$A$3:$AB$3, 0))=\"\", \"\",  INDEX('Full set Core Client Indicator'!$A$3:$AB$351, MATCH(Selection_Hide2!$A106, 'Full set Core Client Indicator'!$A$3:$A$351, 0), MATCH(Selection_Hide2!V$5, 'Full set Core Client Indicator'!$A$3:$AB$3, 0))), \"\")","v":""},{"$f":"IF(V106<>\"\", IF(INDEX('Full set Core Client Indicator'!$A$3:$AB$351, MATCH(Selection_Hide2!$A106, 'Full set Core Client Indicator'!$A$3:$A$351, 0), MATCH(Selection_Hide2!W$5, 'Full set Core Client Indicator'!$A$3:$AB$3, 0))=\"\", \"\",  INDEX('Full set Core Client Indicator'!$A$3:$AB$351, MATCH(Selection_Hide2!$A106, 'Full set Core Client Indicator'!$A$3:$A$351, 0), MATCH(Selection_Hide2!W$5, 'Full set Core Client Indicator'!$A$3:$AB$3, 0))), \"\")","v":""},{"$f":"IF(W106<>\"\", IF(INDEX('Full set Core Client Indicator'!$A$3:$AB$351, MATCH(Selection_Hide2!$A106, 'Full set Core Client Indicator'!$A$3:$A$351, 0), MATCH(Selection_Hide2!X$5, 'Full set Core Client Indicator'!$A$3:$AB$3, 0))=\"\", \"\",  INDEX('Full set Core Client Indicator'!$A$3:$AB$351, MATCH(Selection_Hide2!$A106, 'Full set Core Client Indicator'!$A$3:$A$351, 0), MATCH(Selection_Hide2!X$5, 'Full set Core Client Indicator'!$A$3:$AB$3, 0))), \"\")","v":""},{"$f":"IF(X106<>\"\", IF(INDEX('Full set Core Client Indicator'!$A$3:$AB$351, MATCH(Selection_Hide2!$A106, 'Full set Core Client Indicator'!$A$3:$A$351, 0), MATCH(Selection_Hide2!Y$5, 'Full set Core Client Indicator'!$A$3:$AB$3, 0))=\"\", \"\",  INDEX('Full set Core Client Indicator'!$A$3:$AB$351, MATCH(Selection_Hide2!$A106, 'Full set Core Client Indicator'!$A$3:$A$351, 0), MATCH(Selection_Hide2!Y$5, 'Full set Core Client Indicator'!$A$3:$AB$3, 0))), \"\")","v":""},{"$f":"IF(Y106<>\"\", IF(INDEX('Full set Core Client Indicator'!$A$3:$AB$351, MATCH(Selection_Hide2!$A106, 'Full set Core Client Indicator'!$A$3:$A$351, 0), MATCH(Selection_Hide2!Z$5, 'Full set Core Client Indicator'!$A$3:$AB$3, 0))=\"\", \"\",  INDEX('Full set Core Client Indicator'!$A$3:$AB$351, MATCH(Selection_Hide2!$A106, 'Full set Core Client Indicator'!$A$3:$A$351, 0), MATCH(Selection_Hide2!Z$5, 'Full set Core Client Indicator'!$A$3:$AB$3, 0))), \"\")","v":""},{"$f":"IF(Z106<>\"\", IF(INDEX('Full set Core Client Indicator'!$A$3:$AB$351, MATCH(Selection_Hide2!$A106, 'Full set Core Client Indicator'!$A$3:$A$351, 0), MATCH(Selection_Hide2!AA$5, 'Full set Core Client Indicator'!$A$3:$AB$3, 0))=\"\", \"\",  INDEX('Full set Core Client Indicator'!$A$3:$AB$351, MATCH(Selection_Hide2!$A106, 'Full set Core Client Indicator'!$A$3:$A$351, 0), MATCH(Selection_Hide2!AA$5, 'Full set Core Client Indicator'!$A$3:$AB$3, 0))), \"\")","v":""},{"$f":"IF(AA106<>\"\", IF(INDEX('Full set Core Client Indicator'!$A$3:$AB$351, MATCH(Selection_Hide2!$A106, 'Full set Core Client Indicator'!$A$3:$A$351, 0), MATCH(Selection_Hide2!AB$5, 'Full set Core Client Indicator'!$A$3:$AB$3, 0))=\"\", \"\",  INDEX('Full set Core Client Indicator'!$A$3:$AB$351, MATCH(Selection_Hide2!$A106, 'Full set Core Client Indicator'!$A$3:$A$351, 0), MATCH(Selection_Hide2!AB$5, 'Full set Core Client Indicator'!$A$3:$AB$3, 0))), \"\")","v":""}]
[{"$f":"IF(AND(Selection_Hide1!C105<>0, Selection_Hide1!C105<>\"Grand Total\"), Selection_Hide1!C105, \"\")","v":""},{"$f":"IF(A107<>\"\", IF(INDEX('Full set Core Client Indicator'!$A$3:$AB$351, MATCH(Selection_Hide2!$A107, 'Full set Core Client Indicator'!$A$3:$A$351, 0), MATCH(Selection_Hide2!B$5, 'Full set Core Client Indicator'!$A$3:$AB$3, 0))=\"\", \"\",  INDEX('Full set Core Client Indicator'!$A$3:$AB$351, MATCH(Selection_Hide2!$A107, 'Full set Core Client Indicator'!$A$3:$A$351, 0), MATCH(Selection_Hide2!B$5, 'Full set Core Client Indicator'!$A$3:$AB$3, 0))), \"\")","v":""},{"$f":"IF(B107<>\"\", IF(INDEX('Full set Core Client Indicator'!$A$3:$AB$351, MATCH(Selection_Hide2!$A107, 'Full set Core Client Indicator'!$A$3:$A$351, 0), MATCH(Selection_Hide2!C$5, 'Full set Core Client Indicator'!$A$3:$AB$3, 0))=\"\", \"\",  INDEX('Full set Core Client Indicator'!$A$3:$AB$351, MATCH(Selection_Hide2!$A107, 'Full set Core Client Indicator'!$A$3:$A$351, 0), MATCH(Selection_Hide2!C$5, 'Full set Core Client Indicator'!$A$3:$AB$3, 0))), \"\")","v":""},{"$f":"IF(C107<>\"\", IF(INDEX('Full set Core Client Indicator'!$A$3:$AB$351, MATCH(Selection_Hide2!$A107, 'Full set Core Client Indicator'!$A$3:$A$351, 0), MATCH(Selection_Hide2!D$5, 'Full set Core Client Indicator'!$A$3:$AB$3, 0))=\"\", \"\",  INDEX('Full set Core Client Indicator'!$A$3:$AB$351, MATCH(Selection_Hide2!$A107, 'Full set Core Client Indicator'!$A$3:$A$351, 0), MATCH(Selection_Hide2!D$5, 'Full set Core Client Indicator'!$A$3:$AB$3, 0))), \"\")","v":""},{"$f":"IF(D107<>\"\", IF(INDEX('Full set Core Client Indicator'!$A$3:$AB$351, MATCH(Selection_Hide2!$A107, 'Full set Core Client Indicator'!$A$3:$A$351, 0), MATCH(Selection_Hide2!E$5, 'Full set Core Client Indicator'!$A$3:$AB$3, 0))=\"\", \"\",  INDEX('Full set Core Client Indicator'!$A$3:$AB$351, MATCH(Selection_Hide2!$A107, 'Full set Core Client Indicator'!$A$3:$A$351, 0), MATCH(Selection_Hide2!E$5, 'Full set Core Client Indicator'!$A$3:$AB$3, 0))), \"\")","v":""},{"$f":"IF(E107<>\"\", IF(INDEX('Full set Core Client Indicator'!$A$3:$AB$351, MATCH(Selection_Hide2!$A107, 'Full set Core Client Indicator'!$A$3:$A$351, 0), MATCH(Selection_Hide2!F$5, 'Full set Core Client Indicator'!$A$3:$AB$3, 0))=\"\", \"\",  INDEX('Full set Core Client Indicator'!$A$3:$AB$351, MATCH(Selection_Hide2!$A107, 'Full set Core Client Indicator'!$A$3:$A$351, 0), MATCH(Selection_Hide2!F$5, 'Full set Core Client Indicator'!$A$3:$AB$3, 0))), \"\")","v":""},{"$f":"IF(F107<>\"\", IF(INDEX('Full set Core Client Indicator'!$A$3:$AB$351, MATCH(Selection_Hide2!$A107, 'Full set Core Client Indicator'!$A$3:$A$351, 0), MATCH(Selection_Hide2!G$5, 'Full set Core Client Indicator'!$A$3:$AB$3, 0))=\"\", \"\",  INDEX('Full set Core Client Indicator'!$A$3:$AB$351, MATCH(Selection_Hide2!$A107, 'Full set Core Client Indicator'!$A$3:$A$351, 0), MATCH(Selection_Hide2!G$5, 'Full set Core Client Indicator'!$A$3:$AB$3, 0))), \"\")","v":""},{"$f":"IF(G107<>\"\", IF(INDEX('Full set Core Client Indicator'!$A$3:$AB$351, MATCH(Selection_Hide2!$A107, 'Full set Core Client Indicator'!$A$3:$A$351, 0), MATCH(Selection_Hide2!H$5, 'Full set Core Client Indicator'!$A$3:$AB$3, 0))=\"\", \"\",  INDEX('Full set Core Client Indicator'!$A$3:$AB$351, MATCH(Selection_Hide2!$A107, 'Full set Core Client Indicator'!$A$3:$A$351, 0), MATCH(Selection_Hide2!H$5, 'Full set Core Client Indicator'!$A$3:$AB$3, 0))), \"\")","v":""},{"$f":"IF(H107<>\"\", IF(INDEX('Full set Core Client Indicator'!$A$3:$AB$351, MATCH(Selection_Hide2!$A107, 'Full set Core Client Indicator'!$A$3:$A$351, 0), MATCH(Selection_Hide2!I$5, 'Full set Core Client Indicator'!$A$3:$AB$3, 0))=\"\", \"\",  INDEX('Full set Core Client Indicator'!$A$3:$AB$351, MATCH(Selection_Hide2!$A107, 'Full set Core Client Indicator'!$A$3:$A$351, 0), MATCH(Selection_Hide2!I$5, 'Full set Core Client Indicator'!$A$3:$AB$3, 0))), \"\")","v":""},{"$f":"IF(I107<>\"\", IF(INDEX('Full set Core Client Indicator'!$A$3:$AB$351, MATCH(Selection_Hide2!$A107, 'Full set Core Client Indicator'!$A$3:$A$351, 0), MATCH(Selection_Hide2!J$5, 'Full set Core Client Indicator'!$A$3:$AB$3, 0))=\"\", \"\",  INDEX('Full set Core Client Indicator'!$A$3:$AB$351, MATCH(Selection_Hide2!$A107, 'Full set Core Client Indicator'!$A$3:$A$351, 0), MATCH(Selection_Hide2!J$5, 'Full set Core Client Indicator'!$A$3:$AB$3, 0))), \"\")","v":""},{"$f":"IF(J107<>\"\", IF(INDEX('Full set Core Client Indicator'!$A$3:$AB$351, MATCH(Selection_Hide2!$A107, 'Full set Core Client Indicator'!$A$3:$A$351, 0), MATCH(Selection_Hide2!K$5, 'Full set Core Client Indicator'!$A$3:$AB$3, 0))=\"\", \"\",  INDEX('Full set Core Client Indicator'!$A$3:$AB$351, MATCH(Selection_Hide2!$A107, 'Full set Core Client Indicator'!$A$3:$A$351, 0), MATCH(Selection_Hide2!K$5, 'Full set Core Client Indicator'!$A$3:$AB$3, 0))), \"\")","v":""},{"$f":"IF(K107<>\"\", IF(INDEX('Full set Core Client Indicator'!$A$3:$AB$351, MATCH(Selection_Hide2!$A107, 'Full set Core Client Indicator'!$A$3:$A$351, 0), MATCH(Selection_Hide2!L$5, 'Full set Core Client Indicator'!$A$3:$AB$3, 0))=\"\", \"\",  INDEX('Full set Core Client Indicator'!$A$3:$AB$351, MATCH(Selection_Hide2!$A107, 'Full set Core Client Indicator'!$A$3:$A$351, 0), MATCH(Selection_Hide2!L$5, 'Full set Core Client Indicator'!$A$3:$AB$3, 0))), \"\")","v":""},{"$f":"IF(L107<>\"\", IF(INDEX('Full set Core Client Indicator'!$A$3:$AB$351, MATCH(Selection_Hide2!$A107, 'Full set Core Client Indicator'!$A$3:$A$351, 0), MATCH(Selection_Hide2!M$5, 'Full set Core Client Indicator'!$A$3:$AB$3, 0))=\"\", \"\",  INDEX('Full set Core Client Indicator'!$A$3:$AB$351, MATCH(Selection_Hide2!$A107, 'Full set Core Client Indicator'!$A$3:$A$351, 0), MATCH(Selection_Hide2!M$5, 'Full set Core Client Indicator'!$A$3:$AB$3, 0))), \"\")","v":""},{"$f":"IF(M107<>\"\", IF(INDEX('Full set Core Client Indicator'!$A$3:$AB$351, MATCH(Selection_Hide2!$A107, 'Full set Core Client Indicator'!$A$3:$A$351, 0), MATCH(Selection_Hide2!N$5, 'Full set Core Client Indicator'!$A$3:$AB$3, 0))=\"\", \"\",  INDEX('Full set Core Client Indicator'!$A$3:$AB$351, MATCH(Selection_Hide2!$A107, 'Full set Core Client Indicator'!$A$3:$A$351, 0), MATCH(Selection_Hide2!N$5, 'Full set Core Client Indicator'!$A$3:$AB$3, 0))), \"\")","v":""},{"$f":"IF(N107<>\"\", IF(INDEX('Full set Core Client Indicator'!$A$3:$AB$351, MATCH(Selection_Hide2!$A107, 'Full set Core Client Indicator'!$A$3:$A$351, 0), MATCH(Selection_Hide2!O$5, 'Full set Core Client Indicator'!$A$3:$AB$3, 0))=\"\", \"\",  INDEX('Full set Core Client Indicator'!$A$3:$AB$351, MATCH(Selection_Hide2!$A107, 'Full set Core Client Indicator'!$A$3:$A$351, 0), MATCH(Selection_Hide2!O$5, 'Full set Core Client Indicator'!$A$3:$AB$3, 0))), \"\")","v":""},{"$f":"IF(O107<>\"\", IF(INDEX('Full set Core Client Indicator'!$A$3:$AB$351, MATCH(Selection_Hide2!$A107, 'Full set Core Client Indicator'!$A$3:$A$351, 0), MATCH(Selection_Hide2!P$5, 'Full set Core Client Indicator'!$A$3:$AB$3, 0))=\"\", \"\",  INDEX('Full set Core Client Indicator'!$A$3:$AB$351, MATCH(Selection_Hide2!$A107, 'Full set Core Client Indicator'!$A$3:$A$351, 0), MATCH(Selection_Hide2!P$5, 'Full set Core Client Indicator'!$A$3:$AB$3, 0))), \"\")","v":""},{"$f":"IF(P107<>\"\", IF(INDEX('Full set Core Client Indicator'!$A$3:$AB$351, MATCH(Selection_Hide2!$A107, 'Full set Core Client Indicator'!$A$3:$A$351, 0), MATCH(Selection_Hide2!Q$5, 'Full set Core Client Indicator'!$A$3:$AB$3, 0))=\"\", \"\",  INDEX('Full set Core Client Indicator'!$A$3:$AB$351, MATCH(Selection_Hide2!$A107, 'Full set Core Client Indicator'!$A$3:$A$351, 0), MATCH(Selection_Hide2!Q$5, 'Full set Core Client Indicator'!$A$3:$AB$3, 0))), \"\")","v":""},{"$f":"IF(Q107<>\"\", IF(INDEX('Full set Core Client Indicator'!$A$3:$AB$351, MATCH(Selection_Hide2!$A107, 'Full set Core Client Indicator'!$A$3:$A$351, 0), MATCH(Selection_Hide2!R$5, 'Full set Core Client Indicator'!$A$3:$AB$3, 0))=\"\", \"\",  INDEX('Full set Core Client Indicator'!$A$3:$AB$351, MATCH(Selection_Hide2!$A107, 'Full set Core Client Indicator'!$A$3:$A$351, 0), MATCH(Selection_Hide2!R$5, 'Full set Core Client Indicator'!$A$3:$AB$3, 0))), \"\")","v":""},{"$f":"IF(R107<>\"\", IF(INDEX('Full set Core Client Indicator'!$A$3:$AB$351, MATCH(Selection_Hide2!$A107, 'Full set Core Client Indicator'!$A$3:$A$351, 0), MATCH(Selection_Hide2!S$5, 'Full set Core Client Indicator'!$A$3:$AB$3, 0))=\"\", \"\",  INDEX('Full set Core Client Indicator'!$A$3:$AB$351, MATCH(Selection_Hide2!$A107, 'Full set Core Client Indicator'!$A$3:$A$351, 0), MATCH(Selection_Hide2!S$5, 'Full set Core Client Indicator'!$A$3:$AB$3, 0))), \"\")","v":""},{"$f":"IF(S107<>\"\", IF(INDEX('Full set Core Client Indicator'!$A$3:$AB$351, MATCH(Selection_Hide2!$A107, 'Full set Core Client Indicator'!$A$3:$A$351, 0), MATCH(Selection_Hide2!T$5, 'Full set Core Client Indicator'!$A$3:$AB$3, 0))=\"\", \"\",  INDEX('Full set Core Client Indicator'!$A$3:$AB$351, MATCH(Selection_Hide2!$A107, 'Full set Core Client Indicator'!$A$3:$A$351, 0), MATCH(Selection_Hide2!T$5, 'Full set Core Client Indicator'!$A$3:$AB$3, 0))), \"\")","v":""},{"$f":"IF(T107<>\"\", IF(INDEX('Full set Core Client Indicator'!$A$3:$AB$351, MATCH(Selection_Hide2!$A107, 'Full set Core Client Indicator'!$A$3:$A$351, 0), MATCH(Selection_Hide2!U$5, 'Full set Core Client Indicator'!$A$3:$AB$3, 0))=\"\", \"\",  INDEX('Full set Core Client Indicator'!$A$3:$AB$351, MATCH(Selection_Hide2!$A107, 'Full set Core Client Indicator'!$A$3:$A$351, 0), MATCH(Selection_Hide2!U$5, 'Full set Core Client Indicator'!$A$3:$AB$3, 0))), \"\")","v":""},{"$f":"IF(U107<>\"\", IF(INDEX('Full set Core Client Indicator'!$A$3:$AB$351, MATCH(Selection_Hide2!$A107, 'Full set Core Client Indicator'!$A$3:$A$351, 0), MATCH(Selection_Hide2!V$5, 'Full set Core Client Indicator'!$A$3:$AB$3, 0))=\"\", \"\",  INDEX('Full set Core Client Indicator'!$A$3:$AB$351, MATCH(Selection_Hide2!$A107, 'Full set Core Client Indicator'!$A$3:$A$351, 0), MATCH(Selection_Hide2!V$5, 'Full set Core Client Indicator'!$A$3:$AB$3, 0))), \"\")","v":""},{"$f":"IF(V107<>\"\", IF(INDEX('Full set Core Client Indicator'!$A$3:$AB$351, MATCH(Selection_Hide2!$A107, 'Full set Core Client Indicator'!$A$3:$A$351, 0), MATCH(Selection_Hide2!W$5, 'Full set Core Client Indicator'!$A$3:$AB$3, 0))=\"\", \"\",  INDEX('Full set Core Client Indicator'!$A$3:$AB$351, MATCH(Selection_Hide2!$A107, 'Full set Core Client Indicator'!$A$3:$A$351, 0), MATCH(Selection_Hide2!W$5, 'Full set Core Client Indicator'!$A$3:$AB$3, 0))), \"\")","v":""},{"$f":"IF(W107<>\"\", IF(INDEX('Full set Core Client Indicator'!$A$3:$AB$351, MATCH(Selection_Hide2!$A107, 'Full set Core Client Indicator'!$A$3:$A$351, 0), MATCH(Selection_Hide2!X$5, 'Full set Core Client Indicator'!$A$3:$AB$3, 0))=\"\", \"\",  INDEX('Full set Core Client Indicator'!$A$3:$AB$351, MATCH(Selection_Hide2!$A107, 'Full set Core Client Indicator'!$A$3:$A$351, 0), MATCH(Selection_Hide2!X$5, 'Full set Core Client Indicator'!$A$3:$AB$3, 0))), \"\")","v":""},{"$f":"IF(X107<>\"\", IF(INDEX('Full set Core Client Indicator'!$A$3:$AB$351, MATCH(Selection_Hide2!$A107, 'Full set Core Client Indicator'!$A$3:$A$351, 0), MATCH(Selection_Hide2!Y$5, 'Full set Core Client Indicator'!$A$3:$AB$3, 0))=\"\", \"\",  INDEX('Full set Core Client Indicator'!$A$3:$AB$351, MATCH(Selection_Hide2!$A107, 'Full set Core Client Indicator'!$A$3:$A$351, 0), MATCH(Selection_Hide2!Y$5, 'Full set Core Client Indicator'!$A$3:$AB$3, 0))), \"\")","v":""},{"$f":"IF(Y107<>\"\", IF(INDEX('Full set Core Client Indicator'!$A$3:$AB$351, MATCH(Selection_Hide2!$A107, 'Full set Core Client Indicator'!$A$3:$A$351, 0), MATCH(Selection_Hide2!Z$5, 'Full set Core Client Indicator'!$A$3:$AB$3, 0))=\"\", \"\",  INDEX('Full set Core Client Indicator'!$A$3:$AB$351, MATCH(Selection_Hide2!$A107, 'Full set Core Client Indicator'!$A$3:$A$351, 0), MATCH(Selection_Hide2!Z$5, 'Full set Core Client Indicator'!$A$3:$AB$3, 0))), \"\")","v":""},{"$f":"IF(Z107<>\"\", IF(INDEX('Full set Core Client Indicator'!$A$3:$AB$351, MATCH(Selection_Hide2!$A107, 'Full set Core Client Indicator'!$A$3:$A$351, 0), MATCH(Selection_Hide2!AA$5, 'Full set Core Client Indicator'!$A$3:$AB$3, 0))=\"\", \"\",  INDEX('Full set Core Client Indicator'!$A$3:$AB$351, MATCH(Selection_Hide2!$A107, 'Full set Core Client Indicator'!$A$3:$A$351, 0), MATCH(Selection_Hide2!AA$5, 'Full set Core Client Indicator'!$A$3:$AB$3, 0))), \"\")","v":""},{"$f":"IF(AA107<>\"\", IF(INDEX('Full set Core Client Indicator'!$A$3:$AB$351, MATCH(Selection_Hide2!$A107, 'Full set Core Client Indicator'!$A$3:$A$351, 0), MATCH(Selection_Hide2!AB$5, 'Full set Core Client Indicator'!$A$3:$AB$3, 0))=\"\", \"\",  INDEX('Full set Core Client Indicator'!$A$3:$AB$351, MATCH(Selection_Hide2!$A107, 'Full set Core Client Indicator'!$A$3:$A$351, 0), MATCH(Selection_Hide2!AB$5, 'Full set Core Client Indicator'!$A$3:$AB$3, 0))), \"\")","v":""}]
[{"$f":"IF(AND(Selection_Hide1!C106<>0, Selection_Hide1!C106<>\"Grand Total\"), Selection_Hide1!C106, \"\")","v":""},{"$f":"IF(A108<>\"\", IF(INDEX('Full set Core Client Indicator'!$A$3:$AB$351, MATCH(Selection_Hide2!$A108, 'Full set Core Client Indicator'!$A$3:$A$351, 0), MATCH(Selection_Hide2!B$5, 'Full set Core Client Indicator'!$A$3:$AB$3, 0))=\"\", \"\",  INDEX('Full set Core Client Indicator'!$A$3:$AB$351, MATCH(Selection_Hide2!$A108, 'Full set Core Client Indicator'!$A$3:$A$351, 0), MATCH(Selection_Hide2!B$5, 'Full set Core Client Indicator'!$A$3:$AB$3, 0))), \"\")","v":""},{"$f":"IF(B108<>\"\", IF(INDEX('Full set Core Client Indicator'!$A$3:$AB$351, MATCH(Selection_Hide2!$A108, 'Full set Core Client Indicator'!$A$3:$A$351, 0), MATCH(Selection_Hide2!C$5, 'Full set Core Client Indicator'!$A$3:$AB$3, 0))=\"\", \"\",  INDEX('Full set Core Client Indicator'!$A$3:$AB$351, MATCH(Selection_Hide2!$A108, 'Full set Core Client Indicator'!$A$3:$A$351, 0), MATCH(Selection_Hide2!C$5, 'Full set Core Client Indicator'!$A$3:$AB$3, 0))), \"\")","v":""},{"$f":"IF(C108<>\"\", IF(INDEX('Full set Core Client Indicator'!$A$3:$AB$351, MATCH(Selection_Hide2!$A108, 'Full set Core Client Indicator'!$A$3:$A$351, 0), MATCH(Selection_Hide2!D$5, 'Full set Core Client Indicator'!$A$3:$AB$3, 0))=\"\", \"\",  INDEX('Full set Core Client Indicator'!$A$3:$AB$351, MATCH(Selection_Hide2!$A108, 'Full set Core Client Indicator'!$A$3:$A$351, 0), MATCH(Selection_Hide2!D$5, 'Full set Core Client Indicator'!$A$3:$AB$3, 0))), \"\")","v":""},{"$f":"IF(D108<>\"\", IF(INDEX('Full set Core Client Indicator'!$A$3:$AB$351, MATCH(Selection_Hide2!$A108, 'Full set Core Client Indicator'!$A$3:$A$351, 0), MATCH(Selection_Hide2!E$5, 'Full set Core Client Indicator'!$A$3:$AB$3, 0))=\"\", \"\",  INDEX('Full set Core Client Indicator'!$A$3:$AB$351, MATCH(Selection_Hide2!$A108, 'Full set Core Client Indicator'!$A$3:$A$351, 0), MATCH(Selection_Hide2!E$5, 'Full set Core Client Indicator'!$A$3:$AB$3, 0))), \"\")","v":""},{"$f":"IF(E108<>\"\", IF(INDEX('Full set Core Client Indicator'!$A$3:$AB$351, MATCH(Selection_Hide2!$A108, 'Full set Core Client Indicator'!$A$3:$A$351, 0), MATCH(Selection_Hide2!F$5, 'Full set Core Client Indicator'!$A$3:$AB$3, 0))=\"\", \"\",  INDEX('Full set Core Client Indicator'!$A$3:$AB$351, MATCH(Selection_Hide2!$A108, 'Full set Core Client Indicator'!$A$3:$A$351, 0), MATCH(Selection_Hide2!F$5, 'Full set Core Client Indicator'!$A$3:$AB$3, 0))), \"\")","v":""},{"$f":"IF(F108<>\"\", IF(INDEX('Full set Core Client Indicator'!$A$3:$AB$351, MATCH(Selection_Hide2!$A108, 'Full set Core Client Indicator'!$A$3:$A$351, 0), MATCH(Selection_Hide2!G$5, 'Full set Core Client Indicator'!$A$3:$AB$3, 0))=\"\", \"\",  INDEX('Full set Core Client Indicator'!$A$3:$AB$351, MATCH(Selection_Hide2!$A108, 'Full set Core Client Indicator'!$A$3:$A$351, 0), MATCH(Selection_Hide2!G$5, 'Full set Core Client Indicator'!$A$3:$AB$3, 0))), \"\")","v":""},{"$f":"IF(G108<>\"\", IF(INDEX('Full set Core Client Indicator'!$A$3:$AB$351, MATCH(Selection_Hide2!$A108, 'Full set Core Client Indicator'!$A$3:$A$351, 0), MATCH(Selection_Hide2!H$5, 'Full set Core Client Indicator'!$A$3:$AB$3, 0))=\"\", \"\",  INDEX('Full set Core Client Indicator'!$A$3:$AB$351, MATCH(Selection_Hide2!$A108, 'Full set Core Client Indicator'!$A$3:$A$351, 0), MATCH(Selection_Hide2!H$5, 'Full set Core Client Indicator'!$A$3:$AB$3, 0))), \"\")","v":""},{"$f":"IF(H108<>\"\", IF(INDEX('Full set Core Client Indicator'!$A$3:$AB$351, MATCH(Selection_Hide2!$A108, 'Full set Core Client Indicator'!$A$3:$A$351, 0), MATCH(Selection_Hide2!I$5, 'Full set Core Client Indicator'!$A$3:$AB$3, 0))=\"\", \"\",  INDEX('Full set Core Client Indicator'!$A$3:$AB$351, MATCH(Selection_Hide2!$A108, 'Full set Core Client Indicator'!$A$3:$A$351, 0), MATCH(Selection_Hide2!I$5, 'Full set Core Client Indicator'!$A$3:$AB$3, 0))), \"\")","v":""},{"$f":"IF(I108<>\"\", IF(INDEX('Full set Core Client Indicator'!$A$3:$AB$351, MATCH(Selection_Hide2!$A108, 'Full set Core Client Indicator'!$A$3:$A$351, 0), MATCH(Selection_Hide2!J$5, 'Full set Core Client Indicator'!$A$3:$AB$3, 0))=\"\", \"\",  INDEX('Full set Core Client Indicator'!$A$3:$AB$351, MATCH(Selection_Hide2!$A108, 'Full set Core Client Indicator'!$A$3:$A$351, 0), MATCH(Selection_Hide2!J$5, 'Full set Core Client Indicator'!$A$3:$AB$3, 0))), \"\")","v":""},{"$f":"IF(J108<>\"\", IF(INDEX('Full set Core Client Indicator'!$A$3:$AB$351, MATCH(Selection_Hide2!$A108, 'Full set Core Client Indicator'!$A$3:$A$351, 0), MATCH(Selection_Hide2!K$5, 'Full set Core Client Indicator'!$A$3:$AB$3, 0))=\"\", \"\",  INDEX('Full set Core Client Indicator'!$A$3:$AB$351, MATCH(Selection_Hide2!$A108, 'Full set Core Client Indicator'!$A$3:$A$351, 0), MATCH(Selection_Hide2!K$5, 'Full set Core Client Indicator'!$A$3:$AB$3, 0))), \"\")","v":""},{"$f":"IF(K108<>\"\", IF(INDEX('Full set Core Client Indicator'!$A$3:$AB$351, MATCH(Selection_Hide2!$A108, 'Full set Core Client Indicator'!$A$3:$A$351, 0), MATCH(Selection_Hide2!L$5, 'Full set Core Client Indicator'!$A$3:$AB$3, 0))=\"\", \"\",  INDEX('Full set Core Client Indicator'!$A$3:$AB$351, MATCH(Selection_Hide2!$A108, 'Full set Core Client Indicator'!$A$3:$A$351, 0), MATCH(Selection_Hide2!L$5, 'Full set Core Client Indicator'!$A$3:$AB$3, 0))), \"\")","v":""},{"$f":"IF(L108<>\"\", IF(INDEX('Full set Core Client Indicator'!$A$3:$AB$351, MATCH(Selection_Hide2!$A108, 'Full set Core Client Indicator'!$A$3:$A$351, 0), MATCH(Selection_Hide2!M$5, 'Full set Core Client Indicator'!$A$3:$AB$3, 0))=\"\", \"\",  INDEX('Full set Core Client Indicator'!$A$3:$AB$351, MATCH(Selection_Hide2!$A108, 'Full set Core Client Indicator'!$A$3:$A$351, 0), MATCH(Selection_Hide2!M$5, 'Full set Core Client Indicator'!$A$3:$AB$3, 0))), \"\")","v":""},{"$f":"IF(M108<>\"\", IF(INDEX('Full set Core Client Indicator'!$A$3:$AB$351, MATCH(Selection_Hide2!$A108, 'Full set Core Client Indicator'!$A$3:$A$351, 0), MATCH(Selection_Hide2!N$5, 'Full set Core Client Indicator'!$A$3:$AB$3, 0))=\"\", \"\",  INDEX('Full set Core Client Indicator'!$A$3:$AB$351, MATCH(Selection_Hide2!$A108, 'Full set Core Client Indicator'!$A$3:$A$351, 0), MATCH(Selection_Hide2!N$5, 'Full set Core Client Indicator'!$A$3:$AB$3, 0))), \"\")","v":""},{"$f":"IF(N108<>\"\", IF(INDEX('Full set Core Client Indicator'!$A$3:$AB$351, MATCH(Selection_Hide2!$A108, 'Full set Core Client Indicator'!$A$3:$A$351, 0), MATCH(Selection_Hide2!O$5, 'Full set Core Client Indicator'!$A$3:$AB$3, 0))=\"\", \"\",  INDEX('Full set Core Client Indicator'!$A$3:$AB$351, MATCH(Selection_Hide2!$A108, 'Full set Core Client Indicator'!$A$3:$A$351, 0), MATCH(Selection_Hide2!O$5, 'Full set Core Client Indicator'!$A$3:$AB$3, 0))), \"\")","v":""},{"$f":"IF(O108<>\"\", IF(INDEX('Full set Core Client Indicator'!$A$3:$AB$351, MATCH(Selection_Hide2!$A108, 'Full set Core Client Indicator'!$A$3:$A$351, 0), MATCH(Selection_Hide2!P$5, 'Full set Core Client Indicator'!$A$3:$AB$3, 0))=\"\", \"\",  INDEX('Full set Core Client Indicator'!$A$3:$AB$351, MATCH(Selection_Hide2!$A108, 'Full set Core Client Indicator'!$A$3:$A$351, 0), MATCH(Selection_Hide2!P$5, 'Full set Core Client Indicator'!$A$3:$AB$3, 0))), \"\")","v":""},{"$f":"IF(P108<>\"\", IF(INDEX('Full set Core Client Indicator'!$A$3:$AB$351, MATCH(Selection_Hide2!$A108, 'Full set Core Client Indicator'!$A$3:$A$351, 0), MATCH(Selection_Hide2!Q$5, 'Full set Core Client Indicator'!$A$3:$AB$3, 0))=\"\", \"\",  INDEX('Full set Core Client Indicator'!$A$3:$AB$351, MATCH(Selection_Hide2!$A108, 'Full set Core Client Indicator'!$A$3:$A$351, 0), MATCH(Selection_Hide2!Q$5, 'Full set Core Client Indicator'!$A$3:$AB$3, 0))), \"\")","v":""},{"$f":"IF(Q108<>\"\", IF(INDEX('Full set Core Client Indicator'!$A$3:$AB$351, MATCH(Selection_Hide2!$A108, 'Full set Core Client Indicator'!$A$3:$A$351, 0), MATCH(Selection_Hide2!R$5, 'Full set Core Client Indicator'!$A$3:$AB$3, 0))=\"\", \"\",  INDEX('Full set Core Client Indicator'!$A$3:$AB$351, MATCH(Selection_Hide2!$A108, 'Full set Core Client Indicator'!$A$3:$A$351, 0), MATCH(Selection_Hide2!R$5, 'Full set Core Client Indicator'!$A$3:$AB$3, 0))), \"\")","v":""},{"$f":"IF(R108<>\"\", IF(INDEX('Full set Core Client Indicator'!$A$3:$AB$351, MATCH(Selection_Hide2!$A108, 'Full set Core Client Indicator'!$A$3:$A$351, 0), MATCH(Selection_Hide2!S$5, 'Full set Core Client Indicator'!$A$3:$AB$3, 0))=\"\", \"\",  INDEX('Full set Core Client Indicator'!$A$3:$AB$351, MATCH(Selection_Hide2!$A108, 'Full set Core Client Indicator'!$A$3:$A$351, 0), MATCH(Selection_Hide2!S$5, 'Full set Core Client Indicator'!$A$3:$AB$3, 0))), \"\")","v":""},{"$f":"IF(S108<>\"\", IF(INDEX('Full set Core Client Indicator'!$A$3:$AB$351, MATCH(Selection_Hide2!$A108, 'Full set Core Client Indicator'!$A$3:$A$351, 0), MATCH(Selection_Hide2!T$5, 'Full set Core Client Indicator'!$A$3:$AB$3, 0))=\"\", \"\",  INDEX('Full set Core Client Indicator'!$A$3:$AB$351, MATCH(Selection_Hide2!$A108, 'Full set Core Client Indicator'!$A$3:$A$351, 0), MATCH(Selection_Hide2!T$5, 'Full set Core Client Indicator'!$A$3:$AB$3, 0))), \"\")","v":""},{"$f":"IF(T108<>\"\", IF(INDEX('Full set Core Client Indicator'!$A$3:$AB$351, MATCH(Selection_Hide2!$A108, 'Full set Core Client Indicator'!$A$3:$A$351, 0), MATCH(Selection_Hide2!U$5, 'Full set Core Client Indicator'!$A$3:$AB$3, 0))=\"\", \"\",  INDEX('Full set Core Client Indicator'!$A$3:$AB$351, MATCH(Selection_Hide2!$A108, 'Full set Core Client Indicator'!$A$3:$A$351, 0), MATCH(Selection_Hide2!U$5, 'Full set Core Client Indicator'!$A$3:$AB$3, 0))), \"\")","v":""},{"$f":"IF(U108<>\"\", IF(INDEX('Full set Core Client Indicator'!$A$3:$AB$351, MATCH(Selection_Hide2!$A108, 'Full set Core Client Indicator'!$A$3:$A$351, 0), MATCH(Selection_Hide2!V$5, 'Full set Core Client Indicator'!$A$3:$AB$3, 0))=\"\", \"\",  INDEX('Full set Core Client Indicator'!$A$3:$AB$351, MATCH(Selection_Hide2!$A108, 'Full set Core Client Indicator'!$A$3:$A$351, 0), MATCH(Selection_Hide2!V$5, 'Full set Core Client Indicator'!$A$3:$AB$3, 0))), \"\")","v":""},{"$f":"IF(V108<>\"\", IF(INDEX('Full set Core Client Indicator'!$A$3:$AB$351, MATCH(Selection_Hide2!$A108, 'Full set Core Client Indicator'!$A$3:$A$351, 0), MATCH(Selection_Hide2!W$5, 'Full set Core Client Indicator'!$A$3:$AB$3, 0))=\"\", \"\",  INDEX('Full set Core Client Indicator'!$A$3:$AB$351, MATCH(Selection_Hide2!$A108, 'Full set Core Client Indicator'!$A$3:$A$351, 0), MATCH(Selection_Hide2!W$5, 'Full set Core Client Indicator'!$A$3:$AB$3, 0))), \"\")","v":""},{"$f":"IF(W108<>\"\", IF(INDEX('Full set Core Client Indicator'!$A$3:$AB$351, MATCH(Selection_Hide2!$A108, 'Full set Core Client Indicator'!$A$3:$A$351, 0), MATCH(Selection_Hide2!X$5, 'Full set Core Client Indicator'!$A$3:$AB$3, 0))=\"\", \"\",  INDEX('Full set Core Client Indicator'!$A$3:$AB$351, MATCH(Selection_Hide2!$A108, 'Full set Core Client Indicator'!$A$3:$A$351, 0), MATCH(Selection_Hide2!X$5, 'Full set Core Client Indicator'!$A$3:$AB$3, 0))), \"\")","v":""},{"$f":"IF(X108<>\"\", IF(INDEX('Full set Core Client Indicator'!$A$3:$AB$351, MATCH(Selection_Hide2!$A108, 'Full set Core Client Indicator'!$A$3:$A$351, 0), MATCH(Selection_Hide2!Y$5, 'Full set Core Client Indicator'!$A$3:$AB$3, 0))=\"\", \"\",  INDEX('Full set Core Client Indicator'!$A$3:$AB$351, MATCH(Selection_Hide2!$A108, 'Full set Core Client Indicator'!$A$3:$A$351, 0), MATCH(Selection_Hide2!Y$5, 'Full set Core Client Indicator'!$A$3:$AB$3, 0))), \"\")","v":""},{"$f":"IF(Y108<>\"\", IF(INDEX('Full set Core Client Indicator'!$A$3:$AB$351, MATCH(Selection_Hide2!$A108, 'Full set Core Client Indicator'!$A$3:$A$351, 0), MATCH(Selection_Hide2!Z$5, 'Full set Core Client Indicator'!$A$3:$AB$3, 0))=\"\", \"\",  INDEX('Full set Core Client Indicator'!$A$3:$AB$351, MATCH(Selection_Hide2!$A108, 'Full set Core Client Indicator'!$A$3:$A$351, 0), MATCH(Selection_Hide2!Z$5, 'Full set Core Client Indicator'!$A$3:$AB$3, 0))), \"\")","v":""},{"$f":"IF(Z108<>\"\", IF(INDEX('Full set Core Client Indicator'!$A$3:$AB$351, MATCH(Selection_Hide2!$A108, 'Full set Core Client Indicator'!$A$3:$A$351, 0), MATCH(Selection_Hide2!AA$5, 'Full set Core Client Indicator'!$A$3:$AB$3, 0))=\"\", \"\",  INDEX('Full set Core Client Indicator'!$A$3:$AB$351, MATCH(Selection_Hide2!$A108, 'Full set Core Client Indicator'!$A$3:$A$351, 0), MATCH(Selection_Hide2!AA$5, 'Full set Core Client Indicator'!$A$3:$AB$3, 0))), \"\")","v":""},{"$f":"IF(AA108<>\"\", IF(INDEX('Full set Core Client Indicator'!$A$3:$AB$351, MATCH(Selection_Hide2!$A108, 'Full set Core Client Indicator'!$A$3:$A$351, 0), MATCH(Selection_Hide2!AB$5, 'Full set Core Client Indicator'!$A$3:$AB$3, 0))=\"\", \"\",  INDEX('Full set Core Client Indicator'!$A$3:$AB$351, MATCH(Selection_Hide2!$A108, 'Full set Core Client Indicator'!$A$3:$A$351, 0), MATCH(Selection_Hide2!AB$5, 'Full set Core Client Indicator'!$A$3:$AB$3, 0))), \"\")","v":""}]
[{"$f":"IF(AND(Selection_Hide1!C107<>0, Selection_Hide1!C107<>\"Grand Total\"), Selection_Hide1!C107, \"\")","v":""},{"$f":"IF(A109<>\"\", IF(INDEX('Full set Core Client Indicator'!$A$3:$AB$351, MATCH(Selection_Hide2!$A109, 'Full set Core Client Indicator'!$A$3:$A$351, 0), MATCH(Selection_Hide2!B$5, 'Full set Core Client Indicator'!$A$3:$AB$3, 0))=\"\", \"\",  INDEX('Full set Core Client Indicator'!$A$3:$AB$351, MATCH(Selection_Hide2!$A109, 'Full set Core Client Indicator'!$A$3:$A$351, 0), MATCH(Selection_Hide2!B$5, 'Full set Core Client Indicator'!$A$3:$AB$3, 0))), \"\")","v":""},{"$f":"IF(B109<>\"\", IF(INDEX('Full set Core Client Indicator'!$A$3:$AB$351, MATCH(Selection_Hide2!$A109, 'Full set Core Client Indicator'!$A$3:$A$351, 0), MATCH(Selection_Hide2!C$5, 'Full set Core Client Indicator'!$A$3:$AB$3, 0))=\"\", \"\",  INDEX('Full set Core Client Indicator'!$A$3:$AB$351, MATCH(Selection_Hide2!$A109, 'Full set Core Client Indicator'!$A$3:$A$351, 0), MATCH(Selection_Hide2!C$5, 'Full set Core Client Indicator'!$A$3:$AB$3, 0))), \"\")","v":""},{"$f":"IF(C109<>\"\", IF(INDEX('Full set Core Client Indicator'!$A$3:$AB$351, MATCH(Selection_Hide2!$A109, 'Full set Core Client Indicator'!$A$3:$A$351, 0), MATCH(Selection_Hide2!D$5, 'Full set Core Client Indicator'!$A$3:$AB$3, 0))=\"\", \"\",  INDEX('Full set Core Client Indicator'!$A$3:$AB$351, MATCH(Selection_Hide2!$A109, 'Full set Core Client Indicator'!$A$3:$A$351, 0), MATCH(Selection_Hide2!D$5, 'Full set Core Client Indicator'!$A$3:$AB$3, 0))), \"\")","v":""},{"$f":"IF(D109<>\"\", IF(INDEX('Full set Core Client Indicator'!$A$3:$AB$351, MATCH(Selection_Hide2!$A109, 'Full set Core Client Indicator'!$A$3:$A$351, 0), MATCH(Selection_Hide2!E$5, 'Full set Core Client Indicator'!$A$3:$AB$3, 0))=\"\", \"\",  INDEX('Full set Core Client Indicator'!$A$3:$AB$351, MATCH(Selection_Hide2!$A109, 'Full set Core Client Indicator'!$A$3:$A$351, 0), MATCH(Selection_Hide2!E$5, 'Full set Core Client Indicator'!$A$3:$AB$3, 0))), \"\")","v":""},{"$f":"IF(E109<>\"\", IF(INDEX('Full set Core Client Indicator'!$A$3:$AB$351, MATCH(Selection_Hide2!$A109, 'Full set Core Client Indicator'!$A$3:$A$351, 0), MATCH(Selection_Hide2!F$5, 'Full set Core Client Indicator'!$A$3:$AB$3, 0))=\"\", \"\",  INDEX('Full set Core Client Indicator'!$A$3:$AB$351, MATCH(Selection_Hide2!$A109, 'Full set Core Client Indicator'!$A$3:$A$351, 0), MATCH(Selection_Hide2!F$5, 'Full set Core Client Indicator'!$A$3:$AB$3, 0))), \"\")","v":""},{"$f":"IF(F109<>\"\", IF(INDEX('Full set Core Client Indicator'!$A$3:$AB$351, MATCH(Selection_Hide2!$A109, 'Full set Core Client Indicator'!$A$3:$A$351, 0), MATCH(Selection_Hide2!G$5, 'Full set Core Client Indicator'!$A$3:$AB$3, 0))=\"\", \"\",  INDEX('Full set Core Client Indicator'!$A$3:$AB$351, MATCH(Selection_Hide2!$A109, 'Full set Core Client Indicator'!$A$3:$A$351, 0), MATCH(Selection_Hide2!G$5, 'Full set Core Client Indicator'!$A$3:$AB$3, 0))), \"\")","v":""},{"$f":"IF(G109<>\"\", IF(INDEX('Full set Core Client Indicator'!$A$3:$AB$351, MATCH(Selection_Hide2!$A109, 'Full set Core Client Indicator'!$A$3:$A$351, 0), MATCH(Selection_Hide2!H$5, 'Full set Core Client Indicator'!$A$3:$AB$3, 0))=\"\", \"\",  INDEX('Full set Core Client Indicator'!$A$3:$AB$351, MATCH(Selection_Hide2!$A109, 'Full set Core Client Indicator'!$A$3:$A$351, 0), MATCH(Selection_Hide2!H$5, 'Full set Core Client Indicator'!$A$3:$AB$3, 0))), \"\")","v":""},{"$f":"IF(H109<>\"\", IF(INDEX('Full set Core Client Indicator'!$A$3:$AB$351, MATCH(Selection_Hide2!$A109, 'Full set Core Client Indicator'!$A$3:$A$351, 0), MATCH(Selection_Hide2!I$5, 'Full set Core Client Indicator'!$A$3:$AB$3, 0))=\"\", \"\",  INDEX('Full set Core Client Indicator'!$A$3:$AB$351, MATCH(Selection_Hide2!$A109, 'Full set Core Client Indicator'!$A$3:$A$351, 0), MATCH(Selection_Hide2!I$5, 'Full set Core Client Indicator'!$A$3:$AB$3, 0))), \"\")","v":""},{"$f":"IF(I109<>\"\", IF(INDEX('Full set Core Client Indicator'!$A$3:$AB$351, MATCH(Selection_Hide2!$A109, 'Full set Core Client Indicator'!$A$3:$A$351, 0), MATCH(Selection_Hide2!J$5, 'Full set Core Client Indicator'!$A$3:$AB$3, 0))=\"\", \"\",  INDEX('Full set Core Client Indicator'!$A$3:$AB$351, MATCH(Selection_Hide2!$A109, 'Full set Core Client Indicator'!$A$3:$A$351, 0), MATCH(Selection_Hide2!J$5, 'Full set Core Client Indicator'!$A$3:$AB$3, 0))), \"\")","v":""},{"$f":"IF(J109<>\"\", IF(INDEX('Full set Core Client Indicator'!$A$3:$AB$351, MATCH(Selection_Hide2!$A109, 'Full set Core Client Indicator'!$A$3:$A$351, 0), MATCH(Selection_Hide2!K$5, 'Full set Core Client Indicator'!$A$3:$AB$3, 0))=\"\", \"\",  INDEX('Full set Core Client Indicator'!$A$3:$AB$351, MATCH(Selection_Hide2!$A109, 'Full set Core Client Indicator'!$A$3:$A$351, 0), MATCH(Selection_Hide2!K$5, 'Full set Core Client Indicator'!$A$3:$AB$3, 0))), \"\")","v":""},{"$f":"IF(K109<>\"\", IF(INDEX('Full set Core Client Indicator'!$A$3:$AB$351, MATCH(Selection_Hide2!$A109, 'Full set Core Client Indicator'!$A$3:$A$351, 0), MATCH(Selection_Hide2!L$5, 'Full set Core Client Indicator'!$A$3:$AB$3, 0))=\"\", \"\",  INDEX('Full set Core Client Indicator'!$A$3:$AB$351, MATCH(Selection_Hide2!$A109, 'Full set Core Client Indicator'!$A$3:$A$351, 0), MATCH(Selection_Hide2!L$5, 'Full set Core Client Indicator'!$A$3:$AB$3, 0))), \"\")","v":""},{"$f":"IF(L109<>\"\", IF(INDEX('Full set Core Client Indicator'!$A$3:$AB$351, MATCH(Selection_Hide2!$A109, 'Full set Core Client Indicator'!$A$3:$A$351, 0), MATCH(Selection_Hide2!M$5, 'Full set Core Client Indicator'!$A$3:$AB$3, 0))=\"\", \"\",  INDEX('Full set Core Client Indicator'!$A$3:$AB$351, MATCH(Selection_Hide2!$A109, 'Full set Core Client Indicator'!$A$3:$A$351, 0), MATCH(Selection_Hide2!M$5, 'Full set Core Client Indicator'!$A$3:$AB$3, 0))), \"\")","v":""},{"$f":"IF(M109<>\"\", IF(INDEX('Full set Core Client Indicator'!$A$3:$AB$351, MATCH(Selection_Hide2!$A109, 'Full set Core Client Indicator'!$A$3:$A$351, 0), MATCH(Selection_Hide2!N$5, 'Full set Core Client Indicator'!$A$3:$AB$3, 0))=\"\", \"\",  INDEX('Full set Core Client Indicator'!$A$3:$AB$351, MATCH(Selection_Hide2!$A109, 'Full set Core Client Indicator'!$A$3:$A$351, 0), MATCH(Selection_Hide2!N$5, 'Full set Core Client Indicator'!$A$3:$AB$3, 0))), \"\")","v":""},{"$f":"IF(N109<>\"\", IF(INDEX('Full set Core Client Indicator'!$A$3:$AB$351, MATCH(Selection_Hide2!$A109, 'Full set Core Client Indicator'!$A$3:$A$351, 0), MATCH(Selection_Hide2!O$5, 'Full set Core Client Indicator'!$A$3:$AB$3, 0))=\"\", \"\",  INDEX('Full set Core Client Indicator'!$A$3:$AB$351, MATCH(Selection_Hide2!$A109, 'Full set Core Client Indicator'!$A$3:$A$351, 0), MATCH(Selection_Hide2!O$5, 'Full set Core Client Indicator'!$A$3:$AB$3, 0))), \"\")","v":""},{"$f":"IF(O109<>\"\", IF(INDEX('Full set Core Client Indicator'!$A$3:$AB$351, MATCH(Selection_Hide2!$A109, 'Full set Core Client Indicator'!$A$3:$A$351, 0), MATCH(Selection_Hide2!P$5, 'Full set Core Client Indicator'!$A$3:$AB$3, 0))=\"\", \"\",  INDEX('Full set Core Client Indicator'!$A$3:$AB$351, MATCH(Selection_Hide2!$A109, 'Full set Core Client Indicator'!$A$3:$A$351, 0), MATCH(Selection_Hide2!P$5, 'Full set Core Client Indicator'!$A$3:$AB$3, 0))), \"\")","v":""},{"$f":"IF(P109<>\"\", IF(INDEX('Full set Core Client Indicator'!$A$3:$AB$351, MATCH(Selection_Hide2!$A109, 'Full set Core Client Indicator'!$A$3:$A$351, 0), MATCH(Selection_Hide2!Q$5, 'Full set Core Client Indicator'!$A$3:$AB$3, 0))=\"\", \"\",  INDEX('Full set Core Client Indicator'!$A$3:$AB$351, MATCH(Selection_Hide2!$A109, 'Full set Core Client Indicator'!$A$3:$A$351, 0), MATCH(Selection_Hide2!Q$5, 'Full set Core Client Indicator'!$A$3:$AB$3, 0))), \"\")","v":""},{"$f":"IF(Q109<>\"\", IF(INDEX('Full set Core Client Indicator'!$A$3:$AB$351, MATCH(Selection_Hide2!$A109, 'Full set Core Client Indicator'!$A$3:$A$351, 0), MATCH(Selection_Hide2!R$5, 'Full set Core Client Indicator'!$A$3:$AB$3, 0))=\"\", \"\",  INDEX('Full set Core Client Indicator'!$A$3:$AB$351, MATCH(Selection_Hide2!$A109, 'Full set Core Client Indicator'!$A$3:$A$351, 0), MATCH(Selection_Hide2!R$5, 'Full set Core Client Indicator'!$A$3:$AB$3, 0))), \"\")","v":""},{"$f":"IF(R109<>\"\", IF(INDEX('Full set Core Client Indicator'!$A$3:$AB$351, MATCH(Selection_Hide2!$A109, 'Full set Core Client Indicator'!$A$3:$A$351, 0), MATCH(Selection_Hide2!S$5, 'Full set Core Client Indicator'!$A$3:$AB$3, 0))=\"\", \"\",  INDEX('Full set Core Client Indicator'!$A$3:$AB$351, MATCH(Selection_Hide2!$A109, 'Full set Core Client Indicator'!$A$3:$A$351, 0), MATCH(Selection_Hide2!S$5, 'Full set Core Client Indicator'!$A$3:$AB$3, 0))), \"\")","v":""},{"$f":"IF(S109<>\"\", IF(INDEX('Full set Core Client Indicator'!$A$3:$AB$351, MATCH(Selection_Hide2!$A109, 'Full set Core Client Indicator'!$A$3:$A$351, 0), MATCH(Selection_Hide2!T$5, 'Full set Core Client Indicator'!$A$3:$AB$3, 0))=\"\", \"\",  INDEX('Full set Core Client Indicator'!$A$3:$AB$351, MATCH(Selection_Hide2!$A109, 'Full set Core Client Indicator'!$A$3:$A$351, 0), MATCH(Selection_Hide2!T$5, 'Full set Core Client Indicator'!$A$3:$AB$3, 0))), \"\")","v":""},{"$f":"IF(T109<>\"\", IF(INDEX('Full set Core Client Indicator'!$A$3:$AB$351, MATCH(Selection_Hide2!$A109, 'Full set Core Client Indicator'!$A$3:$A$351, 0), MATCH(Selection_Hide2!U$5, 'Full set Core Client Indicator'!$A$3:$AB$3, 0))=\"\", \"\",  INDEX('Full set Core Client Indicator'!$A$3:$AB$351, MATCH(Selection_Hide2!$A109, 'Full set Core Client Indicator'!$A$3:$A$351, 0), MATCH(Selection_Hide2!U$5, 'Full set Core Client Indicator'!$A$3:$AB$3, 0))), \"\")","v":""},{"$f":"IF(U109<>\"\", IF(INDEX('Full set Core Client Indicator'!$A$3:$AB$351, MATCH(Selection_Hide2!$A109, 'Full set Core Client Indicator'!$A$3:$A$351, 0), MATCH(Selection_Hide2!V$5, 'Full set Core Client Indicator'!$A$3:$AB$3, 0))=\"\", \"\",  INDEX('Full set Core Client Indicator'!$A$3:$AB$351, MATCH(Selection_Hide2!$A109, 'Full set Core Client Indicator'!$A$3:$A$351, 0), MATCH(Selection_Hide2!V$5, 'Full set Core Client Indicator'!$A$3:$AB$3, 0))), \"\")","v":""},{"$f":"IF(V109<>\"\", IF(INDEX('Full set Core Client Indicator'!$A$3:$AB$351, MATCH(Selection_Hide2!$A109, 'Full set Core Client Indicator'!$A$3:$A$351, 0), MATCH(Selection_Hide2!W$5, 'Full set Core Client Indicator'!$A$3:$AB$3, 0))=\"\", \"\",  INDEX('Full set Core Client Indicator'!$A$3:$AB$351, MATCH(Selection_Hide2!$A109, 'Full set Core Client Indicator'!$A$3:$A$351, 0), MATCH(Selection_Hide2!W$5, 'Full set Core Client Indicator'!$A$3:$AB$3, 0))), \"\")","v":""},{"$f":"IF(W109<>\"\", IF(INDEX('Full set Core Client Indicator'!$A$3:$AB$351, MATCH(Selection_Hide2!$A109, 'Full set Core Client Indicator'!$A$3:$A$351, 0), MATCH(Selection_Hide2!X$5, 'Full set Core Client Indicator'!$A$3:$AB$3, 0))=\"\", \"\",  INDEX('Full set Core Client Indicator'!$A$3:$AB$351, MATCH(Selection_Hide2!$A109, 'Full set Core Client Indicator'!$A$3:$A$351, 0), MATCH(Selection_Hide2!X$5, 'Full set Core Client Indicator'!$A$3:$AB$3, 0))), \"\")","v":""},{"$f":"IF(X109<>\"\", IF(INDEX('Full set Core Client Indicator'!$A$3:$AB$351, MATCH(Selection_Hide2!$A109, 'Full set Core Client Indicator'!$A$3:$A$351, 0), MATCH(Selection_Hide2!Y$5, 'Full set Core Client Indicator'!$A$3:$AB$3, 0))=\"\", \"\",  INDEX('Full set Core Client Indicator'!$A$3:$AB$351, MATCH(Selection_Hide2!$A109, 'Full set Core Client Indicator'!$A$3:$A$351, 0), MATCH(Selection_Hide2!Y$5, 'Full set Core Client Indicator'!$A$3:$AB$3, 0))), \"\")","v":""},{"$f":"IF(Y109<>\"\", IF(INDEX('Full set Core Client Indicator'!$A$3:$AB$351, MATCH(Selection_Hide2!$A109, 'Full set Core Client Indicator'!$A$3:$A$351, 0), MATCH(Selection_Hide2!Z$5, 'Full set Core Client Indicator'!$A$3:$AB$3, 0))=\"\", \"\",  INDEX('Full set Core Client Indicator'!$A$3:$AB$351, MATCH(Selection_Hide2!$A109, 'Full set Core Client Indicator'!$A$3:$A$351, 0), MATCH(Selection_Hide2!Z$5, 'Full set Core Client Indicator'!$A$3:$AB$3, 0))), \"\")","v":""},{"$f":"IF(Z109<>\"\", IF(INDEX('Full set Core Client Indicator'!$A$3:$AB$351, MATCH(Selection_Hide2!$A109, 'Full set Core Client Indicator'!$A$3:$A$351, 0), MATCH(Selection_Hide2!AA$5, 'Full set Core Client Indicator'!$A$3:$AB$3, 0))=\"\", \"\",  INDEX('Full set Core Client Indicator'!$A$3:$AB$351, MATCH(Selection_Hide2!$A109, 'Full set Core Client Indicator'!$A$3:$A$351, 0), MATCH(Selection_Hide2!AA$5, 'Full set Core Client Indicator'!$A$3:$AB$3, 0))), \"\")","v":""},{"$f":"IF(AA109<>\"\", IF(INDEX('Full set Core Client Indicator'!$A$3:$AB$351, MATCH(Selection_Hide2!$A109, 'Full set Core Client Indicator'!$A$3:$A$351, 0), MATCH(Selection_Hide2!AB$5, 'Full set Core Client Indicator'!$A$3:$AB$3, 0))=\"\", \"\",  INDEX('Full set Core Client Indicator'!$A$3:$AB$351, MATCH(Selection_Hide2!$A109, 'Full set Core Client Indicator'!$A$3:$A$351, 0), MATCH(Selection_Hide2!AB$5, 'Full set Core Client Indicator'!$A$3:$AB$3, 0))), \"\")","v":""}]
[{"$f":"IF(AND(Selection_Hide1!C108<>0, Selection_Hide1!C108<>\"Grand Total\"), Selection_Hide1!C108, \"\")","v":""},{"$f":"IF(A110<>\"\", IF(INDEX('Full set Core Client Indicator'!$A$3:$AB$351, MATCH(Selection_Hide2!$A110, 'Full set Core Client Indicator'!$A$3:$A$351, 0), MATCH(Selection_Hide2!B$5, 'Full set Core Client Indicator'!$A$3:$AB$3, 0))=\"\", \"\",  INDEX('Full set Core Client Indicator'!$A$3:$AB$351, MATCH(Selection_Hide2!$A110, 'Full set Core Client Indicator'!$A$3:$A$351, 0), MATCH(Selection_Hide2!B$5, 'Full set Core Client Indicator'!$A$3:$AB$3, 0))), \"\")","v":""},{"$f":"IF(B110<>\"\", IF(INDEX('Full set Core Client Indicator'!$A$3:$AB$351, MATCH(Selection_Hide2!$A110, 'Full set Core Client Indicator'!$A$3:$A$351, 0), MATCH(Selection_Hide2!C$5, 'Full set Core Client Indicator'!$A$3:$AB$3, 0))=\"\", \"\",  INDEX('Full set Core Client Indicator'!$A$3:$AB$351, MATCH(Selection_Hide2!$A110, 'Full set Core Client Indicator'!$A$3:$A$351, 0), MATCH(Selection_Hide2!C$5, 'Full set Core Client Indicator'!$A$3:$AB$3, 0))), \"\")","v":""},{"$f":"IF(C110<>\"\", IF(INDEX('Full set Core Client Indicator'!$A$3:$AB$351, MATCH(Selection_Hide2!$A110, 'Full set Core Client Indicator'!$A$3:$A$351, 0), MATCH(Selection_Hide2!D$5, 'Full set Core Client Indicator'!$A$3:$AB$3, 0))=\"\", \"\",  INDEX('Full set Core Client Indicator'!$A$3:$AB$351, MATCH(Selection_Hide2!$A110, 'Full set Core Client Indicator'!$A$3:$A$351, 0), MATCH(Selection_Hide2!D$5, 'Full set Core Client Indicator'!$A$3:$AB$3, 0))), \"\")","v":""},{"$f":"IF(D110<>\"\", IF(INDEX('Full set Core Client Indicator'!$A$3:$AB$351, MATCH(Selection_Hide2!$A110, 'Full set Core Client Indicator'!$A$3:$A$351, 0), MATCH(Selection_Hide2!E$5, 'Full set Core Client Indicator'!$A$3:$AB$3, 0))=\"\", \"\",  INDEX('Full set Core Client Indicator'!$A$3:$AB$351, MATCH(Selection_Hide2!$A110, 'Full set Core Client Indicator'!$A$3:$A$351, 0), MATCH(Selection_Hide2!E$5, 'Full set Core Client Indicator'!$A$3:$AB$3, 0))), \"\")","v":""},{"$f":"IF(E110<>\"\", IF(INDEX('Full set Core Client Indicator'!$A$3:$AB$351, MATCH(Selection_Hide2!$A110, 'Full set Core Client Indicator'!$A$3:$A$351, 0), MATCH(Selection_Hide2!F$5, 'Full set Core Client Indicator'!$A$3:$AB$3, 0))=\"\", \"\",  INDEX('Full set Core Client Indicator'!$A$3:$AB$351, MATCH(Selection_Hide2!$A110, 'Full set Core Client Indicator'!$A$3:$A$351, 0), MATCH(Selection_Hide2!F$5, 'Full set Core Client Indicator'!$A$3:$AB$3, 0))), \"\")","v":""},{"$f":"IF(F110<>\"\", IF(INDEX('Full set Core Client Indicator'!$A$3:$AB$351, MATCH(Selection_Hide2!$A110, 'Full set Core Client Indicator'!$A$3:$A$351, 0), MATCH(Selection_Hide2!G$5, 'Full set Core Client Indicator'!$A$3:$AB$3, 0))=\"\", \"\",  INDEX('Full set Core Client Indicator'!$A$3:$AB$351, MATCH(Selection_Hide2!$A110, 'Full set Core Client Indicator'!$A$3:$A$351, 0), MATCH(Selection_Hide2!G$5, 'Full set Core Client Indicator'!$A$3:$AB$3, 0))), \"\")","v":""},{"$f":"IF(G110<>\"\", IF(INDEX('Full set Core Client Indicator'!$A$3:$AB$351, MATCH(Selection_Hide2!$A110, 'Full set Core Client Indicator'!$A$3:$A$351, 0), MATCH(Selection_Hide2!H$5, 'Full set Core Client Indicator'!$A$3:$AB$3, 0))=\"\", \"\",  INDEX('Full set Core Client Indicator'!$A$3:$AB$351, MATCH(Selection_Hide2!$A110, 'Full set Core Client Indicator'!$A$3:$A$351, 0), MATCH(Selection_Hide2!H$5, 'Full set Core Client Indicator'!$A$3:$AB$3, 0))), \"\")","v":""},{"$f":"IF(H110<>\"\", IF(INDEX('Full set Core Client Indicator'!$A$3:$AB$351, MATCH(Selection_Hide2!$A110, 'Full set Core Client Indicator'!$A$3:$A$351, 0), MATCH(Selection_Hide2!I$5, 'Full set Core Client Indicator'!$A$3:$AB$3, 0))=\"\", \"\",  INDEX('Full set Core Client Indicator'!$A$3:$AB$351, MATCH(Selection_Hide2!$A110, 'Full set Core Client Indicator'!$A$3:$A$351, 0), MATCH(Selection_Hide2!I$5, 'Full set Core Client Indicator'!$A$3:$AB$3, 0))), \"\")","v":""},{"$f":"IF(I110<>\"\", IF(INDEX('Full set Core Client Indicator'!$A$3:$AB$351, MATCH(Selection_Hide2!$A110, 'Full set Core Client Indicator'!$A$3:$A$351, 0), MATCH(Selection_Hide2!J$5, 'Full set Core Client Indicator'!$A$3:$AB$3, 0))=\"\", \"\",  INDEX('Full set Core Client Indicator'!$A$3:$AB$351, MATCH(Selection_Hide2!$A110, 'Full set Core Client Indicator'!$A$3:$A$351, 0), MATCH(Selection_Hide2!J$5, 'Full set Core Client Indicator'!$A$3:$AB$3, 0))), \"\")","v":""},{"$f":"IF(J110<>\"\", IF(INDEX('Full set Core Client Indicator'!$A$3:$AB$351, MATCH(Selection_Hide2!$A110, 'Full set Core Client Indicator'!$A$3:$A$351, 0), MATCH(Selection_Hide2!K$5, 'Full set Core Client Indicator'!$A$3:$AB$3, 0))=\"\", \"\",  INDEX('Full set Core Client Indicator'!$A$3:$AB$351, MATCH(Selection_Hide2!$A110, 'Full set Core Client Indicator'!$A$3:$A$351, 0), MATCH(Selection_Hide2!K$5, 'Full set Core Client Indicator'!$A$3:$AB$3, 0))), \"\")","v":""},{"$f":"IF(K110<>\"\", IF(INDEX('Full set Core Client Indicator'!$A$3:$AB$351, MATCH(Selection_Hide2!$A110, 'Full set Core Client Indicator'!$A$3:$A$351, 0), MATCH(Selection_Hide2!L$5, 'Full set Core Client Indicator'!$A$3:$AB$3, 0))=\"\", \"\",  INDEX('Full set Core Client Indicator'!$A$3:$AB$351, MATCH(Selection_Hide2!$A110, 'Full set Core Client Indicator'!$A$3:$A$351, 0), MATCH(Selection_Hide2!L$5, 'Full set Core Client Indicator'!$A$3:$AB$3, 0))), \"\")","v":""},{"$f":"IF(L110<>\"\", IF(INDEX('Full set Core Client Indicator'!$A$3:$AB$351, MATCH(Selection_Hide2!$A110, 'Full set Core Client Indicator'!$A$3:$A$351, 0), MATCH(Selection_Hide2!M$5, 'Full set Core Client Indicator'!$A$3:$AB$3, 0))=\"\", \"\",  INDEX('Full set Core Client Indicator'!$A$3:$AB$351, MATCH(Selection_Hide2!$A110, 'Full set Core Client Indicator'!$A$3:$A$351, 0), MATCH(Selection_Hide2!M$5, 'Full set Core Client Indicator'!$A$3:$AB$3, 0))), \"\")","v":""},{"$f":"IF(M110<>\"\", IF(INDEX('Full set Core Client Indicator'!$A$3:$AB$351, MATCH(Selection_Hide2!$A110, 'Full set Core Client Indicator'!$A$3:$A$351, 0), MATCH(Selection_Hide2!N$5, 'Full set Core Client Indicator'!$A$3:$AB$3, 0))=\"\", \"\",  INDEX('Full set Core Client Indicator'!$A$3:$AB$351, MATCH(Selection_Hide2!$A110, 'Full set Core Client Indicator'!$A$3:$A$351, 0), MATCH(Selection_Hide2!N$5, 'Full set Core Client Indicator'!$A$3:$AB$3, 0))), \"\")","v":""},{"$f":"IF(N110<>\"\", IF(INDEX('Full set Core Client Indicator'!$A$3:$AB$351, MATCH(Selection_Hide2!$A110, 'Full set Core Client Indicator'!$A$3:$A$351, 0), MATCH(Selection_Hide2!O$5, 'Full set Core Client Indicator'!$A$3:$AB$3, 0))=\"\", \"\",  INDEX('Full set Core Client Indicator'!$A$3:$AB$351, MATCH(Selection_Hide2!$A110, 'Full set Core Client Indicator'!$A$3:$A$351, 0), MATCH(Selection_Hide2!O$5, 'Full set Core Client Indicator'!$A$3:$AB$3, 0))), \"\")","v":""},{"$f":"IF(O110<>\"\", IF(INDEX('Full set Core Client Indicator'!$A$3:$AB$351, MATCH(Selection_Hide2!$A110, 'Full set Core Client Indicator'!$A$3:$A$351, 0), MATCH(Selection_Hide2!P$5, 'Full set Core Client Indicator'!$A$3:$AB$3, 0))=\"\", \"\",  INDEX('Full set Core Client Indicator'!$A$3:$AB$351, MATCH(Selection_Hide2!$A110, 'Full set Core Client Indicator'!$A$3:$A$351, 0), MATCH(Selection_Hide2!P$5, 'Full set Core Client Indicator'!$A$3:$AB$3, 0))), \"\")","v":""},{"$f":"IF(P110<>\"\", IF(INDEX('Full set Core Client Indicator'!$A$3:$AB$351, MATCH(Selection_Hide2!$A110, 'Full set Core Client Indicator'!$A$3:$A$351, 0), MATCH(Selection_Hide2!Q$5, 'Full set Core Client Indicator'!$A$3:$AB$3, 0))=\"\", \"\",  INDEX('Full set Core Client Indicator'!$A$3:$AB$351, MATCH(Selection_Hide2!$A110, 'Full set Core Client Indicator'!$A$3:$A$351, 0), MATCH(Selection_Hide2!Q$5, 'Full set Core Client Indicator'!$A$3:$AB$3, 0))), \"\")","v":""},{"$f":"IF(Q110<>\"\", IF(INDEX('Full set Core Client Indicator'!$A$3:$AB$351, MATCH(Selection_Hide2!$A110, 'Full set Core Client Indicator'!$A$3:$A$351, 0), MATCH(Selection_Hide2!R$5, 'Full set Core Client Indicator'!$A$3:$AB$3, 0))=\"\", \"\",  INDEX('Full set Core Client Indicator'!$A$3:$AB$351, MATCH(Selection_Hide2!$A110, 'Full set Core Client Indicator'!$A$3:$A$351, 0), MATCH(Selection_Hide2!R$5, 'Full set Core Client Indicator'!$A$3:$AB$3, 0))), \"\")","v":""},{"$f":"IF(R110<>\"\", IF(INDEX('Full set Core Client Indicator'!$A$3:$AB$351, MATCH(Selection_Hide2!$A110, 'Full set Core Client Indicator'!$A$3:$A$351, 0), MATCH(Selection_Hide2!S$5, 'Full set Core Client Indicator'!$A$3:$AB$3, 0))=\"\", \"\",  INDEX('Full set Core Client Indicator'!$A$3:$AB$351, MATCH(Selection_Hide2!$A110, 'Full set Core Client Indicator'!$A$3:$A$351, 0), MATCH(Selection_Hide2!S$5, 'Full set Core Client Indicator'!$A$3:$AB$3, 0))), \"\")","v":""},{"$f":"IF(S110<>\"\", IF(INDEX('Full set Core Client Indicator'!$A$3:$AB$351, MATCH(Selection_Hide2!$A110, 'Full set Core Client Indicator'!$A$3:$A$351, 0), MATCH(Selection_Hide2!T$5, 'Full set Core Client Indicator'!$A$3:$AB$3, 0))=\"\", \"\",  INDEX('Full set Core Client Indicator'!$A$3:$AB$351, MATCH(Selection_Hide2!$A110, 'Full set Core Client Indicator'!$A$3:$A$351, 0), MATCH(Selection_Hide2!T$5, 'Full set Core Client Indicator'!$A$3:$AB$3, 0))), \"\")","v":""},{"$f":"IF(T110<>\"\", IF(INDEX('Full set Core Client Indicator'!$A$3:$AB$351, MATCH(Selection_Hide2!$A110, 'Full set Core Client Indicator'!$A$3:$A$351, 0), MATCH(Selection_Hide2!U$5, 'Full set Core Client Indicator'!$A$3:$AB$3, 0))=\"\", \"\",  INDEX('Full set Core Client Indicator'!$A$3:$AB$351, MATCH(Selection_Hide2!$A110, 'Full set Core Client Indicator'!$A$3:$A$351, 0), MATCH(Selection_Hide2!U$5, 'Full set Core Client Indicator'!$A$3:$AB$3, 0))), \"\")","v":""},{"$f":"IF(U110<>\"\", IF(INDEX('Full set Core Client Indicator'!$A$3:$AB$351, MATCH(Selection_Hide2!$A110, 'Full set Core Client Indicator'!$A$3:$A$351, 0), MATCH(Selection_Hide2!V$5, 'Full set Core Client Indicator'!$A$3:$AB$3, 0))=\"\", \"\",  INDEX('Full set Core Client Indicator'!$A$3:$AB$351, MATCH(Selection_Hide2!$A110, 'Full set Core Client Indicator'!$A$3:$A$351, 0), MATCH(Selection_Hide2!V$5, 'Full set Core Client Indicator'!$A$3:$AB$3, 0))), \"\")","v":""},{"$f":"IF(V110<>\"\", IF(INDEX('Full set Core Client Indicator'!$A$3:$AB$351, MATCH(Selection_Hide2!$A110, 'Full set Core Client Indicator'!$A$3:$A$351, 0), MATCH(Selection_Hide2!W$5, 'Full set Core Client Indicator'!$A$3:$AB$3, 0))=\"\", \"\",  INDEX('Full set Core Client Indicator'!$A$3:$AB$351, MATCH(Selection_Hide2!$A110, 'Full set Core Client Indicator'!$A$3:$A$351, 0), MATCH(Selection_Hide2!W$5, 'Full set Core Client Indicator'!$A$3:$AB$3, 0))), \"\")","v":""},{"$f":"IF(W110<>\"\", IF(INDEX('Full set Core Client Indicator'!$A$3:$AB$351, MATCH(Selection_Hide2!$A110, 'Full set Core Client Indicator'!$A$3:$A$351, 0), MATCH(Selection_Hide2!X$5, 'Full set Core Client Indicator'!$A$3:$AB$3, 0))=\"\", \"\",  INDEX('Full set Core Client Indicator'!$A$3:$AB$351, MATCH(Selection_Hide2!$A110, 'Full set Core Client Indicator'!$A$3:$A$351, 0), MATCH(Selection_Hide2!X$5, 'Full set Core Client Indicator'!$A$3:$AB$3, 0))), \"\")","v":""},{"$f":"IF(X110<>\"\", IF(INDEX('Full set Core Client Indicator'!$A$3:$AB$351, MATCH(Selection_Hide2!$A110, 'Full set Core Client Indicator'!$A$3:$A$351, 0), MATCH(Selection_Hide2!Y$5, 'Full set Core Client Indicator'!$A$3:$AB$3, 0))=\"\", \"\",  INDEX('Full set Core Client Indicator'!$A$3:$AB$351, MATCH(Selection_Hide2!$A110, 'Full set Core Client Indicator'!$A$3:$A$351, 0), MATCH(Selection_Hide2!Y$5, 'Full set Core Client Indicator'!$A$3:$AB$3, 0))), \"\")","v":""},{"$f":"IF(Y110<>\"\", IF(INDEX('Full set Core Client Indicator'!$A$3:$AB$351, MATCH(Selection_Hide2!$A110, 'Full set Core Client Indicator'!$A$3:$A$351, 0), MATCH(Selection_Hide2!Z$5, 'Full set Core Client Indicator'!$A$3:$AB$3, 0))=\"\", \"\",  INDEX('Full set Core Client Indicator'!$A$3:$AB$351, MATCH(Selection_Hide2!$A110, 'Full set Core Client Indicator'!$A$3:$A$351, 0), MATCH(Selection_Hide2!Z$5, 'Full set Core Client Indicator'!$A$3:$AB$3, 0))), \"\")","v":""},{"$f":"IF(Z110<>\"\", IF(INDEX('Full set Core Client Indicator'!$A$3:$AB$351, MATCH(Selection_Hide2!$A110, 'Full set Core Client Indicator'!$A$3:$A$351, 0), MATCH(Selection_Hide2!AA$5, 'Full set Core Client Indicator'!$A$3:$AB$3, 0))=\"\", \"\",  INDEX('Full set Core Client Indicator'!$A$3:$AB$351, MATCH(Selection_Hide2!$A110, 'Full set Core Client Indicator'!$A$3:$A$351, 0), MATCH(Selection_Hide2!AA$5, 'Full set Core Client Indicator'!$A$3:$AB$3, 0))), \"\")","v":""},{"$f":"IF(AA110<>\"\", IF(INDEX('Full set Core Client Indicator'!$A$3:$AB$351, MATCH(Selection_Hide2!$A110, 'Full set Core Client Indicator'!$A$3:$A$351, 0), MATCH(Selection_Hide2!AB$5, 'Full set Core Client Indicator'!$A$3:$AB$3, 0))=\"\", \"\",  INDEX('Full set Core Client Indicator'!$A$3:$AB$351, MATCH(Selection_Hide2!$A110, 'Full set Core Client Indicator'!$A$3:$A$351, 0), MATCH(Selection_Hide2!AB$5, 'Full set Core Client Indicator'!$A$3:$AB$3, 0))), \"\")","v":""}]
[{"$f":"IF(AND(Selection_Hide1!C109<>0, Selection_Hide1!C109<>\"Grand Total\"), Selection_Hide1!C109, \"\")","v":""},{"$f":"IF(A111<>\"\", IF(INDEX('Full set Core Client Indicator'!$A$3:$AB$351, MATCH(Selection_Hide2!$A111, 'Full set Core Client Indicator'!$A$3:$A$351, 0), MATCH(Selection_Hide2!B$5, 'Full set Core Client Indicator'!$A$3:$AB$3, 0))=\"\", \"\",  INDEX('Full set Core Client Indicator'!$A$3:$AB$351, MATCH(Selection_Hide2!$A111, 'Full set Core Client Indicator'!$A$3:$A$351, 0), MATCH(Selection_Hide2!B$5, 'Full set Core Client Indicator'!$A$3:$AB$3, 0))), \"\")","v":""},{"$f":"IF(B111<>\"\", IF(INDEX('Full set Core Client Indicator'!$A$3:$AB$351, MATCH(Selection_Hide2!$A111, 'Full set Core Client Indicator'!$A$3:$A$351, 0), MATCH(Selection_Hide2!C$5, 'Full set Core Client Indicator'!$A$3:$AB$3, 0))=\"\", \"\",  INDEX('Full set Core Client Indicator'!$A$3:$AB$351, MATCH(Selection_Hide2!$A111, 'Full set Core Client Indicator'!$A$3:$A$351, 0), MATCH(Selection_Hide2!C$5, 'Full set Core Client Indicator'!$A$3:$AB$3, 0))), \"\")","v":""},{"$f":"IF(C111<>\"\", IF(INDEX('Full set Core Client Indicator'!$A$3:$AB$351, MATCH(Selection_Hide2!$A111, 'Full set Core Client Indicator'!$A$3:$A$351, 0), MATCH(Selection_Hide2!D$5, 'Full set Core Client Indicator'!$A$3:$AB$3, 0))=\"\", \"\",  INDEX('Full set Core Client Indicator'!$A$3:$AB$351, MATCH(Selection_Hide2!$A111, 'Full set Core Client Indicator'!$A$3:$A$351, 0), MATCH(Selection_Hide2!D$5, 'Full set Core Client Indicator'!$A$3:$AB$3, 0))), \"\")","v":""},{"$f":"IF(D111<>\"\", IF(INDEX('Full set Core Client Indicator'!$A$3:$AB$351, MATCH(Selection_Hide2!$A111, 'Full set Core Client Indicator'!$A$3:$A$351, 0), MATCH(Selection_Hide2!E$5, 'Full set Core Client Indicator'!$A$3:$AB$3, 0))=\"\", \"\",  INDEX('Full set Core Client Indicator'!$A$3:$AB$351, MATCH(Selection_Hide2!$A111, 'Full set Core Client Indicator'!$A$3:$A$351, 0), MATCH(Selection_Hide2!E$5, 'Full set Core Client Indicator'!$A$3:$AB$3, 0))), \"\")","v":""},{"$f":"IF(E111<>\"\", IF(INDEX('Full set Core Client Indicator'!$A$3:$AB$351, MATCH(Selection_Hide2!$A111, 'Full set Core Client Indicator'!$A$3:$A$351, 0), MATCH(Selection_Hide2!F$5, 'Full set Core Client Indicator'!$A$3:$AB$3, 0))=\"\", \"\",  INDEX('Full set Core Client Indicator'!$A$3:$AB$351, MATCH(Selection_Hide2!$A111, 'Full set Core Client Indicator'!$A$3:$A$351, 0), MATCH(Selection_Hide2!F$5, 'Full set Core Client Indicator'!$A$3:$AB$3, 0))), \"\")","v":""},{"$f":"IF(F111<>\"\", IF(INDEX('Full set Core Client Indicator'!$A$3:$AB$351, MATCH(Selection_Hide2!$A111, 'Full set Core Client Indicator'!$A$3:$A$351, 0), MATCH(Selection_Hide2!G$5, 'Full set Core Client Indicator'!$A$3:$AB$3, 0))=\"\", \"\",  INDEX('Full set Core Client Indicator'!$A$3:$AB$351, MATCH(Selection_Hide2!$A111, 'Full set Core Client Indicator'!$A$3:$A$351, 0), MATCH(Selection_Hide2!G$5, 'Full set Core Client Indicator'!$A$3:$AB$3, 0))), \"\")","v":""},{"$f":"IF(G111<>\"\", IF(INDEX('Full set Core Client Indicator'!$A$3:$AB$351, MATCH(Selection_Hide2!$A111, 'Full set Core Client Indicator'!$A$3:$A$351, 0), MATCH(Selection_Hide2!H$5, 'Full set Core Client Indicator'!$A$3:$AB$3, 0))=\"\", \"\",  INDEX('Full set Core Client Indicator'!$A$3:$AB$351, MATCH(Selection_Hide2!$A111, 'Full set Core Client Indicator'!$A$3:$A$351, 0), MATCH(Selection_Hide2!H$5, 'Full set Core Client Indicator'!$A$3:$AB$3, 0))), \"\")","v":""},{"$f":"IF(H111<>\"\", IF(INDEX('Full set Core Client Indicator'!$A$3:$AB$351, MATCH(Selection_Hide2!$A111, 'Full set Core Client Indicator'!$A$3:$A$351, 0), MATCH(Selection_Hide2!I$5, 'Full set Core Client Indicator'!$A$3:$AB$3, 0))=\"\", \"\",  INDEX('Full set Core Client Indicator'!$A$3:$AB$351, MATCH(Selection_Hide2!$A111, 'Full set Core Client Indicator'!$A$3:$A$351, 0), MATCH(Selection_Hide2!I$5, 'Full set Core Client Indicator'!$A$3:$AB$3, 0))), \"\")","v":""},{"$f":"IF(I111<>\"\", IF(INDEX('Full set Core Client Indicator'!$A$3:$AB$351, MATCH(Selection_Hide2!$A111, 'Full set Core Client Indicator'!$A$3:$A$351, 0), MATCH(Selection_Hide2!J$5, 'Full set Core Client Indicator'!$A$3:$AB$3, 0))=\"\", \"\",  INDEX('Full set Core Client Indicator'!$A$3:$AB$351, MATCH(Selection_Hide2!$A111, 'Full set Core Client Indicator'!$A$3:$A$351, 0), MATCH(Selection_Hide2!J$5, 'Full set Core Client Indicator'!$A$3:$AB$3, 0))), \"\")","v":""},{"$f":"IF(J111<>\"\", IF(INDEX('Full set Core Client Indicator'!$A$3:$AB$351, MATCH(Selection_Hide2!$A111, 'Full set Core Client Indicator'!$A$3:$A$351, 0), MATCH(Selection_Hide2!K$5, 'Full set Core Client Indicator'!$A$3:$AB$3, 0))=\"\", \"\",  INDEX('Full set Core Client Indicator'!$A$3:$AB$351, MATCH(Selection_Hide2!$A111, 'Full set Core Client Indicator'!$A$3:$A$351, 0), MATCH(Selection_Hide2!K$5, 'Full set Core Client Indicator'!$A$3:$AB$3, 0))), \"\")","v":""},{"$f":"IF(K111<>\"\", IF(INDEX('Full set Core Client Indicator'!$A$3:$AB$351, MATCH(Selection_Hide2!$A111, 'Full set Core Client Indicator'!$A$3:$A$351, 0), MATCH(Selection_Hide2!L$5, 'Full set Core Client Indicator'!$A$3:$AB$3, 0))=\"\", \"\",  INDEX('Full set Core Client Indicator'!$A$3:$AB$351, MATCH(Selection_Hide2!$A111, 'Full set Core Client Indicator'!$A$3:$A$351, 0), MATCH(Selection_Hide2!L$5, 'Full set Core Client Indicator'!$A$3:$AB$3, 0))), \"\")","v":""},{"$f":"IF(L111<>\"\", IF(INDEX('Full set Core Client Indicator'!$A$3:$AB$351, MATCH(Selection_Hide2!$A111, 'Full set Core Client Indicator'!$A$3:$A$351, 0), MATCH(Selection_Hide2!M$5, 'Full set Core Client Indicator'!$A$3:$AB$3, 0))=\"\", \"\",  INDEX('Full set Core Client Indicator'!$A$3:$AB$351, MATCH(Selection_Hide2!$A111, 'Full set Core Client Indicator'!$A$3:$A$351, 0), MATCH(Selection_Hide2!M$5, 'Full set Core Client Indicator'!$A$3:$AB$3, 0))), \"\")","v":""},{"$f":"IF(M111<>\"\", IF(INDEX('Full set Core Client Indicator'!$A$3:$AB$351, MATCH(Selection_Hide2!$A111, 'Full set Core Client Indicator'!$A$3:$A$351, 0), MATCH(Selection_Hide2!N$5, 'Full set Core Client Indicator'!$A$3:$AB$3, 0))=\"\", \"\",  INDEX('Full set Core Client Indicator'!$A$3:$AB$351, MATCH(Selection_Hide2!$A111, 'Full set Core Client Indicator'!$A$3:$A$351, 0), MATCH(Selection_Hide2!N$5, 'Full set Core Client Indicator'!$A$3:$AB$3, 0))), \"\")","v":""},{"$f":"IF(N111<>\"\", IF(INDEX('Full set Core Client Indicator'!$A$3:$AB$351, MATCH(Selection_Hide2!$A111, 'Full set Core Client Indicator'!$A$3:$A$351, 0), MATCH(Selection_Hide2!O$5, 'Full set Core Client Indicator'!$A$3:$AB$3, 0))=\"\", \"\",  INDEX('Full set Core Client Indicator'!$A$3:$AB$351, MATCH(Selection_Hide2!$A111, 'Full set Core Client Indicator'!$A$3:$A$351, 0), MATCH(Selection_Hide2!O$5, 'Full set Core Client Indicator'!$A$3:$AB$3, 0))), \"\")","v":""},{"$f":"IF(O111<>\"\", IF(INDEX('Full set Core Client Indicator'!$A$3:$AB$351, MATCH(Selection_Hide2!$A111, 'Full set Core Client Indicator'!$A$3:$A$351, 0), MATCH(Selection_Hide2!P$5, 'Full set Core Client Indicator'!$A$3:$AB$3, 0))=\"\", \"\",  INDEX('Full set Core Client Indicator'!$A$3:$AB$351, MATCH(Selection_Hide2!$A111, 'Full set Core Client Indicator'!$A$3:$A$351, 0), MATCH(Selection_Hide2!P$5, 'Full set Core Client Indicator'!$A$3:$AB$3, 0))), \"\")","v":""},{"$f":"IF(P111<>\"\", IF(INDEX('Full set Core Client Indicator'!$A$3:$AB$351, MATCH(Selection_Hide2!$A111, 'Full set Core Client Indicator'!$A$3:$A$351, 0), MATCH(Selection_Hide2!Q$5, 'Full set Core Client Indicator'!$A$3:$AB$3, 0))=\"\", \"\",  INDEX('Full set Core Client Indicator'!$A$3:$AB$351, MATCH(Selection_Hide2!$A111, 'Full set Core Client Indicator'!$A$3:$A$351, 0), MATCH(Selection_Hide2!Q$5, 'Full set Core Client Indicator'!$A$3:$AB$3, 0))), \"\")","v":""},{"$f":"IF(Q111<>\"\", IF(INDEX('Full set Core Client Indicator'!$A$3:$AB$351, MATCH(Selection_Hide2!$A111, 'Full set Core Client Indicator'!$A$3:$A$351, 0), MATCH(Selection_Hide2!R$5, 'Full set Core Client Indicator'!$A$3:$AB$3, 0))=\"\", \"\",  INDEX('Full set Core Client Indicator'!$A$3:$AB$351, MATCH(Selection_Hide2!$A111, 'Full set Core Client Indicator'!$A$3:$A$351, 0), MATCH(Selection_Hide2!R$5, 'Full set Core Client Indicator'!$A$3:$AB$3, 0))), \"\")","v":""},{"$f":"IF(R111<>\"\", IF(INDEX('Full set Core Client Indicator'!$A$3:$AB$351, MATCH(Selection_Hide2!$A111, 'Full set Core Client Indicator'!$A$3:$A$351, 0), MATCH(Selection_Hide2!S$5, 'Full set Core Client Indicator'!$A$3:$AB$3, 0))=\"\", \"\",  INDEX('Full set Core Client Indicator'!$A$3:$AB$351, MATCH(Selection_Hide2!$A111, 'Full set Core Client Indicator'!$A$3:$A$351, 0), MATCH(Selection_Hide2!S$5, 'Full set Core Client Indicator'!$A$3:$AB$3, 0))), \"\")","v":""},{"$f":"IF(S111<>\"\", IF(INDEX('Full set Core Client Indicator'!$A$3:$AB$351, MATCH(Selection_Hide2!$A111, 'Full set Core Client Indicator'!$A$3:$A$351, 0), MATCH(Selection_Hide2!T$5, 'Full set Core Client Indicator'!$A$3:$AB$3, 0))=\"\", \"\",  INDEX('Full set Core Client Indicator'!$A$3:$AB$351, MATCH(Selection_Hide2!$A111, 'Full set Core Client Indicator'!$A$3:$A$351, 0), MATCH(Selection_Hide2!T$5, 'Full set Core Client Indicator'!$A$3:$AB$3, 0))), \"\")","v":""},{"$f":"IF(T111<>\"\", IF(INDEX('Full set Core Client Indicator'!$A$3:$AB$351, MATCH(Selection_Hide2!$A111, 'Full set Core Client Indicator'!$A$3:$A$351, 0), MATCH(Selection_Hide2!U$5, 'Full set Core Client Indicator'!$A$3:$AB$3, 0))=\"\", \"\",  INDEX('Full set Core Client Indicator'!$A$3:$AB$351, MATCH(Selection_Hide2!$A111, 'Full set Core Client Indicator'!$A$3:$A$351, 0), MATCH(Selection_Hide2!U$5, 'Full set Core Client Indicator'!$A$3:$AB$3, 0))), \"\")","v":""},{"$f":"IF(U111<>\"\", IF(INDEX('Full set Core Client Indicator'!$A$3:$AB$351, MATCH(Selection_Hide2!$A111, 'Full set Core Client Indicator'!$A$3:$A$351, 0), MATCH(Selection_Hide2!V$5, 'Full set Core Client Indicator'!$A$3:$AB$3, 0))=\"\", \"\",  INDEX('Full set Core Client Indicator'!$A$3:$AB$351, MATCH(Selection_Hide2!$A111, 'Full set Core Client Indicator'!$A$3:$A$351, 0), MATCH(Selection_Hide2!V$5, 'Full set Core Client Indicator'!$A$3:$AB$3, 0))), \"\")","v":""},{"$f":"IF(V111<>\"\", IF(INDEX('Full set Core Client Indicator'!$A$3:$AB$351, MATCH(Selection_Hide2!$A111, 'Full set Core Client Indicator'!$A$3:$A$351, 0), MATCH(Selection_Hide2!W$5, 'Full set Core Client Indicator'!$A$3:$AB$3, 0))=\"\", \"\",  INDEX('Full set Core Client Indicator'!$A$3:$AB$351, MATCH(Selection_Hide2!$A111, 'Full set Core Client Indicator'!$A$3:$A$351, 0), MATCH(Selection_Hide2!W$5, 'Full set Core Client Indicator'!$A$3:$AB$3, 0))), \"\")","v":""},{"$f":"IF(W111<>\"\", IF(INDEX('Full set Core Client Indicator'!$A$3:$AB$351, MATCH(Selection_Hide2!$A111, 'Full set Core Client Indicator'!$A$3:$A$351, 0), MATCH(Selection_Hide2!X$5, 'Full set Core Client Indicator'!$A$3:$AB$3, 0))=\"\", \"\",  INDEX('Full set Core Client Indicator'!$A$3:$AB$351, MATCH(Selection_Hide2!$A111, 'Full set Core Client Indicator'!$A$3:$A$351, 0), MATCH(Selection_Hide2!X$5, 'Full set Core Client Indicator'!$A$3:$AB$3, 0))), \"\")","v":""},{"$f":"IF(X111<>\"\", IF(INDEX('Full set Core Client Indicator'!$A$3:$AB$351, MATCH(Selection_Hide2!$A111, 'Full set Core Client Indicator'!$A$3:$A$351, 0), MATCH(Selection_Hide2!Y$5, 'Full set Core Client Indicator'!$A$3:$AB$3, 0))=\"\", \"\",  INDEX('Full set Core Client Indicator'!$A$3:$AB$351, MATCH(Selection_Hide2!$A111, 'Full set Core Client Indicator'!$A$3:$A$351, 0), MATCH(Selection_Hide2!Y$5, 'Full set Core Client Indicator'!$A$3:$AB$3, 0))), \"\")","v":""},{"$f":"IF(Y111<>\"\", IF(INDEX('Full set Core Client Indicator'!$A$3:$AB$351, MATCH(Selection_Hide2!$A111, 'Full set Core Client Indicator'!$A$3:$A$351, 0), MATCH(Selection_Hide2!Z$5, 'Full set Core Client Indicator'!$A$3:$AB$3, 0))=\"\", \"\",  INDEX('Full set Core Client Indicator'!$A$3:$AB$351, MATCH(Selection_Hide2!$A111, 'Full set Core Client Indicator'!$A$3:$A$351, 0), MATCH(Selection_Hide2!Z$5, 'Full set Core Client Indicator'!$A$3:$AB$3, 0))), \"\")","v":""},{"$f":"IF(Z111<>\"\", IF(INDEX('Full set Core Client Indicator'!$A$3:$AB$351, MATCH(Selection_Hide2!$A111, 'Full set Core Client Indicator'!$A$3:$A$351, 0), MATCH(Selection_Hide2!AA$5, 'Full set Core Client Indicator'!$A$3:$AB$3, 0))=\"\", \"\",  INDEX('Full set Core Client Indicator'!$A$3:$AB$351, MATCH(Selection_Hide2!$A111, 'Full set Core Client Indicator'!$A$3:$A$351, 0), MATCH(Selection_Hide2!AA$5, 'Full set Core Client Indicator'!$A$3:$AB$3, 0))), \"\")","v":""},{"$f":"IF(AA111<>\"\", IF(INDEX('Full set Core Client Indicator'!$A$3:$AB$351, MATCH(Selection_Hide2!$A111, 'Full set Core Client Indicator'!$A$3:$A$351, 0), MATCH(Selection_Hide2!AB$5, 'Full set Core Client Indicator'!$A$3:$AB$3, 0))=\"\", \"\",  INDEX('Full set Core Client Indicator'!$A$3:$AB$351, MATCH(Selection_Hide2!$A111, 'Full set Core Client Indicator'!$A$3:$A$351, 0), MATCH(Selection_Hide2!AB$5, 'Full set Core Client Indicator'!$A$3:$AB$3, 0))), \"\")","v":""}]
[{"$f":"IF(AND(Selection_Hide1!C110<>0, Selection_Hide1!C110<>\"Grand Total\"), Selection_Hide1!C110, \"\")","v":""},{"$f":"IF(A112<>\"\", IF(INDEX('Full set Core Client Indicator'!$A$3:$AB$351, MATCH(Selection_Hide2!$A112, 'Full set Core Client Indicator'!$A$3:$A$351, 0), MATCH(Selection_Hide2!B$5, 'Full set Core Client Indicator'!$A$3:$AB$3, 0))=\"\", \"\",  INDEX('Full set Core Client Indicator'!$A$3:$AB$351, MATCH(Selection_Hide2!$A112, 'Full set Core Client Indicator'!$A$3:$A$351, 0), MATCH(Selection_Hide2!B$5, 'Full set Core Client Indicator'!$A$3:$AB$3, 0))), \"\")","v":""},{"$f":"IF(B112<>\"\", IF(INDEX('Full set Core Client Indicator'!$A$3:$AB$351, MATCH(Selection_Hide2!$A112, 'Full set Core Client Indicator'!$A$3:$A$351, 0), MATCH(Selection_Hide2!C$5, 'Full set Core Client Indicator'!$A$3:$AB$3, 0))=\"\", \"\",  INDEX('Full set Core Client Indicator'!$A$3:$AB$351, MATCH(Selection_Hide2!$A112, 'Full set Core Client Indicator'!$A$3:$A$351, 0), MATCH(Selection_Hide2!C$5, 'Full set Core Client Indicator'!$A$3:$AB$3, 0))), \"\")","v":""},{"$f":"IF(C112<>\"\", IF(INDEX('Full set Core Client Indicator'!$A$3:$AB$351, MATCH(Selection_Hide2!$A112, 'Full set Core Client Indicator'!$A$3:$A$351, 0), MATCH(Selection_Hide2!D$5, 'Full set Core Client Indicator'!$A$3:$AB$3, 0))=\"\", \"\",  INDEX('Full set Core Client Indicator'!$A$3:$AB$351, MATCH(Selection_Hide2!$A112, 'Full set Core Client Indicator'!$A$3:$A$351, 0), MATCH(Selection_Hide2!D$5, 'Full set Core Client Indicator'!$A$3:$AB$3, 0))), \"\")","v":""},{"$f":"IF(D112<>\"\", IF(INDEX('Full set Core Client Indicator'!$A$3:$AB$351, MATCH(Selection_Hide2!$A112, 'Full set Core Client Indicator'!$A$3:$A$351, 0), MATCH(Selection_Hide2!E$5, 'Full set Core Client Indicator'!$A$3:$AB$3, 0))=\"\", \"\",  INDEX('Full set Core Client Indicator'!$A$3:$AB$351, MATCH(Selection_Hide2!$A112, 'Full set Core Client Indicator'!$A$3:$A$351, 0), MATCH(Selection_Hide2!E$5, 'Full set Core Client Indicator'!$A$3:$AB$3, 0))), \"\")","v":""},{"$f":"IF(E112<>\"\", IF(INDEX('Full set Core Client Indicator'!$A$3:$AB$351, MATCH(Selection_Hide2!$A112, 'Full set Core Client Indicator'!$A$3:$A$351, 0), MATCH(Selection_Hide2!F$5, 'Full set Core Client Indicator'!$A$3:$AB$3, 0))=\"\", \"\",  INDEX('Full set Core Client Indicator'!$A$3:$AB$351, MATCH(Selection_Hide2!$A112, 'Full set Core Client Indicator'!$A$3:$A$351, 0), MATCH(Selection_Hide2!F$5, 'Full set Core Client Indicator'!$A$3:$AB$3, 0))), \"\")","v":""},{"$f":"IF(F112<>\"\", IF(INDEX('Full set Core Client Indicator'!$A$3:$AB$351, MATCH(Selection_Hide2!$A112, 'Full set Core Client Indicator'!$A$3:$A$351, 0), MATCH(Selection_Hide2!G$5, 'Full set Core Client Indicator'!$A$3:$AB$3, 0))=\"\", \"\",  INDEX('Full set Core Client Indicator'!$A$3:$AB$351, MATCH(Selection_Hide2!$A112, 'Full set Core Client Indicator'!$A$3:$A$351, 0), MATCH(Selection_Hide2!G$5, 'Full set Core Client Indicator'!$A$3:$AB$3, 0))), \"\")","v":""},{"$f":"IF(G112<>\"\", IF(INDEX('Full set Core Client Indicator'!$A$3:$AB$351, MATCH(Selection_Hide2!$A112, 'Full set Core Client Indicator'!$A$3:$A$351, 0), MATCH(Selection_Hide2!H$5, 'Full set Core Client Indicator'!$A$3:$AB$3, 0))=\"\", \"\",  INDEX('Full set Core Client Indicator'!$A$3:$AB$351, MATCH(Selection_Hide2!$A112, 'Full set Core Client Indicator'!$A$3:$A$351, 0), MATCH(Selection_Hide2!H$5, 'Full set Core Client Indicator'!$A$3:$AB$3, 0))), \"\")","v":""},{"$f":"IF(H112<>\"\", IF(INDEX('Full set Core Client Indicator'!$A$3:$AB$351, MATCH(Selection_Hide2!$A112, 'Full set Core Client Indicator'!$A$3:$A$351, 0), MATCH(Selection_Hide2!I$5, 'Full set Core Client Indicator'!$A$3:$AB$3, 0))=\"\", \"\",  INDEX('Full set Core Client Indicator'!$A$3:$AB$351, MATCH(Selection_Hide2!$A112, 'Full set Core Client Indicator'!$A$3:$A$351, 0), MATCH(Selection_Hide2!I$5, 'Full set Core Client Indicator'!$A$3:$AB$3, 0))), \"\")","v":""},{"$f":"IF(I112<>\"\", IF(INDEX('Full set Core Client Indicator'!$A$3:$AB$351, MATCH(Selection_Hide2!$A112, 'Full set Core Client Indicator'!$A$3:$A$351, 0), MATCH(Selection_Hide2!J$5, 'Full set Core Client Indicator'!$A$3:$AB$3, 0))=\"\", \"\",  INDEX('Full set Core Client Indicator'!$A$3:$AB$351, MATCH(Selection_Hide2!$A112, 'Full set Core Client Indicator'!$A$3:$A$351, 0), MATCH(Selection_Hide2!J$5, 'Full set Core Client Indicator'!$A$3:$AB$3, 0))), \"\")","v":""},{"$f":"IF(J112<>\"\", IF(INDEX('Full set Core Client Indicator'!$A$3:$AB$351, MATCH(Selection_Hide2!$A112, 'Full set Core Client Indicator'!$A$3:$A$351, 0), MATCH(Selection_Hide2!K$5, 'Full set Core Client Indicator'!$A$3:$AB$3, 0))=\"\", \"\",  INDEX('Full set Core Client Indicator'!$A$3:$AB$351, MATCH(Selection_Hide2!$A112, 'Full set Core Client Indicator'!$A$3:$A$351, 0), MATCH(Selection_Hide2!K$5, 'Full set Core Client Indicator'!$A$3:$AB$3, 0))), \"\")","v":""},{"$f":"IF(K112<>\"\", IF(INDEX('Full set Core Client Indicator'!$A$3:$AB$351, MATCH(Selection_Hide2!$A112, 'Full set Core Client Indicator'!$A$3:$A$351, 0), MATCH(Selection_Hide2!L$5, 'Full set Core Client Indicator'!$A$3:$AB$3, 0))=\"\", \"\",  INDEX('Full set Core Client Indicator'!$A$3:$AB$351, MATCH(Selection_Hide2!$A112, 'Full set Core Client Indicator'!$A$3:$A$351, 0), MATCH(Selection_Hide2!L$5, 'Full set Core Client Indicator'!$A$3:$AB$3, 0))), \"\")","v":""},{"$f":"IF(L112<>\"\", IF(INDEX('Full set Core Client Indicator'!$A$3:$AB$351, MATCH(Selection_Hide2!$A112, 'Full set Core Client Indicator'!$A$3:$A$351, 0), MATCH(Selection_Hide2!M$5, 'Full set Core Client Indicator'!$A$3:$AB$3, 0))=\"\", \"\",  INDEX('Full set Core Client Indicator'!$A$3:$AB$351, MATCH(Selection_Hide2!$A112, 'Full set Core Client Indicator'!$A$3:$A$351, 0), MATCH(Selection_Hide2!M$5, 'Full set Core Client Indicator'!$A$3:$AB$3, 0))), \"\")","v":""},{"$f":"IF(M112<>\"\", IF(INDEX('Full set Core Client Indicator'!$A$3:$AB$351, MATCH(Selection_Hide2!$A112, 'Full set Core Client Indicator'!$A$3:$A$351, 0), MATCH(Selection_Hide2!N$5, 'Full set Core Client Indicator'!$A$3:$AB$3, 0))=\"\", \"\",  INDEX('Full set Core Client Indicator'!$A$3:$AB$351, MATCH(Selection_Hide2!$A112, 'Full set Core Client Indicator'!$A$3:$A$351, 0), MATCH(Selection_Hide2!N$5, 'Full set Core Client Indicator'!$A$3:$AB$3, 0))), \"\")","v":""},{"$f":"IF(N112<>\"\", IF(INDEX('Full set Core Client Indicator'!$A$3:$AB$351, MATCH(Selection_Hide2!$A112, 'Full set Core Client Indicator'!$A$3:$A$351, 0), MATCH(Selection_Hide2!O$5, 'Full set Core Client Indicator'!$A$3:$AB$3, 0))=\"\", \"\",  INDEX('Full set Core Client Indicator'!$A$3:$AB$351, MATCH(Selection_Hide2!$A112, 'Full set Core Client Indicator'!$A$3:$A$351, 0), MATCH(Selection_Hide2!O$5, 'Full set Core Client Indicator'!$A$3:$AB$3, 0))), \"\")","v":""},{"$f":"IF(O112<>\"\", IF(INDEX('Full set Core Client Indicator'!$A$3:$AB$351, MATCH(Selection_Hide2!$A112, 'Full set Core Client Indicator'!$A$3:$A$351, 0), MATCH(Selection_Hide2!P$5, 'Full set Core Client Indicator'!$A$3:$AB$3, 0))=\"\", \"\",  INDEX('Full set Core Client Indicator'!$A$3:$AB$351, MATCH(Selection_Hide2!$A112, 'Full set Core Client Indicator'!$A$3:$A$351, 0), MATCH(Selection_Hide2!P$5, 'Full set Core Client Indicator'!$A$3:$AB$3, 0))), \"\")","v":""},{"$f":"IF(P112<>\"\", IF(INDEX('Full set Core Client Indicator'!$A$3:$AB$351, MATCH(Selection_Hide2!$A112, 'Full set Core Client Indicator'!$A$3:$A$351, 0), MATCH(Selection_Hide2!Q$5, 'Full set Core Client Indicator'!$A$3:$AB$3, 0))=\"\", \"\",  INDEX('Full set Core Client Indicator'!$A$3:$AB$351, MATCH(Selection_Hide2!$A112, 'Full set Core Client Indicator'!$A$3:$A$351, 0), MATCH(Selection_Hide2!Q$5, 'Full set Core Client Indicator'!$A$3:$AB$3, 0))), \"\")","v":""},{"$f":"IF(Q112<>\"\", IF(INDEX('Full set Core Client Indicator'!$A$3:$AB$351, MATCH(Selection_Hide2!$A112, 'Full set Core Client Indicator'!$A$3:$A$351, 0), MATCH(Selection_Hide2!R$5, 'Full set Core Client Indicator'!$A$3:$AB$3, 0))=\"\", \"\",  INDEX('Full set Core Client Indicator'!$A$3:$AB$351, MATCH(Selection_Hide2!$A112, 'Full set Core Client Indicator'!$A$3:$A$351, 0), MATCH(Selection_Hide2!R$5, 'Full set Core Client Indicator'!$A$3:$AB$3, 0))), \"\")","v":""},{"$f":"IF(R112<>\"\", IF(INDEX('Full set Core Client Indicator'!$A$3:$AB$351, MATCH(Selection_Hide2!$A112, 'Full set Core Client Indicator'!$A$3:$A$351, 0), MATCH(Selection_Hide2!S$5, 'Full set Core Client Indicator'!$A$3:$AB$3, 0))=\"\", \"\",  INDEX('Full set Core Client Indicator'!$A$3:$AB$351, MATCH(Selection_Hide2!$A112, 'Full set Core Client Indicator'!$A$3:$A$351, 0), MATCH(Selection_Hide2!S$5, 'Full set Core Client Indicator'!$A$3:$AB$3, 0))), \"\")","v":""},{"$f":"IF(S112<>\"\", IF(INDEX('Full set Core Client Indicator'!$A$3:$AB$351, MATCH(Selection_Hide2!$A112, 'Full set Core Client Indicator'!$A$3:$A$351, 0), MATCH(Selection_Hide2!T$5, 'Full set Core Client Indicator'!$A$3:$AB$3, 0))=\"\", \"\",  INDEX('Full set Core Client Indicator'!$A$3:$AB$351, MATCH(Selection_Hide2!$A112, 'Full set Core Client Indicator'!$A$3:$A$351, 0), MATCH(Selection_Hide2!T$5, 'Full set Core Client Indicator'!$A$3:$AB$3, 0))), \"\")","v":""},{"$f":"IF(T112<>\"\", IF(INDEX('Full set Core Client Indicator'!$A$3:$AB$351, MATCH(Selection_Hide2!$A112, 'Full set Core Client Indicator'!$A$3:$A$351, 0), MATCH(Selection_Hide2!U$5, 'Full set Core Client Indicator'!$A$3:$AB$3, 0))=\"\", \"\",  INDEX('Full set Core Client Indicator'!$A$3:$AB$351, MATCH(Selection_Hide2!$A112, 'Full set Core Client Indicator'!$A$3:$A$351, 0), MATCH(Selection_Hide2!U$5, 'Full set Core Client Indicator'!$A$3:$AB$3, 0))), \"\")","v":""},{"$f":"IF(U112<>\"\", IF(INDEX('Full set Core Client Indicator'!$A$3:$AB$351, MATCH(Selection_Hide2!$A112, 'Full set Core Client Indicator'!$A$3:$A$351, 0), MATCH(Selection_Hide2!V$5, 'Full set Core Client Indicator'!$A$3:$AB$3, 0))=\"\", \"\",  INDEX('Full set Core Client Indicator'!$A$3:$AB$351, MATCH(Selection_Hide2!$A112, 'Full set Core Client Indicator'!$A$3:$A$351, 0), MATCH(Selection_Hide2!V$5, 'Full set Core Client Indicator'!$A$3:$AB$3, 0))), \"\")","v":""},{"$f":"IF(V112<>\"\", IF(INDEX('Full set Core Client Indicator'!$A$3:$AB$351, MATCH(Selection_Hide2!$A112, 'Full set Core Client Indicator'!$A$3:$A$351, 0), MATCH(Selection_Hide2!W$5, 'Full set Core Client Indicator'!$A$3:$AB$3, 0))=\"\", \"\",  INDEX('Full set Core Client Indicator'!$A$3:$AB$351, MATCH(Selection_Hide2!$A112, 'Full set Core Client Indicator'!$A$3:$A$351, 0), MATCH(Selection_Hide2!W$5, 'Full set Core Client Indicator'!$A$3:$AB$3, 0))), \"\")","v":""},{"$f":"IF(W112<>\"\", IF(INDEX('Full set Core Client Indicator'!$A$3:$AB$351, MATCH(Selection_Hide2!$A112, 'Full set Core Client Indicator'!$A$3:$A$351, 0), MATCH(Selection_Hide2!X$5, 'Full set Core Client Indicator'!$A$3:$AB$3, 0))=\"\", \"\",  INDEX('Full set Core Client Indicator'!$A$3:$AB$351, MATCH(Selection_Hide2!$A112, 'Full set Core Client Indicator'!$A$3:$A$351, 0), MATCH(Selection_Hide2!X$5, 'Full set Core Client Indicator'!$A$3:$AB$3, 0))), \"\")","v":""},{"$f":"IF(X112<>\"\", IF(INDEX('Full set Core Client Indicator'!$A$3:$AB$351, MATCH(Selection_Hide2!$A112, 'Full set Core Client Indicator'!$A$3:$A$351, 0), MATCH(Selection_Hide2!Y$5, 'Full set Core Client Indicator'!$A$3:$AB$3, 0))=\"\", \"\",  INDEX('Full set Core Client Indicator'!$A$3:$AB$351, MATCH(Selection_Hide2!$A112, 'Full set Core Client Indicator'!$A$3:$A$351, 0), MATCH(Selection_Hide2!Y$5, 'Full set Core Client Indicator'!$A$3:$AB$3, 0))), \"\")","v":""},{"$f":"IF(Y112<>\"\", IF(INDEX('Full set Core Client Indicator'!$A$3:$AB$351, MATCH(Selection_Hide2!$A112, 'Full set Core Client Indicator'!$A$3:$A$351, 0), MATCH(Selection_Hide2!Z$5, 'Full set Core Client Indicator'!$A$3:$AB$3, 0))=\"\", \"\",  INDEX('Full set Core Client Indicator'!$A$3:$AB$351, MATCH(Selection_Hide2!$A112, 'Full set Core Client Indicator'!$A$3:$A$351, 0), MATCH(Selection_Hide2!Z$5, 'Full set Core Client Indicator'!$A$3:$AB$3, 0))), \"\")","v":""},{"$f":"IF(Z112<>\"\", IF(INDEX('Full set Core Client Indicator'!$A$3:$AB$351, MATCH(Selection_Hide2!$A112, 'Full set Core Client Indicator'!$A$3:$A$351, 0), MATCH(Selection_Hide2!AA$5, 'Full set Core Client Indicator'!$A$3:$AB$3, 0))=\"\", \"\",  INDEX('Full set Core Client Indicator'!$A$3:$AB$351, MATCH(Selection_Hide2!$A112, 'Full set Core Client Indicator'!$A$3:$A$351, 0), MATCH(Selection_Hide2!AA$5, 'Full set Core Client Indicator'!$A$3:$AB$3, 0))), \"\")","v":""},{"$f":"IF(AA112<>\"\", IF(INDEX('Full set Core Client Indicator'!$A$3:$AB$351, MATCH(Selection_Hide2!$A112, 'Full set Core Client Indicator'!$A$3:$A$351, 0), MATCH(Selection_Hide2!AB$5, 'Full set Core Client Indicator'!$A$3:$AB$3, 0))=\"\", \"\",  INDEX('Full set Core Client Indicator'!$A$3:$AB$351, MATCH(Selection_Hide2!$A112, 'Full set Core Client Indicator'!$A$3:$A$351, 0), MATCH(Selection_Hide2!AB$5, 'Full set Core Client Indicator'!$A$3:$AB$3, 0))), \"\")","v":""}]
[{"$f":"IF(AND(Selection_Hide1!C111<>0, Selection_Hide1!C111<>\"Grand Total\"), Selection_Hide1!C111, \"\")","v":""},{"$f":"IF(A113<>\"\", IF(INDEX('Full set Core Client Indicator'!$A$3:$AB$351, MATCH(Selection_Hide2!$A113, 'Full set Core Client Indicator'!$A$3:$A$351, 0), MATCH(Selection_Hide2!B$5, 'Full set Core Client Indicator'!$A$3:$AB$3, 0))=\"\", \"\",  INDEX('Full set Core Client Indicator'!$A$3:$AB$351, MATCH(Selection_Hide2!$A113, 'Full set Core Client Indicator'!$A$3:$A$351, 0), MATCH(Selection_Hide2!B$5, 'Full set Core Client Indicator'!$A$3:$AB$3, 0))), \"\")","v":""},{"$f":"IF(B113<>\"\", IF(INDEX('Full set Core Client Indicator'!$A$3:$AB$351, MATCH(Selection_Hide2!$A113, 'Full set Core Client Indicator'!$A$3:$A$351, 0), MATCH(Selection_Hide2!C$5, 'Full set Core Client Indicator'!$A$3:$AB$3, 0))=\"\", \"\",  INDEX('Full set Core Client Indicator'!$A$3:$AB$351, MATCH(Selection_Hide2!$A113, 'Full set Core Client Indicator'!$A$3:$A$351, 0), MATCH(Selection_Hide2!C$5, 'Full set Core Client Indicator'!$A$3:$AB$3, 0))), \"\")","v":""},{"$f":"IF(C113<>\"\", IF(INDEX('Full set Core Client Indicator'!$A$3:$AB$351, MATCH(Selection_Hide2!$A113, 'Full set Core Client Indicator'!$A$3:$A$351, 0), MATCH(Selection_Hide2!D$5, 'Full set Core Client Indicator'!$A$3:$AB$3, 0))=\"\", \"\",  INDEX('Full set Core Client Indicator'!$A$3:$AB$351, MATCH(Selection_Hide2!$A113, 'Full set Core Client Indicator'!$A$3:$A$351, 0), MATCH(Selection_Hide2!D$5, 'Full set Core Client Indicator'!$A$3:$AB$3, 0))), \"\")","v":""},{"$f":"IF(D113<>\"\", IF(INDEX('Full set Core Client Indicator'!$A$3:$AB$351, MATCH(Selection_Hide2!$A113, 'Full set Core Client Indicator'!$A$3:$A$351, 0), MATCH(Selection_Hide2!E$5, 'Full set Core Client Indicator'!$A$3:$AB$3, 0))=\"\", \"\",  INDEX('Full set Core Client Indicator'!$A$3:$AB$351, MATCH(Selection_Hide2!$A113, 'Full set Core Client Indicator'!$A$3:$A$351, 0), MATCH(Selection_Hide2!E$5, 'Full set Core Client Indicator'!$A$3:$AB$3, 0))), \"\")","v":""},{"$f":"IF(E113<>\"\", IF(INDEX('Full set Core Client Indicator'!$A$3:$AB$351, MATCH(Selection_Hide2!$A113, 'Full set Core Client Indicator'!$A$3:$A$351, 0), MATCH(Selection_Hide2!F$5, 'Full set Core Client Indicator'!$A$3:$AB$3, 0))=\"\", \"\",  INDEX('Full set Core Client Indicator'!$A$3:$AB$351, MATCH(Selection_Hide2!$A113, 'Full set Core Client Indicator'!$A$3:$A$351, 0), MATCH(Selection_Hide2!F$5, 'Full set Core Client Indicator'!$A$3:$AB$3, 0))), \"\")","v":""},{"$f":"IF(F113<>\"\", IF(INDEX('Full set Core Client Indicator'!$A$3:$AB$351, MATCH(Selection_Hide2!$A113, 'Full set Core Client Indicator'!$A$3:$A$351, 0), MATCH(Selection_Hide2!G$5, 'Full set Core Client Indicator'!$A$3:$AB$3, 0))=\"\", \"\",  INDEX('Full set Core Client Indicator'!$A$3:$AB$351, MATCH(Selection_Hide2!$A113, 'Full set Core Client Indicator'!$A$3:$A$351, 0), MATCH(Selection_Hide2!G$5, 'Full set Core Client Indicator'!$A$3:$AB$3, 0))), \"\")","v":""},{"$f":"IF(G113<>\"\", IF(INDEX('Full set Core Client Indicator'!$A$3:$AB$351, MATCH(Selection_Hide2!$A113, 'Full set Core Client Indicator'!$A$3:$A$351, 0), MATCH(Selection_Hide2!H$5, 'Full set Core Client Indicator'!$A$3:$AB$3, 0))=\"\", \"\",  INDEX('Full set Core Client Indicator'!$A$3:$AB$351, MATCH(Selection_Hide2!$A113, 'Full set Core Client Indicator'!$A$3:$A$351, 0), MATCH(Selection_Hide2!H$5, 'Full set Core Client Indicator'!$A$3:$AB$3, 0))), \"\")","v":""},{"$f":"IF(H113<>\"\", IF(INDEX('Full set Core Client Indicator'!$A$3:$AB$351, MATCH(Selection_Hide2!$A113, 'Full set Core Client Indicator'!$A$3:$A$351, 0), MATCH(Selection_Hide2!I$5, 'Full set Core Client Indicator'!$A$3:$AB$3, 0))=\"\", \"\",  INDEX('Full set Core Client Indicator'!$A$3:$AB$351, MATCH(Selection_Hide2!$A113, 'Full set Core Client Indicator'!$A$3:$A$351, 0), MATCH(Selection_Hide2!I$5, 'Full set Core Client Indicator'!$A$3:$AB$3, 0))), \"\")","v":""},{"$f":"IF(I113<>\"\", IF(INDEX('Full set Core Client Indicator'!$A$3:$AB$351, MATCH(Selection_Hide2!$A113, 'Full set Core Client Indicator'!$A$3:$A$351, 0), MATCH(Selection_Hide2!J$5, 'Full set Core Client Indicator'!$A$3:$AB$3, 0))=\"\", \"\",  INDEX('Full set Core Client Indicator'!$A$3:$AB$351, MATCH(Selection_Hide2!$A113, 'Full set Core Client Indicator'!$A$3:$A$351, 0), MATCH(Selection_Hide2!J$5, 'Full set Core Client Indicator'!$A$3:$AB$3, 0))), \"\")","v":""},{"$f":"IF(J113<>\"\", IF(INDEX('Full set Core Client Indicator'!$A$3:$AB$351, MATCH(Selection_Hide2!$A113, 'Full set Core Client Indicator'!$A$3:$A$351, 0), MATCH(Selection_Hide2!K$5, 'Full set Core Client Indicator'!$A$3:$AB$3, 0))=\"\", \"\",  INDEX('Full set Core Client Indicator'!$A$3:$AB$351, MATCH(Selection_Hide2!$A113, 'Full set Core Client Indicator'!$A$3:$A$351, 0), MATCH(Selection_Hide2!K$5, 'Full set Core Client Indicator'!$A$3:$AB$3, 0))), \"\")","v":""},{"$f":"IF(K113<>\"\", IF(INDEX('Full set Core Client Indicator'!$A$3:$AB$351, MATCH(Selection_Hide2!$A113, 'Full set Core Client Indicator'!$A$3:$A$351, 0), MATCH(Selection_Hide2!L$5, 'Full set Core Client Indicator'!$A$3:$AB$3, 0))=\"\", \"\",  INDEX('Full set Core Client Indicator'!$A$3:$AB$351, MATCH(Selection_Hide2!$A113, 'Full set Core Client Indicator'!$A$3:$A$351, 0), MATCH(Selection_Hide2!L$5, 'Full set Core Client Indicator'!$A$3:$AB$3, 0))), \"\")","v":""},{"$f":"IF(L113<>\"\", IF(INDEX('Full set Core Client Indicator'!$A$3:$AB$351, MATCH(Selection_Hide2!$A113, 'Full set Core Client Indicator'!$A$3:$A$351, 0), MATCH(Selection_Hide2!M$5, 'Full set Core Client Indicator'!$A$3:$AB$3, 0))=\"\", \"\",  INDEX('Full set Core Client Indicator'!$A$3:$AB$351, MATCH(Selection_Hide2!$A113, 'Full set Core Client Indicator'!$A$3:$A$351, 0), MATCH(Selection_Hide2!M$5, 'Full set Core Client Indicator'!$A$3:$AB$3, 0))), \"\")","v":""},{"$f":"IF(M113<>\"\", IF(INDEX('Full set Core Client Indicator'!$A$3:$AB$351, MATCH(Selection_Hide2!$A113, 'Full set Core Client Indicator'!$A$3:$A$351, 0), MATCH(Selection_Hide2!N$5, 'Full set Core Client Indicator'!$A$3:$AB$3, 0))=\"\", \"\",  INDEX('Full set Core Client Indicator'!$A$3:$AB$351, MATCH(Selection_Hide2!$A113, 'Full set Core Client Indicator'!$A$3:$A$351, 0), MATCH(Selection_Hide2!N$5, 'Full set Core Client Indicator'!$A$3:$AB$3, 0))), \"\")","v":""},{"$f":"IF(N113<>\"\", IF(INDEX('Full set Core Client Indicator'!$A$3:$AB$351, MATCH(Selection_Hide2!$A113, 'Full set Core Client Indicator'!$A$3:$A$351, 0), MATCH(Selection_Hide2!O$5, 'Full set Core Client Indicator'!$A$3:$AB$3, 0))=\"\", \"\",  INDEX('Full set Core Client Indicator'!$A$3:$AB$351, MATCH(Selection_Hide2!$A113, 'Full set Core Client Indicator'!$A$3:$A$351, 0), MATCH(Selection_Hide2!O$5, 'Full set Core Client Indicator'!$A$3:$AB$3, 0))), \"\")","v":""},{"$f":"IF(O113<>\"\", IF(INDEX('Full set Core Client Indicator'!$A$3:$AB$351, MATCH(Selection_Hide2!$A113, 'Full set Core Client Indicator'!$A$3:$A$351, 0), MATCH(Selection_Hide2!P$5, 'Full set Core Client Indicator'!$A$3:$AB$3, 0))=\"\", \"\",  INDEX('Full set Core Client Indicator'!$A$3:$AB$351, MATCH(Selection_Hide2!$A113, 'Full set Core Client Indicator'!$A$3:$A$351, 0), MATCH(Selection_Hide2!P$5, 'Full set Core Client Indicator'!$A$3:$AB$3, 0))), \"\")","v":""},{"$f":"IF(P113<>\"\", IF(INDEX('Full set Core Client Indicator'!$A$3:$AB$351, MATCH(Selection_Hide2!$A113, 'Full set Core Client Indicator'!$A$3:$A$351, 0), MATCH(Selection_Hide2!Q$5, 'Full set Core Client Indicator'!$A$3:$AB$3, 0))=\"\", \"\",  INDEX('Full set Core Client Indicator'!$A$3:$AB$351, MATCH(Selection_Hide2!$A113, 'Full set Core Client Indicator'!$A$3:$A$351, 0), MATCH(Selection_Hide2!Q$5, 'Full set Core Client Indicator'!$A$3:$AB$3, 0))), \"\")","v":""},{"$f":"IF(Q113<>\"\", IF(INDEX('Full set Core Client Indicator'!$A$3:$AB$351, MATCH(Selection_Hide2!$A113, 'Full set Core Client Indicator'!$A$3:$A$351, 0), MATCH(Selection_Hide2!R$5, 'Full set Core Client Indicator'!$A$3:$AB$3, 0))=\"\", \"\",  INDEX('Full set Core Client Indicator'!$A$3:$AB$351, MATCH(Selection_Hide2!$A113, 'Full set Core Client Indicator'!$A$3:$A$351, 0), MATCH(Selection_Hide2!R$5, 'Full set Core Client Indicator'!$A$3:$AB$3, 0))), \"\")","v":""},{"$f":"IF(R113<>\"\", IF(INDEX('Full set Core Client Indicator'!$A$3:$AB$351, MATCH(Selection_Hide2!$A113, 'Full set Core Client Indicator'!$A$3:$A$351, 0), MATCH(Selection_Hide2!S$5, 'Full set Core Client Indicator'!$A$3:$AB$3, 0))=\"\", \"\",  INDEX('Full set Core Client Indicator'!$A$3:$AB$351, MATCH(Selection_Hide2!$A113, 'Full set Core Client Indicator'!$A$3:$A$351, 0), MATCH(Selection_Hide2!S$5, 'Full set Core Client Indicator'!$A$3:$AB$3, 0))), \"\")","v":""},{"$f":"IF(S113<>\"\", IF(INDEX('Full set Core Client Indicator'!$A$3:$AB$351, MATCH(Selection_Hide2!$A113, 'Full set Core Client Indicator'!$A$3:$A$351, 0), MATCH(Selection_Hide2!T$5, 'Full set Core Client Indicator'!$A$3:$AB$3, 0))=\"\", \"\",  INDEX('Full set Core Client Indicator'!$A$3:$AB$351, MATCH(Selection_Hide2!$A113, 'Full set Core Client Indicator'!$A$3:$A$351, 0), MATCH(Selection_Hide2!T$5, 'Full set Core Client Indicator'!$A$3:$AB$3, 0))), \"\")","v":""},{"$f":"IF(T113<>\"\", IF(INDEX('Full set Core Client Indicator'!$A$3:$AB$351, MATCH(Selection_Hide2!$A113, 'Full set Core Client Indicator'!$A$3:$A$351, 0), MATCH(Selection_Hide2!U$5, 'Full set Core Client Indicator'!$A$3:$AB$3, 0))=\"\", \"\",  INDEX('Full set Core Client Indicator'!$A$3:$AB$351, MATCH(Selection_Hide2!$A113, 'Full set Core Client Indicator'!$A$3:$A$351, 0), MATCH(Selection_Hide2!U$5, 'Full set Core Client Indicator'!$A$3:$AB$3, 0))), \"\")","v":""},{"$f":"IF(U113<>\"\", IF(INDEX('Full set Core Client Indicator'!$A$3:$AB$351, MATCH(Selection_Hide2!$A113, 'Full set Core Client Indicator'!$A$3:$A$351, 0), MATCH(Selection_Hide2!V$5, 'Full set Core Client Indicator'!$A$3:$AB$3, 0))=\"\", \"\",  INDEX('Full set Core Client Indicator'!$A$3:$AB$351, MATCH(Selection_Hide2!$A113, 'Full set Core Client Indicator'!$A$3:$A$351, 0), MATCH(Selection_Hide2!V$5, 'Full set Core Client Indicator'!$A$3:$AB$3, 0))), \"\")","v":""},{"$f":"IF(V113<>\"\", IF(INDEX('Full set Core Client Indicator'!$A$3:$AB$351, MATCH(Selection_Hide2!$A113, 'Full set Core Client Indicator'!$A$3:$A$351, 0), MATCH(Selection_Hide2!W$5, 'Full set Core Client Indicator'!$A$3:$AB$3, 0))=\"\", \"\",  INDEX('Full set Core Client Indicator'!$A$3:$AB$351, MATCH(Selection_Hide2!$A113, 'Full set Core Client Indicator'!$A$3:$A$351, 0), MATCH(Selection_Hide2!W$5, 'Full set Core Client Indicator'!$A$3:$AB$3, 0))), \"\")","v":""},{"$f":"IF(W113<>\"\", IF(INDEX('Full set Core Client Indicator'!$A$3:$AB$351, MATCH(Selection_Hide2!$A113, 'Full set Core Client Indicator'!$A$3:$A$351, 0), MATCH(Selection_Hide2!X$5, 'Full set Core Client Indicator'!$A$3:$AB$3, 0))=\"\", \"\",  INDEX('Full set Core Client Indicator'!$A$3:$AB$351, MATCH(Selection_Hide2!$A113, 'Full set Core Client Indicator'!$A$3:$A$351, 0), MATCH(Selection_Hide2!X$5, 'Full set Core Client Indicator'!$A$3:$AB$3, 0))), \"\")","v":""},{"$f":"IF(X113<>\"\", IF(INDEX('Full set Core Client Indicator'!$A$3:$AB$351, MATCH(Selection_Hide2!$A113, 'Full set Core Client Indicator'!$A$3:$A$351, 0), MATCH(Selection_Hide2!Y$5, 'Full set Core Client Indicator'!$A$3:$AB$3, 0))=\"\", \"\",  INDEX('Full set Core Client Indicator'!$A$3:$AB$351, MATCH(Selection_Hide2!$A113, 'Full set Core Client Indicator'!$A$3:$A$351, 0), MATCH(Selection_Hide2!Y$5, 'Full set Core Client Indicator'!$A$3:$AB$3, 0))), \"\")","v":""},{"$f":"IF(Y113<>\"\", IF(INDEX('Full set Core Client Indicator'!$A$3:$AB$351, MATCH(Selection_Hide2!$A113, 'Full set Core Client Indicator'!$A$3:$A$351, 0), MATCH(Selection_Hide2!Z$5, 'Full set Core Client Indicator'!$A$3:$AB$3, 0))=\"\", \"\",  INDEX('Full set Core Client Indicator'!$A$3:$AB$351, MATCH(Selection_Hide2!$A113, 'Full set Core Client Indicator'!$A$3:$A$351, 0), MATCH(Selection_Hide2!Z$5, 'Full set Core Client Indicator'!$A$3:$AB$3, 0))), \"\")","v":""},{"$f":"IF(Z113<>\"\", IF(INDEX('Full set Core Client Indicator'!$A$3:$AB$351, MATCH(Selection_Hide2!$A113, 'Full set Core Client Indicator'!$A$3:$A$351, 0), MATCH(Selection_Hide2!AA$5, 'Full set Core Client Indicator'!$A$3:$AB$3, 0))=\"\", \"\",  INDEX('Full set Core Client Indicator'!$A$3:$AB$351, MATCH(Selection_Hide2!$A113, 'Full set Core Client Indicator'!$A$3:$A$351, 0), MATCH(Selection_Hide2!AA$5, 'Full set Core Client Indicator'!$A$3:$AB$3, 0))), \"\")","v":""},{"$f":"IF(AA113<>\"\", IF(INDEX('Full set Core Client Indicator'!$A$3:$AB$351, MATCH(Selection_Hide2!$A113, 'Full set Core Client Indicator'!$A$3:$A$351, 0), MATCH(Selection_Hide2!AB$5, 'Full set Core Client Indicator'!$A$3:$AB$3, 0))=\"\", \"\",  INDEX('Full set Core Client Indicator'!$A$3:$AB$351, MATCH(Selection_Hide2!$A113, 'Full set Core Client Indicator'!$A$3:$A$351, 0), MATCH(Selection_Hide2!AB$5, 'Full set Core Client Indicator'!$A$3:$AB$3, 0))), \"\")","v":""}]
[{"$f":"IF(AND(Selection_Hide1!C112<>0, Selection_Hide1!C112<>\"Grand Total\"), Selection_Hide1!C112, \"\")","v":""},{"$f":"IF(A114<>\"\", IF(INDEX('Full set Core Client Indicator'!$A$3:$AB$351, MATCH(Selection_Hide2!$A114, 'Full set Core Client Indicator'!$A$3:$A$351, 0), MATCH(Selection_Hide2!B$5, 'Full set Core Client Indicator'!$A$3:$AB$3, 0))=\"\", \"\",  INDEX('Full set Core Client Indicator'!$A$3:$AB$351, MATCH(Selection_Hide2!$A114, 'Full set Core Client Indicator'!$A$3:$A$351, 0), MATCH(Selection_Hide2!B$5, 'Full set Core Client Indicator'!$A$3:$AB$3, 0))), \"\")","v":""},{"$f":"IF(B114<>\"\", IF(INDEX('Full set Core Client Indicator'!$A$3:$AB$351, MATCH(Selection_Hide2!$A114, 'Full set Core Client Indicator'!$A$3:$A$351, 0), MATCH(Selection_Hide2!C$5, 'Full set Core Client Indicator'!$A$3:$AB$3, 0))=\"\", \"\",  INDEX('Full set Core Client Indicator'!$A$3:$AB$351, MATCH(Selection_Hide2!$A114, 'Full set Core Client Indicator'!$A$3:$A$351, 0), MATCH(Selection_Hide2!C$5, 'Full set Core Client Indicator'!$A$3:$AB$3, 0))), \"\")","v":""},{"$f":"IF(C114<>\"\", IF(INDEX('Full set Core Client Indicator'!$A$3:$AB$351, MATCH(Selection_Hide2!$A114, 'Full set Core Client Indicator'!$A$3:$A$351, 0), MATCH(Selection_Hide2!D$5, 'Full set Core Client Indicator'!$A$3:$AB$3, 0))=\"\", \"\",  INDEX('Full set Core Client Indicator'!$A$3:$AB$351, MATCH(Selection_Hide2!$A114, 'Full set Core Client Indicator'!$A$3:$A$351, 0), MATCH(Selection_Hide2!D$5, 'Full set Core Client Indicator'!$A$3:$AB$3, 0))), \"\")","v":""},{"$f":"IF(D114<>\"\", IF(INDEX('Full set Core Client Indicator'!$A$3:$AB$351, MATCH(Selection_Hide2!$A114, 'Full set Core Client Indicator'!$A$3:$A$351, 0), MATCH(Selection_Hide2!E$5, 'Full set Core Client Indicator'!$A$3:$AB$3, 0))=\"\", \"\",  INDEX('Full set Core Client Indicator'!$A$3:$AB$351, MATCH(Selection_Hide2!$A114, 'Full set Core Client Indicator'!$A$3:$A$351, 0), MATCH(Selection_Hide2!E$5, 'Full set Core Client Indicator'!$A$3:$AB$3, 0))), \"\")","v":""},{"$f":"IF(E114<>\"\", IF(INDEX('Full set Core Client Indicator'!$A$3:$AB$351, MATCH(Selection_Hide2!$A114, 'Full set Core Client Indicator'!$A$3:$A$351, 0), MATCH(Selection_Hide2!F$5, 'Full set Core Client Indicator'!$A$3:$AB$3, 0))=\"\", \"\",  INDEX('Full set Core Client Indicator'!$A$3:$AB$351, MATCH(Selection_Hide2!$A114, 'Full set Core Client Indicator'!$A$3:$A$351, 0), MATCH(Selection_Hide2!F$5, 'Full set Core Client Indicator'!$A$3:$AB$3, 0))), \"\")","v":""},{"$f":"IF(F114<>\"\", IF(INDEX('Full set Core Client Indicator'!$A$3:$AB$351, MATCH(Selection_Hide2!$A114, 'Full set Core Client Indicator'!$A$3:$A$351, 0), MATCH(Selection_Hide2!G$5, 'Full set Core Client Indicator'!$A$3:$AB$3, 0))=\"\", \"\",  INDEX('Full set Core Client Indicator'!$A$3:$AB$351, MATCH(Selection_Hide2!$A114, 'Full set Core Client Indicator'!$A$3:$A$351, 0), MATCH(Selection_Hide2!G$5, 'Full set Core Client Indicator'!$A$3:$AB$3, 0))), \"\")","v":""},{"$f":"IF(G114<>\"\", IF(INDEX('Full set Core Client Indicator'!$A$3:$AB$351, MATCH(Selection_Hide2!$A114, 'Full set Core Client Indicator'!$A$3:$A$351, 0), MATCH(Selection_Hide2!H$5, 'Full set Core Client Indicator'!$A$3:$AB$3, 0))=\"\", \"\",  INDEX('Full set Core Client Indicator'!$A$3:$AB$351, MATCH(Selection_Hide2!$A114, 'Full set Core Client Indicator'!$A$3:$A$351, 0), MATCH(Selection_Hide2!H$5, 'Full set Core Client Indicator'!$A$3:$AB$3, 0))), \"\")","v":""},{"$f":"IF(H114<>\"\", IF(INDEX('Full set Core Client Indicator'!$A$3:$AB$351, MATCH(Selection_Hide2!$A114, 'Full set Core Client Indicator'!$A$3:$A$351, 0), MATCH(Selection_Hide2!I$5, 'Full set Core Client Indicator'!$A$3:$AB$3, 0))=\"\", \"\",  INDEX('Full set Core Client Indicator'!$A$3:$AB$351, MATCH(Selection_Hide2!$A114, 'Full set Core Client Indicator'!$A$3:$A$351, 0), MATCH(Selection_Hide2!I$5, 'Full set Core Client Indicator'!$A$3:$AB$3, 0))), \"\")","v":""},{"$f":"IF(I114<>\"\", IF(INDEX('Full set Core Client Indicator'!$A$3:$AB$351, MATCH(Selection_Hide2!$A114, 'Full set Core Client Indicator'!$A$3:$A$351, 0), MATCH(Selection_Hide2!J$5, 'Full set Core Client Indicator'!$A$3:$AB$3, 0))=\"\", \"\",  INDEX('Full set Core Client Indicator'!$A$3:$AB$351, MATCH(Selection_Hide2!$A114, 'Full set Core Client Indicator'!$A$3:$A$351, 0), MATCH(Selection_Hide2!J$5, 'Full set Core Client Indicator'!$A$3:$AB$3, 0))), \"\")","v":""},{"$f":"IF(J114<>\"\", IF(INDEX('Full set Core Client Indicator'!$A$3:$AB$351, MATCH(Selection_Hide2!$A114, 'Full set Core Client Indicator'!$A$3:$A$351, 0), MATCH(Selection_Hide2!K$5, 'Full set Core Client Indicator'!$A$3:$AB$3, 0))=\"\", \"\",  INDEX('Full set Core Client Indicator'!$A$3:$AB$351, MATCH(Selection_Hide2!$A114, 'Full set Core Client Indicator'!$A$3:$A$351, 0), MATCH(Selection_Hide2!K$5, 'Full set Core Client Indicator'!$A$3:$AB$3, 0))), \"\")","v":""},{"$f":"IF(K114<>\"\", IF(INDEX('Full set Core Client Indicator'!$A$3:$AB$351, MATCH(Selection_Hide2!$A114, 'Full set Core Client Indicator'!$A$3:$A$351, 0), MATCH(Selection_Hide2!L$5, 'Full set Core Client Indicator'!$A$3:$AB$3, 0))=\"\", \"\",  INDEX('Full set Core Client Indicator'!$A$3:$AB$351, MATCH(Selection_Hide2!$A114, 'Full set Core Client Indicator'!$A$3:$A$351, 0), MATCH(Selection_Hide2!L$5, 'Full set Core Client Indicator'!$A$3:$AB$3, 0))), \"\")","v":""},{"$f":"IF(L114<>\"\", IF(INDEX('Full set Core Client Indicator'!$A$3:$AB$351, MATCH(Selection_Hide2!$A114, 'Full set Core Client Indicator'!$A$3:$A$351, 0), MATCH(Selection_Hide2!M$5, 'Full set Core Client Indicator'!$A$3:$AB$3, 0))=\"\", \"\",  INDEX('Full set Core Client Indicator'!$A$3:$AB$351, MATCH(Selection_Hide2!$A114, 'Full set Core Client Indicator'!$A$3:$A$351, 0), MATCH(Selection_Hide2!M$5, 'Full set Core Client Indicator'!$A$3:$AB$3, 0))), \"\")","v":""},{"$f":"IF(M114<>\"\", IF(INDEX('Full set Core Client Indicator'!$A$3:$AB$351, MATCH(Selection_Hide2!$A114, 'Full set Core Client Indicator'!$A$3:$A$351, 0), MATCH(Selection_Hide2!N$5, 'Full set Core Client Indicator'!$A$3:$AB$3, 0))=\"\", \"\",  INDEX('Full set Core Client Indicator'!$A$3:$AB$351, MATCH(Selection_Hide2!$A114, 'Full set Core Client Indicator'!$A$3:$A$351, 0), MATCH(Selection_Hide2!N$5, 'Full set Core Client Indicator'!$A$3:$AB$3, 0))), \"\")","v":""},{"$f":"IF(N114<>\"\", IF(INDEX('Full set Core Client Indicator'!$A$3:$AB$351, MATCH(Selection_Hide2!$A114, 'Full set Core Client Indicator'!$A$3:$A$351, 0), MATCH(Selection_Hide2!O$5, 'Full set Core Client Indicator'!$A$3:$AB$3, 0))=\"\", \"\",  INDEX('Full set Core Client Indicator'!$A$3:$AB$351, MATCH(Selection_Hide2!$A114, 'Full set Core Client Indicator'!$A$3:$A$351, 0), MATCH(Selection_Hide2!O$5, 'Full set Core Client Indicator'!$A$3:$AB$3, 0))), \"\")","v":""},{"$f":"IF(O114<>\"\", IF(INDEX('Full set Core Client Indicator'!$A$3:$AB$351, MATCH(Selection_Hide2!$A114, 'Full set Core Client Indicator'!$A$3:$A$351, 0), MATCH(Selection_Hide2!P$5, 'Full set Core Client Indicator'!$A$3:$AB$3, 0))=\"\", \"\",  INDEX('Full set Core Client Indicator'!$A$3:$AB$351, MATCH(Selection_Hide2!$A114, 'Full set Core Client Indicator'!$A$3:$A$351, 0), MATCH(Selection_Hide2!P$5, 'Full set Core Client Indicator'!$A$3:$AB$3, 0))), \"\")","v":""},{"$f":"IF(P114<>\"\", IF(INDEX('Full set Core Client Indicator'!$A$3:$AB$351, MATCH(Selection_Hide2!$A114, 'Full set Core Client Indicator'!$A$3:$A$351, 0), MATCH(Selection_Hide2!Q$5, 'Full set Core Client Indicator'!$A$3:$AB$3, 0))=\"\", \"\",  INDEX('Full set Core Client Indicator'!$A$3:$AB$351, MATCH(Selection_Hide2!$A114, 'Full set Core Client Indicator'!$A$3:$A$351, 0), MATCH(Selection_Hide2!Q$5, 'Full set Core Client Indicator'!$A$3:$AB$3, 0))), \"\")","v":""},{"$f":"IF(Q114<>\"\", IF(INDEX('Full set Core Client Indicator'!$A$3:$AB$351, MATCH(Selection_Hide2!$A114, 'Full set Core Client Indicator'!$A$3:$A$351, 0), MATCH(Selection_Hide2!R$5, 'Full set Core Client Indicator'!$A$3:$AB$3, 0))=\"\", \"\",  INDEX('Full set Core Client Indicator'!$A$3:$AB$351, MATCH(Selection_Hide2!$A114, 'Full set Core Client Indicator'!$A$3:$A$351, 0), MATCH(Selection_Hide2!R$5, 'Full set Core Client Indicator'!$A$3:$AB$3, 0))), \"\")","v":""},{"$f":"IF(R114<>\"\", IF(INDEX('Full set Core Client Indicator'!$A$3:$AB$351, MATCH(Selection_Hide2!$A114, 'Full set Core Client Indicator'!$A$3:$A$351, 0), MATCH(Selection_Hide2!S$5, 'Full set Core Client Indicator'!$A$3:$AB$3, 0))=\"\", \"\",  INDEX('Full set Core Client Indicator'!$A$3:$AB$351, MATCH(Selection_Hide2!$A114, 'Full set Core Client Indicator'!$A$3:$A$351, 0), MATCH(Selection_Hide2!S$5, 'Full set Core Client Indicator'!$A$3:$AB$3, 0))), \"\")","v":""},{"$f":"IF(S114<>\"\", IF(INDEX('Full set Core Client Indicator'!$A$3:$AB$351, MATCH(Selection_Hide2!$A114, 'Full set Core Client Indicator'!$A$3:$A$351, 0), MATCH(Selection_Hide2!T$5, 'Full set Core Client Indicator'!$A$3:$AB$3, 0))=\"\", \"\",  INDEX('Full set Core Client Indicator'!$A$3:$AB$351, MATCH(Selection_Hide2!$A114, 'Full set Core Client Indicator'!$A$3:$A$351, 0), MATCH(Selection_Hide2!T$5, 'Full set Core Client Indicator'!$A$3:$AB$3, 0))), \"\")","v":""},{"$f":"IF(T114<>\"\", IF(INDEX('Full set Core Client Indicator'!$A$3:$AB$351, MATCH(Selection_Hide2!$A114, 'Full set Core Client Indicator'!$A$3:$A$351, 0), MATCH(Selection_Hide2!U$5, 'Full set Core Client Indicator'!$A$3:$AB$3, 0))=\"\", \"\",  INDEX('Full set Core Client Indicator'!$A$3:$AB$351, MATCH(Selection_Hide2!$A114, 'Full set Core Client Indicator'!$A$3:$A$351, 0), MATCH(Selection_Hide2!U$5, 'Full set Core Client Indicator'!$A$3:$AB$3, 0))), \"\")","v":""},{"$f":"IF(U114<>\"\", IF(INDEX('Full set Core Client Indicator'!$A$3:$AB$351, MATCH(Selection_Hide2!$A114, 'Full set Core Client Indicator'!$A$3:$A$351, 0), MATCH(Selection_Hide2!V$5, 'Full set Core Client Indicator'!$A$3:$AB$3, 0))=\"\", \"\",  INDEX('Full set Core Client Indicator'!$A$3:$AB$351, MATCH(Selection_Hide2!$A114, 'Full set Core Client Indicator'!$A$3:$A$351, 0), MATCH(Selection_Hide2!V$5, 'Full set Core Client Indicator'!$A$3:$AB$3, 0))), \"\")","v":""},{"$f":"IF(V114<>\"\", IF(INDEX('Full set Core Client Indicator'!$A$3:$AB$351, MATCH(Selection_Hide2!$A114, 'Full set Core Client Indicator'!$A$3:$A$351, 0), MATCH(Selection_Hide2!W$5, 'Full set Core Client Indicator'!$A$3:$AB$3, 0))=\"\", \"\",  INDEX('Full set Core Client Indicator'!$A$3:$AB$351, MATCH(Selection_Hide2!$A114, 'Full set Core Client Indicator'!$A$3:$A$351, 0), MATCH(Selection_Hide2!W$5, 'Full set Core Client Indicator'!$A$3:$AB$3, 0))), \"\")","v":""},{"$f":"IF(W114<>\"\", IF(INDEX('Full set Core Client Indicator'!$A$3:$AB$351, MATCH(Selection_Hide2!$A114, 'Full set Core Client Indicator'!$A$3:$A$351, 0), MATCH(Selection_Hide2!X$5, 'Full set Core Client Indicator'!$A$3:$AB$3, 0))=\"\", \"\",  INDEX('Full set Core Client Indicator'!$A$3:$AB$351, MATCH(Selection_Hide2!$A114, 'Full set Core Client Indicator'!$A$3:$A$351, 0), MATCH(Selection_Hide2!X$5, 'Full set Core Client Indicator'!$A$3:$AB$3, 0))), \"\")","v":""},{"$f":"IF(X114<>\"\", IF(INDEX('Full set Core Client Indicator'!$A$3:$AB$351, MATCH(Selection_Hide2!$A114, 'Full set Core Client Indicator'!$A$3:$A$351, 0), MATCH(Selection_Hide2!Y$5, 'Full set Core Client Indicator'!$A$3:$AB$3, 0))=\"\", \"\",  INDEX('Full set Core Client Indicator'!$A$3:$AB$351, MATCH(Selection_Hide2!$A114, 'Full set Core Client Indicator'!$A$3:$A$351, 0), MATCH(Selection_Hide2!Y$5, 'Full set Core Client Indicator'!$A$3:$AB$3, 0))), \"\")","v":""},{"$f":"IF(Y114<>\"\", IF(INDEX('Full set Core Client Indicator'!$A$3:$AB$351, MATCH(Selection_Hide2!$A114, 'Full set Core Client Indicator'!$A$3:$A$351, 0), MATCH(Selection_Hide2!Z$5, 'Full set Core Client Indicator'!$A$3:$AB$3, 0))=\"\", \"\",  INDEX('Full set Core Client Indicator'!$A$3:$AB$351, MATCH(Selection_Hide2!$A114, 'Full set Core Client Indicator'!$A$3:$A$351, 0), MATCH(Selection_Hide2!Z$5, 'Full set Core Client Indicator'!$A$3:$AB$3, 0))), \"\")","v":""},{"$f":"IF(Z114<>\"\", IF(INDEX('Full set Core Client Indicator'!$A$3:$AB$351, MATCH(Selection_Hide2!$A114, 'Full set Core Client Indicator'!$A$3:$A$351, 0), MATCH(Selection_Hide2!AA$5, 'Full set Core Client Indicator'!$A$3:$AB$3, 0))=\"\", \"\",  INDEX('Full set Core Client Indicator'!$A$3:$AB$351, MATCH(Selection_Hide2!$A114, 'Full set Core Client Indicator'!$A$3:$A$351, 0), MATCH(Selection_Hide2!AA$5, 'Full set Core Client Indicator'!$A$3:$AB$3, 0))), \"\")","v":""},{"$f":"IF(AA114<>\"\", IF(INDEX('Full set Core Client Indicator'!$A$3:$AB$351, MATCH(Selection_Hide2!$A114, 'Full set Core Client Indicator'!$A$3:$A$351, 0), MATCH(Selection_Hide2!AB$5, 'Full set Core Client Indicator'!$A$3:$AB$3, 0))=\"\", \"\",  INDEX('Full set Core Client Indicator'!$A$3:$AB$351, MATCH(Selection_Hide2!$A114, 'Full set Core Client Indicator'!$A$3:$A$351, 0), MATCH(Selection_Hide2!AB$5, 'Full set Core Client Indicator'!$A$3:$AB$3, 0))), \"\")","v":""}]
[{"$f":"IF(AND(Selection_Hide1!C113<>0, Selection_Hide1!C113<>\"Grand Total\"), Selection_Hide1!C113, \"\")","v":""},{"$f":"IF(A115<>\"\", IF(INDEX('Full set Core Client Indicator'!$A$3:$AB$351, MATCH(Selection_Hide2!$A115, 'Full set Core Client Indicator'!$A$3:$A$351, 0), MATCH(Selection_Hide2!B$5, 'Full set Core Client Indicator'!$A$3:$AB$3, 0))=\"\", \"\",  INDEX('Full set Core Client Indicator'!$A$3:$AB$351, MATCH(Selection_Hide2!$A115, 'Full set Core Client Indicator'!$A$3:$A$351, 0), MATCH(Selection_Hide2!B$5, 'Full set Core Client Indicator'!$A$3:$AB$3, 0))), \"\")","v":""},{"$f":"IF(B115<>\"\", IF(INDEX('Full set Core Client Indicator'!$A$3:$AB$351, MATCH(Selection_Hide2!$A115, 'Full set Core Client Indicator'!$A$3:$A$351, 0), MATCH(Selection_Hide2!C$5, 'Full set Core Client Indicator'!$A$3:$AB$3, 0))=\"\", \"\",  INDEX('Full set Core Client Indicator'!$A$3:$AB$351, MATCH(Selection_Hide2!$A115, 'Full set Core Client Indicator'!$A$3:$A$351, 0), MATCH(Selection_Hide2!C$5, 'Full set Core Client Indicator'!$A$3:$AB$3, 0))), \"\")","v":""},{"$f":"IF(C115<>\"\", IF(INDEX('Full set Core Client Indicator'!$A$3:$AB$351, MATCH(Selection_Hide2!$A115, 'Full set Core Client Indicator'!$A$3:$A$351, 0), MATCH(Selection_Hide2!D$5, 'Full set Core Client Indicator'!$A$3:$AB$3, 0))=\"\", \"\",  INDEX('Full set Core Client Indicator'!$A$3:$AB$351, MATCH(Selection_Hide2!$A115, 'Full set Core Client Indicator'!$A$3:$A$351, 0), MATCH(Selection_Hide2!D$5, 'Full set Core Client Indicator'!$A$3:$AB$3, 0))), \"\")","v":""},{"$f":"IF(D115<>\"\", IF(INDEX('Full set Core Client Indicator'!$A$3:$AB$351, MATCH(Selection_Hide2!$A115, 'Full set Core Client Indicator'!$A$3:$A$351, 0), MATCH(Selection_Hide2!E$5, 'Full set Core Client Indicator'!$A$3:$AB$3, 0))=\"\", \"\",  INDEX('Full set Core Client Indicator'!$A$3:$AB$351, MATCH(Selection_Hide2!$A115, 'Full set Core Client Indicator'!$A$3:$A$351, 0), MATCH(Selection_Hide2!E$5, 'Full set Core Client Indicator'!$A$3:$AB$3, 0))), \"\")","v":""},{"$f":"IF(E115<>\"\", IF(INDEX('Full set Core Client Indicator'!$A$3:$AB$351, MATCH(Selection_Hide2!$A115, 'Full set Core Client Indicator'!$A$3:$A$351, 0), MATCH(Selection_Hide2!F$5, 'Full set Core Client Indicator'!$A$3:$AB$3, 0))=\"\", \"\",  INDEX('Full set Core Client Indicator'!$A$3:$AB$351, MATCH(Selection_Hide2!$A115, 'Full set Core Client Indicator'!$A$3:$A$351, 0), MATCH(Selection_Hide2!F$5, 'Full set Core Client Indicator'!$A$3:$AB$3, 0))), \"\")","v":""},{"$f":"IF(F115<>\"\", IF(INDEX('Full set Core Client Indicator'!$A$3:$AB$351, MATCH(Selection_Hide2!$A115, 'Full set Core Client Indicator'!$A$3:$A$351, 0), MATCH(Selection_Hide2!G$5, 'Full set Core Client Indicator'!$A$3:$AB$3, 0))=\"\", \"\",  INDEX('Full set Core Client Indicator'!$A$3:$AB$351, MATCH(Selection_Hide2!$A115, 'Full set Core Client Indicator'!$A$3:$A$351, 0), MATCH(Selection_Hide2!G$5, 'Full set Core Client Indicator'!$A$3:$AB$3, 0))), \"\")","v":""},{"$f":"IF(G115<>\"\", IF(INDEX('Full set Core Client Indicator'!$A$3:$AB$351, MATCH(Selection_Hide2!$A115, 'Full set Core Client Indicator'!$A$3:$A$351, 0), MATCH(Selection_Hide2!H$5, 'Full set Core Client Indicator'!$A$3:$AB$3, 0))=\"\", \"\",  INDEX('Full set Core Client Indicator'!$A$3:$AB$351, MATCH(Selection_Hide2!$A115, 'Full set Core Client Indicator'!$A$3:$A$351, 0), MATCH(Selection_Hide2!H$5, 'Full set Core Client Indicator'!$A$3:$AB$3, 0))), \"\")","v":""},{"$f":"IF(H115<>\"\", IF(INDEX('Full set Core Client Indicator'!$A$3:$AB$351, MATCH(Selection_Hide2!$A115, 'Full set Core Client Indicator'!$A$3:$A$351, 0), MATCH(Selection_Hide2!I$5, 'Full set Core Client Indicator'!$A$3:$AB$3, 0))=\"\", \"\",  INDEX('Full set Core Client Indicator'!$A$3:$AB$351, MATCH(Selection_Hide2!$A115, 'Full set Core Client Indicator'!$A$3:$A$351, 0), MATCH(Selection_Hide2!I$5, 'Full set Core Client Indicator'!$A$3:$AB$3, 0))), \"\")","v":""},{"$f":"IF(I115<>\"\", IF(INDEX('Full set Core Client Indicator'!$A$3:$AB$351, MATCH(Selection_Hide2!$A115, 'Full set Core Client Indicator'!$A$3:$A$351, 0), MATCH(Selection_Hide2!J$5, 'Full set Core Client Indicator'!$A$3:$AB$3, 0))=\"\", \"\",  INDEX('Full set Core Client Indicator'!$A$3:$AB$351, MATCH(Selection_Hide2!$A115, 'Full set Core Client Indicator'!$A$3:$A$351, 0), MATCH(Selection_Hide2!J$5, 'Full set Core Client Indicator'!$A$3:$AB$3, 0))), \"\")","v":""},{"$f":"IF(J115<>\"\", IF(INDEX('Full set Core Client Indicator'!$A$3:$AB$351, MATCH(Selection_Hide2!$A115, 'Full set Core Client Indicator'!$A$3:$A$351, 0), MATCH(Selection_Hide2!K$5, 'Full set Core Client Indicator'!$A$3:$AB$3, 0))=\"\", \"\",  INDEX('Full set Core Client Indicator'!$A$3:$AB$351, MATCH(Selection_Hide2!$A115, 'Full set Core Client Indicator'!$A$3:$A$351, 0), MATCH(Selection_Hide2!K$5, 'Full set Core Client Indicator'!$A$3:$AB$3, 0))), \"\")","v":""},{"$f":"IF(K115<>\"\", IF(INDEX('Full set Core Client Indicator'!$A$3:$AB$351, MATCH(Selection_Hide2!$A115, 'Full set Core Client Indicator'!$A$3:$A$351, 0), MATCH(Selection_Hide2!L$5, 'Full set Core Client Indicator'!$A$3:$AB$3, 0))=\"\", \"\",  INDEX('Full set Core Client Indicator'!$A$3:$AB$351, MATCH(Selection_Hide2!$A115, 'Full set Core Client Indicator'!$A$3:$A$351, 0), MATCH(Selection_Hide2!L$5, 'Full set Core Client Indicator'!$A$3:$AB$3, 0))), \"\")","v":""},{"$f":"IF(L115<>\"\", IF(INDEX('Full set Core Client Indicator'!$A$3:$AB$351, MATCH(Selection_Hide2!$A115, 'Full set Core Client Indicator'!$A$3:$A$351, 0), MATCH(Selection_Hide2!M$5, 'Full set Core Client Indicator'!$A$3:$AB$3, 0))=\"\", \"\",  INDEX('Full set Core Client Indicator'!$A$3:$AB$351, MATCH(Selection_Hide2!$A115, 'Full set Core Client Indicator'!$A$3:$A$351, 0), MATCH(Selection_Hide2!M$5, 'Full set Core Client Indicator'!$A$3:$AB$3, 0))), \"\")","v":""},{"$f":"IF(M115<>\"\", IF(INDEX('Full set Core Client Indicator'!$A$3:$AB$351, MATCH(Selection_Hide2!$A115, 'Full set Core Client Indicator'!$A$3:$A$351, 0), MATCH(Selection_Hide2!N$5, 'Full set Core Client Indicator'!$A$3:$AB$3, 0))=\"\", \"\",  INDEX('Full set Core Client Indicator'!$A$3:$AB$351, MATCH(Selection_Hide2!$A115, 'Full set Core Client Indicator'!$A$3:$A$351, 0), MATCH(Selection_Hide2!N$5, 'Full set Core Client Indicator'!$A$3:$AB$3, 0))), \"\")","v":""},{"$f":"IF(N115<>\"\", IF(INDEX('Full set Core Client Indicator'!$A$3:$AB$351, MATCH(Selection_Hide2!$A115, 'Full set Core Client Indicator'!$A$3:$A$351, 0), MATCH(Selection_Hide2!O$5, 'Full set Core Client Indicator'!$A$3:$AB$3, 0))=\"\", \"\",  INDEX('Full set Core Client Indicator'!$A$3:$AB$351, MATCH(Selection_Hide2!$A115, 'Full set Core Client Indicator'!$A$3:$A$351, 0), MATCH(Selection_Hide2!O$5, 'Full set Core Client Indicator'!$A$3:$AB$3, 0))), \"\")","v":""},{"$f":"IF(O115<>\"\", IF(INDEX('Full set Core Client Indicator'!$A$3:$AB$351, MATCH(Selection_Hide2!$A115, 'Full set Core Client Indicator'!$A$3:$A$351, 0), MATCH(Selection_Hide2!P$5, 'Full set Core Client Indicator'!$A$3:$AB$3, 0))=\"\", \"\",  INDEX('Full set Core Client Indicator'!$A$3:$AB$351, MATCH(Selection_Hide2!$A115, 'Full set Core Client Indicator'!$A$3:$A$351, 0), MATCH(Selection_Hide2!P$5, 'Full set Core Client Indicator'!$A$3:$AB$3, 0))), \"\")","v":""},{"$f":"IF(P115<>\"\", IF(INDEX('Full set Core Client Indicator'!$A$3:$AB$351, MATCH(Selection_Hide2!$A115, 'Full set Core Client Indicator'!$A$3:$A$351, 0), MATCH(Selection_Hide2!Q$5, 'Full set Core Client Indicator'!$A$3:$AB$3, 0))=\"\", \"\",  INDEX('Full set Core Client Indicator'!$A$3:$AB$351, MATCH(Selection_Hide2!$A115, 'Full set Core Client Indicator'!$A$3:$A$351, 0), MATCH(Selection_Hide2!Q$5, 'Full set Core Client Indicator'!$A$3:$AB$3, 0))), \"\")","v":""},{"$f":"IF(Q115<>\"\", IF(INDEX('Full set Core Client Indicator'!$A$3:$AB$351, MATCH(Selection_Hide2!$A115, 'Full set Core Client Indicator'!$A$3:$A$351, 0), MATCH(Selection_Hide2!R$5, 'Full set Core Client Indicator'!$A$3:$AB$3, 0))=\"\", \"\",  INDEX('Full set Core Client Indicator'!$A$3:$AB$351, MATCH(Selection_Hide2!$A115, 'Full set Core Client Indicator'!$A$3:$A$351, 0), MATCH(Selection_Hide2!R$5, 'Full set Core Client Indicator'!$A$3:$AB$3, 0))), \"\")","v":""},{"$f":"IF(R115<>\"\", IF(INDEX('Full set Core Client Indicator'!$A$3:$AB$351, MATCH(Selection_Hide2!$A115, 'Full set Core Client Indicator'!$A$3:$A$351, 0), MATCH(Selection_Hide2!S$5, 'Full set Core Client Indicator'!$A$3:$AB$3, 0))=\"\", \"\",  INDEX('Full set Core Client Indicator'!$A$3:$AB$351, MATCH(Selection_Hide2!$A115, 'Full set Core Client Indicator'!$A$3:$A$351, 0), MATCH(Selection_Hide2!S$5, 'Full set Core Client Indicator'!$A$3:$AB$3, 0))), \"\")","v":""},{"$f":"IF(S115<>\"\", IF(INDEX('Full set Core Client Indicator'!$A$3:$AB$351, MATCH(Selection_Hide2!$A115, 'Full set Core Client Indicator'!$A$3:$A$351, 0), MATCH(Selection_Hide2!T$5, 'Full set Core Client Indicator'!$A$3:$AB$3, 0))=\"\", \"\",  INDEX('Full set Core Client Indicator'!$A$3:$AB$351, MATCH(Selection_Hide2!$A115, 'Full set Core Client Indicator'!$A$3:$A$351, 0), MATCH(Selection_Hide2!T$5, 'Full set Core Client Indicator'!$A$3:$AB$3, 0))), \"\")","v":""},{"$f":"IF(T115<>\"\", IF(INDEX('Full set Core Client Indicator'!$A$3:$AB$351, MATCH(Selection_Hide2!$A115, 'Full set Core Client Indicator'!$A$3:$A$351, 0), MATCH(Selection_Hide2!U$5, 'Full set Core Client Indicator'!$A$3:$AB$3, 0))=\"\", \"\",  INDEX('Full set Core Client Indicator'!$A$3:$AB$351, MATCH(Selection_Hide2!$A115, 'Full set Core Client Indicator'!$A$3:$A$351, 0), MATCH(Selection_Hide2!U$5, 'Full set Core Client Indicator'!$A$3:$AB$3, 0))), \"\")","v":""},{"$f":"IF(U115<>\"\", IF(INDEX('Full set Core Client Indicator'!$A$3:$AB$351, MATCH(Selection_Hide2!$A115, 'Full set Core Client Indicator'!$A$3:$A$351, 0), MATCH(Selection_Hide2!V$5, 'Full set Core Client Indicator'!$A$3:$AB$3, 0))=\"\", \"\",  INDEX('Full set Core Client Indicator'!$A$3:$AB$351, MATCH(Selection_Hide2!$A115, 'Full set Core Client Indicator'!$A$3:$A$351, 0), MATCH(Selection_Hide2!V$5, 'Full set Core Client Indicator'!$A$3:$AB$3, 0))), \"\")","v":""},{"$f":"IF(V115<>\"\", IF(INDEX('Full set Core Client Indicator'!$A$3:$AB$351, MATCH(Selection_Hide2!$A115, 'Full set Core Client Indicator'!$A$3:$A$351, 0), MATCH(Selection_Hide2!W$5, 'Full set Core Client Indicator'!$A$3:$AB$3, 0))=\"\", \"\",  INDEX('Full set Core Client Indicator'!$A$3:$AB$351, MATCH(Selection_Hide2!$A115, 'Full set Core Client Indicator'!$A$3:$A$351, 0), MATCH(Selection_Hide2!W$5, 'Full set Core Client Indicator'!$A$3:$AB$3, 0))), \"\")","v":""},{"$f":"IF(W115<>\"\", IF(INDEX('Full set Core Client Indicator'!$A$3:$AB$351, MATCH(Selection_Hide2!$A115, 'Full set Core Client Indicator'!$A$3:$A$351, 0), MATCH(Selection_Hide2!X$5, 'Full set Core Client Indicator'!$A$3:$AB$3, 0))=\"\", \"\",  INDEX('Full set Core Client Indicator'!$A$3:$AB$351, MATCH(Selection_Hide2!$A115, 'Full set Core Client Indicator'!$A$3:$A$351, 0), MATCH(Selection_Hide2!X$5, 'Full set Core Client Indicator'!$A$3:$AB$3, 0))), \"\")","v":""},{"$f":"IF(X115<>\"\", IF(INDEX('Full set Core Client Indicator'!$A$3:$AB$351, MATCH(Selection_Hide2!$A115, 'Full set Core Client Indicator'!$A$3:$A$351, 0), MATCH(Selection_Hide2!Y$5, 'Full set Core Client Indicator'!$A$3:$AB$3, 0))=\"\", \"\",  INDEX('Full set Core Client Indicator'!$A$3:$AB$351, MATCH(Selection_Hide2!$A115, 'Full set Core Client Indicator'!$A$3:$A$351, 0), MATCH(Selection_Hide2!Y$5, 'Full set Core Client Indicator'!$A$3:$AB$3, 0))), \"\")","v":""},{"$f":"IF(Y115<>\"\", IF(INDEX('Full set Core Client Indicator'!$A$3:$AB$351, MATCH(Selection_Hide2!$A115, 'Full set Core Client Indicator'!$A$3:$A$351, 0), MATCH(Selection_Hide2!Z$5, 'Full set Core Client Indicator'!$A$3:$AB$3, 0))=\"\", \"\",  INDEX('Full set Core Client Indicator'!$A$3:$AB$351, MATCH(Selection_Hide2!$A115, 'Full set Core Client Indicator'!$A$3:$A$351, 0), MATCH(Selection_Hide2!Z$5, 'Full set Core Client Indicator'!$A$3:$AB$3, 0))), \"\")","v":""},{"$f":"IF(Z115<>\"\", IF(INDEX('Full set Core Client Indicator'!$A$3:$AB$351, MATCH(Selection_Hide2!$A115, 'Full set Core Client Indicator'!$A$3:$A$351, 0), MATCH(Selection_Hide2!AA$5, 'Full set Core Client Indicator'!$A$3:$AB$3, 0))=\"\", \"\",  INDEX('Full set Core Client Indicator'!$A$3:$AB$351, MATCH(Selection_Hide2!$A115, 'Full set Core Client Indicator'!$A$3:$A$351, 0), MATCH(Selection_Hide2!AA$5, 'Full set Core Client Indicator'!$A$3:$AB$3, 0))), \"\")","v":""},{"$f":"IF(AA115<>\"\", IF(INDEX('Full set Core Client Indicator'!$A$3:$AB$351, MATCH(Selection_Hide2!$A115, 'Full set Core Client Indicator'!$A$3:$A$351, 0), MATCH(Selection_Hide2!AB$5, 'Full set Core Client Indicator'!$A$3:$AB$3, 0))=\"\", \"\",  INDEX('Full set Core Client Indicator'!$A$3:$AB$351, MATCH(Selection_Hide2!$A115, 'Full set Core Client Indicator'!$A$3:$A$351, 0), MATCH(Selection_Hide2!AB$5, 'Full set Core Client Indicator'!$A$3:$AB$3, 0))), \"\")","v":""}]
[{"$f":"IF(AND(Selection_Hide1!C114<>0, Selection_Hide1!C114<>\"Grand Total\"), Selection_Hide1!C114, \"\")","v":""},{"$f":"IF(A116<>\"\", IF(INDEX('Full set Core Client Indicator'!$A$3:$AB$351, MATCH(Selection_Hide2!$A116, 'Full set Core Client Indicator'!$A$3:$A$351, 0), MATCH(Selection_Hide2!B$5, 'Full set Core Client Indicator'!$A$3:$AB$3, 0))=\"\", \"\",  INDEX('Full set Core Client Indicator'!$A$3:$AB$351, MATCH(Selection_Hide2!$A116, 'Full set Core Client Indicator'!$A$3:$A$351, 0), MATCH(Selection_Hide2!B$5, 'Full set Core Client Indicator'!$A$3:$AB$3, 0))), \"\")","v":""},{"$f":"IF(B116<>\"\", IF(INDEX('Full set Core Client Indicator'!$A$3:$AB$351, MATCH(Selection_Hide2!$A116, 'Full set Core Client Indicator'!$A$3:$A$351, 0), MATCH(Selection_Hide2!C$5, 'Full set Core Client Indicator'!$A$3:$AB$3, 0))=\"\", \"\",  INDEX('Full set Core Client Indicator'!$A$3:$AB$351, MATCH(Selection_Hide2!$A116, 'Full set Core Client Indicator'!$A$3:$A$351, 0), MATCH(Selection_Hide2!C$5, 'Full set Core Client Indicator'!$A$3:$AB$3, 0))), \"\")","v":""},{"$f":"IF(C116<>\"\", IF(INDEX('Full set Core Client Indicator'!$A$3:$AB$351, MATCH(Selection_Hide2!$A116, 'Full set Core Client Indicator'!$A$3:$A$351, 0), MATCH(Selection_Hide2!D$5, 'Full set Core Client Indicator'!$A$3:$AB$3, 0))=\"\", \"\",  INDEX('Full set Core Client Indicator'!$A$3:$AB$351, MATCH(Selection_Hide2!$A116, 'Full set Core Client Indicator'!$A$3:$A$351, 0), MATCH(Selection_Hide2!D$5, 'Full set Core Client Indicator'!$A$3:$AB$3, 0))), \"\")","v":""},{"$f":"IF(D116<>\"\", IF(INDEX('Full set Core Client Indicator'!$A$3:$AB$351, MATCH(Selection_Hide2!$A116, 'Full set Core Client Indicator'!$A$3:$A$351, 0), MATCH(Selection_Hide2!E$5, 'Full set Core Client Indicator'!$A$3:$AB$3, 0))=\"\", \"\",  INDEX('Full set Core Client Indicator'!$A$3:$AB$351, MATCH(Selection_Hide2!$A116, 'Full set Core Client Indicator'!$A$3:$A$351, 0), MATCH(Selection_Hide2!E$5, 'Full set Core Client Indicator'!$A$3:$AB$3, 0))), \"\")","v":""},{"$f":"IF(E116<>\"\", IF(INDEX('Full set Core Client Indicator'!$A$3:$AB$351, MATCH(Selection_Hide2!$A116, 'Full set Core Client Indicator'!$A$3:$A$351, 0), MATCH(Selection_Hide2!F$5, 'Full set Core Client Indicator'!$A$3:$AB$3, 0))=\"\", \"\",  INDEX('Full set Core Client Indicator'!$A$3:$AB$351, MATCH(Selection_Hide2!$A116, 'Full set Core Client Indicator'!$A$3:$A$351, 0), MATCH(Selection_Hide2!F$5, 'Full set Core Client Indicator'!$A$3:$AB$3, 0))), \"\")","v":""},{"$f":"IF(F116<>\"\", IF(INDEX('Full set Core Client Indicator'!$A$3:$AB$351, MATCH(Selection_Hide2!$A116, 'Full set Core Client Indicator'!$A$3:$A$351, 0), MATCH(Selection_Hide2!G$5, 'Full set Core Client Indicator'!$A$3:$AB$3, 0))=\"\", \"\",  INDEX('Full set Core Client Indicator'!$A$3:$AB$351, MATCH(Selection_Hide2!$A116, 'Full set Core Client Indicator'!$A$3:$A$351, 0), MATCH(Selection_Hide2!G$5, 'Full set Core Client Indicator'!$A$3:$AB$3, 0))), \"\")","v":""},{"$f":"IF(G116<>\"\", IF(INDEX('Full set Core Client Indicator'!$A$3:$AB$351, MATCH(Selection_Hide2!$A116, 'Full set Core Client Indicator'!$A$3:$A$351, 0), MATCH(Selection_Hide2!H$5, 'Full set Core Client Indicator'!$A$3:$AB$3, 0))=\"\", \"\",  INDEX('Full set Core Client Indicator'!$A$3:$AB$351, MATCH(Selection_Hide2!$A116, 'Full set Core Client Indicator'!$A$3:$A$351, 0), MATCH(Selection_Hide2!H$5, 'Full set Core Client Indicator'!$A$3:$AB$3, 0))), \"\")","v":""},{"$f":"IF(H116<>\"\", IF(INDEX('Full set Core Client Indicator'!$A$3:$AB$351, MATCH(Selection_Hide2!$A116, 'Full set Core Client Indicator'!$A$3:$A$351, 0), MATCH(Selection_Hide2!I$5, 'Full set Core Client Indicator'!$A$3:$AB$3, 0))=\"\", \"\",  INDEX('Full set Core Client Indicator'!$A$3:$AB$351, MATCH(Selection_Hide2!$A116, 'Full set Core Client Indicator'!$A$3:$A$351, 0), MATCH(Selection_Hide2!I$5, 'Full set Core Client Indicator'!$A$3:$AB$3, 0))), \"\")","v":""},{"$f":"IF(I116<>\"\", IF(INDEX('Full set Core Client Indicator'!$A$3:$AB$351, MATCH(Selection_Hide2!$A116, 'Full set Core Client Indicator'!$A$3:$A$351, 0), MATCH(Selection_Hide2!J$5, 'Full set Core Client Indicator'!$A$3:$AB$3, 0))=\"\", \"\",  INDEX('Full set Core Client Indicator'!$A$3:$AB$351, MATCH(Selection_Hide2!$A116, 'Full set Core Client Indicator'!$A$3:$A$351, 0), MATCH(Selection_Hide2!J$5, 'Full set Core Client Indicator'!$A$3:$AB$3, 0))), \"\")","v":""},{"$f":"IF(J116<>\"\", IF(INDEX('Full set Core Client Indicator'!$A$3:$AB$351, MATCH(Selection_Hide2!$A116, 'Full set Core Client Indicator'!$A$3:$A$351, 0), MATCH(Selection_Hide2!K$5, 'Full set Core Client Indicator'!$A$3:$AB$3, 0))=\"\", \"\",  INDEX('Full set Core Client Indicator'!$A$3:$AB$351, MATCH(Selection_Hide2!$A116, 'Full set Core Client Indicator'!$A$3:$A$351, 0), MATCH(Selection_Hide2!K$5, 'Full set Core Client Indicator'!$A$3:$AB$3, 0))), \"\")","v":""},{"$f":"IF(K116<>\"\", IF(INDEX('Full set Core Client Indicator'!$A$3:$AB$351, MATCH(Selection_Hide2!$A116, 'Full set Core Client Indicator'!$A$3:$A$351, 0), MATCH(Selection_Hide2!L$5, 'Full set Core Client Indicator'!$A$3:$AB$3, 0))=\"\", \"\",  INDEX('Full set Core Client Indicator'!$A$3:$AB$351, MATCH(Selection_Hide2!$A116, 'Full set Core Client Indicator'!$A$3:$A$351, 0), MATCH(Selection_Hide2!L$5, 'Full set Core Client Indicator'!$A$3:$AB$3, 0))), \"\")","v":""},{"$f":"IF(L116<>\"\", IF(INDEX('Full set Core Client Indicator'!$A$3:$AB$351, MATCH(Selection_Hide2!$A116, 'Full set Core Client Indicator'!$A$3:$A$351, 0), MATCH(Selection_Hide2!M$5, 'Full set Core Client Indicator'!$A$3:$AB$3, 0))=\"\", \"\",  INDEX('Full set Core Client Indicator'!$A$3:$AB$351, MATCH(Selection_Hide2!$A116, 'Full set Core Client Indicator'!$A$3:$A$351, 0), MATCH(Selection_Hide2!M$5, 'Full set Core Client Indicator'!$A$3:$AB$3, 0))), \"\")","v":""},{"$f":"IF(M116<>\"\", IF(INDEX('Full set Core Client Indicator'!$A$3:$AB$351, MATCH(Selection_Hide2!$A116, 'Full set Core Client Indicator'!$A$3:$A$351, 0), MATCH(Selection_Hide2!N$5, 'Full set Core Client Indicator'!$A$3:$AB$3, 0))=\"\", \"\",  INDEX('Full set Core Client Indicator'!$A$3:$AB$351, MATCH(Selection_Hide2!$A116, 'Full set Core Client Indicator'!$A$3:$A$351, 0), MATCH(Selection_Hide2!N$5, 'Full set Core Client Indicator'!$A$3:$AB$3, 0))), \"\")","v":""},{"$f":"IF(N116<>\"\", IF(INDEX('Full set Core Client Indicator'!$A$3:$AB$351, MATCH(Selection_Hide2!$A116, 'Full set Core Client Indicator'!$A$3:$A$351, 0), MATCH(Selection_Hide2!O$5, 'Full set Core Client Indicator'!$A$3:$AB$3, 0))=\"\", \"\",  INDEX('Full set Core Client Indicator'!$A$3:$AB$351, MATCH(Selection_Hide2!$A116, 'Full set Core Client Indicator'!$A$3:$A$351, 0), MATCH(Selection_Hide2!O$5, 'Full set Core Client Indicator'!$A$3:$AB$3, 0))), \"\")","v":""},{"$f":"IF(O116<>\"\", IF(INDEX('Full set Core Client Indicator'!$A$3:$AB$351, MATCH(Selection_Hide2!$A116, 'Full set Core Client Indicator'!$A$3:$A$351, 0), MATCH(Selection_Hide2!P$5, 'Full set Core Client Indicator'!$A$3:$AB$3, 0))=\"\", \"\",  INDEX('Full set Core Client Indicator'!$A$3:$AB$351, MATCH(Selection_Hide2!$A116, 'Full set Core Client Indicator'!$A$3:$A$351, 0), MATCH(Selection_Hide2!P$5, 'Full set Core Client Indicator'!$A$3:$AB$3, 0))), \"\")","v":""},{"$f":"IF(P116<>\"\", IF(INDEX('Full set Core Client Indicator'!$A$3:$AB$351, MATCH(Selection_Hide2!$A116, 'Full set Core Client Indicator'!$A$3:$A$351, 0), MATCH(Selection_Hide2!Q$5, 'Full set Core Client Indicator'!$A$3:$AB$3, 0))=\"\", \"\",  INDEX('Full set Core Client Indicator'!$A$3:$AB$351, MATCH(Selection_Hide2!$A116, 'Full set Core Client Indicator'!$A$3:$A$351, 0), MATCH(Selection_Hide2!Q$5, 'Full set Core Client Indicator'!$A$3:$AB$3, 0))), \"\")","v":""},{"$f":"IF(Q116<>\"\", IF(INDEX('Full set Core Client Indicator'!$A$3:$AB$351, MATCH(Selection_Hide2!$A116, 'Full set Core Client Indicator'!$A$3:$A$351, 0), MATCH(Selection_Hide2!R$5, 'Full set Core Client Indicator'!$A$3:$AB$3, 0))=\"\", \"\",  INDEX('Full set Core Client Indicator'!$A$3:$AB$351, MATCH(Selection_Hide2!$A116, 'Full set Core Client Indicator'!$A$3:$A$351, 0), MATCH(Selection_Hide2!R$5, 'Full set Core Client Indicator'!$A$3:$AB$3, 0))), \"\")","v":""},{"$f":"IF(R116<>\"\", IF(INDEX('Full set Core Client Indicator'!$A$3:$AB$351, MATCH(Selection_Hide2!$A116, 'Full set Core Client Indicator'!$A$3:$A$351, 0), MATCH(Selection_Hide2!S$5, 'Full set Core Client Indicator'!$A$3:$AB$3, 0))=\"\", \"\",  INDEX('Full set Core Client Indicator'!$A$3:$AB$351, MATCH(Selection_Hide2!$A116, 'Full set Core Client Indicator'!$A$3:$A$351, 0), MATCH(Selection_Hide2!S$5, 'Full set Core Client Indicator'!$A$3:$AB$3, 0))), \"\")","v":""},{"$f":"IF(S116<>\"\", IF(INDEX('Full set Core Client Indicator'!$A$3:$AB$351, MATCH(Selection_Hide2!$A116, 'Full set Core Client Indicator'!$A$3:$A$351, 0), MATCH(Selection_Hide2!T$5, 'Full set Core Client Indicator'!$A$3:$AB$3, 0))=\"\", \"\",  INDEX('Full set Core Client Indicator'!$A$3:$AB$351, MATCH(Selection_Hide2!$A116, 'Full set Core Client Indicator'!$A$3:$A$351, 0), MATCH(Selection_Hide2!T$5, 'Full set Core Client Indicator'!$A$3:$AB$3, 0))), \"\")","v":""},{"$f":"IF(T116<>\"\", IF(INDEX('Full set Core Client Indicator'!$A$3:$AB$351, MATCH(Selection_Hide2!$A116, 'Full set Core Client Indicator'!$A$3:$A$351, 0), MATCH(Selection_Hide2!U$5, 'Full set Core Client Indicator'!$A$3:$AB$3, 0))=\"\", \"\",  INDEX('Full set Core Client Indicator'!$A$3:$AB$351, MATCH(Selection_Hide2!$A116, 'Full set Core Client Indicator'!$A$3:$A$351, 0), MATCH(Selection_Hide2!U$5, 'Full set Core Client Indicator'!$A$3:$AB$3, 0))), \"\")","v":""},{"$f":"IF(U116<>\"\", IF(INDEX('Full set Core Client Indicator'!$A$3:$AB$351, MATCH(Selection_Hide2!$A116, 'Full set Core Client Indicator'!$A$3:$A$351, 0), MATCH(Selection_Hide2!V$5, 'Full set Core Client Indicator'!$A$3:$AB$3, 0))=\"\", \"\",  INDEX('Full set Core Client Indicator'!$A$3:$AB$351, MATCH(Selection_Hide2!$A116, 'Full set Core Client Indicator'!$A$3:$A$351, 0), MATCH(Selection_Hide2!V$5, 'Full set Core Client Indicator'!$A$3:$AB$3, 0))), \"\")","v":""},{"$f":"IF(V116<>\"\", IF(INDEX('Full set Core Client Indicator'!$A$3:$AB$351, MATCH(Selection_Hide2!$A116, 'Full set Core Client Indicator'!$A$3:$A$351, 0), MATCH(Selection_Hide2!W$5, 'Full set Core Client Indicator'!$A$3:$AB$3, 0))=\"\", \"\",  INDEX('Full set Core Client Indicator'!$A$3:$AB$351, MATCH(Selection_Hide2!$A116, 'Full set Core Client Indicator'!$A$3:$A$351, 0), MATCH(Selection_Hide2!W$5, 'Full set Core Client Indicator'!$A$3:$AB$3, 0))), \"\")","v":""},{"$f":"IF(W116<>\"\", IF(INDEX('Full set Core Client Indicator'!$A$3:$AB$351, MATCH(Selection_Hide2!$A116, 'Full set Core Client Indicator'!$A$3:$A$351, 0), MATCH(Selection_Hide2!X$5, 'Full set Core Client Indicator'!$A$3:$AB$3, 0))=\"\", \"\",  INDEX('Full set Core Client Indicator'!$A$3:$AB$351, MATCH(Selection_Hide2!$A116, 'Full set Core Client Indicator'!$A$3:$A$351, 0), MATCH(Selection_Hide2!X$5, 'Full set Core Client Indicator'!$A$3:$AB$3, 0))), \"\")","v":""},{"$f":"IF(X116<>\"\", IF(INDEX('Full set Core Client Indicator'!$A$3:$AB$351, MATCH(Selection_Hide2!$A116, 'Full set Core Client Indicator'!$A$3:$A$351, 0), MATCH(Selection_Hide2!Y$5, 'Full set Core Client Indicator'!$A$3:$AB$3, 0))=\"\", \"\",  INDEX('Full set Core Client Indicator'!$A$3:$AB$351, MATCH(Selection_Hide2!$A116, 'Full set Core Client Indicator'!$A$3:$A$351, 0), MATCH(Selection_Hide2!Y$5, 'Full set Core Client Indicator'!$A$3:$AB$3, 0))), \"\")","v":""},{"$f":"IF(Y116<>\"\", IF(INDEX('Full set Core Client Indicator'!$A$3:$AB$351, MATCH(Selection_Hide2!$A116, 'Full set Core Client Indicator'!$A$3:$A$351, 0), MATCH(Selection_Hide2!Z$5, 'Full set Core Client Indicator'!$A$3:$AB$3, 0))=\"\", \"\",  INDEX('Full set Core Client Indicator'!$A$3:$AB$351, MATCH(Selection_Hide2!$A116, 'Full set Core Client Indicator'!$A$3:$A$351, 0), MATCH(Selection_Hide2!Z$5, 'Full set Core Client Indicator'!$A$3:$AB$3, 0))), \"\")","v":""},{"$f":"IF(Z116<>\"\", IF(INDEX('Full set Core Client Indicator'!$A$3:$AB$351, MATCH(Selection_Hide2!$A116, 'Full set Core Client Indicator'!$A$3:$A$351, 0), MATCH(Selection_Hide2!AA$5, 'Full set Core Client Indicator'!$A$3:$AB$3, 0))=\"\", \"\",  INDEX('Full set Core Client Indicator'!$A$3:$AB$351, MATCH(Selection_Hide2!$A116, 'Full set Core Client Indicator'!$A$3:$A$351, 0), MATCH(Selection_Hide2!AA$5, 'Full set Core Client Indicator'!$A$3:$AB$3, 0))), \"\")","v":""},{"$f":"IF(AA116<>\"\", IF(INDEX('Full set Core Client Indicator'!$A$3:$AB$351, MATCH(Selection_Hide2!$A116, 'Full set Core Client Indicator'!$A$3:$A$351, 0), MATCH(Selection_Hide2!AB$5, 'Full set Core Client Indicator'!$A$3:$AB$3, 0))=\"\", \"\",  INDEX('Full set Core Client Indicator'!$A$3:$AB$351, MATCH(Selection_Hide2!$A116, 'Full set Core Client Indicator'!$A$3:$A$351, 0), MATCH(Selection_Hide2!AB$5, 'Full set Core Client Indicator'!$A$3:$AB$3, 0))), \"\")","v":""}]
[{"$f":"IF(AND(Selection_Hide1!C115<>0, Selection_Hide1!C115<>\"Grand Total\"), Selection_Hide1!C115, \"\")","v":""},{"$f":"IF(A117<>\"\", IF(INDEX('Full set Core Client Indicator'!$A$3:$AB$351, MATCH(Selection_Hide2!$A117, 'Full set Core Client Indicator'!$A$3:$A$351, 0), MATCH(Selection_Hide2!B$5, 'Full set Core Client Indicator'!$A$3:$AB$3, 0))=\"\", \"\",  INDEX('Full set Core Client Indicator'!$A$3:$AB$351, MATCH(Selection_Hide2!$A117, 'Full set Core Client Indicator'!$A$3:$A$351, 0), MATCH(Selection_Hide2!B$5, 'Full set Core Client Indicator'!$A$3:$AB$3, 0))), \"\")","v":""},{"$f":"IF(B117<>\"\", IF(INDEX('Full set Core Client Indicator'!$A$3:$AB$351, MATCH(Selection_Hide2!$A117, 'Full set Core Client Indicator'!$A$3:$A$351, 0), MATCH(Selection_Hide2!C$5, 'Full set Core Client Indicator'!$A$3:$AB$3, 0))=\"\", \"\",  INDEX('Full set Core Client Indicator'!$A$3:$AB$351, MATCH(Selection_Hide2!$A117, 'Full set Core Client Indicator'!$A$3:$A$351, 0), MATCH(Selection_Hide2!C$5, 'Full set Core Client Indicator'!$A$3:$AB$3, 0))), \"\")","v":""},{"$f":"IF(C117<>\"\", IF(INDEX('Full set Core Client Indicator'!$A$3:$AB$351, MATCH(Selection_Hide2!$A117, 'Full set Core Client Indicator'!$A$3:$A$351, 0), MATCH(Selection_Hide2!D$5, 'Full set Core Client Indicator'!$A$3:$AB$3, 0))=\"\", \"\",  INDEX('Full set Core Client Indicator'!$A$3:$AB$351, MATCH(Selection_Hide2!$A117, 'Full set Core Client Indicator'!$A$3:$A$351, 0), MATCH(Selection_Hide2!D$5, 'Full set Core Client Indicator'!$A$3:$AB$3, 0))), \"\")","v":""},{"$f":"IF(D117<>\"\", IF(INDEX('Full set Core Client Indicator'!$A$3:$AB$351, MATCH(Selection_Hide2!$A117, 'Full set Core Client Indicator'!$A$3:$A$351, 0), MATCH(Selection_Hide2!E$5, 'Full set Core Client Indicator'!$A$3:$AB$3, 0))=\"\", \"\",  INDEX('Full set Core Client Indicator'!$A$3:$AB$351, MATCH(Selection_Hide2!$A117, 'Full set Core Client Indicator'!$A$3:$A$351, 0), MATCH(Selection_Hide2!E$5, 'Full set Core Client Indicator'!$A$3:$AB$3, 0))), \"\")","v":""},{"$f":"IF(E117<>\"\", IF(INDEX('Full set Core Client Indicator'!$A$3:$AB$351, MATCH(Selection_Hide2!$A117, 'Full set Core Client Indicator'!$A$3:$A$351, 0), MATCH(Selection_Hide2!F$5, 'Full set Core Client Indicator'!$A$3:$AB$3, 0))=\"\", \"\",  INDEX('Full set Core Client Indicator'!$A$3:$AB$351, MATCH(Selection_Hide2!$A117, 'Full set Core Client Indicator'!$A$3:$A$351, 0), MATCH(Selection_Hide2!F$5, 'Full set Core Client Indicator'!$A$3:$AB$3, 0))), \"\")","v":""},{"$f":"IF(F117<>\"\", IF(INDEX('Full set Core Client Indicator'!$A$3:$AB$351, MATCH(Selection_Hide2!$A117, 'Full set Core Client Indicator'!$A$3:$A$351, 0), MATCH(Selection_Hide2!G$5, 'Full set Core Client Indicator'!$A$3:$AB$3, 0))=\"\", \"\",  INDEX('Full set Core Client Indicator'!$A$3:$AB$351, MATCH(Selection_Hide2!$A117, 'Full set Core Client Indicator'!$A$3:$A$351, 0), MATCH(Selection_Hide2!G$5, 'Full set Core Client Indicator'!$A$3:$AB$3, 0))), \"\")","v":""},{"$f":"IF(G117<>\"\", IF(INDEX('Full set Core Client Indicator'!$A$3:$AB$351, MATCH(Selection_Hide2!$A117, 'Full set Core Client Indicator'!$A$3:$A$351, 0), MATCH(Selection_Hide2!H$5, 'Full set Core Client Indicator'!$A$3:$AB$3, 0))=\"\", \"\",  INDEX('Full set Core Client Indicator'!$A$3:$AB$351, MATCH(Selection_Hide2!$A117, 'Full set Core Client Indicator'!$A$3:$A$351, 0), MATCH(Selection_Hide2!H$5, 'Full set Core Client Indicator'!$A$3:$AB$3, 0))), \"\")","v":""},{"$f":"IF(H117<>\"\", IF(INDEX('Full set Core Client Indicator'!$A$3:$AB$351, MATCH(Selection_Hide2!$A117, 'Full set Core Client Indicator'!$A$3:$A$351, 0), MATCH(Selection_Hide2!I$5, 'Full set Core Client Indicator'!$A$3:$AB$3, 0))=\"\", \"\",  INDEX('Full set Core Client Indicator'!$A$3:$AB$351, MATCH(Selection_Hide2!$A117, 'Full set Core Client Indicator'!$A$3:$A$351, 0), MATCH(Selection_Hide2!I$5, 'Full set Core Client Indicator'!$A$3:$AB$3, 0))), \"\")","v":""},{"$f":"IF(I117<>\"\", IF(INDEX('Full set Core Client Indicator'!$A$3:$AB$351, MATCH(Selection_Hide2!$A117, 'Full set Core Client Indicator'!$A$3:$A$351, 0), MATCH(Selection_Hide2!J$5, 'Full set Core Client Indicator'!$A$3:$AB$3, 0))=\"\", \"\",  INDEX('Full set Core Client Indicator'!$A$3:$AB$351, MATCH(Selection_Hide2!$A117, 'Full set Core Client Indicator'!$A$3:$A$351, 0), MATCH(Selection_Hide2!J$5, 'Full set Core Client Indicator'!$A$3:$AB$3, 0))), \"\")","v":""},{"$f":"IF(J117<>\"\", IF(INDEX('Full set Core Client Indicator'!$A$3:$AB$351, MATCH(Selection_Hide2!$A117, 'Full set Core Client Indicator'!$A$3:$A$351, 0), MATCH(Selection_Hide2!K$5, 'Full set Core Client Indicator'!$A$3:$AB$3, 0))=\"\", \"\",  INDEX('Full set Core Client Indicator'!$A$3:$AB$351, MATCH(Selection_Hide2!$A117, 'Full set Core Client Indicator'!$A$3:$A$351, 0), MATCH(Selection_Hide2!K$5, 'Full set Core Client Indicator'!$A$3:$AB$3, 0))), \"\")","v":""},{"$f":"IF(K117<>\"\", IF(INDEX('Full set Core Client Indicator'!$A$3:$AB$351, MATCH(Selection_Hide2!$A117, 'Full set Core Client Indicator'!$A$3:$A$351, 0), MATCH(Selection_Hide2!L$5, 'Full set Core Client Indicator'!$A$3:$AB$3, 0))=\"\", \"\",  INDEX('Full set Core Client Indicator'!$A$3:$AB$351, MATCH(Selection_Hide2!$A117, 'Full set Core Client Indicator'!$A$3:$A$351, 0), MATCH(Selection_Hide2!L$5, 'Full set Core Client Indicator'!$A$3:$AB$3, 0))), \"\")","v":""},{"$f":"IF(L117<>\"\", IF(INDEX('Full set Core Client Indicator'!$A$3:$AB$351, MATCH(Selection_Hide2!$A117, 'Full set Core Client Indicator'!$A$3:$A$351, 0), MATCH(Selection_Hide2!M$5, 'Full set Core Client Indicator'!$A$3:$AB$3, 0))=\"\", \"\",  INDEX('Full set Core Client Indicator'!$A$3:$AB$351, MATCH(Selection_Hide2!$A117, 'Full set Core Client Indicator'!$A$3:$A$351, 0), MATCH(Selection_Hide2!M$5, 'Full set Core Client Indicator'!$A$3:$AB$3, 0))), \"\")","v":""},{"$f":"IF(M117<>\"\", IF(INDEX('Full set Core Client Indicator'!$A$3:$AB$351, MATCH(Selection_Hide2!$A117, 'Full set Core Client Indicator'!$A$3:$A$351, 0), MATCH(Selection_Hide2!N$5, 'Full set Core Client Indicator'!$A$3:$AB$3, 0))=\"\", \"\",  INDEX('Full set Core Client Indicator'!$A$3:$AB$351, MATCH(Selection_Hide2!$A117, 'Full set Core Client Indicator'!$A$3:$A$351, 0), MATCH(Selection_Hide2!N$5, 'Full set Core Client Indicator'!$A$3:$AB$3, 0))), \"\")","v":""},{"$f":"IF(N117<>\"\", IF(INDEX('Full set Core Client Indicator'!$A$3:$AB$351, MATCH(Selection_Hide2!$A117, 'Full set Core Client Indicator'!$A$3:$A$351, 0), MATCH(Selection_Hide2!O$5, 'Full set Core Client Indicator'!$A$3:$AB$3, 0))=\"\", \"\",  INDEX('Full set Core Client Indicator'!$A$3:$AB$351, MATCH(Selection_Hide2!$A117, 'Full set Core Client Indicator'!$A$3:$A$351, 0), MATCH(Selection_Hide2!O$5, 'Full set Core Client Indicator'!$A$3:$AB$3, 0))), \"\")","v":""},{"$f":"IF(O117<>\"\", IF(INDEX('Full set Core Client Indicator'!$A$3:$AB$351, MATCH(Selection_Hide2!$A117, 'Full set Core Client Indicator'!$A$3:$A$351, 0), MATCH(Selection_Hide2!P$5, 'Full set Core Client Indicator'!$A$3:$AB$3, 0))=\"\", \"\",  INDEX('Full set Core Client Indicator'!$A$3:$AB$351, MATCH(Selection_Hide2!$A117, 'Full set Core Client Indicator'!$A$3:$A$351, 0), MATCH(Selection_Hide2!P$5, 'Full set Core Client Indicator'!$A$3:$AB$3, 0))), \"\")","v":""},{"$f":"IF(P117<>\"\", IF(INDEX('Full set Core Client Indicator'!$A$3:$AB$351, MATCH(Selection_Hide2!$A117, 'Full set Core Client Indicator'!$A$3:$A$351, 0), MATCH(Selection_Hide2!Q$5, 'Full set Core Client Indicator'!$A$3:$AB$3, 0))=\"\", \"\",  INDEX('Full set Core Client Indicator'!$A$3:$AB$351, MATCH(Selection_Hide2!$A117, 'Full set Core Client Indicator'!$A$3:$A$351, 0), MATCH(Selection_Hide2!Q$5, 'Full set Core Client Indicator'!$A$3:$AB$3, 0))), \"\")","v":""},{"$f":"IF(Q117<>\"\", IF(INDEX('Full set Core Client Indicator'!$A$3:$AB$351, MATCH(Selection_Hide2!$A117, 'Full set Core Client Indicator'!$A$3:$A$351, 0), MATCH(Selection_Hide2!R$5, 'Full set Core Client Indicator'!$A$3:$AB$3, 0))=\"\", \"\",  INDEX('Full set Core Client Indicator'!$A$3:$AB$351, MATCH(Selection_Hide2!$A117, 'Full set Core Client Indicator'!$A$3:$A$351, 0), MATCH(Selection_Hide2!R$5, 'Full set Core Client Indicator'!$A$3:$AB$3, 0))), \"\")","v":""},{"$f":"IF(R117<>\"\", IF(INDEX('Full set Core Client Indicator'!$A$3:$AB$351, MATCH(Selection_Hide2!$A117, 'Full set Core Client Indicator'!$A$3:$A$351, 0), MATCH(Selection_Hide2!S$5, 'Full set Core Client Indicator'!$A$3:$AB$3, 0))=\"\", \"\",  INDEX('Full set Core Client Indicator'!$A$3:$AB$351, MATCH(Selection_Hide2!$A117, 'Full set Core Client Indicator'!$A$3:$A$351, 0), MATCH(Selection_Hide2!S$5, 'Full set Core Client Indicator'!$A$3:$AB$3, 0))), \"\")","v":""},{"$f":"IF(S117<>\"\", IF(INDEX('Full set Core Client Indicator'!$A$3:$AB$351, MATCH(Selection_Hide2!$A117, 'Full set Core Client Indicator'!$A$3:$A$351, 0), MATCH(Selection_Hide2!T$5, 'Full set Core Client Indicator'!$A$3:$AB$3, 0))=\"\", \"\",  INDEX('Full set Core Client Indicator'!$A$3:$AB$351, MATCH(Selection_Hide2!$A117, 'Full set Core Client Indicator'!$A$3:$A$351, 0), MATCH(Selection_Hide2!T$5, 'Full set Core Client Indicator'!$A$3:$AB$3, 0))), \"\")","v":""},{"$f":"IF(T117<>\"\", IF(INDEX('Full set Core Client Indicator'!$A$3:$AB$351, MATCH(Selection_Hide2!$A117, 'Full set Core Client Indicator'!$A$3:$A$351, 0), MATCH(Selection_Hide2!U$5, 'Full set Core Client Indicator'!$A$3:$AB$3, 0))=\"\", \"\",  INDEX('Full set Core Client Indicator'!$A$3:$AB$351, MATCH(Selection_Hide2!$A117, 'Full set Core Client Indicator'!$A$3:$A$351, 0), MATCH(Selection_Hide2!U$5, 'Full set Core Client Indicator'!$A$3:$AB$3, 0))), \"\")","v":""},{"$f":"IF(U117<>\"\", IF(INDEX('Full set Core Client Indicator'!$A$3:$AB$351, MATCH(Selection_Hide2!$A117, 'Full set Core Client Indicator'!$A$3:$A$351, 0), MATCH(Selection_Hide2!V$5, 'Full set Core Client Indicator'!$A$3:$AB$3, 0))=\"\", \"\",  INDEX('Full set Core Client Indicator'!$A$3:$AB$351, MATCH(Selection_Hide2!$A117, 'Full set Core Client Indicator'!$A$3:$A$351, 0), MATCH(Selection_Hide2!V$5, 'Full set Core Client Indicator'!$A$3:$AB$3, 0))), \"\")","v":""},{"$f":"IF(V117<>\"\", IF(INDEX('Full set Core Client Indicator'!$A$3:$AB$351, MATCH(Selection_Hide2!$A117, 'Full set Core Client Indicator'!$A$3:$A$351, 0), MATCH(Selection_Hide2!W$5, 'Full set Core Client Indicator'!$A$3:$AB$3, 0))=\"\", \"\",  INDEX('Full set Core Client Indicator'!$A$3:$AB$351, MATCH(Selection_Hide2!$A117, 'Full set Core Client Indicator'!$A$3:$A$351, 0), MATCH(Selection_Hide2!W$5, 'Full set Core Client Indicator'!$A$3:$AB$3, 0))), \"\")","v":""},{"$f":"IF(W117<>\"\", IF(INDEX('Full set Core Client Indicator'!$A$3:$AB$351, MATCH(Selection_Hide2!$A117, 'Full set Core Client Indicator'!$A$3:$A$351, 0), MATCH(Selection_Hide2!X$5, 'Full set Core Client Indicator'!$A$3:$AB$3, 0))=\"\", \"\",  INDEX('Full set Core Client Indicator'!$A$3:$AB$351, MATCH(Selection_Hide2!$A117, 'Full set Core Client Indicator'!$A$3:$A$351, 0), MATCH(Selection_Hide2!X$5, 'Full set Core Client Indicator'!$A$3:$AB$3, 0))), \"\")","v":""},{"$f":"IF(X117<>\"\", IF(INDEX('Full set Core Client Indicator'!$A$3:$AB$351, MATCH(Selection_Hide2!$A117, 'Full set Core Client Indicator'!$A$3:$A$351, 0), MATCH(Selection_Hide2!Y$5, 'Full set Core Client Indicator'!$A$3:$AB$3, 0))=\"\", \"\",  INDEX('Full set Core Client Indicator'!$A$3:$AB$351, MATCH(Selection_Hide2!$A117, 'Full set Core Client Indicator'!$A$3:$A$351, 0), MATCH(Selection_Hide2!Y$5, 'Full set Core Client Indicator'!$A$3:$AB$3, 0))), \"\")","v":""},{"$f":"IF(Y117<>\"\", IF(INDEX('Full set Core Client Indicator'!$A$3:$AB$351, MATCH(Selection_Hide2!$A117, 'Full set Core Client Indicator'!$A$3:$A$351, 0), MATCH(Selection_Hide2!Z$5, 'Full set Core Client Indicator'!$A$3:$AB$3, 0))=\"\", \"\",  INDEX('Full set Core Client Indicator'!$A$3:$AB$351, MATCH(Selection_Hide2!$A117, 'Full set Core Client Indicator'!$A$3:$A$351, 0), MATCH(Selection_Hide2!Z$5, 'Full set Core Client Indicator'!$A$3:$AB$3, 0))), \"\")","v":""},{"$f":"IF(Z117<>\"\", IF(INDEX('Full set Core Client Indicator'!$A$3:$AB$351, MATCH(Selection_Hide2!$A117, 'Full set Core Client Indicator'!$A$3:$A$351, 0), MATCH(Selection_Hide2!AA$5, 'Full set Core Client Indicator'!$A$3:$AB$3, 0))=\"\", \"\",  INDEX('Full set Core Client Indicator'!$A$3:$AB$351, MATCH(Selection_Hide2!$A117, 'Full set Core Client Indicator'!$A$3:$A$351, 0), MATCH(Selection_Hide2!AA$5, 'Full set Core Client Indicator'!$A$3:$AB$3, 0))), \"\")","v":""},{"$f":"IF(AA117<>\"\", IF(INDEX('Full set Core Client Indicator'!$A$3:$AB$351, MATCH(Selection_Hide2!$A117, 'Full set Core Client Indicator'!$A$3:$A$351, 0), MATCH(Selection_Hide2!AB$5, 'Full set Core Client Indicator'!$A$3:$AB$3, 0))=\"\", \"\",  INDEX('Full set Core Client Indicator'!$A$3:$AB$351, MATCH(Selection_Hide2!$A117, 'Full set Core Client Indicator'!$A$3:$A$351, 0), MATCH(Selection_Hide2!AB$5, 'Full set Core Client Indicator'!$A$3:$AB$3, 0))), \"\")","v":""}]
[{"$f":"IF(AND(Selection_Hide1!C116<>0, Selection_Hide1!C116<>\"Grand Total\"), Selection_Hide1!C116, \"\")","v":""},{"$f":"IF(A118<>\"\", IF(INDEX('Full set Core Client Indicator'!$A$3:$AB$351, MATCH(Selection_Hide2!$A118, 'Full set Core Client Indicator'!$A$3:$A$351, 0), MATCH(Selection_Hide2!B$5, 'Full set Core Client Indicator'!$A$3:$AB$3, 0))=\"\", \"\",  INDEX('Full set Core Client Indicator'!$A$3:$AB$351, MATCH(Selection_Hide2!$A118, 'Full set Core Client Indicator'!$A$3:$A$351, 0), MATCH(Selection_Hide2!B$5, 'Full set Core Client Indicator'!$A$3:$AB$3, 0))), \"\")","v":""},{"$f":"IF(B118<>\"\", IF(INDEX('Full set Core Client Indicator'!$A$3:$AB$351, MATCH(Selection_Hide2!$A118, 'Full set Core Client Indicator'!$A$3:$A$351, 0), MATCH(Selection_Hide2!C$5, 'Full set Core Client Indicator'!$A$3:$AB$3, 0))=\"\", \"\",  INDEX('Full set Core Client Indicator'!$A$3:$AB$351, MATCH(Selection_Hide2!$A118, 'Full set Core Client Indicator'!$A$3:$A$351, 0), MATCH(Selection_Hide2!C$5, 'Full set Core Client Indicator'!$A$3:$AB$3, 0))), \"\")","v":""},{"$f":"IF(C118<>\"\", IF(INDEX('Full set Core Client Indicator'!$A$3:$AB$351, MATCH(Selection_Hide2!$A118, 'Full set Core Client Indicator'!$A$3:$A$351, 0), MATCH(Selection_Hide2!D$5, 'Full set Core Client Indicator'!$A$3:$AB$3, 0))=\"\", \"\",  INDEX('Full set Core Client Indicator'!$A$3:$AB$351, MATCH(Selection_Hide2!$A118, 'Full set Core Client Indicator'!$A$3:$A$351, 0), MATCH(Selection_Hide2!D$5, 'Full set Core Client Indicator'!$A$3:$AB$3, 0))), \"\")","v":""},{"$f":"IF(D118<>\"\", IF(INDEX('Full set Core Client Indicator'!$A$3:$AB$351, MATCH(Selection_Hide2!$A118, 'Full set Core Client Indicator'!$A$3:$A$351, 0), MATCH(Selection_Hide2!E$5, 'Full set Core Client Indicator'!$A$3:$AB$3, 0))=\"\", \"\",  INDEX('Full set Core Client Indicator'!$A$3:$AB$351, MATCH(Selection_Hide2!$A118, 'Full set Core Client Indicator'!$A$3:$A$351, 0), MATCH(Selection_Hide2!E$5, 'Full set Core Client Indicator'!$A$3:$AB$3, 0))), \"\")","v":""},{"$f":"IF(E118<>\"\", IF(INDEX('Full set Core Client Indicator'!$A$3:$AB$351, MATCH(Selection_Hide2!$A118, 'Full set Core Client Indicator'!$A$3:$A$351, 0), MATCH(Selection_Hide2!F$5, 'Full set Core Client Indicator'!$A$3:$AB$3, 0))=\"\", \"\",  INDEX('Full set Core Client Indicator'!$A$3:$AB$351, MATCH(Selection_Hide2!$A118, 'Full set Core Client Indicator'!$A$3:$A$351, 0), MATCH(Selection_Hide2!F$5, 'Full set Core Client Indicator'!$A$3:$AB$3, 0))), \"\")","v":""},{"$f":"IF(F118<>\"\", IF(INDEX('Full set Core Client Indicator'!$A$3:$AB$351, MATCH(Selection_Hide2!$A118, 'Full set Core Client Indicator'!$A$3:$A$351, 0), MATCH(Selection_Hide2!G$5, 'Full set Core Client Indicator'!$A$3:$AB$3, 0))=\"\", \"\",  INDEX('Full set Core Client Indicator'!$A$3:$AB$351, MATCH(Selection_Hide2!$A118, 'Full set Core Client Indicator'!$A$3:$A$351, 0), MATCH(Selection_Hide2!G$5, 'Full set Core Client Indicator'!$A$3:$AB$3, 0))), \"\")","v":""},{"$f":"IF(G118<>\"\", IF(INDEX('Full set Core Client Indicator'!$A$3:$AB$351, MATCH(Selection_Hide2!$A118, 'Full set Core Client Indicator'!$A$3:$A$351, 0), MATCH(Selection_Hide2!H$5, 'Full set Core Client Indicator'!$A$3:$AB$3, 0))=\"\", \"\",  INDEX('Full set Core Client Indicator'!$A$3:$AB$351, MATCH(Selection_Hide2!$A118, 'Full set Core Client Indicator'!$A$3:$A$351, 0), MATCH(Selection_Hide2!H$5, 'Full set Core Client Indicator'!$A$3:$AB$3, 0))), \"\")","v":""},{"$f":"IF(H118<>\"\", IF(INDEX('Full set Core Client Indicator'!$A$3:$AB$351, MATCH(Selection_Hide2!$A118, 'Full set Core Client Indicator'!$A$3:$A$351, 0), MATCH(Selection_Hide2!I$5, 'Full set Core Client Indicator'!$A$3:$AB$3, 0))=\"\", \"\",  INDEX('Full set Core Client Indicator'!$A$3:$AB$351, MATCH(Selection_Hide2!$A118, 'Full set Core Client Indicator'!$A$3:$A$351, 0), MATCH(Selection_Hide2!I$5, 'Full set Core Client Indicator'!$A$3:$AB$3, 0))), \"\")","v":""},{"$f":"IF(I118<>\"\", IF(INDEX('Full set Core Client Indicator'!$A$3:$AB$351, MATCH(Selection_Hide2!$A118, 'Full set Core Client Indicator'!$A$3:$A$351, 0), MATCH(Selection_Hide2!J$5, 'Full set Core Client Indicator'!$A$3:$AB$3, 0))=\"\", \"\",  INDEX('Full set Core Client Indicator'!$A$3:$AB$351, MATCH(Selection_Hide2!$A118, 'Full set Core Client Indicator'!$A$3:$A$351, 0), MATCH(Selection_Hide2!J$5, 'Full set Core Client Indicator'!$A$3:$AB$3, 0))), \"\")","v":""},{"$f":"IF(J118<>\"\", IF(INDEX('Full set Core Client Indicator'!$A$3:$AB$351, MATCH(Selection_Hide2!$A118, 'Full set Core Client Indicator'!$A$3:$A$351, 0), MATCH(Selection_Hide2!K$5, 'Full set Core Client Indicator'!$A$3:$AB$3, 0))=\"\", \"\",  INDEX('Full set Core Client Indicator'!$A$3:$AB$351, MATCH(Selection_Hide2!$A118, 'Full set Core Client Indicator'!$A$3:$A$351, 0), MATCH(Selection_Hide2!K$5, 'Full set Core Client Indicator'!$A$3:$AB$3, 0))), \"\")","v":""},{"$f":"IF(K118<>\"\", IF(INDEX('Full set Core Client Indicator'!$A$3:$AB$351, MATCH(Selection_Hide2!$A118, 'Full set Core Client Indicator'!$A$3:$A$351, 0), MATCH(Selection_Hide2!L$5, 'Full set Core Client Indicator'!$A$3:$AB$3, 0))=\"\", \"\",  INDEX('Full set Core Client Indicator'!$A$3:$AB$351, MATCH(Selection_Hide2!$A118, 'Full set Core Client Indicator'!$A$3:$A$351, 0), MATCH(Selection_Hide2!L$5, 'Full set Core Client Indicator'!$A$3:$AB$3, 0))), \"\")","v":""},{"$f":"IF(L118<>\"\", IF(INDEX('Full set Core Client Indicator'!$A$3:$AB$351, MATCH(Selection_Hide2!$A118, 'Full set Core Client Indicator'!$A$3:$A$351, 0), MATCH(Selection_Hide2!M$5, 'Full set Core Client Indicator'!$A$3:$AB$3, 0))=\"\", \"\",  INDEX('Full set Core Client Indicator'!$A$3:$AB$351, MATCH(Selection_Hide2!$A118, 'Full set Core Client Indicator'!$A$3:$A$351, 0), MATCH(Selection_Hide2!M$5, 'Full set Core Client Indicator'!$A$3:$AB$3, 0))), \"\")","v":""},{"$f":"IF(M118<>\"\", IF(INDEX('Full set Core Client Indicator'!$A$3:$AB$351, MATCH(Selection_Hide2!$A118, 'Full set Core Client Indicator'!$A$3:$A$351, 0), MATCH(Selection_Hide2!N$5, 'Full set Core Client Indicator'!$A$3:$AB$3, 0))=\"\", \"\",  INDEX('Full set Core Client Indicator'!$A$3:$AB$351, MATCH(Selection_Hide2!$A118, 'Full set Core Client Indicator'!$A$3:$A$351, 0), MATCH(Selection_Hide2!N$5, 'Full set Core Client Indicator'!$A$3:$AB$3, 0))), \"\")","v":""},{"$f":"IF(N118<>\"\", IF(INDEX('Full set Core Client Indicator'!$A$3:$AB$351, MATCH(Selection_Hide2!$A118, 'Full set Core Client Indicator'!$A$3:$A$351, 0), MATCH(Selection_Hide2!O$5, 'Full set Core Client Indicator'!$A$3:$AB$3, 0))=\"\", \"\",  INDEX('Full set Core Client Indicator'!$A$3:$AB$351, MATCH(Selection_Hide2!$A118, 'Full set Core Client Indicator'!$A$3:$A$351, 0), MATCH(Selection_Hide2!O$5, 'Full set Core Client Indicator'!$A$3:$AB$3, 0))), \"\")","v":""},{"$f":"IF(O118<>\"\", IF(INDEX('Full set Core Client Indicator'!$A$3:$AB$351, MATCH(Selection_Hide2!$A118, 'Full set Core Client Indicator'!$A$3:$A$351, 0), MATCH(Selection_Hide2!P$5, 'Full set Core Client Indicator'!$A$3:$AB$3, 0))=\"\", \"\",  INDEX('Full set Core Client Indicator'!$A$3:$AB$351, MATCH(Selection_Hide2!$A118, 'Full set Core Client Indicator'!$A$3:$A$351, 0), MATCH(Selection_Hide2!P$5, 'Full set Core Client Indicator'!$A$3:$AB$3, 0))), \"\")","v":""},{"$f":"IF(P118<>\"\", IF(INDEX('Full set Core Client Indicator'!$A$3:$AB$351, MATCH(Selection_Hide2!$A118, 'Full set Core Client Indicator'!$A$3:$A$351, 0), MATCH(Selection_Hide2!Q$5, 'Full set Core Client Indicator'!$A$3:$AB$3, 0))=\"\", \"\",  INDEX('Full set Core Client Indicator'!$A$3:$AB$351, MATCH(Selection_Hide2!$A118, 'Full set Core Client Indicator'!$A$3:$A$351, 0), MATCH(Selection_Hide2!Q$5, 'Full set Core Client Indicator'!$A$3:$AB$3, 0))), \"\")","v":""},{"$f":"IF(Q118<>\"\", IF(INDEX('Full set Core Client Indicator'!$A$3:$AB$351, MATCH(Selection_Hide2!$A118, 'Full set Core Client Indicator'!$A$3:$A$351, 0), MATCH(Selection_Hide2!R$5, 'Full set Core Client Indicator'!$A$3:$AB$3, 0))=\"\", \"\",  INDEX('Full set Core Client Indicator'!$A$3:$AB$351, MATCH(Selection_Hide2!$A118, 'Full set Core Client Indicator'!$A$3:$A$351, 0), MATCH(Selection_Hide2!R$5, 'Full set Core Client Indicator'!$A$3:$AB$3, 0))), \"\")","v":""},{"$f":"IF(R118<>\"\", IF(INDEX('Full set Core Client Indicator'!$A$3:$AB$351, MATCH(Selection_Hide2!$A118, 'Full set Core Client Indicator'!$A$3:$A$351, 0), MATCH(Selection_Hide2!S$5, 'Full set Core Client Indicator'!$A$3:$AB$3, 0))=\"\", \"\",  INDEX('Full set Core Client Indicator'!$A$3:$AB$351, MATCH(Selection_Hide2!$A118, 'Full set Core Client Indicator'!$A$3:$A$351, 0), MATCH(Selection_Hide2!S$5, 'Full set Core Client Indicator'!$A$3:$AB$3, 0))), \"\")","v":""},{"$f":"IF(S118<>\"\", IF(INDEX('Full set Core Client Indicator'!$A$3:$AB$351, MATCH(Selection_Hide2!$A118, 'Full set Core Client Indicator'!$A$3:$A$351, 0), MATCH(Selection_Hide2!T$5, 'Full set Core Client Indicator'!$A$3:$AB$3, 0))=\"\", \"\",  INDEX('Full set Core Client Indicator'!$A$3:$AB$351, MATCH(Selection_Hide2!$A118, 'Full set Core Client Indicator'!$A$3:$A$351, 0), MATCH(Selection_Hide2!T$5, 'Full set Core Client Indicator'!$A$3:$AB$3, 0))), \"\")","v":""},{"$f":"IF(T118<>\"\", IF(INDEX('Full set Core Client Indicator'!$A$3:$AB$351, MATCH(Selection_Hide2!$A118, 'Full set Core Client Indicator'!$A$3:$A$351, 0), MATCH(Selection_Hide2!U$5, 'Full set Core Client Indicator'!$A$3:$AB$3, 0))=\"\", \"\",  INDEX('Full set Core Client Indicator'!$A$3:$AB$351, MATCH(Selection_Hide2!$A118, 'Full set Core Client Indicator'!$A$3:$A$351, 0), MATCH(Selection_Hide2!U$5, 'Full set Core Client Indicator'!$A$3:$AB$3, 0))), \"\")","v":""},{"$f":"IF(U118<>\"\", IF(INDEX('Full set Core Client Indicator'!$A$3:$AB$351, MATCH(Selection_Hide2!$A118, 'Full set Core Client Indicator'!$A$3:$A$351, 0), MATCH(Selection_Hide2!V$5, 'Full set Core Client Indicator'!$A$3:$AB$3, 0))=\"\", \"\",  INDEX('Full set Core Client Indicator'!$A$3:$AB$351, MATCH(Selection_Hide2!$A118, 'Full set Core Client Indicator'!$A$3:$A$351, 0), MATCH(Selection_Hide2!V$5, 'Full set Core Client Indicator'!$A$3:$AB$3, 0))), \"\")","v":""},{"$f":"IF(V118<>\"\", IF(INDEX('Full set Core Client Indicator'!$A$3:$AB$351, MATCH(Selection_Hide2!$A118, 'Full set Core Client Indicator'!$A$3:$A$351, 0), MATCH(Selection_Hide2!W$5, 'Full set Core Client Indicator'!$A$3:$AB$3, 0))=\"\", \"\",  INDEX('Full set Core Client Indicator'!$A$3:$AB$351, MATCH(Selection_Hide2!$A118, 'Full set Core Client Indicator'!$A$3:$A$351, 0), MATCH(Selection_Hide2!W$5, 'Full set Core Client Indicator'!$A$3:$AB$3, 0))), \"\")","v":""},{"$f":"IF(W118<>\"\", IF(INDEX('Full set Core Client Indicator'!$A$3:$AB$351, MATCH(Selection_Hide2!$A118, 'Full set Core Client Indicator'!$A$3:$A$351, 0), MATCH(Selection_Hide2!X$5, 'Full set Core Client Indicator'!$A$3:$AB$3, 0))=\"\", \"\",  INDEX('Full set Core Client Indicator'!$A$3:$AB$351, MATCH(Selection_Hide2!$A118, 'Full set Core Client Indicator'!$A$3:$A$351, 0), MATCH(Selection_Hide2!X$5, 'Full set Core Client Indicator'!$A$3:$AB$3, 0))), \"\")","v":""},{"$f":"IF(X118<>\"\", IF(INDEX('Full set Core Client Indicator'!$A$3:$AB$351, MATCH(Selection_Hide2!$A118, 'Full set Core Client Indicator'!$A$3:$A$351, 0), MATCH(Selection_Hide2!Y$5, 'Full set Core Client Indicator'!$A$3:$AB$3, 0))=\"\", \"\",  INDEX('Full set Core Client Indicator'!$A$3:$AB$351, MATCH(Selection_Hide2!$A118, 'Full set Core Client Indicator'!$A$3:$A$351, 0), MATCH(Selection_Hide2!Y$5, 'Full set Core Client Indicator'!$A$3:$AB$3, 0))), \"\")","v":""},{"$f":"IF(Y118<>\"\", IF(INDEX('Full set Core Client Indicator'!$A$3:$AB$351, MATCH(Selection_Hide2!$A118, 'Full set Core Client Indicator'!$A$3:$A$351, 0), MATCH(Selection_Hide2!Z$5, 'Full set Core Client Indicator'!$A$3:$AB$3, 0))=\"\", \"\",  INDEX('Full set Core Client Indicator'!$A$3:$AB$351, MATCH(Selection_Hide2!$A118, 'Full set Core Client Indicator'!$A$3:$A$351, 0), MATCH(Selection_Hide2!Z$5, 'Full set Core Client Indicator'!$A$3:$AB$3, 0))), \"\")","v":""},{"$f":"IF(Z118<>\"\", IF(INDEX('Full set Core Client Indicator'!$A$3:$AB$351, MATCH(Selection_Hide2!$A118, 'Full set Core Client Indicator'!$A$3:$A$351, 0), MATCH(Selection_Hide2!AA$5, 'Full set Core Client Indicator'!$A$3:$AB$3, 0))=\"\", \"\",  INDEX('Full set Core Client Indicator'!$A$3:$AB$351, MATCH(Selection_Hide2!$A118, 'Full set Core Client Indicator'!$A$3:$A$351, 0), MATCH(Selection_Hide2!AA$5, 'Full set Core Client Indicator'!$A$3:$AB$3, 0))), \"\")","v":""},{"$f":"IF(AA118<>\"\", IF(INDEX('Full set Core Client Indicator'!$A$3:$AB$351, MATCH(Selection_Hide2!$A118, 'Full set Core Client Indicator'!$A$3:$A$351, 0), MATCH(Selection_Hide2!AB$5, 'Full set Core Client Indicator'!$A$3:$AB$3, 0))=\"\", \"\",  INDEX('Full set Core Client Indicator'!$A$3:$AB$351, MATCH(Selection_Hide2!$A118, 'Full set Core Client Indicator'!$A$3:$A$351, 0), MATCH(Selection_Hide2!AB$5, 'Full set Core Client Indicator'!$A$3:$AB$3, 0))), \"\")","v":""}]
[{"$f":"IF(AND(Selection_Hide1!C117<>0, Selection_Hide1!C117<>\"Grand Total\"), Selection_Hide1!C117, \"\")","v":""},{"$f":"IF(A119<>\"\", IF(INDEX('Full set Core Client Indicator'!$A$3:$AB$351, MATCH(Selection_Hide2!$A119, 'Full set Core Client Indicator'!$A$3:$A$351, 0), MATCH(Selection_Hide2!B$5, 'Full set Core Client Indicator'!$A$3:$AB$3, 0))=\"\", \"\",  INDEX('Full set Core Client Indicator'!$A$3:$AB$351, MATCH(Selection_Hide2!$A119, 'Full set Core Client Indicator'!$A$3:$A$351, 0), MATCH(Selection_Hide2!B$5, 'Full set Core Client Indicator'!$A$3:$AB$3, 0))), \"\")","v":""},{"$f":"IF(B119<>\"\", IF(INDEX('Full set Core Client Indicator'!$A$3:$AB$351, MATCH(Selection_Hide2!$A119, 'Full set Core Client Indicator'!$A$3:$A$351, 0), MATCH(Selection_Hide2!C$5, 'Full set Core Client Indicator'!$A$3:$AB$3, 0))=\"\", \"\",  INDEX('Full set Core Client Indicator'!$A$3:$AB$351, MATCH(Selection_Hide2!$A119, 'Full set Core Client Indicator'!$A$3:$A$351, 0), MATCH(Selection_Hide2!C$5, 'Full set Core Client Indicator'!$A$3:$AB$3, 0))), \"\")","v":""},{"$f":"IF(C119<>\"\", IF(INDEX('Full set Core Client Indicator'!$A$3:$AB$351, MATCH(Selection_Hide2!$A119, 'Full set Core Client Indicator'!$A$3:$A$351, 0), MATCH(Selection_Hide2!D$5, 'Full set Core Client Indicator'!$A$3:$AB$3, 0))=\"\", \"\",  INDEX('Full set Core Client Indicator'!$A$3:$AB$351, MATCH(Selection_Hide2!$A119, 'Full set Core Client Indicator'!$A$3:$A$351, 0), MATCH(Selection_Hide2!D$5, 'Full set Core Client Indicator'!$A$3:$AB$3, 0))), \"\")","v":""},{"$f":"IF(D119<>\"\", IF(INDEX('Full set Core Client Indicator'!$A$3:$AB$351, MATCH(Selection_Hide2!$A119, 'Full set Core Client Indicator'!$A$3:$A$351, 0), MATCH(Selection_Hide2!E$5, 'Full set Core Client Indicator'!$A$3:$AB$3, 0))=\"\", \"\",  INDEX('Full set Core Client Indicator'!$A$3:$AB$351, MATCH(Selection_Hide2!$A119, 'Full set Core Client Indicator'!$A$3:$A$351, 0), MATCH(Selection_Hide2!E$5, 'Full set Core Client Indicator'!$A$3:$AB$3, 0))), \"\")","v":""},{"$f":"IF(E119<>\"\", IF(INDEX('Full set Core Client Indicator'!$A$3:$AB$351, MATCH(Selection_Hide2!$A119, 'Full set Core Client Indicator'!$A$3:$A$351, 0), MATCH(Selection_Hide2!F$5, 'Full set Core Client Indicator'!$A$3:$AB$3, 0))=\"\", \"\",  INDEX('Full set Core Client Indicator'!$A$3:$AB$351, MATCH(Selection_Hide2!$A119, 'Full set Core Client Indicator'!$A$3:$A$351, 0), MATCH(Selection_Hide2!F$5, 'Full set Core Client Indicator'!$A$3:$AB$3, 0))), \"\")","v":""},{"$f":"IF(F119<>\"\", IF(INDEX('Full set Core Client Indicator'!$A$3:$AB$351, MATCH(Selection_Hide2!$A119, 'Full set Core Client Indicator'!$A$3:$A$351, 0), MATCH(Selection_Hide2!G$5, 'Full set Core Client Indicator'!$A$3:$AB$3, 0))=\"\", \"\",  INDEX('Full set Core Client Indicator'!$A$3:$AB$351, MATCH(Selection_Hide2!$A119, 'Full set Core Client Indicator'!$A$3:$A$351, 0), MATCH(Selection_Hide2!G$5, 'Full set Core Client Indicator'!$A$3:$AB$3, 0))), \"\")","v":""},{"$f":"IF(G119<>\"\", IF(INDEX('Full set Core Client Indicator'!$A$3:$AB$351, MATCH(Selection_Hide2!$A119, 'Full set Core Client Indicator'!$A$3:$A$351, 0), MATCH(Selection_Hide2!H$5, 'Full set Core Client Indicator'!$A$3:$AB$3, 0))=\"\", \"\",  INDEX('Full set Core Client Indicator'!$A$3:$AB$351, MATCH(Selection_Hide2!$A119, 'Full set Core Client Indicator'!$A$3:$A$351, 0), MATCH(Selection_Hide2!H$5, 'Full set Core Client Indicator'!$A$3:$AB$3, 0))), \"\")","v":""},{"$f":"IF(H119<>\"\", IF(INDEX('Full set Core Client Indicator'!$A$3:$AB$351, MATCH(Selection_Hide2!$A119, 'Full set Core Client Indicator'!$A$3:$A$351, 0), MATCH(Selection_Hide2!I$5, 'Full set Core Client Indicator'!$A$3:$AB$3, 0))=\"\", \"\",  INDEX('Full set Core Client Indicator'!$A$3:$AB$351, MATCH(Selection_Hide2!$A119, 'Full set Core Client Indicator'!$A$3:$A$351, 0), MATCH(Selection_Hide2!I$5, 'Full set Core Client Indicator'!$A$3:$AB$3, 0))), \"\")","v":""},{"$f":"IF(I119<>\"\", IF(INDEX('Full set Core Client Indicator'!$A$3:$AB$351, MATCH(Selection_Hide2!$A119, 'Full set Core Client Indicator'!$A$3:$A$351, 0), MATCH(Selection_Hide2!J$5, 'Full set Core Client Indicator'!$A$3:$AB$3, 0))=\"\", \"\",  INDEX('Full set Core Client Indicator'!$A$3:$AB$351, MATCH(Selection_Hide2!$A119, 'Full set Core Client Indicator'!$A$3:$A$351, 0), MATCH(Selection_Hide2!J$5, 'Full set Core Client Indicator'!$A$3:$AB$3, 0))), \"\")","v":""},{"$f":"IF(J119<>\"\", IF(INDEX('Full set Core Client Indicator'!$A$3:$AB$351, MATCH(Selection_Hide2!$A119, 'Full set Core Client Indicator'!$A$3:$A$351, 0), MATCH(Selection_Hide2!K$5, 'Full set Core Client Indicator'!$A$3:$AB$3, 0))=\"\", \"\",  INDEX('Full set Core Client Indicator'!$A$3:$AB$351, MATCH(Selection_Hide2!$A119, 'Full set Core Client Indicator'!$A$3:$A$351, 0), MATCH(Selection_Hide2!K$5, 'Full set Core Client Indicator'!$A$3:$AB$3, 0))), \"\")","v":""},{"$f":"IF(K119<>\"\", IF(INDEX('Full set Core Client Indicator'!$A$3:$AB$351, MATCH(Selection_Hide2!$A119, 'Full set Core Client Indicator'!$A$3:$A$351, 0), MATCH(Selection_Hide2!L$5, 'Full set Core Client Indicator'!$A$3:$AB$3, 0))=\"\", \"\",  INDEX('Full set Core Client Indicator'!$A$3:$AB$351, MATCH(Selection_Hide2!$A119, 'Full set Core Client Indicator'!$A$3:$A$351, 0), MATCH(Selection_Hide2!L$5, 'Full set Core Client Indicator'!$A$3:$AB$3, 0))), \"\")","v":""},{"$f":"IF(L119<>\"\", IF(INDEX('Full set Core Client Indicator'!$A$3:$AB$351, MATCH(Selection_Hide2!$A119, 'Full set Core Client Indicator'!$A$3:$A$351, 0), MATCH(Selection_Hide2!M$5, 'Full set Core Client Indicator'!$A$3:$AB$3, 0))=\"\", \"\",  INDEX('Full set Core Client Indicator'!$A$3:$AB$351, MATCH(Selection_Hide2!$A119, 'Full set Core Client Indicator'!$A$3:$A$351, 0), MATCH(Selection_Hide2!M$5, 'Full set Core Client Indicator'!$A$3:$AB$3, 0))), \"\")","v":""},{"$f":"IF(M119<>\"\", IF(INDEX('Full set Core Client Indicator'!$A$3:$AB$351, MATCH(Selection_Hide2!$A119, 'Full set Core Client Indicator'!$A$3:$A$351, 0), MATCH(Selection_Hide2!N$5, 'Full set Core Client Indicator'!$A$3:$AB$3, 0))=\"\", \"\",  INDEX('Full set Core Client Indicator'!$A$3:$AB$351, MATCH(Selection_Hide2!$A119, 'Full set Core Client Indicator'!$A$3:$A$351, 0), MATCH(Selection_Hide2!N$5, 'Full set Core Client Indicator'!$A$3:$AB$3, 0))), \"\")","v":""},{"$f":"IF(N119<>\"\", IF(INDEX('Full set Core Client Indicator'!$A$3:$AB$351, MATCH(Selection_Hide2!$A119, 'Full set Core Client Indicator'!$A$3:$A$351, 0), MATCH(Selection_Hide2!O$5, 'Full set Core Client Indicator'!$A$3:$AB$3, 0))=\"\", \"\",  INDEX('Full set Core Client Indicator'!$A$3:$AB$351, MATCH(Selection_Hide2!$A119, 'Full set Core Client Indicator'!$A$3:$A$351, 0), MATCH(Selection_Hide2!O$5, 'Full set Core Client Indicator'!$A$3:$AB$3, 0))), \"\")","v":""},{"$f":"IF(O119<>\"\", IF(INDEX('Full set Core Client Indicator'!$A$3:$AB$351, MATCH(Selection_Hide2!$A119, 'Full set Core Client Indicator'!$A$3:$A$351, 0), MATCH(Selection_Hide2!P$5, 'Full set Core Client Indicator'!$A$3:$AB$3, 0))=\"\", \"\",  INDEX('Full set Core Client Indicator'!$A$3:$AB$351, MATCH(Selection_Hide2!$A119, 'Full set Core Client Indicator'!$A$3:$A$351, 0), MATCH(Selection_Hide2!P$5, 'Full set Core Client Indicator'!$A$3:$AB$3, 0))), \"\")","v":""},{"$f":"IF(P119<>\"\", IF(INDEX('Full set Core Client Indicator'!$A$3:$AB$351, MATCH(Selection_Hide2!$A119, 'Full set Core Client Indicator'!$A$3:$A$351, 0), MATCH(Selection_Hide2!Q$5, 'Full set Core Client Indicator'!$A$3:$AB$3, 0))=\"\", \"\",  INDEX('Full set Core Client Indicator'!$A$3:$AB$351, MATCH(Selection_Hide2!$A119, 'Full set Core Client Indicator'!$A$3:$A$351, 0), MATCH(Selection_Hide2!Q$5, 'Full set Core Client Indicator'!$A$3:$AB$3, 0))), \"\")","v":""},{"$f":"IF(Q119<>\"\", IF(INDEX('Full set Core Client Indicator'!$A$3:$AB$351, MATCH(Selection_Hide2!$A119, 'Full set Core Client Indicator'!$A$3:$A$351, 0), MATCH(Selection_Hide2!R$5, 'Full set Core Client Indicator'!$A$3:$AB$3, 0))=\"\", \"\",  INDEX('Full set Core Client Indicator'!$A$3:$AB$351, MATCH(Selection_Hide2!$A119, 'Full set Core Client Indicator'!$A$3:$A$351, 0), MATCH(Selection_Hide2!R$5, 'Full set Core Client Indicator'!$A$3:$AB$3, 0))), \"\")","v":""},{"$f":"IF(R119<>\"\", IF(INDEX('Full set Core Client Indicator'!$A$3:$AB$351, MATCH(Selection_Hide2!$A119, 'Full set Core Client Indicator'!$A$3:$A$351, 0), MATCH(Selection_Hide2!S$5, 'Full set Core Client Indicator'!$A$3:$AB$3, 0))=\"\", \"\",  INDEX('Full set Core Client Indicator'!$A$3:$AB$351, MATCH(Selection_Hide2!$A119, 'Full set Core Client Indicator'!$A$3:$A$351, 0), MATCH(Selection_Hide2!S$5, 'Full set Core Client Indicator'!$A$3:$AB$3, 0))), \"\")","v":""},{"$f":"IF(S119<>\"\", IF(INDEX('Full set Core Client Indicator'!$A$3:$AB$351, MATCH(Selection_Hide2!$A119, 'Full set Core Client Indicator'!$A$3:$A$351, 0), MATCH(Selection_Hide2!T$5, 'Full set Core Client Indicator'!$A$3:$AB$3, 0))=\"\", \"\",  INDEX('Full set Core Client Indicator'!$A$3:$AB$351, MATCH(Selection_Hide2!$A119, 'Full set Core Client Indicator'!$A$3:$A$351, 0), MATCH(Selection_Hide2!T$5, 'Full set Core Client Indicator'!$A$3:$AB$3, 0))), \"\")","v":""},{"$f":"IF(T119<>\"\", IF(INDEX('Full set Core Client Indicator'!$A$3:$AB$351, MATCH(Selection_Hide2!$A119, 'Full set Core Client Indicator'!$A$3:$A$351, 0), MATCH(Selection_Hide2!U$5, 'Full set Core Client Indicator'!$A$3:$AB$3, 0))=\"\", \"\",  INDEX('Full set Core Client Indicator'!$A$3:$AB$351, MATCH(Selection_Hide2!$A119, 'Full set Core Client Indicator'!$A$3:$A$351, 0), MATCH(Selection_Hide2!U$5, 'Full set Core Client Indicator'!$A$3:$AB$3, 0))), \"\")","v":""},{"$f":"IF(U119<>\"\", IF(INDEX('Full set Core Client Indicator'!$A$3:$AB$351, MATCH(Selection_Hide2!$A119, 'Full set Core Client Indicator'!$A$3:$A$351, 0), MATCH(Selection_Hide2!V$5, 'Full set Core Client Indicator'!$A$3:$AB$3, 0))=\"\", \"\",  INDEX('Full set Core Client Indicator'!$A$3:$AB$351, MATCH(Selection_Hide2!$A119, 'Full set Core Client Indicator'!$A$3:$A$351, 0), MATCH(Selection_Hide2!V$5, 'Full set Core Client Indicator'!$A$3:$AB$3, 0))), \"\")","v":""},{"$f":"IF(V119<>\"\", IF(INDEX('Full set Core Client Indicator'!$A$3:$AB$351, MATCH(Selection_Hide2!$A119, 'Full set Core Client Indicator'!$A$3:$A$351, 0), MATCH(Selection_Hide2!W$5, 'Full set Core Client Indicator'!$A$3:$AB$3, 0))=\"\", \"\",  INDEX('Full set Core Client Indicator'!$A$3:$AB$351, MATCH(Selection_Hide2!$A119, 'Full set Core Client Indicator'!$A$3:$A$351, 0), MATCH(Selection_Hide2!W$5, 'Full set Core Client Indicator'!$A$3:$AB$3, 0))), \"\")","v":""},{"$f":"IF(W119<>\"\", IF(INDEX('Full set Core Client Indicator'!$A$3:$AB$351, MATCH(Selection_Hide2!$A119, 'Full set Core Client Indicator'!$A$3:$A$351, 0), MATCH(Selection_Hide2!X$5, 'Full set Core Client Indicator'!$A$3:$AB$3, 0))=\"\", \"\",  INDEX('Full set Core Client Indicator'!$A$3:$AB$351, MATCH(Selection_Hide2!$A119, 'Full set Core Client Indicator'!$A$3:$A$351, 0), MATCH(Selection_Hide2!X$5, 'Full set Core Client Indicator'!$A$3:$AB$3, 0))), \"\")","v":""},{"$f":"IF(X119<>\"\", IF(INDEX('Full set Core Client Indicator'!$A$3:$AB$351, MATCH(Selection_Hide2!$A119, 'Full set Core Client Indicator'!$A$3:$A$351, 0), MATCH(Selection_Hide2!Y$5, 'Full set Core Client Indicator'!$A$3:$AB$3, 0))=\"\", \"\",  INDEX('Full set Core Client Indicator'!$A$3:$AB$351, MATCH(Selection_Hide2!$A119, 'Full set Core Client Indicator'!$A$3:$A$351, 0), MATCH(Selection_Hide2!Y$5, 'Full set Core Client Indicator'!$A$3:$AB$3, 0))), \"\")","v":""},{"$f":"IF(Y119<>\"\", IF(INDEX('Full set Core Client Indicator'!$A$3:$AB$351, MATCH(Selection_Hide2!$A119, 'Full set Core Client Indicator'!$A$3:$A$351, 0), MATCH(Selection_Hide2!Z$5, 'Full set Core Client Indicator'!$A$3:$AB$3, 0))=\"\", \"\",  INDEX('Full set Core Client Indicator'!$A$3:$AB$351, MATCH(Selection_Hide2!$A119, 'Full set Core Client Indicator'!$A$3:$A$351, 0), MATCH(Selection_Hide2!Z$5, 'Full set Core Client Indicator'!$A$3:$AB$3, 0))), \"\")","v":""},{"$f":"IF(Z119<>\"\", IF(INDEX('Full set Core Client Indicator'!$A$3:$AB$351, MATCH(Selection_Hide2!$A119, 'Full set Core Client Indicator'!$A$3:$A$351, 0), MATCH(Selection_Hide2!AA$5, 'Full set Core Client Indicator'!$A$3:$AB$3, 0))=\"\", \"\",  INDEX('Full set Core Client Indicator'!$A$3:$AB$351, MATCH(Selection_Hide2!$A119, 'Full set Core Client Indicator'!$A$3:$A$351, 0), MATCH(Selection_Hide2!AA$5, 'Full set Core Client Indicator'!$A$3:$AB$3, 0))), \"\")","v":""},{"$f":"IF(AA119<>\"\", IF(INDEX('Full set Core Client Indicator'!$A$3:$AB$351, MATCH(Selection_Hide2!$A119, 'Full set Core Client Indicator'!$A$3:$A$351, 0), MATCH(Selection_Hide2!AB$5, 'Full set Core Client Indicator'!$A$3:$AB$3, 0))=\"\", \"\",  INDEX('Full set Core Client Indicator'!$A$3:$AB$351, MATCH(Selection_Hide2!$A119, 'Full set Core Client Indicator'!$A$3:$A$351, 0), MATCH(Selection_Hide2!AB$5, 'Full set Core Client Indicator'!$A$3:$AB$3, 0))), \"\")","v":""}]
[{"$f":"IF(AND(Selection_Hide1!C118<>0, Selection_Hide1!C118<>\"Grand Total\"), Selection_Hide1!C118, \"\")","v":""},{"$f":"IF(A120<>\"\", IF(INDEX('Full set Core Client Indicator'!$A$3:$AB$351, MATCH(Selection_Hide2!$A120, 'Full set Core Client Indicator'!$A$3:$A$351, 0), MATCH(Selection_Hide2!B$5, 'Full set Core Client Indicator'!$A$3:$AB$3, 0))=\"\", \"\",  INDEX('Full set Core Client Indicator'!$A$3:$AB$351, MATCH(Selection_Hide2!$A120, 'Full set Core Client Indicator'!$A$3:$A$351, 0), MATCH(Selection_Hide2!B$5, 'Full set Core Client Indicator'!$A$3:$AB$3, 0))), \"\")","v":""},{"$f":"IF(B120<>\"\", IF(INDEX('Full set Core Client Indicator'!$A$3:$AB$351, MATCH(Selection_Hide2!$A120, 'Full set Core Client Indicator'!$A$3:$A$351, 0), MATCH(Selection_Hide2!C$5, 'Full set Core Client Indicator'!$A$3:$AB$3, 0))=\"\", \"\",  INDEX('Full set Core Client Indicator'!$A$3:$AB$351, MATCH(Selection_Hide2!$A120, 'Full set Core Client Indicator'!$A$3:$A$351, 0), MATCH(Selection_Hide2!C$5, 'Full set Core Client Indicator'!$A$3:$AB$3, 0))), \"\")","v":""},{"$f":"IF(C120<>\"\", IF(INDEX('Full set Core Client Indicator'!$A$3:$AB$351, MATCH(Selection_Hide2!$A120, 'Full set Core Client Indicator'!$A$3:$A$351, 0), MATCH(Selection_Hide2!D$5, 'Full set Core Client Indicator'!$A$3:$AB$3, 0))=\"\", \"\",  INDEX('Full set Core Client Indicator'!$A$3:$AB$351, MATCH(Selection_Hide2!$A120, 'Full set Core Client Indicator'!$A$3:$A$351, 0), MATCH(Selection_Hide2!D$5, 'Full set Core Client Indicator'!$A$3:$AB$3, 0))), \"\")","v":""},{"$f":"IF(D120<>\"\", IF(INDEX('Full set Core Client Indicator'!$A$3:$AB$351, MATCH(Selection_Hide2!$A120, 'Full set Core Client Indicator'!$A$3:$A$351, 0), MATCH(Selection_Hide2!E$5, 'Full set Core Client Indicator'!$A$3:$AB$3, 0))=\"\", \"\",  INDEX('Full set Core Client Indicator'!$A$3:$AB$351, MATCH(Selection_Hide2!$A120, 'Full set Core Client Indicator'!$A$3:$A$351, 0), MATCH(Selection_Hide2!E$5, 'Full set Core Client Indicator'!$A$3:$AB$3, 0))), \"\")","v":""},{"$f":"IF(E120<>\"\", IF(INDEX('Full set Core Client Indicator'!$A$3:$AB$351, MATCH(Selection_Hide2!$A120, 'Full set Core Client Indicator'!$A$3:$A$351, 0), MATCH(Selection_Hide2!F$5, 'Full set Core Client Indicator'!$A$3:$AB$3, 0))=\"\", \"\",  INDEX('Full set Core Client Indicator'!$A$3:$AB$351, MATCH(Selection_Hide2!$A120, 'Full set Core Client Indicator'!$A$3:$A$351, 0), MATCH(Selection_Hide2!F$5, 'Full set Core Client Indicator'!$A$3:$AB$3, 0))), \"\")","v":""},{"$f":"IF(F120<>\"\", IF(INDEX('Full set Core Client Indicator'!$A$3:$AB$351, MATCH(Selection_Hide2!$A120, 'Full set Core Client Indicator'!$A$3:$A$351, 0), MATCH(Selection_Hide2!G$5, 'Full set Core Client Indicator'!$A$3:$AB$3, 0))=\"\", \"\",  INDEX('Full set Core Client Indicator'!$A$3:$AB$351, MATCH(Selection_Hide2!$A120, 'Full set Core Client Indicator'!$A$3:$A$351, 0), MATCH(Selection_Hide2!G$5, 'Full set Core Client Indicator'!$A$3:$AB$3, 0))), \"\")","v":""},{"$f":"IF(G120<>\"\", IF(INDEX('Full set Core Client Indicator'!$A$3:$AB$351, MATCH(Selection_Hide2!$A120, 'Full set Core Client Indicator'!$A$3:$A$351, 0), MATCH(Selection_Hide2!H$5, 'Full set Core Client Indicator'!$A$3:$AB$3, 0))=\"\", \"\",  INDEX('Full set Core Client Indicator'!$A$3:$AB$351, MATCH(Selection_Hide2!$A120, 'Full set Core Client Indicator'!$A$3:$A$351, 0), MATCH(Selection_Hide2!H$5, 'Full set Core Client Indicator'!$A$3:$AB$3, 0))), \"\")","v":""},{"$f":"IF(H120<>\"\", IF(INDEX('Full set Core Client Indicator'!$A$3:$AB$351, MATCH(Selection_Hide2!$A120, 'Full set Core Client Indicator'!$A$3:$A$351, 0), MATCH(Selection_Hide2!I$5, 'Full set Core Client Indicator'!$A$3:$AB$3, 0))=\"\", \"\",  INDEX('Full set Core Client Indicator'!$A$3:$AB$351, MATCH(Selection_Hide2!$A120, 'Full set Core Client Indicator'!$A$3:$A$351, 0), MATCH(Selection_Hide2!I$5, 'Full set Core Client Indicator'!$A$3:$AB$3, 0))), \"\")","v":""},{"$f":"IF(I120<>\"\", IF(INDEX('Full set Core Client Indicator'!$A$3:$AB$351, MATCH(Selection_Hide2!$A120, 'Full set Core Client Indicator'!$A$3:$A$351, 0), MATCH(Selection_Hide2!J$5, 'Full set Core Client Indicator'!$A$3:$AB$3, 0))=\"\", \"\",  INDEX('Full set Core Client Indicator'!$A$3:$AB$351, MATCH(Selection_Hide2!$A120, 'Full set Core Client Indicator'!$A$3:$A$351, 0), MATCH(Selection_Hide2!J$5, 'Full set Core Client Indicator'!$A$3:$AB$3, 0))), \"\")","v":""},{"$f":"IF(J120<>\"\", IF(INDEX('Full set Core Client Indicator'!$A$3:$AB$351, MATCH(Selection_Hide2!$A120, 'Full set Core Client Indicator'!$A$3:$A$351, 0), MATCH(Selection_Hide2!K$5, 'Full set Core Client Indicator'!$A$3:$AB$3, 0))=\"\", \"\",  INDEX('Full set Core Client Indicator'!$A$3:$AB$351, MATCH(Selection_Hide2!$A120, 'Full set Core Client Indicator'!$A$3:$A$351, 0), MATCH(Selection_Hide2!K$5, 'Full set Core Client Indicator'!$A$3:$AB$3, 0))), \"\")","v":""},{"$f":"IF(K120<>\"\", IF(INDEX('Full set Core Client Indicator'!$A$3:$AB$351, MATCH(Selection_Hide2!$A120, 'Full set Core Client Indicator'!$A$3:$A$351, 0), MATCH(Selection_Hide2!L$5, 'Full set Core Client Indicator'!$A$3:$AB$3, 0))=\"\", \"\",  INDEX('Full set Core Client Indicator'!$A$3:$AB$351, MATCH(Selection_Hide2!$A120, 'Full set Core Client Indicator'!$A$3:$A$351, 0), MATCH(Selection_Hide2!L$5, 'Full set Core Client Indicator'!$A$3:$AB$3, 0))), \"\")","v":""},{"$f":"IF(L120<>\"\", IF(INDEX('Full set Core Client Indicator'!$A$3:$AB$351, MATCH(Selection_Hide2!$A120, 'Full set Core Client Indicator'!$A$3:$A$351, 0), MATCH(Selection_Hide2!M$5, 'Full set Core Client Indicator'!$A$3:$AB$3, 0))=\"\", \"\",  INDEX('Full set Core Client Indicator'!$A$3:$AB$351, MATCH(Selection_Hide2!$A120, 'Full set Core Client Indicator'!$A$3:$A$351, 0), MATCH(Selection_Hide2!M$5, 'Full set Core Client Indicator'!$A$3:$AB$3, 0))), \"\")","v":""},{"$f":"IF(M120<>\"\", IF(INDEX('Full set Core Client Indicator'!$A$3:$AB$351, MATCH(Selection_Hide2!$A120, 'Full set Core Client Indicator'!$A$3:$A$351, 0), MATCH(Selection_Hide2!N$5, 'Full set Core Client Indicator'!$A$3:$AB$3, 0))=\"\", \"\",  INDEX('Full set Core Client Indicator'!$A$3:$AB$351, MATCH(Selection_Hide2!$A120, 'Full set Core Client Indicator'!$A$3:$A$351, 0), MATCH(Selection_Hide2!N$5, 'Full set Core Client Indicator'!$A$3:$AB$3, 0))), \"\")","v":""},{"$f":"IF(N120<>\"\", IF(INDEX('Full set Core Client Indicator'!$A$3:$AB$351, MATCH(Selection_Hide2!$A120, 'Full set Core Client Indicator'!$A$3:$A$351, 0), MATCH(Selection_Hide2!O$5, 'Full set Core Client Indicator'!$A$3:$AB$3, 0))=\"\", \"\",  INDEX('Full set Core Client Indicator'!$A$3:$AB$351, MATCH(Selection_Hide2!$A120, 'Full set Core Client Indicator'!$A$3:$A$351, 0), MATCH(Selection_Hide2!O$5, 'Full set Core Client Indicator'!$A$3:$AB$3, 0))), \"\")","v":""},{"$f":"IF(O120<>\"\", IF(INDEX('Full set Core Client Indicator'!$A$3:$AB$351, MATCH(Selection_Hide2!$A120, 'Full set Core Client Indicator'!$A$3:$A$351, 0), MATCH(Selection_Hide2!P$5, 'Full set Core Client Indicator'!$A$3:$AB$3, 0))=\"\", \"\",  INDEX('Full set Core Client Indicator'!$A$3:$AB$351, MATCH(Selection_Hide2!$A120, 'Full set Core Client Indicator'!$A$3:$A$351, 0), MATCH(Selection_Hide2!P$5, 'Full set Core Client Indicator'!$A$3:$AB$3, 0))), \"\")","v":""},{"$f":"IF(P120<>\"\", IF(INDEX('Full set Core Client Indicator'!$A$3:$AB$351, MATCH(Selection_Hide2!$A120, 'Full set Core Client Indicator'!$A$3:$A$351, 0), MATCH(Selection_Hide2!Q$5, 'Full set Core Client Indicator'!$A$3:$AB$3, 0))=\"\", \"\",  INDEX('Full set Core Client Indicator'!$A$3:$AB$351, MATCH(Selection_Hide2!$A120, 'Full set Core Client Indicator'!$A$3:$A$351, 0), MATCH(Selection_Hide2!Q$5, 'Full set Core Client Indicator'!$A$3:$AB$3, 0))), \"\")","v":""},{"$f":"IF(Q120<>\"\", IF(INDEX('Full set Core Client Indicator'!$A$3:$AB$351, MATCH(Selection_Hide2!$A120, 'Full set Core Client Indicator'!$A$3:$A$351, 0), MATCH(Selection_Hide2!R$5, 'Full set Core Client Indicator'!$A$3:$AB$3, 0))=\"\", \"\",  INDEX('Full set Core Client Indicator'!$A$3:$AB$351, MATCH(Selection_Hide2!$A120, 'Full set Core Client Indicator'!$A$3:$A$351, 0), MATCH(Selection_Hide2!R$5, 'Full set Core Client Indicator'!$A$3:$AB$3, 0))), \"\")","v":""},{"$f":"IF(R120<>\"\", IF(INDEX('Full set Core Client Indicator'!$A$3:$AB$351, MATCH(Selection_Hide2!$A120, 'Full set Core Client Indicator'!$A$3:$A$351, 0), MATCH(Selection_Hide2!S$5, 'Full set Core Client Indicator'!$A$3:$AB$3, 0))=\"\", \"\",  INDEX('Full set Core Client Indicator'!$A$3:$AB$351, MATCH(Selection_Hide2!$A120, 'Full set Core Client Indicator'!$A$3:$A$351, 0), MATCH(Selection_Hide2!S$5, 'Full set Core Client Indicator'!$A$3:$AB$3, 0))), \"\")","v":""},{"$f":"IF(S120<>\"\", IF(INDEX('Full set Core Client Indicator'!$A$3:$AB$351, MATCH(Selection_Hide2!$A120, 'Full set Core Client Indicator'!$A$3:$A$351, 0), MATCH(Selection_Hide2!T$5, 'Full set Core Client Indicator'!$A$3:$AB$3, 0))=\"\", \"\",  INDEX('Full set Core Client Indicator'!$A$3:$AB$351, MATCH(Selection_Hide2!$A120, 'Full set Core Client Indicator'!$A$3:$A$351, 0), MATCH(Selection_Hide2!T$5, 'Full set Core Client Indicator'!$A$3:$AB$3, 0))), \"\")","v":""},{"$f":"IF(T120<>\"\", IF(INDEX('Full set Core Client Indicator'!$A$3:$AB$351, MATCH(Selection_Hide2!$A120, 'Full set Core Client Indicator'!$A$3:$A$351, 0), MATCH(Selection_Hide2!U$5, 'Full set Core Client Indicator'!$A$3:$AB$3, 0))=\"\", \"\",  INDEX('Full set Core Client Indicator'!$A$3:$AB$351, MATCH(Selection_Hide2!$A120, 'Full set Core Client Indicator'!$A$3:$A$351, 0), MATCH(Selection_Hide2!U$5, 'Full set Core Client Indicator'!$A$3:$AB$3, 0))), \"\")","v":""},{"$f":"IF(U120<>\"\", IF(INDEX('Full set Core Client Indicator'!$A$3:$AB$351, MATCH(Selection_Hide2!$A120, 'Full set Core Client Indicator'!$A$3:$A$351, 0), MATCH(Selection_Hide2!V$5, 'Full set Core Client Indicator'!$A$3:$AB$3, 0))=\"\", \"\",  INDEX('Full set Core Client Indicator'!$A$3:$AB$351, MATCH(Selection_Hide2!$A120, 'Full set Core Client Indicator'!$A$3:$A$351, 0), MATCH(Selection_Hide2!V$5, 'Full set Core Client Indicator'!$A$3:$AB$3, 0))), \"\")","v":""},{"$f":"IF(V120<>\"\", IF(INDEX('Full set Core Client Indicator'!$A$3:$AB$351, MATCH(Selection_Hide2!$A120, 'Full set Core Client Indicator'!$A$3:$A$351, 0), MATCH(Selection_Hide2!W$5, 'Full set Core Client Indicator'!$A$3:$AB$3, 0))=\"\", \"\",  INDEX('Full set Core Client Indicator'!$A$3:$AB$351, MATCH(Selection_Hide2!$A120, 'Full set Core Client Indicator'!$A$3:$A$351, 0), MATCH(Selection_Hide2!W$5, 'Full set Core Client Indicator'!$A$3:$AB$3, 0))), \"\")","v":""},{"$f":"IF(W120<>\"\", IF(INDEX('Full set Core Client Indicator'!$A$3:$AB$351, MATCH(Selection_Hide2!$A120, 'Full set Core Client Indicator'!$A$3:$A$351, 0), MATCH(Selection_Hide2!X$5, 'Full set Core Client Indicator'!$A$3:$AB$3, 0))=\"\", \"\",  INDEX('Full set Core Client Indicator'!$A$3:$AB$351, MATCH(Selection_Hide2!$A120, 'Full set Core Client Indicator'!$A$3:$A$351, 0), MATCH(Selection_Hide2!X$5, 'Full set Core Client Indicator'!$A$3:$AB$3, 0))), \"\")","v":""},{"$f":"IF(X120<>\"\", IF(INDEX('Full set Core Client Indicator'!$A$3:$AB$351, MATCH(Selection_Hide2!$A120, 'Full set Core Client Indicator'!$A$3:$A$351, 0), MATCH(Selection_Hide2!Y$5, 'Full set Core Client Indicator'!$A$3:$AB$3, 0))=\"\", \"\",  INDEX('Full set Core Client Indicator'!$A$3:$AB$351, MATCH(Selection_Hide2!$A120, 'Full set Core Client Indicator'!$A$3:$A$351, 0), MATCH(Selection_Hide2!Y$5, 'Full set Core Client Indicator'!$A$3:$AB$3, 0))), \"\")","v":""},{"$f":"IF(Y120<>\"\", IF(INDEX('Full set Core Client Indicator'!$A$3:$AB$351, MATCH(Selection_Hide2!$A120, 'Full set Core Client Indicator'!$A$3:$A$351, 0), MATCH(Selection_Hide2!Z$5, 'Full set Core Client Indicator'!$A$3:$AB$3, 0))=\"\", \"\",  INDEX('Full set Core Client Indicator'!$A$3:$AB$351, MATCH(Selection_Hide2!$A120, 'Full set Core Client Indicator'!$A$3:$A$351, 0), MATCH(Selection_Hide2!Z$5, 'Full set Core Client Indicator'!$A$3:$AB$3, 0))), \"\")","v":""},{"$f":"IF(Z120<>\"\", IF(INDEX('Full set Core Client Indicator'!$A$3:$AB$351, MATCH(Selection_Hide2!$A120, 'Full set Core Client Indicator'!$A$3:$A$351, 0), MATCH(Selection_Hide2!AA$5, 'Full set Core Client Indicator'!$A$3:$AB$3, 0))=\"\", \"\",  INDEX('Full set Core Client Indicator'!$A$3:$AB$351, MATCH(Selection_Hide2!$A120, 'Full set Core Client Indicator'!$A$3:$A$351, 0), MATCH(Selection_Hide2!AA$5, 'Full set Core Client Indicator'!$A$3:$AB$3, 0))), \"\")","v":""},{"$f":"IF(AA120<>\"\", IF(INDEX('Full set Core Client Indicator'!$A$3:$AB$351, MATCH(Selection_Hide2!$A120, 'Full set Core Client Indicator'!$A$3:$A$351, 0), MATCH(Selection_Hide2!AB$5, 'Full set Core Client Indicator'!$A$3:$AB$3, 0))=\"\", \"\",  INDEX('Full set Core Client Indicator'!$A$3:$AB$351, MATCH(Selection_Hide2!$A120, 'Full set Core Client Indicator'!$A$3:$A$351, 0), MATCH(Selection_Hide2!AB$5, 'Full set Core Client Indicator'!$A$3:$AB$3, 0))), \"\")","v":""}]
[{"$f":"IF(AND(Selection_Hide1!C119<>0, Selection_Hide1!C119<>\"Grand Total\"), Selection_Hide1!C119, \"\")","v":""},{"$f":"IF(A121<>\"\", IF(INDEX('Full set Core Client Indicator'!$A$3:$AB$351, MATCH(Selection_Hide2!$A121, 'Full set Core Client Indicator'!$A$3:$A$351, 0), MATCH(Selection_Hide2!B$5, 'Full set Core Client Indicator'!$A$3:$AB$3, 0))=\"\", \"\",  INDEX('Full set Core Client Indicator'!$A$3:$AB$351, MATCH(Selection_Hide2!$A121, 'Full set Core Client Indicator'!$A$3:$A$351, 0), MATCH(Selection_Hide2!B$5, 'Full set Core Client Indicator'!$A$3:$AB$3, 0))), \"\")","v":""},{"$f":"IF(B121<>\"\", IF(INDEX('Full set Core Client Indicator'!$A$3:$AB$351, MATCH(Selection_Hide2!$A121, 'Full set Core Client Indicator'!$A$3:$A$351, 0), MATCH(Selection_Hide2!C$5, 'Full set Core Client Indicator'!$A$3:$AB$3, 0))=\"\", \"\",  INDEX('Full set Core Client Indicator'!$A$3:$AB$351, MATCH(Selection_Hide2!$A121, 'Full set Core Client Indicator'!$A$3:$A$351, 0), MATCH(Selection_Hide2!C$5, 'Full set Core Client Indicator'!$A$3:$AB$3, 0))), \"\")","v":""},{"$f":"IF(C121<>\"\", IF(INDEX('Full set Core Client Indicator'!$A$3:$AB$351, MATCH(Selection_Hide2!$A121, 'Full set Core Client Indicator'!$A$3:$A$351, 0), MATCH(Selection_Hide2!D$5, 'Full set Core Client Indicator'!$A$3:$AB$3, 0))=\"\", \"\",  INDEX('Full set Core Client Indicator'!$A$3:$AB$351, MATCH(Selection_Hide2!$A121, 'Full set Core Client Indicator'!$A$3:$A$351, 0), MATCH(Selection_Hide2!D$5, 'Full set Core Client Indicator'!$A$3:$AB$3, 0))), \"\")","v":""},{"$f":"IF(D121<>\"\", IF(INDEX('Full set Core Client Indicator'!$A$3:$AB$351, MATCH(Selection_Hide2!$A121, 'Full set Core Client Indicator'!$A$3:$A$351, 0), MATCH(Selection_Hide2!E$5, 'Full set Core Client Indicator'!$A$3:$AB$3, 0))=\"\", \"\",  INDEX('Full set Core Client Indicator'!$A$3:$AB$351, MATCH(Selection_Hide2!$A121, 'Full set Core Client Indicator'!$A$3:$A$351, 0), MATCH(Selection_Hide2!E$5, 'Full set Core Client Indicator'!$A$3:$AB$3, 0))), \"\")","v":""},{"$f":"IF(E121<>\"\", IF(INDEX('Full set Core Client Indicator'!$A$3:$AB$351, MATCH(Selection_Hide2!$A121, 'Full set Core Client Indicator'!$A$3:$A$351, 0), MATCH(Selection_Hide2!F$5, 'Full set Core Client Indicator'!$A$3:$AB$3, 0))=\"\", \"\",  INDEX('Full set Core Client Indicator'!$A$3:$AB$351, MATCH(Selection_Hide2!$A121, 'Full set Core Client Indicator'!$A$3:$A$351, 0), MATCH(Selection_Hide2!F$5, 'Full set Core Client Indicator'!$A$3:$AB$3, 0))), \"\")","v":""},{"$f":"IF(F121<>\"\", IF(INDEX('Full set Core Client Indicator'!$A$3:$AB$351, MATCH(Selection_Hide2!$A121, 'Full set Core Client Indicator'!$A$3:$A$351, 0), MATCH(Selection_Hide2!G$5, 'Full set Core Client Indicator'!$A$3:$AB$3, 0))=\"\", \"\",  INDEX('Full set Core Client Indicator'!$A$3:$AB$351, MATCH(Selection_Hide2!$A121, 'Full set Core Client Indicator'!$A$3:$A$351, 0), MATCH(Selection_Hide2!G$5, 'Full set Core Client Indicator'!$A$3:$AB$3, 0))), \"\")","v":""},{"$f":"IF(G121<>\"\", IF(INDEX('Full set Core Client Indicator'!$A$3:$AB$351, MATCH(Selection_Hide2!$A121, 'Full set Core Client Indicator'!$A$3:$A$351, 0), MATCH(Selection_Hide2!H$5, 'Full set Core Client Indicator'!$A$3:$AB$3, 0))=\"\", \"\",  INDEX('Full set Core Client Indicator'!$A$3:$AB$351, MATCH(Selection_Hide2!$A121, 'Full set Core Client Indicator'!$A$3:$A$351, 0), MATCH(Selection_Hide2!H$5, 'Full set Core Client Indicator'!$A$3:$AB$3, 0))), \"\")","v":""},{"$f":"IF(H121<>\"\", IF(INDEX('Full set Core Client Indicator'!$A$3:$AB$351, MATCH(Selection_Hide2!$A121, 'Full set Core Client Indicator'!$A$3:$A$351, 0), MATCH(Selection_Hide2!I$5, 'Full set Core Client Indicator'!$A$3:$AB$3, 0))=\"\", \"\",  INDEX('Full set Core Client Indicator'!$A$3:$AB$351, MATCH(Selection_Hide2!$A121, 'Full set Core Client Indicator'!$A$3:$A$351, 0), MATCH(Selection_Hide2!I$5, 'Full set Core Client Indicator'!$A$3:$AB$3, 0))), \"\")","v":""},{"$f":"IF(I121<>\"\", IF(INDEX('Full set Core Client Indicator'!$A$3:$AB$351, MATCH(Selection_Hide2!$A121, 'Full set Core Client Indicator'!$A$3:$A$351, 0), MATCH(Selection_Hide2!J$5, 'Full set Core Client Indicator'!$A$3:$AB$3, 0))=\"\", \"\",  INDEX('Full set Core Client Indicator'!$A$3:$AB$351, MATCH(Selection_Hide2!$A121, 'Full set Core Client Indicator'!$A$3:$A$351, 0), MATCH(Selection_Hide2!J$5, 'Full set Core Client Indicator'!$A$3:$AB$3, 0))), \"\")","v":""},{"$f":"IF(J121<>\"\", IF(INDEX('Full set Core Client Indicator'!$A$3:$AB$351, MATCH(Selection_Hide2!$A121, 'Full set Core Client Indicator'!$A$3:$A$351, 0), MATCH(Selection_Hide2!K$5, 'Full set Core Client Indicator'!$A$3:$AB$3, 0))=\"\", \"\",  INDEX('Full set Core Client Indicator'!$A$3:$AB$351, MATCH(Selection_Hide2!$A121, 'Full set Core Client Indicator'!$A$3:$A$351, 0), MATCH(Selection_Hide2!K$5, 'Full set Core Client Indicator'!$A$3:$AB$3, 0))), \"\")","v":""},{"$f":"IF(K121<>\"\", IF(INDEX('Full set Core Client Indicator'!$A$3:$AB$351, MATCH(Selection_Hide2!$A121, 'Full set Core Client Indicator'!$A$3:$A$351, 0), MATCH(Selection_Hide2!L$5, 'Full set Core Client Indicator'!$A$3:$AB$3, 0))=\"\", \"\",  INDEX('Full set Core Client Indicator'!$A$3:$AB$351, MATCH(Selection_Hide2!$A121, 'Full set Core Client Indicator'!$A$3:$A$351, 0), MATCH(Selection_Hide2!L$5, 'Full set Core Client Indicator'!$A$3:$AB$3, 0))), \"\")","v":""},{"$f":"IF(L121<>\"\", IF(INDEX('Full set Core Client Indicator'!$A$3:$AB$351, MATCH(Selection_Hide2!$A121, 'Full set Core Client Indicator'!$A$3:$A$351, 0), MATCH(Selection_Hide2!M$5, 'Full set Core Client Indicator'!$A$3:$AB$3, 0))=\"\", \"\",  INDEX('Full set Core Client Indicator'!$A$3:$AB$351, MATCH(Selection_Hide2!$A121, 'Full set Core Client Indicator'!$A$3:$A$351, 0), MATCH(Selection_Hide2!M$5, 'Full set Core Client Indicator'!$A$3:$AB$3, 0))), \"\")","v":""},{"$f":"IF(M121<>\"\", IF(INDEX('Full set Core Client Indicator'!$A$3:$AB$351, MATCH(Selection_Hide2!$A121, 'Full set Core Client Indicator'!$A$3:$A$351, 0), MATCH(Selection_Hide2!N$5, 'Full set Core Client Indicator'!$A$3:$AB$3, 0))=\"\", \"\",  INDEX('Full set Core Client Indicator'!$A$3:$AB$351, MATCH(Selection_Hide2!$A121, 'Full set Core Client Indicator'!$A$3:$A$351, 0), MATCH(Selection_Hide2!N$5, 'Full set Core Client Indicator'!$A$3:$AB$3, 0))), \"\")","v":""},{"$f":"IF(N121<>\"\", IF(INDEX('Full set Core Client Indicator'!$A$3:$AB$351, MATCH(Selection_Hide2!$A121, 'Full set Core Client Indicator'!$A$3:$A$351, 0), MATCH(Selection_Hide2!O$5, 'Full set Core Client Indicator'!$A$3:$AB$3, 0))=\"\", \"\",  INDEX('Full set Core Client Indicator'!$A$3:$AB$351, MATCH(Selection_Hide2!$A121, 'Full set Core Client Indicator'!$A$3:$A$351, 0), MATCH(Selection_Hide2!O$5, 'Full set Core Client Indicator'!$A$3:$AB$3, 0))), \"\")","v":""},{"$f":"IF(O121<>\"\", IF(INDEX('Full set Core Client Indicator'!$A$3:$AB$351, MATCH(Selection_Hide2!$A121, 'Full set Core Client Indicator'!$A$3:$A$351, 0), MATCH(Selection_Hide2!P$5, 'Full set Core Client Indicator'!$A$3:$AB$3, 0))=\"\", \"\",  INDEX('Full set Core Client Indicator'!$A$3:$AB$351, MATCH(Selection_Hide2!$A121, 'Full set Core Client Indicator'!$A$3:$A$351, 0), MATCH(Selection_Hide2!P$5, 'Full set Core Client Indicator'!$A$3:$AB$3, 0))), \"\")","v":""},{"$f":"IF(P121<>\"\", IF(INDEX('Full set Core Client Indicator'!$A$3:$AB$351, MATCH(Selection_Hide2!$A121, 'Full set Core Client Indicator'!$A$3:$A$351, 0), MATCH(Selection_Hide2!Q$5, 'Full set Core Client Indicator'!$A$3:$AB$3, 0))=\"\", \"\",  INDEX('Full set Core Client Indicator'!$A$3:$AB$351, MATCH(Selection_Hide2!$A121, 'Full set Core Client Indicator'!$A$3:$A$351, 0), MATCH(Selection_Hide2!Q$5, 'Full set Core Client Indicator'!$A$3:$AB$3, 0))), \"\")","v":""},{"$f":"IF(Q121<>\"\", IF(INDEX('Full set Core Client Indicator'!$A$3:$AB$351, MATCH(Selection_Hide2!$A121, 'Full set Core Client Indicator'!$A$3:$A$351, 0), MATCH(Selection_Hide2!R$5, 'Full set Core Client Indicator'!$A$3:$AB$3, 0))=\"\", \"\",  INDEX('Full set Core Client Indicator'!$A$3:$AB$351, MATCH(Selection_Hide2!$A121, 'Full set Core Client Indicator'!$A$3:$A$351, 0), MATCH(Selection_Hide2!R$5, 'Full set Core Client Indicator'!$A$3:$AB$3, 0))), \"\")","v":""},{"$f":"IF(R121<>\"\", IF(INDEX('Full set Core Client Indicator'!$A$3:$AB$351, MATCH(Selection_Hide2!$A121, 'Full set Core Client Indicator'!$A$3:$A$351, 0), MATCH(Selection_Hide2!S$5, 'Full set Core Client Indicator'!$A$3:$AB$3, 0))=\"\", \"\",  INDEX('Full set Core Client Indicator'!$A$3:$AB$351, MATCH(Selection_Hide2!$A121, 'Full set Core Client Indicator'!$A$3:$A$351, 0), MATCH(Selection_Hide2!S$5, 'Full set Core Client Indicator'!$A$3:$AB$3, 0))), \"\")","v":""},{"$f":"IF(S121<>\"\", IF(INDEX('Full set Core Client Indicator'!$A$3:$AB$351, MATCH(Selection_Hide2!$A121, 'Full set Core Client Indicator'!$A$3:$A$351, 0), MATCH(Selection_Hide2!T$5, 'Full set Core Client Indicator'!$A$3:$AB$3, 0))=\"\", \"\",  INDEX('Full set Core Client Indicator'!$A$3:$AB$351, MATCH(Selection_Hide2!$A121, 'Full set Core Client Indicator'!$A$3:$A$351, 0), MATCH(Selection_Hide2!T$5, 'Full set Core Client Indicator'!$A$3:$AB$3, 0))), \"\")","v":""},{"$f":"IF(T121<>\"\", IF(INDEX('Full set Core Client Indicator'!$A$3:$AB$351, MATCH(Selection_Hide2!$A121, 'Full set Core Client Indicator'!$A$3:$A$351, 0), MATCH(Selection_Hide2!U$5, 'Full set Core Client Indicator'!$A$3:$AB$3, 0))=\"\", \"\",  INDEX('Full set Core Client Indicator'!$A$3:$AB$351, MATCH(Selection_Hide2!$A121, 'Full set Core Client Indicator'!$A$3:$A$351, 0), MATCH(Selection_Hide2!U$5, 'Full set Core Client Indicator'!$A$3:$AB$3, 0))), \"\")","v":""},{"$f":"IF(U121<>\"\", IF(INDEX('Full set Core Client Indicator'!$A$3:$AB$351, MATCH(Selection_Hide2!$A121, 'Full set Core Client Indicator'!$A$3:$A$351, 0), MATCH(Selection_Hide2!V$5, 'Full set Core Client Indicator'!$A$3:$AB$3, 0))=\"\", \"\",  INDEX('Full set Core Client Indicator'!$A$3:$AB$351, MATCH(Selection_Hide2!$A121, 'Full set Core Client Indicator'!$A$3:$A$351, 0), MATCH(Selection_Hide2!V$5, 'Full set Core Client Indicator'!$A$3:$AB$3, 0))), \"\")","v":""},{"$f":"IF(V121<>\"\", IF(INDEX('Full set Core Client Indicator'!$A$3:$AB$351, MATCH(Selection_Hide2!$A121, 'Full set Core Client Indicator'!$A$3:$A$351, 0), MATCH(Selection_Hide2!W$5, 'Full set Core Client Indicator'!$A$3:$AB$3, 0))=\"\", \"\",  INDEX('Full set Core Client Indicator'!$A$3:$AB$351, MATCH(Selection_Hide2!$A121, 'Full set Core Client Indicator'!$A$3:$A$351, 0), MATCH(Selection_Hide2!W$5, 'Full set Core Client Indicator'!$A$3:$AB$3, 0))), \"\")","v":""},{"$f":"IF(W121<>\"\", IF(INDEX('Full set Core Client Indicator'!$A$3:$AB$351, MATCH(Selection_Hide2!$A121, 'Full set Core Client Indicator'!$A$3:$A$351, 0), MATCH(Selection_Hide2!X$5, 'Full set Core Client Indicator'!$A$3:$AB$3, 0))=\"\", \"\",  INDEX('Full set Core Client Indicator'!$A$3:$AB$351, MATCH(Selection_Hide2!$A121, 'Full set Core Client Indicator'!$A$3:$A$351, 0), MATCH(Selection_Hide2!X$5, 'Full set Core Client Indicator'!$A$3:$AB$3, 0))), \"\")","v":""},{"$f":"IF(X121<>\"\", IF(INDEX('Full set Core Client Indicator'!$A$3:$AB$351, MATCH(Selection_Hide2!$A121, 'Full set Core Client Indicator'!$A$3:$A$351, 0), MATCH(Selection_Hide2!Y$5, 'Full set Core Client Indicator'!$A$3:$AB$3, 0))=\"\", \"\",  INDEX('Full set Core Client Indicator'!$A$3:$AB$351, MATCH(Selection_Hide2!$A121, 'Full set Core Client Indicator'!$A$3:$A$351, 0), MATCH(Selection_Hide2!Y$5, 'Full set Core Client Indicator'!$A$3:$AB$3, 0))), \"\")","v":""},{"$f":"IF(Y121<>\"\", IF(INDEX('Full set Core Client Indicator'!$A$3:$AB$351, MATCH(Selection_Hide2!$A121, 'Full set Core Client Indicator'!$A$3:$A$351, 0), MATCH(Selection_Hide2!Z$5, 'Full set Core Client Indicator'!$A$3:$AB$3, 0))=\"\", \"\",  INDEX('Full set Core Client Indicator'!$A$3:$AB$351, MATCH(Selection_Hide2!$A121, 'Full set Core Client Indicator'!$A$3:$A$351, 0), MATCH(Selection_Hide2!Z$5, 'Full set Core Client Indicator'!$A$3:$AB$3, 0))), \"\")","v":""},{"$f":"IF(Z121<>\"\", IF(INDEX('Full set Core Client Indicator'!$A$3:$AB$351, MATCH(Selection_Hide2!$A121, 'Full set Core Client Indicator'!$A$3:$A$351, 0), MATCH(Selection_Hide2!AA$5, 'Full set Core Client Indicator'!$A$3:$AB$3, 0))=\"\", \"\",  INDEX('Full set Core Client Indicator'!$A$3:$AB$351, MATCH(Selection_Hide2!$A121, 'Full set Core Client Indicator'!$A$3:$A$351, 0), MATCH(Selection_Hide2!AA$5, 'Full set Core Client Indicator'!$A$3:$AB$3, 0))), \"\")","v":""},{"$f":"IF(AA121<>\"\", IF(INDEX('Full set Core Client Indicator'!$A$3:$AB$351, MATCH(Selection_Hide2!$A121, 'Full set Core Client Indicator'!$A$3:$A$351, 0), MATCH(Selection_Hide2!AB$5, 'Full set Core Client Indicator'!$A$3:$AB$3, 0))=\"\", \"\",  INDEX('Full set Core Client Indicator'!$A$3:$AB$351, MATCH(Selection_Hide2!$A121, 'Full set Core Client Indicator'!$A$3:$A$351, 0), MATCH(Selection_Hide2!AB$5, 'Full set Core Client Indicator'!$A$3:$AB$3, 0))), \"\")","v":""}]
[{"$f":"IF(AND(Selection_Hide1!C120<>0, Selection_Hide1!C120<>\"Grand Total\"), Selection_Hide1!C120, \"\")","v":""},{"$f":"IF(A122<>\"\", IF(INDEX('Full set Core Client Indicator'!$A$3:$AB$351, MATCH(Selection_Hide2!$A122, 'Full set Core Client Indicator'!$A$3:$A$351, 0), MATCH(Selection_Hide2!B$5, 'Full set Core Client Indicator'!$A$3:$AB$3, 0))=\"\", \"\",  INDEX('Full set Core Client Indicator'!$A$3:$AB$351, MATCH(Selection_Hide2!$A122, 'Full set Core Client Indicator'!$A$3:$A$351, 0), MATCH(Selection_Hide2!B$5, 'Full set Core Client Indicator'!$A$3:$AB$3, 0))), \"\")","v":""},{"$f":"IF(B122<>\"\", IF(INDEX('Full set Core Client Indicator'!$A$3:$AB$351, MATCH(Selection_Hide2!$A122, 'Full set Core Client Indicator'!$A$3:$A$351, 0), MATCH(Selection_Hide2!C$5, 'Full set Core Client Indicator'!$A$3:$AB$3, 0))=\"\", \"\",  INDEX('Full set Core Client Indicator'!$A$3:$AB$351, MATCH(Selection_Hide2!$A122, 'Full set Core Client Indicator'!$A$3:$A$351, 0), MATCH(Selection_Hide2!C$5, 'Full set Core Client Indicator'!$A$3:$AB$3, 0))), \"\")","v":""},{"$f":"IF(C122<>\"\", IF(INDEX('Full set Core Client Indicator'!$A$3:$AB$351, MATCH(Selection_Hide2!$A122, 'Full set Core Client Indicator'!$A$3:$A$351, 0), MATCH(Selection_Hide2!D$5, 'Full set Core Client Indicator'!$A$3:$AB$3, 0))=\"\", \"\",  INDEX('Full set Core Client Indicator'!$A$3:$AB$351, MATCH(Selection_Hide2!$A122, 'Full set Core Client Indicator'!$A$3:$A$351, 0), MATCH(Selection_Hide2!D$5, 'Full set Core Client Indicator'!$A$3:$AB$3, 0))), \"\")","v":""},{"$f":"IF(D122<>\"\", IF(INDEX('Full set Core Client Indicator'!$A$3:$AB$351, MATCH(Selection_Hide2!$A122, 'Full set Core Client Indicator'!$A$3:$A$351, 0), MATCH(Selection_Hide2!E$5, 'Full set Core Client Indicator'!$A$3:$AB$3, 0))=\"\", \"\",  INDEX('Full set Core Client Indicator'!$A$3:$AB$351, MATCH(Selection_Hide2!$A122, 'Full set Core Client Indicator'!$A$3:$A$351, 0), MATCH(Selection_Hide2!E$5, 'Full set Core Client Indicator'!$A$3:$AB$3, 0))), \"\")","v":""},{"$f":"IF(E122<>\"\", IF(INDEX('Full set Core Client Indicator'!$A$3:$AB$351, MATCH(Selection_Hide2!$A122, 'Full set Core Client Indicator'!$A$3:$A$351, 0), MATCH(Selection_Hide2!F$5, 'Full set Core Client Indicator'!$A$3:$AB$3, 0))=\"\", \"\",  INDEX('Full set Core Client Indicator'!$A$3:$AB$351, MATCH(Selection_Hide2!$A122, 'Full set Core Client Indicator'!$A$3:$A$351, 0), MATCH(Selection_Hide2!F$5, 'Full set Core Client Indicator'!$A$3:$AB$3, 0))), \"\")","v":""},{"$f":"IF(F122<>\"\", IF(INDEX('Full set Core Client Indicator'!$A$3:$AB$351, MATCH(Selection_Hide2!$A122, 'Full set Core Client Indicator'!$A$3:$A$351, 0), MATCH(Selection_Hide2!G$5, 'Full set Core Client Indicator'!$A$3:$AB$3, 0))=\"\", \"\",  INDEX('Full set Core Client Indicator'!$A$3:$AB$351, MATCH(Selection_Hide2!$A122, 'Full set Core Client Indicator'!$A$3:$A$351, 0), MATCH(Selection_Hide2!G$5, 'Full set Core Client Indicator'!$A$3:$AB$3, 0))), \"\")","v":""},{"$f":"IF(G122<>\"\", IF(INDEX('Full set Core Client Indicator'!$A$3:$AB$351, MATCH(Selection_Hide2!$A122, 'Full set Core Client Indicator'!$A$3:$A$351, 0), MATCH(Selection_Hide2!H$5, 'Full set Core Client Indicator'!$A$3:$AB$3, 0))=\"\", \"\",  INDEX('Full set Core Client Indicator'!$A$3:$AB$351, MATCH(Selection_Hide2!$A122, 'Full set Core Client Indicator'!$A$3:$A$351, 0), MATCH(Selection_Hide2!H$5, 'Full set Core Client Indicator'!$A$3:$AB$3, 0))), \"\")","v":""},{"$f":"IF(H122<>\"\", IF(INDEX('Full set Core Client Indicator'!$A$3:$AB$351, MATCH(Selection_Hide2!$A122, 'Full set Core Client Indicator'!$A$3:$A$351, 0), MATCH(Selection_Hide2!I$5, 'Full set Core Client Indicator'!$A$3:$AB$3, 0))=\"\", \"\",  INDEX('Full set Core Client Indicator'!$A$3:$AB$351, MATCH(Selection_Hide2!$A122, 'Full set Core Client Indicator'!$A$3:$A$351, 0), MATCH(Selection_Hide2!I$5, 'Full set Core Client Indicator'!$A$3:$AB$3, 0))), \"\")","v":""},{"$f":"IF(I122<>\"\", IF(INDEX('Full set Core Client Indicator'!$A$3:$AB$351, MATCH(Selection_Hide2!$A122, 'Full set Core Client Indicator'!$A$3:$A$351, 0), MATCH(Selection_Hide2!J$5, 'Full set Core Client Indicator'!$A$3:$AB$3, 0))=\"\", \"\",  INDEX('Full set Core Client Indicator'!$A$3:$AB$351, MATCH(Selection_Hide2!$A122, 'Full set Core Client Indicator'!$A$3:$A$351, 0), MATCH(Selection_Hide2!J$5, 'Full set Core Client Indicator'!$A$3:$AB$3, 0))), \"\")","v":""},{"$f":"IF(J122<>\"\", IF(INDEX('Full set Core Client Indicator'!$A$3:$AB$351, MATCH(Selection_Hide2!$A122, 'Full set Core Client Indicator'!$A$3:$A$351, 0), MATCH(Selection_Hide2!K$5, 'Full set Core Client Indicator'!$A$3:$AB$3, 0))=\"\", \"\",  INDEX('Full set Core Client Indicator'!$A$3:$AB$351, MATCH(Selection_Hide2!$A122, 'Full set Core Client Indicator'!$A$3:$A$351, 0), MATCH(Selection_Hide2!K$5, 'Full set Core Client Indicator'!$A$3:$AB$3, 0))), \"\")","v":""},{"$f":"IF(K122<>\"\", IF(INDEX('Full set Core Client Indicator'!$A$3:$AB$351, MATCH(Selection_Hide2!$A122, 'Full set Core Client Indicator'!$A$3:$A$351, 0), MATCH(Selection_Hide2!L$5, 'Full set Core Client Indicator'!$A$3:$AB$3, 0))=\"\", \"\",  INDEX('Full set Core Client Indicator'!$A$3:$AB$351, MATCH(Selection_Hide2!$A122, 'Full set Core Client Indicator'!$A$3:$A$351, 0), MATCH(Selection_Hide2!L$5, 'Full set Core Client Indicator'!$A$3:$AB$3, 0))), \"\")","v":""},{"$f":"IF(L122<>\"\", IF(INDEX('Full set Core Client Indicator'!$A$3:$AB$351, MATCH(Selection_Hide2!$A122, 'Full set Core Client Indicator'!$A$3:$A$351, 0), MATCH(Selection_Hide2!M$5, 'Full set Core Client Indicator'!$A$3:$AB$3, 0))=\"\", \"\",  INDEX('Full set Core Client Indicator'!$A$3:$AB$351, MATCH(Selection_Hide2!$A122, 'Full set Core Client Indicator'!$A$3:$A$351, 0), MATCH(Selection_Hide2!M$5, 'Full set Core Client Indicator'!$A$3:$AB$3, 0))), \"\")","v":""},{"$f":"IF(M122<>\"\", IF(INDEX('Full set Core Client Indicator'!$A$3:$AB$351, MATCH(Selection_Hide2!$A122, 'Full set Core Client Indicator'!$A$3:$A$351, 0), MATCH(Selection_Hide2!N$5, 'Full set Core Client Indicator'!$A$3:$AB$3, 0))=\"\", \"\",  INDEX('Full set Core Client Indicator'!$A$3:$AB$351, MATCH(Selection_Hide2!$A122, 'Full set Core Client Indicator'!$A$3:$A$351, 0), MATCH(Selection_Hide2!N$5, 'Full set Core Client Indicator'!$A$3:$AB$3, 0))), \"\")","v":""},{"$f":"IF(N122<>\"\", IF(INDEX('Full set Core Client Indicator'!$A$3:$AB$351, MATCH(Selection_Hide2!$A122, 'Full set Core Client Indicator'!$A$3:$A$351, 0), MATCH(Selection_Hide2!O$5, 'Full set Core Client Indicator'!$A$3:$AB$3, 0))=\"\", \"\",  INDEX('Full set Core Client Indicator'!$A$3:$AB$351, MATCH(Selection_Hide2!$A122, 'Full set Core Client Indicator'!$A$3:$A$351, 0), MATCH(Selection_Hide2!O$5, 'Full set Core Client Indicator'!$A$3:$AB$3, 0))), \"\")","v":""},{"$f":"IF(O122<>\"\", IF(INDEX('Full set Core Client Indicator'!$A$3:$AB$351, MATCH(Selection_Hide2!$A122, 'Full set Core Client Indicator'!$A$3:$A$351, 0), MATCH(Selection_Hide2!P$5, 'Full set Core Client Indicator'!$A$3:$AB$3, 0))=\"\", \"\",  INDEX('Full set Core Client Indicator'!$A$3:$AB$351, MATCH(Selection_Hide2!$A122, 'Full set Core Client Indicator'!$A$3:$A$351, 0), MATCH(Selection_Hide2!P$5, 'Full set Core Client Indicator'!$A$3:$AB$3, 0))), \"\")","v":""},{"$f":"IF(P122<>\"\", IF(INDEX('Full set Core Client Indicator'!$A$3:$AB$351, MATCH(Selection_Hide2!$A122, 'Full set Core Client Indicator'!$A$3:$A$351, 0), MATCH(Selection_Hide2!Q$5, 'Full set Core Client Indicator'!$A$3:$AB$3, 0))=\"\", \"\",  INDEX('Full set Core Client Indicator'!$A$3:$AB$351, MATCH(Selection_Hide2!$A122, 'Full set Core Client Indicator'!$A$3:$A$351, 0), MATCH(Selection_Hide2!Q$5, 'Full set Core Client Indicator'!$A$3:$AB$3, 0))), \"\")","v":""},{"$f":"IF(Q122<>\"\", IF(INDEX('Full set Core Client Indicator'!$A$3:$AB$351, MATCH(Selection_Hide2!$A122, 'Full set Core Client Indicator'!$A$3:$A$351, 0), MATCH(Selection_Hide2!R$5, 'Full set Core Client Indicator'!$A$3:$AB$3, 0))=\"\", \"\",  INDEX('Full set Core Client Indicator'!$A$3:$AB$351, MATCH(Selection_Hide2!$A122, 'Full set Core Client Indicator'!$A$3:$A$351, 0), MATCH(Selection_Hide2!R$5, 'Full set Core Client Indicator'!$A$3:$AB$3, 0))), \"\")","v":""},{"$f":"IF(R122<>\"\", IF(INDEX('Full set Core Client Indicator'!$A$3:$AB$351, MATCH(Selection_Hide2!$A122, 'Full set Core Client Indicator'!$A$3:$A$351, 0), MATCH(Selection_Hide2!S$5, 'Full set Core Client Indicator'!$A$3:$AB$3, 0))=\"\", \"\",  INDEX('Full set Core Client Indicator'!$A$3:$AB$351, MATCH(Selection_Hide2!$A122, 'Full set Core Client Indicator'!$A$3:$A$351, 0), MATCH(Selection_Hide2!S$5, 'Full set Core Client Indicator'!$A$3:$AB$3, 0))), \"\")","v":""},{"$f":"IF(S122<>\"\", IF(INDEX('Full set Core Client Indicator'!$A$3:$AB$351, MATCH(Selection_Hide2!$A122, 'Full set Core Client Indicator'!$A$3:$A$351, 0), MATCH(Selection_Hide2!T$5, 'Full set Core Client Indicator'!$A$3:$AB$3, 0))=\"\", \"\",  INDEX('Full set Core Client Indicator'!$A$3:$AB$351, MATCH(Selection_Hide2!$A122, 'Full set Core Client Indicator'!$A$3:$A$351, 0), MATCH(Selection_Hide2!T$5, 'Full set Core Client Indicator'!$A$3:$AB$3, 0))), \"\")","v":""},{"$f":"IF(T122<>\"\", IF(INDEX('Full set Core Client Indicator'!$A$3:$AB$351, MATCH(Selection_Hide2!$A122, 'Full set Core Client Indicator'!$A$3:$A$351, 0), MATCH(Selection_Hide2!U$5, 'Full set Core Client Indicator'!$A$3:$AB$3, 0))=\"\", \"\",  INDEX('Full set Core Client Indicator'!$A$3:$AB$351, MATCH(Selection_Hide2!$A122, 'Full set Core Client Indicator'!$A$3:$A$351, 0), MATCH(Selection_Hide2!U$5, 'Full set Core Client Indicator'!$A$3:$AB$3, 0))), \"\")","v":""},{"$f":"IF(U122<>\"\", IF(INDEX('Full set Core Client Indicator'!$A$3:$AB$351, MATCH(Selection_Hide2!$A122, 'Full set Core Client Indicator'!$A$3:$A$351, 0), MATCH(Selection_Hide2!V$5, 'Full set Core Client Indicator'!$A$3:$AB$3, 0))=\"\", \"\",  INDEX('Full set Core Client Indicator'!$A$3:$AB$351, MATCH(Selection_Hide2!$A122, 'Full set Core Client Indicator'!$A$3:$A$351, 0), MATCH(Selection_Hide2!V$5, 'Full set Core Client Indicator'!$A$3:$AB$3, 0))), \"\")","v":""},{"$f":"IF(V122<>\"\", IF(INDEX('Full set Core Client Indicator'!$A$3:$AB$351, MATCH(Selection_Hide2!$A122, 'Full set Core Client Indicator'!$A$3:$A$351, 0), MATCH(Selection_Hide2!W$5, 'Full set Core Client Indicator'!$A$3:$AB$3, 0))=\"\", \"\",  INDEX('Full set Core Client Indicator'!$A$3:$AB$351, MATCH(Selection_Hide2!$A122, 'Full set Core Client Indicator'!$A$3:$A$351, 0), MATCH(Selection_Hide2!W$5, 'Full set Core Client Indicator'!$A$3:$AB$3, 0))), \"\")","v":""},{"$f":"IF(W122<>\"\", IF(INDEX('Full set Core Client Indicator'!$A$3:$AB$351, MATCH(Selection_Hide2!$A122, 'Full set Core Client Indicator'!$A$3:$A$351, 0), MATCH(Selection_Hide2!X$5, 'Full set Core Client Indicator'!$A$3:$AB$3, 0))=\"\", \"\",  INDEX('Full set Core Client Indicator'!$A$3:$AB$351, MATCH(Selection_Hide2!$A122, 'Full set Core Client Indicator'!$A$3:$A$351, 0), MATCH(Selection_Hide2!X$5, 'Full set Core Client Indicator'!$A$3:$AB$3, 0))), \"\")","v":""},{"$f":"IF(X122<>\"\", IF(INDEX('Full set Core Client Indicator'!$A$3:$AB$351, MATCH(Selection_Hide2!$A122, 'Full set Core Client Indicator'!$A$3:$A$351, 0), MATCH(Selection_Hide2!Y$5, 'Full set Core Client Indicator'!$A$3:$AB$3, 0))=\"\", \"\",  INDEX('Full set Core Client Indicator'!$A$3:$AB$351, MATCH(Selection_Hide2!$A122, 'Full set Core Client Indicator'!$A$3:$A$351, 0), MATCH(Selection_Hide2!Y$5, 'Full set Core Client Indicator'!$A$3:$AB$3, 0))), \"\")","v":""},{"$f":"IF(Y122<>\"\", IF(INDEX('Full set Core Client Indicator'!$A$3:$AB$351, MATCH(Selection_Hide2!$A122, 'Full set Core Client Indicator'!$A$3:$A$351, 0), MATCH(Selection_Hide2!Z$5, 'Full set Core Client Indicator'!$A$3:$AB$3, 0))=\"\", \"\",  INDEX('Full set Core Client Indicator'!$A$3:$AB$351, MATCH(Selection_Hide2!$A122, 'Full set Core Client Indicator'!$A$3:$A$351, 0), MATCH(Selection_Hide2!Z$5, 'Full set Core Client Indicator'!$A$3:$AB$3, 0))), \"\")","v":""},{"$f":"IF(Z122<>\"\", IF(INDEX('Full set Core Client Indicator'!$A$3:$AB$351, MATCH(Selection_Hide2!$A122, 'Full set Core Client Indicator'!$A$3:$A$351, 0), MATCH(Selection_Hide2!AA$5, 'Full set Core Client Indicator'!$A$3:$AB$3, 0))=\"\", \"\",  INDEX('Full set Core Client Indicator'!$A$3:$AB$351, MATCH(Selection_Hide2!$A122, 'Full set Core Client Indicator'!$A$3:$A$351, 0), MATCH(Selection_Hide2!AA$5, 'Full set Core Client Indicator'!$A$3:$AB$3, 0))), \"\")","v":""},{"$f":"IF(AA122<>\"\", IF(INDEX('Full set Core Client Indicator'!$A$3:$AB$351, MATCH(Selection_Hide2!$A122, 'Full set Core Client Indicator'!$A$3:$A$351, 0), MATCH(Selection_Hide2!AB$5, 'Full set Core Client Indicator'!$A$3:$AB$3, 0))=\"\", \"\",  INDEX('Full set Core Client Indicator'!$A$3:$AB$351, MATCH(Selection_Hide2!$A122, 'Full set Core Client Indicator'!$A$3:$A$351, 0), MATCH(Selection_Hide2!AB$5, 'Full set Core Client Indicator'!$A$3:$AB$3, 0))), \"\")","v":""}]
[{"$f":"IF(AND(Selection_Hide1!C121<>0, Selection_Hide1!C121<>\"Grand Total\"), Selection_Hide1!C121, \"\")","v":""},{"$f":"IF(A123<>\"\", IF(INDEX('Full set Core Client Indicator'!$A$3:$AB$351, MATCH(Selection_Hide2!$A123, 'Full set Core Client Indicator'!$A$3:$A$351, 0), MATCH(Selection_Hide2!B$5, 'Full set Core Client Indicator'!$A$3:$AB$3, 0))=\"\", \"\",  INDEX('Full set Core Client Indicator'!$A$3:$AB$351, MATCH(Selection_Hide2!$A123, 'Full set Core Client Indicator'!$A$3:$A$351, 0), MATCH(Selection_Hide2!B$5, 'Full set Core Client Indicator'!$A$3:$AB$3, 0))), \"\")","v":""},{"$f":"IF(B123<>\"\", IF(INDEX('Full set Core Client Indicator'!$A$3:$AB$351, MATCH(Selection_Hide2!$A123, 'Full set Core Client Indicator'!$A$3:$A$351, 0), MATCH(Selection_Hide2!C$5, 'Full set Core Client Indicator'!$A$3:$AB$3, 0))=\"\", \"\",  INDEX('Full set Core Client Indicator'!$A$3:$AB$351, MATCH(Selection_Hide2!$A123, 'Full set Core Client Indicator'!$A$3:$A$351, 0), MATCH(Selection_Hide2!C$5, 'Full set Core Client Indicator'!$A$3:$AB$3, 0))), \"\")","v":""},{"$f":"IF(C123<>\"\", IF(INDEX('Full set Core Client Indicator'!$A$3:$AB$351, MATCH(Selection_Hide2!$A123, 'Full set Core Client Indicator'!$A$3:$A$351, 0), MATCH(Selection_Hide2!D$5, 'Full set Core Client Indicator'!$A$3:$AB$3, 0))=\"\", \"\",  INDEX('Full set Core Client Indicator'!$A$3:$AB$351, MATCH(Selection_Hide2!$A123, 'Full set Core Client Indicator'!$A$3:$A$351, 0), MATCH(Selection_Hide2!D$5, 'Full set Core Client Indicator'!$A$3:$AB$3, 0))), \"\")","v":""},{"$f":"IF(D123<>\"\", IF(INDEX('Full set Core Client Indicator'!$A$3:$AB$351, MATCH(Selection_Hide2!$A123, 'Full set Core Client Indicator'!$A$3:$A$351, 0), MATCH(Selection_Hide2!E$5, 'Full set Core Client Indicator'!$A$3:$AB$3, 0))=\"\", \"\",  INDEX('Full set Core Client Indicator'!$A$3:$AB$351, MATCH(Selection_Hide2!$A123, 'Full set Core Client Indicator'!$A$3:$A$351, 0), MATCH(Selection_Hide2!E$5, 'Full set Core Client Indicator'!$A$3:$AB$3, 0))), \"\")","v":""},{"$f":"IF(E123<>\"\", IF(INDEX('Full set Core Client Indicator'!$A$3:$AB$351, MATCH(Selection_Hide2!$A123, 'Full set Core Client Indicator'!$A$3:$A$351, 0), MATCH(Selection_Hide2!F$5, 'Full set Core Client Indicator'!$A$3:$AB$3, 0))=\"\", \"\",  INDEX('Full set Core Client Indicator'!$A$3:$AB$351, MATCH(Selection_Hide2!$A123, 'Full set Core Client Indicator'!$A$3:$A$351, 0), MATCH(Selection_Hide2!F$5, 'Full set Core Client Indicator'!$A$3:$AB$3, 0))), \"\")","v":""},{"$f":"IF(F123<>\"\", IF(INDEX('Full set Core Client Indicator'!$A$3:$AB$351, MATCH(Selection_Hide2!$A123, 'Full set Core Client Indicator'!$A$3:$A$351, 0), MATCH(Selection_Hide2!G$5, 'Full set Core Client Indicator'!$A$3:$AB$3, 0))=\"\", \"\",  INDEX('Full set Core Client Indicator'!$A$3:$AB$351, MATCH(Selection_Hide2!$A123, 'Full set Core Client Indicator'!$A$3:$A$351, 0), MATCH(Selection_Hide2!G$5, 'Full set Core Client Indicator'!$A$3:$AB$3, 0))), \"\")","v":""},{"$f":"IF(G123<>\"\", IF(INDEX('Full set Core Client Indicator'!$A$3:$AB$351, MATCH(Selection_Hide2!$A123, 'Full set Core Client Indicator'!$A$3:$A$351, 0), MATCH(Selection_Hide2!H$5, 'Full set Core Client Indicator'!$A$3:$AB$3, 0))=\"\", \"\",  INDEX('Full set Core Client Indicator'!$A$3:$AB$351, MATCH(Selection_Hide2!$A123, 'Full set Core Client Indicator'!$A$3:$A$351, 0), MATCH(Selection_Hide2!H$5, 'Full set Core Client Indicator'!$A$3:$AB$3, 0))), \"\")","v":""},{"$f":"IF(H123<>\"\", IF(INDEX('Full set Core Client Indicator'!$A$3:$AB$351, MATCH(Selection_Hide2!$A123, 'Full set Core Client Indicator'!$A$3:$A$351, 0), MATCH(Selection_Hide2!I$5, 'Full set Core Client Indicator'!$A$3:$AB$3, 0))=\"\", \"\",  INDEX('Full set Core Client Indicator'!$A$3:$AB$351, MATCH(Selection_Hide2!$A123, 'Full set Core Client Indicator'!$A$3:$A$351, 0), MATCH(Selection_Hide2!I$5, 'Full set Core Client Indicator'!$A$3:$AB$3, 0))), \"\")","v":""},{"$f":"IF(I123<>\"\", IF(INDEX('Full set Core Client Indicator'!$A$3:$AB$351, MATCH(Selection_Hide2!$A123, 'Full set Core Client Indicator'!$A$3:$A$351, 0), MATCH(Selection_Hide2!J$5, 'Full set Core Client Indicator'!$A$3:$AB$3, 0))=\"\", \"\",  INDEX('Full set Core Client Indicator'!$A$3:$AB$351, MATCH(Selection_Hide2!$A123, 'Full set Core Client Indicator'!$A$3:$A$351, 0), MATCH(Selection_Hide2!J$5, 'Full set Core Client Indicator'!$A$3:$AB$3, 0))), \"\")","v":""},{"$f":"IF(J123<>\"\", IF(INDEX('Full set Core Client Indicator'!$A$3:$AB$351, MATCH(Selection_Hide2!$A123, 'Full set Core Client Indicator'!$A$3:$A$351, 0), MATCH(Selection_Hide2!K$5, 'Full set Core Client Indicator'!$A$3:$AB$3, 0))=\"\", \"\",  INDEX('Full set Core Client Indicator'!$A$3:$AB$351, MATCH(Selection_Hide2!$A123, 'Full set Core Client Indicator'!$A$3:$A$351, 0), MATCH(Selection_Hide2!K$5, 'Full set Core Client Indicator'!$A$3:$AB$3, 0))), \"\")","v":""},{"$f":"IF(K123<>\"\", IF(INDEX('Full set Core Client Indicator'!$A$3:$AB$351, MATCH(Selection_Hide2!$A123, 'Full set Core Client Indicator'!$A$3:$A$351, 0), MATCH(Selection_Hide2!L$5, 'Full set Core Client Indicator'!$A$3:$AB$3, 0))=\"\", \"\",  INDEX('Full set Core Client Indicator'!$A$3:$AB$351, MATCH(Selection_Hide2!$A123, 'Full set Core Client Indicator'!$A$3:$A$351, 0), MATCH(Selection_Hide2!L$5, 'Full set Core Client Indicator'!$A$3:$AB$3, 0))), \"\")","v":""},{"$f":"IF(L123<>\"\", IF(INDEX('Full set Core Client Indicator'!$A$3:$AB$351, MATCH(Selection_Hide2!$A123, 'Full set Core Client Indicator'!$A$3:$A$351, 0), MATCH(Selection_Hide2!M$5, 'Full set Core Client Indicator'!$A$3:$AB$3, 0))=\"\", \"\",  INDEX('Full set Core Client Indicator'!$A$3:$AB$351, MATCH(Selection_Hide2!$A123, 'Full set Core Client Indicator'!$A$3:$A$351, 0), MATCH(Selection_Hide2!M$5, 'Full set Core Client Indicator'!$A$3:$AB$3, 0))), \"\")","v":""},{"$f":"IF(M123<>\"\", IF(INDEX('Full set Core Client Indicator'!$A$3:$AB$351, MATCH(Selection_Hide2!$A123, 'Full set Core Client Indicator'!$A$3:$A$351, 0), MATCH(Selection_Hide2!N$5, 'Full set Core Client Indicator'!$A$3:$AB$3, 0))=\"\", \"\",  INDEX('Full set Core Client Indicator'!$A$3:$AB$351, MATCH(Selection_Hide2!$A123, 'Full set Core Client Indicator'!$A$3:$A$351, 0), MATCH(Selection_Hide2!N$5, 'Full set Core Client Indicator'!$A$3:$AB$3, 0))), \"\")","v":""},{"$f":"IF(N123<>\"\", IF(INDEX('Full set Core Client Indicator'!$A$3:$AB$351, MATCH(Selection_Hide2!$A123, 'Full set Core Client Indicator'!$A$3:$A$351, 0), MATCH(Selection_Hide2!O$5, 'Full set Core Client Indicator'!$A$3:$AB$3, 0))=\"\", \"\",  INDEX('Full set Core Client Indicator'!$A$3:$AB$351, MATCH(Selection_Hide2!$A123, 'Full set Core Client Indicator'!$A$3:$A$351, 0), MATCH(Selection_Hide2!O$5, 'Full set Core Client Indicator'!$A$3:$AB$3, 0))), \"\")","v":""},{"$f":"IF(O123<>\"\", IF(INDEX('Full set Core Client Indicator'!$A$3:$AB$351, MATCH(Selection_Hide2!$A123, 'Full set Core Client Indicator'!$A$3:$A$351, 0), MATCH(Selection_Hide2!P$5, 'Full set Core Client Indicator'!$A$3:$AB$3, 0))=\"\", \"\",  INDEX('Full set Core Client Indicator'!$A$3:$AB$351, MATCH(Selection_Hide2!$A123, 'Full set Core Client Indicator'!$A$3:$A$351, 0), MATCH(Selection_Hide2!P$5, 'Full set Core Client Indicator'!$A$3:$AB$3, 0))), \"\")","v":""},{"$f":"IF(P123<>\"\", IF(INDEX('Full set Core Client Indicator'!$A$3:$AB$351, MATCH(Selection_Hide2!$A123, 'Full set Core Client Indicator'!$A$3:$A$351, 0), MATCH(Selection_Hide2!Q$5, 'Full set Core Client Indicator'!$A$3:$AB$3, 0))=\"\", \"\",  INDEX('Full set Core Client Indicator'!$A$3:$AB$351, MATCH(Selection_Hide2!$A123, 'Full set Core Client Indicator'!$A$3:$A$351, 0), MATCH(Selection_Hide2!Q$5, 'Full set Core Client Indicator'!$A$3:$AB$3, 0))), \"\")","v":""},{"$f":"IF(Q123<>\"\", IF(INDEX('Full set Core Client Indicator'!$A$3:$AB$351, MATCH(Selection_Hide2!$A123, 'Full set Core Client Indicator'!$A$3:$A$351, 0), MATCH(Selection_Hide2!R$5, 'Full set Core Client Indicator'!$A$3:$AB$3, 0))=\"\", \"\",  INDEX('Full set Core Client Indicator'!$A$3:$AB$351, MATCH(Selection_Hide2!$A123, 'Full set Core Client Indicator'!$A$3:$A$351, 0), MATCH(Selection_Hide2!R$5, 'Full set Core Client Indicator'!$A$3:$AB$3, 0))), \"\")","v":""},{"$f":"IF(R123<>\"\", IF(INDEX('Full set Core Client Indicator'!$A$3:$AB$351, MATCH(Selection_Hide2!$A123, 'Full set Core Client Indicator'!$A$3:$A$351, 0), MATCH(Selection_Hide2!S$5, 'Full set Core Client Indicator'!$A$3:$AB$3, 0))=\"\", \"\",  INDEX('Full set Core Client Indicator'!$A$3:$AB$351, MATCH(Selection_Hide2!$A123, 'Full set Core Client Indicator'!$A$3:$A$351, 0), MATCH(Selection_Hide2!S$5, 'Full set Core Client Indicator'!$A$3:$AB$3, 0))), \"\")","v":""},{"$f":"IF(S123<>\"\", IF(INDEX('Full set Core Client Indicator'!$A$3:$AB$351, MATCH(Selection_Hide2!$A123, 'Full set Core Client Indicator'!$A$3:$A$351, 0), MATCH(Selection_Hide2!T$5, 'Full set Core Client Indicator'!$A$3:$AB$3, 0))=\"\", \"\",  INDEX('Full set Core Client Indicator'!$A$3:$AB$351, MATCH(Selection_Hide2!$A123, 'Full set Core Client Indicator'!$A$3:$A$351, 0), MATCH(Selection_Hide2!T$5, 'Full set Core Client Indicator'!$A$3:$AB$3, 0))), \"\")","v":""},{"$f":"IF(T123<>\"\", IF(INDEX('Full set Core Client Indicator'!$A$3:$AB$351, MATCH(Selection_Hide2!$A123, 'Full set Core Client Indicator'!$A$3:$A$351, 0), MATCH(Selection_Hide2!U$5, 'Full set Core Client Indicator'!$A$3:$AB$3, 0))=\"\", \"\",  INDEX('Full set Core Client Indicator'!$A$3:$AB$351, MATCH(Selection_Hide2!$A123, 'Full set Core Client Indicator'!$A$3:$A$351, 0), MATCH(Selection_Hide2!U$5, 'Full set Core Client Indicator'!$A$3:$AB$3, 0))), \"\")","v":""},{"$f":"IF(U123<>\"\", IF(INDEX('Full set Core Client Indicator'!$A$3:$AB$351, MATCH(Selection_Hide2!$A123, 'Full set Core Client Indicator'!$A$3:$A$351, 0), MATCH(Selection_Hide2!V$5, 'Full set Core Client Indicator'!$A$3:$AB$3, 0))=\"\", \"\",  INDEX('Full set Core Client Indicator'!$A$3:$AB$351, MATCH(Selection_Hide2!$A123, 'Full set Core Client Indicator'!$A$3:$A$351, 0), MATCH(Selection_Hide2!V$5, 'Full set Core Client Indicator'!$A$3:$AB$3, 0))), \"\")","v":""},{"$f":"IF(V123<>\"\", IF(INDEX('Full set Core Client Indicator'!$A$3:$AB$351, MATCH(Selection_Hide2!$A123, 'Full set Core Client Indicator'!$A$3:$A$351, 0), MATCH(Selection_Hide2!W$5, 'Full set Core Client Indicator'!$A$3:$AB$3, 0))=\"\", \"\",  INDEX('Full set Core Client Indicator'!$A$3:$AB$351, MATCH(Selection_Hide2!$A123, 'Full set Core Client Indicator'!$A$3:$A$351, 0), MATCH(Selection_Hide2!W$5, 'Full set Core Client Indicator'!$A$3:$AB$3, 0))), \"\")","v":""},{"$f":"IF(W123<>\"\", IF(INDEX('Full set Core Client Indicator'!$A$3:$AB$351, MATCH(Selection_Hide2!$A123, 'Full set Core Client Indicator'!$A$3:$A$351, 0), MATCH(Selection_Hide2!X$5, 'Full set Core Client Indicator'!$A$3:$AB$3, 0))=\"\", \"\",  INDEX('Full set Core Client Indicator'!$A$3:$AB$351, MATCH(Selection_Hide2!$A123, 'Full set Core Client Indicator'!$A$3:$A$351, 0), MATCH(Selection_Hide2!X$5, 'Full set Core Client Indicator'!$A$3:$AB$3, 0))), \"\")","v":""},{"$f":"IF(X123<>\"\", IF(INDEX('Full set Core Client Indicator'!$A$3:$AB$351, MATCH(Selection_Hide2!$A123, 'Full set Core Client Indicator'!$A$3:$A$351, 0), MATCH(Selection_Hide2!Y$5, 'Full set Core Client Indicator'!$A$3:$AB$3, 0))=\"\", \"\",  INDEX('Full set Core Client Indicator'!$A$3:$AB$351, MATCH(Selection_Hide2!$A123, 'Full set Core Client Indicator'!$A$3:$A$351, 0), MATCH(Selection_Hide2!Y$5, 'Full set Core Client Indicator'!$A$3:$AB$3, 0))), \"\")","v":""},{"$f":"IF(Y123<>\"\", IF(INDEX('Full set Core Client Indicator'!$A$3:$AB$351, MATCH(Selection_Hide2!$A123, 'Full set Core Client Indicator'!$A$3:$A$351, 0), MATCH(Selection_Hide2!Z$5, 'Full set Core Client Indicator'!$A$3:$AB$3, 0))=\"\", \"\",  INDEX('Full set Core Client Indicator'!$A$3:$AB$351, MATCH(Selection_Hide2!$A123, 'Full set Core Client Indicator'!$A$3:$A$351, 0), MATCH(Selection_Hide2!Z$5, 'Full set Core Client Indicator'!$A$3:$AB$3, 0))), \"\")","v":""},{"$f":"IF(Z123<>\"\", IF(INDEX('Full set Core Client Indicator'!$A$3:$AB$351, MATCH(Selection_Hide2!$A123, 'Full set Core Client Indicator'!$A$3:$A$351, 0), MATCH(Selection_Hide2!AA$5, 'Full set Core Client Indicator'!$A$3:$AB$3, 0))=\"\", \"\",  INDEX('Full set Core Client Indicator'!$A$3:$AB$351, MATCH(Selection_Hide2!$A123, 'Full set Core Client Indicator'!$A$3:$A$351, 0), MATCH(Selection_Hide2!AA$5, 'Full set Core Client Indicator'!$A$3:$AB$3, 0))), \"\")","v":""},{"$f":"IF(AA123<>\"\", IF(INDEX('Full set Core Client Indicator'!$A$3:$AB$351, MATCH(Selection_Hide2!$A123, 'Full set Core Client Indicator'!$A$3:$A$351, 0), MATCH(Selection_Hide2!AB$5, 'Full set Core Client Indicator'!$A$3:$AB$3, 0))=\"\", \"\",  INDEX('Full set Core Client Indicator'!$A$3:$AB$351, MATCH(Selection_Hide2!$A123, 'Full set Core Client Indicator'!$A$3:$A$351, 0), MATCH(Selection_Hide2!AB$5, 'Full set Core Client Indicator'!$A$3:$AB$3, 0))), \"\")","v":""}]
[{"$f":"IF(AND(Selection_Hide1!C122<>0, Selection_Hide1!C122<>\"Grand Total\"), Selection_Hide1!C122, \"\")","v":""},{"$f":"IF(A124<>\"\", IF(INDEX('Full set Core Client Indicator'!$A$3:$AB$351, MATCH(Selection_Hide2!$A124, 'Full set Core Client Indicator'!$A$3:$A$351, 0), MATCH(Selection_Hide2!B$5, 'Full set Core Client Indicator'!$A$3:$AB$3, 0))=\"\", \"\",  INDEX('Full set Core Client Indicator'!$A$3:$AB$351, MATCH(Selection_Hide2!$A124, 'Full set Core Client Indicator'!$A$3:$A$351, 0), MATCH(Selection_Hide2!B$5, 'Full set Core Client Indicator'!$A$3:$AB$3, 0))), \"\")","v":""},{"$f":"IF(B124<>\"\", IF(INDEX('Full set Core Client Indicator'!$A$3:$AB$351, MATCH(Selection_Hide2!$A124, 'Full set Core Client Indicator'!$A$3:$A$351, 0), MATCH(Selection_Hide2!C$5, 'Full set Core Client Indicator'!$A$3:$AB$3, 0))=\"\", \"\",  INDEX('Full set Core Client Indicator'!$A$3:$AB$351, MATCH(Selection_Hide2!$A124, 'Full set Core Client Indicator'!$A$3:$A$351, 0), MATCH(Selection_Hide2!C$5, 'Full set Core Client Indicator'!$A$3:$AB$3, 0))), \"\")","v":""},{"$f":"IF(C124<>\"\", IF(INDEX('Full set Core Client Indicator'!$A$3:$AB$351, MATCH(Selection_Hide2!$A124, 'Full set Core Client Indicator'!$A$3:$A$351, 0), MATCH(Selection_Hide2!D$5, 'Full set Core Client Indicator'!$A$3:$AB$3, 0))=\"\", \"\",  INDEX('Full set Core Client Indicator'!$A$3:$AB$351, MATCH(Selection_Hide2!$A124, 'Full set Core Client Indicator'!$A$3:$A$351, 0), MATCH(Selection_Hide2!D$5, 'Full set Core Client Indicator'!$A$3:$AB$3, 0))), \"\")","v":""},{"$f":"IF(D124<>\"\", IF(INDEX('Full set Core Client Indicator'!$A$3:$AB$351, MATCH(Selection_Hide2!$A124, 'Full set Core Client Indicator'!$A$3:$A$351, 0), MATCH(Selection_Hide2!E$5, 'Full set Core Client Indicator'!$A$3:$AB$3, 0))=\"\", \"\",  INDEX('Full set Core Client Indicator'!$A$3:$AB$351, MATCH(Selection_Hide2!$A124, 'Full set Core Client Indicator'!$A$3:$A$351, 0), MATCH(Selection_Hide2!E$5, 'Full set Core Client Indicator'!$A$3:$AB$3, 0))), \"\")","v":""},{"$f":"IF(E124<>\"\", IF(INDEX('Full set Core Client Indicator'!$A$3:$AB$351, MATCH(Selection_Hide2!$A124, 'Full set Core Client Indicator'!$A$3:$A$351, 0), MATCH(Selection_Hide2!F$5, 'Full set Core Client Indicator'!$A$3:$AB$3, 0))=\"\", \"\",  INDEX('Full set Core Client Indicator'!$A$3:$AB$351, MATCH(Selection_Hide2!$A124, 'Full set Core Client Indicator'!$A$3:$A$351, 0), MATCH(Selection_Hide2!F$5, 'Full set Core Client Indicator'!$A$3:$AB$3, 0))), \"\")","v":""},{"$f":"IF(F124<>\"\", IF(INDEX('Full set Core Client Indicator'!$A$3:$AB$351, MATCH(Selection_Hide2!$A124, 'Full set Core Client Indicator'!$A$3:$A$351, 0), MATCH(Selection_Hide2!G$5, 'Full set Core Client Indicator'!$A$3:$AB$3, 0))=\"\", \"\",  INDEX('Full set Core Client Indicator'!$A$3:$AB$351, MATCH(Selection_Hide2!$A124, 'Full set Core Client Indicator'!$A$3:$A$351, 0), MATCH(Selection_Hide2!G$5, 'Full set Core Client Indicator'!$A$3:$AB$3, 0))), \"\")","v":""},{"$f":"IF(G124<>\"\", IF(INDEX('Full set Core Client Indicator'!$A$3:$AB$351, MATCH(Selection_Hide2!$A124, 'Full set Core Client Indicator'!$A$3:$A$351, 0), MATCH(Selection_Hide2!H$5, 'Full set Core Client Indicator'!$A$3:$AB$3, 0))=\"\", \"\",  INDEX('Full set Core Client Indicator'!$A$3:$AB$351, MATCH(Selection_Hide2!$A124, 'Full set Core Client Indicator'!$A$3:$A$351, 0), MATCH(Selection_Hide2!H$5, 'Full set Core Client Indicator'!$A$3:$AB$3, 0))), \"\")","v":""},{"$f":"IF(H124<>\"\", IF(INDEX('Full set Core Client Indicator'!$A$3:$AB$351, MATCH(Selection_Hide2!$A124, 'Full set Core Client Indicator'!$A$3:$A$351, 0), MATCH(Selection_Hide2!I$5, 'Full set Core Client Indicator'!$A$3:$AB$3, 0))=\"\", \"\",  INDEX('Full set Core Client Indicator'!$A$3:$AB$351, MATCH(Selection_Hide2!$A124, 'Full set Core Client Indicator'!$A$3:$A$351, 0), MATCH(Selection_Hide2!I$5, 'Full set Core Client Indicator'!$A$3:$AB$3, 0))), \"\")","v":""},{"$f":"IF(I124<>\"\", IF(INDEX('Full set Core Client Indicator'!$A$3:$AB$351, MATCH(Selection_Hide2!$A124, 'Full set Core Client Indicator'!$A$3:$A$351, 0), MATCH(Selection_Hide2!J$5, 'Full set Core Client Indicator'!$A$3:$AB$3, 0))=\"\", \"\",  INDEX('Full set Core Client Indicator'!$A$3:$AB$351, MATCH(Selection_Hide2!$A124, 'Full set Core Client Indicator'!$A$3:$A$351, 0), MATCH(Selection_Hide2!J$5, 'Full set Core Client Indicator'!$A$3:$AB$3, 0))), \"\")","v":""},{"$f":"IF(J124<>\"\", IF(INDEX('Full set Core Client Indicator'!$A$3:$AB$351, MATCH(Selection_Hide2!$A124, 'Full set Core Client Indicator'!$A$3:$A$351, 0), MATCH(Selection_Hide2!K$5, 'Full set Core Client Indicator'!$A$3:$AB$3, 0))=\"\", \"\",  INDEX('Full set Core Client Indicator'!$A$3:$AB$351, MATCH(Selection_Hide2!$A124, 'Full set Core Client Indicator'!$A$3:$A$351, 0), MATCH(Selection_Hide2!K$5, 'Full set Core Client Indicator'!$A$3:$AB$3, 0))), \"\")","v":""},{"$f":"IF(K124<>\"\", IF(INDEX('Full set Core Client Indicator'!$A$3:$AB$351, MATCH(Selection_Hide2!$A124, 'Full set Core Client Indicator'!$A$3:$A$351, 0), MATCH(Selection_Hide2!L$5, 'Full set Core Client Indicator'!$A$3:$AB$3, 0))=\"\", \"\",  INDEX('Full set Core Client Indicator'!$A$3:$AB$351, MATCH(Selection_Hide2!$A124, 'Full set Core Client Indicator'!$A$3:$A$351, 0), MATCH(Selection_Hide2!L$5, 'Full set Core Client Indicator'!$A$3:$AB$3, 0))), \"\")","v":""},{"$f":"IF(L124<>\"\", IF(INDEX('Full set Core Client Indicator'!$A$3:$AB$351, MATCH(Selection_Hide2!$A124, 'Full set Core Client Indicator'!$A$3:$A$351, 0), MATCH(Selection_Hide2!M$5, 'Full set Core Client Indicator'!$A$3:$AB$3, 0))=\"\", \"\",  INDEX('Full set Core Client Indicator'!$A$3:$AB$351, MATCH(Selection_Hide2!$A124, 'Full set Core Client Indicator'!$A$3:$A$351, 0), MATCH(Selection_Hide2!M$5, 'Full set Core Client Indicator'!$A$3:$AB$3, 0))), \"\")","v":""},{"$f":"IF(M124<>\"\", IF(INDEX('Full set Core Client Indicator'!$A$3:$AB$351, MATCH(Selection_Hide2!$A124, 'Full set Core Client Indicator'!$A$3:$A$351, 0), MATCH(Selection_Hide2!N$5, 'Full set Core Client Indicator'!$A$3:$AB$3, 0))=\"\", \"\",  INDEX('Full set Core Client Indicator'!$A$3:$AB$351, MATCH(Selection_Hide2!$A124, 'Full set Core Client Indicator'!$A$3:$A$351, 0), MATCH(Selection_Hide2!N$5, 'Full set Core Client Indicator'!$A$3:$AB$3, 0))), \"\")","v":""},{"$f":"IF(N124<>\"\", IF(INDEX('Full set Core Client Indicator'!$A$3:$AB$351, MATCH(Selection_Hide2!$A124, 'Full set Core Client Indicator'!$A$3:$A$351, 0), MATCH(Selection_Hide2!O$5, 'Full set Core Client Indicator'!$A$3:$AB$3, 0))=\"\", \"\",  INDEX('Full set Core Client Indicator'!$A$3:$AB$351, MATCH(Selection_Hide2!$A124, 'Full set Core Client Indicator'!$A$3:$A$351, 0), MATCH(Selection_Hide2!O$5, 'Full set Core Client Indicator'!$A$3:$AB$3, 0))), \"\")","v":""},{"$f":"IF(O124<>\"\", IF(INDEX('Full set Core Client Indicator'!$A$3:$AB$351, MATCH(Selection_Hide2!$A124, 'Full set Core Client Indicator'!$A$3:$A$351, 0), MATCH(Selection_Hide2!P$5, 'Full set Core Client Indicator'!$A$3:$AB$3, 0))=\"\", \"\",  INDEX('Full set Core Client Indicator'!$A$3:$AB$351, MATCH(Selection_Hide2!$A124, 'Full set Core Client Indicator'!$A$3:$A$351, 0), MATCH(Selection_Hide2!P$5, 'Full set Core Client Indicator'!$A$3:$AB$3, 0))), \"\")","v":""},{"$f":"IF(P124<>\"\", IF(INDEX('Full set Core Client Indicator'!$A$3:$AB$351, MATCH(Selection_Hide2!$A124, 'Full set Core Client Indicator'!$A$3:$A$351, 0), MATCH(Selection_Hide2!Q$5, 'Full set Core Client Indicator'!$A$3:$AB$3, 0))=\"\", \"\",  INDEX('Full set Core Client Indicator'!$A$3:$AB$351, MATCH(Selection_Hide2!$A124, 'Full set Core Client Indicator'!$A$3:$A$351, 0), MATCH(Selection_Hide2!Q$5, 'Full set Core Client Indicator'!$A$3:$AB$3, 0))), \"\")","v":""},{"$f":"IF(Q124<>\"\", IF(INDEX('Full set Core Client Indicator'!$A$3:$AB$351, MATCH(Selection_Hide2!$A124, 'Full set Core Client Indicator'!$A$3:$A$351, 0), MATCH(Selection_Hide2!R$5, 'Full set Core Client Indicator'!$A$3:$AB$3, 0))=\"\", \"\",  INDEX('Full set Core Client Indicator'!$A$3:$AB$351, MATCH(Selection_Hide2!$A124, 'Full set Core Client Indicator'!$A$3:$A$351, 0), MATCH(Selection_Hide2!R$5, 'Full set Core Client Indicator'!$A$3:$AB$3, 0))), \"\")","v":""},{"$f":"IF(R124<>\"\", IF(INDEX('Full set Core Client Indicator'!$A$3:$AB$351, MATCH(Selection_Hide2!$A124, 'Full set Core Client Indicator'!$A$3:$A$351, 0), MATCH(Selection_Hide2!S$5, 'Full set Core Client Indicator'!$A$3:$AB$3, 0))=\"\", \"\",  INDEX('Full set Core Client Indicator'!$A$3:$AB$351, MATCH(Selection_Hide2!$A124, 'Full set Core Client Indicator'!$A$3:$A$351, 0), MATCH(Selection_Hide2!S$5, 'Full set Core Client Indicator'!$A$3:$AB$3, 0))), \"\")","v":""},{"$f":"IF(S124<>\"\", IF(INDEX('Full set Core Client Indicator'!$A$3:$AB$351, MATCH(Selection_Hide2!$A124, 'Full set Core Client Indicator'!$A$3:$A$351, 0), MATCH(Selection_Hide2!T$5, 'Full set Core Client Indicator'!$A$3:$AB$3, 0))=\"\", \"\",  INDEX('Full set Core Client Indicator'!$A$3:$AB$351, MATCH(Selection_Hide2!$A124, 'Full set Core Client Indicator'!$A$3:$A$351, 0), MATCH(Selection_Hide2!T$5, 'Full set Core Client Indicator'!$A$3:$AB$3, 0))), \"\")","v":""},{"$f":"IF(T124<>\"\", IF(INDEX('Full set Core Client Indicator'!$A$3:$AB$351, MATCH(Selection_Hide2!$A124, 'Full set Core Client Indicator'!$A$3:$A$351, 0), MATCH(Selection_Hide2!U$5, 'Full set Core Client Indicator'!$A$3:$AB$3, 0))=\"\", \"\",  INDEX('Full set Core Client Indicator'!$A$3:$AB$351, MATCH(Selection_Hide2!$A124, 'Full set Core Client Indicator'!$A$3:$A$351, 0), MATCH(Selection_Hide2!U$5, 'Full set Core Client Indicator'!$A$3:$AB$3, 0))), \"\")","v":""},{"$f":"IF(U124<>\"\", IF(INDEX('Full set Core Client Indicator'!$A$3:$AB$351, MATCH(Selection_Hide2!$A124, 'Full set Core Client Indicator'!$A$3:$A$351, 0), MATCH(Selection_Hide2!V$5, 'Full set Core Client Indicator'!$A$3:$AB$3, 0))=\"\", \"\",  INDEX('Full set Core Client Indicator'!$A$3:$AB$351, MATCH(Selection_Hide2!$A124, 'Full set Core Client Indicator'!$A$3:$A$351, 0), MATCH(Selection_Hide2!V$5, 'Full set Core Client Indicator'!$A$3:$AB$3, 0))), \"\")","v":""},{"$f":"IF(V124<>\"\", IF(INDEX('Full set Core Client Indicator'!$A$3:$AB$351, MATCH(Selection_Hide2!$A124, 'Full set Core Client Indicator'!$A$3:$A$351, 0), MATCH(Selection_Hide2!W$5, 'Full set Core Client Indicator'!$A$3:$AB$3, 0))=\"\", \"\",  INDEX('Full set Core Client Indicator'!$A$3:$AB$351, MATCH(Selection_Hide2!$A124, 'Full set Core Client Indicator'!$A$3:$A$351, 0), MATCH(Selection_Hide2!W$5, 'Full set Core Client Indicator'!$A$3:$AB$3, 0))), \"\")","v":""},{"$f":"IF(W124<>\"\", IF(INDEX('Full set Core Client Indicator'!$A$3:$AB$351, MATCH(Selection_Hide2!$A124, 'Full set Core Client Indicator'!$A$3:$A$351, 0), MATCH(Selection_Hide2!X$5, 'Full set Core Client Indicator'!$A$3:$AB$3, 0))=\"\", \"\",  INDEX('Full set Core Client Indicator'!$A$3:$AB$351, MATCH(Selection_Hide2!$A124, 'Full set Core Client Indicator'!$A$3:$A$351, 0), MATCH(Selection_Hide2!X$5, 'Full set Core Client Indicator'!$A$3:$AB$3, 0))), \"\")","v":""},{"$f":"IF(X124<>\"\", IF(INDEX('Full set Core Client Indicator'!$A$3:$AB$351, MATCH(Selection_Hide2!$A124, 'Full set Core Client Indicator'!$A$3:$A$351, 0), MATCH(Selection_Hide2!Y$5, 'Full set Core Client Indicator'!$A$3:$AB$3, 0))=\"\", \"\",  INDEX('Full set Core Client Indicator'!$A$3:$AB$351, MATCH(Selection_Hide2!$A124, 'Full set Core Client Indicator'!$A$3:$A$351, 0), MATCH(Selection_Hide2!Y$5, 'Full set Core Client Indicator'!$A$3:$AB$3, 0))), \"\")","v":""},{"$f":"IF(Y124<>\"\", IF(INDEX('Full set Core Client Indicator'!$A$3:$AB$351, MATCH(Selection_Hide2!$A124, 'Full set Core Client Indicator'!$A$3:$A$351, 0), MATCH(Selection_Hide2!Z$5, 'Full set Core Client Indicator'!$A$3:$AB$3, 0))=\"\", \"\",  INDEX('Full set Core Client Indicator'!$A$3:$AB$351, MATCH(Selection_Hide2!$A124, 'Full set Core Client Indicator'!$A$3:$A$351, 0), MATCH(Selection_Hide2!Z$5, 'Full set Core Client Indicator'!$A$3:$AB$3, 0))), \"\")","v":""},{"$f":"IF(Z124<>\"\", IF(INDEX('Full set Core Client Indicator'!$A$3:$AB$351, MATCH(Selection_Hide2!$A124, 'Full set Core Client Indicator'!$A$3:$A$351, 0), MATCH(Selection_Hide2!AA$5, 'Full set Core Client Indicator'!$A$3:$AB$3, 0))=\"\", \"\",  INDEX('Full set Core Client Indicator'!$A$3:$AB$351, MATCH(Selection_Hide2!$A124, 'Full set Core Client Indicator'!$A$3:$A$351, 0), MATCH(Selection_Hide2!AA$5, 'Full set Core Client Indicator'!$A$3:$AB$3, 0))), \"\")","v":""},{"$f":"IF(AA124<>\"\", IF(INDEX('Full set Core Client Indicator'!$A$3:$AB$351, MATCH(Selection_Hide2!$A124, 'Full set Core Client Indicator'!$A$3:$A$351, 0), MATCH(Selection_Hide2!AB$5, 'Full set Core Client Indicator'!$A$3:$AB$3, 0))=\"\", \"\",  INDEX('Full set Core Client Indicator'!$A$3:$AB$351, MATCH(Selection_Hide2!$A124, 'Full set Core Client Indicator'!$A$3:$A$351, 0), MATCH(Selection_Hide2!AB$5, 'Full set Core Client Indicator'!$A$3:$AB$3, 0))), \"\")","v":""}]
[{"$f":"IF(AND(Selection_Hide1!C123<>0, Selection_Hide1!C123<>\"Grand Total\"), Selection_Hide1!C123, \"\")","v":""},{"$f":"IF(A125<>\"\", IF(INDEX('Full set Core Client Indicator'!$A$3:$AB$351, MATCH(Selection_Hide2!$A125, 'Full set Core Client Indicator'!$A$3:$A$351, 0), MATCH(Selection_Hide2!B$5, 'Full set Core Client Indicator'!$A$3:$AB$3, 0))=\"\", \"\",  INDEX('Full set Core Client Indicator'!$A$3:$AB$351, MATCH(Selection_Hide2!$A125, 'Full set Core Client Indicator'!$A$3:$A$351, 0), MATCH(Selection_Hide2!B$5, 'Full set Core Client Indicator'!$A$3:$AB$3, 0))), \"\")","v":""},{"$f":"IF(B125<>\"\", IF(INDEX('Full set Core Client Indicator'!$A$3:$AB$351, MATCH(Selection_Hide2!$A125, 'Full set Core Client Indicator'!$A$3:$A$351, 0), MATCH(Selection_Hide2!C$5, 'Full set Core Client Indicator'!$A$3:$AB$3, 0))=\"\", \"\",  INDEX('Full set Core Client Indicator'!$A$3:$AB$351, MATCH(Selection_Hide2!$A125, 'Full set Core Client Indicator'!$A$3:$A$351, 0), MATCH(Selection_Hide2!C$5, 'Full set Core Client Indicator'!$A$3:$AB$3, 0))), \"\")","v":""},{"$f":"IF(C125<>\"\", IF(INDEX('Full set Core Client Indicator'!$A$3:$AB$351, MATCH(Selection_Hide2!$A125, 'Full set Core Client Indicator'!$A$3:$A$351, 0), MATCH(Selection_Hide2!D$5, 'Full set Core Client Indicator'!$A$3:$AB$3, 0))=\"\", \"\",  INDEX('Full set Core Client Indicator'!$A$3:$AB$351, MATCH(Selection_Hide2!$A125, 'Full set Core Client Indicator'!$A$3:$A$351, 0), MATCH(Selection_Hide2!D$5, 'Full set Core Client Indicator'!$A$3:$AB$3, 0))), \"\")","v":""},{"$f":"IF(D125<>\"\", IF(INDEX('Full set Core Client Indicator'!$A$3:$AB$351, MATCH(Selection_Hide2!$A125, 'Full set Core Client Indicator'!$A$3:$A$351, 0), MATCH(Selection_Hide2!E$5, 'Full set Core Client Indicator'!$A$3:$AB$3, 0))=\"\", \"\",  INDEX('Full set Core Client Indicator'!$A$3:$AB$351, MATCH(Selection_Hide2!$A125, 'Full set Core Client Indicator'!$A$3:$A$351, 0), MATCH(Selection_Hide2!E$5, 'Full set Core Client Indicator'!$A$3:$AB$3, 0))), \"\")","v":""},{"$f":"IF(E125<>\"\", IF(INDEX('Full set Core Client Indicator'!$A$3:$AB$351, MATCH(Selection_Hide2!$A125, 'Full set Core Client Indicator'!$A$3:$A$351, 0), MATCH(Selection_Hide2!F$5, 'Full set Core Client Indicator'!$A$3:$AB$3, 0))=\"\", \"\",  INDEX('Full set Core Client Indicator'!$A$3:$AB$351, MATCH(Selection_Hide2!$A125, 'Full set Core Client Indicator'!$A$3:$A$351, 0), MATCH(Selection_Hide2!F$5, 'Full set Core Client Indicator'!$A$3:$AB$3, 0))), \"\")","v":""},{"$f":"IF(F125<>\"\", IF(INDEX('Full set Core Client Indicator'!$A$3:$AB$351, MATCH(Selection_Hide2!$A125, 'Full set Core Client Indicator'!$A$3:$A$351, 0), MATCH(Selection_Hide2!G$5, 'Full set Core Client Indicator'!$A$3:$AB$3, 0))=\"\", \"\",  INDEX('Full set Core Client Indicator'!$A$3:$AB$351, MATCH(Selection_Hide2!$A125, 'Full set Core Client Indicator'!$A$3:$A$351, 0), MATCH(Selection_Hide2!G$5, 'Full set Core Client Indicator'!$A$3:$AB$3, 0))), \"\")","v":""},{"$f":"IF(G125<>\"\", IF(INDEX('Full set Core Client Indicator'!$A$3:$AB$351, MATCH(Selection_Hide2!$A125, 'Full set Core Client Indicator'!$A$3:$A$351, 0), MATCH(Selection_Hide2!H$5, 'Full set Core Client Indicator'!$A$3:$AB$3, 0))=\"\", \"\",  INDEX('Full set Core Client Indicator'!$A$3:$AB$351, MATCH(Selection_Hide2!$A125, 'Full set Core Client Indicator'!$A$3:$A$351, 0), MATCH(Selection_Hide2!H$5, 'Full set Core Client Indicator'!$A$3:$AB$3, 0))), \"\")","v":""},{"$f":"IF(H125<>\"\", IF(INDEX('Full set Core Client Indicator'!$A$3:$AB$351, MATCH(Selection_Hide2!$A125, 'Full set Core Client Indicator'!$A$3:$A$351, 0), MATCH(Selection_Hide2!I$5, 'Full set Core Client Indicator'!$A$3:$AB$3, 0))=\"\", \"\",  INDEX('Full set Core Client Indicator'!$A$3:$AB$351, MATCH(Selection_Hide2!$A125, 'Full set Core Client Indicator'!$A$3:$A$351, 0), MATCH(Selection_Hide2!I$5, 'Full set Core Client Indicator'!$A$3:$AB$3, 0))), \"\")","v":""},{"$f":"IF(I125<>\"\", IF(INDEX('Full set Core Client Indicator'!$A$3:$AB$351, MATCH(Selection_Hide2!$A125, 'Full set Core Client Indicator'!$A$3:$A$351, 0), MATCH(Selection_Hide2!J$5, 'Full set Core Client Indicator'!$A$3:$AB$3, 0))=\"\", \"\",  INDEX('Full set Core Client Indicator'!$A$3:$AB$351, MATCH(Selection_Hide2!$A125, 'Full set Core Client Indicator'!$A$3:$A$351, 0), MATCH(Selection_Hide2!J$5, 'Full set Core Client Indicator'!$A$3:$AB$3, 0))), \"\")","v":""},{"$f":"IF(J125<>\"\", IF(INDEX('Full set Core Client Indicator'!$A$3:$AB$351, MATCH(Selection_Hide2!$A125, 'Full set Core Client Indicator'!$A$3:$A$351, 0), MATCH(Selection_Hide2!K$5, 'Full set Core Client Indicator'!$A$3:$AB$3, 0))=\"\", \"\",  INDEX('Full set Core Client Indicator'!$A$3:$AB$351, MATCH(Selection_Hide2!$A125, 'Full set Core Client Indicator'!$A$3:$A$351, 0), MATCH(Selection_Hide2!K$5, 'Full set Core Client Indicator'!$A$3:$AB$3, 0))), \"\")","v":""},{"$f":"IF(K125<>\"\", IF(INDEX('Full set Core Client Indicator'!$A$3:$AB$351, MATCH(Selection_Hide2!$A125, 'Full set Core Client Indicator'!$A$3:$A$351, 0), MATCH(Selection_Hide2!L$5, 'Full set Core Client Indicator'!$A$3:$AB$3, 0))=\"\", \"\",  INDEX('Full set Core Client Indicator'!$A$3:$AB$351, MATCH(Selection_Hide2!$A125, 'Full set Core Client Indicator'!$A$3:$A$351, 0), MATCH(Selection_Hide2!L$5, 'Full set Core Client Indicator'!$A$3:$AB$3, 0))), \"\")","v":""},{"$f":"IF(L125<>\"\", IF(INDEX('Full set Core Client Indicator'!$A$3:$AB$351, MATCH(Selection_Hide2!$A125, 'Full set Core Client Indicator'!$A$3:$A$351, 0), MATCH(Selection_Hide2!M$5, 'Full set Core Client Indicator'!$A$3:$AB$3, 0))=\"\", \"\",  INDEX('Full set Core Client Indicator'!$A$3:$AB$351, MATCH(Selection_Hide2!$A125, 'Full set Core Client Indicator'!$A$3:$A$351, 0), MATCH(Selection_Hide2!M$5, 'Full set Core Client Indicator'!$A$3:$AB$3, 0))), \"\")","v":""},{"$f":"IF(M125<>\"\", IF(INDEX('Full set Core Client Indicator'!$A$3:$AB$351, MATCH(Selection_Hide2!$A125, 'Full set Core Client Indicator'!$A$3:$A$351, 0), MATCH(Selection_Hide2!N$5, 'Full set Core Client Indicator'!$A$3:$AB$3, 0))=\"\", \"\",  INDEX('Full set Core Client Indicator'!$A$3:$AB$351, MATCH(Selection_Hide2!$A125, 'Full set Core Client Indicator'!$A$3:$A$351, 0), MATCH(Selection_Hide2!N$5, 'Full set Core Client Indicator'!$A$3:$AB$3, 0))), \"\")","v":""},{"$f":"IF(N125<>\"\", IF(INDEX('Full set Core Client Indicator'!$A$3:$AB$351, MATCH(Selection_Hide2!$A125, 'Full set Core Client Indicator'!$A$3:$A$351, 0), MATCH(Selection_Hide2!O$5, 'Full set Core Client Indicator'!$A$3:$AB$3, 0))=\"\", \"\",  INDEX('Full set Core Client Indicator'!$A$3:$AB$351, MATCH(Selection_Hide2!$A125, 'Full set Core Client Indicator'!$A$3:$A$351, 0), MATCH(Selection_Hide2!O$5, 'Full set Core Client Indicator'!$A$3:$AB$3, 0))), \"\")","v":""},{"$f":"IF(O125<>\"\", IF(INDEX('Full set Core Client Indicator'!$A$3:$AB$351, MATCH(Selection_Hide2!$A125, 'Full set Core Client Indicator'!$A$3:$A$351, 0), MATCH(Selection_Hide2!P$5, 'Full set Core Client Indicator'!$A$3:$AB$3, 0))=\"\", \"\",  INDEX('Full set Core Client Indicator'!$A$3:$AB$351, MATCH(Selection_Hide2!$A125, 'Full set Core Client Indicator'!$A$3:$A$351, 0), MATCH(Selection_Hide2!P$5, 'Full set Core Client Indicator'!$A$3:$AB$3, 0))), \"\")","v":""},{"$f":"IF(P125<>\"\", IF(INDEX('Full set Core Client Indicator'!$A$3:$AB$351, MATCH(Selection_Hide2!$A125, 'Full set Core Client Indicator'!$A$3:$A$351, 0), MATCH(Selection_Hide2!Q$5, 'Full set Core Client Indicator'!$A$3:$AB$3, 0))=\"\", \"\",  INDEX('Full set Core Client Indicator'!$A$3:$AB$351, MATCH(Selection_Hide2!$A125, 'Full set Core Client Indicator'!$A$3:$A$351, 0), MATCH(Selection_Hide2!Q$5, 'Full set Core Client Indicator'!$A$3:$AB$3, 0))), \"\")","v":""},{"$f":"IF(Q125<>\"\", IF(INDEX('Full set Core Client Indicator'!$A$3:$AB$351, MATCH(Selection_Hide2!$A125, 'Full set Core Client Indicator'!$A$3:$A$351, 0), MATCH(Selection_Hide2!R$5, 'Full set Core Client Indicator'!$A$3:$AB$3, 0))=\"\", \"\",  INDEX('Full set Core Client Indicator'!$A$3:$AB$351, MATCH(Selection_Hide2!$A125, 'Full set Core Client Indicator'!$A$3:$A$351, 0), MATCH(Selection_Hide2!R$5, 'Full set Core Client Indicator'!$A$3:$AB$3, 0))), \"\")","v":""},{"$f":"IF(R125<>\"\", IF(INDEX('Full set Core Client Indicator'!$A$3:$AB$351, MATCH(Selection_Hide2!$A125, 'Full set Core Client Indicator'!$A$3:$A$351, 0), MATCH(Selection_Hide2!S$5, 'Full set Core Client Indicator'!$A$3:$AB$3, 0))=\"\", \"\",  INDEX('Full set Core Client Indicator'!$A$3:$AB$351, MATCH(Selection_Hide2!$A125, 'Full set Core Client Indicator'!$A$3:$A$351, 0), MATCH(Selection_Hide2!S$5, 'Full set Core Client Indicator'!$A$3:$AB$3, 0))), \"\")","v":""},{"$f":"IF(S125<>\"\", IF(INDEX('Full set Core Client Indicator'!$A$3:$AB$351, MATCH(Selection_Hide2!$A125, 'Full set Core Client Indicator'!$A$3:$A$351, 0), MATCH(Selection_Hide2!T$5, 'Full set Core Client Indicator'!$A$3:$AB$3, 0))=\"\", \"\",  INDEX('Full set Core Client Indicator'!$A$3:$AB$351, MATCH(Selection_Hide2!$A125, 'Full set Core Client Indicator'!$A$3:$A$351, 0), MATCH(Selection_Hide2!T$5, 'Full set Core Client Indicator'!$A$3:$AB$3, 0))), \"\")","v":""},{"$f":"IF(T125<>\"\", IF(INDEX('Full set Core Client Indicator'!$A$3:$AB$351, MATCH(Selection_Hide2!$A125, 'Full set Core Client Indicator'!$A$3:$A$351, 0), MATCH(Selection_Hide2!U$5, 'Full set Core Client Indicator'!$A$3:$AB$3, 0))=\"\", \"\",  INDEX('Full set Core Client Indicator'!$A$3:$AB$351, MATCH(Selection_Hide2!$A125, 'Full set Core Client Indicator'!$A$3:$A$351, 0), MATCH(Selection_Hide2!U$5, 'Full set Core Client Indicator'!$A$3:$AB$3, 0))), \"\")","v":""},{"$f":"IF(U125<>\"\", IF(INDEX('Full set Core Client Indicator'!$A$3:$AB$351, MATCH(Selection_Hide2!$A125, 'Full set Core Client Indicator'!$A$3:$A$351, 0), MATCH(Selection_Hide2!V$5, 'Full set Core Client Indicator'!$A$3:$AB$3, 0))=\"\", \"\",  INDEX('Full set Core Client Indicator'!$A$3:$AB$351, MATCH(Selection_Hide2!$A125, 'Full set Core Client Indicator'!$A$3:$A$351, 0), MATCH(Selection_Hide2!V$5, 'Full set Core Client Indicator'!$A$3:$AB$3, 0))), \"\")","v":""},{"$f":"IF(V125<>\"\", IF(INDEX('Full set Core Client Indicator'!$A$3:$AB$351, MATCH(Selection_Hide2!$A125, 'Full set Core Client Indicator'!$A$3:$A$351, 0), MATCH(Selection_Hide2!W$5, 'Full set Core Client Indicator'!$A$3:$AB$3, 0))=\"\", \"\",  INDEX('Full set Core Client Indicator'!$A$3:$AB$351, MATCH(Selection_Hide2!$A125, 'Full set Core Client Indicator'!$A$3:$A$351, 0), MATCH(Selection_Hide2!W$5, 'Full set Core Client Indicator'!$A$3:$AB$3, 0))), \"\")","v":""},{"$f":"IF(W125<>\"\", IF(INDEX('Full set Core Client Indicator'!$A$3:$AB$351, MATCH(Selection_Hide2!$A125, 'Full set Core Client Indicator'!$A$3:$A$351, 0), MATCH(Selection_Hide2!X$5, 'Full set Core Client Indicator'!$A$3:$AB$3, 0))=\"\", \"\",  INDEX('Full set Core Client Indicator'!$A$3:$AB$351, MATCH(Selection_Hide2!$A125, 'Full set Core Client Indicator'!$A$3:$A$351, 0), MATCH(Selection_Hide2!X$5, 'Full set Core Client Indicator'!$A$3:$AB$3, 0))), \"\")","v":""},{"$f":"IF(X125<>\"\", IF(INDEX('Full set Core Client Indicator'!$A$3:$AB$351, MATCH(Selection_Hide2!$A125, 'Full set Core Client Indicator'!$A$3:$A$351, 0), MATCH(Selection_Hide2!Y$5, 'Full set Core Client Indicator'!$A$3:$AB$3, 0))=\"\", \"\",  INDEX('Full set Core Client Indicator'!$A$3:$AB$351, MATCH(Selection_Hide2!$A125, 'Full set Core Client Indicator'!$A$3:$A$351, 0), MATCH(Selection_Hide2!Y$5, 'Full set Core Client Indicator'!$A$3:$AB$3, 0))), \"\")","v":""},{"$f":"IF(Y125<>\"\", IF(INDEX('Full set Core Client Indicator'!$A$3:$AB$351, MATCH(Selection_Hide2!$A125, 'Full set Core Client Indicator'!$A$3:$A$351, 0), MATCH(Selection_Hide2!Z$5, 'Full set Core Client Indicator'!$A$3:$AB$3, 0))=\"\", \"\",  INDEX('Full set Core Client Indicator'!$A$3:$AB$351, MATCH(Selection_Hide2!$A125, 'Full set Core Client Indicator'!$A$3:$A$351, 0), MATCH(Selection_Hide2!Z$5, 'Full set Core Client Indicator'!$A$3:$AB$3, 0))), \"\")","v":""},{"$f":"IF(Z125<>\"\", IF(INDEX('Full set Core Client Indicator'!$A$3:$AB$351, MATCH(Selection_Hide2!$A125, 'Full set Core Client Indicator'!$A$3:$A$351, 0), MATCH(Selection_Hide2!AA$5, 'Full set Core Client Indicator'!$A$3:$AB$3, 0))=\"\", \"\",  INDEX('Full set Core Client Indicator'!$A$3:$AB$351, MATCH(Selection_Hide2!$A125, 'Full set Core Client Indicator'!$A$3:$A$351, 0), MATCH(Selection_Hide2!AA$5, 'Full set Core Client Indicator'!$A$3:$AB$3, 0))), \"\")","v":""},{"$f":"IF(AA125<>\"\", IF(INDEX('Full set Core Client Indicator'!$A$3:$AB$351, MATCH(Selection_Hide2!$A125, 'Full set Core Client Indicator'!$A$3:$A$351, 0), MATCH(Selection_Hide2!AB$5, 'Full set Core Client Indicator'!$A$3:$AB$3, 0))=\"\", \"\",  INDEX('Full set Core Client Indicator'!$A$3:$AB$351, MATCH(Selection_Hide2!$A125, 'Full set Core Client Indicator'!$A$3:$A$351, 0), MATCH(Selection_Hide2!AB$5, 'Full set Core Client Indicator'!$A$3:$AB$3, 0))), \"\")","v":""}]
[{"$f":"IF(AND(Selection_Hide1!C124<>0, Selection_Hide1!C124<>\"Grand Total\"), Selection_Hide1!C124, \"\")","v":""},{"$f":"IF(A126<>\"\", IF(INDEX('Full set Core Client Indicator'!$A$3:$AB$351, MATCH(Selection_Hide2!$A126, 'Full set Core Client Indicator'!$A$3:$A$351, 0), MATCH(Selection_Hide2!B$5, 'Full set Core Client Indicator'!$A$3:$AB$3, 0))=\"\", \"\",  INDEX('Full set Core Client Indicator'!$A$3:$AB$351, MATCH(Selection_Hide2!$A126, 'Full set Core Client Indicator'!$A$3:$A$351, 0), MATCH(Selection_Hide2!B$5, 'Full set Core Client Indicator'!$A$3:$AB$3, 0))), \"\")","v":""},{"$f":"IF(B126<>\"\", IF(INDEX('Full set Core Client Indicator'!$A$3:$AB$351, MATCH(Selection_Hide2!$A126, 'Full set Core Client Indicator'!$A$3:$A$351, 0), MATCH(Selection_Hide2!C$5, 'Full set Core Client Indicator'!$A$3:$AB$3, 0))=\"\", \"\",  INDEX('Full set Core Client Indicator'!$A$3:$AB$351, MATCH(Selection_Hide2!$A126, 'Full set Core Client Indicator'!$A$3:$A$351, 0), MATCH(Selection_Hide2!C$5, 'Full set Core Client Indicator'!$A$3:$AB$3, 0))), \"\")","v":""},{"$f":"IF(C126<>\"\", IF(INDEX('Full set Core Client Indicator'!$A$3:$AB$351, MATCH(Selection_Hide2!$A126, 'Full set Core Client Indicator'!$A$3:$A$351, 0), MATCH(Selection_Hide2!D$5, 'Full set Core Client Indicator'!$A$3:$AB$3, 0))=\"\", \"\",  INDEX('Full set Core Client Indicator'!$A$3:$AB$351, MATCH(Selection_Hide2!$A126, 'Full set Core Client Indicator'!$A$3:$A$351, 0), MATCH(Selection_Hide2!D$5, 'Full set Core Client Indicator'!$A$3:$AB$3, 0))), \"\")","v":""},{"$f":"IF(D126<>\"\", IF(INDEX('Full set Core Client Indicator'!$A$3:$AB$351, MATCH(Selection_Hide2!$A126, 'Full set Core Client Indicator'!$A$3:$A$351, 0), MATCH(Selection_Hide2!E$5, 'Full set Core Client Indicator'!$A$3:$AB$3, 0))=\"\", \"\",  INDEX('Full set Core Client Indicator'!$A$3:$AB$351, MATCH(Selection_Hide2!$A126, 'Full set Core Client Indicator'!$A$3:$A$351, 0), MATCH(Selection_Hide2!E$5, 'Full set Core Client Indicator'!$A$3:$AB$3, 0))), \"\")","v":""},{"$f":"IF(E126<>\"\", IF(INDEX('Full set Core Client Indicator'!$A$3:$AB$351, MATCH(Selection_Hide2!$A126, 'Full set Core Client Indicator'!$A$3:$A$351, 0), MATCH(Selection_Hide2!F$5, 'Full set Core Client Indicator'!$A$3:$AB$3, 0))=\"\", \"\",  INDEX('Full set Core Client Indicator'!$A$3:$AB$351, MATCH(Selection_Hide2!$A126, 'Full set Core Client Indicator'!$A$3:$A$351, 0), MATCH(Selection_Hide2!F$5, 'Full set Core Client Indicator'!$A$3:$AB$3, 0))), \"\")","v":""},{"$f":"IF(F126<>\"\", IF(INDEX('Full set Core Client Indicator'!$A$3:$AB$351, MATCH(Selection_Hide2!$A126, 'Full set Core Client Indicator'!$A$3:$A$351, 0), MATCH(Selection_Hide2!G$5, 'Full set Core Client Indicator'!$A$3:$AB$3, 0))=\"\", \"\",  INDEX('Full set Core Client Indicator'!$A$3:$AB$351, MATCH(Selection_Hide2!$A126, 'Full set Core Client Indicator'!$A$3:$A$351, 0), MATCH(Selection_Hide2!G$5, 'Full set Core Client Indicator'!$A$3:$AB$3, 0))), \"\")","v":""},{"$f":"IF(G126<>\"\", IF(INDEX('Full set Core Client Indicator'!$A$3:$AB$351, MATCH(Selection_Hide2!$A126, 'Full set Core Client Indicator'!$A$3:$A$351, 0), MATCH(Selection_Hide2!H$5, 'Full set Core Client Indicator'!$A$3:$AB$3, 0))=\"\", \"\",  INDEX('Full set Core Client Indicator'!$A$3:$AB$351, MATCH(Selection_Hide2!$A126, 'Full set Core Client Indicator'!$A$3:$A$351, 0), MATCH(Selection_Hide2!H$5, 'Full set Core Client Indicator'!$A$3:$AB$3, 0))), \"\")","v":""},{"$f":"IF(H126<>\"\", IF(INDEX('Full set Core Client Indicator'!$A$3:$AB$351, MATCH(Selection_Hide2!$A126, 'Full set Core Client Indicator'!$A$3:$A$351, 0), MATCH(Selection_Hide2!I$5, 'Full set Core Client Indicator'!$A$3:$AB$3, 0))=\"\", \"\",  INDEX('Full set Core Client Indicator'!$A$3:$AB$351, MATCH(Selection_Hide2!$A126, 'Full set Core Client Indicator'!$A$3:$A$351, 0), MATCH(Selection_Hide2!I$5, 'Full set Core Client Indicator'!$A$3:$AB$3, 0))), \"\")","v":""},{"$f":"IF(I126<>\"\", IF(INDEX('Full set Core Client Indicator'!$A$3:$AB$351, MATCH(Selection_Hide2!$A126, 'Full set Core Client Indicator'!$A$3:$A$351, 0), MATCH(Selection_Hide2!J$5, 'Full set Core Client Indicator'!$A$3:$AB$3, 0))=\"\", \"\",  INDEX('Full set Core Client Indicator'!$A$3:$AB$351, MATCH(Selection_Hide2!$A126, 'Full set Core Client Indicator'!$A$3:$A$351, 0), MATCH(Selection_Hide2!J$5, 'Full set Core Client Indicator'!$A$3:$AB$3, 0))), \"\")","v":""},{"$f":"IF(J126<>\"\", IF(INDEX('Full set Core Client Indicator'!$A$3:$AB$351, MATCH(Selection_Hide2!$A126, 'Full set Core Client Indicator'!$A$3:$A$351, 0), MATCH(Selection_Hide2!K$5, 'Full set Core Client Indicator'!$A$3:$AB$3, 0))=\"\", \"\",  INDEX('Full set Core Client Indicator'!$A$3:$AB$351, MATCH(Selection_Hide2!$A126, 'Full set Core Client Indicator'!$A$3:$A$351, 0), MATCH(Selection_Hide2!K$5, 'Full set Core Client Indicator'!$A$3:$AB$3, 0))), \"\")","v":""},{"$f":"IF(K126<>\"\", IF(INDEX('Full set Core Client Indicator'!$A$3:$AB$351, MATCH(Selection_Hide2!$A126, 'Full set Core Client Indicator'!$A$3:$A$351, 0), MATCH(Selection_Hide2!L$5, 'Full set Core Client Indicator'!$A$3:$AB$3, 0))=\"\", \"\",  INDEX('Full set Core Client Indicator'!$A$3:$AB$351, MATCH(Selection_Hide2!$A126, 'Full set Core Client Indicator'!$A$3:$A$351, 0), MATCH(Selection_Hide2!L$5, 'Full set Core Client Indicator'!$A$3:$AB$3, 0))), \"\")","v":""},{"$f":"IF(L126<>\"\", IF(INDEX('Full set Core Client Indicator'!$A$3:$AB$351, MATCH(Selection_Hide2!$A126, 'Full set Core Client Indicator'!$A$3:$A$351, 0), MATCH(Selection_Hide2!M$5, 'Full set Core Client Indicator'!$A$3:$AB$3, 0))=\"\", \"\",  INDEX('Full set Core Client Indicator'!$A$3:$AB$351, MATCH(Selection_Hide2!$A126, 'Full set Core Client Indicator'!$A$3:$A$351, 0), MATCH(Selection_Hide2!M$5, 'Full set Core Client Indicator'!$A$3:$AB$3, 0))), \"\")","v":""},{"$f":"IF(M126<>\"\", IF(INDEX('Full set Core Client Indicator'!$A$3:$AB$351, MATCH(Selection_Hide2!$A126, 'Full set Core Client Indicator'!$A$3:$A$351, 0), MATCH(Selection_Hide2!N$5, 'Full set Core Client Indicator'!$A$3:$AB$3, 0))=\"\", \"\",  INDEX('Full set Core Client Indicator'!$A$3:$AB$351, MATCH(Selection_Hide2!$A126, 'Full set Core Client Indicator'!$A$3:$A$351, 0), MATCH(Selection_Hide2!N$5, 'Full set Core Client Indicator'!$A$3:$AB$3, 0))), \"\")","v":""},{"$f":"IF(N126<>\"\", IF(INDEX('Full set Core Client Indicator'!$A$3:$AB$351, MATCH(Selection_Hide2!$A126, 'Full set Core Client Indicator'!$A$3:$A$351, 0), MATCH(Selection_Hide2!O$5, 'Full set Core Client Indicator'!$A$3:$AB$3, 0))=\"\", \"\",  INDEX('Full set Core Client Indicator'!$A$3:$AB$351, MATCH(Selection_Hide2!$A126, 'Full set Core Client Indicator'!$A$3:$A$351, 0), MATCH(Selection_Hide2!O$5, 'Full set Core Client Indicator'!$A$3:$AB$3, 0))), \"\")","v":""},{"$f":"IF(O126<>\"\", IF(INDEX('Full set Core Client Indicator'!$A$3:$AB$351, MATCH(Selection_Hide2!$A126, 'Full set Core Client Indicator'!$A$3:$A$351, 0), MATCH(Selection_Hide2!P$5, 'Full set Core Client Indicator'!$A$3:$AB$3, 0))=\"\", \"\",  INDEX('Full set Core Client Indicator'!$A$3:$AB$351, MATCH(Selection_Hide2!$A126, 'Full set Core Client Indicator'!$A$3:$A$351, 0), MATCH(Selection_Hide2!P$5, 'Full set Core Client Indicator'!$A$3:$AB$3, 0))), \"\")","v":""},{"$f":"IF(P126<>\"\", IF(INDEX('Full set Core Client Indicator'!$A$3:$AB$351, MATCH(Selection_Hide2!$A126, 'Full set Core Client Indicator'!$A$3:$A$351, 0), MATCH(Selection_Hide2!Q$5, 'Full set Core Client Indicator'!$A$3:$AB$3, 0))=\"\", \"\",  INDEX('Full set Core Client Indicator'!$A$3:$AB$351, MATCH(Selection_Hide2!$A126, 'Full set Core Client Indicator'!$A$3:$A$351, 0), MATCH(Selection_Hide2!Q$5, 'Full set Core Client Indicator'!$A$3:$AB$3, 0))), \"\")","v":""},{"$f":"IF(Q126<>\"\", IF(INDEX('Full set Core Client Indicator'!$A$3:$AB$351, MATCH(Selection_Hide2!$A126, 'Full set Core Client Indicator'!$A$3:$A$351, 0), MATCH(Selection_Hide2!R$5, 'Full set Core Client Indicator'!$A$3:$AB$3, 0))=\"\", \"\",  INDEX('Full set Core Client Indicator'!$A$3:$AB$351, MATCH(Selection_Hide2!$A126, 'Full set Core Client Indicator'!$A$3:$A$351, 0), MATCH(Selection_Hide2!R$5, 'Full set Core Client Indicator'!$A$3:$AB$3, 0))), \"\")","v":""},{"$f":"IF(R126<>\"\", IF(INDEX('Full set Core Client Indicator'!$A$3:$AB$351, MATCH(Selection_Hide2!$A126, 'Full set Core Client Indicator'!$A$3:$A$351, 0), MATCH(Selection_Hide2!S$5, 'Full set Core Client Indicator'!$A$3:$AB$3, 0))=\"\", \"\",  INDEX('Full set Core Client Indicator'!$A$3:$AB$351, MATCH(Selection_Hide2!$A126, 'Full set Core Client Indicator'!$A$3:$A$351, 0), MATCH(Selection_Hide2!S$5, 'Full set Core Client Indicator'!$A$3:$AB$3, 0))), \"\")","v":""},{"$f":"IF(S126<>\"\", IF(INDEX('Full set Core Client Indicator'!$A$3:$AB$351, MATCH(Selection_Hide2!$A126, 'Full set Core Client Indicator'!$A$3:$A$351, 0), MATCH(Selection_Hide2!T$5, 'Full set Core Client Indicator'!$A$3:$AB$3, 0))=\"\", \"\",  INDEX('Full set Core Client Indicator'!$A$3:$AB$351, MATCH(Selection_Hide2!$A126, 'Full set Core Client Indicator'!$A$3:$A$351, 0), MATCH(Selection_Hide2!T$5, 'Full set Core Client Indicator'!$A$3:$AB$3, 0))), \"\")","v":""},{"$f":"IF(T126<>\"\", IF(INDEX('Full set Core Client Indicator'!$A$3:$AB$351, MATCH(Selection_Hide2!$A126, 'Full set Core Client Indicator'!$A$3:$A$351, 0), MATCH(Selection_Hide2!U$5, 'Full set Core Client Indicator'!$A$3:$AB$3, 0))=\"\", \"\",  INDEX('Full set Core Client Indicator'!$A$3:$AB$351, MATCH(Selection_Hide2!$A126, 'Full set Core Client Indicator'!$A$3:$A$351, 0), MATCH(Selection_Hide2!U$5, 'Full set Core Client Indicator'!$A$3:$AB$3, 0))), \"\")","v":""},{"$f":"IF(U126<>\"\", IF(INDEX('Full set Core Client Indicator'!$A$3:$AB$351, MATCH(Selection_Hide2!$A126, 'Full set Core Client Indicator'!$A$3:$A$351, 0), MATCH(Selection_Hide2!V$5, 'Full set Core Client Indicator'!$A$3:$AB$3, 0))=\"\", \"\",  INDEX('Full set Core Client Indicator'!$A$3:$AB$351, MATCH(Selection_Hide2!$A126, 'Full set Core Client Indicator'!$A$3:$A$351, 0), MATCH(Selection_Hide2!V$5, 'Full set Core Client Indicator'!$A$3:$AB$3, 0))), \"\")","v":""},{"$f":"IF(V126<>\"\", IF(INDEX('Full set Core Client Indicator'!$A$3:$AB$351, MATCH(Selection_Hide2!$A126, 'Full set Core Client Indicator'!$A$3:$A$351, 0), MATCH(Selection_Hide2!W$5, 'Full set Core Client Indicator'!$A$3:$AB$3, 0))=\"\", \"\",  INDEX('Full set Core Client Indicator'!$A$3:$AB$351, MATCH(Selection_Hide2!$A126, 'Full set Core Client Indicator'!$A$3:$A$351, 0), MATCH(Selection_Hide2!W$5, 'Full set Core Client Indicator'!$A$3:$AB$3, 0))), \"\")","v":""},{"$f":"IF(W126<>\"\", IF(INDEX('Full set Core Client Indicator'!$A$3:$AB$351, MATCH(Selection_Hide2!$A126, 'Full set Core Client Indicator'!$A$3:$A$351, 0), MATCH(Selection_Hide2!X$5, 'Full set Core Client Indicator'!$A$3:$AB$3, 0))=\"\", \"\",  INDEX('Full set Core Client Indicator'!$A$3:$AB$351, MATCH(Selection_Hide2!$A126, 'Full set Core Client Indicator'!$A$3:$A$351, 0), MATCH(Selection_Hide2!X$5, 'Full set Core Client Indicator'!$A$3:$AB$3, 0))), \"\")","v":""},{"$f":"IF(X126<>\"\", IF(INDEX('Full set Core Client Indicator'!$A$3:$AB$351, MATCH(Selection_Hide2!$A126, 'Full set Core Client Indicator'!$A$3:$A$351, 0), MATCH(Selection_Hide2!Y$5, 'Full set Core Client Indicator'!$A$3:$AB$3, 0))=\"\", \"\",  INDEX('Full set Core Client Indicator'!$A$3:$AB$351, MATCH(Selection_Hide2!$A126, 'Full set Core Client Indicator'!$A$3:$A$351, 0), MATCH(Selection_Hide2!Y$5, 'Full set Core Client Indicator'!$A$3:$AB$3, 0))), \"\")","v":""},{"$f":"IF(Y126<>\"\", IF(INDEX('Full set Core Client Indicator'!$A$3:$AB$351, MATCH(Selection_Hide2!$A126, 'Full set Core Client Indicator'!$A$3:$A$351, 0), MATCH(Selection_Hide2!Z$5, 'Full set Core Client Indicator'!$A$3:$AB$3, 0))=\"\", \"\",  INDEX('Full set Core Client Indicator'!$A$3:$AB$351, MATCH(Selection_Hide2!$A126, 'Full set Core Client Indicator'!$A$3:$A$351, 0), MATCH(Selection_Hide2!Z$5, 'Full set Core Client Indicator'!$A$3:$AB$3, 0))), \"\")","v":""},{"$f":"IF(Z126<>\"\", IF(INDEX('Full set Core Client Indicator'!$A$3:$AB$351, MATCH(Selection_Hide2!$A126, 'Full set Core Client Indicator'!$A$3:$A$351, 0), MATCH(Selection_Hide2!AA$5, 'Full set Core Client Indicator'!$A$3:$AB$3, 0))=\"\", \"\",  INDEX('Full set Core Client Indicator'!$A$3:$AB$351, MATCH(Selection_Hide2!$A126, 'Full set Core Client Indicator'!$A$3:$A$351, 0), MATCH(Selection_Hide2!AA$5, 'Full set Core Client Indicator'!$A$3:$AB$3, 0))), \"\")","v":""},{"$f":"IF(AA126<>\"\", IF(INDEX('Full set Core Client Indicator'!$A$3:$AB$351, MATCH(Selection_Hide2!$A126, 'Full set Core Client Indicator'!$A$3:$A$351, 0), MATCH(Selection_Hide2!AB$5, 'Full set Core Client Indicator'!$A$3:$AB$3, 0))=\"\", \"\",  INDEX('Full set Core Client Indicator'!$A$3:$AB$351, MATCH(Selection_Hide2!$A126, 'Full set Core Client Indicator'!$A$3:$A$351, 0), MATCH(Selection_Hide2!AB$5, 'Full set Core Client Indicator'!$A$3:$AB$3, 0))), \"\")","v":""}]
[{"$f":"IF(AND(Selection_Hide1!C125<>0, Selection_Hide1!C125<>\"Grand Total\"), Selection_Hide1!C125, \"\")","v":""},{"$f":"IF(A127<>\"\", IF(INDEX('Full set Core Client Indicator'!$A$3:$AB$351, MATCH(Selection_Hide2!$A127, 'Full set Core Client Indicator'!$A$3:$A$351, 0), MATCH(Selection_Hide2!B$5, 'Full set Core Client Indicator'!$A$3:$AB$3, 0))=\"\", \"\",  INDEX('Full set Core Client Indicator'!$A$3:$AB$351, MATCH(Selection_Hide2!$A127, 'Full set Core Client Indicator'!$A$3:$A$351, 0), MATCH(Selection_Hide2!B$5, 'Full set Core Client Indicator'!$A$3:$AB$3, 0))), \"\")","v":""},{"$f":"IF(B127<>\"\", IF(INDEX('Full set Core Client Indicator'!$A$3:$AB$351, MATCH(Selection_Hide2!$A127, 'Full set Core Client Indicator'!$A$3:$A$351, 0), MATCH(Selection_Hide2!C$5, 'Full set Core Client Indicator'!$A$3:$AB$3, 0))=\"\", \"\",  INDEX('Full set Core Client Indicator'!$A$3:$AB$351, MATCH(Selection_Hide2!$A127, 'Full set Core Client Indicator'!$A$3:$A$351, 0), MATCH(Selection_Hide2!C$5, 'Full set Core Client Indicator'!$A$3:$AB$3, 0))), \"\")","v":""},{"$f":"IF(C127<>\"\", IF(INDEX('Full set Core Client Indicator'!$A$3:$AB$351, MATCH(Selection_Hide2!$A127, 'Full set Core Client Indicator'!$A$3:$A$351, 0), MATCH(Selection_Hide2!D$5, 'Full set Core Client Indicator'!$A$3:$AB$3, 0))=\"\", \"\",  INDEX('Full set Core Client Indicator'!$A$3:$AB$351, MATCH(Selection_Hide2!$A127, 'Full set Core Client Indicator'!$A$3:$A$351, 0), MATCH(Selection_Hide2!D$5, 'Full set Core Client Indicator'!$A$3:$AB$3, 0))), \"\")","v":""},{"$f":"IF(D127<>\"\", IF(INDEX('Full set Core Client Indicator'!$A$3:$AB$351, MATCH(Selection_Hide2!$A127, 'Full set Core Client Indicator'!$A$3:$A$351, 0), MATCH(Selection_Hide2!E$5, 'Full set Core Client Indicator'!$A$3:$AB$3, 0))=\"\", \"\",  INDEX('Full set Core Client Indicator'!$A$3:$AB$351, MATCH(Selection_Hide2!$A127, 'Full set Core Client Indicator'!$A$3:$A$351, 0), MATCH(Selection_Hide2!E$5, 'Full set Core Client Indicator'!$A$3:$AB$3, 0))), \"\")","v":""},{"$f":"IF(E127<>\"\", IF(INDEX('Full set Core Client Indicator'!$A$3:$AB$351, MATCH(Selection_Hide2!$A127, 'Full set Core Client Indicator'!$A$3:$A$351, 0), MATCH(Selection_Hide2!F$5, 'Full set Core Client Indicator'!$A$3:$AB$3, 0))=\"\", \"\",  INDEX('Full set Core Client Indicator'!$A$3:$AB$351, MATCH(Selection_Hide2!$A127, 'Full set Core Client Indicator'!$A$3:$A$351, 0), MATCH(Selection_Hide2!F$5, 'Full set Core Client Indicator'!$A$3:$AB$3, 0))), \"\")","v":""},{"$f":"IF(F127<>\"\", IF(INDEX('Full set Core Client Indicator'!$A$3:$AB$351, MATCH(Selection_Hide2!$A127, 'Full set Core Client Indicator'!$A$3:$A$351, 0), MATCH(Selection_Hide2!G$5, 'Full set Core Client Indicator'!$A$3:$AB$3, 0))=\"\", \"\",  INDEX('Full set Core Client Indicator'!$A$3:$AB$351, MATCH(Selection_Hide2!$A127, 'Full set Core Client Indicator'!$A$3:$A$351, 0), MATCH(Selection_Hide2!G$5, 'Full set Core Client Indicator'!$A$3:$AB$3, 0))), \"\")","v":""},{"$f":"IF(G127<>\"\", IF(INDEX('Full set Core Client Indicator'!$A$3:$AB$351, MATCH(Selection_Hide2!$A127, 'Full set Core Client Indicator'!$A$3:$A$351, 0), MATCH(Selection_Hide2!H$5, 'Full set Core Client Indicator'!$A$3:$AB$3, 0))=\"\", \"\",  INDEX('Full set Core Client Indicator'!$A$3:$AB$351, MATCH(Selection_Hide2!$A127, 'Full set Core Client Indicator'!$A$3:$A$351, 0), MATCH(Selection_Hide2!H$5, 'Full set Core Client Indicator'!$A$3:$AB$3, 0))), \"\")","v":""},{"$f":"IF(H127<>\"\", IF(INDEX('Full set Core Client Indicator'!$A$3:$AB$351, MATCH(Selection_Hide2!$A127, 'Full set Core Client Indicator'!$A$3:$A$351, 0), MATCH(Selection_Hide2!I$5, 'Full set Core Client Indicator'!$A$3:$AB$3, 0))=\"\", \"\",  INDEX('Full set Core Client Indicator'!$A$3:$AB$351, MATCH(Selection_Hide2!$A127, 'Full set Core Client Indicator'!$A$3:$A$351, 0), MATCH(Selection_Hide2!I$5, 'Full set Core Client Indicator'!$A$3:$AB$3, 0))), \"\")","v":""},{"$f":"IF(I127<>\"\", IF(INDEX('Full set Core Client Indicator'!$A$3:$AB$351, MATCH(Selection_Hide2!$A127, 'Full set Core Client Indicator'!$A$3:$A$351, 0), MATCH(Selection_Hide2!J$5, 'Full set Core Client Indicator'!$A$3:$AB$3, 0))=\"\", \"\",  INDEX('Full set Core Client Indicator'!$A$3:$AB$351, MATCH(Selection_Hide2!$A127, 'Full set Core Client Indicator'!$A$3:$A$351, 0), MATCH(Selection_Hide2!J$5, 'Full set Core Client Indicator'!$A$3:$AB$3, 0))), \"\")","v":""},{"$f":"IF(J127<>\"\", IF(INDEX('Full set Core Client Indicator'!$A$3:$AB$351, MATCH(Selection_Hide2!$A127, 'Full set Core Client Indicator'!$A$3:$A$351, 0), MATCH(Selection_Hide2!K$5, 'Full set Core Client Indicator'!$A$3:$AB$3, 0))=\"\", \"\",  INDEX('Full set Core Client Indicator'!$A$3:$AB$351, MATCH(Selection_Hide2!$A127, 'Full set Core Client Indicator'!$A$3:$A$351, 0), MATCH(Selection_Hide2!K$5, 'Full set Core Client Indicator'!$A$3:$AB$3, 0))), \"\")","v":""},{"$f":"IF(K127<>\"\", IF(INDEX('Full set Core Client Indicator'!$A$3:$AB$351, MATCH(Selection_Hide2!$A127, 'Full set Core Client Indicator'!$A$3:$A$351, 0), MATCH(Selection_Hide2!L$5, 'Full set Core Client Indicator'!$A$3:$AB$3, 0))=\"\", \"\",  INDEX('Full set Core Client Indicator'!$A$3:$AB$351, MATCH(Selection_Hide2!$A127, 'Full set Core Client Indicator'!$A$3:$A$351, 0), MATCH(Selection_Hide2!L$5, 'Full set Core Client Indicator'!$A$3:$AB$3, 0))), \"\")","v":""},{"$f":"IF(L127<>\"\", IF(INDEX('Full set Core Client Indicator'!$A$3:$AB$351, MATCH(Selection_Hide2!$A127, 'Full set Core Client Indicator'!$A$3:$A$351, 0), MATCH(Selection_Hide2!M$5, 'Full set Core Client Indicator'!$A$3:$AB$3, 0))=\"\", \"\",  INDEX('Full set Core Client Indicator'!$A$3:$AB$351, MATCH(Selection_Hide2!$A127, 'Full set Core Client Indicator'!$A$3:$A$351, 0), MATCH(Selection_Hide2!M$5, 'Full set Core Client Indicator'!$A$3:$AB$3, 0))), \"\")","v":""},{"$f":"IF(M127<>\"\", IF(INDEX('Full set Core Client Indicator'!$A$3:$AB$351, MATCH(Selection_Hide2!$A127, 'Full set Core Client Indicator'!$A$3:$A$351, 0), MATCH(Selection_Hide2!N$5, 'Full set Core Client Indicator'!$A$3:$AB$3, 0))=\"\", \"\",  INDEX('Full set Core Client Indicator'!$A$3:$AB$351, MATCH(Selection_Hide2!$A127, 'Full set Core Client Indicator'!$A$3:$A$351, 0), MATCH(Selection_Hide2!N$5, 'Full set Core Client Indicator'!$A$3:$AB$3, 0))), \"\")","v":""},{"$f":"IF(N127<>\"\", IF(INDEX('Full set Core Client Indicator'!$A$3:$AB$351, MATCH(Selection_Hide2!$A127, 'Full set Core Client Indicator'!$A$3:$A$351, 0), MATCH(Selection_Hide2!O$5, 'Full set Core Client Indicator'!$A$3:$AB$3, 0))=\"\", \"\",  INDEX('Full set Core Client Indicator'!$A$3:$AB$351, MATCH(Selection_Hide2!$A127, 'Full set Core Client Indicator'!$A$3:$A$351, 0), MATCH(Selection_Hide2!O$5, 'Full set Core Client Indicator'!$A$3:$AB$3, 0))), \"\")","v":""},{"$f":"IF(O127<>\"\", IF(INDEX('Full set Core Client Indicator'!$A$3:$AB$351, MATCH(Selection_Hide2!$A127, 'Full set Core Client Indicator'!$A$3:$A$351, 0), MATCH(Selection_Hide2!P$5, 'Full set Core Client Indicator'!$A$3:$AB$3, 0))=\"\", \"\",  INDEX('Full set Core Client Indicator'!$A$3:$AB$351, MATCH(Selection_Hide2!$A127, 'Full set Core Client Indicator'!$A$3:$A$351, 0), MATCH(Selection_Hide2!P$5, 'Full set Core Client Indicator'!$A$3:$AB$3, 0))), \"\")","v":""},{"$f":"IF(P127<>\"\", IF(INDEX('Full set Core Client Indicator'!$A$3:$AB$351, MATCH(Selection_Hide2!$A127, 'Full set Core Client Indicator'!$A$3:$A$351, 0), MATCH(Selection_Hide2!Q$5, 'Full set Core Client Indicator'!$A$3:$AB$3, 0))=\"\", \"\",  INDEX('Full set Core Client Indicator'!$A$3:$AB$351, MATCH(Selection_Hide2!$A127, 'Full set Core Client Indicator'!$A$3:$A$351, 0), MATCH(Selection_Hide2!Q$5, 'Full set Core Client Indicator'!$A$3:$AB$3, 0))), \"\")","v":""},{"$f":"IF(Q127<>\"\", IF(INDEX('Full set Core Client Indicator'!$A$3:$AB$351, MATCH(Selection_Hide2!$A127, 'Full set Core Client Indicator'!$A$3:$A$351, 0), MATCH(Selection_Hide2!R$5, 'Full set Core Client Indicator'!$A$3:$AB$3, 0))=\"\", \"\",  INDEX('Full set Core Client Indicator'!$A$3:$AB$351, MATCH(Selection_Hide2!$A127, 'Full set Core Client Indicator'!$A$3:$A$351, 0), MATCH(Selection_Hide2!R$5, 'Full set Core Client Indicator'!$A$3:$AB$3, 0))), \"\")","v":""},{"$f":"IF(R127<>\"\", IF(INDEX('Full set Core Client Indicator'!$A$3:$AB$351, MATCH(Selection_Hide2!$A127, 'Full set Core Client Indicator'!$A$3:$A$351, 0), MATCH(Selection_Hide2!S$5, 'Full set Core Client Indicator'!$A$3:$AB$3, 0))=\"\", \"\",  INDEX('Full set Core Client Indicator'!$A$3:$AB$351, MATCH(Selection_Hide2!$A127, 'Full set Core Client Indicator'!$A$3:$A$351, 0), MATCH(Selection_Hide2!S$5, 'Full set Core Client Indicator'!$A$3:$AB$3, 0))), \"\")","v":""},{"$f":"IF(S127<>\"\", IF(INDEX('Full set Core Client Indicator'!$A$3:$AB$351, MATCH(Selection_Hide2!$A127, 'Full set Core Client Indicator'!$A$3:$A$351, 0), MATCH(Selection_Hide2!T$5, 'Full set Core Client Indicator'!$A$3:$AB$3, 0))=\"\", \"\",  INDEX('Full set Core Client Indicator'!$A$3:$AB$351, MATCH(Selection_Hide2!$A127, 'Full set Core Client Indicator'!$A$3:$A$351, 0), MATCH(Selection_Hide2!T$5, 'Full set Core Client Indicator'!$A$3:$AB$3, 0))), \"\")","v":""},{"$f":"IF(T127<>\"\", IF(INDEX('Full set Core Client Indicator'!$A$3:$AB$351, MATCH(Selection_Hide2!$A127, 'Full set Core Client Indicator'!$A$3:$A$351, 0), MATCH(Selection_Hide2!U$5, 'Full set Core Client Indicator'!$A$3:$AB$3, 0))=\"\", \"\",  INDEX('Full set Core Client Indicator'!$A$3:$AB$351, MATCH(Selection_Hide2!$A127, 'Full set Core Client Indicator'!$A$3:$A$351, 0), MATCH(Selection_Hide2!U$5, 'Full set Core Client Indicator'!$A$3:$AB$3, 0))), \"\")","v":""},{"$f":"IF(U127<>\"\", IF(INDEX('Full set Core Client Indicator'!$A$3:$AB$351, MATCH(Selection_Hide2!$A127, 'Full set Core Client Indicator'!$A$3:$A$351, 0), MATCH(Selection_Hide2!V$5, 'Full set Core Client Indicator'!$A$3:$AB$3, 0))=\"\", \"\",  INDEX('Full set Core Client Indicator'!$A$3:$AB$351, MATCH(Selection_Hide2!$A127, 'Full set Core Client Indicator'!$A$3:$A$351, 0), MATCH(Selection_Hide2!V$5, 'Full set Core Client Indicator'!$A$3:$AB$3, 0))), \"\")","v":""},{"$f":"IF(V127<>\"\", IF(INDEX('Full set Core Client Indicator'!$A$3:$AB$351, MATCH(Selection_Hide2!$A127, 'Full set Core Client Indicator'!$A$3:$A$351, 0), MATCH(Selection_Hide2!W$5, 'Full set Core Client Indicator'!$A$3:$AB$3, 0))=\"\", \"\",  INDEX('Full set Core Client Indicator'!$A$3:$AB$351, MATCH(Selection_Hide2!$A127, 'Full set Core Client Indicator'!$A$3:$A$351, 0), MATCH(Selection_Hide2!W$5, 'Full set Core Client Indicator'!$A$3:$AB$3, 0))), \"\")","v":""},{"$f":"IF(W127<>\"\", IF(INDEX('Full set Core Client Indicator'!$A$3:$AB$351, MATCH(Selection_Hide2!$A127, 'Full set Core Client Indicator'!$A$3:$A$351, 0), MATCH(Selection_Hide2!X$5, 'Full set Core Client Indicator'!$A$3:$AB$3, 0))=\"\", \"\",  INDEX('Full set Core Client Indicator'!$A$3:$AB$351, MATCH(Selection_Hide2!$A127, 'Full set Core Client Indicator'!$A$3:$A$351, 0), MATCH(Selection_Hide2!X$5, 'Full set Core Client Indicator'!$A$3:$AB$3, 0))), \"\")","v":""},{"$f":"IF(X127<>\"\", IF(INDEX('Full set Core Client Indicator'!$A$3:$AB$351, MATCH(Selection_Hide2!$A127, 'Full set Core Client Indicator'!$A$3:$A$351, 0), MATCH(Selection_Hide2!Y$5, 'Full set Core Client Indicator'!$A$3:$AB$3, 0))=\"\", \"\",  INDEX('Full set Core Client Indicator'!$A$3:$AB$351, MATCH(Selection_Hide2!$A127, 'Full set Core Client Indicator'!$A$3:$A$351, 0), MATCH(Selection_Hide2!Y$5, 'Full set Core Client Indicator'!$A$3:$AB$3, 0))), \"\")","v":""},{"$f":"IF(Y127<>\"\", IF(INDEX('Full set Core Client Indicator'!$A$3:$AB$351, MATCH(Selection_Hide2!$A127, 'Full set Core Client Indicator'!$A$3:$A$351, 0), MATCH(Selection_Hide2!Z$5, 'Full set Core Client Indicator'!$A$3:$AB$3, 0))=\"\", \"\",  INDEX('Full set Core Client Indicator'!$A$3:$AB$351, MATCH(Selection_Hide2!$A127, 'Full set Core Client Indicator'!$A$3:$A$351, 0), MATCH(Selection_Hide2!Z$5, 'Full set Core Client Indicator'!$A$3:$AB$3, 0))), \"\")","v":""},{"$f":"IF(Z127<>\"\", IF(INDEX('Full set Core Client Indicator'!$A$3:$AB$351, MATCH(Selection_Hide2!$A127, 'Full set Core Client Indicator'!$A$3:$A$351, 0), MATCH(Selection_Hide2!AA$5, 'Full set Core Client Indicator'!$A$3:$AB$3, 0))=\"\", \"\",  INDEX('Full set Core Client Indicator'!$A$3:$AB$351, MATCH(Selection_Hide2!$A127, 'Full set Core Client Indicator'!$A$3:$A$351, 0), MATCH(Selection_Hide2!AA$5, 'Full set Core Client Indicator'!$A$3:$AB$3, 0))), \"\")","v":""},{"$f":"IF(AA127<>\"\", IF(INDEX('Full set Core Client Indicator'!$A$3:$AB$351, MATCH(Selection_Hide2!$A127, 'Full set Core Client Indicator'!$A$3:$A$351, 0), MATCH(Selection_Hide2!AB$5, 'Full set Core Client Indicator'!$A$3:$AB$3, 0))=\"\", \"\",  INDEX('Full set Core Client Indicator'!$A$3:$AB$351, MATCH(Selection_Hide2!$A127, 'Full set Core Client Indicator'!$A$3:$A$351, 0), MATCH(Selection_Hide2!AB$5, 'Full set Core Client Indicator'!$A$3:$AB$3, 0))), \"\")","v":""}]
[{"$f":"IF(AND(Selection_Hide1!C126<>0, Selection_Hide1!C126<>\"Grand Total\"), Selection_Hide1!C126, \"\")","v":""},{"$f":"IF(A128<>\"\", IF(INDEX('Full set Core Client Indicator'!$A$3:$AB$351, MATCH(Selection_Hide2!$A128, 'Full set Core Client Indicator'!$A$3:$A$351, 0), MATCH(Selection_Hide2!B$5, 'Full set Core Client Indicator'!$A$3:$AB$3, 0))=\"\", \"\",  INDEX('Full set Core Client Indicator'!$A$3:$AB$351, MATCH(Selection_Hide2!$A128, 'Full set Core Client Indicator'!$A$3:$A$351, 0), MATCH(Selection_Hide2!B$5, 'Full set Core Client Indicator'!$A$3:$AB$3, 0))), \"\")","v":""},{"$f":"IF(B128<>\"\", IF(INDEX('Full set Core Client Indicator'!$A$3:$AB$351, MATCH(Selection_Hide2!$A128, 'Full set Core Client Indicator'!$A$3:$A$351, 0), MATCH(Selection_Hide2!C$5, 'Full set Core Client Indicator'!$A$3:$AB$3, 0))=\"\", \"\",  INDEX('Full set Core Client Indicator'!$A$3:$AB$351, MATCH(Selection_Hide2!$A128, 'Full set Core Client Indicator'!$A$3:$A$351, 0), MATCH(Selection_Hide2!C$5, 'Full set Core Client Indicator'!$A$3:$AB$3, 0))), \"\")","v":""},{"$f":"IF(C128<>\"\", IF(INDEX('Full set Core Client Indicator'!$A$3:$AB$351, MATCH(Selection_Hide2!$A128, 'Full set Core Client Indicator'!$A$3:$A$351, 0), MATCH(Selection_Hide2!D$5, 'Full set Core Client Indicator'!$A$3:$AB$3, 0))=\"\", \"\",  INDEX('Full set Core Client Indicator'!$A$3:$AB$351, MATCH(Selection_Hide2!$A128, 'Full set Core Client Indicator'!$A$3:$A$351, 0), MATCH(Selection_Hide2!D$5, 'Full set Core Client Indicator'!$A$3:$AB$3, 0))), \"\")","v":""},{"$f":"IF(D128<>\"\", IF(INDEX('Full set Core Client Indicator'!$A$3:$AB$351, MATCH(Selection_Hide2!$A128, 'Full set Core Client Indicator'!$A$3:$A$351, 0), MATCH(Selection_Hide2!E$5, 'Full set Core Client Indicator'!$A$3:$AB$3, 0))=\"\", \"\",  INDEX('Full set Core Client Indicator'!$A$3:$AB$351, MATCH(Selection_Hide2!$A128, 'Full set Core Client Indicator'!$A$3:$A$351, 0), MATCH(Selection_Hide2!E$5, 'Full set Core Client Indicator'!$A$3:$AB$3, 0))), \"\")","v":""},{"$f":"IF(E128<>\"\", IF(INDEX('Full set Core Client Indicator'!$A$3:$AB$351, MATCH(Selection_Hide2!$A128, 'Full set Core Client Indicator'!$A$3:$A$351, 0), MATCH(Selection_Hide2!F$5, 'Full set Core Client Indicator'!$A$3:$AB$3, 0))=\"\", \"\",  INDEX('Full set Core Client Indicator'!$A$3:$AB$351, MATCH(Selection_Hide2!$A128, 'Full set Core Client Indicator'!$A$3:$A$351, 0), MATCH(Selection_Hide2!F$5, 'Full set Core Client Indicator'!$A$3:$AB$3, 0))), \"\")","v":""},{"$f":"IF(F128<>\"\", IF(INDEX('Full set Core Client Indicator'!$A$3:$AB$351, MATCH(Selection_Hide2!$A128, 'Full set Core Client Indicator'!$A$3:$A$351, 0), MATCH(Selection_Hide2!G$5, 'Full set Core Client Indicator'!$A$3:$AB$3, 0))=\"\", \"\",  INDEX('Full set Core Client Indicator'!$A$3:$AB$351, MATCH(Selection_Hide2!$A128, 'Full set Core Client Indicator'!$A$3:$A$351, 0), MATCH(Selection_Hide2!G$5, 'Full set Core Client Indicator'!$A$3:$AB$3, 0))), \"\")","v":""},{"$f":"IF(G128<>\"\", IF(INDEX('Full set Core Client Indicator'!$A$3:$AB$351, MATCH(Selection_Hide2!$A128, 'Full set Core Client Indicator'!$A$3:$A$351, 0), MATCH(Selection_Hide2!H$5, 'Full set Core Client Indicator'!$A$3:$AB$3, 0))=\"\", \"\",  INDEX('Full set Core Client Indicator'!$A$3:$AB$351, MATCH(Selection_Hide2!$A128, 'Full set Core Client Indicator'!$A$3:$A$351, 0), MATCH(Selection_Hide2!H$5, 'Full set Core Client Indicator'!$A$3:$AB$3, 0))), \"\")","v":""},{"$f":"IF(H128<>\"\", IF(INDEX('Full set Core Client Indicator'!$A$3:$AB$351, MATCH(Selection_Hide2!$A128, 'Full set Core Client Indicator'!$A$3:$A$351, 0), MATCH(Selection_Hide2!I$5, 'Full set Core Client Indicator'!$A$3:$AB$3, 0))=\"\", \"\",  INDEX('Full set Core Client Indicator'!$A$3:$AB$351, MATCH(Selection_Hide2!$A128, 'Full set Core Client Indicator'!$A$3:$A$351, 0), MATCH(Selection_Hide2!I$5, 'Full set Core Client Indicator'!$A$3:$AB$3, 0))), \"\")","v":""},{"$f":"IF(I128<>\"\", IF(INDEX('Full set Core Client Indicator'!$A$3:$AB$351, MATCH(Selection_Hide2!$A128, 'Full set Core Client Indicator'!$A$3:$A$351, 0), MATCH(Selection_Hide2!J$5, 'Full set Core Client Indicator'!$A$3:$AB$3, 0))=\"\", \"\",  INDEX('Full set Core Client Indicator'!$A$3:$AB$351, MATCH(Selection_Hide2!$A128, 'Full set Core Client Indicator'!$A$3:$A$351, 0), MATCH(Selection_Hide2!J$5, 'Full set Core Client Indicator'!$A$3:$AB$3, 0))), \"\")","v":""},{"$f":"IF(J128<>\"\", IF(INDEX('Full set Core Client Indicator'!$A$3:$AB$351, MATCH(Selection_Hide2!$A128, 'Full set Core Client Indicator'!$A$3:$A$351, 0), MATCH(Selection_Hide2!K$5, 'Full set Core Client Indicator'!$A$3:$AB$3, 0))=\"\", \"\",  INDEX('Full set Core Client Indicator'!$A$3:$AB$351, MATCH(Selection_Hide2!$A128, 'Full set Core Client Indicator'!$A$3:$A$351, 0), MATCH(Selection_Hide2!K$5, 'Full set Core Client Indicator'!$A$3:$AB$3, 0))), \"\")","v":""},{"$f":"IF(K128<>\"\", IF(INDEX('Full set Core Client Indicator'!$A$3:$AB$351, MATCH(Selection_Hide2!$A128, 'Full set Core Client Indicator'!$A$3:$A$351, 0), MATCH(Selection_Hide2!L$5, 'Full set Core Client Indicator'!$A$3:$AB$3, 0))=\"\", \"\",  INDEX('Full set Core Client Indicator'!$A$3:$AB$351, MATCH(Selection_Hide2!$A128, 'Full set Core Client Indicator'!$A$3:$A$351, 0), MATCH(Selection_Hide2!L$5, 'Full set Core Client Indicator'!$A$3:$AB$3, 0))), \"\")","v":""},{"$f":"IF(L128<>\"\", IF(INDEX('Full set Core Client Indicator'!$A$3:$AB$351, MATCH(Selection_Hide2!$A128, 'Full set Core Client Indicator'!$A$3:$A$351, 0), MATCH(Selection_Hide2!M$5, 'Full set Core Client Indicator'!$A$3:$AB$3, 0))=\"\", \"\",  INDEX('Full set Core Client Indicator'!$A$3:$AB$351, MATCH(Selection_Hide2!$A128, 'Full set Core Client Indicator'!$A$3:$A$351, 0), MATCH(Selection_Hide2!M$5, 'Full set Core Client Indicator'!$A$3:$AB$3, 0))), \"\")","v":""},{"$f":"IF(M128<>\"\", IF(INDEX('Full set Core Client Indicator'!$A$3:$AB$351, MATCH(Selection_Hide2!$A128, 'Full set Core Client Indicator'!$A$3:$A$351, 0), MATCH(Selection_Hide2!N$5, 'Full set Core Client Indicator'!$A$3:$AB$3, 0))=\"\", \"\",  INDEX('Full set Core Client Indicator'!$A$3:$AB$351, MATCH(Selection_Hide2!$A128, 'Full set Core Client Indicator'!$A$3:$A$351, 0), MATCH(Selection_Hide2!N$5, 'Full set Core Client Indicator'!$A$3:$AB$3, 0))), \"\")","v":""},{"$f":"IF(N128<>\"\", IF(INDEX('Full set Core Client Indicator'!$A$3:$AB$351, MATCH(Selection_Hide2!$A128, 'Full set Core Client Indicator'!$A$3:$A$351, 0), MATCH(Selection_Hide2!O$5, 'Full set Core Client Indicator'!$A$3:$AB$3, 0))=\"\", \"\",  INDEX('Full set Core Client Indicator'!$A$3:$AB$351, MATCH(Selection_Hide2!$A128, 'Full set Core Client Indicator'!$A$3:$A$351, 0), MATCH(Selection_Hide2!O$5, 'Full set Core Client Indicator'!$A$3:$AB$3, 0))), \"\")","v":""},{"$f":"IF(O128<>\"\", IF(INDEX('Full set Core Client Indicator'!$A$3:$AB$351, MATCH(Selection_Hide2!$A128, 'Full set Core Client Indicator'!$A$3:$A$351, 0), MATCH(Selection_Hide2!P$5, 'Full set Core Client Indicator'!$A$3:$AB$3, 0))=\"\", \"\",  INDEX('Full set Core Client Indicator'!$A$3:$AB$351, MATCH(Selection_Hide2!$A128, 'Full set Core Client Indicator'!$A$3:$A$351, 0), MATCH(Selection_Hide2!P$5, 'Full set Core Client Indicator'!$A$3:$AB$3, 0))), \"\")","v":""},{"$f":"IF(P128<>\"\", IF(INDEX('Full set Core Client Indicator'!$A$3:$AB$351, MATCH(Selection_Hide2!$A128, 'Full set Core Client Indicator'!$A$3:$A$351, 0), MATCH(Selection_Hide2!Q$5, 'Full set Core Client Indicator'!$A$3:$AB$3, 0))=\"\", \"\",  INDEX('Full set Core Client Indicator'!$A$3:$AB$351, MATCH(Selection_Hide2!$A128, 'Full set Core Client Indicator'!$A$3:$A$351, 0), MATCH(Selection_Hide2!Q$5, 'Full set Core Client Indicator'!$A$3:$AB$3, 0))), \"\")","v":""},{"$f":"IF(Q128<>\"\", IF(INDEX('Full set Core Client Indicator'!$A$3:$AB$351, MATCH(Selection_Hide2!$A128, 'Full set Core Client Indicator'!$A$3:$A$351, 0), MATCH(Selection_Hide2!R$5, 'Full set Core Client Indicator'!$A$3:$AB$3, 0))=\"\", \"\",  INDEX('Full set Core Client Indicator'!$A$3:$AB$351, MATCH(Selection_Hide2!$A128, 'Full set Core Client Indicator'!$A$3:$A$351, 0), MATCH(Selection_Hide2!R$5, 'Full set Core Client Indicator'!$A$3:$AB$3, 0))), \"\")","v":""},{"$f":"IF(R128<>\"\", IF(INDEX('Full set Core Client Indicator'!$A$3:$AB$351, MATCH(Selection_Hide2!$A128, 'Full set Core Client Indicator'!$A$3:$A$351, 0), MATCH(Selection_Hide2!S$5, 'Full set Core Client Indicator'!$A$3:$AB$3, 0))=\"\", \"\",  INDEX('Full set Core Client Indicator'!$A$3:$AB$351, MATCH(Selection_Hide2!$A128, 'Full set Core Client Indicator'!$A$3:$A$351, 0), MATCH(Selection_Hide2!S$5, 'Full set Core Client Indicator'!$A$3:$AB$3, 0))), \"\")","v":""},{"$f":"IF(S128<>\"\", IF(INDEX('Full set Core Client Indicator'!$A$3:$AB$351, MATCH(Selection_Hide2!$A128, 'Full set Core Client Indicator'!$A$3:$A$351, 0), MATCH(Selection_Hide2!T$5, 'Full set Core Client Indicator'!$A$3:$AB$3, 0))=\"\", \"\",  INDEX('Full set Core Client Indicator'!$A$3:$AB$351, MATCH(Selection_Hide2!$A128, 'Full set Core Client Indicator'!$A$3:$A$351, 0), MATCH(Selection_Hide2!T$5, 'Full set Core Client Indicator'!$A$3:$AB$3, 0))), \"\")","v":""},{"$f":"IF(T128<>\"\", IF(INDEX('Full set Core Client Indicator'!$A$3:$AB$351, MATCH(Selection_Hide2!$A128, 'Full set Core Client Indicator'!$A$3:$A$351, 0), MATCH(Selection_Hide2!U$5, 'Full set Core Client Indicator'!$A$3:$AB$3, 0))=\"\", \"\",  INDEX('Full set Core Client Indicator'!$A$3:$AB$351, MATCH(Selection_Hide2!$A128, 'Full set Core Client Indicator'!$A$3:$A$351, 0), MATCH(Selection_Hide2!U$5, 'Full set Core Client Indicator'!$A$3:$AB$3, 0))), \"\")","v":""},{"$f":"IF(U128<>\"\", IF(INDEX('Full set Core Client Indicator'!$A$3:$AB$351, MATCH(Selection_Hide2!$A128, 'Full set Core Client Indicator'!$A$3:$A$351, 0), MATCH(Selection_Hide2!V$5, 'Full set Core Client Indicator'!$A$3:$AB$3, 0))=\"\", \"\",  INDEX('Full set Core Client Indicator'!$A$3:$AB$351, MATCH(Selection_Hide2!$A128, 'Full set Core Client Indicator'!$A$3:$A$351, 0), MATCH(Selection_Hide2!V$5, 'Full set Core Client Indicator'!$A$3:$AB$3, 0))), \"\")","v":""},{"$f":"IF(V128<>\"\", IF(INDEX('Full set Core Client Indicator'!$A$3:$AB$351, MATCH(Selection_Hide2!$A128, 'Full set Core Client Indicator'!$A$3:$A$351, 0), MATCH(Selection_Hide2!W$5, 'Full set Core Client Indicator'!$A$3:$AB$3, 0))=\"\", \"\",  INDEX('Full set Core Client Indicator'!$A$3:$AB$351, MATCH(Selection_Hide2!$A128, 'Full set Core Client Indicator'!$A$3:$A$351, 0), MATCH(Selection_Hide2!W$5, 'Full set Core Client Indicator'!$A$3:$AB$3, 0))), \"\")","v":""},{"$f":"IF(W128<>\"\", IF(INDEX('Full set Core Client Indicator'!$A$3:$AB$351, MATCH(Selection_Hide2!$A128, 'Full set Core Client Indicator'!$A$3:$A$351, 0), MATCH(Selection_Hide2!X$5, 'Full set Core Client Indicator'!$A$3:$AB$3, 0))=\"\", \"\",  INDEX('Full set Core Client Indicator'!$A$3:$AB$351, MATCH(Selection_Hide2!$A128, 'Full set Core Client Indicator'!$A$3:$A$351, 0), MATCH(Selection_Hide2!X$5, 'Full set Core Client Indicator'!$A$3:$AB$3, 0))), \"\")","v":""},{"$f":"IF(X128<>\"\", IF(INDEX('Full set Core Client Indicator'!$A$3:$AB$351, MATCH(Selection_Hide2!$A128, 'Full set Core Client Indicator'!$A$3:$A$351, 0), MATCH(Selection_Hide2!Y$5, 'Full set Core Client Indicator'!$A$3:$AB$3, 0))=\"\", \"\",  INDEX('Full set Core Client Indicator'!$A$3:$AB$351, MATCH(Selection_Hide2!$A128, 'Full set Core Client Indicator'!$A$3:$A$351, 0), MATCH(Selection_Hide2!Y$5, 'Full set Core Client Indicator'!$A$3:$AB$3, 0))), \"\")","v":""},{"$f":"IF(Y128<>\"\", IF(INDEX('Full set Core Client Indicator'!$A$3:$AB$351, MATCH(Selection_Hide2!$A128, 'Full set Core Client Indicator'!$A$3:$A$351, 0), MATCH(Selection_Hide2!Z$5, 'Full set Core Client Indicator'!$A$3:$AB$3, 0))=\"\", \"\",  INDEX('Full set Core Client Indicator'!$A$3:$AB$351, MATCH(Selection_Hide2!$A128, 'Full set Core Client Indicator'!$A$3:$A$351, 0), MATCH(Selection_Hide2!Z$5, 'Full set Core Client Indicator'!$A$3:$AB$3, 0))), \"\")","v":""},{"$f":"IF(Z128<>\"\", IF(INDEX('Full set Core Client Indicator'!$A$3:$AB$351, MATCH(Selection_Hide2!$A128, 'Full set Core Client Indicator'!$A$3:$A$351, 0), MATCH(Selection_Hide2!AA$5, 'Full set Core Client Indicator'!$A$3:$AB$3, 0))=\"\", \"\",  INDEX('Full set Core Client Indicator'!$A$3:$AB$351, MATCH(Selection_Hide2!$A128, 'Full set Core Client Indicator'!$A$3:$A$351, 0), MATCH(Selection_Hide2!AA$5, 'Full set Core Client Indicator'!$A$3:$AB$3, 0))), \"\")","v":""},{"$f":"IF(AA128<>\"\", IF(INDEX('Full set Core Client Indicator'!$A$3:$AB$351, MATCH(Selection_Hide2!$A128, 'Full set Core Client Indicator'!$A$3:$A$351, 0), MATCH(Selection_Hide2!AB$5, 'Full set Core Client Indicator'!$A$3:$AB$3, 0))=\"\", \"\",  INDEX('Full set Core Client Indicator'!$A$3:$AB$351, MATCH(Selection_Hide2!$A128, 'Full set Core Client Indicator'!$A$3:$A$351, 0), MATCH(Selection_Hide2!AB$5, 'Full set Core Client Indicator'!$A$3:$AB$3, 0))), \"\")","v":""}]
[{"$f":"IF(AND(Selection_Hide1!C127<>0, Selection_Hide1!C127<>\"Grand Total\"), Selection_Hide1!C127, \"\")","v":""},{"$f":"IF(A129<>\"\", IF(INDEX('Full set Core Client Indicator'!$A$3:$AB$351, MATCH(Selection_Hide2!$A129, 'Full set Core Client Indicator'!$A$3:$A$351, 0), MATCH(Selection_Hide2!B$5, 'Full set Core Client Indicator'!$A$3:$AB$3, 0))=\"\", \"\",  INDEX('Full set Core Client Indicator'!$A$3:$AB$351, MATCH(Selection_Hide2!$A129, 'Full set Core Client Indicator'!$A$3:$A$351, 0), MATCH(Selection_Hide2!B$5, 'Full set Core Client Indicator'!$A$3:$AB$3, 0))), \"\")","v":""},{"$f":"IF(B129<>\"\", IF(INDEX('Full set Core Client Indicator'!$A$3:$AB$351, MATCH(Selection_Hide2!$A129, 'Full set Core Client Indicator'!$A$3:$A$351, 0), MATCH(Selection_Hide2!C$5, 'Full set Core Client Indicator'!$A$3:$AB$3, 0))=\"\", \"\",  INDEX('Full set Core Client Indicator'!$A$3:$AB$351, MATCH(Selection_Hide2!$A129, 'Full set Core Client Indicator'!$A$3:$A$351, 0), MATCH(Selection_Hide2!C$5, 'Full set Core Client Indicator'!$A$3:$AB$3, 0))), \"\")","v":""},{"$f":"IF(C129<>\"\", IF(INDEX('Full set Core Client Indicator'!$A$3:$AB$351, MATCH(Selection_Hide2!$A129, 'Full set Core Client Indicator'!$A$3:$A$351, 0), MATCH(Selection_Hide2!D$5, 'Full set Core Client Indicator'!$A$3:$AB$3, 0))=\"\", \"\",  INDEX('Full set Core Client Indicator'!$A$3:$AB$351, MATCH(Selection_Hide2!$A129, 'Full set Core Client Indicator'!$A$3:$A$351, 0), MATCH(Selection_Hide2!D$5, 'Full set Core Client Indicator'!$A$3:$AB$3, 0))), \"\")","v":""},{"$f":"IF(D129<>\"\", IF(INDEX('Full set Core Client Indicator'!$A$3:$AB$351, MATCH(Selection_Hide2!$A129, 'Full set Core Client Indicator'!$A$3:$A$351, 0), MATCH(Selection_Hide2!E$5, 'Full set Core Client Indicator'!$A$3:$AB$3, 0))=\"\", \"\",  INDEX('Full set Core Client Indicator'!$A$3:$AB$351, MATCH(Selection_Hide2!$A129, 'Full set Core Client Indicator'!$A$3:$A$351, 0), MATCH(Selection_Hide2!E$5, 'Full set Core Client Indicator'!$A$3:$AB$3, 0))), \"\")","v":""},{"$f":"IF(E129<>\"\", IF(INDEX('Full set Core Client Indicator'!$A$3:$AB$351, MATCH(Selection_Hide2!$A129, 'Full set Core Client Indicator'!$A$3:$A$351, 0), MATCH(Selection_Hide2!F$5, 'Full set Core Client Indicator'!$A$3:$AB$3, 0))=\"\", \"\",  INDEX('Full set Core Client Indicator'!$A$3:$AB$351, MATCH(Selection_Hide2!$A129, 'Full set Core Client Indicator'!$A$3:$A$351, 0), MATCH(Selection_Hide2!F$5, 'Full set Core Client Indicator'!$A$3:$AB$3, 0))), \"\")","v":""},{"$f":"IF(F129<>\"\", IF(INDEX('Full set Core Client Indicator'!$A$3:$AB$351, MATCH(Selection_Hide2!$A129, 'Full set Core Client Indicator'!$A$3:$A$351, 0), MATCH(Selection_Hide2!G$5, 'Full set Core Client Indicator'!$A$3:$AB$3, 0))=\"\", \"\",  INDEX('Full set Core Client Indicator'!$A$3:$AB$351, MATCH(Selection_Hide2!$A129, 'Full set Core Client Indicator'!$A$3:$A$351, 0), MATCH(Selection_Hide2!G$5, 'Full set Core Client Indicator'!$A$3:$AB$3, 0))), \"\")","v":""},{"$f":"IF(G129<>\"\", IF(INDEX('Full set Core Client Indicator'!$A$3:$AB$351, MATCH(Selection_Hide2!$A129, 'Full set Core Client Indicator'!$A$3:$A$351, 0), MATCH(Selection_Hide2!H$5, 'Full set Core Client Indicator'!$A$3:$AB$3, 0))=\"\", \"\",  INDEX('Full set Core Client Indicator'!$A$3:$AB$351, MATCH(Selection_Hide2!$A129, 'Full set Core Client Indicator'!$A$3:$A$351, 0), MATCH(Selection_Hide2!H$5, 'Full set Core Client Indicator'!$A$3:$AB$3, 0))), \"\")","v":""},{"$f":"IF(H129<>\"\", IF(INDEX('Full set Core Client Indicator'!$A$3:$AB$351, MATCH(Selection_Hide2!$A129, 'Full set Core Client Indicator'!$A$3:$A$351, 0), MATCH(Selection_Hide2!I$5, 'Full set Core Client Indicator'!$A$3:$AB$3, 0))=\"\", \"\",  INDEX('Full set Core Client Indicator'!$A$3:$AB$351, MATCH(Selection_Hide2!$A129, 'Full set Core Client Indicator'!$A$3:$A$351, 0), MATCH(Selection_Hide2!I$5, 'Full set Core Client Indicator'!$A$3:$AB$3, 0))), \"\")","v":""},{"$f":"IF(I129<>\"\", IF(INDEX('Full set Core Client Indicator'!$A$3:$AB$351, MATCH(Selection_Hide2!$A129, 'Full set Core Client Indicator'!$A$3:$A$351, 0), MATCH(Selection_Hide2!J$5, 'Full set Core Client Indicator'!$A$3:$AB$3, 0))=\"\", \"\",  INDEX('Full set Core Client Indicator'!$A$3:$AB$351, MATCH(Selection_Hide2!$A129, 'Full set Core Client Indicator'!$A$3:$A$351, 0), MATCH(Selection_Hide2!J$5, 'Full set Core Client Indicator'!$A$3:$AB$3, 0))), \"\")","v":""},{"$f":"IF(J129<>\"\", IF(INDEX('Full set Core Client Indicator'!$A$3:$AB$351, MATCH(Selection_Hide2!$A129, 'Full set Core Client Indicator'!$A$3:$A$351, 0), MATCH(Selection_Hide2!K$5, 'Full set Core Client Indicator'!$A$3:$AB$3, 0))=\"\", \"\",  INDEX('Full set Core Client Indicator'!$A$3:$AB$351, MATCH(Selection_Hide2!$A129, 'Full set Core Client Indicator'!$A$3:$A$351, 0), MATCH(Selection_Hide2!K$5, 'Full set Core Client Indicator'!$A$3:$AB$3, 0))), \"\")","v":""},{"$f":"IF(K129<>\"\", IF(INDEX('Full set Core Client Indicator'!$A$3:$AB$351, MATCH(Selection_Hide2!$A129, 'Full set Core Client Indicator'!$A$3:$A$351, 0), MATCH(Selection_Hide2!L$5, 'Full set Core Client Indicator'!$A$3:$AB$3, 0))=\"\", \"\",  INDEX('Full set Core Client Indicator'!$A$3:$AB$351, MATCH(Selection_Hide2!$A129, 'Full set Core Client Indicator'!$A$3:$A$351, 0), MATCH(Selection_Hide2!L$5, 'Full set Core Client Indicator'!$A$3:$AB$3, 0))), \"\")","v":""},{"$f":"IF(L129<>\"\", IF(INDEX('Full set Core Client Indicator'!$A$3:$AB$351, MATCH(Selection_Hide2!$A129, 'Full set Core Client Indicator'!$A$3:$A$351, 0), MATCH(Selection_Hide2!M$5, 'Full set Core Client Indicator'!$A$3:$AB$3, 0))=\"\", \"\",  INDEX('Full set Core Client Indicator'!$A$3:$AB$351, MATCH(Selection_Hide2!$A129, 'Full set Core Client Indicator'!$A$3:$A$351, 0), MATCH(Selection_Hide2!M$5, 'Full set Core Client Indicator'!$A$3:$AB$3, 0))), \"\")","v":""},{"$f":"IF(M129<>\"\", IF(INDEX('Full set Core Client Indicator'!$A$3:$AB$351, MATCH(Selection_Hide2!$A129, 'Full set Core Client Indicator'!$A$3:$A$351, 0), MATCH(Selection_Hide2!N$5, 'Full set Core Client Indicator'!$A$3:$AB$3, 0))=\"\", \"\",  INDEX('Full set Core Client Indicator'!$A$3:$AB$351, MATCH(Selection_Hide2!$A129, 'Full set Core Client Indicator'!$A$3:$A$351, 0), MATCH(Selection_Hide2!N$5, 'Full set Core Client Indicator'!$A$3:$AB$3, 0))), \"\")","v":""},{"$f":"IF(N129<>\"\", IF(INDEX('Full set Core Client Indicator'!$A$3:$AB$351, MATCH(Selection_Hide2!$A129, 'Full set Core Client Indicator'!$A$3:$A$351, 0), MATCH(Selection_Hide2!O$5, 'Full set Core Client Indicator'!$A$3:$AB$3, 0))=\"\", \"\",  INDEX('Full set Core Client Indicator'!$A$3:$AB$351, MATCH(Selection_Hide2!$A129, 'Full set Core Client Indicator'!$A$3:$A$351, 0), MATCH(Selection_Hide2!O$5, 'Full set Core Client Indicator'!$A$3:$AB$3, 0))), \"\")","v":""},{"$f":"IF(O129<>\"\", IF(INDEX('Full set Core Client Indicator'!$A$3:$AB$351, MATCH(Selection_Hide2!$A129, 'Full set Core Client Indicator'!$A$3:$A$351, 0), MATCH(Selection_Hide2!P$5, 'Full set Core Client Indicator'!$A$3:$AB$3, 0))=\"\", \"\",  INDEX('Full set Core Client Indicator'!$A$3:$AB$351, MATCH(Selection_Hide2!$A129, 'Full set Core Client Indicator'!$A$3:$A$351, 0), MATCH(Selection_Hide2!P$5, 'Full set Core Client Indicator'!$A$3:$AB$3, 0))), \"\")","v":""},{"$f":"IF(P129<>\"\", IF(INDEX('Full set Core Client Indicator'!$A$3:$AB$351, MATCH(Selection_Hide2!$A129, 'Full set Core Client Indicator'!$A$3:$A$351, 0), MATCH(Selection_Hide2!Q$5, 'Full set Core Client Indicator'!$A$3:$AB$3, 0))=\"\", \"\",  INDEX('Full set Core Client Indicator'!$A$3:$AB$351, MATCH(Selection_Hide2!$A129, 'Full set Core Client Indicator'!$A$3:$A$351, 0), MATCH(Selection_Hide2!Q$5, 'Full set Core Client Indicator'!$A$3:$AB$3, 0))), \"\")","v":""},{"$f":"IF(Q129<>\"\", IF(INDEX('Full set Core Client Indicator'!$A$3:$AB$351, MATCH(Selection_Hide2!$A129, 'Full set Core Client Indicator'!$A$3:$A$351, 0), MATCH(Selection_Hide2!R$5, 'Full set Core Client Indicator'!$A$3:$AB$3, 0))=\"\", \"\",  INDEX('Full set Core Client Indicator'!$A$3:$AB$351, MATCH(Selection_Hide2!$A129, 'Full set Core Client Indicator'!$A$3:$A$351, 0), MATCH(Selection_Hide2!R$5, 'Full set Core Client Indicator'!$A$3:$AB$3, 0))), \"\")","v":""},{"$f":"IF(R129<>\"\", IF(INDEX('Full set Core Client Indicator'!$A$3:$AB$351, MATCH(Selection_Hide2!$A129, 'Full set Core Client Indicator'!$A$3:$A$351, 0), MATCH(Selection_Hide2!S$5, 'Full set Core Client Indicator'!$A$3:$AB$3, 0))=\"\", \"\",  INDEX('Full set Core Client Indicator'!$A$3:$AB$351, MATCH(Selection_Hide2!$A129, 'Full set Core Client Indicator'!$A$3:$A$351, 0), MATCH(Selection_Hide2!S$5, 'Full set Core Client Indicator'!$A$3:$AB$3, 0))), \"\")","v":""},{"$f":"IF(S129<>\"\", IF(INDEX('Full set Core Client Indicator'!$A$3:$AB$351, MATCH(Selection_Hide2!$A129, 'Full set Core Client Indicator'!$A$3:$A$351, 0), MATCH(Selection_Hide2!T$5, 'Full set Core Client Indicator'!$A$3:$AB$3, 0))=\"\", \"\",  INDEX('Full set Core Client Indicator'!$A$3:$AB$351, MATCH(Selection_Hide2!$A129, 'Full set Core Client Indicator'!$A$3:$A$351, 0), MATCH(Selection_Hide2!T$5, 'Full set Core Client Indicator'!$A$3:$AB$3, 0))), \"\")","v":""},{"$f":"IF(T129<>\"\", IF(INDEX('Full set Core Client Indicator'!$A$3:$AB$351, MATCH(Selection_Hide2!$A129, 'Full set Core Client Indicator'!$A$3:$A$351, 0), MATCH(Selection_Hide2!U$5, 'Full set Core Client Indicator'!$A$3:$AB$3, 0))=\"\", \"\",  INDEX('Full set Core Client Indicator'!$A$3:$AB$351, MATCH(Selection_Hide2!$A129, 'Full set Core Client Indicator'!$A$3:$A$351, 0), MATCH(Selection_Hide2!U$5, 'Full set Core Client Indicator'!$A$3:$AB$3, 0))), \"\")","v":""},{"$f":"IF(U129<>\"\", IF(INDEX('Full set Core Client Indicator'!$A$3:$AB$351, MATCH(Selection_Hide2!$A129, 'Full set Core Client Indicator'!$A$3:$A$351, 0), MATCH(Selection_Hide2!V$5, 'Full set Core Client Indicator'!$A$3:$AB$3, 0))=\"\", \"\",  INDEX('Full set Core Client Indicator'!$A$3:$AB$351, MATCH(Selection_Hide2!$A129, 'Full set Core Client Indicator'!$A$3:$A$351, 0), MATCH(Selection_Hide2!V$5, 'Full set Core Client Indicator'!$A$3:$AB$3, 0))), \"\")","v":""},{"$f":"IF(V129<>\"\", IF(INDEX('Full set Core Client Indicator'!$A$3:$AB$351, MATCH(Selection_Hide2!$A129, 'Full set Core Client Indicator'!$A$3:$A$351, 0), MATCH(Selection_Hide2!W$5, 'Full set Core Client Indicator'!$A$3:$AB$3, 0))=\"\", \"\",  INDEX('Full set Core Client Indicator'!$A$3:$AB$351, MATCH(Selection_Hide2!$A129, 'Full set Core Client Indicator'!$A$3:$A$351, 0), MATCH(Selection_Hide2!W$5, 'Full set Core Client Indicator'!$A$3:$AB$3, 0))), \"\")","v":""},{"$f":"IF(W129<>\"\", IF(INDEX('Full set Core Client Indicator'!$A$3:$AB$351, MATCH(Selection_Hide2!$A129, 'Full set Core Client Indicator'!$A$3:$A$351, 0), MATCH(Selection_Hide2!X$5, 'Full set Core Client Indicator'!$A$3:$AB$3, 0))=\"\", \"\",  INDEX('Full set Core Client Indicator'!$A$3:$AB$351, MATCH(Selection_Hide2!$A129, 'Full set Core Client Indicator'!$A$3:$A$351, 0), MATCH(Selection_Hide2!X$5, 'Full set Core Client Indicator'!$A$3:$AB$3, 0))), \"\")","v":""},{"$f":"IF(X129<>\"\", IF(INDEX('Full set Core Client Indicator'!$A$3:$AB$351, MATCH(Selection_Hide2!$A129, 'Full set Core Client Indicator'!$A$3:$A$351, 0), MATCH(Selection_Hide2!Y$5, 'Full set Core Client Indicator'!$A$3:$AB$3, 0))=\"\", \"\",  INDEX('Full set Core Client Indicator'!$A$3:$AB$351, MATCH(Selection_Hide2!$A129, 'Full set Core Client Indicator'!$A$3:$A$351, 0), MATCH(Selection_Hide2!Y$5, 'Full set Core Client Indicator'!$A$3:$AB$3, 0))), \"\")","v":""},{"$f":"IF(Y129<>\"\", IF(INDEX('Full set Core Client Indicator'!$A$3:$AB$351, MATCH(Selection_Hide2!$A129, 'Full set Core Client Indicator'!$A$3:$A$351, 0), MATCH(Selection_Hide2!Z$5, 'Full set Core Client Indicator'!$A$3:$AB$3, 0))=\"\", \"\",  INDEX('Full set Core Client Indicator'!$A$3:$AB$351, MATCH(Selection_Hide2!$A129, 'Full set Core Client Indicator'!$A$3:$A$351, 0), MATCH(Selection_Hide2!Z$5, 'Full set Core Client Indicator'!$A$3:$AB$3, 0))), \"\")","v":""},{"$f":"IF(Z129<>\"\", IF(INDEX('Full set Core Client Indicator'!$A$3:$AB$351, MATCH(Selection_Hide2!$A129, 'Full set Core Client Indicator'!$A$3:$A$351, 0), MATCH(Selection_Hide2!AA$5, 'Full set Core Client Indicator'!$A$3:$AB$3, 0))=\"\", \"\",  INDEX('Full set Core Client Indicator'!$A$3:$AB$351, MATCH(Selection_Hide2!$A129, 'Full set Core Client Indicator'!$A$3:$A$351, 0), MATCH(Selection_Hide2!AA$5, 'Full set Core Client Indicator'!$A$3:$AB$3, 0))), \"\")","v":""},{"$f":"IF(AA129<>\"\", IF(INDEX('Full set Core Client Indicator'!$A$3:$AB$351, MATCH(Selection_Hide2!$A129, 'Full set Core Client Indicator'!$A$3:$A$351, 0), MATCH(Selection_Hide2!AB$5, 'Full set Core Client Indicator'!$A$3:$AB$3, 0))=\"\", \"\",  INDEX('Full set Core Client Indicator'!$A$3:$AB$351, MATCH(Selection_Hide2!$A129, 'Full set Core Client Indicator'!$A$3:$A$351, 0), MATCH(Selection_Hide2!AB$5, 'Full set Core Client Indicator'!$A$3:$AB$3, 0))), \"\")","v":""}]
[{"$f":"IF(AND(Selection_Hide1!C128<>0, Selection_Hide1!C128<>\"Grand Total\"), Selection_Hide1!C128, \"\")","v":""},{"$f":"IF(A130<>\"\", IF(INDEX('Full set Core Client Indicator'!$A$3:$AB$351, MATCH(Selection_Hide2!$A130, 'Full set Core Client Indicator'!$A$3:$A$351, 0), MATCH(Selection_Hide2!B$5, 'Full set Core Client Indicator'!$A$3:$AB$3, 0))=\"\", \"\",  INDEX('Full set Core Client Indicator'!$A$3:$AB$351, MATCH(Selection_Hide2!$A130, 'Full set Core Client Indicator'!$A$3:$A$351, 0), MATCH(Selection_Hide2!B$5, 'Full set Core Client Indicator'!$A$3:$AB$3, 0))), \"\")","v":""},{"$f":"IF(B130<>\"\", IF(INDEX('Full set Core Client Indicator'!$A$3:$AB$351, MATCH(Selection_Hide2!$A130, 'Full set Core Client Indicator'!$A$3:$A$351, 0), MATCH(Selection_Hide2!C$5, 'Full set Core Client Indicator'!$A$3:$AB$3, 0))=\"\", \"\",  INDEX('Full set Core Client Indicator'!$A$3:$AB$351, MATCH(Selection_Hide2!$A130, 'Full set Core Client Indicator'!$A$3:$A$351, 0), MATCH(Selection_Hide2!C$5, 'Full set Core Client Indicator'!$A$3:$AB$3, 0))), \"\")","v":""},{"$f":"IF(C130<>\"\", IF(INDEX('Full set Core Client Indicator'!$A$3:$AB$351, MATCH(Selection_Hide2!$A130, 'Full set Core Client Indicator'!$A$3:$A$351, 0), MATCH(Selection_Hide2!D$5, 'Full set Core Client Indicator'!$A$3:$AB$3, 0))=\"\", \"\",  INDEX('Full set Core Client Indicator'!$A$3:$AB$351, MATCH(Selection_Hide2!$A130, 'Full set Core Client Indicator'!$A$3:$A$351, 0), MATCH(Selection_Hide2!D$5, 'Full set Core Client Indicator'!$A$3:$AB$3, 0))), \"\")","v":""},{"$f":"IF(D130<>\"\", IF(INDEX('Full set Core Client Indicator'!$A$3:$AB$351, MATCH(Selection_Hide2!$A130, 'Full set Core Client Indicator'!$A$3:$A$351, 0), MATCH(Selection_Hide2!E$5, 'Full set Core Client Indicator'!$A$3:$AB$3, 0))=\"\", \"\",  INDEX('Full set Core Client Indicator'!$A$3:$AB$351, MATCH(Selection_Hide2!$A130, 'Full set Core Client Indicator'!$A$3:$A$351, 0), MATCH(Selection_Hide2!E$5, 'Full set Core Client Indicator'!$A$3:$AB$3, 0))), \"\")","v":""},{"$f":"IF(E130<>\"\", IF(INDEX('Full set Core Client Indicator'!$A$3:$AB$351, MATCH(Selection_Hide2!$A130, 'Full set Core Client Indicator'!$A$3:$A$351, 0), MATCH(Selection_Hide2!F$5, 'Full set Core Client Indicator'!$A$3:$AB$3, 0))=\"\", \"\",  INDEX('Full set Core Client Indicator'!$A$3:$AB$351, MATCH(Selection_Hide2!$A130, 'Full set Core Client Indicator'!$A$3:$A$351, 0), MATCH(Selection_Hide2!F$5, 'Full set Core Client Indicator'!$A$3:$AB$3, 0))), \"\")","v":""},{"$f":"IF(F130<>\"\", IF(INDEX('Full set Core Client Indicator'!$A$3:$AB$351, MATCH(Selection_Hide2!$A130, 'Full set Core Client Indicator'!$A$3:$A$351, 0), MATCH(Selection_Hide2!G$5, 'Full set Core Client Indicator'!$A$3:$AB$3, 0))=\"\", \"\",  INDEX('Full set Core Client Indicator'!$A$3:$AB$351, MATCH(Selection_Hide2!$A130, 'Full set Core Client Indicator'!$A$3:$A$351, 0), MATCH(Selection_Hide2!G$5, 'Full set Core Client Indicator'!$A$3:$AB$3, 0))), \"\")","v":""},{"$f":"IF(G130<>\"\", IF(INDEX('Full set Core Client Indicator'!$A$3:$AB$351, MATCH(Selection_Hide2!$A130, 'Full set Core Client Indicator'!$A$3:$A$351, 0), MATCH(Selection_Hide2!H$5, 'Full set Core Client Indicator'!$A$3:$AB$3, 0))=\"\", \"\",  INDEX('Full set Core Client Indicator'!$A$3:$AB$351, MATCH(Selection_Hide2!$A130, 'Full set Core Client Indicator'!$A$3:$A$351, 0), MATCH(Selection_Hide2!H$5, 'Full set Core Client Indicator'!$A$3:$AB$3, 0))), \"\")","v":""},{"$f":"IF(H130<>\"\", IF(INDEX('Full set Core Client Indicator'!$A$3:$AB$351, MATCH(Selection_Hide2!$A130, 'Full set Core Client Indicator'!$A$3:$A$351, 0), MATCH(Selection_Hide2!I$5, 'Full set Core Client Indicator'!$A$3:$AB$3, 0))=\"\", \"\",  INDEX('Full set Core Client Indicator'!$A$3:$AB$351, MATCH(Selection_Hide2!$A130, 'Full set Core Client Indicator'!$A$3:$A$351, 0), MATCH(Selection_Hide2!I$5, 'Full set Core Client Indicator'!$A$3:$AB$3, 0))), \"\")","v":""},{"$f":"IF(I130<>\"\", IF(INDEX('Full set Core Client Indicator'!$A$3:$AB$351, MATCH(Selection_Hide2!$A130, 'Full set Core Client Indicator'!$A$3:$A$351, 0), MATCH(Selection_Hide2!J$5, 'Full set Core Client Indicator'!$A$3:$AB$3, 0))=\"\", \"\",  INDEX('Full set Core Client Indicator'!$A$3:$AB$351, MATCH(Selection_Hide2!$A130, 'Full set Core Client Indicator'!$A$3:$A$351, 0), MATCH(Selection_Hide2!J$5, 'Full set Core Client Indicator'!$A$3:$AB$3, 0))), \"\")","v":""},{"$f":"IF(J130<>\"\", IF(INDEX('Full set Core Client Indicator'!$A$3:$AB$351, MATCH(Selection_Hide2!$A130, 'Full set Core Client Indicator'!$A$3:$A$351, 0), MATCH(Selection_Hide2!K$5, 'Full set Core Client Indicator'!$A$3:$AB$3, 0))=\"\", \"\",  INDEX('Full set Core Client Indicator'!$A$3:$AB$351, MATCH(Selection_Hide2!$A130, 'Full set Core Client Indicator'!$A$3:$A$351, 0), MATCH(Selection_Hide2!K$5, 'Full set Core Client Indicator'!$A$3:$AB$3, 0))), \"\")","v":""},{"$f":"IF(K130<>\"\", IF(INDEX('Full set Core Client Indicator'!$A$3:$AB$351, MATCH(Selection_Hide2!$A130, 'Full set Core Client Indicator'!$A$3:$A$351, 0), MATCH(Selection_Hide2!L$5, 'Full set Core Client Indicator'!$A$3:$AB$3, 0))=\"\", \"\",  INDEX('Full set Core Client Indicator'!$A$3:$AB$351, MATCH(Selection_Hide2!$A130, 'Full set Core Client Indicator'!$A$3:$A$351, 0), MATCH(Selection_Hide2!L$5, 'Full set Core Client Indicator'!$A$3:$AB$3, 0))), \"\")","v":""},{"$f":"IF(L130<>\"\", IF(INDEX('Full set Core Client Indicator'!$A$3:$AB$351, MATCH(Selection_Hide2!$A130, 'Full set Core Client Indicator'!$A$3:$A$351, 0), MATCH(Selection_Hide2!M$5, 'Full set Core Client Indicator'!$A$3:$AB$3, 0))=\"\", \"\",  INDEX('Full set Core Client Indicator'!$A$3:$AB$351, MATCH(Selection_Hide2!$A130, 'Full set Core Client Indicator'!$A$3:$A$351, 0), MATCH(Selection_Hide2!M$5, 'Full set Core Client Indicator'!$A$3:$AB$3, 0))), \"\")","v":""},{"$f":"IF(M130<>\"\", IF(INDEX('Full set Core Client Indicator'!$A$3:$AB$351, MATCH(Selection_Hide2!$A130, 'Full set Core Client Indicator'!$A$3:$A$351, 0), MATCH(Selection_Hide2!N$5, 'Full set Core Client Indicator'!$A$3:$AB$3, 0))=\"\", \"\",  INDEX('Full set Core Client Indicator'!$A$3:$AB$351, MATCH(Selection_Hide2!$A130, 'Full set Core Client Indicator'!$A$3:$A$351, 0), MATCH(Selection_Hide2!N$5, 'Full set Core Client Indicator'!$A$3:$AB$3, 0))), \"\")","v":""},{"$f":"IF(N130<>\"\", IF(INDEX('Full set Core Client Indicator'!$A$3:$AB$351, MATCH(Selection_Hide2!$A130, 'Full set Core Client Indicator'!$A$3:$A$351, 0), MATCH(Selection_Hide2!O$5, 'Full set Core Client Indicator'!$A$3:$AB$3, 0))=\"\", \"\",  INDEX('Full set Core Client Indicator'!$A$3:$AB$351, MATCH(Selection_Hide2!$A130, 'Full set Core Client Indicator'!$A$3:$A$351, 0), MATCH(Selection_Hide2!O$5, 'Full set Core Client Indicator'!$A$3:$AB$3, 0))), \"\")","v":""},{"$f":"IF(O130<>\"\", IF(INDEX('Full set Core Client Indicator'!$A$3:$AB$351, MATCH(Selection_Hide2!$A130, 'Full set Core Client Indicator'!$A$3:$A$351, 0), MATCH(Selection_Hide2!P$5, 'Full set Core Client Indicator'!$A$3:$AB$3, 0))=\"\", \"\",  INDEX('Full set Core Client Indicator'!$A$3:$AB$351, MATCH(Selection_Hide2!$A130, 'Full set Core Client Indicator'!$A$3:$A$351, 0), MATCH(Selection_Hide2!P$5, 'Full set Core Client Indicator'!$A$3:$AB$3, 0))), \"\")","v":""},{"$f":"IF(P130<>\"\", IF(INDEX('Full set Core Client Indicator'!$A$3:$AB$351, MATCH(Selection_Hide2!$A130, 'Full set Core Client Indicator'!$A$3:$A$351, 0), MATCH(Selection_Hide2!Q$5, 'Full set Core Client Indicator'!$A$3:$AB$3, 0))=\"\", \"\",  INDEX('Full set Core Client Indicator'!$A$3:$AB$351, MATCH(Selection_Hide2!$A130, 'Full set Core Client Indicator'!$A$3:$A$351, 0), MATCH(Selection_Hide2!Q$5, 'Full set Core Client Indicator'!$A$3:$AB$3, 0))), \"\")","v":""},{"$f":"IF(Q130<>\"\", IF(INDEX('Full set Core Client Indicator'!$A$3:$AB$351, MATCH(Selection_Hide2!$A130, 'Full set Core Client Indicator'!$A$3:$A$351, 0), MATCH(Selection_Hide2!R$5, 'Full set Core Client Indicator'!$A$3:$AB$3, 0))=\"\", \"\",  INDEX('Full set Core Client Indicator'!$A$3:$AB$351, MATCH(Selection_Hide2!$A130, 'Full set Core Client Indicator'!$A$3:$A$351, 0), MATCH(Selection_Hide2!R$5, 'Full set Core Client Indicator'!$A$3:$AB$3, 0))), \"\")","v":""},{"$f":"IF(R130<>\"\", IF(INDEX('Full set Core Client Indicator'!$A$3:$AB$351, MATCH(Selection_Hide2!$A130, 'Full set Core Client Indicator'!$A$3:$A$351, 0), MATCH(Selection_Hide2!S$5, 'Full set Core Client Indicator'!$A$3:$AB$3, 0))=\"\", \"\",  INDEX('Full set Core Client Indicator'!$A$3:$AB$351, MATCH(Selection_Hide2!$A130, 'Full set Core Client Indicator'!$A$3:$A$351, 0), MATCH(Selection_Hide2!S$5, 'Full set Core Client Indicator'!$A$3:$AB$3, 0))), \"\")","v":""},{"$f":"IF(S130<>\"\", IF(INDEX('Full set Core Client Indicator'!$A$3:$AB$351, MATCH(Selection_Hide2!$A130, 'Full set Core Client Indicator'!$A$3:$A$351, 0), MATCH(Selection_Hide2!T$5, 'Full set Core Client Indicator'!$A$3:$AB$3, 0))=\"\", \"\",  INDEX('Full set Core Client Indicator'!$A$3:$AB$351, MATCH(Selection_Hide2!$A130, 'Full set Core Client Indicator'!$A$3:$A$351, 0), MATCH(Selection_Hide2!T$5, 'Full set Core Client Indicator'!$A$3:$AB$3, 0))), \"\")","v":""},{"$f":"IF(T130<>\"\", IF(INDEX('Full set Core Client Indicator'!$A$3:$AB$351, MATCH(Selection_Hide2!$A130, 'Full set Core Client Indicator'!$A$3:$A$351, 0), MATCH(Selection_Hide2!U$5, 'Full set Core Client Indicator'!$A$3:$AB$3, 0))=\"\", \"\",  INDEX('Full set Core Client Indicator'!$A$3:$AB$351, MATCH(Selection_Hide2!$A130, 'Full set Core Client Indicator'!$A$3:$A$351, 0), MATCH(Selection_Hide2!U$5, 'Full set Core Client Indicator'!$A$3:$AB$3, 0))), \"\")","v":""},{"$f":"IF(U130<>\"\", IF(INDEX('Full set Core Client Indicator'!$A$3:$AB$351, MATCH(Selection_Hide2!$A130, 'Full set Core Client Indicator'!$A$3:$A$351, 0), MATCH(Selection_Hide2!V$5, 'Full set Core Client Indicator'!$A$3:$AB$3, 0))=\"\", \"\",  INDEX('Full set Core Client Indicator'!$A$3:$AB$351, MATCH(Selection_Hide2!$A130, 'Full set Core Client Indicator'!$A$3:$A$351, 0), MATCH(Selection_Hide2!V$5, 'Full set Core Client Indicator'!$A$3:$AB$3, 0))), \"\")","v":""},{"$f":"IF(V130<>\"\", IF(INDEX('Full set Core Client Indicator'!$A$3:$AB$351, MATCH(Selection_Hide2!$A130, 'Full set Core Client Indicator'!$A$3:$A$351, 0), MATCH(Selection_Hide2!W$5, 'Full set Core Client Indicator'!$A$3:$AB$3, 0))=\"\", \"\",  INDEX('Full set Core Client Indicator'!$A$3:$AB$351, MATCH(Selection_Hide2!$A130, 'Full set Core Client Indicator'!$A$3:$A$351, 0), MATCH(Selection_Hide2!W$5, 'Full set Core Client Indicator'!$A$3:$AB$3, 0))), \"\")","v":""},{"$f":"IF(W130<>\"\", IF(INDEX('Full set Core Client Indicator'!$A$3:$AB$351, MATCH(Selection_Hide2!$A130, 'Full set Core Client Indicator'!$A$3:$A$351, 0), MATCH(Selection_Hide2!X$5, 'Full set Core Client Indicator'!$A$3:$AB$3, 0))=\"\", \"\",  INDEX('Full set Core Client Indicator'!$A$3:$AB$351, MATCH(Selection_Hide2!$A130, 'Full set Core Client Indicator'!$A$3:$A$351, 0), MATCH(Selection_Hide2!X$5, 'Full set Core Client Indicator'!$A$3:$AB$3, 0))), \"\")","v":""},{"$f":"IF(X130<>\"\", IF(INDEX('Full set Core Client Indicator'!$A$3:$AB$351, MATCH(Selection_Hide2!$A130, 'Full set Core Client Indicator'!$A$3:$A$351, 0), MATCH(Selection_Hide2!Y$5, 'Full set Core Client Indicator'!$A$3:$AB$3, 0))=\"\", \"\",  INDEX('Full set Core Client Indicator'!$A$3:$AB$351, MATCH(Selection_Hide2!$A130, 'Full set Core Client Indicator'!$A$3:$A$351, 0), MATCH(Selection_Hide2!Y$5, 'Full set Core Client Indicator'!$A$3:$AB$3, 0))), \"\")","v":""},{"$f":"IF(Y130<>\"\", IF(INDEX('Full set Core Client Indicator'!$A$3:$AB$351, MATCH(Selection_Hide2!$A130, 'Full set Core Client Indicator'!$A$3:$A$351, 0), MATCH(Selection_Hide2!Z$5, 'Full set Core Client Indicator'!$A$3:$AB$3, 0))=\"\", \"\",  INDEX('Full set Core Client Indicator'!$A$3:$AB$351, MATCH(Selection_Hide2!$A130, 'Full set Core Client Indicator'!$A$3:$A$351, 0), MATCH(Selection_Hide2!Z$5, 'Full set Core Client Indicator'!$A$3:$AB$3, 0))), \"\")","v":""},{"$f":"IF(Z130<>\"\", IF(INDEX('Full set Core Client Indicator'!$A$3:$AB$351, MATCH(Selection_Hide2!$A130, 'Full set Core Client Indicator'!$A$3:$A$351, 0), MATCH(Selection_Hide2!AA$5, 'Full set Core Client Indicator'!$A$3:$AB$3, 0))=\"\", \"\",  INDEX('Full set Core Client Indicator'!$A$3:$AB$351, MATCH(Selection_Hide2!$A130, 'Full set Core Client Indicator'!$A$3:$A$351, 0), MATCH(Selection_Hide2!AA$5, 'Full set Core Client Indicator'!$A$3:$AB$3, 0))), \"\")","v":""},{"$f":"IF(AA130<>\"\", IF(INDEX('Full set Core Client Indicator'!$A$3:$AB$351, MATCH(Selection_Hide2!$A130, 'Full set Core Client Indicator'!$A$3:$A$351, 0), MATCH(Selection_Hide2!AB$5, 'Full set Core Client Indicator'!$A$3:$AB$3, 0))=\"\", \"\",  INDEX('Full set Core Client Indicator'!$A$3:$AB$351, MATCH(Selection_Hide2!$A130, 'Full set Core Client Indicator'!$A$3:$A$351, 0), MATCH(Selection_Hide2!AB$5, 'Full set Core Client Indicator'!$A$3:$AB$3, 0))), \"\")","v":""}]
[{"$f":"IF(AND(Selection_Hide1!C129<>0, Selection_Hide1!C129<>\"Grand Total\"), Selection_Hide1!C129, \"\")","v":""},{"$f":"IF(A131<>\"\", IF(INDEX('Full set Core Client Indicator'!$A$3:$AB$351, MATCH(Selection_Hide2!$A131, 'Full set Core Client Indicator'!$A$3:$A$351, 0), MATCH(Selection_Hide2!B$5, 'Full set Core Client Indicator'!$A$3:$AB$3, 0))=\"\", \"\",  INDEX('Full set Core Client Indicator'!$A$3:$AB$351, MATCH(Selection_Hide2!$A131, 'Full set Core Client Indicator'!$A$3:$A$351, 0), MATCH(Selection_Hide2!B$5, 'Full set Core Client Indicator'!$A$3:$AB$3, 0))), \"\")","v":""},{"$f":"IF(B131<>\"\", IF(INDEX('Full set Core Client Indicator'!$A$3:$AB$351, MATCH(Selection_Hide2!$A131, 'Full set Core Client Indicator'!$A$3:$A$351, 0), MATCH(Selection_Hide2!C$5, 'Full set Core Client Indicator'!$A$3:$AB$3, 0))=\"\", \"\",  INDEX('Full set Core Client Indicator'!$A$3:$AB$351, MATCH(Selection_Hide2!$A131, 'Full set Core Client Indicator'!$A$3:$A$351, 0), MATCH(Selection_Hide2!C$5, 'Full set Core Client Indicator'!$A$3:$AB$3, 0))), \"\")","v":""},{"$f":"IF(C131<>\"\", IF(INDEX('Full set Core Client Indicator'!$A$3:$AB$351, MATCH(Selection_Hide2!$A131, 'Full set Core Client Indicator'!$A$3:$A$351, 0), MATCH(Selection_Hide2!D$5, 'Full set Core Client Indicator'!$A$3:$AB$3, 0))=\"\", \"\",  INDEX('Full set Core Client Indicator'!$A$3:$AB$351, MATCH(Selection_Hide2!$A131, 'Full set Core Client Indicator'!$A$3:$A$351, 0), MATCH(Selection_Hide2!D$5, 'Full set Core Client Indicator'!$A$3:$AB$3, 0))), \"\")","v":""},{"$f":"IF(D131<>\"\", IF(INDEX('Full set Core Client Indicator'!$A$3:$AB$351, MATCH(Selection_Hide2!$A131, 'Full set Core Client Indicator'!$A$3:$A$351, 0), MATCH(Selection_Hide2!E$5, 'Full set Core Client Indicator'!$A$3:$AB$3, 0))=\"\", \"\",  INDEX('Full set Core Client Indicator'!$A$3:$AB$351, MATCH(Selection_Hide2!$A131, 'Full set Core Client Indicator'!$A$3:$A$351, 0), MATCH(Selection_Hide2!E$5, 'Full set Core Client Indicator'!$A$3:$AB$3, 0))), \"\")","v":""},{"$f":"IF(E131<>\"\", IF(INDEX('Full set Core Client Indicator'!$A$3:$AB$351, MATCH(Selection_Hide2!$A131, 'Full set Core Client Indicator'!$A$3:$A$351, 0), MATCH(Selection_Hide2!F$5, 'Full set Core Client Indicator'!$A$3:$AB$3, 0))=\"\", \"\",  INDEX('Full set Core Client Indicator'!$A$3:$AB$351, MATCH(Selection_Hide2!$A131, 'Full set Core Client Indicator'!$A$3:$A$351, 0), MATCH(Selection_Hide2!F$5, 'Full set Core Client Indicator'!$A$3:$AB$3, 0))), \"\")","v":""},{"$f":"IF(F131<>\"\", IF(INDEX('Full set Core Client Indicator'!$A$3:$AB$351, MATCH(Selection_Hide2!$A131, 'Full set Core Client Indicator'!$A$3:$A$351, 0), MATCH(Selection_Hide2!G$5, 'Full set Core Client Indicator'!$A$3:$AB$3, 0))=\"\", \"\",  INDEX('Full set Core Client Indicator'!$A$3:$AB$351, MATCH(Selection_Hide2!$A131, 'Full set Core Client Indicator'!$A$3:$A$351, 0), MATCH(Selection_Hide2!G$5, 'Full set Core Client Indicator'!$A$3:$AB$3, 0))), \"\")","v":""},{"$f":"IF(G131<>\"\", IF(INDEX('Full set Core Client Indicator'!$A$3:$AB$351, MATCH(Selection_Hide2!$A131, 'Full set Core Client Indicator'!$A$3:$A$351, 0), MATCH(Selection_Hide2!H$5, 'Full set Core Client Indicator'!$A$3:$AB$3, 0))=\"\", \"\",  INDEX('Full set Core Client Indicator'!$A$3:$AB$351, MATCH(Selection_Hide2!$A131, 'Full set Core Client Indicator'!$A$3:$A$351, 0), MATCH(Selection_Hide2!H$5, 'Full set Core Client Indicator'!$A$3:$AB$3, 0))), \"\")","v":""},{"$f":"IF(H131<>\"\", IF(INDEX('Full set Core Client Indicator'!$A$3:$AB$351, MATCH(Selection_Hide2!$A131, 'Full set Core Client Indicator'!$A$3:$A$351, 0), MATCH(Selection_Hide2!I$5, 'Full set Core Client Indicator'!$A$3:$AB$3, 0))=\"\", \"\",  INDEX('Full set Core Client Indicator'!$A$3:$AB$351, MATCH(Selection_Hide2!$A131, 'Full set Core Client Indicator'!$A$3:$A$351, 0), MATCH(Selection_Hide2!I$5, 'Full set Core Client Indicator'!$A$3:$AB$3, 0))), \"\")","v":""},{"$f":"IF(I131<>\"\", IF(INDEX('Full set Core Client Indicator'!$A$3:$AB$351, MATCH(Selection_Hide2!$A131, 'Full set Core Client Indicator'!$A$3:$A$351, 0), MATCH(Selection_Hide2!J$5, 'Full set Core Client Indicator'!$A$3:$AB$3, 0))=\"\", \"\",  INDEX('Full set Core Client Indicator'!$A$3:$AB$351, MATCH(Selection_Hide2!$A131, 'Full set Core Client Indicator'!$A$3:$A$351, 0), MATCH(Selection_Hide2!J$5, 'Full set Core Client Indicator'!$A$3:$AB$3, 0))), \"\")","v":""},{"$f":"IF(J131<>\"\", IF(INDEX('Full set Core Client Indicator'!$A$3:$AB$351, MATCH(Selection_Hide2!$A131, 'Full set Core Client Indicator'!$A$3:$A$351, 0), MATCH(Selection_Hide2!K$5, 'Full set Core Client Indicator'!$A$3:$AB$3, 0))=\"\", \"\",  INDEX('Full set Core Client Indicator'!$A$3:$AB$351, MATCH(Selection_Hide2!$A131, 'Full set Core Client Indicator'!$A$3:$A$351, 0), MATCH(Selection_Hide2!K$5, 'Full set Core Client Indicator'!$A$3:$AB$3, 0))), \"\")","v":""},{"$f":"IF(K131<>\"\", IF(INDEX('Full set Core Client Indicator'!$A$3:$AB$351, MATCH(Selection_Hide2!$A131, 'Full set Core Client Indicator'!$A$3:$A$351, 0), MATCH(Selection_Hide2!L$5, 'Full set Core Client Indicator'!$A$3:$AB$3, 0))=\"\", \"\",  INDEX('Full set Core Client Indicator'!$A$3:$AB$351, MATCH(Selection_Hide2!$A131, 'Full set Core Client Indicator'!$A$3:$A$351, 0), MATCH(Selection_Hide2!L$5, 'Full set Core Client Indicator'!$A$3:$AB$3, 0))), \"\")","v":""},{"$f":"IF(L131<>\"\", IF(INDEX('Full set Core Client Indicator'!$A$3:$AB$351, MATCH(Selection_Hide2!$A131, 'Full set Core Client Indicator'!$A$3:$A$351, 0), MATCH(Selection_Hide2!M$5, 'Full set Core Client Indicator'!$A$3:$AB$3, 0))=\"\", \"\",  INDEX('Full set Core Client Indicator'!$A$3:$AB$351, MATCH(Selection_Hide2!$A131, 'Full set Core Client Indicator'!$A$3:$A$351, 0), MATCH(Selection_Hide2!M$5, 'Full set Core Client Indicator'!$A$3:$AB$3, 0))), \"\")","v":""},{"$f":"IF(M131<>\"\", IF(INDEX('Full set Core Client Indicator'!$A$3:$AB$351, MATCH(Selection_Hide2!$A131, 'Full set Core Client Indicator'!$A$3:$A$351, 0), MATCH(Selection_Hide2!N$5, 'Full set Core Client Indicator'!$A$3:$AB$3, 0))=\"\", \"\",  INDEX('Full set Core Client Indicator'!$A$3:$AB$351, MATCH(Selection_Hide2!$A131, 'Full set Core Client Indicator'!$A$3:$A$351, 0), MATCH(Selection_Hide2!N$5, 'Full set Core Client Indicator'!$A$3:$AB$3, 0))), \"\")","v":""},{"$f":"IF(N131<>\"\", IF(INDEX('Full set Core Client Indicator'!$A$3:$AB$351, MATCH(Selection_Hide2!$A131, 'Full set Core Client Indicator'!$A$3:$A$351, 0), MATCH(Selection_Hide2!O$5, 'Full set Core Client Indicator'!$A$3:$AB$3, 0))=\"\", \"\",  INDEX('Full set Core Client Indicator'!$A$3:$AB$351, MATCH(Selection_Hide2!$A131, 'Full set Core Client Indicator'!$A$3:$A$351, 0), MATCH(Selection_Hide2!O$5, 'Full set Core Client Indicator'!$A$3:$AB$3, 0))), \"\")","v":""},{"$f":"IF(O131<>\"\", IF(INDEX('Full set Core Client Indicator'!$A$3:$AB$351, MATCH(Selection_Hide2!$A131, 'Full set Core Client Indicator'!$A$3:$A$351, 0), MATCH(Selection_Hide2!P$5, 'Full set Core Client Indicator'!$A$3:$AB$3, 0))=\"\", \"\",  INDEX('Full set Core Client Indicator'!$A$3:$AB$351, MATCH(Selection_Hide2!$A131, 'Full set Core Client Indicator'!$A$3:$A$351, 0), MATCH(Selection_Hide2!P$5, 'Full set Core Client Indicator'!$A$3:$AB$3, 0))), \"\")","v":""},{"$f":"IF(P131<>\"\", IF(INDEX('Full set Core Client Indicator'!$A$3:$AB$351, MATCH(Selection_Hide2!$A131, 'Full set Core Client Indicator'!$A$3:$A$351, 0), MATCH(Selection_Hide2!Q$5, 'Full set Core Client Indicator'!$A$3:$AB$3, 0))=\"\", \"\",  INDEX('Full set Core Client Indicator'!$A$3:$AB$351, MATCH(Selection_Hide2!$A131, 'Full set Core Client Indicator'!$A$3:$A$351, 0), MATCH(Selection_Hide2!Q$5, 'Full set Core Client Indicator'!$A$3:$AB$3, 0))), \"\")","v":""},{"$f":"IF(Q131<>\"\", IF(INDEX('Full set Core Client Indicator'!$A$3:$AB$351, MATCH(Selection_Hide2!$A131, 'Full set Core Client Indicator'!$A$3:$A$351, 0), MATCH(Selection_Hide2!R$5, 'Full set Core Client Indicator'!$A$3:$AB$3, 0))=\"\", \"\",  INDEX('Full set Core Client Indicator'!$A$3:$AB$351, MATCH(Selection_Hide2!$A131, 'Full set Core Client Indicator'!$A$3:$A$351, 0), MATCH(Selection_Hide2!R$5, 'Full set Core Client Indicator'!$A$3:$AB$3, 0))), \"\")","v":""},{"$f":"IF(R131<>\"\", IF(INDEX('Full set Core Client Indicator'!$A$3:$AB$351, MATCH(Selection_Hide2!$A131, 'Full set Core Client Indicator'!$A$3:$A$351, 0), MATCH(Selection_Hide2!S$5, 'Full set Core Client Indicator'!$A$3:$AB$3, 0))=\"\", \"\",  INDEX('Full set Core Client Indicator'!$A$3:$AB$351, MATCH(Selection_Hide2!$A131, 'Full set Core Client Indicator'!$A$3:$A$351, 0), MATCH(Selection_Hide2!S$5, 'Full set Core Client Indicator'!$A$3:$AB$3, 0))), \"\")","v":""},{"$f":"IF(S131<>\"\", IF(INDEX('Full set Core Client Indicator'!$A$3:$AB$351, MATCH(Selection_Hide2!$A131, 'Full set Core Client Indicator'!$A$3:$A$351, 0), MATCH(Selection_Hide2!T$5, 'Full set Core Client Indicator'!$A$3:$AB$3, 0))=\"\", \"\",  INDEX('Full set Core Client Indicator'!$A$3:$AB$351, MATCH(Selection_Hide2!$A131, 'Full set Core Client Indicator'!$A$3:$A$351, 0), MATCH(Selection_Hide2!T$5, 'Full set Core Client Indicator'!$A$3:$AB$3, 0))), \"\")","v":""},{"$f":"IF(T131<>\"\", IF(INDEX('Full set Core Client Indicator'!$A$3:$AB$351, MATCH(Selection_Hide2!$A131, 'Full set Core Client Indicator'!$A$3:$A$351, 0), MATCH(Selection_Hide2!U$5, 'Full set Core Client Indicator'!$A$3:$AB$3, 0))=\"\", \"\",  INDEX('Full set Core Client Indicator'!$A$3:$AB$351, MATCH(Selection_Hide2!$A131, 'Full set Core Client Indicator'!$A$3:$A$351, 0), MATCH(Selection_Hide2!U$5, 'Full set Core Client Indicator'!$A$3:$AB$3, 0))), \"\")","v":""},{"$f":"IF(U131<>\"\", IF(INDEX('Full set Core Client Indicator'!$A$3:$AB$351, MATCH(Selection_Hide2!$A131, 'Full set Core Client Indicator'!$A$3:$A$351, 0), MATCH(Selection_Hide2!V$5, 'Full set Core Client Indicator'!$A$3:$AB$3, 0))=\"\", \"\",  INDEX('Full set Core Client Indicator'!$A$3:$AB$351, MATCH(Selection_Hide2!$A131, 'Full set Core Client Indicator'!$A$3:$A$351, 0), MATCH(Selection_Hide2!V$5, 'Full set Core Client Indicator'!$A$3:$AB$3, 0))), \"\")","v":""},{"$f":"IF(V131<>\"\", IF(INDEX('Full set Core Client Indicator'!$A$3:$AB$351, MATCH(Selection_Hide2!$A131, 'Full set Core Client Indicator'!$A$3:$A$351, 0), MATCH(Selection_Hide2!W$5, 'Full set Core Client Indicator'!$A$3:$AB$3, 0))=\"\", \"\",  INDEX('Full set Core Client Indicator'!$A$3:$AB$351, MATCH(Selection_Hide2!$A131, 'Full set Core Client Indicator'!$A$3:$A$351, 0), MATCH(Selection_Hide2!W$5, 'Full set Core Client Indicator'!$A$3:$AB$3, 0))), \"\")","v":""},{"$f":"IF(W131<>\"\", IF(INDEX('Full set Core Client Indicator'!$A$3:$AB$351, MATCH(Selection_Hide2!$A131, 'Full set Core Client Indicator'!$A$3:$A$351, 0), MATCH(Selection_Hide2!X$5, 'Full set Core Client Indicator'!$A$3:$AB$3, 0))=\"\", \"\",  INDEX('Full set Core Client Indicator'!$A$3:$AB$351, MATCH(Selection_Hide2!$A131, 'Full set Core Client Indicator'!$A$3:$A$351, 0), MATCH(Selection_Hide2!X$5, 'Full set Core Client Indicator'!$A$3:$AB$3, 0))), \"\")","v":""},{"$f":"IF(X131<>\"\", IF(INDEX('Full set Core Client Indicator'!$A$3:$AB$351, MATCH(Selection_Hide2!$A131, 'Full set Core Client Indicator'!$A$3:$A$351, 0), MATCH(Selection_Hide2!Y$5, 'Full set Core Client Indicator'!$A$3:$AB$3, 0))=\"\", \"\",  INDEX('Full set Core Client Indicator'!$A$3:$AB$351, MATCH(Selection_Hide2!$A131, 'Full set Core Client Indicator'!$A$3:$A$351, 0), MATCH(Selection_Hide2!Y$5, 'Full set Core Client Indicator'!$A$3:$AB$3, 0))), \"\")","v":""},{"$f":"IF(Y131<>\"\", IF(INDEX('Full set Core Client Indicator'!$A$3:$AB$351, MATCH(Selection_Hide2!$A131, 'Full set Core Client Indicator'!$A$3:$A$351, 0), MATCH(Selection_Hide2!Z$5, 'Full set Core Client Indicator'!$A$3:$AB$3, 0))=\"\", \"\",  INDEX('Full set Core Client Indicator'!$A$3:$AB$351, MATCH(Selection_Hide2!$A131, 'Full set Core Client Indicator'!$A$3:$A$351, 0), MATCH(Selection_Hide2!Z$5, 'Full set Core Client Indicator'!$A$3:$AB$3, 0))), \"\")","v":""},{"$f":"IF(Z131<>\"\", IF(INDEX('Full set Core Client Indicator'!$A$3:$AB$351, MATCH(Selection_Hide2!$A131, 'Full set Core Client Indicator'!$A$3:$A$351, 0), MATCH(Selection_Hide2!AA$5, 'Full set Core Client Indicator'!$A$3:$AB$3, 0))=\"\", \"\",  INDEX('Full set Core Client Indicator'!$A$3:$AB$351, MATCH(Selection_Hide2!$A131, 'Full set Core Client Indicator'!$A$3:$A$351, 0), MATCH(Selection_Hide2!AA$5, 'Full set Core Client Indicator'!$A$3:$AB$3, 0))), \"\")","v":""},{"$f":"IF(AA131<>\"\", IF(INDEX('Full set Core Client Indicator'!$A$3:$AB$351, MATCH(Selection_Hide2!$A131, 'Full set Core Client Indicator'!$A$3:$A$351, 0), MATCH(Selection_Hide2!AB$5, 'Full set Core Client Indicator'!$A$3:$AB$3, 0))=\"\", \"\",  INDEX('Full set Core Client Indicator'!$A$3:$AB$351, MATCH(Selection_Hide2!$A131, 'Full set Core Client Indicator'!$A$3:$A$351, 0), MATCH(Selection_Hide2!AB$5, 'Full set Core Client Indicator'!$A$3:$AB$3, 0))), \"\")","v":""}]
[{"$f":"IF(AND(Selection_Hide1!C130<>0, Selection_Hide1!C130<>\"Grand Total\"), Selection_Hide1!C130, \"\")","v":""},{"$f":"IF(A132<>\"\", IF(INDEX('Full set Core Client Indicator'!$A$3:$AB$351, MATCH(Selection_Hide2!$A132, 'Full set Core Client Indicator'!$A$3:$A$351, 0), MATCH(Selection_Hide2!B$5, 'Full set Core Client Indicator'!$A$3:$AB$3, 0))=\"\", \"\",  INDEX('Full set Core Client Indicator'!$A$3:$AB$351, MATCH(Selection_Hide2!$A132, 'Full set Core Client Indicator'!$A$3:$A$351, 0), MATCH(Selection_Hide2!B$5, 'Full set Core Client Indicator'!$A$3:$AB$3, 0))), \"\")","v":""},{"$f":"IF(B132<>\"\", IF(INDEX('Full set Core Client Indicator'!$A$3:$AB$351, MATCH(Selection_Hide2!$A132, 'Full set Core Client Indicator'!$A$3:$A$351, 0), MATCH(Selection_Hide2!C$5, 'Full set Core Client Indicator'!$A$3:$AB$3, 0))=\"\", \"\",  INDEX('Full set Core Client Indicator'!$A$3:$AB$351, MATCH(Selection_Hide2!$A132, 'Full set Core Client Indicator'!$A$3:$A$351, 0), MATCH(Selection_Hide2!C$5, 'Full set Core Client Indicator'!$A$3:$AB$3, 0))), \"\")","v":""},{"$f":"IF(C132<>\"\", IF(INDEX('Full set Core Client Indicator'!$A$3:$AB$351, MATCH(Selection_Hide2!$A132, 'Full set Core Client Indicator'!$A$3:$A$351, 0), MATCH(Selection_Hide2!D$5, 'Full set Core Client Indicator'!$A$3:$AB$3, 0))=\"\", \"\",  INDEX('Full set Core Client Indicator'!$A$3:$AB$351, MATCH(Selection_Hide2!$A132, 'Full set Core Client Indicator'!$A$3:$A$351, 0), MATCH(Selection_Hide2!D$5, 'Full set Core Client Indicator'!$A$3:$AB$3, 0))), \"\")","v":""},{"$f":"IF(D132<>\"\", IF(INDEX('Full set Core Client Indicator'!$A$3:$AB$351, MATCH(Selection_Hide2!$A132, 'Full set Core Client Indicator'!$A$3:$A$351, 0), MATCH(Selection_Hide2!E$5, 'Full set Core Client Indicator'!$A$3:$AB$3, 0))=\"\", \"\",  INDEX('Full set Core Client Indicator'!$A$3:$AB$351, MATCH(Selection_Hide2!$A132, 'Full set Core Client Indicator'!$A$3:$A$351, 0), MATCH(Selection_Hide2!E$5, 'Full set Core Client Indicator'!$A$3:$AB$3, 0))), \"\")","v":""},{"$f":"IF(E132<>\"\", IF(INDEX('Full set Core Client Indicator'!$A$3:$AB$351, MATCH(Selection_Hide2!$A132, 'Full set Core Client Indicator'!$A$3:$A$351, 0), MATCH(Selection_Hide2!F$5, 'Full set Core Client Indicator'!$A$3:$AB$3, 0))=\"\", \"\",  INDEX('Full set Core Client Indicator'!$A$3:$AB$351, MATCH(Selection_Hide2!$A132, 'Full set Core Client Indicator'!$A$3:$A$351, 0), MATCH(Selection_Hide2!F$5, 'Full set Core Client Indicator'!$A$3:$AB$3, 0))), \"\")","v":""},{"$f":"IF(F132<>\"\", IF(INDEX('Full set Core Client Indicator'!$A$3:$AB$351, MATCH(Selection_Hide2!$A132, 'Full set Core Client Indicator'!$A$3:$A$351, 0), MATCH(Selection_Hide2!G$5, 'Full set Core Client Indicator'!$A$3:$AB$3, 0))=\"\", \"\",  INDEX('Full set Core Client Indicator'!$A$3:$AB$351, MATCH(Selection_Hide2!$A132, 'Full set Core Client Indicator'!$A$3:$A$351, 0), MATCH(Selection_Hide2!G$5, 'Full set Core Client Indicator'!$A$3:$AB$3, 0))), \"\")","v":""},{"$f":"IF(G132<>\"\", IF(INDEX('Full set Core Client Indicator'!$A$3:$AB$351, MATCH(Selection_Hide2!$A132, 'Full set Core Client Indicator'!$A$3:$A$351, 0), MATCH(Selection_Hide2!H$5, 'Full set Core Client Indicator'!$A$3:$AB$3, 0))=\"\", \"\",  INDEX('Full set Core Client Indicator'!$A$3:$AB$351, MATCH(Selection_Hide2!$A132, 'Full set Core Client Indicator'!$A$3:$A$351, 0), MATCH(Selection_Hide2!H$5, 'Full set Core Client Indicator'!$A$3:$AB$3, 0))), \"\")","v":""},{"$f":"IF(H132<>\"\", IF(INDEX('Full set Core Client Indicator'!$A$3:$AB$351, MATCH(Selection_Hide2!$A132, 'Full set Core Client Indicator'!$A$3:$A$351, 0), MATCH(Selection_Hide2!I$5, 'Full set Core Client Indicator'!$A$3:$AB$3, 0))=\"\", \"\",  INDEX('Full set Core Client Indicator'!$A$3:$AB$351, MATCH(Selection_Hide2!$A132, 'Full set Core Client Indicator'!$A$3:$A$351, 0), MATCH(Selection_Hide2!I$5, 'Full set Core Client Indicator'!$A$3:$AB$3, 0))), \"\")","v":""},{"$f":"IF(I132<>\"\", IF(INDEX('Full set Core Client Indicator'!$A$3:$AB$351, MATCH(Selection_Hide2!$A132, 'Full set Core Client Indicator'!$A$3:$A$351, 0), MATCH(Selection_Hide2!J$5, 'Full set Core Client Indicator'!$A$3:$AB$3, 0))=\"\", \"\",  INDEX('Full set Core Client Indicator'!$A$3:$AB$351, MATCH(Selection_Hide2!$A132, 'Full set Core Client Indicator'!$A$3:$A$351, 0), MATCH(Selection_Hide2!J$5, 'Full set Core Client Indicator'!$A$3:$AB$3, 0))), \"\")","v":""},{"$f":"IF(J132<>\"\", IF(INDEX('Full set Core Client Indicator'!$A$3:$AB$351, MATCH(Selection_Hide2!$A132, 'Full set Core Client Indicator'!$A$3:$A$351, 0), MATCH(Selection_Hide2!K$5, 'Full set Core Client Indicator'!$A$3:$AB$3, 0))=\"\", \"\",  INDEX('Full set Core Client Indicator'!$A$3:$AB$351, MATCH(Selection_Hide2!$A132, 'Full set Core Client Indicator'!$A$3:$A$351, 0), MATCH(Selection_Hide2!K$5, 'Full set Core Client Indicator'!$A$3:$AB$3, 0))), \"\")","v":""},{"$f":"IF(K132<>\"\", IF(INDEX('Full set Core Client Indicator'!$A$3:$AB$351, MATCH(Selection_Hide2!$A132, 'Full set Core Client Indicator'!$A$3:$A$351, 0), MATCH(Selection_Hide2!L$5, 'Full set Core Client Indicator'!$A$3:$AB$3, 0))=\"\", \"\",  INDEX('Full set Core Client Indicator'!$A$3:$AB$351, MATCH(Selection_Hide2!$A132, 'Full set Core Client Indicator'!$A$3:$A$351, 0), MATCH(Selection_Hide2!L$5, 'Full set Core Client Indicator'!$A$3:$AB$3, 0))), \"\")","v":""},{"$f":"IF(L132<>\"\", IF(INDEX('Full set Core Client Indicator'!$A$3:$AB$351, MATCH(Selection_Hide2!$A132, 'Full set Core Client Indicator'!$A$3:$A$351, 0), MATCH(Selection_Hide2!M$5, 'Full set Core Client Indicator'!$A$3:$AB$3, 0))=\"\", \"\",  INDEX('Full set Core Client Indicator'!$A$3:$AB$351, MATCH(Selection_Hide2!$A132, 'Full set Core Client Indicator'!$A$3:$A$351, 0), MATCH(Selection_Hide2!M$5, 'Full set Core Client Indicator'!$A$3:$AB$3, 0))), \"\")","v":""},{"$f":"IF(M132<>\"\", IF(INDEX('Full set Core Client Indicator'!$A$3:$AB$351, MATCH(Selection_Hide2!$A132, 'Full set Core Client Indicator'!$A$3:$A$351, 0), MATCH(Selection_Hide2!N$5, 'Full set Core Client Indicator'!$A$3:$AB$3, 0))=\"\", \"\",  INDEX('Full set Core Client Indicator'!$A$3:$AB$351, MATCH(Selection_Hide2!$A132, 'Full set Core Client Indicator'!$A$3:$A$351, 0), MATCH(Selection_Hide2!N$5, 'Full set Core Client Indicator'!$A$3:$AB$3, 0))), \"\")","v":""},{"$f":"IF(N132<>\"\", IF(INDEX('Full set Core Client Indicator'!$A$3:$AB$351, MATCH(Selection_Hide2!$A132, 'Full set Core Client Indicator'!$A$3:$A$351, 0), MATCH(Selection_Hide2!O$5, 'Full set Core Client Indicator'!$A$3:$AB$3, 0))=\"\", \"\",  INDEX('Full set Core Client Indicator'!$A$3:$AB$351, MATCH(Selection_Hide2!$A132, 'Full set Core Client Indicator'!$A$3:$A$351, 0), MATCH(Selection_Hide2!O$5, 'Full set Core Client Indicator'!$A$3:$AB$3, 0))), \"\")","v":""},{"$f":"IF(O132<>\"\", IF(INDEX('Full set Core Client Indicator'!$A$3:$AB$351, MATCH(Selection_Hide2!$A132, 'Full set Core Client Indicator'!$A$3:$A$351, 0), MATCH(Selection_Hide2!P$5, 'Full set Core Client Indicator'!$A$3:$AB$3, 0))=\"\", \"\",  INDEX('Full set Core Client Indicator'!$A$3:$AB$351, MATCH(Selection_Hide2!$A132, 'Full set Core Client Indicator'!$A$3:$A$351, 0), MATCH(Selection_Hide2!P$5, 'Full set Core Client Indicator'!$A$3:$AB$3, 0))), \"\")","v":""},{"$f":"IF(P132<>\"\", IF(INDEX('Full set Core Client Indicator'!$A$3:$AB$351, MATCH(Selection_Hide2!$A132, 'Full set Core Client Indicator'!$A$3:$A$351, 0), MATCH(Selection_Hide2!Q$5, 'Full set Core Client Indicator'!$A$3:$AB$3, 0))=\"\", \"\",  INDEX('Full set Core Client Indicator'!$A$3:$AB$351, MATCH(Selection_Hide2!$A132, 'Full set Core Client Indicator'!$A$3:$A$351, 0), MATCH(Selection_Hide2!Q$5, 'Full set Core Client Indicator'!$A$3:$AB$3, 0))), \"\")","v":""},{"$f":"IF(Q132<>\"\", IF(INDEX('Full set Core Client Indicator'!$A$3:$AB$351, MATCH(Selection_Hide2!$A132, 'Full set Core Client Indicator'!$A$3:$A$351, 0), MATCH(Selection_Hide2!R$5, 'Full set Core Client Indicator'!$A$3:$AB$3, 0))=\"\", \"\",  INDEX('Full set Core Client Indicator'!$A$3:$AB$351, MATCH(Selection_Hide2!$A132, 'Full set Core Client Indicator'!$A$3:$A$351, 0), MATCH(Selection_Hide2!R$5, 'Full set Core Client Indicator'!$A$3:$AB$3, 0))), \"\")","v":""},{"$f":"IF(R132<>\"\", IF(INDEX('Full set Core Client Indicator'!$A$3:$AB$351, MATCH(Selection_Hide2!$A132, 'Full set Core Client Indicator'!$A$3:$A$351, 0), MATCH(Selection_Hide2!S$5, 'Full set Core Client Indicator'!$A$3:$AB$3, 0))=\"\", \"\",  INDEX('Full set Core Client Indicator'!$A$3:$AB$351, MATCH(Selection_Hide2!$A132, 'Full set Core Client Indicator'!$A$3:$A$351, 0), MATCH(Selection_Hide2!S$5, 'Full set Core Client Indicator'!$A$3:$AB$3, 0))), \"\")","v":""},{"$f":"IF(S132<>\"\", IF(INDEX('Full set Core Client Indicator'!$A$3:$AB$351, MATCH(Selection_Hide2!$A132, 'Full set Core Client Indicator'!$A$3:$A$351, 0), MATCH(Selection_Hide2!T$5, 'Full set Core Client Indicator'!$A$3:$AB$3, 0))=\"\", \"\",  INDEX('Full set Core Client Indicator'!$A$3:$AB$351, MATCH(Selection_Hide2!$A132, 'Full set Core Client Indicator'!$A$3:$A$351, 0), MATCH(Selection_Hide2!T$5, 'Full set Core Client Indicator'!$A$3:$AB$3, 0))), \"\")","v":""},{"$f":"IF(T132<>\"\", IF(INDEX('Full set Core Client Indicator'!$A$3:$AB$351, MATCH(Selection_Hide2!$A132, 'Full set Core Client Indicator'!$A$3:$A$351, 0), MATCH(Selection_Hide2!U$5, 'Full set Core Client Indicator'!$A$3:$AB$3, 0))=\"\", \"\",  INDEX('Full set Core Client Indicator'!$A$3:$AB$351, MATCH(Selection_Hide2!$A132, 'Full set Core Client Indicator'!$A$3:$A$351, 0), MATCH(Selection_Hide2!U$5, 'Full set Core Client Indicator'!$A$3:$AB$3, 0))), \"\")","v":""},{"$f":"IF(U132<>\"\", IF(INDEX('Full set Core Client Indicator'!$A$3:$AB$351, MATCH(Selection_Hide2!$A132, 'Full set Core Client Indicator'!$A$3:$A$351, 0), MATCH(Selection_Hide2!V$5, 'Full set Core Client Indicator'!$A$3:$AB$3, 0))=\"\", \"\",  INDEX('Full set Core Client Indicator'!$A$3:$AB$351, MATCH(Selection_Hide2!$A132, 'Full set Core Client Indicator'!$A$3:$A$351, 0), MATCH(Selection_Hide2!V$5, 'Full set Core Client Indicator'!$A$3:$AB$3, 0))), \"\")","v":""},{"$f":"IF(V132<>\"\", IF(INDEX('Full set Core Client Indicator'!$A$3:$AB$351, MATCH(Selection_Hide2!$A132, 'Full set Core Client Indicator'!$A$3:$A$351, 0), MATCH(Selection_Hide2!W$5, 'Full set Core Client Indicator'!$A$3:$AB$3, 0))=\"\", \"\",  INDEX('Full set Core Client Indicator'!$A$3:$AB$351, MATCH(Selection_Hide2!$A132, 'Full set Core Client Indicator'!$A$3:$A$351, 0), MATCH(Selection_Hide2!W$5, 'Full set Core Client Indicator'!$A$3:$AB$3, 0))), \"\")","v":""},{"$f":"IF(W132<>\"\", IF(INDEX('Full set Core Client Indicator'!$A$3:$AB$351, MATCH(Selection_Hide2!$A132, 'Full set Core Client Indicator'!$A$3:$A$351, 0), MATCH(Selection_Hide2!X$5, 'Full set Core Client Indicator'!$A$3:$AB$3, 0))=\"\", \"\",  INDEX('Full set Core Client Indicator'!$A$3:$AB$351, MATCH(Selection_Hide2!$A132, 'Full set Core Client Indicator'!$A$3:$A$351, 0), MATCH(Selection_Hide2!X$5, 'Full set Core Client Indicator'!$A$3:$AB$3, 0))), \"\")","v":""},{"$f":"IF(X132<>\"\", IF(INDEX('Full set Core Client Indicator'!$A$3:$AB$351, MATCH(Selection_Hide2!$A132, 'Full set Core Client Indicator'!$A$3:$A$351, 0), MATCH(Selection_Hide2!Y$5, 'Full set Core Client Indicator'!$A$3:$AB$3, 0))=\"\", \"\",  INDEX('Full set Core Client Indicator'!$A$3:$AB$351, MATCH(Selection_Hide2!$A132, 'Full set Core Client Indicator'!$A$3:$A$351, 0), MATCH(Selection_Hide2!Y$5, 'Full set Core Client Indicator'!$A$3:$AB$3, 0))), \"\")","v":""},{"$f":"IF(Y132<>\"\", IF(INDEX('Full set Core Client Indicator'!$A$3:$AB$351, MATCH(Selection_Hide2!$A132, 'Full set Core Client Indicator'!$A$3:$A$351, 0), MATCH(Selection_Hide2!Z$5, 'Full set Core Client Indicator'!$A$3:$AB$3, 0))=\"\", \"\",  INDEX('Full set Core Client Indicator'!$A$3:$AB$351, MATCH(Selection_Hide2!$A132, 'Full set Core Client Indicator'!$A$3:$A$351, 0), MATCH(Selection_Hide2!Z$5, 'Full set Core Client Indicator'!$A$3:$AB$3, 0))), \"\")","v":""},{"$f":"IF(Z132<>\"\", IF(INDEX('Full set Core Client Indicator'!$A$3:$AB$351, MATCH(Selection_Hide2!$A132, 'Full set Core Client Indicator'!$A$3:$A$351, 0), MATCH(Selection_Hide2!AA$5, 'Full set Core Client Indicator'!$A$3:$AB$3, 0))=\"\", \"\",  INDEX('Full set Core Client Indicator'!$A$3:$AB$351, MATCH(Selection_Hide2!$A132, 'Full set Core Client Indicator'!$A$3:$A$351, 0), MATCH(Selection_Hide2!AA$5, 'Full set Core Client Indicator'!$A$3:$AB$3, 0))), \"\")","v":""},{"$f":"IF(AA132<>\"\", IF(INDEX('Full set Core Client Indicator'!$A$3:$AB$351, MATCH(Selection_Hide2!$A132, 'Full set Core Client Indicator'!$A$3:$A$351, 0), MATCH(Selection_Hide2!AB$5, 'Full set Core Client Indicator'!$A$3:$AB$3, 0))=\"\", \"\",  INDEX('Full set Core Client Indicator'!$A$3:$AB$351, MATCH(Selection_Hide2!$A132, 'Full set Core Client Indicator'!$A$3:$A$351, 0), MATCH(Selection_Hide2!AB$5, 'Full set Core Client Indicator'!$A$3:$AB$3, 0))), \"\")","v":""}]
[{"$f":"IF(AND(Selection_Hide1!C131<>0, Selection_Hide1!C131<>\"Grand Total\"), Selection_Hide1!C131, \"\")","v":""},{"$f":"IF(A133<>\"\", IF(INDEX('Full set Core Client Indicator'!$A$3:$AB$351, MATCH(Selection_Hide2!$A133, 'Full set Core Client Indicator'!$A$3:$A$351, 0), MATCH(Selection_Hide2!B$5, 'Full set Core Client Indicator'!$A$3:$AB$3, 0))=\"\", \"\",  INDEX('Full set Core Client Indicator'!$A$3:$AB$351, MATCH(Selection_Hide2!$A133, 'Full set Core Client Indicator'!$A$3:$A$351, 0), MATCH(Selection_Hide2!B$5, 'Full set Core Client Indicator'!$A$3:$AB$3, 0))), \"\")","v":""},{"$f":"IF(B133<>\"\", IF(INDEX('Full set Core Client Indicator'!$A$3:$AB$351, MATCH(Selection_Hide2!$A133, 'Full set Core Client Indicator'!$A$3:$A$351, 0), MATCH(Selection_Hide2!C$5, 'Full set Core Client Indicator'!$A$3:$AB$3, 0))=\"\", \"\",  INDEX('Full set Core Client Indicator'!$A$3:$AB$351, MATCH(Selection_Hide2!$A133, 'Full set Core Client Indicator'!$A$3:$A$351, 0), MATCH(Selection_Hide2!C$5, 'Full set Core Client Indicator'!$A$3:$AB$3, 0))), \"\")","v":""},{"$f":"IF(C133<>\"\", IF(INDEX('Full set Core Client Indicator'!$A$3:$AB$351, MATCH(Selection_Hide2!$A133, 'Full set Core Client Indicator'!$A$3:$A$351, 0), MATCH(Selection_Hide2!D$5, 'Full set Core Client Indicator'!$A$3:$AB$3, 0))=\"\", \"\",  INDEX('Full set Core Client Indicator'!$A$3:$AB$351, MATCH(Selection_Hide2!$A133, 'Full set Core Client Indicator'!$A$3:$A$351, 0), MATCH(Selection_Hide2!D$5, 'Full set Core Client Indicator'!$A$3:$AB$3, 0))), \"\")","v":""},{"$f":"IF(D133<>\"\", IF(INDEX('Full set Core Client Indicator'!$A$3:$AB$351, MATCH(Selection_Hide2!$A133, 'Full set Core Client Indicator'!$A$3:$A$351, 0), MATCH(Selection_Hide2!E$5, 'Full set Core Client Indicator'!$A$3:$AB$3, 0))=\"\", \"\",  INDEX('Full set Core Client Indicator'!$A$3:$AB$351, MATCH(Selection_Hide2!$A133, 'Full set Core Client Indicator'!$A$3:$A$351, 0), MATCH(Selection_Hide2!E$5, 'Full set Core Client Indicator'!$A$3:$AB$3, 0))), \"\")","v":""},{"$f":"IF(E133<>\"\", IF(INDEX('Full set Core Client Indicator'!$A$3:$AB$351, MATCH(Selection_Hide2!$A133, 'Full set Core Client Indicator'!$A$3:$A$351, 0), MATCH(Selection_Hide2!F$5, 'Full set Core Client Indicator'!$A$3:$AB$3, 0))=\"\", \"\",  INDEX('Full set Core Client Indicator'!$A$3:$AB$351, MATCH(Selection_Hide2!$A133, 'Full set Core Client Indicator'!$A$3:$A$351, 0), MATCH(Selection_Hide2!F$5, 'Full set Core Client Indicator'!$A$3:$AB$3, 0))), \"\")","v":""},{"$f":"IF(F133<>\"\", IF(INDEX('Full set Core Client Indicator'!$A$3:$AB$351, MATCH(Selection_Hide2!$A133, 'Full set Core Client Indicator'!$A$3:$A$351, 0), MATCH(Selection_Hide2!G$5, 'Full set Core Client Indicator'!$A$3:$AB$3, 0))=\"\", \"\",  INDEX('Full set Core Client Indicator'!$A$3:$AB$351, MATCH(Selection_Hide2!$A133, 'Full set Core Client Indicator'!$A$3:$A$351, 0), MATCH(Selection_Hide2!G$5, 'Full set Core Client Indicator'!$A$3:$AB$3, 0))), \"\")","v":""},{"$f":"IF(G133<>\"\", IF(INDEX('Full set Core Client Indicator'!$A$3:$AB$351, MATCH(Selection_Hide2!$A133, 'Full set Core Client Indicator'!$A$3:$A$351, 0), MATCH(Selection_Hide2!H$5, 'Full set Core Client Indicator'!$A$3:$AB$3, 0))=\"\", \"\",  INDEX('Full set Core Client Indicator'!$A$3:$AB$351, MATCH(Selection_Hide2!$A133, 'Full set Core Client Indicator'!$A$3:$A$351, 0), MATCH(Selection_Hide2!H$5, 'Full set Core Client Indicator'!$A$3:$AB$3, 0))), \"\")","v":""},{"$f":"IF(H133<>\"\", IF(INDEX('Full set Core Client Indicator'!$A$3:$AB$351, MATCH(Selection_Hide2!$A133, 'Full set Core Client Indicator'!$A$3:$A$351, 0), MATCH(Selection_Hide2!I$5, 'Full set Core Client Indicator'!$A$3:$AB$3, 0))=\"\", \"\",  INDEX('Full set Core Client Indicator'!$A$3:$AB$351, MATCH(Selection_Hide2!$A133, 'Full set Core Client Indicator'!$A$3:$A$351, 0), MATCH(Selection_Hide2!I$5, 'Full set Core Client Indicator'!$A$3:$AB$3, 0))), \"\")","v":""},{"$f":"IF(I133<>\"\", IF(INDEX('Full set Core Client Indicator'!$A$3:$AB$351, MATCH(Selection_Hide2!$A133, 'Full set Core Client Indicator'!$A$3:$A$351, 0), MATCH(Selection_Hide2!J$5, 'Full set Core Client Indicator'!$A$3:$AB$3, 0))=\"\", \"\",  INDEX('Full set Core Client Indicator'!$A$3:$AB$351, MATCH(Selection_Hide2!$A133, 'Full set Core Client Indicator'!$A$3:$A$351, 0), MATCH(Selection_Hide2!J$5, 'Full set Core Client Indicator'!$A$3:$AB$3, 0))), \"\")","v":""},{"$f":"IF(J133<>\"\", IF(INDEX('Full set Core Client Indicator'!$A$3:$AB$351, MATCH(Selection_Hide2!$A133, 'Full set Core Client Indicator'!$A$3:$A$351, 0), MATCH(Selection_Hide2!K$5, 'Full set Core Client Indicator'!$A$3:$AB$3, 0))=\"\", \"\",  INDEX('Full set Core Client Indicator'!$A$3:$AB$351, MATCH(Selection_Hide2!$A133, 'Full set Core Client Indicator'!$A$3:$A$351, 0), MATCH(Selection_Hide2!K$5, 'Full set Core Client Indicator'!$A$3:$AB$3, 0))), \"\")","v":""},{"$f":"IF(K133<>\"\", IF(INDEX('Full set Core Client Indicator'!$A$3:$AB$351, MATCH(Selection_Hide2!$A133, 'Full set Core Client Indicator'!$A$3:$A$351, 0), MATCH(Selection_Hide2!L$5, 'Full set Core Client Indicator'!$A$3:$AB$3, 0))=\"\", \"\",  INDEX('Full set Core Client Indicator'!$A$3:$AB$351, MATCH(Selection_Hide2!$A133, 'Full set Core Client Indicator'!$A$3:$A$351, 0), MATCH(Selection_Hide2!L$5, 'Full set Core Client Indicator'!$A$3:$AB$3, 0))), \"\")","v":""},{"$f":"IF(L133<>\"\", IF(INDEX('Full set Core Client Indicator'!$A$3:$AB$351, MATCH(Selection_Hide2!$A133, 'Full set Core Client Indicator'!$A$3:$A$351, 0), MATCH(Selection_Hide2!M$5, 'Full set Core Client Indicator'!$A$3:$AB$3, 0))=\"\", \"\",  INDEX('Full set Core Client Indicator'!$A$3:$AB$351, MATCH(Selection_Hide2!$A133, 'Full set Core Client Indicator'!$A$3:$A$351, 0), MATCH(Selection_Hide2!M$5, 'Full set Core Client Indicator'!$A$3:$AB$3, 0))), \"\")","v":""},{"$f":"IF(M133<>\"\", IF(INDEX('Full set Core Client Indicator'!$A$3:$AB$351, MATCH(Selection_Hide2!$A133, 'Full set Core Client Indicator'!$A$3:$A$351, 0), MATCH(Selection_Hide2!N$5, 'Full set Core Client Indicator'!$A$3:$AB$3, 0))=\"\", \"\",  INDEX('Full set Core Client Indicator'!$A$3:$AB$351, MATCH(Selection_Hide2!$A133, 'Full set Core Client Indicator'!$A$3:$A$351, 0), MATCH(Selection_Hide2!N$5, 'Full set Core Client Indicator'!$A$3:$AB$3, 0))), \"\")","v":""},{"$f":"IF(N133<>\"\", IF(INDEX('Full set Core Client Indicator'!$A$3:$AB$351, MATCH(Selection_Hide2!$A133, 'Full set Core Client Indicator'!$A$3:$A$351, 0), MATCH(Selection_Hide2!O$5, 'Full set Core Client Indicator'!$A$3:$AB$3, 0))=\"\", \"\",  INDEX('Full set Core Client Indicator'!$A$3:$AB$351, MATCH(Selection_Hide2!$A133, 'Full set Core Client Indicator'!$A$3:$A$351, 0), MATCH(Selection_Hide2!O$5, 'Full set Core Client Indicator'!$A$3:$AB$3, 0))), \"\")","v":""},{"$f":"IF(O133<>\"\", IF(INDEX('Full set Core Client Indicator'!$A$3:$AB$351, MATCH(Selection_Hide2!$A133, 'Full set Core Client Indicator'!$A$3:$A$351, 0), MATCH(Selection_Hide2!P$5, 'Full set Core Client Indicator'!$A$3:$AB$3, 0))=\"\", \"\",  INDEX('Full set Core Client Indicator'!$A$3:$AB$351, MATCH(Selection_Hide2!$A133, 'Full set Core Client Indicator'!$A$3:$A$351, 0), MATCH(Selection_Hide2!P$5, 'Full set Core Client Indicator'!$A$3:$AB$3, 0))), \"\")","v":""},{"$f":"IF(P133<>\"\", IF(INDEX('Full set Core Client Indicator'!$A$3:$AB$351, MATCH(Selection_Hide2!$A133, 'Full set Core Client Indicator'!$A$3:$A$351, 0), MATCH(Selection_Hide2!Q$5, 'Full set Core Client Indicator'!$A$3:$AB$3, 0))=\"\", \"\",  INDEX('Full set Core Client Indicator'!$A$3:$AB$351, MATCH(Selection_Hide2!$A133, 'Full set Core Client Indicator'!$A$3:$A$351, 0), MATCH(Selection_Hide2!Q$5, 'Full set Core Client Indicator'!$A$3:$AB$3, 0))), \"\")","v":""},{"$f":"IF(Q133<>\"\", IF(INDEX('Full set Core Client Indicator'!$A$3:$AB$351, MATCH(Selection_Hide2!$A133, 'Full set Core Client Indicator'!$A$3:$A$351, 0), MATCH(Selection_Hide2!R$5, 'Full set Core Client Indicator'!$A$3:$AB$3, 0))=\"\", \"\",  INDEX('Full set Core Client Indicator'!$A$3:$AB$351, MATCH(Selection_Hide2!$A133, 'Full set Core Client Indicator'!$A$3:$A$351, 0), MATCH(Selection_Hide2!R$5, 'Full set Core Client Indicator'!$A$3:$AB$3, 0))), \"\")","v":""},{"$f":"IF(R133<>\"\", IF(INDEX('Full set Core Client Indicator'!$A$3:$AB$351, MATCH(Selection_Hide2!$A133, 'Full set Core Client Indicator'!$A$3:$A$351, 0), MATCH(Selection_Hide2!S$5, 'Full set Core Client Indicator'!$A$3:$AB$3, 0))=\"\", \"\",  INDEX('Full set Core Client Indicator'!$A$3:$AB$351, MATCH(Selection_Hide2!$A133, 'Full set Core Client Indicator'!$A$3:$A$351, 0), MATCH(Selection_Hide2!S$5, 'Full set Core Client Indicator'!$A$3:$AB$3, 0))), \"\")","v":""},{"$f":"IF(S133<>\"\", IF(INDEX('Full set Core Client Indicator'!$A$3:$AB$351, MATCH(Selection_Hide2!$A133, 'Full set Core Client Indicator'!$A$3:$A$351, 0), MATCH(Selection_Hide2!T$5, 'Full set Core Client Indicator'!$A$3:$AB$3, 0))=\"\", \"\",  INDEX('Full set Core Client Indicator'!$A$3:$AB$351, MATCH(Selection_Hide2!$A133, 'Full set Core Client Indicator'!$A$3:$A$351, 0), MATCH(Selection_Hide2!T$5, 'Full set Core Client Indicator'!$A$3:$AB$3, 0))), \"\")","v":""},{"$f":"IF(T133<>\"\", IF(INDEX('Full set Core Client Indicator'!$A$3:$AB$351, MATCH(Selection_Hide2!$A133, 'Full set Core Client Indicator'!$A$3:$A$351, 0), MATCH(Selection_Hide2!U$5, 'Full set Core Client Indicator'!$A$3:$AB$3, 0))=\"\", \"\",  INDEX('Full set Core Client Indicator'!$A$3:$AB$351, MATCH(Selection_Hide2!$A133, 'Full set Core Client Indicator'!$A$3:$A$351, 0), MATCH(Selection_Hide2!U$5, 'Full set Core Client Indicator'!$A$3:$AB$3, 0))), \"\")","v":""},{"$f":"IF(U133<>\"\", IF(INDEX('Full set Core Client Indicator'!$A$3:$AB$351, MATCH(Selection_Hide2!$A133, 'Full set Core Client Indicator'!$A$3:$A$351, 0), MATCH(Selection_Hide2!V$5, 'Full set Core Client Indicator'!$A$3:$AB$3, 0))=\"\", \"\",  INDEX('Full set Core Client Indicator'!$A$3:$AB$351, MATCH(Selection_Hide2!$A133, 'Full set Core Client Indicator'!$A$3:$A$351, 0), MATCH(Selection_Hide2!V$5, 'Full set Core Client Indicator'!$A$3:$AB$3, 0))), \"\")","v":""},{"$f":"IF(V133<>\"\", IF(INDEX('Full set Core Client Indicator'!$A$3:$AB$351, MATCH(Selection_Hide2!$A133, 'Full set Core Client Indicator'!$A$3:$A$351, 0), MATCH(Selection_Hide2!W$5, 'Full set Core Client Indicator'!$A$3:$AB$3, 0))=\"\", \"\",  INDEX('Full set Core Client Indicator'!$A$3:$AB$351, MATCH(Selection_Hide2!$A133, 'Full set Core Client Indicator'!$A$3:$A$351, 0), MATCH(Selection_Hide2!W$5, 'Full set Core Client Indicator'!$A$3:$AB$3, 0))), \"\")","v":""},{"$f":"IF(W133<>\"\", IF(INDEX('Full set Core Client Indicator'!$A$3:$AB$351, MATCH(Selection_Hide2!$A133, 'Full set Core Client Indicator'!$A$3:$A$351, 0), MATCH(Selection_Hide2!X$5, 'Full set Core Client Indicator'!$A$3:$AB$3, 0))=\"\", \"\",  INDEX('Full set Core Client Indicator'!$A$3:$AB$351, MATCH(Selection_Hide2!$A133, 'Full set Core Client Indicator'!$A$3:$A$351, 0), MATCH(Selection_Hide2!X$5, 'Full set Core Client Indicator'!$A$3:$AB$3, 0))), \"\")","v":""},{"$f":"IF(X133<>\"\", IF(INDEX('Full set Core Client Indicator'!$A$3:$AB$351, MATCH(Selection_Hide2!$A133, 'Full set Core Client Indicator'!$A$3:$A$351, 0), MATCH(Selection_Hide2!Y$5, 'Full set Core Client Indicator'!$A$3:$AB$3, 0))=\"\", \"\",  INDEX('Full set Core Client Indicator'!$A$3:$AB$351, MATCH(Selection_Hide2!$A133, 'Full set Core Client Indicator'!$A$3:$A$351, 0), MATCH(Selection_Hide2!Y$5, 'Full set Core Client Indicator'!$A$3:$AB$3, 0))), \"\")","v":""},{"$f":"IF(Y133<>\"\", IF(INDEX('Full set Core Client Indicator'!$A$3:$AB$351, MATCH(Selection_Hide2!$A133, 'Full set Core Client Indicator'!$A$3:$A$351, 0), MATCH(Selection_Hide2!Z$5, 'Full set Core Client Indicator'!$A$3:$AB$3, 0))=\"\", \"\",  INDEX('Full set Core Client Indicator'!$A$3:$AB$351, MATCH(Selection_Hide2!$A133, 'Full set Core Client Indicator'!$A$3:$A$351, 0), MATCH(Selection_Hide2!Z$5, 'Full set Core Client Indicator'!$A$3:$AB$3, 0))), \"\")","v":""},{"$f":"IF(Z133<>\"\", IF(INDEX('Full set Core Client Indicator'!$A$3:$AB$351, MATCH(Selection_Hide2!$A133, 'Full set Core Client Indicator'!$A$3:$A$351, 0), MATCH(Selection_Hide2!AA$5, 'Full set Core Client Indicator'!$A$3:$AB$3, 0))=\"\", \"\",  INDEX('Full set Core Client Indicator'!$A$3:$AB$351, MATCH(Selection_Hide2!$A133, 'Full set Core Client Indicator'!$A$3:$A$351, 0), MATCH(Selection_Hide2!AA$5, 'Full set Core Client Indicator'!$A$3:$AB$3, 0))), \"\")","v":""},{"$f":"IF(AA133<>\"\", IF(INDEX('Full set Core Client Indicator'!$A$3:$AB$351, MATCH(Selection_Hide2!$A133, 'Full set Core Client Indicator'!$A$3:$A$351, 0), MATCH(Selection_Hide2!AB$5, 'Full set Core Client Indicator'!$A$3:$AB$3, 0))=\"\", \"\",  INDEX('Full set Core Client Indicator'!$A$3:$AB$351, MATCH(Selection_Hide2!$A133, 'Full set Core Client Indicator'!$A$3:$A$351, 0), MATCH(Selection_Hide2!AB$5, 'Full set Core Client Indicator'!$A$3:$AB$3, 0))), \"\")","v":""}]
[{"$f":"IF(AND(Selection_Hide1!C132<>0, Selection_Hide1!C132<>\"Grand Total\"), Selection_Hide1!C132, \"\")","v":""},{"$f":"IF(A134<>\"\", IF(INDEX('Full set Core Client Indicator'!$A$3:$AB$351, MATCH(Selection_Hide2!$A134, 'Full set Core Client Indicator'!$A$3:$A$351, 0), MATCH(Selection_Hide2!B$5, 'Full set Core Client Indicator'!$A$3:$AB$3, 0))=\"\", \"\",  INDEX('Full set Core Client Indicator'!$A$3:$AB$351, MATCH(Selection_Hide2!$A134, 'Full set Core Client Indicator'!$A$3:$A$351, 0), MATCH(Selection_Hide2!B$5, 'Full set Core Client Indicator'!$A$3:$AB$3, 0))), \"\")","v":""},{"$f":"IF(B134<>\"\", IF(INDEX('Full set Core Client Indicator'!$A$3:$AB$351, MATCH(Selection_Hide2!$A134, 'Full set Core Client Indicator'!$A$3:$A$351, 0), MATCH(Selection_Hide2!C$5, 'Full set Core Client Indicator'!$A$3:$AB$3, 0))=\"\", \"\",  INDEX('Full set Core Client Indicator'!$A$3:$AB$351, MATCH(Selection_Hide2!$A134, 'Full set Core Client Indicator'!$A$3:$A$351, 0), MATCH(Selection_Hide2!C$5, 'Full set Core Client Indicator'!$A$3:$AB$3, 0))), \"\")","v":""},{"$f":"IF(C134<>\"\", IF(INDEX('Full set Core Client Indicator'!$A$3:$AB$351, MATCH(Selection_Hide2!$A134, 'Full set Core Client Indicator'!$A$3:$A$351, 0), MATCH(Selection_Hide2!D$5, 'Full set Core Client Indicator'!$A$3:$AB$3, 0))=\"\", \"\",  INDEX('Full set Core Client Indicator'!$A$3:$AB$351, MATCH(Selection_Hide2!$A134, 'Full set Core Client Indicator'!$A$3:$A$351, 0), MATCH(Selection_Hide2!D$5, 'Full set Core Client Indicator'!$A$3:$AB$3, 0))), \"\")","v":""},{"$f":"IF(D134<>\"\", IF(INDEX('Full set Core Client Indicator'!$A$3:$AB$351, MATCH(Selection_Hide2!$A134, 'Full set Core Client Indicator'!$A$3:$A$351, 0), MATCH(Selection_Hide2!E$5, 'Full set Core Client Indicator'!$A$3:$AB$3, 0))=\"\", \"\",  INDEX('Full set Core Client Indicator'!$A$3:$AB$351, MATCH(Selection_Hide2!$A134, 'Full set Core Client Indicator'!$A$3:$A$351, 0), MATCH(Selection_Hide2!E$5, 'Full set Core Client Indicator'!$A$3:$AB$3, 0))), \"\")","v":""},{"$f":"IF(E134<>\"\", IF(INDEX('Full set Core Client Indicator'!$A$3:$AB$351, MATCH(Selection_Hide2!$A134, 'Full set Core Client Indicator'!$A$3:$A$351, 0), MATCH(Selection_Hide2!F$5, 'Full set Core Client Indicator'!$A$3:$AB$3, 0))=\"\", \"\",  INDEX('Full set Core Client Indicator'!$A$3:$AB$351, MATCH(Selection_Hide2!$A134, 'Full set Core Client Indicator'!$A$3:$A$351, 0), MATCH(Selection_Hide2!F$5, 'Full set Core Client Indicator'!$A$3:$AB$3, 0))), \"\")","v":""},{"$f":"IF(F134<>\"\", IF(INDEX('Full set Core Client Indicator'!$A$3:$AB$351, MATCH(Selection_Hide2!$A134, 'Full set Core Client Indicator'!$A$3:$A$351, 0), MATCH(Selection_Hide2!G$5, 'Full set Core Client Indicator'!$A$3:$AB$3, 0))=\"\", \"\",  INDEX('Full set Core Client Indicator'!$A$3:$AB$351, MATCH(Selection_Hide2!$A134, 'Full set Core Client Indicator'!$A$3:$A$351, 0), MATCH(Selection_Hide2!G$5, 'Full set Core Client Indicator'!$A$3:$AB$3, 0))), \"\")","v":""},{"$f":"IF(G134<>\"\", IF(INDEX('Full set Core Client Indicator'!$A$3:$AB$351, MATCH(Selection_Hide2!$A134, 'Full set Core Client Indicator'!$A$3:$A$351, 0), MATCH(Selection_Hide2!H$5, 'Full set Core Client Indicator'!$A$3:$AB$3, 0))=\"\", \"\",  INDEX('Full set Core Client Indicator'!$A$3:$AB$351, MATCH(Selection_Hide2!$A134, 'Full set Core Client Indicator'!$A$3:$A$351, 0), MATCH(Selection_Hide2!H$5, 'Full set Core Client Indicator'!$A$3:$AB$3, 0))), \"\")","v":""},{"$f":"IF(H134<>\"\", IF(INDEX('Full set Core Client Indicator'!$A$3:$AB$351, MATCH(Selection_Hide2!$A134, 'Full set Core Client Indicator'!$A$3:$A$351, 0), MATCH(Selection_Hide2!I$5, 'Full set Core Client Indicator'!$A$3:$AB$3, 0))=\"\", \"\",  INDEX('Full set Core Client Indicator'!$A$3:$AB$351, MATCH(Selection_Hide2!$A134, 'Full set Core Client Indicator'!$A$3:$A$351, 0), MATCH(Selection_Hide2!I$5, 'Full set Core Client Indicator'!$A$3:$AB$3, 0))), \"\")","v":""},{"$f":"IF(I134<>\"\", IF(INDEX('Full set Core Client Indicator'!$A$3:$AB$351, MATCH(Selection_Hide2!$A134, 'Full set Core Client Indicator'!$A$3:$A$351, 0), MATCH(Selection_Hide2!J$5, 'Full set Core Client Indicator'!$A$3:$AB$3, 0))=\"\", \"\",  INDEX('Full set Core Client Indicator'!$A$3:$AB$351, MATCH(Selection_Hide2!$A134, 'Full set Core Client Indicator'!$A$3:$A$351, 0), MATCH(Selection_Hide2!J$5, 'Full set Core Client Indicator'!$A$3:$AB$3, 0))), \"\")","v":""},{"$f":"IF(J134<>\"\", IF(INDEX('Full set Core Client Indicator'!$A$3:$AB$351, MATCH(Selection_Hide2!$A134, 'Full set Core Client Indicator'!$A$3:$A$351, 0), MATCH(Selection_Hide2!K$5, 'Full set Core Client Indicator'!$A$3:$AB$3, 0))=\"\", \"\",  INDEX('Full set Core Client Indicator'!$A$3:$AB$351, MATCH(Selection_Hide2!$A134, 'Full set Core Client Indicator'!$A$3:$A$351, 0), MATCH(Selection_Hide2!K$5, 'Full set Core Client Indicator'!$A$3:$AB$3, 0))), \"\")","v":""},{"$f":"IF(K134<>\"\", IF(INDEX('Full set Core Client Indicator'!$A$3:$AB$351, MATCH(Selection_Hide2!$A134, 'Full set Core Client Indicator'!$A$3:$A$351, 0), MATCH(Selection_Hide2!L$5, 'Full set Core Client Indicator'!$A$3:$AB$3, 0))=\"\", \"\",  INDEX('Full set Core Client Indicator'!$A$3:$AB$351, MATCH(Selection_Hide2!$A134, 'Full set Core Client Indicator'!$A$3:$A$351, 0), MATCH(Selection_Hide2!L$5, 'Full set Core Client Indicator'!$A$3:$AB$3, 0))), \"\")","v":""},{"$f":"IF(L134<>\"\", IF(INDEX('Full set Core Client Indicator'!$A$3:$AB$351, MATCH(Selection_Hide2!$A134, 'Full set Core Client Indicator'!$A$3:$A$351, 0), MATCH(Selection_Hide2!M$5, 'Full set Core Client Indicator'!$A$3:$AB$3, 0))=\"\", \"\",  INDEX('Full set Core Client Indicator'!$A$3:$AB$351, MATCH(Selection_Hide2!$A134, 'Full set Core Client Indicator'!$A$3:$A$351, 0), MATCH(Selection_Hide2!M$5, 'Full set Core Client Indicator'!$A$3:$AB$3, 0))), \"\")","v":""},{"$f":"IF(M134<>\"\", IF(INDEX('Full set Core Client Indicator'!$A$3:$AB$351, MATCH(Selection_Hide2!$A134, 'Full set Core Client Indicator'!$A$3:$A$351, 0), MATCH(Selection_Hide2!N$5, 'Full set Core Client Indicator'!$A$3:$AB$3, 0))=\"\", \"\",  INDEX('Full set Core Client Indicator'!$A$3:$AB$351, MATCH(Selection_Hide2!$A134, 'Full set Core Client Indicator'!$A$3:$A$351, 0), MATCH(Selection_Hide2!N$5, 'Full set Core Client Indicator'!$A$3:$AB$3, 0))), \"\")","v":""},{"$f":"IF(N134<>\"\", IF(INDEX('Full set Core Client Indicator'!$A$3:$AB$351, MATCH(Selection_Hide2!$A134, 'Full set Core Client Indicator'!$A$3:$A$351, 0), MATCH(Selection_Hide2!O$5, 'Full set Core Client Indicator'!$A$3:$AB$3, 0))=\"\", \"\",  INDEX('Full set Core Client Indicator'!$A$3:$AB$351, MATCH(Selection_Hide2!$A134, 'Full set Core Client Indicator'!$A$3:$A$351, 0), MATCH(Selection_Hide2!O$5, 'Full set Core Client Indicator'!$A$3:$AB$3, 0))), \"\")","v":""},{"$f":"IF(O134<>\"\", IF(INDEX('Full set Core Client Indicator'!$A$3:$AB$351, MATCH(Selection_Hide2!$A134, 'Full set Core Client Indicator'!$A$3:$A$351, 0), MATCH(Selection_Hide2!P$5, 'Full set Core Client Indicator'!$A$3:$AB$3, 0))=\"\", \"\",  INDEX('Full set Core Client Indicator'!$A$3:$AB$351, MATCH(Selection_Hide2!$A134, 'Full set Core Client Indicator'!$A$3:$A$351, 0), MATCH(Selection_Hide2!P$5, 'Full set Core Client Indicator'!$A$3:$AB$3, 0))), \"\")","v":""},{"$f":"IF(P134<>\"\", IF(INDEX('Full set Core Client Indicator'!$A$3:$AB$351, MATCH(Selection_Hide2!$A134, 'Full set Core Client Indicator'!$A$3:$A$351, 0), MATCH(Selection_Hide2!Q$5, 'Full set Core Client Indicator'!$A$3:$AB$3, 0))=\"\", \"\",  INDEX('Full set Core Client Indicator'!$A$3:$AB$351, MATCH(Selection_Hide2!$A134, 'Full set Core Client Indicator'!$A$3:$A$351, 0), MATCH(Selection_Hide2!Q$5, 'Full set Core Client Indicator'!$A$3:$AB$3, 0))), \"\")","v":""},{"$f":"IF(Q134<>\"\", IF(INDEX('Full set Core Client Indicator'!$A$3:$AB$351, MATCH(Selection_Hide2!$A134, 'Full set Core Client Indicator'!$A$3:$A$351, 0), MATCH(Selection_Hide2!R$5, 'Full set Core Client Indicator'!$A$3:$AB$3, 0))=\"\", \"\",  INDEX('Full set Core Client Indicator'!$A$3:$AB$351, MATCH(Selection_Hide2!$A134, 'Full set Core Client Indicator'!$A$3:$A$351, 0), MATCH(Selection_Hide2!R$5, 'Full set Core Client Indicator'!$A$3:$AB$3, 0))), \"\")","v":""},{"$f":"IF(R134<>\"\", IF(INDEX('Full set Core Client Indicator'!$A$3:$AB$351, MATCH(Selection_Hide2!$A134, 'Full set Core Client Indicator'!$A$3:$A$351, 0), MATCH(Selection_Hide2!S$5, 'Full set Core Client Indicator'!$A$3:$AB$3, 0))=\"\", \"\",  INDEX('Full set Core Client Indicator'!$A$3:$AB$351, MATCH(Selection_Hide2!$A134, 'Full set Core Client Indicator'!$A$3:$A$351, 0), MATCH(Selection_Hide2!S$5, 'Full set Core Client Indicator'!$A$3:$AB$3, 0))), \"\")","v":""},{"$f":"IF(S134<>\"\", IF(INDEX('Full set Core Client Indicator'!$A$3:$AB$351, MATCH(Selection_Hide2!$A134, 'Full set Core Client Indicator'!$A$3:$A$351, 0), MATCH(Selection_Hide2!T$5, 'Full set Core Client Indicator'!$A$3:$AB$3, 0))=\"\", \"\",  INDEX('Full set Core Client Indicator'!$A$3:$AB$351, MATCH(Selection_Hide2!$A134, 'Full set Core Client Indicator'!$A$3:$A$351, 0), MATCH(Selection_Hide2!T$5, 'Full set Core Client Indicator'!$A$3:$AB$3, 0))), \"\")","v":""},{"$f":"IF(T134<>\"\", IF(INDEX('Full set Core Client Indicator'!$A$3:$AB$351, MATCH(Selection_Hide2!$A134, 'Full set Core Client Indicator'!$A$3:$A$351, 0), MATCH(Selection_Hide2!U$5, 'Full set Core Client Indicator'!$A$3:$AB$3, 0))=\"\", \"\",  INDEX('Full set Core Client Indicator'!$A$3:$AB$351, MATCH(Selection_Hide2!$A134, 'Full set Core Client Indicator'!$A$3:$A$351, 0), MATCH(Selection_Hide2!U$5, 'Full set Core Client Indicator'!$A$3:$AB$3, 0))), \"\")","v":""},{"$f":"IF(U134<>\"\", IF(INDEX('Full set Core Client Indicator'!$A$3:$AB$351, MATCH(Selection_Hide2!$A134, 'Full set Core Client Indicator'!$A$3:$A$351, 0), MATCH(Selection_Hide2!V$5, 'Full set Core Client Indicator'!$A$3:$AB$3, 0))=\"\", \"\",  INDEX('Full set Core Client Indicator'!$A$3:$AB$351, MATCH(Selection_Hide2!$A134, 'Full set Core Client Indicator'!$A$3:$A$351, 0), MATCH(Selection_Hide2!V$5, 'Full set Core Client Indicator'!$A$3:$AB$3, 0))), \"\")","v":""},{"$f":"IF(V134<>\"\", IF(INDEX('Full set Core Client Indicator'!$A$3:$AB$351, MATCH(Selection_Hide2!$A134, 'Full set Core Client Indicator'!$A$3:$A$351, 0), MATCH(Selection_Hide2!W$5, 'Full set Core Client Indicator'!$A$3:$AB$3, 0))=\"\", \"\",  INDEX('Full set Core Client Indicator'!$A$3:$AB$351, MATCH(Selection_Hide2!$A134, 'Full set Core Client Indicator'!$A$3:$A$351, 0), MATCH(Selection_Hide2!W$5, 'Full set Core Client Indicator'!$A$3:$AB$3, 0))), \"\")","v":""},{"$f":"IF(W134<>\"\", IF(INDEX('Full set Core Client Indicator'!$A$3:$AB$351, MATCH(Selection_Hide2!$A134, 'Full set Core Client Indicator'!$A$3:$A$351, 0), MATCH(Selection_Hide2!X$5, 'Full set Core Client Indicator'!$A$3:$AB$3, 0))=\"\", \"\",  INDEX('Full set Core Client Indicator'!$A$3:$AB$351, MATCH(Selection_Hide2!$A134, 'Full set Core Client Indicator'!$A$3:$A$351, 0), MATCH(Selection_Hide2!X$5, 'Full set Core Client Indicator'!$A$3:$AB$3, 0))), \"\")","v":""},{"$f":"IF(X134<>\"\", IF(INDEX('Full set Core Client Indicator'!$A$3:$AB$351, MATCH(Selection_Hide2!$A134, 'Full set Core Client Indicator'!$A$3:$A$351, 0), MATCH(Selection_Hide2!Y$5, 'Full set Core Client Indicator'!$A$3:$AB$3, 0))=\"\", \"\",  INDEX('Full set Core Client Indicator'!$A$3:$AB$351, MATCH(Selection_Hide2!$A134, 'Full set Core Client Indicator'!$A$3:$A$351, 0), MATCH(Selection_Hide2!Y$5, 'Full set Core Client Indicator'!$A$3:$AB$3, 0))), \"\")","v":""},{"$f":"IF(Y134<>\"\", IF(INDEX('Full set Core Client Indicator'!$A$3:$AB$351, MATCH(Selection_Hide2!$A134, 'Full set Core Client Indicator'!$A$3:$A$351, 0), MATCH(Selection_Hide2!Z$5, 'Full set Core Client Indicator'!$A$3:$AB$3, 0))=\"\", \"\",  INDEX('Full set Core Client Indicator'!$A$3:$AB$351, MATCH(Selection_Hide2!$A134, 'Full set Core Client Indicator'!$A$3:$A$351, 0), MATCH(Selection_Hide2!Z$5, 'Full set Core Client Indicator'!$A$3:$AB$3, 0))), \"\")","v":""},{"$f":"IF(Z134<>\"\", IF(INDEX('Full set Core Client Indicator'!$A$3:$AB$351, MATCH(Selection_Hide2!$A134, 'Full set Core Client Indicator'!$A$3:$A$351, 0), MATCH(Selection_Hide2!AA$5, 'Full set Core Client Indicator'!$A$3:$AB$3, 0))=\"\", \"\",  INDEX('Full set Core Client Indicator'!$A$3:$AB$351, MATCH(Selection_Hide2!$A134, 'Full set Core Client Indicator'!$A$3:$A$351, 0), MATCH(Selection_Hide2!AA$5, 'Full set Core Client Indicator'!$A$3:$AB$3, 0))), \"\")","v":""},{"$f":"IF(AA134<>\"\", IF(INDEX('Full set Core Client Indicator'!$A$3:$AB$351, MATCH(Selection_Hide2!$A134, 'Full set Core Client Indicator'!$A$3:$A$351, 0), MATCH(Selection_Hide2!AB$5, 'Full set Core Client Indicator'!$A$3:$AB$3, 0))=\"\", \"\",  INDEX('Full set Core Client Indicator'!$A$3:$AB$351, MATCH(Selection_Hide2!$A134, 'Full set Core Client Indicator'!$A$3:$A$351, 0), MATCH(Selection_Hide2!AB$5, 'Full set Core Client Indicator'!$A$3:$AB$3, 0))), \"\")","v":""}]
[{"$f":"IF(AND(Selection_Hide1!C133<>0, Selection_Hide1!C133<>\"Grand Total\"), Selection_Hide1!C133, \"\")","v":""},{"$f":"IF(A135<>\"\", IF(INDEX('Full set Core Client Indicator'!$A$3:$AB$351, MATCH(Selection_Hide2!$A135, 'Full set Core Client Indicator'!$A$3:$A$351, 0), MATCH(Selection_Hide2!B$5, 'Full set Core Client Indicator'!$A$3:$AB$3, 0))=\"\", \"\",  INDEX('Full set Core Client Indicator'!$A$3:$AB$351, MATCH(Selection_Hide2!$A135, 'Full set Core Client Indicator'!$A$3:$A$351, 0), MATCH(Selection_Hide2!B$5, 'Full set Core Client Indicator'!$A$3:$AB$3, 0))), \"\")","v":""},{"$f":"IF(B135<>\"\", IF(INDEX('Full set Core Client Indicator'!$A$3:$AB$351, MATCH(Selection_Hide2!$A135, 'Full set Core Client Indicator'!$A$3:$A$351, 0), MATCH(Selection_Hide2!C$5, 'Full set Core Client Indicator'!$A$3:$AB$3, 0))=\"\", \"\",  INDEX('Full set Core Client Indicator'!$A$3:$AB$351, MATCH(Selection_Hide2!$A135, 'Full set Core Client Indicator'!$A$3:$A$351, 0), MATCH(Selection_Hide2!C$5, 'Full set Core Client Indicator'!$A$3:$AB$3, 0))), \"\")","v":""},{"$f":"IF(C135<>\"\", IF(INDEX('Full set Core Client Indicator'!$A$3:$AB$351, MATCH(Selection_Hide2!$A135, 'Full set Core Client Indicator'!$A$3:$A$351, 0), MATCH(Selection_Hide2!D$5, 'Full set Core Client Indicator'!$A$3:$AB$3, 0))=\"\", \"\",  INDEX('Full set Core Client Indicator'!$A$3:$AB$351, MATCH(Selection_Hide2!$A135, 'Full set Core Client Indicator'!$A$3:$A$351, 0), MATCH(Selection_Hide2!D$5, 'Full set Core Client Indicator'!$A$3:$AB$3, 0))), \"\")","v":""},{"$f":"IF(D135<>\"\", IF(INDEX('Full set Core Client Indicator'!$A$3:$AB$351, MATCH(Selection_Hide2!$A135, 'Full set Core Client Indicator'!$A$3:$A$351, 0), MATCH(Selection_Hide2!E$5, 'Full set Core Client Indicator'!$A$3:$AB$3, 0))=\"\", \"\",  INDEX('Full set Core Client Indicator'!$A$3:$AB$351, MATCH(Selection_Hide2!$A135, 'Full set Core Client Indicator'!$A$3:$A$351, 0), MATCH(Selection_Hide2!E$5, 'Full set Core Client Indicator'!$A$3:$AB$3, 0))), \"\")","v":""},{"$f":"IF(E135<>\"\", IF(INDEX('Full set Core Client Indicator'!$A$3:$AB$351, MATCH(Selection_Hide2!$A135, 'Full set Core Client Indicator'!$A$3:$A$351, 0), MATCH(Selection_Hide2!F$5, 'Full set Core Client Indicator'!$A$3:$AB$3, 0))=\"\", \"\",  INDEX('Full set Core Client Indicator'!$A$3:$AB$351, MATCH(Selection_Hide2!$A135, 'Full set Core Client Indicator'!$A$3:$A$351, 0), MATCH(Selection_Hide2!F$5, 'Full set Core Client Indicator'!$A$3:$AB$3, 0))), \"\")","v":""},{"$f":"IF(F135<>\"\", IF(INDEX('Full set Core Client Indicator'!$A$3:$AB$351, MATCH(Selection_Hide2!$A135, 'Full set Core Client Indicator'!$A$3:$A$351, 0), MATCH(Selection_Hide2!G$5, 'Full set Core Client Indicator'!$A$3:$AB$3, 0))=\"\", \"\",  INDEX('Full set Core Client Indicator'!$A$3:$AB$351, MATCH(Selection_Hide2!$A135, 'Full set Core Client Indicator'!$A$3:$A$351, 0), MATCH(Selection_Hide2!G$5, 'Full set Core Client Indicator'!$A$3:$AB$3, 0))), \"\")","v":""},{"$f":"IF(G135<>\"\", IF(INDEX('Full set Core Client Indicator'!$A$3:$AB$351, MATCH(Selection_Hide2!$A135, 'Full set Core Client Indicator'!$A$3:$A$351, 0), MATCH(Selection_Hide2!H$5, 'Full set Core Client Indicator'!$A$3:$AB$3, 0))=\"\", \"\",  INDEX('Full set Core Client Indicator'!$A$3:$AB$351, MATCH(Selection_Hide2!$A135, 'Full set Core Client Indicator'!$A$3:$A$351, 0), MATCH(Selection_Hide2!H$5, 'Full set Core Client Indicator'!$A$3:$AB$3, 0))), \"\")","v":""},{"$f":"IF(H135<>\"\", IF(INDEX('Full set Core Client Indicator'!$A$3:$AB$351, MATCH(Selection_Hide2!$A135, 'Full set Core Client Indicator'!$A$3:$A$351, 0), MATCH(Selection_Hide2!I$5, 'Full set Core Client Indicator'!$A$3:$AB$3, 0))=\"\", \"\",  INDEX('Full set Core Client Indicator'!$A$3:$AB$351, MATCH(Selection_Hide2!$A135, 'Full set Core Client Indicator'!$A$3:$A$351, 0), MATCH(Selection_Hide2!I$5, 'Full set Core Client Indicator'!$A$3:$AB$3, 0))), \"\")","v":""},{"$f":"IF(I135<>\"\", IF(INDEX('Full set Core Client Indicator'!$A$3:$AB$351, MATCH(Selection_Hide2!$A135, 'Full set Core Client Indicator'!$A$3:$A$351, 0), MATCH(Selection_Hide2!J$5, 'Full set Core Client Indicator'!$A$3:$AB$3, 0))=\"\", \"\",  INDEX('Full set Core Client Indicator'!$A$3:$AB$351, MATCH(Selection_Hide2!$A135, 'Full set Core Client Indicator'!$A$3:$A$351, 0), MATCH(Selection_Hide2!J$5, 'Full set Core Client Indicator'!$A$3:$AB$3, 0))), \"\")","v":""},{"$f":"IF(J135<>\"\", IF(INDEX('Full set Core Client Indicator'!$A$3:$AB$351, MATCH(Selection_Hide2!$A135, 'Full set Core Client Indicator'!$A$3:$A$351, 0), MATCH(Selection_Hide2!K$5, 'Full set Core Client Indicator'!$A$3:$AB$3, 0))=\"\", \"\",  INDEX('Full set Core Client Indicator'!$A$3:$AB$351, MATCH(Selection_Hide2!$A135, 'Full set Core Client Indicator'!$A$3:$A$351, 0), MATCH(Selection_Hide2!K$5, 'Full set Core Client Indicator'!$A$3:$AB$3, 0))), \"\")","v":""},{"$f":"IF(K135<>\"\", IF(INDEX('Full set Core Client Indicator'!$A$3:$AB$351, MATCH(Selection_Hide2!$A135, 'Full set Core Client Indicator'!$A$3:$A$351, 0), MATCH(Selection_Hide2!L$5, 'Full set Core Client Indicator'!$A$3:$AB$3, 0))=\"\", \"\",  INDEX('Full set Core Client Indicator'!$A$3:$AB$351, MATCH(Selection_Hide2!$A135, 'Full set Core Client Indicator'!$A$3:$A$351, 0), MATCH(Selection_Hide2!L$5, 'Full set Core Client Indicator'!$A$3:$AB$3, 0))), \"\")","v":""},{"$f":"IF(L135<>\"\", IF(INDEX('Full set Core Client Indicator'!$A$3:$AB$351, MATCH(Selection_Hide2!$A135, 'Full set Core Client Indicator'!$A$3:$A$351, 0), MATCH(Selection_Hide2!M$5, 'Full set Core Client Indicator'!$A$3:$AB$3, 0))=\"\", \"\",  INDEX('Full set Core Client Indicator'!$A$3:$AB$351, MATCH(Selection_Hide2!$A135, 'Full set Core Client Indicator'!$A$3:$A$351, 0), MATCH(Selection_Hide2!M$5, 'Full set Core Client Indicator'!$A$3:$AB$3, 0))), \"\")","v":""},{"$f":"IF(M135<>\"\", IF(INDEX('Full set Core Client Indicator'!$A$3:$AB$351, MATCH(Selection_Hide2!$A135, 'Full set Core Client Indicator'!$A$3:$A$351, 0), MATCH(Selection_Hide2!N$5, 'Full set Core Client Indicator'!$A$3:$AB$3, 0))=\"\", \"\",  INDEX('Full set Core Client Indicator'!$A$3:$AB$351, MATCH(Selection_Hide2!$A135, 'Full set Core Client Indicator'!$A$3:$A$351, 0), MATCH(Selection_Hide2!N$5, 'Full set Core Client Indicator'!$A$3:$AB$3, 0))), \"\")","v":""},{"$f":"IF(N135<>\"\", IF(INDEX('Full set Core Client Indicator'!$A$3:$AB$351, MATCH(Selection_Hide2!$A135, 'Full set Core Client Indicator'!$A$3:$A$351, 0), MATCH(Selection_Hide2!O$5, 'Full set Core Client Indicator'!$A$3:$AB$3, 0))=\"\", \"\",  INDEX('Full set Core Client Indicator'!$A$3:$AB$351, MATCH(Selection_Hide2!$A135, 'Full set Core Client Indicator'!$A$3:$A$351, 0), MATCH(Selection_Hide2!O$5, 'Full set Core Client Indicator'!$A$3:$AB$3, 0))), \"\")","v":""},{"$f":"IF(O135<>\"\", IF(INDEX('Full set Core Client Indicator'!$A$3:$AB$351, MATCH(Selection_Hide2!$A135, 'Full set Core Client Indicator'!$A$3:$A$351, 0), MATCH(Selection_Hide2!P$5, 'Full set Core Client Indicator'!$A$3:$AB$3, 0))=\"\", \"\",  INDEX('Full set Core Client Indicator'!$A$3:$AB$351, MATCH(Selection_Hide2!$A135, 'Full set Core Client Indicator'!$A$3:$A$351, 0), MATCH(Selection_Hide2!P$5, 'Full set Core Client Indicator'!$A$3:$AB$3, 0))), \"\")","v":""},{"$f":"IF(P135<>\"\", IF(INDEX('Full set Core Client Indicator'!$A$3:$AB$351, MATCH(Selection_Hide2!$A135, 'Full set Core Client Indicator'!$A$3:$A$351, 0), MATCH(Selection_Hide2!Q$5, 'Full set Core Client Indicator'!$A$3:$AB$3, 0))=\"\", \"\",  INDEX('Full set Core Client Indicator'!$A$3:$AB$351, MATCH(Selection_Hide2!$A135, 'Full set Core Client Indicator'!$A$3:$A$351, 0), MATCH(Selection_Hide2!Q$5, 'Full set Core Client Indicator'!$A$3:$AB$3, 0))), \"\")","v":""},{"$f":"IF(Q135<>\"\", IF(INDEX('Full set Core Client Indicator'!$A$3:$AB$351, MATCH(Selection_Hide2!$A135, 'Full set Core Client Indicator'!$A$3:$A$351, 0), MATCH(Selection_Hide2!R$5, 'Full set Core Client Indicator'!$A$3:$AB$3, 0))=\"\", \"\",  INDEX('Full set Core Client Indicator'!$A$3:$AB$351, MATCH(Selection_Hide2!$A135, 'Full set Core Client Indicator'!$A$3:$A$351, 0), MATCH(Selection_Hide2!R$5, 'Full set Core Client Indicator'!$A$3:$AB$3, 0))), \"\")","v":""},{"$f":"IF(R135<>\"\", IF(INDEX('Full set Core Client Indicator'!$A$3:$AB$351, MATCH(Selection_Hide2!$A135, 'Full set Core Client Indicator'!$A$3:$A$351, 0), MATCH(Selection_Hide2!S$5, 'Full set Core Client Indicator'!$A$3:$AB$3, 0))=\"\", \"\",  INDEX('Full set Core Client Indicator'!$A$3:$AB$351, MATCH(Selection_Hide2!$A135, 'Full set Core Client Indicator'!$A$3:$A$351, 0), MATCH(Selection_Hide2!S$5, 'Full set Core Client Indicator'!$A$3:$AB$3, 0))), \"\")","v":""},{"$f":"IF(S135<>\"\", IF(INDEX('Full set Core Client Indicator'!$A$3:$AB$351, MATCH(Selection_Hide2!$A135, 'Full set Core Client Indicator'!$A$3:$A$351, 0), MATCH(Selection_Hide2!T$5, 'Full set Core Client Indicator'!$A$3:$AB$3, 0))=\"\", \"\",  INDEX('Full set Core Client Indicator'!$A$3:$AB$351, MATCH(Selection_Hide2!$A135, 'Full set Core Client Indicator'!$A$3:$A$351, 0), MATCH(Selection_Hide2!T$5, 'Full set Core Client Indicator'!$A$3:$AB$3, 0))), \"\")","v":""},{"$f":"IF(T135<>\"\", IF(INDEX('Full set Core Client Indicator'!$A$3:$AB$351, MATCH(Selection_Hide2!$A135, 'Full set Core Client Indicator'!$A$3:$A$351, 0), MATCH(Selection_Hide2!U$5, 'Full set Core Client Indicator'!$A$3:$AB$3, 0))=\"\", \"\",  INDEX('Full set Core Client Indicator'!$A$3:$AB$351, MATCH(Selection_Hide2!$A135, 'Full set Core Client Indicator'!$A$3:$A$351, 0), MATCH(Selection_Hide2!U$5, 'Full set Core Client Indicator'!$A$3:$AB$3, 0))), \"\")","v":""},{"$f":"IF(U135<>\"\", IF(INDEX('Full set Core Client Indicator'!$A$3:$AB$351, MATCH(Selection_Hide2!$A135, 'Full set Core Client Indicator'!$A$3:$A$351, 0), MATCH(Selection_Hide2!V$5, 'Full set Core Client Indicator'!$A$3:$AB$3, 0))=\"\", \"\",  INDEX('Full set Core Client Indicator'!$A$3:$AB$351, MATCH(Selection_Hide2!$A135, 'Full set Core Client Indicator'!$A$3:$A$351, 0), MATCH(Selection_Hide2!V$5, 'Full set Core Client Indicator'!$A$3:$AB$3, 0))), \"\")","v":""},{"$f":"IF(V135<>\"\", IF(INDEX('Full set Core Client Indicator'!$A$3:$AB$351, MATCH(Selection_Hide2!$A135, 'Full set Core Client Indicator'!$A$3:$A$351, 0), MATCH(Selection_Hide2!W$5, 'Full set Core Client Indicator'!$A$3:$AB$3, 0))=\"\", \"\",  INDEX('Full set Core Client Indicator'!$A$3:$AB$351, MATCH(Selection_Hide2!$A135, 'Full set Core Client Indicator'!$A$3:$A$351, 0), MATCH(Selection_Hide2!W$5, 'Full set Core Client Indicator'!$A$3:$AB$3, 0))), \"\")","v":""},{"$f":"IF(W135<>\"\", IF(INDEX('Full set Core Client Indicator'!$A$3:$AB$351, MATCH(Selection_Hide2!$A135, 'Full set Core Client Indicator'!$A$3:$A$351, 0), MATCH(Selection_Hide2!X$5, 'Full set Core Client Indicator'!$A$3:$AB$3, 0))=\"\", \"\",  INDEX('Full set Core Client Indicator'!$A$3:$AB$351, MATCH(Selection_Hide2!$A135, 'Full set Core Client Indicator'!$A$3:$A$351, 0), MATCH(Selection_Hide2!X$5, 'Full set Core Client Indicator'!$A$3:$AB$3, 0))), \"\")","v":""},{"$f":"IF(X135<>\"\", IF(INDEX('Full set Core Client Indicator'!$A$3:$AB$351, MATCH(Selection_Hide2!$A135, 'Full set Core Client Indicator'!$A$3:$A$351, 0), MATCH(Selection_Hide2!Y$5, 'Full set Core Client Indicator'!$A$3:$AB$3, 0))=\"\", \"\",  INDEX('Full set Core Client Indicator'!$A$3:$AB$351, MATCH(Selection_Hide2!$A135, 'Full set Core Client Indicator'!$A$3:$A$351, 0), MATCH(Selection_Hide2!Y$5, 'Full set Core Client Indicator'!$A$3:$AB$3, 0))), \"\")","v":""},{"$f":"IF(Y135<>\"\", IF(INDEX('Full set Core Client Indicator'!$A$3:$AB$351, MATCH(Selection_Hide2!$A135, 'Full set Core Client Indicator'!$A$3:$A$351, 0), MATCH(Selection_Hide2!Z$5, 'Full set Core Client Indicator'!$A$3:$AB$3, 0))=\"\", \"\",  INDEX('Full set Core Client Indicator'!$A$3:$AB$351, MATCH(Selection_Hide2!$A135, 'Full set Core Client Indicator'!$A$3:$A$351, 0), MATCH(Selection_Hide2!Z$5, 'Full set Core Client Indicator'!$A$3:$AB$3, 0))), \"\")","v":""},{"$f":"IF(Z135<>\"\", IF(INDEX('Full set Core Client Indicator'!$A$3:$AB$351, MATCH(Selection_Hide2!$A135, 'Full set Core Client Indicator'!$A$3:$A$351, 0), MATCH(Selection_Hide2!AA$5, 'Full set Core Client Indicator'!$A$3:$AB$3, 0))=\"\", \"\",  INDEX('Full set Core Client Indicator'!$A$3:$AB$351, MATCH(Selection_Hide2!$A135, 'Full set Core Client Indicator'!$A$3:$A$351, 0), MATCH(Selection_Hide2!AA$5, 'Full set Core Client Indicator'!$A$3:$AB$3, 0))), \"\")","v":""},{"$f":"IF(AA135<>\"\", IF(INDEX('Full set Core Client Indicator'!$A$3:$AB$351, MATCH(Selection_Hide2!$A135, 'Full set Core Client Indicator'!$A$3:$A$351, 0), MATCH(Selection_Hide2!AB$5, 'Full set Core Client Indicator'!$A$3:$AB$3, 0))=\"\", \"\",  INDEX('Full set Core Client Indicator'!$A$3:$AB$351, MATCH(Selection_Hide2!$A135, 'Full set Core Client Indicator'!$A$3:$A$351, 0), MATCH(Selection_Hide2!AB$5, 'Full set Core Client Indicator'!$A$3:$AB$3, 0))), \"\")","v":""}]
[{"$f":"IF(AND(Selection_Hide1!C134<>0, Selection_Hide1!C134<>\"Grand Total\"), Selection_Hide1!C134, \"\")","v":""},{"$f":"IF(A136<>\"\", IF(INDEX('Full set Core Client Indicator'!$A$3:$AB$351, MATCH(Selection_Hide2!$A136, 'Full set Core Client Indicator'!$A$3:$A$351, 0), MATCH(Selection_Hide2!B$5, 'Full set Core Client Indicator'!$A$3:$AB$3, 0))=\"\", \"\",  INDEX('Full set Core Client Indicator'!$A$3:$AB$351, MATCH(Selection_Hide2!$A136, 'Full set Core Client Indicator'!$A$3:$A$351, 0), MATCH(Selection_Hide2!B$5, 'Full set Core Client Indicator'!$A$3:$AB$3, 0))), \"\")","v":""},{"$f":"IF(B136<>\"\", IF(INDEX('Full set Core Client Indicator'!$A$3:$AB$351, MATCH(Selection_Hide2!$A136, 'Full set Core Client Indicator'!$A$3:$A$351, 0), MATCH(Selection_Hide2!C$5, 'Full set Core Client Indicator'!$A$3:$AB$3, 0))=\"\", \"\",  INDEX('Full set Core Client Indicator'!$A$3:$AB$351, MATCH(Selection_Hide2!$A136, 'Full set Core Client Indicator'!$A$3:$A$351, 0), MATCH(Selection_Hide2!C$5, 'Full set Core Client Indicator'!$A$3:$AB$3, 0))), \"\")","v":""},{"$f":"IF(C136<>\"\", IF(INDEX('Full set Core Client Indicator'!$A$3:$AB$351, MATCH(Selection_Hide2!$A136, 'Full set Core Client Indicator'!$A$3:$A$351, 0), MATCH(Selection_Hide2!D$5, 'Full set Core Client Indicator'!$A$3:$AB$3, 0))=\"\", \"\",  INDEX('Full set Core Client Indicator'!$A$3:$AB$351, MATCH(Selection_Hide2!$A136, 'Full set Core Client Indicator'!$A$3:$A$351, 0), MATCH(Selection_Hide2!D$5, 'Full set Core Client Indicator'!$A$3:$AB$3, 0))), \"\")","v":""},{"$f":"IF(D136<>\"\", IF(INDEX('Full set Core Client Indicator'!$A$3:$AB$351, MATCH(Selection_Hide2!$A136, 'Full set Core Client Indicator'!$A$3:$A$351, 0), MATCH(Selection_Hide2!E$5, 'Full set Core Client Indicator'!$A$3:$AB$3, 0))=\"\", \"\",  INDEX('Full set Core Client Indicator'!$A$3:$AB$351, MATCH(Selection_Hide2!$A136, 'Full set Core Client Indicator'!$A$3:$A$351, 0), MATCH(Selection_Hide2!E$5, 'Full set Core Client Indicator'!$A$3:$AB$3, 0))), \"\")","v":""},{"$f":"IF(E136<>\"\", IF(INDEX('Full set Core Client Indicator'!$A$3:$AB$351, MATCH(Selection_Hide2!$A136, 'Full set Core Client Indicator'!$A$3:$A$351, 0), MATCH(Selection_Hide2!F$5, 'Full set Core Client Indicator'!$A$3:$AB$3, 0))=\"\", \"\",  INDEX('Full set Core Client Indicator'!$A$3:$AB$351, MATCH(Selection_Hide2!$A136, 'Full set Core Client Indicator'!$A$3:$A$351, 0), MATCH(Selection_Hide2!F$5, 'Full set Core Client Indicator'!$A$3:$AB$3, 0))), \"\")","v":""},{"$f":"IF(F136<>\"\", IF(INDEX('Full set Core Client Indicator'!$A$3:$AB$351, MATCH(Selection_Hide2!$A136, 'Full set Core Client Indicator'!$A$3:$A$351, 0), MATCH(Selection_Hide2!G$5, 'Full set Core Client Indicator'!$A$3:$AB$3, 0))=\"\", \"\",  INDEX('Full set Core Client Indicator'!$A$3:$AB$351, MATCH(Selection_Hide2!$A136, 'Full set Core Client Indicator'!$A$3:$A$351, 0), MATCH(Selection_Hide2!G$5, 'Full set Core Client Indicator'!$A$3:$AB$3, 0))), \"\")","v":""},{"$f":"IF(G136<>\"\", IF(INDEX('Full set Core Client Indicator'!$A$3:$AB$351, MATCH(Selection_Hide2!$A136, 'Full set Core Client Indicator'!$A$3:$A$351, 0), MATCH(Selection_Hide2!H$5, 'Full set Core Client Indicator'!$A$3:$AB$3, 0))=\"\", \"\",  INDEX('Full set Core Client Indicator'!$A$3:$AB$351, MATCH(Selection_Hide2!$A136, 'Full set Core Client Indicator'!$A$3:$A$351, 0), MATCH(Selection_Hide2!H$5, 'Full set Core Client Indicator'!$A$3:$AB$3, 0))), \"\")","v":""},{"$f":"IF(H136<>\"\", IF(INDEX('Full set Core Client Indicator'!$A$3:$AB$351, MATCH(Selection_Hide2!$A136, 'Full set Core Client Indicator'!$A$3:$A$351, 0), MATCH(Selection_Hide2!I$5, 'Full set Core Client Indicator'!$A$3:$AB$3, 0))=\"\", \"\",  INDEX('Full set Core Client Indicator'!$A$3:$AB$351, MATCH(Selection_Hide2!$A136, 'Full set Core Client Indicator'!$A$3:$A$351, 0), MATCH(Selection_Hide2!I$5, 'Full set Core Client Indicator'!$A$3:$AB$3, 0))), \"\")","v":""},{"$f":"IF(I136<>\"\", IF(INDEX('Full set Core Client Indicator'!$A$3:$AB$351, MATCH(Selection_Hide2!$A136, 'Full set Core Client Indicator'!$A$3:$A$351, 0), MATCH(Selection_Hide2!J$5, 'Full set Core Client Indicator'!$A$3:$AB$3, 0))=\"\", \"\",  INDEX('Full set Core Client Indicator'!$A$3:$AB$351, MATCH(Selection_Hide2!$A136, 'Full set Core Client Indicator'!$A$3:$A$351, 0), MATCH(Selection_Hide2!J$5, 'Full set Core Client Indicator'!$A$3:$AB$3, 0))), \"\")","v":""},{"$f":"IF(J136<>\"\", IF(INDEX('Full set Core Client Indicator'!$A$3:$AB$351, MATCH(Selection_Hide2!$A136, 'Full set Core Client Indicator'!$A$3:$A$351, 0), MATCH(Selection_Hide2!K$5, 'Full set Core Client Indicator'!$A$3:$AB$3, 0))=\"\", \"\",  INDEX('Full set Core Client Indicator'!$A$3:$AB$351, MATCH(Selection_Hide2!$A136, 'Full set Core Client Indicator'!$A$3:$A$351, 0), MATCH(Selection_Hide2!K$5, 'Full set Core Client Indicator'!$A$3:$AB$3, 0))), \"\")","v":""},{"$f":"IF(K136<>\"\", IF(INDEX('Full set Core Client Indicator'!$A$3:$AB$351, MATCH(Selection_Hide2!$A136, 'Full set Core Client Indicator'!$A$3:$A$351, 0), MATCH(Selection_Hide2!L$5, 'Full set Core Client Indicator'!$A$3:$AB$3, 0))=\"\", \"\",  INDEX('Full set Core Client Indicator'!$A$3:$AB$351, MATCH(Selection_Hide2!$A136, 'Full set Core Client Indicator'!$A$3:$A$351, 0), MATCH(Selection_Hide2!L$5, 'Full set Core Client Indicator'!$A$3:$AB$3, 0))), \"\")","v":""},{"$f":"IF(L136<>\"\", IF(INDEX('Full set Core Client Indicator'!$A$3:$AB$351, MATCH(Selection_Hide2!$A136, 'Full set Core Client Indicator'!$A$3:$A$351, 0), MATCH(Selection_Hide2!M$5, 'Full set Core Client Indicator'!$A$3:$AB$3, 0))=\"\", \"\",  INDEX('Full set Core Client Indicator'!$A$3:$AB$351, MATCH(Selection_Hide2!$A136, 'Full set Core Client Indicator'!$A$3:$A$351, 0), MATCH(Selection_Hide2!M$5, 'Full set Core Client Indicator'!$A$3:$AB$3, 0))), \"\")","v":""},{"$f":"IF(M136<>\"\", IF(INDEX('Full set Core Client Indicator'!$A$3:$AB$351, MATCH(Selection_Hide2!$A136, 'Full set Core Client Indicator'!$A$3:$A$351, 0), MATCH(Selection_Hide2!N$5, 'Full set Core Client Indicator'!$A$3:$AB$3, 0))=\"\", \"\",  INDEX('Full set Core Client Indicator'!$A$3:$AB$351, MATCH(Selection_Hide2!$A136, 'Full set Core Client Indicator'!$A$3:$A$351, 0), MATCH(Selection_Hide2!N$5, 'Full set Core Client Indicator'!$A$3:$AB$3, 0))), \"\")","v":""},{"$f":"IF(N136<>\"\", IF(INDEX('Full set Core Client Indicator'!$A$3:$AB$351, MATCH(Selection_Hide2!$A136, 'Full set Core Client Indicator'!$A$3:$A$351, 0), MATCH(Selection_Hide2!O$5, 'Full set Core Client Indicator'!$A$3:$AB$3, 0))=\"\", \"\",  INDEX('Full set Core Client Indicator'!$A$3:$AB$351, MATCH(Selection_Hide2!$A136, 'Full set Core Client Indicator'!$A$3:$A$351, 0), MATCH(Selection_Hide2!O$5, 'Full set Core Client Indicator'!$A$3:$AB$3, 0))), \"\")","v":""},{"$f":"IF(O136<>\"\", IF(INDEX('Full set Core Client Indicator'!$A$3:$AB$351, MATCH(Selection_Hide2!$A136, 'Full set Core Client Indicator'!$A$3:$A$351, 0), MATCH(Selection_Hide2!P$5, 'Full set Core Client Indicator'!$A$3:$AB$3, 0))=\"\", \"\",  INDEX('Full set Core Client Indicator'!$A$3:$AB$351, MATCH(Selection_Hide2!$A136, 'Full set Core Client Indicator'!$A$3:$A$351, 0), MATCH(Selection_Hide2!P$5, 'Full set Core Client Indicator'!$A$3:$AB$3, 0))), \"\")","v":""},{"$f":"IF(P136<>\"\", IF(INDEX('Full set Core Client Indicator'!$A$3:$AB$351, MATCH(Selection_Hide2!$A136, 'Full set Core Client Indicator'!$A$3:$A$351, 0), MATCH(Selection_Hide2!Q$5, 'Full set Core Client Indicator'!$A$3:$AB$3, 0))=\"\", \"\",  INDEX('Full set Core Client Indicator'!$A$3:$AB$351, MATCH(Selection_Hide2!$A136, 'Full set Core Client Indicator'!$A$3:$A$351, 0), MATCH(Selection_Hide2!Q$5, 'Full set Core Client Indicator'!$A$3:$AB$3, 0))), \"\")","v":""},{"$f":"IF(Q136<>\"\", IF(INDEX('Full set Core Client Indicator'!$A$3:$AB$351, MATCH(Selection_Hide2!$A136, 'Full set Core Client Indicator'!$A$3:$A$351, 0), MATCH(Selection_Hide2!R$5, 'Full set Core Client Indicator'!$A$3:$AB$3, 0))=\"\", \"\",  INDEX('Full set Core Client Indicator'!$A$3:$AB$351, MATCH(Selection_Hide2!$A136, 'Full set Core Client Indicator'!$A$3:$A$351, 0), MATCH(Selection_Hide2!R$5, 'Full set Core Client Indicator'!$A$3:$AB$3, 0))), \"\")","v":""},{"$f":"IF(R136<>\"\", IF(INDEX('Full set Core Client Indicator'!$A$3:$AB$351, MATCH(Selection_Hide2!$A136, 'Full set Core Client Indicator'!$A$3:$A$351, 0), MATCH(Selection_Hide2!S$5, 'Full set Core Client Indicator'!$A$3:$AB$3, 0))=\"\", \"\",  INDEX('Full set Core Client Indicator'!$A$3:$AB$351, MATCH(Selection_Hide2!$A136, 'Full set Core Client Indicator'!$A$3:$A$351, 0), MATCH(Selection_Hide2!S$5, 'Full set Core Client Indicator'!$A$3:$AB$3, 0))), \"\")","v":""},{"$f":"IF(S136<>\"\", IF(INDEX('Full set Core Client Indicator'!$A$3:$AB$351, MATCH(Selection_Hide2!$A136, 'Full set Core Client Indicator'!$A$3:$A$351, 0), MATCH(Selection_Hide2!T$5, 'Full set Core Client Indicator'!$A$3:$AB$3, 0))=\"\", \"\",  INDEX('Full set Core Client Indicator'!$A$3:$AB$351, MATCH(Selection_Hide2!$A136, 'Full set Core Client Indicator'!$A$3:$A$351, 0), MATCH(Selection_Hide2!T$5, 'Full set Core Client Indicator'!$A$3:$AB$3, 0))), \"\")","v":""},{"$f":"IF(T136<>\"\", IF(INDEX('Full set Core Client Indicator'!$A$3:$AB$351, MATCH(Selection_Hide2!$A136, 'Full set Core Client Indicator'!$A$3:$A$351, 0), MATCH(Selection_Hide2!U$5, 'Full set Core Client Indicator'!$A$3:$AB$3, 0))=\"\", \"\",  INDEX('Full set Core Client Indicator'!$A$3:$AB$351, MATCH(Selection_Hide2!$A136, 'Full set Core Client Indicator'!$A$3:$A$351, 0), MATCH(Selection_Hide2!U$5, 'Full set Core Client Indicator'!$A$3:$AB$3, 0))), \"\")","v":""},{"$f":"IF(U136<>\"\", IF(INDEX('Full set Core Client Indicator'!$A$3:$AB$351, MATCH(Selection_Hide2!$A136, 'Full set Core Client Indicator'!$A$3:$A$351, 0), MATCH(Selection_Hide2!V$5, 'Full set Core Client Indicator'!$A$3:$AB$3, 0))=\"\", \"\",  INDEX('Full set Core Client Indicator'!$A$3:$AB$351, MATCH(Selection_Hide2!$A136, 'Full set Core Client Indicator'!$A$3:$A$351, 0), MATCH(Selection_Hide2!V$5, 'Full set Core Client Indicator'!$A$3:$AB$3, 0))), \"\")","v":""},{"$f":"IF(V136<>\"\", IF(INDEX('Full set Core Client Indicator'!$A$3:$AB$351, MATCH(Selection_Hide2!$A136, 'Full set Core Client Indicator'!$A$3:$A$351, 0), MATCH(Selection_Hide2!W$5, 'Full set Core Client Indicator'!$A$3:$AB$3, 0))=\"\", \"\",  INDEX('Full set Core Client Indicator'!$A$3:$AB$351, MATCH(Selection_Hide2!$A136, 'Full set Core Client Indicator'!$A$3:$A$351, 0), MATCH(Selection_Hide2!W$5, 'Full set Core Client Indicator'!$A$3:$AB$3, 0))), \"\")","v":""},{"$f":"IF(W136<>\"\", IF(INDEX('Full set Core Client Indicator'!$A$3:$AB$351, MATCH(Selection_Hide2!$A136, 'Full set Core Client Indicator'!$A$3:$A$351, 0), MATCH(Selection_Hide2!X$5, 'Full set Core Client Indicator'!$A$3:$AB$3, 0))=\"\", \"\",  INDEX('Full set Core Client Indicator'!$A$3:$AB$351, MATCH(Selection_Hide2!$A136, 'Full set Core Client Indicator'!$A$3:$A$351, 0), MATCH(Selection_Hide2!X$5, 'Full set Core Client Indicator'!$A$3:$AB$3, 0))), \"\")","v":""},{"$f":"IF(X136<>\"\", IF(INDEX('Full set Core Client Indicator'!$A$3:$AB$351, MATCH(Selection_Hide2!$A136, 'Full set Core Client Indicator'!$A$3:$A$351, 0), MATCH(Selection_Hide2!Y$5, 'Full set Core Client Indicator'!$A$3:$AB$3, 0))=\"\", \"\",  INDEX('Full set Core Client Indicator'!$A$3:$AB$351, MATCH(Selection_Hide2!$A136, 'Full set Core Client Indicator'!$A$3:$A$351, 0), MATCH(Selection_Hide2!Y$5, 'Full set Core Client Indicator'!$A$3:$AB$3, 0))), \"\")","v":""},{"$f":"IF(Y136<>\"\", IF(INDEX('Full set Core Client Indicator'!$A$3:$AB$351, MATCH(Selection_Hide2!$A136, 'Full set Core Client Indicator'!$A$3:$A$351, 0), MATCH(Selection_Hide2!Z$5, 'Full set Core Client Indicator'!$A$3:$AB$3, 0))=\"\", \"\",  INDEX('Full set Core Client Indicator'!$A$3:$AB$351, MATCH(Selection_Hide2!$A136, 'Full set Core Client Indicator'!$A$3:$A$351, 0), MATCH(Selection_Hide2!Z$5, 'Full set Core Client Indicator'!$A$3:$AB$3, 0))), \"\")","v":""},{"$f":"IF(Z136<>\"\", IF(INDEX('Full set Core Client Indicator'!$A$3:$AB$351, MATCH(Selection_Hide2!$A136, 'Full set Core Client Indicator'!$A$3:$A$351, 0), MATCH(Selection_Hide2!AA$5, 'Full set Core Client Indicator'!$A$3:$AB$3, 0))=\"\", \"\",  INDEX('Full set Core Client Indicator'!$A$3:$AB$351, MATCH(Selection_Hide2!$A136, 'Full set Core Client Indicator'!$A$3:$A$351, 0), MATCH(Selection_Hide2!AA$5, 'Full set Core Client Indicator'!$A$3:$AB$3, 0))), \"\")","v":""},{"$f":"IF(AA136<>\"\", IF(INDEX('Full set Core Client Indicator'!$A$3:$AB$351, MATCH(Selection_Hide2!$A136, 'Full set Core Client Indicator'!$A$3:$A$351, 0), MATCH(Selection_Hide2!AB$5, 'Full set Core Client Indicator'!$A$3:$AB$3, 0))=\"\", \"\",  INDEX('Full set Core Client Indicator'!$A$3:$AB$351, MATCH(Selection_Hide2!$A136, 'Full set Core Client Indicator'!$A$3:$A$351, 0), MATCH(Selection_Hide2!AB$5, 'Full set Core Client Indicator'!$A$3:$AB$3, 0))), \"\")","v":""}]
[{"$f":"IF(AND(Selection_Hide1!C135<>0, Selection_Hide1!C135<>\"Grand Total\"), Selection_Hide1!C135, \"\")","v":""},{"$f":"IF(A137<>\"\", IF(INDEX('Full set Core Client Indicator'!$A$3:$AB$351, MATCH(Selection_Hide2!$A137, 'Full set Core Client Indicator'!$A$3:$A$351, 0), MATCH(Selection_Hide2!B$5, 'Full set Core Client Indicator'!$A$3:$AB$3, 0))=\"\", \"\",  INDEX('Full set Core Client Indicator'!$A$3:$AB$351, MATCH(Selection_Hide2!$A137, 'Full set Core Client Indicator'!$A$3:$A$351, 0), MATCH(Selection_Hide2!B$5, 'Full set Core Client Indicator'!$A$3:$AB$3, 0))), \"\")","v":""},{"$f":"IF(B137<>\"\", IF(INDEX('Full set Core Client Indicator'!$A$3:$AB$351, MATCH(Selection_Hide2!$A137, 'Full set Core Client Indicator'!$A$3:$A$351, 0), MATCH(Selection_Hide2!C$5, 'Full set Core Client Indicator'!$A$3:$AB$3, 0))=\"\", \"\",  INDEX('Full set Core Client Indicator'!$A$3:$AB$351, MATCH(Selection_Hide2!$A137, 'Full set Core Client Indicator'!$A$3:$A$351, 0), MATCH(Selection_Hide2!C$5, 'Full set Core Client Indicator'!$A$3:$AB$3, 0))), \"\")","v":""},{"$f":"IF(C137<>\"\", IF(INDEX('Full set Core Client Indicator'!$A$3:$AB$351, MATCH(Selection_Hide2!$A137, 'Full set Core Client Indicator'!$A$3:$A$351, 0), MATCH(Selection_Hide2!D$5, 'Full set Core Client Indicator'!$A$3:$AB$3, 0))=\"\", \"\",  INDEX('Full set Core Client Indicator'!$A$3:$AB$351, MATCH(Selection_Hide2!$A137, 'Full set Core Client Indicator'!$A$3:$A$351, 0), MATCH(Selection_Hide2!D$5, 'Full set Core Client Indicator'!$A$3:$AB$3, 0))), \"\")","v":""},{"$f":"IF(D137<>\"\", IF(INDEX('Full set Core Client Indicator'!$A$3:$AB$351, MATCH(Selection_Hide2!$A137, 'Full set Core Client Indicator'!$A$3:$A$351, 0), MATCH(Selection_Hide2!E$5, 'Full set Core Client Indicator'!$A$3:$AB$3, 0))=\"\", \"\",  INDEX('Full set Core Client Indicator'!$A$3:$AB$351, MATCH(Selection_Hide2!$A137, 'Full set Core Client Indicator'!$A$3:$A$351, 0), MATCH(Selection_Hide2!E$5, 'Full set Core Client Indicator'!$A$3:$AB$3, 0))), \"\")","v":""},{"$f":"IF(E137<>\"\", IF(INDEX('Full set Core Client Indicator'!$A$3:$AB$351, MATCH(Selection_Hide2!$A137, 'Full set Core Client Indicator'!$A$3:$A$351, 0), MATCH(Selection_Hide2!F$5, 'Full set Core Client Indicator'!$A$3:$AB$3, 0))=\"\", \"\",  INDEX('Full set Core Client Indicator'!$A$3:$AB$351, MATCH(Selection_Hide2!$A137, 'Full set Core Client Indicator'!$A$3:$A$351, 0), MATCH(Selection_Hide2!F$5, 'Full set Core Client Indicator'!$A$3:$AB$3, 0))), \"\")","v":""},{"$f":"IF(F137<>\"\", IF(INDEX('Full set Core Client Indicator'!$A$3:$AB$351, MATCH(Selection_Hide2!$A137, 'Full set Core Client Indicator'!$A$3:$A$351, 0), MATCH(Selection_Hide2!G$5, 'Full set Core Client Indicator'!$A$3:$AB$3, 0))=\"\", \"\",  INDEX('Full set Core Client Indicator'!$A$3:$AB$351, MATCH(Selection_Hide2!$A137, 'Full set Core Client Indicator'!$A$3:$A$351, 0), MATCH(Selection_Hide2!G$5, 'Full set Core Client Indicator'!$A$3:$AB$3, 0))), \"\")","v":""},{"$f":"IF(G137<>\"\", IF(INDEX('Full set Core Client Indicator'!$A$3:$AB$351, MATCH(Selection_Hide2!$A137, 'Full set Core Client Indicator'!$A$3:$A$351, 0), MATCH(Selection_Hide2!H$5, 'Full set Core Client Indicator'!$A$3:$AB$3, 0))=\"\", \"\",  INDEX('Full set Core Client Indicator'!$A$3:$AB$351, MATCH(Selection_Hide2!$A137, 'Full set Core Client Indicator'!$A$3:$A$351, 0), MATCH(Selection_Hide2!H$5, 'Full set Core Client Indicator'!$A$3:$AB$3, 0))), \"\")","v":""},{"$f":"IF(H137<>\"\", IF(INDEX('Full set Core Client Indicator'!$A$3:$AB$351, MATCH(Selection_Hide2!$A137, 'Full set Core Client Indicator'!$A$3:$A$351, 0), MATCH(Selection_Hide2!I$5, 'Full set Core Client Indicator'!$A$3:$AB$3, 0))=\"\", \"\",  INDEX('Full set Core Client Indicator'!$A$3:$AB$351, MATCH(Selection_Hide2!$A137, 'Full set Core Client Indicator'!$A$3:$A$351, 0), MATCH(Selection_Hide2!I$5, 'Full set Core Client Indicator'!$A$3:$AB$3, 0))), \"\")","v":""},{"$f":"IF(I137<>\"\", IF(INDEX('Full set Core Client Indicator'!$A$3:$AB$351, MATCH(Selection_Hide2!$A137, 'Full set Core Client Indicator'!$A$3:$A$351, 0), MATCH(Selection_Hide2!J$5, 'Full set Core Client Indicator'!$A$3:$AB$3, 0))=\"\", \"\",  INDEX('Full set Core Client Indicator'!$A$3:$AB$351, MATCH(Selection_Hide2!$A137, 'Full set Core Client Indicator'!$A$3:$A$351, 0), MATCH(Selection_Hide2!J$5, 'Full set Core Client Indicator'!$A$3:$AB$3, 0))), \"\")","v":""},{"$f":"IF(J137<>\"\", IF(INDEX('Full set Core Client Indicator'!$A$3:$AB$351, MATCH(Selection_Hide2!$A137, 'Full set Core Client Indicator'!$A$3:$A$351, 0), MATCH(Selection_Hide2!K$5, 'Full set Core Client Indicator'!$A$3:$AB$3, 0))=\"\", \"\",  INDEX('Full set Core Client Indicator'!$A$3:$AB$351, MATCH(Selection_Hide2!$A137, 'Full set Core Client Indicator'!$A$3:$A$351, 0), MATCH(Selection_Hide2!K$5, 'Full set Core Client Indicator'!$A$3:$AB$3, 0))), \"\")","v":""},{"$f":"IF(K137<>\"\", IF(INDEX('Full set Core Client Indicator'!$A$3:$AB$351, MATCH(Selection_Hide2!$A137, 'Full set Core Client Indicator'!$A$3:$A$351, 0), MATCH(Selection_Hide2!L$5, 'Full set Core Client Indicator'!$A$3:$AB$3, 0))=\"\", \"\",  INDEX('Full set Core Client Indicator'!$A$3:$AB$351, MATCH(Selection_Hide2!$A137, 'Full set Core Client Indicator'!$A$3:$A$351, 0), MATCH(Selection_Hide2!L$5, 'Full set Core Client Indicator'!$A$3:$AB$3, 0))), \"\")","v":""},{"$f":"IF(L137<>\"\", IF(INDEX('Full set Core Client Indicator'!$A$3:$AB$351, MATCH(Selection_Hide2!$A137, 'Full set Core Client Indicator'!$A$3:$A$351, 0), MATCH(Selection_Hide2!M$5, 'Full set Core Client Indicator'!$A$3:$AB$3, 0))=\"\", \"\",  INDEX('Full set Core Client Indicator'!$A$3:$AB$351, MATCH(Selection_Hide2!$A137, 'Full set Core Client Indicator'!$A$3:$A$351, 0), MATCH(Selection_Hide2!M$5, 'Full set Core Client Indicator'!$A$3:$AB$3, 0))), \"\")","v":""},{"$f":"IF(M137<>\"\", IF(INDEX('Full set Core Client Indicator'!$A$3:$AB$351, MATCH(Selection_Hide2!$A137, 'Full set Core Client Indicator'!$A$3:$A$351, 0), MATCH(Selection_Hide2!N$5, 'Full set Core Client Indicator'!$A$3:$AB$3, 0))=\"\", \"\",  INDEX('Full set Core Client Indicator'!$A$3:$AB$351, MATCH(Selection_Hide2!$A137, 'Full set Core Client Indicator'!$A$3:$A$351, 0), MATCH(Selection_Hide2!N$5, 'Full set Core Client Indicator'!$A$3:$AB$3, 0))), \"\")","v":""},{"$f":"IF(N137<>\"\", IF(INDEX('Full set Core Client Indicator'!$A$3:$AB$351, MATCH(Selection_Hide2!$A137, 'Full set Core Client Indicator'!$A$3:$A$351, 0), MATCH(Selection_Hide2!O$5, 'Full set Core Client Indicator'!$A$3:$AB$3, 0))=\"\", \"\",  INDEX('Full set Core Client Indicator'!$A$3:$AB$351, MATCH(Selection_Hide2!$A137, 'Full set Core Client Indicator'!$A$3:$A$351, 0), MATCH(Selection_Hide2!O$5, 'Full set Core Client Indicator'!$A$3:$AB$3, 0))), \"\")","v":""},{"$f":"IF(O137<>\"\", IF(INDEX('Full set Core Client Indicator'!$A$3:$AB$351, MATCH(Selection_Hide2!$A137, 'Full set Core Client Indicator'!$A$3:$A$351, 0), MATCH(Selection_Hide2!P$5, 'Full set Core Client Indicator'!$A$3:$AB$3, 0))=\"\", \"\",  INDEX('Full set Core Client Indicator'!$A$3:$AB$351, MATCH(Selection_Hide2!$A137, 'Full set Core Client Indicator'!$A$3:$A$351, 0), MATCH(Selection_Hide2!P$5, 'Full set Core Client Indicator'!$A$3:$AB$3, 0))), \"\")","v":""},{"$f":"IF(P137<>\"\", IF(INDEX('Full set Core Client Indicator'!$A$3:$AB$351, MATCH(Selection_Hide2!$A137, 'Full set Core Client Indicator'!$A$3:$A$351, 0), MATCH(Selection_Hide2!Q$5, 'Full set Core Client Indicator'!$A$3:$AB$3, 0))=\"\", \"\",  INDEX('Full set Core Client Indicator'!$A$3:$AB$351, MATCH(Selection_Hide2!$A137, 'Full set Core Client Indicator'!$A$3:$A$351, 0), MATCH(Selection_Hide2!Q$5, 'Full set Core Client Indicator'!$A$3:$AB$3, 0))), \"\")","v":""},{"$f":"IF(Q137<>\"\", IF(INDEX('Full set Core Client Indicator'!$A$3:$AB$351, MATCH(Selection_Hide2!$A137, 'Full set Core Client Indicator'!$A$3:$A$351, 0), MATCH(Selection_Hide2!R$5, 'Full set Core Client Indicator'!$A$3:$AB$3, 0))=\"\", \"\",  INDEX('Full set Core Client Indicator'!$A$3:$AB$351, MATCH(Selection_Hide2!$A137, 'Full set Core Client Indicator'!$A$3:$A$351, 0), MATCH(Selection_Hide2!R$5, 'Full set Core Client Indicator'!$A$3:$AB$3, 0))), \"\")","v":""},{"$f":"IF(R137<>\"\", IF(INDEX('Full set Core Client Indicator'!$A$3:$AB$351, MATCH(Selection_Hide2!$A137, 'Full set Core Client Indicator'!$A$3:$A$351, 0), MATCH(Selection_Hide2!S$5, 'Full set Core Client Indicator'!$A$3:$AB$3, 0))=\"\", \"\",  INDEX('Full set Core Client Indicator'!$A$3:$AB$351, MATCH(Selection_Hide2!$A137, 'Full set Core Client Indicator'!$A$3:$A$351, 0), MATCH(Selection_Hide2!S$5, 'Full set Core Client Indicator'!$A$3:$AB$3, 0))), \"\")","v":""},{"$f":"IF(S137<>\"\", IF(INDEX('Full set Core Client Indicator'!$A$3:$AB$351, MATCH(Selection_Hide2!$A137, 'Full set Core Client Indicator'!$A$3:$A$351, 0), MATCH(Selection_Hide2!T$5, 'Full set Core Client Indicator'!$A$3:$AB$3, 0))=\"\", \"\",  INDEX('Full set Core Client Indicator'!$A$3:$AB$351, MATCH(Selection_Hide2!$A137, 'Full set Core Client Indicator'!$A$3:$A$351, 0), MATCH(Selection_Hide2!T$5, 'Full set Core Client Indicator'!$A$3:$AB$3, 0))), \"\")","v":""},{"$f":"IF(T137<>\"\", IF(INDEX('Full set Core Client Indicator'!$A$3:$AB$351, MATCH(Selection_Hide2!$A137, 'Full set Core Client Indicator'!$A$3:$A$351, 0), MATCH(Selection_Hide2!U$5, 'Full set Core Client Indicator'!$A$3:$AB$3, 0))=\"\", \"\",  INDEX('Full set Core Client Indicator'!$A$3:$AB$351, MATCH(Selection_Hide2!$A137, 'Full set Core Client Indicator'!$A$3:$A$351, 0), MATCH(Selection_Hide2!U$5, 'Full set Core Client Indicator'!$A$3:$AB$3, 0))), \"\")","v":""},{"$f":"IF(U137<>\"\", IF(INDEX('Full set Core Client Indicator'!$A$3:$AB$351, MATCH(Selection_Hide2!$A137, 'Full set Core Client Indicator'!$A$3:$A$351, 0), MATCH(Selection_Hide2!V$5, 'Full set Core Client Indicator'!$A$3:$AB$3, 0))=\"\", \"\",  INDEX('Full set Core Client Indicator'!$A$3:$AB$351, MATCH(Selection_Hide2!$A137, 'Full set Core Client Indicator'!$A$3:$A$351, 0), MATCH(Selection_Hide2!V$5, 'Full set Core Client Indicator'!$A$3:$AB$3, 0))), \"\")","v":""},{"$f":"IF(V137<>\"\", IF(INDEX('Full set Core Client Indicator'!$A$3:$AB$351, MATCH(Selection_Hide2!$A137, 'Full set Core Client Indicator'!$A$3:$A$351, 0), MATCH(Selection_Hide2!W$5, 'Full set Core Client Indicator'!$A$3:$AB$3, 0))=\"\", \"\",  INDEX('Full set Core Client Indicator'!$A$3:$AB$351, MATCH(Selection_Hide2!$A137, 'Full set Core Client Indicator'!$A$3:$A$351, 0), MATCH(Selection_Hide2!W$5, 'Full set Core Client Indicator'!$A$3:$AB$3, 0))), \"\")","v":""},{"$f":"IF(W137<>\"\", IF(INDEX('Full set Core Client Indicator'!$A$3:$AB$351, MATCH(Selection_Hide2!$A137, 'Full set Core Client Indicator'!$A$3:$A$351, 0), MATCH(Selection_Hide2!X$5, 'Full set Core Client Indicator'!$A$3:$AB$3, 0))=\"\", \"\",  INDEX('Full set Core Client Indicator'!$A$3:$AB$351, MATCH(Selection_Hide2!$A137, 'Full set Core Client Indicator'!$A$3:$A$351, 0), MATCH(Selection_Hide2!X$5, 'Full set Core Client Indicator'!$A$3:$AB$3, 0))), \"\")","v":""},{"$f":"IF(X137<>\"\", IF(INDEX('Full set Core Client Indicator'!$A$3:$AB$351, MATCH(Selection_Hide2!$A137, 'Full set Core Client Indicator'!$A$3:$A$351, 0), MATCH(Selection_Hide2!Y$5, 'Full set Core Client Indicator'!$A$3:$AB$3, 0))=\"\", \"\",  INDEX('Full set Core Client Indicator'!$A$3:$AB$351, MATCH(Selection_Hide2!$A137, 'Full set Core Client Indicator'!$A$3:$A$351, 0), MATCH(Selection_Hide2!Y$5, 'Full set Core Client Indicator'!$A$3:$AB$3, 0))), \"\")","v":""},{"$f":"IF(Y137<>\"\", IF(INDEX('Full set Core Client Indicator'!$A$3:$AB$351, MATCH(Selection_Hide2!$A137, 'Full set Core Client Indicator'!$A$3:$A$351, 0), MATCH(Selection_Hide2!Z$5, 'Full set Core Client Indicator'!$A$3:$AB$3, 0))=\"\", \"\",  INDEX('Full set Core Client Indicator'!$A$3:$AB$351, MATCH(Selection_Hide2!$A137, 'Full set Core Client Indicator'!$A$3:$A$351, 0), MATCH(Selection_Hide2!Z$5, 'Full set Core Client Indicator'!$A$3:$AB$3, 0))), \"\")","v":""},{"$f":"IF(Z137<>\"\", IF(INDEX('Full set Core Client Indicator'!$A$3:$AB$351, MATCH(Selection_Hide2!$A137, 'Full set Core Client Indicator'!$A$3:$A$351, 0), MATCH(Selection_Hide2!AA$5, 'Full set Core Client Indicator'!$A$3:$AB$3, 0))=\"\", \"\",  INDEX('Full set Core Client Indicator'!$A$3:$AB$351, MATCH(Selection_Hide2!$A137, 'Full set Core Client Indicator'!$A$3:$A$351, 0), MATCH(Selection_Hide2!AA$5, 'Full set Core Client Indicator'!$A$3:$AB$3, 0))), \"\")","v":""},{"$f":"IF(AA137<>\"\", IF(INDEX('Full set Core Client Indicator'!$A$3:$AB$351, MATCH(Selection_Hide2!$A137, 'Full set Core Client Indicator'!$A$3:$A$351, 0), MATCH(Selection_Hide2!AB$5, 'Full set Core Client Indicator'!$A$3:$AB$3, 0))=\"\", \"\",  INDEX('Full set Core Client Indicator'!$A$3:$AB$351, MATCH(Selection_Hide2!$A137, 'Full set Core Client Indicator'!$A$3:$A$351, 0), MATCH(Selection_Hide2!AB$5, 'Full set Core Client Indicator'!$A$3:$AB$3, 0))), \"\")","v":""}]
[{"$f":"IF(AND(Selection_Hide1!C136<>0, Selection_Hide1!C136<>\"Grand Total\"), Selection_Hide1!C136, \"\")","v":""},{"$f":"IF(A138<>\"\", IF(INDEX('Full set Core Client Indicator'!$A$3:$AB$351, MATCH(Selection_Hide2!$A138, 'Full set Core Client Indicator'!$A$3:$A$351, 0), MATCH(Selection_Hide2!B$5, 'Full set Core Client Indicator'!$A$3:$AB$3, 0))=\"\", \"\",  INDEX('Full set Core Client Indicator'!$A$3:$AB$351, MATCH(Selection_Hide2!$A138, 'Full set Core Client Indicator'!$A$3:$A$351, 0), MATCH(Selection_Hide2!B$5, 'Full set Core Client Indicator'!$A$3:$AB$3, 0))), \"\")","v":""},{"$f":"IF(B138<>\"\", IF(INDEX('Full set Core Client Indicator'!$A$3:$AB$351, MATCH(Selection_Hide2!$A138, 'Full set Core Client Indicator'!$A$3:$A$351, 0), MATCH(Selection_Hide2!C$5, 'Full set Core Client Indicator'!$A$3:$AB$3, 0))=\"\", \"\",  INDEX('Full set Core Client Indicator'!$A$3:$AB$351, MATCH(Selection_Hide2!$A138, 'Full set Core Client Indicator'!$A$3:$A$351, 0), MATCH(Selection_Hide2!C$5, 'Full set Core Client Indicator'!$A$3:$AB$3, 0))), \"\")","v":""},{"$f":"IF(C138<>\"\", IF(INDEX('Full set Core Client Indicator'!$A$3:$AB$351, MATCH(Selection_Hide2!$A138, 'Full set Core Client Indicator'!$A$3:$A$351, 0), MATCH(Selection_Hide2!D$5, 'Full set Core Client Indicator'!$A$3:$AB$3, 0))=\"\", \"\",  INDEX('Full set Core Client Indicator'!$A$3:$AB$351, MATCH(Selection_Hide2!$A138, 'Full set Core Client Indicator'!$A$3:$A$351, 0), MATCH(Selection_Hide2!D$5, 'Full set Core Client Indicator'!$A$3:$AB$3, 0))), \"\")","v":""},{"$f":"IF(D138<>\"\", IF(INDEX('Full set Core Client Indicator'!$A$3:$AB$351, MATCH(Selection_Hide2!$A138, 'Full set Core Client Indicator'!$A$3:$A$351, 0), MATCH(Selection_Hide2!E$5, 'Full set Core Client Indicator'!$A$3:$AB$3, 0))=\"\", \"\",  INDEX('Full set Core Client Indicator'!$A$3:$AB$351, MATCH(Selection_Hide2!$A138, 'Full set Core Client Indicator'!$A$3:$A$351, 0), MATCH(Selection_Hide2!E$5, 'Full set Core Client Indicator'!$A$3:$AB$3, 0))), \"\")","v":""},{"$f":"IF(E138<>\"\", IF(INDEX('Full set Core Client Indicator'!$A$3:$AB$351, MATCH(Selection_Hide2!$A138, 'Full set Core Client Indicator'!$A$3:$A$351, 0), MATCH(Selection_Hide2!F$5, 'Full set Core Client Indicator'!$A$3:$AB$3, 0))=\"\", \"\",  INDEX('Full set Core Client Indicator'!$A$3:$AB$351, MATCH(Selection_Hide2!$A138, 'Full set Core Client Indicator'!$A$3:$A$351, 0), MATCH(Selection_Hide2!F$5, 'Full set Core Client Indicator'!$A$3:$AB$3, 0))), \"\")","v":""},{"$f":"IF(F138<>\"\", IF(INDEX('Full set Core Client Indicator'!$A$3:$AB$351, MATCH(Selection_Hide2!$A138, 'Full set Core Client Indicator'!$A$3:$A$351, 0), MATCH(Selection_Hide2!G$5, 'Full set Core Client Indicator'!$A$3:$AB$3, 0))=\"\", \"\",  INDEX('Full set Core Client Indicator'!$A$3:$AB$351, MATCH(Selection_Hide2!$A138, 'Full set Core Client Indicator'!$A$3:$A$351, 0), MATCH(Selection_Hide2!G$5, 'Full set Core Client Indicator'!$A$3:$AB$3, 0))), \"\")","v":""},{"$f":"IF(G138<>\"\", IF(INDEX('Full set Core Client Indicator'!$A$3:$AB$351, MATCH(Selection_Hide2!$A138, 'Full set Core Client Indicator'!$A$3:$A$351, 0), MATCH(Selection_Hide2!H$5, 'Full set Core Client Indicator'!$A$3:$AB$3, 0))=\"\", \"\",  INDEX('Full set Core Client Indicator'!$A$3:$AB$351, MATCH(Selection_Hide2!$A138, 'Full set Core Client Indicator'!$A$3:$A$351, 0), MATCH(Selection_Hide2!H$5, 'Full set Core Client Indicator'!$A$3:$AB$3, 0))), \"\")","v":""},{"$f":"IF(H138<>\"\", IF(INDEX('Full set Core Client Indicator'!$A$3:$AB$351, MATCH(Selection_Hide2!$A138, 'Full set Core Client Indicator'!$A$3:$A$351, 0), MATCH(Selection_Hide2!I$5, 'Full set Core Client Indicator'!$A$3:$AB$3, 0))=\"\", \"\",  INDEX('Full set Core Client Indicator'!$A$3:$AB$351, MATCH(Selection_Hide2!$A138, 'Full set Core Client Indicator'!$A$3:$A$351, 0), MATCH(Selection_Hide2!I$5, 'Full set Core Client Indicator'!$A$3:$AB$3, 0))), \"\")","v":""},{"$f":"IF(I138<>\"\", IF(INDEX('Full set Core Client Indicator'!$A$3:$AB$351, MATCH(Selection_Hide2!$A138, 'Full set Core Client Indicator'!$A$3:$A$351, 0), MATCH(Selection_Hide2!J$5, 'Full set Core Client Indicator'!$A$3:$AB$3, 0))=\"\", \"\",  INDEX('Full set Core Client Indicator'!$A$3:$AB$351, MATCH(Selection_Hide2!$A138, 'Full set Core Client Indicator'!$A$3:$A$351, 0), MATCH(Selection_Hide2!J$5, 'Full set Core Client Indicator'!$A$3:$AB$3, 0))), \"\")","v":""},{"$f":"IF(J138<>\"\", IF(INDEX('Full set Core Client Indicator'!$A$3:$AB$351, MATCH(Selection_Hide2!$A138, 'Full set Core Client Indicator'!$A$3:$A$351, 0), MATCH(Selection_Hide2!K$5, 'Full set Core Client Indicator'!$A$3:$AB$3, 0))=\"\", \"\",  INDEX('Full set Core Client Indicator'!$A$3:$AB$351, MATCH(Selection_Hide2!$A138, 'Full set Core Client Indicator'!$A$3:$A$351, 0), MATCH(Selection_Hide2!K$5, 'Full set Core Client Indicator'!$A$3:$AB$3, 0))), \"\")","v":""},{"$f":"IF(K138<>\"\", IF(INDEX('Full set Core Client Indicator'!$A$3:$AB$351, MATCH(Selection_Hide2!$A138, 'Full set Core Client Indicator'!$A$3:$A$351, 0), MATCH(Selection_Hide2!L$5, 'Full set Core Client Indicator'!$A$3:$AB$3, 0))=\"\", \"\",  INDEX('Full set Core Client Indicator'!$A$3:$AB$351, MATCH(Selection_Hide2!$A138, 'Full set Core Client Indicator'!$A$3:$A$351, 0), MATCH(Selection_Hide2!L$5, 'Full set Core Client Indicator'!$A$3:$AB$3, 0))), \"\")","v":""},{"$f":"IF(L138<>\"\", IF(INDEX('Full set Core Client Indicator'!$A$3:$AB$351, MATCH(Selection_Hide2!$A138, 'Full set Core Client Indicator'!$A$3:$A$351, 0), MATCH(Selection_Hide2!M$5, 'Full set Core Client Indicator'!$A$3:$AB$3, 0))=\"\", \"\",  INDEX('Full set Core Client Indicator'!$A$3:$AB$351, MATCH(Selection_Hide2!$A138, 'Full set Core Client Indicator'!$A$3:$A$351, 0), MATCH(Selection_Hide2!M$5, 'Full set Core Client Indicator'!$A$3:$AB$3, 0))), \"\")","v":""},{"$f":"IF(M138<>\"\", IF(INDEX('Full set Core Client Indicator'!$A$3:$AB$351, MATCH(Selection_Hide2!$A138, 'Full set Core Client Indicator'!$A$3:$A$351, 0), MATCH(Selection_Hide2!N$5, 'Full set Core Client Indicator'!$A$3:$AB$3, 0))=\"\", \"\",  INDEX('Full set Core Client Indicator'!$A$3:$AB$351, MATCH(Selection_Hide2!$A138, 'Full set Core Client Indicator'!$A$3:$A$351, 0), MATCH(Selection_Hide2!N$5, 'Full set Core Client Indicator'!$A$3:$AB$3, 0))), \"\")","v":""},{"$f":"IF(N138<>\"\", IF(INDEX('Full set Core Client Indicator'!$A$3:$AB$351, MATCH(Selection_Hide2!$A138, 'Full set Core Client Indicator'!$A$3:$A$351, 0), MATCH(Selection_Hide2!O$5, 'Full set Core Client Indicator'!$A$3:$AB$3, 0))=\"\", \"\",  INDEX('Full set Core Client Indicator'!$A$3:$AB$351, MATCH(Selection_Hide2!$A138, 'Full set Core Client Indicator'!$A$3:$A$351, 0), MATCH(Selection_Hide2!O$5, 'Full set Core Client Indicator'!$A$3:$AB$3, 0))), \"\")","v":""},{"$f":"IF(O138<>\"\", IF(INDEX('Full set Core Client Indicator'!$A$3:$AB$351, MATCH(Selection_Hide2!$A138, 'Full set Core Client Indicator'!$A$3:$A$351, 0), MATCH(Selection_Hide2!P$5, 'Full set Core Client Indicator'!$A$3:$AB$3, 0))=\"\", \"\",  INDEX('Full set Core Client Indicator'!$A$3:$AB$351, MATCH(Selection_Hide2!$A138, 'Full set Core Client Indicator'!$A$3:$A$351, 0), MATCH(Selection_Hide2!P$5, 'Full set Core Client Indicator'!$A$3:$AB$3, 0))), \"\")","v":""},{"$f":"IF(P138<>\"\", IF(INDEX('Full set Core Client Indicator'!$A$3:$AB$351, MATCH(Selection_Hide2!$A138, 'Full set Core Client Indicator'!$A$3:$A$351, 0), MATCH(Selection_Hide2!Q$5, 'Full set Core Client Indicator'!$A$3:$AB$3, 0))=\"\", \"\",  INDEX('Full set Core Client Indicator'!$A$3:$AB$351, MATCH(Selection_Hide2!$A138, 'Full set Core Client Indicator'!$A$3:$A$351, 0), MATCH(Selection_Hide2!Q$5, 'Full set Core Client Indicator'!$A$3:$AB$3, 0))), \"\")","v":""},{"$f":"IF(Q138<>\"\", IF(INDEX('Full set Core Client Indicator'!$A$3:$AB$351, MATCH(Selection_Hide2!$A138, 'Full set Core Client Indicator'!$A$3:$A$351, 0), MATCH(Selection_Hide2!R$5, 'Full set Core Client Indicator'!$A$3:$AB$3, 0))=\"\", \"\",  INDEX('Full set Core Client Indicator'!$A$3:$AB$351, MATCH(Selection_Hide2!$A138, 'Full set Core Client Indicator'!$A$3:$A$351, 0), MATCH(Selection_Hide2!R$5, 'Full set Core Client Indicator'!$A$3:$AB$3, 0))), \"\")","v":""},{"$f":"IF(R138<>\"\", IF(INDEX('Full set Core Client Indicator'!$A$3:$AB$351, MATCH(Selection_Hide2!$A138, 'Full set Core Client Indicator'!$A$3:$A$351, 0), MATCH(Selection_Hide2!S$5, 'Full set Core Client Indicator'!$A$3:$AB$3, 0))=\"\", \"\",  INDEX('Full set Core Client Indicator'!$A$3:$AB$351, MATCH(Selection_Hide2!$A138, 'Full set Core Client Indicator'!$A$3:$A$351, 0), MATCH(Selection_Hide2!S$5, 'Full set Core Client Indicator'!$A$3:$AB$3, 0))), \"\")","v":""},{"$f":"IF(S138<>\"\", IF(INDEX('Full set Core Client Indicator'!$A$3:$AB$351, MATCH(Selection_Hide2!$A138, 'Full set Core Client Indicator'!$A$3:$A$351, 0), MATCH(Selection_Hide2!T$5, 'Full set Core Client Indicator'!$A$3:$AB$3, 0))=\"\", \"\",  INDEX('Full set Core Client Indicator'!$A$3:$AB$351, MATCH(Selection_Hide2!$A138, 'Full set Core Client Indicator'!$A$3:$A$351, 0), MATCH(Selection_Hide2!T$5, 'Full set Core Client Indicator'!$A$3:$AB$3, 0))), \"\")","v":""},{"$f":"IF(T138<>\"\", IF(INDEX('Full set Core Client Indicator'!$A$3:$AB$351, MATCH(Selection_Hide2!$A138, 'Full set Core Client Indicator'!$A$3:$A$351, 0), MATCH(Selection_Hide2!U$5, 'Full set Core Client Indicator'!$A$3:$AB$3, 0))=\"\", \"\",  INDEX('Full set Core Client Indicator'!$A$3:$AB$351, MATCH(Selection_Hide2!$A138, 'Full set Core Client Indicator'!$A$3:$A$351, 0), MATCH(Selection_Hide2!U$5, 'Full set Core Client Indicator'!$A$3:$AB$3, 0))), \"\")","v":""},{"$f":"IF(U138<>\"\", IF(INDEX('Full set Core Client Indicator'!$A$3:$AB$351, MATCH(Selection_Hide2!$A138, 'Full set Core Client Indicator'!$A$3:$A$351, 0), MATCH(Selection_Hide2!V$5, 'Full set Core Client Indicator'!$A$3:$AB$3, 0))=\"\", \"\",  INDEX('Full set Core Client Indicator'!$A$3:$AB$351, MATCH(Selection_Hide2!$A138, 'Full set Core Client Indicator'!$A$3:$A$351, 0), MATCH(Selection_Hide2!V$5, 'Full set Core Client Indicator'!$A$3:$AB$3, 0))), \"\")","v":""},{"$f":"IF(V138<>\"\", IF(INDEX('Full set Core Client Indicator'!$A$3:$AB$351, MATCH(Selection_Hide2!$A138, 'Full set Core Client Indicator'!$A$3:$A$351, 0), MATCH(Selection_Hide2!W$5, 'Full set Core Client Indicator'!$A$3:$AB$3, 0))=\"\", \"\",  INDEX('Full set Core Client Indicator'!$A$3:$AB$351, MATCH(Selection_Hide2!$A138, 'Full set Core Client Indicator'!$A$3:$A$351, 0), MATCH(Selection_Hide2!W$5, 'Full set Core Client Indicator'!$A$3:$AB$3, 0))), \"\")","v":""},{"$f":"IF(W138<>\"\", IF(INDEX('Full set Core Client Indicator'!$A$3:$AB$351, MATCH(Selection_Hide2!$A138, 'Full set Core Client Indicator'!$A$3:$A$351, 0), MATCH(Selection_Hide2!X$5, 'Full set Core Client Indicator'!$A$3:$AB$3, 0))=\"\", \"\",  INDEX('Full set Core Client Indicator'!$A$3:$AB$351, MATCH(Selection_Hide2!$A138, 'Full set Core Client Indicator'!$A$3:$A$351, 0), MATCH(Selection_Hide2!X$5, 'Full set Core Client Indicator'!$A$3:$AB$3, 0))), \"\")","v":""},{"$f":"IF(X138<>\"\", IF(INDEX('Full set Core Client Indicator'!$A$3:$AB$351, MATCH(Selection_Hide2!$A138, 'Full set Core Client Indicator'!$A$3:$A$351, 0), MATCH(Selection_Hide2!Y$5, 'Full set Core Client Indicator'!$A$3:$AB$3, 0))=\"\", \"\",  INDEX('Full set Core Client Indicator'!$A$3:$AB$351, MATCH(Selection_Hide2!$A138, 'Full set Core Client Indicator'!$A$3:$A$351, 0), MATCH(Selection_Hide2!Y$5, 'Full set Core Client Indicator'!$A$3:$AB$3, 0))), \"\")","v":""},{"$f":"IF(Y138<>\"\", IF(INDEX('Full set Core Client Indicator'!$A$3:$AB$351, MATCH(Selection_Hide2!$A138, 'Full set Core Client Indicator'!$A$3:$A$351, 0), MATCH(Selection_Hide2!Z$5, 'Full set Core Client Indicator'!$A$3:$AB$3, 0))=\"\", \"\",  INDEX('Full set Core Client Indicator'!$A$3:$AB$351, MATCH(Selection_Hide2!$A138, 'Full set Core Client Indicator'!$A$3:$A$351, 0), MATCH(Selection_Hide2!Z$5, 'Full set Core Client Indicator'!$A$3:$AB$3, 0))), \"\")","v":""},{"$f":"IF(Z138<>\"\", IF(INDEX('Full set Core Client Indicator'!$A$3:$AB$351, MATCH(Selection_Hide2!$A138, 'Full set Core Client Indicator'!$A$3:$A$351, 0), MATCH(Selection_Hide2!AA$5, 'Full set Core Client Indicator'!$A$3:$AB$3, 0))=\"\", \"\",  INDEX('Full set Core Client Indicator'!$A$3:$AB$351, MATCH(Selection_Hide2!$A138, 'Full set Core Client Indicator'!$A$3:$A$351, 0), MATCH(Selection_Hide2!AA$5, 'Full set Core Client Indicator'!$A$3:$AB$3, 0))), \"\")","v":""},{"$f":"IF(AA138<>\"\", IF(INDEX('Full set Core Client Indicator'!$A$3:$AB$351, MATCH(Selection_Hide2!$A138, 'Full set Core Client Indicator'!$A$3:$A$351, 0), MATCH(Selection_Hide2!AB$5, 'Full set Core Client Indicator'!$A$3:$AB$3, 0))=\"\", \"\",  INDEX('Full set Core Client Indicator'!$A$3:$AB$351, MATCH(Selection_Hide2!$A138, 'Full set Core Client Indicator'!$A$3:$A$351, 0), MATCH(Selection_Hide2!AB$5, 'Full set Core Client Indicator'!$A$3:$AB$3, 0))), \"\")","v":""}]
[{"$f":"IF(AND(Selection_Hide1!C137<>0, Selection_Hide1!C137<>\"Grand Total\"), Selection_Hide1!C137, \"\")","v":""},{"$f":"IF(A139<>\"\", IF(INDEX('Full set Core Client Indicator'!$A$3:$AB$351, MATCH(Selection_Hide2!$A139, 'Full set Core Client Indicator'!$A$3:$A$351, 0), MATCH(Selection_Hide2!B$5, 'Full set Core Client Indicator'!$A$3:$AB$3, 0))=\"\", \"\",  INDEX('Full set Core Client Indicator'!$A$3:$AB$351, MATCH(Selection_Hide2!$A139, 'Full set Core Client Indicator'!$A$3:$A$351, 0), MATCH(Selection_Hide2!B$5, 'Full set Core Client Indicator'!$A$3:$AB$3, 0))), \"\")","v":""},{"$f":"IF(B139<>\"\", IF(INDEX('Full set Core Client Indicator'!$A$3:$AB$351, MATCH(Selection_Hide2!$A139, 'Full set Core Client Indicator'!$A$3:$A$351, 0), MATCH(Selection_Hide2!C$5, 'Full set Core Client Indicator'!$A$3:$AB$3, 0))=\"\", \"\",  INDEX('Full set Core Client Indicator'!$A$3:$AB$351, MATCH(Selection_Hide2!$A139, 'Full set Core Client Indicator'!$A$3:$A$351, 0), MATCH(Selection_Hide2!C$5, 'Full set Core Client Indicator'!$A$3:$AB$3, 0))), \"\")","v":""},{"$f":"IF(C139<>\"\", IF(INDEX('Full set Core Client Indicator'!$A$3:$AB$351, MATCH(Selection_Hide2!$A139, 'Full set Core Client Indicator'!$A$3:$A$351, 0), MATCH(Selection_Hide2!D$5, 'Full set Core Client Indicator'!$A$3:$AB$3, 0))=\"\", \"\",  INDEX('Full set Core Client Indicator'!$A$3:$AB$351, MATCH(Selection_Hide2!$A139, 'Full set Core Client Indicator'!$A$3:$A$351, 0), MATCH(Selection_Hide2!D$5, 'Full set Core Client Indicator'!$A$3:$AB$3, 0))), \"\")","v":""},{"$f":"IF(D139<>\"\", IF(INDEX('Full set Core Client Indicator'!$A$3:$AB$351, MATCH(Selection_Hide2!$A139, 'Full set Core Client Indicator'!$A$3:$A$351, 0), MATCH(Selection_Hide2!E$5, 'Full set Core Client Indicator'!$A$3:$AB$3, 0))=\"\", \"\",  INDEX('Full set Core Client Indicator'!$A$3:$AB$351, MATCH(Selection_Hide2!$A139, 'Full set Core Client Indicator'!$A$3:$A$351, 0), MATCH(Selection_Hide2!E$5, 'Full set Core Client Indicator'!$A$3:$AB$3, 0))), \"\")","v":""},{"$f":"IF(E139<>\"\", IF(INDEX('Full set Core Client Indicator'!$A$3:$AB$351, MATCH(Selection_Hide2!$A139, 'Full set Core Client Indicator'!$A$3:$A$351, 0), MATCH(Selection_Hide2!F$5, 'Full set Core Client Indicator'!$A$3:$AB$3, 0))=\"\", \"\",  INDEX('Full set Core Client Indicator'!$A$3:$AB$351, MATCH(Selection_Hide2!$A139, 'Full set Core Client Indicator'!$A$3:$A$351, 0), MATCH(Selection_Hide2!F$5, 'Full set Core Client Indicator'!$A$3:$AB$3, 0))), \"\")","v":""},{"$f":"IF(F139<>\"\", IF(INDEX('Full set Core Client Indicator'!$A$3:$AB$351, MATCH(Selection_Hide2!$A139, 'Full set Core Client Indicator'!$A$3:$A$351, 0), MATCH(Selection_Hide2!G$5, 'Full set Core Client Indicator'!$A$3:$AB$3, 0))=\"\", \"\",  INDEX('Full set Core Client Indicator'!$A$3:$AB$351, MATCH(Selection_Hide2!$A139, 'Full set Core Client Indicator'!$A$3:$A$351, 0), MATCH(Selection_Hide2!G$5, 'Full set Core Client Indicator'!$A$3:$AB$3, 0))), \"\")","v":""},{"$f":"IF(G139<>\"\", IF(INDEX('Full set Core Client Indicator'!$A$3:$AB$351, MATCH(Selection_Hide2!$A139, 'Full set Core Client Indicator'!$A$3:$A$351, 0), MATCH(Selection_Hide2!H$5, 'Full set Core Client Indicator'!$A$3:$AB$3, 0))=\"\", \"\",  INDEX('Full set Core Client Indicator'!$A$3:$AB$351, MATCH(Selection_Hide2!$A139, 'Full set Core Client Indicator'!$A$3:$A$351, 0), MATCH(Selection_Hide2!H$5, 'Full set Core Client Indicator'!$A$3:$AB$3, 0))), \"\")","v":""},{"$f":"IF(H139<>\"\", IF(INDEX('Full set Core Client Indicator'!$A$3:$AB$351, MATCH(Selection_Hide2!$A139, 'Full set Core Client Indicator'!$A$3:$A$351, 0), MATCH(Selection_Hide2!I$5, 'Full set Core Client Indicator'!$A$3:$AB$3, 0))=\"\", \"\",  INDEX('Full set Core Client Indicator'!$A$3:$AB$351, MATCH(Selection_Hide2!$A139, 'Full set Core Client Indicator'!$A$3:$A$351, 0), MATCH(Selection_Hide2!I$5, 'Full set Core Client Indicator'!$A$3:$AB$3, 0))), \"\")","v":""},{"$f":"IF(I139<>\"\", IF(INDEX('Full set Core Client Indicator'!$A$3:$AB$351, MATCH(Selection_Hide2!$A139, 'Full set Core Client Indicator'!$A$3:$A$351, 0), MATCH(Selection_Hide2!J$5, 'Full set Core Client Indicator'!$A$3:$AB$3, 0))=\"\", \"\",  INDEX('Full set Core Client Indicator'!$A$3:$AB$351, MATCH(Selection_Hide2!$A139, 'Full set Core Client Indicator'!$A$3:$A$351, 0), MATCH(Selection_Hide2!J$5, 'Full set Core Client Indicator'!$A$3:$AB$3, 0))), \"\")","v":""},{"$f":"IF(J139<>\"\", IF(INDEX('Full set Core Client Indicator'!$A$3:$AB$351, MATCH(Selection_Hide2!$A139, 'Full set Core Client Indicator'!$A$3:$A$351, 0), MATCH(Selection_Hide2!K$5, 'Full set Core Client Indicator'!$A$3:$AB$3, 0))=\"\", \"\",  INDEX('Full set Core Client Indicator'!$A$3:$AB$351, MATCH(Selection_Hide2!$A139, 'Full set Core Client Indicator'!$A$3:$A$351, 0), MATCH(Selection_Hide2!K$5, 'Full set Core Client Indicator'!$A$3:$AB$3, 0))), \"\")","v":""},{"$f":"IF(K139<>\"\", IF(INDEX('Full set Core Client Indicator'!$A$3:$AB$351, MATCH(Selection_Hide2!$A139, 'Full set Core Client Indicator'!$A$3:$A$351, 0), MATCH(Selection_Hide2!L$5, 'Full set Core Client Indicator'!$A$3:$AB$3, 0))=\"\", \"\",  INDEX('Full set Core Client Indicator'!$A$3:$AB$351, MATCH(Selection_Hide2!$A139, 'Full set Core Client Indicator'!$A$3:$A$351, 0), MATCH(Selection_Hide2!L$5, 'Full set Core Client Indicator'!$A$3:$AB$3, 0))), \"\")","v":""},{"$f":"IF(L139<>\"\", IF(INDEX('Full set Core Client Indicator'!$A$3:$AB$351, MATCH(Selection_Hide2!$A139, 'Full set Core Client Indicator'!$A$3:$A$351, 0), MATCH(Selection_Hide2!M$5, 'Full set Core Client Indicator'!$A$3:$AB$3, 0))=\"\", \"\",  INDEX('Full set Core Client Indicator'!$A$3:$AB$351, MATCH(Selection_Hide2!$A139, 'Full set Core Client Indicator'!$A$3:$A$351, 0), MATCH(Selection_Hide2!M$5, 'Full set Core Client Indicator'!$A$3:$AB$3, 0))), \"\")","v":""},{"$f":"IF(M139<>\"\", IF(INDEX('Full set Core Client Indicator'!$A$3:$AB$351, MATCH(Selection_Hide2!$A139, 'Full set Core Client Indicator'!$A$3:$A$351, 0), MATCH(Selection_Hide2!N$5, 'Full set Core Client Indicator'!$A$3:$AB$3, 0))=\"\", \"\",  INDEX('Full set Core Client Indicator'!$A$3:$AB$351, MATCH(Selection_Hide2!$A139, 'Full set Core Client Indicator'!$A$3:$A$351, 0), MATCH(Selection_Hide2!N$5, 'Full set Core Client Indicator'!$A$3:$AB$3, 0))), \"\")","v":""},{"$f":"IF(N139<>\"\", IF(INDEX('Full set Core Client Indicator'!$A$3:$AB$351, MATCH(Selection_Hide2!$A139, 'Full set Core Client Indicator'!$A$3:$A$351, 0), MATCH(Selection_Hide2!O$5, 'Full set Core Client Indicator'!$A$3:$AB$3, 0))=\"\", \"\",  INDEX('Full set Core Client Indicator'!$A$3:$AB$351, MATCH(Selection_Hide2!$A139, 'Full set Core Client Indicator'!$A$3:$A$351, 0), MATCH(Selection_Hide2!O$5, 'Full set Core Client Indicator'!$A$3:$AB$3, 0))), \"\")","v":""},{"$f":"IF(O139<>\"\", IF(INDEX('Full set Core Client Indicator'!$A$3:$AB$351, MATCH(Selection_Hide2!$A139, 'Full set Core Client Indicator'!$A$3:$A$351, 0), MATCH(Selection_Hide2!P$5, 'Full set Core Client Indicator'!$A$3:$AB$3, 0))=\"\", \"\",  INDEX('Full set Core Client Indicator'!$A$3:$AB$351, MATCH(Selection_Hide2!$A139, 'Full set Core Client Indicator'!$A$3:$A$351, 0), MATCH(Selection_Hide2!P$5, 'Full set Core Client Indicator'!$A$3:$AB$3, 0))), \"\")","v":""},{"$f":"IF(P139<>\"\", IF(INDEX('Full set Core Client Indicator'!$A$3:$AB$351, MATCH(Selection_Hide2!$A139, 'Full set Core Client Indicator'!$A$3:$A$351, 0), MATCH(Selection_Hide2!Q$5, 'Full set Core Client Indicator'!$A$3:$AB$3, 0))=\"\", \"\",  INDEX('Full set Core Client Indicator'!$A$3:$AB$351, MATCH(Selection_Hide2!$A139, 'Full set Core Client Indicator'!$A$3:$A$351, 0), MATCH(Selection_Hide2!Q$5, 'Full set Core Client Indicator'!$A$3:$AB$3, 0))), \"\")","v":""},{"$f":"IF(Q139<>\"\", IF(INDEX('Full set Core Client Indicator'!$A$3:$AB$351, MATCH(Selection_Hide2!$A139, 'Full set Core Client Indicator'!$A$3:$A$351, 0), MATCH(Selection_Hide2!R$5, 'Full set Core Client Indicator'!$A$3:$AB$3, 0))=\"\", \"\",  INDEX('Full set Core Client Indicator'!$A$3:$AB$351, MATCH(Selection_Hide2!$A139, 'Full set Core Client Indicator'!$A$3:$A$351, 0), MATCH(Selection_Hide2!R$5, 'Full set Core Client Indicator'!$A$3:$AB$3, 0))), \"\")","v":""},{"$f":"IF(R139<>\"\", IF(INDEX('Full set Core Client Indicator'!$A$3:$AB$351, MATCH(Selection_Hide2!$A139, 'Full set Core Client Indicator'!$A$3:$A$351, 0), MATCH(Selection_Hide2!S$5, 'Full set Core Client Indicator'!$A$3:$AB$3, 0))=\"\", \"\",  INDEX('Full set Core Client Indicator'!$A$3:$AB$351, MATCH(Selection_Hide2!$A139, 'Full set Core Client Indicator'!$A$3:$A$351, 0), MATCH(Selection_Hide2!S$5, 'Full set Core Client Indicator'!$A$3:$AB$3, 0))), \"\")","v":""},{"$f":"IF(S139<>\"\", IF(INDEX('Full set Core Client Indicator'!$A$3:$AB$351, MATCH(Selection_Hide2!$A139, 'Full set Core Client Indicator'!$A$3:$A$351, 0), MATCH(Selection_Hide2!T$5, 'Full set Core Client Indicator'!$A$3:$AB$3, 0))=\"\", \"\",  INDEX('Full set Core Client Indicator'!$A$3:$AB$351, MATCH(Selection_Hide2!$A139, 'Full set Core Client Indicator'!$A$3:$A$351, 0), MATCH(Selection_Hide2!T$5, 'Full set Core Client Indicator'!$A$3:$AB$3, 0))), \"\")","v":""},{"$f":"IF(T139<>\"\", IF(INDEX('Full set Core Client Indicator'!$A$3:$AB$351, MATCH(Selection_Hide2!$A139, 'Full set Core Client Indicator'!$A$3:$A$351, 0), MATCH(Selection_Hide2!U$5, 'Full set Core Client Indicator'!$A$3:$AB$3, 0))=\"\", \"\",  INDEX('Full set Core Client Indicator'!$A$3:$AB$351, MATCH(Selection_Hide2!$A139, 'Full set Core Client Indicator'!$A$3:$A$351, 0), MATCH(Selection_Hide2!U$5, 'Full set Core Client Indicator'!$A$3:$AB$3, 0))), \"\")","v":""},{"$f":"IF(U139<>\"\", IF(INDEX('Full set Core Client Indicator'!$A$3:$AB$351, MATCH(Selection_Hide2!$A139, 'Full set Core Client Indicator'!$A$3:$A$351, 0), MATCH(Selection_Hide2!V$5, 'Full set Core Client Indicator'!$A$3:$AB$3, 0))=\"\", \"\",  INDEX('Full set Core Client Indicator'!$A$3:$AB$351, MATCH(Selection_Hide2!$A139, 'Full set Core Client Indicator'!$A$3:$A$351, 0), MATCH(Selection_Hide2!V$5, 'Full set Core Client Indicator'!$A$3:$AB$3, 0))), \"\")","v":""},{"$f":"IF(V139<>\"\", IF(INDEX('Full set Core Client Indicator'!$A$3:$AB$351, MATCH(Selection_Hide2!$A139, 'Full set Core Client Indicator'!$A$3:$A$351, 0), MATCH(Selection_Hide2!W$5, 'Full set Core Client Indicator'!$A$3:$AB$3, 0))=\"\", \"\",  INDEX('Full set Core Client Indicator'!$A$3:$AB$351, MATCH(Selection_Hide2!$A139, 'Full set Core Client Indicator'!$A$3:$A$351, 0), MATCH(Selection_Hide2!W$5, 'Full set Core Client Indicator'!$A$3:$AB$3, 0))), \"\")","v":""},{"$f":"IF(W139<>\"\", IF(INDEX('Full set Core Client Indicator'!$A$3:$AB$351, MATCH(Selection_Hide2!$A139, 'Full set Core Client Indicator'!$A$3:$A$351, 0), MATCH(Selection_Hide2!X$5, 'Full set Core Client Indicator'!$A$3:$AB$3, 0))=\"\", \"\",  INDEX('Full set Core Client Indicator'!$A$3:$AB$351, MATCH(Selection_Hide2!$A139, 'Full set Core Client Indicator'!$A$3:$A$351, 0), MATCH(Selection_Hide2!X$5, 'Full set Core Client Indicator'!$A$3:$AB$3, 0))), \"\")","v":""},{"$f":"IF(X139<>\"\", IF(INDEX('Full set Core Client Indicator'!$A$3:$AB$351, MATCH(Selection_Hide2!$A139, 'Full set Core Client Indicator'!$A$3:$A$351, 0), MATCH(Selection_Hide2!Y$5, 'Full set Core Client Indicator'!$A$3:$AB$3, 0))=\"\", \"\",  INDEX('Full set Core Client Indicator'!$A$3:$AB$351, MATCH(Selection_Hide2!$A139, 'Full set Core Client Indicator'!$A$3:$A$351, 0), MATCH(Selection_Hide2!Y$5, 'Full set Core Client Indicator'!$A$3:$AB$3, 0))), \"\")","v":""},{"$f":"IF(Y139<>\"\", IF(INDEX('Full set Core Client Indicator'!$A$3:$AB$351, MATCH(Selection_Hide2!$A139, 'Full set Core Client Indicator'!$A$3:$A$351, 0), MATCH(Selection_Hide2!Z$5, 'Full set Core Client Indicator'!$A$3:$AB$3, 0))=\"\", \"\",  INDEX('Full set Core Client Indicator'!$A$3:$AB$351, MATCH(Selection_Hide2!$A139, 'Full set Core Client Indicator'!$A$3:$A$351, 0), MATCH(Selection_Hide2!Z$5, 'Full set Core Client Indicator'!$A$3:$AB$3, 0))), \"\")","v":""},{"$f":"IF(Z139<>\"\", IF(INDEX('Full set Core Client Indicator'!$A$3:$AB$351, MATCH(Selection_Hide2!$A139, 'Full set Core Client Indicator'!$A$3:$A$351, 0), MATCH(Selection_Hide2!AA$5, 'Full set Core Client Indicator'!$A$3:$AB$3, 0))=\"\", \"\",  INDEX('Full set Core Client Indicator'!$A$3:$AB$351, MATCH(Selection_Hide2!$A139, 'Full set Core Client Indicator'!$A$3:$A$351, 0), MATCH(Selection_Hide2!AA$5, 'Full set Core Client Indicator'!$A$3:$AB$3, 0))), \"\")","v":""},{"$f":"IF(AA139<>\"\", IF(INDEX('Full set Core Client Indicator'!$A$3:$AB$351, MATCH(Selection_Hide2!$A139, 'Full set Core Client Indicator'!$A$3:$A$351, 0), MATCH(Selection_Hide2!AB$5, 'Full set Core Client Indicator'!$A$3:$AB$3, 0))=\"\", \"\",  INDEX('Full set Core Client Indicator'!$A$3:$AB$351, MATCH(Selection_Hide2!$A139, 'Full set Core Client Indicator'!$A$3:$A$351, 0), MATCH(Selection_Hide2!AB$5, 'Full set Core Client Indicator'!$A$3:$AB$3, 0))), \"\")","v":""}]
[{"$f":"IF(AND(Selection_Hide1!C138<>0, Selection_Hide1!C138<>\"Grand Total\"), Selection_Hide1!C138, \"\")","v":""},{"$f":"IF(A140<>\"\", IF(INDEX('Full set Core Client Indicator'!$A$3:$AB$351, MATCH(Selection_Hide2!$A140, 'Full set Core Client Indicator'!$A$3:$A$351, 0), MATCH(Selection_Hide2!B$5, 'Full set Core Client Indicator'!$A$3:$AB$3, 0))=\"\", \"\",  INDEX('Full set Core Client Indicator'!$A$3:$AB$351, MATCH(Selection_Hide2!$A140, 'Full set Core Client Indicator'!$A$3:$A$351, 0), MATCH(Selection_Hide2!B$5, 'Full set Core Client Indicator'!$A$3:$AB$3, 0))), \"\")","v":""},{"$f":"IF(B140<>\"\", IF(INDEX('Full set Core Client Indicator'!$A$3:$AB$351, MATCH(Selection_Hide2!$A140, 'Full set Core Client Indicator'!$A$3:$A$351, 0), MATCH(Selection_Hide2!C$5, 'Full set Core Client Indicator'!$A$3:$AB$3, 0))=\"\", \"\",  INDEX('Full set Core Client Indicator'!$A$3:$AB$351, MATCH(Selection_Hide2!$A140, 'Full set Core Client Indicator'!$A$3:$A$351, 0), MATCH(Selection_Hide2!C$5, 'Full set Core Client Indicator'!$A$3:$AB$3, 0))), \"\")","v":""},{"$f":"IF(C140<>\"\", IF(INDEX('Full set Core Client Indicator'!$A$3:$AB$351, MATCH(Selection_Hide2!$A140, 'Full set Core Client Indicator'!$A$3:$A$351, 0), MATCH(Selection_Hide2!D$5, 'Full set Core Client Indicator'!$A$3:$AB$3, 0))=\"\", \"\",  INDEX('Full set Core Client Indicator'!$A$3:$AB$351, MATCH(Selection_Hide2!$A140, 'Full set Core Client Indicator'!$A$3:$A$351, 0), MATCH(Selection_Hide2!D$5, 'Full set Core Client Indicator'!$A$3:$AB$3, 0))), \"\")","v":""},{"$f":"IF(D140<>\"\", IF(INDEX('Full set Core Client Indicator'!$A$3:$AB$351, MATCH(Selection_Hide2!$A140, 'Full set Core Client Indicator'!$A$3:$A$351, 0), MATCH(Selection_Hide2!E$5, 'Full set Core Client Indicator'!$A$3:$AB$3, 0))=\"\", \"\",  INDEX('Full set Core Client Indicator'!$A$3:$AB$351, MATCH(Selection_Hide2!$A140, 'Full set Core Client Indicator'!$A$3:$A$351, 0), MATCH(Selection_Hide2!E$5, 'Full set Core Client Indicator'!$A$3:$AB$3, 0))), \"\")","v":""},{"$f":"IF(E140<>\"\", IF(INDEX('Full set Core Client Indicator'!$A$3:$AB$351, MATCH(Selection_Hide2!$A140, 'Full set Core Client Indicator'!$A$3:$A$351, 0), MATCH(Selection_Hide2!F$5, 'Full set Core Client Indicator'!$A$3:$AB$3, 0))=\"\", \"\",  INDEX('Full set Core Client Indicator'!$A$3:$AB$351, MATCH(Selection_Hide2!$A140, 'Full set Core Client Indicator'!$A$3:$A$351, 0), MATCH(Selection_Hide2!F$5, 'Full set Core Client Indicator'!$A$3:$AB$3, 0))), \"\")","v":""},{"$f":"IF(F140<>\"\", IF(INDEX('Full set Core Client Indicator'!$A$3:$AB$351, MATCH(Selection_Hide2!$A140, 'Full set Core Client Indicator'!$A$3:$A$351, 0), MATCH(Selection_Hide2!G$5, 'Full set Core Client Indicator'!$A$3:$AB$3, 0))=\"\", \"\",  INDEX('Full set Core Client Indicator'!$A$3:$AB$351, MATCH(Selection_Hide2!$A140, 'Full set Core Client Indicator'!$A$3:$A$351, 0), MATCH(Selection_Hide2!G$5, 'Full set Core Client Indicator'!$A$3:$AB$3, 0))), \"\")","v":""},{"$f":"IF(G140<>\"\", IF(INDEX('Full set Core Client Indicator'!$A$3:$AB$351, MATCH(Selection_Hide2!$A140, 'Full set Core Client Indicator'!$A$3:$A$351, 0), MATCH(Selection_Hide2!H$5, 'Full set Core Client Indicator'!$A$3:$AB$3, 0))=\"\", \"\",  INDEX('Full set Core Client Indicator'!$A$3:$AB$351, MATCH(Selection_Hide2!$A140, 'Full set Core Client Indicator'!$A$3:$A$351, 0), MATCH(Selection_Hide2!H$5, 'Full set Core Client Indicator'!$A$3:$AB$3, 0))), \"\")","v":""},{"$f":"IF(H140<>\"\", IF(INDEX('Full set Core Client Indicator'!$A$3:$AB$351, MATCH(Selection_Hide2!$A140, 'Full set Core Client Indicator'!$A$3:$A$351, 0), MATCH(Selection_Hide2!I$5, 'Full set Core Client Indicator'!$A$3:$AB$3, 0))=\"\", \"\",  INDEX('Full set Core Client Indicator'!$A$3:$AB$351, MATCH(Selection_Hide2!$A140, 'Full set Core Client Indicator'!$A$3:$A$351, 0), MATCH(Selection_Hide2!I$5, 'Full set Core Client Indicator'!$A$3:$AB$3, 0))), \"\")","v":""},{"$f":"IF(I140<>\"\", IF(INDEX('Full set Core Client Indicator'!$A$3:$AB$351, MATCH(Selection_Hide2!$A140, 'Full set Core Client Indicator'!$A$3:$A$351, 0), MATCH(Selection_Hide2!J$5, 'Full set Core Client Indicator'!$A$3:$AB$3, 0))=\"\", \"\",  INDEX('Full set Core Client Indicator'!$A$3:$AB$351, MATCH(Selection_Hide2!$A140, 'Full set Core Client Indicator'!$A$3:$A$351, 0), MATCH(Selection_Hide2!J$5, 'Full set Core Client Indicator'!$A$3:$AB$3, 0))), \"\")","v":""},{"$f":"IF(J140<>\"\", IF(INDEX('Full set Core Client Indicator'!$A$3:$AB$351, MATCH(Selection_Hide2!$A140, 'Full set Core Client Indicator'!$A$3:$A$351, 0), MATCH(Selection_Hide2!K$5, 'Full set Core Client Indicator'!$A$3:$AB$3, 0))=\"\", \"\",  INDEX('Full set Core Client Indicator'!$A$3:$AB$351, MATCH(Selection_Hide2!$A140, 'Full set Core Client Indicator'!$A$3:$A$351, 0), MATCH(Selection_Hide2!K$5, 'Full set Core Client Indicator'!$A$3:$AB$3, 0))), \"\")","v":""},{"$f":"IF(K140<>\"\", IF(INDEX('Full set Core Client Indicator'!$A$3:$AB$351, MATCH(Selection_Hide2!$A140, 'Full set Core Client Indicator'!$A$3:$A$351, 0), MATCH(Selection_Hide2!L$5, 'Full set Core Client Indicator'!$A$3:$AB$3, 0))=\"\", \"\",  INDEX('Full set Core Client Indicator'!$A$3:$AB$351, MATCH(Selection_Hide2!$A140, 'Full set Core Client Indicator'!$A$3:$A$351, 0), MATCH(Selection_Hide2!L$5, 'Full set Core Client Indicator'!$A$3:$AB$3, 0))), \"\")","v":""},{"$f":"IF(L140<>\"\", IF(INDEX('Full set Core Client Indicator'!$A$3:$AB$351, MATCH(Selection_Hide2!$A140, 'Full set Core Client Indicator'!$A$3:$A$351, 0), MATCH(Selection_Hide2!M$5, 'Full set Core Client Indicator'!$A$3:$AB$3, 0))=\"\", \"\",  INDEX('Full set Core Client Indicator'!$A$3:$AB$351, MATCH(Selection_Hide2!$A140, 'Full set Core Client Indicator'!$A$3:$A$351, 0), MATCH(Selection_Hide2!M$5, 'Full set Core Client Indicator'!$A$3:$AB$3, 0))), \"\")","v":""},{"$f":"IF(M140<>\"\", IF(INDEX('Full set Core Client Indicator'!$A$3:$AB$351, MATCH(Selection_Hide2!$A140, 'Full set Core Client Indicator'!$A$3:$A$351, 0), MATCH(Selection_Hide2!N$5, 'Full set Core Client Indicator'!$A$3:$AB$3, 0))=\"\", \"\",  INDEX('Full set Core Client Indicator'!$A$3:$AB$351, MATCH(Selection_Hide2!$A140, 'Full set Core Client Indicator'!$A$3:$A$351, 0), MATCH(Selection_Hide2!N$5, 'Full set Core Client Indicator'!$A$3:$AB$3, 0))), \"\")","v":""},{"$f":"IF(N140<>\"\", IF(INDEX('Full set Core Client Indicator'!$A$3:$AB$351, MATCH(Selection_Hide2!$A140, 'Full set Core Client Indicator'!$A$3:$A$351, 0), MATCH(Selection_Hide2!O$5, 'Full set Core Client Indicator'!$A$3:$AB$3, 0))=\"\", \"\",  INDEX('Full set Core Client Indicator'!$A$3:$AB$351, MATCH(Selection_Hide2!$A140, 'Full set Core Client Indicator'!$A$3:$A$351, 0), MATCH(Selection_Hide2!O$5, 'Full set Core Client Indicator'!$A$3:$AB$3, 0))), \"\")","v":""},{"$f":"IF(O140<>\"\", IF(INDEX('Full set Core Client Indicator'!$A$3:$AB$351, MATCH(Selection_Hide2!$A140, 'Full set Core Client Indicator'!$A$3:$A$351, 0), MATCH(Selection_Hide2!P$5, 'Full set Core Client Indicator'!$A$3:$AB$3, 0))=\"\", \"\",  INDEX('Full set Core Client Indicator'!$A$3:$AB$351, MATCH(Selection_Hide2!$A140, 'Full set Core Client Indicator'!$A$3:$A$351, 0), MATCH(Selection_Hide2!P$5, 'Full set Core Client Indicator'!$A$3:$AB$3, 0))), \"\")","v":""},{"$f":"IF(P140<>\"\", IF(INDEX('Full set Core Client Indicator'!$A$3:$AB$351, MATCH(Selection_Hide2!$A140, 'Full set Core Client Indicator'!$A$3:$A$351, 0), MATCH(Selection_Hide2!Q$5, 'Full set Core Client Indicator'!$A$3:$AB$3, 0))=\"\", \"\",  INDEX('Full set Core Client Indicator'!$A$3:$AB$351, MATCH(Selection_Hide2!$A140, 'Full set Core Client Indicator'!$A$3:$A$351, 0), MATCH(Selection_Hide2!Q$5, 'Full set Core Client Indicator'!$A$3:$AB$3, 0))), \"\")","v":""},{"$f":"IF(Q140<>\"\", IF(INDEX('Full set Core Client Indicator'!$A$3:$AB$351, MATCH(Selection_Hide2!$A140, 'Full set Core Client Indicator'!$A$3:$A$351, 0), MATCH(Selection_Hide2!R$5, 'Full set Core Client Indicator'!$A$3:$AB$3, 0))=\"\", \"\",  INDEX('Full set Core Client Indicator'!$A$3:$AB$351, MATCH(Selection_Hide2!$A140, 'Full set Core Client Indicator'!$A$3:$A$351, 0), MATCH(Selection_Hide2!R$5, 'Full set Core Client Indicator'!$A$3:$AB$3, 0))), \"\")","v":""},{"$f":"IF(R140<>\"\", IF(INDEX('Full set Core Client Indicator'!$A$3:$AB$351, MATCH(Selection_Hide2!$A140, 'Full set Core Client Indicator'!$A$3:$A$351, 0), MATCH(Selection_Hide2!S$5, 'Full set Core Client Indicator'!$A$3:$AB$3, 0))=\"\", \"\",  INDEX('Full set Core Client Indicator'!$A$3:$AB$351, MATCH(Selection_Hide2!$A140, 'Full set Core Client Indicator'!$A$3:$A$351, 0), MATCH(Selection_Hide2!S$5, 'Full set Core Client Indicator'!$A$3:$AB$3, 0))), \"\")","v":""},{"$f":"IF(S140<>\"\", IF(INDEX('Full set Core Client Indicator'!$A$3:$AB$351, MATCH(Selection_Hide2!$A140, 'Full set Core Client Indicator'!$A$3:$A$351, 0), MATCH(Selection_Hide2!T$5, 'Full set Core Client Indicator'!$A$3:$AB$3, 0))=\"\", \"\",  INDEX('Full set Core Client Indicator'!$A$3:$AB$351, MATCH(Selection_Hide2!$A140, 'Full set Core Client Indicator'!$A$3:$A$351, 0), MATCH(Selection_Hide2!T$5, 'Full set Core Client Indicator'!$A$3:$AB$3, 0))), \"\")","v":""},{"$f":"IF(T140<>\"\", IF(INDEX('Full set Core Client Indicator'!$A$3:$AB$351, MATCH(Selection_Hide2!$A140, 'Full set Core Client Indicator'!$A$3:$A$351, 0), MATCH(Selection_Hide2!U$5, 'Full set Core Client Indicator'!$A$3:$AB$3, 0))=\"\", \"\",  INDEX('Full set Core Client Indicator'!$A$3:$AB$351, MATCH(Selection_Hide2!$A140, 'Full set Core Client Indicator'!$A$3:$A$351, 0), MATCH(Selection_Hide2!U$5, 'Full set Core Client Indicator'!$A$3:$AB$3, 0))), \"\")","v":""},{"$f":"IF(U140<>\"\", IF(INDEX('Full set Core Client Indicator'!$A$3:$AB$351, MATCH(Selection_Hide2!$A140, 'Full set Core Client Indicator'!$A$3:$A$351, 0), MATCH(Selection_Hide2!V$5, 'Full set Core Client Indicator'!$A$3:$AB$3, 0))=\"\", \"\",  INDEX('Full set Core Client Indicator'!$A$3:$AB$351, MATCH(Selection_Hide2!$A140, 'Full set Core Client Indicator'!$A$3:$A$351, 0), MATCH(Selection_Hide2!V$5, 'Full set Core Client Indicator'!$A$3:$AB$3, 0))), \"\")","v":""},{"$f":"IF(V140<>\"\", IF(INDEX('Full set Core Client Indicator'!$A$3:$AB$351, MATCH(Selection_Hide2!$A140, 'Full set Core Client Indicator'!$A$3:$A$351, 0), MATCH(Selection_Hide2!W$5, 'Full set Core Client Indicator'!$A$3:$AB$3, 0))=\"\", \"\",  INDEX('Full set Core Client Indicator'!$A$3:$AB$351, MATCH(Selection_Hide2!$A140, 'Full set Core Client Indicator'!$A$3:$A$351, 0), MATCH(Selection_Hide2!W$5, 'Full set Core Client Indicator'!$A$3:$AB$3, 0))), \"\")","v":""},{"$f":"IF(W140<>\"\", IF(INDEX('Full set Core Client Indicator'!$A$3:$AB$351, MATCH(Selection_Hide2!$A140, 'Full set Core Client Indicator'!$A$3:$A$351, 0), MATCH(Selection_Hide2!X$5, 'Full set Core Client Indicator'!$A$3:$AB$3, 0))=\"\", \"\",  INDEX('Full set Core Client Indicator'!$A$3:$AB$351, MATCH(Selection_Hide2!$A140, 'Full set Core Client Indicator'!$A$3:$A$351, 0), MATCH(Selection_Hide2!X$5, 'Full set Core Client Indicator'!$A$3:$AB$3, 0))), \"\")","v":""},{"$f":"IF(X140<>\"\", IF(INDEX('Full set Core Client Indicator'!$A$3:$AB$351, MATCH(Selection_Hide2!$A140, 'Full set Core Client Indicator'!$A$3:$A$351, 0), MATCH(Selection_Hide2!Y$5, 'Full set Core Client Indicator'!$A$3:$AB$3, 0))=\"\", \"\",  INDEX('Full set Core Client Indicator'!$A$3:$AB$351, MATCH(Selection_Hide2!$A140, 'Full set Core Client Indicator'!$A$3:$A$351, 0), MATCH(Selection_Hide2!Y$5, 'Full set Core Client Indicator'!$A$3:$AB$3, 0))), \"\")","v":""},{"$f":"IF(Y140<>\"\", IF(INDEX('Full set Core Client Indicator'!$A$3:$AB$351, MATCH(Selection_Hide2!$A140, 'Full set Core Client Indicator'!$A$3:$A$351, 0), MATCH(Selection_Hide2!Z$5, 'Full set Core Client Indicator'!$A$3:$AB$3, 0))=\"\", \"\",  INDEX('Full set Core Client Indicator'!$A$3:$AB$351, MATCH(Selection_Hide2!$A140, 'Full set Core Client Indicator'!$A$3:$A$351, 0), MATCH(Selection_Hide2!Z$5, 'Full set Core Client Indicator'!$A$3:$AB$3, 0))), \"\")","v":""},{"$f":"IF(Z140<>\"\", IF(INDEX('Full set Core Client Indicator'!$A$3:$AB$351, MATCH(Selection_Hide2!$A140, 'Full set Core Client Indicator'!$A$3:$A$351, 0), MATCH(Selection_Hide2!AA$5, 'Full set Core Client Indicator'!$A$3:$AB$3, 0))=\"\", \"\",  INDEX('Full set Core Client Indicator'!$A$3:$AB$351, MATCH(Selection_Hide2!$A140, 'Full set Core Client Indicator'!$A$3:$A$351, 0), MATCH(Selection_Hide2!AA$5, 'Full set Core Client Indicator'!$A$3:$AB$3, 0))), \"\")","v":""},{"$f":"IF(AA140<>\"\", IF(INDEX('Full set Core Client Indicator'!$A$3:$AB$351, MATCH(Selection_Hide2!$A140, 'Full set Core Client Indicator'!$A$3:$A$351, 0), MATCH(Selection_Hide2!AB$5, 'Full set Core Client Indicator'!$A$3:$AB$3, 0))=\"\", \"\",  INDEX('Full set Core Client Indicator'!$A$3:$AB$351, MATCH(Selection_Hide2!$A140, 'Full set Core Client Indicator'!$A$3:$A$351, 0), MATCH(Selection_Hide2!AB$5, 'Full set Core Client Indicator'!$A$3:$AB$3, 0))), \"\")","v":""}]
[{"$f":"IF(AND(Selection_Hide1!C139<>0, Selection_Hide1!C139<>\"Grand Total\"), Selection_Hide1!C139, \"\")","v":""},{"$f":"IF(A141<>\"\", IF(INDEX('Full set Core Client Indicator'!$A$3:$AB$351, MATCH(Selection_Hide2!$A141, 'Full set Core Client Indicator'!$A$3:$A$351, 0), MATCH(Selection_Hide2!B$5, 'Full set Core Client Indicator'!$A$3:$AB$3, 0))=\"\", \"\",  INDEX('Full set Core Client Indicator'!$A$3:$AB$351, MATCH(Selection_Hide2!$A141, 'Full set Core Client Indicator'!$A$3:$A$351, 0), MATCH(Selection_Hide2!B$5, 'Full set Core Client Indicator'!$A$3:$AB$3, 0))), \"\")","v":""},{"$f":"IF(B141<>\"\", IF(INDEX('Full set Core Client Indicator'!$A$3:$AB$351, MATCH(Selection_Hide2!$A141, 'Full set Core Client Indicator'!$A$3:$A$351, 0), MATCH(Selection_Hide2!C$5, 'Full set Core Client Indicator'!$A$3:$AB$3, 0))=\"\", \"\",  INDEX('Full set Core Client Indicator'!$A$3:$AB$351, MATCH(Selection_Hide2!$A141, 'Full set Core Client Indicator'!$A$3:$A$351, 0), MATCH(Selection_Hide2!C$5, 'Full set Core Client Indicator'!$A$3:$AB$3, 0))), \"\")","v":""},{"$f":"IF(C141<>\"\", IF(INDEX('Full set Core Client Indicator'!$A$3:$AB$351, MATCH(Selection_Hide2!$A141, 'Full set Core Client Indicator'!$A$3:$A$351, 0), MATCH(Selection_Hide2!D$5, 'Full set Core Client Indicator'!$A$3:$AB$3, 0))=\"\", \"\",  INDEX('Full set Core Client Indicator'!$A$3:$AB$351, MATCH(Selection_Hide2!$A141, 'Full set Core Client Indicator'!$A$3:$A$351, 0), MATCH(Selection_Hide2!D$5, 'Full set Core Client Indicator'!$A$3:$AB$3, 0))), \"\")","v":""},{"$f":"IF(D141<>\"\", IF(INDEX('Full set Core Client Indicator'!$A$3:$AB$351, MATCH(Selection_Hide2!$A141, 'Full set Core Client Indicator'!$A$3:$A$351, 0), MATCH(Selection_Hide2!E$5, 'Full set Core Client Indicator'!$A$3:$AB$3, 0))=\"\", \"\",  INDEX('Full set Core Client Indicator'!$A$3:$AB$351, MATCH(Selection_Hide2!$A141, 'Full set Core Client Indicator'!$A$3:$A$351, 0), MATCH(Selection_Hide2!E$5, 'Full set Core Client Indicator'!$A$3:$AB$3, 0))), \"\")","v":""},{"$f":"IF(E141<>\"\", IF(INDEX('Full set Core Client Indicator'!$A$3:$AB$351, MATCH(Selection_Hide2!$A141, 'Full set Core Client Indicator'!$A$3:$A$351, 0), MATCH(Selection_Hide2!F$5, 'Full set Core Client Indicator'!$A$3:$AB$3, 0))=\"\", \"\",  INDEX('Full set Core Client Indicator'!$A$3:$AB$351, MATCH(Selection_Hide2!$A141, 'Full set Core Client Indicator'!$A$3:$A$351, 0), MATCH(Selection_Hide2!F$5, 'Full set Core Client Indicator'!$A$3:$AB$3, 0))), \"\")","v":""},{"$f":"IF(F141<>\"\", IF(INDEX('Full set Core Client Indicator'!$A$3:$AB$351, MATCH(Selection_Hide2!$A141, 'Full set Core Client Indicator'!$A$3:$A$351, 0), MATCH(Selection_Hide2!G$5, 'Full set Core Client Indicator'!$A$3:$AB$3, 0))=\"\", \"\",  INDEX('Full set Core Client Indicator'!$A$3:$AB$351, MATCH(Selection_Hide2!$A141, 'Full set Core Client Indicator'!$A$3:$A$351, 0), MATCH(Selection_Hide2!G$5, 'Full set Core Client Indicator'!$A$3:$AB$3, 0))), \"\")","v":""},{"$f":"IF(G141<>\"\", IF(INDEX('Full set Core Client Indicator'!$A$3:$AB$351, MATCH(Selection_Hide2!$A141, 'Full set Core Client Indicator'!$A$3:$A$351, 0), MATCH(Selection_Hide2!H$5, 'Full set Core Client Indicator'!$A$3:$AB$3, 0))=\"\", \"\",  INDEX('Full set Core Client Indicator'!$A$3:$AB$351, MATCH(Selection_Hide2!$A141, 'Full set Core Client Indicator'!$A$3:$A$351, 0), MATCH(Selection_Hide2!H$5, 'Full set Core Client Indicator'!$A$3:$AB$3, 0))), \"\")","v":""},{"$f":"IF(H141<>\"\", IF(INDEX('Full set Core Client Indicator'!$A$3:$AB$351, MATCH(Selection_Hide2!$A141, 'Full set Core Client Indicator'!$A$3:$A$351, 0), MATCH(Selection_Hide2!I$5, 'Full set Core Client Indicator'!$A$3:$AB$3, 0))=\"\", \"\",  INDEX('Full set Core Client Indicator'!$A$3:$AB$351, MATCH(Selection_Hide2!$A141, 'Full set Core Client Indicator'!$A$3:$A$351, 0), MATCH(Selection_Hide2!I$5, 'Full set Core Client Indicator'!$A$3:$AB$3, 0))), \"\")","v":""},{"$f":"IF(I141<>\"\", IF(INDEX('Full set Core Client Indicator'!$A$3:$AB$351, MATCH(Selection_Hide2!$A141, 'Full set Core Client Indicator'!$A$3:$A$351, 0), MATCH(Selection_Hide2!J$5, 'Full set Core Client Indicator'!$A$3:$AB$3, 0))=\"\", \"\",  INDEX('Full set Core Client Indicator'!$A$3:$AB$351, MATCH(Selection_Hide2!$A141, 'Full set Core Client Indicator'!$A$3:$A$351, 0), MATCH(Selection_Hide2!J$5, 'Full set Core Client Indicator'!$A$3:$AB$3, 0))), \"\")","v":""},{"$f":"IF(J141<>\"\", IF(INDEX('Full set Core Client Indicator'!$A$3:$AB$351, MATCH(Selection_Hide2!$A141, 'Full set Core Client Indicator'!$A$3:$A$351, 0), MATCH(Selection_Hide2!K$5, 'Full set Core Client Indicator'!$A$3:$AB$3, 0))=\"\", \"\",  INDEX('Full set Core Client Indicator'!$A$3:$AB$351, MATCH(Selection_Hide2!$A141, 'Full set Core Client Indicator'!$A$3:$A$351, 0), MATCH(Selection_Hide2!K$5, 'Full set Core Client Indicator'!$A$3:$AB$3, 0))), \"\")","v":""},{"$f":"IF(K141<>\"\", IF(INDEX('Full set Core Client Indicator'!$A$3:$AB$351, MATCH(Selection_Hide2!$A141, 'Full set Core Client Indicator'!$A$3:$A$351, 0), MATCH(Selection_Hide2!L$5, 'Full set Core Client Indicator'!$A$3:$AB$3, 0))=\"\", \"\",  INDEX('Full set Core Client Indicator'!$A$3:$AB$351, MATCH(Selection_Hide2!$A141, 'Full set Core Client Indicator'!$A$3:$A$351, 0), MATCH(Selection_Hide2!L$5, 'Full set Core Client Indicator'!$A$3:$AB$3, 0))), \"\")","v":""},{"$f":"IF(L141<>\"\", IF(INDEX('Full set Core Client Indicator'!$A$3:$AB$351, MATCH(Selection_Hide2!$A141, 'Full set Core Client Indicator'!$A$3:$A$351, 0), MATCH(Selection_Hide2!M$5, 'Full set Core Client Indicator'!$A$3:$AB$3, 0))=\"\", \"\",  INDEX('Full set Core Client Indicator'!$A$3:$AB$351, MATCH(Selection_Hide2!$A141, 'Full set Core Client Indicator'!$A$3:$A$351, 0), MATCH(Selection_Hide2!M$5, 'Full set Core Client Indicator'!$A$3:$AB$3, 0))), \"\")","v":""},{"$f":"IF(M141<>\"\", IF(INDEX('Full set Core Client Indicator'!$A$3:$AB$351, MATCH(Selection_Hide2!$A141, 'Full set Core Client Indicator'!$A$3:$A$351, 0), MATCH(Selection_Hide2!N$5, 'Full set Core Client Indicator'!$A$3:$AB$3, 0))=\"\", \"\",  INDEX('Full set Core Client Indicator'!$A$3:$AB$351, MATCH(Selection_Hide2!$A141, 'Full set Core Client Indicator'!$A$3:$A$351, 0), MATCH(Selection_Hide2!N$5, 'Full set Core Client Indicator'!$A$3:$AB$3, 0))), \"\")","v":""},{"$f":"IF(N141<>\"\", IF(INDEX('Full set Core Client Indicator'!$A$3:$AB$351, MATCH(Selection_Hide2!$A141, 'Full set Core Client Indicator'!$A$3:$A$351, 0), MATCH(Selection_Hide2!O$5, 'Full set Core Client Indicator'!$A$3:$AB$3, 0))=\"\", \"\",  INDEX('Full set Core Client Indicator'!$A$3:$AB$351, MATCH(Selection_Hide2!$A141, 'Full set Core Client Indicator'!$A$3:$A$351, 0), MATCH(Selection_Hide2!O$5, 'Full set Core Client Indicator'!$A$3:$AB$3, 0))), \"\")","v":""},{"$f":"IF(O141<>\"\", IF(INDEX('Full set Core Client Indicator'!$A$3:$AB$351, MATCH(Selection_Hide2!$A141, 'Full set Core Client Indicator'!$A$3:$A$351, 0), MATCH(Selection_Hide2!P$5, 'Full set Core Client Indicator'!$A$3:$AB$3, 0))=\"\", \"\",  INDEX('Full set Core Client Indicator'!$A$3:$AB$351, MATCH(Selection_Hide2!$A141, 'Full set Core Client Indicator'!$A$3:$A$351, 0), MATCH(Selection_Hide2!P$5, 'Full set Core Client Indicator'!$A$3:$AB$3, 0))), \"\")","v":""},{"$f":"IF(P141<>\"\", IF(INDEX('Full set Core Client Indicator'!$A$3:$AB$351, MATCH(Selection_Hide2!$A141, 'Full set Core Client Indicator'!$A$3:$A$351, 0), MATCH(Selection_Hide2!Q$5, 'Full set Core Client Indicator'!$A$3:$AB$3, 0))=\"\", \"\",  INDEX('Full set Core Client Indicator'!$A$3:$AB$351, MATCH(Selection_Hide2!$A141, 'Full set Core Client Indicator'!$A$3:$A$351, 0), MATCH(Selection_Hide2!Q$5, 'Full set Core Client Indicator'!$A$3:$AB$3, 0))), \"\")","v":""},{"$f":"IF(Q141<>\"\", IF(INDEX('Full set Core Client Indicator'!$A$3:$AB$351, MATCH(Selection_Hide2!$A141, 'Full set Core Client Indicator'!$A$3:$A$351, 0), MATCH(Selection_Hide2!R$5, 'Full set Core Client Indicator'!$A$3:$AB$3, 0))=\"\", \"\",  INDEX('Full set Core Client Indicator'!$A$3:$AB$351, MATCH(Selection_Hide2!$A141, 'Full set Core Client Indicator'!$A$3:$A$351, 0), MATCH(Selection_Hide2!R$5, 'Full set Core Client Indicator'!$A$3:$AB$3, 0))), \"\")","v":""},{"$f":"IF(R141<>\"\", IF(INDEX('Full set Core Client Indicator'!$A$3:$AB$351, MATCH(Selection_Hide2!$A141, 'Full set Core Client Indicator'!$A$3:$A$351, 0), MATCH(Selection_Hide2!S$5, 'Full set Core Client Indicator'!$A$3:$AB$3, 0))=\"\", \"\",  INDEX('Full set Core Client Indicator'!$A$3:$AB$351, MATCH(Selection_Hide2!$A141, 'Full set Core Client Indicator'!$A$3:$A$351, 0), MATCH(Selection_Hide2!S$5, 'Full set Core Client Indicator'!$A$3:$AB$3, 0))), \"\")","v":""},{"$f":"IF(S141<>\"\", IF(INDEX('Full set Core Client Indicator'!$A$3:$AB$351, MATCH(Selection_Hide2!$A141, 'Full set Core Client Indicator'!$A$3:$A$351, 0), MATCH(Selection_Hide2!T$5, 'Full set Core Client Indicator'!$A$3:$AB$3, 0))=\"\", \"\",  INDEX('Full set Core Client Indicator'!$A$3:$AB$351, MATCH(Selection_Hide2!$A141, 'Full set Core Client Indicator'!$A$3:$A$351, 0), MATCH(Selection_Hide2!T$5, 'Full set Core Client Indicator'!$A$3:$AB$3, 0))), \"\")","v":""},{"$f":"IF(T141<>\"\", IF(INDEX('Full set Core Client Indicator'!$A$3:$AB$351, MATCH(Selection_Hide2!$A141, 'Full set Core Client Indicator'!$A$3:$A$351, 0), MATCH(Selection_Hide2!U$5, 'Full set Core Client Indicator'!$A$3:$AB$3, 0))=\"\", \"\",  INDEX('Full set Core Client Indicator'!$A$3:$AB$351, MATCH(Selection_Hide2!$A141, 'Full set Core Client Indicator'!$A$3:$A$351, 0), MATCH(Selection_Hide2!U$5, 'Full set Core Client Indicator'!$A$3:$AB$3, 0))), \"\")","v":""},{"$f":"IF(U141<>\"\", IF(INDEX('Full set Core Client Indicator'!$A$3:$AB$351, MATCH(Selection_Hide2!$A141, 'Full set Core Client Indicator'!$A$3:$A$351, 0), MATCH(Selection_Hide2!V$5, 'Full set Core Client Indicator'!$A$3:$AB$3, 0))=\"\", \"\",  INDEX('Full set Core Client Indicator'!$A$3:$AB$351, MATCH(Selection_Hide2!$A141, 'Full set Core Client Indicator'!$A$3:$A$351, 0), MATCH(Selection_Hide2!V$5, 'Full set Core Client Indicator'!$A$3:$AB$3, 0))), \"\")","v":""},{"$f":"IF(V141<>\"\", IF(INDEX('Full set Core Client Indicator'!$A$3:$AB$351, MATCH(Selection_Hide2!$A141, 'Full set Core Client Indicator'!$A$3:$A$351, 0), MATCH(Selection_Hide2!W$5, 'Full set Core Client Indicator'!$A$3:$AB$3, 0))=\"\", \"\",  INDEX('Full set Core Client Indicator'!$A$3:$AB$351, MATCH(Selection_Hide2!$A141, 'Full set Core Client Indicator'!$A$3:$A$351, 0), MATCH(Selection_Hide2!W$5, 'Full set Core Client Indicator'!$A$3:$AB$3, 0))), \"\")","v":""},{"$f":"IF(W141<>\"\", IF(INDEX('Full set Core Client Indicator'!$A$3:$AB$351, MATCH(Selection_Hide2!$A141, 'Full set Core Client Indicator'!$A$3:$A$351, 0), MATCH(Selection_Hide2!X$5, 'Full set Core Client Indicator'!$A$3:$AB$3, 0))=\"\", \"\",  INDEX('Full set Core Client Indicator'!$A$3:$AB$351, MATCH(Selection_Hide2!$A141, 'Full set Core Client Indicator'!$A$3:$A$351, 0), MATCH(Selection_Hide2!X$5, 'Full set Core Client Indicator'!$A$3:$AB$3, 0))), \"\")","v":""},{"$f":"IF(X141<>\"\", IF(INDEX('Full set Core Client Indicator'!$A$3:$AB$351, MATCH(Selection_Hide2!$A141, 'Full set Core Client Indicator'!$A$3:$A$351, 0), MATCH(Selection_Hide2!Y$5, 'Full set Core Client Indicator'!$A$3:$AB$3, 0))=\"\", \"\",  INDEX('Full set Core Client Indicator'!$A$3:$AB$351, MATCH(Selection_Hide2!$A141, 'Full set Core Client Indicator'!$A$3:$A$351, 0), MATCH(Selection_Hide2!Y$5, 'Full set Core Client Indicator'!$A$3:$AB$3, 0))), \"\")","v":""},{"$f":"IF(Y141<>\"\", IF(INDEX('Full set Core Client Indicator'!$A$3:$AB$351, MATCH(Selection_Hide2!$A141, 'Full set Core Client Indicator'!$A$3:$A$351, 0), MATCH(Selection_Hide2!Z$5, 'Full set Core Client Indicator'!$A$3:$AB$3, 0))=\"\", \"\",  INDEX('Full set Core Client Indicator'!$A$3:$AB$351, MATCH(Selection_Hide2!$A141, 'Full set Core Client Indicator'!$A$3:$A$351, 0), MATCH(Selection_Hide2!Z$5, 'Full set Core Client Indicator'!$A$3:$AB$3, 0))), \"\")","v":""},{"$f":"IF(Z141<>\"\", IF(INDEX('Full set Core Client Indicator'!$A$3:$AB$351, MATCH(Selection_Hide2!$A141, 'Full set Core Client Indicator'!$A$3:$A$351, 0), MATCH(Selection_Hide2!AA$5, 'Full set Core Client Indicator'!$A$3:$AB$3, 0))=\"\", \"\",  INDEX('Full set Core Client Indicator'!$A$3:$AB$351, MATCH(Selection_Hide2!$A141, 'Full set Core Client Indicator'!$A$3:$A$351, 0), MATCH(Selection_Hide2!AA$5, 'Full set Core Client Indicator'!$A$3:$AB$3, 0))), \"\")","v":""},{"$f":"IF(AA141<>\"\", IF(INDEX('Full set Core Client Indicator'!$A$3:$AB$351, MATCH(Selection_Hide2!$A141, 'Full set Core Client Indicator'!$A$3:$A$351, 0), MATCH(Selection_Hide2!AB$5, 'Full set Core Client Indicator'!$A$3:$AB$3, 0))=\"\", \"\",  INDEX('Full set Core Client Indicator'!$A$3:$AB$351, MATCH(Selection_Hide2!$A141, 'Full set Core Client Indicator'!$A$3:$A$351, 0), MATCH(Selection_Hide2!AB$5, 'Full set Core Client Indicator'!$A$3:$AB$3, 0))), \"\")","v":""}]
[{"$f":"IF(AND(Selection_Hide1!C140<>0, Selection_Hide1!C140<>\"Grand Total\"), Selection_Hide1!C140, \"\")","v":""},{"$f":"IF(A142<>\"\", IF(INDEX('Full set Core Client Indicator'!$A$3:$AB$351, MATCH(Selection_Hide2!$A142, 'Full set Core Client Indicator'!$A$3:$A$351, 0), MATCH(Selection_Hide2!B$5, 'Full set Core Client Indicator'!$A$3:$AB$3, 0))=\"\", \"\",  INDEX('Full set Core Client Indicator'!$A$3:$AB$351, MATCH(Selection_Hide2!$A142, 'Full set Core Client Indicator'!$A$3:$A$351, 0), MATCH(Selection_Hide2!B$5, 'Full set Core Client Indicator'!$A$3:$AB$3, 0))), \"\")","v":""},{"$f":"IF(B142<>\"\", IF(INDEX('Full set Core Client Indicator'!$A$3:$AB$351, MATCH(Selection_Hide2!$A142, 'Full set Core Client Indicator'!$A$3:$A$351, 0), MATCH(Selection_Hide2!C$5, 'Full set Core Client Indicator'!$A$3:$AB$3, 0))=\"\", \"\",  INDEX('Full set Core Client Indicator'!$A$3:$AB$351, MATCH(Selection_Hide2!$A142, 'Full set Core Client Indicator'!$A$3:$A$351, 0), MATCH(Selection_Hide2!C$5, 'Full set Core Client Indicator'!$A$3:$AB$3, 0))), \"\")","v":""},{"$f":"IF(C142<>\"\", IF(INDEX('Full set Core Client Indicator'!$A$3:$AB$351, MATCH(Selection_Hide2!$A142, 'Full set Core Client Indicator'!$A$3:$A$351, 0), MATCH(Selection_Hide2!D$5, 'Full set Core Client Indicator'!$A$3:$AB$3, 0))=\"\", \"\",  INDEX('Full set Core Client Indicator'!$A$3:$AB$351, MATCH(Selection_Hide2!$A142, 'Full set Core Client Indicator'!$A$3:$A$351, 0), MATCH(Selection_Hide2!D$5, 'Full set Core Client Indicator'!$A$3:$AB$3, 0))), \"\")","v":""},{"$f":"IF(D142<>\"\", IF(INDEX('Full set Core Client Indicator'!$A$3:$AB$351, MATCH(Selection_Hide2!$A142, 'Full set Core Client Indicator'!$A$3:$A$351, 0), MATCH(Selection_Hide2!E$5, 'Full set Core Client Indicator'!$A$3:$AB$3, 0))=\"\", \"\",  INDEX('Full set Core Client Indicator'!$A$3:$AB$351, MATCH(Selection_Hide2!$A142, 'Full set Core Client Indicator'!$A$3:$A$351, 0), MATCH(Selection_Hide2!E$5, 'Full set Core Client Indicator'!$A$3:$AB$3, 0))), \"\")","v":""},{"$f":"IF(E142<>\"\", IF(INDEX('Full set Core Client Indicator'!$A$3:$AB$351, MATCH(Selection_Hide2!$A142, 'Full set Core Client Indicator'!$A$3:$A$351, 0), MATCH(Selection_Hide2!F$5, 'Full set Core Client Indicator'!$A$3:$AB$3, 0))=\"\", \"\",  INDEX('Full set Core Client Indicator'!$A$3:$AB$351, MATCH(Selection_Hide2!$A142, 'Full set Core Client Indicator'!$A$3:$A$351, 0), MATCH(Selection_Hide2!F$5, 'Full set Core Client Indicator'!$A$3:$AB$3, 0))), \"\")","v":""},{"$f":"IF(F142<>\"\", IF(INDEX('Full set Core Client Indicator'!$A$3:$AB$351, MATCH(Selection_Hide2!$A142, 'Full set Core Client Indicator'!$A$3:$A$351, 0), MATCH(Selection_Hide2!G$5, 'Full set Core Client Indicator'!$A$3:$AB$3, 0))=\"\", \"\",  INDEX('Full set Core Client Indicator'!$A$3:$AB$351, MATCH(Selection_Hide2!$A142, 'Full set Core Client Indicator'!$A$3:$A$351, 0), MATCH(Selection_Hide2!G$5, 'Full set Core Client Indicator'!$A$3:$AB$3, 0))), \"\")","v":""},{"$f":"IF(G142<>\"\", IF(INDEX('Full set Core Client Indicator'!$A$3:$AB$351, MATCH(Selection_Hide2!$A142, 'Full set Core Client Indicator'!$A$3:$A$351, 0), MATCH(Selection_Hide2!H$5, 'Full set Core Client Indicator'!$A$3:$AB$3, 0))=\"\", \"\",  INDEX('Full set Core Client Indicator'!$A$3:$AB$351, MATCH(Selection_Hide2!$A142, 'Full set Core Client Indicator'!$A$3:$A$351, 0), MATCH(Selection_Hide2!H$5, 'Full set Core Client Indicator'!$A$3:$AB$3, 0))), \"\")","v":""},{"$f":"IF(H142<>\"\", IF(INDEX('Full set Core Client Indicator'!$A$3:$AB$351, MATCH(Selection_Hide2!$A142, 'Full set Core Client Indicator'!$A$3:$A$351, 0), MATCH(Selection_Hide2!I$5, 'Full set Core Client Indicator'!$A$3:$AB$3, 0))=\"\", \"\",  INDEX('Full set Core Client Indicator'!$A$3:$AB$351, MATCH(Selection_Hide2!$A142, 'Full set Core Client Indicator'!$A$3:$A$351, 0), MATCH(Selection_Hide2!I$5, 'Full set Core Client Indicator'!$A$3:$AB$3, 0))), \"\")","v":""},{"$f":"IF(I142<>\"\", IF(INDEX('Full set Core Client Indicator'!$A$3:$AB$351, MATCH(Selection_Hide2!$A142, 'Full set Core Client Indicator'!$A$3:$A$351, 0), MATCH(Selection_Hide2!J$5, 'Full set Core Client Indicator'!$A$3:$AB$3, 0))=\"\", \"\",  INDEX('Full set Core Client Indicator'!$A$3:$AB$351, MATCH(Selection_Hide2!$A142, 'Full set Core Client Indicator'!$A$3:$A$351, 0), MATCH(Selection_Hide2!J$5, 'Full set Core Client Indicator'!$A$3:$AB$3, 0))), \"\")","v":""},{"$f":"IF(J142<>\"\", IF(INDEX('Full set Core Client Indicator'!$A$3:$AB$351, MATCH(Selection_Hide2!$A142, 'Full set Core Client Indicator'!$A$3:$A$351, 0), MATCH(Selection_Hide2!K$5, 'Full set Core Client Indicator'!$A$3:$AB$3, 0))=\"\", \"\",  INDEX('Full set Core Client Indicator'!$A$3:$AB$351, MATCH(Selection_Hide2!$A142, 'Full set Core Client Indicator'!$A$3:$A$351, 0), MATCH(Selection_Hide2!K$5, 'Full set Core Client Indicator'!$A$3:$AB$3, 0))), \"\")","v":""},{"$f":"IF(K142<>\"\", IF(INDEX('Full set Core Client Indicator'!$A$3:$AB$351, MATCH(Selection_Hide2!$A142, 'Full set Core Client Indicator'!$A$3:$A$351, 0), MATCH(Selection_Hide2!L$5, 'Full set Core Client Indicator'!$A$3:$AB$3, 0))=\"\", \"\",  INDEX('Full set Core Client Indicator'!$A$3:$AB$351, MATCH(Selection_Hide2!$A142, 'Full set Core Client Indicator'!$A$3:$A$351, 0), MATCH(Selection_Hide2!L$5, 'Full set Core Client Indicator'!$A$3:$AB$3, 0))), \"\")","v":""},{"$f":"IF(L142<>\"\", IF(INDEX('Full set Core Client Indicator'!$A$3:$AB$351, MATCH(Selection_Hide2!$A142, 'Full set Core Client Indicator'!$A$3:$A$351, 0), MATCH(Selection_Hide2!M$5, 'Full set Core Client Indicator'!$A$3:$AB$3, 0))=\"\", \"\",  INDEX('Full set Core Client Indicator'!$A$3:$AB$351, MATCH(Selection_Hide2!$A142, 'Full set Core Client Indicator'!$A$3:$A$351, 0), MATCH(Selection_Hide2!M$5, 'Full set Core Client Indicator'!$A$3:$AB$3, 0))), \"\")","v":""},{"$f":"IF(M142<>\"\", IF(INDEX('Full set Core Client Indicator'!$A$3:$AB$351, MATCH(Selection_Hide2!$A142, 'Full set Core Client Indicator'!$A$3:$A$351, 0), MATCH(Selection_Hide2!N$5, 'Full set Core Client Indicator'!$A$3:$AB$3, 0))=\"\", \"\",  INDEX('Full set Core Client Indicator'!$A$3:$AB$351, MATCH(Selection_Hide2!$A142, 'Full set Core Client Indicator'!$A$3:$A$351, 0), MATCH(Selection_Hide2!N$5, 'Full set Core Client Indicator'!$A$3:$AB$3, 0))), \"\")","v":""},{"$f":"IF(N142<>\"\", IF(INDEX('Full set Core Client Indicator'!$A$3:$AB$351, MATCH(Selection_Hide2!$A142, 'Full set Core Client Indicator'!$A$3:$A$351, 0), MATCH(Selection_Hide2!O$5, 'Full set Core Client Indicator'!$A$3:$AB$3, 0))=\"\", \"\",  INDEX('Full set Core Client Indicator'!$A$3:$AB$351, MATCH(Selection_Hide2!$A142, 'Full set Core Client Indicator'!$A$3:$A$351, 0), MATCH(Selection_Hide2!O$5, 'Full set Core Client Indicator'!$A$3:$AB$3, 0))), \"\")","v":""},{"$f":"IF(O142<>\"\", IF(INDEX('Full set Core Client Indicator'!$A$3:$AB$351, MATCH(Selection_Hide2!$A142, 'Full set Core Client Indicator'!$A$3:$A$351, 0), MATCH(Selection_Hide2!P$5, 'Full set Core Client Indicator'!$A$3:$AB$3, 0))=\"\", \"\",  INDEX('Full set Core Client Indicator'!$A$3:$AB$351, MATCH(Selection_Hide2!$A142, 'Full set Core Client Indicator'!$A$3:$A$351, 0), MATCH(Selection_Hide2!P$5, 'Full set Core Client Indicator'!$A$3:$AB$3, 0))), \"\")","v":""},{"$f":"IF(P142<>\"\", IF(INDEX('Full set Core Client Indicator'!$A$3:$AB$351, MATCH(Selection_Hide2!$A142, 'Full set Core Client Indicator'!$A$3:$A$351, 0), MATCH(Selection_Hide2!Q$5, 'Full set Core Client Indicator'!$A$3:$AB$3, 0))=\"\", \"\",  INDEX('Full set Core Client Indicator'!$A$3:$AB$351, MATCH(Selection_Hide2!$A142, 'Full set Core Client Indicator'!$A$3:$A$351, 0), MATCH(Selection_Hide2!Q$5, 'Full set Core Client Indicator'!$A$3:$AB$3, 0))), \"\")","v":""},{"$f":"IF(Q142<>\"\", IF(INDEX('Full set Core Client Indicator'!$A$3:$AB$351, MATCH(Selection_Hide2!$A142, 'Full set Core Client Indicator'!$A$3:$A$351, 0), MATCH(Selection_Hide2!R$5, 'Full set Core Client Indicator'!$A$3:$AB$3, 0))=\"\", \"\",  INDEX('Full set Core Client Indicator'!$A$3:$AB$351, MATCH(Selection_Hide2!$A142, 'Full set Core Client Indicator'!$A$3:$A$351, 0), MATCH(Selection_Hide2!R$5, 'Full set Core Client Indicator'!$A$3:$AB$3, 0))), \"\")","v":""},{"$f":"IF(R142<>\"\", IF(INDEX('Full set Core Client Indicator'!$A$3:$AB$351, MATCH(Selection_Hide2!$A142, 'Full set Core Client Indicator'!$A$3:$A$351, 0), MATCH(Selection_Hide2!S$5, 'Full set Core Client Indicator'!$A$3:$AB$3, 0))=\"\", \"\",  INDEX('Full set Core Client Indicator'!$A$3:$AB$351, MATCH(Selection_Hide2!$A142, 'Full set Core Client Indicator'!$A$3:$A$351, 0), MATCH(Selection_Hide2!S$5, 'Full set Core Client Indicator'!$A$3:$AB$3, 0))), \"\")","v":""},{"$f":"IF(S142<>\"\", IF(INDEX('Full set Core Client Indicator'!$A$3:$AB$351, MATCH(Selection_Hide2!$A142, 'Full set Core Client Indicator'!$A$3:$A$351, 0), MATCH(Selection_Hide2!T$5, 'Full set Core Client Indicator'!$A$3:$AB$3, 0))=\"\", \"\",  INDEX('Full set Core Client Indicator'!$A$3:$AB$351, MATCH(Selection_Hide2!$A142, 'Full set Core Client Indicator'!$A$3:$A$351, 0), MATCH(Selection_Hide2!T$5, 'Full set Core Client Indicator'!$A$3:$AB$3, 0))), \"\")","v":""},{"$f":"IF(T142<>\"\", IF(INDEX('Full set Core Client Indicator'!$A$3:$AB$351, MATCH(Selection_Hide2!$A142, 'Full set Core Client Indicator'!$A$3:$A$351, 0), MATCH(Selection_Hide2!U$5, 'Full set Core Client Indicator'!$A$3:$AB$3, 0))=\"\", \"\",  INDEX('Full set Core Client Indicator'!$A$3:$AB$351, MATCH(Selection_Hide2!$A142, 'Full set Core Client Indicator'!$A$3:$A$351, 0), MATCH(Selection_Hide2!U$5, 'Full set Core Client Indicator'!$A$3:$AB$3, 0))), \"\")","v":""},{"$f":"IF(U142<>\"\", IF(INDEX('Full set Core Client Indicator'!$A$3:$AB$351, MATCH(Selection_Hide2!$A142, 'Full set Core Client Indicator'!$A$3:$A$351, 0), MATCH(Selection_Hide2!V$5, 'Full set Core Client Indicator'!$A$3:$AB$3, 0))=\"\", \"\",  INDEX('Full set Core Client Indicator'!$A$3:$AB$351, MATCH(Selection_Hide2!$A142, 'Full set Core Client Indicator'!$A$3:$A$351, 0), MATCH(Selection_Hide2!V$5, 'Full set Core Client Indicator'!$A$3:$AB$3, 0))), \"\")","v":""},{"$f":"IF(V142<>\"\", IF(INDEX('Full set Core Client Indicator'!$A$3:$AB$351, MATCH(Selection_Hide2!$A142, 'Full set Core Client Indicator'!$A$3:$A$351, 0), MATCH(Selection_Hide2!W$5, 'Full set Core Client Indicator'!$A$3:$AB$3, 0))=\"\", \"\",  INDEX('Full set Core Client Indicator'!$A$3:$AB$351, MATCH(Selection_Hide2!$A142, 'Full set Core Client Indicator'!$A$3:$A$351, 0), MATCH(Selection_Hide2!W$5, 'Full set Core Client Indicator'!$A$3:$AB$3, 0))), \"\")","v":""},{"$f":"IF(W142<>\"\", IF(INDEX('Full set Core Client Indicator'!$A$3:$AB$351, MATCH(Selection_Hide2!$A142, 'Full set Core Client Indicator'!$A$3:$A$351, 0), MATCH(Selection_Hide2!X$5, 'Full set Core Client Indicator'!$A$3:$AB$3, 0))=\"\", \"\",  INDEX('Full set Core Client Indicator'!$A$3:$AB$351, MATCH(Selection_Hide2!$A142, 'Full set Core Client Indicator'!$A$3:$A$351, 0), MATCH(Selection_Hide2!X$5, 'Full set Core Client Indicator'!$A$3:$AB$3, 0))), \"\")","v":""},{"$f":"IF(X142<>\"\", IF(INDEX('Full set Core Client Indicator'!$A$3:$AB$351, MATCH(Selection_Hide2!$A142, 'Full set Core Client Indicator'!$A$3:$A$351, 0), MATCH(Selection_Hide2!Y$5, 'Full set Core Client Indicator'!$A$3:$AB$3, 0))=\"\", \"\",  INDEX('Full set Core Client Indicator'!$A$3:$AB$351, MATCH(Selection_Hide2!$A142, 'Full set Core Client Indicator'!$A$3:$A$351, 0), MATCH(Selection_Hide2!Y$5, 'Full set Core Client Indicator'!$A$3:$AB$3, 0))), \"\")","v":""},{"$f":"IF(Y142<>\"\", IF(INDEX('Full set Core Client Indicator'!$A$3:$AB$351, MATCH(Selection_Hide2!$A142, 'Full set Core Client Indicator'!$A$3:$A$351, 0), MATCH(Selection_Hide2!Z$5, 'Full set Core Client Indicator'!$A$3:$AB$3, 0))=\"\", \"\",  INDEX('Full set Core Client Indicator'!$A$3:$AB$351, MATCH(Selection_Hide2!$A142, 'Full set Core Client Indicator'!$A$3:$A$351, 0), MATCH(Selection_Hide2!Z$5, 'Full set Core Client Indicator'!$A$3:$AB$3, 0))), \"\")","v":""},{"$f":"IF(Z142<>\"\", IF(INDEX('Full set Core Client Indicator'!$A$3:$AB$351, MATCH(Selection_Hide2!$A142, 'Full set Core Client Indicator'!$A$3:$A$351, 0), MATCH(Selection_Hide2!AA$5, 'Full set Core Client Indicator'!$A$3:$AB$3, 0))=\"\", \"\",  INDEX('Full set Core Client Indicator'!$A$3:$AB$351, MATCH(Selection_Hide2!$A142, 'Full set Core Client Indicator'!$A$3:$A$351, 0), MATCH(Selection_Hide2!AA$5, 'Full set Core Client Indicator'!$A$3:$AB$3, 0))), \"\")","v":""},{"$f":"IF(AA142<>\"\", IF(INDEX('Full set Core Client Indicator'!$A$3:$AB$351, MATCH(Selection_Hide2!$A142, 'Full set Core Client Indicator'!$A$3:$A$351, 0), MATCH(Selection_Hide2!AB$5, 'Full set Core Client Indicator'!$A$3:$AB$3, 0))=\"\", \"\",  INDEX('Full set Core Client Indicator'!$A$3:$AB$351, MATCH(Selection_Hide2!$A142, 'Full set Core Client Indicator'!$A$3:$A$351, 0), MATCH(Selection_Hide2!AB$5, 'Full set Core Client Indicator'!$A$3:$AB$3, 0))), \"\")","v":""}]
[{"$f":"IF(AND(Selection_Hide1!C141<>0, Selection_Hide1!C141<>\"Grand Total\"), Selection_Hide1!C141, \"\")","v":""},{"$f":"IF(A143<>\"\", IF(INDEX('Full set Core Client Indicator'!$A$3:$AB$351, MATCH(Selection_Hide2!$A143, 'Full set Core Client Indicator'!$A$3:$A$351, 0), MATCH(Selection_Hide2!B$5, 'Full set Core Client Indicator'!$A$3:$AB$3, 0))=\"\", \"\",  INDEX('Full set Core Client Indicator'!$A$3:$AB$351, MATCH(Selection_Hide2!$A143, 'Full set Core Client Indicator'!$A$3:$A$351, 0), MATCH(Selection_Hide2!B$5, 'Full set Core Client Indicator'!$A$3:$AB$3, 0))), \"\")","v":""},{"$f":"IF(B143<>\"\", IF(INDEX('Full set Core Client Indicator'!$A$3:$AB$351, MATCH(Selection_Hide2!$A143, 'Full set Core Client Indicator'!$A$3:$A$351, 0), MATCH(Selection_Hide2!C$5, 'Full set Core Client Indicator'!$A$3:$AB$3, 0))=\"\", \"\",  INDEX('Full set Core Client Indicator'!$A$3:$AB$351, MATCH(Selection_Hide2!$A143, 'Full set Core Client Indicator'!$A$3:$A$351, 0), MATCH(Selection_Hide2!C$5, 'Full set Core Client Indicator'!$A$3:$AB$3, 0))), \"\")","v":""},{"$f":"IF(C143<>\"\", IF(INDEX('Full set Core Client Indicator'!$A$3:$AB$351, MATCH(Selection_Hide2!$A143, 'Full set Core Client Indicator'!$A$3:$A$351, 0), MATCH(Selection_Hide2!D$5, 'Full set Core Client Indicator'!$A$3:$AB$3, 0))=\"\", \"\",  INDEX('Full set Core Client Indicator'!$A$3:$AB$351, MATCH(Selection_Hide2!$A143, 'Full set Core Client Indicator'!$A$3:$A$351, 0), MATCH(Selection_Hide2!D$5, 'Full set Core Client Indicator'!$A$3:$AB$3, 0))), \"\")","v":""},{"$f":"IF(D143<>\"\", IF(INDEX('Full set Core Client Indicator'!$A$3:$AB$351, MATCH(Selection_Hide2!$A143, 'Full set Core Client Indicator'!$A$3:$A$351, 0), MATCH(Selection_Hide2!E$5, 'Full set Core Client Indicator'!$A$3:$AB$3, 0))=\"\", \"\",  INDEX('Full set Core Client Indicator'!$A$3:$AB$351, MATCH(Selection_Hide2!$A143, 'Full set Core Client Indicator'!$A$3:$A$351, 0), MATCH(Selection_Hide2!E$5, 'Full set Core Client Indicator'!$A$3:$AB$3, 0))), \"\")","v":""},{"$f":"IF(E143<>\"\", IF(INDEX('Full set Core Client Indicator'!$A$3:$AB$351, MATCH(Selection_Hide2!$A143, 'Full set Core Client Indicator'!$A$3:$A$351, 0), MATCH(Selection_Hide2!F$5, 'Full set Core Client Indicator'!$A$3:$AB$3, 0))=\"\", \"\",  INDEX('Full set Core Client Indicator'!$A$3:$AB$351, MATCH(Selection_Hide2!$A143, 'Full set Core Client Indicator'!$A$3:$A$351, 0), MATCH(Selection_Hide2!F$5, 'Full set Core Client Indicator'!$A$3:$AB$3, 0))), \"\")","v":""},{"$f":"IF(F143<>\"\", IF(INDEX('Full set Core Client Indicator'!$A$3:$AB$351, MATCH(Selection_Hide2!$A143, 'Full set Core Client Indicator'!$A$3:$A$351, 0), MATCH(Selection_Hide2!G$5, 'Full set Core Client Indicator'!$A$3:$AB$3, 0))=\"\", \"\",  INDEX('Full set Core Client Indicator'!$A$3:$AB$351, MATCH(Selection_Hide2!$A143, 'Full set Core Client Indicator'!$A$3:$A$351, 0), MATCH(Selection_Hide2!G$5, 'Full set Core Client Indicator'!$A$3:$AB$3, 0))), \"\")","v":""},{"$f":"IF(G143<>\"\", IF(INDEX('Full set Core Client Indicator'!$A$3:$AB$351, MATCH(Selection_Hide2!$A143, 'Full set Core Client Indicator'!$A$3:$A$351, 0), MATCH(Selection_Hide2!H$5, 'Full set Core Client Indicator'!$A$3:$AB$3, 0))=\"\", \"\",  INDEX('Full set Core Client Indicator'!$A$3:$AB$351, MATCH(Selection_Hide2!$A143, 'Full set Core Client Indicator'!$A$3:$A$351, 0), MATCH(Selection_Hide2!H$5, 'Full set Core Client Indicator'!$A$3:$AB$3, 0))), \"\")","v":""},{"$f":"IF(H143<>\"\", IF(INDEX('Full set Core Client Indicator'!$A$3:$AB$351, MATCH(Selection_Hide2!$A143, 'Full set Core Client Indicator'!$A$3:$A$351, 0), MATCH(Selection_Hide2!I$5, 'Full set Core Client Indicator'!$A$3:$AB$3, 0))=\"\", \"\",  INDEX('Full set Core Client Indicator'!$A$3:$AB$351, MATCH(Selection_Hide2!$A143, 'Full set Core Client Indicator'!$A$3:$A$351, 0), MATCH(Selection_Hide2!I$5, 'Full set Core Client Indicator'!$A$3:$AB$3, 0))), \"\")","v":""},{"$f":"IF(I143<>\"\", IF(INDEX('Full set Core Client Indicator'!$A$3:$AB$351, MATCH(Selection_Hide2!$A143, 'Full set Core Client Indicator'!$A$3:$A$351, 0), MATCH(Selection_Hide2!J$5, 'Full set Core Client Indicator'!$A$3:$AB$3, 0))=\"\", \"\",  INDEX('Full set Core Client Indicator'!$A$3:$AB$351, MATCH(Selection_Hide2!$A143, 'Full set Core Client Indicator'!$A$3:$A$351, 0), MATCH(Selection_Hide2!J$5, 'Full set Core Client Indicator'!$A$3:$AB$3, 0))), \"\")","v":""},{"$f":"IF(J143<>\"\", IF(INDEX('Full set Core Client Indicator'!$A$3:$AB$351, MATCH(Selection_Hide2!$A143, 'Full set Core Client Indicator'!$A$3:$A$351, 0), MATCH(Selection_Hide2!K$5, 'Full set Core Client Indicator'!$A$3:$AB$3, 0))=\"\", \"\",  INDEX('Full set Core Client Indicator'!$A$3:$AB$351, MATCH(Selection_Hide2!$A143, 'Full set Core Client Indicator'!$A$3:$A$351, 0), MATCH(Selection_Hide2!K$5, 'Full set Core Client Indicator'!$A$3:$AB$3, 0))), \"\")","v":""},{"$f":"IF(K143<>\"\", IF(INDEX('Full set Core Client Indicator'!$A$3:$AB$351, MATCH(Selection_Hide2!$A143, 'Full set Core Client Indicator'!$A$3:$A$351, 0), MATCH(Selection_Hide2!L$5, 'Full set Core Client Indicator'!$A$3:$AB$3, 0))=\"\", \"\",  INDEX('Full set Core Client Indicator'!$A$3:$AB$351, MATCH(Selection_Hide2!$A143, 'Full set Core Client Indicator'!$A$3:$A$351, 0), MATCH(Selection_Hide2!L$5, 'Full set Core Client Indicator'!$A$3:$AB$3, 0))), \"\")","v":""},{"$f":"IF(L143<>\"\", IF(INDEX('Full set Core Client Indicator'!$A$3:$AB$351, MATCH(Selection_Hide2!$A143, 'Full set Core Client Indicator'!$A$3:$A$351, 0), MATCH(Selection_Hide2!M$5, 'Full set Core Client Indicator'!$A$3:$AB$3, 0))=\"\", \"\",  INDEX('Full set Core Client Indicator'!$A$3:$AB$351, MATCH(Selection_Hide2!$A143, 'Full set Core Client Indicator'!$A$3:$A$351, 0), MATCH(Selection_Hide2!M$5, 'Full set Core Client Indicator'!$A$3:$AB$3, 0))), \"\")","v":""},{"$f":"IF(M143<>\"\", IF(INDEX('Full set Core Client Indicator'!$A$3:$AB$351, MATCH(Selection_Hide2!$A143, 'Full set Core Client Indicator'!$A$3:$A$351, 0), MATCH(Selection_Hide2!N$5, 'Full set Core Client Indicator'!$A$3:$AB$3, 0))=\"\", \"\",  INDEX('Full set Core Client Indicator'!$A$3:$AB$351, MATCH(Selection_Hide2!$A143, 'Full set Core Client Indicator'!$A$3:$A$351, 0), MATCH(Selection_Hide2!N$5, 'Full set Core Client Indicator'!$A$3:$AB$3, 0))), \"\")","v":""},{"$f":"IF(N143<>\"\", IF(INDEX('Full set Core Client Indicator'!$A$3:$AB$351, MATCH(Selection_Hide2!$A143, 'Full set Core Client Indicator'!$A$3:$A$351, 0), MATCH(Selection_Hide2!O$5, 'Full set Core Client Indicator'!$A$3:$AB$3, 0))=\"\", \"\",  INDEX('Full set Core Client Indicator'!$A$3:$AB$351, MATCH(Selection_Hide2!$A143, 'Full set Core Client Indicator'!$A$3:$A$351, 0), MATCH(Selection_Hide2!O$5, 'Full set Core Client Indicator'!$A$3:$AB$3, 0))), \"\")","v":""},{"$f":"IF(O143<>\"\", IF(INDEX('Full set Core Client Indicator'!$A$3:$AB$351, MATCH(Selection_Hide2!$A143, 'Full set Core Client Indicator'!$A$3:$A$351, 0), MATCH(Selection_Hide2!P$5, 'Full set Core Client Indicator'!$A$3:$AB$3, 0))=\"\", \"\",  INDEX('Full set Core Client Indicator'!$A$3:$AB$351, MATCH(Selection_Hide2!$A143, 'Full set Core Client Indicator'!$A$3:$A$351, 0), MATCH(Selection_Hide2!P$5, 'Full set Core Client Indicator'!$A$3:$AB$3, 0))), \"\")","v":""},{"$f":"IF(P143<>\"\", IF(INDEX('Full set Core Client Indicator'!$A$3:$AB$351, MATCH(Selection_Hide2!$A143, 'Full set Core Client Indicator'!$A$3:$A$351, 0), MATCH(Selection_Hide2!Q$5, 'Full set Core Client Indicator'!$A$3:$AB$3, 0))=\"\", \"\",  INDEX('Full set Core Client Indicator'!$A$3:$AB$351, MATCH(Selection_Hide2!$A143, 'Full set Core Client Indicator'!$A$3:$A$351, 0), MATCH(Selection_Hide2!Q$5, 'Full set Core Client Indicator'!$A$3:$AB$3, 0))), \"\")","v":""},{"$f":"IF(Q143<>\"\", IF(INDEX('Full set Core Client Indicator'!$A$3:$AB$351, MATCH(Selection_Hide2!$A143, 'Full set Core Client Indicator'!$A$3:$A$351, 0), MATCH(Selection_Hide2!R$5, 'Full set Core Client Indicator'!$A$3:$AB$3, 0))=\"\", \"\",  INDEX('Full set Core Client Indicator'!$A$3:$AB$351, MATCH(Selection_Hide2!$A143, 'Full set Core Client Indicator'!$A$3:$A$351, 0), MATCH(Selection_Hide2!R$5, 'Full set Core Client Indicator'!$A$3:$AB$3, 0))), \"\")","v":""},{"$f":"IF(R143<>\"\", IF(INDEX('Full set Core Client Indicator'!$A$3:$AB$351, MATCH(Selection_Hide2!$A143, 'Full set Core Client Indicator'!$A$3:$A$351, 0), MATCH(Selection_Hide2!S$5, 'Full set Core Client Indicator'!$A$3:$AB$3, 0))=\"\", \"\",  INDEX('Full set Core Client Indicator'!$A$3:$AB$351, MATCH(Selection_Hide2!$A143, 'Full set Core Client Indicator'!$A$3:$A$351, 0), MATCH(Selection_Hide2!S$5, 'Full set Core Client Indicator'!$A$3:$AB$3, 0))), \"\")","v":""},{"$f":"IF(S143<>\"\", IF(INDEX('Full set Core Client Indicator'!$A$3:$AB$351, MATCH(Selection_Hide2!$A143, 'Full set Core Client Indicator'!$A$3:$A$351, 0), MATCH(Selection_Hide2!T$5, 'Full set Core Client Indicator'!$A$3:$AB$3, 0))=\"\", \"\",  INDEX('Full set Core Client Indicator'!$A$3:$AB$351, MATCH(Selection_Hide2!$A143, 'Full set Core Client Indicator'!$A$3:$A$351, 0), MATCH(Selection_Hide2!T$5, 'Full set Core Client Indicator'!$A$3:$AB$3, 0))), \"\")","v":""},{"$f":"IF(T143<>\"\", IF(INDEX('Full set Core Client Indicator'!$A$3:$AB$351, MATCH(Selection_Hide2!$A143, 'Full set Core Client Indicator'!$A$3:$A$351, 0), MATCH(Selection_Hide2!U$5, 'Full set Core Client Indicator'!$A$3:$AB$3, 0))=\"\", \"\",  INDEX('Full set Core Client Indicator'!$A$3:$AB$351, MATCH(Selection_Hide2!$A143, 'Full set Core Client Indicator'!$A$3:$A$351, 0), MATCH(Selection_Hide2!U$5, 'Full set Core Client Indicator'!$A$3:$AB$3, 0))), \"\")","v":""},{"$f":"IF(U143<>\"\", IF(INDEX('Full set Core Client Indicator'!$A$3:$AB$351, MATCH(Selection_Hide2!$A143, 'Full set Core Client Indicator'!$A$3:$A$351, 0), MATCH(Selection_Hide2!V$5, 'Full set Core Client Indicator'!$A$3:$AB$3, 0))=\"\", \"\",  INDEX('Full set Core Client Indicator'!$A$3:$AB$351, MATCH(Selection_Hide2!$A143, 'Full set Core Client Indicator'!$A$3:$A$351, 0), MATCH(Selection_Hide2!V$5, 'Full set Core Client Indicator'!$A$3:$AB$3, 0))), \"\")","v":""},{"$f":"IF(V143<>\"\", IF(INDEX('Full set Core Client Indicator'!$A$3:$AB$351, MATCH(Selection_Hide2!$A143, 'Full set Core Client Indicator'!$A$3:$A$351, 0), MATCH(Selection_Hide2!W$5, 'Full set Core Client Indicator'!$A$3:$AB$3, 0))=\"\", \"\",  INDEX('Full set Core Client Indicator'!$A$3:$AB$351, MATCH(Selection_Hide2!$A143, 'Full set Core Client Indicator'!$A$3:$A$351, 0), MATCH(Selection_Hide2!W$5, 'Full set Core Client Indicator'!$A$3:$AB$3, 0))), \"\")","v":""},{"$f":"IF(W143<>\"\", IF(INDEX('Full set Core Client Indicator'!$A$3:$AB$351, MATCH(Selection_Hide2!$A143, 'Full set Core Client Indicator'!$A$3:$A$351, 0), MATCH(Selection_Hide2!X$5, 'Full set Core Client Indicator'!$A$3:$AB$3, 0))=\"\", \"\",  INDEX('Full set Core Client Indicator'!$A$3:$AB$351, MATCH(Selection_Hide2!$A143, 'Full set Core Client Indicator'!$A$3:$A$351, 0), MATCH(Selection_Hide2!X$5, 'Full set Core Client Indicator'!$A$3:$AB$3, 0))), \"\")","v":""},{"$f":"IF(X143<>\"\", IF(INDEX('Full set Core Client Indicator'!$A$3:$AB$351, MATCH(Selection_Hide2!$A143, 'Full set Core Client Indicator'!$A$3:$A$351, 0), MATCH(Selection_Hide2!Y$5, 'Full set Core Client Indicator'!$A$3:$AB$3, 0))=\"\", \"\",  INDEX('Full set Core Client Indicator'!$A$3:$AB$351, MATCH(Selection_Hide2!$A143, 'Full set Core Client Indicator'!$A$3:$A$351, 0), MATCH(Selection_Hide2!Y$5, 'Full set Core Client Indicator'!$A$3:$AB$3, 0))), \"\")","v":""},{"$f":"IF(Y143<>\"\", IF(INDEX('Full set Core Client Indicator'!$A$3:$AB$351, MATCH(Selection_Hide2!$A143, 'Full set Core Client Indicator'!$A$3:$A$351, 0), MATCH(Selection_Hide2!Z$5, 'Full set Core Client Indicator'!$A$3:$AB$3, 0))=\"\", \"\",  INDEX('Full set Core Client Indicator'!$A$3:$AB$351, MATCH(Selection_Hide2!$A143, 'Full set Core Client Indicator'!$A$3:$A$351, 0), MATCH(Selection_Hide2!Z$5, 'Full set Core Client Indicator'!$A$3:$AB$3, 0))), \"\")","v":""},{"$f":"IF(Z143<>\"\", IF(INDEX('Full set Core Client Indicator'!$A$3:$AB$351, MATCH(Selection_Hide2!$A143, 'Full set Core Client Indicator'!$A$3:$A$351, 0), MATCH(Selection_Hide2!AA$5, 'Full set Core Client Indicator'!$A$3:$AB$3, 0))=\"\", \"\",  INDEX('Full set Core Client Indicator'!$A$3:$AB$351, MATCH(Selection_Hide2!$A143, 'Full set Core Client Indicator'!$A$3:$A$351, 0), MATCH(Selection_Hide2!AA$5, 'Full set Core Client Indicator'!$A$3:$AB$3, 0))), \"\")","v":""},{"$f":"IF(AA143<>\"\", IF(INDEX('Full set Core Client Indicator'!$A$3:$AB$351, MATCH(Selection_Hide2!$A143, 'Full set Core Client Indicator'!$A$3:$A$351, 0), MATCH(Selection_Hide2!AB$5, 'Full set Core Client Indicator'!$A$3:$AB$3, 0))=\"\", \"\",  INDEX('Full set Core Client Indicator'!$A$3:$AB$351, MATCH(Selection_Hide2!$A143, 'Full set Core Client Indicator'!$A$3:$A$351, 0), MATCH(Selection_Hide2!AB$5, 'Full set Core Client Indicator'!$A$3:$AB$3, 0))), \"\")","v":""}]
[{"$f":"IF(AND(Selection_Hide1!C142<>0, Selection_Hide1!C142<>\"Grand Total\"), Selection_Hide1!C142, \"\")","v":""},{"$f":"IF(A144<>\"\", IF(INDEX('Full set Core Client Indicator'!$A$3:$AB$351, MATCH(Selection_Hide2!$A144, 'Full set Core Client Indicator'!$A$3:$A$351, 0), MATCH(Selection_Hide2!B$5, 'Full set Core Client Indicator'!$A$3:$AB$3, 0))=\"\", \"\",  INDEX('Full set Core Client Indicator'!$A$3:$AB$351, MATCH(Selection_Hide2!$A144, 'Full set Core Client Indicator'!$A$3:$A$351, 0), MATCH(Selection_Hide2!B$5, 'Full set Core Client Indicator'!$A$3:$AB$3, 0))), \"\")","v":""},{"$f":"IF(B144<>\"\", IF(INDEX('Full set Core Client Indicator'!$A$3:$AB$351, MATCH(Selection_Hide2!$A144, 'Full set Core Client Indicator'!$A$3:$A$351, 0), MATCH(Selection_Hide2!C$5, 'Full set Core Client Indicator'!$A$3:$AB$3, 0))=\"\", \"\",  INDEX('Full set Core Client Indicator'!$A$3:$AB$351, MATCH(Selection_Hide2!$A144, 'Full set Core Client Indicator'!$A$3:$A$351, 0), MATCH(Selection_Hide2!C$5, 'Full set Core Client Indicator'!$A$3:$AB$3, 0))), \"\")","v":""},{"$f":"IF(C144<>\"\", IF(INDEX('Full set Core Client Indicator'!$A$3:$AB$351, MATCH(Selection_Hide2!$A144, 'Full set Core Client Indicator'!$A$3:$A$351, 0), MATCH(Selection_Hide2!D$5, 'Full set Core Client Indicator'!$A$3:$AB$3, 0))=\"\", \"\",  INDEX('Full set Core Client Indicator'!$A$3:$AB$351, MATCH(Selection_Hide2!$A144, 'Full set Core Client Indicator'!$A$3:$A$351, 0), MATCH(Selection_Hide2!D$5, 'Full set Core Client Indicator'!$A$3:$AB$3, 0))), \"\")","v":""},{"$f":"IF(D144<>\"\", IF(INDEX('Full set Core Client Indicator'!$A$3:$AB$351, MATCH(Selection_Hide2!$A144, 'Full set Core Client Indicator'!$A$3:$A$351, 0), MATCH(Selection_Hide2!E$5, 'Full set Core Client Indicator'!$A$3:$AB$3, 0))=\"\", \"\",  INDEX('Full set Core Client Indicator'!$A$3:$AB$351, MATCH(Selection_Hide2!$A144, 'Full set Core Client Indicator'!$A$3:$A$351, 0), MATCH(Selection_Hide2!E$5, 'Full set Core Client Indicator'!$A$3:$AB$3, 0))), \"\")","v":""},{"$f":"IF(E144<>\"\", IF(INDEX('Full set Core Client Indicator'!$A$3:$AB$351, MATCH(Selection_Hide2!$A144, 'Full set Core Client Indicator'!$A$3:$A$351, 0), MATCH(Selection_Hide2!F$5, 'Full set Core Client Indicator'!$A$3:$AB$3, 0))=\"\", \"\",  INDEX('Full set Core Client Indicator'!$A$3:$AB$351, MATCH(Selection_Hide2!$A144, 'Full set Core Client Indicator'!$A$3:$A$351, 0), MATCH(Selection_Hide2!F$5, 'Full set Core Client Indicator'!$A$3:$AB$3, 0))), \"\")","v":""},{"$f":"IF(F144<>\"\", IF(INDEX('Full set Core Client Indicator'!$A$3:$AB$351, MATCH(Selection_Hide2!$A144, 'Full set Core Client Indicator'!$A$3:$A$351, 0), MATCH(Selection_Hide2!G$5, 'Full set Core Client Indicator'!$A$3:$AB$3, 0))=\"\", \"\",  INDEX('Full set Core Client Indicator'!$A$3:$AB$351, MATCH(Selection_Hide2!$A144, 'Full set Core Client Indicator'!$A$3:$A$351, 0), MATCH(Selection_Hide2!G$5, 'Full set Core Client Indicator'!$A$3:$AB$3, 0))), \"\")","v":""},{"$f":"IF(G144<>\"\", IF(INDEX('Full set Core Client Indicator'!$A$3:$AB$351, MATCH(Selection_Hide2!$A144, 'Full set Core Client Indicator'!$A$3:$A$351, 0), MATCH(Selection_Hide2!H$5, 'Full set Core Client Indicator'!$A$3:$AB$3, 0))=\"\", \"\",  INDEX('Full set Core Client Indicator'!$A$3:$AB$351, MATCH(Selection_Hide2!$A144, 'Full set Core Client Indicator'!$A$3:$A$351, 0), MATCH(Selection_Hide2!H$5, 'Full set Core Client Indicator'!$A$3:$AB$3, 0))), \"\")","v":""},{"$f":"IF(H144<>\"\", IF(INDEX('Full set Core Client Indicator'!$A$3:$AB$351, MATCH(Selection_Hide2!$A144, 'Full set Core Client Indicator'!$A$3:$A$351, 0), MATCH(Selection_Hide2!I$5, 'Full set Core Client Indicator'!$A$3:$AB$3, 0))=\"\", \"\",  INDEX('Full set Core Client Indicator'!$A$3:$AB$351, MATCH(Selection_Hide2!$A144, 'Full set Core Client Indicator'!$A$3:$A$351, 0), MATCH(Selection_Hide2!I$5, 'Full set Core Client Indicator'!$A$3:$AB$3, 0))), \"\")","v":""},{"$f":"IF(I144<>\"\", IF(INDEX('Full set Core Client Indicator'!$A$3:$AB$351, MATCH(Selection_Hide2!$A144, 'Full set Core Client Indicator'!$A$3:$A$351, 0), MATCH(Selection_Hide2!J$5, 'Full set Core Client Indicator'!$A$3:$AB$3, 0))=\"\", \"\",  INDEX('Full set Core Client Indicator'!$A$3:$AB$351, MATCH(Selection_Hide2!$A144, 'Full set Core Client Indicator'!$A$3:$A$351, 0), MATCH(Selection_Hide2!J$5, 'Full set Core Client Indicator'!$A$3:$AB$3, 0))), \"\")","v":""},{"$f":"IF(J144<>\"\", IF(INDEX('Full set Core Client Indicator'!$A$3:$AB$351, MATCH(Selection_Hide2!$A144, 'Full set Core Client Indicator'!$A$3:$A$351, 0), MATCH(Selection_Hide2!K$5, 'Full set Core Client Indicator'!$A$3:$AB$3, 0))=\"\", \"\",  INDEX('Full set Core Client Indicator'!$A$3:$AB$351, MATCH(Selection_Hide2!$A144, 'Full set Core Client Indicator'!$A$3:$A$351, 0), MATCH(Selection_Hide2!K$5, 'Full set Core Client Indicator'!$A$3:$AB$3, 0))), \"\")","v":""},{"$f":"IF(K144<>\"\", IF(INDEX('Full set Core Client Indicator'!$A$3:$AB$351, MATCH(Selection_Hide2!$A144, 'Full set Core Client Indicator'!$A$3:$A$351, 0), MATCH(Selection_Hide2!L$5, 'Full set Core Client Indicator'!$A$3:$AB$3, 0))=\"\", \"\",  INDEX('Full set Core Client Indicator'!$A$3:$AB$351, MATCH(Selection_Hide2!$A144, 'Full set Core Client Indicator'!$A$3:$A$351, 0), MATCH(Selection_Hide2!L$5, 'Full set Core Client Indicator'!$A$3:$AB$3, 0))), \"\")","v":""},{"$f":"IF(L144<>\"\", IF(INDEX('Full set Core Client Indicator'!$A$3:$AB$351, MATCH(Selection_Hide2!$A144, 'Full set Core Client Indicator'!$A$3:$A$351, 0), MATCH(Selection_Hide2!M$5, 'Full set Core Client Indicator'!$A$3:$AB$3, 0))=\"\", \"\",  INDEX('Full set Core Client Indicator'!$A$3:$AB$351, MATCH(Selection_Hide2!$A144, 'Full set Core Client Indicator'!$A$3:$A$351, 0), MATCH(Selection_Hide2!M$5, 'Full set Core Client Indicator'!$A$3:$AB$3, 0))), \"\")","v":""},{"$f":"IF(M144<>\"\", IF(INDEX('Full set Core Client Indicator'!$A$3:$AB$351, MATCH(Selection_Hide2!$A144, 'Full set Core Client Indicator'!$A$3:$A$351, 0), MATCH(Selection_Hide2!N$5, 'Full set Core Client Indicator'!$A$3:$AB$3, 0))=\"\", \"\",  INDEX('Full set Core Client Indicator'!$A$3:$AB$351, MATCH(Selection_Hide2!$A144, 'Full set Core Client Indicator'!$A$3:$A$351, 0), MATCH(Selection_Hide2!N$5, 'Full set Core Client Indicator'!$A$3:$AB$3, 0))), \"\")","v":""},{"$f":"IF(N144<>\"\", IF(INDEX('Full set Core Client Indicator'!$A$3:$AB$351, MATCH(Selection_Hide2!$A144, 'Full set Core Client Indicator'!$A$3:$A$351, 0), MATCH(Selection_Hide2!O$5, 'Full set Core Client Indicator'!$A$3:$AB$3, 0))=\"\", \"\",  INDEX('Full set Core Client Indicator'!$A$3:$AB$351, MATCH(Selection_Hide2!$A144, 'Full set Core Client Indicator'!$A$3:$A$351, 0), MATCH(Selection_Hide2!O$5, 'Full set Core Client Indicator'!$A$3:$AB$3, 0))), \"\")","v":""},{"$f":"IF(O144<>\"\", IF(INDEX('Full set Core Client Indicator'!$A$3:$AB$351, MATCH(Selection_Hide2!$A144, 'Full set Core Client Indicator'!$A$3:$A$351, 0), MATCH(Selection_Hide2!P$5, 'Full set Core Client Indicator'!$A$3:$AB$3, 0))=\"\", \"\",  INDEX('Full set Core Client Indicator'!$A$3:$AB$351, MATCH(Selection_Hide2!$A144, 'Full set Core Client Indicator'!$A$3:$A$351, 0), MATCH(Selection_Hide2!P$5, 'Full set Core Client Indicator'!$A$3:$AB$3, 0))), \"\")","v":""},{"$f":"IF(P144<>\"\", IF(INDEX('Full set Core Client Indicator'!$A$3:$AB$351, MATCH(Selection_Hide2!$A144, 'Full set Core Client Indicator'!$A$3:$A$351, 0), MATCH(Selection_Hide2!Q$5, 'Full set Core Client Indicator'!$A$3:$AB$3, 0))=\"\", \"\",  INDEX('Full set Core Client Indicator'!$A$3:$AB$351, MATCH(Selection_Hide2!$A144, 'Full set Core Client Indicator'!$A$3:$A$351, 0), MATCH(Selection_Hide2!Q$5, 'Full set Core Client Indicator'!$A$3:$AB$3, 0))), \"\")","v":""},{"$f":"IF(Q144<>\"\", IF(INDEX('Full set Core Client Indicator'!$A$3:$AB$351, MATCH(Selection_Hide2!$A144, 'Full set Core Client Indicator'!$A$3:$A$351, 0), MATCH(Selection_Hide2!R$5, 'Full set Core Client Indicator'!$A$3:$AB$3, 0))=\"\", \"\",  INDEX('Full set Core Client Indicator'!$A$3:$AB$351, MATCH(Selection_Hide2!$A144, 'Full set Core Client Indicator'!$A$3:$A$351, 0), MATCH(Selection_Hide2!R$5, 'Full set Core Client Indicator'!$A$3:$AB$3, 0))), \"\")","v":""},{"$f":"IF(R144<>\"\", IF(INDEX('Full set Core Client Indicator'!$A$3:$AB$351, MATCH(Selection_Hide2!$A144, 'Full set Core Client Indicator'!$A$3:$A$351, 0), MATCH(Selection_Hide2!S$5, 'Full set Core Client Indicator'!$A$3:$AB$3, 0))=\"\", \"\",  INDEX('Full set Core Client Indicator'!$A$3:$AB$351, MATCH(Selection_Hide2!$A144, 'Full set Core Client Indicator'!$A$3:$A$351, 0), MATCH(Selection_Hide2!S$5, 'Full set Core Client Indicator'!$A$3:$AB$3, 0))), \"\")","v":""},{"$f":"IF(S144<>\"\", IF(INDEX('Full set Core Client Indicator'!$A$3:$AB$351, MATCH(Selection_Hide2!$A144, 'Full set Core Client Indicator'!$A$3:$A$351, 0), MATCH(Selection_Hide2!T$5, 'Full set Core Client Indicator'!$A$3:$AB$3, 0))=\"\", \"\",  INDEX('Full set Core Client Indicator'!$A$3:$AB$351, MATCH(Selection_Hide2!$A144, 'Full set Core Client Indicator'!$A$3:$A$351, 0), MATCH(Selection_Hide2!T$5, 'Full set Core Client Indicator'!$A$3:$AB$3, 0))), \"\")","v":""},{"$f":"IF(T144<>\"\", IF(INDEX('Full set Core Client Indicator'!$A$3:$AB$351, MATCH(Selection_Hide2!$A144, 'Full set Core Client Indicator'!$A$3:$A$351, 0), MATCH(Selection_Hide2!U$5, 'Full set Core Client Indicator'!$A$3:$AB$3, 0))=\"\", \"\",  INDEX('Full set Core Client Indicator'!$A$3:$AB$351, MATCH(Selection_Hide2!$A144, 'Full set Core Client Indicator'!$A$3:$A$351, 0), MATCH(Selection_Hide2!U$5, 'Full set Core Client Indicator'!$A$3:$AB$3, 0))), \"\")","v":""},{"$f":"IF(U144<>\"\", IF(INDEX('Full set Core Client Indicator'!$A$3:$AB$351, MATCH(Selection_Hide2!$A144, 'Full set Core Client Indicator'!$A$3:$A$351, 0), MATCH(Selection_Hide2!V$5, 'Full set Core Client Indicator'!$A$3:$AB$3, 0))=\"\", \"\",  INDEX('Full set Core Client Indicator'!$A$3:$AB$351, MATCH(Selection_Hide2!$A144, 'Full set Core Client Indicator'!$A$3:$A$351, 0), MATCH(Selection_Hide2!V$5, 'Full set Core Client Indicator'!$A$3:$AB$3, 0))), \"\")","v":""},{"$f":"IF(V144<>\"\", IF(INDEX('Full set Core Client Indicator'!$A$3:$AB$351, MATCH(Selection_Hide2!$A144, 'Full set Core Client Indicator'!$A$3:$A$351, 0), MATCH(Selection_Hide2!W$5, 'Full set Core Client Indicator'!$A$3:$AB$3, 0))=\"\", \"\",  INDEX('Full set Core Client Indicator'!$A$3:$AB$351, MATCH(Selection_Hide2!$A144, 'Full set Core Client Indicator'!$A$3:$A$351, 0), MATCH(Selection_Hide2!W$5, 'Full set Core Client Indicator'!$A$3:$AB$3, 0))), \"\")","v":""},{"$f":"IF(W144<>\"\", IF(INDEX('Full set Core Client Indicator'!$A$3:$AB$351, MATCH(Selection_Hide2!$A144, 'Full set Core Client Indicator'!$A$3:$A$351, 0), MATCH(Selection_Hide2!X$5, 'Full set Core Client Indicator'!$A$3:$AB$3, 0))=\"\", \"\",  INDEX('Full set Core Client Indicator'!$A$3:$AB$351, MATCH(Selection_Hide2!$A144, 'Full set Core Client Indicator'!$A$3:$A$351, 0), MATCH(Selection_Hide2!X$5, 'Full set Core Client Indicator'!$A$3:$AB$3, 0))), \"\")","v":""},{"$f":"IF(X144<>\"\", IF(INDEX('Full set Core Client Indicator'!$A$3:$AB$351, MATCH(Selection_Hide2!$A144, 'Full set Core Client Indicator'!$A$3:$A$351, 0), MATCH(Selection_Hide2!Y$5, 'Full set Core Client Indicator'!$A$3:$AB$3, 0))=\"\", \"\",  INDEX('Full set Core Client Indicator'!$A$3:$AB$351, MATCH(Selection_Hide2!$A144, 'Full set Core Client Indicator'!$A$3:$A$351, 0), MATCH(Selection_Hide2!Y$5, 'Full set Core Client Indicator'!$A$3:$AB$3, 0))), \"\")","v":""},{"$f":"IF(Y144<>\"\", IF(INDEX('Full set Core Client Indicator'!$A$3:$AB$351, MATCH(Selection_Hide2!$A144, 'Full set Core Client Indicator'!$A$3:$A$351, 0), MATCH(Selection_Hide2!Z$5, 'Full set Core Client Indicator'!$A$3:$AB$3, 0))=\"\", \"\",  INDEX('Full set Core Client Indicator'!$A$3:$AB$351, MATCH(Selection_Hide2!$A144, 'Full set Core Client Indicator'!$A$3:$A$351, 0), MATCH(Selection_Hide2!Z$5, 'Full set Core Client Indicator'!$A$3:$AB$3, 0))), \"\")","v":""},{"$f":"IF(Z144<>\"\", IF(INDEX('Full set Core Client Indicator'!$A$3:$AB$351, MATCH(Selection_Hide2!$A144, 'Full set Core Client Indicator'!$A$3:$A$351, 0), MATCH(Selection_Hide2!AA$5, 'Full set Core Client Indicator'!$A$3:$AB$3, 0))=\"\", \"\",  INDEX('Full set Core Client Indicator'!$A$3:$AB$351, MATCH(Selection_Hide2!$A144, 'Full set Core Client Indicator'!$A$3:$A$351, 0), MATCH(Selection_Hide2!AA$5, 'Full set Core Client Indicator'!$A$3:$AB$3, 0))), \"\")","v":""},{"$f":"IF(AA144<>\"\", IF(INDEX('Full set Core Client Indicator'!$A$3:$AB$351, MATCH(Selection_Hide2!$A144, 'Full set Core Client Indicator'!$A$3:$A$351, 0), MATCH(Selection_Hide2!AB$5, 'Full set Core Client Indicator'!$A$3:$AB$3, 0))=\"\", \"\",  INDEX('Full set Core Client Indicator'!$A$3:$AB$351, MATCH(Selection_Hide2!$A144, 'Full set Core Client Indicator'!$A$3:$A$351, 0), MATCH(Selection_Hide2!AB$5, 'Full set Core Client Indicator'!$A$3:$AB$3, 0))), \"\")","v":""}]
[{"$f":"IF(AND(Selection_Hide1!C143<>0, Selection_Hide1!C143<>\"Grand Total\"), Selection_Hide1!C143, \"\")","v":""},{"$f":"IF(A145<>\"\", IF(INDEX('Full set Core Client Indicator'!$A$3:$AB$351, MATCH(Selection_Hide2!$A145, 'Full set Core Client Indicator'!$A$3:$A$351, 0), MATCH(Selection_Hide2!B$5, 'Full set Core Client Indicator'!$A$3:$AB$3, 0))=\"\", \"\",  INDEX('Full set Core Client Indicator'!$A$3:$AB$351, MATCH(Selection_Hide2!$A145, 'Full set Core Client Indicator'!$A$3:$A$351, 0), MATCH(Selection_Hide2!B$5, 'Full set Core Client Indicator'!$A$3:$AB$3, 0))), \"\")","v":""},{"$f":"IF(B145<>\"\", IF(INDEX('Full set Core Client Indicator'!$A$3:$AB$351, MATCH(Selection_Hide2!$A145, 'Full set Core Client Indicator'!$A$3:$A$351, 0), MATCH(Selection_Hide2!C$5, 'Full set Core Client Indicator'!$A$3:$AB$3, 0))=\"\", \"\",  INDEX('Full set Core Client Indicator'!$A$3:$AB$351, MATCH(Selection_Hide2!$A145, 'Full set Core Client Indicator'!$A$3:$A$351, 0), MATCH(Selection_Hide2!C$5, 'Full set Core Client Indicator'!$A$3:$AB$3, 0))), \"\")","v":""},{"$f":"IF(C145<>\"\", IF(INDEX('Full set Core Client Indicator'!$A$3:$AB$351, MATCH(Selection_Hide2!$A145, 'Full set Core Client Indicator'!$A$3:$A$351, 0), MATCH(Selection_Hide2!D$5, 'Full set Core Client Indicator'!$A$3:$AB$3, 0))=\"\", \"\",  INDEX('Full set Core Client Indicator'!$A$3:$AB$351, MATCH(Selection_Hide2!$A145, 'Full set Core Client Indicator'!$A$3:$A$351, 0), MATCH(Selection_Hide2!D$5, 'Full set Core Client Indicator'!$A$3:$AB$3, 0))), \"\")","v":""},{"$f":"IF(D145<>\"\", IF(INDEX('Full set Core Client Indicator'!$A$3:$AB$351, MATCH(Selection_Hide2!$A145, 'Full set Core Client Indicator'!$A$3:$A$351, 0), MATCH(Selection_Hide2!E$5, 'Full set Core Client Indicator'!$A$3:$AB$3, 0))=\"\", \"\",  INDEX('Full set Core Client Indicator'!$A$3:$AB$351, MATCH(Selection_Hide2!$A145, 'Full set Core Client Indicator'!$A$3:$A$351, 0), MATCH(Selection_Hide2!E$5, 'Full set Core Client Indicator'!$A$3:$AB$3, 0))), \"\")","v":""},{"$f":"IF(E145<>\"\", IF(INDEX('Full set Core Client Indicator'!$A$3:$AB$351, MATCH(Selection_Hide2!$A145, 'Full set Core Client Indicator'!$A$3:$A$351, 0), MATCH(Selection_Hide2!F$5, 'Full set Core Client Indicator'!$A$3:$AB$3, 0))=\"\", \"\",  INDEX('Full set Core Client Indicator'!$A$3:$AB$351, MATCH(Selection_Hide2!$A145, 'Full set Core Client Indicator'!$A$3:$A$351, 0), MATCH(Selection_Hide2!F$5, 'Full set Core Client Indicator'!$A$3:$AB$3, 0))), \"\")","v":""},{"$f":"IF(F145<>\"\", IF(INDEX('Full set Core Client Indicator'!$A$3:$AB$351, MATCH(Selection_Hide2!$A145, 'Full set Core Client Indicator'!$A$3:$A$351, 0), MATCH(Selection_Hide2!G$5, 'Full set Core Client Indicator'!$A$3:$AB$3, 0))=\"\", \"\",  INDEX('Full set Core Client Indicator'!$A$3:$AB$351, MATCH(Selection_Hide2!$A145, 'Full set Core Client Indicator'!$A$3:$A$351, 0), MATCH(Selection_Hide2!G$5, 'Full set Core Client Indicator'!$A$3:$AB$3, 0))), \"\")","v":""},{"$f":"IF(G145<>\"\", IF(INDEX('Full set Core Client Indicator'!$A$3:$AB$351, MATCH(Selection_Hide2!$A145, 'Full set Core Client Indicator'!$A$3:$A$351, 0), MATCH(Selection_Hide2!H$5, 'Full set Core Client Indicator'!$A$3:$AB$3, 0))=\"\", \"\",  INDEX('Full set Core Client Indicator'!$A$3:$AB$351, MATCH(Selection_Hide2!$A145, 'Full set Core Client Indicator'!$A$3:$A$351, 0), MATCH(Selection_Hide2!H$5, 'Full set Core Client Indicator'!$A$3:$AB$3, 0))), \"\")","v":""},{"$f":"IF(H145<>\"\", IF(INDEX('Full set Core Client Indicator'!$A$3:$AB$351, MATCH(Selection_Hide2!$A145, 'Full set Core Client Indicator'!$A$3:$A$351, 0), MATCH(Selection_Hide2!I$5, 'Full set Core Client Indicator'!$A$3:$AB$3, 0))=\"\", \"\",  INDEX('Full set Core Client Indicator'!$A$3:$AB$351, MATCH(Selection_Hide2!$A145, 'Full set Core Client Indicator'!$A$3:$A$351, 0), MATCH(Selection_Hide2!I$5, 'Full set Core Client Indicator'!$A$3:$AB$3, 0))), \"\")","v":""},{"$f":"IF(I145<>\"\", IF(INDEX('Full set Core Client Indicator'!$A$3:$AB$351, MATCH(Selection_Hide2!$A145, 'Full set Core Client Indicator'!$A$3:$A$351, 0), MATCH(Selection_Hide2!J$5, 'Full set Core Client Indicator'!$A$3:$AB$3, 0))=\"\", \"\",  INDEX('Full set Core Client Indicator'!$A$3:$AB$351, MATCH(Selection_Hide2!$A145, 'Full set Core Client Indicator'!$A$3:$A$351, 0), MATCH(Selection_Hide2!J$5, 'Full set Core Client Indicator'!$A$3:$AB$3, 0))), \"\")","v":""},{"$f":"IF(J145<>\"\", IF(INDEX('Full set Core Client Indicator'!$A$3:$AB$351, MATCH(Selection_Hide2!$A145, 'Full set Core Client Indicator'!$A$3:$A$351, 0), MATCH(Selection_Hide2!K$5, 'Full set Core Client Indicator'!$A$3:$AB$3, 0))=\"\", \"\",  INDEX('Full set Core Client Indicator'!$A$3:$AB$351, MATCH(Selection_Hide2!$A145, 'Full set Core Client Indicator'!$A$3:$A$351, 0), MATCH(Selection_Hide2!K$5, 'Full set Core Client Indicator'!$A$3:$AB$3, 0))), \"\")","v":""},{"$f":"IF(K145<>\"\", IF(INDEX('Full set Core Client Indicator'!$A$3:$AB$351, MATCH(Selection_Hide2!$A145, 'Full set Core Client Indicator'!$A$3:$A$351, 0), MATCH(Selection_Hide2!L$5, 'Full set Core Client Indicator'!$A$3:$AB$3, 0))=\"\", \"\",  INDEX('Full set Core Client Indicator'!$A$3:$AB$351, MATCH(Selection_Hide2!$A145, 'Full set Core Client Indicator'!$A$3:$A$351, 0), MATCH(Selection_Hide2!L$5, 'Full set Core Client Indicator'!$A$3:$AB$3, 0))), \"\")","v":""},{"$f":"IF(L145<>\"\", IF(INDEX('Full set Core Client Indicator'!$A$3:$AB$351, MATCH(Selection_Hide2!$A145, 'Full set Core Client Indicator'!$A$3:$A$351, 0), MATCH(Selection_Hide2!M$5, 'Full set Core Client Indicator'!$A$3:$AB$3, 0))=\"\", \"\",  INDEX('Full set Core Client Indicator'!$A$3:$AB$351, MATCH(Selection_Hide2!$A145, 'Full set Core Client Indicator'!$A$3:$A$351, 0), MATCH(Selection_Hide2!M$5, 'Full set Core Client Indicator'!$A$3:$AB$3, 0))), \"\")","v":""},{"$f":"IF(M145<>\"\", IF(INDEX('Full set Core Client Indicator'!$A$3:$AB$351, MATCH(Selection_Hide2!$A145, 'Full set Core Client Indicator'!$A$3:$A$351, 0), MATCH(Selection_Hide2!N$5, 'Full set Core Client Indicator'!$A$3:$AB$3, 0))=\"\", \"\",  INDEX('Full set Core Client Indicator'!$A$3:$AB$351, MATCH(Selection_Hide2!$A145, 'Full set Core Client Indicator'!$A$3:$A$351, 0), MATCH(Selection_Hide2!N$5, 'Full set Core Client Indicator'!$A$3:$AB$3, 0))), \"\")","v":""},{"$f":"IF(N145<>\"\", IF(INDEX('Full set Core Client Indicator'!$A$3:$AB$351, MATCH(Selection_Hide2!$A145, 'Full set Core Client Indicator'!$A$3:$A$351, 0), MATCH(Selection_Hide2!O$5, 'Full set Core Client Indicator'!$A$3:$AB$3, 0))=\"\", \"\",  INDEX('Full set Core Client Indicator'!$A$3:$AB$351, MATCH(Selection_Hide2!$A145, 'Full set Core Client Indicator'!$A$3:$A$351, 0), MATCH(Selection_Hide2!O$5, 'Full set Core Client Indicator'!$A$3:$AB$3, 0))), \"\")","v":""},{"$f":"IF(O145<>\"\", IF(INDEX('Full set Core Client Indicator'!$A$3:$AB$351, MATCH(Selection_Hide2!$A145, 'Full set Core Client Indicator'!$A$3:$A$351, 0), MATCH(Selection_Hide2!P$5, 'Full set Core Client Indicator'!$A$3:$AB$3, 0))=\"\", \"\",  INDEX('Full set Core Client Indicator'!$A$3:$AB$351, MATCH(Selection_Hide2!$A145, 'Full set Core Client Indicator'!$A$3:$A$351, 0), MATCH(Selection_Hide2!P$5, 'Full set Core Client Indicator'!$A$3:$AB$3, 0))), \"\")","v":""},{"$f":"IF(P145<>\"\", IF(INDEX('Full set Core Client Indicator'!$A$3:$AB$351, MATCH(Selection_Hide2!$A145, 'Full set Core Client Indicator'!$A$3:$A$351, 0), MATCH(Selection_Hide2!Q$5, 'Full set Core Client Indicator'!$A$3:$AB$3, 0))=\"\", \"\",  INDEX('Full set Core Client Indicator'!$A$3:$AB$351, MATCH(Selection_Hide2!$A145, 'Full set Core Client Indicator'!$A$3:$A$351, 0), MATCH(Selection_Hide2!Q$5, 'Full set Core Client Indicator'!$A$3:$AB$3, 0))), \"\")","v":""},{"$f":"IF(Q145<>\"\", IF(INDEX('Full set Core Client Indicator'!$A$3:$AB$351, MATCH(Selection_Hide2!$A145, 'Full set Core Client Indicator'!$A$3:$A$351, 0), MATCH(Selection_Hide2!R$5, 'Full set Core Client Indicator'!$A$3:$AB$3, 0))=\"\", \"\",  INDEX('Full set Core Client Indicator'!$A$3:$AB$351, MATCH(Selection_Hide2!$A145, 'Full set Core Client Indicator'!$A$3:$A$351, 0), MATCH(Selection_Hide2!R$5, 'Full set Core Client Indicator'!$A$3:$AB$3, 0))), \"\")","v":""},{"$f":"IF(R145<>\"\", IF(INDEX('Full set Core Client Indicator'!$A$3:$AB$351, MATCH(Selection_Hide2!$A145, 'Full set Core Client Indicator'!$A$3:$A$351, 0), MATCH(Selection_Hide2!S$5, 'Full set Core Client Indicator'!$A$3:$AB$3, 0))=\"\", \"\",  INDEX('Full set Core Client Indicator'!$A$3:$AB$351, MATCH(Selection_Hide2!$A145, 'Full set Core Client Indicator'!$A$3:$A$351, 0), MATCH(Selection_Hide2!S$5, 'Full set Core Client Indicator'!$A$3:$AB$3, 0))), \"\")","v":""},{"$f":"IF(S145<>\"\", IF(INDEX('Full set Core Client Indicator'!$A$3:$AB$351, MATCH(Selection_Hide2!$A145, 'Full set Core Client Indicator'!$A$3:$A$351, 0), MATCH(Selection_Hide2!T$5, 'Full set Core Client Indicator'!$A$3:$AB$3, 0))=\"\", \"\",  INDEX('Full set Core Client Indicator'!$A$3:$AB$351, MATCH(Selection_Hide2!$A145, 'Full set Core Client Indicator'!$A$3:$A$351, 0), MATCH(Selection_Hide2!T$5, 'Full set Core Client Indicator'!$A$3:$AB$3, 0))), \"\")","v":""},{"$f":"IF(T145<>\"\", IF(INDEX('Full set Core Client Indicator'!$A$3:$AB$351, MATCH(Selection_Hide2!$A145, 'Full set Core Client Indicator'!$A$3:$A$351, 0), MATCH(Selection_Hide2!U$5, 'Full set Core Client Indicator'!$A$3:$AB$3, 0))=\"\", \"\",  INDEX('Full set Core Client Indicator'!$A$3:$AB$351, MATCH(Selection_Hide2!$A145, 'Full set Core Client Indicator'!$A$3:$A$351, 0), MATCH(Selection_Hide2!U$5, 'Full set Core Client Indicator'!$A$3:$AB$3, 0))), \"\")","v":""},{"$f":"IF(U145<>\"\", IF(INDEX('Full set Core Client Indicator'!$A$3:$AB$351, MATCH(Selection_Hide2!$A145, 'Full set Core Client Indicator'!$A$3:$A$351, 0), MATCH(Selection_Hide2!V$5, 'Full set Core Client Indicator'!$A$3:$AB$3, 0))=\"\", \"\",  INDEX('Full set Core Client Indicator'!$A$3:$AB$351, MATCH(Selection_Hide2!$A145, 'Full set Core Client Indicator'!$A$3:$A$351, 0), MATCH(Selection_Hide2!V$5, 'Full set Core Client Indicator'!$A$3:$AB$3, 0))), \"\")","v":""},{"$f":"IF(V145<>\"\", IF(INDEX('Full set Core Client Indicator'!$A$3:$AB$351, MATCH(Selection_Hide2!$A145, 'Full set Core Client Indicator'!$A$3:$A$351, 0), MATCH(Selection_Hide2!W$5, 'Full set Core Client Indicator'!$A$3:$AB$3, 0))=\"\", \"\",  INDEX('Full set Core Client Indicator'!$A$3:$AB$351, MATCH(Selection_Hide2!$A145, 'Full set Core Client Indicator'!$A$3:$A$351, 0), MATCH(Selection_Hide2!W$5, 'Full set Core Client Indicator'!$A$3:$AB$3, 0))), \"\")","v":""},{"$f":"IF(W145<>\"\", IF(INDEX('Full set Core Client Indicator'!$A$3:$AB$351, MATCH(Selection_Hide2!$A145, 'Full set Core Client Indicator'!$A$3:$A$351, 0), MATCH(Selection_Hide2!X$5, 'Full set Core Client Indicator'!$A$3:$AB$3, 0))=\"\", \"\",  INDEX('Full set Core Client Indicator'!$A$3:$AB$351, MATCH(Selection_Hide2!$A145, 'Full set Core Client Indicator'!$A$3:$A$351, 0), MATCH(Selection_Hide2!X$5, 'Full set Core Client Indicator'!$A$3:$AB$3, 0))), \"\")","v":""},{"$f":"IF(X145<>\"\", IF(INDEX('Full set Core Client Indicator'!$A$3:$AB$351, MATCH(Selection_Hide2!$A145, 'Full set Core Client Indicator'!$A$3:$A$351, 0), MATCH(Selection_Hide2!Y$5, 'Full set Core Client Indicator'!$A$3:$AB$3, 0))=\"\", \"\",  INDEX('Full set Core Client Indicator'!$A$3:$AB$351, MATCH(Selection_Hide2!$A145, 'Full set Core Client Indicator'!$A$3:$A$351, 0), MATCH(Selection_Hide2!Y$5, 'Full set Core Client Indicator'!$A$3:$AB$3, 0))), \"\")","v":""},{"$f":"IF(Y145<>\"\", IF(INDEX('Full set Core Client Indicator'!$A$3:$AB$351, MATCH(Selection_Hide2!$A145, 'Full set Core Client Indicator'!$A$3:$A$351, 0), MATCH(Selection_Hide2!Z$5, 'Full set Core Client Indicator'!$A$3:$AB$3, 0))=\"\", \"\",  INDEX('Full set Core Client Indicator'!$A$3:$AB$351, MATCH(Selection_Hide2!$A145, 'Full set Core Client Indicator'!$A$3:$A$351, 0), MATCH(Selection_Hide2!Z$5, 'Full set Core Client Indicator'!$A$3:$AB$3, 0))), \"\")","v":""},{"$f":"IF(Z145<>\"\", IF(INDEX('Full set Core Client Indicator'!$A$3:$AB$351, MATCH(Selection_Hide2!$A145, 'Full set Core Client Indicator'!$A$3:$A$351, 0), MATCH(Selection_Hide2!AA$5, 'Full set Core Client Indicator'!$A$3:$AB$3, 0))=\"\", \"\",  INDEX('Full set Core Client Indicator'!$A$3:$AB$351, MATCH(Selection_Hide2!$A145, 'Full set Core Client Indicator'!$A$3:$A$351, 0), MATCH(Selection_Hide2!AA$5, 'Full set Core Client Indicator'!$A$3:$AB$3, 0))), \"\")","v":""},{"$f":"IF(AA145<>\"\", IF(INDEX('Full set Core Client Indicator'!$A$3:$AB$351, MATCH(Selection_Hide2!$A145, 'Full set Core Client Indicator'!$A$3:$A$351, 0), MATCH(Selection_Hide2!AB$5, 'Full set Core Client Indicator'!$A$3:$AB$3, 0))=\"\", \"\",  INDEX('Full set Core Client Indicator'!$A$3:$AB$351, MATCH(Selection_Hide2!$A145, 'Full set Core Client Indicator'!$A$3:$A$351, 0), MATCH(Selection_Hide2!AB$5, 'Full set Core Client Indicator'!$A$3:$AB$3, 0))), \"\")","v":""}]
[{"$f":"IF(AND(Selection_Hide1!C144<>0, Selection_Hide1!C144<>\"Grand Total\"), Selection_Hide1!C144, \"\")","v":""},{"$f":"IF(A146<>\"\", IF(INDEX('Full set Core Client Indicator'!$A$3:$AB$351, MATCH(Selection_Hide2!$A146, 'Full set Core Client Indicator'!$A$3:$A$351, 0), MATCH(Selection_Hide2!B$5, 'Full set Core Client Indicator'!$A$3:$AB$3, 0))=\"\", \"\",  INDEX('Full set Core Client Indicator'!$A$3:$AB$351, MATCH(Selection_Hide2!$A146, 'Full set Core Client Indicator'!$A$3:$A$351, 0), MATCH(Selection_Hide2!B$5, 'Full set Core Client Indicator'!$A$3:$AB$3, 0))), \"\")","v":""},{"$f":"IF(B146<>\"\", IF(INDEX('Full set Core Client Indicator'!$A$3:$AB$351, MATCH(Selection_Hide2!$A146, 'Full set Core Client Indicator'!$A$3:$A$351, 0), MATCH(Selection_Hide2!C$5, 'Full set Core Client Indicator'!$A$3:$AB$3, 0))=\"\", \"\",  INDEX('Full set Core Client Indicator'!$A$3:$AB$351, MATCH(Selection_Hide2!$A146, 'Full set Core Client Indicator'!$A$3:$A$351, 0), MATCH(Selection_Hide2!C$5, 'Full set Core Client Indicator'!$A$3:$AB$3, 0))), \"\")","v":""},{"$f":"IF(C146<>\"\", IF(INDEX('Full set Core Client Indicator'!$A$3:$AB$351, MATCH(Selection_Hide2!$A146, 'Full set Core Client Indicator'!$A$3:$A$351, 0), MATCH(Selection_Hide2!D$5, 'Full set Core Client Indicator'!$A$3:$AB$3, 0))=\"\", \"\",  INDEX('Full set Core Client Indicator'!$A$3:$AB$351, MATCH(Selection_Hide2!$A146, 'Full set Core Client Indicator'!$A$3:$A$351, 0), MATCH(Selection_Hide2!D$5, 'Full set Core Client Indicator'!$A$3:$AB$3, 0))), \"\")","v":""},{"$f":"IF(D146<>\"\", IF(INDEX('Full set Core Client Indicator'!$A$3:$AB$351, MATCH(Selection_Hide2!$A146, 'Full set Core Client Indicator'!$A$3:$A$351, 0), MATCH(Selection_Hide2!E$5, 'Full set Core Client Indicator'!$A$3:$AB$3, 0))=\"\", \"\",  INDEX('Full set Core Client Indicator'!$A$3:$AB$351, MATCH(Selection_Hide2!$A146, 'Full set Core Client Indicator'!$A$3:$A$351, 0), MATCH(Selection_Hide2!E$5, 'Full set Core Client Indicator'!$A$3:$AB$3, 0))), \"\")","v":""},{"$f":"IF(E146<>\"\", IF(INDEX('Full set Core Client Indicator'!$A$3:$AB$351, MATCH(Selection_Hide2!$A146, 'Full set Core Client Indicator'!$A$3:$A$351, 0), MATCH(Selection_Hide2!F$5, 'Full set Core Client Indicator'!$A$3:$AB$3, 0))=\"\", \"\",  INDEX('Full set Core Client Indicator'!$A$3:$AB$351, MATCH(Selection_Hide2!$A146, 'Full set Core Client Indicator'!$A$3:$A$351, 0), MATCH(Selection_Hide2!F$5, 'Full set Core Client Indicator'!$A$3:$AB$3, 0))), \"\")","v":""},{"$f":"IF(F146<>\"\", IF(INDEX('Full set Core Client Indicator'!$A$3:$AB$351, MATCH(Selection_Hide2!$A146, 'Full set Core Client Indicator'!$A$3:$A$351, 0), MATCH(Selection_Hide2!G$5, 'Full set Core Client Indicator'!$A$3:$AB$3, 0))=\"\", \"\",  INDEX('Full set Core Client Indicator'!$A$3:$AB$351, MATCH(Selection_Hide2!$A146, 'Full set Core Client Indicator'!$A$3:$A$351, 0), MATCH(Selection_Hide2!G$5, 'Full set Core Client Indicator'!$A$3:$AB$3, 0))), \"\")","v":""},{"$f":"IF(G146<>\"\", IF(INDEX('Full set Core Client Indicator'!$A$3:$AB$351, MATCH(Selection_Hide2!$A146, 'Full set Core Client Indicator'!$A$3:$A$351, 0), MATCH(Selection_Hide2!H$5, 'Full set Core Client Indicator'!$A$3:$AB$3, 0))=\"\", \"\",  INDEX('Full set Core Client Indicator'!$A$3:$AB$351, MATCH(Selection_Hide2!$A146, 'Full set Core Client Indicator'!$A$3:$A$351, 0), MATCH(Selection_Hide2!H$5, 'Full set Core Client Indicator'!$A$3:$AB$3, 0))), \"\")","v":""},{"$f":"IF(H146<>\"\", IF(INDEX('Full set Core Client Indicator'!$A$3:$AB$351, MATCH(Selection_Hide2!$A146, 'Full set Core Client Indicator'!$A$3:$A$351, 0), MATCH(Selection_Hide2!I$5, 'Full set Core Client Indicator'!$A$3:$AB$3, 0))=\"\", \"\",  INDEX('Full set Core Client Indicator'!$A$3:$AB$351, MATCH(Selection_Hide2!$A146, 'Full set Core Client Indicator'!$A$3:$A$351, 0), MATCH(Selection_Hide2!I$5, 'Full set Core Client Indicator'!$A$3:$AB$3, 0))), \"\")","v":""},{"$f":"IF(I146<>\"\", IF(INDEX('Full set Core Client Indicator'!$A$3:$AB$351, MATCH(Selection_Hide2!$A146, 'Full set Core Client Indicator'!$A$3:$A$351, 0), MATCH(Selection_Hide2!J$5, 'Full set Core Client Indicator'!$A$3:$AB$3, 0))=\"\", \"\",  INDEX('Full set Core Client Indicator'!$A$3:$AB$351, MATCH(Selection_Hide2!$A146, 'Full set Core Client Indicator'!$A$3:$A$351, 0), MATCH(Selection_Hide2!J$5, 'Full set Core Client Indicator'!$A$3:$AB$3, 0))), \"\")","v":""},{"$f":"IF(J146<>\"\", IF(INDEX('Full set Core Client Indicator'!$A$3:$AB$351, MATCH(Selection_Hide2!$A146, 'Full set Core Client Indicator'!$A$3:$A$351, 0), MATCH(Selection_Hide2!K$5, 'Full set Core Client Indicator'!$A$3:$AB$3, 0))=\"\", \"\",  INDEX('Full set Core Client Indicator'!$A$3:$AB$351, MATCH(Selection_Hide2!$A146, 'Full set Core Client Indicator'!$A$3:$A$351, 0), MATCH(Selection_Hide2!K$5, 'Full set Core Client Indicator'!$A$3:$AB$3, 0))), \"\")","v":""},{"$f":"IF(K146<>\"\", IF(INDEX('Full set Core Client Indicator'!$A$3:$AB$351, MATCH(Selection_Hide2!$A146, 'Full set Core Client Indicator'!$A$3:$A$351, 0), MATCH(Selection_Hide2!L$5, 'Full set Core Client Indicator'!$A$3:$AB$3, 0))=\"\", \"\",  INDEX('Full set Core Client Indicator'!$A$3:$AB$351, MATCH(Selection_Hide2!$A146, 'Full set Core Client Indicator'!$A$3:$A$351, 0), MATCH(Selection_Hide2!L$5, 'Full set Core Client Indicator'!$A$3:$AB$3, 0))), \"\")","v":""},{"$f":"IF(L146<>\"\", IF(INDEX('Full set Core Client Indicator'!$A$3:$AB$351, MATCH(Selection_Hide2!$A146, 'Full set Core Client Indicator'!$A$3:$A$351, 0), MATCH(Selection_Hide2!M$5, 'Full set Core Client Indicator'!$A$3:$AB$3, 0))=\"\", \"\",  INDEX('Full set Core Client Indicator'!$A$3:$AB$351, MATCH(Selection_Hide2!$A146, 'Full set Core Client Indicator'!$A$3:$A$351, 0), MATCH(Selection_Hide2!M$5, 'Full set Core Client Indicator'!$A$3:$AB$3, 0))), \"\")","v":""},{"$f":"IF(M146<>\"\", IF(INDEX('Full set Core Client Indicator'!$A$3:$AB$351, MATCH(Selection_Hide2!$A146, 'Full set Core Client Indicator'!$A$3:$A$351, 0), MATCH(Selection_Hide2!N$5, 'Full set Core Client Indicator'!$A$3:$AB$3, 0))=\"\", \"\",  INDEX('Full set Core Client Indicator'!$A$3:$AB$351, MATCH(Selection_Hide2!$A146, 'Full set Core Client Indicator'!$A$3:$A$351, 0), MATCH(Selection_Hide2!N$5, 'Full set Core Client Indicator'!$A$3:$AB$3, 0))), \"\")","v":""},{"$f":"IF(N146<>\"\", IF(INDEX('Full set Core Client Indicator'!$A$3:$AB$351, MATCH(Selection_Hide2!$A146, 'Full set Core Client Indicator'!$A$3:$A$351, 0), MATCH(Selection_Hide2!O$5, 'Full set Core Client Indicator'!$A$3:$AB$3, 0))=\"\", \"\",  INDEX('Full set Core Client Indicator'!$A$3:$AB$351, MATCH(Selection_Hide2!$A146, 'Full set Core Client Indicator'!$A$3:$A$351, 0), MATCH(Selection_Hide2!O$5, 'Full set Core Client Indicator'!$A$3:$AB$3, 0))), \"\")","v":""},{"$f":"IF(O146<>\"\", IF(INDEX('Full set Core Client Indicator'!$A$3:$AB$351, MATCH(Selection_Hide2!$A146, 'Full set Core Client Indicator'!$A$3:$A$351, 0), MATCH(Selection_Hide2!P$5, 'Full set Core Client Indicator'!$A$3:$AB$3, 0))=\"\", \"\",  INDEX('Full set Core Client Indicator'!$A$3:$AB$351, MATCH(Selection_Hide2!$A146, 'Full set Core Client Indicator'!$A$3:$A$351, 0), MATCH(Selection_Hide2!P$5, 'Full set Core Client Indicator'!$A$3:$AB$3, 0))), \"\")","v":""},{"$f":"IF(P146<>\"\", IF(INDEX('Full set Core Client Indicator'!$A$3:$AB$351, MATCH(Selection_Hide2!$A146, 'Full set Core Client Indicator'!$A$3:$A$351, 0), MATCH(Selection_Hide2!Q$5, 'Full set Core Client Indicator'!$A$3:$AB$3, 0))=\"\", \"\",  INDEX('Full set Core Client Indicator'!$A$3:$AB$351, MATCH(Selection_Hide2!$A146, 'Full set Core Client Indicator'!$A$3:$A$351, 0), MATCH(Selection_Hide2!Q$5, 'Full set Core Client Indicator'!$A$3:$AB$3, 0))), \"\")","v":""},{"$f":"IF(Q146<>\"\", IF(INDEX('Full set Core Client Indicator'!$A$3:$AB$351, MATCH(Selection_Hide2!$A146, 'Full set Core Client Indicator'!$A$3:$A$351, 0), MATCH(Selection_Hide2!R$5, 'Full set Core Client Indicator'!$A$3:$AB$3, 0))=\"\", \"\",  INDEX('Full set Core Client Indicator'!$A$3:$AB$351, MATCH(Selection_Hide2!$A146, 'Full set Core Client Indicator'!$A$3:$A$351, 0), MATCH(Selection_Hide2!R$5, 'Full set Core Client Indicator'!$A$3:$AB$3, 0))), \"\")","v":""},{"$f":"IF(R146<>\"\", IF(INDEX('Full set Core Client Indicator'!$A$3:$AB$351, MATCH(Selection_Hide2!$A146, 'Full set Core Client Indicator'!$A$3:$A$351, 0), MATCH(Selection_Hide2!S$5, 'Full set Core Client Indicator'!$A$3:$AB$3, 0))=\"\", \"\",  INDEX('Full set Core Client Indicator'!$A$3:$AB$351, MATCH(Selection_Hide2!$A146, 'Full set Core Client Indicator'!$A$3:$A$351, 0), MATCH(Selection_Hide2!S$5, 'Full set Core Client Indicator'!$A$3:$AB$3, 0))), \"\")","v":""},{"$f":"IF(S146<>\"\", IF(INDEX('Full set Core Client Indicator'!$A$3:$AB$351, MATCH(Selection_Hide2!$A146, 'Full set Core Client Indicator'!$A$3:$A$351, 0), MATCH(Selection_Hide2!T$5, 'Full set Core Client Indicator'!$A$3:$AB$3, 0))=\"\", \"\",  INDEX('Full set Core Client Indicator'!$A$3:$AB$351, MATCH(Selection_Hide2!$A146, 'Full set Core Client Indicator'!$A$3:$A$351, 0), MATCH(Selection_Hide2!T$5, 'Full set Core Client Indicator'!$A$3:$AB$3, 0))), \"\")","v":""},{"$f":"IF(T146<>\"\", IF(INDEX('Full set Core Client Indicator'!$A$3:$AB$351, MATCH(Selection_Hide2!$A146, 'Full set Core Client Indicator'!$A$3:$A$351, 0), MATCH(Selection_Hide2!U$5, 'Full set Core Client Indicator'!$A$3:$AB$3, 0))=\"\", \"\",  INDEX('Full set Core Client Indicator'!$A$3:$AB$351, MATCH(Selection_Hide2!$A146, 'Full set Core Client Indicator'!$A$3:$A$351, 0), MATCH(Selection_Hide2!U$5, 'Full set Core Client Indicator'!$A$3:$AB$3, 0))), \"\")","v":""},{"$f":"IF(U146<>\"\", IF(INDEX('Full set Core Client Indicator'!$A$3:$AB$351, MATCH(Selection_Hide2!$A146, 'Full set Core Client Indicator'!$A$3:$A$351, 0), MATCH(Selection_Hide2!V$5, 'Full set Core Client Indicator'!$A$3:$AB$3, 0))=\"\", \"\",  INDEX('Full set Core Client Indicator'!$A$3:$AB$351, MATCH(Selection_Hide2!$A146, 'Full set Core Client Indicator'!$A$3:$A$351, 0), MATCH(Selection_Hide2!V$5, 'Full set Core Client Indicator'!$A$3:$AB$3, 0))), \"\")","v":""},{"$f":"IF(V146<>\"\", IF(INDEX('Full set Core Client Indicator'!$A$3:$AB$351, MATCH(Selection_Hide2!$A146, 'Full set Core Client Indicator'!$A$3:$A$351, 0), MATCH(Selection_Hide2!W$5, 'Full set Core Client Indicator'!$A$3:$AB$3, 0))=\"\", \"\",  INDEX('Full set Core Client Indicator'!$A$3:$AB$351, MATCH(Selection_Hide2!$A146, 'Full set Core Client Indicator'!$A$3:$A$351, 0), MATCH(Selection_Hide2!W$5, 'Full set Core Client Indicator'!$A$3:$AB$3, 0))), \"\")","v":""},{"$f":"IF(W146<>\"\", IF(INDEX('Full set Core Client Indicator'!$A$3:$AB$351, MATCH(Selection_Hide2!$A146, 'Full set Core Client Indicator'!$A$3:$A$351, 0), MATCH(Selection_Hide2!X$5, 'Full set Core Client Indicator'!$A$3:$AB$3, 0))=\"\", \"\",  INDEX('Full set Core Client Indicator'!$A$3:$AB$351, MATCH(Selection_Hide2!$A146, 'Full set Core Client Indicator'!$A$3:$A$351, 0), MATCH(Selection_Hide2!X$5, 'Full set Core Client Indicator'!$A$3:$AB$3, 0))), \"\")","v":""},{"$f":"IF(X146<>\"\", IF(INDEX('Full set Core Client Indicator'!$A$3:$AB$351, MATCH(Selection_Hide2!$A146, 'Full set Core Client Indicator'!$A$3:$A$351, 0), MATCH(Selection_Hide2!Y$5, 'Full set Core Client Indicator'!$A$3:$AB$3, 0))=\"\", \"\",  INDEX('Full set Core Client Indicator'!$A$3:$AB$351, MATCH(Selection_Hide2!$A146, 'Full set Core Client Indicator'!$A$3:$A$351, 0), MATCH(Selection_Hide2!Y$5, 'Full set Core Client Indicator'!$A$3:$AB$3, 0))), \"\")","v":""},{"$f":"IF(Y146<>\"\", IF(INDEX('Full set Core Client Indicator'!$A$3:$AB$351, MATCH(Selection_Hide2!$A146, 'Full set Core Client Indicator'!$A$3:$A$351, 0), MATCH(Selection_Hide2!Z$5, 'Full set Core Client Indicator'!$A$3:$AB$3, 0))=\"\", \"\",  INDEX('Full set Core Client Indicator'!$A$3:$AB$351, MATCH(Selection_Hide2!$A146, 'Full set Core Client Indicator'!$A$3:$A$351, 0), MATCH(Selection_Hide2!Z$5, 'Full set Core Client Indicator'!$A$3:$AB$3, 0))), \"\")","v":""},{"$f":"IF(Z146<>\"\", IF(INDEX('Full set Core Client Indicator'!$A$3:$AB$351, MATCH(Selection_Hide2!$A146, 'Full set Core Client Indicator'!$A$3:$A$351, 0), MATCH(Selection_Hide2!AA$5, 'Full set Core Client Indicator'!$A$3:$AB$3, 0))=\"\", \"\",  INDEX('Full set Core Client Indicator'!$A$3:$AB$351, MATCH(Selection_Hide2!$A146, 'Full set Core Client Indicator'!$A$3:$A$351, 0), MATCH(Selection_Hide2!AA$5, 'Full set Core Client Indicator'!$A$3:$AB$3, 0))), \"\")","v":""},{"$f":"IF(AA146<>\"\", IF(INDEX('Full set Core Client Indicator'!$A$3:$AB$351, MATCH(Selection_Hide2!$A146, 'Full set Core Client Indicator'!$A$3:$A$351, 0), MATCH(Selection_Hide2!AB$5, 'Full set Core Client Indicator'!$A$3:$AB$3, 0))=\"\", \"\",  INDEX('Full set Core Client Indicator'!$A$3:$AB$351, MATCH(Selection_Hide2!$A146, 'Full set Core Client Indicator'!$A$3:$A$351, 0), MATCH(Selection_Hide2!AB$5, 'Full set Core Client Indicator'!$A$3:$AB$3, 0))), \"\")","v":""}]
[{"$f":"IF(AND(Selection_Hide1!C145<>0, Selection_Hide1!C145<>\"Grand Total\"), Selection_Hide1!C145, \"\")","v":""},{"$f":"IF(A147<>\"\", IF(INDEX('Full set Core Client Indicator'!$A$3:$AB$351, MATCH(Selection_Hide2!$A147, 'Full set Core Client Indicator'!$A$3:$A$351, 0), MATCH(Selection_Hide2!B$5, 'Full set Core Client Indicator'!$A$3:$AB$3, 0))=\"\", \"\",  INDEX('Full set Core Client Indicator'!$A$3:$AB$351, MATCH(Selection_Hide2!$A147, 'Full set Core Client Indicator'!$A$3:$A$351, 0), MATCH(Selection_Hide2!B$5, 'Full set Core Client Indicator'!$A$3:$AB$3, 0))), \"\")","v":""},{"$f":"IF(B147<>\"\", IF(INDEX('Full set Core Client Indicator'!$A$3:$AB$351, MATCH(Selection_Hide2!$A147, 'Full set Core Client Indicator'!$A$3:$A$351, 0), MATCH(Selection_Hide2!C$5, 'Full set Core Client Indicator'!$A$3:$AB$3, 0))=\"\", \"\",  INDEX('Full set Core Client Indicator'!$A$3:$AB$351, MATCH(Selection_Hide2!$A147, 'Full set Core Client Indicator'!$A$3:$A$351, 0), MATCH(Selection_Hide2!C$5, 'Full set Core Client Indicator'!$A$3:$AB$3, 0))), \"\")","v":""},{"$f":"IF(C147<>\"\", IF(INDEX('Full set Core Client Indicator'!$A$3:$AB$351, MATCH(Selection_Hide2!$A147, 'Full set Core Client Indicator'!$A$3:$A$351, 0), MATCH(Selection_Hide2!D$5, 'Full set Core Client Indicator'!$A$3:$AB$3, 0))=\"\", \"\",  INDEX('Full set Core Client Indicator'!$A$3:$AB$351, MATCH(Selection_Hide2!$A147, 'Full set Core Client Indicator'!$A$3:$A$351, 0), MATCH(Selection_Hide2!D$5, 'Full set Core Client Indicator'!$A$3:$AB$3, 0))), \"\")","v":""},{"$f":"IF(D147<>\"\", IF(INDEX('Full set Core Client Indicator'!$A$3:$AB$351, MATCH(Selection_Hide2!$A147, 'Full set Core Client Indicator'!$A$3:$A$351, 0), MATCH(Selection_Hide2!E$5, 'Full set Core Client Indicator'!$A$3:$AB$3, 0))=\"\", \"\",  INDEX('Full set Core Client Indicator'!$A$3:$AB$351, MATCH(Selection_Hide2!$A147, 'Full set Core Client Indicator'!$A$3:$A$351, 0), MATCH(Selection_Hide2!E$5, 'Full set Core Client Indicator'!$A$3:$AB$3, 0))), \"\")","v":""},{"$f":"IF(E147<>\"\", IF(INDEX('Full set Core Client Indicator'!$A$3:$AB$351, MATCH(Selection_Hide2!$A147, 'Full set Core Client Indicator'!$A$3:$A$351, 0), MATCH(Selection_Hide2!F$5, 'Full set Core Client Indicator'!$A$3:$AB$3, 0))=\"\", \"\",  INDEX('Full set Core Client Indicator'!$A$3:$AB$351, MATCH(Selection_Hide2!$A147, 'Full set Core Client Indicator'!$A$3:$A$351, 0), MATCH(Selection_Hide2!F$5, 'Full set Core Client Indicator'!$A$3:$AB$3, 0))), \"\")","v":""},{"$f":"IF(F147<>\"\", IF(INDEX('Full set Core Client Indicator'!$A$3:$AB$351, MATCH(Selection_Hide2!$A147, 'Full set Core Client Indicator'!$A$3:$A$351, 0), MATCH(Selection_Hide2!G$5, 'Full set Core Client Indicator'!$A$3:$AB$3, 0))=\"\", \"\",  INDEX('Full set Core Client Indicator'!$A$3:$AB$351, MATCH(Selection_Hide2!$A147, 'Full set Core Client Indicator'!$A$3:$A$351, 0), MATCH(Selection_Hide2!G$5, 'Full set Core Client Indicator'!$A$3:$AB$3, 0))), \"\")","v":""},{"$f":"IF(G147<>\"\", IF(INDEX('Full set Core Client Indicator'!$A$3:$AB$351, MATCH(Selection_Hide2!$A147, 'Full set Core Client Indicator'!$A$3:$A$351, 0), MATCH(Selection_Hide2!H$5, 'Full set Core Client Indicator'!$A$3:$AB$3, 0))=\"\", \"\",  INDEX('Full set Core Client Indicator'!$A$3:$AB$351, MATCH(Selection_Hide2!$A147, 'Full set Core Client Indicator'!$A$3:$A$351, 0), MATCH(Selection_Hide2!H$5, 'Full set Core Client Indicator'!$A$3:$AB$3, 0))), \"\")","v":""},{"$f":"IF(H147<>\"\", IF(INDEX('Full set Core Client Indicator'!$A$3:$AB$351, MATCH(Selection_Hide2!$A147, 'Full set Core Client Indicator'!$A$3:$A$351, 0), MATCH(Selection_Hide2!I$5, 'Full set Core Client Indicator'!$A$3:$AB$3, 0))=\"\", \"\",  INDEX('Full set Core Client Indicator'!$A$3:$AB$351, MATCH(Selection_Hide2!$A147, 'Full set Core Client Indicator'!$A$3:$A$351, 0), MATCH(Selection_Hide2!I$5, 'Full set Core Client Indicator'!$A$3:$AB$3, 0))), \"\")","v":""},{"$f":"IF(I147<>\"\", IF(INDEX('Full set Core Client Indicator'!$A$3:$AB$351, MATCH(Selection_Hide2!$A147, 'Full set Core Client Indicator'!$A$3:$A$351, 0), MATCH(Selection_Hide2!J$5, 'Full set Core Client Indicator'!$A$3:$AB$3, 0))=\"\", \"\",  INDEX('Full set Core Client Indicator'!$A$3:$AB$351, MATCH(Selection_Hide2!$A147, 'Full set Core Client Indicator'!$A$3:$A$351, 0), MATCH(Selection_Hide2!J$5, 'Full set Core Client Indicator'!$A$3:$AB$3, 0))), \"\")","v":""},{"$f":"IF(J147<>\"\", IF(INDEX('Full set Core Client Indicator'!$A$3:$AB$351, MATCH(Selection_Hide2!$A147, 'Full set Core Client Indicator'!$A$3:$A$351, 0), MATCH(Selection_Hide2!K$5, 'Full set Core Client Indicator'!$A$3:$AB$3, 0))=\"\", \"\",  INDEX('Full set Core Client Indicator'!$A$3:$AB$351, MATCH(Selection_Hide2!$A147, 'Full set Core Client Indicator'!$A$3:$A$351, 0), MATCH(Selection_Hide2!K$5, 'Full set Core Client Indicator'!$A$3:$AB$3, 0))), \"\")","v":""},{"$f":"IF(K147<>\"\", IF(INDEX('Full set Core Client Indicator'!$A$3:$AB$351, MATCH(Selection_Hide2!$A147, 'Full set Core Client Indicator'!$A$3:$A$351, 0), MATCH(Selection_Hide2!L$5, 'Full set Core Client Indicator'!$A$3:$AB$3, 0))=\"\", \"\",  INDEX('Full set Core Client Indicator'!$A$3:$AB$351, MATCH(Selection_Hide2!$A147, 'Full set Core Client Indicator'!$A$3:$A$351, 0), MATCH(Selection_Hide2!L$5, 'Full set Core Client Indicator'!$A$3:$AB$3, 0))), \"\")","v":""},{"$f":"IF(L147<>\"\", IF(INDEX('Full set Core Client Indicator'!$A$3:$AB$351, MATCH(Selection_Hide2!$A147, 'Full set Core Client Indicator'!$A$3:$A$351, 0), MATCH(Selection_Hide2!M$5, 'Full set Core Client Indicator'!$A$3:$AB$3, 0))=\"\", \"\",  INDEX('Full set Core Client Indicator'!$A$3:$AB$351, MATCH(Selection_Hide2!$A147, 'Full set Core Client Indicator'!$A$3:$A$351, 0), MATCH(Selection_Hide2!M$5, 'Full set Core Client Indicator'!$A$3:$AB$3, 0))), \"\")","v":""},{"$f":"IF(M147<>\"\", IF(INDEX('Full set Core Client Indicator'!$A$3:$AB$351, MATCH(Selection_Hide2!$A147, 'Full set Core Client Indicator'!$A$3:$A$351, 0), MATCH(Selection_Hide2!N$5, 'Full set Core Client Indicator'!$A$3:$AB$3, 0))=\"\", \"\",  INDEX('Full set Core Client Indicator'!$A$3:$AB$351, MATCH(Selection_Hide2!$A147, 'Full set Core Client Indicator'!$A$3:$A$351, 0), MATCH(Selection_Hide2!N$5, 'Full set Core Client Indicator'!$A$3:$AB$3, 0))), \"\")","v":""},{"$f":"IF(N147<>\"\", IF(INDEX('Full set Core Client Indicator'!$A$3:$AB$351, MATCH(Selection_Hide2!$A147, 'Full set Core Client Indicator'!$A$3:$A$351, 0), MATCH(Selection_Hide2!O$5, 'Full set Core Client Indicator'!$A$3:$AB$3, 0))=\"\", \"\",  INDEX('Full set Core Client Indicator'!$A$3:$AB$351, MATCH(Selection_Hide2!$A147, 'Full set Core Client Indicator'!$A$3:$A$351, 0), MATCH(Selection_Hide2!O$5, 'Full set Core Client Indicator'!$A$3:$AB$3, 0))), \"\")","v":""},{"$f":"IF(O147<>\"\", IF(INDEX('Full set Core Client Indicator'!$A$3:$AB$351, MATCH(Selection_Hide2!$A147, 'Full set Core Client Indicator'!$A$3:$A$351, 0), MATCH(Selection_Hide2!P$5, 'Full set Core Client Indicator'!$A$3:$AB$3, 0))=\"\", \"\",  INDEX('Full set Core Client Indicator'!$A$3:$AB$351, MATCH(Selection_Hide2!$A147, 'Full set Core Client Indicator'!$A$3:$A$351, 0), MATCH(Selection_Hide2!P$5, 'Full set Core Client Indicator'!$A$3:$AB$3, 0))), \"\")","v":""},{"$f":"IF(P147<>\"\", IF(INDEX('Full set Core Client Indicator'!$A$3:$AB$351, MATCH(Selection_Hide2!$A147, 'Full set Core Client Indicator'!$A$3:$A$351, 0), MATCH(Selection_Hide2!Q$5, 'Full set Core Client Indicator'!$A$3:$AB$3, 0))=\"\", \"\",  INDEX('Full set Core Client Indicator'!$A$3:$AB$351, MATCH(Selection_Hide2!$A147, 'Full set Core Client Indicator'!$A$3:$A$351, 0), MATCH(Selection_Hide2!Q$5, 'Full set Core Client Indicator'!$A$3:$AB$3, 0))), \"\")","v":""},{"$f":"IF(Q147<>\"\", IF(INDEX('Full set Core Client Indicator'!$A$3:$AB$351, MATCH(Selection_Hide2!$A147, 'Full set Core Client Indicator'!$A$3:$A$351, 0), MATCH(Selection_Hide2!R$5, 'Full set Core Client Indicator'!$A$3:$AB$3, 0))=\"\", \"\",  INDEX('Full set Core Client Indicator'!$A$3:$AB$351, MATCH(Selection_Hide2!$A147, 'Full set Core Client Indicator'!$A$3:$A$351, 0), MATCH(Selection_Hide2!R$5, 'Full set Core Client Indicator'!$A$3:$AB$3, 0))), \"\")","v":""},{"$f":"IF(R147<>\"\", IF(INDEX('Full set Core Client Indicator'!$A$3:$AB$351, MATCH(Selection_Hide2!$A147, 'Full set Core Client Indicator'!$A$3:$A$351, 0), MATCH(Selection_Hide2!S$5, 'Full set Core Client Indicator'!$A$3:$AB$3, 0))=\"\", \"\",  INDEX('Full set Core Client Indicator'!$A$3:$AB$351, MATCH(Selection_Hide2!$A147, 'Full set Core Client Indicator'!$A$3:$A$351, 0), MATCH(Selection_Hide2!S$5, 'Full set Core Client Indicator'!$A$3:$AB$3, 0))), \"\")","v":""},{"$f":"IF(S147<>\"\", IF(INDEX('Full set Core Client Indicator'!$A$3:$AB$351, MATCH(Selection_Hide2!$A147, 'Full set Core Client Indicator'!$A$3:$A$351, 0), MATCH(Selection_Hide2!T$5, 'Full set Core Client Indicator'!$A$3:$AB$3, 0))=\"\", \"\",  INDEX('Full set Core Client Indicator'!$A$3:$AB$351, MATCH(Selection_Hide2!$A147, 'Full set Core Client Indicator'!$A$3:$A$351, 0), MATCH(Selection_Hide2!T$5, 'Full set Core Client Indicator'!$A$3:$AB$3, 0))), \"\")","v":""},{"$f":"IF(T147<>\"\", IF(INDEX('Full set Core Client Indicator'!$A$3:$AB$351, MATCH(Selection_Hide2!$A147, 'Full set Core Client Indicator'!$A$3:$A$351, 0), MATCH(Selection_Hide2!U$5, 'Full set Core Client Indicator'!$A$3:$AB$3, 0))=\"\", \"\",  INDEX('Full set Core Client Indicator'!$A$3:$AB$351, MATCH(Selection_Hide2!$A147, 'Full set Core Client Indicator'!$A$3:$A$351, 0), MATCH(Selection_Hide2!U$5, 'Full set Core Client Indicator'!$A$3:$AB$3, 0))), \"\")","v":""},{"$f":"IF(U147<>\"\", IF(INDEX('Full set Core Client Indicator'!$A$3:$AB$351, MATCH(Selection_Hide2!$A147, 'Full set Core Client Indicator'!$A$3:$A$351, 0), MATCH(Selection_Hide2!V$5, 'Full set Core Client Indicator'!$A$3:$AB$3, 0))=\"\", \"\",  INDEX('Full set Core Client Indicator'!$A$3:$AB$351, MATCH(Selection_Hide2!$A147, 'Full set Core Client Indicator'!$A$3:$A$351, 0), MATCH(Selection_Hide2!V$5, 'Full set Core Client Indicator'!$A$3:$AB$3, 0))), \"\")","v":""},{"$f":"IF(V147<>\"\", IF(INDEX('Full set Core Client Indicator'!$A$3:$AB$351, MATCH(Selection_Hide2!$A147, 'Full set Core Client Indicator'!$A$3:$A$351, 0), MATCH(Selection_Hide2!W$5, 'Full set Core Client Indicator'!$A$3:$AB$3, 0))=\"\", \"\",  INDEX('Full set Core Client Indicator'!$A$3:$AB$351, MATCH(Selection_Hide2!$A147, 'Full set Core Client Indicator'!$A$3:$A$351, 0), MATCH(Selection_Hide2!W$5, 'Full set Core Client Indicator'!$A$3:$AB$3, 0))), \"\")","v":""},{"$f":"IF(W147<>\"\", IF(INDEX('Full set Core Client Indicator'!$A$3:$AB$351, MATCH(Selection_Hide2!$A147, 'Full set Core Client Indicator'!$A$3:$A$351, 0), MATCH(Selection_Hide2!X$5, 'Full set Core Client Indicator'!$A$3:$AB$3, 0))=\"\", \"\",  INDEX('Full set Core Client Indicator'!$A$3:$AB$351, MATCH(Selection_Hide2!$A147, 'Full set Core Client Indicator'!$A$3:$A$351, 0), MATCH(Selection_Hide2!X$5, 'Full set Core Client Indicator'!$A$3:$AB$3, 0))), \"\")","v":""},{"$f":"IF(X147<>\"\", IF(INDEX('Full set Core Client Indicator'!$A$3:$AB$351, MATCH(Selection_Hide2!$A147, 'Full set Core Client Indicator'!$A$3:$A$351, 0), MATCH(Selection_Hide2!Y$5, 'Full set Core Client Indicator'!$A$3:$AB$3, 0))=\"\", \"\",  INDEX('Full set Core Client Indicator'!$A$3:$AB$351, MATCH(Selection_Hide2!$A147, 'Full set Core Client Indicator'!$A$3:$A$351, 0), MATCH(Selection_Hide2!Y$5, 'Full set Core Client Indicator'!$A$3:$AB$3, 0))), \"\")","v":""},{"$f":"IF(Y147<>\"\", IF(INDEX('Full set Core Client Indicator'!$A$3:$AB$351, MATCH(Selection_Hide2!$A147, 'Full set Core Client Indicator'!$A$3:$A$351, 0), MATCH(Selection_Hide2!Z$5, 'Full set Core Client Indicator'!$A$3:$AB$3, 0))=\"\", \"\",  INDEX('Full set Core Client Indicator'!$A$3:$AB$351, MATCH(Selection_Hide2!$A147, 'Full set Core Client Indicator'!$A$3:$A$351, 0), MATCH(Selection_Hide2!Z$5, 'Full set Core Client Indicator'!$A$3:$AB$3, 0))), \"\")","v":""},{"$f":"IF(Z147<>\"\", IF(INDEX('Full set Core Client Indicator'!$A$3:$AB$351, MATCH(Selection_Hide2!$A147, 'Full set Core Client Indicator'!$A$3:$A$351, 0), MATCH(Selection_Hide2!AA$5, 'Full set Core Client Indicator'!$A$3:$AB$3, 0))=\"\", \"\",  INDEX('Full set Core Client Indicator'!$A$3:$AB$351, MATCH(Selection_Hide2!$A147, 'Full set Core Client Indicator'!$A$3:$A$351, 0), MATCH(Selection_Hide2!AA$5, 'Full set Core Client Indicator'!$A$3:$AB$3, 0))), \"\")","v":""},{"$f":"IF(AA147<>\"\", IF(INDEX('Full set Core Client Indicator'!$A$3:$AB$351, MATCH(Selection_Hide2!$A147, 'Full set Core Client Indicator'!$A$3:$A$351, 0), MATCH(Selection_Hide2!AB$5, 'Full set Core Client Indicator'!$A$3:$AB$3, 0))=\"\", \"\",  INDEX('Full set Core Client Indicator'!$A$3:$AB$351, MATCH(Selection_Hide2!$A147, 'Full set Core Client Indicator'!$A$3:$A$351, 0), MATCH(Selection_Hide2!AB$5, 'Full set Core Client Indicator'!$A$3:$AB$3, 0))), \"\")","v":""}]
[{"$f":"IF(AND(Selection_Hide1!C146<>0, Selection_Hide1!C146<>\"Grand Total\"), Selection_Hide1!C146, \"\")","v":""},{"$f":"IF(A148<>\"\", IF(INDEX('Full set Core Client Indicator'!$A$3:$AB$351, MATCH(Selection_Hide2!$A148, 'Full set Core Client Indicator'!$A$3:$A$351, 0), MATCH(Selection_Hide2!B$5, 'Full set Core Client Indicator'!$A$3:$AB$3, 0))=\"\", \"\",  INDEX('Full set Core Client Indicator'!$A$3:$AB$351, MATCH(Selection_Hide2!$A148, 'Full set Core Client Indicator'!$A$3:$A$351, 0), MATCH(Selection_Hide2!B$5, 'Full set Core Client Indicator'!$A$3:$AB$3, 0))), \"\")","v":""},{"$f":"IF(B148<>\"\", IF(INDEX('Full set Core Client Indicator'!$A$3:$AB$351, MATCH(Selection_Hide2!$A148, 'Full set Core Client Indicator'!$A$3:$A$351, 0), MATCH(Selection_Hide2!C$5, 'Full set Core Client Indicator'!$A$3:$AB$3, 0))=\"\", \"\",  INDEX('Full set Core Client Indicator'!$A$3:$AB$351, MATCH(Selection_Hide2!$A148, 'Full set Core Client Indicator'!$A$3:$A$351, 0), MATCH(Selection_Hide2!C$5, 'Full set Core Client Indicator'!$A$3:$AB$3, 0))), \"\")","v":""},{"$f":"IF(C148<>\"\", IF(INDEX('Full set Core Client Indicator'!$A$3:$AB$351, MATCH(Selection_Hide2!$A148, 'Full set Core Client Indicator'!$A$3:$A$351, 0), MATCH(Selection_Hide2!D$5, 'Full set Core Client Indicator'!$A$3:$AB$3, 0))=\"\", \"\",  INDEX('Full set Core Client Indicator'!$A$3:$AB$351, MATCH(Selection_Hide2!$A148, 'Full set Core Client Indicator'!$A$3:$A$351, 0), MATCH(Selection_Hide2!D$5, 'Full set Core Client Indicator'!$A$3:$AB$3, 0))), \"\")","v":""},{"$f":"IF(D148<>\"\", IF(INDEX('Full set Core Client Indicator'!$A$3:$AB$351, MATCH(Selection_Hide2!$A148, 'Full set Core Client Indicator'!$A$3:$A$351, 0), MATCH(Selection_Hide2!E$5, 'Full set Core Client Indicator'!$A$3:$AB$3, 0))=\"\", \"\",  INDEX('Full set Core Client Indicator'!$A$3:$AB$351, MATCH(Selection_Hide2!$A148, 'Full set Core Client Indicator'!$A$3:$A$351, 0), MATCH(Selection_Hide2!E$5, 'Full set Core Client Indicator'!$A$3:$AB$3, 0))), \"\")","v":""},{"$f":"IF(E148<>\"\", IF(INDEX('Full set Core Client Indicator'!$A$3:$AB$351, MATCH(Selection_Hide2!$A148, 'Full set Core Client Indicator'!$A$3:$A$351, 0), MATCH(Selection_Hide2!F$5, 'Full set Core Client Indicator'!$A$3:$AB$3, 0))=\"\", \"\",  INDEX('Full set Core Client Indicator'!$A$3:$AB$351, MATCH(Selection_Hide2!$A148, 'Full set Core Client Indicator'!$A$3:$A$351, 0), MATCH(Selection_Hide2!F$5, 'Full set Core Client Indicator'!$A$3:$AB$3, 0))), \"\")","v":""},{"$f":"IF(F148<>\"\", IF(INDEX('Full set Core Client Indicator'!$A$3:$AB$351, MATCH(Selection_Hide2!$A148, 'Full set Core Client Indicator'!$A$3:$A$351, 0), MATCH(Selection_Hide2!G$5, 'Full set Core Client Indicator'!$A$3:$AB$3, 0))=\"\", \"\",  INDEX('Full set Core Client Indicator'!$A$3:$AB$351, MATCH(Selection_Hide2!$A148, 'Full set Core Client Indicator'!$A$3:$A$351, 0), MATCH(Selection_Hide2!G$5, 'Full set Core Client Indicator'!$A$3:$AB$3, 0))), \"\")","v":""},{"$f":"IF(G148<>\"\", IF(INDEX('Full set Core Client Indicator'!$A$3:$AB$351, MATCH(Selection_Hide2!$A148, 'Full set Core Client Indicator'!$A$3:$A$351, 0), MATCH(Selection_Hide2!H$5, 'Full set Core Client Indicator'!$A$3:$AB$3, 0))=\"\", \"\",  INDEX('Full set Core Client Indicator'!$A$3:$AB$351, MATCH(Selection_Hide2!$A148, 'Full set Core Client Indicator'!$A$3:$A$351, 0), MATCH(Selection_Hide2!H$5, 'Full set Core Client Indicator'!$A$3:$AB$3, 0))), \"\")","v":""},{"$f":"IF(H148<>\"\", IF(INDEX('Full set Core Client Indicator'!$A$3:$AB$351, MATCH(Selection_Hide2!$A148, 'Full set Core Client Indicator'!$A$3:$A$351, 0), MATCH(Selection_Hide2!I$5, 'Full set Core Client Indicator'!$A$3:$AB$3, 0))=\"\", \"\",  INDEX('Full set Core Client Indicator'!$A$3:$AB$351, MATCH(Selection_Hide2!$A148, 'Full set Core Client Indicator'!$A$3:$A$351, 0), MATCH(Selection_Hide2!I$5, 'Full set Core Client Indicator'!$A$3:$AB$3, 0))), \"\")","v":""},{"$f":"IF(I148<>\"\", IF(INDEX('Full set Core Client Indicator'!$A$3:$AB$351, MATCH(Selection_Hide2!$A148, 'Full set Core Client Indicator'!$A$3:$A$351, 0), MATCH(Selection_Hide2!J$5, 'Full set Core Client Indicator'!$A$3:$AB$3, 0))=\"\", \"\",  INDEX('Full set Core Client Indicator'!$A$3:$AB$351, MATCH(Selection_Hide2!$A148, 'Full set Core Client Indicator'!$A$3:$A$351, 0), MATCH(Selection_Hide2!J$5, 'Full set Core Client Indicator'!$A$3:$AB$3, 0))), \"\")","v":""},{"$f":"IF(J148<>\"\", IF(INDEX('Full set Core Client Indicator'!$A$3:$AB$351, MATCH(Selection_Hide2!$A148, 'Full set Core Client Indicator'!$A$3:$A$351, 0), MATCH(Selection_Hide2!K$5, 'Full set Core Client Indicator'!$A$3:$AB$3, 0))=\"\", \"\",  INDEX('Full set Core Client Indicator'!$A$3:$AB$351, MATCH(Selection_Hide2!$A148, 'Full set Core Client Indicator'!$A$3:$A$351, 0), MATCH(Selection_Hide2!K$5, 'Full set Core Client Indicator'!$A$3:$AB$3, 0))), \"\")","v":""},{"$f":"IF(K148<>\"\", IF(INDEX('Full set Core Client Indicator'!$A$3:$AB$351, MATCH(Selection_Hide2!$A148, 'Full set Core Client Indicator'!$A$3:$A$351, 0), MATCH(Selection_Hide2!L$5, 'Full set Core Client Indicator'!$A$3:$AB$3, 0))=\"\", \"\",  INDEX('Full set Core Client Indicator'!$A$3:$AB$351, MATCH(Selection_Hide2!$A148, 'Full set Core Client Indicator'!$A$3:$A$351, 0), MATCH(Selection_Hide2!L$5, 'Full set Core Client Indicator'!$A$3:$AB$3, 0))), \"\")","v":""},{"$f":"IF(L148<>\"\", IF(INDEX('Full set Core Client Indicator'!$A$3:$AB$351, MATCH(Selection_Hide2!$A148, 'Full set Core Client Indicator'!$A$3:$A$351, 0), MATCH(Selection_Hide2!M$5, 'Full set Core Client Indicator'!$A$3:$AB$3, 0))=\"\", \"\",  INDEX('Full set Core Client Indicator'!$A$3:$AB$351, MATCH(Selection_Hide2!$A148, 'Full set Core Client Indicator'!$A$3:$A$351, 0), MATCH(Selection_Hide2!M$5, 'Full set Core Client Indicator'!$A$3:$AB$3, 0))), \"\")","v":""},{"$f":"IF(M148<>\"\", IF(INDEX('Full set Core Client Indicator'!$A$3:$AB$351, MATCH(Selection_Hide2!$A148, 'Full set Core Client Indicator'!$A$3:$A$351, 0), MATCH(Selection_Hide2!N$5, 'Full set Core Client Indicator'!$A$3:$AB$3, 0))=\"\", \"\",  INDEX('Full set Core Client Indicator'!$A$3:$AB$351, MATCH(Selection_Hide2!$A148, 'Full set Core Client Indicator'!$A$3:$A$351, 0), MATCH(Selection_Hide2!N$5, 'Full set Core Client Indicator'!$A$3:$AB$3, 0))), \"\")","v":""},{"$f":"IF(N148<>\"\", IF(INDEX('Full set Core Client Indicator'!$A$3:$AB$351, MATCH(Selection_Hide2!$A148, 'Full set Core Client Indicator'!$A$3:$A$351, 0), MATCH(Selection_Hide2!O$5, 'Full set Core Client Indicator'!$A$3:$AB$3, 0))=\"\", \"\",  INDEX('Full set Core Client Indicator'!$A$3:$AB$351, MATCH(Selection_Hide2!$A148, 'Full set Core Client Indicator'!$A$3:$A$351, 0), MATCH(Selection_Hide2!O$5, 'Full set Core Client Indicator'!$A$3:$AB$3, 0))), \"\")","v":""},{"$f":"IF(O148<>\"\", IF(INDEX('Full set Core Client Indicator'!$A$3:$AB$351, MATCH(Selection_Hide2!$A148, 'Full set Core Client Indicator'!$A$3:$A$351, 0), MATCH(Selection_Hide2!P$5, 'Full set Core Client Indicator'!$A$3:$AB$3, 0))=\"\", \"\",  INDEX('Full set Core Client Indicator'!$A$3:$AB$351, MATCH(Selection_Hide2!$A148, 'Full set Core Client Indicator'!$A$3:$A$351, 0), MATCH(Selection_Hide2!P$5, 'Full set Core Client Indicator'!$A$3:$AB$3, 0))), \"\")","v":""},{"$f":"IF(P148<>\"\", IF(INDEX('Full set Core Client Indicator'!$A$3:$AB$351, MATCH(Selection_Hide2!$A148, 'Full set Core Client Indicator'!$A$3:$A$351, 0), MATCH(Selection_Hide2!Q$5, 'Full set Core Client Indicator'!$A$3:$AB$3, 0))=\"\", \"\",  INDEX('Full set Core Client Indicator'!$A$3:$AB$351, MATCH(Selection_Hide2!$A148, 'Full set Core Client Indicator'!$A$3:$A$351, 0), MATCH(Selection_Hide2!Q$5, 'Full set Core Client Indicator'!$A$3:$AB$3, 0))), \"\")","v":""},{"$f":"IF(Q148<>\"\", IF(INDEX('Full set Core Client Indicator'!$A$3:$AB$351, MATCH(Selection_Hide2!$A148, 'Full set Core Client Indicator'!$A$3:$A$351, 0), MATCH(Selection_Hide2!R$5, 'Full set Core Client Indicator'!$A$3:$AB$3, 0))=\"\", \"\",  INDEX('Full set Core Client Indicator'!$A$3:$AB$351, MATCH(Selection_Hide2!$A148, 'Full set Core Client Indicator'!$A$3:$A$351, 0), MATCH(Selection_Hide2!R$5, 'Full set Core Client Indicator'!$A$3:$AB$3, 0))), \"\")","v":""},{"$f":"IF(R148<>\"\", IF(INDEX('Full set Core Client Indicator'!$A$3:$AB$351, MATCH(Selection_Hide2!$A148, 'Full set Core Client Indicator'!$A$3:$A$351, 0), MATCH(Selection_Hide2!S$5, 'Full set Core Client Indicator'!$A$3:$AB$3, 0))=\"\", \"\",  INDEX('Full set Core Client Indicator'!$A$3:$AB$351, MATCH(Selection_Hide2!$A148, 'Full set Core Client Indicator'!$A$3:$A$351, 0), MATCH(Selection_Hide2!S$5, 'Full set Core Client Indicator'!$A$3:$AB$3, 0))), \"\")","v":""},{"$f":"IF(S148<>\"\", IF(INDEX('Full set Core Client Indicator'!$A$3:$AB$351, MATCH(Selection_Hide2!$A148, 'Full set Core Client Indicator'!$A$3:$A$351, 0), MATCH(Selection_Hide2!T$5, 'Full set Core Client Indicator'!$A$3:$AB$3, 0))=\"\", \"\",  INDEX('Full set Core Client Indicator'!$A$3:$AB$351, MATCH(Selection_Hide2!$A148, 'Full set Core Client Indicator'!$A$3:$A$351, 0), MATCH(Selection_Hide2!T$5, 'Full set Core Client Indicator'!$A$3:$AB$3, 0))), \"\")","v":""},{"$f":"IF(T148<>\"\", IF(INDEX('Full set Core Client Indicator'!$A$3:$AB$351, MATCH(Selection_Hide2!$A148, 'Full set Core Client Indicator'!$A$3:$A$351, 0), MATCH(Selection_Hide2!U$5, 'Full set Core Client Indicator'!$A$3:$AB$3, 0))=\"\", \"\",  INDEX('Full set Core Client Indicator'!$A$3:$AB$351, MATCH(Selection_Hide2!$A148, 'Full set Core Client Indicator'!$A$3:$A$351, 0), MATCH(Selection_Hide2!U$5, 'Full set Core Client Indicator'!$A$3:$AB$3, 0))), \"\")","v":""},{"$f":"IF(U148<>\"\", IF(INDEX('Full set Core Client Indicator'!$A$3:$AB$351, MATCH(Selection_Hide2!$A148, 'Full set Core Client Indicator'!$A$3:$A$351, 0), MATCH(Selection_Hide2!V$5, 'Full set Core Client Indicator'!$A$3:$AB$3, 0))=\"\", \"\",  INDEX('Full set Core Client Indicator'!$A$3:$AB$351, MATCH(Selection_Hide2!$A148, 'Full set Core Client Indicator'!$A$3:$A$351, 0), MATCH(Selection_Hide2!V$5, 'Full set Core Client Indicator'!$A$3:$AB$3, 0))), \"\")","v":""},{"$f":"IF(V148<>\"\", IF(INDEX('Full set Core Client Indicator'!$A$3:$AB$351, MATCH(Selection_Hide2!$A148, 'Full set Core Client Indicator'!$A$3:$A$351, 0), MATCH(Selection_Hide2!W$5, 'Full set Core Client Indicator'!$A$3:$AB$3, 0))=\"\", \"\",  INDEX('Full set Core Client Indicator'!$A$3:$AB$351, MATCH(Selection_Hide2!$A148, 'Full set Core Client Indicator'!$A$3:$A$351, 0), MATCH(Selection_Hide2!W$5, 'Full set Core Client Indicator'!$A$3:$AB$3, 0))), \"\")","v":""},{"$f":"IF(W148<>\"\", IF(INDEX('Full set Core Client Indicator'!$A$3:$AB$351, MATCH(Selection_Hide2!$A148, 'Full set Core Client Indicator'!$A$3:$A$351, 0), MATCH(Selection_Hide2!X$5, 'Full set Core Client Indicator'!$A$3:$AB$3, 0))=\"\", \"\",  INDEX('Full set Core Client Indicator'!$A$3:$AB$351, MATCH(Selection_Hide2!$A148, 'Full set Core Client Indicator'!$A$3:$A$351, 0), MATCH(Selection_Hide2!X$5, 'Full set Core Client Indicator'!$A$3:$AB$3, 0))), \"\")","v":""},{"$f":"IF(X148<>\"\", IF(INDEX('Full set Core Client Indicator'!$A$3:$AB$351, MATCH(Selection_Hide2!$A148, 'Full set Core Client Indicator'!$A$3:$A$351, 0), MATCH(Selection_Hide2!Y$5, 'Full set Core Client Indicator'!$A$3:$AB$3, 0))=\"\", \"\",  INDEX('Full set Core Client Indicator'!$A$3:$AB$351, MATCH(Selection_Hide2!$A148, 'Full set Core Client Indicator'!$A$3:$A$351, 0), MATCH(Selection_Hide2!Y$5, 'Full set Core Client Indicator'!$A$3:$AB$3, 0))), \"\")","v":""},{"$f":"IF(Y148<>\"\", IF(INDEX('Full set Core Client Indicator'!$A$3:$AB$351, MATCH(Selection_Hide2!$A148, 'Full set Core Client Indicator'!$A$3:$A$351, 0), MATCH(Selection_Hide2!Z$5, 'Full set Core Client Indicator'!$A$3:$AB$3, 0))=\"\", \"\",  INDEX('Full set Core Client Indicator'!$A$3:$AB$351, MATCH(Selection_Hide2!$A148, 'Full set Core Client Indicator'!$A$3:$A$351, 0), MATCH(Selection_Hide2!Z$5, 'Full set Core Client Indicator'!$A$3:$AB$3, 0))), \"\")","v":""},{"$f":"IF(Z148<>\"\", IF(INDEX('Full set Core Client Indicator'!$A$3:$AB$351, MATCH(Selection_Hide2!$A148, 'Full set Core Client Indicator'!$A$3:$A$351, 0), MATCH(Selection_Hide2!AA$5, 'Full set Core Client Indicator'!$A$3:$AB$3, 0))=\"\", \"\",  INDEX('Full set Core Client Indicator'!$A$3:$AB$351, MATCH(Selection_Hide2!$A148, 'Full set Core Client Indicator'!$A$3:$A$351, 0), MATCH(Selection_Hide2!AA$5, 'Full set Core Client Indicator'!$A$3:$AB$3, 0))), \"\")","v":""},{"$f":"IF(AA148<>\"\", IF(INDEX('Full set Core Client Indicator'!$A$3:$AB$351, MATCH(Selection_Hide2!$A148, 'Full set Core Client Indicator'!$A$3:$A$351, 0), MATCH(Selection_Hide2!AB$5, 'Full set Core Client Indicator'!$A$3:$AB$3, 0))=\"\", \"\",  INDEX('Full set Core Client Indicator'!$A$3:$AB$351, MATCH(Selection_Hide2!$A148, 'Full set Core Client Indicator'!$A$3:$A$351, 0), MATCH(Selection_Hide2!AB$5, 'Full set Core Client Indicator'!$A$3:$AB$3, 0))), \"\")","v":""}]
[{"$f":"IF(AND(Selection_Hide1!C147<>0, Selection_Hide1!C147<>\"Grand Total\"), Selection_Hide1!C147, \"\")","v":""},{"$f":"IF(A149<>\"\", IF(INDEX('Full set Core Client Indicator'!$A$3:$AB$351, MATCH(Selection_Hide2!$A149, 'Full set Core Client Indicator'!$A$3:$A$351, 0), MATCH(Selection_Hide2!B$5, 'Full set Core Client Indicator'!$A$3:$AB$3, 0))=\"\", \"\",  INDEX('Full set Core Client Indicator'!$A$3:$AB$351, MATCH(Selection_Hide2!$A149, 'Full set Core Client Indicator'!$A$3:$A$351, 0), MATCH(Selection_Hide2!B$5, 'Full set Core Client Indicator'!$A$3:$AB$3, 0))), \"\")","v":""},{"$f":"IF(B149<>\"\", IF(INDEX('Full set Core Client Indicator'!$A$3:$AB$351, MATCH(Selection_Hide2!$A149, 'Full set Core Client Indicator'!$A$3:$A$351, 0), MATCH(Selection_Hide2!C$5, 'Full set Core Client Indicator'!$A$3:$AB$3, 0))=\"\", \"\",  INDEX('Full set Core Client Indicator'!$A$3:$AB$351, MATCH(Selection_Hide2!$A149, 'Full set Core Client Indicator'!$A$3:$A$351, 0), MATCH(Selection_Hide2!C$5, 'Full set Core Client Indicator'!$A$3:$AB$3, 0))), \"\")","v":""},{"$f":"IF(C149<>\"\", IF(INDEX('Full set Core Client Indicator'!$A$3:$AB$351, MATCH(Selection_Hide2!$A149, 'Full set Core Client Indicator'!$A$3:$A$351, 0), MATCH(Selection_Hide2!D$5, 'Full set Core Client Indicator'!$A$3:$AB$3, 0))=\"\", \"\",  INDEX('Full set Core Client Indicator'!$A$3:$AB$351, MATCH(Selection_Hide2!$A149, 'Full set Core Client Indicator'!$A$3:$A$351, 0), MATCH(Selection_Hide2!D$5, 'Full set Core Client Indicator'!$A$3:$AB$3, 0))), \"\")","v":""},{"$f":"IF(D149<>\"\", IF(INDEX('Full set Core Client Indicator'!$A$3:$AB$351, MATCH(Selection_Hide2!$A149, 'Full set Core Client Indicator'!$A$3:$A$351, 0), MATCH(Selection_Hide2!E$5, 'Full set Core Client Indicator'!$A$3:$AB$3, 0))=\"\", \"\",  INDEX('Full set Core Client Indicator'!$A$3:$AB$351, MATCH(Selection_Hide2!$A149, 'Full set Core Client Indicator'!$A$3:$A$351, 0), MATCH(Selection_Hide2!E$5, 'Full set Core Client Indicator'!$A$3:$AB$3, 0))), \"\")","v":""},{"$f":"IF(E149<>\"\", IF(INDEX('Full set Core Client Indicator'!$A$3:$AB$351, MATCH(Selection_Hide2!$A149, 'Full set Core Client Indicator'!$A$3:$A$351, 0), MATCH(Selection_Hide2!F$5, 'Full set Core Client Indicator'!$A$3:$AB$3, 0))=\"\", \"\",  INDEX('Full set Core Client Indicator'!$A$3:$AB$351, MATCH(Selection_Hide2!$A149, 'Full set Core Client Indicator'!$A$3:$A$351, 0), MATCH(Selection_Hide2!F$5, 'Full set Core Client Indicator'!$A$3:$AB$3, 0))), \"\")","v":""},{"$f":"IF(F149<>\"\", IF(INDEX('Full set Core Client Indicator'!$A$3:$AB$351, MATCH(Selection_Hide2!$A149, 'Full set Core Client Indicator'!$A$3:$A$351, 0), MATCH(Selection_Hide2!G$5, 'Full set Core Client Indicator'!$A$3:$AB$3, 0))=\"\", \"\",  INDEX('Full set Core Client Indicator'!$A$3:$AB$351, MATCH(Selection_Hide2!$A149, 'Full set Core Client Indicator'!$A$3:$A$351, 0), MATCH(Selection_Hide2!G$5, 'Full set Core Client Indicator'!$A$3:$AB$3, 0))), \"\")","v":""},{"$f":"IF(G149<>\"\", IF(INDEX('Full set Core Client Indicator'!$A$3:$AB$351, MATCH(Selection_Hide2!$A149, 'Full set Core Client Indicator'!$A$3:$A$351, 0), MATCH(Selection_Hide2!H$5, 'Full set Core Client Indicator'!$A$3:$AB$3, 0))=\"\", \"\",  INDEX('Full set Core Client Indicator'!$A$3:$AB$351, MATCH(Selection_Hide2!$A149, 'Full set Core Client Indicator'!$A$3:$A$351, 0), MATCH(Selection_Hide2!H$5, 'Full set Core Client Indicator'!$A$3:$AB$3, 0))), \"\")","v":""},{"$f":"IF(H149<>\"\", IF(INDEX('Full set Core Client Indicator'!$A$3:$AB$351, MATCH(Selection_Hide2!$A149, 'Full set Core Client Indicator'!$A$3:$A$351, 0), MATCH(Selection_Hide2!I$5, 'Full set Core Client Indicator'!$A$3:$AB$3, 0))=\"\", \"\",  INDEX('Full set Core Client Indicator'!$A$3:$AB$351, MATCH(Selection_Hide2!$A149, 'Full set Core Client Indicator'!$A$3:$A$351, 0), MATCH(Selection_Hide2!I$5, 'Full set Core Client Indicator'!$A$3:$AB$3, 0))), \"\")","v":""},{"$f":"IF(I149<>\"\", IF(INDEX('Full set Core Client Indicator'!$A$3:$AB$351, MATCH(Selection_Hide2!$A149, 'Full set Core Client Indicator'!$A$3:$A$351, 0), MATCH(Selection_Hide2!J$5, 'Full set Core Client Indicator'!$A$3:$AB$3, 0))=\"\", \"\",  INDEX('Full set Core Client Indicator'!$A$3:$AB$351, MATCH(Selection_Hide2!$A149, 'Full set Core Client Indicator'!$A$3:$A$351, 0), MATCH(Selection_Hide2!J$5, 'Full set Core Client Indicator'!$A$3:$AB$3, 0))), \"\")","v":""},{"$f":"IF(J149<>\"\", IF(INDEX('Full set Core Client Indicator'!$A$3:$AB$351, MATCH(Selection_Hide2!$A149, 'Full set Core Client Indicator'!$A$3:$A$351, 0), MATCH(Selection_Hide2!K$5, 'Full set Core Client Indicator'!$A$3:$AB$3, 0))=\"\", \"\",  INDEX('Full set Core Client Indicator'!$A$3:$AB$351, MATCH(Selection_Hide2!$A149, 'Full set Core Client Indicator'!$A$3:$A$351, 0), MATCH(Selection_Hide2!K$5, 'Full set Core Client Indicator'!$A$3:$AB$3, 0))), \"\")","v":""},{"$f":"IF(K149<>\"\", IF(INDEX('Full set Core Client Indicator'!$A$3:$AB$351, MATCH(Selection_Hide2!$A149, 'Full set Core Client Indicator'!$A$3:$A$351, 0), MATCH(Selection_Hide2!L$5, 'Full set Core Client Indicator'!$A$3:$AB$3, 0))=\"\", \"\",  INDEX('Full set Core Client Indicator'!$A$3:$AB$351, MATCH(Selection_Hide2!$A149, 'Full set Core Client Indicator'!$A$3:$A$351, 0), MATCH(Selection_Hide2!L$5, 'Full set Core Client Indicator'!$A$3:$AB$3, 0))), \"\")","v":""},{"$f":"IF(L149<>\"\", IF(INDEX('Full set Core Client Indicator'!$A$3:$AB$351, MATCH(Selection_Hide2!$A149, 'Full set Core Client Indicator'!$A$3:$A$351, 0), MATCH(Selection_Hide2!M$5, 'Full set Core Client Indicator'!$A$3:$AB$3, 0))=\"\", \"\",  INDEX('Full set Core Client Indicator'!$A$3:$AB$351, MATCH(Selection_Hide2!$A149, 'Full set Core Client Indicator'!$A$3:$A$351, 0), MATCH(Selection_Hide2!M$5, 'Full set Core Client Indicator'!$A$3:$AB$3, 0))), \"\")","v":""},{"$f":"IF(M149<>\"\", IF(INDEX('Full set Core Client Indicator'!$A$3:$AB$351, MATCH(Selection_Hide2!$A149, 'Full set Core Client Indicator'!$A$3:$A$351, 0), MATCH(Selection_Hide2!N$5, 'Full set Core Client Indicator'!$A$3:$AB$3, 0))=\"\", \"\",  INDEX('Full set Core Client Indicator'!$A$3:$AB$351, MATCH(Selection_Hide2!$A149, 'Full set Core Client Indicator'!$A$3:$A$351, 0), MATCH(Selection_Hide2!N$5, 'Full set Core Client Indicator'!$A$3:$AB$3, 0))), \"\")","v":""},{"$f":"IF(N149<>\"\", IF(INDEX('Full set Core Client Indicator'!$A$3:$AB$351, MATCH(Selection_Hide2!$A149, 'Full set Core Client Indicator'!$A$3:$A$351, 0), MATCH(Selection_Hide2!O$5, 'Full set Core Client Indicator'!$A$3:$AB$3, 0))=\"\", \"\",  INDEX('Full set Core Client Indicator'!$A$3:$AB$351, MATCH(Selection_Hide2!$A149, 'Full set Core Client Indicator'!$A$3:$A$351, 0), MATCH(Selection_Hide2!O$5, 'Full set Core Client Indicator'!$A$3:$AB$3, 0))), \"\")","v":""},{"$f":"IF(O149<>\"\", IF(INDEX('Full set Core Client Indicator'!$A$3:$AB$351, MATCH(Selection_Hide2!$A149, 'Full set Core Client Indicator'!$A$3:$A$351, 0), MATCH(Selection_Hide2!P$5, 'Full set Core Client Indicator'!$A$3:$AB$3, 0))=\"\", \"\",  INDEX('Full set Core Client Indicator'!$A$3:$AB$351, MATCH(Selection_Hide2!$A149, 'Full set Core Client Indicator'!$A$3:$A$351, 0), MATCH(Selection_Hide2!P$5, 'Full set Core Client Indicator'!$A$3:$AB$3, 0))), \"\")","v":""},{"$f":"IF(P149<>\"\", IF(INDEX('Full set Core Client Indicator'!$A$3:$AB$351, MATCH(Selection_Hide2!$A149, 'Full set Core Client Indicator'!$A$3:$A$351, 0), MATCH(Selection_Hide2!Q$5, 'Full set Core Client Indicator'!$A$3:$AB$3, 0))=\"\", \"\",  INDEX('Full set Core Client Indicator'!$A$3:$AB$351, MATCH(Selection_Hide2!$A149, 'Full set Core Client Indicator'!$A$3:$A$351, 0), MATCH(Selection_Hide2!Q$5, 'Full set Core Client Indicator'!$A$3:$AB$3, 0))), \"\")","v":""},{"$f":"IF(Q149<>\"\", IF(INDEX('Full set Core Client Indicator'!$A$3:$AB$351, MATCH(Selection_Hide2!$A149, 'Full set Core Client Indicator'!$A$3:$A$351, 0), MATCH(Selection_Hide2!R$5, 'Full set Core Client Indicator'!$A$3:$AB$3, 0))=\"\", \"\",  INDEX('Full set Core Client Indicator'!$A$3:$AB$351, MATCH(Selection_Hide2!$A149, 'Full set Core Client Indicator'!$A$3:$A$351, 0), MATCH(Selection_Hide2!R$5, 'Full set Core Client Indicator'!$A$3:$AB$3, 0))), \"\")","v":""},{"$f":"IF(R149<>\"\", IF(INDEX('Full set Core Client Indicator'!$A$3:$AB$351, MATCH(Selection_Hide2!$A149, 'Full set Core Client Indicator'!$A$3:$A$351, 0), MATCH(Selection_Hide2!S$5, 'Full set Core Client Indicator'!$A$3:$AB$3, 0))=\"\", \"\",  INDEX('Full set Core Client Indicator'!$A$3:$AB$351, MATCH(Selection_Hide2!$A149, 'Full set Core Client Indicator'!$A$3:$A$351, 0), MATCH(Selection_Hide2!S$5, 'Full set Core Client Indicator'!$A$3:$AB$3, 0))), \"\")","v":""},{"$f":"IF(S149<>\"\", IF(INDEX('Full set Core Client Indicator'!$A$3:$AB$351, MATCH(Selection_Hide2!$A149, 'Full set Core Client Indicator'!$A$3:$A$351, 0), MATCH(Selection_Hide2!T$5, 'Full set Core Client Indicator'!$A$3:$AB$3, 0))=\"\", \"\",  INDEX('Full set Core Client Indicator'!$A$3:$AB$351, MATCH(Selection_Hide2!$A149, 'Full set Core Client Indicator'!$A$3:$A$351, 0), MATCH(Selection_Hide2!T$5, 'Full set Core Client Indicator'!$A$3:$AB$3, 0))), \"\")","v":""},{"$f":"IF(T149<>\"\", IF(INDEX('Full set Core Client Indicator'!$A$3:$AB$351, MATCH(Selection_Hide2!$A149, 'Full set Core Client Indicator'!$A$3:$A$351, 0), MATCH(Selection_Hide2!U$5, 'Full set Core Client Indicator'!$A$3:$AB$3, 0))=\"\", \"\",  INDEX('Full set Core Client Indicator'!$A$3:$AB$351, MATCH(Selection_Hide2!$A149, 'Full set Core Client Indicator'!$A$3:$A$351, 0), MATCH(Selection_Hide2!U$5, 'Full set Core Client Indicator'!$A$3:$AB$3, 0))), \"\")","v":""},{"$f":"IF(U149<>\"\", IF(INDEX('Full set Core Client Indicator'!$A$3:$AB$351, MATCH(Selection_Hide2!$A149, 'Full set Core Client Indicator'!$A$3:$A$351, 0), MATCH(Selection_Hide2!V$5, 'Full set Core Client Indicator'!$A$3:$AB$3, 0))=\"\", \"\",  INDEX('Full set Core Client Indicator'!$A$3:$AB$351, MATCH(Selection_Hide2!$A149, 'Full set Core Client Indicator'!$A$3:$A$351, 0), MATCH(Selection_Hide2!V$5, 'Full set Core Client Indicator'!$A$3:$AB$3, 0))), \"\")","v":""},{"$f":"IF(V149<>\"\", IF(INDEX('Full set Core Client Indicator'!$A$3:$AB$351, MATCH(Selection_Hide2!$A149, 'Full set Core Client Indicator'!$A$3:$A$351, 0), MATCH(Selection_Hide2!W$5, 'Full set Core Client Indicator'!$A$3:$AB$3, 0))=\"\", \"\",  INDEX('Full set Core Client Indicator'!$A$3:$AB$351, MATCH(Selection_Hide2!$A149, 'Full set Core Client Indicator'!$A$3:$A$351, 0), MATCH(Selection_Hide2!W$5, 'Full set Core Client Indicator'!$A$3:$AB$3, 0))), \"\")","v":""},{"$f":"IF(W149<>\"\", IF(INDEX('Full set Core Client Indicator'!$A$3:$AB$351, MATCH(Selection_Hide2!$A149, 'Full set Core Client Indicator'!$A$3:$A$351, 0), MATCH(Selection_Hide2!X$5, 'Full set Core Client Indicator'!$A$3:$AB$3, 0))=\"\", \"\",  INDEX('Full set Core Client Indicator'!$A$3:$AB$351, MATCH(Selection_Hide2!$A149, 'Full set Core Client Indicator'!$A$3:$A$351, 0), MATCH(Selection_Hide2!X$5, 'Full set Core Client Indicator'!$A$3:$AB$3, 0))), \"\")","v":""},{"$f":"IF(X149<>\"\", IF(INDEX('Full set Core Client Indicator'!$A$3:$AB$351, MATCH(Selection_Hide2!$A149, 'Full set Core Client Indicator'!$A$3:$A$351, 0), MATCH(Selection_Hide2!Y$5, 'Full set Core Client Indicator'!$A$3:$AB$3, 0))=\"\", \"\",  INDEX('Full set Core Client Indicator'!$A$3:$AB$351, MATCH(Selection_Hide2!$A149, 'Full set Core Client Indicator'!$A$3:$A$351, 0), MATCH(Selection_Hide2!Y$5, 'Full set Core Client Indicator'!$A$3:$AB$3, 0))), \"\")","v":""},{"$f":"IF(Y149<>\"\", IF(INDEX('Full set Core Client Indicator'!$A$3:$AB$351, MATCH(Selection_Hide2!$A149, 'Full set Core Client Indicator'!$A$3:$A$351, 0), MATCH(Selection_Hide2!Z$5, 'Full set Core Client Indicator'!$A$3:$AB$3, 0))=\"\", \"\",  INDEX('Full set Core Client Indicator'!$A$3:$AB$351, MATCH(Selection_Hide2!$A149, 'Full set Core Client Indicator'!$A$3:$A$351, 0), MATCH(Selection_Hide2!Z$5, 'Full set Core Client Indicator'!$A$3:$AB$3, 0))), \"\")","v":""},{"$f":"IF(Z149<>\"\", IF(INDEX('Full set Core Client Indicator'!$A$3:$AB$351, MATCH(Selection_Hide2!$A149, 'Full set Core Client Indicator'!$A$3:$A$351, 0), MATCH(Selection_Hide2!AA$5, 'Full set Core Client Indicator'!$A$3:$AB$3, 0))=\"\", \"\",  INDEX('Full set Core Client Indicator'!$A$3:$AB$351, MATCH(Selection_Hide2!$A149, 'Full set Core Client Indicator'!$A$3:$A$351, 0), MATCH(Selection_Hide2!AA$5, 'Full set Core Client Indicator'!$A$3:$AB$3, 0))), \"\")","v":""},{"$f":"IF(AA149<>\"\", IF(INDEX('Full set Core Client Indicator'!$A$3:$AB$351, MATCH(Selection_Hide2!$A149, 'Full set Core Client Indicator'!$A$3:$A$351, 0), MATCH(Selection_Hide2!AB$5, 'Full set Core Client Indicator'!$A$3:$AB$3, 0))=\"\", \"\",  INDEX('Full set Core Client Indicator'!$A$3:$AB$351, MATCH(Selection_Hide2!$A149, 'Full set Core Client Indicator'!$A$3:$A$351, 0), MATCH(Selection_Hide2!AB$5, 'Full set Core Client Indicator'!$A$3:$AB$3, 0))), \"\")","v":""}]
[{"$f":"IF(AND(Selection_Hide1!C148<>0, Selection_Hide1!C148<>\"Grand Total\"), Selection_Hide1!C148, \"\")","v":""},{"$f":"IF(A150<>\"\", IF(INDEX('Full set Core Client Indicator'!$A$3:$AB$351, MATCH(Selection_Hide2!$A150, 'Full set Core Client Indicator'!$A$3:$A$351, 0), MATCH(Selection_Hide2!B$5, 'Full set Core Client Indicator'!$A$3:$AB$3, 0))=\"\", \"\",  INDEX('Full set Core Client Indicator'!$A$3:$AB$351, MATCH(Selection_Hide2!$A150, 'Full set Core Client Indicator'!$A$3:$A$351, 0), MATCH(Selection_Hide2!B$5, 'Full set Core Client Indicator'!$A$3:$AB$3, 0))), \"\")","v":""},{"$f":"IF(B150<>\"\", IF(INDEX('Full set Core Client Indicator'!$A$3:$AB$351, MATCH(Selection_Hide2!$A150, 'Full set Core Client Indicator'!$A$3:$A$351, 0), MATCH(Selection_Hide2!C$5, 'Full set Core Client Indicator'!$A$3:$AB$3, 0))=\"\", \"\",  INDEX('Full set Core Client Indicator'!$A$3:$AB$351, MATCH(Selection_Hide2!$A150, 'Full set Core Client Indicator'!$A$3:$A$351, 0), MATCH(Selection_Hide2!C$5, 'Full set Core Client Indicator'!$A$3:$AB$3, 0))), \"\")","v":""},{"$f":"IF(C150<>\"\", IF(INDEX('Full set Core Client Indicator'!$A$3:$AB$351, MATCH(Selection_Hide2!$A150, 'Full set Core Client Indicator'!$A$3:$A$351, 0), MATCH(Selection_Hide2!D$5, 'Full set Core Client Indicator'!$A$3:$AB$3, 0))=\"\", \"\",  INDEX('Full set Core Client Indicator'!$A$3:$AB$351, MATCH(Selection_Hide2!$A150, 'Full set Core Client Indicator'!$A$3:$A$351, 0), MATCH(Selection_Hide2!D$5, 'Full set Core Client Indicator'!$A$3:$AB$3, 0))), \"\")","v":""},{"$f":"IF(D150<>\"\", IF(INDEX('Full set Core Client Indicator'!$A$3:$AB$351, MATCH(Selection_Hide2!$A150, 'Full set Core Client Indicator'!$A$3:$A$351, 0), MATCH(Selection_Hide2!E$5, 'Full set Core Client Indicator'!$A$3:$AB$3, 0))=\"\", \"\",  INDEX('Full set Core Client Indicator'!$A$3:$AB$351, MATCH(Selection_Hide2!$A150, 'Full set Core Client Indicator'!$A$3:$A$351, 0), MATCH(Selection_Hide2!E$5, 'Full set Core Client Indicator'!$A$3:$AB$3, 0))), \"\")","v":""},{"$f":"IF(E150<>\"\", IF(INDEX('Full set Core Client Indicator'!$A$3:$AB$351, MATCH(Selection_Hide2!$A150, 'Full set Core Client Indicator'!$A$3:$A$351, 0), MATCH(Selection_Hide2!F$5, 'Full set Core Client Indicator'!$A$3:$AB$3, 0))=\"\", \"\",  INDEX('Full set Core Client Indicator'!$A$3:$AB$351, MATCH(Selection_Hide2!$A150, 'Full set Core Client Indicator'!$A$3:$A$351, 0), MATCH(Selection_Hide2!F$5, 'Full set Core Client Indicator'!$A$3:$AB$3, 0))), \"\")","v":""},{"$f":"IF(F150<>\"\", IF(INDEX('Full set Core Client Indicator'!$A$3:$AB$351, MATCH(Selection_Hide2!$A150, 'Full set Core Client Indicator'!$A$3:$A$351, 0), MATCH(Selection_Hide2!G$5, 'Full set Core Client Indicator'!$A$3:$AB$3, 0))=\"\", \"\",  INDEX('Full set Core Client Indicator'!$A$3:$AB$351, MATCH(Selection_Hide2!$A150, 'Full set Core Client Indicator'!$A$3:$A$351, 0), MATCH(Selection_Hide2!G$5, 'Full set Core Client Indicator'!$A$3:$AB$3, 0))), \"\")","v":""},{"$f":"IF(G150<>\"\", IF(INDEX('Full set Core Client Indicator'!$A$3:$AB$351, MATCH(Selection_Hide2!$A150, 'Full set Core Client Indicator'!$A$3:$A$351, 0), MATCH(Selection_Hide2!H$5, 'Full set Core Client Indicator'!$A$3:$AB$3, 0))=\"\", \"\",  INDEX('Full set Core Client Indicator'!$A$3:$AB$351, MATCH(Selection_Hide2!$A150, 'Full set Core Client Indicator'!$A$3:$A$351, 0), MATCH(Selection_Hide2!H$5, 'Full set Core Client Indicator'!$A$3:$AB$3, 0))), \"\")","v":""},{"$f":"IF(H150<>\"\", IF(INDEX('Full set Core Client Indicator'!$A$3:$AB$351, MATCH(Selection_Hide2!$A150, 'Full set Core Client Indicator'!$A$3:$A$351, 0), MATCH(Selection_Hide2!I$5, 'Full set Core Client Indicator'!$A$3:$AB$3, 0))=\"\", \"\",  INDEX('Full set Core Client Indicator'!$A$3:$AB$351, MATCH(Selection_Hide2!$A150, 'Full set Core Client Indicator'!$A$3:$A$351, 0), MATCH(Selection_Hide2!I$5, 'Full set Core Client Indicator'!$A$3:$AB$3, 0))), \"\")","v":""},{"$f":"IF(I150<>\"\", IF(INDEX('Full set Core Client Indicator'!$A$3:$AB$351, MATCH(Selection_Hide2!$A150, 'Full set Core Client Indicator'!$A$3:$A$351, 0), MATCH(Selection_Hide2!J$5, 'Full set Core Client Indicator'!$A$3:$AB$3, 0))=\"\", \"\",  INDEX('Full set Core Client Indicator'!$A$3:$AB$351, MATCH(Selection_Hide2!$A150, 'Full set Core Client Indicator'!$A$3:$A$351, 0), MATCH(Selection_Hide2!J$5, 'Full set Core Client Indicator'!$A$3:$AB$3, 0))), \"\")","v":""},{"$f":"IF(J150<>\"\", IF(INDEX('Full set Core Client Indicator'!$A$3:$AB$351, MATCH(Selection_Hide2!$A150, 'Full set Core Client Indicator'!$A$3:$A$351, 0), MATCH(Selection_Hide2!K$5, 'Full set Core Client Indicator'!$A$3:$AB$3, 0))=\"\", \"\",  INDEX('Full set Core Client Indicator'!$A$3:$AB$351, MATCH(Selection_Hide2!$A150, 'Full set Core Client Indicator'!$A$3:$A$351, 0), MATCH(Selection_Hide2!K$5, 'Full set Core Client Indicator'!$A$3:$AB$3, 0))), \"\")","v":""},{"$f":"IF(K150<>\"\", IF(INDEX('Full set Core Client Indicator'!$A$3:$AB$351, MATCH(Selection_Hide2!$A150, 'Full set Core Client Indicator'!$A$3:$A$351, 0), MATCH(Selection_Hide2!L$5, 'Full set Core Client Indicator'!$A$3:$AB$3, 0))=\"\", \"\",  INDEX('Full set Core Client Indicator'!$A$3:$AB$351, MATCH(Selection_Hide2!$A150, 'Full set Core Client Indicator'!$A$3:$A$351, 0), MATCH(Selection_Hide2!L$5, 'Full set Core Client Indicator'!$A$3:$AB$3, 0))), \"\")","v":""},{"$f":"IF(L150<>\"\", IF(INDEX('Full set Core Client Indicator'!$A$3:$AB$351, MATCH(Selection_Hide2!$A150, 'Full set Core Client Indicator'!$A$3:$A$351, 0), MATCH(Selection_Hide2!M$5, 'Full set Core Client Indicator'!$A$3:$AB$3, 0))=\"\", \"\",  INDEX('Full set Core Client Indicator'!$A$3:$AB$351, MATCH(Selection_Hide2!$A150, 'Full set Core Client Indicator'!$A$3:$A$351, 0), MATCH(Selection_Hide2!M$5, 'Full set Core Client Indicator'!$A$3:$AB$3, 0))), \"\")","v":""},{"$f":"IF(M150<>\"\", IF(INDEX('Full set Core Client Indicator'!$A$3:$AB$351, MATCH(Selection_Hide2!$A150, 'Full set Core Client Indicator'!$A$3:$A$351, 0), MATCH(Selection_Hide2!N$5, 'Full set Core Client Indicator'!$A$3:$AB$3, 0))=\"\", \"\",  INDEX('Full set Core Client Indicator'!$A$3:$AB$351, MATCH(Selection_Hide2!$A150, 'Full set Core Client Indicator'!$A$3:$A$351, 0), MATCH(Selection_Hide2!N$5, 'Full set Core Client Indicator'!$A$3:$AB$3, 0))), \"\")","v":""},{"$f":"IF(N150<>\"\", IF(INDEX('Full set Core Client Indicator'!$A$3:$AB$351, MATCH(Selection_Hide2!$A150, 'Full set Core Client Indicator'!$A$3:$A$351, 0), MATCH(Selection_Hide2!O$5, 'Full set Core Client Indicator'!$A$3:$AB$3, 0))=\"\", \"\",  INDEX('Full set Core Client Indicator'!$A$3:$AB$351, MATCH(Selection_Hide2!$A150, 'Full set Core Client Indicator'!$A$3:$A$351, 0), MATCH(Selection_Hide2!O$5, 'Full set Core Client Indicator'!$A$3:$AB$3, 0))), \"\")","v":""},{"$f":"IF(O150<>\"\", IF(INDEX('Full set Core Client Indicator'!$A$3:$AB$351, MATCH(Selection_Hide2!$A150, 'Full set Core Client Indicator'!$A$3:$A$351, 0), MATCH(Selection_Hide2!P$5, 'Full set Core Client Indicator'!$A$3:$AB$3, 0))=\"\", \"\",  INDEX('Full set Core Client Indicator'!$A$3:$AB$351, MATCH(Selection_Hide2!$A150, 'Full set Core Client Indicator'!$A$3:$A$351, 0), MATCH(Selection_Hide2!P$5, 'Full set Core Client Indicator'!$A$3:$AB$3, 0))), \"\")","v":""},{"$f":"IF(P150<>\"\", IF(INDEX('Full set Core Client Indicator'!$A$3:$AB$351, MATCH(Selection_Hide2!$A150, 'Full set Core Client Indicator'!$A$3:$A$351, 0), MATCH(Selection_Hide2!Q$5, 'Full set Core Client Indicator'!$A$3:$AB$3, 0))=\"\", \"\",  INDEX('Full set Core Client Indicator'!$A$3:$AB$351, MATCH(Selection_Hide2!$A150, 'Full set Core Client Indicator'!$A$3:$A$351, 0), MATCH(Selection_Hide2!Q$5, 'Full set Core Client Indicator'!$A$3:$AB$3, 0))), \"\")","v":""},{"$f":"IF(Q150<>\"\", IF(INDEX('Full set Core Client Indicator'!$A$3:$AB$351, MATCH(Selection_Hide2!$A150, 'Full set Core Client Indicator'!$A$3:$A$351, 0), MATCH(Selection_Hide2!R$5, 'Full set Core Client Indicator'!$A$3:$AB$3, 0))=\"\", \"\",  INDEX('Full set Core Client Indicator'!$A$3:$AB$351, MATCH(Selection_Hide2!$A150, 'Full set Core Client Indicator'!$A$3:$A$351, 0), MATCH(Selection_Hide2!R$5, 'Full set Core Client Indicator'!$A$3:$AB$3, 0))), \"\")","v":""},{"$f":"IF(R150<>\"\", IF(INDEX('Full set Core Client Indicator'!$A$3:$AB$351, MATCH(Selection_Hide2!$A150, 'Full set Core Client Indicator'!$A$3:$A$351, 0), MATCH(Selection_Hide2!S$5, 'Full set Core Client Indicator'!$A$3:$AB$3, 0))=\"\", \"\",  INDEX('Full set Core Client Indicator'!$A$3:$AB$351, MATCH(Selection_Hide2!$A150, 'Full set Core Client Indicator'!$A$3:$A$351, 0), MATCH(Selection_Hide2!S$5, 'Full set Core Client Indicator'!$A$3:$AB$3, 0))), \"\")","v":""},{"$f":"IF(S150<>\"\", IF(INDEX('Full set Core Client Indicator'!$A$3:$AB$351, MATCH(Selection_Hide2!$A150, 'Full set Core Client Indicator'!$A$3:$A$351, 0), MATCH(Selection_Hide2!T$5, 'Full set Core Client Indicator'!$A$3:$AB$3, 0))=\"\", \"\",  INDEX('Full set Core Client Indicator'!$A$3:$AB$351, MATCH(Selection_Hide2!$A150, 'Full set Core Client Indicator'!$A$3:$A$351, 0), MATCH(Selection_Hide2!T$5, 'Full set Core Client Indicator'!$A$3:$AB$3, 0))), \"\")","v":""},{"$f":"IF(T150<>\"\", IF(INDEX('Full set Core Client Indicator'!$A$3:$AB$351, MATCH(Selection_Hide2!$A150, 'Full set Core Client Indicator'!$A$3:$A$351, 0), MATCH(Selection_Hide2!U$5, 'Full set Core Client Indicator'!$A$3:$AB$3, 0))=\"\", \"\",  INDEX('Full set Core Client Indicator'!$A$3:$AB$351, MATCH(Selection_Hide2!$A150, 'Full set Core Client Indicator'!$A$3:$A$351, 0), MATCH(Selection_Hide2!U$5, 'Full set Core Client Indicator'!$A$3:$AB$3, 0))), \"\")","v":""},{"$f":"IF(U150<>\"\", IF(INDEX('Full set Core Client Indicator'!$A$3:$AB$351, MATCH(Selection_Hide2!$A150, 'Full set Core Client Indicator'!$A$3:$A$351, 0), MATCH(Selection_Hide2!V$5, 'Full set Core Client Indicator'!$A$3:$AB$3, 0))=\"\", \"\",  INDEX('Full set Core Client Indicator'!$A$3:$AB$351, MATCH(Selection_Hide2!$A150, 'Full set Core Client Indicator'!$A$3:$A$351, 0), MATCH(Selection_Hide2!V$5, 'Full set Core Client Indicator'!$A$3:$AB$3, 0))), \"\")","v":""},{"$f":"IF(V150<>\"\", IF(INDEX('Full set Core Client Indicator'!$A$3:$AB$351, MATCH(Selection_Hide2!$A150, 'Full set Core Client Indicator'!$A$3:$A$351, 0), MATCH(Selection_Hide2!W$5, 'Full set Core Client Indicator'!$A$3:$AB$3, 0))=\"\", \"\",  INDEX('Full set Core Client Indicator'!$A$3:$AB$351, MATCH(Selection_Hide2!$A150, 'Full set Core Client Indicator'!$A$3:$A$351, 0), MATCH(Selection_Hide2!W$5, 'Full set Core Client Indicator'!$A$3:$AB$3, 0))), \"\")","v":""},{"$f":"IF(W150<>\"\", IF(INDEX('Full set Core Client Indicator'!$A$3:$AB$351, MATCH(Selection_Hide2!$A150, 'Full set Core Client Indicator'!$A$3:$A$351, 0), MATCH(Selection_Hide2!X$5, 'Full set Core Client Indicator'!$A$3:$AB$3, 0))=\"\", \"\",  INDEX('Full set Core Client Indicator'!$A$3:$AB$351, MATCH(Selection_Hide2!$A150, 'Full set Core Client Indicator'!$A$3:$A$351, 0), MATCH(Selection_Hide2!X$5, 'Full set Core Client Indicator'!$A$3:$AB$3, 0))), \"\")","v":""},{"$f":"IF(X150<>\"\", IF(INDEX('Full set Core Client Indicator'!$A$3:$AB$351, MATCH(Selection_Hide2!$A150, 'Full set Core Client Indicator'!$A$3:$A$351, 0), MATCH(Selection_Hide2!Y$5, 'Full set Core Client Indicator'!$A$3:$AB$3, 0))=\"\", \"\",  INDEX('Full set Core Client Indicator'!$A$3:$AB$351, MATCH(Selection_Hide2!$A150, 'Full set Core Client Indicator'!$A$3:$A$351, 0), MATCH(Selection_Hide2!Y$5, 'Full set Core Client Indicator'!$A$3:$AB$3, 0))), \"\")","v":""},{"$f":"IF(Y150<>\"\", IF(INDEX('Full set Core Client Indicator'!$A$3:$AB$351, MATCH(Selection_Hide2!$A150, 'Full set Core Client Indicator'!$A$3:$A$351, 0), MATCH(Selection_Hide2!Z$5, 'Full set Core Client Indicator'!$A$3:$AB$3, 0))=\"\", \"\",  INDEX('Full set Core Client Indicator'!$A$3:$AB$351, MATCH(Selection_Hide2!$A150, 'Full set Core Client Indicator'!$A$3:$A$351, 0), MATCH(Selection_Hide2!Z$5, 'Full set Core Client Indicator'!$A$3:$AB$3, 0))), \"\")","v":""},{"$f":"IF(Z150<>\"\", IF(INDEX('Full set Core Client Indicator'!$A$3:$AB$351, MATCH(Selection_Hide2!$A150, 'Full set Core Client Indicator'!$A$3:$A$351, 0), MATCH(Selection_Hide2!AA$5, 'Full set Core Client Indicator'!$A$3:$AB$3, 0))=\"\", \"\",  INDEX('Full set Core Client Indicator'!$A$3:$AB$351, MATCH(Selection_Hide2!$A150, 'Full set Core Client Indicator'!$A$3:$A$351, 0), MATCH(Selection_Hide2!AA$5, 'Full set Core Client Indicator'!$A$3:$AB$3, 0))), \"\")","v":""},{"$f":"IF(AA150<>\"\", IF(INDEX('Full set Core Client Indicator'!$A$3:$AB$351, MATCH(Selection_Hide2!$A150, 'Full set Core Client Indicator'!$A$3:$A$351, 0), MATCH(Selection_Hide2!AB$5, 'Full set Core Client Indicator'!$A$3:$AB$3, 0))=\"\", \"\",  INDEX('Full set Core Client Indicator'!$A$3:$AB$351, MATCH(Selection_Hide2!$A150, 'Full set Core Client Indicator'!$A$3:$A$351, 0), MATCH(Selection_Hide2!AB$5, 'Full set Core Client Indicator'!$A$3:$AB$3, 0))), \"\")","v":""}]
[{"$f":"IF(AND(Selection_Hide1!C149<>0, Selection_Hide1!C149<>\"Grand Total\"), Selection_Hide1!C149, \"\")","v":""},{"$f":"IF(A151<>\"\", IF(INDEX('Full set Core Client Indicator'!$A$3:$AB$351, MATCH(Selection_Hide2!$A151, 'Full set Core Client Indicator'!$A$3:$A$351, 0), MATCH(Selection_Hide2!B$5, 'Full set Core Client Indicator'!$A$3:$AB$3, 0))=\"\", \"\",  INDEX('Full set Core Client Indicator'!$A$3:$AB$351, MATCH(Selection_Hide2!$A151, 'Full set Core Client Indicator'!$A$3:$A$351, 0), MATCH(Selection_Hide2!B$5, 'Full set Core Client Indicator'!$A$3:$AB$3, 0))), \"\")","v":""},{"$f":"IF(B151<>\"\", IF(INDEX('Full set Core Client Indicator'!$A$3:$AB$351, MATCH(Selection_Hide2!$A151, 'Full set Core Client Indicator'!$A$3:$A$351, 0), MATCH(Selection_Hide2!C$5, 'Full set Core Client Indicator'!$A$3:$AB$3, 0))=\"\", \"\",  INDEX('Full set Core Client Indicator'!$A$3:$AB$351, MATCH(Selection_Hide2!$A151, 'Full set Core Client Indicator'!$A$3:$A$351, 0), MATCH(Selection_Hide2!C$5, 'Full set Core Client Indicator'!$A$3:$AB$3, 0))), \"\")","v":""},{"$f":"IF(C151<>\"\", IF(INDEX('Full set Core Client Indicator'!$A$3:$AB$351, MATCH(Selection_Hide2!$A151, 'Full set Core Client Indicator'!$A$3:$A$351, 0), MATCH(Selection_Hide2!D$5, 'Full set Core Client Indicator'!$A$3:$AB$3, 0))=\"\", \"\",  INDEX('Full set Core Client Indicator'!$A$3:$AB$351, MATCH(Selection_Hide2!$A151, 'Full set Core Client Indicator'!$A$3:$A$351, 0), MATCH(Selection_Hide2!D$5, 'Full set Core Client Indicator'!$A$3:$AB$3, 0))), \"\")","v":""},{"$f":"IF(D151<>\"\", IF(INDEX('Full set Core Client Indicator'!$A$3:$AB$351, MATCH(Selection_Hide2!$A151, 'Full set Core Client Indicator'!$A$3:$A$351, 0), MATCH(Selection_Hide2!E$5, 'Full set Core Client Indicator'!$A$3:$AB$3, 0))=\"\", \"\",  INDEX('Full set Core Client Indicator'!$A$3:$AB$351, MATCH(Selection_Hide2!$A151, 'Full set Core Client Indicator'!$A$3:$A$351, 0), MATCH(Selection_Hide2!E$5, 'Full set Core Client Indicator'!$A$3:$AB$3, 0))), \"\")","v":""},{"$f":"IF(E151<>\"\", IF(INDEX('Full set Core Client Indicator'!$A$3:$AB$351, MATCH(Selection_Hide2!$A151, 'Full set Core Client Indicator'!$A$3:$A$351, 0), MATCH(Selection_Hide2!F$5, 'Full set Core Client Indicator'!$A$3:$AB$3, 0))=\"\", \"\",  INDEX('Full set Core Client Indicator'!$A$3:$AB$351, MATCH(Selection_Hide2!$A151, 'Full set Core Client Indicator'!$A$3:$A$351, 0), MATCH(Selection_Hide2!F$5, 'Full set Core Client Indicator'!$A$3:$AB$3, 0))), \"\")","v":""},{"$f":"IF(F151<>\"\", IF(INDEX('Full set Core Client Indicator'!$A$3:$AB$351, MATCH(Selection_Hide2!$A151, 'Full set Core Client Indicator'!$A$3:$A$351, 0), MATCH(Selection_Hide2!G$5, 'Full set Core Client Indicator'!$A$3:$AB$3, 0))=\"\", \"\",  INDEX('Full set Core Client Indicator'!$A$3:$AB$351, MATCH(Selection_Hide2!$A151, 'Full set Core Client Indicator'!$A$3:$A$351, 0), MATCH(Selection_Hide2!G$5, 'Full set Core Client Indicator'!$A$3:$AB$3, 0))), \"\")","v":""},{"$f":"IF(G151<>\"\", IF(INDEX('Full set Core Client Indicator'!$A$3:$AB$351, MATCH(Selection_Hide2!$A151, 'Full set Core Client Indicator'!$A$3:$A$351, 0), MATCH(Selection_Hide2!H$5, 'Full set Core Client Indicator'!$A$3:$AB$3, 0))=\"\", \"\",  INDEX('Full set Core Client Indicator'!$A$3:$AB$351, MATCH(Selection_Hide2!$A151, 'Full set Core Client Indicator'!$A$3:$A$351, 0), MATCH(Selection_Hide2!H$5, 'Full set Core Client Indicator'!$A$3:$AB$3, 0))), \"\")","v":""},{"$f":"IF(H151<>\"\", IF(INDEX('Full set Core Client Indicator'!$A$3:$AB$351, MATCH(Selection_Hide2!$A151, 'Full set Core Client Indicator'!$A$3:$A$351, 0), MATCH(Selection_Hide2!I$5, 'Full set Core Client Indicator'!$A$3:$AB$3, 0))=\"\", \"\",  INDEX('Full set Core Client Indicator'!$A$3:$AB$351, MATCH(Selection_Hide2!$A151, 'Full set Core Client Indicator'!$A$3:$A$351, 0), MATCH(Selection_Hide2!I$5, 'Full set Core Client Indicator'!$A$3:$AB$3, 0))), \"\")","v":""},{"$f":"IF(I151<>\"\", IF(INDEX('Full set Core Client Indicator'!$A$3:$AB$351, MATCH(Selection_Hide2!$A151, 'Full set Core Client Indicator'!$A$3:$A$351, 0), MATCH(Selection_Hide2!J$5, 'Full set Core Client Indicator'!$A$3:$AB$3, 0))=\"\", \"\",  INDEX('Full set Core Client Indicator'!$A$3:$AB$351, MATCH(Selection_Hide2!$A151, 'Full set Core Client Indicator'!$A$3:$A$351, 0), MATCH(Selection_Hide2!J$5, 'Full set Core Client Indicator'!$A$3:$AB$3, 0))), \"\")","v":""},{"$f":"IF(J151<>\"\", IF(INDEX('Full set Core Client Indicator'!$A$3:$AB$351, MATCH(Selection_Hide2!$A151, 'Full set Core Client Indicator'!$A$3:$A$351, 0), MATCH(Selection_Hide2!K$5, 'Full set Core Client Indicator'!$A$3:$AB$3, 0))=\"\", \"\",  INDEX('Full set Core Client Indicator'!$A$3:$AB$351, MATCH(Selection_Hide2!$A151, 'Full set Core Client Indicator'!$A$3:$A$351, 0), MATCH(Selection_Hide2!K$5, 'Full set Core Client Indicator'!$A$3:$AB$3, 0))), \"\")","v":""},{"$f":"IF(K151<>\"\", IF(INDEX('Full set Core Client Indicator'!$A$3:$AB$351, MATCH(Selection_Hide2!$A151, 'Full set Core Client Indicator'!$A$3:$A$351, 0), MATCH(Selection_Hide2!L$5, 'Full set Core Client Indicator'!$A$3:$AB$3, 0))=\"\", \"\",  INDEX('Full set Core Client Indicator'!$A$3:$AB$351, MATCH(Selection_Hide2!$A151, 'Full set Core Client Indicator'!$A$3:$A$351, 0), MATCH(Selection_Hide2!L$5, 'Full set Core Client Indicator'!$A$3:$AB$3, 0))), \"\")","v":""},{"$f":"IF(L151<>\"\", IF(INDEX('Full set Core Client Indicator'!$A$3:$AB$351, MATCH(Selection_Hide2!$A151, 'Full set Core Client Indicator'!$A$3:$A$351, 0), MATCH(Selection_Hide2!M$5, 'Full set Core Client Indicator'!$A$3:$AB$3, 0))=\"\", \"\",  INDEX('Full set Core Client Indicator'!$A$3:$AB$351, MATCH(Selection_Hide2!$A151, 'Full set Core Client Indicator'!$A$3:$A$351, 0), MATCH(Selection_Hide2!M$5, 'Full set Core Client Indicator'!$A$3:$AB$3, 0))), \"\")","v":""},{"$f":"IF(M151<>\"\", IF(INDEX('Full set Core Client Indicator'!$A$3:$AB$351, MATCH(Selection_Hide2!$A151, 'Full set Core Client Indicator'!$A$3:$A$351, 0), MATCH(Selection_Hide2!N$5, 'Full set Core Client Indicator'!$A$3:$AB$3, 0))=\"\", \"\",  INDEX('Full set Core Client Indicator'!$A$3:$AB$351, MATCH(Selection_Hide2!$A151, 'Full set Core Client Indicator'!$A$3:$A$351, 0), MATCH(Selection_Hide2!N$5, 'Full set Core Client Indicator'!$A$3:$AB$3, 0))), \"\")","v":""},{"$f":"IF(N151<>\"\", IF(INDEX('Full set Core Client Indicator'!$A$3:$AB$351, MATCH(Selection_Hide2!$A151, 'Full set Core Client Indicator'!$A$3:$A$351, 0), MATCH(Selection_Hide2!O$5, 'Full set Core Client Indicator'!$A$3:$AB$3, 0))=\"\", \"\",  INDEX('Full set Core Client Indicator'!$A$3:$AB$351, MATCH(Selection_Hide2!$A151, 'Full set Core Client Indicator'!$A$3:$A$351, 0), MATCH(Selection_Hide2!O$5, 'Full set Core Client Indicator'!$A$3:$AB$3, 0))), \"\")","v":""},{"$f":"IF(O151<>\"\", IF(INDEX('Full set Core Client Indicator'!$A$3:$AB$351, MATCH(Selection_Hide2!$A151, 'Full set Core Client Indicator'!$A$3:$A$351, 0), MATCH(Selection_Hide2!P$5, 'Full set Core Client Indicator'!$A$3:$AB$3, 0))=\"\", \"\",  INDEX('Full set Core Client Indicator'!$A$3:$AB$351, MATCH(Selection_Hide2!$A151, 'Full set Core Client Indicator'!$A$3:$A$351, 0), MATCH(Selection_Hide2!P$5, 'Full set Core Client Indicator'!$A$3:$AB$3, 0))), \"\")","v":""},{"$f":"IF(P151<>\"\", IF(INDEX('Full set Core Client Indicator'!$A$3:$AB$351, MATCH(Selection_Hide2!$A151, 'Full set Core Client Indicator'!$A$3:$A$351, 0), MATCH(Selection_Hide2!Q$5, 'Full set Core Client Indicator'!$A$3:$AB$3, 0))=\"\", \"\",  INDEX('Full set Core Client Indicator'!$A$3:$AB$351, MATCH(Selection_Hide2!$A151, 'Full set Core Client Indicator'!$A$3:$A$351, 0), MATCH(Selection_Hide2!Q$5, 'Full set Core Client Indicator'!$A$3:$AB$3, 0))), \"\")","v":""},{"$f":"IF(Q151<>\"\", IF(INDEX('Full set Core Client Indicator'!$A$3:$AB$351, MATCH(Selection_Hide2!$A151, 'Full set Core Client Indicator'!$A$3:$A$351, 0), MATCH(Selection_Hide2!R$5, 'Full set Core Client Indicator'!$A$3:$AB$3, 0))=\"\", \"\",  INDEX('Full set Core Client Indicator'!$A$3:$AB$351, MATCH(Selection_Hide2!$A151, 'Full set Core Client Indicator'!$A$3:$A$351, 0), MATCH(Selection_Hide2!R$5, 'Full set Core Client Indicator'!$A$3:$AB$3, 0))), \"\")","v":""},{"$f":"IF(R151<>\"\", IF(INDEX('Full set Core Client Indicator'!$A$3:$AB$351, MATCH(Selection_Hide2!$A151, 'Full set Core Client Indicator'!$A$3:$A$351, 0), MATCH(Selection_Hide2!S$5, 'Full set Core Client Indicator'!$A$3:$AB$3, 0))=\"\", \"\",  INDEX('Full set Core Client Indicator'!$A$3:$AB$351, MATCH(Selection_Hide2!$A151, 'Full set Core Client Indicator'!$A$3:$A$351, 0), MATCH(Selection_Hide2!S$5, 'Full set Core Client Indicator'!$A$3:$AB$3, 0))), \"\")","v":""},{"$f":"IF(S151<>\"\", IF(INDEX('Full set Core Client Indicator'!$A$3:$AB$351, MATCH(Selection_Hide2!$A151, 'Full set Core Client Indicator'!$A$3:$A$351, 0), MATCH(Selection_Hide2!T$5, 'Full set Core Client Indicator'!$A$3:$AB$3, 0))=\"\", \"\",  INDEX('Full set Core Client Indicator'!$A$3:$AB$351, MATCH(Selection_Hide2!$A151, 'Full set Core Client Indicator'!$A$3:$A$351, 0), MATCH(Selection_Hide2!T$5, 'Full set Core Client Indicator'!$A$3:$AB$3, 0))), \"\")","v":""},{"$f":"IF(T151<>\"\", IF(INDEX('Full set Core Client Indicator'!$A$3:$AB$351, MATCH(Selection_Hide2!$A151, 'Full set Core Client Indicator'!$A$3:$A$351, 0), MATCH(Selection_Hide2!U$5, 'Full set Core Client Indicator'!$A$3:$AB$3, 0))=\"\", \"\",  INDEX('Full set Core Client Indicator'!$A$3:$AB$351, MATCH(Selection_Hide2!$A151, 'Full set Core Client Indicator'!$A$3:$A$351, 0), MATCH(Selection_Hide2!U$5, 'Full set Core Client Indicator'!$A$3:$AB$3, 0))), \"\")","v":""},{"$f":"IF(U151<>\"\", IF(INDEX('Full set Core Client Indicator'!$A$3:$AB$351, MATCH(Selection_Hide2!$A151, 'Full set Core Client Indicator'!$A$3:$A$351, 0), MATCH(Selection_Hide2!V$5, 'Full set Core Client Indicator'!$A$3:$AB$3, 0))=\"\", \"\",  INDEX('Full set Core Client Indicator'!$A$3:$AB$351, MATCH(Selection_Hide2!$A151, 'Full set Core Client Indicator'!$A$3:$A$351, 0), MATCH(Selection_Hide2!V$5, 'Full set Core Client Indicator'!$A$3:$AB$3, 0))), \"\")","v":""},{"$f":"IF(V151<>\"\", IF(INDEX('Full set Core Client Indicator'!$A$3:$AB$351, MATCH(Selection_Hide2!$A151, 'Full set Core Client Indicator'!$A$3:$A$351, 0), MATCH(Selection_Hide2!W$5, 'Full set Core Client Indicator'!$A$3:$AB$3, 0))=\"\", \"\",  INDEX('Full set Core Client Indicator'!$A$3:$AB$351, MATCH(Selection_Hide2!$A151, 'Full set Core Client Indicator'!$A$3:$A$351, 0), MATCH(Selection_Hide2!W$5, 'Full set Core Client Indicator'!$A$3:$AB$3, 0))), \"\")","v":""},{"$f":"IF(W151<>\"\", IF(INDEX('Full set Core Client Indicator'!$A$3:$AB$351, MATCH(Selection_Hide2!$A151, 'Full set Core Client Indicator'!$A$3:$A$351, 0), MATCH(Selection_Hide2!X$5, 'Full set Core Client Indicator'!$A$3:$AB$3, 0))=\"\", \"\",  INDEX('Full set Core Client Indicator'!$A$3:$AB$351, MATCH(Selection_Hide2!$A151, 'Full set Core Client Indicator'!$A$3:$A$351, 0), MATCH(Selection_Hide2!X$5, 'Full set Core Client Indicator'!$A$3:$AB$3, 0))), \"\")","v":""},{"$f":"IF(X151<>\"\", IF(INDEX('Full set Core Client Indicator'!$A$3:$AB$351, MATCH(Selection_Hide2!$A151, 'Full set Core Client Indicator'!$A$3:$A$351, 0), MATCH(Selection_Hide2!Y$5, 'Full set Core Client Indicator'!$A$3:$AB$3, 0))=\"\", \"\",  INDEX('Full set Core Client Indicator'!$A$3:$AB$351, MATCH(Selection_Hide2!$A151, 'Full set Core Client Indicator'!$A$3:$A$351, 0), MATCH(Selection_Hide2!Y$5, 'Full set Core Client Indicator'!$A$3:$AB$3, 0))), \"\")","v":""},{"$f":"IF(Y151<>\"\", IF(INDEX('Full set Core Client Indicator'!$A$3:$AB$351, MATCH(Selection_Hide2!$A151, 'Full set Core Client Indicator'!$A$3:$A$351, 0), MATCH(Selection_Hide2!Z$5, 'Full set Core Client Indicator'!$A$3:$AB$3, 0))=\"\", \"\",  INDEX('Full set Core Client Indicator'!$A$3:$AB$351, MATCH(Selection_Hide2!$A151, 'Full set Core Client Indicator'!$A$3:$A$351, 0), MATCH(Selection_Hide2!Z$5, 'Full set Core Client Indicator'!$A$3:$AB$3, 0))), \"\")","v":""},{"$f":"IF(Z151<>\"\", IF(INDEX('Full set Core Client Indicator'!$A$3:$AB$351, MATCH(Selection_Hide2!$A151, 'Full set Core Client Indicator'!$A$3:$A$351, 0), MATCH(Selection_Hide2!AA$5, 'Full set Core Client Indicator'!$A$3:$AB$3, 0))=\"\", \"\",  INDEX('Full set Core Client Indicator'!$A$3:$AB$351, MATCH(Selection_Hide2!$A151, 'Full set Core Client Indicator'!$A$3:$A$351, 0), MATCH(Selection_Hide2!AA$5, 'Full set Core Client Indicator'!$A$3:$AB$3, 0))), \"\")","v":""},{"$f":"IF(AA151<>\"\", IF(INDEX('Full set Core Client Indicator'!$A$3:$AB$351, MATCH(Selection_Hide2!$A151, 'Full set Core Client Indicator'!$A$3:$A$351, 0), MATCH(Selection_Hide2!AB$5, 'Full set Core Client Indicator'!$A$3:$AB$3, 0))=\"\", \"\",  INDEX('Full set Core Client Indicator'!$A$3:$AB$351, MATCH(Selection_Hide2!$A151, 'Full set Core Client Indicator'!$A$3:$A$351, 0), MATCH(Selection_Hide2!AB$5, 'Full set Core Client Indicator'!$A$3:$AB$3, 0))), \"\")","v":""}]
[{"$f":"IF(AND(Selection_Hide1!C150<>0, Selection_Hide1!C150<>\"Grand Total\"), Selection_Hide1!C150, \"\")","v":""},{"$f":"IF(A152<>\"\", IF(INDEX('Full set Core Client Indicator'!$A$3:$AB$351, MATCH(Selection_Hide2!$A152, 'Full set Core Client Indicator'!$A$3:$A$351, 0), MATCH(Selection_Hide2!B$5, 'Full set Core Client Indicator'!$A$3:$AB$3, 0))=\"\", \"\",  INDEX('Full set Core Client Indicator'!$A$3:$AB$351, MATCH(Selection_Hide2!$A152, 'Full set Core Client Indicator'!$A$3:$A$351, 0), MATCH(Selection_Hide2!B$5, 'Full set Core Client Indicator'!$A$3:$AB$3, 0))), \"\")","v":""},{"$f":"IF(B152<>\"\", IF(INDEX('Full set Core Client Indicator'!$A$3:$AB$351, MATCH(Selection_Hide2!$A152, 'Full set Core Client Indicator'!$A$3:$A$351, 0), MATCH(Selection_Hide2!C$5, 'Full set Core Client Indicator'!$A$3:$AB$3, 0))=\"\", \"\",  INDEX('Full set Core Client Indicator'!$A$3:$AB$351, MATCH(Selection_Hide2!$A152, 'Full set Core Client Indicator'!$A$3:$A$351, 0), MATCH(Selection_Hide2!C$5, 'Full set Core Client Indicator'!$A$3:$AB$3, 0))), \"\")","v":""},{"$f":"IF(C152<>\"\", IF(INDEX('Full set Core Client Indicator'!$A$3:$AB$351, MATCH(Selection_Hide2!$A152, 'Full set Core Client Indicator'!$A$3:$A$351, 0), MATCH(Selection_Hide2!D$5, 'Full set Core Client Indicator'!$A$3:$AB$3, 0))=\"\", \"\",  INDEX('Full set Core Client Indicator'!$A$3:$AB$351, MATCH(Selection_Hide2!$A152, 'Full set Core Client Indicator'!$A$3:$A$351, 0), MATCH(Selection_Hide2!D$5, 'Full set Core Client Indicator'!$A$3:$AB$3, 0))), \"\")","v":""},{"$f":"IF(D152<>\"\", IF(INDEX('Full set Core Client Indicator'!$A$3:$AB$351, MATCH(Selection_Hide2!$A152, 'Full set Core Client Indicator'!$A$3:$A$351, 0), MATCH(Selection_Hide2!E$5, 'Full set Core Client Indicator'!$A$3:$AB$3, 0))=\"\", \"\",  INDEX('Full set Core Client Indicator'!$A$3:$AB$351, MATCH(Selection_Hide2!$A152, 'Full set Core Client Indicator'!$A$3:$A$351, 0), MATCH(Selection_Hide2!E$5, 'Full set Core Client Indicator'!$A$3:$AB$3, 0))), \"\")","v":""},{"$f":"IF(E152<>\"\", IF(INDEX('Full set Core Client Indicator'!$A$3:$AB$351, MATCH(Selection_Hide2!$A152, 'Full set Core Client Indicator'!$A$3:$A$351, 0), MATCH(Selection_Hide2!F$5, 'Full set Core Client Indicator'!$A$3:$AB$3, 0))=\"\", \"\",  INDEX('Full set Core Client Indicator'!$A$3:$AB$351, MATCH(Selection_Hide2!$A152, 'Full set Core Client Indicator'!$A$3:$A$351, 0), MATCH(Selection_Hide2!F$5, 'Full set Core Client Indicator'!$A$3:$AB$3, 0))), \"\")","v":""},{"$f":"IF(F152<>\"\", IF(INDEX('Full set Core Client Indicator'!$A$3:$AB$351, MATCH(Selection_Hide2!$A152, 'Full set Core Client Indicator'!$A$3:$A$351, 0), MATCH(Selection_Hide2!G$5, 'Full set Core Client Indicator'!$A$3:$AB$3, 0))=\"\", \"\",  INDEX('Full set Core Client Indicator'!$A$3:$AB$351, MATCH(Selection_Hide2!$A152, 'Full set Core Client Indicator'!$A$3:$A$351, 0), MATCH(Selection_Hide2!G$5, 'Full set Core Client Indicator'!$A$3:$AB$3, 0))), \"\")","v":""},{"$f":"IF(G152<>\"\", IF(INDEX('Full set Core Client Indicator'!$A$3:$AB$351, MATCH(Selection_Hide2!$A152, 'Full set Core Client Indicator'!$A$3:$A$351, 0), MATCH(Selection_Hide2!H$5, 'Full set Core Client Indicator'!$A$3:$AB$3, 0))=\"\", \"\",  INDEX('Full set Core Client Indicator'!$A$3:$AB$351, MATCH(Selection_Hide2!$A152, 'Full set Core Client Indicator'!$A$3:$A$351, 0), MATCH(Selection_Hide2!H$5, 'Full set Core Client Indicator'!$A$3:$AB$3, 0))), \"\")","v":""},{"$f":"IF(H152<>\"\", IF(INDEX('Full set Core Client Indicator'!$A$3:$AB$351, MATCH(Selection_Hide2!$A152, 'Full set Core Client Indicator'!$A$3:$A$351, 0), MATCH(Selection_Hide2!I$5, 'Full set Core Client Indicator'!$A$3:$AB$3, 0))=\"\", \"\",  INDEX('Full set Core Client Indicator'!$A$3:$AB$351, MATCH(Selection_Hide2!$A152, 'Full set Core Client Indicator'!$A$3:$A$351, 0), MATCH(Selection_Hide2!I$5, 'Full set Core Client Indicator'!$A$3:$AB$3, 0))), \"\")","v":""},{"$f":"IF(I152<>\"\", IF(INDEX('Full set Core Client Indicator'!$A$3:$AB$351, MATCH(Selection_Hide2!$A152, 'Full set Core Client Indicator'!$A$3:$A$351, 0), MATCH(Selection_Hide2!J$5, 'Full set Core Client Indicator'!$A$3:$AB$3, 0))=\"\", \"\",  INDEX('Full set Core Client Indicator'!$A$3:$AB$351, MATCH(Selection_Hide2!$A152, 'Full set Core Client Indicator'!$A$3:$A$351, 0), MATCH(Selection_Hide2!J$5, 'Full set Core Client Indicator'!$A$3:$AB$3, 0))), \"\")","v":""},{"$f":"IF(J152<>\"\", IF(INDEX('Full set Core Client Indicator'!$A$3:$AB$351, MATCH(Selection_Hide2!$A152, 'Full set Core Client Indicator'!$A$3:$A$351, 0), MATCH(Selection_Hide2!K$5, 'Full set Core Client Indicator'!$A$3:$AB$3, 0))=\"\", \"\",  INDEX('Full set Core Client Indicator'!$A$3:$AB$351, MATCH(Selection_Hide2!$A152, 'Full set Core Client Indicator'!$A$3:$A$351, 0), MATCH(Selection_Hide2!K$5, 'Full set Core Client Indicator'!$A$3:$AB$3, 0))), \"\")","v":""},{"$f":"IF(K152<>\"\", IF(INDEX('Full set Core Client Indicator'!$A$3:$AB$351, MATCH(Selection_Hide2!$A152, 'Full set Core Client Indicator'!$A$3:$A$351, 0), MATCH(Selection_Hide2!L$5, 'Full set Core Client Indicator'!$A$3:$AB$3, 0))=\"\", \"\",  INDEX('Full set Core Client Indicator'!$A$3:$AB$351, MATCH(Selection_Hide2!$A152, 'Full set Core Client Indicator'!$A$3:$A$351, 0), MATCH(Selection_Hide2!L$5, 'Full set Core Client Indicator'!$A$3:$AB$3, 0))), \"\")","v":""},{"$f":"IF(L152<>\"\", IF(INDEX('Full set Core Client Indicator'!$A$3:$AB$351, MATCH(Selection_Hide2!$A152, 'Full set Core Client Indicator'!$A$3:$A$351, 0), MATCH(Selection_Hide2!M$5, 'Full set Core Client Indicator'!$A$3:$AB$3, 0))=\"\", \"\",  INDEX('Full set Core Client Indicator'!$A$3:$AB$351, MATCH(Selection_Hide2!$A152, 'Full set Core Client Indicator'!$A$3:$A$351, 0), MATCH(Selection_Hide2!M$5, 'Full set Core Client Indicator'!$A$3:$AB$3, 0))), \"\")","v":""},{"$f":"IF(M152<>\"\", IF(INDEX('Full set Core Client Indicator'!$A$3:$AB$351, MATCH(Selection_Hide2!$A152, 'Full set Core Client Indicator'!$A$3:$A$351, 0), MATCH(Selection_Hide2!N$5, 'Full set Core Client Indicator'!$A$3:$AB$3, 0))=\"\", \"\",  INDEX('Full set Core Client Indicator'!$A$3:$AB$351, MATCH(Selection_Hide2!$A152, 'Full set Core Client Indicator'!$A$3:$A$351, 0), MATCH(Selection_Hide2!N$5, 'Full set Core Client Indicator'!$A$3:$AB$3, 0))), \"\")","v":""},{"$f":"IF(N152<>\"\", IF(INDEX('Full set Core Client Indicator'!$A$3:$AB$351, MATCH(Selection_Hide2!$A152, 'Full set Core Client Indicator'!$A$3:$A$351, 0), MATCH(Selection_Hide2!O$5, 'Full set Core Client Indicator'!$A$3:$AB$3, 0))=\"\", \"\",  INDEX('Full set Core Client Indicator'!$A$3:$AB$351, MATCH(Selection_Hide2!$A152, 'Full set Core Client Indicator'!$A$3:$A$351, 0), MATCH(Selection_Hide2!O$5, 'Full set Core Client Indicator'!$A$3:$AB$3, 0))), \"\")","v":""},{"$f":"IF(O152<>\"\", IF(INDEX('Full set Core Client Indicator'!$A$3:$AB$351, MATCH(Selection_Hide2!$A152, 'Full set Core Client Indicator'!$A$3:$A$351, 0), MATCH(Selection_Hide2!P$5, 'Full set Core Client Indicator'!$A$3:$AB$3, 0))=\"\", \"\",  INDEX('Full set Core Client Indicator'!$A$3:$AB$351, MATCH(Selection_Hide2!$A152, 'Full set Core Client Indicator'!$A$3:$A$351, 0), MATCH(Selection_Hide2!P$5, 'Full set Core Client Indicator'!$A$3:$AB$3, 0))), \"\")","v":""},{"$f":"IF(P152<>\"\", IF(INDEX('Full set Core Client Indicator'!$A$3:$AB$351, MATCH(Selection_Hide2!$A152, 'Full set Core Client Indicator'!$A$3:$A$351, 0), MATCH(Selection_Hide2!Q$5, 'Full set Core Client Indicator'!$A$3:$AB$3, 0))=\"\", \"\",  INDEX('Full set Core Client Indicator'!$A$3:$AB$351, MATCH(Selection_Hide2!$A152, 'Full set Core Client Indicator'!$A$3:$A$351, 0), MATCH(Selection_Hide2!Q$5, 'Full set Core Client Indicator'!$A$3:$AB$3, 0))), \"\")","v":""},{"$f":"IF(Q152<>\"\", IF(INDEX('Full set Core Client Indicator'!$A$3:$AB$351, MATCH(Selection_Hide2!$A152, 'Full set Core Client Indicator'!$A$3:$A$351, 0), MATCH(Selection_Hide2!R$5, 'Full set Core Client Indicator'!$A$3:$AB$3, 0))=\"\", \"\",  INDEX('Full set Core Client Indicator'!$A$3:$AB$351, MATCH(Selection_Hide2!$A152, 'Full set Core Client Indicator'!$A$3:$A$351, 0), MATCH(Selection_Hide2!R$5, 'Full set Core Client Indicator'!$A$3:$AB$3, 0))), \"\")","v":""},{"$f":"IF(R152<>\"\", IF(INDEX('Full set Core Client Indicator'!$A$3:$AB$351, MATCH(Selection_Hide2!$A152, 'Full set Core Client Indicator'!$A$3:$A$351, 0), MATCH(Selection_Hide2!S$5, 'Full set Core Client Indicator'!$A$3:$AB$3, 0))=\"\", \"\",  INDEX('Full set Core Client Indicator'!$A$3:$AB$351, MATCH(Selection_Hide2!$A152, 'Full set Core Client Indicator'!$A$3:$A$351, 0), MATCH(Selection_Hide2!S$5, 'Full set Core Client Indicator'!$A$3:$AB$3, 0))), \"\")","v":""},{"$f":"IF(S152<>\"\", IF(INDEX('Full set Core Client Indicator'!$A$3:$AB$351, MATCH(Selection_Hide2!$A152, 'Full set Core Client Indicator'!$A$3:$A$351, 0), MATCH(Selection_Hide2!T$5, 'Full set Core Client Indicator'!$A$3:$AB$3, 0))=\"\", \"\",  INDEX('Full set Core Client Indicator'!$A$3:$AB$351, MATCH(Selection_Hide2!$A152, 'Full set Core Client Indicator'!$A$3:$A$351, 0), MATCH(Selection_Hide2!T$5, 'Full set Core Client Indicator'!$A$3:$AB$3, 0))), \"\")","v":""},{"$f":"IF(T152<>\"\", IF(INDEX('Full set Core Client Indicator'!$A$3:$AB$351, MATCH(Selection_Hide2!$A152, 'Full set Core Client Indicator'!$A$3:$A$351, 0), MATCH(Selection_Hide2!U$5, 'Full set Core Client Indicator'!$A$3:$AB$3, 0))=\"\", \"\",  INDEX('Full set Core Client Indicator'!$A$3:$AB$351, MATCH(Selection_Hide2!$A152, 'Full set Core Client Indicator'!$A$3:$A$351, 0), MATCH(Selection_Hide2!U$5, 'Full set Core Client Indicator'!$A$3:$AB$3, 0))), \"\")","v":""},{"$f":"IF(U152<>\"\", IF(INDEX('Full set Core Client Indicator'!$A$3:$AB$351, MATCH(Selection_Hide2!$A152, 'Full set Core Client Indicator'!$A$3:$A$351, 0), MATCH(Selection_Hide2!V$5, 'Full set Core Client Indicator'!$A$3:$AB$3, 0))=\"\", \"\",  INDEX('Full set Core Client Indicator'!$A$3:$AB$351, MATCH(Selection_Hide2!$A152, 'Full set Core Client Indicator'!$A$3:$A$351, 0), MATCH(Selection_Hide2!V$5, 'Full set Core Client Indicator'!$A$3:$AB$3, 0))), \"\")","v":""},{"$f":"IF(V152<>\"\", IF(INDEX('Full set Core Client Indicator'!$A$3:$AB$351, MATCH(Selection_Hide2!$A152, 'Full set Core Client Indicator'!$A$3:$A$351, 0), MATCH(Selection_Hide2!W$5, 'Full set Core Client Indicator'!$A$3:$AB$3, 0))=\"\", \"\",  INDEX('Full set Core Client Indicator'!$A$3:$AB$351, MATCH(Selection_Hide2!$A152, 'Full set Core Client Indicator'!$A$3:$A$351, 0), MATCH(Selection_Hide2!W$5, 'Full set Core Client Indicator'!$A$3:$AB$3, 0))), \"\")","v":""},{"$f":"IF(W152<>\"\", IF(INDEX('Full set Core Client Indicator'!$A$3:$AB$351, MATCH(Selection_Hide2!$A152, 'Full set Core Client Indicator'!$A$3:$A$351, 0), MATCH(Selection_Hide2!X$5, 'Full set Core Client Indicator'!$A$3:$AB$3, 0))=\"\", \"\",  INDEX('Full set Core Client Indicator'!$A$3:$AB$351, MATCH(Selection_Hide2!$A152, 'Full set Core Client Indicator'!$A$3:$A$351, 0), MATCH(Selection_Hide2!X$5, 'Full set Core Client Indicator'!$A$3:$AB$3, 0))), \"\")","v":""},{"$f":"IF(X152<>\"\", IF(INDEX('Full set Core Client Indicator'!$A$3:$AB$351, MATCH(Selection_Hide2!$A152, 'Full set Core Client Indicator'!$A$3:$A$351, 0), MATCH(Selection_Hide2!Y$5, 'Full set Core Client Indicator'!$A$3:$AB$3, 0))=\"\", \"\",  INDEX('Full set Core Client Indicator'!$A$3:$AB$351, MATCH(Selection_Hide2!$A152, 'Full set Core Client Indicator'!$A$3:$A$351, 0), MATCH(Selection_Hide2!Y$5, 'Full set Core Client Indicator'!$A$3:$AB$3, 0))), \"\")","v":""},{"$f":"IF(Y152<>\"\", IF(INDEX('Full set Core Client Indicator'!$A$3:$AB$351, MATCH(Selection_Hide2!$A152, 'Full set Core Client Indicator'!$A$3:$A$351, 0), MATCH(Selection_Hide2!Z$5, 'Full set Core Client Indicator'!$A$3:$AB$3, 0))=\"\", \"\",  INDEX('Full set Core Client Indicator'!$A$3:$AB$351, MATCH(Selection_Hide2!$A152, 'Full set Core Client Indicator'!$A$3:$A$351, 0), MATCH(Selection_Hide2!Z$5, 'Full set Core Client Indicator'!$A$3:$AB$3, 0))), \"\")","v":""},{"$f":"IF(Z152<>\"\", IF(INDEX('Full set Core Client Indicator'!$A$3:$AB$351, MATCH(Selection_Hide2!$A152, 'Full set Core Client Indicator'!$A$3:$A$351, 0), MATCH(Selection_Hide2!AA$5, 'Full set Core Client Indicator'!$A$3:$AB$3, 0))=\"\", \"\",  INDEX('Full set Core Client Indicator'!$A$3:$AB$351, MATCH(Selection_Hide2!$A152, 'Full set Core Client Indicator'!$A$3:$A$351, 0), MATCH(Selection_Hide2!AA$5, 'Full set Core Client Indicator'!$A$3:$AB$3, 0))), \"\")","v":""},{"$f":"IF(AA152<>\"\", IF(INDEX('Full set Core Client Indicator'!$A$3:$AB$351, MATCH(Selection_Hide2!$A152, 'Full set Core Client Indicator'!$A$3:$A$351, 0), MATCH(Selection_Hide2!AB$5, 'Full set Core Client Indicator'!$A$3:$AB$3, 0))=\"\", \"\",  INDEX('Full set Core Client Indicator'!$A$3:$AB$351, MATCH(Selection_Hide2!$A152, 'Full set Core Client Indicator'!$A$3:$A$351, 0), MATCH(Selection_Hide2!AB$5, 'Full set Core Client Indicator'!$A$3:$AB$3, 0))), \"\")","v":""}]
[{"$f":"IF(AND(Selection_Hide1!C151<>0, Selection_Hide1!C151<>\"Grand Total\"), Selection_Hide1!C151, \"\")","v":""},{"$f":"IF(A153<>\"\", IF(INDEX('Full set Core Client Indicator'!$A$3:$AB$351, MATCH(Selection_Hide2!$A153, 'Full set Core Client Indicator'!$A$3:$A$351, 0), MATCH(Selection_Hide2!B$5, 'Full set Core Client Indicator'!$A$3:$AB$3, 0))=\"\", \"\",  INDEX('Full set Core Client Indicator'!$A$3:$AB$351, MATCH(Selection_Hide2!$A153, 'Full set Core Client Indicator'!$A$3:$A$351, 0), MATCH(Selection_Hide2!B$5, 'Full set Core Client Indicator'!$A$3:$AB$3, 0))), \"\")","v":""},{"$f":"IF(B153<>\"\", IF(INDEX('Full set Core Client Indicator'!$A$3:$AB$351, MATCH(Selection_Hide2!$A153, 'Full set Core Client Indicator'!$A$3:$A$351, 0), MATCH(Selection_Hide2!C$5, 'Full set Core Client Indicator'!$A$3:$AB$3, 0))=\"\", \"\",  INDEX('Full set Core Client Indicator'!$A$3:$AB$351, MATCH(Selection_Hide2!$A153, 'Full set Core Client Indicator'!$A$3:$A$351, 0), MATCH(Selection_Hide2!C$5, 'Full set Core Client Indicator'!$A$3:$AB$3, 0))), \"\")","v":""},{"$f":"IF(C153<>\"\", IF(INDEX('Full set Core Client Indicator'!$A$3:$AB$351, MATCH(Selection_Hide2!$A153, 'Full set Core Client Indicator'!$A$3:$A$351, 0), MATCH(Selection_Hide2!D$5, 'Full set Core Client Indicator'!$A$3:$AB$3, 0))=\"\", \"\",  INDEX('Full set Core Client Indicator'!$A$3:$AB$351, MATCH(Selection_Hide2!$A153, 'Full set Core Client Indicator'!$A$3:$A$351, 0), MATCH(Selection_Hide2!D$5, 'Full set Core Client Indicator'!$A$3:$AB$3, 0))), \"\")","v":""},{"$f":"IF(D153<>\"\", IF(INDEX('Full set Core Client Indicator'!$A$3:$AB$351, MATCH(Selection_Hide2!$A153, 'Full set Core Client Indicator'!$A$3:$A$351, 0), MATCH(Selection_Hide2!E$5, 'Full set Core Client Indicator'!$A$3:$AB$3, 0))=\"\", \"\",  INDEX('Full set Core Client Indicator'!$A$3:$AB$351, MATCH(Selection_Hide2!$A153, 'Full set Core Client Indicator'!$A$3:$A$351, 0), MATCH(Selection_Hide2!E$5, 'Full set Core Client Indicator'!$A$3:$AB$3, 0))), \"\")","v":""},{"$f":"IF(E153<>\"\", IF(INDEX('Full set Core Client Indicator'!$A$3:$AB$351, MATCH(Selection_Hide2!$A153, 'Full set Core Client Indicator'!$A$3:$A$351, 0), MATCH(Selection_Hide2!F$5, 'Full set Core Client Indicator'!$A$3:$AB$3, 0))=\"\", \"\",  INDEX('Full set Core Client Indicator'!$A$3:$AB$351, MATCH(Selection_Hide2!$A153, 'Full set Core Client Indicator'!$A$3:$A$351, 0), MATCH(Selection_Hide2!F$5, 'Full set Core Client Indicator'!$A$3:$AB$3, 0))), \"\")","v":""},{"$f":"IF(F153<>\"\", IF(INDEX('Full set Core Client Indicator'!$A$3:$AB$351, MATCH(Selection_Hide2!$A153, 'Full set Core Client Indicator'!$A$3:$A$351, 0), MATCH(Selection_Hide2!G$5, 'Full set Core Client Indicator'!$A$3:$AB$3, 0))=\"\", \"\",  INDEX('Full set Core Client Indicator'!$A$3:$AB$351, MATCH(Selection_Hide2!$A153, 'Full set Core Client Indicator'!$A$3:$A$351, 0), MATCH(Selection_Hide2!G$5, 'Full set Core Client Indicator'!$A$3:$AB$3, 0))), \"\")","v":""},{"$f":"IF(G153<>\"\", IF(INDEX('Full set Core Client Indicator'!$A$3:$AB$351, MATCH(Selection_Hide2!$A153, 'Full set Core Client Indicator'!$A$3:$A$351, 0), MATCH(Selection_Hide2!H$5, 'Full set Core Client Indicator'!$A$3:$AB$3, 0))=\"\", \"\",  INDEX('Full set Core Client Indicator'!$A$3:$AB$351, MATCH(Selection_Hide2!$A153, 'Full set Core Client Indicator'!$A$3:$A$351, 0), MATCH(Selection_Hide2!H$5, 'Full set Core Client Indicator'!$A$3:$AB$3, 0))), \"\")","v":""},{"$f":"IF(H153<>\"\", IF(INDEX('Full set Core Client Indicator'!$A$3:$AB$351, MATCH(Selection_Hide2!$A153, 'Full set Core Client Indicator'!$A$3:$A$351, 0), MATCH(Selection_Hide2!I$5, 'Full set Core Client Indicator'!$A$3:$AB$3, 0))=\"\", \"\",  INDEX('Full set Core Client Indicator'!$A$3:$AB$351, MATCH(Selection_Hide2!$A153, 'Full set Core Client Indicator'!$A$3:$A$351, 0), MATCH(Selection_Hide2!I$5, 'Full set Core Client Indicator'!$A$3:$AB$3, 0))), \"\")","v":""},{"$f":"IF(I153<>\"\", IF(INDEX('Full set Core Client Indicator'!$A$3:$AB$351, MATCH(Selection_Hide2!$A153, 'Full set Core Client Indicator'!$A$3:$A$351, 0), MATCH(Selection_Hide2!J$5, 'Full set Core Client Indicator'!$A$3:$AB$3, 0))=\"\", \"\",  INDEX('Full set Core Client Indicator'!$A$3:$AB$351, MATCH(Selection_Hide2!$A153, 'Full set Core Client Indicator'!$A$3:$A$351, 0), MATCH(Selection_Hide2!J$5, 'Full set Core Client Indicator'!$A$3:$AB$3, 0))), \"\")","v":""},{"$f":"IF(J153<>\"\", IF(INDEX('Full set Core Client Indicator'!$A$3:$AB$351, MATCH(Selection_Hide2!$A153, 'Full set Core Client Indicator'!$A$3:$A$351, 0), MATCH(Selection_Hide2!K$5, 'Full set Core Client Indicator'!$A$3:$AB$3, 0))=\"\", \"\",  INDEX('Full set Core Client Indicator'!$A$3:$AB$351, MATCH(Selection_Hide2!$A153, 'Full set Core Client Indicator'!$A$3:$A$351, 0), MATCH(Selection_Hide2!K$5, 'Full set Core Client Indicator'!$A$3:$AB$3, 0))), \"\")","v":""},{"$f":"IF(K153<>\"\", IF(INDEX('Full set Core Client Indicator'!$A$3:$AB$351, MATCH(Selection_Hide2!$A153, 'Full set Core Client Indicator'!$A$3:$A$351, 0), MATCH(Selection_Hide2!L$5, 'Full set Core Client Indicator'!$A$3:$AB$3, 0))=\"\", \"\",  INDEX('Full set Core Client Indicator'!$A$3:$AB$351, MATCH(Selection_Hide2!$A153, 'Full set Core Client Indicator'!$A$3:$A$351, 0), MATCH(Selection_Hide2!L$5, 'Full set Core Client Indicator'!$A$3:$AB$3, 0))), \"\")","v":""},{"$f":"IF(L153<>\"\", IF(INDEX('Full set Core Client Indicator'!$A$3:$AB$351, MATCH(Selection_Hide2!$A153, 'Full set Core Client Indicator'!$A$3:$A$351, 0), MATCH(Selection_Hide2!M$5, 'Full set Core Client Indicator'!$A$3:$AB$3, 0))=\"\", \"\",  INDEX('Full set Core Client Indicator'!$A$3:$AB$351, MATCH(Selection_Hide2!$A153, 'Full set Core Client Indicator'!$A$3:$A$351, 0), MATCH(Selection_Hide2!M$5, 'Full set Core Client Indicator'!$A$3:$AB$3, 0))), \"\")","v":""},{"$f":"IF(M153<>\"\", IF(INDEX('Full set Core Client Indicator'!$A$3:$AB$351, MATCH(Selection_Hide2!$A153, 'Full set Core Client Indicator'!$A$3:$A$351, 0), MATCH(Selection_Hide2!N$5, 'Full set Core Client Indicator'!$A$3:$AB$3, 0))=\"\", \"\",  INDEX('Full set Core Client Indicator'!$A$3:$AB$351, MATCH(Selection_Hide2!$A153, 'Full set Core Client Indicator'!$A$3:$A$351, 0), MATCH(Selection_Hide2!N$5, 'Full set Core Client Indicator'!$A$3:$AB$3, 0))), \"\")","v":""},{"$f":"IF(N153<>\"\", IF(INDEX('Full set Core Client Indicator'!$A$3:$AB$351, MATCH(Selection_Hide2!$A153, 'Full set Core Client Indicator'!$A$3:$A$351, 0), MATCH(Selection_Hide2!O$5, 'Full set Core Client Indicator'!$A$3:$AB$3, 0))=\"\", \"\",  INDEX('Full set Core Client Indicator'!$A$3:$AB$351, MATCH(Selection_Hide2!$A153, 'Full set Core Client Indicator'!$A$3:$A$351, 0), MATCH(Selection_Hide2!O$5, 'Full set Core Client Indicator'!$A$3:$AB$3, 0))), \"\")","v":""},{"$f":"IF(O153<>\"\", IF(INDEX('Full set Core Client Indicator'!$A$3:$AB$351, MATCH(Selection_Hide2!$A153, 'Full set Core Client Indicator'!$A$3:$A$351, 0), MATCH(Selection_Hide2!P$5, 'Full set Core Client Indicator'!$A$3:$AB$3, 0))=\"\", \"\",  INDEX('Full set Core Client Indicator'!$A$3:$AB$351, MATCH(Selection_Hide2!$A153, 'Full set Core Client Indicator'!$A$3:$A$351, 0), MATCH(Selection_Hide2!P$5, 'Full set Core Client Indicator'!$A$3:$AB$3, 0))), \"\")","v":""},{"$f":"IF(P153<>\"\", IF(INDEX('Full set Core Client Indicator'!$A$3:$AB$351, MATCH(Selection_Hide2!$A153, 'Full set Core Client Indicator'!$A$3:$A$351, 0), MATCH(Selection_Hide2!Q$5, 'Full set Core Client Indicator'!$A$3:$AB$3, 0))=\"\", \"\",  INDEX('Full set Core Client Indicator'!$A$3:$AB$351, MATCH(Selection_Hide2!$A153, 'Full set Core Client Indicator'!$A$3:$A$351, 0), MATCH(Selection_Hide2!Q$5, 'Full set Core Client Indicator'!$A$3:$AB$3, 0))), \"\")","v":""},{"$f":"IF(Q153<>\"\", IF(INDEX('Full set Core Client Indicator'!$A$3:$AB$351, MATCH(Selection_Hide2!$A153, 'Full set Core Client Indicator'!$A$3:$A$351, 0), MATCH(Selection_Hide2!R$5, 'Full set Core Client Indicator'!$A$3:$AB$3, 0))=\"\", \"\",  INDEX('Full set Core Client Indicator'!$A$3:$AB$351, MATCH(Selection_Hide2!$A153, 'Full set Core Client Indicator'!$A$3:$A$351, 0), MATCH(Selection_Hide2!R$5, 'Full set Core Client Indicator'!$A$3:$AB$3, 0))), \"\")","v":""},{"$f":"IF(R153<>\"\", IF(INDEX('Full set Core Client Indicator'!$A$3:$AB$351, MATCH(Selection_Hide2!$A153, 'Full set Core Client Indicator'!$A$3:$A$351, 0), MATCH(Selection_Hide2!S$5, 'Full set Core Client Indicator'!$A$3:$AB$3, 0))=\"\", \"\",  INDEX('Full set Core Client Indicator'!$A$3:$AB$351, MATCH(Selection_Hide2!$A153, 'Full set Core Client Indicator'!$A$3:$A$351, 0), MATCH(Selection_Hide2!S$5, 'Full set Core Client Indicator'!$A$3:$AB$3, 0))), \"\")","v":""},{"$f":"IF(S153<>\"\", IF(INDEX('Full set Core Client Indicator'!$A$3:$AB$351, MATCH(Selection_Hide2!$A153, 'Full set Core Client Indicator'!$A$3:$A$351, 0), MATCH(Selection_Hide2!T$5, 'Full set Core Client Indicator'!$A$3:$AB$3, 0))=\"\", \"\",  INDEX('Full set Core Client Indicator'!$A$3:$AB$351, MATCH(Selection_Hide2!$A153, 'Full set Core Client Indicator'!$A$3:$A$351, 0), MATCH(Selection_Hide2!T$5, 'Full set Core Client Indicator'!$A$3:$AB$3, 0))), \"\")","v":""},{"$f":"IF(T153<>\"\", IF(INDEX('Full set Core Client Indicator'!$A$3:$AB$351, MATCH(Selection_Hide2!$A153, 'Full set Core Client Indicator'!$A$3:$A$351, 0), MATCH(Selection_Hide2!U$5, 'Full set Core Client Indicator'!$A$3:$AB$3, 0))=\"\", \"\",  INDEX('Full set Core Client Indicator'!$A$3:$AB$351, MATCH(Selection_Hide2!$A153, 'Full set Core Client Indicator'!$A$3:$A$351, 0), MATCH(Selection_Hide2!U$5, 'Full set Core Client Indicator'!$A$3:$AB$3, 0))), \"\")","v":""},{"$f":"IF(U153<>\"\", IF(INDEX('Full set Core Client Indicator'!$A$3:$AB$351, MATCH(Selection_Hide2!$A153, 'Full set Core Client Indicator'!$A$3:$A$351, 0), MATCH(Selection_Hide2!V$5, 'Full set Core Client Indicator'!$A$3:$AB$3, 0))=\"\", \"\",  INDEX('Full set Core Client Indicator'!$A$3:$AB$351, MATCH(Selection_Hide2!$A153, 'Full set Core Client Indicator'!$A$3:$A$351, 0), MATCH(Selection_Hide2!V$5, 'Full set Core Client Indicator'!$A$3:$AB$3, 0))), \"\")","v":""},{"$f":"IF(V153<>\"\", IF(INDEX('Full set Core Client Indicator'!$A$3:$AB$351, MATCH(Selection_Hide2!$A153, 'Full set Core Client Indicator'!$A$3:$A$351, 0), MATCH(Selection_Hide2!W$5, 'Full set Core Client Indicator'!$A$3:$AB$3, 0))=\"\", \"\",  INDEX('Full set Core Client Indicator'!$A$3:$AB$351, MATCH(Selection_Hide2!$A153, 'Full set Core Client Indicator'!$A$3:$A$351, 0), MATCH(Selection_Hide2!W$5, 'Full set Core Client Indicator'!$A$3:$AB$3, 0))), \"\")","v":""},{"$f":"IF(W153<>\"\", IF(INDEX('Full set Core Client Indicator'!$A$3:$AB$351, MATCH(Selection_Hide2!$A153, 'Full set Core Client Indicator'!$A$3:$A$351, 0), MATCH(Selection_Hide2!X$5, 'Full set Core Client Indicator'!$A$3:$AB$3, 0))=\"\", \"\",  INDEX('Full set Core Client Indicator'!$A$3:$AB$351, MATCH(Selection_Hide2!$A153, 'Full set Core Client Indicator'!$A$3:$A$351, 0), MATCH(Selection_Hide2!X$5, 'Full set Core Client Indicator'!$A$3:$AB$3, 0))), \"\")","v":""},{"$f":"IF(X153<>\"\", IF(INDEX('Full set Core Client Indicator'!$A$3:$AB$351, MATCH(Selection_Hide2!$A153, 'Full set Core Client Indicator'!$A$3:$A$351, 0), MATCH(Selection_Hide2!Y$5, 'Full set Core Client Indicator'!$A$3:$AB$3, 0))=\"\", \"\",  INDEX('Full set Core Client Indicator'!$A$3:$AB$351, MATCH(Selection_Hide2!$A153, 'Full set Core Client Indicator'!$A$3:$A$351, 0), MATCH(Selection_Hide2!Y$5, 'Full set Core Client Indicator'!$A$3:$AB$3, 0))), \"\")","v":""},{"$f":"IF(Y153<>\"\", IF(INDEX('Full set Core Client Indicator'!$A$3:$AB$351, MATCH(Selection_Hide2!$A153, 'Full set Core Client Indicator'!$A$3:$A$351, 0), MATCH(Selection_Hide2!Z$5, 'Full set Core Client Indicator'!$A$3:$AB$3, 0))=\"\", \"\",  INDEX('Full set Core Client Indicator'!$A$3:$AB$351, MATCH(Selection_Hide2!$A153, 'Full set Core Client Indicator'!$A$3:$A$351, 0), MATCH(Selection_Hide2!Z$5, 'Full set Core Client Indicator'!$A$3:$AB$3, 0))), \"\")","v":""},{"$f":"IF(Z153<>\"\", IF(INDEX('Full set Core Client Indicator'!$A$3:$AB$351, MATCH(Selection_Hide2!$A153, 'Full set Core Client Indicator'!$A$3:$A$351, 0), MATCH(Selection_Hide2!AA$5, 'Full set Core Client Indicator'!$A$3:$AB$3, 0))=\"\", \"\",  INDEX('Full set Core Client Indicator'!$A$3:$AB$351, MATCH(Selection_Hide2!$A153, 'Full set Core Client Indicator'!$A$3:$A$351, 0), MATCH(Selection_Hide2!AA$5, 'Full set Core Client Indicator'!$A$3:$AB$3, 0))), \"\")","v":""},{"$f":"IF(AA153<>\"\", IF(INDEX('Full set Core Client Indicator'!$A$3:$AB$351, MATCH(Selection_Hide2!$A153, 'Full set Core Client Indicator'!$A$3:$A$351, 0), MATCH(Selection_Hide2!AB$5, 'Full set Core Client Indicator'!$A$3:$AB$3, 0))=\"\", \"\",  INDEX('Full set Core Client Indicator'!$A$3:$AB$351, MATCH(Selection_Hide2!$A153, 'Full set Core Client Indicator'!$A$3:$A$351, 0), MATCH(Selection_Hide2!AB$5, 'Full set Core Client Indicator'!$A$3:$AB$3, 0))), \"\")","v":""}]
[{"$f":"IF(AND(Selection_Hide1!C152<>0, Selection_Hide1!C152<>\"Grand Total\"), Selection_Hide1!C152, \"\")","v":""},{"$f":"IF(A154<>\"\", IF(INDEX('Full set Core Client Indicator'!$A$3:$AB$351, MATCH(Selection_Hide2!$A154, 'Full set Core Client Indicator'!$A$3:$A$351, 0), MATCH(Selection_Hide2!B$5, 'Full set Core Client Indicator'!$A$3:$AB$3, 0))=\"\", \"\",  INDEX('Full set Core Client Indicator'!$A$3:$AB$351, MATCH(Selection_Hide2!$A154, 'Full set Core Client Indicator'!$A$3:$A$351, 0), MATCH(Selection_Hide2!B$5, 'Full set Core Client Indicator'!$A$3:$AB$3, 0))), \"\")","v":""},{"$f":"IF(B154<>\"\", IF(INDEX('Full set Core Client Indicator'!$A$3:$AB$351, MATCH(Selection_Hide2!$A154, 'Full set Core Client Indicator'!$A$3:$A$351, 0), MATCH(Selection_Hide2!C$5, 'Full set Core Client Indicator'!$A$3:$AB$3, 0))=\"\", \"\",  INDEX('Full set Core Client Indicator'!$A$3:$AB$351, MATCH(Selection_Hide2!$A154, 'Full set Core Client Indicator'!$A$3:$A$351, 0), MATCH(Selection_Hide2!C$5, 'Full set Core Client Indicator'!$A$3:$AB$3, 0))), \"\")","v":""},{"$f":"IF(C154<>\"\", IF(INDEX('Full set Core Client Indicator'!$A$3:$AB$351, MATCH(Selection_Hide2!$A154, 'Full set Core Client Indicator'!$A$3:$A$351, 0), MATCH(Selection_Hide2!D$5, 'Full set Core Client Indicator'!$A$3:$AB$3, 0))=\"\", \"\",  INDEX('Full set Core Client Indicator'!$A$3:$AB$351, MATCH(Selection_Hide2!$A154, 'Full set Core Client Indicator'!$A$3:$A$351, 0), MATCH(Selection_Hide2!D$5, 'Full set Core Client Indicator'!$A$3:$AB$3, 0))), \"\")","v":""},{"$f":"IF(D154<>\"\", IF(INDEX('Full set Core Client Indicator'!$A$3:$AB$351, MATCH(Selection_Hide2!$A154, 'Full set Core Client Indicator'!$A$3:$A$351, 0), MATCH(Selection_Hide2!E$5, 'Full set Core Client Indicator'!$A$3:$AB$3, 0))=\"\", \"\",  INDEX('Full set Core Client Indicator'!$A$3:$AB$351, MATCH(Selection_Hide2!$A154, 'Full set Core Client Indicator'!$A$3:$A$351, 0), MATCH(Selection_Hide2!E$5, 'Full set Core Client Indicator'!$A$3:$AB$3, 0))), \"\")","v":""},{"$f":"IF(E154<>\"\", IF(INDEX('Full set Core Client Indicator'!$A$3:$AB$351, MATCH(Selection_Hide2!$A154, 'Full set Core Client Indicator'!$A$3:$A$351, 0), MATCH(Selection_Hide2!F$5, 'Full set Core Client Indicator'!$A$3:$AB$3, 0))=\"\", \"\",  INDEX('Full set Core Client Indicator'!$A$3:$AB$351, MATCH(Selection_Hide2!$A154, 'Full set Core Client Indicator'!$A$3:$A$351, 0), MATCH(Selection_Hide2!F$5, 'Full set Core Client Indicator'!$A$3:$AB$3, 0))), \"\")","v":""},{"$f":"IF(F154<>\"\", IF(INDEX('Full set Core Client Indicator'!$A$3:$AB$351, MATCH(Selection_Hide2!$A154, 'Full set Core Client Indicator'!$A$3:$A$351, 0), MATCH(Selection_Hide2!G$5, 'Full set Core Client Indicator'!$A$3:$AB$3, 0))=\"\", \"\",  INDEX('Full set Core Client Indicator'!$A$3:$AB$351, MATCH(Selection_Hide2!$A154, 'Full set Core Client Indicator'!$A$3:$A$351, 0), MATCH(Selection_Hide2!G$5, 'Full set Core Client Indicator'!$A$3:$AB$3, 0))), \"\")","v":""},{"$f":"IF(G154<>\"\", IF(INDEX('Full set Core Client Indicator'!$A$3:$AB$351, MATCH(Selection_Hide2!$A154, 'Full set Core Client Indicator'!$A$3:$A$351, 0), MATCH(Selection_Hide2!H$5, 'Full set Core Client Indicator'!$A$3:$AB$3, 0))=\"\", \"\",  INDEX('Full set Core Client Indicator'!$A$3:$AB$351, MATCH(Selection_Hide2!$A154, 'Full set Core Client Indicator'!$A$3:$A$351, 0), MATCH(Selection_Hide2!H$5, 'Full set Core Client Indicator'!$A$3:$AB$3, 0))), \"\")","v":""},{"$f":"IF(H154<>\"\", IF(INDEX('Full set Core Client Indicator'!$A$3:$AB$351, MATCH(Selection_Hide2!$A154, 'Full set Core Client Indicator'!$A$3:$A$351, 0), MATCH(Selection_Hide2!I$5, 'Full set Core Client Indicator'!$A$3:$AB$3, 0))=\"\", \"\",  INDEX('Full set Core Client Indicator'!$A$3:$AB$351, MATCH(Selection_Hide2!$A154, 'Full set Core Client Indicator'!$A$3:$A$351, 0), MATCH(Selection_Hide2!I$5, 'Full set Core Client Indicator'!$A$3:$AB$3, 0))), \"\")","v":""},{"$f":"IF(I154<>\"\", IF(INDEX('Full set Core Client Indicator'!$A$3:$AB$351, MATCH(Selection_Hide2!$A154, 'Full set Core Client Indicator'!$A$3:$A$351, 0), MATCH(Selection_Hide2!J$5, 'Full set Core Client Indicator'!$A$3:$AB$3, 0))=\"\", \"\",  INDEX('Full set Core Client Indicator'!$A$3:$AB$351, MATCH(Selection_Hide2!$A154, 'Full set Core Client Indicator'!$A$3:$A$351, 0), MATCH(Selection_Hide2!J$5, 'Full set Core Client Indicator'!$A$3:$AB$3, 0))), \"\")","v":""},{"$f":"IF(J154<>\"\", IF(INDEX('Full set Core Client Indicator'!$A$3:$AB$351, MATCH(Selection_Hide2!$A154, 'Full set Core Client Indicator'!$A$3:$A$351, 0), MATCH(Selection_Hide2!K$5, 'Full set Core Client Indicator'!$A$3:$AB$3, 0))=\"\", \"\",  INDEX('Full set Core Client Indicator'!$A$3:$AB$351, MATCH(Selection_Hide2!$A154, 'Full set Core Client Indicator'!$A$3:$A$351, 0), MATCH(Selection_Hide2!K$5, 'Full set Core Client Indicator'!$A$3:$AB$3, 0))), \"\")","v":""},{"$f":"IF(K154<>\"\", IF(INDEX('Full set Core Client Indicator'!$A$3:$AB$351, MATCH(Selection_Hide2!$A154, 'Full set Core Client Indicator'!$A$3:$A$351, 0), MATCH(Selection_Hide2!L$5, 'Full set Core Client Indicator'!$A$3:$AB$3, 0))=\"\", \"\",  INDEX('Full set Core Client Indicator'!$A$3:$AB$351, MATCH(Selection_Hide2!$A154, 'Full set Core Client Indicator'!$A$3:$A$351, 0), MATCH(Selection_Hide2!L$5, 'Full set Core Client Indicator'!$A$3:$AB$3, 0))), \"\")","v":""},{"$f":"IF(L154<>\"\", IF(INDEX('Full set Core Client Indicator'!$A$3:$AB$351, MATCH(Selection_Hide2!$A154, 'Full set Core Client Indicator'!$A$3:$A$351, 0), MATCH(Selection_Hide2!M$5, 'Full set Core Client Indicator'!$A$3:$AB$3, 0))=\"\", \"\",  INDEX('Full set Core Client Indicator'!$A$3:$AB$351, MATCH(Selection_Hide2!$A154, 'Full set Core Client Indicator'!$A$3:$A$351, 0), MATCH(Selection_Hide2!M$5, 'Full set Core Client Indicator'!$A$3:$AB$3, 0))), \"\")","v":""},{"$f":"IF(M154<>\"\", IF(INDEX('Full set Core Client Indicator'!$A$3:$AB$351, MATCH(Selection_Hide2!$A154, 'Full set Core Client Indicator'!$A$3:$A$351, 0), MATCH(Selection_Hide2!N$5, 'Full set Core Client Indicator'!$A$3:$AB$3, 0))=\"\", \"\",  INDEX('Full set Core Client Indicator'!$A$3:$AB$351, MATCH(Selection_Hide2!$A154, 'Full set Core Client Indicator'!$A$3:$A$351, 0), MATCH(Selection_Hide2!N$5, 'Full set Core Client Indicator'!$A$3:$AB$3, 0))), \"\")","v":""},{"$f":"IF(N154<>\"\", IF(INDEX('Full set Core Client Indicator'!$A$3:$AB$351, MATCH(Selection_Hide2!$A154, 'Full set Core Client Indicator'!$A$3:$A$351, 0), MATCH(Selection_Hide2!O$5, 'Full set Core Client Indicator'!$A$3:$AB$3, 0))=\"\", \"\",  INDEX('Full set Core Client Indicator'!$A$3:$AB$351, MATCH(Selection_Hide2!$A154, 'Full set Core Client Indicator'!$A$3:$A$351, 0), MATCH(Selection_Hide2!O$5, 'Full set Core Client Indicator'!$A$3:$AB$3, 0))), \"\")","v":""},{"$f":"IF(O154<>\"\", IF(INDEX('Full set Core Client Indicator'!$A$3:$AB$351, MATCH(Selection_Hide2!$A154, 'Full set Core Client Indicator'!$A$3:$A$351, 0), MATCH(Selection_Hide2!P$5, 'Full set Core Client Indicator'!$A$3:$AB$3, 0))=\"\", \"\",  INDEX('Full set Core Client Indicator'!$A$3:$AB$351, MATCH(Selection_Hide2!$A154, 'Full set Core Client Indicator'!$A$3:$A$351, 0), MATCH(Selection_Hide2!P$5, 'Full set Core Client Indicator'!$A$3:$AB$3, 0))), \"\")","v":""},{"$f":"IF(P154<>\"\", IF(INDEX('Full set Core Client Indicator'!$A$3:$AB$351, MATCH(Selection_Hide2!$A154, 'Full set Core Client Indicator'!$A$3:$A$351, 0), MATCH(Selection_Hide2!Q$5, 'Full set Core Client Indicator'!$A$3:$AB$3, 0))=\"\", \"\",  INDEX('Full set Core Client Indicator'!$A$3:$AB$351, MATCH(Selection_Hide2!$A154, 'Full set Core Client Indicator'!$A$3:$A$351, 0), MATCH(Selection_Hide2!Q$5, 'Full set Core Client Indicator'!$A$3:$AB$3, 0))), \"\")","v":""},{"$f":"IF(Q154<>\"\", IF(INDEX('Full set Core Client Indicator'!$A$3:$AB$351, MATCH(Selection_Hide2!$A154, 'Full set Core Client Indicator'!$A$3:$A$351, 0), MATCH(Selection_Hide2!R$5, 'Full set Core Client Indicator'!$A$3:$AB$3, 0))=\"\", \"\",  INDEX('Full set Core Client Indicator'!$A$3:$AB$351, MATCH(Selection_Hide2!$A154, 'Full set Core Client Indicator'!$A$3:$A$351, 0), MATCH(Selection_Hide2!R$5, 'Full set Core Client Indicator'!$A$3:$AB$3, 0))), \"\")","v":""},{"$f":"IF(R154<>\"\", IF(INDEX('Full set Core Client Indicator'!$A$3:$AB$351, MATCH(Selection_Hide2!$A154, 'Full set Core Client Indicator'!$A$3:$A$351, 0), MATCH(Selection_Hide2!S$5, 'Full set Core Client Indicator'!$A$3:$AB$3, 0))=\"\", \"\",  INDEX('Full set Core Client Indicator'!$A$3:$AB$351, MATCH(Selection_Hide2!$A154, 'Full set Core Client Indicator'!$A$3:$A$351, 0), MATCH(Selection_Hide2!S$5, 'Full set Core Client Indicator'!$A$3:$AB$3, 0))), \"\")","v":""},{"$f":"IF(S154<>\"\", IF(INDEX('Full set Core Client Indicator'!$A$3:$AB$351, MATCH(Selection_Hide2!$A154, 'Full set Core Client Indicator'!$A$3:$A$351, 0), MATCH(Selection_Hide2!T$5, 'Full set Core Client Indicator'!$A$3:$AB$3, 0))=\"\", \"\",  INDEX('Full set Core Client Indicator'!$A$3:$AB$351, MATCH(Selection_Hide2!$A154, 'Full set Core Client Indicator'!$A$3:$A$351, 0), MATCH(Selection_Hide2!T$5, 'Full set Core Client Indicator'!$A$3:$AB$3, 0))), \"\")","v":""},{"$f":"IF(T154<>\"\", IF(INDEX('Full set Core Client Indicator'!$A$3:$AB$351, MATCH(Selection_Hide2!$A154, 'Full set Core Client Indicator'!$A$3:$A$351, 0), MATCH(Selection_Hide2!U$5, 'Full set Core Client Indicator'!$A$3:$AB$3, 0))=\"\", \"\",  INDEX('Full set Core Client Indicator'!$A$3:$AB$351, MATCH(Selection_Hide2!$A154, 'Full set Core Client Indicator'!$A$3:$A$351, 0), MATCH(Selection_Hide2!U$5, 'Full set Core Client Indicator'!$A$3:$AB$3, 0))), \"\")","v":""},{"$f":"IF(U154<>\"\", IF(INDEX('Full set Core Client Indicator'!$A$3:$AB$351, MATCH(Selection_Hide2!$A154, 'Full set Core Client Indicator'!$A$3:$A$351, 0), MATCH(Selection_Hide2!V$5, 'Full set Core Client Indicator'!$A$3:$AB$3, 0))=\"\", \"\",  INDEX('Full set Core Client Indicator'!$A$3:$AB$351, MATCH(Selection_Hide2!$A154, 'Full set Core Client Indicator'!$A$3:$A$351, 0), MATCH(Selection_Hide2!V$5, 'Full set Core Client Indicator'!$A$3:$AB$3, 0))), \"\")","v":""},{"$f":"IF(V154<>\"\", IF(INDEX('Full set Core Client Indicator'!$A$3:$AB$351, MATCH(Selection_Hide2!$A154, 'Full set Core Client Indicator'!$A$3:$A$351, 0), MATCH(Selection_Hide2!W$5, 'Full set Core Client Indicator'!$A$3:$AB$3, 0))=\"\", \"\",  INDEX('Full set Core Client Indicator'!$A$3:$AB$351, MATCH(Selection_Hide2!$A154, 'Full set Core Client Indicator'!$A$3:$A$351, 0), MATCH(Selection_Hide2!W$5, 'Full set Core Client Indicator'!$A$3:$AB$3, 0))), \"\")","v":""},{"$f":"IF(W154<>\"\", IF(INDEX('Full set Core Client Indicator'!$A$3:$AB$351, MATCH(Selection_Hide2!$A154, 'Full set Core Client Indicator'!$A$3:$A$351, 0), MATCH(Selection_Hide2!X$5, 'Full set Core Client Indicator'!$A$3:$AB$3, 0))=\"\", \"\",  INDEX('Full set Core Client Indicator'!$A$3:$AB$351, MATCH(Selection_Hide2!$A154, 'Full set Core Client Indicator'!$A$3:$A$351, 0), MATCH(Selection_Hide2!X$5, 'Full set Core Client Indicator'!$A$3:$AB$3, 0))), \"\")","v":""},{"$f":"IF(X154<>\"\", IF(INDEX('Full set Core Client Indicator'!$A$3:$AB$351, MATCH(Selection_Hide2!$A154, 'Full set Core Client Indicator'!$A$3:$A$351, 0), MATCH(Selection_Hide2!Y$5, 'Full set Core Client Indicator'!$A$3:$AB$3, 0))=\"\", \"\",  INDEX('Full set Core Client Indicator'!$A$3:$AB$351, MATCH(Selection_Hide2!$A154, 'Full set Core Client Indicator'!$A$3:$A$351, 0), MATCH(Selection_Hide2!Y$5, 'Full set Core Client Indicator'!$A$3:$AB$3, 0))), \"\")","v":""},{"$f":"IF(Y154<>\"\", IF(INDEX('Full set Core Client Indicator'!$A$3:$AB$351, MATCH(Selection_Hide2!$A154, 'Full set Core Client Indicator'!$A$3:$A$351, 0), MATCH(Selection_Hide2!Z$5, 'Full set Core Client Indicator'!$A$3:$AB$3, 0))=\"\", \"\",  INDEX('Full set Core Client Indicator'!$A$3:$AB$351, MATCH(Selection_Hide2!$A154, 'Full set Core Client Indicator'!$A$3:$A$351, 0), MATCH(Selection_Hide2!Z$5, 'Full set Core Client Indicator'!$A$3:$AB$3, 0))), \"\")","v":""},{"$f":"IF(Z154<>\"\", IF(INDEX('Full set Core Client Indicator'!$A$3:$AB$351, MATCH(Selection_Hide2!$A154, 'Full set Core Client Indicator'!$A$3:$A$351, 0), MATCH(Selection_Hide2!AA$5, 'Full set Core Client Indicator'!$A$3:$AB$3, 0))=\"\", \"\",  INDEX('Full set Core Client Indicator'!$A$3:$AB$351, MATCH(Selection_Hide2!$A154, 'Full set Core Client Indicator'!$A$3:$A$351, 0), MATCH(Selection_Hide2!AA$5, 'Full set Core Client Indicator'!$A$3:$AB$3, 0))), \"\")","v":""},{"$f":"IF(AA154<>\"\", IF(INDEX('Full set Core Client Indicator'!$A$3:$AB$351, MATCH(Selection_Hide2!$A154, 'Full set Core Client Indicator'!$A$3:$A$351, 0), MATCH(Selection_Hide2!AB$5, 'Full set Core Client Indicator'!$A$3:$AB$3, 0))=\"\", \"\",  INDEX('Full set Core Client Indicator'!$A$3:$AB$351, MATCH(Selection_Hide2!$A154, 'Full set Core Client Indicator'!$A$3:$A$351, 0), MATCH(Selection_Hide2!AB$5, 'Full set Core Client Indicator'!$A$3:$AB$3, 0))), \"\")","v":""}]
[{"$f":"IF(AND(Selection_Hide1!C153<>0, Selection_Hide1!C153<>\"Grand Total\"), Selection_Hide1!C153, \"\")","v":""},{"$f":"IF(A155<>\"\", IF(INDEX('Full set Core Client Indicator'!$A$3:$AB$351, MATCH(Selection_Hide2!$A155, 'Full set Core Client Indicator'!$A$3:$A$351, 0), MATCH(Selection_Hide2!B$5, 'Full set Core Client Indicator'!$A$3:$AB$3, 0))=\"\", \"\",  INDEX('Full set Core Client Indicator'!$A$3:$AB$351, MATCH(Selection_Hide2!$A155, 'Full set Core Client Indicator'!$A$3:$A$351, 0), MATCH(Selection_Hide2!B$5, 'Full set Core Client Indicator'!$A$3:$AB$3, 0))), \"\")","v":""},{"$f":"IF(B155<>\"\", IF(INDEX('Full set Core Client Indicator'!$A$3:$AB$351, MATCH(Selection_Hide2!$A155, 'Full set Core Client Indicator'!$A$3:$A$351, 0), MATCH(Selection_Hide2!C$5, 'Full set Core Client Indicator'!$A$3:$AB$3, 0))=\"\", \"\",  INDEX('Full set Core Client Indicator'!$A$3:$AB$351, MATCH(Selection_Hide2!$A155, 'Full set Core Client Indicator'!$A$3:$A$351, 0), MATCH(Selection_Hide2!C$5, 'Full set Core Client Indicator'!$A$3:$AB$3, 0))), \"\")","v":""},{"$f":"IF(C155<>\"\", IF(INDEX('Full set Core Client Indicator'!$A$3:$AB$351, MATCH(Selection_Hide2!$A155, 'Full set Core Client Indicator'!$A$3:$A$351, 0), MATCH(Selection_Hide2!D$5, 'Full set Core Client Indicator'!$A$3:$AB$3, 0))=\"\", \"\",  INDEX('Full set Core Client Indicator'!$A$3:$AB$351, MATCH(Selection_Hide2!$A155, 'Full set Core Client Indicator'!$A$3:$A$351, 0), MATCH(Selection_Hide2!D$5, 'Full set Core Client Indicator'!$A$3:$AB$3, 0))), \"\")","v":""},{"$f":"IF(D155<>\"\", IF(INDEX('Full set Core Client Indicator'!$A$3:$AB$351, MATCH(Selection_Hide2!$A155, 'Full set Core Client Indicator'!$A$3:$A$351, 0), MATCH(Selection_Hide2!E$5, 'Full set Core Client Indicator'!$A$3:$AB$3, 0))=\"\", \"\",  INDEX('Full set Core Client Indicator'!$A$3:$AB$351, MATCH(Selection_Hide2!$A155, 'Full set Core Client Indicator'!$A$3:$A$351, 0), MATCH(Selection_Hide2!E$5, 'Full set Core Client Indicator'!$A$3:$AB$3, 0))), \"\")","v":""},{"$f":"IF(E155<>\"\", IF(INDEX('Full set Core Client Indicator'!$A$3:$AB$351, MATCH(Selection_Hide2!$A155, 'Full set Core Client Indicator'!$A$3:$A$351, 0), MATCH(Selection_Hide2!F$5, 'Full set Core Client Indicator'!$A$3:$AB$3, 0))=\"\", \"\",  INDEX('Full set Core Client Indicator'!$A$3:$AB$351, MATCH(Selection_Hide2!$A155, 'Full set Core Client Indicator'!$A$3:$A$351, 0), MATCH(Selection_Hide2!F$5, 'Full set Core Client Indicator'!$A$3:$AB$3, 0))), \"\")","v":""},{"$f":"IF(F155<>\"\", IF(INDEX('Full set Core Client Indicator'!$A$3:$AB$351, MATCH(Selection_Hide2!$A155, 'Full set Core Client Indicator'!$A$3:$A$351, 0), MATCH(Selection_Hide2!G$5, 'Full set Core Client Indicator'!$A$3:$AB$3, 0))=\"\", \"\",  INDEX('Full set Core Client Indicator'!$A$3:$AB$351, MATCH(Selection_Hide2!$A155, 'Full set Core Client Indicator'!$A$3:$A$351, 0), MATCH(Selection_Hide2!G$5, 'Full set Core Client Indicator'!$A$3:$AB$3, 0))), \"\")","v":""},{"$f":"IF(G155<>\"\", IF(INDEX('Full set Core Client Indicator'!$A$3:$AB$351, MATCH(Selection_Hide2!$A155, 'Full set Core Client Indicator'!$A$3:$A$351, 0), MATCH(Selection_Hide2!H$5, 'Full set Core Client Indicator'!$A$3:$AB$3, 0))=\"\", \"\",  INDEX('Full set Core Client Indicator'!$A$3:$AB$351, MATCH(Selection_Hide2!$A155, 'Full set Core Client Indicator'!$A$3:$A$351, 0), MATCH(Selection_Hide2!H$5, 'Full set Core Client Indicator'!$A$3:$AB$3, 0))), \"\")","v":""},{"$f":"IF(H155<>\"\", IF(INDEX('Full set Core Client Indicator'!$A$3:$AB$351, MATCH(Selection_Hide2!$A155, 'Full set Core Client Indicator'!$A$3:$A$351, 0), MATCH(Selection_Hide2!I$5, 'Full set Core Client Indicator'!$A$3:$AB$3, 0))=\"\", \"\",  INDEX('Full set Core Client Indicator'!$A$3:$AB$351, MATCH(Selection_Hide2!$A155, 'Full set Core Client Indicator'!$A$3:$A$351, 0), MATCH(Selection_Hide2!I$5, 'Full set Core Client Indicator'!$A$3:$AB$3, 0))), \"\")","v":""},{"$f":"IF(I155<>\"\", IF(INDEX('Full set Core Client Indicator'!$A$3:$AB$351, MATCH(Selection_Hide2!$A155, 'Full set Core Client Indicator'!$A$3:$A$351, 0), MATCH(Selection_Hide2!J$5, 'Full set Core Client Indicator'!$A$3:$AB$3, 0))=\"\", \"\",  INDEX('Full set Core Client Indicator'!$A$3:$AB$351, MATCH(Selection_Hide2!$A155, 'Full set Core Client Indicator'!$A$3:$A$351, 0), MATCH(Selection_Hide2!J$5, 'Full set Core Client Indicator'!$A$3:$AB$3, 0))), \"\")","v":""},{"$f":"IF(J155<>\"\", IF(INDEX('Full set Core Client Indicator'!$A$3:$AB$351, MATCH(Selection_Hide2!$A155, 'Full set Core Client Indicator'!$A$3:$A$351, 0), MATCH(Selection_Hide2!K$5, 'Full set Core Client Indicator'!$A$3:$AB$3, 0))=\"\", \"\",  INDEX('Full set Core Client Indicator'!$A$3:$AB$351, MATCH(Selection_Hide2!$A155, 'Full set Core Client Indicator'!$A$3:$A$351, 0), MATCH(Selection_Hide2!K$5, 'Full set Core Client Indicator'!$A$3:$AB$3, 0))), \"\")","v":""},{"$f":"IF(K155<>\"\", IF(INDEX('Full set Core Client Indicator'!$A$3:$AB$351, MATCH(Selection_Hide2!$A155, 'Full set Core Client Indicator'!$A$3:$A$351, 0), MATCH(Selection_Hide2!L$5, 'Full set Core Client Indicator'!$A$3:$AB$3, 0))=\"\", \"\",  INDEX('Full set Core Client Indicator'!$A$3:$AB$351, MATCH(Selection_Hide2!$A155, 'Full set Core Client Indicator'!$A$3:$A$351, 0), MATCH(Selection_Hide2!L$5, 'Full set Core Client Indicator'!$A$3:$AB$3, 0))), \"\")","v":""},{"$f":"IF(L155<>\"\", IF(INDEX('Full set Core Client Indicator'!$A$3:$AB$351, MATCH(Selection_Hide2!$A155, 'Full set Core Client Indicator'!$A$3:$A$351, 0), MATCH(Selection_Hide2!M$5, 'Full set Core Client Indicator'!$A$3:$AB$3, 0))=\"\", \"\",  INDEX('Full set Core Client Indicator'!$A$3:$AB$351, MATCH(Selection_Hide2!$A155, 'Full set Core Client Indicator'!$A$3:$A$351, 0), MATCH(Selection_Hide2!M$5, 'Full set Core Client Indicator'!$A$3:$AB$3, 0))), \"\")","v":""},{"$f":"IF(M155<>\"\", IF(INDEX('Full set Core Client Indicator'!$A$3:$AB$351, MATCH(Selection_Hide2!$A155, 'Full set Core Client Indicator'!$A$3:$A$351, 0), MATCH(Selection_Hide2!N$5, 'Full set Core Client Indicator'!$A$3:$AB$3, 0))=\"\", \"\",  INDEX('Full set Core Client Indicator'!$A$3:$AB$351, MATCH(Selection_Hide2!$A155, 'Full set Core Client Indicator'!$A$3:$A$351, 0), MATCH(Selection_Hide2!N$5, 'Full set Core Client Indicator'!$A$3:$AB$3, 0))), \"\")","v":""},{"$f":"IF(N155<>\"\", IF(INDEX('Full set Core Client Indicator'!$A$3:$AB$351, MATCH(Selection_Hide2!$A155, 'Full set Core Client Indicator'!$A$3:$A$351, 0), MATCH(Selection_Hide2!O$5, 'Full set Core Client Indicator'!$A$3:$AB$3, 0))=\"\", \"\",  INDEX('Full set Core Client Indicator'!$A$3:$AB$351, MATCH(Selection_Hide2!$A155, 'Full set Core Client Indicator'!$A$3:$A$351, 0), MATCH(Selection_Hide2!O$5, 'Full set Core Client Indicator'!$A$3:$AB$3, 0))), \"\")","v":""},{"$f":"IF(O155<>\"\", IF(INDEX('Full set Core Client Indicator'!$A$3:$AB$351, MATCH(Selection_Hide2!$A155, 'Full set Core Client Indicator'!$A$3:$A$351, 0), MATCH(Selection_Hide2!P$5, 'Full set Core Client Indicator'!$A$3:$AB$3, 0))=\"\", \"\",  INDEX('Full set Core Client Indicator'!$A$3:$AB$351, MATCH(Selection_Hide2!$A155, 'Full set Core Client Indicator'!$A$3:$A$351, 0), MATCH(Selection_Hide2!P$5, 'Full set Core Client Indicator'!$A$3:$AB$3, 0))), \"\")","v":""},{"$f":"IF(P155<>\"\", IF(INDEX('Full set Core Client Indicator'!$A$3:$AB$351, MATCH(Selection_Hide2!$A155, 'Full set Core Client Indicator'!$A$3:$A$351, 0), MATCH(Selection_Hide2!Q$5, 'Full set Core Client Indicator'!$A$3:$AB$3, 0))=\"\", \"\",  INDEX('Full set Core Client Indicator'!$A$3:$AB$351, MATCH(Selection_Hide2!$A155, 'Full set Core Client Indicator'!$A$3:$A$351, 0), MATCH(Selection_Hide2!Q$5, 'Full set Core Client Indicator'!$A$3:$AB$3, 0))), \"\")","v":""},{"$f":"IF(Q155<>\"\", IF(INDEX('Full set Core Client Indicator'!$A$3:$AB$351, MATCH(Selection_Hide2!$A155, 'Full set Core Client Indicator'!$A$3:$A$351, 0), MATCH(Selection_Hide2!R$5, 'Full set Core Client Indicator'!$A$3:$AB$3, 0))=\"\", \"\",  INDEX('Full set Core Client Indicator'!$A$3:$AB$351, MATCH(Selection_Hide2!$A155, 'Full set Core Client Indicator'!$A$3:$A$351, 0), MATCH(Selection_Hide2!R$5, 'Full set Core Client Indicator'!$A$3:$AB$3, 0))), \"\")","v":""},{"$f":"IF(R155<>\"\", IF(INDEX('Full set Core Client Indicator'!$A$3:$AB$351, MATCH(Selection_Hide2!$A155, 'Full set Core Client Indicator'!$A$3:$A$351, 0), MATCH(Selection_Hide2!S$5, 'Full set Core Client Indicator'!$A$3:$AB$3, 0))=\"\", \"\",  INDEX('Full set Core Client Indicator'!$A$3:$AB$351, MATCH(Selection_Hide2!$A155, 'Full set Core Client Indicator'!$A$3:$A$351, 0), MATCH(Selection_Hide2!S$5, 'Full set Core Client Indicator'!$A$3:$AB$3, 0))), \"\")","v":""},{"$f":"IF(S155<>\"\", IF(INDEX('Full set Core Client Indicator'!$A$3:$AB$351, MATCH(Selection_Hide2!$A155, 'Full set Core Client Indicator'!$A$3:$A$351, 0), MATCH(Selection_Hide2!T$5, 'Full set Core Client Indicator'!$A$3:$AB$3, 0))=\"\", \"\",  INDEX('Full set Core Client Indicator'!$A$3:$AB$351, MATCH(Selection_Hide2!$A155, 'Full set Core Client Indicator'!$A$3:$A$351, 0), MATCH(Selection_Hide2!T$5, 'Full set Core Client Indicator'!$A$3:$AB$3, 0))), \"\")","v":""},{"$f":"IF(T155<>\"\", IF(INDEX('Full set Core Client Indicator'!$A$3:$AB$351, MATCH(Selection_Hide2!$A155, 'Full set Core Client Indicator'!$A$3:$A$351, 0), MATCH(Selection_Hide2!U$5, 'Full set Core Client Indicator'!$A$3:$AB$3, 0))=\"\", \"\",  INDEX('Full set Core Client Indicator'!$A$3:$AB$351, MATCH(Selection_Hide2!$A155, 'Full set Core Client Indicator'!$A$3:$A$351, 0), MATCH(Selection_Hide2!U$5, 'Full set Core Client Indicator'!$A$3:$AB$3, 0))), \"\")","v":""},{"$f":"IF(U155<>\"\", IF(INDEX('Full set Core Client Indicator'!$A$3:$AB$351, MATCH(Selection_Hide2!$A155, 'Full set Core Client Indicator'!$A$3:$A$351, 0), MATCH(Selection_Hide2!V$5, 'Full set Core Client Indicator'!$A$3:$AB$3, 0))=\"\", \"\",  INDEX('Full set Core Client Indicator'!$A$3:$AB$351, MATCH(Selection_Hide2!$A155, 'Full set Core Client Indicator'!$A$3:$A$351, 0), MATCH(Selection_Hide2!V$5, 'Full set Core Client Indicator'!$A$3:$AB$3, 0))), \"\")","v":""},{"$f":"IF(V155<>\"\", IF(INDEX('Full set Core Client Indicator'!$A$3:$AB$351, MATCH(Selection_Hide2!$A155, 'Full set Core Client Indicator'!$A$3:$A$351, 0), MATCH(Selection_Hide2!W$5, 'Full set Core Client Indicator'!$A$3:$AB$3, 0))=\"\", \"\",  INDEX('Full set Core Client Indicator'!$A$3:$AB$351, MATCH(Selection_Hide2!$A155, 'Full set Core Client Indicator'!$A$3:$A$351, 0), MATCH(Selection_Hide2!W$5, 'Full set Core Client Indicator'!$A$3:$AB$3, 0))), \"\")","v":""},{"$f":"IF(W155<>\"\", IF(INDEX('Full set Core Client Indicator'!$A$3:$AB$351, MATCH(Selection_Hide2!$A155, 'Full set Core Client Indicator'!$A$3:$A$351, 0), MATCH(Selection_Hide2!X$5, 'Full set Core Client Indicator'!$A$3:$AB$3, 0))=\"\", \"\",  INDEX('Full set Core Client Indicator'!$A$3:$AB$351, MATCH(Selection_Hide2!$A155, 'Full set Core Client Indicator'!$A$3:$A$351, 0), MATCH(Selection_Hide2!X$5, 'Full set Core Client Indicator'!$A$3:$AB$3, 0))), \"\")","v":""},{"$f":"IF(X155<>\"\", IF(INDEX('Full set Core Client Indicator'!$A$3:$AB$351, MATCH(Selection_Hide2!$A155, 'Full set Core Client Indicator'!$A$3:$A$351, 0), MATCH(Selection_Hide2!Y$5, 'Full set Core Client Indicator'!$A$3:$AB$3, 0))=\"\", \"\",  INDEX('Full set Core Client Indicator'!$A$3:$AB$351, MATCH(Selection_Hide2!$A155, 'Full set Core Client Indicator'!$A$3:$A$351, 0), MATCH(Selection_Hide2!Y$5, 'Full set Core Client Indicator'!$A$3:$AB$3, 0))), \"\")","v":""},{"$f":"IF(Y155<>\"\", IF(INDEX('Full set Core Client Indicator'!$A$3:$AB$351, MATCH(Selection_Hide2!$A155, 'Full set Core Client Indicator'!$A$3:$A$351, 0), MATCH(Selection_Hide2!Z$5, 'Full set Core Client Indicator'!$A$3:$AB$3, 0))=\"\", \"\",  INDEX('Full set Core Client Indicator'!$A$3:$AB$351, MATCH(Selection_Hide2!$A155, 'Full set Core Client Indicator'!$A$3:$A$351, 0), MATCH(Selection_Hide2!Z$5, 'Full set Core Client Indicator'!$A$3:$AB$3, 0))), \"\")","v":""},{"$f":"IF(Z155<>\"\", IF(INDEX('Full set Core Client Indicator'!$A$3:$AB$351, MATCH(Selection_Hide2!$A155, 'Full set Core Client Indicator'!$A$3:$A$351, 0), MATCH(Selection_Hide2!AA$5, 'Full set Core Client Indicator'!$A$3:$AB$3, 0))=\"\", \"\",  INDEX('Full set Core Client Indicator'!$A$3:$AB$351, MATCH(Selection_Hide2!$A155, 'Full set Core Client Indicator'!$A$3:$A$351, 0), MATCH(Selection_Hide2!AA$5, 'Full set Core Client Indicator'!$A$3:$AB$3, 0))), \"\")","v":""},{"$f":"IF(AA155<>\"\", IF(INDEX('Full set Core Client Indicator'!$A$3:$AB$351, MATCH(Selection_Hide2!$A155, 'Full set Core Client Indicator'!$A$3:$A$351, 0), MATCH(Selection_Hide2!AB$5, 'Full set Core Client Indicator'!$A$3:$AB$3, 0))=\"\", \"\",  INDEX('Full set Core Client Indicator'!$A$3:$AB$351, MATCH(Selection_Hide2!$A155, 'Full set Core Client Indicator'!$A$3:$A$351, 0), MATCH(Selection_Hide2!AB$5, 'Full set Core Client Indicator'!$A$3:$AB$3, 0))), \"\")","v":""}]
[{"$f":"IF(AND(Selection_Hide1!C154<>0, Selection_Hide1!C154<>\"Grand Total\"), Selection_Hide1!C154, \"\")","v":""},{"$f":"IF(A156<>\"\", IF(INDEX('Full set Core Client Indicator'!$A$3:$AB$351, MATCH(Selection_Hide2!$A156, 'Full set Core Client Indicator'!$A$3:$A$351, 0), MATCH(Selection_Hide2!B$5, 'Full set Core Client Indicator'!$A$3:$AB$3, 0))=\"\", \"\",  INDEX('Full set Core Client Indicator'!$A$3:$AB$351, MATCH(Selection_Hide2!$A156, 'Full set Core Client Indicator'!$A$3:$A$351, 0), MATCH(Selection_Hide2!B$5, 'Full set Core Client Indicator'!$A$3:$AB$3, 0))), \"\")","v":""},{"$f":"IF(B156<>\"\", IF(INDEX('Full set Core Client Indicator'!$A$3:$AB$351, MATCH(Selection_Hide2!$A156, 'Full set Core Client Indicator'!$A$3:$A$351, 0), MATCH(Selection_Hide2!C$5, 'Full set Core Client Indicator'!$A$3:$AB$3, 0))=\"\", \"\",  INDEX('Full set Core Client Indicator'!$A$3:$AB$351, MATCH(Selection_Hide2!$A156, 'Full set Core Client Indicator'!$A$3:$A$351, 0), MATCH(Selection_Hide2!C$5, 'Full set Core Client Indicator'!$A$3:$AB$3, 0))), \"\")","v":""},{"$f":"IF(C156<>\"\", IF(INDEX('Full set Core Client Indicator'!$A$3:$AB$351, MATCH(Selection_Hide2!$A156, 'Full set Core Client Indicator'!$A$3:$A$351, 0), MATCH(Selection_Hide2!D$5, 'Full set Core Client Indicator'!$A$3:$AB$3, 0))=\"\", \"\",  INDEX('Full set Core Client Indicator'!$A$3:$AB$351, MATCH(Selection_Hide2!$A156, 'Full set Core Client Indicator'!$A$3:$A$351, 0), MATCH(Selection_Hide2!D$5, 'Full set Core Client Indicator'!$A$3:$AB$3, 0))), \"\")","v":""},{"$f":"IF(D156<>\"\", IF(INDEX('Full set Core Client Indicator'!$A$3:$AB$351, MATCH(Selection_Hide2!$A156, 'Full set Core Client Indicator'!$A$3:$A$351, 0), MATCH(Selection_Hide2!E$5, 'Full set Core Client Indicator'!$A$3:$AB$3, 0))=\"\", \"\",  INDEX('Full set Core Client Indicator'!$A$3:$AB$351, MATCH(Selection_Hide2!$A156, 'Full set Core Client Indicator'!$A$3:$A$351, 0), MATCH(Selection_Hide2!E$5, 'Full set Core Client Indicator'!$A$3:$AB$3, 0))), \"\")","v":""},{"$f":"IF(E156<>\"\", IF(INDEX('Full set Core Client Indicator'!$A$3:$AB$351, MATCH(Selection_Hide2!$A156, 'Full set Core Client Indicator'!$A$3:$A$351, 0), MATCH(Selection_Hide2!F$5, 'Full set Core Client Indicator'!$A$3:$AB$3, 0))=\"\", \"\",  INDEX('Full set Core Client Indicator'!$A$3:$AB$351, MATCH(Selection_Hide2!$A156, 'Full set Core Client Indicator'!$A$3:$A$351, 0), MATCH(Selection_Hide2!F$5, 'Full set Core Client Indicator'!$A$3:$AB$3, 0))), \"\")","v":""},{"$f":"IF(F156<>\"\", IF(INDEX('Full set Core Client Indicator'!$A$3:$AB$351, MATCH(Selection_Hide2!$A156, 'Full set Core Client Indicator'!$A$3:$A$351, 0), MATCH(Selection_Hide2!G$5, 'Full set Core Client Indicator'!$A$3:$AB$3, 0))=\"\", \"\",  INDEX('Full set Core Client Indicator'!$A$3:$AB$351, MATCH(Selection_Hide2!$A156, 'Full set Core Client Indicator'!$A$3:$A$351, 0), MATCH(Selection_Hide2!G$5, 'Full set Core Client Indicator'!$A$3:$AB$3, 0))), \"\")","v":""},{"$f":"IF(G156<>\"\", IF(INDEX('Full set Core Client Indicator'!$A$3:$AB$351, MATCH(Selection_Hide2!$A156, 'Full set Core Client Indicator'!$A$3:$A$351, 0), MATCH(Selection_Hide2!H$5, 'Full set Core Client Indicator'!$A$3:$AB$3, 0))=\"\", \"\",  INDEX('Full set Core Client Indicator'!$A$3:$AB$351, MATCH(Selection_Hide2!$A156, 'Full set Core Client Indicator'!$A$3:$A$351, 0), MATCH(Selection_Hide2!H$5, 'Full set Core Client Indicator'!$A$3:$AB$3, 0))), \"\")","v":""},{"$f":"IF(H156<>\"\", IF(INDEX('Full set Core Client Indicator'!$A$3:$AB$351, MATCH(Selection_Hide2!$A156, 'Full set Core Client Indicator'!$A$3:$A$351, 0), MATCH(Selection_Hide2!I$5, 'Full set Core Client Indicator'!$A$3:$AB$3, 0))=\"\", \"\",  INDEX('Full set Core Client Indicator'!$A$3:$AB$351, MATCH(Selection_Hide2!$A156, 'Full set Core Client Indicator'!$A$3:$A$351, 0), MATCH(Selection_Hide2!I$5, 'Full set Core Client Indicator'!$A$3:$AB$3, 0))), \"\")","v":""},{"$f":"IF(I156<>\"\", IF(INDEX('Full set Core Client Indicator'!$A$3:$AB$351, MATCH(Selection_Hide2!$A156, 'Full set Core Client Indicator'!$A$3:$A$351, 0), MATCH(Selection_Hide2!J$5, 'Full set Core Client Indicator'!$A$3:$AB$3, 0))=\"\", \"\",  INDEX('Full set Core Client Indicator'!$A$3:$AB$351, MATCH(Selection_Hide2!$A156, 'Full set Core Client Indicator'!$A$3:$A$351, 0), MATCH(Selection_Hide2!J$5, 'Full set Core Client Indicator'!$A$3:$AB$3, 0))), \"\")","v":""},{"$f":"IF(J156<>\"\", IF(INDEX('Full set Core Client Indicator'!$A$3:$AB$351, MATCH(Selection_Hide2!$A156, 'Full set Core Client Indicator'!$A$3:$A$351, 0), MATCH(Selection_Hide2!K$5, 'Full set Core Client Indicator'!$A$3:$AB$3, 0))=\"\", \"\",  INDEX('Full set Core Client Indicator'!$A$3:$AB$351, MATCH(Selection_Hide2!$A156, 'Full set Core Client Indicator'!$A$3:$A$351, 0), MATCH(Selection_Hide2!K$5, 'Full set Core Client Indicator'!$A$3:$AB$3, 0))), \"\")","v":""},{"$f":"IF(K156<>\"\", IF(INDEX('Full set Core Client Indicator'!$A$3:$AB$351, MATCH(Selection_Hide2!$A156, 'Full set Core Client Indicator'!$A$3:$A$351, 0), MATCH(Selection_Hide2!L$5, 'Full set Core Client Indicator'!$A$3:$AB$3, 0))=\"\", \"\",  INDEX('Full set Core Client Indicator'!$A$3:$AB$351, MATCH(Selection_Hide2!$A156, 'Full set Core Client Indicator'!$A$3:$A$351, 0), MATCH(Selection_Hide2!L$5, 'Full set Core Client Indicator'!$A$3:$AB$3, 0))), \"\")","v":""},{"$f":"IF(L156<>\"\", IF(INDEX('Full set Core Client Indicator'!$A$3:$AB$351, MATCH(Selection_Hide2!$A156, 'Full set Core Client Indicator'!$A$3:$A$351, 0), MATCH(Selection_Hide2!M$5, 'Full set Core Client Indicator'!$A$3:$AB$3, 0))=\"\", \"\",  INDEX('Full set Core Client Indicator'!$A$3:$AB$351, MATCH(Selection_Hide2!$A156, 'Full set Core Client Indicator'!$A$3:$A$351, 0), MATCH(Selection_Hide2!M$5, 'Full set Core Client Indicator'!$A$3:$AB$3, 0))), \"\")","v":""},{"$f":"IF(M156<>\"\", IF(INDEX('Full set Core Client Indicator'!$A$3:$AB$351, MATCH(Selection_Hide2!$A156, 'Full set Core Client Indicator'!$A$3:$A$351, 0), MATCH(Selection_Hide2!N$5, 'Full set Core Client Indicator'!$A$3:$AB$3, 0))=\"\", \"\",  INDEX('Full set Core Client Indicator'!$A$3:$AB$351, MATCH(Selection_Hide2!$A156, 'Full set Core Client Indicator'!$A$3:$A$351, 0), MATCH(Selection_Hide2!N$5, 'Full set Core Client Indicator'!$A$3:$AB$3, 0))), \"\")","v":""},{"$f":"IF(N156<>\"\", IF(INDEX('Full set Core Client Indicator'!$A$3:$AB$351, MATCH(Selection_Hide2!$A156, 'Full set Core Client Indicator'!$A$3:$A$351, 0), MATCH(Selection_Hide2!O$5, 'Full set Core Client Indicator'!$A$3:$AB$3, 0))=\"\", \"\",  INDEX('Full set Core Client Indicator'!$A$3:$AB$351, MATCH(Selection_Hide2!$A156, 'Full set Core Client Indicator'!$A$3:$A$351, 0), MATCH(Selection_Hide2!O$5, 'Full set Core Client Indicator'!$A$3:$AB$3, 0))), \"\")","v":""},{"$f":"IF(O156<>\"\", IF(INDEX('Full set Core Client Indicator'!$A$3:$AB$351, MATCH(Selection_Hide2!$A156, 'Full set Core Client Indicator'!$A$3:$A$351, 0), MATCH(Selection_Hide2!P$5, 'Full set Core Client Indicator'!$A$3:$AB$3, 0))=\"\", \"\",  INDEX('Full set Core Client Indicator'!$A$3:$AB$351, MATCH(Selection_Hide2!$A156, 'Full set Core Client Indicator'!$A$3:$A$351, 0), MATCH(Selection_Hide2!P$5, 'Full set Core Client Indicator'!$A$3:$AB$3, 0))), \"\")","v":""},{"$f":"IF(P156<>\"\", IF(INDEX('Full set Core Client Indicator'!$A$3:$AB$351, MATCH(Selection_Hide2!$A156, 'Full set Core Client Indicator'!$A$3:$A$351, 0), MATCH(Selection_Hide2!Q$5, 'Full set Core Client Indicator'!$A$3:$AB$3, 0))=\"\", \"\",  INDEX('Full set Core Client Indicator'!$A$3:$AB$351, MATCH(Selection_Hide2!$A156, 'Full set Core Client Indicator'!$A$3:$A$351, 0), MATCH(Selection_Hide2!Q$5, 'Full set Core Client Indicator'!$A$3:$AB$3, 0))), \"\")","v":""},{"$f":"IF(Q156<>\"\", IF(INDEX('Full set Core Client Indicator'!$A$3:$AB$351, MATCH(Selection_Hide2!$A156, 'Full set Core Client Indicator'!$A$3:$A$351, 0), MATCH(Selection_Hide2!R$5, 'Full set Core Client Indicator'!$A$3:$AB$3, 0))=\"\", \"\",  INDEX('Full set Core Client Indicator'!$A$3:$AB$351, MATCH(Selection_Hide2!$A156, 'Full set Core Client Indicator'!$A$3:$A$351, 0), MATCH(Selection_Hide2!R$5, 'Full set Core Client Indicator'!$A$3:$AB$3, 0))), \"\")","v":""},{"$f":"IF(R156<>\"\", IF(INDEX('Full set Core Client Indicator'!$A$3:$AB$351, MATCH(Selection_Hide2!$A156, 'Full set Core Client Indicator'!$A$3:$A$351, 0), MATCH(Selection_Hide2!S$5, 'Full set Core Client Indicator'!$A$3:$AB$3, 0))=\"\", \"\",  INDEX('Full set Core Client Indicator'!$A$3:$AB$351, MATCH(Selection_Hide2!$A156, 'Full set Core Client Indicator'!$A$3:$A$351, 0), MATCH(Selection_Hide2!S$5, 'Full set Core Client Indicator'!$A$3:$AB$3, 0))), \"\")","v":""},{"$f":"IF(S156<>\"\", IF(INDEX('Full set Core Client Indicator'!$A$3:$AB$351, MATCH(Selection_Hide2!$A156, 'Full set Core Client Indicator'!$A$3:$A$351, 0), MATCH(Selection_Hide2!T$5, 'Full set Core Client Indicator'!$A$3:$AB$3, 0))=\"\", \"\",  INDEX('Full set Core Client Indicator'!$A$3:$AB$351, MATCH(Selection_Hide2!$A156, 'Full set Core Client Indicator'!$A$3:$A$351, 0), MATCH(Selection_Hide2!T$5, 'Full set Core Client Indicator'!$A$3:$AB$3, 0))), \"\")","v":""},{"$f":"IF(T156<>\"\", IF(INDEX('Full set Core Client Indicator'!$A$3:$AB$351, MATCH(Selection_Hide2!$A156, 'Full set Core Client Indicator'!$A$3:$A$351, 0), MATCH(Selection_Hide2!U$5, 'Full set Core Client Indicator'!$A$3:$AB$3, 0))=\"\", \"\",  INDEX('Full set Core Client Indicator'!$A$3:$AB$351, MATCH(Selection_Hide2!$A156, 'Full set Core Client Indicator'!$A$3:$A$351, 0), MATCH(Selection_Hide2!U$5, 'Full set Core Client Indicator'!$A$3:$AB$3, 0))), \"\")","v":""},{"$f":"IF(U156<>\"\", IF(INDEX('Full set Core Client Indicator'!$A$3:$AB$351, MATCH(Selection_Hide2!$A156, 'Full set Core Client Indicator'!$A$3:$A$351, 0), MATCH(Selection_Hide2!V$5, 'Full set Core Client Indicator'!$A$3:$AB$3, 0))=\"\", \"\",  INDEX('Full set Core Client Indicator'!$A$3:$AB$351, MATCH(Selection_Hide2!$A156, 'Full set Core Client Indicator'!$A$3:$A$351, 0), MATCH(Selection_Hide2!V$5, 'Full set Core Client Indicator'!$A$3:$AB$3, 0))), \"\")","v":""},{"$f":"IF(V156<>\"\", IF(INDEX('Full set Core Client Indicator'!$A$3:$AB$351, MATCH(Selection_Hide2!$A156, 'Full set Core Client Indicator'!$A$3:$A$351, 0), MATCH(Selection_Hide2!W$5, 'Full set Core Client Indicator'!$A$3:$AB$3, 0))=\"\", \"\",  INDEX('Full set Core Client Indicator'!$A$3:$AB$351, MATCH(Selection_Hide2!$A156, 'Full set Core Client Indicator'!$A$3:$A$351, 0), MATCH(Selection_Hide2!W$5, 'Full set Core Client Indicator'!$A$3:$AB$3, 0))), \"\")","v":""},{"$f":"IF(W156<>\"\", IF(INDEX('Full set Core Client Indicator'!$A$3:$AB$351, MATCH(Selection_Hide2!$A156, 'Full set Core Client Indicator'!$A$3:$A$351, 0), MATCH(Selection_Hide2!X$5, 'Full set Core Client Indicator'!$A$3:$AB$3, 0))=\"\", \"\",  INDEX('Full set Core Client Indicator'!$A$3:$AB$351, MATCH(Selection_Hide2!$A156, 'Full set Core Client Indicator'!$A$3:$A$351, 0), MATCH(Selection_Hide2!X$5, 'Full set Core Client Indicator'!$A$3:$AB$3, 0))), \"\")","v":""},{"$f":"IF(X156<>\"\", IF(INDEX('Full set Core Client Indicator'!$A$3:$AB$351, MATCH(Selection_Hide2!$A156, 'Full set Core Client Indicator'!$A$3:$A$351, 0), MATCH(Selection_Hide2!Y$5, 'Full set Core Client Indicator'!$A$3:$AB$3, 0))=\"\", \"\",  INDEX('Full set Core Client Indicator'!$A$3:$AB$351, MATCH(Selection_Hide2!$A156, 'Full set Core Client Indicator'!$A$3:$A$351, 0), MATCH(Selection_Hide2!Y$5, 'Full set Core Client Indicator'!$A$3:$AB$3, 0))), \"\")","v":""},{"$f":"IF(Y156<>\"\", IF(INDEX('Full set Core Client Indicator'!$A$3:$AB$351, MATCH(Selection_Hide2!$A156, 'Full set Core Client Indicator'!$A$3:$A$351, 0), MATCH(Selection_Hide2!Z$5, 'Full set Core Client Indicator'!$A$3:$AB$3, 0))=\"\", \"\",  INDEX('Full set Core Client Indicator'!$A$3:$AB$351, MATCH(Selection_Hide2!$A156, 'Full set Core Client Indicator'!$A$3:$A$351, 0), MATCH(Selection_Hide2!Z$5, 'Full set Core Client Indicator'!$A$3:$AB$3, 0))), \"\")","v":""},{"$f":"IF(Z156<>\"\", IF(INDEX('Full set Core Client Indicator'!$A$3:$AB$351, MATCH(Selection_Hide2!$A156, 'Full set Core Client Indicator'!$A$3:$A$351, 0), MATCH(Selection_Hide2!AA$5, 'Full set Core Client Indicator'!$A$3:$AB$3, 0))=\"\", \"\",  INDEX('Full set Core Client Indicator'!$A$3:$AB$351, MATCH(Selection_Hide2!$A156, 'Full set Core Client Indicator'!$A$3:$A$351, 0), MATCH(Selection_Hide2!AA$5, 'Full set Core Client Indicator'!$A$3:$AB$3, 0))), \"\")","v":""},{"$f":"IF(AA156<>\"\", IF(INDEX('Full set Core Client Indicator'!$A$3:$AB$351, MATCH(Selection_Hide2!$A156, 'Full set Core Client Indicator'!$A$3:$A$351, 0), MATCH(Selection_Hide2!AB$5, 'Full set Core Client Indicator'!$A$3:$AB$3, 0))=\"\", \"\",  INDEX('Full set Core Client Indicator'!$A$3:$AB$351, MATCH(Selection_Hide2!$A156, 'Full set Core Client Indicator'!$A$3:$A$351, 0), MATCH(Selection_Hide2!AB$5, 'Full set Core Client Indicator'!$A$3:$AB$3, 0))), \"\")","v":""}]
[{"$f":"IF(AND(Selection_Hide1!C155<>0, Selection_Hide1!C155<>\"Grand Total\"), Selection_Hide1!C155, \"\")","v":""},{"$f":"IF(A157<>\"\", IF(INDEX('Full set Core Client Indicator'!$A$3:$AB$351, MATCH(Selection_Hide2!$A157, 'Full set Core Client Indicator'!$A$3:$A$351, 0), MATCH(Selection_Hide2!B$5, 'Full set Core Client Indicator'!$A$3:$AB$3, 0))=\"\", \"\",  INDEX('Full set Core Client Indicator'!$A$3:$AB$351, MATCH(Selection_Hide2!$A157, 'Full set Core Client Indicator'!$A$3:$A$351, 0), MATCH(Selection_Hide2!B$5, 'Full set Core Client Indicator'!$A$3:$AB$3, 0))), \"\")","v":""},{"$f":"IF(B157<>\"\", IF(INDEX('Full set Core Client Indicator'!$A$3:$AB$351, MATCH(Selection_Hide2!$A157, 'Full set Core Client Indicator'!$A$3:$A$351, 0), MATCH(Selection_Hide2!C$5, 'Full set Core Client Indicator'!$A$3:$AB$3, 0))=\"\", \"\",  INDEX('Full set Core Client Indicator'!$A$3:$AB$351, MATCH(Selection_Hide2!$A157, 'Full set Core Client Indicator'!$A$3:$A$351, 0), MATCH(Selection_Hide2!C$5, 'Full set Core Client Indicator'!$A$3:$AB$3, 0))), \"\")","v":""},{"$f":"IF(C157<>\"\", IF(INDEX('Full set Core Client Indicator'!$A$3:$AB$351, MATCH(Selection_Hide2!$A157, 'Full set Core Client Indicator'!$A$3:$A$351, 0), MATCH(Selection_Hide2!D$5, 'Full set Core Client Indicator'!$A$3:$AB$3, 0))=\"\", \"\",  INDEX('Full set Core Client Indicator'!$A$3:$AB$351, MATCH(Selection_Hide2!$A157, 'Full set Core Client Indicator'!$A$3:$A$351, 0), MATCH(Selection_Hide2!D$5, 'Full set Core Client Indicator'!$A$3:$AB$3, 0))), \"\")","v":""},{"$f":"IF(D157<>\"\", IF(INDEX('Full set Core Client Indicator'!$A$3:$AB$351, MATCH(Selection_Hide2!$A157, 'Full set Core Client Indicator'!$A$3:$A$351, 0), MATCH(Selection_Hide2!E$5, 'Full set Core Client Indicator'!$A$3:$AB$3, 0))=\"\", \"\",  INDEX('Full set Core Client Indicator'!$A$3:$AB$351, MATCH(Selection_Hide2!$A157, 'Full set Core Client Indicator'!$A$3:$A$351, 0), MATCH(Selection_Hide2!E$5, 'Full set Core Client Indicator'!$A$3:$AB$3, 0))), \"\")","v":""},{"$f":"IF(E157<>\"\", IF(INDEX('Full set Core Client Indicator'!$A$3:$AB$351, MATCH(Selection_Hide2!$A157, 'Full set Core Client Indicator'!$A$3:$A$351, 0), MATCH(Selection_Hide2!F$5, 'Full set Core Client Indicator'!$A$3:$AB$3, 0))=\"\", \"\",  INDEX('Full set Core Client Indicator'!$A$3:$AB$351, MATCH(Selection_Hide2!$A157, 'Full set Core Client Indicator'!$A$3:$A$351, 0), MATCH(Selection_Hide2!F$5, 'Full set Core Client Indicator'!$A$3:$AB$3, 0))), \"\")","v":""},{"$f":"IF(F157<>\"\", IF(INDEX('Full set Core Client Indicator'!$A$3:$AB$351, MATCH(Selection_Hide2!$A157, 'Full set Core Client Indicator'!$A$3:$A$351, 0), MATCH(Selection_Hide2!G$5, 'Full set Core Client Indicator'!$A$3:$AB$3, 0))=\"\", \"\",  INDEX('Full set Core Client Indicator'!$A$3:$AB$351, MATCH(Selection_Hide2!$A157, 'Full set Core Client Indicator'!$A$3:$A$351, 0), MATCH(Selection_Hide2!G$5, 'Full set Core Client Indicator'!$A$3:$AB$3, 0))), \"\")","v":""},{"$f":"IF(G157<>\"\", IF(INDEX('Full set Core Client Indicator'!$A$3:$AB$351, MATCH(Selection_Hide2!$A157, 'Full set Core Client Indicator'!$A$3:$A$351, 0), MATCH(Selection_Hide2!H$5, 'Full set Core Client Indicator'!$A$3:$AB$3, 0))=\"\", \"\",  INDEX('Full set Core Client Indicator'!$A$3:$AB$351, MATCH(Selection_Hide2!$A157, 'Full set Core Client Indicator'!$A$3:$A$351, 0), MATCH(Selection_Hide2!H$5, 'Full set Core Client Indicator'!$A$3:$AB$3, 0))), \"\")","v":""},{"$f":"IF(H157<>\"\", IF(INDEX('Full set Core Client Indicator'!$A$3:$AB$351, MATCH(Selection_Hide2!$A157, 'Full set Core Client Indicator'!$A$3:$A$351, 0), MATCH(Selection_Hide2!I$5, 'Full set Core Client Indicator'!$A$3:$AB$3, 0))=\"\", \"\",  INDEX('Full set Core Client Indicator'!$A$3:$AB$351, MATCH(Selection_Hide2!$A157, 'Full set Core Client Indicator'!$A$3:$A$351, 0), MATCH(Selection_Hide2!I$5, 'Full set Core Client Indicator'!$A$3:$AB$3, 0))), \"\")","v":""},{"$f":"IF(I157<>\"\", IF(INDEX('Full set Core Client Indicator'!$A$3:$AB$351, MATCH(Selection_Hide2!$A157, 'Full set Core Client Indicator'!$A$3:$A$351, 0), MATCH(Selection_Hide2!J$5, 'Full set Core Client Indicator'!$A$3:$AB$3, 0))=\"\", \"\",  INDEX('Full set Core Client Indicator'!$A$3:$AB$351, MATCH(Selection_Hide2!$A157, 'Full set Core Client Indicator'!$A$3:$A$351, 0), MATCH(Selection_Hide2!J$5, 'Full set Core Client Indicator'!$A$3:$AB$3, 0))), \"\")","v":""},{"$f":"IF(J157<>\"\", IF(INDEX('Full set Core Client Indicator'!$A$3:$AB$351, MATCH(Selection_Hide2!$A157, 'Full set Core Client Indicator'!$A$3:$A$351, 0), MATCH(Selection_Hide2!K$5, 'Full set Core Client Indicator'!$A$3:$AB$3, 0))=\"\", \"\",  INDEX('Full set Core Client Indicator'!$A$3:$AB$351, MATCH(Selection_Hide2!$A157, 'Full set Core Client Indicator'!$A$3:$A$351, 0), MATCH(Selection_Hide2!K$5, 'Full set Core Client Indicator'!$A$3:$AB$3, 0))), \"\")","v":""},{"$f":"IF(K157<>\"\", IF(INDEX('Full set Core Client Indicator'!$A$3:$AB$351, MATCH(Selection_Hide2!$A157, 'Full set Core Client Indicator'!$A$3:$A$351, 0), MATCH(Selection_Hide2!L$5, 'Full set Core Client Indicator'!$A$3:$AB$3, 0))=\"\", \"\",  INDEX('Full set Core Client Indicator'!$A$3:$AB$351, MATCH(Selection_Hide2!$A157, 'Full set Core Client Indicator'!$A$3:$A$351, 0), MATCH(Selection_Hide2!L$5, 'Full set Core Client Indicator'!$A$3:$AB$3, 0))), \"\")","v":""},{"$f":"IF(L157<>\"\", IF(INDEX('Full set Core Client Indicator'!$A$3:$AB$351, MATCH(Selection_Hide2!$A157, 'Full set Core Client Indicator'!$A$3:$A$351, 0), MATCH(Selection_Hide2!M$5, 'Full set Core Client Indicator'!$A$3:$AB$3, 0))=\"\", \"\",  INDEX('Full set Core Client Indicator'!$A$3:$AB$351, MATCH(Selection_Hide2!$A157, 'Full set Core Client Indicator'!$A$3:$A$351, 0), MATCH(Selection_Hide2!M$5, 'Full set Core Client Indicator'!$A$3:$AB$3, 0))), \"\")","v":""},{"$f":"IF(M157<>\"\", IF(INDEX('Full set Core Client Indicator'!$A$3:$AB$351, MATCH(Selection_Hide2!$A157, 'Full set Core Client Indicator'!$A$3:$A$351, 0), MATCH(Selection_Hide2!N$5, 'Full set Core Client Indicator'!$A$3:$AB$3, 0))=\"\", \"\",  INDEX('Full set Core Client Indicator'!$A$3:$AB$351, MATCH(Selection_Hide2!$A157, 'Full set Core Client Indicator'!$A$3:$A$351, 0), MATCH(Selection_Hide2!N$5, 'Full set Core Client Indicator'!$A$3:$AB$3, 0))), \"\")","v":""},{"$f":"IF(N157<>\"\", IF(INDEX('Full set Core Client Indicator'!$A$3:$AB$351, MATCH(Selection_Hide2!$A157, 'Full set Core Client Indicator'!$A$3:$A$351, 0), MATCH(Selection_Hide2!O$5, 'Full set Core Client Indicator'!$A$3:$AB$3, 0))=\"\", \"\",  INDEX('Full set Core Client Indicator'!$A$3:$AB$351, MATCH(Selection_Hide2!$A157, 'Full set Core Client Indicator'!$A$3:$A$351, 0), MATCH(Selection_Hide2!O$5, 'Full set Core Client Indicator'!$A$3:$AB$3, 0))), \"\")","v":""},{"$f":"IF(O157<>\"\", IF(INDEX('Full set Core Client Indicator'!$A$3:$AB$351, MATCH(Selection_Hide2!$A157, 'Full set Core Client Indicator'!$A$3:$A$351, 0), MATCH(Selection_Hide2!P$5, 'Full set Core Client Indicator'!$A$3:$AB$3, 0))=\"\", \"\",  INDEX('Full set Core Client Indicator'!$A$3:$AB$351, MATCH(Selection_Hide2!$A157, 'Full set Core Client Indicator'!$A$3:$A$351, 0), MATCH(Selection_Hide2!P$5, 'Full set Core Client Indicator'!$A$3:$AB$3, 0))), \"\")","v":""},{"$f":"IF(P157<>\"\", IF(INDEX('Full set Core Client Indicator'!$A$3:$AB$351, MATCH(Selection_Hide2!$A157, 'Full set Core Client Indicator'!$A$3:$A$351, 0), MATCH(Selection_Hide2!Q$5, 'Full set Core Client Indicator'!$A$3:$AB$3, 0))=\"\", \"\",  INDEX('Full set Core Client Indicator'!$A$3:$AB$351, MATCH(Selection_Hide2!$A157, 'Full set Core Client Indicator'!$A$3:$A$351, 0), MATCH(Selection_Hide2!Q$5, 'Full set Core Client Indicator'!$A$3:$AB$3, 0))), \"\")","v":""},{"$f":"IF(Q157<>\"\", IF(INDEX('Full set Core Client Indicator'!$A$3:$AB$351, MATCH(Selection_Hide2!$A157, 'Full set Core Client Indicator'!$A$3:$A$351, 0), MATCH(Selection_Hide2!R$5, 'Full set Core Client Indicator'!$A$3:$AB$3, 0))=\"\", \"\",  INDEX('Full set Core Client Indicator'!$A$3:$AB$351, MATCH(Selection_Hide2!$A157, 'Full set Core Client Indicator'!$A$3:$A$351, 0), MATCH(Selection_Hide2!R$5, 'Full set Core Client Indicator'!$A$3:$AB$3, 0))), \"\")","v":""},{"$f":"IF(R157<>\"\", IF(INDEX('Full set Core Client Indicator'!$A$3:$AB$351, MATCH(Selection_Hide2!$A157, 'Full set Core Client Indicator'!$A$3:$A$351, 0), MATCH(Selection_Hide2!S$5, 'Full set Core Client Indicator'!$A$3:$AB$3, 0))=\"\", \"\",  INDEX('Full set Core Client Indicator'!$A$3:$AB$351, MATCH(Selection_Hide2!$A157, 'Full set Core Client Indicator'!$A$3:$A$351, 0), MATCH(Selection_Hide2!S$5, 'Full set Core Client Indicator'!$A$3:$AB$3, 0))), \"\")","v":""},{"$f":"IF(S157<>\"\", IF(INDEX('Full set Core Client Indicator'!$A$3:$AB$351, MATCH(Selection_Hide2!$A157, 'Full set Core Client Indicator'!$A$3:$A$351, 0), MATCH(Selection_Hide2!T$5, 'Full set Core Client Indicator'!$A$3:$AB$3, 0))=\"\", \"\",  INDEX('Full set Core Client Indicator'!$A$3:$AB$351, MATCH(Selection_Hide2!$A157, 'Full set Core Client Indicator'!$A$3:$A$351, 0), MATCH(Selection_Hide2!T$5, 'Full set Core Client Indicator'!$A$3:$AB$3, 0))), \"\")","v":""},{"$f":"IF(T157<>\"\", IF(INDEX('Full set Core Client Indicator'!$A$3:$AB$351, MATCH(Selection_Hide2!$A157, 'Full set Core Client Indicator'!$A$3:$A$351, 0), MATCH(Selection_Hide2!U$5, 'Full set Core Client Indicator'!$A$3:$AB$3, 0))=\"\", \"\",  INDEX('Full set Core Client Indicator'!$A$3:$AB$351, MATCH(Selection_Hide2!$A157, 'Full set Core Client Indicator'!$A$3:$A$351, 0), MATCH(Selection_Hide2!U$5, 'Full set Core Client Indicator'!$A$3:$AB$3, 0))), \"\")","v":""},{"$f":"IF(U157<>\"\", IF(INDEX('Full set Core Client Indicator'!$A$3:$AB$351, MATCH(Selection_Hide2!$A157, 'Full set Core Client Indicator'!$A$3:$A$351, 0), MATCH(Selection_Hide2!V$5, 'Full set Core Client Indicator'!$A$3:$AB$3, 0))=\"\", \"\",  INDEX('Full set Core Client Indicator'!$A$3:$AB$351, MATCH(Selection_Hide2!$A157, 'Full set Core Client Indicator'!$A$3:$A$351, 0), MATCH(Selection_Hide2!V$5, 'Full set Core Client Indicator'!$A$3:$AB$3, 0))), \"\")","v":""},{"$f":"IF(V157<>\"\", IF(INDEX('Full set Core Client Indicator'!$A$3:$AB$351, MATCH(Selection_Hide2!$A157, 'Full set Core Client Indicator'!$A$3:$A$351, 0), MATCH(Selection_Hide2!W$5, 'Full set Core Client Indicator'!$A$3:$AB$3, 0))=\"\", \"\",  INDEX('Full set Core Client Indicator'!$A$3:$AB$351, MATCH(Selection_Hide2!$A157, 'Full set Core Client Indicator'!$A$3:$A$351, 0), MATCH(Selection_Hide2!W$5, 'Full set Core Client Indicator'!$A$3:$AB$3, 0))), \"\")","v":""},{"$f":"IF(W157<>\"\", IF(INDEX('Full set Core Client Indicator'!$A$3:$AB$351, MATCH(Selection_Hide2!$A157, 'Full set Core Client Indicator'!$A$3:$A$351, 0), MATCH(Selection_Hide2!X$5, 'Full set Core Client Indicator'!$A$3:$AB$3, 0))=\"\", \"\",  INDEX('Full set Core Client Indicator'!$A$3:$AB$351, MATCH(Selection_Hide2!$A157, 'Full set Core Client Indicator'!$A$3:$A$351, 0), MATCH(Selection_Hide2!X$5, 'Full set Core Client Indicator'!$A$3:$AB$3, 0))), \"\")","v":""},{"$f":"IF(X157<>\"\", IF(INDEX('Full set Core Client Indicator'!$A$3:$AB$351, MATCH(Selection_Hide2!$A157, 'Full set Core Client Indicator'!$A$3:$A$351, 0), MATCH(Selection_Hide2!Y$5, 'Full set Core Client Indicator'!$A$3:$AB$3, 0))=\"\", \"\",  INDEX('Full set Core Client Indicator'!$A$3:$AB$351, MATCH(Selection_Hide2!$A157, 'Full set Core Client Indicator'!$A$3:$A$351, 0), MATCH(Selection_Hide2!Y$5, 'Full set Core Client Indicator'!$A$3:$AB$3, 0))), \"\")","v":""},{"$f":"IF(Y157<>\"\", IF(INDEX('Full set Core Client Indicator'!$A$3:$AB$351, MATCH(Selection_Hide2!$A157, 'Full set Core Client Indicator'!$A$3:$A$351, 0), MATCH(Selection_Hide2!Z$5, 'Full set Core Client Indicator'!$A$3:$AB$3, 0))=\"\", \"\",  INDEX('Full set Core Client Indicator'!$A$3:$AB$351, MATCH(Selection_Hide2!$A157, 'Full set Core Client Indicator'!$A$3:$A$351, 0), MATCH(Selection_Hide2!Z$5, 'Full set Core Client Indicator'!$A$3:$AB$3, 0))), \"\")","v":""},{"$f":"IF(Z157<>\"\", IF(INDEX('Full set Core Client Indicator'!$A$3:$AB$351, MATCH(Selection_Hide2!$A157, 'Full set Core Client Indicator'!$A$3:$A$351, 0), MATCH(Selection_Hide2!AA$5, 'Full set Core Client Indicator'!$A$3:$AB$3, 0))=\"\", \"\",  INDEX('Full set Core Client Indicator'!$A$3:$AB$351, MATCH(Selection_Hide2!$A157, 'Full set Core Client Indicator'!$A$3:$A$351, 0), MATCH(Selection_Hide2!AA$5, 'Full set Core Client Indicator'!$A$3:$AB$3, 0))), \"\")","v":""},{"$f":"IF(AA157<>\"\", IF(INDEX('Full set Core Client Indicator'!$A$3:$AB$351, MATCH(Selection_Hide2!$A157, 'Full set Core Client Indicator'!$A$3:$A$351, 0), MATCH(Selection_Hide2!AB$5, 'Full set Core Client Indicator'!$A$3:$AB$3, 0))=\"\", \"\",  INDEX('Full set Core Client Indicator'!$A$3:$AB$351, MATCH(Selection_Hide2!$A157, 'Full set Core Client Indicator'!$A$3:$A$351, 0), MATCH(Selection_Hide2!AB$5, 'Full set Core Client Indicator'!$A$3:$AB$3, 0))), \"\")","v":""}]
[{"$f":"IF(AND(Selection_Hide1!C156<>0, Selection_Hide1!C156<>\"Grand Total\"), Selection_Hide1!C156, \"\")","v":""},{"$f":"IF(A158<>\"\", IF(INDEX('Full set Core Client Indicator'!$A$3:$AB$351, MATCH(Selection_Hide2!$A158, 'Full set Core Client Indicator'!$A$3:$A$351, 0), MATCH(Selection_Hide2!B$5, 'Full set Core Client Indicator'!$A$3:$AB$3, 0))=\"\", \"\",  INDEX('Full set Core Client Indicator'!$A$3:$AB$351, MATCH(Selection_Hide2!$A158, 'Full set Core Client Indicator'!$A$3:$A$351, 0), MATCH(Selection_Hide2!B$5, 'Full set Core Client Indicator'!$A$3:$AB$3, 0))), \"\")","v":""},{"$f":"IF(B158<>\"\", IF(INDEX('Full set Core Client Indicator'!$A$3:$AB$351, MATCH(Selection_Hide2!$A158, 'Full set Core Client Indicator'!$A$3:$A$351, 0), MATCH(Selection_Hide2!C$5, 'Full set Core Client Indicator'!$A$3:$AB$3, 0))=\"\", \"\",  INDEX('Full set Core Client Indicator'!$A$3:$AB$351, MATCH(Selection_Hide2!$A158, 'Full set Core Client Indicator'!$A$3:$A$351, 0), MATCH(Selection_Hide2!C$5, 'Full set Core Client Indicator'!$A$3:$AB$3, 0))), \"\")","v":""},{"$f":"IF(C158<>\"\", IF(INDEX('Full set Core Client Indicator'!$A$3:$AB$351, MATCH(Selection_Hide2!$A158, 'Full set Core Client Indicator'!$A$3:$A$351, 0), MATCH(Selection_Hide2!D$5, 'Full set Core Client Indicator'!$A$3:$AB$3, 0))=\"\", \"\",  INDEX('Full set Core Client Indicator'!$A$3:$AB$351, MATCH(Selection_Hide2!$A158, 'Full set Core Client Indicator'!$A$3:$A$351, 0), MATCH(Selection_Hide2!D$5, 'Full set Core Client Indicator'!$A$3:$AB$3, 0))), \"\")","v":""},{"$f":"IF(D158<>\"\", IF(INDEX('Full set Core Client Indicator'!$A$3:$AB$351, MATCH(Selection_Hide2!$A158, 'Full set Core Client Indicator'!$A$3:$A$351, 0), MATCH(Selection_Hide2!E$5, 'Full set Core Client Indicator'!$A$3:$AB$3, 0))=\"\", \"\",  INDEX('Full set Core Client Indicator'!$A$3:$AB$351, MATCH(Selection_Hide2!$A158, 'Full set Core Client Indicator'!$A$3:$A$351, 0), MATCH(Selection_Hide2!E$5, 'Full set Core Client Indicator'!$A$3:$AB$3, 0))), \"\")","v":""},{"$f":"IF(E158<>\"\", IF(INDEX('Full set Core Client Indicator'!$A$3:$AB$351, MATCH(Selection_Hide2!$A158, 'Full set Core Client Indicator'!$A$3:$A$351, 0), MATCH(Selection_Hide2!F$5, 'Full set Core Client Indicator'!$A$3:$AB$3, 0))=\"\", \"\",  INDEX('Full set Core Client Indicator'!$A$3:$AB$351, MATCH(Selection_Hide2!$A158, 'Full set Core Client Indicator'!$A$3:$A$351, 0), MATCH(Selection_Hide2!F$5, 'Full set Core Client Indicator'!$A$3:$AB$3, 0))), \"\")","v":""},{"$f":"IF(F158<>\"\", IF(INDEX('Full set Core Client Indicator'!$A$3:$AB$351, MATCH(Selection_Hide2!$A158, 'Full set Core Client Indicator'!$A$3:$A$351, 0), MATCH(Selection_Hide2!G$5, 'Full set Core Client Indicator'!$A$3:$AB$3, 0))=\"\", \"\",  INDEX('Full set Core Client Indicator'!$A$3:$AB$351, MATCH(Selection_Hide2!$A158, 'Full set Core Client Indicator'!$A$3:$A$351, 0), MATCH(Selection_Hide2!G$5, 'Full set Core Client Indicator'!$A$3:$AB$3, 0))), \"\")","v":""},{"$f":"IF(G158<>\"\", IF(INDEX('Full set Core Client Indicator'!$A$3:$AB$351, MATCH(Selection_Hide2!$A158, 'Full set Core Client Indicator'!$A$3:$A$351, 0), MATCH(Selection_Hide2!H$5, 'Full set Core Client Indicator'!$A$3:$AB$3, 0))=\"\", \"\",  INDEX('Full set Core Client Indicator'!$A$3:$AB$351, MATCH(Selection_Hide2!$A158, 'Full set Core Client Indicator'!$A$3:$A$351, 0), MATCH(Selection_Hide2!H$5, 'Full set Core Client Indicator'!$A$3:$AB$3, 0))), \"\")","v":""},{"$f":"IF(H158<>\"\", IF(INDEX('Full set Core Client Indicator'!$A$3:$AB$351, MATCH(Selection_Hide2!$A158, 'Full set Core Client Indicator'!$A$3:$A$351, 0), MATCH(Selection_Hide2!I$5, 'Full set Core Client Indicator'!$A$3:$AB$3, 0))=\"\", \"\",  INDEX('Full set Core Client Indicator'!$A$3:$AB$351, MATCH(Selection_Hide2!$A158, 'Full set Core Client Indicator'!$A$3:$A$351, 0), MATCH(Selection_Hide2!I$5, 'Full set Core Client Indicator'!$A$3:$AB$3, 0))), \"\")","v":""},{"$f":"IF(I158<>\"\", IF(INDEX('Full set Core Client Indicator'!$A$3:$AB$351, MATCH(Selection_Hide2!$A158, 'Full set Core Client Indicator'!$A$3:$A$351, 0), MATCH(Selection_Hide2!J$5, 'Full set Core Client Indicator'!$A$3:$AB$3, 0))=\"\", \"\",  INDEX('Full set Core Client Indicator'!$A$3:$AB$351, MATCH(Selection_Hide2!$A158, 'Full set Core Client Indicator'!$A$3:$A$351, 0), MATCH(Selection_Hide2!J$5, 'Full set Core Client Indicator'!$A$3:$AB$3, 0))), \"\")","v":""},{"$f":"IF(J158<>\"\", IF(INDEX('Full set Core Client Indicator'!$A$3:$AB$351, MATCH(Selection_Hide2!$A158, 'Full set Core Client Indicator'!$A$3:$A$351, 0), MATCH(Selection_Hide2!K$5, 'Full set Core Client Indicator'!$A$3:$AB$3, 0))=\"\", \"\",  INDEX('Full set Core Client Indicator'!$A$3:$AB$351, MATCH(Selection_Hide2!$A158, 'Full set Core Client Indicator'!$A$3:$A$351, 0), MATCH(Selection_Hide2!K$5, 'Full set Core Client Indicator'!$A$3:$AB$3, 0))), \"\")","v":""},{"$f":"IF(K158<>\"\", IF(INDEX('Full set Core Client Indicator'!$A$3:$AB$351, MATCH(Selection_Hide2!$A158, 'Full set Core Client Indicator'!$A$3:$A$351, 0), MATCH(Selection_Hide2!L$5, 'Full set Core Client Indicator'!$A$3:$AB$3, 0))=\"\", \"\",  INDEX('Full set Core Client Indicator'!$A$3:$AB$351, MATCH(Selection_Hide2!$A158, 'Full set Core Client Indicator'!$A$3:$A$351, 0), MATCH(Selection_Hide2!L$5, 'Full set Core Client Indicator'!$A$3:$AB$3, 0))), \"\")","v":""},{"$f":"IF(L158<>\"\", IF(INDEX('Full set Core Client Indicator'!$A$3:$AB$351, MATCH(Selection_Hide2!$A158, 'Full set Core Client Indicator'!$A$3:$A$351, 0), MATCH(Selection_Hide2!M$5, 'Full set Core Client Indicator'!$A$3:$AB$3, 0))=\"\", \"\",  INDEX('Full set Core Client Indicator'!$A$3:$AB$351, MATCH(Selection_Hide2!$A158, 'Full set Core Client Indicator'!$A$3:$A$351, 0), MATCH(Selection_Hide2!M$5, 'Full set Core Client Indicator'!$A$3:$AB$3, 0))), \"\")","v":""},{"$f":"IF(M158<>\"\", IF(INDEX('Full set Core Client Indicator'!$A$3:$AB$351, MATCH(Selection_Hide2!$A158, 'Full set Core Client Indicator'!$A$3:$A$351, 0), MATCH(Selection_Hide2!N$5, 'Full set Core Client Indicator'!$A$3:$AB$3, 0))=\"\", \"\",  INDEX('Full set Core Client Indicator'!$A$3:$AB$351, MATCH(Selection_Hide2!$A158, 'Full set Core Client Indicator'!$A$3:$A$351, 0), MATCH(Selection_Hide2!N$5, 'Full set Core Client Indicator'!$A$3:$AB$3, 0))), \"\")","v":""},{"$f":"IF(N158<>\"\", IF(INDEX('Full set Core Client Indicator'!$A$3:$AB$351, MATCH(Selection_Hide2!$A158, 'Full set Core Client Indicator'!$A$3:$A$351, 0), MATCH(Selection_Hide2!O$5, 'Full set Core Client Indicator'!$A$3:$AB$3, 0))=\"\", \"\",  INDEX('Full set Core Client Indicator'!$A$3:$AB$351, MATCH(Selection_Hide2!$A158, 'Full set Core Client Indicator'!$A$3:$A$351, 0), MATCH(Selection_Hide2!O$5, 'Full set Core Client Indicator'!$A$3:$AB$3, 0))), \"\")","v":""},{"$f":"IF(O158<>\"\", IF(INDEX('Full set Core Client Indicator'!$A$3:$AB$351, MATCH(Selection_Hide2!$A158, 'Full set Core Client Indicator'!$A$3:$A$351, 0), MATCH(Selection_Hide2!P$5, 'Full set Core Client Indicator'!$A$3:$AB$3, 0))=\"\", \"\",  INDEX('Full set Core Client Indicator'!$A$3:$AB$351, MATCH(Selection_Hide2!$A158, 'Full set Core Client Indicator'!$A$3:$A$351, 0), MATCH(Selection_Hide2!P$5, 'Full set Core Client Indicator'!$A$3:$AB$3, 0))), \"\")","v":""},{"$f":"IF(P158<>\"\", IF(INDEX('Full set Core Client Indicator'!$A$3:$AB$351, MATCH(Selection_Hide2!$A158, 'Full set Core Client Indicator'!$A$3:$A$351, 0), MATCH(Selection_Hide2!Q$5, 'Full set Core Client Indicator'!$A$3:$AB$3, 0))=\"\", \"\",  INDEX('Full set Core Client Indicator'!$A$3:$AB$351, MATCH(Selection_Hide2!$A158, 'Full set Core Client Indicator'!$A$3:$A$351, 0), MATCH(Selection_Hide2!Q$5, 'Full set Core Client Indicator'!$A$3:$AB$3, 0))), \"\")","v":""},{"$f":"IF(Q158<>\"\", IF(INDEX('Full set Core Client Indicator'!$A$3:$AB$351, MATCH(Selection_Hide2!$A158, 'Full set Core Client Indicator'!$A$3:$A$351, 0), MATCH(Selection_Hide2!R$5, 'Full set Core Client Indicator'!$A$3:$AB$3, 0))=\"\", \"\",  INDEX('Full set Core Client Indicator'!$A$3:$AB$351, MATCH(Selection_Hide2!$A158, 'Full set Core Client Indicator'!$A$3:$A$351, 0), MATCH(Selection_Hide2!R$5, 'Full set Core Client Indicator'!$A$3:$AB$3, 0))), \"\")","v":""},{"$f":"IF(R158<>\"\", IF(INDEX('Full set Core Client Indicator'!$A$3:$AB$351, MATCH(Selection_Hide2!$A158, 'Full set Core Client Indicator'!$A$3:$A$351, 0), MATCH(Selection_Hide2!S$5, 'Full set Core Client Indicator'!$A$3:$AB$3, 0))=\"\", \"\",  INDEX('Full set Core Client Indicator'!$A$3:$AB$351, MATCH(Selection_Hide2!$A158, 'Full set Core Client Indicator'!$A$3:$A$351, 0), MATCH(Selection_Hide2!S$5, 'Full set Core Client Indicator'!$A$3:$AB$3, 0))), \"\")","v":""},{"$f":"IF(S158<>\"\", IF(INDEX('Full set Core Client Indicator'!$A$3:$AB$351, MATCH(Selection_Hide2!$A158, 'Full set Core Client Indicator'!$A$3:$A$351, 0), MATCH(Selection_Hide2!T$5, 'Full set Core Client Indicator'!$A$3:$AB$3, 0))=\"\", \"\",  INDEX('Full set Core Client Indicator'!$A$3:$AB$351, MATCH(Selection_Hide2!$A158, 'Full set Core Client Indicator'!$A$3:$A$351, 0), MATCH(Selection_Hide2!T$5, 'Full set Core Client Indicator'!$A$3:$AB$3, 0))), \"\")","v":""},{"$f":"IF(T158<>\"\", IF(INDEX('Full set Core Client Indicator'!$A$3:$AB$351, MATCH(Selection_Hide2!$A158, 'Full set Core Client Indicator'!$A$3:$A$351, 0), MATCH(Selection_Hide2!U$5, 'Full set Core Client Indicator'!$A$3:$AB$3, 0))=\"\", \"\",  INDEX('Full set Core Client Indicator'!$A$3:$AB$351, MATCH(Selection_Hide2!$A158, 'Full set Core Client Indicator'!$A$3:$A$351, 0), MATCH(Selection_Hide2!U$5, 'Full set Core Client Indicator'!$A$3:$AB$3, 0))), \"\")","v":""},{"$f":"IF(U158<>\"\", IF(INDEX('Full set Core Client Indicator'!$A$3:$AB$351, MATCH(Selection_Hide2!$A158, 'Full set Core Client Indicator'!$A$3:$A$351, 0), MATCH(Selection_Hide2!V$5, 'Full set Core Client Indicator'!$A$3:$AB$3, 0))=\"\", \"\",  INDEX('Full set Core Client Indicator'!$A$3:$AB$351, MATCH(Selection_Hide2!$A158, 'Full set Core Client Indicator'!$A$3:$A$351, 0), MATCH(Selection_Hide2!V$5, 'Full set Core Client Indicator'!$A$3:$AB$3, 0))), \"\")","v":""},{"$f":"IF(V158<>\"\", IF(INDEX('Full set Core Client Indicator'!$A$3:$AB$351, MATCH(Selection_Hide2!$A158, 'Full set Core Client Indicator'!$A$3:$A$351, 0), MATCH(Selection_Hide2!W$5, 'Full set Core Client Indicator'!$A$3:$AB$3, 0))=\"\", \"\",  INDEX('Full set Core Client Indicator'!$A$3:$AB$351, MATCH(Selection_Hide2!$A158, 'Full set Core Client Indicator'!$A$3:$A$351, 0), MATCH(Selection_Hide2!W$5, 'Full set Core Client Indicator'!$A$3:$AB$3, 0))), \"\")","v":""},{"$f":"IF(W158<>\"\", IF(INDEX('Full set Core Client Indicator'!$A$3:$AB$351, MATCH(Selection_Hide2!$A158, 'Full set Core Client Indicator'!$A$3:$A$351, 0), MATCH(Selection_Hide2!X$5, 'Full set Core Client Indicator'!$A$3:$AB$3, 0))=\"\", \"\",  INDEX('Full set Core Client Indicator'!$A$3:$AB$351, MATCH(Selection_Hide2!$A158, 'Full set Core Client Indicator'!$A$3:$A$351, 0), MATCH(Selection_Hide2!X$5, 'Full set Core Client Indicator'!$A$3:$AB$3, 0))), \"\")","v":""},{"$f":"IF(X158<>\"\", IF(INDEX('Full set Core Client Indicator'!$A$3:$AB$351, MATCH(Selection_Hide2!$A158, 'Full set Core Client Indicator'!$A$3:$A$351, 0), MATCH(Selection_Hide2!Y$5, 'Full set Core Client Indicator'!$A$3:$AB$3, 0))=\"\", \"\",  INDEX('Full set Core Client Indicator'!$A$3:$AB$351, MATCH(Selection_Hide2!$A158, 'Full set Core Client Indicator'!$A$3:$A$351, 0), MATCH(Selection_Hide2!Y$5, 'Full set Core Client Indicator'!$A$3:$AB$3, 0))), \"\")","v":""},{"$f":"IF(Y158<>\"\", IF(INDEX('Full set Core Client Indicator'!$A$3:$AB$351, MATCH(Selection_Hide2!$A158, 'Full set Core Client Indicator'!$A$3:$A$351, 0), MATCH(Selection_Hide2!Z$5, 'Full set Core Client Indicator'!$A$3:$AB$3, 0))=\"\", \"\",  INDEX('Full set Core Client Indicator'!$A$3:$AB$351, MATCH(Selection_Hide2!$A158, 'Full set Core Client Indicator'!$A$3:$A$351, 0), MATCH(Selection_Hide2!Z$5, 'Full set Core Client Indicator'!$A$3:$AB$3, 0))), \"\")","v":""},{"$f":"IF(Z158<>\"\", IF(INDEX('Full set Core Client Indicator'!$A$3:$AB$351, MATCH(Selection_Hide2!$A158, 'Full set Core Client Indicator'!$A$3:$A$351, 0), MATCH(Selection_Hide2!AA$5, 'Full set Core Client Indicator'!$A$3:$AB$3, 0))=\"\", \"\",  INDEX('Full set Core Client Indicator'!$A$3:$AB$351, MATCH(Selection_Hide2!$A158, 'Full set Core Client Indicator'!$A$3:$A$351, 0), MATCH(Selection_Hide2!AA$5, 'Full set Core Client Indicator'!$A$3:$AB$3, 0))), \"\")","v":""},{"$f":"IF(AA158<>\"\", IF(INDEX('Full set Core Client Indicator'!$A$3:$AB$351, MATCH(Selection_Hide2!$A158, 'Full set Core Client Indicator'!$A$3:$A$351, 0), MATCH(Selection_Hide2!AB$5, 'Full set Core Client Indicator'!$A$3:$AB$3, 0))=\"\", \"\",  INDEX('Full set Core Client Indicator'!$A$3:$AB$351, MATCH(Selection_Hide2!$A158, 'Full set Core Client Indicator'!$A$3:$A$351, 0), MATCH(Selection_Hide2!AB$5, 'Full set Core Client Indicator'!$A$3:$AB$3, 0))), \"\")","v":""}]
[{"$f":"IF(AND(Selection_Hide1!C157<>0, Selection_Hide1!C157<>\"Grand Total\"), Selection_Hide1!C157, \"\")","v":""},{"$f":"IF(A159<>\"\", IF(INDEX('Full set Core Client Indicator'!$A$3:$AB$351, MATCH(Selection_Hide2!$A159, 'Full set Core Client Indicator'!$A$3:$A$351, 0), MATCH(Selection_Hide2!B$5, 'Full set Core Client Indicator'!$A$3:$AB$3, 0))=\"\", \"\",  INDEX('Full set Core Client Indicator'!$A$3:$AB$351, MATCH(Selection_Hide2!$A159, 'Full set Core Client Indicator'!$A$3:$A$351, 0), MATCH(Selection_Hide2!B$5, 'Full set Core Client Indicator'!$A$3:$AB$3, 0))), \"\")","v":""},{"$f":"IF(B159<>\"\", IF(INDEX('Full set Core Client Indicator'!$A$3:$AB$351, MATCH(Selection_Hide2!$A159, 'Full set Core Client Indicator'!$A$3:$A$351, 0), MATCH(Selection_Hide2!C$5, 'Full set Core Client Indicator'!$A$3:$AB$3, 0))=\"\", \"\",  INDEX('Full set Core Client Indicator'!$A$3:$AB$351, MATCH(Selection_Hide2!$A159, 'Full set Core Client Indicator'!$A$3:$A$351, 0), MATCH(Selection_Hide2!C$5, 'Full set Core Client Indicator'!$A$3:$AB$3, 0))), \"\")","v":""},{"$f":"IF(C159<>\"\", IF(INDEX('Full set Core Client Indicator'!$A$3:$AB$351, MATCH(Selection_Hide2!$A159, 'Full set Core Client Indicator'!$A$3:$A$351, 0), MATCH(Selection_Hide2!D$5, 'Full set Core Client Indicator'!$A$3:$AB$3, 0))=\"\", \"\",  INDEX('Full set Core Client Indicator'!$A$3:$AB$351, MATCH(Selection_Hide2!$A159, 'Full set Core Client Indicator'!$A$3:$A$351, 0), MATCH(Selection_Hide2!D$5, 'Full set Core Client Indicator'!$A$3:$AB$3, 0))), \"\")","v":""},{"$f":"IF(D159<>\"\", IF(INDEX('Full set Core Client Indicator'!$A$3:$AB$351, MATCH(Selection_Hide2!$A159, 'Full set Core Client Indicator'!$A$3:$A$351, 0), MATCH(Selection_Hide2!E$5, 'Full set Core Client Indicator'!$A$3:$AB$3, 0))=\"\", \"\",  INDEX('Full set Core Client Indicator'!$A$3:$AB$351, MATCH(Selection_Hide2!$A159, 'Full set Core Client Indicator'!$A$3:$A$351, 0), MATCH(Selection_Hide2!E$5, 'Full set Core Client Indicator'!$A$3:$AB$3, 0))), \"\")","v":""},{"$f":"IF(E159<>\"\", IF(INDEX('Full set Core Client Indicator'!$A$3:$AB$351, MATCH(Selection_Hide2!$A159, 'Full set Core Client Indicator'!$A$3:$A$351, 0), MATCH(Selection_Hide2!F$5, 'Full set Core Client Indicator'!$A$3:$AB$3, 0))=\"\", \"\",  INDEX('Full set Core Client Indicator'!$A$3:$AB$351, MATCH(Selection_Hide2!$A159, 'Full set Core Client Indicator'!$A$3:$A$351, 0), MATCH(Selection_Hide2!F$5, 'Full set Core Client Indicator'!$A$3:$AB$3, 0))), \"\")","v":""},{"$f":"IF(F159<>\"\", IF(INDEX('Full set Core Client Indicator'!$A$3:$AB$351, MATCH(Selection_Hide2!$A159, 'Full set Core Client Indicator'!$A$3:$A$351, 0), MATCH(Selection_Hide2!G$5, 'Full set Core Client Indicator'!$A$3:$AB$3, 0))=\"\", \"\",  INDEX('Full set Core Client Indicator'!$A$3:$AB$351, MATCH(Selection_Hide2!$A159, 'Full set Core Client Indicator'!$A$3:$A$351, 0), MATCH(Selection_Hide2!G$5, 'Full set Core Client Indicator'!$A$3:$AB$3, 0))), \"\")","v":""},{"$f":"IF(G159<>\"\", IF(INDEX('Full set Core Client Indicator'!$A$3:$AB$351, MATCH(Selection_Hide2!$A159, 'Full set Core Client Indicator'!$A$3:$A$351, 0), MATCH(Selection_Hide2!H$5, 'Full set Core Client Indicator'!$A$3:$AB$3, 0))=\"\", \"\",  INDEX('Full set Core Client Indicator'!$A$3:$AB$351, MATCH(Selection_Hide2!$A159, 'Full set Core Client Indicator'!$A$3:$A$351, 0), MATCH(Selection_Hide2!H$5, 'Full set Core Client Indicator'!$A$3:$AB$3, 0))), \"\")","v":""},{"$f":"IF(H159<>\"\", IF(INDEX('Full set Core Client Indicator'!$A$3:$AB$351, MATCH(Selection_Hide2!$A159, 'Full set Core Client Indicator'!$A$3:$A$351, 0), MATCH(Selection_Hide2!I$5, 'Full set Core Client Indicator'!$A$3:$AB$3, 0))=\"\", \"\",  INDEX('Full set Core Client Indicator'!$A$3:$AB$351, MATCH(Selection_Hide2!$A159, 'Full set Core Client Indicator'!$A$3:$A$351, 0), MATCH(Selection_Hide2!I$5, 'Full set Core Client Indicator'!$A$3:$AB$3, 0))), \"\")","v":""},{"$f":"IF(I159<>\"\", IF(INDEX('Full set Core Client Indicator'!$A$3:$AB$351, MATCH(Selection_Hide2!$A159, 'Full set Core Client Indicator'!$A$3:$A$351, 0), MATCH(Selection_Hide2!J$5, 'Full set Core Client Indicator'!$A$3:$AB$3, 0))=\"\", \"\",  INDEX('Full set Core Client Indicator'!$A$3:$AB$351, MATCH(Selection_Hide2!$A159, 'Full set Core Client Indicator'!$A$3:$A$351, 0), MATCH(Selection_Hide2!J$5, 'Full set Core Client Indicator'!$A$3:$AB$3, 0))), \"\")","v":""},{"$f":"IF(J159<>\"\", IF(INDEX('Full set Core Client Indicator'!$A$3:$AB$351, MATCH(Selection_Hide2!$A159, 'Full set Core Client Indicator'!$A$3:$A$351, 0), MATCH(Selection_Hide2!K$5, 'Full set Core Client Indicator'!$A$3:$AB$3, 0))=\"\", \"\",  INDEX('Full set Core Client Indicator'!$A$3:$AB$351, MATCH(Selection_Hide2!$A159, 'Full set Core Client Indicator'!$A$3:$A$351, 0), MATCH(Selection_Hide2!K$5, 'Full set Core Client Indicator'!$A$3:$AB$3, 0))), \"\")","v":""},{"$f":"IF(K159<>\"\", IF(INDEX('Full set Core Client Indicator'!$A$3:$AB$351, MATCH(Selection_Hide2!$A159, 'Full set Core Client Indicator'!$A$3:$A$351, 0), MATCH(Selection_Hide2!L$5, 'Full set Core Client Indicator'!$A$3:$AB$3, 0))=\"\", \"\",  INDEX('Full set Core Client Indicator'!$A$3:$AB$351, MATCH(Selection_Hide2!$A159, 'Full set Core Client Indicator'!$A$3:$A$351, 0), MATCH(Selection_Hide2!L$5, 'Full set Core Client Indicator'!$A$3:$AB$3, 0))), \"\")","v":""},{"$f":"IF(L159<>\"\", IF(INDEX('Full set Core Client Indicator'!$A$3:$AB$351, MATCH(Selection_Hide2!$A159, 'Full set Core Client Indicator'!$A$3:$A$351, 0), MATCH(Selection_Hide2!M$5, 'Full set Core Client Indicator'!$A$3:$AB$3, 0))=\"\", \"\",  INDEX('Full set Core Client Indicator'!$A$3:$AB$351, MATCH(Selection_Hide2!$A159, 'Full set Core Client Indicator'!$A$3:$A$351, 0), MATCH(Selection_Hide2!M$5, 'Full set Core Client Indicator'!$A$3:$AB$3, 0))), \"\")","v":""},{"$f":"IF(M159<>\"\", IF(INDEX('Full set Core Client Indicator'!$A$3:$AB$351, MATCH(Selection_Hide2!$A159, 'Full set Core Client Indicator'!$A$3:$A$351, 0), MATCH(Selection_Hide2!N$5, 'Full set Core Client Indicator'!$A$3:$AB$3, 0))=\"\", \"\",  INDEX('Full set Core Client Indicator'!$A$3:$AB$351, MATCH(Selection_Hide2!$A159, 'Full set Core Client Indicator'!$A$3:$A$351, 0), MATCH(Selection_Hide2!N$5, 'Full set Core Client Indicator'!$A$3:$AB$3, 0))), \"\")","v":""},{"$f":"IF(N159<>\"\", IF(INDEX('Full set Core Client Indicator'!$A$3:$AB$351, MATCH(Selection_Hide2!$A159, 'Full set Core Client Indicator'!$A$3:$A$351, 0), MATCH(Selection_Hide2!O$5, 'Full set Core Client Indicator'!$A$3:$AB$3, 0))=\"\", \"\",  INDEX('Full set Core Client Indicator'!$A$3:$AB$351, MATCH(Selection_Hide2!$A159, 'Full set Core Client Indicator'!$A$3:$A$351, 0), MATCH(Selection_Hide2!O$5, 'Full set Core Client Indicator'!$A$3:$AB$3, 0))), \"\")","v":""},{"$f":"IF(O159<>\"\", IF(INDEX('Full set Core Client Indicator'!$A$3:$AB$351, MATCH(Selection_Hide2!$A159, 'Full set Core Client Indicator'!$A$3:$A$351, 0), MATCH(Selection_Hide2!P$5, 'Full set Core Client Indicator'!$A$3:$AB$3, 0))=\"\", \"\",  INDEX('Full set Core Client Indicator'!$A$3:$AB$351, MATCH(Selection_Hide2!$A159, 'Full set Core Client Indicator'!$A$3:$A$351, 0), MATCH(Selection_Hide2!P$5, 'Full set Core Client Indicator'!$A$3:$AB$3, 0))), \"\")","v":""},{"$f":"IF(P159<>\"\", IF(INDEX('Full set Core Client Indicator'!$A$3:$AB$351, MATCH(Selection_Hide2!$A159, 'Full set Core Client Indicator'!$A$3:$A$351, 0), MATCH(Selection_Hide2!Q$5, 'Full set Core Client Indicator'!$A$3:$AB$3, 0))=\"\", \"\",  INDEX('Full set Core Client Indicator'!$A$3:$AB$351, MATCH(Selection_Hide2!$A159, 'Full set Core Client Indicator'!$A$3:$A$351, 0), MATCH(Selection_Hide2!Q$5, 'Full set Core Client Indicator'!$A$3:$AB$3, 0))), \"\")","v":""},{"$f":"IF(Q159<>\"\", IF(INDEX('Full set Core Client Indicator'!$A$3:$AB$351, MATCH(Selection_Hide2!$A159, 'Full set Core Client Indicator'!$A$3:$A$351, 0), MATCH(Selection_Hide2!R$5, 'Full set Core Client Indicator'!$A$3:$AB$3, 0))=\"\", \"\",  INDEX('Full set Core Client Indicator'!$A$3:$AB$351, MATCH(Selection_Hide2!$A159, 'Full set Core Client Indicator'!$A$3:$A$351, 0), MATCH(Selection_Hide2!R$5, 'Full set Core Client Indicator'!$A$3:$AB$3, 0))), \"\")","v":""},{"$f":"IF(R159<>\"\", IF(INDEX('Full set Core Client Indicator'!$A$3:$AB$351, MATCH(Selection_Hide2!$A159, 'Full set Core Client Indicator'!$A$3:$A$351, 0), MATCH(Selection_Hide2!S$5, 'Full set Core Client Indicator'!$A$3:$AB$3, 0))=\"\", \"\",  INDEX('Full set Core Client Indicator'!$A$3:$AB$351, MATCH(Selection_Hide2!$A159, 'Full set Core Client Indicator'!$A$3:$A$351, 0), MATCH(Selection_Hide2!S$5, 'Full set Core Client Indicator'!$A$3:$AB$3, 0))), \"\")","v":""},{"$f":"IF(S159<>\"\", IF(INDEX('Full set Core Client Indicator'!$A$3:$AB$351, MATCH(Selection_Hide2!$A159, 'Full set Core Client Indicator'!$A$3:$A$351, 0), MATCH(Selection_Hide2!T$5, 'Full set Core Client Indicator'!$A$3:$AB$3, 0))=\"\", \"\",  INDEX('Full set Core Client Indicator'!$A$3:$AB$351, MATCH(Selection_Hide2!$A159, 'Full set Core Client Indicator'!$A$3:$A$351, 0), MATCH(Selection_Hide2!T$5, 'Full set Core Client Indicator'!$A$3:$AB$3, 0))), \"\")","v":""},{"$f":"IF(T159<>\"\", IF(INDEX('Full set Core Client Indicator'!$A$3:$AB$351, MATCH(Selection_Hide2!$A159, 'Full set Core Client Indicator'!$A$3:$A$351, 0), MATCH(Selection_Hide2!U$5, 'Full set Core Client Indicator'!$A$3:$AB$3, 0))=\"\", \"\",  INDEX('Full set Core Client Indicator'!$A$3:$AB$351, MATCH(Selection_Hide2!$A159, 'Full set Core Client Indicator'!$A$3:$A$351, 0), MATCH(Selection_Hide2!U$5, 'Full set Core Client Indicator'!$A$3:$AB$3, 0))), \"\")","v":""},{"$f":"IF(U159<>\"\", IF(INDEX('Full set Core Client Indicator'!$A$3:$AB$351, MATCH(Selection_Hide2!$A159, 'Full set Core Client Indicator'!$A$3:$A$351, 0), MATCH(Selection_Hide2!V$5, 'Full set Core Client Indicator'!$A$3:$AB$3, 0))=\"\", \"\",  INDEX('Full set Core Client Indicator'!$A$3:$AB$351, MATCH(Selection_Hide2!$A159, 'Full set Core Client Indicator'!$A$3:$A$351, 0), MATCH(Selection_Hide2!V$5, 'Full set Core Client Indicator'!$A$3:$AB$3, 0))), \"\")","v":""},{"$f":"IF(V159<>\"\", IF(INDEX('Full set Core Client Indicator'!$A$3:$AB$351, MATCH(Selection_Hide2!$A159, 'Full set Core Client Indicator'!$A$3:$A$351, 0), MATCH(Selection_Hide2!W$5, 'Full set Core Client Indicator'!$A$3:$AB$3, 0))=\"\", \"\",  INDEX('Full set Core Client Indicator'!$A$3:$AB$351, MATCH(Selection_Hide2!$A159, 'Full set Core Client Indicator'!$A$3:$A$351, 0), MATCH(Selection_Hide2!W$5, 'Full set Core Client Indicator'!$A$3:$AB$3, 0))), \"\")","v":""},{"$f":"IF(W159<>\"\", IF(INDEX('Full set Core Client Indicator'!$A$3:$AB$351, MATCH(Selection_Hide2!$A159, 'Full set Core Client Indicator'!$A$3:$A$351, 0), MATCH(Selection_Hide2!X$5, 'Full set Core Client Indicator'!$A$3:$AB$3, 0))=\"\", \"\",  INDEX('Full set Core Client Indicator'!$A$3:$AB$351, MATCH(Selection_Hide2!$A159, 'Full set Core Client Indicator'!$A$3:$A$351, 0), MATCH(Selection_Hide2!X$5, 'Full set Core Client Indicator'!$A$3:$AB$3, 0))), \"\")","v":""},{"$f":"IF(X159<>\"\", IF(INDEX('Full set Core Client Indicator'!$A$3:$AB$351, MATCH(Selection_Hide2!$A159, 'Full set Core Client Indicator'!$A$3:$A$351, 0), MATCH(Selection_Hide2!Y$5, 'Full set Core Client Indicator'!$A$3:$AB$3, 0))=\"\", \"\",  INDEX('Full set Core Client Indicator'!$A$3:$AB$351, MATCH(Selection_Hide2!$A159, 'Full set Core Client Indicator'!$A$3:$A$351, 0), MATCH(Selection_Hide2!Y$5, 'Full set Core Client Indicator'!$A$3:$AB$3, 0))), \"\")","v":""},{"$f":"IF(Y159<>\"\", IF(INDEX('Full set Core Client Indicator'!$A$3:$AB$351, MATCH(Selection_Hide2!$A159, 'Full set Core Client Indicator'!$A$3:$A$351, 0), MATCH(Selection_Hide2!Z$5, 'Full set Core Client Indicator'!$A$3:$AB$3, 0))=\"\", \"\",  INDEX('Full set Core Client Indicator'!$A$3:$AB$351, MATCH(Selection_Hide2!$A159, 'Full set Core Client Indicator'!$A$3:$A$351, 0), MATCH(Selection_Hide2!Z$5, 'Full set Core Client Indicator'!$A$3:$AB$3, 0))), \"\")","v":""},{"$f":"IF(Z159<>\"\", IF(INDEX('Full set Core Client Indicator'!$A$3:$AB$351, MATCH(Selection_Hide2!$A159, 'Full set Core Client Indicator'!$A$3:$A$351, 0), MATCH(Selection_Hide2!AA$5, 'Full set Core Client Indicator'!$A$3:$AB$3, 0))=\"\", \"\",  INDEX('Full set Core Client Indicator'!$A$3:$AB$351, MATCH(Selection_Hide2!$A159, 'Full set Core Client Indicator'!$A$3:$A$351, 0), MATCH(Selection_Hide2!AA$5, 'Full set Core Client Indicator'!$A$3:$AB$3, 0))), \"\")","v":""},{"$f":"IF(AA159<>\"\", IF(INDEX('Full set Core Client Indicator'!$A$3:$AB$351, MATCH(Selection_Hide2!$A159, 'Full set Core Client Indicator'!$A$3:$A$351, 0), MATCH(Selection_Hide2!AB$5, 'Full set Core Client Indicator'!$A$3:$AB$3, 0))=\"\", \"\",  INDEX('Full set Core Client Indicator'!$A$3:$AB$351, MATCH(Selection_Hide2!$A159, 'Full set Core Client Indicator'!$A$3:$A$351, 0), MATCH(Selection_Hide2!AB$5, 'Full set Core Client Indicator'!$A$3:$AB$3, 0))), \"\")","v":""}]
[{"$f":"IF(AND(Selection_Hide1!C158<>0, Selection_Hide1!C158<>\"Grand Total\"), Selection_Hide1!C158, \"\")","v":""},{"$f":"IF(A160<>\"\", IF(INDEX('Full set Core Client Indicator'!$A$3:$AB$351, MATCH(Selection_Hide2!$A160, 'Full set Core Client Indicator'!$A$3:$A$351, 0), MATCH(Selection_Hide2!B$5, 'Full set Core Client Indicator'!$A$3:$AB$3, 0))=\"\", \"\",  INDEX('Full set Core Client Indicator'!$A$3:$AB$351, MATCH(Selection_Hide2!$A160, 'Full set Core Client Indicator'!$A$3:$A$351, 0), MATCH(Selection_Hide2!B$5, 'Full set Core Client Indicator'!$A$3:$AB$3, 0))), \"\")","v":""},{"$f":"IF(B160<>\"\", IF(INDEX('Full set Core Client Indicator'!$A$3:$AB$351, MATCH(Selection_Hide2!$A160, 'Full set Core Client Indicator'!$A$3:$A$351, 0), MATCH(Selection_Hide2!C$5, 'Full set Core Client Indicator'!$A$3:$AB$3, 0))=\"\", \"\",  INDEX('Full set Core Client Indicator'!$A$3:$AB$351, MATCH(Selection_Hide2!$A160, 'Full set Core Client Indicator'!$A$3:$A$351, 0), MATCH(Selection_Hide2!C$5, 'Full set Core Client Indicator'!$A$3:$AB$3, 0))), \"\")","v":""},{"$f":"IF(C160<>\"\", IF(INDEX('Full set Core Client Indicator'!$A$3:$AB$351, MATCH(Selection_Hide2!$A160, 'Full set Core Client Indicator'!$A$3:$A$351, 0), MATCH(Selection_Hide2!D$5, 'Full set Core Client Indicator'!$A$3:$AB$3, 0))=\"\", \"\",  INDEX('Full set Core Client Indicator'!$A$3:$AB$351, MATCH(Selection_Hide2!$A160, 'Full set Core Client Indicator'!$A$3:$A$351, 0), MATCH(Selection_Hide2!D$5, 'Full set Core Client Indicator'!$A$3:$AB$3, 0))), \"\")","v":""},{"$f":"IF(D160<>\"\", IF(INDEX('Full set Core Client Indicator'!$A$3:$AB$351, MATCH(Selection_Hide2!$A160, 'Full set Core Client Indicator'!$A$3:$A$351, 0), MATCH(Selection_Hide2!E$5, 'Full set Core Client Indicator'!$A$3:$AB$3, 0))=\"\", \"\",  INDEX('Full set Core Client Indicator'!$A$3:$AB$351, MATCH(Selection_Hide2!$A160, 'Full set Core Client Indicator'!$A$3:$A$351, 0), MATCH(Selection_Hide2!E$5, 'Full set Core Client Indicator'!$A$3:$AB$3, 0))), \"\")","v":""},{"$f":"IF(E160<>\"\", IF(INDEX('Full set Core Client Indicator'!$A$3:$AB$351, MATCH(Selection_Hide2!$A160, 'Full set Core Client Indicator'!$A$3:$A$351, 0), MATCH(Selection_Hide2!F$5, 'Full set Core Client Indicator'!$A$3:$AB$3, 0))=\"\", \"\",  INDEX('Full set Core Client Indicator'!$A$3:$AB$351, MATCH(Selection_Hide2!$A160, 'Full set Core Client Indicator'!$A$3:$A$351, 0), MATCH(Selection_Hide2!F$5, 'Full set Core Client Indicator'!$A$3:$AB$3, 0))), \"\")","v":""},{"$f":"IF(F160<>\"\", IF(INDEX('Full set Core Client Indicator'!$A$3:$AB$351, MATCH(Selection_Hide2!$A160, 'Full set Core Client Indicator'!$A$3:$A$351, 0), MATCH(Selection_Hide2!G$5, 'Full set Core Client Indicator'!$A$3:$AB$3, 0))=\"\", \"\",  INDEX('Full set Core Client Indicator'!$A$3:$AB$351, MATCH(Selection_Hide2!$A160, 'Full set Core Client Indicator'!$A$3:$A$351, 0), MATCH(Selection_Hide2!G$5, 'Full set Core Client Indicator'!$A$3:$AB$3, 0))), \"\")","v":""},{"$f":"IF(G160<>\"\", IF(INDEX('Full set Core Client Indicator'!$A$3:$AB$351, MATCH(Selection_Hide2!$A160, 'Full set Core Client Indicator'!$A$3:$A$351, 0), MATCH(Selection_Hide2!H$5, 'Full set Core Client Indicator'!$A$3:$AB$3, 0))=\"\", \"\",  INDEX('Full set Core Client Indicator'!$A$3:$AB$351, MATCH(Selection_Hide2!$A160, 'Full set Core Client Indicator'!$A$3:$A$351, 0), MATCH(Selection_Hide2!H$5, 'Full set Core Client Indicator'!$A$3:$AB$3, 0))), \"\")","v":""},{"$f":"IF(H160<>\"\", IF(INDEX('Full set Core Client Indicator'!$A$3:$AB$351, MATCH(Selection_Hide2!$A160, 'Full set Core Client Indicator'!$A$3:$A$351, 0), MATCH(Selection_Hide2!I$5, 'Full set Core Client Indicator'!$A$3:$AB$3, 0))=\"\", \"\",  INDEX('Full set Core Client Indicator'!$A$3:$AB$351, MATCH(Selection_Hide2!$A160, 'Full set Core Client Indicator'!$A$3:$A$351, 0), MATCH(Selection_Hide2!I$5, 'Full set Core Client Indicator'!$A$3:$AB$3, 0))), \"\")","v":""},{"$f":"IF(I160<>\"\", IF(INDEX('Full set Core Client Indicator'!$A$3:$AB$351, MATCH(Selection_Hide2!$A160, 'Full set Core Client Indicator'!$A$3:$A$351, 0), MATCH(Selection_Hide2!J$5, 'Full set Core Client Indicator'!$A$3:$AB$3, 0))=\"\", \"\",  INDEX('Full set Core Client Indicator'!$A$3:$AB$351, MATCH(Selection_Hide2!$A160, 'Full set Core Client Indicator'!$A$3:$A$351, 0), MATCH(Selection_Hide2!J$5, 'Full set Core Client Indicator'!$A$3:$AB$3, 0))), \"\")","v":""},{"$f":"IF(J160<>\"\", IF(INDEX('Full set Core Client Indicator'!$A$3:$AB$351, MATCH(Selection_Hide2!$A160, 'Full set Core Client Indicator'!$A$3:$A$351, 0), MATCH(Selection_Hide2!K$5, 'Full set Core Client Indicator'!$A$3:$AB$3, 0))=\"\", \"\",  INDEX('Full set Core Client Indicator'!$A$3:$AB$351, MATCH(Selection_Hide2!$A160, 'Full set Core Client Indicator'!$A$3:$A$351, 0), MATCH(Selection_Hide2!K$5, 'Full set Core Client Indicator'!$A$3:$AB$3, 0))), \"\")","v":""},{"$f":"IF(K160<>\"\", IF(INDEX('Full set Core Client Indicator'!$A$3:$AB$351, MATCH(Selection_Hide2!$A160, 'Full set Core Client Indicator'!$A$3:$A$351, 0), MATCH(Selection_Hide2!L$5, 'Full set Core Client Indicator'!$A$3:$AB$3, 0))=\"\", \"\",  INDEX('Full set Core Client Indicator'!$A$3:$AB$351, MATCH(Selection_Hide2!$A160, 'Full set Core Client Indicator'!$A$3:$A$351, 0), MATCH(Selection_Hide2!L$5, 'Full set Core Client Indicator'!$A$3:$AB$3, 0))), \"\")","v":""},{"$f":"IF(L160<>\"\", IF(INDEX('Full set Core Client Indicator'!$A$3:$AB$351, MATCH(Selection_Hide2!$A160, 'Full set Core Client Indicator'!$A$3:$A$351, 0), MATCH(Selection_Hide2!M$5, 'Full set Core Client Indicator'!$A$3:$AB$3, 0))=\"\", \"\",  INDEX('Full set Core Client Indicator'!$A$3:$AB$351, MATCH(Selection_Hide2!$A160, 'Full set Core Client Indicator'!$A$3:$A$351, 0), MATCH(Selection_Hide2!M$5, 'Full set Core Client Indicator'!$A$3:$AB$3, 0))), \"\")","v":""},{"$f":"IF(M160<>\"\", IF(INDEX('Full set Core Client Indicator'!$A$3:$AB$351, MATCH(Selection_Hide2!$A160, 'Full set Core Client Indicator'!$A$3:$A$351, 0), MATCH(Selection_Hide2!N$5, 'Full set Core Client Indicator'!$A$3:$AB$3, 0))=\"\", \"\",  INDEX('Full set Core Client Indicator'!$A$3:$AB$351, MATCH(Selection_Hide2!$A160, 'Full set Core Client Indicator'!$A$3:$A$351, 0), MATCH(Selection_Hide2!N$5, 'Full set Core Client Indicator'!$A$3:$AB$3, 0))), \"\")","v":""},{"$f":"IF(N160<>\"\", IF(INDEX('Full set Core Client Indicator'!$A$3:$AB$351, MATCH(Selection_Hide2!$A160, 'Full set Core Client Indicator'!$A$3:$A$351, 0), MATCH(Selection_Hide2!O$5, 'Full set Core Client Indicator'!$A$3:$AB$3, 0))=\"\", \"\",  INDEX('Full set Core Client Indicator'!$A$3:$AB$351, MATCH(Selection_Hide2!$A160, 'Full set Core Client Indicator'!$A$3:$A$351, 0), MATCH(Selection_Hide2!O$5, 'Full set Core Client Indicator'!$A$3:$AB$3, 0))), \"\")","v":""},{"$f":"IF(O160<>\"\", IF(INDEX('Full set Core Client Indicator'!$A$3:$AB$351, MATCH(Selection_Hide2!$A160, 'Full set Core Client Indicator'!$A$3:$A$351, 0), MATCH(Selection_Hide2!P$5, 'Full set Core Client Indicator'!$A$3:$AB$3, 0))=\"\", \"\",  INDEX('Full set Core Client Indicator'!$A$3:$AB$351, MATCH(Selection_Hide2!$A160, 'Full set Core Client Indicator'!$A$3:$A$351, 0), MATCH(Selection_Hide2!P$5, 'Full set Core Client Indicator'!$A$3:$AB$3, 0))), \"\")","v":""},{"$f":"IF(P160<>\"\", IF(INDEX('Full set Core Client Indicator'!$A$3:$AB$351, MATCH(Selection_Hide2!$A160, 'Full set Core Client Indicator'!$A$3:$A$351, 0), MATCH(Selection_Hide2!Q$5, 'Full set Core Client Indicator'!$A$3:$AB$3, 0))=\"\", \"\",  INDEX('Full set Core Client Indicator'!$A$3:$AB$351, MATCH(Selection_Hide2!$A160, 'Full set Core Client Indicator'!$A$3:$A$351, 0), MATCH(Selection_Hide2!Q$5, 'Full set Core Client Indicator'!$A$3:$AB$3, 0))), \"\")","v":""},{"$f":"IF(Q160<>\"\", IF(INDEX('Full set Core Client Indicator'!$A$3:$AB$351, MATCH(Selection_Hide2!$A160, 'Full set Core Client Indicator'!$A$3:$A$351, 0), MATCH(Selection_Hide2!R$5, 'Full set Core Client Indicator'!$A$3:$AB$3, 0))=\"\", \"\",  INDEX('Full set Core Client Indicator'!$A$3:$AB$351, MATCH(Selection_Hide2!$A160, 'Full set Core Client Indicator'!$A$3:$A$351, 0), MATCH(Selection_Hide2!R$5, 'Full set Core Client Indicator'!$A$3:$AB$3, 0))), \"\")","v":""},{"$f":"IF(R160<>\"\", IF(INDEX('Full set Core Client Indicator'!$A$3:$AB$351, MATCH(Selection_Hide2!$A160, 'Full set Core Client Indicator'!$A$3:$A$351, 0), MATCH(Selection_Hide2!S$5, 'Full set Core Client Indicator'!$A$3:$AB$3, 0))=\"\", \"\",  INDEX('Full set Core Client Indicator'!$A$3:$AB$351, MATCH(Selection_Hide2!$A160, 'Full set Core Client Indicator'!$A$3:$A$351, 0), MATCH(Selection_Hide2!S$5, 'Full set Core Client Indicator'!$A$3:$AB$3, 0))), \"\")","v":""},{"$f":"IF(S160<>\"\", IF(INDEX('Full set Core Client Indicator'!$A$3:$AB$351, MATCH(Selection_Hide2!$A160, 'Full set Core Client Indicator'!$A$3:$A$351, 0), MATCH(Selection_Hide2!T$5, 'Full set Core Client Indicator'!$A$3:$AB$3, 0))=\"\", \"\",  INDEX('Full set Core Client Indicator'!$A$3:$AB$351, MATCH(Selection_Hide2!$A160, 'Full set Core Client Indicator'!$A$3:$A$351, 0), MATCH(Selection_Hide2!T$5, 'Full set Core Client Indicator'!$A$3:$AB$3, 0))), \"\")","v":""},{"$f":"IF(T160<>\"\", IF(INDEX('Full set Core Client Indicator'!$A$3:$AB$351, MATCH(Selection_Hide2!$A160, 'Full set Core Client Indicator'!$A$3:$A$351, 0), MATCH(Selection_Hide2!U$5, 'Full set Core Client Indicator'!$A$3:$AB$3, 0))=\"\", \"\",  INDEX('Full set Core Client Indicator'!$A$3:$AB$351, MATCH(Selection_Hide2!$A160, 'Full set Core Client Indicator'!$A$3:$A$351, 0), MATCH(Selection_Hide2!U$5, 'Full set Core Client Indicator'!$A$3:$AB$3, 0))), \"\")","v":""},{"$f":"IF(U160<>\"\", IF(INDEX('Full set Core Client Indicator'!$A$3:$AB$351, MATCH(Selection_Hide2!$A160, 'Full set Core Client Indicator'!$A$3:$A$351, 0), MATCH(Selection_Hide2!V$5, 'Full set Core Client Indicator'!$A$3:$AB$3, 0))=\"\", \"\",  INDEX('Full set Core Client Indicator'!$A$3:$AB$351, MATCH(Selection_Hide2!$A160, 'Full set Core Client Indicator'!$A$3:$A$351, 0), MATCH(Selection_Hide2!V$5, 'Full set Core Client Indicator'!$A$3:$AB$3, 0))), \"\")","v":""},{"$f":"IF(V160<>\"\", IF(INDEX('Full set Core Client Indicator'!$A$3:$AB$351, MATCH(Selection_Hide2!$A160, 'Full set Core Client Indicator'!$A$3:$A$351, 0), MATCH(Selection_Hide2!W$5, 'Full set Core Client Indicator'!$A$3:$AB$3, 0))=\"\", \"\",  INDEX('Full set Core Client Indicator'!$A$3:$AB$351, MATCH(Selection_Hide2!$A160, 'Full set Core Client Indicator'!$A$3:$A$351, 0), MATCH(Selection_Hide2!W$5, 'Full set Core Client Indicator'!$A$3:$AB$3, 0))), \"\")","v":""},{"$f":"IF(W160<>\"\", IF(INDEX('Full set Core Client Indicator'!$A$3:$AB$351, MATCH(Selection_Hide2!$A160, 'Full set Core Client Indicator'!$A$3:$A$351, 0), MATCH(Selection_Hide2!X$5, 'Full set Core Client Indicator'!$A$3:$AB$3, 0))=\"\", \"\",  INDEX('Full set Core Client Indicator'!$A$3:$AB$351, MATCH(Selection_Hide2!$A160, 'Full set Core Client Indicator'!$A$3:$A$351, 0), MATCH(Selection_Hide2!X$5, 'Full set Core Client Indicator'!$A$3:$AB$3, 0))), \"\")","v":""},{"$f":"IF(X160<>\"\", IF(INDEX('Full set Core Client Indicator'!$A$3:$AB$351, MATCH(Selection_Hide2!$A160, 'Full set Core Client Indicator'!$A$3:$A$351, 0), MATCH(Selection_Hide2!Y$5, 'Full set Core Client Indicator'!$A$3:$AB$3, 0))=\"\", \"\",  INDEX('Full set Core Client Indicator'!$A$3:$AB$351, MATCH(Selection_Hide2!$A160, 'Full set Core Client Indicator'!$A$3:$A$351, 0), MATCH(Selection_Hide2!Y$5, 'Full set Core Client Indicator'!$A$3:$AB$3, 0))), \"\")","v":""},{"$f":"IF(Y160<>\"\", IF(INDEX('Full set Core Client Indicator'!$A$3:$AB$351, MATCH(Selection_Hide2!$A160, 'Full set Core Client Indicator'!$A$3:$A$351, 0), MATCH(Selection_Hide2!Z$5, 'Full set Core Client Indicator'!$A$3:$AB$3, 0))=\"\", \"\",  INDEX('Full set Core Client Indicator'!$A$3:$AB$351, MATCH(Selection_Hide2!$A160, 'Full set Core Client Indicator'!$A$3:$A$351, 0), MATCH(Selection_Hide2!Z$5, 'Full set Core Client Indicator'!$A$3:$AB$3, 0))), \"\")","v":""},{"$f":"IF(Z160<>\"\", IF(INDEX('Full set Core Client Indicator'!$A$3:$AB$351, MATCH(Selection_Hide2!$A160, 'Full set Core Client Indicator'!$A$3:$A$351, 0), MATCH(Selection_Hide2!AA$5, 'Full set Core Client Indicator'!$A$3:$AB$3, 0))=\"\", \"\",  INDEX('Full set Core Client Indicator'!$A$3:$AB$351, MATCH(Selection_Hide2!$A160, 'Full set Core Client Indicator'!$A$3:$A$351, 0), MATCH(Selection_Hide2!AA$5, 'Full set Core Client Indicator'!$A$3:$AB$3, 0))), \"\")","v":""},{"$f":"IF(AA160<>\"\", IF(INDEX('Full set Core Client Indicator'!$A$3:$AB$351, MATCH(Selection_Hide2!$A160, 'Full set Core Client Indicator'!$A$3:$A$351, 0), MATCH(Selection_Hide2!AB$5, 'Full set Core Client Indicator'!$A$3:$AB$3, 0))=\"\", \"\",  INDEX('Full set Core Client Indicator'!$A$3:$AB$351, MATCH(Selection_Hide2!$A160, 'Full set Core Client Indicator'!$A$3:$A$351, 0), MATCH(Selection_Hide2!AB$5, 'Full set Core Client Indicator'!$A$3:$AB$3, 0))), \"\")","v":""}]
[{"$f":"IF(AND(Selection_Hide1!C159<>0, Selection_Hide1!C159<>\"Grand Total\"), Selection_Hide1!C159, \"\")","v":""},{"$f":"IF(A161<>\"\", IF(INDEX('Full set Core Client Indicator'!$A$3:$AB$351, MATCH(Selection_Hide2!$A161, 'Full set Core Client Indicator'!$A$3:$A$351, 0), MATCH(Selection_Hide2!B$5, 'Full set Core Client Indicator'!$A$3:$AB$3, 0))=\"\", \"\",  INDEX('Full set Core Client Indicator'!$A$3:$AB$351, MATCH(Selection_Hide2!$A161, 'Full set Core Client Indicator'!$A$3:$A$351, 0), MATCH(Selection_Hide2!B$5, 'Full set Core Client Indicator'!$A$3:$AB$3, 0))), \"\")","v":""},{"$f":"IF(B161<>\"\", IF(INDEX('Full set Core Client Indicator'!$A$3:$AB$351, MATCH(Selection_Hide2!$A161, 'Full set Core Client Indicator'!$A$3:$A$351, 0), MATCH(Selection_Hide2!C$5, 'Full set Core Client Indicator'!$A$3:$AB$3, 0))=\"\", \"\",  INDEX('Full set Core Client Indicator'!$A$3:$AB$351, MATCH(Selection_Hide2!$A161, 'Full set Core Client Indicator'!$A$3:$A$351, 0), MATCH(Selection_Hide2!C$5, 'Full set Core Client Indicator'!$A$3:$AB$3, 0))), \"\")","v":""},{"$f":"IF(C161<>\"\", IF(INDEX('Full set Core Client Indicator'!$A$3:$AB$351, MATCH(Selection_Hide2!$A161, 'Full set Core Client Indicator'!$A$3:$A$351, 0), MATCH(Selection_Hide2!D$5, 'Full set Core Client Indicator'!$A$3:$AB$3, 0))=\"\", \"\",  INDEX('Full set Core Client Indicator'!$A$3:$AB$351, MATCH(Selection_Hide2!$A161, 'Full set Core Client Indicator'!$A$3:$A$351, 0), MATCH(Selection_Hide2!D$5, 'Full set Core Client Indicator'!$A$3:$AB$3, 0))), \"\")","v":""},{"$f":"IF(D161<>\"\", IF(INDEX('Full set Core Client Indicator'!$A$3:$AB$351, MATCH(Selection_Hide2!$A161, 'Full set Core Client Indicator'!$A$3:$A$351, 0), MATCH(Selection_Hide2!E$5, 'Full set Core Client Indicator'!$A$3:$AB$3, 0))=\"\", \"\",  INDEX('Full set Core Client Indicator'!$A$3:$AB$351, MATCH(Selection_Hide2!$A161, 'Full set Core Client Indicator'!$A$3:$A$351, 0), MATCH(Selection_Hide2!E$5, 'Full set Core Client Indicator'!$A$3:$AB$3, 0))), \"\")","v":""},{"$f":"IF(E161<>\"\", IF(INDEX('Full set Core Client Indicator'!$A$3:$AB$351, MATCH(Selection_Hide2!$A161, 'Full set Core Client Indicator'!$A$3:$A$351, 0), MATCH(Selection_Hide2!F$5, 'Full set Core Client Indicator'!$A$3:$AB$3, 0))=\"\", \"\",  INDEX('Full set Core Client Indicator'!$A$3:$AB$351, MATCH(Selection_Hide2!$A161, 'Full set Core Client Indicator'!$A$3:$A$351, 0), MATCH(Selection_Hide2!F$5, 'Full set Core Client Indicator'!$A$3:$AB$3, 0))), \"\")","v":""},{"$f":"IF(F161<>\"\", IF(INDEX('Full set Core Client Indicator'!$A$3:$AB$351, MATCH(Selection_Hide2!$A161, 'Full set Core Client Indicator'!$A$3:$A$351, 0), MATCH(Selection_Hide2!G$5, 'Full set Core Client Indicator'!$A$3:$AB$3, 0))=\"\", \"\",  INDEX('Full set Core Client Indicator'!$A$3:$AB$351, MATCH(Selection_Hide2!$A161, 'Full set Core Client Indicator'!$A$3:$A$351, 0), MATCH(Selection_Hide2!G$5, 'Full set Core Client Indicator'!$A$3:$AB$3, 0))), \"\")","v":""},{"$f":"IF(G161<>\"\", IF(INDEX('Full set Core Client Indicator'!$A$3:$AB$351, MATCH(Selection_Hide2!$A161, 'Full set Core Client Indicator'!$A$3:$A$351, 0), MATCH(Selection_Hide2!H$5, 'Full set Core Client Indicator'!$A$3:$AB$3, 0))=\"\", \"\",  INDEX('Full set Core Client Indicator'!$A$3:$AB$351, MATCH(Selection_Hide2!$A161, 'Full set Core Client Indicator'!$A$3:$A$351, 0), MATCH(Selection_Hide2!H$5, 'Full set Core Client Indicator'!$A$3:$AB$3, 0))), \"\")","v":""},{"$f":"IF(H161<>\"\", IF(INDEX('Full set Core Client Indicator'!$A$3:$AB$351, MATCH(Selection_Hide2!$A161, 'Full set Core Client Indicator'!$A$3:$A$351, 0), MATCH(Selection_Hide2!I$5, 'Full set Core Client Indicator'!$A$3:$AB$3, 0))=\"\", \"\",  INDEX('Full set Core Client Indicator'!$A$3:$AB$351, MATCH(Selection_Hide2!$A161, 'Full set Core Client Indicator'!$A$3:$A$351, 0), MATCH(Selection_Hide2!I$5, 'Full set Core Client Indicator'!$A$3:$AB$3, 0))), \"\")","v":""},{"$f":"IF(I161<>\"\", IF(INDEX('Full set Core Client Indicator'!$A$3:$AB$351, MATCH(Selection_Hide2!$A161, 'Full set Core Client Indicator'!$A$3:$A$351, 0), MATCH(Selection_Hide2!J$5, 'Full set Core Client Indicator'!$A$3:$AB$3, 0))=\"\", \"\",  INDEX('Full set Core Client Indicator'!$A$3:$AB$351, MATCH(Selection_Hide2!$A161, 'Full set Core Client Indicator'!$A$3:$A$351, 0), MATCH(Selection_Hide2!J$5, 'Full set Core Client Indicator'!$A$3:$AB$3, 0))), \"\")","v":""},{"$f":"IF(J161<>\"\", IF(INDEX('Full set Core Client Indicator'!$A$3:$AB$351, MATCH(Selection_Hide2!$A161, 'Full set Core Client Indicator'!$A$3:$A$351, 0), MATCH(Selection_Hide2!K$5, 'Full set Core Client Indicator'!$A$3:$AB$3, 0))=\"\", \"\",  INDEX('Full set Core Client Indicator'!$A$3:$AB$351, MATCH(Selection_Hide2!$A161, 'Full set Core Client Indicator'!$A$3:$A$351, 0), MATCH(Selection_Hide2!K$5, 'Full set Core Client Indicator'!$A$3:$AB$3, 0))), \"\")","v":""},{"$f":"IF(K161<>\"\", IF(INDEX('Full set Core Client Indicator'!$A$3:$AB$351, MATCH(Selection_Hide2!$A161, 'Full set Core Client Indicator'!$A$3:$A$351, 0), MATCH(Selection_Hide2!L$5, 'Full set Core Client Indicator'!$A$3:$AB$3, 0))=\"\", \"\",  INDEX('Full set Core Client Indicator'!$A$3:$AB$351, MATCH(Selection_Hide2!$A161, 'Full set Core Client Indicator'!$A$3:$A$351, 0), MATCH(Selection_Hide2!L$5, 'Full set Core Client Indicator'!$A$3:$AB$3, 0))), \"\")","v":""},{"$f":"IF(L161<>\"\", IF(INDEX('Full set Core Client Indicator'!$A$3:$AB$351, MATCH(Selection_Hide2!$A161, 'Full set Core Client Indicator'!$A$3:$A$351, 0), MATCH(Selection_Hide2!M$5, 'Full set Core Client Indicator'!$A$3:$AB$3, 0))=\"\", \"\",  INDEX('Full set Core Client Indicator'!$A$3:$AB$351, MATCH(Selection_Hide2!$A161, 'Full set Core Client Indicator'!$A$3:$A$351, 0), MATCH(Selection_Hide2!M$5, 'Full set Core Client Indicator'!$A$3:$AB$3, 0))), \"\")","v":""},{"$f":"IF(M161<>\"\", IF(INDEX('Full set Core Client Indicator'!$A$3:$AB$351, MATCH(Selection_Hide2!$A161, 'Full set Core Client Indicator'!$A$3:$A$351, 0), MATCH(Selection_Hide2!N$5, 'Full set Core Client Indicator'!$A$3:$AB$3, 0))=\"\", \"\",  INDEX('Full set Core Client Indicator'!$A$3:$AB$351, MATCH(Selection_Hide2!$A161, 'Full set Core Client Indicator'!$A$3:$A$351, 0), MATCH(Selection_Hide2!N$5, 'Full set Core Client Indicator'!$A$3:$AB$3, 0))), \"\")","v":""},{"$f":"IF(N161<>\"\", IF(INDEX('Full set Core Client Indicator'!$A$3:$AB$351, MATCH(Selection_Hide2!$A161, 'Full set Core Client Indicator'!$A$3:$A$351, 0), MATCH(Selection_Hide2!O$5, 'Full set Core Client Indicator'!$A$3:$AB$3, 0))=\"\", \"\",  INDEX('Full set Core Client Indicator'!$A$3:$AB$351, MATCH(Selection_Hide2!$A161, 'Full set Core Client Indicator'!$A$3:$A$351, 0), MATCH(Selection_Hide2!O$5, 'Full set Core Client Indicator'!$A$3:$AB$3, 0))), \"\")","v":""},{"$f":"IF(O161<>\"\", IF(INDEX('Full set Core Client Indicator'!$A$3:$AB$351, MATCH(Selection_Hide2!$A161, 'Full set Core Client Indicator'!$A$3:$A$351, 0), MATCH(Selection_Hide2!P$5, 'Full set Core Client Indicator'!$A$3:$AB$3, 0))=\"\", \"\",  INDEX('Full set Core Client Indicator'!$A$3:$AB$351, MATCH(Selection_Hide2!$A161, 'Full set Core Client Indicator'!$A$3:$A$351, 0), MATCH(Selection_Hide2!P$5, 'Full set Core Client Indicator'!$A$3:$AB$3, 0))), \"\")","v":""},{"$f":"IF(P161<>\"\", IF(INDEX('Full set Core Client Indicator'!$A$3:$AB$351, MATCH(Selection_Hide2!$A161, 'Full set Core Client Indicator'!$A$3:$A$351, 0), MATCH(Selection_Hide2!Q$5, 'Full set Core Client Indicator'!$A$3:$AB$3, 0))=\"\", \"\",  INDEX('Full set Core Client Indicator'!$A$3:$AB$351, MATCH(Selection_Hide2!$A161, 'Full set Core Client Indicator'!$A$3:$A$351, 0), MATCH(Selection_Hide2!Q$5, 'Full set Core Client Indicator'!$A$3:$AB$3, 0))), \"\")","v":""},{"$f":"IF(Q161<>\"\", IF(INDEX('Full set Core Client Indicator'!$A$3:$AB$351, MATCH(Selection_Hide2!$A161, 'Full set Core Client Indicator'!$A$3:$A$351, 0), MATCH(Selection_Hide2!R$5, 'Full set Core Client Indicator'!$A$3:$AB$3, 0))=\"\", \"\",  INDEX('Full set Core Client Indicator'!$A$3:$AB$351, MATCH(Selection_Hide2!$A161, 'Full set Core Client Indicator'!$A$3:$A$351, 0), MATCH(Selection_Hide2!R$5, 'Full set Core Client Indicator'!$A$3:$AB$3, 0))), \"\")","v":""},{"$f":"IF(R161<>\"\", IF(INDEX('Full set Core Client Indicator'!$A$3:$AB$351, MATCH(Selection_Hide2!$A161, 'Full set Core Client Indicator'!$A$3:$A$351, 0), MATCH(Selection_Hide2!S$5, 'Full set Core Client Indicator'!$A$3:$AB$3, 0))=\"\", \"\",  INDEX('Full set Core Client Indicator'!$A$3:$AB$351, MATCH(Selection_Hide2!$A161, 'Full set Core Client Indicator'!$A$3:$A$351, 0), MATCH(Selection_Hide2!S$5, 'Full set Core Client Indicator'!$A$3:$AB$3, 0))), \"\")","v":""},{"$f":"IF(S161<>\"\", IF(INDEX('Full set Core Client Indicator'!$A$3:$AB$351, MATCH(Selection_Hide2!$A161, 'Full set Core Client Indicator'!$A$3:$A$351, 0), MATCH(Selection_Hide2!T$5, 'Full set Core Client Indicator'!$A$3:$AB$3, 0))=\"\", \"\",  INDEX('Full set Core Client Indicator'!$A$3:$AB$351, MATCH(Selection_Hide2!$A161, 'Full set Core Client Indicator'!$A$3:$A$351, 0), MATCH(Selection_Hide2!T$5, 'Full set Core Client Indicator'!$A$3:$AB$3, 0))), \"\")","v":""},{"$f":"IF(T161<>\"\", IF(INDEX('Full set Core Client Indicator'!$A$3:$AB$351, MATCH(Selection_Hide2!$A161, 'Full set Core Client Indicator'!$A$3:$A$351, 0), MATCH(Selection_Hide2!U$5, 'Full set Core Client Indicator'!$A$3:$AB$3, 0))=\"\", \"\",  INDEX('Full set Core Client Indicator'!$A$3:$AB$351, MATCH(Selection_Hide2!$A161, 'Full set Core Client Indicator'!$A$3:$A$351, 0), MATCH(Selection_Hide2!U$5, 'Full set Core Client Indicator'!$A$3:$AB$3, 0))), \"\")","v":""},{"$f":"IF(U161<>\"\", IF(INDEX('Full set Core Client Indicator'!$A$3:$AB$351, MATCH(Selection_Hide2!$A161, 'Full set Core Client Indicator'!$A$3:$A$351, 0), MATCH(Selection_Hide2!V$5, 'Full set Core Client Indicator'!$A$3:$AB$3, 0))=\"\", \"\",  INDEX('Full set Core Client Indicator'!$A$3:$AB$351, MATCH(Selection_Hide2!$A161, 'Full set Core Client Indicator'!$A$3:$A$351, 0), MATCH(Selection_Hide2!V$5, 'Full set Core Client Indicator'!$A$3:$AB$3, 0))), \"\")","v":""},{"$f":"IF(V161<>\"\", IF(INDEX('Full set Core Client Indicator'!$A$3:$AB$351, MATCH(Selection_Hide2!$A161, 'Full set Core Client Indicator'!$A$3:$A$351, 0), MATCH(Selection_Hide2!W$5, 'Full set Core Client Indicator'!$A$3:$AB$3, 0))=\"\", \"\",  INDEX('Full set Core Client Indicator'!$A$3:$AB$351, MATCH(Selection_Hide2!$A161, 'Full set Core Client Indicator'!$A$3:$A$351, 0), MATCH(Selection_Hide2!W$5, 'Full set Core Client Indicator'!$A$3:$AB$3, 0))), \"\")","v":""},{"$f":"IF(W161<>\"\", IF(INDEX('Full set Core Client Indicator'!$A$3:$AB$351, MATCH(Selection_Hide2!$A161, 'Full set Core Client Indicator'!$A$3:$A$351, 0), MATCH(Selection_Hide2!X$5, 'Full set Core Client Indicator'!$A$3:$AB$3, 0))=\"\", \"\",  INDEX('Full set Core Client Indicator'!$A$3:$AB$351, MATCH(Selection_Hide2!$A161, 'Full set Core Client Indicator'!$A$3:$A$351, 0), MATCH(Selection_Hide2!X$5, 'Full set Core Client Indicator'!$A$3:$AB$3, 0))), \"\")","v":""},{"$f":"IF(X161<>\"\", IF(INDEX('Full set Core Client Indicator'!$A$3:$AB$351, MATCH(Selection_Hide2!$A161, 'Full set Core Client Indicator'!$A$3:$A$351, 0), MATCH(Selection_Hide2!Y$5, 'Full set Core Client Indicator'!$A$3:$AB$3, 0))=\"\", \"\",  INDEX('Full set Core Client Indicator'!$A$3:$AB$351, MATCH(Selection_Hide2!$A161, 'Full set Core Client Indicator'!$A$3:$A$351, 0), MATCH(Selection_Hide2!Y$5, 'Full set Core Client Indicator'!$A$3:$AB$3, 0))), \"\")","v":""},{"$f":"IF(Y161<>\"\", IF(INDEX('Full set Core Client Indicator'!$A$3:$AB$351, MATCH(Selection_Hide2!$A161, 'Full set Core Client Indicator'!$A$3:$A$351, 0), MATCH(Selection_Hide2!Z$5, 'Full set Core Client Indicator'!$A$3:$AB$3, 0))=\"\", \"\",  INDEX('Full set Core Client Indicator'!$A$3:$AB$351, MATCH(Selection_Hide2!$A161, 'Full set Core Client Indicator'!$A$3:$A$351, 0), MATCH(Selection_Hide2!Z$5, 'Full set Core Client Indicator'!$A$3:$AB$3, 0))), \"\")","v":""},{"$f":"IF(Z161<>\"\", IF(INDEX('Full set Core Client Indicator'!$A$3:$AB$351, MATCH(Selection_Hide2!$A161, 'Full set Core Client Indicator'!$A$3:$A$351, 0), MATCH(Selection_Hide2!AA$5, 'Full set Core Client Indicator'!$A$3:$AB$3, 0))=\"\", \"\",  INDEX('Full set Core Client Indicator'!$A$3:$AB$351, MATCH(Selection_Hide2!$A161, 'Full set Core Client Indicator'!$A$3:$A$351, 0), MATCH(Selection_Hide2!AA$5, 'Full set Core Client Indicator'!$A$3:$AB$3, 0))), \"\")","v":""},{"$f":"IF(AA161<>\"\", IF(INDEX('Full set Core Client Indicator'!$A$3:$AB$351, MATCH(Selection_Hide2!$A161, 'Full set Core Client Indicator'!$A$3:$A$351, 0), MATCH(Selection_Hide2!AB$5, 'Full set Core Client Indicator'!$A$3:$AB$3, 0))=\"\", \"\",  INDEX('Full set Core Client Indicator'!$A$3:$AB$351, MATCH(Selection_Hide2!$A161, 'Full set Core Client Indicator'!$A$3:$A$351, 0), MATCH(Selection_Hide2!AB$5, 'Full set Core Client Indicator'!$A$3:$AB$3, 0))), \"\")","v":""}]
[{"$f":"IF(AND(Selection_Hide1!C160<>0, Selection_Hide1!C160<>\"Grand Total\"), Selection_Hide1!C160, \"\")","v":""},{"$f":"IF(A162<>\"\", IF(INDEX('Full set Core Client Indicator'!$A$3:$AB$351, MATCH(Selection_Hide2!$A162, 'Full set Core Client Indicator'!$A$3:$A$351, 0), MATCH(Selection_Hide2!B$5, 'Full set Core Client Indicator'!$A$3:$AB$3, 0))=\"\", \"\",  INDEX('Full set Core Client Indicator'!$A$3:$AB$351, MATCH(Selection_Hide2!$A162, 'Full set Core Client Indicator'!$A$3:$A$351, 0), MATCH(Selection_Hide2!B$5, 'Full set Core Client Indicator'!$A$3:$AB$3, 0))), \"\")","v":""},{"$f":"IF(B162<>\"\", IF(INDEX('Full set Core Client Indicator'!$A$3:$AB$351, MATCH(Selection_Hide2!$A162, 'Full set Core Client Indicator'!$A$3:$A$351, 0), MATCH(Selection_Hide2!C$5, 'Full set Core Client Indicator'!$A$3:$AB$3, 0))=\"\", \"\",  INDEX('Full set Core Client Indicator'!$A$3:$AB$351, MATCH(Selection_Hide2!$A162, 'Full set Core Client Indicator'!$A$3:$A$351, 0), MATCH(Selection_Hide2!C$5, 'Full set Core Client Indicator'!$A$3:$AB$3, 0))), \"\")","v":""},{"$f":"IF(C162<>\"\", IF(INDEX('Full set Core Client Indicator'!$A$3:$AB$351, MATCH(Selection_Hide2!$A162, 'Full set Core Client Indicator'!$A$3:$A$351, 0), MATCH(Selection_Hide2!D$5, 'Full set Core Client Indicator'!$A$3:$AB$3, 0))=\"\", \"\",  INDEX('Full set Core Client Indicator'!$A$3:$AB$351, MATCH(Selection_Hide2!$A162, 'Full set Core Client Indicator'!$A$3:$A$351, 0), MATCH(Selection_Hide2!D$5, 'Full set Core Client Indicator'!$A$3:$AB$3, 0))), \"\")","v":""},{"$f":"IF(D162<>\"\", IF(INDEX('Full set Core Client Indicator'!$A$3:$AB$351, MATCH(Selection_Hide2!$A162, 'Full set Core Client Indicator'!$A$3:$A$351, 0), MATCH(Selection_Hide2!E$5, 'Full set Core Client Indicator'!$A$3:$AB$3, 0))=\"\", \"\",  INDEX('Full set Core Client Indicator'!$A$3:$AB$351, MATCH(Selection_Hide2!$A162, 'Full set Core Client Indicator'!$A$3:$A$351, 0), MATCH(Selection_Hide2!E$5, 'Full set Core Client Indicator'!$A$3:$AB$3, 0))), \"\")","v":""},{"$f":"IF(E162<>\"\", IF(INDEX('Full set Core Client Indicator'!$A$3:$AB$351, MATCH(Selection_Hide2!$A162, 'Full set Core Client Indicator'!$A$3:$A$351, 0), MATCH(Selection_Hide2!F$5, 'Full set Core Client Indicator'!$A$3:$AB$3, 0))=\"\", \"\",  INDEX('Full set Core Client Indicator'!$A$3:$AB$351, MATCH(Selection_Hide2!$A162, 'Full set Core Client Indicator'!$A$3:$A$351, 0), MATCH(Selection_Hide2!F$5, 'Full set Core Client Indicator'!$A$3:$AB$3, 0))), \"\")","v":""},{"$f":"IF(F162<>\"\", IF(INDEX('Full set Core Client Indicator'!$A$3:$AB$351, MATCH(Selection_Hide2!$A162, 'Full set Core Client Indicator'!$A$3:$A$351, 0), MATCH(Selection_Hide2!G$5, 'Full set Core Client Indicator'!$A$3:$AB$3, 0))=\"\", \"\",  INDEX('Full set Core Client Indicator'!$A$3:$AB$351, MATCH(Selection_Hide2!$A162, 'Full set Core Client Indicator'!$A$3:$A$351, 0), MATCH(Selection_Hide2!G$5, 'Full set Core Client Indicator'!$A$3:$AB$3, 0))), \"\")","v":""},{"$f":"IF(G162<>\"\", IF(INDEX('Full set Core Client Indicator'!$A$3:$AB$351, MATCH(Selection_Hide2!$A162, 'Full set Core Client Indicator'!$A$3:$A$351, 0), MATCH(Selection_Hide2!H$5, 'Full set Core Client Indicator'!$A$3:$AB$3, 0))=\"\", \"\",  INDEX('Full set Core Client Indicator'!$A$3:$AB$351, MATCH(Selection_Hide2!$A162, 'Full set Core Client Indicator'!$A$3:$A$351, 0), MATCH(Selection_Hide2!H$5, 'Full set Core Client Indicator'!$A$3:$AB$3, 0))), \"\")","v":""},{"$f":"IF(H162<>\"\", IF(INDEX('Full set Core Client Indicator'!$A$3:$AB$351, MATCH(Selection_Hide2!$A162, 'Full set Core Client Indicator'!$A$3:$A$351, 0), MATCH(Selection_Hide2!I$5, 'Full set Core Client Indicator'!$A$3:$AB$3, 0))=\"\", \"\",  INDEX('Full set Core Client Indicator'!$A$3:$AB$351, MATCH(Selection_Hide2!$A162, 'Full set Core Client Indicator'!$A$3:$A$351, 0), MATCH(Selection_Hide2!I$5, 'Full set Core Client Indicator'!$A$3:$AB$3, 0))), \"\")","v":""},{"$f":"IF(I162<>\"\", IF(INDEX('Full set Core Client Indicator'!$A$3:$AB$351, MATCH(Selection_Hide2!$A162, 'Full set Core Client Indicator'!$A$3:$A$351, 0), MATCH(Selection_Hide2!J$5, 'Full set Core Client Indicator'!$A$3:$AB$3, 0))=\"\", \"\",  INDEX('Full set Core Client Indicator'!$A$3:$AB$351, MATCH(Selection_Hide2!$A162, 'Full set Core Client Indicator'!$A$3:$A$351, 0), MATCH(Selection_Hide2!J$5, 'Full set Core Client Indicator'!$A$3:$AB$3, 0))), \"\")","v":""},{"$f":"IF(J162<>\"\", IF(INDEX('Full set Core Client Indicator'!$A$3:$AB$351, MATCH(Selection_Hide2!$A162, 'Full set Core Client Indicator'!$A$3:$A$351, 0), MATCH(Selection_Hide2!K$5, 'Full set Core Client Indicator'!$A$3:$AB$3, 0))=\"\", \"\",  INDEX('Full set Core Client Indicator'!$A$3:$AB$351, MATCH(Selection_Hide2!$A162, 'Full set Core Client Indicator'!$A$3:$A$351, 0), MATCH(Selection_Hide2!K$5, 'Full set Core Client Indicator'!$A$3:$AB$3, 0))), \"\")","v":""},{"$f":"IF(K162<>\"\", IF(INDEX('Full set Core Client Indicator'!$A$3:$AB$351, MATCH(Selection_Hide2!$A162, 'Full set Core Client Indicator'!$A$3:$A$351, 0), MATCH(Selection_Hide2!L$5, 'Full set Core Client Indicator'!$A$3:$AB$3, 0))=\"\", \"\",  INDEX('Full set Core Client Indicator'!$A$3:$AB$351, MATCH(Selection_Hide2!$A162, 'Full set Core Client Indicator'!$A$3:$A$351, 0), MATCH(Selection_Hide2!L$5, 'Full set Core Client Indicator'!$A$3:$AB$3, 0))), \"\")","v":""},{"$f":"IF(L162<>\"\", IF(INDEX('Full set Core Client Indicator'!$A$3:$AB$351, MATCH(Selection_Hide2!$A162, 'Full set Core Client Indicator'!$A$3:$A$351, 0), MATCH(Selection_Hide2!M$5, 'Full set Core Client Indicator'!$A$3:$AB$3, 0))=\"\", \"\",  INDEX('Full set Core Client Indicator'!$A$3:$AB$351, MATCH(Selection_Hide2!$A162, 'Full set Core Client Indicator'!$A$3:$A$351, 0), MATCH(Selection_Hide2!M$5, 'Full set Core Client Indicator'!$A$3:$AB$3, 0))), \"\")","v":""},{"$f":"IF(M162<>\"\", IF(INDEX('Full set Core Client Indicator'!$A$3:$AB$351, MATCH(Selection_Hide2!$A162, 'Full set Core Client Indicator'!$A$3:$A$351, 0), MATCH(Selection_Hide2!N$5, 'Full set Core Client Indicator'!$A$3:$AB$3, 0))=\"\", \"\",  INDEX('Full set Core Client Indicator'!$A$3:$AB$351, MATCH(Selection_Hide2!$A162, 'Full set Core Client Indicator'!$A$3:$A$351, 0), MATCH(Selection_Hide2!N$5, 'Full set Core Client Indicator'!$A$3:$AB$3, 0))), \"\")","v":""},{"$f":"IF(N162<>\"\", IF(INDEX('Full set Core Client Indicator'!$A$3:$AB$351, MATCH(Selection_Hide2!$A162, 'Full set Core Client Indicator'!$A$3:$A$351, 0), MATCH(Selection_Hide2!O$5, 'Full set Core Client Indicator'!$A$3:$AB$3, 0))=\"\", \"\",  INDEX('Full set Core Client Indicator'!$A$3:$AB$351, MATCH(Selection_Hide2!$A162, 'Full set Core Client Indicator'!$A$3:$A$351, 0), MATCH(Selection_Hide2!O$5, 'Full set Core Client Indicator'!$A$3:$AB$3, 0))), \"\")","v":""},{"$f":"IF(O162<>\"\", IF(INDEX('Full set Core Client Indicator'!$A$3:$AB$351, MATCH(Selection_Hide2!$A162, 'Full set Core Client Indicator'!$A$3:$A$351, 0), MATCH(Selection_Hide2!P$5, 'Full set Core Client Indicator'!$A$3:$AB$3, 0))=\"\", \"\",  INDEX('Full set Core Client Indicator'!$A$3:$AB$351, MATCH(Selection_Hide2!$A162, 'Full set Core Client Indicator'!$A$3:$A$351, 0), MATCH(Selection_Hide2!P$5, 'Full set Core Client Indicator'!$A$3:$AB$3, 0))), \"\")","v":""},{"$f":"IF(P162<>\"\", IF(INDEX('Full set Core Client Indicator'!$A$3:$AB$351, MATCH(Selection_Hide2!$A162, 'Full set Core Client Indicator'!$A$3:$A$351, 0), MATCH(Selection_Hide2!Q$5, 'Full set Core Client Indicator'!$A$3:$AB$3, 0))=\"\", \"\",  INDEX('Full set Core Client Indicator'!$A$3:$AB$351, MATCH(Selection_Hide2!$A162, 'Full set Core Client Indicator'!$A$3:$A$351, 0), MATCH(Selection_Hide2!Q$5, 'Full set Core Client Indicator'!$A$3:$AB$3, 0))), \"\")","v":""},{"$f":"IF(Q162<>\"\", IF(INDEX('Full set Core Client Indicator'!$A$3:$AB$351, MATCH(Selection_Hide2!$A162, 'Full set Core Client Indicator'!$A$3:$A$351, 0), MATCH(Selection_Hide2!R$5, 'Full set Core Client Indicator'!$A$3:$AB$3, 0))=\"\", \"\",  INDEX('Full set Core Client Indicator'!$A$3:$AB$351, MATCH(Selection_Hide2!$A162, 'Full set Core Client Indicator'!$A$3:$A$351, 0), MATCH(Selection_Hide2!R$5, 'Full set Core Client Indicator'!$A$3:$AB$3, 0))), \"\")","v":""},{"$f":"IF(R162<>\"\", IF(INDEX('Full set Core Client Indicator'!$A$3:$AB$351, MATCH(Selection_Hide2!$A162, 'Full set Core Client Indicator'!$A$3:$A$351, 0), MATCH(Selection_Hide2!S$5, 'Full set Core Client Indicator'!$A$3:$AB$3, 0))=\"\", \"\",  INDEX('Full set Core Client Indicator'!$A$3:$AB$351, MATCH(Selection_Hide2!$A162, 'Full set Core Client Indicator'!$A$3:$A$351, 0), MATCH(Selection_Hide2!S$5, 'Full set Core Client Indicator'!$A$3:$AB$3, 0))), \"\")","v":""},{"$f":"IF(S162<>\"\", IF(INDEX('Full set Core Client Indicator'!$A$3:$AB$351, MATCH(Selection_Hide2!$A162, 'Full set Core Client Indicator'!$A$3:$A$351, 0), MATCH(Selection_Hide2!T$5, 'Full set Core Client Indicator'!$A$3:$AB$3, 0))=\"\", \"\",  INDEX('Full set Core Client Indicator'!$A$3:$AB$351, MATCH(Selection_Hide2!$A162, 'Full set Core Client Indicator'!$A$3:$A$351, 0), MATCH(Selection_Hide2!T$5, 'Full set Core Client Indicator'!$A$3:$AB$3, 0))), \"\")","v":""},{"$f":"IF(T162<>\"\", IF(INDEX('Full set Core Client Indicator'!$A$3:$AB$351, MATCH(Selection_Hide2!$A162, 'Full set Core Client Indicator'!$A$3:$A$351, 0), MATCH(Selection_Hide2!U$5, 'Full set Core Client Indicator'!$A$3:$AB$3, 0))=\"\", \"\",  INDEX('Full set Core Client Indicator'!$A$3:$AB$351, MATCH(Selection_Hide2!$A162, 'Full set Core Client Indicator'!$A$3:$A$351, 0), MATCH(Selection_Hide2!U$5, 'Full set Core Client Indicator'!$A$3:$AB$3, 0))), \"\")","v":""},{"$f":"IF(U162<>\"\", IF(INDEX('Full set Core Client Indicator'!$A$3:$AB$351, MATCH(Selection_Hide2!$A162, 'Full set Core Client Indicator'!$A$3:$A$351, 0), MATCH(Selection_Hide2!V$5, 'Full set Core Client Indicator'!$A$3:$AB$3, 0))=\"\", \"\",  INDEX('Full set Core Client Indicator'!$A$3:$AB$351, MATCH(Selection_Hide2!$A162, 'Full set Core Client Indicator'!$A$3:$A$351, 0), MATCH(Selection_Hide2!V$5, 'Full set Core Client Indicator'!$A$3:$AB$3, 0))), \"\")","v":""},{"$f":"IF(V162<>\"\", IF(INDEX('Full set Core Client Indicator'!$A$3:$AB$351, MATCH(Selection_Hide2!$A162, 'Full set Core Client Indicator'!$A$3:$A$351, 0), MATCH(Selection_Hide2!W$5, 'Full set Core Client Indicator'!$A$3:$AB$3, 0))=\"\", \"\",  INDEX('Full set Core Client Indicator'!$A$3:$AB$351, MATCH(Selection_Hide2!$A162, 'Full set Core Client Indicator'!$A$3:$A$351, 0), MATCH(Selection_Hide2!W$5, 'Full set Core Client Indicator'!$A$3:$AB$3, 0))), \"\")","v":""},{"$f":"IF(W162<>\"\", IF(INDEX('Full set Core Client Indicator'!$A$3:$AB$351, MATCH(Selection_Hide2!$A162, 'Full set Core Client Indicator'!$A$3:$A$351, 0), MATCH(Selection_Hide2!X$5, 'Full set Core Client Indicator'!$A$3:$AB$3, 0))=\"\", \"\",  INDEX('Full set Core Client Indicator'!$A$3:$AB$351, MATCH(Selection_Hide2!$A162, 'Full set Core Client Indicator'!$A$3:$A$351, 0), MATCH(Selection_Hide2!X$5, 'Full set Core Client Indicator'!$A$3:$AB$3, 0))), \"\")","v":""},{"$f":"IF(X162<>\"\", IF(INDEX('Full set Core Client Indicator'!$A$3:$AB$351, MATCH(Selection_Hide2!$A162, 'Full set Core Client Indicator'!$A$3:$A$351, 0), MATCH(Selection_Hide2!Y$5, 'Full set Core Client Indicator'!$A$3:$AB$3, 0))=\"\", \"\",  INDEX('Full set Core Client Indicator'!$A$3:$AB$351, MATCH(Selection_Hide2!$A162, 'Full set Core Client Indicator'!$A$3:$A$351, 0), MATCH(Selection_Hide2!Y$5, 'Full set Core Client Indicator'!$A$3:$AB$3, 0))), \"\")","v":""},{"$f":"IF(Y162<>\"\", IF(INDEX('Full set Core Client Indicator'!$A$3:$AB$351, MATCH(Selection_Hide2!$A162, 'Full set Core Client Indicator'!$A$3:$A$351, 0), MATCH(Selection_Hide2!Z$5, 'Full set Core Client Indicator'!$A$3:$AB$3, 0))=\"\", \"\",  INDEX('Full set Core Client Indicator'!$A$3:$AB$351, MATCH(Selection_Hide2!$A162, 'Full set Core Client Indicator'!$A$3:$A$351, 0), MATCH(Selection_Hide2!Z$5, 'Full set Core Client Indicator'!$A$3:$AB$3, 0))), \"\")","v":""},{"$f":"IF(Z162<>\"\", IF(INDEX('Full set Core Client Indicator'!$A$3:$AB$351, MATCH(Selection_Hide2!$A162, 'Full set Core Client Indicator'!$A$3:$A$351, 0), MATCH(Selection_Hide2!AA$5, 'Full set Core Client Indicator'!$A$3:$AB$3, 0))=\"\", \"\",  INDEX('Full set Core Client Indicator'!$A$3:$AB$351, MATCH(Selection_Hide2!$A162, 'Full set Core Client Indicator'!$A$3:$A$351, 0), MATCH(Selection_Hide2!AA$5, 'Full set Core Client Indicator'!$A$3:$AB$3, 0))), \"\")","v":""},{"$f":"IF(AA162<>\"\", IF(INDEX('Full set Core Client Indicator'!$A$3:$AB$351, MATCH(Selection_Hide2!$A162, 'Full set Core Client Indicator'!$A$3:$A$351, 0), MATCH(Selection_Hide2!AB$5, 'Full set Core Client Indicator'!$A$3:$AB$3, 0))=\"\", \"\",  INDEX('Full set Core Client Indicator'!$A$3:$AB$351, MATCH(Selection_Hide2!$A162, 'Full set Core Client Indicator'!$A$3:$A$351, 0), MATCH(Selection_Hide2!AB$5, 'Full set Core Client Indicator'!$A$3:$AB$3, 0))), \"\")","v":""}]
[{"$f":"IF(AND(Selection_Hide1!C161<>0, Selection_Hide1!C161<>\"Grand Total\"), Selection_Hide1!C161, \"\")","v":""},{"$f":"IF(A163<>\"\", IF(INDEX('Full set Core Client Indicator'!$A$3:$AB$351, MATCH(Selection_Hide2!$A163, 'Full set Core Client Indicator'!$A$3:$A$351, 0), MATCH(Selection_Hide2!B$5, 'Full set Core Client Indicator'!$A$3:$AB$3, 0))=\"\", \"\",  INDEX('Full set Core Client Indicator'!$A$3:$AB$351, MATCH(Selection_Hide2!$A163, 'Full set Core Client Indicator'!$A$3:$A$351, 0), MATCH(Selection_Hide2!B$5, 'Full set Core Client Indicator'!$A$3:$AB$3, 0))), \"\")","v":""},{"$f":"IF(B163<>\"\", IF(INDEX('Full set Core Client Indicator'!$A$3:$AB$351, MATCH(Selection_Hide2!$A163, 'Full set Core Client Indicator'!$A$3:$A$351, 0), MATCH(Selection_Hide2!C$5, 'Full set Core Client Indicator'!$A$3:$AB$3, 0))=\"\", \"\",  INDEX('Full set Core Client Indicator'!$A$3:$AB$351, MATCH(Selection_Hide2!$A163, 'Full set Core Client Indicator'!$A$3:$A$351, 0), MATCH(Selection_Hide2!C$5, 'Full set Core Client Indicator'!$A$3:$AB$3, 0))), \"\")","v":""},{"$f":"IF(C163<>\"\", IF(INDEX('Full set Core Client Indicator'!$A$3:$AB$351, MATCH(Selection_Hide2!$A163, 'Full set Core Client Indicator'!$A$3:$A$351, 0), MATCH(Selection_Hide2!D$5, 'Full set Core Client Indicator'!$A$3:$AB$3, 0))=\"\", \"\",  INDEX('Full set Core Client Indicator'!$A$3:$AB$351, MATCH(Selection_Hide2!$A163, 'Full set Core Client Indicator'!$A$3:$A$351, 0), MATCH(Selection_Hide2!D$5, 'Full set Core Client Indicator'!$A$3:$AB$3, 0))), \"\")","v":""},{"$f":"IF(D163<>\"\", IF(INDEX('Full set Core Client Indicator'!$A$3:$AB$351, MATCH(Selection_Hide2!$A163, 'Full set Core Client Indicator'!$A$3:$A$351, 0), MATCH(Selection_Hide2!E$5, 'Full set Core Client Indicator'!$A$3:$AB$3, 0))=\"\", \"\",  INDEX('Full set Core Client Indicator'!$A$3:$AB$351, MATCH(Selection_Hide2!$A163, 'Full set Core Client Indicator'!$A$3:$A$351, 0), MATCH(Selection_Hide2!E$5, 'Full set Core Client Indicator'!$A$3:$AB$3, 0))), \"\")","v":""},{"$f":"IF(E163<>\"\", IF(INDEX('Full set Core Client Indicator'!$A$3:$AB$351, MATCH(Selection_Hide2!$A163, 'Full set Core Client Indicator'!$A$3:$A$351, 0), MATCH(Selection_Hide2!F$5, 'Full set Core Client Indicator'!$A$3:$AB$3, 0))=\"\", \"\",  INDEX('Full set Core Client Indicator'!$A$3:$AB$351, MATCH(Selection_Hide2!$A163, 'Full set Core Client Indicator'!$A$3:$A$351, 0), MATCH(Selection_Hide2!F$5, 'Full set Core Client Indicator'!$A$3:$AB$3, 0))), \"\")","v":""},{"$f":"IF(F163<>\"\", IF(INDEX('Full set Core Client Indicator'!$A$3:$AB$351, MATCH(Selection_Hide2!$A163, 'Full set Core Client Indicator'!$A$3:$A$351, 0), MATCH(Selection_Hide2!G$5, 'Full set Core Client Indicator'!$A$3:$AB$3, 0))=\"\", \"\",  INDEX('Full set Core Client Indicator'!$A$3:$AB$351, MATCH(Selection_Hide2!$A163, 'Full set Core Client Indicator'!$A$3:$A$351, 0), MATCH(Selection_Hide2!G$5, 'Full set Core Client Indicator'!$A$3:$AB$3, 0))), \"\")","v":""},{"$f":"IF(G163<>\"\", IF(INDEX('Full set Core Client Indicator'!$A$3:$AB$351, MATCH(Selection_Hide2!$A163, 'Full set Core Client Indicator'!$A$3:$A$351, 0), MATCH(Selection_Hide2!H$5, 'Full set Core Client Indicator'!$A$3:$AB$3, 0))=\"\", \"\",  INDEX('Full set Core Client Indicator'!$A$3:$AB$351, MATCH(Selection_Hide2!$A163, 'Full set Core Client Indicator'!$A$3:$A$351, 0), MATCH(Selection_Hide2!H$5, 'Full set Core Client Indicator'!$A$3:$AB$3, 0))), \"\")","v":""},{"$f":"IF(H163<>\"\", IF(INDEX('Full set Core Client Indicator'!$A$3:$AB$351, MATCH(Selection_Hide2!$A163, 'Full set Core Client Indicator'!$A$3:$A$351, 0), MATCH(Selection_Hide2!I$5, 'Full set Core Client Indicator'!$A$3:$AB$3, 0))=\"\", \"\",  INDEX('Full set Core Client Indicator'!$A$3:$AB$351, MATCH(Selection_Hide2!$A163, 'Full set Core Client Indicator'!$A$3:$A$351, 0), MATCH(Selection_Hide2!I$5, 'Full set Core Client Indicator'!$A$3:$AB$3, 0))), \"\")","v":""},{"$f":"IF(I163<>\"\", IF(INDEX('Full set Core Client Indicator'!$A$3:$AB$351, MATCH(Selection_Hide2!$A163, 'Full set Core Client Indicator'!$A$3:$A$351, 0), MATCH(Selection_Hide2!J$5, 'Full set Core Client Indicator'!$A$3:$AB$3, 0))=\"\", \"\",  INDEX('Full set Core Client Indicator'!$A$3:$AB$351, MATCH(Selection_Hide2!$A163, 'Full set Core Client Indicator'!$A$3:$A$351, 0), MATCH(Selection_Hide2!J$5, 'Full set Core Client Indicator'!$A$3:$AB$3, 0))), \"\")","v":""},{"$f":"IF(J163<>\"\", IF(INDEX('Full set Core Client Indicator'!$A$3:$AB$351, MATCH(Selection_Hide2!$A163, 'Full set Core Client Indicator'!$A$3:$A$351, 0), MATCH(Selection_Hide2!K$5, 'Full set Core Client Indicator'!$A$3:$AB$3, 0))=\"\", \"\",  INDEX('Full set Core Client Indicator'!$A$3:$AB$351, MATCH(Selection_Hide2!$A163, 'Full set Core Client Indicator'!$A$3:$A$351, 0), MATCH(Selection_Hide2!K$5, 'Full set Core Client Indicator'!$A$3:$AB$3, 0))), \"\")","v":""},{"$f":"IF(K163<>\"\", IF(INDEX('Full set Core Client Indicator'!$A$3:$AB$351, MATCH(Selection_Hide2!$A163, 'Full set Core Client Indicator'!$A$3:$A$351, 0), MATCH(Selection_Hide2!L$5, 'Full set Core Client Indicator'!$A$3:$AB$3, 0))=\"\", \"\",  INDEX('Full set Core Client Indicator'!$A$3:$AB$351, MATCH(Selection_Hide2!$A163, 'Full set Core Client Indicator'!$A$3:$A$351, 0), MATCH(Selection_Hide2!L$5, 'Full set Core Client Indicator'!$A$3:$AB$3, 0))), \"\")","v":""},{"$f":"IF(L163<>\"\", IF(INDEX('Full set Core Client Indicator'!$A$3:$AB$351, MATCH(Selection_Hide2!$A163, 'Full set Core Client Indicator'!$A$3:$A$351, 0), MATCH(Selection_Hide2!M$5, 'Full set Core Client Indicator'!$A$3:$AB$3, 0))=\"\", \"\",  INDEX('Full set Core Client Indicator'!$A$3:$AB$351, MATCH(Selection_Hide2!$A163, 'Full set Core Client Indicator'!$A$3:$A$351, 0), MATCH(Selection_Hide2!M$5, 'Full set Core Client Indicator'!$A$3:$AB$3, 0))), \"\")","v":""},{"$f":"IF(M163<>\"\", IF(INDEX('Full set Core Client Indicator'!$A$3:$AB$351, MATCH(Selection_Hide2!$A163, 'Full set Core Client Indicator'!$A$3:$A$351, 0), MATCH(Selection_Hide2!N$5, 'Full set Core Client Indicator'!$A$3:$AB$3, 0))=\"\", \"\",  INDEX('Full set Core Client Indicator'!$A$3:$AB$351, MATCH(Selection_Hide2!$A163, 'Full set Core Client Indicator'!$A$3:$A$351, 0), MATCH(Selection_Hide2!N$5, 'Full set Core Client Indicator'!$A$3:$AB$3, 0))), \"\")","v":""},{"$f":"IF(N163<>\"\", IF(INDEX('Full set Core Client Indicator'!$A$3:$AB$351, MATCH(Selection_Hide2!$A163, 'Full set Core Client Indicator'!$A$3:$A$351, 0), MATCH(Selection_Hide2!O$5, 'Full set Core Client Indicator'!$A$3:$AB$3, 0))=\"\", \"\",  INDEX('Full set Core Client Indicator'!$A$3:$AB$351, MATCH(Selection_Hide2!$A163, 'Full set Core Client Indicator'!$A$3:$A$351, 0), MATCH(Selection_Hide2!O$5, 'Full set Core Client Indicator'!$A$3:$AB$3, 0))), \"\")","v":""},{"$f":"IF(O163<>\"\", IF(INDEX('Full set Core Client Indicator'!$A$3:$AB$351, MATCH(Selection_Hide2!$A163, 'Full set Core Client Indicator'!$A$3:$A$351, 0), MATCH(Selection_Hide2!P$5, 'Full set Core Client Indicator'!$A$3:$AB$3, 0))=\"\", \"\",  INDEX('Full set Core Client Indicator'!$A$3:$AB$351, MATCH(Selection_Hide2!$A163, 'Full set Core Client Indicator'!$A$3:$A$351, 0), MATCH(Selection_Hide2!P$5, 'Full set Core Client Indicator'!$A$3:$AB$3, 0))), \"\")","v":""},{"$f":"IF(P163<>\"\", IF(INDEX('Full set Core Client Indicator'!$A$3:$AB$351, MATCH(Selection_Hide2!$A163, 'Full set Core Client Indicator'!$A$3:$A$351, 0), MATCH(Selection_Hide2!Q$5, 'Full set Core Client Indicator'!$A$3:$AB$3, 0))=\"\", \"\",  INDEX('Full set Core Client Indicator'!$A$3:$AB$351, MATCH(Selection_Hide2!$A163, 'Full set Core Client Indicator'!$A$3:$A$351, 0), MATCH(Selection_Hide2!Q$5, 'Full set Core Client Indicator'!$A$3:$AB$3, 0))), \"\")","v":""},{"$f":"IF(Q163<>\"\", IF(INDEX('Full set Core Client Indicator'!$A$3:$AB$351, MATCH(Selection_Hide2!$A163, 'Full set Core Client Indicator'!$A$3:$A$351, 0), MATCH(Selection_Hide2!R$5, 'Full set Core Client Indicator'!$A$3:$AB$3, 0))=\"\", \"\",  INDEX('Full set Core Client Indicator'!$A$3:$AB$351, MATCH(Selection_Hide2!$A163, 'Full set Core Client Indicator'!$A$3:$A$351, 0), MATCH(Selection_Hide2!R$5, 'Full set Core Client Indicator'!$A$3:$AB$3, 0))), \"\")","v":""},{"$f":"IF(R163<>\"\", IF(INDEX('Full set Core Client Indicator'!$A$3:$AB$351, MATCH(Selection_Hide2!$A163, 'Full set Core Client Indicator'!$A$3:$A$351, 0), MATCH(Selection_Hide2!S$5, 'Full set Core Client Indicator'!$A$3:$AB$3, 0))=\"\", \"\",  INDEX('Full set Core Client Indicator'!$A$3:$AB$351, MATCH(Selection_Hide2!$A163, 'Full set Core Client Indicator'!$A$3:$A$351, 0), MATCH(Selection_Hide2!S$5, 'Full set Core Client Indicator'!$A$3:$AB$3, 0))), \"\")","v":""},{"$f":"IF(S163<>\"\", IF(INDEX('Full set Core Client Indicator'!$A$3:$AB$351, MATCH(Selection_Hide2!$A163, 'Full set Core Client Indicator'!$A$3:$A$351, 0), MATCH(Selection_Hide2!T$5, 'Full set Core Client Indicator'!$A$3:$AB$3, 0))=\"\", \"\",  INDEX('Full set Core Client Indicator'!$A$3:$AB$351, MATCH(Selection_Hide2!$A163, 'Full set Core Client Indicator'!$A$3:$A$351, 0), MATCH(Selection_Hide2!T$5, 'Full set Core Client Indicator'!$A$3:$AB$3, 0))), \"\")","v":""},{"$f":"IF(T163<>\"\", IF(INDEX('Full set Core Client Indicator'!$A$3:$AB$351, MATCH(Selection_Hide2!$A163, 'Full set Core Client Indicator'!$A$3:$A$351, 0), MATCH(Selection_Hide2!U$5, 'Full set Core Client Indicator'!$A$3:$AB$3, 0))=\"\", \"\",  INDEX('Full set Core Client Indicator'!$A$3:$AB$351, MATCH(Selection_Hide2!$A163, 'Full set Core Client Indicator'!$A$3:$A$351, 0), MATCH(Selection_Hide2!U$5, 'Full set Core Client Indicator'!$A$3:$AB$3, 0))), \"\")","v":""},{"$f":"IF(U163<>\"\", IF(INDEX('Full set Core Client Indicator'!$A$3:$AB$351, MATCH(Selection_Hide2!$A163, 'Full set Core Client Indicator'!$A$3:$A$351, 0), MATCH(Selection_Hide2!V$5, 'Full set Core Client Indicator'!$A$3:$AB$3, 0))=\"\", \"\",  INDEX('Full set Core Client Indicator'!$A$3:$AB$351, MATCH(Selection_Hide2!$A163, 'Full set Core Client Indicator'!$A$3:$A$351, 0), MATCH(Selection_Hide2!V$5, 'Full set Core Client Indicator'!$A$3:$AB$3, 0))), \"\")","v":""},{"$f":"IF(V163<>\"\", IF(INDEX('Full set Core Client Indicator'!$A$3:$AB$351, MATCH(Selection_Hide2!$A163, 'Full set Core Client Indicator'!$A$3:$A$351, 0), MATCH(Selection_Hide2!W$5, 'Full set Core Client Indicator'!$A$3:$AB$3, 0))=\"\", \"\",  INDEX('Full set Core Client Indicator'!$A$3:$AB$351, MATCH(Selection_Hide2!$A163, 'Full set Core Client Indicator'!$A$3:$A$351, 0), MATCH(Selection_Hide2!W$5, 'Full set Core Client Indicator'!$A$3:$AB$3, 0))), \"\")","v":""},{"$f":"IF(W163<>\"\", IF(INDEX('Full set Core Client Indicator'!$A$3:$AB$351, MATCH(Selection_Hide2!$A163, 'Full set Core Client Indicator'!$A$3:$A$351, 0), MATCH(Selection_Hide2!X$5, 'Full set Core Client Indicator'!$A$3:$AB$3, 0))=\"\", \"\",  INDEX('Full set Core Client Indicator'!$A$3:$AB$351, MATCH(Selection_Hide2!$A163, 'Full set Core Client Indicator'!$A$3:$A$351, 0), MATCH(Selection_Hide2!X$5, 'Full set Core Client Indicator'!$A$3:$AB$3, 0))), \"\")","v":""},{"$f":"IF(X163<>\"\", IF(INDEX('Full set Core Client Indicator'!$A$3:$AB$351, MATCH(Selection_Hide2!$A163, 'Full set Core Client Indicator'!$A$3:$A$351, 0), MATCH(Selection_Hide2!Y$5, 'Full set Core Client Indicator'!$A$3:$AB$3, 0))=\"\", \"\",  INDEX('Full set Core Client Indicator'!$A$3:$AB$351, MATCH(Selection_Hide2!$A163, 'Full set Core Client Indicator'!$A$3:$A$351, 0), MATCH(Selection_Hide2!Y$5, 'Full set Core Client Indicator'!$A$3:$AB$3, 0))), \"\")","v":""},{"$f":"IF(Y163<>\"\", IF(INDEX('Full set Core Client Indicator'!$A$3:$AB$351, MATCH(Selection_Hide2!$A163, 'Full set Core Client Indicator'!$A$3:$A$351, 0), MATCH(Selection_Hide2!Z$5, 'Full set Core Client Indicator'!$A$3:$AB$3, 0))=\"\", \"\",  INDEX('Full set Core Client Indicator'!$A$3:$AB$351, MATCH(Selection_Hide2!$A163, 'Full set Core Client Indicator'!$A$3:$A$351, 0), MATCH(Selection_Hide2!Z$5, 'Full set Core Client Indicator'!$A$3:$AB$3, 0))), \"\")","v":""},{"$f":"IF(Z163<>\"\", IF(INDEX('Full set Core Client Indicator'!$A$3:$AB$351, MATCH(Selection_Hide2!$A163, 'Full set Core Client Indicator'!$A$3:$A$351, 0), MATCH(Selection_Hide2!AA$5, 'Full set Core Client Indicator'!$A$3:$AB$3, 0))=\"\", \"\",  INDEX('Full set Core Client Indicator'!$A$3:$AB$351, MATCH(Selection_Hide2!$A163, 'Full set Core Client Indicator'!$A$3:$A$351, 0), MATCH(Selection_Hide2!AA$5, 'Full set Core Client Indicator'!$A$3:$AB$3, 0))), \"\")","v":""},{"$f":"IF(AA163<>\"\", IF(INDEX('Full set Core Client Indicator'!$A$3:$AB$351, MATCH(Selection_Hide2!$A163, 'Full set Core Client Indicator'!$A$3:$A$351, 0), MATCH(Selection_Hide2!AB$5, 'Full set Core Client Indicator'!$A$3:$AB$3, 0))=\"\", \"\",  INDEX('Full set Core Client Indicator'!$A$3:$AB$351, MATCH(Selection_Hide2!$A163, 'Full set Core Client Indicator'!$A$3:$A$351, 0), MATCH(Selection_Hide2!AB$5, 'Full set Core Client Indicator'!$A$3:$AB$3, 0))), \"\")","v":""}]
[{"$f":"IF(AND(Selection_Hide1!C162<>0, Selection_Hide1!C162<>\"Grand Total\"), Selection_Hide1!C162, \"\")","v":""},{"$f":"IF(A164<>\"\", IF(INDEX('Full set Core Client Indicator'!$A$3:$AB$351, MATCH(Selection_Hide2!$A164, 'Full set Core Client Indicator'!$A$3:$A$351, 0), MATCH(Selection_Hide2!B$5, 'Full set Core Client Indicator'!$A$3:$AB$3, 0))=\"\", \"\",  INDEX('Full set Core Client Indicator'!$A$3:$AB$351, MATCH(Selection_Hide2!$A164, 'Full set Core Client Indicator'!$A$3:$A$351, 0), MATCH(Selection_Hide2!B$5, 'Full set Core Client Indicator'!$A$3:$AB$3, 0))), \"\")","v":""},{"$f":"IF(B164<>\"\", IF(INDEX('Full set Core Client Indicator'!$A$3:$AB$351, MATCH(Selection_Hide2!$A164, 'Full set Core Client Indicator'!$A$3:$A$351, 0), MATCH(Selection_Hide2!C$5, 'Full set Core Client Indicator'!$A$3:$AB$3, 0))=\"\", \"\",  INDEX('Full set Core Client Indicator'!$A$3:$AB$351, MATCH(Selection_Hide2!$A164, 'Full set Core Client Indicator'!$A$3:$A$351, 0), MATCH(Selection_Hide2!C$5, 'Full set Core Client Indicator'!$A$3:$AB$3, 0))), \"\")","v":""},{"$f":"IF(C164<>\"\", IF(INDEX('Full set Core Client Indicator'!$A$3:$AB$351, MATCH(Selection_Hide2!$A164, 'Full set Core Client Indicator'!$A$3:$A$351, 0), MATCH(Selection_Hide2!D$5, 'Full set Core Client Indicator'!$A$3:$AB$3, 0))=\"\", \"\",  INDEX('Full set Core Client Indicator'!$A$3:$AB$351, MATCH(Selection_Hide2!$A164, 'Full set Core Client Indicator'!$A$3:$A$351, 0), MATCH(Selection_Hide2!D$5, 'Full set Core Client Indicator'!$A$3:$AB$3, 0))), \"\")","v":""},{"$f":"IF(D164<>\"\", IF(INDEX('Full set Core Client Indicator'!$A$3:$AB$351, MATCH(Selection_Hide2!$A164, 'Full set Core Client Indicator'!$A$3:$A$351, 0), MATCH(Selection_Hide2!E$5, 'Full set Core Client Indicator'!$A$3:$AB$3, 0))=\"\", \"\",  INDEX('Full set Core Client Indicator'!$A$3:$AB$351, MATCH(Selection_Hide2!$A164, 'Full set Core Client Indicator'!$A$3:$A$351, 0), MATCH(Selection_Hide2!E$5, 'Full set Core Client Indicator'!$A$3:$AB$3, 0))), \"\")","v":""},{"$f":"IF(E164<>\"\", IF(INDEX('Full set Core Client Indicator'!$A$3:$AB$351, MATCH(Selection_Hide2!$A164, 'Full set Core Client Indicator'!$A$3:$A$351, 0), MATCH(Selection_Hide2!F$5, 'Full set Core Client Indicator'!$A$3:$AB$3, 0))=\"\", \"\",  INDEX('Full set Core Client Indicator'!$A$3:$AB$351, MATCH(Selection_Hide2!$A164, 'Full set Core Client Indicator'!$A$3:$A$351, 0), MATCH(Selection_Hide2!F$5, 'Full set Core Client Indicator'!$A$3:$AB$3, 0))), \"\")","v":""},{"$f":"IF(F164<>\"\", IF(INDEX('Full set Core Client Indicator'!$A$3:$AB$351, MATCH(Selection_Hide2!$A164, 'Full set Core Client Indicator'!$A$3:$A$351, 0), MATCH(Selection_Hide2!G$5, 'Full set Core Client Indicator'!$A$3:$AB$3, 0))=\"\", \"\",  INDEX('Full set Core Client Indicator'!$A$3:$AB$351, MATCH(Selection_Hide2!$A164, 'Full set Core Client Indicator'!$A$3:$A$351, 0), MATCH(Selection_Hide2!G$5, 'Full set Core Client Indicator'!$A$3:$AB$3, 0))), \"\")","v":""},{"$f":"IF(G164<>\"\", IF(INDEX('Full set Core Client Indicator'!$A$3:$AB$351, MATCH(Selection_Hide2!$A164, 'Full set Core Client Indicator'!$A$3:$A$351, 0), MATCH(Selection_Hide2!H$5, 'Full set Core Client Indicator'!$A$3:$AB$3, 0))=\"\", \"\",  INDEX('Full set Core Client Indicator'!$A$3:$AB$351, MATCH(Selection_Hide2!$A164, 'Full set Core Client Indicator'!$A$3:$A$351, 0), MATCH(Selection_Hide2!H$5, 'Full set Core Client Indicator'!$A$3:$AB$3, 0))), \"\")","v":""},{"$f":"IF(H164<>\"\", IF(INDEX('Full set Core Client Indicator'!$A$3:$AB$351, MATCH(Selection_Hide2!$A164, 'Full set Core Client Indicator'!$A$3:$A$351, 0), MATCH(Selection_Hide2!I$5, 'Full set Core Client Indicator'!$A$3:$AB$3, 0))=\"\", \"\",  INDEX('Full set Core Client Indicator'!$A$3:$AB$351, MATCH(Selection_Hide2!$A164, 'Full set Core Client Indicator'!$A$3:$A$351, 0), MATCH(Selection_Hide2!I$5, 'Full set Core Client Indicator'!$A$3:$AB$3, 0))), \"\")","v":""},{"$f":"IF(I164<>\"\", IF(INDEX('Full set Core Client Indicator'!$A$3:$AB$351, MATCH(Selection_Hide2!$A164, 'Full set Core Client Indicator'!$A$3:$A$351, 0), MATCH(Selection_Hide2!J$5, 'Full set Core Client Indicator'!$A$3:$AB$3, 0))=\"\", \"\",  INDEX('Full set Core Client Indicator'!$A$3:$AB$351, MATCH(Selection_Hide2!$A164, 'Full set Core Client Indicator'!$A$3:$A$351, 0), MATCH(Selection_Hide2!J$5, 'Full set Core Client Indicator'!$A$3:$AB$3, 0))), \"\")","v":""},{"$f":"IF(J164<>\"\", IF(INDEX('Full set Core Client Indicator'!$A$3:$AB$351, MATCH(Selection_Hide2!$A164, 'Full set Core Client Indicator'!$A$3:$A$351, 0), MATCH(Selection_Hide2!K$5, 'Full set Core Client Indicator'!$A$3:$AB$3, 0))=\"\", \"\",  INDEX('Full set Core Client Indicator'!$A$3:$AB$351, MATCH(Selection_Hide2!$A164, 'Full set Core Client Indicator'!$A$3:$A$351, 0), MATCH(Selection_Hide2!K$5, 'Full set Core Client Indicator'!$A$3:$AB$3, 0))), \"\")","v":""},{"$f":"IF(K164<>\"\", IF(INDEX('Full set Core Client Indicator'!$A$3:$AB$351, MATCH(Selection_Hide2!$A164, 'Full set Core Client Indicator'!$A$3:$A$351, 0), MATCH(Selection_Hide2!L$5, 'Full set Core Client Indicator'!$A$3:$AB$3, 0))=\"\", \"\",  INDEX('Full set Core Client Indicator'!$A$3:$AB$351, MATCH(Selection_Hide2!$A164, 'Full set Core Client Indicator'!$A$3:$A$351, 0), MATCH(Selection_Hide2!L$5, 'Full set Core Client Indicator'!$A$3:$AB$3, 0))), \"\")","v":""},{"$f":"IF(L164<>\"\", IF(INDEX('Full set Core Client Indicator'!$A$3:$AB$351, MATCH(Selection_Hide2!$A164, 'Full set Core Client Indicator'!$A$3:$A$351, 0), MATCH(Selection_Hide2!M$5, 'Full set Core Client Indicator'!$A$3:$AB$3, 0))=\"\", \"\",  INDEX('Full set Core Client Indicator'!$A$3:$AB$351, MATCH(Selection_Hide2!$A164, 'Full set Core Client Indicator'!$A$3:$A$351, 0), MATCH(Selection_Hide2!M$5, 'Full set Core Client Indicator'!$A$3:$AB$3, 0))), \"\")","v":""},{"$f":"IF(M164<>\"\", IF(INDEX('Full set Core Client Indicator'!$A$3:$AB$351, MATCH(Selection_Hide2!$A164, 'Full set Core Client Indicator'!$A$3:$A$351, 0), MATCH(Selection_Hide2!N$5, 'Full set Core Client Indicator'!$A$3:$AB$3, 0))=\"\", \"\",  INDEX('Full set Core Client Indicator'!$A$3:$AB$351, MATCH(Selection_Hide2!$A164, 'Full set Core Client Indicator'!$A$3:$A$351, 0), MATCH(Selection_Hide2!N$5, 'Full set Core Client Indicator'!$A$3:$AB$3, 0))), \"\")","v":""},{"$f":"IF(N164<>\"\", IF(INDEX('Full set Core Client Indicator'!$A$3:$AB$351, MATCH(Selection_Hide2!$A164, 'Full set Core Client Indicator'!$A$3:$A$351, 0), MATCH(Selection_Hide2!O$5, 'Full set Core Client Indicator'!$A$3:$AB$3, 0))=\"\", \"\",  INDEX('Full set Core Client Indicator'!$A$3:$AB$351, MATCH(Selection_Hide2!$A164, 'Full set Core Client Indicator'!$A$3:$A$351, 0), MATCH(Selection_Hide2!O$5, 'Full set Core Client Indicator'!$A$3:$AB$3, 0))), \"\")","v":""},{"$f":"IF(O164<>\"\", IF(INDEX('Full set Core Client Indicator'!$A$3:$AB$351, MATCH(Selection_Hide2!$A164, 'Full set Core Client Indicator'!$A$3:$A$351, 0), MATCH(Selection_Hide2!P$5, 'Full set Core Client Indicator'!$A$3:$AB$3, 0))=\"\", \"\",  INDEX('Full set Core Client Indicator'!$A$3:$AB$351, MATCH(Selection_Hide2!$A164, 'Full set Core Client Indicator'!$A$3:$A$351, 0), MATCH(Selection_Hide2!P$5, 'Full set Core Client Indicator'!$A$3:$AB$3, 0))), \"\")","v":""},{"$f":"IF(P164<>\"\", IF(INDEX('Full set Core Client Indicator'!$A$3:$AB$351, MATCH(Selection_Hide2!$A164, 'Full set Core Client Indicator'!$A$3:$A$351, 0), MATCH(Selection_Hide2!Q$5, 'Full set Core Client Indicator'!$A$3:$AB$3, 0))=\"\", \"\",  INDEX('Full set Core Client Indicator'!$A$3:$AB$351, MATCH(Selection_Hide2!$A164, 'Full set Core Client Indicator'!$A$3:$A$351, 0), MATCH(Selection_Hide2!Q$5, 'Full set Core Client Indicator'!$A$3:$AB$3, 0))), \"\")","v":""},{"$f":"IF(Q164<>\"\", IF(INDEX('Full set Core Client Indicator'!$A$3:$AB$351, MATCH(Selection_Hide2!$A164, 'Full set Core Client Indicator'!$A$3:$A$351, 0), MATCH(Selection_Hide2!R$5, 'Full set Core Client Indicator'!$A$3:$AB$3, 0))=\"\", \"\",  INDEX('Full set Core Client Indicator'!$A$3:$AB$351, MATCH(Selection_Hide2!$A164, 'Full set Core Client Indicator'!$A$3:$A$351, 0), MATCH(Selection_Hide2!R$5, 'Full set Core Client Indicator'!$A$3:$AB$3, 0))), \"\")","v":""},{"$f":"IF(R164<>\"\", IF(INDEX('Full set Core Client Indicator'!$A$3:$AB$351, MATCH(Selection_Hide2!$A164, 'Full set Core Client Indicator'!$A$3:$A$351, 0), MATCH(Selection_Hide2!S$5, 'Full set Core Client Indicator'!$A$3:$AB$3, 0))=\"\", \"\",  INDEX('Full set Core Client Indicator'!$A$3:$AB$351, MATCH(Selection_Hide2!$A164, 'Full set Core Client Indicator'!$A$3:$A$351, 0), MATCH(Selection_Hide2!S$5, 'Full set Core Client Indicator'!$A$3:$AB$3, 0))), \"\")","v":""},{"$f":"IF(S164<>\"\", IF(INDEX('Full set Core Client Indicator'!$A$3:$AB$351, MATCH(Selection_Hide2!$A164, 'Full set Core Client Indicator'!$A$3:$A$351, 0), MATCH(Selection_Hide2!T$5, 'Full set Core Client Indicator'!$A$3:$AB$3, 0))=\"\", \"\",  INDEX('Full set Core Client Indicator'!$A$3:$AB$351, MATCH(Selection_Hide2!$A164, 'Full set Core Client Indicator'!$A$3:$A$351, 0), MATCH(Selection_Hide2!T$5, 'Full set Core Client Indicator'!$A$3:$AB$3, 0))), \"\")","v":""},{"$f":"IF(T164<>\"\", IF(INDEX('Full set Core Client Indicator'!$A$3:$AB$351, MATCH(Selection_Hide2!$A164, 'Full set Core Client Indicator'!$A$3:$A$351, 0), MATCH(Selection_Hide2!U$5, 'Full set Core Client Indicator'!$A$3:$AB$3, 0))=\"\", \"\",  INDEX('Full set Core Client Indicator'!$A$3:$AB$351, MATCH(Selection_Hide2!$A164, 'Full set Core Client Indicator'!$A$3:$A$351, 0), MATCH(Selection_Hide2!U$5, 'Full set Core Client Indicator'!$A$3:$AB$3, 0))), \"\")","v":""},{"$f":"IF(U164<>\"\", IF(INDEX('Full set Core Client Indicator'!$A$3:$AB$351, MATCH(Selection_Hide2!$A164, 'Full set Core Client Indicator'!$A$3:$A$351, 0), MATCH(Selection_Hide2!V$5, 'Full set Core Client Indicator'!$A$3:$AB$3, 0))=\"\", \"\",  INDEX('Full set Core Client Indicator'!$A$3:$AB$351, MATCH(Selection_Hide2!$A164, 'Full set Core Client Indicator'!$A$3:$A$351, 0), MATCH(Selection_Hide2!V$5, 'Full set Core Client Indicator'!$A$3:$AB$3, 0))), \"\")","v":""},{"$f":"IF(V164<>\"\", IF(INDEX('Full set Core Client Indicator'!$A$3:$AB$351, MATCH(Selection_Hide2!$A164, 'Full set Core Client Indicator'!$A$3:$A$351, 0), MATCH(Selection_Hide2!W$5, 'Full set Core Client Indicator'!$A$3:$AB$3, 0))=\"\", \"\",  INDEX('Full set Core Client Indicator'!$A$3:$AB$351, MATCH(Selection_Hide2!$A164, 'Full set Core Client Indicator'!$A$3:$A$351, 0), MATCH(Selection_Hide2!W$5, 'Full set Core Client Indicator'!$A$3:$AB$3, 0))), \"\")","v":""},{"$f":"IF(W164<>\"\", IF(INDEX('Full set Core Client Indicator'!$A$3:$AB$351, MATCH(Selection_Hide2!$A164, 'Full set Core Client Indicator'!$A$3:$A$351, 0), MATCH(Selection_Hide2!X$5, 'Full set Core Client Indicator'!$A$3:$AB$3, 0))=\"\", \"\",  INDEX('Full set Core Client Indicator'!$A$3:$AB$351, MATCH(Selection_Hide2!$A164, 'Full set Core Client Indicator'!$A$3:$A$351, 0), MATCH(Selection_Hide2!X$5, 'Full set Core Client Indicator'!$A$3:$AB$3, 0))), \"\")","v":""},{"$f":"IF(X164<>\"\", IF(INDEX('Full set Core Client Indicator'!$A$3:$AB$351, MATCH(Selection_Hide2!$A164, 'Full set Core Client Indicator'!$A$3:$A$351, 0), MATCH(Selection_Hide2!Y$5, 'Full set Core Client Indicator'!$A$3:$AB$3, 0))=\"\", \"\",  INDEX('Full set Core Client Indicator'!$A$3:$AB$351, MATCH(Selection_Hide2!$A164, 'Full set Core Client Indicator'!$A$3:$A$351, 0), MATCH(Selection_Hide2!Y$5, 'Full set Core Client Indicator'!$A$3:$AB$3, 0))), \"\")","v":""},{"$f":"IF(Y164<>\"\", IF(INDEX('Full set Core Client Indicator'!$A$3:$AB$351, MATCH(Selection_Hide2!$A164, 'Full set Core Client Indicator'!$A$3:$A$351, 0), MATCH(Selection_Hide2!Z$5, 'Full set Core Client Indicator'!$A$3:$AB$3, 0))=\"\", \"\",  INDEX('Full set Core Client Indicator'!$A$3:$AB$351, MATCH(Selection_Hide2!$A164, 'Full set Core Client Indicator'!$A$3:$A$351, 0), MATCH(Selection_Hide2!Z$5, 'Full set Core Client Indicator'!$A$3:$AB$3, 0))), \"\")","v":""},{"$f":"IF(Z164<>\"\", IF(INDEX('Full set Core Client Indicator'!$A$3:$AB$351, MATCH(Selection_Hide2!$A164, 'Full set Core Client Indicator'!$A$3:$A$351, 0), MATCH(Selection_Hide2!AA$5, 'Full set Core Client Indicator'!$A$3:$AB$3, 0))=\"\", \"\",  INDEX('Full set Core Client Indicator'!$A$3:$AB$351, MATCH(Selection_Hide2!$A164, 'Full set Core Client Indicator'!$A$3:$A$351, 0), MATCH(Selection_Hide2!AA$5, 'Full set Core Client Indicator'!$A$3:$AB$3, 0))), \"\")","v":""},{"$f":"IF(AA164<>\"\", IF(INDEX('Full set Core Client Indicator'!$A$3:$AB$351, MATCH(Selection_Hide2!$A164, 'Full set Core Client Indicator'!$A$3:$A$351, 0), MATCH(Selection_Hide2!AB$5, 'Full set Core Client Indicator'!$A$3:$AB$3, 0))=\"\", \"\",  INDEX('Full set Core Client Indicator'!$A$3:$AB$351, MATCH(Selection_Hide2!$A164, 'Full set Core Client Indicator'!$A$3:$A$351, 0), MATCH(Selection_Hide2!AB$5, 'Full set Core Client Indicator'!$A$3:$AB$3, 0))), \"\")","v":""}]
[{"$f":"IF(AND(Selection_Hide1!C163<>0, Selection_Hide1!C163<>\"Grand Total\"), Selection_Hide1!C163, \"\")","v":""},{"$f":"IF(A165<>\"\", IF(INDEX('Full set Core Client Indicator'!$A$3:$AB$351, MATCH(Selection_Hide2!$A165, 'Full set Core Client Indicator'!$A$3:$A$351, 0), MATCH(Selection_Hide2!B$5, 'Full set Core Client Indicator'!$A$3:$AB$3, 0))=\"\", \"\",  INDEX('Full set Core Client Indicator'!$A$3:$AB$351, MATCH(Selection_Hide2!$A165, 'Full set Core Client Indicator'!$A$3:$A$351, 0), MATCH(Selection_Hide2!B$5, 'Full set Core Client Indicator'!$A$3:$AB$3, 0))), \"\")","v":""},{"$f":"IF(B165<>\"\", IF(INDEX('Full set Core Client Indicator'!$A$3:$AB$351, MATCH(Selection_Hide2!$A165, 'Full set Core Client Indicator'!$A$3:$A$351, 0), MATCH(Selection_Hide2!C$5, 'Full set Core Client Indicator'!$A$3:$AB$3, 0))=\"\", \"\",  INDEX('Full set Core Client Indicator'!$A$3:$AB$351, MATCH(Selection_Hide2!$A165, 'Full set Core Client Indicator'!$A$3:$A$351, 0), MATCH(Selection_Hide2!C$5, 'Full set Core Client Indicator'!$A$3:$AB$3, 0))), \"\")","v":""},{"$f":"IF(C165<>\"\", IF(INDEX('Full set Core Client Indicator'!$A$3:$AB$351, MATCH(Selection_Hide2!$A165, 'Full set Core Client Indicator'!$A$3:$A$351, 0), MATCH(Selection_Hide2!D$5, 'Full set Core Client Indicator'!$A$3:$AB$3, 0))=\"\", \"\",  INDEX('Full set Core Client Indicator'!$A$3:$AB$351, MATCH(Selection_Hide2!$A165, 'Full set Core Client Indicator'!$A$3:$A$351, 0), MATCH(Selection_Hide2!D$5, 'Full set Core Client Indicator'!$A$3:$AB$3, 0))), \"\")","v":""},{"$f":"IF(D165<>\"\", IF(INDEX('Full set Core Client Indicator'!$A$3:$AB$351, MATCH(Selection_Hide2!$A165, 'Full set Core Client Indicator'!$A$3:$A$351, 0), MATCH(Selection_Hide2!E$5, 'Full set Core Client Indicator'!$A$3:$AB$3, 0))=\"\", \"\",  INDEX('Full set Core Client Indicator'!$A$3:$AB$351, MATCH(Selection_Hide2!$A165, 'Full set Core Client Indicator'!$A$3:$A$351, 0), MATCH(Selection_Hide2!E$5, 'Full set Core Client Indicator'!$A$3:$AB$3, 0))), \"\")","v":""},{"$f":"IF(E165<>\"\", IF(INDEX('Full set Core Client Indicator'!$A$3:$AB$351, MATCH(Selection_Hide2!$A165, 'Full set Core Client Indicator'!$A$3:$A$351, 0), MATCH(Selection_Hide2!F$5, 'Full set Core Client Indicator'!$A$3:$AB$3, 0))=\"\", \"\",  INDEX('Full set Core Client Indicator'!$A$3:$AB$351, MATCH(Selection_Hide2!$A165, 'Full set Core Client Indicator'!$A$3:$A$351, 0), MATCH(Selection_Hide2!F$5, 'Full set Core Client Indicator'!$A$3:$AB$3, 0))), \"\")","v":""},{"$f":"IF(F165<>\"\", IF(INDEX('Full set Core Client Indicator'!$A$3:$AB$351, MATCH(Selection_Hide2!$A165, 'Full set Core Client Indicator'!$A$3:$A$351, 0), MATCH(Selection_Hide2!G$5, 'Full set Core Client Indicator'!$A$3:$AB$3, 0))=\"\", \"\",  INDEX('Full set Core Client Indicator'!$A$3:$AB$351, MATCH(Selection_Hide2!$A165, 'Full set Core Client Indicator'!$A$3:$A$351, 0), MATCH(Selection_Hide2!G$5, 'Full set Core Client Indicator'!$A$3:$AB$3, 0))), \"\")","v":""},{"$f":"IF(G165<>\"\", IF(INDEX('Full set Core Client Indicator'!$A$3:$AB$351, MATCH(Selection_Hide2!$A165, 'Full set Core Client Indicator'!$A$3:$A$351, 0), MATCH(Selection_Hide2!H$5, 'Full set Core Client Indicator'!$A$3:$AB$3, 0))=\"\", \"\",  INDEX('Full set Core Client Indicator'!$A$3:$AB$351, MATCH(Selection_Hide2!$A165, 'Full set Core Client Indicator'!$A$3:$A$351, 0), MATCH(Selection_Hide2!H$5, 'Full set Core Client Indicator'!$A$3:$AB$3, 0))), \"\")","v":""},{"$f":"IF(H165<>\"\", IF(INDEX('Full set Core Client Indicator'!$A$3:$AB$351, MATCH(Selection_Hide2!$A165, 'Full set Core Client Indicator'!$A$3:$A$351, 0), MATCH(Selection_Hide2!I$5, 'Full set Core Client Indicator'!$A$3:$AB$3, 0))=\"\", \"\",  INDEX('Full set Core Client Indicator'!$A$3:$AB$351, MATCH(Selection_Hide2!$A165, 'Full set Core Client Indicator'!$A$3:$A$351, 0), MATCH(Selection_Hide2!I$5, 'Full set Core Client Indicator'!$A$3:$AB$3, 0))), \"\")","v":""},{"$f":"IF(I165<>\"\", IF(INDEX('Full set Core Client Indicator'!$A$3:$AB$351, MATCH(Selection_Hide2!$A165, 'Full set Core Client Indicator'!$A$3:$A$351, 0), MATCH(Selection_Hide2!J$5, 'Full set Core Client Indicator'!$A$3:$AB$3, 0))=\"\", \"\",  INDEX('Full set Core Client Indicator'!$A$3:$AB$351, MATCH(Selection_Hide2!$A165, 'Full set Core Client Indicator'!$A$3:$A$351, 0), MATCH(Selection_Hide2!J$5, 'Full set Core Client Indicator'!$A$3:$AB$3, 0))), \"\")","v":""},{"$f":"IF(J165<>\"\", IF(INDEX('Full set Core Client Indicator'!$A$3:$AB$351, MATCH(Selection_Hide2!$A165, 'Full set Core Client Indicator'!$A$3:$A$351, 0), MATCH(Selection_Hide2!K$5, 'Full set Core Client Indicator'!$A$3:$AB$3, 0))=\"\", \"\",  INDEX('Full set Core Client Indicator'!$A$3:$AB$351, MATCH(Selection_Hide2!$A165, 'Full set Core Client Indicator'!$A$3:$A$351, 0), MATCH(Selection_Hide2!K$5, 'Full set Core Client Indicator'!$A$3:$AB$3, 0))), \"\")","v":""},{"$f":"IF(K165<>\"\", IF(INDEX('Full set Core Client Indicator'!$A$3:$AB$351, MATCH(Selection_Hide2!$A165, 'Full set Core Client Indicator'!$A$3:$A$351, 0), MATCH(Selection_Hide2!L$5, 'Full set Core Client Indicator'!$A$3:$AB$3, 0))=\"\", \"\",  INDEX('Full set Core Client Indicator'!$A$3:$AB$351, MATCH(Selection_Hide2!$A165, 'Full set Core Client Indicator'!$A$3:$A$351, 0), MATCH(Selection_Hide2!L$5, 'Full set Core Client Indicator'!$A$3:$AB$3, 0))), \"\")","v":""},{"$f":"IF(L165<>\"\", IF(INDEX('Full set Core Client Indicator'!$A$3:$AB$351, MATCH(Selection_Hide2!$A165, 'Full set Core Client Indicator'!$A$3:$A$351, 0), MATCH(Selection_Hide2!M$5, 'Full set Core Client Indicator'!$A$3:$AB$3, 0))=\"\", \"\",  INDEX('Full set Core Client Indicator'!$A$3:$AB$351, MATCH(Selection_Hide2!$A165, 'Full set Core Client Indicator'!$A$3:$A$351, 0), MATCH(Selection_Hide2!M$5, 'Full set Core Client Indicator'!$A$3:$AB$3, 0))), \"\")","v":""},{"$f":"IF(M165<>\"\", IF(INDEX('Full set Core Client Indicator'!$A$3:$AB$351, MATCH(Selection_Hide2!$A165, 'Full set Core Client Indicator'!$A$3:$A$351, 0), MATCH(Selection_Hide2!N$5, 'Full set Core Client Indicator'!$A$3:$AB$3, 0))=\"\", \"\",  INDEX('Full set Core Client Indicator'!$A$3:$AB$351, MATCH(Selection_Hide2!$A165, 'Full set Core Client Indicator'!$A$3:$A$351, 0), MATCH(Selection_Hide2!N$5, 'Full set Core Client Indicator'!$A$3:$AB$3, 0))), \"\")","v":""},{"$f":"IF(N165<>\"\", IF(INDEX('Full set Core Client Indicator'!$A$3:$AB$351, MATCH(Selection_Hide2!$A165, 'Full set Core Client Indicator'!$A$3:$A$351, 0), MATCH(Selection_Hide2!O$5, 'Full set Core Client Indicator'!$A$3:$AB$3, 0))=\"\", \"\",  INDEX('Full set Core Client Indicator'!$A$3:$AB$351, MATCH(Selection_Hide2!$A165, 'Full set Core Client Indicator'!$A$3:$A$351, 0), MATCH(Selection_Hide2!O$5, 'Full set Core Client Indicator'!$A$3:$AB$3, 0))), \"\")","v":""},{"$f":"IF(O165<>\"\", IF(INDEX('Full set Core Client Indicator'!$A$3:$AB$351, MATCH(Selection_Hide2!$A165, 'Full set Core Client Indicator'!$A$3:$A$351, 0), MATCH(Selection_Hide2!P$5, 'Full set Core Client Indicator'!$A$3:$AB$3, 0))=\"\", \"\",  INDEX('Full set Core Client Indicator'!$A$3:$AB$351, MATCH(Selection_Hide2!$A165, 'Full set Core Client Indicator'!$A$3:$A$351, 0), MATCH(Selection_Hide2!P$5, 'Full set Core Client Indicator'!$A$3:$AB$3, 0))), \"\")","v":""},{"$f":"IF(P165<>\"\", IF(INDEX('Full set Core Client Indicator'!$A$3:$AB$351, MATCH(Selection_Hide2!$A165, 'Full set Core Client Indicator'!$A$3:$A$351, 0), MATCH(Selection_Hide2!Q$5, 'Full set Core Client Indicator'!$A$3:$AB$3, 0))=\"\", \"\",  INDEX('Full set Core Client Indicator'!$A$3:$AB$351, MATCH(Selection_Hide2!$A165, 'Full set Core Client Indicator'!$A$3:$A$351, 0), MATCH(Selection_Hide2!Q$5, 'Full set Core Client Indicator'!$A$3:$AB$3, 0))), \"\")","v":""},{"$f":"IF(Q165<>\"\", IF(INDEX('Full set Core Client Indicator'!$A$3:$AB$351, MATCH(Selection_Hide2!$A165, 'Full set Core Client Indicator'!$A$3:$A$351, 0), MATCH(Selection_Hide2!R$5, 'Full set Core Client Indicator'!$A$3:$AB$3, 0))=\"\", \"\",  INDEX('Full set Core Client Indicator'!$A$3:$AB$351, MATCH(Selection_Hide2!$A165, 'Full set Core Client Indicator'!$A$3:$A$351, 0), MATCH(Selection_Hide2!R$5, 'Full set Core Client Indicator'!$A$3:$AB$3, 0))), \"\")","v":""},{"$f":"IF(R165<>\"\", IF(INDEX('Full set Core Client Indicator'!$A$3:$AB$351, MATCH(Selection_Hide2!$A165, 'Full set Core Client Indicator'!$A$3:$A$351, 0), MATCH(Selection_Hide2!S$5, 'Full set Core Client Indicator'!$A$3:$AB$3, 0))=\"\", \"\",  INDEX('Full set Core Client Indicator'!$A$3:$AB$351, MATCH(Selection_Hide2!$A165, 'Full set Core Client Indicator'!$A$3:$A$351, 0), MATCH(Selection_Hide2!S$5, 'Full set Core Client Indicator'!$A$3:$AB$3, 0))), \"\")","v":""},{"$f":"IF(S165<>\"\", IF(INDEX('Full set Core Client Indicator'!$A$3:$AB$351, MATCH(Selection_Hide2!$A165, 'Full set Core Client Indicator'!$A$3:$A$351, 0), MATCH(Selection_Hide2!T$5, 'Full set Core Client Indicator'!$A$3:$AB$3, 0))=\"\", \"\",  INDEX('Full set Core Client Indicator'!$A$3:$AB$351, MATCH(Selection_Hide2!$A165, 'Full set Core Client Indicator'!$A$3:$A$351, 0), MATCH(Selection_Hide2!T$5, 'Full set Core Client Indicator'!$A$3:$AB$3, 0))), \"\")","v":""},{"$f":"IF(T165<>\"\", IF(INDEX('Full set Core Client Indicator'!$A$3:$AB$351, MATCH(Selection_Hide2!$A165, 'Full set Core Client Indicator'!$A$3:$A$351, 0), MATCH(Selection_Hide2!U$5, 'Full set Core Client Indicator'!$A$3:$AB$3, 0))=\"\", \"\",  INDEX('Full set Core Client Indicator'!$A$3:$AB$351, MATCH(Selection_Hide2!$A165, 'Full set Core Client Indicator'!$A$3:$A$351, 0), MATCH(Selection_Hide2!U$5, 'Full set Core Client Indicator'!$A$3:$AB$3, 0))), \"\")","v":""},{"$f":"IF(U165<>\"\", IF(INDEX('Full set Core Client Indicator'!$A$3:$AB$351, MATCH(Selection_Hide2!$A165, 'Full set Core Client Indicator'!$A$3:$A$351, 0), MATCH(Selection_Hide2!V$5, 'Full set Core Client Indicator'!$A$3:$AB$3, 0))=\"\", \"\",  INDEX('Full set Core Client Indicator'!$A$3:$AB$351, MATCH(Selection_Hide2!$A165, 'Full set Core Client Indicator'!$A$3:$A$351, 0), MATCH(Selection_Hide2!V$5, 'Full set Core Client Indicator'!$A$3:$AB$3, 0))), \"\")","v":""},{"$f":"IF(V165<>\"\", IF(INDEX('Full set Core Client Indicator'!$A$3:$AB$351, MATCH(Selection_Hide2!$A165, 'Full set Core Client Indicator'!$A$3:$A$351, 0), MATCH(Selection_Hide2!W$5, 'Full set Core Client Indicator'!$A$3:$AB$3, 0))=\"\", \"\",  INDEX('Full set Core Client Indicator'!$A$3:$AB$351, MATCH(Selection_Hide2!$A165, 'Full set Core Client Indicator'!$A$3:$A$351, 0), MATCH(Selection_Hide2!W$5, 'Full set Core Client Indicator'!$A$3:$AB$3, 0))), \"\")","v":""},{"$f":"IF(W165<>\"\", IF(INDEX('Full set Core Client Indicator'!$A$3:$AB$351, MATCH(Selection_Hide2!$A165, 'Full set Core Client Indicator'!$A$3:$A$351, 0), MATCH(Selection_Hide2!X$5, 'Full set Core Client Indicator'!$A$3:$AB$3, 0))=\"\", \"\",  INDEX('Full set Core Client Indicator'!$A$3:$AB$351, MATCH(Selection_Hide2!$A165, 'Full set Core Client Indicator'!$A$3:$A$351, 0), MATCH(Selection_Hide2!X$5, 'Full set Core Client Indicator'!$A$3:$AB$3, 0))), \"\")","v":""},{"$f":"IF(X165<>\"\", IF(INDEX('Full set Core Client Indicator'!$A$3:$AB$351, MATCH(Selection_Hide2!$A165, 'Full set Core Client Indicator'!$A$3:$A$351, 0), MATCH(Selection_Hide2!Y$5, 'Full set Core Client Indicator'!$A$3:$AB$3, 0))=\"\", \"\",  INDEX('Full set Core Client Indicator'!$A$3:$AB$351, MATCH(Selection_Hide2!$A165, 'Full set Core Client Indicator'!$A$3:$A$351, 0), MATCH(Selection_Hide2!Y$5, 'Full set Core Client Indicator'!$A$3:$AB$3, 0))), \"\")","v":""},{"$f":"IF(Y165<>\"\", IF(INDEX('Full set Core Client Indicator'!$A$3:$AB$351, MATCH(Selection_Hide2!$A165, 'Full set Core Client Indicator'!$A$3:$A$351, 0), MATCH(Selection_Hide2!Z$5, 'Full set Core Client Indicator'!$A$3:$AB$3, 0))=\"\", \"\",  INDEX('Full set Core Client Indicator'!$A$3:$AB$351, MATCH(Selection_Hide2!$A165, 'Full set Core Client Indicator'!$A$3:$A$351, 0), MATCH(Selection_Hide2!Z$5, 'Full set Core Client Indicator'!$A$3:$AB$3, 0))), \"\")","v":""},{"$f":"IF(Z165<>\"\", IF(INDEX('Full set Core Client Indicator'!$A$3:$AB$351, MATCH(Selection_Hide2!$A165, 'Full set Core Client Indicator'!$A$3:$A$351, 0), MATCH(Selection_Hide2!AA$5, 'Full set Core Client Indicator'!$A$3:$AB$3, 0))=\"\", \"\",  INDEX('Full set Core Client Indicator'!$A$3:$AB$351, MATCH(Selection_Hide2!$A165, 'Full set Core Client Indicator'!$A$3:$A$351, 0), MATCH(Selection_Hide2!AA$5, 'Full set Core Client Indicator'!$A$3:$AB$3, 0))), \"\")","v":""},{"$f":"IF(AA165<>\"\", IF(INDEX('Full set Core Client Indicator'!$A$3:$AB$351, MATCH(Selection_Hide2!$A165, 'Full set Core Client Indicator'!$A$3:$A$351, 0), MATCH(Selection_Hide2!AB$5, 'Full set Core Client Indicator'!$A$3:$AB$3, 0))=\"\", \"\",  INDEX('Full set Core Client Indicator'!$A$3:$AB$351, MATCH(Selection_Hide2!$A165, 'Full set Core Client Indicator'!$A$3:$A$351, 0), MATCH(Selection_Hide2!AB$5, 'Full set Core Client Indicator'!$A$3:$AB$3, 0))), \"\")","v":""}]
[{"$f":"IF(AND(Selection_Hide1!C164<>0, Selection_Hide1!C164<>\"Grand Total\"), Selection_Hide1!C164, \"\")","v":""},{"$f":"IF(A166<>\"\", IF(INDEX('Full set Core Client Indicator'!$A$3:$AB$351, MATCH(Selection_Hide2!$A166, 'Full set Core Client Indicator'!$A$3:$A$351, 0), MATCH(Selection_Hide2!B$5, 'Full set Core Client Indicator'!$A$3:$AB$3, 0))=\"\", \"\",  INDEX('Full set Core Client Indicator'!$A$3:$AB$351, MATCH(Selection_Hide2!$A166, 'Full set Core Client Indicator'!$A$3:$A$351, 0), MATCH(Selection_Hide2!B$5, 'Full set Core Client Indicator'!$A$3:$AB$3, 0))), \"\")","v":""},{"$f":"IF(B166<>\"\", IF(INDEX('Full set Core Client Indicator'!$A$3:$AB$351, MATCH(Selection_Hide2!$A166, 'Full set Core Client Indicator'!$A$3:$A$351, 0), MATCH(Selection_Hide2!C$5, 'Full set Core Client Indicator'!$A$3:$AB$3, 0))=\"\", \"\",  INDEX('Full set Core Client Indicator'!$A$3:$AB$351, MATCH(Selection_Hide2!$A166, 'Full set Core Client Indicator'!$A$3:$A$351, 0), MATCH(Selection_Hide2!C$5, 'Full set Core Client Indicator'!$A$3:$AB$3, 0))), \"\")","v":""},{"$f":"IF(C166<>\"\", IF(INDEX('Full set Core Client Indicator'!$A$3:$AB$351, MATCH(Selection_Hide2!$A166, 'Full set Core Client Indicator'!$A$3:$A$351, 0), MATCH(Selection_Hide2!D$5, 'Full set Core Client Indicator'!$A$3:$AB$3, 0))=\"\", \"\",  INDEX('Full set Core Client Indicator'!$A$3:$AB$351, MATCH(Selection_Hide2!$A166, 'Full set Core Client Indicator'!$A$3:$A$351, 0), MATCH(Selection_Hide2!D$5, 'Full set Core Client Indicator'!$A$3:$AB$3, 0))), \"\")","v":""},{"$f":"IF(D166<>\"\", IF(INDEX('Full set Core Client Indicator'!$A$3:$AB$351, MATCH(Selection_Hide2!$A166, 'Full set Core Client Indicator'!$A$3:$A$351, 0), MATCH(Selection_Hide2!E$5, 'Full set Core Client Indicator'!$A$3:$AB$3, 0))=\"\", \"\",  INDEX('Full set Core Client Indicator'!$A$3:$AB$351, MATCH(Selection_Hide2!$A166, 'Full set Core Client Indicator'!$A$3:$A$351, 0), MATCH(Selection_Hide2!E$5, 'Full set Core Client Indicator'!$A$3:$AB$3, 0))), \"\")","v":""},{"$f":"IF(E166<>\"\", IF(INDEX('Full set Core Client Indicator'!$A$3:$AB$351, MATCH(Selection_Hide2!$A166, 'Full set Core Client Indicator'!$A$3:$A$351, 0), MATCH(Selection_Hide2!F$5, 'Full set Core Client Indicator'!$A$3:$AB$3, 0))=\"\", \"\",  INDEX('Full set Core Client Indicator'!$A$3:$AB$351, MATCH(Selection_Hide2!$A166, 'Full set Core Client Indicator'!$A$3:$A$351, 0), MATCH(Selection_Hide2!F$5, 'Full set Core Client Indicator'!$A$3:$AB$3, 0))), \"\")","v":""},{"$f":"IF(F166<>\"\", IF(INDEX('Full set Core Client Indicator'!$A$3:$AB$351, MATCH(Selection_Hide2!$A166, 'Full set Core Client Indicator'!$A$3:$A$351, 0), MATCH(Selection_Hide2!G$5, 'Full set Core Client Indicator'!$A$3:$AB$3, 0))=\"\", \"\",  INDEX('Full set Core Client Indicator'!$A$3:$AB$351, MATCH(Selection_Hide2!$A166, 'Full set Core Client Indicator'!$A$3:$A$351, 0), MATCH(Selection_Hide2!G$5, 'Full set Core Client Indicator'!$A$3:$AB$3, 0))), \"\")","v":""},{"$f":"IF(G166<>\"\", IF(INDEX('Full set Core Client Indicator'!$A$3:$AB$351, MATCH(Selection_Hide2!$A166, 'Full set Core Client Indicator'!$A$3:$A$351, 0), MATCH(Selection_Hide2!H$5, 'Full set Core Client Indicator'!$A$3:$AB$3, 0))=\"\", \"\",  INDEX('Full set Core Client Indicator'!$A$3:$AB$351, MATCH(Selection_Hide2!$A166, 'Full set Core Client Indicator'!$A$3:$A$351, 0), MATCH(Selection_Hide2!H$5, 'Full set Core Client Indicator'!$A$3:$AB$3, 0))), \"\")","v":""},{"$f":"IF(H166<>\"\", IF(INDEX('Full set Core Client Indicator'!$A$3:$AB$351, MATCH(Selection_Hide2!$A166, 'Full set Core Client Indicator'!$A$3:$A$351, 0), MATCH(Selection_Hide2!I$5, 'Full set Core Client Indicator'!$A$3:$AB$3, 0))=\"\", \"\",  INDEX('Full set Core Client Indicator'!$A$3:$AB$351, MATCH(Selection_Hide2!$A166, 'Full set Core Client Indicator'!$A$3:$A$351, 0), MATCH(Selection_Hide2!I$5, 'Full set Core Client Indicator'!$A$3:$AB$3, 0))), \"\")","v":""},{"$f":"IF(I166<>\"\", IF(INDEX('Full set Core Client Indicator'!$A$3:$AB$351, MATCH(Selection_Hide2!$A166, 'Full set Core Client Indicator'!$A$3:$A$351, 0), MATCH(Selection_Hide2!J$5, 'Full set Core Client Indicator'!$A$3:$AB$3, 0))=\"\", \"\",  INDEX('Full set Core Client Indicator'!$A$3:$AB$351, MATCH(Selection_Hide2!$A166, 'Full set Core Client Indicator'!$A$3:$A$351, 0), MATCH(Selection_Hide2!J$5, 'Full set Core Client Indicator'!$A$3:$AB$3, 0))), \"\")","v":""},{"$f":"IF(J166<>\"\", IF(INDEX('Full set Core Client Indicator'!$A$3:$AB$351, MATCH(Selection_Hide2!$A166, 'Full set Core Client Indicator'!$A$3:$A$351, 0), MATCH(Selection_Hide2!K$5, 'Full set Core Client Indicator'!$A$3:$AB$3, 0))=\"\", \"\",  INDEX('Full set Core Client Indicator'!$A$3:$AB$351, MATCH(Selection_Hide2!$A166, 'Full set Core Client Indicator'!$A$3:$A$351, 0), MATCH(Selection_Hide2!K$5, 'Full set Core Client Indicator'!$A$3:$AB$3, 0))), \"\")","v":""},{"$f":"IF(K166<>\"\", IF(INDEX('Full set Core Client Indicator'!$A$3:$AB$351, MATCH(Selection_Hide2!$A166, 'Full set Core Client Indicator'!$A$3:$A$351, 0), MATCH(Selection_Hide2!L$5, 'Full set Core Client Indicator'!$A$3:$AB$3, 0))=\"\", \"\",  INDEX('Full set Core Client Indicator'!$A$3:$AB$351, MATCH(Selection_Hide2!$A166, 'Full set Core Client Indicator'!$A$3:$A$351, 0), MATCH(Selection_Hide2!L$5, 'Full set Core Client Indicator'!$A$3:$AB$3, 0))), \"\")","v":""},{"$f":"IF(L166<>\"\", IF(INDEX('Full set Core Client Indicator'!$A$3:$AB$351, MATCH(Selection_Hide2!$A166, 'Full set Core Client Indicator'!$A$3:$A$351, 0), MATCH(Selection_Hide2!M$5, 'Full set Core Client Indicator'!$A$3:$AB$3, 0))=\"\", \"\",  INDEX('Full set Core Client Indicator'!$A$3:$AB$351, MATCH(Selection_Hide2!$A166, 'Full set Core Client Indicator'!$A$3:$A$351, 0), MATCH(Selection_Hide2!M$5, 'Full set Core Client Indicator'!$A$3:$AB$3, 0))), \"\")","v":""},{"$f":"IF(M166<>\"\", IF(INDEX('Full set Core Client Indicator'!$A$3:$AB$351, MATCH(Selection_Hide2!$A166, 'Full set Core Client Indicator'!$A$3:$A$351, 0), MATCH(Selection_Hide2!N$5, 'Full set Core Client Indicator'!$A$3:$AB$3, 0))=\"\", \"\",  INDEX('Full set Core Client Indicator'!$A$3:$AB$351, MATCH(Selection_Hide2!$A166, 'Full set Core Client Indicator'!$A$3:$A$351, 0), MATCH(Selection_Hide2!N$5, 'Full set Core Client Indicator'!$A$3:$AB$3, 0))), \"\")","v":""},{"$f":"IF(N166<>\"\", IF(INDEX('Full set Core Client Indicator'!$A$3:$AB$351, MATCH(Selection_Hide2!$A166, 'Full set Core Client Indicator'!$A$3:$A$351, 0), MATCH(Selection_Hide2!O$5, 'Full set Core Client Indicator'!$A$3:$AB$3, 0))=\"\", \"\",  INDEX('Full set Core Client Indicator'!$A$3:$AB$351, MATCH(Selection_Hide2!$A166, 'Full set Core Client Indicator'!$A$3:$A$351, 0), MATCH(Selection_Hide2!O$5, 'Full set Core Client Indicator'!$A$3:$AB$3, 0))), \"\")","v":""},{"$f":"IF(O166<>\"\", IF(INDEX('Full set Core Client Indicator'!$A$3:$AB$351, MATCH(Selection_Hide2!$A166, 'Full set Core Client Indicator'!$A$3:$A$351, 0), MATCH(Selection_Hide2!P$5, 'Full set Core Client Indicator'!$A$3:$AB$3, 0))=\"\", \"\",  INDEX('Full set Core Client Indicator'!$A$3:$AB$351, MATCH(Selection_Hide2!$A166, 'Full set Core Client Indicator'!$A$3:$A$351, 0), MATCH(Selection_Hide2!P$5, 'Full set Core Client Indicator'!$A$3:$AB$3, 0))), \"\")","v":""},{"$f":"IF(P166<>\"\", IF(INDEX('Full set Core Client Indicator'!$A$3:$AB$351, MATCH(Selection_Hide2!$A166, 'Full set Core Client Indicator'!$A$3:$A$351, 0), MATCH(Selection_Hide2!Q$5, 'Full set Core Client Indicator'!$A$3:$AB$3, 0))=\"\", \"\",  INDEX('Full set Core Client Indicator'!$A$3:$AB$351, MATCH(Selection_Hide2!$A166, 'Full set Core Client Indicator'!$A$3:$A$351, 0), MATCH(Selection_Hide2!Q$5, 'Full set Core Client Indicator'!$A$3:$AB$3, 0))), \"\")","v":""},{"$f":"IF(Q166<>\"\", IF(INDEX('Full set Core Client Indicator'!$A$3:$AB$351, MATCH(Selection_Hide2!$A166, 'Full set Core Client Indicator'!$A$3:$A$351, 0), MATCH(Selection_Hide2!R$5, 'Full set Core Client Indicator'!$A$3:$AB$3, 0))=\"\", \"\",  INDEX('Full set Core Client Indicator'!$A$3:$AB$351, MATCH(Selection_Hide2!$A166, 'Full set Core Client Indicator'!$A$3:$A$351, 0), MATCH(Selection_Hide2!R$5, 'Full set Core Client Indicator'!$A$3:$AB$3, 0))), \"\")","v":""},{"$f":"IF(R166<>\"\", IF(INDEX('Full set Core Client Indicator'!$A$3:$AB$351, MATCH(Selection_Hide2!$A166, 'Full set Core Client Indicator'!$A$3:$A$351, 0), MATCH(Selection_Hide2!S$5, 'Full set Core Client Indicator'!$A$3:$AB$3, 0))=\"\", \"\",  INDEX('Full set Core Client Indicator'!$A$3:$AB$351, MATCH(Selection_Hide2!$A166, 'Full set Core Client Indicator'!$A$3:$A$351, 0), MATCH(Selection_Hide2!S$5, 'Full set Core Client Indicator'!$A$3:$AB$3, 0))), \"\")","v":""},{"$f":"IF(S166<>\"\", IF(INDEX('Full set Core Client Indicator'!$A$3:$AB$351, MATCH(Selection_Hide2!$A166, 'Full set Core Client Indicator'!$A$3:$A$351, 0), MATCH(Selection_Hide2!T$5, 'Full set Core Client Indicator'!$A$3:$AB$3, 0))=\"\", \"\",  INDEX('Full set Core Client Indicator'!$A$3:$AB$351, MATCH(Selection_Hide2!$A166, 'Full set Core Client Indicator'!$A$3:$A$351, 0), MATCH(Selection_Hide2!T$5, 'Full set Core Client Indicator'!$A$3:$AB$3, 0))), \"\")","v":""},{"$f":"IF(T166<>\"\", IF(INDEX('Full set Core Client Indicator'!$A$3:$AB$351, MATCH(Selection_Hide2!$A166, 'Full set Core Client Indicator'!$A$3:$A$351, 0), MATCH(Selection_Hide2!U$5, 'Full set Core Client Indicator'!$A$3:$AB$3, 0))=\"\", \"\",  INDEX('Full set Core Client Indicator'!$A$3:$AB$351, MATCH(Selection_Hide2!$A166, 'Full set Core Client Indicator'!$A$3:$A$351, 0), MATCH(Selection_Hide2!U$5, 'Full set Core Client Indicator'!$A$3:$AB$3, 0))), \"\")","v":""},{"$f":"IF(U166<>\"\", IF(INDEX('Full set Core Client Indicator'!$A$3:$AB$351, MATCH(Selection_Hide2!$A166, 'Full set Core Client Indicator'!$A$3:$A$351, 0), MATCH(Selection_Hide2!V$5, 'Full set Core Client Indicator'!$A$3:$AB$3, 0))=\"\", \"\",  INDEX('Full set Core Client Indicator'!$A$3:$AB$351, MATCH(Selection_Hide2!$A166, 'Full set Core Client Indicator'!$A$3:$A$351, 0), MATCH(Selection_Hide2!V$5, 'Full set Core Client Indicator'!$A$3:$AB$3, 0))), \"\")","v":""},{"$f":"IF(V166<>\"\", IF(INDEX('Full set Core Client Indicator'!$A$3:$AB$351, MATCH(Selection_Hide2!$A166, 'Full set Core Client Indicator'!$A$3:$A$351, 0), MATCH(Selection_Hide2!W$5, 'Full set Core Client Indicator'!$A$3:$AB$3, 0))=\"\", \"\",  INDEX('Full set Core Client Indicator'!$A$3:$AB$351, MATCH(Selection_Hide2!$A166, 'Full set Core Client Indicator'!$A$3:$A$351, 0), MATCH(Selection_Hide2!W$5, 'Full set Core Client Indicator'!$A$3:$AB$3, 0))), \"\")","v":""},{"$f":"IF(W166<>\"\", IF(INDEX('Full set Core Client Indicator'!$A$3:$AB$351, MATCH(Selection_Hide2!$A166, 'Full set Core Client Indicator'!$A$3:$A$351, 0), MATCH(Selection_Hide2!X$5, 'Full set Core Client Indicator'!$A$3:$AB$3, 0))=\"\", \"\",  INDEX('Full set Core Client Indicator'!$A$3:$AB$351, MATCH(Selection_Hide2!$A166, 'Full set Core Client Indicator'!$A$3:$A$351, 0), MATCH(Selection_Hide2!X$5, 'Full set Core Client Indicator'!$A$3:$AB$3, 0))), \"\")","v":""},{"$f":"IF(X166<>\"\", IF(INDEX('Full set Core Client Indicator'!$A$3:$AB$351, MATCH(Selection_Hide2!$A166, 'Full set Core Client Indicator'!$A$3:$A$351, 0), MATCH(Selection_Hide2!Y$5, 'Full set Core Client Indicator'!$A$3:$AB$3, 0))=\"\", \"\",  INDEX('Full set Core Client Indicator'!$A$3:$AB$351, MATCH(Selection_Hide2!$A166, 'Full set Core Client Indicator'!$A$3:$A$351, 0), MATCH(Selection_Hide2!Y$5, 'Full set Core Client Indicator'!$A$3:$AB$3, 0))), \"\")","v":""},{"$f":"IF(Y166<>\"\", IF(INDEX('Full set Core Client Indicator'!$A$3:$AB$351, MATCH(Selection_Hide2!$A166, 'Full set Core Client Indicator'!$A$3:$A$351, 0), MATCH(Selection_Hide2!Z$5, 'Full set Core Client Indicator'!$A$3:$AB$3, 0))=\"\", \"\",  INDEX('Full set Core Client Indicator'!$A$3:$AB$351, MATCH(Selection_Hide2!$A166, 'Full set Core Client Indicator'!$A$3:$A$351, 0), MATCH(Selection_Hide2!Z$5, 'Full set Core Client Indicator'!$A$3:$AB$3, 0))), \"\")","v":""},{"$f":"IF(Z166<>\"\", IF(INDEX('Full set Core Client Indicator'!$A$3:$AB$351, MATCH(Selection_Hide2!$A166, 'Full set Core Client Indicator'!$A$3:$A$351, 0), MATCH(Selection_Hide2!AA$5, 'Full set Core Client Indicator'!$A$3:$AB$3, 0))=\"\", \"\",  INDEX('Full set Core Client Indicator'!$A$3:$AB$351, MATCH(Selection_Hide2!$A166, 'Full set Core Client Indicator'!$A$3:$A$351, 0), MATCH(Selection_Hide2!AA$5, 'Full set Core Client Indicator'!$A$3:$AB$3, 0))), \"\")","v":""},{"$f":"IF(AA166<>\"\", IF(INDEX('Full set Core Client Indicator'!$A$3:$AB$351, MATCH(Selection_Hide2!$A166, 'Full set Core Client Indicator'!$A$3:$A$351, 0), MATCH(Selection_Hide2!AB$5, 'Full set Core Client Indicator'!$A$3:$AB$3, 0))=\"\", \"\",  INDEX('Full set Core Client Indicator'!$A$3:$AB$351, MATCH(Selection_Hide2!$A166, 'Full set Core Client Indicator'!$A$3:$A$351, 0), MATCH(Selection_Hide2!AB$5, 'Full set Core Client Indicator'!$A$3:$AB$3, 0))), \"\")","v":""}]
[{"$f":"IF(AND(Selection_Hide1!C165<>0, Selection_Hide1!C165<>\"Grand Total\"), Selection_Hide1!C165, \"\")","v":""},{"$f":"IF(A167<>\"\", IF(INDEX('Full set Core Client Indicator'!$A$3:$AB$351, MATCH(Selection_Hide2!$A167, 'Full set Core Client Indicator'!$A$3:$A$351, 0), MATCH(Selection_Hide2!B$5, 'Full set Core Client Indicator'!$A$3:$AB$3, 0))=\"\", \"\",  INDEX('Full set Core Client Indicator'!$A$3:$AB$351, MATCH(Selection_Hide2!$A167, 'Full set Core Client Indicator'!$A$3:$A$351, 0), MATCH(Selection_Hide2!B$5, 'Full set Core Client Indicator'!$A$3:$AB$3, 0))), \"\")","v":""},{"$f":"IF(B167<>\"\", IF(INDEX('Full set Core Client Indicator'!$A$3:$AB$351, MATCH(Selection_Hide2!$A167, 'Full set Core Client Indicator'!$A$3:$A$351, 0), MATCH(Selection_Hide2!C$5, 'Full set Core Client Indicator'!$A$3:$AB$3, 0))=\"\", \"\",  INDEX('Full set Core Client Indicator'!$A$3:$AB$351, MATCH(Selection_Hide2!$A167, 'Full set Core Client Indicator'!$A$3:$A$351, 0), MATCH(Selection_Hide2!C$5, 'Full set Core Client Indicator'!$A$3:$AB$3, 0))), \"\")","v":""},{"$f":"IF(C167<>\"\", IF(INDEX('Full set Core Client Indicator'!$A$3:$AB$351, MATCH(Selection_Hide2!$A167, 'Full set Core Client Indicator'!$A$3:$A$351, 0), MATCH(Selection_Hide2!D$5, 'Full set Core Client Indicator'!$A$3:$AB$3, 0))=\"\", \"\",  INDEX('Full set Core Client Indicator'!$A$3:$AB$351, MATCH(Selection_Hide2!$A167, 'Full set Core Client Indicator'!$A$3:$A$351, 0), MATCH(Selection_Hide2!D$5, 'Full set Core Client Indicator'!$A$3:$AB$3, 0))), \"\")","v":""},{"$f":"IF(D167<>\"\", IF(INDEX('Full set Core Client Indicator'!$A$3:$AB$351, MATCH(Selection_Hide2!$A167, 'Full set Core Client Indicator'!$A$3:$A$351, 0), MATCH(Selection_Hide2!E$5, 'Full set Core Client Indicator'!$A$3:$AB$3, 0))=\"\", \"\",  INDEX('Full set Core Client Indicator'!$A$3:$AB$351, MATCH(Selection_Hide2!$A167, 'Full set Core Client Indicator'!$A$3:$A$351, 0), MATCH(Selection_Hide2!E$5, 'Full set Core Client Indicator'!$A$3:$AB$3, 0))), \"\")","v":""},{"$f":"IF(E167<>\"\", IF(INDEX('Full set Core Client Indicator'!$A$3:$AB$351, MATCH(Selection_Hide2!$A167, 'Full set Core Client Indicator'!$A$3:$A$351, 0), MATCH(Selection_Hide2!F$5, 'Full set Core Client Indicator'!$A$3:$AB$3, 0))=\"\", \"\",  INDEX('Full set Core Client Indicator'!$A$3:$AB$351, MATCH(Selection_Hide2!$A167, 'Full set Core Client Indicator'!$A$3:$A$351, 0), MATCH(Selection_Hide2!F$5, 'Full set Core Client Indicator'!$A$3:$AB$3, 0))), \"\")","v":""},{"$f":"IF(F167<>\"\", IF(INDEX('Full set Core Client Indicator'!$A$3:$AB$351, MATCH(Selection_Hide2!$A167, 'Full set Core Client Indicator'!$A$3:$A$351, 0), MATCH(Selection_Hide2!G$5, 'Full set Core Client Indicator'!$A$3:$AB$3, 0))=\"\", \"\",  INDEX('Full set Core Client Indicator'!$A$3:$AB$351, MATCH(Selection_Hide2!$A167, 'Full set Core Client Indicator'!$A$3:$A$351, 0), MATCH(Selection_Hide2!G$5, 'Full set Core Client Indicator'!$A$3:$AB$3, 0))), \"\")","v":""},{"$f":"IF(G167<>\"\", IF(INDEX('Full set Core Client Indicator'!$A$3:$AB$351, MATCH(Selection_Hide2!$A167, 'Full set Core Client Indicator'!$A$3:$A$351, 0), MATCH(Selection_Hide2!H$5, 'Full set Core Client Indicator'!$A$3:$AB$3, 0))=\"\", \"\",  INDEX('Full set Core Client Indicator'!$A$3:$AB$351, MATCH(Selection_Hide2!$A167, 'Full set Core Client Indicator'!$A$3:$A$351, 0), MATCH(Selection_Hide2!H$5, 'Full set Core Client Indicator'!$A$3:$AB$3, 0))), \"\")","v":""},{"$f":"IF(H167<>\"\", IF(INDEX('Full set Core Client Indicator'!$A$3:$AB$351, MATCH(Selection_Hide2!$A167, 'Full set Core Client Indicator'!$A$3:$A$351, 0), MATCH(Selection_Hide2!I$5, 'Full set Core Client Indicator'!$A$3:$AB$3, 0))=\"\", \"\",  INDEX('Full set Core Client Indicator'!$A$3:$AB$351, MATCH(Selection_Hide2!$A167, 'Full set Core Client Indicator'!$A$3:$A$351, 0), MATCH(Selection_Hide2!I$5, 'Full set Core Client Indicator'!$A$3:$AB$3, 0))), \"\")","v":""},{"$f":"IF(I167<>\"\", IF(INDEX('Full set Core Client Indicator'!$A$3:$AB$351, MATCH(Selection_Hide2!$A167, 'Full set Core Client Indicator'!$A$3:$A$351, 0), MATCH(Selection_Hide2!J$5, 'Full set Core Client Indicator'!$A$3:$AB$3, 0))=\"\", \"\",  INDEX('Full set Core Client Indicator'!$A$3:$AB$351, MATCH(Selection_Hide2!$A167, 'Full set Core Client Indicator'!$A$3:$A$351, 0), MATCH(Selection_Hide2!J$5, 'Full set Core Client Indicator'!$A$3:$AB$3, 0))), \"\")","v":""},{"$f":"IF(J167<>\"\", IF(INDEX('Full set Core Client Indicator'!$A$3:$AB$351, MATCH(Selection_Hide2!$A167, 'Full set Core Client Indicator'!$A$3:$A$351, 0), MATCH(Selection_Hide2!K$5, 'Full set Core Client Indicator'!$A$3:$AB$3, 0))=\"\", \"\",  INDEX('Full set Core Client Indicator'!$A$3:$AB$351, MATCH(Selection_Hide2!$A167, 'Full set Core Client Indicator'!$A$3:$A$351, 0), MATCH(Selection_Hide2!K$5, 'Full set Core Client Indicator'!$A$3:$AB$3, 0))), \"\")","v":""},{"$f":"IF(K167<>\"\", IF(INDEX('Full set Core Client Indicator'!$A$3:$AB$351, MATCH(Selection_Hide2!$A167, 'Full set Core Client Indicator'!$A$3:$A$351, 0), MATCH(Selection_Hide2!L$5, 'Full set Core Client Indicator'!$A$3:$AB$3, 0))=\"\", \"\",  INDEX('Full set Core Client Indicator'!$A$3:$AB$351, MATCH(Selection_Hide2!$A167, 'Full set Core Client Indicator'!$A$3:$A$351, 0), MATCH(Selection_Hide2!L$5, 'Full set Core Client Indicator'!$A$3:$AB$3, 0))), \"\")","v":""},{"$f":"IF(L167<>\"\", IF(INDEX('Full set Core Client Indicator'!$A$3:$AB$351, MATCH(Selection_Hide2!$A167, 'Full set Core Client Indicator'!$A$3:$A$351, 0), MATCH(Selection_Hide2!M$5, 'Full set Core Client Indicator'!$A$3:$AB$3, 0))=\"\", \"\",  INDEX('Full set Core Client Indicator'!$A$3:$AB$351, MATCH(Selection_Hide2!$A167, 'Full set Core Client Indicator'!$A$3:$A$351, 0), MATCH(Selection_Hide2!M$5, 'Full set Core Client Indicator'!$A$3:$AB$3, 0))), \"\")","v":""},{"$f":"IF(M167<>\"\", IF(INDEX('Full set Core Client Indicator'!$A$3:$AB$351, MATCH(Selection_Hide2!$A167, 'Full set Core Client Indicator'!$A$3:$A$351, 0), MATCH(Selection_Hide2!N$5, 'Full set Core Client Indicator'!$A$3:$AB$3, 0))=\"\", \"\",  INDEX('Full set Core Client Indicator'!$A$3:$AB$351, MATCH(Selection_Hide2!$A167, 'Full set Core Client Indicator'!$A$3:$A$351, 0), MATCH(Selection_Hide2!N$5, 'Full set Core Client Indicator'!$A$3:$AB$3, 0))), \"\")","v":""},{"$f":"IF(N167<>\"\", IF(INDEX('Full set Core Client Indicator'!$A$3:$AB$351, MATCH(Selection_Hide2!$A167, 'Full set Core Client Indicator'!$A$3:$A$351, 0), MATCH(Selection_Hide2!O$5, 'Full set Core Client Indicator'!$A$3:$AB$3, 0))=\"\", \"\",  INDEX('Full set Core Client Indicator'!$A$3:$AB$351, MATCH(Selection_Hide2!$A167, 'Full set Core Client Indicator'!$A$3:$A$351, 0), MATCH(Selection_Hide2!O$5, 'Full set Core Client Indicator'!$A$3:$AB$3, 0))), \"\")","v":""},{"$f":"IF(O167<>\"\", IF(INDEX('Full set Core Client Indicator'!$A$3:$AB$351, MATCH(Selection_Hide2!$A167, 'Full set Core Client Indicator'!$A$3:$A$351, 0), MATCH(Selection_Hide2!P$5, 'Full set Core Client Indicator'!$A$3:$AB$3, 0))=\"\", \"\",  INDEX('Full set Core Client Indicator'!$A$3:$AB$351, MATCH(Selection_Hide2!$A167, 'Full set Core Client Indicator'!$A$3:$A$351, 0), MATCH(Selection_Hide2!P$5, 'Full set Core Client Indicator'!$A$3:$AB$3, 0))), \"\")","v":""},{"$f":"IF(P167<>\"\", IF(INDEX('Full set Core Client Indicator'!$A$3:$AB$351, MATCH(Selection_Hide2!$A167, 'Full set Core Client Indicator'!$A$3:$A$351, 0), MATCH(Selection_Hide2!Q$5, 'Full set Core Client Indicator'!$A$3:$AB$3, 0))=\"\", \"\",  INDEX('Full set Core Client Indicator'!$A$3:$AB$351, MATCH(Selection_Hide2!$A167, 'Full set Core Client Indicator'!$A$3:$A$351, 0), MATCH(Selection_Hide2!Q$5, 'Full set Core Client Indicator'!$A$3:$AB$3, 0))), \"\")","v":""},{"$f":"IF(Q167<>\"\", IF(INDEX('Full set Core Client Indicator'!$A$3:$AB$351, MATCH(Selection_Hide2!$A167, 'Full set Core Client Indicator'!$A$3:$A$351, 0), MATCH(Selection_Hide2!R$5, 'Full set Core Client Indicator'!$A$3:$AB$3, 0))=\"\", \"\",  INDEX('Full set Core Client Indicator'!$A$3:$AB$351, MATCH(Selection_Hide2!$A167, 'Full set Core Client Indicator'!$A$3:$A$351, 0), MATCH(Selection_Hide2!R$5, 'Full set Core Client Indicator'!$A$3:$AB$3, 0))), \"\")","v":""},{"$f":"IF(R167<>\"\", IF(INDEX('Full set Core Client Indicator'!$A$3:$AB$351, MATCH(Selection_Hide2!$A167, 'Full set Core Client Indicator'!$A$3:$A$351, 0), MATCH(Selection_Hide2!S$5, 'Full set Core Client Indicator'!$A$3:$AB$3, 0))=\"\", \"\",  INDEX('Full set Core Client Indicator'!$A$3:$AB$351, MATCH(Selection_Hide2!$A167, 'Full set Core Client Indicator'!$A$3:$A$351, 0), MATCH(Selection_Hide2!S$5, 'Full set Core Client Indicator'!$A$3:$AB$3, 0))), \"\")","v":""},{"$f":"IF(S167<>\"\", IF(INDEX('Full set Core Client Indicator'!$A$3:$AB$351, MATCH(Selection_Hide2!$A167, 'Full set Core Client Indicator'!$A$3:$A$351, 0), MATCH(Selection_Hide2!T$5, 'Full set Core Client Indicator'!$A$3:$AB$3, 0))=\"\", \"\",  INDEX('Full set Core Client Indicator'!$A$3:$AB$351, MATCH(Selection_Hide2!$A167, 'Full set Core Client Indicator'!$A$3:$A$351, 0), MATCH(Selection_Hide2!T$5, 'Full set Core Client Indicator'!$A$3:$AB$3, 0))), \"\")","v":""},{"$f":"IF(T167<>\"\", IF(INDEX('Full set Core Client Indicator'!$A$3:$AB$351, MATCH(Selection_Hide2!$A167, 'Full set Core Client Indicator'!$A$3:$A$351, 0), MATCH(Selection_Hide2!U$5, 'Full set Core Client Indicator'!$A$3:$AB$3, 0))=\"\", \"\",  INDEX('Full set Core Client Indicator'!$A$3:$AB$351, MATCH(Selection_Hide2!$A167, 'Full set Core Client Indicator'!$A$3:$A$351, 0), MATCH(Selection_Hide2!U$5, 'Full set Core Client Indicator'!$A$3:$AB$3, 0))), \"\")","v":""},{"$f":"IF(U167<>\"\", IF(INDEX('Full set Core Client Indicator'!$A$3:$AB$351, MATCH(Selection_Hide2!$A167, 'Full set Core Client Indicator'!$A$3:$A$351, 0), MATCH(Selection_Hide2!V$5, 'Full set Core Client Indicator'!$A$3:$AB$3, 0))=\"\", \"\",  INDEX('Full set Core Client Indicator'!$A$3:$AB$351, MATCH(Selection_Hide2!$A167, 'Full set Core Client Indicator'!$A$3:$A$351, 0), MATCH(Selection_Hide2!V$5, 'Full set Core Client Indicator'!$A$3:$AB$3, 0))), \"\")","v":""},{"$f":"IF(V167<>\"\", IF(INDEX('Full set Core Client Indicator'!$A$3:$AB$351, MATCH(Selection_Hide2!$A167, 'Full set Core Client Indicator'!$A$3:$A$351, 0), MATCH(Selection_Hide2!W$5, 'Full set Core Client Indicator'!$A$3:$AB$3, 0))=\"\", \"\",  INDEX('Full set Core Client Indicator'!$A$3:$AB$351, MATCH(Selection_Hide2!$A167, 'Full set Core Client Indicator'!$A$3:$A$351, 0), MATCH(Selection_Hide2!W$5, 'Full set Core Client Indicator'!$A$3:$AB$3, 0))), \"\")","v":""},{"$f":"IF(W167<>\"\", IF(INDEX('Full set Core Client Indicator'!$A$3:$AB$351, MATCH(Selection_Hide2!$A167, 'Full set Core Client Indicator'!$A$3:$A$351, 0), MATCH(Selection_Hide2!X$5, 'Full set Core Client Indicator'!$A$3:$AB$3, 0))=\"\", \"\",  INDEX('Full set Core Client Indicator'!$A$3:$AB$351, MATCH(Selection_Hide2!$A167, 'Full set Core Client Indicator'!$A$3:$A$351, 0), MATCH(Selection_Hide2!X$5, 'Full set Core Client Indicator'!$A$3:$AB$3, 0))), \"\")","v":""},{"$f":"IF(X167<>\"\", IF(INDEX('Full set Core Client Indicator'!$A$3:$AB$351, MATCH(Selection_Hide2!$A167, 'Full set Core Client Indicator'!$A$3:$A$351, 0), MATCH(Selection_Hide2!Y$5, 'Full set Core Client Indicator'!$A$3:$AB$3, 0))=\"\", \"\",  INDEX('Full set Core Client Indicator'!$A$3:$AB$351, MATCH(Selection_Hide2!$A167, 'Full set Core Client Indicator'!$A$3:$A$351, 0), MATCH(Selection_Hide2!Y$5, 'Full set Core Client Indicator'!$A$3:$AB$3, 0))), \"\")","v":""},{"$f":"IF(Y167<>\"\", IF(INDEX('Full set Core Client Indicator'!$A$3:$AB$351, MATCH(Selection_Hide2!$A167, 'Full set Core Client Indicator'!$A$3:$A$351, 0), MATCH(Selection_Hide2!Z$5, 'Full set Core Client Indicator'!$A$3:$AB$3, 0))=\"\", \"\",  INDEX('Full set Core Client Indicator'!$A$3:$AB$351, MATCH(Selection_Hide2!$A167, 'Full set Core Client Indicator'!$A$3:$A$351, 0), MATCH(Selection_Hide2!Z$5, 'Full set Core Client Indicator'!$A$3:$AB$3, 0))), \"\")","v":""},{"$f":"IF(Z167<>\"\", IF(INDEX('Full set Core Client Indicator'!$A$3:$AB$351, MATCH(Selection_Hide2!$A167, 'Full set Core Client Indicator'!$A$3:$A$351, 0), MATCH(Selection_Hide2!AA$5, 'Full set Core Client Indicator'!$A$3:$AB$3, 0))=\"\", \"\",  INDEX('Full set Core Client Indicator'!$A$3:$AB$351, MATCH(Selection_Hide2!$A167, 'Full set Core Client Indicator'!$A$3:$A$351, 0), MATCH(Selection_Hide2!AA$5, 'Full set Core Client Indicator'!$A$3:$AB$3, 0))), \"\")","v":""},{"$f":"IF(AA167<>\"\", IF(INDEX('Full set Core Client Indicator'!$A$3:$AB$351, MATCH(Selection_Hide2!$A167, 'Full set Core Client Indicator'!$A$3:$A$351, 0), MATCH(Selection_Hide2!AB$5, 'Full set Core Client Indicator'!$A$3:$AB$3, 0))=\"\", \"\",  INDEX('Full set Core Client Indicator'!$A$3:$AB$351, MATCH(Selection_Hide2!$A167, 'Full set Core Client Indicator'!$A$3:$A$351, 0), MATCH(Selection_Hide2!AB$5, 'Full set Core Client Indicator'!$A$3:$AB$3, 0))), \"\")","v":""}]
[{"$f":"IF(AND(Selection_Hide1!C166<>0, Selection_Hide1!C166<>\"Grand Total\"), Selection_Hide1!C166, \"\")","v":""},{"$f":"IF(A168<>\"\", IF(INDEX('Full set Core Client Indicator'!$A$3:$AB$351, MATCH(Selection_Hide2!$A168, 'Full set Core Client Indicator'!$A$3:$A$351, 0), MATCH(Selection_Hide2!B$5, 'Full set Core Client Indicator'!$A$3:$AB$3, 0))=\"\", \"\",  INDEX('Full set Core Client Indicator'!$A$3:$AB$351, MATCH(Selection_Hide2!$A168, 'Full set Core Client Indicator'!$A$3:$A$351, 0), MATCH(Selection_Hide2!B$5, 'Full set Core Client Indicator'!$A$3:$AB$3, 0))), \"\")","v":""},{"$f":"IF(B168<>\"\", IF(INDEX('Full set Core Client Indicator'!$A$3:$AB$351, MATCH(Selection_Hide2!$A168, 'Full set Core Client Indicator'!$A$3:$A$351, 0), MATCH(Selection_Hide2!C$5, 'Full set Core Client Indicator'!$A$3:$AB$3, 0))=\"\", \"\",  INDEX('Full set Core Client Indicator'!$A$3:$AB$351, MATCH(Selection_Hide2!$A168, 'Full set Core Client Indicator'!$A$3:$A$351, 0), MATCH(Selection_Hide2!C$5, 'Full set Core Client Indicator'!$A$3:$AB$3, 0))), \"\")","v":""},{"$f":"IF(C168<>\"\", IF(INDEX('Full set Core Client Indicator'!$A$3:$AB$351, MATCH(Selection_Hide2!$A168, 'Full set Core Client Indicator'!$A$3:$A$351, 0), MATCH(Selection_Hide2!D$5, 'Full set Core Client Indicator'!$A$3:$AB$3, 0))=\"\", \"\",  INDEX('Full set Core Client Indicator'!$A$3:$AB$351, MATCH(Selection_Hide2!$A168, 'Full set Core Client Indicator'!$A$3:$A$351, 0), MATCH(Selection_Hide2!D$5, 'Full set Core Client Indicator'!$A$3:$AB$3, 0))), \"\")","v":""},{"$f":"IF(D168<>\"\", IF(INDEX('Full set Core Client Indicator'!$A$3:$AB$351, MATCH(Selection_Hide2!$A168, 'Full set Core Client Indicator'!$A$3:$A$351, 0), MATCH(Selection_Hide2!E$5, 'Full set Core Client Indicator'!$A$3:$AB$3, 0))=\"\", \"\",  INDEX('Full set Core Client Indicator'!$A$3:$AB$351, MATCH(Selection_Hide2!$A168, 'Full set Core Client Indicator'!$A$3:$A$351, 0), MATCH(Selection_Hide2!E$5, 'Full set Core Client Indicator'!$A$3:$AB$3, 0))), \"\")","v":""},{"$f":"IF(E168<>\"\", IF(INDEX('Full set Core Client Indicator'!$A$3:$AB$351, MATCH(Selection_Hide2!$A168, 'Full set Core Client Indicator'!$A$3:$A$351, 0), MATCH(Selection_Hide2!F$5, 'Full set Core Client Indicator'!$A$3:$AB$3, 0))=\"\", \"\",  INDEX('Full set Core Client Indicator'!$A$3:$AB$351, MATCH(Selection_Hide2!$A168, 'Full set Core Client Indicator'!$A$3:$A$351, 0), MATCH(Selection_Hide2!F$5, 'Full set Core Client Indicator'!$A$3:$AB$3, 0))), \"\")","v":""},{"$f":"IF(F168<>\"\", IF(INDEX('Full set Core Client Indicator'!$A$3:$AB$351, MATCH(Selection_Hide2!$A168, 'Full set Core Client Indicator'!$A$3:$A$351, 0), MATCH(Selection_Hide2!G$5, 'Full set Core Client Indicator'!$A$3:$AB$3, 0))=\"\", \"\",  INDEX('Full set Core Client Indicator'!$A$3:$AB$351, MATCH(Selection_Hide2!$A168, 'Full set Core Client Indicator'!$A$3:$A$351, 0), MATCH(Selection_Hide2!G$5, 'Full set Core Client Indicator'!$A$3:$AB$3, 0))), \"\")","v":""},{"$f":"IF(G168<>\"\", IF(INDEX('Full set Core Client Indicator'!$A$3:$AB$351, MATCH(Selection_Hide2!$A168, 'Full set Core Client Indicator'!$A$3:$A$351, 0), MATCH(Selection_Hide2!H$5, 'Full set Core Client Indicator'!$A$3:$AB$3, 0))=\"\", \"\",  INDEX('Full set Core Client Indicator'!$A$3:$AB$351, MATCH(Selection_Hide2!$A168, 'Full set Core Client Indicator'!$A$3:$A$351, 0), MATCH(Selection_Hide2!H$5, 'Full set Core Client Indicator'!$A$3:$AB$3, 0))), \"\")","v":""},{"$f":"IF(H168<>\"\", IF(INDEX('Full set Core Client Indicator'!$A$3:$AB$351, MATCH(Selection_Hide2!$A168, 'Full set Core Client Indicator'!$A$3:$A$351, 0), MATCH(Selection_Hide2!I$5, 'Full set Core Client Indicator'!$A$3:$AB$3, 0))=\"\", \"\",  INDEX('Full set Core Client Indicator'!$A$3:$AB$351, MATCH(Selection_Hide2!$A168, 'Full set Core Client Indicator'!$A$3:$A$351, 0), MATCH(Selection_Hide2!I$5, 'Full set Core Client Indicator'!$A$3:$AB$3, 0))), \"\")","v":""},{"$f":"IF(I168<>\"\", IF(INDEX('Full set Core Client Indicator'!$A$3:$AB$351, MATCH(Selection_Hide2!$A168, 'Full set Core Client Indicator'!$A$3:$A$351, 0), MATCH(Selection_Hide2!J$5, 'Full set Core Client Indicator'!$A$3:$AB$3, 0))=\"\", \"\",  INDEX('Full set Core Client Indicator'!$A$3:$AB$351, MATCH(Selection_Hide2!$A168, 'Full set Core Client Indicator'!$A$3:$A$351, 0), MATCH(Selection_Hide2!J$5, 'Full set Core Client Indicator'!$A$3:$AB$3, 0))), \"\")","v":""},{"$f":"IF(J168<>\"\", IF(INDEX('Full set Core Client Indicator'!$A$3:$AB$351, MATCH(Selection_Hide2!$A168, 'Full set Core Client Indicator'!$A$3:$A$351, 0), MATCH(Selection_Hide2!K$5, 'Full set Core Client Indicator'!$A$3:$AB$3, 0))=\"\", \"\",  INDEX('Full set Core Client Indicator'!$A$3:$AB$351, MATCH(Selection_Hide2!$A168, 'Full set Core Client Indicator'!$A$3:$A$351, 0), MATCH(Selection_Hide2!K$5, 'Full set Core Client Indicator'!$A$3:$AB$3, 0))), \"\")","v":""},{"$f":"IF(K168<>\"\", IF(INDEX('Full set Core Client Indicator'!$A$3:$AB$351, MATCH(Selection_Hide2!$A168, 'Full set Core Client Indicator'!$A$3:$A$351, 0), MATCH(Selection_Hide2!L$5, 'Full set Core Client Indicator'!$A$3:$AB$3, 0))=\"\", \"\",  INDEX('Full set Core Client Indicator'!$A$3:$AB$351, MATCH(Selection_Hide2!$A168, 'Full set Core Client Indicator'!$A$3:$A$351, 0), MATCH(Selection_Hide2!L$5, 'Full set Core Client Indicator'!$A$3:$AB$3, 0))), \"\")","v":""},{"$f":"IF(L168<>\"\", IF(INDEX('Full set Core Client Indicator'!$A$3:$AB$351, MATCH(Selection_Hide2!$A168, 'Full set Core Client Indicator'!$A$3:$A$351, 0), MATCH(Selection_Hide2!M$5, 'Full set Core Client Indicator'!$A$3:$AB$3, 0))=\"\", \"\",  INDEX('Full set Core Client Indicator'!$A$3:$AB$351, MATCH(Selection_Hide2!$A168, 'Full set Core Client Indicator'!$A$3:$A$351, 0), MATCH(Selection_Hide2!M$5, 'Full set Core Client Indicator'!$A$3:$AB$3, 0))), \"\")","v":""},{"$f":"IF(M168<>\"\", IF(INDEX('Full set Core Client Indicator'!$A$3:$AB$351, MATCH(Selection_Hide2!$A168, 'Full set Core Client Indicator'!$A$3:$A$351, 0), MATCH(Selection_Hide2!N$5, 'Full set Core Client Indicator'!$A$3:$AB$3, 0))=\"\", \"\",  INDEX('Full set Core Client Indicator'!$A$3:$AB$351, MATCH(Selection_Hide2!$A168, 'Full set Core Client Indicator'!$A$3:$A$351, 0), MATCH(Selection_Hide2!N$5, 'Full set Core Client Indicator'!$A$3:$AB$3, 0))), \"\")","v":""},{"$f":"IF(N168<>\"\", IF(INDEX('Full set Core Client Indicator'!$A$3:$AB$351, MATCH(Selection_Hide2!$A168, 'Full set Core Client Indicator'!$A$3:$A$351, 0), MATCH(Selection_Hide2!O$5, 'Full set Core Client Indicator'!$A$3:$AB$3, 0))=\"\", \"\",  INDEX('Full set Core Client Indicator'!$A$3:$AB$351, MATCH(Selection_Hide2!$A168, 'Full set Core Client Indicator'!$A$3:$A$351, 0), MATCH(Selection_Hide2!O$5, 'Full set Core Client Indicator'!$A$3:$AB$3, 0))), \"\")","v":""},{"$f":"IF(O168<>\"\", IF(INDEX('Full set Core Client Indicator'!$A$3:$AB$351, MATCH(Selection_Hide2!$A168, 'Full set Core Client Indicator'!$A$3:$A$351, 0), MATCH(Selection_Hide2!P$5, 'Full set Core Client Indicator'!$A$3:$AB$3, 0))=\"\", \"\",  INDEX('Full set Core Client Indicator'!$A$3:$AB$351, MATCH(Selection_Hide2!$A168, 'Full set Core Client Indicator'!$A$3:$A$351, 0), MATCH(Selection_Hide2!P$5, 'Full set Core Client Indicator'!$A$3:$AB$3, 0))), \"\")","v":""},{"$f":"IF(P168<>\"\", IF(INDEX('Full set Core Client Indicator'!$A$3:$AB$351, MATCH(Selection_Hide2!$A168, 'Full set Core Client Indicator'!$A$3:$A$351, 0), MATCH(Selection_Hide2!Q$5, 'Full set Core Client Indicator'!$A$3:$AB$3, 0))=\"\", \"\",  INDEX('Full set Core Client Indicator'!$A$3:$AB$351, MATCH(Selection_Hide2!$A168, 'Full set Core Client Indicator'!$A$3:$A$351, 0), MATCH(Selection_Hide2!Q$5, 'Full set Core Client Indicator'!$A$3:$AB$3, 0))), \"\")","v":""},{"$f":"IF(Q168<>\"\", IF(INDEX('Full set Core Client Indicator'!$A$3:$AB$351, MATCH(Selection_Hide2!$A168, 'Full set Core Client Indicator'!$A$3:$A$351, 0), MATCH(Selection_Hide2!R$5, 'Full set Core Client Indicator'!$A$3:$AB$3, 0))=\"\", \"\",  INDEX('Full set Core Client Indicator'!$A$3:$AB$351, MATCH(Selection_Hide2!$A168, 'Full set Core Client Indicator'!$A$3:$A$351, 0), MATCH(Selection_Hide2!R$5, 'Full set Core Client Indicator'!$A$3:$AB$3, 0))), \"\")","v":""},{"$f":"IF(R168<>\"\", IF(INDEX('Full set Core Client Indicator'!$A$3:$AB$351, MATCH(Selection_Hide2!$A168, 'Full set Core Client Indicator'!$A$3:$A$351, 0), MATCH(Selection_Hide2!S$5, 'Full set Core Client Indicator'!$A$3:$AB$3, 0))=\"\", \"\",  INDEX('Full set Core Client Indicator'!$A$3:$AB$351, MATCH(Selection_Hide2!$A168, 'Full set Core Client Indicator'!$A$3:$A$351, 0), MATCH(Selection_Hide2!S$5, 'Full set Core Client Indicator'!$A$3:$AB$3, 0))), \"\")","v":""},{"$f":"IF(S168<>\"\", IF(INDEX('Full set Core Client Indicator'!$A$3:$AB$351, MATCH(Selection_Hide2!$A168, 'Full set Core Client Indicator'!$A$3:$A$351, 0), MATCH(Selection_Hide2!T$5, 'Full set Core Client Indicator'!$A$3:$AB$3, 0))=\"\", \"\",  INDEX('Full set Core Client Indicator'!$A$3:$AB$351, MATCH(Selection_Hide2!$A168, 'Full set Core Client Indicator'!$A$3:$A$351, 0), MATCH(Selection_Hide2!T$5, 'Full set Core Client Indicator'!$A$3:$AB$3, 0))), \"\")","v":""},{"$f":"IF(T168<>\"\", IF(INDEX('Full set Core Client Indicator'!$A$3:$AB$351, MATCH(Selection_Hide2!$A168, 'Full set Core Client Indicator'!$A$3:$A$351, 0), MATCH(Selection_Hide2!U$5, 'Full set Core Client Indicator'!$A$3:$AB$3, 0))=\"\", \"\",  INDEX('Full set Core Client Indicator'!$A$3:$AB$351, MATCH(Selection_Hide2!$A168, 'Full set Core Client Indicator'!$A$3:$A$351, 0), MATCH(Selection_Hide2!U$5, 'Full set Core Client Indicator'!$A$3:$AB$3, 0))), \"\")","v":""},{"$f":"IF(U168<>\"\", IF(INDEX('Full set Core Client Indicator'!$A$3:$AB$351, MATCH(Selection_Hide2!$A168, 'Full set Core Client Indicator'!$A$3:$A$351, 0), MATCH(Selection_Hide2!V$5, 'Full set Core Client Indicator'!$A$3:$AB$3, 0))=\"\", \"\",  INDEX('Full set Core Client Indicator'!$A$3:$AB$351, MATCH(Selection_Hide2!$A168, 'Full set Core Client Indicator'!$A$3:$A$351, 0), MATCH(Selection_Hide2!V$5, 'Full set Core Client Indicator'!$A$3:$AB$3, 0))), \"\")","v":""},{"$f":"IF(V168<>\"\", IF(INDEX('Full set Core Client Indicator'!$A$3:$AB$351, MATCH(Selection_Hide2!$A168, 'Full set Core Client Indicator'!$A$3:$A$351, 0), MATCH(Selection_Hide2!W$5, 'Full set Core Client Indicator'!$A$3:$AB$3, 0))=\"\", \"\",  INDEX('Full set Core Client Indicator'!$A$3:$AB$351, MATCH(Selection_Hide2!$A168, 'Full set Core Client Indicator'!$A$3:$A$351, 0), MATCH(Selection_Hide2!W$5, 'Full set Core Client Indicator'!$A$3:$AB$3, 0))), \"\")","v":""},{"$f":"IF(W168<>\"\", IF(INDEX('Full set Core Client Indicator'!$A$3:$AB$351, MATCH(Selection_Hide2!$A168, 'Full set Core Client Indicator'!$A$3:$A$351, 0), MATCH(Selection_Hide2!X$5, 'Full set Core Client Indicator'!$A$3:$AB$3, 0))=\"\", \"\",  INDEX('Full set Core Client Indicator'!$A$3:$AB$351, MATCH(Selection_Hide2!$A168, 'Full set Core Client Indicator'!$A$3:$A$351, 0), MATCH(Selection_Hide2!X$5, 'Full set Core Client Indicator'!$A$3:$AB$3, 0))), \"\")","v":""},{"$f":"IF(X168<>\"\", IF(INDEX('Full set Core Client Indicator'!$A$3:$AB$351, MATCH(Selection_Hide2!$A168, 'Full set Core Client Indicator'!$A$3:$A$351, 0), MATCH(Selection_Hide2!Y$5, 'Full set Core Client Indicator'!$A$3:$AB$3, 0))=\"\", \"\",  INDEX('Full set Core Client Indicator'!$A$3:$AB$351, MATCH(Selection_Hide2!$A168, 'Full set Core Client Indicator'!$A$3:$A$351, 0), MATCH(Selection_Hide2!Y$5, 'Full set Core Client Indicator'!$A$3:$AB$3, 0))), \"\")","v":""},{"$f":"IF(Y168<>\"\", IF(INDEX('Full set Core Client Indicator'!$A$3:$AB$351, MATCH(Selection_Hide2!$A168, 'Full set Core Client Indicator'!$A$3:$A$351, 0), MATCH(Selection_Hide2!Z$5, 'Full set Core Client Indicator'!$A$3:$AB$3, 0))=\"\", \"\",  INDEX('Full set Core Client Indicator'!$A$3:$AB$351, MATCH(Selection_Hide2!$A168, 'Full set Core Client Indicator'!$A$3:$A$351, 0), MATCH(Selection_Hide2!Z$5, 'Full set Core Client Indicator'!$A$3:$AB$3, 0))), \"\")","v":""},{"$f":"IF(Z168<>\"\", IF(INDEX('Full set Core Client Indicator'!$A$3:$AB$351, MATCH(Selection_Hide2!$A168, 'Full set Core Client Indicator'!$A$3:$A$351, 0), MATCH(Selection_Hide2!AA$5, 'Full set Core Client Indicator'!$A$3:$AB$3, 0))=\"\", \"\",  INDEX('Full set Core Client Indicator'!$A$3:$AB$351, MATCH(Selection_Hide2!$A168, 'Full set Core Client Indicator'!$A$3:$A$351, 0), MATCH(Selection_Hide2!AA$5, 'Full set Core Client Indicator'!$A$3:$AB$3, 0))), \"\")","v":""},{"$f":"IF(AA168<>\"\", IF(INDEX('Full set Core Client Indicator'!$A$3:$AB$351, MATCH(Selection_Hide2!$A168, 'Full set Core Client Indicator'!$A$3:$A$351, 0), MATCH(Selection_Hide2!AB$5, 'Full set Core Client Indicator'!$A$3:$AB$3, 0))=\"\", \"\",  INDEX('Full set Core Client Indicator'!$A$3:$AB$351, MATCH(Selection_Hide2!$A168, 'Full set Core Client Indicator'!$A$3:$A$351, 0), MATCH(Selection_Hide2!AB$5, 'Full set Core Client Indicator'!$A$3:$AB$3, 0))), \"\")","v":""}]
[{"$f":"IF(AND(Selection_Hide1!C167<>0, Selection_Hide1!C167<>\"Grand Total\"), Selection_Hide1!C167, \"\")","v":""},{"$f":"IF(A169<>\"\", IF(INDEX('Full set Core Client Indicator'!$A$3:$AB$351, MATCH(Selection_Hide2!$A169, 'Full set Core Client Indicator'!$A$3:$A$351, 0), MATCH(Selection_Hide2!B$5, 'Full set Core Client Indicator'!$A$3:$AB$3, 0))=\"\", \"\",  INDEX('Full set Core Client Indicator'!$A$3:$AB$351, MATCH(Selection_Hide2!$A169, 'Full set Core Client Indicator'!$A$3:$A$351, 0), MATCH(Selection_Hide2!B$5, 'Full set Core Client Indicator'!$A$3:$AB$3, 0))), \"\")","v":""},{"$f":"IF(B169<>\"\", IF(INDEX('Full set Core Client Indicator'!$A$3:$AB$351, MATCH(Selection_Hide2!$A169, 'Full set Core Client Indicator'!$A$3:$A$351, 0), MATCH(Selection_Hide2!C$5, 'Full set Core Client Indicator'!$A$3:$AB$3, 0))=\"\", \"\",  INDEX('Full set Core Client Indicator'!$A$3:$AB$351, MATCH(Selection_Hide2!$A169, 'Full set Core Client Indicator'!$A$3:$A$351, 0), MATCH(Selection_Hide2!C$5, 'Full set Core Client Indicator'!$A$3:$AB$3, 0))), \"\")","v":""},{"$f":"IF(C169<>\"\", IF(INDEX('Full set Core Client Indicator'!$A$3:$AB$351, MATCH(Selection_Hide2!$A169, 'Full set Core Client Indicator'!$A$3:$A$351, 0), MATCH(Selection_Hide2!D$5, 'Full set Core Client Indicator'!$A$3:$AB$3, 0))=\"\", \"\",  INDEX('Full set Core Client Indicator'!$A$3:$AB$351, MATCH(Selection_Hide2!$A169, 'Full set Core Client Indicator'!$A$3:$A$351, 0), MATCH(Selection_Hide2!D$5, 'Full set Core Client Indicator'!$A$3:$AB$3, 0))), \"\")","v":""},{"$f":"IF(D169<>\"\", IF(INDEX('Full set Core Client Indicator'!$A$3:$AB$351, MATCH(Selection_Hide2!$A169, 'Full set Core Client Indicator'!$A$3:$A$351, 0), MATCH(Selection_Hide2!E$5, 'Full set Core Client Indicator'!$A$3:$AB$3, 0))=\"\", \"\",  INDEX('Full set Core Client Indicator'!$A$3:$AB$351, MATCH(Selection_Hide2!$A169, 'Full set Core Client Indicator'!$A$3:$A$351, 0), MATCH(Selection_Hide2!E$5, 'Full set Core Client Indicator'!$A$3:$AB$3, 0))), \"\")","v":""},{"$f":"IF(E169<>\"\", IF(INDEX('Full set Core Client Indicator'!$A$3:$AB$351, MATCH(Selection_Hide2!$A169, 'Full set Core Client Indicator'!$A$3:$A$351, 0), MATCH(Selection_Hide2!F$5, 'Full set Core Client Indicator'!$A$3:$AB$3, 0))=\"\", \"\",  INDEX('Full set Core Client Indicator'!$A$3:$AB$351, MATCH(Selection_Hide2!$A169, 'Full set Core Client Indicator'!$A$3:$A$351, 0), MATCH(Selection_Hide2!F$5, 'Full set Core Client Indicator'!$A$3:$AB$3, 0))), \"\")","v":""},{"$f":"IF(F169<>\"\", IF(INDEX('Full set Core Client Indicator'!$A$3:$AB$351, MATCH(Selection_Hide2!$A169, 'Full set Core Client Indicator'!$A$3:$A$351, 0), MATCH(Selection_Hide2!G$5, 'Full set Core Client Indicator'!$A$3:$AB$3, 0))=\"\", \"\",  INDEX('Full set Core Client Indicator'!$A$3:$AB$351, MATCH(Selection_Hide2!$A169, 'Full set Core Client Indicator'!$A$3:$A$351, 0), MATCH(Selection_Hide2!G$5, 'Full set Core Client Indicator'!$A$3:$AB$3, 0))), \"\")","v":""},{"$f":"IF(G169<>\"\", IF(INDEX('Full set Core Client Indicator'!$A$3:$AB$351, MATCH(Selection_Hide2!$A169, 'Full set Core Client Indicator'!$A$3:$A$351, 0), MATCH(Selection_Hide2!H$5, 'Full set Core Client Indicator'!$A$3:$AB$3, 0))=\"\", \"\",  INDEX('Full set Core Client Indicator'!$A$3:$AB$351, MATCH(Selection_Hide2!$A169, 'Full set Core Client Indicator'!$A$3:$A$351, 0), MATCH(Selection_Hide2!H$5, 'Full set Core Client Indicator'!$A$3:$AB$3, 0))), \"\")","v":""},{"$f":"IF(H169<>\"\", IF(INDEX('Full set Core Client Indicator'!$A$3:$AB$351, MATCH(Selection_Hide2!$A169, 'Full set Core Client Indicator'!$A$3:$A$351, 0), MATCH(Selection_Hide2!I$5, 'Full set Core Client Indicator'!$A$3:$AB$3, 0))=\"\", \"\",  INDEX('Full set Core Client Indicator'!$A$3:$AB$351, MATCH(Selection_Hide2!$A169, 'Full set Core Client Indicator'!$A$3:$A$351, 0), MATCH(Selection_Hide2!I$5, 'Full set Core Client Indicator'!$A$3:$AB$3, 0))), \"\")","v":""},{"$f":"IF(I169<>\"\", IF(INDEX('Full set Core Client Indicator'!$A$3:$AB$351, MATCH(Selection_Hide2!$A169, 'Full set Core Client Indicator'!$A$3:$A$351, 0), MATCH(Selection_Hide2!J$5, 'Full set Core Client Indicator'!$A$3:$AB$3, 0))=\"\", \"\",  INDEX('Full set Core Client Indicator'!$A$3:$AB$351, MATCH(Selection_Hide2!$A169, 'Full set Core Client Indicator'!$A$3:$A$351, 0), MATCH(Selection_Hide2!J$5, 'Full set Core Client Indicator'!$A$3:$AB$3, 0))), \"\")","v":""},{"$f":"IF(J169<>\"\", IF(INDEX('Full set Core Client Indicator'!$A$3:$AB$351, MATCH(Selection_Hide2!$A169, 'Full set Core Client Indicator'!$A$3:$A$351, 0), MATCH(Selection_Hide2!K$5, 'Full set Core Client Indicator'!$A$3:$AB$3, 0))=\"\", \"\",  INDEX('Full set Core Client Indicator'!$A$3:$AB$351, MATCH(Selection_Hide2!$A169, 'Full set Core Client Indicator'!$A$3:$A$351, 0), MATCH(Selection_Hide2!K$5, 'Full set Core Client Indicator'!$A$3:$AB$3, 0))), \"\")","v":""},{"$f":"IF(K169<>\"\", IF(INDEX('Full set Core Client Indicator'!$A$3:$AB$351, MATCH(Selection_Hide2!$A169, 'Full set Core Client Indicator'!$A$3:$A$351, 0), MATCH(Selection_Hide2!L$5, 'Full set Core Client Indicator'!$A$3:$AB$3, 0))=\"\", \"\",  INDEX('Full set Core Client Indicator'!$A$3:$AB$351, MATCH(Selection_Hide2!$A169, 'Full set Core Client Indicator'!$A$3:$A$351, 0), MATCH(Selection_Hide2!L$5, 'Full set Core Client Indicator'!$A$3:$AB$3, 0))), \"\")","v":""},{"$f":"IF(L169<>\"\", IF(INDEX('Full set Core Client Indicator'!$A$3:$AB$351, MATCH(Selection_Hide2!$A169, 'Full set Core Client Indicator'!$A$3:$A$351, 0), MATCH(Selection_Hide2!M$5, 'Full set Core Client Indicator'!$A$3:$AB$3, 0))=\"\", \"\",  INDEX('Full set Core Client Indicator'!$A$3:$AB$351, MATCH(Selection_Hide2!$A169, 'Full set Core Client Indicator'!$A$3:$A$351, 0), MATCH(Selection_Hide2!M$5, 'Full set Core Client Indicator'!$A$3:$AB$3, 0))), \"\")","v":""},{"$f":"IF(M169<>\"\", IF(INDEX('Full set Core Client Indicator'!$A$3:$AB$351, MATCH(Selection_Hide2!$A169, 'Full set Core Client Indicator'!$A$3:$A$351, 0), MATCH(Selection_Hide2!N$5, 'Full set Core Client Indicator'!$A$3:$AB$3, 0))=\"\", \"\",  INDEX('Full set Core Client Indicator'!$A$3:$AB$351, MATCH(Selection_Hide2!$A169, 'Full set Core Client Indicator'!$A$3:$A$351, 0), MATCH(Selection_Hide2!N$5, 'Full set Core Client Indicator'!$A$3:$AB$3, 0))), \"\")","v":""},{"$f":"IF(N169<>\"\", IF(INDEX('Full set Core Client Indicator'!$A$3:$AB$351, MATCH(Selection_Hide2!$A169, 'Full set Core Client Indicator'!$A$3:$A$351, 0), MATCH(Selection_Hide2!O$5, 'Full set Core Client Indicator'!$A$3:$AB$3, 0))=\"\", \"\",  INDEX('Full set Core Client Indicator'!$A$3:$AB$351, MATCH(Selection_Hide2!$A169, 'Full set Core Client Indicator'!$A$3:$A$351, 0), MATCH(Selection_Hide2!O$5, 'Full set Core Client Indicator'!$A$3:$AB$3, 0))), \"\")","v":""},{"$f":"IF(O169<>\"\", IF(INDEX('Full set Core Client Indicator'!$A$3:$AB$351, MATCH(Selection_Hide2!$A169, 'Full set Core Client Indicator'!$A$3:$A$351, 0), MATCH(Selection_Hide2!P$5, 'Full set Core Client Indicator'!$A$3:$AB$3, 0))=\"\", \"\",  INDEX('Full set Core Client Indicator'!$A$3:$AB$351, MATCH(Selection_Hide2!$A169, 'Full set Core Client Indicator'!$A$3:$A$351, 0), MATCH(Selection_Hide2!P$5, 'Full set Core Client Indicator'!$A$3:$AB$3, 0))), \"\")","v":""},{"$f":"IF(P169<>\"\", IF(INDEX('Full set Core Client Indicator'!$A$3:$AB$351, MATCH(Selection_Hide2!$A169, 'Full set Core Client Indicator'!$A$3:$A$351, 0), MATCH(Selection_Hide2!Q$5, 'Full set Core Client Indicator'!$A$3:$AB$3, 0))=\"\", \"\",  INDEX('Full set Core Client Indicator'!$A$3:$AB$351, MATCH(Selection_Hide2!$A169, 'Full set Core Client Indicator'!$A$3:$A$351, 0), MATCH(Selection_Hide2!Q$5, 'Full set Core Client Indicator'!$A$3:$AB$3, 0))), \"\")","v":""},{"$f":"IF(Q169<>\"\", IF(INDEX('Full set Core Client Indicator'!$A$3:$AB$351, MATCH(Selection_Hide2!$A169, 'Full set Core Client Indicator'!$A$3:$A$351, 0), MATCH(Selection_Hide2!R$5, 'Full set Core Client Indicator'!$A$3:$AB$3, 0))=\"\", \"\",  INDEX('Full set Core Client Indicator'!$A$3:$AB$351, MATCH(Selection_Hide2!$A169, 'Full set Core Client Indicator'!$A$3:$A$351, 0), MATCH(Selection_Hide2!R$5, 'Full set Core Client Indicator'!$A$3:$AB$3, 0))), \"\")","v":""},{"$f":"IF(R169<>\"\", IF(INDEX('Full set Core Client Indicator'!$A$3:$AB$351, MATCH(Selection_Hide2!$A169, 'Full set Core Client Indicator'!$A$3:$A$351, 0), MATCH(Selection_Hide2!S$5, 'Full set Core Client Indicator'!$A$3:$AB$3, 0))=\"\", \"\",  INDEX('Full set Core Client Indicator'!$A$3:$AB$351, MATCH(Selection_Hide2!$A169, 'Full set Core Client Indicator'!$A$3:$A$351, 0), MATCH(Selection_Hide2!S$5, 'Full set Core Client Indicator'!$A$3:$AB$3, 0))), \"\")","v":""},{"$f":"IF(S169<>\"\", IF(INDEX('Full set Core Client Indicator'!$A$3:$AB$351, MATCH(Selection_Hide2!$A169, 'Full set Core Client Indicator'!$A$3:$A$351, 0), MATCH(Selection_Hide2!T$5, 'Full set Core Client Indicator'!$A$3:$AB$3, 0))=\"\", \"\",  INDEX('Full set Core Client Indicator'!$A$3:$AB$351, MATCH(Selection_Hide2!$A169, 'Full set Core Client Indicator'!$A$3:$A$351, 0), MATCH(Selection_Hide2!T$5, 'Full set Core Client Indicator'!$A$3:$AB$3, 0))), \"\")","v":""},{"$f":"IF(T169<>\"\", IF(INDEX('Full set Core Client Indicator'!$A$3:$AB$351, MATCH(Selection_Hide2!$A169, 'Full set Core Client Indicator'!$A$3:$A$351, 0), MATCH(Selection_Hide2!U$5, 'Full set Core Client Indicator'!$A$3:$AB$3, 0))=\"\", \"\",  INDEX('Full set Core Client Indicator'!$A$3:$AB$351, MATCH(Selection_Hide2!$A169, 'Full set Core Client Indicator'!$A$3:$A$351, 0), MATCH(Selection_Hide2!U$5, 'Full set Core Client Indicator'!$A$3:$AB$3, 0))), \"\")","v":""},{"$f":"IF(U169<>\"\", IF(INDEX('Full set Core Client Indicator'!$A$3:$AB$351, MATCH(Selection_Hide2!$A169, 'Full set Core Client Indicator'!$A$3:$A$351, 0), MATCH(Selection_Hide2!V$5, 'Full set Core Client Indicator'!$A$3:$AB$3, 0))=\"\", \"\",  INDEX('Full set Core Client Indicator'!$A$3:$AB$351, MATCH(Selection_Hide2!$A169, 'Full set Core Client Indicator'!$A$3:$A$351, 0), MATCH(Selection_Hide2!V$5, 'Full set Core Client Indicator'!$A$3:$AB$3, 0))), \"\")","v":""},{"$f":"IF(V169<>\"\", IF(INDEX('Full set Core Client Indicator'!$A$3:$AB$351, MATCH(Selection_Hide2!$A169, 'Full set Core Client Indicator'!$A$3:$A$351, 0), MATCH(Selection_Hide2!W$5, 'Full set Core Client Indicator'!$A$3:$AB$3, 0))=\"\", \"\",  INDEX('Full set Core Client Indicator'!$A$3:$AB$351, MATCH(Selection_Hide2!$A169, 'Full set Core Client Indicator'!$A$3:$A$351, 0), MATCH(Selection_Hide2!W$5, 'Full set Core Client Indicator'!$A$3:$AB$3, 0))), \"\")","v":""},{"$f":"IF(W169<>\"\", IF(INDEX('Full set Core Client Indicator'!$A$3:$AB$351, MATCH(Selection_Hide2!$A169, 'Full set Core Client Indicator'!$A$3:$A$351, 0), MATCH(Selection_Hide2!X$5, 'Full set Core Client Indicator'!$A$3:$AB$3, 0))=\"\", \"\",  INDEX('Full set Core Client Indicator'!$A$3:$AB$351, MATCH(Selection_Hide2!$A169, 'Full set Core Client Indicator'!$A$3:$A$351, 0), MATCH(Selection_Hide2!X$5, 'Full set Core Client Indicator'!$A$3:$AB$3, 0))), \"\")","v":""},{"$f":"IF(X169<>\"\", IF(INDEX('Full set Core Client Indicator'!$A$3:$AB$351, MATCH(Selection_Hide2!$A169, 'Full set Core Client Indicator'!$A$3:$A$351, 0), MATCH(Selection_Hide2!Y$5, 'Full set Core Client Indicator'!$A$3:$AB$3, 0))=\"\", \"\",  INDEX('Full set Core Client Indicator'!$A$3:$AB$351, MATCH(Selection_Hide2!$A169, 'Full set Core Client Indicator'!$A$3:$A$351, 0), MATCH(Selection_Hide2!Y$5, 'Full set Core Client Indicator'!$A$3:$AB$3, 0))), \"\")","v":""},{"$f":"IF(Y169<>\"\", IF(INDEX('Full set Core Client Indicator'!$A$3:$AB$351, MATCH(Selection_Hide2!$A169, 'Full set Core Client Indicator'!$A$3:$A$351, 0), MATCH(Selection_Hide2!Z$5, 'Full set Core Client Indicator'!$A$3:$AB$3, 0))=\"\", \"\",  INDEX('Full set Core Client Indicator'!$A$3:$AB$351, MATCH(Selection_Hide2!$A169, 'Full set Core Client Indicator'!$A$3:$A$351, 0), MATCH(Selection_Hide2!Z$5, 'Full set Core Client Indicator'!$A$3:$AB$3, 0))), \"\")","v":""},{"$f":"IF(Z169<>\"\", IF(INDEX('Full set Core Client Indicator'!$A$3:$AB$351, MATCH(Selection_Hide2!$A169, 'Full set Core Client Indicator'!$A$3:$A$351, 0), MATCH(Selection_Hide2!AA$5, 'Full set Core Client Indicator'!$A$3:$AB$3, 0))=\"\", \"\",  INDEX('Full set Core Client Indicator'!$A$3:$AB$351, MATCH(Selection_Hide2!$A169, 'Full set Core Client Indicator'!$A$3:$A$351, 0), MATCH(Selection_Hide2!AA$5, 'Full set Core Client Indicator'!$A$3:$AB$3, 0))), \"\")","v":""},{"$f":"IF(AA169<>\"\", IF(INDEX('Full set Core Client Indicator'!$A$3:$AB$351, MATCH(Selection_Hide2!$A169, 'Full set Core Client Indicator'!$A$3:$A$351, 0), MATCH(Selection_Hide2!AB$5, 'Full set Core Client Indicator'!$A$3:$AB$3, 0))=\"\", \"\",  INDEX('Full set Core Client Indicator'!$A$3:$AB$351, MATCH(Selection_Hide2!$A169, 'Full set Core Client Indicator'!$A$3:$A$351, 0), MATCH(Selection_Hide2!AB$5, 'Full set Core Client Indicator'!$A$3:$AB$3, 0))), \"\")","v":""}]
[{"$f":"IF(AND(Selection_Hide1!C168<>0, Selection_Hide1!C168<>\"Grand Total\"), Selection_Hide1!C168, \"\")","v":""},{"$f":"IF(A170<>\"\", IF(INDEX('Full set Core Client Indicator'!$A$3:$AB$351, MATCH(Selection_Hide2!$A170, 'Full set Core Client Indicator'!$A$3:$A$351, 0), MATCH(Selection_Hide2!B$5, 'Full set Core Client Indicator'!$A$3:$AB$3, 0))=\"\", \"\",  INDEX('Full set Core Client Indicator'!$A$3:$AB$351, MATCH(Selection_Hide2!$A170, 'Full set Core Client Indicator'!$A$3:$A$351, 0), MATCH(Selection_Hide2!B$5, 'Full set Core Client Indicator'!$A$3:$AB$3, 0))), \"\")","v":""},{"$f":"IF(B170<>\"\", IF(INDEX('Full set Core Client Indicator'!$A$3:$AB$351, MATCH(Selection_Hide2!$A170, 'Full set Core Client Indicator'!$A$3:$A$351, 0), MATCH(Selection_Hide2!C$5, 'Full set Core Client Indicator'!$A$3:$AB$3, 0))=\"\", \"\",  INDEX('Full set Core Client Indicator'!$A$3:$AB$351, MATCH(Selection_Hide2!$A170, 'Full set Core Client Indicator'!$A$3:$A$351, 0), MATCH(Selection_Hide2!C$5, 'Full set Core Client Indicator'!$A$3:$AB$3, 0))), \"\")","v":""},{"$f":"IF(C170<>\"\", IF(INDEX('Full set Core Client Indicator'!$A$3:$AB$351, MATCH(Selection_Hide2!$A170, 'Full set Core Client Indicator'!$A$3:$A$351, 0), MATCH(Selection_Hide2!D$5, 'Full set Core Client Indicator'!$A$3:$AB$3, 0))=\"\", \"\",  INDEX('Full set Core Client Indicator'!$A$3:$AB$351, MATCH(Selection_Hide2!$A170, 'Full set Core Client Indicator'!$A$3:$A$351, 0), MATCH(Selection_Hide2!D$5, 'Full set Core Client Indicator'!$A$3:$AB$3, 0))), \"\")","v":""},{"$f":"IF(D170<>\"\", IF(INDEX('Full set Core Client Indicator'!$A$3:$AB$351, MATCH(Selection_Hide2!$A170, 'Full set Core Client Indicator'!$A$3:$A$351, 0), MATCH(Selection_Hide2!E$5, 'Full set Core Client Indicator'!$A$3:$AB$3, 0))=\"\", \"\",  INDEX('Full set Core Client Indicator'!$A$3:$AB$351, MATCH(Selection_Hide2!$A170, 'Full set Core Client Indicator'!$A$3:$A$351, 0), MATCH(Selection_Hide2!E$5, 'Full set Core Client Indicator'!$A$3:$AB$3, 0))), \"\")","v":""},{"$f":"IF(E170<>\"\", IF(INDEX('Full set Core Client Indicator'!$A$3:$AB$351, MATCH(Selection_Hide2!$A170, 'Full set Core Client Indicator'!$A$3:$A$351, 0), MATCH(Selection_Hide2!F$5, 'Full set Core Client Indicator'!$A$3:$AB$3, 0))=\"\", \"\",  INDEX('Full set Core Client Indicator'!$A$3:$AB$351, MATCH(Selection_Hide2!$A170, 'Full set Core Client Indicator'!$A$3:$A$351, 0), MATCH(Selection_Hide2!F$5, 'Full set Core Client Indicator'!$A$3:$AB$3, 0))), \"\")","v":""},{"$f":"IF(F170<>\"\", IF(INDEX('Full set Core Client Indicator'!$A$3:$AB$351, MATCH(Selection_Hide2!$A170, 'Full set Core Client Indicator'!$A$3:$A$351, 0), MATCH(Selection_Hide2!G$5, 'Full set Core Client Indicator'!$A$3:$AB$3, 0))=\"\", \"\",  INDEX('Full set Core Client Indicator'!$A$3:$AB$351, MATCH(Selection_Hide2!$A170, 'Full set Core Client Indicator'!$A$3:$A$351, 0), MATCH(Selection_Hide2!G$5, 'Full set Core Client Indicator'!$A$3:$AB$3, 0))), \"\")","v":""},{"$f":"IF(G170<>\"\", IF(INDEX('Full set Core Client Indicator'!$A$3:$AB$351, MATCH(Selection_Hide2!$A170, 'Full set Core Client Indicator'!$A$3:$A$351, 0), MATCH(Selection_Hide2!H$5, 'Full set Core Client Indicator'!$A$3:$AB$3, 0))=\"\", \"\",  INDEX('Full set Core Client Indicator'!$A$3:$AB$351, MATCH(Selection_Hide2!$A170, 'Full set Core Client Indicator'!$A$3:$A$351, 0), MATCH(Selection_Hide2!H$5, 'Full set Core Client Indicator'!$A$3:$AB$3, 0))), \"\")","v":""},{"$f":"IF(H170<>\"\", IF(INDEX('Full set Core Client Indicator'!$A$3:$AB$351, MATCH(Selection_Hide2!$A170, 'Full set Core Client Indicator'!$A$3:$A$351, 0), MATCH(Selection_Hide2!I$5, 'Full set Core Client Indicator'!$A$3:$AB$3, 0))=\"\", \"\",  INDEX('Full set Core Client Indicator'!$A$3:$AB$351, MATCH(Selection_Hide2!$A170, 'Full set Core Client Indicator'!$A$3:$A$351, 0), MATCH(Selection_Hide2!I$5, 'Full set Core Client Indicator'!$A$3:$AB$3, 0))), \"\")","v":""},{"$f":"IF(I170<>\"\", IF(INDEX('Full set Core Client Indicator'!$A$3:$AB$351, MATCH(Selection_Hide2!$A170, 'Full set Core Client Indicator'!$A$3:$A$351, 0), MATCH(Selection_Hide2!J$5, 'Full set Core Client Indicator'!$A$3:$AB$3, 0))=\"\", \"\",  INDEX('Full set Core Client Indicator'!$A$3:$AB$351, MATCH(Selection_Hide2!$A170, 'Full set Core Client Indicator'!$A$3:$A$351, 0), MATCH(Selection_Hide2!J$5, 'Full set Core Client Indicator'!$A$3:$AB$3, 0))), \"\")","v":""},{"$f":"IF(J170<>\"\", IF(INDEX('Full set Core Client Indicator'!$A$3:$AB$351, MATCH(Selection_Hide2!$A170, 'Full set Core Client Indicator'!$A$3:$A$351, 0), MATCH(Selection_Hide2!K$5, 'Full set Core Client Indicator'!$A$3:$AB$3, 0))=\"\", \"\",  INDEX('Full set Core Client Indicator'!$A$3:$AB$351, MATCH(Selection_Hide2!$A170, 'Full set Core Client Indicator'!$A$3:$A$351, 0), MATCH(Selection_Hide2!K$5, 'Full set Core Client Indicator'!$A$3:$AB$3, 0))), \"\")","v":""},{"$f":"IF(K170<>\"\", IF(INDEX('Full set Core Client Indicator'!$A$3:$AB$351, MATCH(Selection_Hide2!$A170, 'Full set Core Client Indicator'!$A$3:$A$351, 0), MATCH(Selection_Hide2!L$5, 'Full set Core Client Indicator'!$A$3:$AB$3, 0))=\"\", \"\",  INDEX('Full set Core Client Indicator'!$A$3:$AB$351, MATCH(Selection_Hide2!$A170, 'Full set Core Client Indicator'!$A$3:$A$351, 0), MATCH(Selection_Hide2!L$5, 'Full set Core Client Indicator'!$A$3:$AB$3, 0))), \"\")","v":""},{"$f":"IF(L170<>\"\", IF(INDEX('Full set Core Client Indicator'!$A$3:$AB$351, MATCH(Selection_Hide2!$A170, 'Full set Core Client Indicator'!$A$3:$A$351, 0), MATCH(Selection_Hide2!M$5, 'Full set Core Client Indicator'!$A$3:$AB$3, 0))=\"\", \"\",  INDEX('Full set Core Client Indicator'!$A$3:$AB$351, MATCH(Selection_Hide2!$A170, 'Full set Core Client Indicator'!$A$3:$A$351, 0), MATCH(Selection_Hide2!M$5, 'Full set Core Client Indicator'!$A$3:$AB$3, 0))), \"\")","v":""},{"$f":"IF(M170<>\"\", IF(INDEX('Full set Core Client Indicator'!$A$3:$AB$351, MATCH(Selection_Hide2!$A170, 'Full set Core Client Indicator'!$A$3:$A$351, 0), MATCH(Selection_Hide2!N$5, 'Full set Core Client Indicator'!$A$3:$AB$3, 0))=\"\", \"\",  INDEX('Full set Core Client Indicator'!$A$3:$AB$351, MATCH(Selection_Hide2!$A170, 'Full set Core Client Indicator'!$A$3:$A$351, 0), MATCH(Selection_Hide2!N$5, 'Full set Core Client Indicator'!$A$3:$AB$3, 0))), \"\")","v":""},{"$f":"IF(N170<>\"\", IF(INDEX('Full set Core Client Indicator'!$A$3:$AB$351, MATCH(Selection_Hide2!$A170, 'Full set Core Client Indicator'!$A$3:$A$351, 0), MATCH(Selection_Hide2!O$5, 'Full set Core Client Indicator'!$A$3:$AB$3, 0))=\"\", \"\",  INDEX('Full set Core Client Indicator'!$A$3:$AB$351, MATCH(Selection_Hide2!$A170, 'Full set Core Client Indicator'!$A$3:$A$351, 0), MATCH(Selection_Hide2!O$5, 'Full set Core Client Indicator'!$A$3:$AB$3, 0))), \"\")","v":""},{"$f":"IF(O170<>\"\", IF(INDEX('Full set Core Client Indicator'!$A$3:$AB$351, MATCH(Selection_Hide2!$A170, 'Full set Core Client Indicator'!$A$3:$A$351, 0), MATCH(Selection_Hide2!P$5, 'Full set Core Client Indicator'!$A$3:$AB$3, 0))=\"\", \"\",  INDEX('Full set Core Client Indicator'!$A$3:$AB$351, MATCH(Selection_Hide2!$A170, 'Full set Core Client Indicator'!$A$3:$A$351, 0), MATCH(Selection_Hide2!P$5, 'Full set Core Client Indicator'!$A$3:$AB$3, 0))), \"\")","v":""},{"$f":"IF(P170<>\"\", IF(INDEX('Full set Core Client Indicator'!$A$3:$AB$351, MATCH(Selection_Hide2!$A170, 'Full set Core Client Indicator'!$A$3:$A$351, 0), MATCH(Selection_Hide2!Q$5, 'Full set Core Client Indicator'!$A$3:$AB$3, 0))=\"\", \"\",  INDEX('Full set Core Client Indicator'!$A$3:$AB$351, MATCH(Selection_Hide2!$A170, 'Full set Core Client Indicator'!$A$3:$A$351, 0), MATCH(Selection_Hide2!Q$5, 'Full set Core Client Indicator'!$A$3:$AB$3, 0))), \"\")","v":""},{"$f":"IF(Q170<>\"\", IF(INDEX('Full set Core Client Indicator'!$A$3:$AB$351, MATCH(Selection_Hide2!$A170, 'Full set Core Client Indicator'!$A$3:$A$351, 0), MATCH(Selection_Hide2!R$5, 'Full set Core Client Indicator'!$A$3:$AB$3, 0))=\"\", \"\",  INDEX('Full set Core Client Indicator'!$A$3:$AB$351, MATCH(Selection_Hide2!$A170, 'Full set Core Client Indicator'!$A$3:$A$351, 0), MATCH(Selection_Hide2!R$5, 'Full set Core Client Indicator'!$A$3:$AB$3, 0))), \"\")","v":""},{"$f":"IF(R170<>\"\", IF(INDEX('Full set Core Client Indicator'!$A$3:$AB$351, MATCH(Selection_Hide2!$A170, 'Full set Core Client Indicator'!$A$3:$A$351, 0), MATCH(Selection_Hide2!S$5, 'Full set Core Client Indicator'!$A$3:$AB$3, 0))=\"\", \"\",  INDEX('Full set Core Client Indicator'!$A$3:$AB$351, MATCH(Selection_Hide2!$A170, 'Full set Core Client Indicator'!$A$3:$A$351, 0), MATCH(Selection_Hide2!S$5, 'Full set Core Client Indicator'!$A$3:$AB$3, 0))), \"\")","v":""},{"$f":"IF(S170<>\"\", IF(INDEX('Full set Core Client Indicator'!$A$3:$AB$351, MATCH(Selection_Hide2!$A170, 'Full set Core Client Indicator'!$A$3:$A$351, 0), MATCH(Selection_Hide2!T$5, 'Full set Core Client Indicator'!$A$3:$AB$3, 0))=\"\", \"\",  INDEX('Full set Core Client Indicator'!$A$3:$AB$351, MATCH(Selection_Hide2!$A170, 'Full set Core Client Indicator'!$A$3:$A$351, 0), MATCH(Selection_Hide2!T$5, 'Full set Core Client Indicator'!$A$3:$AB$3, 0))), \"\")","v":""},{"$f":"IF(T170<>\"\", IF(INDEX('Full set Core Client Indicator'!$A$3:$AB$351, MATCH(Selection_Hide2!$A170, 'Full set Core Client Indicator'!$A$3:$A$351, 0), MATCH(Selection_Hide2!U$5, 'Full set Core Client Indicator'!$A$3:$AB$3, 0))=\"\", \"\",  INDEX('Full set Core Client Indicator'!$A$3:$AB$351, MATCH(Selection_Hide2!$A170, 'Full set Core Client Indicator'!$A$3:$A$351, 0), MATCH(Selection_Hide2!U$5, 'Full set Core Client Indicator'!$A$3:$AB$3, 0))), \"\")","v":""},{"$f":"IF(U170<>\"\", IF(INDEX('Full set Core Client Indicator'!$A$3:$AB$351, MATCH(Selection_Hide2!$A170, 'Full set Core Client Indicator'!$A$3:$A$351, 0), MATCH(Selection_Hide2!V$5, 'Full set Core Client Indicator'!$A$3:$AB$3, 0))=\"\", \"\",  INDEX('Full set Core Client Indicator'!$A$3:$AB$351, MATCH(Selection_Hide2!$A170, 'Full set Core Client Indicator'!$A$3:$A$351, 0), MATCH(Selection_Hide2!V$5, 'Full set Core Client Indicator'!$A$3:$AB$3, 0))), \"\")","v":""},{"$f":"IF(V170<>\"\", IF(INDEX('Full set Core Client Indicator'!$A$3:$AB$351, MATCH(Selection_Hide2!$A170, 'Full set Core Client Indicator'!$A$3:$A$351, 0), MATCH(Selection_Hide2!W$5, 'Full set Core Client Indicator'!$A$3:$AB$3, 0))=\"\", \"\",  INDEX('Full set Core Client Indicator'!$A$3:$AB$351, MATCH(Selection_Hide2!$A170, 'Full set Core Client Indicator'!$A$3:$A$351, 0), MATCH(Selection_Hide2!W$5, 'Full set Core Client Indicator'!$A$3:$AB$3, 0))), \"\")","v":""},{"$f":"IF(W170<>\"\", IF(INDEX('Full set Core Client Indicator'!$A$3:$AB$351, MATCH(Selection_Hide2!$A170, 'Full set Core Client Indicator'!$A$3:$A$351, 0), MATCH(Selection_Hide2!X$5, 'Full set Core Client Indicator'!$A$3:$AB$3, 0))=\"\", \"\",  INDEX('Full set Core Client Indicator'!$A$3:$AB$351, MATCH(Selection_Hide2!$A170, 'Full set Core Client Indicator'!$A$3:$A$351, 0), MATCH(Selection_Hide2!X$5, 'Full set Core Client Indicator'!$A$3:$AB$3, 0))), \"\")","v":""},{"$f":"IF(X170<>\"\", IF(INDEX('Full set Core Client Indicator'!$A$3:$AB$351, MATCH(Selection_Hide2!$A170, 'Full set Core Client Indicator'!$A$3:$A$351, 0), MATCH(Selection_Hide2!Y$5, 'Full set Core Client Indicator'!$A$3:$AB$3, 0))=\"\", \"\",  INDEX('Full set Core Client Indicator'!$A$3:$AB$351, MATCH(Selection_Hide2!$A170, 'Full set Core Client Indicator'!$A$3:$A$351, 0), MATCH(Selection_Hide2!Y$5, 'Full set Core Client Indicator'!$A$3:$AB$3, 0))), \"\")","v":""},{"$f":"IF(Y170<>\"\", IF(INDEX('Full set Core Client Indicator'!$A$3:$AB$351, MATCH(Selection_Hide2!$A170, 'Full set Core Client Indicator'!$A$3:$A$351, 0), MATCH(Selection_Hide2!Z$5, 'Full set Core Client Indicator'!$A$3:$AB$3, 0))=\"\", \"\",  INDEX('Full set Core Client Indicator'!$A$3:$AB$351, MATCH(Selection_Hide2!$A170, 'Full set Core Client Indicator'!$A$3:$A$351, 0), MATCH(Selection_Hide2!Z$5, 'Full set Core Client Indicator'!$A$3:$AB$3, 0))), \"\")","v":""},{"$f":"IF(Z170<>\"\", IF(INDEX('Full set Core Client Indicator'!$A$3:$AB$351, MATCH(Selection_Hide2!$A170, 'Full set Core Client Indicator'!$A$3:$A$351, 0), MATCH(Selection_Hide2!AA$5, 'Full set Core Client Indicator'!$A$3:$AB$3, 0))=\"\", \"\",  INDEX('Full set Core Client Indicator'!$A$3:$AB$351, MATCH(Selection_Hide2!$A170, 'Full set Core Client Indicator'!$A$3:$A$351, 0), MATCH(Selection_Hide2!AA$5, 'Full set Core Client Indicator'!$A$3:$AB$3, 0))), \"\")","v":""},{"$f":"IF(AA170<>\"\", IF(INDEX('Full set Core Client Indicator'!$A$3:$AB$351, MATCH(Selection_Hide2!$A170, 'Full set Core Client Indicator'!$A$3:$A$351, 0), MATCH(Selection_Hide2!AB$5, 'Full set Core Client Indicator'!$A$3:$AB$3, 0))=\"\", \"\",  INDEX('Full set Core Client Indicator'!$A$3:$AB$351, MATCH(Selection_Hide2!$A170, 'Full set Core Client Indicator'!$A$3:$A$351, 0), MATCH(Selection_Hide2!AB$5, 'Full set Core Client Indicator'!$A$3:$AB$3, 0))), \"\")","v":""}]
[{"$f":"IF(AND(Selection_Hide1!C169<>0, Selection_Hide1!C169<>\"Grand Total\"), Selection_Hide1!C169, \"\")","v":""},{"$f":"IF(A171<>\"\", IF(INDEX('Full set Core Client Indicator'!$A$3:$AB$351, MATCH(Selection_Hide2!$A171, 'Full set Core Client Indicator'!$A$3:$A$351, 0), MATCH(Selection_Hide2!B$5, 'Full set Core Client Indicator'!$A$3:$AB$3, 0))=\"\", \"\",  INDEX('Full set Core Client Indicator'!$A$3:$AB$351, MATCH(Selection_Hide2!$A171, 'Full set Core Client Indicator'!$A$3:$A$351, 0), MATCH(Selection_Hide2!B$5, 'Full set Core Client Indicator'!$A$3:$AB$3, 0))), \"\")","v":""},{"$f":"IF(B171<>\"\", IF(INDEX('Full set Core Client Indicator'!$A$3:$AB$351, MATCH(Selection_Hide2!$A171, 'Full set Core Client Indicator'!$A$3:$A$351, 0), MATCH(Selection_Hide2!C$5, 'Full set Core Client Indicator'!$A$3:$AB$3, 0))=\"\", \"\",  INDEX('Full set Core Client Indicator'!$A$3:$AB$351, MATCH(Selection_Hide2!$A171, 'Full set Core Client Indicator'!$A$3:$A$351, 0), MATCH(Selection_Hide2!C$5, 'Full set Core Client Indicator'!$A$3:$AB$3, 0))), \"\")","v":""},{"$f":"IF(C171<>\"\", IF(INDEX('Full set Core Client Indicator'!$A$3:$AB$351, MATCH(Selection_Hide2!$A171, 'Full set Core Client Indicator'!$A$3:$A$351, 0), MATCH(Selection_Hide2!D$5, 'Full set Core Client Indicator'!$A$3:$AB$3, 0))=\"\", \"\",  INDEX('Full set Core Client Indicator'!$A$3:$AB$351, MATCH(Selection_Hide2!$A171, 'Full set Core Client Indicator'!$A$3:$A$351, 0), MATCH(Selection_Hide2!D$5, 'Full set Core Client Indicator'!$A$3:$AB$3, 0))), \"\")","v":""},{"$f":"IF(D171<>\"\", IF(INDEX('Full set Core Client Indicator'!$A$3:$AB$351, MATCH(Selection_Hide2!$A171, 'Full set Core Client Indicator'!$A$3:$A$351, 0), MATCH(Selection_Hide2!E$5, 'Full set Core Client Indicator'!$A$3:$AB$3, 0))=\"\", \"\",  INDEX('Full set Core Client Indicator'!$A$3:$AB$351, MATCH(Selection_Hide2!$A171, 'Full set Core Client Indicator'!$A$3:$A$351, 0), MATCH(Selection_Hide2!E$5, 'Full set Core Client Indicator'!$A$3:$AB$3, 0))), \"\")","v":""},{"$f":"IF(E171<>\"\", IF(INDEX('Full set Core Client Indicator'!$A$3:$AB$351, MATCH(Selection_Hide2!$A171, 'Full set Core Client Indicator'!$A$3:$A$351, 0), MATCH(Selection_Hide2!F$5, 'Full set Core Client Indicator'!$A$3:$AB$3, 0))=\"\", \"\",  INDEX('Full set Core Client Indicator'!$A$3:$AB$351, MATCH(Selection_Hide2!$A171, 'Full set Core Client Indicator'!$A$3:$A$351, 0), MATCH(Selection_Hide2!F$5, 'Full set Core Client Indicator'!$A$3:$AB$3, 0))), \"\")","v":""},{"$f":"IF(F171<>\"\", IF(INDEX('Full set Core Client Indicator'!$A$3:$AB$351, MATCH(Selection_Hide2!$A171, 'Full set Core Client Indicator'!$A$3:$A$351, 0), MATCH(Selection_Hide2!G$5, 'Full set Core Client Indicator'!$A$3:$AB$3, 0))=\"\", \"\",  INDEX('Full set Core Client Indicator'!$A$3:$AB$351, MATCH(Selection_Hide2!$A171, 'Full set Core Client Indicator'!$A$3:$A$351, 0), MATCH(Selection_Hide2!G$5, 'Full set Core Client Indicator'!$A$3:$AB$3, 0))), \"\")","v":""},{"$f":"IF(G171<>\"\", IF(INDEX('Full set Core Client Indicator'!$A$3:$AB$351, MATCH(Selection_Hide2!$A171, 'Full set Core Client Indicator'!$A$3:$A$351, 0), MATCH(Selection_Hide2!H$5, 'Full set Core Client Indicator'!$A$3:$AB$3, 0))=\"\", \"\",  INDEX('Full set Core Client Indicator'!$A$3:$AB$351, MATCH(Selection_Hide2!$A171, 'Full set Core Client Indicator'!$A$3:$A$351, 0), MATCH(Selection_Hide2!H$5, 'Full set Core Client Indicator'!$A$3:$AB$3, 0))), \"\")","v":""},{"$f":"IF(H171<>\"\", IF(INDEX('Full set Core Client Indicator'!$A$3:$AB$351, MATCH(Selection_Hide2!$A171, 'Full set Core Client Indicator'!$A$3:$A$351, 0), MATCH(Selection_Hide2!I$5, 'Full set Core Client Indicator'!$A$3:$AB$3, 0))=\"\", \"\",  INDEX('Full set Core Client Indicator'!$A$3:$AB$351, MATCH(Selection_Hide2!$A171, 'Full set Core Client Indicator'!$A$3:$A$351, 0), MATCH(Selection_Hide2!I$5, 'Full set Core Client Indicator'!$A$3:$AB$3, 0))), \"\")","v":""},{"$f":"IF(I171<>\"\", IF(INDEX('Full set Core Client Indicator'!$A$3:$AB$351, MATCH(Selection_Hide2!$A171, 'Full set Core Client Indicator'!$A$3:$A$351, 0), MATCH(Selection_Hide2!J$5, 'Full set Core Client Indicator'!$A$3:$AB$3, 0))=\"\", \"\",  INDEX('Full set Core Client Indicator'!$A$3:$AB$351, MATCH(Selection_Hide2!$A171, 'Full set Core Client Indicator'!$A$3:$A$351, 0), MATCH(Selection_Hide2!J$5, 'Full set Core Client Indicator'!$A$3:$AB$3, 0))), \"\")","v":""},{"$f":"IF(J171<>\"\", IF(INDEX('Full set Core Client Indicator'!$A$3:$AB$351, MATCH(Selection_Hide2!$A171, 'Full set Core Client Indicator'!$A$3:$A$351, 0), MATCH(Selection_Hide2!K$5, 'Full set Core Client Indicator'!$A$3:$AB$3, 0))=\"\", \"\",  INDEX('Full set Core Client Indicator'!$A$3:$AB$351, MATCH(Selection_Hide2!$A171, 'Full set Core Client Indicator'!$A$3:$A$351, 0), MATCH(Selection_Hide2!K$5, 'Full set Core Client Indicator'!$A$3:$AB$3, 0))), \"\")","v":""},{"$f":"IF(K171<>\"\", IF(INDEX('Full set Core Client Indicator'!$A$3:$AB$351, MATCH(Selection_Hide2!$A171, 'Full set Core Client Indicator'!$A$3:$A$351, 0), MATCH(Selection_Hide2!L$5, 'Full set Core Client Indicator'!$A$3:$AB$3, 0))=\"\", \"\",  INDEX('Full set Core Client Indicator'!$A$3:$AB$351, MATCH(Selection_Hide2!$A171, 'Full set Core Client Indicator'!$A$3:$A$351, 0), MATCH(Selection_Hide2!L$5, 'Full set Core Client Indicator'!$A$3:$AB$3, 0))), \"\")","v":""},{"$f":"IF(L171<>\"\", IF(INDEX('Full set Core Client Indicator'!$A$3:$AB$351, MATCH(Selection_Hide2!$A171, 'Full set Core Client Indicator'!$A$3:$A$351, 0), MATCH(Selection_Hide2!M$5, 'Full set Core Client Indicator'!$A$3:$AB$3, 0))=\"\", \"\",  INDEX('Full set Core Client Indicator'!$A$3:$AB$351, MATCH(Selection_Hide2!$A171, 'Full set Core Client Indicator'!$A$3:$A$351, 0), MATCH(Selection_Hide2!M$5, 'Full set Core Client Indicator'!$A$3:$AB$3, 0))), \"\")","v":""},{"$f":"IF(M171<>\"\", IF(INDEX('Full set Core Client Indicator'!$A$3:$AB$351, MATCH(Selection_Hide2!$A171, 'Full set Core Client Indicator'!$A$3:$A$351, 0), MATCH(Selection_Hide2!N$5, 'Full set Core Client Indicator'!$A$3:$AB$3, 0))=\"\", \"\",  INDEX('Full set Core Client Indicator'!$A$3:$AB$351, MATCH(Selection_Hide2!$A171, 'Full set Core Client Indicator'!$A$3:$A$351, 0), MATCH(Selection_Hide2!N$5, 'Full set Core Client Indicator'!$A$3:$AB$3, 0))), \"\")","v":""},{"$f":"IF(N171<>\"\", IF(INDEX('Full set Core Client Indicator'!$A$3:$AB$351, MATCH(Selection_Hide2!$A171, 'Full set Core Client Indicator'!$A$3:$A$351, 0), MATCH(Selection_Hide2!O$5, 'Full set Core Client Indicator'!$A$3:$AB$3, 0))=\"\", \"\",  INDEX('Full set Core Client Indicator'!$A$3:$AB$351, MATCH(Selection_Hide2!$A171, 'Full set Core Client Indicator'!$A$3:$A$351, 0), MATCH(Selection_Hide2!O$5, 'Full set Core Client Indicator'!$A$3:$AB$3, 0))), \"\")","v":""},{"$f":"IF(O171<>\"\", IF(INDEX('Full set Core Client Indicator'!$A$3:$AB$351, MATCH(Selection_Hide2!$A171, 'Full set Core Client Indicator'!$A$3:$A$351, 0), MATCH(Selection_Hide2!P$5, 'Full set Core Client Indicator'!$A$3:$AB$3, 0))=\"\", \"\",  INDEX('Full set Core Client Indicator'!$A$3:$AB$351, MATCH(Selection_Hide2!$A171, 'Full set Core Client Indicator'!$A$3:$A$351, 0), MATCH(Selection_Hide2!P$5, 'Full set Core Client Indicator'!$A$3:$AB$3, 0))), \"\")","v":""},{"$f":"IF(P171<>\"\", IF(INDEX('Full set Core Client Indicator'!$A$3:$AB$351, MATCH(Selection_Hide2!$A171, 'Full set Core Client Indicator'!$A$3:$A$351, 0), MATCH(Selection_Hide2!Q$5, 'Full set Core Client Indicator'!$A$3:$AB$3, 0))=\"\", \"\",  INDEX('Full set Core Client Indicator'!$A$3:$AB$351, MATCH(Selection_Hide2!$A171, 'Full set Core Client Indicator'!$A$3:$A$351, 0), MATCH(Selection_Hide2!Q$5, 'Full set Core Client Indicator'!$A$3:$AB$3, 0))), \"\")","v":""},{"$f":"IF(Q171<>\"\", IF(INDEX('Full set Core Client Indicator'!$A$3:$AB$351, MATCH(Selection_Hide2!$A171, 'Full set Core Client Indicator'!$A$3:$A$351, 0), MATCH(Selection_Hide2!R$5, 'Full set Core Client Indicator'!$A$3:$AB$3, 0))=\"\", \"\",  INDEX('Full set Core Client Indicator'!$A$3:$AB$351, MATCH(Selection_Hide2!$A171, 'Full set Core Client Indicator'!$A$3:$A$351, 0), MATCH(Selection_Hide2!R$5, 'Full set Core Client Indicator'!$A$3:$AB$3, 0))), \"\")","v":""},{"$f":"IF(R171<>\"\", IF(INDEX('Full set Core Client Indicator'!$A$3:$AB$351, MATCH(Selection_Hide2!$A171, 'Full set Core Client Indicator'!$A$3:$A$351, 0), MATCH(Selection_Hide2!S$5, 'Full set Core Client Indicator'!$A$3:$AB$3, 0))=\"\", \"\",  INDEX('Full set Core Client Indicator'!$A$3:$AB$351, MATCH(Selection_Hide2!$A171, 'Full set Core Client Indicator'!$A$3:$A$351, 0), MATCH(Selection_Hide2!S$5, 'Full set Core Client Indicator'!$A$3:$AB$3, 0))), \"\")","v":""},{"$f":"IF(S171<>\"\", IF(INDEX('Full set Core Client Indicator'!$A$3:$AB$351, MATCH(Selection_Hide2!$A171, 'Full set Core Client Indicator'!$A$3:$A$351, 0), MATCH(Selection_Hide2!T$5, 'Full set Core Client Indicator'!$A$3:$AB$3, 0))=\"\", \"\",  INDEX('Full set Core Client Indicator'!$A$3:$AB$351, MATCH(Selection_Hide2!$A171, 'Full set Core Client Indicator'!$A$3:$A$351, 0), MATCH(Selection_Hide2!T$5, 'Full set Core Client Indicator'!$A$3:$AB$3, 0))), \"\")","v":""},{"$f":"IF(T171<>\"\", IF(INDEX('Full set Core Client Indicator'!$A$3:$AB$351, MATCH(Selection_Hide2!$A171, 'Full set Core Client Indicator'!$A$3:$A$351, 0), MATCH(Selection_Hide2!U$5, 'Full set Core Client Indicator'!$A$3:$AB$3, 0))=\"\", \"\",  INDEX('Full set Core Client Indicator'!$A$3:$AB$351, MATCH(Selection_Hide2!$A171, 'Full set Core Client Indicator'!$A$3:$A$351, 0), MATCH(Selection_Hide2!U$5, 'Full set Core Client Indicator'!$A$3:$AB$3, 0))), \"\")","v":""},{"$f":"IF(U171<>\"\", IF(INDEX('Full set Core Client Indicator'!$A$3:$AB$351, MATCH(Selection_Hide2!$A171, 'Full set Core Client Indicator'!$A$3:$A$351, 0), MATCH(Selection_Hide2!V$5, 'Full set Core Client Indicator'!$A$3:$AB$3, 0))=\"\", \"\",  INDEX('Full set Core Client Indicator'!$A$3:$AB$351, MATCH(Selection_Hide2!$A171, 'Full set Core Client Indicator'!$A$3:$A$351, 0), MATCH(Selection_Hide2!V$5, 'Full set Core Client Indicator'!$A$3:$AB$3, 0))), \"\")","v":""},{"$f":"IF(V171<>\"\", IF(INDEX('Full set Core Client Indicator'!$A$3:$AB$351, MATCH(Selection_Hide2!$A171, 'Full set Core Client Indicator'!$A$3:$A$351, 0), MATCH(Selection_Hide2!W$5, 'Full set Core Client Indicator'!$A$3:$AB$3, 0))=\"\", \"\",  INDEX('Full set Core Client Indicator'!$A$3:$AB$351, MATCH(Selection_Hide2!$A171, 'Full set Core Client Indicator'!$A$3:$A$351, 0), MATCH(Selection_Hide2!W$5, 'Full set Core Client Indicator'!$A$3:$AB$3, 0))), \"\")","v":""},{"$f":"IF(W171<>\"\", IF(INDEX('Full set Core Client Indicator'!$A$3:$AB$351, MATCH(Selection_Hide2!$A171, 'Full set Core Client Indicator'!$A$3:$A$351, 0), MATCH(Selection_Hide2!X$5, 'Full set Core Client Indicator'!$A$3:$AB$3, 0))=\"\", \"\",  INDEX('Full set Core Client Indicator'!$A$3:$AB$351, MATCH(Selection_Hide2!$A171, 'Full set Core Client Indicator'!$A$3:$A$351, 0), MATCH(Selection_Hide2!X$5, 'Full set Core Client Indicator'!$A$3:$AB$3, 0))), \"\")","v":""},{"$f":"IF(X171<>\"\", IF(INDEX('Full set Core Client Indicator'!$A$3:$AB$351, MATCH(Selection_Hide2!$A171, 'Full set Core Client Indicator'!$A$3:$A$351, 0), MATCH(Selection_Hide2!Y$5, 'Full set Core Client Indicator'!$A$3:$AB$3, 0))=\"\", \"\",  INDEX('Full set Core Client Indicator'!$A$3:$AB$351, MATCH(Selection_Hide2!$A171, 'Full set Core Client Indicator'!$A$3:$A$351, 0), MATCH(Selection_Hide2!Y$5, 'Full set Core Client Indicator'!$A$3:$AB$3, 0))), \"\")","v":""},{"$f":"IF(Y171<>\"\", IF(INDEX('Full set Core Client Indicator'!$A$3:$AB$351, MATCH(Selection_Hide2!$A171, 'Full set Core Client Indicator'!$A$3:$A$351, 0), MATCH(Selection_Hide2!Z$5, 'Full set Core Client Indicator'!$A$3:$AB$3, 0))=\"\", \"\",  INDEX('Full set Core Client Indicator'!$A$3:$AB$351, MATCH(Selection_Hide2!$A171, 'Full set Core Client Indicator'!$A$3:$A$351, 0), MATCH(Selection_Hide2!Z$5, 'Full set Core Client Indicator'!$A$3:$AB$3, 0))), \"\")","v":""},{"$f":"IF(Z171<>\"\", IF(INDEX('Full set Core Client Indicator'!$A$3:$AB$351, MATCH(Selection_Hide2!$A171, 'Full set Core Client Indicator'!$A$3:$A$351, 0), MATCH(Selection_Hide2!AA$5, 'Full set Core Client Indicator'!$A$3:$AB$3, 0))=\"\", \"\",  INDEX('Full set Core Client Indicator'!$A$3:$AB$351, MATCH(Selection_Hide2!$A171, 'Full set Core Client Indicator'!$A$3:$A$351, 0), MATCH(Selection_Hide2!AA$5, 'Full set Core Client Indicator'!$A$3:$AB$3, 0))), \"\")","v":""},{"$f":"IF(AA171<>\"\", IF(INDEX('Full set Core Client Indicator'!$A$3:$AB$351, MATCH(Selection_Hide2!$A171, 'Full set Core Client Indicator'!$A$3:$A$351, 0), MATCH(Selection_Hide2!AB$5, 'Full set Core Client Indicator'!$A$3:$AB$3, 0))=\"\", \"\",  INDEX('Full set Core Client Indicator'!$A$3:$AB$351, MATCH(Selection_Hide2!$A171, 'Full set Core Client Indicator'!$A$3:$A$351, 0), MATCH(Selection_Hide2!AB$5, 'Full set Core Client Indicator'!$A$3:$AB$3, 0))), \"\")","v":""}]
[{"$f":"IF(AND(Selection_Hide1!C170<>0, Selection_Hide1!C170<>\"Grand Total\"), Selection_Hide1!C170, \"\")","v":""},{"$f":"IF(A172<>\"\", IF(INDEX('Full set Core Client Indicator'!$A$3:$AB$351, MATCH(Selection_Hide2!$A172, 'Full set Core Client Indicator'!$A$3:$A$351, 0), MATCH(Selection_Hide2!B$5, 'Full set Core Client Indicator'!$A$3:$AB$3, 0))=\"\", \"\",  INDEX('Full set Core Client Indicator'!$A$3:$AB$351, MATCH(Selection_Hide2!$A172, 'Full set Core Client Indicator'!$A$3:$A$351, 0), MATCH(Selection_Hide2!B$5, 'Full set Core Client Indicator'!$A$3:$AB$3, 0))), \"\")","v":""},{"$f":"IF(B172<>\"\", IF(INDEX('Full set Core Client Indicator'!$A$3:$AB$351, MATCH(Selection_Hide2!$A172, 'Full set Core Client Indicator'!$A$3:$A$351, 0), MATCH(Selection_Hide2!C$5, 'Full set Core Client Indicator'!$A$3:$AB$3, 0))=\"\", \"\",  INDEX('Full set Core Client Indicator'!$A$3:$AB$351, MATCH(Selection_Hide2!$A172, 'Full set Core Client Indicator'!$A$3:$A$351, 0), MATCH(Selection_Hide2!C$5, 'Full set Core Client Indicator'!$A$3:$AB$3, 0))), \"\")","v":""},{"$f":"IF(C172<>\"\", IF(INDEX('Full set Core Client Indicator'!$A$3:$AB$351, MATCH(Selection_Hide2!$A172, 'Full set Core Client Indicator'!$A$3:$A$351, 0), MATCH(Selection_Hide2!D$5, 'Full set Core Client Indicator'!$A$3:$AB$3, 0))=\"\", \"\",  INDEX('Full set Core Client Indicator'!$A$3:$AB$351, MATCH(Selection_Hide2!$A172, 'Full set Core Client Indicator'!$A$3:$A$351, 0), MATCH(Selection_Hide2!D$5, 'Full set Core Client Indicator'!$A$3:$AB$3, 0))), \"\")","v":""},{"$f":"IF(D172<>\"\", IF(INDEX('Full set Core Client Indicator'!$A$3:$AB$351, MATCH(Selection_Hide2!$A172, 'Full set Core Client Indicator'!$A$3:$A$351, 0), MATCH(Selection_Hide2!E$5, 'Full set Core Client Indicator'!$A$3:$AB$3, 0))=\"\", \"\",  INDEX('Full set Core Client Indicator'!$A$3:$AB$351, MATCH(Selection_Hide2!$A172, 'Full set Core Client Indicator'!$A$3:$A$351, 0), MATCH(Selection_Hide2!E$5, 'Full set Core Client Indicator'!$A$3:$AB$3, 0))), \"\")","v":""},{"$f":"IF(E172<>\"\", IF(INDEX('Full set Core Client Indicator'!$A$3:$AB$351, MATCH(Selection_Hide2!$A172, 'Full set Core Client Indicator'!$A$3:$A$351, 0), MATCH(Selection_Hide2!F$5, 'Full set Core Client Indicator'!$A$3:$AB$3, 0))=\"\", \"\",  INDEX('Full set Core Client Indicator'!$A$3:$AB$351, MATCH(Selection_Hide2!$A172, 'Full set Core Client Indicator'!$A$3:$A$351, 0), MATCH(Selection_Hide2!F$5, 'Full set Core Client Indicator'!$A$3:$AB$3, 0))), \"\")","v":""},{"$f":"IF(F172<>\"\", IF(INDEX('Full set Core Client Indicator'!$A$3:$AB$351, MATCH(Selection_Hide2!$A172, 'Full set Core Client Indicator'!$A$3:$A$351, 0), MATCH(Selection_Hide2!G$5, 'Full set Core Client Indicator'!$A$3:$AB$3, 0))=\"\", \"\",  INDEX('Full set Core Client Indicator'!$A$3:$AB$351, MATCH(Selection_Hide2!$A172, 'Full set Core Client Indicator'!$A$3:$A$351, 0), MATCH(Selection_Hide2!G$5, 'Full set Core Client Indicator'!$A$3:$AB$3, 0))), \"\")","v":""},{"$f":"IF(G172<>\"\", IF(INDEX('Full set Core Client Indicator'!$A$3:$AB$351, MATCH(Selection_Hide2!$A172, 'Full set Core Client Indicator'!$A$3:$A$351, 0), MATCH(Selection_Hide2!H$5, 'Full set Core Client Indicator'!$A$3:$AB$3, 0))=\"\", \"\",  INDEX('Full set Core Client Indicator'!$A$3:$AB$351, MATCH(Selection_Hide2!$A172, 'Full set Core Client Indicator'!$A$3:$A$351, 0), MATCH(Selection_Hide2!H$5, 'Full set Core Client Indicator'!$A$3:$AB$3, 0))), \"\")","v":""},{"$f":"IF(H172<>\"\", IF(INDEX('Full set Core Client Indicator'!$A$3:$AB$351, MATCH(Selection_Hide2!$A172, 'Full set Core Client Indicator'!$A$3:$A$351, 0), MATCH(Selection_Hide2!I$5, 'Full set Core Client Indicator'!$A$3:$AB$3, 0))=\"\", \"\",  INDEX('Full set Core Client Indicator'!$A$3:$AB$351, MATCH(Selection_Hide2!$A172, 'Full set Core Client Indicator'!$A$3:$A$351, 0), MATCH(Selection_Hide2!I$5, 'Full set Core Client Indicator'!$A$3:$AB$3, 0))), \"\")","v":""},{"$f":"IF(I172<>\"\", IF(INDEX('Full set Core Client Indicator'!$A$3:$AB$351, MATCH(Selection_Hide2!$A172, 'Full set Core Client Indicator'!$A$3:$A$351, 0), MATCH(Selection_Hide2!J$5, 'Full set Core Client Indicator'!$A$3:$AB$3, 0))=\"\", \"\",  INDEX('Full set Core Client Indicator'!$A$3:$AB$351, MATCH(Selection_Hide2!$A172, 'Full set Core Client Indicator'!$A$3:$A$351, 0), MATCH(Selection_Hide2!J$5, 'Full set Core Client Indicator'!$A$3:$AB$3, 0))), \"\")","v":""},{"$f":"IF(J172<>\"\", IF(INDEX('Full set Core Client Indicator'!$A$3:$AB$351, MATCH(Selection_Hide2!$A172, 'Full set Core Client Indicator'!$A$3:$A$351, 0), MATCH(Selection_Hide2!K$5, 'Full set Core Client Indicator'!$A$3:$AB$3, 0))=\"\", \"\",  INDEX('Full set Core Client Indicator'!$A$3:$AB$351, MATCH(Selection_Hide2!$A172, 'Full set Core Client Indicator'!$A$3:$A$351, 0), MATCH(Selection_Hide2!K$5, 'Full set Core Client Indicator'!$A$3:$AB$3, 0))), \"\")","v":""},{"$f":"IF(K172<>\"\", IF(INDEX('Full set Core Client Indicator'!$A$3:$AB$351, MATCH(Selection_Hide2!$A172, 'Full set Core Client Indicator'!$A$3:$A$351, 0), MATCH(Selection_Hide2!L$5, 'Full set Core Client Indicator'!$A$3:$AB$3, 0))=\"\", \"\",  INDEX('Full set Core Client Indicator'!$A$3:$AB$351, MATCH(Selection_Hide2!$A172, 'Full set Core Client Indicator'!$A$3:$A$351, 0), MATCH(Selection_Hide2!L$5, 'Full set Core Client Indicator'!$A$3:$AB$3, 0))), \"\")","v":""},{"$f":"IF(L172<>\"\", IF(INDEX('Full set Core Client Indicator'!$A$3:$AB$351, MATCH(Selection_Hide2!$A172, 'Full set Core Client Indicator'!$A$3:$A$351, 0), MATCH(Selection_Hide2!M$5, 'Full set Core Client Indicator'!$A$3:$AB$3, 0))=\"\", \"\",  INDEX('Full set Core Client Indicator'!$A$3:$AB$351, MATCH(Selection_Hide2!$A172, 'Full set Core Client Indicator'!$A$3:$A$351, 0), MATCH(Selection_Hide2!M$5, 'Full set Core Client Indicator'!$A$3:$AB$3, 0))), \"\")","v":""},{"$f":"IF(M172<>\"\", IF(INDEX('Full set Core Client Indicator'!$A$3:$AB$351, MATCH(Selection_Hide2!$A172, 'Full set Core Client Indicator'!$A$3:$A$351, 0), MATCH(Selection_Hide2!N$5, 'Full set Core Client Indicator'!$A$3:$AB$3, 0))=\"\", \"\",  INDEX('Full set Core Client Indicator'!$A$3:$AB$351, MATCH(Selection_Hide2!$A172, 'Full set Core Client Indicator'!$A$3:$A$351, 0), MATCH(Selection_Hide2!N$5, 'Full set Core Client Indicator'!$A$3:$AB$3, 0))), \"\")","v":""},{"$f":"IF(N172<>\"\", IF(INDEX('Full set Core Client Indicator'!$A$3:$AB$351, MATCH(Selection_Hide2!$A172, 'Full set Core Client Indicator'!$A$3:$A$351, 0), MATCH(Selection_Hide2!O$5, 'Full set Core Client Indicator'!$A$3:$AB$3, 0))=\"\", \"\",  INDEX('Full set Core Client Indicator'!$A$3:$AB$351, MATCH(Selection_Hide2!$A172, 'Full set Core Client Indicator'!$A$3:$A$351, 0), MATCH(Selection_Hide2!O$5, 'Full set Core Client Indicator'!$A$3:$AB$3, 0))), \"\")","v":""},{"$f":"IF(O172<>\"\", IF(INDEX('Full set Core Client Indicator'!$A$3:$AB$351, MATCH(Selection_Hide2!$A172, 'Full set Core Client Indicator'!$A$3:$A$351, 0), MATCH(Selection_Hide2!P$5, 'Full set Core Client Indicator'!$A$3:$AB$3, 0))=\"\", \"\",  INDEX('Full set Core Client Indicator'!$A$3:$AB$351, MATCH(Selection_Hide2!$A172, 'Full set Core Client Indicator'!$A$3:$A$351, 0), MATCH(Selection_Hide2!P$5, 'Full set Core Client Indicator'!$A$3:$AB$3, 0))), \"\")","v":""},{"$f":"IF(P172<>\"\", IF(INDEX('Full set Core Client Indicator'!$A$3:$AB$351, MATCH(Selection_Hide2!$A172, 'Full set Core Client Indicator'!$A$3:$A$351, 0), MATCH(Selection_Hide2!Q$5, 'Full set Core Client Indicator'!$A$3:$AB$3, 0))=\"\", \"\",  INDEX('Full set Core Client Indicator'!$A$3:$AB$351, MATCH(Selection_Hide2!$A172, 'Full set Core Client Indicator'!$A$3:$A$351, 0), MATCH(Selection_Hide2!Q$5, 'Full set Core Client Indicator'!$A$3:$AB$3, 0))), \"\")","v":""},{"$f":"IF(Q172<>\"\", IF(INDEX('Full set Core Client Indicator'!$A$3:$AB$351, MATCH(Selection_Hide2!$A172, 'Full set Core Client Indicator'!$A$3:$A$351, 0), MATCH(Selection_Hide2!R$5, 'Full set Core Client Indicator'!$A$3:$AB$3, 0))=\"\", \"\",  INDEX('Full set Core Client Indicator'!$A$3:$AB$351, MATCH(Selection_Hide2!$A172, 'Full set Core Client Indicator'!$A$3:$A$351, 0), MATCH(Selection_Hide2!R$5, 'Full set Core Client Indicator'!$A$3:$AB$3, 0))), \"\")","v":""},{"$f":"IF(R172<>\"\", IF(INDEX('Full set Core Client Indicator'!$A$3:$AB$351, MATCH(Selection_Hide2!$A172, 'Full set Core Client Indicator'!$A$3:$A$351, 0), MATCH(Selection_Hide2!S$5, 'Full set Core Client Indicator'!$A$3:$AB$3, 0))=\"\", \"\",  INDEX('Full set Core Client Indicator'!$A$3:$AB$351, MATCH(Selection_Hide2!$A172, 'Full set Core Client Indicator'!$A$3:$A$351, 0), MATCH(Selection_Hide2!S$5, 'Full set Core Client Indicator'!$A$3:$AB$3, 0))), \"\")","v":""},{"$f":"IF(S172<>\"\", IF(INDEX('Full set Core Client Indicator'!$A$3:$AB$351, MATCH(Selection_Hide2!$A172, 'Full set Core Client Indicator'!$A$3:$A$351, 0), MATCH(Selection_Hide2!T$5, 'Full set Core Client Indicator'!$A$3:$AB$3, 0))=\"\", \"\",  INDEX('Full set Core Client Indicator'!$A$3:$AB$351, MATCH(Selection_Hide2!$A172, 'Full set Core Client Indicator'!$A$3:$A$351, 0), MATCH(Selection_Hide2!T$5, 'Full set Core Client Indicator'!$A$3:$AB$3, 0))), \"\")","v":""},{"$f":"IF(T172<>\"\", IF(INDEX('Full set Core Client Indicator'!$A$3:$AB$351, MATCH(Selection_Hide2!$A172, 'Full set Core Client Indicator'!$A$3:$A$351, 0), MATCH(Selection_Hide2!U$5, 'Full set Core Client Indicator'!$A$3:$AB$3, 0))=\"\", \"\",  INDEX('Full set Core Client Indicator'!$A$3:$AB$351, MATCH(Selection_Hide2!$A172, 'Full set Core Client Indicator'!$A$3:$A$351, 0), MATCH(Selection_Hide2!U$5, 'Full set Core Client Indicator'!$A$3:$AB$3, 0))), \"\")","v":""},{"$f":"IF(U172<>\"\", IF(INDEX('Full set Core Client Indicator'!$A$3:$AB$351, MATCH(Selection_Hide2!$A172, 'Full set Core Client Indicator'!$A$3:$A$351, 0), MATCH(Selection_Hide2!V$5, 'Full set Core Client Indicator'!$A$3:$AB$3, 0))=\"\", \"\",  INDEX('Full set Core Client Indicator'!$A$3:$AB$351, MATCH(Selection_Hide2!$A172, 'Full set Core Client Indicator'!$A$3:$A$351, 0), MATCH(Selection_Hide2!V$5, 'Full set Core Client Indicator'!$A$3:$AB$3, 0))), \"\")","v":""},{"$f":"IF(V172<>\"\", IF(INDEX('Full set Core Client Indicator'!$A$3:$AB$351, MATCH(Selection_Hide2!$A172, 'Full set Core Client Indicator'!$A$3:$A$351, 0), MATCH(Selection_Hide2!W$5, 'Full set Core Client Indicator'!$A$3:$AB$3, 0))=\"\", \"\",  INDEX('Full set Core Client Indicator'!$A$3:$AB$351, MATCH(Selection_Hide2!$A172, 'Full set Core Client Indicator'!$A$3:$A$351, 0), MATCH(Selection_Hide2!W$5, 'Full set Core Client Indicator'!$A$3:$AB$3, 0))), \"\")","v":""},{"$f":"IF(W172<>\"\", IF(INDEX('Full set Core Client Indicator'!$A$3:$AB$351, MATCH(Selection_Hide2!$A172, 'Full set Core Client Indicator'!$A$3:$A$351, 0), MATCH(Selection_Hide2!X$5, 'Full set Core Client Indicator'!$A$3:$AB$3, 0))=\"\", \"\",  INDEX('Full set Core Client Indicator'!$A$3:$AB$351, MATCH(Selection_Hide2!$A172, 'Full set Core Client Indicator'!$A$3:$A$351, 0), MATCH(Selection_Hide2!X$5, 'Full set Core Client Indicator'!$A$3:$AB$3, 0))), \"\")","v":""},{"$f":"IF(X172<>\"\", IF(INDEX('Full set Core Client Indicator'!$A$3:$AB$351, MATCH(Selection_Hide2!$A172, 'Full set Core Client Indicator'!$A$3:$A$351, 0), MATCH(Selection_Hide2!Y$5, 'Full set Core Client Indicator'!$A$3:$AB$3, 0))=\"\", \"\",  INDEX('Full set Core Client Indicator'!$A$3:$AB$351, MATCH(Selection_Hide2!$A172, 'Full set Core Client Indicator'!$A$3:$A$351, 0), MATCH(Selection_Hide2!Y$5, 'Full set Core Client Indicator'!$A$3:$AB$3, 0))), \"\")","v":""},{"$f":"IF(Y172<>\"\", IF(INDEX('Full set Core Client Indicator'!$A$3:$AB$351, MATCH(Selection_Hide2!$A172, 'Full set Core Client Indicator'!$A$3:$A$351, 0), MATCH(Selection_Hide2!Z$5, 'Full set Core Client Indicator'!$A$3:$AB$3, 0))=\"\", \"\",  INDEX('Full set Core Client Indicator'!$A$3:$AB$351, MATCH(Selection_Hide2!$A172, 'Full set Core Client Indicator'!$A$3:$A$351, 0), MATCH(Selection_Hide2!Z$5, 'Full set Core Client Indicator'!$A$3:$AB$3, 0))), \"\")","v":""},{"$f":"IF(Z172<>\"\", IF(INDEX('Full set Core Client Indicator'!$A$3:$AB$351, MATCH(Selection_Hide2!$A172, 'Full set Core Client Indicator'!$A$3:$A$351, 0), MATCH(Selection_Hide2!AA$5, 'Full set Core Client Indicator'!$A$3:$AB$3, 0))=\"\", \"\",  INDEX('Full set Core Client Indicator'!$A$3:$AB$351, MATCH(Selection_Hide2!$A172, 'Full set Core Client Indicator'!$A$3:$A$351, 0), MATCH(Selection_Hide2!AA$5, 'Full set Core Client Indicator'!$A$3:$AB$3, 0))), \"\")","v":""},{"$f":"IF(AA172<>\"\", IF(INDEX('Full set Core Client Indicator'!$A$3:$AB$351, MATCH(Selection_Hide2!$A172, 'Full set Core Client Indicator'!$A$3:$A$351, 0), MATCH(Selection_Hide2!AB$5, 'Full set Core Client Indicator'!$A$3:$AB$3, 0))=\"\", \"\",  INDEX('Full set Core Client Indicator'!$A$3:$AB$351, MATCH(Selection_Hide2!$A172, 'Full set Core Client Indicator'!$A$3:$A$351, 0), MATCH(Selection_Hide2!AB$5, 'Full set Core Client Indicator'!$A$3:$AB$3, 0))), \"\")","v":""}]
[{"$f":"IF(AND(Selection_Hide1!C171<>0, Selection_Hide1!C171<>\"Grand Total\"), Selection_Hide1!C171, \"\")","v":""},{"$f":"IF(A173<>\"\", IF(INDEX('Full set Core Client Indicator'!$A$3:$AB$351, MATCH(Selection_Hide2!$A173, 'Full set Core Client Indicator'!$A$3:$A$351, 0), MATCH(Selection_Hide2!B$5, 'Full set Core Client Indicator'!$A$3:$AB$3, 0))=\"\", \"\",  INDEX('Full set Core Client Indicator'!$A$3:$AB$351, MATCH(Selection_Hide2!$A173, 'Full set Core Client Indicator'!$A$3:$A$351, 0), MATCH(Selection_Hide2!B$5, 'Full set Core Client Indicator'!$A$3:$AB$3, 0))), \"\")","v":""},{"$f":"IF(B173<>\"\", IF(INDEX('Full set Core Client Indicator'!$A$3:$AB$351, MATCH(Selection_Hide2!$A173, 'Full set Core Client Indicator'!$A$3:$A$351, 0), MATCH(Selection_Hide2!C$5, 'Full set Core Client Indicator'!$A$3:$AB$3, 0))=\"\", \"\",  INDEX('Full set Core Client Indicator'!$A$3:$AB$351, MATCH(Selection_Hide2!$A173, 'Full set Core Client Indicator'!$A$3:$A$351, 0), MATCH(Selection_Hide2!C$5, 'Full set Core Client Indicator'!$A$3:$AB$3, 0))), \"\")","v":""},{"$f":"IF(C173<>\"\", IF(INDEX('Full set Core Client Indicator'!$A$3:$AB$351, MATCH(Selection_Hide2!$A173, 'Full set Core Client Indicator'!$A$3:$A$351, 0), MATCH(Selection_Hide2!D$5, 'Full set Core Client Indicator'!$A$3:$AB$3, 0))=\"\", \"\",  INDEX('Full set Core Client Indicator'!$A$3:$AB$351, MATCH(Selection_Hide2!$A173, 'Full set Core Client Indicator'!$A$3:$A$351, 0), MATCH(Selection_Hide2!D$5, 'Full set Core Client Indicator'!$A$3:$AB$3, 0))), \"\")","v":""},{"$f":"IF(D173<>\"\", IF(INDEX('Full set Core Client Indicator'!$A$3:$AB$351, MATCH(Selection_Hide2!$A173, 'Full set Core Client Indicator'!$A$3:$A$351, 0), MATCH(Selection_Hide2!E$5, 'Full set Core Client Indicator'!$A$3:$AB$3, 0))=\"\", \"\",  INDEX('Full set Core Client Indicator'!$A$3:$AB$351, MATCH(Selection_Hide2!$A173, 'Full set Core Client Indicator'!$A$3:$A$351, 0), MATCH(Selection_Hide2!E$5, 'Full set Core Client Indicator'!$A$3:$AB$3, 0))), \"\")","v":""},{"$f":"IF(E173<>\"\", IF(INDEX('Full set Core Client Indicator'!$A$3:$AB$351, MATCH(Selection_Hide2!$A173, 'Full set Core Client Indicator'!$A$3:$A$351, 0), MATCH(Selection_Hide2!F$5, 'Full set Core Client Indicator'!$A$3:$AB$3, 0))=\"\", \"\",  INDEX('Full set Core Client Indicator'!$A$3:$AB$351, MATCH(Selection_Hide2!$A173, 'Full set Core Client Indicator'!$A$3:$A$351, 0), MATCH(Selection_Hide2!F$5, 'Full set Core Client Indicator'!$A$3:$AB$3, 0))), \"\")","v":""},{"$f":"IF(F173<>\"\", IF(INDEX('Full set Core Client Indicator'!$A$3:$AB$351, MATCH(Selection_Hide2!$A173, 'Full set Core Client Indicator'!$A$3:$A$351, 0), MATCH(Selection_Hide2!G$5, 'Full set Core Client Indicator'!$A$3:$AB$3, 0))=\"\", \"\",  INDEX('Full set Core Client Indicator'!$A$3:$AB$351, MATCH(Selection_Hide2!$A173, 'Full set Core Client Indicator'!$A$3:$A$351, 0), MATCH(Selection_Hide2!G$5, 'Full set Core Client Indicator'!$A$3:$AB$3, 0))), \"\")","v":""},{"$f":"IF(G173<>\"\", IF(INDEX('Full set Core Client Indicator'!$A$3:$AB$351, MATCH(Selection_Hide2!$A173, 'Full set Core Client Indicator'!$A$3:$A$351, 0), MATCH(Selection_Hide2!H$5, 'Full set Core Client Indicator'!$A$3:$AB$3, 0))=\"\", \"\",  INDEX('Full set Core Client Indicator'!$A$3:$AB$351, MATCH(Selection_Hide2!$A173, 'Full set Core Client Indicator'!$A$3:$A$351, 0), MATCH(Selection_Hide2!H$5, 'Full set Core Client Indicator'!$A$3:$AB$3, 0))), \"\")","v":""},{"$f":"IF(H173<>\"\", IF(INDEX('Full set Core Client Indicator'!$A$3:$AB$351, MATCH(Selection_Hide2!$A173, 'Full set Core Client Indicator'!$A$3:$A$351, 0), MATCH(Selection_Hide2!I$5, 'Full set Core Client Indicator'!$A$3:$AB$3, 0))=\"\", \"\",  INDEX('Full set Core Client Indicator'!$A$3:$AB$351, MATCH(Selection_Hide2!$A173, 'Full set Core Client Indicator'!$A$3:$A$351, 0), MATCH(Selection_Hide2!I$5, 'Full set Core Client Indicator'!$A$3:$AB$3, 0))), \"\")","v":""},{"$f":"IF(I173<>\"\", IF(INDEX('Full set Core Client Indicator'!$A$3:$AB$351, MATCH(Selection_Hide2!$A173, 'Full set Core Client Indicator'!$A$3:$A$351, 0), MATCH(Selection_Hide2!J$5, 'Full set Core Client Indicator'!$A$3:$AB$3, 0))=\"\", \"\",  INDEX('Full set Core Client Indicator'!$A$3:$AB$351, MATCH(Selection_Hide2!$A173, 'Full set Core Client Indicator'!$A$3:$A$351, 0), MATCH(Selection_Hide2!J$5, 'Full set Core Client Indicator'!$A$3:$AB$3, 0))), \"\")","v":""},{"$f":"IF(J173<>\"\", IF(INDEX('Full set Core Client Indicator'!$A$3:$AB$351, MATCH(Selection_Hide2!$A173, 'Full set Core Client Indicator'!$A$3:$A$351, 0), MATCH(Selection_Hide2!K$5, 'Full set Core Client Indicator'!$A$3:$AB$3, 0))=\"\", \"\",  INDEX('Full set Core Client Indicator'!$A$3:$AB$351, MATCH(Selection_Hide2!$A173, 'Full set Core Client Indicator'!$A$3:$A$351, 0), MATCH(Selection_Hide2!K$5, 'Full set Core Client Indicator'!$A$3:$AB$3, 0))), \"\")","v":""},{"$f":"IF(K173<>\"\", IF(INDEX('Full set Core Client Indicator'!$A$3:$AB$351, MATCH(Selection_Hide2!$A173, 'Full set Core Client Indicator'!$A$3:$A$351, 0), MATCH(Selection_Hide2!L$5, 'Full set Core Client Indicator'!$A$3:$AB$3, 0))=\"\", \"\",  INDEX('Full set Core Client Indicator'!$A$3:$AB$351, MATCH(Selection_Hide2!$A173, 'Full set Core Client Indicator'!$A$3:$A$351, 0), MATCH(Selection_Hide2!L$5, 'Full set Core Client Indicator'!$A$3:$AB$3, 0))), \"\")","v":""},{"$f":"IF(L173<>\"\", IF(INDEX('Full set Core Client Indicator'!$A$3:$AB$351, MATCH(Selection_Hide2!$A173, 'Full set Core Client Indicator'!$A$3:$A$351, 0), MATCH(Selection_Hide2!M$5, 'Full set Core Client Indicator'!$A$3:$AB$3, 0))=\"\", \"\",  INDEX('Full set Core Client Indicator'!$A$3:$AB$351, MATCH(Selection_Hide2!$A173, 'Full set Core Client Indicator'!$A$3:$A$351, 0), MATCH(Selection_Hide2!M$5, 'Full set Core Client Indicator'!$A$3:$AB$3, 0))), \"\")","v":""},{"$f":"IF(M173<>\"\", IF(INDEX('Full set Core Client Indicator'!$A$3:$AB$351, MATCH(Selection_Hide2!$A173, 'Full set Core Client Indicator'!$A$3:$A$351, 0), MATCH(Selection_Hide2!N$5, 'Full set Core Client Indicator'!$A$3:$AB$3, 0))=\"\", \"\",  INDEX('Full set Core Client Indicator'!$A$3:$AB$351, MATCH(Selection_Hide2!$A173, 'Full set Core Client Indicator'!$A$3:$A$351, 0), MATCH(Selection_Hide2!N$5, 'Full set Core Client Indicator'!$A$3:$AB$3, 0))), \"\")","v":""},{"$f":"IF(N173<>\"\", IF(INDEX('Full set Core Client Indicator'!$A$3:$AB$351, MATCH(Selection_Hide2!$A173, 'Full set Core Client Indicator'!$A$3:$A$351, 0), MATCH(Selection_Hide2!O$5, 'Full set Core Client Indicator'!$A$3:$AB$3, 0))=\"\", \"\",  INDEX('Full set Core Client Indicator'!$A$3:$AB$351, MATCH(Selection_Hide2!$A173, 'Full set Core Client Indicator'!$A$3:$A$351, 0), MATCH(Selection_Hide2!O$5, 'Full set Core Client Indicator'!$A$3:$AB$3, 0))), \"\")","v":""},{"$f":"IF(O173<>\"\", IF(INDEX('Full set Core Client Indicator'!$A$3:$AB$351, MATCH(Selection_Hide2!$A173, 'Full set Core Client Indicator'!$A$3:$A$351, 0), MATCH(Selection_Hide2!P$5, 'Full set Core Client Indicator'!$A$3:$AB$3, 0))=\"\", \"\",  INDEX('Full set Core Client Indicator'!$A$3:$AB$351, MATCH(Selection_Hide2!$A173, 'Full set Core Client Indicator'!$A$3:$A$351, 0), MATCH(Selection_Hide2!P$5, 'Full set Core Client Indicator'!$A$3:$AB$3, 0))), \"\")","v":""},{"$f":"IF(P173<>\"\", IF(INDEX('Full set Core Client Indicator'!$A$3:$AB$351, MATCH(Selection_Hide2!$A173, 'Full set Core Client Indicator'!$A$3:$A$351, 0), MATCH(Selection_Hide2!Q$5, 'Full set Core Client Indicator'!$A$3:$AB$3, 0))=\"\", \"\",  INDEX('Full set Core Client Indicator'!$A$3:$AB$351, MATCH(Selection_Hide2!$A173, 'Full set Core Client Indicator'!$A$3:$A$351, 0), MATCH(Selection_Hide2!Q$5, 'Full set Core Client Indicator'!$A$3:$AB$3, 0))), \"\")","v":""},{"$f":"IF(Q173<>\"\", IF(INDEX('Full set Core Client Indicator'!$A$3:$AB$351, MATCH(Selection_Hide2!$A173, 'Full set Core Client Indicator'!$A$3:$A$351, 0), MATCH(Selection_Hide2!R$5, 'Full set Core Client Indicator'!$A$3:$AB$3, 0))=\"\", \"\",  INDEX('Full set Core Client Indicator'!$A$3:$AB$351, MATCH(Selection_Hide2!$A173, 'Full set Core Client Indicator'!$A$3:$A$351, 0), MATCH(Selection_Hide2!R$5, 'Full set Core Client Indicator'!$A$3:$AB$3, 0))), \"\")","v":""},{"$f":"IF(R173<>\"\", IF(INDEX('Full set Core Client Indicator'!$A$3:$AB$351, MATCH(Selection_Hide2!$A173, 'Full set Core Client Indicator'!$A$3:$A$351, 0), MATCH(Selection_Hide2!S$5, 'Full set Core Client Indicator'!$A$3:$AB$3, 0))=\"\", \"\",  INDEX('Full set Core Client Indicator'!$A$3:$AB$351, MATCH(Selection_Hide2!$A173, 'Full set Core Client Indicator'!$A$3:$A$351, 0), MATCH(Selection_Hide2!S$5, 'Full set Core Client Indicator'!$A$3:$AB$3, 0))), \"\")","v":""},{"$f":"IF(S173<>\"\", IF(INDEX('Full set Core Client Indicator'!$A$3:$AB$351, MATCH(Selection_Hide2!$A173, 'Full set Core Client Indicator'!$A$3:$A$351, 0), MATCH(Selection_Hide2!T$5, 'Full set Core Client Indicator'!$A$3:$AB$3, 0))=\"\", \"\",  INDEX('Full set Core Client Indicator'!$A$3:$AB$351, MATCH(Selection_Hide2!$A173, 'Full set Core Client Indicator'!$A$3:$A$351, 0), MATCH(Selection_Hide2!T$5, 'Full set Core Client Indicator'!$A$3:$AB$3, 0))), \"\")","v":""},{"$f":"IF(T173<>\"\", IF(INDEX('Full set Core Client Indicator'!$A$3:$AB$351, MATCH(Selection_Hide2!$A173, 'Full set Core Client Indicator'!$A$3:$A$351, 0), MATCH(Selection_Hide2!U$5, 'Full set Core Client Indicator'!$A$3:$AB$3, 0))=\"\", \"\",  INDEX('Full set Core Client Indicator'!$A$3:$AB$351, MATCH(Selection_Hide2!$A173, 'Full set Core Client Indicator'!$A$3:$A$351, 0), MATCH(Selection_Hide2!U$5, 'Full set Core Client Indicator'!$A$3:$AB$3, 0))), \"\")","v":""},{"$f":"IF(U173<>\"\", IF(INDEX('Full set Core Client Indicator'!$A$3:$AB$351, MATCH(Selection_Hide2!$A173, 'Full set Core Client Indicator'!$A$3:$A$351, 0), MATCH(Selection_Hide2!V$5, 'Full set Core Client Indicator'!$A$3:$AB$3, 0))=\"\", \"\",  INDEX('Full set Core Client Indicator'!$A$3:$AB$351, MATCH(Selection_Hide2!$A173, 'Full set Core Client Indicator'!$A$3:$A$351, 0), MATCH(Selection_Hide2!V$5, 'Full set Core Client Indicator'!$A$3:$AB$3, 0))), \"\")","v":""},{"$f":"IF(V173<>\"\", IF(INDEX('Full set Core Client Indicator'!$A$3:$AB$351, MATCH(Selection_Hide2!$A173, 'Full set Core Client Indicator'!$A$3:$A$351, 0), MATCH(Selection_Hide2!W$5, 'Full set Core Client Indicator'!$A$3:$AB$3, 0))=\"\", \"\",  INDEX('Full set Core Client Indicator'!$A$3:$AB$351, MATCH(Selection_Hide2!$A173, 'Full set Core Client Indicator'!$A$3:$A$351, 0), MATCH(Selection_Hide2!W$5, 'Full set Core Client Indicator'!$A$3:$AB$3, 0))), \"\")","v":""},{"$f":"IF(W173<>\"\", IF(INDEX('Full set Core Client Indicator'!$A$3:$AB$351, MATCH(Selection_Hide2!$A173, 'Full set Core Client Indicator'!$A$3:$A$351, 0), MATCH(Selection_Hide2!X$5, 'Full set Core Client Indicator'!$A$3:$AB$3, 0))=\"\", \"\",  INDEX('Full set Core Client Indicator'!$A$3:$AB$351, MATCH(Selection_Hide2!$A173, 'Full set Core Client Indicator'!$A$3:$A$351, 0), MATCH(Selection_Hide2!X$5, 'Full set Core Client Indicator'!$A$3:$AB$3, 0))), \"\")","v":""},{"$f":"IF(X173<>\"\", IF(INDEX('Full set Core Client Indicator'!$A$3:$AB$351, MATCH(Selection_Hide2!$A173, 'Full set Core Client Indicator'!$A$3:$A$351, 0), MATCH(Selection_Hide2!Y$5, 'Full set Core Client Indicator'!$A$3:$AB$3, 0))=\"\", \"\",  INDEX('Full set Core Client Indicator'!$A$3:$AB$351, MATCH(Selection_Hide2!$A173, 'Full set Core Client Indicator'!$A$3:$A$351, 0), MATCH(Selection_Hide2!Y$5, 'Full set Core Client Indicator'!$A$3:$AB$3, 0))), \"\")","v":""},{"$f":"IF(Y173<>\"\", IF(INDEX('Full set Core Client Indicator'!$A$3:$AB$351, MATCH(Selection_Hide2!$A173, 'Full set Core Client Indicator'!$A$3:$A$351, 0), MATCH(Selection_Hide2!Z$5, 'Full set Core Client Indicator'!$A$3:$AB$3, 0))=\"\", \"\",  INDEX('Full set Core Client Indicator'!$A$3:$AB$351, MATCH(Selection_Hide2!$A173, 'Full set Core Client Indicator'!$A$3:$A$351, 0), MATCH(Selection_Hide2!Z$5, 'Full set Core Client Indicator'!$A$3:$AB$3, 0))), \"\")","v":""},{"$f":"IF(Z173<>\"\", IF(INDEX('Full set Core Client Indicator'!$A$3:$AB$351, MATCH(Selection_Hide2!$A173, 'Full set Core Client Indicator'!$A$3:$A$351, 0), MATCH(Selection_Hide2!AA$5, 'Full set Core Client Indicator'!$A$3:$AB$3, 0))=\"\", \"\",  INDEX('Full set Core Client Indicator'!$A$3:$AB$351, MATCH(Selection_Hide2!$A173, 'Full set Core Client Indicator'!$A$3:$A$351, 0), MATCH(Selection_Hide2!AA$5, 'Full set Core Client Indicator'!$A$3:$AB$3, 0))), \"\")","v":""},{"$f":"IF(AA173<>\"\", IF(INDEX('Full set Core Client Indicator'!$A$3:$AB$351, MATCH(Selection_Hide2!$A173, 'Full set Core Client Indicator'!$A$3:$A$351, 0), MATCH(Selection_Hide2!AB$5, 'Full set Core Client Indicator'!$A$3:$AB$3, 0))=\"\", \"\",  INDEX('Full set Core Client Indicator'!$A$3:$AB$351, MATCH(Selection_Hide2!$A173, 'Full set Core Client Indicator'!$A$3:$A$351, 0), MATCH(Selection_Hide2!AB$5, 'Full set Core Client Indicator'!$A$3:$AB$3, 0))), \"\")","v":""}]
[{"$f":"IF(AND(Selection_Hide1!C172<>0, Selection_Hide1!C172<>\"Grand Total\"), Selection_Hide1!C172, \"\")","v":""},{"$f":"IF(A174<>\"\", IF(INDEX('Full set Core Client Indicator'!$A$3:$AB$351, MATCH(Selection_Hide2!$A174, 'Full set Core Client Indicator'!$A$3:$A$351, 0), MATCH(Selection_Hide2!B$5, 'Full set Core Client Indicator'!$A$3:$AB$3, 0))=\"\", \"\",  INDEX('Full set Core Client Indicator'!$A$3:$AB$351, MATCH(Selection_Hide2!$A174, 'Full set Core Client Indicator'!$A$3:$A$351, 0), MATCH(Selection_Hide2!B$5, 'Full set Core Client Indicator'!$A$3:$AB$3, 0))), \"\")","v":""},{"$f":"IF(B174<>\"\", IF(INDEX('Full set Core Client Indicator'!$A$3:$AB$351, MATCH(Selection_Hide2!$A174, 'Full set Core Client Indicator'!$A$3:$A$351, 0), MATCH(Selection_Hide2!C$5, 'Full set Core Client Indicator'!$A$3:$AB$3, 0))=\"\", \"\",  INDEX('Full set Core Client Indicator'!$A$3:$AB$351, MATCH(Selection_Hide2!$A174, 'Full set Core Client Indicator'!$A$3:$A$351, 0), MATCH(Selection_Hide2!C$5, 'Full set Core Client Indicator'!$A$3:$AB$3, 0))), \"\")","v":""},{"$f":"IF(C174<>\"\", IF(INDEX('Full set Core Client Indicator'!$A$3:$AB$351, MATCH(Selection_Hide2!$A174, 'Full set Core Client Indicator'!$A$3:$A$351, 0), MATCH(Selection_Hide2!D$5, 'Full set Core Client Indicator'!$A$3:$AB$3, 0))=\"\", \"\",  INDEX('Full set Core Client Indicator'!$A$3:$AB$351, MATCH(Selection_Hide2!$A174, 'Full set Core Client Indicator'!$A$3:$A$351, 0), MATCH(Selection_Hide2!D$5, 'Full set Core Client Indicator'!$A$3:$AB$3, 0))), \"\")","v":""},{"$f":"IF(D174<>\"\", IF(INDEX('Full set Core Client Indicator'!$A$3:$AB$351, MATCH(Selection_Hide2!$A174, 'Full set Core Client Indicator'!$A$3:$A$351, 0), MATCH(Selection_Hide2!E$5, 'Full set Core Client Indicator'!$A$3:$AB$3, 0))=\"\", \"\",  INDEX('Full set Core Client Indicator'!$A$3:$AB$351, MATCH(Selection_Hide2!$A174, 'Full set Core Client Indicator'!$A$3:$A$351, 0), MATCH(Selection_Hide2!E$5, 'Full set Core Client Indicator'!$A$3:$AB$3, 0))), \"\")","v":""},{"$f":"IF(E174<>\"\", IF(INDEX('Full set Core Client Indicator'!$A$3:$AB$351, MATCH(Selection_Hide2!$A174, 'Full set Core Client Indicator'!$A$3:$A$351, 0), MATCH(Selection_Hide2!F$5, 'Full set Core Client Indicator'!$A$3:$AB$3, 0))=\"\", \"\",  INDEX('Full set Core Client Indicator'!$A$3:$AB$351, MATCH(Selection_Hide2!$A174, 'Full set Core Client Indicator'!$A$3:$A$351, 0), MATCH(Selection_Hide2!F$5, 'Full set Core Client Indicator'!$A$3:$AB$3, 0))), \"\")","v":""},{"$f":"IF(F174<>\"\", IF(INDEX('Full set Core Client Indicator'!$A$3:$AB$351, MATCH(Selection_Hide2!$A174, 'Full set Core Client Indicator'!$A$3:$A$351, 0), MATCH(Selection_Hide2!G$5, 'Full set Core Client Indicator'!$A$3:$AB$3, 0))=\"\", \"\",  INDEX('Full set Core Client Indicator'!$A$3:$AB$351, MATCH(Selection_Hide2!$A174, 'Full set Core Client Indicator'!$A$3:$A$351, 0), MATCH(Selection_Hide2!G$5, 'Full set Core Client Indicator'!$A$3:$AB$3, 0))), \"\")","v":""},{"$f":"IF(G174<>\"\", IF(INDEX('Full set Core Client Indicator'!$A$3:$AB$351, MATCH(Selection_Hide2!$A174, 'Full set Core Client Indicator'!$A$3:$A$351, 0), MATCH(Selection_Hide2!H$5, 'Full set Core Client Indicator'!$A$3:$AB$3, 0))=\"\", \"\",  INDEX('Full set Core Client Indicator'!$A$3:$AB$351, MATCH(Selection_Hide2!$A174, 'Full set Core Client Indicator'!$A$3:$A$351, 0), MATCH(Selection_Hide2!H$5, 'Full set Core Client Indicator'!$A$3:$AB$3, 0))), \"\")","v":""},{"$f":"IF(H174<>\"\", IF(INDEX('Full set Core Client Indicator'!$A$3:$AB$351, MATCH(Selection_Hide2!$A174, 'Full set Core Client Indicator'!$A$3:$A$351, 0), MATCH(Selection_Hide2!I$5, 'Full set Core Client Indicator'!$A$3:$AB$3, 0))=\"\", \"\",  INDEX('Full set Core Client Indicator'!$A$3:$AB$351, MATCH(Selection_Hide2!$A174, 'Full set Core Client Indicator'!$A$3:$A$351, 0), MATCH(Selection_Hide2!I$5, 'Full set Core Client Indicator'!$A$3:$AB$3, 0))), \"\")","v":""},{"$f":"IF(I174<>\"\", IF(INDEX('Full set Core Client Indicator'!$A$3:$AB$351, MATCH(Selection_Hide2!$A174, 'Full set Core Client Indicator'!$A$3:$A$351, 0), MATCH(Selection_Hide2!J$5, 'Full set Core Client Indicator'!$A$3:$AB$3, 0))=\"\", \"\",  INDEX('Full set Core Client Indicator'!$A$3:$AB$351, MATCH(Selection_Hide2!$A174, 'Full set Core Client Indicator'!$A$3:$A$351, 0), MATCH(Selection_Hide2!J$5, 'Full set Core Client Indicator'!$A$3:$AB$3, 0))), \"\")","v":""},{"$f":"IF(J174<>\"\", IF(INDEX('Full set Core Client Indicator'!$A$3:$AB$351, MATCH(Selection_Hide2!$A174, 'Full set Core Client Indicator'!$A$3:$A$351, 0), MATCH(Selection_Hide2!K$5, 'Full set Core Client Indicator'!$A$3:$AB$3, 0))=\"\", \"\",  INDEX('Full set Core Client Indicator'!$A$3:$AB$351, MATCH(Selection_Hide2!$A174, 'Full set Core Client Indicator'!$A$3:$A$351, 0), MATCH(Selection_Hide2!K$5, 'Full set Core Client Indicator'!$A$3:$AB$3, 0))), \"\")","v":""},{"$f":"IF(K174<>\"\", IF(INDEX('Full set Core Client Indicator'!$A$3:$AB$351, MATCH(Selection_Hide2!$A174, 'Full set Core Client Indicator'!$A$3:$A$351, 0), MATCH(Selection_Hide2!L$5, 'Full set Core Client Indicator'!$A$3:$AB$3, 0))=\"\", \"\",  INDEX('Full set Core Client Indicator'!$A$3:$AB$351, MATCH(Selection_Hide2!$A174, 'Full set Core Client Indicator'!$A$3:$A$351, 0), MATCH(Selection_Hide2!L$5, 'Full set Core Client Indicator'!$A$3:$AB$3, 0))), \"\")","v":""},{"$f":"IF(L174<>\"\", IF(INDEX('Full set Core Client Indicator'!$A$3:$AB$351, MATCH(Selection_Hide2!$A174, 'Full set Core Client Indicator'!$A$3:$A$351, 0), MATCH(Selection_Hide2!M$5, 'Full set Core Client Indicator'!$A$3:$AB$3, 0))=\"\", \"\",  INDEX('Full set Core Client Indicator'!$A$3:$AB$351, MATCH(Selection_Hide2!$A174, 'Full set Core Client Indicator'!$A$3:$A$351, 0), MATCH(Selection_Hide2!M$5, 'Full set Core Client Indicator'!$A$3:$AB$3, 0))), \"\")","v":""},{"$f":"IF(M174<>\"\", IF(INDEX('Full set Core Client Indicator'!$A$3:$AB$351, MATCH(Selection_Hide2!$A174, 'Full set Core Client Indicator'!$A$3:$A$351, 0), MATCH(Selection_Hide2!N$5, 'Full set Core Client Indicator'!$A$3:$AB$3, 0))=\"\", \"\",  INDEX('Full set Core Client Indicator'!$A$3:$AB$351, MATCH(Selection_Hide2!$A174, 'Full set Core Client Indicator'!$A$3:$A$351, 0), MATCH(Selection_Hide2!N$5, 'Full set Core Client Indicator'!$A$3:$AB$3, 0))), \"\")","v":""},{"$f":"IF(N174<>\"\", IF(INDEX('Full set Core Client Indicator'!$A$3:$AB$351, MATCH(Selection_Hide2!$A174, 'Full set Core Client Indicator'!$A$3:$A$351, 0), MATCH(Selection_Hide2!O$5, 'Full set Core Client Indicator'!$A$3:$AB$3, 0))=\"\", \"\",  INDEX('Full set Core Client Indicator'!$A$3:$AB$351, MATCH(Selection_Hide2!$A174, 'Full set Core Client Indicator'!$A$3:$A$351, 0), MATCH(Selection_Hide2!O$5, 'Full set Core Client Indicator'!$A$3:$AB$3, 0))), \"\")","v":""},{"$f":"IF(O174<>\"\", IF(INDEX('Full set Core Client Indicator'!$A$3:$AB$351, MATCH(Selection_Hide2!$A174, 'Full set Core Client Indicator'!$A$3:$A$351, 0), MATCH(Selection_Hide2!P$5, 'Full set Core Client Indicator'!$A$3:$AB$3, 0))=\"\", \"\",  INDEX('Full set Core Client Indicator'!$A$3:$AB$351, MATCH(Selection_Hide2!$A174, 'Full set Core Client Indicator'!$A$3:$A$351, 0), MATCH(Selection_Hide2!P$5, 'Full set Core Client Indicator'!$A$3:$AB$3, 0))), \"\")","v":""},{"$f":"IF(P174<>\"\", IF(INDEX('Full set Core Client Indicator'!$A$3:$AB$351, MATCH(Selection_Hide2!$A174, 'Full set Core Client Indicator'!$A$3:$A$351, 0), MATCH(Selection_Hide2!Q$5, 'Full set Core Client Indicator'!$A$3:$AB$3, 0))=\"\", \"\",  INDEX('Full set Core Client Indicator'!$A$3:$AB$351, MATCH(Selection_Hide2!$A174, 'Full set Core Client Indicator'!$A$3:$A$351, 0), MATCH(Selection_Hide2!Q$5, 'Full set Core Client Indicator'!$A$3:$AB$3, 0))), \"\")","v":""},{"$f":"IF(Q174<>\"\", IF(INDEX('Full set Core Client Indicator'!$A$3:$AB$351, MATCH(Selection_Hide2!$A174, 'Full set Core Client Indicator'!$A$3:$A$351, 0), MATCH(Selection_Hide2!R$5, 'Full set Core Client Indicator'!$A$3:$AB$3, 0))=\"\", \"\",  INDEX('Full set Core Client Indicator'!$A$3:$AB$351, MATCH(Selection_Hide2!$A174, 'Full set Core Client Indicator'!$A$3:$A$351, 0), MATCH(Selection_Hide2!R$5, 'Full set Core Client Indicator'!$A$3:$AB$3, 0))), \"\")","v":""},{"$f":"IF(R174<>\"\", IF(INDEX('Full set Core Client Indicator'!$A$3:$AB$351, MATCH(Selection_Hide2!$A174, 'Full set Core Client Indicator'!$A$3:$A$351, 0), MATCH(Selection_Hide2!S$5, 'Full set Core Client Indicator'!$A$3:$AB$3, 0))=\"\", \"\",  INDEX('Full set Core Client Indicator'!$A$3:$AB$351, MATCH(Selection_Hide2!$A174, 'Full set Core Client Indicator'!$A$3:$A$351, 0), MATCH(Selection_Hide2!S$5, 'Full set Core Client Indicator'!$A$3:$AB$3, 0))), \"\")","v":""},{"$f":"IF(S174<>\"\", IF(INDEX('Full set Core Client Indicator'!$A$3:$AB$351, MATCH(Selection_Hide2!$A174, 'Full set Core Client Indicator'!$A$3:$A$351, 0), MATCH(Selection_Hide2!T$5, 'Full set Core Client Indicator'!$A$3:$AB$3, 0))=\"\", \"\",  INDEX('Full set Core Client Indicator'!$A$3:$AB$351, MATCH(Selection_Hide2!$A174, 'Full set Core Client Indicator'!$A$3:$A$351, 0), MATCH(Selection_Hide2!T$5, 'Full set Core Client Indicator'!$A$3:$AB$3, 0))), \"\")","v":""},{"$f":"IF(T174<>\"\", IF(INDEX('Full set Core Client Indicator'!$A$3:$AB$351, MATCH(Selection_Hide2!$A174, 'Full set Core Client Indicator'!$A$3:$A$351, 0), MATCH(Selection_Hide2!U$5, 'Full set Core Client Indicator'!$A$3:$AB$3, 0))=\"\", \"\",  INDEX('Full set Core Client Indicator'!$A$3:$AB$351, MATCH(Selection_Hide2!$A174, 'Full set Core Client Indicator'!$A$3:$A$351, 0), MATCH(Selection_Hide2!U$5, 'Full set Core Client Indicator'!$A$3:$AB$3, 0))), \"\")","v":""},{"$f":"IF(U174<>\"\", IF(INDEX('Full set Core Client Indicator'!$A$3:$AB$351, MATCH(Selection_Hide2!$A174, 'Full set Core Client Indicator'!$A$3:$A$351, 0), MATCH(Selection_Hide2!V$5, 'Full set Core Client Indicator'!$A$3:$AB$3, 0))=\"\", \"\",  INDEX('Full set Core Client Indicator'!$A$3:$AB$351, MATCH(Selection_Hide2!$A174, 'Full set Core Client Indicator'!$A$3:$A$351, 0), MATCH(Selection_Hide2!V$5, 'Full set Core Client Indicator'!$A$3:$AB$3, 0))), \"\")","v":""},{"$f":"IF(V174<>\"\", IF(INDEX('Full set Core Client Indicator'!$A$3:$AB$351, MATCH(Selection_Hide2!$A174, 'Full set Core Client Indicator'!$A$3:$A$351, 0), MATCH(Selection_Hide2!W$5, 'Full set Core Client Indicator'!$A$3:$AB$3, 0))=\"\", \"\",  INDEX('Full set Core Client Indicator'!$A$3:$AB$351, MATCH(Selection_Hide2!$A174, 'Full set Core Client Indicator'!$A$3:$A$351, 0), MATCH(Selection_Hide2!W$5, 'Full set Core Client Indicator'!$A$3:$AB$3, 0))), \"\")","v":""},{"$f":"IF(W174<>\"\", IF(INDEX('Full set Core Client Indicator'!$A$3:$AB$351, MATCH(Selection_Hide2!$A174, 'Full set Core Client Indicator'!$A$3:$A$351, 0), MATCH(Selection_Hide2!X$5, 'Full set Core Client Indicator'!$A$3:$AB$3, 0))=\"\", \"\",  INDEX('Full set Core Client Indicator'!$A$3:$AB$351, MATCH(Selection_Hide2!$A174, 'Full set Core Client Indicator'!$A$3:$A$351, 0), MATCH(Selection_Hide2!X$5, 'Full set Core Client Indicator'!$A$3:$AB$3, 0))), \"\")","v":""},{"$f":"IF(X174<>\"\", IF(INDEX('Full set Core Client Indicator'!$A$3:$AB$351, MATCH(Selection_Hide2!$A174, 'Full set Core Client Indicator'!$A$3:$A$351, 0), MATCH(Selection_Hide2!Y$5, 'Full set Core Client Indicator'!$A$3:$AB$3, 0))=\"\", \"\",  INDEX('Full set Core Client Indicator'!$A$3:$AB$351, MATCH(Selection_Hide2!$A174, 'Full set Core Client Indicator'!$A$3:$A$351, 0), MATCH(Selection_Hide2!Y$5, 'Full set Core Client Indicator'!$A$3:$AB$3, 0))), \"\")","v":""},{"$f":"IF(Y174<>\"\", IF(INDEX('Full set Core Client Indicator'!$A$3:$AB$351, MATCH(Selection_Hide2!$A174, 'Full set Core Client Indicator'!$A$3:$A$351, 0), MATCH(Selection_Hide2!Z$5, 'Full set Core Client Indicator'!$A$3:$AB$3, 0))=\"\", \"\",  INDEX('Full set Core Client Indicator'!$A$3:$AB$351, MATCH(Selection_Hide2!$A174, 'Full set Core Client Indicator'!$A$3:$A$351, 0), MATCH(Selection_Hide2!Z$5, 'Full set Core Client Indicator'!$A$3:$AB$3, 0))), \"\")","v":""},{"$f":"IF(Z174<>\"\", IF(INDEX('Full set Core Client Indicator'!$A$3:$AB$351, MATCH(Selection_Hide2!$A174, 'Full set Core Client Indicator'!$A$3:$A$351, 0), MATCH(Selection_Hide2!AA$5, 'Full set Core Client Indicator'!$A$3:$AB$3, 0))=\"\", \"\",  INDEX('Full set Core Client Indicator'!$A$3:$AB$351, MATCH(Selection_Hide2!$A174, 'Full set Core Client Indicator'!$A$3:$A$351, 0), MATCH(Selection_Hide2!AA$5, 'Full set Core Client Indicator'!$A$3:$AB$3, 0))), \"\")","v":""},{"$f":"IF(AA174<>\"\", IF(INDEX('Full set Core Client Indicator'!$A$3:$AB$351, MATCH(Selection_Hide2!$A174, 'Full set Core Client Indicator'!$A$3:$A$351, 0), MATCH(Selection_Hide2!AB$5, 'Full set Core Client Indicator'!$A$3:$AB$3, 0))=\"\", \"\",  INDEX('Full set Core Client Indicator'!$A$3:$AB$351, MATCH(Selection_Hide2!$A174, 'Full set Core Client Indicator'!$A$3:$A$351, 0), MATCH(Selection_Hide2!AB$5, 'Full set Core Client Indicator'!$A$3:$AB$3, 0))), \"\")","v":""}]
[{"$f":"IF(AND(Selection_Hide1!C173<>0, Selection_Hide1!C173<>\"Grand Total\"), Selection_Hide1!C173, \"\")","v":""},{"$f":"IF(A175<>\"\", IF(INDEX('Full set Core Client Indicator'!$A$3:$AB$351, MATCH(Selection_Hide2!$A175, 'Full set Core Client Indicator'!$A$3:$A$351, 0), MATCH(Selection_Hide2!B$5, 'Full set Core Client Indicator'!$A$3:$AB$3, 0))=\"\", \"\",  INDEX('Full set Core Client Indicator'!$A$3:$AB$351, MATCH(Selection_Hide2!$A175, 'Full set Core Client Indicator'!$A$3:$A$351, 0), MATCH(Selection_Hide2!B$5, 'Full set Core Client Indicator'!$A$3:$AB$3, 0))), \"\")","v":""},{"$f":"IF(B175<>\"\", IF(INDEX('Full set Core Client Indicator'!$A$3:$AB$351, MATCH(Selection_Hide2!$A175, 'Full set Core Client Indicator'!$A$3:$A$351, 0), MATCH(Selection_Hide2!C$5, 'Full set Core Client Indicator'!$A$3:$AB$3, 0))=\"\", \"\",  INDEX('Full set Core Client Indicator'!$A$3:$AB$351, MATCH(Selection_Hide2!$A175, 'Full set Core Client Indicator'!$A$3:$A$351, 0), MATCH(Selection_Hide2!C$5, 'Full set Core Client Indicator'!$A$3:$AB$3, 0))), \"\")","v":""},{"$f":"IF(C175<>\"\", IF(INDEX('Full set Core Client Indicator'!$A$3:$AB$351, MATCH(Selection_Hide2!$A175, 'Full set Core Client Indicator'!$A$3:$A$351, 0), MATCH(Selection_Hide2!D$5, 'Full set Core Client Indicator'!$A$3:$AB$3, 0))=\"\", \"\",  INDEX('Full set Core Client Indicator'!$A$3:$AB$351, MATCH(Selection_Hide2!$A175, 'Full set Core Client Indicator'!$A$3:$A$351, 0), MATCH(Selection_Hide2!D$5, 'Full set Core Client Indicator'!$A$3:$AB$3, 0))), \"\")","v":""},{"$f":"IF(D175<>\"\", IF(INDEX('Full set Core Client Indicator'!$A$3:$AB$351, MATCH(Selection_Hide2!$A175, 'Full set Core Client Indicator'!$A$3:$A$351, 0), MATCH(Selection_Hide2!E$5, 'Full set Core Client Indicator'!$A$3:$AB$3, 0))=\"\", \"\",  INDEX('Full set Core Client Indicator'!$A$3:$AB$351, MATCH(Selection_Hide2!$A175, 'Full set Core Client Indicator'!$A$3:$A$351, 0), MATCH(Selection_Hide2!E$5, 'Full set Core Client Indicator'!$A$3:$AB$3, 0))), \"\")","v":""},{"$f":"IF(E175<>\"\", IF(INDEX('Full set Core Client Indicator'!$A$3:$AB$351, MATCH(Selection_Hide2!$A175, 'Full set Core Client Indicator'!$A$3:$A$351, 0), MATCH(Selection_Hide2!F$5, 'Full set Core Client Indicator'!$A$3:$AB$3, 0))=\"\", \"\",  INDEX('Full set Core Client Indicator'!$A$3:$AB$351, MATCH(Selection_Hide2!$A175, 'Full set Core Client Indicator'!$A$3:$A$351, 0), MATCH(Selection_Hide2!F$5, 'Full set Core Client Indicator'!$A$3:$AB$3, 0))), \"\")","v":""},{"$f":"IF(F175<>\"\", IF(INDEX('Full set Core Client Indicator'!$A$3:$AB$351, MATCH(Selection_Hide2!$A175, 'Full set Core Client Indicator'!$A$3:$A$351, 0), MATCH(Selection_Hide2!G$5, 'Full set Core Client Indicator'!$A$3:$AB$3, 0))=\"\", \"\",  INDEX('Full set Core Client Indicator'!$A$3:$AB$351, MATCH(Selection_Hide2!$A175, 'Full set Core Client Indicator'!$A$3:$A$351, 0), MATCH(Selection_Hide2!G$5, 'Full set Core Client Indicator'!$A$3:$AB$3, 0))), \"\")","v":""},{"$f":"IF(G175<>\"\", IF(INDEX('Full set Core Client Indicator'!$A$3:$AB$351, MATCH(Selection_Hide2!$A175, 'Full set Core Client Indicator'!$A$3:$A$351, 0), MATCH(Selection_Hide2!H$5, 'Full set Core Client Indicator'!$A$3:$AB$3, 0))=\"\", \"\",  INDEX('Full set Core Client Indicator'!$A$3:$AB$351, MATCH(Selection_Hide2!$A175, 'Full set Core Client Indicator'!$A$3:$A$351, 0), MATCH(Selection_Hide2!H$5, 'Full set Core Client Indicator'!$A$3:$AB$3, 0))), \"\")","v":""},{"$f":"IF(H175<>\"\", IF(INDEX('Full set Core Client Indicator'!$A$3:$AB$351, MATCH(Selection_Hide2!$A175, 'Full set Core Client Indicator'!$A$3:$A$351, 0), MATCH(Selection_Hide2!I$5, 'Full set Core Client Indicator'!$A$3:$AB$3, 0))=\"\", \"\",  INDEX('Full set Core Client Indicator'!$A$3:$AB$351, MATCH(Selection_Hide2!$A175, 'Full set Core Client Indicator'!$A$3:$A$351, 0), MATCH(Selection_Hide2!I$5, 'Full set Core Client Indicator'!$A$3:$AB$3, 0))), \"\")","v":""},{"$f":"IF(I175<>\"\", IF(INDEX('Full set Core Client Indicator'!$A$3:$AB$351, MATCH(Selection_Hide2!$A175, 'Full set Core Client Indicator'!$A$3:$A$351, 0), MATCH(Selection_Hide2!J$5, 'Full set Core Client Indicator'!$A$3:$AB$3, 0))=\"\", \"\",  INDEX('Full set Core Client Indicator'!$A$3:$AB$351, MATCH(Selection_Hide2!$A175, 'Full set Core Client Indicator'!$A$3:$A$351, 0), MATCH(Selection_Hide2!J$5, 'Full set Core Client Indicator'!$A$3:$AB$3, 0))), \"\")","v":""},{"$f":"IF(J175<>\"\", IF(INDEX('Full set Core Client Indicator'!$A$3:$AB$351, MATCH(Selection_Hide2!$A175, 'Full set Core Client Indicator'!$A$3:$A$351, 0), MATCH(Selection_Hide2!K$5, 'Full set Core Client Indicator'!$A$3:$AB$3, 0))=\"\", \"\",  INDEX('Full set Core Client Indicator'!$A$3:$AB$351, MATCH(Selection_Hide2!$A175, 'Full set Core Client Indicator'!$A$3:$A$351, 0), MATCH(Selection_Hide2!K$5, 'Full set Core Client Indicator'!$A$3:$AB$3, 0))), \"\")","v":""},{"$f":"IF(K175<>\"\", IF(INDEX('Full set Core Client Indicator'!$A$3:$AB$351, MATCH(Selection_Hide2!$A175, 'Full set Core Client Indicator'!$A$3:$A$351, 0), MATCH(Selection_Hide2!L$5, 'Full set Core Client Indicator'!$A$3:$AB$3, 0))=\"\", \"\",  INDEX('Full set Core Client Indicator'!$A$3:$AB$351, MATCH(Selection_Hide2!$A175, 'Full set Core Client Indicator'!$A$3:$A$351, 0), MATCH(Selection_Hide2!L$5, 'Full set Core Client Indicator'!$A$3:$AB$3, 0))), \"\")","v":""},{"$f":"IF(L175<>\"\", IF(INDEX('Full set Core Client Indicator'!$A$3:$AB$351, MATCH(Selection_Hide2!$A175, 'Full set Core Client Indicator'!$A$3:$A$351, 0), MATCH(Selection_Hide2!M$5, 'Full set Core Client Indicator'!$A$3:$AB$3, 0))=\"\", \"\",  INDEX('Full set Core Client Indicator'!$A$3:$AB$351, MATCH(Selection_Hide2!$A175, 'Full set Core Client Indicator'!$A$3:$A$351, 0), MATCH(Selection_Hide2!M$5, 'Full set Core Client Indicator'!$A$3:$AB$3, 0))), \"\")","v":""},{"$f":"IF(M175<>\"\", IF(INDEX('Full set Core Client Indicator'!$A$3:$AB$351, MATCH(Selection_Hide2!$A175, 'Full set Core Client Indicator'!$A$3:$A$351, 0), MATCH(Selection_Hide2!N$5, 'Full set Core Client Indicator'!$A$3:$AB$3, 0))=\"\", \"\",  INDEX('Full set Core Client Indicator'!$A$3:$AB$351, MATCH(Selection_Hide2!$A175, 'Full set Core Client Indicator'!$A$3:$A$351, 0), MATCH(Selection_Hide2!N$5, 'Full set Core Client Indicator'!$A$3:$AB$3, 0))), \"\")","v":""},{"$f":"IF(N175<>\"\", IF(INDEX('Full set Core Client Indicator'!$A$3:$AB$351, MATCH(Selection_Hide2!$A175, 'Full set Core Client Indicator'!$A$3:$A$351, 0), MATCH(Selection_Hide2!O$5, 'Full set Core Client Indicator'!$A$3:$AB$3, 0))=\"\", \"\",  INDEX('Full set Core Client Indicator'!$A$3:$AB$351, MATCH(Selection_Hide2!$A175, 'Full set Core Client Indicator'!$A$3:$A$351, 0), MATCH(Selection_Hide2!O$5, 'Full set Core Client Indicator'!$A$3:$AB$3, 0))), \"\")","v":""},{"$f":"IF(O175<>\"\", IF(INDEX('Full set Core Client Indicator'!$A$3:$AB$351, MATCH(Selection_Hide2!$A175, 'Full set Core Client Indicator'!$A$3:$A$351, 0), MATCH(Selection_Hide2!P$5, 'Full set Core Client Indicator'!$A$3:$AB$3, 0))=\"\", \"\",  INDEX('Full set Core Client Indicator'!$A$3:$AB$351, MATCH(Selection_Hide2!$A175, 'Full set Core Client Indicator'!$A$3:$A$351, 0), MATCH(Selection_Hide2!P$5, 'Full set Core Client Indicator'!$A$3:$AB$3, 0))), \"\")","v":""},{"$f":"IF(P175<>\"\", IF(INDEX('Full set Core Client Indicator'!$A$3:$AB$351, MATCH(Selection_Hide2!$A175, 'Full set Core Client Indicator'!$A$3:$A$351, 0), MATCH(Selection_Hide2!Q$5, 'Full set Core Client Indicator'!$A$3:$AB$3, 0))=\"\", \"\",  INDEX('Full set Core Client Indicator'!$A$3:$AB$351, MATCH(Selection_Hide2!$A175, 'Full set Core Client Indicator'!$A$3:$A$351, 0), MATCH(Selection_Hide2!Q$5, 'Full set Core Client Indicator'!$A$3:$AB$3, 0))), \"\")","v":""},{"$f":"IF(Q175<>\"\", IF(INDEX('Full set Core Client Indicator'!$A$3:$AB$351, MATCH(Selection_Hide2!$A175, 'Full set Core Client Indicator'!$A$3:$A$351, 0), MATCH(Selection_Hide2!R$5, 'Full set Core Client Indicator'!$A$3:$AB$3, 0))=\"\", \"\",  INDEX('Full set Core Client Indicator'!$A$3:$AB$351, MATCH(Selection_Hide2!$A175, 'Full set Core Client Indicator'!$A$3:$A$351, 0), MATCH(Selection_Hide2!R$5, 'Full set Core Client Indicator'!$A$3:$AB$3, 0))), \"\")","v":""},{"$f":"IF(R175<>\"\", IF(INDEX('Full set Core Client Indicator'!$A$3:$AB$351, MATCH(Selection_Hide2!$A175, 'Full set Core Client Indicator'!$A$3:$A$351, 0), MATCH(Selection_Hide2!S$5, 'Full set Core Client Indicator'!$A$3:$AB$3, 0))=\"\", \"\",  INDEX('Full set Core Client Indicator'!$A$3:$AB$351, MATCH(Selection_Hide2!$A175, 'Full set Core Client Indicator'!$A$3:$A$351, 0), MATCH(Selection_Hide2!S$5, 'Full set Core Client Indicator'!$A$3:$AB$3, 0))), \"\")","v":""},{"$f":"IF(S175<>\"\", IF(INDEX('Full set Core Client Indicator'!$A$3:$AB$351, MATCH(Selection_Hide2!$A175, 'Full set Core Client Indicator'!$A$3:$A$351, 0), MATCH(Selection_Hide2!T$5, 'Full set Core Client Indicator'!$A$3:$AB$3, 0))=\"\", \"\",  INDEX('Full set Core Client Indicator'!$A$3:$AB$351, MATCH(Selection_Hide2!$A175, 'Full set Core Client Indicator'!$A$3:$A$351, 0), MATCH(Selection_Hide2!T$5, 'Full set Core Client Indicator'!$A$3:$AB$3, 0))), \"\")","v":""},{"$f":"IF(T175<>\"\", IF(INDEX('Full set Core Client Indicator'!$A$3:$AB$351, MATCH(Selection_Hide2!$A175, 'Full set Core Client Indicator'!$A$3:$A$351, 0), MATCH(Selection_Hide2!U$5, 'Full set Core Client Indicator'!$A$3:$AB$3, 0))=\"\", \"\",  INDEX('Full set Core Client Indicator'!$A$3:$AB$351, MATCH(Selection_Hide2!$A175, 'Full set Core Client Indicator'!$A$3:$A$351, 0), MATCH(Selection_Hide2!U$5, 'Full set Core Client Indicator'!$A$3:$AB$3, 0))), \"\")","v":""},{"$f":"IF(U175<>\"\", IF(INDEX('Full set Core Client Indicator'!$A$3:$AB$351, MATCH(Selection_Hide2!$A175, 'Full set Core Client Indicator'!$A$3:$A$351, 0), MATCH(Selection_Hide2!V$5, 'Full set Core Client Indicator'!$A$3:$AB$3, 0))=\"\", \"\",  INDEX('Full set Core Client Indicator'!$A$3:$AB$351, MATCH(Selection_Hide2!$A175, 'Full set Core Client Indicator'!$A$3:$A$351, 0), MATCH(Selection_Hide2!V$5, 'Full set Core Client Indicator'!$A$3:$AB$3, 0))), \"\")","v":""},{"$f":"IF(V175<>\"\", IF(INDEX('Full set Core Client Indicator'!$A$3:$AB$351, MATCH(Selection_Hide2!$A175, 'Full set Core Client Indicator'!$A$3:$A$351, 0), MATCH(Selection_Hide2!W$5, 'Full set Core Client Indicator'!$A$3:$AB$3, 0))=\"\", \"\",  INDEX('Full set Core Client Indicator'!$A$3:$AB$351, MATCH(Selection_Hide2!$A175, 'Full set Core Client Indicator'!$A$3:$A$351, 0), MATCH(Selection_Hide2!W$5, 'Full set Core Client Indicator'!$A$3:$AB$3, 0))), \"\")","v":""},{"$f":"IF(W175<>\"\", IF(INDEX('Full set Core Client Indicator'!$A$3:$AB$351, MATCH(Selection_Hide2!$A175, 'Full set Core Client Indicator'!$A$3:$A$351, 0), MATCH(Selection_Hide2!X$5, 'Full set Core Client Indicator'!$A$3:$AB$3, 0))=\"\", \"\",  INDEX('Full set Core Client Indicator'!$A$3:$AB$351, MATCH(Selection_Hide2!$A175, 'Full set Core Client Indicator'!$A$3:$A$351, 0), MATCH(Selection_Hide2!X$5, 'Full set Core Client Indicator'!$A$3:$AB$3, 0))), \"\")","v":""},{"$f":"IF(X175<>\"\", IF(INDEX('Full set Core Client Indicator'!$A$3:$AB$351, MATCH(Selection_Hide2!$A175, 'Full set Core Client Indicator'!$A$3:$A$351, 0), MATCH(Selection_Hide2!Y$5, 'Full set Core Client Indicator'!$A$3:$AB$3, 0))=\"\", \"\",  INDEX('Full set Core Client Indicator'!$A$3:$AB$351, MATCH(Selection_Hide2!$A175, 'Full set Core Client Indicator'!$A$3:$A$351, 0), MATCH(Selection_Hide2!Y$5, 'Full set Core Client Indicator'!$A$3:$AB$3, 0))), \"\")","v":""},{"$f":"IF(Y175<>\"\", IF(INDEX('Full set Core Client Indicator'!$A$3:$AB$351, MATCH(Selection_Hide2!$A175, 'Full set Core Client Indicator'!$A$3:$A$351, 0), MATCH(Selection_Hide2!Z$5, 'Full set Core Client Indicator'!$A$3:$AB$3, 0))=\"\", \"\",  INDEX('Full set Core Client Indicator'!$A$3:$AB$351, MATCH(Selection_Hide2!$A175, 'Full set Core Client Indicator'!$A$3:$A$351, 0), MATCH(Selection_Hide2!Z$5, 'Full set Core Client Indicator'!$A$3:$AB$3, 0))), \"\")","v":""},{"$f":"IF(Z175<>\"\", IF(INDEX('Full set Core Client Indicator'!$A$3:$AB$351, MATCH(Selection_Hide2!$A175, 'Full set Core Client Indicator'!$A$3:$A$351, 0), MATCH(Selection_Hide2!AA$5, 'Full set Core Client Indicator'!$A$3:$AB$3, 0))=\"\", \"\",  INDEX('Full set Core Client Indicator'!$A$3:$AB$351, MATCH(Selection_Hide2!$A175, 'Full set Core Client Indicator'!$A$3:$A$351, 0), MATCH(Selection_Hide2!AA$5, 'Full set Core Client Indicator'!$A$3:$AB$3, 0))), \"\")","v":""},{"$f":"IF(AA175<>\"\", IF(INDEX('Full set Core Client Indicator'!$A$3:$AB$351, MATCH(Selection_Hide2!$A175, 'Full set Core Client Indicator'!$A$3:$A$351, 0), MATCH(Selection_Hide2!AB$5, 'Full set Core Client Indicator'!$A$3:$AB$3, 0))=\"\", \"\",  INDEX('Full set Core Client Indicator'!$A$3:$AB$351, MATCH(Selection_Hide2!$A175, 'Full set Core Client Indicator'!$A$3:$A$351, 0), MATCH(Selection_Hide2!AB$5, 'Full set Core Client Indicator'!$A$3:$AB$3, 0))), \"\")","v":""}]
[{"$f":"IF(AND(Selection_Hide1!C174<>0, Selection_Hide1!C174<>\"Grand Total\"), Selection_Hide1!C174, \"\")","v":""},{"$f":"IF(A176<>\"\", IF(INDEX('Full set Core Client Indicator'!$A$3:$AB$351, MATCH(Selection_Hide2!$A176, 'Full set Core Client Indicator'!$A$3:$A$351, 0), MATCH(Selection_Hide2!B$5, 'Full set Core Client Indicator'!$A$3:$AB$3, 0))=\"\", \"\",  INDEX('Full set Core Client Indicator'!$A$3:$AB$351, MATCH(Selection_Hide2!$A176, 'Full set Core Client Indicator'!$A$3:$A$351, 0), MATCH(Selection_Hide2!B$5, 'Full set Core Client Indicator'!$A$3:$AB$3, 0))), \"\")","v":""},{"$f":"IF(B176<>\"\", IF(INDEX('Full set Core Client Indicator'!$A$3:$AB$351, MATCH(Selection_Hide2!$A176, 'Full set Core Client Indicator'!$A$3:$A$351, 0), MATCH(Selection_Hide2!C$5, 'Full set Core Client Indicator'!$A$3:$AB$3, 0))=\"\", \"\",  INDEX('Full set Core Client Indicator'!$A$3:$AB$351, MATCH(Selection_Hide2!$A176, 'Full set Core Client Indicator'!$A$3:$A$351, 0), MATCH(Selection_Hide2!C$5, 'Full set Core Client Indicator'!$A$3:$AB$3, 0))), \"\")","v":""},{"$f":"IF(C176<>\"\", IF(INDEX('Full set Core Client Indicator'!$A$3:$AB$351, MATCH(Selection_Hide2!$A176, 'Full set Core Client Indicator'!$A$3:$A$351, 0), MATCH(Selection_Hide2!D$5, 'Full set Core Client Indicator'!$A$3:$AB$3, 0))=\"\", \"\",  INDEX('Full set Core Client Indicator'!$A$3:$AB$351, MATCH(Selection_Hide2!$A176, 'Full set Core Client Indicator'!$A$3:$A$351, 0), MATCH(Selection_Hide2!D$5, 'Full set Core Client Indicator'!$A$3:$AB$3, 0))), \"\")","v":""},{"$f":"IF(D176<>\"\", IF(INDEX('Full set Core Client Indicator'!$A$3:$AB$351, MATCH(Selection_Hide2!$A176, 'Full set Core Client Indicator'!$A$3:$A$351, 0), MATCH(Selection_Hide2!E$5, 'Full set Core Client Indicator'!$A$3:$AB$3, 0))=\"\", \"\",  INDEX('Full set Core Client Indicator'!$A$3:$AB$351, MATCH(Selection_Hide2!$A176, 'Full set Core Client Indicator'!$A$3:$A$351, 0), MATCH(Selection_Hide2!E$5, 'Full set Core Client Indicator'!$A$3:$AB$3, 0))), \"\")","v":""},{"$f":"IF(E176<>\"\", IF(INDEX('Full set Core Client Indicator'!$A$3:$AB$351, MATCH(Selection_Hide2!$A176, 'Full set Core Client Indicator'!$A$3:$A$351, 0), MATCH(Selection_Hide2!F$5, 'Full set Core Client Indicator'!$A$3:$AB$3, 0))=\"\", \"\",  INDEX('Full set Core Client Indicator'!$A$3:$AB$351, MATCH(Selection_Hide2!$A176, 'Full set Core Client Indicator'!$A$3:$A$351, 0), MATCH(Selection_Hide2!F$5, 'Full set Core Client Indicator'!$A$3:$AB$3, 0))), \"\")","v":""},{"$f":"IF(F176<>\"\", IF(INDEX('Full set Core Client Indicator'!$A$3:$AB$351, MATCH(Selection_Hide2!$A176, 'Full set Core Client Indicator'!$A$3:$A$351, 0), MATCH(Selection_Hide2!G$5, 'Full set Core Client Indicator'!$A$3:$AB$3, 0))=\"\", \"\",  INDEX('Full set Core Client Indicator'!$A$3:$AB$351, MATCH(Selection_Hide2!$A176, 'Full set Core Client Indicator'!$A$3:$A$351, 0), MATCH(Selection_Hide2!G$5, 'Full set Core Client Indicator'!$A$3:$AB$3, 0))), \"\")","v":""},{"$f":"IF(G176<>\"\", IF(INDEX('Full set Core Client Indicator'!$A$3:$AB$351, MATCH(Selection_Hide2!$A176, 'Full set Core Client Indicator'!$A$3:$A$351, 0), MATCH(Selection_Hide2!H$5, 'Full set Core Client Indicator'!$A$3:$AB$3, 0))=\"\", \"\",  INDEX('Full set Core Client Indicator'!$A$3:$AB$351, MATCH(Selection_Hide2!$A176, 'Full set Core Client Indicator'!$A$3:$A$351, 0), MATCH(Selection_Hide2!H$5, 'Full set Core Client Indicator'!$A$3:$AB$3, 0))), \"\")","v":""},{"$f":"IF(H176<>\"\", IF(INDEX('Full set Core Client Indicator'!$A$3:$AB$351, MATCH(Selection_Hide2!$A176, 'Full set Core Client Indicator'!$A$3:$A$351, 0), MATCH(Selection_Hide2!I$5, 'Full set Core Client Indicator'!$A$3:$AB$3, 0))=\"\", \"\",  INDEX('Full set Core Client Indicator'!$A$3:$AB$351, MATCH(Selection_Hide2!$A176, 'Full set Core Client Indicator'!$A$3:$A$351, 0), MATCH(Selection_Hide2!I$5, 'Full set Core Client Indicator'!$A$3:$AB$3, 0))), \"\")","v":""},{"$f":"IF(I176<>\"\", IF(INDEX('Full set Core Client Indicator'!$A$3:$AB$351, MATCH(Selection_Hide2!$A176, 'Full set Core Client Indicator'!$A$3:$A$351, 0), MATCH(Selection_Hide2!J$5, 'Full set Core Client Indicator'!$A$3:$AB$3, 0))=\"\", \"\",  INDEX('Full set Core Client Indicator'!$A$3:$AB$351, MATCH(Selection_Hide2!$A176, 'Full set Core Client Indicator'!$A$3:$A$351, 0), MATCH(Selection_Hide2!J$5, 'Full set Core Client Indicator'!$A$3:$AB$3, 0))), \"\")","v":""},{"$f":"IF(J176<>\"\", IF(INDEX('Full set Core Client Indicator'!$A$3:$AB$351, MATCH(Selection_Hide2!$A176, 'Full set Core Client Indicator'!$A$3:$A$351, 0), MATCH(Selection_Hide2!K$5, 'Full set Core Client Indicator'!$A$3:$AB$3, 0))=\"\", \"\",  INDEX('Full set Core Client Indicator'!$A$3:$AB$351, MATCH(Selection_Hide2!$A176, 'Full set Core Client Indicator'!$A$3:$A$351, 0), MATCH(Selection_Hide2!K$5, 'Full set Core Client Indicator'!$A$3:$AB$3, 0))), \"\")","v":""},{"$f":"IF(K176<>\"\", IF(INDEX('Full set Core Client Indicator'!$A$3:$AB$351, MATCH(Selection_Hide2!$A176, 'Full set Core Client Indicator'!$A$3:$A$351, 0), MATCH(Selection_Hide2!L$5, 'Full set Core Client Indicator'!$A$3:$AB$3, 0))=\"\", \"\",  INDEX('Full set Core Client Indicator'!$A$3:$AB$351, MATCH(Selection_Hide2!$A176, 'Full set Core Client Indicator'!$A$3:$A$351, 0), MATCH(Selection_Hide2!L$5, 'Full set Core Client Indicator'!$A$3:$AB$3, 0))), \"\")","v":""},{"$f":"IF(L176<>\"\", IF(INDEX('Full set Core Client Indicator'!$A$3:$AB$351, MATCH(Selection_Hide2!$A176, 'Full set Core Client Indicator'!$A$3:$A$351, 0), MATCH(Selection_Hide2!M$5, 'Full set Core Client Indicator'!$A$3:$AB$3, 0))=\"\", \"\",  INDEX('Full set Core Client Indicator'!$A$3:$AB$351, MATCH(Selection_Hide2!$A176, 'Full set Core Client Indicator'!$A$3:$A$351, 0), MATCH(Selection_Hide2!M$5, 'Full set Core Client Indicator'!$A$3:$AB$3, 0))), \"\")","v":""},{"$f":"IF(M176<>\"\", IF(INDEX('Full set Core Client Indicator'!$A$3:$AB$351, MATCH(Selection_Hide2!$A176, 'Full set Core Client Indicator'!$A$3:$A$351, 0), MATCH(Selection_Hide2!N$5, 'Full set Core Client Indicator'!$A$3:$AB$3, 0))=\"\", \"\",  INDEX('Full set Core Client Indicator'!$A$3:$AB$351, MATCH(Selection_Hide2!$A176, 'Full set Core Client Indicator'!$A$3:$A$351, 0), MATCH(Selection_Hide2!N$5, 'Full set Core Client Indicator'!$A$3:$AB$3, 0))), \"\")","v":""},{"$f":"IF(N176<>\"\", IF(INDEX('Full set Core Client Indicator'!$A$3:$AB$351, MATCH(Selection_Hide2!$A176, 'Full set Core Client Indicator'!$A$3:$A$351, 0), MATCH(Selection_Hide2!O$5, 'Full set Core Client Indicator'!$A$3:$AB$3, 0))=\"\", \"\",  INDEX('Full set Core Client Indicator'!$A$3:$AB$351, MATCH(Selection_Hide2!$A176, 'Full set Core Client Indicator'!$A$3:$A$351, 0), MATCH(Selection_Hide2!O$5, 'Full set Core Client Indicator'!$A$3:$AB$3, 0))), \"\")","v":""},{"$f":"IF(O176<>\"\", IF(INDEX('Full set Core Client Indicator'!$A$3:$AB$351, MATCH(Selection_Hide2!$A176, 'Full set Core Client Indicator'!$A$3:$A$351, 0), MATCH(Selection_Hide2!P$5, 'Full set Core Client Indicator'!$A$3:$AB$3, 0))=\"\", \"\",  INDEX('Full set Core Client Indicator'!$A$3:$AB$351, MATCH(Selection_Hide2!$A176, 'Full set Core Client Indicator'!$A$3:$A$351, 0), MATCH(Selection_Hide2!P$5, 'Full set Core Client Indicator'!$A$3:$AB$3, 0))), \"\")","v":""},{"$f":"IF(P176<>\"\", IF(INDEX('Full set Core Client Indicator'!$A$3:$AB$351, MATCH(Selection_Hide2!$A176, 'Full set Core Client Indicator'!$A$3:$A$351, 0), MATCH(Selection_Hide2!Q$5, 'Full set Core Client Indicator'!$A$3:$AB$3, 0))=\"\", \"\",  INDEX('Full set Core Client Indicator'!$A$3:$AB$351, MATCH(Selection_Hide2!$A176, 'Full set Core Client Indicator'!$A$3:$A$351, 0), MATCH(Selection_Hide2!Q$5, 'Full set Core Client Indicator'!$A$3:$AB$3, 0))), \"\")","v":""},{"$f":"IF(Q176<>\"\", IF(INDEX('Full set Core Client Indicator'!$A$3:$AB$351, MATCH(Selection_Hide2!$A176, 'Full set Core Client Indicator'!$A$3:$A$351, 0), MATCH(Selection_Hide2!R$5, 'Full set Core Client Indicator'!$A$3:$AB$3, 0))=\"\", \"\",  INDEX('Full set Core Client Indicator'!$A$3:$AB$351, MATCH(Selection_Hide2!$A176, 'Full set Core Client Indicator'!$A$3:$A$351, 0), MATCH(Selection_Hide2!R$5, 'Full set Core Client Indicator'!$A$3:$AB$3, 0))), \"\")","v":""},{"$f":"IF(R176<>\"\", IF(INDEX('Full set Core Client Indicator'!$A$3:$AB$351, MATCH(Selection_Hide2!$A176, 'Full set Core Client Indicator'!$A$3:$A$351, 0), MATCH(Selection_Hide2!S$5, 'Full set Core Client Indicator'!$A$3:$AB$3, 0))=\"\", \"\",  INDEX('Full set Core Client Indicator'!$A$3:$AB$351, MATCH(Selection_Hide2!$A176, 'Full set Core Client Indicator'!$A$3:$A$351, 0), MATCH(Selection_Hide2!S$5, 'Full set Core Client Indicator'!$A$3:$AB$3, 0))), \"\")","v":""},{"$f":"IF(S176<>\"\", IF(INDEX('Full set Core Client Indicator'!$A$3:$AB$351, MATCH(Selection_Hide2!$A176, 'Full set Core Client Indicator'!$A$3:$A$351, 0), MATCH(Selection_Hide2!T$5, 'Full set Core Client Indicator'!$A$3:$AB$3, 0))=\"\", \"\",  INDEX('Full set Core Client Indicator'!$A$3:$AB$351, MATCH(Selection_Hide2!$A176, 'Full set Core Client Indicator'!$A$3:$A$351, 0), MATCH(Selection_Hide2!T$5, 'Full set Core Client Indicator'!$A$3:$AB$3, 0))), \"\")","v":""},{"$f":"IF(T176<>\"\", IF(INDEX('Full set Core Client Indicator'!$A$3:$AB$351, MATCH(Selection_Hide2!$A176, 'Full set Core Client Indicator'!$A$3:$A$351, 0), MATCH(Selection_Hide2!U$5, 'Full set Core Client Indicator'!$A$3:$AB$3, 0))=\"\", \"\",  INDEX('Full set Core Client Indicator'!$A$3:$AB$351, MATCH(Selection_Hide2!$A176, 'Full set Core Client Indicator'!$A$3:$A$351, 0), MATCH(Selection_Hide2!U$5, 'Full set Core Client Indicator'!$A$3:$AB$3, 0))), \"\")","v":""},{"$f":"IF(U176<>\"\", IF(INDEX('Full set Core Client Indicator'!$A$3:$AB$351, MATCH(Selection_Hide2!$A176, 'Full set Core Client Indicator'!$A$3:$A$351, 0), MATCH(Selection_Hide2!V$5, 'Full set Core Client Indicator'!$A$3:$AB$3, 0))=\"\", \"\",  INDEX('Full set Core Client Indicator'!$A$3:$AB$351, MATCH(Selection_Hide2!$A176, 'Full set Core Client Indicator'!$A$3:$A$351, 0), MATCH(Selection_Hide2!V$5, 'Full set Core Client Indicator'!$A$3:$AB$3, 0))), \"\")","v":""},{"$f":"IF(V176<>\"\", IF(INDEX('Full set Core Client Indicator'!$A$3:$AB$351, MATCH(Selection_Hide2!$A176, 'Full set Core Client Indicator'!$A$3:$A$351, 0), MATCH(Selection_Hide2!W$5, 'Full set Core Client Indicator'!$A$3:$AB$3, 0))=\"\", \"\",  INDEX('Full set Core Client Indicator'!$A$3:$AB$351, MATCH(Selection_Hide2!$A176, 'Full set Core Client Indicator'!$A$3:$A$351, 0), MATCH(Selection_Hide2!W$5, 'Full set Core Client Indicator'!$A$3:$AB$3, 0))), \"\")","v":""},{"$f":"IF(W176<>\"\", IF(INDEX('Full set Core Client Indicator'!$A$3:$AB$351, MATCH(Selection_Hide2!$A176, 'Full set Core Client Indicator'!$A$3:$A$351, 0), MATCH(Selection_Hide2!X$5, 'Full set Core Client Indicator'!$A$3:$AB$3, 0))=\"\", \"\",  INDEX('Full set Core Client Indicator'!$A$3:$AB$351, MATCH(Selection_Hide2!$A176, 'Full set Core Client Indicator'!$A$3:$A$351, 0), MATCH(Selection_Hide2!X$5, 'Full set Core Client Indicator'!$A$3:$AB$3, 0))), \"\")","v":""},{"$f":"IF(X176<>\"\", IF(INDEX('Full set Core Client Indicator'!$A$3:$AB$351, MATCH(Selection_Hide2!$A176, 'Full set Core Client Indicator'!$A$3:$A$351, 0), MATCH(Selection_Hide2!Y$5, 'Full set Core Client Indicator'!$A$3:$AB$3, 0))=\"\", \"\",  INDEX('Full set Core Client Indicator'!$A$3:$AB$351, MATCH(Selection_Hide2!$A176, 'Full set Core Client Indicator'!$A$3:$A$351, 0), MATCH(Selection_Hide2!Y$5, 'Full set Core Client Indicator'!$A$3:$AB$3, 0))), \"\")","v":""},{"$f":"IF(Y176<>\"\", IF(INDEX('Full set Core Client Indicator'!$A$3:$AB$351, MATCH(Selection_Hide2!$A176, 'Full set Core Client Indicator'!$A$3:$A$351, 0), MATCH(Selection_Hide2!Z$5, 'Full set Core Client Indicator'!$A$3:$AB$3, 0))=\"\", \"\",  INDEX('Full set Core Client Indicator'!$A$3:$AB$351, MATCH(Selection_Hide2!$A176, 'Full set Core Client Indicator'!$A$3:$A$351, 0), MATCH(Selection_Hide2!Z$5, 'Full set Core Client Indicator'!$A$3:$AB$3, 0))), \"\")","v":""},{"$f":"IF(Z176<>\"\", IF(INDEX('Full set Core Client Indicator'!$A$3:$AB$351, MATCH(Selection_Hide2!$A176, 'Full set Core Client Indicator'!$A$3:$A$351, 0), MATCH(Selection_Hide2!AA$5, 'Full set Core Client Indicator'!$A$3:$AB$3, 0))=\"\", \"\",  INDEX('Full set Core Client Indicator'!$A$3:$AB$351, MATCH(Selection_Hide2!$A176, 'Full set Core Client Indicator'!$A$3:$A$351, 0), MATCH(Selection_Hide2!AA$5, 'Full set Core Client Indicator'!$A$3:$AB$3, 0))), \"\")","v":""},{"$f":"IF(AA176<>\"\", IF(INDEX('Full set Core Client Indicator'!$A$3:$AB$351, MATCH(Selection_Hide2!$A176, 'Full set Core Client Indicator'!$A$3:$A$351, 0), MATCH(Selection_Hide2!AB$5, 'Full set Core Client Indicator'!$A$3:$AB$3, 0))=\"\", \"\",  INDEX('Full set Core Client Indicator'!$A$3:$AB$351, MATCH(Selection_Hide2!$A176, 'Full set Core Client Indicator'!$A$3:$A$351, 0), MATCH(Selection_Hide2!AB$5, 'Full set Core Client Indicator'!$A$3:$AB$3, 0))), \"\")","v":""}]
[{"$f":"IF(AND(Selection_Hide1!C175<>0, Selection_Hide1!C175<>\"Grand Total\"), Selection_Hide1!C175, \"\")","v":""},{"$f":"IF(A177<>\"\", IF(INDEX('Full set Core Client Indicator'!$A$3:$AB$351, MATCH(Selection_Hide2!$A177, 'Full set Core Client Indicator'!$A$3:$A$351, 0), MATCH(Selection_Hide2!B$5, 'Full set Core Client Indicator'!$A$3:$AB$3, 0))=\"\", \"\",  INDEX('Full set Core Client Indicator'!$A$3:$AB$351, MATCH(Selection_Hide2!$A177, 'Full set Core Client Indicator'!$A$3:$A$351, 0), MATCH(Selection_Hide2!B$5, 'Full set Core Client Indicator'!$A$3:$AB$3, 0))), \"\")","v":""},{"$f":"IF(B177<>\"\", IF(INDEX('Full set Core Client Indicator'!$A$3:$AB$351, MATCH(Selection_Hide2!$A177, 'Full set Core Client Indicator'!$A$3:$A$351, 0), MATCH(Selection_Hide2!C$5, 'Full set Core Client Indicator'!$A$3:$AB$3, 0))=\"\", \"\",  INDEX('Full set Core Client Indicator'!$A$3:$AB$351, MATCH(Selection_Hide2!$A177, 'Full set Core Client Indicator'!$A$3:$A$351, 0), MATCH(Selection_Hide2!C$5, 'Full set Core Client Indicator'!$A$3:$AB$3, 0))), \"\")","v":""},{"$f":"IF(C177<>\"\", IF(INDEX('Full set Core Client Indicator'!$A$3:$AB$351, MATCH(Selection_Hide2!$A177, 'Full set Core Client Indicator'!$A$3:$A$351, 0), MATCH(Selection_Hide2!D$5, 'Full set Core Client Indicator'!$A$3:$AB$3, 0))=\"\", \"\",  INDEX('Full set Core Client Indicator'!$A$3:$AB$351, MATCH(Selection_Hide2!$A177, 'Full set Core Client Indicator'!$A$3:$A$351, 0), MATCH(Selection_Hide2!D$5, 'Full set Core Client Indicator'!$A$3:$AB$3, 0))), \"\")","v":""},{"$f":"IF(D177<>\"\", IF(INDEX('Full set Core Client Indicator'!$A$3:$AB$351, MATCH(Selection_Hide2!$A177, 'Full set Core Client Indicator'!$A$3:$A$351, 0), MATCH(Selection_Hide2!E$5, 'Full set Core Client Indicator'!$A$3:$AB$3, 0))=\"\", \"\",  INDEX('Full set Core Client Indicator'!$A$3:$AB$351, MATCH(Selection_Hide2!$A177, 'Full set Core Client Indicator'!$A$3:$A$351, 0), MATCH(Selection_Hide2!E$5, 'Full set Core Client Indicator'!$A$3:$AB$3, 0))), \"\")","v":""},{"$f":"IF(E177<>\"\", IF(INDEX('Full set Core Client Indicator'!$A$3:$AB$351, MATCH(Selection_Hide2!$A177, 'Full set Core Client Indicator'!$A$3:$A$351, 0), MATCH(Selection_Hide2!F$5, 'Full set Core Client Indicator'!$A$3:$AB$3, 0))=\"\", \"\",  INDEX('Full set Core Client Indicator'!$A$3:$AB$351, MATCH(Selection_Hide2!$A177, 'Full set Core Client Indicator'!$A$3:$A$351, 0), MATCH(Selection_Hide2!F$5, 'Full set Core Client Indicator'!$A$3:$AB$3, 0))), \"\")","v":""},{"$f":"IF(F177<>\"\", IF(INDEX('Full set Core Client Indicator'!$A$3:$AB$351, MATCH(Selection_Hide2!$A177, 'Full set Core Client Indicator'!$A$3:$A$351, 0), MATCH(Selection_Hide2!G$5, 'Full set Core Client Indicator'!$A$3:$AB$3, 0))=\"\", \"\",  INDEX('Full set Core Client Indicator'!$A$3:$AB$351, MATCH(Selection_Hide2!$A177, 'Full set Core Client Indicator'!$A$3:$A$351, 0), MATCH(Selection_Hide2!G$5, 'Full set Core Client Indicator'!$A$3:$AB$3, 0))), \"\")","v":""},{"$f":"IF(G177<>\"\", IF(INDEX('Full set Core Client Indicator'!$A$3:$AB$351, MATCH(Selection_Hide2!$A177, 'Full set Core Client Indicator'!$A$3:$A$351, 0), MATCH(Selection_Hide2!H$5, 'Full set Core Client Indicator'!$A$3:$AB$3, 0))=\"\", \"\",  INDEX('Full set Core Client Indicator'!$A$3:$AB$351, MATCH(Selection_Hide2!$A177, 'Full set Core Client Indicator'!$A$3:$A$351, 0), MATCH(Selection_Hide2!H$5, 'Full set Core Client Indicator'!$A$3:$AB$3, 0))), \"\")","v":""},{"$f":"IF(H177<>\"\", IF(INDEX('Full set Core Client Indicator'!$A$3:$AB$351, MATCH(Selection_Hide2!$A177, 'Full set Core Client Indicator'!$A$3:$A$351, 0), MATCH(Selection_Hide2!I$5, 'Full set Core Client Indicator'!$A$3:$AB$3, 0))=\"\", \"\",  INDEX('Full set Core Client Indicator'!$A$3:$AB$351, MATCH(Selection_Hide2!$A177, 'Full set Core Client Indicator'!$A$3:$A$351, 0), MATCH(Selection_Hide2!I$5, 'Full set Core Client Indicator'!$A$3:$AB$3, 0))), \"\")","v":""},{"$f":"IF(I177<>\"\", IF(INDEX('Full set Core Client Indicator'!$A$3:$AB$351, MATCH(Selection_Hide2!$A177, 'Full set Core Client Indicator'!$A$3:$A$351, 0), MATCH(Selection_Hide2!J$5, 'Full set Core Client Indicator'!$A$3:$AB$3, 0))=\"\", \"\",  INDEX('Full set Core Client Indicator'!$A$3:$AB$351, MATCH(Selection_Hide2!$A177, 'Full set Core Client Indicator'!$A$3:$A$351, 0), MATCH(Selection_Hide2!J$5, 'Full set Core Client Indicator'!$A$3:$AB$3, 0))), \"\")","v":""},{"$f":"IF(J177<>\"\", IF(INDEX('Full set Core Client Indicator'!$A$3:$AB$351, MATCH(Selection_Hide2!$A177, 'Full set Core Client Indicator'!$A$3:$A$351, 0), MATCH(Selection_Hide2!K$5, 'Full set Core Client Indicator'!$A$3:$AB$3, 0))=\"\", \"\",  INDEX('Full set Core Client Indicator'!$A$3:$AB$351, MATCH(Selection_Hide2!$A177, 'Full set Core Client Indicator'!$A$3:$A$351, 0), MATCH(Selection_Hide2!K$5, 'Full set Core Client Indicator'!$A$3:$AB$3, 0))), \"\")","v":""},{"$f":"IF(K177<>\"\", IF(INDEX('Full set Core Client Indicator'!$A$3:$AB$351, MATCH(Selection_Hide2!$A177, 'Full set Core Client Indicator'!$A$3:$A$351, 0), MATCH(Selection_Hide2!L$5, 'Full set Core Client Indicator'!$A$3:$AB$3, 0))=\"\", \"\",  INDEX('Full set Core Client Indicator'!$A$3:$AB$351, MATCH(Selection_Hide2!$A177, 'Full set Core Client Indicator'!$A$3:$A$351, 0), MATCH(Selection_Hide2!L$5, 'Full set Core Client Indicator'!$A$3:$AB$3, 0))), \"\")","v":""},{"$f":"IF(L177<>\"\", IF(INDEX('Full set Core Client Indicator'!$A$3:$AB$351, MATCH(Selection_Hide2!$A177, 'Full set Core Client Indicator'!$A$3:$A$351, 0), MATCH(Selection_Hide2!M$5, 'Full set Core Client Indicator'!$A$3:$AB$3, 0))=\"\", \"\",  INDEX('Full set Core Client Indicator'!$A$3:$AB$351, MATCH(Selection_Hide2!$A177, 'Full set Core Client Indicator'!$A$3:$A$351, 0), MATCH(Selection_Hide2!M$5, 'Full set Core Client Indicator'!$A$3:$AB$3, 0))), \"\")","v":""},{"$f":"IF(M177<>\"\", IF(INDEX('Full set Core Client Indicator'!$A$3:$AB$351, MATCH(Selection_Hide2!$A177, 'Full set Core Client Indicator'!$A$3:$A$351, 0), MATCH(Selection_Hide2!N$5, 'Full set Core Client Indicator'!$A$3:$AB$3, 0))=\"\", \"\",  INDEX('Full set Core Client Indicator'!$A$3:$AB$351, MATCH(Selection_Hide2!$A177, 'Full set Core Client Indicator'!$A$3:$A$351, 0), MATCH(Selection_Hide2!N$5, 'Full set Core Client Indicator'!$A$3:$AB$3, 0))), \"\")","v":""},{"$f":"IF(N177<>\"\", IF(INDEX('Full set Core Client Indicator'!$A$3:$AB$351, MATCH(Selection_Hide2!$A177, 'Full set Core Client Indicator'!$A$3:$A$351, 0), MATCH(Selection_Hide2!O$5, 'Full set Core Client Indicator'!$A$3:$AB$3, 0))=\"\", \"\",  INDEX('Full set Core Client Indicator'!$A$3:$AB$351, MATCH(Selection_Hide2!$A177, 'Full set Core Client Indicator'!$A$3:$A$351, 0), MATCH(Selection_Hide2!O$5, 'Full set Core Client Indicator'!$A$3:$AB$3, 0))), \"\")","v":""},{"$f":"IF(O177<>\"\", IF(INDEX('Full set Core Client Indicator'!$A$3:$AB$351, MATCH(Selection_Hide2!$A177, 'Full set Core Client Indicator'!$A$3:$A$351, 0), MATCH(Selection_Hide2!P$5, 'Full set Core Client Indicator'!$A$3:$AB$3, 0))=\"\", \"\",  INDEX('Full set Core Client Indicator'!$A$3:$AB$351, MATCH(Selection_Hide2!$A177, 'Full set Core Client Indicator'!$A$3:$A$351, 0), MATCH(Selection_Hide2!P$5, 'Full set Core Client Indicator'!$A$3:$AB$3, 0))), \"\")","v":""},{"$f":"IF(P177<>\"\", IF(INDEX('Full set Core Client Indicator'!$A$3:$AB$351, MATCH(Selection_Hide2!$A177, 'Full set Core Client Indicator'!$A$3:$A$351, 0), MATCH(Selection_Hide2!Q$5, 'Full set Core Client Indicator'!$A$3:$AB$3, 0))=\"\", \"\",  INDEX('Full set Core Client Indicator'!$A$3:$AB$351, MATCH(Selection_Hide2!$A177, 'Full set Core Client Indicator'!$A$3:$A$351, 0), MATCH(Selection_Hide2!Q$5, 'Full set Core Client Indicator'!$A$3:$AB$3, 0))), \"\")","v":""},{"$f":"IF(Q177<>\"\", IF(INDEX('Full set Core Client Indicator'!$A$3:$AB$351, MATCH(Selection_Hide2!$A177, 'Full set Core Client Indicator'!$A$3:$A$351, 0), MATCH(Selection_Hide2!R$5, 'Full set Core Client Indicator'!$A$3:$AB$3, 0))=\"\", \"\",  INDEX('Full set Core Client Indicator'!$A$3:$AB$351, MATCH(Selection_Hide2!$A177, 'Full set Core Client Indicator'!$A$3:$A$351, 0), MATCH(Selection_Hide2!R$5, 'Full set Core Client Indicator'!$A$3:$AB$3, 0))), \"\")","v":""},{"$f":"IF(R177<>\"\", IF(INDEX('Full set Core Client Indicator'!$A$3:$AB$351, MATCH(Selection_Hide2!$A177, 'Full set Core Client Indicator'!$A$3:$A$351, 0), MATCH(Selection_Hide2!S$5, 'Full set Core Client Indicator'!$A$3:$AB$3, 0))=\"\", \"\",  INDEX('Full set Core Client Indicator'!$A$3:$AB$351, MATCH(Selection_Hide2!$A177, 'Full set Core Client Indicator'!$A$3:$A$351, 0), MATCH(Selection_Hide2!S$5, 'Full set Core Client Indicator'!$A$3:$AB$3, 0))), \"\")","v":""},{"$f":"IF(S177<>\"\", IF(INDEX('Full set Core Client Indicator'!$A$3:$AB$351, MATCH(Selection_Hide2!$A177, 'Full set Core Client Indicator'!$A$3:$A$351, 0), MATCH(Selection_Hide2!T$5, 'Full set Core Client Indicator'!$A$3:$AB$3, 0))=\"\", \"\",  INDEX('Full set Core Client Indicator'!$A$3:$AB$351, MATCH(Selection_Hide2!$A177, 'Full set Core Client Indicator'!$A$3:$A$351, 0), MATCH(Selection_Hide2!T$5, 'Full set Core Client Indicator'!$A$3:$AB$3, 0))), \"\")","v":""},{"$f":"IF(T177<>\"\", IF(INDEX('Full set Core Client Indicator'!$A$3:$AB$351, MATCH(Selection_Hide2!$A177, 'Full set Core Client Indicator'!$A$3:$A$351, 0), MATCH(Selection_Hide2!U$5, 'Full set Core Client Indicator'!$A$3:$AB$3, 0))=\"\", \"\",  INDEX('Full set Core Client Indicator'!$A$3:$AB$351, MATCH(Selection_Hide2!$A177, 'Full set Core Client Indicator'!$A$3:$A$351, 0), MATCH(Selection_Hide2!U$5, 'Full set Core Client Indicator'!$A$3:$AB$3, 0))), \"\")","v":""},{"$f":"IF(U177<>\"\", IF(INDEX('Full set Core Client Indicator'!$A$3:$AB$351, MATCH(Selection_Hide2!$A177, 'Full set Core Client Indicator'!$A$3:$A$351, 0), MATCH(Selection_Hide2!V$5, 'Full set Core Client Indicator'!$A$3:$AB$3, 0))=\"\", \"\",  INDEX('Full set Core Client Indicator'!$A$3:$AB$351, MATCH(Selection_Hide2!$A177, 'Full set Core Client Indicator'!$A$3:$A$351, 0), MATCH(Selection_Hide2!V$5, 'Full set Core Client Indicator'!$A$3:$AB$3, 0))), \"\")","v":""},{"$f":"IF(V177<>\"\", IF(INDEX('Full set Core Client Indicator'!$A$3:$AB$351, MATCH(Selection_Hide2!$A177, 'Full set Core Client Indicator'!$A$3:$A$351, 0), MATCH(Selection_Hide2!W$5, 'Full set Core Client Indicator'!$A$3:$AB$3, 0))=\"\", \"\",  INDEX('Full set Core Client Indicator'!$A$3:$AB$351, MATCH(Selection_Hide2!$A177, 'Full set Core Client Indicator'!$A$3:$A$351, 0), MATCH(Selection_Hide2!W$5, 'Full set Core Client Indicator'!$A$3:$AB$3, 0))), \"\")","v":""},{"$f":"IF(W177<>\"\", IF(INDEX('Full set Core Client Indicator'!$A$3:$AB$351, MATCH(Selection_Hide2!$A177, 'Full set Core Client Indicator'!$A$3:$A$351, 0), MATCH(Selection_Hide2!X$5, 'Full set Core Client Indicator'!$A$3:$AB$3, 0))=\"\", \"\",  INDEX('Full set Core Client Indicator'!$A$3:$AB$351, MATCH(Selection_Hide2!$A177, 'Full set Core Client Indicator'!$A$3:$A$351, 0), MATCH(Selection_Hide2!X$5, 'Full set Core Client Indicator'!$A$3:$AB$3, 0))), \"\")","v":""},{"$f":"IF(X177<>\"\", IF(INDEX('Full set Core Client Indicator'!$A$3:$AB$351, MATCH(Selection_Hide2!$A177, 'Full set Core Client Indicator'!$A$3:$A$351, 0), MATCH(Selection_Hide2!Y$5, 'Full set Core Client Indicator'!$A$3:$AB$3, 0))=\"\", \"\",  INDEX('Full set Core Client Indicator'!$A$3:$AB$351, MATCH(Selection_Hide2!$A177, 'Full set Core Client Indicator'!$A$3:$A$351, 0), MATCH(Selection_Hide2!Y$5, 'Full set Core Client Indicator'!$A$3:$AB$3, 0))), \"\")","v":""},{"$f":"IF(Y177<>\"\", IF(INDEX('Full set Core Client Indicator'!$A$3:$AB$351, MATCH(Selection_Hide2!$A177, 'Full set Core Client Indicator'!$A$3:$A$351, 0), MATCH(Selection_Hide2!Z$5, 'Full set Core Client Indicator'!$A$3:$AB$3, 0))=\"\", \"\",  INDEX('Full set Core Client Indicator'!$A$3:$AB$351, MATCH(Selection_Hide2!$A177, 'Full set Core Client Indicator'!$A$3:$A$351, 0), MATCH(Selection_Hide2!Z$5, 'Full set Core Client Indicator'!$A$3:$AB$3, 0))), \"\")","v":""},{"$f":"IF(Z177<>\"\", IF(INDEX('Full set Core Client Indicator'!$A$3:$AB$351, MATCH(Selection_Hide2!$A177, 'Full set Core Client Indicator'!$A$3:$A$351, 0), MATCH(Selection_Hide2!AA$5, 'Full set Core Client Indicator'!$A$3:$AB$3, 0))=\"\", \"\",  INDEX('Full set Core Client Indicator'!$A$3:$AB$351, MATCH(Selection_Hide2!$A177, 'Full set Core Client Indicator'!$A$3:$A$351, 0), MATCH(Selection_Hide2!AA$5, 'Full set Core Client Indicator'!$A$3:$AB$3, 0))), \"\")","v":""},{"$f":"IF(AA177<>\"\", IF(INDEX('Full set Core Client Indicator'!$A$3:$AB$351, MATCH(Selection_Hide2!$A177, 'Full set Core Client Indicator'!$A$3:$A$351, 0), MATCH(Selection_Hide2!AB$5, 'Full set Core Client Indicator'!$A$3:$AB$3, 0))=\"\", \"\",  INDEX('Full set Core Client Indicator'!$A$3:$AB$351, MATCH(Selection_Hide2!$A177, 'Full set Core Client Indicator'!$A$3:$A$351, 0), MATCH(Selection_Hide2!AB$5, 'Full set Core Client Indicator'!$A$3:$AB$3, 0))), \"\")","v":""}]
[{"$f":"IF(AND(Selection_Hide1!C176<>0, Selection_Hide1!C176<>\"Grand Total\"), Selection_Hide1!C176, \"\")","v":""},{"$f":"IF(A178<>\"\", IF(INDEX('Full set Core Client Indicator'!$A$3:$AB$351, MATCH(Selection_Hide2!$A178, 'Full set Core Client Indicator'!$A$3:$A$351, 0), MATCH(Selection_Hide2!B$5, 'Full set Core Client Indicator'!$A$3:$AB$3, 0))=\"\", \"\",  INDEX('Full set Core Client Indicator'!$A$3:$AB$351, MATCH(Selection_Hide2!$A178, 'Full set Core Client Indicator'!$A$3:$A$351, 0), MATCH(Selection_Hide2!B$5, 'Full set Core Client Indicator'!$A$3:$AB$3, 0))), \"\")","v":""},{"$f":"IF(B178<>\"\", IF(INDEX('Full set Core Client Indicator'!$A$3:$AB$351, MATCH(Selection_Hide2!$A178, 'Full set Core Client Indicator'!$A$3:$A$351, 0), MATCH(Selection_Hide2!C$5, 'Full set Core Client Indicator'!$A$3:$AB$3, 0))=\"\", \"\",  INDEX('Full set Core Client Indicator'!$A$3:$AB$351, MATCH(Selection_Hide2!$A178, 'Full set Core Client Indicator'!$A$3:$A$351, 0), MATCH(Selection_Hide2!C$5, 'Full set Core Client Indicator'!$A$3:$AB$3, 0))), \"\")","v":""},{"$f":"IF(C178<>\"\", IF(INDEX('Full set Core Client Indicator'!$A$3:$AB$351, MATCH(Selection_Hide2!$A178, 'Full set Core Client Indicator'!$A$3:$A$351, 0), MATCH(Selection_Hide2!D$5, 'Full set Core Client Indicator'!$A$3:$AB$3, 0))=\"\", \"\",  INDEX('Full set Core Client Indicator'!$A$3:$AB$351, MATCH(Selection_Hide2!$A178, 'Full set Core Client Indicator'!$A$3:$A$351, 0), MATCH(Selection_Hide2!D$5, 'Full set Core Client Indicator'!$A$3:$AB$3, 0))), \"\")","v":""},{"$f":"IF(D178<>\"\", IF(INDEX('Full set Core Client Indicator'!$A$3:$AB$351, MATCH(Selection_Hide2!$A178, 'Full set Core Client Indicator'!$A$3:$A$351, 0), MATCH(Selection_Hide2!E$5, 'Full set Core Client Indicator'!$A$3:$AB$3, 0))=\"\", \"\",  INDEX('Full set Core Client Indicator'!$A$3:$AB$351, MATCH(Selection_Hide2!$A178, 'Full set Core Client Indicator'!$A$3:$A$351, 0), MATCH(Selection_Hide2!E$5, 'Full set Core Client Indicator'!$A$3:$AB$3, 0))), \"\")","v":""},{"$f":"IF(E178<>\"\", IF(INDEX('Full set Core Client Indicator'!$A$3:$AB$351, MATCH(Selection_Hide2!$A178, 'Full set Core Client Indicator'!$A$3:$A$351, 0), MATCH(Selection_Hide2!F$5, 'Full set Core Client Indicator'!$A$3:$AB$3, 0))=\"\", \"\",  INDEX('Full set Core Client Indicator'!$A$3:$AB$351, MATCH(Selection_Hide2!$A178, 'Full set Core Client Indicator'!$A$3:$A$351, 0), MATCH(Selection_Hide2!F$5, 'Full set Core Client Indicator'!$A$3:$AB$3, 0))), \"\")","v":""},{"$f":"IF(F178<>\"\", IF(INDEX('Full set Core Client Indicator'!$A$3:$AB$351, MATCH(Selection_Hide2!$A178, 'Full set Core Client Indicator'!$A$3:$A$351, 0), MATCH(Selection_Hide2!G$5, 'Full set Core Client Indicator'!$A$3:$AB$3, 0))=\"\", \"\",  INDEX('Full set Core Client Indicator'!$A$3:$AB$351, MATCH(Selection_Hide2!$A178, 'Full set Core Client Indicator'!$A$3:$A$351, 0), MATCH(Selection_Hide2!G$5, 'Full set Core Client Indicator'!$A$3:$AB$3, 0))), \"\")","v":""},{"$f":"IF(G178<>\"\", IF(INDEX('Full set Core Client Indicator'!$A$3:$AB$351, MATCH(Selection_Hide2!$A178, 'Full set Core Client Indicator'!$A$3:$A$351, 0), MATCH(Selection_Hide2!H$5, 'Full set Core Client Indicator'!$A$3:$AB$3, 0))=\"\", \"\",  INDEX('Full set Core Client Indicator'!$A$3:$AB$351, MATCH(Selection_Hide2!$A178, 'Full set Core Client Indicator'!$A$3:$A$351, 0), MATCH(Selection_Hide2!H$5, 'Full set Core Client Indicator'!$A$3:$AB$3, 0))), \"\")","v":""},{"$f":"IF(H178<>\"\", IF(INDEX('Full set Core Client Indicator'!$A$3:$AB$351, MATCH(Selection_Hide2!$A178, 'Full set Core Client Indicator'!$A$3:$A$351, 0), MATCH(Selection_Hide2!I$5, 'Full set Core Client Indicator'!$A$3:$AB$3, 0))=\"\", \"\",  INDEX('Full set Core Client Indicator'!$A$3:$AB$351, MATCH(Selection_Hide2!$A178, 'Full set Core Client Indicator'!$A$3:$A$351, 0), MATCH(Selection_Hide2!I$5, 'Full set Core Client Indicator'!$A$3:$AB$3, 0))), \"\")","v":""},{"$f":"IF(I178<>\"\", IF(INDEX('Full set Core Client Indicator'!$A$3:$AB$351, MATCH(Selection_Hide2!$A178, 'Full set Core Client Indicator'!$A$3:$A$351, 0), MATCH(Selection_Hide2!J$5, 'Full set Core Client Indicator'!$A$3:$AB$3, 0))=\"\", \"\",  INDEX('Full set Core Client Indicator'!$A$3:$AB$351, MATCH(Selection_Hide2!$A178, 'Full set Core Client Indicator'!$A$3:$A$351, 0), MATCH(Selection_Hide2!J$5, 'Full set Core Client Indicator'!$A$3:$AB$3, 0))), \"\")","v":""},{"$f":"IF(J178<>\"\", IF(INDEX('Full set Core Client Indicator'!$A$3:$AB$351, MATCH(Selection_Hide2!$A178, 'Full set Core Client Indicator'!$A$3:$A$351, 0), MATCH(Selection_Hide2!K$5, 'Full set Core Client Indicator'!$A$3:$AB$3, 0))=\"\", \"\",  INDEX('Full set Core Client Indicator'!$A$3:$AB$351, MATCH(Selection_Hide2!$A178, 'Full set Core Client Indicator'!$A$3:$A$351, 0), MATCH(Selection_Hide2!K$5, 'Full set Core Client Indicator'!$A$3:$AB$3, 0))), \"\")","v":""},{"$f":"IF(K178<>\"\", IF(INDEX('Full set Core Client Indicator'!$A$3:$AB$351, MATCH(Selection_Hide2!$A178, 'Full set Core Client Indicator'!$A$3:$A$351, 0), MATCH(Selection_Hide2!L$5, 'Full set Core Client Indicator'!$A$3:$AB$3, 0))=\"\", \"\",  INDEX('Full set Core Client Indicator'!$A$3:$AB$351, MATCH(Selection_Hide2!$A178, 'Full set Core Client Indicator'!$A$3:$A$351, 0), MATCH(Selection_Hide2!L$5, 'Full set Core Client Indicator'!$A$3:$AB$3, 0))), \"\")","v":""},{"$f":"IF(L178<>\"\", IF(INDEX('Full set Core Client Indicator'!$A$3:$AB$351, MATCH(Selection_Hide2!$A178, 'Full set Core Client Indicator'!$A$3:$A$351, 0), MATCH(Selection_Hide2!M$5, 'Full set Core Client Indicator'!$A$3:$AB$3, 0))=\"\", \"\",  INDEX('Full set Core Client Indicator'!$A$3:$AB$351, MATCH(Selection_Hide2!$A178, 'Full set Core Client Indicator'!$A$3:$A$351, 0), MATCH(Selection_Hide2!M$5, 'Full set Core Client Indicator'!$A$3:$AB$3, 0))), \"\")","v":""},{"$f":"IF(M178<>\"\", IF(INDEX('Full set Core Client Indicator'!$A$3:$AB$351, MATCH(Selection_Hide2!$A178, 'Full set Core Client Indicator'!$A$3:$A$351, 0), MATCH(Selection_Hide2!N$5, 'Full set Core Client Indicator'!$A$3:$AB$3, 0))=\"\", \"\",  INDEX('Full set Core Client Indicator'!$A$3:$AB$351, MATCH(Selection_Hide2!$A178, 'Full set Core Client Indicator'!$A$3:$A$351, 0), MATCH(Selection_Hide2!N$5, 'Full set Core Client Indicator'!$A$3:$AB$3, 0))), \"\")","v":""},{"$f":"IF(N178<>\"\", IF(INDEX('Full set Core Client Indicator'!$A$3:$AB$351, MATCH(Selection_Hide2!$A178, 'Full set Core Client Indicator'!$A$3:$A$351, 0), MATCH(Selection_Hide2!O$5, 'Full set Core Client Indicator'!$A$3:$AB$3, 0))=\"\", \"\",  INDEX('Full set Core Client Indicator'!$A$3:$AB$351, MATCH(Selection_Hide2!$A178, 'Full set Core Client Indicator'!$A$3:$A$351, 0), MATCH(Selection_Hide2!O$5, 'Full set Core Client Indicator'!$A$3:$AB$3, 0))), \"\")","v":""},{"$f":"IF(O178<>\"\", IF(INDEX('Full set Core Client Indicator'!$A$3:$AB$351, MATCH(Selection_Hide2!$A178, 'Full set Core Client Indicator'!$A$3:$A$351, 0), MATCH(Selection_Hide2!P$5, 'Full set Core Client Indicator'!$A$3:$AB$3, 0))=\"\", \"\",  INDEX('Full set Core Client Indicator'!$A$3:$AB$351, MATCH(Selection_Hide2!$A178, 'Full set Core Client Indicator'!$A$3:$A$351, 0), MATCH(Selection_Hide2!P$5, 'Full set Core Client Indicator'!$A$3:$AB$3, 0))), \"\")","v":""},{"$f":"IF(P178<>\"\", IF(INDEX('Full set Core Client Indicator'!$A$3:$AB$351, MATCH(Selection_Hide2!$A178, 'Full set Core Client Indicator'!$A$3:$A$351, 0), MATCH(Selection_Hide2!Q$5, 'Full set Core Client Indicator'!$A$3:$AB$3, 0))=\"\", \"\",  INDEX('Full set Core Client Indicator'!$A$3:$AB$351, MATCH(Selection_Hide2!$A178, 'Full set Core Client Indicator'!$A$3:$A$351, 0), MATCH(Selection_Hide2!Q$5, 'Full set Core Client Indicator'!$A$3:$AB$3, 0))), \"\")","v":""},{"$f":"IF(Q178<>\"\", IF(INDEX('Full set Core Client Indicator'!$A$3:$AB$351, MATCH(Selection_Hide2!$A178, 'Full set Core Client Indicator'!$A$3:$A$351, 0), MATCH(Selection_Hide2!R$5, 'Full set Core Client Indicator'!$A$3:$AB$3, 0))=\"\", \"\",  INDEX('Full set Core Client Indicator'!$A$3:$AB$351, MATCH(Selection_Hide2!$A178, 'Full set Core Client Indicator'!$A$3:$A$351, 0), MATCH(Selection_Hide2!R$5, 'Full set Core Client Indicator'!$A$3:$AB$3, 0))), \"\")","v":""},{"$f":"IF(R178<>\"\", IF(INDEX('Full set Core Client Indicator'!$A$3:$AB$351, MATCH(Selection_Hide2!$A178, 'Full set Core Client Indicator'!$A$3:$A$351, 0), MATCH(Selection_Hide2!S$5, 'Full set Core Client Indicator'!$A$3:$AB$3, 0))=\"\", \"\",  INDEX('Full set Core Client Indicator'!$A$3:$AB$351, MATCH(Selection_Hide2!$A178, 'Full set Core Client Indicator'!$A$3:$A$351, 0), MATCH(Selection_Hide2!S$5, 'Full set Core Client Indicator'!$A$3:$AB$3, 0))), \"\")","v":""},{"$f":"IF(S178<>\"\", IF(INDEX('Full set Core Client Indicator'!$A$3:$AB$351, MATCH(Selection_Hide2!$A178, 'Full set Core Client Indicator'!$A$3:$A$351, 0), MATCH(Selection_Hide2!T$5, 'Full set Core Client Indicator'!$A$3:$AB$3, 0))=\"\", \"\",  INDEX('Full set Core Client Indicator'!$A$3:$AB$351, MATCH(Selection_Hide2!$A178, 'Full set Core Client Indicator'!$A$3:$A$351, 0), MATCH(Selection_Hide2!T$5, 'Full set Core Client Indicator'!$A$3:$AB$3, 0))), \"\")","v":""},{"$f":"IF(T178<>\"\", IF(INDEX('Full set Core Client Indicator'!$A$3:$AB$351, MATCH(Selection_Hide2!$A178, 'Full set Core Client Indicator'!$A$3:$A$351, 0), MATCH(Selection_Hide2!U$5, 'Full set Core Client Indicator'!$A$3:$AB$3, 0))=\"\", \"\",  INDEX('Full set Core Client Indicator'!$A$3:$AB$351, MATCH(Selection_Hide2!$A178, 'Full set Core Client Indicator'!$A$3:$A$351, 0), MATCH(Selection_Hide2!U$5, 'Full set Core Client Indicator'!$A$3:$AB$3, 0))), \"\")","v":""},{"$f":"IF(U178<>\"\", IF(INDEX('Full set Core Client Indicator'!$A$3:$AB$351, MATCH(Selection_Hide2!$A178, 'Full set Core Client Indicator'!$A$3:$A$351, 0), MATCH(Selection_Hide2!V$5, 'Full set Core Client Indicator'!$A$3:$AB$3, 0))=\"\", \"\",  INDEX('Full set Core Client Indicator'!$A$3:$AB$351, MATCH(Selection_Hide2!$A178, 'Full set Core Client Indicator'!$A$3:$A$351, 0), MATCH(Selection_Hide2!V$5, 'Full set Core Client Indicator'!$A$3:$AB$3, 0))), \"\")","v":""},{"$f":"IF(V178<>\"\", IF(INDEX('Full set Core Client Indicator'!$A$3:$AB$351, MATCH(Selection_Hide2!$A178, 'Full set Core Client Indicator'!$A$3:$A$351, 0), MATCH(Selection_Hide2!W$5, 'Full set Core Client Indicator'!$A$3:$AB$3, 0))=\"\", \"\",  INDEX('Full set Core Client Indicator'!$A$3:$AB$351, MATCH(Selection_Hide2!$A178, 'Full set Core Client Indicator'!$A$3:$A$351, 0), MATCH(Selection_Hide2!W$5, 'Full set Core Client Indicator'!$A$3:$AB$3, 0))), \"\")","v":""},{"$f":"IF(W178<>\"\", IF(INDEX('Full set Core Client Indicator'!$A$3:$AB$351, MATCH(Selection_Hide2!$A178, 'Full set Core Client Indicator'!$A$3:$A$351, 0), MATCH(Selection_Hide2!X$5, 'Full set Core Client Indicator'!$A$3:$AB$3, 0))=\"\", \"\",  INDEX('Full set Core Client Indicator'!$A$3:$AB$351, MATCH(Selection_Hide2!$A178, 'Full set Core Client Indicator'!$A$3:$A$351, 0), MATCH(Selection_Hide2!X$5, 'Full set Core Client Indicator'!$A$3:$AB$3, 0))), \"\")","v":""},{"$f":"IF(X178<>\"\", IF(INDEX('Full set Core Client Indicator'!$A$3:$AB$351, MATCH(Selection_Hide2!$A178, 'Full set Core Client Indicator'!$A$3:$A$351, 0), MATCH(Selection_Hide2!Y$5, 'Full set Core Client Indicator'!$A$3:$AB$3, 0))=\"\", \"\",  INDEX('Full set Core Client Indicator'!$A$3:$AB$351, MATCH(Selection_Hide2!$A178, 'Full set Core Client Indicator'!$A$3:$A$351, 0), MATCH(Selection_Hide2!Y$5, 'Full set Core Client Indicator'!$A$3:$AB$3, 0))), \"\")","v":""},{"$f":"IF(Y178<>\"\", IF(INDEX('Full set Core Client Indicator'!$A$3:$AB$351, MATCH(Selection_Hide2!$A178, 'Full set Core Client Indicator'!$A$3:$A$351, 0), MATCH(Selection_Hide2!Z$5, 'Full set Core Client Indicator'!$A$3:$AB$3, 0))=\"\", \"\",  INDEX('Full set Core Client Indicator'!$A$3:$AB$351, MATCH(Selection_Hide2!$A178, 'Full set Core Client Indicator'!$A$3:$A$351, 0), MATCH(Selection_Hide2!Z$5, 'Full set Core Client Indicator'!$A$3:$AB$3, 0))), \"\")","v":""},{"$f":"IF(Z178<>\"\", IF(INDEX('Full set Core Client Indicator'!$A$3:$AB$351, MATCH(Selection_Hide2!$A178, 'Full set Core Client Indicator'!$A$3:$A$351, 0), MATCH(Selection_Hide2!AA$5, 'Full set Core Client Indicator'!$A$3:$AB$3, 0))=\"\", \"\",  INDEX('Full set Core Client Indicator'!$A$3:$AB$351, MATCH(Selection_Hide2!$A178, 'Full set Core Client Indicator'!$A$3:$A$351, 0), MATCH(Selection_Hide2!AA$5, 'Full set Core Client Indicator'!$A$3:$AB$3, 0))), \"\")","v":""},{"$f":"IF(AA178<>\"\", IF(INDEX('Full set Core Client Indicator'!$A$3:$AB$351, MATCH(Selection_Hide2!$A178, 'Full set Core Client Indicator'!$A$3:$A$351, 0), MATCH(Selection_Hide2!AB$5, 'Full set Core Client Indicator'!$A$3:$AB$3, 0))=\"\", \"\",  INDEX('Full set Core Client Indicator'!$A$3:$AB$351, MATCH(Selection_Hide2!$A178, 'Full set Core Client Indicator'!$A$3:$A$351, 0), MATCH(Selection_Hide2!AB$5, 'Full set Core Client Indicator'!$A$3:$AB$3, 0))), \"\")","v":""}]
[{"$f":"IF(AND(Selection_Hide1!C177<>0, Selection_Hide1!C177<>\"Grand Total\"), Selection_Hide1!C177, \"\")","v":""},{"$f":"IF(A179<>\"\", IF(INDEX('Full set Core Client Indicator'!$A$3:$AB$351, MATCH(Selection_Hide2!$A179, 'Full set Core Client Indicator'!$A$3:$A$351, 0), MATCH(Selection_Hide2!B$5, 'Full set Core Client Indicator'!$A$3:$AB$3, 0))=\"\", \"\",  INDEX('Full set Core Client Indicator'!$A$3:$AB$351, MATCH(Selection_Hide2!$A179, 'Full set Core Client Indicator'!$A$3:$A$351, 0), MATCH(Selection_Hide2!B$5, 'Full set Core Client Indicator'!$A$3:$AB$3, 0))), \"\")","v":""},{"$f":"IF(B179<>\"\", IF(INDEX('Full set Core Client Indicator'!$A$3:$AB$351, MATCH(Selection_Hide2!$A179, 'Full set Core Client Indicator'!$A$3:$A$351, 0), MATCH(Selection_Hide2!C$5, 'Full set Core Client Indicator'!$A$3:$AB$3, 0))=\"\", \"\",  INDEX('Full set Core Client Indicator'!$A$3:$AB$351, MATCH(Selection_Hide2!$A179, 'Full set Core Client Indicator'!$A$3:$A$351, 0), MATCH(Selection_Hide2!C$5, 'Full set Core Client Indicator'!$A$3:$AB$3, 0))), \"\")","v":""},{"$f":"IF(C179<>\"\", IF(INDEX('Full set Core Client Indicator'!$A$3:$AB$351, MATCH(Selection_Hide2!$A179, 'Full set Core Client Indicator'!$A$3:$A$351, 0), MATCH(Selection_Hide2!D$5, 'Full set Core Client Indicator'!$A$3:$AB$3, 0))=\"\", \"\",  INDEX('Full set Core Client Indicator'!$A$3:$AB$351, MATCH(Selection_Hide2!$A179, 'Full set Core Client Indicator'!$A$3:$A$351, 0), MATCH(Selection_Hide2!D$5, 'Full set Core Client Indicator'!$A$3:$AB$3, 0))), \"\")","v":""},{"$f":"IF(D179<>\"\", IF(INDEX('Full set Core Client Indicator'!$A$3:$AB$351, MATCH(Selection_Hide2!$A179, 'Full set Core Client Indicator'!$A$3:$A$351, 0), MATCH(Selection_Hide2!E$5, 'Full set Core Client Indicator'!$A$3:$AB$3, 0))=\"\", \"\",  INDEX('Full set Core Client Indicator'!$A$3:$AB$351, MATCH(Selection_Hide2!$A179, 'Full set Core Client Indicator'!$A$3:$A$351, 0), MATCH(Selection_Hide2!E$5, 'Full set Core Client Indicator'!$A$3:$AB$3, 0))), \"\")","v":""},{"$f":"IF(E179<>\"\", IF(INDEX('Full set Core Client Indicator'!$A$3:$AB$351, MATCH(Selection_Hide2!$A179, 'Full set Core Client Indicator'!$A$3:$A$351, 0), MATCH(Selection_Hide2!F$5, 'Full set Core Client Indicator'!$A$3:$AB$3, 0))=\"\", \"\",  INDEX('Full set Core Client Indicator'!$A$3:$AB$351, MATCH(Selection_Hide2!$A179, 'Full set Core Client Indicator'!$A$3:$A$351, 0), MATCH(Selection_Hide2!F$5, 'Full set Core Client Indicator'!$A$3:$AB$3, 0))), \"\")","v":""},{"$f":"IF(F179<>\"\", IF(INDEX('Full set Core Client Indicator'!$A$3:$AB$351, MATCH(Selection_Hide2!$A179, 'Full set Core Client Indicator'!$A$3:$A$351, 0), MATCH(Selection_Hide2!G$5, 'Full set Core Client Indicator'!$A$3:$AB$3, 0))=\"\", \"\",  INDEX('Full set Core Client Indicator'!$A$3:$AB$351, MATCH(Selection_Hide2!$A179, 'Full set Core Client Indicator'!$A$3:$A$351, 0), MATCH(Selection_Hide2!G$5, 'Full set Core Client Indicator'!$A$3:$AB$3, 0))), \"\")","v":""},{"$f":"IF(G179<>\"\", IF(INDEX('Full set Core Client Indicator'!$A$3:$AB$351, MATCH(Selection_Hide2!$A179, 'Full set Core Client Indicator'!$A$3:$A$351, 0), MATCH(Selection_Hide2!H$5, 'Full set Core Client Indicator'!$A$3:$AB$3, 0))=\"\", \"\",  INDEX('Full set Core Client Indicator'!$A$3:$AB$351, MATCH(Selection_Hide2!$A179, 'Full set Core Client Indicator'!$A$3:$A$351, 0), MATCH(Selection_Hide2!H$5, 'Full set Core Client Indicator'!$A$3:$AB$3, 0))), \"\")","v":""},{"$f":"IF(H179<>\"\", IF(INDEX('Full set Core Client Indicator'!$A$3:$AB$351, MATCH(Selection_Hide2!$A179, 'Full set Core Client Indicator'!$A$3:$A$351, 0), MATCH(Selection_Hide2!I$5, 'Full set Core Client Indicator'!$A$3:$AB$3, 0))=\"\", \"\",  INDEX('Full set Core Client Indicator'!$A$3:$AB$351, MATCH(Selection_Hide2!$A179, 'Full set Core Client Indicator'!$A$3:$A$351, 0), MATCH(Selection_Hide2!I$5, 'Full set Core Client Indicator'!$A$3:$AB$3, 0))), \"\")","v":""},{"$f":"IF(I179<>\"\", IF(INDEX('Full set Core Client Indicator'!$A$3:$AB$351, MATCH(Selection_Hide2!$A179, 'Full set Core Client Indicator'!$A$3:$A$351, 0), MATCH(Selection_Hide2!J$5, 'Full set Core Client Indicator'!$A$3:$AB$3, 0))=\"\", \"\",  INDEX('Full set Core Client Indicator'!$A$3:$AB$351, MATCH(Selection_Hide2!$A179, 'Full set Core Client Indicator'!$A$3:$A$351, 0), MATCH(Selection_Hide2!J$5, 'Full set Core Client Indicator'!$A$3:$AB$3, 0))), \"\")","v":""},{"$f":"IF(J179<>\"\", IF(INDEX('Full set Core Client Indicator'!$A$3:$AB$351, MATCH(Selection_Hide2!$A179, 'Full set Core Client Indicator'!$A$3:$A$351, 0), MATCH(Selection_Hide2!K$5, 'Full set Core Client Indicator'!$A$3:$AB$3, 0))=\"\", \"\",  INDEX('Full set Core Client Indicator'!$A$3:$AB$351, MATCH(Selection_Hide2!$A179, 'Full set Core Client Indicator'!$A$3:$A$351, 0), MATCH(Selection_Hide2!K$5, 'Full set Core Client Indicator'!$A$3:$AB$3, 0))), \"\")","v":""},{"$f":"IF(K179<>\"\", IF(INDEX('Full set Core Client Indicator'!$A$3:$AB$351, MATCH(Selection_Hide2!$A179, 'Full set Core Client Indicator'!$A$3:$A$351, 0), MATCH(Selection_Hide2!L$5, 'Full set Core Client Indicator'!$A$3:$AB$3, 0))=\"\", \"\",  INDEX('Full set Core Client Indicator'!$A$3:$AB$351, MATCH(Selection_Hide2!$A179, 'Full set Core Client Indicator'!$A$3:$A$351, 0), MATCH(Selection_Hide2!L$5, 'Full set Core Client Indicator'!$A$3:$AB$3, 0))), \"\")","v":""},{"$f":"IF(L179<>\"\", IF(INDEX('Full set Core Client Indicator'!$A$3:$AB$351, MATCH(Selection_Hide2!$A179, 'Full set Core Client Indicator'!$A$3:$A$351, 0), MATCH(Selection_Hide2!M$5, 'Full set Core Client Indicator'!$A$3:$AB$3, 0))=\"\", \"\",  INDEX('Full set Core Client Indicator'!$A$3:$AB$351, MATCH(Selection_Hide2!$A179, 'Full set Core Client Indicator'!$A$3:$A$351, 0), MATCH(Selection_Hide2!M$5, 'Full set Core Client Indicator'!$A$3:$AB$3, 0))), \"\")","v":""},{"$f":"IF(M179<>\"\", IF(INDEX('Full set Core Client Indicator'!$A$3:$AB$351, MATCH(Selection_Hide2!$A179, 'Full set Core Client Indicator'!$A$3:$A$351, 0), MATCH(Selection_Hide2!N$5, 'Full set Core Client Indicator'!$A$3:$AB$3, 0))=\"\", \"\",  INDEX('Full set Core Client Indicator'!$A$3:$AB$351, MATCH(Selection_Hide2!$A179, 'Full set Core Client Indicator'!$A$3:$A$351, 0), MATCH(Selection_Hide2!N$5, 'Full set Core Client Indicator'!$A$3:$AB$3, 0))), \"\")","v":""},{"$f":"IF(N179<>\"\", IF(INDEX('Full set Core Client Indicator'!$A$3:$AB$351, MATCH(Selection_Hide2!$A179, 'Full set Core Client Indicator'!$A$3:$A$351, 0), MATCH(Selection_Hide2!O$5, 'Full set Core Client Indicator'!$A$3:$AB$3, 0))=\"\", \"\",  INDEX('Full set Core Client Indicator'!$A$3:$AB$351, MATCH(Selection_Hide2!$A179, 'Full set Core Client Indicator'!$A$3:$A$351, 0), MATCH(Selection_Hide2!O$5, 'Full set Core Client Indicator'!$A$3:$AB$3, 0))), \"\")","v":""},{"$f":"IF(O179<>\"\", IF(INDEX('Full set Core Client Indicator'!$A$3:$AB$351, MATCH(Selection_Hide2!$A179, 'Full set Core Client Indicator'!$A$3:$A$351, 0), MATCH(Selection_Hide2!P$5, 'Full set Core Client Indicator'!$A$3:$AB$3, 0))=\"\", \"\",  INDEX('Full set Core Client Indicator'!$A$3:$AB$351, MATCH(Selection_Hide2!$A179, 'Full set Core Client Indicator'!$A$3:$A$351, 0), MATCH(Selection_Hide2!P$5, 'Full set Core Client Indicator'!$A$3:$AB$3, 0))), \"\")","v":""},{"$f":"IF(P179<>\"\", IF(INDEX('Full set Core Client Indicator'!$A$3:$AB$351, MATCH(Selection_Hide2!$A179, 'Full set Core Client Indicator'!$A$3:$A$351, 0), MATCH(Selection_Hide2!Q$5, 'Full set Core Client Indicator'!$A$3:$AB$3, 0))=\"\", \"\",  INDEX('Full set Core Client Indicator'!$A$3:$AB$351, MATCH(Selection_Hide2!$A179, 'Full set Core Client Indicator'!$A$3:$A$351, 0), MATCH(Selection_Hide2!Q$5, 'Full set Core Client Indicator'!$A$3:$AB$3, 0))), \"\")","v":""},{"$f":"IF(Q179<>\"\", IF(INDEX('Full set Core Client Indicator'!$A$3:$AB$351, MATCH(Selection_Hide2!$A179, 'Full set Core Client Indicator'!$A$3:$A$351, 0), MATCH(Selection_Hide2!R$5, 'Full set Core Client Indicator'!$A$3:$AB$3, 0))=\"\", \"\",  INDEX('Full set Core Client Indicator'!$A$3:$AB$351, MATCH(Selection_Hide2!$A179, 'Full set Core Client Indicator'!$A$3:$A$351, 0), MATCH(Selection_Hide2!R$5, 'Full set Core Client Indicator'!$A$3:$AB$3, 0))), \"\")","v":""},{"$f":"IF(R179<>\"\", IF(INDEX('Full set Core Client Indicator'!$A$3:$AB$351, MATCH(Selection_Hide2!$A179, 'Full set Core Client Indicator'!$A$3:$A$351, 0), MATCH(Selection_Hide2!S$5, 'Full set Core Client Indicator'!$A$3:$AB$3, 0))=\"\", \"\",  INDEX('Full set Core Client Indicator'!$A$3:$AB$351, MATCH(Selection_Hide2!$A179, 'Full set Core Client Indicator'!$A$3:$A$351, 0), MATCH(Selection_Hide2!S$5, 'Full set Core Client Indicator'!$A$3:$AB$3, 0))), \"\")","v":""},{"$f":"IF(S179<>\"\", IF(INDEX('Full set Core Client Indicator'!$A$3:$AB$351, MATCH(Selection_Hide2!$A179, 'Full set Core Client Indicator'!$A$3:$A$351, 0), MATCH(Selection_Hide2!T$5, 'Full set Core Client Indicator'!$A$3:$AB$3, 0))=\"\", \"\",  INDEX('Full set Core Client Indicator'!$A$3:$AB$351, MATCH(Selection_Hide2!$A179, 'Full set Core Client Indicator'!$A$3:$A$351, 0), MATCH(Selection_Hide2!T$5, 'Full set Core Client Indicator'!$A$3:$AB$3, 0))), \"\")","v":""},{"$f":"IF(T179<>\"\", IF(INDEX('Full set Core Client Indicator'!$A$3:$AB$351, MATCH(Selection_Hide2!$A179, 'Full set Core Client Indicator'!$A$3:$A$351, 0), MATCH(Selection_Hide2!U$5, 'Full set Core Client Indicator'!$A$3:$AB$3, 0))=\"\", \"\",  INDEX('Full set Core Client Indicator'!$A$3:$AB$351, MATCH(Selection_Hide2!$A179, 'Full set Core Client Indicator'!$A$3:$A$351, 0), MATCH(Selection_Hide2!U$5, 'Full set Core Client Indicator'!$A$3:$AB$3, 0))), \"\")","v":""},{"$f":"IF(U179<>\"\", IF(INDEX('Full set Core Client Indicator'!$A$3:$AB$351, MATCH(Selection_Hide2!$A179, 'Full set Core Client Indicator'!$A$3:$A$351, 0), MATCH(Selection_Hide2!V$5, 'Full set Core Client Indicator'!$A$3:$AB$3, 0))=\"\", \"\",  INDEX('Full set Core Client Indicator'!$A$3:$AB$351, MATCH(Selection_Hide2!$A179, 'Full set Core Client Indicator'!$A$3:$A$351, 0), MATCH(Selection_Hide2!V$5, 'Full set Core Client Indicator'!$A$3:$AB$3, 0))), \"\")","v":""},{"$f":"IF(V179<>\"\", IF(INDEX('Full set Core Client Indicator'!$A$3:$AB$351, MATCH(Selection_Hide2!$A179, 'Full set Core Client Indicator'!$A$3:$A$351, 0), MATCH(Selection_Hide2!W$5, 'Full set Core Client Indicator'!$A$3:$AB$3, 0))=\"\", \"\",  INDEX('Full set Core Client Indicator'!$A$3:$AB$351, MATCH(Selection_Hide2!$A179, 'Full set Core Client Indicator'!$A$3:$A$351, 0), MATCH(Selection_Hide2!W$5, 'Full set Core Client Indicator'!$A$3:$AB$3, 0))), \"\")","v":""},{"$f":"IF(W179<>\"\", IF(INDEX('Full set Core Client Indicator'!$A$3:$AB$351, MATCH(Selection_Hide2!$A179, 'Full set Core Client Indicator'!$A$3:$A$351, 0), MATCH(Selection_Hide2!X$5, 'Full set Core Client Indicator'!$A$3:$AB$3, 0))=\"\", \"\",  INDEX('Full set Core Client Indicator'!$A$3:$AB$351, MATCH(Selection_Hide2!$A179, 'Full set Core Client Indicator'!$A$3:$A$351, 0), MATCH(Selection_Hide2!X$5, 'Full set Core Client Indicator'!$A$3:$AB$3, 0))), \"\")","v":""},{"$f":"IF(X179<>\"\", IF(INDEX('Full set Core Client Indicator'!$A$3:$AB$351, MATCH(Selection_Hide2!$A179, 'Full set Core Client Indicator'!$A$3:$A$351, 0), MATCH(Selection_Hide2!Y$5, 'Full set Core Client Indicator'!$A$3:$AB$3, 0))=\"\", \"\",  INDEX('Full set Core Client Indicator'!$A$3:$AB$351, MATCH(Selection_Hide2!$A179, 'Full set Core Client Indicator'!$A$3:$A$351, 0), MATCH(Selection_Hide2!Y$5, 'Full set Core Client Indicator'!$A$3:$AB$3, 0))), \"\")","v":""},{"$f":"IF(Y179<>\"\", IF(INDEX('Full set Core Client Indicator'!$A$3:$AB$351, MATCH(Selection_Hide2!$A179, 'Full set Core Client Indicator'!$A$3:$A$351, 0), MATCH(Selection_Hide2!Z$5, 'Full set Core Client Indicator'!$A$3:$AB$3, 0))=\"\", \"\",  INDEX('Full set Core Client Indicator'!$A$3:$AB$351, MATCH(Selection_Hide2!$A179, 'Full set Core Client Indicator'!$A$3:$A$351, 0), MATCH(Selection_Hide2!Z$5, 'Full set Core Client Indicator'!$A$3:$AB$3, 0))), \"\")","v":""},{"$f":"IF(Z179<>\"\", IF(INDEX('Full set Core Client Indicator'!$A$3:$AB$351, MATCH(Selection_Hide2!$A179, 'Full set Core Client Indicator'!$A$3:$A$351, 0), MATCH(Selection_Hide2!AA$5, 'Full set Core Client Indicator'!$A$3:$AB$3, 0))=\"\", \"\",  INDEX('Full set Core Client Indicator'!$A$3:$AB$351, MATCH(Selection_Hide2!$A179, 'Full set Core Client Indicator'!$A$3:$A$351, 0), MATCH(Selection_Hide2!AA$5, 'Full set Core Client Indicator'!$A$3:$AB$3, 0))), \"\")","v":""},{"$f":"IF(AA179<>\"\", IF(INDEX('Full set Core Client Indicator'!$A$3:$AB$351, MATCH(Selection_Hide2!$A179, 'Full set Core Client Indicator'!$A$3:$A$351, 0), MATCH(Selection_Hide2!AB$5, 'Full set Core Client Indicator'!$A$3:$AB$3, 0))=\"\", \"\",  INDEX('Full set Core Client Indicator'!$A$3:$AB$351, MATCH(Selection_Hide2!$A179, 'Full set Core Client Indicator'!$A$3:$A$351, 0), MATCH(Selection_Hide2!AB$5, 'Full set Core Client Indicator'!$A$3:$AB$3, 0))), \"\")","v":""}]
[{"$f":"IF(AND(Selection_Hide1!C178<>0, Selection_Hide1!C178<>\"Grand Total\"), Selection_Hide1!C178, \"\")","v":""},{"$f":"IF(A180<>\"\", IF(INDEX('Full set Core Client Indicator'!$A$3:$AB$351, MATCH(Selection_Hide2!$A180, 'Full set Core Client Indicator'!$A$3:$A$351, 0), MATCH(Selection_Hide2!B$5, 'Full set Core Client Indicator'!$A$3:$AB$3, 0))=\"\", \"\",  INDEX('Full set Core Client Indicator'!$A$3:$AB$351, MATCH(Selection_Hide2!$A180, 'Full set Core Client Indicator'!$A$3:$A$351, 0), MATCH(Selection_Hide2!B$5, 'Full set Core Client Indicator'!$A$3:$AB$3, 0))), \"\")","v":""},{"$f":"IF(B180<>\"\", IF(INDEX('Full set Core Client Indicator'!$A$3:$AB$351, MATCH(Selection_Hide2!$A180, 'Full set Core Client Indicator'!$A$3:$A$351, 0), MATCH(Selection_Hide2!C$5, 'Full set Core Client Indicator'!$A$3:$AB$3, 0))=\"\", \"\",  INDEX('Full set Core Client Indicator'!$A$3:$AB$351, MATCH(Selection_Hide2!$A180, 'Full set Core Client Indicator'!$A$3:$A$351, 0), MATCH(Selection_Hide2!C$5, 'Full set Core Client Indicator'!$A$3:$AB$3, 0))), \"\")","v":""},{"$f":"IF(C180<>\"\", IF(INDEX('Full set Core Client Indicator'!$A$3:$AB$351, MATCH(Selection_Hide2!$A180, 'Full set Core Client Indicator'!$A$3:$A$351, 0), MATCH(Selection_Hide2!D$5, 'Full set Core Client Indicator'!$A$3:$AB$3, 0))=\"\", \"\",  INDEX('Full set Core Client Indicator'!$A$3:$AB$351, MATCH(Selection_Hide2!$A180, 'Full set Core Client Indicator'!$A$3:$A$351, 0), MATCH(Selection_Hide2!D$5, 'Full set Core Client Indicator'!$A$3:$AB$3, 0))), \"\")","v":""},{"$f":"IF(D180<>\"\", IF(INDEX('Full set Core Client Indicator'!$A$3:$AB$351, MATCH(Selection_Hide2!$A180, 'Full set Core Client Indicator'!$A$3:$A$351, 0), MATCH(Selection_Hide2!E$5, 'Full set Core Client Indicator'!$A$3:$AB$3, 0))=\"\", \"\",  INDEX('Full set Core Client Indicator'!$A$3:$AB$351, MATCH(Selection_Hide2!$A180, 'Full set Core Client Indicator'!$A$3:$A$351, 0), MATCH(Selection_Hide2!E$5, 'Full set Core Client Indicator'!$A$3:$AB$3, 0))), \"\")","v":""},{"$f":"IF(E180<>\"\", IF(INDEX('Full set Core Client Indicator'!$A$3:$AB$351, MATCH(Selection_Hide2!$A180, 'Full set Core Client Indicator'!$A$3:$A$351, 0), MATCH(Selection_Hide2!F$5, 'Full set Core Client Indicator'!$A$3:$AB$3, 0))=\"\", \"\",  INDEX('Full set Core Client Indicator'!$A$3:$AB$351, MATCH(Selection_Hide2!$A180, 'Full set Core Client Indicator'!$A$3:$A$351, 0), MATCH(Selection_Hide2!F$5, 'Full set Core Client Indicator'!$A$3:$AB$3, 0))), \"\")","v":""},{"$f":"IF(F180<>\"\", IF(INDEX('Full set Core Client Indicator'!$A$3:$AB$351, MATCH(Selection_Hide2!$A180, 'Full set Core Client Indicator'!$A$3:$A$351, 0), MATCH(Selection_Hide2!G$5, 'Full set Core Client Indicator'!$A$3:$AB$3, 0))=\"\", \"\",  INDEX('Full set Core Client Indicator'!$A$3:$AB$351, MATCH(Selection_Hide2!$A180, 'Full set Core Client Indicator'!$A$3:$A$351, 0), MATCH(Selection_Hide2!G$5, 'Full set Core Client Indicator'!$A$3:$AB$3, 0))), \"\")","v":""},{"$f":"IF(G180<>\"\", IF(INDEX('Full set Core Client Indicator'!$A$3:$AB$351, MATCH(Selection_Hide2!$A180, 'Full set Core Client Indicator'!$A$3:$A$351, 0), MATCH(Selection_Hide2!H$5, 'Full set Core Client Indicator'!$A$3:$AB$3, 0))=\"\", \"\",  INDEX('Full set Core Client Indicator'!$A$3:$AB$351, MATCH(Selection_Hide2!$A180, 'Full set Core Client Indicator'!$A$3:$A$351, 0), MATCH(Selection_Hide2!H$5, 'Full set Core Client Indicator'!$A$3:$AB$3, 0))), \"\")","v":""},{"$f":"IF(H180<>\"\", IF(INDEX('Full set Core Client Indicator'!$A$3:$AB$351, MATCH(Selection_Hide2!$A180, 'Full set Core Client Indicator'!$A$3:$A$351, 0), MATCH(Selection_Hide2!I$5, 'Full set Core Client Indicator'!$A$3:$AB$3, 0))=\"\", \"\",  INDEX('Full set Core Client Indicator'!$A$3:$AB$351, MATCH(Selection_Hide2!$A180, 'Full set Core Client Indicator'!$A$3:$A$351, 0), MATCH(Selection_Hide2!I$5, 'Full set Core Client Indicator'!$A$3:$AB$3, 0))), \"\")","v":""},{"$f":"IF(I180<>\"\", IF(INDEX('Full set Core Client Indicator'!$A$3:$AB$351, MATCH(Selection_Hide2!$A180, 'Full set Core Client Indicator'!$A$3:$A$351, 0), MATCH(Selection_Hide2!J$5, 'Full set Core Client Indicator'!$A$3:$AB$3, 0))=\"\", \"\",  INDEX('Full set Core Client Indicator'!$A$3:$AB$351, MATCH(Selection_Hide2!$A180, 'Full set Core Client Indicator'!$A$3:$A$351, 0), MATCH(Selection_Hide2!J$5, 'Full set Core Client Indicator'!$A$3:$AB$3, 0))), \"\")","v":""},{"$f":"IF(J180<>\"\", IF(INDEX('Full set Core Client Indicator'!$A$3:$AB$351, MATCH(Selection_Hide2!$A180, 'Full set Core Client Indicator'!$A$3:$A$351, 0), MATCH(Selection_Hide2!K$5, 'Full set Core Client Indicator'!$A$3:$AB$3, 0))=\"\", \"\",  INDEX('Full set Core Client Indicator'!$A$3:$AB$351, MATCH(Selection_Hide2!$A180, 'Full set Core Client Indicator'!$A$3:$A$351, 0), MATCH(Selection_Hide2!K$5, 'Full set Core Client Indicator'!$A$3:$AB$3, 0))), \"\")","v":""},{"$f":"IF(K180<>\"\", IF(INDEX('Full set Core Client Indicator'!$A$3:$AB$351, MATCH(Selection_Hide2!$A180, 'Full set Core Client Indicator'!$A$3:$A$351, 0), MATCH(Selection_Hide2!L$5, 'Full set Core Client Indicator'!$A$3:$AB$3, 0))=\"\", \"\",  INDEX('Full set Core Client Indicator'!$A$3:$AB$351, MATCH(Selection_Hide2!$A180, 'Full set Core Client Indicator'!$A$3:$A$351, 0), MATCH(Selection_Hide2!L$5, 'Full set Core Client Indicator'!$A$3:$AB$3, 0))), \"\")","v":""},{"$f":"IF(L180<>\"\", IF(INDEX('Full set Core Client Indicator'!$A$3:$AB$351, MATCH(Selection_Hide2!$A180, 'Full set Core Client Indicator'!$A$3:$A$351, 0), MATCH(Selection_Hide2!M$5, 'Full set Core Client Indicator'!$A$3:$AB$3, 0))=\"\", \"\",  INDEX('Full set Core Client Indicator'!$A$3:$AB$351, MATCH(Selection_Hide2!$A180, 'Full set Core Client Indicator'!$A$3:$A$351, 0), MATCH(Selection_Hide2!M$5, 'Full set Core Client Indicator'!$A$3:$AB$3, 0))), \"\")","v":""},{"$f":"IF(M180<>\"\", IF(INDEX('Full set Core Client Indicator'!$A$3:$AB$351, MATCH(Selection_Hide2!$A180, 'Full set Core Client Indicator'!$A$3:$A$351, 0), MATCH(Selection_Hide2!N$5, 'Full set Core Client Indicator'!$A$3:$AB$3, 0))=\"\", \"\",  INDEX('Full set Core Client Indicator'!$A$3:$AB$351, MATCH(Selection_Hide2!$A180, 'Full set Core Client Indicator'!$A$3:$A$351, 0), MATCH(Selection_Hide2!N$5, 'Full set Core Client Indicator'!$A$3:$AB$3, 0))), \"\")","v":""},{"$f":"IF(N180<>\"\", IF(INDEX('Full set Core Client Indicator'!$A$3:$AB$351, MATCH(Selection_Hide2!$A180, 'Full set Core Client Indicator'!$A$3:$A$351, 0), MATCH(Selection_Hide2!O$5, 'Full set Core Client Indicator'!$A$3:$AB$3, 0))=\"\", \"\",  INDEX('Full set Core Client Indicator'!$A$3:$AB$351, MATCH(Selection_Hide2!$A180, 'Full set Core Client Indicator'!$A$3:$A$351, 0), MATCH(Selection_Hide2!O$5, 'Full set Core Client Indicator'!$A$3:$AB$3, 0))), \"\")","v":""},{"$f":"IF(O180<>\"\", IF(INDEX('Full set Core Client Indicator'!$A$3:$AB$351, MATCH(Selection_Hide2!$A180, 'Full set Core Client Indicator'!$A$3:$A$351, 0), MATCH(Selection_Hide2!P$5, 'Full set Core Client Indicator'!$A$3:$AB$3, 0))=\"\", \"\",  INDEX('Full set Core Client Indicator'!$A$3:$AB$351, MATCH(Selection_Hide2!$A180, 'Full set Core Client Indicator'!$A$3:$A$351, 0), MATCH(Selection_Hide2!P$5, 'Full set Core Client Indicator'!$A$3:$AB$3, 0))), \"\")","v":""},{"$f":"IF(P180<>\"\", IF(INDEX('Full set Core Client Indicator'!$A$3:$AB$351, MATCH(Selection_Hide2!$A180, 'Full set Core Client Indicator'!$A$3:$A$351, 0), MATCH(Selection_Hide2!Q$5, 'Full set Core Client Indicator'!$A$3:$AB$3, 0))=\"\", \"\",  INDEX('Full set Core Client Indicator'!$A$3:$AB$351, MATCH(Selection_Hide2!$A180, 'Full set Core Client Indicator'!$A$3:$A$351, 0), MATCH(Selection_Hide2!Q$5, 'Full set Core Client Indicator'!$A$3:$AB$3, 0))), \"\")","v":""},{"$f":"IF(Q180<>\"\", IF(INDEX('Full set Core Client Indicator'!$A$3:$AB$351, MATCH(Selection_Hide2!$A180, 'Full set Core Client Indicator'!$A$3:$A$351, 0), MATCH(Selection_Hide2!R$5, 'Full set Core Client Indicator'!$A$3:$AB$3, 0))=\"\", \"\",  INDEX('Full set Core Client Indicator'!$A$3:$AB$351, MATCH(Selection_Hide2!$A180, 'Full set Core Client Indicator'!$A$3:$A$351, 0), MATCH(Selection_Hide2!R$5, 'Full set Core Client Indicator'!$A$3:$AB$3, 0))), \"\")","v":""},{"$f":"IF(R180<>\"\", IF(INDEX('Full set Core Client Indicator'!$A$3:$AB$351, MATCH(Selection_Hide2!$A180, 'Full set Core Client Indicator'!$A$3:$A$351, 0), MATCH(Selection_Hide2!S$5, 'Full set Core Client Indicator'!$A$3:$AB$3, 0))=\"\", \"\",  INDEX('Full set Core Client Indicator'!$A$3:$AB$351, MATCH(Selection_Hide2!$A180, 'Full set Core Client Indicator'!$A$3:$A$351, 0), MATCH(Selection_Hide2!S$5, 'Full set Core Client Indicator'!$A$3:$AB$3, 0))), \"\")","v":""},{"$f":"IF(S180<>\"\", IF(INDEX('Full set Core Client Indicator'!$A$3:$AB$351, MATCH(Selection_Hide2!$A180, 'Full set Core Client Indicator'!$A$3:$A$351, 0), MATCH(Selection_Hide2!T$5, 'Full set Core Client Indicator'!$A$3:$AB$3, 0))=\"\", \"\",  INDEX('Full set Core Client Indicator'!$A$3:$AB$351, MATCH(Selection_Hide2!$A180, 'Full set Core Client Indicator'!$A$3:$A$351, 0), MATCH(Selection_Hide2!T$5, 'Full set Core Client Indicator'!$A$3:$AB$3, 0))), \"\")","v":""},{"$f":"IF(T180<>\"\", IF(INDEX('Full set Core Client Indicator'!$A$3:$AB$351, MATCH(Selection_Hide2!$A180, 'Full set Core Client Indicator'!$A$3:$A$351, 0), MATCH(Selection_Hide2!U$5, 'Full set Core Client Indicator'!$A$3:$AB$3, 0))=\"\", \"\",  INDEX('Full set Core Client Indicator'!$A$3:$AB$351, MATCH(Selection_Hide2!$A180, 'Full set Core Client Indicator'!$A$3:$A$351, 0), MATCH(Selection_Hide2!U$5, 'Full set Core Client Indicator'!$A$3:$AB$3, 0))), \"\")","v":""},{"$f":"IF(U180<>\"\", IF(INDEX('Full set Core Client Indicator'!$A$3:$AB$351, MATCH(Selection_Hide2!$A180, 'Full set Core Client Indicator'!$A$3:$A$351, 0), MATCH(Selection_Hide2!V$5, 'Full set Core Client Indicator'!$A$3:$AB$3, 0))=\"\", \"\",  INDEX('Full set Core Client Indicator'!$A$3:$AB$351, MATCH(Selection_Hide2!$A180, 'Full set Core Client Indicator'!$A$3:$A$351, 0), MATCH(Selection_Hide2!V$5, 'Full set Core Client Indicator'!$A$3:$AB$3, 0))), \"\")","v":""},{"$f":"IF(V180<>\"\", IF(INDEX('Full set Core Client Indicator'!$A$3:$AB$351, MATCH(Selection_Hide2!$A180, 'Full set Core Client Indicator'!$A$3:$A$351, 0), MATCH(Selection_Hide2!W$5, 'Full set Core Client Indicator'!$A$3:$AB$3, 0))=\"\", \"\",  INDEX('Full set Core Client Indicator'!$A$3:$AB$351, MATCH(Selection_Hide2!$A180, 'Full set Core Client Indicator'!$A$3:$A$351, 0), MATCH(Selection_Hide2!W$5, 'Full set Core Client Indicator'!$A$3:$AB$3, 0))), \"\")","v":""},{"$f":"IF(W180<>\"\", IF(INDEX('Full set Core Client Indicator'!$A$3:$AB$351, MATCH(Selection_Hide2!$A180, 'Full set Core Client Indicator'!$A$3:$A$351, 0), MATCH(Selection_Hide2!X$5, 'Full set Core Client Indicator'!$A$3:$AB$3, 0))=\"\", \"\",  INDEX('Full set Core Client Indicator'!$A$3:$AB$351, MATCH(Selection_Hide2!$A180, 'Full set Core Client Indicator'!$A$3:$A$351, 0), MATCH(Selection_Hide2!X$5, 'Full set Core Client Indicator'!$A$3:$AB$3, 0))), \"\")","v":""},{"$f":"IF(X180<>\"\", IF(INDEX('Full set Core Client Indicator'!$A$3:$AB$351, MATCH(Selection_Hide2!$A180, 'Full set Core Client Indicator'!$A$3:$A$351, 0), MATCH(Selection_Hide2!Y$5, 'Full set Core Client Indicator'!$A$3:$AB$3, 0))=\"\", \"\",  INDEX('Full set Core Client Indicator'!$A$3:$AB$351, MATCH(Selection_Hide2!$A180, 'Full set Core Client Indicator'!$A$3:$A$351, 0), MATCH(Selection_Hide2!Y$5, 'Full set Core Client Indicator'!$A$3:$AB$3, 0))), \"\")","v":""},{"$f":"IF(Y180<>\"\", IF(INDEX('Full set Core Client Indicator'!$A$3:$AB$351, MATCH(Selection_Hide2!$A180, 'Full set Core Client Indicator'!$A$3:$A$351, 0), MATCH(Selection_Hide2!Z$5, 'Full set Core Client Indicator'!$A$3:$AB$3, 0))=\"\", \"\",  INDEX('Full set Core Client Indicator'!$A$3:$AB$351, MATCH(Selection_Hide2!$A180, 'Full set Core Client Indicator'!$A$3:$A$351, 0), MATCH(Selection_Hide2!Z$5, 'Full set Core Client Indicator'!$A$3:$AB$3, 0))), \"\")","v":""},{"$f":"IF(Z180<>\"\", IF(INDEX('Full set Core Client Indicator'!$A$3:$AB$351, MATCH(Selection_Hide2!$A180, 'Full set Core Client Indicator'!$A$3:$A$351, 0), MATCH(Selection_Hide2!AA$5, 'Full set Core Client Indicator'!$A$3:$AB$3, 0))=\"\", \"\",  INDEX('Full set Core Client Indicator'!$A$3:$AB$351, MATCH(Selection_Hide2!$A180, 'Full set Core Client Indicator'!$A$3:$A$351, 0), MATCH(Selection_Hide2!AA$5, 'Full set Core Client Indicator'!$A$3:$AB$3, 0))), \"\")","v":""},{"$f":"IF(AA180<>\"\", IF(INDEX('Full set Core Client Indicator'!$A$3:$AB$351, MATCH(Selection_Hide2!$A180, 'Full set Core Client Indicator'!$A$3:$A$351, 0), MATCH(Selection_Hide2!AB$5, 'Full set Core Client Indicator'!$A$3:$AB$3, 0))=\"\", \"\",  INDEX('Full set Core Client Indicator'!$A$3:$AB$351, MATCH(Selection_Hide2!$A180, 'Full set Core Client Indicator'!$A$3:$A$351, 0), MATCH(Selection_Hide2!AB$5, 'Full set Core Client Indicator'!$A$3:$AB$3, 0))), \"\")","v":""}]
[{"$f":"IF(AND(Selection_Hide1!C179<>0, Selection_Hide1!C179<>\"Grand Total\"), Selection_Hide1!C179, \"\")","v":""},{"$f":"IF(A181<>\"\", IF(INDEX('Full set Core Client Indicator'!$A$3:$AB$351, MATCH(Selection_Hide2!$A181, 'Full set Core Client Indicator'!$A$3:$A$351, 0), MATCH(Selection_Hide2!B$5, 'Full set Core Client Indicator'!$A$3:$AB$3, 0))=\"\", \"\",  INDEX('Full set Core Client Indicator'!$A$3:$AB$351, MATCH(Selection_Hide2!$A181, 'Full set Core Client Indicator'!$A$3:$A$351, 0), MATCH(Selection_Hide2!B$5, 'Full set Core Client Indicator'!$A$3:$AB$3, 0))), \"\")","v":""},{"$f":"IF(B181<>\"\", IF(INDEX('Full set Core Client Indicator'!$A$3:$AB$351, MATCH(Selection_Hide2!$A181, 'Full set Core Client Indicator'!$A$3:$A$351, 0), MATCH(Selection_Hide2!C$5, 'Full set Core Client Indicator'!$A$3:$AB$3, 0))=\"\", \"\",  INDEX('Full set Core Client Indicator'!$A$3:$AB$351, MATCH(Selection_Hide2!$A181, 'Full set Core Client Indicator'!$A$3:$A$351, 0), MATCH(Selection_Hide2!C$5, 'Full set Core Client Indicator'!$A$3:$AB$3, 0))), \"\")","v":""},{"$f":"IF(C181<>\"\", IF(INDEX('Full set Core Client Indicator'!$A$3:$AB$351, MATCH(Selection_Hide2!$A181, 'Full set Core Client Indicator'!$A$3:$A$351, 0), MATCH(Selection_Hide2!D$5, 'Full set Core Client Indicator'!$A$3:$AB$3, 0))=\"\", \"\",  INDEX('Full set Core Client Indicator'!$A$3:$AB$351, MATCH(Selection_Hide2!$A181, 'Full set Core Client Indicator'!$A$3:$A$351, 0), MATCH(Selection_Hide2!D$5, 'Full set Core Client Indicator'!$A$3:$AB$3, 0))), \"\")","v":""},{"$f":"IF(D181<>\"\", IF(INDEX('Full set Core Client Indicator'!$A$3:$AB$351, MATCH(Selection_Hide2!$A181, 'Full set Core Client Indicator'!$A$3:$A$351, 0), MATCH(Selection_Hide2!E$5, 'Full set Core Client Indicator'!$A$3:$AB$3, 0))=\"\", \"\",  INDEX('Full set Core Client Indicator'!$A$3:$AB$351, MATCH(Selection_Hide2!$A181, 'Full set Core Client Indicator'!$A$3:$A$351, 0), MATCH(Selection_Hide2!E$5, 'Full set Core Client Indicator'!$A$3:$AB$3, 0))), \"\")","v":""},{"$f":"IF(E181<>\"\", IF(INDEX('Full set Core Client Indicator'!$A$3:$AB$351, MATCH(Selection_Hide2!$A181, 'Full set Core Client Indicator'!$A$3:$A$351, 0), MATCH(Selection_Hide2!F$5, 'Full set Core Client Indicator'!$A$3:$AB$3, 0))=\"\", \"\",  INDEX('Full set Core Client Indicator'!$A$3:$AB$351, MATCH(Selection_Hide2!$A181, 'Full set Core Client Indicator'!$A$3:$A$351, 0), MATCH(Selection_Hide2!F$5, 'Full set Core Client Indicator'!$A$3:$AB$3, 0))), \"\")","v":""},{"$f":"IF(F181<>\"\", IF(INDEX('Full set Core Client Indicator'!$A$3:$AB$351, MATCH(Selection_Hide2!$A181, 'Full set Core Client Indicator'!$A$3:$A$351, 0), MATCH(Selection_Hide2!G$5, 'Full set Core Client Indicator'!$A$3:$AB$3, 0))=\"\", \"\",  INDEX('Full set Core Client Indicator'!$A$3:$AB$351, MATCH(Selection_Hide2!$A181, 'Full set Core Client Indicator'!$A$3:$A$351, 0), MATCH(Selection_Hide2!G$5, 'Full set Core Client Indicator'!$A$3:$AB$3, 0))), \"\")","v":""},{"$f":"IF(G181<>\"\", IF(INDEX('Full set Core Client Indicator'!$A$3:$AB$351, MATCH(Selection_Hide2!$A181, 'Full set Core Client Indicator'!$A$3:$A$351, 0), MATCH(Selection_Hide2!H$5, 'Full set Core Client Indicator'!$A$3:$AB$3, 0))=\"\", \"\",  INDEX('Full set Core Client Indicator'!$A$3:$AB$351, MATCH(Selection_Hide2!$A181, 'Full set Core Client Indicator'!$A$3:$A$351, 0), MATCH(Selection_Hide2!H$5, 'Full set Core Client Indicator'!$A$3:$AB$3, 0))), \"\")","v":""},{"$f":"IF(H181<>\"\", IF(INDEX('Full set Core Client Indicator'!$A$3:$AB$351, MATCH(Selection_Hide2!$A181, 'Full set Core Client Indicator'!$A$3:$A$351, 0), MATCH(Selection_Hide2!I$5, 'Full set Core Client Indicator'!$A$3:$AB$3, 0))=\"\", \"\",  INDEX('Full set Core Client Indicator'!$A$3:$AB$351, MATCH(Selection_Hide2!$A181, 'Full set Core Client Indicator'!$A$3:$A$351, 0), MATCH(Selection_Hide2!I$5, 'Full set Core Client Indicator'!$A$3:$AB$3, 0))), \"\")","v":""},{"$f":"IF(I181<>\"\", IF(INDEX('Full set Core Client Indicator'!$A$3:$AB$351, MATCH(Selection_Hide2!$A181, 'Full set Core Client Indicator'!$A$3:$A$351, 0), MATCH(Selection_Hide2!J$5, 'Full set Core Client Indicator'!$A$3:$AB$3, 0))=\"\", \"\",  INDEX('Full set Core Client Indicator'!$A$3:$AB$351, MATCH(Selection_Hide2!$A181, 'Full set Core Client Indicator'!$A$3:$A$351, 0), MATCH(Selection_Hide2!J$5, 'Full set Core Client Indicator'!$A$3:$AB$3, 0))), \"\")","v":""},{"$f":"IF(J181<>\"\", IF(INDEX('Full set Core Client Indicator'!$A$3:$AB$351, MATCH(Selection_Hide2!$A181, 'Full set Core Client Indicator'!$A$3:$A$351, 0), MATCH(Selection_Hide2!K$5, 'Full set Core Client Indicator'!$A$3:$AB$3, 0))=\"\", \"\",  INDEX('Full set Core Client Indicator'!$A$3:$AB$351, MATCH(Selection_Hide2!$A181, 'Full set Core Client Indicator'!$A$3:$A$351, 0), MATCH(Selection_Hide2!K$5, 'Full set Core Client Indicator'!$A$3:$AB$3, 0))), \"\")","v":""},{"$f":"IF(K181<>\"\", IF(INDEX('Full set Core Client Indicator'!$A$3:$AB$351, MATCH(Selection_Hide2!$A181, 'Full set Core Client Indicator'!$A$3:$A$351, 0), MATCH(Selection_Hide2!L$5, 'Full set Core Client Indicator'!$A$3:$AB$3, 0))=\"\", \"\",  INDEX('Full set Core Client Indicator'!$A$3:$AB$351, MATCH(Selection_Hide2!$A181, 'Full set Core Client Indicator'!$A$3:$A$351, 0), MATCH(Selection_Hide2!L$5, 'Full set Core Client Indicator'!$A$3:$AB$3, 0))), \"\")","v":""},{"$f":"IF(L181<>\"\", IF(INDEX('Full set Core Client Indicator'!$A$3:$AB$351, MATCH(Selection_Hide2!$A181, 'Full set Core Client Indicator'!$A$3:$A$351, 0), MATCH(Selection_Hide2!M$5, 'Full set Core Client Indicator'!$A$3:$AB$3, 0))=\"\", \"\",  INDEX('Full set Core Client Indicator'!$A$3:$AB$351, MATCH(Selection_Hide2!$A181, 'Full set Core Client Indicator'!$A$3:$A$351, 0), MATCH(Selection_Hide2!M$5, 'Full set Core Client Indicator'!$A$3:$AB$3, 0))), \"\")","v":""},{"$f":"IF(M181<>\"\", IF(INDEX('Full set Core Client Indicator'!$A$3:$AB$351, MATCH(Selection_Hide2!$A181, 'Full set Core Client Indicator'!$A$3:$A$351, 0), MATCH(Selection_Hide2!N$5, 'Full set Core Client Indicator'!$A$3:$AB$3, 0))=\"\", \"\",  INDEX('Full set Core Client Indicator'!$A$3:$AB$351, MATCH(Selection_Hide2!$A181, 'Full set Core Client Indicator'!$A$3:$A$351, 0), MATCH(Selection_Hide2!N$5, 'Full set Core Client Indicator'!$A$3:$AB$3, 0))), \"\")","v":""},{"$f":"IF(N181<>\"\", IF(INDEX('Full set Core Client Indicator'!$A$3:$AB$351, MATCH(Selection_Hide2!$A181, 'Full set Core Client Indicator'!$A$3:$A$351, 0), MATCH(Selection_Hide2!O$5, 'Full set Core Client Indicator'!$A$3:$AB$3, 0))=\"\", \"\",  INDEX('Full set Core Client Indicator'!$A$3:$AB$351, MATCH(Selection_Hide2!$A181, 'Full set Core Client Indicator'!$A$3:$A$351, 0), MATCH(Selection_Hide2!O$5, 'Full set Core Client Indicator'!$A$3:$AB$3, 0))), \"\")","v":""},{"$f":"IF(O181<>\"\", IF(INDEX('Full set Core Client Indicator'!$A$3:$AB$351, MATCH(Selection_Hide2!$A181, 'Full set Core Client Indicator'!$A$3:$A$351, 0), MATCH(Selection_Hide2!P$5, 'Full set Core Client Indicator'!$A$3:$AB$3, 0))=\"\", \"\",  INDEX('Full set Core Client Indicator'!$A$3:$AB$351, MATCH(Selection_Hide2!$A181, 'Full set Core Client Indicator'!$A$3:$A$351, 0), MATCH(Selection_Hide2!P$5, 'Full set Core Client Indicator'!$A$3:$AB$3, 0))), \"\")","v":""},{"$f":"IF(P181<>\"\", IF(INDEX('Full set Core Client Indicator'!$A$3:$AB$351, MATCH(Selection_Hide2!$A181, 'Full set Core Client Indicator'!$A$3:$A$351, 0), MATCH(Selection_Hide2!Q$5, 'Full set Core Client Indicator'!$A$3:$AB$3, 0))=\"\", \"\",  INDEX('Full set Core Client Indicator'!$A$3:$AB$351, MATCH(Selection_Hide2!$A181, 'Full set Core Client Indicator'!$A$3:$A$351, 0), MATCH(Selection_Hide2!Q$5, 'Full set Core Client Indicator'!$A$3:$AB$3, 0))), \"\")","v":""},{"$f":"IF(Q181<>\"\", IF(INDEX('Full set Core Client Indicator'!$A$3:$AB$351, MATCH(Selection_Hide2!$A181, 'Full set Core Client Indicator'!$A$3:$A$351, 0), MATCH(Selection_Hide2!R$5, 'Full set Core Client Indicator'!$A$3:$AB$3, 0))=\"\", \"\",  INDEX('Full set Core Client Indicator'!$A$3:$AB$351, MATCH(Selection_Hide2!$A181, 'Full set Core Client Indicator'!$A$3:$A$351, 0), MATCH(Selection_Hide2!R$5, 'Full set Core Client Indicator'!$A$3:$AB$3, 0))), \"\")","v":""},{"$f":"IF(R181<>\"\", IF(INDEX('Full set Core Client Indicator'!$A$3:$AB$351, MATCH(Selection_Hide2!$A181, 'Full set Core Client Indicator'!$A$3:$A$351, 0), MATCH(Selection_Hide2!S$5, 'Full set Core Client Indicator'!$A$3:$AB$3, 0))=\"\", \"\",  INDEX('Full set Core Client Indicator'!$A$3:$AB$351, MATCH(Selection_Hide2!$A181, 'Full set Core Client Indicator'!$A$3:$A$351, 0), MATCH(Selection_Hide2!S$5, 'Full set Core Client Indicator'!$A$3:$AB$3, 0))), \"\")","v":""},{"$f":"IF(S181<>\"\", IF(INDEX('Full set Core Client Indicator'!$A$3:$AB$351, MATCH(Selection_Hide2!$A181, 'Full set Core Client Indicator'!$A$3:$A$351, 0), MATCH(Selection_Hide2!T$5, 'Full set Core Client Indicator'!$A$3:$AB$3, 0))=\"\", \"\",  INDEX('Full set Core Client Indicator'!$A$3:$AB$351, MATCH(Selection_Hide2!$A181, 'Full set Core Client Indicator'!$A$3:$A$351, 0), MATCH(Selection_Hide2!T$5, 'Full set Core Client Indicator'!$A$3:$AB$3, 0))), \"\")","v":""},{"$f":"IF(T181<>\"\", IF(INDEX('Full set Core Client Indicator'!$A$3:$AB$351, MATCH(Selection_Hide2!$A181, 'Full set Core Client Indicator'!$A$3:$A$351, 0), MATCH(Selection_Hide2!U$5, 'Full set Core Client Indicator'!$A$3:$AB$3, 0))=\"\", \"\",  INDEX('Full set Core Client Indicator'!$A$3:$AB$351, MATCH(Selection_Hide2!$A181, 'Full set Core Client Indicator'!$A$3:$A$351, 0), MATCH(Selection_Hide2!U$5, 'Full set Core Client Indicator'!$A$3:$AB$3, 0))), \"\")","v":""},{"$f":"IF(U181<>\"\", IF(INDEX('Full set Core Client Indicator'!$A$3:$AB$351, MATCH(Selection_Hide2!$A181, 'Full set Core Client Indicator'!$A$3:$A$351, 0), MATCH(Selection_Hide2!V$5, 'Full set Core Client Indicator'!$A$3:$AB$3, 0))=\"\", \"\",  INDEX('Full set Core Client Indicator'!$A$3:$AB$351, MATCH(Selection_Hide2!$A181, 'Full set Core Client Indicator'!$A$3:$A$351, 0), MATCH(Selection_Hide2!V$5, 'Full set Core Client Indicator'!$A$3:$AB$3, 0))), \"\")","v":""},{"$f":"IF(V181<>\"\", IF(INDEX('Full set Core Client Indicator'!$A$3:$AB$351, MATCH(Selection_Hide2!$A181, 'Full set Core Client Indicator'!$A$3:$A$351, 0), MATCH(Selection_Hide2!W$5, 'Full set Core Client Indicator'!$A$3:$AB$3, 0))=\"\", \"\",  INDEX('Full set Core Client Indicator'!$A$3:$AB$351, MATCH(Selection_Hide2!$A181, 'Full set Core Client Indicator'!$A$3:$A$351, 0), MATCH(Selection_Hide2!W$5, 'Full set Core Client Indicator'!$A$3:$AB$3, 0))), \"\")","v":""},{"$f":"IF(W181<>\"\", IF(INDEX('Full set Core Client Indicator'!$A$3:$AB$351, MATCH(Selection_Hide2!$A181, 'Full set Core Client Indicator'!$A$3:$A$351, 0), MATCH(Selection_Hide2!X$5, 'Full set Core Client Indicator'!$A$3:$AB$3, 0))=\"\", \"\",  INDEX('Full set Core Client Indicator'!$A$3:$AB$351, MATCH(Selection_Hide2!$A181, 'Full set Core Client Indicator'!$A$3:$A$351, 0), MATCH(Selection_Hide2!X$5, 'Full set Core Client Indicator'!$A$3:$AB$3, 0))), \"\")","v":""},{"$f":"IF(X181<>\"\", IF(INDEX('Full set Core Client Indicator'!$A$3:$AB$351, MATCH(Selection_Hide2!$A181, 'Full set Core Client Indicator'!$A$3:$A$351, 0), MATCH(Selection_Hide2!Y$5, 'Full set Core Client Indicator'!$A$3:$AB$3, 0))=\"\", \"\",  INDEX('Full set Core Client Indicator'!$A$3:$AB$351, MATCH(Selection_Hide2!$A181, 'Full set Core Client Indicator'!$A$3:$A$351, 0), MATCH(Selection_Hide2!Y$5, 'Full set Core Client Indicator'!$A$3:$AB$3, 0))), \"\")","v":""},{"$f":"IF(Y181<>\"\", IF(INDEX('Full set Core Client Indicator'!$A$3:$AB$351, MATCH(Selection_Hide2!$A181, 'Full set Core Client Indicator'!$A$3:$A$351, 0), MATCH(Selection_Hide2!Z$5, 'Full set Core Client Indicator'!$A$3:$AB$3, 0))=\"\", \"\",  INDEX('Full set Core Client Indicator'!$A$3:$AB$351, MATCH(Selection_Hide2!$A181, 'Full set Core Client Indicator'!$A$3:$A$351, 0), MATCH(Selection_Hide2!Z$5, 'Full set Core Client Indicator'!$A$3:$AB$3, 0))), \"\")","v":""},{"$f":"IF(Z181<>\"\", IF(INDEX('Full set Core Client Indicator'!$A$3:$AB$351, MATCH(Selection_Hide2!$A181, 'Full set Core Client Indicator'!$A$3:$A$351, 0), MATCH(Selection_Hide2!AA$5, 'Full set Core Client Indicator'!$A$3:$AB$3, 0))=\"\", \"\",  INDEX('Full set Core Client Indicator'!$A$3:$AB$351, MATCH(Selection_Hide2!$A181, 'Full set Core Client Indicator'!$A$3:$A$351, 0), MATCH(Selection_Hide2!AA$5, 'Full set Core Client Indicator'!$A$3:$AB$3, 0))), \"\")","v":""},{"$f":"IF(AA181<>\"\", IF(INDEX('Full set Core Client Indicator'!$A$3:$AB$351, MATCH(Selection_Hide2!$A181, 'Full set Core Client Indicator'!$A$3:$A$351, 0), MATCH(Selection_Hide2!AB$5, 'Full set Core Client Indicator'!$A$3:$AB$3, 0))=\"\", \"\",  INDEX('Full set Core Client Indicator'!$A$3:$AB$351, MATCH(Selection_Hide2!$A181, 'Full set Core Client Indicator'!$A$3:$A$351, 0), MATCH(Selection_Hide2!AB$5, 'Full set Core Client Indicator'!$A$3:$AB$3, 0))), \"\")","v":""}]
[{"$f":"IF(AND(Selection_Hide1!C180<>0, Selection_Hide1!C180<>\"Grand Total\"), Selection_Hide1!C180, \"\")","v":""},{"$f":"IF(A182<>\"\", IF(INDEX('Full set Core Client Indicator'!$A$3:$AB$351, MATCH(Selection_Hide2!$A182, 'Full set Core Client Indicator'!$A$3:$A$351, 0), MATCH(Selection_Hide2!B$5, 'Full set Core Client Indicator'!$A$3:$AB$3, 0))=\"\", \"\",  INDEX('Full set Core Client Indicator'!$A$3:$AB$351, MATCH(Selection_Hide2!$A182, 'Full set Core Client Indicator'!$A$3:$A$351, 0), MATCH(Selection_Hide2!B$5, 'Full set Core Client Indicator'!$A$3:$AB$3, 0))), \"\")","v":""},{"$f":"IF(B182<>\"\", IF(INDEX('Full set Core Client Indicator'!$A$3:$AB$351, MATCH(Selection_Hide2!$A182, 'Full set Core Client Indicator'!$A$3:$A$351, 0), MATCH(Selection_Hide2!C$5, 'Full set Core Client Indicator'!$A$3:$AB$3, 0))=\"\", \"\",  INDEX('Full set Core Client Indicator'!$A$3:$AB$351, MATCH(Selection_Hide2!$A182, 'Full set Core Client Indicator'!$A$3:$A$351, 0), MATCH(Selection_Hide2!C$5, 'Full set Core Client Indicator'!$A$3:$AB$3, 0))), \"\")","v":""},{"$f":"IF(C182<>\"\", IF(INDEX('Full set Core Client Indicator'!$A$3:$AB$351, MATCH(Selection_Hide2!$A182, 'Full set Core Client Indicator'!$A$3:$A$351, 0), MATCH(Selection_Hide2!D$5, 'Full set Core Client Indicator'!$A$3:$AB$3, 0))=\"\", \"\",  INDEX('Full set Core Client Indicator'!$A$3:$AB$351, MATCH(Selection_Hide2!$A182, 'Full set Core Client Indicator'!$A$3:$A$351, 0), MATCH(Selection_Hide2!D$5, 'Full set Core Client Indicator'!$A$3:$AB$3, 0))), \"\")","v":""},{"$f":"IF(D182<>\"\", IF(INDEX('Full set Core Client Indicator'!$A$3:$AB$351, MATCH(Selection_Hide2!$A182, 'Full set Core Client Indicator'!$A$3:$A$351, 0), MATCH(Selection_Hide2!E$5, 'Full set Core Client Indicator'!$A$3:$AB$3, 0))=\"\", \"\",  INDEX('Full set Core Client Indicator'!$A$3:$AB$351, MATCH(Selection_Hide2!$A182, 'Full set Core Client Indicator'!$A$3:$A$351, 0), MATCH(Selection_Hide2!E$5, 'Full set Core Client Indicator'!$A$3:$AB$3, 0))), \"\")","v":""},{"$f":"IF(E182<>\"\", IF(INDEX('Full set Core Client Indicator'!$A$3:$AB$351, MATCH(Selection_Hide2!$A182, 'Full set Core Client Indicator'!$A$3:$A$351, 0), MATCH(Selection_Hide2!F$5, 'Full set Core Client Indicator'!$A$3:$AB$3, 0))=\"\", \"\",  INDEX('Full set Core Client Indicator'!$A$3:$AB$351, MATCH(Selection_Hide2!$A182, 'Full set Core Client Indicator'!$A$3:$A$351, 0), MATCH(Selection_Hide2!F$5, 'Full set Core Client Indicator'!$A$3:$AB$3, 0))), \"\")","v":""},{"$f":"IF(F182<>\"\", IF(INDEX('Full set Core Client Indicator'!$A$3:$AB$351, MATCH(Selection_Hide2!$A182, 'Full set Core Client Indicator'!$A$3:$A$351, 0), MATCH(Selection_Hide2!G$5, 'Full set Core Client Indicator'!$A$3:$AB$3, 0))=\"\", \"\",  INDEX('Full set Core Client Indicator'!$A$3:$AB$351, MATCH(Selection_Hide2!$A182, 'Full set Core Client Indicator'!$A$3:$A$351, 0), MATCH(Selection_Hide2!G$5, 'Full set Core Client Indicator'!$A$3:$AB$3, 0))), \"\")","v":""},{"$f":"IF(G182<>\"\", IF(INDEX('Full set Core Client Indicator'!$A$3:$AB$351, MATCH(Selection_Hide2!$A182, 'Full set Core Client Indicator'!$A$3:$A$351, 0), MATCH(Selection_Hide2!H$5, 'Full set Core Client Indicator'!$A$3:$AB$3, 0))=\"\", \"\",  INDEX('Full set Core Client Indicator'!$A$3:$AB$351, MATCH(Selection_Hide2!$A182, 'Full set Core Client Indicator'!$A$3:$A$351, 0), MATCH(Selection_Hide2!H$5, 'Full set Core Client Indicator'!$A$3:$AB$3, 0))), \"\")","v":""},{"$f":"IF(H182<>\"\", IF(INDEX('Full set Core Client Indicator'!$A$3:$AB$351, MATCH(Selection_Hide2!$A182, 'Full set Core Client Indicator'!$A$3:$A$351, 0), MATCH(Selection_Hide2!I$5, 'Full set Core Client Indicator'!$A$3:$AB$3, 0))=\"\", \"\",  INDEX('Full set Core Client Indicator'!$A$3:$AB$351, MATCH(Selection_Hide2!$A182, 'Full set Core Client Indicator'!$A$3:$A$351, 0), MATCH(Selection_Hide2!I$5, 'Full set Core Client Indicator'!$A$3:$AB$3, 0))), \"\")","v":""},{"$f":"IF(I182<>\"\", IF(INDEX('Full set Core Client Indicator'!$A$3:$AB$351, MATCH(Selection_Hide2!$A182, 'Full set Core Client Indicator'!$A$3:$A$351, 0), MATCH(Selection_Hide2!J$5, 'Full set Core Client Indicator'!$A$3:$AB$3, 0))=\"\", \"\",  INDEX('Full set Core Client Indicator'!$A$3:$AB$351, MATCH(Selection_Hide2!$A182, 'Full set Core Client Indicator'!$A$3:$A$351, 0), MATCH(Selection_Hide2!J$5, 'Full set Core Client Indicator'!$A$3:$AB$3, 0))), \"\")","v":""},{"$f":"IF(J182<>\"\", IF(INDEX('Full set Core Client Indicator'!$A$3:$AB$351, MATCH(Selection_Hide2!$A182, 'Full set Core Client Indicator'!$A$3:$A$351, 0), MATCH(Selection_Hide2!K$5, 'Full set Core Client Indicator'!$A$3:$AB$3, 0))=\"\", \"\",  INDEX('Full set Core Client Indicator'!$A$3:$AB$351, MATCH(Selection_Hide2!$A182, 'Full set Core Client Indicator'!$A$3:$A$351, 0), MATCH(Selection_Hide2!K$5, 'Full set Core Client Indicator'!$A$3:$AB$3, 0))), \"\")","v":""},{"$f":"IF(K182<>\"\", IF(INDEX('Full set Core Client Indicator'!$A$3:$AB$351, MATCH(Selection_Hide2!$A182, 'Full set Core Client Indicator'!$A$3:$A$351, 0), MATCH(Selection_Hide2!L$5, 'Full set Core Client Indicator'!$A$3:$AB$3, 0))=\"\", \"\",  INDEX('Full set Core Client Indicator'!$A$3:$AB$351, MATCH(Selection_Hide2!$A182, 'Full set Core Client Indicator'!$A$3:$A$351, 0), MATCH(Selection_Hide2!L$5, 'Full set Core Client Indicator'!$A$3:$AB$3, 0))), \"\")","v":""},{"$f":"IF(L182<>\"\", IF(INDEX('Full set Core Client Indicator'!$A$3:$AB$351, MATCH(Selection_Hide2!$A182, 'Full set Core Client Indicator'!$A$3:$A$351, 0), MATCH(Selection_Hide2!M$5, 'Full set Core Client Indicator'!$A$3:$AB$3, 0))=\"\", \"\",  INDEX('Full set Core Client Indicator'!$A$3:$AB$351, MATCH(Selection_Hide2!$A182, 'Full set Core Client Indicator'!$A$3:$A$351, 0), MATCH(Selection_Hide2!M$5, 'Full set Core Client Indicator'!$A$3:$AB$3, 0))), \"\")","v":""},{"$f":"IF(M182<>\"\", IF(INDEX('Full set Core Client Indicator'!$A$3:$AB$351, MATCH(Selection_Hide2!$A182, 'Full set Core Client Indicator'!$A$3:$A$351, 0), MATCH(Selection_Hide2!N$5, 'Full set Core Client Indicator'!$A$3:$AB$3, 0))=\"\", \"\",  INDEX('Full set Core Client Indicator'!$A$3:$AB$351, MATCH(Selection_Hide2!$A182, 'Full set Core Client Indicator'!$A$3:$A$351, 0), MATCH(Selection_Hide2!N$5, 'Full set Core Client Indicator'!$A$3:$AB$3, 0))), \"\")","v":""},{"$f":"IF(N182<>\"\", IF(INDEX('Full set Core Client Indicator'!$A$3:$AB$351, MATCH(Selection_Hide2!$A182, 'Full set Core Client Indicator'!$A$3:$A$351, 0), MATCH(Selection_Hide2!O$5, 'Full set Core Client Indicator'!$A$3:$AB$3, 0))=\"\", \"\",  INDEX('Full set Core Client Indicator'!$A$3:$AB$351, MATCH(Selection_Hide2!$A182, 'Full set Core Client Indicator'!$A$3:$A$351, 0), MATCH(Selection_Hide2!O$5, 'Full set Core Client Indicator'!$A$3:$AB$3, 0))), \"\")","v":""},{"$f":"IF(O182<>\"\", IF(INDEX('Full set Core Client Indicator'!$A$3:$AB$351, MATCH(Selection_Hide2!$A182, 'Full set Core Client Indicator'!$A$3:$A$351, 0), MATCH(Selection_Hide2!P$5, 'Full set Core Client Indicator'!$A$3:$AB$3, 0))=\"\", \"\",  INDEX('Full set Core Client Indicator'!$A$3:$AB$351, MATCH(Selection_Hide2!$A182, 'Full set Core Client Indicator'!$A$3:$A$351, 0), MATCH(Selection_Hide2!P$5, 'Full set Core Client Indicator'!$A$3:$AB$3, 0))), \"\")","v":""},{"$f":"IF(P182<>\"\", IF(INDEX('Full set Core Client Indicator'!$A$3:$AB$351, MATCH(Selection_Hide2!$A182, 'Full set Core Client Indicator'!$A$3:$A$351, 0), MATCH(Selection_Hide2!Q$5, 'Full set Core Client Indicator'!$A$3:$AB$3, 0))=\"\", \"\",  INDEX('Full set Core Client Indicator'!$A$3:$AB$351, MATCH(Selection_Hide2!$A182, 'Full set Core Client Indicator'!$A$3:$A$351, 0), MATCH(Selection_Hide2!Q$5, 'Full set Core Client Indicator'!$A$3:$AB$3, 0))), \"\")","v":""},{"$f":"IF(Q182<>\"\", IF(INDEX('Full set Core Client Indicator'!$A$3:$AB$351, MATCH(Selection_Hide2!$A182, 'Full set Core Client Indicator'!$A$3:$A$351, 0), MATCH(Selection_Hide2!R$5, 'Full set Core Client Indicator'!$A$3:$AB$3, 0))=\"\", \"\",  INDEX('Full set Core Client Indicator'!$A$3:$AB$351, MATCH(Selection_Hide2!$A182, 'Full set Core Client Indicator'!$A$3:$A$351, 0), MATCH(Selection_Hide2!R$5, 'Full set Core Client Indicator'!$A$3:$AB$3, 0))), \"\")","v":""},{"$f":"IF(R182<>\"\", IF(INDEX('Full set Core Client Indicator'!$A$3:$AB$351, MATCH(Selection_Hide2!$A182, 'Full set Core Client Indicator'!$A$3:$A$351, 0), MATCH(Selection_Hide2!S$5, 'Full set Core Client Indicator'!$A$3:$AB$3, 0))=\"\", \"\",  INDEX('Full set Core Client Indicator'!$A$3:$AB$351, MATCH(Selection_Hide2!$A182, 'Full set Core Client Indicator'!$A$3:$A$351, 0), MATCH(Selection_Hide2!S$5, 'Full set Core Client Indicator'!$A$3:$AB$3, 0))), \"\")","v":""},{"$f":"IF(S182<>\"\", IF(INDEX('Full set Core Client Indicator'!$A$3:$AB$351, MATCH(Selection_Hide2!$A182, 'Full set Core Client Indicator'!$A$3:$A$351, 0), MATCH(Selection_Hide2!T$5, 'Full set Core Client Indicator'!$A$3:$AB$3, 0))=\"\", \"\",  INDEX('Full set Core Client Indicator'!$A$3:$AB$351, MATCH(Selection_Hide2!$A182, 'Full set Core Client Indicator'!$A$3:$A$351, 0), MATCH(Selection_Hide2!T$5, 'Full set Core Client Indicator'!$A$3:$AB$3, 0))), \"\")","v":""},{"$f":"IF(T182<>\"\", IF(INDEX('Full set Core Client Indicator'!$A$3:$AB$351, MATCH(Selection_Hide2!$A182, 'Full set Core Client Indicator'!$A$3:$A$351, 0), MATCH(Selection_Hide2!U$5, 'Full set Core Client Indicator'!$A$3:$AB$3, 0))=\"\", \"\",  INDEX('Full set Core Client Indicator'!$A$3:$AB$351, MATCH(Selection_Hide2!$A182, 'Full set Core Client Indicator'!$A$3:$A$351, 0), MATCH(Selection_Hide2!U$5, 'Full set Core Client Indicator'!$A$3:$AB$3, 0))), \"\")","v":""},{"$f":"IF(U182<>\"\", IF(INDEX('Full set Core Client Indicator'!$A$3:$AB$351, MATCH(Selection_Hide2!$A182, 'Full set Core Client Indicator'!$A$3:$A$351, 0), MATCH(Selection_Hide2!V$5, 'Full set Core Client Indicator'!$A$3:$AB$3, 0))=\"\", \"\",  INDEX('Full set Core Client Indicator'!$A$3:$AB$351, MATCH(Selection_Hide2!$A182, 'Full set Core Client Indicator'!$A$3:$A$351, 0), MATCH(Selection_Hide2!V$5, 'Full set Core Client Indicator'!$A$3:$AB$3, 0))), \"\")","v":""},{"$f":"IF(V182<>\"\", IF(INDEX('Full set Core Client Indicator'!$A$3:$AB$351, MATCH(Selection_Hide2!$A182, 'Full set Core Client Indicator'!$A$3:$A$351, 0), MATCH(Selection_Hide2!W$5, 'Full set Core Client Indicator'!$A$3:$AB$3, 0))=\"\", \"\",  INDEX('Full set Core Client Indicator'!$A$3:$AB$351, MATCH(Selection_Hide2!$A182, 'Full set Core Client Indicator'!$A$3:$A$351, 0), MATCH(Selection_Hide2!W$5, 'Full set Core Client Indicator'!$A$3:$AB$3, 0))), \"\")","v":""},{"$f":"IF(W182<>\"\", IF(INDEX('Full set Core Client Indicator'!$A$3:$AB$351, MATCH(Selection_Hide2!$A182, 'Full set Core Client Indicator'!$A$3:$A$351, 0), MATCH(Selection_Hide2!X$5, 'Full set Core Client Indicator'!$A$3:$AB$3, 0))=\"\", \"\",  INDEX('Full set Core Client Indicator'!$A$3:$AB$351, MATCH(Selection_Hide2!$A182, 'Full set Core Client Indicator'!$A$3:$A$351, 0), MATCH(Selection_Hide2!X$5, 'Full set Core Client Indicator'!$A$3:$AB$3, 0))), \"\")","v":""},{"$f":"IF(X182<>\"\", IF(INDEX('Full set Core Client Indicator'!$A$3:$AB$351, MATCH(Selection_Hide2!$A182, 'Full set Core Client Indicator'!$A$3:$A$351, 0), MATCH(Selection_Hide2!Y$5, 'Full set Core Client Indicator'!$A$3:$AB$3, 0))=\"\", \"\",  INDEX('Full set Core Client Indicator'!$A$3:$AB$351, MATCH(Selection_Hide2!$A182, 'Full set Core Client Indicator'!$A$3:$A$351, 0), MATCH(Selection_Hide2!Y$5, 'Full set Core Client Indicator'!$A$3:$AB$3, 0))), \"\")","v":""},{"$f":"IF(Y182<>\"\", IF(INDEX('Full set Core Client Indicator'!$A$3:$AB$351, MATCH(Selection_Hide2!$A182, 'Full set Core Client Indicator'!$A$3:$A$351, 0), MATCH(Selection_Hide2!Z$5, 'Full set Core Client Indicator'!$A$3:$AB$3, 0))=\"\", \"\",  INDEX('Full set Core Client Indicator'!$A$3:$AB$351, MATCH(Selection_Hide2!$A182, 'Full set Core Client Indicator'!$A$3:$A$351, 0), MATCH(Selection_Hide2!Z$5, 'Full set Core Client Indicator'!$A$3:$AB$3, 0))), \"\")","v":""},{"$f":"IF(Z182<>\"\", IF(INDEX('Full set Core Client Indicator'!$A$3:$AB$351, MATCH(Selection_Hide2!$A182, 'Full set Core Client Indicator'!$A$3:$A$351, 0), MATCH(Selection_Hide2!AA$5, 'Full set Core Client Indicator'!$A$3:$AB$3, 0))=\"\", \"\",  INDEX('Full set Core Client Indicator'!$A$3:$AB$351, MATCH(Selection_Hide2!$A182, 'Full set Core Client Indicator'!$A$3:$A$351, 0), MATCH(Selection_Hide2!AA$5, 'Full set Core Client Indicator'!$A$3:$AB$3, 0))), \"\")","v":""},{"$f":"IF(AA182<>\"\", IF(INDEX('Full set Core Client Indicator'!$A$3:$AB$351, MATCH(Selection_Hide2!$A182, 'Full set Core Client Indicator'!$A$3:$A$351, 0), MATCH(Selection_Hide2!AB$5, 'Full set Core Client Indicator'!$A$3:$AB$3, 0))=\"\", \"\",  INDEX('Full set Core Client Indicator'!$A$3:$AB$351, MATCH(Selection_Hide2!$A182, 'Full set Core Client Indicator'!$A$3:$A$351, 0), MATCH(Selection_Hide2!AB$5, 'Full set Core Client Indicator'!$A$3:$AB$3, 0))), \"\")","v":""}]
[{"$f":"IF(AND(Selection_Hide1!C181<>0, Selection_Hide1!C181<>\"Grand Total\"), Selection_Hide1!C181, \"\")","v":""},{"$f":"IF(A183<>\"\", IF(INDEX('Full set Core Client Indicator'!$A$3:$AB$351, MATCH(Selection_Hide2!$A183, 'Full set Core Client Indicator'!$A$3:$A$351, 0), MATCH(Selection_Hide2!B$5, 'Full set Core Client Indicator'!$A$3:$AB$3, 0))=\"\", \"\",  INDEX('Full set Core Client Indicator'!$A$3:$AB$351, MATCH(Selection_Hide2!$A183, 'Full set Core Client Indicator'!$A$3:$A$351, 0), MATCH(Selection_Hide2!B$5, 'Full set Core Client Indicator'!$A$3:$AB$3, 0))), \"\")","v":""},{"$f":"IF(B183<>\"\", IF(INDEX('Full set Core Client Indicator'!$A$3:$AB$351, MATCH(Selection_Hide2!$A183, 'Full set Core Client Indicator'!$A$3:$A$351, 0), MATCH(Selection_Hide2!C$5, 'Full set Core Client Indicator'!$A$3:$AB$3, 0))=\"\", \"\",  INDEX('Full set Core Client Indicator'!$A$3:$AB$351, MATCH(Selection_Hide2!$A183, 'Full set Core Client Indicator'!$A$3:$A$351, 0), MATCH(Selection_Hide2!C$5, 'Full set Core Client Indicator'!$A$3:$AB$3, 0))), \"\")","v":""},{"$f":"IF(C183<>\"\", IF(INDEX('Full set Core Client Indicator'!$A$3:$AB$351, MATCH(Selection_Hide2!$A183, 'Full set Core Client Indicator'!$A$3:$A$351, 0), MATCH(Selection_Hide2!D$5, 'Full set Core Client Indicator'!$A$3:$AB$3, 0))=\"\", \"\",  INDEX('Full set Core Client Indicator'!$A$3:$AB$351, MATCH(Selection_Hide2!$A183, 'Full set Core Client Indicator'!$A$3:$A$351, 0), MATCH(Selection_Hide2!D$5, 'Full set Core Client Indicator'!$A$3:$AB$3, 0))), \"\")","v":""},{"$f":"IF(D183<>\"\", IF(INDEX('Full set Core Client Indicator'!$A$3:$AB$351, MATCH(Selection_Hide2!$A183, 'Full set Core Client Indicator'!$A$3:$A$351, 0), MATCH(Selection_Hide2!E$5, 'Full set Core Client Indicator'!$A$3:$AB$3, 0))=\"\", \"\",  INDEX('Full set Core Client Indicator'!$A$3:$AB$351, MATCH(Selection_Hide2!$A183, 'Full set Core Client Indicator'!$A$3:$A$351, 0), MATCH(Selection_Hide2!E$5, 'Full set Core Client Indicator'!$A$3:$AB$3, 0))), \"\")","v":""},{"$f":"IF(E183<>\"\", IF(INDEX('Full set Core Client Indicator'!$A$3:$AB$351, MATCH(Selection_Hide2!$A183, 'Full set Core Client Indicator'!$A$3:$A$351, 0), MATCH(Selection_Hide2!F$5, 'Full set Core Client Indicator'!$A$3:$AB$3, 0))=\"\", \"\",  INDEX('Full set Core Client Indicator'!$A$3:$AB$351, MATCH(Selection_Hide2!$A183, 'Full set Core Client Indicator'!$A$3:$A$351, 0), MATCH(Selection_Hide2!F$5, 'Full set Core Client Indicator'!$A$3:$AB$3, 0))), \"\")","v":""},{"$f":"IF(F183<>\"\", IF(INDEX('Full set Core Client Indicator'!$A$3:$AB$351, MATCH(Selection_Hide2!$A183, 'Full set Core Client Indicator'!$A$3:$A$351, 0), MATCH(Selection_Hide2!G$5, 'Full set Core Client Indicator'!$A$3:$AB$3, 0))=\"\", \"\",  INDEX('Full set Core Client Indicator'!$A$3:$AB$351, MATCH(Selection_Hide2!$A183, 'Full set Core Client Indicator'!$A$3:$A$351, 0), MATCH(Selection_Hide2!G$5, 'Full set Core Client Indicator'!$A$3:$AB$3, 0))), \"\")","v":""},{"$f":"IF(G183<>\"\", IF(INDEX('Full set Core Client Indicator'!$A$3:$AB$351, MATCH(Selection_Hide2!$A183, 'Full set Core Client Indicator'!$A$3:$A$351, 0), MATCH(Selection_Hide2!H$5, 'Full set Core Client Indicator'!$A$3:$AB$3, 0))=\"\", \"\",  INDEX('Full set Core Client Indicator'!$A$3:$AB$351, MATCH(Selection_Hide2!$A183, 'Full set Core Client Indicator'!$A$3:$A$351, 0), MATCH(Selection_Hide2!H$5, 'Full set Core Client Indicator'!$A$3:$AB$3, 0))), \"\")","v":""},{"$f":"IF(H183<>\"\", IF(INDEX('Full set Core Client Indicator'!$A$3:$AB$351, MATCH(Selection_Hide2!$A183, 'Full set Core Client Indicator'!$A$3:$A$351, 0), MATCH(Selection_Hide2!I$5, 'Full set Core Client Indicator'!$A$3:$AB$3, 0))=\"\", \"\",  INDEX('Full set Core Client Indicator'!$A$3:$AB$351, MATCH(Selection_Hide2!$A183, 'Full set Core Client Indicator'!$A$3:$A$351, 0), MATCH(Selection_Hide2!I$5, 'Full set Core Client Indicator'!$A$3:$AB$3, 0))), \"\")","v":""},{"$f":"IF(I183<>\"\", IF(INDEX('Full set Core Client Indicator'!$A$3:$AB$351, MATCH(Selection_Hide2!$A183, 'Full set Core Client Indicator'!$A$3:$A$351, 0), MATCH(Selection_Hide2!J$5, 'Full set Core Client Indicator'!$A$3:$AB$3, 0))=\"\", \"\",  INDEX('Full set Core Client Indicator'!$A$3:$AB$351, MATCH(Selection_Hide2!$A183, 'Full set Core Client Indicator'!$A$3:$A$351, 0), MATCH(Selection_Hide2!J$5, 'Full set Core Client Indicator'!$A$3:$AB$3, 0))), \"\")","v":""},{"$f":"IF(J183<>\"\", IF(INDEX('Full set Core Client Indicator'!$A$3:$AB$351, MATCH(Selection_Hide2!$A183, 'Full set Core Client Indicator'!$A$3:$A$351, 0), MATCH(Selection_Hide2!K$5, 'Full set Core Client Indicator'!$A$3:$AB$3, 0))=\"\", \"\",  INDEX('Full set Core Client Indicator'!$A$3:$AB$351, MATCH(Selection_Hide2!$A183, 'Full set Core Client Indicator'!$A$3:$A$351, 0), MATCH(Selection_Hide2!K$5, 'Full set Core Client Indicator'!$A$3:$AB$3, 0))), \"\")","v":""},{"$f":"IF(K183<>\"\", IF(INDEX('Full set Core Client Indicator'!$A$3:$AB$351, MATCH(Selection_Hide2!$A183, 'Full set Core Client Indicator'!$A$3:$A$351, 0), MATCH(Selection_Hide2!L$5, 'Full set Core Client Indicator'!$A$3:$AB$3, 0))=\"\", \"\",  INDEX('Full set Core Client Indicator'!$A$3:$AB$351, MATCH(Selection_Hide2!$A183, 'Full set Core Client Indicator'!$A$3:$A$351, 0), MATCH(Selection_Hide2!L$5, 'Full set Core Client Indicator'!$A$3:$AB$3, 0))), \"\")","v":""},{"$f":"IF(L183<>\"\", IF(INDEX('Full set Core Client Indicator'!$A$3:$AB$351, MATCH(Selection_Hide2!$A183, 'Full set Core Client Indicator'!$A$3:$A$351, 0), MATCH(Selection_Hide2!M$5, 'Full set Core Client Indicator'!$A$3:$AB$3, 0))=\"\", \"\",  INDEX('Full set Core Client Indicator'!$A$3:$AB$351, MATCH(Selection_Hide2!$A183, 'Full set Core Client Indicator'!$A$3:$A$351, 0), MATCH(Selection_Hide2!M$5, 'Full set Core Client Indicator'!$A$3:$AB$3, 0))), \"\")","v":""},{"$f":"IF(M183<>\"\", IF(INDEX('Full set Core Client Indicator'!$A$3:$AB$351, MATCH(Selection_Hide2!$A183, 'Full set Core Client Indicator'!$A$3:$A$351, 0), MATCH(Selection_Hide2!N$5, 'Full set Core Client Indicator'!$A$3:$AB$3, 0))=\"\", \"\",  INDEX('Full set Core Client Indicator'!$A$3:$AB$351, MATCH(Selection_Hide2!$A183, 'Full set Core Client Indicator'!$A$3:$A$351, 0), MATCH(Selection_Hide2!N$5, 'Full set Core Client Indicator'!$A$3:$AB$3, 0))), \"\")","v":""},{"$f":"IF(N183<>\"\", IF(INDEX('Full set Core Client Indicator'!$A$3:$AB$351, MATCH(Selection_Hide2!$A183, 'Full set Core Client Indicator'!$A$3:$A$351, 0), MATCH(Selection_Hide2!O$5, 'Full set Core Client Indicator'!$A$3:$AB$3, 0))=\"\", \"\",  INDEX('Full set Core Client Indicator'!$A$3:$AB$351, MATCH(Selection_Hide2!$A183, 'Full set Core Client Indicator'!$A$3:$A$351, 0), MATCH(Selection_Hide2!O$5, 'Full set Core Client Indicator'!$A$3:$AB$3, 0))), \"\")","v":""},{"$f":"IF(O183<>\"\", IF(INDEX('Full set Core Client Indicator'!$A$3:$AB$351, MATCH(Selection_Hide2!$A183, 'Full set Core Client Indicator'!$A$3:$A$351, 0), MATCH(Selection_Hide2!P$5, 'Full set Core Client Indicator'!$A$3:$AB$3, 0))=\"\", \"\",  INDEX('Full set Core Client Indicator'!$A$3:$AB$351, MATCH(Selection_Hide2!$A183, 'Full set Core Client Indicator'!$A$3:$A$351, 0), MATCH(Selection_Hide2!P$5, 'Full set Core Client Indicator'!$A$3:$AB$3, 0))), \"\")","v":""},{"$f":"IF(P183<>\"\", IF(INDEX('Full set Core Client Indicator'!$A$3:$AB$351, MATCH(Selection_Hide2!$A183, 'Full set Core Client Indicator'!$A$3:$A$351, 0), MATCH(Selection_Hide2!Q$5, 'Full set Core Client Indicator'!$A$3:$AB$3, 0))=\"\", \"\",  INDEX('Full set Core Client Indicator'!$A$3:$AB$351, MATCH(Selection_Hide2!$A183, 'Full set Core Client Indicator'!$A$3:$A$351, 0), MATCH(Selection_Hide2!Q$5, 'Full set Core Client Indicator'!$A$3:$AB$3, 0))), \"\")","v":""},{"$f":"IF(Q183<>\"\", IF(INDEX('Full set Core Client Indicator'!$A$3:$AB$351, MATCH(Selection_Hide2!$A183, 'Full set Core Client Indicator'!$A$3:$A$351, 0), MATCH(Selection_Hide2!R$5, 'Full set Core Client Indicator'!$A$3:$AB$3, 0))=\"\", \"\",  INDEX('Full set Core Client Indicator'!$A$3:$AB$351, MATCH(Selection_Hide2!$A183, 'Full set Core Client Indicator'!$A$3:$A$351, 0), MATCH(Selection_Hide2!R$5, 'Full set Core Client Indicator'!$A$3:$AB$3, 0))), \"\")","v":""},{"$f":"IF(R183<>\"\", IF(INDEX('Full set Core Client Indicator'!$A$3:$AB$351, MATCH(Selection_Hide2!$A183, 'Full set Core Client Indicator'!$A$3:$A$351, 0), MATCH(Selection_Hide2!S$5, 'Full set Core Client Indicator'!$A$3:$AB$3, 0))=\"\", \"\",  INDEX('Full set Core Client Indicator'!$A$3:$AB$351, MATCH(Selection_Hide2!$A183, 'Full set Core Client Indicator'!$A$3:$A$351, 0), MATCH(Selection_Hide2!S$5, 'Full set Core Client Indicator'!$A$3:$AB$3, 0))), \"\")","v":""},{"$f":"IF(S183<>\"\", IF(INDEX('Full set Core Client Indicator'!$A$3:$AB$351, MATCH(Selection_Hide2!$A183, 'Full set Core Client Indicator'!$A$3:$A$351, 0), MATCH(Selection_Hide2!T$5, 'Full set Core Client Indicator'!$A$3:$AB$3, 0))=\"\", \"\",  INDEX('Full set Core Client Indicator'!$A$3:$AB$351, MATCH(Selection_Hide2!$A183, 'Full set Core Client Indicator'!$A$3:$A$351, 0), MATCH(Selection_Hide2!T$5, 'Full set Core Client Indicator'!$A$3:$AB$3, 0))), \"\")","v":""},{"$f":"IF(T183<>\"\", IF(INDEX('Full set Core Client Indicator'!$A$3:$AB$351, MATCH(Selection_Hide2!$A183, 'Full set Core Client Indicator'!$A$3:$A$351, 0), MATCH(Selection_Hide2!U$5, 'Full set Core Client Indicator'!$A$3:$AB$3, 0))=\"\", \"\",  INDEX('Full set Core Client Indicator'!$A$3:$AB$351, MATCH(Selection_Hide2!$A183, 'Full set Core Client Indicator'!$A$3:$A$351, 0), MATCH(Selection_Hide2!U$5, 'Full set Core Client Indicator'!$A$3:$AB$3, 0))), \"\")","v":""},{"$f":"IF(U183<>\"\", IF(INDEX('Full set Core Client Indicator'!$A$3:$AB$351, MATCH(Selection_Hide2!$A183, 'Full set Core Client Indicator'!$A$3:$A$351, 0), MATCH(Selection_Hide2!V$5, 'Full set Core Client Indicator'!$A$3:$AB$3, 0))=\"\", \"\",  INDEX('Full set Core Client Indicator'!$A$3:$AB$351, MATCH(Selection_Hide2!$A183, 'Full set Core Client Indicator'!$A$3:$A$351, 0), MATCH(Selection_Hide2!V$5, 'Full set Core Client Indicator'!$A$3:$AB$3, 0))), \"\")","v":""},{"$f":"IF(V183<>\"\", IF(INDEX('Full set Core Client Indicator'!$A$3:$AB$351, MATCH(Selection_Hide2!$A183, 'Full set Core Client Indicator'!$A$3:$A$351, 0), MATCH(Selection_Hide2!W$5, 'Full set Core Client Indicator'!$A$3:$AB$3, 0))=\"\", \"\",  INDEX('Full set Core Client Indicator'!$A$3:$AB$351, MATCH(Selection_Hide2!$A183, 'Full set Core Client Indicator'!$A$3:$A$351, 0), MATCH(Selection_Hide2!W$5, 'Full set Core Client Indicator'!$A$3:$AB$3, 0))), \"\")","v":""},{"$f":"IF(W183<>\"\", IF(INDEX('Full set Core Client Indicator'!$A$3:$AB$351, MATCH(Selection_Hide2!$A183, 'Full set Core Client Indicator'!$A$3:$A$351, 0), MATCH(Selection_Hide2!X$5, 'Full set Core Client Indicator'!$A$3:$AB$3, 0))=\"\", \"\",  INDEX('Full set Core Client Indicator'!$A$3:$AB$351, MATCH(Selection_Hide2!$A183, 'Full set Core Client Indicator'!$A$3:$A$351, 0), MATCH(Selection_Hide2!X$5, 'Full set Core Client Indicator'!$A$3:$AB$3, 0))), \"\")","v":""},{"$f":"IF(X183<>\"\", IF(INDEX('Full set Core Client Indicator'!$A$3:$AB$351, MATCH(Selection_Hide2!$A183, 'Full set Core Client Indicator'!$A$3:$A$351, 0), MATCH(Selection_Hide2!Y$5, 'Full set Core Client Indicator'!$A$3:$AB$3, 0))=\"\", \"\",  INDEX('Full set Core Client Indicator'!$A$3:$AB$351, MATCH(Selection_Hide2!$A183, 'Full set Core Client Indicator'!$A$3:$A$351, 0), MATCH(Selection_Hide2!Y$5, 'Full set Core Client Indicator'!$A$3:$AB$3, 0))), \"\")","v":""},{"$f":"IF(Y183<>\"\", IF(INDEX('Full set Core Client Indicator'!$A$3:$AB$351, MATCH(Selection_Hide2!$A183, 'Full set Core Client Indicator'!$A$3:$A$351, 0), MATCH(Selection_Hide2!Z$5, 'Full set Core Client Indicator'!$A$3:$AB$3, 0))=\"\", \"\",  INDEX('Full set Core Client Indicator'!$A$3:$AB$351, MATCH(Selection_Hide2!$A183, 'Full set Core Client Indicator'!$A$3:$A$351, 0), MATCH(Selection_Hide2!Z$5, 'Full set Core Client Indicator'!$A$3:$AB$3, 0))), \"\")","v":""},{"$f":"IF(Z183<>\"\", IF(INDEX('Full set Core Client Indicator'!$A$3:$AB$351, MATCH(Selection_Hide2!$A183, 'Full set Core Client Indicator'!$A$3:$A$351, 0), MATCH(Selection_Hide2!AA$5, 'Full set Core Client Indicator'!$A$3:$AB$3, 0))=\"\", \"\",  INDEX('Full set Core Client Indicator'!$A$3:$AB$351, MATCH(Selection_Hide2!$A183, 'Full set Core Client Indicator'!$A$3:$A$351, 0), MATCH(Selection_Hide2!AA$5, 'Full set Core Client Indicator'!$A$3:$AB$3, 0))), \"\")","v":""},{"$f":"IF(AA183<>\"\", IF(INDEX('Full set Core Client Indicator'!$A$3:$AB$351, MATCH(Selection_Hide2!$A183, 'Full set Core Client Indicator'!$A$3:$A$351, 0), MATCH(Selection_Hide2!AB$5, 'Full set Core Client Indicator'!$A$3:$AB$3, 0))=\"\", \"\",  INDEX('Full set Core Client Indicator'!$A$3:$AB$351, MATCH(Selection_Hide2!$A183, 'Full set Core Client Indicator'!$A$3:$A$351, 0), MATCH(Selection_Hide2!AB$5, 'Full set Core Client Indicator'!$A$3:$AB$3, 0))), \"\")","v":""}]
[{"$f":"IF(AND(Selection_Hide1!C182<>0, Selection_Hide1!C182<>\"Grand Total\"), Selection_Hide1!C182, \"\")","v":""},{"$f":"IF(A184<>\"\", IF(INDEX('Full set Core Client Indicator'!$A$3:$AB$351, MATCH(Selection_Hide2!$A184, 'Full set Core Client Indicator'!$A$3:$A$351, 0), MATCH(Selection_Hide2!B$5, 'Full set Core Client Indicator'!$A$3:$AB$3, 0))=\"\", \"\",  INDEX('Full set Core Client Indicator'!$A$3:$AB$351, MATCH(Selection_Hide2!$A184, 'Full set Core Client Indicator'!$A$3:$A$351, 0), MATCH(Selection_Hide2!B$5, 'Full set Core Client Indicator'!$A$3:$AB$3, 0))), \"\")","v":""},{"$f":"IF(B184<>\"\", IF(INDEX('Full set Core Client Indicator'!$A$3:$AB$351, MATCH(Selection_Hide2!$A184, 'Full set Core Client Indicator'!$A$3:$A$351, 0), MATCH(Selection_Hide2!C$5, 'Full set Core Client Indicator'!$A$3:$AB$3, 0))=\"\", \"\",  INDEX('Full set Core Client Indicator'!$A$3:$AB$351, MATCH(Selection_Hide2!$A184, 'Full set Core Client Indicator'!$A$3:$A$351, 0), MATCH(Selection_Hide2!C$5, 'Full set Core Client Indicator'!$A$3:$AB$3, 0))), \"\")","v":""},{"$f":"IF(C184<>\"\", IF(INDEX('Full set Core Client Indicator'!$A$3:$AB$351, MATCH(Selection_Hide2!$A184, 'Full set Core Client Indicator'!$A$3:$A$351, 0), MATCH(Selection_Hide2!D$5, 'Full set Core Client Indicator'!$A$3:$AB$3, 0))=\"\", \"\",  INDEX('Full set Core Client Indicator'!$A$3:$AB$351, MATCH(Selection_Hide2!$A184, 'Full set Core Client Indicator'!$A$3:$A$351, 0), MATCH(Selection_Hide2!D$5, 'Full set Core Client Indicator'!$A$3:$AB$3, 0))), \"\")","v":""},{"$f":"IF(D184<>\"\", IF(INDEX('Full set Core Client Indicator'!$A$3:$AB$351, MATCH(Selection_Hide2!$A184, 'Full set Core Client Indicator'!$A$3:$A$351, 0), MATCH(Selection_Hide2!E$5, 'Full set Core Client Indicator'!$A$3:$AB$3, 0))=\"\", \"\",  INDEX('Full set Core Client Indicator'!$A$3:$AB$351, MATCH(Selection_Hide2!$A184, 'Full set Core Client Indicator'!$A$3:$A$351, 0), MATCH(Selection_Hide2!E$5, 'Full set Core Client Indicator'!$A$3:$AB$3, 0))), \"\")","v":""},{"$f":"IF(E184<>\"\", IF(INDEX('Full set Core Client Indicator'!$A$3:$AB$351, MATCH(Selection_Hide2!$A184, 'Full set Core Client Indicator'!$A$3:$A$351, 0), MATCH(Selection_Hide2!F$5, 'Full set Core Client Indicator'!$A$3:$AB$3, 0))=\"\", \"\",  INDEX('Full set Core Client Indicator'!$A$3:$AB$351, MATCH(Selection_Hide2!$A184, 'Full set Core Client Indicator'!$A$3:$A$351, 0), MATCH(Selection_Hide2!F$5, 'Full set Core Client Indicator'!$A$3:$AB$3, 0))), \"\")","v":""},{"$f":"IF(F184<>\"\", IF(INDEX('Full set Core Client Indicator'!$A$3:$AB$351, MATCH(Selection_Hide2!$A184, 'Full set Core Client Indicator'!$A$3:$A$351, 0), MATCH(Selection_Hide2!G$5, 'Full set Core Client Indicator'!$A$3:$AB$3, 0))=\"\", \"\",  INDEX('Full set Core Client Indicator'!$A$3:$AB$351, MATCH(Selection_Hide2!$A184, 'Full set Core Client Indicator'!$A$3:$A$351, 0), MATCH(Selection_Hide2!G$5, 'Full set Core Client Indicator'!$A$3:$AB$3, 0))), \"\")","v":""},{"$f":"IF(G184<>\"\", IF(INDEX('Full set Core Client Indicator'!$A$3:$AB$351, MATCH(Selection_Hide2!$A184, 'Full set Core Client Indicator'!$A$3:$A$351, 0), MATCH(Selection_Hide2!H$5, 'Full set Core Client Indicator'!$A$3:$AB$3, 0))=\"\", \"\",  INDEX('Full set Core Client Indicator'!$A$3:$AB$351, MATCH(Selection_Hide2!$A184, 'Full set Core Client Indicator'!$A$3:$A$351, 0), MATCH(Selection_Hide2!H$5, 'Full set Core Client Indicator'!$A$3:$AB$3, 0))), \"\")","v":""},{"$f":"IF(H184<>\"\", IF(INDEX('Full set Core Client Indicator'!$A$3:$AB$351, MATCH(Selection_Hide2!$A184, 'Full set Core Client Indicator'!$A$3:$A$351, 0), MATCH(Selection_Hide2!I$5, 'Full set Core Client Indicator'!$A$3:$AB$3, 0))=\"\", \"\",  INDEX('Full set Core Client Indicator'!$A$3:$AB$351, MATCH(Selection_Hide2!$A184, 'Full set Core Client Indicator'!$A$3:$A$351, 0), MATCH(Selection_Hide2!I$5, 'Full set Core Client Indicator'!$A$3:$AB$3, 0))), \"\")","v":""},{"$f":"IF(I184<>\"\", IF(INDEX('Full set Core Client Indicator'!$A$3:$AB$351, MATCH(Selection_Hide2!$A184, 'Full set Core Client Indicator'!$A$3:$A$351, 0), MATCH(Selection_Hide2!J$5, 'Full set Core Client Indicator'!$A$3:$AB$3, 0))=\"\", \"\",  INDEX('Full set Core Client Indicator'!$A$3:$AB$351, MATCH(Selection_Hide2!$A184, 'Full set Core Client Indicator'!$A$3:$A$351, 0), MATCH(Selection_Hide2!J$5, 'Full set Core Client Indicator'!$A$3:$AB$3, 0))), \"\")","v":""},{"$f":"IF(J184<>\"\", IF(INDEX('Full set Core Client Indicator'!$A$3:$AB$351, MATCH(Selection_Hide2!$A184, 'Full set Core Client Indicator'!$A$3:$A$351, 0), MATCH(Selection_Hide2!K$5, 'Full set Core Client Indicator'!$A$3:$AB$3, 0))=\"\", \"\",  INDEX('Full set Core Client Indicator'!$A$3:$AB$351, MATCH(Selection_Hide2!$A184, 'Full set Core Client Indicator'!$A$3:$A$351, 0), MATCH(Selection_Hide2!K$5, 'Full set Core Client Indicator'!$A$3:$AB$3, 0))), \"\")","v":""},{"$f":"IF(K184<>\"\", IF(INDEX('Full set Core Client Indicator'!$A$3:$AB$351, MATCH(Selection_Hide2!$A184, 'Full set Core Client Indicator'!$A$3:$A$351, 0), MATCH(Selection_Hide2!L$5, 'Full set Core Client Indicator'!$A$3:$AB$3, 0))=\"\", \"\",  INDEX('Full set Core Client Indicator'!$A$3:$AB$351, MATCH(Selection_Hide2!$A184, 'Full set Core Client Indicator'!$A$3:$A$351, 0), MATCH(Selection_Hide2!L$5, 'Full set Core Client Indicator'!$A$3:$AB$3, 0))), \"\")","v":""},{"$f":"IF(L184<>\"\", IF(INDEX('Full set Core Client Indicator'!$A$3:$AB$351, MATCH(Selection_Hide2!$A184, 'Full set Core Client Indicator'!$A$3:$A$351, 0), MATCH(Selection_Hide2!M$5, 'Full set Core Client Indicator'!$A$3:$AB$3, 0))=\"\", \"\",  INDEX('Full set Core Client Indicator'!$A$3:$AB$351, MATCH(Selection_Hide2!$A184, 'Full set Core Client Indicator'!$A$3:$A$351, 0), MATCH(Selection_Hide2!M$5, 'Full set Core Client Indicator'!$A$3:$AB$3, 0))), \"\")","v":""},{"$f":"IF(M184<>\"\", IF(INDEX('Full set Core Client Indicator'!$A$3:$AB$351, MATCH(Selection_Hide2!$A184, 'Full set Core Client Indicator'!$A$3:$A$351, 0), MATCH(Selection_Hide2!N$5, 'Full set Core Client Indicator'!$A$3:$AB$3, 0))=\"\", \"\",  INDEX('Full set Core Client Indicator'!$A$3:$AB$351, MATCH(Selection_Hide2!$A184, 'Full set Core Client Indicator'!$A$3:$A$351, 0), MATCH(Selection_Hide2!N$5, 'Full set Core Client Indicator'!$A$3:$AB$3, 0))), \"\")","v":""},{"$f":"IF(N184<>\"\", IF(INDEX('Full set Core Client Indicator'!$A$3:$AB$351, MATCH(Selection_Hide2!$A184, 'Full set Core Client Indicator'!$A$3:$A$351, 0), MATCH(Selection_Hide2!O$5, 'Full set Core Client Indicator'!$A$3:$AB$3, 0))=\"\", \"\",  INDEX('Full set Core Client Indicator'!$A$3:$AB$351, MATCH(Selection_Hide2!$A184, 'Full set Core Client Indicator'!$A$3:$A$351, 0), MATCH(Selection_Hide2!O$5, 'Full set Core Client Indicator'!$A$3:$AB$3, 0))), \"\")","v":""},{"$f":"IF(O184<>\"\", IF(INDEX('Full set Core Client Indicator'!$A$3:$AB$351, MATCH(Selection_Hide2!$A184, 'Full set Core Client Indicator'!$A$3:$A$351, 0), MATCH(Selection_Hide2!P$5, 'Full set Core Client Indicator'!$A$3:$AB$3, 0))=\"\", \"\",  INDEX('Full set Core Client Indicator'!$A$3:$AB$351, MATCH(Selection_Hide2!$A184, 'Full set Core Client Indicator'!$A$3:$A$351, 0), MATCH(Selection_Hide2!P$5, 'Full set Core Client Indicator'!$A$3:$AB$3, 0))), \"\")","v":""},{"$f":"IF(P184<>\"\", IF(INDEX('Full set Core Client Indicator'!$A$3:$AB$351, MATCH(Selection_Hide2!$A184, 'Full set Core Client Indicator'!$A$3:$A$351, 0), MATCH(Selection_Hide2!Q$5, 'Full set Core Client Indicator'!$A$3:$AB$3, 0))=\"\", \"\",  INDEX('Full set Core Client Indicator'!$A$3:$AB$351, MATCH(Selection_Hide2!$A184, 'Full set Core Client Indicator'!$A$3:$A$351, 0), MATCH(Selection_Hide2!Q$5, 'Full set Core Client Indicator'!$A$3:$AB$3, 0))), \"\")","v":""},{"$f":"IF(Q184<>\"\", IF(INDEX('Full set Core Client Indicator'!$A$3:$AB$351, MATCH(Selection_Hide2!$A184, 'Full set Core Client Indicator'!$A$3:$A$351, 0), MATCH(Selection_Hide2!R$5, 'Full set Core Client Indicator'!$A$3:$AB$3, 0))=\"\", \"\",  INDEX('Full set Core Client Indicator'!$A$3:$AB$351, MATCH(Selection_Hide2!$A184, 'Full set Core Client Indicator'!$A$3:$A$351, 0), MATCH(Selection_Hide2!R$5, 'Full set Core Client Indicator'!$A$3:$AB$3, 0))), \"\")","v":""},{"$f":"IF(R184<>\"\", IF(INDEX('Full set Core Client Indicator'!$A$3:$AB$351, MATCH(Selection_Hide2!$A184, 'Full set Core Client Indicator'!$A$3:$A$351, 0), MATCH(Selection_Hide2!S$5, 'Full set Core Client Indicator'!$A$3:$AB$3, 0))=\"\", \"\",  INDEX('Full set Core Client Indicator'!$A$3:$AB$351, MATCH(Selection_Hide2!$A184, 'Full set Core Client Indicator'!$A$3:$A$351, 0), MATCH(Selection_Hide2!S$5, 'Full set Core Client Indicator'!$A$3:$AB$3, 0))), \"\")","v":""},{"$f":"IF(S184<>\"\", IF(INDEX('Full set Core Client Indicator'!$A$3:$AB$351, MATCH(Selection_Hide2!$A184, 'Full set Core Client Indicator'!$A$3:$A$351, 0), MATCH(Selection_Hide2!T$5, 'Full set Core Client Indicator'!$A$3:$AB$3, 0))=\"\", \"\",  INDEX('Full set Core Client Indicator'!$A$3:$AB$351, MATCH(Selection_Hide2!$A184, 'Full set Core Client Indicator'!$A$3:$A$351, 0), MATCH(Selection_Hide2!T$5, 'Full set Core Client Indicator'!$A$3:$AB$3, 0))), \"\")","v":""},{"$f":"IF(T184<>\"\", IF(INDEX('Full set Core Client Indicator'!$A$3:$AB$351, MATCH(Selection_Hide2!$A184, 'Full set Core Client Indicator'!$A$3:$A$351, 0), MATCH(Selection_Hide2!U$5, 'Full set Core Client Indicator'!$A$3:$AB$3, 0))=\"\", \"\",  INDEX('Full set Core Client Indicator'!$A$3:$AB$351, MATCH(Selection_Hide2!$A184, 'Full set Core Client Indicator'!$A$3:$A$351, 0), MATCH(Selection_Hide2!U$5, 'Full set Core Client Indicator'!$A$3:$AB$3, 0))), \"\")","v":""},{"$f":"IF(U184<>\"\", IF(INDEX('Full set Core Client Indicator'!$A$3:$AB$351, MATCH(Selection_Hide2!$A184, 'Full set Core Client Indicator'!$A$3:$A$351, 0), MATCH(Selection_Hide2!V$5, 'Full set Core Client Indicator'!$A$3:$AB$3, 0))=\"\", \"\",  INDEX('Full set Core Client Indicator'!$A$3:$AB$351, MATCH(Selection_Hide2!$A184, 'Full set Core Client Indicator'!$A$3:$A$351, 0), MATCH(Selection_Hide2!V$5, 'Full set Core Client Indicator'!$A$3:$AB$3, 0))), \"\")","v":""},{"$f":"IF(V184<>\"\", IF(INDEX('Full set Core Client Indicator'!$A$3:$AB$351, MATCH(Selection_Hide2!$A184, 'Full set Core Client Indicator'!$A$3:$A$351, 0), MATCH(Selection_Hide2!W$5, 'Full set Core Client Indicator'!$A$3:$AB$3, 0))=\"\", \"\",  INDEX('Full set Core Client Indicator'!$A$3:$AB$351, MATCH(Selection_Hide2!$A184, 'Full set Core Client Indicator'!$A$3:$A$351, 0), MATCH(Selection_Hide2!W$5, 'Full set Core Client Indicator'!$A$3:$AB$3, 0))), \"\")","v":""},{"$f":"IF(W184<>\"\", IF(INDEX('Full set Core Client Indicator'!$A$3:$AB$351, MATCH(Selection_Hide2!$A184, 'Full set Core Client Indicator'!$A$3:$A$351, 0), MATCH(Selection_Hide2!X$5, 'Full set Core Client Indicator'!$A$3:$AB$3, 0))=\"\", \"\",  INDEX('Full set Core Client Indicator'!$A$3:$AB$351, MATCH(Selection_Hide2!$A184, 'Full set Core Client Indicator'!$A$3:$A$351, 0), MATCH(Selection_Hide2!X$5, 'Full set Core Client Indicator'!$A$3:$AB$3, 0))), \"\")","v":""},{"$f":"IF(X184<>\"\", IF(INDEX('Full set Core Client Indicator'!$A$3:$AB$351, MATCH(Selection_Hide2!$A184, 'Full set Core Client Indicator'!$A$3:$A$351, 0), MATCH(Selection_Hide2!Y$5, 'Full set Core Client Indicator'!$A$3:$AB$3, 0))=\"\", \"\",  INDEX('Full set Core Client Indicator'!$A$3:$AB$351, MATCH(Selection_Hide2!$A184, 'Full set Core Client Indicator'!$A$3:$A$351, 0), MATCH(Selection_Hide2!Y$5, 'Full set Core Client Indicator'!$A$3:$AB$3, 0))), \"\")","v":""},{"$f":"IF(Y184<>\"\", IF(INDEX('Full set Core Client Indicator'!$A$3:$AB$351, MATCH(Selection_Hide2!$A184, 'Full set Core Client Indicator'!$A$3:$A$351, 0), MATCH(Selection_Hide2!Z$5, 'Full set Core Client Indicator'!$A$3:$AB$3, 0))=\"\", \"\",  INDEX('Full set Core Client Indicator'!$A$3:$AB$351, MATCH(Selection_Hide2!$A184, 'Full set Core Client Indicator'!$A$3:$A$351, 0), MATCH(Selection_Hide2!Z$5, 'Full set Core Client Indicator'!$A$3:$AB$3, 0))), \"\")","v":""},{"$f":"IF(Z184<>\"\", IF(INDEX('Full set Core Client Indicator'!$A$3:$AB$351, MATCH(Selection_Hide2!$A184, 'Full set Core Client Indicator'!$A$3:$A$351, 0), MATCH(Selection_Hide2!AA$5, 'Full set Core Client Indicator'!$A$3:$AB$3, 0))=\"\", \"\",  INDEX('Full set Core Client Indicator'!$A$3:$AB$351, MATCH(Selection_Hide2!$A184, 'Full set Core Client Indicator'!$A$3:$A$351, 0), MATCH(Selection_Hide2!AA$5, 'Full set Core Client Indicator'!$A$3:$AB$3, 0))), \"\")","v":""},{"$f":"IF(AA184<>\"\", IF(INDEX('Full set Core Client Indicator'!$A$3:$AB$351, MATCH(Selection_Hide2!$A184, 'Full set Core Client Indicator'!$A$3:$A$351, 0), MATCH(Selection_Hide2!AB$5, 'Full set Core Client Indicator'!$A$3:$AB$3, 0))=\"\", \"\",  INDEX('Full set Core Client Indicator'!$A$3:$AB$351, MATCH(Selection_Hide2!$A184, 'Full set Core Client Indicator'!$A$3:$A$351, 0), MATCH(Selection_Hide2!AB$5, 'Full set Core Client Indicator'!$A$3:$AB$3, 0))), \"\")","v":""}]
[{"$f":"IF(AND(Selection_Hide1!C183<>0, Selection_Hide1!C183<>\"Grand Total\"), Selection_Hide1!C183, \"\")","v":""},{"$f":"IF(A185<>\"\", IF(INDEX('Full set Core Client Indicator'!$A$3:$AB$351, MATCH(Selection_Hide2!$A185, 'Full set Core Client Indicator'!$A$3:$A$351, 0), MATCH(Selection_Hide2!B$5, 'Full set Core Client Indicator'!$A$3:$AB$3, 0))=\"\", \"\",  INDEX('Full set Core Client Indicator'!$A$3:$AB$351, MATCH(Selection_Hide2!$A185, 'Full set Core Client Indicator'!$A$3:$A$351, 0), MATCH(Selection_Hide2!B$5, 'Full set Core Client Indicator'!$A$3:$AB$3, 0))), \"\")","v":""},{"$f":"IF(B185<>\"\", IF(INDEX('Full set Core Client Indicator'!$A$3:$AB$351, MATCH(Selection_Hide2!$A185, 'Full set Core Client Indicator'!$A$3:$A$351, 0), MATCH(Selection_Hide2!C$5, 'Full set Core Client Indicator'!$A$3:$AB$3, 0))=\"\", \"\",  INDEX('Full set Core Client Indicator'!$A$3:$AB$351, MATCH(Selection_Hide2!$A185, 'Full set Core Client Indicator'!$A$3:$A$351, 0), MATCH(Selection_Hide2!C$5, 'Full set Core Client Indicator'!$A$3:$AB$3, 0))), \"\")","v":""},{"$f":"IF(C185<>\"\", IF(INDEX('Full set Core Client Indicator'!$A$3:$AB$351, MATCH(Selection_Hide2!$A185, 'Full set Core Client Indicator'!$A$3:$A$351, 0), MATCH(Selection_Hide2!D$5, 'Full set Core Client Indicator'!$A$3:$AB$3, 0))=\"\", \"\",  INDEX('Full set Core Client Indicator'!$A$3:$AB$351, MATCH(Selection_Hide2!$A185, 'Full set Core Client Indicator'!$A$3:$A$351, 0), MATCH(Selection_Hide2!D$5, 'Full set Core Client Indicator'!$A$3:$AB$3, 0))), \"\")","v":""},{"$f":"IF(D185<>\"\", IF(INDEX('Full set Core Client Indicator'!$A$3:$AB$351, MATCH(Selection_Hide2!$A185, 'Full set Core Client Indicator'!$A$3:$A$351, 0), MATCH(Selection_Hide2!E$5, 'Full set Core Client Indicator'!$A$3:$AB$3, 0))=\"\", \"\",  INDEX('Full set Core Client Indicator'!$A$3:$AB$351, MATCH(Selection_Hide2!$A185, 'Full set Core Client Indicator'!$A$3:$A$351, 0), MATCH(Selection_Hide2!E$5, 'Full set Core Client Indicator'!$A$3:$AB$3, 0))), \"\")","v":""},{"$f":"IF(E185<>\"\", IF(INDEX('Full set Core Client Indicator'!$A$3:$AB$351, MATCH(Selection_Hide2!$A185, 'Full set Core Client Indicator'!$A$3:$A$351, 0), MATCH(Selection_Hide2!F$5, 'Full set Core Client Indicator'!$A$3:$AB$3, 0))=\"\", \"\",  INDEX('Full set Core Client Indicator'!$A$3:$AB$351, MATCH(Selection_Hide2!$A185, 'Full set Core Client Indicator'!$A$3:$A$351, 0), MATCH(Selection_Hide2!F$5, 'Full set Core Client Indicator'!$A$3:$AB$3, 0))), \"\")","v":""},{"$f":"IF(F185<>\"\", IF(INDEX('Full set Core Client Indicator'!$A$3:$AB$351, MATCH(Selection_Hide2!$A185, 'Full set Core Client Indicator'!$A$3:$A$351, 0), MATCH(Selection_Hide2!G$5, 'Full set Core Client Indicator'!$A$3:$AB$3, 0))=\"\", \"\",  INDEX('Full set Core Client Indicator'!$A$3:$AB$351, MATCH(Selection_Hide2!$A185, 'Full set Core Client Indicator'!$A$3:$A$351, 0), MATCH(Selection_Hide2!G$5, 'Full set Core Client Indicator'!$A$3:$AB$3, 0))), \"\")","v":""},{"$f":"IF(G185<>\"\", IF(INDEX('Full set Core Client Indicator'!$A$3:$AB$351, MATCH(Selection_Hide2!$A185, 'Full set Core Client Indicator'!$A$3:$A$351, 0), MATCH(Selection_Hide2!H$5, 'Full set Core Client Indicator'!$A$3:$AB$3, 0))=\"\", \"\",  INDEX('Full set Core Client Indicator'!$A$3:$AB$351, MATCH(Selection_Hide2!$A185, 'Full set Core Client Indicator'!$A$3:$A$351, 0), MATCH(Selection_Hide2!H$5, 'Full set Core Client Indicator'!$A$3:$AB$3, 0))), \"\")","v":""},{"$f":"IF(H185<>\"\", IF(INDEX('Full set Core Client Indicator'!$A$3:$AB$351, MATCH(Selection_Hide2!$A185, 'Full set Core Client Indicator'!$A$3:$A$351, 0), MATCH(Selection_Hide2!I$5, 'Full set Core Client Indicator'!$A$3:$AB$3, 0))=\"\", \"\",  INDEX('Full set Core Client Indicator'!$A$3:$AB$351, MATCH(Selection_Hide2!$A185, 'Full set Core Client Indicator'!$A$3:$A$351, 0), MATCH(Selection_Hide2!I$5, 'Full set Core Client Indicator'!$A$3:$AB$3, 0))), \"\")","v":""},{"$f":"IF(I185<>\"\", IF(INDEX('Full set Core Client Indicator'!$A$3:$AB$351, MATCH(Selection_Hide2!$A185, 'Full set Core Client Indicator'!$A$3:$A$351, 0), MATCH(Selection_Hide2!J$5, 'Full set Core Client Indicator'!$A$3:$AB$3, 0))=\"\", \"\",  INDEX('Full set Core Client Indicator'!$A$3:$AB$351, MATCH(Selection_Hide2!$A185, 'Full set Core Client Indicator'!$A$3:$A$351, 0), MATCH(Selection_Hide2!J$5, 'Full set Core Client Indicator'!$A$3:$AB$3, 0))), \"\")","v":""},{"$f":"IF(J185<>\"\", IF(INDEX('Full set Core Client Indicator'!$A$3:$AB$351, MATCH(Selection_Hide2!$A185, 'Full set Core Client Indicator'!$A$3:$A$351, 0), MATCH(Selection_Hide2!K$5, 'Full set Core Client Indicator'!$A$3:$AB$3, 0))=\"\", \"\",  INDEX('Full set Core Client Indicator'!$A$3:$AB$351, MATCH(Selection_Hide2!$A185, 'Full set Core Client Indicator'!$A$3:$A$351, 0), MATCH(Selection_Hide2!K$5, 'Full set Core Client Indicator'!$A$3:$AB$3, 0))), \"\")","v":""},{"$f":"IF(K185<>\"\", IF(INDEX('Full set Core Client Indicator'!$A$3:$AB$351, MATCH(Selection_Hide2!$A185, 'Full set Core Client Indicator'!$A$3:$A$351, 0), MATCH(Selection_Hide2!L$5, 'Full set Core Client Indicator'!$A$3:$AB$3, 0))=\"\", \"\",  INDEX('Full set Core Client Indicator'!$A$3:$AB$351, MATCH(Selection_Hide2!$A185, 'Full set Core Client Indicator'!$A$3:$A$351, 0), MATCH(Selection_Hide2!L$5, 'Full set Core Client Indicator'!$A$3:$AB$3, 0))), \"\")","v":""},{"$f":"IF(L185<>\"\", IF(INDEX('Full set Core Client Indicator'!$A$3:$AB$351, MATCH(Selection_Hide2!$A185, 'Full set Core Client Indicator'!$A$3:$A$351, 0), MATCH(Selection_Hide2!M$5, 'Full set Core Client Indicator'!$A$3:$AB$3, 0))=\"\", \"\",  INDEX('Full set Core Client Indicator'!$A$3:$AB$351, MATCH(Selection_Hide2!$A185, 'Full set Core Client Indicator'!$A$3:$A$351, 0), MATCH(Selection_Hide2!M$5, 'Full set Core Client Indicator'!$A$3:$AB$3, 0))), \"\")","v":""},{"$f":"IF(M185<>\"\", IF(INDEX('Full set Core Client Indicator'!$A$3:$AB$351, MATCH(Selection_Hide2!$A185, 'Full set Core Client Indicator'!$A$3:$A$351, 0), MATCH(Selection_Hide2!N$5, 'Full set Core Client Indicator'!$A$3:$AB$3, 0))=\"\", \"\",  INDEX('Full set Core Client Indicator'!$A$3:$AB$351, MATCH(Selection_Hide2!$A185, 'Full set Core Client Indicator'!$A$3:$A$351, 0), MATCH(Selection_Hide2!N$5, 'Full set Core Client Indicator'!$A$3:$AB$3, 0))), \"\")","v":""},{"$f":"IF(N185<>\"\", IF(INDEX('Full set Core Client Indicator'!$A$3:$AB$351, MATCH(Selection_Hide2!$A185, 'Full set Core Client Indicator'!$A$3:$A$351, 0), MATCH(Selection_Hide2!O$5, 'Full set Core Client Indicator'!$A$3:$AB$3, 0))=\"\", \"\",  INDEX('Full set Core Client Indicator'!$A$3:$AB$351, MATCH(Selection_Hide2!$A185, 'Full set Core Client Indicator'!$A$3:$A$351, 0), MATCH(Selection_Hide2!O$5, 'Full set Core Client Indicator'!$A$3:$AB$3, 0))), \"\")","v":""},{"$f":"IF(O185<>\"\", IF(INDEX('Full set Core Client Indicator'!$A$3:$AB$351, MATCH(Selection_Hide2!$A185, 'Full set Core Client Indicator'!$A$3:$A$351, 0), MATCH(Selection_Hide2!P$5, 'Full set Core Client Indicator'!$A$3:$AB$3, 0))=\"\", \"\",  INDEX('Full set Core Client Indicator'!$A$3:$AB$351, MATCH(Selection_Hide2!$A185, 'Full set Core Client Indicator'!$A$3:$A$351, 0), MATCH(Selection_Hide2!P$5, 'Full set Core Client Indicator'!$A$3:$AB$3, 0))), \"\")","v":""},{"$f":"IF(P185<>\"\", IF(INDEX('Full set Core Client Indicator'!$A$3:$AB$351, MATCH(Selection_Hide2!$A185, 'Full set Core Client Indicator'!$A$3:$A$351, 0), MATCH(Selection_Hide2!Q$5, 'Full set Core Client Indicator'!$A$3:$AB$3, 0))=\"\", \"\",  INDEX('Full set Core Client Indicator'!$A$3:$AB$351, MATCH(Selection_Hide2!$A185, 'Full set Core Client Indicator'!$A$3:$A$351, 0), MATCH(Selection_Hide2!Q$5, 'Full set Core Client Indicator'!$A$3:$AB$3, 0))), \"\")","v":""},{"$f":"IF(Q185<>\"\", IF(INDEX('Full set Core Client Indicator'!$A$3:$AB$351, MATCH(Selection_Hide2!$A185, 'Full set Core Client Indicator'!$A$3:$A$351, 0), MATCH(Selection_Hide2!R$5, 'Full set Core Client Indicator'!$A$3:$AB$3, 0))=\"\", \"\",  INDEX('Full set Core Client Indicator'!$A$3:$AB$351, MATCH(Selection_Hide2!$A185, 'Full set Core Client Indicator'!$A$3:$A$351, 0), MATCH(Selection_Hide2!R$5, 'Full set Core Client Indicator'!$A$3:$AB$3, 0))), \"\")","v":""},{"$f":"IF(R185<>\"\", IF(INDEX('Full set Core Client Indicator'!$A$3:$AB$351, MATCH(Selection_Hide2!$A185, 'Full set Core Client Indicator'!$A$3:$A$351, 0), MATCH(Selection_Hide2!S$5, 'Full set Core Client Indicator'!$A$3:$AB$3, 0))=\"\", \"\",  INDEX('Full set Core Client Indicator'!$A$3:$AB$351, MATCH(Selection_Hide2!$A185, 'Full set Core Client Indicator'!$A$3:$A$351, 0), MATCH(Selection_Hide2!S$5, 'Full set Core Client Indicator'!$A$3:$AB$3, 0))), \"\")","v":""},{"$f":"IF(S185<>\"\", IF(INDEX('Full set Core Client Indicator'!$A$3:$AB$351, MATCH(Selection_Hide2!$A185, 'Full set Core Client Indicator'!$A$3:$A$351, 0), MATCH(Selection_Hide2!T$5, 'Full set Core Client Indicator'!$A$3:$AB$3, 0))=\"\", \"\",  INDEX('Full set Core Client Indicator'!$A$3:$AB$351, MATCH(Selection_Hide2!$A185, 'Full set Core Client Indicator'!$A$3:$A$351, 0), MATCH(Selection_Hide2!T$5, 'Full set Core Client Indicator'!$A$3:$AB$3, 0))), \"\")","v":""},{"$f":"IF(T185<>\"\", IF(INDEX('Full set Core Client Indicator'!$A$3:$AB$351, MATCH(Selection_Hide2!$A185, 'Full set Core Client Indicator'!$A$3:$A$351, 0), MATCH(Selection_Hide2!U$5, 'Full set Core Client Indicator'!$A$3:$AB$3, 0))=\"\", \"\",  INDEX('Full set Core Client Indicator'!$A$3:$AB$351, MATCH(Selection_Hide2!$A185, 'Full set Core Client Indicator'!$A$3:$A$351, 0), MATCH(Selection_Hide2!U$5, 'Full set Core Client Indicator'!$A$3:$AB$3, 0))), \"\")","v":""},{"$f":"IF(U185<>\"\", IF(INDEX('Full set Core Client Indicator'!$A$3:$AB$351, MATCH(Selection_Hide2!$A185, 'Full set Core Client Indicator'!$A$3:$A$351, 0), MATCH(Selection_Hide2!V$5, 'Full set Core Client Indicator'!$A$3:$AB$3, 0))=\"\", \"\",  INDEX('Full set Core Client Indicator'!$A$3:$AB$351, MATCH(Selection_Hide2!$A185, 'Full set Core Client Indicator'!$A$3:$A$351, 0), MATCH(Selection_Hide2!V$5, 'Full set Core Client Indicator'!$A$3:$AB$3, 0))), \"\")","v":""},{"$f":"IF(V185<>\"\", IF(INDEX('Full set Core Client Indicator'!$A$3:$AB$351, MATCH(Selection_Hide2!$A185, 'Full set Core Client Indicator'!$A$3:$A$351, 0), MATCH(Selection_Hide2!W$5, 'Full set Core Client Indicator'!$A$3:$AB$3, 0))=\"\", \"\",  INDEX('Full set Core Client Indicator'!$A$3:$AB$351, MATCH(Selection_Hide2!$A185, 'Full set Core Client Indicator'!$A$3:$A$351, 0), MATCH(Selection_Hide2!W$5, 'Full set Core Client Indicator'!$A$3:$AB$3, 0))), \"\")","v":""},{"$f":"IF(W185<>\"\", IF(INDEX('Full set Core Client Indicator'!$A$3:$AB$351, MATCH(Selection_Hide2!$A185, 'Full set Core Client Indicator'!$A$3:$A$351, 0), MATCH(Selection_Hide2!X$5, 'Full set Core Client Indicator'!$A$3:$AB$3, 0))=\"\", \"\",  INDEX('Full set Core Client Indicator'!$A$3:$AB$351, MATCH(Selection_Hide2!$A185, 'Full set Core Client Indicator'!$A$3:$A$351, 0), MATCH(Selection_Hide2!X$5, 'Full set Core Client Indicator'!$A$3:$AB$3, 0))), \"\")","v":""},{"$f":"IF(X185<>\"\", IF(INDEX('Full set Core Client Indicator'!$A$3:$AB$351, MATCH(Selection_Hide2!$A185, 'Full set Core Client Indicator'!$A$3:$A$351, 0), MATCH(Selection_Hide2!Y$5, 'Full set Core Client Indicator'!$A$3:$AB$3, 0))=\"\", \"\",  INDEX('Full set Core Client Indicator'!$A$3:$AB$351, MATCH(Selection_Hide2!$A185, 'Full set Core Client Indicator'!$A$3:$A$351, 0), MATCH(Selection_Hide2!Y$5, 'Full set Core Client Indicator'!$A$3:$AB$3, 0))), \"\")","v":""},{"$f":"IF(Y185<>\"\", IF(INDEX('Full set Core Client Indicator'!$A$3:$AB$351, MATCH(Selection_Hide2!$A185, 'Full set Core Client Indicator'!$A$3:$A$351, 0), MATCH(Selection_Hide2!Z$5, 'Full set Core Client Indicator'!$A$3:$AB$3, 0))=\"\", \"\",  INDEX('Full set Core Client Indicator'!$A$3:$AB$351, MATCH(Selection_Hide2!$A185, 'Full set Core Client Indicator'!$A$3:$A$351, 0), MATCH(Selection_Hide2!Z$5, 'Full set Core Client Indicator'!$A$3:$AB$3, 0))), \"\")","v":""},{"$f":"IF(Z185<>\"\", IF(INDEX('Full set Core Client Indicator'!$A$3:$AB$351, MATCH(Selection_Hide2!$A185, 'Full set Core Client Indicator'!$A$3:$A$351, 0), MATCH(Selection_Hide2!AA$5, 'Full set Core Client Indicator'!$A$3:$AB$3, 0))=\"\", \"\",  INDEX('Full set Core Client Indicator'!$A$3:$AB$351, MATCH(Selection_Hide2!$A185, 'Full set Core Client Indicator'!$A$3:$A$351, 0), MATCH(Selection_Hide2!AA$5, 'Full set Core Client Indicator'!$A$3:$AB$3, 0))), \"\")","v":""},{"$f":"IF(AA185<>\"\", IF(INDEX('Full set Core Client Indicator'!$A$3:$AB$351, MATCH(Selection_Hide2!$A185, 'Full set Core Client Indicator'!$A$3:$A$351, 0), MATCH(Selection_Hide2!AB$5, 'Full set Core Client Indicator'!$A$3:$AB$3, 0))=\"\", \"\",  INDEX('Full set Core Client Indicator'!$A$3:$AB$351, MATCH(Selection_Hide2!$A185, 'Full set Core Client Indicator'!$A$3:$A$351, 0), MATCH(Selection_Hide2!AB$5, 'Full set Core Client Indicator'!$A$3:$AB$3, 0))), \"\")","v":""}]
[{"$f":"IF(AND(Selection_Hide1!C184<>0, Selection_Hide1!C184<>\"Grand Total\"), Selection_Hide1!C184, \"\")","v":""},{"$f":"IF(A186<>\"\", IF(INDEX('Full set Core Client Indicator'!$A$3:$AB$351, MATCH(Selection_Hide2!$A186, 'Full set Core Client Indicator'!$A$3:$A$351, 0), MATCH(Selection_Hide2!B$5, 'Full set Core Client Indicator'!$A$3:$AB$3, 0))=\"\", \"\",  INDEX('Full set Core Client Indicator'!$A$3:$AB$351, MATCH(Selection_Hide2!$A186, 'Full set Core Client Indicator'!$A$3:$A$351, 0), MATCH(Selection_Hide2!B$5, 'Full set Core Client Indicator'!$A$3:$AB$3, 0))), \"\")","v":""},{"$f":"IF(B186<>\"\", IF(INDEX('Full set Core Client Indicator'!$A$3:$AB$351, MATCH(Selection_Hide2!$A186, 'Full set Core Client Indicator'!$A$3:$A$351, 0), MATCH(Selection_Hide2!C$5, 'Full set Core Client Indicator'!$A$3:$AB$3, 0))=\"\", \"\",  INDEX('Full set Core Client Indicator'!$A$3:$AB$351, MATCH(Selection_Hide2!$A186, 'Full set Core Client Indicator'!$A$3:$A$351, 0), MATCH(Selection_Hide2!C$5, 'Full set Core Client Indicator'!$A$3:$AB$3, 0))), \"\")","v":""},{"$f":"IF(C186<>\"\", IF(INDEX('Full set Core Client Indicator'!$A$3:$AB$351, MATCH(Selection_Hide2!$A186, 'Full set Core Client Indicator'!$A$3:$A$351, 0), MATCH(Selection_Hide2!D$5, 'Full set Core Client Indicator'!$A$3:$AB$3, 0))=\"\", \"\",  INDEX('Full set Core Client Indicator'!$A$3:$AB$351, MATCH(Selection_Hide2!$A186, 'Full set Core Client Indicator'!$A$3:$A$351, 0), MATCH(Selection_Hide2!D$5, 'Full set Core Client Indicator'!$A$3:$AB$3, 0))), \"\")","v":""},{"$f":"IF(D186<>\"\", IF(INDEX('Full set Core Client Indicator'!$A$3:$AB$351, MATCH(Selection_Hide2!$A186, 'Full set Core Client Indicator'!$A$3:$A$351, 0), MATCH(Selection_Hide2!E$5, 'Full set Core Client Indicator'!$A$3:$AB$3, 0))=\"\", \"\",  INDEX('Full set Core Client Indicator'!$A$3:$AB$351, MATCH(Selection_Hide2!$A186, 'Full set Core Client Indicator'!$A$3:$A$351, 0), MATCH(Selection_Hide2!E$5, 'Full set Core Client Indicator'!$A$3:$AB$3, 0))), \"\")","v":""},{"$f":"IF(E186<>\"\", IF(INDEX('Full set Core Client Indicator'!$A$3:$AB$351, MATCH(Selection_Hide2!$A186, 'Full set Core Client Indicator'!$A$3:$A$351, 0), MATCH(Selection_Hide2!F$5, 'Full set Core Client Indicator'!$A$3:$AB$3, 0))=\"\", \"\",  INDEX('Full set Core Client Indicator'!$A$3:$AB$351, MATCH(Selection_Hide2!$A186, 'Full set Core Client Indicator'!$A$3:$A$351, 0), MATCH(Selection_Hide2!F$5, 'Full set Core Client Indicator'!$A$3:$AB$3, 0))), \"\")","v":""},{"$f":"IF(F186<>\"\", IF(INDEX('Full set Core Client Indicator'!$A$3:$AB$351, MATCH(Selection_Hide2!$A186, 'Full set Core Client Indicator'!$A$3:$A$351, 0), MATCH(Selection_Hide2!G$5, 'Full set Core Client Indicator'!$A$3:$AB$3, 0))=\"\", \"\",  INDEX('Full set Core Client Indicator'!$A$3:$AB$351, MATCH(Selection_Hide2!$A186, 'Full set Core Client Indicator'!$A$3:$A$351, 0), MATCH(Selection_Hide2!G$5, 'Full set Core Client Indicator'!$A$3:$AB$3, 0))), \"\")","v":""},{"$f":"IF(G186<>\"\", IF(INDEX('Full set Core Client Indicator'!$A$3:$AB$351, MATCH(Selection_Hide2!$A186, 'Full set Core Client Indicator'!$A$3:$A$351, 0), MATCH(Selection_Hide2!H$5, 'Full set Core Client Indicator'!$A$3:$AB$3, 0))=\"\", \"\",  INDEX('Full set Core Client Indicator'!$A$3:$AB$351, MATCH(Selection_Hide2!$A186, 'Full set Core Client Indicator'!$A$3:$A$351, 0), MATCH(Selection_Hide2!H$5, 'Full set Core Client Indicator'!$A$3:$AB$3, 0))), \"\")","v":""},{"$f":"IF(H186<>\"\", IF(INDEX('Full set Core Client Indicator'!$A$3:$AB$351, MATCH(Selection_Hide2!$A186, 'Full set Core Client Indicator'!$A$3:$A$351, 0), MATCH(Selection_Hide2!I$5, 'Full set Core Client Indicator'!$A$3:$AB$3, 0))=\"\", \"\",  INDEX('Full set Core Client Indicator'!$A$3:$AB$351, MATCH(Selection_Hide2!$A186, 'Full set Core Client Indicator'!$A$3:$A$351, 0), MATCH(Selection_Hide2!I$5, 'Full set Core Client Indicator'!$A$3:$AB$3, 0))), \"\")","v":""},{"$f":"IF(I186<>\"\", IF(INDEX('Full set Core Client Indicator'!$A$3:$AB$351, MATCH(Selection_Hide2!$A186, 'Full set Core Client Indicator'!$A$3:$A$351, 0), MATCH(Selection_Hide2!J$5, 'Full set Core Client Indicator'!$A$3:$AB$3, 0))=\"\", \"\",  INDEX('Full set Core Client Indicator'!$A$3:$AB$351, MATCH(Selection_Hide2!$A186, 'Full set Core Client Indicator'!$A$3:$A$351, 0), MATCH(Selection_Hide2!J$5, 'Full set Core Client Indicator'!$A$3:$AB$3, 0))), \"\")","v":""},{"$f":"IF(J186<>\"\", IF(INDEX('Full set Core Client Indicator'!$A$3:$AB$351, MATCH(Selection_Hide2!$A186, 'Full set Core Client Indicator'!$A$3:$A$351, 0), MATCH(Selection_Hide2!K$5, 'Full set Core Client Indicator'!$A$3:$AB$3, 0))=\"\", \"\",  INDEX('Full set Core Client Indicator'!$A$3:$AB$351, MATCH(Selection_Hide2!$A186, 'Full set Core Client Indicator'!$A$3:$A$351, 0), MATCH(Selection_Hide2!K$5, 'Full set Core Client Indicator'!$A$3:$AB$3, 0))), \"\")","v":""},{"$f":"IF(K186<>\"\", IF(INDEX('Full set Core Client Indicator'!$A$3:$AB$351, MATCH(Selection_Hide2!$A186, 'Full set Core Client Indicator'!$A$3:$A$351, 0), MATCH(Selection_Hide2!L$5, 'Full set Core Client Indicator'!$A$3:$AB$3, 0))=\"\", \"\",  INDEX('Full set Core Client Indicator'!$A$3:$AB$351, MATCH(Selection_Hide2!$A186, 'Full set Core Client Indicator'!$A$3:$A$351, 0), MATCH(Selection_Hide2!L$5, 'Full set Core Client Indicator'!$A$3:$AB$3, 0))), \"\")","v":""},{"$f":"IF(L186<>\"\", IF(INDEX('Full set Core Client Indicator'!$A$3:$AB$351, MATCH(Selection_Hide2!$A186, 'Full set Core Client Indicator'!$A$3:$A$351, 0), MATCH(Selection_Hide2!M$5, 'Full set Core Client Indicator'!$A$3:$AB$3, 0))=\"\", \"\",  INDEX('Full set Core Client Indicator'!$A$3:$AB$351, MATCH(Selection_Hide2!$A186, 'Full set Core Client Indicator'!$A$3:$A$351, 0), MATCH(Selection_Hide2!M$5, 'Full set Core Client Indicator'!$A$3:$AB$3, 0))), \"\")","v":""},{"$f":"IF(M186<>\"\", IF(INDEX('Full set Core Client Indicator'!$A$3:$AB$351, MATCH(Selection_Hide2!$A186, 'Full set Core Client Indicator'!$A$3:$A$351, 0), MATCH(Selection_Hide2!N$5, 'Full set Core Client Indicator'!$A$3:$AB$3, 0))=\"\", \"\",  INDEX('Full set Core Client Indicator'!$A$3:$AB$351, MATCH(Selection_Hide2!$A186, 'Full set Core Client Indicator'!$A$3:$A$351, 0), MATCH(Selection_Hide2!N$5, 'Full set Core Client Indicator'!$A$3:$AB$3, 0))), \"\")","v":""},{"$f":"IF(N186<>\"\", IF(INDEX('Full set Core Client Indicator'!$A$3:$AB$351, MATCH(Selection_Hide2!$A186, 'Full set Core Client Indicator'!$A$3:$A$351, 0), MATCH(Selection_Hide2!O$5, 'Full set Core Client Indicator'!$A$3:$AB$3, 0))=\"\", \"\",  INDEX('Full set Core Client Indicator'!$A$3:$AB$351, MATCH(Selection_Hide2!$A186, 'Full set Core Client Indicator'!$A$3:$A$351, 0), MATCH(Selection_Hide2!O$5, 'Full set Core Client Indicator'!$A$3:$AB$3, 0))), \"\")","v":""},{"$f":"IF(O186<>\"\", IF(INDEX('Full set Core Client Indicator'!$A$3:$AB$351, MATCH(Selection_Hide2!$A186, 'Full set Core Client Indicator'!$A$3:$A$351, 0), MATCH(Selection_Hide2!P$5, 'Full set Core Client Indicator'!$A$3:$AB$3, 0))=\"\", \"\",  INDEX('Full set Core Client Indicator'!$A$3:$AB$351, MATCH(Selection_Hide2!$A186, 'Full set Core Client Indicator'!$A$3:$A$351, 0), MATCH(Selection_Hide2!P$5, 'Full set Core Client Indicator'!$A$3:$AB$3, 0))), \"\")","v":""},{"$f":"IF(P186<>\"\", IF(INDEX('Full set Core Client Indicator'!$A$3:$AB$351, MATCH(Selection_Hide2!$A186, 'Full set Core Client Indicator'!$A$3:$A$351, 0), MATCH(Selection_Hide2!Q$5, 'Full set Core Client Indicator'!$A$3:$AB$3, 0))=\"\", \"\",  INDEX('Full set Core Client Indicator'!$A$3:$AB$351, MATCH(Selection_Hide2!$A186, 'Full set Core Client Indicator'!$A$3:$A$351, 0), MATCH(Selection_Hide2!Q$5, 'Full set Core Client Indicator'!$A$3:$AB$3, 0))), \"\")","v":""},{"$f":"IF(Q186<>\"\", IF(INDEX('Full set Core Client Indicator'!$A$3:$AB$351, MATCH(Selection_Hide2!$A186, 'Full set Core Client Indicator'!$A$3:$A$351, 0), MATCH(Selection_Hide2!R$5, 'Full set Core Client Indicator'!$A$3:$AB$3, 0))=\"\", \"\",  INDEX('Full set Core Client Indicator'!$A$3:$AB$351, MATCH(Selection_Hide2!$A186, 'Full set Core Client Indicator'!$A$3:$A$351, 0), MATCH(Selection_Hide2!R$5, 'Full set Core Client Indicator'!$A$3:$AB$3, 0))), \"\")","v":""},{"$f":"IF(R186<>\"\", IF(INDEX('Full set Core Client Indicator'!$A$3:$AB$351, MATCH(Selection_Hide2!$A186, 'Full set Core Client Indicator'!$A$3:$A$351, 0), MATCH(Selection_Hide2!S$5, 'Full set Core Client Indicator'!$A$3:$AB$3, 0))=\"\", \"\",  INDEX('Full set Core Client Indicator'!$A$3:$AB$351, MATCH(Selection_Hide2!$A186, 'Full set Core Client Indicator'!$A$3:$A$351, 0), MATCH(Selection_Hide2!S$5, 'Full set Core Client Indicator'!$A$3:$AB$3, 0))), \"\")","v":""},{"$f":"IF(S186<>\"\", IF(INDEX('Full set Core Client Indicator'!$A$3:$AB$351, MATCH(Selection_Hide2!$A186, 'Full set Core Client Indicator'!$A$3:$A$351, 0), MATCH(Selection_Hide2!T$5, 'Full set Core Client Indicator'!$A$3:$AB$3, 0))=\"\", \"\",  INDEX('Full set Core Client Indicator'!$A$3:$AB$351, MATCH(Selection_Hide2!$A186, 'Full set Core Client Indicator'!$A$3:$A$351, 0), MATCH(Selection_Hide2!T$5, 'Full set Core Client Indicator'!$A$3:$AB$3, 0))), \"\")","v":""},{"$f":"IF(T186<>\"\", IF(INDEX('Full set Core Client Indicator'!$A$3:$AB$351, MATCH(Selection_Hide2!$A186, 'Full set Core Client Indicator'!$A$3:$A$351, 0), MATCH(Selection_Hide2!U$5, 'Full set Core Client Indicator'!$A$3:$AB$3, 0))=\"\", \"\",  INDEX('Full set Core Client Indicator'!$A$3:$AB$351, MATCH(Selection_Hide2!$A186, 'Full set Core Client Indicator'!$A$3:$A$351, 0), MATCH(Selection_Hide2!U$5, 'Full set Core Client Indicator'!$A$3:$AB$3, 0))), \"\")","v":""},{"$f":"IF(U186<>\"\", IF(INDEX('Full set Core Client Indicator'!$A$3:$AB$351, MATCH(Selection_Hide2!$A186, 'Full set Core Client Indicator'!$A$3:$A$351, 0), MATCH(Selection_Hide2!V$5, 'Full set Core Client Indicator'!$A$3:$AB$3, 0))=\"\", \"\",  INDEX('Full set Core Client Indicator'!$A$3:$AB$351, MATCH(Selection_Hide2!$A186, 'Full set Core Client Indicator'!$A$3:$A$351, 0), MATCH(Selection_Hide2!V$5, 'Full set Core Client Indicator'!$A$3:$AB$3, 0))), \"\")","v":""},{"$f":"IF(V186<>\"\", IF(INDEX('Full set Core Client Indicator'!$A$3:$AB$351, MATCH(Selection_Hide2!$A186, 'Full set Core Client Indicator'!$A$3:$A$351, 0), MATCH(Selection_Hide2!W$5, 'Full set Core Client Indicator'!$A$3:$AB$3, 0))=\"\", \"\",  INDEX('Full set Core Client Indicator'!$A$3:$AB$351, MATCH(Selection_Hide2!$A186, 'Full set Core Client Indicator'!$A$3:$A$351, 0), MATCH(Selection_Hide2!W$5, 'Full set Core Client Indicator'!$A$3:$AB$3, 0))), \"\")","v":""},{"$f":"IF(W186<>\"\", IF(INDEX('Full set Core Client Indicator'!$A$3:$AB$351, MATCH(Selection_Hide2!$A186, 'Full set Core Client Indicator'!$A$3:$A$351, 0), MATCH(Selection_Hide2!X$5, 'Full set Core Client Indicator'!$A$3:$AB$3, 0))=\"\", \"\",  INDEX('Full set Core Client Indicator'!$A$3:$AB$351, MATCH(Selection_Hide2!$A186, 'Full set Core Client Indicator'!$A$3:$A$351, 0), MATCH(Selection_Hide2!X$5, 'Full set Core Client Indicator'!$A$3:$AB$3, 0))), \"\")","v":""},{"$f":"IF(X186<>\"\", IF(INDEX('Full set Core Client Indicator'!$A$3:$AB$351, MATCH(Selection_Hide2!$A186, 'Full set Core Client Indicator'!$A$3:$A$351, 0), MATCH(Selection_Hide2!Y$5, 'Full set Core Client Indicator'!$A$3:$AB$3, 0))=\"\", \"\",  INDEX('Full set Core Client Indicator'!$A$3:$AB$351, MATCH(Selection_Hide2!$A186, 'Full set Core Client Indicator'!$A$3:$A$351, 0), MATCH(Selection_Hide2!Y$5, 'Full set Core Client Indicator'!$A$3:$AB$3, 0))), \"\")","v":""},{"$f":"IF(Y186<>\"\", IF(INDEX('Full set Core Client Indicator'!$A$3:$AB$351, MATCH(Selection_Hide2!$A186, 'Full set Core Client Indicator'!$A$3:$A$351, 0), MATCH(Selection_Hide2!Z$5, 'Full set Core Client Indicator'!$A$3:$AB$3, 0))=\"\", \"\",  INDEX('Full set Core Client Indicator'!$A$3:$AB$351, MATCH(Selection_Hide2!$A186, 'Full set Core Client Indicator'!$A$3:$A$351, 0), MATCH(Selection_Hide2!Z$5, 'Full set Core Client Indicator'!$A$3:$AB$3, 0))), \"\")","v":""},{"$f":"IF(Z186<>\"\", IF(INDEX('Full set Core Client Indicator'!$A$3:$AB$351, MATCH(Selection_Hide2!$A186, 'Full set Core Client Indicator'!$A$3:$A$351, 0), MATCH(Selection_Hide2!AA$5, 'Full set Core Client Indicator'!$A$3:$AB$3, 0))=\"\", \"\",  INDEX('Full set Core Client Indicator'!$A$3:$AB$351, MATCH(Selection_Hide2!$A186, 'Full set Core Client Indicator'!$A$3:$A$351, 0), MATCH(Selection_Hide2!AA$5, 'Full set Core Client Indicator'!$A$3:$AB$3, 0))), \"\")","v":""},{"$f":"IF(AA186<>\"\", IF(INDEX('Full set Core Client Indicator'!$A$3:$AB$351, MATCH(Selection_Hide2!$A186, 'Full set Core Client Indicator'!$A$3:$A$351, 0), MATCH(Selection_Hide2!AB$5, 'Full set Core Client Indicator'!$A$3:$AB$3, 0))=\"\", \"\",  INDEX('Full set Core Client Indicator'!$A$3:$AB$351, MATCH(Selection_Hide2!$A186, 'Full set Core Client Indicator'!$A$3:$A$351, 0), MATCH(Selection_Hide2!AB$5, 'Full set Core Client Indicator'!$A$3:$AB$3, 0))), \"\")","v":""}]
[{"$f":"IF(AND(Selection_Hide1!C185<>0, Selection_Hide1!C185<>\"Grand Total\"), Selection_Hide1!C185, \"\")","v":""},{"$f":"IF(A187<>\"\", IF(INDEX('Full set Core Client Indicator'!$A$3:$AB$351, MATCH(Selection_Hide2!$A187, 'Full set Core Client Indicator'!$A$3:$A$351, 0), MATCH(Selection_Hide2!B$5, 'Full set Core Client Indicator'!$A$3:$AB$3, 0))=\"\", \"\",  INDEX('Full set Core Client Indicator'!$A$3:$AB$351, MATCH(Selection_Hide2!$A187, 'Full set Core Client Indicator'!$A$3:$A$351, 0), MATCH(Selection_Hide2!B$5, 'Full set Core Client Indicator'!$A$3:$AB$3, 0))), \"\")","v":""},{"$f":"IF(B187<>\"\", IF(INDEX('Full set Core Client Indicator'!$A$3:$AB$351, MATCH(Selection_Hide2!$A187, 'Full set Core Client Indicator'!$A$3:$A$351, 0), MATCH(Selection_Hide2!C$5, 'Full set Core Client Indicator'!$A$3:$AB$3, 0))=\"\", \"\",  INDEX('Full set Core Client Indicator'!$A$3:$AB$351, MATCH(Selection_Hide2!$A187, 'Full set Core Client Indicator'!$A$3:$A$351, 0), MATCH(Selection_Hide2!C$5, 'Full set Core Client Indicator'!$A$3:$AB$3, 0))), \"\")","v":""},{"$f":"IF(C187<>\"\", IF(INDEX('Full set Core Client Indicator'!$A$3:$AB$351, MATCH(Selection_Hide2!$A187, 'Full set Core Client Indicator'!$A$3:$A$351, 0), MATCH(Selection_Hide2!D$5, 'Full set Core Client Indicator'!$A$3:$AB$3, 0))=\"\", \"\",  INDEX('Full set Core Client Indicator'!$A$3:$AB$351, MATCH(Selection_Hide2!$A187, 'Full set Core Client Indicator'!$A$3:$A$351, 0), MATCH(Selection_Hide2!D$5, 'Full set Core Client Indicator'!$A$3:$AB$3, 0))), \"\")","v":""},{"$f":"IF(D187<>\"\", IF(INDEX('Full set Core Client Indicator'!$A$3:$AB$351, MATCH(Selection_Hide2!$A187, 'Full set Core Client Indicator'!$A$3:$A$351, 0), MATCH(Selection_Hide2!E$5, 'Full set Core Client Indicator'!$A$3:$AB$3, 0))=\"\", \"\",  INDEX('Full set Core Client Indicator'!$A$3:$AB$351, MATCH(Selection_Hide2!$A187, 'Full set Core Client Indicator'!$A$3:$A$351, 0), MATCH(Selection_Hide2!E$5, 'Full set Core Client Indicator'!$A$3:$AB$3, 0))), \"\")","v":""},{"$f":"IF(E187<>\"\", IF(INDEX('Full set Core Client Indicator'!$A$3:$AB$351, MATCH(Selection_Hide2!$A187, 'Full set Core Client Indicator'!$A$3:$A$351, 0), MATCH(Selection_Hide2!F$5, 'Full set Core Client Indicator'!$A$3:$AB$3, 0))=\"\", \"\",  INDEX('Full set Core Client Indicator'!$A$3:$AB$351, MATCH(Selection_Hide2!$A187, 'Full set Core Client Indicator'!$A$3:$A$351, 0), MATCH(Selection_Hide2!F$5, 'Full set Core Client Indicator'!$A$3:$AB$3, 0))), \"\")","v":""},{"$f":"IF(F187<>\"\", IF(INDEX('Full set Core Client Indicator'!$A$3:$AB$351, MATCH(Selection_Hide2!$A187, 'Full set Core Client Indicator'!$A$3:$A$351, 0), MATCH(Selection_Hide2!G$5, 'Full set Core Client Indicator'!$A$3:$AB$3, 0))=\"\", \"\",  INDEX('Full set Core Client Indicator'!$A$3:$AB$351, MATCH(Selection_Hide2!$A187, 'Full set Core Client Indicator'!$A$3:$A$351, 0), MATCH(Selection_Hide2!G$5, 'Full set Core Client Indicator'!$A$3:$AB$3, 0))), \"\")","v":""},{"$f":"IF(G187<>\"\", IF(INDEX('Full set Core Client Indicator'!$A$3:$AB$351, MATCH(Selection_Hide2!$A187, 'Full set Core Client Indicator'!$A$3:$A$351, 0), MATCH(Selection_Hide2!H$5, 'Full set Core Client Indicator'!$A$3:$AB$3, 0))=\"\", \"\",  INDEX('Full set Core Client Indicator'!$A$3:$AB$351, MATCH(Selection_Hide2!$A187, 'Full set Core Client Indicator'!$A$3:$A$351, 0), MATCH(Selection_Hide2!H$5, 'Full set Core Client Indicator'!$A$3:$AB$3, 0))), \"\")","v":""},{"$f":"IF(H187<>\"\", IF(INDEX('Full set Core Client Indicator'!$A$3:$AB$351, MATCH(Selection_Hide2!$A187, 'Full set Core Client Indicator'!$A$3:$A$351, 0), MATCH(Selection_Hide2!I$5, 'Full set Core Client Indicator'!$A$3:$AB$3, 0))=\"\", \"\",  INDEX('Full set Core Client Indicator'!$A$3:$AB$351, MATCH(Selection_Hide2!$A187, 'Full set Core Client Indicator'!$A$3:$A$351, 0), MATCH(Selection_Hide2!I$5, 'Full set Core Client Indicator'!$A$3:$AB$3, 0))), \"\")","v":""},{"$f":"IF(I187<>\"\", IF(INDEX('Full set Core Client Indicator'!$A$3:$AB$351, MATCH(Selection_Hide2!$A187, 'Full set Core Client Indicator'!$A$3:$A$351, 0), MATCH(Selection_Hide2!J$5, 'Full set Core Client Indicator'!$A$3:$AB$3, 0))=\"\", \"\",  INDEX('Full set Core Client Indicator'!$A$3:$AB$351, MATCH(Selection_Hide2!$A187, 'Full set Core Client Indicator'!$A$3:$A$351, 0), MATCH(Selection_Hide2!J$5, 'Full set Core Client Indicator'!$A$3:$AB$3, 0))), \"\")","v":""},{"$f":"IF(J187<>\"\", IF(INDEX('Full set Core Client Indicator'!$A$3:$AB$351, MATCH(Selection_Hide2!$A187, 'Full set Core Client Indicator'!$A$3:$A$351, 0), MATCH(Selection_Hide2!K$5, 'Full set Core Client Indicator'!$A$3:$AB$3, 0))=\"\", \"\",  INDEX('Full set Core Client Indicator'!$A$3:$AB$351, MATCH(Selection_Hide2!$A187, 'Full set Core Client Indicator'!$A$3:$A$351, 0), MATCH(Selection_Hide2!K$5, 'Full set Core Client Indicator'!$A$3:$AB$3, 0))), \"\")","v":""},{"$f":"IF(K187<>\"\", IF(INDEX('Full set Core Client Indicator'!$A$3:$AB$351, MATCH(Selection_Hide2!$A187, 'Full set Core Client Indicator'!$A$3:$A$351, 0), MATCH(Selection_Hide2!L$5, 'Full set Core Client Indicator'!$A$3:$AB$3, 0))=\"\", \"\",  INDEX('Full set Core Client Indicator'!$A$3:$AB$351, MATCH(Selection_Hide2!$A187, 'Full set Core Client Indicator'!$A$3:$A$351, 0), MATCH(Selection_Hide2!L$5, 'Full set Core Client Indicator'!$A$3:$AB$3, 0))), \"\")","v":""},{"$f":"IF(L187<>\"\", IF(INDEX('Full set Core Client Indicator'!$A$3:$AB$351, MATCH(Selection_Hide2!$A187, 'Full set Core Client Indicator'!$A$3:$A$351, 0), MATCH(Selection_Hide2!M$5, 'Full set Core Client Indicator'!$A$3:$AB$3, 0))=\"\", \"\",  INDEX('Full set Core Client Indicator'!$A$3:$AB$351, MATCH(Selection_Hide2!$A187, 'Full set Core Client Indicator'!$A$3:$A$351, 0), MATCH(Selection_Hide2!M$5, 'Full set Core Client Indicator'!$A$3:$AB$3, 0))), \"\")","v":""},{"$f":"IF(M187<>\"\", IF(INDEX('Full set Core Client Indicator'!$A$3:$AB$351, MATCH(Selection_Hide2!$A187, 'Full set Core Client Indicator'!$A$3:$A$351, 0), MATCH(Selection_Hide2!N$5, 'Full set Core Client Indicator'!$A$3:$AB$3, 0))=\"\", \"\",  INDEX('Full set Core Client Indicator'!$A$3:$AB$351, MATCH(Selection_Hide2!$A187, 'Full set Core Client Indicator'!$A$3:$A$351, 0), MATCH(Selection_Hide2!N$5, 'Full set Core Client Indicator'!$A$3:$AB$3, 0))), \"\")","v":""},{"$f":"IF(N187<>\"\", IF(INDEX('Full set Core Client Indicator'!$A$3:$AB$351, MATCH(Selection_Hide2!$A187, 'Full set Core Client Indicator'!$A$3:$A$351, 0), MATCH(Selection_Hide2!O$5, 'Full set Core Client Indicator'!$A$3:$AB$3, 0))=\"\", \"\",  INDEX('Full set Core Client Indicator'!$A$3:$AB$351, MATCH(Selection_Hide2!$A187, 'Full set Core Client Indicator'!$A$3:$A$351, 0), MATCH(Selection_Hide2!O$5, 'Full set Core Client Indicator'!$A$3:$AB$3, 0))), \"\")","v":""},{"$f":"IF(O187<>\"\", IF(INDEX('Full set Core Client Indicator'!$A$3:$AB$351, MATCH(Selection_Hide2!$A187, 'Full set Core Client Indicator'!$A$3:$A$351, 0), MATCH(Selection_Hide2!P$5, 'Full set Core Client Indicator'!$A$3:$AB$3, 0))=\"\", \"\",  INDEX('Full set Core Client Indicator'!$A$3:$AB$351, MATCH(Selection_Hide2!$A187, 'Full set Core Client Indicator'!$A$3:$A$351, 0), MATCH(Selection_Hide2!P$5, 'Full set Core Client Indicator'!$A$3:$AB$3, 0))), \"\")","v":""},{"$f":"IF(P187<>\"\", IF(INDEX('Full set Core Client Indicator'!$A$3:$AB$351, MATCH(Selection_Hide2!$A187, 'Full set Core Client Indicator'!$A$3:$A$351, 0), MATCH(Selection_Hide2!Q$5, 'Full set Core Client Indicator'!$A$3:$AB$3, 0))=\"\", \"\",  INDEX('Full set Core Client Indicator'!$A$3:$AB$351, MATCH(Selection_Hide2!$A187, 'Full set Core Client Indicator'!$A$3:$A$351, 0), MATCH(Selection_Hide2!Q$5, 'Full set Core Client Indicator'!$A$3:$AB$3, 0))), \"\")","v":""},{"$f":"IF(Q187<>\"\", IF(INDEX('Full set Core Client Indicator'!$A$3:$AB$351, MATCH(Selection_Hide2!$A187, 'Full set Core Client Indicator'!$A$3:$A$351, 0), MATCH(Selection_Hide2!R$5, 'Full set Core Client Indicator'!$A$3:$AB$3, 0))=\"\", \"\",  INDEX('Full set Core Client Indicator'!$A$3:$AB$351, MATCH(Selection_Hide2!$A187, 'Full set Core Client Indicator'!$A$3:$A$351, 0), MATCH(Selection_Hide2!R$5, 'Full set Core Client Indicator'!$A$3:$AB$3, 0))), \"\")","v":""},{"$f":"IF(R187<>\"\", IF(INDEX('Full set Core Client Indicator'!$A$3:$AB$351, MATCH(Selection_Hide2!$A187, 'Full set Core Client Indicator'!$A$3:$A$351, 0), MATCH(Selection_Hide2!S$5, 'Full set Core Client Indicator'!$A$3:$AB$3, 0))=\"\", \"\",  INDEX('Full set Core Client Indicator'!$A$3:$AB$351, MATCH(Selection_Hide2!$A187, 'Full set Core Client Indicator'!$A$3:$A$351, 0), MATCH(Selection_Hide2!S$5, 'Full set Core Client Indicator'!$A$3:$AB$3, 0))), \"\")","v":""},{"$f":"IF(S187<>\"\", IF(INDEX('Full set Core Client Indicator'!$A$3:$AB$351, MATCH(Selection_Hide2!$A187, 'Full set Core Client Indicator'!$A$3:$A$351, 0), MATCH(Selection_Hide2!T$5, 'Full set Core Client Indicator'!$A$3:$AB$3, 0))=\"\", \"\",  INDEX('Full set Core Client Indicator'!$A$3:$AB$351, MATCH(Selection_Hide2!$A187, 'Full set Core Client Indicator'!$A$3:$A$351, 0), MATCH(Selection_Hide2!T$5, 'Full set Core Client Indicator'!$A$3:$AB$3, 0))), \"\")","v":""},{"$f":"IF(T187<>\"\", IF(INDEX('Full set Core Client Indicator'!$A$3:$AB$351, MATCH(Selection_Hide2!$A187, 'Full set Core Client Indicator'!$A$3:$A$351, 0), MATCH(Selection_Hide2!U$5, 'Full set Core Client Indicator'!$A$3:$AB$3, 0))=\"\", \"\",  INDEX('Full set Core Client Indicator'!$A$3:$AB$351, MATCH(Selection_Hide2!$A187, 'Full set Core Client Indicator'!$A$3:$A$351, 0), MATCH(Selection_Hide2!U$5, 'Full set Core Client Indicator'!$A$3:$AB$3, 0))), \"\")","v":""},{"$f":"IF(U187<>\"\", IF(INDEX('Full set Core Client Indicator'!$A$3:$AB$351, MATCH(Selection_Hide2!$A187, 'Full set Core Client Indicator'!$A$3:$A$351, 0), MATCH(Selection_Hide2!V$5, 'Full set Core Client Indicator'!$A$3:$AB$3, 0))=\"\", \"\",  INDEX('Full set Core Client Indicator'!$A$3:$AB$351, MATCH(Selection_Hide2!$A187, 'Full set Core Client Indicator'!$A$3:$A$351, 0), MATCH(Selection_Hide2!V$5, 'Full set Core Client Indicator'!$A$3:$AB$3, 0))), \"\")","v":""},{"$f":"IF(V187<>\"\", IF(INDEX('Full set Core Client Indicator'!$A$3:$AB$351, MATCH(Selection_Hide2!$A187, 'Full set Core Client Indicator'!$A$3:$A$351, 0), MATCH(Selection_Hide2!W$5, 'Full set Core Client Indicator'!$A$3:$AB$3, 0))=\"\", \"\",  INDEX('Full set Core Client Indicator'!$A$3:$AB$351, MATCH(Selection_Hide2!$A187, 'Full set Core Client Indicator'!$A$3:$A$351, 0), MATCH(Selection_Hide2!W$5, 'Full set Core Client Indicator'!$A$3:$AB$3, 0))), \"\")","v":""},{"$f":"IF(W187<>\"\", IF(INDEX('Full set Core Client Indicator'!$A$3:$AB$351, MATCH(Selection_Hide2!$A187, 'Full set Core Client Indicator'!$A$3:$A$351, 0), MATCH(Selection_Hide2!X$5, 'Full set Core Client Indicator'!$A$3:$AB$3, 0))=\"\", \"\",  INDEX('Full set Core Client Indicator'!$A$3:$AB$351, MATCH(Selection_Hide2!$A187, 'Full set Core Client Indicator'!$A$3:$A$351, 0), MATCH(Selection_Hide2!X$5, 'Full set Core Client Indicator'!$A$3:$AB$3, 0))), \"\")","v":""},{"$f":"IF(X187<>\"\", IF(INDEX('Full set Core Client Indicator'!$A$3:$AB$351, MATCH(Selection_Hide2!$A187, 'Full set Core Client Indicator'!$A$3:$A$351, 0), MATCH(Selection_Hide2!Y$5, 'Full set Core Client Indicator'!$A$3:$AB$3, 0))=\"\", \"\",  INDEX('Full set Core Client Indicator'!$A$3:$AB$351, MATCH(Selection_Hide2!$A187, 'Full set Core Client Indicator'!$A$3:$A$351, 0), MATCH(Selection_Hide2!Y$5, 'Full set Core Client Indicator'!$A$3:$AB$3, 0))), \"\")","v":""},{"$f":"IF(Y187<>\"\", IF(INDEX('Full set Core Client Indicator'!$A$3:$AB$351, MATCH(Selection_Hide2!$A187, 'Full set Core Client Indicator'!$A$3:$A$351, 0), MATCH(Selection_Hide2!Z$5, 'Full set Core Client Indicator'!$A$3:$AB$3, 0))=\"\", \"\",  INDEX('Full set Core Client Indicator'!$A$3:$AB$351, MATCH(Selection_Hide2!$A187, 'Full set Core Client Indicator'!$A$3:$A$351, 0), MATCH(Selection_Hide2!Z$5, 'Full set Core Client Indicator'!$A$3:$AB$3, 0))), \"\")","v":""},{"$f":"IF(Z187<>\"\", IF(INDEX('Full set Core Client Indicator'!$A$3:$AB$351, MATCH(Selection_Hide2!$A187, 'Full set Core Client Indicator'!$A$3:$A$351, 0), MATCH(Selection_Hide2!AA$5, 'Full set Core Client Indicator'!$A$3:$AB$3, 0))=\"\", \"\",  INDEX('Full set Core Client Indicator'!$A$3:$AB$351, MATCH(Selection_Hide2!$A187, 'Full set Core Client Indicator'!$A$3:$A$351, 0), MATCH(Selection_Hide2!AA$5, 'Full set Core Client Indicator'!$A$3:$AB$3, 0))), \"\")","v":""},{"$f":"IF(AA187<>\"\", IF(INDEX('Full set Core Client Indicator'!$A$3:$AB$351, MATCH(Selection_Hide2!$A187, 'Full set Core Client Indicator'!$A$3:$A$351, 0), MATCH(Selection_Hide2!AB$5, 'Full set Core Client Indicator'!$A$3:$AB$3, 0))=\"\", \"\",  INDEX('Full set Core Client Indicator'!$A$3:$AB$351, MATCH(Selection_Hide2!$A187, 'Full set Core Client Indicator'!$A$3:$A$351, 0), MATCH(Selection_Hide2!AB$5, 'Full set Core Client Indicator'!$A$3:$AB$3, 0))), \"\")","v":""}]
[{"$f":"IF(AND(Selection_Hide1!C186<>0, Selection_Hide1!C186<>\"Grand Total\"), Selection_Hide1!C186, \"\")","v":""},{"$f":"IF(A188<>\"\", IF(INDEX('Full set Core Client Indicator'!$A$3:$AB$351, MATCH(Selection_Hide2!$A188, 'Full set Core Client Indicator'!$A$3:$A$351, 0), MATCH(Selection_Hide2!B$5, 'Full set Core Client Indicator'!$A$3:$AB$3, 0))=\"\", \"\",  INDEX('Full set Core Client Indicator'!$A$3:$AB$351, MATCH(Selection_Hide2!$A188, 'Full set Core Client Indicator'!$A$3:$A$351, 0), MATCH(Selection_Hide2!B$5, 'Full set Core Client Indicator'!$A$3:$AB$3, 0))), \"\")","v":""},{"$f":"IF(B188<>\"\", IF(INDEX('Full set Core Client Indicator'!$A$3:$AB$351, MATCH(Selection_Hide2!$A188, 'Full set Core Client Indicator'!$A$3:$A$351, 0), MATCH(Selection_Hide2!C$5, 'Full set Core Client Indicator'!$A$3:$AB$3, 0))=\"\", \"\",  INDEX('Full set Core Client Indicator'!$A$3:$AB$351, MATCH(Selection_Hide2!$A188, 'Full set Core Client Indicator'!$A$3:$A$351, 0), MATCH(Selection_Hide2!C$5, 'Full set Core Client Indicator'!$A$3:$AB$3, 0))), \"\")","v":""},{"$f":"IF(C188<>\"\", IF(INDEX('Full set Core Client Indicator'!$A$3:$AB$351, MATCH(Selection_Hide2!$A188, 'Full set Core Client Indicator'!$A$3:$A$351, 0), MATCH(Selection_Hide2!D$5, 'Full set Core Client Indicator'!$A$3:$AB$3, 0))=\"\", \"\",  INDEX('Full set Core Client Indicator'!$A$3:$AB$351, MATCH(Selection_Hide2!$A188, 'Full set Core Client Indicator'!$A$3:$A$351, 0), MATCH(Selection_Hide2!D$5, 'Full set Core Client Indicator'!$A$3:$AB$3, 0))), \"\")","v":""},{"$f":"IF(D188<>\"\", IF(INDEX('Full set Core Client Indicator'!$A$3:$AB$351, MATCH(Selection_Hide2!$A188, 'Full set Core Client Indicator'!$A$3:$A$351, 0), MATCH(Selection_Hide2!E$5, 'Full set Core Client Indicator'!$A$3:$AB$3, 0))=\"\", \"\",  INDEX('Full set Core Client Indicator'!$A$3:$AB$351, MATCH(Selection_Hide2!$A188, 'Full set Core Client Indicator'!$A$3:$A$351, 0), MATCH(Selection_Hide2!E$5, 'Full set Core Client Indicator'!$A$3:$AB$3, 0))), \"\")","v":""},{"$f":"IF(E188<>\"\", IF(INDEX('Full set Core Client Indicator'!$A$3:$AB$351, MATCH(Selection_Hide2!$A188, 'Full set Core Client Indicator'!$A$3:$A$351, 0), MATCH(Selection_Hide2!F$5, 'Full set Core Client Indicator'!$A$3:$AB$3, 0))=\"\", \"\",  INDEX('Full set Core Client Indicator'!$A$3:$AB$351, MATCH(Selection_Hide2!$A188, 'Full set Core Client Indicator'!$A$3:$A$351, 0), MATCH(Selection_Hide2!F$5, 'Full set Core Client Indicator'!$A$3:$AB$3, 0))), \"\")","v":""},{"$f":"IF(F188<>\"\", IF(INDEX('Full set Core Client Indicator'!$A$3:$AB$351, MATCH(Selection_Hide2!$A188, 'Full set Core Client Indicator'!$A$3:$A$351, 0), MATCH(Selection_Hide2!G$5, 'Full set Core Client Indicator'!$A$3:$AB$3, 0))=\"\", \"\",  INDEX('Full set Core Client Indicator'!$A$3:$AB$351, MATCH(Selection_Hide2!$A188, 'Full set Core Client Indicator'!$A$3:$A$351, 0), MATCH(Selection_Hide2!G$5, 'Full set Core Client Indicator'!$A$3:$AB$3, 0))), \"\")","v":""},{"$f":"IF(G188<>\"\", IF(INDEX('Full set Core Client Indicator'!$A$3:$AB$351, MATCH(Selection_Hide2!$A188, 'Full set Core Client Indicator'!$A$3:$A$351, 0), MATCH(Selection_Hide2!H$5, 'Full set Core Client Indicator'!$A$3:$AB$3, 0))=\"\", \"\",  INDEX('Full set Core Client Indicator'!$A$3:$AB$351, MATCH(Selection_Hide2!$A188, 'Full set Core Client Indicator'!$A$3:$A$351, 0), MATCH(Selection_Hide2!H$5, 'Full set Core Client Indicator'!$A$3:$AB$3, 0))), \"\")","v":""},{"$f":"IF(H188<>\"\", IF(INDEX('Full set Core Client Indicator'!$A$3:$AB$351, MATCH(Selection_Hide2!$A188, 'Full set Core Client Indicator'!$A$3:$A$351, 0), MATCH(Selection_Hide2!I$5, 'Full set Core Client Indicator'!$A$3:$AB$3, 0))=\"\", \"\",  INDEX('Full set Core Client Indicator'!$A$3:$AB$351, MATCH(Selection_Hide2!$A188, 'Full set Core Client Indicator'!$A$3:$A$351, 0), MATCH(Selection_Hide2!I$5, 'Full set Core Client Indicator'!$A$3:$AB$3, 0))), \"\")","v":""},{"$f":"IF(I188<>\"\", IF(INDEX('Full set Core Client Indicator'!$A$3:$AB$351, MATCH(Selection_Hide2!$A188, 'Full set Core Client Indicator'!$A$3:$A$351, 0), MATCH(Selection_Hide2!J$5, 'Full set Core Client Indicator'!$A$3:$AB$3, 0))=\"\", \"\",  INDEX('Full set Core Client Indicator'!$A$3:$AB$351, MATCH(Selection_Hide2!$A188, 'Full set Core Client Indicator'!$A$3:$A$351, 0), MATCH(Selection_Hide2!J$5, 'Full set Core Client Indicator'!$A$3:$AB$3, 0))), \"\")","v":""},{"$f":"IF(J188<>\"\", IF(INDEX('Full set Core Client Indicator'!$A$3:$AB$351, MATCH(Selection_Hide2!$A188, 'Full set Core Client Indicator'!$A$3:$A$351, 0), MATCH(Selection_Hide2!K$5, 'Full set Core Client Indicator'!$A$3:$AB$3, 0))=\"\", \"\",  INDEX('Full set Core Client Indicator'!$A$3:$AB$351, MATCH(Selection_Hide2!$A188, 'Full set Core Client Indicator'!$A$3:$A$351, 0), MATCH(Selection_Hide2!K$5, 'Full set Core Client Indicator'!$A$3:$AB$3, 0))), \"\")","v":""},{"$f":"IF(K188<>\"\", IF(INDEX('Full set Core Client Indicator'!$A$3:$AB$351, MATCH(Selection_Hide2!$A188, 'Full set Core Client Indicator'!$A$3:$A$351, 0), MATCH(Selection_Hide2!L$5, 'Full set Core Client Indicator'!$A$3:$AB$3, 0))=\"\", \"\",  INDEX('Full set Core Client Indicator'!$A$3:$AB$351, MATCH(Selection_Hide2!$A188, 'Full set Core Client Indicator'!$A$3:$A$351, 0), MATCH(Selection_Hide2!L$5, 'Full set Core Client Indicator'!$A$3:$AB$3, 0))), \"\")","v":""},{"$f":"IF(L188<>\"\", IF(INDEX('Full set Core Client Indicator'!$A$3:$AB$351, MATCH(Selection_Hide2!$A188, 'Full set Core Client Indicator'!$A$3:$A$351, 0), MATCH(Selection_Hide2!M$5, 'Full set Core Client Indicator'!$A$3:$AB$3, 0))=\"\", \"\",  INDEX('Full set Core Client Indicator'!$A$3:$AB$351, MATCH(Selection_Hide2!$A188, 'Full set Core Client Indicator'!$A$3:$A$351, 0), MATCH(Selection_Hide2!M$5, 'Full set Core Client Indicator'!$A$3:$AB$3, 0))), \"\")","v":""},{"$f":"IF(M188<>\"\", IF(INDEX('Full set Core Client Indicator'!$A$3:$AB$351, MATCH(Selection_Hide2!$A188, 'Full set Core Client Indicator'!$A$3:$A$351, 0), MATCH(Selection_Hide2!N$5, 'Full set Core Client Indicator'!$A$3:$AB$3, 0))=\"\", \"\",  INDEX('Full set Core Client Indicator'!$A$3:$AB$351, MATCH(Selection_Hide2!$A188, 'Full set Core Client Indicator'!$A$3:$A$351, 0), MATCH(Selection_Hide2!N$5, 'Full set Core Client Indicator'!$A$3:$AB$3, 0))), \"\")","v":""},{"$f":"IF(N188<>\"\", IF(INDEX('Full set Core Client Indicator'!$A$3:$AB$351, MATCH(Selection_Hide2!$A188, 'Full set Core Client Indicator'!$A$3:$A$351, 0), MATCH(Selection_Hide2!O$5, 'Full set Core Client Indicator'!$A$3:$AB$3, 0))=\"\", \"\",  INDEX('Full set Core Client Indicator'!$A$3:$AB$351, MATCH(Selection_Hide2!$A188, 'Full set Core Client Indicator'!$A$3:$A$351, 0), MATCH(Selection_Hide2!O$5, 'Full set Core Client Indicator'!$A$3:$AB$3, 0))), \"\")","v":""},{"$f":"IF(O188<>\"\", IF(INDEX('Full set Core Client Indicator'!$A$3:$AB$351, MATCH(Selection_Hide2!$A188, 'Full set Core Client Indicator'!$A$3:$A$351, 0), MATCH(Selection_Hide2!P$5, 'Full set Core Client Indicator'!$A$3:$AB$3, 0))=\"\", \"\",  INDEX('Full set Core Client Indicator'!$A$3:$AB$351, MATCH(Selection_Hide2!$A188, 'Full set Core Client Indicator'!$A$3:$A$351, 0), MATCH(Selection_Hide2!P$5, 'Full set Core Client Indicator'!$A$3:$AB$3, 0))), \"\")","v":""},{"$f":"IF(P188<>\"\", IF(INDEX('Full set Core Client Indicator'!$A$3:$AB$351, MATCH(Selection_Hide2!$A188, 'Full set Core Client Indicator'!$A$3:$A$351, 0), MATCH(Selection_Hide2!Q$5, 'Full set Core Client Indicator'!$A$3:$AB$3, 0))=\"\", \"\",  INDEX('Full set Core Client Indicator'!$A$3:$AB$351, MATCH(Selection_Hide2!$A188, 'Full set Core Client Indicator'!$A$3:$A$351, 0), MATCH(Selection_Hide2!Q$5, 'Full set Core Client Indicator'!$A$3:$AB$3, 0))), \"\")","v":""},{"$f":"IF(Q188<>\"\", IF(INDEX('Full set Core Client Indicator'!$A$3:$AB$351, MATCH(Selection_Hide2!$A188, 'Full set Core Client Indicator'!$A$3:$A$351, 0), MATCH(Selection_Hide2!R$5, 'Full set Core Client Indicator'!$A$3:$AB$3, 0))=\"\", \"\",  INDEX('Full set Core Client Indicator'!$A$3:$AB$351, MATCH(Selection_Hide2!$A188, 'Full set Core Client Indicator'!$A$3:$A$351, 0), MATCH(Selection_Hide2!R$5, 'Full set Core Client Indicator'!$A$3:$AB$3, 0))), \"\")","v":""},{"$f":"IF(R188<>\"\", IF(INDEX('Full set Core Client Indicator'!$A$3:$AB$351, MATCH(Selection_Hide2!$A188, 'Full set Core Client Indicator'!$A$3:$A$351, 0), MATCH(Selection_Hide2!S$5, 'Full set Core Client Indicator'!$A$3:$AB$3, 0))=\"\", \"\",  INDEX('Full set Core Client Indicator'!$A$3:$AB$351, MATCH(Selection_Hide2!$A188, 'Full set Core Client Indicator'!$A$3:$A$351, 0), MATCH(Selection_Hide2!S$5, 'Full set Core Client Indicator'!$A$3:$AB$3, 0))), \"\")","v":""},{"$f":"IF(S188<>\"\", IF(INDEX('Full set Core Client Indicator'!$A$3:$AB$351, MATCH(Selection_Hide2!$A188, 'Full set Core Client Indicator'!$A$3:$A$351, 0), MATCH(Selection_Hide2!T$5, 'Full set Core Client Indicator'!$A$3:$AB$3, 0))=\"\", \"\",  INDEX('Full set Core Client Indicator'!$A$3:$AB$351, MATCH(Selection_Hide2!$A188, 'Full set Core Client Indicator'!$A$3:$A$351, 0), MATCH(Selection_Hide2!T$5, 'Full set Core Client Indicator'!$A$3:$AB$3, 0))), \"\")","v":""},{"$f":"IF(T188<>\"\", IF(INDEX('Full set Core Client Indicator'!$A$3:$AB$351, MATCH(Selection_Hide2!$A188, 'Full set Core Client Indicator'!$A$3:$A$351, 0), MATCH(Selection_Hide2!U$5, 'Full set Core Client Indicator'!$A$3:$AB$3, 0))=\"\", \"\",  INDEX('Full set Core Client Indicator'!$A$3:$AB$351, MATCH(Selection_Hide2!$A188, 'Full set Core Client Indicator'!$A$3:$A$351, 0), MATCH(Selection_Hide2!U$5, 'Full set Core Client Indicator'!$A$3:$AB$3, 0))), \"\")","v":""},{"$f":"IF(U188<>\"\", IF(INDEX('Full set Core Client Indicator'!$A$3:$AB$351, MATCH(Selection_Hide2!$A188, 'Full set Core Client Indicator'!$A$3:$A$351, 0), MATCH(Selection_Hide2!V$5, 'Full set Core Client Indicator'!$A$3:$AB$3, 0))=\"\", \"\",  INDEX('Full set Core Client Indicator'!$A$3:$AB$351, MATCH(Selection_Hide2!$A188, 'Full set Core Client Indicator'!$A$3:$A$351, 0), MATCH(Selection_Hide2!V$5, 'Full set Core Client Indicator'!$A$3:$AB$3, 0))), \"\")","v":""},{"$f":"IF(V188<>\"\", IF(INDEX('Full set Core Client Indicator'!$A$3:$AB$351, MATCH(Selection_Hide2!$A188, 'Full set Core Client Indicator'!$A$3:$A$351, 0), MATCH(Selection_Hide2!W$5, 'Full set Core Client Indicator'!$A$3:$AB$3, 0))=\"\", \"\",  INDEX('Full set Core Client Indicator'!$A$3:$AB$351, MATCH(Selection_Hide2!$A188, 'Full set Core Client Indicator'!$A$3:$A$351, 0), MATCH(Selection_Hide2!W$5, 'Full set Core Client Indicator'!$A$3:$AB$3, 0))), \"\")","v":""},{"$f":"IF(W188<>\"\", IF(INDEX('Full set Core Client Indicator'!$A$3:$AB$351, MATCH(Selection_Hide2!$A188, 'Full set Core Client Indicator'!$A$3:$A$351, 0), MATCH(Selection_Hide2!X$5, 'Full set Core Client Indicator'!$A$3:$AB$3, 0))=\"\", \"\",  INDEX('Full set Core Client Indicator'!$A$3:$AB$351, MATCH(Selection_Hide2!$A188, 'Full set Core Client Indicator'!$A$3:$A$351, 0), MATCH(Selection_Hide2!X$5, 'Full set Core Client Indicator'!$A$3:$AB$3, 0))), \"\")","v":""},{"$f":"IF(X188<>\"\", IF(INDEX('Full set Core Client Indicator'!$A$3:$AB$351, MATCH(Selection_Hide2!$A188, 'Full set Core Client Indicator'!$A$3:$A$351, 0), MATCH(Selection_Hide2!Y$5, 'Full set Core Client Indicator'!$A$3:$AB$3, 0))=\"\", \"\",  INDEX('Full set Core Client Indicator'!$A$3:$AB$351, MATCH(Selection_Hide2!$A188, 'Full set Core Client Indicator'!$A$3:$A$351, 0), MATCH(Selection_Hide2!Y$5, 'Full set Core Client Indicator'!$A$3:$AB$3, 0))), \"\")","v":""},{"$f":"IF(Y188<>\"\", IF(INDEX('Full set Core Client Indicator'!$A$3:$AB$351, MATCH(Selection_Hide2!$A188, 'Full set Core Client Indicator'!$A$3:$A$351, 0), MATCH(Selection_Hide2!Z$5, 'Full set Core Client Indicator'!$A$3:$AB$3, 0))=\"\", \"\",  INDEX('Full set Core Client Indicator'!$A$3:$AB$351, MATCH(Selection_Hide2!$A188, 'Full set Core Client Indicator'!$A$3:$A$351, 0), MATCH(Selection_Hide2!Z$5, 'Full set Core Client Indicator'!$A$3:$AB$3, 0))), \"\")","v":""},{"$f":"IF(Z188<>\"\", IF(INDEX('Full set Core Client Indicator'!$A$3:$AB$351, MATCH(Selection_Hide2!$A188, 'Full set Core Client Indicator'!$A$3:$A$351, 0), MATCH(Selection_Hide2!AA$5, 'Full set Core Client Indicator'!$A$3:$AB$3, 0))=\"\", \"\",  INDEX('Full set Core Client Indicator'!$A$3:$AB$351, MATCH(Selection_Hide2!$A188, 'Full set Core Client Indicator'!$A$3:$A$351, 0), MATCH(Selection_Hide2!AA$5, 'Full set Core Client Indicator'!$A$3:$AB$3, 0))), \"\")","v":""},{"$f":"IF(AA188<>\"\", IF(INDEX('Full set Core Client Indicator'!$A$3:$AB$351, MATCH(Selection_Hide2!$A188, 'Full set Core Client Indicator'!$A$3:$A$351, 0), MATCH(Selection_Hide2!AB$5, 'Full set Core Client Indicator'!$A$3:$AB$3, 0))=\"\", \"\",  INDEX('Full set Core Client Indicator'!$A$3:$AB$351, MATCH(Selection_Hide2!$A188, 'Full set Core Client Indicator'!$A$3:$A$351, 0), MATCH(Selection_Hide2!AB$5, 'Full set Core Client Indicator'!$A$3:$AB$3, 0))), \"\")","v":""}]
[{"$f":"IF(AND(Selection_Hide1!C187<>0, Selection_Hide1!C187<>\"Grand Total\"), Selection_Hide1!C187, \"\")","v":""},{"$f":"IF(A189<>\"\", IF(INDEX('Full set Core Client Indicator'!$A$3:$AB$351, MATCH(Selection_Hide2!$A189, 'Full set Core Client Indicator'!$A$3:$A$351, 0), MATCH(Selection_Hide2!B$5, 'Full set Core Client Indicator'!$A$3:$AB$3, 0))=\"\", \"\",  INDEX('Full set Core Client Indicator'!$A$3:$AB$351, MATCH(Selection_Hide2!$A189, 'Full set Core Client Indicator'!$A$3:$A$351, 0), MATCH(Selection_Hide2!B$5, 'Full set Core Client Indicator'!$A$3:$AB$3, 0))), \"\")","v":""},{"$f":"IF(B189<>\"\", IF(INDEX('Full set Core Client Indicator'!$A$3:$AB$351, MATCH(Selection_Hide2!$A189, 'Full set Core Client Indicator'!$A$3:$A$351, 0), MATCH(Selection_Hide2!C$5, 'Full set Core Client Indicator'!$A$3:$AB$3, 0))=\"\", \"\",  INDEX('Full set Core Client Indicator'!$A$3:$AB$351, MATCH(Selection_Hide2!$A189, 'Full set Core Client Indicator'!$A$3:$A$351, 0), MATCH(Selection_Hide2!C$5, 'Full set Core Client Indicator'!$A$3:$AB$3, 0))), \"\")","v":""},{"$f":"IF(C189<>\"\", IF(INDEX('Full set Core Client Indicator'!$A$3:$AB$351, MATCH(Selection_Hide2!$A189, 'Full set Core Client Indicator'!$A$3:$A$351, 0), MATCH(Selection_Hide2!D$5, 'Full set Core Client Indicator'!$A$3:$AB$3, 0))=\"\", \"\",  INDEX('Full set Core Client Indicator'!$A$3:$AB$351, MATCH(Selection_Hide2!$A189, 'Full set Core Client Indicator'!$A$3:$A$351, 0), MATCH(Selection_Hide2!D$5, 'Full set Core Client Indicator'!$A$3:$AB$3, 0))), \"\")","v":""},{"$f":"IF(D189<>\"\", IF(INDEX('Full set Core Client Indicator'!$A$3:$AB$351, MATCH(Selection_Hide2!$A189, 'Full set Core Client Indicator'!$A$3:$A$351, 0), MATCH(Selection_Hide2!E$5, 'Full set Core Client Indicator'!$A$3:$AB$3, 0))=\"\", \"\",  INDEX('Full set Core Client Indicator'!$A$3:$AB$351, MATCH(Selection_Hide2!$A189, 'Full set Core Client Indicator'!$A$3:$A$351, 0), MATCH(Selection_Hide2!E$5, 'Full set Core Client Indicator'!$A$3:$AB$3, 0))), \"\")","v":""},{"$f":"IF(E189<>\"\", IF(INDEX('Full set Core Client Indicator'!$A$3:$AB$351, MATCH(Selection_Hide2!$A189, 'Full set Core Client Indicator'!$A$3:$A$351, 0), MATCH(Selection_Hide2!F$5, 'Full set Core Client Indicator'!$A$3:$AB$3, 0))=\"\", \"\",  INDEX('Full set Core Client Indicator'!$A$3:$AB$351, MATCH(Selection_Hide2!$A189, 'Full set Core Client Indicator'!$A$3:$A$351, 0), MATCH(Selection_Hide2!F$5, 'Full set Core Client Indicator'!$A$3:$AB$3, 0))), \"\")","v":""},{"$f":"IF(F189<>\"\", IF(INDEX('Full set Core Client Indicator'!$A$3:$AB$351, MATCH(Selection_Hide2!$A189, 'Full set Core Client Indicator'!$A$3:$A$351, 0), MATCH(Selection_Hide2!G$5, 'Full set Core Client Indicator'!$A$3:$AB$3, 0))=\"\", \"\",  INDEX('Full set Core Client Indicator'!$A$3:$AB$351, MATCH(Selection_Hide2!$A189, 'Full set Core Client Indicator'!$A$3:$A$351, 0), MATCH(Selection_Hide2!G$5, 'Full set Core Client Indicator'!$A$3:$AB$3, 0))), \"\")","v":""},{"$f":"IF(G189<>\"\", IF(INDEX('Full set Core Client Indicator'!$A$3:$AB$351, MATCH(Selection_Hide2!$A189, 'Full set Core Client Indicator'!$A$3:$A$351, 0), MATCH(Selection_Hide2!H$5, 'Full set Core Client Indicator'!$A$3:$AB$3, 0))=\"\", \"\",  INDEX('Full set Core Client Indicator'!$A$3:$AB$351, MATCH(Selection_Hide2!$A189, 'Full set Core Client Indicator'!$A$3:$A$351, 0), MATCH(Selection_Hide2!H$5, 'Full set Core Client Indicator'!$A$3:$AB$3, 0))), \"\")","v":""},{"$f":"IF(H189<>\"\", IF(INDEX('Full set Core Client Indicator'!$A$3:$AB$351, MATCH(Selection_Hide2!$A189, 'Full set Core Client Indicator'!$A$3:$A$351, 0), MATCH(Selection_Hide2!I$5, 'Full set Core Client Indicator'!$A$3:$AB$3, 0))=\"\", \"\",  INDEX('Full set Core Client Indicator'!$A$3:$AB$351, MATCH(Selection_Hide2!$A189, 'Full set Core Client Indicator'!$A$3:$A$351, 0), MATCH(Selection_Hide2!I$5, 'Full set Core Client Indicator'!$A$3:$AB$3, 0))), \"\")","v":""},{"$f":"IF(I189<>\"\", IF(INDEX('Full set Core Client Indicator'!$A$3:$AB$351, MATCH(Selection_Hide2!$A189, 'Full set Core Client Indicator'!$A$3:$A$351, 0), MATCH(Selection_Hide2!J$5, 'Full set Core Client Indicator'!$A$3:$AB$3, 0))=\"\", \"\",  INDEX('Full set Core Client Indicator'!$A$3:$AB$351, MATCH(Selection_Hide2!$A189, 'Full set Core Client Indicator'!$A$3:$A$351, 0), MATCH(Selection_Hide2!J$5, 'Full set Core Client Indicator'!$A$3:$AB$3, 0))), \"\")","v":""},{"$f":"IF(J189<>\"\", IF(INDEX('Full set Core Client Indicator'!$A$3:$AB$351, MATCH(Selection_Hide2!$A189, 'Full set Core Client Indicator'!$A$3:$A$351, 0), MATCH(Selection_Hide2!K$5, 'Full set Core Client Indicator'!$A$3:$AB$3, 0))=\"\", \"\",  INDEX('Full set Core Client Indicator'!$A$3:$AB$351, MATCH(Selection_Hide2!$A189, 'Full set Core Client Indicator'!$A$3:$A$351, 0), MATCH(Selection_Hide2!K$5, 'Full set Core Client Indicator'!$A$3:$AB$3, 0))), \"\")","v":""},{"$f":"IF(K189<>\"\", IF(INDEX('Full set Core Client Indicator'!$A$3:$AB$351, MATCH(Selection_Hide2!$A189, 'Full set Core Client Indicator'!$A$3:$A$351, 0), MATCH(Selection_Hide2!L$5, 'Full set Core Client Indicator'!$A$3:$AB$3, 0))=\"\", \"\",  INDEX('Full set Core Client Indicator'!$A$3:$AB$351, MATCH(Selection_Hide2!$A189, 'Full set Core Client Indicator'!$A$3:$A$351, 0), MATCH(Selection_Hide2!L$5, 'Full set Core Client Indicator'!$A$3:$AB$3, 0))), \"\")","v":""},{"$f":"IF(L189<>\"\", IF(INDEX('Full set Core Client Indicator'!$A$3:$AB$351, MATCH(Selection_Hide2!$A189, 'Full set Core Client Indicator'!$A$3:$A$351, 0), MATCH(Selection_Hide2!M$5, 'Full set Core Client Indicator'!$A$3:$AB$3, 0))=\"\", \"\",  INDEX('Full set Core Client Indicator'!$A$3:$AB$351, MATCH(Selection_Hide2!$A189, 'Full set Core Client Indicator'!$A$3:$A$351, 0), MATCH(Selection_Hide2!M$5, 'Full set Core Client Indicator'!$A$3:$AB$3, 0))), \"\")","v":""},{"$f":"IF(M189<>\"\", IF(INDEX('Full set Core Client Indicator'!$A$3:$AB$351, MATCH(Selection_Hide2!$A189, 'Full set Core Client Indicator'!$A$3:$A$351, 0), MATCH(Selection_Hide2!N$5, 'Full set Core Client Indicator'!$A$3:$AB$3, 0))=\"\", \"\",  INDEX('Full set Core Client Indicator'!$A$3:$AB$351, MATCH(Selection_Hide2!$A189, 'Full set Core Client Indicator'!$A$3:$A$351, 0), MATCH(Selection_Hide2!N$5, 'Full set Core Client Indicator'!$A$3:$AB$3, 0))), \"\")","v":""},{"$f":"IF(N189<>\"\", IF(INDEX('Full set Core Client Indicator'!$A$3:$AB$351, MATCH(Selection_Hide2!$A189, 'Full set Core Client Indicator'!$A$3:$A$351, 0), MATCH(Selection_Hide2!O$5, 'Full set Core Client Indicator'!$A$3:$AB$3, 0))=\"\", \"\",  INDEX('Full set Core Client Indicator'!$A$3:$AB$351, MATCH(Selection_Hide2!$A189, 'Full set Core Client Indicator'!$A$3:$A$351, 0), MATCH(Selection_Hide2!O$5, 'Full set Core Client Indicator'!$A$3:$AB$3, 0))), \"\")","v":""},{"$f":"IF(O189<>\"\", IF(INDEX('Full set Core Client Indicator'!$A$3:$AB$351, MATCH(Selection_Hide2!$A189, 'Full set Core Client Indicator'!$A$3:$A$351, 0), MATCH(Selection_Hide2!P$5, 'Full set Core Client Indicator'!$A$3:$AB$3, 0))=\"\", \"\",  INDEX('Full set Core Client Indicator'!$A$3:$AB$351, MATCH(Selection_Hide2!$A189, 'Full set Core Client Indicator'!$A$3:$A$351, 0), MATCH(Selection_Hide2!P$5, 'Full set Core Client Indicator'!$A$3:$AB$3, 0))), \"\")","v":""},{"$f":"IF(P189<>\"\", IF(INDEX('Full set Core Client Indicator'!$A$3:$AB$351, MATCH(Selection_Hide2!$A189, 'Full set Core Client Indicator'!$A$3:$A$351, 0), MATCH(Selection_Hide2!Q$5, 'Full set Core Client Indicator'!$A$3:$AB$3, 0))=\"\", \"\",  INDEX('Full set Core Client Indicator'!$A$3:$AB$351, MATCH(Selection_Hide2!$A189, 'Full set Core Client Indicator'!$A$3:$A$351, 0), MATCH(Selection_Hide2!Q$5, 'Full set Core Client Indicator'!$A$3:$AB$3, 0))), \"\")","v":""},{"$f":"IF(Q189<>\"\", IF(INDEX('Full set Core Client Indicator'!$A$3:$AB$351, MATCH(Selection_Hide2!$A189, 'Full set Core Client Indicator'!$A$3:$A$351, 0), MATCH(Selection_Hide2!R$5, 'Full set Core Client Indicator'!$A$3:$AB$3, 0))=\"\", \"\",  INDEX('Full set Core Client Indicator'!$A$3:$AB$351, MATCH(Selection_Hide2!$A189, 'Full set Core Client Indicator'!$A$3:$A$351, 0), MATCH(Selection_Hide2!R$5, 'Full set Core Client Indicator'!$A$3:$AB$3, 0))), \"\")","v":""},{"$f":"IF(R189<>\"\", IF(INDEX('Full set Core Client Indicator'!$A$3:$AB$351, MATCH(Selection_Hide2!$A189, 'Full set Core Client Indicator'!$A$3:$A$351, 0), MATCH(Selection_Hide2!S$5, 'Full set Core Client Indicator'!$A$3:$AB$3, 0))=\"\", \"\",  INDEX('Full set Core Client Indicator'!$A$3:$AB$351, MATCH(Selection_Hide2!$A189, 'Full set Core Client Indicator'!$A$3:$A$351, 0), MATCH(Selection_Hide2!S$5, 'Full set Core Client Indicator'!$A$3:$AB$3, 0))), \"\")","v":""},{"$f":"IF(S189<>\"\", IF(INDEX('Full set Core Client Indicator'!$A$3:$AB$351, MATCH(Selection_Hide2!$A189, 'Full set Core Client Indicator'!$A$3:$A$351, 0), MATCH(Selection_Hide2!T$5, 'Full set Core Client Indicator'!$A$3:$AB$3, 0))=\"\", \"\",  INDEX('Full set Core Client Indicator'!$A$3:$AB$351, MATCH(Selection_Hide2!$A189, 'Full set Core Client Indicator'!$A$3:$A$351, 0), MATCH(Selection_Hide2!T$5, 'Full set Core Client Indicator'!$A$3:$AB$3, 0))), \"\")","v":""},{"$f":"IF(T189<>\"\", IF(INDEX('Full set Core Client Indicator'!$A$3:$AB$351, MATCH(Selection_Hide2!$A189, 'Full set Core Client Indicator'!$A$3:$A$351, 0), MATCH(Selection_Hide2!U$5, 'Full set Core Client Indicator'!$A$3:$AB$3, 0))=\"\", \"\",  INDEX('Full set Core Client Indicator'!$A$3:$AB$351, MATCH(Selection_Hide2!$A189, 'Full set Core Client Indicator'!$A$3:$A$351, 0), MATCH(Selection_Hide2!U$5, 'Full set Core Client Indicator'!$A$3:$AB$3, 0))), \"\")","v":""},{"$f":"IF(U189<>\"\", IF(INDEX('Full set Core Client Indicator'!$A$3:$AB$351, MATCH(Selection_Hide2!$A189, 'Full set Core Client Indicator'!$A$3:$A$351, 0), MATCH(Selection_Hide2!V$5, 'Full set Core Client Indicator'!$A$3:$AB$3, 0))=\"\", \"\",  INDEX('Full set Core Client Indicator'!$A$3:$AB$351, MATCH(Selection_Hide2!$A189, 'Full set Core Client Indicator'!$A$3:$A$351, 0), MATCH(Selection_Hide2!V$5, 'Full set Core Client Indicator'!$A$3:$AB$3, 0))), \"\")","v":""},{"$f":"IF(V189<>\"\", IF(INDEX('Full set Core Client Indicator'!$A$3:$AB$351, MATCH(Selection_Hide2!$A189, 'Full set Core Client Indicator'!$A$3:$A$351, 0), MATCH(Selection_Hide2!W$5, 'Full set Core Client Indicator'!$A$3:$AB$3, 0))=\"\", \"\",  INDEX('Full set Core Client Indicator'!$A$3:$AB$351, MATCH(Selection_Hide2!$A189, 'Full set Core Client Indicator'!$A$3:$A$351, 0), MATCH(Selection_Hide2!W$5, 'Full set Core Client Indicator'!$A$3:$AB$3, 0))), \"\")","v":""},{"$f":"IF(W189<>\"\", IF(INDEX('Full set Core Client Indicator'!$A$3:$AB$351, MATCH(Selection_Hide2!$A189, 'Full set Core Client Indicator'!$A$3:$A$351, 0), MATCH(Selection_Hide2!X$5, 'Full set Core Client Indicator'!$A$3:$AB$3, 0))=\"\", \"\",  INDEX('Full set Core Client Indicator'!$A$3:$AB$351, MATCH(Selection_Hide2!$A189, 'Full set Core Client Indicator'!$A$3:$A$351, 0), MATCH(Selection_Hide2!X$5, 'Full set Core Client Indicator'!$A$3:$AB$3, 0))), \"\")","v":""},{"$f":"IF(X189<>\"\", IF(INDEX('Full set Core Client Indicator'!$A$3:$AB$351, MATCH(Selection_Hide2!$A189, 'Full set Core Client Indicator'!$A$3:$A$351, 0), MATCH(Selection_Hide2!Y$5, 'Full set Core Client Indicator'!$A$3:$AB$3, 0))=\"\", \"\",  INDEX('Full set Core Client Indicator'!$A$3:$AB$351, MATCH(Selection_Hide2!$A189, 'Full set Core Client Indicator'!$A$3:$A$351, 0), MATCH(Selection_Hide2!Y$5, 'Full set Core Client Indicator'!$A$3:$AB$3, 0))), \"\")","v":""},{"$f":"IF(Y189<>\"\", IF(INDEX('Full set Core Client Indicator'!$A$3:$AB$351, MATCH(Selection_Hide2!$A189, 'Full set Core Client Indicator'!$A$3:$A$351, 0), MATCH(Selection_Hide2!Z$5, 'Full set Core Client Indicator'!$A$3:$AB$3, 0))=\"\", \"\",  INDEX('Full set Core Client Indicator'!$A$3:$AB$351, MATCH(Selection_Hide2!$A189, 'Full set Core Client Indicator'!$A$3:$A$351, 0), MATCH(Selection_Hide2!Z$5, 'Full set Core Client Indicator'!$A$3:$AB$3, 0))), \"\")","v":""},{"$f":"IF(Z189<>\"\", IF(INDEX('Full set Core Client Indicator'!$A$3:$AB$351, MATCH(Selection_Hide2!$A189, 'Full set Core Client Indicator'!$A$3:$A$351, 0), MATCH(Selection_Hide2!AA$5, 'Full set Core Client Indicator'!$A$3:$AB$3, 0))=\"\", \"\",  INDEX('Full set Core Client Indicator'!$A$3:$AB$351, MATCH(Selection_Hide2!$A189, 'Full set Core Client Indicator'!$A$3:$A$351, 0), MATCH(Selection_Hide2!AA$5, 'Full set Core Client Indicator'!$A$3:$AB$3, 0))), \"\")","v":""},{"$f":"IF(AA189<>\"\", IF(INDEX('Full set Core Client Indicator'!$A$3:$AB$351, MATCH(Selection_Hide2!$A189, 'Full set Core Client Indicator'!$A$3:$A$351, 0), MATCH(Selection_Hide2!AB$5, 'Full set Core Client Indicator'!$A$3:$AB$3, 0))=\"\", \"\",  INDEX('Full set Core Client Indicator'!$A$3:$AB$351, MATCH(Selection_Hide2!$A189, 'Full set Core Client Indicator'!$A$3:$A$351, 0), MATCH(Selection_Hide2!AB$5, 'Full set Core Client Indicator'!$A$3:$AB$3, 0))), \"\")","v":""}]
[{"$f":"IF(AND(Selection_Hide1!C188<>0, Selection_Hide1!C188<>\"Grand Total\"), Selection_Hide1!C188, \"\")","v":""},{"$f":"IF(A190<>\"\", IF(INDEX('Full set Core Client Indicator'!$A$3:$AB$351, MATCH(Selection_Hide2!$A190, 'Full set Core Client Indicator'!$A$3:$A$351, 0), MATCH(Selection_Hide2!B$5, 'Full set Core Client Indicator'!$A$3:$AB$3, 0))=\"\", \"\",  INDEX('Full set Core Client Indicator'!$A$3:$AB$351, MATCH(Selection_Hide2!$A190, 'Full set Core Client Indicator'!$A$3:$A$351, 0), MATCH(Selection_Hide2!B$5, 'Full set Core Client Indicator'!$A$3:$AB$3, 0))), \"\")","v":""},{"$f":"IF(B190<>\"\", IF(INDEX('Full set Core Client Indicator'!$A$3:$AB$351, MATCH(Selection_Hide2!$A190, 'Full set Core Client Indicator'!$A$3:$A$351, 0), MATCH(Selection_Hide2!C$5, 'Full set Core Client Indicator'!$A$3:$AB$3, 0))=\"\", \"\",  INDEX('Full set Core Client Indicator'!$A$3:$AB$351, MATCH(Selection_Hide2!$A190, 'Full set Core Client Indicator'!$A$3:$A$351, 0), MATCH(Selection_Hide2!C$5, 'Full set Core Client Indicator'!$A$3:$AB$3, 0))), \"\")","v":""},{"$f":"IF(C190<>\"\", IF(INDEX('Full set Core Client Indicator'!$A$3:$AB$351, MATCH(Selection_Hide2!$A190, 'Full set Core Client Indicator'!$A$3:$A$351, 0), MATCH(Selection_Hide2!D$5, 'Full set Core Client Indicator'!$A$3:$AB$3, 0))=\"\", \"\",  INDEX('Full set Core Client Indicator'!$A$3:$AB$351, MATCH(Selection_Hide2!$A190, 'Full set Core Client Indicator'!$A$3:$A$351, 0), MATCH(Selection_Hide2!D$5, 'Full set Core Client Indicator'!$A$3:$AB$3, 0))), \"\")","v":""},{"$f":"IF(D190<>\"\", IF(INDEX('Full set Core Client Indicator'!$A$3:$AB$351, MATCH(Selection_Hide2!$A190, 'Full set Core Client Indicator'!$A$3:$A$351, 0), MATCH(Selection_Hide2!E$5, 'Full set Core Client Indicator'!$A$3:$AB$3, 0))=\"\", \"\",  INDEX('Full set Core Client Indicator'!$A$3:$AB$351, MATCH(Selection_Hide2!$A190, 'Full set Core Client Indicator'!$A$3:$A$351, 0), MATCH(Selection_Hide2!E$5, 'Full set Core Client Indicator'!$A$3:$AB$3, 0))), \"\")","v":""},{"$f":"IF(E190<>\"\", IF(INDEX('Full set Core Client Indicator'!$A$3:$AB$351, MATCH(Selection_Hide2!$A190, 'Full set Core Client Indicator'!$A$3:$A$351, 0), MATCH(Selection_Hide2!F$5, 'Full set Core Client Indicator'!$A$3:$AB$3, 0))=\"\", \"\",  INDEX('Full set Core Client Indicator'!$A$3:$AB$351, MATCH(Selection_Hide2!$A190, 'Full set Core Client Indicator'!$A$3:$A$351, 0), MATCH(Selection_Hide2!F$5, 'Full set Core Client Indicator'!$A$3:$AB$3, 0))), \"\")","v":""},{"$f":"IF(F190<>\"\", IF(INDEX('Full set Core Client Indicator'!$A$3:$AB$351, MATCH(Selection_Hide2!$A190, 'Full set Core Client Indicator'!$A$3:$A$351, 0), MATCH(Selection_Hide2!G$5, 'Full set Core Client Indicator'!$A$3:$AB$3, 0))=\"\", \"\",  INDEX('Full set Core Client Indicator'!$A$3:$AB$351, MATCH(Selection_Hide2!$A190, 'Full set Core Client Indicator'!$A$3:$A$351, 0), MATCH(Selection_Hide2!G$5, 'Full set Core Client Indicator'!$A$3:$AB$3, 0))), \"\")","v":""},{"$f":"IF(G190<>\"\", IF(INDEX('Full set Core Client Indicator'!$A$3:$AB$351, MATCH(Selection_Hide2!$A190, 'Full set Core Client Indicator'!$A$3:$A$351, 0), MATCH(Selection_Hide2!H$5, 'Full set Core Client Indicator'!$A$3:$AB$3, 0))=\"\", \"\",  INDEX('Full set Core Client Indicator'!$A$3:$AB$351, MATCH(Selection_Hide2!$A190, 'Full set Core Client Indicator'!$A$3:$A$351, 0), MATCH(Selection_Hide2!H$5, 'Full set Core Client Indicator'!$A$3:$AB$3, 0))), \"\")","v":""},{"$f":"IF(H190<>\"\", IF(INDEX('Full set Core Client Indicator'!$A$3:$AB$351, MATCH(Selection_Hide2!$A190, 'Full set Core Client Indicator'!$A$3:$A$351, 0), MATCH(Selection_Hide2!I$5, 'Full set Core Client Indicator'!$A$3:$AB$3, 0))=\"\", \"\",  INDEX('Full set Core Client Indicator'!$A$3:$AB$351, MATCH(Selection_Hide2!$A190, 'Full set Core Client Indicator'!$A$3:$A$351, 0), MATCH(Selection_Hide2!I$5, 'Full set Core Client Indicator'!$A$3:$AB$3, 0))), \"\")","v":""},{"$f":"IF(I190<>\"\", IF(INDEX('Full set Core Client Indicator'!$A$3:$AB$351, MATCH(Selection_Hide2!$A190, 'Full set Core Client Indicator'!$A$3:$A$351, 0), MATCH(Selection_Hide2!J$5, 'Full set Core Client Indicator'!$A$3:$AB$3, 0))=\"\", \"\",  INDEX('Full set Core Client Indicator'!$A$3:$AB$351, MATCH(Selection_Hide2!$A190, 'Full set Core Client Indicator'!$A$3:$A$351, 0), MATCH(Selection_Hide2!J$5, 'Full set Core Client Indicator'!$A$3:$AB$3, 0))), \"\")","v":""},{"$f":"IF(J190<>\"\", IF(INDEX('Full set Core Client Indicator'!$A$3:$AB$351, MATCH(Selection_Hide2!$A190, 'Full set Core Client Indicator'!$A$3:$A$351, 0), MATCH(Selection_Hide2!K$5, 'Full set Core Client Indicator'!$A$3:$AB$3, 0))=\"\", \"\",  INDEX('Full set Core Client Indicator'!$A$3:$AB$351, MATCH(Selection_Hide2!$A190, 'Full set Core Client Indicator'!$A$3:$A$351, 0), MATCH(Selection_Hide2!K$5, 'Full set Core Client Indicator'!$A$3:$AB$3, 0))), \"\")","v":""},{"$f":"IF(K190<>\"\", IF(INDEX('Full set Core Client Indicator'!$A$3:$AB$351, MATCH(Selection_Hide2!$A190, 'Full set Core Client Indicator'!$A$3:$A$351, 0), MATCH(Selection_Hide2!L$5, 'Full set Core Client Indicator'!$A$3:$AB$3, 0))=\"\", \"\",  INDEX('Full set Core Client Indicator'!$A$3:$AB$351, MATCH(Selection_Hide2!$A190, 'Full set Core Client Indicator'!$A$3:$A$351, 0), MATCH(Selection_Hide2!L$5, 'Full set Core Client Indicator'!$A$3:$AB$3, 0))), \"\")","v":""},{"$f":"IF(L190<>\"\", IF(INDEX('Full set Core Client Indicator'!$A$3:$AB$351, MATCH(Selection_Hide2!$A190, 'Full set Core Client Indicator'!$A$3:$A$351, 0), MATCH(Selection_Hide2!M$5, 'Full set Core Client Indicator'!$A$3:$AB$3, 0))=\"\", \"\",  INDEX('Full set Core Client Indicator'!$A$3:$AB$351, MATCH(Selection_Hide2!$A190, 'Full set Core Client Indicator'!$A$3:$A$351, 0), MATCH(Selection_Hide2!M$5, 'Full set Core Client Indicator'!$A$3:$AB$3, 0))), \"\")","v":""},{"$f":"IF(M190<>\"\", IF(INDEX('Full set Core Client Indicator'!$A$3:$AB$351, MATCH(Selection_Hide2!$A190, 'Full set Core Client Indicator'!$A$3:$A$351, 0), MATCH(Selection_Hide2!N$5, 'Full set Core Client Indicator'!$A$3:$AB$3, 0))=\"\", \"\",  INDEX('Full set Core Client Indicator'!$A$3:$AB$351, MATCH(Selection_Hide2!$A190, 'Full set Core Client Indicator'!$A$3:$A$351, 0), MATCH(Selection_Hide2!N$5, 'Full set Core Client Indicator'!$A$3:$AB$3, 0))), \"\")","v":""},{"$f":"IF(N190<>\"\", IF(INDEX('Full set Core Client Indicator'!$A$3:$AB$351, MATCH(Selection_Hide2!$A190, 'Full set Core Client Indicator'!$A$3:$A$351, 0), MATCH(Selection_Hide2!O$5, 'Full set Core Client Indicator'!$A$3:$AB$3, 0))=\"\", \"\",  INDEX('Full set Core Client Indicator'!$A$3:$AB$351, MATCH(Selection_Hide2!$A190, 'Full set Core Client Indicator'!$A$3:$A$351, 0), MATCH(Selection_Hide2!O$5, 'Full set Core Client Indicator'!$A$3:$AB$3, 0))), \"\")","v":""},{"$f":"IF(O190<>\"\", IF(INDEX('Full set Core Client Indicator'!$A$3:$AB$351, MATCH(Selection_Hide2!$A190, 'Full set Core Client Indicator'!$A$3:$A$351, 0), MATCH(Selection_Hide2!P$5, 'Full set Core Client Indicator'!$A$3:$AB$3, 0))=\"\", \"\",  INDEX('Full set Core Client Indicator'!$A$3:$AB$351, MATCH(Selection_Hide2!$A190, 'Full set Core Client Indicator'!$A$3:$A$351, 0), MATCH(Selection_Hide2!P$5, 'Full set Core Client Indicator'!$A$3:$AB$3, 0))), \"\")","v":""},{"$f":"IF(P190<>\"\", IF(INDEX('Full set Core Client Indicator'!$A$3:$AB$351, MATCH(Selection_Hide2!$A190, 'Full set Core Client Indicator'!$A$3:$A$351, 0), MATCH(Selection_Hide2!Q$5, 'Full set Core Client Indicator'!$A$3:$AB$3, 0))=\"\", \"\",  INDEX('Full set Core Client Indicator'!$A$3:$AB$351, MATCH(Selection_Hide2!$A190, 'Full set Core Client Indicator'!$A$3:$A$351, 0), MATCH(Selection_Hide2!Q$5, 'Full set Core Client Indicator'!$A$3:$AB$3, 0))), \"\")","v":""},{"$f":"IF(Q190<>\"\", IF(INDEX('Full set Core Client Indicator'!$A$3:$AB$351, MATCH(Selection_Hide2!$A190, 'Full set Core Client Indicator'!$A$3:$A$351, 0), MATCH(Selection_Hide2!R$5, 'Full set Core Client Indicator'!$A$3:$AB$3, 0))=\"\", \"\",  INDEX('Full set Core Client Indicator'!$A$3:$AB$351, MATCH(Selection_Hide2!$A190, 'Full set Core Client Indicator'!$A$3:$A$351, 0), MATCH(Selection_Hide2!R$5, 'Full set Core Client Indicator'!$A$3:$AB$3, 0))), \"\")","v":""},{"$f":"IF(R190<>\"\", IF(INDEX('Full set Core Client Indicator'!$A$3:$AB$351, MATCH(Selection_Hide2!$A190, 'Full set Core Client Indicator'!$A$3:$A$351, 0), MATCH(Selection_Hide2!S$5, 'Full set Core Client Indicator'!$A$3:$AB$3, 0))=\"\", \"\",  INDEX('Full set Core Client Indicator'!$A$3:$AB$351, MATCH(Selection_Hide2!$A190, 'Full set Core Client Indicator'!$A$3:$A$351, 0), MATCH(Selection_Hide2!S$5, 'Full set Core Client Indicator'!$A$3:$AB$3, 0))), \"\")","v":""},{"$f":"IF(S190<>\"\", IF(INDEX('Full set Core Client Indicator'!$A$3:$AB$351, MATCH(Selection_Hide2!$A190, 'Full set Core Client Indicator'!$A$3:$A$351, 0), MATCH(Selection_Hide2!T$5, 'Full set Core Client Indicator'!$A$3:$AB$3, 0))=\"\", \"\",  INDEX('Full set Core Client Indicator'!$A$3:$AB$351, MATCH(Selection_Hide2!$A190, 'Full set Core Client Indicator'!$A$3:$A$351, 0), MATCH(Selection_Hide2!T$5, 'Full set Core Client Indicator'!$A$3:$AB$3, 0))), \"\")","v":""},{"$f":"IF(T190<>\"\", IF(INDEX('Full set Core Client Indicator'!$A$3:$AB$351, MATCH(Selection_Hide2!$A190, 'Full set Core Client Indicator'!$A$3:$A$351, 0), MATCH(Selection_Hide2!U$5, 'Full set Core Client Indicator'!$A$3:$AB$3, 0))=\"\", \"\",  INDEX('Full set Core Client Indicator'!$A$3:$AB$351, MATCH(Selection_Hide2!$A190, 'Full set Core Client Indicator'!$A$3:$A$351, 0), MATCH(Selection_Hide2!U$5, 'Full set Core Client Indicator'!$A$3:$AB$3, 0))), \"\")","v":""},{"$f":"IF(U190<>\"\", IF(INDEX('Full set Core Client Indicator'!$A$3:$AB$351, MATCH(Selection_Hide2!$A190, 'Full set Core Client Indicator'!$A$3:$A$351, 0), MATCH(Selection_Hide2!V$5, 'Full set Core Client Indicator'!$A$3:$AB$3, 0))=\"\", \"\",  INDEX('Full set Core Client Indicator'!$A$3:$AB$351, MATCH(Selection_Hide2!$A190, 'Full set Core Client Indicator'!$A$3:$A$351, 0), MATCH(Selection_Hide2!V$5, 'Full set Core Client Indicator'!$A$3:$AB$3, 0))), \"\")","v":""},{"$f":"IF(V190<>\"\", IF(INDEX('Full set Core Client Indicator'!$A$3:$AB$351, MATCH(Selection_Hide2!$A190, 'Full set Core Client Indicator'!$A$3:$A$351, 0), MATCH(Selection_Hide2!W$5, 'Full set Core Client Indicator'!$A$3:$AB$3, 0))=\"\", \"\",  INDEX('Full set Core Client Indicator'!$A$3:$AB$351, MATCH(Selection_Hide2!$A190, 'Full set Core Client Indicator'!$A$3:$A$351, 0), MATCH(Selection_Hide2!W$5, 'Full set Core Client Indicator'!$A$3:$AB$3, 0))), \"\")","v":""},{"$f":"IF(W190<>\"\", IF(INDEX('Full set Core Client Indicator'!$A$3:$AB$351, MATCH(Selection_Hide2!$A190, 'Full set Core Client Indicator'!$A$3:$A$351, 0), MATCH(Selection_Hide2!X$5, 'Full set Core Client Indicator'!$A$3:$AB$3, 0))=\"\", \"\",  INDEX('Full set Core Client Indicator'!$A$3:$AB$351, MATCH(Selection_Hide2!$A190, 'Full set Core Client Indicator'!$A$3:$A$351, 0), MATCH(Selection_Hide2!X$5, 'Full set Core Client Indicator'!$A$3:$AB$3, 0))), \"\")","v":""},{"$f":"IF(X190<>\"\", IF(INDEX('Full set Core Client Indicator'!$A$3:$AB$351, MATCH(Selection_Hide2!$A190, 'Full set Core Client Indicator'!$A$3:$A$351, 0), MATCH(Selection_Hide2!Y$5, 'Full set Core Client Indicator'!$A$3:$AB$3, 0))=\"\", \"\",  INDEX('Full set Core Client Indicator'!$A$3:$AB$351, MATCH(Selection_Hide2!$A190, 'Full set Core Client Indicator'!$A$3:$A$351, 0), MATCH(Selection_Hide2!Y$5, 'Full set Core Client Indicator'!$A$3:$AB$3, 0))), \"\")","v":""},{"$f":"IF(Y190<>\"\", IF(INDEX('Full set Core Client Indicator'!$A$3:$AB$351, MATCH(Selection_Hide2!$A190, 'Full set Core Client Indicator'!$A$3:$A$351, 0), MATCH(Selection_Hide2!Z$5, 'Full set Core Client Indicator'!$A$3:$AB$3, 0))=\"\", \"\",  INDEX('Full set Core Client Indicator'!$A$3:$AB$351, MATCH(Selection_Hide2!$A190, 'Full set Core Client Indicator'!$A$3:$A$351, 0), MATCH(Selection_Hide2!Z$5, 'Full set Core Client Indicator'!$A$3:$AB$3, 0))), \"\")","v":""},{"$f":"IF(Z190<>\"\", IF(INDEX('Full set Core Client Indicator'!$A$3:$AB$351, MATCH(Selection_Hide2!$A190, 'Full set Core Client Indicator'!$A$3:$A$351, 0), MATCH(Selection_Hide2!AA$5, 'Full set Core Client Indicator'!$A$3:$AB$3, 0))=\"\", \"\",  INDEX('Full set Core Client Indicator'!$A$3:$AB$351, MATCH(Selection_Hide2!$A190, 'Full set Core Client Indicator'!$A$3:$A$351, 0), MATCH(Selection_Hide2!AA$5, 'Full set Core Client Indicator'!$A$3:$AB$3, 0))), \"\")","v":""},{"$f":"IF(AA190<>\"\", IF(INDEX('Full set Core Client Indicator'!$A$3:$AB$351, MATCH(Selection_Hide2!$A190, 'Full set Core Client Indicator'!$A$3:$A$351, 0), MATCH(Selection_Hide2!AB$5, 'Full set Core Client Indicator'!$A$3:$AB$3, 0))=\"\", \"\",  INDEX('Full set Core Client Indicator'!$A$3:$AB$351, MATCH(Selection_Hide2!$A190, 'Full set Core Client Indicator'!$A$3:$A$351, 0), MATCH(Selection_Hide2!AB$5, 'Full set Core Client Indicator'!$A$3:$AB$3, 0))), \"\")","v":""}]
[{"$f":"IF(AND(Selection_Hide1!C189<>0, Selection_Hide1!C189<>\"Grand Total\"), Selection_Hide1!C189, \"\")","v":""},{"$f":"IF(A191<>\"\", IF(INDEX('Full set Core Client Indicator'!$A$3:$AB$351, MATCH(Selection_Hide2!$A191, 'Full set Core Client Indicator'!$A$3:$A$351, 0), MATCH(Selection_Hide2!B$5, 'Full set Core Client Indicator'!$A$3:$AB$3, 0))=\"\", \"\",  INDEX('Full set Core Client Indicator'!$A$3:$AB$351, MATCH(Selection_Hide2!$A191, 'Full set Core Client Indicator'!$A$3:$A$351, 0), MATCH(Selection_Hide2!B$5, 'Full set Core Client Indicator'!$A$3:$AB$3, 0))), \"\")","v":""},{"$f":"IF(B191<>\"\", IF(INDEX('Full set Core Client Indicator'!$A$3:$AB$351, MATCH(Selection_Hide2!$A191, 'Full set Core Client Indicator'!$A$3:$A$351, 0), MATCH(Selection_Hide2!C$5, 'Full set Core Client Indicator'!$A$3:$AB$3, 0))=\"\", \"\",  INDEX('Full set Core Client Indicator'!$A$3:$AB$351, MATCH(Selection_Hide2!$A191, 'Full set Core Client Indicator'!$A$3:$A$351, 0), MATCH(Selection_Hide2!C$5, 'Full set Core Client Indicator'!$A$3:$AB$3, 0))), \"\")","v":""},{"$f":"IF(C191<>\"\", IF(INDEX('Full set Core Client Indicator'!$A$3:$AB$351, MATCH(Selection_Hide2!$A191, 'Full set Core Client Indicator'!$A$3:$A$351, 0), MATCH(Selection_Hide2!D$5, 'Full set Core Client Indicator'!$A$3:$AB$3, 0))=\"\", \"\",  INDEX('Full set Core Client Indicator'!$A$3:$AB$351, MATCH(Selection_Hide2!$A191, 'Full set Core Client Indicator'!$A$3:$A$351, 0), MATCH(Selection_Hide2!D$5, 'Full set Core Client Indicator'!$A$3:$AB$3, 0))), \"\")","v":""},{"$f":"IF(D191<>\"\", IF(INDEX('Full set Core Client Indicator'!$A$3:$AB$351, MATCH(Selection_Hide2!$A191, 'Full set Core Client Indicator'!$A$3:$A$351, 0), MATCH(Selection_Hide2!E$5, 'Full set Core Client Indicator'!$A$3:$AB$3, 0))=\"\", \"\",  INDEX('Full set Core Client Indicator'!$A$3:$AB$351, MATCH(Selection_Hide2!$A191, 'Full set Core Client Indicator'!$A$3:$A$351, 0), MATCH(Selection_Hide2!E$5, 'Full set Core Client Indicator'!$A$3:$AB$3, 0))), \"\")","v":""},{"$f":"IF(E191<>\"\", IF(INDEX('Full set Core Client Indicator'!$A$3:$AB$351, MATCH(Selection_Hide2!$A191, 'Full set Core Client Indicator'!$A$3:$A$351, 0), MATCH(Selection_Hide2!F$5, 'Full set Core Client Indicator'!$A$3:$AB$3, 0))=\"\", \"\",  INDEX('Full set Core Client Indicator'!$A$3:$AB$351, MATCH(Selection_Hide2!$A191, 'Full set Core Client Indicator'!$A$3:$A$351, 0), MATCH(Selection_Hide2!F$5, 'Full set Core Client Indicator'!$A$3:$AB$3, 0))), \"\")","v":""},{"$f":"IF(F191<>\"\", IF(INDEX('Full set Core Client Indicator'!$A$3:$AB$351, MATCH(Selection_Hide2!$A191, 'Full set Core Client Indicator'!$A$3:$A$351, 0), MATCH(Selection_Hide2!G$5, 'Full set Core Client Indicator'!$A$3:$AB$3, 0))=\"\", \"\",  INDEX('Full set Core Client Indicator'!$A$3:$AB$351, MATCH(Selection_Hide2!$A191, 'Full set Core Client Indicator'!$A$3:$A$351, 0), MATCH(Selection_Hide2!G$5, 'Full set Core Client Indicator'!$A$3:$AB$3, 0))), \"\")","v":""},{"$f":"IF(G191<>\"\", IF(INDEX('Full set Core Client Indicator'!$A$3:$AB$351, MATCH(Selection_Hide2!$A191, 'Full set Core Client Indicator'!$A$3:$A$351, 0), MATCH(Selection_Hide2!H$5, 'Full set Core Client Indicator'!$A$3:$AB$3, 0))=\"\", \"\",  INDEX('Full set Core Client Indicator'!$A$3:$AB$351, MATCH(Selection_Hide2!$A191, 'Full set Core Client Indicator'!$A$3:$A$351, 0), MATCH(Selection_Hide2!H$5, 'Full set Core Client Indicator'!$A$3:$AB$3, 0))), \"\")","v":""},{"$f":"IF(H191<>\"\", IF(INDEX('Full set Core Client Indicator'!$A$3:$AB$351, MATCH(Selection_Hide2!$A191, 'Full set Core Client Indicator'!$A$3:$A$351, 0), MATCH(Selection_Hide2!I$5, 'Full set Core Client Indicator'!$A$3:$AB$3, 0))=\"\", \"\",  INDEX('Full set Core Client Indicator'!$A$3:$AB$351, MATCH(Selection_Hide2!$A191, 'Full set Core Client Indicator'!$A$3:$A$351, 0), MATCH(Selection_Hide2!I$5, 'Full set Core Client Indicator'!$A$3:$AB$3, 0))), \"\")","v":""},{"$f":"IF(I191<>\"\", IF(INDEX('Full set Core Client Indicator'!$A$3:$AB$351, MATCH(Selection_Hide2!$A191, 'Full set Core Client Indicator'!$A$3:$A$351, 0), MATCH(Selection_Hide2!J$5, 'Full set Core Client Indicator'!$A$3:$AB$3, 0))=\"\", \"\",  INDEX('Full set Core Client Indicator'!$A$3:$AB$351, MATCH(Selection_Hide2!$A191, 'Full set Core Client Indicator'!$A$3:$A$351, 0), MATCH(Selection_Hide2!J$5, 'Full set Core Client Indicator'!$A$3:$AB$3, 0))), \"\")","v":""},{"$f":"IF(J191<>\"\", IF(INDEX('Full set Core Client Indicator'!$A$3:$AB$351, MATCH(Selection_Hide2!$A191, 'Full set Core Client Indicator'!$A$3:$A$351, 0), MATCH(Selection_Hide2!K$5, 'Full set Core Client Indicator'!$A$3:$AB$3, 0))=\"\", \"\",  INDEX('Full set Core Client Indicator'!$A$3:$AB$351, MATCH(Selection_Hide2!$A191, 'Full set Core Client Indicator'!$A$3:$A$351, 0), MATCH(Selection_Hide2!K$5, 'Full set Core Client Indicator'!$A$3:$AB$3, 0))), \"\")","v":""},{"$f":"IF(K191<>\"\", IF(INDEX('Full set Core Client Indicator'!$A$3:$AB$351, MATCH(Selection_Hide2!$A191, 'Full set Core Client Indicator'!$A$3:$A$351, 0), MATCH(Selection_Hide2!L$5, 'Full set Core Client Indicator'!$A$3:$AB$3, 0))=\"\", \"\",  INDEX('Full set Core Client Indicator'!$A$3:$AB$351, MATCH(Selection_Hide2!$A191, 'Full set Core Client Indicator'!$A$3:$A$351, 0), MATCH(Selection_Hide2!L$5, 'Full set Core Client Indicator'!$A$3:$AB$3, 0))), \"\")","v":""},{"$f":"IF(L191<>\"\", IF(INDEX('Full set Core Client Indicator'!$A$3:$AB$351, MATCH(Selection_Hide2!$A191, 'Full set Core Client Indicator'!$A$3:$A$351, 0), MATCH(Selection_Hide2!M$5, 'Full set Core Client Indicator'!$A$3:$AB$3, 0))=\"\", \"\",  INDEX('Full set Core Client Indicator'!$A$3:$AB$351, MATCH(Selection_Hide2!$A191, 'Full set Core Client Indicator'!$A$3:$A$351, 0), MATCH(Selection_Hide2!M$5, 'Full set Core Client Indicator'!$A$3:$AB$3, 0))), \"\")","v":""},{"$f":"IF(M191<>\"\", IF(INDEX('Full set Core Client Indicator'!$A$3:$AB$351, MATCH(Selection_Hide2!$A191, 'Full set Core Client Indicator'!$A$3:$A$351, 0), MATCH(Selection_Hide2!N$5, 'Full set Core Client Indicator'!$A$3:$AB$3, 0))=\"\", \"\",  INDEX('Full set Core Client Indicator'!$A$3:$AB$351, MATCH(Selection_Hide2!$A191, 'Full set Core Client Indicator'!$A$3:$A$351, 0), MATCH(Selection_Hide2!N$5, 'Full set Core Client Indicator'!$A$3:$AB$3, 0))), \"\")","v":""},{"$f":"IF(N191<>\"\", IF(INDEX('Full set Core Client Indicator'!$A$3:$AB$351, MATCH(Selection_Hide2!$A191, 'Full set Core Client Indicator'!$A$3:$A$351, 0), MATCH(Selection_Hide2!O$5, 'Full set Core Client Indicator'!$A$3:$AB$3, 0))=\"\", \"\",  INDEX('Full set Core Client Indicator'!$A$3:$AB$351, MATCH(Selection_Hide2!$A191, 'Full set Core Client Indicator'!$A$3:$A$351, 0), MATCH(Selection_Hide2!O$5, 'Full set Core Client Indicator'!$A$3:$AB$3, 0))), \"\")","v":""},{"$f":"IF(O191<>\"\", IF(INDEX('Full set Core Client Indicator'!$A$3:$AB$351, MATCH(Selection_Hide2!$A191, 'Full set Core Client Indicator'!$A$3:$A$351, 0), MATCH(Selection_Hide2!P$5, 'Full set Core Client Indicator'!$A$3:$AB$3, 0))=\"\", \"\",  INDEX('Full set Core Client Indicator'!$A$3:$AB$351, MATCH(Selection_Hide2!$A191, 'Full set Core Client Indicator'!$A$3:$A$351, 0), MATCH(Selection_Hide2!P$5, 'Full set Core Client Indicator'!$A$3:$AB$3, 0))), \"\")","v":""},{"$f":"IF(P191<>\"\", IF(INDEX('Full set Core Client Indicator'!$A$3:$AB$351, MATCH(Selection_Hide2!$A191, 'Full set Core Client Indicator'!$A$3:$A$351, 0), MATCH(Selection_Hide2!Q$5, 'Full set Core Client Indicator'!$A$3:$AB$3, 0))=\"\", \"\",  INDEX('Full set Core Client Indicator'!$A$3:$AB$351, MATCH(Selection_Hide2!$A191, 'Full set Core Client Indicator'!$A$3:$A$351, 0), MATCH(Selection_Hide2!Q$5, 'Full set Core Client Indicator'!$A$3:$AB$3, 0))), \"\")","v":""},{"$f":"IF(Q191<>\"\", IF(INDEX('Full set Core Client Indicator'!$A$3:$AB$351, MATCH(Selection_Hide2!$A191, 'Full set Core Client Indicator'!$A$3:$A$351, 0), MATCH(Selection_Hide2!R$5, 'Full set Core Client Indicator'!$A$3:$AB$3, 0))=\"\", \"\",  INDEX('Full set Core Client Indicator'!$A$3:$AB$351, MATCH(Selection_Hide2!$A191, 'Full set Core Client Indicator'!$A$3:$A$351, 0), MATCH(Selection_Hide2!R$5, 'Full set Core Client Indicator'!$A$3:$AB$3, 0))), \"\")","v":""},{"$f":"IF(R191<>\"\", IF(INDEX('Full set Core Client Indicator'!$A$3:$AB$351, MATCH(Selection_Hide2!$A191, 'Full set Core Client Indicator'!$A$3:$A$351, 0), MATCH(Selection_Hide2!S$5, 'Full set Core Client Indicator'!$A$3:$AB$3, 0))=\"\", \"\",  INDEX('Full set Core Client Indicator'!$A$3:$AB$351, MATCH(Selection_Hide2!$A191, 'Full set Core Client Indicator'!$A$3:$A$351, 0), MATCH(Selection_Hide2!S$5, 'Full set Core Client Indicator'!$A$3:$AB$3, 0))), \"\")","v":""},{"$f":"IF(S191<>\"\", IF(INDEX('Full set Core Client Indicator'!$A$3:$AB$351, MATCH(Selection_Hide2!$A191, 'Full set Core Client Indicator'!$A$3:$A$351, 0), MATCH(Selection_Hide2!T$5, 'Full set Core Client Indicator'!$A$3:$AB$3, 0))=\"\", \"\",  INDEX('Full set Core Client Indicator'!$A$3:$AB$351, MATCH(Selection_Hide2!$A191, 'Full set Core Client Indicator'!$A$3:$A$351, 0), MATCH(Selection_Hide2!T$5, 'Full set Core Client Indicator'!$A$3:$AB$3, 0))), \"\")","v":""},{"$f":"IF(T191<>\"\", IF(INDEX('Full set Core Client Indicator'!$A$3:$AB$351, MATCH(Selection_Hide2!$A191, 'Full set Core Client Indicator'!$A$3:$A$351, 0), MATCH(Selection_Hide2!U$5, 'Full set Core Client Indicator'!$A$3:$AB$3, 0))=\"\", \"\",  INDEX('Full set Core Client Indicator'!$A$3:$AB$351, MATCH(Selection_Hide2!$A191, 'Full set Core Client Indicator'!$A$3:$A$351, 0), MATCH(Selection_Hide2!U$5, 'Full set Core Client Indicator'!$A$3:$AB$3, 0))), \"\")","v":""},{"$f":"IF(U191<>\"\", IF(INDEX('Full set Core Client Indicator'!$A$3:$AB$351, MATCH(Selection_Hide2!$A191, 'Full set Core Client Indicator'!$A$3:$A$351, 0), MATCH(Selection_Hide2!V$5, 'Full set Core Client Indicator'!$A$3:$AB$3, 0))=\"\", \"\",  INDEX('Full set Core Client Indicator'!$A$3:$AB$351, MATCH(Selection_Hide2!$A191, 'Full set Core Client Indicator'!$A$3:$A$351, 0), MATCH(Selection_Hide2!V$5, 'Full set Core Client Indicator'!$A$3:$AB$3, 0))), \"\")","v":""},{"$f":"IF(V191<>\"\", IF(INDEX('Full set Core Client Indicator'!$A$3:$AB$351, MATCH(Selection_Hide2!$A191, 'Full set Core Client Indicator'!$A$3:$A$351, 0), MATCH(Selection_Hide2!W$5, 'Full set Core Client Indicator'!$A$3:$AB$3, 0))=\"\", \"\",  INDEX('Full set Core Client Indicator'!$A$3:$AB$351, MATCH(Selection_Hide2!$A191, 'Full set Core Client Indicator'!$A$3:$A$351, 0), MATCH(Selection_Hide2!W$5, 'Full set Core Client Indicator'!$A$3:$AB$3, 0))), \"\")","v":""},{"$f":"IF(W191<>\"\", IF(INDEX('Full set Core Client Indicator'!$A$3:$AB$351, MATCH(Selection_Hide2!$A191, 'Full set Core Client Indicator'!$A$3:$A$351, 0), MATCH(Selection_Hide2!X$5, 'Full set Core Client Indicator'!$A$3:$AB$3, 0))=\"\", \"\",  INDEX('Full set Core Client Indicator'!$A$3:$AB$351, MATCH(Selection_Hide2!$A191, 'Full set Core Client Indicator'!$A$3:$A$351, 0), MATCH(Selection_Hide2!X$5, 'Full set Core Client Indicator'!$A$3:$AB$3, 0))), \"\")","v":""},{"$f":"IF(X191<>\"\", IF(INDEX('Full set Core Client Indicator'!$A$3:$AB$351, MATCH(Selection_Hide2!$A191, 'Full set Core Client Indicator'!$A$3:$A$351, 0), MATCH(Selection_Hide2!Y$5, 'Full set Core Client Indicator'!$A$3:$AB$3, 0))=\"\", \"\",  INDEX('Full set Core Client Indicator'!$A$3:$AB$351, MATCH(Selection_Hide2!$A191, 'Full set Core Client Indicator'!$A$3:$A$351, 0), MATCH(Selection_Hide2!Y$5, 'Full set Core Client Indicator'!$A$3:$AB$3, 0))), \"\")","v":""},{"$f":"IF(Y191<>\"\", IF(INDEX('Full set Core Client Indicator'!$A$3:$AB$351, MATCH(Selection_Hide2!$A191, 'Full set Core Client Indicator'!$A$3:$A$351, 0), MATCH(Selection_Hide2!Z$5, 'Full set Core Client Indicator'!$A$3:$AB$3, 0))=\"\", \"\",  INDEX('Full set Core Client Indicator'!$A$3:$AB$351, MATCH(Selection_Hide2!$A191, 'Full set Core Client Indicator'!$A$3:$A$351, 0), MATCH(Selection_Hide2!Z$5, 'Full set Core Client Indicator'!$A$3:$AB$3, 0))), \"\")","v":""},{"$f":"IF(Z191<>\"\", IF(INDEX('Full set Core Client Indicator'!$A$3:$AB$351, MATCH(Selection_Hide2!$A191, 'Full set Core Client Indicator'!$A$3:$A$351, 0), MATCH(Selection_Hide2!AA$5, 'Full set Core Client Indicator'!$A$3:$AB$3, 0))=\"\", \"\",  INDEX('Full set Core Client Indicator'!$A$3:$AB$351, MATCH(Selection_Hide2!$A191, 'Full set Core Client Indicator'!$A$3:$A$351, 0), MATCH(Selection_Hide2!AA$5, 'Full set Core Client Indicator'!$A$3:$AB$3, 0))), \"\")","v":""},{"$f":"IF(AA191<>\"\", IF(INDEX('Full set Core Client Indicator'!$A$3:$AB$351, MATCH(Selection_Hide2!$A191, 'Full set Core Client Indicator'!$A$3:$A$351, 0), MATCH(Selection_Hide2!AB$5, 'Full set Core Client Indicator'!$A$3:$AB$3, 0))=\"\", \"\",  INDEX('Full set Core Client Indicator'!$A$3:$AB$351, MATCH(Selection_Hide2!$A191, 'Full set Core Client Indicator'!$A$3:$A$351, 0), MATCH(Selection_Hide2!AB$5, 'Full set Core Client Indicator'!$A$3:$AB$3, 0))), \"\")","v":""}]
[{"$f":"IF(AND(Selection_Hide1!C190<>0, Selection_Hide1!C190<>\"Grand Total\"), Selection_Hide1!C190, \"\")","v":""},{"$f":"IF(A192<>\"\", IF(INDEX('Full set Core Client Indicator'!$A$3:$AB$351, MATCH(Selection_Hide2!$A192, 'Full set Core Client Indicator'!$A$3:$A$351, 0), MATCH(Selection_Hide2!B$5, 'Full set Core Client Indicator'!$A$3:$AB$3, 0))=\"\", \"\",  INDEX('Full set Core Client Indicator'!$A$3:$AB$351, MATCH(Selection_Hide2!$A192, 'Full set Core Client Indicator'!$A$3:$A$351, 0), MATCH(Selection_Hide2!B$5, 'Full set Core Client Indicator'!$A$3:$AB$3, 0))), \"\")","v":""},{"$f":"IF(B192<>\"\", IF(INDEX('Full set Core Client Indicator'!$A$3:$AB$351, MATCH(Selection_Hide2!$A192, 'Full set Core Client Indicator'!$A$3:$A$351, 0), MATCH(Selection_Hide2!C$5, 'Full set Core Client Indicator'!$A$3:$AB$3, 0))=\"\", \"\",  INDEX('Full set Core Client Indicator'!$A$3:$AB$351, MATCH(Selection_Hide2!$A192, 'Full set Core Client Indicator'!$A$3:$A$351, 0), MATCH(Selection_Hide2!C$5, 'Full set Core Client Indicator'!$A$3:$AB$3, 0))), \"\")","v":""},{"$f":"IF(C192<>\"\", IF(INDEX('Full set Core Client Indicator'!$A$3:$AB$351, MATCH(Selection_Hide2!$A192, 'Full set Core Client Indicator'!$A$3:$A$351, 0), MATCH(Selection_Hide2!D$5, 'Full set Core Client Indicator'!$A$3:$AB$3, 0))=\"\", \"\",  INDEX('Full set Core Client Indicator'!$A$3:$AB$351, MATCH(Selection_Hide2!$A192, 'Full set Core Client Indicator'!$A$3:$A$351, 0), MATCH(Selection_Hide2!D$5, 'Full set Core Client Indicator'!$A$3:$AB$3, 0))), \"\")","v":""},{"$f":"IF(D192<>\"\", IF(INDEX('Full set Core Client Indicator'!$A$3:$AB$351, MATCH(Selection_Hide2!$A192, 'Full set Core Client Indicator'!$A$3:$A$351, 0), MATCH(Selection_Hide2!E$5, 'Full set Core Client Indicator'!$A$3:$AB$3, 0))=\"\", \"\",  INDEX('Full set Core Client Indicator'!$A$3:$AB$351, MATCH(Selection_Hide2!$A192, 'Full set Core Client Indicator'!$A$3:$A$351, 0), MATCH(Selection_Hide2!E$5, 'Full set Core Client Indicator'!$A$3:$AB$3, 0))), \"\")","v":""},{"$f":"IF(E192<>\"\", IF(INDEX('Full set Core Client Indicator'!$A$3:$AB$351, MATCH(Selection_Hide2!$A192, 'Full set Core Client Indicator'!$A$3:$A$351, 0), MATCH(Selection_Hide2!F$5, 'Full set Core Client Indicator'!$A$3:$AB$3, 0))=\"\", \"\",  INDEX('Full set Core Client Indicator'!$A$3:$AB$351, MATCH(Selection_Hide2!$A192, 'Full set Core Client Indicator'!$A$3:$A$351, 0), MATCH(Selection_Hide2!F$5, 'Full set Core Client Indicator'!$A$3:$AB$3, 0))), \"\")","v":""},{"$f":"IF(F192<>\"\", IF(INDEX('Full set Core Client Indicator'!$A$3:$AB$351, MATCH(Selection_Hide2!$A192, 'Full set Core Client Indicator'!$A$3:$A$351, 0), MATCH(Selection_Hide2!G$5, 'Full set Core Client Indicator'!$A$3:$AB$3, 0))=\"\", \"\",  INDEX('Full set Core Client Indicator'!$A$3:$AB$351, MATCH(Selection_Hide2!$A192, 'Full set Core Client Indicator'!$A$3:$A$351, 0), MATCH(Selection_Hide2!G$5, 'Full set Core Client Indicator'!$A$3:$AB$3, 0))), \"\")","v":""},{"$f":"IF(G192<>\"\", IF(INDEX('Full set Core Client Indicator'!$A$3:$AB$351, MATCH(Selection_Hide2!$A192, 'Full set Core Client Indicator'!$A$3:$A$351, 0), MATCH(Selection_Hide2!H$5, 'Full set Core Client Indicator'!$A$3:$AB$3, 0))=\"\", \"\",  INDEX('Full set Core Client Indicator'!$A$3:$AB$351, MATCH(Selection_Hide2!$A192, 'Full set Core Client Indicator'!$A$3:$A$351, 0), MATCH(Selection_Hide2!H$5, 'Full set Core Client Indicator'!$A$3:$AB$3, 0))), \"\")","v":""},{"$f":"IF(H192<>\"\", IF(INDEX('Full set Core Client Indicator'!$A$3:$AB$351, MATCH(Selection_Hide2!$A192, 'Full set Core Client Indicator'!$A$3:$A$351, 0), MATCH(Selection_Hide2!I$5, 'Full set Core Client Indicator'!$A$3:$AB$3, 0))=\"\", \"\",  INDEX('Full set Core Client Indicator'!$A$3:$AB$351, MATCH(Selection_Hide2!$A192, 'Full set Core Client Indicator'!$A$3:$A$351, 0), MATCH(Selection_Hide2!I$5, 'Full set Core Client Indicator'!$A$3:$AB$3, 0))), \"\")","v":""},{"$f":"IF(I192<>\"\", IF(INDEX('Full set Core Client Indicator'!$A$3:$AB$351, MATCH(Selection_Hide2!$A192, 'Full set Core Client Indicator'!$A$3:$A$351, 0), MATCH(Selection_Hide2!J$5, 'Full set Core Client Indicator'!$A$3:$AB$3, 0))=\"\", \"\",  INDEX('Full set Core Client Indicator'!$A$3:$AB$351, MATCH(Selection_Hide2!$A192, 'Full set Core Client Indicator'!$A$3:$A$351, 0), MATCH(Selection_Hide2!J$5, 'Full set Core Client Indicator'!$A$3:$AB$3, 0))), \"\")","v":""},{"$f":"IF(J192<>\"\", IF(INDEX('Full set Core Client Indicator'!$A$3:$AB$351, MATCH(Selection_Hide2!$A192, 'Full set Core Client Indicator'!$A$3:$A$351, 0), MATCH(Selection_Hide2!K$5, 'Full set Core Client Indicator'!$A$3:$AB$3, 0))=\"\", \"\",  INDEX('Full set Core Client Indicator'!$A$3:$AB$351, MATCH(Selection_Hide2!$A192, 'Full set Core Client Indicator'!$A$3:$A$351, 0), MATCH(Selection_Hide2!K$5, 'Full set Core Client Indicator'!$A$3:$AB$3, 0))), \"\")","v":""},{"$f":"IF(K192<>\"\", IF(INDEX('Full set Core Client Indicator'!$A$3:$AB$351, MATCH(Selection_Hide2!$A192, 'Full set Core Client Indicator'!$A$3:$A$351, 0), MATCH(Selection_Hide2!L$5, 'Full set Core Client Indicator'!$A$3:$AB$3, 0))=\"\", \"\",  INDEX('Full set Core Client Indicator'!$A$3:$AB$351, MATCH(Selection_Hide2!$A192, 'Full set Core Client Indicator'!$A$3:$A$351, 0), MATCH(Selection_Hide2!L$5, 'Full set Core Client Indicator'!$A$3:$AB$3, 0))), \"\")","v":""},{"$f":"IF(L192<>\"\", IF(INDEX('Full set Core Client Indicator'!$A$3:$AB$351, MATCH(Selection_Hide2!$A192, 'Full set Core Client Indicator'!$A$3:$A$351, 0), MATCH(Selection_Hide2!M$5, 'Full set Core Client Indicator'!$A$3:$AB$3, 0))=\"\", \"\",  INDEX('Full set Core Client Indicator'!$A$3:$AB$351, MATCH(Selection_Hide2!$A192, 'Full set Core Client Indicator'!$A$3:$A$351, 0), MATCH(Selection_Hide2!M$5, 'Full set Core Client Indicator'!$A$3:$AB$3, 0))), \"\")","v":""},{"$f":"IF(M192<>\"\", IF(INDEX('Full set Core Client Indicator'!$A$3:$AB$351, MATCH(Selection_Hide2!$A192, 'Full set Core Client Indicator'!$A$3:$A$351, 0), MATCH(Selection_Hide2!N$5, 'Full set Core Client Indicator'!$A$3:$AB$3, 0))=\"\", \"\",  INDEX('Full set Core Client Indicator'!$A$3:$AB$351, MATCH(Selection_Hide2!$A192, 'Full set Core Client Indicator'!$A$3:$A$351, 0), MATCH(Selection_Hide2!N$5, 'Full set Core Client Indicator'!$A$3:$AB$3, 0))), \"\")","v":""},{"$f":"IF(N192<>\"\", IF(INDEX('Full set Core Client Indicator'!$A$3:$AB$351, MATCH(Selection_Hide2!$A192, 'Full set Core Client Indicator'!$A$3:$A$351, 0), MATCH(Selection_Hide2!O$5, 'Full set Core Client Indicator'!$A$3:$AB$3, 0))=\"\", \"\",  INDEX('Full set Core Client Indicator'!$A$3:$AB$351, MATCH(Selection_Hide2!$A192, 'Full set Core Client Indicator'!$A$3:$A$351, 0), MATCH(Selection_Hide2!O$5, 'Full set Core Client Indicator'!$A$3:$AB$3, 0))), \"\")","v":""},{"$f":"IF(O192<>\"\", IF(INDEX('Full set Core Client Indicator'!$A$3:$AB$351, MATCH(Selection_Hide2!$A192, 'Full set Core Client Indicator'!$A$3:$A$351, 0), MATCH(Selection_Hide2!P$5, 'Full set Core Client Indicator'!$A$3:$AB$3, 0))=\"\", \"\",  INDEX('Full set Core Client Indicator'!$A$3:$AB$351, MATCH(Selection_Hide2!$A192, 'Full set Core Client Indicator'!$A$3:$A$351, 0), MATCH(Selection_Hide2!P$5, 'Full set Core Client Indicator'!$A$3:$AB$3, 0))), \"\")","v":""},{"$f":"IF(P192<>\"\", IF(INDEX('Full set Core Client Indicator'!$A$3:$AB$351, MATCH(Selection_Hide2!$A192, 'Full set Core Client Indicator'!$A$3:$A$351, 0), MATCH(Selection_Hide2!Q$5, 'Full set Core Client Indicator'!$A$3:$AB$3, 0))=\"\", \"\",  INDEX('Full set Core Client Indicator'!$A$3:$AB$351, MATCH(Selection_Hide2!$A192, 'Full set Core Client Indicator'!$A$3:$A$351, 0), MATCH(Selection_Hide2!Q$5, 'Full set Core Client Indicator'!$A$3:$AB$3, 0))), \"\")","v":""},{"$f":"IF(Q192<>\"\", IF(INDEX('Full set Core Client Indicator'!$A$3:$AB$351, MATCH(Selection_Hide2!$A192, 'Full set Core Client Indicator'!$A$3:$A$351, 0), MATCH(Selection_Hide2!R$5, 'Full set Core Client Indicator'!$A$3:$AB$3, 0))=\"\", \"\",  INDEX('Full set Core Client Indicator'!$A$3:$AB$351, MATCH(Selection_Hide2!$A192, 'Full set Core Client Indicator'!$A$3:$A$351, 0), MATCH(Selection_Hide2!R$5, 'Full set Core Client Indicator'!$A$3:$AB$3, 0))), \"\")","v":""},{"$f":"IF(R192<>\"\", IF(INDEX('Full set Core Client Indicator'!$A$3:$AB$351, MATCH(Selection_Hide2!$A192, 'Full set Core Client Indicator'!$A$3:$A$351, 0), MATCH(Selection_Hide2!S$5, 'Full set Core Client Indicator'!$A$3:$AB$3, 0))=\"\", \"\",  INDEX('Full set Core Client Indicator'!$A$3:$AB$351, MATCH(Selection_Hide2!$A192, 'Full set Core Client Indicator'!$A$3:$A$351, 0), MATCH(Selection_Hide2!S$5, 'Full set Core Client Indicator'!$A$3:$AB$3, 0))), \"\")","v":""},{"$f":"IF(S192<>\"\", IF(INDEX('Full set Core Client Indicator'!$A$3:$AB$351, MATCH(Selection_Hide2!$A192, 'Full set Core Client Indicator'!$A$3:$A$351, 0), MATCH(Selection_Hide2!T$5, 'Full set Core Client Indicator'!$A$3:$AB$3, 0))=\"\", \"\",  INDEX('Full set Core Client Indicator'!$A$3:$AB$351, MATCH(Selection_Hide2!$A192, 'Full set Core Client Indicator'!$A$3:$A$351, 0), MATCH(Selection_Hide2!T$5, 'Full set Core Client Indicator'!$A$3:$AB$3, 0))), \"\")","v":""},{"$f":"IF(T192<>\"\", IF(INDEX('Full set Core Client Indicator'!$A$3:$AB$351, MATCH(Selection_Hide2!$A192, 'Full set Core Client Indicator'!$A$3:$A$351, 0), MATCH(Selection_Hide2!U$5, 'Full set Core Client Indicator'!$A$3:$AB$3, 0))=\"\", \"\",  INDEX('Full set Core Client Indicator'!$A$3:$AB$351, MATCH(Selection_Hide2!$A192, 'Full set Core Client Indicator'!$A$3:$A$351, 0), MATCH(Selection_Hide2!U$5, 'Full set Core Client Indicator'!$A$3:$AB$3, 0))), \"\")","v":""},{"$f":"IF(U192<>\"\", IF(INDEX('Full set Core Client Indicator'!$A$3:$AB$351, MATCH(Selection_Hide2!$A192, 'Full set Core Client Indicator'!$A$3:$A$351, 0), MATCH(Selection_Hide2!V$5, 'Full set Core Client Indicator'!$A$3:$AB$3, 0))=\"\", \"\",  INDEX('Full set Core Client Indicator'!$A$3:$AB$351, MATCH(Selection_Hide2!$A192, 'Full set Core Client Indicator'!$A$3:$A$351, 0), MATCH(Selection_Hide2!V$5, 'Full set Core Client Indicator'!$A$3:$AB$3, 0))), \"\")","v":""},{"$f":"IF(V192<>\"\", IF(INDEX('Full set Core Client Indicator'!$A$3:$AB$351, MATCH(Selection_Hide2!$A192, 'Full set Core Client Indicator'!$A$3:$A$351, 0), MATCH(Selection_Hide2!W$5, 'Full set Core Client Indicator'!$A$3:$AB$3, 0))=\"\", \"\",  INDEX('Full set Core Client Indicator'!$A$3:$AB$351, MATCH(Selection_Hide2!$A192, 'Full set Core Client Indicator'!$A$3:$A$351, 0), MATCH(Selection_Hide2!W$5, 'Full set Core Client Indicator'!$A$3:$AB$3, 0))), \"\")","v":""},{"$f":"IF(W192<>\"\", IF(INDEX('Full set Core Client Indicator'!$A$3:$AB$351, MATCH(Selection_Hide2!$A192, 'Full set Core Client Indicator'!$A$3:$A$351, 0), MATCH(Selection_Hide2!X$5, 'Full set Core Client Indicator'!$A$3:$AB$3, 0))=\"\", \"\",  INDEX('Full set Core Client Indicator'!$A$3:$AB$351, MATCH(Selection_Hide2!$A192, 'Full set Core Client Indicator'!$A$3:$A$351, 0), MATCH(Selection_Hide2!X$5, 'Full set Core Client Indicator'!$A$3:$AB$3, 0))), \"\")","v":""},{"$f":"IF(X192<>\"\", IF(INDEX('Full set Core Client Indicator'!$A$3:$AB$351, MATCH(Selection_Hide2!$A192, 'Full set Core Client Indicator'!$A$3:$A$351, 0), MATCH(Selection_Hide2!Y$5, 'Full set Core Client Indicator'!$A$3:$AB$3, 0))=\"\", \"\",  INDEX('Full set Core Client Indicator'!$A$3:$AB$351, MATCH(Selection_Hide2!$A192, 'Full set Core Client Indicator'!$A$3:$A$351, 0), MATCH(Selection_Hide2!Y$5, 'Full set Core Client Indicator'!$A$3:$AB$3, 0))), \"\")","v":""},{"$f":"IF(Y192<>\"\", IF(INDEX('Full set Core Client Indicator'!$A$3:$AB$351, MATCH(Selection_Hide2!$A192, 'Full set Core Client Indicator'!$A$3:$A$351, 0), MATCH(Selection_Hide2!Z$5, 'Full set Core Client Indicator'!$A$3:$AB$3, 0))=\"\", \"\",  INDEX('Full set Core Client Indicator'!$A$3:$AB$351, MATCH(Selection_Hide2!$A192, 'Full set Core Client Indicator'!$A$3:$A$351, 0), MATCH(Selection_Hide2!Z$5, 'Full set Core Client Indicator'!$A$3:$AB$3, 0))), \"\")","v":""},{"$f":"IF(Z192<>\"\", IF(INDEX('Full set Core Client Indicator'!$A$3:$AB$351, MATCH(Selection_Hide2!$A192, 'Full set Core Client Indicator'!$A$3:$A$351, 0), MATCH(Selection_Hide2!AA$5, 'Full set Core Client Indicator'!$A$3:$AB$3, 0))=\"\", \"\",  INDEX('Full set Core Client Indicator'!$A$3:$AB$351, MATCH(Selection_Hide2!$A192, 'Full set Core Client Indicator'!$A$3:$A$351, 0), MATCH(Selection_Hide2!AA$5, 'Full set Core Client Indicator'!$A$3:$AB$3, 0))), \"\")","v":""},{"$f":"IF(AA192<>\"\", IF(INDEX('Full set Core Client Indicator'!$A$3:$AB$351, MATCH(Selection_Hide2!$A192, 'Full set Core Client Indicator'!$A$3:$A$351, 0), MATCH(Selection_Hide2!AB$5, 'Full set Core Client Indicator'!$A$3:$AB$3, 0))=\"\", \"\",  INDEX('Full set Core Client Indicator'!$A$3:$AB$351, MATCH(Selection_Hide2!$A192, 'Full set Core Client Indicator'!$A$3:$A$351, 0), MATCH(Selection_Hide2!AB$5, 'Full set Core Client Indicator'!$A$3:$AB$3, 0))), \"\")","v":""}]
[{"$f":"IF(AND(Selection_Hide1!C191<>0, Selection_Hide1!C191<>\"Grand Total\"), Selection_Hide1!C191, \"\")","v":""},{"$f":"IF(A193<>\"\", IF(INDEX('Full set Core Client Indicator'!$A$3:$AB$351, MATCH(Selection_Hide2!$A193, 'Full set Core Client Indicator'!$A$3:$A$351, 0), MATCH(Selection_Hide2!B$5, 'Full set Core Client Indicator'!$A$3:$AB$3, 0))=\"\", \"\",  INDEX('Full set Core Client Indicator'!$A$3:$AB$351, MATCH(Selection_Hide2!$A193, 'Full set Core Client Indicator'!$A$3:$A$351, 0), MATCH(Selection_Hide2!B$5, 'Full set Core Client Indicator'!$A$3:$AB$3, 0))), \"\")","v":""},{"$f":"IF(B193<>\"\", IF(INDEX('Full set Core Client Indicator'!$A$3:$AB$351, MATCH(Selection_Hide2!$A193, 'Full set Core Client Indicator'!$A$3:$A$351, 0), MATCH(Selection_Hide2!C$5, 'Full set Core Client Indicator'!$A$3:$AB$3, 0))=\"\", \"\",  INDEX('Full set Core Client Indicator'!$A$3:$AB$351, MATCH(Selection_Hide2!$A193, 'Full set Core Client Indicator'!$A$3:$A$351, 0), MATCH(Selection_Hide2!C$5, 'Full set Core Client Indicator'!$A$3:$AB$3, 0))), \"\")","v":""},{"$f":"IF(C193<>\"\", IF(INDEX('Full set Core Client Indicator'!$A$3:$AB$351, MATCH(Selection_Hide2!$A193, 'Full set Core Client Indicator'!$A$3:$A$351, 0), MATCH(Selection_Hide2!D$5, 'Full set Core Client Indicator'!$A$3:$AB$3, 0))=\"\", \"\",  INDEX('Full set Core Client Indicator'!$A$3:$AB$351, MATCH(Selection_Hide2!$A193, 'Full set Core Client Indicator'!$A$3:$A$351, 0), MATCH(Selection_Hide2!D$5, 'Full set Core Client Indicator'!$A$3:$AB$3, 0))), \"\")","v":""},{"$f":"IF(D193<>\"\", IF(INDEX('Full set Core Client Indicator'!$A$3:$AB$351, MATCH(Selection_Hide2!$A193, 'Full set Core Client Indicator'!$A$3:$A$351, 0), MATCH(Selection_Hide2!E$5, 'Full set Core Client Indicator'!$A$3:$AB$3, 0))=\"\", \"\",  INDEX('Full set Core Client Indicator'!$A$3:$AB$351, MATCH(Selection_Hide2!$A193, 'Full set Core Client Indicator'!$A$3:$A$351, 0), MATCH(Selection_Hide2!E$5, 'Full set Core Client Indicator'!$A$3:$AB$3, 0))), \"\")","v":""},{"$f":"IF(E193<>\"\", IF(INDEX('Full set Core Client Indicator'!$A$3:$AB$351, MATCH(Selection_Hide2!$A193, 'Full set Core Client Indicator'!$A$3:$A$351, 0), MATCH(Selection_Hide2!F$5, 'Full set Core Client Indicator'!$A$3:$AB$3, 0))=\"\", \"\",  INDEX('Full set Core Client Indicator'!$A$3:$AB$351, MATCH(Selection_Hide2!$A193, 'Full set Core Client Indicator'!$A$3:$A$351, 0), MATCH(Selection_Hide2!F$5, 'Full set Core Client Indicator'!$A$3:$AB$3, 0))), \"\")","v":""},{"$f":"IF(F193<>\"\", IF(INDEX('Full set Core Client Indicator'!$A$3:$AB$351, MATCH(Selection_Hide2!$A193, 'Full set Core Client Indicator'!$A$3:$A$351, 0), MATCH(Selection_Hide2!G$5, 'Full set Core Client Indicator'!$A$3:$AB$3, 0))=\"\", \"\",  INDEX('Full set Core Client Indicator'!$A$3:$AB$351, MATCH(Selection_Hide2!$A193, 'Full set Core Client Indicator'!$A$3:$A$351, 0), MATCH(Selection_Hide2!G$5, 'Full set Core Client Indicator'!$A$3:$AB$3, 0))), \"\")","v":""},{"$f":"IF(G193<>\"\", IF(INDEX('Full set Core Client Indicator'!$A$3:$AB$351, MATCH(Selection_Hide2!$A193, 'Full set Core Client Indicator'!$A$3:$A$351, 0), MATCH(Selection_Hide2!H$5, 'Full set Core Client Indicator'!$A$3:$AB$3, 0))=\"\", \"\",  INDEX('Full set Core Client Indicator'!$A$3:$AB$351, MATCH(Selection_Hide2!$A193, 'Full set Core Client Indicator'!$A$3:$A$351, 0), MATCH(Selection_Hide2!H$5, 'Full set Core Client Indicator'!$A$3:$AB$3, 0))), \"\")","v":""},{"$f":"IF(H193<>\"\", IF(INDEX('Full set Core Client Indicator'!$A$3:$AB$351, MATCH(Selection_Hide2!$A193, 'Full set Core Client Indicator'!$A$3:$A$351, 0), MATCH(Selection_Hide2!I$5, 'Full set Core Client Indicator'!$A$3:$AB$3, 0))=\"\", \"\",  INDEX('Full set Core Client Indicator'!$A$3:$AB$351, MATCH(Selection_Hide2!$A193, 'Full set Core Client Indicator'!$A$3:$A$351, 0), MATCH(Selection_Hide2!I$5, 'Full set Core Client Indicator'!$A$3:$AB$3, 0))), \"\")","v":""},{"$f":"IF(I193<>\"\", IF(INDEX('Full set Core Client Indicator'!$A$3:$AB$351, MATCH(Selection_Hide2!$A193, 'Full set Core Client Indicator'!$A$3:$A$351, 0), MATCH(Selection_Hide2!J$5, 'Full set Core Client Indicator'!$A$3:$AB$3, 0))=\"\", \"\",  INDEX('Full set Core Client Indicator'!$A$3:$AB$351, MATCH(Selection_Hide2!$A193, 'Full set Core Client Indicator'!$A$3:$A$351, 0), MATCH(Selection_Hide2!J$5, 'Full set Core Client Indicator'!$A$3:$AB$3, 0))), \"\")","v":""},{"$f":"IF(J193<>\"\", IF(INDEX('Full set Core Client Indicator'!$A$3:$AB$351, MATCH(Selection_Hide2!$A193, 'Full set Core Client Indicator'!$A$3:$A$351, 0), MATCH(Selection_Hide2!K$5, 'Full set Core Client Indicator'!$A$3:$AB$3, 0))=\"\", \"\",  INDEX('Full set Core Client Indicator'!$A$3:$AB$351, MATCH(Selection_Hide2!$A193, 'Full set Core Client Indicator'!$A$3:$A$351, 0), MATCH(Selection_Hide2!K$5, 'Full set Core Client Indicator'!$A$3:$AB$3, 0))), \"\")","v":""},{"$f":"IF(K193<>\"\", IF(INDEX('Full set Core Client Indicator'!$A$3:$AB$351, MATCH(Selection_Hide2!$A193, 'Full set Core Client Indicator'!$A$3:$A$351, 0), MATCH(Selection_Hide2!L$5, 'Full set Core Client Indicator'!$A$3:$AB$3, 0))=\"\", \"\",  INDEX('Full set Core Client Indicator'!$A$3:$AB$351, MATCH(Selection_Hide2!$A193, 'Full set Core Client Indicator'!$A$3:$A$351, 0), MATCH(Selection_Hide2!L$5, 'Full set Core Client Indicator'!$A$3:$AB$3, 0))), \"\")","v":""},{"$f":"IF(L193<>\"\", IF(INDEX('Full set Core Client Indicator'!$A$3:$AB$351, MATCH(Selection_Hide2!$A193, 'Full set Core Client Indicator'!$A$3:$A$351, 0), MATCH(Selection_Hide2!M$5, 'Full set Core Client Indicator'!$A$3:$AB$3, 0))=\"\", \"\",  INDEX('Full set Core Client Indicator'!$A$3:$AB$351, MATCH(Selection_Hide2!$A193, 'Full set Core Client Indicator'!$A$3:$A$351, 0), MATCH(Selection_Hide2!M$5, 'Full set Core Client Indicator'!$A$3:$AB$3, 0))), \"\")","v":""},{"$f":"IF(M193<>\"\", IF(INDEX('Full set Core Client Indicator'!$A$3:$AB$351, MATCH(Selection_Hide2!$A193, 'Full set Core Client Indicator'!$A$3:$A$351, 0), MATCH(Selection_Hide2!N$5, 'Full set Core Client Indicator'!$A$3:$AB$3, 0))=\"\", \"\",  INDEX('Full set Core Client Indicator'!$A$3:$AB$351, MATCH(Selection_Hide2!$A193, 'Full set Core Client Indicator'!$A$3:$A$351, 0), MATCH(Selection_Hide2!N$5, 'Full set Core Client Indicator'!$A$3:$AB$3, 0))), \"\")","v":""},{"$f":"IF(N193<>\"\", IF(INDEX('Full set Core Client Indicator'!$A$3:$AB$351, MATCH(Selection_Hide2!$A193, 'Full set Core Client Indicator'!$A$3:$A$351, 0), MATCH(Selection_Hide2!O$5, 'Full set Core Client Indicator'!$A$3:$AB$3, 0))=\"\", \"\",  INDEX('Full set Core Client Indicator'!$A$3:$AB$351, MATCH(Selection_Hide2!$A193, 'Full set Core Client Indicator'!$A$3:$A$351, 0), MATCH(Selection_Hide2!O$5, 'Full set Core Client Indicator'!$A$3:$AB$3, 0))), \"\")","v":""},{"$f":"IF(O193<>\"\", IF(INDEX('Full set Core Client Indicator'!$A$3:$AB$351, MATCH(Selection_Hide2!$A193, 'Full set Core Client Indicator'!$A$3:$A$351, 0), MATCH(Selection_Hide2!P$5, 'Full set Core Client Indicator'!$A$3:$AB$3, 0))=\"\", \"\",  INDEX('Full set Core Client Indicator'!$A$3:$AB$351, MATCH(Selection_Hide2!$A193, 'Full set Core Client Indicator'!$A$3:$A$351, 0), MATCH(Selection_Hide2!P$5, 'Full set Core Client Indicator'!$A$3:$AB$3, 0))), \"\")","v":""},{"$f":"IF(P193<>\"\", IF(INDEX('Full set Core Client Indicator'!$A$3:$AB$351, MATCH(Selection_Hide2!$A193, 'Full set Core Client Indicator'!$A$3:$A$351, 0), MATCH(Selection_Hide2!Q$5, 'Full set Core Client Indicator'!$A$3:$AB$3, 0))=\"\", \"\",  INDEX('Full set Core Client Indicator'!$A$3:$AB$351, MATCH(Selection_Hide2!$A193, 'Full set Core Client Indicator'!$A$3:$A$351, 0), MATCH(Selection_Hide2!Q$5, 'Full set Core Client Indicator'!$A$3:$AB$3, 0))), \"\")","v":""},{"$f":"IF(Q193<>\"\", IF(INDEX('Full set Core Client Indicator'!$A$3:$AB$351, MATCH(Selection_Hide2!$A193, 'Full set Core Client Indicator'!$A$3:$A$351, 0), MATCH(Selection_Hide2!R$5, 'Full set Core Client Indicator'!$A$3:$AB$3, 0))=\"\", \"\",  INDEX('Full set Core Client Indicator'!$A$3:$AB$351, MATCH(Selection_Hide2!$A193, 'Full set Core Client Indicator'!$A$3:$A$351, 0), MATCH(Selection_Hide2!R$5, 'Full set Core Client Indicator'!$A$3:$AB$3, 0))), \"\")","v":""},{"$f":"IF(R193<>\"\", IF(INDEX('Full set Core Client Indicator'!$A$3:$AB$351, MATCH(Selection_Hide2!$A193, 'Full set Core Client Indicator'!$A$3:$A$351, 0), MATCH(Selection_Hide2!S$5, 'Full set Core Client Indicator'!$A$3:$AB$3, 0))=\"\", \"\",  INDEX('Full set Core Client Indicator'!$A$3:$AB$351, MATCH(Selection_Hide2!$A193, 'Full set Core Client Indicator'!$A$3:$A$351, 0), MATCH(Selection_Hide2!S$5, 'Full set Core Client Indicator'!$A$3:$AB$3, 0))), \"\")","v":""},{"$f":"IF(S193<>\"\", IF(INDEX('Full set Core Client Indicator'!$A$3:$AB$351, MATCH(Selection_Hide2!$A193, 'Full set Core Client Indicator'!$A$3:$A$351, 0), MATCH(Selection_Hide2!T$5, 'Full set Core Client Indicator'!$A$3:$AB$3, 0))=\"\", \"\",  INDEX('Full set Core Client Indicator'!$A$3:$AB$351, MATCH(Selection_Hide2!$A193, 'Full set Core Client Indicator'!$A$3:$A$351, 0), MATCH(Selection_Hide2!T$5, 'Full set Core Client Indicator'!$A$3:$AB$3, 0))), \"\")","v":""},{"$f":"IF(T193<>\"\", IF(INDEX('Full set Core Client Indicator'!$A$3:$AB$351, MATCH(Selection_Hide2!$A193, 'Full set Core Client Indicator'!$A$3:$A$351, 0), MATCH(Selection_Hide2!U$5, 'Full set Core Client Indicator'!$A$3:$AB$3, 0))=\"\", \"\",  INDEX('Full set Core Client Indicator'!$A$3:$AB$351, MATCH(Selection_Hide2!$A193, 'Full set Core Client Indicator'!$A$3:$A$351, 0), MATCH(Selection_Hide2!U$5, 'Full set Core Client Indicator'!$A$3:$AB$3, 0))), \"\")","v":""},{"$f":"IF(U193<>\"\", IF(INDEX('Full set Core Client Indicator'!$A$3:$AB$351, MATCH(Selection_Hide2!$A193, 'Full set Core Client Indicator'!$A$3:$A$351, 0), MATCH(Selection_Hide2!V$5, 'Full set Core Client Indicator'!$A$3:$AB$3, 0))=\"\", \"\",  INDEX('Full set Core Client Indicator'!$A$3:$AB$351, MATCH(Selection_Hide2!$A193, 'Full set Core Client Indicator'!$A$3:$A$351, 0), MATCH(Selection_Hide2!V$5, 'Full set Core Client Indicator'!$A$3:$AB$3, 0))), \"\")","v":""},{"$f":"IF(V193<>\"\", IF(INDEX('Full set Core Client Indicator'!$A$3:$AB$351, MATCH(Selection_Hide2!$A193, 'Full set Core Client Indicator'!$A$3:$A$351, 0), MATCH(Selection_Hide2!W$5, 'Full set Core Client Indicator'!$A$3:$AB$3, 0))=\"\", \"\",  INDEX('Full set Core Client Indicator'!$A$3:$AB$351, MATCH(Selection_Hide2!$A193, 'Full set Core Client Indicator'!$A$3:$A$351, 0), MATCH(Selection_Hide2!W$5, 'Full set Core Client Indicator'!$A$3:$AB$3, 0))), \"\")","v":""},{"$f":"IF(W193<>\"\", IF(INDEX('Full set Core Client Indicator'!$A$3:$AB$351, MATCH(Selection_Hide2!$A193, 'Full set Core Client Indicator'!$A$3:$A$351, 0), MATCH(Selection_Hide2!X$5, 'Full set Core Client Indicator'!$A$3:$AB$3, 0))=\"\", \"\",  INDEX('Full set Core Client Indicator'!$A$3:$AB$351, MATCH(Selection_Hide2!$A193, 'Full set Core Client Indicator'!$A$3:$A$351, 0), MATCH(Selection_Hide2!X$5, 'Full set Core Client Indicator'!$A$3:$AB$3, 0))), \"\")","v":""},{"$f":"IF(X193<>\"\", IF(INDEX('Full set Core Client Indicator'!$A$3:$AB$351, MATCH(Selection_Hide2!$A193, 'Full set Core Client Indicator'!$A$3:$A$351, 0), MATCH(Selection_Hide2!Y$5, 'Full set Core Client Indicator'!$A$3:$AB$3, 0))=\"\", \"\",  INDEX('Full set Core Client Indicator'!$A$3:$AB$351, MATCH(Selection_Hide2!$A193, 'Full set Core Client Indicator'!$A$3:$A$351, 0), MATCH(Selection_Hide2!Y$5, 'Full set Core Client Indicator'!$A$3:$AB$3, 0))), \"\")","v":""},{"$f":"IF(Y193<>\"\", IF(INDEX('Full set Core Client Indicator'!$A$3:$AB$351, MATCH(Selection_Hide2!$A193, 'Full set Core Client Indicator'!$A$3:$A$351, 0), MATCH(Selection_Hide2!Z$5, 'Full set Core Client Indicator'!$A$3:$AB$3, 0))=\"\", \"\",  INDEX('Full set Core Client Indicator'!$A$3:$AB$351, MATCH(Selection_Hide2!$A193, 'Full set Core Client Indicator'!$A$3:$A$351, 0), MATCH(Selection_Hide2!Z$5, 'Full set Core Client Indicator'!$A$3:$AB$3, 0))), \"\")","v":""},{"$f":"IF(Z193<>\"\", IF(INDEX('Full set Core Client Indicator'!$A$3:$AB$351, MATCH(Selection_Hide2!$A193, 'Full set Core Client Indicator'!$A$3:$A$351, 0), MATCH(Selection_Hide2!AA$5, 'Full set Core Client Indicator'!$A$3:$AB$3, 0))=\"\", \"\",  INDEX('Full set Core Client Indicator'!$A$3:$AB$351, MATCH(Selection_Hide2!$A193, 'Full set Core Client Indicator'!$A$3:$A$351, 0), MATCH(Selection_Hide2!AA$5, 'Full set Core Client Indicator'!$A$3:$AB$3, 0))), \"\")","v":""},{"$f":"IF(AA193<>\"\", IF(INDEX('Full set Core Client Indicator'!$A$3:$AB$351, MATCH(Selection_Hide2!$A193, 'Full set Core Client Indicator'!$A$3:$A$351, 0), MATCH(Selection_Hide2!AB$5, 'Full set Core Client Indicator'!$A$3:$AB$3, 0))=\"\", \"\",  INDEX('Full set Core Client Indicator'!$A$3:$AB$351, MATCH(Selection_Hide2!$A193, 'Full set Core Client Indicator'!$A$3:$A$351, 0), MATCH(Selection_Hide2!AB$5, 'Full set Core Client Indicator'!$A$3:$AB$3, 0))), \"\")","v":""}]
[{"$f":"IF(AND(Selection_Hide1!C192<>0, Selection_Hide1!C192<>\"Grand Total\"), Selection_Hide1!C192, \"\")","v":""},{"$f":"IF(A194<>\"\", IF(INDEX('Full set Core Client Indicator'!$A$3:$AB$351, MATCH(Selection_Hide2!$A194, 'Full set Core Client Indicator'!$A$3:$A$351, 0), MATCH(Selection_Hide2!B$5, 'Full set Core Client Indicator'!$A$3:$AB$3, 0))=\"\", \"\",  INDEX('Full set Core Client Indicator'!$A$3:$AB$351, MATCH(Selection_Hide2!$A194, 'Full set Core Client Indicator'!$A$3:$A$351, 0), MATCH(Selection_Hide2!B$5, 'Full set Core Client Indicator'!$A$3:$AB$3, 0))), \"\")","v":""},{"$f":"IF(B194<>\"\", IF(INDEX('Full set Core Client Indicator'!$A$3:$AB$351, MATCH(Selection_Hide2!$A194, 'Full set Core Client Indicator'!$A$3:$A$351, 0), MATCH(Selection_Hide2!C$5, 'Full set Core Client Indicator'!$A$3:$AB$3, 0))=\"\", \"\",  INDEX('Full set Core Client Indicator'!$A$3:$AB$351, MATCH(Selection_Hide2!$A194, 'Full set Core Client Indicator'!$A$3:$A$351, 0), MATCH(Selection_Hide2!C$5, 'Full set Core Client Indicator'!$A$3:$AB$3, 0))), \"\")","v":""},{"$f":"IF(C194<>\"\", IF(INDEX('Full set Core Client Indicator'!$A$3:$AB$351, MATCH(Selection_Hide2!$A194, 'Full set Core Client Indicator'!$A$3:$A$351, 0), MATCH(Selection_Hide2!D$5, 'Full set Core Client Indicator'!$A$3:$AB$3, 0))=\"\", \"\",  INDEX('Full set Core Client Indicator'!$A$3:$AB$351, MATCH(Selection_Hide2!$A194, 'Full set Core Client Indicator'!$A$3:$A$351, 0), MATCH(Selection_Hide2!D$5, 'Full set Core Client Indicator'!$A$3:$AB$3, 0))), \"\")","v":""},{"$f":"IF(D194<>\"\", IF(INDEX('Full set Core Client Indicator'!$A$3:$AB$351, MATCH(Selection_Hide2!$A194, 'Full set Core Client Indicator'!$A$3:$A$351, 0), MATCH(Selection_Hide2!E$5, 'Full set Core Client Indicator'!$A$3:$AB$3, 0))=\"\", \"\",  INDEX('Full set Core Client Indicator'!$A$3:$AB$351, MATCH(Selection_Hide2!$A194, 'Full set Core Client Indicator'!$A$3:$A$351, 0), MATCH(Selection_Hide2!E$5, 'Full set Core Client Indicator'!$A$3:$AB$3, 0))), \"\")","v":""},{"$f":"IF(E194<>\"\", IF(INDEX('Full set Core Client Indicator'!$A$3:$AB$351, MATCH(Selection_Hide2!$A194, 'Full set Core Client Indicator'!$A$3:$A$351, 0), MATCH(Selection_Hide2!F$5, 'Full set Core Client Indicator'!$A$3:$AB$3, 0))=\"\", \"\",  INDEX('Full set Core Client Indicator'!$A$3:$AB$351, MATCH(Selection_Hide2!$A194, 'Full set Core Client Indicator'!$A$3:$A$351, 0), MATCH(Selection_Hide2!F$5, 'Full set Core Client Indicator'!$A$3:$AB$3, 0))), \"\")","v":""},{"$f":"IF(F194<>\"\", IF(INDEX('Full set Core Client Indicator'!$A$3:$AB$351, MATCH(Selection_Hide2!$A194, 'Full set Core Client Indicator'!$A$3:$A$351, 0), MATCH(Selection_Hide2!G$5, 'Full set Core Client Indicator'!$A$3:$AB$3, 0))=\"\", \"\",  INDEX('Full set Core Client Indicator'!$A$3:$AB$351, MATCH(Selection_Hide2!$A194, 'Full set Core Client Indicator'!$A$3:$A$351, 0), MATCH(Selection_Hide2!G$5, 'Full set Core Client Indicator'!$A$3:$AB$3, 0))), \"\")","v":""},{"$f":"IF(G194<>\"\", IF(INDEX('Full set Core Client Indicator'!$A$3:$AB$351, MATCH(Selection_Hide2!$A194, 'Full set Core Client Indicator'!$A$3:$A$351, 0), MATCH(Selection_Hide2!H$5, 'Full set Core Client Indicator'!$A$3:$AB$3, 0))=\"\", \"\",  INDEX('Full set Core Client Indicator'!$A$3:$AB$351, MATCH(Selection_Hide2!$A194, 'Full set Core Client Indicator'!$A$3:$A$351, 0), MATCH(Selection_Hide2!H$5, 'Full set Core Client Indicator'!$A$3:$AB$3, 0))), \"\")","v":""},{"$f":"IF(H194<>\"\", IF(INDEX('Full set Core Client Indicator'!$A$3:$AB$351, MATCH(Selection_Hide2!$A194, 'Full set Core Client Indicator'!$A$3:$A$351, 0), MATCH(Selection_Hide2!I$5, 'Full set Core Client Indicator'!$A$3:$AB$3, 0))=\"\", \"\",  INDEX('Full set Core Client Indicator'!$A$3:$AB$351, MATCH(Selection_Hide2!$A194, 'Full set Core Client Indicator'!$A$3:$A$351, 0), MATCH(Selection_Hide2!I$5, 'Full set Core Client Indicator'!$A$3:$AB$3, 0))), \"\")","v":""},{"$f":"IF(I194<>\"\", IF(INDEX('Full set Core Client Indicator'!$A$3:$AB$351, MATCH(Selection_Hide2!$A194, 'Full set Core Client Indicator'!$A$3:$A$351, 0), MATCH(Selection_Hide2!J$5, 'Full set Core Client Indicator'!$A$3:$AB$3, 0))=\"\", \"\",  INDEX('Full set Core Client Indicator'!$A$3:$AB$351, MATCH(Selection_Hide2!$A194, 'Full set Core Client Indicator'!$A$3:$A$351, 0), MATCH(Selection_Hide2!J$5, 'Full set Core Client Indicator'!$A$3:$AB$3, 0))), \"\")","v":""},{"$f":"IF(J194<>\"\", IF(INDEX('Full set Core Client Indicator'!$A$3:$AB$351, MATCH(Selection_Hide2!$A194, 'Full set Core Client Indicator'!$A$3:$A$351, 0), MATCH(Selection_Hide2!K$5, 'Full set Core Client Indicator'!$A$3:$AB$3, 0))=\"\", \"\",  INDEX('Full set Core Client Indicator'!$A$3:$AB$351, MATCH(Selection_Hide2!$A194, 'Full set Core Client Indicator'!$A$3:$A$351, 0), MATCH(Selection_Hide2!K$5, 'Full set Core Client Indicator'!$A$3:$AB$3, 0))), \"\")","v":""},{"$f":"IF(K194<>\"\", IF(INDEX('Full set Core Client Indicator'!$A$3:$AB$351, MATCH(Selection_Hide2!$A194, 'Full set Core Client Indicator'!$A$3:$A$351, 0), MATCH(Selection_Hide2!L$5, 'Full set Core Client Indicator'!$A$3:$AB$3, 0))=\"\", \"\",  INDEX('Full set Core Client Indicator'!$A$3:$AB$351, MATCH(Selection_Hide2!$A194, 'Full set Core Client Indicator'!$A$3:$A$351, 0), MATCH(Selection_Hide2!L$5, 'Full set Core Client Indicator'!$A$3:$AB$3, 0))), \"\")","v":""},{"$f":"IF(L194<>\"\", IF(INDEX('Full set Core Client Indicator'!$A$3:$AB$351, MATCH(Selection_Hide2!$A194, 'Full set Core Client Indicator'!$A$3:$A$351, 0), MATCH(Selection_Hide2!M$5, 'Full set Core Client Indicator'!$A$3:$AB$3, 0))=\"\", \"\",  INDEX('Full set Core Client Indicator'!$A$3:$AB$351, MATCH(Selection_Hide2!$A194, 'Full set Core Client Indicator'!$A$3:$A$351, 0), MATCH(Selection_Hide2!M$5, 'Full set Core Client Indicator'!$A$3:$AB$3, 0))), \"\")","v":""},{"$f":"IF(M194<>\"\", IF(INDEX('Full set Core Client Indicator'!$A$3:$AB$351, MATCH(Selection_Hide2!$A194, 'Full set Core Client Indicator'!$A$3:$A$351, 0), MATCH(Selection_Hide2!N$5, 'Full set Core Client Indicator'!$A$3:$AB$3, 0))=\"\", \"\",  INDEX('Full set Core Client Indicator'!$A$3:$AB$351, MATCH(Selection_Hide2!$A194, 'Full set Core Client Indicator'!$A$3:$A$351, 0), MATCH(Selection_Hide2!N$5, 'Full set Core Client Indicator'!$A$3:$AB$3, 0))), \"\")","v":""},{"$f":"IF(N194<>\"\", IF(INDEX('Full set Core Client Indicator'!$A$3:$AB$351, MATCH(Selection_Hide2!$A194, 'Full set Core Client Indicator'!$A$3:$A$351, 0), MATCH(Selection_Hide2!O$5, 'Full set Core Client Indicator'!$A$3:$AB$3, 0))=\"\", \"\",  INDEX('Full set Core Client Indicator'!$A$3:$AB$351, MATCH(Selection_Hide2!$A194, 'Full set Core Client Indicator'!$A$3:$A$351, 0), MATCH(Selection_Hide2!O$5, 'Full set Core Client Indicator'!$A$3:$AB$3, 0))), \"\")","v":""},{"$f":"IF(O194<>\"\", IF(INDEX('Full set Core Client Indicator'!$A$3:$AB$351, MATCH(Selection_Hide2!$A194, 'Full set Core Client Indicator'!$A$3:$A$351, 0), MATCH(Selection_Hide2!P$5, 'Full set Core Client Indicator'!$A$3:$AB$3, 0))=\"\", \"\",  INDEX('Full set Core Client Indicator'!$A$3:$AB$351, MATCH(Selection_Hide2!$A194, 'Full set Core Client Indicator'!$A$3:$A$351, 0), MATCH(Selection_Hide2!P$5, 'Full set Core Client Indicator'!$A$3:$AB$3, 0))), \"\")","v":""},{"$f":"IF(P194<>\"\", IF(INDEX('Full set Core Client Indicator'!$A$3:$AB$351, MATCH(Selection_Hide2!$A194, 'Full set Core Client Indicator'!$A$3:$A$351, 0), MATCH(Selection_Hide2!Q$5, 'Full set Core Client Indicator'!$A$3:$AB$3, 0))=\"\", \"\",  INDEX('Full set Core Client Indicator'!$A$3:$AB$351, MATCH(Selection_Hide2!$A194, 'Full set Core Client Indicator'!$A$3:$A$351, 0), MATCH(Selection_Hide2!Q$5, 'Full set Core Client Indicator'!$A$3:$AB$3, 0))), \"\")","v":""},{"$f":"IF(Q194<>\"\", IF(INDEX('Full set Core Client Indicator'!$A$3:$AB$351, MATCH(Selection_Hide2!$A194, 'Full set Core Client Indicator'!$A$3:$A$351, 0), MATCH(Selection_Hide2!R$5, 'Full set Core Client Indicator'!$A$3:$AB$3, 0))=\"\", \"\",  INDEX('Full set Core Client Indicator'!$A$3:$AB$351, MATCH(Selection_Hide2!$A194, 'Full set Core Client Indicator'!$A$3:$A$351, 0), MATCH(Selection_Hide2!R$5, 'Full set Core Client Indicator'!$A$3:$AB$3, 0))), \"\")","v":""},{"$f":"IF(R194<>\"\", IF(INDEX('Full set Core Client Indicator'!$A$3:$AB$351, MATCH(Selection_Hide2!$A194, 'Full set Core Client Indicator'!$A$3:$A$351, 0), MATCH(Selection_Hide2!S$5, 'Full set Core Client Indicator'!$A$3:$AB$3, 0))=\"\", \"\",  INDEX('Full set Core Client Indicator'!$A$3:$AB$351, MATCH(Selection_Hide2!$A194, 'Full set Core Client Indicator'!$A$3:$A$351, 0), MATCH(Selection_Hide2!S$5, 'Full set Core Client Indicator'!$A$3:$AB$3, 0))), \"\")","v":""},{"$f":"IF(S194<>\"\", IF(INDEX('Full set Core Client Indicator'!$A$3:$AB$351, MATCH(Selection_Hide2!$A194, 'Full set Core Client Indicator'!$A$3:$A$351, 0), MATCH(Selection_Hide2!T$5, 'Full set Core Client Indicator'!$A$3:$AB$3, 0))=\"\", \"\",  INDEX('Full set Core Client Indicator'!$A$3:$AB$351, MATCH(Selection_Hide2!$A194, 'Full set Core Client Indicator'!$A$3:$A$351, 0), MATCH(Selection_Hide2!T$5, 'Full set Core Client Indicator'!$A$3:$AB$3, 0))), \"\")","v":""},{"$f":"IF(T194<>\"\", IF(INDEX('Full set Core Client Indicator'!$A$3:$AB$351, MATCH(Selection_Hide2!$A194, 'Full set Core Client Indicator'!$A$3:$A$351, 0), MATCH(Selection_Hide2!U$5, 'Full set Core Client Indicator'!$A$3:$AB$3, 0))=\"\", \"\",  INDEX('Full set Core Client Indicator'!$A$3:$AB$351, MATCH(Selection_Hide2!$A194, 'Full set Core Client Indicator'!$A$3:$A$351, 0), MATCH(Selection_Hide2!U$5, 'Full set Core Client Indicator'!$A$3:$AB$3, 0))), \"\")","v":""},{"$f":"IF(U194<>\"\", IF(INDEX('Full set Core Client Indicator'!$A$3:$AB$351, MATCH(Selection_Hide2!$A194, 'Full set Core Client Indicator'!$A$3:$A$351, 0), MATCH(Selection_Hide2!V$5, 'Full set Core Client Indicator'!$A$3:$AB$3, 0))=\"\", \"\",  INDEX('Full set Core Client Indicator'!$A$3:$AB$351, MATCH(Selection_Hide2!$A194, 'Full set Core Client Indicator'!$A$3:$A$351, 0), MATCH(Selection_Hide2!V$5, 'Full set Core Client Indicator'!$A$3:$AB$3, 0))), \"\")","v":""},{"$f":"IF(V194<>\"\", IF(INDEX('Full set Core Client Indicator'!$A$3:$AB$351, MATCH(Selection_Hide2!$A194, 'Full set Core Client Indicator'!$A$3:$A$351, 0), MATCH(Selection_Hide2!W$5, 'Full set Core Client Indicator'!$A$3:$AB$3, 0))=\"\", \"\",  INDEX('Full set Core Client Indicator'!$A$3:$AB$351, MATCH(Selection_Hide2!$A194, 'Full set Core Client Indicator'!$A$3:$A$351, 0), MATCH(Selection_Hide2!W$5, 'Full set Core Client Indicator'!$A$3:$AB$3, 0))), \"\")","v":""},{"$f":"IF(W194<>\"\", IF(INDEX('Full set Core Client Indicator'!$A$3:$AB$351, MATCH(Selection_Hide2!$A194, 'Full set Core Client Indicator'!$A$3:$A$351, 0), MATCH(Selection_Hide2!X$5, 'Full set Core Client Indicator'!$A$3:$AB$3, 0))=\"\", \"\",  INDEX('Full set Core Client Indicator'!$A$3:$AB$351, MATCH(Selection_Hide2!$A194, 'Full set Core Client Indicator'!$A$3:$A$351, 0), MATCH(Selection_Hide2!X$5, 'Full set Core Client Indicator'!$A$3:$AB$3, 0))), \"\")","v":""},{"$f":"IF(X194<>\"\", IF(INDEX('Full set Core Client Indicator'!$A$3:$AB$351, MATCH(Selection_Hide2!$A194, 'Full set Core Client Indicator'!$A$3:$A$351, 0), MATCH(Selection_Hide2!Y$5, 'Full set Core Client Indicator'!$A$3:$AB$3, 0))=\"\", \"\",  INDEX('Full set Core Client Indicator'!$A$3:$AB$351, MATCH(Selection_Hide2!$A194, 'Full set Core Client Indicator'!$A$3:$A$351, 0), MATCH(Selection_Hide2!Y$5, 'Full set Core Client Indicator'!$A$3:$AB$3, 0))), \"\")","v":""},{"$f":"IF(Y194<>\"\", IF(INDEX('Full set Core Client Indicator'!$A$3:$AB$351, MATCH(Selection_Hide2!$A194, 'Full set Core Client Indicator'!$A$3:$A$351, 0), MATCH(Selection_Hide2!Z$5, 'Full set Core Client Indicator'!$A$3:$AB$3, 0))=\"\", \"\",  INDEX('Full set Core Client Indicator'!$A$3:$AB$351, MATCH(Selection_Hide2!$A194, 'Full set Core Client Indicator'!$A$3:$A$351, 0), MATCH(Selection_Hide2!Z$5, 'Full set Core Client Indicator'!$A$3:$AB$3, 0))), \"\")","v":""},{"$f":"IF(Z194<>\"\", IF(INDEX('Full set Core Client Indicator'!$A$3:$AB$351, MATCH(Selection_Hide2!$A194, 'Full set Core Client Indicator'!$A$3:$A$351, 0), MATCH(Selection_Hide2!AA$5, 'Full set Core Client Indicator'!$A$3:$AB$3, 0))=\"\", \"\",  INDEX('Full set Core Client Indicator'!$A$3:$AB$351, MATCH(Selection_Hide2!$A194, 'Full set Core Client Indicator'!$A$3:$A$351, 0), MATCH(Selection_Hide2!AA$5, 'Full set Core Client Indicator'!$A$3:$AB$3, 0))), \"\")","v":""},{"$f":"IF(AA194<>\"\", IF(INDEX('Full set Core Client Indicator'!$A$3:$AB$351, MATCH(Selection_Hide2!$A194, 'Full set Core Client Indicator'!$A$3:$A$351, 0), MATCH(Selection_Hide2!AB$5, 'Full set Core Client Indicator'!$A$3:$AB$3, 0))=\"\", \"\",  INDEX('Full set Core Client Indicator'!$A$3:$AB$351, MATCH(Selection_Hide2!$A194, 'Full set Core Client Indicator'!$A$3:$A$351, 0), MATCH(Selection_Hide2!AB$5, 'Full set Core Client Indicator'!$A$3:$AB$3, 0))), \"\")","v":""}]
[{"$f":"IF(AND(Selection_Hide1!C193<>0, Selection_Hide1!C193<>\"Grand Total\"), Selection_Hide1!C193, \"\")","v":""},{"$f":"IF(A195<>\"\", IF(INDEX('Full set Core Client Indicator'!$A$3:$AB$351, MATCH(Selection_Hide2!$A195, 'Full set Core Client Indicator'!$A$3:$A$351, 0), MATCH(Selection_Hide2!B$5, 'Full set Core Client Indicator'!$A$3:$AB$3, 0))=\"\", \"\",  INDEX('Full set Core Client Indicator'!$A$3:$AB$351, MATCH(Selection_Hide2!$A195, 'Full set Core Client Indicator'!$A$3:$A$351, 0), MATCH(Selection_Hide2!B$5, 'Full set Core Client Indicator'!$A$3:$AB$3, 0))), \"\")","v":""},{"$f":"IF(B195<>\"\", IF(INDEX('Full set Core Client Indicator'!$A$3:$AB$351, MATCH(Selection_Hide2!$A195, 'Full set Core Client Indicator'!$A$3:$A$351, 0), MATCH(Selection_Hide2!C$5, 'Full set Core Client Indicator'!$A$3:$AB$3, 0))=\"\", \"\",  INDEX('Full set Core Client Indicator'!$A$3:$AB$351, MATCH(Selection_Hide2!$A195, 'Full set Core Client Indicator'!$A$3:$A$351, 0), MATCH(Selection_Hide2!C$5, 'Full set Core Client Indicator'!$A$3:$AB$3, 0))), \"\")","v":""},{"$f":"IF(C195<>\"\", IF(INDEX('Full set Core Client Indicator'!$A$3:$AB$351, MATCH(Selection_Hide2!$A195, 'Full set Core Client Indicator'!$A$3:$A$351, 0), MATCH(Selection_Hide2!D$5, 'Full set Core Client Indicator'!$A$3:$AB$3, 0))=\"\", \"\",  INDEX('Full set Core Client Indicator'!$A$3:$AB$351, MATCH(Selection_Hide2!$A195, 'Full set Core Client Indicator'!$A$3:$A$351, 0), MATCH(Selection_Hide2!D$5, 'Full set Core Client Indicator'!$A$3:$AB$3, 0))), \"\")","v":""},{"$f":"IF(D195<>\"\", IF(INDEX('Full set Core Client Indicator'!$A$3:$AB$351, MATCH(Selection_Hide2!$A195, 'Full set Core Client Indicator'!$A$3:$A$351, 0), MATCH(Selection_Hide2!E$5, 'Full set Core Client Indicator'!$A$3:$AB$3, 0))=\"\", \"\",  INDEX('Full set Core Client Indicator'!$A$3:$AB$351, MATCH(Selection_Hide2!$A195, 'Full set Core Client Indicator'!$A$3:$A$351, 0), MATCH(Selection_Hide2!E$5, 'Full set Core Client Indicator'!$A$3:$AB$3, 0))), \"\")","v":""},{"$f":"IF(E195<>\"\", IF(INDEX('Full set Core Client Indicator'!$A$3:$AB$351, MATCH(Selection_Hide2!$A195, 'Full set Core Client Indicator'!$A$3:$A$351, 0), MATCH(Selection_Hide2!F$5, 'Full set Core Client Indicator'!$A$3:$AB$3, 0))=\"\", \"\",  INDEX('Full set Core Client Indicator'!$A$3:$AB$351, MATCH(Selection_Hide2!$A195, 'Full set Core Client Indicator'!$A$3:$A$351, 0), MATCH(Selection_Hide2!F$5, 'Full set Core Client Indicator'!$A$3:$AB$3, 0))), \"\")","v":""},{"$f":"IF(F195<>\"\", IF(INDEX('Full set Core Client Indicator'!$A$3:$AB$351, MATCH(Selection_Hide2!$A195, 'Full set Core Client Indicator'!$A$3:$A$351, 0), MATCH(Selection_Hide2!G$5, 'Full set Core Client Indicator'!$A$3:$AB$3, 0))=\"\", \"\",  INDEX('Full set Core Client Indicator'!$A$3:$AB$351, MATCH(Selection_Hide2!$A195, 'Full set Core Client Indicator'!$A$3:$A$351, 0), MATCH(Selection_Hide2!G$5, 'Full set Core Client Indicator'!$A$3:$AB$3, 0))), \"\")","v":""},{"$f":"IF(G195<>\"\", IF(INDEX('Full set Core Client Indicator'!$A$3:$AB$351, MATCH(Selection_Hide2!$A195, 'Full set Core Client Indicator'!$A$3:$A$351, 0), MATCH(Selection_Hide2!H$5, 'Full set Core Client Indicator'!$A$3:$AB$3, 0))=\"\", \"\",  INDEX('Full set Core Client Indicator'!$A$3:$AB$351, MATCH(Selection_Hide2!$A195, 'Full set Core Client Indicator'!$A$3:$A$351, 0), MATCH(Selection_Hide2!H$5, 'Full set Core Client Indicator'!$A$3:$AB$3, 0))), \"\")","v":""},{"$f":"IF(H195<>\"\", IF(INDEX('Full set Core Client Indicator'!$A$3:$AB$351, MATCH(Selection_Hide2!$A195, 'Full set Core Client Indicator'!$A$3:$A$351, 0), MATCH(Selection_Hide2!I$5, 'Full set Core Client Indicator'!$A$3:$AB$3, 0))=\"\", \"\",  INDEX('Full set Core Client Indicator'!$A$3:$AB$351, MATCH(Selection_Hide2!$A195, 'Full set Core Client Indicator'!$A$3:$A$351, 0), MATCH(Selection_Hide2!I$5, 'Full set Core Client Indicator'!$A$3:$AB$3, 0))), \"\")","v":""},{"$f":"IF(I195<>\"\", IF(INDEX('Full set Core Client Indicator'!$A$3:$AB$351, MATCH(Selection_Hide2!$A195, 'Full set Core Client Indicator'!$A$3:$A$351, 0), MATCH(Selection_Hide2!J$5, 'Full set Core Client Indicator'!$A$3:$AB$3, 0))=\"\", \"\",  INDEX('Full set Core Client Indicator'!$A$3:$AB$351, MATCH(Selection_Hide2!$A195, 'Full set Core Client Indicator'!$A$3:$A$351, 0), MATCH(Selection_Hide2!J$5, 'Full set Core Client Indicator'!$A$3:$AB$3, 0))), \"\")","v":""},{"$f":"IF(J195<>\"\", IF(INDEX('Full set Core Client Indicator'!$A$3:$AB$351, MATCH(Selection_Hide2!$A195, 'Full set Core Client Indicator'!$A$3:$A$351, 0), MATCH(Selection_Hide2!K$5, 'Full set Core Client Indicator'!$A$3:$AB$3, 0))=\"\", \"\",  INDEX('Full set Core Client Indicator'!$A$3:$AB$351, MATCH(Selection_Hide2!$A195, 'Full set Core Client Indicator'!$A$3:$A$351, 0), MATCH(Selection_Hide2!K$5, 'Full set Core Client Indicator'!$A$3:$AB$3, 0))), \"\")","v":""},{"$f":"IF(K195<>\"\", IF(INDEX('Full set Core Client Indicator'!$A$3:$AB$351, MATCH(Selection_Hide2!$A195, 'Full set Core Client Indicator'!$A$3:$A$351, 0), MATCH(Selection_Hide2!L$5, 'Full set Core Client Indicator'!$A$3:$AB$3, 0))=\"\", \"\",  INDEX('Full set Core Client Indicator'!$A$3:$AB$351, MATCH(Selection_Hide2!$A195, 'Full set Core Client Indicator'!$A$3:$A$351, 0), MATCH(Selection_Hide2!L$5, 'Full set Core Client Indicator'!$A$3:$AB$3, 0))), \"\")","v":""},{"$f":"IF(L195<>\"\", IF(INDEX('Full set Core Client Indicator'!$A$3:$AB$351, MATCH(Selection_Hide2!$A195, 'Full set Core Client Indicator'!$A$3:$A$351, 0), MATCH(Selection_Hide2!M$5, 'Full set Core Client Indicator'!$A$3:$AB$3, 0))=\"\", \"\",  INDEX('Full set Core Client Indicator'!$A$3:$AB$351, MATCH(Selection_Hide2!$A195, 'Full set Core Client Indicator'!$A$3:$A$351, 0), MATCH(Selection_Hide2!M$5, 'Full set Core Client Indicator'!$A$3:$AB$3, 0))), \"\")","v":""},{"$f":"IF(M195<>\"\", IF(INDEX('Full set Core Client Indicator'!$A$3:$AB$351, MATCH(Selection_Hide2!$A195, 'Full set Core Client Indicator'!$A$3:$A$351, 0), MATCH(Selection_Hide2!N$5, 'Full set Core Client Indicator'!$A$3:$AB$3, 0))=\"\", \"\",  INDEX('Full set Core Client Indicator'!$A$3:$AB$351, MATCH(Selection_Hide2!$A195, 'Full set Core Client Indicator'!$A$3:$A$351, 0), MATCH(Selection_Hide2!N$5, 'Full set Core Client Indicator'!$A$3:$AB$3, 0))), \"\")","v":""},{"$f":"IF(N195<>\"\", IF(INDEX('Full set Core Client Indicator'!$A$3:$AB$351, MATCH(Selection_Hide2!$A195, 'Full set Core Client Indicator'!$A$3:$A$351, 0), MATCH(Selection_Hide2!O$5, 'Full set Core Client Indicator'!$A$3:$AB$3, 0))=\"\", \"\",  INDEX('Full set Core Client Indicator'!$A$3:$AB$351, MATCH(Selection_Hide2!$A195, 'Full set Core Client Indicator'!$A$3:$A$351, 0), MATCH(Selection_Hide2!O$5, 'Full set Core Client Indicator'!$A$3:$AB$3, 0))), \"\")","v":""},{"$f":"IF(O195<>\"\", IF(INDEX('Full set Core Client Indicator'!$A$3:$AB$351, MATCH(Selection_Hide2!$A195, 'Full set Core Client Indicator'!$A$3:$A$351, 0), MATCH(Selection_Hide2!P$5, 'Full set Core Client Indicator'!$A$3:$AB$3, 0))=\"\", \"\",  INDEX('Full set Core Client Indicator'!$A$3:$AB$351, MATCH(Selection_Hide2!$A195, 'Full set Core Client Indicator'!$A$3:$A$351, 0), MATCH(Selection_Hide2!P$5, 'Full set Core Client Indicator'!$A$3:$AB$3, 0))), \"\")","v":""},{"$f":"IF(P195<>\"\", IF(INDEX('Full set Core Client Indicator'!$A$3:$AB$351, MATCH(Selection_Hide2!$A195, 'Full set Core Client Indicator'!$A$3:$A$351, 0), MATCH(Selection_Hide2!Q$5, 'Full set Core Client Indicator'!$A$3:$AB$3, 0))=\"\", \"\",  INDEX('Full set Core Client Indicator'!$A$3:$AB$351, MATCH(Selection_Hide2!$A195, 'Full set Core Client Indicator'!$A$3:$A$351, 0), MATCH(Selection_Hide2!Q$5, 'Full set Core Client Indicator'!$A$3:$AB$3, 0))), \"\")","v":""},{"$f":"IF(Q195<>\"\", IF(INDEX('Full set Core Client Indicator'!$A$3:$AB$351, MATCH(Selection_Hide2!$A195, 'Full set Core Client Indicator'!$A$3:$A$351, 0), MATCH(Selection_Hide2!R$5, 'Full set Core Client Indicator'!$A$3:$AB$3, 0))=\"\", \"\",  INDEX('Full set Core Client Indicator'!$A$3:$AB$351, MATCH(Selection_Hide2!$A195, 'Full set Core Client Indicator'!$A$3:$A$351, 0), MATCH(Selection_Hide2!R$5, 'Full set Core Client Indicator'!$A$3:$AB$3, 0))), \"\")","v":""},{"$f":"IF(R195<>\"\", IF(INDEX('Full set Core Client Indicator'!$A$3:$AB$351, MATCH(Selection_Hide2!$A195, 'Full set Core Client Indicator'!$A$3:$A$351, 0), MATCH(Selection_Hide2!S$5, 'Full set Core Client Indicator'!$A$3:$AB$3, 0))=\"\", \"\",  INDEX('Full set Core Client Indicator'!$A$3:$AB$351, MATCH(Selection_Hide2!$A195, 'Full set Core Client Indicator'!$A$3:$A$351, 0), MATCH(Selection_Hide2!S$5, 'Full set Core Client Indicator'!$A$3:$AB$3, 0))), \"\")","v":""},{"$f":"IF(S195<>\"\", IF(INDEX('Full set Core Client Indicator'!$A$3:$AB$351, MATCH(Selection_Hide2!$A195, 'Full set Core Client Indicator'!$A$3:$A$351, 0), MATCH(Selection_Hide2!T$5, 'Full set Core Client Indicator'!$A$3:$AB$3, 0))=\"\", \"\",  INDEX('Full set Core Client Indicator'!$A$3:$AB$351, MATCH(Selection_Hide2!$A195, 'Full set Core Client Indicator'!$A$3:$A$351, 0), MATCH(Selection_Hide2!T$5, 'Full set Core Client Indicator'!$A$3:$AB$3, 0))), \"\")","v":""},{"$f":"IF(T195<>\"\", IF(INDEX('Full set Core Client Indicator'!$A$3:$AB$351, MATCH(Selection_Hide2!$A195, 'Full set Core Client Indicator'!$A$3:$A$351, 0), MATCH(Selection_Hide2!U$5, 'Full set Core Client Indicator'!$A$3:$AB$3, 0))=\"\", \"\",  INDEX('Full set Core Client Indicator'!$A$3:$AB$351, MATCH(Selection_Hide2!$A195, 'Full set Core Client Indicator'!$A$3:$A$351, 0), MATCH(Selection_Hide2!U$5, 'Full set Core Client Indicator'!$A$3:$AB$3, 0))), \"\")","v":""},{"$f":"IF(U195<>\"\", IF(INDEX('Full set Core Client Indicator'!$A$3:$AB$351, MATCH(Selection_Hide2!$A195, 'Full set Core Client Indicator'!$A$3:$A$351, 0), MATCH(Selection_Hide2!V$5, 'Full set Core Client Indicator'!$A$3:$AB$3, 0))=\"\", \"\",  INDEX('Full set Core Client Indicator'!$A$3:$AB$351, MATCH(Selection_Hide2!$A195, 'Full set Core Client Indicator'!$A$3:$A$351, 0), MATCH(Selection_Hide2!V$5, 'Full set Core Client Indicator'!$A$3:$AB$3, 0))), \"\")","v":""},{"$f":"IF(V195<>\"\", IF(INDEX('Full set Core Client Indicator'!$A$3:$AB$351, MATCH(Selection_Hide2!$A195, 'Full set Core Client Indicator'!$A$3:$A$351, 0), MATCH(Selection_Hide2!W$5, 'Full set Core Client Indicator'!$A$3:$AB$3, 0))=\"\", \"\",  INDEX('Full set Core Client Indicator'!$A$3:$AB$351, MATCH(Selection_Hide2!$A195, 'Full set Core Client Indicator'!$A$3:$A$351, 0), MATCH(Selection_Hide2!W$5, 'Full set Core Client Indicator'!$A$3:$AB$3, 0))), \"\")","v":""},{"$f":"IF(W195<>\"\", IF(INDEX('Full set Core Client Indicator'!$A$3:$AB$351, MATCH(Selection_Hide2!$A195, 'Full set Core Client Indicator'!$A$3:$A$351, 0), MATCH(Selection_Hide2!X$5, 'Full set Core Client Indicator'!$A$3:$AB$3, 0))=\"\", \"\",  INDEX('Full set Core Client Indicator'!$A$3:$AB$351, MATCH(Selection_Hide2!$A195, 'Full set Core Client Indicator'!$A$3:$A$351, 0), MATCH(Selection_Hide2!X$5, 'Full set Core Client Indicator'!$A$3:$AB$3, 0))), \"\")","v":""},{"$f":"IF(X195<>\"\", IF(INDEX('Full set Core Client Indicator'!$A$3:$AB$351, MATCH(Selection_Hide2!$A195, 'Full set Core Client Indicator'!$A$3:$A$351, 0), MATCH(Selection_Hide2!Y$5, 'Full set Core Client Indicator'!$A$3:$AB$3, 0))=\"\", \"\",  INDEX('Full set Core Client Indicator'!$A$3:$AB$351, MATCH(Selection_Hide2!$A195, 'Full set Core Client Indicator'!$A$3:$A$351, 0), MATCH(Selection_Hide2!Y$5, 'Full set Core Client Indicator'!$A$3:$AB$3, 0))), \"\")","v":""},{"$f":"IF(Y195<>\"\", IF(INDEX('Full set Core Client Indicator'!$A$3:$AB$351, MATCH(Selection_Hide2!$A195, 'Full set Core Client Indicator'!$A$3:$A$351, 0), MATCH(Selection_Hide2!Z$5, 'Full set Core Client Indicator'!$A$3:$AB$3, 0))=\"\", \"\",  INDEX('Full set Core Client Indicator'!$A$3:$AB$351, MATCH(Selection_Hide2!$A195, 'Full set Core Client Indicator'!$A$3:$A$351, 0), MATCH(Selection_Hide2!Z$5, 'Full set Core Client Indicator'!$A$3:$AB$3, 0))), \"\")","v":""},{"$f":"IF(Z195<>\"\", IF(INDEX('Full set Core Client Indicator'!$A$3:$AB$351, MATCH(Selection_Hide2!$A195, 'Full set Core Client Indicator'!$A$3:$A$351, 0), MATCH(Selection_Hide2!AA$5, 'Full set Core Client Indicator'!$A$3:$AB$3, 0))=\"\", \"\",  INDEX('Full set Core Client Indicator'!$A$3:$AB$351, MATCH(Selection_Hide2!$A195, 'Full set Core Client Indicator'!$A$3:$A$351, 0), MATCH(Selection_Hide2!AA$5, 'Full set Core Client Indicator'!$A$3:$AB$3, 0))), \"\")","v":""},{"$f":"IF(AA195<>\"\", IF(INDEX('Full set Core Client Indicator'!$A$3:$AB$351, MATCH(Selection_Hide2!$A195, 'Full set Core Client Indicator'!$A$3:$A$351, 0), MATCH(Selection_Hide2!AB$5, 'Full set Core Client Indicator'!$A$3:$AB$3, 0))=\"\", \"\",  INDEX('Full set Core Client Indicator'!$A$3:$AB$351, MATCH(Selection_Hide2!$A195, 'Full set Core Client Indicator'!$A$3:$A$351, 0), MATCH(Selection_Hide2!AB$5, 'Full set Core Client Indicator'!$A$3:$AB$3, 0))), \"\")","v":""}]
[{"$f":"IF(AND(Selection_Hide1!C194<>0, Selection_Hide1!C194<>\"Grand Total\"), Selection_Hide1!C194, \"\")","v":""},{"$f":"IF(A196<>\"\", IF(INDEX('Full set Core Client Indicator'!$A$3:$AB$351, MATCH(Selection_Hide2!$A196, 'Full set Core Client Indicator'!$A$3:$A$351, 0), MATCH(Selection_Hide2!B$5, 'Full set Core Client Indicator'!$A$3:$AB$3, 0))=\"\", \"\",  INDEX('Full set Core Client Indicator'!$A$3:$AB$351, MATCH(Selection_Hide2!$A196, 'Full set Core Client Indicator'!$A$3:$A$351, 0), MATCH(Selection_Hide2!B$5, 'Full set Core Client Indicator'!$A$3:$AB$3, 0))), \"\")","v":""},{"$f":"IF(B196<>\"\", IF(INDEX('Full set Core Client Indicator'!$A$3:$AB$351, MATCH(Selection_Hide2!$A196, 'Full set Core Client Indicator'!$A$3:$A$351, 0), MATCH(Selection_Hide2!C$5, 'Full set Core Client Indicator'!$A$3:$AB$3, 0))=\"\", \"\",  INDEX('Full set Core Client Indicator'!$A$3:$AB$351, MATCH(Selection_Hide2!$A196, 'Full set Core Client Indicator'!$A$3:$A$351, 0), MATCH(Selection_Hide2!C$5, 'Full set Core Client Indicator'!$A$3:$AB$3, 0))), \"\")","v":""},{"$f":"IF(C196<>\"\", IF(INDEX('Full set Core Client Indicator'!$A$3:$AB$351, MATCH(Selection_Hide2!$A196, 'Full set Core Client Indicator'!$A$3:$A$351, 0), MATCH(Selection_Hide2!D$5, 'Full set Core Client Indicator'!$A$3:$AB$3, 0))=\"\", \"\",  INDEX('Full set Core Client Indicator'!$A$3:$AB$351, MATCH(Selection_Hide2!$A196, 'Full set Core Client Indicator'!$A$3:$A$351, 0), MATCH(Selection_Hide2!D$5, 'Full set Core Client Indicator'!$A$3:$AB$3, 0))), \"\")","v":""},{"$f":"IF(D196<>\"\", IF(INDEX('Full set Core Client Indicator'!$A$3:$AB$351, MATCH(Selection_Hide2!$A196, 'Full set Core Client Indicator'!$A$3:$A$351, 0), MATCH(Selection_Hide2!E$5, 'Full set Core Client Indicator'!$A$3:$AB$3, 0))=\"\", \"\",  INDEX('Full set Core Client Indicator'!$A$3:$AB$351, MATCH(Selection_Hide2!$A196, 'Full set Core Client Indicator'!$A$3:$A$351, 0), MATCH(Selection_Hide2!E$5, 'Full set Core Client Indicator'!$A$3:$AB$3, 0))), \"\")","v":""},{"$f":"IF(E196<>\"\", IF(INDEX('Full set Core Client Indicator'!$A$3:$AB$351, MATCH(Selection_Hide2!$A196, 'Full set Core Client Indicator'!$A$3:$A$351, 0), MATCH(Selection_Hide2!F$5, 'Full set Core Client Indicator'!$A$3:$AB$3, 0))=\"\", \"\",  INDEX('Full set Core Client Indicator'!$A$3:$AB$351, MATCH(Selection_Hide2!$A196, 'Full set Core Client Indicator'!$A$3:$A$351, 0), MATCH(Selection_Hide2!F$5, 'Full set Core Client Indicator'!$A$3:$AB$3, 0))), \"\")","v":""},{"$f":"IF(F196<>\"\", IF(INDEX('Full set Core Client Indicator'!$A$3:$AB$351, MATCH(Selection_Hide2!$A196, 'Full set Core Client Indicator'!$A$3:$A$351, 0), MATCH(Selection_Hide2!G$5, 'Full set Core Client Indicator'!$A$3:$AB$3, 0))=\"\", \"\",  INDEX('Full set Core Client Indicator'!$A$3:$AB$351, MATCH(Selection_Hide2!$A196, 'Full set Core Client Indicator'!$A$3:$A$351, 0), MATCH(Selection_Hide2!G$5, 'Full set Core Client Indicator'!$A$3:$AB$3, 0))), \"\")","v":""},{"$f":"IF(G196<>\"\", IF(INDEX('Full set Core Client Indicator'!$A$3:$AB$351, MATCH(Selection_Hide2!$A196, 'Full set Core Client Indicator'!$A$3:$A$351, 0), MATCH(Selection_Hide2!H$5, 'Full set Core Client Indicator'!$A$3:$AB$3, 0))=\"\", \"\",  INDEX('Full set Core Client Indicator'!$A$3:$AB$351, MATCH(Selection_Hide2!$A196, 'Full set Core Client Indicator'!$A$3:$A$351, 0), MATCH(Selection_Hide2!H$5, 'Full set Core Client Indicator'!$A$3:$AB$3, 0))), \"\")","v":""},{"$f":"IF(H196<>\"\", IF(INDEX('Full set Core Client Indicator'!$A$3:$AB$351, MATCH(Selection_Hide2!$A196, 'Full set Core Client Indicator'!$A$3:$A$351, 0), MATCH(Selection_Hide2!I$5, 'Full set Core Client Indicator'!$A$3:$AB$3, 0))=\"\", \"\",  INDEX('Full set Core Client Indicator'!$A$3:$AB$351, MATCH(Selection_Hide2!$A196, 'Full set Core Client Indicator'!$A$3:$A$351, 0), MATCH(Selection_Hide2!I$5, 'Full set Core Client Indicator'!$A$3:$AB$3, 0))), \"\")","v":""},{"$f":"IF(I196<>\"\", IF(INDEX('Full set Core Client Indicator'!$A$3:$AB$351, MATCH(Selection_Hide2!$A196, 'Full set Core Client Indicator'!$A$3:$A$351, 0), MATCH(Selection_Hide2!J$5, 'Full set Core Client Indicator'!$A$3:$AB$3, 0))=\"\", \"\",  INDEX('Full set Core Client Indicator'!$A$3:$AB$351, MATCH(Selection_Hide2!$A196, 'Full set Core Client Indicator'!$A$3:$A$351, 0), MATCH(Selection_Hide2!J$5, 'Full set Core Client Indicator'!$A$3:$AB$3, 0))), \"\")","v":""},{"$f":"IF(J196<>\"\", IF(INDEX('Full set Core Client Indicator'!$A$3:$AB$351, MATCH(Selection_Hide2!$A196, 'Full set Core Client Indicator'!$A$3:$A$351, 0), MATCH(Selection_Hide2!K$5, 'Full set Core Client Indicator'!$A$3:$AB$3, 0))=\"\", \"\",  INDEX('Full set Core Client Indicator'!$A$3:$AB$351, MATCH(Selection_Hide2!$A196, 'Full set Core Client Indicator'!$A$3:$A$351, 0), MATCH(Selection_Hide2!K$5, 'Full set Core Client Indicator'!$A$3:$AB$3, 0))), \"\")","v":""},{"$f":"IF(K196<>\"\", IF(INDEX('Full set Core Client Indicator'!$A$3:$AB$351, MATCH(Selection_Hide2!$A196, 'Full set Core Client Indicator'!$A$3:$A$351, 0), MATCH(Selection_Hide2!L$5, 'Full set Core Client Indicator'!$A$3:$AB$3, 0))=\"\", \"\",  INDEX('Full set Core Client Indicator'!$A$3:$AB$351, MATCH(Selection_Hide2!$A196, 'Full set Core Client Indicator'!$A$3:$A$351, 0), MATCH(Selection_Hide2!L$5, 'Full set Core Client Indicator'!$A$3:$AB$3, 0))), \"\")","v":""},{"$f":"IF(L196<>\"\", IF(INDEX('Full set Core Client Indicator'!$A$3:$AB$351, MATCH(Selection_Hide2!$A196, 'Full set Core Client Indicator'!$A$3:$A$351, 0), MATCH(Selection_Hide2!M$5, 'Full set Core Client Indicator'!$A$3:$AB$3, 0))=\"\", \"\",  INDEX('Full set Core Client Indicator'!$A$3:$AB$351, MATCH(Selection_Hide2!$A196, 'Full set Core Client Indicator'!$A$3:$A$351, 0), MATCH(Selection_Hide2!M$5, 'Full set Core Client Indicator'!$A$3:$AB$3, 0))), \"\")","v":""},{"$f":"IF(M196<>\"\", IF(INDEX('Full set Core Client Indicator'!$A$3:$AB$351, MATCH(Selection_Hide2!$A196, 'Full set Core Client Indicator'!$A$3:$A$351, 0), MATCH(Selection_Hide2!N$5, 'Full set Core Client Indicator'!$A$3:$AB$3, 0))=\"\", \"\",  INDEX('Full set Core Client Indicator'!$A$3:$AB$351, MATCH(Selection_Hide2!$A196, 'Full set Core Client Indicator'!$A$3:$A$351, 0), MATCH(Selection_Hide2!N$5, 'Full set Core Client Indicator'!$A$3:$AB$3, 0))), \"\")","v":""},{"$f":"IF(N196<>\"\", IF(INDEX('Full set Core Client Indicator'!$A$3:$AB$351, MATCH(Selection_Hide2!$A196, 'Full set Core Client Indicator'!$A$3:$A$351, 0), MATCH(Selection_Hide2!O$5, 'Full set Core Client Indicator'!$A$3:$AB$3, 0))=\"\", \"\",  INDEX('Full set Core Client Indicator'!$A$3:$AB$351, MATCH(Selection_Hide2!$A196, 'Full set Core Client Indicator'!$A$3:$A$351, 0), MATCH(Selection_Hide2!O$5, 'Full set Core Client Indicator'!$A$3:$AB$3, 0))), \"\")","v":""},{"$f":"IF(O196<>\"\", IF(INDEX('Full set Core Client Indicator'!$A$3:$AB$351, MATCH(Selection_Hide2!$A196, 'Full set Core Client Indicator'!$A$3:$A$351, 0), MATCH(Selection_Hide2!P$5, 'Full set Core Client Indicator'!$A$3:$AB$3, 0))=\"\", \"\",  INDEX('Full set Core Client Indicator'!$A$3:$AB$351, MATCH(Selection_Hide2!$A196, 'Full set Core Client Indicator'!$A$3:$A$351, 0), MATCH(Selection_Hide2!P$5, 'Full set Core Client Indicator'!$A$3:$AB$3, 0))), \"\")","v":""},{"$f":"IF(P196<>\"\", IF(INDEX('Full set Core Client Indicator'!$A$3:$AB$351, MATCH(Selection_Hide2!$A196, 'Full set Core Client Indicator'!$A$3:$A$351, 0), MATCH(Selection_Hide2!Q$5, 'Full set Core Client Indicator'!$A$3:$AB$3, 0))=\"\", \"\",  INDEX('Full set Core Client Indicator'!$A$3:$AB$351, MATCH(Selection_Hide2!$A196, 'Full set Core Client Indicator'!$A$3:$A$351, 0), MATCH(Selection_Hide2!Q$5, 'Full set Core Client Indicator'!$A$3:$AB$3, 0))), \"\")","v":""},{"$f":"IF(Q196<>\"\", IF(INDEX('Full set Core Client Indicator'!$A$3:$AB$351, MATCH(Selection_Hide2!$A196, 'Full set Core Client Indicator'!$A$3:$A$351, 0), MATCH(Selection_Hide2!R$5, 'Full set Core Client Indicator'!$A$3:$AB$3, 0))=\"\", \"\",  INDEX('Full set Core Client Indicator'!$A$3:$AB$351, MATCH(Selection_Hide2!$A196, 'Full set Core Client Indicator'!$A$3:$A$351, 0), MATCH(Selection_Hide2!R$5, 'Full set Core Client Indicator'!$A$3:$AB$3, 0))), \"\")","v":""},{"$f":"IF(R196<>\"\", IF(INDEX('Full set Core Client Indicator'!$A$3:$AB$351, MATCH(Selection_Hide2!$A196, 'Full set Core Client Indicator'!$A$3:$A$351, 0), MATCH(Selection_Hide2!S$5, 'Full set Core Client Indicator'!$A$3:$AB$3, 0))=\"\", \"\",  INDEX('Full set Core Client Indicator'!$A$3:$AB$351, MATCH(Selection_Hide2!$A196, 'Full set Core Client Indicator'!$A$3:$A$351, 0), MATCH(Selection_Hide2!S$5, 'Full set Core Client Indicator'!$A$3:$AB$3, 0))), \"\")","v":""},{"$f":"IF(S196<>\"\", IF(INDEX('Full set Core Client Indicator'!$A$3:$AB$351, MATCH(Selection_Hide2!$A196, 'Full set Core Client Indicator'!$A$3:$A$351, 0), MATCH(Selection_Hide2!T$5, 'Full set Core Client Indicator'!$A$3:$AB$3, 0))=\"\", \"\",  INDEX('Full set Core Client Indicator'!$A$3:$AB$351, MATCH(Selection_Hide2!$A196, 'Full set Core Client Indicator'!$A$3:$A$351, 0), MATCH(Selection_Hide2!T$5, 'Full set Core Client Indicator'!$A$3:$AB$3, 0))), \"\")","v":""},{"$f":"IF(T196<>\"\", IF(INDEX('Full set Core Client Indicator'!$A$3:$AB$351, MATCH(Selection_Hide2!$A196, 'Full set Core Client Indicator'!$A$3:$A$351, 0), MATCH(Selection_Hide2!U$5, 'Full set Core Client Indicator'!$A$3:$AB$3, 0))=\"\", \"\",  INDEX('Full set Core Client Indicator'!$A$3:$AB$351, MATCH(Selection_Hide2!$A196, 'Full set Core Client Indicator'!$A$3:$A$351, 0), MATCH(Selection_Hide2!U$5, 'Full set Core Client Indicator'!$A$3:$AB$3, 0))), \"\")","v":""},{"$f":"IF(U196<>\"\", IF(INDEX('Full set Core Client Indicator'!$A$3:$AB$351, MATCH(Selection_Hide2!$A196, 'Full set Core Client Indicator'!$A$3:$A$351, 0), MATCH(Selection_Hide2!V$5, 'Full set Core Client Indicator'!$A$3:$AB$3, 0))=\"\", \"\",  INDEX('Full set Core Client Indicator'!$A$3:$AB$351, MATCH(Selection_Hide2!$A196, 'Full set Core Client Indicator'!$A$3:$A$351, 0), MATCH(Selection_Hide2!V$5, 'Full set Core Client Indicator'!$A$3:$AB$3, 0))), \"\")","v":""},{"$f":"IF(V196<>\"\", IF(INDEX('Full set Core Client Indicator'!$A$3:$AB$351, MATCH(Selection_Hide2!$A196, 'Full set Core Client Indicator'!$A$3:$A$351, 0), MATCH(Selection_Hide2!W$5, 'Full set Core Client Indicator'!$A$3:$AB$3, 0))=\"\", \"\",  INDEX('Full set Core Client Indicator'!$A$3:$AB$351, MATCH(Selection_Hide2!$A196, 'Full set Core Client Indicator'!$A$3:$A$351, 0), MATCH(Selection_Hide2!W$5, 'Full set Core Client Indicator'!$A$3:$AB$3, 0))), \"\")","v":""},{"$f":"IF(W196<>\"\", IF(INDEX('Full set Core Client Indicator'!$A$3:$AB$351, MATCH(Selection_Hide2!$A196, 'Full set Core Client Indicator'!$A$3:$A$351, 0), MATCH(Selection_Hide2!X$5, 'Full set Core Client Indicator'!$A$3:$AB$3, 0))=\"\", \"\",  INDEX('Full set Core Client Indicator'!$A$3:$AB$351, MATCH(Selection_Hide2!$A196, 'Full set Core Client Indicator'!$A$3:$A$351, 0), MATCH(Selection_Hide2!X$5, 'Full set Core Client Indicator'!$A$3:$AB$3, 0))), \"\")","v":""},{"$f":"IF(X196<>\"\", IF(INDEX('Full set Core Client Indicator'!$A$3:$AB$351, MATCH(Selection_Hide2!$A196, 'Full set Core Client Indicator'!$A$3:$A$351, 0), MATCH(Selection_Hide2!Y$5, 'Full set Core Client Indicator'!$A$3:$AB$3, 0))=\"\", \"\",  INDEX('Full set Core Client Indicator'!$A$3:$AB$351, MATCH(Selection_Hide2!$A196, 'Full set Core Client Indicator'!$A$3:$A$351, 0), MATCH(Selection_Hide2!Y$5, 'Full set Core Client Indicator'!$A$3:$AB$3, 0))), \"\")","v":""},{"$f":"IF(Y196<>\"\", IF(INDEX('Full set Core Client Indicator'!$A$3:$AB$351, MATCH(Selection_Hide2!$A196, 'Full set Core Client Indicator'!$A$3:$A$351, 0), MATCH(Selection_Hide2!Z$5, 'Full set Core Client Indicator'!$A$3:$AB$3, 0))=\"\", \"\",  INDEX('Full set Core Client Indicator'!$A$3:$AB$351, MATCH(Selection_Hide2!$A196, 'Full set Core Client Indicator'!$A$3:$A$351, 0), MATCH(Selection_Hide2!Z$5, 'Full set Core Client Indicator'!$A$3:$AB$3, 0))), \"\")","v":""},{"$f":"IF(Z196<>\"\", IF(INDEX('Full set Core Client Indicator'!$A$3:$AB$351, MATCH(Selection_Hide2!$A196, 'Full set Core Client Indicator'!$A$3:$A$351, 0), MATCH(Selection_Hide2!AA$5, 'Full set Core Client Indicator'!$A$3:$AB$3, 0))=\"\", \"\",  INDEX('Full set Core Client Indicator'!$A$3:$AB$351, MATCH(Selection_Hide2!$A196, 'Full set Core Client Indicator'!$A$3:$A$351, 0), MATCH(Selection_Hide2!AA$5, 'Full set Core Client Indicator'!$A$3:$AB$3, 0))), \"\")","v":""},{"$f":"IF(AA196<>\"\", IF(INDEX('Full set Core Client Indicator'!$A$3:$AB$351, MATCH(Selection_Hide2!$A196, 'Full set Core Client Indicator'!$A$3:$A$351, 0), MATCH(Selection_Hide2!AB$5, 'Full set Core Client Indicator'!$A$3:$AB$3, 0))=\"\", \"\",  INDEX('Full set Core Client Indicator'!$A$3:$AB$351, MATCH(Selection_Hide2!$A196, 'Full set Core Client Indicator'!$A$3:$A$351, 0), MATCH(Selection_Hide2!AB$5, 'Full set Core Client Indicator'!$A$3:$AB$3, 0))), \"\")","v":""}]
[{"$f":"IF(AND(Selection_Hide1!C195<>0, Selection_Hide1!C195<>\"Grand Total\"), Selection_Hide1!C195, \"\")","v":""},{"$f":"IF(A197<>\"\", IF(INDEX('Full set Core Client Indicator'!$A$3:$AB$351, MATCH(Selection_Hide2!$A197, 'Full set Core Client Indicator'!$A$3:$A$351, 0), MATCH(Selection_Hide2!B$5, 'Full set Core Client Indicator'!$A$3:$AB$3, 0))=\"\", \"\",  INDEX('Full set Core Client Indicator'!$A$3:$AB$351, MATCH(Selection_Hide2!$A197, 'Full set Core Client Indicator'!$A$3:$A$351, 0), MATCH(Selection_Hide2!B$5, 'Full set Core Client Indicator'!$A$3:$AB$3, 0))), \"\")","v":""},{"$f":"IF(B197<>\"\", IF(INDEX('Full set Core Client Indicator'!$A$3:$AB$351, MATCH(Selection_Hide2!$A197, 'Full set Core Client Indicator'!$A$3:$A$351, 0), MATCH(Selection_Hide2!C$5, 'Full set Core Client Indicator'!$A$3:$AB$3, 0))=\"\", \"\",  INDEX('Full set Core Client Indicator'!$A$3:$AB$351, MATCH(Selection_Hide2!$A197, 'Full set Core Client Indicator'!$A$3:$A$351, 0), MATCH(Selection_Hide2!C$5, 'Full set Core Client Indicator'!$A$3:$AB$3, 0))), \"\")","v":""},{"$f":"IF(C197<>\"\", IF(INDEX('Full set Core Client Indicator'!$A$3:$AB$351, MATCH(Selection_Hide2!$A197, 'Full set Core Client Indicator'!$A$3:$A$351, 0), MATCH(Selection_Hide2!D$5, 'Full set Core Client Indicator'!$A$3:$AB$3, 0))=\"\", \"\",  INDEX('Full set Core Client Indicator'!$A$3:$AB$351, MATCH(Selection_Hide2!$A197, 'Full set Core Client Indicator'!$A$3:$A$351, 0), MATCH(Selection_Hide2!D$5, 'Full set Core Client Indicator'!$A$3:$AB$3, 0))), \"\")","v":""},{"$f":"IF(D197<>\"\", IF(INDEX('Full set Core Client Indicator'!$A$3:$AB$351, MATCH(Selection_Hide2!$A197, 'Full set Core Client Indicator'!$A$3:$A$351, 0), MATCH(Selection_Hide2!E$5, 'Full set Core Client Indicator'!$A$3:$AB$3, 0))=\"\", \"\",  INDEX('Full set Core Client Indicator'!$A$3:$AB$351, MATCH(Selection_Hide2!$A197, 'Full set Core Client Indicator'!$A$3:$A$351, 0), MATCH(Selection_Hide2!E$5, 'Full set Core Client Indicator'!$A$3:$AB$3, 0))), \"\")","v":""},{"$f":"IF(E197<>\"\", IF(INDEX('Full set Core Client Indicator'!$A$3:$AB$351, MATCH(Selection_Hide2!$A197, 'Full set Core Client Indicator'!$A$3:$A$351, 0), MATCH(Selection_Hide2!F$5, 'Full set Core Client Indicator'!$A$3:$AB$3, 0))=\"\", \"\",  INDEX('Full set Core Client Indicator'!$A$3:$AB$351, MATCH(Selection_Hide2!$A197, 'Full set Core Client Indicator'!$A$3:$A$351, 0), MATCH(Selection_Hide2!F$5, 'Full set Core Client Indicator'!$A$3:$AB$3, 0))), \"\")","v":""},{"$f":"IF(F197<>\"\", IF(INDEX('Full set Core Client Indicator'!$A$3:$AB$351, MATCH(Selection_Hide2!$A197, 'Full set Core Client Indicator'!$A$3:$A$351, 0), MATCH(Selection_Hide2!G$5, 'Full set Core Client Indicator'!$A$3:$AB$3, 0))=\"\", \"\",  INDEX('Full set Core Client Indicator'!$A$3:$AB$351, MATCH(Selection_Hide2!$A197, 'Full set Core Client Indicator'!$A$3:$A$351, 0), MATCH(Selection_Hide2!G$5, 'Full set Core Client Indicator'!$A$3:$AB$3, 0))), \"\")","v":""},{"$f":"IF(G197<>\"\", IF(INDEX('Full set Core Client Indicator'!$A$3:$AB$351, MATCH(Selection_Hide2!$A197, 'Full set Core Client Indicator'!$A$3:$A$351, 0), MATCH(Selection_Hide2!H$5, 'Full set Core Client Indicator'!$A$3:$AB$3, 0))=\"\", \"\",  INDEX('Full set Core Client Indicator'!$A$3:$AB$351, MATCH(Selection_Hide2!$A197, 'Full set Core Client Indicator'!$A$3:$A$351, 0), MATCH(Selection_Hide2!H$5, 'Full set Core Client Indicator'!$A$3:$AB$3, 0))), \"\")","v":""},{"$f":"IF(H197<>\"\", IF(INDEX('Full set Core Client Indicator'!$A$3:$AB$351, MATCH(Selection_Hide2!$A197, 'Full set Core Client Indicator'!$A$3:$A$351, 0), MATCH(Selection_Hide2!I$5, 'Full set Core Client Indicator'!$A$3:$AB$3, 0))=\"\", \"\",  INDEX('Full set Core Client Indicator'!$A$3:$AB$351, MATCH(Selection_Hide2!$A197, 'Full set Core Client Indicator'!$A$3:$A$351, 0), MATCH(Selection_Hide2!I$5, 'Full set Core Client Indicator'!$A$3:$AB$3, 0))), \"\")","v":""},{"$f":"IF(I197<>\"\", IF(INDEX('Full set Core Client Indicator'!$A$3:$AB$351, MATCH(Selection_Hide2!$A197, 'Full set Core Client Indicator'!$A$3:$A$351, 0), MATCH(Selection_Hide2!J$5, 'Full set Core Client Indicator'!$A$3:$AB$3, 0))=\"\", \"\",  INDEX('Full set Core Client Indicator'!$A$3:$AB$351, MATCH(Selection_Hide2!$A197, 'Full set Core Client Indicator'!$A$3:$A$351, 0), MATCH(Selection_Hide2!J$5, 'Full set Core Client Indicator'!$A$3:$AB$3, 0))), \"\")","v":""},{"$f":"IF(J197<>\"\", IF(INDEX('Full set Core Client Indicator'!$A$3:$AB$351, MATCH(Selection_Hide2!$A197, 'Full set Core Client Indicator'!$A$3:$A$351, 0), MATCH(Selection_Hide2!K$5, 'Full set Core Client Indicator'!$A$3:$AB$3, 0))=\"\", \"\",  INDEX('Full set Core Client Indicator'!$A$3:$AB$351, MATCH(Selection_Hide2!$A197, 'Full set Core Client Indicator'!$A$3:$A$351, 0), MATCH(Selection_Hide2!K$5, 'Full set Core Client Indicator'!$A$3:$AB$3, 0))), \"\")","v":""},{"$f":"IF(K197<>\"\", IF(INDEX('Full set Core Client Indicator'!$A$3:$AB$351, MATCH(Selection_Hide2!$A197, 'Full set Core Client Indicator'!$A$3:$A$351, 0), MATCH(Selection_Hide2!L$5, 'Full set Core Client Indicator'!$A$3:$AB$3, 0))=\"\", \"\",  INDEX('Full set Core Client Indicator'!$A$3:$AB$351, MATCH(Selection_Hide2!$A197, 'Full set Core Client Indicator'!$A$3:$A$351, 0), MATCH(Selection_Hide2!L$5, 'Full set Core Client Indicator'!$A$3:$AB$3, 0))), \"\")","v":""},{"$f":"IF(L197<>\"\", IF(INDEX('Full set Core Client Indicator'!$A$3:$AB$351, MATCH(Selection_Hide2!$A197, 'Full set Core Client Indicator'!$A$3:$A$351, 0), MATCH(Selection_Hide2!M$5, 'Full set Core Client Indicator'!$A$3:$AB$3, 0))=\"\", \"\",  INDEX('Full set Core Client Indicator'!$A$3:$AB$351, MATCH(Selection_Hide2!$A197, 'Full set Core Client Indicator'!$A$3:$A$351, 0), MATCH(Selection_Hide2!M$5, 'Full set Core Client Indicator'!$A$3:$AB$3, 0))), \"\")","v":""},{"$f":"IF(M197<>\"\", IF(INDEX('Full set Core Client Indicator'!$A$3:$AB$351, MATCH(Selection_Hide2!$A197, 'Full set Core Client Indicator'!$A$3:$A$351, 0), MATCH(Selection_Hide2!N$5, 'Full set Core Client Indicator'!$A$3:$AB$3, 0))=\"\", \"\",  INDEX('Full set Core Client Indicator'!$A$3:$AB$351, MATCH(Selection_Hide2!$A197, 'Full set Core Client Indicator'!$A$3:$A$351, 0), MATCH(Selection_Hide2!N$5, 'Full set Core Client Indicator'!$A$3:$AB$3, 0))), \"\")","v":""},{"$f":"IF(N197<>\"\", IF(INDEX('Full set Core Client Indicator'!$A$3:$AB$351, MATCH(Selection_Hide2!$A197, 'Full set Core Client Indicator'!$A$3:$A$351, 0), MATCH(Selection_Hide2!O$5, 'Full set Core Client Indicator'!$A$3:$AB$3, 0))=\"\", \"\",  INDEX('Full set Core Client Indicator'!$A$3:$AB$351, MATCH(Selection_Hide2!$A197, 'Full set Core Client Indicator'!$A$3:$A$351, 0), MATCH(Selection_Hide2!O$5, 'Full set Core Client Indicator'!$A$3:$AB$3, 0))), \"\")","v":""},{"$f":"IF(O197<>\"\", IF(INDEX('Full set Core Client Indicator'!$A$3:$AB$351, MATCH(Selection_Hide2!$A197, 'Full set Core Client Indicator'!$A$3:$A$351, 0), MATCH(Selection_Hide2!P$5, 'Full set Core Client Indicator'!$A$3:$AB$3, 0))=\"\", \"\",  INDEX('Full set Core Client Indicator'!$A$3:$AB$351, MATCH(Selection_Hide2!$A197, 'Full set Core Client Indicator'!$A$3:$A$351, 0), MATCH(Selection_Hide2!P$5, 'Full set Core Client Indicator'!$A$3:$AB$3, 0))), \"\")","v":""},{"$f":"IF(P197<>\"\", IF(INDEX('Full set Core Client Indicator'!$A$3:$AB$351, MATCH(Selection_Hide2!$A197, 'Full set Core Client Indicator'!$A$3:$A$351, 0), MATCH(Selection_Hide2!Q$5, 'Full set Core Client Indicator'!$A$3:$AB$3, 0))=\"\", \"\",  INDEX('Full set Core Client Indicator'!$A$3:$AB$351, MATCH(Selection_Hide2!$A197, 'Full set Core Client Indicator'!$A$3:$A$351, 0), MATCH(Selection_Hide2!Q$5, 'Full set Core Client Indicator'!$A$3:$AB$3, 0))), \"\")","v":""},{"$f":"IF(Q197<>\"\", IF(INDEX('Full set Core Client Indicator'!$A$3:$AB$351, MATCH(Selection_Hide2!$A197, 'Full set Core Client Indicator'!$A$3:$A$351, 0), MATCH(Selection_Hide2!R$5, 'Full set Core Client Indicator'!$A$3:$AB$3, 0))=\"\", \"\",  INDEX('Full set Core Client Indicator'!$A$3:$AB$351, MATCH(Selection_Hide2!$A197, 'Full set Core Client Indicator'!$A$3:$A$351, 0), MATCH(Selection_Hide2!R$5, 'Full set Core Client Indicator'!$A$3:$AB$3, 0))), \"\")","v":""},{"$f":"IF(R197<>\"\", IF(INDEX('Full set Core Client Indicator'!$A$3:$AB$351, MATCH(Selection_Hide2!$A197, 'Full set Core Client Indicator'!$A$3:$A$351, 0), MATCH(Selection_Hide2!S$5, 'Full set Core Client Indicator'!$A$3:$AB$3, 0))=\"\", \"\",  INDEX('Full set Core Client Indicator'!$A$3:$AB$351, MATCH(Selection_Hide2!$A197, 'Full set Core Client Indicator'!$A$3:$A$351, 0), MATCH(Selection_Hide2!S$5, 'Full set Core Client Indicator'!$A$3:$AB$3, 0))), \"\")","v":""},{"$f":"IF(S197<>\"\", IF(INDEX('Full set Core Client Indicator'!$A$3:$AB$351, MATCH(Selection_Hide2!$A197, 'Full set Core Client Indicator'!$A$3:$A$351, 0), MATCH(Selection_Hide2!T$5, 'Full set Core Client Indicator'!$A$3:$AB$3, 0))=\"\", \"\",  INDEX('Full set Core Client Indicator'!$A$3:$AB$351, MATCH(Selection_Hide2!$A197, 'Full set Core Client Indicator'!$A$3:$A$351, 0), MATCH(Selection_Hide2!T$5, 'Full set Core Client Indicator'!$A$3:$AB$3, 0))), \"\")","v":""},{"$f":"IF(T197<>\"\", IF(INDEX('Full set Core Client Indicator'!$A$3:$AB$351, MATCH(Selection_Hide2!$A197, 'Full set Core Client Indicator'!$A$3:$A$351, 0), MATCH(Selection_Hide2!U$5, 'Full set Core Client Indicator'!$A$3:$AB$3, 0))=\"\", \"\",  INDEX('Full set Core Client Indicator'!$A$3:$AB$351, MATCH(Selection_Hide2!$A197, 'Full set Core Client Indicator'!$A$3:$A$351, 0), MATCH(Selection_Hide2!U$5, 'Full set Core Client Indicator'!$A$3:$AB$3, 0))), \"\")","v":""},{"$f":"IF(U197<>\"\", IF(INDEX('Full set Core Client Indicator'!$A$3:$AB$351, MATCH(Selection_Hide2!$A197, 'Full set Core Client Indicator'!$A$3:$A$351, 0), MATCH(Selection_Hide2!V$5, 'Full set Core Client Indicator'!$A$3:$AB$3, 0))=\"\", \"\",  INDEX('Full set Core Client Indicator'!$A$3:$AB$351, MATCH(Selection_Hide2!$A197, 'Full set Core Client Indicator'!$A$3:$A$351, 0), MATCH(Selection_Hide2!V$5, 'Full set Core Client Indicator'!$A$3:$AB$3, 0))), \"\")","v":""},{"$f":"IF(V197<>\"\", IF(INDEX('Full set Core Client Indicator'!$A$3:$AB$351, MATCH(Selection_Hide2!$A197, 'Full set Core Client Indicator'!$A$3:$A$351, 0), MATCH(Selection_Hide2!W$5, 'Full set Core Client Indicator'!$A$3:$AB$3, 0))=\"\", \"\",  INDEX('Full set Core Client Indicator'!$A$3:$AB$351, MATCH(Selection_Hide2!$A197, 'Full set Core Client Indicator'!$A$3:$A$351, 0), MATCH(Selection_Hide2!W$5, 'Full set Core Client Indicator'!$A$3:$AB$3, 0))), \"\")","v":""},{"$f":"IF(W197<>\"\", IF(INDEX('Full set Core Client Indicator'!$A$3:$AB$351, MATCH(Selection_Hide2!$A197, 'Full set Core Client Indicator'!$A$3:$A$351, 0), MATCH(Selection_Hide2!X$5, 'Full set Core Client Indicator'!$A$3:$AB$3, 0))=\"\", \"\",  INDEX('Full set Core Client Indicator'!$A$3:$AB$351, MATCH(Selection_Hide2!$A197, 'Full set Core Client Indicator'!$A$3:$A$351, 0), MATCH(Selection_Hide2!X$5, 'Full set Core Client Indicator'!$A$3:$AB$3, 0))), \"\")","v":""},{"$f":"IF(X197<>\"\", IF(INDEX('Full set Core Client Indicator'!$A$3:$AB$351, MATCH(Selection_Hide2!$A197, 'Full set Core Client Indicator'!$A$3:$A$351, 0), MATCH(Selection_Hide2!Y$5, 'Full set Core Client Indicator'!$A$3:$AB$3, 0))=\"\", \"\",  INDEX('Full set Core Client Indicator'!$A$3:$AB$351, MATCH(Selection_Hide2!$A197, 'Full set Core Client Indicator'!$A$3:$A$351, 0), MATCH(Selection_Hide2!Y$5, 'Full set Core Client Indicator'!$A$3:$AB$3, 0))), \"\")","v":""},{"$f":"IF(Y197<>\"\", IF(INDEX('Full set Core Client Indicator'!$A$3:$AB$351, MATCH(Selection_Hide2!$A197, 'Full set Core Client Indicator'!$A$3:$A$351, 0), MATCH(Selection_Hide2!Z$5, 'Full set Core Client Indicator'!$A$3:$AB$3, 0))=\"\", \"\",  INDEX('Full set Core Client Indicator'!$A$3:$AB$351, MATCH(Selection_Hide2!$A197, 'Full set Core Client Indicator'!$A$3:$A$351, 0), MATCH(Selection_Hide2!Z$5, 'Full set Core Client Indicator'!$A$3:$AB$3, 0))), \"\")","v":""},{"$f":"IF(Z197<>\"\", IF(INDEX('Full set Core Client Indicator'!$A$3:$AB$351, MATCH(Selection_Hide2!$A197, 'Full set Core Client Indicator'!$A$3:$A$351, 0), MATCH(Selection_Hide2!AA$5, 'Full set Core Client Indicator'!$A$3:$AB$3, 0))=\"\", \"\",  INDEX('Full set Core Client Indicator'!$A$3:$AB$351, MATCH(Selection_Hide2!$A197, 'Full set Core Client Indicator'!$A$3:$A$351, 0), MATCH(Selection_Hide2!AA$5, 'Full set Core Client Indicator'!$A$3:$AB$3, 0))), \"\")","v":""},{"$f":"IF(AA197<>\"\", IF(INDEX('Full set Core Client Indicator'!$A$3:$AB$351, MATCH(Selection_Hide2!$A197, 'Full set Core Client Indicator'!$A$3:$A$351, 0), MATCH(Selection_Hide2!AB$5, 'Full set Core Client Indicator'!$A$3:$AB$3, 0))=\"\", \"\",  INDEX('Full set Core Client Indicator'!$A$3:$AB$351, MATCH(Selection_Hide2!$A197, 'Full set Core Client Indicator'!$A$3:$A$351, 0), MATCH(Selection_Hide2!AB$5, 'Full set Core Client Indicator'!$A$3:$AB$3, 0))), \"\")","v":""}]
[{"$f":"IF(AND(Selection_Hide1!C196<>0, Selection_Hide1!C196<>\"Grand Total\"), Selection_Hide1!C196, \"\")","v":""},{"$f":"IF(A198<>\"\", IF(INDEX('Full set Core Client Indicator'!$A$3:$AB$351, MATCH(Selection_Hide2!$A198, 'Full set Core Client Indicator'!$A$3:$A$351, 0), MATCH(Selection_Hide2!B$5, 'Full set Core Client Indicator'!$A$3:$AB$3, 0))=\"\", \"\",  INDEX('Full set Core Client Indicator'!$A$3:$AB$351, MATCH(Selection_Hide2!$A198, 'Full set Core Client Indicator'!$A$3:$A$351, 0), MATCH(Selection_Hide2!B$5, 'Full set Core Client Indicator'!$A$3:$AB$3, 0))), \"\")","v":""},{"$f":"IF(B198<>\"\", IF(INDEX('Full set Core Client Indicator'!$A$3:$AB$351, MATCH(Selection_Hide2!$A198, 'Full set Core Client Indicator'!$A$3:$A$351, 0), MATCH(Selection_Hide2!C$5, 'Full set Core Client Indicator'!$A$3:$AB$3, 0))=\"\", \"\",  INDEX('Full set Core Client Indicator'!$A$3:$AB$351, MATCH(Selection_Hide2!$A198, 'Full set Core Client Indicator'!$A$3:$A$351, 0), MATCH(Selection_Hide2!C$5, 'Full set Core Client Indicator'!$A$3:$AB$3, 0))), \"\")","v":""},{"$f":"IF(C198<>\"\", IF(INDEX('Full set Core Client Indicator'!$A$3:$AB$351, MATCH(Selection_Hide2!$A198, 'Full set Core Client Indicator'!$A$3:$A$351, 0), MATCH(Selection_Hide2!D$5, 'Full set Core Client Indicator'!$A$3:$AB$3, 0))=\"\", \"\",  INDEX('Full set Core Client Indicator'!$A$3:$AB$351, MATCH(Selection_Hide2!$A198, 'Full set Core Client Indicator'!$A$3:$A$351, 0), MATCH(Selection_Hide2!D$5, 'Full set Core Client Indicator'!$A$3:$AB$3, 0))), \"\")","v":""},{"$f":"IF(D198<>\"\", IF(INDEX('Full set Core Client Indicator'!$A$3:$AB$351, MATCH(Selection_Hide2!$A198, 'Full set Core Client Indicator'!$A$3:$A$351, 0), MATCH(Selection_Hide2!E$5, 'Full set Core Client Indicator'!$A$3:$AB$3, 0))=\"\", \"\",  INDEX('Full set Core Client Indicator'!$A$3:$AB$351, MATCH(Selection_Hide2!$A198, 'Full set Core Client Indicator'!$A$3:$A$351, 0), MATCH(Selection_Hide2!E$5, 'Full set Core Client Indicator'!$A$3:$AB$3, 0))), \"\")","v":""},{"$f":"IF(E198<>\"\", IF(INDEX('Full set Core Client Indicator'!$A$3:$AB$351, MATCH(Selection_Hide2!$A198, 'Full set Core Client Indicator'!$A$3:$A$351, 0), MATCH(Selection_Hide2!F$5, 'Full set Core Client Indicator'!$A$3:$AB$3, 0))=\"\", \"\",  INDEX('Full set Core Client Indicator'!$A$3:$AB$351, MATCH(Selection_Hide2!$A198, 'Full set Core Client Indicator'!$A$3:$A$351, 0), MATCH(Selection_Hide2!F$5, 'Full set Core Client Indicator'!$A$3:$AB$3, 0))), \"\")","v":""},{"$f":"IF(F198<>\"\", IF(INDEX('Full set Core Client Indicator'!$A$3:$AB$351, MATCH(Selection_Hide2!$A198, 'Full set Core Client Indicator'!$A$3:$A$351, 0), MATCH(Selection_Hide2!G$5, 'Full set Core Client Indicator'!$A$3:$AB$3, 0))=\"\", \"\",  INDEX('Full set Core Client Indicator'!$A$3:$AB$351, MATCH(Selection_Hide2!$A198, 'Full set Core Client Indicator'!$A$3:$A$351, 0), MATCH(Selection_Hide2!G$5, 'Full set Core Client Indicator'!$A$3:$AB$3, 0))), \"\")","v":""},{"$f":"IF(G198<>\"\", IF(INDEX('Full set Core Client Indicator'!$A$3:$AB$351, MATCH(Selection_Hide2!$A198, 'Full set Core Client Indicator'!$A$3:$A$351, 0), MATCH(Selection_Hide2!H$5, 'Full set Core Client Indicator'!$A$3:$AB$3, 0))=\"\", \"\",  INDEX('Full set Core Client Indicator'!$A$3:$AB$351, MATCH(Selection_Hide2!$A198, 'Full set Core Client Indicator'!$A$3:$A$351, 0), MATCH(Selection_Hide2!H$5, 'Full set Core Client Indicator'!$A$3:$AB$3, 0))), \"\")","v":""},{"$f":"IF(H198<>\"\", IF(INDEX('Full set Core Client Indicator'!$A$3:$AB$351, MATCH(Selection_Hide2!$A198, 'Full set Core Client Indicator'!$A$3:$A$351, 0), MATCH(Selection_Hide2!I$5, 'Full set Core Client Indicator'!$A$3:$AB$3, 0))=\"\", \"\",  INDEX('Full set Core Client Indicator'!$A$3:$AB$351, MATCH(Selection_Hide2!$A198, 'Full set Core Client Indicator'!$A$3:$A$351, 0), MATCH(Selection_Hide2!I$5, 'Full set Core Client Indicator'!$A$3:$AB$3, 0))), \"\")","v":""},{"$f":"IF(I198<>\"\", IF(INDEX('Full set Core Client Indicator'!$A$3:$AB$351, MATCH(Selection_Hide2!$A198, 'Full set Core Client Indicator'!$A$3:$A$351, 0), MATCH(Selection_Hide2!J$5, 'Full set Core Client Indicator'!$A$3:$AB$3, 0))=\"\", \"\",  INDEX('Full set Core Client Indicator'!$A$3:$AB$351, MATCH(Selection_Hide2!$A198, 'Full set Core Client Indicator'!$A$3:$A$351, 0), MATCH(Selection_Hide2!J$5, 'Full set Core Client Indicator'!$A$3:$AB$3, 0))), \"\")","v":""},{"$f":"IF(J198<>\"\", IF(INDEX('Full set Core Client Indicator'!$A$3:$AB$351, MATCH(Selection_Hide2!$A198, 'Full set Core Client Indicator'!$A$3:$A$351, 0), MATCH(Selection_Hide2!K$5, 'Full set Core Client Indicator'!$A$3:$AB$3, 0))=\"\", \"\",  INDEX('Full set Core Client Indicator'!$A$3:$AB$351, MATCH(Selection_Hide2!$A198, 'Full set Core Client Indicator'!$A$3:$A$351, 0), MATCH(Selection_Hide2!K$5, 'Full set Core Client Indicator'!$A$3:$AB$3, 0))), \"\")","v":""},{"$f":"IF(K198<>\"\", IF(INDEX('Full set Core Client Indicator'!$A$3:$AB$351, MATCH(Selection_Hide2!$A198, 'Full set Core Client Indicator'!$A$3:$A$351, 0), MATCH(Selection_Hide2!L$5, 'Full set Core Client Indicator'!$A$3:$AB$3, 0))=\"\", \"\",  INDEX('Full set Core Client Indicator'!$A$3:$AB$351, MATCH(Selection_Hide2!$A198, 'Full set Core Client Indicator'!$A$3:$A$351, 0), MATCH(Selection_Hide2!L$5, 'Full set Core Client Indicator'!$A$3:$AB$3, 0))), \"\")","v":""},{"$f":"IF(L198<>\"\", IF(INDEX('Full set Core Client Indicator'!$A$3:$AB$351, MATCH(Selection_Hide2!$A198, 'Full set Core Client Indicator'!$A$3:$A$351, 0), MATCH(Selection_Hide2!M$5, 'Full set Core Client Indicator'!$A$3:$AB$3, 0))=\"\", \"\",  INDEX('Full set Core Client Indicator'!$A$3:$AB$351, MATCH(Selection_Hide2!$A198, 'Full set Core Client Indicator'!$A$3:$A$351, 0), MATCH(Selection_Hide2!M$5, 'Full set Core Client Indicator'!$A$3:$AB$3, 0))), \"\")","v":""},{"$f":"IF(M198<>\"\", IF(INDEX('Full set Core Client Indicator'!$A$3:$AB$351, MATCH(Selection_Hide2!$A198, 'Full set Core Client Indicator'!$A$3:$A$351, 0), MATCH(Selection_Hide2!N$5, 'Full set Core Client Indicator'!$A$3:$AB$3, 0))=\"\", \"\",  INDEX('Full set Core Client Indicator'!$A$3:$AB$351, MATCH(Selection_Hide2!$A198, 'Full set Core Client Indicator'!$A$3:$A$351, 0), MATCH(Selection_Hide2!N$5, 'Full set Core Client Indicator'!$A$3:$AB$3, 0))), \"\")","v":""},{"$f":"IF(N198<>\"\", IF(INDEX('Full set Core Client Indicator'!$A$3:$AB$351, MATCH(Selection_Hide2!$A198, 'Full set Core Client Indicator'!$A$3:$A$351, 0), MATCH(Selection_Hide2!O$5, 'Full set Core Client Indicator'!$A$3:$AB$3, 0))=\"\", \"\",  INDEX('Full set Core Client Indicator'!$A$3:$AB$351, MATCH(Selection_Hide2!$A198, 'Full set Core Client Indicator'!$A$3:$A$351, 0), MATCH(Selection_Hide2!O$5, 'Full set Core Client Indicator'!$A$3:$AB$3, 0))), \"\")","v":""},{"$f":"IF(O198<>\"\", IF(INDEX('Full set Core Client Indicator'!$A$3:$AB$351, MATCH(Selection_Hide2!$A198, 'Full set Core Client Indicator'!$A$3:$A$351, 0), MATCH(Selection_Hide2!P$5, 'Full set Core Client Indicator'!$A$3:$AB$3, 0))=\"\", \"\",  INDEX('Full set Core Client Indicator'!$A$3:$AB$351, MATCH(Selection_Hide2!$A198, 'Full set Core Client Indicator'!$A$3:$A$351, 0), MATCH(Selection_Hide2!P$5, 'Full set Core Client Indicator'!$A$3:$AB$3, 0))), \"\")","v":""},{"$f":"IF(P198<>\"\", IF(INDEX('Full set Core Client Indicator'!$A$3:$AB$351, MATCH(Selection_Hide2!$A198, 'Full set Core Client Indicator'!$A$3:$A$351, 0), MATCH(Selection_Hide2!Q$5, 'Full set Core Client Indicator'!$A$3:$AB$3, 0))=\"\", \"\",  INDEX('Full set Core Client Indicator'!$A$3:$AB$351, MATCH(Selection_Hide2!$A198, 'Full set Core Client Indicator'!$A$3:$A$351, 0), MATCH(Selection_Hide2!Q$5, 'Full set Core Client Indicator'!$A$3:$AB$3, 0))), \"\")","v":""},{"$f":"IF(Q198<>\"\", IF(INDEX('Full set Core Client Indicator'!$A$3:$AB$351, MATCH(Selection_Hide2!$A198, 'Full set Core Client Indicator'!$A$3:$A$351, 0), MATCH(Selection_Hide2!R$5, 'Full set Core Client Indicator'!$A$3:$AB$3, 0))=\"\", \"\",  INDEX('Full set Core Client Indicator'!$A$3:$AB$351, MATCH(Selection_Hide2!$A198, 'Full set Core Client Indicator'!$A$3:$A$351, 0), MATCH(Selection_Hide2!R$5, 'Full set Core Client Indicator'!$A$3:$AB$3, 0))), \"\")","v":""},{"$f":"IF(R198<>\"\", IF(INDEX('Full set Core Client Indicator'!$A$3:$AB$351, MATCH(Selection_Hide2!$A198, 'Full set Core Client Indicator'!$A$3:$A$351, 0), MATCH(Selection_Hide2!S$5, 'Full set Core Client Indicator'!$A$3:$AB$3, 0))=\"\", \"\",  INDEX('Full set Core Client Indicator'!$A$3:$AB$351, MATCH(Selection_Hide2!$A198, 'Full set Core Client Indicator'!$A$3:$A$351, 0), MATCH(Selection_Hide2!S$5, 'Full set Core Client Indicator'!$A$3:$AB$3, 0))), \"\")","v":""},{"$f":"IF(S198<>\"\", IF(INDEX('Full set Core Client Indicator'!$A$3:$AB$351, MATCH(Selection_Hide2!$A198, 'Full set Core Client Indicator'!$A$3:$A$351, 0), MATCH(Selection_Hide2!T$5, 'Full set Core Client Indicator'!$A$3:$AB$3, 0))=\"\", \"\",  INDEX('Full set Core Client Indicator'!$A$3:$AB$351, MATCH(Selection_Hide2!$A198, 'Full set Core Client Indicator'!$A$3:$A$351, 0), MATCH(Selection_Hide2!T$5, 'Full set Core Client Indicator'!$A$3:$AB$3, 0))), \"\")","v":""},{"$f":"IF(T198<>\"\", IF(INDEX('Full set Core Client Indicator'!$A$3:$AB$351, MATCH(Selection_Hide2!$A198, 'Full set Core Client Indicator'!$A$3:$A$351, 0), MATCH(Selection_Hide2!U$5, 'Full set Core Client Indicator'!$A$3:$AB$3, 0))=\"\", \"\",  INDEX('Full set Core Client Indicator'!$A$3:$AB$351, MATCH(Selection_Hide2!$A198, 'Full set Core Client Indicator'!$A$3:$A$351, 0), MATCH(Selection_Hide2!U$5, 'Full set Core Client Indicator'!$A$3:$AB$3, 0))), \"\")","v":""},{"$f":"IF(U198<>\"\", IF(INDEX('Full set Core Client Indicator'!$A$3:$AB$351, MATCH(Selection_Hide2!$A198, 'Full set Core Client Indicator'!$A$3:$A$351, 0), MATCH(Selection_Hide2!V$5, 'Full set Core Client Indicator'!$A$3:$AB$3, 0))=\"\", \"\",  INDEX('Full set Core Client Indicator'!$A$3:$AB$351, MATCH(Selection_Hide2!$A198, 'Full set Core Client Indicator'!$A$3:$A$351, 0), MATCH(Selection_Hide2!V$5, 'Full set Core Client Indicator'!$A$3:$AB$3, 0))), \"\")","v":""},{"$f":"IF(V198<>\"\", IF(INDEX('Full set Core Client Indicator'!$A$3:$AB$351, MATCH(Selection_Hide2!$A198, 'Full set Core Client Indicator'!$A$3:$A$351, 0), MATCH(Selection_Hide2!W$5, 'Full set Core Client Indicator'!$A$3:$AB$3, 0))=\"\", \"\",  INDEX('Full set Core Client Indicator'!$A$3:$AB$351, MATCH(Selection_Hide2!$A198, 'Full set Core Client Indicator'!$A$3:$A$351, 0), MATCH(Selection_Hide2!W$5, 'Full set Core Client Indicator'!$A$3:$AB$3, 0))), \"\")","v":""},{"$f":"IF(W198<>\"\", IF(INDEX('Full set Core Client Indicator'!$A$3:$AB$351, MATCH(Selection_Hide2!$A198, 'Full set Core Client Indicator'!$A$3:$A$351, 0), MATCH(Selection_Hide2!X$5, 'Full set Core Client Indicator'!$A$3:$AB$3, 0))=\"\", \"\",  INDEX('Full set Core Client Indicator'!$A$3:$AB$351, MATCH(Selection_Hide2!$A198, 'Full set Core Client Indicator'!$A$3:$A$351, 0), MATCH(Selection_Hide2!X$5, 'Full set Core Client Indicator'!$A$3:$AB$3, 0))), \"\")","v":""},{"$f":"IF(X198<>\"\", IF(INDEX('Full set Core Client Indicator'!$A$3:$AB$351, MATCH(Selection_Hide2!$A198, 'Full set Core Client Indicator'!$A$3:$A$351, 0), MATCH(Selection_Hide2!Y$5, 'Full set Core Client Indicator'!$A$3:$AB$3, 0))=\"\", \"\",  INDEX('Full set Core Client Indicator'!$A$3:$AB$351, MATCH(Selection_Hide2!$A198, 'Full set Core Client Indicator'!$A$3:$A$351, 0), MATCH(Selection_Hide2!Y$5, 'Full set Core Client Indicator'!$A$3:$AB$3, 0))), \"\")","v":""},{"$f":"IF(Y198<>\"\", IF(INDEX('Full set Core Client Indicator'!$A$3:$AB$351, MATCH(Selection_Hide2!$A198, 'Full set Core Client Indicator'!$A$3:$A$351, 0), MATCH(Selection_Hide2!Z$5, 'Full set Core Client Indicator'!$A$3:$AB$3, 0))=\"\", \"\",  INDEX('Full set Core Client Indicator'!$A$3:$AB$351, MATCH(Selection_Hide2!$A198, 'Full set Core Client Indicator'!$A$3:$A$351, 0), MATCH(Selection_Hide2!Z$5, 'Full set Core Client Indicator'!$A$3:$AB$3, 0))), \"\")","v":""},{"$f":"IF(Z198<>\"\", IF(INDEX('Full set Core Client Indicator'!$A$3:$AB$351, MATCH(Selection_Hide2!$A198, 'Full set Core Client Indicator'!$A$3:$A$351, 0), MATCH(Selection_Hide2!AA$5, 'Full set Core Client Indicator'!$A$3:$AB$3, 0))=\"\", \"\",  INDEX('Full set Core Client Indicator'!$A$3:$AB$351, MATCH(Selection_Hide2!$A198, 'Full set Core Client Indicator'!$A$3:$A$351, 0), MATCH(Selection_Hide2!AA$5, 'Full set Core Client Indicator'!$A$3:$AB$3, 0))), \"\")","v":""},{"$f":"IF(AA198<>\"\", IF(INDEX('Full set Core Client Indicator'!$A$3:$AB$351, MATCH(Selection_Hide2!$A198, 'Full set Core Client Indicator'!$A$3:$A$351, 0), MATCH(Selection_Hide2!AB$5, 'Full set Core Client Indicator'!$A$3:$AB$3, 0))=\"\", \"\",  INDEX('Full set Core Client Indicator'!$A$3:$AB$351, MATCH(Selection_Hide2!$A198, 'Full set Core Client Indicator'!$A$3:$A$351, 0), MATCH(Selection_Hide2!AB$5, 'Full set Core Client Indicator'!$A$3:$AB$3, 0))), \"\")","v":""}]
[{"$f":"IF(AND(Selection_Hide1!C197<>0, Selection_Hide1!C197<>\"Grand Total\"), Selection_Hide1!C197, \"\")","v":""},{"$f":"IF(A199<>\"\", IF(INDEX('Full set Core Client Indicator'!$A$3:$AB$351, MATCH(Selection_Hide2!$A199, 'Full set Core Client Indicator'!$A$3:$A$351, 0), MATCH(Selection_Hide2!B$5, 'Full set Core Client Indicator'!$A$3:$AB$3, 0))=\"\", \"\",  INDEX('Full set Core Client Indicator'!$A$3:$AB$351, MATCH(Selection_Hide2!$A199, 'Full set Core Client Indicator'!$A$3:$A$351, 0), MATCH(Selection_Hide2!B$5, 'Full set Core Client Indicator'!$A$3:$AB$3, 0))), \"\")","v":""},{"$f":"IF(B199<>\"\", IF(INDEX('Full set Core Client Indicator'!$A$3:$AB$351, MATCH(Selection_Hide2!$A199, 'Full set Core Client Indicator'!$A$3:$A$351, 0), MATCH(Selection_Hide2!C$5, 'Full set Core Client Indicator'!$A$3:$AB$3, 0))=\"\", \"\",  INDEX('Full set Core Client Indicator'!$A$3:$AB$351, MATCH(Selection_Hide2!$A199, 'Full set Core Client Indicator'!$A$3:$A$351, 0), MATCH(Selection_Hide2!C$5, 'Full set Core Client Indicator'!$A$3:$AB$3, 0))), \"\")","v":""},{"$f":"IF(C199<>\"\", IF(INDEX('Full set Core Client Indicator'!$A$3:$AB$351, MATCH(Selection_Hide2!$A199, 'Full set Core Client Indicator'!$A$3:$A$351, 0), MATCH(Selection_Hide2!D$5, 'Full set Core Client Indicator'!$A$3:$AB$3, 0))=\"\", \"\",  INDEX('Full set Core Client Indicator'!$A$3:$AB$351, MATCH(Selection_Hide2!$A199, 'Full set Core Client Indicator'!$A$3:$A$351, 0), MATCH(Selection_Hide2!D$5, 'Full set Core Client Indicator'!$A$3:$AB$3, 0))), \"\")","v":""},{"$f":"IF(D199<>\"\", IF(INDEX('Full set Core Client Indicator'!$A$3:$AB$351, MATCH(Selection_Hide2!$A199, 'Full set Core Client Indicator'!$A$3:$A$351, 0), MATCH(Selection_Hide2!E$5, 'Full set Core Client Indicator'!$A$3:$AB$3, 0))=\"\", \"\",  INDEX('Full set Core Client Indicator'!$A$3:$AB$351, MATCH(Selection_Hide2!$A199, 'Full set Core Client Indicator'!$A$3:$A$351, 0), MATCH(Selection_Hide2!E$5, 'Full set Core Client Indicator'!$A$3:$AB$3, 0))), \"\")","v":""},{"$f":"IF(E199<>\"\", IF(INDEX('Full set Core Client Indicator'!$A$3:$AB$351, MATCH(Selection_Hide2!$A199, 'Full set Core Client Indicator'!$A$3:$A$351, 0), MATCH(Selection_Hide2!F$5, 'Full set Core Client Indicator'!$A$3:$AB$3, 0))=\"\", \"\",  INDEX('Full set Core Client Indicator'!$A$3:$AB$351, MATCH(Selection_Hide2!$A199, 'Full set Core Client Indicator'!$A$3:$A$351, 0), MATCH(Selection_Hide2!F$5, 'Full set Core Client Indicator'!$A$3:$AB$3, 0))), \"\")","v":""},{"$f":"IF(F199<>\"\", IF(INDEX('Full set Core Client Indicator'!$A$3:$AB$351, MATCH(Selection_Hide2!$A199, 'Full set Core Client Indicator'!$A$3:$A$351, 0), MATCH(Selection_Hide2!G$5, 'Full set Core Client Indicator'!$A$3:$AB$3, 0))=\"\", \"\",  INDEX('Full set Core Client Indicator'!$A$3:$AB$351, MATCH(Selection_Hide2!$A199, 'Full set Core Client Indicator'!$A$3:$A$351, 0), MATCH(Selection_Hide2!G$5, 'Full set Core Client Indicator'!$A$3:$AB$3, 0))), \"\")","v":""},{"$f":"IF(G199<>\"\", IF(INDEX('Full set Core Client Indicator'!$A$3:$AB$351, MATCH(Selection_Hide2!$A199, 'Full set Core Client Indicator'!$A$3:$A$351, 0), MATCH(Selection_Hide2!H$5, 'Full set Core Client Indicator'!$A$3:$AB$3, 0))=\"\", \"\",  INDEX('Full set Core Client Indicator'!$A$3:$AB$351, MATCH(Selection_Hide2!$A199, 'Full set Core Client Indicator'!$A$3:$A$351, 0), MATCH(Selection_Hide2!H$5, 'Full set Core Client Indicator'!$A$3:$AB$3, 0))), \"\")","v":""},{"$f":"IF(H199<>\"\", IF(INDEX('Full set Core Client Indicator'!$A$3:$AB$351, MATCH(Selection_Hide2!$A199, 'Full set Core Client Indicator'!$A$3:$A$351, 0), MATCH(Selection_Hide2!I$5, 'Full set Core Client Indicator'!$A$3:$AB$3, 0))=\"\", \"\",  INDEX('Full set Core Client Indicator'!$A$3:$AB$351, MATCH(Selection_Hide2!$A199, 'Full set Core Client Indicator'!$A$3:$A$351, 0), MATCH(Selection_Hide2!I$5, 'Full set Core Client Indicator'!$A$3:$AB$3, 0))), \"\")","v":""},{"$f":"IF(I199<>\"\", IF(INDEX('Full set Core Client Indicator'!$A$3:$AB$351, MATCH(Selection_Hide2!$A199, 'Full set Core Client Indicator'!$A$3:$A$351, 0), MATCH(Selection_Hide2!J$5, 'Full set Core Client Indicator'!$A$3:$AB$3, 0))=\"\", \"\",  INDEX('Full set Core Client Indicator'!$A$3:$AB$351, MATCH(Selection_Hide2!$A199, 'Full set Core Client Indicator'!$A$3:$A$351, 0), MATCH(Selection_Hide2!J$5, 'Full set Core Client Indicator'!$A$3:$AB$3, 0))), \"\")","v":""},{"$f":"IF(J199<>\"\", IF(INDEX('Full set Core Client Indicator'!$A$3:$AB$351, MATCH(Selection_Hide2!$A199, 'Full set Core Client Indicator'!$A$3:$A$351, 0), MATCH(Selection_Hide2!K$5, 'Full set Core Client Indicator'!$A$3:$AB$3, 0))=\"\", \"\",  INDEX('Full set Core Client Indicator'!$A$3:$AB$351, MATCH(Selection_Hide2!$A199, 'Full set Core Client Indicator'!$A$3:$A$351, 0), MATCH(Selection_Hide2!K$5, 'Full set Core Client Indicator'!$A$3:$AB$3, 0))), \"\")","v":""},{"$f":"IF(K199<>\"\", IF(INDEX('Full set Core Client Indicator'!$A$3:$AB$351, MATCH(Selection_Hide2!$A199, 'Full set Core Client Indicator'!$A$3:$A$351, 0), MATCH(Selection_Hide2!L$5, 'Full set Core Client Indicator'!$A$3:$AB$3, 0))=\"\", \"\",  INDEX('Full set Core Client Indicator'!$A$3:$AB$351, MATCH(Selection_Hide2!$A199, 'Full set Core Client Indicator'!$A$3:$A$351, 0), MATCH(Selection_Hide2!L$5, 'Full set Core Client Indicator'!$A$3:$AB$3, 0))), \"\")","v":""},{"$f":"IF(L199<>\"\", IF(INDEX('Full set Core Client Indicator'!$A$3:$AB$351, MATCH(Selection_Hide2!$A199, 'Full set Core Client Indicator'!$A$3:$A$351, 0), MATCH(Selection_Hide2!M$5, 'Full set Core Client Indicator'!$A$3:$AB$3, 0))=\"\", \"\",  INDEX('Full set Core Client Indicator'!$A$3:$AB$351, MATCH(Selection_Hide2!$A199, 'Full set Core Client Indicator'!$A$3:$A$351, 0), MATCH(Selection_Hide2!M$5, 'Full set Core Client Indicator'!$A$3:$AB$3, 0))), \"\")","v":""},{"$f":"IF(M199<>\"\", IF(INDEX('Full set Core Client Indicator'!$A$3:$AB$351, MATCH(Selection_Hide2!$A199, 'Full set Core Client Indicator'!$A$3:$A$351, 0), MATCH(Selection_Hide2!N$5, 'Full set Core Client Indicator'!$A$3:$AB$3, 0))=\"\", \"\",  INDEX('Full set Core Client Indicator'!$A$3:$AB$351, MATCH(Selection_Hide2!$A199, 'Full set Core Client Indicator'!$A$3:$A$351, 0), MATCH(Selection_Hide2!N$5, 'Full set Core Client Indicator'!$A$3:$AB$3, 0))), \"\")","v":""},{"$f":"IF(N199<>\"\", IF(INDEX('Full set Core Client Indicator'!$A$3:$AB$351, MATCH(Selection_Hide2!$A199, 'Full set Core Client Indicator'!$A$3:$A$351, 0), MATCH(Selection_Hide2!O$5, 'Full set Core Client Indicator'!$A$3:$AB$3, 0))=\"\", \"\",  INDEX('Full set Core Client Indicator'!$A$3:$AB$351, MATCH(Selection_Hide2!$A199, 'Full set Core Client Indicator'!$A$3:$A$351, 0), MATCH(Selection_Hide2!O$5, 'Full set Core Client Indicator'!$A$3:$AB$3, 0))), \"\")","v":""},{"$f":"IF(O199<>\"\", IF(INDEX('Full set Core Client Indicator'!$A$3:$AB$351, MATCH(Selection_Hide2!$A199, 'Full set Core Client Indicator'!$A$3:$A$351, 0), MATCH(Selection_Hide2!P$5, 'Full set Core Client Indicator'!$A$3:$AB$3, 0))=\"\", \"\",  INDEX('Full set Core Client Indicator'!$A$3:$AB$351, MATCH(Selection_Hide2!$A199, 'Full set Core Client Indicator'!$A$3:$A$351, 0), MATCH(Selection_Hide2!P$5, 'Full set Core Client Indicator'!$A$3:$AB$3, 0))), \"\")","v":""},{"$f":"IF(P199<>\"\", IF(INDEX('Full set Core Client Indicator'!$A$3:$AB$351, MATCH(Selection_Hide2!$A199, 'Full set Core Client Indicator'!$A$3:$A$351, 0), MATCH(Selection_Hide2!Q$5, 'Full set Core Client Indicator'!$A$3:$AB$3, 0))=\"\", \"\",  INDEX('Full set Core Client Indicator'!$A$3:$AB$351, MATCH(Selection_Hide2!$A199, 'Full set Core Client Indicator'!$A$3:$A$351, 0), MATCH(Selection_Hide2!Q$5, 'Full set Core Client Indicator'!$A$3:$AB$3, 0))), \"\")","v":""},{"$f":"IF(Q199<>\"\", IF(INDEX('Full set Core Client Indicator'!$A$3:$AB$351, MATCH(Selection_Hide2!$A199, 'Full set Core Client Indicator'!$A$3:$A$351, 0), MATCH(Selection_Hide2!R$5, 'Full set Core Client Indicator'!$A$3:$AB$3, 0))=\"\", \"\",  INDEX('Full set Core Client Indicator'!$A$3:$AB$351, MATCH(Selection_Hide2!$A199, 'Full set Core Client Indicator'!$A$3:$A$351, 0), MATCH(Selection_Hide2!R$5, 'Full set Core Client Indicator'!$A$3:$AB$3, 0))), \"\")","v":""},{"$f":"IF(R199<>\"\", IF(INDEX('Full set Core Client Indicator'!$A$3:$AB$351, MATCH(Selection_Hide2!$A199, 'Full set Core Client Indicator'!$A$3:$A$351, 0), MATCH(Selection_Hide2!S$5, 'Full set Core Client Indicator'!$A$3:$AB$3, 0))=\"\", \"\",  INDEX('Full set Core Client Indicator'!$A$3:$AB$351, MATCH(Selection_Hide2!$A199, 'Full set Core Client Indicator'!$A$3:$A$351, 0), MATCH(Selection_Hide2!S$5, 'Full set Core Client Indicator'!$A$3:$AB$3, 0))), \"\")","v":""},{"$f":"IF(S199<>\"\", IF(INDEX('Full set Core Client Indicator'!$A$3:$AB$351, MATCH(Selection_Hide2!$A199, 'Full set Core Client Indicator'!$A$3:$A$351, 0), MATCH(Selection_Hide2!T$5, 'Full set Core Client Indicator'!$A$3:$AB$3, 0))=\"\", \"\",  INDEX('Full set Core Client Indicator'!$A$3:$AB$351, MATCH(Selection_Hide2!$A199, 'Full set Core Client Indicator'!$A$3:$A$351, 0), MATCH(Selection_Hide2!T$5, 'Full set Core Client Indicator'!$A$3:$AB$3, 0))), \"\")","v":""},{"$f":"IF(T199<>\"\", IF(INDEX('Full set Core Client Indicator'!$A$3:$AB$351, MATCH(Selection_Hide2!$A199, 'Full set Core Client Indicator'!$A$3:$A$351, 0), MATCH(Selection_Hide2!U$5, 'Full set Core Client Indicator'!$A$3:$AB$3, 0))=\"\", \"\",  INDEX('Full set Core Client Indicator'!$A$3:$AB$351, MATCH(Selection_Hide2!$A199, 'Full set Core Client Indicator'!$A$3:$A$351, 0), MATCH(Selection_Hide2!U$5, 'Full set Core Client Indicator'!$A$3:$AB$3, 0))), \"\")","v":""},{"$f":"IF(U199<>\"\", IF(INDEX('Full set Core Client Indicator'!$A$3:$AB$351, MATCH(Selection_Hide2!$A199, 'Full set Core Client Indicator'!$A$3:$A$351, 0), MATCH(Selection_Hide2!V$5, 'Full set Core Client Indicator'!$A$3:$AB$3, 0))=\"\", \"\",  INDEX('Full set Core Client Indicator'!$A$3:$AB$351, MATCH(Selection_Hide2!$A199, 'Full set Core Client Indicator'!$A$3:$A$351, 0), MATCH(Selection_Hide2!V$5, 'Full set Core Client Indicator'!$A$3:$AB$3, 0))), \"\")","v":""},{"$f":"IF(V199<>\"\", IF(INDEX('Full set Core Client Indicator'!$A$3:$AB$351, MATCH(Selection_Hide2!$A199, 'Full set Core Client Indicator'!$A$3:$A$351, 0), MATCH(Selection_Hide2!W$5, 'Full set Core Client Indicator'!$A$3:$AB$3, 0))=\"\", \"\",  INDEX('Full set Core Client Indicator'!$A$3:$AB$351, MATCH(Selection_Hide2!$A199, 'Full set Core Client Indicator'!$A$3:$A$351, 0), MATCH(Selection_Hide2!W$5, 'Full set Core Client Indicator'!$A$3:$AB$3, 0))), \"\")","v":""},{"$f":"IF(W199<>\"\", IF(INDEX('Full set Core Client Indicator'!$A$3:$AB$351, MATCH(Selection_Hide2!$A199, 'Full set Core Client Indicator'!$A$3:$A$351, 0), MATCH(Selection_Hide2!X$5, 'Full set Core Client Indicator'!$A$3:$AB$3, 0))=\"\", \"\",  INDEX('Full set Core Client Indicator'!$A$3:$AB$351, MATCH(Selection_Hide2!$A199, 'Full set Core Client Indicator'!$A$3:$A$351, 0), MATCH(Selection_Hide2!X$5, 'Full set Core Client Indicator'!$A$3:$AB$3, 0))), \"\")","v":""},{"$f":"IF(X199<>\"\", IF(INDEX('Full set Core Client Indicator'!$A$3:$AB$351, MATCH(Selection_Hide2!$A199, 'Full set Core Client Indicator'!$A$3:$A$351, 0), MATCH(Selection_Hide2!Y$5, 'Full set Core Client Indicator'!$A$3:$AB$3, 0))=\"\", \"\",  INDEX('Full set Core Client Indicator'!$A$3:$AB$351, MATCH(Selection_Hide2!$A199, 'Full set Core Client Indicator'!$A$3:$A$351, 0), MATCH(Selection_Hide2!Y$5, 'Full set Core Client Indicator'!$A$3:$AB$3, 0))), \"\")","v":""},{"$f":"IF(Y199<>\"\", IF(INDEX('Full set Core Client Indicator'!$A$3:$AB$351, MATCH(Selection_Hide2!$A199, 'Full set Core Client Indicator'!$A$3:$A$351, 0), MATCH(Selection_Hide2!Z$5, 'Full set Core Client Indicator'!$A$3:$AB$3, 0))=\"\", \"\",  INDEX('Full set Core Client Indicator'!$A$3:$AB$351, MATCH(Selection_Hide2!$A199, 'Full set Core Client Indicator'!$A$3:$A$351, 0), MATCH(Selection_Hide2!Z$5, 'Full set Core Client Indicator'!$A$3:$AB$3, 0))), \"\")","v":""},{"$f":"IF(Z199<>\"\", IF(INDEX('Full set Core Client Indicator'!$A$3:$AB$351, MATCH(Selection_Hide2!$A199, 'Full set Core Client Indicator'!$A$3:$A$351, 0), MATCH(Selection_Hide2!AA$5, 'Full set Core Client Indicator'!$A$3:$AB$3, 0))=\"\", \"\",  INDEX('Full set Core Client Indicator'!$A$3:$AB$351, MATCH(Selection_Hide2!$A199, 'Full set Core Client Indicator'!$A$3:$A$351, 0), MATCH(Selection_Hide2!AA$5, 'Full set Core Client Indicator'!$A$3:$AB$3, 0))), \"\")","v":""},{"$f":"IF(AA199<>\"\", IF(INDEX('Full set Core Client Indicator'!$A$3:$AB$351, MATCH(Selection_Hide2!$A199, 'Full set Core Client Indicator'!$A$3:$A$351, 0), MATCH(Selection_Hide2!AB$5, 'Full set Core Client Indicator'!$A$3:$AB$3, 0))=\"\", \"\",  INDEX('Full set Core Client Indicator'!$A$3:$AB$351, MATCH(Selection_Hide2!$A199, 'Full set Core Client Indicator'!$A$3:$A$351, 0), MATCH(Selection_Hide2!AB$5, 'Full set Core Client Indicator'!$A$3:$AB$3, 0))), \"\")","v":""}]
[{"$f":"IF(AND(Selection_Hide1!C198<>0, Selection_Hide1!C198<>\"Grand Total\"), Selection_Hide1!C198, \"\")","v":""},{"$f":"IF(A200<>\"\", IF(INDEX('Full set Core Client Indicator'!$A$3:$AB$351, MATCH(Selection_Hide2!$A200, 'Full set Core Client Indicator'!$A$3:$A$351, 0), MATCH(Selection_Hide2!B$5, 'Full set Core Client Indicator'!$A$3:$AB$3, 0))=\"\", \"\",  INDEX('Full set Core Client Indicator'!$A$3:$AB$351, MATCH(Selection_Hide2!$A200, 'Full set Core Client Indicator'!$A$3:$A$351, 0), MATCH(Selection_Hide2!B$5, 'Full set Core Client Indicator'!$A$3:$AB$3, 0))), \"\")","v":""},{"$f":"IF(B200<>\"\", IF(INDEX('Full set Core Client Indicator'!$A$3:$AB$351, MATCH(Selection_Hide2!$A200, 'Full set Core Client Indicator'!$A$3:$A$351, 0), MATCH(Selection_Hide2!C$5, 'Full set Core Client Indicator'!$A$3:$AB$3, 0))=\"\", \"\",  INDEX('Full set Core Client Indicator'!$A$3:$AB$351, MATCH(Selection_Hide2!$A200, 'Full set Core Client Indicator'!$A$3:$A$351, 0), MATCH(Selection_Hide2!C$5, 'Full set Core Client Indicator'!$A$3:$AB$3, 0))), \"\")","v":""},{"$f":"IF(C200<>\"\", IF(INDEX('Full set Core Client Indicator'!$A$3:$AB$351, MATCH(Selection_Hide2!$A200, 'Full set Core Client Indicator'!$A$3:$A$351, 0), MATCH(Selection_Hide2!D$5, 'Full set Core Client Indicator'!$A$3:$AB$3, 0))=\"\", \"\",  INDEX('Full set Core Client Indicator'!$A$3:$AB$351, MATCH(Selection_Hide2!$A200, 'Full set Core Client Indicator'!$A$3:$A$351, 0), MATCH(Selection_Hide2!D$5, 'Full set Core Client Indicator'!$A$3:$AB$3, 0))), \"\")","v":""},{"$f":"IF(D200<>\"\", IF(INDEX('Full set Core Client Indicator'!$A$3:$AB$351, MATCH(Selection_Hide2!$A200, 'Full set Core Client Indicator'!$A$3:$A$351, 0), MATCH(Selection_Hide2!E$5, 'Full set Core Client Indicator'!$A$3:$AB$3, 0))=\"\", \"\",  INDEX('Full set Core Client Indicator'!$A$3:$AB$351, MATCH(Selection_Hide2!$A200, 'Full set Core Client Indicator'!$A$3:$A$351, 0), MATCH(Selection_Hide2!E$5, 'Full set Core Client Indicator'!$A$3:$AB$3, 0))), \"\")","v":""},{"$f":"IF(E200<>\"\", IF(INDEX('Full set Core Client Indicator'!$A$3:$AB$351, MATCH(Selection_Hide2!$A200, 'Full set Core Client Indicator'!$A$3:$A$351, 0), MATCH(Selection_Hide2!F$5, 'Full set Core Client Indicator'!$A$3:$AB$3, 0))=\"\", \"\",  INDEX('Full set Core Client Indicator'!$A$3:$AB$351, MATCH(Selection_Hide2!$A200, 'Full set Core Client Indicator'!$A$3:$A$351, 0), MATCH(Selection_Hide2!F$5, 'Full set Core Client Indicator'!$A$3:$AB$3, 0))), \"\")","v":""},{"$f":"IF(F200<>\"\", IF(INDEX('Full set Core Client Indicator'!$A$3:$AB$351, MATCH(Selection_Hide2!$A200, 'Full set Core Client Indicator'!$A$3:$A$351, 0), MATCH(Selection_Hide2!G$5, 'Full set Core Client Indicator'!$A$3:$AB$3, 0))=\"\", \"\",  INDEX('Full set Core Client Indicator'!$A$3:$AB$351, MATCH(Selection_Hide2!$A200, 'Full set Core Client Indicator'!$A$3:$A$351, 0), MATCH(Selection_Hide2!G$5, 'Full set Core Client Indicator'!$A$3:$AB$3, 0))), \"\")","v":""},{"$f":"IF(G200<>\"\", IF(INDEX('Full set Core Client Indicator'!$A$3:$AB$351, MATCH(Selection_Hide2!$A200, 'Full set Core Client Indicator'!$A$3:$A$351, 0), MATCH(Selection_Hide2!H$5, 'Full set Core Client Indicator'!$A$3:$AB$3, 0))=\"\", \"\",  INDEX('Full set Core Client Indicator'!$A$3:$AB$351, MATCH(Selection_Hide2!$A200, 'Full set Core Client Indicator'!$A$3:$A$351, 0), MATCH(Selection_Hide2!H$5, 'Full set Core Client Indicator'!$A$3:$AB$3, 0))), \"\")","v":""},{"$f":"IF(H200<>\"\", IF(INDEX('Full set Core Client Indicator'!$A$3:$AB$351, MATCH(Selection_Hide2!$A200, 'Full set Core Client Indicator'!$A$3:$A$351, 0), MATCH(Selection_Hide2!I$5, 'Full set Core Client Indicator'!$A$3:$AB$3, 0))=\"\", \"\",  INDEX('Full set Core Client Indicator'!$A$3:$AB$351, MATCH(Selection_Hide2!$A200, 'Full set Core Client Indicator'!$A$3:$A$351, 0), MATCH(Selection_Hide2!I$5, 'Full set Core Client Indicator'!$A$3:$AB$3, 0))), \"\")","v":""},{"$f":"IF(I200<>\"\", IF(INDEX('Full set Core Client Indicator'!$A$3:$AB$351, MATCH(Selection_Hide2!$A200, 'Full set Core Client Indicator'!$A$3:$A$351, 0), MATCH(Selection_Hide2!J$5, 'Full set Core Client Indicator'!$A$3:$AB$3, 0))=\"\", \"\",  INDEX('Full set Core Client Indicator'!$A$3:$AB$351, MATCH(Selection_Hide2!$A200, 'Full set Core Client Indicator'!$A$3:$A$351, 0), MATCH(Selection_Hide2!J$5, 'Full set Core Client Indicator'!$A$3:$AB$3, 0))), \"\")","v":""},{"$f":"IF(J200<>\"\", IF(INDEX('Full set Core Client Indicator'!$A$3:$AB$351, MATCH(Selection_Hide2!$A200, 'Full set Core Client Indicator'!$A$3:$A$351, 0), MATCH(Selection_Hide2!K$5, 'Full set Core Client Indicator'!$A$3:$AB$3, 0))=\"\", \"\",  INDEX('Full set Core Client Indicator'!$A$3:$AB$351, MATCH(Selection_Hide2!$A200, 'Full set Core Client Indicator'!$A$3:$A$351, 0), MATCH(Selection_Hide2!K$5, 'Full set Core Client Indicator'!$A$3:$AB$3, 0))), \"\")","v":""},{"$f":"IF(K200<>\"\", IF(INDEX('Full set Core Client Indicator'!$A$3:$AB$351, MATCH(Selection_Hide2!$A200, 'Full set Core Client Indicator'!$A$3:$A$351, 0), MATCH(Selection_Hide2!L$5, 'Full set Core Client Indicator'!$A$3:$AB$3, 0))=\"\", \"\",  INDEX('Full set Core Client Indicator'!$A$3:$AB$351, MATCH(Selection_Hide2!$A200, 'Full set Core Client Indicator'!$A$3:$A$351, 0), MATCH(Selection_Hide2!L$5, 'Full set Core Client Indicator'!$A$3:$AB$3, 0))), \"\")","v":""},{"$f":"IF(L200<>\"\", IF(INDEX('Full set Core Client Indicator'!$A$3:$AB$351, MATCH(Selection_Hide2!$A200, 'Full set Core Client Indicator'!$A$3:$A$351, 0), MATCH(Selection_Hide2!M$5, 'Full set Core Client Indicator'!$A$3:$AB$3, 0))=\"\", \"\",  INDEX('Full set Core Client Indicator'!$A$3:$AB$351, MATCH(Selection_Hide2!$A200, 'Full set Core Client Indicator'!$A$3:$A$351, 0), MATCH(Selection_Hide2!M$5, 'Full set Core Client Indicator'!$A$3:$AB$3, 0))), \"\")","v":""},{"$f":"IF(M200<>\"\", IF(INDEX('Full set Core Client Indicator'!$A$3:$AB$351, MATCH(Selection_Hide2!$A200, 'Full set Core Client Indicator'!$A$3:$A$351, 0), MATCH(Selection_Hide2!N$5, 'Full set Core Client Indicator'!$A$3:$AB$3, 0))=\"\", \"\",  INDEX('Full set Core Client Indicator'!$A$3:$AB$351, MATCH(Selection_Hide2!$A200, 'Full set Core Client Indicator'!$A$3:$A$351, 0), MATCH(Selection_Hide2!N$5, 'Full set Core Client Indicator'!$A$3:$AB$3, 0))), \"\")","v":""},{"$f":"IF(N200<>\"\", IF(INDEX('Full set Core Client Indicator'!$A$3:$AB$351, MATCH(Selection_Hide2!$A200, 'Full set Core Client Indicator'!$A$3:$A$351, 0), MATCH(Selection_Hide2!O$5, 'Full set Core Client Indicator'!$A$3:$AB$3, 0))=\"\", \"\",  INDEX('Full set Core Client Indicator'!$A$3:$AB$351, MATCH(Selection_Hide2!$A200, 'Full set Core Client Indicator'!$A$3:$A$351, 0), MATCH(Selection_Hide2!O$5, 'Full set Core Client Indicator'!$A$3:$AB$3, 0))), \"\")","v":""},{"$f":"IF(O200<>\"\", IF(INDEX('Full set Core Client Indicator'!$A$3:$AB$351, MATCH(Selection_Hide2!$A200, 'Full set Core Client Indicator'!$A$3:$A$351, 0), MATCH(Selection_Hide2!P$5, 'Full set Core Client Indicator'!$A$3:$AB$3, 0))=\"\", \"\",  INDEX('Full set Core Client Indicator'!$A$3:$AB$351, MATCH(Selection_Hide2!$A200, 'Full set Core Client Indicator'!$A$3:$A$351, 0), MATCH(Selection_Hide2!P$5, 'Full set Core Client Indicator'!$A$3:$AB$3, 0))), \"\")","v":""},{"$f":"IF(P200<>\"\", IF(INDEX('Full set Core Client Indicator'!$A$3:$AB$351, MATCH(Selection_Hide2!$A200, 'Full set Core Client Indicator'!$A$3:$A$351, 0), MATCH(Selection_Hide2!Q$5, 'Full set Core Client Indicator'!$A$3:$AB$3, 0))=\"\", \"\",  INDEX('Full set Core Client Indicator'!$A$3:$AB$351, MATCH(Selection_Hide2!$A200, 'Full set Core Client Indicator'!$A$3:$A$351, 0), MATCH(Selection_Hide2!Q$5, 'Full set Core Client Indicator'!$A$3:$AB$3, 0))), \"\")","v":""},{"$f":"IF(Q200<>\"\", IF(INDEX('Full set Core Client Indicator'!$A$3:$AB$351, MATCH(Selection_Hide2!$A200, 'Full set Core Client Indicator'!$A$3:$A$351, 0), MATCH(Selection_Hide2!R$5, 'Full set Core Client Indicator'!$A$3:$AB$3, 0))=\"\", \"\",  INDEX('Full set Core Client Indicator'!$A$3:$AB$351, MATCH(Selection_Hide2!$A200, 'Full set Core Client Indicator'!$A$3:$A$351, 0), MATCH(Selection_Hide2!R$5, 'Full set Core Client Indicator'!$A$3:$AB$3, 0))), \"\")","v":""},{"$f":"IF(R200<>\"\", IF(INDEX('Full set Core Client Indicator'!$A$3:$AB$351, MATCH(Selection_Hide2!$A200, 'Full set Core Client Indicator'!$A$3:$A$351, 0), MATCH(Selection_Hide2!S$5, 'Full set Core Client Indicator'!$A$3:$AB$3, 0))=\"\", \"\",  INDEX('Full set Core Client Indicator'!$A$3:$AB$351, MATCH(Selection_Hide2!$A200, 'Full set Core Client Indicator'!$A$3:$A$351, 0), MATCH(Selection_Hide2!S$5, 'Full set Core Client Indicator'!$A$3:$AB$3, 0))), \"\")","v":""},{"$f":"IF(S200<>\"\", IF(INDEX('Full set Core Client Indicator'!$A$3:$AB$351, MATCH(Selection_Hide2!$A200, 'Full set Core Client Indicator'!$A$3:$A$351, 0), MATCH(Selection_Hide2!T$5, 'Full set Core Client Indicator'!$A$3:$AB$3, 0))=\"\", \"\",  INDEX('Full set Core Client Indicator'!$A$3:$AB$351, MATCH(Selection_Hide2!$A200, 'Full set Core Client Indicator'!$A$3:$A$351, 0), MATCH(Selection_Hide2!T$5, 'Full set Core Client Indicator'!$A$3:$AB$3, 0))), \"\")","v":""},{"$f":"IF(T200<>\"\", IF(INDEX('Full set Core Client Indicator'!$A$3:$AB$351, MATCH(Selection_Hide2!$A200, 'Full set Core Client Indicator'!$A$3:$A$351, 0), MATCH(Selection_Hide2!U$5, 'Full set Core Client Indicator'!$A$3:$AB$3, 0))=\"\", \"\",  INDEX('Full set Core Client Indicator'!$A$3:$AB$351, MATCH(Selection_Hide2!$A200, 'Full set Core Client Indicator'!$A$3:$A$351, 0), MATCH(Selection_Hide2!U$5, 'Full set Core Client Indicator'!$A$3:$AB$3, 0))), \"\")","v":""},{"$f":"IF(U200<>\"\", IF(INDEX('Full set Core Client Indicator'!$A$3:$AB$351, MATCH(Selection_Hide2!$A200, 'Full set Core Client Indicator'!$A$3:$A$351, 0), MATCH(Selection_Hide2!V$5, 'Full set Core Client Indicator'!$A$3:$AB$3, 0))=\"\", \"\",  INDEX('Full set Core Client Indicator'!$A$3:$AB$351, MATCH(Selection_Hide2!$A200, 'Full set Core Client Indicator'!$A$3:$A$351, 0), MATCH(Selection_Hide2!V$5, 'Full set Core Client Indicator'!$A$3:$AB$3, 0))), \"\")","v":""},{"$f":"IF(V200<>\"\", IF(INDEX('Full set Core Client Indicator'!$A$3:$AB$351, MATCH(Selection_Hide2!$A200, 'Full set Core Client Indicator'!$A$3:$A$351, 0), MATCH(Selection_Hide2!W$5, 'Full set Core Client Indicator'!$A$3:$AB$3, 0))=\"\", \"\",  INDEX('Full set Core Client Indicator'!$A$3:$AB$351, MATCH(Selection_Hide2!$A200, 'Full set Core Client Indicator'!$A$3:$A$351, 0), MATCH(Selection_Hide2!W$5, 'Full set Core Client Indicator'!$A$3:$AB$3, 0))), \"\")","v":""},{"$f":"IF(W200<>\"\", IF(INDEX('Full set Core Client Indicator'!$A$3:$AB$351, MATCH(Selection_Hide2!$A200, 'Full set Core Client Indicator'!$A$3:$A$351, 0), MATCH(Selection_Hide2!X$5, 'Full set Core Client Indicator'!$A$3:$AB$3, 0))=\"\", \"\",  INDEX('Full set Core Client Indicator'!$A$3:$AB$351, MATCH(Selection_Hide2!$A200, 'Full set Core Client Indicator'!$A$3:$A$351, 0), MATCH(Selection_Hide2!X$5, 'Full set Core Client Indicator'!$A$3:$AB$3, 0))), \"\")","v":""},{"$f":"IF(X200<>\"\", IF(INDEX('Full set Core Client Indicator'!$A$3:$AB$351, MATCH(Selection_Hide2!$A200, 'Full set Core Client Indicator'!$A$3:$A$351, 0), MATCH(Selection_Hide2!Y$5, 'Full set Core Client Indicator'!$A$3:$AB$3, 0))=\"\", \"\",  INDEX('Full set Core Client Indicator'!$A$3:$AB$351, MATCH(Selection_Hide2!$A200, 'Full set Core Client Indicator'!$A$3:$A$351, 0), MATCH(Selection_Hide2!Y$5, 'Full set Core Client Indicator'!$A$3:$AB$3, 0))), \"\")","v":""},{"$f":"IF(Y200<>\"\", IF(INDEX('Full set Core Client Indicator'!$A$3:$AB$351, MATCH(Selection_Hide2!$A200, 'Full set Core Client Indicator'!$A$3:$A$351, 0), MATCH(Selection_Hide2!Z$5, 'Full set Core Client Indicator'!$A$3:$AB$3, 0))=\"\", \"\",  INDEX('Full set Core Client Indicator'!$A$3:$AB$351, MATCH(Selection_Hide2!$A200, 'Full set Core Client Indicator'!$A$3:$A$351, 0), MATCH(Selection_Hide2!Z$5, 'Full set Core Client Indicator'!$A$3:$AB$3, 0))), \"\")","v":""},{"$f":"IF(Z200<>\"\", IF(INDEX('Full set Core Client Indicator'!$A$3:$AB$351, MATCH(Selection_Hide2!$A200, 'Full set Core Client Indicator'!$A$3:$A$351, 0), MATCH(Selection_Hide2!AA$5, 'Full set Core Client Indicator'!$A$3:$AB$3, 0))=\"\", \"\",  INDEX('Full set Core Client Indicator'!$A$3:$AB$351, MATCH(Selection_Hide2!$A200, 'Full set Core Client Indicator'!$A$3:$A$351, 0), MATCH(Selection_Hide2!AA$5, 'Full set Core Client Indicator'!$A$3:$AB$3, 0))), \"\")","v":""},{"$f":"IF(AA200<>\"\", IF(INDEX('Full set Core Client Indicator'!$A$3:$AB$351, MATCH(Selection_Hide2!$A200, 'Full set Core Client Indicator'!$A$3:$A$351, 0), MATCH(Selection_Hide2!AB$5, 'Full set Core Client Indicator'!$A$3:$AB$3, 0))=\"\", \"\",  INDEX('Full set Core Client Indicator'!$A$3:$AB$351, MATCH(Selection_Hide2!$A200, 'Full set Core Client Indicator'!$A$3:$A$351, 0), MATCH(Selection_Hide2!AB$5, 'Full set Core Client Indicator'!$A$3:$AB$3, 0))), \"\")","v":""}]
[{"$f":"IF(AND(Selection_Hide1!C199<>0, Selection_Hide1!C199<>\"Grand Total\"), Selection_Hide1!C199, \"\")","v":""},{"$f":"IF(A201<>\"\", IF(INDEX('Full set Core Client Indicator'!$A$3:$AB$351, MATCH(Selection_Hide2!$A201, 'Full set Core Client Indicator'!$A$3:$A$351, 0), MATCH(Selection_Hide2!B$5, 'Full set Core Client Indicator'!$A$3:$AB$3, 0))=\"\", \"\",  INDEX('Full set Core Client Indicator'!$A$3:$AB$351, MATCH(Selection_Hide2!$A201, 'Full set Core Client Indicator'!$A$3:$A$351, 0), MATCH(Selection_Hide2!B$5, 'Full set Core Client Indicator'!$A$3:$AB$3, 0))), \"\")","v":""},{"$f":"IF(B201<>\"\", IF(INDEX('Full set Core Client Indicator'!$A$3:$AB$351, MATCH(Selection_Hide2!$A201, 'Full set Core Client Indicator'!$A$3:$A$351, 0), MATCH(Selection_Hide2!C$5, 'Full set Core Client Indicator'!$A$3:$AB$3, 0))=\"\", \"\",  INDEX('Full set Core Client Indicator'!$A$3:$AB$351, MATCH(Selection_Hide2!$A201, 'Full set Core Client Indicator'!$A$3:$A$351, 0), MATCH(Selection_Hide2!C$5, 'Full set Core Client Indicator'!$A$3:$AB$3, 0))), \"\")","v":""},{"$f":"IF(C201<>\"\", IF(INDEX('Full set Core Client Indicator'!$A$3:$AB$351, MATCH(Selection_Hide2!$A201, 'Full set Core Client Indicator'!$A$3:$A$351, 0), MATCH(Selection_Hide2!D$5, 'Full set Core Client Indicator'!$A$3:$AB$3, 0))=\"\", \"\",  INDEX('Full set Core Client Indicator'!$A$3:$AB$351, MATCH(Selection_Hide2!$A201, 'Full set Core Client Indicator'!$A$3:$A$351, 0), MATCH(Selection_Hide2!D$5, 'Full set Core Client Indicator'!$A$3:$AB$3, 0))), \"\")","v":""},{"$f":"IF(D201<>\"\", IF(INDEX('Full set Core Client Indicator'!$A$3:$AB$351, MATCH(Selection_Hide2!$A201, 'Full set Core Client Indicator'!$A$3:$A$351, 0), MATCH(Selection_Hide2!E$5, 'Full set Core Client Indicator'!$A$3:$AB$3, 0))=\"\", \"\",  INDEX('Full set Core Client Indicator'!$A$3:$AB$351, MATCH(Selection_Hide2!$A201, 'Full set Core Client Indicator'!$A$3:$A$351, 0), MATCH(Selection_Hide2!E$5, 'Full set Core Client Indicator'!$A$3:$AB$3, 0))), \"\")","v":""},{"$f":"IF(E201<>\"\", IF(INDEX('Full set Core Client Indicator'!$A$3:$AB$351, MATCH(Selection_Hide2!$A201, 'Full set Core Client Indicator'!$A$3:$A$351, 0), MATCH(Selection_Hide2!F$5, 'Full set Core Client Indicator'!$A$3:$AB$3, 0))=\"\", \"\",  INDEX('Full set Core Client Indicator'!$A$3:$AB$351, MATCH(Selection_Hide2!$A201, 'Full set Core Client Indicator'!$A$3:$A$351, 0), MATCH(Selection_Hide2!F$5, 'Full set Core Client Indicator'!$A$3:$AB$3, 0))), \"\")","v":""},{"$f":"IF(F201<>\"\", IF(INDEX('Full set Core Client Indicator'!$A$3:$AB$351, MATCH(Selection_Hide2!$A201, 'Full set Core Client Indicator'!$A$3:$A$351, 0), MATCH(Selection_Hide2!G$5, 'Full set Core Client Indicator'!$A$3:$AB$3, 0))=\"\", \"\",  INDEX('Full set Core Client Indicator'!$A$3:$AB$351, MATCH(Selection_Hide2!$A201, 'Full set Core Client Indicator'!$A$3:$A$351, 0), MATCH(Selection_Hide2!G$5, 'Full set Core Client Indicator'!$A$3:$AB$3, 0))), \"\")","v":""},{"$f":"IF(G201<>\"\", IF(INDEX('Full set Core Client Indicator'!$A$3:$AB$351, MATCH(Selection_Hide2!$A201, 'Full set Core Client Indicator'!$A$3:$A$351, 0), MATCH(Selection_Hide2!H$5, 'Full set Core Client Indicator'!$A$3:$AB$3, 0))=\"\", \"\",  INDEX('Full set Core Client Indicator'!$A$3:$AB$351, MATCH(Selection_Hide2!$A201, 'Full set Core Client Indicator'!$A$3:$A$351, 0), MATCH(Selection_Hide2!H$5, 'Full set Core Client Indicator'!$A$3:$AB$3, 0))), \"\")","v":""},{"$f":"IF(H201<>\"\", IF(INDEX('Full set Core Client Indicator'!$A$3:$AB$351, MATCH(Selection_Hide2!$A201, 'Full set Core Client Indicator'!$A$3:$A$351, 0), MATCH(Selection_Hide2!I$5, 'Full set Core Client Indicator'!$A$3:$AB$3, 0))=\"\", \"\",  INDEX('Full set Core Client Indicator'!$A$3:$AB$351, MATCH(Selection_Hide2!$A201, 'Full set Core Client Indicator'!$A$3:$A$351, 0), MATCH(Selection_Hide2!I$5, 'Full set Core Client Indicator'!$A$3:$AB$3, 0))), \"\")","v":""},{"$f":"IF(I201<>\"\", IF(INDEX('Full set Core Client Indicator'!$A$3:$AB$351, MATCH(Selection_Hide2!$A201, 'Full set Core Client Indicator'!$A$3:$A$351, 0), MATCH(Selection_Hide2!J$5, 'Full set Core Client Indicator'!$A$3:$AB$3, 0))=\"\", \"\",  INDEX('Full set Core Client Indicator'!$A$3:$AB$351, MATCH(Selection_Hide2!$A201, 'Full set Core Client Indicator'!$A$3:$A$351, 0), MATCH(Selection_Hide2!J$5, 'Full set Core Client Indicator'!$A$3:$AB$3, 0))), \"\")","v":""},{"$f":"IF(J201<>\"\", IF(INDEX('Full set Core Client Indicator'!$A$3:$AB$351, MATCH(Selection_Hide2!$A201, 'Full set Core Client Indicator'!$A$3:$A$351, 0), MATCH(Selection_Hide2!K$5, 'Full set Core Client Indicator'!$A$3:$AB$3, 0))=\"\", \"\",  INDEX('Full set Core Client Indicator'!$A$3:$AB$351, MATCH(Selection_Hide2!$A201, 'Full set Core Client Indicator'!$A$3:$A$351, 0), MATCH(Selection_Hide2!K$5, 'Full set Core Client Indicator'!$A$3:$AB$3, 0))), \"\")","v":""},{"$f":"IF(K201<>\"\", IF(INDEX('Full set Core Client Indicator'!$A$3:$AB$351, MATCH(Selection_Hide2!$A201, 'Full set Core Client Indicator'!$A$3:$A$351, 0), MATCH(Selection_Hide2!L$5, 'Full set Core Client Indicator'!$A$3:$AB$3, 0))=\"\", \"\",  INDEX('Full set Core Client Indicator'!$A$3:$AB$351, MATCH(Selection_Hide2!$A201, 'Full set Core Client Indicator'!$A$3:$A$351, 0), MATCH(Selection_Hide2!L$5, 'Full set Core Client Indicator'!$A$3:$AB$3, 0))), \"\")","v":""},{"$f":"IF(L201<>\"\", IF(INDEX('Full set Core Client Indicator'!$A$3:$AB$351, MATCH(Selection_Hide2!$A201, 'Full set Core Client Indicator'!$A$3:$A$351, 0), MATCH(Selection_Hide2!M$5, 'Full set Core Client Indicator'!$A$3:$AB$3, 0))=\"\", \"\",  INDEX('Full set Core Client Indicator'!$A$3:$AB$351, MATCH(Selection_Hide2!$A201, 'Full set Core Client Indicator'!$A$3:$A$351, 0), MATCH(Selection_Hide2!M$5, 'Full set Core Client Indicator'!$A$3:$AB$3, 0))), \"\")","v":""},{"$f":"IF(M201<>\"\", IF(INDEX('Full set Core Client Indicator'!$A$3:$AB$351, MATCH(Selection_Hide2!$A201, 'Full set Core Client Indicator'!$A$3:$A$351, 0), MATCH(Selection_Hide2!N$5, 'Full set Core Client Indicator'!$A$3:$AB$3, 0))=\"\", \"\",  INDEX('Full set Core Client Indicator'!$A$3:$AB$351, MATCH(Selection_Hide2!$A201, 'Full set Core Client Indicator'!$A$3:$A$351, 0), MATCH(Selection_Hide2!N$5, 'Full set Core Client Indicator'!$A$3:$AB$3, 0))), \"\")","v":""},{"$f":"IF(N201<>\"\", IF(INDEX('Full set Core Client Indicator'!$A$3:$AB$351, MATCH(Selection_Hide2!$A201, 'Full set Core Client Indicator'!$A$3:$A$351, 0), MATCH(Selection_Hide2!O$5, 'Full set Core Client Indicator'!$A$3:$AB$3, 0))=\"\", \"\",  INDEX('Full set Core Client Indicator'!$A$3:$AB$351, MATCH(Selection_Hide2!$A201, 'Full set Core Client Indicator'!$A$3:$A$351, 0), MATCH(Selection_Hide2!O$5, 'Full set Core Client Indicator'!$A$3:$AB$3, 0))), \"\")","v":""},{"$f":"IF(O201<>\"\", IF(INDEX('Full set Core Client Indicator'!$A$3:$AB$351, MATCH(Selection_Hide2!$A201, 'Full set Core Client Indicator'!$A$3:$A$351, 0), MATCH(Selection_Hide2!P$5, 'Full set Core Client Indicator'!$A$3:$AB$3, 0))=\"\", \"\",  INDEX('Full set Core Client Indicator'!$A$3:$AB$351, MATCH(Selection_Hide2!$A201, 'Full set Core Client Indicator'!$A$3:$A$351, 0), MATCH(Selection_Hide2!P$5, 'Full set Core Client Indicator'!$A$3:$AB$3, 0))), \"\")","v":""},{"$f":"IF(P201<>\"\", IF(INDEX('Full set Core Client Indicator'!$A$3:$AB$351, MATCH(Selection_Hide2!$A201, 'Full set Core Client Indicator'!$A$3:$A$351, 0), MATCH(Selection_Hide2!Q$5, 'Full set Core Client Indicator'!$A$3:$AB$3, 0))=\"\", \"\",  INDEX('Full set Core Client Indicator'!$A$3:$AB$351, MATCH(Selection_Hide2!$A201, 'Full set Core Client Indicator'!$A$3:$A$351, 0), MATCH(Selection_Hide2!Q$5, 'Full set Core Client Indicator'!$A$3:$AB$3, 0))), \"\")","v":""},{"$f":"IF(Q201<>\"\", IF(INDEX('Full set Core Client Indicator'!$A$3:$AB$351, MATCH(Selection_Hide2!$A201, 'Full set Core Client Indicator'!$A$3:$A$351, 0), MATCH(Selection_Hide2!R$5, 'Full set Core Client Indicator'!$A$3:$AB$3, 0))=\"\", \"\",  INDEX('Full set Core Client Indicator'!$A$3:$AB$351, MATCH(Selection_Hide2!$A201, 'Full set Core Client Indicator'!$A$3:$A$351, 0), MATCH(Selection_Hide2!R$5, 'Full set Core Client Indicator'!$A$3:$AB$3, 0))), \"\")","v":""},{"$f":"IF(R201<>\"\", IF(INDEX('Full set Core Client Indicator'!$A$3:$AB$351, MATCH(Selection_Hide2!$A201, 'Full set Core Client Indicator'!$A$3:$A$351, 0), MATCH(Selection_Hide2!S$5, 'Full set Core Client Indicator'!$A$3:$AB$3, 0))=\"\", \"\",  INDEX('Full set Core Client Indicator'!$A$3:$AB$351, MATCH(Selection_Hide2!$A201, 'Full set Core Client Indicator'!$A$3:$A$351, 0), MATCH(Selection_Hide2!S$5, 'Full set Core Client Indicator'!$A$3:$AB$3, 0))), \"\")","v":""},{"$f":"IF(S201<>\"\", IF(INDEX('Full set Core Client Indicator'!$A$3:$AB$351, MATCH(Selection_Hide2!$A201, 'Full set Core Client Indicator'!$A$3:$A$351, 0), MATCH(Selection_Hide2!T$5, 'Full set Core Client Indicator'!$A$3:$AB$3, 0))=\"\", \"\",  INDEX('Full set Core Client Indicator'!$A$3:$AB$351, MATCH(Selection_Hide2!$A201, 'Full set Core Client Indicator'!$A$3:$A$351, 0), MATCH(Selection_Hide2!T$5, 'Full set Core Client Indicator'!$A$3:$AB$3, 0))), \"\")","v":""},{"$f":"IF(T201<>\"\", IF(INDEX('Full set Core Client Indicator'!$A$3:$AB$351, MATCH(Selection_Hide2!$A201, 'Full set Core Client Indicator'!$A$3:$A$351, 0), MATCH(Selection_Hide2!U$5, 'Full set Core Client Indicator'!$A$3:$AB$3, 0))=\"\", \"\",  INDEX('Full set Core Client Indicator'!$A$3:$AB$351, MATCH(Selection_Hide2!$A201, 'Full set Core Client Indicator'!$A$3:$A$351, 0), MATCH(Selection_Hide2!U$5, 'Full set Core Client Indicator'!$A$3:$AB$3, 0))), \"\")","v":""},{"$f":"IF(U201<>\"\", IF(INDEX('Full set Core Client Indicator'!$A$3:$AB$351, MATCH(Selection_Hide2!$A201, 'Full set Core Client Indicator'!$A$3:$A$351, 0), MATCH(Selection_Hide2!V$5, 'Full set Core Client Indicator'!$A$3:$AB$3, 0))=\"\", \"\",  INDEX('Full set Core Client Indicator'!$A$3:$AB$351, MATCH(Selection_Hide2!$A201, 'Full set Core Client Indicator'!$A$3:$A$351, 0), MATCH(Selection_Hide2!V$5, 'Full set Core Client Indicator'!$A$3:$AB$3, 0))), \"\")","v":""},{"$f":"IF(V201<>\"\", IF(INDEX('Full set Core Client Indicator'!$A$3:$AB$351, MATCH(Selection_Hide2!$A201, 'Full set Core Client Indicator'!$A$3:$A$351, 0), MATCH(Selection_Hide2!W$5, 'Full set Core Client Indicator'!$A$3:$AB$3, 0))=\"\", \"\",  INDEX('Full set Core Client Indicator'!$A$3:$AB$351, MATCH(Selection_Hide2!$A201, 'Full set Core Client Indicator'!$A$3:$A$351, 0), MATCH(Selection_Hide2!W$5, 'Full set Core Client Indicator'!$A$3:$AB$3, 0))), \"\")","v":""},{"$f":"IF(W201<>\"\", IF(INDEX('Full set Core Client Indicator'!$A$3:$AB$351, MATCH(Selection_Hide2!$A201, 'Full set Core Client Indicator'!$A$3:$A$351, 0), MATCH(Selection_Hide2!X$5, 'Full set Core Client Indicator'!$A$3:$AB$3, 0))=\"\", \"\",  INDEX('Full set Core Client Indicator'!$A$3:$AB$351, MATCH(Selection_Hide2!$A201, 'Full set Core Client Indicator'!$A$3:$A$351, 0), MATCH(Selection_Hide2!X$5, 'Full set Core Client Indicator'!$A$3:$AB$3, 0))), \"\")","v":""},{"$f":"IF(X201<>\"\", IF(INDEX('Full set Core Client Indicator'!$A$3:$AB$351, MATCH(Selection_Hide2!$A201, 'Full set Core Client Indicator'!$A$3:$A$351, 0), MATCH(Selection_Hide2!Y$5, 'Full set Core Client Indicator'!$A$3:$AB$3, 0))=\"\", \"\",  INDEX('Full set Core Client Indicator'!$A$3:$AB$351, MATCH(Selection_Hide2!$A201, 'Full set Core Client Indicator'!$A$3:$A$351, 0), MATCH(Selection_Hide2!Y$5, 'Full set Core Client Indicator'!$A$3:$AB$3, 0))), \"\")","v":""},{"$f":"IF(Y201<>\"\", IF(INDEX('Full set Core Client Indicator'!$A$3:$AB$351, MATCH(Selection_Hide2!$A201, 'Full set Core Client Indicator'!$A$3:$A$351, 0), MATCH(Selection_Hide2!Z$5, 'Full set Core Client Indicator'!$A$3:$AB$3, 0))=\"\", \"\",  INDEX('Full set Core Client Indicator'!$A$3:$AB$351, MATCH(Selection_Hide2!$A201, 'Full set Core Client Indicator'!$A$3:$A$351, 0), MATCH(Selection_Hide2!Z$5, 'Full set Core Client Indicator'!$A$3:$AB$3, 0))), \"\")","v":""},{"$f":"IF(Z201<>\"\", IF(INDEX('Full set Core Client Indicator'!$A$3:$AB$351, MATCH(Selection_Hide2!$A201, 'Full set Core Client Indicator'!$A$3:$A$351, 0), MATCH(Selection_Hide2!AA$5, 'Full set Core Client Indicator'!$A$3:$AB$3, 0))=\"\", \"\",  INDEX('Full set Core Client Indicator'!$A$3:$AB$351, MATCH(Selection_Hide2!$A201, 'Full set Core Client Indicator'!$A$3:$A$351, 0), MATCH(Selection_Hide2!AA$5, 'Full set Core Client Indicator'!$A$3:$AB$3, 0))), \"\")","v":""},{"$f":"IF(AA201<>\"\", IF(INDEX('Full set Core Client Indicator'!$A$3:$AB$351, MATCH(Selection_Hide2!$A201, 'Full set Core Client Indicator'!$A$3:$A$351, 0), MATCH(Selection_Hide2!AB$5, 'Full set Core Client Indicator'!$A$3:$AB$3, 0))=\"\", \"\",  INDEX('Full set Core Client Indicator'!$A$3:$AB$351, MATCH(Selection_Hide2!$A201, 'Full set Core Client Indicator'!$A$3:$A$351, 0), MATCH(Selection_Hide2!AB$5, 'Full set Core Client Indicator'!$A$3:$AB$3, 0))), \"\")","v":""}]
[{"$f":"IF(AND(Selection_Hide1!C200<>0, Selection_Hide1!C200<>\"Grand Total\"), Selection_Hide1!C200, \"\")","v":""},{"$f":"IF(A202<>\"\", IF(INDEX('Full set Core Client Indicator'!$A$3:$AB$351, MATCH(Selection_Hide2!$A202, 'Full set Core Client Indicator'!$A$3:$A$351, 0), MATCH(Selection_Hide2!B$5, 'Full set Core Client Indicator'!$A$3:$AB$3, 0))=\"\", \"\",  INDEX('Full set Core Client Indicator'!$A$3:$AB$351, MATCH(Selection_Hide2!$A202, 'Full set Core Client Indicator'!$A$3:$A$351, 0), MATCH(Selection_Hide2!B$5, 'Full set Core Client Indicator'!$A$3:$AB$3, 0))), \"\")","v":""},{"$f":"IF(B202<>\"\", IF(INDEX('Full set Core Client Indicator'!$A$3:$AB$351, MATCH(Selection_Hide2!$A202, 'Full set Core Client Indicator'!$A$3:$A$351, 0), MATCH(Selection_Hide2!C$5, 'Full set Core Client Indicator'!$A$3:$AB$3, 0))=\"\", \"\",  INDEX('Full set Core Client Indicator'!$A$3:$AB$351, MATCH(Selection_Hide2!$A202, 'Full set Core Client Indicator'!$A$3:$A$351, 0), MATCH(Selection_Hide2!C$5, 'Full set Core Client Indicator'!$A$3:$AB$3, 0))), \"\")","v":""},{"$f":"IF(C202<>\"\", IF(INDEX('Full set Core Client Indicator'!$A$3:$AB$351, MATCH(Selection_Hide2!$A202, 'Full set Core Client Indicator'!$A$3:$A$351, 0), MATCH(Selection_Hide2!D$5, 'Full set Core Client Indicator'!$A$3:$AB$3, 0))=\"\", \"\",  INDEX('Full set Core Client Indicator'!$A$3:$AB$351, MATCH(Selection_Hide2!$A202, 'Full set Core Client Indicator'!$A$3:$A$351, 0), MATCH(Selection_Hide2!D$5, 'Full set Core Client Indicator'!$A$3:$AB$3, 0))), \"\")","v":""},{"$f":"IF(D202<>\"\", IF(INDEX('Full set Core Client Indicator'!$A$3:$AB$351, MATCH(Selection_Hide2!$A202, 'Full set Core Client Indicator'!$A$3:$A$351, 0), MATCH(Selection_Hide2!E$5, 'Full set Core Client Indicator'!$A$3:$AB$3, 0))=\"\", \"\",  INDEX('Full set Core Client Indicator'!$A$3:$AB$351, MATCH(Selection_Hide2!$A202, 'Full set Core Client Indicator'!$A$3:$A$351, 0), MATCH(Selection_Hide2!E$5, 'Full set Core Client Indicator'!$A$3:$AB$3, 0))), \"\")","v":""},{"$f":"IF(E202<>\"\", IF(INDEX('Full set Core Client Indicator'!$A$3:$AB$351, MATCH(Selection_Hide2!$A202, 'Full set Core Client Indicator'!$A$3:$A$351, 0), MATCH(Selection_Hide2!F$5, 'Full set Core Client Indicator'!$A$3:$AB$3, 0))=\"\", \"\",  INDEX('Full set Core Client Indicator'!$A$3:$AB$351, MATCH(Selection_Hide2!$A202, 'Full set Core Client Indicator'!$A$3:$A$351, 0), MATCH(Selection_Hide2!F$5, 'Full set Core Client Indicator'!$A$3:$AB$3, 0))), \"\")","v":""},{"$f":"IF(F202<>\"\", IF(INDEX('Full set Core Client Indicator'!$A$3:$AB$351, MATCH(Selection_Hide2!$A202, 'Full set Core Client Indicator'!$A$3:$A$351, 0), MATCH(Selection_Hide2!G$5, 'Full set Core Client Indicator'!$A$3:$AB$3, 0))=\"\", \"\",  INDEX('Full set Core Client Indicator'!$A$3:$AB$351, MATCH(Selection_Hide2!$A202, 'Full set Core Client Indicator'!$A$3:$A$351, 0), MATCH(Selection_Hide2!G$5, 'Full set Core Client Indicator'!$A$3:$AB$3, 0))), \"\")","v":""},{"$f":"IF(G202<>\"\", IF(INDEX('Full set Core Client Indicator'!$A$3:$AB$351, MATCH(Selection_Hide2!$A202, 'Full set Core Client Indicator'!$A$3:$A$351, 0), MATCH(Selection_Hide2!H$5, 'Full set Core Client Indicator'!$A$3:$AB$3, 0))=\"\", \"\",  INDEX('Full set Core Client Indicator'!$A$3:$AB$351, MATCH(Selection_Hide2!$A202, 'Full set Core Client Indicator'!$A$3:$A$351, 0), MATCH(Selection_Hide2!H$5, 'Full set Core Client Indicator'!$A$3:$AB$3, 0))), \"\")","v":""},{"$f":"IF(H202<>\"\", IF(INDEX('Full set Core Client Indicator'!$A$3:$AB$351, MATCH(Selection_Hide2!$A202, 'Full set Core Client Indicator'!$A$3:$A$351, 0), MATCH(Selection_Hide2!I$5, 'Full set Core Client Indicator'!$A$3:$AB$3, 0))=\"\", \"\",  INDEX('Full set Core Client Indicator'!$A$3:$AB$351, MATCH(Selection_Hide2!$A202, 'Full set Core Client Indicator'!$A$3:$A$351, 0), MATCH(Selection_Hide2!I$5, 'Full set Core Client Indicator'!$A$3:$AB$3, 0))), \"\")","v":""},{"$f":"IF(I202<>\"\", IF(INDEX('Full set Core Client Indicator'!$A$3:$AB$351, MATCH(Selection_Hide2!$A202, 'Full set Core Client Indicator'!$A$3:$A$351, 0), MATCH(Selection_Hide2!J$5, 'Full set Core Client Indicator'!$A$3:$AB$3, 0))=\"\", \"\",  INDEX('Full set Core Client Indicator'!$A$3:$AB$351, MATCH(Selection_Hide2!$A202, 'Full set Core Client Indicator'!$A$3:$A$351, 0), MATCH(Selection_Hide2!J$5, 'Full set Core Client Indicator'!$A$3:$AB$3, 0))), \"\")","v":""},{"$f":"IF(J202<>\"\", IF(INDEX('Full set Core Client Indicator'!$A$3:$AB$351, MATCH(Selection_Hide2!$A202, 'Full set Core Client Indicator'!$A$3:$A$351, 0), MATCH(Selection_Hide2!K$5, 'Full set Core Client Indicator'!$A$3:$AB$3, 0))=\"\", \"\",  INDEX('Full set Core Client Indicator'!$A$3:$AB$351, MATCH(Selection_Hide2!$A202, 'Full set Core Client Indicator'!$A$3:$A$351, 0), MATCH(Selection_Hide2!K$5, 'Full set Core Client Indicator'!$A$3:$AB$3, 0))), \"\")","v":""},{"$f":"IF(K202<>\"\", IF(INDEX('Full set Core Client Indicator'!$A$3:$AB$351, MATCH(Selection_Hide2!$A202, 'Full set Core Client Indicator'!$A$3:$A$351, 0), MATCH(Selection_Hide2!L$5, 'Full set Core Client Indicator'!$A$3:$AB$3, 0))=\"\", \"\",  INDEX('Full set Core Client Indicator'!$A$3:$AB$351, MATCH(Selection_Hide2!$A202, 'Full set Core Client Indicator'!$A$3:$A$351, 0), MATCH(Selection_Hide2!L$5, 'Full set Core Client Indicator'!$A$3:$AB$3, 0))), \"\")","v":""},{"$f":"IF(L202<>\"\", IF(INDEX('Full set Core Client Indicator'!$A$3:$AB$351, MATCH(Selection_Hide2!$A202, 'Full set Core Client Indicator'!$A$3:$A$351, 0), MATCH(Selection_Hide2!M$5, 'Full set Core Client Indicator'!$A$3:$AB$3, 0))=\"\", \"\",  INDEX('Full set Core Client Indicator'!$A$3:$AB$351, MATCH(Selection_Hide2!$A202, 'Full set Core Client Indicator'!$A$3:$A$351, 0), MATCH(Selection_Hide2!M$5, 'Full set Core Client Indicator'!$A$3:$AB$3, 0))), \"\")","v":""},{"$f":"IF(M202<>\"\", IF(INDEX('Full set Core Client Indicator'!$A$3:$AB$351, MATCH(Selection_Hide2!$A202, 'Full set Core Client Indicator'!$A$3:$A$351, 0), MATCH(Selection_Hide2!N$5, 'Full set Core Client Indicator'!$A$3:$AB$3, 0))=\"\", \"\",  INDEX('Full set Core Client Indicator'!$A$3:$AB$351, MATCH(Selection_Hide2!$A202, 'Full set Core Client Indicator'!$A$3:$A$351, 0), MATCH(Selection_Hide2!N$5, 'Full set Core Client Indicator'!$A$3:$AB$3, 0))), \"\")","v":""},{"$f":"IF(N202<>\"\", IF(INDEX('Full set Core Client Indicator'!$A$3:$AB$351, MATCH(Selection_Hide2!$A202, 'Full set Core Client Indicator'!$A$3:$A$351, 0), MATCH(Selection_Hide2!O$5, 'Full set Core Client Indicator'!$A$3:$AB$3, 0))=\"\", \"\",  INDEX('Full set Core Client Indicator'!$A$3:$AB$351, MATCH(Selection_Hide2!$A202, 'Full set Core Client Indicator'!$A$3:$A$351, 0), MATCH(Selection_Hide2!O$5, 'Full set Core Client Indicator'!$A$3:$AB$3, 0))), \"\")","v":""},{"$f":"IF(O202<>\"\", IF(INDEX('Full set Core Client Indicator'!$A$3:$AB$351, MATCH(Selection_Hide2!$A202, 'Full set Core Client Indicator'!$A$3:$A$351, 0), MATCH(Selection_Hide2!P$5, 'Full set Core Client Indicator'!$A$3:$AB$3, 0))=\"\", \"\",  INDEX('Full set Core Client Indicator'!$A$3:$AB$351, MATCH(Selection_Hide2!$A202, 'Full set Core Client Indicator'!$A$3:$A$351, 0), MATCH(Selection_Hide2!P$5, 'Full set Core Client Indicator'!$A$3:$AB$3, 0))), \"\")","v":""},{"$f":"IF(P202<>\"\", IF(INDEX('Full set Core Client Indicator'!$A$3:$AB$351, MATCH(Selection_Hide2!$A202, 'Full set Core Client Indicator'!$A$3:$A$351, 0), MATCH(Selection_Hide2!Q$5, 'Full set Core Client Indicator'!$A$3:$AB$3, 0))=\"\", \"\",  INDEX('Full set Core Client Indicator'!$A$3:$AB$351, MATCH(Selection_Hide2!$A202, 'Full set Core Client Indicator'!$A$3:$A$351, 0), MATCH(Selection_Hide2!Q$5, 'Full set Core Client Indicator'!$A$3:$AB$3, 0))), \"\")","v":""},{"$f":"IF(Q202<>\"\", IF(INDEX('Full set Core Client Indicator'!$A$3:$AB$351, MATCH(Selection_Hide2!$A202, 'Full set Core Client Indicator'!$A$3:$A$351, 0), MATCH(Selection_Hide2!R$5, 'Full set Core Client Indicator'!$A$3:$AB$3, 0))=\"\", \"\",  INDEX('Full set Core Client Indicator'!$A$3:$AB$351, MATCH(Selection_Hide2!$A202, 'Full set Core Client Indicator'!$A$3:$A$351, 0), MATCH(Selection_Hide2!R$5, 'Full set Core Client Indicator'!$A$3:$AB$3, 0))), \"\")","v":""},{"$f":"IF(R202<>\"\", IF(INDEX('Full set Core Client Indicator'!$A$3:$AB$351, MATCH(Selection_Hide2!$A202, 'Full set Core Client Indicator'!$A$3:$A$351, 0), MATCH(Selection_Hide2!S$5, 'Full set Core Client Indicator'!$A$3:$AB$3, 0))=\"\", \"\",  INDEX('Full set Core Client Indicator'!$A$3:$AB$351, MATCH(Selection_Hide2!$A202, 'Full set Core Client Indicator'!$A$3:$A$351, 0), MATCH(Selection_Hide2!S$5, 'Full set Core Client Indicator'!$A$3:$AB$3, 0))), \"\")","v":""},{"$f":"IF(S202<>\"\", IF(INDEX('Full set Core Client Indicator'!$A$3:$AB$351, MATCH(Selection_Hide2!$A202, 'Full set Core Client Indicator'!$A$3:$A$351, 0), MATCH(Selection_Hide2!T$5, 'Full set Core Client Indicator'!$A$3:$AB$3, 0))=\"\", \"\",  INDEX('Full set Core Client Indicator'!$A$3:$AB$351, MATCH(Selection_Hide2!$A202, 'Full set Core Client Indicator'!$A$3:$A$351, 0), MATCH(Selection_Hide2!T$5, 'Full set Core Client Indicator'!$A$3:$AB$3, 0))), \"\")","v":""},{"$f":"IF(T202<>\"\", IF(INDEX('Full set Core Client Indicator'!$A$3:$AB$351, MATCH(Selection_Hide2!$A202, 'Full set Core Client Indicator'!$A$3:$A$351, 0), MATCH(Selection_Hide2!U$5, 'Full set Core Client Indicator'!$A$3:$AB$3, 0))=\"\", \"\",  INDEX('Full set Core Client Indicator'!$A$3:$AB$351, MATCH(Selection_Hide2!$A202, 'Full set Core Client Indicator'!$A$3:$A$351, 0), MATCH(Selection_Hide2!U$5, 'Full set Core Client Indicator'!$A$3:$AB$3, 0))), \"\")","v":""},{"$f":"IF(U202<>\"\", IF(INDEX('Full set Core Client Indicator'!$A$3:$AB$351, MATCH(Selection_Hide2!$A202, 'Full set Core Client Indicator'!$A$3:$A$351, 0), MATCH(Selection_Hide2!V$5, 'Full set Core Client Indicator'!$A$3:$AB$3, 0))=\"\", \"\",  INDEX('Full set Core Client Indicator'!$A$3:$AB$351, MATCH(Selection_Hide2!$A202, 'Full set Core Client Indicator'!$A$3:$A$351, 0), MATCH(Selection_Hide2!V$5, 'Full set Core Client Indicator'!$A$3:$AB$3, 0))), \"\")","v":""},{"$f":"IF(V202<>\"\", IF(INDEX('Full set Core Client Indicator'!$A$3:$AB$351, MATCH(Selection_Hide2!$A202, 'Full set Core Client Indicator'!$A$3:$A$351, 0), MATCH(Selection_Hide2!W$5, 'Full set Core Client Indicator'!$A$3:$AB$3, 0))=\"\", \"\",  INDEX('Full set Core Client Indicator'!$A$3:$AB$351, MATCH(Selection_Hide2!$A202, 'Full set Core Client Indicator'!$A$3:$A$351, 0), MATCH(Selection_Hide2!W$5, 'Full set Core Client Indicator'!$A$3:$AB$3, 0))), \"\")","v":""},{"$f":"IF(W202<>\"\", IF(INDEX('Full set Core Client Indicator'!$A$3:$AB$351, MATCH(Selection_Hide2!$A202, 'Full set Core Client Indicator'!$A$3:$A$351, 0), MATCH(Selection_Hide2!X$5, 'Full set Core Client Indicator'!$A$3:$AB$3, 0))=\"\", \"\",  INDEX('Full set Core Client Indicator'!$A$3:$AB$351, MATCH(Selection_Hide2!$A202, 'Full set Core Client Indicator'!$A$3:$A$351, 0), MATCH(Selection_Hide2!X$5, 'Full set Core Client Indicator'!$A$3:$AB$3, 0))), \"\")","v":""},{"$f":"IF(X202<>\"\", IF(INDEX('Full set Core Client Indicator'!$A$3:$AB$351, MATCH(Selection_Hide2!$A202, 'Full set Core Client Indicator'!$A$3:$A$351, 0), MATCH(Selection_Hide2!Y$5, 'Full set Core Client Indicator'!$A$3:$AB$3, 0))=\"\", \"\",  INDEX('Full set Core Client Indicator'!$A$3:$AB$351, MATCH(Selection_Hide2!$A202, 'Full set Core Client Indicator'!$A$3:$A$351, 0), MATCH(Selection_Hide2!Y$5, 'Full set Core Client Indicator'!$A$3:$AB$3, 0))), \"\")","v":""},{"$f":"IF(Y202<>\"\", IF(INDEX('Full set Core Client Indicator'!$A$3:$AB$351, MATCH(Selection_Hide2!$A202, 'Full set Core Client Indicator'!$A$3:$A$351, 0), MATCH(Selection_Hide2!Z$5, 'Full set Core Client Indicator'!$A$3:$AB$3, 0))=\"\", \"\",  INDEX('Full set Core Client Indicator'!$A$3:$AB$351, MATCH(Selection_Hide2!$A202, 'Full set Core Client Indicator'!$A$3:$A$351, 0), MATCH(Selection_Hide2!Z$5, 'Full set Core Client Indicator'!$A$3:$AB$3, 0))), \"\")","v":""},{"$f":"IF(Z202<>\"\", IF(INDEX('Full set Core Client Indicator'!$A$3:$AB$351, MATCH(Selection_Hide2!$A202, 'Full set Core Client Indicator'!$A$3:$A$351, 0), MATCH(Selection_Hide2!AA$5, 'Full set Core Client Indicator'!$A$3:$AB$3, 0))=\"\", \"\",  INDEX('Full set Core Client Indicator'!$A$3:$AB$351, MATCH(Selection_Hide2!$A202, 'Full set Core Client Indicator'!$A$3:$A$351, 0), MATCH(Selection_Hide2!AA$5, 'Full set Core Client Indicator'!$A$3:$AB$3, 0))), \"\")","v":""},{"$f":"IF(AA202<>\"\", IF(INDEX('Full set Core Client Indicator'!$A$3:$AB$351, MATCH(Selection_Hide2!$A202, 'Full set Core Client Indicator'!$A$3:$A$351, 0), MATCH(Selection_Hide2!AB$5, 'Full set Core Client Indicator'!$A$3:$AB$3, 0))=\"\", \"\",  INDEX('Full set Core Client Indicator'!$A$3:$AB$351, MATCH(Selection_Hide2!$A202, 'Full set Core Client Indicator'!$A$3:$A$351, 0), MATCH(Selection_Hide2!AB$5, 'Full set Core Client Indicator'!$A$3:$AB$3, 0))), \"\")","v":""}]
[{"$f":"IF(AND(Selection_Hide1!C201<>0, Selection_Hide1!C201<>\"Grand Total\"), Selection_Hide1!C201, \"\")","v":""},{"$f":"IF(A203<>\"\", IF(INDEX('Full set Core Client Indicator'!$A$3:$AB$351, MATCH(Selection_Hide2!$A203, 'Full set Core Client Indicator'!$A$3:$A$351, 0), MATCH(Selection_Hide2!B$5, 'Full set Core Client Indicator'!$A$3:$AB$3, 0))=\"\", \"\",  INDEX('Full set Core Client Indicator'!$A$3:$AB$351, MATCH(Selection_Hide2!$A203, 'Full set Core Client Indicator'!$A$3:$A$351, 0), MATCH(Selection_Hide2!B$5, 'Full set Core Client Indicator'!$A$3:$AB$3, 0))), \"\")","v":""},{"$f":"IF(B203<>\"\", IF(INDEX('Full set Core Client Indicator'!$A$3:$AB$351, MATCH(Selection_Hide2!$A203, 'Full set Core Client Indicator'!$A$3:$A$351, 0), MATCH(Selection_Hide2!C$5, 'Full set Core Client Indicator'!$A$3:$AB$3, 0))=\"\", \"\",  INDEX('Full set Core Client Indicator'!$A$3:$AB$351, MATCH(Selection_Hide2!$A203, 'Full set Core Client Indicator'!$A$3:$A$351, 0), MATCH(Selection_Hide2!C$5, 'Full set Core Client Indicator'!$A$3:$AB$3, 0))), \"\")","v":""},{"$f":"IF(C203<>\"\", IF(INDEX('Full set Core Client Indicator'!$A$3:$AB$351, MATCH(Selection_Hide2!$A203, 'Full set Core Client Indicator'!$A$3:$A$351, 0), MATCH(Selection_Hide2!D$5, 'Full set Core Client Indicator'!$A$3:$AB$3, 0))=\"\", \"\",  INDEX('Full set Core Client Indicator'!$A$3:$AB$351, MATCH(Selection_Hide2!$A203, 'Full set Core Client Indicator'!$A$3:$A$351, 0), MATCH(Selection_Hide2!D$5, 'Full set Core Client Indicator'!$A$3:$AB$3, 0))), \"\")","v":""},{"$f":"IF(D203<>\"\", IF(INDEX('Full set Core Client Indicator'!$A$3:$AB$351, MATCH(Selection_Hide2!$A203, 'Full set Core Client Indicator'!$A$3:$A$351, 0), MATCH(Selection_Hide2!E$5, 'Full set Core Client Indicator'!$A$3:$AB$3, 0))=\"\", \"\",  INDEX('Full set Core Client Indicator'!$A$3:$AB$351, MATCH(Selection_Hide2!$A203, 'Full set Core Client Indicator'!$A$3:$A$351, 0), MATCH(Selection_Hide2!E$5, 'Full set Core Client Indicator'!$A$3:$AB$3, 0))), \"\")","v":""},{"$f":"IF(E203<>\"\", IF(INDEX('Full set Core Client Indicator'!$A$3:$AB$351, MATCH(Selection_Hide2!$A203, 'Full set Core Client Indicator'!$A$3:$A$351, 0), MATCH(Selection_Hide2!F$5, 'Full set Core Client Indicator'!$A$3:$AB$3, 0))=\"\", \"\",  INDEX('Full set Core Client Indicator'!$A$3:$AB$351, MATCH(Selection_Hide2!$A203, 'Full set Core Client Indicator'!$A$3:$A$351, 0), MATCH(Selection_Hide2!F$5, 'Full set Core Client Indicator'!$A$3:$AB$3, 0))), \"\")","v":""},{"$f":"IF(F203<>\"\", IF(INDEX('Full set Core Client Indicator'!$A$3:$AB$351, MATCH(Selection_Hide2!$A203, 'Full set Core Client Indicator'!$A$3:$A$351, 0), MATCH(Selection_Hide2!G$5, 'Full set Core Client Indicator'!$A$3:$AB$3, 0))=\"\", \"\",  INDEX('Full set Core Client Indicator'!$A$3:$AB$351, MATCH(Selection_Hide2!$A203, 'Full set Core Client Indicator'!$A$3:$A$351, 0), MATCH(Selection_Hide2!G$5, 'Full set Core Client Indicator'!$A$3:$AB$3, 0))), \"\")","v":""},{"$f":"IF(G203<>\"\", IF(INDEX('Full set Core Client Indicator'!$A$3:$AB$351, MATCH(Selection_Hide2!$A203, 'Full set Core Client Indicator'!$A$3:$A$351, 0), MATCH(Selection_Hide2!H$5, 'Full set Core Client Indicator'!$A$3:$AB$3, 0))=\"\", \"\",  INDEX('Full set Core Client Indicator'!$A$3:$AB$351, MATCH(Selection_Hide2!$A203, 'Full set Core Client Indicator'!$A$3:$A$351, 0), MATCH(Selection_Hide2!H$5, 'Full set Core Client Indicator'!$A$3:$AB$3, 0))), \"\")","v":""},{"$f":"IF(H203<>\"\", IF(INDEX('Full set Core Client Indicator'!$A$3:$AB$351, MATCH(Selection_Hide2!$A203, 'Full set Core Client Indicator'!$A$3:$A$351, 0), MATCH(Selection_Hide2!I$5, 'Full set Core Client Indicator'!$A$3:$AB$3, 0))=\"\", \"\",  INDEX('Full set Core Client Indicator'!$A$3:$AB$351, MATCH(Selection_Hide2!$A203, 'Full set Core Client Indicator'!$A$3:$A$351, 0), MATCH(Selection_Hide2!I$5, 'Full set Core Client Indicator'!$A$3:$AB$3, 0))), \"\")","v":""},{"$f":"IF(I203<>\"\", IF(INDEX('Full set Core Client Indicator'!$A$3:$AB$351, MATCH(Selection_Hide2!$A203, 'Full set Core Client Indicator'!$A$3:$A$351, 0), MATCH(Selection_Hide2!J$5, 'Full set Core Client Indicator'!$A$3:$AB$3, 0))=\"\", \"\",  INDEX('Full set Core Client Indicator'!$A$3:$AB$351, MATCH(Selection_Hide2!$A203, 'Full set Core Client Indicator'!$A$3:$A$351, 0), MATCH(Selection_Hide2!J$5, 'Full set Core Client Indicator'!$A$3:$AB$3, 0))), \"\")","v":""},{"$f":"IF(J203<>\"\", IF(INDEX('Full set Core Client Indicator'!$A$3:$AB$351, MATCH(Selection_Hide2!$A203, 'Full set Core Client Indicator'!$A$3:$A$351, 0), MATCH(Selection_Hide2!K$5, 'Full set Core Client Indicator'!$A$3:$AB$3, 0))=\"\", \"\",  INDEX('Full set Core Client Indicator'!$A$3:$AB$351, MATCH(Selection_Hide2!$A203, 'Full set Core Client Indicator'!$A$3:$A$351, 0), MATCH(Selection_Hide2!K$5, 'Full set Core Client Indicator'!$A$3:$AB$3, 0))), \"\")","v":""},{"$f":"IF(K203<>\"\", IF(INDEX('Full set Core Client Indicator'!$A$3:$AB$351, MATCH(Selection_Hide2!$A203, 'Full set Core Client Indicator'!$A$3:$A$351, 0), MATCH(Selection_Hide2!L$5, 'Full set Core Client Indicator'!$A$3:$AB$3, 0))=\"\", \"\",  INDEX('Full set Core Client Indicator'!$A$3:$AB$351, MATCH(Selection_Hide2!$A203, 'Full set Core Client Indicator'!$A$3:$A$351, 0), MATCH(Selection_Hide2!L$5, 'Full set Core Client Indicator'!$A$3:$AB$3, 0))), \"\")","v":""},{"$f":"IF(L203<>\"\", IF(INDEX('Full set Core Client Indicator'!$A$3:$AB$351, MATCH(Selection_Hide2!$A203, 'Full set Core Client Indicator'!$A$3:$A$351, 0), MATCH(Selection_Hide2!M$5, 'Full set Core Client Indicator'!$A$3:$AB$3, 0))=\"\", \"\",  INDEX('Full set Core Client Indicator'!$A$3:$AB$351, MATCH(Selection_Hide2!$A203, 'Full set Core Client Indicator'!$A$3:$A$351, 0), MATCH(Selection_Hide2!M$5, 'Full set Core Client Indicator'!$A$3:$AB$3, 0))), \"\")","v":""},{"$f":"IF(M203<>\"\", IF(INDEX('Full set Core Client Indicator'!$A$3:$AB$351, MATCH(Selection_Hide2!$A203, 'Full set Core Client Indicator'!$A$3:$A$351, 0), MATCH(Selection_Hide2!N$5, 'Full set Core Client Indicator'!$A$3:$AB$3, 0))=\"\", \"\",  INDEX('Full set Core Client Indicator'!$A$3:$AB$351, MATCH(Selection_Hide2!$A203, 'Full set Core Client Indicator'!$A$3:$A$351, 0), MATCH(Selection_Hide2!N$5, 'Full set Core Client Indicator'!$A$3:$AB$3, 0))), \"\")","v":""},{"$f":"IF(N203<>\"\", IF(INDEX('Full set Core Client Indicator'!$A$3:$AB$351, MATCH(Selection_Hide2!$A203, 'Full set Core Client Indicator'!$A$3:$A$351, 0), MATCH(Selection_Hide2!O$5, 'Full set Core Client Indicator'!$A$3:$AB$3, 0))=\"\", \"\",  INDEX('Full set Core Client Indicator'!$A$3:$AB$351, MATCH(Selection_Hide2!$A203, 'Full set Core Client Indicator'!$A$3:$A$351, 0), MATCH(Selection_Hide2!O$5, 'Full set Core Client Indicator'!$A$3:$AB$3, 0))), \"\")","v":""},{"$f":"IF(O203<>\"\", IF(INDEX('Full set Core Client Indicator'!$A$3:$AB$351, MATCH(Selection_Hide2!$A203, 'Full set Core Client Indicator'!$A$3:$A$351, 0), MATCH(Selection_Hide2!P$5, 'Full set Core Client Indicator'!$A$3:$AB$3, 0))=\"\", \"\",  INDEX('Full set Core Client Indicator'!$A$3:$AB$351, MATCH(Selection_Hide2!$A203, 'Full set Core Client Indicator'!$A$3:$A$351, 0), MATCH(Selection_Hide2!P$5, 'Full set Core Client Indicator'!$A$3:$AB$3, 0))), \"\")","v":""},{"$f":"IF(P203<>\"\", IF(INDEX('Full set Core Client Indicator'!$A$3:$AB$351, MATCH(Selection_Hide2!$A203, 'Full set Core Client Indicator'!$A$3:$A$351, 0), MATCH(Selection_Hide2!Q$5, 'Full set Core Client Indicator'!$A$3:$AB$3, 0))=\"\", \"\",  INDEX('Full set Core Client Indicator'!$A$3:$AB$351, MATCH(Selection_Hide2!$A203, 'Full set Core Client Indicator'!$A$3:$A$351, 0), MATCH(Selection_Hide2!Q$5, 'Full set Core Client Indicator'!$A$3:$AB$3, 0))), \"\")","v":""},{"$f":"IF(Q203<>\"\", IF(INDEX('Full set Core Client Indicator'!$A$3:$AB$351, MATCH(Selection_Hide2!$A203, 'Full set Core Client Indicator'!$A$3:$A$351, 0), MATCH(Selection_Hide2!R$5, 'Full set Core Client Indicator'!$A$3:$AB$3, 0))=\"\", \"\",  INDEX('Full set Core Client Indicator'!$A$3:$AB$351, MATCH(Selection_Hide2!$A203, 'Full set Core Client Indicator'!$A$3:$A$351, 0), MATCH(Selection_Hide2!R$5, 'Full set Core Client Indicator'!$A$3:$AB$3, 0))), \"\")","v":""},{"$f":"IF(R203<>\"\", IF(INDEX('Full set Core Client Indicator'!$A$3:$AB$351, MATCH(Selection_Hide2!$A203, 'Full set Core Client Indicator'!$A$3:$A$351, 0), MATCH(Selection_Hide2!S$5, 'Full set Core Client Indicator'!$A$3:$AB$3, 0))=\"\", \"\",  INDEX('Full set Core Client Indicator'!$A$3:$AB$351, MATCH(Selection_Hide2!$A203, 'Full set Core Client Indicator'!$A$3:$A$351, 0), MATCH(Selection_Hide2!S$5, 'Full set Core Client Indicator'!$A$3:$AB$3, 0))), \"\")","v":""},{"$f":"IF(S203<>\"\", IF(INDEX('Full set Core Client Indicator'!$A$3:$AB$351, MATCH(Selection_Hide2!$A203, 'Full set Core Client Indicator'!$A$3:$A$351, 0), MATCH(Selection_Hide2!T$5, 'Full set Core Client Indicator'!$A$3:$AB$3, 0))=\"\", \"\",  INDEX('Full set Core Client Indicator'!$A$3:$AB$351, MATCH(Selection_Hide2!$A203, 'Full set Core Client Indicator'!$A$3:$A$351, 0), MATCH(Selection_Hide2!T$5, 'Full set Core Client Indicator'!$A$3:$AB$3, 0))), \"\")","v":""},{"$f":"IF(T203<>\"\", IF(INDEX('Full set Core Client Indicator'!$A$3:$AB$351, MATCH(Selection_Hide2!$A203, 'Full set Core Client Indicator'!$A$3:$A$351, 0), MATCH(Selection_Hide2!U$5, 'Full set Core Client Indicator'!$A$3:$AB$3, 0))=\"\", \"\",  INDEX('Full set Core Client Indicator'!$A$3:$AB$351, MATCH(Selection_Hide2!$A203, 'Full set Core Client Indicator'!$A$3:$A$351, 0), MATCH(Selection_Hide2!U$5, 'Full set Core Client Indicator'!$A$3:$AB$3, 0))), \"\")","v":""},{"$f":"IF(U203<>\"\", IF(INDEX('Full set Core Client Indicator'!$A$3:$AB$351, MATCH(Selection_Hide2!$A203, 'Full set Core Client Indicator'!$A$3:$A$351, 0), MATCH(Selection_Hide2!V$5, 'Full set Core Client Indicator'!$A$3:$AB$3, 0))=\"\", \"\",  INDEX('Full set Core Client Indicator'!$A$3:$AB$351, MATCH(Selection_Hide2!$A203, 'Full set Core Client Indicator'!$A$3:$A$351, 0), MATCH(Selection_Hide2!V$5, 'Full set Core Client Indicator'!$A$3:$AB$3, 0))), \"\")","v":""},{"$f":"IF(V203<>\"\", IF(INDEX('Full set Core Client Indicator'!$A$3:$AB$351, MATCH(Selection_Hide2!$A203, 'Full set Core Client Indicator'!$A$3:$A$351, 0), MATCH(Selection_Hide2!W$5, 'Full set Core Client Indicator'!$A$3:$AB$3, 0))=\"\", \"\",  INDEX('Full set Core Client Indicator'!$A$3:$AB$351, MATCH(Selection_Hide2!$A203, 'Full set Core Client Indicator'!$A$3:$A$351, 0), MATCH(Selection_Hide2!W$5, 'Full set Core Client Indicator'!$A$3:$AB$3, 0))), \"\")","v":""},{"$f":"IF(W203<>\"\", IF(INDEX('Full set Core Client Indicator'!$A$3:$AB$351, MATCH(Selection_Hide2!$A203, 'Full set Core Client Indicator'!$A$3:$A$351, 0), MATCH(Selection_Hide2!X$5, 'Full set Core Client Indicator'!$A$3:$AB$3, 0))=\"\", \"\",  INDEX('Full set Core Client Indicator'!$A$3:$AB$351, MATCH(Selection_Hide2!$A203, 'Full set Core Client Indicator'!$A$3:$A$351, 0), MATCH(Selection_Hide2!X$5, 'Full set Core Client Indicator'!$A$3:$AB$3, 0))), \"\")","v":""},{"$f":"IF(X203<>\"\", IF(INDEX('Full set Core Client Indicator'!$A$3:$AB$351, MATCH(Selection_Hide2!$A203, 'Full set Core Client Indicator'!$A$3:$A$351, 0), MATCH(Selection_Hide2!Y$5, 'Full set Core Client Indicator'!$A$3:$AB$3, 0))=\"\", \"\",  INDEX('Full set Core Client Indicator'!$A$3:$AB$351, MATCH(Selection_Hide2!$A203, 'Full set Core Client Indicator'!$A$3:$A$351, 0), MATCH(Selection_Hide2!Y$5, 'Full set Core Client Indicator'!$A$3:$AB$3, 0))), \"\")","v":""},{"$f":"IF(Y203<>\"\", IF(INDEX('Full set Core Client Indicator'!$A$3:$AB$351, MATCH(Selection_Hide2!$A203, 'Full set Core Client Indicator'!$A$3:$A$351, 0), MATCH(Selection_Hide2!Z$5, 'Full set Core Client Indicator'!$A$3:$AB$3, 0))=\"\", \"\",  INDEX('Full set Core Client Indicator'!$A$3:$AB$351, MATCH(Selection_Hide2!$A203, 'Full set Core Client Indicator'!$A$3:$A$351, 0), MATCH(Selection_Hide2!Z$5, 'Full set Core Client Indicator'!$A$3:$AB$3, 0))), \"\")","v":""},{"$f":"IF(Z203<>\"\", IF(INDEX('Full set Core Client Indicator'!$A$3:$AB$351, MATCH(Selection_Hide2!$A203, 'Full set Core Client Indicator'!$A$3:$A$351, 0), MATCH(Selection_Hide2!AA$5, 'Full set Core Client Indicator'!$A$3:$AB$3, 0))=\"\", \"\",  INDEX('Full set Core Client Indicator'!$A$3:$AB$351, MATCH(Selection_Hide2!$A203, 'Full set Core Client Indicator'!$A$3:$A$351, 0), MATCH(Selection_Hide2!AA$5, 'Full set Core Client Indicator'!$A$3:$AB$3, 0))), \"\")","v":""},{"$f":"IF(AA203<>\"\", IF(INDEX('Full set Core Client Indicator'!$A$3:$AB$351, MATCH(Selection_Hide2!$A203, 'Full set Core Client Indicator'!$A$3:$A$351, 0), MATCH(Selection_Hide2!AB$5, 'Full set Core Client Indicator'!$A$3:$AB$3, 0))=\"\", \"\",  INDEX('Full set Core Client Indicator'!$A$3:$AB$351, MATCH(Selection_Hide2!$A203, 'Full set Core Client Indicator'!$A$3:$A$351, 0), MATCH(Selection_Hide2!AB$5, 'Full set Core Client Indicator'!$A$3:$AB$3, 0))), \"\")","v":""}]
[{"$f":"IF(AND(Selection_Hide1!C202<>0, Selection_Hide1!C202<>\"Grand Total\"), Selection_Hide1!C202, \"\")","v":""},{"$f":"IF(A204<>\"\", IF(INDEX('Full set Core Client Indicator'!$A$3:$AB$351, MATCH(Selection_Hide2!$A204, 'Full set Core Client Indicator'!$A$3:$A$351, 0), MATCH(Selection_Hide2!B$5, 'Full set Core Client Indicator'!$A$3:$AB$3, 0))=\"\", \"\",  INDEX('Full set Core Client Indicator'!$A$3:$AB$351, MATCH(Selection_Hide2!$A204, 'Full set Core Client Indicator'!$A$3:$A$351, 0), MATCH(Selection_Hide2!B$5, 'Full set Core Client Indicator'!$A$3:$AB$3, 0))), \"\")","v":""},{"$f":"IF(B204<>\"\", IF(INDEX('Full set Core Client Indicator'!$A$3:$AB$351, MATCH(Selection_Hide2!$A204, 'Full set Core Client Indicator'!$A$3:$A$351, 0), MATCH(Selection_Hide2!C$5, 'Full set Core Client Indicator'!$A$3:$AB$3, 0))=\"\", \"\",  INDEX('Full set Core Client Indicator'!$A$3:$AB$351, MATCH(Selection_Hide2!$A204, 'Full set Core Client Indicator'!$A$3:$A$351, 0), MATCH(Selection_Hide2!C$5, 'Full set Core Client Indicator'!$A$3:$AB$3, 0))), \"\")","v":""},{"$f":"IF(C204<>\"\", IF(INDEX('Full set Core Client Indicator'!$A$3:$AB$351, MATCH(Selection_Hide2!$A204, 'Full set Core Client Indicator'!$A$3:$A$351, 0), MATCH(Selection_Hide2!D$5, 'Full set Core Client Indicator'!$A$3:$AB$3, 0))=\"\", \"\",  INDEX('Full set Core Client Indicator'!$A$3:$AB$351, MATCH(Selection_Hide2!$A204, 'Full set Core Client Indicator'!$A$3:$A$351, 0), MATCH(Selection_Hide2!D$5, 'Full set Core Client Indicator'!$A$3:$AB$3, 0))), \"\")","v":""},{"$f":"IF(D204<>\"\", IF(INDEX('Full set Core Client Indicator'!$A$3:$AB$351, MATCH(Selection_Hide2!$A204, 'Full set Core Client Indicator'!$A$3:$A$351, 0), MATCH(Selection_Hide2!E$5, 'Full set Core Client Indicator'!$A$3:$AB$3, 0))=\"\", \"\",  INDEX('Full set Core Client Indicator'!$A$3:$AB$351, MATCH(Selection_Hide2!$A204, 'Full set Core Client Indicator'!$A$3:$A$351, 0), MATCH(Selection_Hide2!E$5, 'Full set Core Client Indicator'!$A$3:$AB$3, 0))), \"\")","v":""},{"$f":"IF(E204<>\"\", IF(INDEX('Full set Core Client Indicator'!$A$3:$AB$351, MATCH(Selection_Hide2!$A204, 'Full set Core Client Indicator'!$A$3:$A$351, 0), MATCH(Selection_Hide2!F$5, 'Full set Core Client Indicator'!$A$3:$AB$3, 0))=\"\", \"\",  INDEX('Full set Core Client Indicator'!$A$3:$AB$351, MATCH(Selection_Hide2!$A204, 'Full set Core Client Indicator'!$A$3:$A$351, 0), MATCH(Selection_Hide2!F$5, 'Full set Core Client Indicator'!$A$3:$AB$3, 0))), \"\")","v":""},{"$f":"IF(F204<>\"\", IF(INDEX('Full set Core Client Indicator'!$A$3:$AB$351, MATCH(Selection_Hide2!$A204, 'Full set Core Client Indicator'!$A$3:$A$351, 0), MATCH(Selection_Hide2!G$5, 'Full set Core Client Indicator'!$A$3:$AB$3, 0))=\"\", \"\",  INDEX('Full set Core Client Indicator'!$A$3:$AB$351, MATCH(Selection_Hide2!$A204, 'Full set Core Client Indicator'!$A$3:$A$351, 0), MATCH(Selection_Hide2!G$5, 'Full set Core Client Indicator'!$A$3:$AB$3, 0))), \"\")","v":""},{"$f":"IF(G204<>\"\", IF(INDEX('Full set Core Client Indicator'!$A$3:$AB$351, MATCH(Selection_Hide2!$A204, 'Full set Core Client Indicator'!$A$3:$A$351, 0), MATCH(Selection_Hide2!H$5, 'Full set Core Client Indicator'!$A$3:$AB$3, 0))=\"\", \"\",  INDEX('Full set Core Client Indicator'!$A$3:$AB$351, MATCH(Selection_Hide2!$A204, 'Full set Core Client Indicator'!$A$3:$A$351, 0), MATCH(Selection_Hide2!H$5, 'Full set Core Client Indicator'!$A$3:$AB$3, 0))), \"\")","v":""},{"$f":"IF(H204<>\"\", IF(INDEX('Full set Core Client Indicator'!$A$3:$AB$351, MATCH(Selection_Hide2!$A204, 'Full set Core Client Indicator'!$A$3:$A$351, 0), MATCH(Selection_Hide2!I$5, 'Full set Core Client Indicator'!$A$3:$AB$3, 0))=\"\", \"\",  INDEX('Full set Core Client Indicator'!$A$3:$AB$351, MATCH(Selection_Hide2!$A204, 'Full set Core Client Indicator'!$A$3:$A$351, 0), MATCH(Selection_Hide2!I$5, 'Full set Core Client Indicator'!$A$3:$AB$3, 0))), \"\")","v":""},{"$f":"IF(I204<>\"\", IF(INDEX('Full set Core Client Indicator'!$A$3:$AB$351, MATCH(Selection_Hide2!$A204, 'Full set Core Client Indicator'!$A$3:$A$351, 0), MATCH(Selection_Hide2!J$5, 'Full set Core Client Indicator'!$A$3:$AB$3, 0))=\"\", \"\",  INDEX('Full set Core Client Indicator'!$A$3:$AB$351, MATCH(Selection_Hide2!$A204, 'Full set Core Client Indicator'!$A$3:$A$351, 0), MATCH(Selection_Hide2!J$5, 'Full set Core Client Indicator'!$A$3:$AB$3, 0))), \"\")","v":""},{"$f":"IF(J204<>\"\", IF(INDEX('Full set Core Client Indicator'!$A$3:$AB$351, MATCH(Selection_Hide2!$A204, 'Full set Core Client Indicator'!$A$3:$A$351, 0), MATCH(Selection_Hide2!K$5, 'Full set Core Client Indicator'!$A$3:$AB$3, 0))=\"\", \"\",  INDEX('Full set Core Client Indicator'!$A$3:$AB$351, MATCH(Selection_Hide2!$A204, 'Full set Core Client Indicator'!$A$3:$A$351, 0), MATCH(Selection_Hide2!K$5, 'Full set Core Client Indicator'!$A$3:$AB$3, 0))), \"\")","v":""},{"$f":"IF(K204<>\"\", IF(INDEX('Full set Core Client Indicator'!$A$3:$AB$351, MATCH(Selection_Hide2!$A204, 'Full set Core Client Indicator'!$A$3:$A$351, 0), MATCH(Selection_Hide2!L$5, 'Full set Core Client Indicator'!$A$3:$AB$3, 0))=\"\", \"\",  INDEX('Full set Core Client Indicator'!$A$3:$AB$351, MATCH(Selection_Hide2!$A204, 'Full set Core Client Indicator'!$A$3:$A$351, 0), MATCH(Selection_Hide2!L$5, 'Full set Core Client Indicator'!$A$3:$AB$3, 0))), \"\")","v":""},{"$f":"IF(L204<>\"\", IF(INDEX('Full set Core Client Indicator'!$A$3:$AB$351, MATCH(Selection_Hide2!$A204, 'Full set Core Client Indicator'!$A$3:$A$351, 0), MATCH(Selection_Hide2!M$5, 'Full set Core Client Indicator'!$A$3:$AB$3, 0))=\"\", \"\",  INDEX('Full set Core Client Indicator'!$A$3:$AB$351, MATCH(Selection_Hide2!$A204, 'Full set Core Client Indicator'!$A$3:$A$351, 0), MATCH(Selection_Hide2!M$5, 'Full set Core Client Indicator'!$A$3:$AB$3, 0))), \"\")","v":""},{"$f":"IF(M204<>\"\", IF(INDEX('Full set Core Client Indicator'!$A$3:$AB$351, MATCH(Selection_Hide2!$A204, 'Full set Core Client Indicator'!$A$3:$A$351, 0), MATCH(Selection_Hide2!N$5, 'Full set Core Client Indicator'!$A$3:$AB$3, 0))=\"\", \"\",  INDEX('Full set Core Client Indicator'!$A$3:$AB$351, MATCH(Selection_Hide2!$A204, 'Full set Core Client Indicator'!$A$3:$A$351, 0), MATCH(Selection_Hide2!N$5, 'Full set Core Client Indicator'!$A$3:$AB$3, 0))), \"\")","v":""},{"$f":"IF(N204<>\"\", IF(INDEX('Full set Core Client Indicator'!$A$3:$AB$351, MATCH(Selection_Hide2!$A204, 'Full set Core Client Indicator'!$A$3:$A$351, 0), MATCH(Selection_Hide2!O$5, 'Full set Core Client Indicator'!$A$3:$AB$3, 0))=\"\", \"\",  INDEX('Full set Core Client Indicator'!$A$3:$AB$351, MATCH(Selection_Hide2!$A204, 'Full set Core Client Indicator'!$A$3:$A$351, 0), MATCH(Selection_Hide2!O$5, 'Full set Core Client Indicator'!$A$3:$AB$3, 0))), \"\")","v":""},{"$f":"IF(O204<>\"\", IF(INDEX('Full set Core Client Indicator'!$A$3:$AB$351, MATCH(Selection_Hide2!$A204, 'Full set Core Client Indicator'!$A$3:$A$351, 0), MATCH(Selection_Hide2!P$5, 'Full set Core Client Indicator'!$A$3:$AB$3, 0))=\"\", \"\",  INDEX('Full set Core Client Indicator'!$A$3:$AB$351, MATCH(Selection_Hide2!$A204, 'Full set Core Client Indicator'!$A$3:$A$351, 0), MATCH(Selection_Hide2!P$5, 'Full set Core Client Indicator'!$A$3:$AB$3, 0))), \"\")","v":""},{"$f":"IF(P204<>\"\", IF(INDEX('Full set Core Client Indicator'!$A$3:$AB$351, MATCH(Selection_Hide2!$A204, 'Full set Core Client Indicator'!$A$3:$A$351, 0), MATCH(Selection_Hide2!Q$5, 'Full set Core Client Indicator'!$A$3:$AB$3, 0))=\"\", \"\",  INDEX('Full set Core Client Indicator'!$A$3:$AB$351, MATCH(Selection_Hide2!$A204, 'Full set Core Client Indicator'!$A$3:$A$351, 0), MATCH(Selection_Hide2!Q$5, 'Full set Core Client Indicator'!$A$3:$AB$3, 0))), \"\")","v":""},{"$f":"IF(Q204<>\"\", IF(INDEX('Full set Core Client Indicator'!$A$3:$AB$351, MATCH(Selection_Hide2!$A204, 'Full set Core Client Indicator'!$A$3:$A$351, 0), MATCH(Selection_Hide2!R$5, 'Full set Core Client Indicator'!$A$3:$AB$3, 0))=\"\", \"\",  INDEX('Full set Core Client Indicator'!$A$3:$AB$351, MATCH(Selection_Hide2!$A204, 'Full set Core Client Indicator'!$A$3:$A$351, 0), MATCH(Selection_Hide2!R$5, 'Full set Core Client Indicator'!$A$3:$AB$3, 0))), \"\")","v":""},{"$f":"IF(R204<>\"\", IF(INDEX('Full set Core Client Indicator'!$A$3:$AB$351, MATCH(Selection_Hide2!$A204, 'Full set Core Client Indicator'!$A$3:$A$351, 0), MATCH(Selection_Hide2!S$5, 'Full set Core Client Indicator'!$A$3:$AB$3, 0))=\"\", \"\",  INDEX('Full set Core Client Indicator'!$A$3:$AB$351, MATCH(Selection_Hide2!$A204, 'Full set Core Client Indicator'!$A$3:$A$351, 0), MATCH(Selection_Hide2!S$5, 'Full set Core Client Indicator'!$A$3:$AB$3, 0))), \"\")","v":""},{"$f":"IF(S204<>\"\", IF(INDEX('Full set Core Client Indicator'!$A$3:$AB$351, MATCH(Selection_Hide2!$A204, 'Full set Core Client Indicator'!$A$3:$A$351, 0), MATCH(Selection_Hide2!T$5, 'Full set Core Client Indicator'!$A$3:$AB$3, 0))=\"\", \"\",  INDEX('Full set Core Client Indicator'!$A$3:$AB$351, MATCH(Selection_Hide2!$A204, 'Full set Core Client Indicator'!$A$3:$A$351, 0), MATCH(Selection_Hide2!T$5, 'Full set Core Client Indicator'!$A$3:$AB$3, 0))), \"\")","v":""},{"$f":"IF(T204<>\"\", IF(INDEX('Full set Core Client Indicator'!$A$3:$AB$351, MATCH(Selection_Hide2!$A204, 'Full set Core Client Indicator'!$A$3:$A$351, 0), MATCH(Selection_Hide2!U$5, 'Full set Core Client Indicator'!$A$3:$AB$3, 0))=\"\", \"\",  INDEX('Full set Core Client Indicator'!$A$3:$AB$351, MATCH(Selection_Hide2!$A204, 'Full set Core Client Indicator'!$A$3:$A$351, 0), MATCH(Selection_Hide2!U$5, 'Full set Core Client Indicator'!$A$3:$AB$3, 0))), \"\")","v":""},{"$f":"IF(U204<>\"\", IF(INDEX('Full set Core Client Indicator'!$A$3:$AB$351, MATCH(Selection_Hide2!$A204, 'Full set Core Client Indicator'!$A$3:$A$351, 0), MATCH(Selection_Hide2!V$5, 'Full set Core Client Indicator'!$A$3:$AB$3, 0))=\"\", \"\",  INDEX('Full set Core Client Indicator'!$A$3:$AB$351, MATCH(Selection_Hide2!$A204, 'Full set Core Client Indicator'!$A$3:$A$351, 0), MATCH(Selection_Hide2!V$5, 'Full set Core Client Indicator'!$A$3:$AB$3, 0))), \"\")","v":""},{"$f":"IF(V204<>\"\", IF(INDEX('Full set Core Client Indicator'!$A$3:$AB$351, MATCH(Selection_Hide2!$A204, 'Full set Core Client Indicator'!$A$3:$A$351, 0), MATCH(Selection_Hide2!W$5, 'Full set Core Client Indicator'!$A$3:$AB$3, 0))=\"\", \"\",  INDEX('Full set Core Client Indicator'!$A$3:$AB$351, MATCH(Selection_Hide2!$A204, 'Full set Core Client Indicator'!$A$3:$A$351, 0), MATCH(Selection_Hide2!W$5, 'Full set Core Client Indicator'!$A$3:$AB$3, 0))), \"\")","v":""},{"$f":"IF(W204<>\"\", IF(INDEX('Full set Core Client Indicator'!$A$3:$AB$351, MATCH(Selection_Hide2!$A204, 'Full set Core Client Indicator'!$A$3:$A$351, 0), MATCH(Selection_Hide2!X$5, 'Full set Core Client Indicator'!$A$3:$AB$3, 0))=\"\", \"\",  INDEX('Full set Core Client Indicator'!$A$3:$AB$351, MATCH(Selection_Hide2!$A204, 'Full set Core Client Indicator'!$A$3:$A$351, 0), MATCH(Selection_Hide2!X$5, 'Full set Core Client Indicator'!$A$3:$AB$3, 0))), \"\")","v":""},{"$f":"IF(X204<>\"\", IF(INDEX('Full set Core Client Indicator'!$A$3:$AB$351, MATCH(Selection_Hide2!$A204, 'Full set Core Client Indicator'!$A$3:$A$351, 0), MATCH(Selection_Hide2!Y$5, 'Full set Core Client Indicator'!$A$3:$AB$3, 0))=\"\", \"\",  INDEX('Full set Core Client Indicator'!$A$3:$AB$351, MATCH(Selection_Hide2!$A204, 'Full set Core Client Indicator'!$A$3:$A$351, 0), MATCH(Selection_Hide2!Y$5, 'Full set Core Client Indicator'!$A$3:$AB$3, 0))), \"\")","v":""},{"$f":"IF(Y204<>\"\", IF(INDEX('Full set Core Client Indicator'!$A$3:$AB$351, MATCH(Selection_Hide2!$A204, 'Full set Core Client Indicator'!$A$3:$A$351, 0), MATCH(Selection_Hide2!Z$5, 'Full set Core Client Indicator'!$A$3:$AB$3, 0))=\"\", \"\",  INDEX('Full set Core Client Indicator'!$A$3:$AB$351, MATCH(Selection_Hide2!$A204, 'Full set Core Client Indicator'!$A$3:$A$351, 0), MATCH(Selection_Hide2!Z$5, 'Full set Core Client Indicator'!$A$3:$AB$3, 0))), \"\")","v":""},{"$f":"IF(Z204<>\"\", IF(INDEX('Full set Core Client Indicator'!$A$3:$AB$351, MATCH(Selection_Hide2!$A204, 'Full set Core Client Indicator'!$A$3:$A$351, 0), MATCH(Selection_Hide2!AA$5, 'Full set Core Client Indicator'!$A$3:$AB$3, 0))=\"\", \"\",  INDEX('Full set Core Client Indicator'!$A$3:$AB$351, MATCH(Selection_Hide2!$A204, 'Full set Core Client Indicator'!$A$3:$A$351, 0), MATCH(Selection_Hide2!AA$5, 'Full set Core Client Indicator'!$A$3:$AB$3, 0))), \"\")","v":""},{"$f":"IF(AA204<>\"\", IF(INDEX('Full set Core Client Indicator'!$A$3:$AB$351, MATCH(Selection_Hide2!$A204, 'Full set Core Client Indicator'!$A$3:$A$351, 0), MATCH(Selection_Hide2!AB$5, 'Full set Core Client Indicator'!$A$3:$AB$3, 0))=\"\", \"\",  INDEX('Full set Core Client Indicator'!$A$3:$AB$351, MATCH(Selection_Hide2!$A204, 'Full set Core Client Indicator'!$A$3:$A$351, 0), MATCH(Selection_Hide2!AB$5, 'Full set Core Client Indicator'!$A$3:$AB$3, 0))), \"\")","v":""}]
[{"$f":"IF(AND(Selection_Hide1!C203<>0, Selection_Hide1!C203<>\"Grand Total\"), Selection_Hide1!C203, \"\")","v":""},{"$f":"IF(A205<>\"\", IF(INDEX('Full set Core Client Indicator'!$A$3:$AB$351, MATCH(Selection_Hide2!$A205, 'Full set Core Client Indicator'!$A$3:$A$351, 0), MATCH(Selection_Hide2!B$5, 'Full set Core Client Indicator'!$A$3:$AB$3, 0))=\"\", \"\",  INDEX('Full set Core Client Indicator'!$A$3:$AB$351, MATCH(Selection_Hide2!$A205, 'Full set Core Client Indicator'!$A$3:$A$351, 0), MATCH(Selection_Hide2!B$5, 'Full set Core Client Indicator'!$A$3:$AB$3, 0))), \"\")","v":""},{"$f":"IF(B205<>\"\", IF(INDEX('Full set Core Client Indicator'!$A$3:$AB$351, MATCH(Selection_Hide2!$A205, 'Full set Core Client Indicator'!$A$3:$A$351, 0), MATCH(Selection_Hide2!C$5, 'Full set Core Client Indicator'!$A$3:$AB$3, 0))=\"\", \"\",  INDEX('Full set Core Client Indicator'!$A$3:$AB$351, MATCH(Selection_Hide2!$A205, 'Full set Core Client Indicator'!$A$3:$A$351, 0), MATCH(Selection_Hide2!C$5, 'Full set Core Client Indicator'!$A$3:$AB$3, 0))), \"\")","v":""},{"$f":"IF(C205<>\"\", IF(INDEX('Full set Core Client Indicator'!$A$3:$AB$351, MATCH(Selection_Hide2!$A205, 'Full set Core Client Indicator'!$A$3:$A$351, 0), MATCH(Selection_Hide2!D$5, 'Full set Core Client Indicator'!$A$3:$AB$3, 0))=\"\", \"\",  INDEX('Full set Core Client Indicator'!$A$3:$AB$351, MATCH(Selection_Hide2!$A205, 'Full set Core Client Indicator'!$A$3:$A$351, 0), MATCH(Selection_Hide2!D$5, 'Full set Core Client Indicator'!$A$3:$AB$3, 0))), \"\")","v":""},{"$f":"IF(D205<>\"\", IF(INDEX('Full set Core Client Indicator'!$A$3:$AB$351, MATCH(Selection_Hide2!$A205, 'Full set Core Client Indicator'!$A$3:$A$351, 0), MATCH(Selection_Hide2!E$5, 'Full set Core Client Indicator'!$A$3:$AB$3, 0))=\"\", \"\",  INDEX('Full set Core Client Indicator'!$A$3:$AB$351, MATCH(Selection_Hide2!$A205, 'Full set Core Client Indicator'!$A$3:$A$351, 0), MATCH(Selection_Hide2!E$5, 'Full set Core Client Indicator'!$A$3:$AB$3, 0))), \"\")","v":""},{"$f":"IF(E205<>\"\", IF(INDEX('Full set Core Client Indicator'!$A$3:$AB$351, MATCH(Selection_Hide2!$A205, 'Full set Core Client Indicator'!$A$3:$A$351, 0), MATCH(Selection_Hide2!F$5, 'Full set Core Client Indicator'!$A$3:$AB$3, 0))=\"\", \"\",  INDEX('Full set Core Client Indicator'!$A$3:$AB$351, MATCH(Selection_Hide2!$A205, 'Full set Core Client Indicator'!$A$3:$A$351, 0), MATCH(Selection_Hide2!F$5, 'Full set Core Client Indicator'!$A$3:$AB$3, 0))), \"\")","v":""},{"$f":"IF(F205<>\"\", IF(INDEX('Full set Core Client Indicator'!$A$3:$AB$351, MATCH(Selection_Hide2!$A205, 'Full set Core Client Indicator'!$A$3:$A$351, 0), MATCH(Selection_Hide2!G$5, 'Full set Core Client Indicator'!$A$3:$AB$3, 0))=\"\", \"\",  INDEX('Full set Core Client Indicator'!$A$3:$AB$351, MATCH(Selection_Hide2!$A205, 'Full set Core Client Indicator'!$A$3:$A$351, 0), MATCH(Selection_Hide2!G$5, 'Full set Core Client Indicator'!$A$3:$AB$3, 0))), \"\")","v":""},{"$f":"IF(G205<>\"\", IF(INDEX('Full set Core Client Indicator'!$A$3:$AB$351, MATCH(Selection_Hide2!$A205, 'Full set Core Client Indicator'!$A$3:$A$351, 0), MATCH(Selection_Hide2!H$5, 'Full set Core Client Indicator'!$A$3:$AB$3, 0))=\"\", \"\",  INDEX('Full set Core Client Indicator'!$A$3:$AB$351, MATCH(Selection_Hide2!$A205, 'Full set Core Client Indicator'!$A$3:$A$351, 0), MATCH(Selection_Hide2!H$5, 'Full set Core Client Indicator'!$A$3:$AB$3, 0))), \"\")","v":""},{"$f":"IF(H205<>\"\", IF(INDEX('Full set Core Client Indicator'!$A$3:$AB$351, MATCH(Selection_Hide2!$A205, 'Full set Core Client Indicator'!$A$3:$A$351, 0), MATCH(Selection_Hide2!I$5, 'Full set Core Client Indicator'!$A$3:$AB$3, 0))=\"\", \"\",  INDEX('Full set Core Client Indicator'!$A$3:$AB$351, MATCH(Selection_Hide2!$A205, 'Full set Core Client Indicator'!$A$3:$A$351, 0), MATCH(Selection_Hide2!I$5, 'Full set Core Client Indicator'!$A$3:$AB$3, 0))), \"\")","v":""},{"$f":"IF(I205<>\"\", IF(INDEX('Full set Core Client Indicator'!$A$3:$AB$351, MATCH(Selection_Hide2!$A205, 'Full set Core Client Indicator'!$A$3:$A$351, 0), MATCH(Selection_Hide2!J$5, 'Full set Core Client Indicator'!$A$3:$AB$3, 0))=\"\", \"\",  INDEX('Full set Core Client Indicator'!$A$3:$AB$351, MATCH(Selection_Hide2!$A205, 'Full set Core Client Indicator'!$A$3:$A$351, 0), MATCH(Selection_Hide2!J$5, 'Full set Core Client Indicator'!$A$3:$AB$3, 0))), \"\")","v":""},{"$f":"IF(J205<>\"\", IF(INDEX('Full set Core Client Indicator'!$A$3:$AB$351, MATCH(Selection_Hide2!$A205, 'Full set Core Client Indicator'!$A$3:$A$351, 0), MATCH(Selection_Hide2!K$5, 'Full set Core Client Indicator'!$A$3:$AB$3, 0))=\"\", \"\",  INDEX('Full set Core Client Indicator'!$A$3:$AB$351, MATCH(Selection_Hide2!$A205, 'Full set Core Client Indicator'!$A$3:$A$351, 0), MATCH(Selection_Hide2!K$5, 'Full set Core Client Indicator'!$A$3:$AB$3, 0))), \"\")","v":""},{"$f":"IF(K205<>\"\", IF(INDEX('Full set Core Client Indicator'!$A$3:$AB$351, MATCH(Selection_Hide2!$A205, 'Full set Core Client Indicator'!$A$3:$A$351, 0), MATCH(Selection_Hide2!L$5, 'Full set Core Client Indicator'!$A$3:$AB$3, 0))=\"\", \"\",  INDEX('Full set Core Client Indicator'!$A$3:$AB$351, MATCH(Selection_Hide2!$A205, 'Full set Core Client Indicator'!$A$3:$A$351, 0), MATCH(Selection_Hide2!L$5, 'Full set Core Client Indicator'!$A$3:$AB$3, 0))), \"\")","v":""},{"$f":"IF(L205<>\"\", IF(INDEX('Full set Core Client Indicator'!$A$3:$AB$351, MATCH(Selection_Hide2!$A205, 'Full set Core Client Indicator'!$A$3:$A$351, 0), MATCH(Selection_Hide2!M$5, 'Full set Core Client Indicator'!$A$3:$AB$3, 0))=\"\", \"\",  INDEX('Full set Core Client Indicator'!$A$3:$AB$351, MATCH(Selection_Hide2!$A205, 'Full set Core Client Indicator'!$A$3:$A$351, 0), MATCH(Selection_Hide2!M$5, 'Full set Core Client Indicator'!$A$3:$AB$3, 0))), \"\")","v":""},{"$f":"IF(M205<>\"\", IF(INDEX('Full set Core Client Indicator'!$A$3:$AB$351, MATCH(Selection_Hide2!$A205, 'Full set Core Client Indicator'!$A$3:$A$351, 0), MATCH(Selection_Hide2!N$5, 'Full set Core Client Indicator'!$A$3:$AB$3, 0))=\"\", \"\",  INDEX('Full set Core Client Indicator'!$A$3:$AB$351, MATCH(Selection_Hide2!$A205, 'Full set Core Client Indicator'!$A$3:$A$351, 0), MATCH(Selection_Hide2!N$5, 'Full set Core Client Indicator'!$A$3:$AB$3, 0))), \"\")","v":""},{"$f":"IF(N205<>\"\", IF(INDEX('Full set Core Client Indicator'!$A$3:$AB$351, MATCH(Selection_Hide2!$A205, 'Full set Core Client Indicator'!$A$3:$A$351, 0), MATCH(Selection_Hide2!O$5, 'Full set Core Client Indicator'!$A$3:$AB$3, 0))=\"\", \"\",  INDEX('Full set Core Client Indicator'!$A$3:$AB$351, MATCH(Selection_Hide2!$A205, 'Full set Core Client Indicator'!$A$3:$A$351, 0), MATCH(Selection_Hide2!O$5, 'Full set Core Client Indicator'!$A$3:$AB$3, 0))), \"\")","v":""},{"$f":"IF(O205<>\"\", IF(INDEX('Full set Core Client Indicator'!$A$3:$AB$351, MATCH(Selection_Hide2!$A205, 'Full set Core Client Indicator'!$A$3:$A$351, 0), MATCH(Selection_Hide2!P$5, 'Full set Core Client Indicator'!$A$3:$AB$3, 0))=\"\", \"\",  INDEX('Full set Core Client Indicator'!$A$3:$AB$351, MATCH(Selection_Hide2!$A205, 'Full set Core Client Indicator'!$A$3:$A$351, 0), MATCH(Selection_Hide2!P$5, 'Full set Core Client Indicator'!$A$3:$AB$3, 0))), \"\")","v":""},{"$f":"IF(P205<>\"\", IF(INDEX('Full set Core Client Indicator'!$A$3:$AB$351, MATCH(Selection_Hide2!$A205, 'Full set Core Client Indicator'!$A$3:$A$351, 0), MATCH(Selection_Hide2!Q$5, 'Full set Core Client Indicator'!$A$3:$AB$3, 0))=\"\", \"\",  INDEX('Full set Core Client Indicator'!$A$3:$AB$351, MATCH(Selection_Hide2!$A205, 'Full set Core Client Indicator'!$A$3:$A$351, 0), MATCH(Selection_Hide2!Q$5, 'Full set Core Client Indicator'!$A$3:$AB$3, 0))), \"\")","v":""},{"$f":"IF(Q205<>\"\", IF(INDEX('Full set Core Client Indicator'!$A$3:$AB$351, MATCH(Selection_Hide2!$A205, 'Full set Core Client Indicator'!$A$3:$A$351, 0), MATCH(Selection_Hide2!R$5, 'Full set Core Client Indicator'!$A$3:$AB$3, 0))=\"\", \"\",  INDEX('Full set Core Client Indicator'!$A$3:$AB$351, MATCH(Selection_Hide2!$A205, 'Full set Core Client Indicator'!$A$3:$A$351, 0), MATCH(Selection_Hide2!R$5, 'Full set Core Client Indicator'!$A$3:$AB$3, 0))), \"\")","v":""},{"$f":"IF(R205<>\"\", IF(INDEX('Full set Core Client Indicator'!$A$3:$AB$351, MATCH(Selection_Hide2!$A205, 'Full set Core Client Indicator'!$A$3:$A$351, 0), MATCH(Selection_Hide2!S$5, 'Full set Core Client Indicator'!$A$3:$AB$3, 0))=\"\", \"\",  INDEX('Full set Core Client Indicator'!$A$3:$AB$351, MATCH(Selection_Hide2!$A205, 'Full set Core Client Indicator'!$A$3:$A$351, 0), MATCH(Selection_Hide2!S$5, 'Full set Core Client Indicator'!$A$3:$AB$3, 0))), \"\")","v":""},{"$f":"IF(S205<>\"\", IF(INDEX('Full set Core Client Indicator'!$A$3:$AB$351, MATCH(Selection_Hide2!$A205, 'Full set Core Client Indicator'!$A$3:$A$351, 0), MATCH(Selection_Hide2!T$5, 'Full set Core Client Indicator'!$A$3:$AB$3, 0))=\"\", \"\",  INDEX('Full set Core Client Indicator'!$A$3:$AB$351, MATCH(Selection_Hide2!$A205, 'Full set Core Client Indicator'!$A$3:$A$351, 0), MATCH(Selection_Hide2!T$5, 'Full set Core Client Indicator'!$A$3:$AB$3, 0))), \"\")","v":""},{"$f":"IF(T205<>\"\", IF(INDEX('Full set Core Client Indicator'!$A$3:$AB$351, MATCH(Selection_Hide2!$A205, 'Full set Core Client Indicator'!$A$3:$A$351, 0), MATCH(Selection_Hide2!U$5, 'Full set Core Client Indicator'!$A$3:$AB$3, 0))=\"\", \"\",  INDEX('Full set Core Client Indicator'!$A$3:$AB$351, MATCH(Selection_Hide2!$A205, 'Full set Core Client Indicator'!$A$3:$A$351, 0), MATCH(Selection_Hide2!U$5, 'Full set Core Client Indicator'!$A$3:$AB$3, 0))), \"\")","v":""},{"$f":"IF(U205<>\"\", IF(INDEX('Full set Core Client Indicator'!$A$3:$AB$351, MATCH(Selection_Hide2!$A205, 'Full set Core Client Indicator'!$A$3:$A$351, 0), MATCH(Selection_Hide2!V$5, 'Full set Core Client Indicator'!$A$3:$AB$3, 0))=\"\", \"\",  INDEX('Full set Core Client Indicator'!$A$3:$AB$351, MATCH(Selection_Hide2!$A205, 'Full set Core Client Indicator'!$A$3:$A$351, 0), MATCH(Selection_Hide2!V$5, 'Full set Core Client Indicator'!$A$3:$AB$3, 0))), \"\")","v":""},{"$f":"IF(V205<>\"\", IF(INDEX('Full set Core Client Indicator'!$A$3:$AB$351, MATCH(Selection_Hide2!$A205, 'Full set Core Client Indicator'!$A$3:$A$351, 0), MATCH(Selection_Hide2!W$5, 'Full set Core Client Indicator'!$A$3:$AB$3, 0))=\"\", \"\",  INDEX('Full set Core Client Indicator'!$A$3:$AB$351, MATCH(Selection_Hide2!$A205, 'Full set Core Client Indicator'!$A$3:$A$351, 0), MATCH(Selection_Hide2!W$5, 'Full set Core Client Indicator'!$A$3:$AB$3, 0))), \"\")","v":""},{"$f":"IF(W205<>\"\", IF(INDEX('Full set Core Client Indicator'!$A$3:$AB$351, MATCH(Selection_Hide2!$A205, 'Full set Core Client Indicator'!$A$3:$A$351, 0), MATCH(Selection_Hide2!X$5, 'Full set Core Client Indicator'!$A$3:$AB$3, 0))=\"\", \"\",  INDEX('Full set Core Client Indicator'!$A$3:$AB$351, MATCH(Selection_Hide2!$A205, 'Full set Core Client Indicator'!$A$3:$A$351, 0), MATCH(Selection_Hide2!X$5, 'Full set Core Client Indicator'!$A$3:$AB$3, 0))), \"\")","v":""},{"$f":"IF(X205<>\"\", IF(INDEX('Full set Core Client Indicator'!$A$3:$AB$351, MATCH(Selection_Hide2!$A205, 'Full set Core Client Indicator'!$A$3:$A$351, 0), MATCH(Selection_Hide2!Y$5, 'Full set Core Client Indicator'!$A$3:$AB$3, 0))=\"\", \"\",  INDEX('Full set Core Client Indicator'!$A$3:$AB$351, MATCH(Selection_Hide2!$A205, 'Full set Core Client Indicator'!$A$3:$A$351, 0), MATCH(Selection_Hide2!Y$5, 'Full set Core Client Indicator'!$A$3:$AB$3, 0))), \"\")","v":""},{"$f":"IF(Y205<>\"\", IF(INDEX('Full set Core Client Indicator'!$A$3:$AB$351, MATCH(Selection_Hide2!$A205, 'Full set Core Client Indicator'!$A$3:$A$351, 0), MATCH(Selection_Hide2!Z$5, 'Full set Core Client Indicator'!$A$3:$AB$3, 0))=\"\", \"\",  INDEX('Full set Core Client Indicator'!$A$3:$AB$351, MATCH(Selection_Hide2!$A205, 'Full set Core Client Indicator'!$A$3:$A$351, 0), MATCH(Selection_Hide2!Z$5, 'Full set Core Client Indicator'!$A$3:$AB$3, 0))), \"\")","v":""},{"$f":"IF(Z205<>\"\", IF(INDEX('Full set Core Client Indicator'!$A$3:$AB$351, MATCH(Selection_Hide2!$A205, 'Full set Core Client Indicator'!$A$3:$A$351, 0), MATCH(Selection_Hide2!AA$5, 'Full set Core Client Indicator'!$A$3:$AB$3, 0))=\"\", \"\",  INDEX('Full set Core Client Indicator'!$A$3:$AB$351, MATCH(Selection_Hide2!$A205, 'Full set Core Client Indicator'!$A$3:$A$351, 0), MATCH(Selection_Hide2!AA$5, 'Full set Core Client Indicator'!$A$3:$AB$3, 0))), \"\")","v":""},{"$f":"IF(AA205<>\"\", IF(INDEX('Full set Core Client Indicator'!$A$3:$AB$351, MATCH(Selection_Hide2!$A205, 'Full set Core Client Indicator'!$A$3:$A$351, 0), MATCH(Selection_Hide2!AB$5, 'Full set Core Client Indicator'!$A$3:$AB$3, 0))=\"\", \"\",  INDEX('Full set Core Client Indicator'!$A$3:$AB$351, MATCH(Selection_Hide2!$A205, 'Full set Core Client Indicator'!$A$3:$A$351, 0), MATCH(Selection_Hide2!AB$5, 'Full set Core Client Indicator'!$A$3:$AB$3, 0))), \"\")","v":""}]
[{"$f":"IF(AND(Selection_Hide1!C204<>0, Selection_Hide1!C204<>\"Grand Total\"), Selection_Hide1!C204, \"\")","v":""},{"$f":"IF(A206<>\"\", IF(INDEX('Full set Core Client Indicator'!$A$3:$AB$351, MATCH(Selection_Hide2!$A206, 'Full set Core Client Indicator'!$A$3:$A$351, 0), MATCH(Selection_Hide2!B$5, 'Full set Core Client Indicator'!$A$3:$AB$3, 0))=\"\", \"\",  INDEX('Full set Core Client Indicator'!$A$3:$AB$351, MATCH(Selection_Hide2!$A206, 'Full set Core Client Indicator'!$A$3:$A$351, 0), MATCH(Selection_Hide2!B$5, 'Full set Core Client Indicator'!$A$3:$AB$3, 0))), \"\")","v":""},{"$f":"IF(B206<>\"\", IF(INDEX('Full set Core Client Indicator'!$A$3:$AB$351, MATCH(Selection_Hide2!$A206, 'Full set Core Client Indicator'!$A$3:$A$351, 0), MATCH(Selection_Hide2!C$5, 'Full set Core Client Indicator'!$A$3:$AB$3, 0))=\"\", \"\",  INDEX('Full set Core Client Indicator'!$A$3:$AB$351, MATCH(Selection_Hide2!$A206, 'Full set Core Client Indicator'!$A$3:$A$351, 0), MATCH(Selection_Hide2!C$5, 'Full set Core Client Indicator'!$A$3:$AB$3, 0))), \"\")","v":""},{"$f":"IF(C206<>\"\", IF(INDEX('Full set Core Client Indicator'!$A$3:$AB$351, MATCH(Selection_Hide2!$A206, 'Full set Core Client Indicator'!$A$3:$A$351, 0), MATCH(Selection_Hide2!D$5, 'Full set Core Client Indicator'!$A$3:$AB$3, 0))=\"\", \"\",  INDEX('Full set Core Client Indicator'!$A$3:$AB$351, MATCH(Selection_Hide2!$A206, 'Full set Core Client Indicator'!$A$3:$A$351, 0), MATCH(Selection_Hide2!D$5, 'Full set Core Client Indicator'!$A$3:$AB$3, 0))), \"\")","v":""},{"$f":"IF(D206<>\"\", IF(INDEX('Full set Core Client Indicator'!$A$3:$AB$351, MATCH(Selection_Hide2!$A206, 'Full set Core Client Indicator'!$A$3:$A$351, 0), MATCH(Selection_Hide2!E$5, 'Full set Core Client Indicator'!$A$3:$AB$3, 0))=\"\", \"\",  INDEX('Full set Core Client Indicator'!$A$3:$AB$351, MATCH(Selection_Hide2!$A206, 'Full set Core Client Indicator'!$A$3:$A$351, 0), MATCH(Selection_Hide2!E$5, 'Full set Core Client Indicator'!$A$3:$AB$3, 0))), \"\")","v":""},{"$f":"IF(E206<>\"\", IF(INDEX('Full set Core Client Indicator'!$A$3:$AB$351, MATCH(Selection_Hide2!$A206, 'Full set Core Client Indicator'!$A$3:$A$351, 0), MATCH(Selection_Hide2!F$5, 'Full set Core Client Indicator'!$A$3:$AB$3, 0))=\"\", \"\",  INDEX('Full set Core Client Indicator'!$A$3:$AB$351, MATCH(Selection_Hide2!$A206, 'Full set Core Client Indicator'!$A$3:$A$351, 0), MATCH(Selection_Hide2!F$5, 'Full set Core Client Indicator'!$A$3:$AB$3, 0))), \"\")","v":""},{"$f":"IF(F206<>\"\", IF(INDEX('Full set Core Client Indicator'!$A$3:$AB$351, MATCH(Selection_Hide2!$A206, 'Full set Core Client Indicator'!$A$3:$A$351, 0), MATCH(Selection_Hide2!G$5, 'Full set Core Client Indicator'!$A$3:$AB$3, 0))=\"\", \"\",  INDEX('Full set Core Client Indicator'!$A$3:$AB$351, MATCH(Selection_Hide2!$A206, 'Full set Core Client Indicator'!$A$3:$A$351, 0), MATCH(Selection_Hide2!G$5, 'Full set Core Client Indicator'!$A$3:$AB$3, 0))), \"\")","v":""},{"$f":"IF(G206<>\"\", IF(INDEX('Full set Core Client Indicator'!$A$3:$AB$351, MATCH(Selection_Hide2!$A206, 'Full set Core Client Indicator'!$A$3:$A$351, 0), MATCH(Selection_Hide2!H$5, 'Full set Core Client Indicator'!$A$3:$AB$3, 0))=\"\", \"\",  INDEX('Full set Core Client Indicator'!$A$3:$AB$351, MATCH(Selection_Hide2!$A206, 'Full set Core Client Indicator'!$A$3:$A$351, 0), MATCH(Selection_Hide2!H$5, 'Full set Core Client Indicator'!$A$3:$AB$3, 0))), \"\")","v":""},{"$f":"IF(H206<>\"\", IF(INDEX('Full set Core Client Indicator'!$A$3:$AB$351, MATCH(Selection_Hide2!$A206, 'Full set Core Client Indicator'!$A$3:$A$351, 0), MATCH(Selection_Hide2!I$5, 'Full set Core Client Indicator'!$A$3:$AB$3, 0))=\"\", \"\",  INDEX('Full set Core Client Indicator'!$A$3:$AB$351, MATCH(Selection_Hide2!$A206, 'Full set Core Client Indicator'!$A$3:$A$351, 0), MATCH(Selection_Hide2!I$5, 'Full set Core Client Indicator'!$A$3:$AB$3, 0))), \"\")","v":""},{"$f":"IF(I206<>\"\", IF(INDEX('Full set Core Client Indicator'!$A$3:$AB$351, MATCH(Selection_Hide2!$A206, 'Full set Core Client Indicator'!$A$3:$A$351, 0), MATCH(Selection_Hide2!J$5, 'Full set Core Client Indicator'!$A$3:$AB$3, 0))=\"\", \"\",  INDEX('Full set Core Client Indicator'!$A$3:$AB$351, MATCH(Selection_Hide2!$A206, 'Full set Core Client Indicator'!$A$3:$A$351, 0), MATCH(Selection_Hide2!J$5, 'Full set Core Client Indicator'!$A$3:$AB$3, 0))), \"\")","v":""},{"$f":"IF(J206<>\"\", IF(INDEX('Full set Core Client Indicator'!$A$3:$AB$351, MATCH(Selection_Hide2!$A206, 'Full set Core Client Indicator'!$A$3:$A$351, 0), MATCH(Selection_Hide2!K$5, 'Full set Core Client Indicator'!$A$3:$AB$3, 0))=\"\", \"\",  INDEX('Full set Core Client Indicator'!$A$3:$AB$351, MATCH(Selection_Hide2!$A206, 'Full set Core Client Indicator'!$A$3:$A$351, 0), MATCH(Selection_Hide2!K$5, 'Full set Core Client Indicator'!$A$3:$AB$3, 0))), \"\")","v":""},{"$f":"IF(K206<>\"\", IF(INDEX('Full set Core Client Indicator'!$A$3:$AB$351, MATCH(Selection_Hide2!$A206, 'Full set Core Client Indicator'!$A$3:$A$351, 0), MATCH(Selection_Hide2!L$5, 'Full set Core Client Indicator'!$A$3:$AB$3, 0))=\"\", \"\",  INDEX('Full set Core Client Indicator'!$A$3:$AB$351, MATCH(Selection_Hide2!$A206, 'Full set Core Client Indicator'!$A$3:$A$351, 0), MATCH(Selection_Hide2!L$5, 'Full set Core Client Indicator'!$A$3:$AB$3, 0))), \"\")","v":""},{"$f":"IF(L206<>\"\", IF(INDEX('Full set Core Client Indicator'!$A$3:$AB$351, MATCH(Selection_Hide2!$A206, 'Full set Core Client Indicator'!$A$3:$A$351, 0), MATCH(Selection_Hide2!M$5, 'Full set Core Client Indicator'!$A$3:$AB$3, 0))=\"\", \"\",  INDEX('Full set Core Client Indicator'!$A$3:$AB$351, MATCH(Selection_Hide2!$A206, 'Full set Core Client Indicator'!$A$3:$A$351, 0), MATCH(Selection_Hide2!M$5, 'Full set Core Client Indicator'!$A$3:$AB$3, 0))), \"\")","v":""},{"$f":"IF(M206<>\"\", IF(INDEX('Full set Core Client Indicator'!$A$3:$AB$351, MATCH(Selection_Hide2!$A206, 'Full set Core Client Indicator'!$A$3:$A$351, 0), MATCH(Selection_Hide2!N$5, 'Full set Core Client Indicator'!$A$3:$AB$3, 0))=\"\", \"\",  INDEX('Full set Core Client Indicator'!$A$3:$AB$351, MATCH(Selection_Hide2!$A206, 'Full set Core Client Indicator'!$A$3:$A$351, 0), MATCH(Selection_Hide2!N$5, 'Full set Core Client Indicator'!$A$3:$AB$3, 0))), \"\")","v":""},{"$f":"IF(N206<>\"\", IF(INDEX('Full set Core Client Indicator'!$A$3:$AB$351, MATCH(Selection_Hide2!$A206, 'Full set Core Client Indicator'!$A$3:$A$351, 0), MATCH(Selection_Hide2!O$5, 'Full set Core Client Indicator'!$A$3:$AB$3, 0))=\"\", \"\",  INDEX('Full set Core Client Indicator'!$A$3:$AB$351, MATCH(Selection_Hide2!$A206, 'Full set Core Client Indicator'!$A$3:$A$351, 0), MATCH(Selection_Hide2!O$5, 'Full set Core Client Indicator'!$A$3:$AB$3, 0))), \"\")","v":""},{"$f":"IF(O206<>\"\", IF(INDEX('Full set Core Client Indicator'!$A$3:$AB$351, MATCH(Selection_Hide2!$A206, 'Full set Core Client Indicator'!$A$3:$A$351, 0), MATCH(Selection_Hide2!P$5, 'Full set Core Client Indicator'!$A$3:$AB$3, 0))=\"\", \"\",  INDEX('Full set Core Client Indicator'!$A$3:$AB$351, MATCH(Selection_Hide2!$A206, 'Full set Core Client Indicator'!$A$3:$A$351, 0), MATCH(Selection_Hide2!P$5, 'Full set Core Client Indicator'!$A$3:$AB$3, 0))), \"\")","v":""},{"$f":"IF(P206<>\"\", IF(INDEX('Full set Core Client Indicator'!$A$3:$AB$351, MATCH(Selection_Hide2!$A206, 'Full set Core Client Indicator'!$A$3:$A$351, 0), MATCH(Selection_Hide2!Q$5, 'Full set Core Client Indicator'!$A$3:$AB$3, 0))=\"\", \"\",  INDEX('Full set Core Client Indicator'!$A$3:$AB$351, MATCH(Selection_Hide2!$A206, 'Full set Core Client Indicator'!$A$3:$A$351, 0), MATCH(Selection_Hide2!Q$5, 'Full set Core Client Indicator'!$A$3:$AB$3, 0))), \"\")","v":""},{"$f":"IF(Q206<>\"\", IF(INDEX('Full set Core Client Indicator'!$A$3:$AB$351, MATCH(Selection_Hide2!$A206, 'Full set Core Client Indicator'!$A$3:$A$351, 0), MATCH(Selection_Hide2!R$5, 'Full set Core Client Indicator'!$A$3:$AB$3, 0))=\"\", \"\",  INDEX('Full set Core Client Indicator'!$A$3:$AB$351, MATCH(Selection_Hide2!$A206, 'Full set Core Client Indicator'!$A$3:$A$351, 0), MATCH(Selection_Hide2!R$5, 'Full set Core Client Indicator'!$A$3:$AB$3, 0))), \"\")","v":""},{"$f":"IF(R206<>\"\", IF(INDEX('Full set Core Client Indicator'!$A$3:$AB$351, MATCH(Selection_Hide2!$A206, 'Full set Core Client Indicator'!$A$3:$A$351, 0), MATCH(Selection_Hide2!S$5, 'Full set Core Client Indicator'!$A$3:$AB$3, 0))=\"\", \"\",  INDEX('Full set Core Client Indicator'!$A$3:$AB$351, MATCH(Selection_Hide2!$A206, 'Full set Core Client Indicator'!$A$3:$A$351, 0), MATCH(Selection_Hide2!S$5, 'Full set Core Client Indicator'!$A$3:$AB$3, 0))), \"\")","v":""},{"$f":"IF(S206<>\"\", IF(INDEX('Full set Core Client Indicator'!$A$3:$AB$351, MATCH(Selection_Hide2!$A206, 'Full set Core Client Indicator'!$A$3:$A$351, 0), MATCH(Selection_Hide2!T$5, 'Full set Core Client Indicator'!$A$3:$AB$3, 0))=\"\", \"\",  INDEX('Full set Core Client Indicator'!$A$3:$AB$351, MATCH(Selection_Hide2!$A206, 'Full set Core Client Indicator'!$A$3:$A$351, 0), MATCH(Selection_Hide2!T$5, 'Full set Core Client Indicator'!$A$3:$AB$3, 0))), \"\")","v":""},{"$f":"IF(T206<>\"\", IF(INDEX('Full set Core Client Indicator'!$A$3:$AB$351, MATCH(Selection_Hide2!$A206, 'Full set Core Client Indicator'!$A$3:$A$351, 0), MATCH(Selection_Hide2!U$5, 'Full set Core Client Indicator'!$A$3:$AB$3, 0))=\"\", \"\",  INDEX('Full set Core Client Indicator'!$A$3:$AB$351, MATCH(Selection_Hide2!$A206, 'Full set Core Client Indicator'!$A$3:$A$351, 0), MATCH(Selection_Hide2!U$5, 'Full set Core Client Indicator'!$A$3:$AB$3, 0))), \"\")","v":""},{"$f":"IF(U206<>\"\", IF(INDEX('Full set Core Client Indicator'!$A$3:$AB$351, MATCH(Selection_Hide2!$A206, 'Full set Core Client Indicator'!$A$3:$A$351, 0), MATCH(Selection_Hide2!V$5, 'Full set Core Client Indicator'!$A$3:$AB$3, 0))=\"\", \"\",  INDEX('Full set Core Client Indicator'!$A$3:$AB$351, MATCH(Selection_Hide2!$A206, 'Full set Core Client Indicator'!$A$3:$A$351, 0), MATCH(Selection_Hide2!V$5, 'Full set Core Client Indicator'!$A$3:$AB$3, 0))), \"\")","v":""},{"$f":"IF(V206<>\"\", IF(INDEX('Full set Core Client Indicator'!$A$3:$AB$351, MATCH(Selection_Hide2!$A206, 'Full set Core Client Indicator'!$A$3:$A$351, 0), MATCH(Selection_Hide2!W$5, 'Full set Core Client Indicator'!$A$3:$AB$3, 0))=\"\", \"\",  INDEX('Full set Core Client Indicator'!$A$3:$AB$351, MATCH(Selection_Hide2!$A206, 'Full set Core Client Indicator'!$A$3:$A$351, 0), MATCH(Selection_Hide2!W$5, 'Full set Core Client Indicator'!$A$3:$AB$3, 0))), \"\")","v":""},{"$f":"IF(W206<>\"\", IF(INDEX('Full set Core Client Indicator'!$A$3:$AB$351, MATCH(Selection_Hide2!$A206, 'Full set Core Client Indicator'!$A$3:$A$351, 0), MATCH(Selection_Hide2!X$5, 'Full set Core Client Indicator'!$A$3:$AB$3, 0))=\"\", \"\",  INDEX('Full set Core Client Indicator'!$A$3:$AB$351, MATCH(Selection_Hide2!$A206, 'Full set Core Client Indicator'!$A$3:$A$351, 0), MATCH(Selection_Hide2!X$5, 'Full set Core Client Indicator'!$A$3:$AB$3, 0))), \"\")","v":""},{"$f":"IF(X206<>\"\", IF(INDEX('Full set Core Client Indicator'!$A$3:$AB$351, MATCH(Selection_Hide2!$A206, 'Full set Core Client Indicator'!$A$3:$A$351, 0), MATCH(Selection_Hide2!Y$5, 'Full set Core Client Indicator'!$A$3:$AB$3, 0))=\"\", \"\",  INDEX('Full set Core Client Indicator'!$A$3:$AB$351, MATCH(Selection_Hide2!$A206, 'Full set Core Client Indicator'!$A$3:$A$351, 0), MATCH(Selection_Hide2!Y$5, 'Full set Core Client Indicator'!$A$3:$AB$3, 0))), \"\")","v":""},{"$f":"IF(Y206<>\"\", IF(INDEX('Full set Core Client Indicator'!$A$3:$AB$351, MATCH(Selection_Hide2!$A206, 'Full set Core Client Indicator'!$A$3:$A$351, 0), MATCH(Selection_Hide2!Z$5, 'Full set Core Client Indicator'!$A$3:$AB$3, 0))=\"\", \"\",  INDEX('Full set Core Client Indicator'!$A$3:$AB$351, MATCH(Selection_Hide2!$A206, 'Full set Core Client Indicator'!$A$3:$A$351, 0), MATCH(Selection_Hide2!Z$5, 'Full set Core Client Indicator'!$A$3:$AB$3, 0))), \"\")","v":""},{"$f":"IF(Z206<>\"\", IF(INDEX('Full set Core Client Indicator'!$A$3:$AB$351, MATCH(Selection_Hide2!$A206, 'Full set Core Client Indicator'!$A$3:$A$351, 0), MATCH(Selection_Hide2!AA$5, 'Full set Core Client Indicator'!$A$3:$AB$3, 0))=\"\", \"\",  INDEX('Full set Core Client Indicator'!$A$3:$AB$351, MATCH(Selection_Hide2!$A206, 'Full set Core Client Indicator'!$A$3:$A$351, 0), MATCH(Selection_Hide2!AA$5, 'Full set Core Client Indicator'!$A$3:$AB$3, 0))), \"\")","v":""},{"$f":"IF(AA206<>\"\", IF(INDEX('Full set Core Client Indicator'!$A$3:$AB$351, MATCH(Selection_Hide2!$A206, 'Full set Core Client Indicator'!$A$3:$A$351, 0), MATCH(Selection_Hide2!AB$5, 'Full set Core Client Indicator'!$A$3:$AB$3, 0))=\"\", \"\",  INDEX('Full set Core Client Indicator'!$A$3:$AB$351, MATCH(Selection_Hide2!$A206, 'Full set Core Client Indicator'!$A$3:$A$351, 0), MATCH(Selection_Hide2!AB$5, 'Full set Core Client Indicator'!$A$3:$AB$3, 0))), \"\")","v":""}]
[{"$f":"IF(AND(Selection_Hide1!C205<>0, Selection_Hide1!C205<>\"Grand Total\"), Selection_Hide1!C205, \"\")","v":""},{"$f":"IF(A207<>\"\", IF(INDEX('Full set Core Client Indicator'!$A$3:$AB$351, MATCH(Selection_Hide2!$A207, 'Full set Core Client Indicator'!$A$3:$A$351, 0), MATCH(Selection_Hide2!B$5, 'Full set Core Client Indicator'!$A$3:$AB$3, 0))=\"\", \"\",  INDEX('Full set Core Client Indicator'!$A$3:$AB$351, MATCH(Selection_Hide2!$A207, 'Full set Core Client Indicator'!$A$3:$A$351, 0), MATCH(Selection_Hide2!B$5, 'Full set Core Client Indicator'!$A$3:$AB$3, 0))), \"\")","v":""},{"$f":"IF(B207<>\"\", IF(INDEX('Full set Core Client Indicator'!$A$3:$AB$351, MATCH(Selection_Hide2!$A207, 'Full set Core Client Indicator'!$A$3:$A$351, 0), MATCH(Selection_Hide2!C$5, 'Full set Core Client Indicator'!$A$3:$AB$3, 0))=\"\", \"\",  INDEX('Full set Core Client Indicator'!$A$3:$AB$351, MATCH(Selection_Hide2!$A207, 'Full set Core Client Indicator'!$A$3:$A$351, 0), MATCH(Selection_Hide2!C$5, 'Full set Core Client Indicator'!$A$3:$AB$3, 0))), \"\")","v":""},{"$f":"IF(C207<>\"\", IF(INDEX('Full set Core Client Indicator'!$A$3:$AB$351, MATCH(Selection_Hide2!$A207, 'Full set Core Client Indicator'!$A$3:$A$351, 0), MATCH(Selection_Hide2!D$5, 'Full set Core Client Indicator'!$A$3:$AB$3, 0))=\"\", \"\",  INDEX('Full set Core Client Indicator'!$A$3:$AB$351, MATCH(Selection_Hide2!$A207, 'Full set Core Client Indicator'!$A$3:$A$351, 0), MATCH(Selection_Hide2!D$5, 'Full set Core Client Indicator'!$A$3:$AB$3, 0))), \"\")","v":""},{"$f":"IF(D207<>\"\", IF(INDEX('Full set Core Client Indicator'!$A$3:$AB$351, MATCH(Selection_Hide2!$A207, 'Full set Core Client Indicator'!$A$3:$A$351, 0), MATCH(Selection_Hide2!E$5, 'Full set Core Client Indicator'!$A$3:$AB$3, 0))=\"\", \"\",  INDEX('Full set Core Client Indicator'!$A$3:$AB$351, MATCH(Selection_Hide2!$A207, 'Full set Core Client Indicator'!$A$3:$A$351, 0), MATCH(Selection_Hide2!E$5, 'Full set Core Client Indicator'!$A$3:$AB$3, 0))), \"\")","v":""},{"$f":"IF(E207<>\"\", IF(INDEX('Full set Core Client Indicator'!$A$3:$AB$351, MATCH(Selection_Hide2!$A207, 'Full set Core Client Indicator'!$A$3:$A$351, 0), MATCH(Selection_Hide2!F$5, 'Full set Core Client Indicator'!$A$3:$AB$3, 0))=\"\", \"\",  INDEX('Full set Core Client Indicator'!$A$3:$AB$351, MATCH(Selection_Hide2!$A207, 'Full set Core Client Indicator'!$A$3:$A$351, 0), MATCH(Selection_Hide2!F$5, 'Full set Core Client Indicator'!$A$3:$AB$3, 0))), \"\")","v":""},{"$f":"IF(F207<>\"\", IF(INDEX('Full set Core Client Indicator'!$A$3:$AB$351, MATCH(Selection_Hide2!$A207, 'Full set Core Client Indicator'!$A$3:$A$351, 0), MATCH(Selection_Hide2!G$5, 'Full set Core Client Indicator'!$A$3:$AB$3, 0))=\"\", \"\",  INDEX('Full set Core Client Indicator'!$A$3:$AB$351, MATCH(Selection_Hide2!$A207, 'Full set Core Client Indicator'!$A$3:$A$351, 0), MATCH(Selection_Hide2!G$5, 'Full set Core Client Indicator'!$A$3:$AB$3, 0))), \"\")","v":""},{"$f":"IF(G207<>\"\", IF(INDEX('Full set Core Client Indicator'!$A$3:$AB$351, MATCH(Selection_Hide2!$A207, 'Full set Core Client Indicator'!$A$3:$A$351, 0), MATCH(Selection_Hide2!H$5, 'Full set Core Client Indicator'!$A$3:$AB$3, 0))=\"\", \"\",  INDEX('Full set Core Client Indicator'!$A$3:$AB$351, MATCH(Selection_Hide2!$A207, 'Full set Core Client Indicator'!$A$3:$A$351, 0), MATCH(Selection_Hide2!H$5, 'Full set Core Client Indicator'!$A$3:$AB$3, 0))), \"\")","v":""},{"$f":"IF(H207<>\"\", IF(INDEX('Full set Core Client Indicator'!$A$3:$AB$351, MATCH(Selection_Hide2!$A207, 'Full set Core Client Indicator'!$A$3:$A$351, 0), MATCH(Selection_Hide2!I$5, 'Full set Core Client Indicator'!$A$3:$AB$3, 0))=\"\", \"\",  INDEX('Full set Core Client Indicator'!$A$3:$AB$351, MATCH(Selection_Hide2!$A207, 'Full set Core Client Indicator'!$A$3:$A$351, 0), MATCH(Selection_Hide2!I$5, 'Full set Core Client Indicator'!$A$3:$AB$3, 0))), \"\")","v":""},{"$f":"IF(I207<>\"\", IF(INDEX('Full set Core Client Indicator'!$A$3:$AB$351, MATCH(Selection_Hide2!$A207, 'Full set Core Client Indicator'!$A$3:$A$351, 0), MATCH(Selection_Hide2!J$5, 'Full set Core Client Indicator'!$A$3:$AB$3, 0))=\"\", \"\",  INDEX('Full set Core Client Indicator'!$A$3:$AB$351, MATCH(Selection_Hide2!$A207, 'Full set Core Client Indicator'!$A$3:$A$351, 0), MATCH(Selection_Hide2!J$5, 'Full set Core Client Indicator'!$A$3:$AB$3, 0))), \"\")","v":""},{"$f":"IF(J207<>\"\", IF(INDEX('Full set Core Client Indicator'!$A$3:$AB$351, MATCH(Selection_Hide2!$A207, 'Full set Core Client Indicator'!$A$3:$A$351, 0), MATCH(Selection_Hide2!K$5, 'Full set Core Client Indicator'!$A$3:$AB$3, 0))=\"\", \"\",  INDEX('Full set Core Client Indicator'!$A$3:$AB$351, MATCH(Selection_Hide2!$A207, 'Full set Core Client Indicator'!$A$3:$A$351, 0), MATCH(Selection_Hide2!K$5, 'Full set Core Client Indicator'!$A$3:$AB$3, 0))), \"\")","v":""},{"$f":"IF(K207<>\"\", IF(INDEX('Full set Core Client Indicator'!$A$3:$AB$351, MATCH(Selection_Hide2!$A207, 'Full set Core Client Indicator'!$A$3:$A$351, 0), MATCH(Selection_Hide2!L$5, 'Full set Core Client Indicator'!$A$3:$AB$3, 0))=\"\", \"\",  INDEX('Full set Core Client Indicator'!$A$3:$AB$351, MATCH(Selection_Hide2!$A207, 'Full set Core Client Indicator'!$A$3:$A$351, 0), MATCH(Selection_Hide2!L$5, 'Full set Core Client Indicator'!$A$3:$AB$3, 0))), \"\")","v":""},{"$f":"IF(L207<>\"\", IF(INDEX('Full set Core Client Indicator'!$A$3:$AB$351, MATCH(Selection_Hide2!$A207, 'Full set Core Client Indicator'!$A$3:$A$351, 0), MATCH(Selection_Hide2!M$5, 'Full set Core Client Indicator'!$A$3:$AB$3, 0))=\"\", \"\",  INDEX('Full set Core Client Indicator'!$A$3:$AB$351, MATCH(Selection_Hide2!$A207, 'Full set Core Client Indicator'!$A$3:$A$351, 0), MATCH(Selection_Hide2!M$5, 'Full set Core Client Indicator'!$A$3:$AB$3, 0))), \"\")","v":""},{"$f":"IF(M207<>\"\", IF(INDEX('Full set Core Client Indicator'!$A$3:$AB$351, MATCH(Selection_Hide2!$A207, 'Full set Core Client Indicator'!$A$3:$A$351, 0), MATCH(Selection_Hide2!N$5, 'Full set Core Client Indicator'!$A$3:$AB$3, 0))=\"\", \"\",  INDEX('Full set Core Client Indicator'!$A$3:$AB$351, MATCH(Selection_Hide2!$A207, 'Full set Core Client Indicator'!$A$3:$A$351, 0), MATCH(Selection_Hide2!N$5, 'Full set Core Client Indicator'!$A$3:$AB$3, 0))), \"\")","v":""},{"$f":"IF(N207<>\"\", IF(INDEX('Full set Core Client Indicator'!$A$3:$AB$351, MATCH(Selection_Hide2!$A207, 'Full set Core Client Indicator'!$A$3:$A$351, 0), MATCH(Selection_Hide2!O$5, 'Full set Core Client Indicator'!$A$3:$AB$3, 0))=\"\", \"\",  INDEX('Full set Core Client Indicator'!$A$3:$AB$351, MATCH(Selection_Hide2!$A207, 'Full set Core Client Indicator'!$A$3:$A$351, 0), MATCH(Selection_Hide2!O$5, 'Full set Core Client Indicator'!$A$3:$AB$3, 0))), \"\")","v":""},{"$f":"IF(O207<>\"\", IF(INDEX('Full set Core Client Indicator'!$A$3:$AB$351, MATCH(Selection_Hide2!$A207, 'Full set Core Client Indicator'!$A$3:$A$351, 0), MATCH(Selection_Hide2!P$5, 'Full set Core Client Indicator'!$A$3:$AB$3, 0))=\"\", \"\",  INDEX('Full set Core Client Indicator'!$A$3:$AB$351, MATCH(Selection_Hide2!$A207, 'Full set Core Client Indicator'!$A$3:$A$351, 0), MATCH(Selection_Hide2!P$5, 'Full set Core Client Indicator'!$A$3:$AB$3, 0))), \"\")","v":""},{"$f":"IF(P207<>\"\", IF(INDEX('Full set Core Client Indicator'!$A$3:$AB$351, MATCH(Selection_Hide2!$A207, 'Full set Core Client Indicator'!$A$3:$A$351, 0), MATCH(Selection_Hide2!Q$5, 'Full set Core Client Indicator'!$A$3:$AB$3, 0))=\"\", \"\",  INDEX('Full set Core Client Indicator'!$A$3:$AB$351, MATCH(Selection_Hide2!$A207, 'Full set Core Client Indicator'!$A$3:$A$351, 0), MATCH(Selection_Hide2!Q$5, 'Full set Core Client Indicator'!$A$3:$AB$3, 0))), \"\")","v":""},{"$f":"IF(Q207<>\"\", IF(INDEX('Full set Core Client Indicator'!$A$3:$AB$351, MATCH(Selection_Hide2!$A207, 'Full set Core Client Indicator'!$A$3:$A$351, 0), MATCH(Selection_Hide2!R$5, 'Full set Core Client Indicator'!$A$3:$AB$3, 0))=\"\", \"\",  INDEX('Full set Core Client Indicator'!$A$3:$AB$351, MATCH(Selection_Hide2!$A207, 'Full set Core Client Indicator'!$A$3:$A$351, 0), MATCH(Selection_Hide2!R$5, 'Full set Core Client Indicator'!$A$3:$AB$3, 0))), \"\")","v":""},{"$f":"IF(R207<>\"\", IF(INDEX('Full set Core Client Indicator'!$A$3:$AB$351, MATCH(Selection_Hide2!$A207, 'Full set Core Client Indicator'!$A$3:$A$351, 0), MATCH(Selection_Hide2!S$5, 'Full set Core Client Indicator'!$A$3:$AB$3, 0))=\"\", \"\",  INDEX('Full set Core Client Indicator'!$A$3:$AB$351, MATCH(Selection_Hide2!$A207, 'Full set Core Client Indicator'!$A$3:$A$351, 0), MATCH(Selection_Hide2!S$5, 'Full set Core Client Indicator'!$A$3:$AB$3, 0))), \"\")","v":""},{"$f":"IF(S207<>\"\", IF(INDEX('Full set Core Client Indicator'!$A$3:$AB$351, MATCH(Selection_Hide2!$A207, 'Full set Core Client Indicator'!$A$3:$A$351, 0), MATCH(Selection_Hide2!T$5, 'Full set Core Client Indicator'!$A$3:$AB$3, 0))=\"\", \"\",  INDEX('Full set Core Client Indicator'!$A$3:$AB$351, MATCH(Selection_Hide2!$A207, 'Full set Core Client Indicator'!$A$3:$A$351, 0), MATCH(Selection_Hide2!T$5, 'Full set Core Client Indicator'!$A$3:$AB$3, 0))), \"\")","v":""},{"$f":"IF(T207<>\"\", IF(INDEX('Full set Core Client Indicator'!$A$3:$AB$351, MATCH(Selection_Hide2!$A207, 'Full set Core Client Indicator'!$A$3:$A$351, 0), MATCH(Selection_Hide2!U$5, 'Full set Core Client Indicator'!$A$3:$AB$3, 0))=\"\", \"\",  INDEX('Full set Core Client Indicator'!$A$3:$AB$351, MATCH(Selection_Hide2!$A207, 'Full set Core Client Indicator'!$A$3:$A$351, 0), MATCH(Selection_Hide2!U$5, 'Full set Core Client Indicator'!$A$3:$AB$3, 0))), \"\")","v":""},{"$f":"IF(U207<>\"\", IF(INDEX('Full set Core Client Indicator'!$A$3:$AB$351, MATCH(Selection_Hide2!$A207, 'Full set Core Client Indicator'!$A$3:$A$351, 0), MATCH(Selection_Hide2!V$5, 'Full set Core Client Indicator'!$A$3:$AB$3, 0))=\"\", \"\",  INDEX('Full set Core Client Indicator'!$A$3:$AB$351, MATCH(Selection_Hide2!$A207, 'Full set Core Client Indicator'!$A$3:$A$351, 0), MATCH(Selection_Hide2!V$5, 'Full set Core Client Indicator'!$A$3:$AB$3, 0))), \"\")","v":""},{"$f":"IF(V207<>\"\", IF(INDEX('Full set Core Client Indicator'!$A$3:$AB$351, MATCH(Selection_Hide2!$A207, 'Full set Core Client Indicator'!$A$3:$A$351, 0), MATCH(Selection_Hide2!W$5, 'Full set Core Client Indicator'!$A$3:$AB$3, 0))=\"\", \"\",  INDEX('Full set Core Client Indicator'!$A$3:$AB$351, MATCH(Selection_Hide2!$A207, 'Full set Core Client Indicator'!$A$3:$A$351, 0), MATCH(Selection_Hide2!W$5, 'Full set Core Client Indicator'!$A$3:$AB$3, 0))), \"\")","v":""},{"$f":"IF(W207<>\"\", IF(INDEX('Full set Core Client Indicator'!$A$3:$AB$351, MATCH(Selection_Hide2!$A207, 'Full set Core Client Indicator'!$A$3:$A$351, 0), MATCH(Selection_Hide2!X$5, 'Full set Core Client Indicator'!$A$3:$AB$3, 0))=\"\", \"\",  INDEX('Full set Core Client Indicator'!$A$3:$AB$351, MATCH(Selection_Hide2!$A207, 'Full set Core Client Indicator'!$A$3:$A$351, 0), MATCH(Selection_Hide2!X$5, 'Full set Core Client Indicator'!$A$3:$AB$3, 0))), \"\")","v":""},{"$f":"IF(X207<>\"\", IF(INDEX('Full set Core Client Indicator'!$A$3:$AB$351, MATCH(Selection_Hide2!$A207, 'Full set Core Client Indicator'!$A$3:$A$351, 0), MATCH(Selection_Hide2!Y$5, 'Full set Core Client Indicator'!$A$3:$AB$3, 0))=\"\", \"\",  INDEX('Full set Core Client Indicator'!$A$3:$AB$351, MATCH(Selection_Hide2!$A207, 'Full set Core Client Indicator'!$A$3:$A$351, 0), MATCH(Selection_Hide2!Y$5, 'Full set Core Client Indicator'!$A$3:$AB$3, 0))), \"\")","v":""},{"$f":"IF(Y207<>\"\", IF(INDEX('Full set Core Client Indicator'!$A$3:$AB$351, MATCH(Selection_Hide2!$A207, 'Full set Core Client Indicator'!$A$3:$A$351, 0), MATCH(Selection_Hide2!Z$5, 'Full set Core Client Indicator'!$A$3:$AB$3, 0))=\"\", \"\",  INDEX('Full set Core Client Indicator'!$A$3:$AB$351, MATCH(Selection_Hide2!$A207, 'Full set Core Client Indicator'!$A$3:$A$351, 0), MATCH(Selection_Hide2!Z$5, 'Full set Core Client Indicator'!$A$3:$AB$3, 0))), \"\")","v":""},{"$f":"IF(Z207<>\"\", IF(INDEX('Full set Core Client Indicator'!$A$3:$AB$351, MATCH(Selection_Hide2!$A207, 'Full set Core Client Indicator'!$A$3:$A$351, 0), MATCH(Selection_Hide2!AA$5, 'Full set Core Client Indicator'!$A$3:$AB$3, 0))=\"\", \"\",  INDEX('Full set Core Client Indicator'!$A$3:$AB$351, MATCH(Selection_Hide2!$A207, 'Full set Core Client Indicator'!$A$3:$A$351, 0), MATCH(Selection_Hide2!AA$5, 'Full set Core Client Indicator'!$A$3:$AB$3, 0))), \"\")","v":""},{"$f":"IF(AA207<>\"\", IF(INDEX('Full set Core Client Indicator'!$A$3:$AB$351, MATCH(Selection_Hide2!$A207, 'Full set Core Client Indicator'!$A$3:$A$351, 0), MATCH(Selection_Hide2!AB$5, 'Full set Core Client Indicator'!$A$3:$AB$3, 0))=\"\", \"\",  INDEX('Full set Core Client Indicator'!$A$3:$AB$351, MATCH(Selection_Hide2!$A207, 'Full set Core Client Indicator'!$A$3:$A$351, 0), MATCH(Selection_Hide2!AB$5, 'Full set Core Client Indicator'!$A$3:$AB$3, 0))), \"\")","v":""}]
[{"$f":"IF(AND(Selection_Hide1!C206<>0, Selection_Hide1!C206<>\"Grand Total\"), Selection_Hide1!C206, \"\")","v":""},{"$f":"IF(A208<>\"\", IF(INDEX('Full set Core Client Indicator'!$A$3:$AB$351, MATCH(Selection_Hide2!$A208, 'Full set Core Client Indicator'!$A$3:$A$351, 0), MATCH(Selection_Hide2!B$5, 'Full set Core Client Indicator'!$A$3:$AB$3, 0))=\"\", \"\",  INDEX('Full set Core Client Indicator'!$A$3:$AB$351, MATCH(Selection_Hide2!$A208, 'Full set Core Client Indicator'!$A$3:$A$351, 0), MATCH(Selection_Hide2!B$5, 'Full set Core Client Indicator'!$A$3:$AB$3, 0))), \"\")","v":""},{"$f":"IF(B208<>\"\", IF(INDEX('Full set Core Client Indicator'!$A$3:$AB$351, MATCH(Selection_Hide2!$A208, 'Full set Core Client Indicator'!$A$3:$A$351, 0), MATCH(Selection_Hide2!C$5, 'Full set Core Client Indicator'!$A$3:$AB$3, 0))=\"\", \"\",  INDEX('Full set Core Client Indicator'!$A$3:$AB$351, MATCH(Selection_Hide2!$A208, 'Full set Core Client Indicator'!$A$3:$A$351, 0), MATCH(Selection_Hide2!C$5, 'Full set Core Client Indicator'!$A$3:$AB$3, 0))), \"\")","v":""},{"$f":"IF(C208<>\"\", IF(INDEX('Full set Core Client Indicator'!$A$3:$AB$351, MATCH(Selection_Hide2!$A208, 'Full set Core Client Indicator'!$A$3:$A$351, 0), MATCH(Selection_Hide2!D$5, 'Full set Core Client Indicator'!$A$3:$AB$3, 0))=\"\", \"\",  INDEX('Full set Core Client Indicator'!$A$3:$AB$351, MATCH(Selection_Hide2!$A208, 'Full set Core Client Indicator'!$A$3:$A$351, 0), MATCH(Selection_Hide2!D$5, 'Full set Core Client Indicator'!$A$3:$AB$3, 0))), \"\")","v":""},{"$f":"IF(D208<>\"\", IF(INDEX('Full set Core Client Indicator'!$A$3:$AB$351, MATCH(Selection_Hide2!$A208, 'Full set Core Client Indicator'!$A$3:$A$351, 0), MATCH(Selection_Hide2!E$5, 'Full set Core Client Indicator'!$A$3:$AB$3, 0))=\"\", \"\",  INDEX('Full set Core Client Indicator'!$A$3:$AB$351, MATCH(Selection_Hide2!$A208, 'Full set Core Client Indicator'!$A$3:$A$351, 0), MATCH(Selection_Hide2!E$5, 'Full set Core Client Indicator'!$A$3:$AB$3, 0))), \"\")","v":""},{"$f":"IF(E208<>\"\", IF(INDEX('Full set Core Client Indicator'!$A$3:$AB$351, MATCH(Selection_Hide2!$A208, 'Full set Core Client Indicator'!$A$3:$A$351, 0), MATCH(Selection_Hide2!F$5, 'Full set Core Client Indicator'!$A$3:$AB$3, 0))=\"\", \"\",  INDEX('Full set Core Client Indicator'!$A$3:$AB$351, MATCH(Selection_Hide2!$A208, 'Full set Core Client Indicator'!$A$3:$A$351, 0), MATCH(Selection_Hide2!F$5, 'Full set Core Client Indicator'!$A$3:$AB$3, 0))), \"\")","v":""},{"$f":"IF(F208<>\"\", IF(INDEX('Full set Core Client Indicator'!$A$3:$AB$351, MATCH(Selection_Hide2!$A208, 'Full set Core Client Indicator'!$A$3:$A$351, 0), MATCH(Selection_Hide2!G$5, 'Full set Core Client Indicator'!$A$3:$AB$3, 0))=\"\", \"\",  INDEX('Full set Core Client Indicator'!$A$3:$AB$351, MATCH(Selection_Hide2!$A208, 'Full set Core Client Indicator'!$A$3:$A$351, 0), MATCH(Selection_Hide2!G$5, 'Full set Core Client Indicator'!$A$3:$AB$3, 0))), \"\")","v":""},{"$f":"IF(G208<>\"\", IF(INDEX('Full set Core Client Indicator'!$A$3:$AB$351, MATCH(Selection_Hide2!$A208, 'Full set Core Client Indicator'!$A$3:$A$351, 0), MATCH(Selection_Hide2!H$5, 'Full set Core Client Indicator'!$A$3:$AB$3, 0))=\"\", \"\",  INDEX('Full set Core Client Indicator'!$A$3:$AB$351, MATCH(Selection_Hide2!$A208, 'Full set Core Client Indicator'!$A$3:$A$351, 0), MATCH(Selection_Hide2!H$5, 'Full set Core Client Indicator'!$A$3:$AB$3, 0))), \"\")","v":""},{"$f":"IF(H208<>\"\", IF(INDEX('Full set Core Client Indicator'!$A$3:$AB$351, MATCH(Selection_Hide2!$A208, 'Full set Core Client Indicator'!$A$3:$A$351, 0), MATCH(Selection_Hide2!I$5, 'Full set Core Client Indicator'!$A$3:$AB$3, 0))=\"\", \"\",  INDEX('Full set Core Client Indicator'!$A$3:$AB$351, MATCH(Selection_Hide2!$A208, 'Full set Core Client Indicator'!$A$3:$A$351, 0), MATCH(Selection_Hide2!I$5, 'Full set Core Client Indicator'!$A$3:$AB$3, 0))), \"\")","v":""},{"$f":"IF(I208<>\"\", IF(INDEX('Full set Core Client Indicator'!$A$3:$AB$351, MATCH(Selection_Hide2!$A208, 'Full set Core Client Indicator'!$A$3:$A$351, 0), MATCH(Selection_Hide2!J$5, 'Full set Core Client Indicator'!$A$3:$AB$3, 0))=\"\", \"\",  INDEX('Full set Core Client Indicator'!$A$3:$AB$351, MATCH(Selection_Hide2!$A208, 'Full set Core Client Indicator'!$A$3:$A$351, 0), MATCH(Selection_Hide2!J$5, 'Full set Core Client Indicator'!$A$3:$AB$3, 0))), \"\")","v":""},{"$f":"IF(J208<>\"\", IF(INDEX('Full set Core Client Indicator'!$A$3:$AB$351, MATCH(Selection_Hide2!$A208, 'Full set Core Client Indicator'!$A$3:$A$351, 0), MATCH(Selection_Hide2!K$5, 'Full set Core Client Indicator'!$A$3:$AB$3, 0))=\"\", \"\",  INDEX('Full set Core Client Indicator'!$A$3:$AB$351, MATCH(Selection_Hide2!$A208, 'Full set Core Client Indicator'!$A$3:$A$351, 0), MATCH(Selection_Hide2!K$5, 'Full set Core Client Indicator'!$A$3:$AB$3, 0))), \"\")","v":""},{"$f":"IF(K208<>\"\", IF(INDEX('Full set Core Client Indicator'!$A$3:$AB$351, MATCH(Selection_Hide2!$A208, 'Full set Core Client Indicator'!$A$3:$A$351, 0), MATCH(Selection_Hide2!L$5, 'Full set Core Client Indicator'!$A$3:$AB$3, 0))=\"\", \"\",  INDEX('Full set Core Client Indicator'!$A$3:$AB$351, MATCH(Selection_Hide2!$A208, 'Full set Core Client Indicator'!$A$3:$A$351, 0), MATCH(Selection_Hide2!L$5, 'Full set Core Client Indicator'!$A$3:$AB$3, 0))), \"\")","v":""},{"$f":"IF(L208<>\"\", IF(INDEX('Full set Core Client Indicator'!$A$3:$AB$351, MATCH(Selection_Hide2!$A208, 'Full set Core Client Indicator'!$A$3:$A$351, 0), MATCH(Selection_Hide2!M$5, 'Full set Core Client Indicator'!$A$3:$AB$3, 0))=\"\", \"\",  INDEX('Full set Core Client Indicator'!$A$3:$AB$351, MATCH(Selection_Hide2!$A208, 'Full set Core Client Indicator'!$A$3:$A$351, 0), MATCH(Selection_Hide2!M$5, 'Full set Core Client Indicator'!$A$3:$AB$3, 0))), \"\")","v":""},{"$f":"IF(M208<>\"\", IF(INDEX('Full set Core Client Indicator'!$A$3:$AB$351, MATCH(Selection_Hide2!$A208, 'Full set Core Client Indicator'!$A$3:$A$351, 0), MATCH(Selection_Hide2!N$5, 'Full set Core Client Indicator'!$A$3:$AB$3, 0))=\"\", \"\",  INDEX('Full set Core Client Indicator'!$A$3:$AB$351, MATCH(Selection_Hide2!$A208, 'Full set Core Client Indicator'!$A$3:$A$351, 0), MATCH(Selection_Hide2!N$5, 'Full set Core Client Indicator'!$A$3:$AB$3, 0))), \"\")","v":""},{"$f":"IF(N208<>\"\", IF(INDEX('Full set Core Client Indicator'!$A$3:$AB$351, MATCH(Selection_Hide2!$A208, 'Full set Core Client Indicator'!$A$3:$A$351, 0), MATCH(Selection_Hide2!O$5, 'Full set Core Client Indicator'!$A$3:$AB$3, 0))=\"\", \"\",  INDEX('Full set Core Client Indicator'!$A$3:$AB$351, MATCH(Selection_Hide2!$A208, 'Full set Core Client Indicator'!$A$3:$A$351, 0), MATCH(Selection_Hide2!O$5, 'Full set Core Client Indicator'!$A$3:$AB$3, 0))), \"\")","v":""},{"$f":"IF(O208<>\"\", IF(INDEX('Full set Core Client Indicator'!$A$3:$AB$351, MATCH(Selection_Hide2!$A208, 'Full set Core Client Indicator'!$A$3:$A$351, 0), MATCH(Selection_Hide2!P$5, 'Full set Core Client Indicator'!$A$3:$AB$3, 0))=\"\", \"\",  INDEX('Full set Core Client Indicator'!$A$3:$AB$351, MATCH(Selection_Hide2!$A208, 'Full set Core Client Indicator'!$A$3:$A$351, 0), MATCH(Selection_Hide2!P$5, 'Full set Core Client Indicator'!$A$3:$AB$3, 0))), \"\")","v":""},{"$f":"IF(P208<>\"\", IF(INDEX('Full set Core Client Indicator'!$A$3:$AB$351, MATCH(Selection_Hide2!$A208, 'Full set Core Client Indicator'!$A$3:$A$351, 0), MATCH(Selection_Hide2!Q$5, 'Full set Core Client Indicator'!$A$3:$AB$3, 0))=\"\", \"\",  INDEX('Full set Core Client Indicator'!$A$3:$AB$351, MATCH(Selection_Hide2!$A208, 'Full set Core Client Indicator'!$A$3:$A$351, 0), MATCH(Selection_Hide2!Q$5, 'Full set Core Client Indicator'!$A$3:$AB$3, 0))), \"\")","v":""},{"$f":"IF(Q208<>\"\", IF(INDEX('Full set Core Client Indicator'!$A$3:$AB$351, MATCH(Selection_Hide2!$A208, 'Full set Core Client Indicator'!$A$3:$A$351, 0), MATCH(Selection_Hide2!R$5, 'Full set Core Client Indicator'!$A$3:$AB$3, 0))=\"\", \"\",  INDEX('Full set Core Client Indicator'!$A$3:$AB$351, MATCH(Selection_Hide2!$A208, 'Full set Core Client Indicator'!$A$3:$A$351, 0), MATCH(Selection_Hide2!R$5, 'Full set Core Client Indicator'!$A$3:$AB$3, 0))), \"\")","v":""},{"$f":"IF(R208<>\"\", IF(INDEX('Full set Core Client Indicator'!$A$3:$AB$351, MATCH(Selection_Hide2!$A208, 'Full set Core Client Indicator'!$A$3:$A$351, 0), MATCH(Selection_Hide2!S$5, 'Full set Core Client Indicator'!$A$3:$AB$3, 0))=\"\", \"\",  INDEX('Full set Core Client Indicator'!$A$3:$AB$351, MATCH(Selection_Hide2!$A208, 'Full set Core Client Indicator'!$A$3:$A$351, 0), MATCH(Selection_Hide2!S$5, 'Full set Core Client Indicator'!$A$3:$AB$3, 0))), \"\")","v":""},{"$f":"IF(S208<>\"\", IF(INDEX('Full set Core Client Indicator'!$A$3:$AB$351, MATCH(Selection_Hide2!$A208, 'Full set Core Client Indicator'!$A$3:$A$351, 0), MATCH(Selection_Hide2!T$5, 'Full set Core Client Indicator'!$A$3:$AB$3, 0))=\"\", \"\",  INDEX('Full set Core Client Indicator'!$A$3:$AB$351, MATCH(Selection_Hide2!$A208, 'Full set Core Client Indicator'!$A$3:$A$351, 0), MATCH(Selection_Hide2!T$5, 'Full set Core Client Indicator'!$A$3:$AB$3, 0))), \"\")","v":""},{"$f":"IF(T208<>\"\", IF(INDEX('Full set Core Client Indicator'!$A$3:$AB$351, MATCH(Selection_Hide2!$A208, 'Full set Core Client Indicator'!$A$3:$A$351, 0), MATCH(Selection_Hide2!U$5, 'Full set Core Client Indicator'!$A$3:$AB$3, 0))=\"\", \"\",  INDEX('Full set Core Client Indicator'!$A$3:$AB$351, MATCH(Selection_Hide2!$A208, 'Full set Core Client Indicator'!$A$3:$A$351, 0), MATCH(Selection_Hide2!U$5, 'Full set Core Client Indicator'!$A$3:$AB$3, 0))), \"\")","v":""},{"$f":"IF(U208<>\"\", IF(INDEX('Full set Core Client Indicator'!$A$3:$AB$351, MATCH(Selection_Hide2!$A208, 'Full set Core Client Indicator'!$A$3:$A$351, 0), MATCH(Selection_Hide2!V$5, 'Full set Core Client Indicator'!$A$3:$AB$3, 0))=\"\", \"\",  INDEX('Full set Core Client Indicator'!$A$3:$AB$351, MATCH(Selection_Hide2!$A208, 'Full set Core Client Indicator'!$A$3:$A$351, 0), MATCH(Selection_Hide2!V$5, 'Full set Core Client Indicator'!$A$3:$AB$3, 0))), \"\")","v":""},{"$f":"IF(V208<>\"\", IF(INDEX('Full set Core Client Indicator'!$A$3:$AB$351, MATCH(Selection_Hide2!$A208, 'Full set Core Client Indicator'!$A$3:$A$351, 0), MATCH(Selection_Hide2!W$5, 'Full set Core Client Indicator'!$A$3:$AB$3, 0))=\"\", \"\",  INDEX('Full set Core Client Indicator'!$A$3:$AB$351, MATCH(Selection_Hide2!$A208, 'Full set Core Client Indicator'!$A$3:$A$351, 0), MATCH(Selection_Hide2!W$5, 'Full set Core Client Indicator'!$A$3:$AB$3, 0))), \"\")","v":""},{"$f":"IF(W208<>\"\", IF(INDEX('Full set Core Client Indicator'!$A$3:$AB$351, MATCH(Selection_Hide2!$A208, 'Full set Core Client Indicator'!$A$3:$A$351, 0), MATCH(Selection_Hide2!X$5, 'Full set Core Client Indicator'!$A$3:$AB$3, 0))=\"\", \"\",  INDEX('Full set Core Client Indicator'!$A$3:$AB$351, MATCH(Selection_Hide2!$A208, 'Full set Core Client Indicator'!$A$3:$A$351, 0), MATCH(Selection_Hide2!X$5, 'Full set Core Client Indicator'!$A$3:$AB$3, 0))), \"\")","v":""},{"$f":"IF(X208<>\"\", IF(INDEX('Full set Core Client Indicator'!$A$3:$AB$351, MATCH(Selection_Hide2!$A208, 'Full set Core Client Indicator'!$A$3:$A$351, 0), MATCH(Selection_Hide2!Y$5, 'Full set Core Client Indicator'!$A$3:$AB$3, 0))=\"\", \"\",  INDEX('Full set Core Client Indicator'!$A$3:$AB$351, MATCH(Selection_Hide2!$A208, 'Full set Core Client Indicator'!$A$3:$A$351, 0), MATCH(Selection_Hide2!Y$5, 'Full set Core Client Indicator'!$A$3:$AB$3, 0))), \"\")","v":""},{"$f":"IF(Y208<>\"\", IF(INDEX('Full set Core Client Indicator'!$A$3:$AB$351, MATCH(Selection_Hide2!$A208, 'Full set Core Client Indicator'!$A$3:$A$351, 0), MATCH(Selection_Hide2!Z$5, 'Full set Core Client Indicator'!$A$3:$AB$3, 0))=\"\", \"\",  INDEX('Full set Core Client Indicator'!$A$3:$AB$351, MATCH(Selection_Hide2!$A208, 'Full set Core Client Indicator'!$A$3:$A$351, 0), MATCH(Selection_Hide2!Z$5, 'Full set Core Client Indicator'!$A$3:$AB$3, 0))), \"\")","v":""},{"$f":"IF(Z208<>\"\", IF(INDEX('Full set Core Client Indicator'!$A$3:$AB$351, MATCH(Selection_Hide2!$A208, 'Full set Core Client Indicator'!$A$3:$A$351, 0), MATCH(Selection_Hide2!AA$5, 'Full set Core Client Indicator'!$A$3:$AB$3, 0))=\"\", \"\",  INDEX('Full set Core Client Indicator'!$A$3:$AB$351, MATCH(Selection_Hide2!$A208, 'Full set Core Client Indicator'!$A$3:$A$351, 0), MATCH(Selection_Hide2!AA$5, 'Full set Core Client Indicator'!$A$3:$AB$3, 0))), \"\")","v":""},{"$f":"IF(AA208<>\"\", IF(INDEX('Full set Core Client Indicator'!$A$3:$AB$351, MATCH(Selection_Hide2!$A208, 'Full set Core Client Indicator'!$A$3:$A$351, 0), MATCH(Selection_Hide2!AB$5, 'Full set Core Client Indicator'!$A$3:$AB$3, 0))=\"\", \"\",  INDEX('Full set Core Client Indicator'!$A$3:$AB$351, MATCH(Selection_Hide2!$A208, 'Full set Core Client Indicator'!$A$3:$A$351, 0), MATCH(Selection_Hide2!AB$5, 'Full set Core Client Indicator'!$A$3:$AB$3, 0))), \"\")","v":""}]
[{"$f":"IF(AND(Selection_Hide1!C207<>0, Selection_Hide1!C207<>\"Grand Total\"), Selection_Hide1!C207, \"\")","v":""},{"$f":"IF(A209<>\"\", IF(INDEX('Full set Core Client Indicator'!$A$3:$AB$351, MATCH(Selection_Hide2!$A209, 'Full set Core Client Indicator'!$A$3:$A$351, 0), MATCH(Selection_Hide2!B$5, 'Full set Core Client Indicator'!$A$3:$AB$3, 0))=\"\", \"\",  INDEX('Full set Core Client Indicator'!$A$3:$AB$351, MATCH(Selection_Hide2!$A209, 'Full set Core Client Indicator'!$A$3:$A$351, 0), MATCH(Selection_Hide2!B$5, 'Full set Core Client Indicator'!$A$3:$AB$3, 0))), \"\")","v":""},{"$f":"IF(B209<>\"\", IF(INDEX('Full set Core Client Indicator'!$A$3:$AB$351, MATCH(Selection_Hide2!$A209, 'Full set Core Client Indicator'!$A$3:$A$351, 0), MATCH(Selection_Hide2!C$5, 'Full set Core Client Indicator'!$A$3:$AB$3, 0))=\"\", \"\",  INDEX('Full set Core Client Indicator'!$A$3:$AB$351, MATCH(Selection_Hide2!$A209, 'Full set Core Client Indicator'!$A$3:$A$351, 0), MATCH(Selection_Hide2!C$5, 'Full set Core Client Indicator'!$A$3:$AB$3, 0))), \"\")","v":""},{"$f":"IF(C209<>\"\", IF(INDEX('Full set Core Client Indicator'!$A$3:$AB$351, MATCH(Selection_Hide2!$A209, 'Full set Core Client Indicator'!$A$3:$A$351, 0), MATCH(Selection_Hide2!D$5, 'Full set Core Client Indicator'!$A$3:$AB$3, 0))=\"\", \"\",  INDEX('Full set Core Client Indicator'!$A$3:$AB$351, MATCH(Selection_Hide2!$A209, 'Full set Core Client Indicator'!$A$3:$A$351, 0), MATCH(Selection_Hide2!D$5, 'Full set Core Client Indicator'!$A$3:$AB$3, 0))), \"\")","v":""},{"$f":"IF(D209<>\"\", IF(INDEX('Full set Core Client Indicator'!$A$3:$AB$351, MATCH(Selection_Hide2!$A209, 'Full set Core Client Indicator'!$A$3:$A$351, 0), MATCH(Selection_Hide2!E$5, 'Full set Core Client Indicator'!$A$3:$AB$3, 0))=\"\", \"\",  INDEX('Full set Core Client Indicator'!$A$3:$AB$351, MATCH(Selection_Hide2!$A209, 'Full set Core Client Indicator'!$A$3:$A$351, 0), MATCH(Selection_Hide2!E$5, 'Full set Core Client Indicator'!$A$3:$AB$3, 0))), \"\")","v":""},{"$f":"IF(E209<>\"\", IF(INDEX('Full set Core Client Indicator'!$A$3:$AB$351, MATCH(Selection_Hide2!$A209, 'Full set Core Client Indicator'!$A$3:$A$351, 0), MATCH(Selection_Hide2!F$5, 'Full set Core Client Indicator'!$A$3:$AB$3, 0))=\"\", \"\",  INDEX('Full set Core Client Indicator'!$A$3:$AB$351, MATCH(Selection_Hide2!$A209, 'Full set Core Client Indicator'!$A$3:$A$351, 0), MATCH(Selection_Hide2!F$5, 'Full set Core Client Indicator'!$A$3:$AB$3, 0))), \"\")","v":""},{"$f":"IF(F209<>\"\", IF(INDEX('Full set Core Client Indicator'!$A$3:$AB$351, MATCH(Selection_Hide2!$A209, 'Full set Core Client Indicator'!$A$3:$A$351, 0), MATCH(Selection_Hide2!G$5, 'Full set Core Client Indicator'!$A$3:$AB$3, 0))=\"\", \"\",  INDEX('Full set Core Client Indicator'!$A$3:$AB$351, MATCH(Selection_Hide2!$A209, 'Full set Core Client Indicator'!$A$3:$A$351, 0), MATCH(Selection_Hide2!G$5, 'Full set Core Client Indicator'!$A$3:$AB$3, 0))), \"\")","v":""},{"$f":"IF(G209<>\"\", IF(INDEX('Full set Core Client Indicator'!$A$3:$AB$351, MATCH(Selection_Hide2!$A209, 'Full set Core Client Indicator'!$A$3:$A$351, 0), MATCH(Selection_Hide2!H$5, 'Full set Core Client Indicator'!$A$3:$AB$3, 0))=\"\", \"\",  INDEX('Full set Core Client Indicator'!$A$3:$AB$351, MATCH(Selection_Hide2!$A209, 'Full set Core Client Indicator'!$A$3:$A$351, 0), MATCH(Selection_Hide2!H$5, 'Full set Core Client Indicator'!$A$3:$AB$3, 0))), \"\")","v":""},{"$f":"IF(H209<>\"\", IF(INDEX('Full set Core Client Indicator'!$A$3:$AB$351, MATCH(Selection_Hide2!$A209, 'Full set Core Client Indicator'!$A$3:$A$351, 0), MATCH(Selection_Hide2!I$5, 'Full set Core Client Indicator'!$A$3:$AB$3, 0))=\"\", \"\",  INDEX('Full set Core Client Indicator'!$A$3:$AB$351, MATCH(Selection_Hide2!$A209, 'Full set Core Client Indicator'!$A$3:$A$351, 0), MATCH(Selection_Hide2!I$5, 'Full set Core Client Indicator'!$A$3:$AB$3, 0))), \"\")","v":""},{"$f":"IF(I209<>\"\", IF(INDEX('Full set Core Client Indicator'!$A$3:$AB$351, MATCH(Selection_Hide2!$A209, 'Full set Core Client Indicator'!$A$3:$A$351, 0), MATCH(Selection_Hide2!J$5, 'Full set Core Client Indicator'!$A$3:$AB$3, 0))=\"\", \"\",  INDEX('Full set Core Client Indicator'!$A$3:$AB$351, MATCH(Selection_Hide2!$A209, 'Full set Core Client Indicator'!$A$3:$A$351, 0), MATCH(Selection_Hide2!J$5, 'Full set Core Client Indicator'!$A$3:$AB$3, 0))), \"\")","v":""},{"$f":"IF(J209<>\"\", IF(INDEX('Full set Core Client Indicator'!$A$3:$AB$351, MATCH(Selection_Hide2!$A209, 'Full set Core Client Indicator'!$A$3:$A$351, 0), MATCH(Selection_Hide2!K$5, 'Full set Core Client Indicator'!$A$3:$AB$3, 0))=\"\", \"\",  INDEX('Full set Core Client Indicator'!$A$3:$AB$351, MATCH(Selection_Hide2!$A209, 'Full set Core Client Indicator'!$A$3:$A$351, 0), MATCH(Selection_Hide2!K$5, 'Full set Core Client Indicator'!$A$3:$AB$3, 0))), \"\")","v":""},{"$f":"IF(K209<>\"\", IF(INDEX('Full set Core Client Indicator'!$A$3:$AB$351, MATCH(Selection_Hide2!$A209, 'Full set Core Client Indicator'!$A$3:$A$351, 0), MATCH(Selection_Hide2!L$5, 'Full set Core Client Indicator'!$A$3:$AB$3, 0))=\"\", \"\",  INDEX('Full set Core Client Indicator'!$A$3:$AB$351, MATCH(Selection_Hide2!$A209, 'Full set Core Client Indicator'!$A$3:$A$351, 0), MATCH(Selection_Hide2!L$5, 'Full set Core Client Indicator'!$A$3:$AB$3, 0))), \"\")","v":""},{"$f":"IF(L209<>\"\", IF(INDEX('Full set Core Client Indicator'!$A$3:$AB$351, MATCH(Selection_Hide2!$A209, 'Full set Core Client Indicator'!$A$3:$A$351, 0), MATCH(Selection_Hide2!M$5, 'Full set Core Client Indicator'!$A$3:$AB$3, 0))=\"\", \"\",  INDEX('Full set Core Client Indicator'!$A$3:$AB$351, MATCH(Selection_Hide2!$A209, 'Full set Core Client Indicator'!$A$3:$A$351, 0), MATCH(Selection_Hide2!M$5, 'Full set Core Client Indicator'!$A$3:$AB$3, 0))), \"\")","v":""},{"$f":"IF(M209<>\"\", IF(INDEX('Full set Core Client Indicator'!$A$3:$AB$351, MATCH(Selection_Hide2!$A209, 'Full set Core Client Indicator'!$A$3:$A$351, 0), MATCH(Selection_Hide2!N$5, 'Full set Core Client Indicator'!$A$3:$AB$3, 0))=\"\", \"\",  INDEX('Full set Core Client Indicator'!$A$3:$AB$351, MATCH(Selection_Hide2!$A209, 'Full set Core Client Indicator'!$A$3:$A$351, 0), MATCH(Selection_Hide2!N$5, 'Full set Core Client Indicator'!$A$3:$AB$3, 0))), \"\")","v":""},{"$f":"IF(N209<>\"\", IF(INDEX('Full set Core Client Indicator'!$A$3:$AB$351, MATCH(Selection_Hide2!$A209, 'Full set Core Client Indicator'!$A$3:$A$351, 0), MATCH(Selection_Hide2!O$5, 'Full set Core Client Indicator'!$A$3:$AB$3, 0))=\"\", \"\",  INDEX('Full set Core Client Indicator'!$A$3:$AB$351, MATCH(Selection_Hide2!$A209, 'Full set Core Client Indicator'!$A$3:$A$351, 0), MATCH(Selection_Hide2!O$5, 'Full set Core Client Indicator'!$A$3:$AB$3, 0))), \"\")","v":""},{"$f":"IF(O209<>\"\", IF(INDEX('Full set Core Client Indicator'!$A$3:$AB$351, MATCH(Selection_Hide2!$A209, 'Full set Core Client Indicator'!$A$3:$A$351, 0), MATCH(Selection_Hide2!P$5, 'Full set Core Client Indicator'!$A$3:$AB$3, 0))=\"\", \"\",  INDEX('Full set Core Client Indicator'!$A$3:$AB$351, MATCH(Selection_Hide2!$A209, 'Full set Core Client Indicator'!$A$3:$A$351, 0), MATCH(Selection_Hide2!P$5, 'Full set Core Client Indicator'!$A$3:$AB$3, 0))), \"\")","v":""},{"$f":"IF(P209<>\"\", IF(INDEX('Full set Core Client Indicator'!$A$3:$AB$351, MATCH(Selection_Hide2!$A209, 'Full set Core Client Indicator'!$A$3:$A$351, 0), MATCH(Selection_Hide2!Q$5, 'Full set Core Client Indicator'!$A$3:$AB$3, 0))=\"\", \"\",  INDEX('Full set Core Client Indicator'!$A$3:$AB$351, MATCH(Selection_Hide2!$A209, 'Full set Core Client Indicator'!$A$3:$A$351, 0), MATCH(Selection_Hide2!Q$5, 'Full set Core Client Indicator'!$A$3:$AB$3, 0))), \"\")","v":""},{"$f":"IF(Q209<>\"\", IF(INDEX('Full set Core Client Indicator'!$A$3:$AB$351, MATCH(Selection_Hide2!$A209, 'Full set Core Client Indicator'!$A$3:$A$351, 0), MATCH(Selection_Hide2!R$5, 'Full set Core Client Indicator'!$A$3:$AB$3, 0))=\"\", \"\",  INDEX('Full set Core Client Indicator'!$A$3:$AB$351, MATCH(Selection_Hide2!$A209, 'Full set Core Client Indicator'!$A$3:$A$351, 0), MATCH(Selection_Hide2!R$5, 'Full set Core Client Indicator'!$A$3:$AB$3, 0))), \"\")","v":""},{"$f":"IF(R209<>\"\", IF(INDEX('Full set Core Client Indicator'!$A$3:$AB$351, MATCH(Selection_Hide2!$A209, 'Full set Core Client Indicator'!$A$3:$A$351, 0), MATCH(Selection_Hide2!S$5, 'Full set Core Client Indicator'!$A$3:$AB$3, 0))=\"\", \"\",  INDEX('Full set Core Client Indicator'!$A$3:$AB$351, MATCH(Selection_Hide2!$A209, 'Full set Core Client Indicator'!$A$3:$A$351, 0), MATCH(Selection_Hide2!S$5, 'Full set Core Client Indicator'!$A$3:$AB$3, 0))), \"\")","v":""},{"$f":"IF(S209<>\"\", IF(INDEX('Full set Core Client Indicator'!$A$3:$AB$351, MATCH(Selection_Hide2!$A209, 'Full set Core Client Indicator'!$A$3:$A$351, 0), MATCH(Selection_Hide2!T$5, 'Full set Core Client Indicator'!$A$3:$AB$3, 0))=\"\", \"\",  INDEX('Full set Core Client Indicator'!$A$3:$AB$351, MATCH(Selection_Hide2!$A209, 'Full set Core Client Indicator'!$A$3:$A$351, 0), MATCH(Selection_Hide2!T$5, 'Full set Core Client Indicator'!$A$3:$AB$3, 0))), \"\")","v":""},{"$f":"IF(T209<>\"\", IF(INDEX('Full set Core Client Indicator'!$A$3:$AB$351, MATCH(Selection_Hide2!$A209, 'Full set Core Client Indicator'!$A$3:$A$351, 0), MATCH(Selection_Hide2!U$5, 'Full set Core Client Indicator'!$A$3:$AB$3, 0))=\"\", \"\",  INDEX('Full set Core Client Indicator'!$A$3:$AB$351, MATCH(Selection_Hide2!$A209, 'Full set Core Client Indicator'!$A$3:$A$351, 0), MATCH(Selection_Hide2!U$5, 'Full set Core Client Indicator'!$A$3:$AB$3, 0))), \"\")","v":""},{"$f":"IF(U209<>\"\", IF(INDEX('Full set Core Client Indicator'!$A$3:$AB$351, MATCH(Selection_Hide2!$A209, 'Full set Core Client Indicator'!$A$3:$A$351, 0), MATCH(Selection_Hide2!V$5, 'Full set Core Client Indicator'!$A$3:$AB$3, 0))=\"\", \"\",  INDEX('Full set Core Client Indicator'!$A$3:$AB$351, MATCH(Selection_Hide2!$A209, 'Full set Core Client Indicator'!$A$3:$A$351, 0), MATCH(Selection_Hide2!V$5, 'Full set Core Client Indicator'!$A$3:$AB$3, 0))), \"\")","v":""},{"$f":"IF(V209<>\"\", IF(INDEX('Full set Core Client Indicator'!$A$3:$AB$351, MATCH(Selection_Hide2!$A209, 'Full set Core Client Indicator'!$A$3:$A$351, 0), MATCH(Selection_Hide2!W$5, 'Full set Core Client Indicator'!$A$3:$AB$3, 0))=\"\", \"\",  INDEX('Full set Core Client Indicator'!$A$3:$AB$351, MATCH(Selection_Hide2!$A209, 'Full set Core Client Indicator'!$A$3:$A$351, 0), MATCH(Selection_Hide2!W$5, 'Full set Core Client Indicator'!$A$3:$AB$3, 0))), \"\")","v":""},{"$f":"IF(W209<>\"\", IF(INDEX('Full set Core Client Indicator'!$A$3:$AB$351, MATCH(Selection_Hide2!$A209, 'Full set Core Client Indicator'!$A$3:$A$351, 0), MATCH(Selection_Hide2!X$5, 'Full set Core Client Indicator'!$A$3:$AB$3, 0))=\"\", \"\",  INDEX('Full set Core Client Indicator'!$A$3:$AB$351, MATCH(Selection_Hide2!$A209, 'Full set Core Client Indicator'!$A$3:$A$351, 0), MATCH(Selection_Hide2!X$5, 'Full set Core Client Indicator'!$A$3:$AB$3, 0))), \"\")","v":""},{"$f":"IF(X209<>\"\", IF(INDEX('Full set Core Client Indicator'!$A$3:$AB$351, MATCH(Selection_Hide2!$A209, 'Full set Core Client Indicator'!$A$3:$A$351, 0), MATCH(Selection_Hide2!Y$5, 'Full set Core Client Indicator'!$A$3:$AB$3, 0))=\"\", \"\",  INDEX('Full set Core Client Indicator'!$A$3:$AB$351, MATCH(Selection_Hide2!$A209, 'Full set Core Client Indicator'!$A$3:$A$351, 0), MATCH(Selection_Hide2!Y$5, 'Full set Core Client Indicator'!$A$3:$AB$3, 0))), \"\")","v":""},{"$f":"IF(Y209<>\"\", IF(INDEX('Full set Core Client Indicator'!$A$3:$AB$351, MATCH(Selection_Hide2!$A209, 'Full set Core Client Indicator'!$A$3:$A$351, 0), MATCH(Selection_Hide2!Z$5, 'Full set Core Client Indicator'!$A$3:$AB$3, 0))=\"\", \"\",  INDEX('Full set Core Client Indicator'!$A$3:$AB$351, MATCH(Selection_Hide2!$A209, 'Full set Core Client Indicator'!$A$3:$A$351, 0), MATCH(Selection_Hide2!Z$5, 'Full set Core Client Indicator'!$A$3:$AB$3, 0))), \"\")","v":""},{"$f":"IF(Z209<>\"\", IF(INDEX('Full set Core Client Indicator'!$A$3:$AB$351, MATCH(Selection_Hide2!$A209, 'Full set Core Client Indicator'!$A$3:$A$351, 0), MATCH(Selection_Hide2!AA$5, 'Full set Core Client Indicator'!$A$3:$AB$3, 0))=\"\", \"\",  INDEX('Full set Core Client Indicator'!$A$3:$AB$351, MATCH(Selection_Hide2!$A209, 'Full set Core Client Indicator'!$A$3:$A$351, 0), MATCH(Selection_Hide2!AA$5, 'Full set Core Client Indicator'!$A$3:$AB$3, 0))), \"\")","v":""},{"$f":"IF(AA209<>\"\", IF(INDEX('Full set Core Client Indicator'!$A$3:$AB$351, MATCH(Selection_Hide2!$A209, 'Full set Core Client Indicator'!$A$3:$A$351, 0), MATCH(Selection_Hide2!AB$5, 'Full set Core Client Indicator'!$A$3:$AB$3, 0))=\"\", \"\",  INDEX('Full set Core Client Indicator'!$A$3:$AB$351, MATCH(Selection_Hide2!$A209, 'Full set Core Client Indicator'!$A$3:$A$351, 0), MATCH(Selection_Hide2!AB$5, 'Full set Core Client Indicator'!$A$3:$AB$3, 0))), \"\")","v":""}]
[{"$f":"IF(AND(Selection_Hide1!C208<>0, Selection_Hide1!C208<>\"Grand Total\"), Selection_Hide1!C208, \"\")","v":""},{"$f":"IF(A210<>\"\", IF(INDEX('Full set Core Client Indicator'!$A$3:$AB$351, MATCH(Selection_Hide2!$A210, 'Full set Core Client Indicator'!$A$3:$A$351, 0), MATCH(Selection_Hide2!B$5, 'Full set Core Client Indicator'!$A$3:$AB$3, 0))=\"\", \"\",  INDEX('Full set Core Client Indicator'!$A$3:$AB$351, MATCH(Selection_Hide2!$A210, 'Full set Core Client Indicator'!$A$3:$A$351, 0), MATCH(Selection_Hide2!B$5, 'Full set Core Client Indicator'!$A$3:$AB$3, 0))), \"\")","v":""},{"$f":"IF(B210<>\"\", IF(INDEX('Full set Core Client Indicator'!$A$3:$AB$351, MATCH(Selection_Hide2!$A210, 'Full set Core Client Indicator'!$A$3:$A$351, 0), MATCH(Selection_Hide2!C$5, 'Full set Core Client Indicator'!$A$3:$AB$3, 0))=\"\", \"\",  INDEX('Full set Core Client Indicator'!$A$3:$AB$351, MATCH(Selection_Hide2!$A210, 'Full set Core Client Indicator'!$A$3:$A$351, 0), MATCH(Selection_Hide2!C$5, 'Full set Core Client Indicator'!$A$3:$AB$3, 0))), \"\")","v":""},{"$f":"IF(C210<>\"\", IF(INDEX('Full set Core Client Indicator'!$A$3:$AB$351, MATCH(Selection_Hide2!$A210, 'Full set Core Client Indicator'!$A$3:$A$351, 0), MATCH(Selection_Hide2!D$5, 'Full set Core Client Indicator'!$A$3:$AB$3, 0))=\"\", \"\",  INDEX('Full set Core Client Indicator'!$A$3:$AB$351, MATCH(Selection_Hide2!$A210, 'Full set Core Client Indicator'!$A$3:$A$351, 0), MATCH(Selection_Hide2!D$5, 'Full set Core Client Indicator'!$A$3:$AB$3, 0))), \"\")","v":""},{"$f":"IF(D210<>\"\", IF(INDEX('Full set Core Client Indicator'!$A$3:$AB$351, MATCH(Selection_Hide2!$A210, 'Full set Core Client Indicator'!$A$3:$A$351, 0), MATCH(Selection_Hide2!E$5, 'Full set Core Client Indicator'!$A$3:$AB$3, 0))=\"\", \"\",  INDEX('Full set Core Client Indicator'!$A$3:$AB$351, MATCH(Selection_Hide2!$A210, 'Full set Core Client Indicator'!$A$3:$A$351, 0), MATCH(Selection_Hide2!E$5, 'Full set Core Client Indicator'!$A$3:$AB$3, 0))), \"\")","v":""},{"$f":"IF(E210<>\"\", IF(INDEX('Full set Core Client Indicator'!$A$3:$AB$351, MATCH(Selection_Hide2!$A210, 'Full set Core Client Indicator'!$A$3:$A$351, 0), MATCH(Selection_Hide2!F$5, 'Full set Core Client Indicator'!$A$3:$AB$3, 0))=\"\", \"\",  INDEX('Full set Core Client Indicator'!$A$3:$AB$351, MATCH(Selection_Hide2!$A210, 'Full set Core Client Indicator'!$A$3:$A$351, 0), MATCH(Selection_Hide2!F$5, 'Full set Core Client Indicator'!$A$3:$AB$3, 0))), \"\")","v":""},{"$f":"IF(F210<>\"\", IF(INDEX('Full set Core Client Indicator'!$A$3:$AB$351, MATCH(Selection_Hide2!$A210, 'Full set Core Client Indicator'!$A$3:$A$351, 0), MATCH(Selection_Hide2!G$5, 'Full set Core Client Indicator'!$A$3:$AB$3, 0))=\"\", \"\",  INDEX('Full set Core Client Indicator'!$A$3:$AB$351, MATCH(Selection_Hide2!$A210, 'Full set Core Client Indicator'!$A$3:$A$351, 0), MATCH(Selection_Hide2!G$5, 'Full set Core Client Indicator'!$A$3:$AB$3, 0))), \"\")","v":""},{"$f":"IF(G210<>\"\", IF(INDEX('Full set Core Client Indicator'!$A$3:$AB$351, MATCH(Selection_Hide2!$A210, 'Full set Core Client Indicator'!$A$3:$A$351, 0), MATCH(Selection_Hide2!H$5, 'Full set Core Client Indicator'!$A$3:$AB$3, 0))=\"\", \"\",  INDEX('Full set Core Client Indicator'!$A$3:$AB$351, MATCH(Selection_Hide2!$A210, 'Full set Core Client Indicator'!$A$3:$A$351, 0), MATCH(Selection_Hide2!H$5, 'Full set Core Client Indicator'!$A$3:$AB$3, 0))), \"\")","v":""},{"$f":"IF(H210<>\"\", IF(INDEX('Full set Core Client Indicator'!$A$3:$AB$351, MATCH(Selection_Hide2!$A210, 'Full set Core Client Indicator'!$A$3:$A$351, 0), MATCH(Selection_Hide2!I$5, 'Full set Core Client Indicator'!$A$3:$AB$3, 0))=\"\", \"\",  INDEX('Full set Core Client Indicator'!$A$3:$AB$351, MATCH(Selection_Hide2!$A210, 'Full set Core Client Indicator'!$A$3:$A$351, 0), MATCH(Selection_Hide2!I$5, 'Full set Core Client Indicator'!$A$3:$AB$3, 0))), \"\")","v":""},{"$f":"IF(I210<>\"\", IF(INDEX('Full set Core Client Indicator'!$A$3:$AB$351, MATCH(Selection_Hide2!$A210, 'Full set Core Client Indicator'!$A$3:$A$351, 0), MATCH(Selection_Hide2!J$5, 'Full set Core Client Indicator'!$A$3:$AB$3, 0))=\"\", \"\",  INDEX('Full set Core Client Indicator'!$A$3:$AB$351, MATCH(Selection_Hide2!$A210, 'Full set Core Client Indicator'!$A$3:$A$351, 0), MATCH(Selection_Hide2!J$5, 'Full set Core Client Indicator'!$A$3:$AB$3, 0))), \"\")","v":""},{"$f":"IF(J210<>\"\", IF(INDEX('Full set Core Client Indicator'!$A$3:$AB$351, MATCH(Selection_Hide2!$A210, 'Full set Core Client Indicator'!$A$3:$A$351, 0), MATCH(Selection_Hide2!K$5, 'Full set Core Client Indicator'!$A$3:$AB$3, 0))=\"\", \"\",  INDEX('Full set Core Client Indicator'!$A$3:$AB$351, MATCH(Selection_Hide2!$A210, 'Full set Core Client Indicator'!$A$3:$A$351, 0), MATCH(Selection_Hide2!K$5, 'Full set Core Client Indicator'!$A$3:$AB$3, 0))), \"\")","v":""},{"$f":"IF(K210<>\"\", IF(INDEX('Full set Core Client Indicator'!$A$3:$AB$351, MATCH(Selection_Hide2!$A210, 'Full set Core Client Indicator'!$A$3:$A$351, 0), MATCH(Selection_Hide2!L$5, 'Full set Core Client Indicator'!$A$3:$AB$3, 0))=\"\", \"\",  INDEX('Full set Core Client Indicator'!$A$3:$AB$351, MATCH(Selection_Hide2!$A210, 'Full set Core Client Indicator'!$A$3:$A$351, 0), MATCH(Selection_Hide2!L$5, 'Full set Core Client Indicator'!$A$3:$AB$3, 0))), \"\")","v":""},{"$f":"IF(L210<>\"\", IF(INDEX('Full set Core Client Indicator'!$A$3:$AB$351, MATCH(Selection_Hide2!$A210, 'Full set Core Client Indicator'!$A$3:$A$351, 0), MATCH(Selection_Hide2!M$5, 'Full set Core Client Indicator'!$A$3:$AB$3, 0))=\"\", \"\",  INDEX('Full set Core Client Indicator'!$A$3:$AB$351, MATCH(Selection_Hide2!$A210, 'Full set Core Client Indicator'!$A$3:$A$351, 0), MATCH(Selection_Hide2!M$5, 'Full set Core Client Indicator'!$A$3:$AB$3, 0))), \"\")","v":""},{"$f":"IF(M210<>\"\", IF(INDEX('Full set Core Client Indicator'!$A$3:$AB$351, MATCH(Selection_Hide2!$A210, 'Full set Core Client Indicator'!$A$3:$A$351, 0), MATCH(Selection_Hide2!N$5, 'Full set Core Client Indicator'!$A$3:$AB$3, 0))=\"\", \"\",  INDEX('Full set Core Client Indicator'!$A$3:$AB$351, MATCH(Selection_Hide2!$A210, 'Full set Core Client Indicator'!$A$3:$A$351, 0), MATCH(Selection_Hide2!N$5, 'Full set Core Client Indicator'!$A$3:$AB$3, 0))), \"\")","v":""},{"$f":"IF(N210<>\"\", IF(INDEX('Full set Core Client Indicator'!$A$3:$AB$351, MATCH(Selection_Hide2!$A210, 'Full set Core Client Indicator'!$A$3:$A$351, 0), MATCH(Selection_Hide2!O$5, 'Full set Core Client Indicator'!$A$3:$AB$3, 0))=\"\", \"\",  INDEX('Full set Core Client Indicator'!$A$3:$AB$351, MATCH(Selection_Hide2!$A210, 'Full set Core Client Indicator'!$A$3:$A$351, 0), MATCH(Selection_Hide2!O$5, 'Full set Core Client Indicator'!$A$3:$AB$3, 0))), \"\")","v":""},{"$f":"IF(O210<>\"\", IF(INDEX('Full set Core Client Indicator'!$A$3:$AB$351, MATCH(Selection_Hide2!$A210, 'Full set Core Client Indicator'!$A$3:$A$351, 0), MATCH(Selection_Hide2!P$5, 'Full set Core Client Indicator'!$A$3:$AB$3, 0))=\"\", \"\",  INDEX('Full set Core Client Indicator'!$A$3:$AB$351, MATCH(Selection_Hide2!$A210, 'Full set Core Client Indicator'!$A$3:$A$351, 0), MATCH(Selection_Hide2!P$5, 'Full set Core Client Indicator'!$A$3:$AB$3, 0))), \"\")","v":""},{"$f":"IF(P210<>\"\", IF(INDEX('Full set Core Client Indicator'!$A$3:$AB$351, MATCH(Selection_Hide2!$A210, 'Full set Core Client Indicator'!$A$3:$A$351, 0), MATCH(Selection_Hide2!Q$5, 'Full set Core Client Indicator'!$A$3:$AB$3, 0))=\"\", \"\",  INDEX('Full set Core Client Indicator'!$A$3:$AB$351, MATCH(Selection_Hide2!$A210, 'Full set Core Client Indicator'!$A$3:$A$351, 0), MATCH(Selection_Hide2!Q$5, 'Full set Core Client Indicator'!$A$3:$AB$3, 0))), \"\")","v":""},{"$f":"IF(Q210<>\"\", IF(INDEX('Full set Core Client Indicator'!$A$3:$AB$351, MATCH(Selection_Hide2!$A210, 'Full set Core Client Indicator'!$A$3:$A$351, 0), MATCH(Selection_Hide2!R$5, 'Full set Core Client Indicator'!$A$3:$AB$3, 0))=\"\", \"\",  INDEX('Full set Core Client Indicator'!$A$3:$AB$351, MATCH(Selection_Hide2!$A210, 'Full set Core Client Indicator'!$A$3:$A$351, 0), MATCH(Selection_Hide2!R$5, 'Full set Core Client Indicator'!$A$3:$AB$3, 0))), \"\")","v":""},{"$f":"IF(R210<>\"\", IF(INDEX('Full set Core Client Indicator'!$A$3:$AB$351, MATCH(Selection_Hide2!$A210, 'Full set Core Client Indicator'!$A$3:$A$351, 0), MATCH(Selection_Hide2!S$5, 'Full set Core Client Indicator'!$A$3:$AB$3, 0))=\"\", \"\",  INDEX('Full set Core Client Indicator'!$A$3:$AB$351, MATCH(Selection_Hide2!$A210, 'Full set Core Client Indicator'!$A$3:$A$351, 0), MATCH(Selection_Hide2!S$5, 'Full set Core Client Indicator'!$A$3:$AB$3, 0))), \"\")","v":""},{"$f":"IF(S210<>\"\", IF(INDEX('Full set Core Client Indicator'!$A$3:$AB$351, MATCH(Selection_Hide2!$A210, 'Full set Core Client Indicator'!$A$3:$A$351, 0), MATCH(Selection_Hide2!T$5, 'Full set Core Client Indicator'!$A$3:$AB$3, 0))=\"\", \"\",  INDEX('Full set Core Client Indicator'!$A$3:$AB$351, MATCH(Selection_Hide2!$A210, 'Full set Core Client Indicator'!$A$3:$A$351, 0), MATCH(Selection_Hide2!T$5, 'Full set Core Client Indicator'!$A$3:$AB$3, 0))), \"\")","v":""},{"$f":"IF(T210<>\"\", IF(INDEX('Full set Core Client Indicator'!$A$3:$AB$351, MATCH(Selection_Hide2!$A210, 'Full set Core Client Indicator'!$A$3:$A$351, 0), MATCH(Selection_Hide2!U$5, 'Full set Core Client Indicator'!$A$3:$AB$3, 0))=\"\", \"\",  INDEX('Full set Core Client Indicator'!$A$3:$AB$351, MATCH(Selection_Hide2!$A210, 'Full set Core Client Indicator'!$A$3:$A$351, 0), MATCH(Selection_Hide2!U$5, 'Full set Core Client Indicator'!$A$3:$AB$3, 0))), \"\")","v":""},{"$f":"IF(U210<>\"\", IF(INDEX('Full set Core Client Indicator'!$A$3:$AB$351, MATCH(Selection_Hide2!$A210, 'Full set Core Client Indicator'!$A$3:$A$351, 0), MATCH(Selection_Hide2!V$5, 'Full set Core Client Indicator'!$A$3:$AB$3, 0))=\"\", \"\",  INDEX('Full set Core Client Indicator'!$A$3:$AB$351, MATCH(Selection_Hide2!$A210, 'Full set Core Client Indicator'!$A$3:$A$351, 0), MATCH(Selection_Hide2!V$5, 'Full set Core Client Indicator'!$A$3:$AB$3, 0))), \"\")","v":""},{"$f":"IF(V210<>\"\", IF(INDEX('Full set Core Client Indicator'!$A$3:$AB$351, MATCH(Selection_Hide2!$A210, 'Full set Core Client Indicator'!$A$3:$A$351, 0), MATCH(Selection_Hide2!W$5, 'Full set Core Client Indicator'!$A$3:$AB$3, 0))=\"\", \"\",  INDEX('Full set Core Client Indicator'!$A$3:$AB$351, MATCH(Selection_Hide2!$A210, 'Full set Core Client Indicator'!$A$3:$A$351, 0), MATCH(Selection_Hide2!W$5, 'Full set Core Client Indicator'!$A$3:$AB$3, 0))), \"\")","v":""},{"$f":"IF(W210<>\"\", IF(INDEX('Full set Core Client Indicator'!$A$3:$AB$351, MATCH(Selection_Hide2!$A210, 'Full set Core Client Indicator'!$A$3:$A$351, 0), MATCH(Selection_Hide2!X$5, 'Full set Core Client Indicator'!$A$3:$AB$3, 0))=\"\", \"\",  INDEX('Full set Core Client Indicator'!$A$3:$AB$351, MATCH(Selection_Hide2!$A210, 'Full set Core Client Indicator'!$A$3:$A$351, 0), MATCH(Selection_Hide2!X$5, 'Full set Core Client Indicator'!$A$3:$AB$3, 0))), \"\")","v":""},{"$f":"IF(X210<>\"\", IF(INDEX('Full set Core Client Indicator'!$A$3:$AB$351, MATCH(Selection_Hide2!$A210, 'Full set Core Client Indicator'!$A$3:$A$351, 0), MATCH(Selection_Hide2!Y$5, 'Full set Core Client Indicator'!$A$3:$AB$3, 0))=\"\", \"\",  INDEX('Full set Core Client Indicator'!$A$3:$AB$351, MATCH(Selection_Hide2!$A210, 'Full set Core Client Indicator'!$A$3:$A$351, 0), MATCH(Selection_Hide2!Y$5, 'Full set Core Client Indicator'!$A$3:$AB$3, 0))), \"\")","v":""},{"$f":"IF(Y210<>\"\", IF(INDEX('Full set Core Client Indicator'!$A$3:$AB$351, MATCH(Selection_Hide2!$A210, 'Full set Core Client Indicator'!$A$3:$A$351, 0), MATCH(Selection_Hide2!Z$5, 'Full set Core Client Indicator'!$A$3:$AB$3, 0))=\"\", \"\",  INDEX('Full set Core Client Indicator'!$A$3:$AB$351, MATCH(Selection_Hide2!$A210, 'Full set Core Client Indicator'!$A$3:$A$351, 0), MATCH(Selection_Hide2!Z$5, 'Full set Core Client Indicator'!$A$3:$AB$3, 0))), \"\")","v":""},{"$f":"IF(Z210<>\"\", IF(INDEX('Full set Core Client Indicator'!$A$3:$AB$351, MATCH(Selection_Hide2!$A210, 'Full set Core Client Indicator'!$A$3:$A$351, 0), MATCH(Selection_Hide2!AA$5, 'Full set Core Client Indicator'!$A$3:$AB$3, 0))=\"\", \"\",  INDEX('Full set Core Client Indicator'!$A$3:$AB$351, MATCH(Selection_Hide2!$A210, 'Full set Core Client Indicator'!$A$3:$A$351, 0), MATCH(Selection_Hide2!AA$5, 'Full set Core Client Indicator'!$A$3:$AB$3, 0))), \"\")","v":""},{"$f":"IF(AA210<>\"\", IF(INDEX('Full set Core Client Indicator'!$A$3:$AB$351, MATCH(Selection_Hide2!$A210, 'Full set Core Client Indicator'!$A$3:$A$351, 0), MATCH(Selection_Hide2!AB$5, 'Full set Core Client Indicator'!$A$3:$AB$3, 0))=\"\", \"\",  INDEX('Full set Core Client Indicator'!$A$3:$AB$351, MATCH(Selection_Hide2!$A210, 'Full set Core Client Indicator'!$A$3:$A$351, 0), MATCH(Selection_Hide2!AB$5, 'Full set Core Client Indicator'!$A$3:$AB$3, 0))), \"\")","v":""}]
[{"$f":"IF(AND(Selection_Hide1!C209<>0, Selection_Hide1!C209<>\"Grand Total\"), Selection_Hide1!C209, \"\")","v":""},{"$f":"IF(A211<>\"\", IF(INDEX('Full set Core Client Indicator'!$A$3:$AB$351, MATCH(Selection_Hide2!$A211, 'Full set Core Client Indicator'!$A$3:$A$351, 0), MATCH(Selection_Hide2!B$5, 'Full set Core Client Indicator'!$A$3:$AB$3, 0))=\"\", \"\",  INDEX('Full set Core Client Indicator'!$A$3:$AB$351, MATCH(Selection_Hide2!$A211, 'Full set Core Client Indicator'!$A$3:$A$351, 0), MATCH(Selection_Hide2!B$5, 'Full set Core Client Indicator'!$A$3:$AB$3, 0))), \"\")","v":""},{"$f":"IF(B211<>\"\", IF(INDEX('Full set Core Client Indicator'!$A$3:$AB$351, MATCH(Selection_Hide2!$A211, 'Full set Core Client Indicator'!$A$3:$A$351, 0), MATCH(Selection_Hide2!C$5, 'Full set Core Client Indicator'!$A$3:$AB$3, 0))=\"\", \"\",  INDEX('Full set Core Client Indicator'!$A$3:$AB$351, MATCH(Selection_Hide2!$A211, 'Full set Core Client Indicator'!$A$3:$A$351, 0), MATCH(Selection_Hide2!C$5, 'Full set Core Client Indicator'!$A$3:$AB$3, 0))), \"\")","v":""},{"$f":"IF(C211<>\"\", IF(INDEX('Full set Core Client Indicator'!$A$3:$AB$351, MATCH(Selection_Hide2!$A211, 'Full set Core Client Indicator'!$A$3:$A$351, 0), MATCH(Selection_Hide2!D$5, 'Full set Core Client Indicator'!$A$3:$AB$3, 0))=\"\", \"\",  INDEX('Full set Core Client Indicator'!$A$3:$AB$351, MATCH(Selection_Hide2!$A211, 'Full set Core Client Indicator'!$A$3:$A$351, 0), MATCH(Selection_Hide2!D$5, 'Full set Core Client Indicator'!$A$3:$AB$3, 0))), \"\")","v":""},{"$f":"IF(D211<>\"\", IF(INDEX('Full set Core Client Indicator'!$A$3:$AB$351, MATCH(Selection_Hide2!$A211, 'Full set Core Client Indicator'!$A$3:$A$351, 0), MATCH(Selection_Hide2!E$5, 'Full set Core Client Indicator'!$A$3:$AB$3, 0))=\"\", \"\",  INDEX('Full set Core Client Indicator'!$A$3:$AB$351, MATCH(Selection_Hide2!$A211, 'Full set Core Client Indicator'!$A$3:$A$351, 0), MATCH(Selection_Hide2!E$5, 'Full set Core Client Indicator'!$A$3:$AB$3, 0))), \"\")","v":""},{"$f":"IF(E211<>\"\", IF(INDEX('Full set Core Client Indicator'!$A$3:$AB$351, MATCH(Selection_Hide2!$A211, 'Full set Core Client Indicator'!$A$3:$A$351, 0), MATCH(Selection_Hide2!F$5, 'Full set Core Client Indicator'!$A$3:$AB$3, 0))=\"\", \"\",  INDEX('Full set Core Client Indicator'!$A$3:$AB$351, MATCH(Selection_Hide2!$A211, 'Full set Core Client Indicator'!$A$3:$A$351, 0), MATCH(Selection_Hide2!F$5, 'Full set Core Client Indicator'!$A$3:$AB$3, 0))), \"\")","v":""},{"$f":"IF(F211<>\"\", IF(INDEX('Full set Core Client Indicator'!$A$3:$AB$351, MATCH(Selection_Hide2!$A211, 'Full set Core Client Indicator'!$A$3:$A$351, 0), MATCH(Selection_Hide2!G$5, 'Full set Core Client Indicator'!$A$3:$AB$3, 0))=\"\", \"\",  INDEX('Full set Core Client Indicator'!$A$3:$AB$351, MATCH(Selection_Hide2!$A211, 'Full set Core Client Indicator'!$A$3:$A$351, 0), MATCH(Selection_Hide2!G$5, 'Full set Core Client Indicator'!$A$3:$AB$3, 0))), \"\")","v":""},{"$f":"IF(G211<>\"\", IF(INDEX('Full set Core Client Indicator'!$A$3:$AB$351, MATCH(Selection_Hide2!$A211, 'Full set Core Client Indicator'!$A$3:$A$351, 0), MATCH(Selection_Hide2!H$5, 'Full set Core Client Indicator'!$A$3:$AB$3, 0))=\"\", \"\",  INDEX('Full set Core Client Indicator'!$A$3:$AB$351, MATCH(Selection_Hide2!$A211, 'Full set Core Client Indicator'!$A$3:$A$351, 0), MATCH(Selection_Hide2!H$5, 'Full set Core Client Indicator'!$A$3:$AB$3, 0))), \"\")","v":""},{"$f":"IF(H211<>\"\", IF(INDEX('Full set Core Client Indicator'!$A$3:$AB$351, MATCH(Selection_Hide2!$A211, 'Full set Core Client Indicator'!$A$3:$A$351, 0), MATCH(Selection_Hide2!I$5, 'Full set Core Client Indicator'!$A$3:$AB$3, 0))=\"\", \"\",  INDEX('Full set Core Client Indicator'!$A$3:$AB$351, MATCH(Selection_Hide2!$A211, 'Full set Core Client Indicator'!$A$3:$A$351, 0), MATCH(Selection_Hide2!I$5, 'Full set Core Client Indicator'!$A$3:$AB$3, 0))), \"\")","v":""},{"$f":"IF(I211<>\"\", IF(INDEX('Full set Core Client Indicator'!$A$3:$AB$351, MATCH(Selection_Hide2!$A211, 'Full set Core Client Indicator'!$A$3:$A$351, 0), MATCH(Selection_Hide2!J$5, 'Full set Core Client Indicator'!$A$3:$AB$3, 0))=\"\", \"\",  INDEX('Full set Core Client Indicator'!$A$3:$AB$351, MATCH(Selection_Hide2!$A211, 'Full set Core Client Indicator'!$A$3:$A$351, 0), MATCH(Selection_Hide2!J$5, 'Full set Core Client Indicator'!$A$3:$AB$3, 0))), \"\")","v":""},{"$f":"IF(J211<>\"\", IF(INDEX('Full set Core Client Indicator'!$A$3:$AB$351, MATCH(Selection_Hide2!$A211, 'Full set Core Client Indicator'!$A$3:$A$351, 0), MATCH(Selection_Hide2!K$5, 'Full set Core Client Indicator'!$A$3:$AB$3, 0))=\"\", \"\",  INDEX('Full set Core Client Indicator'!$A$3:$AB$351, MATCH(Selection_Hide2!$A211, 'Full set Core Client Indicator'!$A$3:$A$351, 0), MATCH(Selection_Hide2!K$5, 'Full set Core Client Indicator'!$A$3:$AB$3, 0))), \"\")","v":""},{"$f":"IF(K211<>\"\", IF(INDEX('Full set Core Client Indicator'!$A$3:$AB$351, MATCH(Selection_Hide2!$A211, 'Full set Core Client Indicator'!$A$3:$A$351, 0), MATCH(Selection_Hide2!L$5, 'Full set Core Client Indicator'!$A$3:$AB$3, 0))=\"\", \"\",  INDEX('Full set Core Client Indicator'!$A$3:$AB$351, MATCH(Selection_Hide2!$A211, 'Full set Core Client Indicator'!$A$3:$A$351, 0), MATCH(Selection_Hide2!L$5, 'Full set Core Client Indicator'!$A$3:$AB$3, 0))), \"\")","v":""},{"$f":"IF(L211<>\"\", IF(INDEX('Full set Core Client Indicator'!$A$3:$AB$351, MATCH(Selection_Hide2!$A211, 'Full set Core Client Indicator'!$A$3:$A$351, 0), MATCH(Selection_Hide2!M$5, 'Full set Core Client Indicator'!$A$3:$AB$3, 0))=\"\", \"\",  INDEX('Full set Core Client Indicator'!$A$3:$AB$351, MATCH(Selection_Hide2!$A211, 'Full set Core Client Indicator'!$A$3:$A$351, 0), MATCH(Selection_Hide2!M$5, 'Full set Core Client Indicator'!$A$3:$AB$3, 0))), \"\")","v":""},{"$f":"IF(M211<>\"\", IF(INDEX('Full set Core Client Indicator'!$A$3:$AB$351, MATCH(Selection_Hide2!$A211, 'Full set Core Client Indicator'!$A$3:$A$351, 0), MATCH(Selection_Hide2!N$5, 'Full set Core Client Indicator'!$A$3:$AB$3, 0))=\"\", \"\",  INDEX('Full set Core Client Indicator'!$A$3:$AB$351, MATCH(Selection_Hide2!$A211, 'Full set Core Client Indicator'!$A$3:$A$351, 0), MATCH(Selection_Hide2!N$5, 'Full set Core Client Indicator'!$A$3:$AB$3, 0))), \"\")","v":""},{"$f":"IF(N211<>\"\", IF(INDEX('Full set Core Client Indicator'!$A$3:$AB$351, MATCH(Selection_Hide2!$A211, 'Full set Core Client Indicator'!$A$3:$A$351, 0), MATCH(Selection_Hide2!O$5, 'Full set Core Client Indicator'!$A$3:$AB$3, 0))=\"\", \"\",  INDEX('Full set Core Client Indicator'!$A$3:$AB$351, MATCH(Selection_Hide2!$A211, 'Full set Core Client Indicator'!$A$3:$A$351, 0), MATCH(Selection_Hide2!O$5, 'Full set Core Client Indicator'!$A$3:$AB$3, 0))), \"\")","v":""},{"$f":"IF(O211<>\"\", IF(INDEX('Full set Core Client Indicator'!$A$3:$AB$351, MATCH(Selection_Hide2!$A211, 'Full set Core Client Indicator'!$A$3:$A$351, 0), MATCH(Selection_Hide2!P$5, 'Full set Core Client Indicator'!$A$3:$AB$3, 0))=\"\", \"\",  INDEX('Full set Core Client Indicator'!$A$3:$AB$351, MATCH(Selection_Hide2!$A211, 'Full set Core Client Indicator'!$A$3:$A$351, 0), MATCH(Selection_Hide2!P$5, 'Full set Core Client Indicator'!$A$3:$AB$3, 0))), \"\")","v":""},{"$f":"IF(P211<>\"\", IF(INDEX('Full set Core Client Indicator'!$A$3:$AB$351, MATCH(Selection_Hide2!$A211, 'Full set Core Client Indicator'!$A$3:$A$351, 0), MATCH(Selection_Hide2!Q$5, 'Full set Core Client Indicator'!$A$3:$AB$3, 0))=\"\", \"\",  INDEX('Full set Core Client Indicator'!$A$3:$AB$351, MATCH(Selection_Hide2!$A211, 'Full set Core Client Indicator'!$A$3:$A$351, 0), MATCH(Selection_Hide2!Q$5, 'Full set Core Client Indicator'!$A$3:$AB$3, 0))), \"\")","v":""},{"$f":"IF(Q211<>\"\", IF(INDEX('Full set Core Client Indicator'!$A$3:$AB$351, MATCH(Selection_Hide2!$A211, 'Full set Core Client Indicator'!$A$3:$A$351, 0), MATCH(Selection_Hide2!R$5, 'Full set Core Client Indicator'!$A$3:$AB$3, 0))=\"\", \"\",  INDEX('Full set Core Client Indicator'!$A$3:$AB$351, MATCH(Selection_Hide2!$A211, 'Full set Core Client Indicator'!$A$3:$A$351, 0), MATCH(Selection_Hide2!R$5, 'Full set Core Client Indicator'!$A$3:$AB$3, 0))), \"\")","v":""},{"$f":"IF(R211<>\"\", IF(INDEX('Full set Core Client Indicator'!$A$3:$AB$351, MATCH(Selection_Hide2!$A211, 'Full set Core Client Indicator'!$A$3:$A$351, 0), MATCH(Selection_Hide2!S$5, 'Full set Core Client Indicator'!$A$3:$AB$3, 0))=\"\", \"\",  INDEX('Full set Core Client Indicator'!$A$3:$AB$351, MATCH(Selection_Hide2!$A211, 'Full set Core Client Indicator'!$A$3:$A$351, 0), MATCH(Selection_Hide2!S$5, 'Full set Core Client Indicator'!$A$3:$AB$3, 0))), \"\")","v":""},{"$f":"IF(S211<>\"\", IF(INDEX('Full set Core Client Indicator'!$A$3:$AB$351, MATCH(Selection_Hide2!$A211, 'Full set Core Client Indicator'!$A$3:$A$351, 0), MATCH(Selection_Hide2!T$5, 'Full set Core Client Indicator'!$A$3:$AB$3, 0))=\"\", \"\",  INDEX('Full set Core Client Indicator'!$A$3:$AB$351, MATCH(Selection_Hide2!$A211, 'Full set Core Client Indicator'!$A$3:$A$351, 0), MATCH(Selection_Hide2!T$5, 'Full set Core Client Indicator'!$A$3:$AB$3, 0))), \"\")","v":""},{"$f":"IF(T211<>\"\", IF(INDEX('Full set Core Client Indicator'!$A$3:$AB$351, MATCH(Selection_Hide2!$A211, 'Full set Core Client Indicator'!$A$3:$A$351, 0), MATCH(Selection_Hide2!U$5, 'Full set Core Client Indicator'!$A$3:$AB$3, 0))=\"\", \"\",  INDEX('Full set Core Client Indicator'!$A$3:$AB$351, MATCH(Selection_Hide2!$A211, 'Full set Core Client Indicator'!$A$3:$A$351, 0), MATCH(Selection_Hide2!U$5, 'Full set Core Client Indicator'!$A$3:$AB$3, 0))), \"\")","v":""},{"$f":"IF(U211<>\"\", IF(INDEX('Full set Core Client Indicator'!$A$3:$AB$351, MATCH(Selection_Hide2!$A211, 'Full set Core Client Indicator'!$A$3:$A$351, 0), MATCH(Selection_Hide2!V$5, 'Full set Core Client Indicator'!$A$3:$AB$3, 0))=\"\", \"\",  INDEX('Full set Core Client Indicator'!$A$3:$AB$351, MATCH(Selection_Hide2!$A211, 'Full set Core Client Indicator'!$A$3:$A$351, 0), MATCH(Selection_Hide2!V$5, 'Full set Core Client Indicator'!$A$3:$AB$3, 0))), \"\")","v":""},{"$f":"IF(V211<>\"\", IF(INDEX('Full set Core Client Indicator'!$A$3:$AB$351, MATCH(Selection_Hide2!$A211, 'Full set Core Client Indicator'!$A$3:$A$351, 0), MATCH(Selection_Hide2!W$5, 'Full set Core Client Indicator'!$A$3:$AB$3, 0))=\"\", \"\",  INDEX('Full set Core Client Indicator'!$A$3:$AB$351, MATCH(Selection_Hide2!$A211, 'Full set Core Client Indicator'!$A$3:$A$351, 0), MATCH(Selection_Hide2!W$5, 'Full set Core Client Indicator'!$A$3:$AB$3, 0))), \"\")","v":""},{"$f":"IF(W211<>\"\", IF(INDEX('Full set Core Client Indicator'!$A$3:$AB$351, MATCH(Selection_Hide2!$A211, 'Full set Core Client Indicator'!$A$3:$A$351, 0), MATCH(Selection_Hide2!X$5, 'Full set Core Client Indicator'!$A$3:$AB$3, 0))=\"\", \"\",  INDEX('Full set Core Client Indicator'!$A$3:$AB$351, MATCH(Selection_Hide2!$A211, 'Full set Core Client Indicator'!$A$3:$A$351, 0), MATCH(Selection_Hide2!X$5, 'Full set Core Client Indicator'!$A$3:$AB$3, 0))), \"\")","v":""},{"$f":"IF(X211<>\"\", IF(INDEX('Full set Core Client Indicator'!$A$3:$AB$351, MATCH(Selection_Hide2!$A211, 'Full set Core Client Indicator'!$A$3:$A$351, 0), MATCH(Selection_Hide2!Y$5, 'Full set Core Client Indicator'!$A$3:$AB$3, 0))=\"\", \"\",  INDEX('Full set Core Client Indicator'!$A$3:$AB$351, MATCH(Selection_Hide2!$A211, 'Full set Core Client Indicator'!$A$3:$A$351, 0), MATCH(Selection_Hide2!Y$5, 'Full set Core Client Indicator'!$A$3:$AB$3, 0))), \"\")","v":""},{"$f":"IF(Y211<>\"\", IF(INDEX('Full set Core Client Indicator'!$A$3:$AB$351, MATCH(Selection_Hide2!$A211, 'Full set Core Client Indicator'!$A$3:$A$351, 0), MATCH(Selection_Hide2!Z$5, 'Full set Core Client Indicator'!$A$3:$AB$3, 0))=\"\", \"\",  INDEX('Full set Core Client Indicator'!$A$3:$AB$351, MATCH(Selection_Hide2!$A211, 'Full set Core Client Indicator'!$A$3:$A$351, 0), MATCH(Selection_Hide2!Z$5, 'Full set Core Client Indicator'!$A$3:$AB$3, 0))), \"\")","v":""},{"$f":"IF(Z211<>\"\", IF(INDEX('Full set Core Client Indicator'!$A$3:$AB$351, MATCH(Selection_Hide2!$A211, 'Full set Core Client Indicator'!$A$3:$A$351, 0), MATCH(Selection_Hide2!AA$5, 'Full set Core Client Indicator'!$A$3:$AB$3, 0))=\"\", \"\",  INDEX('Full set Core Client Indicator'!$A$3:$AB$351, MATCH(Selection_Hide2!$A211, 'Full set Core Client Indicator'!$A$3:$A$351, 0), MATCH(Selection_Hide2!AA$5, 'Full set Core Client Indicator'!$A$3:$AB$3, 0))), \"\")","v":""},{"$f":"IF(AA211<>\"\", IF(INDEX('Full set Core Client Indicator'!$A$3:$AB$351, MATCH(Selection_Hide2!$A211, 'Full set Core Client Indicator'!$A$3:$A$351, 0), MATCH(Selection_Hide2!AB$5, 'Full set Core Client Indicator'!$A$3:$AB$3, 0))=\"\", \"\",  INDEX('Full set Core Client Indicator'!$A$3:$AB$351, MATCH(Selection_Hide2!$A211, 'Full set Core Client Indicator'!$A$3:$A$351, 0), MATCH(Selection_Hide2!AB$5, 'Full set Core Client Indicator'!$A$3:$AB$3, 0))), \"\")","v":""}]
[{"$f":"IF(AND(Selection_Hide1!C210<>0, Selection_Hide1!C210<>\"Grand Total\"), Selection_Hide1!C210, \"\")","v":""},{"$f":"IF(A212<>\"\", IF(INDEX('Full set Core Client Indicator'!$A$3:$AB$351, MATCH(Selection_Hide2!$A212, 'Full set Core Client Indicator'!$A$3:$A$351, 0), MATCH(Selection_Hide2!B$5, 'Full set Core Client Indicator'!$A$3:$AB$3, 0))=\"\", \"\",  INDEX('Full set Core Client Indicator'!$A$3:$AB$351, MATCH(Selection_Hide2!$A212, 'Full set Core Client Indicator'!$A$3:$A$351, 0), MATCH(Selection_Hide2!B$5, 'Full set Core Client Indicator'!$A$3:$AB$3, 0))), \"\")","v":""},{"$f":"IF(B212<>\"\", IF(INDEX('Full set Core Client Indicator'!$A$3:$AB$351, MATCH(Selection_Hide2!$A212, 'Full set Core Client Indicator'!$A$3:$A$351, 0), MATCH(Selection_Hide2!C$5, 'Full set Core Client Indicator'!$A$3:$AB$3, 0))=\"\", \"\",  INDEX('Full set Core Client Indicator'!$A$3:$AB$351, MATCH(Selection_Hide2!$A212, 'Full set Core Client Indicator'!$A$3:$A$351, 0), MATCH(Selection_Hide2!C$5, 'Full set Core Client Indicator'!$A$3:$AB$3, 0))), \"\")","v":""},{"$f":"IF(C212<>\"\", IF(INDEX('Full set Core Client Indicator'!$A$3:$AB$351, MATCH(Selection_Hide2!$A212, 'Full set Core Client Indicator'!$A$3:$A$351, 0), MATCH(Selection_Hide2!D$5, 'Full set Core Client Indicator'!$A$3:$AB$3, 0))=\"\", \"\",  INDEX('Full set Core Client Indicator'!$A$3:$AB$351, MATCH(Selection_Hide2!$A212, 'Full set Core Client Indicator'!$A$3:$A$351, 0), MATCH(Selection_Hide2!D$5, 'Full set Core Client Indicator'!$A$3:$AB$3, 0))), \"\")","v":""},{"$f":"IF(D212<>\"\", IF(INDEX('Full set Core Client Indicator'!$A$3:$AB$351, MATCH(Selection_Hide2!$A212, 'Full set Core Client Indicator'!$A$3:$A$351, 0), MATCH(Selection_Hide2!E$5, 'Full set Core Client Indicator'!$A$3:$AB$3, 0))=\"\", \"\",  INDEX('Full set Core Client Indicator'!$A$3:$AB$351, MATCH(Selection_Hide2!$A212, 'Full set Core Client Indicator'!$A$3:$A$351, 0), MATCH(Selection_Hide2!E$5, 'Full set Core Client Indicator'!$A$3:$AB$3, 0))), \"\")","v":""},{"$f":"IF(E212<>\"\", IF(INDEX('Full set Core Client Indicator'!$A$3:$AB$351, MATCH(Selection_Hide2!$A212, 'Full set Core Client Indicator'!$A$3:$A$351, 0), MATCH(Selection_Hide2!F$5, 'Full set Core Client Indicator'!$A$3:$AB$3, 0))=\"\", \"\",  INDEX('Full set Core Client Indicator'!$A$3:$AB$351, MATCH(Selection_Hide2!$A212, 'Full set Core Client Indicator'!$A$3:$A$351, 0), MATCH(Selection_Hide2!F$5, 'Full set Core Client Indicator'!$A$3:$AB$3, 0))), \"\")","v":""},{"$f":"IF(F212<>\"\", IF(INDEX('Full set Core Client Indicator'!$A$3:$AB$351, MATCH(Selection_Hide2!$A212, 'Full set Core Client Indicator'!$A$3:$A$351, 0), MATCH(Selection_Hide2!G$5, 'Full set Core Client Indicator'!$A$3:$AB$3, 0))=\"\", \"\",  INDEX('Full set Core Client Indicator'!$A$3:$AB$351, MATCH(Selection_Hide2!$A212, 'Full set Core Client Indicator'!$A$3:$A$351, 0), MATCH(Selection_Hide2!G$5, 'Full set Core Client Indicator'!$A$3:$AB$3, 0))), \"\")","v":""},{"$f":"IF(G212<>\"\", IF(INDEX('Full set Core Client Indicator'!$A$3:$AB$351, MATCH(Selection_Hide2!$A212, 'Full set Core Client Indicator'!$A$3:$A$351, 0), MATCH(Selection_Hide2!H$5, 'Full set Core Client Indicator'!$A$3:$AB$3, 0))=\"\", \"\",  INDEX('Full set Core Client Indicator'!$A$3:$AB$351, MATCH(Selection_Hide2!$A212, 'Full set Core Client Indicator'!$A$3:$A$351, 0), MATCH(Selection_Hide2!H$5, 'Full set Core Client Indicator'!$A$3:$AB$3, 0))), \"\")","v":""},{"$f":"IF(H212<>\"\", IF(INDEX('Full set Core Client Indicator'!$A$3:$AB$351, MATCH(Selection_Hide2!$A212, 'Full set Core Client Indicator'!$A$3:$A$351, 0), MATCH(Selection_Hide2!I$5, 'Full set Core Client Indicator'!$A$3:$AB$3, 0))=\"\", \"\",  INDEX('Full set Core Client Indicator'!$A$3:$AB$351, MATCH(Selection_Hide2!$A212, 'Full set Core Client Indicator'!$A$3:$A$351, 0), MATCH(Selection_Hide2!I$5, 'Full set Core Client Indicator'!$A$3:$AB$3, 0))), \"\")","v":""},{"$f":"IF(I212<>\"\", IF(INDEX('Full set Core Client Indicator'!$A$3:$AB$351, MATCH(Selection_Hide2!$A212, 'Full set Core Client Indicator'!$A$3:$A$351, 0), MATCH(Selection_Hide2!J$5, 'Full set Core Client Indicator'!$A$3:$AB$3, 0))=\"\", \"\",  INDEX('Full set Core Client Indicator'!$A$3:$AB$351, MATCH(Selection_Hide2!$A212, 'Full set Core Client Indicator'!$A$3:$A$351, 0), MATCH(Selection_Hide2!J$5, 'Full set Core Client Indicator'!$A$3:$AB$3, 0))), \"\")","v":""},{"$f":"IF(J212<>\"\", IF(INDEX('Full set Core Client Indicator'!$A$3:$AB$351, MATCH(Selection_Hide2!$A212, 'Full set Core Client Indicator'!$A$3:$A$351, 0), MATCH(Selection_Hide2!K$5, 'Full set Core Client Indicator'!$A$3:$AB$3, 0))=\"\", \"\",  INDEX('Full set Core Client Indicator'!$A$3:$AB$351, MATCH(Selection_Hide2!$A212, 'Full set Core Client Indicator'!$A$3:$A$351, 0), MATCH(Selection_Hide2!K$5, 'Full set Core Client Indicator'!$A$3:$AB$3, 0))), \"\")","v":""},{"$f":"IF(K212<>\"\", IF(INDEX('Full set Core Client Indicator'!$A$3:$AB$351, MATCH(Selection_Hide2!$A212, 'Full set Core Client Indicator'!$A$3:$A$351, 0), MATCH(Selection_Hide2!L$5, 'Full set Core Client Indicator'!$A$3:$AB$3, 0))=\"\", \"\",  INDEX('Full set Core Client Indicator'!$A$3:$AB$351, MATCH(Selection_Hide2!$A212, 'Full set Core Client Indicator'!$A$3:$A$351, 0), MATCH(Selection_Hide2!L$5, 'Full set Core Client Indicator'!$A$3:$AB$3, 0))), \"\")","v":""},{"$f":"IF(L212<>\"\", IF(INDEX('Full set Core Client Indicator'!$A$3:$AB$351, MATCH(Selection_Hide2!$A212, 'Full set Core Client Indicator'!$A$3:$A$351, 0), MATCH(Selection_Hide2!M$5, 'Full set Core Client Indicator'!$A$3:$AB$3, 0))=\"\", \"\",  INDEX('Full set Core Client Indicator'!$A$3:$AB$351, MATCH(Selection_Hide2!$A212, 'Full set Core Client Indicator'!$A$3:$A$351, 0), MATCH(Selection_Hide2!M$5, 'Full set Core Client Indicator'!$A$3:$AB$3, 0))), \"\")","v":""},{"$f":"IF(M212<>\"\", IF(INDEX('Full set Core Client Indicator'!$A$3:$AB$351, MATCH(Selection_Hide2!$A212, 'Full set Core Client Indicator'!$A$3:$A$351, 0), MATCH(Selection_Hide2!N$5, 'Full set Core Client Indicator'!$A$3:$AB$3, 0))=\"\", \"\",  INDEX('Full set Core Client Indicator'!$A$3:$AB$351, MATCH(Selection_Hide2!$A212, 'Full set Core Client Indicator'!$A$3:$A$351, 0), MATCH(Selection_Hide2!N$5, 'Full set Core Client Indicator'!$A$3:$AB$3, 0))), \"\")","v":""},{"$f":"IF(N212<>\"\", IF(INDEX('Full set Core Client Indicator'!$A$3:$AB$351, MATCH(Selection_Hide2!$A212, 'Full set Core Client Indicator'!$A$3:$A$351, 0), MATCH(Selection_Hide2!O$5, 'Full set Core Client Indicator'!$A$3:$AB$3, 0))=\"\", \"\",  INDEX('Full set Core Client Indicator'!$A$3:$AB$351, MATCH(Selection_Hide2!$A212, 'Full set Core Client Indicator'!$A$3:$A$351, 0), MATCH(Selection_Hide2!O$5, 'Full set Core Client Indicator'!$A$3:$AB$3, 0))), \"\")","v":""},{"$f":"IF(O212<>\"\", IF(INDEX('Full set Core Client Indicator'!$A$3:$AB$351, MATCH(Selection_Hide2!$A212, 'Full set Core Client Indicator'!$A$3:$A$351, 0), MATCH(Selection_Hide2!P$5, 'Full set Core Client Indicator'!$A$3:$AB$3, 0))=\"\", \"\",  INDEX('Full set Core Client Indicator'!$A$3:$AB$351, MATCH(Selection_Hide2!$A212, 'Full set Core Client Indicator'!$A$3:$A$351, 0), MATCH(Selection_Hide2!P$5, 'Full set Core Client Indicator'!$A$3:$AB$3, 0))), \"\")","v":""},{"$f":"IF(P212<>\"\", IF(INDEX('Full set Core Client Indicator'!$A$3:$AB$351, MATCH(Selection_Hide2!$A212, 'Full set Core Client Indicator'!$A$3:$A$351, 0), MATCH(Selection_Hide2!Q$5, 'Full set Core Client Indicator'!$A$3:$AB$3, 0))=\"\", \"\",  INDEX('Full set Core Client Indicator'!$A$3:$AB$351, MATCH(Selection_Hide2!$A212, 'Full set Core Client Indicator'!$A$3:$A$351, 0), MATCH(Selection_Hide2!Q$5, 'Full set Core Client Indicator'!$A$3:$AB$3, 0))), \"\")","v":""},{"$f":"IF(Q212<>\"\", IF(INDEX('Full set Core Client Indicator'!$A$3:$AB$351, MATCH(Selection_Hide2!$A212, 'Full set Core Client Indicator'!$A$3:$A$351, 0), MATCH(Selection_Hide2!R$5, 'Full set Core Client Indicator'!$A$3:$AB$3, 0))=\"\", \"\",  INDEX('Full set Core Client Indicator'!$A$3:$AB$351, MATCH(Selection_Hide2!$A212, 'Full set Core Client Indicator'!$A$3:$A$351, 0), MATCH(Selection_Hide2!R$5, 'Full set Core Client Indicator'!$A$3:$AB$3, 0))), \"\")","v":""},{"$f":"IF(R212<>\"\", IF(INDEX('Full set Core Client Indicator'!$A$3:$AB$351, MATCH(Selection_Hide2!$A212, 'Full set Core Client Indicator'!$A$3:$A$351, 0), MATCH(Selection_Hide2!S$5, 'Full set Core Client Indicator'!$A$3:$AB$3, 0))=\"\", \"\",  INDEX('Full set Core Client Indicator'!$A$3:$AB$351, MATCH(Selection_Hide2!$A212, 'Full set Core Client Indicator'!$A$3:$A$351, 0), MATCH(Selection_Hide2!S$5, 'Full set Core Client Indicator'!$A$3:$AB$3, 0))), \"\")","v":""},{"$f":"IF(S212<>\"\", IF(INDEX('Full set Core Client Indicator'!$A$3:$AB$351, MATCH(Selection_Hide2!$A212, 'Full set Core Client Indicator'!$A$3:$A$351, 0), MATCH(Selection_Hide2!T$5, 'Full set Core Client Indicator'!$A$3:$AB$3, 0))=\"\", \"\",  INDEX('Full set Core Client Indicator'!$A$3:$AB$351, MATCH(Selection_Hide2!$A212, 'Full set Core Client Indicator'!$A$3:$A$351, 0), MATCH(Selection_Hide2!T$5, 'Full set Core Client Indicator'!$A$3:$AB$3, 0))), \"\")","v":""},{"$f":"IF(T212<>\"\", IF(INDEX('Full set Core Client Indicator'!$A$3:$AB$351, MATCH(Selection_Hide2!$A212, 'Full set Core Client Indicator'!$A$3:$A$351, 0), MATCH(Selection_Hide2!U$5, 'Full set Core Client Indicator'!$A$3:$AB$3, 0))=\"\", \"\",  INDEX('Full set Core Client Indicator'!$A$3:$AB$351, MATCH(Selection_Hide2!$A212, 'Full set Core Client Indicator'!$A$3:$A$351, 0), MATCH(Selection_Hide2!U$5, 'Full set Core Client Indicator'!$A$3:$AB$3, 0))), \"\")","v":""},{"$f":"IF(U212<>\"\", IF(INDEX('Full set Core Client Indicator'!$A$3:$AB$351, MATCH(Selection_Hide2!$A212, 'Full set Core Client Indicator'!$A$3:$A$351, 0), MATCH(Selection_Hide2!V$5, 'Full set Core Client Indicator'!$A$3:$AB$3, 0))=\"\", \"\",  INDEX('Full set Core Client Indicator'!$A$3:$AB$351, MATCH(Selection_Hide2!$A212, 'Full set Core Client Indicator'!$A$3:$A$351, 0), MATCH(Selection_Hide2!V$5, 'Full set Core Client Indicator'!$A$3:$AB$3, 0))), \"\")","v":""},{"$f":"IF(V212<>\"\", IF(INDEX('Full set Core Client Indicator'!$A$3:$AB$351, MATCH(Selection_Hide2!$A212, 'Full set Core Client Indicator'!$A$3:$A$351, 0), MATCH(Selection_Hide2!W$5, 'Full set Core Client Indicator'!$A$3:$AB$3, 0))=\"\", \"\",  INDEX('Full set Core Client Indicator'!$A$3:$AB$351, MATCH(Selection_Hide2!$A212, 'Full set Core Client Indicator'!$A$3:$A$351, 0), MATCH(Selection_Hide2!W$5, 'Full set Core Client Indicator'!$A$3:$AB$3, 0))), \"\")","v":""},{"$f":"IF(W212<>\"\", IF(INDEX('Full set Core Client Indicator'!$A$3:$AB$351, MATCH(Selection_Hide2!$A212, 'Full set Core Client Indicator'!$A$3:$A$351, 0), MATCH(Selection_Hide2!X$5, 'Full set Core Client Indicator'!$A$3:$AB$3, 0))=\"\", \"\",  INDEX('Full set Core Client Indicator'!$A$3:$AB$351, MATCH(Selection_Hide2!$A212, 'Full set Core Client Indicator'!$A$3:$A$351, 0), MATCH(Selection_Hide2!X$5, 'Full set Core Client Indicator'!$A$3:$AB$3, 0))), \"\")","v":""},{"$f":"IF(X212<>\"\", IF(INDEX('Full set Core Client Indicator'!$A$3:$AB$351, MATCH(Selection_Hide2!$A212, 'Full set Core Client Indicator'!$A$3:$A$351, 0), MATCH(Selection_Hide2!Y$5, 'Full set Core Client Indicator'!$A$3:$AB$3, 0))=\"\", \"\",  INDEX('Full set Core Client Indicator'!$A$3:$AB$351, MATCH(Selection_Hide2!$A212, 'Full set Core Client Indicator'!$A$3:$A$351, 0), MATCH(Selection_Hide2!Y$5, 'Full set Core Client Indicator'!$A$3:$AB$3, 0))), \"\")","v":""},{"$f":"IF(Y212<>\"\", IF(INDEX('Full set Core Client Indicator'!$A$3:$AB$351, MATCH(Selection_Hide2!$A212, 'Full set Core Client Indicator'!$A$3:$A$351, 0), MATCH(Selection_Hide2!Z$5, 'Full set Core Client Indicator'!$A$3:$AB$3, 0))=\"\", \"\",  INDEX('Full set Core Client Indicator'!$A$3:$AB$351, MATCH(Selection_Hide2!$A212, 'Full set Core Client Indicator'!$A$3:$A$351, 0), MATCH(Selection_Hide2!Z$5, 'Full set Core Client Indicator'!$A$3:$AB$3, 0))), \"\")","v":""},{"$f":"IF(Z212<>\"\", IF(INDEX('Full set Core Client Indicator'!$A$3:$AB$351, MATCH(Selection_Hide2!$A212, 'Full set Core Client Indicator'!$A$3:$A$351, 0), MATCH(Selection_Hide2!AA$5, 'Full set Core Client Indicator'!$A$3:$AB$3, 0))=\"\", \"\",  INDEX('Full set Core Client Indicator'!$A$3:$AB$351, MATCH(Selection_Hide2!$A212, 'Full set Core Client Indicator'!$A$3:$A$351, 0), MATCH(Selection_Hide2!AA$5, 'Full set Core Client Indicator'!$A$3:$AB$3, 0))), \"\")","v":""},{"$f":"IF(AA212<>\"\", IF(INDEX('Full set Core Client Indicator'!$A$3:$AB$351, MATCH(Selection_Hide2!$A212, 'Full set Core Client Indicator'!$A$3:$A$351, 0), MATCH(Selection_Hide2!AB$5, 'Full set Core Client Indicator'!$A$3:$AB$3, 0))=\"\", \"\",  INDEX('Full set Core Client Indicator'!$A$3:$AB$351, MATCH(Selection_Hide2!$A212, 'Full set Core Client Indicator'!$A$3:$A$351, 0), MATCH(Selection_Hide2!AB$5, 'Full set Core Client Indicator'!$A$3:$AB$3, 0))), \"\")","v":""}]
[{"$f":"IF(AND(Selection_Hide1!C211<>0, Selection_Hide1!C211<>\"Grand Total\"), Selection_Hide1!C211, \"\")","v":""},{"$f":"IF(A213<>\"\", IF(INDEX('Full set Core Client Indicator'!$A$3:$AB$351, MATCH(Selection_Hide2!$A213, 'Full set Core Client Indicator'!$A$3:$A$351, 0), MATCH(Selection_Hide2!B$5, 'Full set Core Client Indicator'!$A$3:$AB$3, 0))=\"\", \"\",  INDEX('Full set Core Client Indicator'!$A$3:$AB$351, MATCH(Selection_Hide2!$A213, 'Full set Core Client Indicator'!$A$3:$A$351, 0), MATCH(Selection_Hide2!B$5, 'Full set Core Client Indicator'!$A$3:$AB$3, 0))), \"\")","v":""},{"$f":"IF(B213<>\"\", IF(INDEX('Full set Core Client Indicator'!$A$3:$AB$351, MATCH(Selection_Hide2!$A213, 'Full set Core Client Indicator'!$A$3:$A$351, 0), MATCH(Selection_Hide2!C$5, 'Full set Core Client Indicator'!$A$3:$AB$3, 0))=\"\", \"\",  INDEX('Full set Core Client Indicator'!$A$3:$AB$351, MATCH(Selection_Hide2!$A213, 'Full set Core Client Indicator'!$A$3:$A$351, 0), MATCH(Selection_Hide2!C$5, 'Full set Core Client Indicator'!$A$3:$AB$3, 0))), \"\")","v":""},{"$f":"IF(C213<>\"\", IF(INDEX('Full set Core Client Indicator'!$A$3:$AB$351, MATCH(Selection_Hide2!$A213, 'Full set Core Client Indicator'!$A$3:$A$351, 0), MATCH(Selection_Hide2!D$5, 'Full set Core Client Indicator'!$A$3:$AB$3, 0))=\"\", \"\",  INDEX('Full set Core Client Indicator'!$A$3:$AB$351, MATCH(Selection_Hide2!$A213, 'Full set Core Client Indicator'!$A$3:$A$351, 0), MATCH(Selection_Hide2!D$5, 'Full set Core Client Indicator'!$A$3:$AB$3, 0))), \"\")","v":""},{"$f":"IF(D213<>\"\", IF(INDEX('Full set Core Client Indicator'!$A$3:$AB$351, MATCH(Selection_Hide2!$A213, 'Full set Core Client Indicator'!$A$3:$A$351, 0), MATCH(Selection_Hide2!E$5, 'Full set Core Client Indicator'!$A$3:$AB$3, 0))=\"\", \"\",  INDEX('Full set Core Client Indicator'!$A$3:$AB$351, MATCH(Selection_Hide2!$A213, 'Full set Core Client Indicator'!$A$3:$A$351, 0), MATCH(Selection_Hide2!E$5, 'Full set Core Client Indicator'!$A$3:$AB$3, 0))), \"\")","v":""},{"$f":"IF(E213<>\"\", IF(INDEX('Full set Core Client Indicator'!$A$3:$AB$351, MATCH(Selection_Hide2!$A213, 'Full set Core Client Indicator'!$A$3:$A$351, 0), MATCH(Selection_Hide2!F$5, 'Full set Core Client Indicator'!$A$3:$AB$3, 0))=\"\", \"\",  INDEX('Full set Core Client Indicator'!$A$3:$AB$351, MATCH(Selection_Hide2!$A213, 'Full set Core Client Indicator'!$A$3:$A$351, 0), MATCH(Selection_Hide2!F$5, 'Full set Core Client Indicator'!$A$3:$AB$3, 0))), \"\")","v":""},{"$f":"IF(F213<>\"\", IF(INDEX('Full set Core Client Indicator'!$A$3:$AB$351, MATCH(Selection_Hide2!$A213, 'Full set Core Client Indicator'!$A$3:$A$351, 0), MATCH(Selection_Hide2!G$5, 'Full set Core Client Indicator'!$A$3:$AB$3, 0))=\"\", \"\",  INDEX('Full set Core Client Indicator'!$A$3:$AB$351, MATCH(Selection_Hide2!$A213, 'Full set Core Client Indicator'!$A$3:$A$351, 0), MATCH(Selection_Hide2!G$5, 'Full set Core Client Indicator'!$A$3:$AB$3, 0))), \"\")","v":""},{"$f":"IF(G213<>\"\", IF(INDEX('Full set Core Client Indicator'!$A$3:$AB$351, MATCH(Selection_Hide2!$A213, 'Full set Core Client Indicator'!$A$3:$A$351, 0), MATCH(Selection_Hide2!H$5, 'Full set Core Client Indicator'!$A$3:$AB$3, 0))=\"\", \"\",  INDEX('Full set Core Client Indicator'!$A$3:$AB$351, MATCH(Selection_Hide2!$A213, 'Full set Core Client Indicator'!$A$3:$A$351, 0), MATCH(Selection_Hide2!H$5, 'Full set Core Client Indicator'!$A$3:$AB$3, 0))), \"\")","v":""},{"$f":"IF(H213<>\"\", IF(INDEX('Full set Core Client Indicator'!$A$3:$AB$351, MATCH(Selection_Hide2!$A213, 'Full set Core Client Indicator'!$A$3:$A$351, 0), MATCH(Selection_Hide2!I$5, 'Full set Core Client Indicator'!$A$3:$AB$3, 0))=\"\", \"\",  INDEX('Full set Core Client Indicator'!$A$3:$AB$351, MATCH(Selection_Hide2!$A213, 'Full set Core Client Indicator'!$A$3:$A$351, 0), MATCH(Selection_Hide2!I$5, 'Full set Core Client Indicator'!$A$3:$AB$3, 0))), \"\")","v":""},{"$f":"IF(I213<>\"\", IF(INDEX('Full set Core Client Indicator'!$A$3:$AB$351, MATCH(Selection_Hide2!$A213, 'Full set Core Client Indicator'!$A$3:$A$351, 0), MATCH(Selection_Hide2!J$5, 'Full set Core Client Indicator'!$A$3:$AB$3, 0))=\"\", \"\",  INDEX('Full set Core Client Indicator'!$A$3:$AB$351, MATCH(Selection_Hide2!$A213, 'Full set Core Client Indicator'!$A$3:$A$351, 0), MATCH(Selection_Hide2!J$5, 'Full set Core Client Indicator'!$A$3:$AB$3, 0))), \"\")","v":""},{"$f":"IF(J213<>\"\", IF(INDEX('Full set Core Client Indicator'!$A$3:$AB$351, MATCH(Selection_Hide2!$A213, 'Full set Core Client Indicator'!$A$3:$A$351, 0), MATCH(Selection_Hide2!K$5, 'Full set Core Client Indicator'!$A$3:$AB$3, 0))=\"\", \"\",  INDEX('Full set Core Client Indicator'!$A$3:$AB$351, MATCH(Selection_Hide2!$A213, 'Full set Core Client Indicator'!$A$3:$A$351, 0), MATCH(Selection_Hide2!K$5, 'Full set Core Client Indicator'!$A$3:$AB$3, 0))), \"\")","v":""},{"$f":"IF(K213<>\"\", IF(INDEX('Full set Core Client Indicator'!$A$3:$AB$351, MATCH(Selection_Hide2!$A213, 'Full set Core Client Indicator'!$A$3:$A$351, 0), MATCH(Selection_Hide2!L$5, 'Full set Core Client Indicator'!$A$3:$AB$3, 0))=\"\", \"\",  INDEX('Full set Core Client Indicator'!$A$3:$AB$351, MATCH(Selection_Hide2!$A213, 'Full set Core Client Indicator'!$A$3:$A$351, 0), MATCH(Selection_Hide2!L$5, 'Full set Core Client Indicator'!$A$3:$AB$3, 0))), \"\")","v":""},{"$f":"IF(L213<>\"\", IF(INDEX('Full set Core Client Indicator'!$A$3:$AB$351, MATCH(Selection_Hide2!$A213, 'Full set Core Client Indicator'!$A$3:$A$351, 0), MATCH(Selection_Hide2!M$5, 'Full set Core Client Indicator'!$A$3:$AB$3, 0))=\"\", \"\",  INDEX('Full set Core Client Indicator'!$A$3:$AB$351, MATCH(Selection_Hide2!$A213, 'Full set Core Client Indicator'!$A$3:$A$351, 0), MATCH(Selection_Hide2!M$5, 'Full set Core Client Indicator'!$A$3:$AB$3, 0))), \"\")","v":""},{"$f":"IF(M213<>\"\", IF(INDEX('Full set Core Client Indicator'!$A$3:$AB$351, MATCH(Selection_Hide2!$A213, 'Full set Core Client Indicator'!$A$3:$A$351, 0), MATCH(Selection_Hide2!N$5, 'Full set Core Client Indicator'!$A$3:$AB$3, 0))=\"\", \"\",  INDEX('Full set Core Client Indicator'!$A$3:$AB$351, MATCH(Selection_Hide2!$A213, 'Full set Core Client Indicator'!$A$3:$A$351, 0), MATCH(Selection_Hide2!N$5, 'Full set Core Client Indicator'!$A$3:$AB$3, 0))), \"\")","v":""},{"$f":"IF(N213<>\"\", IF(INDEX('Full set Core Client Indicator'!$A$3:$AB$351, MATCH(Selection_Hide2!$A213, 'Full set Core Client Indicator'!$A$3:$A$351, 0), MATCH(Selection_Hide2!O$5, 'Full set Core Client Indicator'!$A$3:$AB$3, 0))=\"\", \"\",  INDEX('Full set Core Client Indicator'!$A$3:$AB$351, MATCH(Selection_Hide2!$A213, 'Full set Core Client Indicator'!$A$3:$A$351, 0), MATCH(Selection_Hide2!O$5, 'Full set Core Client Indicator'!$A$3:$AB$3, 0))), \"\")","v":""},{"$f":"IF(O213<>\"\", IF(INDEX('Full set Core Client Indicator'!$A$3:$AB$351, MATCH(Selection_Hide2!$A213, 'Full set Core Client Indicator'!$A$3:$A$351, 0), MATCH(Selection_Hide2!P$5, 'Full set Core Client Indicator'!$A$3:$AB$3, 0))=\"\", \"\",  INDEX('Full set Core Client Indicator'!$A$3:$AB$351, MATCH(Selection_Hide2!$A213, 'Full set Core Client Indicator'!$A$3:$A$351, 0), MATCH(Selection_Hide2!P$5, 'Full set Core Client Indicator'!$A$3:$AB$3, 0))), \"\")","v":""},{"$f":"IF(P213<>\"\", IF(INDEX('Full set Core Client Indicator'!$A$3:$AB$351, MATCH(Selection_Hide2!$A213, 'Full set Core Client Indicator'!$A$3:$A$351, 0), MATCH(Selection_Hide2!Q$5, 'Full set Core Client Indicator'!$A$3:$AB$3, 0))=\"\", \"\",  INDEX('Full set Core Client Indicator'!$A$3:$AB$351, MATCH(Selection_Hide2!$A213, 'Full set Core Client Indicator'!$A$3:$A$351, 0), MATCH(Selection_Hide2!Q$5, 'Full set Core Client Indicator'!$A$3:$AB$3, 0))), \"\")","v":""},{"$f":"IF(Q213<>\"\", IF(INDEX('Full set Core Client Indicator'!$A$3:$AB$351, MATCH(Selection_Hide2!$A213, 'Full set Core Client Indicator'!$A$3:$A$351, 0), MATCH(Selection_Hide2!R$5, 'Full set Core Client Indicator'!$A$3:$AB$3, 0))=\"\", \"\",  INDEX('Full set Core Client Indicator'!$A$3:$AB$351, MATCH(Selection_Hide2!$A213, 'Full set Core Client Indicator'!$A$3:$A$351, 0), MATCH(Selection_Hide2!R$5, 'Full set Core Client Indicator'!$A$3:$AB$3, 0))), \"\")","v":""},{"$f":"IF(R213<>\"\", IF(INDEX('Full set Core Client Indicator'!$A$3:$AB$351, MATCH(Selection_Hide2!$A213, 'Full set Core Client Indicator'!$A$3:$A$351, 0), MATCH(Selection_Hide2!S$5, 'Full set Core Client Indicator'!$A$3:$AB$3, 0))=\"\", \"\",  INDEX('Full set Core Client Indicator'!$A$3:$AB$351, MATCH(Selection_Hide2!$A213, 'Full set Core Client Indicator'!$A$3:$A$351, 0), MATCH(Selection_Hide2!S$5, 'Full set Core Client Indicator'!$A$3:$AB$3, 0))), \"\")","v":""},{"$f":"IF(S213<>\"\", IF(INDEX('Full set Core Client Indicator'!$A$3:$AB$351, MATCH(Selection_Hide2!$A213, 'Full set Core Client Indicator'!$A$3:$A$351, 0), MATCH(Selection_Hide2!T$5, 'Full set Core Client Indicator'!$A$3:$AB$3, 0))=\"\", \"\",  INDEX('Full set Core Client Indicator'!$A$3:$AB$351, MATCH(Selection_Hide2!$A213, 'Full set Core Client Indicator'!$A$3:$A$351, 0), MATCH(Selection_Hide2!T$5, 'Full set Core Client Indicator'!$A$3:$AB$3, 0))), \"\")","v":""},{"$f":"IF(T213<>\"\", IF(INDEX('Full set Core Client Indicator'!$A$3:$AB$351, MATCH(Selection_Hide2!$A213, 'Full set Core Client Indicator'!$A$3:$A$351, 0), MATCH(Selection_Hide2!U$5, 'Full set Core Client Indicator'!$A$3:$AB$3, 0))=\"\", \"\",  INDEX('Full set Core Client Indicator'!$A$3:$AB$351, MATCH(Selection_Hide2!$A213, 'Full set Core Client Indicator'!$A$3:$A$351, 0), MATCH(Selection_Hide2!U$5, 'Full set Core Client Indicator'!$A$3:$AB$3, 0))), \"\")","v":""},{"$f":"IF(U213<>\"\", IF(INDEX('Full set Core Client Indicator'!$A$3:$AB$351, MATCH(Selection_Hide2!$A213, 'Full set Core Client Indicator'!$A$3:$A$351, 0), MATCH(Selection_Hide2!V$5, 'Full set Core Client Indicator'!$A$3:$AB$3, 0))=\"\", \"\",  INDEX('Full set Core Client Indicator'!$A$3:$AB$351, MATCH(Selection_Hide2!$A213, 'Full set Core Client Indicator'!$A$3:$A$351, 0), MATCH(Selection_Hide2!V$5, 'Full set Core Client Indicator'!$A$3:$AB$3, 0))), \"\")","v":""},{"$f":"IF(V213<>\"\", IF(INDEX('Full set Core Client Indicator'!$A$3:$AB$351, MATCH(Selection_Hide2!$A213, 'Full set Core Client Indicator'!$A$3:$A$351, 0), MATCH(Selection_Hide2!W$5, 'Full set Core Client Indicator'!$A$3:$AB$3, 0))=\"\", \"\",  INDEX('Full set Core Client Indicator'!$A$3:$AB$351, MATCH(Selection_Hide2!$A213, 'Full set Core Client Indicator'!$A$3:$A$351, 0), MATCH(Selection_Hide2!W$5, 'Full set Core Client Indicator'!$A$3:$AB$3, 0))), \"\")","v":""},{"$f":"IF(W213<>\"\", IF(INDEX('Full set Core Client Indicator'!$A$3:$AB$351, MATCH(Selection_Hide2!$A213, 'Full set Core Client Indicator'!$A$3:$A$351, 0), MATCH(Selection_Hide2!X$5, 'Full set Core Client Indicator'!$A$3:$AB$3, 0))=\"\", \"\",  INDEX('Full set Core Client Indicator'!$A$3:$AB$351, MATCH(Selection_Hide2!$A213, 'Full set Core Client Indicator'!$A$3:$A$351, 0), MATCH(Selection_Hide2!X$5, 'Full set Core Client Indicator'!$A$3:$AB$3, 0))), \"\")","v":""},{"$f":"IF(X213<>\"\", IF(INDEX('Full set Core Client Indicator'!$A$3:$AB$351, MATCH(Selection_Hide2!$A213, 'Full set Core Client Indicator'!$A$3:$A$351, 0), MATCH(Selection_Hide2!Y$5, 'Full set Core Client Indicator'!$A$3:$AB$3, 0))=\"\", \"\",  INDEX('Full set Core Client Indicator'!$A$3:$AB$351, MATCH(Selection_Hide2!$A213, 'Full set Core Client Indicator'!$A$3:$A$351, 0), MATCH(Selection_Hide2!Y$5, 'Full set Core Client Indicator'!$A$3:$AB$3, 0))), \"\")","v":""},{"$f":"IF(Y213<>\"\", IF(INDEX('Full set Core Client Indicator'!$A$3:$AB$351, MATCH(Selection_Hide2!$A213, 'Full set Core Client Indicator'!$A$3:$A$351, 0), MATCH(Selection_Hide2!Z$5, 'Full set Core Client Indicator'!$A$3:$AB$3, 0))=\"\", \"\",  INDEX('Full set Core Client Indicator'!$A$3:$AB$351, MATCH(Selection_Hide2!$A213, 'Full set Core Client Indicator'!$A$3:$A$351, 0), MATCH(Selection_Hide2!Z$5, 'Full set Core Client Indicator'!$A$3:$AB$3, 0))), \"\")","v":""},{"$f":"IF(Z213<>\"\", IF(INDEX('Full set Core Client Indicator'!$A$3:$AB$351, MATCH(Selection_Hide2!$A213, 'Full set Core Client Indicator'!$A$3:$A$351, 0), MATCH(Selection_Hide2!AA$5, 'Full set Core Client Indicator'!$A$3:$AB$3, 0))=\"\", \"\",  INDEX('Full set Core Client Indicator'!$A$3:$AB$351, MATCH(Selection_Hide2!$A213, 'Full set Core Client Indicator'!$A$3:$A$351, 0), MATCH(Selection_Hide2!AA$5, 'Full set Core Client Indicator'!$A$3:$AB$3, 0))), \"\")","v":""},{"$f":"IF(AA213<>\"\", IF(INDEX('Full set Core Client Indicator'!$A$3:$AB$351, MATCH(Selection_Hide2!$A213, 'Full set Core Client Indicator'!$A$3:$A$351, 0), MATCH(Selection_Hide2!AB$5, 'Full set Core Client Indicator'!$A$3:$AB$3, 0))=\"\", \"\",  INDEX('Full set Core Client Indicator'!$A$3:$AB$351, MATCH(Selection_Hide2!$A213, 'Full set Core Client Indicator'!$A$3:$A$351, 0), MATCH(Selection_Hide2!AB$5, 'Full set Core Client Indicator'!$A$3:$AB$3, 0))), \"\")","v":""}]
[{"$f":"IF(AND(Selection_Hide1!C212<>0, Selection_Hide1!C212<>\"Grand Total\"), Selection_Hide1!C212, \"\")","v":""},{"$f":"IF(A214<>\"\", IF(INDEX('Full set Core Client Indicator'!$A$3:$AB$351, MATCH(Selection_Hide2!$A214, 'Full set Core Client Indicator'!$A$3:$A$351, 0), MATCH(Selection_Hide2!B$5, 'Full set Core Client Indicator'!$A$3:$AB$3, 0))=\"\", \"\",  INDEX('Full set Core Client Indicator'!$A$3:$AB$351, MATCH(Selection_Hide2!$A214, 'Full set Core Client Indicator'!$A$3:$A$351, 0), MATCH(Selection_Hide2!B$5, 'Full set Core Client Indicator'!$A$3:$AB$3, 0))), \"\")","v":""},{"$f":"IF(B214<>\"\", IF(INDEX('Full set Core Client Indicator'!$A$3:$AB$351, MATCH(Selection_Hide2!$A214, 'Full set Core Client Indicator'!$A$3:$A$351, 0), MATCH(Selection_Hide2!C$5, 'Full set Core Client Indicator'!$A$3:$AB$3, 0))=\"\", \"\",  INDEX('Full set Core Client Indicator'!$A$3:$AB$351, MATCH(Selection_Hide2!$A214, 'Full set Core Client Indicator'!$A$3:$A$351, 0), MATCH(Selection_Hide2!C$5, 'Full set Core Client Indicator'!$A$3:$AB$3, 0))), \"\")","v":""},{"$f":"IF(C214<>\"\", IF(INDEX('Full set Core Client Indicator'!$A$3:$AB$351, MATCH(Selection_Hide2!$A214, 'Full set Core Client Indicator'!$A$3:$A$351, 0), MATCH(Selection_Hide2!D$5, 'Full set Core Client Indicator'!$A$3:$AB$3, 0))=\"\", \"\",  INDEX('Full set Core Client Indicator'!$A$3:$AB$351, MATCH(Selection_Hide2!$A214, 'Full set Core Client Indicator'!$A$3:$A$351, 0), MATCH(Selection_Hide2!D$5, 'Full set Core Client Indicator'!$A$3:$AB$3, 0))), \"\")","v":""},{"$f":"IF(D214<>\"\", IF(INDEX('Full set Core Client Indicator'!$A$3:$AB$351, MATCH(Selection_Hide2!$A214, 'Full set Core Client Indicator'!$A$3:$A$351, 0), MATCH(Selection_Hide2!E$5, 'Full set Core Client Indicator'!$A$3:$AB$3, 0))=\"\", \"\",  INDEX('Full set Core Client Indicator'!$A$3:$AB$351, MATCH(Selection_Hide2!$A214, 'Full set Core Client Indicator'!$A$3:$A$351, 0), MATCH(Selection_Hide2!E$5, 'Full set Core Client Indicator'!$A$3:$AB$3, 0))), \"\")","v":""},{"$f":"IF(E214<>\"\", IF(INDEX('Full set Core Client Indicator'!$A$3:$AB$351, MATCH(Selection_Hide2!$A214, 'Full set Core Client Indicator'!$A$3:$A$351, 0), MATCH(Selection_Hide2!F$5, 'Full set Core Client Indicator'!$A$3:$AB$3, 0))=\"\", \"\",  INDEX('Full set Core Client Indicator'!$A$3:$AB$351, MATCH(Selection_Hide2!$A214, 'Full set Core Client Indicator'!$A$3:$A$351, 0), MATCH(Selection_Hide2!F$5, 'Full set Core Client Indicator'!$A$3:$AB$3, 0))), \"\")","v":""},{"$f":"IF(F214<>\"\", IF(INDEX('Full set Core Client Indicator'!$A$3:$AB$351, MATCH(Selection_Hide2!$A214, 'Full set Core Client Indicator'!$A$3:$A$351, 0), MATCH(Selection_Hide2!G$5, 'Full set Core Client Indicator'!$A$3:$AB$3, 0))=\"\", \"\",  INDEX('Full set Core Client Indicator'!$A$3:$AB$351, MATCH(Selection_Hide2!$A214, 'Full set Core Client Indicator'!$A$3:$A$351, 0), MATCH(Selection_Hide2!G$5, 'Full set Core Client Indicator'!$A$3:$AB$3, 0))), \"\")","v":""},{"$f":"IF(G214<>\"\", IF(INDEX('Full set Core Client Indicator'!$A$3:$AB$351, MATCH(Selection_Hide2!$A214, 'Full set Core Client Indicator'!$A$3:$A$351, 0), MATCH(Selection_Hide2!H$5, 'Full set Core Client Indicator'!$A$3:$AB$3, 0))=\"\", \"\",  INDEX('Full set Core Client Indicator'!$A$3:$AB$351, MATCH(Selection_Hide2!$A214, 'Full set Core Client Indicator'!$A$3:$A$351, 0), MATCH(Selection_Hide2!H$5, 'Full set Core Client Indicator'!$A$3:$AB$3, 0))), \"\")","v":""},{"$f":"IF(H214<>\"\", IF(INDEX('Full set Core Client Indicator'!$A$3:$AB$351, MATCH(Selection_Hide2!$A214, 'Full set Core Client Indicator'!$A$3:$A$351, 0), MATCH(Selection_Hide2!I$5, 'Full set Core Client Indicator'!$A$3:$AB$3, 0))=\"\", \"\",  INDEX('Full set Core Client Indicator'!$A$3:$AB$351, MATCH(Selection_Hide2!$A214, 'Full set Core Client Indicator'!$A$3:$A$351, 0), MATCH(Selection_Hide2!I$5, 'Full set Core Client Indicator'!$A$3:$AB$3, 0))), \"\")","v":""},{"$f":"IF(I214<>\"\", IF(INDEX('Full set Core Client Indicator'!$A$3:$AB$351, MATCH(Selection_Hide2!$A214, 'Full set Core Client Indicator'!$A$3:$A$351, 0), MATCH(Selection_Hide2!J$5, 'Full set Core Client Indicator'!$A$3:$AB$3, 0))=\"\", \"\",  INDEX('Full set Core Client Indicator'!$A$3:$AB$351, MATCH(Selection_Hide2!$A214, 'Full set Core Client Indicator'!$A$3:$A$351, 0), MATCH(Selection_Hide2!J$5, 'Full set Core Client Indicator'!$A$3:$AB$3, 0))), \"\")","v":""},{"$f":"IF(J214<>\"\", IF(INDEX('Full set Core Client Indicator'!$A$3:$AB$351, MATCH(Selection_Hide2!$A214, 'Full set Core Client Indicator'!$A$3:$A$351, 0), MATCH(Selection_Hide2!K$5, 'Full set Core Client Indicator'!$A$3:$AB$3, 0))=\"\", \"\",  INDEX('Full set Core Client Indicator'!$A$3:$AB$351, MATCH(Selection_Hide2!$A214, 'Full set Core Client Indicator'!$A$3:$A$351, 0), MATCH(Selection_Hide2!K$5, 'Full set Core Client Indicator'!$A$3:$AB$3, 0))), \"\")","v":""},{"$f":"IF(K214<>\"\", IF(INDEX('Full set Core Client Indicator'!$A$3:$AB$351, MATCH(Selection_Hide2!$A214, 'Full set Core Client Indicator'!$A$3:$A$351, 0), MATCH(Selection_Hide2!L$5, 'Full set Core Client Indicator'!$A$3:$AB$3, 0))=\"\", \"\",  INDEX('Full set Core Client Indicator'!$A$3:$AB$351, MATCH(Selection_Hide2!$A214, 'Full set Core Client Indicator'!$A$3:$A$351, 0), MATCH(Selection_Hide2!L$5, 'Full set Core Client Indicator'!$A$3:$AB$3, 0))), \"\")","v":""},{"$f":"IF(L214<>\"\", IF(INDEX('Full set Core Client Indicator'!$A$3:$AB$351, MATCH(Selection_Hide2!$A214, 'Full set Core Client Indicator'!$A$3:$A$351, 0), MATCH(Selection_Hide2!M$5, 'Full set Core Client Indicator'!$A$3:$AB$3, 0))=\"\", \"\",  INDEX('Full set Core Client Indicator'!$A$3:$AB$351, MATCH(Selection_Hide2!$A214, 'Full set Core Client Indicator'!$A$3:$A$351, 0), MATCH(Selection_Hide2!M$5, 'Full set Core Client Indicator'!$A$3:$AB$3, 0))), \"\")","v":""},{"$f":"IF(M214<>\"\", IF(INDEX('Full set Core Client Indicator'!$A$3:$AB$351, MATCH(Selection_Hide2!$A214, 'Full set Core Client Indicator'!$A$3:$A$351, 0), MATCH(Selection_Hide2!N$5, 'Full set Core Client Indicator'!$A$3:$AB$3, 0))=\"\", \"\",  INDEX('Full set Core Client Indicator'!$A$3:$AB$351, MATCH(Selection_Hide2!$A214, 'Full set Core Client Indicator'!$A$3:$A$351, 0), MATCH(Selection_Hide2!N$5, 'Full set Core Client Indicator'!$A$3:$AB$3, 0))), \"\")","v":""},{"$f":"IF(N214<>\"\", IF(INDEX('Full set Core Client Indicator'!$A$3:$AB$351, MATCH(Selection_Hide2!$A214, 'Full set Core Client Indicator'!$A$3:$A$351, 0), MATCH(Selection_Hide2!O$5, 'Full set Core Client Indicator'!$A$3:$AB$3, 0))=\"\", \"\",  INDEX('Full set Core Client Indicator'!$A$3:$AB$351, MATCH(Selection_Hide2!$A214, 'Full set Core Client Indicator'!$A$3:$A$351, 0), MATCH(Selection_Hide2!O$5, 'Full set Core Client Indicator'!$A$3:$AB$3, 0))), \"\")","v":""},{"$f":"IF(O214<>\"\", IF(INDEX('Full set Core Client Indicator'!$A$3:$AB$351, MATCH(Selection_Hide2!$A214, 'Full set Core Client Indicator'!$A$3:$A$351, 0), MATCH(Selection_Hide2!P$5, 'Full set Core Client Indicator'!$A$3:$AB$3, 0))=\"\", \"\",  INDEX('Full set Core Client Indicator'!$A$3:$AB$351, MATCH(Selection_Hide2!$A214, 'Full set Core Client Indicator'!$A$3:$A$351, 0), MATCH(Selection_Hide2!P$5, 'Full set Core Client Indicator'!$A$3:$AB$3, 0))), \"\")","v":""},{"$f":"IF(P214<>\"\", IF(INDEX('Full set Core Client Indicator'!$A$3:$AB$351, MATCH(Selection_Hide2!$A214, 'Full set Core Client Indicator'!$A$3:$A$351, 0), MATCH(Selection_Hide2!Q$5, 'Full set Core Client Indicator'!$A$3:$AB$3, 0))=\"\", \"\",  INDEX('Full set Core Client Indicator'!$A$3:$AB$351, MATCH(Selection_Hide2!$A214, 'Full set Core Client Indicator'!$A$3:$A$351, 0), MATCH(Selection_Hide2!Q$5, 'Full set Core Client Indicator'!$A$3:$AB$3, 0))), \"\")","v":""},{"$f":"IF(Q214<>\"\", IF(INDEX('Full set Core Client Indicator'!$A$3:$AB$351, MATCH(Selection_Hide2!$A214, 'Full set Core Client Indicator'!$A$3:$A$351, 0), MATCH(Selection_Hide2!R$5, 'Full set Core Client Indicator'!$A$3:$AB$3, 0))=\"\", \"\",  INDEX('Full set Core Client Indicator'!$A$3:$AB$351, MATCH(Selection_Hide2!$A214, 'Full set Core Client Indicator'!$A$3:$A$351, 0), MATCH(Selection_Hide2!R$5, 'Full set Core Client Indicator'!$A$3:$AB$3, 0))), \"\")","v":""},{"$f":"IF(R214<>\"\", IF(INDEX('Full set Core Client Indicator'!$A$3:$AB$351, MATCH(Selection_Hide2!$A214, 'Full set Core Client Indicator'!$A$3:$A$351, 0), MATCH(Selection_Hide2!S$5, 'Full set Core Client Indicator'!$A$3:$AB$3, 0))=\"\", \"\",  INDEX('Full set Core Client Indicator'!$A$3:$AB$351, MATCH(Selection_Hide2!$A214, 'Full set Core Client Indicator'!$A$3:$A$351, 0), MATCH(Selection_Hide2!S$5, 'Full set Core Client Indicator'!$A$3:$AB$3, 0))), \"\")","v":""},{"$f":"IF(S214<>\"\", IF(INDEX('Full set Core Client Indicator'!$A$3:$AB$351, MATCH(Selection_Hide2!$A214, 'Full set Core Client Indicator'!$A$3:$A$351, 0), MATCH(Selection_Hide2!T$5, 'Full set Core Client Indicator'!$A$3:$AB$3, 0))=\"\", \"\",  INDEX('Full set Core Client Indicator'!$A$3:$AB$351, MATCH(Selection_Hide2!$A214, 'Full set Core Client Indicator'!$A$3:$A$351, 0), MATCH(Selection_Hide2!T$5, 'Full set Core Client Indicator'!$A$3:$AB$3, 0))), \"\")","v":""},{"$f":"IF(T214<>\"\", IF(INDEX('Full set Core Client Indicator'!$A$3:$AB$351, MATCH(Selection_Hide2!$A214, 'Full set Core Client Indicator'!$A$3:$A$351, 0), MATCH(Selection_Hide2!U$5, 'Full set Core Client Indicator'!$A$3:$AB$3, 0))=\"\", \"\",  INDEX('Full set Core Client Indicator'!$A$3:$AB$351, MATCH(Selection_Hide2!$A214, 'Full set Core Client Indicator'!$A$3:$A$351, 0), MATCH(Selection_Hide2!U$5, 'Full set Core Client Indicator'!$A$3:$AB$3, 0))), \"\")","v":""},{"$f":"IF(U214<>\"\", IF(INDEX('Full set Core Client Indicator'!$A$3:$AB$351, MATCH(Selection_Hide2!$A214, 'Full set Core Client Indicator'!$A$3:$A$351, 0), MATCH(Selection_Hide2!V$5, 'Full set Core Client Indicator'!$A$3:$AB$3, 0))=\"\", \"\",  INDEX('Full set Core Client Indicator'!$A$3:$AB$351, MATCH(Selection_Hide2!$A214, 'Full set Core Client Indicator'!$A$3:$A$351, 0), MATCH(Selection_Hide2!V$5, 'Full set Core Client Indicator'!$A$3:$AB$3, 0))), \"\")","v":""},{"$f":"IF(V214<>\"\", IF(INDEX('Full set Core Client Indicator'!$A$3:$AB$351, MATCH(Selection_Hide2!$A214, 'Full set Core Client Indicator'!$A$3:$A$351, 0), MATCH(Selection_Hide2!W$5, 'Full set Core Client Indicator'!$A$3:$AB$3, 0))=\"\", \"\",  INDEX('Full set Core Client Indicator'!$A$3:$AB$351, MATCH(Selection_Hide2!$A214, 'Full set Core Client Indicator'!$A$3:$A$351, 0), MATCH(Selection_Hide2!W$5, 'Full set Core Client Indicator'!$A$3:$AB$3, 0))), \"\")","v":""},{"$f":"IF(W214<>\"\", IF(INDEX('Full set Core Client Indicator'!$A$3:$AB$351, MATCH(Selection_Hide2!$A214, 'Full set Core Client Indicator'!$A$3:$A$351, 0), MATCH(Selection_Hide2!X$5, 'Full set Core Client Indicator'!$A$3:$AB$3, 0))=\"\", \"\",  INDEX('Full set Core Client Indicator'!$A$3:$AB$351, MATCH(Selection_Hide2!$A214, 'Full set Core Client Indicator'!$A$3:$A$351, 0), MATCH(Selection_Hide2!X$5, 'Full set Core Client Indicator'!$A$3:$AB$3, 0))), \"\")","v":""},{"$f":"IF(X214<>\"\", IF(INDEX('Full set Core Client Indicator'!$A$3:$AB$351, MATCH(Selection_Hide2!$A214, 'Full set Core Client Indicator'!$A$3:$A$351, 0), MATCH(Selection_Hide2!Y$5, 'Full set Core Client Indicator'!$A$3:$AB$3, 0))=\"\", \"\",  INDEX('Full set Core Client Indicator'!$A$3:$AB$351, MATCH(Selection_Hide2!$A214, 'Full set Core Client Indicator'!$A$3:$A$351, 0), MATCH(Selection_Hide2!Y$5, 'Full set Core Client Indicator'!$A$3:$AB$3, 0))), \"\")","v":""},{"$f":"IF(Y214<>\"\", IF(INDEX('Full set Core Client Indicator'!$A$3:$AB$351, MATCH(Selection_Hide2!$A214, 'Full set Core Client Indicator'!$A$3:$A$351, 0), MATCH(Selection_Hide2!Z$5, 'Full set Core Client Indicator'!$A$3:$AB$3, 0))=\"\", \"\",  INDEX('Full set Core Client Indicator'!$A$3:$AB$351, MATCH(Selection_Hide2!$A214, 'Full set Core Client Indicator'!$A$3:$A$351, 0), MATCH(Selection_Hide2!Z$5, 'Full set Core Client Indicator'!$A$3:$AB$3, 0))), \"\")","v":""},{"$f":"IF(Z214<>\"\", IF(INDEX('Full set Core Client Indicator'!$A$3:$AB$351, MATCH(Selection_Hide2!$A214, 'Full set Core Client Indicator'!$A$3:$A$351, 0), MATCH(Selection_Hide2!AA$5, 'Full set Core Client Indicator'!$A$3:$AB$3, 0))=\"\", \"\",  INDEX('Full set Core Client Indicator'!$A$3:$AB$351, MATCH(Selection_Hide2!$A214, 'Full set Core Client Indicator'!$A$3:$A$351, 0), MATCH(Selection_Hide2!AA$5, 'Full set Core Client Indicator'!$A$3:$AB$3, 0))), \"\")","v":""},{"$f":"IF(AA214<>\"\", IF(INDEX('Full set Core Client Indicator'!$A$3:$AB$351, MATCH(Selection_Hide2!$A214, 'Full set Core Client Indicator'!$A$3:$A$351, 0), MATCH(Selection_Hide2!AB$5, 'Full set Core Client Indicator'!$A$3:$AB$3, 0))=\"\", \"\",  INDEX('Full set Core Client Indicator'!$A$3:$AB$351, MATCH(Selection_Hide2!$A214, 'Full set Core Client Indicator'!$A$3:$A$351, 0), MATCH(Selection_Hide2!AB$5, 'Full set Core Client Indicator'!$A$3:$AB$3, 0))), \"\")","v":""}]
[{"$f":"IF(AND(Selection_Hide1!C213<>0, Selection_Hide1!C213<>\"Grand Total\"), Selection_Hide1!C213, \"\")","v":""},{"$f":"IF(A215<>\"\", IF(INDEX('Full set Core Client Indicator'!$A$3:$AB$351, MATCH(Selection_Hide2!$A215, 'Full set Core Client Indicator'!$A$3:$A$351, 0), MATCH(Selection_Hide2!B$5, 'Full set Core Client Indicator'!$A$3:$AB$3, 0))=\"\", \"\",  INDEX('Full set Core Client Indicator'!$A$3:$AB$351, MATCH(Selection_Hide2!$A215, 'Full set Core Client Indicator'!$A$3:$A$351, 0), MATCH(Selection_Hide2!B$5, 'Full set Core Client Indicator'!$A$3:$AB$3, 0))), \"\")","v":""},{"$f":"IF(B215<>\"\", IF(INDEX('Full set Core Client Indicator'!$A$3:$AB$351, MATCH(Selection_Hide2!$A215, 'Full set Core Client Indicator'!$A$3:$A$351, 0), MATCH(Selection_Hide2!C$5, 'Full set Core Client Indicator'!$A$3:$AB$3, 0))=\"\", \"\",  INDEX('Full set Core Client Indicator'!$A$3:$AB$351, MATCH(Selection_Hide2!$A215, 'Full set Core Client Indicator'!$A$3:$A$351, 0), MATCH(Selection_Hide2!C$5, 'Full set Core Client Indicator'!$A$3:$AB$3, 0))), \"\")","v":""},{"$f":"IF(C215<>\"\", IF(INDEX('Full set Core Client Indicator'!$A$3:$AB$351, MATCH(Selection_Hide2!$A215, 'Full set Core Client Indicator'!$A$3:$A$351, 0), MATCH(Selection_Hide2!D$5, 'Full set Core Client Indicator'!$A$3:$AB$3, 0))=\"\", \"\",  INDEX('Full set Core Client Indicator'!$A$3:$AB$351, MATCH(Selection_Hide2!$A215, 'Full set Core Client Indicator'!$A$3:$A$351, 0), MATCH(Selection_Hide2!D$5, 'Full set Core Client Indicator'!$A$3:$AB$3, 0))), \"\")","v":""},{"$f":"IF(D215<>\"\", IF(INDEX('Full set Core Client Indicator'!$A$3:$AB$351, MATCH(Selection_Hide2!$A215, 'Full set Core Client Indicator'!$A$3:$A$351, 0), MATCH(Selection_Hide2!E$5, 'Full set Core Client Indicator'!$A$3:$AB$3, 0))=\"\", \"\",  INDEX('Full set Core Client Indicator'!$A$3:$AB$351, MATCH(Selection_Hide2!$A215, 'Full set Core Client Indicator'!$A$3:$A$351, 0), MATCH(Selection_Hide2!E$5, 'Full set Core Client Indicator'!$A$3:$AB$3, 0))), \"\")","v":""},{"$f":"IF(E215<>\"\", IF(INDEX('Full set Core Client Indicator'!$A$3:$AB$351, MATCH(Selection_Hide2!$A215, 'Full set Core Client Indicator'!$A$3:$A$351, 0), MATCH(Selection_Hide2!F$5, 'Full set Core Client Indicator'!$A$3:$AB$3, 0))=\"\", \"\",  INDEX('Full set Core Client Indicator'!$A$3:$AB$351, MATCH(Selection_Hide2!$A215, 'Full set Core Client Indicator'!$A$3:$A$351, 0), MATCH(Selection_Hide2!F$5, 'Full set Core Client Indicator'!$A$3:$AB$3, 0))), \"\")","v":""},{"$f":"IF(F215<>\"\", IF(INDEX('Full set Core Client Indicator'!$A$3:$AB$351, MATCH(Selection_Hide2!$A215, 'Full set Core Client Indicator'!$A$3:$A$351, 0), MATCH(Selection_Hide2!G$5, 'Full set Core Client Indicator'!$A$3:$AB$3, 0))=\"\", \"\",  INDEX('Full set Core Client Indicator'!$A$3:$AB$351, MATCH(Selection_Hide2!$A215, 'Full set Core Client Indicator'!$A$3:$A$351, 0), MATCH(Selection_Hide2!G$5, 'Full set Core Client Indicator'!$A$3:$AB$3, 0))), \"\")","v":""},{"$f":"IF(G215<>\"\", IF(INDEX('Full set Core Client Indicator'!$A$3:$AB$351, MATCH(Selection_Hide2!$A215, 'Full set Core Client Indicator'!$A$3:$A$351, 0), MATCH(Selection_Hide2!H$5, 'Full set Core Client Indicator'!$A$3:$AB$3, 0))=\"\", \"\",  INDEX('Full set Core Client Indicator'!$A$3:$AB$351, MATCH(Selection_Hide2!$A215, 'Full set Core Client Indicator'!$A$3:$A$351, 0), MATCH(Selection_Hide2!H$5, 'Full set Core Client Indicator'!$A$3:$AB$3, 0))), \"\")","v":""},{"$f":"IF(H215<>\"\", IF(INDEX('Full set Core Client Indicator'!$A$3:$AB$351, MATCH(Selection_Hide2!$A215, 'Full set Core Client Indicator'!$A$3:$A$351, 0), MATCH(Selection_Hide2!I$5, 'Full set Core Client Indicator'!$A$3:$AB$3, 0))=\"\", \"\",  INDEX('Full set Core Client Indicator'!$A$3:$AB$351, MATCH(Selection_Hide2!$A215, 'Full set Core Client Indicator'!$A$3:$A$351, 0), MATCH(Selection_Hide2!I$5, 'Full set Core Client Indicator'!$A$3:$AB$3, 0))), \"\")","v":""},{"$f":"IF(I215<>\"\", IF(INDEX('Full set Core Client Indicator'!$A$3:$AB$351, MATCH(Selection_Hide2!$A215, 'Full set Core Client Indicator'!$A$3:$A$351, 0), MATCH(Selection_Hide2!J$5, 'Full set Core Client Indicator'!$A$3:$AB$3, 0))=\"\", \"\",  INDEX('Full set Core Client Indicator'!$A$3:$AB$351, MATCH(Selection_Hide2!$A215, 'Full set Core Client Indicator'!$A$3:$A$351, 0), MATCH(Selection_Hide2!J$5, 'Full set Core Client Indicator'!$A$3:$AB$3, 0))), \"\")","v":""},{"$f":"IF(J215<>\"\", IF(INDEX('Full set Core Client Indicator'!$A$3:$AB$351, MATCH(Selection_Hide2!$A215, 'Full set Core Client Indicator'!$A$3:$A$351, 0), MATCH(Selection_Hide2!K$5, 'Full set Core Client Indicator'!$A$3:$AB$3, 0))=\"\", \"\",  INDEX('Full set Core Client Indicator'!$A$3:$AB$351, MATCH(Selection_Hide2!$A215, 'Full set Core Client Indicator'!$A$3:$A$351, 0), MATCH(Selection_Hide2!K$5, 'Full set Core Client Indicator'!$A$3:$AB$3, 0))), \"\")","v":""},{"$f":"IF(K215<>\"\", IF(INDEX('Full set Core Client Indicator'!$A$3:$AB$351, MATCH(Selection_Hide2!$A215, 'Full set Core Client Indicator'!$A$3:$A$351, 0), MATCH(Selection_Hide2!L$5, 'Full set Core Client Indicator'!$A$3:$AB$3, 0))=\"\", \"\",  INDEX('Full set Core Client Indicator'!$A$3:$AB$351, MATCH(Selection_Hide2!$A215, 'Full set Core Client Indicator'!$A$3:$A$351, 0), MATCH(Selection_Hide2!L$5, 'Full set Core Client Indicator'!$A$3:$AB$3, 0))), \"\")","v":""},{"$f":"IF(L215<>\"\", IF(INDEX('Full set Core Client Indicator'!$A$3:$AB$351, MATCH(Selection_Hide2!$A215, 'Full set Core Client Indicator'!$A$3:$A$351, 0), MATCH(Selection_Hide2!M$5, 'Full set Core Client Indicator'!$A$3:$AB$3, 0))=\"\", \"\",  INDEX('Full set Core Client Indicator'!$A$3:$AB$351, MATCH(Selection_Hide2!$A215, 'Full set Core Client Indicator'!$A$3:$A$351, 0), MATCH(Selection_Hide2!M$5, 'Full set Core Client Indicator'!$A$3:$AB$3, 0))), \"\")","v":""},{"$f":"IF(M215<>\"\", IF(INDEX('Full set Core Client Indicator'!$A$3:$AB$351, MATCH(Selection_Hide2!$A215, 'Full set Core Client Indicator'!$A$3:$A$351, 0), MATCH(Selection_Hide2!N$5, 'Full set Core Client Indicator'!$A$3:$AB$3, 0))=\"\", \"\",  INDEX('Full set Core Client Indicator'!$A$3:$AB$351, MATCH(Selection_Hide2!$A215, 'Full set Core Client Indicator'!$A$3:$A$351, 0), MATCH(Selection_Hide2!N$5, 'Full set Core Client Indicator'!$A$3:$AB$3, 0))), \"\")","v":""},{"$f":"IF(N215<>\"\", IF(INDEX('Full set Core Client Indicator'!$A$3:$AB$351, MATCH(Selection_Hide2!$A215, 'Full set Core Client Indicator'!$A$3:$A$351, 0), MATCH(Selection_Hide2!O$5, 'Full set Core Client Indicator'!$A$3:$AB$3, 0))=\"\", \"\",  INDEX('Full set Core Client Indicator'!$A$3:$AB$351, MATCH(Selection_Hide2!$A215, 'Full set Core Client Indicator'!$A$3:$A$351, 0), MATCH(Selection_Hide2!O$5, 'Full set Core Client Indicator'!$A$3:$AB$3, 0))), \"\")","v":""},{"$f":"IF(O215<>\"\", IF(INDEX('Full set Core Client Indicator'!$A$3:$AB$351, MATCH(Selection_Hide2!$A215, 'Full set Core Client Indicator'!$A$3:$A$351, 0), MATCH(Selection_Hide2!P$5, 'Full set Core Client Indicator'!$A$3:$AB$3, 0))=\"\", \"\",  INDEX('Full set Core Client Indicator'!$A$3:$AB$351, MATCH(Selection_Hide2!$A215, 'Full set Core Client Indicator'!$A$3:$A$351, 0), MATCH(Selection_Hide2!P$5, 'Full set Core Client Indicator'!$A$3:$AB$3, 0))), \"\")","v":""},{"$f":"IF(P215<>\"\", IF(INDEX('Full set Core Client Indicator'!$A$3:$AB$351, MATCH(Selection_Hide2!$A215, 'Full set Core Client Indicator'!$A$3:$A$351, 0), MATCH(Selection_Hide2!Q$5, 'Full set Core Client Indicator'!$A$3:$AB$3, 0))=\"\", \"\",  INDEX('Full set Core Client Indicator'!$A$3:$AB$351, MATCH(Selection_Hide2!$A215, 'Full set Core Client Indicator'!$A$3:$A$351, 0), MATCH(Selection_Hide2!Q$5, 'Full set Core Client Indicator'!$A$3:$AB$3, 0))), \"\")","v":""},{"$f":"IF(Q215<>\"\", IF(INDEX('Full set Core Client Indicator'!$A$3:$AB$351, MATCH(Selection_Hide2!$A215, 'Full set Core Client Indicator'!$A$3:$A$351, 0), MATCH(Selection_Hide2!R$5, 'Full set Core Client Indicator'!$A$3:$AB$3, 0))=\"\", \"\",  INDEX('Full set Core Client Indicator'!$A$3:$AB$351, MATCH(Selection_Hide2!$A215, 'Full set Core Client Indicator'!$A$3:$A$351, 0), MATCH(Selection_Hide2!R$5, 'Full set Core Client Indicator'!$A$3:$AB$3, 0))), \"\")","v":""},{"$f":"IF(R215<>\"\", IF(INDEX('Full set Core Client Indicator'!$A$3:$AB$351, MATCH(Selection_Hide2!$A215, 'Full set Core Client Indicator'!$A$3:$A$351, 0), MATCH(Selection_Hide2!S$5, 'Full set Core Client Indicator'!$A$3:$AB$3, 0))=\"\", \"\",  INDEX('Full set Core Client Indicator'!$A$3:$AB$351, MATCH(Selection_Hide2!$A215, 'Full set Core Client Indicator'!$A$3:$A$351, 0), MATCH(Selection_Hide2!S$5, 'Full set Core Client Indicator'!$A$3:$AB$3, 0))), \"\")","v":""},{"$f":"IF(S215<>\"\", IF(INDEX('Full set Core Client Indicator'!$A$3:$AB$351, MATCH(Selection_Hide2!$A215, 'Full set Core Client Indicator'!$A$3:$A$351, 0), MATCH(Selection_Hide2!T$5, 'Full set Core Client Indicator'!$A$3:$AB$3, 0))=\"\", \"\",  INDEX('Full set Core Client Indicator'!$A$3:$AB$351, MATCH(Selection_Hide2!$A215, 'Full set Core Client Indicator'!$A$3:$A$351, 0), MATCH(Selection_Hide2!T$5, 'Full set Core Client Indicator'!$A$3:$AB$3, 0))), \"\")","v":""},{"$f":"IF(T215<>\"\", IF(INDEX('Full set Core Client Indicator'!$A$3:$AB$351, MATCH(Selection_Hide2!$A215, 'Full set Core Client Indicator'!$A$3:$A$351, 0), MATCH(Selection_Hide2!U$5, 'Full set Core Client Indicator'!$A$3:$AB$3, 0))=\"\", \"\",  INDEX('Full set Core Client Indicator'!$A$3:$AB$351, MATCH(Selection_Hide2!$A215, 'Full set Core Client Indicator'!$A$3:$A$351, 0), MATCH(Selection_Hide2!U$5, 'Full set Core Client Indicator'!$A$3:$AB$3, 0))), \"\")","v":""},{"$f":"IF(U215<>\"\", IF(INDEX('Full set Core Client Indicator'!$A$3:$AB$351, MATCH(Selection_Hide2!$A215, 'Full set Core Client Indicator'!$A$3:$A$351, 0), MATCH(Selection_Hide2!V$5, 'Full set Core Client Indicator'!$A$3:$AB$3, 0))=\"\", \"\",  INDEX('Full set Core Client Indicator'!$A$3:$AB$351, MATCH(Selection_Hide2!$A215, 'Full set Core Client Indicator'!$A$3:$A$351, 0), MATCH(Selection_Hide2!V$5, 'Full set Core Client Indicator'!$A$3:$AB$3, 0))), \"\")","v":""},{"$f":"IF(V215<>\"\", IF(INDEX('Full set Core Client Indicator'!$A$3:$AB$351, MATCH(Selection_Hide2!$A215, 'Full set Core Client Indicator'!$A$3:$A$351, 0), MATCH(Selection_Hide2!W$5, 'Full set Core Client Indicator'!$A$3:$AB$3, 0))=\"\", \"\",  INDEX('Full set Core Client Indicator'!$A$3:$AB$351, MATCH(Selection_Hide2!$A215, 'Full set Core Client Indicator'!$A$3:$A$351, 0), MATCH(Selection_Hide2!W$5, 'Full set Core Client Indicator'!$A$3:$AB$3, 0))), \"\")","v":""},{"$f":"IF(W215<>\"\", IF(INDEX('Full set Core Client Indicator'!$A$3:$AB$351, MATCH(Selection_Hide2!$A215, 'Full set Core Client Indicator'!$A$3:$A$351, 0), MATCH(Selection_Hide2!X$5, 'Full set Core Client Indicator'!$A$3:$AB$3, 0))=\"\", \"\",  INDEX('Full set Core Client Indicator'!$A$3:$AB$351, MATCH(Selection_Hide2!$A215, 'Full set Core Client Indicator'!$A$3:$A$351, 0), MATCH(Selection_Hide2!X$5, 'Full set Core Client Indicator'!$A$3:$AB$3, 0))), \"\")","v":""},{"$f":"IF(X215<>\"\", IF(INDEX('Full set Core Client Indicator'!$A$3:$AB$351, MATCH(Selection_Hide2!$A215, 'Full set Core Client Indicator'!$A$3:$A$351, 0), MATCH(Selection_Hide2!Y$5, 'Full set Core Client Indicator'!$A$3:$AB$3, 0))=\"\", \"\",  INDEX('Full set Core Client Indicator'!$A$3:$AB$351, MATCH(Selection_Hide2!$A215, 'Full set Core Client Indicator'!$A$3:$A$351, 0), MATCH(Selection_Hide2!Y$5, 'Full set Core Client Indicator'!$A$3:$AB$3, 0))), \"\")","v":""},{"$f":"IF(Y215<>\"\", IF(INDEX('Full set Core Client Indicator'!$A$3:$AB$351, MATCH(Selection_Hide2!$A215, 'Full set Core Client Indicator'!$A$3:$A$351, 0), MATCH(Selection_Hide2!Z$5, 'Full set Core Client Indicator'!$A$3:$AB$3, 0))=\"\", \"\",  INDEX('Full set Core Client Indicator'!$A$3:$AB$351, MATCH(Selection_Hide2!$A215, 'Full set Core Client Indicator'!$A$3:$A$351, 0), MATCH(Selection_Hide2!Z$5, 'Full set Core Client Indicator'!$A$3:$AB$3, 0))), \"\")","v":""},{"$f":"IF(Z215<>\"\", IF(INDEX('Full set Core Client Indicator'!$A$3:$AB$351, MATCH(Selection_Hide2!$A215, 'Full set Core Client Indicator'!$A$3:$A$351, 0), MATCH(Selection_Hide2!AA$5, 'Full set Core Client Indicator'!$A$3:$AB$3, 0))=\"\", \"\",  INDEX('Full set Core Client Indicator'!$A$3:$AB$351, MATCH(Selection_Hide2!$A215, 'Full set Core Client Indicator'!$A$3:$A$351, 0), MATCH(Selection_Hide2!AA$5, 'Full set Core Client Indicator'!$A$3:$AB$3, 0))), \"\")","v":""},{"$f":"IF(AA215<>\"\", IF(INDEX('Full set Core Client Indicator'!$A$3:$AB$351, MATCH(Selection_Hide2!$A215, 'Full set Core Client Indicator'!$A$3:$A$351, 0), MATCH(Selection_Hide2!AB$5, 'Full set Core Client Indicator'!$A$3:$AB$3, 0))=\"\", \"\",  INDEX('Full set Core Client Indicator'!$A$3:$AB$351, MATCH(Selection_Hide2!$A215, 'Full set Core Client Indicator'!$A$3:$A$351, 0), MATCH(Selection_Hide2!AB$5, 'Full set Core Client Indicator'!$A$3:$AB$3, 0))), \"\")","v":""}]
[{"$f":"IF(AND(Selection_Hide1!C214<>0, Selection_Hide1!C214<>\"Grand Total\"), Selection_Hide1!C214, \"\")","v":""},{"$f":"IF(A216<>\"\", IF(INDEX('Full set Core Client Indicator'!$A$3:$AB$351, MATCH(Selection_Hide2!$A216, 'Full set Core Client Indicator'!$A$3:$A$351, 0), MATCH(Selection_Hide2!B$5, 'Full set Core Client Indicator'!$A$3:$AB$3, 0))=\"\", \"\",  INDEX('Full set Core Client Indicator'!$A$3:$AB$351, MATCH(Selection_Hide2!$A216, 'Full set Core Client Indicator'!$A$3:$A$351, 0), MATCH(Selection_Hide2!B$5, 'Full set Core Client Indicator'!$A$3:$AB$3, 0))), \"\")","v":""},{"$f":"IF(B216<>\"\", IF(INDEX('Full set Core Client Indicator'!$A$3:$AB$351, MATCH(Selection_Hide2!$A216, 'Full set Core Client Indicator'!$A$3:$A$351, 0), MATCH(Selection_Hide2!C$5, 'Full set Core Client Indicator'!$A$3:$AB$3, 0))=\"\", \"\",  INDEX('Full set Core Client Indicator'!$A$3:$AB$351, MATCH(Selection_Hide2!$A216, 'Full set Core Client Indicator'!$A$3:$A$351, 0), MATCH(Selection_Hide2!C$5, 'Full set Core Client Indicator'!$A$3:$AB$3, 0))), \"\")","v":""},{"$f":"IF(C216<>\"\", IF(INDEX('Full set Core Client Indicator'!$A$3:$AB$351, MATCH(Selection_Hide2!$A216, 'Full set Core Client Indicator'!$A$3:$A$351, 0), MATCH(Selection_Hide2!D$5, 'Full set Core Client Indicator'!$A$3:$AB$3, 0))=\"\", \"\",  INDEX('Full set Core Client Indicator'!$A$3:$AB$351, MATCH(Selection_Hide2!$A216, 'Full set Core Client Indicator'!$A$3:$A$351, 0), MATCH(Selection_Hide2!D$5, 'Full set Core Client Indicator'!$A$3:$AB$3, 0))), \"\")","v":""},{"$f":"IF(D216<>\"\", IF(INDEX('Full set Core Client Indicator'!$A$3:$AB$351, MATCH(Selection_Hide2!$A216, 'Full set Core Client Indicator'!$A$3:$A$351, 0), MATCH(Selection_Hide2!E$5, 'Full set Core Client Indicator'!$A$3:$AB$3, 0))=\"\", \"\",  INDEX('Full set Core Client Indicator'!$A$3:$AB$351, MATCH(Selection_Hide2!$A216, 'Full set Core Client Indicator'!$A$3:$A$351, 0), MATCH(Selection_Hide2!E$5, 'Full set Core Client Indicator'!$A$3:$AB$3, 0))), \"\")","v":""},{"$f":"IF(E216<>\"\", IF(INDEX('Full set Core Client Indicator'!$A$3:$AB$351, MATCH(Selection_Hide2!$A216, 'Full set Core Client Indicator'!$A$3:$A$351, 0), MATCH(Selection_Hide2!F$5, 'Full set Core Client Indicator'!$A$3:$AB$3, 0))=\"\", \"\",  INDEX('Full set Core Client Indicator'!$A$3:$AB$351, MATCH(Selection_Hide2!$A216, 'Full set Core Client Indicator'!$A$3:$A$351, 0), MATCH(Selection_Hide2!F$5, 'Full set Core Client Indicator'!$A$3:$AB$3, 0))), \"\")","v":""},{"$f":"IF(F216<>\"\", IF(INDEX('Full set Core Client Indicator'!$A$3:$AB$351, MATCH(Selection_Hide2!$A216, 'Full set Core Client Indicator'!$A$3:$A$351, 0), MATCH(Selection_Hide2!G$5, 'Full set Core Client Indicator'!$A$3:$AB$3, 0))=\"\", \"\",  INDEX('Full set Core Client Indicator'!$A$3:$AB$351, MATCH(Selection_Hide2!$A216, 'Full set Core Client Indicator'!$A$3:$A$351, 0), MATCH(Selection_Hide2!G$5, 'Full set Core Client Indicator'!$A$3:$AB$3, 0))), \"\")","v":""},{"$f":"IF(G216<>\"\", IF(INDEX('Full set Core Client Indicator'!$A$3:$AB$351, MATCH(Selection_Hide2!$A216, 'Full set Core Client Indicator'!$A$3:$A$351, 0), MATCH(Selection_Hide2!H$5, 'Full set Core Client Indicator'!$A$3:$AB$3, 0))=\"\", \"\",  INDEX('Full set Core Client Indicator'!$A$3:$AB$351, MATCH(Selection_Hide2!$A216, 'Full set Core Client Indicator'!$A$3:$A$351, 0), MATCH(Selection_Hide2!H$5, 'Full set Core Client Indicator'!$A$3:$AB$3, 0))), \"\")","v":""},{"$f":"IF(H216<>\"\", IF(INDEX('Full set Core Client Indicator'!$A$3:$AB$351, MATCH(Selection_Hide2!$A216, 'Full set Core Client Indicator'!$A$3:$A$351, 0), MATCH(Selection_Hide2!I$5, 'Full set Core Client Indicator'!$A$3:$AB$3, 0))=\"\", \"\",  INDEX('Full set Core Client Indicator'!$A$3:$AB$351, MATCH(Selection_Hide2!$A216, 'Full set Core Client Indicator'!$A$3:$A$351, 0), MATCH(Selection_Hide2!I$5, 'Full set Core Client Indicator'!$A$3:$AB$3, 0))), \"\")","v":""},{"$f":"IF(I216<>\"\", IF(INDEX('Full set Core Client Indicator'!$A$3:$AB$351, MATCH(Selection_Hide2!$A216, 'Full set Core Client Indicator'!$A$3:$A$351, 0), MATCH(Selection_Hide2!J$5, 'Full set Core Client Indicator'!$A$3:$AB$3, 0))=\"\", \"\",  INDEX('Full set Core Client Indicator'!$A$3:$AB$351, MATCH(Selection_Hide2!$A216, 'Full set Core Client Indicator'!$A$3:$A$351, 0), MATCH(Selection_Hide2!J$5, 'Full set Core Client Indicator'!$A$3:$AB$3, 0))), \"\")","v":""},{"$f":"IF(J216<>\"\", IF(INDEX('Full set Core Client Indicator'!$A$3:$AB$351, MATCH(Selection_Hide2!$A216, 'Full set Core Client Indicator'!$A$3:$A$351, 0), MATCH(Selection_Hide2!K$5, 'Full set Core Client Indicator'!$A$3:$AB$3, 0))=\"\", \"\",  INDEX('Full set Core Client Indicator'!$A$3:$AB$351, MATCH(Selection_Hide2!$A216, 'Full set Core Client Indicator'!$A$3:$A$351, 0), MATCH(Selection_Hide2!K$5, 'Full set Core Client Indicator'!$A$3:$AB$3, 0))), \"\")","v":""},{"$f":"IF(K216<>\"\", IF(INDEX('Full set Core Client Indicator'!$A$3:$AB$351, MATCH(Selection_Hide2!$A216, 'Full set Core Client Indicator'!$A$3:$A$351, 0), MATCH(Selection_Hide2!L$5, 'Full set Core Client Indicator'!$A$3:$AB$3, 0))=\"\", \"\",  INDEX('Full set Core Client Indicator'!$A$3:$AB$351, MATCH(Selection_Hide2!$A216, 'Full set Core Client Indicator'!$A$3:$A$351, 0), MATCH(Selection_Hide2!L$5, 'Full set Core Client Indicator'!$A$3:$AB$3, 0))), \"\")","v":""},{"$f":"IF(L216<>\"\", IF(INDEX('Full set Core Client Indicator'!$A$3:$AB$351, MATCH(Selection_Hide2!$A216, 'Full set Core Client Indicator'!$A$3:$A$351, 0), MATCH(Selection_Hide2!M$5, 'Full set Core Client Indicator'!$A$3:$AB$3, 0))=\"\", \"\",  INDEX('Full set Core Client Indicator'!$A$3:$AB$351, MATCH(Selection_Hide2!$A216, 'Full set Core Client Indicator'!$A$3:$A$351, 0), MATCH(Selection_Hide2!M$5, 'Full set Core Client Indicator'!$A$3:$AB$3, 0))), \"\")","v":""},{"$f":"IF(M216<>\"\", IF(INDEX('Full set Core Client Indicator'!$A$3:$AB$351, MATCH(Selection_Hide2!$A216, 'Full set Core Client Indicator'!$A$3:$A$351, 0), MATCH(Selection_Hide2!N$5, 'Full set Core Client Indicator'!$A$3:$AB$3, 0))=\"\", \"\",  INDEX('Full set Core Client Indicator'!$A$3:$AB$351, MATCH(Selection_Hide2!$A216, 'Full set Core Client Indicator'!$A$3:$A$351, 0), MATCH(Selection_Hide2!N$5, 'Full set Core Client Indicator'!$A$3:$AB$3, 0))), \"\")","v":""},{"$f":"IF(N216<>\"\", IF(INDEX('Full set Core Client Indicator'!$A$3:$AB$351, MATCH(Selection_Hide2!$A216, 'Full set Core Client Indicator'!$A$3:$A$351, 0), MATCH(Selection_Hide2!O$5, 'Full set Core Client Indicator'!$A$3:$AB$3, 0))=\"\", \"\",  INDEX('Full set Core Client Indicator'!$A$3:$AB$351, MATCH(Selection_Hide2!$A216, 'Full set Core Client Indicator'!$A$3:$A$351, 0), MATCH(Selection_Hide2!O$5, 'Full set Core Client Indicator'!$A$3:$AB$3, 0))), \"\")","v":""},{"$f":"IF(O216<>\"\", IF(INDEX('Full set Core Client Indicator'!$A$3:$AB$351, MATCH(Selection_Hide2!$A216, 'Full set Core Client Indicator'!$A$3:$A$351, 0), MATCH(Selection_Hide2!P$5, 'Full set Core Client Indicator'!$A$3:$AB$3, 0))=\"\", \"\",  INDEX('Full set Core Client Indicator'!$A$3:$AB$351, MATCH(Selection_Hide2!$A216, 'Full set Core Client Indicator'!$A$3:$A$351, 0), MATCH(Selection_Hide2!P$5, 'Full set Core Client Indicator'!$A$3:$AB$3, 0))), \"\")","v":""},{"$f":"IF(P216<>\"\", IF(INDEX('Full set Core Client Indicator'!$A$3:$AB$351, MATCH(Selection_Hide2!$A216, 'Full set Core Client Indicator'!$A$3:$A$351, 0), MATCH(Selection_Hide2!Q$5, 'Full set Core Client Indicator'!$A$3:$AB$3, 0))=\"\", \"\",  INDEX('Full set Core Client Indicator'!$A$3:$AB$351, MATCH(Selection_Hide2!$A216, 'Full set Core Client Indicator'!$A$3:$A$351, 0), MATCH(Selection_Hide2!Q$5, 'Full set Core Client Indicator'!$A$3:$AB$3, 0))), \"\")","v":""},{"$f":"IF(Q216<>\"\", IF(INDEX('Full set Core Client Indicator'!$A$3:$AB$351, MATCH(Selection_Hide2!$A216, 'Full set Core Client Indicator'!$A$3:$A$351, 0), MATCH(Selection_Hide2!R$5, 'Full set Core Client Indicator'!$A$3:$AB$3, 0))=\"\", \"\",  INDEX('Full set Core Client Indicator'!$A$3:$AB$351, MATCH(Selection_Hide2!$A216, 'Full set Core Client Indicator'!$A$3:$A$351, 0), MATCH(Selection_Hide2!R$5, 'Full set Core Client Indicator'!$A$3:$AB$3, 0))), \"\")","v":""},{"$f":"IF(R216<>\"\", IF(INDEX('Full set Core Client Indicator'!$A$3:$AB$351, MATCH(Selection_Hide2!$A216, 'Full set Core Client Indicator'!$A$3:$A$351, 0), MATCH(Selection_Hide2!S$5, 'Full set Core Client Indicator'!$A$3:$AB$3, 0))=\"\", \"\",  INDEX('Full set Core Client Indicator'!$A$3:$AB$351, MATCH(Selection_Hide2!$A216, 'Full set Core Client Indicator'!$A$3:$A$351, 0), MATCH(Selection_Hide2!S$5, 'Full set Core Client Indicator'!$A$3:$AB$3, 0))), \"\")","v":""},{"$f":"IF(S216<>\"\", IF(INDEX('Full set Core Client Indicator'!$A$3:$AB$351, MATCH(Selection_Hide2!$A216, 'Full set Core Client Indicator'!$A$3:$A$351, 0), MATCH(Selection_Hide2!T$5, 'Full set Core Client Indicator'!$A$3:$AB$3, 0))=\"\", \"\",  INDEX('Full set Core Client Indicator'!$A$3:$AB$351, MATCH(Selection_Hide2!$A216, 'Full set Core Client Indicator'!$A$3:$A$351, 0), MATCH(Selection_Hide2!T$5, 'Full set Core Client Indicator'!$A$3:$AB$3, 0))), \"\")","v":""},{"$f":"IF(T216<>\"\", IF(INDEX('Full set Core Client Indicator'!$A$3:$AB$351, MATCH(Selection_Hide2!$A216, 'Full set Core Client Indicator'!$A$3:$A$351, 0), MATCH(Selection_Hide2!U$5, 'Full set Core Client Indicator'!$A$3:$AB$3, 0))=\"\", \"\",  INDEX('Full set Core Client Indicator'!$A$3:$AB$351, MATCH(Selection_Hide2!$A216, 'Full set Core Client Indicator'!$A$3:$A$351, 0), MATCH(Selection_Hide2!U$5, 'Full set Core Client Indicator'!$A$3:$AB$3, 0))), \"\")","v":""},{"$f":"IF(U216<>\"\", IF(INDEX('Full set Core Client Indicator'!$A$3:$AB$351, MATCH(Selection_Hide2!$A216, 'Full set Core Client Indicator'!$A$3:$A$351, 0), MATCH(Selection_Hide2!V$5, 'Full set Core Client Indicator'!$A$3:$AB$3, 0))=\"\", \"\",  INDEX('Full set Core Client Indicator'!$A$3:$AB$351, MATCH(Selection_Hide2!$A216, 'Full set Core Client Indicator'!$A$3:$A$351, 0), MATCH(Selection_Hide2!V$5, 'Full set Core Client Indicator'!$A$3:$AB$3, 0))), \"\")","v":""},{"$f":"IF(V216<>\"\", IF(INDEX('Full set Core Client Indicator'!$A$3:$AB$351, MATCH(Selection_Hide2!$A216, 'Full set Core Client Indicator'!$A$3:$A$351, 0), MATCH(Selection_Hide2!W$5, 'Full set Core Client Indicator'!$A$3:$AB$3, 0))=\"\", \"\",  INDEX('Full set Core Client Indicator'!$A$3:$AB$351, MATCH(Selection_Hide2!$A216, 'Full set Core Client Indicator'!$A$3:$A$351, 0), MATCH(Selection_Hide2!W$5, 'Full set Core Client Indicator'!$A$3:$AB$3, 0))), \"\")","v":""},{"$f":"IF(W216<>\"\", IF(INDEX('Full set Core Client Indicator'!$A$3:$AB$351, MATCH(Selection_Hide2!$A216, 'Full set Core Client Indicator'!$A$3:$A$351, 0), MATCH(Selection_Hide2!X$5, 'Full set Core Client Indicator'!$A$3:$AB$3, 0))=\"\", \"\",  INDEX('Full set Core Client Indicator'!$A$3:$AB$351, MATCH(Selection_Hide2!$A216, 'Full set Core Client Indicator'!$A$3:$A$351, 0), MATCH(Selection_Hide2!X$5, 'Full set Core Client Indicator'!$A$3:$AB$3, 0))), \"\")","v":""},{"$f":"IF(X216<>\"\", IF(INDEX('Full set Core Client Indicator'!$A$3:$AB$351, MATCH(Selection_Hide2!$A216, 'Full set Core Client Indicator'!$A$3:$A$351, 0), MATCH(Selection_Hide2!Y$5, 'Full set Core Client Indicator'!$A$3:$AB$3, 0))=\"\", \"\",  INDEX('Full set Core Client Indicator'!$A$3:$AB$351, MATCH(Selection_Hide2!$A216, 'Full set Core Client Indicator'!$A$3:$A$351, 0), MATCH(Selection_Hide2!Y$5, 'Full set Core Client Indicator'!$A$3:$AB$3, 0))), \"\")","v":""},{"$f":"IF(Y216<>\"\", IF(INDEX('Full set Core Client Indicator'!$A$3:$AB$351, MATCH(Selection_Hide2!$A216, 'Full set Core Client Indicator'!$A$3:$A$351, 0), MATCH(Selection_Hide2!Z$5, 'Full set Core Client Indicator'!$A$3:$AB$3, 0))=\"\", \"\",  INDEX('Full set Core Client Indicator'!$A$3:$AB$351, MATCH(Selection_Hide2!$A216, 'Full set Core Client Indicator'!$A$3:$A$351, 0), MATCH(Selection_Hide2!Z$5, 'Full set Core Client Indicator'!$A$3:$AB$3, 0))), \"\")","v":""},{"$f":"IF(Z216<>\"\", IF(INDEX('Full set Core Client Indicator'!$A$3:$AB$351, MATCH(Selection_Hide2!$A216, 'Full set Core Client Indicator'!$A$3:$A$351, 0), MATCH(Selection_Hide2!AA$5, 'Full set Core Client Indicator'!$A$3:$AB$3, 0))=\"\", \"\",  INDEX('Full set Core Client Indicator'!$A$3:$AB$351, MATCH(Selection_Hide2!$A216, 'Full set Core Client Indicator'!$A$3:$A$351, 0), MATCH(Selection_Hide2!AA$5, 'Full set Core Client Indicator'!$A$3:$AB$3, 0))), \"\")","v":""},{"$f":"IF(AA216<>\"\", IF(INDEX('Full set Core Client Indicator'!$A$3:$AB$351, MATCH(Selection_Hide2!$A216, 'Full set Core Client Indicator'!$A$3:$A$351, 0), MATCH(Selection_Hide2!AB$5, 'Full set Core Client Indicator'!$A$3:$AB$3, 0))=\"\", \"\",  INDEX('Full set Core Client Indicator'!$A$3:$AB$351, MATCH(Selection_Hide2!$A216, 'Full set Core Client Indicator'!$A$3:$A$351, 0), MATCH(Selection_Hide2!AB$5, 'Full set Core Client Indicator'!$A$3:$AB$3, 0))), \"\")","v":""}]
[{"$f":"IF(AND(Selection_Hide1!C215<>0, Selection_Hide1!C215<>\"Grand Total\"), Selection_Hide1!C215, \"\")","v":""},{"$f":"IF(A217<>\"\", IF(INDEX('Full set Core Client Indicator'!$A$3:$AB$351, MATCH(Selection_Hide2!$A217, 'Full set Core Client Indicator'!$A$3:$A$351, 0), MATCH(Selection_Hide2!B$5, 'Full set Core Client Indicator'!$A$3:$AB$3, 0))=\"\", \"\",  INDEX('Full set Core Client Indicator'!$A$3:$AB$351, MATCH(Selection_Hide2!$A217, 'Full set Core Client Indicator'!$A$3:$A$351, 0), MATCH(Selection_Hide2!B$5, 'Full set Core Client Indicator'!$A$3:$AB$3, 0))), \"\")","v":""},{"$f":"IF(B217<>\"\", IF(INDEX('Full set Core Client Indicator'!$A$3:$AB$351, MATCH(Selection_Hide2!$A217, 'Full set Core Client Indicator'!$A$3:$A$351, 0), MATCH(Selection_Hide2!C$5, 'Full set Core Client Indicator'!$A$3:$AB$3, 0))=\"\", \"\",  INDEX('Full set Core Client Indicator'!$A$3:$AB$351, MATCH(Selection_Hide2!$A217, 'Full set Core Client Indicator'!$A$3:$A$351, 0), MATCH(Selection_Hide2!C$5, 'Full set Core Client Indicator'!$A$3:$AB$3, 0))), \"\")","v":""},{"$f":"IF(C217<>\"\", IF(INDEX('Full set Core Client Indicator'!$A$3:$AB$351, MATCH(Selection_Hide2!$A217, 'Full set Core Client Indicator'!$A$3:$A$351, 0), MATCH(Selection_Hide2!D$5, 'Full set Core Client Indicator'!$A$3:$AB$3, 0))=\"\", \"\",  INDEX('Full set Core Client Indicator'!$A$3:$AB$351, MATCH(Selection_Hide2!$A217, 'Full set Core Client Indicator'!$A$3:$A$351, 0), MATCH(Selection_Hide2!D$5, 'Full set Core Client Indicator'!$A$3:$AB$3, 0))), \"\")","v":""},{"$f":"IF(D217<>\"\", IF(INDEX('Full set Core Client Indicator'!$A$3:$AB$351, MATCH(Selection_Hide2!$A217, 'Full set Core Client Indicator'!$A$3:$A$351, 0), MATCH(Selection_Hide2!E$5, 'Full set Core Client Indicator'!$A$3:$AB$3, 0))=\"\", \"\",  INDEX('Full set Core Client Indicator'!$A$3:$AB$351, MATCH(Selection_Hide2!$A217, 'Full set Core Client Indicator'!$A$3:$A$351, 0), MATCH(Selection_Hide2!E$5, 'Full set Core Client Indicator'!$A$3:$AB$3, 0))), \"\")","v":""},{"$f":"IF(E217<>\"\", IF(INDEX('Full set Core Client Indicator'!$A$3:$AB$351, MATCH(Selection_Hide2!$A217, 'Full set Core Client Indicator'!$A$3:$A$351, 0), MATCH(Selection_Hide2!F$5, 'Full set Core Client Indicator'!$A$3:$AB$3, 0))=\"\", \"\",  INDEX('Full set Core Client Indicator'!$A$3:$AB$351, MATCH(Selection_Hide2!$A217, 'Full set Core Client Indicator'!$A$3:$A$351, 0), MATCH(Selection_Hide2!F$5, 'Full set Core Client Indicator'!$A$3:$AB$3, 0))), \"\")","v":""},{"$f":"IF(F217<>\"\", IF(INDEX('Full set Core Client Indicator'!$A$3:$AB$351, MATCH(Selection_Hide2!$A217, 'Full set Core Client Indicator'!$A$3:$A$351, 0), MATCH(Selection_Hide2!G$5, 'Full set Core Client Indicator'!$A$3:$AB$3, 0))=\"\", \"\",  INDEX('Full set Core Client Indicator'!$A$3:$AB$351, MATCH(Selection_Hide2!$A217, 'Full set Core Client Indicator'!$A$3:$A$351, 0), MATCH(Selection_Hide2!G$5, 'Full set Core Client Indicator'!$A$3:$AB$3, 0))), \"\")","v":""},{"$f":"IF(G217<>\"\", IF(INDEX('Full set Core Client Indicator'!$A$3:$AB$351, MATCH(Selection_Hide2!$A217, 'Full set Core Client Indicator'!$A$3:$A$351, 0), MATCH(Selection_Hide2!H$5, 'Full set Core Client Indicator'!$A$3:$AB$3, 0))=\"\", \"\",  INDEX('Full set Core Client Indicator'!$A$3:$AB$351, MATCH(Selection_Hide2!$A217, 'Full set Core Client Indicator'!$A$3:$A$351, 0), MATCH(Selection_Hide2!H$5, 'Full set Core Client Indicator'!$A$3:$AB$3, 0))), \"\")","v":""},{"$f":"IF(H217<>\"\", IF(INDEX('Full set Core Client Indicator'!$A$3:$AB$351, MATCH(Selection_Hide2!$A217, 'Full set Core Client Indicator'!$A$3:$A$351, 0), MATCH(Selection_Hide2!I$5, 'Full set Core Client Indicator'!$A$3:$AB$3, 0))=\"\", \"\",  INDEX('Full set Core Client Indicator'!$A$3:$AB$351, MATCH(Selection_Hide2!$A217, 'Full set Core Client Indicator'!$A$3:$A$351, 0), MATCH(Selection_Hide2!I$5, 'Full set Core Client Indicator'!$A$3:$AB$3, 0))), \"\")","v":""},{"$f":"IF(I217<>\"\", IF(INDEX('Full set Core Client Indicator'!$A$3:$AB$351, MATCH(Selection_Hide2!$A217, 'Full set Core Client Indicator'!$A$3:$A$351, 0), MATCH(Selection_Hide2!J$5, 'Full set Core Client Indicator'!$A$3:$AB$3, 0))=\"\", \"\",  INDEX('Full set Core Client Indicator'!$A$3:$AB$351, MATCH(Selection_Hide2!$A217, 'Full set Core Client Indicator'!$A$3:$A$351, 0), MATCH(Selection_Hide2!J$5, 'Full set Core Client Indicator'!$A$3:$AB$3, 0))), \"\")","v":""},{"$f":"IF(J217<>\"\", IF(INDEX('Full set Core Client Indicator'!$A$3:$AB$351, MATCH(Selection_Hide2!$A217, 'Full set Core Client Indicator'!$A$3:$A$351, 0), MATCH(Selection_Hide2!K$5, 'Full set Core Client Indicator'!$A$3:$AB$3, 0))=\"\", \"\",  INDEX('Full set Core Client Indicator'!$A$3:$AB$351, MATCH(Selection_Hide2!$A217, 'Full set Core Client Indicator'!$A$3:$A$351, 0), MATCH(Selection_Hide2!K$5, 'Full set Core Client Indicator'!$A$3:$AB$3, 0))), \"\")","v":""},{"$f":"IF(K217<>\"\", IF(INDEX('Full set Core Client Indicator'!$A$3:$AB$351, MATCH(Selection_Hide2!$A217, 'Full set Core Client Indicator'!$A$3:$A$351, 0), MATCH(Selection_Hide2!L$5, 'Full set Core Client Indicator'!$A$3:$AB$3, 0))=\"\", \"\",  INDEX('Full set Core Client Indicator'!$A$3:$AB$351, MATCH(Selection_Hide2!$A217, 'Full set Core Client Indicator'!$A$3:$A$351, 0), MATCH(Selection_Hide2!L$5, 'Full set Core Client Indicator'!$A$3:$AB$3, 0))), \"\")","v":""},{"$f":"IF(L217<>\"\", IF(INDEX('Full set Core Client Indicator'!$A$3:$AB$351, MATCH(Selection_Hide2!$A217, 'Full set Core Client Indicator'!$A$3:$A$351, 0), MATCH(Selection_Hide2!M$5, 'Full set Core Client Indicator'!$A$3:$AB$3, 0))=\"\", \"\",  INDEX('Full set Core Client Indicator'!$A$3:$AB$351, MATCH(Selection_Hide2!$A217, 'Full set Core Client Indicator'!$A$3:$A$351, 0), MATCH(Selection_Hide2!M$5, 'Full set Core Client Indicator'!$A$3:$AB$3, 0))), \"\")","v":""},{"$f":"IF(M217<>\"\", IF(INDEX('Full set Core Client Indicator'!$A$3:$AB$351, MATCH(Selection_Hide2!$A217, 'Full set Core Client Indicator'!$A$3:$A$351, 0), MATCH(Selection_Hide2!N$5, 'Full set Core Client Indicator'!$A$3:$AB$3, 0))=\"\", \"\",  INDEX('Full set Core Client Indicator'!$A$3:$AB$351, MATCH(Selection_Hide2!$A217, 'Full set Core Client Indicator'!$A$3:$A$351, 0), MATCH(Selection_Hide2!N$5, 'Full set Core Client Indicator'!$A$3:$AB$3, 0))), \"\")","v":""},{"$f":"IF(N217<>\"\", IF(INDEX('Full set Core Client Indicator'!$A$3:$AB$351, MATCH(Selection_Hide2!$A217, 'Full set Core Client Indicator'!$A$3:$A$351, 0), MATCH(Selection_Hide2!O$5, 'Full set Core Client Indicator'!$A$3:$AB$3, 0))=\"\", \"\",  INDEX('Full set Core Client Indicator'!$A$3:$AB$351, MATCH(Selection_Hide2!$A217, 'Full set Core Client Indicator'!$A$3:$A$351, 0), MATCH(Selection_Hide2!O$5, 'Full set Core Client Indicator'!$A$3:$AB$3, 0))), \"\")","v":""},{"$f":"IF(O217<>\"\", IF(INDEX('Full set Core Client Indicator'!$A$3:$AB$351, MATCH(Selection_Hide2!$A217, 'Full set Core Client Indicator'!$A$3:$A$351, 0), MATCH(Selection_Hide2!P$5, 'Full set Core Client Indicator'!$A$3:$AB$3, 0))=\"\", \"\",  INDEX('Full set Core Client Indicator'!$A$3:$AB$351, MATCH(Selection_Hide2!$A217, 'Full set Core Client Indicator'!$A$3:$A$351, 0), MATCH(Selection_Hide2!P$5, 'Full set Core Client Indicator'!$A$3:$AB$3, 0))), \"\")","v":""},{"$f":"IF(P217<>\"\", IF(INDEX('Full set Core Client Indicator'!$A$3:$AB$351, MATCH(Selection_Hide2!$A217, 'Full set Core Client Indicator'!$A$3:$A$351, 0), MATCH(Selection_Hide2!Q$5, 'Full set Core Client Indicator'!$A$3:$AB$3, 0))=\"\", \"\",  INDEX('Full set Core Client Indicator'!$A$3:$AB$351, MATCH(Selection_Hide2!$A217, 'Full set Core Client Indicator'!$A$3:$A$351, 0), MATCH(Selection_Hide2!Q$5, 'Full set Core Client Indicator'!$A$3:$AB$3, 0))), \"\")","v":""},{"$f":"IF(Q217<>\"\", IF(INDEX('Full set Core Client Indicator'!$A$3:$AB$351, MATCH(Selection_Hide2!$A217, 'Full set Core Client Indicator'!$A$3:$A$351, 0), MATCH(Selection_Hide2!R$5, 'Full set Core Client Indicator'!$A$3:$AB$3, 0))=\"\", \"\",  INDEX('Full set Core Client Indicator'!$A$3:$AB$351, MATCH(Selection_Hide2!$A217, 'Full set Core Client Indicator'!$A$3:$A$351, 0), MATCH(Selection_Hide2!R$5, 'Full set Core Client Indicator'!$A$3:$AB$3, 0))), \"\")","v":""},{"$f":"IF(R217<>\"\", IF(INDEX('Full set Core Client Indicator'!$A$3:$AB$351, MATCH(Selection_Hide2!$A217, 'Full set Core Client Indicator'!$A$3:$A$351, 0), MATCH(Selection_Hide2!S$5, 'Full set Core Client Indicator'!$A$3:$AB$3, 0))=\"\", \"\",  INDEX('Full set Core Client Indicator'!$A$3:$AB$351, MATCH(Selection_Hide2!$A217, 'Full set Core Client Indicator'!$A$3:$A$351, 0), MATCH(Selection_Hide2!S$5, 'Full set Core Client Indicator'!$A$3:$AB$3, 0))), \"\")","v":""},{"$f":"IF(S217<>\"\", IF(INDEX('Full set Core Client Indicator'!$A$3:$AB$351, MATCH(Selection_Hide2!$A217, 'Full set Core Client Indicator'!$A$3:$A$351, 0), MATCH(Selection_Hide2!T$5, 'Full set Core Client Indicator'!$A$3:$AB$3, 0))=\"\", \"\",  INDEX('Full set Core Client Indicator'!$A$3:$AB$351, MATCH(Selection_Hide2!$A217, 'Full set Core Client Indicator'!$A$3:$A$351, 0), MATCH(Selection_Hide2!T$5, 'Full set Core Client Indicator'!$A$3:$AB$3, 0))), \"\")","v":""},{"$f":"IF(T217<>\"\", IF(INDEX('Full set Core Client Indicator'!$A$3:$AB$351, MATCH(Selection_Hide2!$A217, 'Full set Core Client Indicator'!$A$3:$A$351, 0), MATCH(Selection_Hide2!U$5, 'Full set Core Client Indicator'!$A$3:$AB$3, 0))=\"\", \"\",  INDEX('Full set Core Client Indicator'!$A$3:$AB$351, MATCH(Selection_Hide2!$A217, 'Full set Core Client Indicator'!$A$3:$A$351, 0), MATCH(Selection_Hide2!U$5, 'Full set Core Client Indicator'!$A$3:$AB$3, 0))), \"\")","v":""},{"$f":"IF(U217<>\"\", IF(INDEX('Full set Core Client Indicator'!$A$3:$AB$351, MATCH(Selection_Hide2!$A217, 'Full set Core Client Indicator'!$A$3:$A$351, 0), MATCH(Selection_Hide2!V$5, 'Full set Core Client Indicator'!$A$3:$AB$3, 0))=\"\", \"\",  INDEX('Full set Core Client Indicator'!$A$3:$AB$351, MATCH(Selection_Hide2!$A217, 'Full set Core Client Indicator'!$A$3:$A$351, 0), MATCH(Selection_Hide2!V$5, 'Full set Core Client Indicator'!$A$3:$AB$3, 0))), \"\")","v":""},{"$f":"IF(V217<>\"\", IF(INDEX('Full set Core Client Indicator'!$A$3:$AB$351, MATCH(Selection_Hide2!$A217, 'Full set Core Client Indicator'!$A$3:$A$351, 0), MATCH(Selection_Hide2!W$5, 'Full set Core Client Indicator'!$A$3:$AB$3, 0))=\"\", \"\",  INDEX('Full set Core Client Indicator'!$A$3:$AB$351, MATCH(Selection_Hide2!$A217, 'Full set Core Client Indicator'!$A$3:$A$351, 0), MATCH(Selection_Hide2!W$5, 'Full set Core Client Indicator'!$A$3:$AB$3, 0))), \"\")","v":""},{"$f":"IF(W217<>\"\", IF(INDEX('Full set Core Client Indicator'!$A$3:$AB$351, MATCH(Selection_Hide2!$A217, 'Full set Core Client Indicator'!$A$3:$A$351, 0), MATCH(Selection_Hide2!X$5, 'Full set Core Client Indicator'!$A$3:$AB$3, 0))=\"\", \"\",  INDEX('Full set Core Client Indicator'!$A$3:$AB$351, MATCH(Selection_Hide2!$A217, 'Full set Core Client Indicator'!$A$3:$A$351, 0), MATCH(Selection_Hide2!X$5, 'Full set Core Client Indicator'!$A$3:$AB$3, 0))), \"\")","v":""},{"$f":"IF(X217<>\"\", IF(INDEX('Full set Core Client Indicator'!$A$3:$AB$351, MATCH(Selection_Hide2!$A217, 'Full set Core Client Indicator'!$A$3:$A$351, 0), MATCH(Selection_Hide2!Y$5, 'Full set Core Client Indicator'!$A$3:$AB$3, 0))=\"\", \"\",  INDEX('Full set Core Client Indicator'!$A$3:$AB$351, MATCH(Selection_Hide2!$A217, 'Full set Core Client Indicator'!$A$3:$A$351, 0), MATCH(Selection_Hide2!Y$5, 'Full set Core Client Indicator'!$A$3:$AB$3, 0))), \"\")","v":""},{"$f":"IF(Y217<>\"\", IF(INDEX('Full set Core Client Indicator'!$A$3:$AB$351, MATCH(Selection_Hide2!$A217, 'Full set Core Client Indicator'!$A$3:$A$351, 0), MATCH(Selection_Hide2!Z$5, 'Full set Core Client Indicator'!$A$3:$AB$3, 0))=\"\", \"\",  INDEX('Full set Core Client Indicator'!$A$3:$AB$351, MATCH(Selection_Hide2!$A217, 'Full set Core Client Indicator'!$A$3:$A$351, 0), MATCH(Selection_Hide2!Z$5, 'Full set Core Client Indicator'!$A$3:$AB$3, 0))), \"\")","v":""},{"$f":"IF(Z217<>\"\", IF(INDEX('Full set Core Client Indicator'!$A$3:$AB$351, MATCH(Selection_Hide2!$A217, 'Full set Core Client Indicator'!$A$3:$A$351, 0), MATCH(Selection_Hide2!AA$5, 'Full set Core Client Indicator'!$A$3:$AB$3, 0))=\"\", \"\",  INDEX('Full set Core Client Indicator'!$A$3:$AB$351, MATCH(Selection_Hide2!$A217, 'Full set Core Client Indicator'!$A$3:$A$351, 0), MATCH(Selection_Hide2!AA$5, 'Full set Core Client Indicator'!$A$3:$AB$3, 0))), \"\")","v":""},{"$f":"IF(AA217<>\"\", IF(INDEX('Full set Core Client Indicator'!$A$3:$AB$351, MATCH(Selection_Hide2!$A217, 'Full set Core Client Indicator'!$A$3:$A$351, 0), MATCH(Selection_Hide2!AB$5, 'Full set Core Client Indicator'!$A$3:$AB$3, 0))=\"\", \"\",  INDEX('Full set Core Client Indicator'!$A$3:$AB$351, MATCH(Selection_Hide2!$A217, 'Full set Core Client Indicator'!$A$3:$A$351, 0), MATCH(Selection_Hide2!AB$5, 'Full set Core Client Indicator'!$A$3:$AB$3, 0))), \"\")","v":""}]
[{"$f":"IF(AND(Selection_Hide1!C216<>0, Selection_Hide1!C216<>\"Grand Total\"), Selection_Hide1!C216, \"\")","v":""},{"$f":"IF(A218<>\"\", IF(INDEX('Full set Core Client Indicator'!$A$3:$AB$351, MATCH(Selection_Hide2!$A218, 'Full set Core Client Indicator'!$A$3:$A$351, 0), MATCH(Selection_Hide2!B$5, 'Full set Core Client Indicator'!$A$3:$AB$3, 0))=\"\", \"\",  INDEX('Full set Core Client Indicator'!$A$3:$AB$351, MATCH(Selection_Hide2!$A218, 'Full set Core Client Indicator'!$A$3:$A$351, 0), MATCH(Selection_Hide2!B$5, 'Full set Core Client Indicator'!$A$3:$AB$3, 0))), \"\")","v":""},{"$f":"IF(B218<>\"\", IF(INDEX('Full set Core Client Indicator'!$A$3:$AB$351, MATCH(Selection_Hide2!$A218, 'Full set Core Client Indicator'!$A$3:$A$351, 0), MATCH(Selection_Hide2!C$5, 'Full set Core Client Indicator'!$A$3:$AB$3, 0))=\"\", \"\",  INDEX('Full set Core Client Indicator'!$A$3:$AB$351, MATCH(Selection_Hide2!$A218, 'Full set Core Client Indicator'!$A$3:$A$351, 0), MATCH(Selection_Hide2!C$5, 'Full set Core Client Indicator'!$A$3:$AB$3, 0))), \"\")","v":""},{"$f":"IF(C218<>\"\", IF(INDEX('Full set Core Client Indicator'!$A$3:$AB$351, MATCH(Selection_Hide2!$A218, 'Full set Core Client Indicator'!$A$3:$A$351, 0), MATCH(Selection_Hide2!D$5, 'Full set Core Client Indicator'!$A$3:$AB$3, 0))=\"\", \"\",  INDEX('Full set Core Client Indicator'!$A$3:$AB$351, MATCH(Selection_Hide2!$A218, 'Full set Core Client Indicator'!$A$3:$A$351, 0), MATCH(Selection_Hide2!D$5, 'Full set Core Client Indicator'!$A$3:$AB$3, 0))), \"\")","v":""},{"$f":"IF(D218<>\"\", IF(INDEX('Full set Core Client Indicator'!$A$3:$AB$351, MATCH(Selection_Hide2!$A218, 'Full set Core Client Indicator'!$A$3:$A$351, 0), MATCH(Selection_Hide2!E$5, 'Full set Core Client Indicator'!$A$3:$AB$3, 0))=\"\", \"\",  INDEX('Full set Core Client Indicator'!$A$3:$AB$351, MATCH(Selection_Hide2!$A218, 'Full set Core Client Indicator'!$A$3:$A$351, 0), MATCH(Selection_Hide2!E$5, 'Full set Core Client Indicator'!$A$3:$AB$3, 0))), \"\")","v":""},{"$f":"IF(E218<>\"\", IF(INDEX('Full set Core Client Indicator'!$A$3:$AB$351, MATCH(Selection_Hide2!$A218, 'Full set Core Client Indicator'!$A$3:$A$351, 0), MATCH(Selection_Hide2!F$5, 'Full set Core Client Indicator'!$A$3:$AB$3, 0))=\"\", \"\",  INDEX('Full set Core Client Indicator'!$A$3:$AB$351, MATCH(Selection_Hide2!$A218, 'Full set Core Client Indicator'!$A$3:$A$351, 0), MATCH(Selection_Hide2!F$5, 'Full set Core Client Indicator'!$A$3:$AB$3, 0))), \"\")","v":""},{"$f":"IF(F218<>\"\", IF(INDEX('Full set Core Client Indicator'!$A$3:$AB$351, MATCH(Selection_Hide2!$A218, 'Full set Core Client Indicator'!$A$3:$A$351, 0), MATCH(Selection_Hide2!G$5, 'Full set Core Client Indicator'!$A$3:$AB$3, 0))=\"\", \"\",  INDEX('Full set Core Client Indicator'!$A$3:$AB$351, MATCH(Selection_Hide2!$A218, 'Full set Core Client Indicator'!$A$3:$A$351, 0), MATCH(Selection_Hide2!G$5, 'Full set Core Client Indicator'!$A$3:$AB$3, 0))), \"\")","v":""},{"$f":"IF(G218<>\"\", IF(INDEX('Full set Core Client Indicator'!$A$3:$AB$351, MATCH(Selection_Hide2!$A218, 'Full set Core Client Indicator'!$A$3:$A$351, 0), MATCH(Selection_Hide2!H$5, 'Full set Core Client Indicator'!$A$3:$AB$3, 0))=\"\", \"\",  INDEX('Full set Core Client Indicator'!$A$3:$AB$351, MATCH(Selection_Hide2!$A218, 'Full set Core Client Indicator'!$A$3:$A$351, 0), MATCH(Selection_Hide2!H$5, 'Full set Core Client Indicator'!$A$3:$AB$3, 0))), \"\")","v":""},{"$f":"IF(H218<>\"\", IF(INDEX('Full set Core Client Indicator'!$A$3:$AB$351, MATCH(Selection_Hide2!$A218, 'Full set Core Client Indicator'!$A$3:$A$351, 0), MATCH(Selection_Hide2!I$5, 'Full set Core Client Indicator'!$A$3:$AB$3, 0))=\"\", \"\",  INDEX('Full set Core Client Indicator'!$A$3:$AB$351, MATCH(Selection_Hide2!$A218, 'Full set Core Client Indicator'!$A$3:$A$351, 0), MATCH(Selection_Hide2!I$5, 'Full set Core Client Indicator'!$A$3:$AB$3, 0))), \"\")","v":""},{"$f":"IF(I218<>\"\", IF(INDEX('Full set Core Client Indicator'!$A$3:$AB$351, MATCH(Selection_Hide2!$A218, 'Full set Core Client Indicator'!$A$3:$A$351, 0), MATCH(Selection_Hide2!J$5, 'Full set Core Client Indicator'!$A$3:$AB$3, 0))=\"\", \"\",  INDEX('Full set Core Client Indicator'!$A$3:$AB$351, MATCH(Selection_Hide2!$A218, 'Full set Core Client Indicator'!$A$3:$A$351, 0), MATCH(Selection_Hide2!J$5, 'Full set Core Client Indicator'!$A$3:$AB$3, 0))), \"\")","v":""},{"$f":"IF(J218<>\"\", IF(INDEX('Full set Core Client Indicator'!$A$3:$AB$351, MATCH(Selection_Hide2!$A218, 'Full set Core Client Indicator'!$A$3:$A$351, 0), MATCH(Selection_Hide2!K$5, 'Full set Core Client Indicator'!$A$3:$AB$3, 0))=\"\", \"\",  INDEX('Full set Core Client Indicator'!$A$3:$AB$351, MATCH(Selection_Hide2!$A218, 'Full set Core Client Indicator'!$A$3:$A$351, 0), MATCH(Selection_Hide2!K$5, 'Full set Core Client Indicator'!$A$3:$AB$3, 0))), \"\")","v":""},{"$f":"IF(K218<>\"\", IF(INDEX('Full set Core Client Indicator'!$A$3:$AB$351, MATCH(Selection_Hide2!$A218, 'Full set Core Client Indicator'!$A$3:$A$351, 0), MATCH(Selection_Hide2!L$5, 'Full set Core Client Indicator'!$A$3:$AB$3, 0))=\"\", \"\",  INDEX('Full set Core Client Indicator'!$A$3:$AB$351, MATCH(Selection_Hide2!$A218, 'Full set Core Client Indicator'!$A$3:$A$351, 0), MATCH(Selection_Hide2!L$5, 'Full set Core Client Indicator'!$A$3:$AB$3, 0))), \"\")","v":""},{"$f":"IF(L218<>\"\", IF(INDEX('Full set Core Client Indicator'!$A$3:$AB$351, MATCH(Selection_Hide2!$A218, 'Full set Core Client Indicator'!$A$3:$A$351, 0), MATCH(Selection_Hide2!M$5, 'Full set Core Client Indicator'!$A$3:$AB$3, 0))=\"\", \"\",  INDEX('Full set Core Client Indicator'!$A$3:$AB$351, MATCH(Selection_Hide2!$A218, 'Full set Core Client Indicator'!$A$3:$A$351, 0), MATCH(Selection_Hide2!M$5, 'Full set Core Client Indicator'!$A$3:$AB$3, 0))), \"\")","v":""},{"$f":"IF(M218<>\"\", IF(INDEX('Full set Core Client Indicator'!$A$3:$AB$351, MATCH(Selection_Hide2!$A218, 'Full set Core Client Indicator'!$A$3:$A$351, 0), MATCH(Selection_Hide2!N$5, 'Full set Core Client Indicator'!$A$3:$AB$3, 0))=\"\", \"\",  INDEX('Full set Core Client Indicator'!$A$3:$AB$351, MATCH(Selection_Hide2!$A218, 'Full set Core Client Indicator'!$A$3:$A$351, 0), MATCH(Selection_Hide2!N$5, 'Full set Core Client Indicator'!$A$3:$AB$3, 0))), \"\")","v":""},{"$f":"IF(N218<>\"\", IF(INDEX('Full set Core Client Indicator'!$A$3:$AB$351, MATCH(Selection_Hide2!$A218, 'Full set Core Client Indicator'!$A$3:$A$351, 0), MATCH(Selection_Hide2!O$5, 'Full set Core Client Indicator'!$A$3:$AB$3, 0))=\"\", \"\",  INDEX('Full set Core Client Indicator'!$A$3:$AB$351, MATCH(Selection_Hide2!$A218, 'Full set Core Client Indicator'!$A$3:$A$351, 0), MATCH(Selection_Hide2!O$5, 'Full set Core Client Indicator'!$A$3:$AB$3, 0))), \"\")","v":""},{"$f":"IF(O218<>\"\", IF(INDEX('Full set Core Client Indicator'!$A$3:$AB$351, MATCH(Selection_Hide2!$A218, 'Full set Core Client Indicator'!$A$3:$A$351, 0), MATCH(Selection_Hide2!P$5, 'Full set Core Client Indicator'!$A$3:$AB$3, 0))=\"\", \"\",  INDEX('Full set Core Client Indicator'!$A$3:$AB$351, MATCH(Selection_Hide2!$A218, 'Full set Core Client Indicator'!$A$3:$A$351, 0), MATCH(Selection_Hide2!P$5, 'Full set Core Client Indicator'!$A$3:$AB$3, 0))), \"\")","v":""},{"$f":"IF(P218<>\"\", IF(INDEX('Full set Core Client Indicator'!$A$3:$AB$351, MATCH(Selection_Hide2!$A218, 'Full set Core Client Indicator'!$A$3:$A$351, 0), MATCH(Selection_Hide2!Q$5, 'Full set Core Client Indicator'!$A$3:$AB$3, 0))=\"\", \"\",  INDEX('Full set Core Client Indicator'!$A$3:$AB$351, MATCH(Selection_Hide2!$A218, 'Full set Core Client Indicator'!$A$3:$A$351, 0), MATCH(Selection_Hide2!Q$5, 'Full set Core Client Indicator'!$A$3:$AB$3, 0))), \"\")","v":""},{"$f":"IF(Q218<>\"\", IF(INDEX('Full set Core Client Indicator'!$A$3:$AB$351, MATCH(Selection_Hide2!$A218, 'Full set Core Client Indicator'!$A$3:$A$351, 0), MATCH(Selection_Hide2!R$5, 'Full set Core Client Indicator'!$A$3:$AB$3, 0))=\"\", \"\",  INDEX('Full set Core Client Indicator'!$A$3:$AB$351, MATCH(Selection_Hide2!$A218, 'Full set Core Client Indicator'!$A$3:$A$351, 0), MATCH(Selection_Hide2!R$5, 'Full set Core Client Indicator'!$A$3:$AB$3, 0))), \"\")","v":""},{"$f":"IF(R218<>\"\", IF(INDEX('Full set Core Client Indicator'!$A$3:$AB$351, MATCH(Selection_Hide2!$A218, 'Full set Core Client Indicator'!$A$3:$A$351, 0), MATCH(Selection_Hide2!S$5, 'Full set Core Client Indicator'!$A$3:$AB$3, 0))=\"\", \"\",  INDEX('Full set Core Client Indicator'!$A$3:$AB$351, MATCH(Selection_Hide2!$A218, 'Full set Core Client Indicator'!$A$3:$A$351, 0), MATCH(Selection_Hide2!S$5, 'Full set Core Client Indicator'!$A$3:$AB$3, 0))), \"\")","v":""},{"$f":"IF(S218<>\"\", IF(INDEX('Full set Core Client Indicator'!$A$3:$AB$351, MATCH(Selection_Hide2!$A218, 'Full set Core Client Indicator'!$A$3:$A$351, 0), MATCH(Selection_Hide2!T$5, 'Full set Core Client Indicator'!$A$3:$AB$3, 0))=\"\", \"\",  INDEX('Full set Core Client Indicator'!$A$3:$AB$351, MATCH(Selection_Hide2!$A218, 'Full set Core Client Indicator'!$A$3:$A$351, 0), MATCH(Selection_Hide2!T$5, 'Full set Core Client Indicator'!$A$3:$AB$3, 0))), \"\")","v":""},{"$f":"IF(T218<>\"\", IF(INDEX('Full set Core Client Indicator'!$A$3:$AB$351, MATCH(Selection_Hide2!$A218, 'Full set Core Client Indicator'!$A$3:$A$351, 0), MATCH(Selection_Hide2!U$5, 'Full set Core Client Indicator'!$A$3:$AB$3, 0))=\"\", \"\",  INDEX('Full set Core Client Indicator'!$A$3:$AB$351, MATCH(Selection_Hide2!$A218, 'Full set Core Client Indicator'!$A$3:$A$351, 0), MATCH(Selection_Hide2!U$5, 'Full set Core Client Indicator'!$A$3:$AB$3, 0))), \"\")","v":""},{"$f":"IF(U218<>\"\", IF(INDEX('Full set Core Client Indicator'!$A$3:$AB$351, MATCH(Selection_Hide2!$A218, 'Full set Core Client Indicator'!$A$3:$A$351, 0), MATCH(Selection_Hide2!V$5, 'Full set Core Client Indicator'!$A$3:$AB$3, 0))=\"\", \"\",  INDEX('Full set Core Client Indicator'!$A$3:$AB$351, MATCH(Selection_Hide2!$A218, 'Full set Core Client Indicator'!$A$3:$A$351, 0), MATCH(Selection_Hide2!V$5, 'Full set Core Client Indicator'!$A$3:$AB$3, 0))), \"\")","v":""},{"$f":"IF(V218<>\"\", IF(INDEX('Full set Core Client Indicator'!$A$3:$AB$351, MATCH(Selection_Hide2!$A218, 'Full set Core Client Indicator'!$A$3:$A$351, 0), MATCH(Selection_Hide2!W$5, 'Full set Core Client Indicator'!$A$3:$AB$3, 0))=\"\", \"\",  INDEX('Full set Core Client Indicator'!$A$3:$AB$351, MATCH(Selection_Hide2!$A218, 'Full set Core Client Indicator'!$A$3:$A$351, 0), MATCH(Selection_Hide2!W$5, 'Full set Core Client Indicator'!$A$3:$AB$3, 0))), \"\")","v":""},{"$f":"IF(W218<>\"\", IF(INDEX('Full set Core Client Indicator'!$A$3:$AB$351, MATCH(Selection_Hide2!$A218, 'Full set Core Client Indicator'!$A$3:$A$351, 0), MATCH(Selection_Hide2!X$5, 'Full set Core Client Indicator'!$A$3:$AB$3, 0))=\"\", \"\",  INDEX('Full set Core Client Indicator'!$A$3:$AB$351, MATCH(Selection_Hide2!$A218, 'Full set Core Client Indicator'!$A$3:$A$351, 0), MATCH(Selection_Hide2!X$5, 'Full set Core Client Indicator'!$A$3:$AB$3, 0))), \"\")","v":""},{"$f":"IF(X218<>\"\", IF(INDEX('Full set Core Client Indicator'!$A$3:$AB$351, MATCH(Selection_Hide2!$A218, 'Full set Core Client Indicator'!$A$3:$A$351, 0), MATCH(Selection_Hide2!Y$5, 'Full set Core Client Indicator'!$A$3:$AB$3, 0))=\"\", \"\",  INDEX('Full set Core Client Indicator'!$A$3:$AB$351, MATCH(Selection_Hide2!$A218, 'Full set Core Client Indicator'!$A$3:$A$351, 0), MATCH(Selection_Hide2!Y$5, 'Full set Core Client Indicator'!$A$3:$AB$3, 0))), \"\")","v":""},{"$f":"IF(Y218<>\"\", IF(INDEX('Full set Core Client Indicator'!$A$3:$AB$351, MATCH(Selection_Hide2!$A218, 'Full set Core Client Indicator'!$A$3:$A$351, 0), MATCH(Selection_Hide2!Z$5, 'Full set Core Client Indicator'!$A$3:$AB$3, 0))=\"\", \"\",  INDEX('Full set Core Client Indicator'!$A$3:$AB$351, MATCH(Selection_Hide2!$A218, 'Full set Core Client Indicator'!$A$3:$A$351, 0), MATCH(Selection_Hide2!Z$5, 'Full set Core Client Indicator'!$A$3:$AB$3, 0))), \"\")","v":""},{"$f":"IF(Z218<>\"\", IF(INDEX('Full set Core Client Indicator'!$A$3:$AB$351, MATCH(Selection_Hide2!$A218, 'Full set Core Client Indicator'!$A$3:$A$351, 0), MATCH(Selection_Hide2!AA$5, 'Full set Core Client Indicator'!$A$3:$AB$3, 0))=\"\", \"\",  INDEX('Full set Core Client Indicator'!$A$3:$AB$351, MATCH(Selection_Hide2!$A218, 'Full set Core Client Indicator'!$A$3:$A$351, 0), MATCH(Selection_Hide2!AA$5, 'Full set Core Client Indicator'!$A$3:$AB$3, 0))), \"\")","v":""},{"$f":"IF(AA218<>\"\", IF(INDEX('Full set Core Client Indicator'!$A$3:$AB$351, MATCH(Selection_Hide2!$A218, 'Full set Core Client Indicator'!$A$3:$A$351, 0), MATCH(Selection_Hide2!AB$5, 'Full set Core Client Indicator'!$A$3:$AB$3, 0))=\"\", \"\",  INDEX('Full set Core Client Indicator'!$A$3:$AB$351, MATCH(Selection_Hide2!$A218, 'Full set Core Client Indicator'!$A$3:$A$351, 0), MATCH(Selection_Hide2!AB$5, 'Full set Core Client Indicator'!$A$3:$AB$3, 0))), \"\")","v":""}]
[{"$f":"IF(AND(Selection_Hide1!C217<>0, Selection_Hide1!C217<>\"Grand Total\"), Selection_Hide1!C217, \"\")","v":""},{"$f":"IF(A219<>\"\", IF(INDEX('Full set Core Client Indicator'!$A$3:$AB$351, MATCH(Selection_Hide2!$A219, 'Full set Core Client Indicator'!$A$3:$A$351, 0), MATCH(Selection_Hide2!B$5, 'Full set Core Client Indicator'!$A$3:$AB$3, 0))=\"\", \"\",  INDEX('Full set Core Client Indicator'!$A$3:$AB$351, MATCH(Selection_Hide2!$A219, 'Full set Core Client Indicator'!$A$3:$A$351, 0), MATCH(Selection_Hide2!B$5, 'Full set Core Client Indicator'!$A$3:$AB$3, 0))), \"\")","v":""},{"$f":"IF(B219<>\"\", IF(INDEX('Full set Core Client Indicator'!$A$3:$AB$351, MATCH(Selection_Hide2!$A219, 'Full set Core Client Indicator'!$A$3:$A$351, 0), MATCH(Selection_Hide2!C$5, 'Full set Core Client Indicator'!$A$3:$AB$3, 0))=\"\", \"\",  INDEX('Full set Core Client Indicator'!$A$3:$AB$351, MATCH(Selection_Hide2!$A219, 'Full set Core Client Indicator'!$A$3:$A$351, 0), MATCH(Selection_Hide2!C$5, 'Full set Core Client Indicator'!$A$3:$AB$3, 0))), \"\")","v":""},{"$f":"IF(C219<>\"\", IF(INDEX('Full set Core Client Indicator'!$A$3:$AB$351, MATCH(Selection_Hide2!$A219, 'Full set Core Client Indicator'!$A$3:$A$351, 0), MATCH(Selection_Hide2!D$5, 'Full set Core Client Indicator'!$A$3:$AB$3, 0))=\"\", \"\",  INDEX('Full set Core Client Indicator'!$A$3:$AB$351, MATCH(Selection_Hide2!$A219, 'Full set Core Client Indicator'!$A$3:$A$351, 0), MATCH(Selection_Hide2!D$5, 'Full set Core Client Indicator'!$A$3:$AB$3, 0))), \"\")","v":""},{"$f":"IF(D219<>\"\", IF(INDEX('Full set Core Client Indicator'!$A$3:$AB$351, MATCH(Selection_Hide2!$A219, 'Full set Core Client Indicator'!$A$3:$A$351, 0), MATCH(Selection_Hide2!E$5, 'Full set Core Client Indicator'!$A$3:$AB$3, 0))=\"\", \"\",  INDEX('Full set Core Client Indicator'!$A$3:$AB$351, MATCH(Selection_Hide2!$A219, 'Full set Core Client Indicator'!$A$3:$A$351, 0), MATCH(Selection_Hide2!E$5, 'Full set Core Client Indicator'!$A$3:$AB$3, 0))), \"\")","v":""},{"$f":"IF(E219<>\"\", IF(INDEX('Full set Core Client Indicator'!$A$3:$AB$351, MATCH(Selection_Hide2!$A219, 'Full set Core Client Indicator'!$A$3:$A$351, 0), MATCH(Selection_Hide2!F$5, 'Full set Core Client Indicator'!$A$3:$AB$3, 0))=\"\", \"\",  INDEX('Full set Core Client Indicator'!$A$3:$AB$351, MATCH(Selection_Hide2!$A219, 'Full set Core Client Indicator'!$A$3:$A$351, 0), MATCH(Selection_Hide2!F$5, 'Full set Core Client Indicator'!$A$3:$AB$3, 0))), \"\")","v":""},{"$f":"IF(F219<>\"\", IF(INDEX('Full set Core Client Indicator'!$A$3:$AB$351, MATCH(Selection_Hide2!$A219, 'Full set Core Client Indicator'!$A$3:$A$351, 0), MATCH(Selection_Hide2!G$5, 'Full set Core Client Indicator'!$A$3:$AB$3, 0))=\"\", \"\",  INDEX('Full set Core Client Indicator'!$A$3:$AB$351, MATCH(Selection_Hide2!$A219, 'Full set Core Client Indicator'!$A$3:$A$351, 0), MATCH(Selection_Hide2!G$5, 'Full set Core Client Indicator'!$A$3:$AB$3, 0))), \"\")","v":""},{"$f":"IF(G219<>\"\", IF(INDEX('Full set Core Client Indicator'!$A$3:$AB$351, MATCH(Selection_Hide2!$A219, 'Full set Core Client Indicator'!$A$3:$A$351, 0), MATCH(Selection_Hide2!H$5, 'Full set Core Client Indicator'!$A$3:$AB$3, 0))=\"\", \"\",  INDEX('Full set Core Client Indicator'!$A$3:$AB$351, MATCH(Selection_Hide2!$A219, 'Full set Core Client Indicator'!$A$3:$A$351, 0), MATCH(Selection_Hide2!H$5, 'Full set Core Client Indicator'!$A$3:$AB$3, 0))), \"\")","v":""},{"$f":"IF(H219<>\"\", IF(INDEX('Full set Core Client Indicator'!$A$3:$AB$351, MATCH(Selection_Hide2!$A219, 'Full set Core Client Indicator'!$A$3:$A$351, 0), MATCH(Selection_Hide2!I$5, 'Full set Core Client Indicator'!$A$3:$AB$3, 0))=\"\", \"\",  INDEX('Full set Core Client Indicator'!$A$3:$AB$351, MATCH(Selection_Hide2!$A219, 'Full set Core Client Indicator'!$A$3:$A$351, 0), MATCH(Selection_Hide2!I$5, 'Full set Core Client Indicator'!$A$3:$AB$3, 0))), \"\")","v":""},{"$f":"IF(I219<>\"\", IF(INDEX('Full set Core Client Indicator'!$A$3:$AB$351, MATCH(Selection_Hide2!$A219, 'Full set Core Client Indicator'!$A$3:$A$351, 0), MATCH(Selection_Hide2!J$5, 'Full set Core Client Indicator'!$A$3:$AB$3, 0))=\"\", \"\",  INDEX('Full set Core Client Indicator'!$A$3:$AB$351, MATCH(Selection_Hide2!$A219, 'Full set Core Client Indicator'!$A$3:$A$351, 0), MATCH(Selection_Hide2!J$5, 'Full set Core Client Indicator'!$A$3:$AB$3, 0))), \"\")","v":""},{"$f":"IF(J219<>\"\", IF(INDEX('Full set Core Client Indicator'!$A$3:$AB$351, MATCH(Selection_Hide2!$A219, 'Full set Core Client Indicator'!$A$3:$A$351, 0), MATCH(Selection_Hide2!K$5, 'Full set Core Client Indicator'!$A$3:$AB$3, 0))=\"\", \"\",  INDEX('Full set Core Client Indicator'!$A$3:$AB$351, MATCH(Selection_Hide2!$A219, 'Full set Core Client Indicator'!$A$3:$A$351, 0), MATCH(Selection_Hide2!K$5, 'Full set Core Client Indicator'!$A$3:$AB$3, 0))), \"\")","v":""},{"$f":"IF(K219<>\"\", IF(INDEX('Full set Core Client Indicator'!$A$3:$AB$351, MATCH(Selection_Hide2!$A219, 'Full set Core Client Indicator'!$A$3:$A$351, 0), MATCH(Selection_Hide2!L$5, 'Full set Core Client Indicator'!$A$3:$AB$3, 0))=\"\", \"\",  INDEX('Full set Core Client Indicator'!$A$3:$AB$351, MATCH(Selection_Hide2!$A219, 'Full set Core Client Indicator'!$A$3:$A$351, 0), MATCH(Selection_Hide2!L$5, 'Full set Core Client Indicator'!$A$3:$AB$3, 0))), \"\")","v":""},{"$f":"IF(L219<>\"\", IF(INDEX('Full set Core Client Indicator'!$A$3:$AB$351, MATCH(Selection_Hide2!$A219, 'Full set Core Client Indicator'!$A$3:$A$351, 0), MATCH(Selection_Hide2!M$5, 'Full set Core Client Indicator'!$A$3:$AB$3, 0))=\"\", \"\",  INDEX('Full set Core Client Indicator'!$A$3:$AB$351, MATCH(Selection_Hide2!$A219, 'Full set Core Client Indicator'!$A$3:$A$351, 0), MATCH(Selection_Hide2!M$5, 'Full set Core Client Indicator'!$A$3:$AB$3, 0))), \"\")","v":""},{"$f":"IF(M219<>\"\", IF(INDEX('Full set Core Client Indicator'!$A$3:$AB$351, MATCH(Selection_Hide2!$A219, 'Full set Core Client Indicator'!$A$3:$A$351, 0), MATCH(Selection_Hide2!N$5, 'Full set Core Client Indicator'!$A$3:$AB$3, 0))=\"\", \"\",  INDEX('Full set Core Client Indicator'!$A$3:$AB$351, MATCH(Selection_Hide2!$A219, 'Full set Core Client Indicator'!$A$3:$A$351, 0), MATCH(Selection_Hide2!N$5, 'Full set Core Client Indicator'!$A$3:$AB$3, 0))), \"\")","v":""},{"$f":"IF(N219<>\"\", IF(INDEX('Full set Core Client Indicator'!$A$3:$AB$351, MATCH(Selection_Hide2!$A219, 'Full set Core Client Indicator'!$A$3:$A$351, 0), MATCH(Selection_Hide2!O$5, 'Full set Core Client Indicator'!$A$3:$AB$3, 0))=\"\", \"\",  INDEX('Full set Core Client Indicator'!$A$3:$AB$351, MATCH(Selection_Hide2!$A219, 'Full set Core Client Indicator'!$A$3:$A$351, 0), MATCH(Selection_Hide2!O$5, 'Full set Core Client Indicator'!$A$3:$AB$3, 0))), \"\")","v":""},{"$f":"IF(O219<>\"\", IF(INDEX('Full set Core Client Indicator'!$A$3:$AB$351, MATCH(Selection_Hide2!$A219, 'Full set Core Client Indicator'!$A$3:$A$351, 0), MATCH(Selection_Hide2!P$5, 'Full set Core Client Indicator'!$A$3:$AB$3, 0))=\"\", \"\",  INDEX('Full set Core Client Indicator'!$A$3:$AB$351, MATCH(Selection_Hide2!$A219, 'Full set Core Client Indicator'!$A$3:$A$351, 0), MATCH(Selection_Hide2!P$5, 'Full set Core Client Indicator'!$A$3:$AB$3, 0))), \"\")","v":""},{"$f":"IF(P219<>\"\", IF(INDEX('Full set Core Client Indicator'!$A$3:$AB$351, MATCH(Selection_Hide2!$A219, 'Full set Core Client Indicator'!$A$3:$A$351, 0), MATCH(Selection_Hide2!Q$5, 'Full set Core Client Indicator'!$A$3:$AB$3, 0))=\"\", \"\",  INDEX('Full set Core Client Indicator'!$A$3:$AB$351, MATCH(Selection_Hide2!$A219, 'Full set Core Client Indicator'!$A$3:$A$351, 0), MATCH(Selection_Hide2!Q$5, 'Full set Core Client Indicator'!$A$3:$AB$3, 0))), \"\")","v":""},{"$f":"IF(Q219<>\"\", IF(INDEX('Full set Core Client Indicator'!$A$3:$AB$351, MATCH(Selection_Hide2!$A219, 'Full set Core Client Indicator'!$A$3:$A$351, 0), MATCH(Selection_Hide2!R$5, 'Full set Core Client Indicator'!$A$3:$AB$3, 0))=\"\", \"\",  INDEX('Full set Core Client Indicator'!$A$3:$AB$351, MATCH(Selection_Hide2!$A219, 'Full set Core Client Indicator'!$A$3:$A$351, 0), MATCH(Selection_Hide2!R$5, 'Full set Core Client Indicator'!$A$3:$AB$3, 0))), \"\")","v":""},{"$f":"IF(R219<>\"\", IF(INDEX('Full set Core Client Indicator'!$A$3:$AB$351, MATCH(Selection_Hide2!$A219, 'Full set Core Client Indicator'!$A$3:$A$351, 0), MATCH(Selection_Hide2!S$5, 'Full set Core Client Indicator'!$A$3:$AB$3, 0))=\"\", \"\",  INDEX('Full set Core Client Indicator'!$A$3:$AB$351, MATCH(Selection_Hide2!$A219, 'Full set Core Client Indicator'!$A$3:$A$351, 0), MATCH(Selection_Hide2!S$5, 'Full set Core Client Indicator'!$A$3:$AB$3, 0))), \"\")","v":""},{"$f":"IF(S219<>\"\", IF(INDEX('Full set Core Client Indicator'!$A$3:$AB$351, MATCH(Selection_Hide2!$A219, 'Full set Core Client Indicator'!$A$3:$A$351, 0), MATCH(Selection_Hide2!T$5, 'Full set Core Client Indicator'!$A$3:$AB$3, 0))=\"\", \"\",  INDEX('Full set Core Client Indicator'!$A$3:$AB$351, MATCH(Selection_Hide2!$A219, 'Full set Core Client Indicator'!$A$3:$A$351, 0), MATCH(Selection_Hide2!T$5, 'Full set Core Client Indicator'!$A$3:$AB$3, 0))), \"\")","v":""},{"$f":"IF(T219<>\"\", IF(INDEX('Full set Core Client Indicator'!$A$3:$AB$351, MATCH(Selection_Hide2!$A219, 'Full set Core Client Indicator'!$A$3:$A$351, 0), MATCH(Selection_Hide2!U$5, 'Full set Core Client Indicator'!$A$3:$AB$3, 0))=\"\", \"\",  INDEX('Full set Core Client Indicator'!$A$3:$AB$351, MATCH(Selection_Hide2!$A219, 'Full set Core Client Indicator'!$A$3:$A$351, 0), MATCH(Selection_Hide2!U$5, 'Full set Core Client Indicator'!$A$3:$AB$3, 0))), \"\")","v":""},{"$f":"IF(U219<>\"\", IF(INDEX('Full set Core Client Indicator'!$A$3:$AB$351, MATCH(Selection_Hide2!$A219, 'Full set Core Client Indicator'!$A$3:$A$351, 0), MATCH(Selection_Hide2!V$5, 'Full set Core Client Indicator'!$A$3:$AB$3, 0))=\"\", \"\",  INDEX('Full set Core Client Indicator'!$A$3:$AB$351, MATCH(Selection_Hide2!$A219, 'Full set Core Client Indicator'!$A$3:$A$351, 0), MATCH(Selection_Hide2!V$5, 'Full set Core Client Indicator'!$A$3:$AB$3, 0))), \"\")","v":""},{"$f":"IF(V219<>\"\", IF(INDEX('Full set Core Client Indicator'!$A$3:$AB$351, MATCH(Selection_Hide2!$A219, 'Full set Core Client Indicator'!$A$3:$A$351, 0), MATCH(Selection_Hide2!W$5, 'Full set Core Client Indicator'!$A$3:$AB$3, 0))=\"\", \"\",  INDEX('Full set Core Client Indicator'!$A$3:$AB$351, MATCH(Selection_Hide2!$A219, 'Full set Core Client Indicator'!$A$3:$A$351, 0), MATCH(Selection_Hide2!W$5, 'Full set Core Client Indicator'!$A$3:$AB$3, 0))), \"\")","v":""},{"$f":"IF(W219<>\"\", IF(INDEX('Full set Core Client Indicator'!$A$3:$AB$351, MATCH(Selection_Hide2!$A219, 'Full set Core Client Indicator'!$A$3:$A$351, 0), MATCH(Selection_Hide2!X$5, 'Full set Core Client Indicator'!$A$3:$AB$3, 0))=\"\", \"\",  INDEX('Full set Core Client Indicator'!$A$3:$AB$351, MATCH(Selection_Hide2!$A219, 'Full set Core Client Indicator'!$A$3:$A$351, 0), MATCH(Selection_Hide2!X$5, 'Full set Core Client Indicator'!$A$3:$AB$3, 0))), \"\")","v":""},{"$f":"IF(X219<>\"\", IF(INDEX('Full set Core Client Indicator'!$A$3:$AB$351, MATCH(Selection_Hide2!$A219, 'Full set Core Client Indicator'!$A$3:$A$351, 0), MATCH(Selection_Hide2!Y$5, 'Full set Core Client Indicator'!$A$3:$AB$3, 0))=\"\", \"\",  INDEX('Full set Core Client Indicator'!$A$3:$AB$351, MATCH(Selection_Hide2!$A219, 'Full set Core Client Indicator'!$A$3:$A$351, 0), MATCH(Selection_Hide2!Y$5, 'Full set Core Client Indicator'!$A$3:$AB$3, 0))), \"\")","v":""},{"$f":"IF(Y219<>\"\", IF(INDEX('Full set Core Client Indicator'!$A$3:$AB$351, MATCH(Selection_Hide2!$A219, 'Full set Core Client Indicator'!$A$3:$A$351, 0), MATCH(Selection_Hide2!Z$5, 'Full set Core Client Indicator'!$A$3:$AB$3, 0))=\"\", \"\",  INDEX('Full set Core Client Indicator'!$A$3:$AB$351, MATCH(Selection_Hide2!$A219, 'Full set Core Client Indicator'!$A$3:$A$351, 0), MATCH(Selection_Hide2!Z$5, 'Full set Core Client Indicator'!$A$3:$AB$3, 0))), \"\")","v":""},{"$f":"IF(Z219<>\"\", IF(INDEX('Full set Core Client Indicator'!$A$3:$AB$351, MATCH(Selection_Hide2!$A219, 'Full set Core Client Indicator'!$A$3:$A$351, 0), MATCH(Selection_Hide2!AA$5, 'Full set Core Client Indicator'!$A$3:$AB$3, 0))=\"\", \"\",  INDEX('Full set Core Client Indicator'!$A$3:$AB$351, MATCH(Selection_Hide2!$A219, 'Full set Core Client Indicator'!$A$3:$A$351, 0), MATCH(Selection_Hide2!AA$5, 'Full set Core Client Indicator'!$A$3:$AB$3, 0))), \"\")","v":""},{"$f":"IF(AA219<>\"\", IF(INDEX('Full set Core Client Indicator'!$A$3:$AB$351, MATCH(Selection_Hide2!$A219, 'Full set Core Client Indicator'!$A$3:$A$351, 0), MATCH(Selection_Hide2!AB$5, 'Full set Core Client Indicator'!$A$3:$AB$3, 0))=\"\", \"\",  INDEX('Full set Core Client Indicator'!$A$3:$AB$351, MATCH(Selection_Hide2!$A219, 'Full set Core Client Indicator'!$A$3:$A$351, 0), MATCH(Selection_Hide2!AB$5, 'Full set Core Client Indicator'!$A$3:$AB$3, 0))), \"\")","v":""}]
[{"$f":"IF(AND(Selection_Hide1!C218<>0, Selection_Hide1!C218<>\"Grand Total\"), Selection_Hide1!C218, \"\")","v":""},{"$f":"IF(A220<>\"\", IF(INDEX('Full set Core Client Indicator'!$A$3:$AB$351, MATCH(Selection_Hide2!$A220, 'Full set Core Client Indicator'!$A$3:$A$351, 0), MATCH(Selection_Hide2!B$5, 'Full set Core Client Indicator'!$A$3:$AB$3, 0))=\"\", \"\",  INDEX('Full set Core Client Indicator'!$A$3:$AB$351, MATCH(Selection_Hide2!$A220, 'Full set Core Client Indicator'!$A$3:$A$351, 0), MATCH(Selection_Hide2!B$5, 'Full set Core Client Indicator'!$A$3:$AB$3, 0))), \"\")","v":""},{"$f":"IF(B220<>\"\", IF(INDEX('Full set Core Client Indicator'!$A$3:$AB$351, MATCH(Selection_Hide2!$A220, 'Full set Core Client Indicator'!$A$3:$A$351, 0), MATCH(Selection_Hide2!C$5, 'Full set Core Client Indicator'!$A$3:$AB$3, 0))=\"\", \"\",  INDEX('Full set Core Client Indicator'!$A$3:$AB$351, MATCH(Selection_Hide2!$A220, 'Full set Core Client Indicator'!$A$3:$A$351, 0), MATCH(Selection_Hide2!C$5, 'Full set Core Client Indicator'!$A$3:$AB$3, 0))), \"\")","v":""},{"$f":"IF(C220<>\"\", IF(INDEX('Full set Core Client Indicator'!$A$3:$AB$351, MATCH(Selection_Hide2!$A220, 'Full set Core Client Indicator'!$A$3:$A$351, 0), MATCH(Selection_Hide2!D$5, 'Full set Core Client Indicator'!$A$3:$AB$3, 0))=\"\", \"\",  INDEX('Full set Core Client Indicator'!$A$3:$AB$351, MATCH(Selection_Hide2!$A220, 'Full set Core Client Indicator'!$A$3:$A$351, 0), MATCH(Selection_Hide2!D$5, 'Full set Core Client Indicator'!$A$3:$AB$3, 0))), \"\")","v":""},{"$f":"IF(D220<>\"\", IF(INDEX('Full set Core Client Indicator'!$A$3:$AB$351, MATCH(Selection_Hide2!$A220, 'Full set Core Client Indicator'!$A$3:$A$351, 0), MATCH(Selection_Hide2!E$5, 'Full set Core Client Indicator'!$A$3:$AB$3, 0))=\"\", \"\",  INDEX('Full set Core Client Indicator'!$A$3:$AB$351, MATCH(Selection_Hide2!$A220, 'Full set Core Client Indicator'!$A$3:$A$351, 0), MATCH(Selection_Hide2!E$5, 'Full set Core Client Indicator'!$A$3:$AB$3, 0))), \"\")","v":""},{"$f":"IF(E220<>\"\", IF(INDEX('Full set Core Client Indicator'!$A$3:$AB$351, MATCH(Selection_Hide2!$A220, 'Full set Core Client Indicator'!$A$3:$A$351, 0), MATCH(Selection_Hide2!F$5, 'Full set Core Client Indicator'!$A$3:$AB$3, 0))=\"\", \"\",  INDEX('Full set Core Client Indicator'!$A$3:$AB$351, MATCH(Selection_Hide2!$A220, 'Full set Core Client Indicator'!$A$3:$A$351, 0), MATCH(Selection_Hide2!F$5, 'Full set Core Client Indicator'!$A$3:$AB$3, 0))), \"\")","v":""},{"$f":"IF(F220<>\"\", IF(INDEX('Full set Core Client Indicator'!$A$3:$AB$351, MATCH(Selection_Hide2!$A220, 'Full set Core Client Indicator'!$A$3:$A$351, 0), MATCH(Selection_Hide2!G$5, 'Full set Core Client Indicator'!$A$3:$AB$3, 0))=\"\", \"\",  INDEX('Full set Core Client Indicator'!$A$3:$AB$351, MATCH(Selection_Hide2!$A220, 'Full set Core Client Indicator'!$A$3:$A$351, 0), MATCH(Selection_Hide2!G$5, 'Full set Core Client Indicator'!$A$3:$AB$3, 0))), \"\")","v":""},{"$f":"IF(G220<>\"\", IF(INDEX('Full set Core Client Indicator'!$A$3:$AB$351, MATCH(Selection_Hide2!$A220, 'Full set Core Client Indicator'!$A$3:$A$351, 0), MATCH(Selection_Hide2!H$5, 'Full set Core Client Indicator'!$A$3:$AB$3, 0))=\"\", \"\",  INDEX('Full set Core Client Indicator'!$A$3:$AB$351, MATCH(Selection_Hide2!$A220, 'Full set Core Client Indicator'!$A$3:$A$351, 0), MATCH(Selection_Hide2!H$5, 'Full set Core Client Indicator'!$A$3:$AB$3, 0))), \"\")","v":""},{"$f":"IF(H220<>\"\", IF(INDEX('Full set Core Client Indicator'!$A$3:$AB$351, MATCH(Selection_Hide2!$A220, 'Full set Core Client Indicator'!$A$3:$A$351, 0), MATCH(Selection_Hide2!I$5, 'Full set Core Client Indicator'!$A$3:$AB$3, 0))=\"\", \"\",  INDEX('Full set Core Client Indicator'!$A$3:$AB$351, MATCH(Selection_Hide2!$A220, 'Full set Core Client Indicator'!$A$3:$A$351, 0), MATCH(Selection_Hide2!I$5, 'Full set Core Client Indicator'!$A$3:$AB$3, 0))), \"\")","v":""},{"$f":"IF(I220<>\"\", IF(INDEX('Full set Core Client Indicator'!$A$3:$AB$351, MATCH(Selection_Hide2!$A220, 'Full set Core Client Indicator'!$A$3:$A$351, 0), MATCH(Selection_Hide2!J$5, 'Full set Core Client Indicator'!$A$3:$AB$3, 0))=\"\", \"\",  INDEX('Full set Core Client Indicator'!$A$3:$AB$351, MATCH(Selection_Hide2!$A220, 'Full set Core Client Indicator'!$A$3:$A$351, 0), MATCH(Selection_Hide2!J$5, 'Full set Core Client Indicator'!$A$3:$AB$3, 0))), \"\")","v":""},{"$f":"IF(J220<>\"\", IF(INDEX('Full set Core Client Indicator'!$A$3:$AB$351, MATCH(Selection_Hide2!$A220, 'Full set Core Client Indicator'!$A$3:$A$351, 0), MATCH(Selection_Hide2!K$5, 'Full set Core Client Indicator'!$A$3:$AB$3, 0))=\"\", \"\",  INDEX('Full set Core Client Indicator'!$A$3:$AB$351, MATCH(Selection_Hide2!$A220, 'Full set Core Client Indicator'!$A$3:$A$351, 0), MATCH(Selection_Hide2!K$5, 'Full set Core Client Indicator'!$A$3:$AB$3, 0))), \"\")","v":""},{"$f":"IF(K220<>\"\", IF(INDEX('Full set Core Client Indicator'!$A$3:$AB$351, MATCH(Selection_Hide2!$A220, 'Full set Core Client Indicator'!$A$3:$A$351, 0), MATCH(Selection_Hide2!L$5, 'Full set Core Client Indicator'!$A$3:$AB$3, 0))=\"\", \"\",  INDEX('Full set Core Client Indicator'!$A$3:$AB$351, MATCH(Selection_Hide2!$A220, 'Full set Core Client Indicator'!$A$3:$A$351, 0), MATCH(Selection_Hide2!L$5, 'Full set Core Client Indicator'!$A$3:$AB$3, 0))), \"\")","v":""},{"$f":"IF(L220<>\"\", IF(INDEX('Full set Core Client Indicator'!$A$3:$AB$351, MATCH(Selection_Hide2!$A220, 'Full set Core Client Indicator'!$A$3:$A$351, 0), MATCH(Selection_Hide2!M$5, 'Full set Core Client Indicator'!$A$3:$AB$3, 0))=\"\", \"\",  INDEX('Full set Core Client Indicator'!$A$3:$AB$351, MATCH(Selection_Hide2!$A220, 'Full set Core Client Indicator'!$A$3:$A$351, 0), MATCH(Selection_Hide2!M$5, 'Full set Core Client Indicator'!$A$3:$AB$3, 0))), \"\")","v":""},{"$f":"IF(M220<>\"\", IF(INDEX('Full set Core Client Indicator'!$A$3:$AB$351, MATCH(Selection_Hide2!$A220, 'Full set Core Client Indicator'!$A$3:$A$351, 0), MATCH(Selection_Hide2!N$5, 'Full set Core Client Indicator'!$A$3:$AB$3, 0))=\"\", \"\",  INDEX('Full set Core Client Indicator'!$A$3:$AB$351, MATCH(Selection_Hide2!$A220, 'Full set Core Client Indicator'!$A$3:$A$351, 0), MATCH(Selection_Hide2!N$5, 'Full set Core Client Indicator'!$A$3:$AB$3, 0))), \"\")","v":""},{"$f":"IF(N220<>\"\", IF(INDEX('Full set Core Client Indicator'!$A$3:$AB$351, MATCH(Selection_Hide2!$A220, 'Full set Core Client Indicator'!$A$3:$A$351, 0), MATCH(Selection_Hide2!O$5, 'Full set Core Client Indicator'!$A$3:$AB$3, 0))=\"\", \"\",  INDEX('Full set Core Client Indicator'!$A$3:$AB$351, MATCH(Selection_Hide2!$A220, 'Full set Core Client Indicator'!$A$3:$A$351, 0), MATCH(Selection_Hide2!O$5, 'Full set Core Client Indicator'!$A$3:$AB$3, 0))), \"\")","v":""},{"$f":"IF(O220<>\"\", IF(INDEX('Full set Core Client Indicator'!$A$3:$AB$351, MATCH(Selection_Hide2!$A220, 'Full set Core Client Indicator'!$A$3:$A$351, 0), MATCH(Selection_Hide2!P$5, 'Full set Core Client Indicator'!$A$3:$AB$3, 0))=\"\", \"\",  INDEX('Full set Core Client Indicator'!$A$3:$AB$351, MATCH(Selection_Hide2!$A220, 'Full set Core Client Indicator'!$A$3:$A$351, 0), MATCH(Selection_Hide2!P$5, 'Full set Core Client Indicator'!$A$3:$AB$3, 0))), \"\")","v":""},{"$f":"IF(P220<>\"\", IF(INDEX('Full set Core Client Indicator'!$A$3:$AB$351, MATCH(Selection_Hide2!$A220, 'Full set Core Client Indicator'!$A$3:$A$351, 0), MATCH(Selection_Hide2!Q$5, 'Full set Core Client Indicator'!$A$3:$AB$3, 0))=\"\", \"\",  INDEX('Full set Core Client Indicator'!$A$3:$AB$351, MATCH(Selection_Hide2!$A220, 'Full set Core Client Indicator'!$A$3:$A$351, 0), MATCH(Selection_Hide2!Q$5, 'Full set Core Client Indicator'!$A$3:$AB$3, 0))), \"\")","v":""},{"$f":"IF(Q220<>\"\", IF(INDEX('Full set Core Client Indicator'!$A$3:$AB$351, MATCH(Selection_Hide2!$A220, 'Full set Core Client Indicator'!$A$3:$A$351, 0), MATCH(Selection_Hide2!R$5, 'Full set Core Client Indicator'!$A$3:$AB$3, 0))=\"\", \"\",  INDEX('Full set Core Client Indicator'!$A$3:$AB$351, MATCH(Selection_Hide2!$A220, 'Full set Core Client Indicator'!$A$3:$A$351, 0), MATCH(Selection_Hide2!R$5, 'Full set Core Client Indicator'!$A$3:$AB$3, 0))), \"\")","v":""},{"$f":"IF(R220<>\"\", IF(INDEX('Full set Core Client Indicator'!$A$3:$AB$351, MATCH(Selection_Hide2!$A220, 'Full set Core Client Indicator'!$A$3:$A$351, 0), MATCH(Selection_Hide2!S$5, 'Full set Core Client Indicator'!$A$3:$AB$3, 0))=\"\", \"\",  INDEX('Full set Core Client Indicator'!$A$3:$AB$351, MATCH(Selection_Hide2!$A220, 'Full set Core Client Indicator'!$A$3:$A$351, 0), MATCH(Selection_Hide2!S$5, 'Full set Core Client Indicator'!$A$3:$AB$3, 0))), \"\")","v":""},{"$f":"IF(S220<>\"\", IF(INDEX('Full set Core Client Indicator'!$A$3:$AB$351, MATCH(Selection_Hide2!$A220, 'Full set Core Client Indicator'!$A$3:$A$351, 0), MATCH(Selection_Hide2!T$5, 'Full set Core Client Indicator'!$A$3:$AB$3, 0))=\"\", \"\",  INDEX('Full set Core Client Indicator'!$A$3:$AB$351, MATCH(Selection_Hide2!$A220, 'Full set Core Client Indicator'!$A$3:$A$351, 0), MATCH(Selection_Hide2!T$5, 'Full set Core Client Indicator'!$A$3:$AB$3, 0))), \"\")","v":""},{"$f":"IF(T220<>\"\", IF(INDEX('Full set Core Client Indicator'!$A$3:$AB$351, MATCH(Selection_Hide2!$A220, 'Full set Core Client Indicator'!$A$3:$A$351, 0), MATCH(Selection_Hide2!U$5, 'Full set Core Client Indicator'!$A$3:$AB$3, 0))=\"\", \"\",  INDEX('Full set Core Client Indicator'!$A$3:$AB$351, MATCH(Selection_Hide2!$A220, 'Full set Core Client Indicator'!$A$3:$A$351, 0), MATCH(Selection_Hide2!U$5, 'Full set Core Client Indicator'!$A$3:$AB$3, 0))), \"\")","v":""},{"$f":"IF(U220<>\"\", IF(INDEX('Full set Core Client Indicator'!$A$3:$AB$351, MATCH(Selection_Hide2!$A220, 'Full set Core Client Indicator'!$A$3:$A$351, 0), MATCH(Selection_Hide2!V$5, 'Full set Core Client Indicator'!$A$3:$AB$3, 0))=\"\", \"\",  INDEX('Full set Core Client Indicator'!$A$3:$AB$351, MATCH(Selection_Hide2!$A220, 'Full set Core Client Indicator'!$A$3:$A$351, 0), MATCH(Selection_Hide2!V$5, 'Full set Core Client Indicator'!$A$3:$AB$3, 0))), \"\")","v":""},{"$f":"IF(V220<>\"\", IF(INDEX('Full set Core Client Indicator'!$A$3:$AB$351, MATCH(Selection_Hide2!$A220, 'Full set Core Client Indicator'!$A$3:$A$351, 0), MATCH(Selection_Hide2!W$5, 'Full set Core Client Indicator'!$A$3:$AB$3, 0))=\"\", \"\",  INDEX('Full set Core Client Indicator'!$A$3:$AB$351, MATCH(Selection_Hide2!$A220, 'Full set Core Client Indicator'!$A$3:$A$351, 0), MATCH(Selection_Hide2!W$5, 'Full set Core Client Indicator'!$A$3:$AB$3, 0))), \"\")","v":""},{"$f":"IF(W220<>\"\", IF(INDEX('Full set Core Client Indicator'!$A$3:$AB$351, MATCH(Selection_Hide2!$A220, 'Full set Core Client Indicator'!$A$3:$A$351, 0), MATCH(Selection_Hide2!X$5, 'Full set Core Client Indicator'!$A$3:$AB$3, 0))=\"\", \"\",  INDEX('Full set Core Client Indicator'!$A$3:$AB$351, MATCH(Selection_Hide2!$A220, 'Full set Core Client Indicator'!$A$3:$A$351, 0), MATCH(Selection_Hide2!X$5, 'Full set Core Client Indicator'!$A$3:$AB$3, 0))), \"\")","v":""},{"$f":"IF(X220<>\"\", IF(INDEX('Full set Core Client Indicator'!$A$3:$AB$351, MATCH(Selection_Hide2!$A220, 'Full set Core Client Indicator'!$A$3:$A$351, 0), MATCH(Selection_Hide2!Y$5, 'Full set Core Client Indicator'!$A$3:$AB$3, 0))=\"\", \"\",  INDEX('Full set Core Client Indicator'!$A$3:$AB$351, MATCH(Selection_Hide2!$A220, 'Full set Core Client Indicator'!$A$3:$A$351, 0), MATCH(Selection_Hide2!Y$5, 'Full set Core Client Indicator'!$A$3:$AB$3, 0))), \"\")","v":""},{"$f":"IF(Y220<>\"\", IF(INDEX('Full set Core Client Indicator'!$A$3:$AB$351, MATCH(Selection_Hide2!$A220, 'Full set Core Client Indicator'!$A$3:$A$351, 0), MATCH(Selection_Hide2!Z$5, 'Full set Core Client Indicator'!$A$3:$AB$3, 0))=\"\", \"\",  INDEX('Full set Core Client Indicator'!$A$3:$AB$351, MATCH(Selection_Hide2!$A220, 'Full set Core Client Indicator'!$A$3:$A$351, 0), MATCH(Selection_Hide2!Z$5, 'Full set Core Client Indicator'!$A$3:$AB$3, 0))), \"\")","v":""},{"$f":"IF(Z220<>\"\", IF(INDEX('Full set Core Client Indicator'!$A$3:$AB$351, MATCH(Selection_Hide2!$A220, 'Full set Core Client Indicator'!$A$3:$A$351, 0), MATCH(Selection_Hide2!AA$5, 'Full set Core Client Indicator'!$A$3:$AB$3, 0))=\"\", \"\",  INDEX('Full set Core Client Indicator'!$A$3:$AB$351, MATCH(Selection_Hide2!$A220, 'Full set Core Client Indicator'!$A$3:$A$351, 0), MATCH(Selection_Hide2!AA$5, 'Full set Core Client Indicator'!$A$3:$AB$3, 0))), \"\")","v":""},{"$f":"IF(AA220<>\"\", IF(INDEX('Full set Core Client Indicator'!$A$3:$AB$351, MATCH(Selection_Hide2!$A220, 'Full set Core Client Indicator'!$A$3:$A$351, 0), MATCH(Selection_Hide2!AB$5, 'Full set Core Client Indicator'!$A$3:$AB$3, 0))=\"\", \"\",  INDEX('Full set Core Client Indicator'!$A$3:$AB$351, MATCH(Selection_Hide2!$A220, 'Full set Core Client Indicator'!$A$3:$A$351, 0), MATCH(Selection_Hide2!AB$5, 'Full set Core Client Indicator'!$A$3:$AB$3, 0))), \"\")","v":""}]
[{"$f":"IF(AND(Selection_Hide1!C219<>0, Selection_Hide1!C219<>\"Grand Total\"), Selection_Hide1!C219, \"\")","v":""},{"$f":"IF(A221<>\"\", IF(INDEX('Full set Core Client Indicator'!$A$3:$AB$351, MATCH(Selection_Hide2!$A221, 'Full set Core Client Indicator'!$A$3:$A$351, 0), MATCH(Selection_Hide2!B$5, 'Full set Core Client Indicator'!$A$3:$AB$3, 0))=\"\", \"\",  INDEX('Full set Core Client Indicator'!$A$3:$AB$351, MATCH(Selection_Hide2!$A221, 'Full set Core Client Indicator'!$A$3:$A$351, 0), MATCH(Selection_Hide2!B$5, 'Full set Core Client Indicator'!$A$3:$AB$3, 0))), \"\")","v":""},{"$f":"IF(B221<>\"\", IF(INDEX('Full set Core Client Indicator'!$A$3:$AB$351, MATCH(Selection_Hide2!$A221, 'Full set Core Client Indicator'!$A$3:$A$351, 0), MATCH(Selection_Hide2!C$5, 'Full set Core Client Indicator'!$A$3:$AB$3, 0))=\"\", \"\",  INDEX('Full set Core Client Indicator'!$A$3:$AB$351, MATCH(Selection_Hide2!$A221, 'Full set Core Client Indicator'!$A$3:$A$351, 0), MATCH(Selection_Hide2!C$5, 'Full set Core Client Indicator'!$A$3:$AB$3, 0))), \"\")","v":""},{"$f":"IF(C221<>\"\", IF(INDEX('Full set Core Client Indicator'!$A$3:$AB$351, MATCH(Selection_Hide2!$A221, 'Full set Core Client Indicator'!$A$3:$A$351, 0), MATCH(Selection_Hide2!D$5, 'Full set Core Client Indicator'!$A$3:$AB$3, 0))=\"\", \"\",  INDEX('Full set Core Client Indicator'!$A$3:$AB$351, MATCH(Selection_Hide2!$A221, 'Full set Core Client Indicator'!$A$3:$A$351, 0), MATCH(Selection_Hide2!D$5, 'Full set Core Client Indicator'!$A$3:$AB$3, 0))), \"\")","v":""},{"$f":"IF(D221<>\"\", IF(INDEX('Full set Core Client Indicator'!$A$3:$AB$351, MATCH(Selection_Hide2!$A221, 'Full set Core Client Indicator'!$A$3:$A$351, 0), MATCH(Selection_Hide2!E$5, 'Full set Core Client Indicator'!$A$3:$AB$3, 0))=\"\", \"\",  INDEX('Full set Core Client Indicator'!$A$3:$AB$351, MATCH(Selection_Hide2!$A221, 'Full set Core Client Indicator'!$A$3:$A$351, 0), MATCH(Selection_Hide2!E$5, 'Full set Core Client Indicator'!$A$3:$AB$3, 0))), \"\")","v":""},{"$f":"IF(E221<>\"\", IF(INDEX('Full set Core Client Indicator'!$A$3:$AB$351, MATCH(Selection_Hide2!$A221, 'Full set Core Client Indicator'!$A$3:$A$351, 0), MATCH(Selection_Hide2!F$5, 'Full set Core Client Indicator'!$A$3:$AB$3, 0))=\"\", \"\",  INDEX('Full set Core Client Indicator'!$A$3:$AB$351, MATCH(Selection_Hide2!$A221, 'Full set Core Client Indicator'!$A$3:$A$351, 0), MATCH(Selection_Hide2!F$5, 'Full set Core Client Indicator'!$A$3:$AB$3, 0))), \"\")","v":""},{"$f":"IF(F221<>\"\", IF(INDEX('Full set Core Client Indicator'!$A$3:$AB$351, MATCH(Selection_Hide2!$A221, 'Full set Core Client Indicator'!$A$3:$A$351, 0), MATCH(Selection_Hide2!G$5, 'Full set Core Client Indicator'!$A$3:$AB$3, 0))=\"\", \"\",  INDEX('Full set Core Client Indicator'!$A$3:$AB$351, MATCH(Selection_Hide2!$A221, 'Full set Core Client Indicator'!$A$3:$A$351, 0), MATCH(Selection_Hide2!G$5, 'Full set Core Client Indicator'!$A$3:$AB$3, 0))), \"\")","v":""},{"$f":"IF(G221<>\"\", IF(INDEX('Full set Core Client Indicator'!$A$3:$AB$351, MATCH(Selection_Hide2!$A221, 'Full set Core Client Indicator'!$A$3:$A$351, 0), MATCH(Selection_Hide2!H$5, 'Full set Core Client Indicator'!$A$3:$AB$3, 0))=\"\", \"\",  INDEX('Full set Core Client Indicator'!$A$3:$AB$351, MATCH(Selection_Hide2!$A221, 'Full set Core Client Indicator'!$A$3:$A$351, 0), MATCH(Selection_Hide2!H$5, 'Full set Core Client Indicator'!$A$3:$AB$3, 0))), \"\")","v":""},{"$f":"IF(H221<>\"\", IF(INDEX('Full set Core Client Indicator'!$A$3:$AB$351, MATCH(Selection_Hide2!$A221, 'Full set Core Client Indicator'!$A$3:$A$351, 0), MATCH(Selection_Hide2!I$5, 'Full set Core Client Indicator'!$A$3:$AB$3, 0))=\"\", \"\",  INDEX('Full set Core Client Indicator'!$A$3:$AB$351, MATCH(Selection_Hide2!$A221, 'Full set Core Client Indicator'!$A$3:$A$351, 0), MATCH(Selection_Hide2!I$5, 'Full set Core Client Indicator'!$A$3:$AB$3, 0))), \"\")","v":""},{"$f":"IF(I221<>\"\", IF(INDEX('Full set Core Client Indicator'!$A$3:$AB$351, MATCH(Selection_Hide2!$A221, 'Full set Core Client Indicator'!$A$3:$A$351, 0), MATCH(Selection_Hide2!J$5, 'Full set Core Client Indicator'!$A$3:$AB$3, 0))=\"\", \"\",  INDEX('Full set Core Client Indicator'!$A$3:$AB$351, MATCH(Selection_Hide2!$A221, 'Full set Core Client Indicator'!$A$3:$A$351, 0), MATCH(Selection_Hide2!J$5, 'Full set Core Client Indicator'!$A$3:$AB$3, 0))), \"\")","v":""},{"$f":"IF(J221<>\"\", IF(INDEX('Full set Core Client Indicator'!$A$3:$AB$351, MATCH(Selection_Hide2!$A221, 'Full set Core Client Indicator'!$A$3:$A$351, 0), MATCH(Selection_Hide2!K$5, 'Full set Core Client Indicator'!$A$3:$AB$3, 0))=\"\", \"\",  INDEX('Full set Core Client Indicator'!$A$3:$AB$351, MATCH(Selection_Hide2!$A221, 'Full set Core Client Indicator'!$A$3:$A$351, 0), MATCH(Selection_Hide2!K$5, 'Full set Core Client Indicator'!$A$3:$AB$3, 0))), \"\")","v":""},{"$f":"IF(K221<>\"\", IF(INDEX('Full set Core Client Indicator'!$A$3:$AB$351, MATCH(Selection_Hide2!$A221, 'Full set Core Client Indicator'!$A$3:$A$351, 0), MATCH(Selection_Hide2!L$5, 'Full set Core Client Indicator'!$A$3:$AB$3, 0))=\"\", \"\",  INDEX('Full set Core Client Indicator'!$A$3:$AB$351, MATCH(Selection_Hide2!$A221, 'Full set Core Client Indicator'!$A$3:$A$351, 0), MATCH(Selection_Hide2!L$5, 'Full set Core Client Indicator'!$A$3:$AB$3, 0))), \"\")","v":""},{"$f":"IF(L221<>\"\", IF(INDEX('Full set Core Client Indicator'!$A$3:$AB$351, MATCH(Selection_Hide2!$A221, 'Full set Core Client Indicator'!$A$3:$A$351, 0), MATCH(Selection_Hide2!M$5, 'Full set Core Client Indicator'!$A$3:$AB$3, 0))=\"\", \"\",  INDEX('Full set Core Client Indicator'!$A$3:$AB$351, MATCH(Selection_Hide2!$A221, 'Full set Core Client Indicator'!$A$3:$A$351, 0), MATCH(Selection_Hide2!M$5, 'Full set Core Client Indicator'!$A$3:$AB$3, 0))), \"\")","v":""},{"$f":"IF(M221<>\"\", IF(INDEX('Full set Core Client Indicator'!$A$3:$AB$351, MATCH(Selection_Hide2!$A221, 'Full set Core Client Indicator'!$A$3:$A$351, 0), MATCH(Selection_Hide2!N$5, 'Full set Core Client Indicator'!$A$3:$AB$3, 0))=\"\", \"\",  INDEX('Full set Core Client Indicator'!$A$3:$AB$351, MATCH(Selection_Hide2!$A221, 'Full set Core Client Indicator'!$A$3:$A$351, 0), MATCH(Selection_Hide2!N$5, 'Full set Core Client Indicator'!$A$3:$AB$3, 0))), \"\")","v":""},{"$f":"IF(N221<>\"\", IF(INDEX('Full set Core Client Indicator'!$A$3:$AB$351, MATCH(Selection_Hide2!$A221, 'Full set Core Client Indicator'!$A$3:$A$351, 0), MATCH(Selection_Hide2!O$5, 'Full set Core Client Indicator'!$A$3:$AB$3, 0))=\"\", \"\",  INDEX('Full set Core Client Indicator'!$A$3:$AB$351, MATCH(Selection_Hide2!$A221, 'Full set Core Client Indicator'!$A$3:$A$351, 0), MATCH(Selection_Hide2!O$5, 'Full set Core Client Indicator'!$A$3:$AB$3, 0))), \"\")","v":""},{"$f":"IF(O221<>\"\", IF(INDEX('Full set Core Client Indicator'!$A$3:$AB$351, MATCH(Selection_Hide2!$A221, 'Full set Core Client Indicator'!$A$3:$A$351, 0), MATCH(Selection_Hide2!P$5, 'Full set Core Client Indicator'!$A$3:$AB$3, 0))=\"\", \"\",  INDEX('Full set Core Client Indicator'!$A$3:$AB$351, MATCH(Selection_Hide2!$A221, 'Full set Core Client Indicator'!$A$3:$A$351, 0), MATCH(Selection_Hide2!P$5, 'Full set Core Client Indicator'!$A$3:$AB$3, 0))), \"\")","v":""},{"$f":"IF(P221<>\"\", IF(INDEX('Full set Core Client Indicator'!$A$3:$AB$351, MATCH(Selection_Hide2!$A221, 'Full set Core Client Indicator'!$A$3:$A$351, 0), MATCH(Selection_Hide2!Q$5, 'Full set Core Client Indicator'!$A$3:$AB$3, 0))=\"\", \"\",  INDEX('Full set Core Client Indicator'!$A$3:$AB$351, MATCH(Selection_Hide2!$A221, 'Full set Core Client Indicator'!$A$3:$A$351, 0), MATCH(Selection_Hide2!Q$5, 'Full set Core Client Indicator'!$A$3:$AB$3, 0))), \"\")","v":""},{"$f":"IF(Q221<>\"\", IF(INDEX('Full set Core Client Indicator'!$A$3:$AB$351, MATCH(Selection_Hide2!$A221, 'Full set Core Client Indicator'!$A$3:$A$351, 0), MATCH(Selection_Hide2!R$5, 'Full set Core Client Indicator'!$A$3:$AB$3, 0))=\"\", \"\",  INDEX('Full set Core Client Indicator'!$A$3:$AB$351, MATCH(Selection_Hide2!$A221, 'Full set Core Client Indicator'!$A$3:$A$351, 0), MATCH(Selection_Hide2!R$5, 'Full set Core Client Indicator'!$A$3:$AB$3, 0))), \"\")","v":""},{"$f":"IF(R221<>\"\", IF(INDEX('Full set Core Client Indicator'!$A$3:$AB$351, MATCH(Selection_Hide2!$A221, 'Full set Core Client Indicator'!$A$3:$A$351, 0), MATCH(Selection_Hide2!S$5, 'Full set Core Client Indicator'!$A$3:$AB$3, 0))=\"\", \"\",  INDEX('Full set Core Client Indicator'!$A$3:$AB$351, MATCH(Selection_Hide2!$A221, 'Full set Core Client Indicator'!$A$3:$A$351, 0), MATCH(Selection_Hide2!S$5, 'Full set Core Client Indicator'!$A$3:$AB$3, 0))), \"\")","v":""},{"$f":"IF(S221<>\"\", IF(INDEX('Full set Core Client Indicator'!$A$3:$AB$351, MATCH(Selection_Hide2!$A221, 'Full set Core Client Indicator'!$A$3:$A$351, 0), MATCH(Selection_Hide2!T$5, 'Full set Core Client Indicator'!$A$3:$AB$3, 0))=\"\", \"\",  INDEX('Full set Core Client Indicator'!$A$3:$AB$351, MATCH(Selection_Hide2!$A221, 'Full set Core Client Indicator'!$A$3:$A$351, 0), MATCH(Selection_Hide2!T$5, 'Full set Core Client Indicator'!$A$3:$AB$3, 0))), \"\")","v":""},{"$f":"IF(T221<>\"\", IF(INDEX('Full set Core Client Indicator'!$A$3:$AB$351, MATCH(Selection_Hide2!$A221, 'Full set Core Client Indicator'!$A$3:$A$351, 0), MATCH(Selection_Hide2!U$5, 'Full set Core Client Indicator'!$A$3:$AB$3, 0))=\"\", \"\",  INDEX('Full set Core Client Indicator'!$A$3:$AB$351, MATCH(Selection_Hide2!$A221, 'Full set Core Client Indicator'!$A$3:$A$351, 0), MATCH(Selection_Hide2!U$5, 'Full set Core Client Indicator'!$A$3:$AB$3, 0))), \"\")","v":""},{"$f":"IF(U221<>\"\", IF(INDEX('Full set Core Client Indicator'!$A$3:$AB$351, MATCH(Selection_Hide2!$A221, 'Full set Core Client Indicator'!$A$3:$A$351, 0), MATCH(Selection_Hide2!V$5, 'Full set Core Client Indicator'!$A$3:$AB$3, 0))=\"\", \"\",  INDEX('Full set Core Client Indicator'!$A$3:$AB$351, MATCH(Selection_Hide2!$A221, 'Full set Core Client Indicator'!$A$3:$A$351, 0), MATCH(Selection_Hide2!V$5, 'Full set Core Client Indicator'!$A$3:$AB$3, 0))), \"\")","v":""},{"$f":"IF(V221<>\"\", IF(INDEX('Full set Core Client Indicator'!$A$3:$AB$351, MATCH(Selection_Hide2!$A221, 'Full set Core Client Indicator'!$A$3:$A$351, 0), MATCH(Selection_Hide2!W$5, 'Full set Core Client Indicator'!$A$3:$AB$3, 0))=\"\", \"\",  INDEX('Full set Core Client Indicator'!$A$3:$AB$351, MATCH(Selection_Hide2!$A221, 'Full set Core Client Indicator'!$A$3:$A$351, 0), MATCH(Selection_Hide2!W$5, 'Full set Core Client Indicator'!$A$3:$AB$3, 0))), \"\")","v":""},{"$f":"IF(W221<>\"\", IF(INDEX('Full set Core Client Indicator'!$A$3:$AB$351, MATCH(Selection_Hide2!$A221, 'Full set Core Client Indicator'!$A$3:$A$351, 0), MATCH(Selection_Hide2!X$5, 'Full set Core Client Indicator'!$A$3:$AB$3, 0))=\"\", \"\",  INDEX('Full set Core Client Indicator'!$A$3:$AB$351, MATCH(Selection_Hide2!$A221, 'Full set Core Client Indicator'!$A$3:$A$351, 0), MATCH(Selection_Hide2!X$5, 'Full set Core Client Indicator'!$A$3:$AB$3, 0))), \"\")","v":""},{"$f":"IF(X221<>\"\", IF(INDEX('Full set Core Client Indicator'!$A$3:$AB$351, MATCH(Selection_Hide2!$A221, 'Full set Core Client Indicator'!$A$3:$A$351, 0), MATCH(Selection_Hide2!Y$5, 'Full set Core Client Indicator'!$A$3:$AB$3, 0))=\"\", \"\",  INDEX('Full set Core Client Indicator'!$A$3:$AB$351, MATCH(Selection_Hide2!$A221, 'Full set Core Client Indicator'!$A$3:$A$351, 0), MATCH(Selection_Hide2!Y$5, 'Full set Core Client Indicator'!$A$3:$AB$3, 0))), \"\")","v":""},{"$f":"IF(Y221<>\"\", IF(INDEX('Full set Core Client Indicator'!$A$3:$AB$351, MATCH(Selection_Hide2!$A221, 'Full set Core Client Indicator'!$A$3:$A$351, 0), MATCH(Selection_Hide2!Z$5, 'Full set Core Client Indicator'!$A$3:$AB$3, 0))=\"\", \"\",  INDEX('Full set Core Client Indicator'!$A$3:$AB$351, MATCH(Selection_Hide2!$A221, 'Full set Core Client Indicator'!$A$3:$A$351, 0), MATCH(Selection_Hide2!Z$5, 'Full set Core Client Indicator'!$A$3:$AB$3, 0))), \"\")","v":""},{"$f":"IF(Z221<>\"\", IF(INDEX('Full set Core Client Indicator'!$A$3:$AB$351, MATCH(Selection_Hide2!$A221, 'Full set Core Client Indicator'!$A$3:$A$351, 0), MATCH(Selection_Hide2!AA$5, 'Full set Core Client Indicator'!$A$3:$AB$3, 0))=\"\", \"\",  INDEX('Full set Core Client Indicator'!$A$3:$AB$351, MATCH(Selection_Hide2!$A221, 'Full set Core Client Indicator'!$A$3:$A$351, 0), MATCH(Selection_Hide2!AA$5, 'Full set Core Client Indicator'!$A$3:$AB$3, 0))), \"\")","v":""},{"$f":"IF(AA221<>\"\", IF(INDEX('Full set Core Client Indicator'!$A$3:$AB$351, MATCH(Selection_Hide2!$A221, 'Full set Core Client Indicator'!$A$3:$A$351, 0), MATCH(Selection_Hide2!AB$5, 'Full set Core Client Indicator'!$A$3:$AB$3, 0))=\"\", \"\",  INDEX('Full set Core Client Indicator'!$A$3:$AB$351, MATCH(Selection_Hide2!$A221, 'Full set Core Client Indicator'!$A$3:$A$351, 0), MATCH(Selection_Hide2!AB$5, 'Full set Core Client Indicator'!$A$3:$AB$3, 0))), \"\")","v":""}]
[{"$f":"IF(AND(Selection_Hide1!C220<>0, Selection_Hide1!C220<>\"Grand Total\"), Selection_Hide1!C220, \"\")","v":""},{"$f":"IF(A222<>\"\", IF(INDEX('Full set Core Client Indicator'!$A$3:$AB$351, MATCH(Selection_Hide2!$A222, 'Full set Core Client Indicator'!$A$3:$A$351, 0), MATCH(Selection_Hide2!B$5, 'Full set Core Client Indicator'!$A$3:$AB$3, 0))=\"\", \"\",  INDEX('Full set Core Client Indicator'!$A$3:$AB$351, MATCH(Selection_Hide2!$A222, 'Full set Core Client Indicator'!$A$3:$A$351, 0), MATCH(Selection_Hide2!B$5, 'Full set Core Client Indicator'!$A$3:$AB$3, 0))), \"\")","v":""},{"$f":"IF(B222<>\"\", IF(INDEX('Full set Core Client Indicator'!$A$3:$AB$351, MATCH(Selection_Hide2!$A222, 'Full set Core Client Indicator'!$A$3:$A$351, 0), MATCH(Selection_Hide2!C$5, 'Full set Core Client Indicator'!$A$3:$AB$3, 0))=\"\", \"\",  INDEX('Full set Core Client Indicator'!$A$3:$AB$351, MATCH(Selection_Hide2!$A222, 'Full set Core Client Indicator'!$A$3:$A$351, 0), MATCH(Selection_Hide2!C$5, 'Full set Core Client Indicator'!$A$3:$AB$3, 0))), \"\")","v":""},{"$f":"IF(C222<>\"\", IF(INDEX('Full set Core Client Indicator'!$A$3:$AB$351, MATCH(Selection_Hide2!$A222, 'Full set Core Client Indicator'!$A$3:$A$351, 0), MATCH(Selection_Hide2!D$5, 'Full set Core Client Indicator'!$A$3:$AB$3, 0))=\"\", \"\",  INDEX('Full set Core Client Indicator'!$A$3:$AB$351, MATCH(Selection_Hide2!$A222, 'Full set Core Client Indicator'!$A$3:$A$351, 0), MATCH(Selection_Hide2!D$5, 'Full set Core Client Indicator'!$A$3:$AB$3, 0))), \"\")","v":""},{"$f":"IF(D222<>\"\", IF(INDEX('Full set Core Client Indicator'!$A$3:$AB$351, MATCH(Selection_Hide2!$A222, 'Full set Core Client Indicator'!$A$3:$A$351, 0), MATCH(Selection_Hide2!E$5, 'Full set Core Client Indicator'!$A$3:$AB$3, 0))=\"\", \"\",  INDEX('Full set Core Client Indicator'!$A$3:$AB$351, MATCH(Selection_Hide2!$A222, 'Full set Core Client Indicator'!$A$3:$A$351, 0), MATCH(Selection_Hide2!E$5, 'Full set Core Client Indicator'!$A$3:$AB$3, 0))), \"\")","v":""},{"$f":"IF(E222<>\"\", IF(INDEX('Full set Core Client Indicator'!$A$3:$AB$351, MATCH(Selection_Hide2!$A222, 'Full set Core Client Indicator'!$A$3:$A$351, 0), MATCH(Selection_Hide2!F$5, 'Full set Core Client Indicator'!$A$3:$AB$3, 0))=\"\", \"\",  INDEX('Full set Core Client Indicator'!$A$3:$AB$351, MATCH(Selection_Hide2!$A222, 'Full set Core Client Indicator'!$A$3:$A$351, 0), MATCH(Selection_Hide2!F$5, 'Full set Core Client Indicator'!$A$3:$AB$3, 0))), \"\")","v":""},{"$f":"IF(F222<>\"\", IF(INDEX('Full set Core Client Indicator'!$A$3:$AB$351, MATCH(Selection_Hide2!$A222, 'Full set Core Client Indicator'!$A$3:$A$351, 0), MATCH(Selection_Hide2!G$5, 'Full set Core Client Indicator'!$A$3:$AB$3, 0))=\"\", \"\",  INDEX('Full set Core Client Indicator'!$A$3:$AB$351, MATCH(Selection_Hide2!$A222, 'Full set Core Client Indicator'!$A$3:$A$351, 0), MATCH(Selection_Hide2!G$5, 'Full set Core Client Indicator'!$A$3:$AB$3, 0))), \"\")","v":""},{"$f":"IF(G222<>\"\", IF(INDEX('Full set Core Client Indicator'!$A$3:$AB$351, MATCH(Selection_Hide2!$A222, 'Full set Core Client Indicator'!$A$3:$A$351, 0), MATCH(Selection_Hide2!H$5, 'Full set Core Client Indicator'!$A$3:$AB$3, 0))=\"\", \"\",  INDEX('Full set Core Client Indicator'!$A$3:$AB$351, MATCH(Selection_Hide2!$A222, 'Full set Core Client Indicator'!$A$3:$A$351, 0), MATCH(Selection_Hide2!H$5, 'Full set Core Client Indicator'!$A$3:$AB$3, 0))), \"\")","v":""},{"$f":"IF(H222<>\"\", IF(INDEX('Full set Core Client Indicator'!$A$3:$AB$351, MATCH(Selection_Hide2!$A222, 'Full set Core Client Indicator'!$A$3:$A$351, 0), MATCH(Selection_Hide2!I$5, 'Full set Core Client Indicator'!$A$3:$AB$3, 0))=\"\", \"\",  INDEX('Full set Core Client Indicator'!$A$3:$AB$351, MATCH(Selection_Hide2!$A222, 'Full set Core Client Indicator'!$A$3:$A$351, 0), MATCH(Selection_Hide2!I$5, 'Full set Core Client Indicator'!$A$3:$AB$3, 0))), \"\")","v":""},{"$f":"IF(I222<>\"\", IF(INDEX('Full set Core Client Indicator'!$A$3:$AB$351, MATCH(Selection_Hide2!$A222, 'Full set Core Client Indicator'!$A$3:$A$351, 0), MATCH(Selection_Hide2!J$5, 'Full set Core Client Indicator'!$A$3:$AB$3, 0))=\"\", \"\",  INDEX('Full set Core Client Indicator'!$A$3:$AB$351, MATCH(Selection_Hide2!$A222, 'Full set Core Client Indicator'!$A$3:$A$351, 0), MATCH(Selection_Hide2!J$5, 'Full set Core Client Indicator'!$A$3:$AB$3, 0))), \"\")","v":""},{"$f":"IF(J222<>\"\", IF(INDEX('Full set Core Client Indicator'!$A$3:$AB$351, MATCH(Selection_Hide2!$A222, 'Full set Core Client Indicator'!$A$3:$A$351, 0), MATCH(Selection_Hide2!K$5, 'Full set Core Client Indicator'!$A$3:$AB$3, 0))=\"\", \"\",  INDEX('Full set Core Client Indicator'!$A$3:$AB$351, MATCH(Selection_Hide2!$A222, 'Full set Core Client Indicator'!$A$3:$A$351, 0), MATCH(Selection_Hide2!K$5, 'Full set Core Client Indicator'!$A$3:$AB$3, 0))), \"\")","v":""},{"$f":"IF(K222<>\"\", IF(INDEX('Full set Core Client Indicator'!$A$3:$AB$351, MATCH(Selection_Hide2!$A222, 'Full set Core Client Indicator'!$A$3:$A$351, 0), MATCH(Selection_Hide2!L$5, 'Full set Core Client Indicator'!$A$3:$AB$3, 0))=\"\", \"\",  INDEX('Full set Core Client Indicator'!$A$3:$AB$351, MATCH(Selection_Hide2!$A222, 'Full set Core Client Indicator'!$A$3:$A$351, 0), MATCH(Selection_Hide2!L$5, 'Full set Core Client Indicator'!$A$3:$AB$3, 0))), \"\")","v":""},{"$f":"IF(L222<>\"\", IF(INDEX('Full set Core Client Indicator'!$A$3:$AB$351, MATCH(Selection_Hide2!$A222, 'Full set Core Client Indicator'!$A$3:$A$351, 0), MATCH(Selection_Hide2!M$5, 'Full set Core Client Indicator'!$A$3:$AB$3, 0))=\"\", \"\",  INDEX('Full set Core Client Indicator'!$A$3:$AB$351, MATCH(Selection_Hide2!$A222, 'Full set Core Client Indicator'!$A$3:$A$351, 0), MATCH(Selection_Hide2!M$5, 'Full set Core Client Indicator'!$A$3:$AB$3, 0))), \"\")","v":""},{"$f":"IF(M222<>\"\", IF(INDEX('Full set Core Client Indicator'!$A$3:$AB$351, MATCH(Selection_Hide2!$A222, 'Full set Core Client Indicator'!$A$3:$A$351, 0), MATCH(Selection_Hide2!N$5, 'Full set Core Client Indicator'!$A$3:$AB$3, 0))=\"\", \"\",  INDEX('Full set Core Client Indicator'!$A$3:$AB$351, MATCH(Selection_Hide2!$A222, 'Full set Core Client Indicator'!$A$3:$A$351, 0), MATCH(Selection_Hide2!N$5, 'Full set Core Client Indicator'!$A$3:$AB$3, 0))), \"\")","v":""},{"$f":"IF(N222<>\"\", IF(INDEX('Full set Core Client Indicator'!$A$3:$AB$351, MATCH(Selection_Hide2!$A222, 'Full set Core Client Indicator'!$A$3:$A$351, 0), MATCH(Selection_Hide2!O$5, 'Full set Core Client Indicator'!$A$3:$AB$3, 0))=\"\", \"\",  INDEX('Full set Core Client Indicator'!$A$3:$AB$351, MATCH(Selection_Hide2!$A222, 'Full set Core Client Indicator'!$A$3:$A$351, 0), MATCH(Selection_Hide2!O$5, 'Full set Core Client Indicator'!$A$3:$AB$3, 0))), \"\")","v":""},{"$f":"IF(O222<>\"\", IF(INDEX('Full set Core Client Indicator'!$A$3:$AB$351, MATCH(Selection_Hide2!$A222, 'Full set Core Client Indicator'!$A$3:$A$351, 0), MATCH(Selection_Hide2!P$5, 'Full set Core Client Indicator'!$A$3:$AB$3, 0))=\"\", \"\",  INDEX('Full set Core Client Indicator'!$A$3:$AB$351, MATCH(Selection_Hide2!$A222, 'Full set Core Client Indicator'!$A$3:$A$351, 0), MATCH(Selection_Hide2!P$5, 'Full set Core Client Indicator'!$A$3:$AB$3, 0))), \"\")","v":""},{"$f":"IF(P222<>\"\", IF(INDEX('Full set Core Client Indicator'!$A$3:$AB$351, MATCH(Selection_Hide2!$A222, 'Full set Core Client Indicator'!$A$3:$A$351, 0), MATCH(Selection_Hide2!Q$5, 'Full set Core Client Indicator'!$A$3:$AB$3, 0))=\"\", \"\",  INDEX('Full set Core Client Indicator'!$A$3:$AB$351, MATCH(Selection_Hide2!$A222, 'Full set Core Client Indicator'!$A$3:$A$351, 0), MATCH(Selection_Hide2!Q$5, 'Full set Core Client Indicator'!$A$3:$AB$3, 0))), \"\")","v":""},{"$f":"IF(Q222<>\"\", IF(INDEX('Full set Core Client Indicator'!$A$3:$AB$351, MATCH(Selection_Hide2!$A222, 'Full set Core Client Indicator'!$A$3:$A$351, 0), MATCH(Selection_Hide2!R$5, 'Full set Core Client Indicator'!$A$3:$AB$3, 0))=\"\", \"\",  INDEX('Full set Core Client Indicator'!$A$3:$AB$351, MATCH(Selection_Hide2!$A222, 'Full set Core Client Indicator'!$A$3:$A$351, 0), MATCH(Selection_Hide2!R$5, 'Full set Core Client Indicator'!$A$3:$AB$3, 0))), \"\")","v":""},{"$f":"IF(R222<>\"\", IF(INDEX('Full set Core Client Indicator'!$A$3:$AB$351, MATCH(Selection_Hide2!$A222, 'Full set Core Client Indicator'!$A$3:$A$351, 0), MATCH(Selection_Hide2!S$5, 'Full set Core Client Indicator'!$A$3:$AB$3, 0))=\"\", \"\",  INDEX('Full set Core Client Indicator'!$A$3:$AB$351, MATCH(Selection_Hide2!$A222, 'Full set Core Client Indicator'!$A$3:$A$351, 0), MATCH(Selection_Hide2!S$5, 'Full set Core Client Indicator'!$A$3:$AB$3, 0))), \"\")","v":""},{"$f":"IF(S222<>\"\", IF(INDEX('Full set Core Client Indicator'!$A$3:$AB$351, MATCH(Selection_Hide2!$A222, 'Full set Core Client Indicator'!$A$3:$A$351, 0), MATCH(Selection_Hide2!T$5, 'Full set Core Client Indicator'!$A$3:$AB$3, 0))=\"\", \"\",  INDEX('Full set Core Client Indicator'!$A$3:$AB$351, MATCH(Selection_Hide2!$A222, 'Full set Core Client Indicator'!$A$3:$A$351, 0), MATCH(Selection_Hide2!T$5, 'Full set Core Client Indicator'!$A$3:$AB$3, 0))), \"\")","v":""},{"$f":"IF(T222<>\"\", IF(INDEX('Full set Core Client Indicator'!$A$3:$AB$351, MATCH(Selection_Hide2!$A222, 'Full set Core Client Indicator'!$A$3:$A$351, 0), MATCH(Selection_Hide2!U$5, 'Full set Core Client Indicator'!$A$3:$AB$3, 0))=\"\", \"\",  INDEX('Full set Core Client Indicator'!$A$3:$AB$351, MATCH(Selection_Hide2!$A222, 'Full set Core Client Indicator'!$A$3:$A$351, 0), MATCH(Selection_Hide2!U$5, 'Full set Core Client Indicator'!$A$3:$AB$3, 0))), \"\")","v":""},{"$f":"IF(U222<>\"\", IF(INDEX('Full set Core Client Indicator'!$A$3:$AB$351, MATCH(Selection_Hide2!$A222, 'Full set Core Client Indicator'!$A$3:$A$351, 0), MATCH(Selection_Hide2!V$5, 'Full set Core Client Indicator'!$A$3:$AB$3, 0))=\"\", \"\",  INDEX('Full set Core Client Indicator'!$A$3:$AB$351, MATCH(Selection_Hide2!$A222, 'Full set Core Client Indicator'!$A$3:$A$351, 0), MATCH(Selection_Hide2!V$5, 'Full set Core Client Indicator'!$A$3:$AB$3, 0))), \"\")","v":""},{"$f":"IF(V222<>\"\", IF(INDEX('Full set Core Client Indicator'!$A$3:$AB$351, MATCH(Selection_Hide2!$A222, 'Full set Core Client Indicator'!$A$3:$A$351, 0), MATCH(Selection_Hide2!W$5, 'Full set Core Client Indicator'!$A$3:$AB$3, 0))=\"\", \"\",  INDEX('Full set Core Client Indicator'!$A$3:$AB$351, MATCH(Selection_Hide2!$A222, 'Full set Core Client Indicator'!$A$3:$A$351, 0), MATCH(Selection_Hide2!W$5, 'Full set Core Client Indicator'!$A$3:$AB$3, 0))), \"\")","v":""},{"$f":"IF(W222<>\"\", IF(INDEX('Full set Core Client Indicator'!$A$3:$AB$351, MATCH(Selection_Hide2!$A222, 'Full set Core Client Indicator'!$A$3:$A$351, 0), MATCH(Selection_Hide2!X$5, 'Full set Core Client Indicator'!$A$3:$AB$3, 0))=\"\", \"\",  INDEX('Full set Core Client Indicator'!$A$3:$AB$351, MATCH(Selection_Hide2!$A222, 'Full set Core Client Indicator'!$A$3:$A$351, 0), MATCH(Selection_Hide2!X$5, 'Full set Core Client Indicator'!$A$3:$AB$3, 0))), \"\")","v":""},{"$f":"IF(X222<>\"\", IF(INDEX('Full set Core Client Indicator'!$A$3:$AB$351, MATCH(Selection_Hide2!$A222, 'Full set Core Client Indicator'!$A$3:$A$351, 0), MATCH(Selection_Hide2!Y$5, 'Full set Core Client Indicator'!$A$3:$AB$3, 0))=\"\", \"\",  INDEX('Full set Core Client Indicator'!$A$3:$AB$351, MATCH(Selection_Hide2!$A222, 'Full set Core Client Indicator'!$A$3:$A$351, 0), MATCH(Selection_Hide2!Y$5, 'Full set Core Client Indicator'!$A$3:$AB$3, 0))), \"\")","v":""},{"$f":"IF(Y222<>\"\", IF(INDEX('Full set Core Client Indicator'!$A$3:$AB$351, MATCH(Selection_Hide2!$A222, 'Full set Core Client Indicator'!$A$3:$A$351, 0), MATCH(Selection_Hide2!Z$5, 'Full set Core Client Indicator'!$A$3:$AB$3, 0))=\"\", \"\",  INDEX('Full set Core Client Indicator'!$A$3:$AB$351, MATCH(Selection_Hide2!$A222, 'Full set Core Client Indicator'!$A$3:$A$351, 0), MATCH(Selection_Hide2!Z$5, 'Full set Core Client Indicator'!$A$3:$AB$3, 0))), \"\")","v":""},{"$f":"IF(Z222<>\"\", IF(INDEX('Full set Core Client Indicator'!$A$3:$AB$351, MATCH(Selection_Hide2!$A222, 'Full set Core Client Indicator'!$A$3:$A$351, 0), MATCH(Selection_Hide2!AA$5, 'Full set Core Client Indicator'!$A$3:$AB$3, 0))=\"\", \"\",  INDEX('Full set Core Client Indicator'!$A$3:$AB$351, MATCH(Selection_Hide2!$A222, 'Full set Core Client Indicator'!$A$3:$A$351, 0), MATCH(Selection_Hide2!AA$5, 'Full set Core Client Indicator'!$A$3:$AB$3, 0))), \"\")","v":""},{"$f":"IF(AA222<>\"\", IF(INDEX('Full set Core Client Indicator'!$A$3:$AB$351, MATCH(Selection_Hide2!$A222, 'Full set Core Client Indicator'!$A$3:$A$351, 0), MATCH(Selection_Hide2!AB$5, 'Full set Core Client Indicator'!$A$3:$AB$3, 0))=\"\", \"\",  INDEX('Full set Core Client Indicator'!$A$3:$AB$351, MATCH(Selection_Hide2!$A222, 'Full set Core Client Indicator'!$A$3:$A$351, 0), MATCH(Selection_Hide2!AB$5, 'Full set Core Client Indicator'!$A$3:$AB$3, 0))), \"\")","v":""}]
[{"$f":"IF(AND(Selection_Hide1!C221<>0, Selection_Hide1!C221<>\"Grand Total\"), Selection_Hide1!C221, \"\")","v":""},{"$f":"IF(A223<>\"\", IF(INDEX('Full set Core Client Indicator'!$A$3:$AB$351, MATCH(Selection_Hide2!$A223, 'Full set Core Client Indicator'!$A$3:$A$351, 0), MATCH(Selection_Hide2!B$5, 'Full set Core Client Indicator'!$A$3:$AB$3, 0))=\"\", \"\",  INDEX('Full set Core Client Indicator'!$A$3:$AB$351, MATCH(Selection_Hide2!$A223, 'Full set Core Client Indicator'!$A$3:$A$351, 0), MATCH(Selection_Hide2!B$5, 'Full set Core Client Indicator'!$A$3:$AB$3, 0))), \"\")","v":""},{"$f":"IF(B223<>\"\", IF(INDEX('Full set Core Client Indicator'!$A$3:$AB$351, MATCH(Selection_Hide2!$A223, 'Full set Core Client Indicator'!$A$3:$A$351, 0), MATCH(Selection_Hide2!C$5, 'Full set Core Client Indicator'!$A$3:$AB$3, 0))=\"\", \"\",  INDEX('Full set Core Client Indicator'!$A$3:$AB$351, MATCH(Selection_Hide2!$A223, 'Full set Core Client Indicator'!$A$3:$A$351, 0), MATCH(Selection_Hide2!C$5, 'Full set Core Client Indicator'!$A$3:$AB$3, 0))), \"\")","v":""},{"$f":"IF(C223<>\"\", IF(INDEX('Full set Core Client Indicator'!$A$3:$AB$351, MATCH(Selection_Hide2!$A223, 'Full set Core Client Indicator'!$A$3:$A$351, 0), MATCH(Selection_Hide2!D$5, 'Full set Core Client Indicator'!$A$3:$AB$3, 0))=\"\", \"\",  INDEX('Full set Core Client Indicator'!$A$3:$AB$351, MATCH(Selection_Hide2!$A223, 'Full set Core Client Indicator'!$A$3:$A$351, 0), MATCH(Selection_Hide2!D$5, 'Full set Core Client Indicator'!$A$3:$AB$3, 0))), \"\")","v":""},{"$f":"IF(D223<>\"\", IF(INDEX('Full set Core Client Indicator'!$A$3:$AB$351, MATCH(Selection_Hide2!$A223, 'Full set Core Client Indicator'!$A$3:$A$351, 0), MATCH(Selection_Hide2!E$5, 'Full set Core Client Indicator'!$A$3:$AB$3, 0))=\"\", \"\",  INDEX('Full set Core Client Indicator'!$A$3:$AB$351, MATCH(Selection_Hide2!$A223, 'Full set Core Client Indicator'!$A$3:$A$351, 0), MATCH(Selection_Hide2!E$5, 'Full set Core Client Indicator'!$A$3:$AB$3, 0))), \"\")","v":""},{"$f":"IF(E223<>\"\", IF(INDEX('Full set Core Client Indicator'!$A$3:$AB$351, MATCH(Selection_Hide2!$A223, 'Full set Core Client Indicator'!$A$3:$A$351, 0), MATCH(Selection_Hide2!F$5, 'Full set Core Client Indicator'!$A$3:$AB$3, 0))=\"\", \"\",  INDEX('Full set Core Client Indicator'!$A$3:$AB$351, MATCH(Selection_Hide2!$A223, 'Full set Core Client Indicator'!$A$3:$A$351, 0), MATCH(Selection_Hide2!F$5, 'Full set Core Client Indicator'!$A$3:$AB$3, 0))), \"\")","v":""},{"$f":"IF(F223<>\"\", IF(INDEX('Full set Core Client Indicator'!$A$3:$AB$351, MATCH(Selection_Hide2!$A223, 'Full set Core Client Indicator'!$A$3:$A$351, 0), MATCH(Selection_Hide2!G$5, 'Full set Core Client Indicator'!$A$3:$AB$3, 0))=\"\", \"\",  INDEX('Full set Core Client Indicator'!$A$3:$AB$351, MATCH(Selection_Hide2!$A223, 'Full set Core Client Indicator'!$A$3:$A$351, 0), MATCH(Selection_Hide2!G$5, 'Full set Core Client Indicator'!$A$3:$AB$3, 0))), \"\")","v":""},{"$f":"IF(G223<>\"\", IF(INDEX('Full set Core Client Indicator'!$A$3:$AB$351, MATCH(Selection_Hide2!$A223, 'Full set Core Client Indicator'!$A$3:$A$351, 0), MATCH(Selection_Hide2!H$5, 'Full set Core Client Indicator'!$A$3:$AB$3, 0))=\"\", \"\",  INDEX('Full set Core Client Indicator'!$A$3:$AB$351, MATCH(Selection_Hide2!$A223, 'Full set Core Client Indicator'!$A$3:$A$351, 0), MATCH(Selection_Hide2!H$5, 'Full set Core Client Indicator'!$A$3:$AB$3, 0))), \"\")","v":""},{"$f":"IF(H223<>\"\", IF(INDEX('Full set Core Client Indicator'!$A$3:$AB$351, MATCH(Selection_Hide2!$A223, 'Full set Core Client Indicator'!$A$3:$A$351, 0), MATCH(Selection_Hide2!I$5, 'Full set Core Client Indicator'!$A$3:$AB$3, 0))=\"\", \"\",  INDEX('Full set Core Client Indicator'!$A$3:$AB$351, MATCH(Selection_Hide2!$A223, 'Full set Core Client Indicator'!$A$3:$A$351, 0), MATCH(Selection_Hide2!I$5, 'Full set Core Client Indicator'!$A$3:$AB$3, 0))), \"\")","v":""},{"$f":"IF(I223<>\"\", IF(INDEX('Full set Core Client Indicator'!$A$3:$AB$351, MATCH(Selection_Hide2!$A223, 'Full set Core Client Indicator'!$A$3:$A$351, 0), MATCH(Selection_Hide2!J$5, 'Full set Core Client Indicator'!$A$3:$AB$3, 0))=\"\", \"\",  INDEX('Full set Core Client Indicator'!$A$3:$AB$351, MATCH(Selection_Hide2!$A223, 'Full set Core Client Indicator'!$A$3:$A$351, 0), MATCH(Selection_Hide2!J$5, 'Full set Core Client Indicator'!$A$3:$AB$3, 0))), \"\")","v":""},{"$f":"IF(J223<>\"\", IF(INDEX('Full set Core Client Indicator'!$A$3:$AB$351, MATCH(Selection_Hide2!$A223, 'Full set Core Client Indicator'!$A$3:$A$351, 0), MATCH(Selection_Hide2!K$5, 'Full set Core Client Indicator'!$A$3:$AB$3, 0))=\"\", \"\",  INDEX('Full set Core Client Indicator'!$A$3:$AB$351, MATCH(Selection_Hide2!$A223, 'Full set Core Client Indicator'!$A$3:$A$351, 0), MATCH(Selection_Hide2!K$5, 'Full set Core Client Indicator'!$A$3:$AB$3, 0))), \"\")","v":""},{"$f":"IF(K223<>\"\", IF(INDEX('Full set Core Client Indicator'!$A$3:$AB$351, MATCH(Selection_Hide2!$A223, 'Full set Core Client Indicator'!$A$3:$A$351, 0), MATCH(Selection_Hide2!L$5, 'Full set Core Client Indicator'!$A$3:$AB$3, 0))=\"\", \"\",  INDEX('Full set Core Client Indicator'!$A$3:$AB$351, MATCH(Selection_Hide2!$A223, 'Full set Core Client Indicator'!$A$3:$A$351, 0), MATCH(Selection_Hide2!L$5, 'Full set Core Client Indicator'!$A$3:$AB$3, 0))), \"\")","v":""},{"$f":"IF(L223<>\"\", IF(INDEX('Full set Core Client Indicator'!$A$3:$AB$351, MATCH(Selection_Hide2!$A223, 'Full set Core Client Indicator'!$A$3:$A$351, 0), MATCH(Selection_Hide2!M$5, 'Full set Core Client Indicator'!$A$3:$AB$3, 0))=\"\", \"\",  INDEX('Full set Core Client Indicator'!$A$3:$AB$351, MATCH(Selection_Hide2!$A223, 'Full set Core Client Indicator'!$A$3:$A$351, 0), MATCH(Selection_Hide2!M$5, 'Full set Core Client Indicator'!$A$3:$AB$3, 0))), \"\")","v":""},{"$f":"IF(M223<>\"\", IF(INDEX('Full set Core Client Indicator'!$A$3:$AB$351, MATCH(Selection_Hide2!$A223, 'Full set Core Client Indicator'!$A$3:$A$351, 0), MATCH(Selection_Hide2!N$5, 'Full set Core Client Indicator'!$A$3:$AB$3, 0))=\"\", \"\",  INDEX('Full set Core Client Indicator'!$A$3:$AB$351, MATCH(Selection_Hide2!$A223, 'Full set Core Client Indicator'!$A$3:$A$351, 0), MATCH(Selection_Hide2!N$5, 'Full set Core Client Indicator'!$A$3:$AB$3, 0))), \"\")","v":""},{"$f":"IF(N223<>\"\", IF(INDEX('Full set Core Client Indicator'!$A$3:$AB$351, MATCH(Selection_Hide2!$A223, 'Full set Core Client Indicator'!$A$3:$A$351, 0), MATCH(Selection_Hide2!O$5, 'Full set Core Client Indicator'!$A$3:$AB$3, 0))=\"\", \"\",  INDEX('Full set Core Client Indicator'!$A$3:$AB$351, MATCH(Selection_Hide2!$A223, 'Full set Core Client Indicator'!$A$3:$A$351, 0), MATCH(Selection_Hide2!O$5, 'Full set Core Client Indicator'!$A$3:$AB$3, 0))), \"\")","v":""},{"$f":"IF(O223<>\"\", IF(INDEX('Full set Core Client Indicator'!$A$3:$AB$351, MATCH(Selection_Hide2!$A223, 'Full set Core Client Indicator'!$A$3:$A$351, 0), MATCH(Selection_Hide2!P$5, 'Full set Core Client Indicator'!$A$3:$AB$3, 0))=\"\", \"\",  INDEX('Full set Core Client Indicator'!$A$3:$AB$351, MATCH(Selection_Hide2!$A223, 'Full set Core Client Indicator'!$A$3:$A$351, 0), MATCH(Selection_Hide2!P$5, 'Full set Core Client Indicator'!$A$3:$AB$3, 0))), \"\")","v":""},{"$f":"IF(P223<>\"\", IF(INDEX('Full set Core Client Indicator'!$A$3:$AB$351, MATCH(Selection_Hide2!$A223, 'Full set Core Client Indicator'!$A$3:$A$351, 0), MATCH(Selection_Hide2!Q$5, 'Full set Core Client Indicator'!$A$3:$AB$3, 0))=\"\", \"\",  INDEX('Full set Core Client Indicator'!$A$3:$AB$351, MATCH(Selection_Hide2!$A223, 'Full set Core Client Indicator'!$A$3:$A$351, 0), MATCH(Selection_Hide2!Q$5, 'Full set Core Client Indicator'!$A$3:$AB$3, 0))), \"\")","v":""},{"$f":"IF(Q223<>\"\", IF(INDEX('Full set Core Client Indicator'!$A$3:$AB$351, MATCH(Selection_Hide2!$A223, 'Full set Core Client Indicator'!$A$3:$A$351, 0), MATCH(Selection_Hide2!R$5, 'Full set Core Client Indicator'!$A$3:$AB$3, 0))=\"\", \"\",  INDEX('Full set Core Client Indicator'!$A$3:$AB$351, MATCH(Selection_Hide2!$A223, 'Full set Core Client Indicator'!$A$3:$A$351, 0), MATCH(Selection_Hide2!R$5, 'Full set Core Client Indicator'!$A$3:$AB$3, 0))), \"\")","v":""},{"$f":"IF(R223<>\"\", IF(INDEX('Full set Core Client Indicator'!$A$3:$AB$351, MATCH(Selection_Hide2!$A223, 'Full set Core Client Indicator'!$A$3:$A$351, 0), MATCH(Selection_Hide2!S$5, 'Full set Core Client Indicator'!$A$3:$AB$3, 0))=\"\", \"\",  INDEX('Full set Core Client Indicator'!$A$3:$AB$351, MATCH(Selection_Hide2!$A223, 'Full set Core Client Indicator'!$A$3:$A$351, 0), MATCH(Selection_Hide2!S$5, 'Full set Core Client Indicator'!$A$3:$AB$3, 0))), \"\")","v":""},{"$f":"IF(S223<>\"\", IF(INDEX('Full set Core Client Indicator'!$A$3:$AB$351, MATCH(Selection_Hide2!$A223, 'Full set Core Client Indicator'!$A$3:$A$351, 0), MATCH(Selection_Hide2!T$5, 'Full set Core Client Indicator'!$A$3:$AB$3, 0))=\"\", \"\",  INDEX('Full set Core Client Indicator'!$A$3:$AB$351, MATCH(Selection_Hide2!$A223, 'Full set Core Client Indicator'!$A$3:$A$351, 0), MATCH(Selection_Hide2!T$5, 'Full set Core Client Indicator'!$A$3:$AB$3, 0))), \"\")","v":""},{"$f":"IF(T223<>\"\", IF(INDEX('Full set Core Client Indicator'!$A$3:$AB$351, MATCH(Selection_Hide2!$A223, 'Full set Core Client Indicator'!$A$3:$A$351, 0), MATCH(Selection_Hide2!U$5, 'Full set Core Client Indicator'!$A$3:$AB$3, 0))=\"\", \"\",  INDEX('Full set Core Client Indicator'!$A$3:$AB$351, MATCH(Selection_Hide2!$A223, 'Full set Core Client Indicator'!$A$3:$A$351, 0), MATCH(Selection_Hide2!U$5, 'Full set Core Client Indicator'!$A$3:$AB$3, 0))), \"\")","v":""},{"$f":"IF(U223<>\"\", IF(INDEX('Full set Core Client Indicator'!$A$3:$AB$351, MATCH(Selection_Hide2!$A223, 'Full set Core Client Indicator'!$A$3:$A$351, 0), MATCH(Selection_Hide2!V$5, 'Full set Core Client Indicator'!$A$3:$AB$3, 0))=\"\", \"\",  INDEX('Full set Core Client Indicator'!$A$3:$AB$351, MATCH(Selection_Hide2!$A223, 'Full set Core Client Indicator'!$A$3:$A$351, 0), MATCH(Selection_Hide2!V$5, 'Full set Core Client Indicator'!$A$3:$AB$3, 0))), \"\")","v":""},{"$f":"IF(V223<>\"\", IF(INDEX('Full set Core Client Indicator'!$A$3:$AB$351, MATCH(Selection_Hide2!$A223, 'Full set Core Client Indicator'!$A$3:$A$351, 0), MATCH(Selection_Hide2!W$5, 'Full set Core Client Indicator'!$A$3:$AB$3, 0))=\"\", \"\",  INDEX('Full set Core Client Indicator'!$A$3:$AB$351, MATCH(Selection_Hide2!$A223, 'Full set Core Client Indicator'!$A$3:$A$351, 0), MATCH(Selection_Hide2!W$5, 'Full set Core Client Indicator'!$A$3:$AB$3, 0))), \"\")","v":""},{"$f":"IF(W223<>\"\", IF(INDEX('Full set Core Client Indicator'!$A$3:$AB$351, MATCH(Selection_Hide2!$A223, 'Full set Core Client Indicator'!$A$3:$A$351, 0), MATCH(Selection_Hide2!X$5, 'Full set Core Client Indicator'!$A$3:$AB$3, 0))=\"\", \"\",  INDEX('Full set Core Client Indicator'!$A$3:$AB$351, MATCH(Selection_Hide2!$A223, 'Full set Core Client Indicator'!$A$3:$A$351, 0), MATCH(Selection_Hide2!X$5, 'Full set Core Client Indicator'!$A$3:$AB$3, 0))), \"\")","v":""},{"$f":"IF(X223<>\"\", IF(INDEX('Full set Core Client Indicator'!$A$3:$AB$351, MATCH(Selection_Hide2!$A223, 'Full set Core Client Indicator'!$A$3:$A$351, 0), MATCH(Selection_Hide2!Y$5, 'Full set Core Client Indicator'!$A$3:$AB$3, 0))=\"\", \"\",  INDEX('Full set Core Client Indicator'!$A$3:$AB$351, MATCH(Selection_Hide2!$A223, 'Full set Core Client Indicator'!$A$3:$A$351, 0), MATCH(Selection_Hide2!Y$5, 'Full set Core Client Indicator'!$A$3:$AB$3, 0))), \"\")","v":""},{"$f":"IF(Y223<>\"\", IF(INDEX('Full set Core Client Indicator'!$A$3:$AB$351, MATCH(Selection_Hide2!$A223, 'Full set Core Client Indicator'!$A$3:$A$351, 0), MATCH(Selection_Hide2!Z$5, 'Full set Core Client Indicator'!$A$3:$AB$3, 0))=\"\", \"\",  INDEX('Full set Core Client Indicator'!$A$3:$AB$351, MATCH(Selection_Hide2!$A223, 'Full set Core Client Indicator'!$A$3:$A$351, 0), MATCH(Selection_Hide2!Z$5, 'Full set Core Client Indicator'!$A$3:$AB$3, 0))), \"\")","v":""},{"$f":"IF(Z223<>\"\", IF(INDEX('Full set Core Client Indicator'!$A$3:$AB$351, MATCH(Selection_Hide2!$A223, 'Full set Core Client Indicator'!$A$3:$A$351, 0), MATCH(Selection_Hide2!AA$5, 'Full set Core Client Indicator'!$A$3:$AB$3, 0))=\"\", \"\",  INDEX('Full set Core Client Indicator'!$A$3:$AB$351, MATCH(Selection_Hide2!$A223, 'Full set Core Client Indicator'!$A$3:$A$351, 0), MATCH(Selection_Hide2!AA$5, 'Full set Core Client Indicator'!$A$3:$AB$3, 0))), \"\")","v":""},{"$f":"IF(AA223<>\"\", IF(INDEX('Full set Core Client Indicator'!$A$3:$AB$351, MATCH(Selection_Hide2!$A223, 'Full set Core Client Indicator'!$A$3:$A$351, 0), MATCH(Selection_Hide2!AB$5, 'Full set Core Client Indicator'!$A$3:$AB$3, 0))=\"\", \"\",  INDEX('Full set Core Client Indicator'!$A$3:$AB$351, MATCH(Selection_Hide2!$A223, 'Full set Core Client Indicator'!$A$3:$A$351, 0), MATCH(Selection_Hide2!AB$5, 'Full set Core Client Indicator'!$A$3:$AB$3, 0))), \"\")","v":""}]
[{"$f":"IF(AND(Selection_Hide1!C222<>0, Selection_Hide1!C222<>\"Grand Total\"), Selection_Hide1!C222, \"\")","v":""},{"$f":"IF(A224<>\"\", IF(INDEX('Full set Core Client Indicator'!$A$3:$AB$351, MATCH(Selection_Hide2!$A224, 'Full set Core Client Indicator'!$A$3:$A$351, 0), MATCH(Selection_Hide2!B$5, 'Full set Core Client Indicator'!$A$3:$AB$3, 0))=\"\", \"\",  INDEX('Full set Core Client Indicator'!$A$3:$AB$351, MATCH(Selection_Hide2!$A224, 'Full set Core Client Indicator'!$A$3:$A$351, 0), MATCH(Selection_Hide2!B$5, 'Full set Core Client Indicator'!$A$3:$AB$3, 0))), \"\")","v":""},{"$f":"IF(B224<>\"\", IF(INDEX('Full set Core Client Indicator'!$A$3:$AB$351, MATCH(Selection_Hide2!$A224, 'Full set Core Client Indicator'!$A$3:$A$351, 0), MATCH(Selection_Hide2!C$5, 'Full set Core Client Indicator'!$A$3:$AB$3, 0))=\"\", \"\",  INDEX('Full set Core Client Indicator'!$A$3:$AB$351, MATCH(Selection_Hide2!$A224, 'Full set Core Client Indicator'!$A$3:$A$351, 0), MATCH(Selection_Hide2!C$5, 'Full set Core Client Indicator'!$A$3:$AB$3, 0))), \"\")","v":""},{"$f":"IF(C224<>\"\", IF(INDEX('Full set Core Client Indicator'!$A$3:$AB$351, MATCH(Selection_Hide2!$A224, 'Full set Core Client Indicator'!$A$3:$A$351, 0), MATCH(Selection_Hide2!D$5, 'Full set Core Client Indicator'!$A$3:$AB$3, 0))=\"\", \"\",  INDEX('Full set Core Client Indicator'!$A$3:$AB$351, MATCH(Selection_Hide2!$A224, 'Full set Core Client Indicator'!$A$3:$A$351, 0), MATCH(Selection_Hide2!D$5, 'Full set Core Client Indicator'!$A$3:$AB$3, 0))), \"\")","v":""},{"$f":"IF(D224<>\"\", IF(INDEX('Full set Core Client Indicator'!$A$3:$AB$351, MATCH(Selection_Hide2!$A224, 'Full set Core Client Indicator'!$A$3:$A$351, 0), MATCH(Selection_Hide2!E$5, 'Full set Core Client Indicator'!$A$3:$AB$3, 0))=\"\", \"\",  INDEX('Full set Core Client Indicator'!$A$3:$AB$351, MATCH(Selection_Hide2!$A224, 'Full set Core Client Indicator'!$A$3:$A$351, 0), MATCH(Selection_Hide2!E$5, 'Full set Core Client Indicator'!$A$3:$AB$3, 0))), \"\")","v":""},{"$f":"IF(E224<>\"\", IF(INDEX('Full set Core Client Indicator'!$A$3:$AB$351, MATCH(Selection_Hide2!$A224, 'Full set Core Client Indicator'!$A$3:$A$351, 0), MATCH(Selection_Hide2!F$5, 'Full set Core Client Indicator'!$A$3:$AB$3, 0))=\"\", \"\",  INDEX('Full set Core Client Indicator'!$A$3:$AB$351, MATCH(Selection_Hide2!$A224, 'Full set Core Client Indicator'!$A$3:$A$351, 0), MATCH(Selection_Hide2!F$5, 'Full set Core Client Indicator'!$A$3:$AB$3, 0))), \"\")","v":""},{"$f":"IF(F224<>\"\", IF(INDEX('Full set Core Client Indicator'!$A$3:$AB$351, MATCH(Selection_Hide2!$A224, 'Full set Core Client Indicator'!$A$3:$A$351, 0), MATCH(Selection_Hide2!G$5, 'Full set Core Client Indicator'!$A$3:$AB$3, 0))=\"\", \"\",  INDEX('Full set Core Client Indicator'!$A$3:$AB$351, MATCH(Selection_Hide2!$A224, 'Full set Core Client Indicator'!$A$3:$A$351, 0), MATCH(Selection_Hide2!G$5, 'Full set Core Client Indicator'!$A$3:$AB$3, 0))), \"\")","v":""},{"$f":"IF(G224<>\"\", IF(INDEX('Full set Core Client Indicator'!$A$3:$AB$351, MATCH(Selection_Hide2!$A224, 'Full set Core Client Indicator'!$A$3:$A$351, 0), MATCH(Selection_Hide2!H$5, 'Full set Core Client Indicator'!$A$3:$AB$3, 0))=\"\", \"\",  INDEX('Full set Core Client Indicator'!$A$3:$AB$351, MATCH(Selection_Hide2!$A224, 'Full set Core Client Indicator'!$A$3:$A$351, 0), MATCH(Selection_Hide2!H$5, 'Full set Core Client Indicator'!$A$3:$AB$3, 0))), \"\")","v":""},{"$f":"IF(H224<>\"\", IF(INDEX('Full set Core Client Indicator'!$A$3:$AB$351, MATCH(Selection_Hide2!$A224, 'Full set Core Client Indicator'!$A$3:$A$351, 0), MATCH(Selection_Hide2!I$5, 'Full set Core Client Indicator'!$A$3:$AB$3, 0))=\"\", \"\",  INDEX('Full set Core Client Indicator'!$A$3:$AB$351, MATCH(Selection_Hide2!$A224, 'Full set Core Client Indicator'!$A$3:$A$351, 0), MATCH(Selection_Hide2!I$5, 'Full set Core Client Indicator'!$A$3:$AB$3, 0))), \"\")","v":""},{"$f":"IF(I224<>\"\", IF(INDEX('Full set Core Client Indicator'!$A$3:$AB$351, MATCH(Selection_Hide2!$A224, 'Full set Core Client Indicator'!$A$3:$A$351, 0), MATCH(Selection_Hide2!J$5, 'Full set Core Client Indicator'!$A$3:$AB$3, 0))=\"\", \"\",  INDEX('Full set Core Client Indicator'!$A$3:$AB$351, MATCH(Selection_Hide2!$A224, 'Full set Core Client Indicator'!$A$3:$A$351, 0), MATCH(Selection_Hide2!J$5, 'Full set Core Client Indicator'!$A$3:$AB$3, 0))), \"\")","v":""},{"$f":"IF(J224<>\"\", IF(INDEX('Full set Core Client Indicator'!$A$3:$AB$351, MATCH(Selection_Hide2!$A224, 'Full set Core Client Indicator'!$A$3:$A$351, 0), MATCH(Selection_Hide2!K$5, 'Full set Core Client Indicator'!$A$3:$AB$3, 0))=\"\", \"\",  INDEX('Full set Core Client Indicator'!$A$3:$AB$351, MATCH(Selection_Hide2!$A224, 'Full set Core Client Indicator'!$A$3:$A$351, 0), MATCH(Selection_Hide2!K$5, 'Full set Core Client Indicator'!$A$3:$AB$3, 0))), \"\")","v":""},{"$f":"IF(K224<>\"\", IF(INDEX('Full set Core Client Indicator'!$A$3:$AB$351, MATCH(Selection_Hide2!$A224, 'Full set Core Client Indicator'!$A$3:$A$351, 0), MATCH(Selection_Hide2!L$5, 'Full set Core Client Indicator'!$A$3:$AB$3, 0))=\"\", \"\",  INDEX('Full set Core Client Indicator'!$A$3:$AB$351, MATCH(Selection_Hide2!$A224, 'Full set Core Client Indicator'!$A$3:$A$351, 0), MATCH(Selection_Hide2!L$5, 'Full set Core Client Indicator'!$A$3:$AB$3, 0))), \"\")","v":""},{"$f":"IF(L224<>\"\", IF(INDEX('Full set Core Client Indicator'!$A$3:$AB$351, MATCH(Selection_Hide2!$A224, 'Full set Core Client Indicator'!$A$3:$A$351, 0), MATCH(Selection_Hide2!M$5, 'Full set Core Client Indicator'!$A$3:$AB$3, 0))=\"\", \"\",  INDEX('Full set Core Client Indicator'!$A$3:$AB$351, MATCH(Selection_Hide2!$A224, 'Full set Core Client Indicator'!$A$3:$A$351, 0), MATCH(Selection_Hide2!M$5, 'Full set Core Client Indicator'!$A$3:$AB$3, 0))), \"\")","v":""},{"$f":"IF(M224<>\"\", IF(INDEX('Full set Core Client Indicator'!$A$3:$AB$351, MATCH(Selection_Hide2!$A224, 'Full set Core Client Indicator'!$A$3:$A$351, 0), MATCH(Selection_Hide2!N$5, 'Full set Core Client Indicator'!$A$3:$AB$3, 0))=\"\", \"\",  INDEX('Full set Core Client Indicator'!$A$3:$AB$351, MATCH(Selection_Hide2!$A224, 'Full set Core Client Indicator'!$A$3:$A$351, 0), MATCH(Selection_Hide2!N$5, 'Full set Core Client Indicator'!$A$3:$AB$3, 0))), \"\")","v":""},{"$f":"IF(N224<>\"\", IF(INDEX('Full set Core Client Indicator'!$A$3:$AB$351, MATCH(Selection_Hide2!$A224, 'Full set Core Client Indicator'!$A$3:$A$351, 0), MATCH(Selection_Hide2!O$5, 'Full set Core Client Indicator'!$A$3:$AB$3, 0))=\"\", \"\",  INDEX('Full set Core Client Indicator'!$A$3:$AB$351, MATCH(Selection_Hide2!$A224, 'Full set Core Client Indicator'!$A$3:$A$351, 0), MATCH(Selection_Hide2!O$5, 'Full set Core Client Indicator'!$A$3:$AB$3, 0))), \"\")","v":""},{"$f":"IF(O224<>\"\", IF(INDEX('Full set Core Client Indicator'!$A$3:$AB$351, MATCH(Selection_Hide2!$A224, 'Full set Core Client Indicator'!$A$3:$A$351, 0), MATCH(Selection_Hide2!P$5, 'Full set Core Client Indicator'!$A$3:$AB$3, 0))=\"\", \"\",  INDEX('Full set Core Client Indicator'!$A$3:$AB$351, MATCH(Selection_Hide2!$A224, 'Full set Core Client Indicator'!$A$3:$A$351, 0), MATCH(Selection_Hide2!P$5, 'Full set Core Client Indicator'!$A$3:$AB$3, 0))), \"\")","v":""},{"$f":"IF(P224<>\"\", IF(INDEX('Full set Core Client Indicator'!$A$3:$AB$351, MATCH(Selection_Hide2!$A224, 'Full set Core Client Indicator'!$A$3:$A$351, 0), MATCH(Selection_Hide2!Q$5, 'Full set Core Client Indicator'!$A$3:$AB$3, 0))=\"\", \"\",  INDEX('Full set Core Client Indicator'!$A$3:$AB$351, MATCH(Selection_Hide2!$A224, 'Full set Core Client Indicator'!$A$3:$A$351, 0), MATCH(Selection_Hide2!Q$5, 'Full set Core Client Indicator'!$A$3:$AB$3, 0))), \"\")","v":""},{"$f":"IF(Q224<>\"\", IF(INDEX('Full set Core Client Indicator'!$A$3:$AB$351, MATCH(Selection_Hide2!$A224, 'Full set Core Client Indicator'!$A$3:$A$351, 0), MATCH(Selection_Hide2!R$5, 'Full set Core Client Indicator'!$A$3:$AB$3, 0))=\"\", \"\",  INDEX('Full set Core Client Indicator'!$A$3:$AB$351, MATCH(Selection_Hide2!$A224, 'Full set Core Client Indicator'!$A$3:$A$351, 0), MATCH(Selection_Hide2!R$5, 'Full set Core Client Indicator'!$A$3:$AB$3, 0))), \"\")","v":""},{"$f":"IF(R224<>\"\", IF(INDEX('Full set Core Client Indicator'!$A$3:$AB$351, MATCH(Selection_Hide2!$A224, 'Full set Core Client Indicator'!$A$3:$A$351, 0), MATCH(Selection_Hide2!S$5, 'Full set Core Client Indicator'!$A$3:$AB$3, 0))=\"\", \"\",  INDEX('Full set Core Client Indicator'!$A$3:$AB$351, MATCH(Selection_Hide2!$A224, 'Full set Core Client Indicator'!$A$3:$A$351, 0), MATCH(Selection_Hide2!S$5, 'Full set Core Client Indicator'!$A$3:$AB$3, 0))), \"\")","v":""},{"$f":"IF(S224<>\"\", IF(INDEX('Full set Core Client Indicator'!$A$3:$AB$351, MATCH(Selection_Hide2!$A224, 'Full set Core Client Indicator'!$A$3:$A$351, 0), MATCH(Selection_Hide2!T$5, 'Full set Core Client Indicator'!$A$3:$AB$3, 0))=\"\", \"\",  INDEX('Full set Core Client Indicator'!$A$3:$AB$351, MATCH(Selection_Hide2!$A224, 'Full set Core Client Indicator'!$A$3:$A$351, 0), MATCH(Selection_Hide2!T$5, 'Full set Core Client Indicator'!$A$3:$AB$3, 0))), \"\")","v":""},{"$f":"IF(T224<>\"\", IF(INDEX('Full set Core Client Indicator'!$A$3:$AB$351, MATCH(Selection_Hide2!$A224, 'Full set Core Client Indicator'!$A$3:$A$351, 0), MATCH(Selection_Hide2!U$5, 'Full set Core Client Indicator'!$A$3:$AB$3, 0))=\"\", \"\",  INDEX('Full set Core Client Indicator'!$A$3:$AB$351, MATCH(Selection_Hide2!$A224, 'Full set Core Client Indicator'!$A$3:$A$351, 0), MATCH(Selection_Hide2!U$5, 'Full set Core Client Indicator'!$A$3:$AB$3, 0))), \"\")","v":""},{"$f":"IF(U224<>\"\", IF(INDEX('Full set Core Client Indicator'!$A$3:$AB$351, MATCH(Selection_Hide2!$A224, 'Full set Core Client Indicator'!$A$3:$A$351, 0), MATCH(Selection_Hide2!V$5, 'Full set Core Client Indicator'!$A$3:$AB$3, 0))=\"\", \"\",  INDEX('Full set Core Client Indicator'!$A$3:$AB$351, MATCH(Selection_Hide2!$A224, 'Full set Core Client Indicator'!$A$3:$A$351, 0), MATCH(Selection_Hide2!V$5, 'Full set Core Client Indicator'!$A$3:$AB$3, 0))), \"\")","v":""},{"$f":"IF(V224<>\"\", IF(INDEX('Full set Core Client Indicator'!$A$3:$AB$351, MATCH(Selection_Hide2!$A224, 'Full set Core Client Indicator'!$A$3:$A$351, 0), MATCH(Selection_Hide2!W$5, 'Full set Core Client Indicator'!$A$3:$AB$3, 0))=\"\", \"\",  INDEX('Full set Core Client Indicator'!$A$3:$AB$351, MATCH(Selection_Hide2!$A224, 'Full set Core Client Indicator'!$A$3:$A$351, 0), MATCH(Selection_Hide2!W$5, 'Full set Core Client Indicator'!$A$3:$AB$3, 0))), \"\")","v":""},{"$f":"IF(W224<>\"\", IF(INDEX('Full set Core Client Indicator'!$A$3:$AB$351, MATCH(Selection_Hide2!$A224, 'Full set Core Client Indicator'!$A$3:$A$351, 0), MATCH(Selection_Hide2!X$5, 'Full set Core Client Indicator'!$A$3:$AB$3, 0))=\"\", \"\",  INDEX('Full set Core Client Indicator'!$A$3:$AB$351, MATCH(Selection_Hide2!$A224, 'Full set Core Client Indicator'!$A$3:$A$351, 0), MATCH(Selection_Hide2!X$5, 'Full set Core Client Indicator'!$A$3:$AB$3, 0))), \"\")","v":""},{"$f":"IF(X224<>\"\", IF(INDEX('Full set Core Client Indicator'!$A$3:$AB$351, MATCH(Selection_Hide2!$A224, 'Full set Core Client Indicator'!$A$3:$A$351, 0), MATCH(Selection_Hide2!Y$5, 'Full set Core Client Indicator'!$A$3:$AB$3, 0))=\"\", \"\",  INDEX('Full set Core Client Indicator'!$A$3:$AB$351, MATCH(Selection_Hide2!$A224, 'Full set Core Client Indicator'!$A$3:$A$351, 0), MATCH(Selection_Hide2!Y$5, 'Full set Core Client Indicator'!$A$3:$AB$3, 0))), \"\")","v":""},{"$f":"IF(Y224<>\"\", IF(INDEX('Full set Core Client Indicator'!$A$3:$AB$351, MATCH(Selection_Hide2!$A224, 'Full set Core Client Indicator'!$A$3:$A$351, 0), MATCH(Selection_Hide2!Z$5, 'Full set Core Client Indicator'!$A$3:$AB$3, 0))=\"\", \"\",  INDEX('Full set Core Client Indicator'!$A$3:$AB$351, MATCH(Selection_Hide2!$A224, 'Full set Core Client Indicator'!$A$3:$A$351, 0), MATCH(Selection_Hide2!Z$5, 'Full set Core Client Indicator'!$A$3:$AB$3, 0))), \"\")","v":""},{"$f":"IF(Z224<>\"\", IF(INDEX('Full set Core Client Indicator'!$A$3:$AB$351, MATCH(Selection_Hide2!$A224, 'Full set Core Client Indicator'!$A$3:$A$351, 0), MATCH(Selection_Hide2!AA$5, 'Full set Core Client Indicator'!$A$3:$AB$3, 0))=\"\", \"\",  INDEX('Full set Core Client Indicator'!$A$3:$AB$351, MATCH(Selection_Hide2!$A224, 'Full set Core Client Indicator'!$A$3:$A$351, 0), MATCH(Selection_Hide2!AA$5, 'Full set Core Client Indicator'!$A$3:$AB$3, 0))), \"\")","v":""},{"$f":"IF(AA224<>\"\", IF(INDEX('Full set Core Client Indicator'!$A$3:$AB$351, MATCH(Selection_Hide2!$A224, 'Full set Core Client Indicator'!$A$3:$A$351, 0), MATCH(Selection_Hide2!AB$5, 'Full set Core Client Indicator'!$A$3:$AB$3, 0))=\"\", \"\",  INDEX('Full set Core Client Indicator'!$A$3:$AB$351, MATCH(Selection_Hide2!$A224, 'Full set Core Client Indicator'!$A$3:$A$351, 0), MATCH(Selection_Hide2!AB$5, 'Full set Core Client Indicator'!$A$3:$AB$3, 0))), \"\")","v":""}]
[{"$f":"IF(AND(Selection_Hide1!C223<>0, Selection_Hide1!C223<>\"Grand Total\"), Selection_Hide1!C223, \"\")","v":""},{"$f":"IF(A225<>\"\", IF(INDEX('Full set Core Client Indicator'!$A$3:$AB$351, MATCH(Selection_Hide2!$A225, 'Full set Core Client Indicator'!$A$3:$A$351, 0), MATCH(Selection_Hide2!B$5, 'Full set Core Client Indicator'!$A$3:$AB$3, 0))=\"\", \"\",  INDEX('Full set Core Client Indicator'!$A$3:$AB$351, MATCH(Selection_Hide2!$A225, 'Full set Core Client Indicator'!$A$3:$A$351, 0), MATCH(Selection_Hide2!B$5, 'Full set Core Client Indicator'!$A$3:$AB$3, 0))), \"\")","v":""},{"$f":"IF(B225<>\"\", IF(INDEX('Full set Core Client Indicator'!$A$3:$AB$351, MATCH(Selection_Hide2!$A225, 'Full set Core Client Indicator'!$A$3:$A$351, 0), MATCH(Selection_Hide2!C$5, 'Full set Core Client Indicator'!$A$3:$AB$3, 0))=\"\", \"\",  INDEX('Full set Core Client Indicator'!$A$3:$AB$351, MATCH(Selection_Hide2!$A225, 'Full set Core Client Indicator'!$A$3:$A$351, 0), MATCH(Selection_Hide2!C$5, 'Full set Core Client Indicator'!$A$3:$AB$3, 0))), \"\")","v":""},{"$f":"IF(C225<>\"\", IF(INDEX('Full set Core Client Indicator'!$A$3:$AB$351, MATCH(Selection_Hide2!$A225, 'Full set Core Client Indicator'!$A$3:$A$351, 0), MATCH(Selection_Hide2!D$5, 'Full set Core Client Indicator'!$A$3:$AB$3, 0))=\"\", \"\",  INDEX('Full set Core Client Indicator'!$A$3:$AB$351, MATCH(Selection_Hide2!$A225, 'Full set Core Client Indicator'!$A$3:$A$351, 0), MATCH(Selection_Hide2!D$5, 'Full set Core Client Indicator'!$A$3:$AB$3, 0))), \"\")","v":""},{"$f":"IF(D225<>\"\", IF(INDEX('Full set Core Client Indicator'!$A$3:$AB$351, MATCH(Selection_Hide2!$A225, 'Full set Core Client Indicator'!$A$3:$A$351, 0), MATCH(Selection_Hide2!E$5, 'Full set Core Client Indicator'!$A$3:$AB$3, 0))=\"\", \"\",  INDEX('Full set Core Client Indicator'!$A$3:$AB$351, MATCH(Selection_Hide2!$A225, 'Full set Core Client Indicator'!$A$3:$A$351, 0), MATCH(Selection_Hide2!E$5, 'Full set Core Client Indicator'!$A$3:$AB$3, 0))), \"\")","v":""},{"$f":"IF(E225<>\"\", IF(INDEX('Full set Core Client Indicator'!$A$3:$AB$351, MATCH(Selection_Hide2!$A225, 'Full set Core Client Indicator'!$A$3:$A$351, 0), MATCH(Selection_Hide2!F$5, 'Full set Core Client Indicator'!$A$3:$AB$3, 0))=\"\", \"\",  INDEX('Full set Core Client Indicator'!$A$3:$AB$351, MATCH(Selection_Hide2!$A225, 'Full set Core Client Indicator'!$A$3:$A$351, 0), MATCH(Selection_Hide2!F$5, 'Full set Core Client Indicator'!$A$3:$AB$3, 0))), \"\")","v":""},{"$f":"IF(F225<>\"\", IF(INDEX('Full set Core Client Indicator'!$A$3:$AB$351, MATCH(Selection_Hide2!$A225, 'Full set Core Client Indicator'!$A$3:$A$351, 0), MATCH(Selection_Hide2!G$5, 'Full set Core Client Indicator'!$A$3:$AB$3, 0))=\"\", \"\",  INDEX('Full set Core Client Indicator'!$A$3:$AB$351, MATCH(Selection_Hide2!$A225, 'Full set Core Client Indicator'!$A$3:$A$351, 0), MATCH(Selection_Hide2!G$5, 'Full set Core Client Indicator'!$A$3:$AB$3, 0))), \"\")","v":""},{"$f":"IF(G225<>\"\", IF(INDEX('Full set Core Client Indicator'!$A$3:$AB$351, MATCH(Selection_Hide2!$A225, 'Full set Core Client Indicator'!$A$3:$A$351, 0), MATCH(Selection_Hide2!H$5, 'Full set Core Client Indicator'!$A$3:$AB$3, 0))=\"\", \"\",  INDEX('Full set Core Client Indicator'!$A$3:$AB$351, MATCH(Selection_Hide2!$A225, 'Full set Core Client Indicator'!$A$3:$A$351, 0), MATCH(Selection_Hide2!H$5, 'Full set Core Client Indicator'!$A$3:$AB$3, 0))), \"\")","v":""},{"$f":"IF(H225<>\"\", IF(INDEX('Full set Core Client Indicator'!$A$3:$AB$351, MATCH(Selection_Hide2!$A225, 'Full set Core Client Indicator'!$A$3:$A$351, 0), MATCH(Selection_Hide2!I$5, 'Full set Core Client Indicator'!$A$3:$AB$3, 0))=\"\", \"\",  INDEX('Full set Core Client Indicator'!$A$3:$AB$351, MATCH(Selection_Hide2!$A225, 'Full set Core Client Indicator'!$A$3:$A$351, 0), MATCH(Selection_Hide2!I$5, 'Full set Core Client Indicator'!$A$3:$AB$3, 0))), \"\")","v":""},{"$f":"IF(I225<>\"\", IF(INDEX('Full set Core Client Indicator'!$A$3:$AB$351, MATCH(Selection_Hide2!$A225, 'Full set Core Client Indicator'!$A$3:$A$351, 0), MATCH(Selection_Hide2!J$5, 'Full set Core Client Indicator'!$A$3:$AB$3, 0))=\"\", \"\",  INDEX('Full set Core Client Indicator'!$A$3:$AB$351, MATCH(Selection_Hide2!$A225, 'Full set Core Client Indicator'!$A$3:$A$351, 0), MATCH(Selection_Hide2!J$5, 'Full set Core Client Indicator'!$A$3:$AB$3, 0))), \"\")","v":""},{"$f":"IF(J225<>\"\", IF(INDEX('Full set Core Client Indicator'!$A$3:$AB$351, MATCH(Selection_Hide2!$A225, 'Full set Core Client Indicator'!$A$3:$A$351, 0), MATCH(Selection_Hide2!K$5, 'Full set Core Client Indicator'!$A$3:$AB$3, 0))=\"\", \"\",  INDEX('Full set Core Client Indicator'!$A$3:$AB$351, MATCH(Selection_Hide2!$A225, 'Full set Core Client Indicator'!$A$3:$A$351, 0), MATCH(Selection_Hide2!K$5, 'Full set Core Client Indicator'!$A$3:$AB$3, 0))), \"\")","v":""},{"$f":"IF(K225<>\"\", IF(INDEX('Full set Core Client Indicator'!$A$3:$AB$351, MATCH(Selection_Hide2!$A225, 'Full set Core Client Indicator'!$A$3:$A$351, 0), MATCH(Selection_Hide2!L$5, 'Full set Core Client Indicator'!$A$3:$AB$3, 0))=\"\", \"\",  INDEX('Full set Core Client Indicator'!$A$3:$AB$351, MATCH(Selection_Hide2!$A225, 'Full set Core Client Indicator'!$A$3:$A$351, 0), MATCH(Selection_Hide2!L$5, 'Full set Core Client Indicator'!$A$3:$AB$3, 0))), \"\")","v":""},{"$f":"IF(L225<>\"\", IF(INDEX('Full set Core Client Indicator'!$A$3:$AB$351, MATCH(Selection_Hide2!$A225, 'Full set Core Client Indicator'!$A$3:$A$351, 0), MATCH(Selection_Hide2!M$5, 'Full set Core Client Indicator'!$A$3:$AB$3, 0))=\"\", \"\",  INDEX('Full set Core Client Indicator'!$A$3:$AB$351, MATCH(Selection_Hide2!$A225, 'Full set Core Client Indicator'!$A$3:$A$351, 0), MATCH(Selection_Hide2!M$5, 'Full set Core Client Indicator'!$A$3:$AB$3, 0))), \"\")","v":""},{"$f":"IF(M225<>\"\", IF(INDEX('Full set Core Client Indicator'!$A$3:$AB$351, MATCH(Selection_Hide2!$A225, 'Full set Core Client Indicator'!$A$3:$A$351, 0), MATCH(Selection_Hide2!N$5, 'Full set Core Client Indicator'!$A$3:$AB$3, 0))=\"\", \"\",  INDEX('Full set Core Client Indicator'!$A$3:$AB$351, MATCH(Selection_Hide2!$A225, 'Full set Core Client Indicator'!$A$3:$A$351, 0), MATCH(Selection_Hide2!N$5, 'Full set Core Client Indicator'!$A$3:$AB$3, 0))), \"\")","v":""},{"$f":"IF(N225<>\"\", IF(INDEX('Full set Core Client Indicator'!$A$3:$AB$351, MATCH(Selection_Hide2!$A225, 'Full set Core Client Indicator'!$A$3:$A$351, 0), MATCH(Selection_Hide2!O$5, 'Full set Core Client Indicator'!$A$3:$AB$3, 0))=\"\", \"\",  INDEX('Full set Core Client Indicator'!$A$3:$AB$351, MATCH(Selection_Hide2!$A225, 'Full set Core Client Indicator'!$A$3:$A$351, 0), MATCH(Selection_Hide2!O$5, 'Full set Core Client Indicator'!$A$3:$AB$3, 0))), \"\")","v":""},{"$f":"IF(O225<>\"\", IF(INDEX('Full set Core Client Indicator'!$A$3:$AB$351, MATCH(Selection_Hide2!$A225, 'Full set Core Client Indicator'!$A$3:$A$351, 0), MATCH(Selection_Hide2!P$5, 'Full set Core Client Indicator'!$A$3:$AB$3, 0))=\"\", \"\",  INDEX('Full set Core Client Indicator'!$A$3:$AB$351, MATCH(Selection_Hide2!$A225, 'Full set Core Client Indicator'!$A$3:$A$351, 0), MATCH(Selection_Hide2!P$5, 'Full set Core Client Indicator'!$A$3:$AB$3, 0))), \"\")","v":""},{"$f":"IF(P225<>\"\", IF(INDEX('Full set Core Client Indicator'!$A$3:$AB$351, MATCH(Selection_Hide2!$A225, 'Full set Core Client Indicator'!$A$3:$A$351, 0), MATCH(Selection_Hide2!Q$5, 'Full set Core Client Indicator'!$A$3:$AB$3, 0))=\"\", \"\",  INDEX('Full set Core Client Indicator'!$A$3:$AB$351, MATCH(Selection_Hide2!$A225, 'Full set Core Client Indicator'!$A$3:$A$351, 0), MATCH(Selection_Hide2!Q$5, 'Full set Core Client Indicator'!$A$3:$AB$3, 0))), \"\")","v":""},{"$f":"IF(Q225<>\"\", IF(INDEX('Full set Core Client Indicator'!$A$3:$AB$351, MATCH(Selection_Hide2!$A225, 'Full set Core Client Indicator'!$A$3:$A$351, 0), MATCH(Selection_Hide2!R$5, 'Full set Core Client Indicator'!$A$3:$AB$3, 0))=\"\", \"\",  INDEX('Full set Core Client Indicator'!$A$3:$AB$351, MATCH(Selection_Hide2!$A225, 'Full set Core Client Indicator'!$A$3:$A$351, 0), MATCH(Selection_Hide2!R$5, 'Full set Core Client Indicator'!$A$3:$AB$3, 0))), \"\")","v":""},{"$f":"IF(R225<>\"\", IF(INDEX('Full set Core Client Indicator'!$A$3:$AB$351, MATCH(Selection_Hide2!$A225, 'Full set Core Client Indicator'!$A$3:$A$351, 0), MATCH(Selection_Hide2!S$5, 'Full set Core Client Indicator'!$A$3:$AB$3, 0))=\"\", \"\",  INDEX('Full set Core Client Indicator'!$A$3:$AB$351, MATCH(Selection_Hide2!$A225, 'Full set Core Client Indicator'!$A$3:$A$351, 0), MATCH(Selection_Hide2!S$5, 'Full set Core Client Indicator'!$A$3:$AB$3, 0))), \"\")","v":""},{"$f":"IF(S225<>\"\", IF(INDEX('Full set Core Client Indicator'!$A$3:$AB$351, MATCH(Selection_Hide2!$A225, 'Full set Core Client Indicator'!$A$3:$A$351, 0), MATCH(Selection_Hide2!T$5, 'Full set Core Client Indicator'!$A$3:$AB$3, 0))=\"\", \"\",  INDEX('Full set Core Client Indicator'!$A$3:$AB$351, MATCH(Selection_Hide2!$A225, 'Full set Core Client Indicator'!$A$3:$A$351, 0), MATCH(Selection_Hide2!T$5, 'Full set Core Client Indicator'!$A$3:$AB$3, 0))), \"\")","v":""},{"$f":"IF(T225<>\"\", IF(INDEX('Full set Core Client Indicator'!$A$3:$AB$351, MATCH(Selection_Hide2!$A225, 'Full set Core Client Indicator'!$A$3:$A$351, 0), MATCH(Selection_Hide2!U$5, 'Full set Core Client Indicator'!$A$3:$AB$3, 0))=\"\", \"\",  INDEX('Full set Core Client Indicator'!$A$3:$AB$351, MATCH(Selection_Hide2!$A225, 'Full set Core Client Indicator'!$A$3:$A$351, 0), MATCH(Selection_Hide2!U$5, 'Full set Core Client Indicator'!$A$3:$AB$3, 0))), \"\")","v":""},{"$f":"IF(U225<>\"\", IF(INDEX('Full set Core Client Indicator'!$A$3:$AB$351, MATCH(Selection_Hide2!$A225, 'Full set Core Client Indicator'!$A$3:$A$351, 0), MATCH(Selection_Hide2!V$5, 'Full set Core Client Indicator'!$A$3:$AB$3, 0))=\"\", \"\",  INDEX('Full set Core Client Indicator'!$A$3:$AB$351, MATCH(Selection_Hide2!$A225, 'Full set Core Client Indicator'!$A$3:$A$351, 0), MATCH(Selection_Hide2!V$5, 'Full set Core Client Indicator'!$A$3:$AB$3, 0))), \"\")","v":""},{"$f":"IF(V225<>\"\", IF(INDEX('Full set Core Client Indicator'!$A$3:$AB$351, MATCH(Selection_Hide2!$A225, 'Full set Core Client Indicator'!$A$3:$A$351, 0), MATCH(Selection_Hide2!W$5, 'Full set Core Client Indicator'!$A$3:$AB$3, 0))=\"\", \"\",  INDEX('Full set Core Client Indicator'!$A$3:$AB$351, MATCH(Selection_Hide2!$A225, 'Full set Core Client Indicator'!$A$3:$A$351, 0), MATCH(Selection_Hide2!W$5, 'Full set Core Client Indicator'!$A$3:$AB$3, 0))), \"\")","v":""},{"$f":"IF(W225<>\"\", IF(INDEX('Full set Core Client Indicator'!$A$3:$AB$351, MATCH(Selection_Hide2!$A225, 'Full set Core Client Indicator'!$A$3:$A$351, 0), MATCH(Selection_Hide2!X$5, 'Full set Core Client Indicator'!$A$3:$AB$3, 0))=\"\", \"\",  INDEX('Full set Core Client Indicator'!$A$3:$AB$351, MATCH(Selection_Hide2!$A225, 'Full set Core Client Indicator'!$A$3:$A$351, 0), MATCH(Selection_Hide2!X$5, 'Full set Core Client Indicator'!$A$3:$AB$3, 0))), \"\")","v":""},{"$f":"IF(X225<>\"\", IF(INDEX('Full set Core Client Indicator'!$A$3:$AB$351, MATCH(Selection_Hide2!$A225, 'Full set Core Client Indicator'!$A$3:$A$351, 0), MATCH(Selection_Hide2!Y$5, 'Full set Core Client Indicator'!$A$3:$AB$3, 0))=\"\", \"\",  INDEX('Full set Core Client Indicator'!$A$3:$AB$351, MATCH(Selection_Hide2!$A225, 'Full set Core Client Indicator'!$A$3:$A$351, 0), MATCH(Selection_Hide2!Y$5, 'Full set Core Client Indicator'!$A$3:$AB$3, 0))), \"\")","v":""},{"$f":"IF(Y225<>\"\", IF(INDEX('Full set Core Client Indicator'!$A$3:$AB$351, MATCH(Selection_Hide2!$A225, 'Full set Core Client Indicator'!$A$3:$A$351, 0), MATCH(Selection_Hide2!Z$5, 'Full set Core Client Indicator'!$A$3:$AB$3, 0))=\"\", \"\",  INDEX('Full set Core Client Indicator'!$A$3:$AB$351, MATCH(Selection_Hide2!$A225, 'Full set Core Client Indicator'!$A$3:$A$351, 0), MATCH(Selection_Hide2!Z$5, 'Full set Core Client Indicator'!$A$3:$AB$3, 0))), \"\")","v":""},{"$f":"IF(Z225<>\"\", IF(INDEX('Full set Core Client Indicator'!$A$3:$AB$351, MATCH(Selection_Hide2!$A225, 'Full set Core Client Indicator'!$A$3:$A$351, 0), MATCH(Selection_Hide2!AA$5, 'Full set Core Client Indicator'!$A$3:$AB$3, 0))=\"\", \"\",  INDEX('Full set Core Client Indicator'!$A$3:$AB$351, MATCH(Selection_Hide2!$A225, 'Full set Core Client Indicator'!$A$3:$A$351, 0), MATCH(Selection_Hide2!AA$5, 'Full set Core Client Indicator'!$A$3:$AB$3, 0))), \"\")","v":""},{"$f":"IF(AA225<>\"\", IF(INDEX('Full set Core Client Indicator'!$A$3:$AB$351, MATCH(Selection_Hide2!$A225, 'Full set Core Client Indicator'!$A$3:$A$351, 0), MATCH(Selection_Hide2!AB$5, 'Full set Core Client Indicator'!$A$3:$AB$3, 0))=\"\", \"\",  INDEX('Full set Core Client Indicator'!$A$3:$AB$351, MATCH(Selection_Hide2!$A225, 'Full set Core Client Indicator'!$A$3:$A$351, 0), MATCH(Selection_Hide2!AB$5, 'Full set Core Client Indicator'!$A$3:$AB$3, 0))), \"\")","v":""}]
[{"$f":"IF(AND(Selection_Hide1!C224<>0, Selection_Hide1!C224<>\"Grand Total\"), Selection_Hide1!C224, \"\")","v":""},{"$f":"IF(A226<>\"\", IF(INDEX('Full set Core Client Indicator'!$A$3:$AB$351, MATCH(Selection_Hide2!$A226, 'Full set Core Client Indicator'!$A$3:$A$351, 0), MATCH(Selection_Hide2!B$5, 'Full set Core Client Indicator'!$A$3:$AB$3, 0))=\"\", \"\",  INDEX('Full set Core Client Indicator'!$A$3:$AB$351, MATCH(Selection_Hide2!$A226, 'Full set Core Client Indicator'!$A$3:$A$351, 0), MATCH(Selection_Hide2!B$5, 'Full set Core Client Indicator'!$A$3:$AB$3, 0))), \"\")","v":""},{"$f":"IF(B226<>\"\", IF(INDEX('Full set Core Client Indicator'!$A$3:$AB$351, MATCH(Selection_Hide2!$A226, 'Full set Core Client Indicator'!$A$3:$A$351, 0), MATCH(Selection_Hide2!C$5, 'Full set Core Client Indicator'!$A$3:$AB$3, 0))=\"\", \"\",  INDEX('Full set Core Client Indicator'!$A$3:$AB$351, MATCH(Selection_Hide2!$A226, 'Full set Core Client Indicator'!$A$3:$A$351, 0), MATCH(Selection_Hide2!C$5, 'Full set Core Client Indicator'!$A$3:$AB$3, 0))), \"\")","v":""},{"$f":"IF(C226<>\"\", IF(INDEX('Full set Core Client Indicator'!$A$3:$AB$351, MATCH(Selection_Hide2!$A226, 'Full set Core Client Indicator'!$A$3:$A$351, 0), MATCH(Selection_Hide2!D$5, 'Full set Core Client Indicator'!$A$3:$AB$3, 0))=\"\", \"\",  INDEX('Full set Core Client Indicator'!$A$3:$AB$351, MATCH(Selection_Hide2!$A226, 'Full set Core Client Indicator'!$A$3:$A$351, 0), MATCH(Selection_Hide2!D$5, 'Full set Core Client Indicator'!$A$3:$AB$3, 0))), \"\")","v":""},{"$f":"IF(D226<>\"\", IF(INDEX('Full set Core Client Indicator'!$A$3:$AB$351, MATCH(Selection_Hide2!$A226, 'Full set Core Client Indicator'!$A$3:$A$351, 0), MATCH(Selection_Hide2!E$5, 'Full set Core Client Indicator'!$A$3:$AB$3, 0))=\"\", \"\",  INDEX('Full set Core Client Indicator'!$A$3:$AB$351, MATCH(Selection_Hide2!$A226, 'Full set Core Client Indicator'!$A$3:$A$351, 0), MATCH(Selection_Hide2!E$5, 'Full set Core Client Indicator'!$A$3:$AB$3, 0))), \"\")","v":""},{"$f":"IF(E226<>\"\", IF(INDEX('Full set Core Client Indicator'!$A$3:$AB$351, MATCH(Selection_Hide2!$A226, 'Full set Core Client Indicator'!$A$3:$A$351, 0), MATCH(Selection_Hide2!F$5, 'Full set Core Client Indicator'!$A$3:$AB$3, 0))=\"\", \"\",  INDEX('Full set Core Client Indicator'!$A$3:$AB$351, MATCH(Selection_Hide2!$A226, 'Full set Core Client Indicator'!$A$3:$A$351, 0), MATCH(Selection_Hide2!F$5, 'Full set Core Client Indicator'!$A$3:$AB$3, 0))), \"\")","v":""},{"$f":"IF(F226<>\"\", IF(INDEX('Full set Core Client Indicator'!$A$3:$AB$351, MATCH(Selection_Hide2!$A226, 'Full set Core Client Indicator'!$A$3:$A$351, 0), MATCH(Selection_Hide2!G$5, 'Full set Core Client Indicator'!$A$3:$AB$3, 0))=\"\", \"\",  INDEX('Full set Core Client Indicator'!$A$3:$AB$351, MATCH(Selection_Hide2!$A226, 'Full set Core Client Indicator'!$A$3:$A$351, 0), MATCH(Selection_Hide2!G$5, 'Full set Core Client Indicator'!$A$3:$AB$3, 0))), \"\")","v":""},{"$f":"IF(G226<>\"\", IF(INDEX('Full set Core Client Indicator'!$A$3:$AB$351, MATCH(Selection_Hide2!$A226, 'Full set Core Client Indicator'!$A$3:$A$351, 0), MATCH(Selection_Hide2!H$5, 'Full set Core Client Indicator'!$A$3:$AB$3, 0))=\"\", \"\",  INDEX('Full set Core Client Indicator'!$A$3:$AB$351, MATCH(Selection_Hide2!$A226, 'Full set Core Client Indicator'!$A$3:$A$351, 0), MATCH(Selection_Hide2!H$5, 'Full set Core Client Indicator'!$A$3:$AB$3, 0))), \"\")","v":""},{"$f":"IF(H226<>\"\", IF(INDEX('Full set Core Client Indicator'!$A$3:$AB$351, MATCH(Selection_Hide2!$A226, 'Full set Core Client Indicator'!$A$3:$A$351, 0), MATCH(Selection_Hide2!I$5, 'Full set Core Client Indicator'!$A$3:$AB$3, 0))=\"\", \"\",  INDEX('Full set Core Client Indicator'!$A$3:$AB$351, MATCH(Selection_Hide2!$A226, 'Full set Core Client Indicator'!$A$3:$A$351, 0), MATCH(Selection_Hide2!I$5, 'Full set Core Client Indicator'!$A$3:$AB$3, 0))), \"\")","v":""},{"$f":"IF(I226<>\"\", IF(INDEX('Full set Core Client Indicator'!$A$3:$AB$351, MATCH(Selection_Hide2!$A226, 'Full set Core Client Indicator'!$A$3:$A$351, 0), MATCH(Selection_Hide2!J$5, 'Full set Core Client Indicator'!$A$3:$AB$3, 0))=\"\", \"\",  INDEX('Full set Core Client Indicator'!$A$3:$AB$351, MATCH(Selection_Hide2!$A226, 'Full set Core Client Indicator'!$A$3:$A$351, 0), MATCH(Selection_Hide2!J$5, 'Full set Core Client Indicator'!$A$3:$AB$3, 0))), \"\")","v":""},{"$f":"IF(J226<>\"\", IF(INDEX('Full set Core Client Indicator'!$A$3:$AB$351, MATCH(Selection_Hide2!$A226, 'Full set Core Client Indicator'!$A$3:$A$351, 0), MATCH(Selection_Hide2!K$5, 'Full set Core Client Indicator'!$A$3:$AB$3, 0))=\"\", \"\",  INDEX('Full set Core Client Indicator'!$A$3:$AB$351, MATCH(Selection_Hide2!$A226, 'Full set Core Client Indicator'!$A$3:$A$351, 0), MATCH(Selection_Hide2!K$5, 'Full set Core Client Indicator'!$A$3:$AB$3, 0))), \"\")","v":""},{"$f":"IF(K226<>\"\", IF(INDEX('Full set Core Client Indicator'!$A$3:$AB$351, MATCH(Selection_Hide2!$A226, 'Full set Core Client Indicator'!$A$3:$A$351, 0), MATCH(Selection_Hide2!L$5, 'Full set Core Client Indicator'!$A$3:$AB$3, 0))=\"\", \"\",  INDEX('Full set Core Client Indicator'!$A$3:$AB$351, MATCH(Selection_Hide2!$A226, 'Full set Core Client Indicator'!$A$3:$A$351, 0), MATCH(Selection_Hide2!L$5, 'Full set Core Client Indicator'!$A$3:$AB$3, 0))), \"\")","v":""},{"$f":"IF(L226<>\"\", IF(INDEX('Full set Core Client Indicator'!$A$3:$AB$351, MATCH(Selection_Hide2!$A226, 'Full set Core Client Indicator'!$A$3:$A$351, 0), MATCH(Selection_Hide2!M$5, 'Full set Core Client Indicator'!$A$3:$AB$3, 0))=\"\", \"\",  INDEX('Full set Core Client Indicator'!$A$3:$AB$351, MATCH(Selection_Hide2!$A226, 'Full set Core Client Indicator'!$A$3:$A$351, 0), MATCH(Selection_Hide2!M$5, 'Full set Core Client Indicator'!$A$3:$AB$3, 0))), \"\")","v":""},{"$f":"IF(M226<>\"\", IF(INDEX('Full set Core Client Indicator'!$A$3:$AB$351, MATCH(Selection_Hide2!$A226, 'Full set Core Client Indicator'!$A$3:$A$351, 0), MATCH(Selection_Hide2!N$5, 'Full set Core Client Indicator'!$A$3:$AB$3, 0))=\"\", \"\",  INDEX('Full set Core Client Indicator'!$A$3:$AB$351, MATCH(Selection_Hide2!$A226, 'Full set Core Client Indicator'!$A$3:$A$351, 0), MATCH(Selection_Hide2!N$5, 'Full set Core Client Indicator'!$A$3:$AB$3, 0))), \"\")","v":""},{"$f":"IF(N226<>\"\", IF(INDEX('Full set Core Client Indicator'!$A$3:$AB$351, MATCH(Selection_Hide2!$A226, 'Full set Core Client Indicator'!$A$3:$A$351, 0), MATCH(Selection_Hide2!O$5, 'Full set Core Client Indicator'!$A$3:$AB$3, 0))=\"\", \"\",  INDEX('Full set Core Client Indicator'!$A$3:$AB$351, MATCH(Selection_Hide2!$A226, 'Full set Core Client Indicator'!$A$3:$A$351, 0), MATCH(Selection_Hide2!O$5, 'Full set Core Client Indicator'!$A$3:$AB$3, 0))), \"\")","v":""},{"$f":"IF(O226<>\"\", IF(INDEX('Full set Core Client Indicator'!$A$3:$AB$351, MATCH(Selection_Hide2!$A226, 'Full set Core Client Indicator'!$A$3:$A$351, 0), MATCH(Selection_Hide2!P$5, 'Full set Core Client Indicator'!$A$3:$AB$3, 0))=\"\", \"\",  INDEX('Full set Core Client Indicator'!$A$3:$AB$351, MATCH(Selection_Hide2!$A226, 'Full set Core Client Indicator'!$A$3:$A$351, 0), MATCH(Selection_Hide2!P$5, 'Full set Core Client Indicator'!$A$3:$AB$3, 0))), \"\")","v":""},{"$f":"IF(P226<>\"\", IF(INDEX('Full set Core Client Indicator'!$A$3:$AB$351, MATCH(Selection_Hide2!$A226, 'Full set Core Client Indicator'!$A$3:$A$351, 0), MATCH(Selection_Hide2!Q$5, 'Full set Core Client Indicator'!$A$3:$AB$3, 0))=\"\", \"\",  INDEX('Full set Core Client Indicator'!$A$3:$AB$351, MATCH(Selection_Hide2!$A226, 'Full set Core Client Indicator'!$A$3:$A$351, 0), MATCH(Selection_Hide2!Q$5, 'Full set Core Client Indicator'!$A$3:$AB$3, 0))), \"\")","v":""},{"$f":"IF(Q226<>\"\", IF(INDEX('Full set Core Client Indicator'!$A$3:$AB$351, MATCH(Selection_Hide2!$A226, 'Full set Core Client Indicator'!$A$3:$A$351, 0), MATCH(Selection_Hide2!R$5, 'Full set Core Client Indicator'!$A$3:$AB$3, 0))=\"\", \"\",  INDEX('Full set Core Client Indicator'!$A$3:$AB$351, MATCH(Selection_Hide2!$A226, 'Full set Core Client Indicator'!$A$3:$A$351, 0), MATCH(Selection_Hide2!R$5, 'Full set Core Client Indicator'!$A$3:$AB$3, 0))), \"\")","v":""},{"$f":"IF(R226<>\"\", IF(INDEX('Full set Core Client Indicator'!$A$3:$AB$351, MATCH(Selection_Hide2!$A226, 'Full set Core Client Indicator'!$A$3:$A$351, 0), MATCH(Selection_Hide2!S$5, 'Full set Core Client Indicator'!$A$3:$AB$3, 0))=\"\", \"\",  INDEX('Full set Core Client Indicator'!$A$3:$AB$351, MATCH(Selection_Hide2!$A226, 'Full set Core Client Indicator'!$A$3:$A$351, 0), MATCH(Selection_Hide2!S$5, 'Full set Core Client Indicator'!$A$3:$AB$3, 0))), \"\")","v":""},{"$f":"IF(S226<>\"\", IF(INDEX('Full set Core Client Indicator'!$A$3:$AB$351, MATCH(Selection_Hide2!$A226, 'Full set Core Client Indicator'!$A$3:$A$351, 0), MATCH(Selection_Hide2!T$5, 'Full set Core Client Indicator'!$A$3:$AB$3, 0))=\"\", \"\",  INDEX('Full set Core Client Indicator'!$A$3:$AB$351, MATCH(Selection_Hide2!$A226, 'Full set Core Client Indicator'!$A$3:$A$351, 0), MATCH(Selection_Hide2!T$5, 'Full set Core Client Indicator'!$A$3:$AB$3, 0))), \"\")","v":""},{"$f":"IF(T226<>\"\", IF(INDEX('Full set Core Client Indicator'!$A$3:$AB$351, MATCH(Selection_Hide2!$A226, 'Full set Core Client Indicator'!$A$3:$A$351, 0), MATCH(Selection_Hide2!U$5, 'Full set Core Client Indicator'!$A$3:$AB$3, 0))=\"\", \"\",  INDEX('Full set Core Client Indicator'!$A$3:$AB$351, MATCH(Selection_Hide2!$A226, 'Full set Core Client Indicator'!$A$3:$A$351, 0), MATCH(Selection_Hide2!U$5, 'Full set Core Client Indicator'!$A$3:$AB$3, 0))), \"\")","v":""},{"$f":"IF(U226<>\"\", IF(INDEX('Full set Core Client Indicator'!$A$3:$AB$351, MATCH(Selection_Hide2!$A226, 'Full set Core Client Indicator'!$A$3:$A$351, 0), MATCH(Selection_Hide2!V$5, 'Full set Core Client Indicator'!$A$3:$AB$3, 0))=\"\", \"\",  INDEX('Full set Core Client Indicator'!$A$3:$AB$351, MATCH(Selection_Hide2!$A226, 'Full set Core Client Indicator'!$A$3:$A$351, 0), MATCH(Selection_Hide2!V$5, 'Full set Core Client Indicator'!$A$3:$AB$3, 0))), \"\")","v":""},{"$f":"IF(V226<>\"\", IF(INDEX('Full set Core Client Indicator'!$A$3:$AB$351, MATCH(Selection_Hide2!$A226, 'Full set Core Client Indicator'!$A$3:$A$351, 0), MATCH(Selection_Hide2!W$5, 'Full set Core Client Indicator'!$A$3:$AB$3, 0))=\"\", \"\",  INDEX('Full set Core Client Indicator'!$A$3:$AB$351, MATCH(Selection_Hide2!$A226, 'Full set Core Client Indicator'!$A$3:$A$351, 0), MATCH(Selection_Hide2!W$5, 'Full set Core Client Indicator'!$A$3:$AB$3, 0))), \"\")","v":""},{"$f":"IF(W226<>\"\", IF(INDEX('Full set Core Client Indicator'!$A$3:$AB$351, MATCH(Selection_Hide2!$A226, 'Full set Core Client Indicator'!$A$3:$A$351, 0), MATCH(Selection_Hide2!X$5, 'Full set Core Client Indicator'!$A$3:$AB$3, 0))=\"\", \"\",  INDEX('Full set Core Client Indicator'!$A$3:$AB$351, MATCH(Selection_Hide2!$A226, 'Full set Core Client Indicator'!$A$3:$A$351, 0), MATCH(Selection_Hide2!X$5, 'Full set Core Client Indicator'!$A$3:$AB$3, 0))), \"\")","v":""},{"$f":"IF(X226<>\"\", IF(INDEX('Full set Core Client Indicator'!$A$3:$AB$351, MATCH(Selection_Hide2!$A226, 'Full set Core Client Indicator'!$A$3:$A$351, 0), MATCH(Selection_Hide2!Y$5, 'Full set Core Client Indicator'!$A$3:$AB$3, 0))=\"\", \"\",  INDEX('Full set Core Client Indicator'!$A$3:$AB$351, MATCH(Selection_Hide2!$A226, 'Full set Core Client Indicator'!$A$3:$A$351, 0), MATCH(Selection_Hide2!Y$5, 'Full set Core Client Indicator'!$A$3:$AB$3, 0))), \"\")","v":""},{"$f":"IF(Y226<>\"\", IF(INDEX('Full set Core Client Indicator'!$A$3:$AB$351, MATCH(Selection_Hide2!$A226, 'Full set Core Client Indicator'!$A$3:$A$351, 0), MATCH(Selection_Hide2!Z$5, 'Full set Core Client Indicator'!$A$3:$AB$3, 0))=\"\", \"\",  INDEX('Full set Core Client Indicator'!$A$3:$AB$351, MATCH(Selection_Hide2!$A226, 'Full set Core Client Indicator'!$A$3:$A$351, 0), MATCH(Selection_Hide2!Z$5, 'Full set Core Client Indicator'!$A$3:$AB$3, 0))), \"\")","v":""},{"$f":"IF(Z226<>\"\", IF(INDEX('Full set Core Client Indicator'!$A$3:$AB$351, MATCH(Selection_Hide2!$A226, 'Full set Core Client Indicator'!$A$3:$A$351, 0), MATCH(Selection_Hide2!AA$5, 'Full set Core Client Indicator'!$A$3:$AB$3, 0))=\"\", \"\",  INDEX('Full set Core Client Indicator'!$A$3:$AB$351, MATCH(Selection_Hide2!$A226, 'Full set Core Client Indicator'!$A$3:$A$351, 0), MATCH(Selection_Hide2!AA$5, 'Full set Core Client Indicator'!$A$3:$AB$3, 0))), \"\")","v":""},{"$f":"IF(AA226<>\"\", IF(INDEX('Full set Core Client Indicator'!$A$3:$AB$351, MATCH(Selection_Hide2!$A226, 'Full set Core Client Indicator'!$A$3:$A$351, 0), MATCH(Selection_Hide2!AB$5, 'Full set Core Client Indicator'!$A$3:$AB$3, 0))=\"\", \"\",  INDEX('Full set Core Client Indicator'!$A$3:$AB$351, MATCH(Selection_Hide2!$A226, 'Full set Core Client Indicator'!$A$3:$A$351, 0), MATCH(Selection_Hide2!AB$5, 'Full set Core Client Indicator'!$A$3:$AB$3, 0))), \"\")","v":""}]
[{"$f":"IF(AND(Selection_Hide1!C225<>0, Selection_Hide1!C225<>\"Grand Total\"), Selection_Hide1!C225, \"\")","v":""},{"$f":"IF(A227<>\"\", IF(INDEX('Full set Core Client Indicator'!$A$3:$AB$351, MATCH(Selection_Hide2!$A227, 'Full set Core Client Indicator'!$A$3:$A$351, 0), MATCH(Selection_Hide2!B$5, 'Full set Core Client Indicator'!$A$3:$AB$3, 0))=\"\", \"\",  INDEX('Full set Core Client Indicator'!$A$3:$AB$351, MATCH(Selection_Hide2!$A227, 'Full set Core Client Indicator'!$A$3:$A$351, 0), MATCH(Selection_Hide2!B$5, 'Full set Core Client Indicator'!$A$3:$AB$3, 0))), \"\")","v":""},{"$f":"IF(B227<>\"\", IF(INDEX('Full set Core Client Indicator'!$A$3:$AB$351, MATCH(Selection_Hide2!$A227, 'Full set Core Client Indicator'!$A$3:$A$351, 0), MATCH(Selection_Hide2!C$5, 'Full set Core Client Indicator'!$A$3:$AB$3, 0))=\"\", \"\",  INDEX('Full set Core Client Indicator'!$A$3:$AB$351, MATCH(Selection_Hide2!$A227, 'Full set Core Client Indicator'!$A$3:$A$351, 0), MATCH(Selection_Hide2!C$5, 'Full set Core Client Indicator'!$A$3:$AB$3, 0))), \"\")","v":""},{"$f":"IF(C227<>\"\", IF(INDEX('Full set Core Client Indicator'!$A$3:$AB$351, MATCH(Selection_Hide2!$A227, 'Full set Core Client Indicator'!$A$3:$A$351, 0), MATCH(Selection_Hide2!D$5, 'Full set Core Client Indicator'!$A$3:$AB$3, 0))=\"\", \"\",  INDEX('Full set Core Client Indicator'!$A$3:$AB$351, MATCH(Selection_Hide2!$A227, 'Full set Core Client Indicator'!$A$3:$A$351, 0), MATCH(Selection_Hide2!D$5, 'Full set Core Client Indicator'!$A$3:$AB$3, 0))), \"\")","v":""},{"$f":"IF(D227<>\"\", IF(INDEX('Full set Core Client Indicator'!$A$3:$AB$351, MATCH(Selection_Hide2!$A227, 'Full set Core Client Indicator'!$A$3:$A$351, 0), MATCH(Selection_Hide2!E$5, 'Full set Core Client Indicator'!$A$3:$AB$3, 0))=\"\", \"\",  INDEX('Full set Core Client Indicator'!$A$3:$AB$351, MATCH(Selection_Hide2!$A227, 'Full set Core Client Indicator'!$A$3:$A$351, 0), MATCH(Selection_Hide2!E$5, 'Full set Core Client Indicator'!$A$3:$AB$3, 0))), \"\")","v":""},{"$f":"IF(E227<>\"\", IF(INDEX('Full set Core Client Indicator'!$A$3:$AB$351, MATCH(Selection_Hide2!$A227, 'Full set Core Client Indicator'!$A$3:$A$351, 0), MATCH(Selection_Hide2!F$5, 'Full set Core Client Indicator'!$A$3:$AB$3, 0))=\"\", \"\",  INDEX('Full set Core Client Indicator'!$A$3:$AB$351, MATCH(Selection_Hide2!$A227, 'Full set Core Client Indicator'!$A$3:$A$351, 0), MATCH(Selection_Hide2!F$5, 'Full set Core Client Indicator'!$A$3:$AB$3, 0))), \"\")","v":""},{"$f":"IF(F227<>\"\", IF(INDEX('Full set Core Client Indicator'!$A$3:$AB$351, MATCH(Selection_Hide2!$A227, 'Full set Core Client Indicator'!$A$3:$A$351, 0), MATCH(Selection_Hide2!G$5, 'Full set Core Client Indicator'!$A$3:$AB$3, 0))=\"\", \"\",  INDEX('Full set Core Client Indicator'!$A$3:$AB$351, MATCH(Selection_Hide2!$A227, 'Full set Core Client Indicator'!$A$3:$A$351, 0), MATCH(Selection_Hide2!G$5, 'Full set Core Client Indicator'!$A$3:$AB$3, 0))), \"\")","v":""},{"$f":"IF(G227<>\"\", IF(INDEX('Full set Core Client Indicator'!$A$3:$AB$351, MATCH(Selection_Hide2!$A227, 'Full set Core Client Indicator'!$A$3:$A$351, 0), MATCH(Selection_Hide2!H$5, 'Full set Core Client Indicator'!$A$3:$AB$3, 0))=\"\", \"\",  INDEX('Full set Core Client Indicator'!$A$3:$AB$351, MATCH(Selection_Hide2!$A227, 'Full set Core Client Indicator'!$A$3:$A$351, 0), MATCH(Selection_Hide2!H$5, 'Full set Core Client Indicator'!$A$3:$AB$3, 0))), \"\")","v":""},{"$f":"IF(H227<>\"\", IF(INDEX('Full set Core Client Indicator'!$A$3:$AB$351, MATCH(Selection_Hide2!$A227, 'Full set Core Client Indicator'!$A$3:$A$351, 0), MATCH(Selection_Hide2!I$5, 'Full set Core Client Indicator'!$A$3:$AB$3, 0))=\"\", \"\",  INDEX('Full set Core Client Indicator'!$A$3:$AB$351, MATCH(Selection_Hide2!$A227, 'Full set Core Client Indicator'!$A$3:$A$351, 0), MATCH(Selection_Hide2!I$5, 'Full set Core Client Indicator'!$A$3:$AB$3, 0))), \"\")","v":""},{"$f":"IF(I227<>\"\", IF(INDEX('Full set Core Client Indicator'!$A$3:$AB$351, MATCH(Selection_Hide2!$A227, 'Full set Core Client Indicator'!$A$3:$A$351, 0), MATCH(Selection_Hide2!J$5, 'Full set Core Client Indicator'!$A$3:$AB$3, 0))=\"\", \"\",  INDEX('Full set Core Client Indicator'!$A$3:$AB$351, MATCH(Selection_Hide2!$A227, 'Full set Core Client Indicator'!$A$3:$A$351, 0), MATCH(Selection_Hide2!J$5, 'Full set Core Client Indicator'!$A$3:$AB$3, 0))), \"\")","v":""},{"$f":"IF(J227<>\"\", IF(INDEX('Full set Core Client Indicator'!$A$3:$AB$351, MATCH(Selection_Hide2!$A227, 'Full set Core Client Indicator'!$A$3:$A$351, 0), MATCH(Selection_Hide2!K$5, 'Full set Core Client Indicator'!$A$3:$AB$3, 0))=\"\", \"\",  INDEX('Full set Core Client Indicator'!$A$3:$AB$351, MATCH(Selection_Hide2!$A227, 'Full set Core Client Indicator'!$A$3:$A$351, 0), MATCH(Selection_Hide2!K$5, 'Full set Core Client Indicator'!$A$3:$AB$3, 0))), \"\")","v":""},{"$f":"IF(K227<>\"\", IF(INDEX('Full set Core Client Indicator'!$A$3:$AB$351, MATCH(Selection_Hide2!$A227, 'Full set Core Client Indicator'!$A$3:$A$351, 0), MATCH(Selection_Hide2!L$5, 'Full set Core Client Indicator'!$A$3:$AB$3, 0))=\"\", \"\",  INDEX('Full set Core Client Indicator'!$A$3:$AB$351, MATCH(Selection_Hide2!$A227, 'Full set Core Client Indicator'!$A$3:$A$351, 0), MATCH(Selection_Hide2!L$5, 'Full set Core Client Indicator'!$A$3:$AB$3, 0))), \"\")","v":""},{"$f":"IF(L227<>\"\", IF(INDEX('Full set Core Client Indicator'!$A$3:$AB$351, MATCH(Selection_Hide2!$A227, 'Full set Core Client Indicator'!$A$3:$A$351, 0), MATCH(Selection_Hide2!M$5, 'Full set Core Client Indicator'!$A$3:$AB$3, 0))=\"\", \"\",  INDEX('Full set Core Client Indicator'!$A$3:$AB$351, MATCH(Selection_Hide2!$A227, 'Full set Core Client Indicator'!$A$3:$A$351, 0), MATCH(Selection_Hide2!M$5, 'Full set Core Client Indicator'!$A$3:$AB$3, 0))), \"\")","v":""},{"$f":"IF(M227<>\"\", IF(INDEX('Full set Core Client Indicator'!$A$3:$AB$351, MATCH(Selection_Hide2!$A227, 'Full set Core Client Indicator'!$A$3:$A$351, 0), MATCH(Selection_Hide2!N$5, 'Full set Core Client Indicator'!$A$3:$AB$3, 0))=\"\", \"\",  INDEX('Full set Core Client Indicator'!$A$3:$AB$351, MATCH(Selection_Hide2!$A227, 'Full set Core Client Indicator'!$A$3:$A$351, 0), MATCH(Selection_Hide2!N$5, 'Full set Core Client Indicator'!$A$3:$AB$3, 0))), \"\")","v":""},{"$f":"IF(N227<>\"\", IF(INDEX('Full set Core Client Indicator'!$A$3:$AB$351, MATCH(Selection_Hide2!$A227, 'Full set Core Client Indicator'!$A$3:$A$351, 0), MATCH(Selection_Hide2!O$5, 'Full set Core Client Indicator'!$A$3:$AB$3, 0))=\"\", \"\",  INDEX('Full set Core Client Indicator'!$A$3:$AB$351, MATCH(Selection_Hide2!$A227, 'Full set Core Client Indicator'!$A$3:$A$351, 0), MATCH(Selection_Hide2!O$5, 'Full set Core Client Indicator'!$A$3:$AB$3, 0))), \"\")","v":""},{"$f":"IF(O227<>\"\", IF(INDEX('Full set Core Client Indicator'!$A$3:$AB$351, MATCH(Selection_Hide2!$A227, 'Full set Core Client Indicator'!$A$3:$A$351, 0), MATCH(Selection_Hide2!P$5, 'Full set Core Client Indicator'!$A$3:$AB$3, 0))=\"\", \"\",  INDEX('Full set Core Client Indicator'!$A$3:$AB$351, MATCH(Selection_Hide2!$A227, 'Full set Core Client Indicator'!$A$3:$A$351, 0), MATCH(Selection_Hide2!P$5, 'Full set Core Client Indicator'!$A$3:$AB$3, 0))), \"\")","v":""},{"$f":"IF(P227<>\"\", IF(INDEX('Full set Core Client Indicator'!$A$3:$AB$351, MATCH(Selection_Hide2!$A227, 'Full set Core Client Indicator'!$A$3:$A$351, 0), MATCH(Selection_Hide2!Q$5, 'Full set Core Client Indicator'!$A$3:$AB$3, 0))=\"\", \"\",  INDEX('Full set Core Client Indicator'!$A$3:$AB$351, MATCH(Selection_Hide2!$A227, 'Full set Core Client Indicator'!$A$3:$A$351, 0), MATCH(Selection_Hide2!Q$5, 'Full set Core Client Indicator'!$A$3:$AB$3, 0))), \"\")","v":""},{"$f":"IF(Q227<>\"\", IF(INDEX('Full set Core Client Indicator'!$A$3:$AB$351, MATCH(Selection_Hide2!$A227, 'Full set Core Client Indicator'!$A$3:$A$351, 0), MATCH(Selection_Hide2!R$5, 'Full set Core Client Indicator'!$A$3:$AB$3, 0))=\"\", \"\",  INDEX('Full set Core Client Indicator'!$A$3:$AB$351, MATCH(Selection_Hide2!$A227, 'Full set Core Client Indicator'!$A$3:$A$351, 0), MATCH(Selection_Hide2!R$5, 'Full set Core Client Indicator'!$A$3:$AB$3, 0))), \"\")","v":""},{"$f":"IF(R227<>\"\", IF(INDEX('Full set Core Client Indicator'!$A$3:$AB$351, MATCH(Selection_Hide2!$A227, 'Full set Core Client Indicator'!$A$3:$A$351, 0), MATCH(Selection_Hide2!S$5, 'Full set Core Client Indicator'!$A$3:$AB$3, 0))=\"\", \"\",  INDEX('Full set Core Client Indicator'!$A$3:$AB$351, MATCH(Selection_Hide2!$A227, 'Full set Core Client Indicator'!$A$3:$A$351, 0), MATCH(Selection_Hide2!S$5, 'Full set Core Client Indicator'!$A$3:$AB$3, 0))), \"\")","v":""},{"$f":"IF(S227<>\"\", IF(INDEX('Full set Core Client Indicator'!$A$3:$AB$351, MATCH(Selection_Hide2!$A227, 'Full set Core Client Indicator'!$A$3:$A$351, 0), MATCH(Selection_Hide2!T$5, 'Full set Core Client Indicator'!$A$3:$AB$3, 0))=\"\", \"\",  INDEX('Full set Core Client Indicator'!$A$3:$AB$351, MATCH(Selection_Hide2!$A227, 'Full set Core Client Indicator'!$A$3:$A$351, 0), MATCH(Selection_Hide2!T$5, 'Full set Core Client Indicator'!$A$3:$AB$3, 0))), \"\")","v":""},{"$f":"IF(T227<>\"\", IF(INDEX('Full set Core Client Indicator'!$A$3:$AB$351, MATCH(Selection_Hide2!$A227, 'Full set Core Client Indicator'!$A$3:$A$351, 0), MATCH(Selection_Hide2!U$5, 'Full set Core Client Indicator'!$A$3:$AB$3, 0))=\"\", \"\",  INDEX('Full set Core Client Indicator'!$A$3:$AB$351, MATCH(Selection_Hide2!$A227, 'Full set Core Client Indicator'!$A$3:$A$351, 0), MATCH(Selection_Hide2!U$5, 'Full set Core Client Indicator'!$A$3:$AB$3, 0))), \"\")","v":""},{"$f":"IF(U227<>\"\", IF(INDEX('Full set Core Client Indicator'!$A$3:$AB$351, MATCH(Selection_Hide2!$A227, 'Full set Core Client Indicator'!$A$3:$A$351, 0), MATCH(Selection_Hide2!V$5, 'Full set Core Client Indicator'!$A$3:$AB$3, 0))=\"\", \"\",  INDEX('Full set Core Client Indicator'!$A$3:$AB$351, MATCH(Selection_Hide2!$A227, 'Full set Core Client Indicator'!$A$3:$A$351, 0), MATCH(Selection_Hide2!V$5, 'Full set Core Client Indicator'!$A$3:$AB$3, 0))), \"\")","v":""},{"$f":"IF(V227<>\"\", IF(INDEX('Full set Core Client Indicator'!$A$3:$AB$351, MATCH(Selection_Hide2!$A227, 'Full set Core Client Indicator'!$A$3:$A$351, 0), MATCH(Selection_Hide2!W$5, 'Full set Core Client Indicator'!$A$3:$AB$3, 0))=\"\", \"\",  INDEX('Full set Core Client Indicator'!$A$3:$AB$351, MATCH(Selection_Hide2!$A227, 'Full set Core Client Indicator'!$A$3:$A$351, 0), MATCH(Selection_Hide2!W$5, 'Full set Core Client Indicator'!$A$3:$AB$3, 0))), \"\")","v":""},{"$f":"IF(W227<>\"\", IF(INDEX('Full set Core Client Indicator'!$A$3:$AB$351, MATCH(Selection_Hide2!$A227, 'Full set Core Client Indicator'!$A$3:$A$351, 0), MATCH(Selection_Hide2!X$5, 'Full set Core Client Indicator'!$A$3:$AB$3, 0))=\"\", \"\",  INDEX('Full set Core Client Indicator'!$A$3:$AB$351, MATCH(Selection_Hide2!$A227, 'Full set Core Client Indicator'!$A$3:$A$351, 0), MATCH(Selection_Hide2!X$5, 'Full set Core Client Indicator'!$A$3:$AB$3, 0))), \"\")","v":""},{"$f":"IF(X227<>\"\", IF(INDEX('Full set Core Client Indicator'!$A$3:$AB$351, MATCH(Selection_Hide2!$A227, 'Full set Core Client Indicator'!$A$3:$A$351, 0), MATCH(Selection_Hide2!Y$5, 'Full set Core Client Indicator'!$A$3:$AB$3, 0))=\"\", \"\",  INDEX('Full set Core Client Indicator'!$A$3:$AB$351, MATCH(Selection_Hide2!$A227, 'Full set Core Client Indicator'!$A$3:$A$351, 0), MATCH(Selection_Hide2!Y$5, 'Full set Core Client Indicator'!$A$3:$AB$3, 0))), \"\")","v":""},{"$f":"IF(Y227<>\"\", IF(INDEX('Full set Core Client Indicator'!$A$3:$AB$351, MATCH(Selection_Hide2!$A227, 'Full set Core Client Indicator'!$A$3:$A$351, 0), MATCH(Selection_Hide2!Z$5, 'Full set Core Client Indicator'!$A$3:$AB$3, 0))=\"\", \"\",  INDEX('Full set Core Client Indicator'!$A$3:$AB$351, MATCH(Selection_Hide2!$A227, 'Full set Core Client Indicator'!$A$3:$A$351, 0), MATCH(Selection_Hide2!Z$5, 'Full set Core Client Indicator'!$A$3:$AB$3, 0))), \"\")","v":""},{"$f":"IF(Z227<>\"\", IF(INDEX('Full set Core Client Indicator'!$A$3:$AB$351, MATCH(Selection_Hide2!$A227, 'Full set Core Client Indicator'!$A$3:$A$351, 0), MATCH(Selection_Hide2!AA$5, 'Full set Core Client Indicator'!$A$3:$AB$3, 0))=\"\", \"\",  INDEX('Full set Core Client Indicator'!$A$3:$AB$351, MATCH(Selection_Hide2!$A227, 'Full set Core Client Indicator'!$A$3:$A$351, 0), MATCH(Selection_Hide2!AA$5, 'Full set Core Client Indicator'!$A$3:$AB$3, 0))), \"\")","v":""},{"$f":"IF(AA227<>\"\", IF(INDEX('Full set Core Client Indicator'!$A$3:$AB$351, MATCH(Selection_Hide2!$A227, 'Full set Core Client Indicator'!$A$3:$A$351, 0), MATCH(Selection_Hide2!AB$5, 'Full set Core Client Indicator'!$A$3:$AB$3, 0))=\"\", \"\",  INDEX('Full set Core Client Indicator'!$A$3:$AB$351, MATCH(Selection_Hide2!$A227, 'Full set Core Client Indicator'!$A$3:$A$351, 0), MATCH(Selection_Hide2!AB$5, 'Full set Core Client Indicator'!$A$3:$AB$3, 0))), \"\")","v":""}]
[{"$f":"IF(AND(Selection_Hide1!C226<>0, Selection_Hide1!C226<>\"Grand Total\"), Selection_Hide1!C226, \"\")","v":""},{"$f":"IF(A228<>\"\", IF(INDEX('Full set Core Client Indicator'!$A$3:$AB$351, MATCH(Selection_Hide2!$A228, 'Full set Core Client Indicator'!$A$3:$A$351, 0), MATCH(Selection_Hide2!B$5, 'Full set Core Client Indicator'!$A$3:$AB$3, 0))=\"\", \"\",  INDEX('Full set Core Client Indicator'!$A$3:$AB$351, MATCH(Selection_Hide2!$A228, 'Full set Core Client Indicator'!$A$3:$A$351, 0), MATCH(Selection_Hide2!B$5, 'Full set Core Client Indicator'!$A$3:$AB$3, 0))), \"\")","v":""},{"$f":"IF(B228<>\"\", IF(INDEX('Full set Core Client Indicator'!$A$3:$AB$351, MATCH(Selection_Hide2!$A228, 'Full set Core Client Indicator'!$A$3:$A$351, 0), MATCH(Selection_Hide2!C$5, 'Full set Core Client Indicator'!$A$3:$AB$3, 0))=\"\", \"\",  INDEX('Full set Core Client Indicator'!$A$3:$AB$351, MATCH(Selection_Hide2!$A228, 'Full set Core Client Indicator'!$A$3:$A$351, 0), MATCH(Selection_Hide2!C$5, 'Full set Core Client Indicator'!$A$3:$AB$3, 0))), \"\")","v":""},{"$f":"IF(C228<>\"\", IF(INDEX('Full set Core Client Indicator'!$A$3:$AB$351, MATCH(Selection_Hide2!$A228, 'Full set Core Client Indicator'!$A$3:$A$351, 0), MATCH(Selection_Hide2!D$5, 'Full set Core Client Indicator'!$A$3:$AB$3, 0))=\"\", \"\",  INDEX('Full set Core Client Indicator'!$A$3:$AB$351, MATCH(Selection_Hide2!$A228, 'Full set Core Client Indicator'!$A$3:$A$351, 0), MATCH(Selection_Hide2!D$5, 'Full set Core Client Indicator'!$A$3:$AB$3, 0))), \"\")","v":""},{"$f":"IF(D228<>\"\", IF(INDEX('Full set Core Client Indicator'!$A$3:$AB$351, MATCH(Selection_Hide2!$A228, 'Full set Core Client Indicator'!$A$3:$A$351, 0), MATCH(Selection_Hide2!E$5, 'Full set Core Client Indicator'!$A$3:$AB$3, 0))=\"\", \"\",  INDEX('Full set Core Client Indicator'!$A$3:$AB$351, MATCH(Selection_Hide2!$A228, 'Full set Core Client Indicator'!$A$3:$A$351, 0), MATCH(Selection_Hide2!E$5, 'Full set Core Client Indicator'!$A$3:$AB$3, 0))), \"\")","v":""},{"$f":"IF(E228<>\"\", IF(INDEX('Full set Core Client Indicator'!$A$3:$AB$351, MATCH(Selection_Hide2!$A228, 'Full set Core Client Indicator'!$A$3:$A$351, 0), MATCH(Selection_Hide2!F$5, 'Full set Core Client Indicator'!$A$3:$AB$3, 0))=\"\", \"\",  INDEX('Full set Core Client Indicator'!$A$3:$AB$351, MATCH(Selection_Hide2!$A228, 'Full set Core Client Indicator'!$A$3:$A$351, 0), MATCH(Selection_Hide2!F$5, 'Full set Core Client Indicator'!$A$3:$AB$3, 0))), \"\")","v":""},{"$f":"IF(F228<>\"\", IF(INDEX('Full set Core Client Indicator'!$A$3:$AB$351, MATCH(Selection_Hide2!$A228, 'Full set Core Client Indicator'!$A$3:$A$351, 0), MATCH(Selection_Hide2!G$5, 'Full set Core Client Indicator'!$A$3:$AB$3, 0))=\"\", \"\",  INDEX('Full set Core Client Indicator'!$A$3:$AB$351, MATCH(Selection_Hide2!$A228, 'Full set Core Client Indicator'!$A$3:$A$351, 0), MATCH(Selection_Hide2!G$5, 'Full set Core Client Indicator'!$A$3:$AB$3, 0))), \"\")","v":""},{"$f":"IF(G228<>\"\", IF(INDEX('Full set Core Client Indicator'!$A$3:$AB$351, MATCH(Selection_Hide2!$A228, 'Full set Core Client Indicator'!$A$3:$A$351, 0), MATCH(Selection_Hide2!H$5, 'Full set Core Client Indicator'!$A$3:$AB$3, 0))=\"\", \"\",  INDEX('Full set Core Client Indicator'!$A$3:$AB$351, MATCH(Selection_Hide2!$A228, 'Full set Core Client Indicator'!$A$3:$A$351, 0), MATCH(Selection_Hide2!H$5, 'Full set Core Client Indicator'!$A$3:$AB$3, 0))), \"\")","v":""},{"$f":"IF(H228<>\"\", IF(INDEX('Full set Core Client Indicator'!$A$3:$AB$351, MATCH(Selection_Hide2!$A228, 'Full set Core Client Indicator'!$A$3:$A$351, 0), MATCH(Selection_Hide2!I$5, 'Full set Core Client Indicator'!$A$3:$AB$3, 0))=\"\", \"\",  INDEX('Full set Core Client Indicator'!$A$3:$AB$351, MATCH(Selection_Hide2!$A228, 'Full set Core Client Indicator'!$A$3:$A$351, 0), MATCH(Selection_Hide2!I$5, 'Full set Core Client Indicator'!$A$3:$AB$3, 0))), \"\")","v":""},{"$f":"IF(I228<>\"\", IF(INDEX('Full set Core Client Indicator'!$A$3:$AB$351, MATCH(Selection_Hide2!$A228, 'Full set Core Client Indicator'!$A$3:$A$351, 0), MATCH(Selection_Hide2!J$5, 'Full set Core Client Indicator'!$A$3:$AB$3, 0))=\"\", \"\",  INDEX('Full set Core Client Indicator'!$A$3:$AB$351, MATCH(Selection_Hide2!$A228, 'Full set Core Client Indicator'!$A$3:$A$351, 0), MATCH(Selection_Hide2!J$5, 'Full set Core Client Indicator'!$A$3:$AB$3, 0))), \"\")","v":""},{"$f":"IF(J228<>\"\", IF(INDEX('Full set Core Client Indicator'!$A$3:$AB$351, MATCH(Selection_Hide2!$A228, 'Full set Core Client Indicator'!$A$3:$A$351, 0), MATCH(Selection_Hide2!K$5, 'Full set Core Client Indicator'!$A$3:$AB$3, 0))=\"\", \"\",  INDEX('Full set Core Client Indicator'!$A$3:$AB$351, MATCH(Selection_Hide2!$A228, 'Full set Core Client Indicator'!$A$3:$A$351, 0), MATCH(Selection_Hide2!K$5, 'Full set Core Client Indicator'!$A$3:$AB$3, 0))), \"\")","v":""},{"$f":"IF(K228<>\"\", IF(INDEX('Full set Core Client Indicator'!$A$3:$AB$351, MATCH(Selection_Hide2!$A228, 'Full set Core Client Indicator'!$A$3:$A$351, 0), MATCH(Selection_Hide2!L$5, 'Full set Core Client Indicator'!$A$3:$AB$3, 0))=\"\", \"\",  INDEX('Full set Core Client Indicator'!$A$3:$AB$351, MATCH(Selection_Hide2!$A228, 'Full set Core Client Indicator'!$A$3:$A$351, 0), MATCH(Selection_Hide2!L$5, 'Full set Core Client Indicator'!$A$3:$AB$3, 0))), \"\")","v":""},{"$f":"IF(L228<>\"\", IF(INDEX('Full set Core Client Indicator'!$A$3:$AB$351, MATCH(Selection_Hide2!$A228, 'Full set Core Client Indicator'!$A$3:$A$351, 0), MATCH(Selection_Hide2!M$5, 'Full set Core Client Indicator'!$A$3:$AB$3, 0))=\"\", \"\",  INDEX('Full set Core Client Indicator'!$A$3:$AB$351, MATCH(Selection_Hide2!$A228, 'Full set Core Client Indicator'!$A$3:$A$351, 0), MATCH(Selection_Hide2!M$5, 'Full set Core Client Indicator'!$A$3:$AB$3, 0))), \"\")","v":""},{"$f":"IF(M228<>\"\", IF(INDEX('Full set Core Client Indicator'!$A$3:$AB$351, MATCH(Selection_Hide2!$A228, 'Full set Core Client Indicator'!$A$3:$A$351, 0), MATCH(Selection_Hide2!N$5, 'Full set Core Client Indicator'!$A$3:$AB$3, 0))=\"\", \"\",  INDEX('Full set Core Client Indicator'!$A$3:$AB$351, MATCH(Selection_Hide2!$A228, 'Full set Core Client Indicator'!$A$3:$A$351, 0), MATCH(Selection_Hide2!N$5, 'Full set Core Client Indicator'!$A$3:$AB$3, 0))), \"\")","v":""},{"$f":"IF(N228<>\"\", IF(INDEX('Full set Core Client Indicator'!$A$3:$AB$351, MATCH(Selection_Hide2!$A228, 'Full set Core Client Indicator'!$A$3:$A$351, 0), MATCH(Selection_Hide2!O$5, 'Full set Core Client Indicator'!$A$3:$AB$3, 0))=\"\", \"\",  INDEX('Full set Core Client Indicator'!$A$3:$AB$351, MATCH(Selection_Hide2!$A228, 'Full set Core Client Indicator'!$A$3:$A$351, 0), MATCH(Selection_Hide2!O$5, 'Full set Core Client Indicator'!$A$3:$AB$3, 0))), \"\")","v":""},{"$f":"IF(O228<>\"\", IF(INDEX('Full set Core Client Indicator'!$A$3:$AB$351, MATCH(Selection_Hide2!$A228, 'Full set Core Client Indicator'!$A$3:$A$351, 0), MATCH(Selection_Hide2!P$5, 'Full set Core Client Indicator'!$A$3:$AB$3, 0))=\"\", \"\",  INDEX('Full set Core Client Indicator'!$A$3:$AB$351, MATCH(Selection_Hide2!$A228, 'Full set Core Client Indicator'!$A$3:$A$351, 0), MATCH(Selection_Hide2!P$5, 'Full set Core Client Indicator'!$A$3:$AB$3, 0))), \"\")","v":""},{"$f":"IF(P228<>\"\", IF(INDEX('Full set Core Client Indicator'!$A$3:$AB$351, MATCH(Selection_Hide2!$A228, 'Full set Core Client Indicator'!$A$3:$A$351, 0), MATCH(Selection_Hide2!Q$5, 'Full set Core Client Indicator'!$A$3:$AB$3, 0))=\"\", \"\",  INDEX('Full set Core Client Indicator'!$A$3:$AB$351, MATCH(Selection_Hide2!$A228, 'Full set Core Client Indicator'!$A$3:$A$351, 0), MATCH(Selection_Hide2!Q$5, 'Full set Core Client Indicator'!$A$3:$AB$3, 0))), \"\")","v":""},{"$f":"IF(Q228<>\"\", IF(INDEX('Full set Core Client Indicator'!$A$3:$AB$351, MATCH(Selection_Hide2!$A228, 'Full set Core Client Indicator'!$A$3:$A$351, 0), MATCH(Selection_Hide2!R$5, 'Full set Core Client Indicator'!$A$3:$AB$3, 0))=\"\", \"\",  INDEX('Full set Core Client Indicator'!$A$3:$AB$351, MATCH(Selection_Hide2!$A228, 'Full set Core Client Indicator'!$A$3:$A$351, 0), MATCH(Selection_Hide2!R$5, 'Full set Core Client Indicator'!$A$3:$AB$3, 0))), \"\")","v":""},{"$f":"IF(R228<>\"\", IF(INDEX('Full set Core Client Indicator'!$A$3:$AB$351, MATCH(Selection_Hide2!$A228, 'Full set Core Client Indicator'!$A$3:$A$351, 0), MATCH(Selection_Hide2!S$5, 'Full set Core Client Indicator'!$A$3:$AB$3, 0))=\"\", \"\",  INDEX('Full set Core Client Indicator'!$A$3:$AB$351, MATCH(Selection_Hide2!$A228, 'Full set Core Client Indicator'!$A$3:$A$351, 0), MATCH(Selection_Hide2!S$5, 'Full set Core Client Indicator'!$A$3:$AB$3, 0))), \"\")","v":""},{"$f":"IF(S228<>\"\", IF(INDEX('Full set Core Client Indicator'!$A$3:$AB$351, MATCH(Selection_Hide2!$A228, 'Full set Core Client Indicator'!$A$3:$A$351, 0), MATCH(Selection_Hide2!T$5, 'Full set Core Client Indicator'!$A$3:$AB$3, 0))=\"\", \"\",  INDEX('Full set Core Client Indicator'!$A$3:$AB$351, MATCH(Selection_Hide2!$A228, 'Full set Core Client Indicator'!$A$3:$A$351, 0), MATCH(Selection_Hide2!T$5, 'Full set Core Client Indicator'!$A$3:$AB$3, 0))), \"\")","v":""},{"$f":"IF(T228<>\"\", IF(INDEX('Full set Core Client Indicator'!$A$3:$AB$351, MATCH(Selection_Hide2!$A228, 'Full set Core Client Indicator'!$A$3:$A$351, 0), MATCH(Selection_Hide2!U$5, 'Full set Core Client Indicator'!$A$3:$AB$3, 0))=\"\", \"\",  INDEX('Full set Core Client Indicator'!$A$3:$AB$351, MATCH(Selection_Hide2!$A228, 'Full set Core Client Indicator'!$A$3:$A$351, 0), MATCH(Selection_Hide2!U$5, 'Full set Core Client Indicator'!$A$3:$AB$3, 0))), \"\")","v":""},{"$f":"IF(U228<>\"\", IF(INDEX('Full set Core Client Indicator'!$A$3:$AB$351, MATCH(Selection_Hide2!$A228, 'Full set Core Client Indicator'!$A$3:$A$351, 0), MATCH(Selection_Hide2!V$5, 'Full set Core Client Indicator'!$A$3:$AB$3, 0))=\"\", \"\",  INDEX('Full set Core Client Indicator'!$A$3:$AB$351, MATCH(Selection_Hide2!$A228, 'Full set Core Client Indicator'!$A$3:$A$351, 0), MATCH(Selection_Hide2!V$5, 'Full set Core Client Indicator'!$A$3:$AB$3, 0))), \"\")","v":""},{"$f":"IF(V228<>\"\", IF(INDEX('Full set Core Client Indicator'!$A$3:$AB$351, MATCH(Selection_Hide2!$A228, 'Full set Core Client Indicator'!$A$3:$A$351, 0), MATCH(Selection_Hide2!W$5, 'Full set Core Client Indicator'!$A$3:$AB$3, 0))=\"\", \"\",  INDEX('Full set Core Client Indicator'!$A$3:$AB$351, MATCH(Selection_Hide2!$A228, 'Full set Core Client Indicator'!$A$3:$A$351, 0), MATCH(Selection_Hide2!W$5, 'Full set Core Client Indicator'!$A$3:$AB$3, 0))), \"\")","v":""},{"$f":"IF(W228<>\"\", IF(INDEX('Full set Core Client Indicator'!$A$3:$AB$351, MATCH(Selection_Hide2!$A228, 'Full set Core Client Indicator'!$A$3:$A$351, 0), MATCH(Selection_Hide2!X$5, 'Full set Core Client Indicator'!$A$3:$AB$3, 0))=\"\", \"\",  INDEX('Full set Core Client Indicator'!$A$3:$AB$351, MATCH(Selection_Hide2!$A228, 'Full set Core Client Indicator'!$A$3:$A$351, 0), MATCH(Selection_Hide2!X$5, 'Full set Core Client Indicator'!$A$3:$AB$3, 0))), \"\")","v":""},{"$f":"IF(X228<>\"\", IF(INDEX('Full set Core Client Indicator'!$A$3:$AB$351, MATCH(Selection_Hide2!$A228, 'Full set Core Client Indicator'!$A$3:$A$351, 0), MATCH(Selection_Hide2!Y$5, 'Full set Core Client Indicator'!$A$3:$AB$3, 0))=\"\", \"\",  INDEX('Full set Core Client Indicator'!$A$3:$AB$351, MATCH(Selection_Hide2!$A228, 'Full set Core Client Indicator'!$A$3:$A$351, 0), MATCH(Selection_Hide2!Y$5, 'Full set Core Client Indicator'!$A$3:$AB$3, 0))), \"\")","v":""},{"$f":"IF(Y228<>\"\", IF(INDEX('Full set Core Client Indicator'!$A$3:$AB$351, MATCH(Selection_Hide2!$A228, 'Full set Core Client Indicator'!$A$3:$A$351, 0), MATCH(Selection_Hide2!Z$5, 'Full set Core Client Indicator'!$A$3:$AB$3, 0))=\"\", \"\",  INDEX('Full set Core Client Indicator'!$A$3:$AB$351, MATCH(Selection_Hide2!$A228, 'Full set Core Client Indicator'!$A$3:$A$351, 0), MATCH(Selection_Hide2!Z$5, 'Full set Core Client Indicator'!$A$3:$AB$3, 0))), \"\")","v":""},{"$f":"IF(Z228<>\"\", IF(INDEX('Full set Core Client Indicator'!$A$3:$AB$351, MATCH(Selection_Hide2!$A228, 'Full set Core Client Indicator'!$A$3:$A$351, 0), MATCH(Selection_Hide2!AA$5, 'Full set Core Client Indicator'!$A$3:$AB$3, 0))=\"\", \"\",  INDEX('Full set Core Client Indicator'!$A$3:$AB$351, MATCH(Selection_Hide2!$A228, 'Full set Core Client Indicator'!$A$3:$A$351, 0), MATCH(Selection_Hide2!AA$5, 'Full set Core Client Indicator'!$A$3:$AB$3, 0))), \"\")","v":""},{"$f":"IF(AA228<>\"\", IF(INDEX('Full set Core Client Indicator'!$A$3:$AB$351, MATCH(Selection_Hide2!$A228, 'Full set Core Client Indicator'!$A$3:$A$351, 0), MATCH(Selection_Hide2!AB$5, 'Full set Core Client Indicator'!$A$3:$AB$3, 0))=\"\", \"\",  INDEX('Full set Core Client Indicator'!$A$3:$AB$351, MATCH(Selection_Hide2!$A228, 'Full set Core Client Indicator'!$A$3:$A$351, 0), MATCH(Selection_Hide2!AB$5, 'Full set Core Client Indicator'!$A$3:$AB$3, 0))), \"\")","v":""}]
[{"$f":"IF(AND(Selection_Hide1!C227<>0, Selection_Hide1!C227<>\"Grand Total\"), Selection_Hide1!C227, \"\")","v":""},{"$f":"IF(A229<>\"\", IF(INDEX('Full set Core Client Indicator'!$A$3:$AB$351, MATCH(Selection_Hide2!$A229, 'Full set Core Client Indicator'!$A$3:$A$351, 0), MATCH(Selection_Hide2!B$5, 'Full set Core Client Indicator'!$A$3:$AB$3, 0))=\"\", \"\",  INDEX('Full set Core Client Indicator'!$A$3:$AB$351, MATCH(Selection_Hide2!$A229, 'Full set Core Client Indicator'!$A$3:$A$351, 0), MATCH(Selection_Hide2!B$5, 'Full set Core Client Indicator'!$A$3:$AB$3, 0))), \"\")","v":""},{"$f":"IF(B229<>\"\", IF(INDEX('Full set Core Client Indicator'!$A$3:$AB$351, MATCH(Selection_Hide2!$A229, 'Full set Core Client Indicator'!$A$3:$A$351, 0), MATCH(Selection_Hide2!C$5, 'Full set Core Client Indicator'!$A$3:$AB$3, 0))=\"\", \"\",  INDEX('Full set Core Client Indicator'!$A$3:$AB$351, MATCH(Selection_Hide2!$A229, 'Full set Core Client Indicator'!$A$3:$A$351, 0), MATCH(Selection_Hide2!C$5, 'Full set Core Client Indicator'!$A$3:$AB$3, 0))), \"\")","v":""},{"$f":"IF(C229<>\"\", IF(INDEX('Full set Core Client Indicator'!$A$3:$AB$351, MATCH(Selection_Hide2!$A229, 'Full set Core Client Indicator'!$A$3:$A$351, 0), MATCH(Selection_Hide2!D$5, 'Full set Core Client Indicator'!$A$3:$AB$3, 0))=\"\", \"\",  INDEX('Full set Core Client Indicator'!$A$3:$AB$351, MATCH(Selection_Hide2!$A229, 'Full set Core Client Indicator'!$A$3:$A$351, 0), MATCH(Selection_Hide2!D$5, 'Full set Core Client Indicator'!$A$3:$AB$3, 0))), \"\")","v":""},{"$f":"IF(D229<>\"\", IF(INDEX('Full set Core Client Indicator'!$A$3:$AB$351, MATCH(Selection_Hide2!$A229, 'Full set Core Client Indicator'!$A$3:$A$351, 0), MATCH(Selection_Hide2!E$5, 'Full set Core Client Indicator'!$A$3:$AB$3, 0))=\"\", \"\",  INDEX('Full set Core Client Indicator'!$A$3:$AB$351, MATCH(Selection_Hide2!$A229, 'Full set Core Client Indicator'!$A$3:$A$351, 0), MATCH(Selection_Hide2!E$5, 'Full set Core Client Indicator'!$A$3:$AB$3, 0))), \"\")","v":""},{"$f":"IF(E229<>\"\", IF(INDEX('Full set Core Client Indicator'!$A$3:$AB$351, MATCH(Selection_Hide2!$A229, 'Full set Core Client Indicator'!$A$3:$A$351, 0), MATCH(Selection_Hide2!F$5, 'Full set Core Client Indicator'!$A$3:$AB$3, 0))=\"\", \"\",  INDEX('Full set Core Client Indicator'!$A$3:$AB$351, MATCH(Selection_Hide2!$A229, 'Full set Core Client Indicator'!$A$3:$A$351, 0), MATCH(Selection_Hide2!F$5, 'Full set Core Client Indicator'!$A$3:$AB$3, 0))), \"\")","v":""},{"$f":"IF(F229<>\"\", IF(INDEX('Full set Core Client Indicator'!$A$3:$AB$351, MATCH(Selection_Hide2!$A229, 'Full set Core Client Indicator'!$A$3:$A$351, 0), MATCH(Selection_Hide2!G$5, 'Full set Core Client Indicator'!$A$3:$AB$3, 0))=\"\", \"\",  INDEX('Full set Core Client Indicator'!$A$3:$AB$351, MATCH(Selection_Hide2!$A229, 'Full set Core Client Indicator'!$A$3:$A$351, 0), MATCH(Selection_Hide2!G$5, 'Full set Core Client Indicator'!$A$3:$AB$3, 0))), \"\")","v":""},{"$f":"IF(G229<>\"\", IF(INDEX('Full set Core Client Indicator'!$A$3:$AB$351, MATCH(Selection_Hide2!$A229, 'Full set Core Client Indicator'!$A$3:$A$351, 0), MATCH(Selection_Hide2!H$5, 'Full set Core Client Indicator'!$A$3:$AB$3, 0))=\"\", \"\",  INDEX('Full set Core Client Indicator'!$A$3:$AB$351, MATCH(Selection_Hide2!$A229, 'Full set Core Client Indicator'!$A$3:$A$351, 0), MATCH(Selection_Hide2!H$5, 'Full set Core Client Indicator'!$A$3:$AB$3, 0))), \"\")","v":""},{"$f":"IF(H229<>\"\", IF(INDEX('Full set Core Client Indicator'!$A$3:$AB$351, MATCH(Selection_Hide2!$A229, 'Full set Core Client Indicator'!$A$3:$A$351, 0), MATCH(Selection_Hide2!I$5, 'Full set Core Client Indicator'!$A$3:$AB$3, 0))=\"\", \"\",  INDEX('Full set Core Client Indicator'!$A$3:$AB$351, MATCH(Selection_Hide2!$A229, 'Full set Core Client Indicator'!$A$3:$A$351, 0), MATCH(Selection_Hide2!I$5, 'Full set Core Client Indicator'!$A$3:$AB$3, 0))), \"\")","v":""},{"$f":"IF(I229<>\"\", IF(INDEX('Full set Core Client Indicator'!$A$3:$AB$351, MATCH(Selection_Hide2!$A229, 'Full set Core Client Indicator'!$A$3:$A$351, 0), MATCH(Selection_Hide2!J$5, 'Full set Core Client Indicator'!$A$3:$AB$3, 0))=\"\", \"\",  INDEX('Full set Core Client Indicator'!$A$3:$AB$351, MATCH(Selection_Hide2!$A229, 'Full set Core Client Indicator'!$A$3:$A$351, 0), MATCH(Selection_Hide2!J$5, 'Full set Core Client Indicator'!$A$3:$AB$3, 0))), \"\")","v":""},{"$f":"IF(J229<>\"\", IF(INDEX('Full set Core Client Indicator'!$A$3:$AB$351, MATCH(Selection_Hide2!$A229, 'Full set Core Client Indicator'!$A$3:$A$351, 0), MATCH(Selection_Hide2!K$5, 'Full set Core Client Indicator'!$A$3:$AB$3, 0))=\"\", \"\",  INDEX('Full set Core Client Indicator'!$A$3:$AB$351, MATCH(Selection_Hide2!$A229, 'Full set Core Client Indicator'!$A$3:$A$351, 0), MATCH(Selection_Hide2!K$5, 'Full set Core Client Indicator'!$A$3:$AB$3, 0))), \"\")","v":""},{"$f":"IF(K229<>\"\", IF(INDEX('Full set Core Client Indicator'!$A$3:$AB$351, MATCH(Selection_Hide2!$A229, 'Full set Core Client Indicator'!$A$3:$A$351, 0), MATCH(Selection_Hide2!L$5, 'Full set Core Client Indicator'!$A$3:$AB$3, 0))=\"\", \"\",  INDEX('Full set Core Client Indicator'!$A$3:$AB$351, MATCH(Selection_Hide2!$A229, 'Full set Core Client Indicator'!$A$3:$A$351, 0), MATCH(Selection_Hide2!L$5, 'Full set Core Client Indicator'!$A$3:$AB$3, 0))), \"\")","v":""},{"$f":"IF(L229<>\"\", IF(INDEX('Full set Core Client Indicator'!$A$3:$AB$351, MATCH(Selection_Hide2!$A229, 'Full set Core Client Indicator'!$A$3:$A$351, 0), MATCH(Selection_Hide2!M$5, 'Full set Core Client Indicator'!$A$3:$AB$3, 0))=\"\", \"\",  INDEX('Full set Core Client Indicator'!$A$3:$AB$351, MATCH(Selection_Hide2!$A229, 'Full set Core Client Indicator'!$A$3:$A$351, 0), MATCH(Selection_Hide2!M$5, 'Full set Core Client Indicator'!$A$3:$AB$3, 0))), \"\")","v":""},{"$f":"IF(M229<>\"\", IF(INDEX('Full set Core Client Indicator'!$A$3:$AB$351, MATCH(Selection_Hide2!$A229, 'Full set Core Client Indicator'!$A$3:$A$351, 0), MATCH(Selection_Hide2!N$5, 'Full set Core Client Indicator'!$A$3:$AB$3, 0))=\"\", \"\",  INDEX('Full set Core Client Indicator'!$A$3:$AB$351, MATCH(Selection_Hide2!$A229, 'Full set Core Client Indicator'!$A$3:$A$351, 0), MATCH(Selection_Hide2!N$5, 'Full set Core Client Indicator'!$A$3:$AB$3, 0))), \"\")","v":""},{"$f":"IF(N229<>\"\", IF(INDEX('Full set Core Client Indicator'!$A$3:$AB$351, MATCH(Selection_Hide2!$A229, 'Full set Core Client Indicator'!$A$3:$A$351, 0), MATCH(Selection_Hide2!O$5, 'Full set Core Client Indicator'!$A$3:$AB$3, 0))=\"\", \"\",  INDEX('Full set Core Client Indicator'!$A$3:$AB$351, MATCH(Selection_Hide2!$A229, 'Full set Core Client Indicator'!$A$3:$A$351, 0), MATCH(Selection_Hide2!O$5, 'Full set Core Client Indicator'!$A$3:$AB$3, 0))), \"\")","v":""},{"$f":"IF(O229<>\"\", IF(INDEX('Full set Core Client Indicator'!$A$3:$AB$351, MATCH(Selection_Hide2!$A229, 'Full set Core Client Indicator'!$A$3:$A$351, 0), MATCH(Selection_Hide2!P$5, 'Full set Core Client Indicator'!$A$3:$AB$3, 0))=\"\", \"\",  INDEX('Full set Core Client Indicator'!$A$3:$AB$351, MATCH(Selection_Hide2!$A229, 'Full set Core Client Indicator'!$A$3:$A$351, 0), MATCH(Selection_Hide2!P$5, 'Full set Core Client Indicator'!$A$3:$AB$3, 0))), \"\")","v":""},{"$f":"IF(P229<>\"\", IF(INDEX('Full set Core Client Indicator'!$A$3:$AB$351, MATCH(Selection_Hide2!$A229, 'Full set Core Client Indicator'!$A$3:$A$351, 0), MATCH(Selection_Hide2!Q$5, 'Full set Core Client Indicator'!$A$3:$AB$3, 0))=\"\", \"\",  INDEX('Full set Core Client Indicator'!$A$3:$AB$351, MATCH(Selection_Hide2!$A229, 'Full set Core Client Indicator'!$A$3:$A$351, 0), MATCH(Selection_Hide2!Q$5, 'Full set Core Client Indicator'!$A$3:$AB$3, 0))), \"\")","v":""},{"$f":"IF(Q229<>\"\", IF(INDEX('Full set Core Client Indicator'!$A$3:$AB$351, MATCH(Selection_Hide2!$A229, 'Full set Core Client Indicator'!$A$3:$A$351, 0), MATCH(Selection_Hide2!R$5, 'Full set Core Client Indicator'!$A$3:$AB$3, 0))=\"\", \"\",  INDEX('Full set Core Client Indicator'!$A$3:$AB$351, MATCH(Selection_Hide2!$A229, 'Full set Core Client Indicator'!$A$3:$A$351, 0), MATCH(Selection_Hide2!R$5, 'Full set Core Client Indicator'!$A$3:$AB$3, 0))), \"\")","v":""},{"$f":"IF(R229<>\"\", IF(INDEX('Full set Core Client Indicator'!$A$3:$AB$351, MATCH(Selection_Hide2!$A229, 'Full set Core Client Indicator'!$A$3:$A$351, 0), MATCH(Selection_Hide2!S$5, 'Full set Core Client Indicator'!$A$3:$AB$3, 0))=\"\", \"\",  INDEX('Full set Core Client Indicator'!$A$3:$AB$351, MATCH(Selection_Hide2!$A229, 'Full set Core Client Indicator'!$A$3:$A$351, 0), MATCH(Selection_Hide2!S$5, 'Full set Core Client Indicator'!$A$3:$AB$3, 0))), \"\")","v":""},{"$f":"IF(S229<>\"\", IF(INDEX('Full set Core Client Indicator'!$A$3:$AB$351, MATCH(Selection_Hide2!$A229, 'Full set Core Client Indicator'!$A$3:$A$351, 0), MATCH(Selection_Hide2!T$5, 'Full set Core Client Indicator'!$A$3:$AB$3, 0))=\"\", \"\",  INDEX('Full set Core Client Indicator'!$A$3:$AB$351, MATCH(Selection_Hide2!$A229, 'Full set Core Client Indicator'!$A$3:$A$351, 0), MATCH(Selection_Hide2!T$5, 'Full set Core Client Indicator'!$A$3:$AB$3, 0))), \"\")","v":""},{"$f":"IF(T229<>\"\", IF(INDEX('Full set Core Client Indicator'!$A$3:$AB$351, MATCH(Selection_Hide2!$A229, 'Full set Core Client Indicator'!$A$3:$A$351, 0), MATCH(Selection_Hide2!U$5, 'Full set Core Client Indicator'!$A$3:$AB$3, 0))=\"\", \"\",  INDEX('Full set Core Client Indicator'!$A$3:$AB$351, MATCH(Selection_Hide2!$A229, 'Full set Core Client Indicator'!$A$3:$A$351, 0), MATCH(Selection_Hide2!U$5, 'Full set Core Client Indicator'!$A$3:$AB$3, 0))), \"\")","v":""},{"$f":"IF(U229<>\"\", IF(INDEX('Full set Core Client Indicator'!$A$3:$AB$351, MATCH(Selection_Hide2!$A229, 'Full set Core Client Indicator'!$A$3:$A$351, 0), MATCH(Selection_Hide2!V$5, 'Full set Core Client Indicator'!$A$3:$AB$3, 0))=\"\", \"\",  INDEX('Full set Core Client Indicator'!$A$3:$AB$351, MATCH(Selection_Hide2!$A229, 'Full set Core Client Indicator'!$A$3:$A$351, 0), MATCH(Selection_Hide2!V$5, 'Full set Core Client Indicator'!$A$3:$AB$3, 0))), \"\")","v":""},{"$f":"IF(V229<>\"\", IF(INDEX('Full set Core Client Indicator'!$A$3:$AB$351, MATCH(Selection_Hide2!$A229, 'Full set Core Client Indicator'!$A$3:$A$351, 0), MATCH(Selection_Hide2!W$5, 'Full set Core Client Indicator'!$A$3:$AB$3, 0))=\"\", \"\",  INDEX('Full set Core Client Indicator'!$A$3:$AB$351, MATCH(Selection_Hide2!$A229, 'Full set Core Client Indicator'!$A$3:$A$351, 0), MATCH(Selection_Hide2!W$5, 'Full set Core Client Indicator'!$A$3:$AB$3, 0))), \"\")","v":""},{"$f":"IF(W229<>\"\", IF(INDEX('Full set Core Client Indicator'!$A$3:$AB$351, MATCH(Selection_Hide2!$A229, 'Full set Core Client Indicator'!$A$3:$A$351, 0), MATCH(Selection_Hide2!X$5, 'Full set Core Client Indicator'!$A$3:$AB$3, 0))=\"\", \"\",  INDEX('Full set Core Client Indicator'!$A$3:$AB$351, MATCH(Selection_Hide2!$A229, 'Full set Core Client Indicator'!$A$3:$A$351, 0), MATCH(Selection_Hide2!X$5, 'Full set Core Client Indicator'!$A$3:$AB$3, 0))), \"\")","v":""},{"$f":"IF(X229<>\"\", IF(INDEX('Full set Core Client Indicator'!$A$3:$AB$351, MATCH(Selection_Hide2!$A229, 'Full set Core Client Indicator'!$A$3:$A$351, 0), MATCH(Selection_Hide2!Y$5, 'Full set Core Client Indicator'!$A$3:$AB$3, 0))=\"\", \"\",  INDEX('Full set Core Client Indicator'!$A$3:$AB$351, MATCH(Selection_Hide2!$A229, 'Full set Core Client Indicator'!$A$3:$A$351, 0), MATCH(Selection_Hide2!Y$5, 'Full set Core Client Indicator'!$A$3:$AB$3, 0))), \"\")","v":""},{"$f":"IF(Y229<>\"\", IF(INDEX('Full set Core Client Indicator'!$A$3:$AB$351, MATCH(Selection_Hide2!$A229, 'Full set Core Client Indicator'!$A$3:$A$351, 0), MATCH(Selection_Hide2!Z$5, 'Full set Core Client Indicator'!$A$3:$AB$3, 0))=\"\", \"\",  INDEX('Full set Core Client Indicator'!$A$3:$AB$351, MATCH(Selection_Hide2!$A229, 'Full set Core Client Indicator'!$A$3:$A$351, 0), MATCH(Selection_Hide2!Z$5, 'Full set Core Client Indicator'!$A$3:$AB$3, 0))), \"\")","v":""},{"$f":"IF(Z229<>\"\", IF(INDEX('Full set Core Client Indicator'!$A$3:$AB$351, MATCH(Selection_Hide2!$A229, 'Full set Core Client Indicator'!$A$3:$A$351, 0), MATCH(Selection_Hide2!AA$5, 'Full set Core Client Indicator'!$A$3:$AB$3, 0))=\"\", \"\",  INDEX('Full set Core Client Indicator'!$A$3:$AB$351, MATCH(Selection_Hide2!$A229, 'Full set Core Client Indicator'!$A$3:$A$351, 0), MATCH(Selection_Hide2!AA$5, 'Full set Core Client Indicator'!$A$3:$AB$3, 0))), \"\")","v":""},{"$f":"IF(AA229<>\"\", IF(INDEX('Full set Core Client Indicator'!$A$3:$AB$351, MATCH(Selection_Hide2!$A229, 'Full set Core Client Indicator'!$A$3:$A$351, 0), MATCH(Selection_Hide2!AB$5, 'Full set Core Client Indicator'!$A$3:$AB$3, 0))=\"\", \"\",  INDEX('Full set Core Client Indicator'!$A$3:$AB$351, MATCH(Selection_Hide2!$A229, 'Full set Core Client Indicator'!$A$3:$A$351, 0), MATCH(Selection_Hide2!AB$5, 'Full set Core Client Indicator'!$A$3:$AB$3, 0))), \"\")","v":""}]
[{"$f":"IF(AND(Selection_Hide1!C228<>0, Selection_Hide1!C228<>\"Grand Total\"), Selection_Hide1!C228, \"\")","v":""},{"$f":"IF(A230<>\"\", IF(INDEX('Full set Core Client Indicator'!$A$3:$AB$351, MATCH(Selection_Hide2!$A230, 'Full set Core Client Indicator'!$A$3:$A$351, 0), MATCH(Selection_Hide2!B$5, 'Full set Core Client Indicator'!$A$3:$AB$3, 0))=\"\", \"\",  INDEX('Full set Core Client Indicator'!$A$3:$AB$351, MATCH(Selection_Hide2!$A230, 'Full set Core Client Indicator'!$A$3:$A$351, 0), MATCH(Selection_Hide2!B$5, 'Full set Core Client Indicator'!$A$3:$AB$3, 0))), \"\")","v":""},{"$f":"IF(B230<>\"\", IF(INDEX('Full set Core Client Indicator'!$A$3:$AB$351, MATCH(Selection_Hide2!$A230, 'Full set Core Client Indicator'!$A$3:$A$351, 0), MATCH(Selection_Hide2!C$5, 'Full set Core Client Indicator'!$A$3:$AB$3, 0))=\"\", \"\",  INDEX('Full set Core Client Indicator'!$A$3:$AB$351, MATCH(Selection_Hide2!$A230, 'Full set Core Client Indicator'!$A$3:$A$351, 0), MATCH(Selection_Hide2!C$5, 'Full set Core Client Indicator'!$A$3:$AB$3, 0))), \"\")","v":""},{"$f":"IF(C230<>\"\", IF(INDEX('Full set Core Client Indicator'!$A$3:$AB$351, MATCH(Selection_Hide2!$A230, 'Full set Core Client Indicator'!$A$3:$A$351, 0), MATCH(Selection_Hide2!D$5, 'Full set Core Client Indicator'!$A$3:$AB$3, 0))=\"\", \"\",  INDEX('Full set Core Client Indicator'!$A$3:$AB$351, MATCH(Selection_Hide2!$A230, 'Full set Core Client Indicator'!$A$3:$A$351, 0), MATCH(Selection_Hide2!D$5, 'Full set Core Client Indicator'!$A$3:$AB$3, 0))), \"\")","v":""},{"$f":"IF(D230<>\"\", IF(INDEX('Full set Core Client Indicator'!$A$3:$AB$351, MATCH(Selection_Hide2!$A230, 'Full set Core Client Indicator'!$A$3:$A$351, 0), MATCH(Selection_Hide2!E$5, 'Full set Core Client Indicator'!$A$3:$AB$3, 0))=\"\", \"\",  INDEX('Full set Core Client Indicator'!$A$3:$AB$351, MATCH(Selection_Hide2!$A230, 'Full set Core Client Indicator'!$A$3:$A$351, 0), MATCH(Selection_Hide2!E$5, 'Full set Core Client Indicator'!$A$3:$AB$3, 0))), \"\")","v":""},{"$f":"IF(E230<>\"\", IF(INDEX('Full set Core Client Indicator'!$A$3:$AB$351, MATCH(Selection_Hide2!$A230, 'Full set Core Client Indicator'!$A$3:$A$351, 0), MATCH(Selection_Hide2!F$5, 'Full set Core Client Indicator'!$A$3:$AB$3, 0))=\"\", \"\",  INDEX('Full set Core Client Indicator'!$A$3:$AB$351, MATCH(Selection_Hide2!$A230, 'Full set Core Client Indicator'!$A$3:$A$351, 0), MATCH(Selection_Hide2!F$5, 'Full set Core Client Indicator'!$A$3:$AB$3, 0))), \"\")","v":""},{"$f":"IF(F230<>\"\", IF(INDEX('Full set Core Client Indicator'!$A$3:$AB$351, MATCH(Selection_Hide2!$A230, 'Full set Core Client Indicator'!$A$3:$A$351, 0), MATCH(Selection_Hide2!G$5, 'Full set Core Client Indicator'!$A$3:$AB$3, 0))=\"\", \"\",  INDEX('Full set Core Client Indicator'!$A$3:$AB$351, MATCH(Selection_Hide2!$A230, 'Full set Core Client Indicator'!$A$3:$A$351, 0), MATCH(Selection_Hide2!G$5, 'Full set Core Client Indicator'!$A$3:$AB$3, 0))), \"\")","v":""},{"$f":"IF(G230<>\"\", IF(INDEX('Full set Core Client Indicator'!$A$3:$AB$351, MATCH(Selection_Hide2!$A230, 'Full set Core Client Indicator'!$A$3:$A$351, 0), MATCH(Selection_Hide2!H$5, 'Full set Core Client Indicator'!$A$3:$AB$3, 0))=\"\", \"\",  INDEX('Full set Core Client Indicator'!$A$3:$AB$351, MATCH(Selection_Hide2!$A230, 'Full set Core Client Indicator'!$A$3:$A$351, 0), MATCH(Selection_Hide2!H$5, 'Full set Core Client Indicator'!$A$3:$AB$3, 0))), \"\")","v":""},{"$f":"IF(H230<>\"\", IF(INDEX('Full set Core Client Indicator'!$A$3:$AB$351, MATCH(Selection_Hide2!$A230, 'Full set Core Client Indicator'!$A$3:$A$351, 0), MATCH(Selection_Hide2!I$5, 'Full set Core Client Indicator'!$A$3:$AB$3, 0))=\"\", \"\",  INDEX('Full set Core Client Indicator'!$A$3:$AB$351, MATCH(Selection_Hide2!$A230, 'Full set Core Client Indicator'!$A$3:$A$351, 0), MATCH(Selection_Hide2!I$5, 'Full set Core Client Indicator'!$A$3:$AB$3, 0))), \"\")","v":""},{"$f":"IF(I230<>\"\", IF(INDEX('Full set Core Client Indicator'!$A$3:$AB$351, MATCH(Selection_Hide2!$A230, 'Full set Core Client Indicator'!$A$3:$A$351, 0), MATCH(Selection_Hide2!J$5, 'Full set Core Client Indicator'!$A$3:$AB$3, 0))=\"\", \"\",  INDEX('Full set Core Client Indicator'!$A$3:$AB$351, MATCH(Selection_Hide2!$A230, 'Full set Core Client Indicator'!$A$3:$A$351, 0), MATCH(Selection_Hide2!J$5, 'Full set Core Client Indicator'!$A$3:$AB$3, 0))), \"\")","v":""},{"$f":"IF(J230<>\"\", IF(INDEX('Full set Core Client Indicator'!$A$3:$AB$351, MATCH(Selection_Hide2!$A230, 'Full set Core Client Indicator'!$A$3:$A$351, 0), MATCH(Selection_Hide2!K$5, 'Full set Core Client Indicator'!$A$3:$AB$3, 0))=\"\", \"\",  INDEX('Full set Core Client Indicator'!$A$3:$AB$351, MATCH(Selection_Hide2!$A230, 'Full set Core Client Indicator'!$A$3:$A$351, 0), MATCH(Selection_Hide2!K$5, 'Full set Core Client Indicator'!$A$3:$AB$3, 0))), \"\")","v":""},{"$f":"IF(K230<>\"\", IF(INDEX('Full set Core Client Indicator'!$A$3:$AB$351, MATCH(Selection_Hide2!$A230, 'Full set Core Client Indicator'!$A$3:$A$351, 0), MATCH(Selection_Hide2!L$5, 'Full set Core Client Indicator'!$A$3:$AB$3, 0))=\"\", \"\",  INDEX('Full set Core Client Indicator'!$A$3:$AB$351, MATCH(Selection_Hide2!$A230, 'Full set Core Client Indicator'!$A$3:$A$351, 0), MATCH(Selection_Hide2!L$5, 'Full set Core Client Indicator'!$A$3:$AB$3, 0))), \"\")","v":""},{"$f":"IF(L230<>\"\", IF(INDEX('Full set Core Client Indicator'!$A$3:$AB$351, MATCH(Selection_Hide2!$A230, 'Full set Core Client Indicator'!$A$3:$A$351, 0), MATCH(Selection_Hide2!M$5, 'Full set Core Client Indicator'!$A$3:$AB$3, 0))=\"\", \"\",  INDEX('Full set Core Client Indicator'!$A$3:$AB$351, MATCH(Selection_Hide2!$A230, 'Full set Core Client Indicator'!$A$3:$A$351, 0), MATCH(Selection_Hide2!M$5, 'Full set Core Client Indicator'!$A$3:$AB$3, 0))), \"\")","v":""},{"$f":"IF(M230<>\"\", IF(INDEX('Full set Core Client Indicator'!$A$3:$AB$351, MATCH(Selection_Hide2!$A230, 'Full set Core Client Indicator'!$A$3:$A$351, 0), MATCH(Selection_Hide2!N$5, 'Full set Core Client Indicator'!$A$3:$AB$3, 0))=\"\", \"\",  INDEX('Full set Core Client Indicator'!$A$3:$AB$351, MATCH(Selection_Hide2!$A230, 'Full set Core Client Indicator'!$A$3:$A$351, 0), MATCH(Selection_Hide2!N$5, 'Full set Core Client Indicator'!$A$3:$AB$3, 0))), \"\")","v":""},{"$f":"IF(N230<>\"\", IF(INDEX('Full set Core Client Indicator'!$A$3:$AB$351, MATCH(Selection_Hide2!$A230, 'Full set Core Client Indicator'!$A$3:$A$351, 0), MATCH(Selection_Hide2!O$5, 'Full set Core Client Indicator'!$A$3:$AB$3, 0))=\"\", \"\",  INDEX('Full set Core Client Indicator'!$A$3:$AB$351, MATCH(Selection_Hide2!$A230, 'Full set Core Client Indicator'!$A$3:$A$351, 0), MATCH(Selection_Hide2!O$5, 'Full set Core Client Indicator'!$A$3:$AB$3, 0))), \"\")","v":""},{"$f":"IF(O230<>\"\", IF(INDEX('Full set Core Client Indicator'!$A$3:$AB$351, MATCH(Selection_Hide2!$A230, 'Full set Core Client Indicator'!$A$3:$A$351, 0), MATCH(Selection_Hide2!P$5, 'Full set Core Client Indicator'!$A$3:$AB$3, 0))=\"\", \"\",  INDEX('Full set Core Client Indicator'!$A$3:$AB$351, MATCH(Selection_Hide2!$A230, 'Full set Core Client Indicator'!$A$3:$A$351, 0), MATCH(Selection_Hide2!P$5, 'Full set Core Client Indicator'!$A$3:$AB$3, 0))), \"\")","v":""},{"$f":"IF(P230<>\"\", IF(INDEX('Full set Core Client Indicator'!$A$3:$AB$351, MATCH(Selection_Hide2!$A230, 'Full set Core Client Indicator'!$A$3:$A$351, 0), MATCH(Selection_Hide2!Q$5, 'Full set Core Client Indicator'!$A$3:$AB$3, 0))=\"\", \"\",  INDEX('Full set Core Client Indicator'!$A$3:$AB$351, MATCH(Selection_Hide2!$A230, 'Full set Core Client Indicator'!$A$3:$A$351, 0), MATCH(Selection_Hide2!Q$5, 'Full set Core Client Indicator'!$A$3:$AB$3, 0))), \"\")","v":""},{"$f":"IF(Q230<>\"\", IF(INDEX('Full set Core Client Indicator'!$A$3:$AB$351, MATCH(Selection_Hide2!$A230, 'Full set Core Client Indicator'!$A$3:$A$351, 0), MATCH(Selection_Hide2!R$5, 'Full set Core Client Indicator'!$A$3:$AB$3, 0))=\"\", \"\",  INDEX('Full set Core Client Indicator'!$A$3:$AB$351, MATCH(Selection_Hide2!$A230, 'Full set Core Client Indicator'!$A$3:$A$351, 0), MATCH(Selection_Hide2!R$5, 'Full set Core Client Indicator'!$A$3:$AB$3, 0))), \"\")","v":""},{"$f":"IF(R230<>\"\", IF(INDEX('Full set Core Client Indicator'!$A$3:$AB$351, MATCH(Selection_Hide2!$A230, 'Full set Core Client Indicator'!$A$3:$A$351, 0), MATCH(Selection_Hide2!S$5, 'Full set Core Client Indicator'!$A$3:$AB$3, 0))=\"\", \"\",  INDEX('Full set Core Client Indicator'!$A$3:$AB$351, MATCH(Selection_Hide2!$A230, 'Full set Core Client Indicator'!$A$3:$A$351, 0), MATCH(Selection_Hide2!S$5, 'Full set Core Client Indicator'!$A$3:$AB$3, 0))), \"\")","v":""},{"$f":"IF(S230<>\"\", IF(INDEX('Full set Core Client Indicator'!$A$3:$AB$351, MATCH(Selection_Hide2!$A230, 'Full set Core Client Indicator'!$A$3:$A$351, 0), MATCH(Selection_Hide2!T$5, 'Full set Core Client Indicator'!$A$3:$AB$3, 0))=\"\", \"\",  INDEX('Full set Core Client Indicator'!$A$3:$AB$351, MATCH(Selection_Hide2!$A230, 'Full set Core Client Indicator'!$A$3:$A$351, 0), MATCH(Selection_Hide2!T$5, 'Full set Core Client Indicator'!$A$3:$AB$3, 0))), \"\")","v":""},{"$f":"IF(T230<>\"\", IF(INDEX('Full set Core Client Indicator'!$A$3:$AB$351, MATCH(Selection_Hide2!$A230, 'Full set Core Client Indicator'!$A$3:$A$351, 0), MATCH(Selection_Hide2!U$5, 'Full set Core Client Indicator'!$A$3:$AB$3, 0))=\"\", \"\",  INDEX('Full set Core Client Indicator'!$A$3:$AB$351, MATCH(Selection_Hide2!$A230, 'Full set Core Client Indicator'!$A$3:$A$351, 0), MATCH(Selection_Hide2!U$5, 'Full set Core Client Indicator'!$A$3:$AB$3, 0))), \"\")","v":""},{"$f":"IF(U230<>\"\", IF(INDEX('Full set Core Client Indicator'!$A$3:$AB$351, MATCH(Selection_Hide2!$A230, 'Full set Core Client Indicator'!$A$3:$A$351, 0), MATCH(Selection_Hide2!V$5, 'Full set Core Client Indicator'!$A$3:$AB$3, 0))=\"\", \"\",  INDEX('Full set Core Client Indicator'!$A$3:$AB$351, MATCH(Selection_Hide2!$A230, 'Full set Core Client Indicator'!$A$3:$A$351, 0), MATCH(Selection_Hide2!V$5, 'Full set Core Client Indicator'!$A$3:$AB$3, 0))), \"\")","v":""},{"$f":"IF(V230<>\"\", IF(INDEX('Full set Core Client Indicator'!$A$3:$AB$351, MATCH(Selection_Hide2!$A230, 'Full set Core Client Indicator'!$A$3:$A$351, 0), MATCH(Selection_Hide2!W$5, 'Full set Core Client Indicator'!$A$3:$AB$3, 0))=\"\", \"\",  INDEX('Full set Core Client Indicator'!$A$3:$AB$351, MATCH(Selection_Hide2!$A230, 'Full set Core Client Indicator'!$A$3:$A$351, 0), MATCH(Selection_Hide2!W$5, 'Full set Core Client Indicator'!$A$3:$AB$3, 0))), \"\")","v":""},{"$f":"IF(W230<>\"\", IF(INDEX('Full set Core Client Indicator'!$A$3:$AB$351, MATCH(Selection_Hide2!$A230, 'Full set Core Client Indicator'!$A$3:$A$351, 0), MATCH(Selection_Hide2!X$5, 'Full set Core Client Indicator'!$A$3:$AB$3, 0))=\"\", \"\",  INDEX('Full set Core Client Indicator'!$A$3:$AB$351, MATCH(Selection_Hide2!$A230, 'Full set Core Client Indicator'!$A$3:$A$351, 0), MATCH(Selection_Hide2!X$5, 'Full set Core Client Indicator'!$A$3:$AB$3, 0))), \"\")","v":""},{"$f":"IF(X230<>\"\", IF(INDEX('Full set Core Client Indicator'!$A$3:$AB$351, MATCH(Selection_Hide2!$A230, 'Full set Core Client Indicator'!$A$3:$A$351, 0), MATCH(Selection_Hide2!Y$5, 'Full set Core Client Indicator'!$A$3:$AB$3, 0))=\"\", \"\",  INDEX('Full set Core Client Indicator'!$A$3:$AB$351, MATCH(Selection_Hide2!$A230, 'Full set Core Client Indicator'!$A$3:$A$351, 0), MATCH(Selection_Hide2!Y$5, 'Full set Core Client Indicator'!$A$3:$AB$3, 0))), \"\")","v":""},{"$f":"IF(Y230<>\"\", IF(INDEX('Full set Core Client Indicator'!$A$3:$AB$351, MATCH(Selection_Hide2!$A230, 'Full set Core Client Indicator'!$A$3:$A$351, 0), MATCH(Selection_Hide2!Z$5, 'Full set Core Client Indicator'!$A$3:$AB$3, 0))=\"\", \"\",  INDEX('Full set Core Client Indicator'!$A$3:$AB$351, MATCH(Selection_Hide2!$A230, 'Full set Core Client Indicator'!$A$3:$A$351, 0), MATCH(Selection_Hide2!Z$5, 'Full set Core Client Indicator'!$A$3:$AB$3, 0))), \"\")","v":""},{"$f":"IF(Z230<>\"\", IF(INDEX('Full set Core Client Indicator'!$A$3:$AB$351, MATCH(Selection_Hide2!$A230, 'Full set Core Client Indicator'!$A$3:$A$351, 0), MATCH(Selection_Hide2!AA$5, 'Full set Core Client Indicator'!$A$3:$AB$3, 0))=\"\", \"\",  INDEX('Full set Core Client Indicator'!$A$3:$AB$351, MATCH(Selection_Hide2!$A230, 'Full set Core Client Indicator'!$A$3:$A$351, 0), MATCH(Selection_Hide2!AA$5, 'Full set Core Client Indicator'!$A$3:$AB$3, 0))), \"\")","v":""},{"$f":"IF(AA230<>\"\", IF(INDEX('Full set Core Client Indicator'!$A$3:$AB$351, MATCH(Selection_Hide2!$A230, 'Full set Core Client Indicator'!$A$3:$A$351, 0), MATCH(Selection_Hide2!AB$5, 'Full set Core Client Indicator'!$A$3:$AB$3, 0))=\"\", \"\",  INDEX('Full set Core Client Indicator'!$A$3:$AB$351, MATCH(Selection_Hide2!$A230, 'Full set Core Client Indicator'!$A$3:$A$351, 0), MATCH(Selection_Hide2!AB$5, 'Full set Core Client Indicator'!$A$3:$AB$3, 0))), \"\")","v":""}]
[{"$f":"IF(AND(Selection_Hide1!C229<>0, Selection_Hide1!C229<>\"Grand Total\"), Selection_Hide1!C229, \"\")","v":""},{"$f":"IF(A231<>\"\", IF(INDEX('Full set Core Client Indicator'!$A$3:$AB$351, MATCH(Selection_Hide2!$A231, 'Full set Core Client Indicator'!$A$3:$A$351, 0), MATCH(Selection_Hide2!B$5, 'Full set Core Client Indicator'!$A$3:$AB$3, 0))=\"\", \"\",  INDEX('Full set Core Client Indicator'!$A$3:$AB$351, MATCH(Selection_Hide2!$A231, 'Full set Core Client Indicator'!$A$3:$A$351, 0), MATCH(Selection_Hide2!B$5, 'Full set Core Client Indicator'!$A$3:$AB$3, 0))), \"\")","v":""},{"$f":"IF(B231<>\"\", IF(INDEX('Full set Core Client Indicator'!$A$3:$AB$351, MATCH(Selection_Hide2!$A231, 'Full set Core Client Indicator'!$A$3:$A$351, 0), MATCH(Selection_Hide2!C$5, 'Full set Core Client Indicator'!$A$3:$AB$3, 0))=\"\", \"\",  INDEX('Full set Core Client Indicator'!$A$3:$AB$351, MATCH(Selection_Hide2!$A231, 'Full set Core Client Indicator'!$A$3:$A$351, 0), MATCH(Selection_Hide2!C$5, 'Full set Core Client Indicator'!$A$3:$AB$3, 0))), \"\")","v":""},{"$f":"IF(C231<>\"\", IF(INDEX('Full set Core Client Indicator'!$A$3:$AB$351, MATCH(Selection_Hide2!$A231, 'Full set Core Client Indicator'!$A$3:$A$351, 0), MATCH(Selection_Hide2!D$5, 'Full set Core Client Indicator'!$A$3:$AB$3, 0))=\"\", \"\",  INDEX('Full set Core Client Indicator'!$A$3:$AB$351, MATCH(Selection_Hide2!$A231, 'Full set Core Client Indicator'!$A$3:$A$351, 0), MATCH(Selection_Hide2!D$5, 'Full set Core Client Indicator'!$A$3:$AB$3, 0))), \"\")","v":""},{"$f":"IF(D231<>\"\", IF(INDEX('Full set Core Client Indicator'!$A$3:$AB$351, MATCH(Selection_Hide2!$A231, 'Full set Core Client Indicator'!$A$3:$A$351, 0), MATCH(Selection_Hide2!E$5, 'Full set Core Client Indicator'!$A$3:$AB$3, 0))=\"\", \"\",  INDEX('Full set Core Client Indicator'!$A$3:$AB$351, MATCH(Selection_Hide2!$A231, 'Full set Core Client Indicator'!$A$3:$A$351, 0), MATCH(Selection_Hide2!E$5, 'Full set Core Client Indicator'!$A$3:$AB$3, 0))), \"\")","v":""},{"$f":"IF(E231<>\"\", IF(INDEX('Full set Core Client Indicator'!$A$3:$AB$351, MATCH(Selection_Hide2!$A231, 'Full set Core Client Indicator'!$A$3:$A$351, 0), MATCH(Selection_Hide2!F$5, 'Full set Core Client Indicator'!$A$3:$AB$3, 0))=\"\", \"\",  INDEX('Full set Core Client Indicator'!$A$3:$AB$351, MATCH(Selection_Hide2!$A231, 'Full set Core Client Indicator'!$A$3:$A$351, 0), MATCH(Selection_Hide2!F$5, 'Full set Core Client Indicator'!$A$3:$AB$3, 0))), \"\")","v":""},{"$f":"IF(F231<>\"\", IF(INDEX('Full set Core Client Indicator'!$A$3:$AB$351, MATCH(Selection_Hide2!$A231, 'Full set Core Client Indicator'!$A$3:$A$351, 0), MATCH(Selection_Hide2!G$5, 'Full set Core Client Indicator'!$A$3:$AB$3, 0))=\"\", \"\",  INDEX('Full set Core Client Indicator'!$A$3:$AB$351, MATCH(Selection_Hide2!$A231, 'Full set Core Client Indicator'!$A$3:$A$351, 0), MATCH(Selection_Hide2!G$5, 'Full set Core Client Indicator'!$A$3:$AB$3, 0))), \"\")","v":""},{"$f":"IF(G231<>\"\", IF(INDEX('Full set Core Client Indicator'!$A$3:$AB$351, MATCH(Selection_Hide2!$A231, 'Full set Core Client Indicator'!$A$3:$A$351, 0), MATCH(Selection_Hide2!H$5, 'Full set Core Client Indicator'!$A$3:$AB$3, 0))=\"\", \"\",  INDEX('Full set Core Client Indicator'!$A$3:$AB$351, MATCH(Selection_Hide2!$A231, 'Full set Core Client Indicator'!$A$3:$A$351, 0), MATCH(Selection_Hide2!H$5, 'Full set Core Client Indicator'!$A$3:$AB$3, 0))), \"\")","v":""},{"$f":"IF(H231<>\"\", IF(INDEX('Full set Core Client Indicator'!$A$3:$AB$351, MATCH(Selection_Hide2!$A231, 'Full set Core Client Indicator'!$A$3:$A$351, 0), MATCH(Selection_Hide2!I$5, 'Full set Core Client Indicator'!$A$3:$AB$3, 0))=\"\", \"\",  INDEX('Full set Core Client Indicator'!$A$3:$AB$351, MATCH(Selection_Hide2!$A231, 'Full set Core Client Indicator'!$A$3:$A$351, 0), MATCH(Selection_Hide2!I$5, 'Full set Core Client Indicator'!$A$3:$AB$3, 0))), \"\")","v":""},{"$f":"IF(I231<>\"\", IF(INDEX('Full set Core Client Indicator'!$A$3:$AB$351, MATCH(Selection_Hide2!$A231, 'Full set Core Client Indicator'!$A$3:$A$351, 0), MATCH(Selection_Hide2!J$5, 'Full set Core Client Indicator'!$A$3:$AB$3, 0))=\"\", \"\",  INDEX('Full set Core Client Indicator'!$A$3:$AB$351, MATCH(Selection_Hide2!$A231, 'Full set Core Client Indicator'!$A$3:$A$351, 0), MATCH(Selection_Hide2!J$5, 'Full set Core Client Indicator'!$A$3:$AB$3, 0))), \"\")","v":""},{"$f":"IF(J231<>\"\", IF(INDEX('Full set Core Client Indicator'!$A$3:$AB$351, MATCH(Selection_Hide2!$A231, 'Full set Core Client Indicator'!$A$3:$A$351, 0), MATCH(Selection_Hide2!K$5, 'Full set Core Client Indicator'!$A$3:$AB$3, 0))=\"\", \"\",  INDEX('Full set Core Client Indicator'!$A$3:$AB$351, MATCH(Selection_Hide2!$A231, 'Full set Core Client Indicator'!$A$3:$A$351, 0), MATCH(Selection_Hide2!K$5, 'Full set Core Client Indicator'!$A$3:$AB$3, 0))), \"\")","v":""},{"$f":"IF(K231<>\"\", IF(INDEX('Full set Core Client Indicator'!$A$3:$AB$351, MATCH(Selection_Hide2!$A231, 'Full set Core Client Indicator'!$A$3:$A$351, 0), MATCH(Selection_Hide2!L$5, 'Full set Core Client Indicator'!$A$3:$AB$3, 0))=\"\", \"\",  INDEX('Full set Core Client Indicator'!$A$3:$AB$351, MATCH(Selection_Hide2!$A231, 'Full set Core Client Indicator'!$A$3:$A$351, 0), MATCH(Selection_Hide2!L$5, 'Full set Core Client Indicator'!$A$3:$AB$3, 0))), \"\")","v":""},{"$f":"IF(L231<>\"\", IF(INDEX('Full set Core Client Indicator'!$A$3:$AB$351, MATCH(Selection_Hide2!$A231, 'Full set Core Client Indicator'!$A$3:$A$351, 0), MATCH(Selection_Hide2!M$5, 'Full set Core Client Indicator'!$A$3:$AB$3, 0))=\"\", \"\",  INDEX('Full set Core Client Indicator'!$A$3:$AB$351, MATCH(Selection_Hide2!$A231, 'Full set Core Client Indicator'!$A$3:$A$351, 0), MATCH(Selection_Hide2!M$5, 'Full set Core Client Indicator'!$A$3:$AB$3, 0))), \"\")","v":""},{"$f":"IF(M231<>\"\", IF(INDEX('Full set Core Client Indicator'!$A$3:$AB$351, MATCH(Selection_Hide2!$A231, 'Full set Core Client Indicator'!$A$3:$A$351, 0), MATCH(Selection_Hide2!N$5, 'Full set Core Client Indicator'!$A$3:$AB$3, 0))=\"\", \"\",  INDEX('Full set Core Client Indicator'!$A$3:$AB$351, MATCH(Selection_Hide2!$A231, 'Full set Core Client Indicator'!$A$3:$A$351, 0), MATCH(Selection_Hide2!N$5, 'Full set Core Client Indicator'!$A$3:$AB$3, 0))), \"\")","v":""},{"$f":"IF(N231<>\"\", IF(INDEX('Full set Core Client Indicator'!$A$3:$AB$351, MATCH(Selection_Hide2!$A231, 'Full set Core Client Indicator'!$A$3:$A$351, 0), MATCH(Selection_Hide2!O$5, 'Full set Core Client Indicator'!$A$3:$AB$3, 0))=\"\", \"\",  INDEX('Full set Core Client Indicator'!$A$3:$AB$351, MATCH(Selection_Hide2!$A231, 'Full set Core Client Indicator'!$A$3:$A$351, 0), MATCH(Selection_Hide2!O$5, 'Full set Core Client Indicator'!$A$3:$AB$3, 0))), \"\")","v":""},{"$f":"IF(O231<>\"\", IF(INDEX('Full set Core Client Indicator'!$A$3:$AB$351, MATCH(Selection_Hide2!$A231, 'Full set Core Client Indicator'!$A$3:$A$351, 0), MATCH(Selection_Hide2!P$5, 'Full set Core Client Indicator'!$A$3:$AB$3, 0))=\"\", \"\",  INDEX('Full set Core Client Indicator'!$A$3:$AB$351, MATCH(Selection_Hide2!$A231, 'Full set Core Client Indicator'!$A$3:$A$351, 0), MATCH(Selection_Hide2!P$5, 'Full set Core Client Indicator'!$A$3:$AB$3, 0))), \"\")","v":""},{"$f":"IF(P231<>\"\", IF(INDEX('Full set Core Client Indicator'!$A$3:$AB$351, MATCH(Selection_Hide2!$A231, 'Full set Core Client Indicator'!$A$3:$A$351, 0), MATCH(Selection_Hide2!Q$5, 'Full set Core Client Indicator'!$A$3:$AB$3, 0))=\"\", \"\",  INDEX('Full set Core Client Indicator'!$A$3:$AB$351, MATCH(Selection_Hide2!$A231, 'Full set Core Client Indicator'!$A$3:$A$351, 0), MATCH(Selection_Hide2!Q$5, 'Full set Core Client Indicator'!$A$3:$AB$3, 0))), \"\")","v":""},{"$f":"IF(Q231<>\"\", IF(INDEX('Full set Core Client Indicator'!$A$3:$AB$351, MATCH(Selection_Hide2!$A231, 'Full set Core Client Indicator'!$A$3:$A$351, 0), MATCH(Selection_Hide2!R$5, 'Full set Core Client Indicator'!$A$3:$AB$3, 0))=\"\", \"\",  INDEX('Full set Core Client Indicator'!$A$3:$AB$351, MATCH(Selection_Hide2!$A231, 'Full set Core Client Indicator'!$A$3:$A$351, 0), MATCH(Selection_Hide2!R$5, 'Full set Core Client Indicator'!$A$3:$AB$3, 0))), \"\")","v":""},{"$f":"IF(R231<>\"\", IF(INDEX('Full set Core Client Indicator'!$A$3:$AB$351, MATCH(Selection_Hide2!$A231, 'Full set Core Client Indicator'!$A$3:$A$351, 0), MATCH(Selection_Hide2!S$5, 'Full set Core Client Indicator'!$A$3:$AB$3, 0))=\"\", \"\",  INDEX('Full set Core Client Indicator'!$A$3:$AB$351, MATCH(Selection_Hide2!$A231, 'Full set Core Client Indicator'!$A$3:$A$351, 0), MATCH(Selection_Hide2!S$5, 'Full set Core Client Indicator'!$A$3:$AB$3, 0))), \"\")","v":""},{"$f":"IF(S231<>\"\", IF(INDEX('Full set Core Client Indicator'!$A$3:$AB$351, MATCH(Selection_Hide2!$A231, 'Full set Core Client Indicator'!$A$3:$A$351, 0), MATCH(Selection_Hide2!T$5, 'Full set Core Client Indicator'!$A$3:$AB$3, 0))=\"\", \"\",  INDEX('Full set Core Client Indicator'!$A$3:$AB$351, MATCH(Selection_Hide2!$A231, 'Full set Core Client Indicator'!$A$3:$A$351, 0), MATCH(Selection_Hide2!T$5, 'Full set Core Client Indicator'!$A$3:$AB$3, 0))), \"\")","v":""},{"$f":"IF(T231<>\"\", IF(INDEX('Full set Core Client Indicator'!$A$3:$AB$351, MATCH(Selection_Hide2!$A231, 'Full set Core Client Indicator'!$A$3:$A$351, 0), MATCH(Selection_Hide2!U$5, 'Full set Core Client Indicator'!$A$3:$AB$3, 0))=\"\", \"\",  INDEX('Full set Core Client Indicator'!$A$3:$AB$351, MATCH(Selection_Hide2!$A231, 'Full set Core Client Indicator'!$A$3:$A$351, 0), MATCH(Selection_Hide2!U$5, 'Full set Core Client Indicator'!$A$3:$AB$3, 0))), \"\")","v":""},{"$f":"IF(U231<>\"\", IF(INDEX('Full set Core Client Indicator'!$A$3:$AB$351, MATCH(Selection_Hide2!$A231, 'Full set Core Client Indicator'!$A$3:$A$351, 0), MATCH(Selection_Hide2!V$5, 'Full set Core Client Indicator'!$A$3:$AB$3, 0))=\"\", \"\",  INDEX('Full set Core Client Indicator'!$A$3:$AB$351, MATCH(Selection_Hide2!$A231, 'Full set Core Client Indicator'!$A$3:$A$351, 0), MATCH(Selection_Hide2!V$5, 'Full set Core Client Indicator'!$A$3:$AB$3, 0))), \"\")","v":""},{"$f":"IF(V231<>\"\", IF(INDEX('Full set Core Client Indicator'!$A$3:$AB$351, MATCH(Selection_Hide2!$A231, 'Full set Core Client Indicator'!$A$3:$A$351, 0), MATCH(Selection_Hide2!W$5, 'Full set Core Client Indicator'!$A$3:$AB$3, 0))=\"\", \"\",  INDEX('Full set Core Client Indicator'!$A$3:$AB$351, MATCH(Selection_Hide2!$A231, 'Full set Core Client Indicator'!$A$3:$A$351, 0), MATCH(Selection_Hide2!W$5, 'Full set Core Client Indicator'!$A$3:$AB$3, 0))), \"\")","v":""},{"$f":"IF(W231<>\"\", IF(INDEX('Full set Core Client Indicator'!$A$3:$AB$351, MATCH(Selection_Hide2!$A231, 'Full set Core Client Indicator'!$A$3:$A$351, 0), MATCH(Selection_Hide2!X$5, 'Full set Core Client Indicator'!$A$3:$AB$3, 0))=\"\", \"\",  INDEX('Full set Core Client Indicator'!$A$3:$AB$351, MATCH(Selection_Hide2!$A231, 'Full set Core Client Indicator'!$A$3:$A$351, 0), MATCH(Selection_Hide2!X$5, 'Full set Core Client Indicator'!$A$3:$AB$3, 0))), \"\")","v":""},{"$f":"IF(X231<>\"\", IF(INDEX('Full set Core Client Indicator'!$A$3:$AB$351, MATCH(Selection_Hide2!$A231, 'Full set Core Client Indicator'!$A$3:$A$351, 0), MATCH(Selection_Hide2!Y$5, 'Full set Core Client Indicator'!$A$3:$AB$3, 0))=\"\", \"\",  INDEX('Full set Core Client Indicator'!$A$3:$AB$351, MATCH(Selection_Hide2!$A231, 'Full set Core Client Indicator'!$A$3:$A$351, 0), MATCH(Selection_Hide2!Y$5, 'Full set Core Client Indicator'!$A$3:$AB$3, 0))), \"\")","v":""},{"$f":"IF(Y231<>\"\", IF(INDEX('Full set Core Client Indicator'!$A$3:$AB$351, MATCH(Selection_Hide2!$A231, 'Full set Core Client Indicator'!$A$3:$A$351, 0), MATCH(Selection_Hide2!Z$5, 'Full set Core Client Indicator'!$A$3:$AB$3, 0))=\"\", \"\",  INDEX('Full set Core Client Indicator'!$A$3:$AB$351, MATCH(Selection_Hide2!$A231, 'Full set Core Client Indicator'!$A$3:$A$351, 0), MATCH(Selection_Hide2!Z$5, 'Full set Core Client Indicator'!$A$3:$AB$3, 0))), \"\")","v":""},{"$f":"IF(Z231<>\"\", IF(INDEX('Full set Core Client Indicator'!$A$3:$AB$351, MATCH(Selection_Hide2!$A231, 'Full set Core Client Indicator'!$A$3:$A$351, 0), MATCH(Selection_Hide2!AA$5, 'Full set Core Client Indicator'!$A$3:$AB$3, 0))=\"\", \"\",  INDEX('Full set Core Client Indicator'!$A$3:$AB$351, MATCH(Selection_Hide2!$A231, 'Full set Core Client Indicator'!$A$3:$A$351, 0), MATCH(Selection_Hide2!AA$5, 'Full set Core Client Indicator'!$A$3:$AB$3, 0))), \"\")","v":""},{"$f":"IF(AA231<>\"\", IF(INDEX('Full set Core Client Indicator'!$A$3:$AB$351, MATCH(Selection_Hide2!$A231, 'Full set Core Client Indicator'!$A$3:$A$351, 0), MATCH(Selection_Hide2!AB$5, 'Full set Core Client Indicator'!$A$3:$AB$3, 0))=\"\", \"\",  INDEX('Full set Core Client Indicator'!$A$3:$AB$351, MATCH(Selection_Hide2!$A231, 'Full set Core Client Indicator'!$A$3:$A$351, 0), MATCH(Selection_Hide2!AB$5, 'Full set Core Client Indicator'!$A$3:$AB$3, 0))), \"\")","v":""}]
[{"$f":"IF(AND(Selection_Hide1!C230<>0, Selection_Hide1!C230<>\"Grand Total\"), Selection_Hide1!C230, \"\")","v":""},{"$f":"IF(A232<>\"\", IF(INDEX('Full set Core Client Indicator'!$A$3:$AB$351, MATCH(Selection_Hide2!$A232, 'Full set Core Client Indicator'!$A$3:$A$351, 0), MATCH(Selection_Hide2!B$5, 'Full set Core Client Indicator'!$A$3:$AB$3, 0))=\"\", \"\",  INDEX('Full set Core Client Indicator'!$A$3:$AB$351, MATCH(Selection_Hide2!$A232, 'Full set Core Client Indicator'!$A$3:$A$351, 0), MATCH(Selection_Hide2!B$5, 'Full set Core Client Indicator'!$A$3:$AB$3, 0))), \"\")","v":""},{"$f":"IF(B232<>\"\", IF(INDEX('Full set Core Client Indicator'!$A$3:$AB$351, MATCH(Selection_Hide2!$A232, 'Full set Core Client Indicator'!$A$3:$A$351, 0), MATCH(Selection_Hide2!C$5, 'Full set Core Client Indicator'!$A$3:$AB$3, 0))=\"\", \"\",  INDEX('Full set Core Client Indicator'!$A$3:$AB$351, MATCH(Selection_Hide2!$A232, 'Full set Core Client Indicator'!$A$3:$A$351, 0), MATCH(Selection_Hide2!C$5, 'Full set Core Client Indicator'!$A$3:$AB$3, 0))), \"\")","v":""},{"$f":"IF(C232<>\"\", IF(INDEX('Full set Core Client Indicator'!$A$3:$AB$351, MATCH(Selection_Hide2!$A232, 'Full set Core Client Indicator'!$A$3:$A$351, 0), MATCH(Selection_Hide2!D$5, 'Full set Core Client Indicator'!$A$3:$AB$3, 0))=\"\", \"\",  INDEX('Full set Core Client Indicator'!$A$3:$AB$351, MATCH(Selection_Hide2!$A232, 'Full set Core Client Indicator'!$A$3:$A$351, 0), MATCH(Selection_Hide2!D$5, 'Full set Core Client Indicator'!$A$3:$AB$3, 0))), \"\")","v":""},{"$f":"IF(D232<>\"\", IF(INDEX('Full set Core Client Indicator'!$A$3:$AB$351, MATCH(Selection_Hide2!$A232, 'Full set Core Client Indicator'!$A$3:$A$351, 0), MATCH(Selection_Hide2!E$5, 'Full set Core Client Indicator'!$A$3:$AB$3, 0))=\"\", \"\",  INDEX('Full set Core Client Indicator'!$A$3:$AB$351, MATCH(Selection_Hide2!$A232, 'Full set Core Client Indicator'!$A$3:$A$351, 0), MATCH(Selection_Hide2!E$5, 'Full set Core Client Indicator'!$A$3:$AB$3, 0))), \"\")","v":""},{"$f":"IF(E232<>\"\", IF(INDEX('Full set Core Client Indicator'!$A$3:$AB$351, MATCH(Selection_Hide2!$A232, 'Full set Core Client Indicator'!$A$3:$A$351, 0), MATCH(Selection_Hide2!F$5, 'Full set Core Client Indicator'!$A$3:$AB$3, 0))=\"\", \"\",  INDEX('Full set Core Client Indicator'!$A$3:$AB$351, MATCH(Selection_Hide2!$A232, 'Full set Core Client Indicator'!$A$3:$A$351, 0), MATCH(Selection_Hide2!F$5, 'Full set Core Client Indicator'!$A$3:$AB$3, 0))), \"\")","v":""},{"$f":"IF(F232<>\"\", IF(INDEX('Full set Core Client Indicator'!$A$3:$AB$351, MATCH(Selection_Hide2!$A232, 'Full set Core Client Indicator'!$A$3:$A$351, 0), MATCH(Selection_Hide2!G$5, 'Full set Core Client Indicator'!$A$3:$AB$3, 0))=\"\", \"\",  INDEX('Full set Core Client Indicator'!$A$3:$AB$351, MATCH(Selection_Hide2!$A232, 'Full set Core Client Indicator'!$A$3:$A$351, 0), MATCH(Selection_Hide2!G$5, 'Full set Core Client Indicator'!$A$3:$AB$3, 0))), \"\")","v":""},{"$f":"IF(G232<>\"\", IF(INDEX('Full set Core Client Indicator'!$A$3:$AB$351, MATCH(Selection_Hide2!$A232, 'Full set Core Client Indicator'!$A$3:$A$351, 0), MATCH(Selection_Hide2!H$5, 'Full set Core Client Indicator'!$A$3:$AB$3, 0))=\"\", \"\",  INDEX('Full set Core Client Indicator'!$A$3:$AB$351, MATCH(Selection_Hide2!$A232, 'Full set Core Client Indicator'!$A$3:$A$351, 0), MATCH(Selection_Hide2!H$5, 'Full set Core Client Indicator'!$A$3:$AB$3, 0))), \"\")","v":""},{"$f":"IF(H232<>\"\", IF(INDEX('Full set Core Client Indicator'!$A$3:$AB$351, MATCH(Selection_Hide2!$A232, 'Full set Core Client Indicator'!$A$3:$A$351, 0), MATCH(Selection_Hide2!I$5, 'Full set Core Client Indicator'!$A$3:$AB$3, 0))=\"\", \"\",  INDEX('Full set Core Client Indicator'!$A$3:$AB$351, MATCH(Selection_Hide2!$A232, 'Full set Core Client Indicator'!$A$3:$A$351, 0), MATCH(Selection_Hide2!I$5, 'Full set Core Client Indicator'!$A$3:$AB$3, 0))), \"\")","v":""},{"$f":"IF(I232<>\"\", IF(INDEX('Full set Core Client Indicator'!$A$3:$AB$351, MATCH(Selection_Hide2!$A232, 'Full set Core Client Indicator'!$A$3:$A$351, 0), MATCH(Selection_Hide2!J$5, 'Full set Core Client Indicator'!$A$3:$AB$3, 0))=\"\", \"\",  INDEX('Full set Core Client Indicator'!$A$3:$AB$351, MATCH(Selection_Hide2!$A232, 'Full set Core Client Indicator'!$A$3:$A$351, 0), MATCH(Selection_Hide2!J$5, 'Full set Core Client Indicator'!$A$3:$AB$3, 0))), \"\")","v":""},{"$f":"IF(J232<>\"\", IF(INDEX('Full set Core Client Indicator'!$A$3:$AB$351, MATCH(Selection_Hide2!$A232, 'Full set Core Client Indicator'!$A$3:$A$351, 0), MATCH(Selection_Hide2!K$5, 'Full set Core Client Indicator'!$A$3:$AB$3, 0))=\"\", \"\",  INDEX('Full set Core Client Indicator'!$A$3:$AB$351, MATCH(Selection_Hide2!$A232, 'Full set Core Client Indicator'!$A$3:$A$351, 0), MATCH(Selection_Hide2!K$5, 'Full set Core Client Indicator'!$A$3:$AB$3, 0))), \"\")","v":""},{"$f":"IF(K232<>\"\", IF(INDEX('Full set Core Client Indicator'!$A$3:$AB$351, MATCH(Selection_Hide2!$A232, 'Full set Core Client Indicator'!$A$3:$A$351, 0), MATCH(Selection_Hide2!L$5, 'Full set Core Client Indicator'!$A$3:$AB$3, 0))=\"\", \"\",  INDEX('Full set Core Client Indicator'!$A$3:$AB$351, MATCH(Selection_Hide2!$A232, 'Full set Core Client Indicator'!$A$3:$A$351, 0), MATCH(Selection_Hide2!L$5, 'Full set Core Client Indicator'!$A$3:$AB$3, 0))), \"\")","v":""},{"$f":"IF(L232<>\"\", IF(INDEX('Full set Core Client Indicator'!$A$3:$AB$351, MATCH(Selection_Hide2!$A232, 'Full set Core Client Indicator'!$A$3:$A$351, 0), MATCH(Selection_Hide2!M$5, 'Full set Core Client Indicator'!$A$3:$AB$3, 0))=\"\", \"\",  INDEX('Full set Core Client Indicator'!$A$3:$AB$351, MATCH(Selection_Hide2!$A232, 'Full set Core Client Indicator'!$A$3:$A$351, 0), MATCH(Selection_Hide2!M$5, 'Full set Core Client Indicator'!$A$3:$AB$3, 0))), \"\")","v":""},{"$f":"IF(M232<>\"\", IF(INDEX('Full set Core Client Indicator'!$A$3:$AB$351, MATCH(Selection_Hide2!$A232, 'Full set Core Client Indicator'!$A$3:$A$351, 0), MATCH(Selection_Hide2!N$5, 'Full set Core Client Indicator'!$A$3:$AB$3, 0))=\"\", \"\",  INDEX('Full set Core Client Indicator'!$A$3:$AB$351, MATCH(Selection_Hide2!$A232, 'Full set Core Client Indicator'!$A$3:$A$351, 0), MATCH(Selection_Hide2!N$5, 'Full set Core Client Indicator'!$A$3:$AB$3, 0))), \"\")","v":""},{"$f":"IF(N232<>\"\", IF(INDEX('Full set Core Client Indicator'!$A$3:$AB$351, MATCH(Selection_Hide2!$A232, 'Full set Core Client Indicator'!$A$3:$A$351, 0), MATCH(Selection_Hide2!O$5, 'Full set Core Client Indicator'!$A$3:$AB$3, 0))=\"\", \"\",  INDEX('Full set Core Client Indicator'!$A$3:$AB$351, MATCH(Selection_Hide2!$A232, 'Full set Core Client Indicator'!$A$3:$A$351, 0), MATCH(Selection_Hide2!O$5, 'Full set Core Client Indicator'!$A$3:$AB$3, 0))), \"\")","v":""},{"$f":"IF(O232<>\"\", IF(INDEX('Full set Core Client Indicator'!$A$3:$AB$351, MATCH(Selection_Hide2!$A232, 'Full set Core Client Indicator'!$A$3:$A$351, 0), MATCH(Selection_Hide2!P$5, 'Full set Core Client Indicator'!$A$3:$AB$3, 0))=\"\", \"\",  INDEX('Full set Core Client Indicator'!$A$3:$AB$351, MATCH(Selection_Hide2!$A232, 'Full set Core Client Indicator'!$A$3:$A$351, 0), MATCH(Selection_Hide2!P$5, 'Full set Core Client Indicator'!$A$3:$AB$3, 0))), \"\")","v":""},{"$f":"IF(P232<>\"\", IF(INDEX('Full set Core Client Indicator'!$A$3:$AB$351, MATCH(Selection_Hide2!$A232, 'Full set Core Client Indicator'!$A$3:$A$351, 0), MATCH(Selection_Hide2!Q$5, 'Full set Core Client Indicator'!$A$3:$AB$3, 0))=\"\", \"\",  INDEX('Full set Core Client Indicator'!$A$3:$AB$351, MATCH(Selection_Hide2!$A232, 'Full set Core Client Indicator'!$A$3:$A$351, 0), MATCH(Selection_Hide2!Q$5, 'Full set Core Client Indicator'!$A$3:$AB$3, 0))), \"\")","v":""},{"$f":"IF(Q232<>\"\", IF(INDEX('Full set Core Client Indicator'!$A$3:$AB$351, MATCH(Selection_Hide2!$A232, 'Full set Core Client Indicator'!$A$3:$A$351, 0), MATCH(Selection_Hide2!R$5, 'Full set Core Client Indicator'!$A$3:$AB$3, 0))=\"\", \"\",  INDEX('Full set Core Client Indicator'!$A$3:$AB$351, MATCH(Selection_Hide2!$A232, 'Full set Core Client Indicator'!$A$3:$A$351, 0), MATCH(Selection_Hide2!R$5, 'Full set Core Client Indicator'!$A$3:$AB$3, 0))), \"\")","v":""},{"$f":"IF(R232<>\"\", IF(INDEX('Full set Core Client Indicator'!$A$3:$AB$351, MATCH(Selection_Hide2!$A232, 'Full set Core Client Indicator'!$A$3:$A$351, 0), MATCH(Selection_Hide2!S$5, 'Full set Core Client Indicator'!$A$3:$AB$3, 0))=\"\", \"\",  INDEX('Full set Core Client Indicator'!$A$3:$AB$351, MATCH(Selection_Hide2!$A232, 'Full set Core Client Indicator'!$A$3:$A$351, 0), MATCH(Selection_Hide2!S$5, 'Full set Core Client Indicator'!$A$3:$AB$3, 0))), \"\")","v":""},{"$f":"IF(S232<>\"\", IF(INDEX('Full set Core Client Indicator'!$A$3:$AB$351, MATCH(Selection_Hide2!$A232, 'Full set Core Client Indicator'!$A$3:$A$351, 0), MATCH(Selection_Hide2!T$5, 'Full set Core Client Indicator'!$A$3:$AB$3, 0))=\"\", \"\",  INDEX('Full set Core Client Indicator'!$A$3:$AB$351, MATCH(Selection_Hide2!$A232, 'Full set Core Client Indicator'!$A$3:$A$351, 0), MATCH(Selection_Hide2!T$5, 'Full set Core Client Indicator'!$A$3:$AB$3, 0))), \"\")","v":""},{"$f":"IF(T232<>\"\", IF(INDEX('Full set Core Client Indicator'!$A$3:$AB$351, MATCH(Selection_Hide2!$A232, 'Full set Core Client Indicator'!$A$3:$A$351, 0), MATCH(Selection_Hide2!U$5, 'Full set Core Client Indicator'!$A$3:$AB$3, 0))=\"\", \"\",  INDEX('Full set Core Client Indicator'!$A$3:$AB$351, MATCH(Selection_Hide2!$A232, 'Full set Core Client Indicator'!$A$3:$A$351, 0), MATCH(Selection_Hide2!U$5, 'Full set Core Client Indicator'!$A$3:$AB$3, 0))), \"\")","v":""},{"$f":"IF(U232<>\"\", IF(INDEX('Full set Core Client Indicator'!$A$3:$AB$351, MATCH(Selection_Hide2!$A232, 'Full set Core Client Indicator'!$A$3:$A$351, 0), MATCH(Selection_Hide2!V$5, 'Full set Core Client Indicator'!$A$3:$AB$3, 0))=\"\", \"\",  INDEX('Full set Core Client Indicator'!$A$3:$AB$351, MATCH(Selection_Hide2!$A232, 'Full set Core Client Indicator'!$A$3:$A$351, 0), MATCH(Selection_Hide2!V$5, 'Full set Core Client Indicator'!$A$3:$AB$3, 0))), \"\")","v":""},{"$f":"IF(V232<>\"\", IF(INDEX('Full set Core Client Indicator'!$A$3:$AB$351, MATCH(Selection_Hide2!$A232, 'Full set Core Client Indicator'!$A$3:$A$351, 0), MATCH(Selection_Hide2!W$5, 'Full set Core Client Indicator'!$A$3:$AB$3, 0))=\"\", \"\",  INDEX('Full set Core Client Indicator'!$A$3:$AB$351, MATCH(Selection_Hide2!$A232, 'Full set Core Client Indicator'!$A$3:$A$351, 0), MATCH(Selection_Hide2!W$5, 'Full set Core Client Indicator'!$A$3:$AB$3, 0))), \"\")","v":""},{"$f":"IF(W232<>\"\", IF(INDEX('Full set Core Client Indicator'!$A$3:$AB$351, MATCH(Selection_Hide2!$A232, 'Full set Core Client Indicator'!$A$3:$A$351, 0), MATCH(Selection_Hide2!X$5, 'Full set Core Client Indicator'!$A$3:$AB$3, 0))=\"\", \"\",  INDEX('Full set Core Client Indicator'!$A$3:$AB$351, MATCH(Selection_Hide2!$A232, 'Full set Core Client Indicator'!$A$3:$A$351, 0), MATCH(Selection_Hide2!X$5, 'Full set Core Client Indicator'!$A$3:$AB$3, 0))), \"\")","v":""},{"$f":"IF(X232<>\"\", IF(INDEX('Full set Core Client Indicator'!$A$3:$AB$351, MATCH(Selection_Hide2!$A232, 'Full set Core Client Indicator'!$A$3:$A$351, 0), MATCH(Selection_Hide2!Y$5, 'Full set Core Client Indicator'!$A$3:$AB$3, 0))=\"\", \"\",  INDEX('Full set Core Client Indicator'!$A$3:$AB$351, MATCH(Selection_Hide2!$A232, 'Full set Core Client Indicator'!$A$3:$A$351, 0), MATCH(Selection_Hide2!Y$5, 'Full set Core Client Indicator'!$A$3:$AB$3, 0))), \"\")","v":""},{"$f":"IF(Y232<>\"\", IF(INDEX('Full set Core Client Indicator'!$A$3:$AB$351, MATCH(Selection_Hide2!$A232, 'Full set Core Client Indicator'!$A$3:$A$351, 0), MATCH(Selection_Hide2!Z$5, 'Full set Core Client Indicator'!$A$3:$AB$3, 0))=\"\", \"\",  INDEX('Full set Core Client Indicator'!$A$3:$AB$351, MATCH(Selection_Hide2!$A232, 'Full set Core Client Indicator'!$A$3:$A$351, 0), MATCH(Selection_Hide2!Z$5, 'Full set Core Client Indicator'!$A$3:$AB$3, 0))), \"\")","v":""},{"$f":"IF(Z232<>\"\", IF(INDEX('Full set Core Client Indicator'!$A$3:$AB$351, MATCH(Selection_Hide2!$A232, 'Full set Core Client Indicator'!$A$3:$A$351, 0), MATCH(Selection_Hide2!AA$5, 'Full set Core Client Indicator'!$A$3:$AB$3, 0))=\"\", \"\",  INDEX('Full set Core Client Indicator'!$A$3:$AB$351, MATCH(Selection_Hide2!$A232, 'Full set Core Client Indicator'!$A$3:$A$351, 0), MATCH(Selection_Hide2!AA$5, 'Full set Core Client Indicator'!$A$3:$AB$3, 0))), \"\")","v":""},{"$f":"IF(AA232<>\"\", IF(INDEX('Full set Core Client Indicator'!$A$3:$AB$351, MATCH(Selection_Hide2!$A232, 'Full set Core Client Indicator'!$A$3:$A$351, 0), MATCH(Selection_Hide2!AB$5, 'Full set Core Client Indicator'!$A$3:$AB$3, 0))=\"\", \"\",  INDEX('Full set Core Client Indicator'!$A$3:$AB$351, MATCH(Selection_Hide2!$A232, 'Full set Core Client Indicator'!$A$3:$A$351, 0), MATCH(Selection_Hide2!AB$5, 'Full set Core Client Indicator'!$A$3:$AB$3, 0))), \"\")","v":""}]
[{"$f":"IF(AND(Selection_Hide1!C231<>0, Selection_Hide1!C231<>\"Grand Total\"), Selection_Hide1!C231, \"\")","v":""},{"$f":"IF(A233<>\"\", IF(INDEX('Full set Core Client Indicator'!$A$3:$AB$351, MATCH(Selection_Hide2!$A233, 'Full set Core Client Indicator'!$A$3:$A$351, 0), MATCH(Selection_Hide2!B$5, 'Full set Core Client Indicator'!$A$3:$AB$3, 0))=\"\", \"\",  INDEX('Full set Core Client Indicator'!$A$3:$AB$351, MATCH(Selection_Hide2!$A233, 'Full set Core Client Indicator'!$A$3:$A$351, 0), MATCH(Selection_Hide2!B$5, 'Full set Core Client Indicator'!$A$3:$AB$3, 0))), \"\")","v":""},{"$f":"IF(B233<>\"\", IF(INDEX('Full set Core Client Indicator'!$A$3:$AB$351, MATCH(Selection_Hide2!$A233, 'Full set Core Client Indicator'!$A$3:$A$351, 0), MATCH(Selection_Hide2!C$5, 'Full set Core Client Indicator'!$A$3:$AB$3, 0))=\"\", \"\",  INDEX('Full set Core Client Indicator'!$A$3:$AB$351, MATCH(Selection_Hide2!$A233, 'Full set Core Client Indicator'!$A$3:$A$351, 0), MATCH(Selection_Hide2!C$5, 'Full set Core Client Indicator'!$A$3:$AB$3, 0))), \"\")","v":""},{"$f":"IF(C233<>\"\", IF(INDEX('Full set Core Client Indicator'!$A$3:$AB$351, MATCH(Selection_Hide2!$A233, 'Full set Core Client Indicator'!$A$3:$A$351, 0), MATCH(Selection_Hide2!D$5, 'Full set Core Client Indicator'!$A$3:$AB$3, 0))=\"\", \"\",  INDEX('Full set Core Client Indicator'!$A$3:$AB$351, MATCH(Selection_Hide2!$A233, 'Full set Core Client Indicator'!$A$3:$A$351, 0), MATCH(Selection_Hide2!D$5, 'Full set Core Client Indicator'!$A$3:$AB$3, 0))), \"\")","v":""},{"$f":"IF(D233<>\"\", IF(INDEX('Full set Core Client Indicator'!$A$3:$AB$351, MATCH(Selection_Hide2!$A233, 'Full set Core Client Indicator'!$A$3:$A$351, 0), MATCH(Selection_Hide2!E$5, 'Full set Core Client Indicator'!$A$3:$AB$3, 0))=\"\", \"\",  INDEX('Full set Core Client Indicator'!$A$3:$AB$351, MATCH(Selection_Hide2!$A233, 'Full set Core Client Indicator'!$A$3:$A$351, 0), MATCH(Selection_Hide2!E$5, 'Full set Core Client Indicator'!$A$3:$AB$3, 0))), \"\")","v":""},{"$f":"IF(E233<>\"\", IF(INDEX('Full set Core Client Indicator'!$A$3:$AB$351, MATCH(Selection_Hide2!$A233, 'Full set Core Client Indicator'!$A$3:$A$351, 0), MATCH(Selection_Hide2!F$5, 'Full set Core Client Indicator'!$A$3:$AB$3, 0))=\"\", \"\",  INDEX('Full set Core Client Indicator'!$A$3:$AB$351, MATCH(Selection_Hide2!$A233, 'Full set Core Client Indicator'!$A$3:$A$351, 0), MATCH(Selection_Hide2!F$5, 'Full set Core Client Indicator'!$A$3:$AB$3, 0))), \"\")","v":""},{"$f":"IF(F233<>\"\", IF(INDEX('Full set Core Client Indicator'!$A$3:$AB$351, MATCH(Selection_Hide2!$A233, 'Full set Core Client Indicator'!$A$3:$A$351, 0), MATCH(Selection_Hide2!G$5, 'Full set Core Client Indicator'!$A$3:$AB$3, 0))=\"\", \"\",  INDEX('Full set Core Client Indicator'!$A$3:$AB$351, MATCH(Selection_Hide2!$A233, 'Full set Core Client Indicator'!$A$3:$A$351, 0), MATCH(Selection_Hide2!G$5, 'Full set Core Client Indicator'!$A$3:$AB$3, 0))), \"\")","v":""},{"$f":"IF(G233<>\"\", IF(INDEX('Full set Core Client Indicator'!$A$3:$AB$351, MATCH(Selection_Hide2!$A233, 'Full set Core Client Indicator'!$A$3:$A$351, 0), MATCH(Selection_Hide2!H$5, 'Full set Core Client Indicator'!$A$3:$AB$3, 0))=\"\", \"\",  INDEX('Full set Core Client Indicator'!$A$3:$AB$351, MATCH(Selection_Hide2!$A233, 'Full set Core Client Indicator'!$A$3:$A$351, 0), MATCH(Selection_Hide2!H$5, 'Full set Core Client Indicator'!$A$3:$AB$3, 0))), \"\")","v":""},{"$f":"IF(H233<>\"\", IF(INDEX('Full set Core Client Indicator'!$A$3:$AB$351, MATCH(Selection_Hide2!$A233, 'Full set Core Client Indicator'!$A$3:$A$351, 0), MATCH(Selection_Hide2!I$5, 'Full set Core Client Indicator'!$A$3:$AB$3, 0))=\"\", \"\",  INDEX('Full set Core Client Indicator'!$A$3:$AB$351, MATCH(Selection_Hide2!$A233, 'Full set Core Client Indicator'!$A$3:$A$351, 0), MATCH(Selection_Hide2!I$5, 'Full set Core Client Indicator'!$A$3:$AB$3, 0))), \"\")","v":""},{"$f":"IF(I233<>\"\", IF(INDEX('Full set Core Client Indicator'!$A$3:$AB$351, MATCH(Selection_Hide2!$A233, 'Full set Core Client Indicator'!$A$3:$A$351, 0), MATCH(Selection_Hide2!J$5, 'Full set Core Client Indicator'!$A$3:$AB$3, 0))=\"\", \"\",  INDEX('Full set Core Client Indicator'!$A$3:$AB$351, MATCH(Selection_Hide2!$A233, 'Full set Core Client Indicator'!$A$3:$A$351, 0), MATCH(Selection_Hide2!J$5, 'Full set Core Client Indicator'!$A$3:$AB$3, 0))), \"\")","v":""},{"$f":"IF(J233<>\"\", IF(INDEX('Full set Core Client Indicator'!$A$3:$AB$351, MATCH(Selection_Hide2!$A233, 'Full set Core Client Indicator'!$A$3:$A$351, 0), MATCH(Selection_Hide2!K$5, 'Full set Core Client Indicator'!$A$3:$AB$3, 0))=\"\", \"\",  INDEX('Full set Core Client Indicator'!$A$3:$AB$351, MATCH(Selection_Hide2!$A233, 'Full set Core Client Indicator'!$A$3:$A$351, 0), MATCH(Selection_Hide2!K$5, 'Full set Core Client Indicator'!$A$3:$AB$3, 0))), \"\")","v":""},{"$f":"IF(K233<>\"\", IF(INDEX('Full set Core Client Indicator'!$A$3:$AB$351, MATCH(Selection_Hide2!$A233, 'Full set Core Client Indicator'!$A$3:$A$351, 0), MATCH(Selection_Hide2!L$5, 'Full set Core Client Indicator'!$A$3:$AB$3, 0))=\"\", \"\",  INDEX('Full set Core Client Indicator'!$A$3:$AB$351, MATCH(Selection_Hide2!$A233, 'Full set Core Client Indicator'!$A$3:$A$351, 0), MATCH(Selection_Hide2!L$5, 'Full set Core Client Indicator'!$A$3:$AB$3, 0))), \"\")","v":""},{"$f":"IF(L233<>\"\", IF(INDEX('Full set Core Client Indicator'!$A$3:$AB$351, MATCH(Selection_Hide2!$A233, 'Full set Core Client Indicator'!$A$3:$A$351, 0), MATCH(Selection_Hide2!M$5, 'Full set Core Client Indicator'!$A$3:$AB$3, 0))=\"\", \"\",  INDEX('Full set Core Client Indicator'!$A$3:$AB$351, MATCH(Selection_Hide2!$A233, 'Full set Core Client Indicator'!$A$3:$A$351, 0), MATCH(Selection_Hide2!M$5, 'Full set Core Client Indicator'!$A$3:$AB$3, 0))), \"\")","v":""},{"$f":"IF(M233<>\"\", IF(INDEX('Full set Core Client Indicator'!$A$3:$AB$351, MATCH(Selection_Hide2!$A233, 'Full set Core Client Indicator'!$A$3:$A$351, 0), MATCH(Selection_Hide2!N$5, 'Full set Core Client Indicator'!$A$3:$AB$3, 0))=\"\", \"\",  INDEX('Full set Core Client Indicator'!$A$3:$AB$351, MATCH(Selection_Hide2!$A233, 'Full set Core Client Indicator'!$A$3:$A$351, 0), MATCH(Selection_Hide2!N$5, 'Full set Core Client Indicator'!$A$3:$AB$3, 0))), \"\")","v":""},{"$f":"IF(N233<>\"\", IF(INDEX('Full set Core Client Indicator'!$A$3:$AB$351, MATCH(Selection_Hide2!$A233, 'Full set Core Client Indicator'!$A$3:$A$351, 0), MATCH(Selection_Hide2!O$5, 'Full set Core Client Indicator'!$A$3:$AB$3, 0))=\"\", \"\",  INDEX('Full set Core Client Indicator'!$A$3:$AB$351, MATCH(Selection_Hide2!$A233, 'Full set Core Client Indicator'!$A$3:$A$351, 0), MATCH(Selection_Hide2!O$5, 'Full set Core Client Indicator'!$A$3:$AB$3, 0))), \"\")","v":""},{"$f":"IF(O233<>\"\", IF(INDEX('Full set Core Client Indicator'!$A$3:$AB$351, MATCH(Selection_Hide2!$A233, 'Full set Core Client Indicator'!$A$3:$A$351, 0), MATCH(Selection_Hide2!P$5, 'Full set Core Client Indicator'!$A$3:$AB$3, 0))=\"\", \"\",  INDEX('Full set Core Client Indicator'!$A$3:$AB$351, MATCH(Selection_Hide2!$A233, 'Full set Core Client Indicator'!$A$3:$A$351, 0), MATCH(Selection_Hide2!P$5, 'Full set Core Client Indicator'!$A$3:$AB$3, 0))), \"\")","v":""},{"$f":"IF(P233<>\"\", IF(INDEX('Full set Core Client Indicator'!$A$3:$AB$351, MATCH(Selection_Hide2!$A233, 'Full set Core Client Indicator'!$A$3:$A$351, 0), MATCH(Selection_Hide2!Q$5, 'Full set Core Client Indicator'!$A$3:$AB$3, 0))=\"\", \"\",  INDEX('Full set Core Client Indicator'!$A$3:$AB$351, MATCH(Selection_Hide2!$A233, 'Full set Core Client Indicator'!$A$3:$A$351, 0), MATCH(Selection_Hide2!Q$5, 'Full set Core Client Indicator'!$A$3:$AB$3, 0))), \"\")","v":""},{"$f":"IF(Q233<>\"\", IF(INDEX('Full set Core Client Indicator'!$A$3:$AB$351, MATCH(Selection_Hide2!$A233, 'Full set Core Client Indicator'!$A$3:$A$351, 0), MATCH(Selection_Hide2!R$5, 'Full set Core Client Indicator'!$A$3:$AB$3, 0))=\"\", \"\",  INDEX('Full set Core Client Indicator'!$A$3:$AB$351, MATCH(Selection_Hide2!$A233, 'Full set Core Client Indicator'!$A$3:$A$351, 0), MATCH(Selection_Hide2!R$5, 'Full set Core Client Indicator'!$A$3:$AB$3, 0))), \"\")","v":""},{"$f":"IF(R233<>\"\", IF(INDEX('Full set Core Client Indicator'!$A$3:$AB$351, MATCH(Selection_Hide2!$A233, 'Full set Core Client Indicator'!$A$3:$A$351, 0), MATCH(Selection_Hide2!S$5, 'Full set Core Client Indicator'!$A$3:$AB$3, 0))=\"\", \"\",  INDEX('Full set Core Client Indicator'!$A$3:$AB$351, MATCH(Selection_Hide2!$A233, 'Full set Core Client Indicator'!$A$3:$A$351, 0), MATCH(Selection_Hide2!S$5, 'Full set Core Client Indicator'!$A$3:$AB$3, 0))), \"\")","v":""},{"$f":"IF(S233<>\"\", IF(INDEX('Full set Core Client Indicator'!$A$3:$AB$351, MATCH(Selection_Hide2!$A233, 'Full set Core Client Indicator'!$A$3:$A$351, 0), MATCH(Selection_Hide2!T$5, 'Full set Core Client Indicator'!$A$3:$AB$3, 0))=\"\", \"\",  INDEX('Full set Core Client Indicator'!$A$3:$AB$351, MATCH(Selection_Hide2!$A233, 'Full set Core Client Indicator'!$A$3:$A$351, 0), MATCH(Selection_Hide2!T$5, 'Full set Core Client Indicator'!$A$3:$AB$3, 0))), \"\")","v":""},{"$f":"IF(T233<>\"\", IF(INDEX('Full set Core Client Indicator'!$A$3:$AB$351, MATCH(Selection_Hide2!$A233, 'Full set Core Client Indicator'!$A$3:$A$351, 0), MATCH(Selection_Hide2!U$5, 'Full set Core Client Indicator'!$A$3:$AB$3, 0))=\"\", \"\",  INDEX('Full set Core Client Indicator'!$A$3:$AB$351, MATCH(Selection_Hide2!$A233, 'Full set Core Client Indicator'!$A$3:$A$351, 0), MATCH(Selection_Hide2!U$5, 'Full set Core Client Indicator'!$A$3:$AB$3, 0))), \"\")","v":""},{"$f":"IF(U233<>\"\", IF(INDEX('Full set Core Client Indicator'!$A$3:$AB$351, MATCH(Selection_Hide2!$A233, 'Full set Core Client Indicator'!$A$3:$A$351, 0), MATCH(Selection_Hide2!V$5, 'Full set Core Client Indicator'!$A$3:$AB$3, 0))=\"\", \"\",  INDEX('Full set Core Client Indicator'!$A$3:$AB$351, MATCH(Selection_Hide2!$A233, 'Full set Core Client Indicator'!$A$3:$A$351, 0), MATCH(Selection_Hide2!V$5, 'Full set Core Client Indicator'!$A$3:$AB$3, 0))), \"\")","v":""},{"$f":"IF(V233<>\"\", IF(INDEX('Full set Core Client Indicator'!$A$3:$AB$351, MATCH(Selection_Hide2!$A233, 'Full set Core Client Indicator'!$A$3:$A$351, 0), MATCH(Selection_Hide2!W$5, 'Full set Core Client Indicator'!$A$3:$AB$3, 0))=\"\", \"\",  INDEX('Full set Core Client Indicator'!$A$3:$AB$351, MATCH(Selection_Hide2!$A233, 'Full set Core Client Indicator'!$A$3:$A$351, 0), MATCH(Selection_Hide2!W$5, 'Full set Core Client Indicator'!$A$3:$AB$3, 0))), \"\")","v":""},{"$f":"IF(W233<>\"\", IF(INDEX('Full set Core Client Indicator'!$A$3:$AB$351, MATCH(Selection_Hide2!$A233, 'Full set Core Client Indicator'!$A$3:$A$351, 0), MATCH(Selection_Hide2!X$5, 'Full set Core Client Indicator'!$A$3:$AB$3, 0))=\"\", \"\",  INDEX('Full set Core Client Indicator'!$A$3:$AB$351, MATCH(Selection_Hide2!$A233, 'Full set Core Client Indicator'!$A$3:$A$351, 0), MATCH(Selection_Hide2!X$5, 'Full set Core Client Indicator'!$A$3:$AB$3, 0))), \"\")","v":""},{"$f":"IF(X233<>\"\", IF(INDEX('Full set Core Client Indicator'!$A$3:$AB$351, MATCH(Selection_Hide2!$A233, 'Full set Core Client Indicator'!$A$3:$A$351, 0), MATCH(Selection_Hide2!Y$5, 'Full set Core Client Indicator'!$A$3:$AB$3, 0))=\"\", \"\",  INDEX('Full set Core Client Indicator'!$A$3:$AB$351, MATCH(Selection_Hide2!$A233, 'Full set Core Client Indicator'!$A$3:$A$351, 0), MATCH(Selection_Hide2!Y$5, 'Full set Core Client Indicator'!$A$3:$AB$3, 0))), \"\")","v":""},{"$f":"IF(Y233<>\"\", IF(INDEX('Full set Core Client Indicator'!$A$3:$AB$351, MATCH(Selection_Hide2!$A233, 'Full set Core Client Indicator'!$A$3:$A$351, 0), MATCH(Selection_Hide2!Z$5, 'Full set Core Client Indicator'!$A$3:$AB$3, 0))=\"\", \"\",  INDEX('Full set Core Client Indicator'!$A$3:$AB$351, MATCH(Selection_Hide2!$A233, 'Full set Core Client Indicator'!$A$3:$A$351, 0), MATCH(Selection_Hide2!Z$5, 'Full set Core Client Indicator'!$A$3:$AB$3, 0))), \"\")","v":""},{"$f":"IF(Z233<>\"\", IF(INDEX('Full set Core Client Indicator'!$A$3:$AB$351, MATCH(Selection_Hide2!$A233, 'Full set Core Client Indicator'!$A$3:$A$351, 0), MATCH(Selection_Hide2!AA$5, 'Full set Core Client Indicator'!$A$3:$AB$3, 0))=\"\", \"\",  INDEX('Full set Core Client Indicator'!$A$3:$AB$351, MATCH(Selection_Hide2!$A233, 'Full set Core Client Indicator'!$A$3:$A$351, 0), MATCH(Selection_Hide2!AA$5, 'Full set Core Client Indicator'!$A$3:$AB$3, 0))), \"\")","v":""},{"$f":"IF(AA233<>\"\", IF(INDEX('Full set Core Client Indicator'!$A$3:$AB$351, MATCH(Selection_Hide2!$A233, 'Full set Core Client Indicator'!$A$3:$A$351, 0), MATCH(Selection_Hide2!AB$5, 'Full set Core Client Indicator'!$A$3:$AB$3, 0))=\"\", \"\",  INDEX('Full set Core Client Indicator'!$A$3:$AB$351, MATCH(Selection_Hide2!$A233, 'Full set Core Client Indicator'!$A$3:$A$351, 0), MATCH(Selection_Hide2!AB$5, 'Full set Core Client Indicator'!$A$3:$AB$3, 0))), \"\")","v":""}]
[{"$f":"IF(AND(Selection_Hide1!C232<>0, Selection_Hide1!C232<>\"Grand Total\"), Selection_Hide1!C232, \"\")","v":""},{"$f":"IF(A234<>\"\", IF(INDEX('Full set Core Client Indicator'!$A$3:$AB$351, MATCH(Selection_Hide2!$A234, 'Full set Core Client Indicator'!$A$3:$A$351, 0), MATCH(Selection_Hide2!B$5, 'Full set Core Client Indicator'!$A$3:$AB$3, 0))=\"\", \"\",  INDEX('Full set Core Client Indicator'!$A$3:$AB$351, MATCH(Selection_Hide2!$A234, 'Full set Core Client Indicator'!$A$3:$A$351, 0), MATCH(Selection_Hide2!B$5, 'Full set Core Client Indicator'!$A$3:$AB$3, 0))), \"\")","v":""},{"$f":"IF(B234<>\"\", IF(INDEX('Full set Core Client Indicator'!$A$3:$AB$351, MATCH(Selection_Hide2!$A234, 'Full set Core Client Indicator'!$A$3:$A$351, 0), MATCH(Selection_Hide2!C$5, 'Full set Core Client Indicator'!$A$3:$AB$3, 0))=\"\", \"\",  INDEX('Full set Core Client Indicator'!$A$3:$AB$351, MATCH(Selection_Hide2!$A234, 'Full set Core Client Indicator'!$A$3:$A$351, 0), MATCH(Selection_Hide2!C$5, 'Full set Core Client Indicator'!$A$3:$AB$3, 0))), \"\")","v":""},{"$f":"IF(C234<>\"\", IF(INDEX('Full set Core Client Indicator'!$A$3:$AB$351, MATCH(Selection_Hide2!$A234, 'Full set Core Client Indicator'!$A$3:$A$351, 0), MATCH(Selection_Hide2!D$5, 'Full set Core Client Indicator'!$A$3:$AB$3, 0))=\"\", \"\",  INDEX('Full set Core Client Indicator'!$A$3:$AB$351, MATCH(Selection_Hide2!$A234, 'Full set Core Client Indicator'!$A$3:$A$351, 0), MATCH(Selection_Hide2!D$5, 'Full set Core Client Indicator'!$A$3:$AB$3, 0))), \"\")","v":""},{"$f":"IF(D234<>\"\", IF(INDEX('Full set Core Client Indicator'!$A$3:$AB$351, MATCH(Selection_Hide2!$A234, 'Full set Core Client Indicator'!$A$3:$A$351, 0), MATCH(Selection_Hide2!E$5, 'Full set Core Client Indicator'!$A$3:$AB$3, 0))=\"\", \"\",  INDEX('Full set Core Client Indicator'!$A$3:$AB$351, MATCH(Selection_Hide2!$A234, 'Full set Core Client Indicator'!$A$3:$A$351, 0), MATCH(Selection_Hide2!E$5, 'Full set Core Client Indicator'!$A$3:$AB$3, 0))), \"\")","v":""},{"$f":"IF(E234<>\"\", IF(INDEX('Full set Core Client Indicator'!$A$3:$AB$351, MATCH(Selection_Hide2!$A234, 'Full set Core Client Indicator'!$A$3:$A$351, 0), MATCH(Selection_Hide2!F$5, 'Full set Core Client Indicator'!$A$3:$AB$3, 0))=\"\", \"\",  INDEX('Full set Core Client Indicator'!$A$3:$AB$351, MATCH(Selection_Hide2!$A234, 'Full set Core Client Indicator'!$A$3:$A$351, 0), MATCH(Selection_Hide2!F$5, 'Full set Core Client Indicator'!$A$3:$AB$3, 0))), \"\")","v":""},{"$f":"IF(F234<>\"\", IF(INDEX('Full set Core Client Indicator'!$A$3:$AB$351, MATCH(Selection_Hide2!$A234, 'Full set Core Client Indicator'!$A$3:$A$351, 0), MATCH(Selection_Hide2!G$5, 'Full set Core Client Indicator'!$A$3:$AB$3, 0))=\"\", \"\",  INDEX('Full set Core Client Indicator'!$A$3:$AB$351, MATCH(Selection_Hide2!$A234, 'Full set Core Client Indicator'!$A$3:$A$351, 0), MATCH(Selection_Hide2!G$5, 'Full set Core Client Indicator'!$A$3:$AB$3, 0))), \"\")","v":""},{"$f":"IF(G234<>\"\", IF(INDEX('Full set Core Client Indicator'!$A$3:$AB$351, MATCH(Selection_Hide2!$A234, 'Full set Core Client Indicator'!$A$3:$A$351, 0), MATCH(Selection_Hide2!H$5, 'Full set Core Client Indicator'!$A$3:$AB$3, 0))=\"\", \"\",  INDEX('Full set Core Client Indicator'!$A$3:$AB$351, MATCH(Selection_Hide2!$A234, 'Full set Core Client Indicator'!$A$3:$A$351, 0), MATCH(Selection_Hide2!H$5, 'Full set Core Client Indicator'!$A$3:$AB$3, 0))), \"\")","v":""},{"$f":"IF(H234<>\"\", IF(INDEX('Full set Core Client Indicator'!$A$3:$AB$351, MATCH(Selection_Hide2!$A234, 'Full set Core Client Indicator'!$A$3:$A$351, 0), MATCH(Selection_Hide2!I$5, 'Full set Core Client Indicator'!$A$3:$AB$3, 0))=\"\", \"\",  INDEX('Full set Core Client Indicator'!$A$3:$AB$351, MATCH(Selection_Hide2!$A234, 'Full set Core Client Indicator'!$A$3:$A$351, 0), MATCH(Selection_Hide2!I$5, 'Full set Core Client Indicator'!$A$3:$AB$3, 0))), \"\")","v":""},{"$f":"IF(I234<>\"\", IF(INDEX('Full set Core Client Indicator'!$A$3:$AB$351, MATCH(Selection_Hide2!$A234, 'Full set Core Client Indicator'!$A$3:$A$351, 0), MATCH(Selection_Hide2!J$5, 'Full set Core Client Indicator'!$A$3:$AB$3, 0))=\"\", \"\",  INDEX('Full set Core Client Indicator'!$A$3:$AB$351, MATCH(Selection_Hide2!$A234, 'Full set Core Client Indicator'!$A$3:$A$351, 0), MATCH(Selection_Hide2!J$5, 'Full set Core Client Indicator'!$A$3:$AB$3, 0))), \"\")","v":""},{"$f":"IF(J234<>\"\", IF(INDEX('Full set Core Client Indicator'!$A$3:$AB$351, MATCH(Selection_Hide2!$A234, 'Full set Core Client Indicator'!$A$3:$A$351, 0), MATCH(Selection_Hide2!K$5, 'Full set Core Client Indicator'!$A$3:$AB$3, 0))=\"\", \"\",  INDEX('Full set Core Client Indicator'!$A$3:$AB$351, MATCH(Selection_Hide2!$A234, 'Full set Core Client Indicator'!$A$3:$A$351, 0), MATCH(Selection_Hide2!K$5, 'Full set Core Client Indicator'!$A$3:$AB$3, 0))), \"\")","v":""},{"$f":"IF(K234<>\"\", IF(INDEX('Full set Core Client Indicator'!$A$3:$AB$351, MATCH(Selection_Hide2!$A234, 'Full set Core Client Indicator'!$A$3:$A$351, 0), MATCH(Selection_Hide2!L$5, 'Full set Core Client Indicator'!$A$3:$AB$3, 0))=\"\", \"\",  INDEX('Full set Core Client Indicator'!$A$3:$AB$351, MATCH(Selection_Hide2!$A234, 'Full set Core Client Indicator'!$A$3:$A$351, 0), MATCH(Selection_Hide2!L$5, 'Full set Core Client Indicator'!$A$3:$AB$3, 0))), \"\")","v":""},{"$f":"IF(L234<>\"\", IF(INDEX('Full set Core Client Indicator'!$A$3:$AB$351, MATCH(Selection_Hide2!$A234, 'Full set Core Client Indicator'!$A$3:$A$351, 0), MATCH(Selection_Hide2!M$5, 'Full set Core Client Indicator'!$A$3:$AB$3, 0))=\"\", \"\",  INDEX('Full set Core Client Indicator'!$A$3:$AB$351, MATCH(Selection_Hide2!$A234, 'Full set Core Client Indicator'!$A$3:$A$351, 0), MATCH(Selection_Hide2!M$5, 'Full set Core Client Indicator'!$A$3:$AB$3, 0))), \"\")","v":""},{"$f":"IF(M234<>\"\", IF(INDEX('Full set Core Client Indicator'!$A$3:$AB$351, MATCH(Selection_Hide2!$A234, 'Full set Core Client Indicator'!$A$3:$A$351, 0), MATCH(Selection_Hide2!N$5, 'Full set Core Client Indicator'!$A$3:$AB$3, 0))=\"\", \"\",  INDEX('Full set Core Client Indicator'!$A$3:$AB$351, MATCH(Selection_Hide2!$A234, 'Full set Core Client Indicator'!$A$3:$A$351, 0), MATCH(Selection_Hide2!N$5, 'Full set Core Client Indicator'!$A$3:$AB$3, 0))), \"\")","v":""},{"$f":"IF(N234<>\"\", IF(INDEX('Full set Core Client Indicator'!$A$3:$AB$351, MATCH(Selection_Hide2!$A234, 'Full set Core Client Indicator'!$A$3:$A$351, 0), MATCH(Selection_Hide2!O$5, 'Full set Core Client Indicator'!$A$3:$AB$3, 0))=\"\", \"\",  INDEX('Full set Core Client Indicator'!$A$3:$AB$351, MATCH(Selection_Hide2!$A234, 'Full set Core Client Indicator'!$A$3:$A$351, 0), MATCH(Selection_Hide2!O$5, 'Full set Core Client Indicator'!$A$3:$AB$3, 0))), \"\")","v":""},{"$f":"IF(O234<>\"\", IF(INDEX('Full set Core Client Indicator'!$A$3:$AB$351, MATCH(Selection_Hide2!$A234, 'Full set Core Client Indicator'!$A$3:$A$351, 0), MATCH(Selection_Hide2!P$5, 'Full set Core Client Indicator'!$A$3:$AB$3, 0))=\"\", \"\",  INDEX('Full set Core Client Indicator'!$A$3:$AB$351, MATCH(Selection_Hide2!$A234, 'Full set Core Client Indicator'!$A$3:$A$351, 0), MATCH(Selection_Hide2!P$5, 'Full set Core Client Indicator'!$A$3:$AB$3, 0))), \"\")","v":""},{"$f":"IF(P234<>\"\", IF(INDEX('Full set Core Client Indicator'!$A$3:$AB$351, MATCH(Selection_Hide2!$A234, 'Full set Core Client Indicator'!$A$3:$A$351, 0), MATCH(Selection_Hide2!Q$5, 'Full set Core Client Indicator'!$A$3:$AB$3, 0))=\"\", \"\",  INDEX('Full set Core Client Indicator'!$A$3:$AB$351, MATCH(Selection_Hide2!$A234, 'Full set Core Client Indicator'!$A$3:$A$351, 0), MATCH(Selection_Hide2!Q$5, 'Full set Core Client Indicator'!$A$3:$AB$3, 0))), \"\")","v":""},{"$f":"IF(Q234<>\"\", IF(INDEX('Full set Core Client Indicator'!$A$3:$AB$351, MATCH(Selection_Hide2!$A234, 'Full set Core Client Indicator'!$A$3:$A$351, 0), MATCH(Selection_Hide2!R$5, 'Full set Core Client Indicator'!$A$3:$AB$3, 0))=\"\", \"\",  INDEX('Full set Core Client Indicator'!$A$3:$AB$351, MATCH(Selection_Hide2!$A234, 'Full set Core Client Indicator'!$A$3:$A$351, 0), MATCH(Selection_Hide2!R$5, 'Full set Core Client Indicator'!$A$3:$AB$3, 0))), \"\")","v":""},{"$f":"IF(R234<>\"\", IF(INDEX('Full set Core Client Indicator'!$A$3:$AB$351, MATCH(Selection_Hide2!$A234, 'Full set Core Client Indicator'!$A$3:$A$351, 0), MATCH(Selection_Hide2!S$5, 'Full set Core Client Indicator'!$A$3:$AB$3, 0))=\"\", \"\",  INDEX('Full set Core Client Indicator'!$A$3:$AB$351, MATCH(Selection_Hide2!$A234, 'Full set Core Client Indicator'!$A$3:$A$351, 0), MATCH(Selection_Hide2!S$5, 'Full set Core Client Indicator'!$A$3:$AB$3, 0))), \"\")","v":""},{"$f":"IF(S234<>\"\", IF(INDEX('Full set Core Client Indicator'!$A$3:$AB$351, MATCH(Selection_Hide2!$A234, 'Full set Core Client Indicator'!$A$3:$A$351, 0), MATCH(Selection_Hide2!T$5, 'Full set Core Client Indicator'!$A$3:$AB$3, 0))=\"\", \"\",  INDEX('Full set Core Client Indicator'!$A$3:$AB$351, MATCH(Selection_Hide2!$A234, 'Full set Core Client Indicator'!$A$3:$A$351, 0), MATCH(Selection_Hide2!T$5, 'Full set Core Client Indicator'!$A$3:$AB$3, 0))), \"\")","v":""},{"$f":"IF(T234<>\"\", IF(INDEX('Full set Core Client Indicator'!$A$3:$AB$351, MATCH(Selection_Hide2!$A234, 'Full set Core Client Indicator'!$A$3:$A$351, 0), MATCH(Selection_Hide2!U$5, 'Full set Core Client Indicator'!$A$3:$AB$3, 0))=\"\", \"\",  INDEX('Full set Core Client Indicator'!$A$3:$AB$351, MATCH(Selection_Hide2!$A234, 'Full set Core Client Indicator'!$A$3:$A$351, 0), MATCH(Selection_Hide2!U$5, 'Full set Core Client Indicator'!$A$3:$AB$3, 0))), \"\")","v":""},{"$f":"IF(U234<>\"\", IF(INDEX('Full set Core Client Indicator'!$A$3:$AB$351, MATCH(Selection_Hide2!$A234, 'Full set Core Client Indicator'!$A$3:$A$351, 0), MATCH(Selection_Hide2!V$5, 'Full set Core Client Indicator'!$A$3:$AB$3, 0))=\"\", \"\",  INDEX('Full set Core Client Indicator'!$A$3:$AB$351, MATCH(Selection_Hide2!$A234, 'Full set Core Client Indicator'!$A$3:$A$351, 0), MATCH(Selection_Hide2!V$5, 'Full set Core Client Indicator'!$A$3:$AB$3, 0))), \"\")","v":""},{"$f":"IF(V234<>\"\", IF(INDEX('Full set Core Client Indicator'!$A$3:$AB$351, MATCH(Selection_Hide2!$A234, 'Full set Core Client Indicator'!$A$3:$A$351, 0), MATCH(Selection_Hide2!W$5, 'Full set Core Client Indicator'!$A$3:$AB$3, 0))=\"\", \"\",  INDEX('Full set Core Client Indicator'!$A$3:$AB$351, MATCH(Selection_Hide2!$A234, 'Full set Core Client Indicator'!$A$3:$A$351, 0), MATCH(Selection_Hide2!W$5, 'Full set Core Client Indicator'!$A$3:$AB$3, 0))), \"\")","v":""},{"$f":"IF(W234<>\"\", IF(INDEX('Full set Core Client Indicator'!$A$3:$AB$351, MATCH(Selection_Hide2!$A234, 'Full set Core Client Indicator'!$A$3:$A$351, 0), MATCH(Selection_Hide2!X$5, 'Full set Core Client Indicator'!$A$3:$AB$3, 0))=\"\", \"\",  INDEX('Full set Core Client Indicator'!$A$3:$AB$351, MATCH(Selection_Hide2!$A234, 'Full set Core Client Indicator'!$A$3:$A$351, 0), MATCH(Selection_Hide2!X$5, 'Full set Core Client Indicator'!$A$3:$AB$3, 0))), \"\")","v":""},{"$f":"IF(X234<>\"\", IF(INDEX('Full set Core Client Indicator'!$A$3:$AB$351, MATCH(Selection_Hide2!$A234, 'Full set Core Client Indicator'!$A$3:$A$351, 0), MATCH(Selection_Hide2!Y$5, 'Full set Core Client Indicator'!$A$3:$AB$3, 0))=\"\", \"\",  INDEX('Full set Core Client Indicator'!$A$3:$AB$351, MATCH(Selection_Hide2!$A234, 'Full set Core Client Indicator'!$A$3:$A$351, 0), MATCH(Selection_Hide2!Y$5, 'Full set Core Client Indicator'!$A$3:$AB$3, 0))), \"\")","v":""},{"$f":"IF(Y234<>\"\", IF(INDEX('Full set Core Client Indicator'!$A$3:$AB$351, MATCH(Selection_Hide2!$A234, 'Full set Core Client Indicator'!$A$3:$A$351, 0), MATCH(Selection_Hide2!Z$5, 'Full set Core Client Indicator'!$A$3:$AB$3, 0))=\"\", \"\",  INDEX('Full set Core Client Indicator'!$A$3:$AB$351, MATCH(Selection_Hide2!$A234, 'Full set Core Client Indicator'!$A$3:$A$351, 0), MATCH(Selection_Hide2!Z$5, 'Full set Core Client Indicator'!$A$3:$AB$3, 0))), \"\")","v":""},{"$f":"IF(Z234<>\"\", IF(INDEX('Full set Core Client Indicator'!$A$3:$AB$351, MATCH(Selection_Hide2!$A234, 'Full set Core Client Indicator'!$A$3:$A$351, 0), MATCH(Selection_Hide2!AA$5, 'Full set Core Client Indicator'!$A$3:$AB$3, 0))=\"\", \"\",  INDEX('Full set Core Client Indicator'!$A$3:$AB$351, MATCH(Selection_Hide2!$A234, 'Full set Core Client Indicator'!$A$3:$A$351, 0), MATCH(Selection_Hide2!AA$5, 'Full set Core Client Indicator'!$A$3:$AB$3, 0))), \"\")","v":""},{"$f":"IF(AA234<>\"\", IF(INDEX('Full set Core Client Indicator'!$A$3:$AB$351, MATCH(Selection_Hide2!$A234, 'Full set Core Client Indicator'!$A$3:$A$351, 0), MATCH(Selection_Hide2!AB$5, 'Full set Core Client Indicator'!$A$3:$AB$3, 0))=\"\", \"\",  INDEX('Full set Core Client Indicator'!$A$3:$AB$351, MATCH(Selection_Hide2!$A234, 'Full set Core Client Indicator'!$A$3:$A$351, 0), MATCH(Selection_Hide2!AB$5, 'Full set Core Client Indicator'!$A$3:$AB$3, 0))), \"\")","v":""}]
[{"$f":"IF(AND(Selection_Hide1!C233<>0, Selection_Hide1!C233<>\"Grand Total\"), Selection_Hide1!C233, \"\")","v":""},{"$f":"IF(A235<>\"\", IF(INDEX('Full set Core Client Indicator'!$A$3:$AB$351, MATCH(Selection_Hide2!$A235, 'Full set Core Client Indicator'!$A$3:$A$351, 0), MATCH(Selection_Hide2!B$5, 'Full set Core Client Indicator'!$A$3:$AB$3, 0))=\"\", \"\",  INDEX('Full set Core Client Indicator'!$A$3:$AB$351, MATCH(Selection_Hide2!$A235, 'Full set Core Client Indicator'!$A$3:$A$351, 0), MATCH(Selection_Hide2!B$5, 'Full set Core Client Indicator'!$A$3:$AB$3, 0))), \"\")","v":""},{"$f":"IF(B235<>\"\", IF(INDEX('Full set Core Client Indicator'!$A$3:$AB$351, MATCH(Selection_Hide2!$A235, 'Full set Core Client Indicator'!$A$3:$A$351, 0), MATCH(Selection_Hide2!C$5, 'Full set Core Client Indicator'!$A$3:$AB$3, 0))=\"\", \"\",  INDEX('Full set Core Client Indicator'!$A$3:$AB$351, MATCH(Selection_Hide2!$A235, 'Full set Core Client Indicator'!$A$3:$A$351, 0), MATCH(Selection_Hide2!C$5, 'Full set Core Client Indicator'!$A$3:$AB$3, 0))), \"\")","v":""},{"$f":"IF(C235<>\"\", IF(INDEX('Full set Core Client Indicator'!$A$3:$AB$351, MATCH(Selection_Hide2!$A235, 'Full set Core Client Indicator'!$A$3:$A$351, 0), MATCH(Selection_Hide2!D$5, 'Full set Core Client Indicator'!$A$3:$AB$3, 0))=\"\", \"\",  INDEX('Full set Core Client Indicator'!$A$3:$AB$351, MATCH(Selection_Hide2!$A235, 'Full set Core Client Indicator'!$A$3:$A$351, 0), MATCH(Selection_Hide2!D$5, 'Full set Core Client Indicator'!$A$3:$AB$3, 0))), \"\")","v":""},{"$f":"IF(D235<>\"\", IF(INDEX('Full set Core Client Indicator'!$A$3:$AB$351, MATCH(Selection_Hide2!$A235, 'Full set Core Client Indicator'!$A$3:$A$351, 0), MATCH(Selection_Hide2!E$5, 'Full set Core Client Indicator'!$A$3:$AB$3, 0))=\"\", \"\",  INDEX('Full set Core Client Indicator'!$A$3:$AB$351, MATCH(Selection_Hide2!$A235, 'Full set Core Client Indicator'!$A$3:$A$351, 0), MATCH(Selection_Hide2!E$5, 'Full set Core Client Indicator'!$A$3:$AB$3, 0))), \"\")","v":""},{"$f":"IF(E235<>\"\", IF(INDEX('Full set Core Client Indicator'!$A$3:$AB$351, MATCH(Selection_Hide2!$A235, 'Full set Core Client Indicator'!$A$3:$A$351, 0), MATCH(Selection_Hide2!F$5, 'Full set Core Client Indicator'!$A$3:$AB$3, 0))=\"\", \"\",  INDEX('Full set Core Client Indicator'!$A$3:$AB$351, MATCH(Selection_Hide2!$A235, 'Full set Core Client Indicator'!$A$3:$A$351, 0), MATCH(Selection_Hide2!F$5, 'Full set Core Client Indicator'!$A$3:$AB$3, 0))), \"\")","v":""},{"$f":"IF(F235<>\"\", IF(INDEX('Full set Core Client Indicator'!$A$3:$AB$351, MATCH(Selection_Hide2!$A235, 'Full set Core Client Indicator'!$A$3:$A$351, 0), MATCH(Selection_Hide2!G$5, 'Full set Core Client Indicator'!$A$3:$AB$3, 0))=\"\", \"\",  INDEX('Full set Core Client Indicator'!$A$3:$AB$351, MATCH(Selection_Hide2!$A235, 'Full set Core Client Indicator'!$A$3:$A$351, 0), MATCH(Selection_Hide2!G$5, 'Full set Core Client Indicator'!$A$3:$AB$3, 0))), \"\")","v":""},{"$f":"IF(G235<>\"\", IF(INDEX('Full set Core Client Indicator'!$A$3:$AB$351, MATCH(Selection_Hide2!$A235, 'Full set Core Client Indicator'!$A$3:$A$351, 0), MATCH(Selection_Hide2!H$5, 'Full set Core Client Indicator'!$A$3:$AB$3, 0))=\"\", \"\",  INDEX('Full set Core Client Indicator'!$A$3:$AB$351, MATCH(Selection_Hide2!$A235, 'Full set Core Client Indicator'!$A$3:$A$351, 0), MATCH(Selection_Hide2!H$5, 'Full set Core Client Indicator'!$A$3:$AB$3, 0))), \"\")","v":""},{"$f":"IF(H235<>\"\", IF(INDEX('Full set Core Client Indicator'!$A$3:$AB$351, MATCH(Selection_Hide2!$A235, 'Full set Core Client Indicator'!$A$3:$A$351, 0), MATCH(Selection_Hide2!I$5, 'Full set Core Client Indicator'!$A$3:$AB$3, 0))=\"\", \"\",  INDEX('Full set Core Client Indicator'!$A$3:$AB$351, MATCH(Selection_Hide2!$A235, 'Full set Core Client Indicator'!$A$3:$A$351, 0), MATCH(Selection_Hide2!I$5, 'Full set Core Client Indicator'!$A$3:$AB$3, 0))), \"\")","v":""},{"$f":"IF(I235<>\"\", IF(INDEX('Full set Core Client Indicator'!$A$3:$AB$351, MATCH(Selection_Hide2!$A235, 'Full set Core Client Indicator'!$A$3:$A$351, 0), MATCH(Selection_Hide2!J$5, 'Full set Core Client Indicator'!$A$3:$AB$3, 0))=\"\", \"\",  INDEX('Full set Core Client Indicator'!$A$3:$AB$351, MATCH(Selection_Hide2!$A235, 'Full set Core Client Indicator'!$A$3:$A$351, 0), MATCH(Selection_Hide2!J$5, 'Full set Core Client Indicator'!$A$3:$AB$3, 0))), \"\")","v":""},{"$f":"IF(J235<>\"\", IF(INDEX('Full set Core Client Indicator'!$A$3:$AB$351, MATCH(Selection_Hide2!$A235, 'Full set Core Client Indicator'!$A$3:$A$351, 0), MATCH(Selection_Hide2!K$5, 'Full set Core Client Indicator'!$A$3:$AB$3, 0))=\"\", \"\",  INDEX('Full set Core Client Indicator'!$A$3:$AB$351, MATCH(Selection_Hide2!$A235, 'Full set Core Client Indicator'!$A$3:$A$351, 0), MATCH(Selection_Hide2!K$5, 'Full set Core Client Indicator'!$A$3:$AB$3, 0))), \"\")","v":""},{"$f":"IF(K235<>\"\", IF(INDEX('Full set Core Client Indicator'!$A$3:$AB$351, MATCH(Selection_Hide2!$A235, 'Full set Core Client Indicator'!$A$3:$A$351, 0), MATCH(Selection_Hide2!L$5, 'Full set Core Client Indicator'!$A$3:$AB$3, 0))=\"\", \"\",  INDEX('Full set Core Client Indicator'!$A$3:$AB$351, MATCH(Selection_Hide2!$A235, 'Full set Core Client Indicator'!$A$3:$A$351, 0), MATCH(Selection_Hide2!L$5, 'Full set Core Client Indicator'!$A$3:$AB$3, 0))), \"\")","v":""},{"$f":"IF(L235<>\"\", IF(INDEX('Full set Core Client Indicator'!$A$3:$AB$351, MATCH(Selection_Hide2!$A235, 'Full set Core Client Indicator'!$A$3:$A$351, 0), MATCH(Selection_Hide2!M$5, 'Full set Core Client Indicator'!$A$3:$AB$3, 0))=\"\", \"\",  INDEX('Full set Core Client Indicator'!$A$3:$AB$351, MATCH(Selection_Hide2!$A235, 'Full set Core Client Indicator'!$A$3:$A$351, 0), MATCH(Selection_Hide2!M$5, 'Full set Core Client Indicator'!$A$3:$AB$3, 0))), \"\")","v":""},{"$f":"IF(M235<>\"\", IF(INDEX('Full set Core Client Indicator'!$A$3:$AB$351, MATCH(Selection_Hide2!$A235, 'Full set Core Client Indicator'!$A$3:$A$351, 0), MATCH(Selection_Hide2!N$5, 'Full set Core Client Indicator'!$A$3:$AB$3, 0))=\"\", \"\",  INDEX('Full set Core Client Indicator'!$A$3:$AB$351, MATCH(Selection_Hide2!$A235, 'Full set Core Client Indicator'!$A$3:$A$351, 0), MATCH(Selection_Hide2!N$5, 'Full set Core Client Indicator'!$A$3:$AB$3, 0))), \"\")","v":""},{"$f":"IF(N235<>\"\", IF(INDEX('Full set Core Client Indicator'!$A$3:$AB$351, MATCH(Selection_Hide2!$A235, 'Full set Core Client Indicator'!$A$3:$A$351, 0), MATCH(Selection_Hide2!O$5, 'Full set Core Client Indicator'!$A$3:$AB$3, 0))=\"\", \"\",  INDEX('Full set Core Client Indicator'!$A$3:$AB$351, MATCH(Selection_Hide2!$A235, 'Full set Core Client Indicator'!$A$3:$A$351, 0), MATCH(Selection_Hide2!O$5, 'Full set Core Client Indicator'!$A$3:$AB$3, 0))), \"\")","v":""},{"$f":"IF(O235<>\"\", IF(INDEX('Full set Core Client Indicator'!$A$3:$AB$351, MATCH(Selection_Hide2!$A235, 'Full set Core Client Indicator'!$A$3:$A$351, 0), MATCH(Selection_Hide2!P$5, 'Full set Core Client Indicator'!$A$3:$AB$3, 0))=\"\", \"\",  INDEX('Full set Core Client Indicator'!$A$3:$AB$351, MATCH(Selection_Hide2!$A235, 'Full set Core Client Indicator'!$A$3:$A$351, 0), MATCH(Selection_Hide2!P$5, 'Full set Core Client Indicator'!$A$3:$AB$3, 0))), \"\")","v":""},{"$f":"IF(P235<>\"\", IF(INDEX('Full set Core Client Indicator'!$A$3:$AB$351, MATCH(Selection_Hide2!$A235, 'Full set Core Client Indicator'!$A$3:$A$351, 0), MATCH(Selection_Hide2!Q$5, 'Full set Core Client Indicator'!$A$3:$AB$3, 0))=\"\", \"\",  INDEX('Full set Core Client Indicator'!$A$3:$AB$351, MATCH(Selection_Hide2!$A235, 'Full set Core Client Indicator'!$A$3:$A$351, 0), MATCH(Selection_Hide2!Q$5, 'Full set Core Client Indicator'!$A$3:$AB$3, 0))), \"\")","v":""},{"$f":"IF(Q235<>\"\", IF(INDEX('Full set Core Client Indicator'!$A$3:$AB$351, MATCH(Selection_Hide2!$A235, 'Full set Core Client Indicator'!$A$3:$A$351, 0), MATCH(Selection_Hide2!R$5, 'Full set Core Client Indicator'!$A$3:$AB$3, 0))=\"\", \"\",  INDEX('Full set Core Client Indicator'!$A$3:$AB$351, MATCH(Selection_Hide2!$A235, 'Full set Core Client Indicator'!$A$3:$A$351, 0), MATCH(Selection_Hide2!R$5, 'Full set Core Client Indicator'!$A$3:$AB$3, 0))), \"\")","v":""},{"$f":"IF(R235<>\"\", IF(INDEX('Full set Core Client Indicator'!$A$3:$AB$351, MATCH(Selection_Hide2!$A235, 'Full set Core Client Indicator'!$A$3:$A$351, 0), MATCH(Selection_Hide2!S$5, 'Full set Core Client Indicator'!$A$3:$AB$3, 0))=\"\", \"\",  INDEX('Full set Core Client Indicator'!$A$3:$AB$351, MATCH(Selection_Hide2!$A235, 'Full set Core Client Indicator'!$A$3:$A$351, 0), MATCH(Selection_Hide2!S$5, 'Full set Core Client Indicator'!$A$3:$AB$3, 0))), \"\")","v":""},{"$f":"IF(S235<>\"\", IF(INDEX('Full set Core Client Indicator'!$A$3:$AB$351, MATCH(Selection_Hide2!$A235, 'Full set Core Client Indicator'!$A$3:$A$351, 0), MATCH(Selection_Hide2!T$5, 'Full set Core Client Indicator'!$A$3:$AB$3, 0))=\"\", \"\",  INDEX('Full set Core Client Indicator'!$A$3:$AB$351, MATCH(Selection_Hide2!$A235, 'Full set Core Client Indicator'!$A$3:$A$351, 0), MATCH(Selection_Hide2!T$5, 'Full set Core Client Indicator'!$A$3:$AB$3, 0))), \"\")","v":""},{"$f":"IF(T235<>\"\", IF(INDEX('Full set Core Client Indicator'!$A$3:$AB$351, MATCH(Selection_Hide2!$A235, 'Full set Core Client Indicator'!$A$3:$A$351, 0), MATCH(Selection_Hide2!U$5, 'Full set Core Client Indicator'!$A$3:$AB$3, 0))=\"\", \"\",  INDEX('Full set Core Client Indicator'!$A$3:$AB$351, MATCH(Selection_Hide2!$A235, 'Full set Core Client Indicator'!$A$3:$A$351, 0), MATCH(Selection_Hide2!U$5, 'Full set Core Client Indicator'!$A$3:$AB$3, 0))), \"\")","v":""},{"$f":"IF(U235<>\"\", IF(INDEX('Full set Core Client Indicator'!$A$3:$AB$351, MATCH(Selection_Hide2!$A235, 'Full set Core Client Indicator'!$A$3:$A$351, 0), MATCH(Selection_Hide2!V$5, 'Full set Core Client Indicator'!$A$3:$AB$3, 0))=\"\", \"\",  INDEX('Full set Core Client Indicator'!$A$3:$AB$351, MATCH(Selection_Hide2!$A235, 'Full set Core Client Indicator'!$A$3:$A$351, 0), MATCH(Selection_Hide2!V$5, 'Full set Core Client Indicator'!$A$3:$AB$3, 0))), \"\")","v":""},{"$f":"IF(V235<>\"\", IF(INDEX('Full set Core Client Indicator'!$A$3:$AB$351, MATCH(Selection_Hide2!$A235, 'Full set Core Client Indicator'!$A$3:$A$351, 0), MATCH(Selection_Hide2!W$5, 'Full set Core Client Indicator'!$A$3:$AB$3, 0))=\"\", \"\",  INDEX('Full set Core Client Indicator'!$A$3:$AB$351, MATCH(Selection_Hide2!$A235, 'Full set Core Client Indicator'!$A$3:$A$351, 0), MATCH(Selection_Hide2!W$5, 'Full set Core Client Indicator'!$A$3:$AB$3, 0))), \"\")","v":""},{"$f":"IF(W235<>\"\", IF(INDEX('Full set Core Client Indicator'!$A$3:$AB$351, MATCH(Selection_Hide2!$A235, 'Full set Core Client Indicator'!$A$3:$A$351, 0), MATCH(Selection_Hide2!X$5, 'Full set Core Client Indicator'!$A$3:$AB$3, 0))=\"\", \"\",  INDEX('Full set Core Client Indicator'!$A$3:$AB$351, MATCH(Selection_Hide2!$A235, 'Full set Core Client Indicator'!$A$3:$A$351, 0), MATCH(Selection_Hide2!X$5, 'Full set Core Client Indicator'!$A$3:$AB$3, 0))), \"\")","v":""},{"$f":"IF(X235<>\"\", IF(INDEX('Full set Core Client Indicator'!$A$3:$AB$351, MATCH(Selection_Hide2!$A235, 'Full set Core Client Indicator'!$A$3:$A$351, 0), MATCH(Selection_Hide2!Y$5, 'Full set Core Client Indicator'!$A$3:$AB$3, 0))=\"\", \"\",  INDEX('Full set Core Client Indicator'!$A$3:$AB$351, MATCH(Selection_Hide2!$A235, 'Full set Core Client Indicator'!$A$3:$A$351, 0), MATCH(Selection_Hide2!Y$5, 'Full set Core Client Indicator'!$A$3:$AB$3, 0))), \"\")","v":""},{"$f":"IF(Y235<>\"\", IF(INDEX('Full set Core Client Indicator'!$A$3:$AB$351, MATCH(Selection_Hide2!$A235, 'Full set Core Client Indicator'!$A$3:$A$351, 0), MATCH(Selection_Hide2!Z$5, 'Full set Core Client Indicator'!$A$3:$AB$3, 0))=\"\", \"\",  INDEX('Full set Core Client Indicator'!$A$3:$AB$351, MATCH(Selection_Hide2!$A235, 'Full set Core Client Indicator'!$A$3:$A$351, 0), MATCH(Selection_Hide2!Z$5, 'Full set Core Client Indicator'!$A$3:$AB$3, 0))), \"\")","v":""},{"$f":"IF(Z235<>\"\", IF(INDEX('Full set Core Client Indicator'!$A$3:$AB$351, MATCH(Selection_Hide2!$A235, 'Full set Core Client Indicator'!$A$3:$A$351, 0), MATCH(Selection_Hide2!AA$5, 'Full set Core Client Indicator'!$A$3:$AB$3, 0))=\"\", \"\",  INDEX('Full set Core Client Indicator'!$A$3:$AB$351, MATCH(Selection_Hide2!$A235, 'Full set Core Client Indicator'!$A$3:$A$351, 0), MATCH(Selection_Hide2!AA$5, 'Full set Core Client Indicator'!$A$3:$AB$3, 0))), \"\")","v":""},{"$f":"IF(AA235<>\"\", IF(INDEX('Full set Core Client Indicator'!$A$3:$AB$351, MATCH(Selection_Hide2!$A235, 'Full set Core Client Indicator'!$A$3:$A$351, 0), MATCH(Selection_Hide2!AB$5, 'Full set Core Client Indicator'!$A$3:$AB$3, 0))=\"\", \"\",  INDEX('Full set Core Client Indicator'!$A$3:$AB$351, MATCH(Selection_Hide2!$A235, 'Full set Core Client Indicator'!$A$3:$A$351, 0), MATCH(Selection_Hide2!AB$5, 'Full set Core Client Indicator'!$A$3:$AB$3, 0))), \"\")","v":""}]
[{"$f":"IF(AND(Selection_Hide1!C234<>0, Selection_Hide1!C234<>\"Grand Total\"), Selection_Hide1!C234, \"\")","v":""},{"$f":"IF(A236<>\"\", IF(INDEX('Full set Core Client Indicator'!$A$3:$AB$351, MATCH(Selection_Hide2!$A236, 'Full set Core Client Indicator'!$A$3:$A$351, 0), MATCH(Selection_Hide2!B$5, 'Full set Core Client Indicator'!$A$3:$AB$3, 0))=\"\", \"\",  INDEX('Full set Core Client Indicator'!$A$3:$AB$351, MATCH(Selection_Hide2!$A236, 'Full set Core Client Indicator'!$A$3:$A$351, 0), MATCH(Selection_Hide2!B$5, 'Full set Core Client Indicator'!$A$3:$AB$3, 0))), \"\")","v":""},{"$f":"IF(B236<>\"\", IF(INDEX('Full set Core Client Indicator'!$A$3:$AB$351, MATCH(Selection_Hide2!$A236, 'Full set Core Client Indicator'!$A$3:$A$351, 0), MATCH(Selection_Hide2!C$5, 'Full set Core Client Indicator'!$A$3:$AB$3, 0))=\"\", \"\",  INDEX('Full set Core Client Indicator'!$A$3:$AB$351, MATCH(Selection_Hide2!$A236, 'Full set Core Client Indicator'!$A$3:$A$351, 0), MATCH(Selection_Hide2!C$5, 'Full set Core Client Indicator'!$A$3:$AB$3, 0))), \"\")","v":""},{"$f":"IF(C236<>\"\", IF(INDEX('Full set Core Client Indicator'!$A$3:$AB$351, MATCH(Selection_Hide2!$A236, 'Full set Core Client Indicator'!$A$3:$A$351, 0), MATCH(Selection_Hide2!D$5, 'Full set Core Client Indicator'!$A$3:$AB$3, 0))=\"\", \"\",  INDEX('Full set Core Client Indicator'!$A$3:$AB$351, MATCH(Selection_Hide2!$A236, 'Full set Core Client Indicator'!$A$3:$A$351, 0), MATCH(Selection_Hide2!D$5, 'Full set Core Client Indicator'!$A$3:$AB$3, 0))), \"\")","v":""},{"$f":"IF(D236<>\"\", IF(INDEX('Full set Core Client Indicator'!$A$3:$AB$351, MATCH(Selection_Hide2!$A236, 'Full set Core Client Indicator'!$A$3:$A$351, 0), MATCH(Selection_Hide2!E$5, 'Full set Core Client Indicator'!$A$3:$AB$3, 0))=\"\", \"\",  INDEX('Full set Core Client Indicator'!$A$3:$AB$351, MATCH(Selection_Hide2!$A236, 'Full set Core Client Indicator'!$A$3:$A$351, 0), MATCH(Selection_Hide2!E$5, 'Full set Core Client Indicator'!$A$3:$AB$3, 0))), \"\")","v":""},{"$f":"IF(E236<>\"\", IF(INDEX('Full set Core Client Indicator'!$A$3:$AB$351, MATCH(Selection_Hide2!$A236, 'Full set Core Client Indicator'!$A$3:$A$351, 0), MATCH(Selection_Hide2!F$5, 'Full set Core Client Indicator'!$A$3:$AB$3, 0))=\"\", \"\",  INDEX('Full set Core Client Indicator'!$A$3:$AB$351, MATCH(Selection_Hide2!$A236, 'Full set Core Client Indicator'!$A$3:$A$351, 0), MATCH(Selection_Hide2!F$5, 'Full set Core Client Indicator'!$A$3:$AB$3, 0))), \"\")","v":""},{"$f":"IF(F236<>\"\", IF(INDEX('Full set Core Client Indicator'!$A$3:$AB$351, MATCH(Selection_Hide2!$A236, 'Full set Core Client Indicator'!$A$3:$A$351, 0), MATCH(Selection_Hide2!G$5, 'Full set Core Client Indicator'!$A$3:$AB$3, 0))=\"\", \"\",  INDEX('Full set Core Client Indicator'!$A$3:$AB$351, MATCH(Selection_Hide2!$A236, 'Full set Core Client Indicator'!$A$3:$A$351, 0), MATCH(Selection_Hide2!G$5, 'Full set Core Client Indicator'!$A$3:$AB$3, 0))), \"\")","v":""},{"$f":"IF(G236<>\"\", IF(INDEX('Full set Core Client Indicator'!$A$3:$AB$351, MATCH(Selection_Hide2!$A236, 'Full set Core Client Indicator'!$A$3:$A$351, 0), MATCH(Selection_Hide2!H$5, 'Full set Core Client Indicator'!$A$3:$AB$3, 0))=\"\", \"\",  INDEX('Full set Core Client Indicator'!$A$3:$AB$351, MATCH(Selection_Hide2!$A236, 'Full set Core Client Indicator'!$A$3:$A$351, 0), MATCH(Selection_Hide2!H$5, 'Full set Core Client Indicator'!$A$3:$AB$3, 0))), \"\")","v":""},{"$f":"IF(H236<>\"\", IF(INDEX('Full set Core Client Indicator'!$A$3:$AB$351, MATCH(Selection_Hide2!$A236, 'Full set Core Client Indicator'!$A$3:$A$351, 0), MATCH(Selection_Hide2!I$5, 'Full set Core Client Indicator'!$A$3:$AB$3, 0))=\"\", \"\",  INDEX('Full set Core Client Indicator'!$A$3:$AB$351, MATCH(Selection_Hide2!$A236, 'Full set Core Client Indicator'!$A$3:$A$351, 0), MATCH(Selection_Hide2!I$5, 'Full set Core Client Indicator'!$A$3:$AB$3, 0))), \"\")","v":""},{"$f":"IF(I236<>\"\", IF(INDEX('Full set Core Client Indicator'!$A$3:$AB$351, MATCH(Selection_Hide2!$A236, 'Full set Core Client Indicator'!$A$3:$A$351, 0), MATCH(Selection_Hide2!J$5, 'Full set Core Client Indicator'!$A$3:$AB$3, 0))=\"\", \"\",  INDEX('Full set Core Client Indicator'!$A$3:$AB$351, MATCH(Selection_Hide2!$A236, 'Full set Core Client Indicator'!$A$3:$A$351, 0), MATCH(Selection_Hide2!J$5, 'Full set Core Client Indicator'!$A$3:$AB$3, 0))), \"\")","v":""},{"$f":"IF(J236<>\"\", IF(INDEX('Full set Core Client Indicator'!$A$3:$AB$351, MATCH(Selection_Hide2!$A236, 'Full set Core Client Indicator'!$A$3:$A$351, 0), MATCH(Selection_Hide2!K$5, 'Full set Core Client Indicator'!$A$3:$AB$3, 0))=\"\", \"\",  INDEX('Full set Core Client Indicator'!$A$3:$AB$351, MATCH(Selection_Hide2!$A236, 'Full set Core Client Indicator'!$A$3:$A$351, 0), MATCH(Selection_Hide2!K$5, 'Full set Core Client Indicator'!$A$3:$AB$3, 0))), \"\")","v":""},{"$f":"IF(K236<>\"\", IF(INDEX('Full set Core Client Indicator'!$A$3:$AB$351, MATCH(Selection_Hide2!$A236, 'Full set Core Client Indicator'!$A$3:$A$351, 0), MATCH(Selection_Hide2!L$5, 'Full set Core Client Indicator'!$A$3:$AB$3, 0))=\"\", \"\",  INDEX('Full set Core Client Indicator'!$A$3:$AB$351, MATCH(Selection_Hide2!$A236, 'Full set Core Client Indicator'!$A$3:$A$351, 0), MATCH(Selection_Hide2!L$5, 'Full set Core Client Indicator'!$A$3:$AB$3, 0))), \"\")","v":""},{"$f":"IF(L236<>\"\", IF(INDEX('Full set Core Client Indicator'!$A$3:$AB$351, MATCH(Selection_Hide2!$A236, 'Full set Core Client Indicator'!$A$3:$A$351, 0), MATCH(Selection_Hide2!M$5, 'Full set Core Client Indicator'!$A$3:$AB$3, 0))=\"\", \"\",  INDEX('Full set Core Client Indicator'!$A$3:$AB$351, MATCH(Selection_Hide2!$A236, 'Full set Core Client Indicator'!$A$3:$A$351, 0), MATCH(Selection_Hide2!M$5, 'Full set Core Client Indicator'!$A$3:$AB$3, 0))), \"\")","v":""},{"$f":"IF(M236<>\"\", IF(INDEX('Full set Core Client Indicator'!$A$3:$AB$351, MATCH(Selection_Hide2!$A236, 'Full set Core Client Indicator'!$A$3:$A$351, 0), MATCH(Selection_Hide2!N$5, 'Full set Core Client Indicator'!$A$3:$AB$3, 0))=\"\", \"\",  INDEX('Full set Core Client Indicator'!$A$3:$AB$351, MATCH(Selection_Hide2!$A236, 'Full set Core Client Indicator'!$A$3:$A$351, 0), MATCH(Selection_Hide2!N$5, 'Full set Core Client Indicator'!$A$3:$AB$3, 0))), \"\")","v":""},{"$f":"IF(N236<>\"\", IF(INDEX('Full set Core Client Indicator'!$A$3:$AB$351, MATCH(Selection_Hide2!$A236, 'Full set Core Client Indicator'!$A$3:$A$351, 0), MATCH(Selection_Hide2!O$5, 'Full set Core Client Indicator'!$A$3:$AB$3, 0))=\"\", \"\",  INDEX('Full set Core Client Indicator'!$A$3:$AB$351, MATCH(Selection_Hide2!$A236, 'Full set Core Client Indicator'!$A$3:$A$351, 0), MATCH(Selection_Hide2!O$5, 'Full set Core Client Indicator'!$A$3:$AB$3, 0))), \"\")","v":""},{"$f":"IF(O236<>\"\", IF(INDEX('Full set Core Client Indicator'!$A$3:$AB$351, MATCH(Selection_Hide2!$A236, 'Full set Core Client Indicator'!$A$3:$A$351, 0), MATCH(Selection_Hide2!P$5, 'Full set Core Client Indicator'!$A$3:$AB$3, 0))=\"\", \"\",  INDEX('Full set Core Client Indicator'!$A$3:$AB$351, MATCH(Selection_Hide2!$A236, 'Full set Core Client Indicator'!$A$3:$A$351, 0), MATCH(Selection_Hide2!P$5, 'Full set Core Client Indicator'!$A$3:$AB$3, 0))), \"\")","v":""},{"$f":"IF(P236<>\"\", IF(INDEX('Full set Core Client Indicator'!$A$3:$AB$351, MATCH(Selection_Hide2!$A236, 'Full set Core Client Indicator'!$A$3:$A$351, 0), MATCH(Selection_Hide2!Q$5, 'Full set Core Client Indicator'!$A$3:$AB$3, 0))=\"\", \"\",  INDEX('Full set Core Client Indicator'!$A$3:$AB$351, MATCH(Selection_Hide2!$A236, 'Full set Core Client Indicator'!$A$3:$A$351, 0), MATCH(Selection_Hide2!Q$5, 'Full set Core Client Indicator'!$A$3:$AB$3, 0))), \"\")","v":""},{"$f":"IF(Q236<>\"\", IF(INDEX('Full set Core Client Indicator'!$A$3:$AB$351, MATCH(Selection_Hide2!$A236, 'Full set Core Client Indicator'!$A$3:$A$351, 0), MATCH(Selection_Hide2!R$5, 'Full set Core Client Indicator'!$A$3:$AB$3, 0))=\"\", \"\",  INDEX('Full set Core Client Indicator'!$A$3:$AB$351, MATCH(Selection_Hide2!$A236, 'Full set Core Client Indicator'!$A$3:$A$351, 0), MATCH(Selection_Hide2!R$5, 'Full set Core Client Indicator'!$A$3:$AB$3, 0))), \"\")","v":""},{"$f":"IF(R236<>\"\", IF(INDEX('Full set Core Client Indicator'!$A$3:$AB$351, MATCH(Selection_Hide2!$A236, 'Full set Core Client Indicator'!$A$3:$A$351, 0), MATCH(Selection_Hide2!S$5, 'Full set Core Client Indicator'!$A$3:$AB$3, 0))=\"\", \"\",  INDEX('Full set Core Client Indicator'!$A$3:$AB$351, MATCH(Selection_Hide2!$A236, 'Full set Core Client Indicator'!$A$3:$A$351, 0), MATCH(Selection_Hide2!S$5, 'Full set Core Client Indicator'!$A$3:$AB$3, 0))), \"\")","v":""},{"$f":"IF(S236<>\"\", IF(INDEX('Full set Core Client Indicator'!$A$3:$AB$351, MATCH(Selection_Hide2!$A236, 'Full set Core Client Indicator'!$A$3:$A$351, 0), MATCH(Selection_Hide2!T$5, 'Full set Core Client Indicator'!$A$3:$AB$3, 0))=\"\", \"\",  INDEX('Full set Core Client Indicator'!$A$3:$AB$351, MATCH(Selection_Hide2!$A236, 'Full set Core Client Indicator'!$A$3:$A$351, 0), MATCH(Selection_Hide2!T$5, 'Full set Core Client Indicator'!$A$3:$AB$3, 0))), \"\")","v":""},{"$f":"IF(T236<>\"\", IF(INDEX('Full set Core Client Indicator'!$A$3:$AB$351, MATCH(Selection_Hide2!$A236, 'Full set Core Client Indicator'!$A$3:$A$351, 0), MATCH(Selection_Hide2!U$5, 'Full set Core Client Indicator'!$A$3:$AB$3, 0))=\"\", \"\",  INDEX('Full set Core Client Indicator'!$A$3:$AB$351, MATCH(Selection_Hide2!$A236, 'Full set Core Client Indicator'!$A$3:$A$351, 0), MATCH(Selection_Hide2!U$5, 'Full set Core Client Indicator'!$A$3:$AB$3, 0))), \"\")","v":""},{"$f":"IF(U236<>\"\", IF(INDEX('Full set Core Client Indicator'!$A$3:$AB$351, MATCH(Selection_Hide2!$A236, 'Full set Core Client Indicator'!$A$3:$A$351, 0), MATCH(Selection_Hide2!V$5, 'Full set Core Client Indicator'!$A$3:$AB$3, 0))=\"\", \"\",  INDEX('Full set Core Client Indicator'!$A$3:$AB$351, MATCH(Selection_Hide2!$A236, 'Full set Core Client Indicator'!$A$3:$A$351, 0), MATCH(Selection_Hide2!V$5, 'Full set Core Client Indicator'!$A$3:$AB$3, 0))), \"\")","v":""},{"$f":"IF(V236<>\"\", IF(INDEX('Full set Core Client Indicator'!$A$3:$AB$351, MATCH(Selection_Hide2!$A236, 'Full set Core Client Indicator'!$A$3:$A$351, 0), MATCH(Selection_Hide2!W$5, 'Full set Core Client Indicator'!$A$3:$AB$3, 0))=\"\", \"\",  INDEX('Full set Core Client Indicator'!$A$3:$AB$351, MATCH(Selection_Hide2!$A236, 'Full set Core Client Indicator'!$A$3:$A$351, 0), MATCH(Selection_Hide2!W$5, 'Full set Core Client Indicator'!$A$3:$AB$3, 0))), \"\")","v":""},{"$f":"IF(W236<>\"\", IF(INDEX('Full set Core Client Indicator'!$A$3:$AB$351, MATCH(Selection_Hide2!$A236, 'Full set Core Client Indicator'!$A$3:$A$351, 0), MATCH(Selection_Hide2!X$5, 'Full set Core Client Indicator'!$A$3:$AB$3, 0))=\"\", \"\",  INDEX('Full set Core Client Indicator'!$A$3:$AB$351, MATCH(Selection_Hide2!$A236, 'Full set Core Client Indicator'!$A$3:$A$351, 0), MATCH(Selection_Hide2!X$5, 'Full set Core Client Indicator'!$A$3:$AB$3, 0))), \"\")","v":""},{"$f":"IF(X236<>\"\", IF(INDEX('Full set Core Client Indicator'!$A$3:$AB$351, MATCH(Selection_Hide2!$A236, 'Full set Core Client Indicator'!$A$3:$A$351, 0), MATCH(Selection_Hide2!Y$5, 'Full set Core Client Indicator'!$A$3:$AB$3, 0))=\"\", \"\",  INDEX('Full set Core Client Indicator'!$A$3:$AB$351, MATCH(Selection_Hide2!$A236, 'Full set Core Client Indicator'!$A$3:$A$351, 0), MATCH(Selection_Hide2!Y$5, 'Full set Core Client Indicator'!$A$3:$AB$3, 0))), \"\")","v":""},{"$f":"IF(Y236<>\"\", IF(INDEX('Full set Core Client Indicator'!$A$3:$AB$351, MATCH(Selection_Hide2!$A236, 'Full set Core Client Indicator'!$A$3:$A$351, 0), MATCH(Selection_Hide2!Z$5, 'Full set Core Client Indicator'!$A$3:$AB$3, 0))=\"\", \"\",  INDEX('Full set Core Client Indicator'!$A$3:$AB$351, MATCH(Selection_Hide2!$A236, 'Full set Core Client Indicator'!$A$3:$A$351, 0), MATCH(Selection_Hide2!Z$5, 'Full set Core Client Indicator'!$A$3:$AB$3, 0))), \"\")","v":""},{"$f":"IF(Z236<>\"\", IF(INDEX('Full set Core Client Indicator'!$A$3:$AB$351, MATCH(Selection_Hide2!$A236, 'Full set Core Client Indicator'!$A$3:$A$351, 0), MATCH(Selection_Hide2!AA$5, 'Full set Core Client Indicator'!$A$3:$AB$3, 0))=\"\", \"\",  INDEX('Full set Core Client Indicator'!$A$3:$AB$351, MATCH(Selection_Hide2!$A236, 'Full set Core Client Indicator'!$A$3:$A$351, 0), MATCH(Selection_Hide2!AA$5, 'Full set Core Client Indicator'!$A$3:$AB$3, 0))), \"\")","v":""},{"$f":"IF(AA236<>\"\", IF(INDEX('Full set Core Client Indicator'!$A$3:$AB$351, MATCH(Selection_Hide2!$A236, 'Full set Core Client Indicator'!$A$3:$A$351, 0), MATCH(Selection_Hide2!AB$5, 'Full set Core Client Indicator'!$A$3:$AB$3, 0))=\"\", \"\",  INDEX('Full set Core Client Indicator'!$A$3:$AB$351, MATCH(Selection_Hide2!$A236, 'Full set Core Client Indicator'!$A$3:$A$351, 0), MATCH(Selection_Hide2!AB$5, 'Full set Core Client Indicator'!$A$3:$AB$3, 0))), \"\")","v":""}]
[{"$f":"IF(AND(Selection_Hide1!C235<>0, Selection_Hide1!C235<>\"Grand Total\"), Selection_Hide1!C235, \"\")","v":""},{"$f":"IF(A237<>\"\", IF(INDEX('Full set Core Client Indicator'!$A$3:$AB$351, MATCH(Selection_Hide2!$A237, 'Full set Core Client Indicator'!$A$3:$A$351, 0), MATCH(Selection_Hide2!B$5, 'Full set Core Client Indicator'!$A$3:$AB$3, 0))=\"\", \"\",  INDEX('Full set Core Client Indicator'!$A$3:$AB$351, MATCH(Selection_Hide2!$A237, 'Full set Core Client Indicator'!$A$3:$A$351, 0), MATCH(Selection_Hide2!B$5, 'Full set Core Client Indicator'!$A$3:$AB$3, 0))), \"\")","v":""},{"$f":"IF(B237<>\"\", IF(INDEX('Full set Core Client Indicator'!$A$3:$AB$351, MATCH(Selection_Hide2!$A237, 'Full set Core Client Indicator'!$A$3:$A$351, 0), MATCH(Selection_Hide2!C$5, 'Full set Core Client Indicator'!$A$3:$AB$3, 0))=\"\", \"\",  INDEX('Full set Core Client Indicator'!$A$3:$AB$351, MATCH(Selection_Hide2!$A237, 'Full set Core Client Indicator'!$A$3:$A$351, 0), MATCH(Selection_Hide2!C$5, 'Full set Core Client Indicator'!$A$3:$AB$3, 0))), \"\")","v":""},{"$f":"IF(C237<>\"\", IF(INDEX('Full set Core Client Indicator'!$A$3:$AB$351, MATCH(Selection_Hide2!$A237, 'Full set Core Client Indicator'!$A$3:$A$351, 0), MATCH(Selection_Hide2!D$5, 'Full set Core Client Indicator'!$A$3:$AB$3, 0))=\"\", \"\",  INDEX('Full set Core Client Indicator'!$A$3:$AB$351, MATCH(Selection_Hide2!$A237, 'Full set Core Client Indicator'!$A$3:$A$351, 0), MATCH(Selection_Hide2!D$5, 'Full set Core Client Indicator'!$A$3:$AB$3, 0))), \"\")","v":""},{"$f":"IF(D237<>\"\", IF(INDEX('Full set Core Client Indicator'!$A$3:$AB$351, MATCH(Selection_Hide2!$A237, 'Full set Core Client Indicator'!$A$3:$A$351, 0), MATCH(Selection_Hide2!E$5, 'Full set Core Client Indicator'!$A$3:$AB$3, 0))=\"\", \"\",  INDEX('Full set Core Client Indicator'!$A$3:$AB$351, MATCH(Selection_Hide2!$A237, 'Full set Core Client Indicator'!$A$3:$A$351, 0), MATCH(Selection_Hide2!E$5, 'Full set Core Client Indicator'!$A$3:$AB$3, 0))), \"\")","v":""},{"$f":"IF(E237<>\"\", IF(INDEX('Full set Core Client Indicator'!$A$3:$AB$351, MATCH(Selection_Hide2!$A237, 'Full set Core Client Indicator'!$A$3:$A$351, 0), MATCH(Selection_Hide2!F$5, 'Full set Core Client Indicator'!$A$3:$AB$3, 0))=\"\", \"\",  INDEX('Full set Core Client Indicator'!$A$3:$AB$351, MATCH(Selection_Hide2!$A237, 'Full set Core Client Indicator'!$A$3:$A$351, 0), MATCH(Selection_Hide2!F$5, 'Full set Core Client Indicator'!$A$3:$AB$3, 0))), \"\")","v":""},{"$f":"IF(F237<>\"\", IF(INDEX('Full set Core Client Indicator'!$A$3:$AB$351, MATCH(Selection_Hide2!$A237, 'Full set Core Client Indicator'!$A$3:$A$351, 0), MATCH(Selection_Hide2!G$5, 'Full set Core Client Indicator'!$A$3:$AB$3, 0))=\"\", \"\",  INDEX('Full set Core Client Indicator'!$A$3:$AB$351, MATCH(Selection_Hide2!$A237, 'Full set Core Client Indicator'!$A$3:$A$351, 0), MATCH(Selection_Hide2!G$5, 'Full set Core Client Indicator'!$A$3:$AB$3, 0))), \"\")","v":""},{"$f":"IF(G237<>\"\", IF(INDEX('Full set Core Client Indicator'!$A$3:$AB$351, MATCH(Selection_Hide2!$A237, 'Full set Core Client Indicator'!$A$3:$A$351, 0), MATCH(Selection_Hide2!H$5, 'Full set Core Client Indicator'!$A$3:$AB$3, 0))=\"\", \"\",  INDEX('Full set Core Client Indicator'!$A$3:$AB$351, MATCH(Selection_Hide2!$A237, 'Full set Core Client Indicator'!$A$3:$A$351, 0), MATCH(Selection_Hide2!H$5, 'Full set Core Client Indicator'!$A$3:$AB$3, 0))), \"\")","v":""},{"$f":"IF(H237<>\"\", IF(INDEX('Full set Core Client Indicator'!$A$3:$AB$351, MATCH(Selection_Hide2!$A237, 'Full set Core Client Indicator'!$A$3:$A$351, 0), MATCH(Selection_Hide2!I$5, 'Full set Core Client Indicator'!$A$3:$AB$3, 0))=\"\", \"\",  INDEX('Full set Core Client Indicator'!$A$3:$AB$351, MATCH(Selection_Hide2!$A237, 'Full set Core Client Indicator'!$A$3:$A$351, 0), MATCH(Selection_Hide2!I$5, 'Full set Core Client Indicator'!$A$3:$AB$3, 0))), \"\")","v":""},{"$f":"IF(I237<>\"\", IF(INDEX('Full set Core Client Indicator'!$A$3:$AB$351, MATCH(Selection_Hide2!$A237, 'Full set Core Client Indicator'!$A$3:$A$351, 0), MATCH(Selection_Hide2!J$5, 'Full set Core Client Indicator'!$A$3:$AB$3, 0))=\"\", \"\",  INDEX('Full set Core Client Indicator'!$A$3:$AB$351, MATCH(Selection_Hide2!$A237, 'Full set Core Client Indicator'!$A$3:$A$351, 0), MATCH(Selection_Hide2!J$5, 'Full set Core Client Indicator'!$A$3:$AB$3, 0))), \"\")","v":""},{"$f":"IF(J237<>\"\", IF(INDEX('Full set Core Client Indicator'!$A$3:$AB$351, MATCH(Selection_Hide2!$A237, 'Full set Core Client Indicator'!$A$3:$A$351, 0), MATCH(Selection_Hide2!K$5, 'Full set Core Client Indicator'!$A$3:$AB$3, 0))=\"\", \"\",  INDEX('Full set Core Client Indicator'!$A$3:$AB$351, MATCH(Selection_Hide2!$A237, 'Full set Core Client Indicator'!$A$3:$A$351, 0), MATCH(Selection_Hide2!K$5, 'Full set Core Client Indicator'!$A$3:$AB$3, 0))), \"\")","v":""},{"$f":"IF(K237<>\"\", IF(INDEX('Full set Core Client Indicator'!$A$3:$AB$351, MATCH(Selection_Hide2!$A237, 'Full set Core Client Indicator'!$A$3:$A$351, 0), MATCH(Selection_Hide2!L$5, 'Full set Core Client Indicator'!$A$3:$AB$3, 0))=\"\", \"\",  INDEX('Full set Core Client Indicator'!$A$3:$AB$351, MATCH(Selection_Hide2!$A237, 'Full set Core Client Indicator'!$A$3:$A$351, 0), MATCH(Selection_Hide2!L$5, 'Full set Core Client Indicator'!$A$3:$AB$3, 0))), \"\")","v":""},{"$f":"IF(L237<>\"\", IF(INDEX('Full set Core Client Indicator'!$A$3:$AB$351, MATCH(Selection_Hide2!$A237, 'Full set Core Client Indicator'!$A$3:$A$351, 0), MATCH(Selection_Hide2!M$5, 'Full set Core Client Indicator'!$A$3:$AB$3, 0))=\"\", \"\",  INDEX('Full set Core Client Indicator'!$A$3:$AB$351, MATCH(Selection_Hide2!$A237, 'Full set Core Client Indicator'!$A$3:$A$351, 0), MATCH(Selection_Hide2!M$5, 'Full set Core Client Indicator'!$A$3:$AB$3, 0))), \"\")","v":""},{"$f":"IF(M237<>\"\", IF(INDEX('Full set Core Client Indicator'!$A$3:$AB$351, MATCH(Selection_Hide2!$A237, 'Full set Core Client Indicator'!$A$3:$A$351, 0), MATCH(Selection_Hide2!N$5, 'Full set Core Client Indicator'!$A$3:$AB$3, 0))=\"\", \"\",  INDEX('Full set Core Client Indicator'!$A$3:$AB$351, MATCH(Selection_Hide2!$A237, 'Full set Core Client Indicator'!$A$3:$A$351, 0), MATCH(Selection_Hide2!N$5, 'Full set Core Client Indicator'!$A$3:$AB$3, 0))), \"\")","v":""},{"$f":"IF(N237<>\"\", IF(INDEX('Full set Core Client Indicator'!$A$3:$AB$351, MATCH(Selection_Hide2!$A237, 'Full set Core Client Indicator'!$A$3:$A$351, 0), MATCH(Selection_Hide2!O$5, 'Full set Core Client Indicator'!$A$3:$AB$3, 0))=\"\", \"\",  INDEX('Full set Core Client Indicator'!$A$3:$AB$351, MATCH(Selection_Hide2!$A237, 'Full set Core Client Indicator'!$A$3:$A$351, 0), MATCH(Selection_Hide2!O$5, 'Full set Core Client Indicator'!$A$3:$AB$3, 0))), \"\")","v":""},{"$f":"IF(O237<>\"\", IF(INDEX('Full set Core Client Indicator'!$A$3:$AB$351, MATCH(Selection_Hide2!$A237, 'Full set Core Client Indicator'!$A$3:$A$351, 0), MATCH(Selection_Hide2!P$5, 'Full set Core Client Indicator'!$A$3:$AB$3, 0))=\"\", \"\",  INDEX('Full set Core Client Indicator'!$A$3:$AB$351, MATCH(Selection_Hide2!$A237, 'Full set Core Client Indicator'!$A$3:$A$351, 0), MATCH(Selection_Hide2!P$5, 'Full set Core Client Indicator'!$A$3:$AB$3, 0))), \"\")","v":""},{"$f":"IF(P237<>\"\", IF(INDEX('Full set Core Client Indicator'!$A$3:$AB$351, MATCH(Selection_Hide2!$A237, 'Full set Core Client Indicator'!$A$3:$A$351, 0), MATCH(Selection_Hide2!Q$5, 'Full set Core Client Indicator'!$A$3:$AB$3, 0))=\"\", \"\",  INDEX('Full set Core Client Indicator'!$A$3:$AB$351, MATCH(Selection_Hide2!$A237, 'Full set Core Client Indicator'!$A$3:$A$351, 0), MATCH(Selection_Hide2!Q$5, 'Full set Core Client Indicator'!$A$3:$AB$3, 0))), \"\")","v":""},{"$f":"IF(Q237<>\"\", IF(INDEX('Full set Core Client Indicator'!$A$3:$AB$351, MATCH(Selection_Hide2!$A237, 'Full set Core Client Indicator'!$A$3:$A$351, 0), MATCH(Selection_Hide2!R$5, 'Full set Core Client Indicator'!$A$3:$AB$3, 0))=\"\", \"\",  INDEX('Full set Core Client Indicator'!$A$3:$AB$351, MATCH(Selection_Hide2!$A237, 'Full set Core Client Indicator'!$A$3:$A$351, 0), MATCH(Selection_Hide2!R$5, 'Full set Core Client Indicator'!$A$3:$AB$3, 0))), \"\")","v":""},{"$f":"IF(R237<>\"\", IF(INDEX('Full set Core Client Indicator'!$A$3:$AB$351, MATCH(Selection_Hide2!$A237, 'Full set Core Client Indicator'!$A$3:$A$351, 0), MATCH(Selection_Hide2!S$5, 'Full set Core Client Indicator'!$A$3:$AB$3, 0))=\"\", \"\",  INDEX('Full set Core Client Indicator'!$A$3:$AB$351, MATCH(Selection_Hide2!$A237, 'Full set Core Client Indicator'!$A$3:$A$351, 0), MATCH(Selection_Hide2!S$5, 'Full set Core Client Indicator'!$A$3:$AB$3, 0))), \"\")","v":""},{"$f":"IF(S237<>\"\", IF(INDEX('Full set Core Client Indicator'!$A$3:$AB$351, MATCH(Selection_Hide2!$A237, 'Full set Core Client Indicator'!$A$3:$A$351, 0), MATCH(Selection_Hide2!T$5, 'Full set Core Client Indicator'!$A$3:$AB$3, 0))=\"\", \"\",  INDEX('Full set Core Client Indicator'!$A$3:$AB$351, MATCH(Selection_Hide2!$A237, 'Full set Core Client Indicator'!$A$3:$A$351, 0), MATCH(Selection_Hide2!T$5, 'Full set Core Client Indicator'!$A$3:$AB$3, 0))), \"\")","v":""},{"$f":"IF(T237<>\"\", IF(INDEX('Full set Core Client Indicator'!$A$3:$AB$351, MATCH(Selection_Hide2!$A237, 'Full set Core Client Indicator'!$A$3:$A$351, 0), MATCH(Selection_Hide2!U$5, 'Full set Core Client Indicator'!$A$3:$AB$3, 0))=\"\", \"\",  INDEX('Full set Core Client Indicator'!$A$3:$AB$351, MATCH(Selection_Hide2!$A237, 'Full set Core Client Indicator'!$A$3:$A$351, 0), MATCH(Selection_Hide2!U$5, 'Full set Core Client Indicator'!$A$3:$AB$3, 0))), \"\")","v":""},{"$f":"IF(U237<>\"\", IF(INDEX('Full set Core Client Indicator'!$A$3:$AB$351, MATCH(Selection_Hide2!$A237, 'Full set Core Client Indicator'!$A$3:$A$351, 0), MATCH(Selection_Hide2!V$5, 'Full set Core Client Indicator'!$A$3:$AB$3, 0))=\"\", \"\",  INDEX('Full set Core Client Indicator'!$A$3:$AB$351, MATCH(Selection_Hide2!$A237, 'Full set Core Client Indicator'!$A$3:$A$351, 0), MATCH(Selection_Hide2!V$5, 'Full set Core Client Indicator'!$A$3:$AB$3, 0))), \"\")","v":""},{"$f":"IF(V237<>\"\", IF(INDEX('Full set Core Client Indicator'!$A$3:$AB$351, MATCH(Selection_Hide2!$A237, 'Full set Core Client Indicator'!$A$3:$A$351, 0), MATCH(Selection_Hide2!W$5, 'Full set Core Client Indicator'!$A$3:$AB$3, 0))=\"\", \"\",  INDEX('Full set Core Client Indicator'!$A$3:$AB$351, MATCH(Selection_Hide2!$A237, 'Full set Core Client Indicator'!$A$3:$A$351, 0), MATCH(Selection_Hide2!W$5, 'Full set Core Client Indicator'!$A$3:$AB$3, 0))), \"\")","v":""},{"$f":"IF(W237<>\"\", IF(INDEX('Full set Core Client Indicator'!$A$3:$AB$351, MATCH(Selection_Hide2!$A237, 'Full set Core Client Indicator'!$A$3:$A$351, 0), MATCH(Selection_Hide2!X$5, 'Full set Core Client Indicator'!$A$3:$AB$3, 0))=\"\", \"\",  INDEX('Full set Core Client Indicator'!$A$3:$AB$351, MATCH(Selection_Hide2!$A237, 'Full set Core Client Indicator'!$A$3:$A$351, 0), MATCH(Selection_Hide2!X$5, 'Full set Core Client Indicator'!$A$3:$AB$3, 0))), \"\")","v":""},{"$f":"IF(X237<>\"\", IF(INDEX('Full set Core Client Indicator'!$A$3:$AB$351, MATCH(Selection_Hide2!$A237, 'Full set Core Client Indicator'!$A$3:$A$351, 0), MATCH(Selection_Hide2!Y$5, 'Full set Core Client Indicator'!$A$3:$AB$3, 0))=\"\", \"\",  INDEX('Full set Core Client Indicator'!$A$3:$AB$351, MATCH(Selection_Hide2!$A237, 'Full set Core Client Indicator'!$A$3:$A$351, 0), MATCH(Selection_Hide2!Y$5, 'Full set Core Client Indicator'!$A$3:$AB$3, 0))), \"\")","v":""},{"$f":"IF(Y237<>\"\", IF(INDEX('Full set Core Client Indicator'!$A$3:$AB$351, MATCH(Selection_Hide2!$A237, 'Full set Core Client Indicator'!$A$3:$A$351, 0), MATCH(Selection_Hide2!Z$5, 'Full set Core Client Indicator'!$A$3:$AB$3, 0))=\"\", \"\",  INDEX('Full set Core Client Indicator'!$A$3:$AB$351, MATCH(Selection_Hide2!$A237, 'Full set Core Client Indicator'!$A$3:$A$351, 0), MATCH(Selection_Hide2!Z$5, 'Full set Core Client Indicator'!$A$3:$AB$3, 0))), \"\")","v":""},{"$f":"IF(Z237<>\"\", IF(INDEX('Full set Core Client Indicator'!$A$3:$AB$351, MATCH(Selection_Hide2!$A237, 'Full set Core Client Indicator'!$A$3:$A$351, 0), MATCH(Selection_Hide2!AA$5, 'Full set Core Client Indicator'!$A$3:$AB$3, 0))=\"\", \"\",  INDEX('Full set Core Client Indicator'!$A$3:$AB$351, MATCH(Selection_Hide2!$A237, 'Full set Core Client Indicator'!$A$3:$A$351, 0), MATCH(Selection_Hide2!AA$5, 'Full set Core Client Indicator'!$A$3:$AB$3, 0))), \"\")","v":""},{"$f":"IF(AA237<>\"\", IF(INDEX('Full set Core Client Indicator'!$A$3:$AB$351, MATCH(Selection_Hide2!$A237, 'Full set Core Client Indicator'!$A$3:$A$351, 0), MATCH(Selection_Hide2!AB$5, 'Full set Core Client Indicator'!$A$3:$AB$3, 0))=\"\", \"\",  INDEX('Full set Core Client Indicator'!$A$3:$AB$351, MATCH(Selection_Hide2!$A237, 'Full set Core Client Indicator'!$A$3:$A$351, 0), MATCH(Selection_Hide2!AB$5, 'Full set Core Client Indicator'!$A$3:$AB$3, 0))), \"\")","v":""}]
[{"$f":"IF(AND(Selection_Hide1!C236<>0, Selection_Hide1!C236<>\"Grand Total\"), Selection_Hide1!C236, \"\")","v":""},{"$f":"IF(A238<>\"\", IF(INDEX('Full set Core Client Indicator'!$A$3:$AB$351, MATCH(Selection_Hide2!$A238, 'Full set Core Client Indicator'!$A$3:$A$351, 0), MATCH(Selection_Hide2!B$5, 'Full set Core Client Indicator'!$A$3:$AB$3, 0))=\"\", \"\",  INDEX('Full set Core Client Indicator'!$A$3:$AB$351, MATCH(Selection_Hide2!$A238, 'Full set Core Client Indicator'!$A$3:$A$351, 0), MATCH(Selection_Hide2!B$5, 'Full set Core Client Indicator'!$A$3:$AB$3, 0))), \"\")","v":""},{"$f":"IF(B238<>\"\", IF(INDEX('Full set Core Client Indicator'!$A$3:$AB$351, MATCH(Selection_Hide2!$A238, 'Full set Core Client Indicator'!$A$3:$A$351, 0), MATCH(Selection_Hide2!C$5, 'Full set Core Client Indicator'!$A$3:$AB$3, 0))=\"\", \"\",  INDEX('Full set Core Client Indicator'!$A$3:$AB$351, MATCH(Selection_Hide2!$A238, 'Full set Core Client Indicator'!$A$3:$A$351, 0), MATCH(Selection_Hide2!C$5, 'Full set Core Client Indicator'!$A$3:$AB$3, 0))), \"\")","v":""},{"$f":"IF(C238<>\"\", IF(INDEX('Full set Core Client Indicator'!$A$3:$AB$351, MATCH(Selection_Hide2!$A238, 'Full set Core Client Indicator'!$A$3:$A$351, 0), MATCH(Selection_Hide2!D$5, 'Full set Core Client Indicator'!$A$3:$AB$3, 0))=\"\", \"\",  INDEX('Full set Core Client Indicator'!$A$3:$AB$351, MATCH(Selection_Hide2!$A238, 'Full set Core Client Indicator'!$A$3:$A$351, 0), MATCH(Selection_Hide2!D$5, 'Full set Core Client Indicator'!$A$3:$AB$3, 0))), \"\")","v":""},{"$f":"IF(D238<>\"\", IF(INDEX('Full set Core Client Indicator'!$A$3:$AB$351, MATCH(Selection_Hide2!$A238, 'Full set Core Client Indicator'!$A$3:$A$351, 0), MATCH(Selection_Hide2!E$5, 'Full set Core Client Indicator'!$A$3:$AB$3, 0))=\"\", \"\",  INDEX('Full set Core Client Indicator'!$A$3:$AB$351, MATCH(Selection_Hide2!$A238, 'Full set Core Client Indicator'!$A$3:$A$351, 0), MATCH(Selection_Hide2!E$5, 'Full set Core Client Indicator'!$A$3:$AB$3, 0))), \"\")","v":""},{"$f":"IF(E238<>\"\", IF(INDEX('Full set Core Client Indicator'!$A$3:$AB$351, MATCH(Selection_Hide2!$A238, 'Full set Core Client Indicator'!$A$3:$A$351, 0), MATCH(Selection_Hide2!F$5, 'Full set Core Client Indicator'!$A$3:$AB$3, 0))=\"\", \"\",  INDEX('Full set Core Client Indicator'!$A$3:$AB$351, MATCH(Selection_Hide2!$A238, 'Full set Core Client Indicator'!$A$3:$A$351, 0), MATCH(Selection_Hide2!F$5, 'Full set Core Client Indicator'!$A$3:$AB$3, 0))), \"\")","v":""},{"$f":"IF(F238<>\"\", IF(INDEX('Full set Core Client Indicator'!$A$3:$AB$351, MATCH(Selection_Hide2!$A238, 'Full set Core Client Indicator'!$A$3:$A$351, 0), MATCH(Selection_Hide2!G$5, 'Full set Core Client Indicator'!$A$3:$AB$3, 0))=\"\", \"\",  INDEX('Full set Core Client Indicator'!$A$3:$AB$351, MATCH(Selection_Hide2!$A238, 'Full set Core Client Indicator'!$A$3:$A$351, 0), MATCH(Selection_Hide2!G$5, 'Full set Core Client Indicator'!$A$3:$AB$3, 0))), \"\")","v":""},{"$f":"IF(G238<>\"\", IF(INDEX('Full set Core Client Indicator'!$A$3:$AB$351, MATCH(Selection_Hide2!$A238, 'Full set Core Client Indicator'!$A$3:$A$351, 0), MATCH(Selection_Hide2!H$5, 'Full set Core Client Indicator'!$A$3:$AB$3, 0))=\"\", \"\",  INDEX('Full set Core Client Indicator'!$A$3:$AB$351, MATCH(Selection_Hide2!$A238, 'Full set Core Client Indicator'!$A$3:$A$351, 0), MATCH(Selection_Hide2!H$5, 'Full set Core Client Indicator'!$A$3:$AB$3, 0))), \"\")","v":""},{"$f":"IF(H238<>\"\", IF(INDEX('Full set Core Client Indicator'!$A$3:$AB$351, MATCH(Selection_Hide2!$A238, 'Full set Core Client Indicator'!$A$3:$A$351, 0), MATCH(Selection_Hide2!I$5, 'Full set Core Client Indicator'!$A$3:$AB$3, 0))=\"\", \"\",  INDEX('Full set Core Client Indicator'!$A$3:$AB$351, MATCH(Selection_Hide2!$A238, 'Full set Core Client Indicator'!$A$3:$A$351, 0), MATCH(Selection_Hide2!I$5, 'Full set Core Client Indicator'!$A$3:$AB$3, 0))), \"\")","v":""},{"$f":"IF(I238<>\"\", IF(INDEX('Full set Core Client Indicator'!$A$3:$AB$351, MATCH(Selection_Hide2!$A238, 'Full set Core Client Indicator'!$A$3:$A$351, 0), MATCH(Selection_Hide2!J$5, 'Full set Core Client Indicator'!$A$3:$AB$3, 0))=\"\", \"\",  INDEX('Full set Core Client Indicator'!$A$3:$AB$351, MATCH(Selection_Hide2!$A238, 'Full set Core Client Indicator'!$A$3:$A$351, 0), MATCH(Selection_Hide2!J$5, 'Full set Core Client Indicator'!$A$3:$AB$3, 0))), \"\")","v":""},{"$f":"IF(J238<>\"\", IF(INDEX('Full set Core Client Indicator'!$A$3:$AB$351, MATCH(Selection_Hide2!$A238, 'Full set Core Client Indicator'!$A$3:$A$351, 0), MATCH(Selection_Hide2!K$5, 'Full set Core Client Indicator'!$A$3:$AB$3, 0))=\"\", \"\",  INDEX('Full set Core Client Indicator'!$A$3:$AB$351, MATCH(Selection_Hide2!$A238, 'Full set Core Client Indicator'!$A$3:$A$351, 0), MATCH(Selection_Hide2!K$5, 'Full set Core Client Indicator'!$A$3:$AB$3, 0))), \"\")","v":""},{"$f":"IF(K238<>\"\", IF(INDEX('Full set Core Client Indicator'!$A$3:$AB$351, MATCH(Selection_Hide2!$A238, 'Full set Core Client Indicator'!$A$3:$A$351, 0), MATCH(Selection_Hide2!L$5, 'Full set Core Client Indicator'!$A$3:$AB$3, 0))=\"\", \"\",  INDEX('Full set Core Client Indicator'!$A$3:$AB$351, MATCH(Selection_Hide2!$A238, 'Full set Core Client Indicator'!$A$3:$A$351, 0), MATCH(Selection_Hide2!L$5, 'Full set Core Client Indicator'!$A$3:$AB$3, 0))), \"\")","v":""},{"$f":"IF(L238<>\"\", IF(INDEX('Full set Core Client Indicator'!$A$3:$AB$351, MATCH(Selection_Hide2!$A238, 'Full set Core Client Indicator'!$A$3:$A$351, 0), MATCH(Selection_Hide2!M$5, 'Full set Core Client Indicator'!$A$3:$AB$3, 0))=\"\", \"\",  INDEX('Full set Core Client Indicator'!$A$3:$AB$351, MATCH(Selection_Hide2!$A238, 'Full set Core Client Indicator'!$A$3:$A$351, 0), MATCH(Selection_Hide2!M$5, 'Full set Core Client Indicator'!$A$3:$AB$3, 0))), \"\")","v":""},{"$f":"IF(M238<>\"\", IF(INDEX('Full set Core Client Indicator'!$A$3:$AB$351, MATCH(Selection_Hide2!$A238, 'Full set Core Client Indicator'!$A$3:$A$351, 0), MATCH(Selection_Hide2!N$5, 'Full set Core Client Indicator'!$A$3:$AB$3, 0))=\"\", \"\",  INDEX('Full set Core Client Indicator'!$A$3:$AB$351, MATCH(Selection_Hide2!$A238, 'Full set Core Client Indicator'!$A$3:$A$351, 0), MATCH(Selection_Hide2!N$5, 'Full set Core Client Indicator'!$A$3:$AB$3, 0))), \"\")","v":""},{"$f":"IF(N238<>\"\", IF(INDEX('Full set Core Client Indicator'!$A$3:$AB$351, MATCH(Selection_Hide2!$A238, 'Full set Core Client Indicator'!$A$3:$A$351, 0), MATCH(Selection_Hide2!O$5, 'Full set Core Client Indicator'!$A$3:$AB$3, 0))=\"\", \"\",  INDEX('Full set Core Client Indicator'!$A$3:$AB$351, MATCH(Selection_Hide2!$A238, 'Full set Core Client Indicator'!$A$3:$A$351, 0), MATCH(Selection_Hide2!O$5, 'Full set Core Client Indicator'!$A$3:$AB$3, 0))), \"\")","v":""},{"$f":"IF(O238<>\"\", IF(INDEX('Full set Core Client Indicator'!$A$3:$AB$351, MATCH(Selection_Hide2!$A238, 'Full set Core Client Indicator'!$A$3:$A$351, 0), MATCH(Selection_Hide2!P$5, 'Full set Core Client Indicator'!$A$3:$AB$3, 0))=\"\", \"\",  INDEX('Full set Core Client Indicator'!$A$3:$AB$351, MATCH(Selection_Hide2!$A238, 'Full set Core Client Indicator'!$A$3:$A$351, 0), MATCH(Selection_Hide2!P$5, 'Full set Core Client Indicator'!$A$3:$AB$3, 0))), \"\")","v":""},{"$f":"IF(P238<>\"\", IF(INDEX('Full set Core Client Indicator'!$A$3:$AB$351, MATCH(Selection_Hide2!$A238, 'Full set Core Client Indicator'!$A$3:$A$351, 0), MATCH(Selection_Hide2!Q$5, 'Full set Core Client Indicator'!$A$3:$AB$3, 0))=\"\", \"\",  INDEX('Full set Core Client Indicator'!$A$3:$AB$351, MATCH(Selection_Hide2!$A238, 'Full set Core Client Indicator'!$A$3:$A$351, 0), MATCH(Selection_Hide2!Q$5, 'Full set Core Client Indicator'!$A$3:$AB$3, 0))), \"\")","v":""},{"$f":"IF(Q238<>\"\", IF(INDEX('Full set Core Client Indicator'!$A$3:$AB$351, MATCH(Selection_Hide2!$A238, 'Full set Core Client Indicator'!$A$3:$A$351, 0), MATCH(Selection_Hide2!R$5, 'Full set Core Client Indicator'!$A$3:$AB$3, 0))=\"\", \"\",  INDEX('Full set Core Client Indicator'!$A$3:$AB$351, MATCH(Selection_Hide2!$A238, 'Full set Core Client Indicator'!$A$3:$A$351, 0), MATCH(Selection_Hide2!R$5, 'Full set Core Client Indicator'!$A$3:$AB$3, 0))), \"\")","v":""},{"$f":"IF(R238<>\"\", IF(INDEX('Full set Core Client Indicator'!$A$3:$AB$351, MATCH(Selection_Hide2!$A238, 'Full set Core Client Indicator'!$A$3:$A$351, 0), MATCH(Selection_Hide2!S$5, 'Full set Core Client Indicator'!$A$3:$AB$3, 0))=\"\", \"\",  INDEX('Full set Core Client Indicator'!$A$3:$AB$351, MATCH(Selection_Hide2!$A238, 'Full set Core Client Indicator'!$A$3:$A$351, 0), MATCH(Selection_Hide2!S$5, 'Full set Core Client Indicator'!$A$3:$AB$3, 0))), \"\")","v":""},{"$f":"IF(S238<>\"\", IF(INDEX('Full set Core Client Indicator'!$A$3:$AB$351, MATCH(Selection_Hide2!$A238, 'Full set Core Client Indicator'!$A$3:$A$351, 0), MATCH(Selection_Hide2!T$5, 'Full set Core Client Indicator'!$A$3:$AB$3, 0))=\"\", \"\",  INDEX('Full set Core Client Indicator'!$A$3:$AB$351, MATCH(Selection_Hide2!$A238, 'Full set Core Client Indicator'!$A$3:$A$351, 0), MATCH(Selection_Hide2!T$5, 'Full set Core Client Indicator'!$A$3:$AB$3, 0))), \"\")","v":""},{"$f":"IF(T238<>\"\", IF(INDEX('Full set Core Client Indicator'!$A$3:$AB$351, MATCH(Selection_Hide2!$A238, 'Full set Core Client Indicator'!$A$3:$A$351, 0), MATCH(Selection_Hide2!U$5, 'Full set Core Client Indicator'!$A$3:$AB$3, 0))=\"\", \"\",  INDEX('Full set Core Client Indicator'!$A$3:$AB$351, MATCH(Selection_Hide2!$A238, 'Full set Core Client Indicator'!$A$3:$A$351, 0), MATCH(Selection_Hide2!U$5, 'Full set Core Client Indicator'!$A$3:$AB$3, 0))), \"\")","v":""},{"$f":"IF(U238<>\"\", IF(INDEX('Full set Core Client Indicator'!$A$3:$AB$351, MATCH(Selection_Hide2!$A238, 'Full set Core Client Indicator'!$A$3:$A$351, 0), MATCH(Selection_Hide2!V$5, 'Full set Core Client Indicator'!$A$3:$AB$3, 0))=\"\", \"\",  INDEX('Full set Core Client Indicator'!$A$3:$AB$351, MATCH(Selection_Hide2!$A238, 'Full set Core Client Indicator'!$A$3:$A$351, 0), MATCH(Selection_Hide2!V$5, 'Full set Core Client Indicator'!$A$3:$AB$3, 0))), \"\")","v":""},{"$f":"IF(V238<>\"\", IF(INDEX('Full set Core Client Indicator'!$A$3:$AB$351, MATCH(Selection_Hide2!$A238, 'Full set Core Client Indicator'!$A$3:$A$351, 0), MATCH(Selection_Hide2!W$5, 'Full set Core Client Indicator'!$A$3:$AB$3, 0))=\"\", \"\",  INDEX('Full set Core Client Indicator'!$A$3:$AB$351, MATCH(Selection_Hide2!$A238, 'Full set Core Client Indicator'!$A$3:$A$351, 0), MATCH(Selection_Hide2!W$5, 'Full set Core Client Indicator'!$A$3:$AB$3, 0))), \"\")","v":""},{"$f":"IF(W238<>\"\", IF(INDEX('Full set Core Client Indicator'!$A$3:$AB$351, MATCH(Selection_Hide2!$A238, 'Full set Core Client Indicator'!$A$3:$A$351, 0), MATCH(Selection_Hide2!X$5, 'Full set Core Client Indicator'!$A$3:$AB$3, 0))=\"\", \"\",  INDEX('Full set Core Client Indicator'!$A$3:$AB$351, MATCH(Selection_Hide2!$A238, 'Full set Core Client Indicator'!$A$3:$A$351, 0), MATCH(Selection_Hide2!X$5, 'Full set Core Client Indicator'!$A$3:$AB$3, 0))), \"\")","v":""},{"$f":"IF(X238<>\"\", IF(INDEX('Full set Core Client Indicator'!$A$3:$AB$351, MATCH(Selection_Hide2!$A238, 'Full set Core Client Indicator'!$A$3:$A$351, 0), MATCH(Selection_Hide2!Y$5, 'Full set Core Client Indicator'!$A$3:$AB$3, 0))=\"\", \"\",  INDEX('Full set Core Client Indicator'!$A$3:$AB$351, MATCH(Selection_Hide2!$A238, 'Full set Core Client Indicator'!$A$3:$A$351, 0), MATCH(Selection_Hide2!Y$5, 'Full set Core Client Indicator'!$A$3:$AB$3, 0))), \"\")","v":""},{"$f":"IF(Y238<>\"\", IF(INDEX('Full set Core Client Indicator'!$A$3:$AB$351, MATCH(Selection_Hide2!$A238, 'Full set Core Client Indicator'!$A$3:$A$351, 0), MATCH(Selection_Hide2!Z$5, 'Full set Core Client Indicator'!$A$3:$AB$3, 0))=\"\", \"\",  INDEX('Full set Core Client Indicator'!$A$3:$AB$351, MATCH(Selection_Hide2!$A238, 'Full set Core Client Indicator'!$A$3:$A$351, 0), MATCH(Selection_Hide2!Z$5, 'Full set Core Client Indicator'!$A$3:$AB$3, 0))), \"\")","v":""},{"$f":"IF(Z238<>\"\", IF(INDEX('Full set Core Client Indicator'!$A$3:$AB$351, MATCH(Selection_Hide2!$A238, 'Full set Core Client Indicator'!$A$3:$A$351, 0), MATCH(Selection_Hide2!AA$5, 'Full set Core Client Indicator'!$A$3:$AB$3, 0))=\"\", \"\",  INDEX('Full set Core Client Indicator'!$A$3:$AB$351, MATCH(Selection_Hide2!$A238, 'Full set Core Client Indicator'!$A$3:$A$351, 0), MATCH(Selection_Hide2!AA$5, 'Full set Core Client Indicator'!$A$3:$AB$3, 0))), \"\")","v":""},{"$f":"IF(AA238<>\"\", IF(INDEX('Full set Core Client Indicator'!$A$3:$AB$351, MATCH(Selection_Hide2!$A238, 'Full set Core Client Indicator'!$A$3:$A$351, 0), MATCH(Selection_Hide2!AB$5, 'Full set Core Client Indicator'!$A$3:$AB$3, 0))=\"\", \"\",  INDEX('Full set Core Client Indicator'!$A$3:$AB$351, MATCH(Selection_Hide2!$A238, 'Full set Core Client Indicator'!$A$3:$A$351, 0), MATCH(Selection_Hide2!AB$5, 'Full set Core Client Indicator'!$A$3:$AB$3, 0))), \"\")","v":""}]
[{"$f":"IF(AND(Selection_Hide1!C237<>0, Selection_Hide1!C237<>\"Grand Total\"), Selection_Hide1!C237, \"\")","v":""},{"$f":"IF(A239<>\"\", IF(INDEX('Full set Core Client Indicator'!$A$3:$AB$351, MATCH(Selection_Hide2!$A239, 'Full set Core Client Indicator'!$A$3:$A$351, 0), MATCH(Selection_Hide2!B$5, 'Full set Core Client Indicator'!$A$3:$AB$3, 0))=\"\", \"\",  INDEX('Full set Core Client Indicator'!$A$3:$AB$351, MATCH(Selection_Hide2!$A239, 'Full set Core Client Indicator'!$A$3:$A$351, 0), MATCH(Selection_Hide2!B$5, 'Full set Core Client Indicator'!$A$3:$AB$3, 0))), \"\")","v":""},{"$f":"IF(B239<>\"\", IF(INDEX('Full set Core Client Indicator'!$A$3:$AB$351, MATCH(Selection_Hide2!$A239, 'Full set Core Client Indicator'!$A$3:$A$351, 0), MATCH(Selection_Hide2!C$5, 'Full set Core Client Indicator'!$A$3:$AB$3, 0))=\"\", \"\",  INDEX('Full set Core Client Indicator'!$A$3:$AB$351, MATCH(Selection_Hide2!$A239, 'Full set Core Client Indicator'!$A$3:$A$351, 0), MATCH(Selection_Hide2!C$5, 'Full set Core Client Indicator'!$A$3:$AB$3, 0))), \"\")","v":""},{"$f":"IF(C239<>\"\", IF(INDEX('Full set Core Client Indicator'!$A$3:$AB$351, MATCH(Selection_Hide2!$A239, 'Full set Core Client Indicator'!$A$3:$A$351, 0), MATCH(Selection_Hide2!D$5, 'Full set Core Client Indicator'!$A$3:$AB$3, 0))=\"\", \"\",  INDEX('Full set Core Client Indicator'!$A$3:$AB$351, MATCH(Selection_Hide2!$A239, 'Full set Core Client Indicator'!$A$3:$A$351, 0), MATCH(Selection_Hide2!D$5, 'Full set Core Client Indicator'!$A$3:$AB$3, 0))), \"\")","v":""},{"$f":"IF(D239<>\"\", IF(INDEX('Full set Core Client Indicator'!$A$3:$AB$351, MATCH(Selection_Hide2!$A239, 'Full set Core Client Indicator'!$A$3:$A$351, 0), MATCH(Selection_Hide2!E$5, 'Full set Core Client Indicator'!$A$3:$AB$3, 0))=\"\", \"\",  INDEX('Full set Core Client Indicator'!$A$3:$AB$351, MATCH(Selection_Hide2!$A239, 'Full set Core Client Indicator'!$A$3:$A$351, 0), MATCH(Selection_Hide2!E$5, 'Full set Core Client Indicator'!$A$3:$AB$3, 0))), \"\")","v":""},{"$f":"IF(E239<>\"\", IF(INDEX('Full set Core Client Indicator'!$A$3:$AB$351, MATCH(Selection_Hide2!$A239, 'Full set Core Client Indicator'!$A$3:$A$351, 0), MATCH(Selection_Hide2!F$5, 'Full set Core Client Indicator'!$A$3:$AB$3, 0))=\"\", \"\",  INDEX('Full set Core Client Indicator'!$A$3:$AB$351, MATCH(Selection_Hide2!$A239, 'Full set Core Client Indicator'!$A$3:$A$351, 0), MATCH(Selection_Hide2!F$5, 'Full set Core Client Indicator'!$A$3:$AB$3, 0))), \"\")","v":""},{"$f":"IF(F239<>\"\", IF(INDEX('Full set Core Client Indicator'!$A$3:$AB$351, MATCH(Selection_Hide2!$A239, 'Full set Core Client Indicator'!$A$3:$A$351, 0), MATCH(Selection_Hide2!G$5, 'Full set Core Client Indicator'!$A$3:$AB$3, 0))=\"\", \"\",  INDEX('Full set Core Client Indicator'!$A$3:$AB$351, MATCH(Selection_Hide2!$A239, 'Full set Core Client Indicator'!$A$3:$A$351, 0), MATCH(Selection_Hide2!G$5, 'Full set Core Client Indicator'!$A$3:$AB$3, 0))), \"\")","v":""},{"$f":"IF(G239<>\"\", IF(INDEX('Full set Core Client Indicator'!$A$3:$AB$351, MATCH(Selection_Hide2!$A239, 'Full set Core Client Indicator'!$A$3:$A$351, 0), MATCH(Selection_Hide2!H$5, 'Full set Core Client Indicator'!$A$3:$AB$3, 0))=\"\", \"\",  INDEX('Full set Core Client Indicator'!$A$3:$AB$351, MATCH(Selection_Hide2!$A239, 'Full set Core Client Indicator'!$A$3:$A$351, 0), MATCH(Selection_Hide2!H$5, 'Full set Core Client Indicator'!$A$3:$AB$3, 0))), \"\")","v":""},{"$f":"IF(H239<>\"\", IF(INDEX('Full set Core Client Indicator'!$A$3:$AB$351, MATCH(Selection_Hide2!$A239, 'Full set Core Client Indicator'!$A$3:$A$351, 0), MATCH(Selection_Hide2!I$5, 'Full set Core Client Indicator'!$A$3:$AB$3, 0))=\"\", \"\",  INDEX('Full set Core Client Indicator'!$A$3:$AB$351, MATCH(Selection_Hide2!$A239, 'Full set Core Client Indicator'!$A$3:$A$351, 0), MATCH(Selection_Hide2!I$5, 'Full set Core Client Indicator'!$A$3:$AB$3, 0))), \"\")","v":""},{"$f":"IF(I239<>\"\", IF(INDEX('Full set Core Client Indicator'!$A$3:$AB$351, MATCH(Selection_Hide2!$A239, 'Full set Core Client Indicator'!$A$3:$A$351, 0), MATCH(Selection_Hide2!J$5, 'Full set Core Client Indicator'!$A$3:$AB$3, 0))=\"\", \"\",  INDEX('Full set Core Client Indicator'!$A$3:$AB$351, MATCH(Selection_Hide2!$A239, 'Full set Core Client Indicator'!$A$3:$A$351, 0), MATCH(Selection_Hide2!J$5, 'Full set Core Client Indicator'!$A$3:$AB$3, 0))), \"\")","v":""},{"$f":"IF(J239<>\"\", IF(INDEX('Full set Core Client Indicator'!$A$3:$AB$351, MATCH(Selection_Hide2!$A239, 'Full set Core Client Indicator'!$A$3:$A$351, 0), MATCH(Selection_Hide2!K$5, 'Full set Core Client Indicator'!$A$3:$AB$3, 0))=\"\", \"\",  INDEX('Full set Core Client Indicator'!$A$3:$AB$351, MATCH(Selection_Hide2!$A239, 'Full set Core Client Indicator'!$A$3:$A$351, 0), MATCH(Selection_Hide2!K$5, 'Full set Core Client Indicator'!$A$3:$AB$3, 0))), \"\")","v":""},{"$f":"IF(K239<>\"\", IF(INDEX('Full set Core Client Indicator'!$A$3:$AB$351, MATCH(Selection_Hide2!$A239, 'Full set Core Client Indicator'!$A$3:$A$351, 0), MATCH(Selection_Hide2!L$5, 'Full set Core Client Indicator'!$A$3:$AB$3, 0))=\"\", \"\",  INDEX('Full set Core Client Indicator'!$A$3:$AB$351, MATCH(Selection_Hide2!$A239, 'Full set Core Client Indicator'!$A$3:$A$351, 0), MATCH(Selection_Hide2!L$5, 'Full set Core Client Indicator'!$A$3:$AB$3, 0))), \"\")","v":""},{"$f":"IF(L239<>\"\", IF(INDEX('Full set Core Client Indicator'!$A$3:$AB$351, MATCH(Selection_Hide2!$A239, 'Full set Core Client Indicator'!$A$3:$A$351, 0), MATCH(Selection_Hide2!M$5, 'Full set Core Client Indicator'!$A$3:$AB$3, 0))=\"\", \"\",  INDEX('Full set Core Client Indicator'!$A$3:$AB$351, MATCH(Selection_Hide2!$A239, 'Full set Core Client Indicator'!$A$3:$A$351, 0), MATCH(Selection_Hide2!M$5, 'Full set Core Client Indicator'!$A$3:$AB$3, 0))), \"\")","v":""},{"$f":"IF(M239<>\"\", IF(INDEX('Full set Core Client Indicator'!$A$3:$AB$351, MATCH(Selection_Hide2!$A239, 'Full set Core Client Indicator'!$A$3:$A$351, 0), MATCH(Selection_Hide2!N$5, 'Full set Core Client Indicator'!$A$3:$AB$3, 0))=\"\", \"\",  INDEX('Full set Core Client Indicator'!$A$3:$AB$351, MATCH(Selection_Hide2!$A239, 'Full set Core Client Indicator'!$A$3:$A$351, 0), MATCH(Selection_Hide2!N$5, 'Full set Core Client Indicator'!$A$3:$AB$3, 0))), \"\")","v":""},{"$f":"IF(N239<>\"\", IF(INDEX('Full set Core Client Indicator'!$A$3:$AB$351, MATCH(Selection_Hide2!$A239, 'Full set Core Client Indicator'!$A$3:$A$351, 0), MATCH(Selection_Hide2!O$5, 'Full set Core Client Indicator'!$A$3:$AB$3, 0))=\"\", \"\",  INDEX('Full set Core Client Indicator'!$A$3:$AB$351, MATCH(Selection_Hide2!$A239, 'Full set Core Client Indicator'!$A$3:$A$351, 0), MATCH(Selection_Hide2!O$5, 'Full set Core Client Indicator'!$A$3:$AB$3, 0))), \"\")","v":""},{"$f":"IF(O239<>\"\", IF(INDEX('Full set Core Client Indicator'!$A$3:$AB$351, MATCH(Selection_Hide2!$A239, 'Full set Core Client Indicator'!$A$3:$A$351, 0), MATCH(Selection_Hide2!P$5, 'Full set Core Client Indicator'!$A$3:$AB$3, 0))=\"\", \"\",  INDEX('Full set Core Client Indicator'!$A$3:$AB$351, MATCH(Selection_Hide2!$A239, 'Full set Core Client Indicator'!$A$3:$A$351, 0), MATCH(Selection_Hide2!P$5, 'Full set Core Client Indicator'!$A$3:$AB$3, 0))), \"\")","v":""},{"$f":"IF(P239<>\"\", IF(INDEX('Full set Core Client Indicator'!$A$3:$AB$351, MATCH(Selection_Hide2!$A239, 'Full set Core Client Indicator'!$A$3:$A$351, 0), MATCH(Selection_Hide2!Q$5, 'Full set Core Client Indicator'!$A$3:$AB$3, 0))=\"\", \"\",  INDEX('Full set Core Client Indicator'!$A$3:$AB$351, MATCH(Selection_Hide2!$A239, 'Full set Core Client Indicator'!$A$3:$A$351, 0), MATCH(Selection_Hide2!Q$5, 'Full set Core Client Indicator'!$A$3:$AB$3, 0))), \"\")","v":""},{"$f":"IF(Q239<>\"\", IF(INDEX('Full set Core Client Indicator'!$A$3:$AB$351, MATCH(Selection_Hide2!$A239, 'Full set Core Client Indicator'!$A$3:$A$351, 0), MATCH(Selection_Hide2!R$5, 'Full set Core Client Indicator'!$A$3:$AB$3, 0))=\"\", \"\",  INDEX('Full set Core Client Indicator'!$A$3:$AB$351, MATCH(Selection_Hide2!$A239, 'Full set Core Client Indicator'!$A$3:$A$351, 0), MATCH(Selection_Hide2!R$5, 'Full set Core Client Indicator'!$A$3:$AB$3, 0))), \"\")","v":""},{"$f":"IF(R239<>\"\", IF(INDEX('Full set Core Client Indicator'!$A$3:$AB$351, MATCH(Selection_Hide2!$A239, 'Full set Core Client Indicator'!$A$3:$A$351, 0), MATCH(Selection_Hide2!S$5, 'Full set Core Client Indicator'!$A$3:$AB$3, 0))=\"\", \"\",  INDEX('Full set Core Client Indicator'!$A$3:$AB$351, MATCH(Selection_Hide2!$A239, 'Full set Core Client Indicator'!$A$3:$A$351, 0), MATCH(Selection_Hide2!S$5, 'Full set Core Client Indicator'!$A$3:$AB$3, 0))), \"\")","v":""},{"$f":"IF(S239<>\"\", IF(INDEX('Full set Core Client Indicator'!$A$3:$AB$351, MATCH(Selection_Hide2!$A239, 'Full set Core Client Indicator'!$A$3:$A$351, 0), MATCH(Selection_Hide2!T$5, 'Full set Core Client Indicator'!$A$3:$AB$3, 0))=\"\", \"\",  INDEX('Full set Core Client Indicator'!$A$3:$AB$351, MATCH(Selection_Hide2!$A239, 'Full set Core Client Indicator'!$A$3:$A$351, 0), MATCH(Selection_Hide2!T$5, 'Full set Core Client Indicator'!$A$3:$AB$3, 0))), \"\")","v":""},{"$f":"IF(T239<>\"\", IF(INDEX('Full set Core Client Indicator'!$A$3:$AB$351, MATCH(Selection_Hide2!$A239, 'Full set Core Client Indicator'!$A$3:$A$351, 0), MATCH(Selection_Hide2!U$5, 'Full set Core Client Indicator'!$A$3:$AB$3, 0))=\"\", \"\",  INDEX('Full set Core Client Indicator'!$A$3:$AB$351, MATCH(Selection_Hide2!$A239, 'Full set Core Client Indicator'!$A$3:$A$351, 0), MATCH(Selection_Hide2!U$5, 'Full set Core Client Indicator'!$A$3:$AB$3, 0))), \"\")","v":""},{"$f":"IF(U239<>\"\", IF(INDEX('Full set Core Client Indicator'!$A$3:$AB$351, MATCH(Selection_Hide2!$A239, 'Full set Core Client Indicator'!$A$3:$A$351, 0), MATCH(Selection_Hide2!V$5, 'Full set Core Client Indicator'!$A$3:$AB$3, 0))=\"\", \"\",  INDEX('Full set Core Client Indicator'!$A$3:$AB$351, MATCH(Selection_Hide2!$A239, 'Full set Core Client Indicator'!$A$3:$A$351, 0), MATCH(Selection_Hide2!V$5, 'Full set Core Client Indicator'!$A$3:$AB$3, 0))), \"\")","v":""},{"$f":"IF(V239<>\"\", IF(INDEX('Full set Core Client Indicator'!$A$3:$AB$351, MATCH(Selection_Hide2!$A239, 'Full set Core Client Indicator'!$A$3:$A$351, 0), MATCH(Selection_Hide2!W$5, 'Full set Core Client Indicator'!$A$3:$AB$3, 0))=\"\", \"\",  INDEX('Full set Core Client Indicator'!$A$3:$AB$351, MATCH(Selection_Hide2!$A239, 'Full set Core Client Indicator'!$A$3:$A$351, 0), MATCH(Selection_Hide2!W$5, 'Full set Core Client Indicator'!$A$3:$AB$3, 0))), \"\")","v":""},{"$f":"IF(W239<>\"\", IF(INDEX('Full set Core Client Indicator'!$A$3:$AB$351, MATCH(Selection_Hide2!$A239, 'Full set Core Client Indicator'!$A$3:$A$351, 0), MATCH(Selection_Hide2!X$5, 'Full set Core Client Indicator'!$A$3:$AB$3, 0))=\"\", \"\",  INDEX('Full set Core Client Indicator'!$A$3:$AB$351, MATCH(Selection_Hide2!$A239, 'Full set Core Client Indicator'!$A$3:$A$351, 0), MATCH(Selection_Hide2!X$5, 'Full set Core Client Indicator'!$A$3:$AB$3, 0))), \"\")","v":""},{"$f":"IF(X239<>\"\", IF(INDEX('Full set Core Client Indicator'!$A$3:$AB$351, MATCH(Selection_Hide2!$A239, 'Full set Core Client Indicator'!$A$3:$A$351, 0), MATCH(Selection_Hide2!Y$5, 'Full set Core Client Indicator'!$A$3:$AB$3, 0))=\"\", \"\",  INDEX('Full set Core Client Indicator'!$A$3:$AB$351, MATCH(Selection_Hide2!$A239, 'Full set Core Client Indicator'!$A$3:$A$351, 0), MATCH(Selection_Hide2!Y$5, 'Full set Core Client Indicator'!$A$3:$AB$3, 0))), \"\")","v":""},{"$f":"IF(Y239<>\"\", IF(INDEX('Full set Core Client Indicator'!$A$3:$AB$351, MATCH(Selection_Hide2!$A239, 'Full set Core Client Indicator'!$A$3:$A$351, 0), MATCH(Selection_Hide2!Z$5, 'Full set Core Client Indicator'!$A$3:$AB$3, 0))=\"\", \"\",  INDEX('Full set Core Client Indicator'!$A$3:$AB$351, MATCH(Selection_Hide2!$A239, 'Full set Core Client Indicator'!$A$3:$A$351, 0), MATCH(Selection_Hide2!Z$5, 'Full set Core Client Indicator'!$A$3:$AB$3, 0))), \"\")","v":""},{"$f":"IF(Z239<>\"\", IF(INDEX('Full set Core Client Indicator'!$A$3:$AB$351, MATCH(Selection_Hide2!$A239, 'Full set Core Client Indicator'!$A$3:$A$351, 0), MATCH(Selection_Hide2!AA$5, 'Full set Core Client Indicator'!$A$3:$AB$3, 0))=\"\", \"\",  INDEX('Full set Core Client Indicator'!$A$3:$AB$351, MATCH(Selection_Hide2!$A239, 'Full set Core Client Indicator'!$A$3:$A$351, 0), MATCH(Selection_Hide2!AA$5, 'Full set Core Client Indicator'!$A$3:$AB$3, 0))), \"\")","v":""},{"$f":"IF(AA239<>\"\", IF(INDEX('Full set Core Client Indicator'!$A$3:$AB$351, MATCH(Selection_Hide2!$A239, 'Full set Core Client Indicator'!$A$3:$A$351, 0), MATCH(Selection_Hide2!AB$5, 'Full set Core Client Indicator'!$A$3:$AB$3, 0))=\"\", \"\",  INDEX('Full set Core Client Indicator'!$A$3:$AB$351, MATCH(Selection_Hide2!$A239, 'Full set Core Client Indicator'!$A$3:$A$351, 0), MATCH(Selection_Hide2!AB$5, 'Full set Core Client Indicator'!$A$3:$AB$3, 0))), \"\")","v":""}]
[{"$f":"IF(AND(Selection_Hide1!C238<>0, Selection_Hide1!C238<>\"Grand Total\"), Selection_Hide1!C238, \"\")","v":""},{"$f":"IF(A240<>\"\", IF(INDEX('Full set Core Client Indicator'!$A$3:$AB$351, MATCH(Selection_Hide2!$A240, 'Full set Core Client Indicator'!$A$3:$A$351, 0), MATCH(Selection_Hide2!B$5, 'Full set Core Client Indicator'!$A$3:$AB$3, 0))=\"\", \"\",  INDEX('Full set Core Client Indicator'!$A$3:$AB$351, MATCH(Selection_Hide2!$A240, 'Full set Core Client Indicator'!$A$3:$A$351, 0), MATCH(Selection_Hide2!B$5, 'Full set Core Client Indicator'!$A$3:$AB$3, 0))), \"\")","v":""},{"$f":"IF(B240<>\"\", IF(INDEX('Full set Core Client Indicator'!$A$3:$AB$351, MATCH(Selection_Hide2!$A240, 'Full set Core Client Indicator'!$A$3:$A$351, 0), MATCH(Selection_Hide2!C$5, 'Full set Core Client Indicator'!$A$3:$AB$3, 0))=\"\", \"\",  INDEX('Full set Core Client Indicator'!$A$3:$AB$351, MATCH(Selection_Hide2!$A240, 'Full set Core Client Indicator'!$A$3:$A$351, 0), MATCH(Selection_Hide2!C$5, 'Full set Core Client Indicator'!$A$3:$AB$3, 0))), \"\")","v":""},{"$f":"IF(C240<>\"\", IF(INDEX('Full set Core Client Indicator'!$A$3:$AB$351, MATCH(Selection_Hide2!$A240, 'Full set Core Client Indicator'!$A$3:$A$351, 0), MATCH(Selection_Hide2!D$5, 'Full set Core Client Indicator'!$A$3:$AB$3, 0))=\"\", \"\",  INDEX('Full set Core Client Indicator'!$A$3:$AB$351, MATCH(Selection_Hide2!$A240, 'Full set Core Client Indicator'!$A$3:$A$351, 0), MATCH(Selection_Hide2!D$5, 'Full set Core Client Indicator'!$A$3:$AB$3, 0))), \"\")","v":""},{"$f":"IF(D240<>\"\", IF(INDEX('Full set Core Client Indicator'!$A$3:$AB$351, MATCH(Selection_Hide2!$A240, 'Full set Core Client Indicator'!$A$3:$A$351, 0), MATCH(Selection_Hide2!E$5, 'Full set Core Client Indicator'!$A$3:$AB$3, 0))=\"\", \"\",  INDEX('Full set Core Client Indicator'!$A$3:$AB$351, MATCH(Selection_Hide2!$A240, 'Full set Core Client Indicator'!$A$3:$A$351, 0), MATCH(Selection_Hide2!E$5, 'Full set Core Client Indicator'!$A$3:$AB$3, 0))), \"\")","v":""},{"$f":"IF(E240<>\"\", IF(INDEX('Full set Core Client Indicator'!$A$3:$AB$351, MATCH(Selection_Hide2!$A240, 'Full set Core Client Indicator'!$A$3:$A$351, 0), MATCH(Selection_Hide2!F$5, 'Full set Core Client Indicator'!$A$3:$AB$3, 0))=\"\", \"\",  INDEX('Full set Core Client Indicator'!$A$3:$AB$351, MATCH(Selection_Hide2!$A240, 'Full set Core Client Indicator'!$A$3:$A$351, 0), MATCH(Selection_Hide2!F$5, 'Full set Core Client Indicator'!$A$3:$AB$3, 0))), \"\")","v":""},{"$f":"IF(F240<>\"\", IF(INDEX('Full set Core Client Indicator'!$A$3:$AB$351, MATCH(Selection_Hide2!$A240, 'Full set Core Client Indicator'!$A$3:$A$351, 0), MATCH(Selection_Hide2!G$5, 'Full set Core Client Indicator'!$A$3:$AB$3, 0))=\"\", \"\",  INDEX('Full set Core Client Indicator'!$A$3:$AB$351, MATCH(Selection_Hide2!$A240, 'Full set Core Client Indicator'!$A$3:$A$351, 0), MATCH(Selection_Hide2!G$5, 'Full set Core Client Indicator'!$A$3:$AB$3, 0))), \"\")","v":""},{"$f":"IF(G240<>\"\", IF(INDEX('Full set Core Client Indicator'!$A$3:$AB$351, MATCH(Selection_Hide2!$A240, 'Full set Core Client Indicator'!$A$3:$A$351, 0), MATCH(Selection_Hide2!H$5, 'Full set Core Client Indicator'!$A$3:$AB$3, 0))=\"\", \"\",  INDEX('Full set Core Client Indicator'!$A$3:$AB$351, MATCH(Selection_Hide2!$A240, 'Full set Core Client Indicator'!$A$3:$A$351, 0), MATCH(Selection_Hide2!H$5, 'Full set Core Client Indicator'!$A$3:$AB$3, 0))), \"\")","v":""},{"$f":"IF(H240<>\"\", IF(INDEX('Full set Core Client Indicator'!$A$3:$AB$351, MATCH(Selection_Hide2!$A240, 'Full set Core Client Indicator'!$A$3:$A$351, 0), MATCH(Selection_Hide2!I$5, 'Full set Core Client Indicator'!$A$3:$AB$3, 0))=\"\", \"\",  INDEX('Full set Core Client Indicator'!$A$3:$AB$351, MATCH(Selection_Hide2!$A240, 'Full set Core Client Indicator'!$A$3:$A$351, 0), MATCH(Selection_Hide2!I$5, 'Full set Core Client Indicator'!$A$3:$AB$3, 0))), \"\")","v":""},{"$f":"IF(I240<>\"\", IF(INDEX('Full set Core Client Indicator'!$A$3:$AB$351, MATCH(Selection_Hide2!$A240, 'Full set Core Client Indicator'!$A$3:$A$351, 0), MATCH(Selection_Hide2!J$5, 'Full set Core Client Indicator'!$A$3:$AB$3, 0))=\"\", \"\",  INDEX('Full set Core Client Indicator'!$A$3:$AB$351, MATCH(Selection_Hide2!$A240, 'Full set Core Client Indicator'!$A$3:$A$351, 0), MATCH(Selection_Hide2!J$5, 'Full set Core Client Indicator'!$A$3:$AB$3, 0))), \"\")","v":""},{"$f":"IF(J240<>\"\", IF(INDEX('Full set Core Client Indicator'!$A$3:$AB$351, MATCH(Selection_Hide2!$A240, 'Full set Core Client Indicator'!$A$3:$A$351, 0), MATCH(Selection_Hide2!K$5, 'Full set Core Client Indicator'!$A$3:$AB$3, 0))=\"\", \"\",  INDEX('Full set Core Client Indicator'!$A$3:$AB$351, MATCH(Selection_Hide2!$A240, 'Full set Core Client Indicator'!$A$3:$A$351, 0), MATCH(Selection_Hide2!K$5, 'Full set Core Client Indicator'!$A$3:$AB$3, 0))), \"\")","v":""},{"$f":"IF(K240<>\"\", IF(INDEX('Full set Core Client Indicator'!$A$3:$AB$351, MATCH(Selection_Hide2!$A240, 'Full set Core Client Indicator'!$A$3:$A$351, 0), MATCH(Selection_Hide2!L$5, 'Full set Core Client Indicator'!$A$3:$AB$3, 0))=\"\", \"\",  INDEX('Full set Core Client Indicator'!$A$3:$AB$351, MATCH(Selection_Hide2!$A240, 'Full set Core Client Indicator'!$A$3:$A$351, 0), MATCH(Selection_Hide2!L$5, 'Full set Core Client Indicator'!$A$3:$AB$3, 0))), \"\")","v":""},{"$f":"IF(L240<>\"\", IF(INDEX('Full set Core Client Indicator'!$A$3:$AB$351, MATCH(Selection_Hide2!$A240, 'Full set Core Client Indicator'!$A$3:$A$351, 0), MATCH(Selection_Hide2!M$5, 'Full set Core Client Indicator'!$A$3:$AB$3, 0))=\"\", \"\",  INDEX('Full set Core Client Indicator'!$A$3:$AB$351, MATCH(Selection_Hide2!$A240, 'Full set Core Client Indicator'!$A$3:$A$351, 0), MATCH(Selection_Hide2!M$5, 'Full set Core Client Indicator'!$A$3:$AB$3, 0))), \"\")","v":""},{"$f":"IF(M240<>\"\", IF(INDEX('Full set Core Client Indicator'!$A$3:$AB$351, MATCH(Selection_Hide2!$A240, 'Full set Core Client Indicator'!$A$3:$A$351, 0), MATCH(Selection_Hide2!N$5, 'Full set Core Client Indicator'!$A$3:$AB$3, 0))=\"\", \"\",  INDEX('Full set Core Client Indicator'!$A$3:$AB$351, MATCH(Selection_Hide2!$A240, 'Full set Core Client Indicator'!$A$3:$A$351, 0), MATCH(Selection_Hide2!N$5, 'Full set Core Client Indicator'!$A$3:$AB$3, 0))), \"\")","v":""},{"$f":"IF(N240<>\"\", IF(INDEX('Full set Core Client Indicator'!$A$3:$AB$351, MATCH(Selection_Hide2!$A240, 'Full set Core Client Indicator'!$A$3:$A$351, 0), MATCH(Selection_Hide2!O$5, 'Full set Core Client Indicator'!$A$3:$AB$3, 0))=\"\", \"\",  INDEX('Full set Core Client Indicator'!$A$3:$AB$351, MATCH(Selection_Hide2!$A240, 'Full set Core Client Indicator'!$A$3:$A$351, 0), MATCH(Selection_Hide2!O$5, 'Full set Core Client Indicator'!$A$3:$AB$3, 0))), \"\")","v":""},{"$f":"IF(O240<>\"\", IF(INDEX('Full set Core Client Indicator'!$A$3:$AB$351, MATCH(Selection_Hide2!$A240, 'Full set Core Client Indicator'!$A$3:$A$351, 0), MATCH(Selection_Hide2!P$5, 'Full set Core Client Indicator'!$A$3:$AB$3, 0))=\"\", \"\",  INDEX('Full set Core Client Indicator'!$A$3:$AB$351, MATCH(Selection_Hide2!$A240, 'Full set Core Client Indicator'!$A$3:$A$351, 0), MATCH(Selection_Hide2!P$5, 'Full set Core Client Indicator'!$A$3:$AB$3, 0))), \"\")","v":""},{"$f":"IF(P240<>\"\", IF(INDEX('Full set Core Client Indicator'!$A$3:$AB$351, MATCH(Selection_Hide2!$A240, 'Full set Core Client Indicator'!$A$3:$A$351, 0), MATCH(Selection_Hide2!Q$5, 'Full set Core Client Indicator'!$A$3:$AB$3, 0))=\"\", \"\",  INDEX('Full set Core Client Indicator'!$A$3:$AB$351, MATCH(Selection_Hide2!$A240, 'Full set Core Client Indicator'!$A$3:$A$351, 0), MATCH(Selection_Hide2!Q$5, 'Full set Core Client Indicator'!$A$3:$AB$3, 0))), \"\")","v":""},{"$f":"IF(Q240<>\"\", IF(INDEX('Full set Core Client Indicator'!$A$3:$AB$351, MATCH(Selection_Hide2!$A240, 'Full set Core Client Indicator'!$A$3:$A$351, 0), MATCH(Selection_Hide2!R$5, 'Full set Core Client Indicator'!$A$3:$AB$3, 0))=\"\", \"\",  INDEX('Full set Core Client Indicator'!$A$3:$AB$351, MATCH(Selection_Hide2!$A240, 'Full set Core Client Indicator'!$A$3:$A$351, 0), MATCH(Selection_Hide2!R$5, 'Full set Core Client Indicator'!$A$3:$AB$3, 0))), \"\")","v":""},{"$f":"IF(R240<>\"\", IF(INDEX('Full set Core Client Indicator'!$A$3:$AB$351, MATCH(Selection_Hide2!$A240, 'Full set Core Client Indicator'!$A$3:$A$351, 0), MATCH(Selection_Hide2!S$5, 'Full set Core Client Indicator'!$A$3:$AB$3, 0))=\"\", \"\",  INDEX('Full set Core Client Indicator'!$A$3:$AB$351, MATCH(Selection_Hide2!$A240, 'Full set Core Client Indicator'!$A$3:$A$351, 0), MATCH(Selection_Hide2!S$5, 'Full set Core Client Indicator'!$A$3:$AB$3, 0))), \"\")","v":""},{"$f":"IF(S240<>\"\", IF(INDEX('Full set Core Client Indicator'!$A$3:$AB$351, MATCH(Selection_Hide2!$A240, 'Full set Core Client Indicator'!$A$3:$A$351, 0), MATCH(Selection_Hide2!T$5, 'Full set Core Client Indicator'!$A$3:$AB$3, 0))=\"\", \"\",  INDEX('Full set Core Client Indicator'!$A$3:$AB$351, MATCH(Selection_Hide2!$A240, 'Full set Core Client Indicator'!$A$3:$A$351, 0), MATCH(Selection_Hide2!T$5, 'Full set Core Client Indicator'!$A$3:$AB$3, 0))), \"\")","v":""},{"$f":"IF(T240<>\"\", IF(INDEX('Full set Core Client Indicator'!$A$3:$AB$351, MATCH(Selection_Hide2!$A240, 'Full set Core Client Indicator'!$A$3:$A$351, 0), MATCH(Selection_Hide2!U$5, 'Full set Core Client Indicator'!$A$3:$AB$3, 0))=\"\", \"\",  INDEX('Full set Core Client Indicator'!$A$3:$AB$351, MATCH(Selection_Hide2!$A240, 'Full set Core Client Indicator'!$A$3:$A$351, 0), MATCH(Selection_Hide2!U$5, 'Full set Core Client Indicator'!$A$3:$AB$3, 0))), \"\")","v":""},{"$f":"IF(U240<>\"\", IF(INDEX('Full set Core Client Indicator'!$A$3:$AB$351, MATCH(Selection_Hide2!$A240, 'Full set Core Client Indicator'!$A$3:$A$351, 0), MATCH(Selection_Hide2!V$5, 'Full set Core Client Indicator'!$A$3:$AB$3, 0))=\"\", \"\",  INDEX('Full set Core Client Indicator'!$A$3:$AB$351, MATCH(Selection_Hide2!$A240, 'Full set Core Client Indicator'!$A$3:$A$351, 0), MATCH(Selection_Hide2!V$5, 'Full set Core Client Indicator'!$A$3:$AB$3, 0))), \"\")","v":""},{"$f":"IF(V240<>\"\", IF(INDEX('Full set Core Client Indicator'!$A$3:$AB$351, MATCH(Selection_Hide2!$A240, 'Full set Core Client Indicator'!$A$3:$A$351, 0), MATCH(Selection_Hide2!W$5, 'Full set Core Client Indicator'!$A$3:$AB$3, 0))=\"\", \"\",  INDEX('Full set Core Client Indicator'!$A$3:$AB$351, MATCH(Selection_Hide2!$A240, 'Full set Core Client Indicator'!$A$3:$A$351, 0), MATCH(Selection_Hide2!W$5, 'Full set Core Client Indicator'!$A$3:$AB$3, 0))), \"\")","v":""},{"$f":"IF(W240<>\"\", IF(INDEX('Full set Core Client Indicator'!$A$3:$AB$351, MATCH(Selection_Hide2!$A240, 'Full set Core Client Indicator'!$A$3:$A$351, 0), MATCH(Selection_Hide2!X$5, 'Full set Core Client Indicator'!$A$3:$AB$3, 0))=\"\", \"\",  INDEX('Full set Core Client Indicator'!$A$3:$AB$351, MATCH(Selection_Hide2!$A240, 'Full set Core Client Indicator'!$A$3:$A$351, 0), MATCH(Selection_Hide2!X$5, 'Full set Core Client Indicator'!$A$3:$AB$3, 0))), \"\")","v":""},{"$f":"IF(X240<>\"\", IF(INDEX('Full set Core Client Indicator'!$A$3:$AB$351, MATCH(Selection_Hide2!$A240, 'Full set Core Client Indicator'!$A$3:$A$351, 0), MATCH(Selection_Hide2!Y$5, 'Full set Core Client Indicator'!$A$3:$AB$3, 0))=\"\", \"\",  INDEX('Full set Core Client Indicator'!$A$3:$AB$351, MATCH(Selection_Hide2!$A240, 'Full set Core Client Indicator'!$A$3:$A$351, 0), MATCH(Selection_Hide2!Y$5, 'Full set Core Client Indicator'!$A$3:$AB$3, 0))), \"\")","v":""},{"$f":"IF(Y240<>\"\", IF(INDEX('Full set Core Client Indicator'!$A$3:$AB$351, MATCH(Selection_Hide2!$A240, 'Full set Core Client Indicator'!$A$3:$A$351, 0), MATCH(Selection_Hide2!Z$5, 'Full set Core Client Indicator'!$A$3:$AB$3, 0))=\"\", \"\",  INDEX('Full set Core Client Indicator'!$A$3:$AB$351, MATCH(Selection_Hide2!$A240, 'Full set Core Client Indicator'!$A$3:$A$351, 0), MATCH(Selection_Hide2!Z$5, 'Full set Core Client Indicator'!$A$3:$AB$3, 0))), \"\")","v":""},{"$f":"IF(Z240<>\"\", IF(INDEX('Full set Core Client Indicator'!$A$3:$AB$351, MATCH(Selection_Hide2!$A240, 'Full set Core Client Indicator'!$A$3:$A$351, 0), MATCH(Selection_Hide2!AA$5, 'Full set Core Client Indicator'!$A$3:$AB$3, 0))=\"\", \"\",  INDEX('Full set Core Client Indicator'!$A$3:$AB$351, MATCH(Selection_Hide2!$A240, 'Full set Core Client Indicator'!$A$3:$A$351, 0), MATCH(Selection_Hide2!AA$5, 'Full set Core Client Indicator'!$A$3:$AB$3, 0))), \"\")","v":""},{"$f":"IF(AA240<>\"\", IF(INDEX('Full set Core Client Indicator'!$A$3:$AB$351, MATCH(Selection_Hide2!$A240, 'Full set Core Client Indicator'!$A$3:$A$351, 0), MATCH(Selection_Hide2!AB$5, 'Full set Core Client Indicator'!$A$3:$AB$3, 0))=\"\", \"\",  INDEX('Full set Core Client Indicator'!$A$3:$AB$351, MATCH(Selection_Hide2!$A240, 'Full set Core Client Indicator'!$A$3:$A$351, 0), MATCH(Selection_Hide2!AB$5, 'Full set Core Client Indicator'!$A$3:$AB$3, 0))), \"\")","v":""}]
[{"$f":"IF(AND(Selection_Hide1!C239<>0, Selection_Hide1!C239<>\"Grand Total\"), Selection_Hide1!C239, \"\")","v":""},{"$f":"IF(A241<>\"\", IF(INDEX('Full set Core Client Indicator'!$A$3:$AB$351, MATCH(Selection_Hide2!$A241, 'Full set Core Client Indicator'!$A$3:$A$351, 0), MATCH(Selection_Hide2!B$5, 'Full set Core Client Indicator'!$A$3:$AB$3, 0))=\"\", \"\",  INDEX('Full set Core Client Indicator'!$A$3:$AB$351, MATCH(Selection_Hide2!$A241, 'Full set Core Client Indicator'!$A$3:$A$351, 0), MATCH(Selection_Hide2!B$5, 'Full set Core Client Indicator'!$A$3:$AB$3, 0))), \"\")","v":""},{"$f":"IF(B241<>\"\", IF(INDEX('Full set Core Client Indicator'!$A$3:$AB$351, MATCH(Selection_Hide2!$A241, 'Full set Core Client Indicator'!$A$3:$A$351, 0), MATCH(Selection_Hide2!C$5, 'Full set Core Client Indicator'!$A$3:$AB$3, 0))=\"\", \"\",  INDEX('Full set Core Client Indicator'!$A$3:$AB$351, MATCH(Selection_Hide2!$A241, 'Full set Core Client Indicator'!$A$3:$A$351, 0), MATCH(Selection_Hide2!C$5, 'Full set Core Client Indicator'!$A$3:$AB$3, 0))), \"\")","v":""},{"$f":"IF(C241<>\"\", IF(INDEX('Full set Core Client Indicator'!$A$3:$AB$351, MATCH(Selection_Hide2!$A241, 'Full set Core Client Indicator'!$A$3:$A$351, 0), MATCH(Selection_Hide2!D$5, 'Full set Core Client Indicator'!$A$3:$AB$3, 0))=\"\", \"\",  INDEX('Full set Core Client Indicator'!$A$3:$AB$351, MATCH(Selection_Hide2!$A241, 'Full set Core Client Indicator'!$A$3:$A$351, 0), MATCH(Selection_Hide2!D$5, 'Full set Core Client Indicator'!$A$3:$AB$3, 0))), \"\")","v":""},{"$f":"IF(D241<>\"\", IF(INDEX('Full set Core Client Indicator'!$A$3:$AB$351, MATCH(Selection_Hide2!$A241, 'Full set Core Client Indicator'!$A$3:$A$351, 0), MATCH(Selection_Hide2!E$5, 'Full set Core Client Indicator'!$A$3:$AB$3, 0))=\"\", \"\",  INDEX('Full set Core Client Indicator'!$A$3:$AB$351, MATCH(Selection_Hide2!$A241, 'Full set Core Client Indicator'!$A$3:$A$351, 0), MATCH(Selection_Hide2!E$5, 'Full set Core Client Indicator'!$A$3:$AB$3, 0))), \"\")","v":""},{"$f":"IF(E241<>\"\", IF(INDEX('Full set Core Client Indicator'!$A$3:$AB$351, MATCH(Selection_Hide2!$A241, 'Full set Core Client Indicator'!$A$3:$A$351, 0), MATCH(Selection_Hide2!F$5, 'Full set Core Client Indicator'!$A$3:$AB$3, 0))=\"\", \"\",  INDEX('Full set Core Client Indicator'!$A$3:$AB$351, MATCH(Selection_Hide2!$A241, 'Full set Core Client Indicator'!$A$3:$A$351, 0), MATCH(Selection_Hide2!F$5, 'Full set Core Client Indicator'!$A$3:$AB$3, 0))), \"\")","v":""},{"$f":"IF(F241<>\"\", IF(INDEX('Full set Core Client Indicator'!$A$3:$AB$351, MATCH(Selection_Hide2!$A241, 'Full set Core Client Indicator'!$A$3:$A$351, 0), MATCH(Selection_Hide2!G$5, 'Full set Core Client Indicator'!$A$3:$AB$3, 0))=\"\", \"\",  INDEX('Full set Core Client Indicator'!$A$3:$AB$351, MATCH(Selection_Hide2!$A241, 'Full set Core Client Indicator'!$A$3:$A$351, 0), MATCH(Selection_Hide2!G$5, 'Full set Core Client Indicator'!$A$3:$AB$3, 0))), \"\")","v":""},{"$f":"IF(G241<>\"\", IF(INDEX('Full set Core Client Indicator'!$A$3:$AB$351, MATCH(Selection_Hide2!$A241, 'Full set Core Client Indicator'!$A$3:$A$351, 0), MATCH(Selection_Hide2!H$5, 'Full set Core Client Indicator'!$A$3:$AB$3, 0))=\"\", \"\",  INDEX('Full set Core Client Indicator'!$A$3:$AB$351, MATCH(Selection_Hide2!$A241, 'Full set Core Client Indicator'!$A$3:$A$351, 0), MATCH(Selection_Hide2!H$5, 'Full set Core Client Indicator'!$A$3:$AB$3, 0))), \"\")","v":""},{"$f":"IF(H241<>\"\", IF(INDEX('Full set Core Client Indicator'!$A$3:$AB$351, MATCH(Selection_Hide2!$A241, 'Full set Core Client Indicator'!$A$3:$A$351, 0), MATCH(Selection_Hide2!I$5, 'Full set Core Client Indicator'!$A$3:$AB$3, 0))=\"\", \"\",  INDEX('Full set Core Client Indicator'!$A$3:$AB$351, MATCH(Selection_Hide2!$A241, 'Full set Core Client Indicator'!$A$3:$A$351, 0), MATCH(Selection_Hide2!I$5, 'Full set Core Client Indicator'!$A$3:$AB$3, 0))), \"\")","v":""},{"$f":"IF(I241<>\"\", IF(INDEX('Full set Core Client Indicator'!$A$3:$AB$351, MATCH(Selection_Hide2!$A241, 'Full set Core Client Indicator'!$A$3:$A$351, 0), MATCH(Selection_Hide2!J$5, 'Full set Core Client Indicator'!$A$3:$AB$3, 0))=\"\", \"\",  INDEX('Full set Core Client Indicator'!$A$3:$AB$351, MATCH(Selection_Hide2!$A241, 'Full set Core Client Indicator'!$A$3:$A$351, 0), MATCH(Selection_Hide2!J$5, 'Full set Core Client Indicator'!$A$3:$AB$3, 0))), \"\")","v":""},{"$f":"IF(J241<>\"\", IF(INDEX('Full set Core Client Indicator'!$A$3:$AB$351, MATCH(Selection_Hide2!$A241, 'Full set Core Client Indicator'!$A$3:$A$351, 0), MATCH(Selection_Hide2!K$5, 'Full set Core Client Indicator'!$A$3:$AB$3, 0))=\"\", \"\",  INDEX('Full set Core Client Indicator'!$A$3:$AB$351, MATCH(Selection_Hide2!$A241, 'Full set Core Client Indicator'!$A$3:$A$351, 0), MATCH(Selection_Hide2!K$5, 'Full set Core Client Indicator'!$A$3:$AB$3, 0))), \"\")","v":""},{"$f":"IF(K241<>\"\", IF(INDEX('Full set Core Client Indicator'!$A$3:$AB$351, MATCH(Selection_Hide2!$A241, 'Full set Core Client Indicator'!$A$3:$A$351, 0), MATCH(Selection_Hide2!L$5, 'Full set Core Client Indicator'!$A$3:$AB$3, 0))=\"\", \"\",  INDEX('Full set Core Client Indicator'!$A$3:$AB$351, MATCH(Selection_Hide2!$A241, 'Full set Core Client Indicator'!$A$3:$A$351, 0), MATCH(Selection_Hide2!L$5, 'Full set Core Client Indicator'!$A$3:$AB$3, 0))), \"\")","v":""},{"$f":"IF(L241<>\"\", IF(INDEX('Full set Core Client Indicator'!$A$3:$AB$351, MATCH(Selection_Hide2!$A241, 'Full set Core Client Indicator'!$A$3:$A$351, 0), MATCH(Selection_Hide2!M$5, 'Full set Core Client Indicator'!$A$3:$AB$3, 0))=\"\", \"\",  INDEX('Full set Core Client Indicator'!$A$3:$AB$351, MATCH(Selection_Hide2!$A241, 'Full set Core Client Indicator'!$A$3:$A$351, 0), MATCH(Selection_Hide2!M$5, 'Full set Core Client Indicator'!$A$3:$AB$3, 0))), \"\")","v":""},{"$f":"IF(M241<>\"\", IF(INDEX('Full set Core Client Indicator'!$A$3:$AB$351, MATCH(Selection_Hide2!$A241, 'Full set Core Client Indicator'!$A$3:$A$351, 0), MATCH(Selection_Hide2!N$5, 'Full set Core Client Indicator'!$A$3:$AB$3, 0))=\"\", \"\",  INDEX('Full set Core Client Indicator'!$A$3:$AB$351, MATCH(Selection_Hide2!$A241, 'Full set Core Client Indicator'!$A$3:$A$351, 0), MATCH(Selection_Hide2!N$5, 'Full set Core Client Indicator'!$A$3:$AB$3, 0))), \"\")","v":""},{"$f":"IF(N241<>\"\", IF(INDEX('Full set Core Client Indicator'!$A$3:$AB$351, MATCH(Selection_Hide2!$A241, 'Full set Core Client Indicator'!$A$3:$A$351, 0), MATCH(Selection_Hide2!O$5, 'Full set Core Client Indicator'!$A$3:$AB$3, 0))=\"\", \"\",  INDEX('Full set Core Client Indicator'!$A$3:$AB$351, MATCH(Selection_Hide2!$A241, 'Full set Core Client Indicator'!$A$3:$A$351, 0), MATCH(Selection_Hide2!O$5, 'Full set Core Client Indicator'!$A$3:$AB$3, 0))), \"\")","v":""},{"$f":"IF(O241<>\"\", IF(INDEX('Full set Core Client Indicator'!$A$3:$AB$351, MATCH(Selection_Hide2!$A241, 'Full set Core Client Indicator'!$A$3:$A$351, 0), MATCH(Selection_Hide2!P$5, 'Full set Core Client Indicator'!$A$3:$AB$3, 0))=\"\", \"\",  INDEX('Full set Core Client Indicator'!$A$3:$AB$351, MATCH(Selection_Hide2!$A241, 'Full set Core Client Indicator'!$A$3:$A$351, 0), MATCH(Selection_Hide2!P$5, 'Full set Core Client Indicator'!$A$3:$AB$3, 0))), \"\")","v":""},{"$f":"IF(P241<>\"\", IF(INDEX('Full set Core Client Indicator'!$A$3:$AB$351, MATCH(Selection_Hide2!$A241, 'Full set Core Client Indicator'!$A$3:$A$351, 0), MATCH(Selection_Hide2!Q$5, 'Full set Core Client Indicator'!$A$3:$AB$3, 0))=\"\", \"\",  INDEX('Full set Core Client Indicator'!$A$3:$AB$351, MATCH(Selection_Hide2!$A241, 'Full set Core Client Indicator'!$A$3:$A$351, 0), MATCH(Selection_Hide2!Q$5, 'Full set Core Client Indicator'!$A$3:$AB$3, 0))), \"\")","v":""},{"$f":"IF(Q241<>\"\", IF(INDEX('Full set Core Client Indicator'!$A$3:$AB$351, MATCH(Selection_Hide2!$A241, 'Full set Core Client Indicator'!$A$3:$A$351, 0), MATCH(Selection_Hide2!R$5, 'Full set Core Client Indicator'!$A$3:$AB$3, 0))=\"\", \"\",  INDEX('Full set Core Client Indicator'!$A$3:$AB$351, MATCH(Selection_Hide2!$A241, 'Full set Core Client Indicator'!$A$3:$A$351, 0), MATCH(Selection_Hide2!R$5, 'Full set Core Client Indicator'!$A$3:$AB$3, 0))), \"\")","v":""},{"$f":"IF(R241<>\"\", IF(INDEX('Full set Core Client Indicator'!$A$3:$AB$351, MATCH(Selection_Hide2!$A241, 'Full set Core Client Indicator'!$A$3:$A$351, 0), MATCH(Selection_Hide2!S$5, 'Full set Core Client Indicator'!$A$3:$AB$3, 0))=\"\", \"\",  INDEX('Full set Core Client Indicator'!$A$3:$AB$351, MATCH(Selection_Hide2!$A241, 'Full set Core Client Indicator'!$A$3:$A$351, 0), MATCH(Selection_Hide2!S$5, 'Full set Core Client Indicator'!$A$3:$AB$3, 0))), \"\")","v":""},{"$f":"IF(S241<>\"\", IF(INDEX('Full set Core Client Indicator'!$A$3:$AB$351, MATCH(Selection_Hide2!$A241, 'Full set Core Client Indicator'!$A$3:$A$351, 0), MATCH(Selection_Hide2!T$5, 'Full set Core Client Indicator'!$A$3:$AB$3, 0))=\"\", \"\",  INDEX('Full set Core Client Indicator'!$A$3:$AB$351, MATCH(Selection_Hide2!$A241, 'Full set Core Client Indicator'!$A$3:$A$351, 0), MATCH(Selection_Hide2!T$5, 'Full set Core Client Indicator'!$A$3:$AB$3, 0))), \"\")","v":""},{"$f":"IF(T241<>\"\", IF(INDEX('Full set Core Client Indicator'!$A$3:$AB$351, MATCH(Selection_Hide2!$A241, 'Full set Core Client Indicator'!$A$3:$A$351, 0), MATCH(Selection_Hide2!U$5, 'Full set Core Client Indicator'!$A$3:$AB$3, 0))=\"\", \"\",  INDEX('Full set Core Client Indicator'!$A$3:$AB$351, MATCH(Selection_Hide2!$A241, 'Full set Core Client Indicator'!$A$3:$A$351, 0), MATCH(Selection_Hide2!U$5, 'Full set Core Client Indicator'!$A$3:$AB$3, 0))), \"\")","v":""},{"$f":"IF(U241<>\"\", IF(INDEX('Full set Core Client Indicator'!$A$3:$AB$351, MATCH(Selection_Hide2!$A241, 'Full set Core Client Indicator'!$A$3:$A$351, 0), MATCH(Selection_Hide2!V$5, 'Full set Core Client Indicator'!$A$3:$AB$3, 0))=\"\", \"\",  INDEX('Full set Core Client Indicator'!$A$3:$AB$351, MATCH(Selection_Hide2!$A241, 'Full set Core Client Indicator'!$A$3:$A$351, 0), MATCH(Selection_Hide2!V$5, 'Full set Core Client Indicator'!$A$3:$AB$3, 0))), \"\")","v":""},{"$f":"IF(V241<>\"\", IF(INDEX('Full set Core Client Indicator'!$A$3:$AB$351, MATCH(Selection_Hide2!$A241, 'Full set Core Client Indicator'!$A$3:$A$351, 0), MATCH(Selection_Hide2!W$5, 'Full set Core Client Indicator'!$A$3:$AB$3, 0))=\"\", \"\",  INDEX('Full set Core Client Indicator'!$A$3:$AB$351, MATCH(Selection_Hide2!$A241, 'Full set Core Client Indicator'!$A$3:$A$351, 0), MATCH(Selection_Hide2!W$5, 'Full set Core Client Indicator'!$A$3:$AB$3, 0))), \"\")","v":""},{"$f":"IF(W241<>\"\", IF(INDEX('Full set Core Client Indicator'!$A$3:$AB$351, MATCH(Selection_Hide2!$A241, 'Full set Core Client Indicator'!$A$3:$A$351, 0), MATCH(Selection_Hide2!X$5, 'Full set Core Client Indicator'!$A$3:$AB$3, 0))=\"\", \"\",  INDEX('Full set Core Client Indicator'!$A$3:$AB$351, MATCH(Selection_Hide2!$A241, 'Full set Core Client Indicator'!$A$3:$A$351, 0), MATCH(Selection_Hide2!X$5, 'Full set Core Client Indicator'!$A$3:$AB$3, 0))), \"\")","v":""},{"$f":"IF(X241<>\"\", IF(INDEX('Full set Core Client Indicator'!$A$3:$AB$351, MATCH(Selection_Hide2!$A241, 'Full set Core Client Indicator'!$A$3:$A$351, 0), MATCH(Selection_Hide2!Y$5, 'Full set Core Client Indicator'!$A$3:$AB$3, 0))=\"\", \"\",  INDEX('Full set Core Client Indicator'!$A$3:$AB$351, MATCH(Selection_Hide2!$A241, 'Full set Core Client Indicator'!$A$3:$A$351, 0), MATCH(Selection_Hide2!Y$5, 'Full set Core Client Indicator'!$A$3:$AB$3, 0))), \"\")","v":""},{"$f":"IF(Y241<>\"\", IF(INDEX('Full set Core Client Indicator'!$A$3:$AB$351, MATCH(Selection_Hide2!$A241, 'Full set Core Client Indicator'!$A$3:$A$351, 0), MATCH(Selection_Hide2!Z$5, 'Full set Core Client Indicator'!$A$3:$AB$3, 0))=\"\", \"\",  INDEX('Full set Core Client Indicator'!$A$3:$AB$351, MATCH(Selection_Hide2!$A241, 'Full set Core Client Indicator'!$A$3:$A$351, 0), MATCH(Selection_Hide2!Z$5, 'Full set Core Client Indicator'!$A$3:$AB$3, 0))), \"\")","v":""},{"$f":"IF(Z241<>\"\", IF(INDEX('Full set Core Client Indicator'!$A$3:$AB$351, MATCH(Selection_Hide2!$A241, 'Full set Core Client Indicator'!$A$3:$A$351, 0), MATCH(Selection_Hide2!AA$5, 'Full set Core Client Indicator'!$A$3:$AB$3, 0))=\"\", \"\",  INDEX('Full set Core Client Indicator'!$A$3:$AB$351, MATCH(Selection_Hide2!$A241, 'Full set Core Client Indicator'!$A$3:$A$351, 0), MATCH(Selection_Hide2!AA$5, 'Full set Core Client Indicator'!$A$3:$AB$3, 0))), \"\")","v":""},{"$f":"IF(AA241<>\"\", IF(INDEX('Full set Core Client Indicator'!$A$3:$AB$351, MATCH(Selection_Hide2!$A241, 'Full set Core Client Indicator'!$A$3:$A$351, 0), MATCH(Selection_Hide2!AB$5, 'Full set Core Client Indicator'!$A$3:$AB$3, 0))=\"\", \"\",  INDEX('Full set Core Client Indicator'!$A$3:$AB$351, MATCH(Selection_Hide2!$A241, 'Full set Core Client Indicator'!$A$3:$A$351, 0), MATCH(Selection_Hide2!AB$5, 'Full set Core Client Indicator'!$A$3:$AB$3, 0))), \"\")","v":""}]
[{"$f":"IF(AND(Selection_Hide1!C240<>0, Selection_Hide1!C240<>\"Grand Total\"), Selection_Hide1!C240, \"\")","v":""},{"$f":"IF(A242<>\"\", IF(INDEX('Full set Core Client Indicator'!$A$3:$AB$351, MATCH(Selection_Hide2!$A242, 'Full set Core Client Indicator'!$A$3:$A$351, 0), MATCH(Selection_Hide2!B$5, 'Full set Core Client Indicator'!$A$3:$AB$3, 0))=\"\", \"\",  INDEX('Full set Core Client Indicator'!$A$3:$AB$351, MATCH(Selection_Hide2!$A242, 'Full set Core Client Indicator'!$A$3:$A$351, 0), MATCH(Selection_Hide2!B$5, 'Full set Core Client Indicator'!$A$3:$AB$3, 0))), \"\")","v":""},{"$f":"IF(B242<>\"\", IF(INDEX('Full set Core Client Indicator'!$A$3:$AB$351, MATCH(Selection_Hide2!$A242, 'Full set Core Client Indicator'!$A$3:$A$351, 0), MATCH(Selection_Hide2!C$5, 'Full set Core Client Indicator'!$A$3:$AB$3, 0))=\"\", \"\",  INDEX('Full set Core Client Indicator'!$A$3:$AB$351, MATCH(Selection_Hide2!$A242, 'Full set Core Client Indicator'!$A$3:$A$351, 0), MATCH(Selection_Hide2!C$5, 'Full set Core Client Indicator'!$A$3:$AB$3, 0))), \"\")","v":""},{"$f":"IF(C242<>\"\", IF(INDEX('Full set Core Client Indicator'!$A$3:$AB$351, MATCH(Selection_Hide2!$A242, 'Full set Core Client Indicator'!$A$3:$A$351, 0), MATCH(Selection_Hide2!D$5, 'Full set Core Client Indicator'!$A$3:$AB$3, 0))=\"\", \"\",  INDEX('Full set Core Client Indicator'!$A$3:$AB$351, MATCH(Selection_Hide2!$A242, 'Full set Core Client Indicator'!$A$3:$A$351, 0), MATCH(Selection_Hide2!D$5, 'Full set Core Client Indicator'!$A$3:$AB$3, 0))), \"\")","v":""},{"$f":"IF(D242<>\"\", IF(INDEX('Full set Core Client Indicator'!$A$3:$AB$351, MATCH(Selection_Hide2!$A242, 'Full set Core Client Indicator'!$A$3:$A$351, 0), MATCH(Selection_Hide2!E$5, 'Full set Core Client Indicator'!$A$3:$AB$3, 0))=\"\", \"\",  INDEX('Full set Core Client Indicator'!$A$3:$AB$351, MATCH(Selection_Hide2!$A242, 'Full set Core Client Indicator'!$A$3:$A$351, 0), MATCH(Selection_Hide2!E$5, 'Full set Core Client Indicator'!$A$3:$AB$3, 0))), \"\")","v":""},{"$f":"IF(E242<>\"\", IF(INDEX('Full set Core Client Indicator'!$A$3:$AB$351, MATCH(Selection_Hide2!$A242, 'Full set Core Client Indicator'!$A$3:$A$351, 0), MATCH(Selection_Hide2!F$5, 'Full set Core Client Indicator'!$A$3:$AB$3, 0))=\"\", \"\",  INDEX('Full set Core Client Indicator'!$A$3:$AB$351, MATCH(Selection_Hide2!$A242, 'Full set Core Client Indicator'!$A$3:$A$351, 0), MATCH(Selection_Hide2!F$5, 'Full set Core Client Indicator'!$A$3:$AB$3, 0))), \"\")","v":""},{"$f":"IF(F242<>\"\", IF(INDEX('Full set Core Client Indicator'!$A$3:$AB$351, MATCH(Selection_Hide2!$A242, 'Full set Core Client Indicator'!$A$3:$A$351, 0), MATCH(Selection_Hide2!G$5, 'Full set Core Client Indicator'!$A$3:$AB$3, 0))=\"\", \"\",  INDEX('Full set Core Client Indicator'!$A$3:$AB$351, MATCH(Selection_Hide2!$A242, 'Full set Core Client Indicator'!$A$3:$A$351, 0), MATCH(Selection_Hide2!G$5, 'Full set Core Client Indicator'!$A$3:$AB$3, 0))), \"\")","v":""},{"$f":"IF(G242<>\"\", IF(INDEX('Full set Core Client Indicator'!$A$3:$AB$351, MATCH(Selection_Hide2!$A242, 'Full set Core Client Indicator'!$A$3:$A$351, 0), MATCH(Selection_Hide2!H$5, 'Full set Core Client Indicator'!$A$3:$AB$3, 0))=\"\", \"\",  INDEX('Full set Core Client Indicator'!$A$3:$AB$351, MATCH(Selection_Hide2!$A242, 'Full set Core Client Indicator'!$A$3:$A$351, 0), MATCH(Selection_Hide2!H$5, 'Full set Core Client Indicator'!$A$3:$AB$3, 0))), \"\")","v":""},{"$f":"IF(H242<>\"\", IF(INDEX('Full set Core Client Indicator'!$A$3:$AB$351, MATCH(Selection_Hide2!$A242, 'Full set Core Client Indicator'!$A$3:$A$351, 0), MATCH(Selection_Hide2!I$5, 'Full set Core Client Indicator'!$A$3:$AB$3, 0))=\"\", \"\",  INDEX('Full set Core Client Indicator'!$A$3:$AB$351, MATCH(Selection_Hide2!$A242, 'Full set Core Client Indicator'!$A$3:$A$351, 0), MATCH(Selection_Hide2!I$5, 'Full set Core Client Indicator'!$A$3:$AB$3, 0))), \"\")","v":""},{"$f":"IF(I242<>\"\", IF(INDEX('Full set Core Client Indicator'!$A$3:$AB$351, MATCH(Selection_Hide2!$A242, 'Full set Core Client Indicator'!$A$3:$A$351, 0), MATCH(Selection_Hide2!J$5, 'Full set Core Client Indicator'!$A$3:$AB$3, 0))=\"\", \"\",  INDEX('Full set Core Client Indicator'!$A$3:$AB$351, MATCH(Selection_Hide2!$A242, 'Full set Core Client Indicator'!$A$3:$A$351, 0), MATCH(Selection_Hide2!J$5, 'Full set Core Client Indicator'!$A$3:$AB$3, 0))), \"\")","v":""},{"$f":"IF(J242<>\"\", IF(INDEX('Full set Core Client Indicator'!$A$3:$AB$351, MATCH(Selection_Hide2!$A242, 'Full set Core Client Indicator'!$A$3:$A$351, 0), MATCH(Selection_Hide2!K$5, 'Full set Core Client Indicator'!$A$3:$AB$3, 0))=\"\", \"\",  INDEX('Full set Core Client Indicator'!$A$3:$AB$351, MATCH(Selection_Hide2!$A242, 'Full set Core Client Indicator'!$A$3:$A$351, 0), MATCH(Selection_Hide2!K$5, 'Full set Core Client Indicator'!$A$3:$AB$3, 0))), \"\")","v":""},{"$f":"IF(K242<>\"\", IF(INDEX('Full set Core Client Indicator'!$A$3:$AB$351, MATCH(Selection_Hide2!$A242, 'Full set Core Client Indicator'!$A$3:$A$351, 0), MATCH(Selection_Hide2!L$5, 'Full set Core Client Indicator'!$A$3:$AB$3, 0))=\"\", \"\",  INDEX('Full set Core Client Indicator'!$A$3:$AB$351, MATCH(Selection_Hide2!$A242, 'Full set Core Client Indicator'!$A$3:$A$351, 0), MATCH(Selection_Hide2!L$5, 'Full set Core Client Indicator'!$A$3:$AB$3, 0))), \"\")","v":""},{"$f":"IF(L242<>\"\", IF(INDEX('Full set Core Client Indicator'!$A$3:$AB$351, MATCH(Selection_Hide2!$A242, 'Full set Core Client Indicator'!$A$3:$A$351, 0), MATCH(Selection_Hide2!M$5, 'Full set Core Client Indicator'!$A$3:$AB$3, 0))=\"\", \"\",  INDEX('Full set Core Client Indicator'!$A$3:$AB$351, MATCH(Selection_Hide2!$A242, 'Full set Core Client Indicator'!$A$3:$A$351, 0), MATCH(Selection_Hide2!M$5, 'Full set Core Client Indicator'!$A$3:$AB$3, 0))), \"\")","v":""},{"$f":"IF(M242<>\"\", IF(INDEX('Full set Core Client Indicator'!$A$3:$AB$351, MATCH(Selection_Hide2!$A242, 'Full set Core Client Indicator'!$A$3:$A$351, 0), MATCH(Selection_Hide2!N$5, 'Full set Core Client Indicator'!$A$3:$AB$3, 0))=\"\", \"\",  INDEX('Full set Core Client Indicator'!$A$3:$AB$351, MATCH(Selection_Hide2!$A242, 'Full set Core Client Indicator'!$A$3:$A$351, 0), MATCH(Selection_Hide2!N$5, 'Full set Core Client Indicator'!$A$3:$AB$3, 0))), \"\")","v":""},{"$f":"IF(N242<>\"\", IF(INDEX('Full set Core Client Indicator'!$A$3:$AB$351, MATCH(Selection_Hide2!$A242, 'Full set Core Client Indicator'!$A$3:$A$351, 0), MATCH(Selection_Hide2!O$5, 'Full set Core Client Indicator'!$A$3:$AB$3, 0))=\"\", \"\",  INDEX('Full set Core Client Indicator'!$A$3:$AB$351, MATCH(Selection_Hide2!$A242, 'Full set Core Client Indicator'!$A$3:$A$351, 0), MATCH(Selection_Hide2!O$5, 'Full set Core Client Indicator'!$A$3:$AB$3, 0))), \"\")","v":""},{"$f":"IF(O242<>\"\", IF(INDEX('Full set Core Client Indicator'!$A$3:$AB$351, MATCH(Selection_Hide2!$A242, 'Full set Core Client Indicator'!$A$3:$A$351, 0), MATCH(Selection_Hide2!P$5, 'Full set Core Client Indicator'!$A$3:$AB$3, 0))=\"\", \"\",  INDEX('Full set Core Client Indicator'!$A$3:$AB$351, MATCH(Selection_Hide2!$A242, 'Full set Core Client Indicator'!$A$3:$A$351, 0), MATCH(Selection_Hide2!P$5, 'Full set Core Client Indicator'!$A$3:$AB$3, 0))), \"\")","v":""},{"$f":"IF(P242<>\"\", IF(INDEX('Full set Core Client Indicator'!$A$3:$AB$351, MATCH(Selection_Hide2!$A242, 'Full set Core Client Indicator'!$A$3:$A$351, 0), MATCH(Selection_Hide2!Q$5, 'Full set Core Client Indicator'!$A$3:$AB$3, 0))=\"\", \"\",  INDEX('Full set Core Client Indicator'!$A$3:$AB$351, MATCH(Selection_Hide2!$A242, 'Full set Core Client Indicator'!$A$3:$A$351, 0), MATCH(Selection_Hide2!Q$5, 'Full set Core Client Indicator'!$A$3:$AB$3, 0))), \"\")","v":""},{"$f":"IF(Q242<>\"\", IF(INDEX('Full set Core Client Indicator'!$A$3:$AB$351, MATCH(Selection_Hide2!$A242, 'Full set Core Client Indicator'!$A$3:$A$351, 0), MATCH(Selection_Hide2!R$5, 'Full set Core Client Indicator'!$A$3:$AB$3, 0))=\"\", \"\",  INDEX('Full set Core Client Indicator'!$A$3:$AB$351, MATCH(Selection_Hide2!$A242, 'Full set Core Client Indicator'!$A$3:$A$351, 0), MATCH(Selection_Hide2!R$5, 'Full set Core Client Indicator'!$A$3:$AB$3, 0))), \"\")","v":""},{"$f":"IF(R242<>\"\", IF(INDEX('Full set Core Client Indicator'!$A$3:$AB$351, MATCH(Selection_Hide2!$A242, 'Full set Core Client Indicator'!$A$3:$A$351, 0), MATCH(Selection_Hide2!S$5, 'Full set Core Client Indicator'!$A$3:$AB$3, 0))=\"\", \"\",  INDEX('Full set Core Client Indicator'!$A$3:$AB$351, MATCH(Selection_Hide2!$A242, 'Full set Core Client Indicator'!$A$3:$A$351, 0), MATCH(Selection_Hide2!S$5, 'Full set Core Client Indicator'!$A$3:$AB$3, 0))), \"\")","v":""},{"$f":"IF(S242<>\"\", IF(INDEX('Full set Core Client Indicator'!$A$3:$AB$351, MATCH(Selection_Hide2!$A242, 'Full set Core Client Indicator'!$A$3:$A$351, 0), MATCH(Selection_Hide2!T$5, 'Full set Core Client Indicator'!$A$3:$AB$3, 0))=\"\", \"\",  INDEX('Full set Core Client Indicator'!$A$3:$AB$351, MATCH(Selection_Hide2!$A242, 'Full set Core Client Indicator'!$A$3:$A$351, 0), MATCH(Selection_Hide2!T$5, 'Full set Core Client Indicator'!$A$3:$AB$3, 0))), \"\")","v":""},{"$f":"IF(T242<>\"\", IF(INDEX('Full set Core Client Indicator'!$A$3:$AB$351, MATCH(Selection_Hide2!$A242, 'Full set Core Client Indicator'!$A$3:$A$351, 0), MATCH(Selection_Hide2!U$5, 'Full set Core Client Indicator'!$A$3:$AB$3, 0))=\"\", \"\",  INDEX('Full set Core Client Indicator'!$A$3:$AB$351, MATCH(Selection_Hide2!$A242, 'Full set Core Client Indicator'!$A$3:$A$351, 0), MATCH(Selection_Hide2!U$5, 'Full set Core Client Indicator'!$A$3:$AB$3, 0))), \"\")","v":""},{"$f":"IF(U242<>\"\", IF(INDEX('Full set Core Client Indicator'!$A$3:$AB$351, MATCH(Selection_Hide2!$A242, 'Full set Core Client Indicator'!$A$3:$A$351, 0), MATCH(Selection_Hide2!V$5, 'Full set Core Client Indicator'!$A$3:$AB$3, 0))=\"\", \"\",  INDEX('Full set Core Client Indicator'!$A$3:$AB$351, MATCH(Selection_Hide2!$A242, 'Full set Core Client Indicator'!$A$3:$A$351, 0), MATCH(Selection_Hide2!V$5, 'Full set Core Client Indicator'!$A$3:$AB$3, 0))), \"\")","v":""},{"$f":"IF(V242<>\"\", IF(INDEX('Full set Core Client Indicator'!$A$3:$AB$351, MATCH(Selection_Hide2!$A242, 'Full set Core Client Indicator'!$A$3:$A$351, 0), MATCH(Selection_Hide2!W$5, 'Full set Core Client Indicator'!$A$3:$AB$3, 0))=\"\", \"\",  INDEX('Full set Core Client Indicator'!$A$3:$AB$351, MATCH(Selection_Hide2!$A242, 'Full set Core Client Indicator'!$A$3:$A$351, 0), MATCH(Selection_Hide2!W$5, 'Full set Core Client Indicator'!$A$3:$AB$3, 0))), \"\")","v":""},{"$f":"IF(W242<>\"\", IF(INDEX('Full set Core Client Indicator'!$A$3:$AB$351, MATCH(Selection_Hide2!$A242, 'Full set Core Client Indicator'!$A$3:$A$351, 0), MATCH(Selection_Hide2!X$5, 'Full set Core Client Indicator'!$A$3:$AB$3, 0))=\"\", \"\",  INDEX('Full set Core Client Indicator'!$A$3:$AB$351, MATCH(Selection_Hide2!$A242, 'Full set Core Client Indicator'!$A$3:$A$351, 0), MATCH(Selection_Hide2!X$5, 'Full set Core Client Indicator'!$A$3:$AB$3, 0))), \"\")","v":""},{"$f":"IF(X242<>\"\", IF(INDEX('Full set Core Client Indicator'!$A$3:$AB$351, MATCH(Selection_Hide2!$A242, 'Full set Core Client Indicator'!$A$3:$A$351, 0), MATCH(Selection_Hide2!Y$5, 'Full set Core Client Indicator'!$A$3:$AB$3, 0))=\"\", \"\",  INDEX('Full set Core Client Indicator'!$A$3:$AB$351, MATCH(Selection_Hide2!$A242, 'Full set Core Client Indicator'!$A$3:$A$351, 0), MATCH(Selection_Hide2!Y$5, 'Full set Core Client Indicator'!$A$3:$AB$3, 0))), \"\")","v":""},{"$f":"IF(Y242<>\"\", IF(INDEX('Full set Core Client Indicator'!$A$3:$AB$351, MATCH(Selection_Hide2!$A242, 'Full set Core Client Indicator'!$A$3:$A$351, 0), MATCH(Selection_Hide2!Z$5, 'Full set Core Client Indicator'!$A$3:$AB$3, 0))=\"\", \"\",  INDEX('Full set Core Client Indicator'!$A$3:$AB$351, MATCH(Selection_Hide2!$A242, 'Full set Core Client Indicator'!$A$3:$A$351, 0), MATCH(Selection_Hide2!Z$5, 'Full set Core Client Indicator'!$A$3:$AB$3, 0))), \"\")","v":""},{"$f":"IF(Z242<>\"\", IF(INDEX('Full set Core Client Indicator'!$A$3:$AB$351, MATCH(Selection_Hide2!$A242, 'Full set Core Client Indicator'!$A$3:$A$351, 0), MATCH(Selection_Hide2!AA$5, 'Full set Core Client Indicator'!$A$3:$AB$3, 0))=\"\", \"\",  INDEX('Full set Core Client Indicator'!$A$3:$AB$351, MATCH(Selection_Hide2!$A242, 'Full set Core Client Indicator'!$A$3:$A$351, 0), MATCH(Selection_Hide2!AA$5, 'Full set Core Client Indicator'!$A$3:$AB$3, 0))), \"\")","v":""},{"$f":"IF(AA242<>\"\", IF(INDEX('Full set Core Client Indicator'!$A$3:$AB$351, MATCH(Selection_Hide2!$A242, 'Full set Core Client Indicator'!$A$3:$A$351, 0), MATCH(Selection_Hide2!AB$5, 'Full set Core Client Indicator'!$A$3:$AB$3, 0))=\"\", \"\",  INDEX('Full set Core Client Indicator'!$A$3:$AB$351, MATCH(Selection_Hide2!$A242, 'Full set Core Client Indicator'!$A$3:$A$351, 0), MATCH(Selection_Hide2!AB$5, 'Full set Core Client Indicator'!$A$3:$AB$3, 0))), \"\")","v":""}]
[{"$f":"IF(AND(Selection_Hide1!C241<>0, Selection_Hide1!C241<>\"Grand Total\"), Selection_Hide1!C241, \"\")","v":""},{"$f":"IF(A243<>\"\", IF(INDEX('Full set Core Client Indicator'!$A$3:$AB$351, MATCH(Selection_Hide2!$A243, 'Full set Core Client Indicator'!$A$3:$A$351, 0), MATCH(Selection_Hide2!B$5, 'Full set Core Client Indicator'!$A$3:$AB$3, 0))=\"\", \"\",  INDEX('Full set Core Client Indicator'!$A$3:$AB$351, MATCH(Selection_Hide2!$A243, 'Full set Core Client Indicator'!$A$3:$A$351, 0), MATCH(Selection_Hide2!B$5, 'Full set Core Client Indicator'!$A$3:$AB$3, 0))), \"\")","v":""},{"$f":"IF(B243<>\"\", IF(INDEX('Full set Core Client Indicator'!$A$3:$AB$351, MATCH(Selection_Hide2!$A243, 'Full set Core Client Indicator'!$A$3:$A$351, 0), MATCH(Selection_Hide2!C$5, 'Full set Core Client Indicator'!$A$3:$AB$3, 0))=\"\", \"\",  INDEX('Full set Core Client Indicator'!$A$3:$AB$351, MATCH(Selection_Hide2!$A243, 'Full set Core Client Indicator'!$A$3:$A$351, 0), MATCH(Selection_Hide2!C$5, 'Full set Core Client Indicator'!$A$3:$AB$3, 0))), \"\")","v":""},{"$f":"IF(C243<>\"\", IF(INDEX('Full set Core Client Indicator'!$A$3:$AB$351, MATCH(Selection_Hide2!$A243, 'Full set Core Client Indicator'!$A$3:$A$351, 0), MATCH(Selection_Hide2!D$5, 'Full set Core Client Indicator'!$A$3:$AB$3, 0))=\"\", \"\",  INDEX('Full set Core Client Indicator'!$A$3:$AB$351, MATCH(Selection_Hide2!$A243, 'Full set Core Client Indicator'!$A$3:$A$351, 0), MATCH(Selection_Hide2!D$5, 'Full set Core Client Indicator'!$A$3:$AB$3, 0))), \"\")","v":""},{"$f":"IF(D243<>\"\", IF(INDEX('Full set Core Client Indicator'!$A$3:$AB$351, MATCH(Selection_Hide2!$A243, 'Full set Core Client Indicator'!$A$3:$A$351, 0), MATCH(Selection_Hide2!E$5, 'Full set Core Client Indicator'!$A$3:$AB$3, 0))=\"\", \"\",  INDEX('Full set Core Client Indicator'!$A$3:$AB$351, MATCH(Selection_Hide2!$A243, 'Full set Core Client Indicator'!$A$3:$A$351, 0), MATCH(Selection_Hide2!E$5, 'Full set Core Client Indicator'!$A$3:$AB$3, 0))), \"\")","v":""},{"$f":"IF(E243<>\"\", IF(INDEX('Full set Core Client Indicator'!$A$3:$AB$351, MATCH(Selection_Hide2!$A243, 'Full set Core Client Indicator'!$A$3:$A$351, 0), MATCH(Selection_Hide2!F$5, 'Full set Core Client Indicator'!$A$3:$AB$3, 0))=\"\", \"\",  INDEX('Full set Core Client Indicator'!$A$3:$AB$351, MATCH(Selection_Hide2!$A243, 'Full set Core Client Indicator'!$A$3:$A$351, 0), MATCH(Selection_Hide2!F$5, 'Full set Core Client Indicator'!$A$3:$AB$3, 0))), \"\")","v":""},{"$f":"IF(F243<>\"\", IF(INDEX('Full set Core Client Indicator'!$A$3:$AB$351, MATCH(Selection_Hide2!$A243, 'Full set Core Client Indicator'!$A$3:$A$351, 0), MATCH(Selection_Hide2!G$5, 'Full set Core Client Indicator'!$A$3:$AB$3, 0))=\"\", \"\",  INDEX('Full set Core Client Indicator'!$A$3:$AB$351, MATCH(Selection_Hide2!$A243, 'Full set Core Client Indicator'!$A$3:$A$351, 0), MATCH(Selection_Hide2!G$5, 'Full set Core Client Indicator'!$A$3:$AB$3, 0))), \"\")","v":""},{"$f":"IF(G243<>\"\", IF(INDEX('Full set Core Client Indicator'!$A$3:$AB$351, MATCH(Selection_Hide2!$A243, 'Full set Core Client Indicator'!$A$3:$A$351, 0), MATCH(Selection_Hide2!H$5, 'Full set Core Client Indicator'!$A$3:$AB$3, 0))=\"\", \"\",  INDEX('Full set Core Client Indicator'!$A$3:$AB$351, MATCH(Selection_Hide2!$A243, 'Full set Core Client Indicator'!$A$3:$A$351, 0), MATCH(Selection_Hide2!H$5, 'Full set Core Client Indicator'!$A$3:$AB$3, 0))), \"\")","v":""},{"$f":"IF(H243<>\"\", IF(INDEX('Full set Core Client Indicator'!$A$3:$AB$351, MATCH(Selection_Hide2!$A243, 'Full set Core Client Indicator'!$A$3:$A$351, 0), MATCH(Selection_Hide2!I$5, 'Full set Core Client Indicator'!$A$3:$AB$3, 0))=\"\", \"\",  INDEX('Full set Core Client Indicator'!$A$3:$AB$351, MATCH(Selection_Hide2!$A243, 'Full set Core Client Indicator'!$A$3:$A$351, 0), MATCH(Selection_Hide2!I$5, 'Full set Core Client Indicator'!$A$3:$AB$3, 0))), \"\")","v":""},{"$f":"IF(I243<>\"\", IF(INDEX('Full set Core Client Indicator'!$A$3:$AB$351, MATCH(Selection_Hide2!$A243, 'Full set Core Client Indicator'!$A$3:$A$351, 0), MATCH(Selection_Hide2!J$5, 'Full set Core Client Indicator'!$A$3:$AB$3, 0))=\"\", \"\",  INDEX('Full set Core Client Indicator'!$A$3:$AB$351, MATCH(Selection_Hide2!$A243, 'Full set Core Client Indicator'!$A$3:$A$351, 0), MATCH(Selection_Hide2!J$5, 'Full set Core Client Indicator'!$A$3:$AB$3, 0))), \"\")","v":""},{"$f":"IF(J243<>\"\", IF(INDEX('Full set Core Client Indicator'!$A$3:$AB$351, MATCH(Selection_Hide2!$A243, 'Full set Core Client Indicator'!$A$3:$A$351, 0), MATCH(Selection_Hide2!K$5, 'Full set Core Client Indicator'!$A$3:$AB$3, 0))=\"\", \"\",  INDEX('Full set Core Client Indicator'!$A$3:$AB$351, MATCH(Selection_Hide2!$A243, 'Full set Core Client Indicator'!$A$3:$A$351, 0), MATCH(Selection_Hide2!K$5, 'Full set Core Client Indicator'!$A$3:$AB$3, 0))), \"\")","v":""},{"$f":"IF(K243<>\"\", IF(INDEX('Full set Core Client Indicator'!$A$3:$AB$351, MATCH(Selection_Hide2!$A243, 'Full set Core Client Indicator'!$A$3:$A$351, 0), MATCH(Selection_Hide2!L$5, 'Full set Core Client Indicator'!$A$3:$AB$3, 0))=\"\", \"\",  INDEX('Full set Core Client Indicator'!$A$3:$AB$351, MATCH(Selection_Hide2!$A243, 'Full set Core Client Indicator'!$A$3:$A$351, 0), MATCH(Selection_Hide2!L$5, 'Full set Core Client Indicator'!$A$3:$AB$3, 0))), \"\")","v":""},{"$f":"IF(L243<>\"\", IF(INDEX('Full set Core Client Indicator'!$A$3:$AB$351, MATCH(Selection_Hide2!$A243, 'Full set Core Client Indicator'!$A$3:$A$351, 0), MATCH(Selection_Hide2!M$5, 'Full set Core Client Indicator'!$A$3:$AB$3, 0))=\"\", \"\",  INDEX('Full set Core Client Indicator'!$A$3:$AB$351, MATCH(Selection_Hide2!$A243, 'Full set Core Client Indicator'!$A$3:$A$351, 0), MATCH(Selection_Hide2!M$5, 'Full set Core Client Indicator'!$A$3:$AB$3, 0))), \"\")","v":""},{"$f":"IF(M243<>\"\", IF(INDEX('Full set Core Client Indicator'!$A$3:$AB$351, MATCH(Selection_Hide2!$A243, 'Full set Core Client Indicator'!$A$3:$A$351, 0), MATCH(Selection_Hide2!N$5, 'Full set Core Client Indicator'!$A$3:$AB$3, 0))=\"\", \"\",  INDEX('Full set Core Client Indicator'!$A$3:$AB$351, MATCH(Selection_Hide2!$A243, 'Full set Core Client Indicator'!$A$3:$A$351, 0), MATCH(Selection_Hide2!N$5, 'Full set Core Client Indicator'!$A$3:$AB$3, 0))), \"\")","v":""},{"$f":"IF(N243<>\"\", IF(INDEX('Full set Core Client Indicator'!$A$3:$AB$351, MATCH(Selection_Hide2!$A243, 'Full set Core Client Indicator'!$A$3:$A$351, 0), MATCH(Selection_Hide2!O$5, 'Full set Core Client Indicator'!$A$3:$AB$3, 0))=\"\", \"\",  INDEX('Full set Core Client Indicator'!$A$3:$AB$351, MATCH(Selection_Hide2!$A243, 'Full set Core Client Indicator'!$A$3:$A$351, 0), MATCH(Selection_Hide2!O$5, 'Full set Core Client Indicator'!$A$3:$AB$3, 0))), \"\")","v":""},{"$f":"IF(O243<>\"\", IF(INDEX('Full set Core Client Indicator'!$A$3:$AB$351, MATCH(Selection_Hide2!$A243, 'Full set Core Client Indicator'!$A$3:$A$351, 0), MATCH(Selection_Hide2!P$5, 'Full set Core Client Indicator'!$A$3:$AB$3, 0))=\"\", \"\",  INDEX('Full set Core Client Indicator'!$A$3:$AB$351, MATCH(Selection_Hide2!$A243, 'Full set Core Client Indicator'!$A$3:$A$351, 0), MATCH(Selection_Hide2!P$5, 'Full set Core Client Indicator'!$A$3:$AB$3, 0))), \"\")","v":""},{"$f":"IF(P243<>\"\", IF(INDEX('Full set Core Client Indicator'!$A$3:$AB$351, MATCH(Selection_Hide2!$A243, 'Full set Core Client Indicator'!$A$3:$A$351, 0), MATCH(Selection_Hide2!Q$5, 'Full set Core Client Indicator'!$A$3:$AB$3, 0))=\"\", \"\",  INDEX('Full set Core Client Indicator'!$A$3:$AB$351, MATCH(Selection_Hide2!$A243, 'Full set Core Client Indicator'!$A$3:$A$351, 0), MATCH(Selection_Hide2!Q$5, 'Full set Core Client Indicator'!$A$3:$AB$3, 0))), \"\")","v":""},{"$f":"IF(Q243<>\"\", IF(INDEX('Full set Core Client Indicator'!$A$3:$AB$351, MATCH(Selection_Hide2!$A243, 'Full set Core Client Indicator'!$A$3:$A$351, 0), MATCH(Selection_Hide2!R$5, 'Full set Core Client Indicator'!$A$3:$AB$3, 0))=\"\", \"\",  INDEX('Full set Core Client Indicator'!$A$3:$AB$351, MATCH(Selection_Hide2!$A243, 'Full set Core Client Indicator'!$A$3:$A$351, 0), MATCH(Selection_Hide2!R$5, 'Full set Core Client Indicator'!$A$3:$AB$3, 0))), \"\")","v":""},{"$f":"IF(R243<>\"\", IF(INDEX('Full set Core Client Indicator'!$A$3:$AB$351, MATCH(Selection_Hide2!$A243, 'Full set Core Client Indicator'!$A$3:$A$351, 0), MATCH(Selection_Hide2!S$5, 'Full set Core Client Indicator'!$A$3:$AB$3, 0))=\"\", \"\",  INDEX('Full set Core Client Indicator'!$A$3:$AB$351, MATCH(Selection_Hide2!$A243, 'Full set Core Client Indicator'!$A$3:$A$351, 0), MATCH(Selection_Hide2!S$5, 'Full set Core Client Indicator'!$A$3:$AB$3, 0))), \"\")","v":""},{"$f":"IF(S243<>\"\", IF(INDEX('Full set Core Client Indicator'!$A$3:$AB$351, MATCH(Selection_Hide2!$A243, 'Full set Core Client Indicator'!$A$3:$A$351, 0), MATCH(Selection_Hide2!T$5, 'Full set Core Client Indicator'!$A$3:$AB$3, 0))=\"\", \"\",  INDEX('Full set Core Client Indicator'!$A$3:$AB$351, MATCH(Selection_Hide2!$A243, 'Full set Core Client Indicator'!$A$3:$A$351, 0), MATCH(Selection_Hide2!T$5, 'Full set Core Client Indicator'!$A$3:$AB$3, 0))), \"\")","v":""},{"$f":"IF(T243<>\"\", IF(INDEX('Full set Core Client Indicator'!$A$3:$AB$351, MATCH(Selection_Hide2!$A243, 'Full set Core Client Indicator'!$A$3:$A$351, 0), MATCH(Selection_Hide2!U$5, 'Full set Core Client Indicator'!$A$3:$AB$3, 0))=\"\", \"\",  INDEX('Full set Core Client Indicator'!$A$3:$AB$351, MATCH(Selection_Hide2!$A243, 'Full set Core Client Indicator'!$A$3:$A$351, 0), MATCH(Selection_Hide2!U$5, 'Full set Core Client Indicator'!$A$3:$AB$3, 0))), \"\")","v":""},{"$f":"IF(U243<>\"\", IF(INDEX('Full set Core Client Indicator'!$A$3:$AB$351, MATCH(Selection_Hide2!$A243, 'Full set Core Client Indicator'!$A$3:$A$351, 0), MATCH(Selection_Hide2!V$5, 'Full set Core Client Indicator'!$A$3:$AB$3, 0))=\"\", \"\",  INDEX('Full set Core Client Indicator'!$A$3:$AB$351, MATCH(Selection_Hide2!$A243, 'Full set Core Client Indicator'!$A$3:$A$351, 0), MATCH(Selection_Hide2!V$5, 'Full set Core Client Indicator'!$A$3:$AB$3, 0))), \"\")","v":""},{"$f":"IF(V243<>\"\", IF(INDEX('Full set Core Client Indicator'!$A$3:$AB$351, MATCH(Selection_Hide2!$A243, 'Full set Core Client Indicator'!$A$3:$A$351, 0), MATCH(Selection_Hide2!W$5, 'Full set Core Client Indicator'!$A$3:$AB$3, 0))=\"\", \"\",  INDEX('Full set Core Client Indicator'!$A$3:$AB$351, MATCH(Selection_Hide2!$A243, 'Full set Core Client Indicator'!$A$3:$A$351, 0), MATCH(Selection_Hide2!W$5, 'Full set Core Client Indicator'!$A$3:$AB$3, 0))), \"\")","v":""},{"$f":"IF(W243<>\"\", IF(INDEX('Full set Core Client Indicator'!$A$3:$AB$351, MATCH(Selection_Hide2!$A243, 'Full set Core Client Indicator'!$A$3:$A$351, 0), MATCH(Selection_Hide2!X$5, 'Full set Core Client Indicator'!$A$3:$AB$3, 0))=\"\", \"\",  INDEX('Full set Core Client Indicator'!$A$3:$AB$351, MATCH(Selection_Hide2!$A243, 'Full set Core Client Indicator'!$A$3:$A$351, 0), MATCH(Selection_Hide2!X$5, 'Full set Core Client Indicator'!$A$3:$AB$3, 0))), \"\")","v":""},{"$f":"IF(X243<>\"\", IF(INDEX('Full set Core Client Indicator'!$A$3:$AB$351, MATCH(Selection_Hide2!$A243, 'Full set Core Client Indicator'!$A$3:$A$351, 0), MATCH(Selection_Hide2!Y$5, 'Full set Core Client Indicator'!$A$3:$AB$3, 0))=\"\", \"\",  INDEX('Full set Core Client Indicator'!$A$3:$AB$351, MATCH(Selection_Hide2!$A243, 'Full set Core Client Indicator'!$A$3:$A$351, 0), MATCH(Selection_Hide2!Y$5, 'Full set Core Client Indicator'!$A$3:$AB$3, 0))), \"\")","v":""},{"$f":"IF(Y243<>\"\", IF(INDEX('Full set Core Client Indicator'!$A$3:$AB$351, MATCH(Selection_Hide2!$A243, 'Full set Core Client Indicator'!$A$3:$A$351, 0), MATCH(Selection_Hide2!Z$5, 'Full set Core Client Indicator'!$A$3:$AB$3, 0))=\"\", \"\",  INDEX('Full set Core Client Indicator'!$A$3:$AB$351, MATCH(Selection_Hide2!$A243, 'Full set Core Client Indicator'!$A$3:$A$351, 0), MATCH(Selection_Hide2!Z$5, 'Full set Core Client Indicator'!$A$3:$AB$3, 0))), \"\")","v":""},{"$f":"IF(Z243<>\"\", IF(INDEX('Full set Core Client Indicator'!$A$3:$AB$351, MATCH(Selection_Hide2!$A243, 'Full set Core Client Indicator'!$A$3:$A$351, 0), MATCH(Selection_Hide2!AA$5, 'Full set Core Client Indicator'!$A$3:$AB$3, 0))=\"\", \"\",  INDEX('Full set Core Client Indicator'!$A$3:$AB$351, MATCH(Selection_Hide2!$A243, 'Full set Core Client Indicator'!$A$3:$A$351, 0), MATCH(Selection_Hide2!AA$5, 'Full set Core Client Indicator'!$A$3:$AB$3, 0))), \"\")","v":""},{"$f":"IF(AA243<>\"\", IF(INDEX('Full set Core Client Indicator'!$A$3:$AB$351, MATCH(Selection_Hide2!$A243, 'Full set Core Client Indicator'!$A$3:$A$351, 0), MATCH(Selection_Hide2!AB$5, 'Full set Core Client Indicator'!$A$3:$AB$3, 0))=\"\", \"\",  INDEX('Full set Core Client Indicator'!$A$3:$AB$351, MATCH(Selection_Hide2!$A243, 'Full set Core Client Indicator'!$A$3:$A$351, 0), MATCH(Selection_Hide2!AB$5, 'Full set Core Client Indicator'!$A$3:$AB$3, 0))), \"\")","v":""}]
[{"$f":"IF(AND(Selection_Hide1!C242<>0, Selection_Hide1!C242<>\"Grand Total\"), Selection_Hide1!C242, \"\")","v":""},{"$f":"IF(A244<>\"\", IF(INDEX('Full set Core Client Indicator'!$A$3:$AB$351, MATCH(Selection_Hide2!$A244, 'Full set Core Client Indicator'!$A$3:$A$351, 0), MATCH(Selection_Hide2!B$5, 'Full set Core Client Indicator'!$A$3:$AB$3, 0))=\"\", \"\",  INDEX('Full set Core Client Indicator'!$A$3:$AB$351, MATCH(Selection_Hide2!$A244, 'Full set Core Client Indicator'!$A$3:$A$351, 0), MATCH(Selection_Hide2!B$5, 'Full set Core Client Indicator'!$A$3:$AB$3, 0))), \"\")","v":""},{"$f":"IF(B244<>\"\", IF(INDEX('Full set Core Client Indicator'!$A$3:$AB$351, MATCH(Selection_Hide2!$A244, 'Full set Core Client Indicator'!$A$3:$A$351, 0), MATCH(Selection_Hide2!C$5, 'Full set Core Client Indicator'!$A$3:$AB$3, 0))=\"\", \"\",  INDEX('Full set Core Client Indicator'!$A$3:$AB$351, MATCH(Selection_Hide2!$A244, 'Full set Core Client Indicator'!$A$3:$A$351, 0), MATCH(Selection_Hide2!C$5, 'Full set Core Client Indicator'!$A$3:$AB$3, 0))), \"\")","v":""},{"$f":"IF(C244<>\"\", IF(INDEX('Full set Core Client Indicator'!$A$3:$AB$351, MATCH(Selection_Hide2!$A244, 'Full set Core Client Indicator'!$A$3:$A$351, 0), MATCH(Selection_Hide2!D$5, 'Full set Core Client Indicator'!$A$3:$AB$3, 0))=\"\", \"\",  INDEX('Full set Core Client Indicator'!$A$3:$AB$351, MATCH(Selection_Hide2!$A244, 'Full set Core Client Indicator'!$A$3:$A$351, 0), MATCH(Selection_Hide2!D$5, 'Full set Core Client Indicator'!$A$3:$AB$3, 0))), \"\")","v":""},{"$f":"IF(D244<>\"\", IF(INDEX('Full set Core Client Indicator'!$A$3:$AB$351, MATCH(Selection_Hide2!$A244, 'Full set Core Client Indicator'!$A$3:$A$351, 0), MATCH(Selection_Hide2!E$5, 'Full set Core Client Indicator'!$A$3:$AB$3, 0))=\"\", \"\",  INDEX('Full set Core Client Indicator'!$A$3:$AB$351, MATCH(Selection_Hide2!$A244, 'Full set Core Client Indicator'!$A$3:$A$351, 0), MATCH(Selection_Hide2!E$5, 'Full set Core Client Indicator'!$A$3:$AB$3, 0))), \"\")","v":""},{"$f":"IF(E244<>\"\", IF(INDEX('Full set Core Client Indicator'!$A$3:$AB$351, MATCH(Selection_Hide2!$A244, 'Full set Core Client Indicator'!$A$3:$A$351, 0), MATCH(Selection_Hide2!F$5, 'Full set Core Client Indicator'!$A$3:$AB$3, 0))=\"\", \"\",  INDEX('Full set Core Client Indicator'!$A$3:$AB$351, MATCH(Selection_Hide2!$A244, 'Full set Core Client Indicator'!$A$3:$A$351, 0), MATCH(Selection_Hide2!F$5, 'Full set Core Client Indicator'!$A$3:$AB$3, 0))), \"\")","v":""},{"$f":"IF(F244<>\"\", IF(INDEX('Full set Core Client Indicator'!$A$3:$AB$351, MATCH(Selection_Hide2!$A244, 'Full set Core Client Indicator'!$A$3:$A$351, 0), MATCH(Selection_Hide2!G$5, 'Full set Core Client Indicator'!$A$3:$AB$3, 0))=\"\", \"\",  INDEX('Full set Core Client Indicator'!$A$3:$AB$351, MATCH(Selection_Hide2!$A244, 'Full set Core Client Indicator'!$A$3:$A$351, 0), MATCH(Selection_Hide2!G$5, 'Full set Core Client Indicator'!$A$3:$AB$3, 0))), \"\")","v":""},{"$f":"IF(G244<>\"\", IF(INDEX('Full set Core Client Indicator'!$A$3:$AB$351, MATCH(Selection_Hide2!$A244, 'Full set Core Client Indicator'!$A$3:$A$351, 0), MATCH(Selection_Hide2!H$5, 'Full set Core Client Indicator'!$A$3:$AB$3, 0))=\"\", \"\",  INDEX('Full set Core Client Indicator'!$A$3:$AB$351, MATCH(Selection_Hide2!$A244, 'Full set Core Client Indicator'!$A$3:$A$351, 0), MATCH(Selection_Hide2!H$5, 'Full set Core Client Indicator'!$A$3:$AB$3, 0))), \"\")","v":""},{"$f":"IF(H244<>\"\", IF(INDEX('Full set Core Client Indicator'!$A$3:$AB$351, MATCH(Selection_Hide2!$A244, 'Full set Core Client Indicator'!$A$3:$A$351, 0), MATCH(Selection_Hide2!I$5, 'Full set Core Client Indicator'!$A$3:$AB$3, 0))=\"\", \"\",  INDEX('Full set Core Client Indicator'!$A$3:$AB$351, MATCH(Selection_Hide2!$A244, 'Full set Core Client Indicator'!$A$3:$A$351, 0), MATCH(Selection_Hide2!I$5, 'Full set Core Client Indicator'!$A$3:$AB$3, 0))), \"\")","v":""},{"$f":"IF(I244<>\"\", IF(INDEX('Full set Core Client Indicator'!$A$3:$AB$351, MATCH(Selection_Hide2!$A244, 'Full set Core Client Indicator'!$A$3:$A$351, 0), MATCH(Selection_Hide2!J$5, 'Full set Core Client Indicator'!$A$3:$AB$3, 0))=\"\", \"\",  INDEX('Full set Core Client Indicator'!$A$3:$AB$351, MATCH(Selection_Hide2!$A244, 'Full set Core Client Indicator'!$A$3:$A$351, 0), MATCH(Selection_Hide2!J$5, 'Full set Core Client Indicator'!$A$3:$AB$3, 0))), \"\")","v":""},{"$f":"IF(J244<>\"\", IF(INDEX('Full set Core Client Indicator'!$A$3:$AB$351, MATCH(Selection_Hide2!$A244, 'Full set Core Client Indicator'!$A$3:$A$351, 0), MATCH(Selection_Hide2!K$5, 'Full set Core Client Indicator'!$A$3:$AB$3, 0))=\"\", \"\",  INDEX('Full set Core Client Indicator'!$A$3:$AB$351, MATCH(Selection_Hide2!$A244, 'Full set Core Client Indicator'!$A$3:$A$351, 0), MATCH(Selection_Hide2!K$5, 'Full set Core Client Indicator'!$A$3:$AB$3, 0))), \"\")","v":""},{"$f":"IF(K244<>\"\", IF(INDEX('Full set Core Client Indicator'!$A$3:$AB$351, MATCH(Selection_Hide2!$A244, 'Full set Core Client Indicator'!$A$3:$A$351, 0), MATCH(Selection_Hide2!L$5, 'Full set Core Client Indicator'!$A$3:$AB$3, 0))=\"\", \"\",  INDEX('Full set Core Client Indicator'!$A$3:$AB$351, MATCH(Selection_Hide2!$A244, 'Full set Core Client Indicator'!$A$3:$A$351, 0), MATCH(Selection_Hide2!L$5, 'Full set Core Client Indicator'!$A$3:$AB$3, 0))), \"\")","v":""},{"$f":"IF(L244<>\"\", IF(INDEX('Full set Core Client Indicator'!$A$3:$AB$351, MATCH(Selection_Hide2!$A244, 'Full set Core Client Indicator'!$A$3:$A$351, 0), MATCH(Selection_Hide2!M$5, 'Full set Core Client Indicator'!$A$3:$AB$3, 0))=\"\", \"\",  INDEX('Full set Core Client Indicator'!$A$3:$AB$351, MATCH(Selection_Hide2!$A244, 'Full set Core Client Indicator'!$A$3:$A$351, 0), MATCH(Selection_Hide2!M$5, 'Full set Core Client Indicator'!$A$3:$AB$3, 0))), \"\")","v":""},{"$f":"IF(M244<>\"\", IF(INDEX('Full set Core Client Indicator'!$A$3:$AB$351, MATCH(Selection_Hide2!$A244, 'Full set Core Client Indicator'!$A$3:$A$351, 0), MATCH(Selection_Hide2!N$5, 'Full set Core Client Indicator'!$A$3:$AB$3, 0))=\"\", \"\",  INDEX('Full set Core Client Indicator'!$A$3:$AB$351, MATCH(Selection_Hide2!$A244, 'Full set Core Client Indicator'!$A$3:$A$351, 0), MATCH(Selection_Hide2!N$5, 'Full set Core Client Indicator'!$A$3:$AB$3, 0))), \"\")","v":""},{"$f":"IF(N244<>\"\", IF(INDEX('Full set Core Client Indicator'!$A$3:$AB$351, MATCH(Selection_Hide2!$A244, 'Full set Core Client Indicator'!$A$3:$A$351, 0), MATCH(Selection_Hide2!O$5, 'Full set Core Client Indicator'!$A$3:$AB$3, 0))=\"\", \"\",  INDEX('Full set Core Client Indicator'!$A$3:$AB$351, MATCH(Selection_Hide2!$A244, 'Full set Core Client Indicator'!$A$3:$A$351, 0), MATCH(Selection_Hide2!O$5, 'Full set Core Client Indicator'!$A$3:$AB$3, 0))), \"\")","v":""},{"$f":"IF(O244<>\"\", IF(INDEX('Full set Core Client Indicator'!$A$3:$AB$351, MATCH(Selection_Hide2!$A244, 'Full set Core Client Indicator'!$A$3:$A$351, 0), MATCH(Selection_Hide2!P$5, 'Full set Core Client Indicator'!$A$3:$AB$3, 0))=\"\", \"\",  INDEX('Full set Core Client Indicator'!$A$3:$AB$351, MATCH(Selection_Hide2!$A244, 'Full set Core Client Indicator'!$A$3:$A$351, 0), MATCH(Selection_Hide2!P$5, 'Full set Core Client Indicator'!$A$3:$AB$3, 0))), \"\")","v":""},{"$f":"IF(P244<>\"\", IF(INDEX('Full set Core Client Indicator'!$A$3:$AB$351, MATCH(Selection_Hide2!$A244, 'Full set Core Client Indicator'!$A$3:$A$351, 0), MATCH(Selection_Hide2!Q$5, 'Full set Core Client Indicator'!$A$3:$AB$3, 0))=\"\", \"\",  INDEX('Full set Core Client Indicator'!$A$3:$AB$351, MATCH(Selection_Hide2!$A244, 'Full set Core Client Indicator'!$A$3:$A$351, 0), MATCH(Selection_Hide2!Q$5, 'Full set Core Client Indicator'!$A$3:$AB$3, 0))), \"\")","v":""},{"$f":"IF(Q244<>\"\", IF(INDEX('Full set Core Client Indicator'!$A$3:$AB$351, MATCH(Selection_Hide2!$A244, 'Full set Core Client Indicator'!$A$3:$A$351, 0), MATCH(Selection_Hide2!R$5, 'Full set Core Client Indicator'!$A$3:$AB$3, 0))=\"\", \"\",  INDEX('Full set Core Client Indicator'!$A$3:$AB$351, MATCH(Selection_Hide2!$A244, 'Full set Core Client Indicator'!$A$3:$A$351, 0), MATCH(Selection_Hide2!R$5, 'Full set Core Client Indicator'!$A$3:$AB$3, 0))), \"\")","v":""},{"$f":"IF(R244<>\"\", IF(INDEX('Full set Core Client Indicator'!$A$3:$AB$351, MATCH(Selection_Hide2!$A244, 'Full set Core Client Indicator'!$A$3:$A$351, 0), MATCH(Selection_Hide2!S$5, 'Full set Core Client Indicator'!$A$3:$AB$3, 0))=\"\", \"\",  INDEX('Full set Core Client Indicator'!$A$3:$AB$351, MATCH(Selection_Hide2!$A244, 'Full set Core Client Indicator'!$A$3:$A$351, 0), MATCH(Selection_Hide2!S$5, 'Full set Core Client Indicator'!$A$3:$AB$3, 0))), \"\")","v":""},{"$f":"IF(S244<>\"\", IF(INDEX('Full set Core Client Indicator'!$A$3:$AB$351, MATCH(Selection_Hide2!$A244, 'Full set Core Client Indicator'!$A$3:$A$351, 0), MATCH(Selection_Hide2!T$5, 'Full set Core Client Indicator'!$A$3:$AB$3, 0))=\"\", \"\",  INDEX('Full set Core Client Indicator'!$A$3:$AB$351, MATCH(Selection_Hide2!$A244, 'Full set Core Client Indicator'!$A$3:$A$351, 0), MATCH(Selection_Hide2!T$5, 'Full set Core Client Indicator'!$A$3:$AB$3, 0))), \"\")","v":""},{"$f":"IF(T244<>\"\", IF(INDEX('Full set Core Client Indicator'!$A$3:$AB$351, MATCH(Selection_Hide2!$A244, 'Full set Core Client Indicator'!$A$3:$A$351, 0), MATCH(Selection_Hide2!U$5, 'Full set Core Client Indicator'!$A$3:$AB$3, 0))=\"\", \"\",  INDEX('Full set Core Client Indicator'!$A$3:$AB$351, MATCH(Selection_Hide2!$A244, 'Full set Core Client Indicator'!$A$3:$A$351, 0), MATCH(Selection_Hide2!U$5, 'Full set Core Client Indicator'!$A$3:$AB$3, 0))), \"\")","v":""},{"$f":"IF(U244<>\"\", IF(INDEX('Full set Core Client Indicator'!$A$3:$AB$351, MATCH(Selection_Hide2!$A244, 'Full set Core Client Indicator'!$A$3:$A$351, 0), MATCH(Selection_Hide2!V$5, 'Full set Core Client Indicator'!$A$3:$AB$3, 0))=\"\", \"\",  INDEX('Full set Core Client Indicator'!$A$3:$AB$351, MATCH(Selection_Hide2!$A244, 'Full set Core Client Indicator'!$A$3:$A$351, 0), MATCH(Selection_Hide2!V$5, 'Full set Core Client Indicator'!$A$3:$AB$3, 0))), \"\")","v":""},{"$f":"IF(V244<>\"\", IF(INDEX('Full set Core Client Indicator'!$A$3:$AB$351, MATCH(Selection_Hide2!$A244, 'Full set Core Client Indicator'!$A$3:$A$351, 0), MATCH(Selection_Hide2!W$5, 'Full set Core Client Indicator'!$A$3:$AB$3, 0))=\"\", \"\",  INDEX('Full set Core Client Indicator'!$A$3:$AB$351, MATCH(Selection_Hide2!$A244, 'Full set Core Client Indicator'!$A$3:$A$351, 0), MATCH(Selection_Hide2!W$5, 'Full set Core Client Indicator'!$A$3:$AB$3, 0))), \"\")","v":""},{"$f":"IF(W244<>\"\", IF(INDEX('Full set Core Client Indicator'!$A$3:$AB$351, MATCH(Selection_Hide2!$A244, 'Full set Core Client Indicator'!$A$3:$A$351, 0), MATCH(Selection_Hide2!X$5, 'Full set Core Client Indicator'!$A$3:$AB$3, 0))=\"\", \"\",  INDEX('Full set Core Client Indicator'!$A$3:$AB$351, MATCH(Selection_Hide2!$A244, 'Full set Core Client Indicator'!$A$3:$A$351, 0), MATCH(Selection_Hide2!X$5, 'Full set Core Client Indicator'!$A$3:$AB$3, 0))), \"\")","v":""},{"$f":"IF(X244<>\"\", IF(INDEX('Full set Core Client Indicator'!$A$3:$AB$351, MATCH(Selection_Hide2!$A244, 'Full set Core Client Indicator'!$A$3:$A$351, 0), MATCH(Selection_Hide2!Y$5, 'Full set Core Client Indicator'!$A$3:$AB$3, 0))=\"\", \"\",  INDEX('Full set Core Client Indicator'!$A$3:$AB$351, MATCH(Selection_Hide2!$A244, 'Full set Core Client Indicator'!$A$3:$A$351, 0), MATCH(Selection_Hide2!Y$5, 'Full set Core Client Indicator'!$A$3:$AB$3, 0))), \"\")","v":""},{"$f":"IF(Y244<>\"\", IF(INDEX('Full set Core Client Indicator'!$A$3:$AB$351, MATCH(Selection_Hide2!$A244, 'Full set Core Client Indicator'!$A$3:$A$351, 0), MATCH(Selection_Hide2!Z$5, 'Full set Core Client Indicator'!$A$3:$AB$3, 0))=\"\", \"\",  INDEX('Full set Core Client Indicator'!$A$3:$AB$351, MATCH(Selection_Hide2!$A244, 'Full set Core Client Indicator'!$A$3:$A$351, 0), MATCH(Selection_Hide2!Z$5, 'Full set Core Client Indicator'!$A$3:$AB$3, 0))), \"\")","v":""},{"$f":"IF(Z244<>\"\", IF(INDEX('Full set Core Client Indicator'!$A$3:$AB$351, MATCH(Selection_Hide2!$A244, 'Full set Core Client Indicator'!$A$3:$A$351, 0), MATCH(Selection_Hide2!AA$5, 'Full set Core Client Indicator'!$A$3:$AB$3, 0))=\"\", \"\",  INDEX('Full set Core Client Indicator'!$A$3:$AB$351, MATCH(Selection_Hide2!$A244, 'Full set Core Client Indicator'!$A$3:$A$351, 0), MATCH(Selection_Hide2!AA$5, 'Full set Core Client Indicator'!$A$3:$AB$3, 0))), \"\")","v":""},{"$f":"IF(AA244<>\"\", IF(INDEX('Full set Core Client Indicator'!$A$3:$AB$351, MATCH(Selection_Hide2!$A244, 'Full set Core Client Indicator'!$A$3:$A$351, 0), MATCH(Selection_Hide2!AB$5, 'Full set Core Client Indicator'!$A$3:$AB$3, 0))=\"\", \"\",  INDEX('Full set Core Client Indicator'!$A$3:$AB$351, MATCH(Selection_Hide2!$A244, 'Full set Core Client Indicator'!$A$3:$A$351, 0), MATCH(Selection_Hide2!AB$5, 'Full set Core Client Indicator'!$A$3:$AB$3, 0))), \"\")","v":""}]
[{"$f":"IF(AND(Selection_Hide1!C243<>0, Selection_Hide1!C243<>\"Grand Total\"), Selection_Hide1!C243, \"\")","v":""},{"$f":"IF(A245<>\"\", IF(INDEX('Full set Core Client Indicator'!$A$3:$AB$351, MATCH(Selection_Hide2!$A245, 'Full set Core Client Indicator'!$A$3:$A$351, 0), MATCH(Selection_Hide2!B$5, 'Full set Core Client Indicator'!$A$3:$AB$3, 0))=\"\", \"\",  INDEX('Full set Core Client Indicator'!$A$3:$AB$351, MATCH(Selection_Hide2!$A245, 'Full set Core Client Indicator'!$A$3:$A$351, 0), MATCH(Selection_Hide2!B$5, 'Full set Core Client Indicator'!$A$3:$AB$3, 0))), \"\")","v":""},{"$f":"IF(B245<>\"\", IF(INDEX('Full set Core Client Indicator'!$A$3:$AB$351, MATCH(Selection_Hide2!$A245, 'Full set Core Client Indicator'!$A$3:$A$351, 0), MATCH(Selection_Hide2!C$5, 'Full set Core Client Indicator'!$A$3:$AB$3, 0))=\"\", \"\",  INDEX('Full set Core Client Indicator'!$A$3:$AB$351, MATCH(Selection_Hide2!$A245, 'Full set Core Client Indicator'!$A$3:$A$351, 0), MATCH(Selection_Hide2!C$5, 'Full set Core Client Indicator'!$A$3:$AB$3, 0))), \"\")","v":""},{"$f":"IF(C245<>\"\", IF(INDEX('Full set Core Client Indicator'!$A$3:$AB$351, MATCH(Selection_Hide2!$A245, 'Full set Core Client Indicator'!$A$3:$A$351, 0), MATCH(Selection_Hide2!D$5, 'Full set Core Client Indicator'!$A$3:$AB$3, 0))=\"\", \"\",  INDEX('Full set Core Client Indicator'!$A$3:$AB$351, MATCH(Selection_Hide2!$A245, 'Full set Core Client Indicator'!$A$3:$A$351, 0), MATCH(Selection_Hide2!D$5, 'Full set Core Client Indicator'!$A$3:$AB$3, 0))), \"\")","v":""},{"$f":"IF(D245<>\"\", IF(INDEX('Full set Core Client Indicator'!$A$3:$AB$351, MATCH(Selection_Hide2!$A245, 'Full set Core Client Indicator'!$A$3:$A$351, 0), MATCH(Selection_Hide2!E$5, 'Full set Core Client Indicator'!$A$3:$AB$3, 0))=\"\", \"\",  INDEX('Full set Core Client Indicator'!$A$3:$AB$351, MATCH(Selection_Hide2!$A245, 'Full set Core Client Indicator'!$A$3:$A$351, 0), MATCH(Selection_Hide2!E$5, 'Full set Core Client Indicator'!$A$3:$AB$3, 0))), \"\")","v":""},{"$f":"IF(E245<>\"\", IF(INDEX('Full set Core Client Indicator'!$A$3:$AB$351, MATCH(Selection_Hide2!$A245, 'Full set Core Client Indicator'!$A$3:$A$351, 0), MATCH(Selection_Hide2!F$5, 'Full set Core Client Indicator'!$A$3:$AB$3, 0))=\"\", \"\",  INDEX('Full set Core Client Indicator'!$A$3:$AB$351, MATCH(Selection_Hide2!$A245, 'Full set Core Client Indicator'!$A$3:$A$351, 0), MATCH(Selection_Hide2!F$5, 'Full set Core Client Indicator'!$A$3:$AB$3, 0))), \"\")","v":""},{"$f":"IF(F245<>\"\", IF(INDEX('Full set Core Client Indicator'!$A$3:$AB$351, MATCH(Selection_Hide2!$A245, 'Full set Core Client Indicator'!$A$3:$A$351, 0), MATCH(Selection_Hide2!G$5, 'Full set Core Client Indicator'!$A$3:$AB$3, 0))=\"\", \"\",  INDEX('Full set Core Client Indicator'!$A$3:$AB$351, MATCH(Selection_Hide2!$A245, 'Full set Core Client Indicator'!$A$3:$A$351, 0), MATCH(Selection_Hide2!G$5, 'Full set Core Client Indicator'!$A$3:$AB$3, 0))), \"\")","v":""},{"$f":"IF(G245<>\"\", IF(INDEX('Full set Core Client Indicator'!$A$3:$AB$351, MATCH(Selection_Hide2!$A245, 'Full set Core Client Indicator'!$A$3:$A$351, 0), MATCH(Selection_Hide2!H$5, 'Full set Core Client Indicator'!$A$3:$AB$3, 0))=\"\", \"\",  INDEX('Full set Core Client Indicator'!$A$3:$AB$351, MATCH(Selection_Hide2!$A245, 'Full set Core Client Indicator'!$A$3:$A$351, 0), MATCH(Selection_Hide2!H$5, 'Full set Core Client Indicator'!$A$3:$AB$3, 0))), \"\")","v":""},{"$f":"IF(H245<>\"\", IF(INDEX('Full set Core Client Indicator'!$A$3:$AB$351, MATCH(Selection_Hide2!$A245, 'Full set Core Client Indicator'!$A$3:$A$351, 0), MATCH(Selection_Hide2!I$5, 'Full set Core Client Indicator'!$A$3:$AB$3, 0))=\"\", \"\",  INDEX('Full set Core Client Indicator'!$A$3:$AB$351, MATCH(Selection_Hide2!$A245, 'Full set Core Client Indicator'!$A$3:$A$351, 0), MATCH(Selection_Hide2!I$5, 'Full set Core Client Indicator'!$A$3:$AB$3, 0))), \"\")","v":""},{"$f":"IF(I245<>\"\", IF(INDEX('Full set Core Client Indicator'!$A$3:$AB$351, MATCH(Selection_Hide2!$A245, 'Full set Core Client Indicator'!$A$3:$A$351, 0), MATCH(Selection_Hide2!J$5, 'Full set Core Client Indicator'!$A$3:$AB$3, 0))=\"\", \"\",  INDEX('Full set Core Client Indicator'!$A$3:$AB$351, MATCH(Selection_Hide2!$A245, 'Full set Core Client Indicator'!$A$3:$A$351, 0), MATCH(Selection_Hide2!J$5, 'Full set Core Client Indicator'!$A$3:$AB$3, 0))), \"\")","v":""},{"$f":"IF(J245<>\"\", IF(INDEX('Full set Core Client Indicator'!$A$3:$AB$351, MATCH(Selection_Hide2!$A245, 'Full set Core Client Indicator'!$A$3:$A$351, 0), MATCH(Selection_Hide2!K$5, 'Full set Core Client Indicator'!$A$3:$AB$3, 0))=\"\", \"\",  INDEX('Full set Core Client Indicator'!$A$3:$AB$351, MATCH(Selection_Hide2!$A245, 'Full set Core Client Indicator'!$A$3:$A$351, 0), MATCH(Selection_Hide2!K$5, 'Full set Core Client Indicator'!$A$3:$AB$3, 0))), \"\")","v":""},{"$f":"IF(K245<>\"\", IF(INDEX('Full set Core Client Indicator'!$A$3:$AB$351, MATCH(Selection_Hide2!$A245, 'Full set Core Client Indicator'!$A$3:$A$351, 0), MATCH(Selection_Hide2!L$5, 'Full set Core Client Indicator'!$A$3:$AB$3, 0))=\"\", \"\",  INDEX('Full set Core Client Indicator'!$A$3:$AB$351, MATCH(Selection_Hide2!$A245, 'Full set Core Client Indicator'!$A$3:$A$351, 0), MATCH(Selection_Hide2!L$5, 'Full set Core Client Indicator'!$A$3:$AB$3, 0))), \"\")","v":""},{"$f":"IF(L245<>\"\", IF(INDEX('Full set Core Client Indicator'!$A$3:$AB$351, MATCH(Selection_Hide2!$A245, 'Full set Core Client Indicator'!$A$3:$A$351, 0), MATCH(Selection_Hide2!M$5, 'Full set Core Client Indicator'!$A$3:$AB$3, 0))=\"\", \"\",  INDEX('Full set Core Client Indicator'!$A$3:$AB$351, MATCH(Selection_Hide2!$A245, 'Full set Core Client Indicator'!$A$3:$A$351, 0), MATCH(Selection_Hide2!M$5, 'Full set Core Client Indicator'!$A$3:$AB$3, 0))), \"\")","v":""},{"$f":"IF(M245<>\"\", IF(INDEX('Full set Core Client Indicator'!$A$3:$AB$351, MATCH(Selection_Hide2!$A245, 'Full set Core Client Indicator'!$A$3:$A$351, 0), MATCH(Selection_Hide2!N$5, 'Full set Core Client Indicator'!$A$3:$AB$3, 0))=\"\", \"\",  INDEX('Full set Core Client Indicator'!$A$3:$AB$351, MATCH(Selection_Hide2!$A245, 'Full set Core Client Indicator'!$A$3:$A$351, 0), MATCH(Selection_Hide2!N$5, 'Full set Core Client Indicator'!$A$3:$AB$3, 0))), \"\")","v":""},{"$f":"IF(N245<>\"\", IF(INDEX('Full set Core Client Indicator'!$A$3:$AB$351, MATCH(Selection_Hide2!$A245, 'Full set Core Client Indicator'!$A$3:$A$351, 0), MATCH(Selection_Hide2!O$5, 'Full set Core Client Indicator'!$A$3:$AB$3, 0))=\"\", \"\",  INDEX('Full set Core Client Indicator'!$A$3:$AB$351, MATCH(Selection_Hide2!$A245, 'Full set Core Client Indicator'!$A$3:$A$351, 0), MATCH(Selection_Hide2!O$5, 'Full set Core Client Indicator'!$A$3:$AB$3, 0))), \"\")","v":""},{"$f":"IF(O245<>\"\", IF(INDEX('Full set Core Client Indicator'!$A$3:$AB$351, MATCH(Selection_Hide2!$A245, 'Full set Core Client Indicator'!$A$3:$A$351, 0), MATCH(Selection_Hide2!P$5, 'Full set Core Client Indicator'!$A$3:$AB$3, 0))=\"\", \"\",  INDEX('Full set Core Client Indicator'!$A$3:$AB$351, MATCH(Selection_Hide2!$A245, 'Full set Core Client Indicator'!$A$3:$A$351, 0), MATCH(Selection_Hide2!P$5, 'Full set Core Client Indicator'!$A$3:$AB$3, 0))), \"\")","v":""},{"$f":"IF(P245<>\"\", IF(INDEX('Full set Core Client Indicator'!$A$3:$AB$351, MATCH(Selection_Hide2!$A245, 'Full set Core Client Indicator'!$A$3:$A$351, 0), MATCH(Selection_Hide2!Q$5, 'Full set Core Client Indicator'!$A$3:$AB$3, 0))=\"\", \"\",  INDEX('Full set Core Client Indicator'!$A$3:$AB$351, MATCH(Selection_Hide2!$A245, 'Full set Core Client Indicator'!$A$3:$A$351, 0), MATCH(Selection_Hide2!Q$5, 'Full set Core Client Indicator'!$A$3:$AB$3, 0))), \"\")","v":""},{"$f":"IF(Q245<>\"\", IF(INDEX('Full set Core Client Indicator'!$A$3:$AB$351, MATCH(Selection_Hide2!$A245, 'Full set Core Client Indicator'!$A$3:$A$351, 0), MATCH(Selection_Hide2!R$5, 'Full set Core Client Indicator'!$A$3:$AB$3, 0))=\"\", \"\",  INDEX('Full set Core Client Indicator'!$A$3:$AB$351, MATCH(Selection_Hide2!$A245, 'Full set Core Client Indicator'!$A$3:$A$351, 0), MATCH(Selection_Hide2!R$5, 'Full set Core Client Indicator'!$A$3:$AB$3, 0))), \"\")","v":""},{"$f":"IF(R245<>\"\", IF(INDEX('Full set Core Client Indicator'!$A$3:$AB$351, MATCH(Selection_Hide2!$A245, 'Full set Core Client Indicator'!$A$3:$A$351, 0), MATCH(Selection_Hide2!S$5, 'Full set Core Client Indicator'!$A$3:$AB$3, 0))=\"\", \"\",  INDEX('Full set Core Client Indicator'!$A$3:$AB$351, MATCH(Selection_Hide2!$A245, 'Full set Core Client Indicator'!$A$3:$A$351, 0), MATCH(Selection_Hide2!S$5, 'Full set Core Client Indicator'!$A$3:$AB$3, 0))), \"\")","v":""},{"$f":"IF(S245<>\"\", IF(INDEX('Full set Core Client Indicator'!$A$3:$AB$351, MATCH(Selection_Hide2!$A245, 'Full set Core Client Indicator'!$A$3:$A$351, 0), MATCH(Selection_Hide2!T$5, 'Full set Core Client Indicator'!$A$3:$AB$3, 0))=\"\", \"\",  INDEX('Full set Core Client Indicator'!$A$3:$AB$351, MATCH(Selection_Hide2!$A245, 'Full set Core Client Indicator'!$A$3:$A$351, 0), MATCH(Selection_Hide2!T$5, 'Full set Core Client Indicator'!$A$3:$AB$3, 0))), \"\")","v":""},{"$f":"IF(T245<>\"\", IF(INDEX('Full set Core Client Indicator'!$A$3:$AB$351, MATCH(Selection_Hide2!$A245, 'Full set Core Client Indicator'!$A$3:$A$351, 0), MATCH(Selection_Hide2!U$5, 'Full set Core Client Indicator'!$A$3:$AB$3, 0))=\"\", \"\",  INDEX('Full set Core Client Indicator'!$A$3:$AB$351, MATCH(Selection_Hide2!$A245, 'Full set Core Client Indicator'!$A$3:$A$351, 0), MATCH(Selection_Hide2!U$5, 'Full set Core Client Indicator'!$A$3:$AB$3, 0))), \"\")","v":""},{"$f":"IF(U245<>\"\", IF(INDEX('Full set Core Client Indicator'!$A$3:$AB$351, MATCH(Selection_Hide2!$A245, 'Full set Core Client Indicator'!$A$3:$A$351, 0), MATCH(Selection_Hide2!V$5, 'Full set Core Client Indicator'!$A$3:$AB$3, 0))=\"\", \"\",  INDEX('Full set Core Client Indicator'!$A$3:$AB$351, MATCH(Selection_Hide2!$A245, 'Full set Core Client Indicator'!$A$3:$A$351, 0), MATCH(Selection_Hide2!V$5, 'Full set Core Client Indicator'!$A$3:$AB$3, 0))), \"\")","v":""},{"$f":"IF(V245<>\"\", IF(INDEX('Full set Core Client Indicator'!$A$3:$AB$351, MATCH(Selection_Hide2!$A245, 'Full set Core Client Indicator'!$A$3:$A$351, 0), MATCH(Selection_Hide2!W$5, 'Full set Core Client Indicator'!$A$3:$AB$3, 0))=\"\", \"\",  INDEX('Full set Core Client Indicator'!$A$3:$AB$351, MATCH(Selection_Hide2!$A245, 'Full set Core Client Indicator'!$A$3:$A$351, 0), MATCH(Selection_Hide2!W$5, 'Full set Core Client Indicator'!$A$3:$AB$3, 0))), \"\")","v":""},{"$f":"IF(W245<>\"\", IF(INDEX('Full set Core Client Indicator'!$A$3:$AB$351, MATCH(Selection_Hide2!$A245, 'Full set Core Client Indicator'!$A$3:$A$351, 0), MATCH(Selection_Hide2!X$5, 'Full set Core Client Indicator'!$A$3:$AB$3, 0))=\"\", \"\",  INDEX('Full set Core Client Indicator'!$A$3:$AB$351, MATCH(Selection_Hide2!$A245, 'Full set Core Client Indicator'!$A$3:$A$351, 0), MATCH(Selection_Hide2!X$5, 'Full set Core Client Indicator'!$A$3:$AB$3, 0))), \"\")","v":""},{"$f":"IF(X245<>\"\", IF(INDEX('Full set Core Client Indicator'!$A$3:$AB$351, MATCH(Selection_Hide2!$A245, 'Full set Core Client Indicator'!$A$3:$A$351, 0), MATCH(Selection_Hide2!Y$5, 'Full set Core Client Indicator'!$A$3:$AB$3, 0))=\"\", \"\",  INDEX('Full set Core Client Indicator'!$A$3:$AB$351, MATCH(Selection_Hide2!$A245, 'Full set Core Client Indicator'!$A$3:$A$351, 0), MATCH(Selection_Hide2!Y$5, 'Full set Core Client Indicator'!$A$3:$AB$3, 0))), \"\")","v":""},{"$f":"IF(Y245<>\"\", IF(INDEX('Full set Core Client Indicator'!$A$3:$AB$351, MATCH(Selection_Hide2!$A245, 'Full set Core Client Indicator'!$A$3:$A$351, 0), MATCH(Selection_Hide2!Z$5, 'Full set Core Client Indicator'!$A$3:$AB$3, 0))=\"\", \"\",  INDEX('Full set Core Client Indicator'!$A$3:$AB$351, MATCH(Selection_Hide2!$A245, 'Full set Core Client Indicator'!$A$3:$A$351, 0), MATCH(Selection_Hide2!Z$5, 'Full set Core Client Indicator'!$A$3:$AB$3, 0))), \"\")","v":""},{"$f":"IF(Z245<>\"\", IF(INDEX('Full set Core Client Indicator'!$A$3:$AB$351, MATCH(Selection_Hide2!$A245, 'Full set Core Client Indicator'!$A$3:$A$351, 0), MATCH(Selection_Hide2!AA$5, 'Full set Core Client Indicator'!$A$3:$AB$3, 0))=\"\", \"\",  INDEX('Full set Core Client Indicator'!$A$3:$AB$351, MATCH(Selection_Hide2!$A245, 'Full set Core Client Indicator'!$A$3:$A$351, 0), MATCH(Selection_Hide2!AA$5, 'Full set Core Client Indicator'!$A$3:$AB$3, 0))), \"\")","v":""},{"$f":"IF(AA245<>\"\", IF(INDEX('Full set Core Client Indicator'!$A$3:$AB$351, MATCH(Selection_Hide2!$A245, 'Full set Core Client Indicator'!$A$3:$A$351, 0), MATCH(Selection_Hide2!AB$5, 'Full set Core Client Indicator'!$A$3:$AB$3, 0))=\"\", \"\",  INDEX('Full set Core Client Indicator'!$A$3:$AB$351, MATCH(Selection_Hide2!$A245, 'Full set Core Client Indicator'!$A$3:$A$351, 0), MATCH(Selection_Hide2!AB$5, 'Full set Core Client Indicator'!$A$3:$AB$3, 0))), \"\")","v":""}]
[{"$f":"IF(AND(Selection_Hide1!C244<>0, Selection_Hide1!C244<>\"Grand Total\"), Selection_Hide1!C244, \"\")","v":""},{"$f":"IF(A246<>\"\", IF(INDEX('Full set Core Client Indicator'!$A$3:$AB$351, MATCH(Selection_Hide2!$A246, 'Full set Core Client Indicator'!$A$3:$A$351, 0), MATCH(Selection_Hide2!B$5, 'Full set Core Client Indicator'!$A$3:$AB$3, 0))=\"\", \"\",  INDEX('Full set Core Client Indicator'!$A$3:$AB$351, MATCH(Selection_Hide2!$A246, 'Full set Core Client Indicator'!$A$3:$A$351, 0), MATCH(Selection_Hide2!B$5, 'Full set Core Client Indicator'!$A$3:$AB$3, 0))), \"\")","v":""},{"$f":"IF(B246<>\"\", IF(INDEX('Full set Core Client Indicator'!$A$3:$AB$351, MATCH(Selection_Hide2!$A246, 'Full set Core Client Indicator'!$A$3:$A$351, 0), MATCH(Selection_Hide2!C$5, 'Full set Core Client Indicator'!$A$3:$AB$3, 0))=\"\", \"\",  INDEX('Full set Core Client Indicator'!$A$3:$AB$351, MATCH(Selection_Hide2!$A246, 'Full set Core Client Indicator'!$A$3:$A$351, 0), MATCH(Selection_Hide2!C$5, 'Full set Core Client Indicator'!$A$3:$AB$3, 0))), \"\")","v":""},{"$f":"IF(C246<>\"\", IF(INDEX('Full set Core Client Indicator'!$A$3:$AB$351, MATCH(Selection_Hide2!$A246, 'Full set Core Client Indicator'!$A$3:$A$351, 0), MATCH(Selection_Hide2!D$5, 'Full set Core Client Indicator'!$A$3:$AB$3, 0))=\"\", \"\",  INDEX('Full set Core Client Indicator'!$A$3:$AB$351, MATCH(Selection_Hide2!$A246, 'Full set Core Client Indicator'!$A$3:$A$351, 0), MATCH(Selection_Hide2!D$5, 'Full set Core Client Indicator'!$A$3:$AB$3, 0))), \"\")","v":""},{"$f":"IF(D246<>\"\", IF(INDEX('Full set Core Client Indicator'!$A$3:$AB$351, MATCH(Selection_Hide2!$A246, 'Full set Core Client Indicator'!$A$3:$A$351, 0), MATCH(Selection_Hide2!E$5, 'Full set Core Client Indicator'!$A$3:$AB$3, 0))=\"\", \"\",  INDEX('Full set Core Client Indicator'!$A$3:$AB$351, MATCH(Selection_Hide2!$A246, 'Full set Core Client Indicator'!$A$3:$A$351, 0), MATCH(Selection_Hide2!E$5, 'Full set Core Client Indicator'!$A$3:$AB$3, 0))), \"\")","v":""},{"$f":"IF(E246<>\"\", IF(INDEX('Full set Core Client Indicator'!$A$3:$AB$351, MATCH(Selection_Hide2!$A246, 'Full set Core Client Indicator'!$A$3:$A$351, 0), MATCH(Selection_Hide2!F$5, 'Full set Core Client Indicator'!$A$3:$AB$3, 0))=\"\", \"\",  INDEX('Full set Core Client Indicator'!$A$3:$AB$351, MATCH(Selection_Hide2!$A246, 'Full set Core Client Indicator'!$A$3:$A$351, 0), MATCH(Selection_Hide2!F$5, 'Full set Core Client Indicator'!$A$3:$AB$3, 0))), \"\")","v":""},{"$f":"IF(F246<>\"\", IF(INDEX('Full set Core Client Indicator'!$A$3:$AB$351, MATCH(Selection_Hide2!$A246, 'Full set Core Client Indicator'!$A$3:$A$351, 0), MATCH(Selection_Hide2!G$5, 'Full set Core Client Indicator'!$A$3:$AB$3, 0))=\"\", \"\",  INDEX('Full set Core Client Indicator'!$A$3:$AB$351, MATCH(Selection_Hide2!$A246, 'Full set Core Client Indicator'!$A$3:$A$351, 0), MATCH(Selection_Hide2!G$5, 'Full set Core Client Indicator'!$A$3:$AB$3, 0))), \"\")","v":""},{"$f":"IF(G246<>\"\", IF(INDEX('Full set Core Client Indicator'!$A$3:$AB$351, MATCH(Selection_Hide2!$A246, 'Full set Core Client Indicator'!$A$3:$A$351, 0), MATCH(Selection_Hide2!H$5, 'Full set Core Client Indicator'!$A$3:$AB$3, 0))=\"\", \"\",  INDEX('Full set Core Client Indicator'!$A$3:$AB$351, MATCH(Selection_Hide2!$A246, 'Full set Core Client Indicator'!$A$3:$A$351, 0), MATCH(Selection_Hide2!H$5, 'Full set Core Client Indicator'!$A$3:$AB$3, 0))), \"\")","v":""},{"$f":"IF(H246<>\"\", IF(INDEX('Full set Core Client Indicator'!$A$3:$AB$351, MATCH(Selection_Hide2!$A246, 'Full set Core Client Indicator'!$A$3:$A$351, 0), MATCH(Selection_Hide2!I$5, 'Full set Core Client Indicator'!$A$3:$AB$3, 0))=\"\", \"\",  INDEX('Full set Core Client Indicator'!$A$3:$AB$351, MATCH(Selection_Hide2!$A246, 'Full set Core Client Indicator'!$A$3:$A$351, 0), MATCH(Selection_Hide2!I$5, 'Full set Core Client Indicator'!$A$3:$AB$3, 0))), \"\")","v":""},{"$f":"IF(I246<>\"\", IF(INDEX('Full set Core Client Indicator'!$A$3:$AB$351, MATCH(Selection_Hide2!$A246, 'Full set Core Client Indicator'!$A$3:$A$351, 0), MATCH(Selection_Hide2!J$5, 'Full set Core Client Indicator'!$A$3:$AB$3, 0))=\"\", \"\",  INDEX('Full set Core Client Indicator'!$A$3:$AB$351, MATCH(Selection_Hide2!$A246, 'Full set Core Client Indicator'!$A$3:$A$351, 0), MATCH(Selection_Hide2!J$5, 'Full set Core Client Indicator'!$A$3:$AB$3, 0))), \"\")","v":""},{"$f":"IF(J246<>\"\", IF(INDEX('Full set Core Client Indicator'!$A$3:$AB$351, MATCH(Selection_Hide2!$A246, 'Full set Core Client Indicator'!$A$3:$A$351, 0), MATCH(Selection_Hide2!K$5, 'Full set Core Client Indicator'!$A$3:$AB$3, 0))=\"\", \"\",  INDEX('Full set Core Client Indicator'!$A$3:$AB$351, MATCH(Selection_Hide2!$A246, 'Full set Core Client Indicator'!$A$3:$A$351, 0), MATCH(Selection_Hide2!K$5, 'Full set Core Client Indicator'!$A$3:$AB$3, 0))), \"\")","v":""},{"$f":"IF(K246<>\"\", IF(INDEX('Full set Core Client Indicator'!$A$3:$AB$351, MATCH(Selection_Hide2!$A246, 'Full set Core Client Indicator'!$A$3:$A$351, 0), MATCH(Selection_Hide2!L$5, 'Full set Core Client Indicator'!$A$3:$AB$3, 0))=\"\", \"\",  INDEX('Full set Core Client Indicator'!$A$3:$AB$351, MATCH(Selection_Hide2!$A246, 'Full set Core Client Indicator'!$A$3:$A$351, 0), MATCH(Selection_Hide2!L$5, 'Full set Core Client Indicator'!$A$3:$AB$3, 0))), \"\")","v":""},{"$f":"IF(L246<>\"\", IF(INDEX('Full set Core Client Indicator'!$A$3:$AB$351, MATCH(Selection_Hide2!$A246, 'Full set Core Client Indicator'!$A$3:$A$351, 0), MATCH(Selection_Hide2!M$5, 'Full set Core Client Indicator'!$A$3:$AB$3, 0))=\"\", \"\",  INDEX('Full set Core Client Indicator'!$A$3:$AB$351, MATCH(Selection_Hide2!$A246, 'Full set Core Client Indicator'!$A$3:$A$351, 0), MATCH(Selection_Hide2!M$5, 'Full set Core Client Indicator'!$A$3:$AB$3, 0))), \"\")","v":""},{"$f":"IF(M246<>\"\", IF(INDEX('Full set Core Client Indicator'!$A$3:$AB$351, MATCH(Selection_Hide2!$A246, 'Full set Core Client Indicator'!$A$3:$A$351, 0), MATCH(Selection_Hide2!N$5, 'Full set Core Client Indicator'!$A$3:$AB$3, 0))=\"\", \"\",  INDEX('Full set Core Client Indicator'!$A$3:$AB$351, MATCH(Selection_Hide2!$A246, 'Full set Core Client Indicator'!$A$3:$A$351, 0), MATCH(Selection_Hide2!N$5, 'Full set Core Client Indicator'!$A$3:$AB$3, 0))), \"\")","v":""},{"$f":"IF(N246<>\"\", IF(INDEX('Full set Core Client Indicator'!$A$3:$AB$351, MATCH(Selection_Hide2!$A246, 'Full set Core Client Indicator'!$A$3:$A$351, 0), MATCH(Selection_Hide2!O$5, 'Full set Core Client Indicator'!$A$3:$AB$3, 0))=\"\", \"\",  INDEX('Full set Core Client Indicator'!$A$3:$AB$351, MATCH(Selection_Hide2!$A246, 'Full set Core Client Indicator'!$A$3:$A$351, 0), MATCH(Selection_Hide2!O$5, 'Full set Core Client Indicator'!$A$3:$AB$3, 0))), \"\")","v":""},{"$f":"IF(O246<>\"\", IF(INDEX('Full set Core Client Indicator'!$A$3:$AB$351, MATCH(Selection_Hide2!$A246, 'Full set Core Client Indicator'!$A$3:$A$351, 0), MATCH(Selection_Hide2!P$5, 'Full set Core Client Indicator'!$A$3:$AB$3, 0))=\"\", \"\",  INDEX('Full set Core Client Indicator'!$A$3:$AB$351, MATCH(Selection_Hide2!$A246, 'Full set Core Client Indicator'!$A$3:$A$351, 0), MATCH(Selection_Hide2!P$5, 'Full set Core Client Indicator'!$A$3:$AB$3, 0))), \"\")","v":""},{"$f":"IF(P246<>\"\", IF(INDEX('Full set Core Client Indicator'!$A$3:$AB$351, MATCH(Selection_Hide2!$A246, 'Full set Core Client Indicator'!$A$3:$A$351, 0), MATCH(Selection_Hide2!Q$5, 'Full set Core Client Indicator'!$A$3:$AB$3, 0))=\"\", \"\",  INDEX('Full set Core Client Indicator'!$A$3:$AB$351, MATCH(Selection_Hide2!$A246, 'Full set Core Client Indicator'!$A$3:$A$351, 0), MATCH(Selection_Hide2!Q$5, 'Full set Core Client Indicator'!$A$3:$AB$3, 0))), \"\")","v":""},{"$f":"IF(Q246<>\"\", IF(INDEX('Full set Core Client Indicator'!$A$3:$AB$351, MATCH(Selection_Hide2!$A246, 'Full set Core Client Indicator'!$A$3:$A$351, 0), MATCH(Selection_Hide2!R$5, 'Full set Core Client Indicator'!$A$3:$AB$3, 0))=\"\", \"\",  INDEX('Full set Core Client Indicator'!$A$3:$AB$351, MATCH(Selection_Hide2!$A246, 'Full set Core Client Indicator'!$A$3:$A$351, 0), MATCH(Selection_Hide2!R$5, 'Full set Core Client Indicator'!$A$3:$AB$3, 0))), \"\")","v":""},{"$f":"IF(R246<>\"\", IF(INDEX('Full set Core Client Indicator'!$A$3:$AB$351, MATCH(Selection_Hide2!$A246, 'Full set Core Client Indicator'!$A$3:$A$351, 0), MATCH(Selection_Hide2!S$5, 'Full set Core Client Indicator'!$A$3:$AB$3, 0))=\"\", \"\",  INDEX('Full set Core Client Indicator'!$A$3:$AB$351, MATCH(Selection_Hide2!$A246, 'Full set Core Client Indicator'!$A$3:$A$351, 0), MATCH(Selection_Hide2!S$5, 'Full set Core Client Indicator'!$A$3:$AB$3, 0))), \"\")","v":""},{"$f":"IF(S246<>\"\", IF(INDEX('Full set Core Client Indicator'!$A$3:$AB$351, MATCH(Selection_Hide2!$A246, 'Full set Core Client Indicator'!$A$3:$A$351, 0), MATCH(Selection_Hide2!T$5, 'Full set Core Client Indicator'!$A$3:$AB$3, 0))=\"\", \"\",  INDEX('Full set Core Client Indicator'!$A$3:$AB$351, MATCH(Selection_Hide2!$A246, 'Full set Core Client Indicator'!$A$3:$A$351, 0), MATCH(Selection_Hide2!T$5, 'Full set Core Client Indicator'!$A$3:$AB$3, 0))), \"\")","v":""},{"$f":"IF(T246<>\"\", IF(INDEX('Full set Core Client Indicator'!$A$3:$AB$351, MATCH(Selection_Hide2!$A246, 'Full set Core Client Indicator'!$A$3:$A$351, 0), MATCH(Selection_Hide2!U$5, 'Full set Core Client Indicator'!$A$3:$AB$3, 0))=\"\", \"\",  INDEX('Full set Core Client Indicator'!$A$3:$AB$351, MATCH(Selection_Hide2!$A246, 'Full set Core Client Indicator'!$A$3:$A$351, 0), MATCH(Selection_Hide2!U$5, 'Full set Core Client Indicator'!$A$3:$AB$3, 0))), \"\")","v":""},{"$f":"IF(U246<>\"\", IF(INDEX('Full set Core Client Indicator'!$A$3:$AB$351, MATCH(Selection_Hide2!$A246, 'Full set Core Client Indicator'!$A$3:$A$351, 0), MATCH(Selection_Hide2!V$5, 'Full set Core Client Indicator'!$A$3:$AB$3, 0))=\"\", \"\",  INDEX('Full set Core Client Indicator'!$A$3:$AB$351, MATCH(Selection_Hide2!$A246, 'Full set Core Client Indicator'!$A$3:$A$351, 0), MATCH(Selection_Hide2!V$5, 'Full set Core Client Indicator'!$A$3:$AB$3, 0))), \"\")","v":""},{"$f":"IF(V246<>\"\", IF(INDEX('Full set Core Client Indicator'!$A$3:$AB$351, MATCH(Selection_Hide2!$A246, 'Full set Core Client Indicator'!$A$3:$A$351, 0), MATCH(Selection_Hide2!W$5, 'Full set Core Client Indicator'!$A$3:$AB$3, 0))=\"\", \"\",  INDEX('Full set Core Client Indicator'!$A$3:$AB$351, MATCH(Selection_Hide2!$A246, 'Full set Core Client Indicator'!$A$3:$A$351, 0), MATCH(Selection_Hide2!W$5, 'Full set Core Client Indicator'!$A$3:$AB$3, 0))), \"\")","v":""},{"$f":"IF(W246<>\"\", IF(INDEX('Full set Core Client Indicator'!$A$3:$AB$351, MATCH(Selection_Hide2!$A246, 'Full set Core Client Indicator'!$A$3:$A$351, 0), MATCH(Selection_Hide2!X$5, 'Full set Core Client Indicator'!$A$3:$AB$3, 0))=\"\", \"\",  INDEX('Full set Core Client Indicator'!$A$3:$AB$351, MATCH(Selection_Hide2!$A246, 'Full set Core Client Indicator'!$A$3:$A$351, 0), MATCH(Selection_Hide2!X$5, 'Full set Core Client Indicator'!$A$3:$AB$3, 0))), \"\")","v":""},{"$f":"IF(X246<>\"\", IF(INDEX('Full set Core Client Indicator'!$A$3:$AB$351, MATCH(Selection_Hide2!$A246, 'Full set Core Client Indicator'!$A$3:$A$351, 0), MATCH(Selection_Hide2!Y$5, 'Full set Core Client Indicator'!$A$3:$AB$3, 0))=\"\", \"\",  INDEX('Full set Core Client Indicator'!$A$3:$AB$351, MATCH(Selection_Hide2!$A246, 'Full set Core Client Indicator'!$A$3:$A$351, 0), MATCH(Selection_Hide2!Y$5, 'Full set Core Client Indicator'!$A$3:$AB$3, 0))), \"\")","v":""},{"$f":"IF(Y246<>\"\", IF(INDEX('Full set Core Client Indicator'!$A$3:$AB$351, MATCH(Selection_Hide2!$A246, 'Full set Core Client Indicator'!$A$3:$A$351, 0), MATCH(Selection_Hide2!Z$5, 'Full set Core Client Indicator'!$A$3:$AB$3, 0))=\"\", \"\",  INDEX('Full set Core Client Indicator'!$A$3:$AB$351, MATCH(Selection_Hide2!$A246, 'Full set Core Client Indicator'!$A$3:$A$351, 0), MATCH(Selection_Hide2!Z$5, 'Full set Core Client Indicator'!$A$3:$AB$3, 0))), \"\")","v":""},{"$f":"IF(Z246<>\"\", IF(INDEX('Full set Core Client Indicator'!$A$3:$AB$351, MATCH(Selection_Hide2!$A246, 'Full set Core Client Indicator'!$A$3:$A$351, 0), MATCH(Selection_Hide2!AA$5, 'Full set Core Client Indicator'!$A$3:$AB$3, 0))=\"\", \"\",  INDEX('Full set Core Client Indicator'!$A$3:$AB$351, MATCH(Selection_Hide2!$A246, 'Full set Core Client Indicator'!$A$3:$A$351, 0), MATCH(Selection_Hide2!AA$5, 'Full set Core Client Indicator'!$A$3:$AB$3, 0))), \"\")","v":""},{"$f":"IF(AA246<>\"\", IF(INDEX('Full set Core Client Indicator'!$A$3:$AB$351, MATCH(Selection_Hide2!$A246, 'Full set Core Client Indicator'!$A$3:$A$351, 0), MATCH(Selection_Hide2!AB$5, 'Full set Core Client Indicator'!$A$3:$AB$3, 0))=\"\", \"\",  INDEX('Full set Core Client Indicator'!$A$3:$AB$351, MATCH(Selection_Hide2!$A246, 'Full set Core Client Indicator'!$A$3:$A$351, 0), MATCH(Selection_Hide2!AB$5, 'Full set Core Client Indicator'!$A$3:$AB$3, 0))), \"\")","v":""}]
[{"$f":"IF(AND(Selection_Hide1!C245<>0, Selection_Hide1!C245<>\"Grand Total\"), Selection_Hide1!C245, \"\")","v":""},{"$f":"IF(A247<>\"\", IF(INDEX('Full set Core Client Indicator'!$A$3:$AB$351, MATCH(Selection_Hide2!$A247, 'Full set Core Client Indicator'!$A$3:$A$351, 0), MATCH(Selection_Hide2!B$5, 'Full set Core Client Indicator'!$A$3:$AB$3, 0))=\"\", \"\",  INDEX('Full set Core Client Indicator'!$A$3:$AB$351, MATCH(Selection_Hide2!$A247, 'Full set Core Client Indicator'!$A$3:$A$351, 0), MATCH(Selection_Hide2!B$5, 'Full set Core Client Indicator'!$A$3:$AB$3, 0))), \"\")","v":""},{"$f":"IF(B247<>\"\", IF(INDEX('Full set Core Client Indicator'!$A$3:$AB$351, MATCH(Selection_Hide2!$A247, 'Full set Core Client Indicator'!$A$3:$A$351, 0), MATCH(Selection_Hide2!C$5, 'Full set Core Client Indicator'!$A$3:$AB$3, 0))=\"\", \"\",  INDEX('Full set Core Client Indicator'!$A$3:$AB$351, MATCH(Selection_Hide2!$A247, 'Full set Core Client Indicator'!$A$3:$A$351, 0), MATCH(Selection_Hide2!C$5, 'Full set Core Client Indicator'!$A$3:$AB$3, 0))), \"\")","v":""},{"$f":"IF(C247<>\"\", IF(INDEX('Full set Core Client Indicator'!$A$3:$AB$351, MATCH(Selection_Hide2!$A247, 'Full set Core Client Indicator'!$A$3:$A$351, 0), MATCH(Selection_Hide2!D$5, 'Full set Core Client Indicator'!$A$3:$AB$3, 0))=\"\", \"\",  INDEX('Full set Core Client Indicator'!$A$3:$AB$351, MATCH(Selection_Hide2!$A247, 'Full set Core Client Indicator'!$A$3:$A$351, 0), MATCH(Selection_Hide2!D$5, 'Full set Core Client Indicator'!$A$3:$AB$3, 0))), \"\")","v":""},{"$f":"IF(D247<>\"\", IF(INDEX('Full set Core Client Indicator'!$A$3:$AB$351, MATCH(Selection_Hide2!$A247, 'Full set Core Client Indicator'!$A$3:$A$351, 0), MATCH(Selection_Hide2!E$5, 'Full set Core Client Indicator'!$A$3:$AB$3, 0))=\"\", \"\",  INDEX('Full set Core Client Indicator'!$A$3:$AB$351, MATCH(Selection_Hide2!$A247, 'Full set Core Client Indicator'!$A$3:$A$351, 0), MATCH(Selection_Hide2!E$5, 'Full set Core Client Indicator'!$A$3:$AB$3, 0))), \"\")","v":""},{"$f":"IF(E247<>\"\", IF(INDEX('Full set Core Client Indicator'!$A$3:$AB$351, MATCH(Selection_Hide2!$A247, 'Full set Core Client Indicator'!$A$3:$A$351, 0), MATCH(Selection_Hide2!F$5, 'Full set Core Client Indicator'!$A$3:$AB$3, 0))=\"\", \"\",  INDEX('Full set Core Client Indicator'!$A$3:$AB$351, MATCH(Selection_Hide2!$A247, 'Full set Core Client Indicator'!$A$3:$A$351, 0), MATCH(Selection_Hide2!F$5, 'Full set Core Client Indicator'!$A$3:$AB$3, 0))), \"\")","v":""},{"$f":"IF(F247<>\"\", IF(INDEX('Full set Core Client Indicator'!$A$3:$AB$351, MATCH(Selection_Hide2!$A247, 'Full set Core Client Indicator'!$A$3:$A$351, 0), MATCH(Selection_Hide2!G$5, 'Full set Core Client Indicator'!$A$3:$AB$3, 0))=\"\", \"\",  INDEX('Full set Core Client Indicator'!$A$3:$AB$351, MATCH(Selection_Hide2!$A247, 'Full set Core Client Indicator'!$A$3:$A$351, 0), MATCH(Selection_Hide2!G$5, 'Full set Core Client Indicator'!$A$3:$AB$3, 0))), \"\")","v":""},{"$f":"IF(G247<>\"\", IF(INDEX('Full set Core Client Indicator'!$A$3:$AB$351, MATCH(Selection_Hide2!$A247, 'Full set Core Client Indicator'!$A$3:$A$351, 0), MATCH(Selection_Hide2!H$5, 'Full set Core Client Indicator'!$A$3:$AB$3, 0))=\"\", \"\",  INDEX('Full set Core Client Indicator'!$A$3:$AB$351, MATCH(Selection_Hide2!$A247, 'Full set Core Client Indicator'!$A$3:$A$351, 0), MATCH(Selection_Hide2!H$5, 'Full set Core Client Indicator'!$A$3:$AB$3, 0))), \"\")","v":""},{"$f":"IF(H247<>\"\", IF(INDEX('Full set Core Client Indicator'!$A$3:$AB$351, MATCH(Selection_Hide2!$A247, 'Full set Core Client Indicator'!$A$3:$A$351, 0), MATCH(Selection_Hide2!I$5, 'Full set Core Client Indicator'!$A$3:$AB$3, 0))=\"\", \"\",  INDEX('Full set Core Client Indicator'!$A$3:$AB$351, MATCH(Selection_Hide2!$A247, 'Full set Core Client Indicator'!$A$3:$A$351, 0), MATCH(Selection_Hide2!I$5, 'Full set Core Client Indicator'!$A$3:$AB$3, 0))), \"\")","v":""},{"$f":"IF(I247<>\"\", IF(INDEX('Full set Core Client Indicator'!$A$3:$AB$351, MATCH(Selection_Hide2!$A247, 'Full set Core Client Indicator'!$A$3:$A$351, 0), MATCH(Selection_Hide2!J$5, 'Full set Core Client Indicator'!$A$3:$AB$3, 0))=\"\", \"\",  INDEX('Full set Core Client Indicator'!$A$3:$AB$351, MATCH(Selection_Hide2!$A247, 'Full set Core Client Indicator'!$A$3:$A$351, 0), MATCH(Selection_Hide2!J$5, 'Full set Core Client Indicator'!$A$3:$AB$3, 0))), \"\")","v":""},{"$f":"IF(J247<>\"\", IF(INDEX('Full set Core Client Indicator'!$A$3:$AB$351, MATCH(Selection_Hide2!$A247, 'Full set Core Client Indicator'!$A$3:$A$351, 0), MATCH(Selection_Hide2!K$5, 'Full set Core Client Indicator'!$A$3:$AB$3, 0))=\"\", \"\",  INDEX('Full set Core Client Indicator'!$A$3:$AB$351, MATCH(Selection_Hide2!$A247, 'Full set Core Client Indicator'!$A$3:$A$351, 0), MATCH(Selection_Hide2!K$5, 'Full set Core Client Indicator'!$A$3:$AB$3, 0))), \"\")","v":""},{"$f":"IF(K247<>\"\", IF(INDEX('Full set Core Client Indicator'!$A$3:$AB$351, MATCH(Selection_Hide2!$A247, 'Full set Core Client Indicator'!$A$3:$A$351, 0), MATCH(Selection_Hide2!L$5, 'Full set Core Client Indicator'!$A$3:$AB$3, 0))=\"\", \"\",  INDEX('Full set Core Client Indicator'!$A$3:$AB$351, MATCH(Selection_Hide2!$A247, 'Full set Core Client Indicator'!$A$3:$A$351, 0), MATCH(Selection_Hide2!L$5, 'Full set Core Client Indicator'!$A$3:$AB$3, 0))), \"\")","v":""},{"$f":"IF(L247<>\"\", IF(INDEX('Full set Core Client Indicator'!$A$3:$AB$351, MATCH(Selection_Hide2!$A247, 'Full set Core Client Indicator'!$A$3:$A$351, 0), MATCH(Selection_Hide2!M$5, 'Full set Core Client Indicator'!$A$3:$AB$3, 0))=\"\", \"\",  INDEX('Full set Core Client Indicator'!$A$3:$AB$351, MATCH(Selection_Hide2!$A247, 'Full set Core Client Indicator'!$A$3:$A$351, 0), MATCH(Selection_Hide2!M$5, 'Full set Core Client Indicator'!$A$3:$AB$3, 0))), \"\")","v":""},{"$f":"IF(M247<>\"\", IF(INDEX('Full set Core Client Indicator'!$A$3:$AB$351, MATCH(Selection_Hide2!$A247, 'Full set Core Client Indicator'!$A$3:$A$351, 0), MATCH(Selection_Hide2!N$5, 'Full set Core Client Indicator'!$A$3:$AB$3, 0))=\"\", \"\",  INDEX('Full set Core Client Indicator'!$A$3:$AB$351, MATCH(Selection_Hide2!$A247, 'Full set Core Client Indicator'!$A$3:$A$351, 0), MATCH(Selection_Hide2!N$5, 'Full set Core Client Indicator'!$A$3:$AB$3, 0))), \"\")","v":""},{"$f":"IF(N247<>\"\", IF(INDEX('Full set Core Client Indicator'!$A$3:$AB$351, MATCH(Selection_Hide2!$A247, 'Full set Core Client Indicator'!$A$3:$A$351, 0), MATCH(Selection_Hide2!O$5, 'Full set Core Client Indicator'!$A$3:$AB$3, 0))=\"\", \"\",  INDEX('Full set Core Client Indicator'!$A$3:$AB$351, MATCH(Selection_Hide2!$A247, 'Full set Core Client Indicator'!$A$3:$A$351, 0), MATCH(Selection_Hide2!O$5, 'Full set Core Client Indicator'!$A$3:$AB$3, 0))), \"\")","v":""},{"$f":"IF(O247<>\"\", IF(INDEX('Full set Core Client Indicator'!$A$3:$AB$351, MATCH(Selection_Hide2!$A247, 'Full set Core Client Indicator'!$A$3:$A$351, 0), MATCH(Selection_Hide2!P$5, 'Full set Core Client Indicator'!$A$3:$AB$3, 0))=\"\", \"\",  INDEX('Full set Core Client Indicator'!$A$3:$AB$351, MATCH(Selection_Hide2!$A247, 'Full set Core Client Indicator'!$A$3:$A$351, 0), MATCH(Selection_Hide2!P$5, 'Full set Core Client Indicator'!$A$3:$AB$3, 0))), \"\")","v":""},{"$f":"IF(P247<>\"\", IF(INDEX('Full set Core Client Indicator'!$A$3:$AB$351, MATCH(Selection_Hide2!$A247, 'Full set Core Client Indicator'!$A$3:$A$351, 0), MATCH(Selection_Hide2!Q$5, 'Full set Core Client Indicator'!$A$3:$AB$3, 0))=\"\", \"\",  INDEX('Full set Core Client Indicator'!$A$3:$AB$351, MATCH(Selection_Hide2!$A247, 'Full set Core Client Indicator'!$A$3:$A$351, 0), MATCH(Selection_Hide2!Q$5, 'Full set Core Client Indicator'!$A$3:$AB$3, 0))), \"\")","v":""},{"$f":"IF(Q247<>\"\", IF(INDEX('Full set Core Client Indicator'!$A$3:$AB$351, MATCH(Selection_Hide2!$A247, 'Full set Core Client Indicator'!$A$3:$A$351, 0), MATCH(Selection_Hide2!R$5, 'Full set Core Client Indicator'!$A$3:$AB$3, 0))=\"\", \"\",  INDEX('Full set Core Client Indicator'!$A$3:$AB$351, MATCH(Selection_Hide2!$A247, 'Full set Core Client Indicator'!$A$3:$A$351, 0), MATCH(Selection_Hide2!R$5, 'Full set Core Client Indicator'!$A$3:$AB$3, 0))), \"\")","v":""},{"$f":"IF(R247<>\"\", IF(INDEX('Full set Core Client Indicator'!$A$3:$AB$351, MATCH(Selection_Hide2!$A247, 'Full set Core Client Indicator'!$A$3:$A$351, 0), MATCH(Selection_Hide2!S$5, 'Full set Core Client Indicator'!$A$3:$AB$3, 0))=\"\", \"\",  INDEX('Full set Core Client Indicator'!$A$3:$AB$351, MATCH(Selection_Hide2!$A247, 'Full set Core Client Indicator'!$A$3:$A$351, 0), MATCH(Selection_Hide2!S$5, 'Full set Core Client Indicator'!$A$3:$AB$3, 0))), \"\")","v":""},{"$f":"IF(S247<>\"\", IF(INDEX('Full set Core Client Indicator'!$A$3:$AB$351, MATCH(Selection_Hide2!$A247, 'Full set Core Client Indicator'!$A$3:$A$351, 0), MATCH(Selection_Hide2!T$5, 'Full set Core Client Indicator'!$A$3:$AB$3, 0))=\"\", \"\",  INDEX('Full set Core Client Indicator'!$A$3:$AB$351, MATCH(Selection_Hide2!$A247, 'Full set Core Client Indicator'!$A$3:$A$351, 0), MATCH(Selection_Hide2!T$5, 'Full set Core Client Indicator'!$A$3:$AB$3, 0))), \"\")","v":""},{"$f":"IF(T247<>\"\", IF(INDEX('Full set Core Client Indicator'!$A$3:$AB$351, MATCH(Selection_Hide2!$A247, 'Full set Core Client Indicator'!$A$3:$A$351, 0), MATCH(Selection_Hide2!U$5, 'Full set Core Client Indicator'!$A$3:$AB$3, 0))=\"\", \"\",  INDEX('Full set Core Client Indicator'!$A$3:$AB$351, MATCH(Selection_Hide2!$A247, 'Full set Core Client Indicator'!$A$3:$A$351, 0), MATCH(Selection_Hide2!U$5, 'Full set Core Client Indicator'!$A$3:$AB$3, 0))), \"\")","v":""},{"$f":"IF(U247<>\"\", IF(INDEX('Full set Core Client Indicator'!$A$3:$AB$351, MATCH(Selection_Hide2!$A247, 'Full set Core Client Indicator'!$A$3:$A$351, 0), MATCH(Selection_Hide2!V$5, 'Full set Core Client Indicator'!$A$3:$AB$3, 0))=\"\", \"\",  INDEX('Full set Core Client Indicator'!$A$3:$AB$351, MATCH(Selection_Hide2!$A247, 'Full set Core Client Indicator'!$A$3:$A$351, 0), MATCH(Selection_Hide2!V$5, 'Full set Core Client Indicator'!$A$3:$AB$3, 0))), \"\")","v":""},{"$f":"IF(V247<>\"\", IF(INDEX('Full set Core Client Indicator'!$A$3:$AB$351, MATCH(Selection_Hide2!$A247, 'Full set Core Client Indicator'!$A$3:$A$351, 0), MATCH(Selection_Hide2!W$5, 'Full set Core Client Indicator'!$A$3:$AB$3, 0))=\"\", \"\",  INDEX('Full set Core Client Indicator'!$A$3:$AB$351, MATCH(Selection_Hide2!$A247, 'Full set Core Client Indicator'!$A$3:$A$351, 0), MATCH(Selection_Hide2!W$5, 'Full set Core Client Indicator'!$A$3:$AB$3, 0))), \"\")","v":""},{"$f":"IF(W247<>\"\", IF(INDEX('Full set Core Client Indicator'!$A$3:$AB$351, MATCH(Selection_Hide2!$A247, 'Full set Core Client Indicator'!$A$3:$A$351, 0), MATCH(Selection_Hide2!X$5, 'Full set Core Client Indicator'!$A$3:$AB$3, 0))=\"\", \"\",  INDEX('Full set Core Client Indicator'!$A$3:$AB$351, MATCH(Selection_Hide2!$A247, 'Full set Core Client Indicator'!$A$3:$A$351, 0), MATCH(Selection_Hide2!X$5, 'Full set Core Client Indicator'!$A$3:$AB$3, 0))), \"\")","v":""},{"$f":"IF(X247<>\"\", IF(INDEX('Full set Core Client Indicator'!$A$3:$AB$351, MATCH(Selection_Hide2!$A247, 'Full set Core Client Indicator'!$A$3:$A$351, 0), MATCH(Selection_Hide2!Y$5, 'Full set Core Client Indicator'!$A$3:$AB$3, 0))=\"\", \"\",  INDEX('Full set Core Client Indicator'!$A$3:$AB$351, MATCH(Selection_Hide2!$A247, 'Full set Core Client Indicator'!$A$3:$A$351, 0), MATCH(Selection_Hide2!Y$5, 'Full set Core Client Indicator'!$A$3:$AB$3, 0))), \"\")","v":""},{"$f":"IF(Y247<>\"\", IF(INDEX('Full set Core Client Indicator'!$A$3:$AB$351, MATCH(Selection_Hide2!$A247, 'Full set Core Client Indicator'!$A$3:$A$351, 0), MATCH(Selection_Hide2!Z$5, 'Full set Core Client Indicator'!$A$3:$AB$3, 0))=\"\", \"\",  INDEX('Full set Core Client Indicator'!$A$3:$AB$351, MATCH(Selection_Hide2!$A247, 'Full set Core Client Indicator'!$A$3:$A$351, 0), MATCH(Selection_Hide2!Z$5, 'Full set Core Client Indicator'!$A$3:$AB$3, 0))), \"\")","v":""},{"$f":"IF(Z247<>\"\", IF(INDEX('Full set Core Client Indicator'!$A$3:$AB$351, MATCH(Selection_Hide2!$A247, 'Full set Core Client Indicator'!$A$3:$A$351, 0), MATCH(Selection_Hide2!AA$5, 'Full set Core Client Indicator'!$A$3:$AB$3, 0))=\"\", \"\",  INDEX('Full set Core Client Indicator'!$A$3:$AB$351, MATCH(Selection_Hide2!$A247, 'Full set Core Client Indicator'!$A$3:$A$351, 0), MATCH(Selection_Hide2!AA$5, 'Full set Core Client Indicator'!$A$3:$AB$3, 0))), \"\")","v":""},{"$f":"IF(AA247<>\"\", IF(INDEX('Full set Core Client Indicator'!$A$3:$AB$351, MATCH(Selection_Hide2!$A247, 'Full set Core Client Indicator'!$A$3:$A$351, 0), MATCH(Selection_Hide2!AB$5, 'Full set Core Client Indicator'!$A$3:$AB$3, 0))=\"\", \"\",  INDEX('Full set Core Client Indicator'!$A$3:$AB$351, MATCH(Selection_Hide2!$A247, 'Full set Core Client Indicator'!$A$3:$A$351, 0), MATCH(Selection_Hide2!AB$5, 'Full set Core Client Indicator'!$A$3:$AB$3, 0))), \"\")","v":""}]
[{"$f":"IF(AND(Selection_Hide1!C246<>0, Selection_Hide1!C246<>\"Grand Total\"), Selection_Hide1!C246, \"\")","v":""},{"$f":"IF(A248<>\"\", IF(INDEX('Full set Core Client Indicator'!$A$3:$AB$351, MATCH(Selection_Hide2!$A248, 'Full set Core Client Indicator'!$A$3:$A$351, 0), MATCH(Selection_Hide2!B$5, 'Full set Core Client Indicator'!$A$3:$AB$3, 0))=\"\", \"\",  INDEX('Full set Core Client Indicator'!$A$3:$AB$351, MATCH(Selection_Hide2!$A248, 'Full set Core Client Indicator'!$A$3:$A$351, 0), MATCH(Selection_Hide2!B$5, 'Full set Core Client Indicator'!$A$3:$AB$3, 0))), \"\")","v":""},{"$f":"IF(B248<>\"\", IF(INDEX('Full set Core Client Indicator'!$A$3:$AB$351, MATCH(Selection_Hide2!$A248, 'Full set Core Client Indicator'!$A$3:$A$351, 0), MATCH(Selection_Hide2!C$5, 'Full set Core Client Indicator'!$A$3:$AB$3, 0))=\"\", \"\",  INDEX('Full set Core Client Indicator'!$A$3:$AB$351, MATCH(Selection_Hide2!$A248, 'Full set Core Client Indicator'!$A$3:$A$351, 0), MATCH(Selection_Hide2!C$5, 'Full set Core Client Indicator'!$A$3:$AB$3, 0))), \"\")","v":""},{"$f":"IF(C248<>\"\", IF(INDEX('Full set Core Client Indicator'!$A$3:$AB$351, MATCH(Selection_Hide2!$A248, 'Full set Core Client Indicator'!$A$3:$A$351, 0), MATCH(Selection_Hide2!D$5, 'Full set Core Client Indicator'!$A$3:$AB$3, 0))=\"\", \"\",  INDEX('Full set Core Client Indicator'!$A$3:$AB$351, MATCH(Selection_Hide2!$A248, 'Full set Core Client Indicator'!$A$3:$A$351, 0), MATCH(Selection_Hide2!D$5, 'Full set Core Client Indicator'!$A$3:$AB$3, 0))), \"\")","v":""},{"$f":"IF(D248<>\"\", IF(INDEX('Full set Core Client Indicator'!$A$3:$AB$351, MATCH(Selection_Hide2!$A248, 'Full set Core Client Indicator'!$A$3:$A$351, 0), MATCH(Selection_Hide2!E$5, 'Full set Core Client Indicator'!$A$3:$AB$3, 0))=\"\", \"\",  INDEX('Full set Core Client Indicator'!$A$3:$AB$351, MATCH(Selection_Hide2!$A248, 'Full set Core Client Indicator'!$A$3:$A$351, 0), MATCH(Selection_Hide2!E$5, 'Full set Core Client Indicator'!$A$3:$AB$3, 0))), \"\")","v":""},{"$f":"IF(E248<>\"\", IF(INDEX('Full set Core Client Indicator'!$A$3:$AB$351, MATCH(Selection_Hide2!$A248, 'Full set Core Client Indicator'!$A$3:$A$351, 0), MATCH(Selection_Hide2!F$5, 'Full set Core Client Indicator'!$A$3:$AB$3, 0))=\"\", \"\",  INDEX('Full set Core Client Indicator'!$A$3:$AB$351, MATCH(Selection_Hide2!$A248, 'Full set Core Client Indicator'!$A$3:$A$351, 0), MATCH(Selection_Hide2!F$5, 'Full set Core Client Indicator'!$A$3:$AB$3, 0))), \"\")","v":""},{"$f":"IF(F248<>\"\", IF(INDEX('Full set Core Client Indicator'!$A$3:$AB$351, MATCH(Selection_Hide2!$A248, 'Full set Core Client Indicator'!$A$3:$A$351, 0), MATCH(Selection_Hide2!G$5, 'Full set Core Client Indicator'!$A$3:$AB$3, 0))=\"\", \"\",  INDEX('Full set Core Client Indicator'!$A$3:$AB$351, MATCH(Selection_Hide2!$A248, 'Full set Core Client Indicator'!$A$3:$A$351, 0), MATCH(Selection_Hide2!G$5, 'Full set Core Client Indicator'!$A$3:$AB$3, 0))), \"\")","v":""},{"$f":"IF(G248<>\"\", IF(INDEX('Full set Core Client Indicator'!$A$3:$AB$351, MATCH(Selection_Hide2!$A248, 'Full set Core Client Indicator'!$A$3:$A$351, 0), MATCH(Selection_Hide2!H$5, 'Full set Core Client Indicator'!$A$3:$AB$3, 0))=\"\", \"\",  INDEX('Full set Core Client Indicator'!$A$3:$AB$351, MATCH(Selection_Hide2!$A248, 'Full set Core Client Indicator'!$A$3:$A$351, 0), MATCH(Selection_Hide2!H$5, 'Full set Core Client Indicator'!$A$3:$AB$3, 0))), \"\")","v":""},{"$f":"IF(H248<>\"\", IF(INDEX('Full set Core Client Indicator'!$A$3:$AB$351, MATCH(Selection_Hide2!$A248, 'Full set Core Client Indicator'!$A$3:$A$351, 0), MATCH(Selection_Hide2!I$5, 'Full set Core Client Indicator'!$A$3:$AB$3, 0))=\"\", \"\",  INDEX('Full set Core Client Indicator'!$A$3:$AB$351, MATCH(Selection_Hide2!$A248, 'Full set Core Client Indicator'!$A$3:$A$351, 0), MATCH(Selection_Hide2!I$5, 'Full set Core Client Indicator'!$A$3:$AB$3, 0))), \"\")","v":""},{"$f":"IF(I248<>\"\", IF(INDEX('Full set Core Client Indicator'!$A$3:$AB$351, MATCH(Selection_Hide2!$A248, 'Full set Core Client Indicator'!$A$3:$A$351, 0), MATCH(Selection_Hide2!J$5, 'Full set Core Client Indicator'!$A$3:$AB$3, 0))=\"\", \"\",  INDEX('Full set Core Client Indicator'!$A$3:$AB$351, MATCH(Selection_Hide2!$A248, 'Full set Core Client Indicator'!$A$3:$A$351, 0), MATCH(Selection_Hide2!J$5, 'Full set Core Client Indicator'!$A$3:$AB$3, 0))), \"\")","v":""},{"$f":"IF(J248<>\"\", IF(INDEX('Full set Core Client Indicator'!$A$3:$AB$351, MATCH(Selection_Hide2!$A248, 'Full set Core Client Indicator'!$A$3:$A$351, 0), MATCH(Selection_Hide2!K$5, 'Full set Core Client Indicator'!$A$3:$AB$3, 0))=\"\", \"\",  INDEX('Full set Core Client Indicator'!$A$3:$AB$351, MATCH(Selection_Hide2!$A248, 'Full set Core Client Indicator'!$A$3:$A$351, 0), MATCH(Selection_Hide2!K$5, 'Full set Core Client Indicator'!$A$3:$AB$3, 0))), \"\")","v":""},{"$f":"IF(K248<>\"\", IF(INDEX('Full set Core Client Indicator'!$A$3:$AB$351, MATCH(Selection_Hide2!$A248, 'Full set Core Client Indicator'!$A$3:$A$351, 0), MATCH(Selection_Hide2!L$5, 'Full set Core Client Indicator'!$A$3:$AB$3, 0))=\"\", \"\",  INDEX('Full set Core Client Indicator'!$A$3:$AB$351, MATCH(Selection_Hide2!$A248, 'Full set Core Client Indicator'!$A$3:$A$351, 0), MATCH(Selection_Hide2!L$5, 'Full set Core Client Indicator'!$A$3:$AB$3, 0))), \"\")","v":""},{"$f":"IF(L248<>\"\", IF(INDEX('Full set Core Client Indicator'!$A$3:$AB$351, MATCH(Selection_Hide2!$A248, 'Full set Core Client Indicator'!$A$3:$A$351, 0), MATCH(Selection_Hide2!M$5, 'Full set Core Client Indicator'!$A$3:$AB$3, 0))=\"\", \"\",  INDEX('Full set Core Client Indicator'!$A$3:$AB$351, MATCH(Selection_Hide2!$A248, 'Full set Core Client Indicator'!$A$3:$A$351, 0), MATCH(Selection_Hide2!M$5, 'Full set Core Client Indicator'!$A$3:$AB$3, 0))), \"\")","v":""},{"$f":"IF(M248<>\"\", IF(INDEX('Full set Core Client Indicator'!$A$3:$AB$351, MATCH(Selection_Hide2!$A248, 'Full set Core Client Indicator'!$A$3:$A$351, 0), MATCH(Selection_Hide2!N$5, 'Full set Core Client Indicator'!$A$3:$AB$3, 0))=\"\", \"\",  INDEX('Full set Core Client Indicator'!$A$3:$AB$351, MATCH(Selection_Hide2!$A248, 'Full set Core Client Indicator'!$A$3:$A$351, 0), MATCH(Selection_Hide2!N$5, 'Full set Core Client Indicator'!$A$3:$AB$3, 0))), \"\")","v":""},{"$f":"IF(N248<>\"\", IF(INDEX('Full set Core Client Indicator'!$A$3:$AB$351, MATCH(Selection_Hide2!$A248, 'Full set Core Client Indicator'!$A$3:$A$351, 0), MATCH(Selection_Hide2!O$5, 'Full set Core Client Indicator'!$A$3:$AB$3, 0))=\"\", \"\",  INDEX('Full set Core Client Indicator'!$A$3:$AB$351, MATCH(Selection_Hide2!$A248, 'Full set Core Client Indicator'!$A$3:$A$351, 0), MATCH(Selection_Hide2!O$5, 'Full set Core Client Indicator'!$A$3:$AB$3, 0))), \"\")","v":""},{"$f":"IF(O248<>\"\", IF(INDEX('Full set Core Client Indicator'!$A$3:$AB$351, MATCH(Selection_Hide2!$A248, 'Full set Core Client Indicator'!$A$3:$A$351, 0), MATCH(Selection_Hide2!P$5, 'Full set Core Client Indicator'!$A$3:$AB$3, 0))=\"\", \"\",  INDEX('Full set Core Client Indicator'!$A$3:$AB$351, MATCH(Selection_Hide2!$A248, 'Full set Core Client Indicator'!$A$3:$A$351, 0), MATCH(Selection_Hide2!P$5, 'Full set Core Client Indicator'!$A$3:$AB$3, 0))), \"\")","v":""},{"$f":"IF(P248<>\"\", IF(INDEX('Full set Core Client Indicator'!$A$3:$AB$351, MATCH(Selection_Hide2!$A248, 'Full set Core Client Indicator'!$A$3:$A$351, 0), MATCH(Selection_Hide2!Q$5, 'Full set Core Client Indicator'!$A$3:$AB$3, 0))=\"\", \"\",  INDEX('Full set Core Client Indicator'!$A$3:$AB$351, MATCH(Selection_Hide2!$A248, 'Full set Core Client Indicator'!$A$3:$A$351, 0), MATCH(Selection_Hide2!Q$5, 'Full set Core Client Indicator'!$A$3:$AB$3, 0))), \"\")","v":""},{"$f":"IF(Q248<>\"\", IF(INDEX('Full set Core Client Indicator'!$A$3:$AB$351, MATCH(Selection_Hide2!$A248, 'Full set Core Client Indicator'!$A$3:$A$351, 0), MATCH(Selection_Hide2!R$5, 'Full set Core Client Indicator'!$A$3:$AB$3, 0))=\"\", \"\",  INDEX('Full set Core Client Indicator'!$A$3:$AB$351, MATCH(Selection_Hide2!$A248, 'Full set Core Client Indicator'!$A$3:$A$351, 0), MATCH(Selection_Hide2!R$5, 'Full set Core Client Indicator'!$A$3:$AB$3, 0))), \"\")","v":""},{"$f":"IF(R248<>\"\", IF(INDEX('Full set Core Client Indicator'!$A$3:$AB$351, MATCH(Selection_Hide2!$A248, 'Full set Core Client Indicator'!$A$3:$A$351, 0), MATCH(Selection_Hide2!S$5, 'Full set Core Client Indicator'!$A$3:$AB$3, 0))=\"\", \"\",  INDEX('Full set Core Client Indicator'!$A$3:$AB$351, MATCH(Selection_Hide2!$A248, 'Full set Core Client Indicator'!$A$3:$A$351, 0), MATCH(Selection_Hide2!S$5, 'Full set Core Client Indicator'!$A$3:$AB$3, 0))), \"\")","v":""},{"$f":"IF(S248<>\"\", IF(INDEX('Full set Core Client Indicator'!$A$3:$AB$351, MATCH(Selection_Hide2!$A248, 'Full set Core Client Indicator'!$A$3:$A$351, 0), MATCH(Selection_Hide2!T$5, 'Full set Core Client Indicator'!$A$3:$AB$3, 0))=\"\", \"\",  INDEX('Full set Core Client Indicator'!$A$3:$AB$351, MATCH(Selection_Hide2!$A248, 'Full set Core Client Indicator'!$A$3:$A$351, 0), MATCH(Selection_Hide2!T$5, 'Full set Core Client Indicator'!$A$3:$AB$3, 0))), \"\")","v":""},{"$f":"IF(T248<>\"\", IF(INDEX('Full set Core Client Indicator'!$A$3:$AB$351, MATCH(Selection_Hide2!$A248, 'Full set Core Client Indicator'!$A$3:$A$351, 0), MATCH(Selection_Hide2!U$5, 'Full set Core Client Indicator'!$A$3:$AB$3, 0))=\"\", \"\",  INDEX('Full set Core Client Indicator'!$A$3:$AB$351, MATCH(Selection_Hide2!$A248, 'Full set Core Client Indicator'!$A$3:$A$351, 0), MATCH(Selection_Hide2!U$5, 'Full set Core Client Indicator'!$A$3:$AB$3, 0))), \"\")","v":""},{"$f":"IF(U248<>\"\", IF(INDEX('Full set Core Client Indicator'!$A$3:$AB$351, MATCH(Selection_Hide2!$A248, 'Full set Core Client Indicator'!$A$3:$A$351, 0), MATCH(Selection_Hide2!V$5, 'Full set Core Client Indicator'!$A$3:$AB$3, 0))=\"\", \"\",  INDEX('Full set Core Client Indicator'!$A$3:$AB$351, MATCH(Selection_Hide2!$A248, 'Full set Core Client Indicator'!$A$3:$A$351, 0), MATCH(Selection_Hide2!V$5, 'Full set Core Client Indicator'!$A$3:$AB$3, 0))), \"\")","v":""},{"$f":"IF(V248<>\"\", IF(INDEX('Full set Core Client Indicator'!$A$3:$AB$351, MATCH(Selection_Hide2!$A248, 'Full set Core Client Indicator'!$A$3:$A$351, 0), MATCH(Selection_Hide2!W$5, 'Full set Core Client Indicator'!$A$3:$AB$3, 0))=\"\", \"\",  INDEX('Full set Core Client Indicator'!$A$3:$AB$351, MATCH(Selection_Hide2!$A248, 'Full set Core Client Indicator'!$A$3:$A$351, 0), MATCH(Selection_Hide2!W$5, 'Full set Core Client Indicator'!$A$3:$AB$3, 0))), \"\")","v":""},{"$f":"IF(W248<>\"\", IF(INDEX('Full set Core Client Indicator'!$A$3:$AB$351, MATCH(Selection_Hide2!$A248, 'Full set Core Client Indicator'!$A$3:$A$351, 0), MATCH(Selection_Hide2!X$5, 'Full set Core Client Indicator'!$A$3:$AB$3, 0))=\"\", \"\",  INDEX('Full set Core Client Indicator'!$A$3:$AB$351, MATCH(Selection_Hide2!$A248, 'Full set Core Client Indicator'!$A$3:$A$351, 0), MATCH(Selection_Hide2!X$5, 'Full set Core Client Indicator'!$A$3:$AB$3, 0))), \"\")","v":""},{"$f":"IF(X248<>\"\", IF(INDEX('Full set Core Client Indicator'!$A$3:$AB$351, MATCH(Selection_Hide2!$A248, 'Full set Core Client Indicator'!$A$3:$A$351, 0), MATCH(Selection_Hide2!Y$5, 'Full set Core Client Indicator'!$A$3:$AB$3, 0))=\"\", \"\",  INDEX('Full set Core Client Indicator'!$A$3:$AB$351, MATCH(Selection_Hide2!$A248, 'Full set Core Client Indicator'!$A$3:$A$351, 0), MATCH(Selection_Hide2!Y$5, 'Full set Core Client Indicator'!$A$3:$AB$3, 0))), \"\")","v":""},{"$f":"IF(Y248<>\"\", IF(INDEX('Full set Core Client Indicator'!$A$3:$AB$351, MATCH(Selection_Hide2!$A248, 'Full set Core Client Indicator'!$A$3:$A$351, 0), MATCH(Selection_Hide2!Z$5, 'Full set Core Client Indicator'!$A$3:$AB$3, 0))=\"\", \"\",  INDEX('Full set Core Client Indicator'!$A$3:$AB$351, MATCH(Selection_Hide2!$A248, 'Full set Core Client Indicator'!$A$3:$A$351, 0), MATCH(Selection_Hide2!Z$5, 'Full set Core Client Indicator'!$A$3:$AB$3, 0))), \"\")","v":""},{"$f":"IF(Z248<>\"\", IF(INDEX('Full set Core Client Indicator'!$A$3:$AB$351, MATCH(Selection_Hide2!$A248, 'Full set Core Client Indicator'!$A$3:$A$351, 0), MATCH(Selection_Hide2!AA$5, 'Full set Core Client Indicator'!$A$3:$AB$3, 0))=\"\", \"\",  INDEX('Full set Core Client Indicator'!$A$3:$AB$351, MATCH(Selection_Hide2!$A248, 'Full set Core Client Indicator'!$A$3:$A$351, 0), MATCH(Selection_Hide2!AA$5, 'Full set Core Client Indicator'!$A$3:$AB$3, 0))), \"\")","v":""},{"$f":"IF(AA248<>\"\", IF(INDEX('Full set Core Client Indicator'!$A$3:$AB$351, MATCH(Selection_Hide2!$A248, 'Full set Core Client Indicator'!$A$3:$A$351, 0), MATCH(Selection_Hide2!AB$5, 'Full set Core Client Indicator'!$A$3:$AB$3, 0))=\"\", \"\",  INDEX('Full set Core Client Indicator'!$A$3:$AB$351, MATCH(Selection_Hide2!$A248, 'Full set Core Client Indicator'!$A$3:$A$351, 0), MATCH(Selection_Hide2!AB$5, 'Full set Core Client Indicator'!$A$3:$AB$3, 0))), \"\")","v":""}]
[{"$f":"IF(AND(Selection_Hide1!C247<>0, Selection_Hide1!C247<>\"Grand Total\"), Selection_Hide1!C247, \"\")","v":""},{"$f":"IF(A249<>\"\", IF(INDEX('Full set Core Client Indicator'!$A$3:$AB$351, MATCH(Selection_Hide2!$A249, 'Full set Core Client Indicator'!$A$3:$A$351, 0), MATCH(Selection_Hide2!B$5, 'Full set Core Client Indicator'!$A$3:$AB$3, 0))=\"\", \"\",  INDEX('Full set Core Client Indicator'!$A$3:$AB$351, MATCH(Selection_Hide2!$A249, 'Full set Core Client Indicator'!$A$3:$A$351, 0), MATCH(Selection_Hide2!B$5, 'Full set Core Client Indicator'!$A$3:$AB$3, 0))), \"\")","v":""},{"$f":"IF(B249<>\"\", IF(INDEX('Full set Core Client Indicator'!$A$3:$AB$351, MATCH(Selection_Hide2!$A249, 'Full set Core Client Indicator'!$A$3:$A$351, 0), MATCH(Selection_Hide2!C$5, 'Full set Core Client Indicator'!$A$3:$AB$3, 0))=\"\", \"\",  INDEX('Full set Core Client Indicator'!$A$3:$AB$351, MATCH(Selection_Hide2!$A249, 'Full set Core Client Indicator'!$A$3:$A$351, 0), MATCH(Selection_Hide2!C$5, 'Full set Core Client Indicator'!$A$3:$AB$3, 0))), \"\")","v":""},{"$f":"IF(C249<>\"\", IF(INDEX('Full set Core Client Indicator'!$A$3:$AB$351, MATCH(Selection_Hide2!$A249, 'Full set Core Client Indicator'!$A$3:$A$351, 0), MATCH(Selection_Hide2!D$5, 'Full set Core Client Indicator'!$A$3:$AB$3, 0))=\"\", \"\",  INDEX('Full set Core Client Indicator'!$A$3:$AB$351, MATCH(Selection_Hide2!$A249, 'Full set Core Client Indicator'!$A$3:$A$351, 0), MATCH(Selection_Hide2!D$5, 'Full set Core Client Indicator'!$A$3:$AB$3, 0))), \"\")","v":""},{"$f":"IF(D249<>\"\", IF(INDEX('Full set Core Client Indicator'!$A$3:$AB$351, MATCH(Selection_Hide2!$A249, 'Full set Core Client Indicator'!$A$3:$A$351, 0), MATCH(Selection_Hide2!E$5, 'Full set Core Client Indicator'!$A$3:$AB$3, 0))=\"\", \"\",  INDEX('Full set Core Client Indicator'!$A$3:$AB$351, MATCH(Selection_Hide2!$A249, 'Full set Core Client Indicator'!$A$3:$A$351, 0), MATCH(Selection_Hide2!E$5, 'Full set Core Client Indicator'!$A$3:$AB$3, 0))), \"\")","v":""},{"$f":"IF(E249<>\"\", IF(INDEX('Full set Core Client Indicator'!$A$3:$AB$351, MATCH(Selection_Hide2!$A249, 'Full set Core Client Indicator'!$A$3:$A$351, 0), MATCH(Selection_Hide2!F$5, 'Full set Core Client Indicator'!$A$3:$AB$3, 0))=\"\", \"\",  INDEX('Full set Core Client Indicator'!$A$3:$AB$351, MATCH(Selection_Hide2!$A249, 'Full set Core Client Indicator'!$A$3:$A$351, 0), MATCH(Selection_Hide2!F$5, 'Full set Core Client Indicator'!$A$3:$AB$3, 0))), \"\")","v":""},{"$f":"IF(F249<>\"\", IF(INDEX('Full set Core Client Indicator'!$A$3:$AB$351, MATCH(Selection_Hide2!$A249, 'Full set Core Client Indicator'!$A$3:$A$351, 0), MATCH(Selection_Hide2!G$5, 'Full set Core Client Indicator'!$A$3:$AB$3, 0))=\"\", \"\",  INDEX('Full set Core Client Indicator'!$A$3:$AB$351, MATCH(Selection_Hide2!$A249, 'Full set Core Client Indicator'!$A$3:$A$351, 0), MATCH(Selection_Hide2!G$5, 'Full set Core Client Indicator'!$A$3:$AB$3, 0))), \"\")","v":""},{"$f":"IF(G249<>\"\", IF(INDEX('Full set Core Client Indicator'!$A$3:$AB$351, MATCH(Selection_Hide2!$A249, 'Full set Core Client Indicator'!$A$3:$A$351, 0), MATCH(Selection_Hide2!H$5, 'Full set Core Client Indicator'!$A$3:$AB$3, 0))=\"\", \"\",  INDEX('Full set Core Client Indicator'!$A$3:$AB$351, MATCH(Selection_Hide2!$A249, 'Full set Core Client Indicator'!$A$3:$A$351, 0), MATCH(Selection_Hide2!H$5, 'Full set Core Client Indicator'!$A$3:$AB$3, 0))), \"\")","v":""},{"$f":"IF(H249<>\"\", IF(INDEX('Full set Core Client Indicator'!$A$3:$AB$351, MATCH(Selection_Hide2!$A249, 'Full set Core Client Indicator'!$A$3:$A$351, 0), MATCH(Selection_Hide2!I$5, 'Full set Core Client Indicator'!$A$3:$AB$3, 0))=\"\", \"\",  INDEX('Full set Core Client Indicator'!$A$3:$AB$351, MATCH(Selection_Hide2!$A249, 'Full set Core Client Indicator'!$A$3:$A$351, 0), MATCH(Selection_Hide2!I$5, 'Full set Core Client Indicator'!$A$3:$AB$3, 0))), \"\")","v":""},{"$f":"IF(I249<>\"\", IF(INDEX('Full set Core Client Indicator'!$A$3:$AB$351, MATCH(Selection_Hide2!$A249, 'Full set Core Client Indicator'!$A$3:$A$351, 0), MATCH(Selection_Hide2!J$5, 'Full set Core Client Indicator'!$A$3:$AB$3, 0))=\"\", \"\",  INDEX('Full set Core Client Indicator'!$A$3:$AB$351, MATCH(Selection_Hide2!$A249, 'Full set Core Client Indicator'!$A$3:$A$351, 0), MATCH(Selection_Hide2!J$5, 'Full set Core Client Indicator'!$A$3:$AB$3, 0))), \"\")","v":""},{"$f":"IF(J249<>\"\", IF(INDEX('Full set Core Client Indicator'!$A$3:$AB$351, MATCH(Selection_Hide2!$A249, 'Full set Core Client Indicator'!$A$3:$A$351, 0), MATCH(Selection_Hide2!K$5, 'Full set Core Client Indicator'!$A$3:$AB$3, 0))=\"\", \"\",  INDEX('Full set Core Client Indicator'!$A$3:$AB$351, MATCH(Selection_Hide2!$A249, 'Full set Core Client Indicator'!$A$3:$A$351, 0), MATCH(Selection_Hide2!K$5, 'Full set Core Client Indicator'!$A$3:$AB$3, 0))), \"\")","v":""},{"$f":"IF(K249<>\"\", IF(INDEX('Full set Core Client Indicator'!$A$3:$AB$351, MATCH(Selection_Hide2!$A249, 'Full set Core Client Indicator'!$A$3:$A$351, 0), MATCH(Selection_Hide2!L$5, 'Full set Core Client Indicator'!$A$3:$AB$3, 0))=\"\", \"\",  INDEX('Full set Core Client Indicator'!$A$3:$AB$351, MATCH(Selection_Hide2!$A249, 'Full set Core Client Indicator'!$A$3:$A$351, 0), MATCH(Selection_Hide2!L$5, 'Full set Core Client Indicator'!$A$3:$AB$3, 0))), \"\")","v":""},{"$f":"IF(L249<>\"\", IF(INDEX('Full set Core Client Indicator'!$A$3:$AB$351, MATCH(Selection_Hide2!$A249, 'Full set Core Client Indicator'!$A$3:$A$351, 0), MATCH(Selection_Hide2!M$5, 'Full set Core Client Indicator'!$A$3:$AB$3, 0))=\"\", \"\",  INDEX('Full set Core Client Indicator'!$A$3:$AB$351, MATCH(Selection_Hide2!$A249, 'Full set Core Client Indicator'!$A$3:$A$351, 0), MATCH(Selection_Hide2!M$5, 'Full set Core Client Indicator'!$A$3:$AB$3, 0))), \"\")","v":""},{"$f":"IF(M249<>\"\", IF(INDEX('Full set Core Client Indicator'!$A$3:$AB$351, MATCH(Selection_Hide2!$A249, 'Full set Core Client Indicator'!$A$3:$A$351, 0), MATCH(Selection_Hide2!N$5, 'Full set Core Client Indicator'!$A$3:$AB$3, 0))=\"\", \"\",  INDEX('Full set Core Client Indicator'!$A$3:$AB$351, MATCH(Selection_Hide2!$A249, 'Full set Core Client Indicator'!$A$3:$A$351, 0), MATCH(Selection_Hide2!N$5, 'Full set Core Client Indicator'!$A$3:$AB$3, 0))), \"\")","v":""},{"$f":"IF(N249<>\"\", IF(INDEX('Full set Core Client Indicator'!$A$3:$AB$351, MATCH(Selection_Hide2!$A249, 'Full set Core Client Indicator'!$A$3:$A$351, 0), MATCH(Selection_Hide2!O$5, 'Full set Core Client Indicator'!$A$3:$AB$3, 0))=\"\", \"\",  INDEX('Full set Core Client Indicator'!$A$3:$AB$351, MATCH(Selection_Hide2!$A249, 'Full set Core Client Indicator'!$A$3:$A$351, 0), MATCH(Selection_Hide2!O$5, 'Full set Core Client Indicator'!$A$3:$AB$3, 0))), \"\")","v":""},{"$f":"IF(O249<>\"\", IF(INDEX('Full set Core Client Indicator'!$A$3:$AB$351, MATCH(Selection_Hide2!$A249, 'Full set Core Client Indicator'!$A$3:$A$351, 0), MATCH(Selection_Hide2!P$5, 'Full set Core Client Indicator'!$A$3:$AB$3, 0))=\"\", \"\",  INDEX('Full set Core Client Indicator'!$A$3:$AB$351, MATCH(Selection_Hide2!$A249, 'Full set Core Client Indicator'!$A$3:$A$351, 0), MATCH(Selection_Hide2!P$5, 'Full set Core Client Indicator'!$A$3:$AB$3, 0))), \"\")","v":""},{"$f":"IF(P249<>\"\", IF(INDEX('Full set Core Client Indicator'!$A$3:$AB$351, MATCH(Selection_Hide2!$A249, 'Full set Core Client Indicator'!$A$3:$A$351, 0), MATCH(Selection_Hide2!Q$5, 'Full set Core Client Indicator'!$A$3:$AB$3, 0))=\"\", \"\",  INDEX('Full set Core Client Indicator'!$A$3:$AB$351, MATCH(Selection_Hide2!$A249, 'Full set Core Client Indicator'!$A$3:$A$351, 0), MATCH(Selection_Hide2!Q$5, 'Full set Core Client Indicator'!$A$3:$AB$3, 0))), \"\")","v":""},{"$f":"IF(Q249<>\"\", IF(INDEX('Full set Core Client Indicator'!$A$3:$AB$351, MATCH(Selection_Hide2!$A249, 'Full set Core Client Indicator'!$A$3:$A$351, 0), MATCH(Selection_Hide2!R$5, 'Full set Core Client Indicator'!$A$3:$AB$3, 0))=\"\", \"\",  INDEX('Full set Core Client Indicator'!$A$3:$AB$351, MATCH(Selection_Hide2!$A249, 'Full set Core Client Indicator'!$A$3:$A$351, 0), MATCH(Selection_Hide2!R$5, 'Full set Core Client Indicator'!$A$3:$AB$3, 0))), \"\")","v":""},{"$f":"IF(R249<>\"\", IF(INDEX('Full set Core Client Indicator'!$A$3:$AB$351, MATCH(Selection_Hide2!$A249, 'Full set Core Client Indicator'!$A$3:$A$351, 0), MATCH(Selection_Hide2!S$5, 'Full set Core Client Indicator'!$A$3:$AB$3, 0))=\"\", \"\",  INDEX('Full set Core Client Indicator'!$A$3:$AB$351, MATCH(Selection_Hide2!$A249, 'Full set Core Client Indicator'!$A$3:$A$351, 0), MATCH(Selection_Hide2!S$5, 'Full set Core Client Indicator'!$A$3:$AB$3, 0))), \"\")","v":""},{"$f":"IF(S249<>\"\", IF(INDEX('Full set Core Client Indicator'!$A$3:$AB$351, MATCH(Selection_Hide2!$A249, 'Full set Core Client Indicator'!$A$3:$A$351, 0), MATCH(Selection_Hide2!T$5, 'Full set Core Client Indicator'!$A$3:$AB$3, 0))=\"\", \"\",  INDEX('Full set Core Client Indicator'!$A$3:$AB$351, MATCH(Selection_Hide2!$A249, 'Full set Core Client Indicator'!$A$3:$A$351, 0), MATCH(Selection_Hide2!T$5, 'Full set Core Client Indicator'!$A$3:$AB$3, 0))), \"\")","v":""},{"$f":"IF(T249<>\"\", IF(INDEX('Full set Core Client Indicator'!$A$3:$AB$351, MATCH(Selection_Hide2!$A249, 'Full set Core Client Indicator'!$A$3:$A$351, 0), MATCH(Selection_Hide2!U$5, 'Full set Core Client Indicator'!$A$3:$AB$3, 0))=\"\", \"\",  INDEX('Full set Core Client Indicator'!$A$3:$AB$351, MATCH(Selection_Hide2!$A249, 'Full set Core Client Indicator'!$A$3:$A$351, 0), MATCH(Selection_Hide2!U$5, 'Full set Core Client Indicator'!$A$3:$AB$3, 0))), \"\")","v":""},{"$f":"IF(U249<>\"\", IF(INDEX('Full set Core Client Indicator'!$A$3:$AB$351, MATCH(Selection_Hide2!$A249, 'Full set Core Client Indicator'!$A$3:$A$351, 0), MATCH(Selection_Hide2!V$5, 'Full set Core Client Indicator'!$A$3:$AB$3, 0))=\"\", \"\",  INDEX('Full set Core Client Indicator'!$A$3:$AB$351, MATCH(Selection_Hide2!$A249, 'Full set Core Client Indicator'!$A$3:$A$351, 0), MATCH(Selection_Hide2!V$5, 'Full set Core Client Indicator'!$A$3:$AB$3, 0))), \"\")","v":""},{"$f":"IF(V249<>\"\", IF(INDEX('Full set Core Client Indicator'!$A$3:$AB$351, MATCH(Selection_Hide2!$A249, 'Full set Core Client Indicator'!$A$3:$A$351, 0), MATCH(Selection_Hide2!W$5, 'Full set Core Client Indicator'!$A$3:$AB$3, 0))=\"\", \"\",  INDEX('Full set Core Client Indicator'!$A$3:$AB$351, MATCH(Selection_Hide2!$A249, 'Full set Core Client Indicator'!$A$3:$A$351, 0), MATCH(Selection_Hide2!W$5, 'Full set Core Client Indicator'!$A$3:$AB$3, 0))), \"\")","v":""},{"$f":"IF(W249<>\"\", IF(INDEX('Full set Core Client Indicator'!$A$3:$AB$351, MATCH(Selection_Hide2!$A249, 'Full set Core Client Indicator'!$A$3:$A$351, 0), MATCH(Selection_Hide2!X$5, 'Full set Core Client Indicator'!$A$3:$AB$3, 0))=\"\", \"\",  INDEX('Full set Core Client Indicator'!$A$3:$AB$351, MATCH(Selection_Hide2!$A249, 'Full set Core Client Indicator'!$A$3:$A$351, 0), MATCH(Selection_Hide2!X$5, 'Full set Core Client Indicator'!$A$3:$AB$3, 0))), \"\")","v":""},{"$f":"IF(X249<>\"\", IF(INDEX('Full set Core Client Indicator'!$A$3:$AB$351, MATCH(Selection_Hide2!$A249, 'Full set Core Client Indicator'!$A$3:$A$351, 0), MATCH(Selection_Hide2!Y$5, 'Full set Core Client Indicator'!$A$3:$AB$3, 0))=\"\", \"\",  INDEX('Full set Core Client Indicator'!$A$3:$AB$351, MATCH(Selection_Hide2!$A249, 'Full set Core Client Indicator'!$A$3:$A$351, 0), MATCH(Selection_Hide2!Y$5, 'Full set Core Client Indicator'!$A$3:$AB$3, 0))), \"\")","v":""},{"$f":"IF(Y249<>\"\", IF(INDEX('Full set Core Client Indicator'!$A$3:$AB$351, MATCH(Selection_Hide2!$A249, 'Full set Core Client Indicator'!$A$3:$A$351, 0), MATCH(Selection_Hide2!Z$5, 'Full set Core Client Indicator'!$A$3:$AB$3, 0))=\"\", \"\",  INDEX('Full set Core Client Indicator'!$A$3:$AB$351, MATCH(Selection_Hide2!$A249, 'Full set Core Client Indicator'!$A$3:$A$351, 0), MATCH(Selection_Hide2!Z$5, 'Full set Core Client Indicator'!$A$3:$AB$3, 0))), \"\")","v":""},{"$f":"IF(Z249<>\"\", IF(INDEX('Full set Core Client Indicator'!$A$3:$AB$351, MATCH(Selection_Hide2!$A249, 'Full set Core Client Indicator'!$A$3:$A$351, 0), MATCH(Selection_Hide2!AA$5, 'Full set Core Client Indicator'!$A$3:$AB$3, 0))=\"\", \"\",  INDEX('Full set Core Client Indicator'!$A$3:$AB$351, MATCH(Selection_Hide2!$A249, 'Full set Core Client Indicator'!$A$3:$A$351, 0), MATCH(Selection_Hide2!AA$5, 'Full set Core Client Indicator'!$A$3:$AB$3, 0))), \"\")","v":""},{"$f":"IF(AA249<>\"\", IF(INDEX('Full set Core Client Indicator'!$A$3:$AB$351, MATCH(Selection_Hide2!$A249, 'Full set Core Client Indicator'!$A$3:$A$351, 0), MATCH(Selection_Hide2!AB$5, 'Full set Core Client Indicator'!$A$3:$AB$3, 0))=\"\", \"\",  INDEX('Full set Core Client Indicator'!$A$3:$AB$351, MATCH(Selection_Hide2!$A249, 'Full set Core Client Indicator'!$A$3:$A$351, 0), MATCH(Selection_Hide2!AB$5, 'Full set Core Client Indicator'!$A$3:$AB$3, 0))), \"\")","v":""}]
[{"$f":"IF(AND(Selection_Hide1!C248<>0, Selection_Hide1!C248<>\"Grand Total\"), Selection_Hide1!C248, \"\")","v":""},{"$f":"IF(A250<>\"\", IF(INDEX('Full set Core Client Indicator'!$A$3:$AB$351, MATCH(Selection_Hide2!$A250, 'Full set Core Client Indicator'!$A$3:$A$351, 0), MATCH(Selection_Hide2!B$5, 'Full set Core Client Indicator'!$A$3:$AB$3, 0))=\"\", \"\",  INDEX('Full set Core Client Indicator'!$A$3:$AB$351, MATCH(Selection_Hide2!$A250, 'Full set Core Client Indicator'!$A$3:$A$351, 0), MATCH(Selection_Hide2!B$5, 'Full set Core Client Indicator'!$A$3:$AB$3, 0))), \"\")","v":""},{"$f":"IF(B250<>\"\", IF(INDEX('Full set Core Client Indicator'!$A$3:$AB$351, MATCH(Selection_Hide2!$A250, 'Full set Core Client Indicator'!$A$3:$A$351, 0), MATCH(Selection_Hide2!C$5, 'Full set Core Client Indicator'!$A$3:$AB$3, 0))=\"\", \"\",  INDEX('Full set Core Client Indicator'!$A$3:$AB$351, MATCH(Selection_Hide2!$A250, 'Full set Core Client Indicator'!$A$3:$A$351, 0), MATCH(Selection_Hide2!C$5, 'Full set Core Client Indicator'!$A$3:$AB$3, 0))), \"\")","v":""},{"$f":"IF(C250<>\"\", IF(INDEX('Full set Core Client Indicator'!$A$3:$AB$351, MATCH(Selection_Hide2!$A250, 'Full set Core Client Indicator'!$A$3:$A$351, 0), MATCH(Selection_Hide2!D$5, 'Full set Core Client Indicator'!$A$3:$AB$3, 0))=\"\", \"\",  INDEX('Full set Core Client Indicator'!$A$3:$AB$351, MATCH(Selection_Hide2!$A250, 'Full set Core Client Indicator'!$A$3:$A$351, 0), MATCH(Selection_Hide2!D$5, 'Full set Core Client Indicator'!$A$3:$AB$3, 0))), \"\")","v":""},{"$f":"IF(D250<>\"\", IF(INDEX('Full set Core Client Indicator'!$A$3:$AB$351, MATCH(Selection_Hide2!$A250, 'Full set Core Client Indicator'!$A$3:$A$351, 0), MATCH(Selection_Hide2!E$5, 'Full set Core Client Indicator'!$A$3:$AB$3, 0))=\"\", \"\",  INDEX('Full set Core Client Indicator'!$A$3:$AB$351, MATCH(Selection_Hide2!$A250, 'Full set Core Client Indicator'!$A$3:$A$351, 0), MATCH(Selection_Hide2!E$5, 'Full set Core Client Indicator'!$A$3:$AB$3, 0))), \"\")","v":""},{"$f":"IF(E250<>\"\", IF(INDEX('Full set Core Client Indicator'!$A$3:$AB$351, MATCH(Selection_Hide2!$A250, 'Full set Core Client Indicator'!$A$3:$A$351, 0), MATCH(Selection_Hide2!F$5, 'Full set Core Client Indicator'!$A$3:$AB$3, 0))=\"\", \"\",  INDEX('Full set Core Client Indicator'!$A$3:$AB$351, MATCH(Selection_Hide2!$A250, 'Full set Core Client Indicator'!$A$3:$A$351, 0), MATCH(Selection_Hide2!F$5, 'Full set Core Client Indicator'!$A$3:$AB$3, 0))), \"\")","v":""},{"$f":"IF(F250<>\"\", IF(INDEX('Full set Core Client Indicator'!$A$3:$AB$351, MATCH(Selection_Hide2!$A250, 'Full set Core Client Indicator'!$A$3:$A$351, 0), MATCH(Selection_Hide2!G$5, 'Full set Core Client Indicator'!$A$3:$AB$3, 0))=\"\", \"\",  INDEX('Full set Core Client Indicator'!$A$3:$AB$351, MATCH(Selection_Hide2!$A250, 'Full set Core Client Indicator'!$A$3:$A$351, 0), MATCH(Selection_Hide2!G$5, 'Full set Core Client Indicator'!$A$3:$AB$3, 0))), \"\")","v":""},{"$f":"IF(G250<>\"\", IF(INDEX('Full set Core Client Indicator'!$A$3:$AB$351, MATCH(Selection_Hide2!$A250, 'Full set Core Client Indicator'!$A$3:$A$351, 0), MATCH(Selection_Hide2!H$5, 'Full set Core Client Indicator'!$A$3:$AB$3, 0))=\"\", \"\",  INDEX('Full set Core Client Indicator'!$A$3:$AB$351, MATCH(Selection_Hide2!$A250, 'Full set Core Client Indicator'!$A$3:$A$351, 0), MATCH(Selection_Hide2!H$5, 'Full set Core Client Indicator'!$A$3:$AB$3, 0))), \"\")","v":""},{"$f":"IF(H250<>\"\", IF(INDEX('Full set Core Client Indicator'!$A$3:$AB$351, MATCH(Selection_Hide2!$A250, 'Full set Core Client Indicator'!$A$3:$A$351, 0), MATCH(Selection_Hide2!I$5, 'Full set Core Client Indicator'!$A$3:$AB$3, 0))=\"\", \"\",  INDEX('Full set Core Client Indicator'!$A$3:$AB$351, MATCH(Selection_Hide2!$A250, 'Full set Core Client Indicator'!$A$3:$A$351, 0), MATCH(Selection_Hide2!I$5, 'Full set Core Client Indicator'!$A$3:$AB$3, 0))), \"\")","v":""},{"$f":"IF(I250<>\"\", IF(INDEX('Full set Core Client Indicator'!$A$3:$AB$351, MATCH(Selection_Hide2!$A250, 'Full set Core Client Indicator'!$A$3:$A$351, 0), MATCH(Selection_Hide2!J$5, 'Full set Core Client Indicator'!$A$3:$AB$3, 0))=\"\", \"\",  INDEX('Full set Core Client Indicator'!$A$3:$AB$351, MATCH(Selection_Hide2!$A250, 'Full set Core Client Indicator'!$A$3:$A$351, 0), MATCH(Selection_Hide2!J$5, 'Full set Core Client Indicator'!$A$3:$AB$3, 0))), \"\")","v":""},{"$f":"IF(J250<>\"\", IF(INDEX('Full set Core Client Indicator'!$A$3:$AB$351, MATCH(Selection_Hide2!$A250, 'Full set Core Client Indicator'!$A$3:$A$351, 0), MATCH(Selection_Hide2!K$5, 'Full set Core Client Indicator'!$A$3:$AB$3, 0))=\"\", \"\",  INDEX('Full set Core Client Indicator'!$A$3:$AB$351, MATCH(Selection_Hide2!$A250, 'Full set Core Client Indicator'!$A$3:$A$351, 0), MATCH(Selection_Hide2!K$5, 'Full set Core Client Indicator'!$A$3:$AB$3, 0))), \"\")","v":""},{"$f":"IF(K250<>\"\", IF(INDEX('Full set Core Client Indicator'!$A$3:$AB$351, MATCH(Selection_Hide2!$A250, 'Full set Core Client Indicator'!$A$3:$A$351, 0), MATCH(Selection_Hide2!L$5, 'Full set Core Client Indicator'!$A$3:$AB$3, 0))=\"\", \"\",  INDEX('Full set Core Client Indicator'!$A$3:$AB$351, MATCH(Selection_Hide2!$A250, 'Full set Core Client Indicator'!$A$3:$A$351, 0), MATCH(Selection_Hide2!L$5, 'Full set Core Client Indicator'!$A$3:$AB$3, 0))), \"\")","v":""},{"$f":"IF(L250<>\"\", IF(INDEX('Full set Core Client Indicator'!$A$3:$AB$351, MATCH(Selection_Hide2!$A250, 'Full set Core Client Indicator'!$A$3:$A$351, 0), MATCH(Selection_Hide2!M$5, 'Full set Core Client Indicator'!$A$3:$AB$3, 0))=\"\", \"\",  INDEX('Full set Core Client Indicator'!$A$3:$AB$351, MATCH(Selection_Hide2!$A250, 'Full set Core Client Indicator'!$A$3:$A$351, 0), MATCH(Selection_Hide2!M$5, 'Full set Core Client Indicator'!$A$3:$AB$3, 0))), \"\")","v":""},{"$f":"IF(M250<>\"\", IF(INDEX('Full set Core Client Indicator'!$A$3:$AB$351, MATCH(Selection_Hide2!$A250, 'Full set Core Client Indicator'!$A$3:$A$351, 0), MATCH(Selection_Hide2!N$5, 'Full set Core Client Indicator'!$A$3:$AB$3, 0))=\"\", \"\",  INDEX('Full set Core Client Indicator'!$A$3:$AB$351, MATCH(Selection_Hide2!$A250, 'Full set Core Client Indicator'!$A$3:$A$351, 0), MATCH(Selection_Hide2!N$5, 'Full set Core Client Indicator'!$A$3:$AB$3, 0))), \"\")","v":""},{"$f":"IF(N250<>\"\", IF(INDEX('Full set Core Client Indicator'!$A$3:$AB$351, MATCH(Selection_Hide2!$A250, 'Full set Core Client Indicator'!$A$3:$A$351, 0), MATCH(Selection_Hide2!O$5, 'Full set Core Client Indicator'!$A$3:$AB$3, 0))=\"\", \"\",  INDEX('Full set Core Client Indicator'!$A$3:$AB$351, MATCH(Selection_Hide2!$A250, 'Full set Core Client Indicator'!$A$3:$A$351, 0), MATCH(Selection_Hide2!O$5, 'Full set Core Client Indicator'!$A$3:$AB$3, 0))), \"\")","v":""},{"$f":"IF(O250<>\"\", IF(INDEX('Full set Core Client Indicator'!$A$3:$AB$351, MATCH(Selection_Hide2!$A250, 'Full set Core Client Indicator'!$A$3:$A$351, 0), MATCH(Selection_Hide2!P$5, 'Full set Core Client Indicator'!$A$3:$AB$3, 0))=\"\", \"\",  INDEX('Full set Core Client Indicator'!$A$3:$AB$351, MATCH(Selection_Hide2!$A250, 'Full set Core Client Indicator'!$A$3:$A$351, 0), MATCH(Selection_Hide2!P$5, 'Full set Core Client Indicator'!$A$3:$AB$3, 0))), \"\")","v":""},{"$f":"IF(P250<>\"\", IF(INDEX('Full set Core Client Indicator'!$A$3:$AB$351, MATCH(Selection_Hide2!$A250, 'Full set Core Client Indicator'!$A$3:$A$351, 0), MATCH(Selection_Hide2!Q$5, 'Full set Core Client Indicator'!$A$3:$AB$3, 0))=\"\", \"\",  INDEX('Full set Core Client Indicator'!$A$3:$AB$351, MATCH(Selection_Hide2!$A250, 'Full set Core Client Indicator'!$A$3:$A$351, 0), MATCH(Selection_Hide2!Q$5, 'Full set Core Client Indicator'!$A$3:$AB$3, 0))), \"\")","v":""},{"$f":"IF(Q250<>\"\", IF(INDEX('Full set Core Client Indicator'!$A$3:$AB$351, MATCH(Selection_Hide2!$A250, 'Full set Core Client Indicator'!$A$3:$A$351, 0), MATCH(Selection_Hide2!R$5, 'Full set Core Client Indicator'!$A$3:$AB$3, 0))=\"\", \"\",  INDEX('Full set Core Client Indicator'!$A$3:$AB$351, MATCH(Selection_Hide2!$A250, 'Full set Core Client Indicator'!$A$3:$A$351, 0), MATCH(Selection_Hide2!R$5, 'Full set Core Client Indicator'!$A$3:$AB$3, 0))), \"\")","v":""},{"$f":"IF(R250<>\"\", IF(INDEX('Full set Core Client Indicator'!$A$3:$AB$351, MATCH(Selection_Hide2!$A250, 'Full set Core Client Indicator'!$A$3:$A$351, 0), MATCH(Selection_Hide2!S$5, 'Full set Core Client Indicator'!$A$3:$AB$3, 0))=\"\", \"\",  INDEX('Full set Core Client Indicator'!$A$3:$AB$351, MATCH(Selection_Hide2!$A250, 'Full set Core Client Indicator'!$A$3:$A$351, 0), MATCH(Selection_Hide2!S$5, 'Full set Core Client Indicator'!$A$3:$AB$3, 0))), \"\")","v":""},{"$f":"IF(S250<>\"\", IF(INDEX('Full set Core Client Indicator'!$A$3:$AB$351, MATCH(Selection_Hide2!$A250, 'Full set Core Client Indicator'!$A$3:$A$351, 0), MATCH(Selection_Hide2!T$5, 'Full set Core Client Indicator'!$A$3:$AB$3, 0))=\"\", \"\",  INDEX('Full set Core Client Indicator'!$A$3:$AB$351, MATCH(Selection_Hide2!$A250, 'Full set Core Client Indicator'!$A$3:$A$351, 0), MATCH(Selection_Hide2!T$5, 'Full set Core Client Indicator'!$A$3:$AB$3, 0))), \"\")","v":""},{"$f":"IF(T250<>\"\", IF(INDEX('Full set Core Client Indicator'!$A$3:$AB$351, MATCH(Selection_Hide2!$A250, 'Full set Core Client Indicator'!$A$3:$A$351, 0), MATCH(Selection_Hide2!U$5, 'Full set Core Client Indicator'!$A$3:$AB$3, 0))=\"\", \"\",  INDEX('Full set Core Client Indicator'!$A$3:$AB$351, MATCH(Selection_Hide2!$A250, 'Full set Core Client Indicator'!$A$3:$A$351, 0), MATCH(Selection_Hide2!U$5, 'Full set Core Client Indicator'!$A$3:$AB$3, 0))), \"\")","v":""},{"$f":"IF(U250<>\"\", IF(INDEX('Full set Core Client Indicator'!$A$3:$AB$351, MATCH(Selection_Hide2!$A250, 'Full set Core Client Indicator'!$A$3:$A$351, 0), MATCH(Selection_Hide2!V$5, 'Full set Core Client Indicator'!$A$3:$AB$3, 0))=\"\", \"\",  INDEX('Full set Core Client Indicator'!$A$3:$AB$351, MATCH(Selection_Hide2!$A250, 'Full set Core Client Indicator'!$A$3:$A$351, 0), MATCH(Selection_Hide2!V$5, 'Full set Core Client Indicator'!$A$3:$AB$3, 0))), \"\")","v":""},{"$f":"IF(V250<>\"\", IF(INDEX('Full set Core Client Indicator'!$A$3:$AB$351, MATCH(Selection_Hide2!$A250, 'Full set Core Client Indicator'!$A$3:$A$351, 0), MATCH(Selection_Hide2!W$5, 'Full set Core Client Indicator'!$A$3:$AB$3, 0))=\"\", \"\",  INDEX('Full set Core Client Indicator'!$A$3:$AB$351, MATCH(Selection_Hide2!$A250, 'Full set Core Client Indicator'!$A$3:$A$351, 0), MATCH(Selection_Hide2!W$5, 'Full set Core Client Indicator'!$A$3:$AB$3, 0))), \"\")","v":""},{"$f":"IF(W250<>\"\", IF(INDEX('Full set Core Client Indicator'!$A$3:$AB$351, MATCH(Selection_Hide2!$A250, 'Full set Core Client Indicator'!$A$3:$A$351, 0), MATCH(Selection_Hide2!X$5, 'Full set Core Client Indicator'!$A$3:$AB$3, 0))=\"\", \"\",  INDEX('Full set Core Client Indicator'!$A$3:$AB$351, MATCH(Selection_Hide2!$A250, 'Full set Core Client Indicator'!$A$3:$A$351, 0), MATCH(Selection_Hide2!X$5, 'Full set Core Client Indicator'!$A$3:$AB$3, 0))), \"\")","v":""},{"$f":"IF(X250<>\"\", IF(INDEX('Full set Core Client Indicator'!$A$3:$AB$351, MATCH(Selection_Hide2!$A250, 'Full set Core Client Indicator'!$A$3:$A$351, 0), MATCH(Selection_Hide2!Y$5, 'Full set Core Client Indicator'!$A$3:$AB$3, 0))=\"\", \"\",  INDEX('Full set Core Client Indicator'!$A$3:$AB$351, MATCH(Selection_Hide2!$A250, 'Full set Core Client Indicator'!$A$3:$A$351, 0), MATCH(Selection_Hide2!Y$5, 'Full set Core Client Indicator'!$A$3:$AB$3, 0))), \"\")","v":""},{"$f":"IF(Y250<>\"\", IF(INDEX('Full set Core Client Indicator'!$A$3:$AB$351, MATCH(Selection_Hide2!$A250, 'Full set Core Client Indicator'!$A$3:$A$351, 0), MATCH(Selection_Hide2!Z$5, 'Full set Core Client Indicator'!$A$3:$AB$3, 0))=\"\", \"\",  INDEX('Full set Core Client Indicator'!$A$3:$AB$351, MATCH(Selection_Hide2!$A250, 'Full set Core Client Indicator'!$A$3:$A$351, 0), MATCH(Selection_Hide2!Z$5, 'Full set Core Client Indicator'!$A$3:$AB$3, 0))), \"\")","v":""},{"$f":"IF(Z250<>\"\", IF(INDEX('Full set Core Client Indicator'!$A$3:$AB$351, MATCH(Selection_Hide2!$A250, 'Full set Core Client Indicator'!$A$3:$A$351, 0), MATCH(Selection_Hide2!AA$5, 'Full set Core Client Indicator'!$A$3:$AB$3, 0))=\"\", \"\",  INDEX('Full set Core Client Indicator'!$A$3:$AB$351, MATCH(Selection_Hide2!$A250, 'Full set Core Client Indicator'!$A$3:$A$351, 0), MATCH(Selection_Hide2!AA$5, 'Full set Core Client Indicator'!$A$3:$AB$3, 0))), \"\")","v":""},{"$f":"IF(AA250<>\"\", IF(INDEX('Full set Core Client Indicator'!$A$3:$AB$351, MATCH(Selection_Hide2!$A250, 'Full set Core Client Indicator'!$A$3:$A$351, 0), MATCH(Selection_Hide2!AB$5, 'Full set Core Client Indicator'!$A$3:$AB$3, 0))=\"\", \"\",  INDEX('Full set Core Client Indicator'!$A$3:$AB$351, MATCH(Selection_Hide2!$A250, 'Full set Core Client Indicator'!$A$3:$A$351, 0), MATCH(Selection_Hide2!AB$5, 'Full set Core Client Indicator'!$A$3:$AB$3, 0))), \"\")","v":""}]
[{"$f":"IF(AND(Selection_Hide1!C249<>0, Selection_Hide1!C249<>\"Grand Total\"), Selection_Hide1!C249, \"\")","v":""},{"$f":"IF(A251<>\"\", IF(INDEX('Full set Core Client Indicator'!$A$3:$AB$351, MATCH(Selection_Hide2!$A251, 'Full set Core Client Indicator'!$A$3:$A$351, 0), MATCH(Selection_Hide2!B$5, 'Full set Core Client Indicator'!$A$3:$AB$3, 0))=\"\", \"\",  INDEX('Full set Core Client Indicator'!$A$3:$AB$351, MATCH(Selection_Hide2!$A251, 'Full set Core Client Indicator'!$A$3:$A$351, 0), MATCH(Selection_Hide2!B$5, 'Full set Core Client Indicator'!$A$3:$AB$3, 0))), \"\")","v":""},{"$f":"IF(B251<>\"\", IF(INDEX('Full set Core Client Indicator'!$A$3:$AB$351, MATCH(Selection_Hide2!$A251, 'Full set Core Client Indicator'!$A$3:$A$351, 0), MATCH(Selection_Hide2!C$5, 'Full set Core Client Indicator'!$A$3:$AB$3, 0))=\"\", \"\",  INDEX('Full set Core Client Indicator'!$A$3:$AB$351, MATCH(Selection_Hide2!$A251, 'Full set Core Client Indicator'!$A$3:$A$351, 0), MATCH(Selection_Hide2!C$5, 'Full set Core Client Indicator'!$A$3:$AB$3, 0))), \"\")","v":""},{"$f":"IF(C251<>\"\", IF(INDEX('Full set Core Client Indicator'!$A$3:$AB$351, MATCH(Selection_Hide2!$A251, 'Full set Core Client Indicator'!$A$3:$A$351, 0), MATCH(Selection_Hide2!D$5, 'Full set Core Client Indicator'!$A$3:$AB$3, 0))=\"\", \"\",  INDEX('Full set Core Client Indicator'!$A$3:$AB$351, MATCH(Selection_Hide2!$A251, 'Full set Core Client Indicator'!$A$3:$A$351, 0), MATCH(Selection_Hide2!D$5, 'Full set Core Client Indicator'!$A$3:$AB$3, 0))), \"\")","v":""},{"$f":"IF(D251<>\"\", IF(INDEX('Full set Core Client Indicator'!$A$3:$AB$351, MATCH(Selection_Hide2!$A251, 'Full set Core Client Indicator'!$A$3:$A$351, 0), MATCH(Selection_Hide2!E$5, 'Full set Core Client Indicator'!$A$3:$AB$3, 0))=\"\", \"\",  INDEX('Full set Core Client Indicator'!$A$3:$AB$351, MATCH(Selection_Hide2!$A251, 'Full set Core Client Indicator'!$A$3:$A$351, 0), MATCH(Selection_Hide2!E$5, 'Full set Core Client Indicator'!$A$3:$AB$3, 0))), \"\")","v":""},{"$f":"IF(E251<>\"\", IF(INDEX('Full set Core Client Indicator'!$A$3:$AB$351, MATCH(Selection_Hide2!$A251, 'Full set Core Client Indicator'!$A$3:$A$351, 0), MATCH(Selection_Hide2!F$5, 'Full set Core Client Indicator'!$A$3:$AB$3, 0))=\"\", \"\",  INDEX('Full set Core Client Indicator'!$A$3:$AB$351, MATCH(Selection_Hide2!$A251, 'Full set Core Client Indicator'!$A$3:$A$351, 0), MATCH(Selection_Hide2!F$5, 'Full set Core Client Indicator'!$A$3:$AB$3, 0))), \"\")","v":""},{"$f":"IF(F251<>\"\", IF(INDEX('Full set Core Client Indicator'!$A$3:$AB$351, MATCH(Selection_Hide2!$A251, 'Full set Core Client Indicator'!$A$3:$A$351, 0), MATCH(Selection_Hide2!G$5, 'Full set Core Client Indicator'!$A$3:$AB$3, 0))=\"\", \"\",  INDEX('Full set Core Client Indicator'!$A$3:$AB$351, MATCH(Selection_Hide2!$A251, 'Full set Core Client Indicator'!$A$3:$A$351, 0), MATCH(Selection_Hide2!G$5, 'Full set Core Client Indicator'!$A$3:$AB$3, 0))), \"\")","v":""},{"$f":"IF(G251<>\"\", IF(INDEX('Full set Core Client Indicator'!$A$3:$AB$351, MATCH(Selection_Hide2!$A251, 'Full set Core Client Indicator'!$A$3:$A$351, 0), MATCH(Selection_Hide2!H$5, 'Full set Core Client Indicator'!$A$3:$AB$3, 0))=\"\", \"\",  INDEX('Full set Core Client Indicator'!$A$3:$AB$351, MATCH(Selection_Hide2!$A251, 'Full set Core Client Indicator'!$A$3:$A$351, 0), MATCH(Selection_Hide2!H$5, 'Full set Core Client Indicator'!$A$3:$AB$3, 0))), \"\")","v":""},{"$f":"IF(H251<>\"\", IF(INDEX('Full set Core Client Indicator'!$A$3:$AB$351, MATCH(Selection_Hide2!$A251, 'Full set Core Client Indicator'!$A$3:$A$351, 0), MATCH(Selection_Hide2!I$5, 'Full set Core Client Indicator'!$A$3:$AB$3, 0))=\"\", \"\",  INDEX('Full set Core Client Indicator'!$A$3:$AB$351, MATCH(Selection_Hide2!$A251, 'Full set Core Client Indicator'!$A$3:$A$351, 0), MATCH(Selection_Hide2!I$5, 'Full set Core Client Indicator'!$A$3:$AB$3, 0))), \"\")","v":""},{"$f":"IF(I251<>\"\", IF(INDEX('Full set Core Client Indicator'!$A$3:$AB$351, MATCH(Selection_Hide2!$A251, 'Full set Core Client Indicator'!$A$3:$A$351, 0), MATCH(Selection_Hide2!J$5, 'Full set Core Client Indicator'!$A$3:$AB$3, 0))=\"\", \"\",  INDEX('Full set Core Client Indicator'!$A$3:$AB$351, MATCH(Selection_Hide2!$A251, 'Full set Core Client Indicator'!$A$3:$A$351, 0), MATCH(Selection_Hide2!J$5, 'Full set Core Client Indicator'!$A$3:$AB$3, 0))), \"\")","v":""},{"$f":"IF(J251<>\"\", IF(INDEX('Full set Core Client Indicator'!$A$3:$AB$351, MATCH(Selection_Hide2!$A251, 'Full set Core Client Indicator'!$A$3:$A$351, 0), MATCH(Selection_Hide2!K$5, 'Full set Core Client Indicator'!$A$3:$AB$3, 0))=\"\", \"\",  INDEX('Full set Core Client Indicator'!$A$3:$AB$351, MATCH(Selection_Hide2!$A251, 'Full set Core Client Indicator'!$A$3:$A$351, 0), MATCH(Selection_Hide2!K$5, 'Full set Core Client Indicator'!$A$3:$AB$3, 0))), \"\")","v":""},{"$f":"IF(K251<>\"\", IF(INDEX('Full set Core Client Indicator'!$A$3:$AB$351, MATCH(Selection_Hide2!$A251, 'Full set Core Client Indicator'!$A$3:$A$351, 0), MATCH(Selection_Hide2!L$5, 'Full set Core Client Indicator'!$A$3:$AB$3, 0))=\"\", \"\",  INDEX('Full set Core Client Indicator'!$A$3:$AB$351, MATCH(Selection_Hide2!$A251, 'Full set Core Client Indicator'!$A$3:$A$351, 0), MATCH(Selection_Hide2!L$5, 'Full set Core Client Indicator'!$A$3:$AB$3, 0))), \"\")","v":""},{"$f":"IF(L251<>\"\", IF(INDEX('Full set Core Client Indicator'!$A$3:$AB$351, MATCH(Selection_Hide2!$A251, 'Full set Core Client Indicator'!$A$3:$A$351, 0), MATCH(Selection_Hide2!M$5, 'Full set Core Client Indicator'!$A$3:$AB$3, 0))=\"\", \"\",  INDEX('Full set Core Client Indicator'!$A$3:$AB$351, MATCH(Selection_Hide2!$A251, 'Full set Core Client Indicator'!$A$3:$A$351, 0), MATCH(Selection_Hide2!M$5, 'Full set Core Client Indicator'!$A$3:$AB$3, 0))), \"\")","v":""},{"$f":"IF(M251<>\"\", IF(INDEX('Full set Core Client Indicator'!$A$3:$AB$351, MATCH(Selection_Hide2!$A251, 'Full set Core Client Indicator'!$A$3:$A$351, 0), MATCH(Selection_Hide2!N$5, 'Full set Core Client Indicator'!$A$3:$AB$3, 0))=\"\", \"\",  INDEX('Full set Core Client Indicator'!$A$3:$AB$351, MATCH(Selection_Hide2!$A251, 'Full set Core Client Indicator'!$A$3:$A$351, 0), MATCH(Selection_Hide2!N$5, 'Full set Core Client Indicator'!$A$3:$AB$3, 0))), \"\")","v":""},{"$f":"IF(N251<>\"\", IF(INDEX('Full set Core Client Indicator'!$A$3:$AB$351, MATCH(Selection_Hide2!$A251, 'Full set Core Client Indicator'!$A$3:$A$351, 0), MATCH(Selection_Hide2!O$5, 'Full set Core Client Indicator'!$A$3:$AB$3, 0))=\"\", \"\",  INDEX('Full set Core Client Indicator'!$A$3:$AB$351, MATCH(Selection_Hide2!$A251, 'Full set Core Client Indicator'!$A$3:$A$351, 0), MATCH(Selection_Hide2!O$5, 'Full set Core Client Indicator'!$A$3:$AB$3, 0))), \"\")","v":""},{"$f":"IF(O251<>\"\", IF(INDEX('Full set Core Client Indicator'!$A$3:$AB$351, MATCH(Selection_Hide2!$A251, 'Full set Core Client Indicator'!$A$3:$A$351, 0), MATCH(Selection_Hide2!P$5, 'Full set Core Client Indicator'!$A$3:$AB$3, 0))=\"\", \"\",  INDEX('Full set Core Client Indicator'!$A$3:$AB$351, MATCH(Selection_Hide2!$A251, 'Full set Core Client Indicator'!$A$3:$A$351, 0), MATCH(Selection_Hide2!P$5, 'Full set Core Client Indicator'!$A$3:$AB$3, 0))), \"\")","v":""},{"$f":"IF(P251<>\"\", IF(INDEX('Full set Core Client Indicator'!$A$3:$AB$351, MATCH(Selection_Hide2!$A251, 'Full set Core Client Indicator'!$A$3:$A$351, 0), MATCH(Selection_Hide2!Q$5, 'Full set Core Client Indicator'!$A$3:$AB$3, 0))=\"\", \"\",  INDEX('Full set Core Client Indicator'!$A$3:$AB$351, MATCH(Selection_Hide2!$A251, 'Full set Core Client Indicator'!$A$3:$A$351, 0), MATCH(Selection_Hide2!Q$5, 'Full set Core Client Indicator'!$A$3:$AB$3, 0))), \"\")","v":""},{"$f":"IF(Q251<>\"\", IF(INDEX('Full set Core Client Indicator'!$A$3:$AB$351, MATCH(Selection_Hide2!$A251, 'Full set Core Client Indicator'!$A$3:$A$351, 0), MATCH(Selection_Hide2!R$5, 'Full set Core Client Indicator'!$A$3:$AB$3, 0))=\"\", \"\",  INDEX('Full set Core Client Indicator'!$A$3:$AB$351, MATCH(Selection_Hide2!$A251, 'Full set Core Client Indicator'!$A$3:$A$351, 0), MATCH(Selection_Hide2!R$5, 'Full set Core Client Indicator'!$A$3:$AB$3, 0))), \"\")","v":""},{"$f":"IF(R251<>\"\", IF(INDEX('Full set Core Client Indicator'!$A$3:$AB$351, MATCH(Selection_Hide2!$A251, 'Full set Core Client Indicator'!$A$3:$A$351, 0), MATCH(Selection_Hide2!S$5, 'Full set Core Client Indicator'!$A$3:$AB$3, 0))=\"\", \"\",  INDEX('Full set Core Client Indicator'!$A$3:$AB$351, MATCH(Selection_Hide2!$A251, 'Full set Core Client Indicator'!$A$3:$A$351, 0), MATCH(Selection_Hide2!S$5, 'Full set Core Client Indicator'!$A$3:$AB$3, 0))), \"\")","v":""},{"$f":"IF(S251<>\"\", IF(INDEX('Full set Core Client Indicator'!$A$3:$AB$351, MATCH(Selection_Hide2!$A251, 'Full set Core Client Indicator'!$A$3:$A$351, 0), MATCH(Selection_Hide2!T$5, 'Full set Core Client Indicator'!$A$3:$AB$3, 0))=\"\", \"\",  INDEX('Full set Core Client Indicator'!$A$3:$AB$351, MATCH(Selection_Hide2!$A251, 'Full set Core Client Indicator'!$A$3:$A$351, 0), MATCH(Selection_Hide2!T$5, 'Full set Core Client Indicator'!$A$3:$AB$3, 0))), \"\")","v":""},{"$f":"IF(T251<>\"\", IF(INDEX('Full set Core Client Indicator'!$A$3:$AB$351, MATCH(Selection_Hide2!$A251, 'Full set Core Client Indicator'!$A$3:$A$351, 0), MATCH(Selection_Hide2!U$5, 'Full set Core Client Indicator'!$A$3:$AB$3, 0))=\"\", \"\",  INDEX('Full set Core Client Indicator'!$A$3:$AB$351, MATCH(Selection_Hide2!$A251, 'Full set Core Client Indicator'!$A$3:$A$351, 0), MATCH(Selection_Hide2!U$5, 'Full set Core Client Indicator'!$A$3:$AB$3, 0))), \"\")","v":""},{"$f":"IF(U251<>\"\", IF(INDEX('Full set Core Client Indicator'!$A$3:$AB$351, MATCH(Selection_Hide2!$A251, 'Full set Core Client Indicator'!$A$3:$A$351, 0), MATCH(Selection_Hide2!V$5, 'Full set Core Client Indicator'!$A$3:$AB$3, 0))=\"\", \"\",  INDEX('Full set Core Client Indicator'!$A$3:$AB$351, MATCH(Selection_Hide2!$A251, 'Full set Core Client Indicator'!$A$3:$A$351, 0), MATCH(Selection_Hide2!V$5, 'Full set Core Client Indicator'!$A$3:$AB$3, 0))), \"\")","v":""},{"$f":"IF(V251<>\"\", IF(INDEX('Full set Core Client Indicator'!$A$3:$AB$351, MATCH(Selection_Hide2!$A251, 'Full set Core Client Indicator'!$A$3:$A$351, 0), MATCH(Selection_Hide2!W$5, 'Full set Core Client Indicator'!$A$3:$AB$3, 0))=\"\", \"\",  INDEX('Full set Core Client Indicator'!$A$3:$AB$351, MATCH(Selection_Hide2!$A251, 'Full set Core Client Indicator'!$A$3:$A$351, 0), MATCH(Selection_Hide2!W$5, 'Full set Core Client Indicator'!$A$3:$AB$3, 0))), \"\")","v":""},{"$f":"IF(W251<>\"\", IF(INDEX('Full set Core Client Indicator'!$A$3:$AB$351, MATCH(Selection_Hide2!$A251, 'Full set Core Client Indicator'!$A$3:$A$351, 0), MATCH(Selection_Hide2!X$5, 'Full set Core Client Indicator'!$A$3:$AB$3, 0))=\"\", \"\",  INDEX('Full set Core Client Indicator'!$A$3:$AB$351, MATCH(Selection_Hide2!$A251, 'Full set Core Client Indicator'!$A$3:$A$351, 0), MATCH(Selection_Hide2!X$5, 'Full set Core Client Indicator'!$A$3:$AB$3, 0))), \"\")","v":""},{"$f":"IF(X251<>\"\", IF(INDEX('Full set Core Client Indicator'!$A$3:$AB$351, MATCH(Selection_Hide2!$A251, 'Full set Core Client Indicator'!$A$3:$A$351, 0), MATCH(Selection_Hide2!Y$5, 'Full set Core Client Indicator'!$A$3:$AB$3, 0))=\"\", \"\",  INDEX('Full set Core Client Indicator'!$A$3:$AB$351, MATCH(Selection_Hide2!$A251, 'Full set Core Client Indicator'!$A$3:$A$351, 0), MATCH(Selection_Hide2!Y$5, 'Full set Core Client Indicator'!$A$3:$AB$3, 0))), \"\")","v":""},{"$f":"IF(Y251<>\"\", IF(INDEX('Full set Core Client Indicator'!$A$3:$AB$351, MATCH(Selection_Hide2!$A251, 'Full set Core Client Indicator'!$A$3:$A$351, 0), MATCH(Selection_Hide2!Z$5, 'Full set Core Client Indicator'!$A$3:$AB$3, 0))=\"\", \"\",  INDEX('Full set Core Client Indicator'!$A$3:$AB$351, MATCH(Selection_Hide2!$A251, 'Full set Core Client Indicator'!$A$3:$A$351, 0), MATCH(Selection_Hide2!Z$5, 'Full set Core Client Indicator'!$A$3:$AB$3, 0))), \"\")","v":""},{"$f":"IF(Z251<>\"\", IF(INDEX('Full set Core Client Indicator'!$A$3:$AB$351, MATCH(Selection_Hide2!$A251, 'Full set Core Client Indicator'!$A$3:$A$351, 0), MATCH(Selection_Hide2!AA$5, 'Full set Core Client Indicator'!$A$3:$AB$3, 0))=\"\", \"\",  INDEX('Full set Core Client Indicator'!$A$3:$AB$351, MATCH(Selection_Hide2!$A251, 'Full set Core Client Indicator'!$A$3:$A$351, 0), MATCH(Selection_Hide2!AA$5, 'Full set Core Client Indicator'!$A$3:$AB$3, 0))), \"\")","v":""},{"$f":"IF(AA251<>\"\", IF(INDEX('Full set Core Client Indicator'!$A$3:$AB$351, MATCH(Selection_Hide2!$A251, 'Full set Core Client Indicator'!$A$3:$A$351, 0), MATCH(Selection_Hide2!AB$5, 'Full set Core Client Indicator'!$A$3:$AB$3, 0))=\"\", \"\",  INDEX('Full set Core Client Indicator'!$A$3:$AB$351, MATCH(Selection_Hide2!$A251, 'Full set Core Client Indicator'!$A$3:$A$351, 0), MATCH(Selection_Hide2!AB$5, 'Full set Core Client Indicator'!$A$3:$AB$3, 0))), \"\")","v":""}]
[{"$f":"IF(AND(Selection_Hide1!C250<>0, Selection_Hide1!C250<>\"Grand Total\"), Selection_Hide1!C250, \"\")","v":""},{"$f":"IF(A252<>\"\", IF(INDEX('Full set Core Client Indicator'!$A$3:$AB$351, MATCH(Selection_Hide2!$A252, 'Full set Core Client Indicator'!$A$3:$A$351, 0), MATCH(Selection_Hide2!B$5, 'Full set Core Client Indicator'!$A$3:$AB$3, 0))=\"\", \"\",  INDEX('Full set Core Client Indicator'!$A$3:$AB$351, MATCH(Selection_Hide2!$A252, 'Full set Core Client Indicator'!$A$3:$A$351, 0), MATCH(Selection_Hide2!B$5, 'Full set Core Client Indicator'!$A$3:$AB$3, 0))), \"\")","v":""},{"$f":"IF(B252<>\"\", IF(INDEX('Full set Core Client Indicator'!$A$3:$AB$351, MATCH(Selection_Hide2!$A252, 'Full set Core Client Indicator'!$A$3:$A$351, 0), MATCH(Selection_Hide2!C$5, 'Full set Core Client Indicator'!$A$3:$AB$3, 0))=\"\", \"\",  INDEX('Full set Core Client Indicator'!$A$3:$AB$351, MATCH(Selection_Hide2!$A252, 'Full set Core Client Indicator'!$A$3:$A$351, 0), MATCH(Selection_Hide2!C$5, 'Full set Core Client Indicator'!$A$3:$AB$3, 0))), \"\")","v":""},{"$f":"IF(C252<>\"\", IF(INDEX('Full set Core Client Indicator'!$A$3:$AB$351, MATCH(Selection_Hide2!$A252, 'Full set Core Client Indicator'!$A$3:$A$351, 0), MATCH(Selection_Hide2!D$5, 'Full set Core Client Indicator'!$A$3:$AB$3, 0))=\"\", \"\",  INDEX('Full set Core Client Indicator'!$A$3:$AB$351, MATCH(Selection_Hide2!$A252, 'Full set Core Client Indicator'!$A$3:$A$351, 0), MATCH(Selection_Hide2!D$5, 'Full set Core Client Indicator'!$A$3:$AB$3, 0))), \"\")","v":""},{"$f":"IF(D252<>\"\", IF(INDEX('Full set Core Client Indicator'!$A$3:$AB$351, MATCH(Selection_Hide2!$A252, 'Full set Core Client Indicator'!$A$3:$A$351, 0), MATCH(Selection_Hide2!E$5, 'Full set Core Client Indicator'!$A$3:$AB$3, 0))=\"\", \"\",  INDEX('Full set Core Client Indicator'!$A$3:$AB$351, MATCH(Selection_Hide2!$A252, 'Full set Core Client Indicator'!$A$3:$A$351, 0), MATCH(Selection_Hide2!E$5, 'Full set Core Client Indicator'!$A$3:$AB$3, 0))), \"\")","v":""},{"$f":"IF(E252<>\"\", IF(INDEX('Full set Core Client Indicator'!$A$3:$AB$351, MATCH(Selection_Hide2!$A252, 'Full set Core Client Indicator'!$A$3:$A$351, 0), MATCH(Selection_Hide2!F$5, 'Full set Core Client Indicator'!$A$3:$AB$3, 0))=\"\", \"\",  INDEX('Full set Core Client Indicator'!$A$3:$AB$351, MATCH(Selection_Hide2!$A252, 'Full set Core Client Indicator'!$A$3:$A$351, 0), MATCH(Selection_Hide2!F$5, 'Full set Core Client Indicator'!$A$3:$AB$3, 0))), \"\")","v":""},{"$f":"IF(F252<>\"\", IF(INDEX('Full set Core Client Indicator'!$A$3:$AB$351, MATCH(Selection_Hide2!$A252, 'Full set Core Client Indicator'!$A$3:$A$351, 0), MATCH(Selection_Hide2!G$5, 'Full set Core Client Indicator'!$A$3:$AB$3, 0))=\"\", \"\",  INDEX('Full set Core Client Indicator'!$A$3:$AB$351, MATCH(Selection_Hide2!$A252, 'Full set Core Client Indicator'!$A$3:$A$351, 0), MATCH(Selection_Hide2!G$5, 'Full set Core Client Indicator'!$A$3:$AB$3, 0))), \"\")","v":""},{"$f":"IF(G252<>\"\", IF(INDEX('Full set Core Client Indicator'!$A$3:$AB$351, MATCH(Selection_Hide2!$A252, 'Full set Core Client Indicator'!$A$3:$A$351, 0), MATCH(Selection_Hide2!H$5, 'Full set Core Client Indicator'!$A$3:$AB$3, 0))=\"\", \"\",  INDEX('Full set Core Client Indicator'!$A$3:$AB$351, MATCH(Selection_Hide2!$A252, 'Full set Core Client Indicator'!$A$3:$A$351, 0), MATCH(Selection_Hide2!H$5, 'Full set Core Client Indicator'!$A$3:$AB$3, 0))), \"\")","v":""},{"$f":"IF(H252<>\"\", IF(INDEX('Full set Core Client Indicator'!$A$3:$AB$351, MATCH(Selection_Hide2!$A252, 'Full set Core Client Indicator'!$A$3:$A$351, 0), MATCH(Selection_Hide2!I$5, 'Full set Core Client Indicator'!$A$3:$AB$3, 0))=\"\", \"\",  INDEX('Full set Core Client Indicator'!$A$3:$AB$351, MATCH(Selection_Hide2!$A252, 'Full set Core Client Indicator'!$A$3:$A$351, 0), MATCH(Selection_Hide2!I$5, 'Full set Core Client Indicator'!$A$3:$AB$3, 0))), \"\")","v":""},{"$f":"IF(I252<>\"\", IF(INDEX('Full set Core Client Indicator'!$A$3:$AB$351, MATCH(Selection_Hide2!$A252, 'Full set Core Client Indicator'!$A$3:$A$351, 0), MATCH(Selection_Hide2!J$5, 'Full set Core Client Indicator'!$A$3:$AB$3, 0))=\"\", \"\",  INDEX('Full set Core Client Indicator'!$A$3:$AB$351, MATCH(Selection_Hide2!$A252, 'Full set Core Client Indicator'!$A$3:$A$351, 0), MATCH(Selection_Hide2!J$5, 'Full set Core Client Indicator'!$A$3:$AB$3, 0))), \"\")","v":""},{"$f":"IF(J252<>\"\", IF(INDEX('Full set Core Client Indicator'!$A$3:$AB$351, MATCH(Selection_Hide2!$A252, 'Full set Core Client Indicator'!$A$3:$A$351, 0), MATCH(Selection_Hide2!K$5, 'Full set Core Client Indicator'!$A$3:$AB$3, 0))=\"\", \"\",  INDEX('Full set Core Client Indicator'!$A$3:$AB$351, MATCH(Selection_Hide2!$A252, 'Full set Core Client Indicator'!$A$3:$A$351, 0), MATCH(Selection_Hide2!K$5, 'Full set Core Client Indicator'!$A$3:$AB$3, 0))), \"\")","v":""},{"$f":"IF(K252<>\"\", IF(INDEX('Full set Core Client Indicator'!$A$3:$AB$351, MATCH(Selection_Hide2!$A252, 'Full set Core Client Indicator'!$A$3:$A$351, 0), MATCH(Selection_Hide2!L$5, 'Full set Core Client Indicator'!$A$3:$AB$3, 0))=\"\", \"\",  INDEX('Full set Core Client Indicator'!$A$3:$AB$351, MATCH(Selection_Hide2!$A252, 'Full set Core Client Indicator'!$A$3:$A$351, 0), MATCH(Selection_Hide2!L$5, 'Full set Core Client Indicator'!$A$3:$AB$3, 0))), \"\")","v":""},{"$f":"IF(L252<>\"\", IF(INDEX('Full set Core Client Indicator'!$A$3:$AB$351, MATCH(Selection_Hide2!$A252, 'Full set Core Client Indicator'!$A$3:$A$351, 0), MATCH(Selection_Hide2!M$5, 'Full set Core Client Indicator'!$A$3:$AB$3, 0))=\"\", \"\",  INDEX('Full set Core Client Indicator'!$A$3:$AB$351, MATCH(Selection_Hide2!$A252, 'Full set Core Client Indicator'!$A$3:$A$351, 0), MATCH(Selection_Hide2!M$5, 'Full set Core Client Indicator'!$A$3:$AB$3, 0))), \"\")","v":""},{"$f":"IF(M252<>\"\", IF(INDEX('Full set Core Client Indicator'!$A$3:$AB$351, MATCH(Selection_Hide2!$A252, 'Full set Core Client Indicator'!$A$3:$A$351, 0), MATCH(Selection_Hide2!N$5, 'Full set Core Client Indicator'!$A$3:$AB$3, 0))=\"\", \"\",  INDEX('Full set Core Client Indicator'!$A$3:$AB$351, MATCH(Selection_Hide2!$A252, 'Full set Core Client Indicator'!$A$3:$A$351, 0), MATCH(Selection_Hide2!N$5, 'Full set Core Client Indicator'!$A$3:$AB$3, 0))), \"\")","v":""},{"$f":"IF(N252<>\"\", IF(INDEX('Full set Core Client Indicator'!$A$3:$AB$351, MATCH(Selection_Hide2!$A252, 'Full set Core Client Indicator'!$A$3:$A$351, 0), MATCH(Selection_Hide2!O$5, 'Full set Core Client Indicator'!$A$3:$AB$3, 0))=\"\", \"\",  INDEX('Full set Core Client Indicator'!$A$3:$AB$351, MATCH(Selection_Hide2!$A252, 'Full set Core Client Indicator'!$A$3:$A$351, 0), MATCH(Selection_Hide2!O$5, 'Full set Core Client Indicator'!$A$3:$AB$3, 0))), \"\")","v":""},{"$f":"IF(O252<>\"\", IF(INDEX('Full set Core Client Indicator'!$A$3:$AB$351, MATCH(Selection_Hide2!$A252, 'Full set Core Client Indicator'!$A$3:$A$351, 0), MATCH(Selection_Hide2!P$5, 'Full set Core Client Indicator'!$A$3:$AB$3, 0))=\"\", \"\",  INDEX('Full set Core Client Indicator'!$A$3:$AB$351, MATCH(Selection_Hide2!$A252, 'Full set Core Client Indicator'!$A$3:$A$351, 0), MATCH(Selection_Hide2!P$5, 'Full set Core Client Indicator'!$A$3:$AB$3, 0))), \"\")","v":""},{"$f":"IF(P252<>\"\", IF(INDEX('Full set Core Client Indicator'!$A$3:$AB$351, MATCH(Selection_Hide2!$A252, 'Full set Core Client Indicator'!$A$3:$A$351, 0), MATCH(Selection_Hide2!Q$5, 'Full set Core Client Indicator'!$A$3:$AB$3, 0))=\"\", \"\",  INDEX('Full set Core Client Indicator'!$A$3:$AB$351, MATCH(Selection_Hide2!$A252, 'Full set Core Client Indicator'!$A$3:$A$351, 0), MATCH(Selection_Hide2!Q$5, 'Full set Core Client Indicator'!$A$3:$AB$3, 0))), \"\")","v":""},{"$f":"IF(Q252<>\"\", IF(INDEX('Full set Core Client Indicator'!$A$3:$AB$351, MATCH(Selection_Hide2!$A252, 'Full set Core Client Indicator'!$A$3:$A$351, 0), MATCH(Selection_Hide2!R$5, 'Full set Core Client Indicator'!$A$3:$AB$3, 0))=\"\", \"\",  INDEX('Full set Core Client Indicator'!$A$3:$AB$351, MATCH(Selection_Hide2!$A252, 'Full set Core Client Indicator'!$A$3:$A$351, 0), MATCH(Selection_Hide2!R$5, 'Full set Core Client Indicator'!$A$3:$AB$3, 0))), \"\")","v":""},{"$f":"IF(R252<>\"\", IF(INDEX('Full set Core Client Indicator'!$A$3:$AB$351, MATCH(Selection_Hide2!$A252, 'Full set Core Client Indicator'!$A$3:$A$351, 0), MATCH(Selection_Hide2!S$5, 'Full set Core Client Indicator'!$A$3:$AB$3, 0))=\"\", \"\",  INDEX('Full set Core Client Indicator'!$A$3:$AB$351, MATCH(Selection_Hide2!$A252, 'Full set Core Client Indicator'!$A$3:$A$351, 0), MATCH(Selection_Hide2!S$5, 'Full set Core Client Indicator'!$A$3:$AB$3, 0))), \"\")","v":""},{"$f":"IF(S252<>\"\", IF(INDEX('Full set Core Client Indicator'!$A$3:$AB$351, MATCH(Selection_Hide2!$A252, 'Full set Core Client Indicator'!$A$3:$A$351, 0), MATCH(Selection_Hide2!T$5, 'Full set Core Client Indicator'!$A$3:$AB$3, 0))=\"\", \"\",  INDEX('Full set Core Client Indicator'!$A$3:$AB$351, MATCH(Selection_Hide2!$A252, 'Full set Core Client Indicator'!$A$3:$A$351, 0), MATCH(Selection_Hide2!T$5, 'Full set Core Client Indicator'!$A$3:$AB$3, 0))), \"\")","v":""},{"$f":"IF(T252<>\"\", IF(INDEX('Full set Core Client Indicator'!$A$3:$AB$351, MATCH(Selection_Hide2!$A252, 'Full set Core Client Indicator'!$A$3:$A$351, 0), MATCH(Selection_Hide2!U$5, 'Full set Core Client Indicator'!$A$3:$AB$3, 0))=\"\", \"\",  INDEX('Full set Core Client Indicator'!$A$3:$AB$351, MATCH(Selection_Hide2!$A252, 'Full set Core Client Indicator'!$A$3:$A$351, 0), MATCH(Selection_Hide2!U$5, 'Full set Core Client Indicator'!$A$3:$AB$3, 0))), \"\")","v":""},{"$f":"IF(U252<>\"\", IF(INDEX('Full set Core Client Indicator'!$A$3:$AB$351, MATCH(Selection_Hide2!$A252, 'Full set Core Client Indicator'!$A$3:$A$351, 0), MATCH(Selection_Hide2!V$5, 'Full set Core Client Indicator'!$A$3:$AB$3, 0))=\"\", \"\",  INDEX('Full set Core Client Indicator'!$A$3:$AB$351, MATCH(Selection_Hide2!$A252, 'Full set Core Client Indicator'!$A$3:$A$351, 0), MATCH(Selection_Hide2!V$5, 'Full set Core Client Indicator'!$A$3:$AB$3, 0))), \"\")","v":""},{"$f":"IF(V252<>\"\", IF(INDEX('Full set Core Client Indicator'!$A$3:$AB$351, MATCH(Selection_Hide2!$A252, 'Full set Core Client Indicator'!$A$3:$A$351, 0), MATCH(Selection_Hide2!W$5, 'Full set Core Client Indicator'!$A$3:$AB$3, 0))=\"\", \"\",  INDEX('Full set Core Client Indicator'!$A$3:$AB$351, MATCH(Selection_Hide2!$A252, 'Full set Core Client Indicator'!$A$3:$A$351, 0), MATCH(Selection_Hide2!W$5, 'Full set Core Client Indicator'!$A$3:$AB$3, 0))), \"\")","v":""},{"$f":"IF(W252<>\"\", IF(INDEX('Full set Core Client Indicator'!$A$3:$AB$351, MATCH(Selection_Hide2!$A252, 'Full set Core Client Indicator'!$A$3:$A$351, 0), MATCH(Selection_Hide2!X$5, 'Full set Core Client Indicator'!$A$3:$AB$3, 0))=\"\", \"\",  INDEX('Full set Core Client Indicator'!$A$3:$AB$351, MATCH(Selection_Hide2!$A252, 'Full set Core Client Indicator'!$A$3:$A$351, 0), MATCH(Selection_Hide2!X$5, 'Full set Core Client Indicator'!$A$3:$AB$3, 0))), \"\")","v":""},{"$f":"IF(X252<>\"\", IF(INDEX('Full set Core Client Indicator'!$A$3:$AB$351, MATCH(Selection_Hide2!$A252, 'Full set Core Client Indicator'!$A$3:$A$351, 0), MATCH(Selection_Hide2!Y$5, 'Full set Core Client Indicator'!$A$3:$AB$3, 0))=\"\", \"\",  INDEX('Full set Core Client Indicator'!$A$3:$AB$351, MATCH(Selection_Hide2!$A252, 'Full set Core Client Indicator'!$A$3:$A$351, 0), MATCH(Selection_Hide2!Y$5, 'Full set Core Client Indicator'!$A$3:$AB$3, 0))), \"\")","v":""},{"$f":"IF(Y252<>\"\", IF(INDEX('Full set Core Client Indicator'!$A$3:$AB$351, MATCH(Selection_Hide2!$A252, 'Full set Core Client Indicator'!$A$3:$A$351, 0), MATCH(Selection_Hide2!Z$5, 'Full set Core Client Indicator'!$A$3:$AB$3, 0))=\"\", \"\",  INDEX('Full set Core Client Indicator'!$A$3:$AB$351, MATCH(Selection_Hide2!$A252, 'Full set Core Client Indicator'!$A$3:$A$351, 0), MATCH(Selection_Hide2!Z$5, 'Full set Core Client Indicator'!$A$3:$AB$3, 0))), \"\")","v":""},{"$f":"IF(Z252<>\"\", IF(INDEX('Full set Core Client Indicator'!$A$3:$AB$351, MATCH(Selection_Hide2!$A252, 'Full set Core Client Indicator'!$A$3:$A$351, 0), MATCH(Selection_Hide2!AA$5, 'Full set Core Client Indicator'!$A$3:$AB$3, 0))=\"\", \"\",  INDEX('Full set Core Client Indicator'!$A$3:$AB$351, MATCH(Selection_Hide2!$A252, 'Full set Core Client Indicator'!$A$3:$A$351, 0), MATCH(Selection_Hide2!AA$5, 'Full set Core Client Indicator'!$A$3:$AB$3, 0))), \"\")","v":""},{"$f":"IF(AA252<>\"\", IF(INDEX('Full set Core Client Indicator'!$A$3:$AB$351, MATCH(Selection_Hide2!$A252, 'Full set Core Client Indicator'!$A$3:$A$351, 0), MATCH(Selection_Hide2!AB$5, 'Full set Core Client Indicator'!$A$3:$AB$3, 0))=\"\", \"\",  INDEX('Full set Core Client Indicator'!$A$3:$AB$351, MATCH(Selection_Hide2!$A252, 'Full set Core Client Indicator'!$A$3:$A$351, 0), MATCH(Selection_Hide2!AB$5, 'Full set Core Client Indicator'!$A$3:$AB$3, 0))), \"\")","v":""}]
[{"$f":"IF(AND(Selection_Hide1!C251<>0, Selection_Hide1!C251<>\"Grand Total\"), Selection_Hide1!C251, \"\")","v":""},{"$f":"IF(A253<>\"\", IF(INDEX('Full set Core Client Indicator'!$A$3:$AB$351, MATCH(Selection_Hide2!$A253, 'Full set Core Client Indicator'!$A$3:$A$351, 0), MATCH(Selection_Hide2!B$5, 'Full set Core Client Indicator'!$A$3:$AB$3, 0))=\"\", \"\",  INDEX('Full set Core Client Indicator'!$A$3:$AB$351, MATCH(Selection_Hide2!$A253, 'Full set Core Client Indicator'!$A$3:$A$351, 0), MATCH(Selection_Hide2!B$5, 'Full set Core Client Indicator'!$A$3:$AB$3, 0))), \"\")","v":""},{"$f":"IF(B253<>\"\", IF(INDEX('Full set Core Client Indicator'!$A$3:$AB$351, MATCH(Selection_Hide2!$A253, 'Full set Core Client Indicator'!$A$3:$A$351, 0), MATCH(Selection_Hide2!C$5, 'Full set Core Client Indicator'!$A$3:$AB$3, 0))=\"\", \"\",  INDEX('Full set Core Client Indicator'!$A$3:$AB$351, MATCH(Selection_Hide2!$A253, 'Full set Core Client Indicator'!$A$3:$A$351, 0), MATCH(Selection_Hide2!C$5, 'Full set Core Client Indicator'!$A$3:$AB$3, 0))), \"\")","v":""},{"$f":"IF(C253<>\"\", IF(INDEX('Full set Core Client Indicator'!$A$3:$AB$351, MATCH(Selection_Hide2!$A253, 'Full set Core Client Indicator'!$A$3:$A$351, 0), MATCH(Selection_Hide2!D$5, 'Full set Core Client Indicator'!$A$3:$AB$3, 0))=\"\", \"\",  INDEX('Full set Core Client Indicator'!$A$3:$AB$351, MATCH(Selection_Hide2!$A253, 'Full set Core Client Indicator'!$A$3:$A$351, 0), MATCH(Selection_Hide2!D$5, 'Full set Core Client Indicator'!$A$3:$AB$3, 0))), \"\")","v":""},{"$f":"IF(D253<>\"\", IF(INDEX('Full set Core Client Indicator'!$A$3:$AB$351, MATCH(Selection_Hide2!$A253, 'Full set Core Client Indicator'!$A$3:$A$351, 0), MATCH(Selection_Hide2!E$5, 'Full set Core Client Indicator'!$A$3:$AB$3, 0))=\"\", \"\",  INDEX('Full set Core Client Indicator'!$A$3:$AB$351, MATCH(Selection_Hide2!$A253, 'Full set Core Client Indicator'!$A$3:$A$351, 0), MATCH(Selection_Hide2!E$5, 'Full set Core Client Indicator'!$A$3:$AB$3, 0))), \"\")","v":""},{"$f":"IF(E253<>\"\", IF(INDEX('Full set Core Client Indicator'!$A$3:$AB$351, MATCH(Selection_Hide2!$A253, 'Full set Core Client Indicator'!$A$3:$A$351, 0), MATCH(Selection_Hide2!F$5, 'Full set Core Client Indicator'!$A$3:$AB$3, 0))=\"\", \"\",  INDEX('Full set Core Client Indicator'!$A$3:$AB$351, MATCH(Selection_Hide2!$A253, 'Full set Core Client Indicator'!$A$3:$A$351, 0), MATCH(Selection_Hide2!F$5, 'Full set Core Client Indicator'!$A$3:$AB$3, 0))), \"\")","v":""},{"$f":"IF(F253<>\"\", IF(INDEX('Full set Core Client Indicator'!$A$3:$AB$351, MATCH(Selection_Hide2!$A253, 'Full set Core Client Indicator'!$A$3:$A$351, 0), MATCH(Selection_Hide2!G$5, 'Full set Core Client Indicator'!$A$3:$AB$3, 0))=\"\", \"\",  INDEX('Full set Core Client Indicator'!$A$3:$AB$351, MATCH(Selection_Hide2!$A253, 'Full set Core Client Indicator'!$A$3:$A$351, 0), MATCH(Selection_Hide2!G$5, 'Full set Core Client Indicator'!$A$3:$AB$3, 0))), \"\")","v":""},{"$f":"IF(G253<>\"\", IF(INDEX('Full set Core Client Indicator'!$A$3:$AB$351, MATCH(Selection_Hide2!$A253, 'Full set Core Client Indicator'!$A$3:$A$351, 0), MATCH(Selection_Hide2!H$5, 'Full set Core Client Indicator'!$A$3:$AB$3, 0))=\"\", \"\",  INDEX('Full set Core Client Indicator'!$A$3:$AB$351, MATCH(Selection_Hide2!$A253, 'Full set Core Client Indicator'!$A$3:$A$351, 0), MATCH(Selection_Hide2!H$5, 'Full set Core Client Indicator'!$A$3:$AB$3, 0))), \"\")","v":""},{"$f":"IF(H253<>\"\", IF(INDEX('Full set Core Client Indicator'!$A$3:$AB$351, MATCH(Selection_Hide2!$A253, 'Full set Core Client Indicator'!$A$3:$A$351, 0), MATCH(Selection_Hide2!I$5, 'Full set Core Client Indicator'!$A$3:$AB$3, 0))=\"\", \"\",  INDEX('Full set Core Client Indicator'!$A$3:$AB$351, MATCH(Selection_Hide2!$A253, 'Full set Core Client Indicator'!$A$3:$A$351, 0), MATCH(Selection_Hide2!I$5, 'Full set Core Client Indicator'!$A$3:$AB$3, 0))), \"\")","v":""},{"$f":"IF(I253<>\"\", IF(INDEX('Full set Core Client Indicator'!$A$3:$AB$351, MATCH(Selection_Hide2!$A253, 'Full set Core Client Indicator'!$A$3:$A$351, 0), MATCH(Selection_Hide2!J$5, 'Full set Core Client Indicator'!$A$3:$AB$3, 0))=\"\", \"\",  INDEX('Full set Core Client Indicator'!$A$3:$AB$351, MATCH(Selection_Hide2!$A253, 'Full set Core Client Indicator'!$A$3:$A$351, 0), MATCH(Selection_Hide2!J$5, 'Full set Core Client Indicator'!$A$3:$AB$3, 0))), \"\")","v":""},{"$f":"IF(J253<>\"\", IF(INDEX('Full set Core Client Indicator'!$A$3:$AB$351, MATCH(Selection_Hide2!$A253, 'Full set Core Client Indicator'!$A$3:$A$351, 0), MATCH(Selection_Hide2!K$5, 'Full set Core Client Indicator'!$A$3:$AB$3, 0))=\"\", \"\",  INDEX('Full set Core Client Indicator'!$A$3:$AB$351, MATCH(Selection_Hide2!$A253, 'Full set Core Client Indicator'!$A$3:$A$351, 0), MATCH(Selection_Hide2!K$5, 'Full set Core Client Indicator'!$A$3:$AB$3, 0))), \"\")","v":""},{"$f":"IF(K253<>\"\", IF(INDEX('Full set Core Client Indicator'!$A$3:$AB$351, MATCH(Selection_Hide2!$A253, 'Full set Core Client Indicator'!$A$3:$A$351, 0), MATCH(Selection_Hide2!L$5, 'Full set Core Client Indicator'!$A$3:$AB$3, 0))=\"\", \"\",  INDEX('Full set Core Client Indicator'!$A$3:$AB$351, MATCH(Selection_Hide2!$A253, 'Full set Core Client Indicator'!$A$3:$A$351, 0), MATCH(Selection_Hide2!L$5, 'Full set Core Client Indicator'!$A$3:$AB$3, 0))), \"\")","v":""},{"$f":"IF(L253<>\"\", IF(INDEX('Full set Core Client Indicator'!$A$3:$AB$351, MATCH(Selection_Hide2!$A253, 'Full set Core Client Indicator'!$A$3:$A$351, 0), MATCH(Selection_Hide2!M$5, 'Full set Core Client Indicator'!$A$3:$AB$3, 0))=\"\", \"\",  INDEX('Full set Core Client Indicator'!$A$3:$AB$351, MATCH(Selection_Hide2!$A253, 'Full set Core Client Indicator'!$A$3:$A$351, 0), MATCH(Selection_Hide2!M$5, 'Full set Core Client Indicator'!$A$3:$AB$3, 0))), \"\")","v":""},{"$f":"IF(M253<>\"\", IF(INDEX('Full set Core Client Indicator'!$A$3:$AB$351, MATCH(Selection_Hide2!$A253, 'Full set Core Client Indicator'!$A$3:$A$351, 0), MATCH(Selection_Hide2!N$5, 'Full set Core Client Indicator'!$A$3:$AB$3, 0))=\"\", \"\",  INDEX('Full set Core Client Indicator'!$A$3:$AB$351, MATCH(Selection_Hide2!$A253, 'Full set Core Client Indicator'!$A$3:$A$351, 0), MATCH(Selection_Hide2!N$5, 'Full set Core Client Indicator'!$A$3:$AB$3, 0))), \"\")","v":""},{"$f":"IF(N253<>\"\", IF(INDEX('Full set Core Client Indicator'!$A$3:$AB$351, MATCH(Selection_Hide2!$A253, 'Full set Core Client Indicator'!$A$3:$A$351, 0), MATCH(Selection_Hide2!O$5, 'Full set Core Client Indicator'!$A$3:$AB$3, 0))=\"\", \"\",  INDEX('Full set Core Client Indicator'!$A$3:$AB$351, MATCH(Selection_Hide2!$A253, 'Full set Core Client Indicator'!$A$3:$A$351, 0), MATCH(Selection_Hide2!O$5, 'Full set Core Client Indicator'!$A$3:$AB$3, 0))), \"\")","v":""},{"$f":"IF(O253<>\"\", IF(INDEX('Full set Core Client Indicator'!$A$3:$AB$351, MATCH(Selection_Hide2!$A253, 'Full set Core Client Indicator'!$A$3:$A$351, 0), MATCH(Selection_Hide2!P$5, 'Full set Core Client Indicator'!$A$3:$AB$3, 0))=\"\", \"\",  INDEX('Full set Core Client Indicator'!$A$3:$AB$351, MATCH(Selection_Hide2!$A253, 'Full set Core Client Indicator'!$A$3:$A$351, 0), MATCH(Selection_Hide2!P$5, 'Full set Core Client Indicator'!$A$3:$AB$3, 0))), \"\")","v":""},{"$f":"IF(P253<>\"\", IF(INDEX('Full set Core Client Indicator'!$A$3:$AB$351, MATCH(Selection_Hide2!$A253, 'Full set Core Client Indicator'!$A$3:$A$351, 0), MATCH(Selection_Hide2!Q$5, 'Full set Core Client Indicator'!$A$3:$AB$3, 0))=\"\", \"\",  INDEX('Full set Core Client Indicator'!$A$3:$AB$351, MATCH(Selection_Hide2!$A253, 'Full set Core Client Indicator'!$A$3:$A$351, 0), MATCH(Selection_Hide2!Q$5, 'Full set Core Client Indicator'!$A$3:$AB$3, 0))), \"\")","v":""},{"$f":"IF(Q253<>\"\", IF(INDEX('Full set Core Client Indicator'!$A$3:$AB$351, MATCH(Selection_Hide2!$A253, 'Full set Core Client Indicator'!$A$3:$A$351, 0), MATCH(Selection_Hide2!R$5, 'Full set Core Client Indicator'!$A$3:$AB$3, 0))=\"\", \"\",  INDEX('Full set Core Client Indicator'!$A$3:$AB$351, MATCH(Selection_Hide2!$A253, 'Full set Core Client Indicator'!$A$3:$A$351, 0), MATCH(Selection_Hide2!R$5, 'Full set Core Client Indicator'!$A$3:$AB$3, 0))), \"\")","v":""},{"$f":"IF(R253<>\"\", IF(INDEX('Full set Core Client Indicator'!$A$3:$AB$351, MATCH(Selection_Hide2!$A253, 'Full set Core Client Indicator'!$A$3:$A$351, 0), MATCH(Selection_Hide2!S$5, 'Full set Core Client Indicator'!$A$3:$AB$3, 0))=\"\", \"\",  INDEX('Full set Core Client Indicator'!$A$3:$AB$351, MATCH(Selection_Hide2!$A253, 'Full set Core Client Indicator'!$A$3:$A$351, 0), MATCH(Selection_Hide2!S$5, 'Full set Core Client Indicator'!$A$3:$AB$3, 0))), \"\")","v":""},{"$f":"IF(S253<>\"\", IF(INDEX('Full set Core Client Indicator'!$A$3:$AB$351, MATCH(Selection_Hide2!$A253, 'Full set Core Client Indicator'!$A$3:$A$351, 0), MATCH(Selection_Hide2!T$5, 'Full set Core Client Indicator'!$A$3:$AB$3, 0))=\"\", \"\",  INDEX('Full set Core Client Indicator'!$A$3:$AB$351, MATCH(Selection_Hide2!$A253, 'Full set Core Client Indicator'!$A$3:$A$351, 0), MATCH(Selection_Hide2!T$5, 'Full set Core Client Indicator'!$A$3:$AB$3, 0))), \"\")","v":""},{"$f":"IF(T253<>\"\", IF(INDEX('Full set Core Client Indicator'!$A$3:$AB$351, MATCH(Selection_Hide2!$A253, 'Full set Core Client Indicator'!$A$3:$A$351, 0), MATCH(Selection_Hide2!U$5, 'Full set Core Client Indicator'!$A$3:$AB$3, 0))=\"\", \"\",  INDEX('Full set Core Client Indicator'!$A$3:$AB$351, MATCH(Selection_Hide2!$A253, 'Full set Core Client Indicator'!$A$3:$A$351, 0), MATCH(Selection_Hide2!U$5, 'Full set Core Client Indicator'!$A$3:$AB$3, 0))), \"\")","v":""},{"$f":"IF(U253<>\"\", IF(INDEX('Full set Core Client Indicator'!$A$3:$AB$351, MATCH(Selection_Hide2!$A253, 'Full set Core Client Indicator'!$A$3:$A$351, 0), MATCH(Selection_Hide2!V$5, 'Full set Core Client Indicator'!$A$3:$AB$3, 0))=\"\", \"\",  INDEX('Full set Core Client Indicator'!$A$3:$AB$351, MATCH(Selection_Hide2!$A253, 'Full set Core Client Indicator'!$A$3:$A$351, 0), MATCH(Selection_Hide2!V$5, 'Full set Core Client Indicator'!$A$3:$AB$3, 0))), \"\")","v":""},{"$f":"IF(V253<>\"\", IF(INDEX('Full set Core Client Indicator'!$A$3:$AB$351, MATCH(Selection_Hide2!$A253, 'Full set Core Client Indicator'!$A$3:$A$351, 0), MATCH(Selection_Hide2!W$5, 'Full set Core Client Indicator'!$A$3:$AB$3, 0))=\"\", \"\",  INDEX('Full set Core Client Indicator'!$A$3:$AB$351, MATCH(Selection_Hide2!$A253, 'Full set Core Client Indicator'!$A$3:$A$351, 0), MATCH(Selection_Hide2!W$5, 'Full set Core Client Indicator'!$A$3:$AB$3, 0))), \"\")","v":""},{"$f":"IF(W253<>\"\", IF(INDEX('Full set Core Client Indicator'!$A$3:$AB$351, MATCH(Selection_Hide2!$A253, 'Full set Core Client Indicator'!$A$3:$A$351, 0), MATCH(Selection_Hide2!X$5, 'Full set Core Client Indicator'!$A$3:$AB$3, 0))=\"\", \"\",  INDEX('Full set Core Client Indicator'!$A$3:$AB$351, MATCH(Selection_Hide2!$A253, 'Full set Core Client Indicator'!$A$3:$A$351, 0), MATCH(Selection_Hide2!X$5, 'Full set Core Client Indicator'!$A$3:$AB$3, 0))), \"\")","v":""},{"$f":"IF(X253<>\"\", IF(INDEX('Full set Core Client Indicator'!$A$3:$AB$351, MATCH(Selection_Hide2!$A253, 'Full set Core Client Indicator'!$A$3:$A$351, 0), MATCH(Selection_Hide2!Y$5, 'Full set Core Client Indicator'!$A$3:$AB$3, 0))=\"\", \"\",  INDEX('Full set Core Client Indicator'!$A$3:$AB$351, MATCH(Selection_Hide2!$A253, 'Full set Core Client Indicator'!$A$3:$A$351, 0), MATCH(Selection_Hide2!Y$5, 'Full set Core Client Indicator'!$A$3:$AB$3, 0))), \"\")","v":""},{"$f":"IF(Y253<>\"\", IF(INDEX('Full set Core Client Indicator'!$A$3:$AB$351, MATCH(Selection_Hide2!$A253, 'Full set Core Client Indicator'!$A$3:$A$351, 0), MATCH(Selection_Hide2!Z$5, 'Full set Core Client Indicator'!$A$3:$AB$3, 0))=\"\", \"\",  INDEX('Full set Core Client Indicator'!$A$3:$AB$351, MATCH(Selection_Hide2!$A253, 'Full set Core Client Indicator'!$A$3:$A$351, 0), MATCH(Selection_Hide2!Z$5, 'Full set Core Client Indicator'!$A$3:$AB$3, 0))), \"\")","v":""},{"$f":"IF(Z253<>\"\", IF(INDEX('Full set Core Client Indicator'!$A$3:$AB$351, MATCH(Selection_Hide2!$A253, 'Full set Core Client Indicator'!$A$3:$A$351, 0), MATCH(Selection_Hide2!AA$5, 'Full set Core Client Indicator'!$A$3:$AB$3, 0))=\"\", \"\",  INDEX('Full set Core Client Indicator'!$A$3:$AB$351, MATCH(Selection_Hide2!$A253, 'Full set Core Client Indicator'!$A$3:$A$351, 0), MATCH(Selection_Hide2!AA$5, 'Full set Core Client Indicator'!$A$3:$AB$3, 0))), \"\")","v":""},{"$f":"IF(AA253<>\"\", IF(INDEX('Full set Core Client Indicator'!$A$3:$AB$351, MATCH(Selection_Hide2!$A253, 'Full set Core Client Indicator'!$A$3:$A$351, 0), MATCH(Selection_Hide2!AB$5, 'Full set Core Client Indicator'!$A$3:$AB$3, 0))=\"\", \"\",  INDEX('Full set Core Client Indicator'!$A$3:$AB$351, MATCH(Selection_Hide2!$A253, 'Full set Core Client Indicator'!$A$3:$A$351, 0), MATCH(Selection_Hide2!AB$5, 'Full set Core Client Indicator'!$A$3:$AB$3, 0))), \"\")","v":""}]
[{"$f":"IF(AND(Selection_Hide1!C252<>0, Selection_Hide1!C252<>\"Grand Total\"), Selection_Hide1!C252, \"\")","v":""},{"$f":"IF(A254<>\"\", IF(INDEX('Full set Core Client Indicator'!$A$3:$AB$351, MATCH(Selection_Hide2!$A254, 'Full set Core Client Indicator'!$A$3:$A$351, 0), MATCH(Selection_Hide2!B$5, 'Full set Core Client Indicator'!$A$3:$AB$3, 0))=\"\", \"\",  INDEX('Full set Core Client Indicator'!$A$3:$AB$351, MATCH(Selection_Hide2!$A254, 'Full set Core Client Indicator'!$A$3:$A$351, 0), MATCH(Selection_Hide2!B$5, 'Full set Core Client Indicator'!$A$3:$AB$3, 0))), \"\")","v":""},{"$f":"IF(B254<>\"\", IF(INDEX('Full set Core Client Indicator'!$A$3:$AB$351, MATCH(Selection_Hide2!$A254, 'Full set Core Client Indicator'!$A$3:$A$351, 0), MATCH(Selection_Hide2!C$5, 'Full set Core Client Indicator'!$A$3:$AB$3, 0))=\"\", \"\",  INDEX('Full set Core Client Indicator'!$A$3:$AB$351, MATCH(Selection_Hide2!$A254, 'Full set Core Client Indicator'!$A$3:$A$351, 0), MATCH(Selection_Hide2!C$5, 'Full set Core Client Indicator'!$A$3:$AB$3, 0))), \"\")","v":""},{"$f":"IF(C254<>\"\", IF(INDEX('Full set Core Client Indicator'!$A$3:$AB$351, MATCH(Selection_Hide2!$A254, 'Full set Core Client Indicator'!$A$3:$A$351, 0), MATCH(Selection_Hide2!D$5, 'Full set Core Client Indicator'!$A$3:$AB$3, 0))=\"\", \"\",  INDEX('Full set Core Client Indicator'!$A$3:$AB$351, MATCH(Selection_Hide2!$A254, 'Full set Core Client Indicator'!$A$3:$A$351, 0), MATCH(Selection_Hide2!D$5, 'Full set Core Client Indicator'!$A$3:$AB$3, 0))), \"\")","v":""},{"$f":"IF(D254<>\"\", IF(INDEX('Full set Core Client Indicator'!$A$3:$AB$351, MATCH(Selection_Hide2!$A254, 'Full set Core Client Indicator'!$A$3:$A$351, 0), MATCH(Selection_Hide2!E$5, 'Full set Core Client Indicator'!$A$3:$AB$3, 0))=\"\", \"\",  INDEX('Full set Core Client Indicator'!$A$3:$AB$351, MATCH(Selection_Hide2!$A254, 'Full set Core Client Indicator'!$A$3:$A$351, 0), MATCH(Selection_Hide2!E$5, 'Full set Core Client Indicator'!$A$3:$AB$3, 0))), \"\")","v":""},{"$f":"IF(E254<>\"\", IF(INDEX('Full set Core Client Indicator'!$A$3:$AB$351, MATCH(Selection_Hide2!$A254, 'Full set Core Client Indicator'!$A$3:$A$351, 0), MATCH(Selection_Hide2!F$5, 'Full set Core Client Indicator'!$A$3:$AB$3, 0))=\"\", \"\",  INDEX('Full set Core Client Indicator'!$A$3:$AB$351, MATCH(Selection_Hide2!$A254, 'Full set Core Client Indicator'!$A$3:$A$351, 0), MATCH(Selection_Hide2!F$5, 'Full set Core Client Indicator'!$A$3:$AB$3, 0))), \"\")","v":""},{"$f":"IF(F254<>\"\", IF(INDEX('Full set Core Client Indicator'!$A$3:$AB$351, MATCH(Selection_Hide2!$A254, 'Full set Core Client Indicator'!$A$3:$A$351, 0), MATCH(Selection_Hide2!G$5, 'Full set Core Client Indicator'!$A$3:$AB$3, 0))=\"\", \"\",  INDEX('Full set Core Client Indicator'!$A$3:$AB$351, MATCH(Selection_Hide2!$A254, 'Full set Core Client Indicator'!$A$3:$A$351, 0), MATCH(Selection_Hide2!G$5, 'Full set Core Client Indicator'!$A$3:$AB$3, 0))), \"\")","v":""},{"$f":"IF(G254<>\"\", IF(INDEX('Full set Core Client Indicator'!$A$3:$AB$351, MATCH(Selection_Hide2!$A254, 'Full set Core Client Indicator'!$A$3:$A$351, 0), MATCH(Selection_Hide2!H$5, 'Full set Core Client Indicator'!$A$3:$AB$3, 0))=\"\", \"\",  INDEX('Full set Core Client Indicator'!$A$3:$AB$351, MATCH(Selection_Hide2!$A254, 'Full set Core Client Indicator'!$A$3:$A$351, 0), MATCH(Selection_Hide2!H$5, 'Full set Core Client Indicator'!$A$3:$AB$3, 0))), \"\")","v":""},{"$f":"IF(H254<>\"\", IF(INDEX('Full set Core Client Indicator'!$A$3:$AB$351, MATCH(Selection_Hide2!$A254, 'Full set Core Client Indicator'!$A$3:$A$351, 0), MATCH(Selection_Hide2!I$5, 'Full set Core Client Indicator'!$A$3:$AB$3, 0))=\"\", \"\",  INDEX('Full set Core Client Indicator'!$A$3:$AB$351, MATCH(Selection_Hide2!$A254, 'Full set Core Client Indicator'!$A$3:$A$351, 0), MATCH(Selection_Hide2!I$5, 'Full set Core Client Indicator'!$A$3:$AB$3, 0))), \"\")","v":""},{"$f":"IF(I254<>\"\", IF(INDEX('Full set Core Client Indicator'!$A$3:$AB$351, MATCH(Selection_Hide2!$A254, 'Full set Core Client Indicator'!$A$3:$A$351, 0), MATCH(Selection_Hide2!J$5, 'Full set Core Client Indicator'!$A$3:$AB$3, 0))=\"\", \"\",  INDEX('Full set Core Client Indicator'!$A$3:$AB$351, MATCH(Selection_Hide2!$A254, 'Full set Core Client Indicator'!$A$3:$A$351, 0), MATCH(Selection_Hide2!J$5, 'Full set Core Client Indicator'!$A$3:$AB$3, 0))), \"\")","v":""},{"$f":"IF(J254<>\"\", IF(INDEX('Full set Core Client Indicator'!$A$3:$AB$351, MATCH(Selection_Hide2!$A254, 'Full set Core Client Indicator'!$A$3:$A$351, 0), MATCH(Selection_Hide2!K$5, 'Full set Core Client Indicator'!$A$3:$AB$3, 0))=\"\", \"\",  INDEX('Full set Core Client Indicator'!$A$3:$AB$351, MATCH(Selection_Hide2!$A254, 'Full set Core Client Indicator'!$A$3:$A$351, 0), MATCH(Selection_Hide2!K$5, 'Full set Core Client Indicator'!$A$3:$AB$3, 0))), \"\")","v":""},{"$f":"IF(K254<>\"\", IF(INDEX('Full set Core Client Indicator'!$A$3:$AB$351, MATCH(Selection_Hide2!$A254, 'Full set Core Client Indicator'!$A$3:$A$351, 0), MATCH(Selection_Hide2!L$5, 'Full set Core Client Indicator'!$A$3:$AB$3, 0))=\"\", \"\",  INDEX('Full set Core Client Indicator'!$A$3:$AB$351, MATCH(Selection_Hide2!$A254, 'Full set Core Client Indicator'!$A$3:$A$351, 0), MATCH(Selection_Hide2!L$5, 'Full set Core Client Indicator'!$A$3:$AB$3, 0))), \"\")","v":""},{"$f":"IF(L254<>\"\", IF(INDEX('Full set Core Client Indicator'!$A$3:$AB$351, MATCH(Selection_Hide2!$A254, 'Full set Core Client Indicator'!$A$3:$A$351, 0), MATCH(Selection_Hide2!M$5, 'Full set Core Client Indicator'!$A$3:$AB$3, 0))=\"\", \"\",  INDEX('Full set Core Client Indicator'!$A$3:$AB$351, MATCH(Selection_Hide2!$A254, 'Full set Core Client Indicator'!$A$3:$A$351, 0), MATCH(Selection_Hide2!M$5, 'Full set Core Client Indicator'!$A$3:$AB$3, 0))), \"\")","v":""},{"$f":"IF(M254<>\"\", IF(INDEX('Full set Core Client Indicator'!$A$3:$AB$351, MATCH(Selection_Hide2!$A254, 'Full set Core Client Indicator'!$A$3:$A$351, 0), MATCH(Selection_Hide2!N$5, 'Full set Core Client Indicator'!$A$3:$AB$3, 0))=\"\", \"\",  INDEX('Full set Core Client Indicator'!$A$3:$AB$351, MATCH(Selection_Hide2!$A254, 'Full set Core Client Indicator'!$A$3:$A$351, 0), MATCH(Selection_Hide2!N$5, 'Full set Core Client Indicator'!$A$3:$AB$3, 0))), \"\")","v":""},{"$f":"IF(N254<>\"\", IF(INDEX('Full set Core Client Indicator'!$A$3:$AB$351, MATCH(Selection_Hide2!$A254, 'Full set Core Client Indicator'!$A$3:$A$351, 0), MATCH(Selection_Hide2!O$5, 'Full set Core Client Indicator'!$A$3:$AB$3, 0))=\"\", \"\",  INDEX('Full set Core Client Indicator'!$A$3:$AB$351, MATCH(Selection_Hide2!$A254, 'Full set Core Client Indicator'!$A$3:$A$351, 0), MATCH(Selection_Hide2!O$5, 'Full set Core Client Indicator'!$A$3:$AB$3, 0))), \"\")","v":""},{"$f":"IF(O254<>\"\", IF(INDEX('Full set Core Client Indicator'!$A$3:$AB$351, MATCH(Selection_Hide2!$A254, 'Full set Core Client Indicator'!$A$3:$A$351, 0), MATCH(Selection_Hide2!P$5, 'Full set Core Client Indicator'!$A$3:$AB$3, 0))=\"\", \"\",  INDEX('Full set Core Client Indicator'!$A$3:$AB$351, MATCH(Selection_Hide2!$A254, 'Full set Core Client Indicator'!$A$3:$A$351, 0), MATCH(Selection_Hide2!P$5, 'Full set Core Client Indicator'!$A$3:$AB$3, 0))), \"\")","v":""},{"$f":"IF(P254<>\"\", IF(INDEX('Full set Core Client Indicator'!$A$3:$AB$351, MATCH(Selection_Hide2!$A254, 'Full set Core Client Indicator'!$A$3:$A$351, 0), MATCH(Selection_Hide2!Q$5, 'Full set Core Client Indicator'!$A$3:$AB$3, 0))=\"\", \"\",  INDEX('Full set Core Client Indicator'!$A$3:$AB$351, MATCH(Selection_Hide2!$A254, 'Full set Core Client Indicator'!$A$3:$A$351, 0), MATCH(Selection_Hide2!Q$5, 'Full set Core Client Indicator'!$A$3:$AB$3, 0))), \"\")","v":""},{"$f":"IF(Q254<>\"\", IF(INDEX('Full set Core Client Indicator'!$A$3:$AB$351, MATCH(Selection_Hide2!$A254, 'Full set Core Client Indicator'!$A$3:$A$351, 0), MATCH(Selection_Hide2!R$5, 'Full set Core Client Indicator'!$A$3:$AB$3, 0))=\"\", \"\",  INDEX('Full set Core Client Indicator'!$A$3:$AB$351, MATCH(Selection_Hide2!$A254, 'Full set Core Client Indicator'!$A$3:$A$351, 0), MATCH(Selection_Hide2!R$5, 'Full set Core Client Indicator'!$A$3:$AB$3, 0))), \"\")","v":""},{"$f":"IF(R254<>\"\", IF(INDEX('Full set Core Client Indicator'!$A$3:$AB$351, MATCH(Selection_Hide2!$A254, 'Full set Core Client Indicator'!$A$3:$A$351, 0), MATCH(Selection_Hide2!S$5, 'Full set Core Client Indicator'!$A$3:$AB$3, 0))=\"\", \"\",  INDEX('Full set Core Client Indicator'!$A$3:$AB$351, MATCH(Selection_Hide2!$A254, 'Full set Core Client Indicator'!$A$3:$A$351, 0), MATCH(Selection_Hide2!S$5, 'Full set Core Client Indicator'!$A$3:$AB$3, 0))), \"\")","v":""},{"$f":"IF(S254<>\"\", IF(INDEX('Full set Core Client Indicator'!$A$3:$AB$351, MATCH(Selection_Hide2!$A254, 'Full set Core Client Indicator'!$A$3:$A$351, 0), MATCH(Selection_Hide2!T$5, 'Full set Core Client Indicator'!$A$3:$AB$3, 0))=\"\", \"\",  INDEX('Full set Core Client Indicator'!$A$3:$AB$351, MATCH(Selection_Hide2!$A254, 'Full set Core Client Indicator'!$A$3:$A$351, 0), MATCH(Selection_Hide2!T$5, 'Full set Core Client Indicator'!$A$3:$AB$3, 0))), \"\")","v":""},{"$f":"IF(T254<>\"\", IF(INDEX('Full set Core Client Indicator'!$A$3:$AB$351, MATCH(Selection_Hide2!$A254, 'Full set Core Client Indicator'!$A$3:$A$351, 0), MATCH(Selection_Hide2!U$5, 'Full set Core Client Indicator'!$A$3:$AB$3, 0))=\"\", \"\",  INDEX('Full set Core Client Indicator'!$A$3:$AB$351, MATCH(Selection_Hide2!$A254, 'Full set Core Client Indicator'!$A$3:$A$351, 0), MATCH(Selection_Hide2!U$5, 'Full set Core Client Indicator'!$A$3:$AB$3, 0))), \"\")","v":""},{"$f":"IF(U254<>\"\", IF(INDEX('Full set Core Client Indicator'!$A$3:$AB$351, MATCH(Selection_Hide2!$A254, 'Full set Core Client Indicator'!$A$3:$A$351, 0), MATCH(Selection_Hide2!V$5, 'Full set Core Client Indicator'!$A$3:$AB$3, 0))=\"\", \"\",  INDEX('Full set Core Client Indicator'!$A$3:$AB$351, MATCH(Selection_Hide2!$A254, 'Full set Core Client Indicator'!$A$3:$A$351, 0), MATCH(Selection_Hide2!V$5, 'Full set Core Client Indicator'!$A$3:$AB$3, 0))), \"\")","v":""},{"$f":"IF(V254<>\"\", IF(INDEX('Full set Core Client Indicator'!$A$3:$AB$351, MATCH(Selection_Hide2!$A254, 'Full set Core Client Indicator'!$A$3:$A$351, 0), MATCH(Selection_Hide2!W$5, 'Full set Core Client Indicator'!$A$3:$AB$3, 0))=\"\", \"\",  INDEX('Full set Core Client Indicator'!$A$3:$AB$351, MATCH(Selection_Hide2!$A254, 'Full set Core Client Indicator'!$A$3:$A$351, 0), MATCH(Selection_Hide2!W$5, 'Full set Core Client Indicator'!$A$3:$AB$3, 0))), \"\")","v":""},{"$f":"IF(W254<>\"\", IF(INDEX('Full set Core Client Indicator'!$A$3:$AB$351, MATCH(Selection_Hide2!$A254, 'Full set Core Client Indicator'!$A$3:$A$351, 0), MATCH(Selection_Hide2!X$5, 'Full set Core Client Indicator'!$A$3:$AB$3, 0))=\"\", \"\",  INDEX('Full set Core Client Indicator'!$A$3:$AB$351, MATCH(Selection_Hide2!$A254, 'Full set Core Client Indicator'!$A$3:$A$351, 0), MATCH(Selection_Hide2!X$5, 'Full set Core Client Indicator'!$A$3:$AB$3, 0))), \"\")","v":""},{"$f":"IF(X254<>\"\", IF(INDEX('Full set Core Client Indicator'!$A$3:$AB$351, MATCH(Selection_Hide2!$A254, 'Full set Core Client Indicator'!$A$3:$A$351, 0), MATCH(Selection_Hide2!Y$5, 'Full set Core Client Indicator'!$A$3:$AB$3, 0))=\"\", \"\",  INDEX('Full set Core Client Indicator'!$A$3:$AB$351, MATCH(Selection_Hide2!$A254, 'Full set Core Client Indicator'!$A$3:$A$351, 0), MATCH(Selection_Hide2!Y$5, 'Full set Core Client Indicator'!$A$3:$AB$3, 0))), \"\")","v":""},{"$f":"IF(Y254<>\"\", IF(INDEX('Full set Core Client Indicator'!$A$3:$AB$351, MATCH(Selection_Hide2!$A254, 'Full set Core Client Indicator'!$A$3:$A$351, 0), MATCH(Selection_Hide2!Z$5, 'Full set Core Client Indicator'!$A$3:$AB$3, 0))=\"\", \"\",  INDEX('Full set Core Client Indicator'!$A$3:$AB$351, MATCH(Selection_Hide2!$A254, 'Full set Core Client Indicator'!$A$3:$A$351, 0), MATCH(Selection_Hide2!Z$5, 'Full set Core Client Indicator'!$A$3:$AB$3, 0))), \"\")","v":""},{"$f":"IF(Z254<>\"\", IF(INDEX('Full set Core Client Indicator'!$A$3:$AB$351, MATCH(Selection_Hide2!$A254, 'Full set Core Client Indicator'!$A$3:$A$351, 0), MATCH(Selection_Hide2!AA$5, 'Full set Core Client Indicator'!$A$3:$AB$3, 0))=\"\", \"\",  INDEX('Full set Core Client Indicator'!$A$3:$AB$351, MATCH(Selection_Hide2!$A254, 'Full set Core Client Indicator'!$A$3:$A$351, 0), MATCH(Selection_Hide2!AA$5, 'Full set Core Client Indicator'!$A$3:$AB$3, 0))), \"\")","v":""},{"$f":"IF(AA254<>\"\", IF(INDEX('Full set Core Client Indicator'!$A$3:$AB$351, MATCH(Selection_Hide2!$A254, 'Full set Core Client Indicator'!$A$3:$A$351, 0), MATCH(Selection_Hide2!AB$5, 'Full set Core Client Indicator'!$A$3:$AB$3, 0))=\"\", \"\",  INDEX('Full set Core Client Indicator'!$A$3:$AB$351, MATCH(Selection_Hide2!$A254, 'Full set Core Client Indicator'!$A$3:$A$351, 0), MATCH(Selection_Hide2!AB$5, 'Full set Core Client Indicator'!$A$3:$AB$3, 0))), \"\")","v":""}]
[{"$f":"IF(AND(Selection_Hide1!C253<>0, Selection_Hide1!C253<>\"Grand Total\"), Selection_Hide1!C253, \"\")","v":""},{"$f":"IF(A255<>\"\", IF(INDEX('Full set Core Client Indicator'!$A$3:$AB$351, MATCH(Selection_Hide2!$A255, 'Full set Core Client Indicator'!$A$3:$A$351, 0), MATCH(Selection_Hide2!B$5, 'Full set Core Client Indicator'!$A$3:$AB$3, 0))=\"\", \"\",  INDEX('Full set Core Client Indicator'!$A$3:$AB$351, MATCH(Selection_Hide2!$A255, 'Full set Core Client Indicator'!$A$3:$A$351, 0), MATCH(Selection_Hide2!B$5, 'Full set Core Client Indicator'!$A$3:$AB$3, 0))), \"\")","v":""},{"$f":"IF(B255<>\"\", IF(INDEX('Full set Core Client Indicator'!$A$3:$AB$351, MATCH(Selection_Hide2!$A255, 'Full set Core Client Indicator'!$A$3:$A$351, 0), MATCH(Selection_Hide2!C$5, 'Full set Core Client Indicator'!$A$3:$AB$3, 0))=\"\", \"\",  INDEX('Full set Core Client Indicator'!$A$3:$AB$351, MATCH(Selection_Hide2!$A255, 'Full set Core Client Indicator'!$A$3:$A$351, 0), MATCH(Selection_Hide2!C$5, 'Full set Core Client Indicator'!$A$3:$AB$3, 0))), \"\")","v":""},{"$f":"IF(C255<>\"\", IF(INDEX('Full set Core Client Indicator'!$A$3:$AB$351, MATCH(Selection_Hide2!$A255, 'Full set Core Client Indicator'!$A$3:$A$351, 0), MATCH(Selection_Hide2!D$5, 'Full set Core Client Indicator'!$A$3:$AB$3, 0))=\"\", \"\",  INDEX('Full set Core Client Indicator'!$A$3:$AB$351, MATCH(Selection_Hide2!$A255, 'Full set Core Client Indicator'!$A$3:$A$351, 0), MATCH(Selection_Hide2!D$5, 'Full set Core Client Indicator'!$A$3:$AB$3, 0))), \"\")","v":""},{"$f":"IF(D255<>\"\", IF(INDEX('Full set Core Client Indicator'!$A$3:$AB$351, MATCH(Selection_Hide2!$A255, 'Full set Core Client Indicator'!$A$3:$A$351, 0), MATCH(Selection_Hide2!E$5, 'Full set Core Client Indicator'!$A$3:$AB$3, 0))=\"\", \"\",  INDEX('Full set Core Client Indicator'!$A$3:$AB$351, MATCH(Selection_Hide2!$A255, 'Full set Core Client Indicator'!$A$3:$A$351, 0), MATCH(Selection_Hide2!E$5, 'Full set Core Client Indicator'!$A$3:$AB$3, 0))), \"\")","v":""},{"$f":"IF(E255<>\"\", IF(INDEX('Full set Core Client Indicator'!$A$3:$AB$351, MATCH(Selection_Hide2!$A255, 'Full set Core Client Indicator'!$A$3:$A$351, 0), MATCH(Selection_Hide2!F$5, 'Full set Core Client Indicator'!$A$3:$AB$3, 0))=\"\", \"\",  INDEX('Full set Core Client Indicator'!$A$3:$AB$351, MATCH(Selection_Hide2!$A255, 'Full set Core Client Indicator'!$A$3:$A$351, 0), MATCH(Selection_Hide2!F$5, 'Full set Core Client Indicator'!$A$3:$AB$3, 0))), \"\")","v":""},{"$f":"IF(F255<>\"\", IF(INDEX('Full set Core Client Indicator'!$A$3:$AB$351, MATCH(Selection_Hide2!$A255, 'Full set Core Client Indicator'!$A$3:$A$351, 0), MATCH(Selection_Hide2!G$5, 'Full set Core Client Indicator'!$A$3:$AB$3, 0))=\"\", \"\",  INDEX('Full set Core Client Indicator'!$A$3:$AB$351, MATCH(Selection_Hide2!$A255, 'Full set Core Client Indicator'!$A$3:$A$351, 0), MATCH(Selection_Hide2!G$5, 'Full set Core Client Indicator'!$A$3:$AB$3, 0))), \"\")","v":""},{"$f":"IF(G255<>\"\", IF(INDEX('Full set Core Client Indicator'!$A$3:$AB$351, MATCH(Selection_Hide2!$A255, 'Full set Core Client Indicator'!$A$3:$A$351, 0), MATCH(Selection_Hide2!H$5, 'Full set Core Client Indicator'!$A$3:$AB$3, 0))=\"\", \"\",  INDEX('Full set Core Client Indicator'!$A$3:$AB$351, MATCH(Selection_Hide2!$A255, 'Full set Core Client Indicator'!$A$3:$A$351, 0), MATCH(Selection_Hide2!H$5, 'Full set Core Client Indicator'!$A$3:$AB$3, 0))), \"\")","v":""},{"$f":"IF(H255<>\"\", IF(INDEX('Full set Core Client Indicator'!$A$3:$AB$351, MATCH(Selection_Hide2!$A255, 'Full set Core Client Indicator'!$A$3:$A$351, 0), MATCH(Selection_Hide2!I$5, 'Full set Core Client Indicator'!$A$3:$AB$3, 0))=\"\", \"\",  INDEX('Full set Core Client Indicator'!$A$3:$AB$351, MATCH(Selection_Hide2!$A255, 'Full set Core Client Indicator'!$A$3:$A$351, 0), MATCH(Selection_Hide2!I$5, 'Full set Core Client Indicator'!$A$3:$AB$3, 0))), \"\")","v":""},{"$f":"IF(I255<>\"\", IF(INDEX('Full set Core Client Indicator'!$A$3:$AB$351, MATCH(Selection_Hide2!$A255, 'Full set Core Client Indicator'!$A$3:$A$351, 0), MATCH(Selection_Hide2!J$5, 'Full set Core Client Indicator'!$A$3:$AB$3, 0))=\"\", \"\",  INDEX('Full set Core Client Indicator'!$A$3:$AB$351, MATCH(Selection_Hide2!$A255, 'Full set Core Client Indicator'!$A$3:$A$351, 0), MATCH(Selection_Hide2!J$5, 'Full set Core Client Indicator'!$A$3:$AB$3, 0))), \"\")","v":""},{"$f":"IF(J255<>\"\", IF(INDEX('Full set Core Client Indicator'!$A$3:$AB$351, MATCH(Selection_Hide2!$A255, 'Full set Core Client Indicator'!$A$3:$A$351, 0), MATCH(Selection_Hide2!K$5, 'Full set Core Client Indicator'!$A$3:$AB$3, 0))=\"\", \"\",  INDEX('Full set Core Client Indicator'!$A$3:$AB$351, MATCH(Selection_Hide2!$A255, 'Full set Core Client Indicator'!$A$3:$A$351, 0), MATCH(Selection_Hide2!K$5, 'Full set Core Client Indicator'!$A$3:$AB$3, 0))), \"\")","v":""},{"$f":"IF(K255<>\"\", IF(INDEX('Full set Core Client Indicator'!$A$3:$AB$351, MATCH(Selection_Hide2!$A255, 'Full set Core Client Indicator'!$A$3:$A$351, 0), MATCH(Selection_Hide2!L$5, 'Full set Core Client Indicator'!$A$3:$AB$3, 0))=\"\", \"\",  INDEX('Full set Core Client Indicator'!$A$3:$AB$351, MATCH(Selection_Hide2!$A255, 'Full set Core Client Indicator'!$A$3:$A$351, 0), MATCH(Selection_Hide2!L$5, 'Full set Core Client Indicator'!$A$3:$AB$3, 0))), \"\")","v":""},{"$f":"IF(L255<>\"\", IF(INDEX('Full set Core Client Indicator'!$A$3:$AB$351, MATCH(Selection_Hide2!$A255, 'Full set Core Client Indicator'!$A$3:$A$351, 0), MATCH(Selection_Hide2!M$5, 'Full set Core Client Indicator'!$A$3:$AB$3, 0))=\"\", \"\",  INDEX('Full set Core Client Indicator'!$A$3:$AB$351, MATCH(Selection_Hide2!$A255, 'Full set Core Client Indicator'!$A$3:$A$351, 0), MATCH(Selection_Hide2!M$5, 'Full set Core Client Indicator'!$A$3:$AB$3, 0))), \"\")","v":""},{"$f":"IF(M255<>\"\", IF(INDEX('Full set Core Client Indicator'!$A$3:$AB$351, MATCH(Selection_Hide2!$A255, 'Full set Core Client Indicator'!$A$3:$A$351, 0), MATCH(Selection_Hide2!N$5, 'Full set Core Client Indicator'!$A$3:$AB$3, 0))=\"\", \"\",  INDEX('Full set Core Client Indicator'!$A$3:$AB$351, MATCH(Selection_Hide2!$A255, 'Full set Core Client Indicator'!$A$3:$A$351, 0), MATCH(Selection_Hide2!N$5, 'Full set Core Client Indicator'!$A$3:$AB$3, 0))), \"\")","v":""},{"$f":"IF(N255<>\"\", IF(INDEX('Full set Core Client Indicator'!$A$3:$AB$351, MATCH(Selection_Hide2!$A255, 'Full set Core Client Indicator'!$A$3:$A$351, 0), MATCH(Selection_Hide2!O$5, 'Full set Core Client Indicator'!$A$3:$AB$3, 0))=\"\", \"\",  INDEX('Full set Core Client Indicator'!$A$3:$AB$351, MATCH(Selection_Hide2!$A255, 'Full set Core Client Indicator'!$A$3:$A$351, 0), MATCH(Selection_Hide2!O$5, 'Full set Core Client Indicator'!$A$3:$AB$3, 0))), \"\")","v":""},{"$f":"IF(O255<>\"\", IF(INDEX('Full set Core Client Indicator'!$A$3:$AB$351, MATCH(Selection_Hide2!$A255, 'Full set Core Client Indicator'!$A$3:$A$351, 0), MATCH(Selection_Hide2!P$5, 'Full set Core Client Indicator'!$A$3:$AB$3, 0))=\"\", \"\",  INDEX('Full set Core Client Indicator'!$A$3:$AB$351, MATCH(Selection_Hide2!$A255, 'Full set Core Client Indicator'!$A$3:$A$351, 0), MATCH(Selection_Hide2!P$5, 'Full set Core Client Indicator'!$A$3:$AB$3, 0))), \"\")","v":""},{"$f":"IF(P255<>\"\", IF(INDEX('Full set Core Client Indicator'!$A$3:$AB$351, MATCH(Selection_Hide2!$A255, 'Full set Core Client Indicator'!$A$3:$A$351, 0), MATCH(Selection_Hide2!Q$5, 'Full set Core Client Indicator'!$A$3:$AB$3, 0))=\"\", \"\",  INDEX('Full set Core Client Indicator'!$A$3:$AB$351, MATCH(Selection_Hide2!$A255, 'Full set Core Client Indicator'!$A$3:$A$351, 0), MATCH(Selection_Hide2!Q$5, 'Full set Core Client Indicator'!$A$3:$AB$3, 0))), \"\")","v":""},{"$f":"IF(Q255<>\"\", IF(INDEX('Full set Core Client Indicator'!$A$3:$AB$351, MATCH(Selection_Hide2!$A255, 'Full set Core Client Indicator'!$A$3:$A$351, 0), MATCH(Selection_Hide2!R$5, 'Full set Core Client Indicator'!$A$3:$AB$3, 0))=\"\", \"\",  INDEX('Full set Core Client Indicator'!$A$3:$AB$351, MATCH(Selection_Hide2!$A255, 'Full set Core Client Indicator'!$A$3:$A$351, 0), MATCH(Selection_Hide2!R$5, 'Full set Core Client Indicator'!$A$3:$AB$3, 0))), \"\")","v":""},{"$f":"IF(R255<>\"\", IF(INDEX('Full set Core Client Indicator'!$A$3:$AB$351, MATCH(Selection_Hide2!$A255, 'Full set Core Client Indicator'!$A$3:$A$351, 0), MATCH(Selection_Hide2!S$5, 'Full set Core Client Indicator'!$A$3:$AB$3, 0))=\"\", \"\",  INDEX('Full set Core Client Indicator'!$A$3:$AB$351, MATCH(Selection_Hide2!$A255, 'Full set Core Client Indicator'!$A$3:$A$351, 0), MATCH(Selection_Hide2!S$5, 'Full set Core Client Indicator'!$A$3:$AB$3, 0))), \"\")","v":""},{"$f":"IF(S255<>\"\", IF(INDEX('Full set Core Client Indicator'!$A$3:$AB$351, MATCH(Selection_Hide2!$A255, 'Full set Core Client Indicator'!$A$3:$A$351, 0), MATCH(Selection_Hide2!T$5, 'Full set Core Client Indicator'!$A$3:$AB$3, 0))=\"\", \"\",  INDEX('Full set Core Client Indicator'!$A$3:$AB$351, MATCH(Selection_Hide2!$A255, 'Full set Core Client Indicator'!$A$3:$A$351, 0), MATCH(Selection_Hide2!T$5, 'Full set Core Client Indicator'!$A$3:$AB$3, 0))), \"\")","v":""},{"$f":"IF(T255<>\"\", IF(INDEX('Full set Core Client Indicator'!$A$3:$AB$351, MATCH(Selection_Hide2!$A255, 'Full set Core Client Indicator'!$A$3:$A$351, 0), MATCH(Selection_Hide2!U$5, 'Full set Core Client Indicator'!$A$3:$AB$3, 0))=\"\", \"\",  INDEX('Full set Core Client Indicator'!$A$3:$AB$351, MATCH(Selection_Hide2!$A255, 'Full set Core Client Indicator'!$A$3:$A$351, 0), MATCH(Selection_Hide2!U$5, 'Full set Core Client Indicator'!$A$3:$AB$3, 0))), \"\")","v":""},{"$f":"IF(U255<>\"\", IF(INDEX('Full set Core Client Indicator'!$A$3:$AB$351, MATCH(Selection_Hide2!$A255, 'Full set Core Client Indicator'!$A$3:$A$351, 0), MATCH(Selection_Hide2!V$5, 'Full set Core Client Indicator'!$A$3:$AB$3, 0))=\"\", \"\",  INDEX('Full set Core Client Indicator'!$A$3:$AB$351, MATCH(Selection_Hide2!$A255, 'Full set Core Client Indicator'!$A$3:$A$351, 0), MATCH(Selection_Hide2!V$5, 'Full set Core Client Indicator'!$A$3:$AB$3, 0))), \"\")","v":""},{"$f":"IF(V255<>\"\", IF(INDEX('Full set Core Client Indicator'!$A$3:$AB$351, MATCH(Selection_Hide2!$A255, 'Full set Core Client Indicator'!$A$3:$A$351, 0), MATCH(Selection_Hide2!W$5, 'Full set Core Client Indicator'!$A$3:$AB$3, 0))=\"\", \"\",  INDEX('Full set Core Client Indicator'!$A$3:$AB$351, MATCH(Selection_Hide2!$A255, 'Full set Core Client Indicator'!$A$3:$A$351, 0), MATCH(Selection_Hide2!W$5, 'Full set Core Client Indicator'!$A$3:$AB$3, 0))), \"\")","v":""},{"$f":"IF(W255<>\"\", IF(INDEX('Full set Core Client Indicator'!$A$3:$AB$351, MATCH(Selection_Hide2!$A255, 'Full set Core Client Indicator'!$A$3:$A$351, 0), MATCH(Selection_Hide2!X$5, 'Full set Core Client Indicator'!$A$3:$AB$3, 0))=\"\", \"\",  INDEX('Full set Core Client Indicator'!$A$3:$AB$351, MATCH(Selection_Hide2!$A255, 'Full set Core Client Indicator'!$A$3:$A$351, 0), MATCH(Selection_Hide2!X$5, 'Full set Core Client Indicator'!$A$3:$AB$3, 0))), \"\")","v":""},{"$f":"IF(X255<>\"\", IF(INDEX('Full set Core Client Indicator'!$A$3:$AB$351, MATCH(Selection_Hide2!$A255, 'Full set Core Client Indicator'!$A$3:$A$351, 0), MATCH(Selection_Hide2!Y$5, 'Full set Core Client Indicator'!$A$3:$AB$3, 0))=\"\", \"\",  INDEX('Full set Core Client Indicator'!$A$3:$AB$351, MATCH(Selection_Hide2!$A255, 'Full set Core Client Indicator'!$A$3:$A$351, 0), MATCH(Selection_Hide2!Y$5, 'Full set Core Client Indicator'!$A$3:$AB$3, 0))), \"\")","v":""},{"$f":"IF(Y255<>\"\", IF(INDEX('Full set Core Client Indicator'!$A$3:$AB$351, MATCH(Selection_Hide2!$A255, 'Full set Core Client Indicator'!$A$3:$A$351, 0), MATCH(Selection_Hide2!Z$5, 'Full set Core Client Indicator'!$A$3:$AB$3, 0))=\"\", \"\",  INDEX('Full set Core Client Indicator'!$A$3:$AB$351, MATCH(Selection_Hide2!$A255, 'Full set Core Client Indicator'!$A$3:$A$351, 0), MATCH(Selection_Hide2!Z$5, 'Full set Core Client Indicator'!$A$3:$AB$3, 0))), \"\")","v":""},{"$f":"IF(Z255<>\"\", IF(INDEX('Full set Core Client Indicator'!$A$3:$AB$351, MATCH(Selection_Hide2!$A255, 'Full set Core Client Indicator'!$A$3:$A$351, 0), MATCH(Selection_Hide2!AA$5, 'Full set Core Client Indicator'!$A$3:$AB$3, 0))=\"\", \"\",  INDEX('Full set Core Client Indicator'!$A$3:$AB$351, MATCH(Selection_Hide2!$A255, 'Full set Core Client Indicator'!$A$3:$A$351, 0), MATCH(Selection_Hide2!AA$5, 'Full set Core Client Indicator'!$A$3:$AB$3, 0))), \"\")","v":""},{"$f":"IF(AA255<>\"\", IF(INDEX('Full set Core Client Indicator'!$A$3:$AB$351, MATCH(Selection_Hide2!$A255, 'Full set Core Client Indicator'!$A$3:$A$351, 0), MATCH(Selection_Hide2!AB$5, 'Full set Core Client Indicator'!$A$3:$AB$3, 0))=\"\", \"\",  INDEX('Full set Core Client Indicator'!$A$3:$AB$351, MATCH(Selection_Hide2!$A255, 'Full set Core Client Indicator'!$A$3:$A$351, 0), MATCH(Selection_Hide2!AB$5, 'Full set Core Client Indicator'!$A$3:$AB$3, 0))), \"\")","v":""}]
[{"$f":"IF(AND(Selection_Hide1!C254<>0, Selection_Hide1!C254<>\"Grand Total\"), Selection_Hide1!C254, \"\")","v":""},{"$f":"IF(A256<>\"\", IF(INDEX('Full set Core Client Indicator'!$A$3:$AB$351, MATCH(Selection_Hide2!$A256, 'Full set Core Client Indicator'!$A$3:$A$351, 0), MATCH(Selection_Hide2!B$5, 'Full set Core Client Indicator'!$A$3:$AB$3, 0))=\"\", \"\",  INDEX('Full set Core Client Indicator'!$A$3:$AB$351, MATCH(Selection_Hide2!$A256, 'Full set Core Client Indicator'!$A$3:$A$351, 0), MATCH(Selection_Hide2!B$5, 'Full set Core Client Indicator'!$A$3:$AB$3, 0))), \"\")","v":""},{"$f":"IF(B256<>\"\", IF(INDEX('Full set Core Client Indicator'!$A$3:$AB$351, MATCH(Selection_Hide2!$A256, 'Full set Core Client Indicator'!$A$3:$A$351, 0), MATCH(Selection_Hide2!C$5, 'Full set Core Client Indicator'!$A$3:$AB$3, 0))=\"\", \"\",  INDEX('Full set Core Client Indicator'!$A$3:$AB$351, MATCH(Selection_Hide2!$A256, 'Full set Core Client Indicator'!$A$3:$A$351, 0), MATCH(Selection_Hide2!C$5, 'Full set Core Client Indicator'!$A$3:$AB$3, 0))), \"\")","v":""},{"$f":"IF(C256<>\"\", IF(INDEX('Full set Core Client Indicator'!$A$3:$AB$351, MATCH(Selection_Hide2!$A256, 'Full set Core Client Indicator'!$A$3:$A$351, 0), MATCH(Selection_Hide2!D$5, 'Full set Core Client Indicator'!$A$3:$AB$3, 0))=\"\", \"\",  INDEX('Full set Core Client Indicator'!$A$3:$AB$351, MATCH(Selection_Hide2!$A256, 'Full set Core Client Indicator'!$A$3:$A$351, 0), MATCH(Selection_Hide2!D$5, 'Full set Core Client Indicator'!$A$3:$AB$3, 0))), \"\")","v":""},{"$f":"IF(D256<>\"\", IF(INDEX('Full set Core Client Indicator'!$A$3:$AB$351, MATCH(Selection_Hide2!$A256, 'Full set Core Client Indicator'!$A$3:$A$351, 0), MATCH(Selection_Hide2!E$5, 'Full set Core Client Indicator'!$A$3:$AB$3, 0))=\"\", \"\",  INDEX('Full set Core Client Indicator'!$A$3:$AB$351, MATCH(Selection_Hide2!$A256, 'Full set Core Client Indicator'!$A$3:$A$351, 0), MATCH(Selection_Hide2!E$5, 'Full set Core Client Indicator'!$A$3:$AB$3, 0))), \"\")","v":""},{"$f":"IF(E256<>\"\", IF(INDEX('Full set Core Client Indicator'!$A$3:$AB$351, MATCH(Selection_Hide2!$A256, 'Full set Core Client Indicator'!$A$3:$A$351, 0), MATCH(Selection_Hide2!F$5, 'Full set Core Client Indicator'!$A$3:$AB$3, 0))=\"\", \"\",  INDEX('Full set Core Client Indicator'!$A$3:$AB$351, MATCH(Selection_Hide2!$A256, 'Full set Core Client Indicator'!$A$3:$A$351, 0), MATCH(Selection_Hide2!F$5, 'Full set Core Client Indicator'!$A$3:$AB$3, 0))), \"\")","v":""},{"$f":"IF(F256<>\"\", IF(INDEX('Full set Core Client Indicator'!$A$3:$AB$351, MATCH(Selection_Hide2!$A256, 'Full set Core Client Indicator'!$A$3:$A$351, 0), MATCH(Selection_Hide2!G$5, 'Full set Core Client Indicator'!$A$3:$AB$3, 0))=\"\", \"\",  INDEX('Full set Core Client Indicator'!$A$3:$AB$351, MATCH(Selection_Hide2!$A256, 'Full set Core Client Indicator'!$A$3:$A$351, 0), MATCH(Selection_Hide2!G$5, 'Full set Core Client Indicator'!$A$3:$AB$3, 0))), \"\")","v":""},{"$f":"IF(G256<>\"\", IF(INDEX('Full set Core Client Indicator'!$A$3:$AB$351, MATCH(Selection_Hide2!$A256, 'Full set Core Client Indicator'!$A$3:$A$351, 0), MATCH(Selection_Hide2!H$5, 'Full set Core Client Indicator'!$A$3:$AB$3, 0))=\"\", \"\",  INDEX('Full set Core Client Indicator'!$A$3:$AB$351, MATCH(Selection_Hide2!$A256, 'Full set Core Client Indicator'!$A$3:$A$351, 0), MATCH(Selection_Hide2!H$5, 'Full set Core Client Indicator'!$A$3:$AB$3, 0))), \"\")","v":""},{"$f":"IF(H256<>\"\", IF(INDEX('Full set Core Client Indicator'!$A$3:$AB$351, MATCH(Selection_Hide2!$A256, 'Full set Core Client Indicator'!$A$3:$A$351, 0), MATCH(Selection_Hide2!I$5, 'Full set Core Client Indicator'!$A$3:$AB$3, 0))=\"\", \"\",  INDEX('Full set Core Client Indicator'!$A$3:$AB$351, MATCH(Selection_Hide2!$A256, 'Full set Core Client Indicator'!$A$3:$A$351, 0), MATCH(Selection_Hide2!I$5, 'Full set Core Client Indicator'!$A$3:$AB$3, 0))), \"\")","v":""},{"$f":"IF(I256<>\"\", IF(INDEX('Full set Core Client Indicator'!$A$3:$AB$351, MATCH(Selection_Hide2!$A256, 'Full set Core Client Indicator'!$A$3:$A$351, 0), MATCH(Selection_Hide2!J$5, 'Full set Core Client Indicator'!$A$3:$AB$3, 0))=\"\", \"\",  INDEX('Full set Core Client Indicator'!$A$3:$AB$351, MATCH(Selection_Hide2!$A256, 'Full set Core Client Indicator'!$A$3:$A$351, 0), MATCH(Selection_Hide2!J$5, 'Full set Core Client Indicator'!$A$3:$AB$3, 0))), \"\")","v":""},{"$f":"IF(J256<>\"\", IF(INDEX('Full set Core Client Indicator'!$A$3:$AB$351, MATCH(Selection_Hide2!$A256, 'Full set Core Client Indicator'!$A$3:$A$351, 0), MATCH(Selection_Hide2!K$5, 'Full set Core Client Indicator'!$A$3:$AB$3, 0))=\"\", \"\",  INDEX('Full set Core Client Indicator'!$A$3:$AB$351, MATCH(Selection_Hide2!$A256, 'Full set Core Client Indicator'!$A$3:$A$351, 0), MATCH(Selection_Hide2!K$5, 'Full set Core Client Indicator'!$A$3:$AB$3, 0))), \"\")","v":""},{"$f":"IF(K256<>\"\", IF(INDEX('Full set Core Client Indicator'!$A$3:$AB$351, MATCH(Selection_Hide2!$A256, 'Full set Core Client Indicator'!$A$3:$A$351, 0), MATCH(Selection_Hide2!L$5, 'Full set Core Client Indicator'!$A$3:$AB$3, 0))=\"\", \"\",  INDEX('Full set Core Client Indicator'!$A$3:$AB$351, MATCH(Selection_Hide2!$A256, 'Full set Core Client Indicator'!$A$3:$A$351, 0), MATCH(Selection_Hide2!L$5, 'Full set Core Client Indicator'!$A$3:$AB$3, 0))), \"\")","v":""},{"$f":"IF(L256<>\"\", IF(INDEX('Full set Core Client Indicator'!$A$3:$AB$351, MATCH(Selection_Hide2!$A256, 'Full set Core Client Indicator'!$A$3:$A$351, 0), MATCH(Selection_Hide2!M$5, 'Full set Core Client Indicator'!$A$3:$AB$3, 0))=\"\", \"\",  INDEX('Full set Core Client Indicator'!$A$3:$AB$351, MATCH(Selection_Hide2!$A256, 'Full set Core Client Indicator'!$A$3:$A$351, 0), MATCH(Selection_Hide2!M$5, 'Full set Core Client Indicator'!$A$3:$AB$3, 0))), \"\")","v":""},{"$f":"IF(M256<>\"\", IF(INDEX('Full set Core Client Indicator'!$A$3:$AB$351, MATCH(Selection_Hide2!$A256, 'Full set Core Client Indicator'!$A$3:$A$351, 0), MATCH(Selection_Hide2!N$5, 'Full set Core Client Indicator'!$A$3:$AB$3, 0))=\"\", \"\",  INDEX('Full set Core Client Indicator'!$A$3:$AB$351, MATCH(Selection_Hide2!$A256, 'Full set Core Client Indicator'!$A$3:$A$351, 0), MATCH(Selection_Hide2!N$5, 'Full set Core Client Indicator'!$A$3:$AB$3, 0))), \"\")","v":""},{"$f":"IF(N256<>\"\", IF(INDEX('Full set Core Client Indicator'!$A$3:$AB$351, MATCH(Selection_Hide2!$A256, 'Full set Core Client Indicator'!$A$3:$A$351, 0), MATCH(Selection_Hide2!O$5, 'Full set Core Client Indicator'!$A$3:$AB$3, 0))=\"\", \"\",  INDEX('Full set Core Client Indicator'!$A$3:$AB$351, MATCH(Selection_Hide2!$A256, 'Full set Core Client Indicator'!$A$3:$A$351, 0), MATCH(Selection_Hide2!O$5, 'Full set Core Client Indicator'!$A$3:$AB$3, 0))), \"\")","v":""},{"$f":"IF(O256<>\"\", IF(INDEX('Full set Core Client Indicator'!$A$3:$AB$351, MATCH(Selection_Hide2!$A256, 'Full set Core Client Indicator'!$A$3:$A$351, 0), MATCH(Selection_Hide2!P$5, 'Full set Core Client Indicator'!$A$3:$AB$3, 0))=\"\", \"\",  INDEX('Full set Core Client Indicator'!$A$3:$AB$351, MATCH(Selection_Hide2!$A256, 'Full set Core Client Indicator'!$A$3:$A$351, 0), MATCH(Selection_Hide2!P$5, 'Full set Core Client Indicator'!$A$3:$AB$3, 0))), \"\")","v":""},{"$f":"IF(P256<>\"\", IF(INDEX('Full set Core Client Indicator'!$A$3:$AB$351, MATCH(Selection_Hide2!$A256, 'Full set Core Client Indicator'!$A$3:$A$351, 0), MATCH(Selection_Hide2!Q$5, 'Full set Core Client Indicator'!$A$3:$AB$3, 0))=\"\", \"\",  INDEX('Full set Core Client Indicator'!$A$3:$AB$351, MATCH(Selection_Hide2!$A256, 'Full set Core Client Indicator'!$A$3:$A$351, 0), MATCH(Selection_Hide2!Q$5, 'Full set Core Client Indicator'!$A$3:$AB$3, 0))), \"\")","v":""},{"$f":"IF(Q256<>\"\", IF(INDEX('Full set Core Client Indicator'!$A$3:$AB$351, MATCH(Selection_Hide2!$A256, 'Full set Core Client Indicator'!$A$3:$A$351, 0), MATCH(Selection_Hide2!R$5, 'Full set Core Client Indicator'!$A$3:$AB$3, 0))=\"\", \"\",  INDEX('Full set Core Client Indicator'!$A$3:$AB$351, MATCH(Selection_Hide2!$A256, 'Full set Core Client Indicator'!$A$3:$A$351, 0), MATCH(Selection_Hide2!R$5, 'Full set Core Client Indicator'!$A$3:$AB$3, 0))), \"\")","v":""},{"$f":"IF(R256<>\"\", IF(INDEX('Full set Core Client Indicator'!$A$3:$AB$351, MATCH(Selection_Hide2!$A256, 'Full set Core Client Indicator'!$A$3:$A$351, 0), MATCH(Selection_Hide2!S$5, 'Full set Core Client Indicator'!$A$3:$AB$3, 0))=\"\", \"\",  INDEX('Full set Core Client Indicator'!$A$3:$AB$351, MATCH(Selection_Hide2!$A256, 'Full set Core Client Indicator'!$A$3:$A$351, 0), MATCH(Selection_Hide2!S$5, 'Full set Core Client Indicator'!$A$3:$AB$3, 0))), \"\")","v":""},{"$f":"IF(S256<>\"\", IF(INDEX('Full set Core Client Indicator'!$A$3:$AB$351, MATCH(Selection_Hide2!$A256, 'Full set Core Client Indicator'!$A$3:$A$351, 0), MATCH(Selection_Hide2!T$5, 'Full set Core Client Indicator'!$A$3:$AB$3, 0))=\"\", \"\",  INDEX('Full set Core Client Indicator'!$A$3:$AB$351, MATCH(Selection_Hide2!$A256, 'Full set Core Client Indicator'!$A$3:$A$351, 0), MATCH(Selection_Hide2!T$5, 'Full set Core Client Indicator'!$A$3:$AB$3, 0))), \"\")","v":""},{"$f":"IF(T256<>\"\", IF(INDEX('Full set Core Client Indicator'!$A$3:$AB$351, MATCH(Selection_Hide2!$A256, 'Full set Core Client Indicator'!$A$3:$A$351, 0), MATCH(Selection_Hide2!U$5, 'Full set Core Client Indicator'!$A$3:$AB$3, 0))=\"\", \"\",  INDEX('Full set Core Client Indicator'!$A$3:$AB$351, MATCH(Selection_Hide2!$A256, 'Full set Core Client Indicator'!$A$3:$A$351, 0), MATCH(Selection_Hide2!U$5, 'Full set Core Client Indicator'!$A$3:$AB$3, 0))), \"\")","v":""},{"$f":"IF(U256<>\"\", IF(INDEX('Full set Core Client Indicator'!$A$3:$AB$351, MATCH(Selection_Hide2!$A256, 'Full set Core Client Indicator'!$A$3:$A$351, 0), MATCH(Selection_Hide2!V$5, 'Full set Core Client Indicator'!$A$3:$AB$3, 0))=\"\", \"\",  INDEX('Full set Core Client Indicator'!$A$3:$AB$351, MATCH(Selection_Hide2!$A256, 'Full set Core Client Indicator'!$A$3:$A$351, 0), MATCH(Selection_Hide2!V$5, 'Full set Core Client Indicator'!$A$3:$AB$3, 0))), \"\")","v":""},{"$f":"IF(V256<>\"\", IF(INDEX('Full set Core Client Indicator'!$A$3:$AB$351, MATCH(Selection_Hide2!$A256, 'Full set Core Client Indicator'!$A$3:$A$351, 0), MATCH(Selection_Hide2!W$5, 'Full set Core Client Indicator'!$A$3:$AB$3, 0))=\"\", \"\",  INDEX('Full set Core Client Indicator'!$A$3:$AB$351, MATCH(Selection_Hide2!$A256, 'Full set Core Client Indicator'!$A$3:$A$351, 0), MATCH(Selection_Hide2!W$5, 'Full set Core Client Indicator'!$A$3:$AB$3, 0))), \"\")","v":""},{"$f":"IF(W256<>\"\", IF(INDEX('Full set Core Client Indicator'!$A$3:$AB$351, MATCH(Selection_Hide2!$A256, 'Full set Core Client Indicator'!$A$3:$A$351, 0), MATCH(Selection_Hide2!X$5, 'Full set Core Client Indicator'!$A$3:$AB$3, 0))=\"\", \"\",  INDEX('Full set Core Client Indicator'!$A$3:$AB$351, MATCH(Selection_Hide2!$A256, 'Full set Core Client Indicator'!$A$3:$A$351, 0), MATCH(Selection_Hide2!X$5, 'Full set Core Client Indicator'!$A$3:$AB$3, 0))), \"\")","v":""},{"$f":"IF(X256<>\"\", IF(INDEX('Full set Core Client Indicator'!$A$3:$AB$351, MATCH(Selection_Hide2!$A256, 'Full set Core Client Indicator'!$A$3:$A$351, 0), MATCH(Selection_Hide2!Y$5, 'Full set Core Client Indicator'!$A$3:$AB$3, 0))=\"\", \"\",  INDEX('Full set Core Client Indicator'!$A$3:$AB$351, MATCH(Selection_Hide2!$A256, 'Full set Core Client Indicator'!$A$3:$A$351, 0), MATCH(Selection_Hide2!Y$5, 'Full set Core Client Indicator'!$A$3:$AB$3, 0))), \"\")","v":""},{"$f":"IF(Y256<>\"\", IF(INDEX('Full set Core Client Indicator'!$A$3:$AB$351, MATCH(Selection_Hide2!$A256, 'Full set Core Client Indicator'!$A$3:$A$351, 0), MATCH(Selection_Hide2!Z$5, 'Full set Core Client Indicator'!$A$3:$AB$3, 0))=\"\", \"\",  INDEX('Full set Core Client Indicator'!$A$3:$AB$351, MATCH(Selection_Hide2!$A256, 'Full set Core Client Indicator'!$A$3:$A$351, 0), MATCH(Selection_Hide2!Z$5, 'Full set Core Client Indicator'!$A$3:$AB$3, 0))), \"\")","v":""},{"$f":"IF(Z256<>\"\", IF(INDEX('Full set Core Client Indicator'!$A$3:$AB$351, MATCH(Selection_Hide2!$A256, 'Full set Core Client Indicator'!$A$3:$A$351, 0), MATCH(Selection_Hide2!AA$5, 'Full set Core Client Indicator'!$A$3:$AB$3, 0))=\"\", \"\",  INDEX('Full set Core Client Indicator'!$A$3:$AB$351, MATCH(Selection_Hide2!$A256, 'Full set Core Client Indicator'!$A$3:$A$351, 0), MATCH(Selection_Hide2!AA$5, 'Full set Core Client Indicator'!$A$3:$AB$3, 0))), \"\")","v":""},{"$f":"IF(AA256<>\"\", IF(INDEX('Full set Core Client Indicator'!$A$3:$AB$351, MATCH(Selection_Hide2!$A256, 'Full set Core Client Indicator'!$A$3:$A$351, 0), MATCH(Selection_Hide2!AB$5, 'Full set Core Client Indicator'!$A$3:$AB$3, 0))=\"\", \"\",  INDEX('Full set Core Client Indicator'!$A$3:$AB$351, MATCH(Selection_Hide2!$A256, 'Full set Core Client Indicator'!$A$3:$A$351, 0), MATCH(Selection_Hide2!AB$5, 'Full set Core Client Indicator'!$A$3:$AB$3, 0))), \"\")","v":""}]
[{"$f":"IF(AND(Selection_Hide1!C255<>0, Selection_Hide1!C255<>\"Grand Total\"), Selection_Hide1!C255, \"\")","v":""},{"$f":"IF(A257<>\"\", IF(INDEX('Full set Core Client Indicator'!$A$3:$AB$351, MATCH(Selection_Hide2!$A257, 'Full set Core Client Indicator'!$A$3:$A$351, 0), MATCH(Selection_Hide2!B$5, 'Full set Core Client Indicator'!$A$3:$AB$3, 0))=\"\", \"\",  INDEX('Full set Core Client Indicator'!$A$3:$AB$351, MATCH(Selection_Hide2!$A257, 'Full set Core Client Indicator'!$A$3:$A$351, 0), MATCH(Selection_Hide2!B$5, 'Full set Core Client Indicator'!$A$3:$AB$3, 0))), \"\")","v":""},{"$f":"IF(B257<>\"\", IF(INDEX('Full set Core Client Indicator'!$A$3:$AB$351, MATCH(Selection_Hide2!$A257, 'Full set Core Client Indicator'!$A$3:$A$351, 0), MATCH(Selection_Hide2!C$5, 'Full set Core Client Indicator'!$A$3:$AB$3, 0))=\"\", \"\",  INDEX('Full set Core Client Indicator'!$A$3:$AB$351, MATCH(Selection_Hide2!$A257, 'Full set Core Client Indicator'!$A$3:$A$351, 0), MATCH(Selection_Hide2!C$5, 'Full set Core Client Indicator'!$A$3:$AB$3, 0))), \"\")","v":""},{"$f":"IF(C257<>\"\", IF(INDEX('Full set Core Client Indicator'!$A$3:$AB$351, MATCH(Selection_Hide2!$A257, 'Full set Core Client Indicator'!$A$3:$A$351, 0), MATCH(Selection_Hide2!D$5, 'Full set Core Client Indicator'!$A$3:$AB$3, 0))=\"\", \"\",  INDEX('Full set Core Client Indicator'!$A$3:$AB$351, MATCH(Selection_Hide2!$A257, 'Full set Core Client Indicator'!$A$3:$A$351, 0), MATCH(Selection_Hide2!D$5, 'Full set Core Client Indicator'!$A$3:$AB$3, 0))), \"\")","v":""},{"$f":"IF(D257<>\"\", IF(INDEX('Full set Core Client Indicator'!$A$3:$AB$351, MATCH(Selection_Hide2!$A257, 'Full set Core Client Indicator'!$A$3:$A$351, 0), MATCH(Selection_Hide2!E$5, 'Full set Core Client Indicator'!$A$3:$AB$3, 0))=\"\", \"\",  INDEX('Full set Core Client Indicator'!$A$3:$AB$351, MATCH(Selection_Hide2!$A257, 'Full set Core Client Indicator'!$A$3:$A$351, 0), MATCH(Selection_Hide2!E$5, 'Full set Core Client Indicator'!$A$3:$AB$3, 0))), \"\")","v":""},{"$f":"IF(E257<>\"\", IF(INDEX('Full set Core Client Indicator'!$A$3:$AB$351, MATCH(Selection_Hide2!$A257, 'Full set Core Client Indicator'!$A$3:$A$351, 0), MATCH(Selection_Hide2!F$5, 'Full set Core Client Indicator'!$A$3:$AB$3, 0))=\"\", \"\",  INDEX('Full set Core Client Indicator'!$A$3:$AB$351, MATCH(Selection_Hide2!$A257, 'Full set Core Client Indicator'!$A$3:$A$351, 0), MATCH(Selection_Hide2!F$5, 'Full set Core Client Indicator'!$A$3:$AB$3, 0))), \"\")","v":""},{"$f":"IF(F257<>\"\", IF(INDEX('Full set Core Client Indicator'!$A$3:$AB$351, MATCH(Selection_Hide2!$A257, 'Full set Core Client Indicator'!$A$3:$A$351, 0), MATCH(Selection_Hide2!G$5, 'Full set Core Client Indicator'!$A$3:$AB$3, 0))=\"\", \"\",  INDEX('Full set Core Client Indicator'!$A$3:$AB$351, MATCH(Selection_Hide2!$A257, 'Full set Core Client Indicator'!$A$3:$A$351, 0), MATCH(Selection_Hide2!G$5, 'Full set Core Client Indicator'!$A$3:$AB$3, 0))), \"\")","v":""},{"$f":"IF(G257<>\"\", IF(INDEX('Full set Core Client Indicator'!$A$3:$AB$351, MATCH(Selection_Hide2!$A257, 'Full set Core Client Indicator'!$A$3:$A$351, 0), MATCH(Selection_Hide2!H$5, 'Full set Core Client Indicator'!$A$3:$AB$3, 0))=\"\", \"\",  INDEX('Full set Core Client Indicator'!$A$3:$AB$351, MATCH(Selection_Hide2!$A257, 'Full set Core Client Indicator'!$A$3:$A$351, 0), MATCH(Selection_Hide2!H$5, 'Full set Core Client Indicator'!$A$3:$AB$3, 0))), \"\")","v":""},{"$f":"IF(H257<>\"\", IF(INDEX('Full set Core Client Indicator'!$A$3:$AB$351, MATCH(Selection_Hide2!$A257, 'Full set Core Client Indicator'!$A$3:$A$351, 0), MATCH(Selection_Hide2!I$5, 'Full set Core Client Indicator'!$A$3:$AB$3, 0))=\"\", \"\",  INDEX('Full set Core Client Indicator'!$A$3:$AB$351, MATCH(Selection_Hide2!$A257, 'Full set Core Client Indicator'!$A$3:$A$351, 0), MATCH(Selection_Hide2!I$5, 'Full set Core Client Indicator'!$A$3:$AB$3, 0))), \"\")","v":""},{"$f":"IF(I257<>\"\", IF(INDEX('Full set Core Client Indicator'!$A$3:$AB$351, MATCH(Selection_Hide2!$A257, 'Full set Core Client Indicator'!$A$3:$A$351, 0), MATCH(Selection_Hide2!J$5, 'Full set Core Client Indicator'!$A$3:$AB$3, 0))=\"\", \"\",  INDEX('Full set Core Client Indicator'!$A$3:$AB$351, MATCH(Selection_Hide2!$A257, 'Full set Core Client Indicator'!$A$3:$A$351, 0), MATCH(Selection_Hide2!J$5, 'Full set Core Client Indicator'!$A$3:$AB$3, 0))), \"\")","v":""},{"$f":"IF(J257<>\"\", IF(INDEX('Full set Core Client Indicator'!$A$3:$AB$351, MATCH(Selection_Hide2!$A257, 'Full set Core Client Indicator'!$A$3:$A$351, 0), MATCH(Selection_Hide2!K$5, 'Full set Core Client Indicator'!$A$3:$AB$3, 0))=\"\", \"\",  INDEX('Full set Core Client Indicator'!$A$3:$AB$351, MATCH(Selection_Hide2!$A257, 'Full set Core Client Indicator'!$A$3:$A$351, 0), MATCH(Selection_Hide2!K$5, 'Full set Core Client Indicator'!$A$3:$AB$3, 0))), \"\")","v":""},{"$f":"IF(K257<>\"\", IF(INDEX('Full set Core Client Indicator'!$A$3:$AB$351, MATCH(Selection_Hide2!$A257, 'Full set Core Client Indicator'!$A$3:$A$351, 0), MATCH(Selection_Hide2!L$5, 'Full set Core Client Indicator'!$A$3:$AB$3, 0))=\"\", \"\",  INDEX('Full set Core Client Indicator'!$A$3:$AB$351, MATCH(Selection_Hide2!$A257, 'Full set Core Client Indicator'!$A$3:$A$351, 0), MATCH(Selection_Hide2!L$5, 'Full set Core Client Indicator'!$A$3:$AB$3, 0))), \"\")","v":""},{"$f":"IF(L257<>\"\", IF(INDEX('Full set Core Client Indicator'!$A$3:$AB$351, MATCH(Selection_Hide2!$A257, 'Full set Core Client Indicator'!$A$3:$A$351, 0), MATCH(Selection_Hide2!M$5, 'Full set Core Client Indicator'!$A$3:$AB$3, 0))=\"\", \"\",  INDEX('Full set Core Client Indicator'!$A$3:$AB$351, MATCH(Selection_Hide2!$A257, 'Full set Core Client Indicator'!$A$3:$A$351, 0), MATCH(Selection_Hide2!M$5, 'Full set Core Client Indicator'!$A$3:$AB$3, 0))), \"\")","v":""},{"$f":"IF(M257<>\"\", IF(INDEX('Full set Core Client Indicator'!$A$3:$AB$351, MATCH(Selection_Hide2!$A257, 'Full set Core Client Indicator'!$A$3:$A$351, 0), MATCH(Selection_Hide2!N$5, 'Full set Core Client Indicator'!$A$3:$AB$3, 0))=\"\", \"\",  INDEX('Full set Core Client Indicator'!$A$3:$AB$351, MATCH(Selection_Hide2!$A257, 'Full set Core Client Indicator'!$A$3:$A$351, 0), MATCH(Selection_Hide2!N$5, 'Full set Core Client Indicator'!$A$3:$AB$3, 0))), \"\")","v":""},{"$f":"IF(N257<>\"\", IF(INDEX('Full set Core Client Indicator'!$A$3:$AB$351, MATCH(Selection_Hide2!$A257, 'Full set Core Client Indicator'!$A$3:$A$351, 0), MATCH(Selection_Hide2!O$5, 'Full set Core Client Indicator'!$A$3:$AB$3, 0))=\"\", \"\",  INDEX('Full set Core Client Indicator'!$A$3:$AB$351, MATCH(Selection_Hide2!$A257, 'Full set Core Client Indicator'!$A$3:$A$351, 0), MATCH(Selection_Hide2!O$5, 'Full set Core Client Indicator'!$A$3:$AB$3, 0))), \"\")","v":""},{"$f":"IF(O257<>\"\", IF(INDEX('Full set Core Client Indicator'!$A$3:$AB$351, MATCH(Selection_Hide2!$A257, 'Full set Core Client Indicator'!$A$3:$A$351, 0), MATCH(Selection_Hide2!P$5, 'Full set Core Client Indicator'!$A$3:$AB$3, 0))=\"\", \"\",  INDEX('Full set Core Client Indicator'!$A$3:$AB$351, MATCH(Selection_Hide2!$A257, 'Full set Core Client Indicator'!$A$3:$A$351, 0), MATCH(Selection_Hide2!P$5, 'Full set Core Client Indicator'!$A$3:$AB$3, 0))), \"\")","v":""},{"$f":"IF(P257<>\"\", IF(INDEX('Full set Core Client Indicator'!$A$3:$AB$351, MATCH(Selection_Hide2!$A257, 'Full set Core Client Indicator'!$A$3:$A$351, 0), MATCH(Selection_Hide2!Q$5, 'Full set Core Client Indicator'!$A$3:$AB$3, 0))=\"\", \"\",  INDEX('Full set Core Client Indicator'!$A$3:$AB$351, MATCH(Selection_Hide2!$A257, 'Full set Core Client Indicator'!$A$3:$A$351, 0), MATCH(Selection_Hide2!Q$5, 'Full set Core Client Indicator'!$A$3:$AB$3, 0))), \"\")","v":""},{"$f":"IF(Q257<>\"\", IF(INDEX('Full set Core Client Indicator'!$A$3:$AB$351, MATCH(Selection_Hide2!$A257, 'Full set Core Client Indicator'!$A$3:$A$351, 0), MATCH(Selection_Hide2!R$5, 'Full set Core Client Indicator'!$A$3:$AB$3, 0))=\"\", \"\",  INDEX('Full set Core Client Indicator'!$A$3:$AB$351, MATCH(Selection_Hide2!$A257, 'Full set Core Client Indicator'!$A$3:$A$351, 0), MATCH(Selection_Hide2!R$5, 'Full set Core Client Indicator'!$A$3:$AB$3, 0))), \"\")","v":""},{"$f":"IF(R257<>\"\", IF(INDEX('Full set Core Client Indicator'!$A$3:$AB$351, MATCH(Selection_Hide2!$A257, 'Full set Core Client Indicator'!$A$3:$A$351, 0), MATCH(Selection_Hide2!S$5, 'Full set Core Client Indicator'!$A$3:$AB$3, 0))=\"\", \"\",  INDEX('Full set Core Client Indicator'!$A$3:$AB$351, MATCH(Selection_Hide2!$A257, 'Full set Core Client Indicator'!$A$3:$A$351, 0), MATCH(Selection_Hide2!S$5, 'Full set Core Client Indicator'!$A$3:$AB$3, 0))), \"\")","v":""},{"$f":"IF(S257<>\"\", IF(INDEX('Full set Core Client Indicator'!$A$3:$AB$351, MATCH(Selection_Hide2!$A257, 'Full set Core Client Indicator'!$A$3:$A$351, 0), MATCH(Selection_Hide2!T$5, 'Full set Core Client Indicator'!$A$3:$AB$3, 0))=\"\", \"\",  INDEX('Full set Core Client Indicator'!$A$3:$AB$351, MATCH(Selection_Hide2!$A257, 'Full set Core Client Indicator'!$A$3:$A$351, 0), MATCH(Selection_Hide2!T$5, 'Full set Core Client Indicator'!$A$3:$AB$3, 0))), \"\")","v":""},{"$f":"IF(T257<>\"\", IF(INDEX('Full set Core Client Indicator'!$A$3:$AB$351, MATCH(Selection_Hide2!$A257, 'Full set Core Client Indicator'!$A$3:$A$351, 0), MATCH(Selection_Hide2!U$5, 'Full set Core Client Indicator'!$A$3:$AB$3, 0))=\"\", \"\",  INDEX('Full set Core Client Indicator'!$A$3:$AB$351, MATCH(Selection_Hide2!$A257, 'Full set Core Client Indicator'!$A$3:$A$351, 0), MATCH(Selection_Hide2!U$5, 'Full set Core Client Indicator'!$A$3:$AB$3, 0))), \"\")","v":""},{"$f":"IF(U257<>\"\", IF(INDEX('Full set Core Client Indicator'!$A$3:$AB$351, MATCH(Selection_Hide2!$A257, 'Full set Core Client Indicator'!$A$3:$A$351, 0), MATCH(Selection_Hide2!V$5, 'Full set Core Client Indicator'!$A$3:$AB$3, 0))=\"\", \"\",  INDEX('Full set Core Client Indicator'!$A$3:$AB$351, MATCH(Selection_Hide2!$A257, 'Full set Core Client Indicator'!$A$3:$A$351, 0), MATCH(Selection_Hide2!V$5, 'Full set Core Client Indicator'!$A$3:$AB$3, 0))), \"\")","v":""},{"$f":"IF(V257<>\"\", IF(INDEX('Full set Core Client Indicator'!$A$3:$AB$351, MATCH(Selection_Hide2!$A257, 'Full set Core Client Indicator'!$A$3:$A$351, 0), MATCH(Selection_Hide2!W$5, 'Full set Core Client Indicator'!$A$3:$AB$3, 0))=\"\", \"\",  INDEX('Full set Core Client Indicator'!$A$3:$AB$351, MATCH(Selection_Hide2!$A257, 'Full set Core Client Indicator'!$A$3:$A$351, 0), MATCH(Selection_Hide2!W$5, 'Full set Core Client Indicator'!$A$3:$AB$3, 0))), \"\")","v":""},{"$f":"IF(W257<>\"\", IF(INDEX('Full set Core Client Indicator'!$A$3:$AB$351, MATCH(Selection_Hide2!$A257, 'Full set Core Client Indicator'!$A$3:$A$351, 0), MATCH(Selection_Hide2!X$5, 'Full set Core Client Indicator'!$A$3:$AB$3, 0))=\"\", \"\",  INDEX('Full set Core Client Indicator'!$A$3:$AB$351, MATCH(Selection_Hide2!$A257, 'Full set Core Client Indicator'!$A$3:$A$351, 0), MATCH(Selection_Hide2!X$5, 'Full set Core Client Indicator'!$A$3:$AB$3, 0))), \"\")","v":""},{"$f":"IF(X257<>\"\", IF(INDEX('Full set Core Client Indicator'!$A$3:$AB$351, MATCH(Selection_Hide2!$A257, 'Full set Core Client Indicator'!$A$3:$A$351, 0), MATCH(Selection_Hide2!Y$5, 'Full set Core Client Indicator'!$A$3:$AB$3, 0))=\"\", \"\",  INDEX('Full set Core Client Indicator'!$A$3:$AB$351, MATCH(Selection_Hide2!$A257, 'Full set Core Client Indicator'!$A$3:$A$351, 0), MATCH(Selection_Hide2!Y$5, 'Full set Core Client Indicator'!$A$3:$AB$3, 0))), \"\")","v":""},{"$f":"IF(Y257<>\"\", IF(INDEX('Full set Core Client Indicator'!$A$3:$AB$351, MATCH(Selection_Hide2!$A257, 'Full set Core Client Indicator'!$A$3:$A$351, 0), MATCH(Selection_Hide2!Z$5, 'Full set Core Client Indicator'!$A$3:$AB$3, 0))=\"\", \"\",  INDEX('Full set Core Client Indicator'!$A$3:$AB$351, MATCH(Selection_Hide2!$A257, 'Full set Core Client Indicator'!$A$3:$A$351, 0), MATCH(Selection_Hide2!Z$5, 'Full set Core Client Indicator'!$A$3:$AB$3, 0))), \"\")","v":""},{"$f":"IF(Z257<>\"\", IF(INDEX('Full set Core Client Indicator'!$A$3:$AB$351, MATCH(Selection_Hide2!$A257, 'Full set Core Client Indicator'!$A$3:$A$351, 0), MATCH(Selection_Hide2!AA$5, 'Full set Core Client Indicator'!$A$3:$AB$3, 0))=\"\", \"\",  INDEX('Full set Core Client Indicator'!$A$3:$AB$351, MATCH(Selection_Hide2!$A257, 'Full set Core Client Indicator'!$A$3:$A$351, 0), MATCH(Selection_Hide2!AA$5, 'Full set Core Client Indicator'!$A$3:$AB$3, 0))), \"\")","v":""},{"$f":"IF(AA257<>\"\", IF(INDEX('Full set Core Client Indicator'!$A$3:$AB$351, MATCH(Selection_Hide2!$A257, 'Full set Core Client Indicator'!$A$3:$A$351, 0), MATCH(Selection_Hide2!AB$5, 'Full set Core Client Indicator'!$A$3:$AB$3, 0))=\"\", \"\",  INDEX('Full set Core Client Indicator'!$A$3:$AB$351, MATCH(Selection_Hide2!$A257, 'Full set Core Client Indicator'!$A$3:$A$351, 0), MATCH(Selection_Hide2!AB$5, 'Full set Core Client Indicator'!$A$3:$AB$3, 0))), \"\")","v":""}]
[{"$f":"IF(AND(Selection_Hide1!C256<>0, Selection_Hide1!C256<>\"Grand Total\"), Selection_Hide1!C256, \"\")","v":""},{"$f":"IF(A258<>\"\", IF(INDEX('Full set Core Client Indicator'!$A$3:$AB$351, MATCH(Selection_Hide2!$A258, 'Full set Core Client Indicator'!$A$3:$A$351, 0), MATCH(Selection_Hide2!B$5, 'Full set Core Client Indicator'!$A$3:$AB$3, 0))=\"\", \"\",  INDEX('Full set Core Client Indicator'!$A$3:$AB$351, MATCH(Selection_Hide2!$A258, 'Full set Core Client Indicator'!$A$3:$A$351, 0), MATCH(Selection_Hide2!B$5, 'Full set Core Client Indicator'!$A$3:$AB$3, 0))), \"\")","v":""},{"$f":"IF(B258<>\"\", IF(INDEX('Full set Core Client Indicator'!$A$3:$AB$351, MATCH(Selection_Hide2!$A258, 'Full set Core Client Indicator'!$A$3:$A$351, 0), MATCH(Selection_Hide2!C$5, 'Full set Core Client Indicator'!$A$3:$AB$3, 0))=\"\", \"\",  INDEX('Full set Core Client Indicator'!$A$3:$AB$351, MATCH(Selection_Hide2!$A258, 'Full set Core Client Indicator'!$A$3:$A$351, 0), MATCH(Selection_Hide2!C$5, 'Full set Core Client Indicator'!$A$3:$AB$3, 0))), \"\")","v":""},{"$f":"IF(C258<>\"\", IF(INDEX('Full set Core Client Indicator'!$A$3:$AB$351, MATCH(Selection_Hide2!$A258, 'Full set Core Client Indicator'!$A$3:$A$351, 0), MATCH(Selection_Hide2!D$5, 'Full set Core Client Indicator'!$A$3:$AB$3, 0))=\"\", \"\",  INDEX('Full set Core Client Indicator'!$A$3:$AB$351, MATCH(Selection_Hide2!$A258, 'Full set Core Client Indicator'!$A$3:$A$351, 0), MATCH(Selection_Hide2!D$5, 'Full set Core Client Indicator'!$A$3:$AB$3, 0))), \"\")","v":""},{"$f":"IF(D258<>\"\", IF(INDEX('Full set Core Client Indicator'!$A$3:$AB$351, MATCH(Selection_Hide2!$A258, 'Full set Core Client Indicator'!$A$3:$A$351, 0), MATCH(Selection_Hide2!E$5, 'Full set Core Client Indicator'!$A$3:$AB$3, 0))=\"\", \"\",  INDEX('Full set Core Client Indicator'!$A$3:$AB$351, MATCH(Selection_Hide2!$A258, 'Full set Core Client Indicator'!$A$3:$A$351, 0), MATCH(Selection_Hide2!E$5, 'Full set Core Client Indicator'!$A$3:$AB$3, 0))), \"\")","v":""},{"$f":"IF(E258<>\"\", IF(INDEX('Full set Core Client Indicator'!$A$3:$AB$351, MATCH(Selection_Hide2!$A258, 'Full set Core Client Indicator'!$A$3:$A$351, 0), MATCH(Selection_Hide2!F$5, 'Full set Core Client Indicator'!$A$3:$AB$3, 0))=\"\", \"\",  INDEX('Full set Core Client Indicator'!$A$3:$AB$351, MATCH(Selection_Hide2!$A258, 'Full set Core Client Indicator'!$A$3:$A$351, 0), MATCH(Selection_Hide2!F$5, 'Full set Core Client Indicator'!$A$3:$AB$3, 0))), \"\")","v":""},{"$f":"IF(F258<>\"\", IF(INDEX('Full set Core Client Indicator'!$A$3:$AB$351, MATCH(Selection_Hide2!$A258, 'Full set Core Client Indicator'!$A$3:$A$351, 0), MATCH(Selection_Hide2!G$5, 'Full set Core Client Indicator'!$A$3:$AB$3, 0))=\"\", \"\",  INDEX('Full set Core Client Indicator'!$A$3:$AB$351, MATCH(Selection_Hide2!$A258, 'Full set Core Client Indicator'!$A$3:$A$351, 0), MATCH(Selection_Hide2!G$5, 'Full set Core Client Indicator'!$A$3:$AB$3, 0))), \"\")","v":""},{"$f":"IF(G258<>\"\", IF(INDEX('Full set Core Client Indicator'!$A$3:$AB$351, MATCH(Selection_Hide2!$A258, 'Full set Core Client Indicator'!$A$3:$A$351, 0), MATCH(Selection_Hide2!H$5, 'Full set Core Client Indicator'!$A$3:$AB$3, 0))=\"\", \"\",  INDEX('Full set Core Client Indicator'!$A$3:$AB$351, MATCH(Selection_Hide2!$A258, 'Full set Core Client Indicator'!$A$3:$A$351, 0), MATCH(Selection_Hide2!H$5, 'Full set Core Client Indicator'!$A$3:$AB$3, 0))), \"\")","v":""},{"$f":"IF(H258<>\"\", IF(INDEX('Full set Core Client Indicator'!$A$3:$AB$351, MATCH(Selection_Hide2!$A258, 'Full set Core Client Indicator'!$A$3:$A$351, 0), MATCH(Selection_Hide2!I$5, 'Full set Core Client Indicator'!$A$3:$AB$3, 0))=\"\", \"\",  INDEX('Full set Core Client Indicator'!$A$3:$AB$351, MATCH(Selection_Hide2!$A258, 'Full set Core Client Indicator'!$A$3:$A$351, 0), MATCH(Selection_Hide2!I$5, 'Full set Core Client Indicator'!$A$3:$AB$3, 0))), \"\")","v":""},{"$f":"IF(I258<>\"\", IF(INDEX('Full set Core Client Indicator'!$A$3:$AB$351, MATCH(Selection_Hide2!$A258, 'Full set Core Client Indicator'!$A$3:$A$351, 0), MATCH(Selection_Hide2!J$5, 'Full set Core Client Indicator'!$A$3:$AB$3, 0))=\"\", \"\",  INDEX('Full set Core Client Indicator'!$A$3:$AB$351, MATCH(Selection_Hide2!$A258, 'Full set Core Client Indicator'!$A$3:$A$351, 0), MATCH(Selection_Hide2!J$5, 'Full set Core Client Indicator'!$A$3:$AB$3, 0))), \"\")","v":""},{"$f":"IF(J258<>\"\", IF(INDEX('Full set Core Client Indicator'!$A$3:$AB$351, MATCH(Selection_Hide2!$A258, 'Full set Core Client Indicator'!$A$3:$A$351, 0), MATCH(Selection_Hide2!K$5, 'Full set Core Client Indicator'!$A$3:$AB$3, 0))=\"\", \"\",  INDEX('Full set Core Client Indicator'!$A$3:$AB$351, MATCH(Selection_Hide2!$A258, 'Full set Core Client Indicator'!$A$3:$A$351, 0), MATCH(Selection_Hide2!K$5, 'Full set Core Client Indicator'!$A$3:$AB$3, 0))), \"\")","v":""},{"$f":"IF(K258<>\"\", IF(INDEX('Full set Core Client Indicator'!$A$3:$AB$351, MATCH(Selection_Hide2!$A258, 'Full set Core Client Indicator'!$A$3:$A$351, 0), MATCH(Selection_Hide2!L$5, 'Full set Core Client Indicator'!$A$3:$AB$3, 0))=\"\", \"\",  INDEX('Full set Core Client Indicator'!$A$3:$AB$351, MATCH(Selection_Hide2!$A258, 'Full set Core Client Indicator'!$A$3:$A$351, 0), MATCH(Selection_Hide2!L$5, 'Full set Core Client Indicator'!$A$3:$AB$3, 0))), \"\")","v":""},{"$f":"IF(L258<>\"\", IF(INDEX('Full set Core Client Indicator'!$A$3:$AB$351, MATCH(Selection_Hide2!$A258, 'Full set Core Client Indicator'!$A$3:$A$351, 0), MATCH(Selection_Hide2!M$5, 'Full set Core Client Indicator'!$A$3:$AB$3, 0))=\"\", \"\",  INDEX('Full set Core Client Indicator'!$A$3:$AB$351, MATCH(Selection_Hide2!$A258, 'Full set Core Client Indicator'!$A$3:$A$351, 0), MATCH(Selection_Hide2!M$5, 'Full set Core Client Indicator'!$A$3:$AB$3, 0))), \"\")","v":""},{"$f":"IF(M258<>\"\", IF(INDEX('Full set Core Client Indicator'!$A$3:$AB$351, MATCH(Selection_Hide2!$A258, 'Full set Core Client Indicator'!$A$3:$A$351, 0), MATCH(Selection_Hide2!N$5, 'Full set Core Client Indicator'!$A$3:$AB$3, 0))=\"\", \"\",  INDEX('Full set Core Client Indicator'!$A$3:$AB$351, MATCH(Selection_Hide2!$A258, 'Full set Core Client Indicator'!$A$3:$A$351, 0), MATCH(Selection_Hide2!N$5, 'Full set Core Client Indicator'!$A$3:$AB$3, 0))), \"\")","v":""},{"$f":"IF(N258<>\"\", IF(INDEX('Full set Core Client Indicator'!$A$3:$AB$351, MATCH(Selection_Hide2!$A258, 'Full set Core Client Indicator'!$A$3:$A$351, 0), MATCH(Selection_Hide2!O$5, 'Full set Core Client Indicator'!$A$3:$AB$3, 0))=\"\", \"\",  INDEX('Full set Core Client Indicator'!$A$3:$AB$351, MATCH(Selection_Hide2!$A258, 'Full set Core Client Indicator'!$A$3:$A$351, 0), MATCH(Selection_Hide2!O$5, 'Full set Core Client Indicator'!$A$3:$AB$3, 0))), \"\")","v":""},{"$f":"IF(O258<>\"\", IF(INDEX('Full set Core Client Indicator'!$A$3:$AB$351, MATCH(Selection_Hide2!$A258, 'Full set Core Client Indicator'!$A$3:$A$351, 0), MATCH(Selection_Hide2!P$5, 'Full set Core Client Indicator'!$A$3:$AB$3, 0))=\"\", \"\",  INDEX('Full set Core Client Indicator'!$A$3:$AB$351, MATCH(Selection_Hide2!$A258, 'Full set Core Client Indicator'!$A$3:$A$351, 0), MATCH(Selection_Hide2!P$5, 'Full set Core Client Indicator'!$A$3:$AB$3, 0))), \"\")","v":""},{"$f":"IF(P258<>\"\", IF(INDEX('Full set Core Client Indicator'!$A$3:$AB$351, MATCH(Selection_Hide2!$A258, 'Full set Core Client Indicator'!$A$3:$A$351, 0), MATCH(Selection_Hide2!Q$5, 'Full set Core Client Indicator'!$A$3:$AB$3, 0))=\"\", \"\",  INDEX('Full set Core Client Indicator'!$A$3:$AB$351, MATCH(Selection_Hide2!$A258, 'Full set Core Client Indicator'!$A$3:$A$351, 0), MATCH(Selection_Hide2!Q$5, 'Full set Core Client Indicator'!$A$3:$AB$3, 0))), \"\")","v":""},{"$f":"IF(Q258<>\"\", IF(INDEX('Full set Core Client Indicator'!$A$3:$AB$351, MATCH(Selection_Hide2!$A258, 'Full set Core Client Indicator'!$A$3:$A$351, 0), MATCH(Selection_Hide2!R$5, 'Full set Core Client Indicator'!$A$3:$AB$3, 0))=\"\", \"\",  INDEX('Full set Core Client Indicator'!$A$3:$AB$351, MATCH(Selection_Hide2!$A258, 'Full set Core Client Indicator'!$A$3:$A$351, 0), MATCH(Selection_Hide2!R$5, 'Full set Core Client Indicator'!$A$3:$AB$3, 0))), \"\")","v":""},{"$f":"IF(R258<>\"\", IF(INDEX('Full set Core Client Indicator'!$A$3:$AB$351, MATCH(Selection_Hide2!$A258, 'Full set Core Client Indicator'!$A$3:$A$351, 0), MATCH(Selection_Hide2!S$5, 'Full set Core Client Indicator'!$A$3:$AB$3, 0))=\"\", \"\",  INDEX('Full set Core Client Indicator'!$A$3:$AB$351, MATCH(Selection_Hide2!$A258, 'Full set Core Client Indicator'!$A$3:$A$351, 0), MATCH(Selection_Hide2!S$5, 'Full set Core Client Indicator'!$A$3:$AB$3, 0))), \"\")","v":""},{"$f":"IF(S258<>\"\", IF(INDEX('Full set Core Client Indicator'!$A$3:$AB$351, MATCH(Selection_Hide2!$A258, 'Full set Core Client Indicator'!$A$3:$A$351, 0), MATCH(Selection_Hide2!T$5, 'Full set Core Client Indicator'!$A$3:$AB$3, 0))=\"\", \"\",  INDEX('Full set Core Client Indicator'!$A$3:$AB$351, MATCH(Selection_Hide2!$A258, 'Full set Core Client Indicator'!$A$3:$A$351, 0), MATCH(Selection_Hide2!T$5, 'Full set Core Client Indicator'!$A$3:$AB$3, 0))), \"\")","v":""},{"$f":"IF(T258<>\"\", IF(INDEX('Full set Core Client Indicator'!$A$3:$AB$351, MATCH(Selection_Hide2!$A258, 'Full set Core Client Indicator'!$A$3:$A$351, 0), MATCH(Selection_Hide2!U$5, 'Full set Core Client Indicator'!$A$3:$AB$3, 0))=\"\", \"\",  INDEX('Full set Core Client Indicator'!$A$3:$AB$351, MATCH(Selection_Hide2!$A258, 'Full set Core Client Indicator'!$A$3:$A$351, 0), MATCH(Selection_Hide2!U$5, 'Full set Core Client Indicator'!$A$3:$AB$3, 0))), \"\")","v":""},{"$f":"IF(U258<>\"\", IF(INDEX('Full set Core Client Indicator'!$A$3:$AB$351, MATCH(Selection_Hide2!$A258, 'Full set Core Client Indicator'!$A$3:$A$351, 0), MATCH(Selection_Hide2!V$5, 'Full set Core Client Indicator'!$A$3:$AB$3, 0))=\"\", \"\",  INDEX('Full set Core Client Indicator'!$A$3:$AB$351, MATCH(Selection_Hide2!$A258, 'Full set Core Client Indicator'!$A$3:$A$351, 0), MATCH(Selection_Hide2!V$5, 'Full set Core Client Indicator'!$A$3:$AB$3, 0))), \"\")","v":""},{"$f":"IF(V258<>\"\", IF(INDEX('Full set Core Client Indicator'!$A$3:$AB$351, MATCH(Selection_Hide2!$A258, 'Full set Core Client Indicator'!$A$3:$A$351, 0), MATCH(Selection_Hide2!W$5, 'Full set Core Client Indicator'!$A$3:$AB$3, 0))=\"\", \"\",  INDEX('Full set Core Client Indicator'!$A$3:$AB$351, MATCH(Selection_Hide2!$A258, 'Full set Core Client Indicator'!$A$3:$A$351, 0), MATCH(Selection_Hide2!W$5, 'Full set Core Client Indicator'!$A$3:$AB$3, 0))), \"\")","v":""},{"$f":"IF(W258<>\"\", IF(INDEX('Full set Core Client Indicator'!$A$3:$AB$351, MATCH(Selection_Hide2!$A258, 'Full set Core Client Indicator'!$A$3:$A$351, 0), MATCH(Selection_Hide2!X$5, 'Full set Core Client Indicator'!$A$3:$AB$3, 0))=\"\", \"\",  INDEX('Full set Core Client Indicator'!$A$3:$AB$351, MATCH(Selection_Hide2!$A258, 'Full set Core Client Indicator'!$A$3:$A$351, 0), MATCH(Selection_Hide2!X$5, 'Full set Core Client Indicator'!$A$3:$AB$3, 0))), \"\")","v":""},{"$f":"IF(X258<>\"\", IF(INDEX('Full set Core Client Indicator'!$A$3:$AB$351, MATCH(Selection_Hide2!$A258, 'Full set Core Client Indicator'!$A$3:$A$351, 0), MATCH(Selection_Hide2!Y$5, 'Full set Core Client Indicator'!$A$3:$AB$3, 0))=\"\", \"\",  INDEX('Full set Core Client Indicator'!$A$3:$AB$351, MATCH(Selection_Hide2!$A258, 'Full set Core Client Indicator'!$A$3:$A$351, 0), MATCH(Selection_Hide2!Y$5, 'Full set Core Client Indicator'!$A$3:$AB$3, 0))), \"\")","v":""},{"$f":"IF(Y258<>\"\", IF(INDEX('Full set Core Client Indicator'!$A$3:$AB$351, MATCH(Selection_Hide2!$A258, 'Full set Core Client Indicator'!$A$3:$A$351, 0), MATCH(Selection_Hide2!Z$5, 'Full set Core Client Indicator'!$A$3:$AB$3, 0))=\"\", \"\",  INDEX('Full set Core Client Indicator'!$A$3:$AB$351, MATCH(Selection_Hide2!$A258, 'Full set Core Client Indicator'!$A$3:$A$351, 0), MATCH(Selection_Hide2!Z$5, 'Full set Core Client Indicator'!$A$3:$AB$3, 0))), \"\")","v":""},{"$f":"IF(Z258<>\"\", IF(INDEX('Full set Core Client Indicator'!$A$3:$AB$351, MATCH(Selection_Hide2!$A258, 'Full set Core Client Indicator'!$A$3:$A$351, 0), MATCH(Selection_Hide2!AA$5, 'Full set Core Client Indicator'!$A$3:$AB$3, 0))=\"\", \"\",  INDEX('Full set Core Client Indicator'!$A$3:$AB$351, MATCH(Selection_Hide2!$A258, 'Full set Core Client Indicator'!$A$3:$A$351, 0), MATCH(Selection_Hide2!AA$5, 'Full set Core Client Indicator'!$A$3:$AB$3, 0))), \"\")","v":""},{"$f":"IF(AA258<>\"\", IF(INDEX('Full set Core Client Indicator'!$A$3:$AB$351, MATCH(Selection_Hide2!$A258, 'Full set Core Client Indicator'!$A$3:$A$351, 0), MATCH(Selection_Hide2!AB$5, 'Full set Core Client Indicator'!$A$3:$AB$3, 0))=\"\", \"\",  INDEX('Full set Core Client Indicator'!$A$3:$AB$351, MATCH(Selection_Hide2!$A258, 'Full set Core Client Indicator'!$A$3:$A$351, 0), MATCH(Selection_Hide2!AB$5, 'Full set Core Client Indicator'!$A$3:$AB$3, 0))), \"\")","v":""}]
[{"$f":"IF(AND(Selection_Hide1!C257<>0, Selection_Hide1!C257<>\"Grand Total\"), Selection_Hide1!C257, \"\")","v":""},{"$f":"IF(A259<>\"\", IF(INDEX('Full set Core Client Indicator'!$A$3:$AB$351, MATCH(Selection_Hide2!$A259, 'Full set Core Client Indicator'!$A$3:$A$351, 0), MATCH(Selection_Hide2!B$5, 'Full set Core Client Indicator'!$A$3:$AB$3, 0))=\"\", \"\",  INDEX('Full set Core Client Indicator'!$A$3:$AB$351, MATCH(Selection_Hide2!$A259, 'Full set Core Client Indicator'!$A$3:$A$351, 0), MATCH(Selection_Hide2!B$5, 'Full set Core Client Indicator'!$A$3:$AB$3, 0))), \"\")","v":""},{"$f":"IF(B259<>\"\", IF(INDEX('Full set Core Client Indicator'!$A$3:$AB$351, MATCH(Selection_Hide2!$A259, 'Full set Core Client Indicator'!$A$3:$A$351, 0), MATCH(Selection_Hide2!C$5, 'Full set Core Client Indicator'!$A$3:$AB$3, 0))=\"\", \"\",  INDEX('Full set Core Client Indicator'!$A$3:$AB$351, MATCH(Selection_Hide2!$A259, 'Full set Core Client Indicator'!$A$3:$A$351, 0), MATCH(Selection_Hide2!C$5, 'Full set Core Client Indicator'!$A$3:$AB$3, 0))), \"\")","v":""},{"$f":"IF(C259<>\"\", IF(INDEX('Full set Core Client Indicator'!$A$3:$AB$351, MATCH(Selection_Hide2!$A259, 'Full set Core Client Indicator'!$A$3:$A$351, 0), MATCH(Selection_Hide2!D$5, 'Full set Core Client Indicator'!$A$3:$AB$3, 0))=\"\", \"\",  INDEX('Full set Core Client Indicator'!$A$3:$AB$351, MATCH(Selection_Hide2!$A259, 'Full set Core Client Indicator'!$A$3:$A$351, 0), MATCH(Selection_Hide2!D$5, 'Full set Core Client Indicator'!$A$3:$AB$3, 0))), \"\")","v":""},{"$f":"IF(D259<>\"\", IF(INDEX('Full set Core Client Indicator'!$A$3:$AB$351, MATCH(Selection_Hide2!$A259, 'Full set Core Client Indicator'!$A$3:$A$351, 0), MATCH(Selection_Hide2!E$5, 'Full set Core Client Indicator'!$A$3:$AB$3, 0))=\"\", \"\",  INDEX('Full set Core Client Indicator'!$A$3:$AB$351, MATCH(Selection_Hide2!$A259, 'Full set Core Client Indicator'!$A$3:$A$351, 0), MATCH(Selection_Hide2!E$5, 'Full set Core Client Indicator'!$A$3:$AB$3, 0))), \"\")","v":""},{"$f":"IF(E259<>\"\", IF(INDEX('Full set Core Client Indicator'!$A$3:$AB$351, MATCH(Selection_Hide2!$A259, 'Full set Core Client Indicator'!$A$3:$A$351, 0), MATCH(Selection_Hide2!F$5, 'Full set Core Client Indicator'!$A$3:$AB$3, 0))=\"\", \"\",  INDEX('Full set Core Client Indicator'!$A$3:$AB$351, MATCH(Selection_Hide2!$A259, 'Full set Core Client Indicator'!$A$3:$A$351, 0), MATCH(Selection_Hide2!F$5, 'Full set Core Client Indicator'!$A$3:$AB$3, 0))), \"\")","v":""},{"$f":"IF(F259<>\"\", IF(INDEX('Full set Core Client Indicator'!$A$3:$AB$351, MATCH(Selection_Hide2!$A259, 'Full set Core Client Indicator'!$A$3:$A$351, 0), MATCH(Selection_Hide2!G$5, 'Full set Core Client Indicator'!$A$3:$AB$3, 0))=\"\", \"\",  INDEX('Full set Core Client Indicator'!$A$3:$AB$351, MATCH(Selection_Hide2!$A259, 'Full set Core Client Indicator'!$A$3:$A$351, 0), MATCH(Selection_Hide2!G$5, 'Full set Core Client Indicator'!$A$3:$AB$3, 0))), \"\")","v":""},{"$f":"IF(G259<>\"\", IF(INDEX('Full set Core Client Indicator'!$A$3:$AB$351, MATCH(Selection_Hide2!$A259, 'Full set Core Client Indicator'!$A$3:$A$351, 0), MATCH(Selection_Hide2!H$5, 'Full set Core Client Indicator'!$A$3:$AB$3, 0))=\"\", \"\",  INDEX('Full set Core Client Indicator'!$A$3:$AB$351, MATCH(Selection_Hide2!$A259, 'Full set Core Client Indicator'!$A$3:$A$351, 0), MATCH(Selection_Hide2!H$5, 'Full set Core Client Indicator'!$A$3:$AB$3, 0))), \"\")","v":""},{"$f":"IF(H259<>\"\", IF(INDEX('Full set Core Client Indicator'!$A$3:$AB$351, MATCH(Selection_Hide2!$A259, 'Full set Core Client Indicator'!$A$3:$A$351, 0), MATCH(Selection_Hide2!I$5, 'Full set Core Client Indicator'!$A$3:$AB$3, 0))=\"\", \"\",  INDEX('Full set Core Client Indicator'!$A$3:$AB$351, MATCH(Selection_Hide2!$A259, 'Full set Core Client Indicator'!$A$3:$A$351, 0), MATCH(Selection_Hide2!I$5, 'Full set Core Client Indicator'!$A$3:$AB$3, 0))), \"\")","v":""},{"$f":"IF(I259<>\"\", IF(INDEX('Full set Core Client Indicator'!$A$3:$AB$351, MATCH(Selection_Hide2!$A259, 'Full set Core Client Indicator'!$A$3:$A$351, 0), MATCH(Selection_Hide2!J$5, 'Full set Core Client Indicator'!$A$3:$AB$3, 0))=\"\", \"\",  INDEX('Full set Core Client Indicator'!$A$3:$AB$351, MATCH(Selection_Hide2!$A259, 'Full set Core Client Indicator'!$A$3:$A$351, 0), MATCH(Selection_Hide2!J$5, 'Full set Core Client Indicator'!$A$3:$AB$3, 0))), \"\")","v":""},{"$f":"IF(J259<>\"\", IF(INDEX('Full set Core Client Indicator'!$A$3:$AB$351, MATCH(Selection_Hide2!$A259, 'Full set Core Client Indicator'!$A$3:$A$351, 0), MATCH(Selection_Hide2!K$5, 'Full set Core Client Indicator'!$A$3:$AB$3, 0))=\"\", \"\",  INDEX('Full set Core Client Indicator'!$A$3:$AB$351, MATCH(Selection_Hide2!$A259, 'Full set Core Client Indicator'!$A$3:$A$351, 0), MATCH(Selection_Hide2!K$5, 'Full set Core Client Indicator'!$A$3:$AB$3, 0))), \"\")","v":""},{"$f":"IF(K259<>\"\", IF(INDEX('Full set Core Client Indicator'!$A$3:$AB$351, MATCH(Selection_Hide2!$A259, 'Full set Core Client Indicator'!$A$3:$A$351, 0), MATCH(Selection_Hide2!L$5, 'Full set Core Client Indicator'!$A$3:$AB$3, 0))=\"\", \"\",  INDEX('Full set Core Client Indicator'!$A$3:$AB$351, MATCH(Selection_Hide2!$A259, 'Full set Core Client Indicator'!$A$3:$A$351, 0), MATCH(Selection_Hide2!L$5, 'Full set Core Client Indicator'!$A$3:$AB$3, 0))), \"\")","v":""},{"$f":"IF(L259<>\"\", IF(INDEX('Full set Core Client Indicator'!$A$3:$AB$351, MATCH(Selection_Hide2!$A259, 'Full set Core Client Indicator'!$A$3:$A$351, 0), MATCH(Selection_Hide2!M$5, 'Full set Core Client Indicator'!$A$3:$AB$3, 0))=\"\", \"\",  INDEX('Full set Core Client Indicator'!$A$3:$AB$351, MATCH(Selection_Hide2!$A259, 'Full set Core Client Indicator'!$A$3:$A$351, 0), MATCH(Selection_Hide2!M$5, 'Full set Core Client Indicator'!$A$3:$AB$3, 0))), \"\")","v":""},{"$f":"IF(M259<>\"\", IF(INDEX('Full set Core Client Indicator'!$A$3:$AB$351, MATCH(Selection_Hide2!$A259, 'Full set Core Client Indicator'!$A$3:$A$351, 0), MATCH(Selection_Hide2!N$5, 'Full set Core Client Indicator'!$A$3:$AB$3, 0))=\"\", \"\",  INDEX('Full set Core Client Indicator'!$A$3:$AB$351, MATCH(Selection_Hide2!$A259, 'Full set Core Client Indicator'!$A$3:$A$351, 0), MATCH(Selection_Hide2!N$5, 'Full set Core Client Indicator'!$A$3:$AB$3, 0))), \"\")","v":""},{"$f":"IF(N259<>\"\", IF(INDEX('Full set Core Client Indicator'!$A$3:$AB$351, MATCH(Selection_Hide2!$A259, 'Full set Core Client Indicator'!$A$3:$A$351, 0), MATCH(Selection_Hide2!O$5, 'Full set Core Client Indicator'!$A$3:$AB$3, 0))=\"\", \"\",  INDEX('Full set Core Client Indicator'!$A$3:$AB$351, MATCH(Selection_Hide2!$A259, 'Full set Core Client Indicator'!$A$3:$A$351, 0), MATCH(Selection_Hide2!O$5, 'Full set Core Client Indicator'!$A$3:$AB$3, 0))), \"\")","v":""},{"$f":"IF(O259<>\"\", IF(INDEX('Full set Core Client Indicator'!$A$3:$AB$351, MATCH(Selection_Hide2!$A259, 'Full set Core Client Indicator'!$A$3:$A$351, 0), MATCH(Selection_Hide2!P$5, 'Full set Core Client Indicator'!$A$3:$AB$3, 0))=\"\", \"\",  INDEX('Full set Core Client Indicator'!$A$3:$AB$351, MATCH(Selection_Hide2!$A259, 'Full set Core Client Indicator'!$A$3:$A$351, 0), MATCH(Selection_Hide2!P$5, 'Full set Core Client Indicator'!$A$3:$AB$3, 0))), \"\")","v":""},{"$f":"IF(P259<>\"\", IF(INDEX('Full set Core Client Indicator'!$A$3:$AB$351, MATCH(Selection_Hide2!$A259, 'Full set Core Client Indicator'!$A$3:$A$351, 0), MATCH(Selection_Hide2!Q$5, 'Full set Core Client Indicator'!$A$3:$AB$3, 0))=\"\", \"\",  INDEX('Full set Core Client Indicator'!$A$3:$AB$351, MATCH(Selection_Hide2!$A259, 'Full set Core Client Indicator'!$A$3:$A$351, 0), MATCH(Selection_Hide2!Q$5, 'Full set Core Client Indicator'!$A$3:$AB$3, 0))), \"\")","v":""},{"$f":"IF(Q259<>\"\", IF(INDEX('Full set Core Client Indicator'!$A$3:$AB$351, MATCH(Selection_Hide2!$A259, 'Full set Core Client Indicator'!$A$3:$A$351, 0), MATCH(Selection_Hide2!R$5, 'Full set Core Client Indicator'!$A$3:$AB$3, 0))=\"\", \"\",  INDEX('Full set Core Client Indicator'!$A$3:$AB$351, MATCH(Selection_Hide2!$A259, 'Full set Core Client Indicator'!$A$3:$A$351, 0), MATCH(Selection_Hide2!R$5, 'Full set Core Client Indicator'!$A$3:$AB$3, 0))), \"\")","v":""},{"$f":"IF(R259<>\"\", IF(INDEX('Full set Core Client Indicator'!$A$3:$AB$351, MATCH(Selection_Hide2!$A259, 'Full set Core Client Indicator'!$A$3:$A$351, 0), MATCH(Selection_Hide2!S$5, 'Full set Core Client Indicator'!$A$3:$AB$3, 0))=\"\", \"\",  INDEX('Full set Core Client Indicator'!$A$3:$AB$351, MATCH(Selection_Hide2!$A259, 'Full set Core Client Indicator'!$A$3:$A$351, 0), MATCH(Selection_Hide2!S$5, 'Full set Core Client Indicator'!$A$3:$AB$3, 0))), \"\")","v":""},{"$f":"IF(S259<>\"\", IF(INDEX('Full set Core Client Indicator'!$A$3:$AB$351, MATCH(Selection_Hide2!$A259, 'Full set Core Client Indicator'!$A$3:$A$351, 0), MATCH(Selection_Hide2!T$5, 'Full set Core Client Indicator'!$A$3:$AB$3, 0))=\"\", \"\",  INDEX('Full set Core Client Indicator'!$A$3:$AB$351, MATCH(Selection_Hide2!$A259, 'Full set Core Client Indicator'!$A$3:$A$351, 0), MATCH(Selection_Hide2!T$5, 'Full set Core Client Indicator'!$A$3:$AB$3, 0))), \"\")","v":""},{"$f":"IF(T259<>\"\", IF(INDEX('Full set Core Client Indicator'!$A$3:$AB$351, MATCH(Selection_Hide2!$A259, 'Full set Core Client Indicator'!$A$3:$A$351, 0), MATCH(Selection_Hide2!U$5, 'Full set Core Client Indicator'!$A$3:$AB$3, 0))=\"\", \"\",  INDEX('Full set Core Client Indicator'!$A$3:$AB$351, MATCH(Selection_Hide2!$A259, 'Full set Core Client Indicator'!$A$3:$A$351, 0), MATCH(Selection_Hide2!U$5, 'Full set Core Client Indicator'!$A$3:$AB$3, 0))), \"\")","v":""},{"$f":"IF(U259<>\"\", IF(INDEX('Full set Core Client Indicator'!$A$3:$AB$351, MATCH(Selection_Hide2!$A259, 'Full set Core Client Indicator'!$A$3:$A$351, 0), MATCH(Selection_Hide2!V$5, 'Full set Core Client Indicator'!$A$3:$AB$3, 0))=\"\", \"\",  INDEX('Full set Core Client Indicator'!$A$3:$AB$351, MATCH(Selection_Hide2!$A259, 'Full set Core Client Indicator'!$A$3:$A$351, 0), MATCH(Selection_Hide2!V$5, 'Full set Core Client Indicator'!$A$3:$AB$3, 0))), \"\")","v":""},{"$f":"IF(V259<>\"\", IF(INDEX('Full set Core Client Indicator'!$A$3:$AB$351, MATCH(Selection_Hide2!$A259, 'Full set Core Client Indicator'!$A$3:$A$351, 0), MATCH(Selection_Hide2!W$5, 'Full set Core Client Indicator'!$A$3:$AB$3, 0))=\"\", \"\",  INDEX('Full set Core Client Indicator'!$A$3:$AB$351, MATCH(Selection_Hide2!$A259, 'Full set Core Client Indicator'!$A$3:$A$351, 0), MATCH(Selection_Hide2!W$5, 'Full set Core Client Indicator'!$A$3:$AB$3, 0))), \"\")","v":""},{"$f":"IF(W259<>\"\", IF(INDEX('Full set Core Client Indicator'!$A$3:$AB$351, MATCH(Selection_Hide2!$A259, 'Full set Core Client Indicator'!$A$3:$A$351, 0), MATCH(Selection_Hide2!X$5, 'Full set Core Client Indicator'!$A$3:$AB$3, 0))=\"\", \"\",  INDEX('Full set Core Client Indicator'!$A$3:$AB$351, MATCH(Selection_Hide2!$A259, 'Full set Core Client Indicator'!$A$3:$A$351, 0), MATCH(Selection_Hide2!X$5, 'Full set Core Client Indicator'!$A$3:$AB$3, 0))), \"\")","v":""},{"$f":"IF(X259<>\"\", IF(INDEX('Full set Core Client Indicator'!$A$3:$AB$351, MATCH(Selection_Hide2!$A259, 'Full set Core Client Indicator'!$A$3:$A$351, 0), MATCH(Selection_Hide2!Y$5, 'Full set Core Client Indicator'!$A$3:$AB$3, 0))=\"\", \"\",  INDEX('Full set Core Client Indicator'!$A$3:$AB$351, MATCH(Selection_Hide2!$A259, 'Full set Core Client Indicator'!$A$3:$A$351, 0), MATCH(Selection_Hide2!Y$5, 'Full set Core Client Indicator'!$A$3:$AB$3, 0))), \"\")","v":""},{"$f":"IF(Y259<>\"\", IF(INDEX('Full set Core Client Indicator'!$A$3:$AB$351, MATCH(Selection_Hide2!$A259, 'Full set Core Client Indicator'!$A$3:$A$351, 0), MATCH(Selection_Hide2!Z$5, 'Full set Core Client Indicator'!$A$3:$AB$3, 0))=\"\", \"\",  INDEX('Full set Core Client Indicator'!$A$3:$AB$351, MATCH(Selection_Hide2!$A259, 'Full set Core Client Indicator'!$A$3:$A$351, 0), MATCH(Selection_Hide2!Z$5, 'Full set Core Client Indicator'!$A$3:$AB$3, 0))), \"\")","v":""},{"$f":"IF(Z259<>\"\", IF(INDEX('Full set Core Client Indicator'!$A$3:$AB$351, MATCH(Selection_Hide2!$A259, 'Full set Core Client Indicator'!$A$3:$A$351, 0), MATCH(Selection_Hide2!AA$5, 'Full set Core Client Indicator'!$A$3:$AB$3, 0))=\"\", \"\",  INDEX('Full set Core Client Indicator'!$A$3:$AB$351, MATCH(Selection_Hide2!$A259, 'Full set Core Client Indicator'!$A$3:$A$351, 0), MATCH(Selection_Hide2!AA$5, 'Full set Core Client Indicator'!$A$3:$AB$3, 0))), \"\")","v":""},{"$f":"IF(AA259<>\"\", IF(INDEX('Full set Core Client Indicator'!$A$3:$AB$351, MATCH(Selection_Hide2!$A259, 'Full set Core Client Indicator'!$A$3:$A$351, 0), MATCH(Selection_Hide2!AB$5, 'Full set Core Client Indicator'!$A$3:$AB$3, 0))=\"\", \"\",  INDEX('Full set Core Client Indicator'!$A$3:$AB$351, MATCH(Selection_Hide2!$A259, 'Full set Core Client Indicator'!$A$3:$A$351, 0), MATCH(Selection_Hide2!AB$5, 'Full set Core Client Indicator'!$A$3:$AB$3, 0))), \"\")","v":""}]
[{"$f":"IF(AND(Selection_Hide1!C258<>0, Selection_Hide1!C258<>\"Grand Total\"), Selection_Hide1!C258, \"\")","v":""},{"$f":"IF(A260<>\"\", IF(INDEX('Full set Core Client Indicator'!$A$3:$AB$351, MATCH(Selection_Hide2!$A260, 'Full set Core Client Indicator'!$A$3:$A$351, 0), MATCH(Selection_Hide2!B$5, 'Full set Core Client Indicator'!$A$3:$AB$3, 0))=\"\", \"\",  INDEX('Full set Core Client Indicator'!$A$3:$AB$351, MATCH(Selection_Hide2!$A260, 'Full set Core Client Indicator'!$A$3:$A$351, 0), MATCH(Selection_Hide2!B$5, 'Full set Core Client Indicator'!$A$3:$AB$3, 0))), \"\")","v":""},{"$f":"IF(B260<>\"\", IF(INDEX('Full set Core Client Indicator'!$A$3:$AB$351, MATCH(Selection_Hide2!$A260, 'Full set Core Client Indicator'!$A$3:$A$351, 0), MATCH(Selection_Hide2!C$5, 'Full set Core Client Indicator'!$A$3:$AB$3, 0))=\"\", \"\",  INDEX('Full set Core Client Indicator'!$A$3:$AB$351, MATCH(Selection_Hide2!$A260, 'Full set Core Client Indicator'!$A$3:$A$351, 0), MATCH(Selection_Hide2!C$5, 'Full set Core Client Indicator'!$A$3:$AB$3, 0))), \"\")","v":""},{"$f":"IF(C260<>\"\", IF(INDEX('Full set Core Client Indicator'!$A$3:$AB$351, MATCH(Selection_Hide2!$A260, 'Full set Core Client Indicator'!$A$3:$A$351, 0), MATCH(Selection_Hide2!D$5, 'Full set Core Client Indicator'!$A$3:$AB$3, 0))=\"\", \"\",  INDEX('Full set Core Client Indicator'!$A$3:$AB$351, MATCH(Selection_Hide2!$A260, 'Full set Core Client Indicator'!$A$3:$A$351, 0), MATCH(Selection_Hide2!D$5, 'Full set Core Client Indicator'!$A$3:$AB$3, 0))), \"\")","v":""},{"$f":"IF(D260<>\"\", IF(INDEX('Full set Core Client Indicator'!$A$3:$AB$351, MATCH(Selection_Hide2!$A260, 'Full set Core Client Indicator'!$A$3:$A$351, 0), MATCH(Selection_Hide2!E$5, 'Full set Core Client Indicator'!$A$3:$AB$3, 0))=\"\", \"\",  INDEX('Full set Core Client Indicator'!$A$3:$AB$351, MATCH(Selection_Hide2!$A260, 'Full set Core Client Indicator'!$A$3:$A$351, 0), MATCH(Selection_Hide2!E$5, 'Full set Core Client Indicator'!$A$3:$AB$3, 0))), \"\")","v":""},{"$f":"IF(E260<>\"\", IF(INDEX('Full set Core Client Indicator'!$A$3:$AB$351, MATCH(Selection_Hide2!$A260, 'Full set Core Client Indicator'!$A$3:$A$351, 0), MATCH(Selection_Hide2!F$5, 'Full set Core Client Indicator'!$A$3:$AB$3, 0))=\"\", \"\",  INDEX('Full set Core Client Indicator'!$A$3:$AB$351, MATCH(Selection_Hide2!$A260, 'Full set Core Client Indicator'!$A$3:$A$351, 0), MATCH(Selection_Hide2!F$5, 'Full set Core Client Indicator'!$A$3:$AB$3, 0))), \"\")","v":""},{"$f":"IF(F260<>\"\", IF(INDEX('Full set Core Client Indicator'!$A$3:$AB$351, MATCH(Selection_Hide2!$A260, 'Full set Core Client Indicator'!$A$3:$A$351, 0), MATCH(Selection_Hide2!G$5, 'Full set Core Client Indicator'!$A$3:$AB$3, 0))=\"\", \"\",  INDEX('Full set Core Client Indicator'!$A$3:$AB$351, MATCH(Selection_Hide2!$A260, 'Full set Core Client Indicator'!$A$3:$A$351, 0), MATCH(Selection_Hide2!G$5, 'Full set Core Client Indicator'!$A$3:$AB$3, 0))), \"\")","v":""},{"$f":"IF(G260<>\"\", IF(INDEX('Full set Core Client Indicator'!$A$3:$AB$351, MATCH(Selection_Hide2!$A260, 'Full set Core Client Indicator'!$A$3:$A$351, 0), MATCH(Selection_Hide2!H$5, 'Full set Core Client Indicator'!$A$3:$AB$3, 0))=\"\", \"\",  INDEX('Full set Core Client Indicator'!$A$3:$AB$351, MATCH(Selection_Hide2!$A260, 'Full set Core Client Indicator'!$A$3:$A$351, 0), MATCH(Selection_Hide2!H$5, 'Full set Core Client Indicator'!$A$3:$AB$3, 0))), \"\")","v":""},{"$f":"IF(H260<>\"\", IF(INDEX('Full set Core Client Indicator'!$A$3:$AB$351, MATCH(Selection_Hide2!$A260, 'Full set Core Client Indicator'!$A$3:$A$351, 0), MATCH(Selection_Hide2!I$5, 'Full set Core Client Indicator'!$A$3:$AB$3, 0))=\"\", \"\",  INDEX('Full set Core Client Indicator'!$A$3:$AB$351, MATCH(Selection_Hide2!$A260, 'Full set Core Client Indicator'!$A$3:$A$351, 0), MATCH(Selection_Hide2!I$5, 'Full set Core Client Indicator'!$A$3:$AB$3, 0))), \"\")","v":""},{"$f":"IF(I260<>\"\", IF(INDEX('Full set Core Client Indicator'!$A$3:$AB$351, MATCH(Selection_Hide2!$A260, 'Full set Core Client Indicator'!$A$3:$A$351, 0), MATCH(Selection_Hide2!J$5, 'Full set Core Client Indicator'!$A$3:$AB$3, 0))=\"\", \"\",  INDEX('Full set Core Client Indicator'!$A$3:$AB$351, MATCH(Selection_Hide2!$A260, 'Full set Core Client Indicator'!$A$3:$A$351, 0), MATCH(Selection_Hide2!J$5, 'Full set Core Client Indicator'!$A$3:$AB$3, 0))), \"\")","v":""},{"$f":"IF(J260<>\"\", IF(INDEX('Full set Core Client Indicator'!$A$3:$AB$351, MATCH(Selection_Hide2!$A260, 'Full set Core Client Indicator'!$A$3:$A$351, 0), MATCH(Selection_Hide2!K$5, 'Full set Core Client Indicator'!$A$3:$AB$3, 0))=\"\", \"\",  INDEX('Full set Core Client Indicator'!$A$3:$AB$351, MATCH(Selection_Hide2!$A260, 'Full set Core Client Indicator'!$A$3:$A$351, 0), MATCH(Selection_Hide2!K$5, 'Full set Core Client Indicator'!$A$3:$AB$3, 0))), \"\")","v":""},{"$f":"IF(K260<>\"\", IF(INDEX('Full set Core Client Indicator'!$A$3:$AB$351, MATCH(Selection_Hide2!$A260, 'Full set Core Client Indicator'!$A$3:$A$351, 0), MATCH(Selection_Hide2!L$5, 'Full set Core Client Indicator'!$A$3:$AB$3, 0))=\"\", \"\",  INDEX('Full set Core Client Indicator'!$A$3:$AB$351, MATCH(Selection_Hide2!$A260, 'Full set Core Client Indicator'!$A$3:$A$351, 0), MATCH(Selection_Hide2!L$5, 'Full set Core Client Indicator'!$A$3:$AB$3, 0))), \"\")","v":""},{"$f":"IF(L260<>\"\", IF(INDEX('Full set Core Client Indicator'!$A$3:$AB$351, MATCH(Selection_Hide2!$A260, 'Full set Core Client Indicator'!$A$3:$A$351, 0), MATCH(Selection_Hide2!M$5, 'Full set Core Client Indicator'!$A$3:$AB$3, 0))=\"\", \"\",  INDEX('Full set Core Client Indicator'!$A$3:$AB$351, MATCH(Selection_Hide2!$A260, 'Full set Core Client Indicator'!$A$3:$A$351, 0), MATCH(Selection_Hide2!M$5, 'Full set Core Client Indicator'!$A$3:$AB$3, 0))), \"\")","v":""},{"$f":"IF(M260<>\"\", IF(INDEX('Full set Core Client Indicator'!$A$3:$AB$351, MATCH(Selection_Hide2!$A260, 'Full set Core Client Indicator'!$A$3:$A$351, 0), MATCH(Selection_Hide2!N$5, 'Full set Core Client Indicator'!$A$3:$AB$3, 0))=\"\", \"\",  INDEX('Full set Core Client Indicator'!$A$3:$AB$351, MATCH(Selection_Hide2!$A260, 'Full set Core Client Indicator'!$A$3:$A$351, 0), MATCH(Selection_Hide2!N$5, 'Full set Core Client Indicator'!$A$3:$AB$3, 0))), \"\")","v":""},{"$f":"IF(N260<>\"\", IF(INDEX('Full set Core Client Indicator'!$A$3:$AB$351, MATCH(Selection_Hide2!$A260, 'Full set Core Client Indicator'!$A$3:$A$351, 0), MATCH(Selection_Hide2!O$5, 'Full set Core Client Indicator'!$A$3:$AB$3, 0))=\"\", \"\",  INDEX('Full set Core Client Indicator'!$A$3:$AB$351, MATCH(Selection_Hide2!$A260, 'Full set Core Client Indicator'!$A$3:$A$351, 0), MATCH(Selection_Hide2!O$5, 'Full set Core Client Indicator'!$A$3:$AB$3, 0))), \"\")","v":""},{"$f":"IF(O260<>\"\", IF(INDEX('Full set Core Client Indicator'!$A$3:$AB$351, MATCH(Selection_Hide2!$A260, 'Full set Core Client Indicator'!$A$3:$A$351, 0), MATCH(Selection_Hide2!P$5, 'Full set Core Client Indicator'!$A$3:$AB$3, 0))=\"\", \"\",  INDEX('Full set Core Client Indicator'!$A$3:$AB$351, MATCH(Selection_Hide2!$A260, 'Full set Core Client Indicator'!$A$3:$A$351, 0), MATCH(Selection_Hide2!P$5, 'Full set Core Client Indicator'!$A$3:$AB$3, 0))), \"\")","v":""},{"$f":"IF(P260<>\"\", IF(INDEX('Full set Core Client Indicator'!$A$3:$AB$351, MATCH(Selection_Hide2!$A260, 'Full set Core Client Indicator'!$A$3:$A$351, 0), MATCH(Selection_Hide2!Q$5, 'Full set Core Client Indicator'!$A$3:$AB$3, 0))=\"\", \"\",  INDEX('Full set Core Client Indicator'!$A$3:$AB$351, MATCH(Selection_Hide2!$A260, 'Full set Core Client Indicator'!$A$3:$A$351, 0), MATCH(Selection_Hide2!Q$5, 'Full set Core Client Indicator'!$A$3:$AB$3, 0))), \"\")","v":""},{"$f":"IF(Q260<>\"\", IF(INDEX('Full set Core Client Indicator'!$A$3:$AB$351, MATCH(Selection_Hide2!$A260, 'Full set Core Client Indicator'!$A$3:$A$351, 0), MATCH(Selection_Hide2!R$5, 'Full set Core Client Indicator'!$A$3:$AB$3, 0))=\"\", \"\",  INDEX('Full set Core Client Indicator'!$A$3:$AB$351, MATCH(Selection_Hide2!$A260, 'Full set Core Client Indicator'!$A$3:$A$351, 0), MATCH(Selection_Hide2!R$5, 'Full set Core Client Indicator'!$A$3:$AB$3, 0))), \"\")","v":""},{"$f":"IF(R260<>\"\", IF(INDEX('Full set Core Client Indicator'!$A$3:$AB$351, MATCH(Selection_Hide2!$A260, 'Full set Core Client Indicator'!$A$3:$A$351, 0), MATCH(Selection_Hide2!S$5, 'Full set Core Client Indicator'!$A$3:$AB$3, 0))=\"\", \"\",  INDEX('Full set Core Client Indicator'!$A$3:$AB$351, MATCH(Selection_Hide2!$A260, 'Full set Core Client Indicator'!$A$3:$A$351, 0), MATCH(Selection_Hide2!S$5, 'Full set Core Client Indicator'!$A$3:$AB$3, 0))), \"\")","v":""},{"$f":"IF(S260<>\"\", IF(INDEX('Full set Core Client Indicator'!$A$3:$AB$351, MATCH(Selection_Hide2!$A260, 'Full set Core Client Indicator'!$A$3:$A$351, 0), MATCH(Selection_Hide2!T$5, 'Full set Core Client Indicator'!$A$3:$AB$3, 0))=\"\", \"\",  INDEX('Full set Core Client Indicator'!$A$3:$AB$351, MATCH(Selection_Hide2!$A260, 'Full set Core Client Indicator'!$A$3:$A$351, 0), MATCH(Selection_Hide2!T$5, 'Full set Core Client Indicator'!$A$3:$AB$3, 0))), \"\")","v":""},{"$f":"IF(T260<>\"\", IF(INDEX('Full set Core Client Indicator'!$A$3:$AB$351, MATCH(Selection_Hide2!$A260, 'Full set Core Client Indicator'!$A$3:$A$351, 0), MATCH(Selection_Hide2!U$5, 'Full set Core Client Indicator'!$A$3:$AB$3, 0))=\"\", \"\",  INDEX('Full set Core Client Indicator'!$A$3:$AB$351, MATCH(Selection_Hide2!$A260, 'Full set Core Client Indicator'!$A$3:$A$351, 0), MATCH(Selection_Hide2!U$5, 'Full set Core Client Indicator'!$A$3:$AB$3, 0))), \"\")","v":""},{"$f":"IF(U260<>\"\", IF(INDEX('Full set Core Client Indicator'!$A$3:$AB$351, MATCH(Selection_Hide2!$A260, 'Full set Core Client Indicator'!$A$3:$A$351, 0), MATCH(Selection_Hide2!V$5, 'Full set Core Client Indicator'!$A$3:$AB$3, 0))=\"\", \"\",  INDEX('Full set Core Client Indicator'!$A$3:$AB$351, MATCH(Selection_Hide2!$A260, 'Full set Core Client Indicator'!$A$3:$A$351, 0), MATCH(Selection_Hide2!V$5, 'Full set Core Client Indicator'!$A$3:$AB$3, 0))), \"\")","v":""},{"$f":"IF(V260<>\"\", IF(INDEX('Full set Core Client Indicator'!$A$3:$AB$351, MATCH(Selection_Hide2!$A260, 'Full set Core Client Indicator'!$A$3:$A$351, 0), MATCH(Selection_Hide2!W$5, 'Full set Core Client Indicator'!$A$3:$AB$3, 0))=\"\", \"\",  INDEX('Full set Core Client Indicator'!$A$3:$AB$351, MATCH(Selection_Hide2!$A260, 'Full set Core Client Indicator'!$A$3:$A$351, 0), MATCH(Selection_Hide2!W$5, 'Full set Core Client Indicator'!$A$3:$AB$3, 0))), \"\")","v":""},{"$f":"IF(W260<>\"\", IF(INDEX('Full set Core Client Indicator'!$A$3:$AB$351, MATCH(Selection_Hide2!$A260, 'Full set Core Client Indicator'!$A$3:$A$351, 0), MATCH(Selection_Hide2!X$5, 'Full set Core Client Indicator'!$A$3:$AB$3, 0))=\"\", \"\",  INDEX('Full set Core Client Indicator'!$A$3:$AB$351, MATCH(Selection_Hide2!$A260, 'Full set Core Client Indicator'!$A$3:$A$351, 0), MATCH(Selection_Hide2!X$5, 'Full set Core Client Indicator'!$A$3:$AB$3, 0))), \"\")","v":""},{"$f":"IF(X260<>\"\", IF(INDEX('Full set Core Client Indicator'!$A$3:$AB$351, MATCH(Selection_Hide2!$A260, 'Full set Core Client Indicator'!$A$3:$A$351, 0), MATCH(Selection_Hide2!Y$5, 'Full set Core Client Indicator'!$A$3:$AB$3, 0))=\"\", \"\",  INDEX('Full set Core Client Indicator'!$A$3:$AB$351, MATCH(Selection_Hide2!$A260, 'Full set Core Client Indicator'!$A$3:$A$351, 0), MATCH(Selection_Hide2!Y$5, 'Full set Core Client Indicator'!$A$3:$AB$3, 0))), \"\")","v":""},{"$f":"IF(Y260<>\"\", IF(INDEX('Full set Core Client Indicator'!$A$3:$AB$351, MATCH(Selection_Hide2!$A260, 'Full set Core Client Indicator'!$A$3:$A$351, 0), MATCH(Selection_Hide2!Z$5, 'Full set Core Client Indicator'!$A$3:$AB$3, 0))=\"\", \"\",  INDEX('Full set Core Client Indicator'!$A$3:$AB$351, MATCH(Selection_Hide2!$A260, 'Full set Core Client Indicator'!$A$3:$A$351, 0), MATCH(Selection_Hide2!Z$5, 'Full set Core Client Indicator'!$A$3:$AB$3, 0))), \"\")","v":""},{"$f":"IF(Z260<>\"\", IF(INDEX('Full set Core Client Indicator'!$A$3:$AB$351, MATCH(Selection_Hide2!$A260, 'Full set Core Client Indicator'!$A$3:$A$351, 0), MATCH(Selection_Hide2!AA$5, 'Full set Core Client Indicator'!$A$3:$AB$3, 0))=\"\", \"\",  INDEX('Full set Core Client Indicator'!$A$3:$AB$351, MATCH(Selection_Hide2!$A260, 'Full set Core Client Indicator'!$A$3:$A$351, 0), MATCH(Selection_Hide2!AA$5, 'Full set Core Client Indicator'!$A$3:$AB$3, 0))), \"\")","v":""},{"$f":"IF(AA260<>\"\", IF(INDEX('Full set Core Client Indicator'!$A$3:$AB$351, MATCH(Selection_Hide2!$A260, 'Full set Core Client Indicator'!$A$3:$A$351, 0), MATCH(Selection_Hide2!AB$5, 'Full set Core Client Indicator'!$A$3:$AB$3, 0))=\"\", \"\",  INDEX('Full set Core Client Indicator'!$A$3:$AB$351, MATCH(Selection_Hide2!$A260, 'Full set Core Client Indicator'!$A$3:$A$351, 0), MATCH(Selection_Hide2!AB$5, 'Full set Core Client Indicator'!$A$3:$AB$3, 0))), \"\")","v":""}]
[{"$f":"IF(AND(Selection_Hide1!C259<>0, Selection_Hide1!C259<>\"Grand Total\"), Selection_Hide1!C259, \"\")","v":""},{"$f":"IF(A261<>\"\", IF(INDEX('Full set Core Client Indicator'!$A$3:$AB$351, MATCH(Selection_Hide2!$A261, 'Full set Core Client Indicator'!$A$3:$A$351, 0), MATCH(Selection_Hide2!B$5, 'Full set Core Client Indicator'!$A$3:$AB$3, 0))=\"\", \"\",  INDEX('Full set Core Client Indicator'!$A$3:$AB$351, MATCH(Selection_Hide2!$A261, 'Full set Core Client Indicator'!$A$3:$A$351, 0), MATCH(Selection_Hide2!B$5, 'Full set Core Client Indicator'!$A$3:$AB$3, 0))), \"\")","v":""},{"$f":"IF(B261<>\"\", IF(INDEX('Full set Core Client Indicator'!$A$3:$AB$351, MATCH(Selection_Hide2!$A261, 'Full set Core Client Indicator'!$A$3:$A$351, 0), MATCH(Selection_Hide2!C$5, 'Full set Core Client Indicator'!$A$3:$AB$3, 0))=\"\", \"\",  INDEX('Full set Core Client Indicator'!$A$3:$AB$351, MATCH(Selection_Hide2!$A261, 'Full set Core Client Indicator'!$A$3:$A$351, 0), MATCH(Selection_Hide2!C$5, 'Full set Core Client Indicator'!$A$3:$AB$3, 0))), \"\")","v":""},{"$f":"IF(C261<>\"\", IF(INDEX('Full set Core Client Indicator'!$A$3:$AB$351, MATCH(Selection_Hide2!$A261, 'Full set Core Client Indicator'!$A$3:$A$351, 0), MATCH(Selection_Hide2!D$5, 'Full set Core Client Indicator'!$A$3:$AB$3, 0))=\"\", \"\",  INDEX('Full set Core Client Indicator'!$A$3:$AB$351, MATCH(Selection_Hide2!$A261, 'Full set Core Client Indicator'!$A$3:$A$351, 0), MATCH(Selection_Hide2!D$5, 'Full set Core Client Indicator'!$A$3:$AB$3, 0))), \"\")","v":""},{"$f":"IF(D261<>\"\", IF(INDEX('Full set Core Client Indicator'!$A$3:$AB$351, MATCH(Selection_Hide2!$A261, 'Full set Core Client Indicator'!$A$3:$A$351, 0), MATCH(Selection_Hide2!E$5, 'Full set Core Client Indicator'!$A$3:$AB$3, 0))=\"\", \"\",  INDEX('Full set Core Client Indicator'!$A$3:$AB$351, MATCH(Selection_Hide2!$A261, 'Full set Core Client Indicator'!$A$3:$A$351, 0), MATCH(Selection_Hide2!E$5, 'Full set Core Client Indicator'!$A$3:$AB$3, 0))), \"\")","v":""},{"$f":"IF(E261<>\"\", IF(INDEX('Full set Core Client Indicator'!$A$3:$AB$351, MATCH(Selection_Hide2!$A261, 'Full set Core Client Indicator'!$A$3:$A$351, 0), MATCH(Selection_Hide2!F$5, 'Full set Core Client Indicator'!$A$3:$AB$3, 0))=\"\", \"\",  INDEX('Full set Core Client Indicator'!$A$3:$AB$351, MATCH(Selection_Hide2!$A261, 'Full set Core Client Indicator'!$A$3:$A$351, 0), MATCH(Selection_Hide2!F$5, 'Full set Core Client Indicator'!$A$3:$AB$3, 0))), \"\")","v":""},{"$f":"IF(F261<>\"\", IF(INDEX('Full set Core Client Indicator'!$A$3:$AB$351, MATCH(Selection_Hide2!$A261, 'Full set Core Client Indicator'!$A$3:$A$351, 0), MATCH(Selection_Hide2!G$5, 'Full set Core Client Indicator'!$A$3:$AB$3, 0))=\"\", \"\",  INDEX('Full set Core Client Indicator'!$A$3:$AB$351, MATCH(Selection_Hide2!$A261, 'Full set Core Client Indicator'!$A$3:$A$351, 0), MATCH(Selection_Hide2!G$5, 'Full set Core Client Indicator'!$A$3:$AB$3, 0))), \"\")","v":""},{"$f":"IF(G261<>\"\", IF(INDEX('Full set Core Client Indicator'!$A$3:$AB$351, MATCH(Selection_Hide2!$A261, 'Full set Core Client Indicator'!$A$3:$A$351, 0), MATCH(Selection_Hide2!H$5, 'Full set Core Client Indicator'!$A$3:$AB$3, 0))=\"\", \"\",  INDEX('Full set Core Client Indicator'!$A$3:$AB$351, MATCH(Selection_Hide2!$A261, 'Full set Core Client Indicator'!$A$3:$A$351, 0), MATCH(Selection_Hide2!H$5, 'Full set Core Client Indicator'!$A$3:$AB$3, 0))), \"\")","v":""},{"$f":"IF(H261<>\"\", IF(INDEX('Full set Core Client Indicator'!$A$3:$AB$351, MATCH(Selection_Hide2!$A261, 'Full set Core Client Indicator'!$A$3:$A$351, 0), MATCH(Selection_Hide2!I$5, 'Full set Core Client Indicator'!$A$3:$AB$3, 0))=\"\", \"\",  INDEX('Full set Core Client Indicator'!$A$3:$AB$351, MATCH(Selection_Hide2!$A261, 'Full set Core Client Indicator'!$A$3:$A$351, 0), MATCH(Selection_Hide2!I$5, 'Full set Core Client Indicator'!$A$3:$AB$3, 0))), \"\")","v":""},{"$f":"IF(I261<>\"\", IF(INDEX('Full set Core Client Indicator'!$A$3:$AB$351, MATCH(Selection_Hide2!$A261, 'Full set Core Client Indicator'!$A$3:$A$351, 0), MATCH(Selection_Hide2!J$5, 'Full set Core Client Indicator'!$A$3:$AB$3, 0))=\"\", \"\",  INDEX('Full set Core Client Indicator'!$A$3:$AB$351, MATCH(Selection_Hide2!$A261, 'Full set Core Client Indicator'!$A$3:$A$351, 0), MATCH(Selection_Hide2!J$5, 'Full set Core Client Indicator'!$A$3:$AB$3, 0))), \"\")","v":""},{"$f":"IF(J261<>\"\", IF(INDEX('Full set Core Client Indicator'!$A$3:$AB$351, MATCH(Selection_Hide2!$A261, 'Full set Core Client Indicator'!$A$3:$A$351, 0), MATCH(Selection_Hide2!K$5, 'Full set Core Client Indicator'!$A$3:$AB$3, 0))=\"\", \"\",  INDEX('Full set Core Client Indicator'!$A$3:$AB$351, MATCH(Selection_Hide2!$A261, 'Full set Core Client Indicator'!$A$3:$A$351, 0), MATCH(Selection_Hide2!K$5, 'Full set Core Client Indicator'!$A$3:$AB$3, 0))), \"\")","v":""},{"$f":"IF(K261<>\"\", IF(INDEX('Full set Core Client Indicator'!$A$3:$AB$351, MATCH(Selection_Hide2!$A261, 'Full set Core Client Indicator'!$A$3:$A$351, 0), MATCH(Selection_Hide2!L$5, 'Full set Core Client Indicator'!$A$3:$AB$3, 0))=\"\", \"\",  INDEX('Full set Core Client Indicator'!$A$3:$AB$351, MATCH(Selection_Hide2!$A261, 'Full set Core Client Indicator'!$A$3:$A$351, 0), MATCH(Selection_Hide2!L$5, 'Full set Core Client Indicator'!$A$3:$AB$3, 0))), \"\")","v":""},{"$f":"IF(L261<>\"\", IF(INDEX('Full set Core Client Indicator'!$A$3:$AB$351, MATCH(Selection_Hide2!$A261, 'Full set Core Client Indicator'!$A$3:$A$351, 0), MATCH(Selection_Hide2!M$5, 'Full set Core Client Indicator'!$A$3:$AB$3, 0))=\"\", \"\",  INDEX('Full set Core Client Indicator'!$A$3:$AB$351, MATCH(Selection_Hide2!$A261, 'Full set Core Client Indicator'!$A$3:$A$351, 0), MATCH(Selection_Hide2!M$5, 'Full set Core Client Indicator'!$A$3:$AB$3, 0))), \"\")","v":""},{"$f":"IF(M261<>\"\", IF(INDEX('Full set Core Client Indicator'!$A$3:$AB$351, MATCH(Selection_Hide2!$A261, 'Full set Core Client Indicator'!$A$3:$A$351, 0), MATCH(Selection_Hide2!N$5, 'Full set Core Client Indicator'!$A$3:$AB$3, 0))=\"\", \"\",  INDEX('Full set Core Client Indicator'!$A$3:$AB$351, MATCH(Selection_Hide2!$A261, 'Full set Core Client Indicator'!$A$3:$A$351, 0), MATCH(Selection_Hide2!N$5, 'Full set Core Client Indicator'!$A$3:$AB$3, 0))), \"\")","v":""},{"$f":"IF(N261<>\"\", IF(INDEX('Full set Core Client Indicator'!$A$3:$AB$351, MATCH(Selection_Hide2!$A261, 'Full set Core Client Indicator'!$A$3:$A$351, 0), MATCH(Selection_Hide2!O$5, 'Full set Core Client Indicator'!$A$3:$AB$3, 0))=\"\", \"\",  INDEX('Full set Core Client Indicator'!$A$3:$AB$351, MATCH(Selection_Hide2!$A261, 'Full set Core Client Indicator'!$A$3:$A$351, 0), MATCH(Selection_Hide2!O$5, 'Full set Core Client Indicator'!$A$3:$AB$3, 0))), \"\")","v":""},{"$f":"IF(O261<>\"\", IF(INDEX('Full set Core Client Indicator'!$A$3:$AB$351, MATCH(Selection_Hide2!$A261, 'Full set Core Client Indicator'!$A$3:$A$351, 0), MATCH(Selection_Hide2!P$5, 'Full set Core Client Indicator'!$A$3:$AB$3, 0))=\"\", \"\",  INDEX('Full set Core Client Indicator'!$A$3:$AB$351, MATCH(Selection_Hide2!$A261, 'Full set Core Client Indicator'!$A$3:$A$351, 0), MATCH(Selection_Hide2!P$5, 'Full set Core Client Indicator'!$A$3:$AB$3, 0))), \"\")","v":""},{"$f":"IF(P261<>\"\", IF(INDEX('Full set Core Client Indicator'!$A$3:$AB$351, MATCH(Selection_Hide2!$A261, 'Full set Core Client Indicator'!$A$3:$A$351, 0), MATCH(Selection_Hide2!Q$5, 'Full set Core Client Indicator'!$A$3:$AB$3, 0))=\"\", \"\",  INDEX('Full set Core Client Indicator'!$A$3:$AB$351, MATCH(Selection_Hide2!$A261, 'Full set Core Client Indicator'!$A$3:$A$351, 0), MATCH(Selection_Hide2!Q$5, 'Full set Core Client Indicator'!$A$3:$AB$3, 0))), \"\")","v":""},{"$f":"IF(Q261<>\"\", IF(INDEX('Full set Core Client Indicator'!$A$3:$AB$351, MATCH(Selection_Hide2!$A261, 'Full set Core Client Indicator'!$A$3:$A$351, 0), MATCH(Selection_Hide2!R$5, 'Full set Core Client Indicator'!$A$3:$AB$3, 0))=\"\", \"\",  INDEX('Full set Core Client Indicator'!$A$3:$AB$351, MATCH(Selection_Hide2!$A261, 'Full set Core Client Indicator'!$A$3:$A$351, 0), MATCH(Selection_Hide2!R$5, 'Full set Core Client Indicator'!$A$3:$AB$3, 0))), \"\")","v":""},{"$f":"IF(R261<>\"\", IF(INDEX('Full set Core Client Indicator'!$A$3:$AB$351, MATCH(Selection_Hide2!$A261, 'Full set Core Client Indicator'!$A$3:$A$351, 0), MATCH(Selection_Hide2!S$5, 'Full set Core Client Indicator'!$A$3:$AB$3, 0))=\"\", \"\",  INDEX('Full set Core Client Indicator'!$A$3:$AB$351, MATCH(Selection_Hide2!$A261, 'Full set Core Client Indicator'!$A$3:$A$351, 0), MATCH(Selection_Hide2!S$5, 'Full set Core Client Indicator'!$A$3:$AB$3, 0))), \"\")","v":""},{"$f":"IF(S261<>\"\", IF(INDEX('Full set Core Client Indicator'!$A$3:$AB$351, MATCH(Selection_Hide2!$A261, 'Full set Core Client Indicator'!$A$3:$A$351, 0), MATCH(Selection_Hide2!T$5, 'Full set Core Client Indicator'!$A$3:$AB$3, 0))=\"\", \"\",  INDEX('Full set Core Client Indicator'!$A$3:$AB$351, MATCH(Selection_Hide2!$A261, 'Full set Core Client Indicator'!$A$3:$A$351, 0), MATCH(Selection_Hide2!T$5, 'Full set Core Client Indicator'!$A$3:$AB$3, 0))), \"\")","v":""},{"$f":"IF(T261<>\"\", IF(INDEX('Full set Core Client Indicator'!$A$3:$AB$351, MATCH(Selection_Hide2!$A261, 'Full set Core Client Indicator'!$A$3:$A$351, 0), MATCH(Selection_Hide2!U$5, 'Full set Core Client Indicator'!$A$3:$AB$3, 0))=\"\", \"\",  INDEX('Full set Core Client Indicator'!$A$3:$AB$351, MATCH(Selection_Hide2!$A261, 'Full set Core Client Indicator'!$A$3:$A$351, 0), MATCH(Selection_Hide2!U$5, 'Full set Core Client Indicator'!$A$3:$AB$3, 0))), \"\")","v":""},{"$f":"IF(U261<>\"\", IF(INDEX('Full set Core Client Indicator'!$A$3:$AB$351, MATCH(Selection_Hide2!$A261, 'Full set Core Client Indicator'!$A$3:$A$351, 0), MATCH(Selection_Hide2!V$5, 'Full set Core Client Indicator'!$A$3:$AB$3, 0))=\"\", \"\",  INDEX('Full set Core Client Indicator'!$A$3:$AB$351, MATCH(Selection_Hide2!$A261, 'Full set Core Client Indicator'!$A$3:$A$351, 0), MATCH(Selection_Hide2!V$5, 'Full set Core Client Indicator'!$A$3:$AB$3, 0))), \"\")","v":""},{"$f":"IF(V261<>\"\", IF(INDEX('Full set Core Client Indicator'!$A$3:$AB$351, MATCH(Selection_Hide2!$A261, 'Full set Core Client Indicator'!$A$3:$A$351, 0), MATCH(Selection_Hide2!W$5, 'Full set Core Client Indicator'!$A$3:$AB$3, 0))=\"\", \"\",  INDEX('Full set Core Client Indicator'!$A$3:$AB$351, MATCH(Selection_Hide2!$A261, 'Full set Core Client Indicator'!$A$3:$A$351, 0), MATCH(Selection_Hide2!W$5, 'Full set Core Client Indicator'!$A$3:$AB$3, 0))), \"\")","v":""},{"$f":"IF(W261<>\"\", IF(INDEX('Full set Core Client Indicator'!$A$3:$AB$351, MATCH(Selection_Hide2!$A261, 'Full set Core Client Indicator'!$A$3:$A$351, 0), MATCH(Selection_Hide2!X$5, 'Full set Core Client Indicator'!$A$3:$AB$3, 0))=\"\", \"\",  INDEX('Full set Core Client Indicator'!$A$3:$AB$351, MATCH(Selection_Hide2!$A261, 'Full set Core Client Indicator'!$A$3:$A$351, 0), MATCH(Selection_Hide2!X$5, 'Full set Core Client Indicator'!$A$3:$AB$3, 0))), \"\")","v":""},{"$f":"IF(X261<>\"\", IF(INDEX('Full set Core Client Indicator'!$A$3:$AB$351, MATCH(Selection_Hide2!$A261, 'Full set Core Client Indicator'!$A$3:$A$351, 0), MATCH(Selection_Hide2!Y$5, 'Full set Core Client Indicator'!$A$3:$AB$3, 0))=\"\", \"\",  INDEX('Full set Core Client Indicator'!$A$3:$AB$351, MATCH(Selection_Hide2!$A261, 'Full set Core Client Indicator'!$A$3:$A$351, 0), MATCH(Selection_Hide2!Y$5, 'Full set Core Client Indicator'!$A$3:$AB$3, 0))), \"\")","v":""},{"$f":"IF(Y261<>\"\", IF(INDEX('Full set Core Client Indicator'!$A$3:$AB$351, MATCH(Selection_Hide2!$A261, 'Full set Core Client Indicator'!$A$3:$A$351, 0), MATCH(Selection_Hide2!Z$5, 'Full set Core Client Indicator'!$A$3:$AB$3, 0))=\"\", \"\",  INDEX('Full set Core Client Indicator'!$A$3:$AB$351, MATCH(Selection_Hide2!$A261, 'Full set Core Client Indicator'!$A$3:$A$351, 0), MATCH(Selection_Hide2!Z$5, 'Full set Core Client Indicator'!$A$3:$AB$3, 0))), \"\")","v":""},{"$f":"IF(Z261<>\"\", IF(INDEX('Full set Core Client Indicator'!$A$3:$AB$351, MATCH(Selection_Hide2!$A261, 'Full set Core Client Indicator'!$A$3:$A$351, 0), MATCH(Selection_Hide2!AA$5, 'Full set Core Client Indicator'!$A$3:$AB$3, 0))=\"\", \"\",  INDEX('Full set Core Client Indicator'!$A$3:$AB$351, MATCH(Selection_Hide2!$A261, 'Full set Core Client Indicator'!$A$3:$A$351, 0), MATCH(Selection_Hide2!AA$5, 'Full set Core Client Indicator'!$A$3:$AB$3, 0))), \"\")","v":""},{"$f":"IF(AA261<>\"\", IF(INDEX('Full set Core Client Indicator'!$A$3:$AB$351, MATCH(Selection_Hide2!$A261, 'Full set Core Client Indicator'!$A$3:$A$351, 0), MATCH(Selection_Hide2!AB$5, 'Full set Core Client Indicator'!$A$3:$AB$3, 0))=\"\", \"\",  INDEX('Full set Core Client Indicator'!$A$3:$AB$351, MATCH(Selection_Hide2!$A261, 'Full set Core Client Indicator'!$A$3:$A$351, 0), MATCH(Selection_Hide2!AB$5, 'Full set Core Client Indicator'!$A$3:$AB$3, 0))), \"\")","v":""}]
[{"$f":"IF(AND(Selection_Hide1!C260<>0, Selection_Hide1!C260<>\"Grand Total\"), Selection_Hide1!C260, \"\")","v":""},{"$f":"IF(A262<>\"\", IF(INDEX('Full set Core Client Indicator'!$A$3:$AB$351, MATCH(Selection_Hide2!$A262, 'Full set Core Client Indicator'!$A$3:$A$351, 0), MATCH(Selection_Hide2!B$5, 'Full set Core Client Indicator'!$A$3:$AB$3, 0))=\"\", \"\",  INDEX('Full set Core Client Indicator'!$A$3:$AB$351, MATCH(Selection_Hide2!$A262, 'Full set Core Client Indicator'!$A$3:$A$351, 0), MATCH(Selection_Hide2!B$5, 'Full set Core Client Indicator'!$A$3:$AB$3, 0))), \"\")","v":""},{"$f":"IF(B262<>\"\", IF(INDEX('Full set Core Client Indicator'!$A$3:$AB$351, MATCH(Selection_Hide2!$A262, 'Full set Core Client Indicator'!$A$3:$A$351, 0), MATCH(Selection_Hide2!C$5, 'Full set Core Client Indicator'!$A$3:$AB$3, 0))=\"\", \"\",  INDEX('Full set Core Client Indicator'!$A$3:$AB$351, MATCH(Selection_Hide2!$A262, 'Full set Core Client Indicator'!$A$3:$A$351, 0), MATCH(Selection_Hide2!C$5, 'Full set Core Client Indicator'!$A$3:$AB$3, 0))), \"\")","v":""},{"$f":"IF(C262<>\"\", IF(INDEX('Full set Core Client Indicator'!$A$3:$AB$351, MATCH(Selection_Hide2!$A262, 'Full set Core Client Indicator'!$A$3:$A$351, 0), MATCH(Selection_Hide2!D$5, 'Full set Core Client Indicator'!$A$3:$AB$3, 0))=\"\", \"\",  INDEX('Full set Core Client Indicator'!$A$3:$AB$351, MATCH(Selection_Hide2!$A262, 'Full set Core Client Indicator'!$A$3:$A$351, 0), MATCH(Selection_Hide2!D$5, 'Full set Core Client Indicator'!$A$3:$AB$3, 0))), \"\")","v":""},{"$f":"IF(D262<>\"\", IF(INDEX('Full set Core Client Indicator'!$A$3:$AB$351, MATCH(Selection_Hide2!$A262, 'Full set Core Client Indicator'!$A$3:$A$351, 0), MATCH(Selection_Hide2!E$5, 'Full set Core Client Indicator'!$A$3:$AB$3, 0))=\"\", \"\",  INDEX('Full set Core Client Indicator'!$A$3:$AB$351, MATCH(Selection_Hide2!$A262, 'Full set Core Client Indicator'!$A$3:$A$351, 0), MATCH(Selection_Hide2!E$5, 'Full set Core Client Indicator'!$A$3:$AB$3, 0))), \"\")","v":""},{"$f":"IF(E262<>\"\", IF(INDEX('Full set Core Client Indicator'!$A$3:$AB$351, MATCH(Selection_Hide2!$A262, 'Full set Core Client Indicator'!$A$3:$A$351, 0), MATCH(Selection_Hide2!F$5, 'Full set Core Client Indicator'!$A$3:$AB$3, 0))=\"\", \"\",  INDEX('Full set Core Client Indicator'!$A$3:$AB$351, MATCH(Selection_Hide2!$A262, 'Full set Core Client Indicator'!$A$3:$A$351, 0), MATCH(Selection_Hide2!F$5, 'Full set Core Client Indicator'!$A$3:$AB$3, 0))), \"\")","v":""},{"$f":"IF(F262<>\"\", IF(INDEX('Full set Core Client Indicator'!$A$3:$AB$351, MATCH(Selection_Hide2!$A262, 'Full set Core Client Indicator'!$A$3:$A$351, 0), MATCH(Selection_Hide2!G$5, 'Full set Core Client Indicator'!$A$3:$AB$3, 0))=\"\", \"\",  INDEX('Full set Core Client Indicator'!$A$3:$AB$351, MATCH(Selection_Hide2!$A262, 'Full set Core Client Indicator'!$A$3:$A$351, 0), MATCH(Selection_Hide2!G$5, 'Full set Core Client Indicator'!$A$3:$AB$3, 0))), \"\")","v":""},{"$f":"IF(G262<>\"\", IF(INDEX('Full set Core Client Indicator'!$A$3:$AB$351, MATCH(Selection_Hide2!$A262, 'Full set Core Client Indicator'!$A$3:$A$351, 0), MATCH(Selection_Hide2!H$5, 'Full set Core Client Indicator'!$A$3:$AB$3, 0))=\"\", \"\",  INDEX('Full set Core Client Indicator'!$A$3:$AB$351, MATCH(Selection_Hide2!$A262, 'Full set Core Client Indicator'!$A$3:$A$351, 0), MATCH(Selection_Hide2!H$5, 'Full set Core Client Indicator'!$A$3:$AB$3, 0))), \"\")","v":""},{"$f":"IF(H262<>\"\", IF(INDEX('Full set Core Client Indicator'!$A$3:$AB$351, MATCH(Selection_Hide2!$A262, 'Full set Core Client Indicator'!$A$3:$A$351, 0), MATCH(Selection_Hide2!I$5, 'Full set Core Client Indicator'!$A$3:$AB$3, 0))=\"\", \"\",  INDEX('Full set Core Client Indicator'!$A$3:$AB$351, MATCH(Selection_Hide2!$A262, 'Full set Core Client Indicator'!$A$3:$A$351, 0), MATCH(Selection_Hide2!I$5, 'Full set Core Client Indicator'!$A$3:$AB$3, 0))), \"\")","v":""},{"$f":"IF(I262<>\"\", IF(INDEX('Full set Core Client Indicator'!$A$3:$AB$351, MATCH(Selection_Hide2!$A262, 'Full set Core Client Indicator'!$A$3:$A$351, 0), MATCH(Selection_Hide2!J$5, 'Full set Core Client Indicator'!$A$3:$AB$3, 0))=\"\", \"\",  INDEX('Full set Core Client Indicator'!$A$3:$AB$351, MATCH(Selection_Hide2!$A262, 'Full set Core Client Indicator'!$A$3:$A$351, 0), MATCH(Selection_Hide2!J$5, 'Full set Core Client Indicator'!$A$3:$AB$3, 0))), \"\")","v":""},{"$f":"IF(J262<>\"\", IF(INDEX('Full set Core Client Indicator'!$A$3:$AB$351, MATCH(Selection_Hide2!$A262, 'Full set Core Client Indicator'!$A$3:$A$351, 0), MATCH(Selection_Hide2!K$5, 'Full set Core Client Indicator'!$A$3:$AB$3, 0))=\"\", \"\",  INDEX('Full set Core Client Indicator'!$A$3:$AB$351, MATCH(Selection_Hide2!$A262, 'Full set Core Client Indicator'!$A$3:$A$351, 0), MATCH(Selection_Hide2!K$5, 'Full set Core Client Indicator'!$A$3:$AB$3, 0))), \"\")","v":""},{"$f":"IF(K262<>\"\", IF(INDEX('Full set Core Client Indicator'!$A$3:$AB$351, MATCH(Selection_Hide2!$A262, 'Full set Core Client Indicator'!$A$3:$A$351, 0), MATCH(Selection_Hide2!L$5, 'Full set Core Client Indicator'!$A$3:$AB$3, 0))=\"\", \"\",  INDEX('Full set Core Client Indicator'!$A$3:$AB$351, MATCH(Selection_Hide2!$A262, 'Full set Core Client Indicator'!$A$3:$A$351, 0), MATCH(Selection_Hide2!L$5, 'Full set Core Client Indicator'!$A$3:$AB$3, 0))), \"\")","v":""},{"$f":"IF(L262<>\"\", IF(INDEX('Full set Core Client Indicator'!$A$3:$AB$351, MATCH(Selection_Hide2!$A262, 'Full set Core Client Indicator'!$A$3:$A$351, 0), MATCH(Selection_Hide2!M$5, 'Full set Core Client Indicator'!$A$3:$AB$3, 0))=\"\", \"\",  INDEX('Full set Core Client Indicator'!$A$3:$AB$351, MATCH(Selection_Hide2!$A262, 'Full set Core Client Indicator'!$A$3:$A$351, 0), MATCH(Selection_Hide2!M$5, 'Full set Core Client Indicator'!$A$3:$AB$3, 0))), \"\")","v":""},{"$f":"IF(M262<>\"\", IF(INDEX('Full set Core Client Indicator'!$A$3:$AB$351, MATCH(Selection_Hide2!$A262, 'Full set Core Client Indicator'!$A$3:$A$351, 0), MATCH(Selection_Hide2!N$5, 'Full set Core Client Indicator'!$A$3:$AB$3, 0))=\"\", \"\",  INDEX('Full set Core Client Indicator'!$A$3:$AB$351, MATCH(Selection_Hide2!$A262, 'Full set Core Client Indicator'!$A$3:$A$351, 0), MATCH(Selection_Hide2!N$5, 'Full set Core Client Indicator'!$A$3:$AB$3, 0))), \"\")","v":""},{"$f":"IF(N262<>\"\", IF(INDEX('Full set Core Client Indicator'!$A$3:$AB$351, MATCH(Selection_Hide2!$A262, 'Full set Core Client Indicator'!$A$3:$A$351, 0), MATCH(Selection_Hide2!O$5, 'Full set Core Client Indicator'!$A$3:$AB$3, 0))=\"\", \"\",  INDEX('Full set Core Client Indicator'!$A$3:$AB$351, MATCH(Selection_Hide2!$A262, 'Full set Core Client Indicator'!$A$3:$A$351, 0), MATCH(Selection_Hide2!O$5, 'Full set Core Client Indicator'!$A$3:$AB$3, 0))), \"\")","v":""},{"$f":"IF(O262<>\"\", IF(INDEX('Full set Core Client Indicator'!$A$3:$AB$351, MATCH(Selection_Hide2!$A262, 'Full set Core Client Indicator'!$A$3:$A$351, 0), MATCH(Selection_Hide2!P$5, 'Full set Core Client Indicator'!$A$3:$AB$3, 0))=\"\", \"\",  INDEX('Full set Core Client Indicator'!$A$3:$AB$351, MATCH(Selection_Hide2!$A262, 'Full set Core Client Indicator'!$A$3:$A$351, 0), MATCH(Selection_Hide2!P$5, 'Full set Core Client Indicator'!$A$3:$AB$3, 0))), \"\")","v":""},{"$f":"IF(P262<>\"\", IF(INDEX('Full set Core Client Indicator'!$A$3:$AB$351, MATCH(Selection_Hide2!$A262, 'Full set Core Client Indicator'!$A$3:$A$351, 0), MATCH(Selection_Hide2!Q$5, 'Full set Core Client Indicator'!$A$3:$AB$3, 0))=\"\", \"\",  INDEX('Full set Core Client Indicator'!$A$3:$AB$351, MATCH(Selection_Hide2!$A262, 'Full set Core Client Indicator'!$A$3:$A$351, 0), MATCH(Selection_Hide2!Q$5, 'Full set Core Client Indicator'!$A$3:$AB$3, 0))), \"\")","v":""},{"$f":"IF(Q262<>\"\", IF(INDEX('Full set Core Client Indicator'!$A$3:$AB$351, MATCH(Selection_Hide2!$A262, 'Full set Core Client Indicator'!$A$3:$A$351, 0), MATCH(Selection_Hide2!R$5, 'Full set Core Client Indicator'!$A$3:$AB$3, 0))=\"\", \"\",  INDEX('Full set Core Client Indicator'!$A$3:$AB$351, MATCH(Selection_Hide2!$A262, 'Full set Core Client Indicator'!$A$3:$A$351, 0), MATCH(Selection_Hide2!R$5, 'Full set Core Client Indicator'!$A$3:$AB$3, 0))), \"\")","v":""},{"$f":"IF(R262<>\"\", IF(INDEX('Full set Core Client Indicator'!$A$3:$AB$351, MATCH(Selection_Hide2!$A262, 'Full set Core Client Indicator'!$A$3:$A$351, 0), MATCH(Selection_Hide2!S$5, 'Full set Core Client Indicator'!$A$3:$AB$3, 0))=\"\", \"\",  INDEX('Full set Core Client Indicator'!$A$3:$AB$351, MATCH(Selection_Hide2!$A262, 'Full set Core Client Indicator'!$A$3:$A$351, 0), MATCH(Selection_Hide2!S$5, 'Full set Core Client Indicator'!$A$3:$AB$3, 0))), \"\")","v":""},{"$f":"IF(S262<>\"\", IF(INDEX('Full set Core Client Indicator'!$A$3:$AB$351, MATCH(Selection_Hide2!$A262, 'Full set Core Client Indicator'!$A$3:$A$351, 0), MATCH(Selection_Hide2!T$5, 'Full set Core Client Indicator'!$A$3:$AB$3, 0))=\"\", \"\",  INDEX('Full set Core Client Indicator'!$A$3:$AB$351, MATCH(Selection_Hide2!$A262, 'Full set Core Client Indicator'!$A$3:$A$351, 0), MATCH(Selection_Hide2!T$5, 'Full set Core Client Indicator'!$A$3:$AB$3, 0))), \"\")","v":""},{"$f":"IF(T262<>\"\", IF(INDEX('Full set Core Client Indicator'!$A$3:$AB$351, MATCH(Selection_Hide2!$A262, 'Full set Core Client Indicator'!$A$3:$A$351, 0), MATCH(Selection_Hide2!U$5, 'Full set Core Client Indicator'!$A$3:$AB$3, 0))=\"\", \"\",  INDEX('Full set Core Client Indicator'!$A$3:$AB$351, MATCH(Selection_Hide2!$A262, 'Full set Core Client Indicator'!$A$3:$A$351, 0), MATCH(Selection_Hide2!U$5, 'Full set Core Client Indicator'!$A$3:$AB$3, 0))), \"\")","v":""},{"$f":"IF(U262<>\"\", IF(INDEX('Full set Core Client Indicator'!$A$3:$AB$351, MATCH(Selection_Hide2!$A262, 'Full set Core Client Indicator'!$A$3:$A$351, 0), MATCH(Selection_Hide2!V$5, 'Full set Core Client Indicator'!$A$3:$AB$3, 0))=\"\", \"\",  INDEX('Full set Core Client Indicator'!$A$3:$AB$351, MATCH(Selection_Hide2!$A262, 'Full set Core Client Indicator'!$A$3:$A$351, 0), MATCH(Selection_Hide2!V$5, 'Full set Core Client Indicator'!$A$3:$AB$3, 0))), \"\")","v":""},{"$f":"IF(V262<>\"\", IF(INDEX('Full set Core Client Indicator'!$A$3:$AB$351, MATCH(Selection_Hide2!$A262, 'Full set Core Client Indicator'!$A$3:$A$351, 0), MATCH(Selection_Hide2!W$5, 'Full set Core Client Indicator'!$A$3:$AB$3, 0))=\"\", \"\",  INDEX('Full set Core Client Indicator'!$A$3:$AB$351, MATCH(Selection_Hide2!$A262, 'Full set Core Client Indicator'!$A$3:$A$351, 0), MATCH(Selection_Hide2!W$5, 'Full set Core Client Indicator'!$A$3:$AB$3, 0))), \"\")","v":""},{"$f":"IF(W262<>\"\", IF(INDEX('Full set Core Client Indicator'!$A$3:$AB$351, MATCH(Selection_Hide2!$A262, 'Full set Core Client Indicator'!$A$3:$A$351, 0), MATCH(Selection_Hide2!X$5, 'Full set Core Client Indicator'!$A$3:$AB$3, 0))=\"\", \"\",  INDEX('Full set Core Client Indicator'!$A$3:$AB$351, MATCH(Selection_Hide2!$A262, 'Full set Core Client Indicator'!$A$3:$A$351, 0), MATCH(Selection_Hide2!X$5, 'Full set Core Client Indicator'!$A$3:$AB$3, 0))), \"\")","v":""},{"$f":"IF(X262<>\"\", IF(INDEX('Full set Core Client Indicator'!$A$3:$AB$351, MATCH(Selection_Hide2!$A262, 'Full set Core Client Indicator'!$A$3:$A$351, 0), MATCH(Selection_Hide2!Y$5, 'Full set Core Client Indicator'!$A$3:$AB$3, 0))=\"\", \"\",  INDEX('Full set Core Client Indicator'!$A$3:$AB$351, MATCH(Selection_Hide2!$A262, 'Full set Core Client Indicator'!$A$3:$A$351, 0), MATCH(Selection_Hide2!Y$5, 'Full set Core Client Indicator'!$A$3:$AB$3, 0))), \"\")","v":""},{"$f":"IF(Y262<>\"\", IF(INDEX('Full set Core Client Indicator'!$A$3:$AB$351, MATCH(Selection_Hide2!$A262, 'Full set Core Client Indicator'!$A$3:$A$351, 0), MATCH(Selection_Hide2!Z$5, 'Full set Core Client Indicator'!$A$3:$AB$3, 0))=\"\", \"\",  INDEX('Full set Core Client Indicator'!$A$3:$AB$351, MATCH(Selection_Hide2!$A262, 'Full set Core Client Indicator'!$A$3:$A$351, 0), MATCH(Selection_Hide2!Z$5, 'Full set Core Client Indicator'!$A$3:$AB$3, 0))), \"\")","v":""},{"$f":"IF(Z262<>\"\", IF(INDEX('Full set Core Client Indicator'!$A$3:$AB$351, MATCH(Selection_Hide2!$A262, 'Full set Core Client Indicator'!$A$3:$A$351, 0), MATCH(Selection_Hide2!AA$5, 'Full set Core Client Indicator'!$A$3:$AB$3, 0))=\"\", \"\",  INDEX('Full set Core Client Indicator'!$A$3:$AB$351, MATCH(Selection_Hide2!$A262, 'Full set Core Client Indicator'!$A$3:$A$351, 0), MATCH(Selection_Hide2!AA$5, 'Full set Core Client Indicator'!$A$3:$AB$3, 0))), \"\")","v":""},{"$f":"IF(AA262<>\"\", IF(INDEX('Full set Core Client Indicator'!$A$3:$AB$351, MATCH(Selection_Hide2!$A262, 'Full set Core Client Indicator'!$A$3:$A$351, 0), MATCH(Selection_Hide2!AB$5, 'Full set Core Client Indicator'!$A$3:$AB$3, 0))=\"\", \"\",  INDEX('Full set Core Client Indicator'!$A$3:$AB$351, MATCH(Selection_Hide2!$A262, 'Full set Core Client Indicator'!$A$3:$A$351, 0), MATCH(Selection_Hide2!AB$5, 'Full set Core Client Indicator'!$A$3:$AB$3, 0))), \"\")","v":""}]
[{"$f":"IF(AND(Selection_Hide1!C261<>0, Selection_Hide1!C261<>\"Grand Total\"), Selection_Hide1!C261, \"\")","v":""},{"$f":"IF(A263<>\"\", IF(INDEX('Full set Core Client Indicator'!$A$3:$AB$351, MATCH(Selection_Hide2!$A263, 'Full set Core Client Indicator'!$A$3:$A$351, 0), MATCH(Selection_Hide2!B$5, 'Full set Core Client Indicator'!$A$3:$AB$3, 0))=\"\", \"\",  INDEX('Full set Core Client Indicator'!$A$3:$AB$351, MATCH(Selection_Hide2!$A263, 'Full set Core Client Indicator'!$A$3:$A$351, 0), MATCH(Selection_Hide2!B$5, 'Full set Core Client Indicator'!$A$3:$AB$3, 0))), \"\")","v":""},{"$f":"IF(B263<>\"\", IF(INDEX('Full set Core Client Indicator'!$A$3:$AB$351, MATCH(Selection_Hide2!$A263, 'Full set Core Client Indicator'!$A$3:$A$351, 0), MATCH(Selection_Hide2!C$5, 'Full set Core Client Indicator'!$A$3:$AB$3, 0))=\"\", \"\",  INDEX('Full set Core Client Indicator'!$A$3:$AB$351, MATCH(Selection_Hide2!$A263, 'Full set Core Client Indicator'!$A$3:$A$351, 0), MATCH(Selection_Hide2!C$5, 'Full set Core Client Indicator'!$A$3:$AB$3, 0))), \"\")","v":""},{"$f":"IF(C263<>\"\", IF(INDEX('Full set Core Client Indicator'!$A$3:$AB$351, MATCH(Selection_Hide2!$A263, 'Full set Core Client Indicator'!$A$3:$A$351, 0), MATCH(Selection_Hide2!D$5, 'Full set Core Client Indicator'!$A$3:$AB$3, 0))=\"\", \"\",  INDEX('Full set Core Client Indicator'!$A$3:$AB$351, MATCH(Selection_Hide2!$A263, 'Full set Core Client Indicator'!$A$3:$A$351, 0), MATCH(Selection_Hide2!D$5, 'Full set Core Client Indicator'!$A$3:$AB$3, 0))), \"\")","v":""},{"$f":"IF(D263<>\"\", IF(INDEX('Full set Core Client Indicator'!$A$3:$AB$351, MATCH(Selection_Hide2!$A263, 'Full set Core Client Indicator'!$A$3:$A$351, 0), MATCH(Selection_Hide2!E$5, 'Full set Core Client Indicator'!$A$3:$AB$3, 0))=\"\", \"\",  INDEX('Full set Core Client Indicator'!$A$3:$AB$351, MATCH(Selection_Hide2!$A263, 'Full set Core Client Indicator'!$A$3:$A$351, 0), MATCH(Selection_Hide2!E$5, 'Full set Core Client Indicator'!$A$3:$AB$3, 0))), \"\")","v":""},{"$f":"IF(E263<>\"\", IF(INDEX('Full set Core Client Indicator'!$A$3:$AB$351, MATCH(Selection_Hide2!$A263, 'Full set Core Client Indicator'!$A$3:$A$351, 0), MATCH(Selection_Hide2!F$5, 'Full set Core Client Indicator'!$A$3:$AB$3, 0))=\"\", \"\",  INDEX('Full set Core Client Indicator'!$A$3:$AB$351, MATCH(Selection_Hide2!$A263, 'Full set Core Client Indicator'!$A$3:$A$351, 0), MATCH(Selection_Hide2!F$5, 'Full set Core Client Indicator'!$A$3:$AB$3, 0))), \"\")","v":""},{"$f":"IF(F263<>\"\", IF(INDEX('Full set Core Client Indicator'!$A$3:$AB$351, MATCH(Selection_Hide2!$A263, 'Full set Core Client Indicator'!$A$3:$A$351, 0), MATCH(Selection_Hide2!G$5, 'Full set Core Client Indicator'!$A$3:$AB$3, 0))=\"\", \"\",  INDEX('Full set Core Client Indicator'!$A$3:$AB$351, MATCH(Selection_Hide2!$A263, 'Full set Core Client Indicator'!$A$3:$A$351, 0), MATCH(Selection_Hide2!G$5, 'Full set Core Client Indicator'!$A$3:$AB$3, 0))), \"\")","v":""},{"$f":"IF(G263<>\"\", IF(INDEX('Full set Core Client Indicator'!$A$3:$AB$351, MATCH(Selection_Hide2!$A263, 'Full set Core Client Indicator'!$A$3:$A$351, 0), MATCH(Selection_Hide2!H$5, 'Full set Core Client Indicator'!$A$3:$AB$3, 0))=\"\", \"\",  INDEX('Full set Core Client Indicator'!$A$3:$AB$351, MATCH(Selection_Hide2!$A263, 'Full set Core Client Indicator'!$A$3:$A$351, 0), MATCH(Selection_Hide2!H$5, 'Full set Core Client Indicator'!$A$3:$AB$3, 0))), \"\")","v":""},{"$f":"IF(H263<>\"\", IF(INDEX('Full set Core Client Indicator'!$A$3:$AB$351, MATCH(Selection_Hide2!$A263, 'Full set Core Client Indicator'!$A$3:$A$351, 0), MATCH(Selection_Hide2!I$5, 'Full set Core Client Indicator'!$A$3:$AB$3, 0))=\"\", \"\",  INDEX('Full set Core Client Indicator'!$A$3:$AB$351, MATCH(Selection_Hide2!$A263, 'Full set Core Client Indicator'!$A$3:$A$351, 0), MATCH(Selection_Hide2!I$5, 'Full set Core Client Indicator'!$A$3:$AB$3, 0))), \"\")","v":""},{"$f":"IF(I263<>\"\", IF(INDEX('Full set Core Client Indicator'!$A$3:$AB$351, MATCH(Selection_Hide2!$A263, 'Full set Core Client Indicator'!$A$3:$A$351, 0), MATCH(Selection_Hide2!J$5, 'Full set Core Client Indicator'!$A$3:$AB$3, 0))=\"\", \"\",  INDEX('Full set Core Client Indicator'!$A$3:$AB$351, MATCH(Selection_Hide2!$A263, 'Full set Core Client Indicator'!$A$3:$A$351, 0), MATCH(Selection_Hide2!J$5, 'Full set Core Client Indicator'!$A$3:$AB$3, 0))), \"\")","v":""},{"$f":"IF(J263<>\"\", IF(INDEX('Full set Core Client Indicator'!$A$3:$AB$351, MATCH(Selection_Hide2!$A263, 'Full set Core Client Indicator'!$A$3:$A$351, 0), MATCH(Selection_Hide2!K$5, 'Full set Core Client Indicator'!$A$3:$AB$3, 0))=\"\", \"\",  INDEX('Full set Core Client Indicator'!$A$3:$AB$351, MATCH(Selection_Hide2!$A263, 'Full set Core Client Indicator'!$A$3:$A$351, 0), MATCH(Selection_Hide2!K$5, 'Full set Core Client Indicator'!$A$3:$AB$3, 0))), \"\")","v":""},{"$f":"IF(K263<>\"\", IF(INDEX('Full set Core Client Indicator'!$A$3:$AB$351, MATCH(Selection_Hide2!$A263, 'Full set Core Client Indicator'!$A$3:$A$351, 0), MATCH(Selection_Hide2!L$5, 'Full set Core Client Indicator'!$A$3:$AB$3, 0))=\"\", \"\",  INDEX('Full set Core Client Indicator'!$A$3:$AB$351, MATCH(Selection_Hide2!$A263, 'Full set Core Client Indicator'!$A$3:$A$351, 0), MATCH(Selection_Hide2!L$5, 'Full set Core Client Indicator'!$A$3:$AB$3, 0))), \"\")","v":""},{"$f":"IF(L263<>\"\", IF(INDEX('Full set Core Client Indicator'!$A$3:$AB$351, MATCH(Selection_Hide2!$A263, 'Full set Core Client Indicator'!$A$3:$A$351, 0), MATCH(Selection_Hide2!M$5, 'Full set Core Client Indicator'!$A$3:$AB$3, 0))=\"\", \"\",  INDEX('Full set Core Client Indicator'!$A$3:$AB$351, MATCH(Selection_Hide2!$A263, 'Full set Core Client Indicator'!$A$3:$A$351, 0), MATCH(Selection_Hide2!M$5, 'Full set Core Client Indicator'!$A$3:$AB$3, 0))), \"\")","v":""},{"$f":"IF(M263<>\"\", IF(INDEX('Full set Core Client Indicator'!$A$3:$AB$351, MATCH(Selection_Hide2!$A263, 'Full set Core Client Indicator'!$A$3:$A$351, 0), MATCH(Selection_Hide2!N$5, 'Full set Core Client Indicator'!$A$3:$AB$3, 0))=\"\", \"\",  INDEX('Full set Core Client Indicator'!$A$3:$AB$351, MATCH(Selection_Hide2!$A263, 'Full set Core Client Indicator'!$A$3:$A$351, 0), MATCH(Selection_Hide2!N$5, 'Full set Core Client Indicator'!$A$3:$AB$3, 0))), \"\")","v":""},{"$f":"IF(N263<>\"\", IF(INDEX('Full set Core Client Indicator'!$A$3:$AB$351, MATCH(Selection_Hide2!$A263, 'Full set Core Client Indicator'!$A$3:$A$351, 0), MATCH(Selection_Hide2!O$5, 'Full set Core Client Indicator'!$A$3:$AB$3, 0))=\"\", \"\",  INDEX('Full set Core Client Indicator'!$A$3:$AB$351, MATCH(Selection_Hide2!$A263, 'Full set Core Client Indicator'!$A$3:$A$351, 0), MATCH(Selection_Hide2!O$5, 'Full set Core Client Indicator'!$A$3:$AB$3, 0))), \"\")","v":""},{"$f":"IF(O263<>\"\", IF(INDEX('Full set Core Client Indicator'!$A$3:$AB$351, MATCH(Selection_Hide2!$A263, 'Full set Core Client Indicator'!$A$3:$A$351, 0), MATCH(Selection_Hide2!P$5, 'Full set Core Client Indicator'!$A$3:$AB$3, 0))=\"\", \"\",  INDEX('Full set Core Client Indicator'!$A$3:$AB$351, MATCH(Selection_Hide2!$A263, 'Full set Core Client Indicator'!$A$3:$A$351, 0), MATCH(Selection_Hide2!P$5, 'Full set Core Client Indicator'!$A$3:$AB$3, 0))), \"\")","v":""},{"$f":"IF(P263<>\"\", IF(INDEX('Full set Core Client Indicator'!$A$3:$AB$351, MATCH(Selection_Hide2!$A263, 'Full set Core Client Indicator'!$A$3:$A$351, 0), MATCH(Selection_Hide2!Q$5, 'Full set Core Client Indicator'!$A$3:$AB$3, 0))=\"\", \"\",  INDEX('Full set Core Client Indicator'!$A$3:$AB$351, MATCH(Selection_Hide2!$A263, 'Full set Core Client Indicator'!$A$3:$A$351, 0), MATCH(Selection_Hide2!Q$5, 'Full set Core Client Indicator'!$A$3:$AB$3, 0))), \"\")","v":""},{"$f":"IF(Q263<>\"\", IF(INDEX('Full set Core Client Indicator'!$A$3:$AB$351, MATCH(Selection_Hide2!$A263, 'Full set Core Client Indicator'!$A$3:$A$351, 0), MATCH(Selection_Hide2!R$5, 'Full set Core Client Indicator'!$A$3:$AB$3, 0))=\"\", \"\",  INDEX('Full set Core Client Indicator'!$A$3:$AB$351, MATCH(Selection_Hide2!$A263, 'Full set Core Client Indicator'!$A$3:$A$351, 0), MATCH(Selection_Hide2!R$5, 'Full set Core Client Indicator'!$A$3:$AB$3, 0))), \"\")","v":""},{"$f":"IF(R263<>\"\", IF(INDEX('Full set Core Client Indicator'!$A$3:$AB$351, MATCH(Selection_Hide2!$A263, 'Full set Core Client Indicator'!$A$3:$A$351, 0), MATCH(Selection_Hide2!S$5, 'Full set Core Client Indicator'!$A$3:$AB$3, 0))=\"\", \"\",  INDEX('Full set Core Client Indicator'!$A$3:$AB$351, MATCH(Selection_Hide2!$A263, 'Full set Core Client Indicator'!$A$3:$A$351, 0), MATCH(Selection_Hide2!S$5, 'Full set Core Client Indicator'!$A$3:$AB$3, 0))), \"\")","v":""},{"$f":"IF(S263<>\"\", IF(INDEX('Full set Core Client Indicator'!$A$3:$AB$351, MATCH(Selection_Hide2!$A263, 'Full set Core Client Indicator'!$A$3:$A$351, 0), MATCH(Selection_Hide2!T$5, 'Full set Core Client Indicator'!$A$3:$AB$3, 0))=\"\", \"\",  INDEX('Full set Core Client Indicator'!$A$3:$AB$351, MATCH(Selection_Hide2!$A263, 'Full set Core Client Indicator'!$A$3:$A$351, 0), MATCH(Selection_Hide2!T$5, 'Full set Core Client Indicator'!$A$3:$AB$3, 0))), \"\")","v":""},{"$f":"IF(T263<>\"\", IF(INDEX('Full set Core Client Indicator'!$A$3:$AB$351, MATCH(Selection_Hide2!$A263, 'Full set Core Client Indicator'!$A$3:$A$351, 0), MATCH(Selection_Hide2!U$5, 'Full set Core Client Indicator'!$A$3:$AB$3, 0))=\"\", \"\",  INDEX('Full set Core Client Indicator'!$A$3:$AB$351, MATCH(Selection_Hide2!$A263, 'Full set Core Client Indicator'!$A$3:$A$351, 0), MATCH(Selection_Hide2!U$5, 'Full set Core Client Indicator'!$A$3:$AB$3, 0))), \"\")","v":""},{"$f":"IF(U263<>\"\", IF(INDEX('Full set Core Client Indicator'!$A$3:$AB$351, MATCH(Selection_Hide2!$A263, 'Full set Core Client Indicator'!$A$3:$A$351, 0), MATCH(Selection_Hide2!V$5, 'Full set Core Client Indicator'!$A$3:$AB$3, 0))=\"\", \"\",  INDEX('Full set Core Client Indicator'!$A$3:$AB$351, MATCH(Selection_Hide2!$A263, 'Full set Core Client Indicator'!$A$3:$A$351, 0), MATCH(Selection_Hide2!V$5, 'Full set Core Client Indicator'!$A$3:$AB$3, 0))), \"\")","v":""},{"$f":"IF(V263<>\"\", IF(INDEX('Full set Core Client Indicator'!$A$3:$AB$351, MATCH(Selection_Hide2!$A263, 'Full set Core Client Indicator'!$A$3:$A$351, 0), MATCH(Selection_Hide2!W$5, 'Full set Core Client Indicator'!$A$3:$AB$3, 0))=\"\", \"\",  INDEX('Full set Core Client Indicator'!$A$3:$AB$351, MATCH(Selection_Hide2!$A263, 'Full set Core Client Indicator'!$A$3:$A$351, 0), MATCH(Selection_Hide2!W$5, 'Full set Core Client Indicator'!$A$3:$AB$3, 0))), \"\")","v":""},{"$f":"IF(W263<>\"\", IF(INDEX('Full set Core Client Indicator'!$A$3:$AB$351, MATCH(Selection_Hide2!$A263, 'Full set Core Client Indicator'!$A$3:$A$351, 0), MATCH(Selection_Hide2!X$5, 'Full set Core Client Indicator'!$A$3:$AB$3, 0))=\"\", \"\",  INDEX('Full set Core Client Indicator'!$A$3:$AB$351, MATCH(Selection_Hide2!$A263, 'Full set Core Client Indicator'!$A$3:$A$351, 0), MATCH(Selection_Hide2!X$5, 'Full set Core Client Indicator'!$A$3:$AB$3, 0))), \"\")","v":""},{"$f":"IF(X263<>\"\", IF(INDEX('Full set Core Client Indicator'!$A$3:$AB$351, MATCH(Selection_Hide2!$A263, 'Full set Core Client Indicator'!$A$3:$A$351, 0), MATCH(Selection_Hide2!Y$5, 'Full set Core Client Indicator'!$A$3:$AB$3, 0))=\"\", \"\",  INDEX('Full set Core Client Indicator'!$A$3:$AB$351, MATCH(Selection_Hide2!$A263, 'Full set Core Client Indicator'!$A$3:$A$351, 0), MATCH(Selection_Hide2!Y$5, 'Full set Core Client Indicator'!$A$3:$AB$3, 0))), \"\")","v":""},{"$f":"IF(Y263<>\"\", IF(INDEX('Full set Core Client Indicator'!$A$3:$AB$351, MATCH(Selection_Hide2!$A263, 'Full set Core Client Indicator'!$A$3:$A$351, 0), MATCH(Selection_Hide2!Z$5, 'Full set Core Client Indicator'!$A$3:$AB$3, 0))=\"\", \"\",  INDEX('Full set Core Client Indicator'!$A$3:$AB$351, MATCH(Selection_Hide2!$A263, 'Full set Core Client Indicator'!$A$3:$A$351, 0), MATCH(Selection_Hide2!Z$5, 'Full set Core Client Indicator'!$A$3:$AB$3, 0))), \"\")","v":""},{"$f":"IF(Z263<>\"\", IF(INDEX('Full set Core Client Indicator'!$A$3:$AB$351, MATCH(Selection_Hide2!$A263, 'Full set Core Client Indicator'!$A$3:$A$351, 0), MATCH(Selection_Hide2!AA$5, 'Full set Core Client Indicator'!$A$3:$AB$3, 0))=\"\", \"\",  INDEX('Full set Core Client Indicator'!$A$3:$AB$351, MATCH(Selection_Hide2!$A263, 'Full set Core Client Indicator'!$A$3:$A$351, 0), MATCH(Selection_Hide2!AA$5, 'Full set Core Client Indicator'!$A$3:$AB$3, 0))), \"\")","v":""},{"$f":"IF(AA263<>\"\", IF(INDEX('Full set Core Client Indicator'!$A$3:$AB$351, MATCH(Selection_Hide2!$A263, 'Full set Core Client Indicator'!$A$3:$A$351, 0), MATCH(Selection_Hide2!AB$5, 'Full set Core Client Indicator'!$A$3:$AB$3, 0))=\"\", \"\",  INDEX('Full set Core Client Indicator'!$A$3:$AB$351, MATCH(Selection_Hide2!$A263, 'Full set Core Client Indicator'!$A$3:$A$351, 0), MATCH(Selection_Hide2!AB$5, 'Full set Core Client Indicator'!$A$3:$AB$3, 0))), \"\")","v":""}]
[{"$f":"IF(AND(Selection_Hide1!C262<>0, Selection_Hide1!C262<>\"Grand Total\"), Selection_Hide1!C262, \"\")","v":""},{"$f":"IF(A264<>\"\", IF(INDEX('Full set Core Client Indicator'!$A$3:$AB$351, MATCH(Selection_Hide2!$A264, 'Full set Core Client Indicator'!$A$3:$A$351, 0), MATCH(Selection_Hide2!B$5, 'Full set Core Client Indicator'!$A$3:$AB$3, 0))=\"\", \"\",  INDEX('Full set Core Client Indicator'!$A$3:$AB$351, MATCH(Selection_Hide2!$A264, 'Full set Core Client Indicator'!$A$3:$A$351, 0), MATCH(Selection_Hide2!B$5, 'Full set Core Client Indicator'!$A$3:$AB$3, 0))), \"\")","v":""},{"$f":"IF(B264<>\"\", IF(INDEX('Full set Core Client Indicator'!$A$3:$AB$351, MATCH(Selection_Hide2!$A264, 'Full set Core Client Indicator'!$A$3:$A$351, 0), MATCH(Selection_Hide2!C$5, 'Full set Core Client Indicator'!$A$3:$AB$3, 0))=\"\", \"\",  INDEX('Full set Core Client Indicator'!$A$3:$AB$351, MATCH(Selection_Hide2!$A264, 'Full set Core Client Indicator'!$A$3:$A$351, 0), MATCH(Selection_Hide2!C$5, 'Full set Core Client Indicator'!$A$3:$AB$3, 0))), \"\")","v":""},{"$f":"IF(C264<>\"\", IF(INDEX('Full set Core Client Indicator'!$A$3:$AB$351, MATCH(Selection_Hide2!$A264, 'Full set Core Client Indicator'!$A$3:$A$351, 0), MATCH(Selection_Hide2!D$5, 'Full set Core Client Indicator'!$A$3:$AB$3, 0))=\"\", \"\",  INDEX('Full set Core Client Indicator'!$A$3:$AB$351, MATCH(Selection_Hide2!$A264, 'Full set Core Client Indicator'!$A$3:$A$351, 0), MATCH(Selection_Hide2!D$5, 'Full set Core Client Indicator'!$A$3:$AB$3, 0))), \"\")","v":""},{"$f":"IF(D264<>\"\", IF(INDEX('Full set Core Client Indicator'!$A$3:$AB$351, MATCH(Selection_Hide2!$A264, 'Full set Core Client Indicator'!$A$3:$A$351, 0), MATCH(Selection_Hide2!E$5, 'Full set Core Client Indicator'!$A$3:$AB$3, 0))=\"\", \"\",  INDEX('Full set Core Client Indicator'!$A$3:$AB$351, MATCH(Selection_Hide2!$A264, 'Full set Core Client Indicator'!$A$3:$A$351, 0), MATCH(Selection_Hide2!E$5, 'Full set Core Client Indicator'!$A$3:$AB$3, 0))), \"\")","v":""},{"$f":"IF(E264<>\"\", IF(INDEX('Full set Core Client Indicator'!$A$3:$AB$351, MATCH(Selection_Hide2!$A264, 'Full set Core Client Indicator'!$A$3:$A$351, 0), MATCH(Selection_Hide2!F$5, 'Full set Core Client Indicator'!$A$3:$AB$3, 0))=\"\", \"\",  INDEX('Full set Core Client Indicator'!$A$3:$AB$351, MATCH(Selection_Hide2!$A264, 'Full set Core Client Indicator'!$A$3:$A$351, 0), MATCH(Selection_Hide2!F$5, 'Full set Core Client Indicator'!$A$3:$AB$3, 0))), \"\")","v":""},{"$f":"IF(F264<>\"\", IF(INDEX('Full set Core Client Indicator'!$A$3:$AB$351, MATCH(Selection_Hide2!$A264, 'Full set Core Client Indicator'!$A$3:$A$351, 0), MATCH(Selection_Hide2!G$5, 'Full set Core Client Indicator'!$A$3:$AB$3, 0))=\"\", \"\",  INDEX('Full set Core Client Indicator'!$A$3:$AB$351, MATCH(Selection_Hide2!$A264, 'Full set Core Client Indicator'!$A$3:$A$351, 0), MATCH(Selection_Hide2!G$5, 'Full set Core Client Indicator'!$A$3:$AB$3, 0))), \"\")","v":""},{"$f":"IF(G264<>\"\", IF(INDEX('Full set Core Client Indicator'!$A$3:$AB$351, MATCH(Selection_Hide2!$A264, 'Full set Core Client Indicator'!$A$3:$A$351, 0), MATCH(Selection_Hide2!H$5, 'Full set Core Client Indicator'!$A$3:$AB$3, 0))=\"\", \"\",  INDEX('Full set Core Client Indicator'!$A$3:$AB$351, MATCH(Selection_Hide2!$A264, 'Full set Core Client Indicator'!$A$3:$A$351, 0), MATCH(Selection_Hide2!H$5, 'Full set Core Client Indicator'!$A$3:$AB$3, 0))), \"\")","v":""},{"$f":"IF(H264<>\"\", IF(INDEX('Full set Core Client Indicator'!$A$3:$AB$351, MATCH(Selection_Hide2!$A264, 'Full set Core Client Indicator'!$A$3:$A$351, 0), MATCH(Selection_Hide2!I$5, 'Full set Core Client Indicator'!$A$3:$AB$3, 0))=\"\", \"\",  INDEX('Full set Core Client Indicator'!$A$3:$AB$351, MATCH(Selection_Hide2!$A264, 'Full set Core Client Indicator'!$A$3:$A$351, 0), MATCH(Selection_Hide2!I$5, 'Full set Core Client Indicator'!$A$3:$AB$3, 0))), \"\")","v":""},{"$f":"IF(I264<>\"\", IF(INDEX('Full set Core Client Indicator'!$A$3:$AB$351, MATCH(Selection_Hide2!$A264, 'Full set Core Client Indicator'!$A$3:$A$351, 0), MATCH(Selection_Hide2!J$5, 'Full set Core Client Indicator'!$A$3:$AB$3, 0))=\"\", \"\",  INDEX('Full set Core Client Indicator'!$A$3:$AB$351, MATCH(Selection_Hide2!$A264, 'Full set Core Client Indicator'!$A$3:$A$351, 0), MATCH(Selection_Hide2!J$5, 'Full set Core Client Indicator'!$A$3:$AB$3, 0))), \"\")","v":""},{"$f":"IF(J264<>\"\", IF(INDEX('Full set Core Client Indicator'!$A$3:$AB$351, MATCH(Selection_Hide2!$A264, 'Full set Core Client Indicator'!$A$3:$A$351, 0), MATCH(Selection_Hide2!K$5, 'Full set Core Client Indicator'!$A$3:$AB$3, 0))=\"\", \"\",  INDEX('Full set Core Client Indicator'!$A$3:$AB$351, MATCH(Selection_Hide2!$A264, 'Full set Core Client Indicator'!$A$3:$A$351, 0), MATCH(Selection_Hide2!K$5, 'Full set Core Client Indicator'!$A$3:$AB$3, 0))), \"\")","v":""},{"$f":"IF(K264<>\"\", IF(INDEX('Full set Core Client Indicator'!$A$3:$AB$351, MATCH(Selection_Hide2!$A264, 'Full set Core Client Indicator'!$A$3:$A$351, 0), MATCH(Selection_Hide2!L$5, 'Full set Core Client Indicator'!$A$3:$AB$3, 0))=\"\", \"\",  INDEX('Full set Core Client Indicator'!$A$3:$AB$351, MATCH(Selection_Hide2!$A264, 'Full set Core Client Indicator'!$A$3:$A$351, 0), MATCH(Selection_Hide2!L$5, 'Full set Core Client Indicator'!$A$3:$AB$3, 0))), \"\")","v":""},{"$f":"IF(L264<>\"\", IF(INDEX('Full set Core Client Indicator'!$A$3:$AB$351, MATCH(Selection_Hide2!$A264, 'Full set Core Client Indicator'!$A$3:$A$351, 0), MATCH(Selection_Hide2!M$5, 'Full set Core Client Indicator'!$A$3:$AB$3, 0))=\"\", \"\",  INDEX('Full set Core Client Indicator'!$A$3:$AB$351, MATCH(Selection_Hide2!$A264, 'Full set Core Client Indicator'!$A$3:$A$351, 0), MATCH(Selection_Hide2!M$5, 'Full set Core Client Indicator'!$A$3:$AB$3, 0))), \"\")","v":""},{"$f":"IF(M264<>\"\", IF(INDEX('Full set Core Client Indicator'!$A$3:$AB$351, MATCH(Selection_Hide2!$A264, 'Full set Core Client Indicator'!$A$3:$A$351, 0), MATCH(Selection_Hide2!N$5, 'Full set Core Client Indicator'!$A$3:$AB$3, 0))=\"\", \"\",  INDEX('Full set Core Client Indicator'!$A$3:$AB$351, MATCH(Selection_Hide2!$A264, 'Full set Core Client Indicator'!$A$3:$A$351, 0), MATCH(Selection_Hide2!N$5, 'Full set Core Client Indicator'!$A$3:$AB$3, 0))), \"\")","v":""},{"$f":"IF(N264<>\"\", IF(INDEX('Full set Core Client Indicator'!$A$3:$AB$351, MATCH(Selection_Hide2!$A264, 'Full set Core Client Indicator'!$A$3:$A$351, 0), MATCH(Selection_Hide2!O$5, 'Full set Core Client Indicator'!$A$3:$AB$3, 0))=\"\", \"\",  INDEX('Full set Core Client Indicator'!$A$3:$AB$351, MATCH(Selection_Hide2!$A264, 'Full set Core Client Indicator'!$A$3:$A$351, 0), MATCH(Selection_Hide2!O$5, 'Full set Core Client Indicator'!$A$3:$AB$3, 0))), \"\")","v":""},{"$f":"IF(O264<>\"\", IF(INDEX('Full set Core Client Indicator'!$A$3:$AB$351, MATCH(Selection_Hide2!$A264, 'Full set Core Client Indicator'!$A$3:$A$351, 0), MATCH(Selection_Hide2!P$5, 'Full set Core Client Indicator'!$A$3:$AB$3, 0))=\"\", \"\",  INDEX('Full set Core Client Indicator'!$A$3:$AB$351, MATCH(Selection_Hide2!$A264, 'Full set Core Client Indicator'!$A$3:$A$351, 0), MATCH(Selection_Hide2!P$5, 'Full set Core Client Indicator'!$A$3:$AB$3, 0))), \"\")","v":""},{"$f":"IF(P264<>\"\", IF(INDEX('Full set Core Client Indicator'!$A$3:$AB$351, MATCH(Selection_Hide2!$A264, 'Full set Core Client Indicator'!$A$3:$A$351, 0), MATCH(Selection_Hide2!Q$5, 'Full set Core Client Indicator'!$A$3:$AB$3, 0))=\"\", \"\",  INDEX('Full set Core Client Indicator'!$A$3:$AB$351, MATCH(Selection_Hide2!$A264, 'Full set Core Client Indicator'!$A$3:$A$351, 0), MATCH(Selection_Hide2!Q$5, 'Full set Core Client Indicator'!$A$3:$AB$3, 0))), \"\")","v":""},{"$f":"IF(Q264<>\"\", IF(INDEX('Full set Core Client Indicator'!$A$3:$AB$351, MATCH(Selection_Hide2!$A264, 'Full set Core Client Indicator'!$A$3:$A$351, 0), MATCH(Selection_Hide2!R$5, 'Full set Core Client Indicator'!$A$3:$AB$3, 0))=\"\", \"\",  INDEX('Full set Core Client Indicator'!$A$3:$AB$351, MATCH(Selection_Hide2!$A264, 'Full set Core Client Indicator'!$A$3:$A$351, 0), MATCH(Selection_Hide2!R$5, 'Full set Core Client Indicator'!$A$3:$AB$3, 0))), \"\")","v":""},{"$f":"IF(R264<>\"\", IF(INDEX('Full set Core Client Indicator'!$A$3:$AB$351, MATCH(Selection_Hide2!$A264, 'Full set Core Client Indicator'!$A$3:$A$351, 0), MATCH(Selection_Hide2!S$5, 'Full set Core Client Indicator'!$A$3:$AB$3, 0))=\"\", \"\",  INDEX('Full set Core Client Indicator'!$A$3:$AB$351, MATCH(Selection_Hide2!$A264, 'Full set Core Client Indicator'!$A$3:$A$351, 0), MATCH(Selection_Hide2!S$5, 'Full set Core Client Indicator'!$A$3:$AB$3, 0))), \"\")","v":""},{"$f":"IF(S264<>\"\", IF(INDEX('Full set Core Client Indicator'!$A$3:$AB$351, MATCH(Selection_Hide2!$A264, 'Full set Core Client Indicator'!$A$3:$A$351, 0), MATCH(Selection_Hide2!T$5, 'Full set Core Client Indicator'!$A$3:$AB$3, 0))=\"\", \"\",  INDEX('Full set Core Client Indicator'!$A$3:$AB$351, MATCH(Selection_Hide2!$A264, 'Full set Core Client Indicator'!$A$3:$A$351, 0), MATCH(Selection_Hide2!T$5, 'Full set Core Client Indicator'!$A$3:$AB$3, 0))), \"\")","v":""},{"$f":"IF(T264<>\"\", IF(INDEX('Full set Core Client Indicator'!$A$3:$AB$351, MATCH(Selection_Hide2!$A264, 'Full set Core Client Indicator'!$A$3:$A$351, 0), MATCH(Selection_Hide2!U$5, 'Full set Core Client Indicator'!$A$3:$AB$3, 0))=\"\", \"\",  INDEX('Full set Core Client Indicator'!$A$3:$AB$351, MATCH(Selection_Hide2!$A264, 'Full set Core Client Indicator'!$A$3:$A$351, 0), MATCH(Selection_Hide2!U$5, 'Full set Core Client Indicator'!$A$3:$AB$3, 0))), \"\")","v":""},{"$f":"IF(U264<>\"\", IF(INDEX('Full set Core Client Indicator'!$A$3:$AB$351, MATCH(Selection_Hide2!$A264, 'Full set Core Client Indicator'!$A$3:$A$351, 0), MATCH(Selection_Hide2!V$5, 'Full set Core Client Indicator'!$A$3:$AB$3, 0))=\"\", \"\",  INDEX('Full set Core Client Indicator'!$A$3:$AB$351, MATCH(Selection_Hide2!$A264, 'Full set Core Client Indicator'!$A$3:$A$351, 0), MATCH(Selection_Hide2!V$5, 'Full set Core Client Indicator'!$A$3:$AB$3, 0))), \"\")","v":""},{"$f":"IF(V264<>\"\", IF(INDEX('Full set Core Client Indicator'!$A$3:$AB$351, MATCH(Selection_Hide2!$A264, 'Full set Core Client Indicator'!$A$3:$A$351, 0), MATCH(Selection_Hide2!W$5, 'Full set Core Client Indicator'!$A$3:$AB$3, 0))=\"\", \"\",  INDEX('Full set Core Client Indicator'!$A$3:$AB$351, MATCH(Selection_Hide2!$A264, 'Full set Core Client Indicator'!$A$3:$A$351, 0), MATCH(Selection_Hide2!W$5, 'Full set Core Client Indicator'!$A$3:$AB$3, 0))), \"\")","v":""},{"$f":"IF(W264<>\"\", IF(INDEX('Full set Core Client Indicator'!$A$3:$AB$351, MATCH(Selection_Hide2!$A264, 'Full set Core Client Indicator'!$A$3:$A$351, 0), MATCH(Selection_Hide2!X$5, 'Full set Core Client Indicator'!$A$3:$AB$3, 0))=\"\", \"\",  INDEX('Full set Core Client Indicator'!$A$3:$AB$351, MATCH(Selection_Hide2!$A264, 'Full set Core Client Indicator'!$A$3:$A$351, 0), MATCH(Selection_Hide2!X$5, 'Full set Core Client Indicator'!$A$3:$AB$3, 0))), \"\")","v":""},{"$f":"IF(X264<>\"\", IF(INDEX('Full set Core Client Indicator'!$A$3:$AB$351, MATCH(Selection_Hide2!$A264, 'Full set Core Client Indicator'!$A$3:$A$351, 0), MATCH(Selection_Hide2!Y$5, 'Full set Core Client Indicator'!$A$3:$AB$3, 0))=\"\", \"\",  INDEX('Full set Core Client Indicator'!$A$3:$AB$351, MATCH(Selection_Hide2!$A264, 'Full set Core Client Indicator'!$A$3:$A$351, 0), MATCH(Selection_Hide2!Y$5, 'Full set Core Client Indicator'!$A$3:$AB$3, 0))), \"\")","v":""},{"$f":"IF(Y264<>\"\", IF(INDEX('Full set Core Client Indicator'!$A$3:$AB$351, MATCH(Selection_Hide2!$A264, 'Full set Core Client Indicator'!$A$3:$A$351, 0), MATCH(Selection_Hide2!Z$5, 'Full set Core Client Indicator'!$A$3:$AB$3, 0))=\"\", \"\",  INDEX('Full set Core Client Indicator'!$A$3:$AB$351, MATCH(Selection_Hide2!$A264, 'Full set Core Client Indicator'!$A$3:$A$351, 0), MATCH(Selection_Hide2!Z$5, 'Full set Core Client Indicator'!$A$3:$AB$3, 0))), \"\")","v":""},{"$f":"IF(Z264<>\"\", IF(INDEX('Full set Core Client Indicator'!$A$3:$AB$351, MATCH(Selection_Hide2!$A264, 'Full set Core Client Indicator'!$A$3:$A$351, 0), MATCH(Selection_Hide2!AA$5, 'Full set Core Client Indicator'!$A$3:$AB$3, 0))=\"\", \"\",  INDEX('Full set Core Client Indicator'!$A$3:$AB$351, MATCH(Selection_Hide2!$A264, 'Full set Core Client Indicator'!$A$3:$A$351, 0), MATCH(Selection_Hide2!AA$5, 'Full set Core Client Indicator'!$A$3:$AB$3, 0))), \"\")","v":""},{"$f":"IF(AA264<>\"\", IF(INDEX('Full set Core Client Indicator'!$A$3:$AB$351, MATCH(Selection_Hide2!$A264, 'Full set Core Client Indicator'!$A$3:$A$351, 0), MATCH(Selection_Hide2!AB$5, 'Full set Core Client Indicator'!$A$3:$AB$3, 0))=\"\", \"\",  INDEX('Full set Core Client Indicator'!$A$3:$AB$351, MATCH(Selection_Hide2!$A264, 'Full set Core Client Indicator'!$A$3:$A$351, 0), MATCH(Selection_Hide2!AB$5, 'Full set Core Client Indicator'!$A$3:$AB$3, 0))), \"\")","v":""}]
[{"$f":"IF(AND(Selection_Hide1!C263<>0, Selection_Hide1!C263<>\"Grand Total\"), Selection_Hide1!C263, \"\")","v":""},{"$f":"IF(A265<>\"\", IF(INDEX('Full set Core Client Indicator'!$A$3:$AB$351, MATCH(Selection_Hide2!$A265, 'Full set Core Client Indicator'!$A$3:$A$351, 0), MATCH(Selection_Hide2!B$5, 'Full set Core Client Indicator'!$A$3:$AB$3, 0))=\"\", \"\",  INDEX('Full set Core Client Indicator'!$A$3:$AB$351, MATCH(Selection_Hide2!$A265, 'Full set Core Client Indicator'!$A$3:$A$351, 0), MATCH(Selection_Hide2!B$5, 'Full set Core Client Indicator'!$A$3:$AB$3, 0))), \"\")","v":""},{"$f":"IF(B265<>\"\", IF(INDEX('Full set Core Client Indicator'!$A$3:$AB$351, MATCH(Selection_Hide2!$A265, 'Full set Core Client Indicator'!$A$3:$A$351, 0), MATCH(Selection_Hide2!C$5, 'Full set Core Client Indicator'!$A$3:$AB$3, 0))=\"\", \"\",  INDEX('Full set Core Client Indicator'!$A$3:$AB$351, MATCH(Selection_Hide2!$A265, 'Full set Core Client Indicator'!$A$3:$A$351, 0), MATCH(Selection_Hide2!C$5, 'Full set Core Client Indicator'!$A$3:$AB$3, 0))), \"\")","v":""},{"$f":"IF(C265<>\"\", IF(INDEX('Full set Core Client Indicator'!$A$3:$AB$351, MATCH(Selection_Hide2!$A265, 'Full set Core Client Indicator'!$A$3:$A$351, 0), MATCH(Selection_Hide2!D$5, 'Full set Core Client Indicator'!$A$3:$AB$3, 0))=\"\", \"\",  INDEX('Full set Core Client Indicator'!$A$3:$AB$351, MATCH(Selection_Hide2!$A265, 'Full set Core Client Indicator'!$A$3:$A$351, 0), MATCH(Selection_Hide2!D$5, 'Full set Core Client Indicator'!$A$3:$AB$3, 0))), \"\")","v":""},{"$f":"IF(D265<>\"\", IF(INDEX('Full set Core Client Indicator'!$A$3:$AB$351, MATCH(Selection_Hide2!$A265, 'Full set Core Client Indicator'!$A$3:$A$351, 0), MATCH(Selection_Hide2!E$5, 'Full set Core Client Indicator'!$A$3:$AB$3, 0))=\"\", \"\",  INDEX('Full set Core Client Indicator'!$A$3:$AB$351, MATCH(Selection_Hide2!$A265, 'Full set Core Client Indicator'!$A$3:$A$351, 0), MATCH(Selection_Hide2!E$5, 'Full set Core Client Indicator'!$A$3:$AB$3, 0))), \"\")","v":""},{"$f":"IF(E265<>\"\", IF(INDEX('Full set Core Client Indicator'!$A$3:$AB$351, MATCH(Selection_Hide2!$A265, 'Full set Core Client Indicator'!$A$3:$A$351, 0), MATCH(Selection_Hide2!F$5, 'Full set Core Client Indicator'!$A$3:$AB$3, 0))=\"\", \"\",  INDEX('Full set Core Client Indicator'!$A$3:$AB$351, MATCH(Selection_Hide2!$A265, 'Full set Core Client Indicator'!$A$3:$A$351, 0), MATCH(Selection_Hide2!F$5, 'Full set Core Client Indicator'!$A$3:$AB$3, 0))), \"\")","v":""},{"$f":"IF(F265<>\"\", IF(INDEX('Full set Core Client Indicator'!$A$3:$AB$351, MATCH(Selection_Hide2!$A265, 'Full set Core Client Indicator'!$A$3:$A$351, 0), MATCH(Selection_Hide2!G$5, 'Full set Core Client Indicator'!$A$3:$AB$3, 0))=\"\", \"\",  INDEX('Full set Core Client Indicator'!$A$3:$AB$351, MATCH(Selection_Hide2!$A265, 'Full set Core Client Indicator'!$A$3:$A$351, 0), MATCH(Selection_Hide2!G$5, 'Full set Core Client Indicator'!$A$3:$AB$3, 0))), \"\")","v":""},{"$f":"IF(G265<>\"\", IF(INDEX('Full set Core Client Indicator'!$A$3:$AB$351, MATCH(Selection_Hide2!$A265, 'Full set Core Client Indicator'!$A$3:$A$351, 0), MATCH(Selection_Hide2!H$5, 'Full set Core Client Indicator'!$A$3:$AB$3, 0))=\"\", \"\",  INDEX('Full set Core Client Indicator'!$A$3:$AB$351, MATCH(Selection_Hide2!$A265, 'Full set Core Client Indicator'!$A$3:$A$351, 0), MATCH(Selection_Hide2!H$5, 'Full set Core Client Indicator'!$A$3:$AB$3, 0))), \"\")","v":""},{"$f":"IF(H265<>\"\", IF(INDEX('Full set Core Client Indicator'!$A$3:$AB$351, MATCH(Selection_Hide2!$A265, 'Full set Core Client Indicator'!$A$3:$A$351, 0), MATCH(Selection_Hide2!I$5, 'Full set Core Client Indicator'!$A$3:$AB$3, 0))=\"\", \"\",  INDEX('Full set Core Client Indicator'!$A$3:$AB$351, MATCH(Selection_Hide2!$A265, 'Full set Core Client Indicator'!$A$3:$A$351, 0), MATCH(Selection_Hide2!I$5, 'Full set Core Client Indicator'!$A$3:$AB$3, 0))), \"\")","v":""},{"$f":"IF(I265<>\"\", IF(INDEX('Full set Core Client Indicator'!$A$3:$AB$351, MATCH(Selection_Hide2!$A265, 'Full set Core Client Indicator'!$A$3:$A$351, 0), MATCH(Selection_Hide2!J$5, 'Full set Core Client Indicator'!$A$3:$AB$3, 0))=\"\", \"\",  INDEX('Full set Core Client Indicator'!$A$3:$AB$351, MATCH(Selection_Hide2!$A265, 'Full set Core Client Indicator'!$A$3:$A$351, 0), MATCH(Selection_Hide2!J$5, 'Full set Core Client Indicator'!$A$3:$AB$3, 0))), \"\")","v":""},{"$f":"IF(J265<>\"\", IF(INDEX('Full set Core Client Indicator'!$A$3:$AB$351, MATCH(Selection_Hide2!$A265, 'Full set Core Client Indicator'!$A$3:$A$351, 0), MATCH(Selection_Hide2!K$5, 'Full set Core Client Indicator'!$A$3:$AB$3, 0))=\"\", \"\",  INDEX('Full set Core Client Indicator'!$A$3:$AB$351, MATCH(Selection_Hide2!$A265, 'Full set Core Client Indicator'!$A$3:$A$351, 0), MATCH(Selection_Hide2!K$5, 'Full set Core Client Indicator'!$A$3:$AB$3, 0))), \"\")","v":""},{"$f":"IF(K265<>\"\", IF(INDEX('Full set Core Client Indicator'!$A$3:$AB$351, MATCH(Selection_Hide2!$A265, 'Full set Core Client Indicator'!$A$3:$A$351, 0), MATCH(Selection_Hide2!L$5, 'Full set Core Client Indicator'!$A$3:$AB$3, 0))=\"\", \"\",  INDEX('Full set Core Client Indicator'!$A$3:$AB$351, MATCH(Selection_Hide2!$A265, 'Full set Core Client Indicator'!$A$3:$A$351, 0), MATCH(Selection_Hide2!L$5, 'Full set Core Client Indicator'!$A$3:$AB$3, 0))), \"\")","v":""},{"$f":"IF(L265<>\"\", IF(INDEX('Full set Core Client Indicator'!$A$3:$AB$351, MATCH(Selection_Hide2!$A265, 'Full set Core Client Indicator'!$A$3:$A$351, 0), MATCH(Selection_Hide2!M$5, 'Full set Core Client Indicator'!$A$3:$AB$3, 0))=\"\", \"\",  INDEX('Full set Core Client Indicator'!$A$3:$AB$351, MATCH(Selection_Hide2!$A265, 'Full set Core Client Indicator'!$A$3:$A$351, 0), MATCH(Selection_Hide2!M$5, 'Full set Core Client Indicator'!$A$3:$AB$3, 0))), \"\")","v":""},{"$f":"IF(M265<>\"\", IF(INDEX('Full set Core Client Indicator'!$A$3:$AB$351, MATCH(Selection_Hide2!$A265, 'Full set Core Client Indicator'!$A$3:$A$351, 0), MATCH(Selection_Hide2!N$5, 'Full set Core Client Indicator'!$A$3:$AB$3, 0))=\"\", \"\",  INDEX('Full set Core Client Indicator'!$A$3:$AB$351, MATCH(Selection_Hide2!$A265, 'Full set Core Client Indicator'!$A$3:$A$351, 0), MATCH(Selection_Hide2!N$5, 'Full set Core Client Indicator'!$A$3:$AB$3, 0))), \"\")","v":""},{"$f":"IF(N265<>\"\", IF(INDEX('Full set Core Client Indicator'!$A$3:$AB$351, MATCH(Selection_Hide2!$A265, 'Full set Core Client Indicator'!$A$3:$A$351, 0), MATCH(Selection_Hide2!O$5, 'Full set Core Client Indicator'!$A$3:$AB$3, 0))=\"\", \"\",  INDEX('Full set Core Client Indicator'!$A$3:$AB$351, MATCH(Selection_Hide2!$A265, 'Full set Core Client Indicator'!$A$3:$A$351, 0), MATCH(Selection_Hide2!O$5, 'Full set Core Client Indicator'!$A$3:$AB$3, 0))), \"\")","v":""},{"$f":"IF(O265<>\"\", IF(INDEX('Full set Core Client Indicator'!$A$3:$AB$351, MATCH(Selection_Hide2!$A265, 'Full set Core Client Indicator'!$A$3:$A$351, 0), MATCH(Selection_Hide2!P$5, 'Full set Core Client Indicator'!$A$3:$AB$3, 0))=\"\", \"\",  INDEX('Full set Core Client Indicator'!$A$3:$AB$351, MATCH(Selection_Hide2!$A265, 'Full set Core Client Indicator'!$A$3:$A$351, 0), MATCH(Selection_Hide2!P$5, 'Full set Core Client Indicator'!$A$3:$AB$3, 0))), \"\")","v":""},{"$f":"IF(P265<>\"\", IF(INDEX('Full set Core Client Indicator'!$A$3:$AB$351, MATCH(Selection_Hide2!$A265, 'Full set Core Client Indicator'!$A$3:$A$351, 0), MATCH(Selection_Hide2!Q$5, 'Full set Core Client Indicator'!$A$3:$AB$3, 0))=\"\", \"\",  INDEX('Full set Core Client Indicator'!$A$3:$AB$351, MATCH(Selection_Hide2!$A265, 'Full set Core Client Indicator'!$A$3:$A$351, 0), MATCH(Selection_Hide2!Q$5, 'Full set Core Client Indicator'!$A$3:$AB$3, 0))), \"\")","v":""},{"$f":"IF(Q265<>\"\", IF(INDEX('Full set Core Client Indicator'!$A$3:$AB$351, MATCH(Selection_Hide2!$A265, 'Full set Core Client Indicator'!$A$3:$A$351, 0), MATCH(Selection_Hide2!R$5, 'Full set Core Client Indicator'!$A$3:$AB$3, 0))=\"\", \"\",  INDEX('Full set Core Client Indicator'!$A$3:$AB$351, MATCH(Selection_Hide2!$A265, 'Full set Core Client Indicator'!$A$3:$A$351, 0), MATCH(Selection_Hide2!R$5, 'Full set Core Client Indicator'!$A$3:$AB$3, 0))), \"\")","v":""},{"$f":"IF(R265<>\"\", IF(INDEX('Full set Core Client Indicator'!$A$3:$AB$351, MATCH(Selection_Hide2!$A265, 'Full set Core Client Indicator'!$A$3:$A$351, 0), MATCH(Selection_Hide2!S$5, 'Full set Core Client Indicator'!$A$3:$AB$3, 0))=\"\", \"\",  INDEX('Full set Core Client Indicator'!$A$3:$AB$351, MATCH(Selection_Hide2!$A265, 'Full set Core Client Indicator'!$A$3:$A$351, 0), MATCH(Selection_Hide2!S$5, 'Full set Core Client Indicator'!$A$3:$AB$3, 0))), \"\")","v":""},{"$f":"IF(S265<>\"\", IF(INDEX('Full set Core Client Indicator'!$A$3:$AB$351, MATCH(Selection_Hide2!$A265, 'Full set Core Client Indicator'!$A$3:$A$351, 0), MATCH(Selection_Hide2!T$5, 'Full set Core Client Indicator'!$A$3:$AB$3, 0))=\"\", \"\",  INDEX('Full set Core Client Indicator'!$A$3:$AB$351, MATCH(Selection_Hide2!$A265, 'Full set Core Client Indicator'!$A$3:$A$351, 0), MATCH(Selection_Hide2!T$5, 'Full set Core Client Indicator'!$A$3:$AB$3, 0))), \"\")","v":""},{"$f":"IF(T265<>\"\", IF(INDEX('Full set Core Client Indicator'!$A$3:$AB$351, MATCH(Selection_Hide2!$A265, 'Full set Core Client Indicator'!$A$3:$A$351, 0), MATCH(Selection_Hide2!U$5, 'Full set Core Client Indicator'!$A$3:$AB$3, 0))=\"\", \"\",  INDEX('Full set Core Client Indicator'!$A$3:$AB$351, MATCH(Selection_Hide2!$A265, 'Full set Core Client Indicator'!$A$3:$A$351, 0), MATCH(Selection_Hide2!U$5, 'Full set Core Client Indicator'!$A$3:$AB$3, 0))), \"\")","v":""},{"$f":"IF(U265<>\"\", IF(INDEX('Full set Core Client Indicator'!$A$3:$AB$351, MATCH(Selection_Hide2!$A265, 'Full set Core Client Indicator'!$A$3:$A$351, 0), MATCH(Selection_Hide2!V$5, 'Full set Core Client Indicator'!$A$3:$AB$3, 0))=\"\", \"\",  INDEX('Full set Core Client Indicator'!$A$3:$AB$351, MATCH(Selection_Hide2!$A265, 'Full set Core Client Indicator'!$A$3:$A$351, 0), MATCH(Selection_Hide2!V$5, 'Full set Core Client Indicator'!$A$3:$AB$3, 0))), \"\")","v":""},{"$f":"IF(V265<>\"\", IF(INDEX('Full set Core Client Indicator'!$A$3:$AB$351, MATCH(Selection_Hide2!$A265, 'Full set Core Client Indicator'!$A$3:$A$351, 0), MATCH(Selection_Hide2!W$5, 'Full set Core Client Indicator'!$A$3:$AB$3, 0))=\"\", \"\",  INDEX('Full set Core Client Indicator'!$A$3:$AB$351, MATCH(Selection_Hide2!$A265, 'Full set Core Client Indicator'!$A$3:$A$351, 0), MATCH(Selection_Hide2!W$5, 'Full set Core Client Indicator'!$A$3:$AB$3, 0))), \"\")","v":""},{"$f":"IF(W265<>\"\", IF(INDEX('Full set Core Client Indicator'!$A$3:$AB$351, MATCH(Selection_Hide2!$A265, 'Full set Core Client Indicator'!$A$3:$A$351, 0), MATCH(Selection_Hide2!X$5, 'Full set Core Client Indicator'!$A$3:$AB$3, 0))=\"\", \"\",  INDEX('Full set Core Client Indicator'!$A$3:$AB$351, MATCH(Selection_Hide2!$A265, 'Full set Core Client Indicator'!$A$3:$A$351, 0), MATCH(Selection_Hide2!X$5, 'Full set Core Client Indicator'!$A$3:$AB$3, 0))), \"\")","v":""},{"$f":"IF(X265<>\"\", IF(INDEX('Full set Core Client Indicator'!$A$3:$AB$351, MATCH(Selection_Hide2!$A265, 'Full set Core Client Indicator'!$A$3:$A$351, 0), MATCH(Selection_Hide2!Y$5, 'Full set Core Client Indicator'!$A$3:$AB$3, 0))=\"\", \"\",  INDEX('Full set Core Client Indicator'!$A$3:$AB$351, MATCH(Selection_Hide2!$A265, 'Full set Core Client Indicator'!$A$3:$A$351, 0), MATCH(Selection_Hide2!Y$5, 'Full set Core Client Indicator'!$A$3:$AB$3, 0))), \"\")","v":""},{"$f":"IF(Y265<>\"\", IF(INDEX('Full set Core Client Indicator'!$A$3:$AB$351, MATCH(Selection_Hide2!$A265, 'Full set Core Client Indicator'!$A$3:$A$351, 0), MATCH(Selection_Hide2!Z$5, 'Full set Core Client Indicator'!$A$3:$AB$3, 0))=\"\", \"\",  INDEX('Full set Core Client Indicator'!$A$3:$AB$351, MATCH(Selection_Hide2!$A265, 'Full set Core Client Indicator'!$A$3:$A$351, 0), MATCH(Selection_Hide2!Z$5, 'Full set Core Client Indicator'!$A$3:$AB$3, 0))), \"\")","v":""},{"$f":"IF(Z265<>\"\", IF(INDEX('Full set Core Client Indicator'!$A$3:$AB$351, MATCH(Selection_Hide2!$A265, 'Full set Core Client Indicator'!$A$3:$A$351, 0), MATCH(Selection_Hide2!AA$5, 'Full set Core Client Indicator'!$A$3:$AB$3, 0))=\"\", \"\",  INDEX('Full set Core Client Indicator'!$A$3:$AB$351, MATCH(Selection_Hide2!$A265, 'Full set Core Client Indicator'!$A$3:$A$351, 0), MATCH(Selection_Hide2!AA$5, 'Full set Core Client Indicator'!$A$3:$AB$3, 0))), \"\")","v":""},{"$f":"IF(AA265<>\"\", IF(INDEX('Full set Core Client Indicator'!$A$3:$AB$351, MATCH(Selection_Hide2!$A265, 'Full set Core Client Indicator'!$A$3:$A$351, 0), MATCH(Selection_Hide2!AB$5, 'Full set Core Client Indicator'!$A$3:$AB$3, 0))=\"\", \"\",  INDEX('Full set Core Client Indicator'!$A$3:$AB$351, MATCH(Selection_Hide2!$A265, 'Full set Core Client Indicator'!$A$3:$A$351, 0), MATCH(Selection_Hide2!AB$5, 'Full set Core Client Indicator'!$A$3:$AB$3, 0))), \"\")","v":""}]
[{"$f":"IF(AND(Selection_Hide1!C264<>0, Selection_Hide1!C264<>\"Grand Total\"), Selection_Hide1!C264, \"\")","v":""},{"$f":"IF(A266<>\"\", IF(INDEX('Full set Core Client Indicator'!$A$3:$AB$351, MATCH(Selection_Hide2!$A266, 'Full set Core Client Indicator'!$A$3:$A$351, 0), MATCH(Selection_Hide2!B$5, 'Full set Core Client Indicator'!$A$3:$AB$3, 0))=\"\", \"\",  INDEX('Full set Core Client Indicator'!$A$3:$AB$351, MATCH(Selection_Hide2!$A266, 'Full set Core Client Indicator'!$A$3:$A$351, 0), MATCH(Selection_Hide2!B$5, 'Full set Core Client Indicator'!$A$3:$AB$3, 0))), \"\")","v":""},{"$f":"IF(B266<>\"\", IF(INDEX('Full set Core Client Indicator'!$A$3:$AB$351, MATCH(Selection_Hide2!$A266, 'Full set Core Client Indicator'!$A$3:$A$351, 0), MATCH(Selection_Hide2!C$5, 'Full set Core Client Indicator'!$A$3:$AB$3, 0))=\"\", \"\",  INDEX('Full set Core Client Indicator'!$A$3:$AB$351, MATCH(Selection_Hide2!$A266, 'Full set Core Client Indicator'!$A$3:$A$351, 0), MATCH(Selection_Hide2!C$5, 'Full set Core Client Indicator'!$A$3:$AB$3, 0))), \"\")","v":""},{"$f":"IF(C266<>\"\", IF(INDEX('Full set Core Client Indicator'!$A$3:$AB$351, MATCH(Selection_Hide2!$A266, 'Full set Core Client Indicator'!$A$3:$A$351, 0), MATCH(Selection_Hide2!D$5, 'Full set Core Client Indicator'!$A$3:$AB$3, 0))=\"\", \"\",  INDEX('Full set Core Client Indicator'!$A$3:$AB$351, MATCH(Selection_Hide2!$A266, 'Full set Core Client Indicator'!$A$3:$A$351, 0), MATCH(Selection_Hide2!D$5, 'Full set Core Client Indicator'!$A$3:$AB$3, 0))), \"\")","v":""},{"$f":"IF(D266<>\"\", IF(INDEX('Full set Core Client Indicator'!$A$3:$AB$351, MATCH(Selection_Hide2!$A266, 'Full set Core Client Indicator'!$A$3:$A$351, 0), MATCH(Selection_Hide2!E$5, 'Full set Core Client Indicator'!$A$3:$AB$3, 0))=\"\", \"\",  INDEX('Full set Core Client Indicator'!$A$3:$AB$351, MATCH(Selection_Hide2!$A266, 'Full set Core Client Indicator'!$A$3:$A$351, 0), MATCH(Selection_Hide2!E$5, 'Full set Core Client Indicator'!$A$3:$AB$3, 0))), \"\")","v":""},{"$f":"IF(E266<>\"\", IF(INDEX('Full set Core Client Indicator'!$A$3:$AB$351, MATCH(Selection_Hide2!$A266, 'Full set Core Client Indicator'!$A$3:$A$351, 0), MATCH(Selection_Hide2!F$5, 'Full set Core Client Indicator'!$A$3:$AB$3, 0))=\"\", \"\",  INDEX('Full set Core Client Indicator'!$A$3:$AB$351, MATCH(Selection_Hide2!$A266, 'Full set Core Client Indicator'!$A$3:$A$351, 0), MATCH(Selection_Hide2!F$5, 'Full set Core Client Indicator'!$A$3:$AB$3, 0))), \"\")","v":""},{"$f":"IF(F266<>\"\", IF(INDEX('Full set Core Client Indicator'!$A$3:$AB$351, MATCH(Selection_Hide2!$A266, 'Full set Core Client Indicator'!$A$3:$A$351, 0), MATCH(Selection_Hide2!G$5, 'Full set Core Client Indicator'!$A$3:$AB$3, 0))=\"\", \"\",  INDEX('Full set Core Client Indicator'!$A$3:$AB$351, MATCH(Selection_Hide2!$A266, 'Full set Core Client Indicator'!$A$3:$A$351, 0), MATCH(Selection_Hide2!G$5, 'Full set Core Client Indicator'!$A$3:$AB$3, 0))), \"\")","v":""},{"$f":"IF(G266<>\"\", IF(INDEX('Full set Core Client Indicator'!$A$3:$AB$351, MATCH(Selection_Hide2!$A266, 'Full set Core Client Indicator'!$A$3:$A$351, 0), MATCH(Selection_Hide2!H$5, 'Full set Core Client Indicator'!$A$3:$AB$3, 0))=\"\", \"\",  INDEX('Full set Core Client Indicator'!$A$3:$AB$351, MATCH(Selection_Hide2!$A266, 'Full set Core Client Indicator'!$A$3:$A$351, 0), MATCH(Selection_Hide2!H$5, 'Full set Core Client Indicator'!$A$3:$AB$3, 0))), \"\")","v":""},{"$f":"IF(H266<>\"\", IF(INDEX('Full set Core Client Indicator'!$A$3:$AB$351, MATCH(Selection_Hide2!$A266, 'Full set Core Client Indicator'!$A$3:$A$351, 0), MATCH(Selection_Hide2!I$5, 'Full set Core Client Indicator'!$A$3:$AB$3, 0))=\"\", \"\",  INDEX('Full set Core Client Indicator'!$A$3:$AB$351, MATCH(Selection_Hide2!$A266, 'Full set Core Client Indicator'!$A$3:$A$351, 0), MATCH(Selection_Hide2!I$5, 'Full set Core Client Indicator'!$A$3:$AB$3, 0))), \"\")","v":""},{"$f":"IF(I266<>\"\", IF(INDEX('Full set Core Client Indicator'!$A$3:$AB$351, MATCH(Selection_Hide2!$A266, 'Full set Core Client Indicator'!$A$3:$A$351, 0), MATCH(Selection_Hide2!J$5, 'Full set Core Client Indicator'!$A$3:$AB$3, 0))=\"\", \"\",  INDEX('Full set Core Client Indicator'!$A$3:$AB$351, MATCH(Selection_Hide2!$A266, 'Full set Core Client Indicator'!$A$3:$A$351, 0), MATCH(Selection_Hide2!J$5, 'Full set Core Client Indicator'!$A$3:$AB$3, 0))), \"\")","v":""},{"$f":"IF(J266<>\"\", IF(INDEX('Full set Core Client Indicator'!$A$3:$AB$351, MATCH(Selection_Hide2!$A266, 'Full set Core Client Indicator'!$A$3:$A$351, 0), MATCH(Selection_Hide2!K$5, 'Full set Core Client Indicator'!$A$3:$AB$3, 0))=\"\", \"\",  INDEX('Full set Core Client Indicator'!$A$3:$AB$351, MATCH(Selection_Hide2!$A266, 'Full set Core Client Indicator'!$A$3:$A$351, 0), MATCH(Selection_Hide2!K$5, 'Full set Core Client Indicator'!$A$3:$AB$3, 0))), \"\")","v":""},{"$f":"IF(K266<>\"\", IF(INDEX('Full set Core Client Indicator'!$A$3:$AB$351, MATCH(Selection_Hide2!$A266, 'Full set Core Client Indicator'!$A$3:$A$351, 0), MATCH(Selection_Hide2!L$5, 'Full set Core Client Indicator'!$A$3:$AB$3, 0))=\"\", \"\",  INDEX('Full set Core Client Indicator'!$A$3:$AB$351, MATCH(Selection_Hide2!$A266, 'Full set Core Client Indicator'!$A$3:$A$351, 0), MATCH(Selection_Hide2!L$5, 'Full set Core Client Indicator'!$A$3:$AB$3, 0))), \"\")","v":""},{"$f":"IF(L266<>\"\", IF(INDEX('Full set Core Client Indicator'!$A$3:$AB$351, MATCH(Selection_Hide2!$A266, 'Full set Core Client Indicator'!$A$3:$A$351, 0), MATCH(Selection_Hide2!M$5, 'Full set Core Client Indicator'!$A$3:$AB$3, 0))=\"\", \"\",  INDEX('Full set Core Client Indicator'!$A$3:$AB$351, MATCH(Selection_Hide2!$A266, 'Full set Core Client Indicator'!$A$3:$A$351, 0), MATCH(Selection_Hide2!M$5, 'Full set Core Client Indicator'!$A$3:$AB$3, 0))), \"\")","v":""},{"$f":"IF(M266<>\"\", IF(INDEX('Full set Core Client Indicator'!$A$3:$AB$351, MATCH(Selection_Hide2!$A266, 'Full set Core Client Indicator'!$A$3:$A$351, 0), MATCH(Selection_Hide2!N$5, 'Full set Core Client Indicator'!$A$3:$AB$3, 0))=\"\", \"\",  INDEX('Full set Core Client Indicator'!$A$3:$AB$351, MATCH(Selection_Hide2!$A266, 'Full set Core Client Indicator'!$A$3:$A$351, 0), MATCH(Selection_Hide2!N$5, 'Full set Core Client Indicator'!$A$3:$AB$3, 0))), \"\")","v":""},{"$f":"IF(N266<>\"\", IF(INDEX('Full set Core Client Indicator'!$A$3:$AB$351, MATCH(Selection_Hide2!$A266, 'Full set Core Client Indicator'!$A$3:$A$351, 0), MATCH(Selection_Hide2!O$5, 'Full set Core Client Indicator'!$A$3:$AB$3, 0))=\"\", \"\",  INDEX('Full set Core Client Indicator'!$A$3:$AB$351, MATCH(Selection_Hide2!$A266, 'Full set Core Client Indicator'!$A$3:$A$351, 0), MATCH(Selection_Hide2!O$5, 'Full set Core Client Indicator'!$A$3:$AB$3, 0))), \"\")","v":""},{"$f":"IF(O266<>\"\", IF(INDEX('Full set Core Client Indicator'!$A$3:$AB$351, MATCH(Selection_Hide2!$A266, 'Full set Core Client Indicator'!$A$3:$A$351, 0), MATCH(Selection_Hide2!P$5, 'Full set Core Client Indicator'!$A$3:$AB$3, 0))=\"\", \"\",  INDEX('Full set Core Client Indicator'!$A$3:$AB$351, MATCH(Selection_Hide2!$A266, 'Full set Core Client Indicator'!$A$3:$A$351, 0), MATCH(Selection_Hide2!P$5, 'Full set Core Client Indicator'!$A$3:$AB$3, 0))), \"\")","v":""},{"$f":"IF(P266<>\"\", IF(INDEX('Full set Core Client Indicator'!$A$3:$AB$351, MATCH(Selection_Hide2!$A266, 'Full set Core Client Indicator'!$A$3:$A$351, 0), MATCH(Selection_Hide2!Q$5, 'Full set Core Client Indicator'!$A$3:$AB$3, 0))=\"\", \"\",  INDEX('Full set Core Client Indicator'!$A$3:$AB$351, MATCH(Selection_Hide2!$A266, 'Full set Core Client Indicator'!$A$3:$A$351, 0), MATCH(Selection_Hide2!Q$5, 'Full set Core Client Indicator'!$A$3:$AB$3, 0))), \"\")","v":""},{"$f":"IF(Q266<>\"\", IF(INDEX('Full set Core Client Indicator'!$A$3:$AB$351, MATCH(Selection_Hide2!$A266, 'Full set Core Client Indicator'!$A$3:$A$351, 0), MATCH(Selection_Hide2!R$5, 'Full set Core Client Indicator'!$A$3:$AB$3, 0))=\"\", \"\",  INDEX('Full set Core Client Indicator'!$A$3:$AB$351, MATCH(Selection_Hide2!$A266, 'Full set Core Client Indicator'!$A$3:$A$351, 0), MATCH(Selection_Hide2!R$5, 'Full set Core Client Indicator'!$A$3:$AB$3, 0))), \"\")","v":""},{"$f":"IF(R266<>\"\", IF(INDEX('Full set Core Client Indicator'!$A$3:$AB$351, MATCH(Selection_Hide2!$A266, 'Full set Core Client Indicator'!$A$3:$A$351, 0), MATCH(Selection_Hide2!S$5, 'Full set Core Client Indicator'!$A$3:$AB$3, 0))=\"\", \"\",  INDEX('Full set Core Client Indicator'!$A$3:$AB$351, MATCH(Selection_Hide2!$A266, 'Full set Core Client Indicator'!$A$3:$A$351, 0), MATCH(Selection_Hide2!S$5, 'Full set Core Client Indicator'!$A$3:$AB$3, 0))), \"\")","v":""},{"$f":"IF(S266<>\"\", IF(INDEX('Full set Core Client Indicator'!$A$3:$AB$351, MATCH(Selection_Hide2!$A266, 'Full set Core Client Indicator'!$A$3:$A$351, 0), MATCH(Selection_Hide2!T$5, 'Full set Core Client Indicator'!$A$3:$AB$3, 0))=\"\", \"\",  INDEX('Full set Core Client Indicator'!$A$3:$AB$351, MATCH(Selection_Hide2!$A266, 'Full set Core Client Indicator'!$A$3:$A$351, 0), MATCH(Selection_Hide2!T$5, 'Full set Core Client Indicator'!$A$3:$AB$3, 0))), \"\")","v":""},{"$f":"IF(T266<>\"\", IF(INDEX('Full set Core Client Indicator'!$A$3:$AB$351, MATCH(Selection_Hide2!$A266, 'Full set Core Client Indicator'!$A$3:$A$351, 0), MATCH(Selection_Hide2!U$5, 'Full set Core Client Indicator'!$A$3:$AB$3, 0))=\"\", \"\",  INDEX('Full set Core Client Indicator'!$A$3:$AB$351, MATCH(Selection_Hide2!$A266, 'Full set Core Client Indicator'!$A$3:$A$351, 0), MATCH(Selection_Hide2!U$5, 'Full set Core Client Indicator'!$A$3:$AB$3, 0))), \"\")","v":""},{"$f":"IF(U266<>\"\", IF(INDEX('Full set Core Client Indicator'!$A$3:$AB$351, MATCH(Selection_Hide2!$A266, 'Full set Core Client Indicator'!$A$3:$A$351, 0), MATCH(Selection_Hide2!V$5, 'Full set Core Client Indicator'!$A$3:$AB$3, 0))=\"\", \"\",  INDEX('Full set Core Client Indicator'!$A$3:$AB$351, MATCH(Selection_Hide2!$A266, 'Full set Core Client Indicator'!$A$3:$A$351, 0), MATCH(Selection_Hide2!V$5, 'Full set Core Client Indicator'!$A$3:$AB$3, 0))), \"\")","v":""},{"$f":"IF(V266<>\"\", IF(INDEX('Full set Core Client Indicator'!$A$3:$AB$351, MATCH(Selection_Hide2!$A266, 'Full set Core Client Indicator'!$A$3:$A$351, 0), MATCH(Selection_Hide2!W$5, 'Full set Core Client Indicator'!$A$3:$AB$3, 0))=\"\", \"\",  INDEX('Full set Core Client Indicator'!$A$3:$AB$351, MATCH(Selection_Hide2!$A266, 'Full set Core Client Indicator'!$A$3:$A$351, 0), MATCH(Selection_Hide2!W$5, 'Full set Core Client Indicator'!$A$3:$AB$3, 0))), \"\")","v":""},{"$f":"IF(W266<>\"\", IF(INDEX('Full set Core Client Indicator'!$A$3:$AB$351, MATCH(Selection_Hide2!$A266, 'Full set Core Client Indicator'!$A$3:$A$351, 0), MATCH(Selection_Hide2!X$5, 'Full set Core Client Indicator'!$A$3:$AB$3, 0))=\"\", \"\",  INDEX('Full set Core Client Indicator'!$A$3:$AB$351, MATCH(Selection_Hide2!$A266, 'Full set Core Client Indicator'!$A$3:$A$351, 0), MATCH(Selection_Hide2!X$5, 'Full set Core Client Indicator'!$A$3:$AB$3, 0))), \"\")","v":""},{"$f":"IF(X266<>\"\", IF(INDEX('Full set Core Client Indicator'!$A$3:$AB$351, MATCH(Selection_Hide2!$A266, 'Full set Core Client Indicator'!$A$3:$A$351, 0), MATCH(Selection_Hide2!Y$5, 'Full set Core Client Indicator'!$A$3:$AB$3, 0))=\"\", \"\",  INDEX('Full set Core Client Indicator'!$A$3:$AB$351, MATCH(Selection_Hide2!$A266, 'Full set Core Client Indicator'!$A$3:$A$351, 0), MATCH(Selection_Hide2!Y$5, 'Full set Core Client Indicator'!$A$3:$AB$3, 0))), \"\")","v":""},{"$f":"IF(Y266<>\"\", IF(INDEX('Full set Core Client Indicator'!$A$3:$AB$351, MATCH(Selection_Hide2!$A266, 'Full set Core Client Indicator'!$A$3:$A$351, 0), MATCH(Selection_Hide2!Z$5, 'Full set Core Client Indicator'!$A$3:$AB$3, 0))=\"\", \"\",  INDEX('Full set Core Client Indicator'!$A$3:$AB$351, MATCH(Selection_Hide2!$A266, 'Full set Core Client Indicator'!$A$3:$A$351, 0), MATCH(Selection_Hide2!Z$5, 'Full set Core Client Indicator'!$A$3:$AB$3, 0))), \"\")","v":""},{"$f":"IF(Z266<>\"\", IF(INDEX('Full set Core Client Indicator'!$A$3:$AB$351, MATCH(Selection_Hide2!$A266, 'Full set Core Client Indicator'!$A$3:$A$351, 0), MATCH(Selection_Hide2!AA$5, 'Full set Core Client Indicator'!$A$3:$AB$3, 0))=\"\", \"\",  INDEX('Full set Core Client Indicator'!$A$3:$AB$351, MATCH(Selection_Hide2!$A266, 'Full set Core Client Indicator'!$A$3:$A$351, 0), MATCH(Selection_Hide2!AA$5, 'Full set Core Client Indicator'!$A$3:$AB$3, 0))), \"\")","v":""},{"$f":"IF(AA266<>\"\", IF(INDEX('Full set Core Client Indicator'!$A$3:$AB$351, MATCH(Selection_Hide2!$A266, 'Full set Core Client Indicator'!$A$3:$A$351, 0), MATCH(Selection_Hide2!AB$5, 'Full set Core Client Indicator'!$A$3:$AB$3, 0))=\"\", \"\",  INDEX('Full set Core Client Indicator'!$A$3:$AB$351, MATCH(Selection_Hide2!$A266, 'Full set Core Client Indicator'!$A$3:$A$351, 0), MATCH(Selection_Hide2!AB$5, 'Full set Core Client Indicator'!$A$3:$AB$3, 0))), \"\")","v":""}]
[{"$f":"IF(AND(Selection_Hide1!C265<>0, Selection_Hide1!C265<>\"Grand Total\"), Selection_Hide1!C265, \"\")","v":""},{"$f":"IF(A267<>\"\", IF(INDEX('Full set Core Client Indicator'!$A$3:$AB$351, MATCH(Selection_Hide2!$A267, 'Full set Core Client Indicator'!$A$3:$A$351, 0), MATCH(Selection_Hide2!B$5, 'Full set Core Client Indicator'!$A$3:$AB$3, 0))=\"\", \"\",  INDEX('Full set Core Client Indicator'!$A$3:$AB$351, MATCH(Selection_Hide2!$A267, 'Full set Core Client Indicator'!$A$3:$A$351, 0), MATCH(Selection_Hide2!B$5, 'Full set Core Client Indicator'!$A$3:$AB$3, 0))), \"\")","v":""},{"$f":"IF(B267<>\"\", IF(INDEX('Full set Core Client Indicator'!$A$3:$AB$351, MATCH(Selection_Hide2!$A267, 'Full set Core Client Indicator'!$A$3:$A$351, 0), MATCH(Selection_Hide2!C$5, 'Full set Core Client Indicator'!$A$3:$AB$3, 0))=\"\", \"\",  INDEX('Full set Core Client Indicator'!$A$3:$AB$351, MATCH(Selection_Hide2!$A267, 'Full set Core Client Indicator'!$A$3:$A$351, 0), MATCH(Selection_Hide2!C$5, 'Full set Core Client Indicator'!$A$3:$AB$3, 0))), \"\")","v":""},{"$f":"IF(C267<>\"\", IF(INDEX('Full set Core Client Indicator'!$A$3:$AB$351, MATCH(Selection_Hide2!$A267, 'Full set Core Client Indicator'!$A$3:$A$351, 0), MATCH(Selection_Hide2!D$5, 'Full set Core Client Indicator'!$A$3:$AB$3, 0))=\"\", \"\",  INDEX('Full set Core Client Indicator'!$A$3:$AB$351, MATCH(Selection_Hide2!$A267, 'Full set Core Client Indicator'!$A$3:$A$351, 0), MATCH(Selection_Hide2!D$5, 'Full set Core Client Indicator'!$A$3:$AB$3, 0))), \"\")","v":""},{"$f":"IF(D267<>\"\", IF(INDEX('Full set Core Client Indicator'!$A$3:$AB$351, MATCH(Selection_Hide2!$A267, 'Full set Core Client Indicator'!$A$3:$A$351, 0), MATCH(Selection_Hide2!E$5, 'Full set Core Client Indicator'!$A$3:$AB$3, 0))=\"\", \"\",  INDEX('Full set Core Client Indicator'!$A$3:$AB$351, MATCH(Selection_Hide2!$A267, 'Full set Core Client Indicator'!$A$3:$A$351, 0), MATCH(Selection_Hide2!E$5, 'Full set Core Client Indicator'!$A$3:$AB$3, 0))), \"\")","v":""},{"$f":"IF(E267<>\"\", IF(INDEX('Full set Core Client Indicator'!$A$3:$AB$351, MATCH(Selection_Hide2!$A267, 'Full set Core Client Indicator'!$A$3:$A$351, 0), MATCH(Selection_Hide2!F$5, 'Full set Core Client Indicator'!$A$3:$AB$3, 0))=\"\", \"\",  INDEX('Full set Core Client Indicator'!$A$3:$AB$351, MATCH(Selection_Hide2!$A267, 'Full set Core Client Indicator'!$A$3:$A$351, 0), MATCH(Selection_Hide2!F$5, 'Full set Core Client Indicator'!$A$3:$AB$3, 0))), \"\")","v":""},{"$f":"IF(F267<>\"\", IF(INDEX('Full set Core Client Indicator'!$A$3:$AB$351, MATCH(Selection_Hide2!$A267, 'Full set Core Client Indicator'!$A$3:$A$351, 0), MATCH(Selection_Hide2!G$5, 'Full set Core Client Indicator'!$A$3:$AB$3, 0))=\"\", \"\",  INDEX('Full set Core Client Indicator'!$A$3:$AB$351, MATCH(Selection_Hide2!$A267, 'Full set Core Client Indicator'!$A$3:$A$351, 0), MATCH(Selection_Hide2!G$5, 'Full set Core Client Indicator'!$A$3:$AB$3, 0))), \"\")","v":""},{"$f":"IF(G267<>\"\", IF(INDEX('Full set Core Client Indicator'!$A$3:$AB$351, MATCH(Selection_Hide2!$A267, 'Full set Core Client Indicator'!$A$3:$A$351, 0), MATCH(Selection_Hide2!H$5, 'Full set Core Client Indicator'!$A$3:$AB$3, 0))=\"\", \"\",  INDEX('Full set Core Client Indicator'!$A$3:$AB$351, MATCH(Selection_Hide2!$A267, 'Full set Core Client Indicator'!$A$3:$A$351, 0), MATCH(Selection_Hide2!H$5, 'Full set Core Client Indicator'!$A$3:$AB$3, 0))), \"\")","v":""},{"$f":"IF(H267<>\"\", IF(INDEX('Full set Core Client Indicator'!$A$3:$AB$351, MATCH(Selection_Hide2!$A267, 'Full set Core Client Indicator'!$A$3:$A$351, 0), MATCH(Selection_Hide2!I$5, 'Full set Core Client Indicator'!$A$3:$AB$3, 0))=\"\", \"\",  INDEX('Full set Core Client Indicator'!$A$3:$AB$351, MATCH(Selection_Hide2!$A267, 'Full set Core Client Indicator'!$A$3:$A$351, 0), MATCH(Selection_Hide2!I$5, 'Full set Core Client Indicator'!$A$3:$AB$3, 0))), \"\")","v":""},{"$f":"IF(I267<>\"\", IF(INDEX('Full set Core Client Indicator'!$A$3:$AB$351, MATCH(Selection_Hide2!$A267, 'Full set Core Client Indicator'!$A$3:$A$351, 0), MATCH(Selection_Hide2!J$5, 'Full set Core Client Indicator'!$A$3:$AB$3, 0))=\"\", \"\",  INDEX('Full set Core Client Indicator'!$A$3:$AB$351, MATCH(Selection_Hide2!$A267, 'Full set Core Client Indicator'!$A$3:$A$351, 0), MATCH(Selection_Hide2!J$5, 'Full set Core Client Indicator'!$A$3:$AB$3, 0))), \"\")","v":""},{"$f":"IF(J267<>\"\", IF(INDEX('Full set Core Client Indicator'!$A$3:$AB$351, MATCH(Selection_Hide2!$A267, 'Full set Core Client Indicator'!$A$3:$A$351, 0), MATCH(Selection_Hide2!K$5, 'Full set Core Client Indicator'!$A$3:$AB$3, 0))=\"\", \"\",  INDEX('Full set Core Client Indicator'!$A$3:$AB$351, MATCH(Selection_Hide2!$A267, 'Full set Core Client Indicator'!$A$3:$A$351, 0), MATCH(Selection_Hide2!K$5, 'Full set Core Client Indicator'!$A$3:$AB$3, 0))), \"\")","v":""},{"$f":"IF(K267<>\"\", IF(INDEX('Full set Core Client Indicator'!$A$3:$AB$351, MATCH(Selection_Hide2!$A267, 'Full set Core Client Indicator'!$A$3:$A$351, 0), MATCH(Selection_Hide2!L$5, 'Full set Core Client Indicator'!$A$3:$AB$3, 0))=\"\", \"\",  INDEX('Full set Core Client Indicator'!$A$3:$AB$351, MATCH(Selection_Hide2!$A267, 'Full set Core Client Indicator'!$A$3:$A$351, 0), MATCH(Selection_Hide2!L$5, 'Full set Core Client Indicator'!$A$3:$AB$3, 0))), \"\")","v":""},{"$f":"IF(L267<>\"\", IF(INDEX('Full set Core Client Indicator'!$A$3:$AB$351, MATCH(Selection_Hide2!$A267, 'Full set Core Client Indicator'!$A$3:$A$351, 0), MATCH(Selection_Hide2!M$5, 'Full set Core Client Indicator'!$A$3:$AB$3, 0))=\"\", \"\",  INDEX('Full set Core Client Indicator'!$A$3:$AB$351, MATCH(Selection_Hide2!$A267, 'Full set Core Client Indicator'!$A$3:$A$351, 0), MATCH(Selection_Hide2!M$5, 'Full set Core Client Indicator'!$A$3:$AB$3, 0))), \"\")","v":""},{"$f":"IF(M267<>\"\", IF(INDEX('Full set Core Client Indicator'!$A$3:$AB$351, MATCH(Selection_Hide2!$A267, 'Full set Core Client Indicator'!$A$3:$A$351, 0), MATCH(Selection_Hide2!N$5, 'Full set Core Client Indicator'!$A$3:$AB$3, 0))=\"\", \"\",  INDEX('Full set Core Client Indicator'!$A$3:$AB$351, MATCH(Selection_Hide2!$A267, 'Full set Core Client Indicator'!$A$3:$A$351, 0), MATCH(Selection_Hide2!N$5, 'Full set Core Client Indicator'!$A$3:$AB$3, 0))), \"\")","v":""},{"$f":"IF(N267<>\"\", IF(INDEX('Full set Core Client Indicator'!$A$3:$AB$351, MATCH(Selection_Hide2!$A267, 'Full set Core Client Indicator'!$A$3:$A$351, 0), MATCH(Selection_Hide2!O$5, 'Full set Core Client Indicator'!$A$3:$AB$3, 0))=\"\", \"\",  INDEX('Full set Core Client Indicator'!$A$3:$AB$351, MATCH(Selection_Hide2!$A267, 'Full set Core Client Indicator'!$A$3:$A$351, 0), MATCH(Selection_Hide2!O$5, 'Full set Core Client Indicator'!$A$3:$AB$3, 0))), \"\")","v":""},{"$f":"IF(O267<>\"\", IF(INDEX('Full set Core Client Indicator'!$A$3:$AB$351, MATCH(Selection_Hide2!$A267, 'Full set Core Client Indicator'!$A$3:$A$351, 0), MATCH(Selection_Hide2!P$5, 'Full set Core Client Indicator'!$A$3:$AB$3, 0))=\"\", \"\",  INDEX('Full set Core Client Indicator'!$A$3:$AB$351, MATCH(Selection_Hide2!$A267, 'Full set Core Client Indicator'!$A$3:$A$351, 0), MATCH(Selection_Hide2!P$5, 'Full set Core Client Indicator'!$A$3:$AB$3, 0))), \"\")","v":""},{"$f":"IF(P267<>\"\", IF(INDEX('Full set Core Client Indicator'!$A$3:$AB$351, MATCH(Selection_Hide2!$A267, 'Full set Core Client Indicator'!$A$3:$A$351, 0), MATCH(Selection_Hide2!Q$5, 'Full set Core Client Indicator'!$A$3:$AB$3, 0))=\"\", \"\",  INDEX('Full set Core Client Indicator'!$A$3:$AB$351, MATCH(Selection_Hide2!$A267, 'Full set Core Client Indicator'!$A$3:$A$351, 0), MATCH(Selection_Hide2!Q$5, 'Full set Core Client Indicator'!$A$3:$AB$3, 0))), \"\")","v":""},{"$f":"IF(Q267<>\"\", IF(INDEX('Full set Core Client Indicator'!$A$3:$AB$351, MATCH(Selection_Hide2!$A267, 'Full set Core Client Indicator'!$A$3:$A$351, 0), MATCH(Selection_Hide2!R$5, 'Full set Core Client Indicator'!$A$3:$AB$3, 0))=\"\", \"\",  INDEX('Full set Core Client Indicator'!$A$3:$AB$351, MATCH(Selection_Hide2!$A267, 'Full set Core Client Indicator'!$A$3:$A$351, 0), MATCH(Selection_Hide2!R$5, 'Full set Core Client Indicator'!$A$3:$AB$3, 0))), \"\")","v":""},{"$f":"IF(R267<>\"\", IF(INDEX('Full set Core Client Indicator'!$A$3:$AB$351, MATCH(Selection_Hide2!$A267, 'Full set Core Client Indicator'!$A$3:$A$351, 0), MATCH(Selection_Hide2!S$5, 'Full set Core Client Indicator'!$A$3:$AB$3, 0))=\"\", \"\",  INDEX('Full set Core Client Indicator'!$A$3:$AB$351, MATCH(Selection_Hide2!$A267, 'Full set Core Client Indicator'!$A$3:$A$351, 0), MATCH(Selection_Hide2!S$5, 'Full set Core Client Indicator'!$A$3:$AB$3, 0))), \"\")","v":""},{"$f":"IF(S267<>\"\", IF(INDEX('Full set Core Client Indicator'!$A$3:$AB$351, MATCH(Selection_Hide2!$A267, 'Full set Core Client Indicator'!$A$3:$A$351, 0), MATCH(Selection_Hide2!T$5, 'Full set Core Client Indicator'!$A$3:$AB$3, 0))=\"\", \"\",  INDEX('Full set Core Client Indicator'!$A$3:$AB$351, MATCH(Selection_Hide2!$A267, 'Full set Core Client Indicator'!$A$3:$A$351, 0), MATCH(Selection_Hide2!T$5, 'Full set Core Client Indicator'!$A$3:$AB$3, 0))), \"\")","v":""},{"$f":"IF(T267<>\"\", IF(INDEX('Full set Core Client Indicator'!$A$3:$AB$351, MATCH(Selection_Hide2!$A267, 'Full set Core Client Indicator'!$A$3:$A$351, 0), MATCH(Selection_Hide2!U$5, 'Full set Core Client Indicator'!$A$3:$AB$3, 0))=\"\", \"\",  INDEX('Full set Core Client Indicator'!$A$3:$AB$351, MATCH(Selection_Hide2!$A267, 'Full set Core Client Indicator'!$A$3:$A$351, 0), MATCH(Selection_Hide2!U$5, 'Full set Core Client Indicator'!$A$3:$AB$3, 0))), \"\")","v":""},{"$f":"IF(U267<>\"\", IF(INDEX('Full set Core Client Indicator'!$A$3:$AB$351, MATCH(Selection_Hide2!$A267, 'Full set Core Client Indicator'!$A$3:$A$351, 0), MATCH(Selection_Hide2!V$5, 'Full set Core Client Indicator'!$A$3:$AB$3, 0))=\"\", \"\",  INDEX('Full set Core Client Indicator'!$A$3:$AB$351, MATCH(Selection_Hide2!$A267, 'Full set Core Client Indicator'!$A$3:$A$351, 0), MATCH(Selection_Hide2!V$5, 'Full set Core Client Indicator'!$A$3:$AB$3, 0))), \"\")","v":""},{"$f":"IF(V267<>\"\", IF(INDEX('Full set Core Client Indicator'!$A$3:$AB$351, MATCH(Selection_Hide2!$A267, 'Full set Core Client Indicator'!$A$3:$A$351, 0), MATCH(Selection_Hide2!W$5, 'Full set Core Client Indicator'!$A$3:$AB$3, 0))=\"\", \"\",  INDEX('Full set Core Client Indicator'!$A$3:$AB$351, MATCH(Selection_Hide2!$A267, 'Full set Core Client Indicator'!$A$3:$A$351, 0), MATCH(Selection_Hide2!W$5, 'Full set Core Client Indicator'!$A$3:$AB$3, 0))), \"\")","v":""},{"$f":"IF(W267<>\"\", IF(INDEX('Full set Core Client Indicator'!$A$3:$AB$351, MATCH(Selection_Hide2!$A267, 'Full set Core Client Indicator'!$A$3:$A$351, 0), MATCH(Selection_Hide2!X$5, 'Full set Core Client Indicator'!$A$3:$AB$3, 0))=\"\", \"\",  INDEX('Full set Core Client Indicator'!$A$3:$AB$351, MATCH(Selection_Hide2!$A267, 'Full set Core Client Indicator'!$A$3:$A$351, 0), MATCH(Selection_Hide2!X$5, 'Full set Core Client Indicator'!$A$3:$AB$3, 0))), \"\")","v":""},{"$f":"IF(X267<>\"\", IF(INDEX('Full set Core Client Indicator'!$A$3:$AB$351, MATCH(Selection_Hide2!$A267, 'Full set Core Client Indicator'!$A$3:$A$351, 0), MATCH(Selection_Hide2!Y$5, 'Full set Core Client Indicator'!$A$3:$AB$3, 0))=\"\", \"\",  INDEX('Full set Core Client Indicator'!$A$3:$AB$351, MATCH(Selection_Hide2!$A267, 'Full set Core Client Indicator'!$A$3:$A$351, 0), MATCH(Selection_Hide2!Y$5, 'Full set Core Client Indicator'!$A$3:$AB$3, 0))), \"\")","v":""},{"$f":"IF(Y267<>\"\", IF(INDEX('Full set Core Client Indicator'!$A$3:$AB$351, MATCH(Selection_Hide2!$A267, 'Full set Core Client Indicator'!$A$3:$A$351, 0), MATCH(Selection_Hide2!Z$5, 'Full set Core Client Indicator'!$A$3:$AB$3, 0))=\"\", \"\",  INDEX('Full set Core Client Indicator'!$A$3:$AB$351, MATCH(Selection_Hide2!$A267, 'Full set Core Client Indicator'!$A$3:$A$351, 0), MATCH(Selection_Hide2!Z$5, 'Full set Core Client Indicator'!$A$3:$AB$3, 0))), \"\")","v":""},{"$f":"IF(Z267<>\"\", IF(INDEX('Full set Core Client Indicator'!$A$3:$AB$351, MATCH(Selection_Hide2!$A267, 'Full set Core Client Indicator'!$A$3:$A$351, 0), MATCH(Selection_Hide2!AA$5, 'Full set Core Client Indicator'!$A$3:$AB$3, 0))=\"\", \"\",  INDEX('Full set Core Client Indicator'!$A$3:$AB$351, MATCH(Selection_Hide2!$A267, 'Full set Core Client Indicator'!$A$3:$A$351, 0), MATCH(Selection_Hide2!AA$5, 'Full set Core Client Indicator'!$A$3:$AB$3, 0))), \"\")","v":""},{"$f":"IF(AA267<>\"\", IF(INDEX('Full set Core Client Indicator'!$A$3:$AB$351, MATCH(Selection_Hide2!$A267, 'Full set Core Client Indicator'!$A$3:$A$351, 0), MATCH(Selection_Hide2!AB$5, 'Full set Core Client Indicator'!$A$3:$AB$3, 0))=\"\", \"\",  INDEX('Full set Core Client Indicator'!$A$3:$AB$351, MATCH(Selection_Hide2!$A267, 'Full set Core Client Indicator'!$A$3:$A$351, 0), MATCH(Selection_Hide2!AB$5, 'Full set Core Client Indicator'!$A$3:$AB$3, 0))), \"\")","v":""}]
[{"$f":"IF(AND(Selection_Hide1!C266<>0, Selection_Hide1!C266<>\"Grand Total\"), Selection_Hide1!C266, \"\")","v":""},{"$f":"IF(A268<>\"\", IF(INDEX('Full set Core Client Indicator'!$A$3:$AB$351, MATCH(Selection_Hide2!$A268, 'Full set Core Client Indicator'!$A$3:$A$351, 0), MATCH(Selection_Hide2!B$5, 'Full set Core Client Indicator'!$A$3:$AB$3, 0))=\"\", \"\",  INDEX('Full set Core Client Indicator'!$A$3:$AB$351, MATCH(Selection_Hide2!$A268, 'Full set Core Client Indicator'!$A$3:$A$351, 0), MATCH(Selection_Hide2!B$5, 'Full set Core Client Indicator'!$A$3:$AB$3, 0))), \"\")","v":""},{"$f":"IF(B268<>\"\", IF(INDEX('Full set Core Client Indicator'!$A$3:$AB$351, MATCH(Selection_Hide2!$A268, 'Full set Core Client Indicator'!$A$3:$A$351, 0), MATCH(Selection_Hide2!C$5, 'Full set Core Client Indicator'!$A$3:$AB$3, 0))=\"\", \"\",  INDEX('Full set Core Client Indicator'!$A$3:$AB$351, MATCH(Selection_Hide2!$A268, 'Full set Core Client Indicator'!$A$3:$A$351, 0), MATCH(Selection_Hide2!C$5, 'Full set Core Client Indicator'!$A$3:$AB$3, 0))), \"\")","v":""},{"$f":"IF(C268<>\"\", IF(INDEX('Full set Core Client Indicator'!$A$3:$AB$351, MATCH(Selection_Hide2!$A268, 'Full set Core Client Indicator'!$A$3:$A$351, 0), MATCH(Selection_Hide2!D$5, 'Full set Core Client Indicator'!$A$3:$AB$3, 0))=\"\", \"\",  INDEX('Full set Core Client Indicator'!$A$3:$AB$351, MATCH(Selection_Hide2!$A268, 'Full set Core Client Indicator'!$A$3:$A$351, 0), MATCH(Selection_Hide2!D$5, 'Full set Core Client Indicator'!$A$3:$AB$3, 0))), \"\")","v":""},{"$f":"IF(D268<>\"\", IF(INDEX('Full set Core Client Indicator'!$A$3:$AB$351, MATCH(Selection_Hide2!$A268, 'Full set Core Client Indicator'!$A$3:$A$351, 0), MATCH(Selection_Hide2!E$5, 'Full set Core Client Indicator'!$A$3:$AB$3, 0))=\"\", \"\",  INDEX('Full set Core Client Indicator'!$A$3:$AB$351, MATCH(Selection_Hide2!$A268, 'Full set Core Client Indicator'!$A$3:$A$351, 0), MATCH(Selection_Hide2!E$5, 'Full set Core Client Indicator'!$A$3:$AB$3, 0))), \"\")","v":""},{"$f":"IF(E268<>\"\", IF(INDEX('Full set Core Client Indicator'!$A$3:$AB$351, MATCH(Selection_Hide2!$A268, 'Full set Core Client Indicator'!$A$3:$A$351, 0), MATCH(Selection_Hide2!F$5, 'Full set Core Client Indicator'!$A$3:$AB$3, 0))=\"\", \"\",  INDEX('Full set Core Client Indicator'!$A$3:$AB$351, MATCH(Selection_Hide2!$A268, 'Full set Core Client Indicator'!$A$3:$A$351, 0), MATCH(Selection_Hide2!F$5, 'Full set Core Client Indicator'!$A$3:$AB$3, 0))), \"\")","v":""},{"$f":"IF(F268<>\"\", IF(INDEX('Full set Core Client Indicator'!$A$3:$AB$351, MATCH(Selection_Hide2!$A268, 'Full set Core Client Indicator'!$A$3:$A$351, 0), MATCH(Selection_Hide2!G$5, 'Full set Core Client Indicator'!$A$3:$AB$3, 0))=\"\", \"\",  INDEX('Full set Core Client Indicator'!$A$3:$AB$351, MATCH(Selection_Hide2!$A268, 'Full set Core Client Indicator'!$A$3:$A$351, 0), MATCH(Selection_Hide2!G$5, 'Full set Core Client Indicator'!$A$3:$AB$3, 0))), \"\")","v":""},{"$f":"IF(G268<>\"\", IF(INDEX('Full set Core Client Indicator'!$A$3:$AB$351, MATCH(Selection_Hide2!$A268, 'Full set Core Client Indicator'!$A$3:$A$351, 0), MATCH(Selection_Hide2!H$5, 'Full set Core Client Indicator'!$A$3:$AB$3, 0))=\"\", \"\",  INDEX('Full set Core Client Indicator'!$A$3:$AB$351, MATCH(Selection_Hide2!$A268, 'Full set Core Client Indicator'!$A$3:$A$351, 0), MATCH(Selection_Hide2!H$5, 'Full set Core Client Indicator'!$A$3:$AB$3, 0))), \"\")","v":""},{"$f":"IF(H268<>\"\", IF(INDEX('Full set Core Client Indicator'!$A$3:$AB$351, MATCH(Selection_Hide2!$A268, 'Full set Core Client Indicator'!$A$3:$A$351, 0), MATCH(Selection_Hide2!I$5, 'Full set Core Client Indicator'!$A$3:$AB$3, 0))=\"\", \"\",  INDEX('Full set Core Client Indicator'!$A$3:$AB$351, MATCH(Selection_Hide2!$A268, 'Full set Core Client Indicator'!$A$3:$A$351, 0), MATCH(Selection_Hide2!I$5, 'Full set Core Client Indicator'!$A$3:$AB$3, 0))), \"\")","v":""},{"$f":"IF(I268<>\"\", IF(INDEX('Full set Core Client Indicator'!$A$3:$AB$351, MATCH(Selection_Hide2!$A268, 'Full set Core Client Indicator'!$A$3:$A$351, 0), MATCH(Selection_Hide2!J$5, 'Full set Core Client Indicator'!$A$3:$AB$3, 0))=\"\", \"\",  INDEX('Full set Core Client Indicator'!$A$3:$AB$351, MATCH(Selection_Hide2!$A268, 'Full set Core Client Indicator'!$A$3:$A$351, 0), MATCH(Selection_Hide2!J$5, 'Full set Core Client Indicator'!$A$3:$AB$3, 0))), \"\")","v":""},{"$f":"IF(J268<>\"\", IF(INDEX('Full set Core Client Indicator'!$A$3:$AB$351, MATCH(Selection_Hide2!$A268, 'Full set Core Client Indicator'!$A$3:$A$351, 0), MATCH(Selection_Hide2!K$5, 'Full set Core Client Indicator'!$A$3:$AB$3, 0))=\"\", \"\",  INDEX('Full set Core Client Indicator'!$A$3:$AB$351, MATCH(Selection_Hide2!$A268, 'Full set Core Client Indicator'!$A$3:$A$351, 0), MATCH(Selection_Hide2!K$5, 'Full set Core Client Indicator'!$A$3:$AB$3, 0))), \"\")","v":""},{"$f":"IF(K268<>\"\", IF(INDEX('Full set Core Client Indicator'!$A$3:$AB$351, MATCH(Selection_Hide2!$A268, 'Full set Core Client Indicator'!$A$3:$A$351, 0), MATCH(Selection_Hide2!L$5, 'Full set Core Client Indicator'!$A$3:$AB$3, 0))=\"\", \"\",  INDEX('Full set Core Client Indicator'!$A$3:$AB$351, MATCH(Selection_Hide2!$A268, 'Full set Core Client Indicator'!$A$3:$A$351, 0), MATCH(Selection_Hide2!L$5, 'Full set Core Client Indicator'!$A$3:$AB$3, 0))), \"\")","v":""},{"$f":"IF(L268<>\"\", IF(INDEX('Full set Core Client Indicator'!$A$3:$AB$351, MATCH(Selection_Hide2!$A268, 'Full set Core Client Indicator'!$A$3:$A$351, 0), MATCH(Selection_Hide2!M$5, 'Full set Core Client Indicator'!$A$3:$AB$3, 0))=\"\", \"\",  INDEX('Full set Core Client Indicator'!$A$3:$AB$351, MATCH(Selection_Hide2!$A268, 'Full set Core Client Indicator'!$A$3:$A$351, 0), MATCH(Selection_Hide2!M$5, 'Full set Core Client Indicator'!$A$3:$AB$3, 0))), \"\")","v":""},{"$f":"IF(M268<>\"\", IF(INDEX('Full set Core Client Indicator'!$A$3:$AB$351, MATCH(Selection_Hide2!$A268, 'Full set Core Client Indicator'!$A$3:$A$351, 0), MATCH(Selection_Hide2!N$5, 'Full set Core Client Indicator'!$A$3:$AB$3, 0))=\"\", \"\",  INDEX('Full set Core Client Indicator'!$A$3:$AB$351, MATCH(Selection_Hide2!$A268, 'Full set Core Client Indicator'!$A$3:$A$351, 0), MATCH(Selection_Hide2!N$5, 'Full set Core Client Indicator'!$A$3:$AB$3, 0))), \"\")","v":""},{"$f":"IF(N268<>\"\", IF(INDEX('Full set Core Client Indicator'!$A$3:$AB$351, MATCH(Selection_Hide2!$A268, 'Full set Core Client Indicator'!$A$3:$A$351, 0), MATCH(Selection_Hide2!O$5, 'Full set Core Client Indicator'!$A$3:$AB$3, 0))=\"\", \"\",  INDEX('Full set Core Client Indicator'!$A$3:$AB$351, MATCH(Selection_Hide2!$A268, 'Full set Core Client Indicator'!$A$3:$A$351, 0), MATCH(Selection_Hide2!O$5, 'Full set Core Client Indicator'!$A$3:$AB$3, 0))), \"\")","v":""},{"$f":"IF(O268<>\"\", IF(INDEX('Full set Core Client Indicator'!$A$3:$AB$351, MATCH(Selection_Hide2!$A268, 'Full set Core Client Indicator'!$A$3:$A$351, 0), MATCH(Selection_Hide2!P$5, 'Full set Core Client Indicator'!$A$3:$AB$3, 0))=\"\", \"\",  INDEX('Full set Core Client Indicator'!$A$3:$AB$351, MATCH(Selection_Hide2!$A268, 'Full set Core Client Indicator'!$A$3:$A$351, 0), MATCH(Selection_Hide2!P$5, 'Full set Core Client Indicator'!$A$3:$AB$3, 0))), \"\")","v":""},{"$f":"IF(P268<>\"\", IF(INDEX('Full set Core Client Indicator'!$A$3:$AB$351, MATCH(Selection_Hide2!$A268, 'Full set Core Client Indicator'!$A$3:$A$351, 0), MATCH(Selection_Hide2!Q$5, 'Full set Core Client Indicator'!$A$3:$AB$3, 0))=\"\", \"\",  INDEX('Full set Core Client Indicator'!$A$3:$AB$351, MATCH(Selection_Hide2!$A268, 'Full set Core Client Indicator'!$A$3:$A$351, 0), MATCH(Selection_Hide2!Q$5, 'Full set Core Client Indicator'!$A$3:$AB$3, 0))), \"\")","v":""},{"$f":"IF(Q268<>\"\", IF(INDEX('Full set Core Client Indicator'!$A$3:$AB$351, MATCH(Selection_Hide2!$A268, 'Full set Core Client Indicator'!$A$3:$A$351, 0), MATCH(Selection_Hide2!R$5, 'Full set Core Client Indicator'!$A$3:$AB$3, 0))=\"\", \"\",  INDEX('Full set Core Client Indicator'!$A$3:$AB$351, MATCH(Selection_Hide2!$A268, 'Full set Core Client Indicator'!$A$3:$A$351, 0), MATCH(Selection_Hide2!R$5, 'Full set Core Client Indicator'!$A$3:$AB$3, 0))), \"\")","v":""},{"$f":"IF(R268<>\"\", IF(INDEX('Full set Core Client Indicator'!$A$3:$AB$351, MATCH(Selection_Hide2!$A268, 'Full set Core Client Indicator'!$A$3:$A$351, 0), MATCH(Selection_Hide2!S$5, 'Full set Core Client Indicator'!$A$3:$AB$3, 0))=\"\", \"\",  INDEX('Full set Core Client Indicator'!$A$3:$AB$351, MATCH(Selection_Hide2!$A268, 'Full set Core Client Indicator'!$A$3:$A$351, 0), MATCH(Selection_Hide2!S$5, 'Full set Core Client Indicator'!$A$3:$AB$3, 0))), \"\")","v":""},{"$f":"IF(S268<>\"\", IF(INDEX('Full set Core Client Indicator'!$A$3:$AB$351, MATCH(Selection_Hide2!$A268, 'Full set Core Client Indicator'!$A$3:$A$351, 0), MATCH(Selection_Hide2!T$5, 'Full set Core Client Indicator'!$A$3:$AB$3, 0))=\"\", \"\",  INDEX('Full set Core Client Indicator'!$A$3:$AB$351, MATCH(Selection_Hide2!$A268, 'Full set Core Client Indicator'!$A$3:$A$351, 0), MATCH(Selection_Hide2!T$5, 'Full set Core Client Indicator'!$A$3:$AB$3, 0))), \"\")","v":""},{"$f":"IF(T268<>\"\", IF(INDEX('Full set Core Client Indicator'!$A$3:$AB$351, MATCH(Selection_Hide2!$A268, 'Full set Core Client Indicator'!$A$3:$A$351, 0), MATCH(Selection_Hide2!U$5, 'Full set Core Client Indicator'!$A$3:$AB$3, 0))=\"\", \"\",  INDEX('Full set Core Client Indicator'!$A$3:$AB$351, MATCH(Selection_Hide2!$A268, 'Full set Core Client Indicator'!$A$3:$A$351, 0), MATCH(Selection_Hide2!U$5, 'Full set Core Client Indicator'!$A$3:$AB$3, 0))), \"\")","v":""},{"$f":"IF(U268<>\"\", IF(INDEX('Full set Core Client Indicator'!$A$3:$AB$351, MATCH(Selection_Hide2!$A268, 'Full set Core Client Indicator'!$A$3:$A$351, 0), MATCH(Selection_Hide2!V$5, 'Full set Core Client Indicator'!$A$3:$AB$3, 0))=\"\", \"\",  INDEX('Full set Core Client Indicator'!$A$3:$AB$351, MATCH(Selection_Hide2!$A268, 'Full set Core Client Indicator'!$A$3:$A$351, 0), MATCH(Selection_Hide2!V$5, 'Full set Core Client Indicator'!$A$3:$AB$3, 0))), \"\")","v":""},{"$f":"IF(V268<>\"\", IF(INDEX('Full set Core Client Indicator'!$A$3:$AB$351, MATCH(Selection_Hide2!$A268, 'Full set Core Client Indicator'!$A$3:$A$351, 0), MATCH(Selection_Hide2!W$5, 'Full set Core Client Indicator'!$A$3:$AB$3, 0))=\"\", \"\",  INDEX('Full set Core Client Indicator'!$A$3:$AB$351, MATCH(Selection_Hide2!$A268, 'Full set Core Client Indicator'!$A$3:$A$351, 0), MATCH(Selection_Hide2!W$5, 'Full set Core Client Indicator'!$A$3:$AB$3, 0))), \"\")","v":""},{"$f":"IF(W268<>\"\", IF(INDEX('Full set Core Client Indicator'!$A$3:$AB$351, MATCH(Selection_Hide2!$A268, 'Full set Core Client Indicator'!$A$3:$A$351, 0), MATCH(Selection_Hide2!X$5, 'Full set Core Client Indicator'!$A$3:$AB$3, 0))=\"\", \"\",  INDEX('Full set Core Client Indicator'!$A$3:$AB$351, MATCH(Selection_Hide2!$A268, 'Full set Core Client Indicator'!$A$3:$A$351, 0), MATCH(Selection_Hide2!X$5, 'Full set Core Client Indicator'!$A$3:$AB$3, 0))), \"\")","v":""},{"$f":"IF(X268<>\"\", IF(INDEX('Full set Core Client Indicator'!$A$3:$AB$351, MATCH(Selection_Hide2!$A268, 'Full set Core Client Indicator'!$A$3:$A$351, 0), MATCH(Selection_Hide2!Y$5, 'Full set Core Client Indicator'!$A$3:$AB$3, 0))=\"\", \"\",  INDEX('Full set Core Client Indicator'!$A$3:$AB$351, MATCH(Selection_Hide2!$A268, 'Full set Core Client Indicator'!$A$3:$A$351, 0), MATCH(Selection_Hide2!Y$5, 'Full set Core Client Indicator'!$A$3:$AB$3, 0))), \"\")","v":""},{"$f":"IF(Y268<>\"\", IF(INDEX('Full set Core Client Indicator'!$A$3:$AB$351, MATCH(Selection_Hide2!$A268, 'Full set Core Client Indicator'!$A$3:$A$351, 0), MATCH(Selection_Hide2!Z$5, 'Full set Core Client Indicator'!$A$3:$AB$3, 0))=\"\", \"\",  INDEX('Full set Core Client Indicator'!$A$3:$AB$351, MATCH(Selection_Hide2!$A268, 'Full set Core Client Indicator'!$A$3:$A$351, 0), MATCH(Selection_Hide2!Z$5, 'Full set Core Client Indicator'!$A$3:$AB$3, 0))), \"\")","v":""},{"$f":"IF(Z268<>\"\", IF(INDEX('Full set Core Client Indicator'!$A$3:$AB$351, MATCH(Selection_Hide2!$A268, 'Full set Core Client Indicator'!$A$3:$A$351, 0), MATCH(Selection_Hide2!AA$5, 'Full set Core Client Indicator'!$A$3:$AB$3, 0))=\"\", \"\",  INDEX('Full set Core Client Indicator'!$A$3:$AB$351, MATCH(Selection_Hide2!$A268, 'Full set Core Client Indicator'!$A$3:$A$351, 0), MATCH(Selection_Hide2!AA$5, 'Full set Core Client Indicator'!$A$3:$AB$3, 0))), \"\")","v":""},{"$f":"IF(AA268<>\"\", IF(INDEX('Full set Core Client Indicator'!$A$3:$AB$351, MATCH(Selection_Hide2!$A268, 'Full set Core Client Indicator'!$A$3:$A$351, 0), MATCH(Selection_Hide2!AB$5, 'Full set Core Client Indicator'!$A$3:$AB$3, 0))=\"\", \"\",  INDEX('Full set Core Client Indicator'!$A$3:$AB$351, MATCH(Selection_Hide2!$A268, 'Full set Core Client Indicator'!$A$3:$A$351, 0), MATCH(Selection_Hide2!AB$5, 'Full set Core Client Indicator'!$A$3:$AB$3, 0))), \"\")","v":""}]
[{"$f":"IF(AND(Selection_Hide1!C267<>0, Selection_Hide1!C267<>\"Grand Total\"), Selection_Hide1!C267, \"\")","v":""},{"$f":"IF(A269<>\"\", IF(INDEX('Full set Core Client Indicator'!$A$3:$AB$351, MATCH(Selection_Hide2!$A269, 'Full set Core Client Indicator'!$A$3:$A$351, 0), MATCH(Selection_Hide2!B$5, 'Full set Core Client Indicator'!$A$3:$AB$3, 0))=\"\", \"\",  INDEX('Full set Core Client Indicator'!$A$3:$AB$351, MATCH(Selection_Hide2!$A269, 'Full set Core Client Indicator'!$A$3:$A$351, 0), MATCH(Selection_Hide2!B$5, 'Full set Core Client Indicator'!$A$3:$AB$3, 0))), \"\")","v":""},{"$f":"IF(B269<>\"\", IF(INDEX('Full set Core Client Indicator'!$A$3:$AB$351, MATCH(Selection_Hide2!$A269, 'Full set Core Client Indicator'!$A$3:$A$351, 0), MATCH(Selection_Hide2!C$5, 'Full set Core Client Indicator'!$A$3:$AB$3, 0))=\"\", \"\",  INDEX('Full set Core Client Indicator'!$A$3:$AB$351, MATCH(Selection_Hide2!$A269, 'Full set Core Client Indicator'!$A$3:$A$351, 0), MATCH(Selection_Hide2!C$5, 'Full set Core Client Indicator'!$A$3:$AB$3, 0))), \"\")","v":""},{"$f":"IF(C269<>\"\", IF(INDEX('Full set Core Client Indicator'!$A$3:$AB$351, MATCH(Selection_Hide2!$A269, 'Full set Core Client Indicator'!$A$3:$A$351, 0), MATCH(Selection_Hide2!D$5, 'Full set Core Client Indicator'!$A$3:$AB$3, 0))=\"\", \"\",  INDEX('Full set Core Client Indicator'!$A$3:$AB$351, MATCH(Selection_Hide2!$A269, 'Full set Core Client Indicator'!$A$3:$A$351, 0), MATCH(Selection_Hide2!D$5, 'Full set Core Client Indicator'!$A$3:$AB$3, 0))), \"\")","v":""},{"$f":"IF(D269<>\"\", IF(INDEX('Full set Core Client Indicator'!$A$3:$AB$351, MATCH(Selection_Hide2!$A269, 'Full set Core Client Indicator'!$A$3:$A$351, 0), MATCH(Selection_Hide2!E$5, 'Full set Core Client Indicator'!$A$3:$AB$3, 0))=\"\", \"\",  INDEX('Full set Core Client Indicator'!$A$3:$AB$351, MATCH(Selection_Hide2!$A269, 'Full set Core Client Indicator'!$A$3:$A$351, 0), MATCH(Selection_Hide2!E$5, 'Full set Core Client Indicator'!$A$3:$AB$3, 0))), \"\")","v":""},{"$f":"IF(E269<>\"\", IF(INDEX('Full set Core Client Indicator'!$A$3:$AB$351, MATCH(Selection_Hide2!$A269, 'Full set Core Client Indicator'!$A$3:$A$351, 0), MATCH(Selection_Hide2!F$5, 'Full set Core Client Indicator'!$A$3:$AB$3, 0))=\"\", \"\",  INDEX('Full set Core Client Indicator'!$A$3:$AB$351, MATCH(Selection_Hide2!$A269, 'Full set Core Client Indicator'!$A$3:$A$351, 0), MATCH(Selection_Hide2!F$5, 'Full set Core Client Indicator'!$A$3:$AB$3, 0))), \"\")","v":""},{"$f":"IF(F269<>\"\", IF(INDEX('Full set Core Client Indicator'!$A$3:$AB$351, MATCH(Selection_Hide2!$A269, 'Full set Core Client Indicator'!$A$3:$A$351, 0), MATCH(Selection_Hide2!G$5, 'Full set Core Client Indicator'!$A$3:$AB$3, 0))=\"\", \"\",  INDEX('Full set Core Client Indicator'!$A$3:$AB$351, MATCH(Selection_Hide2!$A269, 'Full set Core Client Indicator'!$A$3:$A$351, 0), MATCH(Selection_Hide2!G$5, 'Full set Core Client Indicator'!$A$3:$AB$3, 0))), \"\")","v":""},{"$f":"IF(G269<>\"\", IF(INDEX('Full set Core Client Indicator'!$A$3:$AB$351, MATCH(Selection_Hide2!$A269, 'Full set Core Client Indicator'!$A$3:$A$351, 0), MATCH(Selection_Hide2!H$5, 'Full set Core Client Indicator'!$A$3:$AB$3, 0))=\"\", \"\",  INDEX('Full set Core Client Indicator'!$A$3:$AB$351, MATCH(Selection_Hide2!$A269, 'Full set Core Client Indicator'!$A$3:$A$351, 0), MATCH(Selection_Hide2!H$5, 'Full set Core Client Indicator'!$A$3:$AB$3, 0))), \"\")","v":""},{"$f":"IF(H269<>\"\", IF(INDEX('Full set Core Client Indicator'!$A$3:$AB$351, MATCH(Selection_Hide2!$A269, 'Full set Core Client Indicator'!$A$3:$A$351, 0), MATCH(Selection_Hide2!I$5, 'Full set Core Client Indicator'!$A$3:$AB$3, 0))=\"\", \"\",  INDEX('Full set Core Client Indicator'!$A$3:$AB$351, MATCH(Selection_Hide2!$A269, 'Full set Core Client Indicator'!$A$3:$A$351, 0), MATCH(Selection_Hide2!I$5, 'Full set Core Client Indicator'!$A$3:$AB$3, 0))), \"\")","v":""},{"$f":"IF(I269<>\"\", IF(INDEX('Full set Core Client Indicator'!$A$3:$AB$351, MATCH(Selection_Hide2!$A269, 'Full set Core Client Indicator'!$A$3:$A$351, 0), MATCH(Selection_Hide2!J$5, 'Full set Core Client Indicator'!$A$3:$AB$3, 0))=\"\", \"\",  INDEX('Full set Core Client Indicator'!$A$3:$AB$351, MATCH(Selection_Hide2!$A269, 'Full set Core Client Indicator'!$A$3:$A$351, 0), MATCH(Selection_Hide2!J$5, 'Full set Core Client Indicator'!$A$3:$AB$3, 0))), \"\")","v":""},{"$f":"IF(J269<>\"\", IF(INDEX('Full set Core Client Indicator'!$A$3:$AB$351, MATCH(Selection_Hide2!$A269, 'Full set Core Client Indicator'!$A$3:$A$351, 0), MATCH(Selection_Hide2!K$5, 'Full set Core Client Indicator'!$A$3:$AB$3, 0))=\"\", \"\",  INDEX('Full set Core Client Indicator'!$A$3:$AB$351, MATCH(Selection_Hide2!$A269, 'Full set Core Client Indicator'!$A$3:$A$351, 0), MATCH(Selection_Hide2!K$5, 'Full set Core Client Indicator'!$A$3:$AB$3, 0))), \"\")","v":""},{"$f":"IF(K269<>\"\", IF(INDEX('Full set Core Client Indicator'!$A$3:$AB$351, MATCH(Selection_Hide2!$A269, 'Full set Core Client Indicator'!$A$3:$A$351, 0), MATCH(Selection_Hide2!L$5, 'Full set Core Client Indicator'!$A$3:$AB$3, 0))=\"\", \"\",  INDEX('Full set Core Client Indicator'!$A$3:$AB$351, MATCH(Selection_Hide2!$A269, 'Full set Core Client Indicator'!$A$3:$A$351, 0), MATCH(Selection_Hide2!L$5, 'Full set Core Client Indicator'!$A$3:$AB$3, 0))), \"\")","v":""},{"$f":"IF(L269<>\"\", IF(INDEX('Full set Core Client Indicator'!$A$3:$AB$351, MATCH(Selection_Hide2!$A269, 'Full set Core Client Indicator'!$A$3:$A$351, 0), MATCH(Selection_Hide2!M$5, 'Full set Core Client Indicator'!$A$3:$AB$3, 0))=\"\", \"\",  INDEX('Full set Core Client Indicator'!$A$3:$AB$351, MATCH(Selection_Hide2!$A269, 'Full set Core Client Indicator'!$A$3:$A$351, 0), MATCH(Selection_Hide2!M$5, 'Full set Core Client Indicator'!$A$3:$AB$3, 0))), \"\")","v":""},{"$f":"IF(M269<>\"\", IF(INDEX('Full set Core Client Indicator'!$A$3:$AB$351, MATCH(Selection_Hide2!$A269, 'Full set Core Client Indicator'!$A$3:$A$351, 0), MATCH(Selection_Hide2!N$5, 'Full set Core Client Indicator'!$A$3:$AB$3, 0))=\"\", \"\",  INDEX('Full set Core Client Indicator'!$A$3:$AB$351, MATCH(Selection_Hide2!$A269, 'Full set Core Client Indicator'!$A$3:$A$351, 0), MATCH(Selection_Hide2!N$5, 'Full set Core Client Indicator'!$A$3:$AB$3, 0))), \"\")","v":""},{"$f":"IF(N269<>\"\", IF(INDEX('Full set Core Client Indicator'!$A$3:$AB$351, MATCH(Selection_Hide2!$A269, 'Full set Core Client Indicator'!$A$3:$A$351, 0), MATCH(Selection_Hide2!O$5, 'Full set Core Client Indicator'!$A$3:$AB$3, 0))=\"\", \"\",  INDEX('Full set Core Client Indicator'!$A$3:$AB$351, MATCH(Selection_Hide2!$A269, 'Full set Core Client Indicator'!$A$3:$A$351, 0), MATCH(Selection_Hide2!O$5, 'Full set Core Client Indicator'!$A$3:$AB$3, 0))), \"\")","v":""},{"$f":"IF(O269<>\"\", IF(INDEX('Full set Core Client Indicator'!$A$3:$AB$351, MATCH(Selection_Hide2!$A269, 'Full set Core Client Indicator'!$A$3:$A$351, 0), MATCH(Selection_Hide2!P$5, 'Full set Core Client Indicator'!$A$3:$AB$3, 0))=\"\", \"\",  INDEX('Full set Core Client Indicator'!$A$3:$AB$351, MATCH(Selection_Hide2!$A269, 'Full set Core Client Indicator'!$A$3:$A$351, 0), MATCH(Selection_Hide2!P$5, 'Full set Core Client Indicator'!$A$3:$AB$3, 0))), \"\")","v":""},{"$f":"IF(P269<>\"\", IF(INDEX('Full set Core Client Indicator'!$A$3:$AB$351, MATCH(Selection_Hide2!$A269, 'Full set Core Client Indicator'!$A$3:$A$351, 0), MATCH(Selection_Hide2!Q$5, 'Full set Core Client Indicator'!$A$3:$AB$3, 0))=\"\", \"\",  INDEX('Full set Core Client Indicator'!$A$3:$AB$351, MATCH(Selection_Hide2!$A269, 'Full set Core Client Indicator'!$A$3:$A$351, 0), MATCH(Selection_Hide2!Q$5, 'Full set Core Client Indicator'!$A$3:$AB$3, 0))), \"\")","v":""},{"$f":"IF(Q269<>\"\", IF(INDEX('Full set Core Client Indicator'!$A$3:$AB$351, MATCH(Selection_Hide2!$A269, 'Full set Core Client Indicator'!$A$3:$A$351, 0), MATCH(Selection_Hide2!R$5, 'Full set Core Client Indicator'!$A$3:$AB$3, 0))=\"\", \"\",  INDEX('Full set Core Client Indicator'!$A$3:$AB$351, MATCH(Selection_Hide2!$A269, 'Full set Core Client Indicator'!$A$3:$A$351, 0), MATCH(Selection_Hide2!R$5, 'Full set Core Client Indicator'!$A$3:$AB$3, 0))), \"\")","v":""},{"$f":"IF(R269<>\"\", IF(INDEX('Full set Core Client Indicator'!$A$3:$AB$351, MATCH(Selection_Hide2!$A269, 'Full set Core Client Indicator'!$A$3:$A$351, 0), MATCH(Selection_Hide2!S$5, 'Full set Core Client Indicator'!$A$3:$AB$3, 0))=\"\", \"\",  INDEX('Full set Core Client Indicator'!$A$3:$AB$351, MATCH(Selection_Hide2!$A269, 'Full set Core Client Indicator'!$A$3:$A$351, 0), MATCH(Selection_Hide2!S$5, 'Full set Core Client Indicator'!$A$3:$AB$3, 0))), \"\")","v":""},{"$f":"IF(S269<>\"\", IF(INDEX('Full set Core Client Indicator'!$A$3:$AB$351, MATCH(Selection_Hide2!$A269, 'Full set Core Client Indicator'!$A$3:$A$351, 0), MATCH(Selection_Hide2!T$5, 'Full set Core Client Indicator'!$A$3:$AB$3, 0))=\"\", \"\",  INDEX('Full set Core Client Indicator'!$A$3:$AB$351, MATCH(Selection_Hide2!$A269, 'Full set Core Client Indicator'!$A$3:$A$351, 0), MATCH(Selection_Hide2!T$5, 'Full set Core Client Indicator'!$A$3:$AB$3, 0))), \"\")","v":""},{"$f":"IF(T269<>\"\", IF(INDEX('Full set Core Client Indicator'!$A$3:$AB$351, MATCH(Selection_Hide2!$A269, 'Full set Core Client Indicator'!$A$3:$A$351, 0), MATCH(Selection_Hide2!U$5, 'Full set Core Client Indicator'!$A$3:$AB$3, 0))=\"\", \"\",  INDEX('Full set Core Client Indicator'!$A$3:$AB$351, MATCH(Selection_Hide2!$A269, 'Full set Core Client Indicator'!$A$3:$A$351, 0), MATCH(Selection_Hide2!U$5, 'Full set Core Client Indicator'!$A$3:$AB$3, 0))), \"\")","v":""},{"$f":"IF(U269<>\"\", IF(INDEX('Full set Core Client Indicator'!$A$3:$AB$351, MATCH(Selection_Hide2!$A269, 'Full set Core Client Indicator'!$A$3:$A$351, 0), MATCH(Selection_Hide2!V$5, 'Full set Core Client Indicator'!$A$3:$AB$3, 0))=\"\", \"\",  INDEX('Full set Core Client Indicator'!$A$3:$AB$351, MATCH(Selection_Hide2!$A269, 'Full set Core Client Indicator'!$A$3:$A$351, 0), MATCH(Selection_Hide2!V$5, 'Full set Core Client Indicator'!$A$3:$AB$3, 0))), \"\")","v":""},{"$f":"IF(V269<>\"\", IF(INDEX('Full set Core Client Indicator'!$A$3:$AB$351, MATCH(Selection_Hide2!$A269, 'Full set Core Client Indicator'!$A$3:$A$351, 0), MATCH(Selection_Hide2!W$5, 'Full set Core Client Indicator'!$A$3:$AB$3, 0))=\"\", \"\",  INDEX('Full set Core Client Indicator'!$A$3:$AB$351, MATCH(Selection_Hide2!$A269, 'Full set Core Client Indicator'!$A$3:$A$351, 0), MATCH(Selection_Hide2!W$5, 'Full set Core Client Indicator'!$A$3:$AB$3, 0))), \"\")","v":""},{"$f":"IF(W269<>\"\", IF(INDEX('Full set Core Client Indicator'!$A$3:$AB$351, MATCH(Selection_Hide2!$A269, 'Full set Core Client Indicator'!$A$3:$A$351, 0), MATCH(Selection_Hide2!X$5, 'Full set Core Client Indicator'!$A$3:$AB$3, 0))=\"\", \"\",  INDEX('Full set Core Client Indicator'!$A$3:$AB$351, MATCH(Selection_Hide2!$A269, 'Full set Core Client Indicator'!$A$3:$A$351, 0), MATCH(Selection_Hide2!X$5, 'Full set Core Client Indicator'!$A$3:$AB$3, 0))), \"\")","v":""},{"$f":"IF(X269<>\"\", IF(INDEX('Full set Core Client Indicator'!$A$3:$AB$351, MATCH(Selection_Hide2!$A269, 'Full set Core Client Indicator'!$A$3:$A$351, 0), MATCH(Selection_Hide2!Y$5, 'Full set Core Client Indicator'!$A$3:$AB$3, 0))=\"\", \"\",  INDEX('Full set Core Client Indicator'!$A$3:$AB$351, MATCH(Selection_Hide2!$A269, 'Full set Core Client Indicator'!$A$3:$A$351, 0), MATCH(Selection_Hide2!Y$5, 'Full set Core Client Indicator'!$A$3:$AB$3, 0))), \"\")","v":""},{"$f":"IF(Y269<>\"\", IF(INDEX('Full set Core Client Indicator'!$A$3:$AB$351, MATCH(Selection_Hide2!$A269, 'Full set Core Client Indicator'!$A$3:$A$351, 0), MATCH(Selection_Hide2!Z$5, 'Full set Core Client Indicator'!$A$3:$AB$3, 0))=\"\", \"\",  INDEX('Full set Core Client Indicator'!$A$3:$AB$351, MATCH(Selection_Hide2!$A269, 'Full set Core Client Indicator'!$A$3:$A$351, 0), MATCH(Selection_Hide2!Z$5, 'Full set Core Client Indicator'!$A$3:$AB$3, 0))), \"\")","v":""},{"$f":"IF(Z269<>\"\", IF(INDEX('Full set Core Client Indicator'!$A$3:$AB$351, MATCH(Selection_Hide2!$A269, 'Full set Core Client Indicator'!$A$3:$A$351, 0), MATCH(Selection_Hide2!AA$5, 'Full set Core Client Indicator'!$A$3:$AB$3, 0))=\"\", \"\",  INDEX('Full set Core Client Indicator'!$A$3:$AB$351, MATCH(Selection_Hide2!$A269, 'Full set Core Client Indicator'!$A$3:$A$351, 0), MATCH(Selection_Hide2!AA$5, 'Full set Core Client Indicator'!$A$3:$AB$3, 0))), \"\")","v":""},{"$f":"IF(AA269<>\"\", IF(INDEX('Full set Core Client Indicator'!$A$3:$AB$351, MATCH(Selection_Hide2!$A269, 'Full set Core Client Indicator'!$A$3:$A$351, 0), MATCH(Selection_Hide2!AB$5, 'Full set Core Client Indicator'!$A$3:$AB$3, 0))=\"\", \"\",  INDEX('Full set Core Client Indicator'!$A$3:$AB$351, MATCH(Selection_Hide2!$A269, 'Full set Core Client Indicator'!$A$3:$A$351, 0), MATCH(Selection_Hide2!AB$5, 'Full set Core Client Indicator'!$A$3:$AB$3, 0))), \"\")","v":""}]
[{"$f":"IF(AND(Selection_Hide1!C268<>0, Selection_Hide1!C268<>\"Grand Total\"), Selection_Hide1!C268, \"\")","v":""},{"$f":"IF(A270<>\"\", IF(INDEX('Full set Core Client Indicator'!$A$3:$AB$351, MATCH(Selection_Hide2!$A270, 'Full set Core Client Indicator'!$A$3:$A$351, 0), MATCH(Selection_Hide2!B$5, 'Full set Core Client Indicator'!$A$3:$AB$3, 0))=\"\", \"\",  INDEX('Full set Core Client Indicator'!$A$3:$AB$351, MATCH(Selection_Hide2!$A270, 'Full set Core Client Indicator'!$A$3:$A$351, 0), MATCH(Selection_Hide2!B$5, 'Full set Core Client Indicator'!$A$3:$AB$3, 0))), \"\")","v":""},{"$f":"IF(B270<>\"\", IF(INDEX('Full set Core Client Indicator'!$A$3:$AB$351, MATCH(Selection_Hide2!$A270, 'Full set Core Client Indicator'!$A$3:$A$351, 0), MATCH(Selection_Hide2!C$5, 'Full set Core Client Indicator'!$A$3:$AB$3, 0))=\"\", \"\",  INDEX('Full set Core Client Indicator'!$A$3:$AB$351, MATCH(Selection_Hide2!$A270, 'Full set Core Client Indicator'!$A$3:$A$351, 0), MATCH(Selection_Hide2!C$5, 'Full set Core Client Indicator'!$A$3:$AB$3, 0))), \"\")","v":""},{"$f":"IF(C270<>\"\", IF(INDEX('Full set Core Client Indicator'!$A$3:$AB$351, MATCH(Selection_Hide2!$A270, 'Full set Core Client Indicator'!$A$3:$A$351, 0), MATCH(Selection_Hide2!D$5, 'Full set Core Client Indicator'!$A$3:$AB$3, 0))=\"\", \"\",  INDEX('Full set Core Client Indicator'!$A$3:$AB$351, MATCH(Selection_Hide2!$A270, 'Full set Core Client Indicator'!$A$3:$A$351, 0), MATCH(Selection_Hide2!D$5, 'Full set Core Client Indicator'!$A$3:$AB$3, 0))), \"\")","v":""},{"$f":"IF(D270<>\"\", IF(INDEX('Full set Core Client Indicator'!$A$3:$AB$351, MATCH(Selection_Hide2!$A270, 'Full set Core Client Indicator'!$A$3:$A$351, 0), MATCH(Selection_Hide2!E$5, 'Full set Core Client Indicator'!$A$3:$AB$3, 0))=\"\", \"\",  INDEX('Full set Core Client Indicator'!$A$3:$AB$351, MATCH(Selection_Hide2!$A270, 'Full set Core Client Indicator'!$A$3:$A$351, 0), MATCH(Selection_Hide2!E$5, 'Full set Core Client Indicator'!$A$3:$AB$3, 0))), \"\")","v":""},{"$f":"IF(E270<>\"\", IF(INDEX('Full set Core Client Indicator'!$A$3:$AB$351, MATCH(Selection_Hide2!$A270, 'Full set Core Client Indicator'!$A$3:$A$351, 0), MATCH(Selection_Hide2!F$5, 'Full set Core Client Indicator'!$A$3:$AB$3, 0))=\"\", \"\",  INDEX('Full set Core Client Indicator'!$A$3:$AB$351, MATCH(Selection_Hide2!$A270, 'Full set Core Client Indicator'!$A$3:$A$351, 0), MATCH(Selection_Hide2!F$5, 'Full set Core Client Indicator'!$A$3:$AB$3, 0))), \"\")","v":""},{"$f":"IF(F270<>\"\", IF(INDEX('Full set Core Client Indicator'!$A$3:$AB$351, MATCH(Selection_Hide2!$A270, 'Full set Core Client Indicator'!$A$3:$A$351, 0), MATCH(Selection_Hide2!G$5, 'Full set Core Client Indicator'!$A$3:$AB$3, 0))=\"\", \"\",  INDEX('Full set Core Client Indicator'!$A$3:$AB$351, MATCH(Selection_Hide2!$A270, 'Full set Core Client Indicator'!$A$3:$A$351, 0), MATCH(Selection_Hide2!G$5, 'Full set Core Client Indicator'!$A$3:$AB$3, 0))), \"\")","v":""},{"$f":"IF(G270<>\"\", IF(INDEX('Full set Core Client Indicator'!$A$3:$AB$351, MATCH(Selection_Hide2!$A270, 'Full set Core Client Indicator'!$A$3:$A$351, 0), MATCH(Selection_Hide2!H$5, 'Full set Core Client Indicator'!$A$3:$AB$3, 0))=\"\", \"\",  INDEX('Full set Core Client Indicator'!$A$3:$AB$351, MATCH(Selection_Hide2!$A270, 'Full set Core Client Indicator'!$A$3:$A$351, 0), MATCH(Selection_Hide2!H$5, 'Full set Core Client Indicator'!$A$3:$AB$3, 0))), \"\")","v":""},{"$f":"IF(H270<>\"\", IF(INDEX('Full set Core Client Indicator'!$A$3:$AB$351, MATCH(Selection_Hide2!$A270, 'Full set Core Client Indicator'!$A$3:$A$351, 0), MATCH(Selection_Hide2!I$5, 'Full set Core Client Indicator'!$A$3:$AB$3, 0))=\"\", \"\",  INDEX('Full set Core Client Indicator'!$A$3:$AB$351, MATCH(Selection_Hide2!$A270, 'Full set Core Client Indicator'!$A$3:$A$351, 0), MATCH(Selection_Hide2!I$5, 'Full set Core Client Indicator'!$A$3:$AB$3, 0))), \"\")","v":""},{"$f":"IF(I270<>\"\", IF(INDEX('Full set Core Client Indicator'!$A$3:$AB$351, MATCH(Selection_Hide2!$A270, 'Full set Core Client Indicator'!$A$3:$A$351, 0), MATCH(Selection_Hide2!J$5, 'Full set Core Client Indicator'!$A$3:$AB$3, 0))=\"\", \"\",  INDEX('Full set Core Client Indicator'!$A$3:$AB$351, MATCH(Selection_Hide2!$A270, 'Full set Core Client Indicator'!$A$3:$A$351, 0), MATCH(Selection_Hide2!J$5, 'Full set Core Client Indicator'!$A$3:$AB$3, 0))), \"\")","v":""},{"$f":"IF(J270<>\"\", IF(INDEX('Full set Core Client Indicator'!$A$3:$AB$351, MATCH(Selection_Hide2!$A270, 'Full set Core Client Indicator'!$A$3:$A$351, 0), MATCH(Selection_Hide2!K$5, 'Full set Core Client Indicator'!$A$3:$AB$3, 0))=\"\", \"\",  INDEX('Full set Core Client Indicator'!$A$3:$AB$351, MATCH(Selection_Hide2!$A270, 'Full set Core Client Indicator'!$A$3:$A$351, 0), MATCH(Selection_Hide2!K$5, 'Full set Core Client Indicator'!$A$3:$AB$3, 0))), \"\")","v":""},{"$f":"IF(K270<>\"\", IF(INDEX('Full set Core Client Indicator'!$A$3:$AB$351, MATCH(Selection_Hide2!$A270, 'Full set Core Client Indicator'!$A$3:$A$351, 0), MATCH(Selection_Hide2!L$5, 'Full set Core Client Indicator'!$A$3:$AB$3, 0))=\"\", \"\",  INDEX('Full set Core Client Indicator'!$A$3:$AB$351, MATCH(Selection_Hide2!$A270, 'Full set Core Client Indicator'!$A$3:$A$351, 0), MATCH(Selection_Hide2!L$5, 'Full set Core Client Indicator'!$A$3:$AB$3, 0))), \"\")","v":""},{"$f":"IF(L270<>\"\", IF(INDEX('Full set Core Client Indicator'!$A$3:$AB$351, MATCH(Selection_Hide2!$A270, 'Full set Core Client Indicator'!$A$3:$A$351, 0), MATCH(Selection_Hide2!M$5, 'Full set Core Client Indicator'!$A$3:$AB$3, 0))=\"\", \"\",  INDEX('Full set Core Client Indicator'!$A$3:$AB$351, MATCH(Selection_Hide2!$A270, 'Full set Core Client Indicator'!$A$3:$A$351, 0), MATCH(Selection_Hide2!M$5, 'Full set Core Client Indicator'!$A$3:$AB$3, 0))), \"\")","v":""},{"$f":"IF(M270<>\"\", IF(INDEX('Full set Core Client Indicator'!$A$3:$AB$351, MATCH(Selection_Hide2!$A270, 'Full set Core Client Indicator'!$A$3:$A$351, 0), MATCH(Selection_Hide2!N$5, 'Full set Core Client Indicator'!$A$3:$AB$3, 0))=\"\", \"\",  INDEX('Full set Core Client Indicator'!$A$3:$AB$351, MATCH(Selection_Hide2!$A270, 'Full set Core Client Indicator'!$A$3:$A$351, 0), MATCH(Selection_Hide2!N$5, 'Full set Core Client Indicator'!$A$3:$AB$3, 0))), \"\")","v":""},{"$f":"IF(N270<>\"\", IF(INDEX('Full set Core Client Indicator'!$A$3:$AB$351, MATCH(Selection_Hide2!$A270, 'Full set Core Client Indicator'!$A$3:$A$351, 0), MATCH(Selection_Hide2!O$5, 'Full set Core Client Indicator'!$A$3:$AB$3, 0))=\"\", \"\",  INDEX('Full set Core Client Indicator'!$A$3:$AB$351, MATCH(Selection_Hide2!$A270, 'Full set Core Client Indicator'!$A$3:$A$351, 0), MATCH(Selection_Hide2!O$5, 'Full set Core Client Indicator'!$A$3:$AB$3, 0))), \"\")","v":""},{"$f":"IF(O270<>\"\", IF(INDEX('Full set Core Client Indicator'!$A$3:$AB$351, MATCH(Selection_Hide2!$A270, 'Full set Core Client Indicator'!$A$3:$A$351, 0), MATCH(Selection_Hide2!P$5, 'Full set Core Client Indicator'!$A$3:$AB$3, 0))=\"\", \"\",  INDEX('Full set Core Client Indicator'!$A$3:$AB$351, MATCH(Selection_Hide2!$A270, 'Full set Core Client Indicator'!$A$3:$A$351, 0), MATCH(Selection_Hide2!P$5, 'Full set Core Client Indicator'!$A$3:$AB$3, 0))), \"\")","v":""},{"$f":"IF(P270<>\"\", IF(INDEX('Full set Core Client Indicator'!$A$3:$AB$351, MATCH(Selection_Hide2!$A270, 'Full set Core Client Indicator'!$A$3:$A$351, 0), MATCH(Selection_Hide2!Q$5, 'Full set Core Client Indicator'!$A$3:$AB$3, 0))=\"\", \"\",  INDEX('Full set Core Client Indicator'!$A$3:$AB$351, MATCH(Selection_Hide2!$A270, 'Full set Core Client Indicator'!$A$3:$A$351, 0), MATCH(Selection_Hide2!Q$5, 'Full set Core Client Indicator'!$A$3:$AB$3, 0))), \"\")","v":""},{"$f":"IF(Q270<>\"\", IF(INDEX('Full set Core Client Indicator'!$A$3:$AB$351, MATCH(Selection_Hide2!$A270, 'Full set Core Client Indicator'!$A$3:$A$351, 0), MATCH(Selection_Hide2!R$5, 'Full set Core Client Indicator'!$A$3:$AB$3, 0))=\"\", \"\",  INDEX('Full set Core Client Indicator'!$A$3:$AB$351, MATCH(Selection_Hide2!$A270, 'Full set Core Client Indicator'!$A$3:$A$351, 0), MATCH(Selection_Hide2!R$5, 'Full set Core Client Indicator'!$A$3:$AB$3, 0))), \"\")","v":""},{"$f":"IF(R270<>\"\", IF(INDEX('Full set Core Client Indicator'!$A$3:$AB$351, MATCH(Selection_Hide2!$A270, 'Full set Core Client Indicator'!$A$3:$A$351, 0), MATCH(Selection_Hide2!S$5, 'Full set Core Client Indicator'!$A$3:$AB$3, 0))=\"\", \"\",  INDEX('Full set Core Client Indicator'!$A$3:$AB$351, MATCH(Selection_Hide2!$A270, 'Full set Core Client Indicator'!$A$3:$A$351, 0), MATCH(Selection_Hide2!S$5, 'Full set Core Client Indicator'!$A$3:$AB$3, 0))), \"\")","v":""},{"$f":"IF(S270<>\"\", IF(INDEX('Full set Core Client Indicator'!$A$3:$AB$351, MATCH(Selection_Hide2!$A270, 'Full set Core Client Indicator'!$A$3:$A$351, 0), MATCH(Selection_Hide2!T$5, 'Full set Core Client Indicator'!$A$3:$AB$3, 0))=\"\", \"\",  INDEX('Full set Core Client Indicator'!$A$3:$AB$351, MATCH(Selection_Hide2!$A270, 'Full set Core Client Indicator'!$A$3:$A$351, 0), MATCH(Selection_Hide2!T$5, 'Full set Core Client Indicator'!$A$3:$AB$3, 0))), \"\")","v":""},{"$f":"IF(T270<>\"\", IF(INDEX('Full set Core Client Indicator'!$A$3:$AB$351, MATCH(Selection_Hide2!$A270, 'Full set Core Client Indicator'!$A$3:$A$351, 0), MATCH(Selection_Hide2!U$5, 'Full set Core Client Indicator'!$A$3:$AB$3, 0))=\"\", \"\",  INDEX('Full set Core Client Indicator'!$A$3:$AB$351, MATCH(Selection_Hide2!$A270, 'Full set Core Client Indicator'!$A$3:$A$351, 0), MATCH(Selection_Hide2!U$5, 'Full set Core Client Indicator'!$A$3:$AB$3, 0))), \"\")","v":""},{"$f":"IF(U270<>\"\", IF(INDEX('Full set Core Client Indicator'!$A$3:$AB$351, MATCH(Selection_Hide2!$A270, 'Full set Core Client Indicator'!$A$3:$A$351, 0), MATCH(Selection_Hide2!V$5, 'Full set Core Client Indicator'!$A$3:$AB$3, 0))=\"\", \"\",  INDEX('Full set Core Client Indicator'!$A$3:$AB$351, MATCH(Selection_Hide2!$A270, 'Full set Core Client Indicator'!$A$3:$A$351, 0), MATCH(Selection_Hide2!V$5, 'Full set Core Client Indicator'!$A$3:$AB$3, 0))), \"\")","v":""},{"$f":"IF(V270<>\"\", IF(INDEX('Full set Core Client Indicator'!$A$3:$AB$351, MATCH(Selection_Hide2!$A270, 'Full set Core Client Indicator'!$A$3:$A$351, 0), MATCH(Selection_Hide2!W$5, 'Full set Core Client Indicator'!$A$3:$AB$3, 0))=\"\", \"\",  INDEX('Full set Core Client Indicator'!$A$3:$AB$351, MATCH(Selection_Hide2!$A270, 'Full set Core Client Indicator'!$A$3:$A$351, 0), MATCH(Selection_Hide2!W$5, 'Full set Core Client Indicator'!$A$3:$AB$3, 0))), \"\")","v":""},{"$f":"IF(W270<>\"\", IF(INDEX('Full set Core Client Indicator'!$A$3:$AB$351, MATCH(Selection_Hide2!$A270, 'Full set Core Client Indicator'!$A$3:$A$351, 0), MATCH(Selection_Hide2!X$5, 'Full set Core Client Indicator'!$A$3:$AB$3, 0))=\"\", \"\",  INDEX('Full set Core Client Indicator'!$A$3:$AB$351, MATCH(Selection_Hide2!$A270, 'Full set Core Client Indicator'!$A$3:$A$351, 0), MATCH(Selection_Hide2!X$5, 'Full set Core Client Indicator'!$A$3:$AB$3, 0))), \"\")","v":""},{"$f":"IF(X270<>\"\", IF(INDEX('Full set Core Client Indicator'!$A$3:$AB$351, MATCH(Selection_Hide2!$A270, 'Full set Core Client Indicator'!$A$3:$A$351, 0), MATCH(Selection_Hide2!Y$5, 'Full set Core Client Indicator'!$A$3:$AB$3, 0))=\"\", \"\",  INDEX('Full set Core Client Indicator'!$A$3:$AB$351, MATCH(Selection_Hide2!$A270, 'Full set Core Client Indicator'!$A$3:$A$351, 0), MATCH(Selection_Hide2!Y$5, 'Full set Core Client Indicator'!$A$3:$AB$3, 0))), \"\")","v":""},{"$f":"IF(Y270<>\"\", IF(INDEX('Full set Core Client Indicator'!$A$3:$AB$351, MATCH(Selection_Hide2!$A270, 'Full set Core Client Indicator'!$A$3:$A$351, 0), MATCH(Selection_Hide2!Z$5, 'Full set Core Client Indicator'!$A$3:$AB$3, 0))=\"\", \"\",  INDEX('Full set Core Client Indicator'!$A$3:$AB$351, MATCH(Selection_Hide2!$A270, 'Full set Core Client Indicator'!$A$3:$A$351, 0), MATCH(Selection_Hide2!Z$5, 'Full set Core Client Indicator'!$A$3:$AB$3, 0))), \"\")","v":""},{"$f":"IF(Z270<>\"\", IF(INDEX('Full set Core Client Indicator'!$A$3:$AB$351, MATCH(Selection_Hide2!$A270, 'Full set Core Client Indicator'!$A$3:$A$351, 0), MATCH(Selection_Hide2!AA$5, 'Full set Core Client Indicator'!$A$3:$AB$3, 0))=\"\", \"\",  INDEX('Full set Core Client Indicator'!$A$3:$AB$351, MATCH(Selection_Hide2!$A270, 'Full set Core Client Indicator'!$A$3:$A$351, 0), MATCH(Selection_Hide2!AA$5, 'Full set Core Client Indicator'!$A$3:$AB$3, 0))), \"\")","v":""},{"$f":"IF(AA270<>\"\", IF(INDEX('Full set Core Client Indicator'!$A$3:$AB$351, MATCH(Selection_Hide2!$A270, 'Full set Core Client Indicator'!$A$3:$A$351, 0), MATCH(Selection_Hide2!AB$5, 'Full set Core Client Indicator'!$A$3:$AB$3, 0))=\"\", \"\",  INDEX('Full set Core Client Indicator'!$A$3:$AB$351, MATCH(Selection_Hide2!$A270, 'Full set Core Client Indicator'!$A$3:$A$351, 0), MATCH(Selection_Hide2!AB$5, 'Full set Core Client Indicator'!$A$3:$AB$3, 0))), \"\")","v":""}]
[{"$f":"IF(AND(Selection_Hide1!C269<>0, Selection_Hide1!C269<>\"Grand Total\"), Selection_Hide1!C269, \"\")","v":""},{"$f":"IF(A271<>\"\", IF(INDEX('Full set Core Client Indicator'!$A$3:$AB$351, MATCH(Selection_Hide2!$A271, 'Full set Core Client Indicator'!$A$3:$A$351, 0), MATCH(Selection_Hide2!B$5, 'Full set Core Client Indicator'!$A$3:$AB$3, 0))=\"\", \"\",  INDEX('Full set Core Client Indicator'!$A$3:$AB$351, MATCH(Selection_Hide2!$A271, 'Full set Core Client Indicator'!$A$3:$A$351, 0), MATCH(Selection_Hide2!B$5, 'Full set Core Client Indicator'!$A$3:$AB$3, 0))), \"\")","v":""},{"$f":"IF(B271<>\"\", IF(INDEX('Full set Core Client Indicator'!$A$3:$AB$351, MATCH(Selection_Hide2!$A271, 'Full set Core Client Indicator'!$A$3:$A$351, 0), MATCH(Selection_Hide2!C$5, 'Full set Core Client Indicator'!$A$3:$AB$3, 0))=\"\", \"\",  INDEX('Full set Core Client Indicator'!$A$3:$AB$351, MATCH(Selection_Hide2!$A271, 'Full set Core Client Indicator'!$A$3:$A$351, 0), MATCH(Selection_Hide2!C$5, 'Full set Core Client Indicator'!$A$3:$AB$3, 0))), \"\")","v":""},{"$f":"IF(C271<>\"\", IF(INDEX('Full set Core Client Indicator'!$A$3:$AB$351, MATCH(Selection_Hide2!$A271, 'Full set Core Client Indicator'!$A$3:$A$351, 0), MATCH(Selection_Hide2!D$5, 'Full set Core Client Indicator'!$A$3:$AB$3, 0))=\"\", \"\",  INDEX('Full set Core Client Indicator'!$A$3:$AB$351, MATCH(Selection_Hide2!$A271, 'Full set Core Client Indicator'!$A$3:$A$351, 0), MATCH(Selection_Hide2!D$5, 'Full set Core Client Indicator'!$A$3:$AB$3, 0))), \"\")","v":""},{"$f":"IF(D271<>\"\", IF(INDEX('Full set Core Client Indicator'!$A$3:$AB$351, MATCH(Selection_Hide2!$A271, 'Full set Core Client Indicator'!$A$3:$A$351, 0), MATCH(Selection_Hide2!E$5, 'Full set Core Client Indicator'!$A$3:$AB$3, 0))=\"\", \"\",  INDEX('Full set Core Client Indicator'!$A$3:$AB$351, MATCH(Selection_Hide2!$A271, 'Full set Core Client Indicator'!$A$3:$A$351, 0), MATCH(Selection_Hide2!E$5, 'Full set Core Client Indicator'!$A$3:$AB$3, 0))), \"\")","v":""},{"$f":"IF(E271<>\"\", IF(INDEX('Full set Core Client Indicator'!$A$3:$AB$351, MATCH(Selection_Hide2!$A271, 'Full set Core Client Indicator'!$A$3:$A$351, 0), MATCH(Selection_Hide2!F$5, 'Full set Core Client Indicator'!$A$3:$AB$3, 0))=\"\", \"\",  INDEX('Full set Core Client Indicator'!$A$3:$AB$351, MATCH(Selection_Hide2!$A271, 'Full set Core Client Indicator'!$A$3:$A$351, 0), MATCH(Selection_Hide2!F$5, 'Full set Core Client Indicator'!$A$3:$AB$3, 0))), \"\")","v":""},{"$f":"IF(F271<>\"\", IF(INDEX('Full set Core Client Indicator'!$A$3:$AB$351, MATCH(Selection_Hide2!$A271, 'Full set Core Client Indicator'!$A$3:$A$351, 0), MATCH(Selection_Hide2!G$5, 'Full set Core Client Indicator'!$A$3:$AB$3, 0))=\"\", \"\",  INDEX('Full set Core Client Indicator'!$A$3:$AB$351, MATCH(Selection_Hide2!$A271, 'Full set Core Client Indicator'!$A$3:$A$351, 0), MATCH(Selection_Hide2!G$5, 'Full set Core Client Indicator'!$A$3:$AB$3, 0))), \"\")","v":""},{"$f":"IF(G271<>\"\", IF(INDEX('Full set Core Client Indicator'!$A$3:$AB$351, MATCH(Selection_Hide2!$A271, 'Full set Core Client Indicator'!$A$3:$A$351, 0), MATCH(Selection_Hide2!H$5, 'Full set Core Client Indicator'!$A$3:$AB$3, 0))=\"\", \"\",  INDEX('Full set Core Client Indicator'!$A$3:$AB$351, MATCH(Selection_Hide2!$A271, 'Full set Core Client Indicator'!$A$3:$A$351, 0), MATCH(Selection_Hide2!H$5, 'Full set Core Client Indicator'!$A$3:$AB$3, 0))), \"\")","v":""},{"$f":"IF(H271<>\"\", IF(INDEX('Full set Core Client Indicator'!$A$3:$AB$351, MATCH(Selection_Hide2!$A271, 'Full set Core Client Indicator'!$A$3:$A$351, 0), MATCH(Selection_Hide2!I$5, 'Full set Core Client Indicator'!$A$3:$AB$3, 0))=\"\", \"\",  INDEX('Full set Core Client Indicator'!$A$3:$AB$351, MATCH(Selection_Hide2!$A271, 'Full set Core Client Indicator'!$A$3:$A$351, 0), MATCH(Selection_Hide2!I$5, 'Full set Core Client Indicator'!$A$3:$AB$3, 0))), \"\")","v":""},{"$f":"IF(I271<>\"\", IF(INDEX('Full set Core Client Indicator'!$A$3:$AB$351, MATCH(Selection_Hide2!$A271, 'Full set Core Client Indicator'!$A$3:$A$351, 0), MATCH(Selection_Hide2!J$5, 'Full set Core Client Indicator'!$A$3:$AB$3, 0))=\"\", \"\",  INDEX('Full set Core Client Indicator'!$A$3:$AB$351, MATCH(Selection_Hide2!$A271, 'Full set Core Client Indicator'!$A$3:$A$351, 0), MATCH(Selection_Hide2!J$5, 'Full set Core Client Indicator'!$A$3:$AB$3, 0))), \"\")","v":""},{"$f":"IF(J271<>\"\", IF(INDEX('Full set Core Client Indicator'!$A$3:$AB$351, MATCH(Selection_Hide2!$A271, 'Full set Core Client Indicator'!$A$3:$A$351, 0), MATCH(Selection_Hide2!K$5, 'Full set Core Client Indicator'!$A$3:$AB$3, 0))=\"\", \"\",  INDEX('Full set Core Client Indicator'!$A$3:$AB$351, MATCH(Selection_Hide2!$A271, 'Full set Core Client Indicator'!$A$3:$A$351, 0), MATCH(Selection_Hide2!K$5, 'Full set Core Client Indicator'!$A$3:$AB$3, 0))), \"\")","v":""},{"$f":"IF(K271<>\"\", IF(INDEX('Full set Core Client Indicator'!$A$3:$AB$351, MATCH(Selection_Hide2!$A271, 'Full set Core Client Indicator'!$A$3:$A$351, 0), MATCH(Selection_Hide2!L$5, 'Full set Core Client Indicator'!$A$3:$AB$3, 0))=\"\", \"\",  INDEX('Full set Core Client Indicator'!$A$3:$AB$351, MATCH(Selection_Hide2!$A271, 'Full set Core Client Indicator'!$A$3:$A$351, 0), MATCH(Selection_Hide2!L$5, 'Full set Core Client Indicator'!$A$3:$AB$3, 0))), \"\")","v":""},{"$f":"IF(L271<>\"\", IF(INDEX('Full set Core Client Indicator'!$A$3:$AB$351, MATCH(Selection_Hide2!$A271, 'Full set Core Client Indicator'!$A$3:$A$351, 0), MATCH(Selection_Hide2!M$5, 'Full set Core Client Indicator'!$A$3:$AB$3, 0))=\"\", \"\",  INDEX('Full set Core Client Indicator'!$A$3:$AB$351, MATCH(Selection_Hide2!$A271, 'Full set Core Client Indicator'!$A$3:$A$351, 0), MATCH(Selection_Hide2!M$5, 'Full set Core Client Indicator'!$A$3:$AB$3, 0))), \"\")","v":""},{"$f":"IF(M271<>\"\", IF(INDEX('Full set Core Client Indicator'!$A$3:$AB$351, MATCH(Selection_Hide2!$A271, 'Full set Core Client Indicator'!$A$3:$A$351, 0), MATCH(Selection_Hide2!N$5, 'Full set Core Client Indicator'!$A$3:$AB$3, 0))=\"\", \"\",  INDEX('Full set Core Client Indicator'!$A$3:$AB$351, MATCH(Selection_Hide2!$A271, 'Full set Core Client Indicator'!$A$3:$A$351, 0), MATCH(Selection_Hide2!N$5, 'Full set Core Client Indicator'!$A$3:$AB$3, 0))), \"\")","v":""},{"$f":"IF(N271<>\"\", IF(INDEX('Full set Core Client Indicator'!$A$3:$AB$351, MATCH(Selection_Hide2!$A271, 'Full set Core Client Indicator'!$A$3:$A$351, 0), MATCH(Selection_Hide2!O$5, 'Full set Core Client Indicator'!$A$3:$AB$3, 0))=\"\", \"\",  INDEX('Full set Core Client Indicator'!$A$3:$AB$351, MATCH(Selection_Hide2!$A271, 'Full set Core Client Indicator'!$A$3:$A$351, 0), MATCH(Selection_Hide2!O$5, 'Full set Core Client Indicator'!$A$3:$AB$3, 0))), \"\")","v":""},{"$f":"IF(O271<>\"\", IF(INDEX('Full set Core Client Indicator'!$A$3:$AB$351, MATCH(Selection_Hide2!$A271, 'Full set Core Client Indicator'!$A$3:$A$351, 0), MATCH(Selection_Hide2!P$5, 'Full set Core Client Indicator'!$A$3:$AB$3, 0))=\"\", \"\",  INDEX('Full set Core Client Indicator'!$A$3:$AB$351, MATCH(Selection_Hide2!$A271, 'Full set Core Client Indicator'!$A$3:$A$351, 0), MATCH(Selection_Hide2!P$5, 'Full set Core Client Indicator'!$A$3:$AB$3, 0))), \"\")","v":""},{"$f":"IF(P271<>\"\", IF(INDEX('Full set Core Client Indicator'!$A$3:$AB$351, MATCH(Selection_Hide2!$A271, 'Full set Core Client Indicator'!$A$3:$A$351, 0), MATCH(Selection_Hide2!Q$5, 'Full set Core Client Indicator'!$A$3:$AB$3, 0))=\"\", \"\",  INDEX('Full set Core Client Indicator'!$A$3:$AB$351, MATCH(Selection_Hide2!$A271, 'Full set Core Client Indicator'!$A$3:$A$351, 0), MATCH(Selection_Hide2!Q$5, 'Full set Core Client Indicator'!$A$3:$AB$3, 0))), \"\")","v":""},{"$f":"IF(Q271<>\"\", IF(INDEX('Full set Core Client Indicator'!$A$3:$AB$351, MATCH(Selection_Hide2!$A271, 'Full set Core Client Indicator'!$A$3:$A$351, 0), MATCH(Selection_Hide2!R$5, 'Full set Core Client Indicator'!$A$3:$AB$3, 0))=\"\", \"\",  INDEX('Full set Core Client Indicator'!$A$3:$AB$351, MATCH(Selection_Hide2!$A271, 'Full set Core Client Indicator'!$A$3:$A$351, 0), MATCH(Selection_Hide2!R$5, 'Full set Core Client Indicator'!$A$3:$AB$3, 0))), \"\")","v":""},{"$f":"IF(R271<>\"\", IF(INDEX('Full set Core Client Indicator'!$A$3:$AB$351, MATCH(Selection_Hide2!$A271, 'Full set Core Client Indicator'!$A$3:$A$351, 0), MATCH(Selection_Hide2!S$5, 'Full set Core Client Indicator'!$A$3:$AB$3, 0))=\"\", \"\",  INDEX('Full set Core Client Indicator'!$A$3:$AB$351, MATCH(Selection_Hide2!$A271, 'Full set Core Client Indicator'!$A$3:$A$351, 0), MATCH(Selection_Hide2!S$5, 'Full set Core Client Indicator'!$A$3:$AB$3, 0))), \"\")","v":""},{"$f":"IF(S271<>\"\", IF(INDEX('Full set Core Client Indicator'!$A$3:$AB$351, MATCH(Selection_Hide2!$A271, 'Full set Core Client Indicator'!$A$3:$A$351, 0), MATCH(Selection_Hide2!T$5, 'Full set Core Client Indicator'!$A$3:$AB$3, 0))=\"\", \"\",  INDEX('Full set Core Client Indicator'!$A$3:$AB$351, MATCH(Selection_Hide2!$A271, 'Full set Core Client Indicator'!$A$3:$A$351, 0), MATCH(Selection_Hide2!T$5, 'Full set Core Client Indicator'!$A$3:$AB$3, 0))), \"\")","v":""},{"$f":"IF(T271<>\"\", IF(INDEX('Full set Core Client Indicator'!$A$3:$AB$351, MATCH(Selection_Hide2!$A271, 'Full set Core Client Indicator'!$A$3:$A$351, 0), MATCH(Selection_Hide2!U$5, 'Full set Core Client Indicator'!$A$3:$AB$3, 0))=\"\", \"\",  INDEX('Full set Core Client Indicator'!$A$3:$AB$351, MATCH(Selection_Hide2!$A271, 'Full set Core Client Indicator'!$A$3:$A$351, 0), MATCH(Selection_Hide2!U$5, 'Full set Core Client Indicator'!$A$3:$AB$3, 0))), \"\")","v":""},{"$f":"IF(U271<>\"\", IF(INDEX('Full set Core Client Indicator'!$A$3:$AB$351, MATCH(Selection_Hide2!$A271, 'Full set Core Client Indicator'!$A$3:$A$351, 0), MATCH(Selection_Hide2!V$5, 'Full set Core Client Indicator'!$A$3:$AB$3, 0))=\"\", \"\",  INDEX('Full set Core Client Indicator'!$A$3:$AB$351, MATCH(Selection_Hide2!$A271, 'Full set Core Client Indicator'!$A$3:$A$351, 0), MATCH(Selection_Hide2!V$5, 'Full set Core Client Indicator'!$A$3:$AB$3, 0))), \"\")","v":""},{"$f":"IF(V271<>\"\", IF(INDEX('Full set Core Client Indicator'!$A$3:$AB$351, MATCH(Selection_Hide2!$A271, 'Full set Core Client Indicator'!$A$3:$A$351, 0), MATCH(Selection_Hide2!W$5, 'Full set Core Client Indicator'!$A$3:$AB$3, 0))=\"\", \"\",  INDEX('Full set Core Client Indicator'!$A$3:$AB$351, MATCH(Selection_Hide2!$A271, 'Full set Core Client Indicator'!$A$3:$A$351, 0), MATCH(Selection_Hide2!W$5, 'Full set Core Client Indicator'!$A$3:$AB$3, 0))), \"\")","v":""},{"$f":"IF(W271<>\"\", IF(INDEX('Full set Core Client Indicator'!$A$3:$AB$351, MATCH(Selection_Hide2!$A271, 'Full set Core Client Indicator'!$A$3:$A$351, 0), MATCH(Selection_Hide2!X$5, 'Full set Core Client Indicator'!$A$3:$AB$3, 0))=\"\", \"\",  INDEX('Full set Core Client Indicator'!$A$3:$AB$351, MATCH(Selection_Hide2!$A271, 'Full set Core Client Indicator'!$A$3:$A$351, 0), MATCH(Selection_Hide2!X$5, 'Full set Core Client Indicator'!$A$3:$AB$3, 0))), \"\")","v":""},{"$f":"IF(X271<>\"\", IF(INDEX('Full set Core Client Indicator'!$A$3:$AB$351, MATCH(Selection_Hide2!$A271, 'Full set Core Client Indicator'!$A$3:$A$351, 0), MATCH(Selection_Hide2!Y$5, 'Full set Core Client Indicator'!$A$3:$AB$3, 0))=\"\", \"\",  INDEX('Full set Core Client Indicator'!$A$3:$AB$351, MATCH(Selection_Hide2!$A271, 'Full set Core Client Indicator'!$A$3:$A$351, 0), MATCH(Selection_Hide2!Y$5, 'Full set Core Client Indicator'!$A$3:$AB$3, 0))), \"\")","v":""},{"$f":"IF(Y271<>\"\", IF(INDEX('Full set Core Client Indicator'!$A$3:$AB$351, MATCH(Selection_Hide2!$A271, 'Full set Core Client Indicator'!$A$3:$A$351, 0), MATCH(Selection_Hide2!Z$5, 'Full set Core Client Indicator'!$A$3:$AB$3, 0))=\"\", \"\",  INDEX('Full set Core Client Indicator'!$A$3:$AB$351, MATCH(Selection_Hide2!$A271, 'Full set Core Client Indicator'!$A$3:$A$351, 0), MATCH(Selection_Hide2!Z$5, 'Full set Core Client Indicator'!$A$3:$AB$3, 0))), \"\")","v":""},{"$f":"IF(Z271<>\"\", IF(INDEX('Full set Core Client Indicator'!$A$3:$AB$351, MATCH(Selection_Hide2!$A271, 'Full set Core Client Indicator'!$A$3:$A$351, 0), MATCH(Selection_Hide2!AA$5, 'Full set Core Client Indicator'!$A$3:$AB$3, 0))=\"\", \"\",  INDEX('Full set Core Client Indicator'!$A$3:$AB$351, MATCH(Selection_Hide2!$A271, 'Full set Core Client Indicator'!$A$3:$A$351, 0), MATCH(Selection_Hide2!AA$5, 'Full set Core Client Indicator'!$A$3:$AB$3, 0))), \"\")","v":""},{"$f":"IF(AA271<>\"\", IF(INDEX('Full set Core Client Indicator'!$A$3:$AB$351, MATCH(Selection_Hide2!$A271, 'Full set Core Client Indicator'!$A$3:$A$351, 0), MATCH(Selection_Hide2!AB$5, 'Full set Core Client Indicator'!$A$3:$AB$3, 0))=\"\", \"\",  INDEX('Full set Core Client Indicator'!$A$3:$AB$351, MATCH(Selection_Hide2!$A271, 'Full set Core Client Indicator'!$A$3:$A$351, 0), MATCH(Selection_Hide2!AB$5, 'Full set Core Client Indicator'!$A$3:$AB$3, 0))), \"\")","v":""}]
[{"$f":"IF(AND(Selection_Hide1!C270<>0, Selection_Hide1!C270<>\"Grand Total\"), Selection_Hide1!C270, \"\")","v":""},{"$f":"IF(A272<>\"\", IF(INDEX('Full set Core Client Indicator'!$A$3:$AB$351, MATCH(Selection_Hide2!$A272, 'Full set Core Client Indicator'!$A$3:$A$351, 0), MATCH(Selection_Hide2!B$5, 'Full set Core Client Indicator'!$A$3:$AB$3, 0))=\"\", \"\",  INDEX('Full set Core Client Indicator'!$A$3:$AB$351, MATCH(Selection_Hide2!$A272, 'Full set Core Client Indicator'!$A$3:$A$351, 0), MATCH(Selection_Hide2!B$5, 'Full set Core Client Indicator'!$A$3:$AB$3, 0))), \"\")","v":""},{"$f":"IF(B272<>\"\", IF(INDEX('Full set Core Client Indicator'!$A$3:$AB$351, MATCH(Selection_Hide2!$A272, 'Full set Core Client Indicator'!$A$3:$A$351, 0), MATCH(Selection_Hide2!C$5, 'Full set Core Client Indicator'!$A$3:$AB$3, 0))=\"\", \"\",  INDEX('Full set Core Client Indicator'!$A$3:$AB$351, MATCH(Selection_Hide2!$A272, 'Full set Core Client Indicator'!$A$3:$A$351, 0), MATCH(Selection_Hide2!C$5, 'Full set Core Client Indicator'!$A$3:$AB$3, 0))), \"\")","v":""},{"$f":"IF(C272<>\"\", IF(INDEX('Full set Core Client Indicator'!$A$3:$AB$351, MATCH(Selection_Hide2!$A272, 'Full set Core Client Indicator'!$A$3:$A$351, 0), MATCH(Selection_Hide2!D$5, 'Full set Core Client Indicator'!$A$3:$AB$3, 0))=\"\", \"\",  INDEX('Full set Core Client Indicator'!$A$3:$AB$351, MATCH(Selection_Hide2!$A272, 'Full set Core Client Indicator'!$A$3:$A$351, 0), MATCH(Selection_Hide2!D$5, 'Full set Core Client Indicator'!$A$3:$AB$3, 0))), \"\")","v":""},{"$f":"IF(D272<>\"\", IF(INDEX('Full set Core Client Indicator'!$A$3:$AB$351, MATCH(Selection_Hide2!$A272, 'Full set Core Client Indicator'!$A$3:$A$351, 0), MATCH(Selection_Hide2!E$5, 'Full set Core Client Indicator'!$A$3:$AB$3, 0))=\"\", \"\",  INDEX('Full set Core Client Indicator'!$A$3:$AB$351, MATCH(Selection_Hide2!$A272, 'Full set Core Client Indicator'!$A$3:$A$351, 0), MATCH(Selection_Hide2!E$5, 'Full set Core Client Indicator'!$A$3:$AB$3, 0))), \"\")","v":""},{"$f":"IF(E272<>\"\", IF(INDEX('Full set Core Client Indicator'!$A$3:$AB$351, MATCH(Selection_Hide2!$A272, 'Full set Core Client Indicator'!$A$3:$A$351, 0), MATCH(Selection_Hide2!F$5, 'Full set Core Client Indicator'!$A$3:$AB$3, 0))=\"\", \"\",  INDEX('Full set Core Client Indicator'!$A$3:$AB$351, MATCH(Selection_Hide2!$A272, 'Full set Core Client Indicator'!$A$3:$A$351, 0), MATCH(Selection_Hide2!F$5, 'Full set Core Client Indicator'!$A$3:$AB$3, 0))), \"\")","v":""},{"$f":"IF(F272<>\"\", IF(INDEX('Full set Core Client Indicator'!$A$3:$AB$351, MATCH(Selection_Hide2!$A272, 'Full set Core Client Indicator'!$A$3:$A$351, 0), MATCH(Selection_Hide2!G$5, 'Full set Core Client Indicator'!$A$3:$AB$3, 0))=\"\", \"\",  INDEX('Full set Core Client Indicator'!$A$3:$AB$351, MATCH(Selection_Hide2!$A272, 'Full set Core Client Indicator'!$A$3:$A$351, 0), MATCH(Selection_Hide2!G$5, 'Full set Core Client Indicator'!$A$3:$AB$3, 0))), \"\")","v":""},{"$f":"IF(G272<>\"\", IF(INDEX('Full set Core Client Indicator'!$A$3:$AB$351, MATCH(Selection_Hide2!$A272, 'Full set Core Client Indicator'!$A$3:$A$351, 0), MATCH(Selection_Hide2!H$5, 'Full set Core Client Indicator'!$A$3:$AB$3, 0))=\"\", \"\",  INDEX('Full set Core Client Indicator'!$A$3:$AB$351, MATCH(Selection_Hide2!$A272, 'Full set Core Client Indicator'!$A$3:$A$351, 0), MATCH(Selection_Hide2!H$5, 'Full set Core Client Indicator'!$A$3:$AB$3, 0))), \"\")","v":""},{"$f":"IF(H272<>\"\", IF(INDEX('Full set Core Client Indicator'!$A$3:$AB$351, MATCH(Selection_Hide2!$A272, 'Full set Core Client Indicator'!$A$3:$A$351, 0), MATCH(Selection_Hide2!I$5, 'Full set Core Client Indicator'!$A$3:$AB$3, 0))=\"\", \"\",  INDEX('Full set Core Client Indicator'!$A$3:$AB$351, MATCH(Selection_Hide2!$A272, 'Full set Core Client Indicator'!$A$3:$A$351, 0), MATCH(Selection_Hide2!I$5, 'Full set Core Client Indicator'!$A$3:$AB$3, 0))), \"\")","v":""},{"$f":"IF(I272<>\"\", IF(INDEX('Full set Core Client Indicator'!$A$3:$AB$351, MATCH(Selection_Hide2!$A272, 'Full set Core Client Indicator'!$A$3:$A$351, 0), MATCH(Selection_Hide2!J$5, 'Full set Core Client Indicator'!$A$3:$AB$3, 0))=\"\", \"\",  INDEX('Full set Core Client Indicator'!$A$3:$AB$351, MATCH(Selection_Hide2!$A272, 'Full set Core Client Indicator'!$A$3:$A$351, 0), MATCH(Selection_Hide2!J$5, 'Full set Core Client Indicator'!$A$3:$AB$3, 0))), \"\")","v":""},{"$f":"IF(J272<>\"\", IF(INDEX('Full set Core Client Indicator'!$A$3:$AB$351, MATCH(Selection_Hide2!$A272, 'Full set Core Client Indicator'!$A$3:$A$351, 0), MATCH(Selection_Hide2!K$5, 'Full set Core Client Indicator'!$A$3:$AB$3, 0))=\"\", \"\",  INDEX('Full set Core Client Indicator'!$A$3:$AB$351, MATCH(Selection_Hide2!$A272, 'Full set Core Client Indicator'!$A$3:$A$351, 0), MATCH(Selection_Hide2!K$5, 'Full set Core Client Indicator'!$A$3:$AB$3, 0))), \"\")","v":""},{"$f":"IF(K272<>\"\", IF(INDEX('Full set Core Client Indicator'!$A$3:$AB$351, MATCH(Selection_Hide2!$A272, 'Full set Core Client Indicator'!$A$3:$A$351, 0), MATCH(Selection_Hide2!L$5, 'Full set Core Client Indicator'!$A$3:$AB$3, 0))=\"\", \"\",  INDEX('Full set Core Client Indicator'!$A$3:$AB$351, MATCH(Selection_Hide2!$A272, 'Full set Core Client Indicator'!$A$3:$A$351, 0), MATCH(Selection_Hide2!L$5, 'Full set Core Client Indicator'!$A$3:$AB$3, 0))), \"\")","v":""},{"$f":"IF(L272<>\"\", IF(INDEX('Full set Core Client Indicator'!$A$3:$AB$351, MATCH(Selection_Hide2!$A272, 'Full set Core Client Indicator'!$A$3:$A$351, 0), MATCH(Selection_Hide2!M$5, 'Full set Core Client Indicator'!$A$3:$AB$3, 0))=\"\", \"\",  INDEX('Full set Core Client Indicator'!$A$3:$AB$351, MATCH(Selection_Hide2!$A272, 'Full set Core Client Indicator'!$A$3:$A$351, 0), MATCH(Selection_Hide2!M$5, 'Full set Core Client Indicator'!$A$3:$AB$3, 0))), \"\")","v":""},{"$f":"IF(M272<>\"\", IF(INDEX('Full set Core Client Indicator'!$A$3:$AB$351, MATCH(Selection_Hide2!$A272, 'Full set Core Client Indicator'!$A$3:$A$351, 0), MATCH(Selection_Hide2!N$5, 'Full set Core Client Indicator'!$A$3:$AB$3, 0))=\"\", \"\",  INDEX('Full set Core Client Indicator'!$A$3:$AB$351, MATCH(Selection_Hide2!$A272, 'Full set Core Client Indicator'!$A$3:$A$351, 0), MATCH(Selection_Hide2!N$5, 'Full set Core Client Indicator'!$A$3:$AB$3, 0))), \"\")","v":""},{"$f":"IF(N272<>\"\", IF(INDEX('Full set Core Client Indicator'!$A$3:$AB$351, MATCH(Selection_Hide2!$A272, 'Full set Core Client Indicator'!$A$3:$A$351, 0), MATCH(Selection_Hide2!O$5, 'Full set Core Client Indicator'!$A$3:$AB$3, 0))=\"\", \"\",  INDEX('Full set Core Client Indicator'!$A$3:$AB$351, MATCH(Selection_Hide2!$A272, 'Full set Core Client Indicator'!$A$3:$A$351, 0), MATCH(Selection_Hide2!O$5, 'Full set Core Client Indicator'!$A$3:$AB$3, 0))), \"\")","v":""},{"$f":"IF(O272<>\"\", IF(INDEX('Full set Core Client Indicator'!$A$3:$AB$351, MATCH(Selection_Hide2!$A272, 'Full set Core Client Indicator'!$A$3:$A$351, 0), MATCH(Selection_Hide2!P$5, 'Full set Core Client Indicator'!$A$3:$AB$3, 0))=\"\", \"\",  INDEX('Full set Core Client Indicator'!$A$3:$AB$351, MATCH(Selection_Hide2!$A272, 'Full set Core Client Indicator'!$A$3:$A$351, 0), MATCH(Selection_Hide2!P$5, 'Full set Core Client Indicator'!$A$3:$AB$3, 0))), \"\")","v":""},{"$f":"IF(P272<>\"\", IF(INDEX('Full set Core Client Indicator'!$A$3:$AB$351, MATCH(Selection_Hide2!$A272, 'Full set Core Client Indicator'!$A$3:$A$351, 0), MATCH(Selection_Hide2!Q$5, 'Full set Core Client Indicator'!$A$3:$AB$3, 0))=\"\", \"\",  INDEX('Full set Core Client Indicator'!$A$3:$AB$351, MATCH(Selection_Hide2!$A272, 'Full set Core Client Indicator'!$A$3:$A$351, 0), MATCH(Selection_Hide2!Q$5, 'Full set Core Client Indicator'!$A$3:$AB$3, 0))), \"\")","v":""},{"$f":"IF(Q272<>\"\", IF(INDEX('Full set Core Client Indicator'!$A$3:$AB$351, MATCH(Selection_Hide2!$A272, 'Full set Core Client Indicator'!$A$3:$A$351, 0), MATCH(Selection_Hide2!R$5, 'Full set Core Client Indicator'!$A$3:$AB$3, 0))=\"\", \"\",  INDEX('Full set Core Client Indicator'!$A$3:$AB$351, MATCH(Selection_Hide2!$A272, 'Full set Core Client Indicator'!$A$3:$A$351, 0), MATCH(Selection_Hide2!R$5, 'Full set Core Client Indicator'!$A$3:$AB$3, 0))), \"\")","v":""},{"$f":"IF(R272<>\"\", IF(INDEX('Full set Core Client Indicator'!$A$3:$AB$351, MATCH(Selection_Hide2!$A272, 'Full set Core Client Indicator'!$A$3:$A$351, 0), MATCH(Selection_Hide2!S$5, 'Full set Core Client Indicator'!$A$3:$AB$3, 0))=\"\", \"\",  INDEX('Full set Core Client Indicator'!$A$3:$AB$351, MATCH(Selection_Hide2!$A272, 'Full set Core Client Indicator'!$A$3:$A$351, 0), MATCH(Selection_Hide2!S$5, 'Full set Core Client Indicator'!$A$3:$AB$3, 0))), \"\")","v":""},{"$f":"IF(S272<>\"\", IF(INDEX('Full set Core Client Indicator'!$A$3:$AB$351, MATCH(Selection_Hide2!$A272, 'Full set Core Client Indicator'!$A$3:$A$351, 0), MATCH(Selection_Hide2!T$5, 'Full set Core Client Indicator'!$A$3:$AB$3, 0))=\"\", \"\",  INDEX('Full set Core Client Indicator'!$A$3:$AB$351, MATCH(Selection_Hide2!$A272, 'Full set Core Client Indicator'!$A$3:$A$351, 0), MATCH(Selection_Hide2!T$5, 'Full set Core Client Indicator'!$A$3:$AB$3, 0))), \"\")","v":""},{"$f":"IF(T272<>\"\", IF(INDEX('Full set Core Client Indicator'!$A$3:$AB$351, MATCH(Selection_Hide2!$A272, 'Full set Core Client Indicator'!$A$3:$A$351, 0), MATCH(Selection_Hide2!U$5, 'Full set Core Client Indicator'!$A$3:$AB$3, 0))=\"\", \"\",  INDEX('Full set Core Client Indicator'!$A$3:$AB$351, MATCH(Selection_Hide2!$A272, 'Full set Core Client Indicator'!$A$3:$A$351, 0), MATCH(Selection_Hide2!U$5, 'Full set Core Client Indicator'!$A$3:$AB$3, 0))), \"\")","v":""},{"$f":"IF(U272<>\"\", IF(INDEX('Full set Core Client Indicator'!$A$3:$AB$351, MATCH(Selection_Hide2!$A272, 'Full set Core Client Indicator'!$A$3:$A$351, 0), MATCH(Selection_Hide2!V$5, 'Full set Core Client Indicator'!$A$3:$AB$3, 0))=\"\", \"\",  INDEX('Full set Core Client Indicator'!$A$3:$AB$351, MATCH(Selection_Hide2!$A272, 'Full set Core Client Indicator'!$A$3:$A$351, 0), MATCH(Selection_Hide2!V$5, 'Full set Core Client Indicator'!$A$3:$AB$3, 0))), \"\")","v":""},{"$f":"IF(V272<>\"\", IF(INDEX('Full set Core Client Indicator'!$A$3:$AB$351, MATCH(Selection_Hide2!$A272, 'Full set Core Client Indicator'!$A$3:$A$351, 0), MATCH(Selection_Hide2!W$5, 'Full set Core Client Indicator'!$A$3:$AB$3, 0))=\"\", \"\",  INDEX('Full set Core Client Indicator'!$A$3:$AB$351, MATCH(Selection_Hide2!$A272, 'Full set Core Client Indicator'!$A$3:$A$351, 0), MATCH(Selection_Hide2!W$5, 'Full set Core Client Indicator'!$A$3:$AB$3, 0))), \"\")","v":""},{"$f":"IF(W272<>\"\", IF(INDEX('Full set Core Client Indicator'!$A$3:$AB$351, MATCH(Selection_Hide2!$A272, 'Full set Core Client Indicator'!$A$3:$A$351, 0), MATCH(Selection_Hide2!X$5, 'Full set Core Client Indicator'!$A$3:$AB$3, 0))=\"\", \"\",  INDEX('Full set Core Client Indicator'!$A$3:$AB$351, MATCH(Selection_Hide2!$A272, 'Full set Core Client Indicator'!$A$3:$A$351, 0), MATCH(Selection_Hide2!X$5, 'Full set Core Client Indicator'!$A$3:$AB$3, 0))), \"\")","v":""},{"$f":"IF(X272<>\"\", IF(INDEX('Full set Core Client Indicator'!$A$3:$AB$351, MATCH(Selection_Hide2!$A272, 'Full set Core Client Indicator'!$A$3:$A$351, 0), MATCH(Selection_Hide2!Y$5, 'Full set Core Client Indicator'!$A$3:$AB$3, 0))=\"\", \"\",  INDEX('Full set Core Client Indicator'!$A$3:$AB$351, MATCH(Selection_Hide2!$A272, 'Full set Core Client Indicator'!$A$3:$A$351, 0), MATCH(Selection_Hide2!Y$5, 'Full set Core Client Indicator'!$A$3:$AB$3, 0))), \"\")","v":""},{"$f":"IF(Y272<>\"\", IF(INDEX('Full set Core Client Indicator'!$A$3:$AB$351, MATCH(Selection_Hide2!$A272, 'Full set Core Client Indicator'!$A$3:$A$351, 0), MATCH(Selection_Hide2!Z$5, 'Full set Core Client Indicator'!$A$3:$AB$3, 0))=\"\", \"\",  INDEX('Full set Core Client Indicator'!$A$3:$AB$351, MATCH(Selection_Hide2!$A272, 'Full set Core Client Indicator'!$A$3:$A$351, 0), MATCH(Selection_Hide2!Z$5, 'Full set Core Client Indicator'!$A$3:$AB$3, 0))), \"\")","v":""},{"$f":"IF(Z272<>\"\", IF(INDEX('Full set Core Client Indicator'!$A$3:$AB$351, MATCH(Selection_Hide2!$A272, 'Full set Core Client Indicator'!$A$3:$A$351, 0), MATCH(Selection_Hide2!AA$5, 'Full set Core Client Indicator'!$A$3:$AB$3, 0))=\"\", \"\",  INDEX('Full set Core Client Indicator'!$A$3:$AB$351, MATCH(Selection_Hide2!$A272, 'Full set Core Client Indicator'!$A$3:$A$351, 0), MATCH(Selection_Hide2!AA$5, 'Full set Core Client Indicator'!$A$3:$AB$3, 0))), \"\")","v":""},{"$f":"IF(AA272<>\"\", IF(INDEX('Full set Core Client Indicator'!$A$3:$AB$351, MATCH(Selection_Hide2!$A272, 'Full set Core Client Indicator'!$A$3:$A$351, 0), MATCH(Selection_Hide2!AB$5, 'Full set Core Client Indicator'!$A$3:$AB$3, 0))=\"\", \"\",  INDEX('Full set Core Client Indicator'!$A$3:$AB$351, MATCH(Selection_Hide2!$A272, 'Full set Core Client Indicator'!$A$3:$A$351, 0), MATCH(Selection_Hide2!AB$5, 'Full set Core Client Indicator'!$A$3:$AB$3, 0))), \"\")","v":""}]
[{"$f":"IF(AND(Selection_Hide1!C271<>0, Selection_Hide1!C271<>\"Grand Total\"), Selection_Hide1!C271, \"\")","v":""},{"$f":"IF(A273<>\"\", IF(INDEX('Full set Core Client Indicator'!$A$3:$AB$351, MATCH(Selection_Hide2!$A273, 'Full set Core Client Indicator'!$A$3:$A$351, 0), MATCH(Selection_Hide2!B$5, 'Full set Core Client Indicator'!$A$3:$AB$3, 0))=\"\", \"\",  INDEX('Full set Core Client Indicator'!$A$3:$AB$351, MATCH(Selection_Hide2!$A273, 'Full set Core Client Indicator'!$A$3:$A$351, 0), MATCH(Selection_Hide2!B$5, 'Full set Core Client Indicator'!$A$3:$AB$3, 0))), \"\")","v":""},{"$f":"IF(B273<>\"\", IF(INDEX('Full set Core Client Indicator'!$A$3:$AB$351, MATCH(Selection_Hide2!$A273, 'Full set Core Client Indicator'!$A$3:$A$351, 0), MATCH(Selection_Hide2!C$5, 'Full set Core Client Indicator'!$A$3:$AB$3, 0))=\"\", \"\",  INDEX('Full set Core Client Indicator'!$A$3:$AB$351, MATCH(Selection_Hide2!$A273, 'Full set Core Client Indicator'!$A$3:$A$351, 0), MATCH(Selection_Hide2!C$5, 'Full set Core Client Indicator'!$A$3:$AB$3, 0))), \"\")","v":""},{"$f":"IF(C273<>\"\", IF(INDEX('Full set Core Client Indicator'!$A$3:$AB$351, MATCH(Selection_Hide2!$A273, 'Full set Core Client Indicator'!$A$3:$A$351, 0), MATCH(Selection_Hide2!D$5, 'Full set Core Client Indicator'!$A$3:$AB$3, 0))=\"\", \"\",  INDEX('Full set Core Client Indicator'!$A$3:$AB$351, MATCH(Selection_Hide2!$A273, 'Full set Core Client Indicator'!$A$3:$A$351, 0), MATCH(Selection_Hide2!D$5, 'Full set Core Client Indicator'!$A$3:$AB$3, 0))), \"\")","v":""},{"$f":"IF(D273<>\"\", IF(INDEX('Full set Core Client Indicator'!$A$3:$AB$351, MATCH(Selection_Hide2!$A273, 'Full set Core Client Indicator'!$A$3:$A$351, 0), MATCH(Selection_Hide2!E$5, 'Full set Core Client Indicator'!$A$3:$AB$3, 0))=\"\", \"\",  INDEX('Full set Core Client Indicator'!$A$3:$AB$351, MATCH(Selection_Hide2!$A273, 'Full set Core Client Indicator'!$A$3:$A$351, 0), MATCH(Selection_Hide2!E$5, 'Full set Core Client Indicator'!$A$3:$AB$3, 0))), \"\")","v":""},{"$f":"IF(E273<>\"\", IF(INDEX('Full set Core Client Indicator'!$A$3:$AB$351, MATCH(Selection_Hide2!$A273, 'Full set Core Client Indicator'!$A$3:$A$351, 0), MATCH(Selection_Hide2!F$5, 'Full set Core Client Indicator'!$A$3:$AB$3, 0))=\"\", \"\",  INDEX('Full set Core Client Indicator'!$A$3:$AB$351, MATCH(Selection_Hide2!$A273, 'Full set Core Client Indicator'!$A$3:$A$351, 0), MATCH(Selection_Hide2!F$5, 'Full set Core Client Indicator'!$A$3:$AB$3, 0))), \"\")","v":""},{"$f":"IF(F273<>\"\", IF(INDEX('Full set Core Client Indicator'!$A$3:$AB$351, MATCH(Selection_Hide2!$A273, 'Full set Core Client Indicator'!$A$3:$A$351, 0), MATCH(Selection_Hide2!G$5, 'Full set Core Client Indicator'!$A$3:$AB$3, 0))=\"\", \"\",  INDEX('Full set Core Client Indicator'!$A$3:$AB$351, MATCH(Selection_Hide2!$A273, 'Full set Core Client Indicator'!$A$3:$A$351, 0), MATCH(Selection_Hide2!G$5, 'Full set Core Client Indicator'!$A$3:$AB$3, 0))), \"\")","v":""},{"$f":"IF(G273<>\"\", IF(INDEX('Full set Core Client Indicator'!$A$3:$AB$351, MATCH(Selection_Hide2!$A273, 'Full set Core Client Indicator'!$A$3:$A$351, 0), MATCH(Selection_Hide2!H$5, 'Full set Core Client Indicator'!$A$3:$AB$3, 0))=\"\", \"\",  INDEX('Full set Core Client Indicator'!$A$3:$AB$351, MATCH(Selection_Hide2!$A273, 'Full set Core Client Indicator'!$A$3:$A$351, 0), MATCH(Selection_Hide2!H$5, 'Full set Core Client Indicator'!$A$3:$AB$3, 0))), \"\")","v":""},{"$f":"IF(H273<>\"\", IF(INDEX('Full set Core Client Indicator'!$A$3:$AB$351, MATCH(Selection_Hide2!$A273, 'Full set Core Client Indicator'!$A$3:$A$351, 0), MATCH(Selection_Hide2!I$5, 'Full set Core Client Indicator'!$A$3:$AB$3, 0))=\"\", \"\",  INDEX('Full set Core Client Indicator'!$A$3:$AB$351, MATCH(Selection_Hide2!$A273, 'Full set Core Client Indicator'!$A$3:$A$351, 0), MATCH(Selection_Hide2!I$5, 'Full set Core Client Indicator'!$A$3:$AB$3, 0))), \"\")","v":""},{"$f":"IF(I273<>\"\", IF(INDEX('Full set Core Client Indicator'!$A$3:$AB$351, MATCH(Selection_Hide2!$A273, 'Full set Core Client Indicator'!$A$3:$A$351, 0), MATCH(Selection_Hide2!J$5, 'Full set Core Client Indicator'!$A$3:$AB$3, 0))=\"\", \"\",  INDEX('Full set Core Client Indicator'!$A$3:$AB$351, MATCH(Selection_Hide2!$A273, 'Full set Core Client Indicator'!$A$3:$A$351, 0), MATCH(Selection_Hide2!J$5, 'Full set Core Client Indicator'!$A$3:$AB$3, 0))), \"\")","v":""},{"$f":"IF(J273<>\"\", IF(INDEX('Full set Core Client Indicator'!$A$3:$AB$351, MATCH(Selection_Hide2!$A273, 'Full set Core Client Indicator'!$A$3:$A$351, 0), MATCH(Selection_Hide2!K$5, 'Full set Core Client Indicator'!$A$3:$AB$3, 0))=\"\", \"\",  INDEX('Full set Core Client Indicator'!$A$3:$AB$351, MATCH(Selection_Hide2!$A273, 'Full set Core Client Indicator'!$A$3:$A$351, 0), MATCH(Selection_Hide2!K$5, 'Full set Core Client Indicator'!$A$3:$AB$3, 0))), \"\")","v":""},{"$f":"IF(K273<>\"\", IF(INDEX('Full set Core Client Indicator'!$A$3:$AB$351, MATCH(Selection_Hide2!$A273, 'Full set Core Client Indicator'!$A$3:$A$351, 0), MATCH(Selection_Hide2!L$5, 'Full set Core Client Indicator'!$A$3:$AB$3, 0))=\"\", \"\",  INDEX('Full set Core Client Indicator'!$A$3:$AB$351, MATCH(Selection_Hide2!$A273, 'Full set Core Client Indicator'!$A$3:$A$351, 0), MATCH(Selection_Hide2!L$5, 'Full set Core Client Indicator'!$A$3:$AB$3, 0))), \"\")","v":""},{"$f":"IF(L273<>\"\", IF(INDEX('Full set Core Client Indicator'!$A$3:$AB$351, MATCH(Selection_Hide2!$A273, 'Full set Core Client Indicator'!$A$3:$A$351, 0), MATCH(Selection_Hide2!M$5, 'Full set Core Client Indicator'!$A$3:$AB$3, 0))=\"\", \"\",  INDEX('Full set Core Client Indicator'!$A$3:$AB$351, MATCH(Selection_Hide2!$A273, 'Full set Core Client Indicator'!$A$3:$A$351, 0), MATCH(Selection_Hide2!M$5, 'Full set Core Client Indicator'!$A$3:$AB$3, 0))), \"\")","v":""},{"$f":"IF(M273<>\"\", IF(INDEX('Full set Core Client Indicator'!$A$3:$AB$351, MATCH(Selection_Hide2!$A273, 'Full set Core Client Indicator'!$A$3:$A$351, 0), MATCH(Selection_Hide2!N$5, 'Full set Core Client Indicator'!$A$3:$AB$3, 0))=\"\", \"\",  INDEX('Full set Core Client Indicator'!$A$3:$AB$351, MATCH(Selection_Hide2!$A273, 'Full set Core Client Indicator'!$A$3:$A$351, 0), MATCH(Selection_Hide2!N$5, 'Full set Core Client Indicator'!$A$3:$AB$3, 0))), \"\")","v":""},{"$f":"IF(N273<>\"\", IF(INDEX('Full set Core Client Indicator'!$A$3:$AB$351, MATCH(Selection_Hide2!$A273, 'Full set Core Client Indicator'!$A$3:$A$351, 0), MATCH(Selection_Hide2!O$5, 'Full set Core Client Indicator'!$A$3:$AB$3, 0))=\"\", \"\",  INDEX('Full set Core Client Indicator'!$A$3:$AB$351, MATCH(Selection_Hide2!$A273, 'Full set Core Client Indicator'!$A$3:$A$351, 0), MATCH(Selection_Hide2!O$5, 'Full set Core Client Indicator'!$A$3:$AB$3, 0))), \"\")","v":""},{"$f":"IF(O273<>\"\", IF(INDEX('Full set Core Client Indicator'!$A$3:$AB$351, MATCH(Selection_Hide2!$A273, 'Full set Core Client Indicator'!$A$3:$A$351, 0), MATCH(Selection_Hide2!P$5, 'Full set Core Client Indicator'!$A$3:$AB$3, 0))=\"\", \"\",  INDEX('Full set Core Client Indicator'!$A$3:$AB$351, MATCH(Selection_Hide2!$A273, 'Full set Core Client Indicator'!$A$3:$A$351, 0), MATCH(Selection_Hide2!P$5, 'Full set Core Client Indicator'!$A$3:$AB$3, 0))), \"\")","v":""},{"$f":"IF(P273<>\"\", IF(INDEX('Full set Core Client Indicator'!$A$3:$AB$351, MATCH(Selection_Hide2!$A273, 'Full set Core Client Indicator'!$A$3:$A$351, 0), MATCH(Selection_Hide2!Q$5, 'Full set Core Client Indicator'!$A$3:$AB$3, 0))=\"\", \"\",  INDEX('Full set Core Client Indicator'!$A$3:$AB$351, MATCH(Selection_Hide2!$A273, 'Full set Core Client Indicator'!$A$3:$A$351, 0), MATCH(Selection_Hide2!Q$5, 'Full set Core Client Indicator'!$A$3:$AB$3, 0))), \"\")","v":""},{"$f":"IF(Q273<>\"\", IF(INDEX('Full set Core Client Indicator'!$A$3:$AB$351, MATCH(Selection_Hide2!$A273, 'Full set Core Client Indicator'!$A$3:$A$351, 0), MATCH(Selection_Hide2!R$5, 'Full set Core Client Indicator'!$A$3:$AB$3, 0))=\"\", \"\",  INDEX('Full set Core Client Indicator'!$A$3:$AB$351, MATCH(Selection_Hide2!$A273, 'Full set Core Client Indicator'!$A$3:$A$351, 0), MATCH(Selection_Hide2!R$5, 'Full set Core Client Indicator'!$A$3:$AB$3, 0))), \"\")","v":""},{"$f":"IF(R273<>\"\", IF(INDEX('Full set Core Client Indicator'!$A$3:$AB$351, MATCH(Selection_Hide2!$A273, 'Full set Core Client Indicator'!$A$3:$A$351, 0), MATCH(Selection_Hide2!S$5, 'Full set Core Client Indicator'!$A$3:$AB$3, 0))=\"\", \"\",  INDEX('Full set Core Client Indicator'!$A$3:$AB$351, MATCH(Selection_Hide2!$A273, 'Full set Core Client Indicator'!$A$3:$A$351, 0), MATCH(Selection_Hide2!S$5, 'Full set Core Client Indicator'!$A$3:$AB$3, 0))), \"\")","v":""},{"$f":"IF(S273<>\"\", IF(INDEX('Full set Core Client Indicator'!$A$3:$AB$351, MATCH(Selection_Hide2!$A273, 'Full set Core Client Indicator'!$A$3:$A$351, 0), MATCH(Selection_Hide2!T$5, 'Full set Core Client Indicator'!$A$3:$AB$3, 0))=\"\", \"\",  INDEX('Full set Core Client Indicator'!$A$3:$AB$351, MATCH(Selection_Hide2!$A273, 'Full set Core Client Indicator'!$A$3:$A$351, 0), MATCH(Selection_Hide2!T$5, 'Full set Core Client Indicator'!$A$3:$AB$3, 0))), \"\")","v":""},{"$f":"IF(T273<>\"\", IF(INDEX('Full set Core Client Indicator'!$A$3:$AB$351, MATCH(Selection_Hide2!$A273, 'Full set Core Client Indicator'!$A$3:$A$351, 0), MATCH(Selection_Hide2!U$5, 'Full set Core Client Indicator'!$A$3:$AB$3, 0))=\"\", \"\",  INDEX('Full set Core Client Indicator'!$A$3:$AB$351, MATCH(Selection_Hide2!$A273, 'Full set Core Client Indicator'!$A$3:$A$351, 0), MATCH(Selection_Hide2!U$5, 'Full set Core Client Indicator'!$A$3:$AB$3, 0))), \"\")","v":""},{"$f":"IF(U273<>\"\", IF(INDEX('Full set Core Client Indicator'!$A$3:$AB$351, MATCH(Selection_Hide2!$A273, 'Full set Core Client Indicator'!$A$3:$A$351, 0), MATCH(Selection_Hide2!V$5, 'Full set Core Client Indicator'!$A$3:$AB$3, 0))=\"\", \"\",  INDEX('Full set Core Client Indicator'!$A$3:$AB$351, MATCH(Selection_Hide2!$A273, 'Full set Core Client Indicator'!$A$3:$A$351, 0), MATCH(Selection_Hide2!V$5, 'Full set Core Client Indicator'!$A$3:$AB$3, 0))), \"\")","v":""},{"$f":"IF(V273<>\"\", IF(INDEX('Full set Core Client Indicator'!$A$3:$AB$351, MATCH(Selection_Hide2!$A273, 'Full set Core Client Indicator'!$A$3:$A$351, 0), MATCH(Selection_Hide2!W$5, 'Full set Core Client Indicator'!$A$3:$AB$3, 0))=\"\", \"\",  INDEX('Full set Core Client Indicator'!$A$3:$AB$351, MATCH(Selection_Hide2!$A273, 'Full set Core Client Indicator'!$A$3:$A$351, 0), MATCH(Selection_Hide2!W$5, 'Full set Core Client Indicator'!$A$3:$AB$3, 0))), \"\")","v":""},{"$f":"IF(W273<>\"\", IF(INDEX('Full set Core Client Indicator'!$A$3:$AB$351, MATCH(Selection_Hide2!$A273, 'Full set Core Client Indicator'!$A$3:$A$351, 0), MATCH(Selection_Hide2!X$5, 'Full set Core Client Indicator'!$A$3:$AB$3, 0))=\"\", \"\",  INDEX('Full set Core Client Indicator'!$A$3:$AB$351, MATCH(Selection_Hide2!$A273, 'Full set Core Client Indicator'!$A$3:$A$351, 0), MATCH(Selection_Hide2!X$5, 'Full set Core Client Indicator'!$A$3:$AB$3, 0))), \"\")","v":""},{"$f":"IF(X273<>\"\", IF(INDEX('Full set Core Client Indicator'!$A$3:$AB$351, MATCH(Selection_Hide2!$A273, 'Full set Core Client Indicator'!$A$3:$A$351, 0), MATCH(Selection_Hide2!Y$5, 'Full set Core Client Indicator'!$A$3:$AB$3, 0))=\"\", \"\",  INDEX('Full set Core Client Indicator'!$A$3:$AB$351, MATCH(Selection_Hide2!$A273, 'Full set Core Client Indicator'!$A$3:$A$351, 0), MATCH(Selection_Hide2!Y$5, 'Full set Core Client Indicator'!$A$3:$AB$3, 0))), \"\")","v":""},{"$f":"IF(Y273<>\"\", IF(INDEX('Full set Core Client Indicator'!$A$3:$AB$351, MATCH(Selection_Hide2!$A273, 'Full set Core Client Indicator'!$A$3:$A$351, 0), MATCH(Selection_Hide2!Z$5, 'Full set Core Client Indicator'!$A$3:$AB$3, 0))=\"\", \"\",  INDEX('Full set Core Client Indicator'!$A$3:$AB$351, MATCH(Selection_Hide2!$A273, 'Full set Core Client Indicator'!$A$3:$A$351, 0), MATCH(Selection_Hide2!Z$5, 'Full set Core Client Indicator'!$A$3:$AB$3, 0))), \"\")","v":""},{"$f":"IF(Z273<>\"\", IF(INDEX('Full set Core Client Indicator'!$A$3:$AB$351, MATCH(Selection_Hide2!$A273, 'Full set Core Client Indicator'!$A$3:$A$351, 0), MATCH(Selection_Hide2!AA$5, 'Full set Core Client Indicator'!$A$3:$AB$3, 0))=\"\", \"\",  INDEX('Full set Core Client Indicator'!$A$3:$AB$351, MATCH(Selection_Hide2!$A273, 'Full set Core Client Indicator'!$A$3:$A$351, 0), MATCH(Selection_Hide2!AA$5, 'Full set Core Client Indicator'!$A$3:$AB$3, 0))), \"\")","v":""},{"$f":"IF(AA273<>\"\", IF(INDEX('Full set Core Client Indicator'!$A$3:$AB$351, MATCH(Selection_Hide2!$A273, 'Full set Core Client Indicator'!$A$3:$A$351, 0), MATCH(Selection_Hide2!AB$5, 'Full set Core Client Indicator'!$A$3:$AB$3, 0))=\"\", \"\",  INDEX('Full set Core Client Indicator'!$A$3:$AB$351, MATCH(Selection_Hide2!$A273, 'Full set Core Client Indicator'!$A$3:$A$351, 0), MATCH(Selection_Hide2!AB$5, 'Full set Core Client Indicator'!$A$3:$AB$3, 0))), \"\")","v":""}]
[{"$f":"IF(AND(Selection_Hide1!C272<>0, Selection_Hide1!C272<>\"Grand Total\"), Selection_Hide1!C272, \"\")","v":""},{"$f":"IF(A274<>\"\", IF(INDEX('Full set Core Client Indicator'!$A$3:$AB$351, MATCH(Selection_Hide2!$A274, 'Full set Core Client Indicator'!$A$3:$A$351, 0), MATCH(Selection_Hide2!B$5, 'Full set Core Client Indicator'!$A$3:$AB$3, 0))=\"\", \"\",  INDEX('Full set Core Client Indicator'!$A$3:$AB$351, MATCH(Selection_Hide2!$A274, 'Full set Core Client Indicator'!$A$3:$A$351, 0), MATCH(Selection_Hide2!B$5, 'Full set Core Client Indicator'!$A$3:$AB$3, 0))), \"\")","v":""},{"$f":"IF(B274<>\"\", IF(INDEX('Full set Core Client Indicator'!$A$3:$AB$351, MATCH(Selection_Hide2!$A274, 'Full set Core Client Indicator'!$A$3:$A$351, 0), MATCH(Selection_Hide2!C$5, 'Full set Core Client Indicator'!$A$3:$AB$3, 0))=\"\", \"\",  INDEX('Full set Core Client Indicator'!$A$3:$AB$351, MATCH(Selection_Hide2!$A274, 'Full set Core Client Indicator'!$A$3:$A$351, 0), MATCH(Selection_Hide2!C$5, 'Full set Core Client Indicator'!$A$3:$AB$3, 0))), \"\")","v":""},{"$f":"IF(C274<>\"\", IF(INDEX('Full set Core Client Indicator'!$A$3:$AB$351, MATCH(Selection_Hide2!$A274, 'Full set Core Client Indicator'!$A$3:$A$351, 0), MATCH(Selection_Hide2!D$5, 'Full set Core Client Indicator'!$A$3:$AB$3, 0))=\"\", \"\",  INDEX('Full set Core Client Indicator'!$A$3:$AB$351, MATCH(Selection_Hide2!$A274, 'Full set Core Client Indicator'!$A$3:$A$351, 0), MATCH(Selection_Hide2!D$5, 'Full set Core Client Indicator'!$A$3:$AB$3, 0))), \"\")","v":""},{"$f":"IF(D274<>\"\", IF(INDEX('Full set Core Client Indicator'!$A$3:$AB$351, MATCH(Selection_Hide2!$A274, 'Full set Core Client Indicator'!$A$3:$A$351, 0), MATCH(Selection_Hide2!E$5, 'Full set Core Client Indicator'!$A$3:$AB$3, 0))=\"\", \"\",  INDEX('Full set Core Client Indicator'!$A$3:$AB$351, MATCH(Selection_Hide2!$A274, 'Full set Core Client Indicator'!$A$3:$A$351, 0), MATCH(Selection_Hide2!E$5, 'Full set Core Client Indicator'!$A$3:$AB$3, 0))), \"\")","v":""},{"$f":"IF(E274<>\"\", IF(INDEX('Full set Core Client Indicator'!$A$3:$AB$351, MATCH(Selection_Hide2!$A274, 'Full set Core Client Indicator'!$A$3:$A$351, 0), MATCH(Selection_Hide2!F$5, 'Full set Core Client Indicator'!$A$3:$AB$3, 0))=\"\", \"\",  INDEX('Full set Core Client Indicator'!$A$3:$AB$351, MATCH(Selection_Hide2!$A274, 'Full set Core Client Indicator'!$A$3:$A$351, 0), MATCH(Selection_Hide2!F$5, 'Full set Core Client Indicator'!$A$3:$AB$3, 0))), \"\")","v":""},{"$f":"IF(F274<>\"\", IF(INDEX('Full set Core Client Indicator'!$A$3:$AB$351, MATCH(Selection_Hide2!$A274, 'Full set Core Client Indicator'!$A$3:$A$351, 0), MATCH(Selection_Hide2!G$5, 'Full set Core Client Indicator'!$A$3:$AB$3, 0))=\"\", \"\",  INDEX('Full set Core Client Indicator'!$A$3:$AB$351, MATCH(Selection_Hide2!$A274, 'Full set Core Client Indicator'!$A$3:$A$351, 0), MATCH(Selection_Hide2!G$5, 'Full set Core Client Indicator'!$A$3:$AB$3, 0))), \"\")","v":""},{"$f":"IF(G274<>\"\", IF(INDEX('Full set Core Client Indicator'!$A$3:$AB$351, MATCH(Selection_Hide2!$A274, 'Full set Core Client Indicator'!$A$3:$A$351, 0), MATCH(Selection_Hide2!H$5, 'Full set Core Client Indicator'!$A$3:$AB$3, 0))=\"\", \"\",  INDEX('Full set Core Client Indicator'!$A$3:$AB$351, MATCH(Selection_Hide2!$A274, 'Full set Core Client Indicator'!$A$3:$A$351, 0), MATCH(Selection_Hide2!H$5, 'Full set Core Client Indicator'!$A$3:$AB$3, 0))), \"\")","v":""},{"$f":"IF(H274<>\"\", IF(INDEX('Full set Core Client Indicator'!$A$3:$AB$351, MATCH(Selection_Hide2!$A274, 'Full set Core Client Indicator'!$A$3:$A$351, 0), MATCH(Selection_Hide2!I$5, 'Full set Core Client Indicator'!$A$3:$AB$3, 0))=\"\", \"\",  INDEX('Full set Core Client Indicator'!$A$3:$AB$351, MATCH(Selection_Hide2!$A274, 'Full set Core Client Indicator'!$A$3:$A$351, 0), MATCH(Selection_Hide2!I$5, 'Full set Core Client Indicator'!$A$3:$AB$3, 0))), \"\")","v":""},{"$f":"IF(I274<>\"\", IF(INDEX('Full set Core Client Indicator'!$A$3:$AB$351, MATCH(Selection_Hide2!$A274, 'Full set Core Client Indicator'!$A$3:$A$351, 0), MATCH(Selection_Hide2!J$5, 'Full set Core Client Indicator'!$A$3:$AB$3, 0))=\"\", \"\",  INDEX('Full set Core Client Indicator'!$A$3:$AB$351, MATCH(Selection_Hide2!$A274, 'Full set Core Client Indicator'!$A$3:$A$351, 0), MATCH(Selection_Hide2!J$5, 'Full set Core Client Indicator'!$A$3:$AB$3, 0))), \"\")","v":""},{"$f":"IF(J274<>\"\", IF(INDEX('Full set Core Client Indicator'!$A$3:$AB$351, MATCH(Selection_Hide2!$A274, 'Full set Core Client Indicator'!$A$3:$A$351, 0), MATCH(Selection_Hide2!K$5, 'Full set Core Client Indicator'!$A$3:$AB$3, 0))=\"\", \"\",  INDEX('Full set Core Client Indicator'!$A$3:$AB$351, MATCH(Selection_Hide2!$A274, 'Full set Core Client Indicator'!$A$3:$A$351, 0), MATCH(Selection_Hide2!K$5, 'Full set Core Client Indicator'!$A$3:$AB$3, 0))), \"\")","v":""},{"$f":"IF(K274<>\"\", IF(INDEX('Full set Core Client Indicator'!$A$3:$AB$351, MATCH(Selection_Hide2!$A274, 'Full set Core Client Indicator'!$A$3:$A$351, 0), MATCH(Selection_Hide2!L$5, 'Full set Core Client Indicator'!$A$3:$AB$3, 0))=\"\", \"\",  INDEX('Full set Core Client Indicator'!$A$3:$AB$351, MATCH(Selection_Hide2!$A274, 'Full set Core Client Indicator'!$A$3:$A$351, 0), MATCH(Selection_Hide2!L$5, 'Full set Core Client Indicator'!$A$3:$AB$3, 0))), \"\")","v":""},{"$f":"IF(L274<>\"\", IF(INDEX('Full set Core Client Indicator'!$A$3:$AB$351, MATCH(Selection_Hide2!$A274, 'Full set Core Client Indicator'!$A$3:$A$351, 0), MATCH(Selection_Hide2!M$5, 'Full set Core Client Indicator'!$A$3:$AB$3, 0))=\"\", \"\",  INDEX('Full set Core Client Indicator'!$A$3:$AB$351, MATCH(Selection_Hide2!$A274, 'Full set Core Client Indicator'!$A$3:$A$351, 0), MATCH(Selection_Hide2!M$5, 'Full set Core Client Indicator'!$A$3:$AB$3, 0))), \"\")","v":""},{"$f":"IF(M274<>\"\", IF(INDEX('Full set Core Client Indicator'!$A$3:$AB$351, MATCH(Selection_Hide2!$A274, 'Full set Core Client Indicator'!$A$3:$A$351, 0), MATCH(Selection_Hide2!N$5, 'Full set Core Client Indicator'!$A$3:$AB$3, 0))=\"\", \"\",  INDEX('Full set Core Client Indicator'!$A$3:$AB$351, MATCH(Selection_Hide2!$A274, 'Full set Core Client Indicator'!$A$3:$A$351, 0), MATCH(Selection_Hide2!N$5, 'Full set Core Client Indicator'!$A$3:$AB$3, 0))), \"\")","v":""},{"$f":"IF(N274<>\"\", IF(INDEX('Full set Core Client Indicator'!$A$3:$AB$351, MATCH(Selection_Hide2!$A274, 'Full set Core Client Indicator'!$A$3:$A$351, 0), MATCH(Selection_Hide2!O$5, 'Full set Core Client Indicator'!$A$3:$AB$3, 0))=\"\", \"\",  INDEX('Full set Core Client Indicator'!$A$3:$AB$351, MATCH(Selection_Hide2!$A274, 'Full set Core Client Indicator'!$A$3:$A$351, 0), MATCH(Selection_Hide2!O$5, 'Full set Core Client Indicator'!$A$3:$AB$3, 0))), \"\")","v":""},{"$f":"IF(O274<>\"\", IF(INDEX('Full set Core Client Indicator'!$A$3:$AB$351, MATCH(Selection_Hide2!$A274, 'Full set Core Client Indicator'!$A$3:$A$351, 0), MATCH(Selection_Hide2!P$5, 'Full set Core Client Indicator'!$A$3:$AB$3, 0))=\"\", \"\",  INDEX('Full set Core Client Indicator'!$A$3:$AB$351, MATCH(Selection_Hide2!$A274, 'Full set Core Client Indicator'!$A$3:$A$351, 0), MATCH(Selection_Hide2!P$5, 'Full set Core Client Indicator'!$A$3:$AB$3, 0))), \"\")","v":""},{"$f":"IF(P274<>\"\", IF(INDEX('Full set Core Client Indicator'!$A$3:$AB$351, MATCH(Selection_Hide2!$A274, 'Full set Core Client Indicator'!$A$3:$A$351, 0), MATCH(Selection_Hide2!Q$5, 'Full set Core Client Indicator'!$A$3:$AB$3, 0))=\"\", \"\",  INDEX('Full set Core Client Indicator'!$A$3:$AB$351, MATCH(Selection_Hide2!$A274, 'Full set Core Client Indicator'!$A$3:$A$351, 0), MATCH(Selection_Hide2!Q$5, 'Full set Core Client Indicator'!$A$3:$AB$3, 0))), \"\")","v":""},{"$f":"IF(Q274<>\"\", IF(INDEX('Full set Core Client Indicator'!$A$3:$AB$351, MATCH(Selection_Hide2!$A274, 'Full set Core Client Indicator'!$A$3:$A$351, 0), MATCH(Selection_Hide2!R$5, 'Full set Core Client Indicator'!$A$3:$AB$3, 0))=\"\", \"\",  INDEX('Full set Core Client Indicator'!$A$3:$AB$351, MATCH(Selection_Hide2!$A274, 'Full set Core Client Indicator'!$A$3:$A$351, 0), MATCH(Selection_Hide2!R$5, 'Full set Core Client Indicator'!$A$3:$AB$3, 0))), \"\")","v":""},{"$f":"IF(R274<>\"\", IF(INDEX('Full set Core Client Indicator'!$A$3:$AB$351, MATCH(Selection_Hide2!$A274, 'Full set Core Client Indicator'!$A$3:$A$351, 0), MATCH(Selection_Hide2!S$5, 'Full set Core Client Indicator'!$A$3:$AB$3, 0))=\"\", \"\",  INDEX('Full set Core Client Indicator'!$A$3:$AB$351, MATCH(Selection_Hide2!$A274, 'Full set Core Client Indicator'!$A$3:$A$351, 0), MATCH(Selection_Hide2!S$5, 'Full set Core Client Indicator'!$A$3:$AB$3, 0))), \"\")","v":""},{"$f":"IF(S274<>\"\", IF(INDEX('Full set Core Client Indicator'!$A$3:$AB$351, MATCH(Selection_Hide2!$A274, 'Full set Core Client Indicator'!$A$3:$A$351, 0), MATCH(Selection_Hide2!T$5, 'Full set Core Client Indicator'!$A$3:$AB$3, 0))=\"\", \"\",  INDEX('Full set Core Client Indicator'!$A$3:$AB$351, MATCH(Selection_Hide2!$A274, 'Full set Core Client Indicator'!$A$3:$A$351, 0), MATCH(Selection_Hide2!T$5, 'Full set Core Client Indicator'!$A$3:$AB$3, 0))), \"\")","v":""},{"$f":"IF(T274<>\"\", IF(INDEX('Full set Core Client Indicator'!$A$3:$AB$351, MATCH(Selection_Hide2!$A274, 'Full set Core Client Indicator'!$A$3:$A$351, 0), MATCH(Selection_Hide2!U$5, 'Full set Core Client Indicator'!$A$3:$AB$3, 0))=\"\", \"\",  INDEX('Full set Core Client Indicator'!$A$3:$AB$351, MATCH(Selection_Hide2!$A274, 'Full set Core Client Indicator'!$A$3:$A$351, 0), MATCH(Selection_Hide2!U$5, 'Full set Core Client Indicator'!$A$3:$AB$3, 0))), \"\")","v":""},{"$f":"IF(U274<>\"\", IF(INDEX('Full set Core Client Indicator'!$A$3:$AB$351, MATCH(Selection_Hide2!$A274, 'Full set Core Client Indicator'!$A$3:$A$351, 0), MATCH(Selection_Hide2!V$5, 'Full set Core Client Indicator'!$A$3:$AB$3, 0))=\"\", \"\",  INDEX('Full set Core Client Indicator'!$A$3:$AB$351, MATCH(Selection_Hide2!$A274, 'Full set Core Client Indicator'!$A$3:$A$351, 0), MATCH(Selection_Hide2!V$5, 'Full set Core Client Indicator'!$A$3:$AB$3, 0))), \"\")","v":""},{"$f":"IF(V274<>\"\", IF(INDEX('Full set Core Client Indicator'!$A$3:$AB$351, MATCH(Selection_Hide2!$A274, 'Full set Core Client Indicator'!$A$3:$A$351, 0), MATCH(Selection_Hide2!W$5, 'Full set Core Client Indicator'!$A$3:$AB$3, 0))=\"\", \"\",  INDEX('Full set Core Client Indicator'!$A$3:$AB$351, MATCH(Selection_Hide2!$A274, 'Full set Core Client Indicator'!$A$3:$A$351, 0), MATCH(Selection_Hide2!W$5, 'Full set Core Client Indicator'!$A$3:$AB$3, 0))), \"\")","v":""},{"$f":"IF(W274<>\"\", IF(INDEX('Full set Core Client Indicator'!$A$3:$AB$351, MATCH(Selection_Hide2!$A274, 'Full set Core Client Indicator'!$A$3:$A$351, 0), MATCH(Selection_Hide2!X$5, 'Full set Core Client Indicator'!$A$3:$AB$3, 0))=\"\", \"\",  INDEX('Full set Core Client Indicator'!$A$3:$AB$351, MATCH(Selection_Hide2!$A274, 'Full set Core Client Indicator'!$A$3:$A$351, 0), MATCH(Selection_Hide2!X$5, 'Full set Core Client Indicator'!$A$3:$AB$3, 0))), \"\")","v":""},{"$f":"IF(X274<>\"\", IF(INDEX('Full set Core Client Indicator'!$A$3:$AB$351, MATCH(Selection_Hide2!$A274, 'Full set Core Client Indicator'!$A$3:$A$351, 0), MATCH(Selection_Hide2!Y$5, 'Full set Core Client Indicator'!$A$3:$AB$3, 0))=\"\", \"\",  INDEX('Full set Core Client Indicator'!$A$3:$AB$351, MATCH(Selection_Hide2!$A274, 'Full set Core Client Indicator'!$A$3:$A$351, 0), MATCH(Selection_Hide2!Y$5, 'Full set Core Client Indicator'!$A$3:$AB$3, 0))), \"\")","v":""},{"$f":"IF(Y274<>\"\", IF(INDEX('Full set Core Client Indicator'!$A$3:$AB$351, MATCH(Selection_Hide2!$A274, 'Full set Core Client Indicator'!$A$3:$A$351, 0), MATCH(Selection_Hide2!Z$5, 'Full set Core Client Indicator'!$A$3:$AB$3, 0))=\"\", \"\",  INDEX('Full set Core Client Indicator'!$A$3:$AB$351, MATCH(Selection_Hide2!$A274, 'Full set Core Client Indicator'!$A$3:$A$351, 0), MATCH(Selection_Hide2!Z$5, 'Full set Core Client Indicator'!$A$3:$AB$3, 0))), \"\")","v":""},{"$f":"IF(Z274<>\"\", IF(INDEX('Full set Core Client Indicator'!$A$3:$AB$351, MATCH(Selection_Hide2!$A274, 'Full set Core Client Indicator'!$A$3:$A$351, 0), MATCH(Selection_Hide2!AA$5, 'Full set Core Client Indicator'!$A$3:$AB$3, 0))=\"\", \"\",  INDEX('Full set Core Client Indicator'!$A$3:$AB$351, MATCH(Selection_Hide2!$A274, 'Full set Core Client Indicator'!$A$3:$A$351, 0), MATCH(Selection_Hide2!AA$5, 'Full set Core Client Indicator'!$A$3:$AB$3, 0))), \"\")","v":""},{"$f":"IF(AA274<>\"\", IF(INDEX('Full set Core Client Indicator'!$A$3:$AB$351, MATCH(Selection_Hide2!$A274, 'Full set Core Client Indicator'!$A$3:$A$351, 0), MATCH(Selection_Hide2!AB$5, 'Full set Core Client Indicator'!$A$3:$AB$3, 0))=\"\", \"\",  INDEX('Full set Core Client Indicator'!$A$3:$AB$351, MATCH(Selection_Hide2!$A274, 'Full set Core Client Indicator'!$A$3:$A$351, 0), MATCH(Selection_Hide2!AB$5, 'Full set Core Client Indicator'!$A$3:$AB$3, 0))), \"\")","v":""}]
[{"$f":"IF(AND(Selection_Hide1!C273<>0, Selection_Hide1!C273<>\"Grand Total\"), Selection_Hide1!C273, \"\")","v":""},{"$f":"IF(A275<>\"\", IF(INDEX('Full set Core Client Indicator'!$A$3:$AB$351, MATCH(Selection_Hide2!$A275, 'Full set Core Client Indicator'!$A$3:$A$351, 0), MATCH(Selection_Hide2!B$5, 'Full set Core Client Indicator'!$A$3:$AB$3, 0))=\"\", \"\",  INDEX('Full set Core Client Indicator'!$A$3:$AB$351, MATCH(Selection_Hide2!$A275, 'Full set Core Client Indicator'!$A$3:$A$351, 0), MATCH(Selection_Hide2!B$5, 'Full set Core Client Indicator'!$A$3:$AB$3, 0))), \"\")","v":""},{"$f":"IF(B275<>\"\", IF(INDEX('Full set Core Client Indicator'!$A$3:$AB$351, MATCH(Selection_Hide2!$A275, 'Full set Core Client Indicator'!$A$3:$A$351, 0), MATCH(Selection_Hide2!C$5, 'Full set Core Client Indicator'!$A$3:$AB$3, 0))=\"\", \"\",  INDEX('Full set Core Client Indicator'!$A$3:$AB$351, MATCH(Selection_Hide2!$A275, 'Full set Core Client Indicator'!$A$3:$A$351, 0), MATCH(Selection_Hide2!C$5, 'Full set Core Client Indicator'!$A$3:$AB$3, 0))), \"\")","v":""},{"$f":"IF(C275<>\"\", IF(INDEX('Full set Core Client Indicator'!$A$3:$AB$351, MATCH(Selection_Hide2!$A275, 'Full set Core Client Indicator'!$A$3:$A$351, 0), MATCH(Selection_Hide2!D$5, 'Full set Core Client Indicator'!$A$3:$AB$3, 0))=\"\", \"\",  INDEX('Full set Core Client Indicator'!$A$3:$AB$351, MATCH(Selection_Hide2!$A275, 'Full set Core Client Indicator'!$A$3:$A$351, 0), MATCH(Selection_Hide2!D$5, 'Full set Core Client Indicator'!$A$3:$AB$3, 0))), \"\")","v":""},{"$f":"IF(D275<>\"\", IF(INDEX('Full set Core Client Indicator'!$A$3:$AB$351, MATCH(Selection_Hide2!$A275, 'Full set Core Client Indicator'!$A$3:$A$351, 0), MATCH(Selection_Hide2!E$5, 'Full set Core Client Indicator'!$A$3:$AB$3, 0))=\"\", \"\",  INDEX('Full set Core Client Indicator'!$A$3:$AB$351, MATCH(Selection_Hide2!$A275, 'Full set Core Client Indicator'!$A$3:$A$351, 0), MATCH(Selection_Hide2!E$5, 'Full set Core Client Indicator'!$A$3:$AB$3, 0))), \"\")","v":""},{"$f":"IF(E275<>\"\", IF(INDEX('Full set Core Client Indicator'!$A$3:$AB$351, MATCH(Selection_Hide2!$A275, 'Full set Core Client Indicator'!$A$3:$A$351, 0), MATCH(Selection_Hide2!F$5, 'Full set Core Client Indicator'!$A$3:$AB$3, 0))=\"\", \"\",  INDEX('Full set Core Client Indicator'!$A$3:$AB$351, MATCH(Selection_Hide2!$A275, 'Full set Core Client Indicator'!$A$3:$A$351, 0), MATCH(Selection_Hide2!F$5, 'Full set Core Client Indicator'!$A$3:$AB$3, 0))), \"\")","v":""},{"$f":"IF(F275<>\"\", IF(INDEX('Full set Core Client Indicator'!$A$3:$AB$351, MATCH(Selection_Hide2!$A275, 'Full set Core Client Indicator'!$A$3:$A$351, 0), MATCH(Selection_Hide2!G$5, 'Full set Core Client Indicator'!$A$3:$AB$3, 0))=\"\", \"\",  INDEX('Full set Core Client Indicator'!$A$3:$AB$351, MATCH(Selection_Hide2!$A275, 'Full set Core Client Indicator'!$A$3:$A$351, 0), MATCH(Selection_Hide2!G$5, 'Full set Core Client Indicator'!$A$3:$AB$3, 0))), \"\")","v":""},{"$f":"IF(G275<>\"\", IF(INDEX('Full set Core Client Indicator'!$A$3:$AB$351, MATCH(Selection_Hide2!$A275, 'Full set Core Client Indicator'!$A$3:$A$351, 0), MATCH(Selection_Hide2!H$5, 'Full set Core Client Indicator'!$A$3:$AB$3, 0))=\"\", \"\",  INDEX('Full set Core Client Indicator'!$A$3:$AB$351, MATCH(Selection_Hide2!$A275, 'Full set Core Client Indicator'!$A$3:$A$351, 0), MATCH(Selection_Hide2!H$5, 'Full set Core Client Indicator'!$A$3:$AB$3, 0))), \"\")","v":""},{"$f":"IF(H275<>\"\", IF(INDEX('Full set Core Client Indicator'!$A$3:$AB$351, MATCH(Selection_Hide2!$A275, 'Full set Core Client Indicator'!$A$3:$A$351, 0), MATCH(Selection_Hide2!I$5, 'Full set Core Client Indicator'!$A$3:$AB$3, 0))=\"\", \"\",  INDEX('Full set Core Client Indicator'!$A$3:$AB$351, MATCH(Selection_Hide2!$A275, 'Full set Core Client Indicator'!$A$3:$A$351, 0), MATCH(Selection_Hide2!I$5, 'Full set Core Client Indicator'!$A$3:$AB$3, 0))), \"\")","v":""},{"$f":"IF(I275<>\"\", IF(INDEX('Full set Core Client Indicator'!$A$3:$AB$351, MATCH(Selection_Hide2!$A275, 'Full set Core Client Indicator'!$A$3:$A$351, 0), MATCH(Selection_Hide2!J$5, 'Full set Core Client Indicator'!$A$3:$AB$3, 0))=\"\", \"\",  INDEX('Full set Core Client Indicator'!$A$3:$AB$351, MATCH(Selection_Hide2!$A275, 'Full set Core Client Indicator'!$A$3:$A$351, 0), MATCH(Selection_Hide2!J$5, 'Full set Core Client Indicator'!$A$3:$AB$3, 0))), \"\")","v":""},{"$f":"IF(J275<>\"\", IF(INDEX('Full set Core Client Indicator'!$A$3:$AB$351, MATCH(Selection_Hide2!$A275, 'Full set Core Client Indicator'!$A$3:$A$351, 0), MATCH(Selection_Hide2!K$5, 'Full set Core Client Indicator'!$A$3:$AB$3, 0))=\"\", \"\",  INDEX('Full set Core Client Indicator'!$A$3:$AB$351, MATCH(Selection_Hide2!$A275, 'Full set Core Client Indicator'!$A$3:$A$351, 0), MATCH(Selection_Hide2!K$5, 'Full set Core Client Indicator'!$A$3:$AB$3, 0))), \"\")","v":""},{"$f":"IF(K275<>\"\", IF(INDEX('Full set Core Client Indicator'!$A$3:$AB$351, MATCH(Selection_Hide2!$A275, 'Full set Core Client Indicator'!$A$3:$A$351, 0), MATCH(Selection_Hide2!L$5, 'Full set Core Client Indicator'!$A$3:$AB$3, 0))=\"\", \"\",  INDEX('Full set Core Client Indicator'!$A$3:$AB$351, MATCH(Selection_Hide2!$A275, 'Full set Core Client Indicator'!$A$3:$A$351, 0), MATCH(Selection_Hide2!L$5, 'Full set Core Client Indicator'!$A$3:$AB$3, 0))), \"\")","v":""},{"$f":"IF(L275<>\"\", IF(INDEX('Full set Core Client Indicator'!$A$3:$AB$351, MATCH(Selection_Hide2!$A275, 'Full set Core Client Indicator'!$A$3:$A$351, 0), MATCH(Selection_Hide2!M$5, 'Full set Core Client Indicator'!$A$3:$AB$3, 0))=\"\", \"\",  INDEX('Full set Core Client Indicator'!$A$3:$AB$351, MATCH(Selection_Hide2!$A275, 'Full set Core Client Indicator'!$A$3:$A$351, 0), MATCH(Selection_Hide2!M$5, 'Full set Core Client Indicator'!$A$3:$AB$3, 0))), \"\")","v":""},{"$f":"IF(M275<>\"\", IF(INDEX('Full set Core Client Indicator'!$A$3:$AB$351, MATCH(Selection_Hide2!$A275, 'Full set Core Client Indicator'!$A$3:$A$351, 0), MATCH(Selection_Hide2!N$5, 'Full set Core Client Indicator'!$A$3:$AB$3, 0))=\"\", \"\",  INDEX('Full set Core Client Indicator'!$A$3:$AB$351, MATCH(Selection_Hide2!$A275, 'Full set Core Client Indicator'!$A$3:$A$351, 0), MATCH(Selection_Hide2!N$5, 'Full set Core Client Indicator'!$A$3:$AB$3, 0))), \"\")","v":""},{"$f":"IF(N275<>\"\", IF(INDEX('Full set Core Client Indicator'!$A$3:$AB$351, MATCH(Selection_Hide2!$A275, 'Full set Core Client Indicator'!$A$3:$A$351, 0), MATCH(Selection_Hide2!O$5, 'Full set Core Client Indicator'!$A$3:$AB$3, 0))=\"\", \"\",  INDEX('Full set Core Client Indicator'!$A$3:$AB$351, MATCH(Selection_Hide2!$A275, 'Full set Core Client Indicator'!$A$3:$A$351, 0), MATCH(Selection_Hide2!O$5, 'Full set Core Client Indicator'!$A$3:$AB$3, 0))), \"\")","v":""},{"$f":"IF(O275<>\"\", IF(INDEX('Full set Core Client Indicator'!$A$3:$AB$351, MATCH(Selection_Hide2!$A275, 'Full set Core Client Indicator'!$A$3:$A$351, 0), MATCH(Selection_Hide2!P$5, 'Full set Core Client Indicator'!$A$3:$AB$3, 0))=\"\", \"\",  INDEX('Full set Core Client Indicator'!$A$3:$AB$351, MATCH(Selection_Hide2!$A275, 'Full set Core Client Indicator'!$A$3:$A$351, 0), MATCH(Selection_Hide2!P$5, 'Full set Core Client Indicator'!$A$3:$AB$3, 0))), \"\")","v":""},{"$f":"IF(P275<>\"\", IF(INDEX('Full set Core Client Indicator'!$A$3:$AB$351, MATCH(Selection_Hide2!$A275, 'Full set Core Client Indicator'!$A$3:$A$351, 0), MATCH(Selection_Hide2!Q$5, 'Full set Core Client Indicator'!$A$3:$AB$3, 0))=\"\", \"\",  INDEX('Full set Core Client Indicator'!$A$3:$AB$351, MATCH(Selection_Hide2!$A275, 'Full set Core Client Indicator'!$A$3:$A$351, 0), MATCH(Selection_Hide2!Q$5, 'Full set Core Client Indicator'!$A$3:$AB$3, 0))), \"\")","v":""},{"$f":"IF(Q275<>\"\", IF(INDEX('Full set Core Client Indicator'!$A$3:$AB$351, MATCH(Selection_Hide2!$A275, 'Full set Core Client Indicator'!$A$3:$A$351, 0), MATCH(Selection_Hide2!R$5, 'Full set Core Client Indicator'!$A$3:$AB$3, 0))=\"\", \"\",  INDEX('Full set Core Client Indicator'!$A$3:$AB$351, MATCH(Selection_Hide2!$A275, 'Full set Core Client Indicator'!$A$3:$A$351, 0), MATCH(Selection_Hide2!R$5, 'Full set Core Client Indicator'!$A$3:$AB$3, 0))), \"\")","v":""},{"$f":"IF(R275<>\"\", IF(INDEX('Full set Core Client Indicator'!$A$3:$AB$351, MATCH(Selection_Hide2!$A275, 'Full set Core Client Indicator'!$A$3:$A$351, 0), MATCH(Selection_Hide2!S$5, 'Full set Core Client Indicator'!$A$3:$AB$3, 0))=\"\", \"\",  INDEX('Full set Core Client Indicator'!$A$3:$AB$351, MATCH(Selection_Hide2!$A275, 'Full set Core Client Indicator'!$A$3:$A$351, 0), MATCH(Selection_Hide2!S$5, 'Full set Core Client Indicator'!$A$3:$AB$3, 0))), \"\")","v":""},{"$f":"IF(S275<>\"\", IF(INDEX('Full set Core Client Indicator'!$A$3:$AB$351, MATCH(Selection_Hide2!$A275, 'Full set Core Client Indicator'!$A$3:$A$351, 0), MATCH(Selection_Hide2!T$5, 'Full set Core Client Indicator'!$A$3:$AB$3, 0))=\"\", \"\",  INDEX('Full set Core Client Indicator'!$A$3:$AB$351, MATCH(Selection_Hide2!$A275, 'Full set Core Client Indicator'!$A$3:$A$351, 0), MATCH(Selection_Hide2!T$5, 'Full set Core Client Indicator'!$A$3:$AB$3, 0))), \"\")","v":""},{"$f":"IF(T275<>\"\", IF(INDEX('Full set Core Client Indicator'!$A$3:$AB$351, MATCH(Selection_Hide2!$A275, 'Full set Core Client Indicator'!$A$3:$A$351, 0), MATCH(Selection_Hide2!U$5, 'Full set Core Client Indicator'!$A$3:$AB$3, 0))=\"\", \"\",  INDEX('Full set Core Client Indicator'!$A$3:$AB$351, MATCH(Selection_Hide2!$A275, 'Full set Core Client Indicator'!$A$3:$A$351, 0), MATCH(Selection_Hide2!U$5, 'Full set Core Client Indicator'!$A$3:$AB$3, 0))), \"\")","v":""},{"$f":"IF(U275<>\"\", IF(INDEX('Full set Core Client Indicator'!$A$3:$AB$351, MATCH(Selection_Hide2!$A275, 'Full set Core Client Indicator'!$A$3:$A$351, 0), MATCH(Selection_Hide2!V$5, 'Full set Core Client Indicator'!$A$3:$AB$3, 0))=\"\", \"\",  INDEX('Full set Core Client Indicator'!$A$3:$AB$351, MATCH(Selection_Hide2!$A275, 'Full set Core Client Indicator'!$A$3:$A$351, 0), MATCH(Selection_Hide2!V$5, 'Full set Core Client Indicator'!$A$3:$AB$3, 0))), \"\")","v":""},{"$f":"IF(V275<>\"\", IF(INDEX('Full set Core Client Indicator'!$A$3:$AB$351, MATCH(Selection_Hide2!$A275, 'Full set Core Client Indicator'!$A$3:$A$351, 0), MATCH(Selection_Hide2!W$5, 'Full set Core Client Indicator'!$A$3:$AB$3, 0))=\"\", \"\",  INDEX('Full set Core Client Indicator'!$A$3:$AB$351, MATCH(Selection_Hide2!$A275, 'Full set Core Client Indicator'!$A$3:$A$351, 0), MATCH(Selection_Hide2!W$5, 'Full set Core Client Indicator'!$A$3:$AB$3, 0))), \"\")","v":""},{"$f":"IF(W275<>\"\", IF(INDEX('Full set Core Client Indicator'!$A$3:$AB$351, MATCH(Selection_Hide2!$A275, 'Full set Core Client Indicator'!$A$3:$A$351, 0), MATCH(Selection_Hide2!X$5, 'Full set Core Client Indicator'!$A$3:$AB$3, 0))=\"\", \"\",  INDEX('Full set Core Client Indicator'!$A$3:$AB$351, MATCH(Selection_Hide2!$A275, 'Full set Core Client Indicator'!$A$3:$A$351, 0), MATCH(Selection_Hide2!X$5, 'Full set Core Client Indicator'!$A$3:$AB$3, 0))), \"\")","v":""},{"$f":"IF(X275<>\"\", IF(INDEX('Full set Core Client Indicator'!$A$3:$AB$351, MATCH(Selection_Hide2!$A275, 'Full set Core Client Indicator'!$A$3:$A$351, 0), MATCH(Selection_Hide2!Y$5, 'Full set Core Client Indicator'!$A$3:$AB$3, 0))=\"\", \"\",  INDEX('Full set Core Client Indicator'!$A$3:$AB$351, MATCH(Selection_Hide2!$A275, 'Full set Core Client Indicator'!$A$3:$A$351, 0), MATCH(Selection_Hide2!Y$5, 'Full set Core Client Indicator'!$A$3:$AB$3, 0))), \"\")","v":""},{"$f":"IF(Y275<>\"\", IF(INDEX('Full set Core Client Indicator'!$A$3:$AB$351, MATCH(Selection_Hide2!$A275, 'Full set Core Client Indicator'!$A$3:$A$351, 0), MATCH(Selection_Hide2!Z$5, 'Full set Core Client Indicator'!$A$3:$AB$3, 0))=\"\", \"\",  INDEX('Full set Core Client Indicator'!$A$3:$AB$351, MATCH(Selection_Hide2!$A275, 'Full set Core Client Indicator'!$A$3:$A$351, 0), MATCH(Selection_Hide2!Z$5, 'Full set Core Client Indicator'!$A$3:$AB$3, 0))), \"\")","v":""},{"$f":"IF(Z275<>\"\", IF(INDEX('Full set Core Client Indicator'!$A$3:$AB$351, MATCH(Selection_Hide2!$A275, 'Full set Core Client Indicator'!$A$3:$A$351, 0), MATCH(Selection_Hide2!AA$5, 'Full set Core Client Indicator'!$A$3:$AB$3, 0))=\"\", \"\",  INDEX('Full set Core Client Indicator'!$A$3:$AB$351, MATCH(Selection_Hide2!$A275, 'Full set Core Client Indicator'!$A$3:$A$351, 0), MATCH(Selection_Hide2!AA$5, 'Full set Core Client Indicator'!$A$3:$AB$3, 0))), \"\")","v":""},{"$f":"IF(AA275<>\"\", IF(INDEX('Full set Core Client Indicator'!$A$3:$AB$351, MATCH(Selection_Hide2!$A275, 'Full set Core Client Indicator'!$A$3:$A$351, 0), MATCH(Selection_Hide2!AB$5, 'Full set Core Client Indicator'!$A$3:$AB$3, 0))=\"\", \"\",  INDEX('Full set Core Client Indicator'!$A$3:$AB$351, MATCH(Selection_Hide2!$A275, 'Full set Core Client Indicator'!$A$3:$A$351, 0), MATCH(Selection_Hide2!AB$5, 'Full set Core Client Indicator'!$A$3:$AB$3, 0))), \"\")","v":""}]
[{"$f":"IF(AND(Selection_Hide1!C274<>0, Selection_Hide1!C274<>\"Grand Total\"), Selection_Hide1!C274, \"\")","v":""},{"$f":"IF(A276<>\"\", IF(INDEX('Full set Core Client Indicator'!$A$3:$AB$351, MATCH(Selection_Hide2!$A276, 'Full set Core Client Indicator'!$A$3:$A$351, 0), MATCH(Selection_Hide2!B$5, 'Full set Core Client Indicator'!$A$3:$AB$3, 0))=\"\", \"\",  INDEX('Full set Core Client Indicator'!$A$3:$AB$351, MATCH(Selection_Hide2!$A276, 'Full set Core Client Indicator'!$A$3:$A$351, 0), MATCH(Selection_Hide2!B$5, 'Full set Core Client Indicator'!$A$3:$AB$3, 0))), \"\")","v":""},{"$f":"IF(B276<>\"\", IF(INDEX('Full set Core Client Indicator'!$A$3:$AB$351, MATCH(Selection_Hide2!$A276, 'Full set Core Client Indicator'!$A$3:$A$351, 0), MATCH(Selection_Hide2!C$5, 'Full set Core Client Indicator'!$A$3:$AB$3, 0))=\"\", \"\",  INDEX('Full set Core Client Indicator'!$A$3:$AB$351, MATCH(Selection_Hide2!$A276, 'Full set Core Client Indicator'!$A$3:$A$351, 0), MATCH(Selection_Hide2!C$5, 'Full set Core Client Indicator'!$A$3:$AB$3, 0))), \"\")","v":""},{"$f":"IF(C276<>\"\", IF(INDEX('Full set Core Client Indicator'!$A$3:$AB$351, MATCH(Selection_Hide2!$A276, 'Full set Core Client Indicator'!$A$3:$A$351, 0), MATCH(Selection_Hide2!D$5, 'Full set Core Client Indicator'!$A$3:$AB$3, 0))=\"\", \"\",  INDEX('Full set Core Client Indicator'!$A$3:$AB$351, MATCH(Selection_Hide2!$A276, 'Full set Core Client Indicator'!$A$3:$A$351, 0), MATCH(Selection_Hide2!D$5, 'Full set Core Client Indicator'!$A$3:$AB$3, 0))), \"\")","v":""},{"$f":"IF(D276<>\"\", IF(INDEX('Full set Core Client Indicator'!$A$3:$AB$351, MATCH(Selection_Hide2!$A276, 'Full set Core Client Indicator'!$A$3:$A$351, 0), MATCH(Selection_Hide2!E$5, 'Full set Core Client Indicator'!$A$3:$AB$3, 0))=\"\", \"\",  INDEX('Full set Core Client Indicator'!$A$3:$AB$351, MATCH(Selection_Hide2!$A276, 'Full set Core Client Indicator'!$A$3:$A$351, 0), MATCH(Selection_Hide2!E$5, 'Full set Core Client Indicator'!$A$3:$AB$3, 0))), \"\")","v":""},{"$f":"IF(E276<>\"\", IF(INDEX('Full set Core Client Indicator'!$A$3:$AB$351, MATCH(Selection_Hide2!$A276, 'Full set Core Client Indicator'!$A$3:$A$351, 0), MATCH(Selection_Hide2!F$5, 'Full set Core Client Indicator'!$A$3:$AB$3, 0))=\"\", \"\",  INDEX('Full set Core Client Indicator'!$A$3:$AB$351, MATCH(Selection_Hide2!$A276, 'Full set Core Client Indicator'!$A$3:$A$351, 0), MATCH(Selection_Hide2!F$5, 'Full set Core Client Indicator'!$A$3:$AB$3, 0))), \"\")","v":""},{"$f":"IF(F276<>\"\", IF(INDEX('Full set Core Client Indicator'!$A$3:$AB$351, MATCH(Selection_Hide2!$A276, 'Full set Core Client Indicator'!$A$3:$A$351, 0), MATCH(Selection_Hide2!G$5, 'Full set Core Client Indicator'!$A$3:$AB$3, 0))=\"\", \"\",  INDEX('Full set Core Client Indicator'!$A$3:$AB$351, MATCH(Selection_Hide2!$A276, 'Full set Core Client Indicator'!$A$3:$A$351, 0), MATCH(Selection_Hide2!G$5, 'Full set Core Client Indicator'!$A$3:$AB$3, 0))), \"\")","v":""},{"$f":"IF(G276<>\"\", IF(INDEX('Full set Core Client Indicator'!$A$3:$AB$351, MATCH(Selection_Hide2!$A276, 'Full set Core Client Indicator'!$A$3:$A$351, 0), MATCH(Selection_Hide2!H$5, 'Full set Core Client Indicator'!$A$3:$AB$3, 0))=\"\", \"\",  INDEX('Full set Core Client Indicator'!$A$3:$AB$351, MATCH(Selection_Hide2!$A276, 'Full set Core Client Indicator'!$A$3:$A$351, 0), MATCH(Selection_Hide2!H$5, 'Full set Core Client Indicator'!$A$3:$AB$3, 0))), \"\")","v":""},{"$f":"IF(H276<>\"\", IF(INDEX('Full set Core Client Indicator'!$A$3:$AB$351, MATCH(Selection_Hide2!$A276, 'Full set Core Client Indicator'!$A$3:$A$351, 0), MATCH(Selection_Hide2!I$5, 'Full set Core Client Indicator'!$A$3:$AB$3, 0))=\"\", \"\",  INDEX('Full set Core Client Indicator'!$A$3:$AB$351, MATCH(Selection_Hide2!$A276, 'Full set Core Client Indicator'!$A$3:$A$351, 0), MATCH(Selection_Hide2!I$5, 'Full set Core Client Indicator'!$A$3:$AB$3, 0))), \"\")","v":""},{"$f":"IF(I276<>\"\", IF(INDEX('Full set Core Client Indicator'!$A$3:$AB$351, MATCH(Selection_Hide2!$A276, 'Full set Core Client Indicator'!$A$3:$A$351, 0), MATCH(Selection_Hide2!J$5, 'Full set Core Client Indicator'!$A$3:$AB$3, 0))=\"\", \"\",  INDEX('Full set Core Client Indicator'!$A$3:$AB$351, MATCH(Selection_Hide2!$A276, 'Full set Core Client Indicator'!$A$3:$A$351, 0), MATCH(Selection_Hide2!J$5, 'Full set Core Client Indicator'!$A$3:$AB$3, 0))), \"\")","v":""},{"$f":"IF(J276<>\"\", IF(INDEX('Full set Core Client Indicator'!$A$3:$AB$351, MATCH(Selection_Hide2!$A276, 'Full set Core Client Indicator'!$A$3:$A$351, 0), MATCH(Selection_Hide2!K$5, 'Full set Core Client Indicator'!$A$3:$AB$3, 0))=\"\", \"\",  INDEX('Full set Core Client Indicator'!$A$3:$AB$351, MATCH(Selection_Hide2!$A276, 'Full set Core Client Indicator'!$A$3:$A$351, 0), MATCH(Selection_Hide2!K$5, 'Full set Core Client Indicator'!$A$3:$AB$3, 0))), \"\")","v":""},{"$f":"IF(K276<>\"\", IF(INDEX('Full set Core Client Indicator'!$A$3:$AB$351, MATCH(Selection_Hide2!$A276, 'Full set Core Client Indicator'!$A$3:$A$351, 0), MATCH(Selection_Hide2!L$5, 'Full set Core Client Indicator'!$A$3:$AB$3, 0))=\"\", \"\",  INDEX('Full set Core Client Indicator'!$A$3:$AB$351, MATCH(Selection_Hide2!$A276, 'Full set Core Client Indicator'!$A$3:$A$351, 0), MATCH(Selection_Hide2!L$5, 'Full set Core Client Indicator'!$A$3:$AB$3, 0))), \"\")","v":""},{"$f":"IF(L276<>\"\", IF(INDEX('Full set Core Client Indicator'!$A$3:$AB$351, MATCH(Selection_Hide2!$A276, 'Full set Core Client Indicator'!$A$3:$A$351, 0), MATCH(Selection_Hide2!M$5, 'Full set Core Client Indicator'!$A$3:$AB$3, 0))=\"\", \"\",  INDEX('Full set Core Client Indicator'!$A$3:$AB$351, MATCH(Selection_Hide2!$A276, 'Full set Core Client Indicator'!$A$3:$A$351, 0), MATCH(Selection_Hide2!M$5, 'Full set Core Client Indicator'!$A$3:$AB$3, 0))), \"\")","v":""},{"$f":"IF(M276<>\"\", IF(INDEX('Full set Core Client Indicator'!$A$3:$AB$351, MATCH(Selection_Hide2!$A276, 'Full set Core Client Indicator'!$A$3:$A$351, 0), MATCH(Selection_Hide2!N$5, 'Full set Core Client Indicator'!$A$3:$AB$3, 0))=\"\", \"\",  INDEX('Full set Core Client Indicator'!$A$3:$AB$351, MATCH(Selection_Hide2!$A276, 'Full set Core Client Indicator'!$A$3:$A$351, 0), MATCH(Selection_Hide2!N$5, 'Full set Core Client Indicator'!$A$3:$AB$3, 0))), \"\")","v":""},{"$f":"IF(N276<>\"\", IF(INDEX('Full set Core Client Indicator'!$A$3:$AB$351, MATCH(Selection_Hide2!$A276, 'Full set Core Client Indicator'!$A$3:$A$351, 0), MATCH(Selection_Hide2!O$5, 'Full set Core Client Indicator'!$A$3:$AB$3, 0))=\"\", \"\",  INDEX('Full set Core Client Indicator'!$A$3:$AB$351, MATCH(Selection_Hide2!$A276, 'Full set Core Client Indicator'!$A$3:$A$351, 0), MATCH(Selection_Hide2!O$5, 'Full set Core Client Indicator'!$A$3:$AB$3, 0))), \"\")","v":""},{"$f":"IF(O276<>\"\", IF(INDEX('Full set Core Client Indicator'!$A$3:$AB$351, MATCH(Selection_Hide2!$A276, 'Full set Core Client Indicator'!$A$3:$A$351, 0), MATCH(Selection_Hide2!P$5, 'Full set Core Client Indicator'!$A$3:$AB$3, 0))=\"\", \"\",  INDEX('Full set Core Client Indicator'!$A$3:$AB$351, MATCH(Selection_Hide2!$A276, 'Full set Core Client Indicator'!$A$3:$A$351, 0), MATCH(Selection_Hide2!P$5, 'Full set Core Client Indicator'!$A$3:$AB$3, 0))), \"\")","v":""},{"$f":"IF(P276<>\"\", IF(INDEX('Full set Core Client Indicator'!$A$3:$AB$351, MATCH(Selection_Hide2!$A276, 'Full set Core Client Indicator'!$A$3:$A$351, 0), MATCH(Selection_Hide2!Q$5, 'Full set Core Client Indicator'!$A$3:$AB$3, 0))=\"\", \"\",  INDEX('Full set Core Client Indicator'!$A$3:$AB$351, MATCH(Selection_Hide2!$A276, 'Full set Core Client Indicator'!$A$3:$A$351, 0), MATCH(Selection_Hide2!Q$5, 'Full set Core Client Indicator'!$A$3:$AB$3, 0))), \"\")","v":""},{"$f":"IF(Q276<>\"\", IF(INDEX('Full set Core Client Indicator'!$A$3:$AB$351, MATCH(Selection_Hide2!$A276, 'Full set Core Client Indicator'!$A$3:$A$351, 0), MATCH(Selection_Hide2!R$5, 'Full set Core Client Indicator'!$A$3:$AB$3, 0))=\"\", \"\",  INDEX('Full set Core Client Indicator'!$A$3:$AB$351, MATCH(Selection_Hide2!$A276, 'Full set Core Client Indicator'!$A$3:$A$351, 0), MATCH(Selection_Hide2!R$5, 'Full set Core Client Indicator'!$A$3:$AB$3, 0))), \"\")","v":""},{"$f":"IF(R276<>\"\", IF(INDEX('Full set Core Client Indicator'!$A$3:$AB$351, MATCH(Selection_Hide2!$A276, 'Full set Core Client Indicator'!$A$3:$A$351, 0), MATCH(Selection_Hide2!S$5, 'Full set Core Client Indicator'!$A$3:$AB$3, 0))=\"\", \"\",  INDEX('Full set Core Client Indicator'!$A$3:$AB$351, MATCH(Selection_Hide2!$A276, 'Full set Core Client Indicator'!$A$3:$A$351, 0), MATCH(Selection_Hide2!S$5, 'Full set Core Client Indicator'!$A$3:$AB$3, 0))), \"\")","v":""},{"$f":"IF(S276<>\"\", IF(INDEX('Full set Core Client Indicator'!$A$3:$AB$351, MATCH(Selection_Hide2!$A276, 'Full set Core Client Indicator'!$A$3:$A$351, 0), MATCH(Selection_Hide2!T$5, 'Full set Core Client Indicator'!$A$3:$AB$3, 0))=\"\", \"\",  INDEX('Full set Core Client Indicator'!$A$3:$AB$351, MATCH(Selection_Hide2!$A276, 'Full set Core Client Indicator'!$A$3:$A$351, 0), MATCH(Selection_Hide2!T$5, 'Full set Core Client Indicator'!$A$3:$AB$3, 0))), \"\")","v":""},{"$f":"IF(T276<>\"\", IF(INDEX('Full set Core Client Indicator'!$A$3:$AB$351, MATCH(Selection_Hide2!$A276, 'Full set Core Client Indicator'!$A$3:$A$351, 0), MATCH(Selection_Hide2!U$5, 'Full set Core Client Indicator'!$A$3:$AB$3, 0))=\"\", \"\",  INDEX('Full set Core Client Indicator'!$A$3:$AB$351, MATCH(Selection_Hide2!$A276, 'Full set Core Client Indicator'!$A$3:$A$351, 0), MATCH(Selection_Hide2!U$5, 'Full set Core Client Indicator'!$A$3:$AB$3, 0))), \"\")","v":""},{"$f":"IF(U276<>\"\", IF(INDEX('Full set Core Client Indicator'!$A$3:$AB$351, MATCH(Selection_Hide2!$A276, 'Full set Core Client Indicator'!$A$3:$A$351, 0), MATCH(Selection_Hide2!V$5, 'Full set Core Client Indicator'!$A$3:$AB$3, 0))=\"\", \"\",  INDEX('Full set Core Client Indicator'!$A$3:$AB$351, MATCH(Selection_Hide2!$A276, 'Full set Core Client Indicator'!$A$3:$A$351, 0), MATCH(Selection_Hide2!V$5, 'Full set Core Client Indicator'!$A$3:$AB$3, 0))), \"\")","v":""},{"$f":"IF(V276<>\"\", IF(INDEX('Full set Core Client Indicator'!$A$3:$AB$351, MATCH(Selection_Hide2!$A276, 'Full set Core Client Indicator'!$A$3:$A$351, 0), MATCH(Selection_Hide2!W$5, 'Full set Core Client Indicator'!$A$3:$AB$3, 0))=\"\", \"\",  INDEX('Full set Core Client Indicator'!$A$3:$AB$351, MATCH(Selection_Hide2!$A276, 'Full set Core Client Indicator'!$A$3:$A$351, 0), MATCH(Selection_Hide2!W$5, 'Full set Core Client Indicator'!$A$3:$AB$3, 0))), \"\")","v":""},{"$f":"IF(W276<>\"\", IF(INDEX('Full set Core Client Indicator'!$A$3:$AB$351, MATCH(Selection_Hide2!$A276, 'Full set Core Client Indicator'!$A$3:$A$351, 0), MATCH(Selection_Hide2!X$5, 'Full set Core Client Indicator'!$A$3:$AB$3, 0))=\"\", \"\",  INDEX('Full set Core Client Indicator'!$A$3:$AB$351, MATCH(Selection_Hide2!$A276, 'Full set Core Client Indicator'!$A$3:$A$351, 0), MATCH(Selection_Hide2!X$5, 'Full set Core Client Indicator'!$A$3:$AB$3, 0))), \"\")","v":""},{"$f":"IF(X276<>\"\", IF(INDEX('Full set Core Client Indicator'!$A$3:$AB$351, MATCH(Selection_Hide2!$A276, 'Full set Core Client Indicator'!$A$3:$A$351, 0), MATCH(Selection_Hide2!Y$5, 'Full set Core Client Indicator'!$A$3:$AB$3, 0))=\"\", \"\",  INDEX('Full set Core Client Indicator'!$A$3:$AB$351, MATCH(Selection_Hide2!$A276, 'Full set Core Client Indicator'!$A$3:$A$351, 0), MATCH(Selection_Hide2!Y$5, 'Full set Core Client Indicator'!$A$3:$AB$3, 0))), \"\")","v":""},{"$f":"IF(Y276<>\"\", IF(INDEX('Full set Core Client Indicator'!$A$3:$AB$351, MATCH(Selection_Hide2!$A276, 'Full set Core Client Indicator'!$A$3:$A$351, 0), MATCH(Selection_Hide2!Z$5, 'Full set Core Client Indicator'!$A$3:$AB$3, 0))=\"\", \"\",  INDEX('Full set Core Client Indicator'!$A$3:$AB$351, MATCH(Selection_Hide2!$A276, 'Full set Core Client Indicator'!$A$3:$A$351, 0), MATCH(Selection_Hide2!Z$5, 'Full set Core Client Indicator'!$A$3:$AB$3, 0))), \"\")","v":""},{"$f":"IF(Z276<>\"\", IF(INDEX('Full set Core Client Indicator'!$A$3:$AB$351, MATCH(Selection_Hide2!$A276, 'Full set Core Client Indicator'!$A$3:$A$351, 0), MATCH(Selection_Hide2!AA$5, 'Full set Core Client Indicator'!$A$3:$AB$3, 0))=\"\", \"\",  INDEX('Full set Core Client Indicator'!$A$3:$AB$351, MATCH(Selection_Hide2!$A276, 'Full set Core Client Indicator'!$A$3:$A$351, 0), MATCH(Selection_Hide2!AA$5, 'Full set Core Client Indicator'!$A$3:$AB$3, 0))), \"\")","v":""},{"$f":"IF(AA276<>\"\", IF(INDEX('Full set Core Client Indicator'!$A$3:$AB$351, MATCH(Selection_Hide2!$A276, 'Full set Core Client Indicator'!$A$3:$A$351, 0), MATCH(Selection_Hide2!AB$5, 'Full set Core Client Indicator'!$A$3:$AB$3, 0))=\"\", \"\",  INDEX('Full set Core Client Indicator'!$A$3:$AB$351, MATCH(Selection_Hide2!$A276, 'Full set Core Client Indicator'!$A$3:$A$351, 0), MATCH(Selection_Hide2!AB$5, 'Full set Core Client Indicator'!$A$3:$AB$3, 0))), \"\")","v":""}]
[{"$f":"IF(AND(Selection_Hide1!C275<>0, Selection_Hide1!C275<>\"Grand Total\"), Selection_Hide1!C275, \"\")","v":""},{"$f":"IF(A277<>\"\", IF(INDEX('Full set Core Client Indicator'!$A$3:$AB$351, MATCH(Selection_Hide2!$A277, 'Full set Core Client Indicator'!$A$3:$A$351, 0), MATCH(Selection_Hide2!B$5, 'Full set Core Client Indicator'!$A$3:$AB$3, 0))=\"\", \"\",  INDEX('Full set Core Client Indicator'!$A$3:$AB$351, MATCH(Selection_Hide2!$A277, 'Full set Core Client Indicator'!$A$3:$A$351, 0), MATCH(Selection_Hide2!B$5, 'Full set Core Client Indicator'!$A$3:$AB$3, 0))), \"\")","v":""},{"$f":"IF(B277<>\"\", IF(INDEX('Full set Core Client Indicator'!$A$3:$AB$351, MATCH(Selection_Hide2!$A277, 'Full set Core Client Indicator'!$A$3:$A$351, 0), MATCH(Selection_Hide2!C$5, 'Full set Core Client Indicator'!$A$3:$AB$3, 0))=\"\", \"\",  INDEX('Full set Core Client Indicator'!$A$3:$AB$351, MATCH(Selection_Hide2!$A277, 'Full set Core Client Indicator'!$A$3:$A$351, 0), MATCH(Selection_Hide2!C$5, 'Full set Core Client Indicator'!$A$3:$AB$3, 0))), \"\")","v":""},{"$f":"IF(C277<>\"\", IF(INDEX('Full set Core Client Indicator'!$A$3:$AB$351, MATCH(Selection_Hide2!$A277, 'Full set Core Client Indicator'!$A$3:$A$351, 0), MATCH(Selection_Hide2!D$5, 'Full set Core Client Indicator'!$A$3:$AB$3, 0))=\"\", \"\",  INDEX('Full set Core Client Indicator'!$A$3:$AB$351, MATCH(Selection_Hide2!$A277, 'Full set Core Client Indicator'!$A$3:$A$351, 0), MATCH(Selection_Hide2!D$5, 'Full set Core Client Indicator'!$A$3:$AB$3, 0))), \"\")","v":""},{"$f":"IF(D277<>\"\", IF(INDEX('Full set Core Client Indicator'!$A$3:$AB$351, MATCH(Selection_Hide2!$A277, 'Full set Core Client Indicator'!$A$3:$A$351, 0), MATCH(Selection_Hide2!E$5, 'Full set Core Client Indicator'!$A$3:$AB$3, 0))=\"\", \"\",  INDEX('Full set Core Client Indicator'!$A$3:$AB$351, MATCH(Selection_Hide2!$A277, 'Full set Core Client Indicator'!$A$3:$A$351, 0), MATCH(Selection_Hide2!E$5, 'Full set Core Client Indicator'!$A$3:$AB$3, 0))), \"\")","v":""},{"$f":"IF(E277<>\"\", IF(INDEX('Full set Core Client Indicator'!$A$3:$AB$351, MATCH(Selection_Hide2!$A277, 'Full set Core Client Indicator'!$A$3:$A$351, 0), MATCH(Selection_Hide2!F$5, 'Full set Core Client Indicator'!$A$3:$AB$3, 0))=\"\", \"\",  INDEX('Full set Core Client Indicator'!$A$3:$AB$351, MATCH(Selection_Hide2!$A277, 'Full set Core Client Indicator'!$A$3:$A$351, 0), MATCH(Selection_Hide2!F$5, 'Full set Core Client Indicator'!$A$3:$AB$3, 0))), \"\")","v":""},{"$f":"IF(F277<>\"\", IF(INDEX('Full set Core Client Indicator'!$A$3:$AB$351, MATCH(Selection_Hide2!$A277, 'Full set Core Client Indicator'!$A$3:$A$351, 0), MATCH(Selection_Hide2!G$5, 'Full set Core Client Indicator'!$A$3:$AB$3, 0))=\"\", \"\",  INDEX('Full set Core Client Indicator'!$A$3:$AB$351, MATCH(Selection_Hide2!$A277, 'Full set Core Client Indicator'!$A$3:$A$351, 0), MATCH(Selection_Hide2!G$5, 'Full set Core Client Indicator'!$A$3:$AB$3, 0))), \"\")","v":""},{"$f":"IF(G277<>\"\", IF(INDEX('Full set Core Client Indicator'!$A$3:$AB$351, MATCH(Selection_Hide2!$A277, 'Full set Core Client Indicator'!$A$3:$A$351, 0), MATCH(Selection_Hide2!H$5, 'Full set Core Client Indicator'!$A$3:$AB$3, 0))=\"\", \"\",  INDEX('Full set Core Client Indicator'!$A$3:$AB$351, MATCH(Selection_Hide2!$A277, 'Full set Core Client Indicator'!$A$3:$A$351, 0), MATCH(Selection_Hide2!H$5, 'Full set Core Client Indicator'!$A$3:$AB$3, 0))), \"\")","v":""},{"$f":"IF(H277<>\"\", IF(INDEX('Full set Core Client Indicator'!$A$3:$AB$351, MATCH(Selection_Hide2!$A277, 'Full set Core Client Indicator'!$A$3:$A$351, 0), MATCH(Selection_Hide2!I$5, 'Full set Core Client Indicator'!$A$3:$AB$3, 0))=\"\", \"\",  INDEX('Full set Core Client Indicator'!$A$3:$AB$351, MATCH(Selection_Hide2!$A277, 'Full set Core Client Indicator'!$A$3:$A$351, 0), MATCH(Selection_Hide2!I$5, 'Full set Core Client Indicator'!$A$3:$AB$3, 0))), \"\")","v":""},{"$f":"IF(I277<>\"\", IF(INDEX('Full set Core Client Indicator'!$A$3:$AB$351, MATCH(Selection_Hide2!$A277, 'Full set Core Client Indicator'!$A$3:$A$351, 0), MATCH(Selection_Hide2!J$5, 'Full set Core Client Indicator'!$A$3:$AB$3, 0))=\"\", \"\",  INDEX('Full set Core Client Indicator'!$A$3:$AB$351, MATCH(Selection_Hide2!$A277, 'Full set Core Client Indicator'!$A$3:$A$351, 0), MATCH(Selection_Hide2!J$5, 'Full set Core Client Indicator'!$A$3:$AB$3, 0))), \"\")","v":""},{"$f":"IF(J277<>\"\", IF(INDEX('Full set Core Client Indicator'!$A$3:$AB$351, MATCH(Selection_Hide2!$A277, 'Full set Core Client Indicator'!$A$3:$A$351, 0), MATCH(Selection_Hide2!K$5, 'Full set Core Client Indicator'!$A$3:$AB$3, 0))=\"\", \"\",  INDEX('Full set Core Client Indicator'!$A$3:$AB$351, MATCH(Selection_Hide2!$A277, 'Full set Core Client Indicator'!$A$3:$A$351, 0), MATCH(Selection_Hide2!K$5, 'Full set Core Client Indicator'!$A$3:$AB$3, 0))), \"\")","v":""},{"$f":"IF(K277<>\"\", IF(INDEX('Full set Core Client Indicator'!$A$3:$AB$351, MATCH(Selection_Hide2!$A277, 'Full set Core Client Indicator'!$A$3:$A$351, 0), MATCH(Selection_Hide2!L$5, 'Full set Core Client Indicator'!$A$3:$AB$3, 0))=\"\", \"\",  INDEX('Full set Core Client Indicator'!$A$3:$AB$351, MATCH(Selection_Hide2!$A277, 'Full set Core Client Indicator'!$A$3:$A$351, 0), MATCH(Selection_Hide2!L$5, 'Full set Core Client Indicator'!$A$3:$AB$3, 0))), \"\")","v":""},{"$f":"IF(L277<>\"\", IF(INDEX('Full set Core Client Indicator'!$A$3:$AB$351, MATCH(Selection_Hide2!$A277, 'Full set Core Client Indicator'!$A$3:$A$351, 0), MATCH(Selection_Hide2!M$5, 'Full set Core Client Indicator'!$A$3:$AB$3, 0))=\"\", \"\",  INDEX('Full set Core Client Indicator'!$A$3:$AB$351, MATCH(Selection_Hide2!$A277, 'Full set Core Client Indicator'!$A$3:$A$351, 0), MATCH(Selection_Hide2!M$5, 'Full set Core Client Indicator'!$A$3:$AB$3, 0))), \"\")","v":""},{"$f":"IF(M277<>\"\", IF(INDEX('Full set Core Client Indicator'!$A$3:$AB$351, MATCH(Selection_Hide2!$A277, 'Full set Core Client Indicator'!$A$3:$A$351, 0), MATCH(Selection_Hide2!N$5, 'Full set Core Client Indicator'!$A$3:$AB$3, 0))=\"\", \"\",  INDEX('Full set Core Client Indicator'!$A$3:$AB$351, MATCH(Selection_Hide2!$A277, 'Full set Core Client Indicator'!$A$3:$A$351, 0), MATCH(Selection_Hide2!N$5, 'Full set Core Client Indicator'!$A$3:$AB$3, 0))), \"\")","v":""},{"$f":"IF(N277<>\"\", IF(INDEX('Full set Core Client Indicator'!$A$3:$AB$351, MATCH(Selection_Hide2!$A277, 'Full set Core Client Indicator'!$A$3:$A$351, 0), MATCH(Selection_Hide2!O$5, 'Full set Core Client Indicator'!$A$3:$AB$3, 0))=\"\", \"\",  INDEX('Full set Core Client Indicator'!$A$3:$AB$351, MATCH(Selection_Hide2!$A277, 'Full set Core Client Indicator'!$A$3:$A$351, 0), MATCH(Selection_Hide2!O$5, 'Full set Core Client Indicator'!$A$3:$AB$3, 0))), \"\")","v":""},{"$f":"IF(O277<>\"\", IF(INDEX('Full set Core Client Indicator'!$A$3:$AB$351, MATCH(Selection_Hide2!$A277, 'Full set Core Client Indicator'!$A$3:$A$351, 0), MATCH(Selection_Hide2!P$5, 'Full set Core Client Indicator'!$A$3:$AB$3, 0))=\"\", \"\",  INDEX('Full set Core Client Indicator'!$A$3:$AB$351, MATCH(Selection_Hide2!$A277, 'Full set Core Client Indicator'!$A$3:$A$351, 0), MATCH(Selection_Hide2!P$5, 'Full set Core Client Indicator'!$A$3:$AB$3, 0))), \"\")","v":""},{"$f":"IF(P277<>\"\", IF(INDEX('Full set Core Client Indicator'!$A$3:$AB$351, MATCH(Selection_Hide2!$A277, 'Full set Core Client Indicator'!$A$3:$A$351, 0), MATCH(Selection_Hide2!Q$5, 'Full set Core Client Indicator'!$A$3:$AB$3, 0))=\"\", \"\",  INDEX('Full set Core Client Indicator'!$A$3:$AB$351, MATCH(Selection_Hide2!$A277, 'Full set Core Client Indicator'!$A$3:$A$351, 0), MATCH(Selection_Hide2!Q$5, 'Full set Core Client Indicator'!$A$3:$AB$3, 0))), \"\")","v":""},{"$f":"IF(Q277<>\"\", IF(INDEX('Full set Core Client Indicator'!$A$3:$AB$351, MATCH(Selection_Hide2!$A277, 'Full set Core Client Indicator'!$A$3:$A$351, 0), MATCH(Selection_Hide2!R$5, 'Full set Core Client Indicator'!$A$3:$AB$3, 0))=\"\", \"\",  INDEX('Full set Core Client Indicator'!$A$3:$AB$351, MATCH(Selection_Hide2!$A277, 'Full set Core Client Indicator'!$A$3:$A$351, 0), MATCH(Selection_Hide2!R$5, 'Full set Core Client Indicator'!$A$3:$AB$3, 0))), \"\")","v":""},{"$f":"IF(R277<>\"\", IF(INDEX('Full set Core Client Indicator'!$A$3:$AB$351, MATCH(Selection_Hide2!$A277, 'Full set Core Client Indicator'!$A$3:$A$351, 0), MATCH(Selection_Hide2!S$5, 'Full set Core Client Indicator'!$A$3:$AB$3, 0))=\"\", \"\",  INDEX('Full set Core Client Indicator'!$A$3:$AB$351, MATCH(Selection_Hide2!$A277, 'Full set Core Client Indicator'!$A$3:$A$351, 0), MATCH(Selection_Hide2!S$5, 'Full set Core Client Indicator'!$A$3:$AB$3, 0))), \"\")","v":""},{"$f":"IF(S277<>\"\", IF(INDEX('Full set Core Client Indicator'!$A$3:$AB$351, MATCH(Selection_Hide2!$A277, 'Full set Core Client Indicator'!$A$3:$A$351, 0), MATCH(Selection_Hide2!T$5, 'Full set Core Client Indicator'!$A$3:$AB$3, 0))=\"\", \"\",  INDEX('Full set Core Client Indicator'!$A$3:$AB$351, MATCH(Selection_Hide2!$A277, 'Full set Core Client Indicator'!$A$3:$A$351, 0), MATCH(Selection_Hide2!T$5, 'Full set Core Client Indicator'!$A$3:$AB$3, 0))), \"\")","v":""},{"$f":"IF(T277<>\"\", IF(INDEX('Full set Core Client Indicator'!$A$3:$AB$351, MATCH(Selection_Hide2!$A277, 'Full set Core Client Indicator'!$A$3:$A$351, 0), MATCH(Selection_Hide2!U$5, 'Full set Core Client Indicator'!$A$3:$AB$3, 0))=\"\", \"\",  INDEX('Full set Core Client Indicator'!$A$3:$AB$351, MATCH(Selection_Hide2!$A277, 'Full set Core Client Indicator'!$A$3:$A$351, 0), MATCH(Selection_Hide2!U$5, 'Full set Core Client Indicator'!$A$3:$AB$3, 0))), \"\")","v":""},{"$f":"IF(U277<>\"\", IF(INDEX('Full set Core Client Indicator'!$A$3:$AB$351, MATCH(Selection_Hide2!$A277, 'Full set Core Client Indicator'!$A$3:$A$351, 0), MATCH(Selection_Hide2!V$5, 'Full set Core Client Indicator'!$A$3:$AB$3, 0))=\"\", \"\",  INDEX('Full set Core Client Indicator'!$A$3:$AB$351, MATCH(Selection_Hide2!$A277, 'Full set Core Client Indicator'!$A$3:$A$351, 0), MATCH(Selection_Hide2!V$5, 'Full set Core Client Indicator'!$A$3:$AB$3, 0))), \"\")","v":""},{"$f":"IF(V277<>\"\", IF(INDEX('Full set Core Client Indicator'!$A$3:$AB$351, MATCH(Selection_Hide2!$A277, 'Full set Core Client Indicator'!$A$3:$A$351, 0), MATCH(Selection_Hide2!W$5, 'Full set Core Client Indicator'!$A$3:$AB$3, 0))=\"\", \"\",  INDEX('Full set Core Client Indicator'!$A$3:$AB$351, MATCH(Selection_Hide2!$A277, 'Full set Core Client Indicator'!$A$3:$A$351, 0), MATCH(Selection_Hide2!W$5, 'Full set Core Client Indicator'!$A$3:$AB$3, 0))), \"\")","v":""},{"$f":"IF(W277<>\"\", IF(INDEX('Full set Core Client Indicator'!$A$3:$AB$351, MATCH(Selection_Hide2!$A277, 'Full set Core Client Indicator'!$A$3:$A$351, 0), MATCH(Selection_Hide2!X$5, 'Full set Core Client Indicator'!$A$3:$AB$3, 0))=\"\", \"\",  INDEX('Full set Core Client Indicator'!$A$3:$AB$351, MATCH(Selection_Hide2!$A277, 'Full set Core Client Indicator'!$A$3:$A$351, 0), MATCH(Selection_Hide2!X$5, 'Full set Core Client Indicator'!$A$3:$AB$3, 0))), \"\")","v":""},{"$f":"IF(X277<>\"\", IF(INDEX('Full set Core Client Indicator'!$A$3:$AB$351, MATCH(Selection_Hide2!$A277, 'Full set Core Client Indicator'!$A$3:$A$351, 0), MATCH(Selection_Hide2!Y$5, 'Full set Core Client Indicator'!$A$3:$AB$3, 0))=\"\", \"\",  INDEX('Full set Core Client Indicator'!$A$3:$AB$351, MATCH(Selection_Hide2!$A277, 'Full set Core Client Indicator'!$A$3:$A$351, 0), MATCH(Selection_Hide2!Y$5, 'Full set Core Client Indicator'!$A$3:$AB$3, 0))), \"\")","v":""},{"$f":"IF(Y277<>\"\", IF(INDEX('Full set Core Client Indicator'!$A$3:$AB$351, MATCH(Selection_Hide2!$A277, 'Full set Core Client Indicator'!$A$3:$A$351, 0), MATCH(Selection_Hide2!Z$5, 'Full set Core Client Indicator'!$A$3:$AB$3, 0))=\"\", \"\",  INDEX('Full set Core Client Indicator'!$A$3:$AB$351, MATCH(Selection_Hide2!$A277, 'Full set Core Client Indicator'!$A$3:$A$351, 0), MATCH(Selection_Hide2!Z$5, 'Full set Core Client Indicator'!$A$3:$AB$3, 0))), \"\")","v":""},{"$f":"IF(Z277<>\"\", IF(INDEX('Full set Core Client Indicator'!$A$3:$AB$351, MATCH(Selection_Hide2!$A277, 'Full set Core Client Indicator'!$A$3:$A$351, 0), MATCH(Selection_Hide2!AA$5, 'Full set Core Client Indicator'!$A$3:$AB$3, 0))=\"\", \"\",  INDEX('Full set Core Client Indicator'!$A$3:$AB$351, MATCH(Selection_Hide2!$A277, 'Full set Core Client Indicator'!$A$3:$A$351, 0), MATCH(Selection_Hide2!AA$5, 'Full set Core Client Indicator'!$A$3:$AB$3, 0))), \"\")","v":""},{"$f":"IF(AA277<>\"\", IF(INDEX('Full set Core Client Indicator'!$A$3:$AB$351, MATCH(Selection_Hide2!$A277, 'Full set Core Client Indicator'!$A$3:$A$351, 0), MATCH(Selection_Hide2!AB$5, 'Full set Core Client Indicator'!$A$3:$AB$3, 0))=\"\", \"\",  INDEX('Full set Core Client Indicator'!$A$3:$AB$351, MATCH(Selection_Hide2!$A277, 'Full set Core Client Indicator'!$A$3:$A$351, 0), MATCH(Selection_Hide2!AB$5, 'Full set Core Client Indicator'!$A$3:$AB$3, 0))), \"\")","v":""}]
[{"$f":"IF(AND(Selection_Hide1!C276<>0, Selection_Hide1!C276<>\"Grand Total\"), Selection_Hide1!C276, \"\")","v":""},{"$f":"IF(A278<>\"\", IF(INDEX('Full set Core Client Indicator'!$A$3:$AB$351, MATCH(Selection_Hide2!$A278, 'Full set Core Client Indicator'!$A$3:$A$351, 0), MATCH(Selection_Hide2!B$5, 'Full set Core Client Indicator'!$A$3:$AB$3, 0))=\"\", \"\",  INDEX('Full set Core Client Indicator'!$A$3:$AB$351, MATCH(Selection_Hide2!$A278, 'Full set Core Client Indicator'!$A$3:$A$351, 0), MATCH(Selection_Hide2!B$5, 'Full set Core Client Indicator'!$A$3:$AB$3, 0))), \"\")","v":""},{"$f":"IF(B278<>\"\", IF(INDEX('Full set Core Client Indicator'!$A$3:$AB$351, MATCH(Selection_Hide2!$A278, 'Full set Core Client Indicator'!$A$3:$A$351, 0), MATCH(Selection_Hide2!C$5, 'Full set Core Client Indicator'!$A$3:$AB$3, 0))=\"\", \"\",  INDEX('Full set Core Client Indicator'!$A$3:$AB$351, MATCH(Selection_Hide2!$A278, 'Full set Core Client Indicator'!$A$3:$A$351, 0), MATCH(Selection_Hide2!C$5, 'Full set Core Client Indicator'!$A$3:$AB$3, 0))), \"\")","v":""},{"$f":"IF(C278<>\"\", IF(INDEX('Full set Core Client Indicator'!$A$3:$AB$351, MATCH(Selection_Hide2!$A278, 'Full set Core Client Indicator'!$A$3:$A$351, 0), MATCH(Selection_Hide2!D$5, 'Full set Core Client Indicator'!$A$3:$AB$3, 0))=\"\", \"\",  INDEX('Full set Core Client Indicator'!$A$3:$AB$351, MATCH(Selection_Hide2!$A278, 'Full set Core Client Indicator'!$A$3:$A$351, 0), MATCH(Selection_Hide2!D$5, 'Full set Core Client Indicator'!$A$3:$AB$3, 0))), \"\")","v":""},{"$f":"IF(D278<>\"\", IF(INDEX('Full set Core Client Indicator'!$A$3:$AB$351, MATCH(Selection_Hide2!$A278, 'Full set Core Client Indicator'!$A$3:$A$351, 0), MATCH(Selection_Hide2!E$5, 'Full set Core Client Indicator'!$A$3:$AB$3, 0))=\"\", \"\",  INDEX('Full set Core Client Indicator'!$A$3:$AB$351, MATCH(Selection_Hide2!$A278, 'Full set Core Client Indicator'!$A$3:$A$351, 0), MATCH(Selection_Hide2!E$5, 'Full set Core Client Indicator'!$A$3:$AB$3, 0))), \"\")","v":""},{"$f":"IF(E278<>\"\", IF(INDEX('Full set Core Client Indicator'!$A$3:$AB$351, MATCH(Selection_Hide2!$A278, 'Full set Core Client Indicator'!$A$3:$A$351, 0), MATCH(Selection_Hide2!F$5, 'Full set Core Client Indicator'!$A$3:$AB$3, 0))=\"\", \"\",  INDEX('Full set Core Client Indicator'!$A$3:$AB$351, MATCH(Selection_Hide2!$A278, 'Full set Core Client Indicator'!$A$3:$A$351, 0), MATCH(Selection_Hide2!F$5, 'Full set Core Client Indicator'!$A$3:$AB$3, 0))), \"\")","v":""},{"$f":"IF(F278<>\"\", IF(INDEX('Full set Core Client Indicator'!$A$3:$AB$351, MATCH(Selection_Hide2!$A278, 'Full set Core Client Indicator'!$A$3:$A$351, 0), MATCH(Selection_Hide2!G$5, 'Full set Core Client Indicator'!$A$3:$AB$3, 0))=\"\", \"\",  INDEX('Full set Core Client Indicator'!$A$3:$AB$351, MATCH(Selection_Hide2!$A278, 'Full set Core Client Indicator'!$A$3:$A$351, 0), MATCH(Selection_Hide2!G$5, 'Full set Core Client Indicator'!$A$3:$AB$3, 0))), \"\")","v":""},{"$f":"IF(G278<>\"\", IF(INDEX('Full set Core Client Indicator'!$A$3:$AB$351, MATCH(Selection_Hide2!$A278, 'Full set Core Client Indicator'!$A$3:$A$351, 0), MATCH(Selection_Hide2!H$5, 'Full set Core Client Indicator'!$A$3:$AB$3, 0))=\"\", \"\",  INDEX('Full set Core Client Indicator'!$A$3:$AB$351, MATCH(Selection_Hide2!$A278, 'Full set Core Client Indicator'!$A$3:$A$351, 0), MATCH(Selection_Hide2!H$5, 'Full set Core Client Indicator'!$A$3:$AB$3, 0))), \"\")","v":""},{"$f":"IF(H278<>\"\", IF(INDEX('Full set Core Client Indicator'!$A$3:$AB$351, MATCH(Selection_Hide2!$A278, 'Full set Core Client Indicator'!$A$3:$A$351, 0), MATCH(Selection_Hide2!I$5, 'Full set Core Client Indicator'!$A$3:$AB$3, 0))=\"\", \"\",  INDEX('Full set Core Client Indicator'!$A$3:$AB$351, MATCH(Selection_Hide2!$A278, 'Full set Core Client Indicator'!$A$3:$A$351, 0), MATCH(Selection_Hide2!I$5, 'Full set Core Client Indicator'!$A$3:$AB$3, 0))), \"\")","v":""},{"$f":"IF(I278<>\"\", IF(INDEX('Full set Core Client Indicator'!$A$3:$AB$351, MATCH(Selection_Hide2!$A278, 'Full set Core Client Indicator'!$A$3:$A$351, 0), MATCH(Selection_Hide2!J$5, 'Full set Core Client Indicator'!$A$3:$AB$3, 0))=\"\", \"\",  INDEX('Full set Core Client Indicator'!$A$3:$AB$351, MATCH(Selection_Hide2!$A278, 'Full set Core Client Indicator'!$A$3:$A$351, 0), MATCH(Selection_Hide2!J$5, 'Full set Core Client Indicator'!$A$3:$AB$3, 0))), \"\")","v":""},{"$f":"IF(J278<>\"\", IF(INDEX('Full set Core Client Indicator'!$A$3:$AB$351, MATCH(Selection_Hide2!$A278, 'Full set Core Client Indicator'!$A$3:$A$351, 0), MATCH(Selection_Hide2!K$5, 'Full set Core Client Indicator'!$A$3:$AB$3, 0))=\"\", \"\",  INDEX('Full set Core Client Indicator'!$A$3:$AB$351, MATCH(Selection_Hide2!$A278, 'Full set Core Client Indicator'!$A$3:$A$351, 0), MATCH(Selection_Hide2!K$5, 'Full set Core Client Indicator'!$A$3:$AB$3, 0))), \"\")","v":""},{"$f":"IF(K278<>\"\", IF(INDEX('Full set Core Client Indicator'!$A$3:$AB$351, MATCH(Selection_Hide2!$A278, 'Full set Core Client Indicator'!$A$3:$A$351, 0), MATCH(Selection_Hide2!L$5, 'Full set Core Client Indicator'!$A$3:$AB$3, 0))=\"\", \"\",  INDEX('Full set Core Client Indicator'!$A$3:$AB$351, MATCH(Selection_Hide2!$A278, 'Full set Core Client Indicator'!$A$3:$A$351, 0), MATCH(Selection_Hide2!L$5, 'Full set Core Client Indicator'!$A$3:$AB$3, 0))), \"\")","v":""},{"$f":"IF(L278<>\"\", IF(INDEX('Full set Core Client Indicator'!$A$3:$AB$351, MATCH(Selection_Hide2!$A278, 'Full set Core Client Indicator'!$A$3:$A$351, 0), MATCH(Selection_Hide2!M$5, 'Full set Core Client Indicator'!$A$3:$AB$3, 0))=\"\", \"\",  INDEX('Full set Core Client Indicator'!$A$3:$AB$351, MATCH(Selection_Hide2!$A278, 'Full set Core Client Indicator'!$A$3:$A$351, 0), MATCH(Selection_Hide2!M$5, 'Full set Core Client Indicator'!$A$3:$AB$3, 0))), \"\")","v":""},{"$f":"IF(M278<>\"\", IF(INDEX('Full set Core Client Indicator'!$A$3:$AB$351, MATCH(Selection_Hide2!$A278, 'Full set Core Client Indicator'!$A$3:$A$351, 0), MATCH(Selection_Hide2!N$5, 'Full set Core Client Indicator'!$A$3:$AB$3, 0))=\"\", \"\",  INDEX('Full set Core Client Indicator'!$A$3:$AB$351, MATCH(Selection_Hide2!$A278, 'Full set Core Client Indicator'!$A$3:$A$351, 0), MATCH(Selection_Hide2!N$5, 'Full set Core Client Indicator'!$A$3:$AB$3, 0))), \"\")","v":""},{"$f":"IF(N278<>\"\", IF(INDEX('Full set Core Client Indicator'!$A$3:$AB$351, MATCH(Selection_Hide2!$A278, 'Full set Core Client Indicator'!$A$3:$A$351, 0), MATCH(Selection_Hide2!O$5, 'Full set Core Client Indicator'!$A$3:$AB$3, 0))=\"\", \"\",  INDEX('Full set Core Client Indicator'!$A$3:$AB$351, MATCH(Selection_Hide2!$A278, 'Full set Core Client Indicator'!$A$3:$A$351, 0), MATCH(Selection_Hide2!O$5, 'Full set Core Client Indicator'!$A$3:$AB$3, 0))), \"\")","v":""},{"$f":"IF(O278<>\"\", IF(INDEX('Full set Core Client Indicator'!$A$3:$AB$351, MATCH(Selection_Hide2!$A278, 'Full set Core Client Indicator'!$A$3:$A$351, 0), MATCH(Selection_Hide2!P$5, 'Full set Core Client Indicator'!$A$3:$AB$3, 0))=\"\", \"\",  INDEX('Full set Core Client Indicator'!$A$3:$AB$351, MATCH(Selection_Hide2!$A278, 'Full set Core Client Indicator'!$A$3:$A$351, 0), MATCH(Selection_Hide2!P$5, 'Full set Core Client Indicator'!$A$3:$AB$3, 0))), \"\")","v":""},{"$f":"IF(P278<>\"\", IF(INDEX('Full set Core Client Indicator'!$A$3:$AB$351, MATCH(Selection_Hide2!$A278, 'Full set Core Client Indicator'!$A$3:$A$351, 0), MATCH(Selection_Hide2!Q$5, 'Full set Core Client Indicator'!$A$3:$AB$3, 0))=\"\", \"\",  INDEX('Full set Core Client Indicator'!$A$3:$AB$351, MATCH(Selection_Hide2!$A278, 'Full set Core Client Indicator'!$A$3:$A$351, 0), MATCH(Selection_Hide2!Q$5, 'Full set Core Client Indicator'!$A$3:$AB$3, 0))), \"\")","v":""},{"$f":"IF(Q278<>\"\", IF(INDEX('Full set Core Client Indicator'!$A$3:$AB$351, MATCH(Selection_Hide2!$A278, 'Full set Core Client Indicator'!$A$3:$A$351, 0), MATCH(Selection_Hide2!R$5, 'Full set Core Client Indicator'!$A$3:$AB$3, 0))=\"\", \"\",  INDEX('Full set Core Client Indicator'!$A$3:$AB$351, MATCH(Selection_Hide2!$A278, 'Full set Core Client Indicator'!$A$3:$A$351, 0), MATCH(Selection_Hide2!R$5, 'Full set Core Client Indicator'!$A$3:$AB$3, 0))), \"\")","v":""},{"$f":"IF(R278<>\"\", IF(INDEX('Full set Core Client Indicator'!$A$3:$AB$351, MATCH(Selection_Hide2!$A278, 'Full set Core Client Indicator'!$A$3:$A$351, 0), MATCH(Selection_Hide2!S$5, 'Full set Core Client Indicator'!$A$3:$AB$3, 0))=\"\", \"\",  INDEX('Full set Core Client Indicator'!$A$3:$AB$351, MATCH(Selection_Hide2!$A278, 'Full set Core Client Indicator'!$A$3:$A$351, 0), MATCH(Selection_Hide2!S$5, 'Full set Core Client Indicator'!$A$3:$AB$3, 0))), \"\")","v":""},{"$f":"IF(S278<>\"\", IF(INDEX('Full set Core Client Indicator'!$A$3:$AB$351, MATCH(Selection_Hide2!$A278, 'Full set Core Client Indicator'!$A$3:$A$351, 0), MATCH(Selection_Hide2!T$5, 'Full set Core Client Indicator'!$A$3:$AB$3, 0))=\"\", \"\",  INDEX('Full set Core Client Indicator'!$A$3:$AB$351, MATCH(Selection_Hide2!$A278, 'Full set Core Client Indicator'!$A$3:$A$351, 0), MATCH(Selection_Hide2!T$5, 'Full set Core Client Indicator'!$A$3:$AB$3, 0))), \"\")","v":""},{"$f":"IF(T278<>\"\", IF(INDEX('Full set Core Client Indicator'!$A$3:$AB$351, MATCH(Selection_Hide2!$A278, 'Full set Core Client Indicator'!$A$3:$A$351, 0), MATCH(Selection_Hide2!U$5, 'Full set Core Client Indicator'!$A$3:$AB$3, 0))=\"\", \"\",  INDEX('Full set Core Client Indicator'!$A$3:$AB$351, MATCH(Selection_Hide2!$A278, 'Full set Core Client Indicator'!$A$3:$A$351, 0), MATCH(Selection_Hide2!U$5, 'Full set Core Client Indicator'!$A$3:$AB$3, 0))), \"\")","v":""},{"$f":"IF(U278<>\"\", IF(INDEX('Full set Core Client Indicator'!$A$3:$AB$351, MATCH(Selection_Hide2!$A278, 'Full set Core Client Indicator'!$A$3:$A$351, 0), MATCH(Selection_Hide2!V$5, 'Full set Core Client Indicator'!$A$3:$AB$3, 0))=\"\", \"\",  INDEX('Full set Core Client Indicator'!$A$3:$AB$351, MATCH(Selection_Hide2!$A278, 'Full set Core Client Indicator'!$A$3:$A$351, 0), MATCH(Selection_Hide2!V$5, 'Full set Core Client Indicator'!$A$3:$AB$3, 0))), \"\")","v":""},{"$f":"IF(V278<>\"\", IF(INDEX('Full set Core Client Indicator'!$A$3:$AB$351, MATCH(Selection_Hide2!$A278, 'Full set Core Client Indicator'!$A$3:$A$351, 0), MATCH(Selection_Hide2!W$5, 'Full set Core Client Indicator'!$A$3:$AB$3, 0))=\"\", \"\",  INDEX('Full set Core Client Indicator'!$A$3:$AB$351, MATCH(Selection_Hide2!$A278, 'Full set Core Client Indicator'!$A$3:$A$351, 0), MATCH(Selection_Hide2!W$5, 'Full set Core Client Indicator'!$A$3:$AB$3, 0))), \"\")","v":""},{"$f":"IF(W278<>\"\", IF(INDEX('Full set Core Client Indicator'!$A$3:$AB$351, MATCH(Selection_Hide2!$A278, 'Full set Core Client Indicator'!$A$3:$A$351, 0), MATCH(Selection_Hide2!X$5, 'Full set Core Client Indicator'!$A$3:$AB$3, 0))=\"\", \"\",  INDEX('Full set Core Client Indicator'!$A$3:$AB$351, MATCH(Selection_Hide2!$A278, 'Full set Core Client Indicator'!$A$3:$A$351, 0), MATCH(Selection_Hide2!X$5, 'Full set Core Client Indicator'!$A$3:$AB$3, 0))), \"\")","v":""},{"$f":"IF(X278<>\"\", IF(INDEX('Full set Core Client Indicator'!$A$3:$AB$351, MATCH(Selection_Hide2!$A278, 'Full set Core Client Indicator'!$A$3:$A$351, 0), MATCH(Selection_Hide2!Y$5, 'Full set Core Client Indicator'!$A$3:$AB$3, 0))=\"\", \"\",  INDEX('Full set Core Client Indicator'!$A$3:$AB$351, MATCH(Selection_Hide2!$A278, 'Full set Core Client Indicator'!$A$3:$A$351, 0), MATCH(Selection_Hide2!Y$5, 'Full set Core Client Indicator'!$A$3:$AB$3, 0))), \"\")","v":""},{"$f":"IF(Y278<>\"\", IF(INDEX('Full set Core Client Indicator'!$A$3:$AB$351, MATCH(Selection_Hide2!$A278, 'Full set Core Client Indicator'!$A$3:$A$351, 0), MATCH(Selection_Hide2!Z$5, 'Full set Core Client Indicator'!$A$3:$AB$3, 0))=\"\", \"\",  INDEX('Full set Core Client Indicator'!$A$3:$AB$351, MATCH(Selection_Hide2!$A278, 'Full set Core Client Indicator'!$A$3:$A$351, 0), MATCH(Selection_Hide2!Z$5, 'Full set Core Client Indicator'!$A$3:$AB$3, 0))), \"\")","v":""},{"$f":"IF(Z278<>\"\", IF(INDEX('Full set Core Client Indicator'!$A$3:$AB$351, MATCH(Selection_Hide2!$A278, 'Full set Core Client Indicator'!$A$3:$A$351, 0), MATCH(Selection_Hide2!AA$5, 'Full set Core Client Indicator'!$A$3:$AB$3, 0))=\"\", \"\",  INDEX('Full set Core Client Indicator'!$A$3:$AB$351, MATCH(Selection_Hide2!$A278, 'Full set Core Client Indicator'!$A$3:$A$351, 0), MATCH(Selection_Hide2!AA$5, 'Full set Core Client Indicator'!$A$3:$AB$3, 0))), \"\")","v":""},{"$f":"IF(AA278<>\"\", IF(INDEX('Full set Core Client Indicator'!$A$3:$AB$351, MATCH(Selection_Hide2!$A278, 'Full set Core Client Indicator'!$A$3:$A$351, 0), MATCH(Selection_Hide2!AB$5, 'Full set Core Client Indicator'!$A$3:$AB$3, 0))=\"\", \"\",  INDEX('Full set Core Client Indicator'!$A$3:$AB$351, MATCH(Selection_Hide2!$A278, 'Full set Core Client Indicator'!$A$3:$A$351, 0), MATCH(Selection_Hide2!AB$5, 'Full set Core Client Indicator'!$A$3:$AB$3, 0))), \"\")","v":""}]
[{"$f":"IF(AND(Selection_Hide1!C277<>0, Selection_Hide1!C277<>\"Grand Total\"), Selection_Hide1!C277, \"\")","v":""},{"$f":"IF(A279<>\"\", IF(INDEX('Full set Core Client Indicator'!$A$3:$AB$351, MATCH(Selection_Hide2!$A279, 'Full set Core Client Indicator'!$A$3:$A$351, 0), MATCH(Selection_Hide2!B$5, 'Full set Core Client Indicator'!$A$3:$AB$3, 0))=\"\", \"\",  INDEX('Full set Core Client Indicator'!$A$3:$AB$351, MATCH(Selection_Hide2!$A279, 'Full set Core Client Indicator'!$A$3:$A$351, 0), MATCH(Selection_Hide2!B$5, 'Full set Core Client Indicator'!$A$3:$AB$3, 0))), \"\")","v":""},{"$f":"IF(B279<>\"\", IF(INDEX('Full set Core Client Indicator'!$A$3:$AB$351, MATCH(Selection_Hide2!$A279, 'Full set Core Client Indicator'!$A$3:$A$351, 0), MATCH(Selection_Hide2!C$5, 'Full set Core Client Indicator'!$A$3:$AB$3, 0))=\"\", \"\",  INDEX('Full set Core Client Indicator'!$A$3:$AB$351, MATCH(Selection_Hide2!$A279, 'Full set Core Client Indicator'!$A$3:$A$351, 0), MATCH(Selection_Hide2!C$5, 'Full set Core Client Indicator'!$A$3:$AB$3, 0))), \"\")","v":""},{"$f":"IF(C279<>\"\", IF(INDEX('Full set Core Client Indicator'!$A$3:$AB$351, MATCH(Selection_Hide2!$A279, 'Full set Core Client Indicator'!$A$3:$A$351, 0), MATCH(Selection_Hide2!D$5, 'Full set Core Client Indicator'!$A$3:$AB$3, 0))=\"\", \"\",  INDEX('Full set Core Client Indicator'!$A$3:$AB$351, MATCH(Selection_Hide2!$A279, 'Full set Core Client Indicator'!$A$3:$A$351, 0), MATCH(Selection_Hide2!D$5, 'Full set Core Client Indicator'!$A$3:$AB$3, 0))), \"\")","v":""},{"$f":"IF(D279<>\"\", IF(INDEX('Full set Core Client Indicator'!$A$3:$AB$351, MATCH(Selection_Hide2!$A279, 'Full set Core Client Indicator'!$A$3:$A$351, 0), MATCH(Selection_Hide2!E$5, 'Full set Core Client Indicator'!$A$3:$AB$3, 0))=\"\", \"\",  INDEX('Full set Core Client Indicator'!$A$3:$AB$351, MATCH(Selection_Hide2!$A279, 'Full set Core Client Indicator'!$A$3:$A$351, 0), MATCH(Selection_Hide2!E$5, 'Full set Core Client Indicator'!$A$3:$AB$3, 0))), \"\")","v":""},{"$f":"IF(E279<>\"\", IF(INDEX('Full set Core Client Indicator'!$A$3:$AB$351, MATCH(Selection_Hide2!$A279, 'Full set Core Client Indicator'!$A$3:$A$351, 0), MATCH(Selection_Hide2!F$5, 'Full set Core Client Indicator'!$A$3:$AB$3, 0))=\"\", \"\",  INDEX('Full set Core Client Indicator'!$A$3:$AB$351, MATCH(Selection_Hide2!$A279, 'Full set Core Client Indicator'!$A$3:$A$351, 0), MATCH(Selection_Hide2!F$5, 'Full set Core Client Indicator'!$A$3:$AB$3, 0))), \"\")","v":""},{"$f":"IF(F279<>\"\", IF(INDEX('Full set Core Client Indicator'!$A$3:$AB$351, MATCH(Selection_Hide2!$A279, 'Full set Core Client Indicator'!$A$3:$A$351, 0), MATCH(Selection_Hide2!G$5, 'Full set Core Client Indicator'!$A$3:$AB$3, 0))=\"\", \"\",  INDEX('Full set Core Client Indicator'!$A$3:$AB$351, MATCH(Selection_Hide2!$A279, 'Full set Core Client Indicator'!$A$3:$A$351, 0), MATCH(Selection_Hide2!G$5, 'Full set Core Client Indicator'!$A$3:$AB$3, 0))), \"\")","v":""},{"$f":"IF(G279<>\"\", IF(INDEX('Full set Core Client Indicator'!$A$3:$AB$351, MATCH(Selection_Hide2!$A279, 'Full set Core Client Indicator'!$A$3:$A$351, 0), MATCH(Selection_Hide2!H$5, 'Full set Core Client Indicator'!$A$3:$AB$3, 0))=\"\", \"\",  INDEX('Full set Core Client Indicator'!$A$3:$AB$351, MATCH(Selection_Hide2!$A279, 'Full set Core Client Indicator'!$A$3:$A$351, 0), MATCH(Selection_Hide2!H$5, 'Full set Core Client Indicator'!$A$3:$AB$3, 0))), \"\")","v":""},{"$f":"IF(H279<>\"\", IF(INDEX('Full set Core Client Indicator'!$A$3:$AB$351, MATCH(Selection_Hide2!$A279, 'Full set Core Client Indicator'!$A$3:$A$351, 0), MATCH(Selection_Hide2!I$5, 'Full set Core Client Indicator'!$A$3:$AB$3, 0))=\"\", \"\",  INDEX('Full set Core Client Indicator'!$A$3:$AB$351, MATCH(Selection_Hide2!$A279, 'Full set Core Client Indicator'!$A$3:$A$351, 0), MATCH(Selection_Hide2!I$5, 'Full set Core Client Indicator'!$A$3:$AB$3, 0))), \"\")","v":""},{"$f":"IF(I279<>\"\", IF(INDEX('Full set Core Client Indicator'!$A$3:$AB$351, MATCH(Selection_Hide2!$A279, 'Full set Core Client Indicator'!$A$3:$A$351, 0), MATCH(Selection_Hide2!J$5, 'Full set Core Client Indicator'!$A$3:$AB$3, 0))=\"\", \"\",  INDEX('Full set Core Client Indicator'!$A$3:$AB$351, MATCH(Selection_Hide2!$A279, 'Full set Core Client Indicator'!$A$3:$A$351, 0), MATCH(Selection_Hide2!J$5, 'Full set Core Client Indicator'!$A$3:$AB$3, 0))), \"\")","v":""},{"$f":"IF(J279<>\"\", IF(INDEX('Full set Core Client Indicator'!$A$3:$AB$351, MATCH(Selection_Hide2!$A279, 'Full set Core Client Indicator'!$A$3:$A$351, 0), MATCH(Selection_Hide2!K$5, 'Full set Core Client Indicator'!$A$3:$AB$3, 0))=\"\", \"\",  INDEX('Full set Core Client Indicator'!$A$3:$AB$351, MATCH(Selection_Hide2!$A279, 'Full set Core Client Indicator'!$A$3:$A$351, 0), MATCH(Selection_Hide2!K$5, 'Full set Core Client Indicator'!$A$3:$AB$3, 0))), \"\")","v":""},{"$f":"IF(K279<>\"\", IF(INDEX('Full set Core Client Indicator'!$A$3:$AB$351, MATCH(Selection_Hide2!$A279, 'Full set Core Client Indicator'!$A$3:$A$351, 0), MATCH(Selection_Hide2!L$5, 'Full set Core Client Indicator'!$A$3:$AB$3, 0))=\"\", \"\",  INDEX('Full set Core Client Indicator'!$A$3:$AB$351, MATCH(Selection_Hide2!$A279, 'Full set Core Client Indicator'!$A$3:$A$351, 0), MATCH(Selection_Hide2!L$5, 'Full set Core Client Indicator'!$A$3:$AB$3, 0))), \"\")","v":""},{"$f":"IF(L279<>\"\", IF(INDEX('Full set Core Client Indicator'!$A$3:$AB$351, MATCH(Selection_Hide2!$A279, 'Full set Core Client Indicator'!$A$3:$A$351, 0), MATCH(Selection_Hide2!M$5, 'Full set Core Client Indicator'!$A$3:$AB$3, 0))=\"\", \"\",  INDEX('Full set Core Client Indicator'!$A$3:$AB$351, MATCH(Selection_Hide2!$A279, 'Full set Core Client Indicator'!$A$3:$A$351, 0), MATCH(Selection_Hide2!M$5, 'Full set Core Client Indicator'!$A$3:$AB$3, 0))), \"\")","v":""},{"$f":"IF(M279<>\"\", IF(INDEX('Full set Core Client Indicator'!$A$3:$AB$351, MATCH(Selection_Hide2!$A279, 'Full set Core Client Indicator'!$A$3:$A$351, 0), MATCH(Selection_Hide2!N$5, 'Full set Core Client Indicator'!$A$3:$AB$3, 0))=\"\", \"\",  INDEX('Full set Core Client Indicator'!$A$3:$AB$351, MATCH(Selection_Hide2!$A279, 'Full set Core Client Indicator'!$A$3:$A$351, 0), MATCH(Selection_Hide2!N$5, 'Full set Core Client Indicator'!$A$3:$AB$3, 0))), \"\")","v":""},{"$f":"IF(N279<>\"\", IF(INDEX('Full set Core Client Indicator'!$A$3:$AB$351, MATCH(Selection_Hide2!$A279, 'Full set Core Client Indicator'!$A$3:$A$351, 0), MATCH(Selection_Hide2!O$5, 'Full set Core Client Indicator'!$A$3:$AB$3, 0))=\"\", \"\",  INDEX('Full set Core Client Indicator'!$A$3:$AB$351, MATCH(Selection_Hide2!$A279, 'Full set Core Client Indicator'!$A$3:$A$351, 0), MATCH(Selection_Hide2!O$5, 'Full set Core Client Indicator'!$A$3:$AB$3, 0))), \"\")","v":""},{"$f":"IF(O279<>\"\", IF(INDEX('Full set Core Client Indicator'!$A$3:$AB$351, MATCH(Selection_Hide2!$A279, 'Full set Core Client Indicator'!$A$3:$A$351, 0), MATCH(Selection_Hide2!P$5, 'Full set Core Client Indicator'!$A$3:$AB$3, 0))=\"\", \"\",  INDEX('Full set Core Client Indicator'!$A$3:$AB$351, MATCH(Selection_Hide2!$A279, 'Full set Core Client Indicator'!$A$3:$A$351, 0), MATCH(Selection_Hide2!P$5, 'Full set Core Client Indicator'!$A$3:$AB$3, 0))), \"\")","v":""},{"$f":"IF(P279<>\"\", IF(INDEX('Full set Core Client Indicator'!$A$3:$AB$351, MATCH(Selection_Hide2!$A279, 'Full set Core Client Indicator'!$A$3:$A$351, 0), MATCH(Selection_Hide2!Q$5, 'Full set Core Client Indicator'!$A$3:$AB$3, 0))=\"\", \"\",  INDEX('Full set Core Client Indicator'!$A$3:$AB$351, MATCH(Selection_Hide2!$A279, 'Full set Core Client Indicator'!$A$3:$A$351, 0), MATCH(Selection_Hide2!Q$5, 'Full set Core Client Indicator'!$A$3:$AB$3, 0))), \"\")","v":""},{"$f":"IF(Q279<>\"\", IF(INDEX('Full set Core Client Indicator'!$A$3:$AB$351, MATCH(Selection_Hide2!$A279, 'Full set Core Client Indicator'!$A$3:$A$351, 0), MATCH(Selection_Hide2!R$5, 'Full set Core Client Indicator'!$A$3:$AB$3, 0))=\"\", \"\",  INDEX('Full set Core Client Indicator'!$A$3:$AB$351, MATCH(Selection_Hide2!$A279, 'Full set Core Client Indicator'!$A$3:$A$351, 0), MATCH(Selection_Hide2!R$5, 'Full set Core Client Indicator'!$A$3:$AB$3, 0))), \"\")","v":""},{"$f":"IF(R279<>\"\", IF(INDEX('Full set Core Client Indicator'!$A$3:$AB$351, MATCH(Selection_Hide2!$A279, 'Full set Core Client Indicator'!$A$3:$A$351, 0), MATCH(Selection_Hide2!S$5, 'Full set Core Client Indicator'!$A$3:$AB$3, 0))=\"\", \"\",  INDEX('Full set Core Client Indicator'!$A$3:$AB$351, MATCH(Selection_Hide2!$A279, 'Full set Core Client Indicator'!$A$3:$A$351, 0), MATCH(Selection_Hide2!S$5, 'Full set Core Client Indicator'!$A$3:$AB$3, 0))), \"\")","v":""},{"$f":"IF(S279<>\"\", IF(INDEX('Full set Core Client Indicator'!$A$3:$AB$351, MATCH(Selection_Hide2!$A279, 'Full set Core Client Indicator'!$A$3:$A$351, 0), MATCH(Selection_Hide2!T$5, 'Full set Core Client Indicator'!$A$3:$AB$3, 0))=\"\", \"\",  INDEX('Full set Core Client Indicator'!$A$3:$AB$351, MATCH(Selection_Hide2!$A279, 'Full set Core Client Indicator'!$A$3:$A$351, 0), MATCH(Selection_Hide2!T$5, 'Full set Core Client Indicator'!$A$3:$AB$3, 0))), \"\")","v":""},{"$f":"IF(T279<>\"\", IF(INDEX('Full set Core Client Indicator'!$A$3:$AB$351, MATCH(Selection_Hide2!$A279, 'Full set Core Client Indicator'!$A$3:$A$351, 0), MATCH(Selection_Hide2!U$5, 'Full set Core Client Indicator'!$A$3:$AB$3, 0))=\"\", \"\",  INDEX('Full set Core Client Indicator'!$A$3:$AB$351, MATCH(Selection_Hide2!$A279, 'Full set Core Client Indicator'!$A$3:$A$351, 0), MATCH(Selection_Hide2!U$5, 'Full set Core Client Indicator'!$A$3:$AB$3, 0))), \"\")","v":""},{"$f":"IF(U279<>\"\", IF(INDEX('Full set Core Client Indicator'!$A$3:$AB$351, MATCH(Selection_Hide2!$A279, 'Full set Core Client Indicator'!$A$3:$A$351, 0), MATCH(Selection_Hide2!V$5, 'Full set Core Client Indicator'!$A$3:$AB$3, 0))=\"\", \"\",  INDEX('Full set Core Client Indicator'!$A$3:$AB$351, MATCH(Selection_Hide2!$A279, 'Full set Core Client Indicator'!$A$3:$A$351, 0), MATCH(Selection_Hide2!V$5, 'Full set Core Client Indicator'!$A$3:$AB$3, 0))), \"\")","v":""},{"$f":"IF(V279<>\"\", IF(INDEX('Full set Core Client Indicator'!$A$3:$AB$351, MATCH(Selection_Hide2!$A279, 'Full set Core Client Indicator'!$A$3:$A$351, 0), MATCH(Selection_Hide2!W$5, 'Full set Core Client Indicator'!$A$3:$AB$3, 0))=\"\", \"\",  INDEX('Full set Core Client Indicator'!$A$3:$AB$351, MATCH(Selection_Hide2!$A279, 'Full set Core Client Indicator'!$A$3:$A$351, 0), MATCH(Selection_Hide2!W$5, 'Full set Core Client Indicator'!$A$3:$AB$3, 0))), \"\")","v":""},{"$f":"IF(W279<>\"\", IF(INDEX('Full set Core Client Indicator'!$A$3:$AB$351, MATCH(Selection_Hide2!$A279, 'Full set Core Client Indicator'!$A$3:$A$351, 0), MATCH(Selection_Hide2!X$5, 'Full set Core Client Indicator'!$A$3:$AB$3, 0))=\"\", \"\",  INDEX('Full set Core Client Indicator'!$A$3:$AB$351, MATCH(Selection_Hide2!$A279, 'Full set Core Client Indicator'!$A$3:$A$351, 0), MATCH(Selection_Hide2!X$5, 'Full set Core Client Indicator'!$A$3:$AB$3, 0))), \"\")","v":""},{"$f":"IF(X279<>\"\", IF(INDEX('Full set Core Client Indicator'!$A$3:$AB$351, MATCH(Selection_Hide2!$A279, 'Full set Core Client Indicator'!$A$3:$A$351, 0), MATCH(Selection_Hide2!Y$5, 'Full set Core Client Indicator'!$A$3:$AB$3, 0))=\"\", \"\",  INDEX('Full set Core Client Indicator'!$A$3:$AB$351, MATCH(Selection_Hide2!$A279, 'Full set Core Client Indicator'!$A$3:$A$351, 0), MATCH(Selection_Hide2!Y$5, 'Full set Core Client Indicator'!$A$3:$AB$3, 0))), \"\")","v":""},{"$f":"IF(Y279<>\"\", IF(INDEX('Full set Core Client Indicator'!$A$3:$AB$351, MATCH(Selection_Hide2!$A279, 'Full set Core Client Indicator'!$A$3:$A$351, 0), MATCH(Selection_Hide2!Z$5, 'Full set Core Client Indicator'!$A$3:$AB$3, 0))=\"\", \"\",  INDEX('Full set Core Client Indicator'!$A$3:$AB$351, MATCH(Selection_Hide2!$A279, 'Full set Core Client Indicator'!$A$3:$A$351, 0), MATCH(Selection_Hide2!Z$5, 'Full set Core Client Indicator'!$A$3:$AB$3, 0))), \"\")","v":""},{"$f":"IF(Z279<>\"\", IF(INDEX('Full set Core Client Indicator'!$A$3:$AB$351, MATCH(Selection_Hide2!$A279, 'Full set Core Client Indicator'!$A$3:$A$351, 0), MATCH(Selection_Hide2!AA$5, 'Full set Core Client Indicator'!$A$3:$AB$3, 0))=\"\", \"\",  INDEX('Full set Core Client Indicator'!$A$3:$AB$351, MATCH(Selection_Hide2!$A279, 'Full set Core Client Indicator'!$A$3:$A$351, 0), MATCH(Selection_Hide2!AA$5, 'Full set Core Client Indicator'!$A$3:$AB$3, 0))), \"\")","v":""},{"$f":"IF(AA279<>\"\", IF(INDEX('Full set Core Client Indicator'!$A$3:$AB$351, MATCH(Selection_Hide2!$A279, 'Full set Core Client Indicator'!$A$3:$A$351, 0), MATCH(Selection_Hide2!AB$5, 'Full set Core Client Indicator'!$A$3:$AB$3, 0))=\"\", \"\",  INDEX('Full set Core Client Indicator'!$A$3:$AB$351, MATCH(Selection_Hide2!$A279, 'Full set Core Client Indicator'!$A$3:$A$351, 0), MATCH(Selection_Hide2!AB$5, 'Full set Core Client Indicator'!$A$3:$AB$3, 0))), \"\")","v":""}]
[{"$f":"IF(AND(Selection_Hide1!C278<>0, Selection_Hide1!C278<>\"Grand Total\"), Selection_Hide1!C278, \"\")","v":""},{"$f":"IF(A280<>\"\", IF(INDEX('Full set Core Client Indicator'!$A$3:$AB$351, MATCH(Selection_Hide2!$A280, 'Full set Core Client Indicator'!$A$3:$A$351, 0), MATCH(Selection_Hide2!B$5, 'Full set Core Client Indicator'!$A$3:$AB$3, 0))=\"\", \"\",  INDEX('Full set Core Client Indicator'!$A$3:$AB$351, MATCH(Selection_Hide2!$A280, 'Full set Core Client Indicator'!$A$3:$A$351, 0), MATCH(Selection_Hide2!B$5, 'Full set Core Client Indicator'!$A$3:$AB$3, 0))), \"\")","v":""},{"$f":"IF(B280<>\"\", IF(INDEX('Full set Core Client Indicator'!$A$3:$AB$351, MATCH(Selection_Hide2!$A280, 'Full set Core Client Indicator'!$A$3:$A$351, 0), MATCH(Selection_Hide2!C$5, 'Full set Core Client Indicator'!$A$3:$AB$3, 0))=\"\", \"\",  INDEX('Full set Core Client Indicator'!$A$3:$AB$351, MATCH(Selection_Hide2!$A280, 'Full set Core Client Indicator'!$A$3:$A$351, 0), MATCH(Selection_Hide2!C$5, 'Full set Core Client Indicator'!$A$3:$AB$3, 0))), \"\")","v":""},{"$f":"IF(C280<>\"\", IF(INDEX('Full set Core Client Indicator'!$A$3:$AB$351, MATCH(Selection_Hide2!$A280, 'Full set Core Client Indicator'!$A$3:$A$351, 0), MATCH(Selection_Hide2!D$5, 'Full set Core Client Indicator'!$A$3:$AB$3, 0))=\"\", \"\",  INDEX('Full set Core Client Indicator'!$A$3:$AB$351, MATCH(Selection_Hide2!$A280, 'Full set Core Client Indicator'!$A$3:$A$351, 0), MATCH(Selection_Hide2!D$5, 'Full set Core Client Indicator'!$A$3:$AB$3, 0))), \"\")","v":""},{"$f":"IF(D280<>\"\", IF(INDEX('Full set Core Client Indicator'!$A$3:$AB$351, MATCH(Selection_Hide2!$A280, 'Full set Core Client Indicator'!$A$3:$A$351, 0), MATCH(Selection_Hide2!E$5, 'Full set Core Client Indicator'!$A$3:$AB$3, 0))=\"\", \"\",  INDEX('Full set Core Client Indicator'!$A$3:$AB$351, MATCH(Selection_Hide2!$A280, 'Full set Core Client Indicator'!$A$3:$A$351, 0), MATCH(Selection_Hide2!E$5, 'Full set Core Client Indicator'!$A$3:$AB$3, 0))), \"\")","v":""},{"$f":"IF(E280<>\"\", IF(INDEX('Full set Core Client Indicator'!$A$3:$AB$351, MATCH(Selection_Hide2!$A280, 'Full set Core Client Indicator'!$A$3:$A$351, 0), MATCH(Selection_Hide2!F$5, 'Full set Core Client Indicator'!$A$3:$AB$3, 0))=\"\", \"\",  INDEX('Full set Core Client Indicator'!$A$3:$AB$351, MATCH(Selection_Hide2!$A280, 'Full set Core Client Indicator'!$A$3:$A$351, 0), MATCH(Selection_Hide2!F$5, 'Full set Core Client Indicator'!$A$3:$AB$3, 0))), \"\")","v":""},{"$f":"IF(F280<>\"\", IF(INDEX('Full set Core Client Indicator'!$A$3:$AB$351, MATCH(Selection_Hide2!$A280, 'Full set Core Client Indicator'!$A$3:$A$351, 0), MATCH(Selection_Hide2!G$5, 'Full set Core Client Indicator'!$A$3:$AB$3, 0))=\"\", \"\",  INDEX('Full set Core Client Indicator'!$A$3:$AB$351, MATCH(Selection_Hide2!$A280, 'Full set Core Client Indicator'!$A$3:$A$351, 0), MATCH(Selection_Hide2!G$5, 'Full set Core Client Indicator'!$A$3:$AB$3, 0))), \"\")","v":""},{"$f":"IF(G280<>\"\", IF(INDEX('Full set Core Client Indicator'!$A$3:$AB$351, MATCH(Selection_Hide2!$A280, 'Full set Core Client Indicator'!$A$3:$A$351, 0), MATCH(Selection_Hide2!H$5, 'Full set Core Client Indicator'!$A$3:$AB$3, 0))=\"\", \"\",  INDEX('Full set Core Client Indicator'!$A$3:$AB$351, MATCH(Selection_Hide2!$A280, 'Full set Core Client Indicator'!$A$3:$A$351, 0), MATCH(Selection_Hide2!H$5, 'Full set Core Client Indicator'!$A$3:$AB$3, 0))), \"\")","v":""},{"$f":"IF(H280<>\"\", IF(INDEX('Full set Core Client Indicator'!$A$3:$AB$351, MATCH(Selection_Hide2!$A280, 'Full set Core Client Indicator'!$A$3:$A$351, 0), MATCH(Selection_Hide2!I$5, 'Full set Core Client Indicator'!$A$3:$AB$3, 0))=\"\", \"\",  INDEX('Full set Core Client Indicator'!$A$3:$AB$351, MATCH(Selection_Hide2!$A280, 'Full set Core Client Indicator'!$A$3:$A$351, 0), MATCH(Selection_Hide2!I$5, 'Full set Core Client Indicator'!$A$3:$AB$3, 0))), \"\")","v":""},{"$f":"IF(I280<>\"\", IF(INDEX('Full set Core Client Indicator'!$A$3:$AB$351, MATCH(Selection_Hide2!$A280, 'Full set Core Client Indicator'!$A$3:$A$351, 0), MATCH(Selection_Hide2!J$5, 'Full set Core Client Indicator'!$A$3:$AB$3, 0))=\"\", \"\",  INDEX('Full set Core Client Indicator'!$A$3:$AB$351, MATCH(Selection_Hide2!$A280, 'Full set Core Client Indicator'!$A$3:$A$351, 0), MATCH(Selection_Hide2!J$5, 'Full set Core Client Indicator'!$A$3:$AB$3, 0))), \"\")","v":""},{"$f":"IF(J280<>\"\", IF(INDEX('Full set Core Client Indicator'!$A$3:$AB$351, MATCH(Selection_Hide2!$A280, 'Full set Core Client Indicator'!$A$3:$A$351, 0), MATCH(Selection_Hide2!K$5, 'Full set Core Client Indicator'!$A$3:$AB$3, 0))=\"\", \"\",  INDEX('Full set Core Client Indicator'!$A$3:$AB$351, MATCH(Selection_Hide2!$A280, 'Full set Core Client Indicator'!$A$3:$A$351, 0), MATCH(Selection_Hide2!K$5, 'Full set Core Client Indicator'!$A$3:$AB$3, 0))), \"\")","v":""},{"$f":"IF(K280<>\"\", IF(INDEX('Full set Core Client Indicator'!$A$3:$AB$351, MATCH(Selection_Hide2!$A280, 'Full set Core Client Indicator'!$A$3:$A$351, 0), MATCH(Selection_Hide2!L$5, 'Full set Core Client Indicator'!$A$3:$AB$3, 0))=\"\", \"\",  INDEX('Full set Core Client Indicator'!$A$3:$AB$351, MATCH(Selection_Hide2!$A280, 'Full set Core Client Indicator'!$A$3:$A$351, 0), MATCH(Selection_Hide2!L$5, 'Full set Core Client Indicator'!$A$3:$AB$3, 0))), \"\")","v":""},{"$f":"IF(L280<>\"\", IF(INDEX('Full set Core Client Indicator'!$A$3:$AB$351, MATCH(Selection_Hide2!$A280, 'Full set Core Client Indicator'!$A$3:$A$351, 0), MATCH(Selection_Hide2!M$5, 'Full set Core Client Indicator'!$A$3:$AB$3, 0))=\"\", \"\",  INDEX('Full set Core Client Indicator'!$A$3:$AB$351, MATCH(Selection_Hide2!$A280, 'Full set Core Client Indicator'!$A$3:$A$351, 0), MATCH(Selection_Hide2!M$5, 'Full set Core Client Indicator'!$A$3:$AB$3, 0))), \"\")","v":""},{"$f":"IF(M280<>\"\", IF(INDEX('Full set Core Client Indicator'!$A$3:$AB$351, MATCH(Selection_Hide2!$A280, 'Full set Core Client Indicator'!$A$3:$A$351, 0), MATCH(Selection_Hide2!N$5, 'Full set Core Client Indicator'!$A$3:$AB$3, 0))=\"\", \"\",  INDEX('Full set Core Client Indicator'!$A$3:$AB$351, MATCH(Selection_Hide2!$A280, 'Full set Core Client Indicator'!$A$3:$A$351, 0), MATCH(Selection_Hide2!N$5, 'Full set Core Client Indicator'!$A$3:$AB$3, 0))), \"\")","v":""},{"$f":"IF(N280<>\"\", IF(INDEX('Full set Core Client Indicator'!$A$3:$AB$351, MATCH(Selection_Hide2!$A280, 'Full set Core Client Indicator'!$A$3:$A$351, 0), MATCH(Selection_Hide2!O$5, 'Full set Core Client Indicator'!$A$3:$AB$3, 0))=\"\", \"\",  INDEX('Full set Core Client Indicator'!$A$3:$AB$351, MATCH(Selection_Hide2!$A280, 'Full set Core Client Indicator'!$A$3:$A$351, 0), MATCH(Selection_Hide2!O$5, 'Full set Core Client Indicator'!$A$3:$AB$3, 0))), \"\")","v":""},{"$f":"IF(O280<>\"\", IF(INDEX('Full set Core Client Indicator'!$A$3:$AB$351, MATCH(Selection_Hide2!$A280, 'Full set Core Client Indicator'!$A$3:$A$351, 0), MATCH(Selection_Hide2!P$5, 'Full set Core Client Indicator'!$A$3:$AB$3, 0))=\"\", \"\",  INDEX('Full set Core Client Indicator'!$A$3:$AB$351, MATCH(Selection_Hide2!$A280, 'Full set Core Client Indicator'!$A$3:$A$351, 0), MATCH(Selection_Hide2!P$5, 'Full set Core Client Indicator'!$A$3:$AB$3, 0))), \"\")","v":""},{"$f":"IF(P280<>\"\", IF(INDEX('Full set Core Client Indicator'!$A$3:$AB$351, MATCH(Selection_Hide2!$A280, 'Full set Core Client Indicator'!$A$3:$A$351, 0), MATCH(Selection_Hide2!Q$5, 'Full set Core Client Indicator'!$A$3:$AB$3, 0))=\"\", \"\",  INDEX('Full set Core Client Indicator'!$A$3:$AB$351, MATCH(Selection_Hide2!$A280, 'Full set Core Client Indicator'!$A$3:$A$351, 0), MATCH(Selection_Hide2!Q$5, 'Full set Core Client Indicator'!$A$3:$AB$3, 0))), \"\")","v":""},{"$f":"IF(Q280<>\"\", IF(INDEX('Full set Core Client Indicator'!$A$3:$AB$351, MATCH(Selection_Hide2!$A280, 'Full set Core Client Indicator'!$A$3:$A$351, 0), MATCH(Selection_Hide2!R$5, 'Full set Core Client Indicator'!$A$3:$AB$3, 0))=\"\", \"\",  INDEX('Full set Core Client Indicator'!$A$3:$AB$351, MATCH(Selection_Hide2!$A280, 'Full set Core Client Indicator'!$A$3:$A$351, 0), MATCH(Selection_Hide2!R$5, 'Full set Core Client Indicator'!$A$3:$AB$3, 0))), \"\")","v":""},{"$f":"IF(R280<>\"\", IF(INDEX('Full set Core Client Indicator'!$A$3:$AB$351, MATCH(Selection_Hide2!$A280, 'Full set Core Client Indicator'!$A$3:$A$351, 0), MATCH(Selection_Hide2!S$5, 'Full set Core Client Indicator'!$A$3:$AB$3, 0))=\"\", \"\",  INDEX('Full set Core Client Indicator'!$A$3:$AB$351, MATCH(Selection_Hide2!$A280, 'Full set Core Client Indicator'!$A$3:$A$351, 0), MATCH(Selection_Hide2!S$5, 'Full set Core Client Indicator'!$A$3:$AB$3, 0))), \"\")","v":""},{"$f":"IF(S280<>\"\", IF(INDEX('Full set Core Client Indicator'!$A$3:$AB$351, MATCH(Selection_Hide2!$A280, 'Full set Core Client Indicator'!$A$3:$A$351, 0), MATCH(Selection_Hide2!T$5, 'Full set Core Client Indicator'!$A$3:$AB$3, 0))=\"\", \"\",  INDEX('Full set Core Client Indicator'!$A$3:$AB$351, MATCH(Selection_Hide2!$A280, 'Full set Core Client Indicator'!$A$3:$A$351, 0), MATCH(Selection_Hide2!T$5, 'Full set Core Client Indicator'!$A$3:$AB$3, 0))), \"\")","v":""},{"$f":"IF(T280<>\"\", IF(INDEX('Full set Core Client Indicator'!$A$3:$AB$351, MATCH(Selection_Hide2!$A280, 'Full set Core Client Indicator'!$A$3:$A$351, 0), MATCH(Selection_Hide2!U$5, 'Full set Core Client Indicator'!$A$3:$AB$3, 0))=\"\", \"\",  INDEX('Full set Core Client Indicator'!$A$3:$AB$351, MATCH(Selection_Hide2!$A280, 'Full set Core Client Indicator'!$A$3:$A$351, 0), MATCH(Selection_Hide2!U$5, 'Full set Core Client Indicator'!$A$3:$AB$3, 0))), \"\")","v":""},{"$f":"IF(U280<>\"\", IF(INDEX('Full set Core Client Indicator'!$A$3:$AB$351, MATCH(Selection_Hide2!$A280, 'Full set Core Client Indicator'!$A$3:$A$351, 0), MATCH(Selection_Hide2!V$5, 'Full set Core Client Indicator'!$A$3:$AB$3, 0))=\"\", \"\",  INDEX('Full set Core Client Indicator'!$A$3:$AB$351, MATCH(Selection_Hide2!$A280, 'Full set Core Client Indicator'!$A$3:$A$351, 0), MATCH(Selection_Hide2!V$5, 'Full set Core Client Indicator'!$A$3:$AB$3, 0))), \"\")","v":""},{"$f":"IF(V280<>\"\", IF(INDEX('Full set Core Client Indicator'!$A$3:$AB$351, MATCH(Selection_Hide2!$A280, 'Full set Core Client Indicator'!$A$3:$A$351, 0), MATCH(Selection_Hide2!W$5, 'Full set Core Client Indicator'!$A$3:$AB$3, 0))=\"\", \"\",  INDEX('Full set Core Client Indicator'!$A$3:$AB$351, MATCH(Selection_Hide2!$A280, 'Full set Core Client Indicator'!$A$3:$A$351, 0), MATCH(Selection_Hide2!W$5, 'Full set Core Client Indicator'!$A$3:$AB$3, 0))), \"\")","v":""},{"$f":"IF(W280<>\"\", IF(INDEX('Full set Core Client Indicator'!$A$3:$AB$351, MATCH(Selection_Hide2!$A280, 'Full set Core Client Indicator'!$A$3:$A$351, 0), MATCH(Selection_Hide2!X$5, 'Full set Core Client Indicator'!$A$3:$AB$3, 0))=\"\", \"\",  INDEX('Full set Core Client Indicator'!$A$3:$AB$351, MATCH(Selection_Hide2!$A280, 'Full set Core Client Indicator'!$A$3:$A$351, 0), MATCH(Selection_Hide2!X$5, 'Full set Core Client Indicator'!$A$3:$AB$3, 0))), \"\")","v":""},{"$f":"IF(X280<>\"\", IF(INDEX('Full set Core Client Indicator'!$A$3:$AB$351, MATCH(Selection_Hide2!$A280, 'Full set Core Client Indicator'!$A$3:$A$351, 0), MATCH(Selection_Hide2!Y$5, 'Full set Core Client Indicator'!$A$3:$AB$3, 0))=\"\", \"\",  INDEX('Full set Core Client Indicator'!$A$3:$AB$351, MATCH(Selection_Hide2!$A280, 'Full set Core Client Indicator'!$A$3:$A$351, 0), MATCH(Selection_Hide2!Y$5, 'Full set Core Client Indicator'!$A$3:$AB$3, 0))), \"\")","v":""},{"$f":"IF(Y280<>\"\", IF(INDEX('Full set Core Client Indicator'!$A$3:$AB$351, MATCH(Selection_Hide2!$A280, 'Full set Core Client Indicator'!$A$3:$A$351, 0), MATCH(Selection_Hide2!Z$5, 'Full set Core Client Indicator'!$A$3:$AB$3, 0))=\"\", \"\",  INDEX('Full set Core Client Indicator'!$A$3:$AB$351, MATCH(Selection_Hide2!$A280, 'Full set Core Client Indicator'!$A$3:$A$351, 0), MATCH(Selection_Hide2!Z$5, 'Full set Core Client Indicator'!$A$3:$AB$3, 0))), \"\")","v":""},{"$f":"IF(Z280<>\"\", IF(INDEX('Full set Core Client Indicator'!$A$3:$AB$351, MATCH(Selection_Hide2!$A280, 'Full set Core Client Indicator'!$A$3:$A$351, 0), MATCH(Selection_Hide2!AA$5, 'Full set Core Client Indicator'!$A$3:$AB$3, 0))=\"\", \"\",  INDEX('Full set Core Client Indicator'!$A$3:$AB$351, MATCH(Selection_Hide2!$A280, 'Full set Core Client Indicator'!$A$3:$A$351, 0), MATCH(Selection_Hide2!AA$5, 'Full set Core Client Indicator'!$A$3:$AB$3, 0))), \"\")","v":""},{"$f":"IF(AA280<>\"\", IF(INDEX('Full set Core Client Indicator'!$A$3:$AB$351, MATCH(Selection_Hide2!$A280, 'Full set Core Client Indicator'!$A$3:$A$351, 0), MATCH(Selection_Hide2!AB$5, 'Full set Core Client Indicator'!$A$3:$AB$3, 0))=\"\", \"\",  INDEX('Full set Core Client Indicator'!$A$3:$AB$351, MATCH(Selection_Hide2!$A280, 'Full set Core Client Indicator'!$A$3:$A$351, 0), MATCH(Selection_Hide2!AB$5, 'Full set Core Client Indicator'!$A$3:$AB$3, 0))), \"\")","v":""}]
[{"$f":"IF(AND(Selection_Hide1!C279<>0, Selection_Hide1!C279<>\"Grand Total\"), Selection_Hide1!C279, \"\")","v":""},{"$f":"IF(A281<>\"\", IF(INDEX('Full set Core Client Indicator'!$A$3:$AB$351, MATCH(Selection_Hide2!$A281, 'Full set Core Client Indicator'!$A$3:$A$351, 0), MATCH(Selection_Hide2!B$5, 'Full set Core Client Indicator'!$A$3:$AB$3, 0))=\"\", \"\",  INDEX('Full set Core Client Indicator'!$A$3:$AB$351, MATCH(Selection_Hide2!$A281, 'Full set Core Client Indicator'!$A$3:$A$351, 0), MATCH(Selection_Hide2!B$5, 'Full set Core Client Indicator'!$A$3:$AB$3, 0))), \"\")","v":""},{"$f":"IF(B281<>\"\", IF(INDEX('Full set Core Client Indicator'!$A$3:$AB$351, MATCH(Selection_Hide2!$A281, 'Full set Core Client Indicator'!$A$3:$A$351, 0), MATCH(Selection_Hide2!C$5, 'Full set Core Client Indicator'!$A$3:$AB$3, 0))=\"\", \"\",  INDEX('Full set Core Client Indicator'!$A$3:$AB$351, MATCH(Selection_Hide2!$A281, 'Full set Core Client Indicator'!$A$3:$A$351, 0), MATCH(Selection_Hide2!C$5, 'Full set Core Client Indicator'!$A$3:$AB$3, 0))), \"\")","v":""},{"$f":"IF(C281<>\"\", IF(INDEX('Full set Core Client Indicator'!$A$3:$AB$351, MATCH(Selection_Hide2!$A281, 'Full set Core Client Indicator'!$A$3:$A$351, 0), MATCH(Selection_Hide2!D$5, 'Full set Core Client Indicator'!$A$3:$AB$3, 0))=\"\", \"\",  INDEX('Full set Core Client Indicator'!$A$3:$AB$351, MATCH(Selection_Hide2!$A281, 'Full set Core Client Indicator'!$A$3:$A$351, 0), MATCH(Selection_Hide2!D$5, 'Full set Core Client Indicator'!$A$3:$AB$3, 0))), \"\")","v":""},{"$f":"IF(D281<>\"\", IF(INDEX('Full set Core Client Indicator'!$A$3:$AB$351, MATCH(Selection_Hide2!$A281, 'Full set Core Client Indicator'!$A$3:$A$351, 0), MATCH(Selection_Hide2!E$5, 'Full set Core Client Indicator'!$A$3:$AB$3, 0))=\"\", \"\",  INDEX('Full set Core Client Indicator'!$A$3:$AB$351, MATCH(Selection_Hide2!$A281, 'Full set Core Client Indicator'!$A$3:$A$351, 0), MATCH(Selection_Hide2!E$5, 'Full set Core Client Indicator'!$A$3:$AB$3, 0))), \"\")","v":""},{"$f":"IF(E281<>\"\", IF(INDEX('Full set Core Client Indicator'!$A$3:$AB$351, MATCH(Selection_Hide2!$A281, 'Full set Core Client Indicator'!$A$3:$A$351, 0), MATCH(Selection_Hide2!F$5, 'Full set Core Client Indicator'!$A$3:$AB$3, 0))=\"\", \"\",  INDEX('Full set Core Client Indicator'!$A$3:$AB$351, MATCH(Selection_Hide2!$A281, 'Full set Core Client Indicator'!$A$3:$A$351, 0), MATCH(Selection_Hide2!F$5, 'Full set Core Client Indicator'!$A$3:$AB$3, 0))), \"\")","v":""},{"$f":"IF(F281<>\"\", IF(INDEX('Full set Core Client Indicator'!$A$3:$AB$351, MATCH(Selection_Hide2!$A281, 'Full set Core Client Indicator'!$A$3:$A$351, 0), MATCH(Selection_Hide2!G$5, 'Full set Core Client Indicator'!$A$3:$AB$3, 0))=\"\", \"\",  INDEX('Full set Core Client Indicator'!$A$3:$AB$351, MATCH(Selection_Hide2!$A281, 'Full set Core Client Indicator'!$A$3:$A$351, 0), MATCH(Selection_Hide2!G$5, 'Full set Core Client Indicator'!$A$3:$AB$3, 0))), \"\")","v":""},{"$f":"IF(G281<>\"\", IF(INDEX('Full set Core Client Indicator'!$A$3:$AB$351, MATCH(Selection_Hide2!$A281, 'Full set Core Client Indicator'!$A$3:$A$351, 0), MATCH(Selection_Hide2!H$5, 'Full set Core Client Indicator'!$A$3:$AB$3, 0))=\"\", \"\",  INDEX('Full set Core Client Indicator'!$A$3:$AB$351, MATCH(Selection_Hide2!$A281, 'Full set Core Client Indicator'!$A$3:$A$351, 0), MATCH(Selection_Hide2!H$5, 'Full set Core Client Indicator'!$A$3:$AB$3, 0))), \"\")","v":""},{"$f":"IF(H281<>\"\", IF(INDEX('Full set Core Client Indicator'!$A$3:$AB$351, MATCH(Selection_Hide2!$A281, 'Full set Core Client Indicator'!$A$3:$A$351, 0), MATCH(Selection_Hide2!I$5, 'Full set Core Client Indicator'!$A$3:$AB$3, 0))=\"\", \"\",  INDEX('Full set Core Client Indicator'!$A$3:$AB$351, MATCH(Selection_Hide2!$A281, 'Full set Core Client Indicator'!$A$3:$A$351, 0), MATCH(Selection_Hide2!I$5, 'Full set Core Client Indicator'!$A$3:$AB$3, 0))), \"\")","v":""},{"$f":"IF(I281<>\"\", IF(INDEX('Full set Core Client Indicator'!$A$3:$AB$351, MATCH(Selection_Hide2!$A281, 'Full set Core Client Indicator'!$A$3:$A$351, 0), MATCH(Selection_Hide2!J$5, 'Full set Core Client Indicator'!$A$3:$AB$3, 0))=\"\", \"\",  INDEX('Full set Core Client Indicator'!$A$3:$AB$351, MATCH(Selection_Hide2!$A281, 'Full set Core Client Indicator'!$A$3:$A$351, 0), MATCH(Selection_Hide2!J$5, 'Full set Core Client Indicator'!$A$3:$AB$3, 0))), \"\")","v":""},{"$f":"IF(J281<>\"\", IF(INDEX('Full set Core Client Indicator'!$A$3:$AB$351, MATCH(Selection_Hide2!$A281, 'Full set Core Client Indicator'!$A$3:$A$351, 0), MATCH(Selection_Hide2!K$5, 'Full set Core Client Indicator'!$A$3:$AB$3, 0))=\"\", \"\",  INDEX('Full set Core Client Indicator'!$A$3:$AB$351, MATCH(Selection_Hide2!$A281, 'Full set Core Client Indicator'!$A$3:$A$351, 0), MATCH(Selection_Hide2!K$5, 'Full set Core Client Indicator'!$A$3:$AB$3, 0))), \"\")","v":""},{"$f":"IF(K281<>\"\", IF(INDEX('Full set Core Client Indicator'!$A$3:$AB$351, MATCH(Selection_Hide2!$A281, 'Full set Core Client Indicator'!$A$3:$A$351, 0), MATCH(Selection_Hide2!L$5, 'Full set Core Client Indicator'!$A$3:$AB$3, 0))=\"\", \"\",  INDEX('Full set Core Client Indicator'!$A$3:$AB$351, MATCH(Selection_Hide2!$A281, 'Full set Core Client Indicator'!$A$3:$A$351, 0), MATCH(Selection_Hide2!L$5, 'Full set Core Client Indicator'!$A$3:$AB$3, 0))), \"\")","v":""},{"$f":"IF(L281<>\"\", IF(INDEX('Full set Core Client Indicator'!$A$3:$AB$351, MATCH(Selection_Hide2!$A281, 'Full set Core Client Indicator'!$A$3:$A$351, 0), MATCH(Selection_Hide2!M$5, 'Full set Core Client Indicator'!$A$3:$AB$3, 0))=\"\", \"\",  INDEX('Full set Core Client Indicator'!$A$3:$AB$351, MATCH(Selection_Hide2!$A281, 'Full set Core Client Indicator'!$A$3:$A$351, 0), MATCH(Selection_Hide2!M$5, 'Full set Core Client Indicator'!$A$3:$AB$3, 0))), \"\")","v":""},{"$f":"IF(M281<>\"\", IF(INDEX('Full set Core Client Indicator'!$A$3:$AB$351, MATCH(Selection_Hide2!$A281, 'Full set Core Client Indicator'!$A$3:$A$351, 0), MATCH(Selection_Hide2!N$5, 'Full set Core Client Indicator'!$A$3:$AB$3, 0))=\"\", \"\",  INDEX('Full set Core Client Indicator'!$A$3:$AB$351, MATCH(Selection_Hide2!$A281, 'Full set Core Client Indicator'!$A$3:$A$351, 0), MATCH(Selection_Hide2!N$5, 'Full set Core Client Indicator'!$A$3:$AB$3, 0))), \"\")","v":""},{"$f":"IF(N281<>\"\", IF(INDEX('Full set Core Client Indicator'!$A$3:$AB$351, MATCH(Selection_Hide2!$A281, 'Full set Core Client Indicator'!$A$3:$A$351, 0), MATCH(Selection_Hide2!O$5, 'Full set Core Client Indicator'!$A$3:$AB$3, 0))=\"\", \"\",  INDEX('Full set Core Client Indicator'!$A$3:$AB$351, MATCH(Selection_Hide2!$A281, 'Full set Core Client Indicator'!$A$3:$A$351, 0), MATCH(Selection_Hide2!O$5, 'Full set Core Client Indicator'!$A$3:$AB$3, 0))), \"\")","v":""},{"$f":"IF(O281<>\"\", IF(INDEX('Full set Core Client Indicator'!$A$3:$AB$351, MATCH(Selection_Hide2!$A281, 'Full set Core Client Indicator'!$A$3:$A$351, 0), MATCH(Selection_Hide2!P$5, 'Full set Core Client Indicator'!$A$3:$AB$3, 0))=\"\", \"\",  INDEX('Full set Core Client Indicator'!$A$3:$AB$351, MATCH(Selection_Hide2!$A281, 'Full set Core Client Indicator'!$A$3:$A$351, 0), MATCH(Selection_Hide2!P$5, 'Full set Core Client Indicator'!$A$3:$AB$3, 0))), \"\")","v":""},{"$f":"IF(P281<>\"\", IF(INDEX('Full set Core Client Indicator'!$A$3:$AB$351, MATCH(Selection_Hide2!$A281, 'Full set Core Client Indicator'!$A$3:$A$351, 0), MATCH(Selection_Hide2!Q$5, 'Full set Core Client Indicator'!$A$3:$AB$3, 0))=\"\", \"\",  INDEX('Full set Core Client Indicator'!$A$3:$AB$351, MATCH(Selection_Hide2!$A281, 'Full set Core Client Indicator'!$A$3:$A$351, 0), MATCH(Selection_Hide2!Q$5, 'Full set Core Client Indicator'!$A$3:$AB$3, 0))), \"\")","v":""},{"$f":"IF(Q281<>\"\", IF(INDEX('Full set Core Client Indicator'!$A$3:$AB$351, MATCH(Selection_Hide2!$A281, 'Full set Core Client Indicator'!$A$3:$A$351, 0), MATCH(Selection_Hide2!R$5, 'Full set Core Client Indicator'!$A$3:$AB$3, 0))=\"\", \"\",  INDEX('Full set Core Client Indicator'!$A$3:$AB$351, MATCH(Selection_Hide2!$A281, 'Full set Core Client Indicator'!$A$3:$A$351, 0), MATCH(Selection_Hide2!R$5, 'Full set Core Client Indicator'!$A$3:$AB$3, 0))), \"\")","v":""},{"$f":"IF(R281<>\"\", IF(INDEX('Full set Core Client Indicator'!$A$3:$AB$351, MATCH(Selection_Hide2!$A281, 'Full set Core Client Indicator'!$A$3:$A$351, 0), MATCH(Selection_Hide2!S$5, 'Full set Core Client Indicator'!$A$3:$AB$3, 0))=\"\", \"\",  INDEX('Full set Core Client Indicator'!$A$3:$AB$351, MATCH(Selection_Hide2!$A281, 'Full set Core Client Indicator'!$A$3:$A$351, 0), MATCH(Selection_Hide2!S$5, 'Full set Core Client Indicator'!$A$3:$AB$3, 0))), \"\")","v":""},{"$f":"IF(S281<>\"\", IF(INDEX('Full set Core Client Indicator'!$A$3:$AB$351, MATCH(Selection_Hide2!$A281, 'Full set Core Client Indicator'!$A$3:$A$351, 0), MATCH(Selection_Hide2!T$5, 'Full set Core Client Indicator'!$A$3:$AB$3, 0))=\"\", \"\",  INDEX('Full set Core Client Indicator'!$A$3:$AB$351, MATCH(Selection_Hide2!$A281, 'Full set Core Client Indicator'!$A$3:$A$351, 0), MATCH(Selection_Hide2!T$5, 'Full set Core Client Indicator'!$A$3:$AB$3, 0))), \"\")","v":""},{"$f":"IF(T281<>\"\", IF(INDEX('Full set Core Client Indicator'!$A$3:$AB$351, MATCH(Selection_Hide2!$A281, 'Full set Core Client Indicator'!$A$3:$A$351, 0), MATCH(Selection_Hide2!U$5, 'Full set Core Client Indicator'!$A$3:$AB$3, 0))=\"\", \"\",  INDEX('Full set Core Client Indicator'!$A$3:$AB$351, MATCH(Selection_Hide2!$A281, 'Full set Core Client Indicator'!$A$3:$A$351, 0), MATCH(Selection_Hide2!U$5, 'Full set Core Client Indicator'!$A$3:$AB$3, 0))), \"\")","v":""},{"$f":"IF(U281<>\"\", IF(INDEX('Full set Core Client Indicator'!$A$3:$AB$351, MATCH(Selection_Hide2!$A281, 'Full set Core Client Indicator'!$A$3:$A$351, 0), MATCH(Selection_Hide2!V$5, 'Full set Core Client Indicator'!$A$3:$AB$3, 0))=\"\", \"\",  INDEX('Full set Core Client Indicator'!$A$3:$AB$351, MATCH(Selection_Hide2!$A281, 'Full set Core Client Indicator'!$A$3:$A$351, 0), MATCH(Selection_Hide2!V$5, 'Full set Core Client Indicator'!$A$3:$AB$3, 0))), \"\")","v":""},{"$f":"IF(V281<>\"\", IF(INDEX('Full set Core Client Indicator'!$A$3:$AB$351, MATCH(Selection_Hide2!$A281, 'Full set Core Client Indicator'!$A$3:$A$351, 0), MATCH(Selection_Hide2!W$5, 'Full set Core Client Indicator'!$A$3:$AB$3, 0))=\"\", \"\",  INDEX('Full set Core Client Indicator'!$A$3:$AB$351, MATCH(Selection_Hide2!$A281, 'Full set Core Client Indicator'!$A$3:$A$351, 0), MATCH(Selection_Hide2!W$5, 'Full set Core Client Indicator'!$A$3:$AB$3, 0))), \"\")","v":""},{"$f":"IF(W281<>\"\", IF(INDEX('Full set Core Client Indicator'!$A$3:$AB$351, MATCH(Selection_Hide2!$A281, 'Full set Core Client Indicator'!$A$3:$A$351, 0), MATCH(Selection_Hide2!X$5, 'Full set Core Client Indicator'!$A$3:$AB$3, 0))=\"\", \"\",  INDEX('Full set Core Client Indicator'!$A$3:$AB$351, MATCH(Selection_Hide2!$A281, 'Full set Core Client Indicator'!$A$3:$A$351, 0), MATCH(Selection_Hide2!X$5, 'Full set Core Client Indicator'!$A$3:$AB$3, 0))), \"\")","v":""},{"$f":"IF(X281<>\"\", IF(INDEX('Full set Core Client Indicator'!$A$3:$AB$351, MATCH(Selection_Hide2!$A281, 'Full set Core Client Indicator'!$A$3:$A$351, 0), MATCH(Selection_Hide2!Y$5, 'Full set Core Client Indicator'!$A$3:$AB$3, 0))=\"\", \"\",  INDEX('Full set Core Client Indicator'!$A$3:$AB$351, MATCH(Selection_Hide2!$A281, 'Full set Core Client Indicator'!$A$3:$A$351, 0), MATCH(Selection_Hide2!Y$5, 'Full set Core Client Indicator'!$A$3:$AB$3, 0))), \"\")","v":""},{"$f":"IF(Y281<>\"\", IF(INDEX('Full set Core Client Indicator'!$A$3:$AB$351, MATCH(Selection_Hide2!$A281, 'Full set Core Client Indicator'!$A$3:$A$351, 0), MATCH(Selection_Hide2!Z$5, 'Full set Core Client Indicator'!$A$3:$AB$3, 0))=\"\", \"\",  INDEX('Full set Core Client Indicator'!$A$3:$AB$351, MATCH(Selection_Hide2!$A281, 'Full set Core Client Indicator'!$A$3:$A$351, 0), MATCH(Selection_Hide2!Z$5, 'Full set Core Client Indicator'!$A$3:$AB$3, 0))), \"\")","v":""},{"$f":"IF(Z281<>\"\", IF(INDEX('Full set Core Client Indicator'!$A$3:$AB$351, MATCH(Selection_Hide2!$A281, 'Full set Core Client Indicator'!$A$3:$A$351, 0), MATCH(Selection_Hide2!AA$5, 'Full set Core Client Indicator'!$A$3:$AB$3, 0))=\"\", \"\",  INDEX('Full set Core Client Indicator'!$A$3:$AB$351, MATCH(Selection_Hide2!$A281, 'Full set Core Client Indicator'!$A$3:$A$351, 0), MATCH(Selection_Hide2!AA$5, 'Full set Core Client Indicator'!$A$3:$AB$3, 0))), \"\")","v":""},{"$f":"IF(AA281<>\"\", IF(INDEX('Full set Core Client Indicator'!$A$3:$AB$351, MATCH(Selection_Hide2!$A281, 'Full set Core Client Indicator'!$A$3:$A$351, 0), MATCH(Selection_Hide2!AB$5, 'Full set Core Client Indicator'!$A$3:$AB$3, 0))=\"\", \"\",  INDEX('Full set Core Client Indicator'!$A$3:$AB$351, MATCH(Selection_Hide2!$A281, 'Full set Core Client Indicator'!$A$3:$A$351, 0), MATCH(Selection_Hide2!AB$5, 'Full set Core Client Indicator'!$A$3:$AB$3, 0))), \"\")","v":""}]
[{"$f":"IF(AND(Selection_Hide1!C280<>0, Selection_Hide1!C280<>\"Grand Total\"), Selection_Hide1!C280, \"\")","v":""},{"$f":"IF(A282<>\"\", IF(INDEX('Full set Core Client Indicator'!$A$3:$AB$351, MATCH(Selection_Hide2!$A282, 'Full set Core Client Indicator'!$A$3:$A$351, 0), MATCH(Selection_Hide2!B$5, 'Full set Core Client Indicator'!$A$3:$AB$3, 0))=\"\", \"\",  INDEX('Full set Core Client Indicator'!$A$3:$AB$351, MATCH(Selection_Hide2!$A282, 'Full set Core Client Indicator'!$A$3:$A$351, 0), MATCH(Selection_Hide2!B$5, 'Full set Core Client Indicator'!$A$3:$AB$3, 0))), \"\")","v":""},{"$f":"IF(B282<>\"\", IF(INDEX('Full set Core Client Indicator'!$A$3:$AB$351, MATCH(Selection_Hide2!$A282, 'Full set Core Client Indicator'!$A$3:$A$351, 0), MATCH(Selection_Hide2!C$5, 'Full set Core Client Indicator'!$A$3:$AB$3, 0))=\"\", \"\",  INDEX('Full set Core Client Indicator'!$A$3:$AB$351, MATCH(Selection_Hide2!$A282, 'Full set Core Client Indicator'!$A$3:$A$351, 0), MATCH(Selection_Hide2!C$5, 'Full set Core Client Indicator'!$A$3:$AB$3, 0))), \"\")","v":""},{"$f":"IF(C282<>\"\", IF(INDEX('Full set Core Client Indicator'!$A$3:$AB$351, MATCH(Selection_Hide2!$A282, 'Full set Core Client Indicator'!$A$3:$A$351, 0), MATCH(Selection_Hide2!D$5, 'Full set Core Client Indicator'!$A$3:$AB$3, 0))=\"\", \"\",  INDEX('Full set Core Client Indicator'!$A$3:$AB$351, MATCH(Selection_Hide2!$A282, 'Full set Core Client Indicator'!$A$3:$A$351, 0), MATCH(Selection_Hide2!D$5, 'Full set Core Client Indicator'!$A$3:$AB$3, 0))), \"\")","v":""},{"$f":"IF(D282<>\"\", IF(INDEX('Full set Core Client Indicator'!$A$3:$AB$351, MATCH(Selection_Hide2!$A282, 'Full set Core Client Indicator'!$A$3:$A$351, 0), MATCH(Selection_Hide2!E$5, 'Full set Core Client Indicator'!$A$3:$AB$3, 0))=\"\", \"\",  INDEX('Full set Core Client Indicator'!$A$3:$AB$351, MATCH(Selection_Hide2!$A282, 'Full set Core Client Indicator'!$A$3:$A$351, 0), MATCH(Selection_Hide2!E$5, 'Full set Core Client Indicator'!$A$3:$AB$3, 0))), \"\")","v":""},{"$f":"IF(E282<>\"\", IF(INDEX('Full set Core Client Indicator'!$A$3:$AB$351, MATCH(Selection_Hide2!$A282, 'Full set Core Client Indicator'!$A$3:$A$351, 0), MATCH(Selection_Hide2!F$5, 'Full set Core Client Indicator'!$A$3:$AB$3, 0))=\"\", \"\",  INDEX('Full set Core Client Indicator'!$A$3:$AB$351, MATCH(Selection_Hide2!$A282, 'Full set Core Client Indicator'!$A$3:$A$351, 0), MATCH(Selection_Hide2!F$5, 'Full set Core Client Indicator'!$A$3:$AB$3, 0))), \"\")","v":""},{"$f":"IF(F282<>\"\", IF(INDEX('Full set Core Client Indicator'!$A$3:$AB$351, MATCH(Selection_Hide2!$A282, 'Full set Core Client Indicator'!$A$3:$A$351, 0), MATCH(Selection_Hide2!G$5, 'Full set Core Client Indicator'!$A$3:$AB$3, 0))=\"\", \"\",  INDEX('Full set Core Client Indicator'!$A$3:$AB$351, MATCH(Selection_Hide2!$A282, 'Full set Core Client Indicator'!$A$3:$A$351, 0), MATCH(Selection_Hide2!G$5, 'Full set Core Client Indicator'!$A$3:$AB$3, 0))), \"\")","v":""},{"$f":"IF(G282<>\"\", IF(INDEX('Full set Core Client Indicator'!$A$3:$AB$351, MATCH(Selection_Hide2!$A282, 'Full set Core Client Indicator'!$A$3:$A$351, 0), MATCH(Selection_Hide2!H$5, 'Full set Core Client Indicator'!$A$3:$AB$3, 0))=\"\", \"\",  INDEX('Full set Core Client Indicator'!$A$3:$AB$351, MATCH(Selection_Hide2!$A282, 'Full set Core Client Indicator'!$A$3:$A$351, 0), MATCH(Selection_Hide2!H$5, 'Full set Core Client Indicator'!$A$3:$AB$3, 0))), \"\")","v":""},{"$f":"IF(H282<>\"\", IF(INDEX('Full set Core Client Indicator'!$A$3:$AB$351, MATCH(Selection_Hide2!$A282, 'Full set Core Client Indicator'!$A$3:$A$351, 0), MATCH(Selection_Hide2!I$5, 'Full set Core Client Indicator'!$A$3:$AB$3, 0))=\"\", \"\",  INDEX('Full set Core Client Indicator'!$A$3:$AB$351, MATCH(Selection_Hide2!$A282, 'Full set Core Client Indicator'!$A$3:$A$351, 0), MATCH(Selection_Hide2!I$5, 'Full set Core Client Indicator'!$A$3:$AB$3, 0))), \"\")","v":""},{"$f":"IF(I282<>\"\", IF(INDEX('Full set Core Client Indicator'!$A$3:$AB$351, MATCH(Selection_Hide2!$A282, 'Full set Core Client Indicator'!$A$3:$A$351, 0), MATCH(Selection_Hide2!J$5, 'Full set Core Client Indicator'!$A$3:$AB$3, 0))=\"\", \"\",  INDEX('Full set Core Client Indicator'!$A$3:$AB$351, MATCH(Selection_Hide2!$A282, 'Full set Core Client Indicator'!$A$3:$A$351, 0), MATCH(Selection_Hide2!J$5, 'Full set Core Client Indicator'!$A$3:$AB$3, 0))), \"\")","v":""},{"$f":"IF(J282<>\"\", IF(INDEX('Full set Core Client Indicator'!$A$3:$AB$351, MATCH(Selection_Hide2!$A282, 'Full set Core Client Indicator'!$A$3:$A$351, 0), MATCH(Selection_Hide2!K$5, 'Full set Core Client Indicator'!$A$3:$AB$3, 0))=\"\", \"\",  INDEX('Full set Core Client Indicator'!$A$3:$AB$351, MATCH(Selection_Hide2!$A282, 'Full set Core Client Indicator'!$A$3:$A$351, 0), MATCH(Selection_Hide2!K$5, 'Full set Core Client Indicator'!$A$3:$AB$3, 0))), \"\")","v":""},{"$f":"IF(K282<>\"\", IF(INDEX('Full set Core Client Indicator'!$A$3:$AB$351, MATCH(Selection_Hide2!$A282, 'Full set Core Client Indicator'!$A$3:$A$351, 0), MATCH(Selection_Hide2!L$5, 'Full set Core Client Indicator'!$A$3:$AB$3, 0))=\"\", \"\",  INDEX('Full set Core Client Indicator'!$A$3:$AB$351, MATCH(Selection_Hide2!$A282, 'Full set Core Client Indicator'!$A$3:$A$351, 0), MATCH(Selection_Hide2!L$5, 'Full set Core Client Indicator'!$A$3:$AB$3, 0))), \"\")","v":""},{"$f":"IF(L282<>\"\", IF(INDEX('Full set Core Client Indicator'!$A$3:$AB$351, MATCH(Selection_Hide2!$A282, 'Full set Core Client Indicator'!$A$3:$A$351, 0), MATCH(Selection_Hide2!M$5, 'Full set Core Client Indicator'!$A$3:$AB$3, 0))=\"\", \"\",  INDEX('Full set Core Client Indicator'!$A$3:$AB$351, MATCH(Selection_Hide2!$A282, 'Full set Core Client Indicator'!$A$3:$A$351, 0), MATCH(Selection_Hide2!M$5, 'Full set Core Client Indicator'!$A$3:$AB$3, 0))), \"\")","v":""},{"$f":"IF(M282<>\"\", IF(INDEX('Full set Core Client Indicator'!$A$3:$AB$351, MATCH(Selection_Hide2!$A282, 'Full set Core Client Indicator'!$A$3:$A$351, 0), MATCH(Selection_Hide2!N$5, 'Full set Core Client Indicator'!$A$3:$AB$3, 0))=\"\", \"\",  INDEX('Full set Core Client Indicator'!$A$3:$AB$351, MATCH(Selection_Hide2!$A282, 'Full set Core Client Indicator'!$A$3:$A$351, 0), MATCH(Selection_Hide2!N$5, 'Full set Core Client Indicator'!$A$3:$AB$3, 0))), \"\")","v":""},{"$f":"IF(N282<>\"\", IF(INDEX('Full set Core Client Indicator'!$A$3:$AB$351, MATCH(Selection_Hide2!$A282, 'Full set Core Client Indicator'!$A$3:$A$351, 0), MATCH(Selection_Hide2!O$5, 'Full set Core Client Indicator'!$A$3:$AB$3, 0))=\"\", \"\",  INDEX('Full set Core Client Indicator'!$A$3:$AB$351, MATCH(Selection_Hide2!$A282, 'Full set Core Client Indicator'!$A$3:$A$351, 0), MATCH(Selection_Hide2!O$5, 'Full set Core Client Indicator'!$A$3:$AB$3, 0))), \"\")","v":""},{"$f":"IF(O282<>\"\", IF(INDEX('Full set Core Client Indicator'!$A$3:$AB$351, MATCH(Selection_Hide2!$A282, 'Full set Core Client Indicator'!$A$3:$A$351, 0), MATCH(Selection_Hide2!P$5, 'Full set Core Client Indicator'!$A$3:$AB$3, 0))=\"\", \"\",  INDEX('Full set Core Client Indicator'!$A$3:$AB$351, MATCH(Selection_Hide2!$A282, 'Full set Core Client Indicator'!$A$3:$A$351, 0), MATCH(Selection_Hide2!P$5, 'Full set Core Client Indicator'!$A$3:$AB$3, 0))), \"\")","v":""},{"$f":"IF(P282<>\"\", IF(INDEX('Full set Core Client Indicator'!$A$3:$AB$351, MATCH(Selection_Hide2!$A282, 'Full set Core Client Indicator'!$A$3:$A$351, 0), MATCH(Selection_Hide2!Q$5, 'Full set Core Client Indicator'!$A$3:$AB$3, 0))=\"\", \"\",  INDEX('Full set Core Client Indicator'!$A$3:$AB$351, MATCH(Selection_Hide2!$A282, 'Full set Core Client Indicator'!$A$3:$A$351, 0), MATCH(Selection_Hide2!Q$5, 'Full set Core Client Indicator'!$A$3:$AB$3, 0))), \"\")","v":""},{"$f":"IF(Q282<>\"\", IF(INDEX('Full set Core Client Indicator'!$A$3:$AB$351, MATCH(Selection_Hide2!$A282, 'Full set Core Client Indicator'!$A$3:$A$351, 0), MATCH(Selection_Hide2!R$5, 'Full set Core Client Indicator'!$A$3:$AB$3, 0))=\"\", \"\",  INDEX('Full set Core Client Indicator'!$A$3:$AB$351, MATCH(Selection_Hide2!$A282, 'Full set Core Client Indicator'!$A$3:$A$351, 0), MATCH(Selection_Hide2!R$5, 'Full set Core Client Indicator'!$A$3:$AB$3, 0))), \"\")","v":""},{"$f":"IF(R282<>\"\", IF(INDEX('Full set Core Client Indicator'!$A$3:$AB$351, MATCH(Selection_Hide2!$A282, 'Full set Core Client Indicator'!$A$3:$A$351, 0), MATCH(Selection_Hide2!S$5, 'Full set Core Client Indicator'!$A$3:$AB$3, 0))=\"\", \"\",  INDEX('Full set Core Client Indicator'!$A$3:$AB$351, MATCH(Selection_Hide2!$A282, 'Full set Core Client Indicator'!$A$3:$A$351, 0), MATCH(Selection_Hide2!S$5, 'Full set Core Client Indicator'!$A$3:$AB$3, 0))), \"\")","v":""},{"$f":"IF(S282<>\"\", IF(INDEX('Full set Core Client Indicator'!$A$3:$AB$351, MATCH(Selection_Hide2!$A282, 'Full set Core Client Indicator'!$A$3:$A$351, 0), MATCH(Selection_Hide2!T$5, 'Full set Core Client Indicator'!$A$3:$AB$3, 0))=\"\", \"\",  INDEX('Full set Core Client Indicator'!$A$3:$AB$351, MATCH(Selection_Hide2!$A282, 'Full set Core Client Indicator'!$A$3:$A$351, 0), MATCH(Selection_Hide2!T$5, 'Full set Core Client Indicator'!$A$3:$AB$3, 0))), \"\")","v":""},{"$f":"IF(T282<>\"\", IF(INDEX('Full set Core Client Indicator'!$A$3:$AB$351, MATCH(Selection_Hide2!$A282, 'Full set Core Client Indicator'!$A$3:$A$351, 0), MATCH(Selection_Hide2!U$5, 'Full set Core Client Indicator'!$A$3:$AB$3, 0))=\"\", \"\",  INDEX('Full set Core Client Indicator'!$A$3:$AB$351, MATCH(Selection_Hide2!$A282, 'Full set Core Client Indicator'!$A$3:$A$351, 0), MATCH(Selection_Hide2!U$5, 'Full set Core Client Indicator'!$A$3:$AB$3, 0))), \"\")","v":""},{"$f":"IF(U282<>\"\", IF(INDEX('Full set Core Client Indicator'!$A$3:$AB$351, MATCH(Selection_Hide2!$A282, 'Full set Core Client Indicator'!$A$3:$A$351, 0), MATCH(Selection_Hide2!V$5, 'Full set Core Client Indicator'!$A$3:$AB$3, 0))=\"\", \"\",  INDEX('Full set Core Client Indicator'!$A$3:$AB$351, MATCH(Selection_Hide2!$A282, 'Full set Core Client Indicator'!$A$3:$A$351, 0), MATCH(Selection_Hide2!V$5, 'Full set Core Client Indicator'!$A$3:$AB$3, 0))), \"\")","v":""},{"$f":"IF(V282<>\"\", IF(INDEX('Full set Core Client Indicator'!$A$3:$AB$351, MATCH(Selection_Hide2!$A282, 'Full set Core Client Indicator'!$A$3:$A$351, 0), MATCH(Selection_Hide2!W$5, 'Full set Core Client Indicator'!$A$3:$AB$3, 0))=\"\", \"\",  INDEX('Full set Core Client Indicator'!$A$3:$AB$351, MATCH(Selection_Hide2!$A282, 'Full set Core Client Indicator'!$A$3:$A$351, 0), MATCH(Selection_Hide2!W$5, 'Full set Core Client Indicator'!$A$3:$AB$3, 0))), \"\")","v":""},{"$f":"IF(W282<>\"\", IF(INDEX('Full set Core Client Indicator'!$A$3:$AB$351, MATCH(Selection_Hide2!$A282, 'Full set Core Client Indicator'!$A$3:$A$351, 0), MATCH(Selection_Hide2!X$5, 'Full set Core Client Indicator'!$A$3:$AB$3, 0))=\"\", \"\",  INDEX('Full set Core Client Indicator'!$A$3:$AB$351, MATCH(Selection_Hide2!$A282, 'Full set Core Client Indicator'!$A$3:$A$351, 0), MATCH(Selection_Hide2!X$5, 'Full set Core Client Indicator'!$A$3:$AB$3, 0))), \"\")","v":""},{"$f":"IF(X282<>\"\", IF(INDEX('Full set Core Client Indicator'!$A$3:$AB$351, MATCH(Selection_Hide2!$A282, 'Full set Core Client Indicator'!$A$3:$A$351, 0), MATCH(Selection_Hide2!Y$5, 'Full set Core Client Indicator'!$A$3:$AB$3, 0))=\"\", \"\",  INDEX('Full set Core Client Indicator'!$A$3:$AB$351, MATCH(Selection_Hide2!$A282, 'Full set Core Client Indicator'!$A$3:$A$351, 0), MATCH(Selection_Hide2!Y$5, 'Full set Core Client Indicator'!$A$3:$AB$3, 0))), \"\")","v":""},{"$f":"IF(Y282<>\"\", IF(INDEX('Full set Core Client Indicator'!$A$3:$AB$351, MATCH(Selection_Hide2!$A282, 'Full set Core Client Indicator'!$A$3:$A$351, 0), MATCH(Selection_Hide2!Z$5, 'Full set Core Client Indicator'!$A$3:$AB$3, 0))=\"\", \"\",  INDEX('Full set Core Client Indicator'!$A$3:$AB$351, MATCH(Selection_Hide2!$A282, 'Full set Core Client Indicator'!$A$3:$A$351, 0), MATCH(Selection_Hide2!Z$5, 'Full set Core Client Indicator'!$A$3:$AB$3, 0))), \"\")","v":""},{"$f":"IF(Z282<>\"\", IF(INDEX('Full set Core Client Indicator'!$A$3:$AB$351, MATCH(Selection_Hide2!$A282, 'Full set Core Client Indicator'!$A$3:$A$351, 0), MATCH(Selection_Hide2!AA$5, 'Full set Core Client Indicator'!$A$3:$AB$3, 0))=\"\", \"\",  INDEX('Full set Core Client Indicator'!$A$3:$AB$351, MATCH(Selection_Hide2!$A282, 'Full set Core Client Indicator'!$A$3:$A$351, 0), MATCH(Selection_Hide2!AA$5, 'Full set Core Client Indicator'!$A$3:$AB$3, 0))), \"\")","v":""},{"$f":"IF(AA282<>\"\", IF(INDEX('Full set Core Client Indicator'!$A$3:$AB$351, MATCH(Selection_Hide2!$A282, 'Full set Core Client Indicator'!$A$3:$A$351, 0), MATCH(Selection_Hide2!AB$5, 'Full set Core Client Indicator'!$A$3:$AB$3, 0))=\"\", \"\",  INDEX('Full set Core Client Indicator'!$A$3:$AB$351, MATCH(Selection_Hide2!$A282, 'Full set Core Client Indicator'!$A$3:$A$351, 0), MATCH(Selection_Hide2!AB$5, 'Full set Core Client Indicator'!$A$3:$AB$3, 0))), \"\")","v":""}]
[{"$f":"IF(AND(Selection_Hide1!C281<>0, Selection_Hide1!C281<>\"Grand Total\"), Selection_Hide1!C281, \"\")","v":""},{"$f":"IF(A283<>\"\", IF(INDEX('Full set Core Client Indicator'!$A$3:$AB$351, MATCH(Selection_Hide2!$A283, 'Full set Core Client Indicator'!$A$3:$A$351, 0), MATCH(Selection_Hide2!B$5, 'Full set Core Client Indicator'!$A$3:$AB$3, 0))=\"\", \"\",  INDEX('Full set Core Client Indicator'!$A$3:$AB$351, MATCH(Selection_Hide2!$A283, 'Full set Core Client Indicator'!$A$3:$A$351, 0), MATCH(Selection_Hide2!B$5, 'Full set Core Client Indicator'!$A$3:$AB$3, 0))), \"\")","v":""},{"$f":"IF(B283<>\"\", IF(INDEX('Full set Core Client Indicator'!$A$3:$AB$351, MATCH(Selection_Hide2!$A283, 'Full set Core Client Indicator'!$A$3:$A$351, 0), MATCH(Selection_Hide2!C$5, 'Full set Core Client Indicator'!$A$3:$AB$3, 0))=\"\", \"\",  INDEX('Full set Core Client Indicator'!$A$3:$AB$351, MATCH(Selection_Hide2!$A283, 'Full set Core Client Indicator'!$A$3:$A$351, 0), MATCH(Selection_Hide2!C$5, 'Full set Core Client Indicator'!$A$3:$AB$3, 0))), \"\")","v":""},{"$f":"IF(C283<>\"\", IF(INDEX('Full set Core Client Indicator'!$A$3:$AB$351, MATCH(Selection_Hide2!$A283, 'Full set Core Client Indicator'!$A$3:$A$351, 0), MATCH(Selection_Hide2!D$5, 'Full set Core Client Indicator'!$A$3:$AB$3, 0))=\"\", \"\",  INDEX('Full set Core Client Indicator'!$A$3:$AB$351, MATCH(Selection_Hide2!$A283, 'Full set Core Client Indicator'!$A$3:$A$351, 0), MATCH(Selection_Hide2!D$5, 'Full set Core Client Indicator'!$A$3:$AB$3, 0))), \"\")","v":""},{"$f":"IF(D283<>\"\", IF(INDEX('Full set Core Client Indicator'!$A$3:$AB$351, MATCH(Selection_Hide2!$A283, 'Full set Core Client Indicator'!$A$3:$A$351, 0), MATCH(Selection_Hide2!E$5, 'Full set Core Client Indicator'!$A$3:$AB$3, 0))=\"\", \"\",  INDEX('Full set Core Client Indicator'!$A$3:$AB$351, MATCH(Selection_Hide2!$A283, 'Full set Core Client Indicator'!$A$3:$A$351, 0), MATCH(Selection_Hide2!E$5, 'Full set Core Client Indicator'!$A$3:$AB$3, 0))), \"\")","v":""},{"$f":"IF(E283<>\"\", IF(INDEX('Full set Core Client Indicator'!$A$3:$AB$351, MATCH(Selection_Hide2!$A283, 'Full set Core Client Indicator'!$A$3:$A$351, 0), MATCH(Selection_Hide2!F$5, 'Full set Core Client Indicator'!$A$3:$AB$3, 0))=\"\", \"\",  INDEX('Full set Core Client Indicator'!$A$3:$AB$351, MATCH(Selection_Hide2!$A283, 'Full set Core Client Indicator'!$A$3:$A$351, 0), MATCH(Selection_Hide2!F$5, 'Full set Core Client Indicator'!$A$3:$AB$3, 0))), \"\")","v":""},{"$f":"IF(F283<>\"\", IF(INDEX('Full set Core Client Indicator'!$A$3:$AB$351, MATCH(Selection_Hide2!$A283, 'Full set Core Client Indicator'!$A$3:$A$351, 0), MATCH(Selection_Hide2!G$5, 'Full set Core Client Indicator'!$A$3:$AB$3, 0))=\"\", \"\",  INDEX('Full set Core Client Indicator'!$A$3:$AB$351, MATCH(Selection_Hide2!$A283, 'Full set Core Client Indicator'!$A$3:$A$351, 0), MATCH(Selection_Hide2!G$5, 'Full set Core Client Indicator'!$A$3:$AB$3, 0))), \"\")","v":""},{"$f":"IF(G283<>\"\", IF(INDEX('Full set Core Client Indicator'!$A$3:$AB$351, MATCH(Selection_Hide2!$A283, 'Full set Core Client Indicator'!$A$3:$A$351, 0), MATCH(Selection_Hide2!H$5, 'Full set Core Client Indicator'!$A$3:$AB$3, 0))=\"\", \"\",  INDEX('Full set Core Client Indicator'!$A$3:$AB$351, MATCH(Selection_Hide2!$A283, 'Full set Core Client Indicator'!$A$3:$A$351, 0), MATCH(Selection_Hide2!H$5, 'Full set Core Client Indicator'!$A$3:$AB$3, 0))), \"\")","v":""},{"$f":"IF(H283<>\"\", IF(INDEX('Full set Core Client Indicator'!$A$3:$AB$351, MATCH(Selection_Hide2!$A283, 'Full set Core Client Indicator'!$A$3:$A$351, 0), MATCH(Selection_Hide2!I$5, 'Full set Core Client Indicator'!$A$3:$AB$3, 0))=\"\", \"\",  INDEX('Full set Core Client Indicator'!$A$3:$AB$351, MATCH(Selection_Hide2!$A283, 'Full set Core Client Indicator'!$A$3:$A$351, 0), MATCH(Selection_Hide2!I$5, 'Full set Core Client Indicator'!$A$3:$AB$3, 0))), \"\")","v":""},{"$f":"IF(I283<>\"\", IF(INDEX('Full set Core Client Indicator'!$A$3:$AB$351, MATCH(Selection_Hide2!$A283, 'Full set Core Client Indicator'!$A$3:$A$351, 0), MATCH(Selection_Hide2!J$5, 'Full set Core Client Indicator'!$A$3:$AB$3, 0))=\"\", \"\",  INDEX('Full set Core Client Indicator'!$A$3:$AB$351, MATCH(Selection_Hide2!$A283, 'Full set Core Client Indicator'!$A$3:$A$351, 0), MATCH(Selection_Hide2!J$5, 'Full set Core Client Indicator'!$A$3:$AB$3, 0))), \"\")","v":""},{"$f":"IF(J283<>\"\", IF(INDEX('Full set Core Client Indicator'!$A$3:$AB$351, MATCH(Selection_Hide2!$A283, 'Full set Core Client Indicator'!$A$3:$A$351, 0), MATCH(Selection_Hide2!K$5, 'Full set Core Client Indicator'!$A$3:$AB$3, 0))=\"\", \"\",  INDEX('Full set Core Client Indicator'!$A$3:$AB$351, MATCH(Selection_Hide2!$A283, 'Full set Core Client Indicator'!$A$3:$A$351, 0), MATCH(Selection_Hide2!K$5, 'Full set Core Client Indicator'!$A$3:$AB$3, 0))), \"\")","v":""},{"$f":"IF(K283<>\"\", IF(INDEX('Full set Core Client Indicator'!$A$3:$AB$351, MATCH(Selection_Hide2!$A283, 'Full set Core Client Indicator'!$A$3:$A$351, 0), MATCH(Selection_Hide2!L$5, 'Full set Core Client Indicator'!$A$3:$AB$3, 0))=\"\", \"\",  INDEX('Full set Core Client Indicator'!$A$3:$AB$351, MATCH(Selection_Hide2!$A283, 'Full set Core Client Indicator'!$A$3:$A$351, 0), MATCH(Selection_Hide2!L$5, 'Full set Core Client Indicator'!$A$3:$AB$3, 0))), \"\")","v":""},{"$f":"IF(L283<>\"\", IF(INDEX('Full set Core Client Indicator'!$A$3:$AB$351, MATCH(Selection_Hide2!$A283, 'Full set Core Client Indicator'!$A$3:$A$351, 0), MATCH(Selection_Hide2!M$5, 'Full set Core Client Indicator'!$A$3:$AB$3, 0))=\"\", \"\",  INDEX('Full set Core Client Indicator'!$A$3:$AB$351, MATCH(Selection_Hide2!$A283, 'Full set Core Client Indicator'!$A$3:$A$351, 0), MATCH(Selection_Hide2!M$5, 'Full set Core Client Indicator'!$A$3:$AB$3, 0))), \"\")","v":""},{"$f":"IF(M283<>\"\", IF(INDEX('Full set Core Client Indicator'!$A$3:$AB$351, MATCH(Selection_Hide2!$A283, 'Full set Core Client Indicator'!$A$3:$A$351, 0), MATCH(Selection_Hide2!N$5, 'Full set Core Client Indicator'!$A$3:$AB$3, 0))=\"\", \"\",  INDEX('Full set Core Client Indicator'!$A$3:$AB$351, MATCH(Selection_Hide2!$A283, 'Full set Core Client Indicator'!$A$3:$A$351, 0), MATCH(Selection_Hide2!N$5, 'Full set Core Client Indicator'!$A$3:$AB$3, 0))), \"\")","v":""},{"$f":"IF(N283<>\"\", IF(INDEX('Full set Core Client Indicator'!$A$3:$AB$351, MATCH(Selection_Hide2!$A283, 'Full set Core Client Indicator'!$A$3:$A$351, 0), MATCH(Selection_Hide2!O$5, 'Full set Core Client Indicator'!$A$3:$AB$3, 0))=\"\", \"\",  INDEX('Full set Core Client Indicator'!$A$3:$AB$351, MATCH(Selection_Hide2!$A283, 'Full set Core Client Indicator'!$A$3:$A$351, 0), MATCH(Selection_Hide2!O$5, 'Full set Core Client Indicator'!$A$3:$AB$3, 0))), \"\")","v":""},{"$f":"IF(O283<>\"\", IF(INDEX('Full set Core Client Indicator'!$A$3:$AB$351, MATCH(Selection_Hide2!$A283, 'Full set Core Client Indicator'!$A$3:$A$351, 0), MATCH(Selection_Hide2!P$5, 'Full set Core Client Indicator'!$A$3:$AB$3, 0))=\"\", \"\",  INDEX('Full set Core Client Indicator'!$A$3:$AB$351, MATCH(Selection_Hide2!$A283, 'Full set Core Client Indicator'!$A$3:$A$351, 0), MATCH(Selection_Hide2!P$5, 'Full set Core Client Indicator'!$A$3:$AB$3, 0))), \"\")","v":""},{"$f":"IF(P283<>\"\", IF(INDEX('Full set Core Client Indicator'!$A$3:$AB$351, MATCH(Selection_Hide2!$A283, 'Full set Core Client Indicator'!$A$3:$A$351, 0), MATCH(Selection_Hide2!Q$5, 'Full set Core Client Indicator'!$A$3:$AB$3, 0))=\"\", \"\",  INDEX('Full set Core Client Indicator'!$A$3:$AB$351, MATCH(Selection_Hide2!$A283, 'Full set Core Client Indicator'!$A$3:$A$351, 0), MATCH(Selection_Hide2!Q$5, 'Full set Core Client Indicator'!$A$3:$AB$3, 0))), \"\")","v":""},{"$f":"IF(Q283<>\"\", IF(INDEX('Full set Core Client Indicator'!$A$3:$AB$351, MATCH(Selection_Hide2!$A283, 'Full set Core Client Indicator'!$A$3:$A$351, 0), MATCH(Selection_Hide2!R$5, 'Full set Core Client Indicator'!$A$3:$AB$3, 0))=\"\", \"\",  INDEX('Full set Core Client Indicator'!$A$3:$AB$351, MATCH(Selection_Hide2!$A283, 'Full set Core Client Indicator'!$A$3:$A$351, 0), MATCH(Selection_Hide2!R$5, 'Full set Core Client Indicator'!$A$3:$AB$3, 0))), \"\")","v":""},{"$f":"IF(R283<>\"\", IF(INDEX('Full set Core Client Indicator'!$A$3:$AB$351, MATCH(Selection_Hide2!$A283, 'Full set Core Client Indicator'!$A$3:$A$351, 0), MATCH(Selection_Hide2!S$5, 'Full set Core Client Indicator'!$A$3:$AB$3, 0))=\"\", \"\",  INDEX('Full set Core Client Indicator'!$A$3:$AB$351, MATCH(Selection_Hide2!$A283, 'Full set Core Client Indicator'!$A$3:$A$351, 0), MATCH(Selection_Hide2!S$5, 'Full set Core Client Indicator'!$A$3:$AB$3, 0))), \"\")","v":""},{"$f":"IF(S283<>\"\", IF(INDEX('Full set Core Client Indicator'!$A$3:$AB$351, MATCH(Selection_Hide2!$A283, 'Full set Core Client Indicator'!$A$3:$A$351, 0), MATCH(Selection_Hide2!T$5, 'Full set Core Client Indicator'!$A$3:$AB$3, 0))=\"\", \"\",  INDEX('Full set Core Client Indicator'!$A$3:$AB$351, MATCH(Selection_Hide2!$A283, 'Full set Core Client Indicator'!$A$3:$A$351, 0), MATCH(Selection_Hide2!T$5, 'Full set Core Client Indicator'!$A$3:$AB$3, 0))), \"\")","v":""},{"$f":"IF(T283<>\"\", IF(INDEX('Full set Core Client Indicator'!$A$3:$AB$351, MATCH(Selection_Hide2!$A283, 'Full set Core Client Indicator'!$A$3:$A$351, 0), MATCH(Selection_Hide2!U$5, 'Full set Core Client Indicator'!$A$3:$AB$3, 0))=\"\", \"\",  INDEX('Full set Core Client Indicator'!$A$3:$AB$351, MATCH(Selection_Hide2!$A283, 'Full set Core Client Indicator'!$A$3:$A$351, 0), MATCH(Selection_Hide2!U$5, 'Full set Core Client Indicator'!$A$3:$AB$3, 0))), \"\")","v":""},{"$f":"IF(U283<>\"\", IF(INDEX('Full set Core Client Indicator'!$A$3:$AB$351, MATCH(Selection_Hide2!$A283, 'Full set Core Client Indicator'!$A$3:$A$351, 0), MATCH(Selection_Hide2!V$5, 'Full set Core Client Indicator'!$A$3:$AB$3, 0))=\"\", \"\",  INDEX('Full set Core Client Indicator'!$A$3:$AB$351, MATCH(Selection_Hide2!$A283, 'Full set Core Client Indicator'!$A$3:$A$351, 0), MATCH(Selection_Hide2!V$5, 'Full set Core Client Indicator'!$A$3:$AB$3, 0))), \"\")","v":""},{"$f":"IF(V283<>\"\", IF(INDEX('Full set Core Client Indicator'!$A$3:$AB$351, MATCH(Selection_Hide2!$A283, 'Full set Core Client Indicator'!$A$3:$A$351, 0), MATCH(Selection_Hide2!W$5, 'Full set Core Client Indicator'!$A$3:$AB$3, 0))=\"\", \"\",  INDEX('Full set Core Client Indicator'!$A$3:$AB$351, MATCH(Selection_Hide2!$A283, 'Full set Core Client Indicator'!$A$3:$A$351, 0), MATCH(Selection_Hide2!W$5, 'Full set Core Client Indicator'!$A$3:$AB$3, 0))), \"\")","v":""},{"$f":"IF(W283<>\"\", IF(INDEX('Full set Core Client Indicator'!$A$3:$AB$351, MATCH(Selection_Hide2!$A283, 'Full set Core Client Indicator'!$A$3:$A$351, 0), MATCH(Selection_Hide2!X$5, 'Full set Core Client Indicator'!$A$3:$AB$3, 0))=\"\", \"\",  INDEX('Full set Core Client Indicator'!$A$3:$AB$351, MATCH(Selection_Hide2!$A283, 'Full set Core Client Indicator'!$A$3:$A$351, 0), MATCH(Selection_Hide2!X$5, 'Full set Core Client Indicator'!$A$3:$AB$3, 0))), \"\")","v":""},{"$f":"IF(X283<>\"\", IF(INDEX('Full set Core Client Indicator'!$A$3:$AB$351, MATCH(Selection_Hide2!$A283, 'Full set Core Client Indicator'!$A$3:$A$351, 0), MATCH(Selection_Hide2!Y$5, 'Full set Core Client Indicator'!$A$3:$AB$3, 0))=\"\", \"\",  INDEX('Full set Core Client Indicator'!$A$3:$AB$351, MATCH(Selection_Hide2!$A283, 'Full set Core Client Indicator'!$A$3:$A$351, 0), MATCH(Selection_Hide2!Y$5, 'Full set Core Client Indicator'!$A$3:$AB$3, 0))), \"\")","v":""},{"$f":"IF(Y283<>\"\", IF(INDEX('Full set Core Client Indicator'!$A$3:$AB$351, MATCH(Selection_Hide2!$A283, 'Full set Core Client Indicator'!$A$3:$A$351, 0), MATCH(Selection_Hide2!Z$5, 'Full set Core Client Indicator'!$A$3:$AB$3, 0))=\"\", \"\",  INDEX('Full set Core Client Indicator'!$A$3:$AB$351, MATCH(Selection_Hide2!$A283, 'Full set Core Client Indicator'!$A$3:$A$351, 0), MATCH(Selection_Hide2!Z$5, 'Full set Core Client Indicator'!$A$3:$AB$3, 0))), \"\")","v":""},{"$f":"IF(Z283<>\"\", IF(INDEX('Full set Core Client Indicator'!$A$3:$AB$351, MATCH(Selection_Hide2!$A283, 'Full set Core Client Indicator'!$A$3:$A$351, 0), MATCH(Selection_Hide2!AA$5, 'Full set Core Client Indicator'!$A$3:$AB$3, 0))=\"\", \"\",  INDEX('Full set Core Client Indicator'!$A$3:$AB$351, MATCH(Selection_Hide2!$A283, 'Full set Core Client Indicator'!$A$3:$A$351, 0), MATCH(Selection_Hide2!AA$5, 'Full set Core Client Indicator'!$A$3:$AB$3, 0))), \"\")","v":""},{"$f":"IF(AA283<>\"\", IF(INDEX('Full set Core Client Indicator'!$A$3:$AB$351, MATCH(Selection_Hide2!$A283, 'Full set Core Client Indicator'!$A$3:$A$351, 0), MATCH(Selection_Hide2!AB$5, 'Full set Core Client Indicator'!$A$3:$AB$3, 0))=\"\", \"\",  INDEX('Full set Core Client Indicator'!$A$3:$AB$351, MATCH(Selection_Hide2!$A283, 'Full set Core Client Indicator'!$A$3:$A$351, 0), MATCH(Selection_Hide2!AB$5, 'Full set Core Client Indicator'!$A$3:$AB$3, 0))), \"\")","v":""}]
[{"$f":"IF(AND(Selection_Hide1!C282<>0, Selection_Hide1!C282<>\"Grand Total\"), Selection_Hide1!C282, \"\")","v":""},{"$f":"IF(A284<>\"\", IF(INDEX('Full set Core Client Indicator'!$A$3:$AB$351, MATCH(Selection_Hide2!$A284, 'Full set Core Client Indicator'!$A$3:$A$351, 0), MATCH(Selection_Hide2!B$5, 'Full set Core Client Indicator'!$A$3:$AB$3, 0))=\"\", \"\",  INDEX('Full set Core Client Indicator'!$A$3:$AB$351, MATCH(Selection_Hide2!$A284, 'Full set Core Client Indicator'!$A$3:$A$351, 0), MATCH(Selection_Hide2!B$5, 'Full set Core Client Indicator'!$A$3:$AB$3, 0))), \"\")","v":""},{"$f":"IF(B284<>\"\", IF(INDEX('Full set Core Client Indicator'!$A$3:$AB$351, MATCH(Selection_Hide2!$A284, 'Full set Core Client Indicator'!$A$3:$A$351, 0), MATCH(Selection_Hide2!C$5, 'Full set Core Client Indicator'!$A$3:$AB$3, 0))=\"\", \"\",  INDEX('Full set Core Client Indicator'!$A$3:$AB$351, MATCH(Selection_Hide2!$A284, 'Full set Core Client Indicator'!$A$3:$A$351, 0), MATCH(Selection_Hide2!C$5, 'Full set Core Client Indicator'!$A$3:$AB$3, 0))), \"\")","v":""},{"$f":"IF(C284<>\"\", IF(INDEX('Full set Core Client Indicator'!$A$3:$AB$351, MATCH(Selection_Hide2!$A284, 'Full set Core Client Indicator'!$A$3:$A$351, 0), MATCH(Selection_Hide2!D$5, 'Full set Core Client Indicator'!$A$3:$AB$3, 0))=\"\", \"\",  INDEX('Full set Core Client Indicator'!$A$3:$AB$351, MATCH(Selection_Hide2!$A284, 'Full set Core Client Indicator'!$A$3:$A$351, 0), MATCH(Selection_Hide2!D$5, 'Full set Core Client Indicator'!$A$3:$AB$3, 0))), \"\")","v":""},{"$f":"IF(D284<>\"\", IF(INDEX('Full set Core Client Indicator'!$A$3:$AB$351, MATCH(Selection_Hide2!$A284, 'Full set Core Client Indicator'!$A$3:$A$351, 0), MATCH(Selection_Hide2!E$5, 'Full set Core Client Indicator'!$A$3:$AB$3, 0))=\"\", \"\",  INDEX('Full set Core Client Indicator'!$A$3:$AB$351, MATCH(Selection_Hide2!$A284, 'Full set Core Client Indicator'!$A$3:$A$351, 0), MATCH(Selection_Hide2!E$5, 'Full set Core Client Indicator'!$A$3:$AB$3, 0))), \"\")","v":""},{"$f":"IF(E284<>\"\", IF(INDEX('Full set Core Client Indicator'!$A$3:$AB$351, MATCH(Selection_Hide2!$A284, 'Full set Core Client Indicator'!$A$3:$A$351, 0), MATCH(Selection_Hide2!F$5, 'Full set Core Client Indicator'!$A$3:$AB$3, 0))=\"\", \"\",  INDEX('Full set Core Client Indicator'!$A$3:$AB$351, MATCH(Selection_Hide2!$A284, 'Full set Core Client Indicator'!$A$3:$A$351, 0), MATCH(Selection_Hide2!F$5, 'Full set Core Client Indicator'!$A$3:$AB$3, 0))), \"\")","v":""},{"$f":"IF(F284<>\"\", IF(INDEX('Full set Core Client Indicator'!$A$3:$AB$351, MATCH(Selection_Hide2!$A284, 'Full set Core Client Indicator'!$A$3:$A$351, 0), MATCH(Selection_Hide2!G$5, 'Full set Core Client Indicator'!$A$3:$AB$3, 0))=\"\", \"\",  INDEX('Full set Core Client Indicator'!$A$3:$AB$351, MATCH(Selection_Hide2!$A284, 'Full set Core Client Indicator'!$A$3:$A$351, 0), MATCH(Selection_Hide2!G$5, 'Full set Core Client Indicator'!$A$3:$AB$3, 0))), \"\")","v":""},{"$f":"IF(G284<>\"\", IF(INDEX('Full set Core Client Indicator'!$A$3:$AB$351, MATCH(Selection_Hide2!$A284, 'Full set Core Client Indicator'!$A$3:$A$351, 0), MATCH(Selection_Hide2!H$5, 'Full set Core Client Indicator'!$A$3:$AB$3, 0))=\"\", \"\",  INDEX('Full set Core Client Indicator'!$A$3:$AB$351, MATCH(Selection_Hide2!$A284, 'Full set Core Client Indicator'!$A$3:$A$351, 0), MATCH(Selection_Hide2!H$5, 'Full set Core Client Indicator'!$A$3:$AB$3, 0))), \"\")","v":""},{"$f":"IF(H284<>\"\", IF(INDEX('Full set Core Client Indicator'!$A$3:$AB$351, MATCH(Selection_Hide2!$A284, 'Full set Core Client Indicator'!$A$3:$A$351, 0), MATCH(Selection_Hide2!I$5, 'Full set Core Client Indicator'!$A$3:$AB$3, 0))=\"\", \"\",  INDEX('Full set Core Client Indicator'!$A$3:$AB$351, MATCH(Selection_Hide2!$A284, 'Full set Core Client Indicator'!$A$3:$A$351, 0), MATCH(Selection_Hide2!I$5, 'Full set Core Client Indicator'!$A$3:$AB$3, 0))), \"\")","v":""},{"$f":"IF(I284<>\"\", IF(INDEX('Full set Core Client Indicator'!$A$3:$AB$351, MATCH(Selection_Hide2!$A284, 'Full set Core Client Indicator'!$A$3:$A$351, 0), MATCH(Selection_Hide2!J$5, 'Full set Core Client Indicator'!$A$3:$AB$3, 0))=\"\", \"\",  INDEX('Full set Core Client Indicator'!$A$3:$AB$351, MATCH(Selection_Hide2!$A284, 'Full set Core Client Indicator'!$A$3:$A$351, 0), MATCH(Selection_Hide2!J$5, 'Full set Core Client Indicator'!$A$3:$AB$3, 0))), \"\")","v":""},{"$f":"IF(J284<>\"\", IF(INDEX('Full set Core Client Indicator'!$A$3:$AB$351, MATCH(Selection_Hide2!$A284, 'Full set Core Client Indicator'!$A$3:$A$351, 0), MATCH(Selection_Hide2!K$5, 'Full set Core Client Indicator'!$A$3:$AB$3, 0))=\"\", \"\",  INDEX('Full set Core Client Indicator'!$A$3:$AB$351, MATCH(Selection_Hide2!$A284, 'Full set Core Client Indicator'!$A$3:$A$351, 0), MATCH(Selection_Hide2!K$5, 'Full set Core Client Indicator'!$A$3:$AB$3, 0))), \"\")","v":""},{"$f":"IF(K284<>\"\", IF(INDEX('Full set Core Client Indicator'!$A$3:$AB$351, MATCH(Selection_Hide2!$A284, 'Full set Core Client Indicator'!$A$3:$A$351, 0), MATCH(Selection_Hide2!L$5, 'Full set Core Client Indicator'!$A$3:$AB$3, 0))=\"\", \"\",  INDEX('Full set Core Client Indicator'!$A$3:$AB$351, MATCH(Selection_Hide2!$A284, 'Full set Core Client Indicator'!$A$3:$A$351, 0), MATCH(Selection_Hide2!L$5, 'Full set Core Client Indicator'!$A$3:$AB$3, 0))), \"\")","v":""},{"$f":"IF(L284<>\"\", IF(INDEX('Full set Core Client Indicator'!$A$3:$AB$351, MATCH(Selection_Hide2!$A284, 'Full set Core Client Indicator'!$A$3:$A$351, 0), MATCH(Selection_Hide2!M$5, 'Full set Core Client Indicator'!$A$3:$AB$3, 0))=\"\", \"\",  INDEX('Full set Core Client Indicator'!$A$3:$AB$351, MATCH(Selection_Hide2!$A284, 'Full set Core Client Indicator'!$A$3:$A$351, 0), MATCH(Selection_Hide2!M$5, 'Full set Core Client Indicator'!$A$3:$AB$3, 0))), \"\")","v":""},{"$f":"IF(M284<>\"\", IF(INDEX('Full set Core Client Indicator'!$A$3:$AB$351, MATCH(Selection_Hide2!$A284, 'Full set Core Client Indicator'!$A$3:$A$351, 0), MATCH(Selection_Hide2!N$5, 'Full set Core Client Indicator'!$A$3:$AB$3, 0))=\"\", \"\",  INDEX('Full set Core Client Indicator'!$A$3:$AB$351, MATCH(Selection_Hide2!$A284, 'Full set Core Client Indicator'!$A$3:$A$351, 0), MATCH(Selection_Hide2!N$5, 'Full set Core Client Indicator'!$A$3:$AB$3, 0))), \"\")","v":""},{"$f":"IF(N284<>\"\", IF(INDEX('Full set Core Client Indicator'!$A$3:$AB$351, MATCH(Selection_Hide2!$A284, 'Full set Core Client Indicator'!$A$3:$A$351, 0), MATCH(Selection_Hide2!O$5, 'Full set Core Client Indicator'!$A$3:$AB$3, 0))=\"\", \"\",  INDEX('Full set Core Client Indicator'!$A$3:$AB$351, MATCH(Selection_Hide2!$A284, 'Full set Core Client Indicator'!$A$3:$A$351, 0), MATCH(Selection_Hide2!O$5, 'Full set Core Client Indicator'!$A$3:$AB$3, 0))), \"\")","v":""},{"$f":"IF(O284<>\"\", IF(INDEX('Full set Core Client Indicator'!$A$3:$AB$351, MATCH(Selection_Hide2!$A284, 'Full set Core Client Indicator'!$A$3:$A$351, 0), MATCH(Selection_Hide2!P$5, 'Full set Core Client Indicator'!$A$3:$AB$3, 0))=\"\", \"\",  INDEX('Full set Core Client Indicator'!$A$3:$AB$351, MATCH(Selection_Hide2!$A284, 'Full set Core Client Indicator'!$A$3:$A$351, 0), MATCH(Selection_Hide2!P$5, 'Full set Core Client Indicator'!$A$3:$AB$3, 0))), \"\")","v":""},{"$f":"IF(P284<>\"\", IF(INDEX('Full set Core Client Indicator'!$A$3:$AB$351, MATCH(Selection_Hide2!$A284, 'Full set Core Client Indicator'!$A$3:$A$351, 0), MATCH(Selection_Hide2!Q$5, 'Full set Core Client Indicator'!$A$3:$AB$3, 0))=\"\", \"\",  INDEX('Full set Core Client Indicator'!$A$3:$AB$351, MATCH(Selection_Hide2!$A284, 'Full set Core Client Indicator'!$A$3:$A$351, 0), MATCH(Selection_Hide2!Q$5, 'Full set Core Client Indicator'!$A$3:$AB$3, 0))), \"\")","v":""},{"$f":"IF(Q284<>\"\", IF(INDEX('Full set Core Client Indicator'!$A$3:$AB$351, MATCH(Selection_Hide2!$A284, 'Full set Core Client Indicator'!$A$3:$A$351, 0), MATCH(Selection_Hide2!R$5, 'Full set Core Client Indicator'!$A$3:$AB$3, 0))=\"\", \"\",  INDEX('Full set Core Client Indicator'!$A$3:$AB$351, MATCH(Selection_Hide2!$A284, 'Full set Core Client Indicator'!$A$3:$A$351, 0), MATCH(Selection_Hide2!R$5, 'Full set Core Client Indicator'!$A$3:$AB$3, 0))), \"\")","v":""},{"$f":"IF(R284<>\"\", IF(INDEX('Full set Core Client Indicator'!$A$3:$AB$351, MATCH(Selection_Hide2!$A284, 'Full set Core Client Indicator'!$A$3:$A$351, 0), MATCH(Selection_Hide2!S$5, 'Full set Core Client Indicator'!$A$3:$AB$3, 0))=\"\", \"\",  INDEX('Full set Core Client Indicator'!$A$3:$AB$351, MATCH(Selection_Hide2!$A284, 'Full set Core Client Indicator'!$A$3:$A$351, 0), MATCH(Selection_Hide2!S$5, 'Full set Core Client Indicator'!$A$3:$AB$3, 0))), \"\")","v":""},{"$f":"IF(S284<>\"\", IF(INDEX('Full set Core Client Indicator'!$A$3:$AB$351, MATCH(Selection_Hide2!$A284, 'Full set Core Client Indicator'!$A$3:$A$351, 0), MATCH(Selection_Hide2!T$5, 'Full set Core Client Indicator'!$A$3:$AB$3, 0))=\"\", \"\",  INDEX('Full set Core Client Indicator'!$A$3:$AB$351, MATCH(Selection_Hide2!$A284, 'Full set Core Client Indicator'!$A$3:$A$351, 0), MATCH(Selection_Hide2!T$5, 'Full set Core Client Indicator'!$A$3:$AB$3, 0))), \"\")","v":""},{"$f":"IF(T284<>\"\", IF(INDEX('Full set Core Client Indicator'!$A$3:$AB$351, MATCH(Selection_Hide2!$A284, 'Full set Core Client Indicator'!$A$3:$A$351, 0), MATCH(Selection_Hide2!U$5, 'Full set Core Client Indicator'!$A$3:$AB$3, 0))=\"\", \"\",  INDEX('Full set Core Client Indicator'!$A$3:$AB$351, MATCH(Selection_Hide2!$A284, 'Full set Core Client Indicator'!$A$3:$A$351, 0), MATCH(Selection_Hide2!U$5, 'Full set Core Client Indicator'!$A$3:$AB$3, 0))), \"\")","v":""},{"$f":"IF(U284<>\"\", IF(INDEX('Full set Core Client Indicator'!$A$3:$AB$351, MATCH(Selection_Hide2!$A284, 'Full set Core Client Indicator'!$A$3:$A$351, 0), MATCH(Selection_Hide2!V$5, 'Full set Core Client Indicator'!$A$3:$AB$3, 0))=\"\", \"\",  INDEX('Full set Core Client Indicator'!$A$3:$AB$351, MATCH(Selection_Hide2!$A284, 'Full set Core Client Indicator'!$A$3:$A$351, 0), MATCH(Selection_Hide2!V$5, 'Full set Core Client Indicator'!$A$3:$AB$3, 0))), \"\")","v":""},{"$f":"IF(V284<>\"\", IF(INDEX('Full set Core Client Indicator'!$A$3:$AB$351, MATCH(Selection_Hide2!$A284, 'Full set Core Client Indicator'!$A$3:$A$351, 0), MATCH(Selection_Hide2!W$5, 'Full set Core Client Indicator'!$A$3:$AB$3, 0))=\"\", \"\",  INDEX('Full set Core Client Indicator'!$A$3:$AB$351, MATCH(Selection_Hide2!$A284, 'Full set Core Client Indicator'!$A$3:$A$351, 0), MATCH(Selection_Hide2!W$5, 'Full set Core Client Indicator'!$A$3:$AB$3, 0))), \"\")","v":""},{"$f":"IF(W284<>\"\", IF(INDEX('Full set Core Client Indicator'!$A$3:$AB$351, MATCH(Selection_Hide2!$A284, 'Full set Core Client Indicator'!$A$3:$A$351, 0), MATCH(Selection_Hide2!X$5, 'Full set Core Client Indicator'!$A$3:$AB$3, 0))=\"\", \"\",  INDEX('Full set Core Client Indicator'!$A$3:$AB$351, MATCH(Selection_Hide2!$A284, 'Full set Core Client Indicator'!$A$3:$A$351, 0), MATCH(Selection_Hide2!X$5, 'Full set Core Client Indicator'!$A$3:$AB$3, 0))), \"\")","v":""},{"$f":"IF(X284<>\"\", IF(INDEX('Full set Core Client Indicator'!$A$3:$AB$351, MATCH(Selection_Hide2!$A284, 'Full set Core Client Indicator'!$A$3:$A$351, 0), MATCH(Selection_Hide2!Y$5, 'Full set Core Client Indicator'!$A$3:$AB$3, 0))=\"\", \"\",  INDEX('Full set Core Client Indicator'!$A$3:$AB$351, MATCH(Selection_Hide2!$A284, 'Full set Core Client Indicator'!$A$3:$A$351, 0), MATCH(Selection_Hide2!Y$5, 'Full set Core Client Indicator'!$A$3:$AB$3, 0))), \"\")","v":""},{"$f":"IF(Y284<>\"\", IF(INDEX('Full set Core Client Indicator'!$A$3:$AB$351, MATCH(Selection_Hide2!$A284, 'Full set Core Client Indicator'!$A$3:$A$351, 0), MATCH(Selection_Hide2!Z$5, 'Full set Core Client Indicator'!$A$3:$AB$3, 0))=\"\", \"\",  INDEX('Full set Core Client Indicator'!$A$3:$AB$351, MATCH(Selection_Hide2!$A284, 'Full set Core Client Indicator'!$A$3:$A$351, 0), MATCH(Selection_Hide2!Z$5, 'Full set Core Client Indicator'!$A$3:$AB$3, 0))), \"\")","v":""},{"$f":"IF(Z284<>\"\", IF(INDEX('Full set Core Client Indicator'!$A$3:$AB$351, MATCH(Selection_Hide2!$A284, 'Full set Core Client Indicator'!$A$3:$A$351, 0), MATCH(Selection_Hide2!AA$5, 'Full set Core Client Indicator'!$A$3:$AB$3, 0))=\"\", \"\",  INDEX('Full set Core Client Indicator'!$A$3:$AB$351, MATCH(Selection_Hide2!$A284, 'Full set Core Client Indicator'!$A$3:$A$351, 0), MATCH(Selection_Hide2!AA$5, 'Full set Core Client Indicator'!$A$3:$AB$3, 0))), \"\")","v":""},{"$f":"IF(AA284<>\"\", IF(INDEX('Full set Core Client Indicator'!$A$3:$AB$351, MATCH(Selection_Hide2!$A284, 'Full set Core Client Indicator'!$A$3:$A$351, 0), MATCH(Selection_Hide2!AB$5, 'Full set Core Client Indicator'!$A$3:$AB$3, 0))=\"\", \"\",  INDEX('Full set Core Client Indicator'!$A$3:$AB$351, MATCH(Selection_Hide2!$A284, 'Full set Core Client Indicator'!$A$3:$A$351, 0), MATCH(Selection_Hide2!AB$5, 'Full set Core Client Indicator'!$A$3:$AB$3, 0))), \"\")","v":""}]
[{"$f":"IF(AND(Selection_Hide1!C283<>0, Selection_Hide1!C283<>\"Grand Total\"), Selection_Hide1!C283, \"\")","v":""},{"$f":"IF(A285<>\"\", IF(INDEX('Full set Core Client Indicator'!$A$3:$AB$351, MATCH(Selection_Hide2!$A285, 'Full set Core Client Indicator'!$A$3:$A$351, 0), MATCH(Selection_Hide2!B$5, 'Full set Core Client Indicator'!$A$3:$AB$3, 0))=\"\", \"\",  INDEX('Full set Core Client Indicator'!$A$3:$AB$351, MATCH(Selection_Hide2!$A285, 'Full set Core Client Indicator'!$A$3:$A$351, 0), MATCH(Selection_Hide2!B$5, 'Full set Core Client Indicator'!$A$3:$AB$3, 0))), \"\")","v":""},{"$f":"IF(B285<>\"\", IF(INDEX('Full set Core Client Indicator'!$A$3:$AB$351, MATCH(Selection_Hide2!$A285, 'Full set Core Client Indicator'!$A$3:$A$351, 0), MATCH(Selection_Hide2!C$5, 'Full set Core Client Indicator'!$A$3:$AB$3, 0))=\"\", \"\",  INDEX('Full set Core Client Indicator'!$A$3:$AB$351, MATCH(Selection_Hide2!$A285, 'Full set Core Client Indicator'!$A$3:$A$351, 0), MATCH(Selection_Hide2!C$5, 'Full set Core Client Indicator'!$A$3:$AB$3, 0))), \"\")","v":""},{"$f":"IF(C285<>\"\", IF(INDEX('Full set Core Client Indicator'!$A$3:$AB$351, MATCH(Selection_Hide2!$A285, 'Full set Core Client Indicator'!$A$3:$A$351, 0), MATCH(Selection_Hide2!D$5, 'Full set Core Client Indicator'!$A$3:$AB$3, 0))=\"\", \"\",  INDEX('Full set Core Client Indicator'!$A$3:$AB$351, MATCH(Selection_Hide2!$A285, 'Full set Core Client Indicator'!$A$3:$A$351, 0), MATCH(Selection_Hide2!D$5, 'Full set Core Client Indicator'!$A$3:$AB$3, 0))), \"\")","v":""},{"$f":"IF(D285<>\"\", IF(INDEX('Full set Core Client Indicator'!$A$3:$AB$351, MATCH(Selection_Hide2!$A285, 'Full set Core Client Indicator'!$A$3:$A$351, 0), MATCH(Selection_Hide2!E$5, 'Full set Core Client Indicator'!$A$3:$AB$3, 0))=\"\", \"\",  INDEX('Full set Core Client Indicator'!$A$3:$AB$351, MATCH(Selection_Hide2!$A285, 'Full set Core Client Indicator'!$A$3:$A$351, 0), MATCH(Selection_Hide2!E$5, 'Full set Core Client Indicator'!$A$3:$AB$3, 0))), \"\")","v":""},{"$f":"IF(E285<>\"\", IF(INDEX('Full set Core Client Indicator'!$A$3:$AB$351, MATCH(Selection_Hide2!$A285, 'Full set Core Client Indicator'!$A$3:$A$351, 0), MATCH(Selection_Hide2!F$5, 'Full set Core Client Indicator'!$A$3:$AB$3, 0))=\"\", \"\",  INDEX('Full set Core Client Indicator'!$A$3:$AB$351, MATCH(Selection_Hide2!$A285, 'Full set Core Client Indicator'!$A$3:$A$351, 0), MATCH(Selection_Hide2!F$5, 'Full set Core Client Indicator'!$A$3:$AB$3, 0))), \"\")","v":""},{"$f":"IF(F285<>\"\", IF(INDEX('Full set Core Client Indicator'!$A$3:$AB$351, MATCH(Selection_Hide2!$A285, 'Full set Core Client Indicator'!$A$3:$A$351, 0), MATCH(Selection_Hide2!G$5, 'Full set Core Client Indicator'!$A$3:$AB$3, 0))=\"\", \"\",  INDEX('Full set Core Client Indicator'!$A$3:$AB$351, MATCH(Selection_Hide2!$A285, 'Full set Core Client Indicator'!$A$3:$A$351, 0), MATCH(Selection_Hide2!G$5, 'Full set Core Client Indicator'!$A$3:$AB$3, 0))), \"\")","v":""},{"$f":"IF(G285<>\"\", IF(INDEX('Full set Core Client Indicator'!$A$3:$AB$351, MATCH(Selection_Hide2!$A285, 'Full set Core Client Indicator'!$A$3:$A$351, 0), MATCH(Selection_Hide2!H$5, 'Full set Core Client Indicator'!$A$3:$AB$3, 0))=\"\", \"\",  INDEX('Full set Core Client Indicator'!$A$3:$AB$351, MATCH(Selection_Hide2!$A285, 'Full set Core Client Indicator'!$A$3:$A$351, 0), MATCH(Selection_Hide2!H$5, 'Full set Core Client Indicator'!$A$3:$AB$3, 0))), \"\")","v":""},{"$f":"IF(H285<>\"\", IF(INDEX('Full set Core Client Indicator'!$A$3:$AB$351, MATCH(Selection_Hide2!$A285, 'Full set Core Client Indicator'!$A$3:$A$351, 0), MATCH(Selection_Hide2!I$5, 'Full set Core Client Indicator'!$A$3:$AB$3, 0))=\"\", \"\",  INDEX('Full set Core Client Indicator'!$A$3:$AB$351, MATCH(Selection_Hide2!$A285, 'Full set Core Client Indicator'!$A$3:$A$351, 0), MATCH(Selection_Hide2!I$5, 'Full set Core Client Indicator'!$A$3:$AB$3, 0))), \"\")","v":""},{"$f":"IF(I285<>\"\", IF(INDEX('Full set Core Client Indicator'!$A$3:$AB$351, MATCH(Selection_Hide2!$A285, 'Full set Core Client Indicator'!$A$3:$A$351, 0), MATCH(Selection_Hide2!J$5, 'Full set Core Client Indicator'!$A$3:$AB$3, 0))=\"\", \"\",  INDEX('Full set Core Client Indicator'!$A$3:$AB$351, MATCH(Selection_Hide2!$A285, 'Full set Core Client Indicator'!$A$3:$A$351, 0), MATCH(Selection_Hide2!J$5, 'Full set Core Client Indicator'!$A$3:$AB$3, 0))), \"\")","v":""},{"$f":"IF(J285<>\"\", IF(INDEX('Full set Core Client Indicator'!$A$3:$AB$351, MATCH(Selection_Hide2!$A285, 'Full set Core Client Indicator'!$A$3:$A$351, 0), MATCH(Selection_Hide2!K$5, 'Full set Core Client Indicator'!$A$3:$AB$3, 0))=\"\", \"\",  INDEX('Full set Core Client Indicator'!$A$3:$AB$351, MATCH(Selection_Hide2!$A285, 'Full set Core Client Indicator'!$A$3:$A$351, 0), MATCH(Selection_Hide2!K$5, 'Full set Core Client Indicator'!$A$3:$AB$3, 0))), \"\")","v":""},{"$f":"IF(K285<>\"\", IF(INDEX('Full set Core Client Indicator'!$A$3:$AB$351, MATCH(Selection_Hide2!$A285, 'Full set Core Client Indicator'!$A$3:$A$351, 0), MATCH(Selection_Hide2!L$5, 'Full set Core Client Indicator'!$A$3:$AB$3, 0))=\"\", \"\",  INDEX('Full set Core Client Indicator'!$A$3:$AB$351, MATCH(Selection_Hide2!$A285, 'Full set Core Client Indicator'!$A$3:$A$351, 0), MATCH(Selection_Hide2!L$5, 'Full set Core Client Indicator'!$A$3:$AB$3, 0))), \"\")","v":""},{"$f":"IF(L285<>\"\", IF(INDEX('Full set Core Client Indicator'!$A$3:$AB$351, MATCH(Selection_Hide2!$A285, 'Full set Core Client Indicator'!$A$3:$A$351, 0), MATCH(Selection_Hide2!M$5, 'Full set Core Client Indicator'!$A$3:$AB$3, 0))=\"\", \"\",  INDEX('Full set Core Client Indicator'!$A$3:$AB$351, MATCH(Selection_Hide2!$A285, 'Full set Core Client Indicator'!$A$3:$A$351, 0), MATCH(Selection_Hide2!M$5, 'Full set Core Client Indicator'!$A$3:$AB$3, 0))), \"\")","v":""},{"$f":"IF(M285<>\"\", IF(INDEX('Full set Core Client Indicator'!$A$3:$AB$351, MATCH(Selection_Hide2!$A285, 'Full set Core Client Indicator'!$A$3:$A$351, 0), MATCH(Selection_Hide2!N$5, 'Full set Core Client Indicator'!$A$3:$AB$3, 0))=\"\", \"\",  INDEX('Full set Core Client Indicator'!$A$3:$AB$351, MATCH(Selection_Hide2!$A285, 'Full set Core Client Indicator'!$A$3:$A$351, 0), MATCH(Selection_Hide2!N$5, 'Full set Core Client Indicator'!$A$3:$AB$3, 0))), \"\")","v":""},{"$f":"IF(N285<>\"\", IF(INDEX('Full set Core Client Indicator'!$A$3:$AB$351, MATCH(Selection_Hide2!$A285, 'Full set Core Client Indicator'!$A$3:$A$351, 0), MATCH(Selection_Hide2!O$5, 'Full set Core Client Indicator'!$A$3:$AB$3, 0))=\"\", \"\",  INDEX('Full set Core Client Indicator'!$A$3:$AB$351, MATCH(Selection_Hide2!$A285, 'Full set Core Client Indicator'!$A$3:$A$351, 0), MATCH(Selection_Hide2!O$5, 'Full set Core Client Indicator'!$A$3:$AB$3, 0))), \"\")","v":""},{"$f":"IF(O285<>\"\", IF(INDEX('Full set Core Client Indicator'!$A$3:$AB$351, MATCH(Selection_Hide2!$A285, 'Full set Core Client Indicator'!$A$3:$A$351, 0), MATCH(Selection_Hide2!P$5, 'Full set Core Client Indicator'!$A$3:$AB$3, 0))=\"\", \"\",  INDEX('Full set Core Client Indicator'!$A$3:$AB$351, MATCH(Selection_Hide2!$A285, 'Full set Core Client Indicator'!$A$3:$A$351, 0), MATCH(Selection_Hide2!P$5, 'Full set Core Client Indicator'!$A$3:$AB$3, 0))), \"\")","v":""},{"$f":"IF(P285<>\"\", IF(INDEX('Full set Core Client Indicator'!$A$3:$AB$351, MATCH(Selection_Hide2!$A285, 'Full set Core Client Indicator'!$A$3:$A$351, 0), MATCH(Selection_Hide2!Q$5, 'Full set Core Client Indicator'!$A$3:$AB$3, 0))=\"\", \"\",  INDEX('Full set Core Client Indicator'!$A$3:$AB$351, MATCH(Selection_Hide2!$A285, 'Full set Core Client Indicator'!$A$3:$A$351, 0), MATCH(Selection_Hide2!Q$5, 'Full set Core Client Indicator'!$A$3:$AB$3, 0))), \"\")","v":""},{"$f":"IF(Q285<>\"\", IF(INDEX('Full set Core Client Indicator'!$A$3:$AB$351, MATCH(Selection_Hide2!$A285, 'Full set Core Client Indicator'!$A$3:$A$351, 0), MATCH(Selection_Hide2!R$5, 'Full set Core Client Indicator'!$A$3:$AB$3, 0))=\"\", \"\",  INDEX('Full set Core Client Indicator'!$A$3:$AB$351, MATCH(Selection_Hide2!$A285, 'Full set Core Client Indicator'!$A$3:$A$351, 0), MATCH(Selection_Hide2!R$5, 'Full set Core Client Indicator'!$A$3:$AB$3, 0))), \"\")","v":""},{"$f":"IF(R285<>\"\", IF(INDEX('Full set Core Client Indicator'!$A$3:$AB$351, MATCH(Selection_Hide2!$A285, 'Full set Core Client Indicator'!$A$3:$A$351, 0), MATCH(Selection_Hide2!S$5, 'Full set Core Client Indicator'!$A$3:$AB$3, 0))=\"\", \"\",  INDEX('Full set Core Client Indicator'!$A$3:$AB$351, MATCH(Selection_Hide2!$A285, 'Full set Core Client Indicator'!$A$3:$A$351, 0), MATCH(Selection_Hide2!S$5, 'Full set Core Client Indicator'!$A$3:$AB$3, 0))), \"\")","v":""},{"$f":"IF(S285<>\"\", IF(INDEX('Full set Core Client Indicator'!$A$3:$AB$351, MATCH(Selection_Hide2!$A285, 'Full set Core Client Indicator'!$A$3:$A$351, 0), MATCH(Selection_Hide2!T$5, 'Full set Core Client Indicator'!$A$3:$AB$3, 0))=\"\", \"\",  INDEX('Full set Core Client Indicator'!$A$3:$AB$351, MATCH(Selection_Hide2!$A285, 'Full set Core Client Indicator'!$A$3:$A$351, 0), MATCH(Selection_Hide2!T$5, 'Full set Core Client Indicator'!$A$3:$AB$3, 0))), \"\")","v":""},{"$f":"IF(T285<>\"\", IF(INDEX('Full set Core Client Indicator'!$A$3:$AB$351, MATCH(Selection_Hide2!$A285, 'Full set Core Client Indicator'!$A$3:$A$351, 0), MATCH(Selection_Hide2!U$5, 'Full set Core Client Indicator'!$A$3:$AB$3, 0))=\"\", \"\",  INDEX('Full set Core Client Indicator'!$A$3:$AB$351, MATCH(Selection_Hide2!$A285, 'Full set Core Client Indicator'!$A$3:$A$351, 0), MATCH(Selection_Hide2!U$5, 'Full set Core Client Indicator'!$A$3:$AB$3, 0))), \"\")","v":""},{"$f":"IF(U285<>\"\", IF(INDEX('Full set Core Client Indicator'!$A$3:$AB$351, MATCH(Selection_Hide2!$A285, 'Full set Core Client Indicator'!$A$3:$A$351, 0), MATCH(Selection_Hide2!V$5, 'Full set Core Client Indicator'!$A$3:$AB$3, 0))=\"\", \"\",  INDEX('Full set Core Client Indicator'!$A$3:$AB$351, MATCH(Selection_Hide2!$A285, 'Full set Core Client Indicator'!$A$3:$A$351, 0), MATCH(Selection_Hide2!V$5, 'Full set Core Client Indicator'!$A$3:$AB$3, 0))), \"\")","v":""},{"$f":"IF(V285<>\"\", IF(INDEX('Full set Core Client Indicator'!$A$3:$AB$351, MATCH(Selection_Hide2!$A285, 'Full set Core Client Indicator'!$A$3:$A$351, 0), MATCH(Selection_Hide2!W$5, 'Full set Core Client Indicator'!$A$3:$AB$3, 0))=\"\", \"\",  INDEX('Full set Core Client Indicator'!$A$3:$AB$351, MATCH(Selection_Hide2!$A285, 'Full set Core Client Indicator'!$A$3:$A$351, 0), MATCH(Selection_Hide2!W$5, 'Full set Core Client Indicator'!$A$3:$AB$3, 0))), \"\")","v":""},{"$f":"IF(W285<>\"\", IF(INDEX('Full set Core Client Indicator'!$A$3:$AB$351, MATCH(Selection_Hide2!$A285, 'Full set Core Client Indicator'!$A$3:$A$351, 0), MATCH(Selection_Hide2!X$5, 'Full set Core Client Indicator'!$A$3:$AB$3, 0))=\"\", \"\",  INDEX('Full set Core Client Indicator'!$A$3:$AB$351, MATCH(Selection_Hide2!$A285, 'Full set Core Client Indicator'!$A$3:$A$351, 0), MATCH(Selection_Hide2!X$5, 'Full set Core Client Indicator'!$A$3:$AB$3, 0))), \"\")","v":""},{"$f":"IF(X285<>\"\", IF(INDEX('Full set Core Client Indicator'!$A$3:$AB$351, MATCH(Selection_Hide2!$A285, 'Full set Core Client Indicator'!$A$3:$A$351, 0), MATCH(Selection_Hide2!Y$5, 'Full set Core Client Indicator'!$A$3:$AB$3, 0))=\"\", \"\",  INDEX('Full set Core Client Indicator'!$A$3:$AB$351, MATCH(Selection_Hide2!$A285, 'Full set Core Client Indicator'!$A$3:$A$351, 0), MATCH(Selection_Hide2!Y$5, 'Full set Core Client Indicator'!$A$3:$AB$3, 0))), \"\")","v":""},{"$f":"IF(Y285<>\"\", IF(INDEX('Full set Core Client Indicator'!$A$3:$AB$351, MATCH(Selection_Hide2!$A285, 'Full set Core Client Indicator'!$A$3:$A$351, 0), MATCH(Selection_Hide2!Z$5, 'Full set Core Client Indicator'!$A$3:$AB$3, 0))=\"\", \"\",  INDEX('Full set Core Client Indicator'!$A$3:$AB$351, MATCH(Selection_Hide2!$A285, 'Full set Core Client Indicator'!$A$3:$A$351, 0), MATCH(Selection_Hide2!Z$5, 'Full set Core Client Indicator'!$A$3:$AB$3, 0))), \"\")","v":""},{"$f":"IF(Z285<>\"\", IF(INDEX('Full set Core Client Indicator'!$A$3:$AB$351, MATCH(Selection_Hide2!$A285, 'Full set Core Client Indicator'!$A$3:$A$351, 0), MATCH(Selection_Hide2!AA$5, 'Full set Core Client Indicator'!$A$3:$AB$3, 0))=\"\", \"\",  INDEX('Full set Core Client Indicator'!$A$3:$AB$351, MATCH(Selection_Hide2!$A285, 'Full set Core Client Indicator'!$A$3:$A$351, 0), MATCH(Selection_Hide2!AA$5, 'Full set Core Client Indicator'!$A$3:$AB$3, 0))), \"\")","v":""},{"$f":"IF(AA285<>\"\", IF(INDEX('Full set Core Client Indicator'!$A$3:$AB$351, MATCH(Selection_Hide2!$A285, 'Full set Core Client Indicator'!$A$3:$A$351, 0), MATCH(Selection_Hide2!AB$5, 'Full set Core Client Indicator'!$A$3:$AB$3, 0))=\"\", \"\",  INDEX('Full set Core Client Indicator'!$A$3:$AB$351, MATCH(Selection_Hide2!$A285, 'Full set Core Client Indicator'!$A$3:$A$351, 0), MATCH(Selection_Hide2!AB$5, 'Full set Core Client Indicator'!$A$3:$AB$3, 0))), \"\")","v":""}]
[{"$f":"IF(AND(Selection_Hide1!C284<>0, Selection_Hide1!C284<>\"Grand Total\"), Selection_Hide1!C284, \"\")","v":""},{"$f":"IF(A286<>\"\", IF(INDEX('Full set Core Client Indicator'!$A$3:$AB$351, MATCH(Selection_Hide2!$A286, 'Full set Core Client Indicator'!$A$3:$A$351, 0), MATCH(Selection_Hide2!B$5, 'Full set Core Client Indicator'!$A$3:$AB$3, 0))=\"\", \"\",  INDEX('Full set Core Client Indicator'!$A$3:$AB$351, MATCH(Selection_Hide2!$A286, 'Full set Core Client Indicator'!$A$3:$A$351, 0), MATCH(Selection_Hide2!B$5, 'Full set Core Client Indicator'!$A$3:$AB$3, 0))), \"\")","v":""},{"$f":"IF(B286<>\"\", IF(INDEX('Full set Core Client Indicator'!$A$3:$AB$351, MATCH(Selection_Hide2!$A286, 'Full set Core Client Indicator'!$A$3:$A$351, 0), MATCH(Selection_Hide2!C$5, 'Full set Core Client Indicator'!$A$3:$AB$3, 0))=\"\", \"\",  INDEX('Full set Core Client Indicator'!$A$3:$AB$351, MATCH(Selection_Hide2!$A286, 'Full set Core Client Indicator'!$A$3:$A$351, 0), MATCH(Selection_Hide2!C$5, 'Full set Core Client Indicator'!$A$3:$AB$3, 0))), \"\")","v":""},{"$f":"IF(C286<>\"\", IF(INDEX('Full set Core Client Indicator'!$A$3:$AB$351, MATCH(Selection_Hide2!$A286, 'Full set Core Client Indicator'!$A$3:$A$351, 0), MATCH(Selection_Hide2!D$5, 'Full set Core Client Indicator'!$A$3:$AB$3, 0))=\"\", \"\",  INDEX('Full set Core Client Indicator'!$A$3:$AB$351, MATCH(Selection_Hide2!$A286, 'Full set Core Client Indicator'!$A$3:$A$351, 0), MATCH(Selection_Hide2!D$5, 'Full set Core Client Indicator'!$A$3:$AB$3, 0))), \"\")","v":""},{"$f":"IF(D286<>\"\", IF(INDEX('Full set Core Client Indicator'!$A$3:$AB$351, MATCH(Selection_Hide2!$A286, 'Full set Core Client Indicator'!$A$3:$A$351, 0), MATCH(Selection_Hide2!E$5, 'Full set Core Client Indicator'!$A$3:$AB$3, 0))=\"\", \"\",  INDEX('Full set Core Client Indicator'!$A$3:$AB$351, MATCH(Selection_Hide2!$A286, 'Full set Core Client Indicator'!$A$3:$A$351, 0), MATCH(Selection_Hide2!E$5, 'Full set Core Client Indicator'!$A$3:$AB$3, 0))), \"\")","v":""},{"$f":"IF(E286<>\"\", IF(INDEX('Full set Core Client Indicator'!$A$3:$AB$351, MATCH(Selection_Hide2!$A286, 'Full set Core Client Indicator'!$A$3:$A$351, 0), MATCH(Selection_Hide2!F$5, 'Full set Core Client Indicator'!$A$3:$AB$3, 0))=\"\", \"\",  INDEX('Full set Core Client Indicator'!$A$3:$AB$351, MATCH(Selection_Hide2!$A286, 'Full set Core Client Indicator'!$A$3:$A$351, 0), MATCH(Selection_Hide2!F$5, 'Full set Core Client Indicator'!$A$3:$AB$3, 0))), \"\")","v":""},{"$f":"IF(F286<>\"\", IF(INDEX('Full set Core Client Indicator'!$A$3:$AB$351, MATCH(Selection_Hide2!$A286, 'Full set Core Client Indicator'!$A$3:$A$351, 0), MATCH(Selection_Hide2!G$5, 'Full set Core Client Indicator'!$A$3:$AB$3, 0))=\"\", \"\",  INDEX('Full set Core Client Indicator'!$A$3:$AB$351, MATCH(Selection_Hide2!$A286, 'Full set Core Client Indicator'!$A$3:$A$351, 0), MATCH(Selection_Hide2!G$5, 'Full set Core Client Indicator'!$A$3:$AB$3, 0))), \"\")","v":""},{"$f":"IF(G286<>\"\", IF(INDEX('Full set Core Client Indicator'!$A$3:$AB$351, MATCH(Selection_Hide2!$A286, 'Full set Core Client Indicator'!$A$3:$A$351, 0), MATCH(Selection_Hide2!H$5, 'Full set Core Client Indicator'!$A$3:$AB$3, 0))=\"\", \"\",  INDEX('Full set Core Client Indicator'!$A$3:$AB$351, MATCH(Selection_Hide2!$A286, 'Full set Core Client Indicator'!$A$3:$A$351, 0), MATCH(Selection_Hide2!H$5, 'Full set Core Client Indicator'!$A$3:$AB$3, 0))), \"\")","v":""},{"$f":"IF(H286<>\"\", IF(INDEX('Full set Core Client Indicator'!$A$3:$AB$351, MATCH(Selection_Hide2!$A286, 'Full set Core Client Indicator'!$A$3:$A$351, 0), MATCH(Selection_Hide2!I$5, 'Full set Core Client Indicator'!$A$3:$AB$3, 0))=\"\", \"\",  INDEX('Full set Core Client Indicator'!$A$3:$AB$351, MATCH(Selection_Hide2!$A286, 'Full set Core Client Indicator'!$A$3:$A$351, 0), MATCH(Selection_Hide2!I$5, 'Full set Core Client Indicator'!$A$3:$AB$3, 0))), \"\")","v":""},{"$f":"IF(I286<>\"\", IF(INDEX('Full set Core Client Indicator'!$A$3:$AB$351, MATCH(Selection_Hide2!$A286, 'Full set Core Client Indicator'!$A$3:$A$351, 0), MATCH(Selection_Hide2!J$5, 'Full set Core Client Indicator'!$A$3:$AB$3, 0))=\"\", \"\",  INDEX('Full set Core Client Indicator'!$A$3:$AB$351, MATCH(Selection_Hide2!$A286, 'Full set Core Client Indicator'!$A$3:$A$351, 0), MATCH(Selection_Hide2!J$5, 'Full set Core Client Indicator'!$A$3:$AB$3, 0))), \"\")","v":""},{"$f":"IF(J286<>\"\", IF(INDEX('Full set Core Client Indicator'!$A$3:$AB$351, MATCH(Selection_Hide2!$A286, 'Full set Core Client Indicator'!$A$3:$A$351, 0), MATCH(Selection_Hide2!K$5, 'Full set Core Client Indicator'!$A$3:$AB$3, 0))=\"\", \"\",  INDEX('Full set Core Client Indicator'!$A$3:$AB$351, MATCH(Selection_Hide2!$A286, 'Full set Core Client Indicator'!$A$3:$A$351, 0), MATCH(Selection_Hide2!K$5, 'Full set Core Client Indicator'!$A$3:$AB$3, 0))), \"\")","v":""},{"$f":"IF(K286<>\"\", IF(INDEX('Full set Core Client Indicator'!$A$3:$AB$351, MATCH(Selection_Hide2!$A286, 'Full set Core Client Indicator'!$A$3:$A$351, 0), MATCH(Selection_Hide2!L$5, 'Full set Core Client Indicator'!$A$3:$AB$3, 0))=\"\", \"\",  INDEX('Full set Core Client Indicator'!$A$3:$AB$351, MATCH(Selection_Hide2!$A286, 'Full set Core Client Indicator'!$A$3:$A$351, 0), MATCH(Selection_Hide2!L$5, 'Full set Core Client Indicator'!$A$3:$AB$3, 0))), \"\")","v":""},{"$f":"IF(L286<>\"\", IF(INDEX('Full set Core Client Indicator'!$A$3:$AB$351, MATCH(Selection_Hide2!$A286, 'Full set Core Client Indicator'!$A$3:$A$351, 0), MATCH(Selection_Hide2!M$5, 'Full set Core Client Indicator'!$A$3:$AB$3, 0))=\"\", \"\",  INDEX('Full set Core Client Indicator'!$A$3:$AB$351, MATCH(Selection_Hide2!$A286, 'Full set Core Client Indicator'!$A$3:$A$351, 0), MATCH(Selection_Hide2!M$5, 'Full set Core Client Indicator'!$A$3:$AB$3, 0))), \"\")","v":""},{"$f":"IF(M286<>\"\", IF(INDEX('Full set Core Client Indicator'!$A$3:$AB$351, MATCH(Selection_Hide2!$A286, 'Full set Core Client Indicator'!$A$3:$A$351, 0), MATCH(Selection_Hide2!N$5, 'Full set Core Client Indicator'!$A$3:$AB$3, 0))=\"\", \"\",  INDEX('Full set Core Client Indicator'!$A$3:$AB$351, MATCH(Selection_Hide2!$A286, 'Full set Core Client Indicator'!$A$3:$A$351, 0), MATCH(Selection_Hide2!N$5, 'Full set Core Client Indicator'!$A$3:$AB$3, 0))), \"\")","v":""},{"$f":"IF(N286<>\"\", IF(INDEX('Full set Core Client Indicator'!$A$3:$AB$351, MATCH(Selection_Hide2!$A286, 'Full set Core Client Indicator'!$A$3:$A$351, 0), MATCH(Selection_Hide2!O$5, 'Full set Core Client Indicator'!$A$3:$AB$3, 0))=\"\", \"\",  INDEX('Full set Core Client Indicator'!$A$3:$AB$351, MATCH(Selection_Hide2!$A286, 'Full set Core Client Indicator'!$A$3:$A$351, 0), MATCH(Selection_Hide2!O$5, 'Full set Core Client Indicator'!$A$3:$AB$3, 0))), \"\")","v":""},{"$f":"IF(O286<>\"\", IF(INDEX('Full set Core Client Indicator'!$A$3:$AB$351, MATCH(Selection_Hide2!$A286, 'Full set Core Client Indicator'!$A$3:$A$351, 0), MATCH(Selection_Hide2!P$5, 'Full set Core Client Indicator'!$A$3:$AB$3, 0))=\"\", \"\",  INDEX('Full set Core Client Indicator'!$A$3:$AB$351, MATCH(Selection_Hide2!$A286, 'Full set Core Client Indicator'!$A$3:$A$351, 0), MATCH(Selection_Hide2!P$5, 'Full set Core Client Indicator'!$A$3:$AB$3, 0))), \"\")","v":""},{"$f":"IF(P286<>\"\", IF(INDEX('Full set Core Client Indicator'!$A$3:$AB$351, MATCH(Selection_Hide2!$A286, 'Full set Core Client Indicator'!$A$3:$A$351, 0), MATCH(Selection_Hide2!Q$5, 'Full set Core Client Indicator'!$A$3:$AB$3, 0))=\"\", \"\",  INDEX('Full set Core Client Indicator'!$A$3:$AB$351, MATCH(Selection_Hide2!$A286, 'Full set Core Client Indicator'!$A$3:$A$351, 0), MATCH(Selection_Hide2!Q$5, 'Full set Core Client Indicator'!$A$3:$AB$3, 0))), \"\")","v":""},{"$f":"IF(Q286<>\"\", IF(INDEX('Full set Core Client Indicator'!$A$3:$AB$351, MATCH(Selection_Hide2!$A286, 'Full set Core Client Indicator'!$A$3:$A$351, 0), MATCH(Selection_Hide2!R$5, 'Full set Core Client Indicator'!$A$3:$AB$3, 0))=\"\", \"\",  INDEX('Full set Core Client Indicator'!$A$3:$AB$351, MATCH(Selection_Hide2!$A286, 'Full set Core Client Indicator'!$A$3:$A$351, 0), MATCH(Selection_Hide2!R$5, 'Full set Core Client Indicator'!$A$3:$AB$3, 0))), \"\")","v":""},{"$f":"IF(R286<>\"\", IF(INDEX('Full set Core Client Indicator'!$A$3:$AB$351, MATCH(Selection_Hide2!$A286, 'Full set Core Client Indicator'!$A$3:$A$351, 0), MATCH(Selection_Hide2!S$5, 'Full set Core Client Indicator'!$A$3:$AB$3, 0))=\"\", \"\",  INDEX('Full set Core Client Indicator'!$A$3:$AB$351, MATCH(Selection_Hide2!$A286, 'Full set Core Client Indicator'!$A$3:$A$351, 0), MATCH(Selection_Hide2!S$5, 'Full set Core Client Indicator'!$A$3:$AB$3, 0))), \"\")","v":""},{"$f":"IF(S286<>\"\", IF(INDEX('Full set Core Client Indicator'!$A$3:$AB$351, MATCH(Selection_Hide2!$A286, 'Full set Core Client Indicator'!$A$3:$A$351, 0), MATCH(Selection_Hide2!T$5, 'Full set Core Client Indicator'!$A$3:$AB$3, 0))=\"\", \"\",  INDEX('Full set Core Client Indicator'!$A$3:$AB$351, MATCH(Selection_Hide2!$A286, 'Full set Core Client Indicator'!$A$3:$A$351, 0), MATCH(Selection_Hide2!T$5, 'Full set Core Client Indicator'!$A$3:$AB$3, 0))), \"\")","v":""},{"$f":"IF(T286<>\"\", IF(INDEX('Full set Core Client Indicator'!$A$3:$AB$351, MATCH(Selection_Hide2!$A286, 'Full set Core Client Indicator'!$A$3:$A$351, 0), MATCH(Selection_Hide2!U$5, 'Full set Core Client Indicator'!$A$3:$AB$3, 0))=\"\", \"\",  INDEX('Full set Core Client Indicator'!$A$3:$AB$351, MATCH(Selection_Hide2!$A286, 'Full set Core Client Indicator'!$A$3:$A$351, 0), MATCH(Selection_Hide2!U$5, 'Full set Core Client Indicator'!$A$3:$AB$3, 0))), \"\")","v":""},{"$f":"IF(U286<>\"\", IF(INDEX('Full set Core Client Indicator'!$A$3:$AB$351, MATCH(Selection_Hide2!$A286, 'Full set Core Client Indicator'!$A$3:$A$351, 0), MATCH(Selection_Hide2!V$5, 'Full set Core Client Indicator'!$A$3:$AB$3, 0))=\"\", \"\",  INDEX('Full set Core Client Indicator'!$A$3:$AB$351, MATCH(Selection_Hide2!$A286, 'Full set Core Client Indicator'!$A$3:$A$351, 0), MATCH(Selection_Hide2!V$5, 'Full set Core Client Indicator'!$A$3:$AB$3, 0))), \"\")","v":""},{"$f":"IF(V286<>\"\", IF(INDEX('Full set Core Client Indicator'!$A$3:$AB$351, MATCH(Selection_Hide2!$A286, 'Full set Core Client Indicator'!$A$3:$A$351, 0), MATCH(Selection_Hide2!W$5, 'Full set Core Client Indicator'!$A$3:$AB$3, 0))=\"\", \"\",  INDEX('Full set Core Client Indicator'!$A$3:$AB$351, MATCH(Selection_Hide2!$A286, 'Full set Core Client Indicator'!$A$3:$A$351, 0), MATCH(Selection_Hide2!W$5, 'Full set Core Client Indicator'!$A$3:$AB$3, 0))), \"\")","v":""},{"$f":"IF(W286<>\"\", IF(INDEX('Full set Core Client Indicator'!$A$3:$AB$351, MATCH(Selection_Hide2!$A286, 'Full set Core Client Indicator'!$A$3:$A$351, 0), MATCH(Selection_Hide2!X$5, 'Full set Core Client Indicator'!$A$3:$AB$3, 0))=\"\", \"\",  INDEX('Full set Core Client Indicator'!$A$3:$AB$351, MATCH(Selection_Hide2!$A286, 'Full set Core Client Indicator'!$A$3:$A$351, 0), MATCH(Selection_Hide2!X$5, 'Full set Core Client Indicator'!$A$3:$AB$3, 0))), \"\")","v":""},{"$f":"IF(X286<>\"\", IF(INDEX('Full set Core Client Indicator'!$A$3:$AB$351, MATCH(Selection_Hide2!$A286, 'Full set Core Client Indicator'!$A$3:$A$351, 0), MATCH(Selection_Hide2!Y$5, 'Full set Core Client Indicator'!$A$3:$AB$3, 0))=\"\", \"\",  INDEX('Full set Core Client Indicator'!$A$3:$AB$351, MATCH(Selection_Hide2!$A286, 'Full set Core Client Indicator'!$A$3:$A$351, 0), MATCH(Selection_Hide2!Y$5, 'Full set Core Client Indicator'!$A$3:$AB$3, 0))), \"\")","v":""},{"$f":"IF(Y286<>\"\", IF(INDEX('Full set Core Client Indicator'!$A$3:$AB$351, MATCH(Selection_Hide2!$A286, 'Full set Core Client Indicator'!$A$3:$A$351, 0), MATCH(Selection_Hide2!Z$5, 'Full set Core Client Indicator'!$A$3:$AB$3, 0))=\"\", \"\",  INDEX('Full set Core Client Indicator'!$A$3:$AB$351, MATCH(Selection_Hide2!$A286, 'Full set Core Client Indicator'!$A$3:$A$351, 0), MATCH(Selection_Hide2!Z$5, 'Full set Core Client Indicator'!$A$3:$AB$3, 0))), \"\")","v":""},{"$f":"IF(Z286<>\"\", IF(INDEX('Full set Core Client Indicator'!$A$3:$AB$351, MATCH(Selection_Hide2!$A286, 'Full set Core Client Indicator'!$A$3:$A$351, 0), MATCH(Selection_Hide2!AA$5, 'Full set Core Client Indicator'!$A$3:$AB$3, 0))=\"\", \"\",  INDEX('Full set Core Client Indicator'!$A$3:$AB$351, MATCH(Selection_Hide2!$A286, 'Full set Core Client Indicator'!$A$3:$A$351, 0), MATCH(Selection_Hide2!AA$5, 'Full set Core Client Indicator'!$A$3:$AB$3, 0))), \"\")","v":""},{"$f":"IF(AA286<>\"\", IF(INDEX('Full set Core Client Indicator'!$A$3:$AB$351, MATCH(Selection_Hide2!$A286, 'Full set Core Client Indicator'!$A$3:$A$351, 0), MATCH(Selection_Hide2!AB$5, 'Full set Core Client Indicator'!$A$3:$AB$3, 0))=\"\", \"\",  INDEX('Full set Core Client Indicator'!$A$3:$AB$351, MATCH(Selection_Hide2!$A286, 'Full set Core Client Indicator'!$A$3:$A$351, 0), MATCH(Selection_Hide2!AB$5, 'Full set Core Client Indicator'!$A$3:$AB$3, 0))), \"\")","v":""}]
[{"$f":"IF(AND(Selection_Hide1!C285<>0, Selection_Hide1!C285<>\"Grand Total\"), Selection_Hide1!C285, \"\")","v":""},{"$f":"IF(A287<>\"\", IF(INDEX('Full set Core Client Indicator'!$A$3:$AB$351, MATCH(Selection_Hide2!$A287, 'Full set Core Client Indicator'!$A$3:$A$351, 0), MATCH(Selection_Hide2!B$5, 'Full set Core Client Indicator'!$A$3:$AB$3, 0))=\"\", \"\",  INDEX('Full set Core Client Indicator'!$A$3:$AB$351, MATCH(Selection_Hide2!$A287, 'Full set Core Client Indicator'!$A$3:$A$351, 0), MATCH(Selection_Hide2!B$5, 'Full set Core Client Indicator'!$A$3:$AB$3, 0))), \"\")","v":""},{"$f":"IF(B287<>\"\", IF(INDEX('Full set Core Client Indicator'!$A$3:$AB$351, MATCH(Selection_Hide2!$A287, 'Full set Core Client Indicator'!$A$3:$A$351, 0), MATCH(Selection_Hide2!C$5, 'Full set Core Client Indicator'!$A$3:$AB$3, 0))=\"\", \"\",  INDEX('Full set Core Client Indicator'!$A$3:$AB$351, MATCH(Selection_Hide2!$A287, 'Full set Core Client Indicator'!$A$3:$A$351, 0), MATCH(Selection_Hide2!C$5, 'Full set Core Client Indicator'!$A$3:$AB$3, 0))), \"\")","v":""},{"$f":"IF(C287<>\"\", IF(INDEX('Full set Core Client Indicator'!$A$3:$AB$351, MATCH(Selection_Hide2!$A287, 'Full set Core Client Indicator'!$A$3:$A$351, 0), MATCH(Selection_Hide2!D$5, 'Full set Core Client Indicator'!$A$3:$AB$3, 0))=\"\", \"\",  INDEX('Full set Core Client Indicator'!$A$3:$AB$351, MATCH(Selection_Hide2!$A287, 'Full set Core Client Indicator'!$A$3:$A$351, 0), MATCH(Selection_Hide2!D$5, 'Full set Core Client Indicator'!$A$3:$AB$3, 0))), \"\")","v":""},{"$f":"IF(D287<>\"\", IF(INDEX('Full set Core Client Indicator'!$A$3:$AB$351, MATCH(Selection_Hide2!$A287, 'Full set Core Client Indicator'!$A$3:$A$351, 0), MATCH(Selection_Hide2!E$5, 'Full set Core Client Indicator'!$A$3:$AB$3, 0))=\"\", \"\",  INDEX('Full set Core Client Indicator'!$A$3:$AB$351, MATCH(Selection_Hide2!$A287, 'Full set Core Client Indicator'!$A$3:$A$351, 0), MATCH(Selection_Hide2!E$5, 'Full set Core Client Indicator'!$A$3:$AB$3, 0))), \"\")","v":""},{"$f":"IF(E287<>\"\", IF(INDEX('Full set Core Client Indicator'!$A$3:$AB$351, MATCH(Selection_Hide2!$A287, 'Full set Core Client Indicator'!$A$3:$A$351, 0), MATCH(Selection_Hide2!F$5, 'Full set Core Client Indicator'!$A$3:$AB$3, 0))=\"\", \"\",  INDEX('Full set Core Client Indicator'!$A$3:$AB$351, MATCH(Selection_Hide2!$A287, 'Full set Core Client Indicator'!$A$3:$A$351, 0), MATCH(Selection_Hide2!F$5, 'Full set Core Client Indicator'!$A$3:$AB$3, 0))), \"\")","v":""},{"$f":"IF(F287<>\"\", IF(INDEX('Full set Core Client Indicator'!$A$3:$AB$351, MATCH(Selection_Hide2!$A287, 'Full set Core Client Indicator'!$A$3:$A$351, 0), MATCH(Selection_Hide2!G$5, 'Full set Core Client Indicator'!$A$3:$AB$3, 0))=\"\", \"\",  INDEX('Full set Core Client Indicator'!$A$3:$AB$351, MATCH(Selection_Hide2!$A287, 'Full set Core Client Indicator'!$A$3:$A$351, 0), MATCH(Selection_Hide2!G$5, 'Full set Core Client Indicator'!$A$3:$AB$3, 0))), \"\")","v":""},{"$f":"IF(G287<>\"\", IF(INDEX('Full set Core Client Indicator'!$A$3:$AB$351, MATCH(Selection_Hide2!$A287, 'Full set Core Client Indicator'!$A$3:$A$351, 0), MATCH(Selection_Hide2!H$5, 'Full set Core Client Indicator'!$A$3:$AB$3, 0))=\"\", \"\",  INDEX('Full set Core Client Indicator'!$A$3:$AB$351, MATCH(Selection_Hide2!$A287, 'Full set Core Client Indicator'!$A$3:$A$351, 0), MATCH(Selection_Hide2!H$5, 'Full set Core Client Indicator'!$A$3:$AB$3, 0))), \"\")","v":""},{"$f":"IF(H287<>\"\", IF(INDEX('Full set Core Client Indicator'!$A$3:$AB$351, MATCH(Selection_Hide2!$A287, 'Full set Core Client Indicator'!$A$3:$A$351, 0), MATCH(Selection_Hide2!I$5, 'Full set Core Client Indicator'!$A$3:$AB$3, 0))=\"\", \"\",  INDEX('Full set Core Client Indicator'!$A$3:$AB$351, MATCH(Selection_Hide2!$A287, 'Full set Core Client Indicator'!$A$3:$A$351, 0), MATCH(Selection_Hide2!I$5, 'Full set Core Client Indicator'!$A$3:$AB$3, 0))), \"\")","v":""},{"$f":"IF(I287<>\"\", IF(INDEX('Full set Core Client Indicator'!$A$3:$AB$351, MATCH(Selection_Hide2!$A287, 'Full set Core Client Indicator'!$A$3:$A$351, 0), MATCH(Selection_Hide2!J$5, 'Full set Core Client Indicator'!$A$3:$AB$3, 0))=\"\", \"\",  INDEX('Full set Core Client Indicator'!$A$3:$AB$351, MATCH(Selection_Hide2!$A287, 'Full set Core Client Indicator'!$A$3:$A$351, 0), MATCH(Selection_Hide2!J$5, 'Full set Core Client Indicator'!$A$3:$AB$3, 0))), \"\")","v":""},{"$f":"IF(J287<>\"\", IF(INDEX('Full set Core Client Indicator'!$A$3:$AB$351, MATCH(Selection_Hide2!$A287, 'Full set Core Client Indicator'!$A$3:$A$351, 0), MATCH(Selection_Hide2!K$5, 'Full set Core Client Indicator'!$A$3:$AB$3, 0))=\"\", \"\",  INDEX('Full set Core Client Indicator'!$A$3:$AB$351, MATCH(Selection_Hide2!$A287, 'Full set Core Client Indicator'!$A$3:$A$351, 0), MATCH(Selection_Hide2!K$5, 'Full set Core Client Indicator'!$A$3:$AB$3, 0))), \"\")","v":""},{"$f":"IF(K287<>\"\", IF(INDEX('Full set Core Client Indicator'!$A$3:$AB$351, MATCH(Selection_Hide2!$A287, 'Full set Core Client Indicator'!$A$3:$A$351, 0), MATCH(Selection_Hide2!L$5, 'Full set Core Client Indicator'!$A$3:$AB$3, 0))=\"\", \"\",  INDEX('Full set Core Client Indicator'!$A$3:$AB$351, MATCH(Selection_Hide2!$A287, 'Full set Core Client Indicator'!$A$3:$A$351, 0), MATCH(Selection_Hide2!L$5, 'Full set Core Client Indicator'!$A$3:$AB$3, 0))), \"\")","v":""},{"$f":"IF(L287<>\"\", IF(INDEX('Full set Core Client Indicator'!$A$3:$AB$351, MATCH(Selection_Hide2!$A287, 'Full set Core Client Indicator'!$A$3:$A$351, 0), MATCH(Selection_Hide2!M$5, 'Full set Core Client Indicator'!$A$3:$AB$3, 0))=\"\", \"\",  INDEX('Full set Core Client Indicator'!$A$3:$AB$351, MATCH(Selection_Hide2!$A287, 'Full set Core Client Indicator'!$A$3:$A$351, 0), MATCH(Selection_Hide2!M$5, 'Full set Core Client Indicator'!$A$3:$AB$3, 0))), \"\")","v":""},{"$f":"IF(M287<>\"\", IF(INDEX('Full set Core Client Indicator'!$A$3:$AB$351, MATCH(Selection_Hide2!$A287, 'Full set Core Client Indicator'!$A$3:$A$351, 0), MATCH(Selection_Hide2!N$5, 'Full set Core Client Indicator'!$A$3:$AB$3, 0))=\"\", \"\",  INDEX('Full set Core Client Indicator'!$A$3:$AB$351, MATCH(Selection_Hide2!$A287, 'Full set Core Client Indicator'!$A$3:$A$351, 0), MATCH(Selection_Hide2!N$5, 'Full set Core Client Indicator'!$A$3:$AB$3, 0))), \"\")","v":""},{"$f":"IF(N287<>\"\", IF(INDEX('Full set Core Client Indicator'!$A$3:$AB$351, MATCH(Selection_Hide2!$A287, 'Full set Core Client Indicator'!$A$3:$A$351, 0), MATCH(Selection_Hide2!O$5, 'Full set Core Client Indicator'!$A$3:$AB$3, 0))=\"\", \"\",  INDEX('Full set Core Client Indicator'!$A$3:$AB$351, MATCH(Selection_Hide2!$A287, 'Full set Core Client Indicator'!$A$3:$A$351, 0), MATCH(Selection_Hide2!O$5, 'Full set Core Client Indicator'!$A$3:$AB$3, 0))), \"\")","v":""},{"$f":"IF(O287<>\"\", IF(INDEX('Full set Core Client Indicator'!$A$3:$AB$351, MATCH(Selection_Hide2!$A287, 'Full set Core Client Indicator'!$A$3:$A$351, 0), MATCH(Selection_Hide2!P$5, 'Full set Core Client Indicator'!$A$3:$AB$3, 0))=\"\", \"\",  INDEX('Full set Core Client Indicator'!$A$3:$AB$351, MATCH(Selection_Hide2!$A287, 'Full set Core Client Indicator'!$A$3:$A$351, 0), MATCH(Selection_Hide2!P$5, 'Full set Core Client Indicator'!$A$3:$AB$3, 0))), \"\")","v":""},{"$f":"IF(P287<>\"\", IF(INDEX('Full set Core Client Indicator'!$A$3:$AB$351, MATCH(Selection_Hide2!$A287, 'Full set Core Client Indicator'!$A$3:$A$351, 0), MATCH(Selection_Hide2!Q$5, 'Full set Core Client Indicator'!$A$3:$AB$3, 0))=\"\", \"\",  INDEX('Full set Core Client Indicator'!$A$3:$AB$351, MATCH(Selection_Hide2!$A287, 'Full set Core Client Indicator'!$A$3:$A$351, 0), MATCH(Selection_Hide2!Q$5, 'Full set Core Client Indicator'!$A$3:$AB$3, 0))), \"\")","v":""},{"$f":"IF(Q287<>\"\", IF(INDEX('Full set Core Client Indicator'!$A$3:$AB$351, MATCH(Selection_Hide2!$A287, 'Full set Core Client Indicator'!$A$3:$A$351, 0), MATCH(Selection_Hide2!R$5, 'Full set Core Client Indicator'!$A$3:$AB$3, 0))=\"\", \"\",  INDEX('Full set Core Client Indicator'!$A$3:$AB$351, MATCH(Selection_Hide2!$A287, 'Full set Core Client Indicator'!$A$3:$A$351, 0), MATCH(Selection_Hide2!R$5, 'Full set Core Client Indicator'!$A$3:$AB$3, 0))), \"\")","v":""},{"$f":"IF(R287<>\"\", IF(INDEX('Full set Core Client Indicator'!$A$3:$AB$351, MATCH(Selection_Hide2!$A287, 'Full set Core Client Indicator'!$A$3:$A$351, 0), MATCH(Selection_Hide2!S$5, 'Full set Core Client Indicator'!$A$3:$AB$3, 0))=\"\", \"\",  INDEX('Full set Core Client Indicator'!$A$3:$AB$351, MATCH(Selection_Hide2!$A287, 'Full set Core Client Indicator'!$A$3:$A$351, 0), MATCH(Selection_Hide2!S$5, 'Full set Core Client Indicator'!$A$3:$AB$3, 0))), \"\")","v":""},{"$f":"IF(S287<>\"\", IF(INDEX('Full set Core Client Indicator'!$A$3:$AB$351, MATCH(Selection_Hide2!$A287, 'Full set Core Client Indicator'!$A$3:$A$351, 0), MATCH(Selection_Hide2!T$5, 'Full set Core Client Indicator'!$A$3:$AB$3, 0))=\"\", \"\",  INDEX('Full set Core Client Indicator'!$A$3:$AB$351, MATCH(Selection_Hide2!$A287, 'Full set Core Client Indicator'!$A$3:$A$351, 0), MATCH(Selection_Hide2!T$5, 'Full set Core Client Indicator'!$A$3:$AB$3, 0))), \"\")","v":""},{"$f":"IF(T287<>\"\", IF(INDEX('Full set Core Client Indicator'!$A$3:$AB$351, MATCH(Selection_Hide2!$A287, 'Full set Core Client Indicator'!$A$3:$A$351, 0), MATCH(Selection_Hide2!U$5, 'Full set Core Client Indicator'!$A$3:$AB$3, 0))=\"\", \"\",  INDEX('Full set Core Client Indicator'!$A$3:$AB$351, MATCH(Selection_Hide2!$A287, 'Full set Core Client Indicator'!$A$3:$A$351, 0), MATCH(Selection_Hide2!U$5, 'Full set Core Client Indicator'!$A$3:$AB$3, 0))), \"\")","v":""},{"$f":"IF(U287<>\"\", IF(INDEX('Full set Core Client Indicator'!$A$3:$AB$351, MATCH(Selection_Hide2!$A287, 'Full set Core Client Indicator'!$A$3:$A$351, 0), MATCH(Selection_Hide2!V$5, 'Full set Core Client Indicator'!$A$3:$AB$3, 0))=\"\", \"\",  INDEX('Full set Core Client Indicator'!$A$3:$AB$351, MATCH(Selection_Hide2!$A287, 'Full set Core Client Indicator'!$A$3:$A$351, 0), MATCH(Selection_Hide2!V$5, 'Full set Core Client Indicator'!$A$3:$AB$3, 0))), \"\")","v":""},{"$f":"IF(V287<>\"\", IF(INDEX('Full set Core Client Indicator'!$A$3:$AB$351, MATCH(Selection_Hide2!$A287, 'Full set Core Client Indicator'!$A$3:$A$351, 0), MATCH(Selection_Hide2!W$5, 'Full set Core Client Indicator'!$A$3:$AB$3, 0))=\"\", \"\",  INDEX('Full set Core Client Indicator'!$A$3:$AB$351, MATCH(Selection_Hide2!$A287, 'Full set Core Client Indicator'!$A$3:$A$351, 0), MATCH(Selection_Hide2!W$5, 'Full set Core Client Indicator'!$A$3:$AB$3, 0))), \"\")","v":""},{"$f":"IF(W287<>\"\", IF(INDEX('Full set Core Client Indicator'!$A$3:$AB$351, MATCH(Selection_Hide2!$A287, 'Full set Core Client Indicator'!$A$3:$A$351, 0), MATCH(Selection_Hide2!X$5, 'Full set Core Client Indicator'!$A$3:$AB$3, 0))=\"\", \"\",  INDEX('Full set Core Client Indicator'!$A$3:$AB$351, MATCH(Selection_Hide2!$A287, 'Full set Core Client Indicator'!$A$3:$A$351, 0), MATCH(Selection_Hide2!X$5, 'Full set Core Client Indicator'!$A$3:$AB$3, 0))), \"\")","v":""},{"$f":"IF(X287<>\"\", IF(INDEX('Full set Core Client Indicator'!$A$3:$AB$351, MATCH(Selection_Hide2!$A287, 'Full set Core Client Indicator'!$A$3:$A$351, 0), MATCH(Selection_Hide2!Y$5, 'Full set Core Client Indicator'!$A$3:$AB$3, 0))=\"\", \"\",  INDEX('Full set Core Client Indicator'!$A$3:$AB$351, MATCH(Selection_Hide2!$A287, 'Full set Core Client Indicator'!$A$3:$A$351, 0), MATCH(Selection_Hide2!Y$5, 'Full set Core Client Indicator'!$A$3:$AB$3, 0))), \"\")","v":""},{"$f":"IF(Y287<>\"\", IF(INDEX('Full set Core Client Indicator'!$A$3:$AB$351, MATCH(Selection_Hide2!$A287, 'Full set Core Client Indicator'!$A$3:$A$351, 0), MATCH(Selection_Hide2!Z$5, 'Full set Core Client Indicator'!$A$3:$AB$3, 0))=\"\", \"\",  INDEX('Full set Core Client Indicator'!$A$3:$AB$351, MATCH(Selection_Hide2!$A287, 'Full set Core Client Indicator'!$A$3:$A$351, 0), MATCH(Selection_Hide2!Z$5, 'Full set Core Client Indicator'!$A$3:$AB$3, 0))), \"\")","v":""},{"$f":"IF(Z287<>\"\", IF(INDEX('Full set Core Client Indicator'!$A$3:$AB$351, MATCH(Selection_Hide2!$A287, 'Full set Core Client Indicator'!$A$3:$A$351, 0), MATCH(Selection_Hide2!AA$5, 'Full set Core Client Indicator'!$A$3:$AB$3, 0))=\"\", \"\",  INDEX('Full set Core Client Indicator'!$A$3:$AB$351, MATCH(Selection_Hide2!$A287, 'Full set Core Client Indicator'!$A$3:$A$351, 0), MATCH(Selection_Hide2!AA$5, 'Full set Core Client Indicator'!$A$3:$AB$3, 0))), \"\")","v":""},{"$f":"IF(AA287<>\"\", IF(INDEX('Full set Core Client Indicator'!$A$3:$AB$351, MATCH(Selection_Hide2!$A287, 'Full set Core Client Indicator'!$A$3:$A$351, 0), MATCH(Selection_Hide2!AB$5, 'Full set Core Client Indicator'!$A$3:$AB$3, 0))=\"\", \"\",  INDEX('Full set Core Client Indicator'!$A$3:$AB$351, MATCH(Selection_Hide2!$A287, 'Full set Core Client Indicator'!$A$3:$A$351, 0), MATCH(Selection_Hide2!AB$5, 'Full set Core Client Indicator'!$A$3:$AB$3, 0))), \"\")","v":""}]
[{"$f":"IF(AND(Selection_Hide1!C286<>0, Selection_Hide1!C286<>\"Grand Total\"), Selection_Hide1!C286, \"\")","v":""},{"$f":"IF(A288<>\"\", IF(INDEX('Full set Core Client Indicator'!$A$3:$AB$351, MATCH(Selection_Hide2!$A288, 'Full set Core Client Indicator'!$A$3:$A$351, 0), MATCH(Selection_Hide2!B$5, 'Full set Core Client Indicator'!$A$3:$AB$3, 0))=\"\", \"\",  INDEX('Full set Core Client Indicator'!$A$3:$AB$351, MATCH(Selection_Hide2!$A288, 'Full set Core Client Indicator'!$A$3:$A$351, 0), MATCH(Selection_Hide2!B$5, 'Full set Core Client Indicator'!$A$3:$AB$3, 0))), \"\")","v":""},{"$f":"IF(B288<>\"\", IF(INDEX('Full set Core Client Indicator'!$A$3:$AB$351, MATCH(Selection_Hide2!$A288, 'Full set Core Client Indicator'!$A$3:$A$351, 0), MATCH(Selection_Hide2!C$5, 'Full set Core Client Indicator'!$A$3:$AB$3, 0))=\"\", \"\",  INDEX('Full set Core Client Indicator'!$A$3:$AB$351, MATCH(Selection_Hide2!$A288, 'Full set Core Client Indicator'!$A$3:$A$351, 0), MATCH(Selection_Hide2!C$5, 'Full set Core Client Indicator'!$A$3:$AB$3, 0))), \"\")","v":""},{"$f":"IF(C288<>\"\", IF(INDEX('Full set Core Client Indicator'!$A$3:$AB$351, MATCH(Selection_Hide2!$A288, 'Full set Core Client Indicator'!$A$3:$A$351, 0), MATCH(Selection_Hide2!D$5, 'Full set Core Client Indicator'!$A$3:$AB$3, 0))=\"\", \"\",  INDEX('Full set Core Client Indicator'!$A$3:$AB$351, MATCH(Selection_Hide2!$A288, 'Full set Core Client Indicator'!$A$3:$A$351, 0), MATCH(Selection_Hide2!D$5, 'Full set Core Client Indicator'!$A$3:$AB$3, 0))), \"\")","v":""},{"$f":"IF(D288<>\"\", IF(INDEX('Full set Core Client Indicator'!$A$3:$AB$351, MATCH(Selection_Hide2!$A288, 'Full set Core Client Indicator'!$A$3:$A$351, 0), MATCH(Selection_Hide2!E$5, 'Full set Core Client Indicator'!$A$3:$AB$3, 0))=\"\", \"\",  INDEX('Full set Core Client Indicator'!$A$3:$AB$351, MATCH(Selection_Hide2!$A288, 'Full set Core Client Indicator'!$A$3:$A$351, 0), MATCH(Selection_Hide2!E$5, 'Full set Core Client Indicator'!$A$3:$AB$3, 0))), \"\")","v":""},{"$f":"IF(E288<>\"\", IF(INDEX('Full set Core Client Indicator'!$A$3:$AB$351, MATCH(Selection_Hide2!$A288, 'Full set Core Client Indicator'!$A$3:$A$351, 0), MATCH(Selection_Hide2!F$5, 'Full set Core Client Indicator'!$A$3:$AB$3, 0))=\"\", \"\",  INDEX('Full set Core Client Indicator'!$A$3:$AB$351, MATCH(Selection_Hide2!$A288, 'Full set Core Client Indicator'!$A$3:$A$351, 0), MATCH(Selection_Hide2!F$5, 'Full set Core Client Indicator'!$A$3:$AB$3, 0))), \"\")","v":""},{"$f":"IF(F288<>\"\", IF(INDEX('Full set Core Client Indicator'!$A$3:$AB$351, MATCH(Selection_Hide2!$A288, 'Full set Core Client Indicator'!$A$3:$A$351, 0), MATCH(Selection_Hide2!G$5, 'Full set Core Client Indicator'!$A$3:$AB$3, 0))=\"\", \"\",  INDEX('Full set Core Client Indicator'!$A$3:$AB$351, MATCH(Selection_Hide2!$A288, 'Full set Core Client Indicator'!$A$3:$A$351, 0), MATCH(Selection_Hide2!G$5, 'Full set Core Client Indicator'!$A$3:$AB$3, 0))), \"\")","v":""},{"$f":"IF(G288<>\"\", IF(INDEX('Full set Core Client Indicator'!$A$3:$AB$351, MATCH(Selection_Hide2!$A288, 'Full set Core Client Indicator'!$A$3:$A$351, 0), MATCH(Selection_Hide2!H$5, 'Full set Core Client Indicator'!$A$3:$AB$3, 0))=\"\", \"\",  INDEX('Full set Core Client Indicator'!$A$3:$AB$351, MATCH(Selection_Hide2!$A288, 'Full set Core Client Indicator'!$A$3:$A$351, 0), MATCH(Selection_Hide2!H$5, 'Full set Core Client Indicator'!$A$3:$AB$3, 0))), \"\")","v":""},{"$f":"IF(H288<>\"\", IF(INDEX('Full set Core Client Indicator'!$A$3:$AB$351, MATCH(Selection_Hide2!$A288, 'Full set Core Client Indicator'!$A$3:$A$351, 0), MATCH(Selection_Hide2!I$5, 'Full set Core Client Indicator'!$A$3:$AB$3, 0))=\"\", \"\",  INDEX('Full set Core Client Indicator'!$A$3:$AB$351, MATCH(Selection_Hide2!$A288, 'Full set Core Client Indicator'!$A$3:$A$351, 0), MATCH(Selection_Hide2!I$5, 'Full set Core Client Indicator'!$A$3:$AB$3, 0))), \"\")","v":""},{"$f":"IF(I288<>\"\", IF(INDEX('Full set Core Client Indicator'!$A$3:$AB$351, MATCH(Selection_Hide2!$A288, 'Full set Core Client Indicator'!$A$3:$A$351, 0), MATCH(Selection_Hide2!J$5, 'Full set Core Client Indicator'!$A$3:$AB$3, 0))=\"\", \"\",  INDEX('Full set Core Client Indicator'!$A$3:$AB$351, MATCH(Selection_Hide2!$A288, 'Full set Core Client Indicator'!$A$3:$A$351, 0), MATCH(Selection_Hide2!J$5, 'Full set Core Client Indicator'!$A$3:$AB$3, 0))), \"\")","v":""},{"$f":"IF(J288<>\"\", IF(INDEX('Full set Core Client Indicator'!$A$3:$AB$351, MATCH(Selection_Hide2!$A288, 'Full set Core Client Indicator'!$A$3:$A$351, 0), MATCH(Selection_Hide2!K$5, 'Full set Core Client Indicator'!$A$3:$AB$3, 0))=\"\", \"\",  INDEX('Full set Core Client Indicator'!$A$3:$AB$351, MATCH(Selection_Hide2!$A288, 'Full set Core Client Indicator'!$A$3:$A$351, 0), MATCH(Selection_Hide2!K$5, 'Full set Core Client Indicator'!$A$3:$AB$3, 0))), \"\")","v":""},{"$f":"IF(K288<>\"\", IF(INDEX('Full set Core Client Indicator'!$A$3:$AB$351, MATCH(Selection_Hide2!$A288, 'Full set Core Client Indicator'!$A$3:$A$351, 0), MATCH(Selection_Hide2!L$5, 'Full set Core Client Indicator'!$A$3:$AB$3, 0))=\"\", \"\",  INDEX('Full set Core Client Indicator'!$A$3:$AB$351, MATCH(Selection_Hide2!$A288, 'Full set Core Client Indicator'!$A$3:$A$351, 0), MATCH(Selection_Hide2!L$5, 'Full set Core Client Indicator'!$A$3:$AB$3, 0))), \"\")","v":""},{"$f":"IF(L288<>\"\", IF(INDEX('Full set Core Client Indicator'!$A$3:$AB$351, MATCH(Selection_Hide2!$A288, 'Full set Core Client Indicator'!$A$3:$A$351, 0), MATCH(Selection_Hide2!M$5, 'Full set Core Client Indicator'!$A$3:$AB$3, 0))=\"\", \"\",  INDEX('Full set Core Client Indicator'!$A$3:$AB$351, MATCH(Selection_Hide2!$A288, 'Full set Core Client Indicator'!$A$3:$A$351, 0), MATCH(Selection_Hide2!M$5, 'Full set Core Client Indicator'!$A$3:$AB$3, 0))), \"\")","v":""},{"$f":"IF(M288<>\"\", IF(INDEX('Full set Core Client Indicator'!$A$3:$AB$351, MATCH(Selection_Hide2!$A288, 'Full set Core Client Indicator'!$A$3:$A$351, 0), MATCH(Selection_Hide2!N$5, 'Full set Core Client Indicator'!$A$3:$AB$3, 0))=\"\", \"\",  INDEX('Full set Core Client Indicator'!$A$3:$AB$351, MATCH(Selection_Hide2!$A288, 'Full set Core Client Indicator'!$A$3:$A$351, 0), MATCH(Selection_Hide2!N$5, 'Full set Core Client Indicator'!$A$3:$AB$3, 0))), \"\")","v":""},{"$f":"IF(N288<>\"\", IF(INDEX('Full set Core Client Indicator'!$A$3:$AB$351, MATCH(Selection_Hide2!$A288, 'Full set Core Client Indicator'!$A$3:$A$351, 0), MATCH(Selection_Hide2!O$5, 'Full set Core Client Indicator'!$A$3:$AB$3, 0))=\"\", \"\",  INDEX('Full set Core Client Indicator'!$A$3:$AB$351, MATCH(Selection_Hide2!$A288, 'Full set Core Client Indicator'!$A$3:$A$351, 0), MATCH(Selection_Hide2!O$5, 'Full set Core Client Indicator'!$A$3:$AB$3, 0))), \"\")","v":""},{"$f":"IF(O288<>\"\", IF(INDEX('Full set Core Client Indicator'!$A$3:$AB$351, MATCH(Selection_Hide2!$A288, 'Full set Core Client Indicator'!$A$3:$A$351, 0), MATCH(Selection_Hide2!P$5, 'Full set Core Client Indicator'!$A$3:$AB$3, 0))=\"\", \"\",  INDEX('Full set Core Client Indicator'!$A$3:$AB$351, MATCH(Selection_Hide2!$A288, 'Full set Core Client Indicator'!$A$3:$A$351, 0), MATCH(Selection_Hide2!P$5, 'Full set Core Client Indicator'!$A$3:$AB$3, 0))), \"\")","v":""},{"$f":"IF(P288<>\"\", IF(INDEX('Full set Core Client Indicator'!$A$3:$AB$351, MATCH(Selection_Hide2!$A288, 'Full set Core Client Indicator'!$A$3:$A$351, 0), MATCH(Selection_Hide2!Q$5, 'Full set Core Client Indicator'!$A$3:$AB$3, 0))=\"\", \"\",  INDEX('Full set Core Client Indicator'!$A$3:$AB$351, MATCH(Selection_Hide2!$A288, 'Full set Core Client Indicator'!$A$3:$A$351, 0), MATCH(Selection_Hide2!Q$5, 'Full set Core Client Indicator'!$A$3:$AB$3, 0))), \"\")","v":""},{"$f":"IF(Q288<>\"\", IF(INDEX('Full set Core Client Indicator'!$A$3:$AB$351, MATCH(Selection_Hide2!$A288, 'Full set Core Client Indicator'!$A$3:$A$351, 0), MATCH(Selection_Hide2!R$5, 'Full set Core Client Indicator'!$A$3:$AB$3, 0))=\"\", \"\",  INDEX('Full set Core Client Indicator'!$A$3:$AB$351, MATCH(Selection_Hide2!$A288, 'Full set Core Client Indicator'!$A$3:$A$351, 0), MATCH(Selection_Hide2!R$5, 'Full set Core Client Indicator'!$A$3:$AB$3, 0))), \"\")","v":""},{"$f":"IF(R288<>\"\", IF(INDEX('Full set Core Client Indicator'!$A$3:$AB$351, MATCH(Selection_Hide2!$A288, 'Full set Core Client Indicator'!$A$3:$A$351, 0), MATCH(Selection_Hide2!S$5, 'Full set Core Client Indicator'!$A$3:$AB$3, 0))=\"\", \"\",  INDEX('Full set Core Client Indicator'!$A$3:$AB$351, MATCH(Selection_Hide2!$A288, 'Full set Core Client Indicator'!$A$3:$A$351, 0), MATCH(Selection_Hide2!S$5, 'Full set Core Client Indicator'!$A$3:$AB$3, 0))), \"\")","v":""},{"$f":"IF(S288<>\"\", IF(INDEX('Full set Core Client Indicator'!$A$3:$AB$351, MATCH(Selection_Hide2!$A288, 'Full set Core Client Indicator'!$A$3:$A$351, 0), MATCH(Selection_Hide2!T$5, 'Full set Core Client Indicator'!$A$3:$AB$3, 0))=\"\", \"\",  INDEX('Full set Core Client Indicator'!$A$3:$AB$351, MATCH(Selection_Hide2!$A288, 'Full set Core Client Indicator'!$A$3:$A$351, 0), MATCH(Selection_Hide2!T$5, 'Full set Core Client Indicator'!$A$3:$AB$3, 0))), \"\")","v":""},{"$f":"IF(T288<>\"\", IF(INDEX('Full set Core Client Indicator'!$A$3:$AB$351, MATCH(Selection_Hide2!$A288, 'Full set Core Client Indicator'!$A$3:$A$351, 0), MATCH(Selection_Hide2!U$5, 'Full set Core Client Indicator'!$A$3:$AB$3, 0))=\"\", \"\",  INDEX('Full set Core Client Indicator'!$A$3:$AB$351, MATCH(Selection_Hide2!$A288, 'Full set Core Client Indicator'!$A$3:$A$351, 0), MATCH(Selection_Hide2!U$5, 'Full set Core Client Indicator'!$A$3:$AB$3, 0))), \"\")","v":""},{"$f":"IF(U288<>\"\", IF(INDEX('Full set Core Client Indicator'!$A$3:$AB$351, MATCH(Selection_Hide2!$A288, 'Full set Core Client Indicator'!$A$3:$A$351, 0), MATCH(Selection_Hide2!V$5, 'Full set Core Client Indicator'!$A$3:$AB$3, 0))=\"\", \"\",  INDEX('Full set Core Client Indicator'!$A$3:$AB$351, MATCH(Selection_Hide2!$A288, 'Full set Core Client Indicator'!$A$3:$A$351, 0), MATCH(Selection_Hide2!V$5, 'Full set Core Client Indicator'!$A$3:$AB$3, 0))), \"\")","v":""},{"$f":"IF(V288<>\"\", IF(INDEX('Full set Core Client Indicator'!$A$3:$AB$351, MATCH(Selection_Hide2!$A288, 'Full set Core Client Indicator'!$A$3:$A$351, 0), MATCH(Selection_Hide2!W$5, 'Full set Core Client Indicator'!$A$3:$AB$3, 0))=\"\", \"\",  INDEX('Full set Core Client Indicator'!$A$3:$AB$351, MATCH(Selection_Hide2!$A288, 'Full set Core Client Indicator'!$A$3:$A$351, 0), MATCH(Selection_Hide2!W$5, 'Full set Core Client Indicator'!$A$3:$AB$3, 0))), \"\")","v":""},{"$f":"IF(W288<>\"\", IF(INDEX('Full set Core Client Indicator'!$A$3:$AB$351, MATCH(Selection_Hide2!$A288, 'Full set Core Client Indicator'!$A$3:$A$351, 0), MATCH(Selection_Hide2!X$5, 'Full set Core Client Indicator'!$A$3:$AB$3, 0))=\"\", \"\",  INDEX('Full set Core Client Indicator'!$A$3:$AB$351, MATCH(Selection_Hide2!$A288, 'Full set Core Client Indicator'!$A$3:$A$351, 0), MATCH(Selection_Hide2!X$5, 'Full set Core Client Indicator'!$A$3:$AB$3, 0))), \"\")","v":""},{"$f":"IF(X288<>\"\", IF(INDEX('Full set Core Client Indicator'!$A$3:$AB$351, MATCH(Selection_Hide2!$A288, 'Full set Core Client Indicator'!$A$3:$A$351, 0), MATCH(Selection_Hide2!Y$5, 'Full set Core Client Indicator'!$A$3:$AB$3, 0))=\"\", \"\",  INDEX('Full set Core Client Indicator'!$A$3:$AB$351, MATCH(Selection_Hide2!$A288, 'Full set Core Client Indicator'!$A$3:$A$351, 0), MATCH(Selection_Hide2!Y$5, 'Full set Core Client Indicator'!$A$3:$AB$3, 0))), \"\")","v":""},{"$f":"IF(Y288<>\"\", IF(INDEX('Full set Core Client Indicator'!$A$3:$AB$351, MATCH(Selection_Hide2!$A288, 'Full set Core Client Indicator'!$A$3:$A$351, 0), MATCH(Selection_Hide2!Z$5, 'Full set Core Client Indicator'!$A$3:$AB$3, 0))=\"\", \"\",  INDEX('Full set Core Client Indicator'!$A$3:$AB$351, MATCH(Selection_Hide2!$A288, 'Full set Core Client Indicator'!$A$3:$A$351, 0), MATCH(Selection_Hide2!Z$5, 'Full set Core Client Indicator'!$A$3:$AB$3, 0))), \"\")","v":""},{"$f":"IF(Z288<>\"\", IF(INDEX('Full set Core Client Indicator'!$A$3:$AB$351, MATCH(Selection_Hide2!$A288, 'Full set Core Client Indicator'!$A$3:$A$351, 0), MATCH(Selection_Hide2!AA$5, 'Full set Core Client Indicator'!$A$3:$AB$3, 0))=\"\", \"\",  INDEX('Full set Core Client Indicator'!$A$3:$AB$351, MATCH(Selection_Hide2!$A288, 'Full set Core Client Indicator'!$A$3:$A$351, 0), MATCH(Selection_Hide2!AA$5, 'Full set Core Client Indicator'!$A$3:$AB$3, 0))), \"\")","v":""},{"$f":"IF(AA288<>\"\", IF(INDEX('Full set Core Client Indicator'!$A$3:$AB$351, MATCH(Selection_Hide2!$A288, 'Full set Core Client Indicator'!$A$3:$A$351, 0), MATCH(Selection_Hide2!AB$5, 'Full set Core Client Indicator'!$A$3:$AB$3, 0))=\"\", \"\",  INDEX('Full set Core Client Indicator'!$A$3:$AB$351, MATCH(Selection_Hide2!$A288, 'Full set Core Client Indicator'!$A$3:$A$351, 0), MATCH(Selection_Hide2!AB$5, 'Full set Core Client Indicator'!$A$3:$AB$3, 0))), \"\")","v":""}]
[{"$f":"IF(AND(Selection_Hide1!C287<>0, Selection_Hide1!C287<>\"Grand Total\"), Selection_Hide1!C287, \"\")","v":""},{"$f":"IF(A289<>\"\", IF(INDEX('Full set Core Client Indicator'!$A$3:$AB$351, MATCH(Selection_Hide2!$A289, 'Full set Core Client Indicator'!$A$3:$A$351, 0), MATCH(Selection_Hide2!B$5, 'Full set Core Client Indicator'!$A$3:$AB$3, 0))=\"\", \"\",  INDEX('Full set Core Client Indicator'!$A$3:$AB$351, MATCH(Selection_Hide2!$A289, 'Full set Core Client Indicator'!$A$3:$A$351, 0), MATCH(Selection_Hide2!B$5, 'Full set Core Client Indicator'!$A$3:$AB$3, 0))), \"\")","v":""},{"$f":"IF(B289<>\"\", IF(INDEX('Full set Core Client Indicator'!$A$3:$AB$351, MATCH(Selection_Hide2!$A289, 'Full set Core Client Indicator'!$A$3:$A$351, 0), MATCH(Selection_Hide2!C$5, 'Full set Core Client Indicator'!$A$3:$AB$3, 0))=\"\", \"\",  INDEX('Full set Core Client Indicator'!$A$3:$AB$351, MATCH(Selection_Hide2!$A289, 'Full set Core Client Indicator'!$A$3:$A$351, 0), MATCH(Selection_Hide2!C$5, 'Full set Core Client Indicator'!$A$3:$AB$3, 0))), \"\")","v":""},{"$f":"IF(C289<>\"\", IF(INDEX('Full set Core Client Indicator'!$A$3:$AB$351, MATCH(Selection_Hide2!$A289, 'Full set Core Client Indicator'!$A$3:$A$351, 0), MATCH(Selection_Hide2!D$5, 'Full set Core Client Indicator'!$A$3:$AB$3, 0))=\"\", \"\",  INDEX('Full set Core Client Indicator'!$A$3:$AB$351, MATCH(Selection_Hide2!$A289, 'Full set Core Client Indicator'!$A$3:$A$351, 0), MATCH(Selection_Hide2!D$5, 'Full set Core Client Indicator'!$A$3:$AB$3, 0))), \"\")","v":""},{"$f":"IF(D289<>\"\", IF(INDEX('Full set Core Client Indicator'!$A$3:$AB$351, MATCH(Selection_Hide2!$A289, 'Full set Core Client Indicator'!$A$3:$A$351, 0), MATCH(Selection_Hide2!E$5, 'Full set Core Client Indicator'!$A$3:$AB$3, 0))=\"\", \"\",  INDEX('Full set Core Client Indicator'!$A$3:$AB$351, MATCH(Selection_Hide2!$A289, 'Full set Core Client Indicator'!$A$3:$A$351, 0), MATCH(Selection_Hide2!E$5, 'Full set Core Client Indicator'!$A$3:$AB$3, 0))), \"\")","v":""},{"$f":"IF(E289<>\"\", IF(INDEX('Full set Core Client Indicator'!$A$3:$AB$351, MATCH(Selection_Hide2!$A289, 'Full set Core Client Indicator'!$A$3:$A$351, 0), MATCH(Selection_Hide2!F$5, 'Full set Core Client Indicator'!$A$3:$AB$3, 0))=\"\", \"\",  INDEX('Full set Core Client Indicator'!$A$3:$AB$351, MATCH(Selection_Hide2!$A289, 'Full set Core Client Indicator'!$A$3:$A$351, 0), MATCH(Selection_Hide2!F$5, 'Full set Core Client Indicator'!$A$3:$AB$3, 0))), \"\")","v":""},{"$f":"IF(F289<>\"\", IF(INDEX('Full set Core Client Indicator'!$A$3:$AB$351, MATCH(Selection_Hide2!$A289, 'Full set Core Client Indicator'!$A$3:$A$351, 0), MATCH(Selection_Hide2!G$5, 'Full set Core Client Indicator'!$A$3:$AB$3, 0))=\"\", \"\",  INDEX('Full set Core Client Indicator'!$A$3:$AB$351, MATCH(Selection_Hide2!$A289, 'Full set Core Client Indicator'!$A$3:$A$351, 0), MATCH(Selection_Hide2!G$5, 'Full set Core Client Indicator'!$A$3:$AB$3, 0))), \"\")","v":""},{"$f":"IF(G289<>\"\", IF(INDEX('Full set Core Client Indicator'!$A$3:$AB$351, MATCH(Selection_Hide2!$A289, 'Full set Core Client Indicator'!$A$3:$A$351, 0), MATCH(Selection_Hide2!H$5, 'Full set Core Client Indicator'!$A$3:$AB$3, 0))=\"\", \"\",  INDEX('Full set Core Client Indicator'!$A$3:$AB$351, MATCH(Selection_Hide2!$A289, 'Full set Core Client Indicator'!$A$3:$A$351, 0), MATCH(Selection_Hide2!H$5, 'Full set Core Client Indicator'!$A$3:$AB$3, 0))), \"\")","v":""},{"$f":"IF(H289<>\"\", IF(INDEX('Full set Core Client Indicator'!$A$3:$AB$351, MATCH(Selection_Hide2!$A289, 'Full set Core Client Indicator'!$A$3:$A$351, 0), MATCH(Selection_Hide2!I$5, 'Full set Core Client Indicator'!$A$3:$AB$3, 0))=\"\", \"\",  INDEX('Full set Core Client Indicator'!$A$3:$AB$351, MATCH(Selection_Hide2!$A289, 'Full set Core Client Indicator'!$A$3:$A$351, 0), MATCH(Selection_Hide2!I$5, 'Full set Core Client Indicator'!$A$3:$AB$3, 0))), \"\")","v":""},{"$f":"IF(I289<>\"\", IF(INDEX('Full set Core Client Indicator'!$A$3:$AB$351, MATCH(Selection_Hide2!$A289, 'Full set Core Client Indicator'!$A$3:$A$351, 0), MATCH(Selection_Hide2!J$5, 'Full set Core Client Indicator'!$A$3:$AB$3, 0))=\"\", \"\",  INDEX('Full set Core Client Indicator'!$A$3:$AB$351, MATCH(Selection_Hide2!$A289, 'Full set Core Client Indicator'!$A$3:$A$351, 0), MATCH(Selection_Hide2!J$5, 'Full set Core Client Indicator'!$A$3:$AB$3, 0))), \"\")","v":""},{"$f":"IF(J289<>\"\", IF(INDEX('Full set Core Client Indicator'!$A$3:$AB$351, MATCH(Selection_Hide2!$A289, 'Full set Core Client Indicator'!$A$3:$A$351, 0), MATCH(Selection_Hide2!K$5, 'Full set Core Client Indicator'!$A$3:$AB$3, 0))=\"\", \"\",  INDEX('Full set Core Client Indicator'!$A$3:$AB$351, MATCH(Selection_Hide2!$A289, 'Full set Core Client Indicator'!$A$3:$A$351, 0), MATCH(Selection_Hide2!K$5, 'Full set Core Client Indicator'!$A$3:$AB$3, 0))), \"\")","v":""},{"$f":"IF(K289<>\"\", IF(INDEX('Full set Core Client Indicator'!$A$3:$AB$351, MATCH(Selection_Hide2!$A289, 'Full set Core Client Indicator'!$A$3:$A$351, 0), MATCH(Selection_Hide2!L$5, 'Full set Core Client Indicator'!$A$3:$AB$3, 0))=\"\", \"\",  INDEX('Full set Core Client Indicator'!$A$3:$AB$351, MATCH(Selection_Hide2!$A289, 'Full set Core Client Indicator'!$A$3:$A$351, 0), MATCH(Selection_Hide2!L$5, 'Full set Core Client Indicator'!$A$3:$AB$3, 0))), \"\")","v":""},{"$f":"IF(L289<>\"\", IF(INDEX('Full set Core Client Indicator'!$A$3:$AB$351, MATCH(Selection_Hide2!$A289, 'Full set Core Client Indicator'!$A$3:$A$351, 0), MATCH(Selection_Hide2!M$5, 'Full set Core Client Indicator'!$A$3:$AB$3, 0))=\"\", \"\",  INDEX('Full set Core Client Indicator'!$A$3:$AB$351, MATCH(Selection_Hide2!$A289, 'Full set Core Client Indicator'!$A$3:$A$351, 0), MATCH(Selection_Hide2!M$5, 'Full set Core Client Indicator'!$A$3:$AB$3, 0))), \"\")","v":""},{"$f":"IF(M289<>\"\", IF(INDEX('Full set Core Client Indicator'!$A$3:$AB$351, MATCH(Selection_Hide2!$A289, 'Full set Core Client Indicator'!$A$3:$A$351, 0), MATCH(Selection_Hide2!N$5, 'Full set Core Client Indicator'!$A$3:$AB$3, 0))=\"\", \"\",  INDEX('Full set Core Client Indicator'!$A$3:$AB$351, MATCH(Selection_Hide2!$A289, 'Full set Core Client Indicator'!$A$3:$A$351, 0), MATCH(Selection_Hide2!N$5, 'Full set Core Client Indicator'!$A$3:$AB$3, 0))), \"\")","v":""},{"$f":"IF(N289<>\"\", IF(INDEX('Full set Core Client Indicator'!$A$3:$AB$351, MATCH(Selection_Hide2!$A289, 'Full set Core Client Indicator'!$A$3:$A$351, 0), MATCH(Selection_Hide2!O$5, 'Full set Core Client Indicator'!$A$3:$AB$3, 0))=\"\", \"\",  INDEX('Full set Core Client Indicator'!$A$3:$AB$351, MATCH(Selection_Hide2!$A289, 'Full set Core Client Indicator'!$A$3:$A$351, 0), MATCH(Selection_Hide2!O$5, 'Full set Core Client Indicator'!$A$3:$AB$3, 0))), \"\")","v":""},{"$f":"IF(O289<>\"\", IF(INDEX('Full set Core Client Indicator'!$A$3:$AB$351, MATCH(Selection_Hide2!$A289, 'Full set Core Client Indicator'!$A$3:$A$351, 0), MATCH(Selection_Hide2!P$5, 'Full set Core Client Indicator'!$A$3:$AB$3, 0))=\"\", \"\",  INDEX('Full set Core Client Indicator'!$A$3:$AB$351, MATCH(Selection_Hide2!$A289, 'Full set Core Client Indicator'!$A$3:$A$351, 0), MATCH(Selection_Hide2!P$5, 'Full set Core Client Indicator'!$A$3:$AB$3, 0))), \"\")","v":""},{"$f":"IF(P289<>\"\", IF(INDEX('Full set Core Client Indicator'!$A$3:$AB$351, MATCH(Selection_Hide2!$A289, 'Full set Core Client Indicator'!$A$3:$A$351, 0), MATCH(Selection_Hide2!Q$5, 'Full set Core Client Indicator'!$A$3:$AB$3, 0))=\"\", \"\",  INDEX('Full set Core Client Indicator'!$A$3:$AB$351, MATCH(Selection_Hide2!$A289, 'Full set Core Client Indicator'!$A$3:$A$351, 0), MATCH(Selection_Hide2!Q$5, 'Full set Core Client Indicator'!$A$3:$AB$3, 0))), \"\")","v":""},{"$f":"IF(Q289<>\"\", IF(INDEX('Full set Core Client Indicator'!$A$3:$AB$351, MATCH(Selection_Hide2!$A289, 'Full set Core Client Indicator'!$A$3:$A$351, 0), MATCH(Selection_Hide2!R$5, 'Full set Core Client Indicator'!$A$3:$AB$3, 0))=\"\", \"\",  INDEX('Full set Core Client Indicator'!$A$3:$AB$351, MATCH(Selection_Hide2!$A289, 'Full set Core Client Indicator'!$A$3:$A$351, 0), MATCH(Selection_Hide2!R$5, 'Full set Core Client Indicator'!$A$3:$AB$3, 0))), \"\")","v":""},{"$f":"IF(R289<>\"\", IF(INDEX('Full set Core Client Indicator'!$A$3:$AB$351, MATCH(Selection_Hide2!$A289, 'Full set Core Client Indicator'!$A$3:$A$351, 0), MATCH(Selection_Hide2!S$5, 'Full set Core Client Indicator'!$A$3:$AB$3, 0))=\"\", \"\",  INDEX('Full set Core Client Indicator'!$A$3:$AB$351, MATCH(Selection_Hide2!$A289, 'Full set Core Client Indicator'!$A$3:$A$351, 0), MATCH(Selection_Hide2!S$5, 'Full set Core Client Indicator'!$A$3:$AB$3, 0))), \"\")","v":""},{"$f":"IF(S289<>\"\", IF(INDEX('Full set Core Client Indicator'!$A$3:$AB$351, MATCH(Selection_Hide2!$A289, 'Full set Core Client Indicator'!$A$3:$A$351, 0), MATCH(Selection_Hide2!T$5, 'Full set Core Client Indicator'!$A$3:$AB$3, 0))=\"\", \"\",  INDEX('Full set Core Client Indicator'!$A$3:$AB$351, MATCH(Selection_Hide2!$A289, 'Full set Core Client Indicator'!$A$3:$A$351, 0), MATCH(Selection_Hide2!T$5, 'Full set Core Client Indicator'!$A$3:$AB$3, 0))), \"\")","v":""},{"$f":"IF(T289<>\"\", IF(INDEX('Full set Core Client Indicator'!$A$3:$AB$351, MATCH(Selection_Hide2!$A289, 'Full set Core Client Indicator'!$A$3:$A$351, 0), MATCH(Selection_Hide2!U$5, 'Full set Core Client Indicator'!$A$3:$AB$3, 0))=\"\", \"\",  INDEX('Full set Core Client Indicator'!$A$3:$AB$351, MATCH(Selection_Hide2!$A289, 'Full set Core Client Indicator'!$A$3:$A$351, 0), MATCH(Selection_Hide2!U$5, 'Full set Core Client Indicator'!$A$3:$AB$3, 0))), \"\")","v":""},{"$f":"IF(U289<>\"\", IF(INDEX('Full set Core Client Indicator'!$A$3:$AB$351, MATCH(Selection_Hide2!$A289, 'Full set Core Client Indicator'!$A$3:$A$351, 0), MATCH(Selection_Hide2!V$5, 'Full set Core Client Indicator'!$A$3:$AB$3, 0))=\"\", \"\",  INDEX('Full set Core Client Indicator'!$A$3:$AB$351, MATCH(Selection_Hide2!$A289, 'Full set Core Client Indicator'!$A$3:$A$351, 0), MATCH(Selection_Hide2!V$5, 'Full set Core Client Indicator'!$A$3:$AB$3, 0))), \"\")","v":""},{"$f":"IF(V289<>\"\", IF(INDEX('Full set Core Client Indicator'!$A$3:$AB$351, MATCH(Selection_Hide2!$A289, 'Full set Core Client Indicator'!$A$3:$A$351, 0), MATCH(Selection_Hide2!W$5, 'Full set Core Client Indicator'!$A$3:$AB$3, 0))=\"\", \"\",  INDEX('Full set Core Client Indicator'!$A$3:$AB$351, MATCH(Selection_Hide2!$A289, 'Full set Core Client Indicator'!$A$3:$A$351, 0), MATCH(Selection_Hide2!W$5, 'Full set Core Client Indicator'!$A$3:$AB$3, 0))), \"\")","v":""},{"$f":"IF(W289<>\"\", IF(INDEX('Full set Core Client Indicator'!$A$3:$AB$351, MATCH(Selection_Hide2!$A289, 'Full set Core Client Indicator'!$A$3:$A$351, 0), MATCH(Selection_Hide2!X$5, 'Full set Core Client Indicator'!$A$3:$AB$3, 0))=\"\", \"\",  INDEX('Full set Core Client Indicator'!$A$3:$AB$351, MATCH(Selection_Hide2!$A289, 'Full set Core Client Indicator'!$A$3:$A$351, 0), MATCH(Selection_Hide2!X$5, 'Full set Core Client Indicator'!$A$3:$AB$3, 0))), \"\")","v":""},{"$f":"IF(X289<>\"\", IF(INDEX('Full set Core Client Indicator'!$A$3:$AB$351, MATCH(Selection_Hide2!$A289, 'Full set Core Client Indicator'!$A$3:$A$351, 0), MATCH(Selection_Hide2!Y$5, 'Full set Core Client Indicator'!$A$3:$AB$3, 0))=\"\", \"\",  INDEX('Full set Core Client Indicator'!$A$3:$AB$351, MATCH(Selection_Hide2!$A289, 'Full set Core Client Indicator'!$A$3:$A$351, 0), MATCH(Selection_Hide2!Y$5, 'Full set Core Client Indicator'!$A$3:$AB$3, 0))), \"\")","v":""},{"$f":"IF(Y289<>\"\", IF(INDEX('Full set Core Client Indicator'!$A$3:$AB$351, MATCH(Selection_Hide2!$A289, 'Full set Core Client Indicator'!$A$3:$A$351, 0), MATCH(Selection_Hide2!Z$5, 'Full set Core Client Indicator'!$A$3:$AB$3, 0))=\"\", \"\",  INDEX('Full set Core Client Indicator'!$A$3:$AB$351, MATCH(Selection_Hide2!$A289, 'Full set Core Client Indicator'!$A$3:$A$351, 0), MATCH(Selection_Hide2!Z$5, 'Full set Core Client Indicator'!$A$3:$AB$3, 0))), \"\")","v":""},{"$f":"IF(Z289<>\"\", IF(INDEX('Full set Core Client Indicator'!$A$3:$AB$351, MATCH(Selection_Hide2!$A289, 'Full set Core Client Indicator'!$A$3:$A$351, 0), MATCH(Selection_Hide2!AA$5, 'Full set Core Client Indicator'!$A$3:$AB$3, 0))=\"\", \"\",  INDEX('Full set Core Client Indicator'!$A$3:$AB$351, MATCH(Selection_Hide2!$A289, 'Full set Core Client Indicator'!$A$3:$A$351, 0), MATCH(Selection_Hide2!AA$5, 'Full set Core Client Indicator'!$A$3:$AB$3, 0))), \"\")","v":""},{"$f":"IF(AA289<>\"\", IF(INDEX('Full set Core Client Indicator'!$A$3:$AB$351, MATCH(Selection_Hide2!$A289, 'Full set Core Client Indicator'!$A$3:$A$351, 0), MATCH(Selection_Hide2!AB$5, 'Full set Core Client Indicator'!$A$3:$AB$3, 0))=\"\", \"\",  INDEX('Full set Core Client Indicator'!$A$3:$AB$351, MATCH(Selection_Hide2!$A289, 'Full set Core Client Indicator'!$A$3:$A$351, 0), MATCH(Selection_Hide2!AB$5, 'Full set Core Client Indicator'!$A$3:$AB$3, 0))), \"\")","v":""}]
[{"$f":"IF(AND(Selection_Hide1!C288<>0, Selection_Hide1!C288<>\"Grand Total\"), Selection_Hide1!C288, \"\")","v":""},{"$f":"IF(A290<>\"\", IF(INDEX('Full set Core Client Indicator'!$A$3:$AB$351, MATCH(Selection_Hide2!$A290, 'Full set Core Client Indicator'!$A$3:$A$351, 0), MATCH(Selection_Hide2!B$5, 'Full set Core Client Indicator'!$A$3:$AB$3, 0))=\"\", \"\",  INDEX('Full set Core Client Indicator'!$A$3:$AB$351, MATCH(Selection_Hide2!$A290, 'Full set Core Client Indicator'!$A$3:$A$351, 0), MATCH(Selection_Hide2!B$5, 'Full set Core Client Indicator'!$A$3:$AB$3, 0))), \"\")","v":""},{"$f":"IF(B290<>\"\", IF(INDEX('Full set Core Client Indicator'!$A$3:$AB$351, MATCH(Selection_Hide2!$A290, 'Full set Core Client Indicator'!$A$3:$A$351, 0), MATCH(Selection_Hide2!C$5, 'Full set Core Client Indicator'!$A$3:$AB$3, 0))=\"\", \"\",  INDEX('Full set Core Client Indicator'!$A$3:$AB$351, MATCH(Selection_Hide2!$A290, 'Full set Core Client Indicator'!$A$3:$A$351, 0), MATCH(Selection_Hide2!C$5, 'Full set Core Client Indicator'!$A$3:$AB$3, 0))), \"\")","v":""},{"$f":"IF(C290<>\"\", IF(INDEX('Full set Core Client Indicator'!$A$3:$AB$351, MATCH(Selection_Hide2!$A290, 'Full set Core Client Indicator'!$A$3:$A$351, 0), MATCH(Selection_Hide2!D$5, 'Full set Core Client Indicator'!$A$3:$AB$3, 0))=\"\", \"\",  INDEX('Full set Core Client Indicator'!$A$3:$AB$351, MATCH(Selection_Hide2!$A290, 'Full set Core Client Indicator'!$A$3:$A$351, 0), MATCH(Selection_Hide2!D$5, 'Full set Core Client Indicator'!$A$3:$AB$3, 0))), \"\")","v":""},{"$f":"IF(D290<>\"\", IF(INDEX('Full set Core Client Indicator'!$A$3:$AB$351, MATCH(Selection_Hide2!$A290, 'Full set Core Client Indicator'!$A$3:$A$351, 0), MATCH(Selection_Hide2!E$5, 'Full set Core Client Indicator'!$A$3:$AB$3, 0))=\"\", \"\",  INDEX('Full set Core Client Indicator'!$A$3:$AB$351, MATCH(Selection_Hide2!$A290, 'Full set Core Client Indicator'!$A$3:$A$351, 0), MATCH(Selection_Hide2!E$5, 'Full set Core Client Indicator'!$A$3:$AB$3, 0))), \"\")","v":""},{"$f":"IF(E290<>\"\", IF(INDEX('Full set Core Client Indicator'!$A$3:$AB$351, MATCH(Selection_Hide2!$A290, 'Full set Core Client Indicator'!$A$3:$A$351, 0), MATCH(Selection_Hide2!F$5, 'Full set Core Client Indicator'!$A$3:$AB$3, 0))=\"\", \"\",  INDEX('Full set Core Client Indicator'!$A$3:$AB$351, MATCH(Selection_Hide2!$A290, 'Full set Core Client Indicator'!$A$3:$A$351, 0), MATCH(Selection_Hide2!F$5, 'Full set Core Client Indicator'!$A$3:$AB$3, 0))), \"\")","v":""},{"$f":"IF(F290<>\"\", IF(INDEX('Full set Core Client Indicator'!$A$3:$AB$351, MATCH(Selection_Hide2!$A290, 'Full set Core Client Indicator'!$A$3:$A$351, 0), MATCH(Selection_Hide2!G$5, 'Full set Core Client Indicator'!$A$3:$AB$3, 0))=\"\", \"\",  INDEX('Full set Core Client Indicator'!$A$3:$AB$351, MATCH(Selection_Hide2!$A290, 'Full set Core Client Indicator'!$A$3:$A$351, 0), MATCH(Selection_Hide2!G$5, 'Full set Core Client Indicator'!$A$3:$AB$3, 0))), \"\")","v":""},{"$f":"IF(G290<>\"\", IF(INDEX('Full set Core Client Indicator'!$A$3:$AB$351, MATCH(Selection_Hide2!$A290, 'Full set Core Client Indicator'!$A$3:$A$351, 0), MATCH(Selection_Hide2!H$5, 'Full set Core Client Indicator'!$A$3:$AB$3, 0))=\"\", \"\",  INDEX('Full set Core Client Indicator'!$A$3:$AB$351, MATCH(Selection_Hide2!$A290, 'Full set Core Client Indicator'!$A$3:$A$351, 0), MATCH(Selection_Hide2!H$5, 'Full set Core Client Indicator'!$A$3:$AB$3, 0))), \"\")","v":""},{"$f":"IF(H290<>\"\", IF(INDEX('Full set Core Client Indicator'!$A$3:$AB$351, MATCH(Selection_Hide2!$A290, 'Full set Core Client Indicator'!$A$3:$A$351, 0), MATCH(Selection_Hide2!I$5, 'Full set Core Client Indicator'!$A$3:$AB$3, 0))=\"\", \"\",  INDEX('Full set Core Client Indicator'!$A$3:$AB$351, MATCH(Selection_Hide2!$A290, 'Full set Core Client Indicator'!$A$3:$A$351, 0), MATCH(Selection_Hide2!I$5, 'Full set Core Client Indicator'!$A$3:$AB$3, 0))), \"\")","v":""},{"$f":"IF(I290<>\"\", IF(INDEX('Full set Core Client Indicator'!$A$3:$AB$351, MATCH(Selection_Hide2!$A290, 'Full set Core Client Indicator'!$A$3:$A$351, 0), MATCH(Selection_Hide2!J$5, 'Full set Core Client Indicator'!$A$3:$AB$3, 0))=\"\", \"\",  INDEX('Full set Core Client Indicator'!$A$3:$AB$351, MATCH(Selection_Hide2!$A290, 'Full set Core Client Indicator'!$A$3:$A$351, 0), MATCH(Selection_Hide2!J$5, 'Full set Core Client Indicator'!$A$3:$AB$3, 0))), \"\")","v":""},{"$f":"IF(J290<>\"\", IF(INDEX('Full set Core Client Indicator'!$A$3:$AB$351, MATCH(Selection_Hide2!$A290, 'Full set Core Client Indicator'!$A$3:$A$351, 0), MATCH(Selection_Hide2!K$5, 'Full set Core Client Indicator'!$A$3:$AB$3, 0))=\"\", \"\",  INDEX('Full set Core Client Indicator'!$A$3:$AB$351, MATCH(Selection_Hide2!$A290, 'Full set Core Client Indicator'!$A$3:$A$351, 0), MATCH(Selection_Hide2!K$5, 'Full set Core Client Indicator'!$A$3:$AB$3, 0))), \"\")","v":""},{"$f":"IF(K290<>\"\", IF(INDEX('Full set Core Client Indicator'!$A$3:$AB$351, MATCH(Selection_Hide2!$A290, 'Full set Core Client Indicator'!$A$3:$A$351, 0), MATCH(Selection_Hide2!L$5, 'Full set Core Client Indicator'!$A$3:$AB$3, 0))=\"\", \"\",  INDEX('Full set Core Client Indicator'!$A$3:$AB$351, MATCH(Selection_Hide2!$A290, 'Full set Core Client Indicator'!$A$3:$A$351, 0), MATCH(Selection_Hide2!L$5, 'Full set Core Client Indicator'!$A$3:$AB$3, 0))), \"\")","v":""},{"$f":"IF(L290<>\"\", IF(INDEX('Full set Core Client Indicator'!$A$3:$AB$351, MATCH(Selection_Hide2!$A290, 'Full set Core Client Indicator'!$A$3:$A$351, 0), MATCH(Selection_Hide2!M$5, 'Full set Core Client Indicator'!$A$3:$AB$3, 0))=\"\", \"\",  INDEX('Full set Core Client Indicator'!$A$3:$AB$351, MATCH(Selection_Hide2!$A290, 'Full set Core Client Indicator'!$A$3:$A$351, 0), MATCH(Selection_Hide2!M$5, 'Full set Core Client Indicator'!$A$3:$AB$3, 0))), \"\")","v":""},{"$f":"IF(M290<>\"\", IF(INDEX('Full set Core Client Indicator'!$A$3:$AB$351, MATCH(Selection_Hide2!$A290, 'Full set Core Client Indicator'!$A$3:$A$351, 0), MATCH(Selection_Hide2!N$5, 'Full set Core Client Indicator'!$A$3:$AB$3, 0))=\"\", \"\",  INDEX('Full set Core Client Indicator'!$A$3:$AB$351, MATCH(Selection_Hide2!$A290, 'Full set Core Client Indicator'!$A$3:$A$351, 0), MATCH(Selection_Hide2!N$5, 'Full set Core Client Indicator'!$A$3:$AB$3, 0))), \"\")","v":""},{"$f":"IF(N290<>\"\", IF(INDEX('Full set Core Client Indicator'!$A$3:$AB$351, MATCH(Selection_Hide2!$A290, 'Full set Core Client Indicator'!$A$3:$A$351, 0), MATCH(Selection_Hide2!O$5, 'Full set Core Client Indicator'!$A$3:$AB$3, 0))=\"\", \"\",  INDEX('Full set Core Client Indicator'!$A$3:$AB$351, MATCH(Selection_Hide2!$A290, 'Full set Core Client Indicator'!$A$3:$A$351, 0), MATCH(Selection_Hide2!O$5, 'Full set Core Client Indicator'!$A$3:$AB$3, 0))), \"\")","v":""},{"$f":"IF(O290<>\"\", IF(INDEX('Full set Core Client Indicator'!$A$3:$AB$351, MATCH(Selection_Hide2!$A290, 'Full set Core Client Indicator'!$A$3:$A$351, 0), MATCH(Selection_Hide2!P$5, 'Full set Core Client Indicator'!$A$3:$AB$3, 0))=\"\", \"\",  INDEX('Full set Core Client Indicator'!$A$3:$AB$351, MATCH(Selection_Hide2!$A290, 'Full set Core Client Indicator'!$A$3:$A$351, 0), MATCH(Selection_Hide2!P$5, 'Full set Core Client Indicator'!$A$3:$AB$3, 0))), \"\")","v":""},{"$f":"IF(P290<>\"\", IF(INDEX('Full set Core Client Indicator'!$A$3:$AB$351, MATCH(Selection_Hide2!$A290, 'Full set Core Client Indicator'!$A$3:$A$351, 0), MATCH(Selection_Hide2!Q$5, 'Full set Core Client Indicator'!$A$3:$AB$3, 0))=\"\", \"\",  INDEX('Full set Core Client Indicator'!$A$3:$AB$351, MATCH(Selection_Hide2!$A290, 'Full set Core Client Indicator'!$A$3:$A$351, 0), MATCH(Selection_Hide2!Q$5, 'Full set Core Client Indicator'!$A$3:$AB$3, 0))), \"\")","v":""},{"$f":"IF(Q290<>\"\", IF(INDEX('Full set Core Client Indicator'!$A$3:$AB$351, MATCH(Selection_Hide2!$A290, 'Full set Core Client Indicator'!$A$3:$A$351, 0), MATCH(Selection_Hide2!R$5, 'Full set Core Client Indicator'!$A$3:$AB$3, 0))=\"\", \"\",  INDEX('Full set Core Client Indicator'!$A$3:$AB$351, MATCH(Selection_Hide2!$A290, 'Full set Core Client Indicator'!$A$3:$A$351, 0), MATCH(Selection_Hide2!R$5, 'Full set Core Client Indicator'!$A$3:$AB$3, 0))), \"\")","v":""},{"$f":"IF(R290<>\"\", IF(INDEX('Full set Core Client Indicator'!$A$3:$AB$351, MATCH(Selection_Hide2!$A290, 'Full set Core Client Indicator'!$A$3:$A$351, 0), MATCH(Selection_Hide2!S$5, 'Full set Core Client Indicator'!$A$3:$AB$3, 0))=\"\", \"\",  INDEX('Full set Core Client Indicator'!$A$3:$AB$351, MATCH(Selection_Hide2!$A290, 'Full set Core Client Indicator'!$A$3:$A$351, 0), MATCH(Selection_Hide2!S$5, 'Full set Core Client Indicator'!$A$3:$AB$3, 0))), \"\")","v":""},{"$f":"IF(S290<>\"\", IF(INDEX('Full set Core Client Indicator'!$A$3:$AB$351, MATCH(Selection_Hide2!$A290, 'Full set Core Client Indicator'!$A$3:$A$351, 0), MATCH(Selection_Hide2!T$5, 'Full set Core Client Indicator'!$A$3:$AB$3, 0))=\"\", \"\",  INDEX('Full set Core Client Indicator'!$A$3:$AB$351, MATCH(Selection_Hide2!$A290, 'Full set Core Client Indicator'!$A$3:$A$351, 0), MATCH(Selection_Hide2!T$5, 'Full set Core Client Indicator'!$A$3:$AB$3, 0))), \"\")","v":""},{"$f":"IF(T290<>\"\", IF(INDEX('Full set Core Client Indicator'!$A$3:$AB$351, MATCH(Selection_Hide2!$A290, 'Full set Core Client Indicator'!$A$3:$A$351, 0), MATCH(Selection_Hide2!U$5, 'Full set Core Client Indicator'!$A$3:$AB$3, 0))=\"\", \"\",  INDEX('Full set Core Client Indicator'!$A$3:$AB$351, MATCH(Selection_Hide2!$A290, 'Full set Core Client Indicator'!$A$3:$A$351, 0), MATCH(Selection_Hide2!U$5, 'Full set Core Client Indicator'!$A$3:$AB$3, 0))), \"\")","v":""},{"$f":"IF(U290<>\"\", IF(INDEX('Full set Core Client Indicator'!$A$3:$AB$351, MATCH(Selection_Hide2!$A290, 'Full set Core Client Indicator'!$A$3:$A$351, 0), MATCH(Selection_Hide2!V$5, 'Full set Core Client Indicator'!$A$3:$AB$3, 0))=\"\", \"\",  INDEX('Full set Core Client Indicator'!$A$3:$AB$351, MATCH(Selection_Hide2!$A290, 'Full set Core Client Indicator'!$A$3:$A$351, 0), MATCH(Selection_Hide2!V$5, 'Full set Core Client Indicator'!$A$3:$AB$3, 0))), \"\")","v":""},{"$f":"IF(V290<>\"\", IF(INDEX('Full set Core Client Indicator'!$A$3:$AB$351, MATCH(Selection_Hide2!$A290, 'Full set Core Client Indicator'!$A$3:$A$351, 0), MATCH(Selection_Hide2!W$5, 'Full set Core Client Indicator'!$A$3:$AB$3, 0))=\"\", \"\",  INDEX('Full set Core Client Indicator'!$A$3:$AB$351, MATCH(Selection_Hide2!$A290, 'Full set Core Client Indicator'!$A$3:$A$351, 0), MATCH(Selection_Hide2!W$5, 'Full set Core Client Indicator'!$A$3:$AB$3, 0))), \"\")","v":""},{"$f":"IF(W290<>\"\", IF(INDEX('Full set Core Client Indicator'!$A$3:$AB$351, MATCH(Selection_Hide2!$A290, 'Full set Core Client Indicator'!$A$3:$A$351, 0), MATCH(Selection_Hide2!X$5, 'Full set Core Client Indicator'!$A$3:$AB$3, 0))=\"\", \"\",  INDEX('Full set Core Client Indicator'!$A$3:$AB$351, MATCH(Selection_Hide2!$A290, 'Full set Core Client Indicator'!$A$3:$A$351, 0), MATCH(Selection_Hide2!X$5, 'Full set Core Client Indicator'!$A$3:$AB$3, 0))), \"\")","v":""},{"$f":"IF(X290<>\"\", IF(INDEX('Full set Core Client Indicator'!$A$3:$AB$351, MATCH(Selection_Hide2!$A290, 'Full set Core Client Indicator'!$A$3:$A$351, 0), MATCH(Selection_Hide2!Y$5, 'Full set Core Client Indicator'!$A$3:$AB$3, 0))=\"\", \"\",  INDEX('Full set Core Client Indicator'!$A$3:$AB$351, MATCH(Selection_Hide2!$A290, 'Full set Core Client Indicator'!$A$3:$A$351, 0), MATCH(Selection_Hide2!Y$5, 'Full set Core Client Indicator'!$A$3:$AB$3, 0))), \"\")","v":""},{"$f":"IF(Y290<>\"\", IF(INDEX('Full set Core Client Indicator'!$A$3:$AB$351, MATCH(Selection_Hide2!$A290, 'Full set Core Client Indicator'!$A$3:$A$351, 0), MATCH(Selection_Hide2!Z$5, 'Full set Core Client Indicator'!$A$3:$AB$3, 0))=\"\", \"\",  INDEX('Full set Core Client Indicator'!$A$3:$AB$351, MATCH(Selection_Hide2!$A290, 'Full set Core Client Indicator'!$A$3:$A$351, 0), MATCH(Selection_Hide2!Z$5, 'Full set Core Client Indicator'!$A$3:$AB$3, 0))), \"\")","v":""},{"$f":"IF(Z290<>\"\", IF(INDEX('Full set Core Client Indicator'!$A$3:$AB$351, MATCH(Selection_Hide2!$A290, 'Full set Core Client Indicator'!$A$3:$A$351, 0), MATCH(Selection_Hide2!AA$5, 'Full set Core Client Indicator'!$A$3:$AB$3, 0))=\"\", \"\",  INDEX('Full set Core Client Indicator'!$A$3:$AB$351, MATCH(Selection_Hide2!$A290, 'Full set Core Client Indicator'!$A$3:$A$351, 0), MATCH(Selection_Hide2!AA$5, 'Full set Core Client Indicator'!$A$3:$AB$3, 0))), \"\")","v":""},{"$f":"IF(AA290<>\"\", IF(INDEX('Full set Core Client Indicator'!$A$3:$AB$351, MATCH(Selection_Hide2!$A290, 'Full set Core Client Indicator'!$A$3:$A$351, 0), MATCH(Selection_Hide2!AB$5, 'Full set Core Client Indicator'!$A$3:$AB$3, 0))=\"\", \"\",  INDEX('Full set Core Client Indicator'!$A$3:$AB$351, MATCH(Selection_Hide2!$A290, 'Full set Core Client Indicator'!$A$3:$A$351, 0), MATCH(Selection_Hide2!AB$5, 'Full set Core Client Indicator'!$A$3:$AB$3, 0))), \"\")","v":""}]
[{"$f":"IF(AND(Selection_Hide1!C289<>0, Selection_Hide1!C289<>\"Grand Total\"), Selection_Hide1!C289, \"\")","v":""},{"$f":"IF(A291<>\"\", IF(INDEX('Full set Core Client Indicator'!$A$3:$AB$351, MATCH(Selection_Hide2!$A291, 'Full set Core Client Indicator'!$A$3:$A$351, 0), MATCH(Selection_Hide2!B$5, 'Full set Core Client Indicator'!$A$3:$AB$3, 0))=\"\", \"\",  INDEX('Full set Core Client Indicator'!$A$3:$AB$351, MATCH(Selection_Hide2!$A291, 'Full set Core Client Indicator'!$A$3:$A$351, 0), MATCH(Selection_Hide2!B$5, 'Full set Core Client Indicator'!$A$3:$AB$3, 0))), \"\")","v":""},{"$f":"IF(B291<>\"\", IF(INDEX('Full set Core Client Indicator'!$A$3:$AB$351, MATCH(Selection_Hide2!$A291, 'Full set Core Client Indicator'!$A$3:$A$351, 0), MATCH(Selection_Hide2!C$5, 'Full set Core Client Indicator'!$A$3:$AB$3, 0))=\"\", \"\",  INDEX('Full set Core Client Indicator'!$A$3:$AB$351, MATCH(Selection_Hide2!$A291, 'Full set Core Client Indicator'!$A$3:$A$351, 0), MATCH(Selection_Hide2!C$5, 'Full set Core Client Indicator'!$A$3:$AB$3, 0))), \"\")","v":""},{"$f":"IF(C291<>\"\", IF(INDEX('Full set Core Client Indicator'!$A$3:$AB$351, MATCH(Selection_Hide2!$A291, 'Full set Core Client Indicator'!$A$3:$A$351, 0), MATCH(Selection_Hide2!D$5, 'Full set Core Client Indicator'!$A$3:$AB$3, 0))=\"\", \"\",  INDEX('Full set Core Client Indicator'!$A$3:$AB$351, MATCH(Selection_Hide2!$A291, 'Full set Core Client Indicator'!$A$3:$A$351, 0), MATCH(Selection_Hide2!D$5, 'Full set Core Client Indicator'!$A$3:$AB$3, 0))), \"\")","v":""},{"$f":"IF(D291<>\"\", IF(INDEX('Full set Core Client Indicator'!$A$3:$AB$351, MATCH(Selection_Hide2!$A291, 'Full set Core Client Indicator'!$A$3:$A$351, 0), MATCH(Selection_Hide2!E$5, 'Full set Core Client Indicator'!$A$3:$AB$3, 0))=\"\", \"\",  INDEX('Full set Core Client Indicator'!$A$3:$AB$351, MATCH(Selection_Hide2!$A291, 'Full set Core Client Indicator'!$A$3:$A$351, 0), MATCH(Selection_Hide2!E$5, 'Full set Core Client Indicator'!$A$3:$AB$3, 0))), \"\")","v":""},{"$f":"IF(E291<>\"\", IF(INDEX('Full set Core Client Indicator'!$A$3:$AB$351, MATCH(Selection_Hide2!$A291, 'Full set Core Client Indicator'!$A$3:$A$351, 0), MATCH(Selection_Hide2!F$5, 'Full set Core Client Indicator'!$A$3:$AB$3, 0))=\"\", \"\",  INDEX('Full set Core Client Indicator'!$A$3:$AB$351, MATCH(Selection_Hide2!$A291, 'Full set Core Client Indicator'!$A$3:$A$351, 0), MATCH(Selection_Hide2!F$5, 'Full set Core Client Indicator'!$A$3:$AB$3, 0))), \"\")","v":""},{"$f":"IF(F291<>\"\", IF(INDEX('Full set Core Client Indicator'!$A$3:$AB$351, MATCH(Selection_Hide2!$A291, 'Full set Core Client Indicator'!$A$3:$A$351, 0), MATCH(Selection_Hide2!G$5, 'Full set Core Client Indicator'!$A$3:$AB$3, 0))=\"\", \"\",  INDEX('Full set Core Client Indicator'!$A$3:$AB$351, MATCH(Selection_Hide2!$A291, 'Full set Core Client Indicator'!$A$3:$A$351, 0), MATCH(Selection_Hide2!G$5, 'Full set Core Client Indicator'!$A$3:$AB$3, 0))), \"\")","v":""},{"$f":"IF(G291<>\"\", IF(INDEX('Full set Core Client Indicator'!$A$3:$AB$351, MATCH(Selection_Hide2!$A291, 'Full set Core Client Indicator'!$A$3:$A$351, 0), MATCH(Selection_Hide2!H$5, 'Full set Core Client Indicator'!$A$3:$AB$3, 0))=\"\", \"\",  INDEX('Full set Core Client Indicator'!$A$3:$AB$351, MATCH(Selection_Hide2!$A291, 'Full set Core Client Indicator'!$A$3:$A$351, 0), MATCH(Selection_Hide2!H$5, 'Full set Core Client Indicator'!$A$3:$AB$3, 0))), \"\")","v":""},{"$f":"IF(H291<>\"\", IF(INDEX('Full set Core Client Indicator'!$A$3:$AB$351, MATCH(Selection_Hide2!$A291, 'Full set Core Client Indicator'!$A$3:$A$351, 0), MATCH(Selection_Hide2!I$5, 'Full set Core Client Indicator'!$A$3:$AB$3, 0))=\"\", \"\",  INDEX('Full set Core Client Indicator'!$A$3:$AB$351, MATCH(Selection_Hide2!$A291, 'Full set Core Client Indicator'!$A$3:$A$351, 0), MATCH(Selection_Hide2!I$5, 'Full set Core Client Indicator'!$A$3:$AB$3, 0))), \"\")","v":""},{"$f":"IF(I291<>\"\", IF(INDEX('Full set Core Client Indicator'!$A$3:$AB$351, MATCH(Selection_Hide2!$A291, 'Full set Core Client Indicator'!$A$3:$A$351, 0), MATCH(Selection_Hide2!J$5, 'Full set Core Client Indicator'!$A$3:$AB$3, 0))=\"\", \"\",  INDEX('Full set Core Client Indicator'!$A$3:$AB$351, MATCH(Selection_Hide2!$A291, 'Full set Core Client Indicator'!$A$3:$A$351, 0), MATCH(Selection_Hide2!J$5, 'Full set Core Client Indicator'!$A$3:$AB$3, 0))), \"\")","v":""},{"$f":"IF(J291<>\"\", IF(INDEX('Full set Core Client Indicator'!$A$3:$AB$351, MATCH(Selection_Hide2!$A291, 'Full set Core Client Indicator'!$A$3:$A$351, 0), MATCH(Selection_Hide2!K$5, 'Full set Core Client Indicator'!$A$3:$AB$3, 0))=\"\", \"\",  INDEX('Full set Core Client Indicator'!$A$3:$AB$351, MATCH(Selection_Hide2!$A291, 'Full set Core Client Indicator'!$A$3:$A$351, 0), MATCH(Selection_Hide2!K$5, 'Full set Core Client Indicator'!$A$3:$AB$3, 0))), \"\")","v":""},{"$f":"IF(K291<>\"\", IF(INDEX('Full set Core Client Indicator'!$A$3:$AB$351, MATCH(Selection_Hide2!$A291, 'Full set Core Client Indicator'!$A$3:$A$351, 0), MATCH(Selection_Hide2!L$5, 'Full set Core Client Indicator'!$A$3:$AB$3, 0))=\"\", \"\",  INDEX('Full set Core Client Indicator'!$A$3:$AB$351, MATCH(Selection_Hide2!$A291, 'Full set Core Client Indicator'!$A$3:$A$351, 0), MATCH(Selection_Hide2!L$5, 'Full set Core Client Indicator'!$A$3:$AB$3, 0))), \"\")","v":""},{"$f":"IF(L291<>\"\", IF(INDEX('Full set Core Client Indicator'!$A$3:$AB$351, MATCH(Selection_Hide2!$A291, 'Full set Core Client Indicator'!$A$3:$A$351, 0), MATCH(Selection_Hide2!M$5, 'Full set Core Client Indicator'!$A$3:$AB$3, 0))=\"\", \"\",  INDEX('Full set Core Client Indicator'!$A$3:$AB$351, MATCH(Selection_Hide2!$A291, 'Full set Core Client Indicator'!$A$3:$A$351, 0), MATCH(Selection_Hide2!M$5, 'Full set Core Client Indicator'!$A$3:$AB$3, 0))), \"\")","v":""},{"$f":"IF(M291<>\"\", IF(INDEX('Full set Core Client Indicator'!$A$3:$AB$351, MATCH(Selection_Hide2!$A291, 'Full set Core Client Indicator'!$A$3:$A$351, 0), MATCH(Selection_Hide2!N$5, 'Full set Core Client Indicator'!$A$3:$AB$3, 0))=\"\", \"\",  INDEX('Full set Core Client Indicator'!$A$3:$AB$351, MATCH(Selection_Hide2!$A291, 'Full set Core Client Indicator'!$A$3:$A$351, 0), MATCH(Selection_Hide2!N$5, 'Full set Core Client Indicator'!$A$3:$AB$3, 0))), \"\")","v":""},{"$f":"IF(N291<>\"\", IF(INDEX('Full set Core Client Indicator'!$A$3:$AB$351, MATCH(Selection_Hide2!$A291, 'Full set Core Client Indicator'!$A$3:$A$351, 0), MATCH(Selection_Hide2!O$5, 'Full set Core Client Indicator'!$A$3:$AB$3, 0))=\"\", \"\",  INDEX('Full set Core Client Indicator'!$A$3:$AB$351, MATCH(Selection_Hide2!$A291, 'Full set Core Client Indicator'!$A$3:$A$351, 0), MATCH(Selection_Hide2!O$5, 'Full set Core Client Indicator'!$A$3:$AB$3, 0))), \"\")","v":""},{"$f":"IF(O291<>\"\", IF(INDEX('Full set Core Client Indicator'!$A$3:$AB$351, MATCH(Selection_Hide2!$A291, 'Full set Core Client Indicator'!$A$3:$A$351, 0), MATCH(Selection_Hide2!P$5, 'Full set Core Client Indicator'!$A$3:$AB$3, 0))=\"\", \"\",  INDEX('Full set Core Client Indicator'!$A$3:$AB$351, MATCH(Selection_Hide2!$A291, 'Full set Core Client Indicator'!$A$3:$A$351, 0), MATCH(Selection_Hide2!P$5, 'Full set Core Client Indicator'!$A$3:$AB$3, 0))), \"\")","v":""},{"$f":"IF(P291<>\"\", IF(INDEX('Full set Core Client Indicator'!$A$3:$AB$351, MATCH(Selection_Hide2!$A291, 'Full set Core Client Indicator'!$A$3:$A$351, 0), MATCH(Selection_Hide2!Q$5, 'Full set Core Client Indicator'!$A$3:$AB$3, 0))=\"\", \"\",  INDEX('Full set Core Client Indicator'!$A$3:$AB$351, MATCH(Selection_Hide2!$A291, 'Full set Core Client Indicator'!$A$3:$A$351, 0), MATCH(Selection_Hide2!Q$5, 'Full set Core Client Indicator'!$A$3:$AB$3, 0))), \"\")","v":""},{"$f":"IF(Q291<>\"\", IF(INDEX('Full set Core Client Indicator'!$A$3:$AB$351, MATCH(Selection_Hide2!$A291, 'Full set Core Client Indicator'!$A$3:$A$351, 0), MATCH(Selection_Hide2!R$5, 'Full set Core Client Indicator'!$A$3:$AB$3, 0))=\"\", \"\",  INDEX('Full set Core Client Indicator'!$A$3:$AB$351, MATCH(Selection_Hide2!$A291, 'Full set Core Client Indicator'!$A$3:$A$351, 0), MATCH(Selection_Hide2!R$5, 'Full set Core Client Indicator'!$A$3:$AB$3, 0))), \"\")","v":""},{"$f":"IF(R291<>\"\", IF(INDEX('Full set Core Client Indicator'!$A$3:$AB$351, MATCH(Selection_Hide2!$A291, 'Full set Core Client Indicator'!$A$3:$A$351, 0), MATCH(Selection_Hide2!S$5, 'Full set Core Client Indicator'!$A$3:$AB$3, 0))=\"\", \"\",  INDEX('Full set Core Client Indicator'!$A$3:$AB$351, MATCH(Selection_Hide2!$A291, 'Full set Core Client Indicator'!$A$3:$A$351, 0), MATCH(Selection_Hide2!S$5, 'Full set Core Client Indicator'!$A$3:$AB$3, 0))), \"\")","v":""},{"$f":"IF(S291<>\"\", IF(INDEX('Full set Core Client Indicator'!$A$3:$AB$351, MATCH(Selection_Hide2!$A291, 'Full set Core Client Indicator'!$A$3:$A$351, 0), MATCH(Selection_Hide2!T$5, 'Full set Core Client Indicator'!$A$3:$AB$3, 0))=\"\", \"\",  INDEX('Full set Core Client Indicator'!$A$3:$AB$351, MATCH(Selection_Hide2!$A291, 'Full set Core Client Indicator'!$A$3:$A$351, 0), MATCH(Selection_Hide2!T$5, 'Full set Core Client Indicator'!$A$3:$AB$3, 0))), \"\")","v":""},{"$f":"IF(T291<>\"\", IF(INDEX('Full set Core Client Indicator'!$A$3:$AB$351, MATCH(Selection_Hide2!$A291, 'Full set Core Client Indicator'!$A$3:$A$351, 0), MATCH(Selection_Hide2!U$5, 'Full set Core Client Indicator'!$A$3:$AB$3, 0))=\"\", \"\",  INDEX('Full set Core Client Indicator'!$A$3:$AB$351, MATCH(Selection_Hide2!$A291, 'Full set Core Client Indicator'!$A$3:$A$351, 0), MATCH(Selection_Hide2!U$5, 'Full set Core Client Indicator'!$A$3:$AB$3, 0))), \"\")","v":""},{"$f":"IF(U291<>\"\", IF(INDEX('Full set Core Client Indicator'!$A$3:$AB$351, MATCH(Selection_Hide2!$A291, 'Full set Core Client Indicator'!$A$3:$A$351, 0), MATCH(Selection_Hide2!V$5, 'Full set Core Client Indicator'!$A$3:$AB$3, 0))=\"\", \"\",  INDEX('Full set Core Client Indicator'!$A$3:$AB$351, MATCH(Selection_Hide2!$A291, 'Full set Core Client Indicator'!$A$3:$A$351, 0), MATCH(Selection_Hide2!V$5, 'Full set Core Client Indicator'!$A$3:$AB$3, 0))), \"\")","v":""},{"$f":"IF(V291<>\"\", IF(INDEX('Full set Core Client Indicator'!$A$3:$AB$351, MATCH(Selection_Hide2!$A291, 'Full set Core Client Indicator'!$A$3:$A$351, 0), MATCH(Selection_Hide2!W$5, 'Full set Core Client Indicator'!$A$3:$AB$3, 0))=\"\", \"\",  INDEX('Full set Core Client Indicator'!$A$3:$AB$351, MATCH(Selection_Hide2!$A291, 'Full set Core Client Indicator'!$A$3:$A$351, 0), MATCH(Selection_Hide2!W$5, 'Full set Core Client Indicator'!$A$3:$AB$3, 0))), \"\")","v":""},{"$f":"IF(W291<>\"\", IF(INDEX('Full set Core Client Indicator'!$A$3:$AB$351, MATCH(Selection_Hide2!$A291, 'Full set Core Client Indicator'!$A$3:$A$351, 0), MATCH(Selection_Hide2!X$5, 'Full set Core Client Indicator'!$A$3:$AB$3, 0))=\"\", \"\",  INDEX('Full set Core Client Indicator'!$A$3:$AB$351, MATCH(Selection_Hide2!$A291, 'Full set Core Client Indicator'!$A$3:$A$351, 0), MATCH(Selection_Hide2!X$5, 'Full set Core Client Indicator'!$A$3:$AB$3, 0))), \"\")","v":""},{"$f":"IF(X291<>\"\", IF(INDEX('Full set Core Client Indicator'!$A$3:$AB$351, MATCH(Selection_Hide2!$A291, 'Full set Core Client Indicator'!$A$3:$A$351, 0), MATCH(Selection_Hide2!Y$5, 'Full set Core Client Indicator'!$A$3:$AB$3, 0))=\"\", \"\",  INDEX('Full set Core Client Indicator'!$A$3:$AB$351, MATCH(Selection_Hide2!$A291, 'Full set Core Client Indicator'!$A$3:$A$351, 0), MATCH(Selection_Hide2!Y$5, 'Full set Core Client Indicator'!$A$3:$AB$3, 0))), \"\")","v":""},{"$f":"IF(Y291<>\"\", IF(INDEX('Full set Core Client Indicator'!$A$3:$AB$351, MATCH(Selection_Hide2!$A291, 'Full set Core Client Indicator'!$A$3:$A$351, 0), MATCH(Selection_Hide2!Z$5, 'Full set Core Client Indicator'!$A$3:$AB$3, 0))=\"\", \"\",  INDEX('Full set Core Client Indicator'!$A$3:$AB$351, MATCH(Selection_Hide2!$A291, 'Full set Core Client Indicator'!$A$3:$A$351, 0), MATCH(Selection_Hide2!Z$5, 'Full set Core Client Indicator'!$A$3:$AB$3, 0))), \"\")","v":""},{"$f":"IF(Z291<>\"\", IF(INDEX('Full set Core Client Indicator'!$A$3:$AB$351, MATCH(Selection_Hide2!$A291, 'Full set Core Client Indicator'!$A$3:$A$351, 0), MATCH(Selection_Hide2!AA$5, 'Full set Core Client Indicator'!$A$3:$AB$3, 0))=\"\", \"\",  INDEX('Full set Core Client Indicator'!$A$3:$AB$351, MATCH(Selection_Hide2!$A291, 'Full set Core Client Indicator'!$A$3:$A$351, 0), MATCH(Selection_Hide2!AA$5, 'Full set Core Client Indicator'!$A$3:$AB$3, 0))), \"\")","v":""},{"$f":"IF(AA291<>\"\", IF(INDEX('Full set Core Client Indicator'!$A$3:$AB$351, MATCH(Selection_Hide2!$A291, 'Full set Core Client Indicator'!$A$3:$A$351, 0), MATCH(Selection_Hide2!AB$5, 'Full set Core Client Indicator'!$A$3:$AB$3, 0))=\"\", \"\",  INDEX('Full set Core Client Indicator'!$A$3:$AB$351, MATCH(Selection_Hide2!$A291, 'Full set Core Client Indicator'!$A$3:$A$351, 0), MATCH(Selection_Hide2!AB$5, 'Full set Core Client Indicator'!$A$3:$AB$3, 0))), \"\")","v":""}]
[{"$f":"IF(AND(Selection_Hide1!C290<>0, Selection_Hide1!C290<>\"Grand Total\"), Selection_Hide1!C290, \"\")","v":""},{"$f":"IF(A292<>\"\", IF(INDEX('Full set Core Client Indicator'!$A$3:$AB$351, MATCH(Selection_Hide2!$A292, 'Full set Core Client Indicator'!$A$3:$A$351, 0), MATCH(Selection_Hide2!B$5, 'Full set Core Client Indicator'!$A$3:$AB$3, 0))=\"\", \"\",  INDEX('Full set Core Client Indicator'!$A$3:$AB$351, MATCH(Selection_Hide2!$A292, 'Full set Core Client Indicator'!$A$3:$A$351, 0), MATCH(Selection_Hide2!B$5, 'Full set Core Client Indicator'!$A$3:$AB$3, 0))), \"\")","v":""},{"$f":"IF(B292<>\"\", IF(INDEX('Full set Core Client Indicator'!$A$3:$AB$351, MATCH(Selection_Hide2!$A292, 'Full set Core Client Indicator'!$A$3:$A$351, 0), MATCH(Selection_Hide2!C$5, 'Full set Core Client Indicator'!$A$3:$AB$3, 0))=\"\", \"\",  INDEX('Full set Core Client Indicator'!$A$3:$AB$351, MATCH(Selection_Hide2!$A292, 'Full set Core Client Indicator'!$A$3:$A$351, 0), MATCH(Selection_Hide2!C$5, 'Full set Core Client Indicator'!$A$3:$AB$3, 0))), \"\")","v":""},{"$f":"IF(C292<>\"\", IF(INDEX('Full set Core Client Indicator'!$A$3:$AB$351, MATCH(Selection_Hide2!$A292, 'Full set Core Client Indicator'!$A$3:$A$351, 0), MATCH(Selection_Hide2!D$5, 'Full set Core Client Indicator'!$A$3:$AB$3, 0))=\"\", \"\",  INDEX('Full set Core Client Indicator'!$A$3:$AB$351, MATCH(Selection_Hide2!$A292, 'Full set Core Client Indicator'!$A$3:$A$351, 0), MATCH(Selection_Hide2!D$5, 'Full set Core Client Indicator'!$A$3:$AB$3, 0))), \"\")","v":""},{"$f":"IF(D292<>\"\", IF(INDEX('Full set Core Client Indicator'!$A$3:$AB$351, MATCH(Selection_Hide2!$A292, 'Full set Core Client Indicator'!$A$3:$A$351, 0), MATCH(Selection_Hide2!E$5, 'Full set Core Client Indicator'!$A$3:$AB$3, 0))=\"\", \"\",  INDEX('Full set Core Client Indicator'!$A$3:$AB$351, MATCH(Selection_Hide2!$A292, 'Full set Core Client Indicator'!$A$3:$A$351, 0), MATCH(Selection_Hide2!E$5, 'Full set Core Client Indicator'!$A$3:$AB$3, 0))), \"\")","v":""},{"$f":"IF(E292<>\"\", IF(INDEX('Full set Core Client Indicator'!$A$3:$AB$351, MATCH(Selection_Hide2!$A292, 'Full set Core Client Indicator'!$A$3:$A$351, 0), MATCH(Selection_Hide2!F$5, 'Full set Core Client Indicator'!$A$3:$AB$3, 0))=\"\", \"\",  INDEX('Full set Core Client Indicator'!$A$3:$AB$351, MATCH(Selection_Hide2!$A292, 'Full set Core Client Indicator'!$A$3:$A$351, 0), MATCH(Selection_Hide2!F$5, 'Full set Core Client Indicator'!$A$3:$AB$3, 0))), \"\")","v":""},{"$f":"IF(F292<>\"\", IF(INDEX('Full set Core Client Indicator'!$A$3:$AB$351, MATCH(Selection_Hide2!$A292, 'Full set Core Client Indicator'!$A$3:$A$351, 0), MATCH(Selection_Hide2!G$5, 'Full set Core Client Indicator'!$A$3:$AB$3, 0))=\"\", \"\",  INDEX('Full set Core Client Indicator'!$A$3:$AB$351, MATCH(Selection_Hide2!$A292, 'Full set Core Client Indicator'!$A$3:$A$351, 0), MATCH(Selection_Hide2!G$5, 'Full set Core Client Indicator'!$A$3:$AB$3, 0))), \"\")","v":""},{"$f":"IF(G292<>\"\", IF(INDEX('Full set Core Client Indicator'!$A$3:$AB$351, MATCH(Selection_Hide2!$A292, 'Full set Core Client Indicator'!$A$3:$A$351, 0), MATCH(Selection_Hide2!H$5, 'Full set Core Client Indicator'!$A$3:$AB$3, 0))=\"\", \"\",  INDEX('Full set Core Client Indicator'!$A$3:$AB$351, MATCH(Selection_Hide2!$A292, 'Full set Core Client Indicator'!$A$3:$A$351, 0), MATCH(Selection_Hide2!H$5, 'Full set Core Client Indicator'!$A$3:$AB$3, 0))), \"\")","v":""},{"$f":"IF(H292<>\"\", IF(INDEX('Full set Core Client Indicator'!$A$3:$AB$351, MATCH(Selection_Hide2!$A292, 'Full set Core Client Indicator'!$A$3:$A$351, 0), MATCH(Selection_Hide2!I$5, 'Full set Core Client Indicator'!$A$3:$AB$3, 0))=\"\", \"\",  INDEX('Full set Core Client Indicator'!$A$3:$AB$351, MATCH(Selection_Hide2!$A292, 'Full set Core Client Indicator'!$A$3:$A$351, 0), MATCH(Selection_Hide2!I$5, 'Full set Core Client Indicator'!$A$3:$AB$3, 0))), \"\")","v":""},{"$f":"IF(I292<>\"\", IF(INDEX('Full set Core Client Indicator'!$A$3:$AB$351, MATCH(Selection_Hide2!$A292, 'Full set Core Client Indicator'!$A$3:$A$351, 0), MATCH(Selection_Hide2!J$5, 'Full set Core Client Indicator'!$A$3:$AB$3, 0))=\"\", \"\",  INDEX('Full set Core Client Indicator'!$A$3:$AB$351, MATCH(Selection_Hide2!$A292, 'Full set Core Client Indicator'!$A$3:$A$351, 0), MATCH(Selection_Hide2!J$5, 'Full set Core Client Indicator'!$A$3:$AB$3, 0))), \"\")","v":""},{"$f":"IF(J292<>\"\", IF(INDEX('Full set Core Client Indicator'!$A$3:$AB$351, MATCH(Selection_Hide2!$A292, 'Full set Core Client Indicator'!$A$3:$A$351, 0), MATCH(Selection_Hide2!K$5, 'Full set Core Client Indicator'!$A$3:$AB$3, 0))=\"\", \"\",  INDEX('Full set Core Client Indicator'!$A$3:$AB$351, MATCH(Selection_Hide2!$A292, 'Full set Core Client Indicator'!$A$3:$A$351, 0), MATCH(Selection_Hide2!K$5, 'Full set Core Client Indicator'!$A$3:$AB$3, 0))), \"\")","v":""},{"$f":"IF(K292<>\"\", IF(INDEX('Full set Core Client Indicator'!$A$3:$AB$351, MATCH(Selection_Hide2!$A292, 'Full set Core Client Indicator'!$A$3:$A$351, 0), MATCH(Selection_Hide2!L$5, 'Full set Core Client Indicator'!$A$3:$AB$3, 0))=\"\", \"\",  INDEX('Full set Core Client Indicator'!$A$3:$AB$351, MATCH(Selection_Hide2!$A292, 'Full set Core Client Indicator'!$A$3:$A$351, 0), MATCH(Selection_Hide2!L$5, 'Full set Core Client Indicator'!$A$3:$AB$3, 0))), \"\")","v":""},{"$f":"IF(L292<>\"\", IF(INDEX('Full set Core Client Indicator'!$A$3:$AB$351, MATCH(Selection_Hide2!$A292, 'Full set Core Client Indicator'!$A$3:$A$351, 0), MATCH(Selection_Hide2!M$5, 'Full set Core Client Indicator'!$A$3:$AB$3, 0))=\"\", \"\",  INDEX('Full set Core Client Indicator'!$A$3:$AB$351, MATCH(Selection_Hide2!$A292, 'Full set Core Client Indicator'!$A$3:$A$351, 0), MATCH(Selection_Hide2!M$5, 'Full set Core Client Indicator'!$A$3:$AB$3, 0))), \"\")","v":""},{"$f":"IF(M292<>\"\", IF(INDEX('Full set Core Client Indicator'!$A$3:$AB$351, MATCH(Selection_Hide2!$A292, 'Full set Core Client Indicator'!$A$3:$A$351, 0), MATCH(Selection_Hide2!N$5, 'Full set Core Client Indicator'!$A$3:$AB$3, 0))=\"\", \"\",  INDEX('Full set Core Client Indicator'!$A$3:$AB$351, MATCH(Selection_Hide2!$A292, 'Full set Core Client Indicator'!$A$3:$A$351, 0), MATCH(Selection_Hide2!N$5, 'Full set Core Client Indicator'!$A$3:$AB$3, 0))), \"\")","v":""},{"$f":"IF(N292<>\"\", IF(INDEX('Full set Core Client Indicator'!$A$3:$AB$351, MATCH(Selection_Hide2!$A292, 'Full set Core Client Indicator'!$A$3:$A$351, 0), MATCH(Selection_Hide2!O$5, 'Full set Core Client Indicator'!$A$3:$AB$3, 0))=\"\", \"\",  INDEX('Full set Core Client Indicator'!$A$3:$AB$351, MATCH(Selection_Hide2!$A292, 'Full set Core Client Indicator'!$A$3:$A$351, 0), MATCH(Selection_Hide2!O$5, 'Full set Core Client Indicator'!$A$3:$AB$3, 0))), \"\")","v":""},{"$f":"IF(O292<>\"\", IF(INDEX('Full set Core Client Indicator'!$A$3:$AB$351, MATCH(Selection_Hide2!$A292, 'Full set Core Client Indicator'!$A$3:$A$351, 0), MATCH(Selection_Hide2!P$5, 'Full set Core Client Indicator'!$A$3:$AB$3, 0))=\"\", \"\",  INDEX('Full set Core Client Indicator'!$A$3:$AB$351, MATCH(Selection_Hide2!$A292, 'Full set Core Client Indicator'!$A$3:$A$351, 0), MATCH(Selection_Hide2!P$5, 'Full set Core Client Indicator'!$A$3:$AB$3, 0))), \"\")","v":""},{"$f":"IF(P292<>\"\", IF(INDEX('Full set Core Client Indicator'!$A$3:$AB$351, MATCH(Selection_Hide2!$A292, 'Full set Core Client Indicator'!$A$3:$A$351, 0), MATCH(Selection_Hide2!Q$5, 'Full set Core Client Indicator'!$A$3:$AB$3, 0))=\"\", \"\",  INDEX('Full set Core Client Indicator'!$A$3:$AB$351, MATCH(Selection_Hide2!$A292, 'Full set Core Client Indicator'!$A$3:$A$351, 0), MATCH(Selection_Hide2!Q$5, 'Full set Core Client Indicator'!$A$3:$AB$3, 0))), \"\")","v":""},{"$f":"IF(Q292<>\"\", IF(INDEX('Full set Core Client Indicator'!$A$3:$AB$351, MATCH(Selection_Hide2!$A292, 'Full set Core Client Indicator'!$A$3:$A$351, 0), MATCH(Selection_Hide2!R$5, 'Full set Core Client Indicator'!$A$3:$AB$3, 0))=\"\", \"\",  INDEX('Full set Core Client Indicator'!$A$3:$AB$351, MATCH(Selection_Hide2!$A292, 'Full set Core Client Indicator'!$A$3:$A$351, 0), MATCH(Selection_Hide2!R$5, 'Full set Core Client Indicator'!$A$3:$AB$3, 0))), \"\")","v":""},{"$f":"IF(R292<>\"\", IF(INDEX('Full set Core Client Indicator'!$A$3:$AB$351, MATCH(Selection_Hide2!$A292, 'Full set Core Client Indicator'!$A$3:$A$351, 0), MATCH(Selection_Hide2!S$5, 'Full set Core Client Indicator'!$A$3:$AB$3, 0))=\"\", \"\",  INDEX('Full set Core Client Indicator'!$A$3:$AB$351, MATCH(Selection_Hide2!$A292, 'Full set Core Client Indicator'!$A$3:$A$351, 0), MATCH(Selection_Hide2!S$5, 'Full set Core Client Indicator'!$A$3:$AB$3, 0))), \"\")","v":""},{"$f":"IF(S292<>\"\", IF(INDEX('Full set Core Client Indicator'!$A$3:$AB$351, MATCH(Selection_Hide2!$A292, 'Full set Core Client Indicator'!$A$3:$A$351, 0), MATCH(Selection_Hide2!T$5, 'Full set Core Client Indicator'!$A$3:$AB$3, 0))=\"\", \"\",  INDEX('Full set Core Client Indicator'!$A$3:$AB$351, MATCH(Selection_Hide2!$A292, 'Full set Core Client Indicator'!$A$3:$A$351, 0), MATCH(Selection_Hide2!T$5, 'Full set Core Client Indicator'!$A$3:$AB$3, 0))), \"\")","v":""},{"$f":"IF(T292<>\"\", IF(INDEX('Full set Core Client Indicator'!$A$3:$AB$351, MATCH(Selection_Hide2!$A292, 'Full set Core Client Indicator'!$A$3:$A$351, 0), MATCH(Selection_Hide2!U$5, 'Full set Core Client Indicator'!$A$3:$AB$3, 0))=\"\", \"\",  INDEX('Full set Core Client Indicator'!$A$3:$AB$351, MATCH(Selection_Hide2!$A292, 'Full set Core Client Indicator'!$A$3:$A$351, 0), MATCH(Selection_Hide2!U$5, 'Full set Core Client Indicator'!$A$3:$AB$3, 0))), \"\")","v":""},{"$f":"IF(U292<>\"\", IF(INDEX('Full set Core Client Indicator'!$A$3:$AB$351, MATCH(Selection_Hide2!$A292, 'Full set Core Client Indicator'!$A$3:$A$351, 0), MATCH(Selection_Hide2!V$5, 'Full set Core Client Indicator'!$A$3:$AB$3, 0))=\"\", \"\",  INDEX('Full set Core Client Indicator'!$A$3:$AB$351, MATCH(Selection_Hide2!$A292, 'Full set Core Client Indicator'!$A$3:$A$351, 0), MATCH(Selection_Hide2!V$5, 'Full set Core Client Indicator'!$A$3:$AB$3, 0))), \"\")","v":""},{"$f":"IF(V292<>\"\", IF(INDEX('Full set Core Client Indicator'!$A$3:$AB$351, MATCH(Selection_Hide2!$A292, 'Full set Core Client Indicator'!$A$3:$A$351, 0), MATCH(Selection_Hide2!W$5, 'Full set Core Client Indicator'!$A$3:$AB$3, 0))=\"\", \"\",  INDEX('Full set Core Client Indicator'!$A$3:$AB$351, MATCH(Selection_Hide2!$A292, 'Full set Core Client Indicator'!$A$3:$A$351, 0), MATCH(Selection_Hide2!W$5, 'Full set Core Client Indicator'!$A$3:$AB$3, 0))), \"\")","v":""},{"$f":"IF(W292<>\"\", IF(INDEX('Full set Core Client Indicator'!$A$3:$AB$351, MATCH(Selection_Hide2!$A292, 'Full set Core Client Indicator'!$A$3:$A$351, 0), MATCH(Selection_Hide2!X$5, 'Full set Core Client Indicator'!$A$3:$AB$3, 0))=\"\", \"\",  INDEX('Full set Core Client Indicator'!$A$3:$AB$351, MATCH(Selection_Hide2!$A292, 'Full set Core Client Indicator'!$A$3:$A$351, 0), MATCH(Selection_Hide2!X$5, 'Full set Core Client Indicator'!$A$3:$AB$3, 0))), \"\")","v":""},{"$f":"IF(X292<>\"\", IF(INDEX('Full set Core Client Indicator'!$A$3:$AB$351, MATCH(Selection_Hide2!$A292, 'Full set Core Client Indicator'!$A$3:$A$351, 0), MATCH(Selection_Hide2!Y$5, 'Full set Core Client Indicator'!$A$3:$AB$3, 0))=\"\", \"\",  INDEX('Full set Core Client Indicator'!$A$3:$AB$351, MATCH(Selection_Hide2!$A292, 'Full set Core Client Indicator'!$A$3:$A$351, 0), MATCH(Selection_Hide2!Y$5, 'Full set Core Client Indicator'!$A$3:$AB$3, 0))), \"\")","v":""},{"$f":"IF(Y292<>\"\", IF(INDEX('Full set Core Client Indicator'!$A$3:$AB$351, MATCH(Selection_Hide2!$A292, 'Full set Core Client Indicator'!$A$3:$A$351, 0), MATCH(Selection_Hide2!Z$5, 'Full set Core Client Indicator'!$A$3:$AB$3, 0))=\"\", \"\",  INDEX('Full set Core Client Indicator'!$A$3:$AB$351, MATCH(Selection_Hide2!$A292, 'Full set Core Client Indicator'!$A$3:$A$351, 0), MATCH(Selection_Hide2!Z$5, 'Full set Core Client Indicator'!$A$3:$AB$3, 0))), \"\")","v":""},{"$f":"IF(Z292<>\"\", IF(INDEX('Full set Core Client Indicator'!$A$3:$AB$351, MATCH(Selection_Hide2!$A292, 'Full set Core Client Indicator'!$A$3:$A$351, 0), MATCH(Selection_Hide2!AA$5, 'Full set Core Client Indicator'!$A$3:$AB$3, 0))=\"\", \"\",  INDEX('Full set Core Client Indicator'!$A$3:$AB$351, MATCH(Selection_Hide2!$A292, 'Full set Core Client Indicator'!$A$3:$A$351, 0), MATCH(Selection_Hide2!AA$5, 'Full set Core Client Indicator'!$A$3:$AB$3, 0))), \"\")","v":""},{"$f":"IF(AA292<>\"\", IF(INDEX('Full set Core Client Indicator'!$A$3:$AB$351, MATCH(Selection_Hide2!$A292, 'Full set Core Client Indicator'!$A$3:$A$351, 0), MATCH(Selection_Hide2!AB$5, 'Full set Core Client Indicator'!$A$3:$AB$3, 0))=\"\", \"\",  INDEX('Full set Core Client Indicator'!$A$3:$AB$351, MATCH(Selection_Hide2!$A292, 'Full set Core Client Indicator'!$A$3:$A$351, 0), MATCH(Selection_Hide2!AB$5, 'Full set Core Client Indicator'!$A$3:$AB$3, 0))), \"\")","v":""}]
[{"$f":"IF(AND(Selection_Hide1!C291<>0, Selection_Hide1!C291<>\"Grand Total\"), Selection_Hide1!C291, \"\")","v":""},{"$f":"IF(A293<>\"\", IF(INDEX('Full set Core Client Indicator'!$A$3:$AB$351, MATCH(Selection_Hide2!$A293, 'Full set Core Client Indicator'!$A$3:$A$351, 0), MATCH(Selection_Hide2!B$5, 'Full set Core Client Indicator'!$A$3:$AB$3, 0))=\"\", \"\",  INDEX('Full set Core Client Indicator'!$A$3:$AB$351, MATCH(Selection_Hide2!$A293, 'Full set Core Client Indicator'!$A$3:$A$351, 0), MATCH(Selection_Hide2!B$5, 'Full set Core Client Indicator'!$A$3:$AB$3, 0))), \"\")","v":""},{"$f":"IF(B293<>\"\", IF(INDEX('Full set Core Client Indicator'!$A$3:$AB$351, MATCH(Selection_Hide2!$A293, 'Full set Core Client Indicator'!$A$3:$A$351, 0), MATCH(Selection_Hide2!C$5, 'Full set Core Client Indicator'!$A$3:$AB$3, 0))=\"\", \"\",  INDEX('Full set Core Client Indicator'!$A$3:$AB$351, MATCH(Selection_Hide2!$A293, 'Full set Core Client Indicator'!$A$3:$A$351, 0), MATCH(Selection_Hide2!C$5, 'Full set Core Client Indicator'!$A$3:$AB$3, 0))), \"\")","v":""},{"$f":"IF(C293<>\"\", IF(INDEX('Full set Core Client Indicator'!$A$3:$AB$351, MATCH(Selection_Hide2!$A293, 'Full set Core Client Indicator'!$A$3:$A$351, 0), MATCH(Selection_Hide2!D$5, 'Full set Core Client Indicator'!$A$3:$AB$3, 0))=\"\", \"\",  INDEX('Full set Core Client Indicator'!$A$3:$AB$351, MATCH(Selection_Hide2!$A293, 'Full set Core Client Indicator'!$A$3:$A$351, 0), MATCH(Selection_Hide2!D$5, 'Full set Core Client Indicator'!$A$3:$AB$3, 0))), \"\")","v":""},{"$f":"IF(D293<>\"\", IF(INDEX('Full set Core Client Indicator'!$A$3:$AB$351, MATCH(Selection_Hide2!$A293, 'Full set Core Client Indicator'!$A$3:$A$351, 0), MATCH(Selection_Hide2!E$5, 'Full set Core Client Indicator'!$A$3:$AB$3, 0))=\"\", \"\",  INDEX('Full set Core Client Indicator'!$A$3:$AB$351, MATCH(Selection_Hide2!$A293, 'Full set Core Client Indicator'!$A$3:$A$351, 0), MATCH(Selection_Hide2!E$5, 'Full set Core Client Indicator'!$A$3:$AB$3, 0))), \"\")","v":""},{"$f":"IF(E293<>\"\", IF(INDEX('Full set Core Client Indicator'!$A$3:$AB$351, MATCH(Selection_Hide2!$A293, 'Full set Core Client Indicator'!$A$3:$A$351, 0), MATCH(Selection_Hide2!F$5, 'Full set Core Client Indicator'!$A$3:$AB$3, 0))=\"\", \"\",  INDEX('Full set Core Client Indicator'!$A$3:$AB$351, MATCH(Selection_Hide2!$A293, 'Full set Core Client Indicator'!$A$3:$A$351, 0), MATCH(Selection_Hide2!F$5, 'Full set Core Client Indicator'!$A$3:$AB$3, 0))), \"\")","v":""},{"$f":"IF(F293<>\"\", IF(INDEX('Full set Core Client Indicator'!$A$3:$AB$351, MATCH(Selection_Hide2!$A293, 'Full set Core Client Indicator'!$A$3:$A$351, 0), MATCH(Selection_Hide2!G$5, 'Full set Core Client Indicator'!$A$3:$AB$3, 0))=\"\", \"\",  INDEX('Full set Core Client Indicator'!$A$3:$AB$351, MATCH(Selection_Hide2!$A293, 'Full set Core Client Indicator'!$A$3:$A$351, 0), MATCH(Selection_Hide2!G$5, 'Full set Core Client Indicator'!$A$3:$AB$3, 0))), \"\")","v":""},{"$f":"IF(G293<>\"\", IF(INDEX('Full set Core Client Indicator'!$A$3:$AB$351, MATCH(Selection_Hide2!$A293, 'Full set Core Client Indicator'!$A$3:$A$351, 0), MATCH(Selection_Hide2!H$5, 'Full set Core Client Indicator'!$A$3:$AB$3, 0))=\"\", \"\",  INDEX('Full set Core Client Indicator'!$A$3:$AB$351, MATCH(Selection_Hide2!$A293, 'Full set Core Client Indicator'!$A$3:$A$351, 0), MATCH(Selection_Hide2!H$5, 'Full set Core Client Indicator'!$A$3:$AB$3, 0))), \"\")","v":""},{"$f":"IF(H293<>\"\", IF(INDEX('Full set Core Client Indicator'!$A$3:$AB$351, MATCH(Selection_Hide2!$A293, 'Full set Core Client Indicator'!$A$3:$A$351, 0), MATCH(Selection_Hide2!I$5, 'Full set Core Client Indicator'!$A$3:$AB$3, 0))=\"\", \"\",  INDEX('Full set Core Client Indicator'!$A$3:$AB$351, MATCH(Selection_Hide2!$A293, 'Full set Core Client Indicator'!$A$3:$A$351, 0), MATCH(Selection_Hide2!I$5, 'Full set Core Client Indicator'!$A$3:$AB$3, 0))), \"\")","v":""},{"$f":"IF(I293<>\"\", IF(INDEX('Full set Core Client Indicator'!$A$3:$AB$351, MATCH(Selection_Hide2!$A293, 'Full set Core Client Indicator'!$A$3:$A$351, 0), MATCH(Selection_Hide2!J$5, 'Full set Core Client Indicator'!$A$3:$AB$3, 0))=\"\", \"\",  INDEX('Full set Core Client Indicator'!$A$3:$AB$351, MATCH(Selection_Hide2!$A293, 'Full set Core Client Indicator'!$A$3:$A$351, 0), MATCH(Selection_Hide2!J$5, 'Full set Core Client Indicator'!$A$3:$AB$3, 0))), \"\")","v":""},{"$f":"IF(J293<>\"\", IF(INDEX('Full set Core Client Indicator'!$A$3:$AB$351, MATCH(Selection_Hide2!$A293, 'Full set Core Client Indicator'!$A$3:$A$351, 0), MATCH(Selection_Hide2!K$5, 'Full set Core Client Indicator'!$A$3:$AB$3, 0))=\"\", \"\",  INDEX('Full set Core Client Indicator'!$A$3:$AB$351, MATCH(Selection_Hide2!$A293, 'Full set Core Client Indicator'!$A$3:$A$351, 0), MATCH(Selection_Hide2!K$5, 'Full set Core Client Indicator'!$A$3:$AB$3, 0))), \"\")","v":""},{"$f":"IF(K293<>\"\", IF(INDEX('Full set Core Client Indicator'!$A$3:$AB$351, MATCH(Selection_Hide2!$A293, 'Full set Core Client Indicator'!$A$3:$A$351, 0), MATCH(Selection_Hide2!L$5, 'Full set Core Client Indicator'!$A$3:$AB$3, 0))=\"\", \"\",  INDEX('Full set Core Client Indicator'!$A$3:$AB$351, MATCH(Selection_Hide2!$A293, 'Full set Core Client Indicator'!$A$3:$A$351, 0), MATCH(Selection_Hide2!L$5, 'Full set Core Client Indicator'!$A$3:$AB$3, 0))), \"\")","v":""},{"$f":"IF(L293<>\"\", IF(INDEX('Full set Core Client Indicator'!$A$3:$AB$351, MATCH(Selection_Hide2!$A293, 'Full set Core Client Indicator'!$A$3:$A$351, 0), MATCH(Selection_Hide2!M$5, 'Full set Core Client Indicator'!$A$3:$AB$3, 0))=\"\", \"\",  INDEX('Full set Core Client Indicator'!$A$3:$AB$351, MATCH(Selection_Hide2!$A293, 'Full set Core Client Indicator'!$A$3:$A$351, 0), MATCH(Selection_Hide2!M$5, 'Full set Core Client Indicator'!$A$3:$AB$3, 0))), \"\")","v":""},{"$f":"IF(M293<>\"\", IF(INDEX('Full set Core Client Indicator'!$A$3:$AB$351, MATCH(Selection_Hide2!$A293, 'Full set Core Client Indicator'!$A$3:$A$351, 0), MATCH(Selection_Hide2!N$5, 'Full set Core Client Indicator'!$A$3:$AB$3, 0))=\"\", \"\",  INDEX('Full set Core Client Indicator'!$A$3:$AB$351, MATCH(Selection_Hide2!$A293, 'Full set Core Client Indicator'!$A$3:$A$351, 0), MATCH(Selection_Hide2!N$5, 'Full set Core Client Indicator'!$A$3:$AB$3, 0))), \"\")","v":""},{"$f":"IF(N293<>\"\", IF(INDEX('Full set Core Client Indicator'!$A$3:$AB$351, MATCH(Selection_Hide2!$A293, 'Full set Core Client Indicator'!$A$3:$A$351, 0), MATCH(Selection_Hide2!O$5, 'Full set Core Client Indicator'!$A$3:$AB$3, 0))=\"\", \"\",  INDEX('Full set Core Client Indicator'!$A$3:$AB$351, MATCH(Selection_Hide2!$A293, 'Full set Core Client Indicator'!$A$3:$A$351, 0), MATCH(Selection_Hide2!O$5, 'Full set Core Client Indicator'!$A$3:$AB$3, 0))), \"\")","v":""},{"$f":"IF(O293<>\"\", IF(INDEX('Full set Core Client Indicator'!$A$3:$AB$351, MATCH(Selection_Hide2!$A293, 'Full set Core Client Indicator'!$A$3:$A$351, 0), MATCH(Selection_Hide2!P$5, 'Full set Core Client Indicator'!$A$3:$AB$3, 0))=\"\", \"\",  INDEX('Full set Core Client Indicator'!$A$3:$AB$351, MATCH(Selection_Hide2!$A293, 'Full set Core Client Indicator'!$A$3:$A$351, 0), MATCH(Selection_Hide2!P$5, 'Full set Core Client Indicator'!$A$3:$AB$3, 0))), \"\")","v":""},{"$f":"IF(P293<>\"\", IF(INDEX('Full set Core Client Indicator'!$A$3:$AB$351, MATCH(Selection_Hide2!$A293, 'Full set Core Client Indicator'!$A$3:$A$351, 0), MATCH(Selection_Hide2!Q$5, 'Full set Core Client Indicator'!$A$3:$AB$3, 0))=\"\", \"\",  INDEX('Full set Core Client Indicator'!$A$3:$AB$351, MATCH(Selection_Hide2!$A293, 'Full set Core Client Indicator'!$A$3:$A$351, 0), MATCH(Selection_Hide2!Q$5, 'Full set Core Client Indicator'!$A$3:$AB$3, 0))), \"\")","v":""},{"$f":"IF(Q293<>\"\", IF(INDEX('Full set Core Client Indicator'!$A$3:$AB$351, MATCH(Selection_Hide2!$A293, 'Full set Core Client Indicator'!$A$3:$A$351, 0), MATCH(Selection_Hide2!R$5, 'Full set Core Client Indicator'!$A$3:$AB$3, 0))=\"\", \"\",  INDEX('Full set Core Client Indicator'!$A$3:$AB$351, MATCH(Selection_Hide2!$A293, 'Full set Core Client Indicator'!$A$3:$A$351, 0), MATCH(Selection_Hide2!R$5, 'Full set Core Client Indicator'!$A$3:$AB$3, 0))), \"\")","v":""},{"$f":"IF(R293<>\"\", IF(INDEX('Full set Core Client Indicator'!$A$3:$AB$351, MATCH(Selection_Hide2!$A293, 'Full set Core Client Indicator'!$A$3:$A$351, 0), MATCH(Selection_Hide2!S$5, 'Full set Core Client Indicator'!$A$3:$AB$3, 0))=\"\", \"\",  INDEX('Full set Core Client Indicator'!$A$3:$AB$351, MATCH(Selection_Hide2!$A293, 'Full set Core Client Indicator'!$A$3:$A$351, 0), MATCH(Selection_Hide2!S$5, 'Full set Core Client Indicator'!$A$3:$AB$3, 0))), \"\")","v":""},{"$f":"IF(S293<>\"\", IF(INDEX('Full set Core Client Indicator'!$A$3:$AB$351, MATCH(Selection_Hide2!$A293, 'Full set Core Client Indicator'!$A$3:$A$351, 0), MATCH(Selection_Hide2!T$5, 'Full set Core Client Indicator'!$A$3:$AB$3, 0))=\"\", \"\",  INDEX('Full set Core Client Indicator'!$A$3:$AB$351, MATCH(Selection_Hide2!$A293, 'Full set Core Client Indicator'!$A$3:$A$351, 0), MATCH(Selection_Hide2!T$5, 'Full set Core Client Indicator'!$A$3:$AB$3, 0))), \"\")","v":""},{"$f":"IF(T293<>\"\", IF(INDEX('Full set Core Client Indicator'!$A$3:$AB$351, MATCH(Selection_Hide2!$A293, 'Full set Core Client Indicator'!$A$3:$A$351, 0), MATCH(Selection_Hide2!U$5, 'Full set Core Client Indicator'!$A$3:$AB$3, 0))=\"\", \"\",  INDEX('Full set Core Client Indicator'!$A$3:$AB$351, MATCH(Selection_Hide2!$A293, 'Full set Core Client Indicator'!$A$3:$A$351, 0), MATCH(Selection_Hide2!U$5, 'Full set Core Client Indicator'!$A$3:$AB$3, 0))), \"\")","v":""},{"$f":"IF(U293<>\"\", IF(INDEX('Full set Core Client Indicator'!$A$3:$AB$351, MATCH(Selection_Hide2!$A293, 'Full set Core Client Indicator'!$A$3:$A$351, 0), MATCH(Selection_Hide2!V$5, 'Full set Core Client Indicator'!$A$3:$AB$3, 0))=\"\", \"\",  INDEX('Full set Core Client Indicator'!$A$3:$AB$351, MATCH(Selection_Hide2!$A293, 'Full set Core Client Indicator'!$A$3:$A$351, 0), MATCH(Selection_Hide2!V$5, 'Full set Core Client Indicator'!$A$3:$AB$3, 0))), \"\")","v":""},{"$f":"IF(V293<>\"\", IF(INDEX('Full set Core Client Indicator'!$A$3:$AB$351, MATCH(Selection_Hide2!$A293, 'Full set Core Client Indicator'!$A$3:$A$351, 0), MATCH(Selection_Hide2!W$5, 'Full set Core Client Indicator'!$A$3:$AB$3, 0))=\"\", \"\",  INDEX('Full set Core Client Indicator'!$A$3:$AB$351, MATCH(Selection_Hide2!$A293, 'Full set Core Client Indicator'!$A$3:$A$351, 0), MATCH(Selection_Hide2!W$5, 'Full set Core Client Indicator'!$A$3:$AB$3, 0))), \"\")","v":""},{"$f":"IF(W293<>\"\", IF(INDEX('Full set Core Client Indicator'!$A$3:$AB$351, MATCH(Selection_Hide2!$A293, 'Full set Core Client Indicator'!$A$3:$A$351, 0), MATCH(Selection_Hide2!X$5, 'Full set Core Client Indicator'!$A$3:$AB$3, 0))=\"\", \"\",  INDEX('Full set Core Client Indicator'!$A$3:$AB$351, MATCH(Selection_Hide2!$A293, 'Full set Core Client Indicator'!$A$3:$A$351, 0), MATCH(Selection_Hide2!X$5, 'Full set Core Client Indicator'!$A$3:$AB$3, 0))), \"\")","v":""},{"$f":"IF(X293<>\"\", IF(INDEX('Full set Core Client Indicator'!$A$3:$AB$351, MATCH(Selection_Hide2!$A293, 'Full set Core Client Indicator'!$A$3:$A$351, 0), MATCH(Selection_Hide2!Y$5, 'Full set Core Client Indicator'!$A$3:$AB$3, 0))=\"\", \"\",  INDEX('Full set Core Client Indicator'!$A$3:$AB$351, MATCH(Selection_Hide2!$A293, 'Full set Core Client Indicator'!$A$3:$A$351, 0), MATCH(Selection_Hide2!Y$5, 'Full set Core Client Indicator'!$A$3:$AB$3, 0))), \"\")","v":""},{"$f":"IF(Y293<>\"\", IF(INDEX('Full set Core Client Indicator'!$A$3:$AB$351, MATCH(Selection_Hide2!$A293, 'Full set Core Client Indicator'!$A$3:$A$351, 0), MATCH(Selection_Hide2!Z$5, 'Full set Core Client Indicator'!$A$3:$AB$3, 0))=\"\", \"\",  INDEX('Full set Core Client Indicator'!$A$3:$AB$351, MATCH(Selection_Hide2!$A293, 'Full set Core Client Indicator'!$A$3:$A$351, 0), MATCH(Selection_Hide2!Z$5, 'Full set Core Client Indicator'!$A$3:$AB$3, 0))), \"\")","v":""},{"$f":"IF(Z293<>\"\", IF(INDEX('Full set Core Client Indicator'!$A$3:$AB$351, MATCH(Selection_Hide2!$A293, 'Full set Core Client Indicator'!$A$3:$A$351, 0), MATCH(Selection_Hide2!AA$5, 'Full set Core Client Indicator'!$A$3:$AB$3, 0))=\"\", \"\",  INDEX('Full set Core Client Indicator'!$A$3:$AB$351, MATCH(Selection_Hide2!$A293, 'Full set Core Client Indicator'!$A$3:$A$351, 0), MATCH(Selection_Hide2!AA$5, 'Full set Core Client Indicator'!$A$3:$AB$3, 0))), \"\")","v":""},{"$f":"IF(AA293<>\"\", IF(INDEX('Full set Core Client Indicator'!$A$3:$AB$351, MATCH(Selection_Hide2!$A293, 'Full set Core Client Indicator'!$A$3:$A$351, 0), MATCH(Selection_Hide2!AB$5, 'Full set Core Client Indicator'!$A$3:$AB$3, 0))=\"\", \"\",  INDEX('Full set Core Client Indicator'!$A$3:$AB$351, MATCH(Selection_Hide2!$A293, 'Full set Core Client Indicator'!$A$3:$A$351, 0), MATCH(Selection_Hide2!AB$5, 'Full set Core Client Indicator'!$A$3:$AB$3, 0))), \"\")","v":""}]
[{"$f":"IF(AND(Selection_Hide1!C292<>0, Selection_Hide1!C292<>\"Grand Total\"), Selection_Hide1!C292, \"\")","v":""},{"$f":"IF(A294<>\"\", IF(INDEX('Full set Core Client Indicator'!$A$3:$AB$351, MATCH(Selection_Hide2!$A294, 'Full set Core Client Indicator'!$A$3:$A$351, 0), MATCH(Selection_Hide2!B$5, 'Full set Core Client Indicator'!$A$3:$AB$3, 0))=\"\", \"\",  INDEX('Full set Core Client Indicator'!$A$3:$AB$351, MATCH(Selection_Hide2!$A294, 'Full set Core Client Indicator'!$A$3:$A$351, 0), MATCH(Selection_Hide2!B$5, 'Full set Core Client Indicator'!$A$3:$AB$3, 0))), \"\")","v":""},{"$f":"IF(B294<>\"\", IF(INDEX('Full set Core Client Indicator'!$A$3:$AB$351, MATCH(Selection_Hide2!$A294, 'Full set Core Client Indicator'!$A$3:$A$351, 0), MATCH(Selection_Hide2!C$5, 'Full set Core Client Indicator'!$A$3:$AB$3, 0))=\"\", \"\",  INDEX('Full set Core Client Indicator'!$A$3:$AB$351, MATCH(Selection_Hide2!$A294, 'Full set Core Client Indicator'!$A$3:$A$351, 0), MATCH(Selection_Hide2!C$5, 'Full set Core Client Indicator'!$A$3:$AB$3, 0))), \"\")","v":""},{"$f":"IF(C294<>\"\", IF(INDEX('Full set Core Client Indicator'!$A$3:$AB$351, MATCH(Selection_Hide2!$A294, 'Full set Core Client Indicator'!$A$3:$A$351, 0), MATCH(Selection_Hide2!D$5, 'Full set Core Client Indicator'!$A$3:$AB$3, 0))=\"\", \"\",  INDEX('Full set Core Client Indicator'!$A$3:$AB$351, MATCH(Selection_Hide2!$A294, 'Full set Core Client Indicator'!$A$3:$A$351, 0), MATCH(Selection_Hide2!D$5, 'Full set Core Client Indicator'!$A$3:$AB$3, 0))), \"\")","v":""},{"$f":"IF(D294<>\"\", IF(INDEX('Full set Core Client Indicator'!$A$3:$AB$351, MATCH(Selection_Hide2!$A294, 'Full set Core Client Indicator'!$A$3:$A$351, 0), MATCH(Selection_Hide2!E$5, 'Full set Core Client Indicator'!$A$3:$AB$3, 0))=\"\", \"\",  INDEX('Full set Core Client Indicator'!$A$3:$AB$351, MATCH(Selection_Hide2!$A294, 'Full set Core Client Indicator'!$A$3:$A$351, 0), MATCH(Selection_Hide2!E$5, 'Full set Core Client Indicator'!$A$3:$AB$3, 0))), \"\")","v":""},{"$f":"IF(E294<>\"\", IF(INDEX('Full set Core Client Indicator'!$A$3:$AB$351, MATCH(Selection_Hide2!$A294, 'Full set Core Client Indicator'!$A$3:$A$351, 0), MATCH(Selection_Hide2!F$5, 'Full set Core Client Indicator'!$A$3:$AB$3, 0))=\"\", \"\",  INDEX('Full set Core Client Indicator'!$A$3:$AB$351, MATCH(Selection_Hide2!$A294, 'Full set Core Client Indicator'!$A$3:$A$351, 0), MATCH(Selection_Hide2!F$5, 'Full set Core Client Indicator'!$A$3:$AB$3, 0))), \"\")","v":""},{"$f":"IF(F294<>\"\", IF(INDEX('Full set Core Client Indicator'!$A$3:$AB$351, MATCH(Selection_Hide2!$A294, 'Full set Core Client Indicator'!$A$3:$A$351, 0), MATCH(Selection_Hide2!G$5, 'Full set Core Client Indicator'!$A$3:$AB$3, 0))=\"\", \"\",  INDEX('Full set Core Client Indicator'!$A$3:$AB$351, MATCH(Selection_Hide2!$A294, 'Full set Core Client Indicator'!$A$3:$A$351, 0), MATCH(Selection_Hide2!G$5, 'Full set Core Client Indicator'!$A$3:$AB$3, 0))), \"\")","v":""},{"$f":"IF(G294<>\"\", IF(INDEX('Full set Core Client Indicator'!$A$3:$AB$351, MATCH(Selection_Hide2!$A294, 'Full set Core Client Indicator'!$A$3:$A$351, 0), MATCH(Selection_Hide2!H$5, 'Full set Core Client Indicator'!$A$3:$AB$3, 0))=\"\", \"\",  INDEX('Full set Core Client Indicator'!$A$3:$AB$351, MATCH(Selection_Hide2!$A294, 'Full set Core Client Indicator'!$A$3:$A$351, 0), MATCH(Selection_Hide2!H$5, 'Full set Core Client Indicator'!$A$3:$AB$3, 0))), \"\")","v":""},{"$f":"IF(H294<>\"\", IF(INDEX('Full set Core Client Indicator'!$A$3:$AB$351, MATCH(Selection_Hide2!$A294, 'Full set Core Client Indicator'!$A$3:$A$351, 0), MATCH(Selection_Hide2!I$5, 'Full set Core Client Indicator'!$A$3:$AB$3, 0))=\"\", \"\",  INDEX('Full set Core Client Indicator'!$A$3:$AB$351, MATCH(Selection_Hide2!$A294, 'Full set Core Client Indicator'!$A$3:$A$351, 0), MATCH(Selection_Hide2!I$5, 'Full set Core Client Indicator'!$A$3:$AB$3, 0))), \"\")","v":""},{"$f":"IF(I294<>\"\", IF(INDEX('Full set Core Client Indicator'!$A$3:$AB$351, MATCH(Selection_Hide2!$A294, 'Full set Core Client Indicator'!$A$3:$A$351, 0), MATCH(Selection_Hide2!J$5, 'Full set Core Client Indicator'!$A$3:$AB$3, 0))=\"\", \"\",  INDEX('Full set Core Client Indicator'!$A$3:$AB$351, MATCH(Selection_Hide2!$A294, 'Full set Core Client Indicator'!$A$3:$A$351, 0), MATCH(Selection_Hide2!J$5, 'Full set Core Client Indicator'!$A$3:$AB$3, 0))), \"\")","v":""},{"$f":"IF(J294<>\"\", IF(INDEX('Full set Core Client Indicator'!$A$3:$AB$351, MATCH(Selection_Hide2!$A294, 'Full set Core Client Indicator'!$A$3:$A$351, 0), MATCH(Selection_Hide2!K$5, 'Full set Core Client Indicator'!$A$3:$AB$3, 0))=\"\", \"\",  INDEX('Full set Core Client Indicator'!$A$3:$AB$351, MATCH(Selection_Hide2!$A294, 'Full set Core Client Indicator'!$A$3:$A$351, 0), MATCH(Selection_Hide2!K$5, 'Full set Core Client Indicator'!$A$3:$AB$3, 0))), \"\")","v":""},{"$f":"IF(K294<>\"\", IF(INDEX('Full set Core Client Indicator'!$A$3:$AB$351, MATCH(Selection_Hide2!$A294, 'Full set Core Client Indicator'!$A$3:$A$351, 0), MATCH(Selection_Hide2!L$5, 'Full set Core Client Indicator'!$A$3:$AB$3, 0))=\"\", \"\",  INDEX('Full set Core Client Indicator'!$A$3:$AB$351, MATCH(Selection_Hide2!$A294, 'Full set Core Client Indicator'!$A$3:$A$351, 0), MATCH(Selection_Hide2!L$5, 'Full set Core Client Indicator'!$A$3:$AB$3, 0))), \"\")","v":""},{"$f":"IF(L294<>\"\", IF(INDEX('Full set Core Client Indicator'!$A$3:$AB$351, MATCH(Selection_Hide2!$A294, 'Full set Core Client Indicator'!$A$3:$A$351, 0), MATCH(Selection_Hide2!M$5, 'Full set Core Client Indicator'!$A$3:$AB$3, 0))=\"\", \"\",  INDEX('Full set Core Client Indicator'!$A$3:$AB$351, MATCH(Selection_Hide2!$A294, 'Full set Core Client Indicator'!$A$3:$A$351, 0), MATCH(Selection_Hide2!M$5, 'Full set Core Client Indicator'!$A$3:$AB$3, 0))), \"\")","v":""},{"$f":"IF(M294<>\"\", IF(INDEX('Full set Core Client Indicator'!$A$3:$AB$351, MATCH(Selection_Hide2!$A294, 'Full set Core Client Indicator'!$A$3:$A$351, 0), MATCH(Selection_Hide2!N$5, 'Full set Core Client Indicator'!$A$3:$AB$3, 0))=\"\", \"\",  INDEX('Full set Core Client Indicator'!$A$3:$AB$351, MATCH(Selection_Hide2!$A294, 'Full set Core Client Indicator'!$A$3:$A$351, 0), MATCH(Selection_Hide2!N$5, 'Full set Core Client Indicator'!$A$3:$AB$3, 0))), \"\")","v":""},{"$f":"IF(N294<>\"\", IF(INDEX('Full set Core Client Indicator'!$A$3:$AB$351, MATCH(Selection_Hide2!$A294, 'Full set Core Client Indicator'!$A$3:$A$351, 0), MATCH(Selection_Hide2!O$5, 'Full set Core Client Indicator'!$A$3:$AB$3, 0))=\"\", \"\",  INDEX('Full set Core Client Indicator'!$A$3:$AB$351, MATCH(Selection_Hide2!$A294, 'Full set Core Client Indicator'!$A$3:$A$351, 0), MATCH(Selection_Hide2!O$5, 'Full set Core Client Indicator'!$A$3:$AB$3, 0))), \"\")","v":""},{"$f":"IF(O294<>\"\", IF(INDEX('Full set Core Client Indicator'!$A$3:$AB$351, MATCH(Selection_Hide2!$A294, 'Full set Core Client Indicator'!$A$3:$A$351, 0), MATCH(Selection_Hide2!P$5, 'Full set Core Client Indicator'!$A$3:$AB$3, 0))=\"\", \"\",  INDEX('Full set Core Client Indicator'!$A$3:$AB$351, MATCH(Selection_Hide2!$A294, 'Full set Core Client Indicator'!$A$3:$A$351, 0), MATCH(Selection_Hide2!P$5, 'Full set Core Client Indicator'!$A$3:$AB$3, 0))), \"\")","v":""},{"$f":"IF(P294<>\"\", IF(INDEX('Full set Core Client Indicator'!$A$3:$AB$351, MATCH(Selection_Hide2!$A294, 'Full set Core Client Indicator'!$A$3:$A$351, 0), MATCH(Selection_Hide2!Q$5, 'Full set Core Client Indicator'!$A$3:$AB$3, 0))=\"\", \"\",  INDEX('Full set Core Client Indicator'!$A$3:$AB$351, MATCH(Selection_Hide2!$A294, 'Full set Core Client Indicator'!$A$3:$A$351, 0), MATCH(Selection_Hide2!Q$5, 'Full set Core Client Indicator'!$A$3:$AB$3, 0))), \"\")","v":""},{"$f":"IF(Q294<>\"\", IF(INDEX('Full set Core Client Indicator'!$A$3:$AB$351, MATCH(Selection_Hide2!$A294, 'Full set Core Client Indicator'!$A$3:$A$351, 0), MATCH(Selection_Hide2!R$5, 'Full set Core Client Indicator'!$A$3:$AB$3, 0))=\"\", \"\",  INDEX('Full set Core Client Indicator'!$A$3:$AB$351, MATCH(Selection_Hide2!$A294, 'Full set Core Client Indicator'!$A$3:$A$351, 0), MATCH(Selection_Hide2!R$5, 'Full set Core Client Indicator'!$A$3:$AB$3, 0))), \"\")","v":""},{"$f":"IF(R294<>\"\", IF(INDEX('Full set Core Client Indicator'!$A$3:$AB$351, MATCH(Selection_Hide2!$A294, 'Full set Core Client Indicator'!$A$3:$A$351, 0), MATCH(Selection_Hide2!S$5, 'Full set Core Client Indicator'!$A$3:$AB$3, 0))=\"\", \"\",  INDEX('Full set Core Client Indicator'!$A$3:$AB$351, MATCH(Selection_Hide2!$A294, 'Full set Core Client Indicator'!$A$3:$A$351, 0), MATCH(Selection_Hide2!S$5, 'Full set Core Client Indicator'!$A$3:$AB$3, 0))), \"\")","v":""},{"$f":"IF(S294<>\"\", IF(INDEX('Full set Core Client Indicator'!$A$3:$AB$351, MATCH(Selection_Hide2!$A294, 'Full set Core Client Indicator'!$A$3:$A$351, 0), MATCH(Selection_Hide2!T$5, 'Full set Core Client Indicator'!$A$3:$AB$3, 0))=\"\", \"\",  INDEX('Full set Core Client Indicator'!$A$3:$AB$351, MATCH(Selection_Hide2!$A294, 'Full set Core Client Indicator'!$A$3:$A$351, 0), MATCH(Selection_Hide2!T$5, 'Full set Core Client Indicator'!$A$3:$AB$3, 0))), \"\")","v":""},{"$f":"IF(T294<>\"\", IF(INDEX('Full set Core Client Indicator'!$A$3:$AB$351, MATCH(Selection_Hide2!$A294, 'Full set Core Client Indicator'!$A$3:$A$351, 0), MATCH(Selection_Hide2!U$5, 'Full set Core Client Indicator'!$A$3:$AB$3, 0))=\"\", \"\",  INDEX('Full set Core Client Indicator'!$A$3:$AB$351, MATCH(Selection_Hide2!$A294, 'Full set Core Client Indicator'!$A$3:$A$351, 0), MATCH(Selection_Hide2!U$5, 'Full set Core Client Indicator'!$A$3:$AB$3, 0))), \"\")","v":""},{"$f":"IF(U294<>\"\", IF(INDEX('Full set Core Client Indicator'!$A$3:$AB$351, MATCH(Selection_Hide2!$A294, 'Full set Core Client Indicator'!$A$3:$A$351, 0), MATCH(Selection_Hide2!V$5, 'Full set Core Client Indicator'!$A$3:$AB$3, 0))=\"\", \"\",  INDEX('Full set Core Client Indicator'!$A$3:$AB$351, MATCH(Selection_Hide2!$A294, 'Full set Core Client Indicator'!$A$3:$A$351, 0), MATCH(Selection_Hide2!V$5, 'Full set Core Client Indicator'!$A$3:$AB$3, 0))), \"\")","v":""},{"$f":"IF(V294<>\"\", IF(INDEX('Full set Core Client Indicator'!$A$3:$AB$351, MATCH(Selection_Hide2!$A294, 'Full set Core Client Indicator'!$A$3:$A$351, 0), MATCH(Selection_Hide2!W$5, 'Full set Core Client Indicator'!$A$3:$AB$3, 0))=\"\", \"\",  INDEX('Full set Core Client Indicator'!$A$3:$AB$351, MATCH(Selection_Hide2!$A294, 'Full set Core Client Indicator'!$A$3:$A$351, 0), MATCH(Selection_Hide2!W$5, 'Full set Core Client Indicator'!$A$3:$AB$3, 0))), \"\")","v":""},{"$f":"IF(W294<>\"\", IF(INDEX('Full set Core Client Indicator'!$A$3:$AB$351, MATCH(Selection_Hide2!$A294, 'Full set Core Client Indicator'!$A$3:$A$351, 0), MATCH(Selection_Hide2!X$5, 'Full set Core Client Indicator'!$A$3:$AB$3, 0))=\"\", \"\",  INDEX('Full set Core Client Indicator'!$A$3:$AB$351, MATCH(Selection_Hide2!$A294, 'Full set Core Client Indicator'!$A$3:$A$351, 0), MATCH(Selection_Hide2!X$5, 'Full set Core Client Indicator'!$A$3:$AB$3, 0))), \"\")","v":""},{"$f":"IF(X294<>\"\", IF(INDEX('Full set Core Client Indicator'!$A$3:$AB$351, MATCH(Selection_Hide2!$A294, 'Full set Core Client Indicator'!$A$3:$A$351, 0), MATCH(Selection_Hide2!Y$5, 'Full set Core Client Indicator'!$A$3:$AB$3, 0))=\"\", \"\",  INDEX('Full set Core Client Indicator'!$A$3:$AB$351, MATCH(Selection_Hide2!$A294, 'Full set Core Client Indicator'!$A$3:$A$351, 0), MATCH(Selection_Hide2!Y$5, 'Full set Core Client Indicator'!$A$3:$AB$3, 0))), \"\")","v":""},{"$f":"IF(Y294<>\"\", IF(INDEX('Full set Core Client Indicator'!$A$3:$AB$351, MATCH(Selection_Hide2!$A294, 'Full set Core Client Indicator'!$A$3:$A$351, 0), MATCH(Selection_Hide2!Z$5, 'Full set Core Client Indicator'!$A$3:$AB$3, 0))=\"\", \"\",  INDEX('Full set Core Client Indicator'!$A$3:$AB$351, MATCH(Selection_Hide2!$A294, 'Full set Core Client Indicator'!$A$3:$A$351, 0), MATCH(Selection_Hide2!Z$5, 'Full set Core Client Indicator'!$A$3:$AB$3, 0))), \"\")","v":""},{"$f":"IF(Z294<>\"\", IF(INDEX('Full set Core Client Indicator'!$A$3:$AB$351, MATCH(Selection_Hide2!$A294, 'Full set Core Client Indicator'!$A$3:$A$351, 0), MATCH(Selection_Hide2!AA$5, 'Full set Core Client Indicator'!$A$3:$AB$3, 0))=\"\", \"\",  INDEX('Full set Core Client Indicator'!$A$3:$AB$351, MATCH(Selection_Hide2!$A294, 'Full set Core Client Indicator'!$A$3:$A$351, 0), MATCH(Selection_Hide2!AA$5, 'Full set Core Client Indicator'!$A$3:$AB$3, 0))), \"\")","v":""},{"$f":"IF(AA294<>\"\", IF(INDEX('Full set Core Client Indicator'!$A$3:$AB$351, MATCH(Selection_Hide2!$A294, 'Full set Core Client Indicator'!$A$3:$A$351, 0), MATCH(Selection_Hide2!AB$5, 'Full set Core Client Indicator'!$A$3:$AB$3, 0))=\"\", \"\",  INDEX('Full set Core Client Indicator'!$A$3:$AB$351, MATCH(Selection_Hide2!$A294, 'Full set Core Client Indicator'!$A$3:$A$351, 0), MATCH(Selection_Hide2!AB$5, 'Full set Core Client Indicator'!$A$3:$AB$3, 0))), \"\")","v":""}]
[{"$f":"IF(AND(Selection_Hide1!C293<>0, Selection_Hide1!C293<>\"Grand Total\"), Selection_Hide1!C293, \"\")","v":""},{"$f":"IF(A295<>\"\", IF(INDEX('Full set Core Client Indicator'!$A$3:$AB$351, MATCH(Selection_Hide2!$A295, 'Full set Core Client Indicator'!$A$3:$A$351, 0), MATCH(Selection_Hide2!B$5, 'Full set Core Client Indicator'!$A$3:$AB$3, 0))=\"\", \"\",  INDEX('Full set Core Client Indicator'!$A$3:$AB$351, MATCH(Selection_Hide2!$A295, 'Full set Core Client Indicator'!$A$3:$A$351, 0), MATCH(Selection_Hide2!B$5, 'Full set Core Client Indicator'!$A$3:$AB$3, 0))), \"\")","v":""},{"$f":"IF(B295<>\"\", IF(INDEX('Full set Core Client Indicator'!$A$3:$AB$351, MATCH(Selection_Hide2!$A295, 'Full set Core Client Indicator'!$A$3:$A$351, 0), MATCH(Selection_Hide2!C$5, 'Full set Core Client Indicator'!$A$3:$AB$3, 0))=\"\", \"\",  INDEX('Full set Core Client Indicator'!$A$3:$AB$351, MATCH(Selection_Hide2!$A295, 'Full set Core Client Indicator'!$A$3:$A$351, 0), MATCH(Selection_Hide2!C$5, 'Full set Core Client Indicator'!$A$3:$AB$3, 0))), \"\")","v":""},{"$f":"IF(C295<>\"\", IF(INDEX('Full set Core Client Indicator'!$A$3:$AB$351, MATCH(Selection_Hide2!$A295, 'Full set Core Client Indicator'!$A$3:$A$351, 0), MATCH(Selection_Hide2!D$5, 'Full set Core Client Indicator'!$A$3:$AB$3, 0))=\"\", \"\",  INDEX('Full set Core Client Indicator'!$A$3:$AB$351, MATCH(Selection_Hide2!$A295, 'Full set Core Client Indicator'!$A$3:$A$351, 0), MATCH(Selection_Hide2!D$5, 'Full set Core Client Indicator'!$A$3:$AB$3, 0))), \"\")","v":""},{"$f":"IF(D295<>\"\", IF(INDEX('Full set Core Client Indicator'!$A$3:$AB$351, MATCH(Selection_Hide2!$A295, 'Full set Core Client Indicator'!$A$3:$A$351, 0), MATCH(Selection_Hide2!E$5, 'Full set Core Client Indicator'!$A$3:$AB$3, 0))=\"\", \"\",  INDEX('Full set Core Client Indicator'!$A$3:$AB$351, MATCH(Selection_Hide2!$A295, 'Full set Core Client Indicator'!$A$3:$A$351, 0), MATCH(Selection_Hide2!E$5, 'Full set Core Client Indicator'!$A$3:$AB$3, 0))), \"\")","v":""},{"$f":"IF(E295<>\"\", IF(INDEX('Full set Core Client Indicator'!$A$3:$AB$351, MATCH(Selection_Hide2!$A295, 'Full set Core Client Indicator'!$A$3:$A$351, 0), MATCH(Selection_Hide2!F$5, 'Full set Core Client Indicator'!$A$3:$AB$3, 0))=\"\", \"\",  INDEX('Full set Core Client Indicator'!$A$3:$AB$351, MATCH(Selection_Hide2!$A295, 'Full set Core Client Indicator'!$A$3:$A$351, 0), MATCH(Selection_Hide2!F$5, 'Full set Core Client Indicator'!$A$3:$AB$3, 0))), \"\")","v":""},{"$f":"IF(F295<>\"\", IF(INDEX('Full set Core Client Indicator'!$A$3:$AB$351, MATCH(Selection_Hide2!$A295, 'Full set Core Client Indicator'!$A$3:$A$351, 0), MATCH(Selection_Hide2!G$5, 'Full set Core Client Indicator'!$A$3:$AB$3, 0))=\"\", \"\",  INDEX('Full set Core Client Indicator'!$A$3:$AB$351, MATCH(Selection_Hide2!$A295, 'Full set Core Client Indicator'!$A$3:$A$351, 0), MATCH(Selection_Hide2!G$5, 'Full set Core Client Indicator'!$A$3:$AB$3, 0))), \"\")","v":""},{"$f":"IF(G295<>\"\", IF(INDEX('Full set Core Client Indicator'!$A$3:$AB$351, MATCH(Selection_Hide2!$A295, 'Full set Core Client Indicator'!$A$3:$A$351, 0), MATCH(Selection_Hide2!H$5, 'Full set Core Client Indicator'!$A$3:$AB$3, 0))=\"\", \"\",  INDEX('Full set Core Client Indicator'!$A$3:$AB$351, MATCH(Selection_Hide2!$A295, 'Full set Core Client Indicator'!$A$3:$A$351, 0), MATCH(Selection_Hide2!H$5, 'Full set Core Client Indicator'!$A$3:$AB$3, 0))), \"\")","v":""},{"$f":"IF(H295<>\"\", IF(INDEX('Full set Core Client Indicator'!$A$3:$AB$351, MATCH(Selection_Hide2!$A295, 'Full set Core Client Indicator'!$A$3:$A$351, 0), MATCH(Selection_Hide2!I$5, 'Full set Core Client Indicator'!$A$3:$AB$3, 0))=\"\", \"\",  INDEX('Full set Core Client Indicator'!$A$3:$AB$351, MATCH(Selection_Hide2!$A295, 'Full set Core Client Indicator'!$A$3:$A$351, 0), MATCH(Selection_Hide2!I$5, 'Full set Core Client Indicator'!$A$3:$AB$3, 0))), \"\")","v":""},{"$f":"IF(I295<>\"\", IF(INDEX('Full set Core Client Indicator'!$A$3:$AB$351, MATCH(Selection_Hide2!$A295, 'Full set Core Client Indicator'!$A$3:$A$351, 0), MATCH(Selection_Hide2!J$5, 'Full set Core Client Indicator'!$A$3:$AB$3, 0))=\"\", \"\",  INDEX('Full set Core Client Indicator'!$A$3:$AB$351, MATCH(Selection_Hide2!$A295, 'Full set Core Client Indicator'!$A$3:$A$351, 0), MATCH(Selection_Hide2!J$5, 'Full set Core Client Indicator'!$A$3:$AB$3, 0))), \"\")","v":""},{"$f":"IF(J295<>\"\", IF(INDEX('Full set Core Client Indicator'!$A$3:$AB$351, MATCH(Selection_Hide2!$A295, 'Full set Core Client Indicator'!$A$3:$A$351, 0), MATCH(Selection_Hide2!K$5, 'Full set Core Client Indicator'!$A$3:$AB$3, 0))=\"\", \"\",  INDEX('Full set Core Client Indicator'!$A$3:$AB$351, MATCH(Selection_Hide2!$A295, 'Full set Core Client Indicator'!$A$3:$A$351, 0), MATCH(Selection_Hide2!K$5, 'Full set Core Client Indicator'!$A$3:$AB$3, 0))), \"\")","v":""},{"$f":"IF(K295<>\"\", IF(INDEX('Full set Core Client Indicator'!$A$3:$AB$351, MATCH(Selection_Hide2!$A295, 'Full set Core Client Indicator'!$A$3:$A$351, 0), MATCH(Selection_Hide2!L$5, 'Full set Core Client Indicator'!$A$3:$AB$3, 0))=\"\", \"\",  INDEX('Full set Core Client Indicator'!$A$3:$AB$351, MATCH(Selection_Hide2!$A295, 'Full set Core Client Indicator'!$A$3:$A$351, 0), MATCH(Selection_Hide2!L$5, 'Full set Core Client Indicator'!$A$3:$AB$3, 0))), \"\")","v":""},{"$f":"IF(L295<>\"\", IF(INDEX('Full set Core Client Indicator'!$A$3:$AB$351, MATCH(Selection_Hide2!$A295, 'Full set Core Client Indicator'!$A$3:$A$351, 0), MATCH(Selection_Hide2!M$5, 'Full set Core Client Indicator'!$A$3:$AB$3, 0))=\"\", \"\",  INDEX('Full set Core Client Indicator'!$A$3:$AB$351, MATCH(Selection_Hide2!$A295, 'Full set Core Client Indicator'!$A$3:$A$351, 0), MATCH(Selection_Hide2!M$5, 'Full set Core Client Indicator'!$A$3:$AB$3, 0))), \"\")","v":""},{"$f":"IF(M295<>\"\", IF(INDEX('Full set Core Client Indicator'!$A$3:$AB$351, MATCH(Selection_Hide2!$A295, 'Full set Core Client Indicator'!$A$3:$A$351, 0), MATCH(Selection_Hide2!N$5, 'Full set Core Client Indicator'!$A$3:$AB$3, 0))=\"\", \"\",  INDEX('Full set Core Client Indicator'!$A$3:$AB$351, MATCH(Selection_Hide2!$A295, 'Full set Core Client Indicator'!$A$3:$A$351, 0), MATCH(Selection_Hide2!N$5, 'Full set Core Client Indicator'!$A$3:$AB$3, 0))), \"\")","v":""},{"$f":"IF(N295<>\"\", IF(INDEX('Full set Core Client Indicator'!$A$3:$AB$351, MATCH(Selection_Hide2!$A295, 'Full set Core Client Indicator'!$A$3:$A$351, 0), MATCH(Selection_Hide2!O$5, 'Full set Core Client Indicator'!$A$3:$AB$3, 0))=\"\", \"\",  INDEX('Full set Core Client Indicator'!$A$3:$AB$351, MATCH(Selection_Hide2!$A295, 'Full set Core Client Indicator'!$A$3:$A$351, 0), MATCH(Selection_Hide2!O$5, 'Full set Core Client Indicator'!$A$3:$AB$3, 0))), \"\")","v":""},{"$f":"IF(O295<>\"\", IF(INDEX('Full set Core Client Indicator'!$A$3:$AB$351, MATCH(Selection_Hide2!$A295, 'Full set Core Client Indicator'!$A$3:$A$351, 0), MATCH(Selection_Hide2!P$5, 'Full set Core Client Indicator'!$A$3:$AB$3, 0))=\"\", \"\",  INDEX('Full set Core Client Indicator'!$A$3:$AB$351, MATCH(Selection_Hide2!$A295, 'Full set Core Client Indicator'!$A$3:$A$351, 0), MATCH(Selection_Hide2!P$5, 'Full set Core Client Indicator'!$A$3:$AB$3, 0))), \"\")","v":""},{"$f":"IF(P295<>\"\", IF(INDEX('Full set Core Client Indicator'!$A$3:$AB$351, MATCH(Selection_Hide2!$A295, 'Full set Core Client Indicator'!$A$3:$A$351, 0), MATCH(Selection_Hide2!Q$5, 'Full set Core Client Indicator'!$A$3:$AB$3, 0))=\"\", \"\",  INDEX('Full set Core Client Indicator'!$A$3:$AB$351, MATCH(Selection_Hide2!$A295, 'Full set Core Client Indicator'!$A$3:$A$351, 0), MATCH(Selection_Hide2!Q$5, 'Full set Core Client Indicator'!$A$3:$AB$3, 0))), \"\")","v":""},{"$f":"IF(Q295<>\"\", IF(INDEX('Full set Core Client Indicator'!$A$3:$AB$351, MATCH(Selection_Hide2!$A295, 'Full set Core Client Indicator'!$A$3:$A$351, 0), MATCH(Selection_Hide2!R$5, 'Full set Core Client Indicator'!$A$3:$AB$3, 0))=\"\", \"\",  INDEX('Full set Core Client Indicator'!$A$3:$AB$351, MATCH(Selection_Hide2!$A295, 'Full set Core Client Indicator'!$A$3:$A$351, 0), MATCH(Selection_Hide2!R$5, 'Full set Core Client Indicator'!$A$3:$AB$3, 0))), \"\")","v":""},{"$f":"IF(R295<>\"\", IF(INDEX('Full set Core Client Indicator'!$A$3:$AB$351, MATCH(Selection_Hide2!$A295, 'Full set Core Client Indicator'!$A$3:$A$351, 0), MATCH(Selection_Hide2!S$5, 'Full set Core Client Indicator'!$A$3:$AB$3, 0))=\"\", \"\",  INDEX('Full set Core Client Indicator'!$A$3:$AB$351, MATCH(Selection_Hide2!$A295, 'Full set Core Client Indicator'!$A$3:$A$351, 0), MATCH(Selection_Hide2!S$5, 'Full set Core Client Indicator'!$A$3:$AB$3, 0))), \"\")","v":""},{"$f":"IF(S295<>\"\", IF(INDEX('Full set Core Client Indicator'!$A$3:$AB$351, MATCH(Selection_Hide2!$A295, 'Full set Core Client Indicator'!$A$3:$A$351, 0), MATCH(Selection_Hide2!T$5, 'Full set Core Client Indicator'!$A$3:$AB$3, 0))=\"\", \"\",  INDEX('Full set Core Client Indicator'!$A$3:$AB$351, MATCH(Selection_Hide2!$A295, 'Full set Core Client Indicator'!$A$3:$A$351, 0), MATCH(Selection_Hide2!T$5, 'Full set Core Client Indicator'!$A$3:$AB$3, 0))), \"\")","v":""},{"$f":"IF(T295<>\"\", IF(INDEX('Full set Core Client Indicator'!$A$3:$AB$351, MATCH(Selection_Hide2!$A295, 'Full set Core Client Indicator'!$A$3:$A$351, 0), MATCH(Selection_Hide2!U$5, 'Full set Core Client Indicator'!$A$3:$AB$3, 0))=\"\", \"\",  INDEX('Full set Core Client Indicator'!$A$3:$AB$351, MATCH(Selection_Hide2!$A295, 'Full set Core Client Indicator'!$A$3:$A$351, 0), MATCH(Selection_Hide2!U$5, 'Full set Core Client Indicator'!$A$3:$AB$3, 0))), \"\")","v":""},{"$f":"IF(U295<>\"\", IF(INDEX('Full set Core Client Indicator'!$A$3:$AB$351, MATCH(Selection_Hide2!$A295, 'Full set Core Client Indicator'!$A$3:$A$351, 0), MATCH(Selection_Hide2!V$5, 'Full set Core Client Indicator'!$A$3:$AB$3, 0))=\"\", \"\",  INDEX('Full set Core Client Indicator'!$A$3:$AB$351, MATCH(Selection_Hide2!$A295, 'Full set Core Client Indicator'!$A$3:$A$351, 0), MATCH(Selection_Hide2!V$5, 'Full set Core Client Indicator'!$A$3:$AB$3, 0))), \"\")","v":""},{"$f":"IF(V295<>\"\", IF(INDEX('Full set Core Client Indicator'!$A$3:$AB$351, MATCH(Selection_Hide2!$A295, 'Full set Core Client Indicator'!$A$3:$A$351, 0), MATCH(Selection_Hide2!W$5, 'Full set Core Client Indicator'!$A$3:$AB$3, 0))=\"\", \"\",  INDEX('Full set Core Client Indicator'!$A$3:$AB$351, MATCH(Selection_Hide2!$A295, 'Full set Core Client Indicator'!$A$3:$A$351, 0), MATCH(Selection_Hide2!W$5, 'Full set Core Client Indicator'!$A$3:$AB$3, 0))), \"\")","v":""},{"$f":"IF(W295<>\"\", IF(INDEX('Full set Core Client Indicator'!$A$3:$AB$351, MATCH(Selection_Hide2!$A295, 'Full set Core Client Indicator'!$A$3:$A$351, 0), MATCH(Selection_Hide2!X$5, 'Full set Core Client Indicator'!$A$3:$AB$3, 0))=\"\", \"\",  INDEX('Full set Core Client Indicator'!$A$3:$AB$351, MATCH(Selection_Hide2!$A295, 'Full set Core Client Indicator'!$A$3:$A$351, 0), MATCH(Selection_Hide2!X$5, 'Full set Core Client Indicator'!$A$3:$AB$3, 0))), \"\")","v":""},{"$f":"IF(X295<>\"\", IF(INDEX('Full set Core Client Indicator'!$A$3:$AB$351, MATCH(Selection_Hide2!$A295, 'Full set Core Client Indicator'!$A$3:$A$351, 0), MATCH(Selection_Hide2!Y$5, 'Full set Core Client Indicator'!$A$3:$AB$3, 0))=\"\", \"\",  INDEX('Full set Core Client Indicator'!$A$3:$AB$351, MATCH(Selection_Hide2!$A295, 'Full set Core Client Indicator'!$A$3:$A$351, 0), MATCH(Selection_Hide2!Y$5, 'Full set Core Client Indicator'!$A$3:$AB$3, 0))), \"\")","v":""},{"$f":"IF(Y295<>\"\", IF(INDEX('Full set Core Client Indicator'!$A$3:$AB$351, MATCH(Selection_Hide2!$A295, 'Full set Core Client Indicator'!$A$3:$A$351, 0), MATCH(Selection_Hide2!Z$5, 'Full set Core Client Indicator'!$A$3:$AB$3, 0))=\"\", \"\",  INDEX('Full set Core Client Indicator'!$A$3:$AB$351, MATCH(Selection_Hide2!$A295, 'Full set Core Client Indicator'!$A$3:$A$351, 0), MATCH(Selection_Hide2!Z$5, 'Full set Core Client Indicator'!$A$3:$AB$3, 0))), \"\")","v":""},{"$f":"IF(Z295<>\"\", IF(INDEX('Full set Core Client Indicator'!$A$3:$AB$351, MATCH(Selection_Hide2!$A295, 'Full set Core Client Indicator'!$A$3:$A$351, 0), MATCH(Selection_Hide2!AA$5, 'Full set Core Client Indicator'!$A$3:$AB$3, 0))=\"\", \"\",  INDEX('Full set Core Client Indicator'!$A$3:$AB$351, MATCH(Selection_Hide2!$A295, 'Full set Core Client Indicator'!$A$3:$A$351, 0), MATCH(Selection_Hide2!AA$5, 'Full set Core Client Indicator'!$A$3:$AB$3, 0))), \"\")","v":""},{"$f":"IF(AA295<>\"\", IF(INDEX('Full set Core Client Indicator'!$A$3:$AB$351, MATCH(Selection_Hide2!$A295, 'Full set Core Client Indicator'!$A$3:$A$351, 0), MATCH(Selection_Hide2!AB$5, 'Full set Core Client Indicator'!$A$3:$AB$3, 0))=\"\", \"\",  INDEX('Full set Core Client Indicator'!$A$3:$AB$351, MATCH(Selection_Hide2!$A295, 'Full set Core Client Indicator'!$A$3:$A$351, 0), MATCH(Selection_Hide2!AB$5, 'Full set Core Client Indicator'!$A$3:$AB$3, 0))), \"\")","v":""}]
[{"$f":"IF(AND(Selection_Hide1!C294<>0, Selection_Hide1!C294<>\"Grand Total\"), Selection_Hide1!C294, \"\")","v":""},{"$f":"IF(A296<>\"\", IF(INDEX('Full set Core Client Indicator'!$A$3:$AB$351, MATCH(Selection_Hide2!$A296, 'Full set Core Client Indicator'!$A$3:$A$351, 0), MATCH(Selection_Hide2!B$5, 'Full set Core Client Indicator'!$A$3:$AB$3, 0))=\"\", \"\",  INDEX('Full set Core Client Indicator'!$A$3:$AB$351, MATCH(Selection_Hide2!$A296, 'Full set Core Client Indicator'!$A$3:$A$351, 0), MATCH(Selection_Hide2!B$5, 'Full set Core Client Indicator'!$A$3:$AB$3, 0))), \"\")","v":""},{"$f":"IF(B296<>\"\", IF(INDEX('Full set Core Client Indicator'!$A$3:$AB$351, MATCH(Selection_Hide2!$A296, 'Full set Core Client Indicator'!$A$3:$A$351, 0), MATCH(Selection_Hide2!C$5, 'Full set Core Client Indicator'!$A$3:$AB$3, 0))=\"\", \"\",  INDEX('Full set Core Client Indicator'!$A$3:$AB$351, MATCH(Selection_Hide2!$A296, 'Full set Core Client Indicator'!$A$3:$A$351, 0), MATCH(Selection_Hide2!C$5, 'Full set Core Client Indicator'!$A$3:$AB$3, 0))), \"\")","v":""},{"$f":"IF(C296<>\"\", IF(INDEX('Full set Core Client Indicator'!$A$3:$AB$351, MATCH(Selection_Hide2!$A296, 'Full set Core Client Indicator'!$A$3:$A$351, 0), MATCH(Selection_Hide2!D$5, 'Full set Core Client Indicator'!$A$3:$AB$3, 0))=\"\", \"\",  INDEX('Full set Core Client Indicator'!$A$3:$AB$351, MATCH(Selection_Hide2!$A296, 'Full set Core Client Indicator'!$A$3:$A$351, 0), MATCH(Selection_Hide2!D$5, 'Full set Core Client Indicator'!$A$3:$AB$3, 0))), \"\")","v":""},{"$f":"IF(D296<>\"\", IF(INDEX('Full set Core Client Indicator'!$A$3:$AB$351, MATCH(Selection_Hide2!$A296, 'Full set Core Client Indicator'!$A$3:$A$351, 0), MATCH(Selection_Hide2!E$5, 'Full set Core Client Indicator'!$A$3:$AB$3, 0))=\"\", \"\",  INDEX('Full set Core Client Indicator'!$A$3:$AB$351, MATCH(Selection_Hide2!$A296, 'Full set Core Client Indicator'!$A$3:$A$351, 0), MATCH(Selection_Hide2!E$5, 'Full set Core Client Indicator'!$A$3:$AB$3, 0))), \"\")","v":""},{"$f":"IF(E296<>\"\", IF(INDEX('Full set Core Client Indicator'!$A$3:$AB$351, MATCH(Selection_Hide2!$A296, 'Full set Core Client Indicator'!$A$3:$A$351, 0), MATCH(Selection_Hide2!F$5, 'Full set Core Client Indicator'!$A$3:$AB$3, 0))=\"\", \"\",  INDEX('Full set Core Client Indicator'!$A$3:$AB$351, MATCH(Selection_Hide2!$A296, 'Full set Core Client Indicator'!$A$3:$A$351, 0), MATCH(Selection_Hide2!F$5, 'Full set Core Client Indicator'!$A$3:$AB$3, 0))), \"\")","v":""},{"$f":"IF(F296<>\"\", IF(INDEX('Full set Core Client Indicator'!$A$3:$AB$351, MATCH(Selection_Hide2!$A296, 'Full set Core Client Indicator'!$A$3:$A$351, 0), MATCH(Selection_Hide2!G$5, 'Full set Core Client Indicator'!$A$3:$AB$3, 0))=\"\", \"\",  INDEX('Full set Core Client Indicator'!$A$3:$AB$351, MATCH(Selection_Hide2!$A296, 'Full set Core Client Indicator'!$A$3:$A$351, 0), MATCH(Selection_Hide2!G$5, 'Full set Core Client Indicator'!$A$3:$AB$3, 0))), \"\")","v":""},{"$f":"IF(G296<>\"\", IF(INDEX('Full set Core Client Indicator'!$A$3:$AB$351, MATCH(Selection_Hide2!$A296, 'Full set Core Client Indicator'!$A$3:$A$351, 0), MATCH(Selection_Hide2!H$5, 'Full set Core Client Indicator'!$A$3:$AB$3, 0))=\"\", \"\",  INDEX('Full set Core Client Indicator'!$A$3:$AB$351, MATCH(Selection_Hide2!$A296, 'Full set Core Client Indicator'!$A$3:$A$351, 0), MATCH(Selection_Hide2!H$5, 'Full set Core Client Indicator'!$A$3:$AB$3, 0))), \"\")","v":""},{"$f":"IF(H296<>\"\", IF(INDEX('Full set Core Client Indicator'!$A$3:$AB$351, MATCH(Selection_Hide2!$A296, 'Full set Core Client Indicator'!$A$3:$A$351, 0), MATCH(Selection_Hide2!I$5, 'Full set Core Client Indicator'!$A$3:$AB$3, 0))=\"\", \"\",  INDEX('Full set Core Client Indicator'!$A$3:$AB$351, MATCH(Selection_Hide2!$A296, 'Full set Core Client Indicator'!$A$3:$A$351, 0), MATCH(Selection_Hide2!I$5, 'Full set Core Client Indicator'!$A$3:$AB$3, 0))), \"\")","v":""},{"$f":"IF(I296<>\"\", IF(INDEX('Full set Core Client Indicator'!$A$3:$AB$351, MATCH(Selection_Hide2!$A296, 'Full set Core Client Indicator'!$A$3:$A$351, 0), MATCH(Selection_Hide2!J$5, 'Full set Core Client Indicator'!$A$3:$AB$3, 0))=\"\", \"\",  INDEX('Full set Core Client Indicator'!$A$3:$AB$351, MATCH(Selection_Hide2!$A296, 'Full set Core Client Indicator'!$A$3:$A$351, 0), MATCH(Selection_Hide2!J$5, 'Full set Core Client Indicator'!$A$3:$AB$3, 0))), \"\")","v":""},{"$f":"IF(J296<>\"\", IF(INDEX('Full set Core Client Indicator'!$A$3:$AB$351, MATCH(Selection_Hide2!$A296, 'Full set Core Client Indicator'!$A$3:$A$351, 0), MATCH(Selection_Hide2!K$5, 'Full set Core Client Indicator'!$A$3:$AB$3, 0))=\"\", \"\",  INDEX('Full set Core Client Indicator'!$A$3:$AB$351, MATCH(Selection_Hide2!$A296, 'Full set Core Client Indicator'!$A$3:$A$351, 0), MATCH(Selection_Hide2!K$5, 'Full set Core Client Indicator'!$A$3:$AB$3, 0))), \"\")","v":""},{"$f":"IF(K296<>\"\", IF(INDEX('Full set Core Client Indicator'!$A$3:$AB$351, MATCH(Selection_Hide2!$A296, 'Full set Core Client Indicator'!$A$3:$A$351, 0), MATCH(Selection_Hide2!L$5, 'Full set Core Client Indicator'!$A$3:$AB$3, 0))=\"\", \"\",  INDEX('Full set Core Client Indicator'!$A$3:$AB$351, MATCH(Selection_Hide2!$A296, 'Full set Core Client Indicator'!$A$3:$A$351, 0), MATCH(Selection_Hide2!L$5, 'Full set Core Client Indicator'!$A$3:$AB$3, 0))), \"\")","v":""},{"$f":"IF(L296<>\"\", IF(INDEX('Full set Core Client Indicator'!$A$3:$AB$351, MATCH(Selection_Hide2!$A296, 'Full set Core Client Indicator'!$A$3:$A$351, 0), MATCH(Selection_Hide2!M$5, 'Full set Core Client Indicator'!$A$3:$AB$3, 0))=\"\", \"\",  INDEX('Full set Core Client Indicator'!$A$3:$AB$351, MATCH(Selection_Hide2!$A296, 'Full set Core Client Indicator'!$A$3:$A$351, 0), MATCH(Selection_Hide2!M$5, 'Full set Core Client Indicator'!$A$3:$AB$3, 0))), \"\")","v":""},{"$f":"IF(M296<>\"\", IF(INDEX('Full set Core Client Indicator'!$A$3:$AB$351, MATCH(Selection_Hide2!$A296, 'Full set Core Client Indicator'!$A$3:$A$351, 0), MATCH(Selection_Hide2!N$5, 'Full set Core Client Indicator'!$A$3:$AB$3, 0))=\"\", \"\",  INDEX('Full set Core Client Indicator'!$A$3:$AB$351, MATCH(Selection_Hide2!$A296, 'Full set Core Client Indicator'!$A$3:$A$351, 0), MATCH(Selection_Hide2!N$5, 'Full set Core Client Indicator'!$A$3:$AB$3, 0))), \"\")","v":""},{"$f":"IF(N296<>\"\", IF(INDEX('Full set Core Client Indicator'!$A$3:$AB$351, MATCH(Selection_Hide2!$A296, 'Full set Core Client Indicator'!$A$3:$A$351, 0), MATCH(Selection_Hide2!O$5, 'Full set Core Client Indicator'!$A$3:$AB$3, 0))=\"\", \"\",  INDEX('Full set Core Client Indicator'!$A$3:$AB$351, MATCH(Selection_Hide2!$A296, 'Full set Core Client Indicator'!$A$3:$A$351, 0), MATCH(Selection_Hide2!O$5, 'Full set Core Client Indicator'!$A$3:$AB$3, 0))), \"\")","v":""},{"$f":"IF(O296<>\"\", IF(INDEX('Full set Core Client Indicator'!$A$3:$AB$351, MATCH(Selection_Hide2!$A296, 'Full set Core Client Indicator'!$A$3:$A$351, 0), MATCH(Selection_Hide2!P$5, 'Full set Core Client Indicator'!$A$3:$AB$3, 0))=\"\", \"\",  INDEX('Full set Core Client Indicator'!$A$3:$AB$351, MATCH(Selection_Hide2!$A296, 'Full set Core Client Indicator'!$A$3:$A$351, 0), MATCH(Selection_Hide2!P$5, 'Full set Core Client Indicator'!$A$3:$AB$3, 0))), \"\")","v":""},{"$f":"IF(P296<>\"\", IF(INDEX('Full set Core Client Indicator'!$A$3:$AB$351, MATCH(Selection_Hide2!$A296, 'Full set Core Client Indicator'!$A$3:$A$351, 0), MATCH(Selection_Hide2!Q$5, 'Full set Core Client Indicator'!$A$3:$AB$3, 0))=\"\", \"\",  INDEX('Full set Core Client Indicator'!$A$3:$AB$351, MATCH(Selection_Hide2!$A296, 'Full set Core Client Indicator'!$A$3:$A$351, 0), MATCH(Selection_Hide2!Q$5, 'Full set Core Client Indicator'!$A$3:$AB$3, 0))), \"\")","v":""},{"$f":"IF(Q296<>\"\", IF(INDEX('Full set Core Client Indicator'!$A$3:$AB$351, MATCH(Selection_Hide2!$A296, 'Full set Core Client Indicator'!$A$3:$A$351, 0), MATCH(Selection_Hide2!R$5, 'Full set Core Client Indicator'!$A$3:$AB$3, 0))=\"\", \"\",  INDEX('Full set Core Client Indicator'!$A$3:$AB$351, MATCH(Selection_Hide2!$A296, 'Full set Core Client Indicator'!$A$3:$A$351, 0), MATCH(Selection_Hide2!R$5, 'Full set Core Client Indicator'!$A$3:$AB$3, 0))), \"\")","v":""},{"$f":"IF(R296<>\"\", IF(INDEX('Full set Core Client Indicator'!$A$3:$AB$351, MATCH(Selection_Hide2!$A296, 'Full set Core Client Indicator'!$A$3:$A$351, 0), MATCH(Selection_Hide2!S$5, 'Full set Core Client Indicator'!$A$3:$AB$3, 0))=\"\", \"\",  INDEX('Full set Core Client Indicator'!$A$3:$AB$351, MATCH(Selection_Hide2!$A296, 'Full set Core Client Indicator'!$A$3:$A$351, 0), MATCH(Selection_Hide2!S$5, 'Full set Core Client Indicator'!$A$3:$AB$3, 0))), \"\")","v":""},{"$f":"IF(S296<>\"\", IF(INDEX('Full set Core Client Indicator'!$A$3:$AB$351, MATCH(Selection_Hide2!$A296, 'Full set Core Client Indicator'!$A$3:$A$351, 0), MATCH(Selection_Hide2!T$5, 'Full set Core Client Indicator'!$A$3:$AB$3, 0))=\"\", \"\",  INDEX('Full set Core Client Indicator'!$A$3:$AB$351, MATCH(Selection_Hide2!$A296, 'Full set Core Client Indicator'!$A$3:$A$351, 0), MATCH(Selection_Hide2!T$5, 'Full set Core Client Indicator'!$A$3:$AB$3, 0))), \"\")","v":""},{"$f":"IF(T296<>\"\", IF(INDEX('Full set Core Client Indicator'!$A$3:$AB$351, MATCH(Selection_Hide2!$A296, 'Full set Core Client Indicator'!$A$3:$A$351, 0), MATCH(Selection_Hide2!U$5, 'Full set Core Client Indicator'!$A$3:$AB$3, 0))=\"\", \"\",  INDEX('Full set Core Client Indicator'!$A$3:$AB$351, MATCH(Selection_Hide2!$A296, 'Full set Core Client Indicator'!$A$3:$A$351, 0), MATCH(Selection_Hide2!U$5, 'Full set Core Client Indicator'!$A$3:$AB$3, 0))), \"\")","v":""},{"$f":"IF(U296<>\"\", IF(INDEX('Full set Core Client Indicator'!$A$3:$AB$351, MATCH(Selection_Hide2!$A296, 'Full set Core Client Indicator'!$A$3:$A$351, 0), MATCH(Selection_Hide2!V$5, 'Full set Core Client Indicator'!$A$3:$AB$3, 0))=\"\", \"\",  INDEX('Full set Core Client Indicator'!$A$3:$AB$351, MATCH(Selection_Hide2!$A296, 'Full set Core Client Indicator'!$A$3:$A$351, 0), MATCH(Selection_Hide2!V$5, 'Full set Core Client Indicator'!$A$3:$AB$3, 0))), \"\")","v":""},{"$f":"IF(V296<>\"\", IF(INDEX('Full set Core Client Indicator'!$A$3:$AB$351, MATCH(Selection_Hide2!$A296, 'Full set Core Client Indicator'!$A$3:$A$351, 0), MATCH(Selection_Hide2!W$5, 'Full set Core Client Indicator'!$A$3:$AB$3, 0))=\"\", \"\",  INDEX('Full set Core Client Indicator'!$A$3:$AB$351, MATCH(Selection_Hide2!$A296, 'Full set Core Client Indicator'!$A$3:$A$351, 0), MATCH(Selection_Hide2!W$5, 'Full set Core Client Indicator'!$A$3:$AB$3, 0))), \"\")","v":""},{"$f":"IF(W296<>\"\", IF(INDEX('Full set Core Client Indicator'!$A$3:$AB$351, MATCH(Selection_Hide2!$A296, 'Full set Core Client Indicator'!$A$3:$A$351, 0), MATCH(Selection_Hide2!X$5, 'Full set Core Client Indicator'!$A$3:$AB$3, 0))=\"\", \"\",  INDEX('Full set Core Client Indicator'!$A$3:$AB$351, MATCH(Selection_Hide2!$A296, 'Full set Core Client Indicator'!$A$3:$A$351, 0), MATCH(Selection_Hide2!X$5, 'Full set Core Client Indicator'!$A$3:$AB$3, 0))), \"\")","v":""},{"$f":"IF(X296<>\"\", IF(INDEX('Full set Core Client Indicator'!$A$3:$AB$351, MATCH(Selection_Hide2!$A296, 'Full set Core Client Indicator'!$A$3:$A$351, 0), MATCH(Selection_Hide2!Y$5, 'Full set Core Client Indicator'!$A$3:$AB$3, 0))=\"\", \"\",  INDEX('Full set Core Client Indicator'!$A$3:$AB$351, MATCH(Selection_Hide2!$A296, 'Full set Core Client Indicator'!$A$3:$A$351, 0), MATCH(Selection_Hide2!Y$5, 'Full set Core Client Indicator'!$A$3:$AB$3, 0))), \"\")","v":""},{"$f":"IF(Y296<>\"\", IF(INDEX('Full set Core Client Indicator'!$A$3:$AB$351, MATCH(Selection_Hide2!$A296, 'Full set Core Client Indicator'!$A$3:$A$351, 0), MATCH(Selection_Hide2!Z$5, 'Full set Core Client Indicator'!$A$3:$AB$3, 0))=\"\", \"\",  INDEX('Full set Core Client Indicator'!$A$3:$AB$351, MATCH(Selection_Hide2!$A296, 'Full set Core Client Indicator'!$A$3:$A$351, 0), MATCH(Selection_Hide2!Z$5, 'Full set Core Client Indicator'!$A$3:$AB$3, 0))), \"\")","v":""},{"$f":"IF(Z296<>\"\", IF(INDEX('Full set Core Client Indicator'!$A$3:$AB$351, MATCH(Selection_Hide2!$A296, 'Full set Core Client Indicator'!$A$3:$A$351, 0), MATCH(Selection_Hide2!AA$5, 'Full set Core Client Indicator'!$A$3:$AB$3, 0))=\"\", \"\",  INDEX('Full set Core Client Indicator'!$A$3:$AB$351, MATCH(Selection_Hide2!$A296, 'Full set Core Client Indicator'!$A$3:$A$351, 0), MATCH(Selection_Hide2!AA$5, 'Full set Core Client Indicator'!$A$3:$AB$3, 0))), \"\")","v":""},{"$f":"IF(AA296<>\"\", IF(INDEX('Full set Core Client Indicator'!$A$3:$AB$351, MATCH(Selection_Hide2!$A296, 'Full set Core Client Indicator'!$A$3:$A$351, 0), MATCH(Selection_Hide2!AB$5, 'Full set Core Client Indicator'!$A$3:$AB$3, 0))=\"\", \"\",  INDEX('Full set Core Client Indicator'!$A$3:$AB$351, MATCH(Selection_Hide2!$A296, 'Full set Core Client Indicator'!$A$3:$A$351, 0), MATCH(Selection_Hide2!AB$5, 'Full set Core Client Indicator'!$A$3:$AB$3, 0))), \"\")","v":""}]
[{"$f":"IF(AND(Selection_Hide1!C295<>0, Selection_Hide1!C295<>\"Grand Total\"), Selection_Hide1!C295, \"\")","v":""},{"$f":"IF(A297<>\"\", IF(INDEX('Full set Core Client Indicator'!$A$3:$AB$351, MATCH(Selection_Hide2!$A297, 'Full set Core Client Indicator'!$A$3:$A$351, 0), MATCH(Selection_Hide2!B$5, 'Full set Core Client Indicator'!$A$3:$AB$3, 0))=\"\", \"\",  INDEX('Full set Core Client Indicator'!$A$3:$AB$351, MATCH(Selection_Hide2!$A297, 'Full set Core Client Indicator'!$A$3:$A$351, 0), MATCH(Selection_Hide2!B$5, 'Full set Core Client Indicator'!$A$3:$AB$3, 0))), \"\")","v":""},{"$f":"IF(B297<>\"\", IF(INDEX('Full set Core Client Indicator'!$A$3:$AB$351, MATCH(Selection_Hide2!$A297, 'Full set Core Client Indicator'!$A$3:$A$351, 0), MATCH(Selection_Hide2!C$5, 'Full set Core Client Indicator'!$A$3:$AB$3, 0))=\"\", \"\",  INDEX('Full set Core Client Indicator'!$A$3:$AB$351, MATCH(Selection_Hide2!$A297, 'Full set Core Client Indicator'!$A$3:$A$351, 0), MATCH(Selection_Hide2!C$5, 'Full set Core Client Indicator'!$A$3:$AB$3, 0))), \"\")","v":""},{"$f":"IF(C297<>\"\", IF(INDEX('Full set Core Client Indicator'!$A$3:$AB$351, MATCH(Selection_Hide2!$A297, 'Full set Core Client Indicator'!$A$3:$A$351, 0), MATCH(Selection_Hide2!D$5, 'Full set Core Client Indicator'!$A$3:$AB$3, 0))=\"\", \"\",  INDEX('Full set Core Client Indicator'!$A$3:$AB$351, MATCH(Selection_Hide2!$A297, 'Full set Core Client Indicator'!$A$3:$A$351, 0), MATCH(Selection_Hide2!D$5, 'Full set Core Client Indicator'!$A$3:$AB$3, 0))), \"\")","v":""},{"$f":"IF(D297<>\"\", IF(INDEX('Full set Core Client Indicator'!$A$3:$AB$351, MATCH(Selection_Hide2!$A297, 'Full set Core Client Indicator'!$A$3:$A$351, 0), MATCH(Selection_Hide2!E$5, 'Full set Core Client Indicator'!$A$3:$AB$3, 0))=\"\", \"\",  INDEX('Full set Core Client Indicator'!$A$3:$AB$351, MATCH(Selection_Hide2!$A297, 'Full set Core Client Indicator'!$A$3:$A$351, 0), MATCH(Selection_Hide2!E$5, 'Full set Core Client Indicator'!$A$3:$AB$3, 0))), \"\")","v":""},{"$f":"IF(E297<>\"\", IF(INDEX('Full set Core Client Indicator'!$A$3:$AB$351, MATCH(Selection_Hide2!$A297, 'Full set Core Client Indicator'!$A$3:$A$351, 0), MATCH(Selection_Hide2!F$5, 'Full set Core Client Indicator'!$A$3:$AB$3, 0))=\"\", \"\",  INDEX('Full set Core Client Indicator'!$A$3:$AB$351, MATCH(Selection_Hide2!$A297, 'Full set Core Client Indicator'!$A$3:$A$351, 0), MATCH(Selection_Hide2!F$5, 'Full set Core Client Indicator'!$A$3:$AB$3, 0))), \"\")","v":""},{"$f":"IF(F297<>\"\", IF(INDEX('Full set Core Client Indicator'!$A$3:$AB$351, MATCH(Selection_Hide2!$A297, 'Full set Core Client Indicator'!$A$3:$A$351, 0), MATCH(Selection_Hide2!G$5, 'Full set Core Client Indicator'!$A$3:$AB$3, 0))=\"\", \"\",  INDEX('Full set Core Client Indicator'!$A$3:$AB$351, MATCH(Selection_Hide2!$A297, 'Full set Core Client Indicator'!$A$3:$A$351, 0), MATCH(Selection_Hide2!G$5, 'Full set Core Client Indicator'!$A$3:$AB$3, 0))), \"\")","v":""},{"$f":"IF(G297<>\"\", IF(INDEX('Full set Core Client Indicator'!$A$3:$AB$351, MATCH(Selection_Hide2!$A297, 'Full set Core Client Indicator'!$A$3:$A$351, 0), MATCH(Selection_Hide2!H$5, 'Full set Core Client Indicator'!$A$3:$AB$3, 0))=\"\", \"\",  INDEX('Full set Core Client Indicator'!$A$3:$AB$351, MATCH(Selection_Hide2!$A297, 'Full set Core Client Indicator'!$A$3:$A$351, 0), MATCH(Selection_Hide2!H$5, 'Full set Core Client Indicator'!$A$3:$AB$3, 0))), \"\")","v":""},{"$f":"IF(H297<>\"\", IF(INDEX('Full set Core Client Indicator'!$A$3:$AB$351, MATCH(Selection_Hide2!$A297, 'Full set Core Client Indicator'!$A$3:$A$351, 0), MATCH(Selection_Hide2!I$5, 'Full set Core Client Indicator'!$A$3:$AB$3, 0))=\"\", \"\",  INDEX('Full set Core Client Indicator'!$A$3:$AB$351, MATCH(Selection_Hide2!$A297, 'Full set Core Client Indicator'!$A$3:$A$351, 0), MATCH(Selection_Hide2!I$5, 'Full set Core Client Indicator'!$A$3:$AB$3, 0))), \"\")","v":""},{"$f":"IF(I297<>\"\", IF(INDEX('Full set Core Client Indicator'!$A$3:$AB$351, MATCH(Selection_Hide2!$A297, 'Full set Core Client Indicator'!$A$3:$A$351, 0), MATCH(Selection_Hide2!J$5, 'Full set Core Client Indicator'!$A$3:$AB$3, 0))=\"\", \"\",  INDEX('Full set Core Client Indicator'!$A$3:$AB$351, MATCH(Selection_Hide2!$A297, 'Full set Core Client Indicator'!$A$3:$A$351, 0), MATCH(Selection_Hide2!J$5, 'Full set Core Client Indicator'!$A$3:$AB$3, 0))), \"\")","v":""},{"$f":"IF(J297<>\"\", IF(INDEX('Full set Core Client Indicator'!$A$3:$AB$351, MATCH(Selection_Hide2!$A297, 'Full set Core Client Indicator'!$A$3:$A$351, 0), MATCH(Selection_Hide2!K$5, 'Full set Core Client Indicator'!$A$3:$AB$3, 0))=\"\", \"\",  INDEX('Full set Core Client Indicator'!$A$3:$AB$351, MATCH(Selection_Hide2!$A297, 'Full set Core Client Indicator'!$A$3:$A$351, 0), MATCH(Selection_Hide2!K$5, 'Full set Core Client Indicator'!$A$3:$AB$3, 0))), \"\")","v":""},{"$f":"IF(K297<>\"\", IF(INDEX('Full set Core Client Indicator'!$A$3:$AB$351, MATCH(Selection_Hide2!$A297, 'Full set Core Client Indicator'!$A$3:$A$351, 0), MATCH(Selection_Hide2!L$5, 'Full set Core Client Indicator'!$A$3:$AB$3, 0))=\"\", \"\",  INDEX('Full set Core Client Indicator'!$A$3:$AB$351, MATCH(Selection_Hide2!$A297, 'Full set Core Client Indicator'!$A$3:$A$351, 0), MATCH(Selection_Hide2!L$5, 'Full set Core Client Indicator'!$A$3:$AB$3, 0))), \"\")","v":""},{"$f":"IF(L297<>\"\", IF(INDEX('Full set Core Client Indicator'!$A$3:$AB$351, MATCH(Selection_Hide2!$A297, 'Full set Core Client Indicator'!$A$3:$A$351, 0), MATCH(Selection_Hide2!M$5, 'Full set Core Client Indicator'!$A$3:$AB$3, 0))=\"\", \"\",  INDEX('Full set Core Client Indicator'!$A$3:$AB$351, MATCH(Selection_Hide2!$A297, 'Full set Core Client Indicator'!$A$3:$A$351, 0), MATCH(Selection_Hide2!M$5, 'Full set Core Client Indicator'!$A$3:$AB$3, 0))), \"\")","v":""},{"$f":"IF(M297<>\"\", IF(INDEX('Full set Core Client Indicator'!$A$3:$AB$351, MATCH(Selection_Hide2!$A297, 'Full set Core Client Indicator'!$A$3:$A$351, 0), MATCH(Selection_Hide2!N$5, 'Full set Core Client Indicator'!$A$3:$AB$3, 0))=\"\", \"\",  INDEX('Full set Core Client Indicator'!$A$3:$AB$351, MATCH(Selection_Hide2!$A297, 'Full set Core Client Indicator'!$A$3:$A$351, 0), MATCH(Selection_Hide2!N$5, 'Full set Core Client Indicator'!$A$3:$AB$3, 0))), \"\")","v":""},{"$f":"IF(N297<>\"\", IF(INDEX('Full set Core Client Indicator'!$A$3:$AB$351, MATCH(Selection_Hide2!$A297, 'Full set Core Client Indicator'!$A$3:$A$351, 0), MATCH(Selection_Hide2!O$5, 'Full set Core Client Indicator'!$A$3:$AB$3, 0))=\"\", \"\",  INDEX('Full set Core Client Indicator'!$A$3:$AB$351, MATCH(Selection_Hide2!$A297, 'Full set Core Client Indicator'!$A$3:$A$351, 0), MATCH(Selection_Hide2!O$5, 'Full set Core Client Indicator'!$A$3:$AB$3, 0))), \"\")","v":""},{"$f":"IF(O297<>\"\", IF(INDEX('Full set Core Client Indicator'!$A$3:$AB$351, MATCH(Selection_Hide2!$A297, 'Full set Core Client Indicator'!$A$3:$A$351, 0), MATCH(Selection_Hide2!P$5, 'Full set Core Client Indicator'!$A$3:$AB$3, 0))=\"\", \"\",  INDEX('Full set Core Client Indicator'!$A$3:$AB$351, MATCH(Selection_Hide2!$A297, 'Full set Core Client Indicator'!$A$3:$A$351, 0), MATCH(Selection_Hide2!P$5, 'Full set Core Client Indicator'!$A$3:$AB$3, 0))), \"\")","v":""},{"$f":"IF(P297<>\"\", IF(INDEX('Full set Core Client Indicator'!$A$3:$AB$351, MATCH(Selection_Hide2!$A297, 'Full set Core Client Indicator'!$A$3:$A$351, 0), MATCH(Selection_Hide2!Q$5, 'Full set Core Client Indicator'!$A$3:$AB$3, 0))=\"\", \"\",  INDEX('Full set Core Client Indicator'!$A$3:$AB$351, MATCH(Selection_Hide2!$A297, 'Full set Core Client Indicator'!$A$3:$A$351, 0), MATCH(Selection_Hide2!Q$5, 'Full set Core Client Indicator'!$A$3:$AB$3, 0))), \"\")","v":""},{"$f":"IF(Q297<>\"\", IF(INDEX('Full set Core Client Indicator'!$A$3:$AB$351, MATCH(Selection_Hide2!$A297, 'Full set Core Client Indicator'!$A$3:$A$351, 0), MATCH(Selection_Hide2!R$5, 'Full set Core Client Indicator'!$A$3:$AB$3, 0))=\"\", \"\",  INDEX('Full set Core Client Indicator'!$A$3:$AB$351, MATCH(Selection_Hide2!$A297, 'Full set Core Client Indicator'!$A$3:$A$351, 0), MATCH(Selection_Hide2!R$5, 'Full set Core Client Indicator'!$A$3:$AB$3, 0))), \"\")","v":""},{"$f":"IF(R297<>\"\", IF(INDEX('Full set Core Client Indicator'!$A$3:$AB$351, MATCH(Selection_Hide2!$A297, 'Full set Core Client Indicator'!$A$3:$A$351, 0), MATCH(Selection_Hide2!S$5, 'Full set Core Client Indicator'!$A$3:$AB$3, 0))=\"\", \"\",  INDEX('Full set Core Client Indicator'!$A$3:$AB$351, MATCH(Selection_Hide2!$A297, 'Full set Core Client Indicator'!$A$3:$A$351, 0), MATCH(Selection_Hide2!S$5, 'Full set Core Client Indicator'!$A$3:$AB$3, 0))), \"\")","v":""},{"$f":"IF(S297<>\"\", IF(INDEX('Full set Core Client Indicator'!$A$3:$AB$351, MATCH(Selection_Hide2!$A297, 'Full set Core Client Indicator'!$A$3:$A$351, 0), MATCH(Selection_Hide2!T$5, 'Full set Core Client Indicator'!$A$3:$AB$3, 0))=\"\", \"\",  INDEX('Full set Core Client Indicator'!$A$3:$AB$351, MATCH(Selection_Hide2!$A297, 'Full set Core Client Indicator'!$A$3:$A$351, 0), MATCH(Selection_Hide2!T$5, 'Full set Core Client Indicator'!$A$3:$AB$3, 0))), \"\")","v":""},{"$f":"IF(T297<>\"\", IF(INDEX('Full set Core Client Indicator'!$A$3:$AB$351, MATCH(Selection_Hide2!$A297, 'Full set Core Client Indicator'!$A$3:$A$351, 0), MATCH(Selection_Hide2!U$5, 'Full set Core Client Indicator'!$A$3:$AB$3, 0))=\"\", \"\",  INDEX('Full set Core Client Indicator'!$A$3:$AB$351, MATCH(Selection_Hide2!$A297, 'Full set Core Client Indicator'!$A$3:$A$351, 0), MATCH(Selection_Hide2!U$5, 'Full set Core Client Indicator'!$A$3:$AB$3, 0))), \"\")","v":""},{"$f":"IF(U297<>\"\", IF(INDEX('Full set Core Client Indicator'!$A$3:$AB$351, MATCH(Selection_Hide2!$A297, 'Full set Core Client Indicator'!$A$3:$A$351, 0), MATCH(Selection_Hide2!V$5, 'Full set Core Client Indicator'!$A$3:$AB$3, 0))=\"\", \"\",  INDEX('Full set Core Client Indicator'!$A$3:$AB$351, MATCH(Selection_Hide2!$A297, 'Full set Core Client Indicator'!$A$3:$A$351, 0), MATCH(Selection_Hide2!V$5, 'Full set Core Client Indicator'!$A$3:$AB$3, 0))), \"\")","v":""},{"$f":"IF(V297<>\"\", IF(INDEX('Full set Core Client Indicator'!$A$3:$AB$351, MATCH(Selection_Hide2!$A297, 'Full set Core Client Indicator'!$A$3:$A$351, 0), MATCH(Selection_Hide2!W$5, 'Full set Core Client Indicator'!$A$3:$AB$3, 0))=\"\", \"\",  INDEX('Full set Core Client Indicator'!$A$3:$AB$351, MATCH(Selection_Hide2!$A297, 'Full set Core Client Indicator'!$A$3:$A$351, 0), MATCH(Selection_Hide2!W$5, 'Full set Core Client Indicator'!$A$3:$AB$3, 0))), \"\")","v":""},{"$f":"IF(W297<>\"\", IF(INDEX('Full set Core Client Indicator'!$A$3:$AB$351, MATCH(Selection_Hide2!$A297, 'Full set Core Client Indicator'!$A$3:$A$351, 0), MATCH(Selection_Hide2!X$5, 'Full set Core Client Indicator'!$A$3:$AB$3, 0))=\"\", \"\",  INDEX('Full set Core Client Indicator'!$A$3:$AB$351, MATCH(Selection_Hide2!$A297, 'Full set Core Client Indicator'!$A$3:$A$351, 0), MATCH(Selection_Hide2!X$5, 'Full set Core Client Indicator'!$A$3:$AB$3, 0))), \"\")","v":""},{"$f":"IF(X297<>\"\", IF(INDEX('Full set Core Client Indicator'!$A$3:$AB$351, MATCH(Selection_Hide2!$A297, 'Full set Core Client Indicator'!$A$3:$A$351, 0), MATCH(Selection_Hide2!Y$5, 'Full set Core Client Indicator'!$A$3:$AB$3, 0))=\"\", \"\",  INDEX('Full set Core Client Indicator'!$A$3:$AB$351, MATCH(Selection_Hide2!$A297, 'Full set Core Client Indicator'!$A$3:$A$351, 0), MATCH(Selection_Hide2!Y$5, 'Full set Core Client Indicator'!$A$3:$AB$3, 0))), \"\")","v":""},{"$f":"IF(Y297<>\"\", IF(INDEX('Full set Core Client Indicator'!$A$3:$AB$351, MATCH(Selection_Hide2!$A297, 'Full set Core Client Indicator'!$A$3:$A$351, 0), MATCH(Selection_Hide2!Z$5, 'Full set Core Client Indicator'!$A$3:$AB$3, 0))=\"\", \"\",  INDEX('Full set Core Client Indicator'!$A$3:$AB$351, MATCH(Selection_Hide2!$A297, 'Full set Core Client Indicator'!$A$3:$A$351, 0), MATCH(Selection_Hide2!Z$5, 'Full set Core Client Indicator'!$A$3:$AB$3, 0))), \"\")","v":""},{"$f":"IF(Z297<>\"\", IF(INDEX('Full set Core Client Indicator'!$A$3:$AB$351, MATCH(Selection_Hide2!$A297, 'Full set Core Client Indicator'!$A$3:$A$351, 0), MATCH(Selection_Hide2!AA$5, 'Full set Core Client Indicator'!$A$3:$AB$3, 0))=\"\", \"\",  INDEX('Full set Core Client Indicator'!$A$3:$AB$351, MATCH(Selection_Hide2!$A297, 'Full set Core Client Indicator'!$A$3:$A$351, 0), MATCH(Selection_Hide2!AA$5, 'Full set Core Client Indicator'!$A$3:$AB$3, 0))), \"\")","v":""},{"$f":"IF(AA297<>\"\", IF(INDEX('Full set Core Client Indicator'!$A$3:$AB$351, MATCH(Selection_Hide2!$A297, 'Full set Core Client Indicator'!$A$3:$A$351, 0), MATCH(Selection_Hide2!AB$5, 'Full set Core Client Indicator'!$A$3:$AB$3, 0))=\"\", \"\",  INDEX('Full set Core Client Indicator'!$A$3:$AB$351, MATCH(Selection_Hide2!$A297, 'Full set Core Client Indicator'!$A$3:$A$351, 0), MATCH(Selection_Hide2!AB$5, 'Full set Core Client Indicator'!$A$3:$AB$3, 0))), \"\")","v":""}]
[{"$f":"IF(AND(Selection_Hide1!C296<>0, Selection_Hide1!C296<>\"Grand Total\"), Selection_Hide1!C296, \"\")","v":""},{"$f":"IF(A298<>\"\", IF(INDEX('Full set Core Client Indicator'!$A$3:$AB$351, MATCH(Selection_Hide2!$A298, 'Full set Core Client Indicator'!$A$3:$A$351, 0), MATCH(Selection_Hide2!B$5, 'Full set Core Client Indicator'!$A$3:$AB$3, 0))=\"\", \"\",  INDEX('Full set Core Client Indicator'!$A$3:$AB$351, MATCH(Selection_Hide2!$A298, 'Full set Core Client Indicator'!$A$3:$A$351, 0), MATCH(Selection_Hide2!B$5, 'Full set Core Client Indicator'!$A$3:$AB$3, 0))), \"\")","v":""},{"$f":"IF(B298<>\"\", IF(INDEX('Full set Core Client Indicator'!$A$3:$AB$351, MATCH(Selection_Hide2!$A298, 'Full set Core Client Indicator'!$A$3:$A$351, 0), MATCH(Selection_Hide2!C$5, 'Full set Core Client Indicator'!$A$3:$AB$3, 0))=\"\", \"\",  INDEX('Full set Core Client Indicator'!$A$3:$AB$351, MATCH(Selection_Hide2!$A298, 'Full set Core Client Indicator'!$A$3:$A$351, 0), MATCH(Selection_Hide2!C$5, 'Full set Core Client Indicator'!$A$3:$AB$3, 0))), \"\")","v":""},{"$f":"IF(C298<>\"\", IF(INDEX('Full set Core Client Indicator'!$A$3:$AB$351, MATCH(Selection_Hide2!$A298, 'Full set Core Client Indicator'!$A$3:$A$351, 0), MATCH(Selection_Hide2!D$5, 'Full set Core Client Indicator'!$A$3:$AB$3, 0))=\"\", \"\",  INDEX('Full set Core Client Indicator'!$A$3:$AB$351, MATCH(Selection_Hide2!$A298, 'Full set Core Client Indicator'!$A$3:$A$351, 0), MATCH(Selection_Hide2!D$5, 'Full set Core Client Indicator'!$A$3:$AB$3, 0))), \"\")","v":""},{"$f":"IF(D298<>\"\", IF(INDEX('Full set Core Client Indicator'!$A$3:$AB$351, MATCH(Selection_Hide2!$A298, 'Full set Core Client Indicator'!$A$3:$A$351, 0), MATCH(Selection_Hide2!E$5, 'Full set Core Client Indicator'!$A$3:$AB$3, 0))=\"\", \"\",  INDEX('Full set Core Client Indicator'!$A$3:$AB$351, MATCH(Selection_Hide2!$A298, 'Full set Core Client Indicator'!$A$3:$A$351, 0), MATCH(Selection_Hide2!E$5, 'Full set Core Client Indicator'!$A$3:$AB$3, 0))), \"\")","v":""},{"$f":"IF(E298<>\"\", IF(INDEX('Full set Core Client Indicator'!$A$3:$AB$351, MATCH(Selection_Hide2!$A298, 'Full set Core Client Indicator'!$A$3:$A$351, 0), MATCH(Selection_Hide2!F$5, 'Full set Core Client Indicator'!$A$3:$AB$3, 0))=\"\", \"\",  INDEX('Full set Core Client Indicator'!$A$3:$AB$351, MATCH(Selection_Hide2!$A298, 'Full set Core Client Indicator'!$A$3:$A$351, 0), MATCH(Selection_Hide2!F$5, 'Full set Core Client Indicator'!$A$3:$AB$3, 0))), \"\")","v":""},{"$f":"IF(F298<>\"\", IF(INDEX('Full set Core Client Indicator'!$A$3:$AB$351, MATCH(Selection_Hide2!$A298, 'Full set Core Client Indicator'!$A$3:$A$351, 0), MATCH(Selection_Hide2!G$5, 'Full set Core Client Indicator'!$A$3:$AB$3, 0))=\"\", \"\",  INDEX('Full set Core Client Indicator'!$A$3:$AB$351, MATCH(Selection_Hide2!$A298, 'Full set Core Client Indicator'!$A$3:$A$351, 0), MATCH(Selection_Hide2!G$5, 'Full set Core Client Indicator'!$A$3:$AB$3, 0))), \"\")","v":""},{"$f":"IF(G298<>\"\", IF(INDEX('Full set Core Client Indicator'!$A$3:$AB$351, MATCH(Selection_Hide2!$A298, 'Full set Core Client Indicator'!$A$3:$A$351, 0), MATCH(Selection_Hide2!H$5, 'Full set Core Client Indicator'!$A$3:$AB$3, 0))=\"\", \"\",  INDEX('Full set Core Client Indicator'!$A$3:$AB$351, MATCH(Selection_Hide2!$A298, 'Full set Core Client Indicator'!$A$3:$A$351, 0), MATCH(Selection_Hide2!H$5, 'Full set Core Client Indicator'!$A$3:$AB$3, 0))), \"\")","v":""},{"$f":"IF(H298<>\"\", IF(INDEX('Full set Core Client Indicator'!$A$3:$AB$351, MATCH(Selection_Hide2!$A298, 'Full set Core Client Indicator'!$A$3:$A$351, 0), MATCH(Selection_Hide2!I$5, 'Full set Core Client Indicator'!$A$3:$AB$3, 0))=\"\", \"\",  INDEX('Full set Core Client Indicator'!$A$3:$AB$351, MATCH(Selection_Hide2!$A298, 'Full set Core Client Indicator'!$A$3:$A$351, 0), MATCH(Selection_Hide2!I$5, 'Full set Core Client Indicator'!$A$3:$AB$3, 0))), \"\")","v":""},{"$f":"IF(I298<>\"\", IF(INDEX('Full set Core Client Indicator'!$A$3:$AB$351, MATCH(Selection_Hide2!$A298, 'Full set Core Client Indicator'!$A$3:$A$351, 0), MATCH(Selection_Hide2!J$5, 'Full set Core Client Indicator'!$A$3:$AB$3, 0))=\"\", \"\",  INDEX('Full set Core Client Indicator'!$A$3:$AB$351, MATCH(Selection_Hide2!$A298, 'Full set Core Client Indicator'!$A$3:$A$351, 0), MATCH(Selection_Hide2!J$5, 'Full set Core Client Indicator'!$A$3:$AB$3, 0))), \"\")","v":""},{"$f":"IF(J298<>\"\", IF(INDEX('Full set Core Client Indicator'!$A$3:$AB$351, MATCH(Selection_Hide2!$A298, 'Full set Core Client Indicator'!$A$3:$A$351, 0), MATCH(Selection_Hide2!K$5, 'Full set Core Client Indicator'!$A$3:$AB$3, 0))=\"\", \"\",  INDEX('Full set Core Client Indicator'!$A$3:$AB$351, MATCH(Selection_Hide2!$A298, 'Full set Core Client Indicator'!$A$3:$A$351, 0), MATCH(Selection_Hide2!K$5, 'Full set Core Client Indicator'!$A$3:$AB$3, 0))), \"\")","v":""},{"$f":"IF(K298<>\"\", IF(INDEX('Full set Core Client Indicator'!$A$3:$AB$351, MATCH(Selection_Hide2!$A298, 'Full set Core Client Indicator'!$A$3:$A$351, 0), MATCH(Selection_Hide2!L$5, 'Full set Core Client Indicator'!$A$3:$AB$3, 0))=\"\", \"\",  INDEX('Full set Core Client Indicator'!$A$3:$AB$351, MATCH(Selection_Hide2!$A298, 'Full set Core Client Indicator'!$A$3:$A$351, 0), MATCH(Selection_Hide2!L$5, 'Full set Core Client Indicator'!$A$3:$AB$3, 0))), \"\")","v":""},{"$f":"IF(L298<>\"\", IF(INDEX('Full set Core Client Indicator'!$A$3:$AB$351, MATCH(Selection_Hide2!$A298, 'Full set Core Client Indicator'!$A$3:$A$351, 0), MATCH(Selection_Hide2!M$5, 'Full set Core Client Indicator'!$A$3:$AB$3, 0))=\"\", \"\",  INDEX('Full set Core Client Indicator'!$A$3:$AB$351, MATCH(Selection_Hide2!$A298, 'Full set Core Client Indicator'!$A$3:$A$351, 0), MATCH(Selection_Hide2!M$5, 'Full set Core Client Indicator'!$A$3:$AB$3, 0))), \"\")","v":""},{"$f":"IF(M298<>\"\", IF(INDEX('Full set Core Client Indicator'!$A$3:$AB$351, MATCH(Selection_Hide2!$A298, 'Full set Core Client Indicator'!$A$3:$A$351, 0), MATCH(Selection_Hide2!N$5, 'Full set Core Client Indicator'!$A$3:$AB$3, 0))=\"\", \"\",  INDEX('Full set Core Client Indicator'!$A$3:$AB$351, MATCH(Selection_Hide2!$A298, 'Full set Core Client Indicator'!$A$3:$A$351, 0), MATCH(Selection_Hide2!N$5, 'Full set Core Client Indicator'!$A$3:$AB$3, 0))), \"\")","v":""},{"$f":"IF(N298<>\"\", IF(INDEX('Full set Core Client Indicator'!$A$3:$AB$351, MATCH(Selection_Hide2!$A298, 'Full set Core Client Indicator'!$A$3:$A$351, 0), MATCH(Selection_Hide2!O$5, 'Full set Core Client Indicator'!$A$3:$AB$3, 0))=\"\", \"\",  INDEX('Full set Core Client Indicator'!$A$3:$AB$351, MATCH(Selection_Hide2!$A298, 'Full set Core Client Indicator'!$A$3:$A$351, 0), MATCH(Selection_Hide2!O$5, 'Full set Core Client Indicator'!$A$3:$AB$3, 0))), \"\")","v":""},{"$f":"IF(O298<>\"\", IF(INDEX('Full set Core Client Indicator'!$A$3:$AB$351, MATCH(Selection_Hide2!$A298, 'Full set Core Client Indicator'!$A$3:$A$351, 0), MATCH(Selection_Hide2!P$5, 'Full set Core Client Indicator'!$A$3:$AB$3, 0))=\"\", \"\",  INDEX('Full set Core Client Indicator'!$A$3:$AB$351, MATCH(Selection_Hide2!$A298, 'Full set Core Client Indicator'!$A$3:$A$351, 0), MATCH(Selection_Hide2!P$5, 'Full set Core Client Indicator'!$A$3:$AB$3, 0))), \"\")","v":""},{"$f":"IF(P298<>\"\", IF(INDEX('Full set Core Client Indicator'!$A$3:$AB$351, MATCH(Selection_Hide2!$A298, 'Full set Core Client Indicator'!$A$3:$A$351, 0), MATCH(Selection_Hide2!Q$5, 'Full set Core Client Indicator'!$A$3:$AB$3, 0))=\"\", \"\",  INDEX('Full set Core Client Indicator'!$A$3:$AB$351, MATCH(Selection_Hide2!$A298, 'Full set Core Client Indicator'!$A$3:$A$351, 0), MATCH(Selection_Hide2!Q$5, 'Full set Core Client Indicator'!$A$3:$AB$3, 0))), \"\")","v":""},{"$f":"IF(Q298<>\"\", IF(INDEX('Full set Core Client Indicator'!$A$3:$AB$351, MATCH(Selection_Hide2!$A298, 'Full set Core Client Indicator'!$A$3:$A$351, 0), MATCH(Selection_Hide2!R$5, 'Full set Core Client Indicator'!$A$3:$AB$3, 0))=\"\", \"\",  INDEX('Full set Core Client Indicator'!$A$3:$AB$351, MATCH(Selection_Hide2!$A298, 'Full set Core Client Indicator'!$A$3:$A$351, 0), MATCH(Selection_Hide2!R$5, 'Full set Core Client Indicator'!$A$3:$AB$3, 0))), \"\")","v":""},{"$f":"IF(R298<>\"\", IF(INDEX('Full set Core Client Indicator'!$A$3:$AB$351, MATCH(Selection_Hide2!$A298, 'Full set Core Client Indicator'!$A$3:$A$351, 0), MATCH(Selection_Hide2!S$5, 'Full set Core Client Indicator'!$A$3:$AB$3, 0))=\"\", \"\",  INDEX('Full set Core Client Indicator'!$A$3:$AB$351, MATCH(Selection_Hide2!$A298, 'Full set Core Client Indicator'!$A$3:$A$351, 0), MATCH(Selection_Hide2!S$5, 'Full set Core Client Indicator'!$A$3:$AB$3, 0))), \"\")","v":""},{"$f":"IF(S298<>\"\", IF(INDEX('Full set Core Client Indicator'!$A$3:$AB$351, MATCH(Selection_Hide2!$A298, 'Full set Core Client Indicator'!$A$3:$A$351, 0), MATCH(Selection_Hide2!T$5, 'Full set Core Client Indicator'!$A$3:$AB$3, 0))=\"\", \"\",  INDEX('Full set Core Client Indicator'!$A$3:$AB$351, MATCH(Selection_Hide2!$A298, 'Full set Core Client Indicator'!$A$3:$A$351, 0), MATCH(Selection_Hide2!T$5, 'Full set Core Client Indicator'!$A$3:$AB$3, 0))), \"\")","v":""},{"$f":"IF(T298<>\"\", IF(INDEX('Full set Core Client Indicator'!$A$3:$AB$351, MATCH(Selection_Hide2!$A298, 'Full set Core Client Indicator'!$A$3:$A$351, 0), MATCH(Selection_Hide2!U$5, 'Full set Core Client Indicator'!$A$3:$AB$3, 0))=\"\", \"\",  INDEX('Full set Core Client Indicator'!$A$3:$AB$351, MATCH(Selection_Hide2!$A298, 'Full set Core Client Indicator'!$A$3:$A$351, 0), MATCH(Selection_Hide2!U$5, 'Full set Core Client Indicator'!$A$3:$AB$3, 0))), \"\")","v":""},{"$f":"IF(U298<>\"\", IF(INDEX('Full set Core Client Indicator'!$A$3:$AB$351, MATCH(Selection_Hide2!$A298, 'Full set Core Client Indicator'!$A$3:$A$351, 0), MATCH(Selection_Hide2!V$5, 'Full set Core Client Indicator'!$A$3:$AB$3, 0))=\"\", \"\",  INDEX('Full set Core Client Indicator'!$A$3:$AB$351, MATCH(Selection_Hide2!$A298, 'Full set Core Client Indicator'!$A$3:$A$351, 0), MATCH(Selection_Hide2!V$5, 'Full set Core Client Indicator'!$A$3:$AB$3, 0))), \"\")","v":""},{"$f":"IF(V298<>\"\", IF(INDEX('Full set Core Client Indicator'!$A$3:$AB$351, MATCH(Selection_Hide2!$A298, 'Full set Core Client Indicator'!$A$3:$A$351, 0), MATCH(Selection_Hide2!W$5, 'Full set Core Client Indicator'!$A$3:$AB$3, 0))=\"\", \"\",  INDEX('Full set Core Client Indicator'!$A$3:$AB$351, MATCH(Selection_Hide2!$A298, 'Full set Core Client Indicator'!$A$3:$A$351, 0), MATCH(Selection_Hide2!W$5, 'Full set Core Client Indicator'!$A$3:$AB$3, 0))), \"\")","v":""},{"$f":"IF(W298<>\"\", IF(INDEX('Full set Core Client Indicator'!$A$3:$AB$351, MATCH(Selection_Hide2!$A298, 'Full set Core Client Indicator'!$A$3:$A$351, 0), MATCH(Selection_Hide2!X$5, 'Full set Core Client Indicator'!$A$3:$AB$3, 0))=\"\", \"\",  INDEX('Full set Core Client Indicator'!$A$3:$AB$351, MATCH(Selection_Hide2!$A298, 'Full set Core Client Indicator'!$A$3:$A$351, 0), MATCH(Selection_Hide2!X$5, 'Full set Core Client Indicator'!$A$3:$AB$3, 0))), \"\")","v":""},{"$f":"IF(X298<>\"\", IF(INDEX('Full set Core Client Indicator'!$A$3:$AB$351, MATCH(Selection_Hide2!$A298, 'Full set Core Client Indicator'!$A$3:$A$351, 0), MATCH(Selection_Hide2!Y$5, 'Full set Core Client Indicator'!$A$3:$AB$3, 0))=\"\", \"\",  INDEX('Full set Core Client Indicator'!$A$3:$AB$351, MATCH(Selection_Hide2!$A298, 'Full set Core Client Indicator'!$A$3:$A$351, 0), MATCH(Selection_Hide2!Y$5, 'Full set Core Client Indicator'!$A$3:$AB$3, 0))), \"\")","v":""},{"$f":"IF(Y298<>\"\", IF(INDEX('Full set Core Client Indicator'!$A$3:$AB$351, MATCH(Selection_Hide2!$A298, 'Full set Core Client Indicator'!$A$3:$A$351, 0), MATCH(Selection_Hide2!Z$5, 'Full set Core Client Indicator'!$A$3:$AB$3, 0))=\"\", \"\",  INDEX('Full set Core Client Indicator'!$A$3:$AB$351, MATCH(Selection_Hide2!$A298, 'Full set Core Client Indicator'!$A$3:$A$351, 0), MATCH(Selection_Hide2!Z$5, 'Full set Core Client Indicator'!$A$3:$AB$3, 0))), \"\")","v":""},{"$f":"IF(Z298<>\"\", IF(INDEX('Full set Core Client Indicator'!$A$3:$AB$351, MATCH(Selection_Hide2!$A298, 'Full set Core Client Indicator'!$A$3:$A$351, 0), MATCH(Selection_Hide2!AA$5, 'Full set Core Client Indicator'!$A$3:$AB$3, 0))=\"\", \"\",  INDEX('Full set Core Client Indicator'!$A$3:$AB$351, MATCH(Selection_Hide2!$A298, 'Full set Core Client Indicator'!$A$3:$A$351, 0), MATCH(Selection_Hide2!AA$5, 'Full set Core Client Indicator'!$A$3:$AB$3, 0))), \"\")","v":""},{"$f":"IF(AA298<>\"\", IF(INDEX('Full set Core Client Indicator'!$A$3:$AB$351, MATCH(Selection_Hide2!$A298, 'Full set Core Client Indicator'!$A$3:$A$351, 0), MATCH(Selection_Hide2!AB$5, 'Full set Core Client Indicator'!$A$3:$AB$3, 0))=\"\", \"\",  INDEX('Full set Core Client Indicator'!$A$3:$AB$351, MATCH(Selection_Hide2!$A298, 'Full set Core Client Indicator'!$A$3:$A$351, 0), MATCH(Selection_Hide2!AB$5, 'Full set Core Client Indicator'!$A$3:$AB$3, 0))), \"\")","v":""}]
[{"$f":"IF(AND(Selection_Hide1!C297<>0, Selection_Hide1!C297<>\"Grand Total\"), Selection_Hide1!C297, \"\")","v":""},{"$f":"IF(A299<>\"\", IF(INDEX('Full set Core Client Indicator'!$A$3:$AB$351, MATCH(Selection_Hide2!$A299, 'Full set Core Client Indicator'!$A$3:$A$351, 0), MATCH(Selection_Hide2!B$5, 'Full set Core Client Indicator'!$A$3:$AB$3, 0))=\"\", \"\",  INDEX('Full set Core Client Indicator'!$A$3:$AB$351, MATCH(Selection_Hide2!$A299, 'Full set Core Client Indicator'!$A$3:$A$351, 0), MATCH(Selection_Hide2!B$5, 'Full set Core Client Indicator'!$A$3:$AB$3, 0))), \"\")","v":""},{"$f":"IF(B299<>\"\", IF(INDEX('Full set Core Client Indicator'!$A$3:$AB$351, MATCH(Selection_Hide2!$A299, 'Full set Core Client Indicator'!$A$3:$A$351, 0), MATCH(Selection_Hide2!C$5, 'Full set Core Client Indicator'!$A$3:$AB$3, 0))=\"\", \"\",  INDEX('Full set Core Client Indicator'!$A$3:$AB$351, MATCH(Selection_Hide2!$A299, 'Full set Core Client Indicator'!$A$3:$A$351, 0), MATCH(Selection_Hide2!C$5, 'Full set Core Client Indicator'!$A$3:$AB$3, 0))), \"\")","v":""},{"$f":"IF(C299<>\"\", IF(INDEX('Full set Core Client Indicator'!$A$3:$AB$351, MATCH(Selection_Hide2!$A299, 'Full set Core Client Indicator'!$A$3:$A$351, 0), MATCH(Selection_Hide2!D$5, 'Full set Core Client Indicator'!$A$3:$AB$3, 0))=\"\", \"\",  INDEX('Full set Core Client Indicator'!$A$3:$AB$351, MATCH(Selection_Hide2!$A299, 'Full set Core Client Indicator'!$A$3:$A$351, 0), MATCH(Selection_Hide2!D$5, 'Full set Core Client Indicator'!$A$3:$AB$3, 0))), \"\")","v":""},{"$f":"IF(D299<>\"\", IF(INDEX('Full set Core Client Indicator'!$A$3:$AB$351, MATCH(Selection_Hide2!$A299, 'Full set Core Client Indicator'!$A$3:$A$351, 0), MATCH(Selection_Hide2!E$5, 'Full set Core Client Indicator'!$A$3:$AB$3, 0))=\"\", \"\",  INDEX('Full set Core Client Indicator'!$A$3:$AB$351, MATCH(Selection_Hide2!$A299, 'Full set Core Client Indicator'!$A$3:$A$351, 0), MATCH(Selection_Hide2!E$5, 'Full set Core Client Indicator'!$A$3:$AB$3, 0))), \"\")","v":""},{"$f":"IF(E299<>\"\", IF(INDEX('Full set Core Client Indicator'!$A$3:$AB$351, MATCH(Selection_Hide2!$A299, 'Full set Core Client Indicator'!$A$3:$A$351, 0), MATCH(Selection_Hide2!F$5, 'Full set Core Client Indicator'!$A$3:$AB$3, 0))=\"\", \"\",  INDEX('Full set Core Client Indicator'!$A$3:$AB$351, MATCH(Selection_Hide2!$A299, 'Full set Core Client Indicator'!$A$3:$A$351, 0), MATCH(Selection_Hide2!F$5, 'Full set Core Client Indicator'!$A$3:$AB$3, 0))), \"\")","v":""},{"$f":"IF(F299<>\"\", IF(INDEX('Full set Core Client Indicator'!$A$3:$AB$351, MATCH(Selection_Hide2!$A299, 'Full set Core Client Indicator'!$A$3:$A$351, 0), MATCH(Selection_Hide2!G$5, 'Full set Core Client Indicator'!$A$3:$AB$3, 0))=\"\", \"\",  INDEX('Full set Core Client Indicator'!$A$3:$AB$351, MATCH(Selection_Hide2!$A299, 'Full set Core Client Indicator'!$A$3:$A$351, 0), MATCH(Selection_Hide2!G$5, 'Full set Core Client Indicator'!$A$3:$AB$3, 0))), \"\")","v":""},{"$f":"IF(G299<>\"\", IF(INDEX('Full set Core Client Indicator'!$A$3:$AB$351, MATCH(Selection_Hide2!$A299, 'Full set Core Client Indicator'!$A$3:$A$351, 0), MATCH(Selection_Hide2!H$5, 'Full set Core Client Indicator'!$A$3:$AB$3, 0))=\"\", \"\",  INDEX('Full set Core Client Indicator'!$A$3:$AB$351, MATCH(Selection_Hide2!$A299, 'Full set Core Client Indicator'!$A$3:$A$351, 0), MATCH(Selection_Hide2!H$5, 'Full set Core Client Indicator'!$A$3:$AB$3, 0))), \"\")","v":""},{"$f":"IF(H299<>\"\", IF(INDEX('Full set Core Client Indicator'!$A$3:$AB$351, MATCH(Selection_Hide2!$A299, 'Full set Core Client Indicator'!$A$3:$A$351, 0), MATCH(Selection_Hide2!I$5, 'Full set Core Client Indicator'!$A$3:$AB$3, 0))=\"\", \"\",  INDEX('Full set Core Client Indicator'!$A$3:$AB$351, MATCH(Selection_Hide2!$A299, 'Full set Core Client Indicator'!$A$3:$A$351, 0), MATCH(Selection_Hide2!I$5, 'Full set Core Client Indicator'!$A$3:$AB$3, 0))), \"\")","v":""},{"$f":"IF(I299<>\"\", IF(INDEX('Full set Core Client Indicator'!$A$3:$AB$351, MATCH(Selection_Hide2!$A299, 'Full set Core Client Indicator'!$A$3:$A$351, 0), MATCH(Selection_Hide2!J$5, 'Full set Core Client Indicator'!$A$3:$AB$3, 0))=\"\", \"\",  INDEX('Full set Core Client Indicator'!$A$3:$AB$351, MATCH(Selection_Hide2!$A299, 'Full set Core Client Indicator'!$A$3:$A$351, 0), MATCH(Selection_Hide2!J$5, 'Full set Core Client Indicator'!$A$3:$AB$3, 0))), \"\")","v":""},{"$f":"IF(J299<>\"\", IF(INDEX('Full set Core Client Indicator'!$A$3:$AB$351, MATCH(Selection_Hide2!$A299, 'Full set Core Client Indicator'!$A$3:$A$351, 0), MATCH(Selection_Hide2!K$5, 'Full set Core Client Indicator'!$A$3:$AB$3, 0))=\"\", \"\",  INDEX('Full set Core Client Indicator'!$A$3:$AB$351, MATCH(Selection_Hide2!$A299, 'Full set Core Client Indicator'!$A$3:$A$351, 0), MATCH(Selection_Hide2!K$5, 'Full set Core Client Indicator'!$A$3:$AB$3, 0))), \"\")","v":""},{"$f":"IF(K299<>\"\", IF(INDEX('Full set Core Client Indicator'!$A$3:$AB$351, MATCH(Selection_Hide2!$A299, 'Full set Core Client Indicator'!$A$3:$A$351, 0), MATCH(Selection_Hide2!L$5, 'Full set Core Client Indicator'!$A$3:$AB$3, 0))=\"\", \"\",  INDEX('Full set Core Client Indicator'!$A$3:$AB$351, MATCH(Selection_Hide2!$A299, 'Full set Core Client Indicator'!$A$3:$A$351, 0), MATCH(Selection_Hide2!L$5, 'Full set Core Client Indicator'!$A$3:$AB$3, 0))), \"\")","v":""},{"$f":"IF(L299<>\"\", IF(INDEX('Full set Core Client Indicator'!$A$3:$AB$351, MATCH(Selection_Hide2!$A299, 'Full set Core Client Indicator'!$A$3:$A$351, 0), MATCH(Selection_Hide2!M$5, 'Full set Core Client Indicator'!$A$3:$AB$3, 0))=\"\", \"\",  INDEX('Full set Core Client Indicator'!$A$3:$AB$351, MATCH(Selection_Hide2!$A299, 'Full set Core Client Indicator'!$A$3:$A$351, 0), MATCH(Selection_Hide2!M$5, 'Full set Core Client Indicator'!$A$3:$AB$3, 0))), \"\")","v":""},{"$f":"IF(M299<>\"\", IF(INDEX('Full set Core Client Indicator'!$A$3:$AB$351, MATCH(Selection_Hide2!$A299, 'Full set Core Client Indicator'!$A$3:$A$351, 0), MATCH(Selection_Hide2!N$5, 'Full set Core Client Indicator'!$A$3:$AB$3, 0))=\"\", \"\",  INDEX('Full set Core Client Indicator'!$A$3:$AB$351, MATCH(Selection_Hide2!$A299, 'Full set Core Client Indicator'!$A$3:$A$351, 0), MATCH(Selection_Hide2!N$5, 'Full set Core Client Indicator'!$A$3:$AB$3, 0))), \"\")","v":""},{"$f":"IF(N299<>\"\", IF(INDEX('Full set Core Client Indicator'!$A$3:$AB$351, MATCH(Selection_Hide2!$A299, 'Full set Core Client Indicator'!$A$3:$A$351, 0), MATCH(Selection_Hide2!O$5, 'Full set Core Client Indicator'!$A$3:$AB$3, 0))=\"\", \"\",  INDEX('Full set Core Client Indicator'!$A$3:$AB$351, MATCH(Selection_Hide2!$A299, 'Full set Core Client Indicator'!$A$3:$A$351, 0), MATCH(Selection_Hide2!O$5, 'Full set Core Client Indicator'!$A$3:$AB$3, 0))), \"\")","v":""},{"$f":"IF(O299<>\"\", IF(INDEX('Full set Core Client Indicator'!$A$3:$AB$351, MATCH(Selection_Hide2!$A299, 'Full set Core Client Indicator'!$A$3:$A$351, 0), MATCH(Selection_Hide2!P$5, 'Full set Core Client Indicator'!$A$3:$AB$3, 0))=\"\", \"\",  INDEX('Full set Core Client Indicator'!$A$3:$AB$351, MATCH(Selection_Hide2!$A299, 'Full set Core Client Indicator'!$A$3:$A$351, 0), MATCH(Selection_Hide2!P$5, 'Full set Core Client Indicator'!$A$3:$AB$3, 0))), \"\")","v":""},{"$f":"IF(P299<>\"\", IF(INDEX('Full set Core Client Indicator'!$A$3:$AB$351, MATCH(Selection_Hide2!$A299, 'Full set Core Client Indicator'!$A$3:$A$351, 0), MATCH(Selection_Hide2!Q$5, 'Full set Core Client Indicator'!$A$3:$AB$3, 0))=\"\", \"\",  INDEX('Full set Core Client Indicator'!$A$3:$AB$351, MATCH(Selection_Hide2!$A299, 'Full set Core Client Indicator'!$A$3:$A$351, 0), MATCH(Selection_Hide2!Q$5, 'Full set Core Client Indicator'!$A$3:$AB$3, 0))), \"\")","v":""},{"$f":"IF(Q299<>\"\", IF(INDEX('Full set Core Client Indicator'!$A$3:$AB$351, MATCH(Selection_Hide2!$A299, 'Full set Core Client Indicator'!$A$3:$A$351, 0), MATCH(Selection_Hide2!R$5, 'Full set Core Client Indicator'!$A$3:$AB$3, 0))=\"\", \"\",  INDEX('Full set Core Client Indicator'!$A$3:$AB$351, MATCH(Selection_Hide2!$A299, 'Full set Core Client Indicator'!$A$3:$A$351, 0), MATCH(Selection_Hide2!R$5, 'Full set Core Client Indicator'!$A$3:$AB$3, 0))), \"\")","v":""},{"$f":"IF(R299<>\"\", IF(INDEX('Full set Core Client Indicator'!$A$3:$AB$351, MATCH(Selection_Hide2!$A299, 'Full set Core Client Indicator'!$A$3:$A$351, 0), MATCH(Selection_Hide2!S$5, 'Full set Core Client Indicator'!$A$3:$AB$3, 0))=\"\", \"\",  INDEX('Full set Core Client Indicator'!$A$3:$AB$351, MATCH(Selection_Hide2!$A299, 'Full set Core Client Indicator'!$A$3:$A$351, 0), MATCH(Selection_Hide2!S$5, 'Full set Core Client Indicator'!$A$3:$AB$3, 0))), \"\")","v":""},{"$f":"IF(S299<>\"\", IF(INDEX('Full set Core Client Indicator'!$A$3:$AB$351, MATCH(Selection_Hide2!$A299, 'Full set Core Client Indicator'!$A$3:$A$351, 0), MATCH(Selection_Hide2!T$5, 'Full set Core Client Indicator'!$A$3:$AB$3, 0))=\"\", \"\",  INDEX('Full set Core Client Indicator'!$A$3:$AB$351, MATCH(Selection_Hide2!$A299, 'Full set Core Client Indicator'!$A$3:$A$351, 0), MATCH(Selection_Hide2!T$5, 'Full set Core Client Indicator'!$A$3:$AB$3, 0))), \"\")","v":""},{"$f":"IF(T299<>\"\", IF(INDEX('Full set Core Client Indicator'!$A$3:$AB$351, MATCH(Selection_Hide2!$A299, 'Full set Core Client Indicator'!$A$3:$A$351, 0), MATCH(Selection_Hide2!U$5, 'Full set Core Client Indicator'!$A$3:$AB$3, 0))=\"\", \"\",  INDEX('Full set Core Client Indicator'!$A$3:$AB$351, MATCH(Selection_Hide2!$A299, 'Full set Core Client Indicator'!$A$3:$A$351, 0), MATCH(Selection_Hide2!U$5, 'Full set Core Client Indicator'!$A$3:$AB$3, 0))), \"\")","v":""},{"$f":"IF(U299<>\"\", IF(INDEX('Full set Core Client Indicator'!$A$3:$AB$351, MATCH(Selection_Hide2!$A299, 'Full set Core Client Indicator'!$A$3:$A$351, 0), MATCH(Selection_Hide2!V$5, 'Full set Core Client Indicator'!$A$3:$AB$3, 0))=\"\", \"\",  INDEX('Full set Core Client Indicator'!$A$3:$AB$351, MATCH(Selection_Hide2!$A299, 'Full set Core Client Indicator'!$A$3:$A$351, 0), MATCH(Selection_Hide2!V$5, 'Full set Core Client Indicator'!$A$3:$AB$3, 0))), \"\")","v":""},{"$f":"IF(V299<>\"\", IF(INDEX('Full set Core Client Indicator'!$A$3:$AB$351, MATCH(Selection_Hide2!$A299, 'Full set Core Client Indicator'!$A$3:$A$351, 0), MATCH(Selection_Hide2!W$5, 'Full set Core Client Indicator'!$A$3:$AB$3, 0))=\"\", \"\",  INDEX('Full set Core Client Indicator'!$A$3:$AB$351, MATCH(Selection_Hide2!$A299, 'Full set Core Client Indicator'!$A$3:$A$351, 0), MATCH(Selection_Hide2!W$5, 'Full set Core Client Indicator'!$A$3:$AB$3, 0))), \"\")","v":""},{"$f":"IF(W299<>\"\", IF(INDEX('Full set Core Client Indicator'!$A$3:$AB$351, MATCH(Selection_Hide2!$A299, 'Full set Core Client Indicator'!$A$3:$A$351, 0), MATCH(Selection_Hide2!X$5, 'Full set Core Client Indicator'!$A$3:$AB$3, 0))=\"\", \"\",  INDEX('Full set Core Client Indicator'!$A$3:$AB$351, MATCH(Selection_Hide2!$A299, 'Full set Core Client Indicator'!$A$3:$A$351, 0), MATCH(Selection_Hide2!X$5, 'Full set Core Client Indicator'!$A$3:$AB$3, 0))), \"\")","v":""},{"$f":"IF(X299<>\"\", IF(INDEX('Full set Core Client Indicator'!$A$3:$AB$351, MATCH(Selection_Hide2!$A299, 'Full set Core Client Indicator'!$A$3:$A$351, 0), MATCH(Selection_Hide2!Y$5, 'Full set Core Client Indicator'!$A$3:$AB$3, 0))=\"\", \"\",  INDEX('Full set Core Client Indicator'!$A$3:$AB$351, MATCH(Selection_Hide2!$A299, 'Full set Core Client Indicator'!$A$3:$A$351, 0), MATCH(Selection_Hide2!Y$5, 'Full set Core Client Indicator'!$A$3:$AB$3, 0))), \"\")","v":""},{"$f":"IF(Y299<>\"\", IF(INDEX('Full set Core Client Indicator'!$A$3:$AB$351, MATCH(Selection_Hide2!$A299, 'Full set Core Client Indicator'!$A$3:$A$351, 0), MATCH(Selection_Hide2!Z$5, 'Full set Core Client Indicator'!$A$3:$AB$3, 0))=\"\", \"\",  INDEX('Full set Core Client Indicator'!$A$3:$AB$351, MATCH(Selection_Hide2!$A299, 'Full set Core Client Indicator'!$A$3:$A$351, 0), MATCH(Selection_Hide2!Z$5, 'Full set Core Client Indicator'!$A$3:$AB$3, 0))), \"\")","v":""},{"$f":"IF(Z299<>\"\", IF(INDEX('Full set Core Client Indicator'!$A$3:$AB$351, MATCH(Selection_Hide2!$A299, 'Full set Core Client Indicator'!$A$3:$A$351, 0), MATCH(Selection_Hide2!AA$5, 'Full set Core Client Indicator'!$A$3:$AB$3, 0))=\"\", \"\",  INDEX('Full set Core Client Indicator'!$A$3:$AB$351, MATCH(Selection_Hide2!$A299, 'Full set Core Client Indicator'!$A$3:$A$351, 0), MATCH(Selection_Hide2!AA$5, 'Full set Core Client Indicator'!$A$3:$AB$3, 0))), \"\")","v":""},{"$f":"IF(AA299<>\"\", IF(INDEX('Full set Core Client Indicator'!$A$3:$AB$351, MATCH(Selection_Hide2!$A299, 'Full set Core Client Indicator'!$A$3:$A$351, 0), MATCH(Selection_Hide2!AB$5, 'Full set Core Client Indicator'!$A$3:$AB$3, 0))=\"\", \"\",  INDEX('Full set Core Client Indicator'!$A$3:$AB$351, MATCH(Selection_Hide2!$A299, 'Full set Core Client Indicator'!$A$3:$A$351, 0), MATCH(Selection_Hide2!AB$5, 'Full set Core Client Indicator'!$A$3:$AB$3, 0))), \"\")","v":""}]
[{"$f":"IF(AND(Selection_Hide1!C298<>0, Selection_Hide1!C298<>\"Grand Total\"), Selection_Hide1!C298, \"\")","v":""},{"$f":"IF(A300<>\"\", IF(INDEX('Full set Core Client Indicator'!$A$3:$AB$351, MATCH(Selection_Hide2!$A300, 'Full set Core Client Indicator'!$A$3:$A$351, 0), MATCH(Selection_Hide2!B$5, 'Full set Core Client Indicator'!$A$3:$AB$3, 0))=\"\", \"\",  INDEX('Full set Core Client Indicator'!$A$3:$AB$351, MATCH(Selection_Hide2!$A300, 'Full set Core Client Indicator'!$A$3:$A$351, 0), MATCH(Selection_Hide2!B$5, 'Full set Core Client Indicator'!$A$3:$AB$3, 0))), \"\")","v":""},{"$f":"IF(B300<>\"\", IF(INDEX('Full set Core Client Indicator'!$A$3:$AB$351, MATCH(Selection_Hide2!$A300, 'Full set Core Client Indicator'!$A$3:$A$351, 0), MATCH(Selection_Hide2!C$5, 'Full set Core Client Indicator'!$A$3:$AB$3, 0))=\"\", \"\",  INDEX('Full set Core Client Indicator'!$A$3:$AB$351, MATCH(Selection_Hide2!$A300, 'Full set Core Client Indicator'!$A$3:$A$351, 0), MATCH(Selection_Hide2!C$5, 'Full set Core Client Indicator'!$A$3:$AB$3, 0))), \"\")","v":""},{"$f":"IF(C300<>\"\", IF(INDEX('Full set Core Client Indicator'!$A$3:$AB$351, MATCH(Selection_Hide2!$A300, 'Full set Core Client Indicator'!$A$3:$A$351, 0), MATCH(Selection_Hide2!D$5, 'Full set Core Client Indicator'!$A$3:$AB$3, 0))=\"\", \"\",  INDEX('Full set Core Client Indicator'!$A$3:$AB$351, MATCH(Selection_Hide2!$A300, 'Full set Core Client Indicator'!$A$3:$A$351, 0), MATCH(Selection_Hide2!D$5, 'Full set Core Client Indicator'!$A$3:$AB$3, 0))), \"\")","v":""},{"$f":"IF(D300<>\"\", IF(INDEX('Full set Core Client Indicator'!$A$3:$AB$351, MATCH(Selection_Hide2!$A300, 'Full set Core Client Indicator'!$A$3:$A$351, 0), MATCH(Selection_Hide2!E$5, 'Full set Core Client Indicator'!$A$3:$AB$3, 0))=\"\", \"\",  INDEX('Full set Core Client Indicator'!$A$3:$AB$351, MATCH(Selection_Hide2!$A300, 'Full set Core Client Indicator'!$A$3:$A$351, 0), MATCH(Selection_Hide2!E$5, 'Full set Core Client Indicator'!$A$3:$AB$3, 0))), \"\")","v":""},{"$f":"IF(E300<>\"\", IF(INDEX('Full set Core Client Indicator'!$A$3:$AB$351, MATCH(Selection_Hide2!$A300, 'Full set Core Client Indicator'!$A$3:$A$351, 0), MATCH(Selection_Hide2!F$5, 'Full set Core Client Indicator'!$A$3:$AB$3, 0))=\"\", \"\",  INDEX('Full set Core Client Indicator'!$A$3:$AB$351, MATCH(Selection_Hide2!$A300, 'Full set Core Client Indicator'!$A$3:$A$351, 0), MATCH(Selection_Hide2!F$5, 'Full set Core Client Indicator'!$A$3:$AB$3, 0))), \"\")","v":""},{"$f":"IF(F300<>\"\", IF(INDEX('Full set Core Client Indicator'!$A$3:$AB$351, MATCH(Selection_Hide2!$A300, 'Full set Core Client Indicator'!$A$3:$A$351, 0), MATCH(Selection_Hide2!G$5, 'Full set Core Client Indicator'!$A$3:$AB$3, 0))=\"\", \"\",  INDEX('Full set Core Client Indicator'!$A$3:$AB$351, MATCH(Selection_Hide2!$A300, 'Full set Core Client Indicator'!$A$3:$A$351, 0), MATCH(Selection_Hide2!G$5, 'Full set Core Client Indicator'!$A$3:$AB$3, 0))), \"\")","v":""},{"$f":"IF(G300<>\"\", IF(INDEX('Full set Core Client Indicator'!$A$3:$AB$351, MATCH(Selection_Hide2!$A300, 'Full set Core Client Indicator'!$A$3:$A$351, 0), MATCH(Selection_Hide2!H$5, 'Full set Core Client Indicator'!$A$3:$AB$3, 0))=\"\", \"\",  INDEX('Full set Core Client Indicator'!$A$3:$AB$351, MATCH(Selection_Hide2!$A300, 'Full set Core Client Indicator'!$A$3:$A$351, 0), MATCH(Selection_Hide2!H$5, 'Full set Core Client Indicator'!$A$3:$AB$3, 0))), \"\")","v":""},{"$f":"IF(H300<>\"\", IF(INDEX('Full set Core Client Indicator'!$A$3:$AB$351, MATCH(Selection_Hide2!$A300, 'Full set Core Client Indicator'!$A$3:$A$351, 0), MATCH(Selection_Hide2!I$5, 'Full set Core Client Indicator'!$A$3:$AB$3, 0))=\"\", \"\",  INDEX('Full set Core Client Indicator'!$A$3:$AB$351, MATCH(Selection_Hide2!$A300, 'Full set Core Client Indicator'!$A$3:$A$351, 0), MATCH(Selection_Hide2!I$5, 'Full set Core Client Indicator'!$A$3:$AB$3, 0))), \"\")","v":""},{"$f":"IF(I300<>\"\", IF(INDEX('Full set Core Client Indicator'!$A$3:$AB$351, MATCH(Selection_Hide2!$A300, 'Full set Core Client Indicator'!$A$3:$A$351, 0), MATCH(Selection_Hide2!J$5, 'Full set Core Client Indicator'!$A$3:$AB$3, 0))=\"\", \"\",  INDEX('Full set Core Client Indicator'!$A$3:$AB$351, MATCH(Selection_Hide2!$A300, 'Full set Core Client Indicator'!$A$3:$A$351, 0), MATCH(Selection_Hide2!J$5, 'Full set Core Client Indicator'!$A$3:$AB$3, 0))), \"\")","v":""},{"$f":"IF(J300<>\"\", IF(INDEX('Full set Core Client Indicator'!$A$3:$AB$351, MATCH(Selection_Hide2!$A300, 'Full set Core Client Indicator'!$A$3:$A$351, 0), MATCH(Selection_Hide2!K$5, 'Full set Core Client Indicator'!$A$3:$AB$3, 0))=\"\", \"\",  INDEX('Full set Core Client Indicator'!$A$3:$AB$351, MATCH(Selection_Hide2!$A300, 'Full set Core Client Indicator'!$A$3:$A$351, 0), MATCH(Selection_Hide2!K$5, 'Full set Core Client Indicator'!$A$3:$AB$3, 0))), \"\")","v":""},{"$f":"IF(K300<>\"\", IF(INDEX('Full set Core Client Indicator'!$A$3:$AB$351, MATCH(Selection_Hide2!$A300, 'Full set Core Client Indicator'!$A$3:$A$351, 0), MATCH(Selection_Hide2!L$5, 'Full set Core Client Indicator'!$A$3:$AB$3, 0))=\"\", \"\",  INDEX('Full set Core Client Indicator'!$A$3:$AB$351, MATCH(Selection_Hide2!$A300, 'Full set Core Client Indicator'!$A$3:$A$351, 0), MATCH(Selection_Hide2!L$5, 'Full set Core Client Indicator'!$A$3:$AB$3, 0))), \"\")","v":""},{"$f":"IF(L300<>\"\", IF(INDEX('Full set Core Client Indicator'!$A$3:$AB$351, MATCH(Selection_Hide2!$A300, 'Full set Core Client Indicator'!$A$3:$A$351, 0), MATCH(Selection_Hide2!M$5, 'Full set Core Client Indicator'!$A$3:$AB$3, 0))=\"\", \"\",  INDEX('Full set Core Client Indicator'!$A$3:$AB$351, MATCH(Selection_Hide2!$A300, 'Full set Core Client Indicator'!$A$3:$A$351, 0), MATCH(Selection_Hide2!M$5, 'Full set Core Client Indicator'!$A$3:$AB$3, 0))), \"\")","v":""},{"$f":"IF(M300<>\"\", IF(INDEX('Full set Core Client Indicator'!$A$3:$AB$351, MATCH(Selection_Hide2!$A300, 'Full set Core Client Indicator'!$A$3:$A$351, 0), MATCH(Selection_Hide2!N$5, 'Full set Core Client Indicator'!$A$3:$AB$3, 0))=\"\", \"\",  INDEX('Full set Core Client Indicator'!$A$3:$AB$351, MATCH(Selection_Hide2!$A300, 'Full set Core Client Indicator'!$A$3:$A$351, 0), MATCH(Selection_Hide2!N$5, 'Full set Core Client Indicator'!$A$3:$AB$3, 0))), \"\")","v":""},{"$f":"IF(N300<>\"\", IF(INDEX('Full set Core Client Indicator'!$A$3:$AB$351, MATCH(Selection_Hide2!$A300, 'Full set Core Client Indicator'!$A$3:$A$351, 0), MATCH(Selection_Hide2!O$5, 'Full set Core Client Indicator'!$A$3:$AB$3, 0))=\"\", \"\",  INDEX('Full set Core Client Indicator'!$A$3:$AB$351, MATCH(Selection_Hide2!$A300, 'Full set Core Client Indicator'!$A$3:$A$351, 0), MATCH(Selection_Hide2!O$5, 'Full set Core Client Indicator'!$A$3:$AB$3, 0))), \"\")","v":""},{"$f":"IF(O300<>\"\", IF(INDEX('Full set Core Client Indicator'!$A$3:$AB$351, MATCH(Selection_Hide2!$A300, 'Full set Core Client Indicator'!$A$3:$A$351, 0), MATCH(Selection_Hide2!P$5, 'Full set Core Client Indicator'!$A$3:$AB$3, 0))=\"\", \"\",  INDEX('Full set Core Client Indicator'!$A$3:$AB$351, MATCH(Selection_Hide2!$A300, 'Full set Core Client Indicator'!$A$3:$A$351, 0), MATCH(Selection_Hide2!P$5, 'Full set Core Client Indicator'!$A$3:$AB$3, 0))), \"\")","v":""},{"$f":"IF(P300<>\"\", IF(INDEX('Full set Core Client Indicator'!$A$3:$AB$351, MATCH(Selection_Hide2!$A300, 'Full set Core Client Indicator'!$A$3:$A$351, 0), MATCH(Selection_Hide2!Q$5, 'Full set Core Client Indicator'!$A$3:$AB$3, 0))=\"\", \"\",  INDEX('Full set Core Client Indicator'!$A$3:$AB$351, MATCH(Selection_Hide2!$A300, 'Full set Core Client Indicator'!$A$3:$A$351, 0), MATCH(Selection_Hide2!Q$5, 'Full set Core Client Indicator'!$A$3:$AB$3, 0))), \"\")","v":""},{"$f":"IF(Q300<>\"\", IF(INDEX('Full set Core Client Indicator'!$A$3:$AB$351, MATCH(Selection_Hide2!$A300, 'Full set Core Client Indicator'!$A$3:$A$351, 0), MATCH(Selection_Hide2!R$5, 'Full set Core Client Indicator'!$A$3:$AB$3, 0))=\"\", \"\",  INDEX('Full set Core Client Indicator'!$A$3:$AB$351, MATCH(Selection_Hide2!$A300, 'Full set Core Client Indicator'!$A$3:$A$351, 0), MATCH(Selection_Hide2!R$5, 'Full set Core Client Indicator'!$A$3:$AB$3, 0))), \"\")","v":""},{"$f":"IF(R300<>\"\", IF(INDEX('Full set Core Client Indicator'!$A$3:$AB$351, MATCH(Selection_Hide2!$A300, 'Full set Core Client Indicator'!$A$3:$A$351, 0), MATCH(Selection_Hide2!S$5, 'Full set Core Client Indicator'!$A$3:$AB$3, 0))=\"\", \"\",  INDEX('Full set Core Client Indicator'!$A$3:$AB$351, MATCH(Selection_Hide2!$A300, 'Full set Core Client Indicator'!$A$3:$A$351, 0), MATCH(Selection_Hide2!S$5, 'Full set Core Client Indicator'!$A$3:$AB$3, 0))), \"\")","v":""},{"$f":"IF(S300<>\"\", IF(INDEX('Full set Core Client Indicator'!$A$3:$AB$351, MATCH(Selection_Hide2!$A300, 'Full set Core Client Indicator'!$A$3:$A$351, 0), MATCH(Selection_Hide2!T$5, 'Full set Core Client Indicator'!$A$3:$AB$3, 0))=\"\", \"\",  INDEX('Full set Core Client Indicator'!$A$3:$AB$351, MATCH(Selection_Hide2!$A300, 'Full set Core Client Indicator'!$A$3:$A$351, 0), MATCH(Selection_Hide2!T$5, 'Full set Core Client Indicator'!$A$3:$AB$3, 0))), \"\")","v":""},{"$f":"IF(T300<>\"\", IF(INDEX('Full set Core Client Indicator'!$A$3:$AB$351, MATCH(Selection_Hide2!$A300, 'Full set Core Client Indicator'!$A$3:$A$351, 0), MATCH(Selection_Hide2!U$5, 'Full set Core Client Indicator'!$A$3:$AB$3, 0))=\"\", \"\",  INDEX('Full set Core Client Indicator'!$A$3:$AB$351, MATCH(Selection_Hide2!$A300, 'Full set Core Client Indicator'!$A$3:$A$351, 0), MATCH(Selection_Hide2!U$5, 'Full set Core Client Indicator'!$A$3:$AB$3, 0))), \"\")","v":""},{"$f":"IF(U300<>\"\", IF(INDEX('Full set Core Client Indicator'!$A$3:$AB$351, MATCH(Selection_Hide2!$A300, 'Full set Core Client Indicator'!$A$3:$A$351, 0), MATCH(Selection_Hide2!V$5, 'Full set Core Client Indicator'!$A$3:$AB$3, 0))=\"\", \"\",  INDEX('Full set Core Client Indicator'!$A$3:$AB$351, MATCH(Selection_Hide2!$A300, 'Full set Core Client Indicator'!$A$3:$A$351, 0), MATCH(Selection_Hide2!V$5, 'Full set Core Client Indicator'!$A$3:$AB$3, 0))), \"\")","v":""},{"$f":"IF(V300<>\"\", IF(INDEX('Full set Core Client Indicator'!$A$3:$AB$351, MATCH(Selection_Hide2!$A300, 'Full set Core Client Indicator'!$A$3:$A$351, 0), MATCH(Selection_Hide2!W$5, 'Full set Core Client Indicator'!$A$3:$AB$3, 0))=\"\", \"\",  INDEX('Full set Core Client Indicator'!$A$3:$AB$351, MATCH(Selection_Hide2!$A300, 'Full set Core Client Indicator'!$A$3:$A$351, 0), MATCH(Selection_Hide2!W$5, 'Full set Core Client Indicator'!$A$3:$AB$3, 0))), \"\")","v":""},{"$f":"IF(W300<>\"\", IF(INDEX('Full set Core Client Indicator'!$A$3:$AB$351, MATCH(Selection_Hide2!$A300, 'Full set Core Client Indicator'!$A$3:$A$351, 0), MATCH(Selection_Hide2!X$5, 'Full set Core Client Indicator'!$A$3:$AB$3, 0))=\"\", \"\",  INDEX('Full set Core Client Indicator'!$A$3:$AB$351, MATCH(Selection_Hide2!$A300, 'Full set Core Client Indicator'!$A$3:$A$351, 0), MATCH(Selection_Hide2!X$5, 'Full set Core Client Indicator'!$A$3:$AB$3, 0))), \"\")","v":""},{"$f":"IF(X300<>\"\", IF(INDEX('Full set Core Client Indicator'!$A$3:$AB$351, MATCH(Selection_Hide2!$A300, 'Full set Core Client Indicator'!$A$3:$A$351, 0), MATCH(Selection_Hide2!Y$5, 'Full set Core Client Indicator'!$A$3:$AB$3, 0))=\"\", \"\",  INDEX('Full set Core Client Indicator'!$A$3:$AB$351, MATCH(Selection_Hide2!$A300, 'Full set Core Client Indicator'!$A$3:$A$351, 0), MATCH(Selection_Hide2!Y$5, 'Full set Core Client Indicator'!$A$3:$AB$3, 0))), \"\")","v":""},{"$f":"IF(Y300<>\"\", IF(INDEX('Full set Core Client Indicator'!$A$3:$AB$351, MATCH(Selection_Hide2!$A300, 'Full set Core Client Indicator'!$A$3:$A$351, 0), MATCH(Selection_Hide2!Z$5, 'Full set Core Client Indicator'!$A$3:$AB$3, 0))=\"\", \"\",  INDEX('Full set Core Client Indicator'!$A$3:$AB$351, MATCH(Selection_Hide2!$A300, 'Full set Core Client Indicator'!$A$3:$A$351, 0), MATCH(Selection_Hide2!Z$5, 'Full set Core Client Indicator'!$A$3:$AB$3, 0))), \"\")","v":""},{"$f":"IF(Z300<>\"\", IF(INDEX('Full set Core Client Indicator'!$A$3:$AB$351, MATCH(Selection_Hide2!$A300, 'Full set Core Client Indicator'!$A$3:$A$351, 0), MATCH(Selection_Hide2!AA$5, 'Full set Core Client Indicator'!$A$3:$AB$3, 0))=\"\", \"\",  INDEX('Full set Core Client Indicator'!$A$3:$AB$351, MATCH(Selection_Hide2!$A300, 'Full set Core Client Indicator'!$A$3:$A$351, 0), MATCH(Selection_Hide2!AA$5, 'Full set Core Client Indicator'!$A$3:$AB$3, 0))), \"\")","v":""},{"$f":"IF(AA300<>\"\", IF(INDEX('Full set Core Client Indicator'!$A$3:$AB$351, MATCH(Selection_Hide2!$A300, 'Full set Core Client Indicator'!$A$3:$A$351, 0), MATCH(Selection_Hide2!AB$5, 'Full set Core Client Indicator'!$A$3:$AB$3, 0))=\"\", \"\",  INDEX('Full set Core Client Indicator'!$A$3:$AB$351, MATCH(Selection_Hide2!$A300, 'Full set Core Client Indicator'!$A$3:$A$351, 0), MATCH(Selection_Hide2!AB$5, 'Full set Core Client Indicator'!$A$3:$AB$3, 0))), \"\")","v":""}]
[{"$f":"IF(AND(Selection_Hide1!C299<>0, Selection_Hide1!C299<>\"Grand Total\"), Selection_Hide1!C299, \"\")","v":""},{"$f":"IF(A301<>\"\", IF(INDEX('Full set Core Client Indicator'!$A$3:$AB$351, MATCH(Selection_Hide2!$A301, 'Full set Core Client Indicator'!$A$3:$A$351, 0), MATCH(Selection_Hide2!B$5, 'Full set Core Client Indicator'!$A$3:$AB$3, 0))=\"\", \"\",  INDEX('Full set Core Client Indicator'!$A$3:$AB$351, MATCH(Selection_Hide2!$A301, 'Full set Core Client Indicator'!$A$3:$A$351, 0), MATCH(Selection_Hide2!B$5, 'Full set Core Client Indicator'!$A$3:$AB$3, 0))), \"\")","v":""},{"$f":"IF(B301<>\"\", IF(INDEX('Full set Core Client Indicator'!$A$3:$AB$351, MATCH(Selection_Hide2!$A301, 'Full set Core Client Indicator'!$A$3:$A$351, 0), MATCH(Selection_Hide2!C$5, 'Full set Core Client Indicator'!$A$3:$AB$3, 0))=\"\", \"\",  INDEX('Full set Core Client Indicator'!$A$3:$AB$351, MATCH(Selection_Hide2!$A301, 'Full set Core Client Indicator'!$A$3:$A$351, 0), MATCH(Selection_Hide2!C$5, 'Full set Core Client Indicator'!$A$3:$AB$3, 0))), \"\")","v":""},{"$f":"IF(C301<>\"\", IF(INDEX('Full set Core Client Indicator'!$A$3:$AB$351, MATCH(Selection_Hide2!$A301, 'Full set Core Client Indicator'!$A$3:$A$351, 0), MATCH(Selection_Hide2!D$5, 'Full set Core Client Indicator'!$A$3:$AB$3, 0))=\"\", \"\",  INDEX('Full set Core Client Indicator'!$A$3:$AB$351, MATCH(Selection_Hide2!$A301, 'Full set Core Client Indicator'!$A$3:$A$351, 0), MATCH(Selection_Hide2!D$5, 'Full set Core Client Indicator'!$A$3:$AB$3, 0))), \"\")","v":""},{"$f":"IF(D301<>\"\", IF(INDEX('Full set Core Client Indicator'!$A$3:$AB$351, MATCH(Selection_Hide2!$A301, 'Full set Core Client Indicator'!$A$3:$A$351, 0), MATCH(Selection_Hide2!E$5, 'Full set Core Client Indicator'!$A$3:$AB$3, 0))=\"\", \"\",  INDEX('Full set Core Client Indicator'!$A$3:$AB$351, MATCH(Selection_Hide2!$A301, 'Full set Core Client Indicator'!$A$3:$A$351, 0), MATCH(Selection_Hide2!E$5, 'Full set Core Client Indicator'!$A$3:$AB$3, 0))), \"\")","v":""},{"$f":"IF(E301<>\"\", IF(INDEX('Full set Core Client Indicator'!$A$3:$AB$351, MATCH(Selection_Hide2!$A301, 'Full set Core Client Indicator'!$A$3:$A$351, 0), MATCH(Selection_Hide2!F$5, 'Full set Core Client Indicator'!$A$3:$AB$3, 0))=\"\", \"\",  INDEX('Full set Core Client Indicator'!$A$3:$AB$351, MATCH(Selection_Hide2!$A301, 'Full set Core Client Indicator'!$A$3:$A$351, 0), MATCH(Selection_Hide2!F$5, 'Full set Core Client Indicator'!$A$3:$AB$3, 0))), \"\")","v":""},{"$f":"IF(F301<>\"\", IF(INDEX('Full set Core Client Indicator'!$A$3:$AB$351, MATCH(Selection_Hide2!$A301, 'Full set Core Client Indicator'!$A$3:$A$351, 0), MATCH(Selection_Hide2!G$5, 'Full set Core Client Indicator'!$A$3:$AB$3, 0))=\"\", \"\",  INDEX('Full set Core Client Indicator'!$A$3:$AB$351, MATCH(Selection_Hide2!$A301, 'Full set Core Client Indicator'!$A$3:$A$351, 0), MATCH(Selection_Hide2!G$5, 'Full set Core Client Indicator'!$A$3:$AB$3, 0))), \"\")","v":""},{"$f":"IF(G301<>\"\", IF(INDEX('Full set Core Client Indicator'!$A$3:$AB$351, MATCH(Selection_Hide2!$A301, 'Full set Core Client Indicator'!$A$3:$A$351, 0), MATCH(Selection_Hide2!H$5, 'Full set Core Client Indicator'!$A$3:$AB$3, 0))=\"\", \"\",  INDEX('Full set Core Client Indicator'!$A$3:$AB$351, MATCH(Selection_Hide2!$A301, 'Full set Core Client Indicator'!$A$3:$A$351, 0), MATCH(Selection_Hide2!H$5, 'Full set Core Client Indicator'!$A$3:$AB$3, 0))), \"\")","v":""},{"$f":"IF(H301<>\"\", IF(INDEX('Full set Core Client Indicator'!$A$3:$AB$351, MATCH(Selection_Hide2!$A301, 'Full set Core Client Indicator'!$A$3:$A$351, 0), MATCH(Selection_Hide2!I$5, 'Full set Core Client Indicator'!$A$3:$AB$3, 0))=\"\", \"\",  INDEX('Full set Core Client Indicator'!$A$3:$AB$351, MATCH(Selection_Hide2!$A301, 'Full set Core Client Indicator'!$A$3:$A$351, 0), MATCH(Selection_Hide2!I$5, 'Full set Core Client Indicator'!$A$3:$AB$3, 0))), \"\")","v":""},{"$f":"IF(I301<>\"\", IF(INDEX('Full set Core Client Indicator'!$A$3:$AB$351, MATCH(Selection_Hide2!$A301, 'Full set Core Client Indicator'!$A$3:$A$351, 0), MATCH(Selection_Hide2!J$5, 'Full set Core Client Indicator'!$A$3:$AB$3, 0))=\"\", \"\",  INDEX('Full set Core Client Indicator'!$A$3:$AB$351, MATCH(Selection_Hide2!$A301, 'Full set Core Client Indicator'!$A$3:$A$351, 0), MATCH(Selection_Hide2!J$5, 'Full set Core Client Indicator'!$A$3:$AB$3, 0))), \"\")","v":""},{"$f":"IF(J301<>\"\", IF(INDEX('Full set Core Client Indicator'!$A$3:$AB$351, MATCH(Selection_Hide2!$A301, 'Full set Core Client Indicator'!$A$3:$A$351, 0), MATCH(Selection_Hide2!K$5, 'Full set Core Client Indicator'!$A$3:$AB$3, 0))=\"\", \"\",  INDEX('Full set Core Client Indicator'!$A$3:$AB$351, MATCH(Selection_Hide2!$A301, 'Full set Core Client Indicator'!$A$3:$A$351, 0), MATCH(Selection_Hide2!K$5, 'Full set Core Client Indicator'!$A$3:$AB$3, 0))), \"\")","v":""},{"$f":"IF(K301<>\"\", IF(INDEX('Full set Core Client Indicator'!$A$3:$AB$351, MATCH(Selection_Hide2!$A301, 'Full set Core Client Indicator'!$A$3:$A$351, 0), MATCH(Selection_Hide2!L$5, 'Full set Core Client Indicator'!$A$3:$AB$3, 0))=\"\", \"\",  INDEX('Full set Core Client Indicator'!$A$3:$AB$351, MATCH(Selection_Hide2!$A301, 'Full set Core Client Indicator'!$A$3:$A$351, 0), MATCH(Selection_Hide2!L$5, 'Full set Core Client Indicator'!$A$3:$AB$3, 0))), \"\")","v":""},{"$f":"IF(L301<>\"\", IF(INDEX('Full set Core Client Indicator'!$A$3:$AB$351, MATCH(Selection_Hide2!$A301, 'Full set Core Client Indicator'!$A$3:$A$351, 0), MATCH(Selection_Hide2!M$5, 'Full set Core Client Indicator'!$A$3:$AB$3, 0))=\"\", \"\",  INDEX('Full set Core Client Indicator'!$A$3:$AB$351, MATCH(Selection_Hide2!$A301, 'Full set Core Client Indicator'!$A$3:$A$351, 0), MATCH(Selection_Hide2!M$5, 'Full set Core Client Indicator'!$A$3:$AB$3, 0))), \"\")","v":""},{"$f":"IF(M301<>\"\", IF(INDEX('Full set Core Client Indicator'!$A$3:$AB$351, MATCH(Selection_Hide2!$A301, 'Full set Core Client Indicator'!$A$3:$A$351, 0), MATCH(Selection_Hide2!N$5, 'Full set Core Client Indicator'!$A$3:$AB$3, 0))=\"\", \"\",  INDEX('Full set Core Client Indicator'!$A$3:$AB$351, MATCH(Selection_Hide2!$A301, 'Full set Core Client Indicator'!$A$3:$A$351, 0), MATCH(Selection_Hide2!N$5, 'Full set Core Client Indicator'!$A$3:$AB$3, 0))), \"\")","v":""},{"$f":"IF(N301<>\"\", IF(INDEX('Full set Core Client Indicator'!$A$3:$AB$351, MATCH(Selection_Hide2!$A301, 'Full set Core Client Indicator'!$A$3:$A$351, 0), MATCH(Selection_Hide2!O$5, 'Full set Core Client Indicator'!$A$3:$AB$3, 0))=\"\", \"\",  INDEX('Full set Core Client Indicator'!$A$3:$AB$351, MATCH(Selection_Hide2!$A301, 'Full set Core Client Indicator'!$A$3:$A$351, 0), MATCH(Selection_Hide2!O$5, 'Full set Core Client Indicator'!$A$3:$AB$3, 0))), \"\")","v":""},{"$f":"IF(O301<>\"\", IF(INDEX('Full set Core Client Indicator'!$A$3:$AB$351, MATCH(Selection_Hide2!$A301, 'Full set Core Client Indicator'!$A$3:$A$351, 0), MATCH(Selection_Hide2!P$5, 'Full set Core Client Indicator'!$A$3:$AB$3, 0))=\"\", \"\",  INDEX('Full set Core Client Indicator'!$A$3:$AB$351, MATCH(Selection_Hide2!$A301, 'Full set Core Client Indicator'!$A$3:$A$351, 0), MATCH(Selection_Hide2!P$5, 'Full set Core Client Indicator'!$A$3:$AB$3, 0))), \"\")","v":""},{"$f":"IF(P301<>\"\", IF(INDEX('Full set Core Client Indicator'!$A$3:$AB$351, MATCH(Selection_Hide2!$A301, 'Full set Core Client Indicator'!$A$3:$A$351, 0), MATCH(Selection_Hide2!Q$5, 'Full set Core Client Indicator'!$A$3:$AB$3, 0))=\"\", \"\",  INDEX('Full set Core Client Indicator'!$A$3:$AB$351, MATCH(Selection_Hide2!$A301, 'Full set Core Client Indicator'!$A$3:$A$351, 0), MATCH(Selection_Hide2!Q$5, 'Full set Core Client Indicator'!$A$3:$AB$3, 0))), \"\")","v":""},{"$f":"IF(Q301<>\"\", IF(INDEX('Full set Core Client Indicator'!$A$3:$AB$351, MATCH(Selection_Hide2!$A301, 'Full set Core Client Indicator'!$A$3:$A$351, 0), MATCH(Selection_Hide2!R$5, 'Full set Core Client Indicator'!$A$3:$AB$3, 0))=\"\", \"\",  INDEX('Full set Core Client Indicator'!$A$3:$AB$351, MATCH(Selection_Hide2!$A301, 'Full set Core Client Indicator'!$A$3:$A$351, 0), MATCH(Selection_Hide2!R$5, 'Full set Core Client Indicator'!$A$3:$AB$3, 0))), \"\")","v":""},{"$f":"IF(R301<>\"\", IF(INDEX('Full set Core Client Indicator'!$A$3:$AB$351, MATCH(Selection_Hide2!$A301, 'Full set Core Client Indicator'!$A$3:$A$351, 0), MATCH(Selection_Hide2!S$5, 'Full set Core Client Indicator'!$A$3:$AB$3, 0))=\"\", \"\",  INDEX('Full set Core Client Indicator'!$A$3:$AB$351, MATCH(Selection_Hide2!$A301, 'Full set Core Client Indicator'!$A$3:$A$351, 0), MATCH(Selection_Hide2!S$5, 'Full set Core Client Indicator'!$A$3:$AB$3, 0))), \"\")","v":""},{"$f":"IF(S301<>\"\", IF(INDEX('Full set Core Client Indicator'!$A$3:$AB$351, MATCH(Selection_Hide2!$A301, 'Full set Core Client Indicator'!$A$3:$A$351, 0), MATCH(Selection_Hide2!T$5, 'Full set Core Client Indicator'!$A$3:$AB$3, 0))=\"\", \"\",  INDEX('Full set Core Client Indicator'!$A$3:$AB$351, MATCH(Selection_Hide2!$A301, 'Full set Core Client Indicator'!$A$3:$A$351, 0), MATCH(Selection_Hide2!T$5, 'Full set Core Client Indicator'!$A$3:$AB$3, 0))), \"\")","v":""},{"$f":"IF(T301<>\"\", IF(INDEX('Full set Core Client Indicator'!$A$3:$AB$351, MATCH(Selection_Hide2!$A301, 'Full set Core Client Indicator'!$A$3:$A$351, 0), MATCH(Selection_Hide2!U$5, 'Full set Core Client Indicator'!$A$3:$AB$3, 0))=\"\", \"\",  INDEX('Full set Core Client Indicator'!$A$3:$AB$351, MATCH(Selection_Hide2!$A301, 'Full set Core Client Indicator'!$A$3:$A$351, 0), MATCH(Selection_Hide2!U$5, 'Full set Core Client Indicator'!$A$3:$AB$3, 0))), \"\")","v":""},{"$f":"IF(U301<>\"\", IF(INDEX('Full set Core Client Indicator'!$A$3:$AB$351, MATCH(Selection_Hide2!$A301, 'Full set Core Client Indicator'!$A$3:$A$351, 0), MATCH(Selection_Hide2!V$5, 'Full set Core Client Indicator'!$A$3:$AB$3, 0))=\"\", \"\",  INDEX('Full set Core Client Indicator'!$A$3:$AB$351, MATCH(Selection_Hide2!$A301, 'Full set Core Client Indicator'!$A$3:$A$351, 0), MATCH(Selection_Hide2!V$5, 'Full set Core Client Indicator'!$A$3:$AB$3, 0))), \"\")","v":""},{"$f":"IF(V301<>\"\", IF(INDEX('Full set Core Client Indicator'!$A$3:$AB$351, MATCH(Selection_Hide2!$A301, 'Full set Core Client Indicator'!$A$3:$A$351, 0), MATCH(Selection_Hide2!W$5, 'Full set Core Client Indicator'!$A$3:$AB$3, 0))=\"\", \"\",  INDEX('Full set Core Client Indicator'!$A$3:$AB$351, MATCH(Selection_Hide2!$A301, 'Full set Core Client Indicator'!$A$3:$A$351, 0), MATCH(Selection_Hide2!W$5, 'Full set Core Client Indicator'!$A$3:$AB$3, 0))), \"\")","v":""},{"$f":"IF(W301<>\"\", IF(INDEX('Full set Core Client Indicator'!$A$3:$AB$351, MATCH(Selection_Hide2!$A301, 'Full set Core Client Indicator'!$A$3:$A$351, 0), MATCH(Selection_Hide2!X$5, 'Full set Core Client Indicator'!$A$3:$AB$3, 0))=\"\", \"\",  INDEX('Full set Core Client Indicator'!$A$3:$AB$351, MATCH(Selection_Hide2!$A301, 'Full set Core Client Indicator'!$A$3:$A$351, 0), MATCH(Selection_Hide2!X$5, 'Full set Core Client Indicator'!$A$3:$AB$3, 0))), \"\")","v":""},{"$f":"IF(X301<>\"\", IF(INDEX('Full set Core Client Indicator'!$A$3:$AB$351, MATCH(Selection_Hide2!$A301, 'Full set Core Client Indicator'!$A$3:$A$351, 0), MATCH(Selection_Hide2!Y$5, 'Full set Core Client Indicator'!$A$3:$AB$3, 0))=\"\", \"\",  INDEX('Full set Core Client Indicator'!$A$3:$AB$351, MATCH(Selection_Hide2!$A301, 'Full set Core Client Indicator'!$A$3:$A$351, 0), MATCH(Selection_Hide2!Y$5, 'Full set Core Client Indicator'!$A$3:$AB$3, 0))), \"\")","v":""},{"$f":"IF(Y301<>\"\", IF(INDEX('Full set Core Client Indicator'!$A$3:$AB$351, MATCH(Selection_Hide2!$A301, 'Full set Core Client Indicator'!$A$3:$A$351, 0), MATCH(Selection_Hide2!Z$5, 'Full set Core Client Indicator'!$A$3:$AB$3, 0))=\"\", \"\",  INDEX('Full set Core Client Indicator'!$A$3:$AB$351, MATCH(Selection_Hide2!$A301, 'Full set Core Client Indicator'!$A$3:$A$351, 0), MATCH(Selection_Hide2!Z$5, 'Full set Core Client Indicator'!$A$3:$AB$3, 0))), \"\")","v":""},{"$f":"IF(Z301<>\"\", IF(INDEX('Full set Core Client Indicator'!$A$3:$AB$351, MATCH(Selection_Hide2!$A301, 'Full set Core Client Indicator'!$A$3:$A$351, 0), MATCH(Selection_Hide2!AA$5, 'Full set Core Client Indicator'!$A$3:$AB$3, 0))=\"\", \"\",  INDEX('Full set Core Client Indicator'!$A$3:$AB$351, MATCH(Selection_Hide2!$A301, 'Full set Core Client Indicator'!$A$3:$A$351, 0), MATCH(Selection_Hide2!AA$5, 'Full set Core Client Indicator'!$A$3:$AB$3, 0))), \"\")","v":""},{"$f":"IF(AA301<>\"\", IF(INDEX('Full set Core Client Indicator'!$A$3:$AB$351, MATCH(Selection_Hide2!$A301, 'Full set Core Client Indicator'!$A$3:$A$351, 0), MATCH(Selection_Hide2!AB$5, 'Full set Core Client Indicator'!$A$3:$AB$3, 0))=\"\", \"\",  INDEX('Full set Core Client Indicator'!$A$3:$AB$351, MATCH(Selection_Hide2!$A301, 'Full set Core Client Indicator'!$A$3:$A$351, 0), MATCH(Selection_Hide2!AB$5, 'Full set Core Client Indicator'!$A$3:$AB$3, 0))), \"\")","v":""}]
[{"$f":"IF(AND(Selection_Hide1!C300<>0, Selection_Hide1!C300<>\"Grand Total\"), Selection_Hide1!C300, \"\")","v":""},{"$f":"IF(A302<>\"\", IF(INDEX('Full set Core Client Indicator'!$A$3:$AB$351, MATCH(Selection_Hide2!$A302, 'Full set Core Client Indicator'!$A$3:$A$351, 0), MATCH(Selection_Hide2!B$5, 'Full set Core Client Indicator'!$A$3:$AB$3, 0))=\"\", \"\",  INDEX('Full set Core Client Indicator'!$A$3:$AB$351, MATCH(Selection_Hide2!$A302, 'Full set Core Client Indicator'!$A$3:$A$351, 0), MATCH(Selection_Hide2!B$5, 'Full set Core Client Indicator'!$A$3:$AB$3, 0))), \"\")","v":""},{"$f":"IF(B302<>\"\", IF(INDEX('Full set Core Client Indicator'!$A$3:$AB$351, MATCH(Selection_Hide2!$A302, 'Full set Core Client Indicator'!$A$3:$A$351, 0), MATCH(Selection_Hide2!C$5, 'Full set Core Client Indicator'!$A$3:$AB$3, 0))=\"\", \"\",  INDEX('Full set Core Client Indicator'!$A$3:$AB$351, MATCH(Selection_Hide2!$A302, 'Full set Core Client Indicator'!$A$3:$A$351, 0), MATCH(Selection_Hide2!C$5, 'Full set Core Client Indicator'!$A$3:$AB$3, 0))), \"\")","v":""},{"$f":"IF(C302<>\"\", IF(INDEX('Full set Core Client Indicator'!$A$3:$AB$351, MATCH(Selection_Hide2!$A302, 'Full set Core Client Indicator'!$A$3:$A$351, 0), MATCH(Selection_Hide2!D$5, 'Full set Core Client Indicator'!$A$3:$AB$3, 0))=\"\", \"\",  INDEX('Full set Core Client Indicator'!$A$3:$AB$351, MATCH(Selection_Hide2!$A302, 'Full set Core Client Indicator'!$A$3:$A$351, 0), MATCH(Selection_Hide2!D$5, 'Full set Core Client Indicator'!$A$3:$AB$3, 0))), \"\")","v":""},{"$f":"IF(D302<>\"\", IF(INDEX('Full set Core Client Indicator'!$A$3:$AB$351, MATCH(Selection_Hide2!$A302, 'Full set Core Client Indicator'!$A$3:$A$351, 0), MATCH(Selection_Hide2!E$5, 'Full set Core Client Indicator'!$A$3:$AB$3, 0))=\"\", \"\",  INDEX('Full set Core Client Indicator'!$A$3:$AB$351, MATCH(Selection_Hide2!$A302, 'Full set Core Client Indicator'!$A$3:$A$351, 0), MATCH(Selection_Hide2!E$5, 'Full set Core Client Indicator'!$A$3:$AB$3, 0))), \"\")","v":""},{"$f":"IF(E302<>\"\", IF(INDEX('Full set Core Client Indicator'!$A$3:$AB$351, MATCH(Selection_Hide2!$A302, 'Full set Core Client Indicator'!$A$3:$A$351, 0), MATCH(Selection_Hide2!F$5, 'Full set Core Client Indicator'!$A$3:$AB$3, 0))=\"\", \"\",  INDEX('Full set Core Client Indicator'!$A$3:$AB$351, MATCH(Selection_Hide2!$A302, 'Full set Core Client Indicator'!$A$3:$A$351, 0), MATCH(Selection_Hide2!F$5, 'Full set Core Client Indicator'!$A$3:$AB$3, 0))), \"\")","v":""},{"$f":"IF(F302<>\"\", IF(INDEX('Full set Core Client Indicator'!$A$3:$AB$351, MATCH(Selection_Hide2!$A302, 'Full set Core Client Indicator'!$A$3:$A$351, 0), MATCH(Selection_Hide2!G$5, 'Full set Core Client Indicator'!$A$3:$AB$3, 0))=\"\", \"\",  INDEX('Full set Core Client Indicator'!$A$3:$AB$351, MATCH(Selection_Hide2!$A302, 'Full set Core Client Indicator'!$A$3:$A$351, 0), MATCH(Selection_Hide2!G$5, 'Full set Core Client Indicator'!$A$3:$AB$3, 0))), \"\")","v":""},{"$f":"IF(G302<>\"\", IF(INDEX('Full set Core Client Indicator'!$A$3:$AB$351, MATCH(Selection_Hide2!$A302, 'Full set Core Client Indicator'!$A$3:$A$351, 0), MATCH(Selection_Hide2!H$5, 'Full set Core Client Indicator'!$A$3:$AB$3, 0))=\"\", \"\",  INDEX('Full set Core Client Indicator'!$A$3:$AB$351, MATCH(Selection_Hide2!$A302, 'Full set Core Client Indicator'!$A$3:$A$351, 0), MATCH(Selection_Hide2!H$5, 'Full set Core Client Indicator'!$A$3:$AB$3, 0))), \"\")","v":""},{"$f":"IF(H302<>\"\", IF(INDEX('Full set Core Client Indicator'!$A$3:$AB$351, MATCH(Selection_Hide2!$A302, 'Full set Core Client Indicator'!$A$3:$A$351, 0), MATCH(Selection_Hide2!I$5, 'Full set Core Client Indicator'!$A$3:$AB$3, 0))=\"\", \"\",  INDEX('Full set Core Client Indicator'!$A$3:$AB$351, MATCH(Selection_Hide2!$A302, 'Full set Core Client Indicator'!$A$3:$A$351, 0), MATCH(Selection_Hide2!I$5, 'Full set Core Client Indicator'!$A$3:$AB$3, 0))), \"\")","v":""},{"$f":"IF(I302<>\"\", IF(INDEX('Full set Core Client Indicator'!$A$3:$AB$351, MATCH(Selection_Hide2!$A302, 'Full set Core Client Indicator'!$A$3:$A$351, 0), MATCH(Selection_Hide2!J$5, 'Full set Core Client Indicator'!$A$3:$AB$3, 0))=\"\", \"\",  INDEX('Full set Core Client Indicator'!$A$3:$AB$351, MATCH(Selection_Hide2!$A302, 'Full set Core Client Indicator'!$A$3:$A$351, 0), MATCH(Selection_Hide2!J$5, 'Full set Core Client Indicator'!$A$3:$AB$3, 0))), \"\")","v":""},{"$f":"IF(J302<>\"\", IF(INDEX('Full set Core Client Indicator'!$A$3:$AB$351, MATCH(Selection_Hide2!$A302, 'Full set Core Client Indicator'!$A$3:$A$351, 0), MATCH(Selection_Hide2!K$5, 'Full set Core Client Indicator'!$A$3:$AB$3, 0))=\"\", \"\",  INDEX('Full set Core Client Indicator'!$A$3:$AB$351, MATCH(Selection_Hide2!$A302, 'Full set Core Client Indicator'!$A$3:$A$351, 0), MATCH(Selection_Hide2!K$5, 'Full set Core Client Indicator'!$A$3:$AB$3, 0))), \"\")","v":""},{"$f":"IF(K302<>\"\", IF(INDEX('Full set Core Client Indicator'!$A$3:$AB$351, MATCH(Selection_Hide2!$A302, 'Full set Core Client Indicator'!$A$3:$A$351, 0), MATCH(Selection_Hide2!L$5, 'Full set Core Client Indicator'!$A$3:$AB$3, 0))=\"\", \"\",  INDEX('Full set Core Client Indicator'!$A$3:$AB$351, MATCH(Selection_Hide2!$A302, 'Full set Core Client Indicator'!$A$3:$A$351, 0), MATCH(Selection_Hide2!L$5, 'Full set Core Client Indicator'!$A$3:$AB$3, 0))), \"\")","v":""},{"$f":"IF(L302<>\"\", IF(INDEX('Full set Core Client Indicator'!$A$3:$AB$351, MATCH(Selection_Hide2!$A302, 'Full set Core Client Indicator'!$A$3:$A$351, 0), MATCH(Selection_Hide2!M$5, 'Full set Core Client Indicator'!$A$3:$AB$3, 0))=\"\", \"\",  INDEX('Full set Core Client Indicator'!$A$3:$AB$351, MATCH(Selection_Hide2!$A302, 'Full set Core Client Indicator'!$A$3:$A$351, 0), MATCH(Selection_Hide2!M$5, 'Full set Core Client Indicator'!$A$3:$AB$3, 0))), \"\")","v":""},{"$f":"IF(M302<>\"\", IF(INDEX('Full set Core Client Indicator'!$A$3:$AB$351, MATCH(Selection_Hide2!$A302, 'Full set Core Client Indicator'!$A$3:$A$351, 0), MATCH(Selection_Hide2!N$5, 'Full set Core Client Indicator'!$A$3:$AB$3, 0))=\"\", \"\",  INDEX('Full set Core Client Indicator'!$A$3:$AB$351, MATCH(Selection_Hide2!$A302, 'Full set Core Client Indicator'!$A$3:$A$351, 0), MATCH(Selection_Hide2!N$5, 'Full set Core Client Indicator'!$A$3:$AB$3, 0))), \"\")","v":""},{"$f":"IF(N302<>\"\", IF(INDEX('Full set Core Client Indicator'!$A$3:$AB$351, MATCH(Selection_Hide2!$A302, 'Full set Core Client Indicator'!$A$3:$A$351, 0), MATCH(Selection_Hide2!O$5, 'Full set Core Client Indicator'!$A$3:$AB$3, 0))=\"\", \"\",  INDEX('Full set Core Client Indicator'!$A$3:$AB$351, MATCH(Selection_Hide2!$A302, 'Full set Core Client Indicator'!$A$3:$A$351, 0), MATCH(Selection_Hide2!O$5, 'Full set Core Client Indicator'!$A$3:$AB$3, 0))), \"\")","v":""},{"$f":"IF(O302<>\"\", IF(INDEX('Full set Core Client Indicator'!$A$3:$AB$351, MATCH(Selection_Hide2!$A302, 'Full set Core Client Indicator'!$A$3:$A$351, 0), MATCH(Selection_Hide2!P$5, 'Full set Core Client Indicator'!$A$3:$AB$3, 0))=\"\", \"\",  INDEX('Full set Core Client Indicator'!$A$3:$AB$351, MATCH(Selection_Hide2!$A302, 'Full set Core Client Indicator'!$A$3:$A$351, 0), MATCH(Selection_Hide2!P$5, 'Full set Core Client Indicator'!$A$3:$AB$3, 0))), \"\")","v":""},{"$f":"IF(P302<>\"\", IF(INDEX('Full set Core Client Indicator'!$A$3:$AB$351, MATCH(Selection_Hide2!$A302, 'Full set Core Client Indicator'!$A$3:$A$351, 0), MATCH(Selection_Hide2!Q$5, 'Full set Core Client Indicator'!$A$3:$AB$3, 0))=\"\", \"\",  INDEX('Full set Core Client Indicator'!$A$3:$AB$351, MATCH(Selection_Hide2!$A302, 'Full set Core Client Indicator'!$A$3:$A$351, 0), MATCH(Selection_Hide2!Q$5, 'Full set Core Client Indicator'!$A$3:$AB$3, 0))), \"\")","v":""},{"$f":"IF(Q302<>\"\", IF(INDEX('Full set Core Client Indicator'!$A$3:$AB$351, MATCH(Selection_Hide2!$A302, 'Full set Core Client Indicator'!$A$3:$A$351, 0), MATCH(Selection_Hide2!R$5, 'Full set Core Client Indicator'!$A$3:$AB$3, 0))=\"\", \"\",  INDEX('Full set Core Client Indicator'!$A$3:$AB$351, MATCH(Selection_Hide2!$A302, 'Full set Core Client Indicator'!$A$3:$A$351, 0), MATCH(Selection_Hide2!R$5, 'Full set Core Client Indicator'!$A$3:$AB$3, 0))), \"\")","v":""},{"$f":"IF(R302<>\"\", IF(INDEX('Full set Core Client Indicator'!$A$3:$AB$351, MATCH(Selection_Hide2!$A302, 'Full set Core Client Indicator'!$A$3:$A$351, 0), MATCH(Selection_Hide2!S$5, 'Full set Core Client Indicator'!$A$3:$AB$3, 0))=\"\", \"\",  INDEX('Full set Core Client Indicator'!$A$3:$AB$351, MATCH(Selection_Hide2!$A302, 'Full set Core Client Indicator'!$A$3:$A$351, 0), MATCH(Selection_Hide2!S$5, 'Full set Core Client Indicator'!$A$3:$AB$3, 0))), \"\")","v":""},{"$f":"IF(S302<>\"\", IF(INDEX('Full set Core Client Indicator'!$A$3:$AB$351, MATCH(Selection_Hide2!$A302, 'Full set Core Client Indicator'!$A$3:$A$351, 0), MATCH(Selection_Hide2!T$5, 'Full set Core Client Indicator'!$A$3:$AB$3, 0))=\"\", \"\",  INDEX('Full set Core Client Indicator'!$A$3:$AB$351, MATCH(Selection_Hide2!$A302, 'Full set Core Client Indicator'!$A$3:$A$351, 0), MATCH(Selection_Hide2!T$5, 'Full set Core Client Indicator'!$A$3:$AB$3, 0))), \"\")","v":""},{"$f":"IF(T302<>\"\", IF(INDEX('Full set Core Client Indicator'!$A$3:$AB$351, MATCH(Selection_Hide2!$A302, 'Full set Core Client Indicator'!$A$3:$A$351, 0), MATCH(Selection_Hide2!U$5, 'Full set Core Client Indicator'!$A$3:$AB$3, 0))=\"\", \"\",  INDEX('Full set Core Client Indicator'!$A$3:$AB$351, MATCH(Selection_Hide2!$A302, 'Full set Core Client Indicator'!$A$3:$A$351, 0), MATCH(Selection_Hide2!U$5, 'Full set Core Client Indicator'!$A$3:$AB$3, 0))), \"\")","v":""},{"$f":"IF(U302<>\"\", IF(INDEX('Full set Core Client Indicator'!$A$3:$AB$351, MATCH(Selection_Hide2!$A302, 'Full set Core Client Indicator'!$A$3:$A$351, 0), MATCH(Selection_Hide2!V$5, 'Full set Core Client Indicator'!$A$3:$AB$3, 0))=\"\", \"\",  INDEX('Full set Core Client Indicator'!$A$3:$AB$351, MATCH(Selection_Hide2!$A302, 'Full set Core Client Indicator'!$A$3:$A$351, 0), MATCH(Selection_Hide2!V$5, 'Full set Core Client Indicator'!$A$3:$AB$3, 0))), \"\")","v":""},{"$f":"IF(V302<>\"\", IF(INDEX('Full set Core Client Indicator'!$A$3:$AB$351, MATCH(Selection_Hide2!$A302, 'Full set Core Client Indicator'!$A$3:$A$351, 0), MATCH(Selection_Hide2!W$5, 'Full set Core Client Indicator'!$A$3:$AB$3, 0))=\"\", \"\",  INDEX('Full set Core Client Indicator'!$A$3:$AB$351, MATCH(Selection_Hide2!$A302, 'Full set Core Client Indicator'!$A$3:$A$351, 0), MATCH(Selection_Hide2!W$5, 'Full set Core Client Indicator'!$A$3:$AB$3, 0))), \"\")","v":""},{"$f":"IF(W302<>\"\", IF(INDEX('Full set Core Client Indicator'!$A$3:$AB$351, MATCH(Selection_Hide2!$A302, 'Full set Core Client Indicator'!$A$3:$A$351, 0), MATCH(Selection_Hide2!X$5, 'Full set Core Client Indicator'!$A$3:$AB$3, 0))=\"\", \"\",  INDEX('Full set Core Client Indicator'!$A$3:$AB$351, MATCH(Selection_Hide2!$A302, 'Full set Core Client Indicator'!$A$3:$A$351, 0), MATCH(Selection_Hide2!X$5, 'Full set Core Client Indicator'!$A$3:$AB$3, 0))), \"\")","v":""},{"$f":"IF(X302<>\"\", IF(INDEX('Full set Core Client Indicator'!$A$3:$AB$351, MATCH(Selection_Hide2!$A302, 'Full set Core Client Indicator'!$A$3:$A$351, 0), MATCH(Selection_Hide2!Y$5, 'Full set Core Client Indicator'!$A$3:$AB$3, 0))=\"\", \"\",  INDEX('Full set Core Client Indicator'!$A$3:$AB$351, MATCH(Selection_Hide2!$A302, 'Full set Core Client Indicator'!$A$3:$A$351, 0), MATCH(Selection_Hide2!Y$5, 'Full set Core Client Indicator'!$A$3:$AB$3, 0))), \"\")","v":""},{"$f":"IF(Y302<>\"\", IF(INDEX('Full set Core Client Indicator'!$A$3:$AB$351, MATCH(Selection_Hide2!$A302, 'Full set Core Client Indicator'!$A$3:$A$351, 0), MATCH(Selection_Hide2!Z$5, 'Full set Core Client Indicator'!$A$3:$AB$3, 0))=\"\", \"\",  INDEX('Full set Core Client Indicator'!$A$3:$AB$351, MATCH(Selection_Hide2!$A302, 'Full set Core Client Indicator'!$A$3:$A$351, 0), MATCH(Selection_Hide2!Z$5, 'Full set Core Client Indicator'!$A$3:$AB$3, 0))), \"\")","v":""},{"$f":"IF(Z302<>\"\", IF(INDEX('Full set Core Client Indicator'!$A$3:$AB$351, MATCH(Selection_Hide2!$A302, 'Full set Core Client Indicator'!$A$3:$A$351, 0), MATCH(Selection_Hide2!AA$5, 'Full set Core Client Indicator'!$A$3:$AB$3, 0))=\"\", \"\",  INDEX('Full set Core Client Indicator'!$A$3:$AB$351, MATCH(Selection_Hide2!$A302, 'Full set Core Client Indicator'!$A$3:$A$351, 0), MATCH(Selection_Hide2!AA$5, 'Full set Core Client Indicator'!$A$3:$AB$3, 0))), \"\")","v":""},{"$f":"IF(AA302<>\"\", IF(INDEX('Full set Core Client Indicator'!$A$3:$AB$351, MATCH(Selection_Hide2!$A302, 'Full set Core Client Indicator'!$A$3:$A$351, 0), MATCH(Selection_Hide2!AB$5, 'Full set Core Client Indicator'!$A$3:$AB$3, 0))=\"\", \"\",  INDEX('Full set Core Client Indicator'!$A$3:$AB$351, MATCH(Selection_Hide2!$A302, 'Full set Core Client Indicator'!$A$3:$A$351, 0), MATCH(Selection_Hide2!AB$5, 'Full set Core Client Indicator'!$A$3:$AB$3, 0))), \"\")","v":""}]
[{"$f":"IF(AND(Selection_Hide1!C301<>0, Selection_Hide1!C301<>\"Grand Total\"), Selection_Hide1!C301, \"\")","v":""},{"$f":"IF(A303<>\"\", IF(INDEX('Full set Core Client Indicator'!$A$3:$AB$351, MATCH(Selection_Hide2!$A303, 'Full set Core Client Indicator'!$A$3:$A$351, 0), MATCH(Selection_Hide2!B$5, 'Full set Core Client Indicator'!$A$3:$AB$3, 0))=\"\", \"\",  INDEX('Full set Core Client Indicator'!$A$3:$AB$351, MATCH(Selection_Hide2!$A303, 'Full set Core Client Indicator'!$A$3:$A$351, 0), MATCH(Selection_Hide2!B$5, 'Full set Core Client Indicator'!$A$3:$AB$3, 0))), \"\")","v":""},{"$f":"IF(B303<>\"\", IF(INDEX('Full set Core Client Indicator'!$A$3:$AB$351, MATCH(Selection_Hide2!$A303, 'Full set Core Client Indicator'!$A$3:$A$351, 0), MATCH(Selection_Hide2!C$5, 'Full set Core Client Indicator'!$A$3:$AB$3, 0))=\"\", \"\",  INDEX('Full set Core Client Indicator'!$A$3:$AB$351, MATCH(Selection_Hide2!$A303, 'Full set Core Client Indicator'!$A$3:$A$351, 0), MATCH(Selection_Hide2!C$5, 'Full set Core Client Indicator'!$A$3:$AB$3, 0))), \"\")","v":""},{"$f":"IF(C303<>\"\", IF(INDEX('Full set Core Client Indicator'!$A$3:$AB$351, MATCH(Selection_Hide2!$A303, 'Full set Core Client Indicator'!$A$3:$A$351, 0), MATCH(Selection_Hide2!D$5, 'Full set Core Client Indicator'!$A$3:$AB$3, 0))=\"\", \"\",  INDEX('Full set Core Client Indicator'!$A$3:$AB$351, MATCH(Selection_Hide2!$A303, 'Full set Core Client Indicator'!$A$3:$A$351, 0), MATCH(Selection_Hide2!D$5, 'Full set Core Client Indicator'!$A$3:$AB$3, 0))), \"\")","v":""},{"$f":"IF(D303<>\"\", IF(INDEX('Full set Core Client Indicator'!$A$3:$AB$351, MATCH(Selection_Hide2!$A303, 'Full set Core Client Indicator'!$A$3:$A$351, 0), MATCH(Selection_Hide2!E$5, 'Full set Core Client Indicator'!$A$3:$AB$3, 0))=\"\", \"\",  INDEX('Full set Core Client Indicator'!$A$3:$AB$351, MATCH(Selection_Hide2!$A303, 'Full set Core Client Indicator'!$A$3:$A$351, 0), MATCH(Selection_Hide2!E$5, 'Full set Core Client Indicator'!$A$3:$AB$3, 0))), \"\")","v":""},{"$f":"IF(E303<>\"\", IF(INDEX('Full set Core Client Indicator'!$A$3:$AB$351, MATCH(Selection_Hide2!$A303, 'Full set Core Client Indicator'!$A$3:$A$351, 0), MATCH(Selection_Hide2!F$5, 'Full set Core Client Indicator'!$A$3:$AB$3, 0))=\"\", \"\",  INDEX('Full set Core Client Indicator'!$A$3:$AB$351, MATCH(Selection_Hide2!$A303, 'Full set Core Client Indicator'!$A$3:$A$351, 0), MATCH(Selection_Hide2!F$5, 'Full set Core Client Indicator'!$A$3:$AB$3, 0))), \"\")","v":""},{"$f":"IF(F303<>\"\", IF(INDEX('Full set Core Client Indicator'!$A$3:$AB$351, MATCH(Selection_Hide2!$A303, 'Full set Core Client Indicator'!$A$3:$A$351, 0), MATCH(Selection_Hide2!G$5, 'Full set Core Client Indicator'!$A$3:$AB$3, 0))=\"\", \"\",  INDEX('Full set Core Client Indicator'!$A$3:$AB$351, MATCH(Selection_Hide2!$A303, 'Full set Core Client Indicator'!$A$3:$A$351, 0), MATCH(Selection_Hide2!G$5, 'Full set Core Client Indicator'!$A$3:$AB$3, 0))), \"\")","v":""},{"$f":"IF(G303<>\"\", IF(INDEX('Full set Core Client Indicator'!$A$3:$AB$351, MATCH(Selection_Hide2!$A303, 'Full set Core Client Indicator'!$A$3:$A$351, 0), MATCH(Selection_Hide2!H$5, 'Full set Core Client Indicator'!$A$3:$AB$3, 0))=\"\", \"\",  INDEX('Full set Core Client Indicator'!$A$3:$AB$351, MATCH(Selection_Hide2!$A303, 'Full set Core Client Indicator'!$A$3:$A$351, 0), MATCH(Selection_Hide2!H$5, 'Full set Core Client Indicator'!$A$3:$AB$3, 0))), \"\")","v":""},{"$f":"IF(H303<>\"\", IF(INDEX('Full set Core Client Indicator'!$A$3:$AB$351, MATCH(Selection_Hide2!$A303, 'Full set Core Client Indicator'!$A$3:$A$351, 0), MATCH(Selection_Hide2!I$5, 'Full set Core Client Indicator'!$A$3:$AB$3, 0))=\"\", \"\",  INDEX('Full set Core Client Indicator'!$A$3:$AB$351, MATCH(Selection_Hide2!$A303, 'Full set Core Client Indicator'!$A$3:$A$351, 0), MATCH(Selection_Hide2!I$5, 'Full set Core Client Indicator'!$A$3:$AB$3, 0))), \"\")","v":""},{"$f":"IF(I303<>\"\", IF(INDEX('Full set Core Client Indicator'!$A$3:$AB$351, MATCH(Selection_Hide2!$A303, 'Full set Core Client Indicator'!$A$3:$A$351, 0), MATCH(Selection_Hide2!J$5, 'Full set Core Client Indicator'!$A$3:$AB$3, 0))=\"\", \"\",  INDEX('Full set Core Client Indicator'!$A$3:$AB$351, MATCH(Selection_Hide2!$A303, 'Full set Core Client Indicator'!$A$3:$A$351, 0), MATCH(Selection_Hide2!J$5, 'Full set Core Client Indicator'!$A$3:$AB$3, 0))), \"\")","v":""},{"$f":"IF(J303<>\"\", IF(INDEX('Full set Core Client Indicator'!$A$3:$AB$351, MATCH(Selection_Hide2!$A303, 'Full set Core Client Indicator'!$A$3:$A$351, 0), MATCH(Selection_Hide2!K$5, 'Full set Core Client Indicator'!$A$3:$AB$3, 0))=\"\", \"\",  INDEX('Full set Core Client Indicator'!$A$3:$AB$351, MATCH(Selection_Hide2!$A303, 'Full set Core Client Indicator'!$A$3:$A$351, 0), MATCH(Selection_Hide2!K$5, 'Full set Core Client Indicator'!$A$3:$AB$3, 0))), \"\")","v":""},{"$f":"IF(K303<>\"\", IF(INDEX('Full set Core Client Indicator'!$A$3:$AB$351, MATCH(Selection_Hide2!$A303, 'Full set Core Client Indicator'!$A$3:$A$351, 0), MATCH(Selection_Hide2!L$5, 'Full set Core Client Indicator'!$A$3:$AB$3, 0))=\"\", \"\",  INDEX('Full set Core Client Indicator'!$A$3:$AB$351, MATCH(Selection_Hide2!$A303, 'Full set Core Client Indicator'!$A$3:$A$351, 0), MATCH(Selection_Hide2!L$5, 'Full set Core Client Indicator'!$A$3:$AB$3, 0))), \"\")","v":""},{"$f":"IF(L303<>\"\", IF(INDEX('Full set Core Client Indicator'!$A$3:$AB$351, MATCH(Selection_Hide2!$A303, 'Full set Core Client Indicator'!$A$3:$A$351, 0), MATCH(Selection_Hide2!M$5, 'Full set Core Client Indicator'!$A$3:$AB$3, 0))=\"\", \"\",  INDEX('Full set Core Client Indicator'!$A$3:$AB$351, MATCH(Selection_Hide2!$A303, 'Full set Core Client Indicator'!$A$3:$A$351, 0), MATCH(Selection_Hide2!M$5, 'Full set Core Client Indicator'!$A$3:$AB$3, 0))), \"\")","v":""},{"$f":"IF(M303<>\"\", IF(INDEX('Full set Core Client Indicator'!$A$3:$AB$351, MATCH(Selection_Hide2!$A303, 'Full set Core Client Indicator'!$A$3:$A$351, 0), MATCH(Selection_Hide2!N$5, 'Full set Core Client Indicator'!$A$3:$AB$3, 0))=\"\", \"\",  INDEX('Full set Core Client Indicator'!$A$3:$AB$351, MATCH(Selection_Hide2!$A303, 'Full set Core Client Indicator'!$A$3:$A$351, 0), MATCH(Selection_Hide2!N$5, 'Full set Core Client Indicator'!$A$3:$AB$3, 0))), \"\")","v":""},{"$f":"IF(N303<>\"\", IF(INDEX('Full set Core Client Indicator'!$A$3:$AB$351, MATCH(Selection_Hide2!$A303, 'Full set Core Client Indicator'!$A$3:$A$351, 0), MATCH(Selection_Hide2!O$5, 'Full set Core Client Indicator'!$A$3:$AB$3, 0))=\"\", \"\",  INDEX('Full set Core Client Indicator'!$A$3:$AB$351, MATCH(Selection_Hide2!$A303, 'Full set Core Client Indicator'!$A$3:$A$351, 0), MATCH(Selection_Hide2!O$5, 'Full set Core Client Indicator'!$A$3:$AB$3, 0))), \"\")","v":""},{"$f":"IF(O303<>\"\", IF(INDEX('Full set Core Client Indicator'!$A$3:$AB$351, MATCH(Selection_Hide2!$A303, 'Full set Core Client Indicator'!$A$3:$A$351, 0), MATCH(Selection_Hide2!P$5, 'Full set Core Client Indicator'!$A$3:$AB$3, 0))=\"\", \"\",  INDEX('Full set Core Client Indicator'!$A$3:$AB$351, MATCH(Selection_Hide2!$A303, 'Full set Core Client Indicator'!$A$3:$A$351, 0), MATCH(Selection_Hide2!P$5, 'Full set Core Client Indicator'!$A$3:$AB$3, 0))), \"\")","v":""},{"$f":"IF(P303<>\"\", IF(INDEX('Full set Core Client Indicator'!$A$3:$AB$351, MATCH(Selection_Hide2!$A303, 'Full set Core Client Indicator'!$A$3:$A$351, 0), MATCH(Selection_Hide2!Q$5, 'Full set Core Client Indicator'!$A$3:$AB$3, 0))=\"\", \"\",  INDEX('Full set Core Client Indicator'!$A$3:$AB$351, MATCH(Selection_Hide2!$A303, 'Full set Core Client Indicator'!$A$3:$A$351, 0), MATCH(Selection_Hide2!Q$5, 'Full set Core Client Indicator'!$A$3:$AB$3, 0))), \"\")","v":""},{"$f":"IF(Q303<>\"\", IF(INDEX('Full set Core Client Indicator'!$A$3:$AB$351, MATCH(Selection_Hide2!$A303, 'Full set Core Client Indicator'!$A$3:$A$351, 0), MATCH(Selection_Hide2!R$5, 'Full set Core Client Indicator'!$A$3:$AB$3, 0))=\"\", \"\",  INDEX('Full set Core Client Indicator'!$A$3:$AB$351, MATCH(Selection_Hide2!$A303, 'Full set Core Client Indicator'!$A$3:$A$351, 0), MATCH(Selection_Hide2!R$5, 'Full set Core Client Indicator'!$A$3:$AB$3, 0))), \"\")","v":""},{"$f":"IF(R303<>\"\", IF(INDEX('Full set Core Client Indicator'!$A$3:$AB$351, MATCH(Selection_Hide2!$A303, 'Full set Core Client Indicator'!$A$3:$A$351, 0), MATCH(Selection_Hide2!S$5, 'Full set Core Client Indicator'!$A$3:$AB$3, 0))=\"\", \"\",  INDEX('Full set Core Client Indicator'!$A$3:$AB$351, MATCH(Selection_Hide2!$A303, 'Full set Core Client Indicator'!$A$3:$A$351, 0), MATCH(Selection_Hide2!S$5, 'Full set Core Client Indicator'!$A$3:$AB$3, 0))), \"\")","v":""},{"$f":"IF(S303<>\"\", IF(INDEX('Full set Core Client Indicator'!$A$3:$AB$351, MATCH(Selection_Hide2!$A303, 'Full set Core Client Indicator'!$A$3:$A$351, 0), MATCH(Selection_Hide2!T$5, 'Full set Core Client Indicator'!$A$3:$AB$3, 0))=\"\", \"\",  INDEX('Full set Core Client Indicator'!$A$3:$AB$351, MATCH(Selection_Hide2!$A303, 'Full set Core Client Indicator'!$A$3:$A$351, 0), MATCH(Selection_Hide2!T$5, 'Full set Core Client Indicator'!$A$3:$AB$3, 0))), \"\")","v":""},{"$f":"IF(T303<>\"\", IF(INDEX('Full set Core Client Indicator'!$A$3:$AB$351, MATCH(Selection_Hide2!$A303, 'Full set Core Client Indicator'!$A$3:$A$351, 0), MATCH(Selection_Hide2!U$5, 'Full set Core Client Indicator'!$A$3:$AB$3, 0))=\"\", \"\",  INDEX('Full set Core Client Indicator'!$A$3:$AB$351, MATCH(Selection_Hide2!$A303, 'Full set Core Client Indicator'!$A$3:$A$351, 0), MATCH(Selection_Hide2!U$5, 'Full set Core Client Indicator'!$A$3:$AB$3, 0))), \"\")","v":""},{"$f":"IF(U303<>\"\", IF(INDEX('Full set Core Client Indicator'!$A$3:$AB$351, MATCH(Selection_Hide2!$A303, 'Full set Core Client Indicator'!$A$3:$A$351, 0), MATCH(Selection_Hide2!V$5, 'Full set Core Client Indicator'!$A$3:$AB$3, 0))=\"\", \"\",  INDEX('Full set Core Client Indicator'!$A$3:$AB$351, MATCH(Selection_Hide2!$A303, 'Full set Core Client Indicator'!$A$3:$A$351, 0), MATCH(Selection_Hide2!V$5, 'Full set Core Client Indicator'!$A$3:$AB$3, 0))), \"\")","v":""},{"$f":"IF(V303<>\"\", IF(INDEX('Full set Core Client Indicator'!$A$3:$AB$351, MATCH(Selection_Hide2!$A303, 'Full set Core Client Indicator'!$A$3:$A$351, 0), MATCH(Selection_Hide2!W$5, 'Full set Core Client Indicator'!$A$3:$AB$3, 0))=\"\", \"\",  INDEX('Full set Core Client Indicator'!$A$3:$AB$351, MATCH(Selection_Hide2!$A303, 'Full set Core Client Indicator'!$A$3:$A$351, 0), MATCH(Selection_Hide2!W$5, 'Full set Core Client Indicator'!$A$3:$AB$3, 0))), \"\")","v":""},{"$f":"IF(W303<>\"\", IF(INDEX('Full set Core Client Indicator'!$A$3:$AB$351, MATCH(Selection_Hide2!$A303, 'Full set Core Client Indicator'!$A$3:$A$351, 0), MATCH(Selection_Hide2!X$5, 'Full set Core Client Indicator'!$A$3:$AB$3, 0))=\"\", \"\",  INDEX('Full set Core Client Indicator'!$A$3:$AB$351, MATCH(Selection_Hide2!$A303, 'Full set Core Client Indicator'!$A$3:$A$351, 0), MATCH(Selection_Hide2!X$5, 'Full set Core Client Indicator'!$A$3:$AB$3, 0))), \"\")","v":""},{"$f":"IF(X303<>\"\", IF(INDEX('Full set Core Client Indicator'!$A$3:$AB$351, MATCH(Selection_Hide2!$A303, 'Full set Core Client Indicator'!$A$3:$A$351, 0), MATCH(Selection_Hide2!Y$5, 'Full set Core Client Indicator'!$A$3:$AB$3, 0))=\"\", \"\",  INDEX('Full set Core Client Indicator'!$A$3:$AB$351, MATCH(Selection_Hide2!$A303, 'Full set Core Client Indicator'!$A$3:$A$351, 0), MATCH(Selection_Hide2!Y$5, 'Full set Core Client Indicator'!$A$3:$AB$3, 0))), \"\")","v":""},{"$f":"IF(Y303<>\"\", IF(INDEX('Full set Core Client Indicator'!$A$3:$AB$351, MATCH(Selection_Hide2!$A303, 'Full set Core Client Indicator'!$A$3:$A$351, 0), MATCH(Selection_Hide2!Z$5, 'Full set Core Client Indicator'!$A$3:$AB$3, 0))=\"\", \"\",  INDEX('Full set Core Client Indicator'!$A$3:$AB$351, MATCH(Selection_Hide2!$A303, 'Full set Core Client Indicator'!$A$3:$A$351, 0), MATCH(Selection_Hide2!Z$5, 'Full set Core Client Indicator'!$A$3:$AB$3, 0))), \"\")","v":""},{"$f":"IF(Z303<>\"\", IF(INDEX('Full set Core Client Indicator'!$A$3:$AB$351, MATCH(Selection_Hide2!$A303, 'Full set Core Client Indicator'!$A$3:$A$351, 0), MATCH(Selection_Hide2!AA$5, 'Full set Core Client Indicator'!$A$3:$AB$3, 0))=\"\", \"\",  INDEX('Full set Core Client Indicator'!$A$3:$AB$351, MATCH(Selection_Hide2!$A303, 'Full set Core Client Indicator'!$A$3:$A$351, 0), MATCH(Selection_Hide2!AA$5, 'Full set Core Client Indicator'!$A$3:$AB$3, 0))), \"\")","v":""},{"$f":"IF(AA303<>\"\", IF(INDEX('Full set Core Client Indicator'!$A$3:$AB$351, MATCH(Selection_Hide2!$A303, 'Full set Core Client Indicator'!$A$3:$A$351, 0), MATCH(Selection_Hide2!AB$5, 'Full set Core Client Indicator'!$A$3:$AB$3, 0))=\"\", \"\",  INDEX('Full set Core Client Indicator'!$A$3:$AB$351, MATCH(Selection_Hide2!$A303, 'Full set Core Client Indicator'!$A$3:$A$351, 0), MATCH(Selection_Hide2!AB$5, 'Full set Core Client Indicator'!$A$3:$AB$3, 0))), \"\")","v":""}]
[{"$f":"IF(AND(Selection_Hide1!C302<>0, Selection_Hide1!C302<>\"Grand Total\"), Selection_Hide1!C302, \"\")","v":""},{"$f":"IF(A304<>\"\", IF(INDEX('Full set Core Client Indicator'!$A$3:$AB$351, MATCH(Selection_Hide2!$A304, 'Full set Core Client Indicator'!$A$3:$A$351, 0), MATCH(Selection_Hide2!B$5, 'Full set Core Client Indicator'!$A$3:$AB$3, 0))=\"\", \"\",  INDEX('Full set Core Client Indicator'!$A$3:$AB$351, MATCH(Selection_Hide2!$A304, 'Full set Core Client Indicator'!$A$3:$A$351, 0), MATCH(Selection_Hide2!B$5, 'Full set Core Client Indicator'!$A$3:$AB$3, 0))), \"\")","v":""},{"$f":"IF(B304<>\"\", IF(INDEX('Full set Core Client Indicator'!$A$3:$AB$351, MATCH(Selection_Hide2!$A304, 'Full set Core Client Indicator'!$A$3:$A$351, 0), MATCH(Selection_Hide2!C$5, 'Full set Core Client Indicator'!$A$3:$AB$3, 0))=\"\", \"\",  INDEX('Full set Core Client Indicator'!$A$3:$AB$351, MATCH(Selection_Hide2!$A304, 'Full set Core Client Indicator'!$A$3:$A$351, 0), MATCH(Selection_Hide2!C$5, 'Full set Core Client Indicator'!$A$3:$AB$3, 0))), \"\")","v":""},{"$f":"IF(C304<>\"\", IF(INDEX('Full set Core Client Indicator'!$A$3:$AB$351, MATCH(Selection_Hide2!$A304, 'Full set Core Client Indicator'!$A$3:$A$351, 0), MATCH(Selection_Hide2!D$5, 'Full set Core Client Indicator'!$A$3:$AB$3, 0))=\"\", \"\",  INDEX('Full set Core Client Indicator'!$A$3:$AB$351, MATCH(Selection_Hide2!$A304, 'Full set Core Client Indicator'!$A$3:$A$351, 0), MATCH(Selection_Hide2!D$5, 'Full set Core Client Indicator'!$A$3:$AB$3, 0))), \"\")","v":""},{"$f":"IF(D304<>\"\", IF(INDEX('Full set Core Client Indicator'!$A$3:$AB$351, MATCH(Selection_Hide2!$A304, 'Full set Core Client Indicator'!$A$3:$A$351, 0), MATCH(Selection_Hide2!E$5, 'Full set Core Client Indicator'!$A$3:$AB$3, 0))=\"\", \"\",  INDEX('Full set Core Client Indicator'!$A$3:$AB$351, MATCH(Selection_Hide2!$A304, 'Full set Core Client Indicator'!$A$3:$A$351, 0), MATCH(Selection_Hide2!E$5, 'Full set Core Client Indicator'!$A$3:$AB$3, 0))), \"\")","v":""},{"$f":"IF(E304<>\"\", IF(INDEX('Full set Core Client Indicator'!$A$3:$AB$351, MATCH(Selection_Hide2!$A304, 'Full set Core Client Indicator'!$A$3:$A$351, 0), MATCH(Selection_Hide2!F$5, 'Full set Core Client Indicator'!$A$3:$AB$3, 0))=\"\", \"\",  INDEX('Full set Core Client Indicator'!$A$3:$AB$351, MATCH(Selection_Hide2!$A304, 'Full set Core Client Indicator'!$A$3:$A$351, 0), MATCH(Selection_Hide2!F$5, 'Full set Core Client Indicator'!$A$3:$AB$3, 0))), \"\")","v":""},{"$f":"IF(F304<>\"\", IF(INDEX('Full set Core Client Indicator'!$A$3:$AB$351, MATCH(Selection_Hide2!$A304, 'Full set Core Client Indicator'!$A$3:$A$351, 0), MATCH(Selection_Hide2!G$5, 'Full set Core Client Indicator'!$A$3:$AB$3, 0))=\"\", \"\",  INDEX('Full set Core Client Indicator'!$A$3:$AB$351, MATCH(Selection_Hide2!$A304, 'Full set Core Client Indicator'!$A$3:$A$351, 0), MATCH(Selection_Hide2!G$5, 'Full set Core Client Indicator'!$A$3:$AB$3, 0))), \"\")","v":""},{"$f":"IF(G304<>\"\", IF(INDEX('Full set Core Client Indicator'!$A$3:$AB$351, MATCH(Selection_Hide2!$A304, 'Full set Core Client Indicator'!$A$3:$A$351, 0), MATCH(Selection_Hide2!H$5, 'Full set Core Client Indicator'!$A$3:$AB$3, 0))=\"\", \"\",  INDEX('Full set Core Client Indicator'!$A$3:$AB$351, MATCH(Selection_Hide2!$A304, 'Full set Core Client Indicator'!$A$3:$A$351, 0), MATCH(Selection_Hide2!H$5, 'Full set Core Client Indicator'!$A$3:$AB$3, 0))), \"\")","v":""},{"$f":"IF(H304<>\"\", IF(INDEX('Full set Core Client Indicator'!$A$3:$AB$351, MATCH(Selection_Hide2!$A304, 'Full set Core Client Indicator'!$A$3:$A$351, 0), MATCH(Selection_Hide2!I$5, 'Full set Core Client Indicator'!$A$3:$AB$3, 0))=\"\", \"\",  INDEX('Full set Core Client Indicator'!$A$3:$AB$351, MATCH(Selection_Hide2!$A304, 'Full set Core Client Indicator'!$A$3:$A$351, 0), MATCH(Selection_Hide2!I$5, 'Full set Core Client Indicator'!$A$3:$AB$3, 0))), \"\")","v":""},{"$f":"IF(I304<>\"\", IF(INDEX('Full set Core Client Indicator'!$A$3:$AB$351, MATCH(Selection_Hide2!$A304, 'Full set Core Client Indicator'!$A$3:$A$351, 0), MATCH(Selection_Hide2!J$5, 'Full set Core Client Indicator'!$A$3:$AB$3, 0))=\"\", \"\",  INDEX('Full set Core Client Indicator'!$A$3:$AB$351, MATCH(Selection_Hide2!$A304, 'Full set Core Client Indicator'!$A$3:$A$351, 0), MATCH(Selection_Hide2!J$5, 'Full set Core Client Indicator'!$A$3:$AB$3, 0))), \"\")","v":""},{"$f":"IF(J304<>\"\", IF(INDEX('Full set Core Client Indicator'!$A$3:$AB$351, MATCH(Selection_Hide2!$A304, 'Full set Core Client Indicator'!$A$3:$A$351, 0), MATCH(Selection_Hide2!K$5, 'Full set Core Client Indicator'!$A$3:$AB$3, 0))=\"\", \"\",  INDEX('Full set Core Client Indicator'!$A$3:$AB$351, MATCH(Selection_Hide2!$A304, 'Full set Core Client Indicator'!$A$3:$A$351, 0), MATCH(Selection_Hide2!K$5, 'Full set Core Client Indicator'!$A$3:$AB$3, 0))), \"\")","v":""},{"$f":"IF(K304<>\"\", IF(INDEX('Full set Core Client Indicator'!$A$3:$AB$351, MATCH(Selection_Hide2!$A304, 'Full set Core Client Indicator'!$A$3:$A$351, 0), MATCH(Selection_Hide2!L$5, 'Full set Core Client Indicator'!$A$3:$AB$3, 0))=\"\", \"\",  INDEX('Full set Core Client Indicator'!$A$3:$AB$351, MATCH(Selection_Hide2!$A304, 'Full set Core Client Indicator'!$A$3:$A$351, 0), MATCH(Selection_Hide2!L$5, 'Full set Core Client Indicator'!$A$3:$AB$3, 0))), \"\")","v":""},{"$f":"IF(L304<>\"\", IF(INDEX('Full set Core Client Indicator'!$A$3:$AB$351, MATCH(Selection_Hide2!$A304, 'Full set Core Client Indicator'!$A$3:$A$351, 0), MATCH(Selection_Hide2!M$5, 'Full set Core Client Indicator'!$A$3:$AB$3, 0))=\"\", \"\",  INDEX('Full set Core Client Indicator'!$A$3:$AB$351, MATCH(Selection_Hide2!$A304, 'Full set Core Client Indicator'!$A$3:$A$351, 0), MATCH(Selection_Hide2!M$5, 'Full set Core Client Indicator'!$A$3:$AB$3, 0))), \"\")","v":""},{"$f":"IF(M304<>\"\", IF(INDEX('Full set Core Client Indicator'!$A$3:$AB$351, MATCH(Selection_Hide2!$A304, 'Full set Core Client Indicator'!$A$3:$A$351, 0), MATCH(Selection_Hide2!N$5, 'Full set Core Client Indicator'!$A$3:$AB$3, 0))=\"\", \"\",  INDEX('Full set Core Client Indicator'!$A$3:$AB$351, MATCH(Selection_Hide2!$A304, 'Full set Core Client Indicator'!$A$3:$A$351, 0), MATCH(Selection_Hide2!N$5, 'Full set Core Client Indicator'!$A$3:$AB$3, 0))), \"\")","v":""},{"$f":"IF(N304<>\"\", IF(INDEX('Full set Core Client Indicator'!$A$3:$AB$351, MATCH(Selection_Hide2!$A304, 'Full set Core Client Indicator'!$A$3:$A$351, 0), MATCH(Selection_Hide2!O$5, 'Full set Core Client Indicator'!$A$3:$AB$3, 0))=\"\", \"\",  INDEX('Full set Core Client Indicator'!$A$3:$AB$351, MATCH(Selection_Hide2!$A304, 'Full set Core Client Indicator'!$A$3:$A$351, 0), MATCH(Selection_Hide2!O$5, 'Full set Core Client Indicator'!$A$3:$AB$3, 0))), \"\")","v":""},{"$f":"IF(O304<>\"\", IF(INDEX('Full set Core Client Indicator'!$A$3:$AB$351, MATCH(Selection_Hide2!$A304, 'Full set Core Client Indicator'!$A$3:$A$351, 0), MATCH(Selection_Hide2!P$5, 'Full set Core Client Indicator'!$A$3:$AB$3, 0))=\"\", \"\",  INDEX('Full set Core Client Indicator'!$A$3:$AB$351, MATCH(Selection_Hide2!$A304, 'Full set Core Client Indicator'!$A$3:$A$351, 0), MATCH(Selection_Hide2!P$5, 'Full set Core Client Indicator'!$A$3:$AB$3, 0))), \"\")","v":""},{"$f":"IF(P304<>\"\", IF(INDEX('Full set Core Client Indicator'!$A$3:$AB$351, MATCH(Selection_Hide2!$A304, 'Full set Core Client Indicator'!$A$3:$A$351, 0), MATCH(Selection_Hide2!Q$5, 'Full set Core Client Indicator'!$A$3:$AB$3, 0))=\"\", \"\",  INDEX('Full set Core Client Indicator'!$A$3:$AB$351, MATCH(Selection_Hide2!$A304, 'Full set Core Client Indicator'!$A$3:$A$351, 0), MATCH(Selection_Hide2!Q$5, 'Full set Core Client Indicator'!$A$3:$AB$3, 0))), \"\")","v":""},{"$f":"IF(Q304<>\"\", IF(INDEX('Full set Core Client Indicator'!$A$3:$AB$351, MATCH(Selection_Hide2!$A304, 'Full set Core Client Indicator'!$A$3:$A$351, 0), MATCH(Selection_Hide2!R$5, 'Full set Core Client Indicator'!$A$3:$AB$3, 0))=\"\", \"\",  INDEX('Full set Core Client Indicator'!$A$3:$AB$351, MATCH(Selection_Hide2!$A304, 'Full set Core Client Indicator'!$A$3:$A$351, 0), MATCH(Selection_Hide2!R$5, 'Full set Core Client Indicator'!$A$3:$AB$3, 0))), \"\")","v":""},{"$f":"IF(R304<>\"\", IF(INDEX('Full set Core Client Indicator'!$A$3:$AB$351, MATCH(Selection_Hide2!$A304, 'Full set Core Client Indicator'!$A$3:$A$351, 0), MATCH(Selection_Hide2!S$5, 'Full set Core Client Indicator'!$A$3:$AB$3, 0))=\"\", \"\",  INDEX('Full set Core Client Indicator'!$A$3:$AB$351, MATCH(Selection_Hide2!$A304, 'Full set Core Client Indicator'!$A$3:$A$351, 0), MATCH(Selection_Hide2!S$5, 'Full set Core Client Indicator'!$A$3:$AB$3, 0))), \"\")","v":""},{"$f":"IF(S304<>\"\", IF(INDEX('Full set Core Client Indicator'!$A$3:$AB$351, MATCH(Selection_Hide2!$A304, 'Full set Core Client Indicator'!$A$3:$A$351, 0), MATCH(Selection_Hide2!T$5, 'Full set Core Client Indicator'!$A$3:$AB$3, 0))=\"\", \"\",  INDEX('Full set Core Client Indicator'!$A$3:$AB$351, MATCH(Selection_Hide2!$A304, 'Full set Core Client Indicator'!$A$3:$A$351, 0), MATCH(Selection_Hide2!T$5, 'Full set Core Client Indicator'!$A$3:$AB$3, 0))), \"\")","v":""},{"$f":"IF(T304<>\"\", IF(INDEX('Full set Core Client Indicator'!$A$3:$AB$351, MATCH(Selection_Hide2!$A304, 'Full set Core Client Indicator'!$A$3:$A$351, 0), MATCH(Selection_Hide2!U$5, 'Full set Core Client Indicator'!$A$3:$AB$3, 0))=\"\", \"\",  INDEX('Full set Core Client Indicator'!$A$3:$AB$351, MATCH(Selection_Hide2!$A304, 'Full set Core Client Indicator'!$A$3:$A$351, 0), MATCH(Selection_Hide2!U$5, 'Full set Core Client Indicator'!$A$3:$AB$3, 0))), \"\")","v":""},{"$f":"IF(U304<>\"\", IF(INDEX('Full set Core Client Indicator'!$A$3:$AB$351, MATCH(Selection_Hide2!$A304, 'Full set Core Client Indicator'!$A$3:$A$351, 0), MATCH(Selection_Hide2!V$5, 'Full set Core Client Indicator'!$A$3:$AB$3, 0))=\"\", \"\",  INDEX('Full set Core Client Indicator'!$A$3:$AB$351, MATCH(Selection_Hide2!$A304, 'Full set Core Client Indicator'!$A$3:$A$351, 0), MATCH(Selection_Hide2!V$5, 'Full set Core Client Indicator'!$A$3:$AB$3, 0))), \"\")","v":""},{"$f":"IF(V304<>\"\", IF(INDEX('Full set Core Client Indicator'!$A$3:$AB$351, MATCH(Selection_Hide2!$A304, 'Full set Core Client Indicator'!$A$3:$A$351, 0), MATCH(Selection_Hide2!W$5, 'Full set Core Client Indicator'!$A$3:$AB$3, 0))=\"\", \"\",  INDEX('Full set Core Client Indicator'!$A$3:$AB$351, MATCH(Selection_Hide2!$A304, 'Full set Core Client Indicator'!$A$3:$A$351, 0), MATCH(Selection_Hide2!W$5, 'Full set Core Client Indicator'!$A$3:$AB$3, 0))), \"\")","v":""},{"$f":"IF(W304<>\"\", IF(INDEX('Full set Core Client Indicator'!$A$3:$AB$351, MATCH(Selection_Hide2!$A304, 'Full set Core Client Indicator'!$A$3:$A$351, 0), MATCH(Selection_Hide2!X$5, 'Full set Core Client Indicator'!$A$3:$AB$3, 0))=\"\", \"\",  INDEX('Full set Core Client Indicator'!$A$3:$AB$351, MATCH(Selection_Hide2!$A304, 'Full set Core Client Indicator'!$A$3:$A$351, 0), MATCH(Selection_Hide2!X$5, 'Full set Core Client Indicator'!$A$3:$AB$3, 0))), \"\")","v":""},{"$f":"IF(X304<>\"\", IF(INDEX('Full set Core Client Indicator'!$A$3:$AB$351, MATCH(Selection_Hide2!$A304, 'Full set Core Client Indicator'!$A$3:$A$351, 0), MATCH(Selection_Hide2!Y$5, 'Full set Core Client Indicator'!$A$3:$AB$3, 0))=\"\", \"\",  INDEX('Full set Core Client Indicator'!$A$3:$AB$351, MATCH(Selection_Hide2!$A304, 'Full set Core Client Indicator'!$A$3:$A$351, 0), MATCH(Selection_Hide2!Y$5, 'Full set Core Client Indicator'!$A$3:$AB$3, 0))), \"\")","v":""},{"$f":"IF(Y304<>\"\", IF(INDEX('Full set Core Client Indicator'!$A$3:$AB$351, MATCH(Selection_Hide2!$A304, 'Full set Core Client Indicator'!$A$3:$A$351, 0), MATCH(Selection_Hide2!Z$5, 'Full set Core Client Indicator'!$A$3:$AB$3, 0))=\"\", \"\",  INDEX('Full set Core Client Indicator'!$A$3:$AB$351, MATCH(Selection_Hide2!$A304, 'Full set Core Client Indicator'!$A$3:$A$351, 0), MATCH(Selection_Hide2!Z$5, 'Full set Core Client Indicator'!$A$3:$AB$3, 0))), \"\")","v":""},{"$f":"IF(Z304<>\"\", IF(INDEX('Full set Core Client Indicator'!$A$3:$AB$351, MATCH(Selection_Hide2!$A304, 'Full set Core Client Indicator'!$A$3:$A$351, 0), MATCH(Selection_Hide2!AA$5, 'Full set Core Client Indicator'!$A$3:$AB$3, 0))=\"\", \"\",  INDEX('Full set Core Client Indicator'!$A$3:$AB$351, MATCH(Selection_Hide2!$A304, 'Full set Core Client Indicator'!$A$3:$A$351, 0), MATCH(Selection_Hide2!AA$5, 'Full set Core Client Indicator'!$A$3:$AB$3, 0))), \"\")","v":""},{"$f":"IF(AA304<>\"\", IF(INDEX('Full set Core Client Indicator'!$A$3:$AB$351, MATCH(Selection_Hide2!$A304, 'Full set Core Client Indicator'!$A$3:$A$351, 0), MATCH(Selection_Hide2!AB$5, 'Full set Core Client Indicator'!$A$3:$AB$3, 0))=\"\", \"\",  INDEX('Full set Core Client Indicator'!$A$3:$AB$351, MATCH(Selection_Hide2!$A304, 'Full set Core Client Indicator'!$A$3:$A$351, 0), MATCH(Selection_Hide2!AB$5, 'Full set Core Client Indicator'!$A$3:$AB$3, 0))), \"\")","v":""}]
[{"$f":"IF(AND(Selection_Hide1!C303<>0, Selection_Hide1!C303<>\"Grand Total\"), Selection_Hide1!C303, \"\")","v":""},{"$f":"IF(A305<>\"\", IF(INDEX('Full set Core Client Indicator'!$A$3:$AB$351, MATCH(Selection_Hide2!$A305, 'Full set Core Client Indicator'!$A$3:$A$351, 0), MATCH(Selection_Hide2!B$5, 'Full set Core Client Indicator'!$A$3:$AB$3, 0))=\"\", \"\",  INDEX('Full set Core Client Indicator'!$A$3:$AB$351, MATCH(Selection_Hide2!$A305, 'Full set Core Client Indicator'!$A$3:$A$351, 0), MATCH(Selection_Hide2!B$5, 'Full set Core Client Indicator'!$A$3:$AB$3, 0))), \"\")","v":""},{"$f":"IF(B305<>\"\", IF(INDEX('Full set Core Client Indicator'!$A$3:$AB$351, MATCH(Selection_Hide2!$A305, 'Full set Core Client Indicator'!$A$3:$A$351, 0), MATCH(Selection_Hide2!C$5, 'Full set Core Client Indicator'!$A$3:$AB$3, 0))=\"\", \"\",  INDEX('Full set Core Client Indicator'!$A$3:$AB$351, MATCH(Selection_Hide2!$A305, 'Full set Core Client Indicator'!$A$3:$A$351, 0), MATCH(Selection_Hide2!C$5, 'Full set Core Client Indicator'!$A$3:$AB$3, 0))), \"\")","v":""},{"$f":"IF(C305<>\"\", IF(INDEX('Full set Core Client Indicator'!$A$3:$AB$351, MATCH(Selection_Hide2!$A305, 'Full set Core Client Indicator'!$A$3:$A$351, 0), MATCH(Selection_Hide2!D$5, 'Full set Core Client Indicator'!$A$3:$AB$3, 0))=\"\", \"\",  INDEX('Full set Core Client Indicator'!$A$3:$AB$351, MATCH(Selection_Hide2!$A305, 'Full set Core Client Indicator'!$A$3:$A$351, 0), MATCH(Selection_Hide2!D$5, 'Full set Core Client Indicator'!$A$3:$AB$3, 0))), \"\")","v":""},{"$f":"IF(D305<>\"\", IF(INDEX('Full set Core Client Indicator'!$A$3:$AB$351, MATCH(Selection_Hide2!$A305, 'Full set Core Client Indicator'!$A$3:$A$351, 0), MATCH(Selection_Hide2!E$5, 'Full set Core Client Indicator'!$A$3:$AB$3, 0))=\"\", \"\",  INDEX('Full set Core Client Indicator'!$A$3:$AB$351, MATCH(Selection_Hide2!$A305, 'Full set Core Client Indicator'!$A$3:$A$351, 0), MATCH(Selection_Hide2!E$5, 'Full set Core Client Indicator'!$A$3:$AB$3, 0))), \"\")","v":""},{"$f":"IF(E305<>\"\", IF(INDEX('Full set Core Client Indicator'!$A$3:$AB$351, MATCH(Selection_Hide2!$A305, 'Full set Core Client Indicator'!$A$3:$A$351, 0), MATCH(Selection_Hide2!F$5, 'Full set Core Client Indicator'!$A$3:$AB$3, 0))=\"\", \"\",  INDEX('Full set Core Client Indicator'!$A$3:$AB$351, MATCH(Selection_Hide2!$A305, 'Full set Core Client Indicator'!$A$3:$A$351, 0), MATCH(Selection_Hide2!F$5, 'Full set Core Client Indicator'!$A$3:$AB$3, 0))), \"\")","v":""},{"$f":"IF(F305<>\"\", IF(INDEX('Full set Core Client Indicator'!$A$3:$AB$351, MATCH(Selection_Hide2!$A305, 'Full set Core Client Indicator'!$A$3:$A$351, 0), MATCH(Selection_Hide2!G$5, 'Full set Core Client Indicator'!$A$3:$AB$3, 0))=\"\", \"\",  INDEX('Full set Core Client Indicator'!$A$3:$AB$351, MATCH(Selection_Hide2!$A305, 'Full set Core Client Indicator'!$A$3:$A$351, 0), MATCH(Selection_Hide2!G$5, 'Full set Core Client Indicator'!$A$3:$AB$3, 0))), \"\")","v":""},{"$f":"IF(G305<>\"\", IF(INDEX('Full set Core Client Indicator'!$A$3:$AB$351, MATCH(Selection_Hide2!$A305, 'Full set Core Client Indicator'!$A$3:$A$351, 0), MATCH(Selection_Hide2!H$5, 'Full set Core Client Indicator'!$A$3:$AB$3, 0))=\"\", \"\",  INDEX('Full set Core Client Indicator'!$A$3:$AB$351, MATCH(Selection_Hide2!$A305, 'Full set Core Client Indicator'!$A$3:$A$351, 0), MATCH(Selection_Hide2!H$5, 'Full set Core Client Indicator'!$A$3:$AB$3, 0))), \"\")","v":""},{"$f":"IF(H305<>\"\", IF(INDEX('Full set Core Client Indicator'!$A$3:$AB$351, MATCH(Selection_Hide2!$A305, 'Full set Core Client Indicator'!$A$3:$A$351, 0), MATCH(Selection_Hide2!I$5, 'Full set Core Client Indicator'!$A$3:$AB$3, 0))=\"\", \"\",  INDEX('Full set Core Client Indicator'!$A$3:$AB$351, MATCH(Selection_Hide2!$A305, 'Full set Core Client Indicator'!$A$3:$A$351, 0), MATCH(Selection_Hide2!I$5, 'Full set Core Client Indicator'!$A$3:$AB$3, 0))), \"\")","v":""},{"$f":"IF(I305<>\"\", IF(INDEX('Full set Core Client Indicator'!$A$3:$AB$351, MATCH(Selection_Hide2!$A305, 'Full set Core Client Indicator'!$A$3:$A$351, 0), MATCH(Selection_Hide2!J$5, 'Full set Core Client Indicator'!$A$3:$AB$3, 0))=\"\", \"\",  INDEX('Full set Core Client Indicator'!$A$3:$AB$351, MATCH(Selection_Hide2!$A305, 'Full set Core Client Indicator'!$A$3:$A$351, 0), MATCH(Selection_Hide2!J$5, 'Full set Core Client Indicator'!$A$3:$AB$3, 0))), \"\")","v":""},{"$f":"IF(J305<>\"\", IF(INDEX('Full set Core Client Indicator'!$A$3:$AB$351, MATCH(Selection_Hide2!$A305, 'Full set Core Client Indicator'!$A$3:$A$351, 0), MATCH(Selection_Hide2!K$5, 'Full set Core Client Indicator'!$A$3:$AB$3, 0))=\"\", \"\",  INDEX('Full set Core Client Indicator'!$A$3:$AB$351, MATCH(Selection_Hide2!$A305, 'Full set Core Client Indicator'!$A$3:$A$351, 0), MATCH(Selection_Hide2!K$5, 'Full set Core Client Indicator'!$A$3:$AB$3, 0))), \"\")","v":""},{"$f":"IF(K305<>\"\", IF(INDEX('Full set Core Client Indicator'!$A$3:$AB$351, MATCH(Selection_Hide2!$A305, 'Full set Core Client Indicator'!$A$3:$A$351, 0), MATCH(Selection_Hide2!L$5, 'Full set Core Client Indicator'!$A$3:$AB$3, 0))=\"\", \"\",  INDEX('Full set Core Client Indicator'!$A$3:$AB$351, MATCH(Selection_Hide2!$A305, 'Full set Core Client Indicator'!$A$3:$A$351, 0), MATCH(Selection_Hide2!L$5, 'Full set Core Client Indicator'!$A$3:$AB$3, 0))), \"\")","v":""},{"$f":"IF(L305<>\"\", IF(INDEX('Full set Core Client Indicator'!$A$3:$AB$351, MATCH(Selection_Hide2!$A305, 'Full set Core Client Indicator'!$A$3:$A$351, 0), MATCH(Selection_Hide2!M$5, 'Full set Core Client Indicator'!$A$3:$AB$3, 0))=\"\", \"\",  INDEX('Full set Core Client Indicator'!$A$3:$AB$351, MATCH(Selection_Hide2!$A305, 'Full set Core Client Indicator'!$A$3:$A$351, 0), MATCH(Selection_Hide2!M$5, 'Full set Core Client Indicator'!$A$3:$AB$3, 0))), \"\")","v":""},{"$f":"IF(M305<>\"\", IF(INDEX('Full set Core Client Indicator'!$A$3:$AB$351, MATCH(Selection_Hide2!$A305, 'Full set Core Client Indicator'!$A$3:$A$351, 0), MATCH(Selection_Hide2!N$5, 'Full set Core Client Indicator'!$A$3:$AB$3, 0))=\"\", \"\",  INDEX('Full set Core Client Indicator'!$A$3:$AB$351, MATCH(Selection_Hide2!$A305, 'Full set Core Client Indicator'!$A$3:$A$351, 0), MATCH(Selection_Hide2!N$5, 'Full set Core Client Indicator'!$A$3:$AB$3, 0))), \"\")","v":""},{"$f":"IF(N305<>\"\", IF(INDEX('Full set Core Client Indicator'!$A$3:$AB$351, MATCH(Selection_Hide2!$A305, 'Full set Core Client Indicator'!$A$3:$A$351, 0), MATCH(Selection_Hide2!O$5, 'Full set Core Client Indicator'!$A$3:$AB$3, 0))=\"\", \"\",  INDEX('Full set Core Client Indicator'!$A$3:$AB$351, MATCH(Selection_Hide2!$A305, 'Full set Core Client Indicator'!$A$3:$A$351, 0), MATCH(Selection_Hide2!O$5, 'Full set Core Client Indicator'!$A$3:$AB$3, 0))), \"\")","v":""},{"$f":"IF(O305<>\"\", IF(INDEX('Full set Core Client Indicator'!$A$3:$AB$351, MATCH(Selection_Hide2!$A305, 'Full set Core Client Indicator'!$A$3:$A$351, 0), MATCH(Selection_Hide2!P$5, 'Full set Core Client Indicator'!$A$3:$AB$3, 0))=\"\", \"\",  INDEX('Full set Core Client Indicator'!$A$3:$AB$351, MATCH(Selection_Hide2!$A305, 'Full set Core Client Indicator'!$A$3:$A$351, 0), MATCH(Selection_Hide2!P$5, 'Full set Core Client Indicator'!$A$3:$AB$3, 0))), \"\")","v":""},{"$f":"IF(P305<>\"\", IF(INDEX('Full set Core Client Indicator'!$A$3:$AB$351, MATCH(Selection_Hide2!$A305, 'Full set Core Client Indicator'!$A$3:$A$351, 0), MATCH(Selection_Hide2!Q$5, 'Full set Core Client Indicator'!$A$3:$AB$3, 0))=\"\", \"\",  INDEX('Full set Core Client Indicator'!$A$3:$AB$351, MATCH(Selection_Hide2!$A305, 'Full set Core Client Indicator'!$A$3:$A$351, 0), MATCH(Selection_Hide2!Q$5, 'Full set Core Client Indicator'!$A$3:$AB$3, 0))), \"\")","v":""},{"$f":"IF(Q305<>\"\", IF(INDEX('Full set Core Client Indicator'!$A$3:$AB$351, MATCH(Selection_Hide2!$A305, 'Full set Core Client Indicator'!$A$3:$A$351, 0), MATCH(Selection_Hide2!R$5, 'Full set Core Client Indicator'!$A$3:$AB$3, 0))=\"\", \"\",  INDEX('Full set Core Client Indicator'!$A$3:$AB$351, MATCH(Selection_Hide2!$A305, 'Full set Core Client Indicator'!$A$3:$A$351, 0), MATCH(Selection_Hide2!R$5, 'Full set Core Client Indicator'!$A$3:$AB$3, 0))), \"\")","v":""},{"$f":"IF(R305<>\"\", IF(INDEX('Full set Core Client Indicator'!$A$3:$AB$351, MATCH(Selection_Hide2!$A305, 'Full set Core Client Indicator'!$A$3:$A$351, 0), MATCH(Selection_Hide2!S$5, 'Full set Core Client Indicator'!$A$3:$AB$3, 0))=\"\", \"\",  INDEX('Full set Core Client Indicator'!$A$3:$AB$351, MATCH(Selection_Hide2!$A305, 'Full set Core Client Indicator'!$A$3:$A$351, 0), MATCH(Selection_Hide2!S$5, 'Full set Core Client Indicator'!$A$3:$AB$3, 0))), \"\")","v":""},{"$f":"IF(S305<>\"\", IF(INDEX('Full set Core Client Indicator'!$A$3:$AB$351, MATCH(Selection_Hide2!$A305, 'Full set Core Client Indicator'!$A$3:$A$351, 0), MATCH(Selection_Hide2!T$5, 'Full set Core Client Indicator'!$A$3:$AB$3, 0))=\"\", \"\",  INDEX('Full set Core Client Indicator'!$A$3:$AB$351, MATCH(Selection_Hide2!$A305, 'Full set Core Client Indicator'!$A$3:$A$351, 0), MATCH(Selection_Hide2!T$5, 'Full set Core Client Indicator'!$A$3:$AB$3, 0))), \"\")","v":""},{"$f":"IF(T305<>\"\", IF(INDEX('Full set Core Client Indicator'!$A$3:$AB$351, MATCH(Selection_Hide2!$A305, 'Full set Core Client Indicator'!$A$3:$A$351, 0), MATCH(Selection_Hide2!U$5, 'Full set Core Client Indicator'!$A$3:$AB$3, 0))=\"\", \"\",  INDEX('Full set Core Client Indicator'!$A$3:$AB$351, MATCH(Selection_Hide2!$A305, 'Full set Core Client Indicator'!$A$3:$A$351, 0), MATCH(Selection_Hide2!U$5, 'Full set Core Client Indicator'!$A$3:$AB$3, 0))), \"\")","v":""},{"$f":"IF(U305<>\"\", IF(INDEX('Full set Core Client Indicator'!$A$3:$AB$351, MATCH(Selection_Hide2!$A305, 'Full set Core Client Indicator'!$A$3:$A$351, 0), MATCH(Selection_Hide2!V$5, 'Full set Core Client Indicator'!$A$3:$AB$3, 0))=\"\", \"\",  INDEX('Full set Core Client Indicator'!$A$3:$AB$351, MATCH(Selection_Hide2!$A305, 'Full set Core Client Indicator'!$A$3:$A$351, 0), MATCH(Selection_Hide2!V$5, 'Full set Core Client Indicator'!$A$3:$AB$3, 0))), \"\")","v":""},{"$f":"IF(V305<>\"\", IF(INDEX('Full set Core Client Indicator'!$A$3:$AB$351, MATCH(Selection_Hide2!$A305, 'Full set Core Client Indicator'!$A$3:$A$351, 0), MATCH(Selection_Hide2!W$5, 'Full set Core Client Indicator'!$A$3:$AB$3, 0))=\"\", \"\",  INDEX('Full set Core Client Indicator'!$A$3:$AB$351, MATCH(Selection_Hide2!$A305, 'Full set Core Client Indicator'!$A$3:$A$351, 0), MATCH(Selection_Hide2!W$5, 'Full set Core Client Indicator'!$A$3:$AB$3, 0))), \"\")","v":""},{"$f":"IF(W305<>\"\", IF(INDEX('Full set Core Client Indicator'!$A$3:$AB$351, MATCH(Selection_Hide2!$A305, 'Full set Core Client Indicator'!$A$3:$A$351, 0), MATCH(Selection_Hide2!X$5, 'Full set Core Client Indicator'!$A$3:$AB$3, 0))=\"\", \"\",  INDEX('Full set Core Client Indicator'!$A$3:$AB$351, MATCH(Selection_Hide2!$A305, 'Full set Core Client Indicator'!$A$3:$A$351, 0), MATCH(Selection_Hide2!X$5, 'Full set Core Client Indicator'!$A$3:$AB$3, 0))), \"\")","v":""},{"$f":"IF(X305<>\"\", IF(INDEX('Full set Core Client Indicator'!$A$3:$AB$351, MATCH(Selection_Hide2!$A305, 'Full set Core Client Indicator'!$A$3:$A$351, 0), MATCH(Selection_Hide2!Y$5, 'Full set Core Client Indicator'!$A$3:$AB$3, 0))=\"\", \"\",  INDEX('Full set Core Client Indicator'!$A$3:$AB$351, MATCH(Selection_Hide2!$A305, 'Full set Core Client Indicator'!$A$3:$A$351, 0), MATCH(Selection_Hide2!Y$5, 'Full set Core Client Indicator'!$A$3:$AB$3, 0))), \"\")","v":""},{"$f":"IF(Y305<>\"\", IF(INDEX('Full set Core Client Indicator'!$A$3:$AB$351, MATCH(Selection_Hide2!$A305, 'Full set Core Client Indicator'!$A$3:$A$351, 0), MATCH(Selection_Hide2!Z$5, 'Full set Core Client Indicator'!$A$3:$AB$3, 0))=\"\", \"\",  INDEX('Full set Core Client Indicator'!$A$3:$AB$351, MATCH(Selection_Hide2!$A305, 'Full set Core Client Indicator'!$A$3:$A$351, 0), MATCH(Selection_Hide2!Z$5, 'Full set Core Client Indicator'!$A$3:$AB$3, 0))), \"\")","v":""},{"$f":"IF(Z305<>\"\", IF(INDEX('Full set Core Client Indicator'!$A$3:$AB$351, MATCH(Selection_Hide2!$A305, 'Full set Core Client Indicator'!$A$3:$A$351, 0), MATCH(Selection_Hide2!AA$5, 'Full set Core Client Indicator'!$A$3:$AB$3, 0))=\"\", \"\",  INDEX('Full set Core Client Indicator'!$A$3:$AB$351, MATCH(Selection_Hide2!$A305, 'Full set Core Client Indicator'!$A$3:$A$351, 0), MATCH(Selection_Hide2!AA$5, 'Full set Core Client Indicator'!$A$3:$AB$3, 0))), \"\")","v":""},{"$f":"IF(AA305<>\"\", IF(INDEX('Full set Core Client Indicator'!$A$3:$AB$351, MATCH(Selection_Hide2!$A305, 'Full set Core Client Indicator'!$A$3:$A$351, 0), MATCH(Selection_Hide2!AB$5, 'Full set Core Client Indicator'!$A$3:$AB$3, 0))=\"\", \"\",  INDEX('Full set Core Client Indicator'!$A$3:$AB$351, MATCH(Selection_Hide2!$A305, 'Full set Core Client Indicator'!$A$3:$A$351, 0), MATCH(Selection_Hide2!AB$5, 'Full set Core Client Indicator'!$A$3:$AB$3, 0))), \"\")","v":""}]
[{"$f":"IF(AND(Selection_Hide1!C304<>0, Selection_Hide1!C304<>\"Grand Total\"), Selection_Hide1!C304, \"\")","v":""},{"$f":"IF(A306<>\"\", IF(INDEX('Full set Core Client Indicator'!$A$3:$AB$351, MATCH(Selection_Hide2!$A306, 'Full set Core Client Indicator'!$A$3:$A$351, 0), MATCH(Selection_Hide2!B$5, 'Full set Core Client Indicator'!$A$3:$AB$3, 0))=\"\", \"\",  INDEX('Full set Core Client Indicator'!$A$3:$AB$351, MATCH(Selection_Hide2!$A306, 'Full set Core Client Indicator'!$A$3:$A$351, 0), MATCH(Selection_Hide2!B$5, 'Full set Core Client Indicator'!$A$3:$AB$3, 0))), \"\")","v":""},{"$f":"IF(B306<>\"\", IF(INDEX('Full set Core Client Indicator'!$A$3:$AB$351, MATCH(Selection_Hide2!$A306, 'Full set Core Client Indicator'!$A$3:$A$351, 0), MATCH(Selection_Hide2!C$5, 'Full set Core Client Indicator'!$A$3:$AB$3, 0))=\"\", \"\",  INDEX('Full set Core Client Indicator'!$A$3:$AB$351, MATCH(Selection_Hide2!$A306, 'Full set Core Client Indicator'!$A$3:$A$351, 0), MATCH(Selection_Hide2!C$5, 'Full set Core Client Indicator'!$A$3:$AB$3, 0))), \"\")","v":""},{"$f":"IF(C306<>\"\", IF(INDEX('Full set Core Client Indicator'!$A$3:$AB$351, MATCH(Selection_Hide2!$A306, 'Full set Core Client Indicator'!$A$3:$A$351, 0), MATCH(Selection_Hide2!D$5, 'Full set Core Client Indicator'!$A$3:$AB$3, 0))=\"\", \"\",  INDEX('Full set Core Client Indicator'!$A$3:$AB$351, MATCH(Selection_Hide2!$A306, 'Full set Core Client Indicator'!$A$3:$A$351, 0), MATCH(Selection_Hide2!D$5, 'Full set Core Client Indicator'!$A$3:$AB$3, 0))), \"\")","v":""},{"$f":"IF(D306<>\"\", IF(INDEX('Full set Core Client Indicator'!$A$3:$AB$351, MATCH(Selection_Hide2!$A306, 'Full set Core Client Indicator'!$A$3:$A$351, 0), MATCH(Selection_Hide2!E$5, 'Full set Core Client Indicator'!$A$3:$AB$3, 0))=\"\", \"\",  INDEX('Full set Core Client Indicator'!$A$3:$AB$351, MATCH(Selection_Hide2!$A306, 'Full set Core Client Indicator'!$A$3:$A$351, 0), MATCH(Selection_Hide2!E$5, 'Full set Core Client Indicator'!$A$3:$AB$3, 0))), \"\")","v":""},{"$f":"IF(E306<>\"\", IF(INDEX('Full set Core Client Indicator'!$A$3:$AB$351, MATCH(Selection_Hide2!$A306, 'Full set Core Client Indicator'!$A$3:$A$351, 0), MATCH(Selection_Hide2!F$5, 'Full set Core Client Indicator'!$A$3:$AB$3, 0))=\"\", \"\",  INDEX('Full set Core Client Indicator'!$A$3:$AB$351, MATCH(Selection_Hide2!$A306, 'Full set Core Client Indicator'!$A$3:$A$351, 0), MATCH(Selection_Hide2!F$5, 'Full set Core Client Indicator'!$A$3:$AB$3, 0))), \"\")","v":""},{"$f":"IF(F306<>\"\", IF(INDEX('Full set Core Client Indicator'!$A$3:$AB$351, MATCH(Selection_Hide2!$A306, 'Full set Core Client Indicator'!$A$3:$A$351, 0), MATCH(Selection_Hide2!G$5, 'Full set Core Client Indicator'!$A$3:$AB$3, 0))=\"\", \"\",  INDEX('Full set Core Client Indicator'!$A$3:$AB$351, MATCH(Selection_Hide2!$A306, 'Full set Core Client Indicator'!$A$3:$A$351, 0), MATCH(Selection_Hide2!G$5, 'Full set Core Client Indicator'!$A$3:$AB$3, 0))), \"\")","v":""},{"$f":"IF(G306<>\"\", IF(INDEX('Full set Core Client Indicator'!$A$3:$AB$351, MATCH(Selection_Hide2!$A306, 'Full set Core Client Indicator'!$A$3:$A$351, 0), MATCH(Selection_Hide2!H$5, 'Full set Core Client Indicator'!$A$3:$AB$3, 0))=\"\", \"\",  INDEX('Full set Core Client Indicator'!$A$3:$AB$351, MATCH(Selection_Hide2!$A306, 'Full set Core Client Indicator'!$A$3:$A$351, 0), MATCH(Selection_Hide2!H$5, 'Full set Core Client Indicator'!$A$3:$AB$3, 0))), \"\")","v":""},{"$f":"IF(H306<>\"\", IF(INDEX('Full set Core Client Indicator'!$A$3:$AB$351, MATCH(Selection_Hide2!$A306, 'Full set Core Client Indicator'!$A$3:$A$351, 0), MATCH(Selection_Hide2!I$5, 'Full set Core Client Indicator'!$A$3:$AB$3, 0))=\"\", \"\",  INDEX('Full set Core Client Indicator'!$A$3:$AB$351, MATCH(Selection_Hide2!$A306, 'Full set Core Client Indicator'!$A$3:$A$351, 0), MATCH(Selection_Hide2!I$5, 'Full set Core Client Indicator'!$A$3:$AB$3, 0))), \"\")","v":""},{"$f":"IF(I306<>\"\", IF(INDEX('Full set Core Client Indicator'!$A$3:$AB$351, MATCH(Selection_Hide2!$A306, 'Full set Core Client Indicator'!$A$3:$A$351, 0), MATCH(Selection_Hide2!J$5, 'Full set Core Client Indicator'!$A$3:$AB$3, 0))=\"\", \"\",  INDEX('Full set Core Client Indicator'!$A$3:$AB$351, MATCH(Selection_Hide2!$A306, 'Full set Core Client Indicator'!$A$3:$A$351, 0), MATCH(Selection_Hide2!J$5, 'Full set Core Client Indicator'!$A$3:$AB$3, 0))), \"\")","v":""},{"$f":"IF(J306<>\"\", IF(INDEX('Full set Core Client Indicator'!$A$3:$AB$351, MATCH(Selection_Hide2!$A306, 'Full set Core Client Indicator'!$A$3:$A$351, 0), MATCH(Selection_Hide2!K$5, 'Full set Core Client Indicator'!$A$3:$AB$3, 0))=\"\", \"\",  INDEX('Full set Core Client Indicator'!$A$3:$AB$351, MATCH(Selection_Hide2!$A306, 'Full set Core Client Indicator'!$A$3:$A$351, 0), MATCH(Selection_Hide2!K$5, 'Full set Core Client Indicator'!$A$3:$AB$3, 0))), \"\")","v":""},{"$f":"IF(K306<>\"\", IF(INDEX('Full set Core Client Indicator'!$A$3:$AB$351, MATCH(Selection_Hide2!$A306, 'Full set Core Client Indicator'!$A$3:$A$351, 0), MATCH(Selection_Hide2!L$5, 'Full set Core Client Indicator'!$A$3:$AB$3, 0))=\"\", \"\",  INDEX('Full set Core Client Indicator'!$A$3:$AB$351, MATCH(Selection_Hide2!$A306, 'Full set Core Client Indicator'!$A$3:$A$351, 0), MATCH(Selection_Hide2!L$5, 'Full set Core Client Indicator'!$A$3:$AB$3, 0))), \"\")","v":""},{"$f":"IF(L306<>\"\", IF(INDEX('Full set Core Client Indicator'!$A$3:$AB$351, MATCH(Selection_Hide2!$A306, 'Full set Core Client Indicator'!$A$3:$A$351, 0), MATCH(Selection_Hide2!M$5, 'Full set Core Client Indicator'!$A$3:$AB$3, 0))=\"\", \"\",  INDEX('Full set Core Client Indicator'!$A$3:$AB$351, MATCH(Selection_Hide2!$A306, 'Full set Core Client Indicator'!$A$3:$A$351, 0), MATCH(Selection_Hide2!M$5, 'Full set Core Client Indicator'!$A$3:$AB$3, 0))), \"\")","v":""},{"$f":"IF(M306<>\"\", IF(INDEX('Full set Core Client Indicator'!$A$3:$AB$351, MATCH(Selection_Hide2!$A306, 'Full set Core Client Indicator'!$A$3:$A$351, 0), MATCH(Selection_Hide2!N$5, 'Full set Core Client Indicator'!$A$3:$AB$3, 0))=\"\", \"\",  INDEX('Full set Core Client Indicator'!$A$3:$AB$351, MATCH(Selection_Hide2!$A306, 'Full set Core Client Indicator'!$A$3:$A$351, 0), MATCH(Selection_Hide2!N$5, 'Full set Core Client Indicator'!$A$3:$AB$3, 0))), \"\")","v":""},{"$f":"IF(N306<>\"\", IF(INDEX('Full set Core Client Indicator'!$A$3:$AB$351, MATCH(Selection_Hide2!$A306, 'Full set Core Client Indicator'!$A$3:$A$351, 0), MATCH(Selection_Hide2!O$5, 'Full set Core Client Indicator'!$A$3:$AB$3, 0))=\"\", \"\",  INDEX('Full set Core Client Indicator'!$A$3:$AB$351, MATCH(Selection_Hide2!$A306, 'Full set Core Client Indicator'!$A$3:$A$351, 0), MATCH(Selection_Hide2!O$5, 'Full set Core Client Indicator'!$A$3:$AB$3, 0))), \"\")","v":""},{"$f":"IF(O306<>\"\", IF(INDEX('Full set Core Client Indicator'!$A$3:$AB$351, MATCH(Selection_Hide2!$A306, 'Full set Core Client Indicator'!$A$3:$A$351, 0), MATCH(Selection_Hide2!P$5, 'Full set Core Client Indicator'!$A$3:$AB$3, 0))=\"\", \"\",  INDEX('Full set Core Client Indicator'!$A$3:$AB$351, MATCH(Selection_Hide2!$A306, 'Full set Core Client Indicator'!$A$3:$A$351, 0), MATCH(Selection_Hide2!P$5, 'Full set Core Client Indicator'!$A$3:$AB$3, 0))), \"\")","v":""},{"$f":"IF(P306<>\"\", IF(INDEX('Full set Core Client Indicator'!$A$3:$AB$351, MATCH(Selection_Hide2!$A306, 'Full set Core Client Indicator'!$A$3:$A$351, 0), MATCH(Selection_Hide2!Q$5, 'Full set Core Client Indicator'!$A$3:$AB$3, 0))=\"\", \"\",  INDEX('Full set Core Client Indicator'!$A$3:$AB$351, MATCH(Selection_Hide2!$A306, 'Full set Core Client Indicator'!$A$3:$A$351, 0), MATCH(Selection_Hide2!Q$5, 'Full set Core Client Indicator'!$A$3:$AB$3, 0))), \"\")","v":""},{"$f":"IF(Q306<>\"\", IF(INDEX('Full set Core Client Indicator'!$A$3:$AB$351, MATCH(Selection_Hide2!$A306, 'Full set Core Client Indicator'!$A$3:$A$351, 0), MATCH(Selection_Hide2!R$5, 'Full set Core Client Indicator'!$A$3:$AB$3, 0))=\"\", \"\",  INDEX('Full set Core Client Indicator'!$A$3:$AB$351, MATCH(Selection_Hide2!$A306, 'Full set Core Client Indicator'!$A$3:$A$351, 0), MATCH(Selection_Hide2!R$5, 'Full set Core Client Indicator'!$A$3:$AB$3, 0))), \"\")","v":""},{"$f":"IF(R306<>\"\", IF(INDEX('Full set Core Client Indicator'!$A$3:$AB$351, MATCH(Selection_Hide2!$A306, 'Full set Core Client Indicator'!$A$3:$A$351, 0), MATCH(Selection_Hide2!S$5, 'Full set Core Client Indicator'!$A$3:$AB$3, 0))=\"\", \"\",  INDEX('Full set Core Client Indicator'!$A$3:$AB$351, MATCH(Selection_Hide2!$A306, 'Full set Core Client Indicator'!$A$3:$A$351, 0), MATCH(Selection_Hide2!S$5, 'Full set Core Client Indicator'!$A$3:$AB$3, 0))), \"\")","v":""},{"$f":"IF(S306<>\"\", IF(INDEX('Full set Core Client Indicator'!$A$3:$AB$351, MATCH(Selection_Hide2!$A306, 'Full set Core Client Indicator'!$A$3:$A$351, 0), MATCH(Selection_Hide2!T$5, 'Full set Core Client Indicator'!$A$3:$AB$3, 0))=\"\", \"\",  INDEX('Full set Core Client Indicator'!$A$3:$AB$351, MATCH(Selection_Hide2!$A306, 'Full set Core Client Indicator'!$A$3:$A$351, 0), MATCH(Selection_Hide2!T$5, 'Full set Core Client Indicator'!$A$3:$AB$3, 0))), \"\")","v":""},{"$f":"IF(T306<>\"\", IF(INDEX('Full set Core Client Indicator'!$A$3:$AB$351, MATCH(Selection_Hide2!$A306, 'Full set Core Client Indicator'!$A$3:$A$351, 0), MATCH(Selection_Hide2!U$5, 'Full set Core Client Indicator'!$A$3:$AB$3, 0))=\"\", \"\",  INDEX('Full set Core Client Indicator'!$A$3:$AB$351, MATCH(Selection_Hide2!$A306, 'Full set Core Client Indicator'!$A$3:$A$351, 0), MATCH(Selection_Hide2!U$5, 'Full set Core Client Indicator'!$A$3:$AB$3, 0))), \"\")","v":""},{"$f":"IF(U306<>\"\", IF(INDEX('Full set Core Client Indicator'!$A$3:$AB$351, MATCH(Selection_Hide2!$A306, 'Full set Core Client Indicator'!$A$3:$A$351, 0), MATCH(Selection_Hide2!V$5, 'Full set Core Client Indicator'!$A$3:$AB$3, 0))=\"\", \"\",  INDEX('Full set Core Client Indicator'!$A$3:$AB$351, MATCH(Selection_Hide2!$A306, 'Full set Core Client Indicator'!$A$3:$A$351, 0), MATCH(Selection_Hide2!V$5, 'Full set Core Client Indicator'!$A$3:$AB$3, 0))), \"\")","v":""},{"$f":"IF(V306<>\"\", IF(INDEX('Full set Core Client Indicator'!$A$3:$AB$351, MATCH(Selection_Hide2!$A306, 'Full set Core Client Indicator'!$A$3:$A$351, 0), MATCH(Selection_Hide2!W$5, 'Full set Core Client Indicator'!$A$3:$AB$3, 0))=\"\", \"\",  INDEX('Full set Core Client Indicator'!$A$3:$AB$351, MATCH(Selection_Hide2!$A306, 'Full set Core Client Indicator'!$A$3:$A$351, 0), MATCH(Selection_Hide2!W$5, 'Full set Core Client Indicator'!$A$3:$AB$3, 0))), \"\")","v":""},{"$f":"IF(W306<>\"\", IF(INDEX('Full set Core Client Indicator'!$A$3:$AB$351, MATCH(Selection_Hide2!$A306, 'Full set Core Client Indicator'!$A$3:$A$351, 0), MATCH(Selection_Hide2!X$5, 'Full set Core Client Indicator'!$A$3:$AB$3, 0))=\"\", \"\",  INDEX('Full set Core Client Indicator'!$A$3:$AB$351, MATCH(Selection_Hide2!$A306, 'Full set Core Client Indicator'!$A$3:$A$351, 0), MATCH(Selection_Hide2!X$5, 'Full set Core Client Indicator'!$A$3:$AB$3, 0))), \"\")","v":""},{"$f":"IF(X306<>\"\", IF(INDEX('Full set Core Client Indicator'!$A$3:$AB$351, MATCH(Selection_Hide2!$A306, 'Full set Core Client Indicator'!$A$3:$A$351, 0), MATCH(Selection_Hide2!Y$5, 'Full set Core Client Indicator'!$A$3:$AB$3, 0))=\"\", \"\",  INDEX('Full set Core Client Indicator'!$A$3:$AB$351, MATCH(Selection_Hide2!$A306, 'Full set Core Client Indicator'!$A$3:$A$351, 0), MATCH(Selection_Hide2!Y$5, 'Full set Core Client Indicator'!$A$3:$AB$3, 0))), \"\")","v":""},{"$f":"IF(Y306<>\"\", IF(INDEX('Full set Core Client Indicator'!$A$3:$AB$351, MATCH(Selection_Hide2!$A306, 'Full set Core Client Indicator'!$A$3:$A$351, 0), MATCH(Selection_Hide2!Z$5, 'Full set Core Client Indicator'!$A$3:$AB$3, 0))=\"\", \"\",  INDEX('Full set Core Client Indicator'!$A$3:$AB$351, MATCH(Selection_Hide2!$A306, 'Full set Core Client Indicator'!$A$3:$A$351, 0), MATCH(Selection_Hide2!Z$5, 'Full set Core Client Indicator'!$A$3:$AB$3, 0))), \"\")","v":""},{"$f":"IF(Z306<>\"\", IF(INDEX('Full set Core Client Indicator'!$A$3:$AB$351, MATCH(Selection_Hide2!$A306, 'Full set Core Client Indicator'!$A$3:$A$351, 0), MATCH(Selection_Hide2!AA$5, 'Full set Core Client Indicator'!$A$3:$AB$3, 0))=\"\", \"\",  INDEX('Full set Core Client Indicator'!$A$3:$AB$351, MATCH(Selection_Hide2!$A306, 'Full set Core Client Indicator'!$A$3:$A$351, 0), MATCH(Selection_Hide2!AA$5, 'Full set Core Client Indicator'!$A$3:$AB$3, 0))), \"\")","v":""},{"$f":"IF(AA306<>\"\", IF(INDEX('Full set Core Client Indicator'!$A$3:$AB$351, MATCH(Selection_Hide2!$A306, 'Full set Core Client Indicator'!$A$3:$A$351, 0), MATCH(Selection_Hide2!AB$5, 'Full set Core Client Indicator'!$A$3:$AB$3, 0))=\"\", \"\",  INDEX('Full set Core Client Indicator'!$A$3:$AB$351, MATCH(Selection_Hide2!$A306, 'Full set Core Client Indicator'!$A$3:$A$351, 0), MATCH(Selection_Hide2!AB$5, 'Full set Core Client Indicator'!$A$3:$AB$3, 0))), \"\")","v":""}]
[{"$f":"IF(AND(Selection_Hide1!C305<>0, Selection_Hide1!C305<>\"Grand Total\"), Selection_Hide1!C305, \"\")","v":""},{"$f":"IF(A307<>\"\", IF(INDEX('Full set Core Client Indicator'!$A$3:$AB$351, MATCH(Selection_Hide2!$A307, 'Full set Core Client Indicator'!$A$3:$A$351, 0), MATCH(Selection_Hide2!B$5, 'Full set Core Client Indicator'!$A$3:$AB$3, 0))=\"\", \"\",  INDEX('Full set Core Client Indicator'!$A$3:$AB$351, MATCH(Selection_Hide2!$A307, 'Full set Core Client Indicator'!$A$3:$A$351, 0), MATCH(Selection_Hide2!B$5, 'Full set Core Client Indicator'!$A$3:$AB$3, 0))), \"\")","v":""},{"$f":"IF(B307<>\"\", IF(INDEX('Full set Core Client Indicator'!$A$3:$AB$351, MATCH(Selection_Hide2!$A307, 'Full set Core Client Indicator'!$A$3:$A$351, 0), MATCH(Selection_Hide2!C$5, 'Full set Core Client Indicator'!$A$3:$AB$3, 0))=\"\", \"\",  INDEX('Full set Core Client Indicator'!$A$3:$AB$351, MATCH(Selection_Hide2!$A307, 'Full set Core Client Indicator'!$A$3:$A$351, 0), MATCH(Selection_Hide2!C$5, 'Full set Core Client Indicator'!$A$3:$AB$3, 0))), \"\")","v":""},{"$f":"IF(C307<>\"\", IF(INDEX('Full set Core Client Indicator'!$A$3:$AB$351, MATCH(Selection_Hide2!$A307, 'Full set Core Client Indicator'!$A$3:$A$351, 0), MATCH(Selection_Hide2!D$5, 'Full set Core Client Indicator'!$A$3:$AB$3, 0))=\"\", \"\",  INDEX('Full set Core Client Indicator'!$A$3:$AB$351, MATCH(Selection_Hide2!$A307, 'Full set Core Client Indicator'!$A$3:$A$351, 0), MATCH(Selection_Hide2!D$5, 'Full set Core Client Indicator'!$A$3:$AB$3, 0))), \"\")","v":""},{"$f":"IF(D307<>\"\", IF(INDEX('Full set Core Client Indicator'!$A$3:$AB$351, MATCH(Selection_Hide2!$A307, 'Full set Core Client Indicator'!$A$3:$A$351, 0), MATCH(Selection_Hide2!E$5, 'Full set Core Client Indicator'!$A$3:$AB$3, 0))=\"\", \"\",  INDEX('Full set Core Client Indicator'!$A$3:$AB$351, MATCH(Selection_Hide2!$A307, 'Full set Core Client Indicator'!$A$3:$A$351, 0), MATCH(Selection_Hide2!E$5, 'Full set Core Client Indicator'!$A$3:$AB$3, 0))), \"\")","v":""},{"$f":"IF(E307<>\"\", IF(INDEX('Full set Core Client Indicator'!$A$3:$AB$351, MATCH(Selection_Hide2!$A307, 'Full set Core Client Indicator'!$A$3:$A$351, 0), MATCH(Selection_Hide2!F$5, 'Full set Core Client Indicator'!$A$3:$AB$3, 0))=\"\", \"\",  INDEX('Full set Core Client Indicator'!$A$3:$AB$351, MATCH(Selection_Hide2!$A307, 'Full set Core Client Indicator'!$A$3:$A$351, 0), MATCH(Selection_Hide2!F$5, 'Full set Core Client Indicator'!$A$3:$AB$3, 0))), \"\")","v":""},{"$f":"IF(F307<>\"\", IF(INDEX('Full set Core Client Indicator'!$A$3:$AB$351, MATCH(Selection_Hide2!$A307, 'Full set Core Client Indicator'!$A$3:$A$351, 0), MATCH(Selection_Hide2!G$5, 'Full set Core Client Indicator'!$A$3:$AB$3, 0))=\"\", \"\",  INDEX('Full set Core Client Indicator'!$A$3:$AB$351, MATCH(Selection_Hide2!$A307, 'Full set Core Client Indicator'!$A$3:$A$351, 0), MATCH(Selection_Hide2!G$5, 'Full set Core Client Indicator'!$A$3:$AB$3, 0))), \"\")","v":""},{"$f":"IF(G307<>\"\", IF(INDEX('Full set Core Client Indicator'!$A$3:$AB$351, MATCH(Selection_Hide2!$A307, 'Full set Core Client Indicator'!$A$3:$A$351, 0), MATCH(Selection_Hide2!H$5, 'Full set Core Client Indicator'!$A$3:$AB$3, 0))=\"\", \"\",  INDEX('Full set Core Client Indicator'!$A$3:$AB$351, MATCH(Selection_Hide2!$A307, 'Full set Core Client Indicator'!$A$3:$A$351, 0), MATCH(Selection_Hide2!H$5, 'Full set Core Client Indicator'!$A$3:$AB$3, 0))), \"\")","v":""},{"$f":"IF(H307<>\"\", IF(INDEX('Full set Core Client Indicator'!$A$3:$AB$351, MATCH(Selection_Hide2!$A307, 'Full set Core Client Indicator'!$A$3:$A$351, 0), MATCH(Selection_Hide2!I$5, 'Full set Core Client Indicator'!$A$3:$AB$3, 0))=\"\", \"\",  INDEX('Full set Core Client Indicator'!$A$3:$AB$351, MATCH(Selection_Hide2!$A307, 'Full set Core Client Indicator'!$A$3:$A$351, 0), MATCH(Selection_Hide2!I$5, 'Full set Core Client Indicator'!$A$3:$AB$3, 0))), \"\")","v":""},{"$f":"IF(I307<>\"\", IF(INDEX('Full set Core Client Indicator'!$A$3:$AB$351, MATCH(Selection_Hide2!$A307, 'Full set Core Client Indicator'!$A$3:$A$351, 0), MATCH(Selection_Hide2!J$5, 'Full set Core Client Indicator'!$A$3:$AB$3, 0))=\"\", \"\",  INDEX('Full set Core Client Indicator'!$A$3:$AB$351, MATCH(Selection_Hide2!$A307, 'Full set Core Client Indicator'!$A$3:$A$351, 0), MATCH(Selection_Hide2!J$5, 'Full set Core Client Indicator'!$A$3:$AB$3, 0))), \"\")","v":""},{"$f":"IF(J307<>\"\", IF(INDEX('Full set Core Client Indicator'!$A$3:$AB$351, MATCH(Selection_Hide2!$A307, 'Full set Core Client Indicator'!$A$3:$A$351, 0), MATCH(Selection_Hide2!K$5, 'Full set Core Client Indicator'!$A$3:$AB$3, 0))=\"\", \"\",  INDEX('Full set Core Client Indicator'!$A$3:$AB$351, MATCH(Selection_Hide2!$A307, 'Full set Core Client Indicator'!$A$3:$A$351, 0), MATCH(Selection_Hide2!K$5, 'Full set Core Client Indicator'!$A$3:$AB$3, 0))), \"\")","v":""},{"$f":"IF(K307<>\"\", IF(INDEX('Full set Core Client Indicator'!$A$3:$AB$351, MATCH(Selection_Hide2!$A307, 'Full set Core Client Indicator'!$A$3:$A$351, 0), MATCH(Selection_Hide2!L$5, 'Full set Core Client Indicator'!$A$3:$AB$3, 0))=\"\", \"\",  INDEX('Full set Core Client Indicator'!$A$3:$AB$351, MATCH(Selection_Hide2!$A307, 'Full set Core Client Indicator'!$A$3:$A$351, 0), MATCH(Selection_Hide2!L$5, 'Full set Core Client Indicator'!$A$3:$AB$3, 0))), \"\")","v":""},{"$f":"IF(L307<>\"\", IF(INDEX('Full set Core Client Indicator'!$A$3:$AB$351, MATCH(Selection_Hide2!$A307, 'Full set Core Client Indicator'!$A$3:$A$351, 0), MATCH(Selection_Hide2!M$5, 'Full set Core Client Indicator'!$A$3:$AB$3, 0))=\"\", \"\",  INDEX('Full set Core Client Indicator'!$A$3:$AB$351, MATCH(Selection_Hide2!$A307, 'Full set Core Client Indicator'!$A$3:$A$351, 0), MATCH(Selection_Hide2!M$5, 'Full set Core Client Indicator'!$A$3:$AB$3, 0))), \"\")","v":""},{"$f":"IF(M307<>\"\", IF(INDEX('Full set Core Client Indicator'!$A$3:$AB$351, MATCH(Selection_Hide2!$A307, 'Full set Core Client Indicator'!$A$3:$A$351, 0), MATCH(Selection_Hide2!N$5, 'Full set Core Client Indicator'!$A$3:$AB$3, 0))=\"\", \"\",  INDEX('Full set Core Client Indicator'!$A$3:$AB$351, MATCH(Selection_Hide2!$A307, 'Full set Core Client Indicator'!$A$3:$A$351, 0), MATCH(Selection_Hide2!N$5, 'Full set Core Client Indicator'!$A$3:$AB$3, 0))), \"\")","v":""},{"$f":"IF(N307<>\"\", IF(INDEX('Full set Core Client Indicator'!$A$3:$AB$351, MATCH(Selection_Hide2!$A307, 'Full set Core Client Indicator'!$A$3:$A$351, 0), MATCH(Selection_Hide2!O$5, 'Full set Core Client Indicator'!$A$3:$AB$3, 0))=\"\", \"\",  INDEX('Full set Core Client Indicator'!$A$3:$AB$351, MATCH(Selection_Hide2!$A307, 'Full set Core Client Indicator'!$A$3:$A$351, 0), MATCH(Selection_Hide2!O$5, 'Full set Core Client Indicator'!$A$3:$AB$3, 0))), \"\")","v":""},{"$f":"IF(O307<>\"\", IF(INDEX('Full set Core Client Indicator'!$A$3:$AB$351, MATCH(Selection_Hide2!$A307, 'Full set Core Client Indicator'!$A$3:$A$351, 0), MATCH(Selection_Hide2!P$5, 'Full set Core Client Indicator'!$A$3:$AB$3, 0))=\"\", \"\",  INDEX('Full set Core Client Indicator'!$A$3:$AB$351, MATCH(Selection_Hide2!$A307, 'Full set Core Client Indicator'!$A$3:$A$351, 0), MATCH(Selection_Hide2!P$5, 'Full set Core Client Indicator'!$A$3:$AB$3, 0))), \"\")","v":""},{"$f":"IF(P307<>\"\", IF(INDEX('Full set Core Client Indicator'!$A$3:$AB$351, MATCH(Selection_Hide2!$A307, 'Full set Core Client Indicator'!$A$3:$A$351, 0), MATCH(Selection_Hide2!Q$5, 'Full set Core Client Indicator'!$A$3:$AB$3, 0))=\"\", \"\",  INDEX('Full set Core Client Indicator'!$A$3:$AB$351, MATCH(Selection_Hide2!$A307, 'Full set Core Client Indicator'!$A$3:$A$351, 0), MATCH(Selection_Hide2!Q$5, 'Full set Core Client Indicator'!$A$3:$AB$3, 0))), \"\")","v":""},{"$f":"IF(Q307<>\"\", IF(INDEX('Full set Core Client Indicator'!$A$3:$AB$351, MATCH(Selection_Hide2!$A307, 'Full set Core Client Indicator'!$A$3:$A$351, 0), MATCH(Selection_Hide2!R$5, 'Full set Core Client Indicator'!$A$3:$AB$3, 0))=\"\", \"\",  INDEX('Full set Core Client Indicator'!$A$3:$AB$351, MATCH(Selection_Hide2!$A307, 'Full set Core Client Indicator'!$A$3:$A$351, 0), MATCH(Selection_Hide2!R$5, 'Full set Core Client Indicator'!$A$3:$AB$3, 0))), \"\")","v":""},{"$f":"IF(R307<>\"\", IF(INDEX('Full set Core Client Indicator'!$A$3:$AB$351, MATCH(Selection_Hide2!$A307, 'Full set Core Client Indicator'!$A$3:$A$351, 0), MATCH(Selection_Hide2!S$5, 'Full set Core Client Indicator'!$A$3:$AB$3, 0))=\"\", \"\",  INDEX('Full set Core Client Indicator'!$A$3:$AB$351, MATCH(Selection_Hide2!$A307, 'Full set Core Client Indicator'!$A$3:$A$351, 0), MATCH(Selection_Hide2!S$5, 'Full set Core Client Indicator'!$A$3:$AB$3, 0))), \"\")","v":""},{"$f":"IF(S307<>\"\", IF(INDEX('Full set Core Client Indicator'!$A$3:$AB$351, MATCH(Selection_Hide2!$A307, 'Full set Core Client Indicator'!$A$3:$A$351, 0), MATCH(Selection_Hide2!T$5, 'Full set Core Client Indicator'!$A$3:$AB$3, 0))=\"\", \"\",  INDEX('Full set Core Client Indicator'!$A$3:$AB$351, MATCH(Selection_Hide2!$A307, 'Full set Core Client Indicator'!$A$3:$A$351, 0), MATCH(Selection_Hide2!T$5, 'Full set Core Client Indicator'!$A$3:$AB$3, 0))), \"\")","v":""},{"$f":"IF(T307<>\"\", IF(INDEX('Full set Core Client Indicator'!$A$3:$AB$351, MATCH(Selection_Hide2!$A307, 'Full set Core Client Indicator'!$A$3:$A$351, 0), MATCH(Selection_Hide2!U$5, 'Full set Core Client Indicator'!$A$3:$AB$3, 0))=\"\", \"\",  INDEX('Full set Core Client Indicator'!$A$3:$AB$351, MATCH(Selection_Hide2!$A307, 'Full set Core Client Indicator'!$A$3:$A$351, 0), MATCH(Selection_Hide2!U$5, 'Full set Core Client Indicator'!$A$3:$AB$3, 0))), \"\")","v":""},{"$f":"IF(U307<>\"\", IF(INDEX('Full set Core Client Indicator'!$A$3:$AB$351, MATCH(Selection_Hide2!$A307, 'Full set Core Client Indicator'!$A$3:$A$351, 0), MATCH(Selection_Hide2!V$5, 'Full set Core Client Indicator'!$A$3:$AB$3, 0))=\"\", \"\",  INDEX('Full set Core Client Indicator'!$A$3:$AB$351, MATCH(Selection_Hide2!$A307, 'Full set Core Client Indicator'!$A$3:$A$351, 0), MATCH(Selection_Hide2!V$5, 'Full set Core Client Indicator'!$A$3:$AB$3, 0))), \"\")","v":""},{"$f":"IF(V307<>\"\", IF(INDEX('Full set Core Client Indicator'!$A$3:$AB$351, MATCH(Selection_Hide2!$A307, 'Full set Core Client Indicator'!$A$3:$A$351, 0), MATCH(Selection_Hide2!W$5, 'Full set Core Client Indicator'!$A$3:$AB$3, 0))=\"\", \"\",  INDEX('Full set Core Client Indicator'!$A$3:$AB$351, MATCH(Selection_Hide2!$A307, 'Full set Core Client Indicator'!$A$3:$A$351, 0), MATCH(Selection_Hide2!W$5, 'Full set Core Client Indicator'!$A$3:$AB$3, 0))), \"\")","v":""},{"$f":"IF(W307<>\"\", IF(INDEX('Full set Core Client Indicator'!$A$3:$AB$351, MATCH(Selection_Hide2!$A307, 'Full set Core Client Indicator'!$A$3:$A$351, 0), MATCH(Selection_Hide2!X$5, 'Full set Core Client Indicator'!$A$3:$AB$3, 0))=\"\", \"\",  INDEX('Full set Core Client Indicator'!$A$3:$AB$351, MATCH(Selection_Hide2!$A307, 'Full set Core Client Indicator'!$A$3:$A$351, 0), MATCH(Selection_Hide2!X$5, 'Full set Core Client Indicator'!$A$3:$AB$3, 0))), \"\")","v":""},{"$f":"IF(X307<>\"\", IF(INDEX('Full set Core Client Indicator'!$A$3:$AB$351, MATCH(Selection_Hide2!$A307, 'Full set Core Client Indicator'!$A$3:$A$351, 0), MATCH(Selection_Hide2!Y$5, 'Full set Core Client Indicator'!$A$3:$AB$3, 0))=\"\", \"\",  INDEX('Full set Core Client Indicator'!$A$3:$AB$351, MATCH(Selection_Hide2!$A307, 'Full set Core Client Indicator'!$A$3:$A$351, 0), MATCH(Selection_Hide2!Y$5, 'Full set Core Client Indicator'!$A$3:$AB$3, 0))), \"\")","v":""},{"$f":"IF(Y307<>\"\", IF(INDEX('Full set Core Client Indicator'!$A$3:$AB$351, MATCH(Selection_Hide2!$A307, 'Full set Core Client Indicator'!$A$3:$A$351, 0), MATCH(Selection_Hide2!Z$5, 'Full set Core Client Indicator'!$A$3:$AB$3, 0))=\"\", \"\",  INDEX('Full set Core Client Indicator'!$A$3:$AB$351, MATCH(Selection_Hide2!$A307, 'Full set Core Client Indicator'!$A$3:$A$351, 0), MATCH(Selection_Hide2!Z$5, 'Full set Core Client Indicator'!$A$3:$AB$3, 0))), \"\")","v":""},{"$f":"IF(Z307<>\"\", IF(INDEX('Full set Core Client Indicator'!$A$3:$AB$351, MATCH(Selection_Hide2!$A307, 'Full set Core Client Indicator'!$A$3:$A$351, 0), MATCH(Selection_Hide2!AA$5, 'Full set Core Client Indicator'!$A$3:$AB$3, 0))=\"\", \"\",  INDEX('Full set Core Client Indicator'!$A$3:$AB$351, MATCH(Selection_Hide2!$A307, 'Full set Core Client Indicator'!$A$3:$A$351, 0), MATCH(Selection_Hide2!AA$5, 'Full set Core Client Indicator'!$A$3:$AB$3, 0))), \"\")","v":""},{"$f":"IF(AA307<>\"\", IF(INDEX('Full set Core Client Indicator'!$A$3:$AB$351, MATCH(Selection_Hide2!$A307, 'Full set Core Client Indicator'!$A$3:$A$351, 0), MATCH(Selection_Hide2!AB$5, 'Full set Core Client Indicator'!$A$3:$AB$3, 0))=\"\", \"\",  INDEX('Full set Core Client Indicator'!$A$3:$AB$351, MATCH(Selection_Hide2!$A307, 'Full set Core Client Indicator'!$A$3:$A$351, 0), MATCH(Selection_Hide2!AB$5, 'Full set Core Client Indicator'!$A$3:$AB$3, 0))), \"\")","v":""}]
[{"$f":"IF(AND(Selection_Hide1!C306<>0, Selection_Hide1!C306<>\"Grand Total\"), Selection_Hide1!C306, \"\")","v":""},{"$f":"IF(A308<>\"\", IF(INDEX('Full set Core Client Indicator'!$A$3:$AB$351, MATCH(Selection_Hide2!$A308, 'Full set Core Client Indicator'!$A$3:$A$351, 0), MATCH(Selection_Hide2!B$5, 'Full set Core Client Indicator'!$A$3:$AB$3, 0))=\"\", \"\",  INDEX('Full set Core Client Indicator'!$A$3:$AB$351, MATCH(Selection_Hide2!$A308, 'Full set Core Client Indicator'!$A$3:$A$351, 0), MATCH(Selection_Hide2!B$5, 'Full set Core Client Indicator'!$A$3:$AB$3, 0))), \"\")","v":""},{"$f":"IF(B308<>\"\", IF(INDEX('Full set Core Client Indicator'!$A$3:$AB$351, MATCH(Selection_Hide2!$A308, 'Full set Core Client Indicator'!$A$3:$A$351, 0), MATCH(Selection_Hide2!C$5, 'Full set Core Client Indicator'!$A$3:$AB$3, 0))=\"\", \"\",  INDEX('Full set Core Client Indicator'!$A$3:$AB$351, MATCH(Selection_Hide2!$A308, 'Full set Core Client Indicator'!$A$3:$A$351, 0), MATCH(Selection_Hide2!C$5, 'Full set Core Client Indicator'!$A$3:$AB$3, 0))), \"\")","v":""},{"$f":"IF(C308<>\"\", IF(INDEX('Full set Core Client Indicator'!$A$3:$AB$351, MATCH(Selection_Hide2!$A308, 'Full set Core Client Indicator'!$A$3:$A$351, 0), MATCH(Selection_Hide2!D$5, 'Full set Core Client Indicator'!$A$3:$AB$3, 0))=\"\", \"\",  INDEX('Full set Core Client Indicator'!$A$3:$AB$351, MATCH(Selection_Hide2!$A308, 'Full set Core Client Indicator'!$A$3:$A$351, 0), MATCH(Selection_Hide2!D$5, 'Full set Core Client Indicator'!$A$3:$AB$3, 0))), \"\")","v":""},{"$f":"IF(D308<>\"\", IF(INDEX('Full set Core Client Indicator'!$A$3:$AB$351, MATCH(Selection_Hide2!$A308, 'Full set Core Client Indicator'!$A$3:$A$351, 0), MATCH(Selection_Hide2!E$5, 'Full set Core Client Indicator'!$A$3:$AB$3, 0))=\"\", \"\",  INDEX('Full set Core Client Indicator'!$A$3:$AB$351, MATCH(Selection_Hide2!$A308, 'Full set Core Client Indicator'!$A$3:$A$351, 0), MATCH(Selection_Hide2!E$5, 'Full set Core Client Indicator'!$A$3:$AB$3, 0))), \"\")","v":""},{"$f":"IF(E308<>\"\", IF(INDEX('Full set Core Client Indicator'!$A$3:$AB$351, MATCH(Selection_Hide2!$A308, 'Full set Core Client Indicator'!$A$3:$A$351, 0), MATCH(Selection_Hide2!F$5, 'Full set Core Client Indicator'!$A$3:$AB$3, 0))=\"\", \"\",  INDEX('Full set Core Client Indicator'!$A$3:$AB$351, MATCH(Selection_Hide2!$A308, 'Full set Core Client Indicator'!$A$3:$A$351, 0), MATCH(Selection_Hide2!F$5, 'Full set Core Client Indicator'!$A$3:$AB$3, 0))), \"\")","v":""},{"$f":"IF(F308<>\"\", IF(INDEX('Full set Core Client Indicator'!$A$3:$AB$351, MATCH(Selection_Hide2!$A308, 'Full set Core Client Indicator'!$A$3:$A$351, 0), MATCH(Selection_Hide2!G$5, 'Full set Core Client Indicator'!$A$3:$AB$3, 0))=\"\", \"\",  INDEX('Full set Core Client Indicator'!$A$3:$AB$351, MATCH(Selection_Hide2!$A308, 'Full set Core Client Indicator'!$A$3:$A$351, 0), MATCH(Selection_Hide2!G$5, 'Full set Core Client Indicator'!$A$3:$AB$3, 0))), \"\")","v":""},{"$f":"IF(G308<>\"\", IF(INDEX('Full set Core Client Indicator'!$A$3:$AB$351, MATCH(Selection_Hide2!$A308, 'Full set Core Client Indicator'!$A$3:$A$351, 0), MATCH(Selection_Hide2!H$5, 'Full set Core Client Indicator'!$A$3:$AB$3, 0))=\"\", \"\",  INDEX('Full set Core Client Indicator'!$A$3:$AB$351, MATCH(Selection_Hide2!$A308, 'Full set Core Client Indicator'!$A$3:$A$351, 0), MATCH(Selection_Hide2!H$5, 'Full set Core Client Indicator'!$A$3:$AB$3, 0))), \"\")","v":""},{"$f":"IF(H308<>\"\", IF(INDEX('Full set Core Client Indicator'!$A$3:$AB$351, MATCH(Selection_Hide2!$A308, 'Full set Core Client Indicator'!$A$3:$A$351, 0), MATCH(Selection_Hide2!I$5, 'Full set Core Client Indicator'!$A$3:$AB$3, 0))=\"\", \"\",  INDEX('Full set Core Client Indicator'!$A$3:$AB$351, MATCH(Selection_Hide2!$A308, 'Full set Core Client Indicator'!$A$3:$A$351, 0), MATCH(Selection_Hide2!I$5, 'Full set Core Client Indicator'!$A$3:$AB$3, 0))), \"\")","v":""},{"$f":"IF(I308<>\"\", IF(INDEX('Full set Core Client Indicator'!$A$3:$AB$351, MATCH(Selection_Hide2!$A308, 'Full set Core Client Indicator'!$A$3:$A$351, 0), MATCH(Selection_Hide2!J$5, 'Full set Core Client Indicator'!$A$3:$AB$3, 0))=\"\", \"\",  INDEX('Full set Core Client Indicator'!$A$3:$AB$351, MATCH(Selection_Hide2!$A308, 'Full set Core Client Indicator'!$A$3:$A$351, 0), MATCH(Selection_Hide2!J$5, 'Full set Core Client Indicator'!$A$3:$AB$3, 0))), \"\")","v":""},{"$f":"IF(J308<>\"\", IF(INDEX('Full set Core Client Indicator'!$A$3:$AB$351, MATCH(Selection_Hide2!$A308, 'Full set Core Client Indicator'!$A$3:$A$351, 0), MATCH(Selection_Hide2!K$5, 'Full set Core Client Indicator'!$A$3:$AB$3, 0))=\"\", \"\",  INDEX('Full set Core Client Indicator'!$A$3:$AB$351, MATCH(Selection_Hide2!$A308, 'Full set Core Client Indicator'!$A$3:$A$351, 0), MATCH(Selection_Hide2!K$5, 'Full set Core Client Indicator'!$A$3:$AB$3, 0))), \"\")","v":""},{"$f":"IF(K308<>\"\", IF(INDEX('Full set Core Client Indicator'!$A$3:$AB$351, MATCH(Selection_Hide2!$A308, 'Full set Core Client Indicator'!$A$3:$A$351, 0), MATCH(Selection_Hide2!L$5, 'Full set Core Client Indicator'!$A$3:$AB$3, 0))=\"\", \"\",  INDEX('Full set Core Client Indicator'!$A$3:$AB$351, MATCH(Selection_Hide2!$A308, 'Full set Core Client Indicator'!$A$3:$A$351, 0), MATCH(Selection_Hide2!L$5, 'Full set Core Client Indicator'!$A$3:$AB$3, 0))), \"\")","v":""},{"$f":"IF(L308<>\"\", IF(INDEX('Full set Core Client Indicator'!$A$3:$AB$351, MATCH(Selection_Hide2!$A308, 'Full set Core Client Indicator'!$A$3:$A$351, 0), MATCH(Selection_Hide2!M$5, 'Full set Core Client Indicator'!$A$3:$AB$3, 0))=\"\", \"\",  INDEX('Full set Core Client Indicator'!$A$3:$AB$351, MATCH(Selection_Hide2!$A308, 'Full set Core Client Indicator'!$A$3:$A$351, 0), MATCH(Selection_Hide2!M$5, 'Full set Core Client Indicator'!$A$3:$AB$3, 0))), \"\")","v":""},{"$f":"IF(M308<>\"\", IF(INDEX('Full set Core Client Indicator'!$A$3:$AB$351, MATCH(Selection_Hide2!$A308, 'Full set Core Client Indicator'!$A$3:$A$351, 0), MATCH(Selection_Hide2!N$5, 'Full set Core Client Indicator'!$A$3:$AB$3, 0))=\"\", \"\",  INDEX('Full set Core Client Indicator'!$A$3:$AB$351, MATCH(Selection_Hide2!$A308, 'Full set Core Client Indicator'!$A$3:$A$351, 0), MATCH(Selection_Hide2!N$5, 'Full set Core Client Indicator'!$A$3:$AB$3, 0))), \"\")","v":""},{"$f":"IF(N308<>\"\", IF(INDEX('Full set Core Client Indicator'!$A$3:$AB$351, MATCH(Selection_Hide2!$A308, 'Full set Core Client Indicator'!$A$3:$A$351, 0), MATCH(Selection_Hide2!O$5, 'Full set Core Client Indicator'!$A$3:$AB$3, 0))=\"\", \"\",  INDEX('Full set Core Client Indicator'!$A$3:$AB$351, MATCH(Selection_Hide2!$A308, 'Full set Core Client Indicator'!$A$3:$A$351, 0), MATCH(Selection_Hide2!O$5, 'Full set Core Client Indicator'!$A$3:$AB$3, 0))), \"\")","v":""},{"$f":"IF(O308<>\"\", IF(INDEX('Full set Core Client Indicator'!$A$3:$AB$351, MATCH(Selection_Hide2!$A308, 'Full set Core Client Indicator'!$A$3:$A$351, 0), MATCH(Selection_Hide2!P$5, 'Full set Core Client Indicator'!$A$3:$AB$3, 0))=\"\", \"\",  INDEX('Full set Core Client Indicator'!$A$3:$AB$351, MATCH(Selection_Hide2!$A308, 'Full set Core Client Indicator'!$A$3:$A$351, 0), MATCH(Selection_Hide2!P$5, 'Full set Core Client Indicator'!$A$3:$AB$3, 0))), \"\")","v":""},{"$f":"IF(P308<>\"\", IF(INDEX('Full set Core Client Indicator'!$A$3:$AB$351, MATCH(Selection_Hide2!$A308, 'Full set Core Client Indicator'!$A$3:$A$351, 0), MATCH(Selection_Hide2!Q$5, 'Full set Core Client Indicator'!$A$3:$AB$3, 0))=\"\", \"\",  INDEX('Full set Core Client Indicator'!$A$3:$AB$351, MATCH(Selection_Hide2!$A308, 'Full set Core Client Indicator'!$A$3:$A$351, 0), MATCH(Selection_Hide2!Q$5, 'Full set Core Client Indicator'!$A$3:$AB$3, 0))), \"\")","v":""},{"$f":"IF(Q308<>\"\", IF(INDEX('Full set Core Client Indicator'!$A$3:$AB$351, MATCH(Selection_Hide2!$A308, 'Full set Core Client Indicator'!$A$3:$A$351, 0), MATCH(Selection_Hide2!R$5, 'Full set Core Client Indicator'!$A$3:$AB$3, 0))=\"\", \"\",  INDEX('Full set Core Client Indicator'!$A$3:$AB$351, MATCH(Selection_Hide2!$A308, 'Full set Core Client Indicator'!$A$3:$A$351, 0), MATCH(Selection_Hide2!R$5, 'Full set Core Client Indicator'!$A$3:$AB$3, 0))), \"\")","v":""},{"$f":"IF(R308<>\"\", IF(INDEX('Full set Core Client Indicator'!$A$3:$AB$351, MATCH(Selection_Hide2!$A308, 'Full set Core Client Indicator'!$A$3:$A$351, 0), MATCH(Selection_Hide2!S$5, 'Full set Core Client Indicator'!$A$3:$AB$3, 0))=\"\", \"\",  INDEX('Full set Core Client Indicator'!$A$3:$AB$351, MATCH(Selection_Hide2!$A308, 'Full set Core Client Indicator'!$A$3:$A$351, 0), MATCH(Selection_Hide2!S$5, 'Full set Core Client Indicator'!$A$3:$AB$3, 0))), \"\")","v":""},{"$f":"IF(S308<>\"\", IF(INDEX('Full set Core Client Indicator'!$A$3:$AB$351, MATCH(Selection_Hide2!$A308, 'Full set Core Client Indicator'!$A$3:$A$351, 0), MATCH(Selection_Hide2!T$5, 'Full set Core Client Indicator'!$A$3:$AB$3, 0))=\"\", \"\",  INDEX('Full set Core Client Indicator'!$A$3:$AB$351, MATCH(Selection_Hide2!$A308, 'Full set Core Client Indicator'!$A$3:$A$351, 0), MATCH(Selection_Hide2!T$5, 'Full set Core Client Indicator'!$A$3:$AB$3, 0))), \"\")","v":""},{"$f":"IF(T308<>\"\", IF(INDEX('Full set Core Client Indicator'!$A$3:$AB$351, MATCH(Selection_Hide2!$A308, 'Full set Core Client Indicator'!$A$3:$A$351, 0), MATCH(Selection_Hide2!U$5, 'Full set Core Client Indicator'!$A$3:$AB$3, 0))=\"\", \"\",  INDEX('Full set Core Client Indicator'!$A$3:$AB$351, MATCH(Selection_Hide2!$A308, 'Full set Core Client Indicator'!$A$3:$A$351, 0), MATCH(Selection_Hide2!U$5, 'Full set Core Client Indicator'!$A$3:$AB$3, 0))), \"\")","v":""},{"$f":"IF(U308<>\"\", IF(INDEX('Full set Core Client Indicator'!$A$3:$AB$351, MATCH(Selection_Hide2!$A308, 'Full set Core Client Indicator'!$A$3:$A$351, 0), MATCH(Selection_Hide2!V$5, 'Full set Core Client Indicator'!$A$3:$AB$3, 0))=\"\", \"\",  INDEX('Full set Core Client Indicator'!$A$3:$AB$351, MATCH(Selection_Hide2!$A308, 'Full set Core Client Indicator'!$A$3:$A$351, 0), MATCH(Selection_Hide2!V$5, 'Full set Core Client Indicator'!$A$3:$AB$3, 0))), \"\")","v":""},{"$f":"IF(V308<>\"\", IF(INDEX('Full set Core Client Indicator'!$A$3:$AB$351, MATCH(Selection_Hide2!$A308, 'Full set Core Client Indicator'!$A$3:$A$351, 0), MATCH(Selection_Hide2!W$5, 'Full set Core Client Indicator'!$A$3:$AB$3, 0))=\"\", \"\",  INDEX('Full set Core Client Indicator'!$A$3:$AB$351, MATCH(Selection_Hide2!$A308, 'Full set Core Client Indicator'!$A$3:$A$351, 0), MATCH(Selection_Hide2!W$5, 'Full set Core Client Indicator'!$A$3:$AB$3, 0))), \"\")","v":""},{"$f":"IF(W308<>\"\", IF(INDEX('Full set Core Client Indicator'!$A$3:$AB$351, MATCH(Selection_Hide2!$A308, 'Full set Core Client Indicator'!$A$3:$A$351, 0), MATCH(Selection_Hide2!X$5, 'Full set Core Client Indicator'!$A$3:$AB$3, 0))=\"\", \"\",  INDEX('Full set Core Client Indicator'!$A$3:$AB$351, MATCH(Selection_Hide2!$A308, 'Full set Core Client Indicator'!$A$3:$A$351, 0), MATCH(Selection_Hide2!X$5, 'Full set Core Client Indicator'!$A$3:$AB$3, 0))), \"\")","v":""},{"$f":"IF(X308<>\"\", IF(INDEX('Full set Core Client Indicator'!$A$3:$AB$351, MATCH(Selection_Hide2!$A308, 'Full set Core Client Indicator'!$A$3:$A$351, 0), MATCH(Selection_Hide2!Y$5, 'Full set Core Client Indicator'!$A$3:$AB$3, 0))=\"\", \"\",  INDEX('Full set Core Client Indicator'!$A$3:$AB$351, MATCH(Selection_Hide2!$A308, 'Full set Core Client Indicator'!$A$3:$A$351, 0), MATCH(Selection_Hide2!Y$5, 'Full set Core Client Indicator'!$A$3:$AB$3, 0))), \"\")","v":""},{"$f":"IF(Y308<>\"\", IF(INDEX('Full set Core Client Indicator'!$A$3:$AB$351, MATCH(Selection_Hide2!$A308, 'Full set Core Client Indicator'!$A$3:$A$351, 0), MATCH(Selection_Hide2!Z$5, 'Full set Core Client Indicator'!$A$3:$AB$3, 0))=\"\", \"\",  INDEX('Full set Core Client Indicator'!$A$3:$AB$351, MATCH(Selection_Hide2!$A308, 'Full set Core Client Indicator'!$A$3:$A$351, 0), MATCH(Selection_Hide2!Z$5, 'Full set Core Client Indicator'!$A$3:$AB$3, 0))), \"\")","v":""},{"$f":"IF(Z308<>\"\", IF(INDEX('Full set Core Client Indicator'!$A$3:$AB$351, MATCH(Selection_Hide2!$A308, 'Full set Core Client Indicator'!$A$3:$A$351, 0), MATCH(Selection_Hide2!AA$5, 'Full set Core Client Indicator'!$A$3:$AB$3, 0))=\"\", \"\",  INDEX('Full set Core Client Indicator'!$A$3:$AB$351, MATCH(Selection_Hide2!$A308, 'Full set Core Client Indicator'!$A$3:$A$351, 0), MATCH(Selection_Hide2!AA$5, 'Full set Core Client Indicator'!$A$3:$AB$3, 0))), \"\")","v":""},{"$f":"IF(AA308<>\"\", IF(INDEX('Full set Core Client Indicator'!$A$3:$AB$351, MATCH(Selection_Hide2!$A308, 'Full set Core Client Indicator'!$A$3:$A$351, 0), MATCH(Selection_Hide2!AB$5, 'Full set Core Client Indicator'!$A$3:$AB$3, 0))=\"\", \"\",  INDEX('Full set Core Client Indicator'!$A$3:$AB$351, MATCH(Selection_Hide2!$A308, 'Full set Core Client Indicator'!$A$3:$A$351, 0), MATCH(Selection_Hide2!AB$5, 'Full set Core Client Indicator'!$A$3:$AB$3, 0))), \"\")","v":""}]
[{"$f":"IF(AND(Selection_Hide1!C307<>0, Selection_Hide1!C307<>\"Grand Total\"), Selection_Hide1!C307, \"\")","v":""},{"$f":"IF(A309<>\"\", IF(INDEX('Full set Core Client Indicator'!$A$3:$AB$351, MATCH(Selection_Hide2!$A309, 'Full set Core Client Indicator'!$A$3:$A$351, 0), MATCH(Selection_Hide2!B$5, 'Full set Core Client Indicator'!$A$3:$AB$3, 0))=\"\", \"\",  INDEX('Full set Core Client Indicator'!$A$3:$AB$351, MATCH(Selection_Hide2!$A309, 'Full set Core Client Indicator'!$A$3:$A$351, 0), MATCH(Selection_Hide2!B$5, 'Full set Core Client Indicator'!$A$3:$AB$3, 0))), \"\")","v":""},{"$f":"IF(B309<>\"\", IF(INDEX('Full set Core Client Indicator'!$A$3:$AB$351, MATCH(Selection_Hide2!$A309, 'Full set Core Client Indicator'!$A$3:$A$351, 0), MATCH(Selection_Hide2!C$5, 'Full set Core Client Indicator'!$A$3:$AB$3, 0))=\"\", \"\",  INDEX('Full set Core Client Indicator'!$A$3:$AB$351, MATCH(Selection_Hide2!$A309, 'Full set Core Client Indicator'!$A$3:$A$351, 0), MATCH(Selection_Hide2!C$5, 'Full set Core Client Indicator'!$A$3:$AB$3, 0))), \"\")","v":""},{"$f":"IF(C309<>\"\", IF(INDEX('Full set Core Client Indicator'!$A$3:$AB$351, MATCH(Selection_Hide2!$A309, 'Full set Core Client Indicator'!$A$3:$A$351, 0), MATCH(Selection_Hide2!D$5, 'Full set Core Client Indicator'!$A$3:$AB$3, 0))=\"\", \"\",  INDEX('Full set Core Client Indicator'!$A$3:$AB$351, MATCH(Selection_Hide2!$A309, 'Full set Core Client Indicator'!$A$3:$A$351, 0), MATCH(Selection_Hide2!D$5, 'Full set Core Client Indicator'!$A$3:$AB$3, 0))), \"\")","v":""},{"$f":"IF(D309<>\"\", IF(INDEX('Full set Core Client Indicator'!$A$3:$AB$351, MATCH(Selection_Hide2!$A309, 'Full set Core Client Indicator'!$A$3:$A$351, 0), MATCH(Selection_Hide2!E$5, 'Full set Core Client Indicator'!$A$3:$AB$3, 0))=\"\", \"\",  INDEX('Full set Core Client Indicator'!$A$3:$AB$351, MATCH(Selection_Hide2!$A309, 'Full set Core Client Indicator'!$A$3:$A$351, 0), MATCH(Selection_Hide2!E$5, 'Full set Core Client Indicator'!$A$3:$AB$3, 0))), \"\")","v":""},{"$f":"IF(E309<>\"\", IF(INDEX('Full set Core Client Indicator'!$A$3:$AB$351, MATCH(Selection_Hide2!$A309, 'Full set Core Client Indicator'!$A$3:$A$351, 0), MATCH(Selection_Hide2!F$5, 'Full set Core Client Indicator'!$A$3:$AB$3, 0))=\"\", \"\",  INDEX('Full set Core Client Indicator'!$A$3:$AB$351, MATCH(Selection_Hide2!$A309, 'Full set Core Client Indicator'!$A$3:$A$351, 0), MATCH(Selection_Hide2!F$5, 'Full set Core Client Indicator'!$A$3:$AB$3, 0))), \"\")","v":""},{"$f":"IF(F309<>\"\", IF(INDEX('Full set Core Client Indicator'!$A$3:$AB$351, MATCH(Selection_Hide2!$A309, 'Full set Core Client Indicator'!$A$3:$A$351, 0), MATCH(Selection_Hide2!G$5, 'Full set Core Client Indicator'!$A$3:$AB$3, 0))=\"\", \"\",  INDEX('Full set Core Client Indicator'!$A$3:$AB$351, MATCH(Selection_Hide2!$A309, 'Full set Core Client Indicator'!$A$3:$A$351, 0), MATCH(Selection_Hide2!G$5, 'Full set Core Client Indicator'!$A$3:$AB$3, 0))), \"\")","v":""},{"$f":"IF(G309<>\"\", IF(INDEX('Full set Core Client Indicator'!$A$3:$AB$351, MATCH(Selection_Hide2!$A309, 'Full set Core Client Indicator'!$A$3:$A$351, 0), MATCH(Selection_Hide2!H$5, 'Full set Core Client Indicator'!$A$3:$AB$3, 0))=\"\", \"\",  INDEX('Full set Core Client Indicator'!$A$3:$AB$351, MATCH(Selection_Hide2!$A309, 'Full set Core Client Indicator'!$A$3:$A$351, 0), MATCH(Selection_Hide2!H$5, 'Full set Core Client Indicator'!$A$3:$AB$3, 0))), \"\")","v":""},{"$f":"IF(H309<>\"\", IF(INDEX('Full set Core Client Indicator'!$A$3:$AB$351, MATCH(Selection_Hide2!$A309, 'Full set Core Client Indicator'!$A$3:$A$351, 0), MATCH(Selection_Hide2!I$5, 'Full set Core Client Indicator'!$A$3:$AB$3, 0))=\"\", \"\",  INDEX('Full set Core Client Indicator'!$A$3:$AB$351, MATCH(Selection_Hide2!$A309, 'Full set Core Client Indicator'!$A$3:$A$351, 0), MATCH(Selection_Hide2!I$5, 'Full set Core Client Indicator'!$A$3:$AB$3, 0))), \"\")","v":""},{"$f":"IF(I309<>\"\", IF(INDEX('Full set Core Client Indicator'!$A$3:$AB$351, MATCH(Selection_Hide2!$A309, 'Full set Core Client Indicator'!$A$3:$A$351, 0), MATCH(Selection_Hide2!J$5, 'Full set Core Client Indicator'!$A$3:$AB$3, 0))=\"\", \"\",  INDEX('Full set Core Client Indicator'!$A$3:$AB$351, MATCH(Selection_Hide2!$A309, 'Full set Core Client Indicator'!$A$3:$A$351, 0), MATCH(Selection_Hide2!J$5, 'Full set Core Client Indicator'!$A$3:$AB$3, 0))), \"\")","v":""},{"$f":"IF(J309<>\"\", IF(INDEX('Full set Core Client Indicator'!$A$3:$AB$351, MATCH(Selection_Hide2!$A309, 'Full set Core Client Indicator'!$A$3:$A$351, 0), MATCH(Selection_Hide2!K$5, 'Full set Core Client Indicator'!$A$3:$AB$3, 0))=\"\", \"\",  INDEX('Full set Core Client Indicator'!$A$3:$AB$351, MATCH(Selection_Hide2!$A309, 'Full set Core Client Indicator'!$A$3:$A$351, 0), MATCH(Selection_Hide2!K$5, 'Full set Core Client Indicator'!$A$3:$AB$3, 0))), \"\")","v":""},{"$f":"IF(K309<>\"\", IF(INDEX('Full set Core Client Indicator'!$A$3:$AB$351, MATCH(Selection_Hide2!$A309, 'Full set Core Client Indicator'!$A$3:$A$351, 0), MATCH(Selection_Hide2!L$5, 'Full set Core Client Indicator'!$A$3:$AB$3, 0))=\"\", \"\",  INDEX('Full set Core Client Indicator'!$A$3:$AB$351, MATCH(Selection_Hide2!$A309, 'Full set Core Client Indicator'!$A$3:$A$351, 0), MATCH(Selection_Hide2!L$5, 'Full set Core Client Indicator'!$A$3:$AB$3, 0))), \"\")","v":""},{"$f":"IF(L309<>\"\", IF(INDEX('Full set Core Client Indicator'!$A$3:$AB$351, MATCH(Selection_Hide2!$A309, 'Full set Core Client Indicator'!$A$3:$A$351, 0), MATCH(Selection_Hide2!M$5, 'Full set Core Client Indicator'!$A$3:$AB$3, 0))=\"\", \"\",  INDEX('Full set Core Client Indicator'!$A$3:$AB$351, MATCH(Selection_Hide2!$A309, 'Full set Core Client Indicator'!$A$3:$A$351, 0), MATCH(Selection_Hide2!M$5, 'Full set Core Client Indicator'!$A$3:$AB$3, 0))), \"\")","v":""},{"$f":"IF(M309<>\"\", IF(INDEX('Full set Core Client Indicator'!$A$3:$AB$351, MATCH(Selection_Hide2!$A309, 'Full set Core Client Indicator'!$A$3:$A$351, 0), MATCH(Selection_Hide2!N$5, 'Full set Core Client Indicator'!$A$3:$AB$3, 0))=\"\", \"\",  INDEX('Full set Core Client Indicator'!$A$3:$AB$351, MATCH(Selection_Hide2!$A309, 'Full set Core Client Indicator'!$A$3:$A$351, 0), MATCH(Selection_Hide2!N$5, 'Full set Core Client Indicator'!$A$3:$AB$3, 0))), \"\")","v":""},{"$f":"IF(N309<>\"\", IF(INDEX('Full set Core Client Indicator'!$A$3:$AB$351, MATCH(Selection_Hide2!$A309, 'Full set Core Client Indicator'!$A$3:$A$351, 0), MATCH(Selection_Hide2!O$5, 'Full set Core Client Indicator'!$A$3:$AB$3, 0))=\"\", \"\",  INDEX('Full set Core Client Indicator'!$A$3:$AB$351, MATCH(Selection_Hide2!$A309, 'Full set Core Client Indicator'!$A$3:$A$351, 0), MATCH(Selection_Hide2!O$5, 'Full set Core Client Indicator'!$A$3:$AB$3, 0))), \"\")","v":""},{"$f":"IF(O309<>\"\", IF(INDEX('Full set Core Client Indicator'!$A$3:$AB$351, MATCH(Selection_Hide2!$A309, 'Full set Core Client Indicator'!$A$3:$A$351, 0), MATCH(Selection_Hide2!P$5, 'Full set Core Client Indicator'!$A$3:$AB$3, 0))=\"\", \"\",  INDEX('Full set Core Client Indicator'!$A$3:$AB$351, MATCH(Selection_Hide2!$A309, 'Full set Core Client Indicator'!$A$3:$A$351, 0), MATCH(Selection_Hide2!P$5, 'Full set Core Client Indicator'!$A$3:$AB$3, 0))), \"\")","v":""},{"$f":"IF(P309<>\"\", IF(INDEX('Full set Core Client Indicator'!$A$3:$AB$351, MATCH(Selection_Hide2!$A309, 'Full set Core Client Indicator'!$A$3:$A$351, 0), MATCH(Selection_Hide2!Q$5, 'Full set Core Client Indicator'!$A$3:$AB$3, 0))=\"\", \"\",  INDEX('Full set Core Client Indicator'!$A$3:$AB$351, MATCH(Selection_Hide2!$A309, 'Full set Core Client Indicator'!$A$3:$A$351, 0), MATCH(Selection_Hide2!Q$5, 'Full set Core Client Indicator'!$A$3:$AB$3, 0))), \"\")","v":""},{"$f":"IF(Q309<>\"\", IF(INDEX('Full set Core Client Indicator'!$A$3:$AB$351, MATCH(Selection_Hide2!$A309, 'Full set Core Client Indicator'!$A$3:$A$351, 0), MATCH(Selection_Hide2!R$5, 'Full set Core Client Indicator'!$A$3:$AB$3, 0))=\"\", \"\",  INDEX('Full set Core Client Indicator'!$A$3:$AB$351, MATCH(Selection_Hide2!$A309, 'Full set Core Client Indicator'!$A$3:$A$351, 0), MATCH(Selection_Hide2!R$5, 'Full set Core Client Indicator'!$A$3:$AB$3, 0))), \"\")","v":""},{"$f":"IF(R309<>\"\", IF(INDEX('Full set Core Client Indicator'!$A$3:$AB$351, MATCH(Selection_Hide2!$A309, 'Full set Core Client Indicator'!$A$3:$A$351, 0), MATCH(Selection_Hide2!S$5, 'Full set Core Client Indicator'!$A$3:$AB$3, 0))=\"\", \"\",  INDEX('Full set Core Client Indicator'!$A$3:$AB$351, MATCH(Selection_Hide2!$A309, 'Full set Core Client Indicator'!$A$3:$A$351, 0), MATCH(Selection_Hide2!S$5, 'Full set Core Client Indicator'!$A$3:$AB$3, 0))), \"\")","v":""},{"$f":"IF(S309<>\"\", IF(INDEX('Full set Core Client Indicator'!$A$3:$AB$351, MATCH(Selection_Hide2!$A309, 'Full set Core Client Indicator'!$A$3:$A$351, 0), MATCH(Selection_Hide2!T$5, 'Full set Core Client Indicator'!$A$3:$AB$3, 0))=\"\", \"\",  INDEX('Full set Core Client Indicator'!$A$3:$AB$351, MATCH(Selection_Hide2!$A309, 'Full set Core Client Indicator'!$A$3:$A$351, 0), MATCH(Selection_Hide2!T$5, 'Full set Core Client Indicator'!$A$3:$AB$3, 0))), \"\")","v":""},{"$f":"IF(T309<>\"\", IF(INDEX('Full set Core Client Indicator'!$A$3:$AB$351, MATCH(Selection_Hide2!$A309, 'Full set Core Client Indicator'!$A$3:$A$351, 0), MATCH(Selection_Hide2!U$5, 'Full set Core Client Indicator'!$A$3:$AB$3, 0))=\"\", \"\",  INDEX('Full set Core Client Indicator'!$A$3:$AB$351, MATCH(Selection_Hide2!$A309, 'Full set Core Client Indicator'!$A$3:$A$351, 0), MATCH(Selection_Hide2!U$5, 'Full set Core Client Indicator'!$A$3:$AB$3, 0))), \"\")","v":""},{"$f":"IF(U309<>\"\", IF(INDEX('Full set Core Client Indicator'!$A$3:$AB$351, MATCH(Selection_Hide2!$A309, 'Full set Core Client Indicator'!$A$3:$A$351, 0), MATCH(Selection_Hide2!V$5, 'Full set Core Client Indicator'!$A$3:$AB$3, 0))=\"\", \"\",  INDEX('Full set Core Client Indicator'!$A$3:$AB$351, MATCH(Selection_Hide2!$A309, 'Full set Core Client Indicator'!$A$3:$A$351, 0), MATCH(Selection_Hide2!V$5, 'Full set Core Client Indicator'!$A$3:$AB$3, 0))), \"\")","v":""},{"$f":"IF(V309<>\"\", IF(INDEX('Full set Core Client Indicator'!$A$3:$AB$351, MATCH(Selection_Hide2!$A309, 'Full set Core Client Indicator'!$A$3:$A$351, 0), MATCH(Selection_Hide2!W$5, 'Full set Core Client Indicator'!$A$3:$AB$3, 0))=\"\", \"\",  INDEX('Full set Core Client Indicator'!$A$3:$AB$351, MATCH(Selection_Hide2!$A309, 'Full set Core Client Indicator'!$A$3:$A$351, 0), MATCH(Selection_Hide2!W$5, 'Full set Core Client Indicator'!$A$3:$AB$3, 0))), \"\")","v":""},{"$f":"IF(W309<>\"\", IF(INDEX('Full set Core Client Indicator'!$A$3:$AB$351, MATCH(Selection_Hide2!$A309, 'Full set Core Client Indicator'!$A$3:$A$351, 0), MATCH(Selection_Hide2!X$5, 'Full set Core Client Indicator'!$A$3:$AB$3, 0))=\"\", \"\",  INDEX('Full set Core Client Indicator'!$A$3:$AB$351, MATCH(Selection_Hide2!$A309, 'Full set Core Client Indicator'!$A$3:$A$351, 0), MATCH(Selection_Hide2!X$5, 'Full set Core Client Indicator'!$A$3:$AB$3, 0))), \"\")","v":""},{"$f":"IF(X309<>\"\", IF(INDEX('Full set Core Client Indicator'!$A$3:$AB$351, MATCH(Selection_Hide2!$A309, 'Full set Core Client Indicator'!$A$3:$A$351, 0), MATCH(Selection_Hide2!Y$5, 'Full set Core Client Indicator'!$A$3:$AB$3, 0))=\"\", \"\",  INDEX('Full set Core Client Indicator'!$A$3:$AB$351, MATCH(Selection_Hide2!$A309, 'Full set Core Client Indicator'!$A$3:$A$351, 0), MATCH(Selection_Hide2!Y$5, 'Full set Core Client Indicator'!$A$3:$AB$3, 0))), \"\")","v":""},{"$f":"IF(Y309<>\"\", IF(INDEX('Full set Core Client Indicator'!$A$3:$AB$351, MATCH(Selection_Hide2!$A309, 'Full set Core Client Indicator'!$A$3:$A$351, 0), MATCH(Selection_Hide2!Z$5, 'Full set Core Client Indicator'!$A$3:$AB$3, 0))=\"\", \"\",  INDEX('Full set Core Client Indicator'!$A$3:$AB$351, MATCH(Selection_Hide2!$A309, 'Full set Core Client Indicator'!$A$3:$A$351, 0), MATCH(Selection_Hide2!Z$5, 'Full set Core Client Indicator'!$A$3:$AB$3, 0))), \"\")","v":""},{"$f":"IF(Z309<>\"\", IF(INDEX('Full set Core Client Indicator'!$A$3:$AB$351, MATCH(Selection_Hide2!$A309, 'Full set Core Client Indicator'!$A$3:$A$351, 0), MATCH(Selection_Hide2!AA$5, 'Full set Core Client Indicator'!$A$3:$AB$3, 0))=\"\", \"\",  INDEX('Full set Core Client Indicator'!$A$3:$AB$351, MATCH(Selection_Hide2!$A309, 'Full set Core Client Indicator'!$A$3:$A$351, 0), MATCH(Selection_Hide2!AA$5, 'Full set Core Client Indicator'!$A$3:$AB$3, 0))), \"\")","v":""},{"$f":"IF(AA309<>\"\", IF(INDEX('Full set Core Client Indicator'!$A$3:$AB$351, MATCH(Selection_Hide2!$A309, 'Full set Core Client Indicator'!$A$3:$A$351, 0), MATCH(Selection_Hide2!AB$5, 'Full set Core Client Indicator'!$A$3:$AB$3, 0))=\"\", \"\",  INDEX('Full set Core Client Indicator'!$A$3:$AB$351, MATCH(Selection_Hide2!$A309, 'Full set Core Client Indicator'!$A$3:$A$351, 0), MATCH(Selection_Hide2!AB$5, 'Full set Core Client Indicator'!$A$3:$AB$3, 0))), \"\")","v":""}]
[{"$f":"IF(AND(Selection_Hide1!C308<>0, Selection_Hide1!C308<>\"Grand Total\"), Selection_Hide1!C308, \"\")","v":""},{"$f":"IF(A310<>\"\", IF(INDEX('Full set Core Client Indicator'!$A$3:$AB$351, MATCH(Selection_Hide2!$A310, 'Full set Core Client Indicator'!$A$3:$A$351, 0), MATCH(Selection_Hide2!B$5, 'Full set Core Client Indicator'!$A$3:$AB$3, 0))=\"\", \"\",  INDEX('Full set Core Client Indicator'!$A$3:$AB$351, MATCH(Selection_Hide2!$A310, 'Full set Core Client Indicator'!$A$3:$A$351, 0), MATCH(Selection_Hide2!B$5, 'Full set Core Client Indicator'!$A$3:$AB$3, 0))), \"\")","v":""},{"$f":"IF(B310<>\"\", IF(INDEX('Full set Core Client Indicator'!$A$3:$AB$351, MATCH(Selection_Hide2!$A310, 'Full set Core Client Indicator'!$A$3:$A$351, 0), MATCH(Selection_Hide2!C$5, 'Full set Core Client Indicator'!$A$3:$AB$3, 0))=\"\", \"\",  INDEX('Full set Core Client Indicator'!$A$3:$AB$351, MATCH(Selection_Hide2!$A310, 'Full set Core Client Indicator'!$A$3:$A$351, 0), MATCH(Selection_Hide2!C$5, 'Full set Core Client Indicator'!$A$3:$AB$3, 0))), \"\")","v":""},{"$f":"IF(C310<>\"\", IF(INDEX('Full set Core Client Indicator'!$A$3:$AB$351, MATCH(Selection_Hide2!$A310, 'Full set Core Client Indicator'!$A$3:$A$351, 0), MATCH(Selection_Hide2!D$5, 'Full set Core Client Indicator'!$A$3:$AB$3, 0))=\"\", \"\",  INDEX('Full set Core Client Indicator'!$A$3:$AB$351, MATCH(Selection_Hide2!$A310, 'Full set Core Client Indicator'!$A$3:$A$351, 0), MATCH(Selection_Hide2!D$5, 'Full set Core Client Indicator'!$A$3:$AB$3, 0))), \"\")","v":""},{"$f":"IF(D310<>\"\", IF(INDEX('Full set Core Client Indicator'!$A$3:$AB$351, MATCH(Selection_Hide2!$A310, 'Full set Core Client Indicator'!$A$3:$A$351, 0), MATCH(Selection_Hide2!E$5, 'Full set Core Client Indicator'!$A$3:$AB$3, 0))=\"\", \"\",  INDEX('Full set Core Client Indicator'!$A$3:$AB$351, MATCH(Selection_Hide2!$A310, 'Full set Core Client Indicator'!$A$3:$A$351, 0), MATCH(Selection_Hide2!E$5, 'Full set Core Client Indicator'!$A$3:$AB$3, 0))), \"\")","v":""},{"$f":"IF(E310<>\"\", IF(INDEX('Full set Core Client Indicator'!$A$3:$AB$351, MATCH(Selection_Hide2!$A310, 'Full set Core Client Indicator'!$A$3:$A$351, 0), MATCH(Selection_Hide2!F$5, 'Full set Core Client Indicator'!$A$3:$AB$3, 0))=\"\", \"\",  INDEX('Full set Core Client Indicator'!$A$3:$AB$351, MATCH(Selection_Hide2!$A310, 'Full set Core Client Indicator'!$A$3:$A$351, 0), MATCH(Selection_Hide2!F$5, 'Full set Core Client Indicator'!$A$3:$AB$3, 0))), \"\")","v":""},{"$f":"IF(F310<>\"\", IF(INDEX('Full set Core Client Indicator'!$A$3:$AB$351, MATCH(Selection_Hide2!$A310, 'Full set Core Client Indicator'!$A$3:$A$351, 0), MATCH(Selection_Hide2!G$5, 'Full set Core Client Indicator'!$A$3:$AB$3, 0))=\"\", \"\",  INDEX('Full set Core Client Indicator'!$A$3:$AB$351, MATCH(Selection_Hide2!$A310, 'Full set Core Client Indicator'!$A$3:$A$351, 0), MATCH(Selection_Hide2!G$5, 'Full set Core Client Indicator'!$A$3:$AB$3, 0))), \"\")","v":""},{"$f":"IF(G310<>\"\", IF(INDEX('Full set Core Client Indicator'!$A$3:$AB$351, MATCH(Selection_Hide2!$A310, 'Full set Core Client Indicator'!$A$3:$A$351, 0), MATCH(Selection_Hide2!H$5, 'Full set Core Client Indicator'!$A$3:$AB$3, 0))=\"\", \"\",  INDEX('Full set Core Client Indicator'!$A$3:$AB$351, MATCH(Selection_Hide2!$A310, 'Full set Core Client Indicator'!$A$3:$A$351, 0), MATCH(Selection_Hide2!H$5, 'Full set Core Client Indicator'!$A$3:$AB$3, 0))), \"\")","v":""},{"$f":"IF(H310<>\"\", IF(INDEX('Full set Core Client Indicator'!$A$3:$AB$351, MATCH(Selection_Hide2!$A310, 'Full set Core Client Indicator'!$A$3:$A$351, 0), MATCH(Selection_Hide2!I$5, 'Full set Core Client Indicator'!$A$3:$AB$3, 0))=\"\", \"\",  INDEX('Full set Core Client Indicator'!$A$3:$AB$351, MATCH(Selection_Hide2!$A310, 'Full set Core Client Indicator'!$A$3:$A$351, 0), MATCH(Selection_Hide2!I$5, 'Full set Core Client Indicator'!$A$3:$AB$3, 0))), \"\")","v":""},{"$f":"IF(I310<>\"\", IF(INDEX('Full set Core Client Indicator'!$A$3:$AB$351, MATCH(Selection_Hide2!$A310, 'Full set Core Client Indicator'!$A$3:$A$351, 0), MATCH(Selection_Hide2!J$5, 'Full set Core Client Indicator'!$A$3:$AB$3, 0))=\"\", \"\",  INDEX('Full set Core Client Indicator'!$A$3:$AB$351, MATCH(Selection_Hide2!$A310, 'Full set Core Client Indicator'!$A$3:$A$351, 0), MATCH(Selection_Hide2!J$5, 'Full set Core Client Indicator'!$A$3:$AB$3, 0))), \"\")","v":""},{"$f":"IF(J310<>\"\", IF(INDEX('Full set Core Client Indicator'!$A$3:$AB$351, MATCH(Selection_Hide2!$A310, 'Full set Core Client Indicator'!$A$3:$A$351, 0), MATCH(Selection_Hide2!K$5, 'Full set Core Client Indicator'!$A$3:$AB$3, 0))=\"\", \"\",  INDEX('Full set Core Client Indicator'!$A$3:$AB$351, MATCH(Selection_Hide2!$A310, 'Full set Core Client Indicator'!$A$3:$A$351, 0), MATCH(Selection_Hide2!K$5, 'Full set Core Client Indicator'!$A$3:$AB$3, 0))), \"\")","v":""},{"$f":"IF(K310<>\"\", IF(INDEX('Full set Core Client Indicator'!$A$3:$AB$351, MATCH(Selection_Hide2!$A310, 'Full set Core Client Indicator'!$A$3:$A$351, 0), MATCH(Selection_Hide2!L$5, 'Full set Core Client Indicator'!$A$3:$AB$3, 0))=\"\", \"\",  INDEX('Full set Core Client Indicator'!$A$3:$AB$351, MATCH(Selection_Hide2!$A310, 'Full set Core Client Indicator'!$A$3:$A$351, 0), MATCH(Selection_Hide2!L$5, 'Full set Core Client Indicator'!$A$3:$AB$3, 0))), \"\")","v":""},{"$f":"IF(L310<>\"\", IF(INDEX('Full set Core Client Indicator'!$A$3:$AB$351, MATCH(Selection_Hide2!$A310, 'Full set Core Client Indicator'!$A$3:$A$351, 0), MATCH(Selection_Hide2!M$5, 'Full set Core Client Indicator'!$A$3:$AB$3, 0))=\"\", \"\",  INDEX('Full set Core Client Indicator'!$A$3:$AB$351, MATCH(Selection_Hide2!$A310, 'Full set Core Client Indicator'!$A$3:$A$351, 0), MATCH(Selection_Hide2!M$5, 'Full set Core Client Indicator'!$A$3:$AB$3, 0))), \"\")","v":""},{"$f":"IF(M310<>\"\", IF(INDEX('Full set Core Client Indicator'!$A$3:$AB$351, MATCH(Selection_Hide2!$A310, 'Full set Core Client Indicator'!$A$3:$A$351, 0), MATCH(Selection_Hide2!N$5, 'Full set Core Client Indicator'!$A$3:$AB$3, 0))=\"\", \"\",  INDEX('Full set Core Client Indicator'!$A$3:$AB$351, MATCH(Selection_Hide2!$A310, 'Full set Core Client Indicator'!$A$3:$A$351, 0), MATCH(Selection_Hide2!N$5, 'Full set Core Client Indicator'!$A$3:$AB$3, 0))), \"\")","v":""},{"$f":"IF(N310<>\"\", IF(INDEX('Full set Core Client Indicator'!$A$3:$AB$351, MATCH(Selection_Hide2!$A310, 'Full set Core Client Indicator'!$A$3:$A$351, 0), MATCH(Selection_Hide2!O$5, 'Full set Core Client Indicator'!$A$3:$AB$3, 0))=\"\", \"\",  INDEX('Full set Core Client Indicator'!$A$3:$AB$351, MATCH(Selection_Hide2!$A310, 'Full set Core Client Indicator'!$A$3:$A$351, 0), MATCH(Selection_Hide2!O$5, 'Full set Core Client Indicator'!$A$3:$AB$3, 0))), \"\")","v":""},{"$f":"IF(O310<>\"\", IF(INDEX('Full set Core Client Indicator'!$A$3:$AB$351, MATCH(Selection_Hide2!$A310, 'Full set Core Client Indicator'!$A$3:$A$351, 0), MATCH(Selection_Hide2!P$5, 'Full set Core Client Indicator'!$A$3:$AB$3, 0))=\"\", \"\",  INDEX('Full set Core Client Indicator'!$A$3:$AB$351, MATCH(Selection_Hide2!$A310, 'Full set Core Client Indicator'!$A$3:$A$351, 0), MATCH(Selection_Hide2!P$5, 'Full set Core Client Indicator'!$A$3:$AB$3, 0))), \"\")","v":""},{"$f":"IF(P310<>\"\", IF(INDEX('Full set Core Client Indicator'!$A$3:$AB$351, MATCH(Selection_Hide2!$A310, 'Full set Core Client Indicator'!$A$3:$A$351, 0), MATCH(Selection_Hide2!Q$5, 'Full set Core Client Indicator'!$A$3:$AB$3, 0))=\"\", \"\",  INDEX('Full set Core Client Indicator'!$A$3:$AB$351, MATCH(Selection_Hide2!$A310, 'Full set Core Client Indicator'!$A$3:$A$351, 0), MATCH(Selection_Hide2!Q$5, 'Full set Core Client Indicator'!$A$3:$AB$3, 0))), \"\")","v":""},{"$f":"IF(Q310<>\"\", IF(INDEX('Full set Core Client Indicator'!$A$3:$AB$351, MATCH(Selection_Hide2!$A310, 'Full set Core Client Indicator'!$A$3:$A$351, 0), MATCH(Selection_Hide2!R$5, 'Full set Core Client Indicator'!$A$3:$AB$3, 0))=\"\", \"\",  INDEX('Full set Core Client Indicator'!$A$3:$AB$351, MATCH(Selection_Hide2!$A310, 'Full set Core Client Indicator'!$A$3:$A$351, 0), MATCH(Selection_Hide2!R$5, 'Full set Core Client Indicator'!$A$3:$AB$3, 0))), \"\")","v":""},{"$f":"IF(R310<>\"\", IF(INDEX('Full set Core Client Indicator'!$A$3:$AB$351, MATCH(Selection_Hide2!$A310, 'Full set Core Client Indicator'!$A$3:$A$351, 0), MATCH(Selection_Hide2!S$5, 'Full set Core Client Indicator'!$A$3:$AB$3, 0))=\"\", \"\",  INDEX('Full set Core Client Indicator'!$A$3:$AB$351, MATCH(Selection_Hide2!$A310, 'Full set Core Client Indicator'!$A$3:$A$351, 0), MATCH(Selection_Hide2!S$5, 'Full set Core Client Indicator'!$A$3:$AB$3, 0))), \"\")","v":""},{"$f":"IF(S310<>\"\", IF(INDEX('Full set Core Client Indicator'!$A$3:$AB$351, MATCH(Selection_Hide2!$A310, 'Full set Core Client Indicator'!$A$3:$A$351, 0), MATCH(Selection_Hide2!T$5, 'Full set Core Client Indicator'!$A$3:$AB$3, 0))=\"\", \"\",  INDEX('Full set Core Client Indicator'!$A$3:$AB$351, MATCH(Selection_Hide2!$A310, 'Full set Core Client Indicator'!$A$3:$A$351, 0), MATCH(Selection_Hide2!T$5, 'Full set Core Client Indicator'!$A$3:$AB$3, 0))), \"\")","v":""},{"$f":"IF(T310<>\"\", IF(INDEX('Full set Core Client Indicator'!$A$3:$AB$351, MATCH(Selection_Hide2!$A310, 'Full set Core Client Indicator'!$A$3:$A$351, 0), MATCH(Selection_Hide2!U$5, 'Full set Core Client Indicator'!$A$3:$AB$3, 0))=\"\", \"\",  INDEX('Full set Core Client Indicator'!$A$3:$AB$351, MATCH(Selection_Hide2!$A310, 'Full set Core Client Indicator'!$A$3:$A$351, 0), MATCH(Selection_Hide2!U$5, 'Full set Core Client Indicator'!$A$3:$AB$3, 0))), \"\")","v":""},{"$f":"IF(U310<>\"\", IF(INDEX('Full set Core Client Indicator'!$A$3:$AB$351, MATCH(Selection_Hide2!$A310, 'Full set Core Client Indicator'!$A$3:$A$351, 0), MATCH(Selection_Hide2!V$5, 'Full set Core Client Indicator'!$A$3:$AB$3, 0))=\"\", \"\",  INDEX('Full set Core Client Indicator'!$A$3:$AB$351, MATCH(Selection_Hide2!$A310, 'Full set Core Client Indicator'!$A$3:$A$351, 0), MATCH(Selection_Hide2!V$5, 'Full set Core Client Indicator'!$A$3:$AB$3, 0))), \"\")","v":""},{"$f":"IF(V310<>\"\", IF(INDEX('Full set Core Client Indicator'!$A$3:$AB$351, MATCH(Selection_Hide2!$A310, 'Full set Core Client Indicator'!$A$3:$A$351, 0), MATCH(Selection_Hide2!W$5, 'Full set Core Client Indicator'!$A$3:$AB$3, 0))=\"\", \"\",  INDEX('Full set Core Client Indicator'!$A$3:$AB$351, MATCH(Selection_Hide2!$A310, 'Full set Core Client Indicator'!$A$3:$A$351, 0), MATCH(Selection_Hide2!W$5, 'Full set Core Client Indicator'!$A$3:$AB$3, 0))), \"\")","v":""},{"$f":"IF(W310<>\"\", IF(INDEX('Full set Core Client Indicator'!$A$3:$AB$351, MATCH(Selection_Hide2!$A310, 'Full set Core Client Indicator'!$A$3:$A$351, 0), MATCH(Selection_Hide2!X$5, 'Full set Core Client Indicator'!$A$3:$AB$3, 0))=\"\", \"\",  INDEX('Full set Core Client Indicator'!$A$3:$AB$351, MATCH(Selection_Hide2!$A310, 'Full set Core Client Indicator'!$A$3:$A$351, 0), MATCH(Selection_Hide2!X$5, 'Full set Core Client Indicator'!$A$3:$AB$3, 0))), \"\")","v":""},{"$f":"IF(X310<>\"\", IF(INDEX('Full set Core Client Indicator'!$A$3:$AB$351, MATCH(Selection_Hide2!$A310, 'Full set Core Client Indicator'!$A$3:$A$351, 0), MATCH(Selection_Hide2!Y$5, 'Full set Core Client Indicator'!$A$3:$AB$3, 0))=\"\", \"\",  INDEX('Full set Core Client Indicator'!$A$3:$AB$351, MATCH(Selection_Hide2!$A310, 'Full set Core Client Indicator'!$A$3:$A$351, 0), MATCH(Selection_Hide2!Y$5, 'Full set Core Client Indicator'!$A$3:$AB$3, 0))), \"\")","v":""},{"$f":"IF(Y310<>\"\", IF(INDEX('Full set Core Client Indicator'!$A$3:$AB$351, MATCH(Selection_Hide2!$A310, 'Full set Core Client Indicator'!$A$3:$A$351, 0), MATCH(Selection_Hide2!Z$5, 'Full set Core Client Indicator'!$A$3:$AB$3, 0))=\"\", \"\",  INDEX('Full set Core Client Indicator'!$A$3:$AB$351, MATCH(Selection_Hide2!$A310, 'Full set Core Client Indicator'!$A$3:$A$351, 0), MATCH(Selection_Hide2!Z$5, 'Full set Core Client Indicator'!$A$3:$AB$3, 0))), \"\")","v":""},{"$f":"IF(Z310<>\"\", IF(INDEX('Full set Core Client Indicator'!$A$3:$AB$351, MATCH(Selection_Hide2!$A310, 'Full set Core Client Indicator'!$A$3:$A$351, 0), MATCH(Selection_Hide2!AA$5, 'Full set Core Client Indicator'!$A$3:$AB$3, 0))=\"\", \"\",  INDEX('Full set Core Client Indicator'!$A$3:$AB$351, MATCH(Selection_Hide2!$A310, 'Full set Core Client Indicator'!$A$3:$A$351, 0), MATCH(Selection_Hide2!AA$5, 'Full set Core Client Indicator'!$A$3:$AB$3, 0))), \"\")","v":""},{"$f":"IF(AA310<>\"\", IF(INDEX('Full set Core Client Indicator'!$A$3:$AB$351, MATCH(Selection_Hide2!$A310, 'Full set Core Client Indicator'!$A$3:$A$351, 0), MATCH(Selection_Hide2!AB$5, 'Full set Core Client Indicator'!$A$3:$AB$3, 0))=\"\", \"\",  INDEX('Full set Core Client Indicator'!$A$3:$AB$351, MATCH(Selection_Hide2!$A310, 'Full set Core Client Indicator'!$A$3:$A$351, 0), MATCH(Selection_Hide2!AB$5, 'Full set Core Client Indicator'!$A$3:$AB$3, 0))), \"\")","v":""}]
[{"$f":"IF(AND(Selection_Hide1!C309<>0, Selection_Hide1!C309<>\"Grand Total\"), Selection_Hide1!C309, \"\")","v":""},{"$f":"IF(A311<>\"\", IF(INDEX('Full set Core Client Indicator'!$A$3:$AB$351, MATCH(Selection_Hide2!$A311, 'Full set Core Client Indicator'!$A$3:$A$351, 0), MATCH(Selection_Hide2!B$5, 'Full set Core Client Indicator'!$A$3:$AB$3, 0))=\"\", \"\",  INDEX('Full set Core Client Indicator'!$A$3:$AB$351, MATCH(Selection_Hide2!$A311, 'Full set Core Client Indicator'!$A$3:$A$351, 0), MATCH(Selection_Hide2!B$5, 'Full set Core Client Indicator'!$A$3:$AB$3, 0))), \"\")","v":""},{"$f":"IF(B311<>\"\", IF(INDEX('Full set Core Client Indicator'!$A$3:$AB$351, MATCH(Selection_Hide2!$A311, 'Full set Core Client Indicator'!$A$3:$A$351, 0), MATCH(Selection_Hide2!C$5, 'Full set Core Client Indicator'!$A$3:$AB$3, 0))=\"\", \"\",  INDEX('Full set Core Client Indicator'!$A$3:$AB$351, MATCH(Selection_Hide2!$A311, 'Full set Core Client Indicator'!$A$3:$A$351, 0), MATCH(Selection_Hide2!C$5, 'Full set Core Client Indicator'!$A$3:$AB$3, 0))), \"\")","v":""},{"$f":"IF(C311<>\"\", IF(INDEX('Full set Core Client Indicator'!$A$3:$AB$351, MATCH(Selection_Hide2!$A311, 'Full set Core Client Indicator'!$A$3:$A$351, 0), MATCH(Selection_Hide2!D$5, 'Full set Core Client Indicator'!$A$3:$AB$3, 0))=\"\", \"\",  INDEX('Full set Core Client Indicator'!$A$3:$AB$351, MATCH(Selection_Hide2!$A311, 'Full set Core Client Indicator'!$A$3:$A$351, 0), MATCH(Selection_Hide2!D$5, 'Full set Core Client Indicator'!$A$3:$AB$3, 0))), \"\")","v":""},{"$f":"IF(D311<>\"\", IF(INDEX('Full set Core Client Indicator'!$A$3:$AB$351, MATCH(Selection_Hide2!$A311, 'Full set Core Client Indicator'!$A$3:$A$351, 0), MATCH(Selection_Hide2!E$5, 'Full set Core Client Indicator'!$A$3:$AB$3, 0))=\"\", \"\",  INDEX('Full set Core Client Indicator'!$A$3:$AB$351, MATCH(Selection_Hide2!$A311, 'Full set Core Client Indicator'!$A$3:$A$351, 0), MATCH(Selection_Hide2!E$5, 'Full set Core Client Indicator'!$A$3:$AB$3, 0))), \"\")","v":""},{"$f":"IF(E311<>\"\", IF(INDEX('Full set Core Client Indicator'!$A$3:$AB$351, MATCH(Selection_Hide2!$A311, 'Full set Core Client Indicator'!$A$3:$A$351, 0), MATCH(Selection_Hide2!F$5, 'Full set Core Client Indicator'!$A$3:$AB$3, 0))=\"\", \"\",  INDEX('Full set Core Client Indicator'!$A$3:$AB$351, MATCH(Selection_Hide2!$A311, 'Full set Core Client Indicator'!$A$3:$A$351, 0), MATCH(Selection_Hide2!F$5, 'Full set Core Client Indicator'!$A$3:$AB$3, 0))), \"\")","v":""},{"$f":"IF(F311<>\"\", IF(INDEX('Full set Core Client Indicator'!$A$3:$AB$351, MATCH(Selection_Hide2!$A311, 'Full set Core Client Indicator'!$A$3:$A$351, 0), MATCH(Selection_Hide2!G$5, 'Full set Core Client Indicator'!$A$3:$AB$3, 0))=\"\", \"\",  INDEX('Full set Core Client Indicator'!$A$3:$AB$351, MATCH(Selection_Hide2!$A311, 'Full set Core Client Indicator'!$A$3:$A$351, 0), MATCH(Selection_Hide2!G$5, 'Full set Core Client Indicator'!$A$3:$AB$3, 0))), \"\")","v":""},{"$f":"IF(G311<>\"\", IF(INDEX('Full set Core Client Indicator'!$A$3:$AB$351, MATCH(Selection_Hide2!$A311, 'Full set Core Client Indicator'!$A$3:$A$351, 0), MATCH(Selection_Hide2!H$5, 'Full set Core Client Indicator'!$A$3:$AB$3, 0))=\"\", \"\",  INDEX('Full set Core Client Indicator'!$A$3:$AB$351, MATCH(Selection_Hide2!$A311, 'Full set Core Client Indicator'!$A$3:$A$351, 0), MATCH(Selection_Hide2!H$5, 'Full set Core Client Indicator'!$A$3:$AB$3, 0))), \"\")","v":""},{"$f":"IF(H311<>\"\", IF(INDEX('Full set Core Client Indicator'!$A$3:$AB$351, MATCH(Selection_Hide2!$A311, 'Full set Core Client Indicator'!$A$3:$A$351, 0), MATCH(Selection_Hide2!I$5, 'Full set Core Client Indicator'!$A$3:$AB$3, 0))=\"\", \"\",  INDEX('Full set Core Client Indicator'!$A$3:$AB$351, MATCH(Selection_Hide2!$A311, 'Full set Core Client Indicator'!$A$3:$A$351, 0), MATCH(Selection_Hide2!I$5, 'Full set Core Client Indicator'!$A$3:$AB$3, 0))), \"\")","v":""},{"$f":"IF(I311<>\"\", IF(INDEX('Full set Core Client Indicator'!$A$3:$AB$351, MATCH(Selection_Hide2!$A311, 'Full set Core Client Indicator'!$A$3:$A$351, 0), MATCH(Selection_Hide2!J$5, 'Full set Core Client Indicator'!$A$3:$AB$3, 0))=\"\", \"\",  INDEX('Full set Core Client Indicator'!$A$3:$AB$351, MATCH(Selection_Hide2!$A311, 'Full set Core Client Indicator'!$A$3:$A$351, 0), MATCH(Selection_Hide2!J$5, 'Full set Core Client Indicator'!$A$3:$AB$3, 0))), \"\")","v":""},{"$f":"IF(J311<>\"\", IF(INDEX('Full set Core Client Indicator'!$A$3:$AB$351, MATCH(Selection_Hide2!$A311, 'Full set Core Client Indicator'!$A$3:$A$351, 0), MATCH(Selection_Hide2!K$5, 'Full set Core Client Indicator'!$A$3:$AB$3, 0))=\"\", \"\",  INDEX('Full set Core Client Indicator'!$A$3:$AB$351, MATCH(Selection_Hide2!$A311, 'Full set Core Client Indicator'!$A$3:$A$351, 0), MATCH(Selection_Hide2!K$5, 'Full set Core Client Indicator'!$A$3:$AB$3, 0))), \"\")","v":""},{"$f":"IF(K311<>\"\", IF(INDEX('Full set Core Client Indicator'!$A$3:$AB$351, MATCH(Selection_Hide2!$A311, 'Full set Core Client Indicator'!$A$3:$A$351, 0), MATCH(Selection_Hide2!L$5, 'Full set Core Client Indicator'!$A$3:$AB$3, 0))=\"\", \"\",  INDEX('Full set Core Client Indicator'!$A$3:$AB$351, MATCH(Selection_Hide2!$A311, 'Full set Core Client Indicator'!$A$3:$A$351, 0), MATCH(Selection_Hide2!L$5, 'Full set Core Client Indicator'!$A$3:$AB$3, 0))), \"\")","v":""},{"$f":"IF(L311<>\"\", IF(INDEX('Full set Core Client Indicator'!$A$3:$AB$351, MATCH(Selection_Hide2!$A311, 'Full set Core Client Indicator'!$A$3:$A$351, 0), MATCH(Selection_Hide2!M$5, 'Full set Core Client Indicator'!$A$3:$AB$3, 0))=\"\", \"\",  INDEX('Full set Core Client Indicator'!$A$3:$AB$351, MATCH(Selection_Hide2!$A311, 'Full set Core Client Indicator'!$A$3:$A$351, 0), MATCH(Selection_Hide2!M$5, 'Full set Core Client Indicator'!$A$3:$AB$3, 0))), \"\")","v":""},{"$f":"IF(M311<>\"\", IF(INDEX('Full set Core Client Indicator'!$A$3:$AB$351, MATCH(Selection_Hide2!$A311, 'Full set Core Client Indicator'!$A$3:$A$351, 0), MATCH(Selection_Hide2!N$5, 'Full set Core Client Indicator'!$A$3:$AB$3, 0))=\"\", \"\",  INDEX('Full set Core Client Indicator'!$A$3:$AB$351, MATCH(Selection_Hide2!$A311, 'Full set Core Client Indicator'!$A$3:$A$351, 0), MATCH(Selection_Hide2!N$5, 'Full set Core Client Indicator'!$A$3:$AB$3, 0))), \"\")","v":""},{"$f":"IF(N311<>\"\", IF(INDEX('Full set Core Client Indicator'!$A$3:$AB$351, MATCH(Selection_Hide2!$A311, 'Full set Core Client Indicator'!$A$3:$A$351, 0), MATCH(Selection_Hide2!O$5, 'Full set Core Client Indicator'!$A$3:$AB$3, 0))=\"\", \"\",  INDEX('Full set Core Client Indicator'!$A$3:$AB$351, MATCH(Selection_Hide2!$A311, 'Full set Core Client Indicator'!$A$3:$A$351, 0), MATCH(Selection_Hide2!O$5, 'Full set Core Client Indicator'!$A$3:$AB$3, 0))), \"\")","v":""},{"$f":"IF(O311<>\"\", IF(INDEX('Full set Core Client Indicator'!$A$3:$AB$351, MATCH(Selection_Hide2!$A311, 'Full set Core Client Indicator'!$A$3:$A$351, 0), MATCH(Selection_Hide2!P$5, 'Full set Core Client Indicator'!$A$3:$AB$3, 0))=\"\", \"\",  INDEX('Full set Core Client Indicator'!$A$3:$AB$351, MATCH(Selection_Hide2!$A311, 'Full set Core Client Indicator'!$A$3:$A$351, 0), MATCH(Selection_Hide2!P$5, 'Full set Core Client Indicator'!$A$3:$AB$3, 0))), \"\")","v":""},{"$f":"IF(P311<>\"\", IF(INDEX('Full set Core Client Indicator'!$A$3:$AB$351, MATCH(Selection_Hide2!$A311, 'Full set Core Client Indicator'!$A$3:$A$351, 0), MATCH(Selection_Hide2!Q$5, 'Full set Core Client Indicator'!$A$3:$AB$3, 0))=\"\", \"\",  INDEX('Full set Core Client Indicator'!$A$3:$AB$351, MATCH(Selection_Hide2!$A311, 'Full set Core Client Indicator'!$A$3:$A$351, 0), MATCH(Selection_Hide2!Q$5, 'Full set Core Client Indicator'!$A$3:$AB$3, 0))), \"\")","v":""},{"$f":"IF(Q311<>\"\", IF(INDEX('Full set Core Client Indicator'!$A$3:$AB$351, MATCH(Selection_Hide2!$A311, 'Full set Core Client Indicator'!$A$3:$A$351, 0), MATCH(Selection_Hide2!R$5, 'Full set Core Client Indicator'!$A$3:$AB$3, 0))=\"\", \"\",  INDEX('Full set Core Client Indicator'!$A$3:$AB$351, MATCH(Selection_Hide2!$A311, 'Full set Core Client Indicator'!$A$3:$A$351, 0), MATCH(Selection_Hide2!R$5, 'Full set Core Client Indicator'!$A$3:$AB$3, 0))), \"\")","v":""},{"$f":"IF(R311<>\"\", IF(INDEX('Full set Core Client Indicator'!$A$3:$AB$351, MATCH(Selection_Hide2!$A311, 'Full set Core Client Indicator'!$A$3:$A$351, 0), MATCH(Selection_Hide2!S$5, 'Full set Core Client Indicator'!$A$3:$AB$3, 0))=\"\", \"\",  INDEX('Full set Core Client Indicator'!$A$3:$AB$351, MATCH(Selection_Hide2!$A311, 'Full set Core Client Indicator'!$A$3:$A$351, 0), MATCH(Selection_Hide2!S$5, 'Full set Core Client Indicator'!$A$3:$AB$3, 0))), \"\")","v":""},{"$f":"IF(S311<>\"\", IF(INDEX('Full set Core Client Indicator'!$A$3:$AB$351, MATCH(Selection_Hide2!$A311, 'Full set Core Client Indicator'!$A$3:$A$351, 0), MATCH(Selection_Hide2!T$5, 'Full set Core Client Indicator'!$A$3:$AB$3, 0))=\"\", \"\",  INDEX('Full set Core Client Indicator'!$A$3:$AB$351, MATCH(Selection_Hide2!$A311, 'Full set Core Client Indicator'!$A$3:$A$351, 0), MATCH(Selection_Hide2!T$5, 'Full set Core Client Indicator'!$A$3:$AB$3, 0))), \"\")","v":""},{"$f":"IF(T311<>\"\", IF(INDEX('Full set Core Client Indicator'!$A$3:$AB$351, MATCH(Selection_Hide2!$A311, 'Full set Core Client Indicator'!$A$3:$A$351, 0), MATCH(Selection_Hide2!U$5, 'Full set Core Client Indicator'!$A$3:$AB$3, 0))=\"\", \"\",  INDEX('Full set Core Client Indicator'!$A$3:$AB$351, MATCH(Selection_Hide2!$A311, 'Full set Core Client Indicator'!$A$3:$A$351, 0), MATCH(Selection_Hide2!U$5, 'Full set Core Client Indicator'!$A$3:$AB$3, 0))), \"\")","v":""},{"$f":"IF(U311<>\"\", IF(INDEX('Full set Core Client Indicator'!$A$3:$AB$351, MATCH(Selection_Hide2!$A311, 'Full set Core Client Indicator'!$A$3:$A$351, 0), MATCH(Selection_Hide2!V$5, 'Full set Core Client Indicator'!$A$3:$AB$3, 0))=\"\", \"\",  INDEX('Full set Core Client Indicator'!$A$3:$AB$351, MATCH(Selection_Hide2!$A311, 'Full set Core Client Indicator'!$A$3:$A$351, 0), MATCH(Selection_Hide2!V$5, 'Full set Core Client Indicator'!$A$3:$AB$3, 0))), \"\")","v":""},{"$f":"IF(V311<>\"\", IF(INDEX('Full set Core Client Indicator'!$A$3:$AB$351, MATCH(Selection_Hide2!$A311, 'Full set Core Client Indicator'!$A$3:$A$351, 0), MATCH(Selection_Hide2!W$5, 'Full set Core Client Indicator'!$A$3:$AB$3, 0))=\"\", \"\",  INDEX('Full set Core Client Indicator'!$A$3:$AB$351, MATCH(Selection_Hide2!$A311, 'Full set Core Client Indicator'!$A$3:$A$351, 0), MATCH(Selection_Hide2!W$5, 'Full set Core Client Indicator'!$A$3:$AB$3, 0))), \"\")","v":""},{"$f":"IF(W311<>\"\", IF(INDEX('Full set Core Client Indicator'!$A$3:$AB$351, MATCH(Selection_Hide2!$A311, 'Full set Core Client Indicator'!$A$3:$A$351, 0), MATCH(Selection_Hide2!X$5, 'Full set Core Client Indicator'!$A$3:$AB$3, 0))=\"\", \"\",  INDEX('Full set Core Client Indicator'!$A$3:$AB$351, MATCH(Selection_Hide2!$A311, 'Full set Core Client Indicator'!$A$3:$A$351, 0), MATCH(Selection_Hide2!X$5, 'Full set Core Client Indicator'!$A$3:$AB$3, 0))), \"\")","v":""},{"$f":"IF(X311<>\"\", IF(INDEX('Full set Core Client Indicator'!$A$3:$AB$351, MATCH(Selection_Hide2!$A311, 'Full set Core Client Indicator'!$A$3:$A$351, 0), MATCH(Selection_Hide2!Y$5, 'Full set Core Client Indicator'!$A$3:$AB$3, 0))=\"\", \"\",  INDEX('Full set Core Client Indicator'!$A$3:$AB$351, MATCH(Selection_Hide2!$A311, 'Full set Core Client Indicator'!$A$3:$A$351, 0), MATCH(Selection_Hide2!Y$5, 'Full set Core Client Indicator'!$A$3:$AB$3, 0))), \"\")","v":""},{"$f":"IF(Y311<>\"\", IF(INDEX('Full set Core Client Indicator'!$A$3:$AB$351, MATCH(Selection_Hide2!$A311, 'Full set Core Client Indicator'!$A$3:$A$351, 0), MATCH(Selection_Hide2!Z$5, 'Full set Core Client Indicator'!$A$3:$AB$3, 0))=\"\", \"\",  INDEX('Full set Core Client Indicator'!$A$3:$AB$351, MATCH(Selection_Hide2!$A311, 'Full set Core Client Indicator'!$A$3:$A$351, 0), MATCH(Selection_Hide2!Z$5, 'Full set Core Client Indicator'!$A$3:$AB$3, 0))), \"\")","v":""},{"$f":"IF(Z311<>\"\", IF(INDEX('Full set Core Client Indicator'!$A$3:$AB$351, MATCH(Selection_Hide2!$A311, 'Full set Core Client Indicator'!$A$3:$A$351, 0), MATCH(Selection_Hide2!AA$5, 'Full set Core Client Indicator'!$A$3:$AB$3, 0))=\"\", \"\",  INDEX('Full set Core Client Indicator'!$A$3:$AB$351, MATCH(Selection_Hide2!$A311, 'Full set Core Client Indicator'!$A$3:$A$351, 0), MATCH(Selection_Hide2!AA$5, 'Full set Core Client Indicator'!$A$3:$AB$3, 0))), \"\")","v":""},{"$f":"IF(AA311<>\"\", IF(INDEX('Full set Core Client Indicator'!$A$3:$AB$351, MATCH(Selection_Hide2!$A311, 'Full set Core Client Indicator'!$A$3:$A$351, 0), MATCH(Selection_Hide2!AB$5, 'Full set Core Client Indicator'!$A$3:$AB$3, 0))=\"\", \"\",  INDEX('Full set Core Client Indicator'!$A$3:$AB$351, MATCH(Selection_Hide2!$A311, 'Full set Core Client Indicator'!$A$3:$A$351, 0), MATCH(Selection_Hide2!AB$5, 'Full set Core Client Indicator'!$A$3:$AB$3, 0))), \"\")","v":""}]
[{"$f":"IF(AND(Selection_Hide1!C310<>0, Selection_Hide1!C310<>\"Grand Total\"), Selection_Hide1!C310, \"\")","v":""},{"$f":"IF(A312<>\"\", IF(INDEX('Full set Core Client Indicator'!$A$3:$AB$351, MATCH(Selection_Hide2!$A312, 'Full set Core Client Indicator'!$A$3:$A$351, 0), MATCH(Selection_Hide2!B$5, 'Full set Core Client Indicator'!$A$3:$AB$3, 0))=\"\", \"\",  INDEX('Full set Core Client Indicator'!$A$3:$AB$351, MATCH(Selection_Hide2!$A312, 'Full set Core Client Indicator'!$A$3:$A$351, 0), MATCH(Selection_Hide2!B$5, 'Full set Core Client Indicator'!$A$3:$AB$3, 0))), \"\")","v":""},{"$f":"IF(B312<>\"\", IF(INDEX('Full set Core Client Indicator'!$A$3:$AB$351, MATCH(Selection_Hide2!$A312, 'Full set Core Client Indicator'!$A$3:$A$351, 0), MATCH(Selection_Hide2!C$5, 'Full set Core Client Indicator'!$A$3:$AB$3, 0))=\"\", \"\",  INDEX('Full set Core Client Indicator'!$A$3:$AB$351, MATCH(Selection_Hide2!$A312, 'Full set Core Client Indicator'!$A$3:$A$351, 0), MATCH(Selection_Hide2!C$5, 'Full set Core Client Indicator'!$A$3:$AB$3, 0))), \"\")","v":""},{"$f":"IF(C312<>\"\", IF(INDEX('Full set Core Client Indicator'!$A$3:$AB$351, MATCH(Selection_Hide2!$A312, 'Full set Core Client Indicator'!$A$3:$A$351, 0), MATCH(Selection_Hide2!D$5, 'Full set Core Client Indicator'!$A$3:$AB$3, 0))=\"\", \"\",  INDEX('Full set Core Client Indicator'!$A$3:$AB$351, MATCH(Selection_Hide2!$A312, 'Full set Core Client Indicator'!$A$3:$A$351, 0), MATCH(Selection_Hide2!D$5, 'Full set Core Client Indicator'!$A$3:$AB$3, 0))), \"\")","v":""},{"$f":"IF(D312<>\"\", IF(INDEX('Full set Core Client Indicator'!$A$3:$AB$351, MATCH(Selection_Hide2!$A312, 'Full set Core Client Indicator'!$A$3:$A$351, 0), MATCH(Selection_Hide2!E$5, 'Full set Core Client Indicator'!$A$3:$AB$3, 0))=\"\", \"\",  INDEX('Full set Core Client Indicator'!$A$3:$AB$351, MATCH(Selection_Hide2!$A312, 'Full set Core Client Indicator'!$A$3:$A$351, 0), MATCH(Selection_Hide2!E$5, 'Full set Core Client Indicator'!$A$3:$AB$3, 0))), \"\")","v":""},{"$f":"IF(E312<>\"\", IF(INDEX('Full set Core Client Indicator'!$A$3:$AB$351, MATCH(Selection_Hide2!$A312, 'Full set Core Client Indicator'!$A$3:$A$351, 0), MATCH(Selection_Hide2!F$5, 'Full set Core Client Indicator'!$A$3:$AB$3, 0))=\"\", \"\",  INDEX('Full set Core Client Indicator'!$A$3:$AB$351, MATCH(Selection_Hide2!$A312, 'Full set Core Client Indicator'!$A$3:$A$351, 0), MATCH(Selection_Hide2!F$5, 'Full set Core Client Indicator'!$A$3:$AB$3, 0))), \"\")","v":""},{"$f":"IF(F312<>\"\", IF(INDEX('Full set Core Client Indicator'!$A$3:$AB$351, MATCH(Selection_Hide2!$A312, 'Full set Core Client Indicator'!$A$3:$A$351, 0), MATCH(Selection_Hide2!G$5, 'Full set Core Client Indicator'!$A$3:$AB$3, 0))=\"\", \"\",  INDEX('Full set Core Client Indicator'!$A$3:$AB$351, MATCH(Selection_Hide2!$A312, 'Full set Core Client Indicator'!$A$3:$A$351, 0), MATCH(Selection_Hide2!G$5, 'Full set Core Client Indicator'!$A$3:$AB$3, 0))), \"\")","v":""},{"$f":"IF(G312<>\"\", IF(INDEX('Full set Core Client Indicator'!$A$3:$AB$351, MATCH(Selection_Hide2!$A312, 'Full set Core Client Indicator'!$A$3:$A$351, 0), MATCH(Selection_Hide2!H$5, 'Full set Core Client Indicator'!$A$3:$AB$3, 0))=\"\", \"\",  INDEX('Full set Core Client Indicator'!$A$3:$AB$351, MATCH(Selection_Hide2!$A312, 'Full set Core Client Indicator'!$A$3:$A$351, 0), MATCH(Selection_Hide2!H$5, 'Full set Core Client Indicator'!$A$3:$AB$3, 0))), \"\")","v":""},{"$f":"IF(H312<>\"\", IF(INDEX('Full set Core Client Indicator'!$A$3:$AB$351, MATCH(Selection_Hide2!$A312, 'Full set Core Client Indicator'!$A$3:$A$351, 0), MATCH(Selection_Hide2!I$5, 'Full set Core Client Indicator'!$A$3:$AB$3, 0))=\"\", \"\",  INDEX('Full set Core Client Indicator'!$A$3:$AB$351, MATCH(Selection_Hide2!$A312, 'Full set Core Client Indicator'!$A$3:$A$351, 0), MATCH(Selection_Hide2!I$5, 'Full set Core Client Indicator'!$A$3:$AB$3, 0))), \"\")","v":""},{"$f":"IF(I312<>\"\", IF(INDEX('Full set Core Client Indicator'!$A$3:$AB$351, MATCH(Selection_Hide2!$A312, 'Full set Core Client Indicator'!$A$3:$A$351, 0), MATCH(Selection_Hide2!J$5, 'Full set Core Client Indicator'!$A$3:$AB$3, 0))=\"\", \"\",  INDEX('Full set Core Client Indicator'!$A$3:$AB$351, MATCH(Selection_Hide2!$A312, 'Full set Core Client Indicator'!$A$3:$A$351, 0), MATCH(Selection_Hide2!J$5, 'Full set Core Client Indicator'!$A$3:$AB$3, 0))), \"\")","v":""},{"$f":"IF(J312<>\"\", IF(INDEX('Full set Core Client Indicator'!$A$3:$AB$351, MATCH(Selection_Hide2!$A312, 'Full set Core Client Indicator'!$A$3:$A$351, 0), MATCH(Selection_Hide2!K$5, 'Full set Core Client Indicator'!$A$3:$AB$3, 0))=\"\", \"\",  INDEX('Full set Core Client Indicator'!$A$3:$AB$351, MATCH(Selection_Hide2!$A312, 'Full set Core Client Indicator'!$A$3:$A$351, 0), MATCH(Selection_Hide2!K$5, 'Full set Core Client Indicator'!$A$3:$AB$3, 0))), \"\")","v":""},{"$f":"IF(K312<>\"\", IF(INDEX('Full set Core Client Indicator'!$A$3:$AB$351, MATCH(Selection_Hide2!$A312, 'Full set Core Client Indicator'!$A$3:$A$351, 0), MATCH(Selection_Hide2!L$5, 'Full set Core Client Indicator'!$A$3:$AB$3, 0))=\"\", \"\",  INDEX('Full set Core Client Indicator'!$A$3:$AB$351, MATCH(Selection_Hide2!$A312, 'Full set Core Client Indicator'!$A$3:$A$351, 0), MATCH(Selection_Hide2!L$5, 'Full set Core Client Indicator'!$A$3:$AB$3, 0))), \"\")","v":""},{"$f":"IF(L312<>\"\", IF(INDEX('Full set Core Client Indicator'!$A$3:$AB$351, MATCH(Selection_Hide2!$A312, 'Full set Core Client Indicator'!$A$3:$A$351, 0), MATCH(Selection_Hide2!M$5, 'Full set Core Client Indicator'!$A$3:$AB$3, 0))=\"\", \"\",  INDEX('Full set Core Client Indicator'!$A$3:$AB$351, MATCH(Selection_Hide2!$A312, 'Full set Core Client Indicator'!$A$3:$A$351, 0), MATCH(Selection_Hide2!M$5, 'Full set Core Client Indicator'!$A$3:$AB$3, 0))), \"\")","v":""},{"$f":"IF(M312<>\"\", IF(INDEX('Full set Core Client Indicator'!$A$3:$AB$351, MATCH(Selection_Hide2!$A312, 'Full set Core Client Indicator'!$A$3:$A$351, 0), MATCH(Selection_Hide2!N$5, 'Full set Core Client Indicator'!$A$3:$AB$3, 0))=\"\", \"\",  INDEX('Full set Core Client Indicator'!$A$3:$AB$351, MATCH(Selection_Hide2!$A312, 'Full set Core Client Indicator'!$A$3:$A$351, 0), MATCH(Selection_Hide2!N$5, 'Full set Core Client Indicator'!$A$3:$AB$3, 0))), \"\")","v":""},{"$f":"IF(N312<>\"\", IF(INDEX('Full set Core Client Indicator'!$A$3:$AB$351, MATCH(Selection_Hide2!$A312, 'Full set Core Client Indicator'!$A$3:$A$351, 0), MATCH(Selection_Hide2!O$5, 'Full set Core Client Indicator'!$A$3:$AB$3, 0))=\"\", \"\",  INDEX('Full set Core Client Indicator'!$A$3:$AB$351, MATCH(Selection_Hide2!$A312, 'Full set Core Client Indicator'!$A$3:$A$351, 0), MATCH(Selection_Hide2!O$5, 'Full set Core Client Indicator'!$A$3:$AB$3, 0))), \"\")","v":""},{"$f":"IF(O312<>\"\", IF(INDEX('Full set Core Client Indicator'!$A$3:$AB$351, MATCH(Selection_Hide2!$A312, 'Full set Core Client Indicator'!$A$3:$A$351, 0), MATCH(Selection_Hide2!P$5, 'Full set Core Client Indicator'!$A$3:$AB$3, 0))=\"\", \"\",  INDEX('Full set Core Client Indicator'!$A$3:$AB$351, MATCH(Selection_Hide2!$A312, 'Full set Core Client Indicator'!$A$3:$A$351, 0), MATCH(Selection_Hide2!P$5, 'Full set Core Client Indicator'!$A$3:$AB$3, 0))), \"\")","v":""},{"$f":"IF(P312<>\"\", IF(INDEX('Full set Core Client Indicator'!$A$3:$AB$351, MATCH(Selection_Hide2!$A312, 'Full set Core Client Indicator'!$A$3:$A$351, 0), MATCH(Selection_Hide2!Q$5, 'Full set Core Client Indicator'!$A$3:$AB$3, 0))=\"\", \"\",  INDEX('Full set Core Client Indicator'!$A$3:$AB$351, MATCH(Selection_Hide2!$A312, 'Full set Core Client Indicator'!$A$3:$A$351, 0), MATCH(Selection_Hide2!Q$5, 'Full set Core Client Indicator'!$A$3:$AB$3, 0))), \"\")","v":""},{"$f":"IF(Q312<>\"\", IF(INDEX('Full set Core Client Indicator'!$A$3:$AB$351, MATCH(Selection_Hide2!$A312, 'Full set Core Client Indicator'!$A$3:$A$351, 0), MATCH(Selection_Hide2!R$5, 'Full set Core Client Indicator'!$A$3:$AB$3, 0))=\"\", \"\",  INDEX('Full set Core Client Indicator'!$A$3:$AB$351, MATCH(Selection_Hide2!$A312, 'Full set Core Client Indicator'!$A$3:$A$351, 0), MATCH(Selection_Hide2!R$5, 'Full set Core Client Indicator'!$A$3:$AB$3, 0))), \"\")","v":""},{"$f":"IF(R312<>\"\", IF(INDEX('Full set Core Client Indicator'!$A$3:$AB$351, MATCH(Selection_Hide2!$A312, 'Full set Core Client Indicator'!$A$3:$A$351, 0), MATCH(Selection_Hide2!S$5, 'Full set Core Client Indicator'!$A$3:$AB$3, 0))=\"\", \"\",  INDEX('Full set Core Client Indicator'!$A$3:$AB$351, MATCH(Selection_Hide2!$A312, 'Full set Core Client Indicator'!$A$3:$A$351, 0), MATCH(Selection_Hide2!S$5, 'Full set Core Client Indicator'!$A$3:$AB$3, 0))), \"\")","v":""},{"$f":"IF(S312<>\"\", IF(INDEX('Full set Core Client Indicator'!$A$3:$AB$351, MATCH(Selection_Hide2!$A312, 'Full set Core Client Indicator'!$A$3:$A$351, 0), MATCH(Selection_Hide2!T$5, 'Full set Core Client Indicator'!$A$3:$AB$3, 0))=\"\", \"\",  INDEX('Full set Core Client Indicator'!$A$3:$AB$351, MATCH(Selection_Hide2!$A312, 'Full set Core Client Indicator'!$A$3:$A$351, 0), MATCH(Selection_Hide2!T$5, 'Full set Core Client Indicator'!$A$3:$AB$3, 0))), \"\")","v":""},{"$f":"IF(T312<>\"\", IF(INDEX('Full set Core Client Indicator'!$A$3:$AB$351, MATCH(Selection_Hide2!$A312, 'Full set Core Client Indicator'!$A$3:$A$351, 0), MATCH(Selection_Hide2!U$5, 'Full set Core Client Indicator'!$A$3:$AB$3, 0))=\"\", \"\",  INDEX('Full set Core Client Indicator'!$A$3:$AB$351, MATCH(Selection_Hide2!$A312, 'Full set Core Client Indicator'!$A$3:$A$351, 0), MATCH(Selection_Hide2!U$5, 'Full set Core Client Indicator'!$A$3:$AB$3, 0))), \"\")","v":""},{"$f":"IF(U312<>\"\", IF(INDEX('Full set Core Client Indicator'!$A$3:$AB$351, MATCH(Selection_Hide2!$A312, 'Full set Core Client Indicator'!$A$3:$A$351, 0), MATCH(Selection_Hide2!V$5, 'Full set Core Client Indicator'!$A$3:$AB$3, 0))=\"\", \"\",  INDEX('Full set Core Client Indicator'!$A$3:$AB$351, MATCH(Selection_Hide2!$A312, 'Full set Core Client Indicator'!$A$3:$A$351, 0), MATCH(Selection_Hide2!V$5, 'Full set Core Client Indicator'!$A$3:$AB$3, 0))), \"\")","v":""},{"$f":"IF(V312<>\"\", IF(INDEX('Full set Core Client Indicator'!$A$3:$AB$351, MATCH(Selection_Hide2!$A312, 'Full set Core Client Indicator'!$A$3:$A$351, 0), MATCH(Selection_Hide2!W$5, 'Full set Core Client Indicator'!$A$3:$AB$3, 0))=\"\", \"\",  INDEX('Full set Core Client Indicator'!$A$3:$AB$351, MATCH(Selection_Hide2!$A312, 'Full set Core Client Indicator'!$A$3:$A$351, 0), MATCH(Selection_Hide2!W$5, 'Full set Core Client Indicator'!$A$3:$AB$3, 0))), \"\")","v":""},{"$f":"IF(W312<>\"\", IF(INDEX('Full set Core Client Indicator'!$A$3:$AB$351, MATCH(Selection_Hide2!$A312, 'Full set Core Client Indicator'!$A$3:$A$351, 0), MATCH(Selection_Hide2!X$5, 'Full set Core Client Indicator'!$A$3:$AB$3, 0))=\"\", \"\",  INDEX('Full set Core Client Indicator'!$A$3:$AB$351, MATCH(Selection_Hide2!$A312, 'Full set Core Client Indicator'!$A$3:$A$351, 0), MATCH(Selection_Hide2!X$5, 'Full set Core Client Indicator'!$A$3:$AB$3, 0))), \"\")","v":""},{"$f":"IF(X312<>\"\", IF(INDEX('Full set Core Client Indicator'!$A$3:$AB$351, MATCH(Selection_Hide2!$A312, 'Full set Core Client Indicator'!$A$3:$A$351, 0), MATCH(Selection_Hide2!Y$5, 'Full set Core Client Indicator'!$A$3:$AB$3, 0))=\"\", \"\",  INDEX('Full set Core Client Indicator'!$A$3:$AB$351, MATCH(Selection_Hide2!$A312, 'Full set Core Client Indicator'!$A$3:$A$351, 0), MATCH(Selection_Hide2!Y$5, 'Full set Core Client Indicator'!$A$3:$AB$3, 0))), \"\")","v":""},{"$f":"IF(Y312<>\"\", IF(INDEX('Full set Core Client Indicator'!$A$3:$AB$351, MATCH(Selection_Hide2!$A312, 'Full set Core Client Indicator'!$A$3:$A$351, 0), MATCH(Selection_Hide2!Z$5, 'Full set Core Client Indicator'!$A$3:$AB$3, 0))=\"\", \"\",  INDEX('Full set Core Client Indicator'!$A$3:$AB$351, MATCH(Selection_Hide2!$A312, 'Full set Core Client Indicator'!$A$3:$A$351, 0), MATCH(Selection_Hide2!Z$5, 'Full set Core Client Indicator'!$A$3:$AB$3, 0))), \"\")","v":""},{"$f":"IF(Z312<>\"\", IF(INDEX('Full set Core Client Indicator'!$A$3:$AB$351, MATCH(Selection_Hide2!$A312, 'Full set Core Client Indicator'!$A$3:$A$351, 0), MATCH(Selection_Hide2!AA$5, 'Full set Core Client Indicator'!$A$3:$AB$3, 0))=\"\", \"\",  INDEX('Full set Core Client Indicator'!$A$3:$AB$351, MATCH(Selection_Hide2!$A312, 'Full set Core Client Indicator'!$A$3:$A$351, 0), MATCH(Selection_Hide2!AA$5, 'Full set Core Client Indicator'!$A$3:$AB$3, 0))), \"\")","v":""},{"$f":"IF(AA312<>\"\", IF(INDEX('Full set Core Client Indicator'!$A$3:$AB$351, MATCH(Selection_Hide2!$A312, 'Full set Core Client Indicator'!$A$3:$A$351, 0), MATCH(Selection_Hide2!AB$5, 'Full set Core Client Indicator'!$A$3:$AB$3, 0))=\"\", \"\",  INDEX('Full set Core Client Indicator'!$A$3:$AB$351, MATCH(Selection_Hide2!$A312, 'Full set Core Client Indicator'!$A$3:$A$351, 0), MATCH(Selection_Hide2!AB$5, 'Full set Core Client Indicator'!$A$3:$AB$3, 0))), \"\")","v":""}]
[{"$f":"IF(AND(Selection_Hide1!C311<>0, Selection_Hide1!C311<>\"Grand Total\"), Selection_Hide1!C311, \"\")","v":""},{"$f":"IF(A313<>\"\", IF(INDEX('Full set Core Client Indicator'!$A$3:$AB$351, MATCH(Selection_Hide2!$A313, 'Full set Core Client Indicator'!$A$3:$A$351, 0), MATCH(Selection_Hide2!B$5, 'Full set Core Client Indicator'!$A$3:$AB$3, 0))=\"\", \"\",  INDEX('Full set Core Client Indicator'!$A$3:$AB$351, MATCH(Selection_Hide2!$A313, 'Full set Core Client Indicator'!$A$3:$A$351, 0), MATCH(Selection_Hide2!B$5, 'Full set Core Client Indicator'!$A$3:$AB$3, 0))), \"\")","v":""},{"$f":"IF(B313<>\"\", IF(INDEX('Full set Core Client Indicator'!$A$3:$AB$351, MATCH(Selection_Hide2!$A313, 'Full set Core Client Indicator'!$A$3:$A$351, 0), MATCH(Selection_Hide2!C$5, 'Full set Core Client Indicator'!$A$3:$AB$3, 0))=\"\", \"\",  INDEX('Full set Core Client Indicator'!$A$3:$AB$351, MATCH(Selection_Hide2!$A313, 'Full set Core Client Indicator'!$A$3:$A$351, 0), MATCH(Selection_Hide2!C$5, 'Full set Core Client Indicator'!$A$3:$AB$3, 0))), \"\")","v":""},{"$f":"IF(C313<>\"\", IF(INDEX('Full set Core Client Indicator'!$A$3:$AB$351, MATCH(Selection_Hide2!$A313, 'Full set Core Client Indicator'!$A$3:$A$351, 0), MATCH(Selection_Hide2!D$5, 'Full set Core Client Indicator'!$A$3:$AB$3, 0))=\"\", \"\",  INDEX('Full set Core Client Indicator'!$A$3:$AB$351, MATCH(Selection_Hide2!$A313, 'Full set Core Client Indicator'!$A$3:$A$351, 0), MATCH(Selection_Hide2!D$5, 'Full set Core Client Indicator'!$A$3:$AB$3, 0))), \"\")","v":""},{"$f":"IF(D313<>\"\", IF(INDEX('Full set Core Client Indicator'!$A$3:$AB$351, MATCH(Selection_Hide2!$A313, 'Full set Core Client Indicator'!$A$3:$A$351, 0), MATCH(Selection_Hide2!E$5, 'Full set Core Client Indicator'!$A$3:$AB$3, 0))=\"\", \"\",  INDEX('Full set Core Client Indicator'!$A$3:$AB$351, MATCH(Selection_Hide2!$A313, 'Full set Core Client Indicator'!$A$3:$A$351, 0), MATCH(Selection_Hide2!E$5, 'Full set Core Client Indicator'!$A$3:$AB$3, 0))), \"\")","v":""},{"$f":"IF(E313<>\"\", IF(INDEX('Full set Core Client Indicator'!$A$3:$AB$351, MATCH(Selection_Hide2!$A313, 'Full set Core Client Indicator'!$A$3:$A$351, 0), MATCH(Selection_Hide2!F$5, 'Full set Core Client Indicator'!$A$3:$AB$3, 0))=\"\", \"\",  INDEX('Full set Core Client Indicator'!$A$3:$AB$351, MATCH(Selection_Hide2!$A313, 'Full set Core Client Indicator'!$A$3:$A$351, 0), MATCH(Selection_Hide2!F$5, 'Full set Core Client Indicator'!$A$3:$AB$3, 0))), \"\")","v":""},{"$f":"IF(F313<>\"\", IF(INDEX('Full set Core Client Indicator'!$A$3:$AB$351, MATCH(Selection_Hide2!$A313, 'Full set Core Client Indicator'!$A$3:$A$351, 0), MATCH(Selection_Hide2!G$5, 'Full set Core Client Indicator'!$A$3:$AB$3, 0))=\"\", \"\",  INDEX('Full set Core Client Indicator'!$A$3:$AB$351, MATCH(Selection_Hide2!$A313, 'Full set Core Client Indicator'!$A$3:$A$351, 0), MATCH(Selection_Hide2!G$5, 'Full set Core Client Indicator'!$A$3:$AB$3, 0))), \"\")","v":""},{"$f":"IF(G313<>\"\", IF(INDEX('Full set Core Client Indicator'!$A$3:$AB$351, MATCH(Selection_Hide2!$A313, 'Full set Core Client Indicator'!$A$3:$A$351, 0), MATCH(Selection_Hide2!H$5, 'Full set Core Client Indicator'!$A$3:$AB$3, 0))=\"\", \"\",  INDEX('Full set Core Client Indicator'!$A$3:$AB$351, MATCH(Selection_Hide2!$A313, 'Full set Core Client Indicator'!$A$3:$A$351, 0), MATCH(Selection_Hide2!H$5, 'Full set Core Client Indicator'!$A$3:$AB$3, 0))), \"\")","v":""},{"$f":"IF(H313<>\"\", IF(INDEX('Full set Core Client Indicator'!$A$3:$AB$351, MATCH(Selection_Hide2!$A313, 'Full set Core Client Indicator'!$A$3:$A$351, 0), MATCH(Selection_Hide2!I$5, 'Full set Core Client Indicator'!$A$3:$AB$3, 0))=\"\", \"\",  INDEX('Full set Core Client Indicator'!$A$3:$AB$351, MATCH(Selection_Hide2!$A313, 'Full set Core Client Indicator'!$A$3:$A$351, 0), MATCH(Selection_Hide2!I$5, 'Full set Core Client Indicator'!$A$3:$AB$3, 0))), \"\")","v":""},{"$f":"IF(I313<>\"\", IF(INDEX('Full set Core Client Indicator'!$A$3:$AB$351, MATCH(Selection_Hide2!$A313, 'Full set Core Client Indicator'!$A$3:$A$351, 0), MATCH(Selection_Hide2!J$5, 'Full set Core Client Indicator'!$A$3:$AB$3, 0))=\"\", \"\",  INDEX('Full set Core Client Indicator'!$A$3:$AB$351, MATCH(Selection_Hide2!$A313, 'Full set Core Client Indicator'!$A$3:$A$351, 0), MATCH(Selection_Hide2!J$5, 'Full set Core Client Indicator'!$A$3:$AB$3, 0))), \"\")","v":""},{"$f":"IF(J313<>\"\", IF(INDEX('Full set Core Client Indicator'!$A$3:$AB$351, MATCH(Selection_Hide2!$A313, 'Full set Core Client Indicator'!$A$3:$A$351, 0), MATCH(Selection_Hide2!K$5, 'Full set Core Client Indicator'!$A$3:$AB$3, 0))=\"\", \"\",  INDEX('Full set Core Client Indicator'!$A$3:$AB$351, MATCH(Selection_Hide2!$A313, 'Full set Core Client Indicator'!$A$3:$A$351, 0), MATCH(Selection_Hide2!K$5, 'Full set Core Client Indicator'!$A$3:$AB$3, 0))), \"\")","v":""},{"$f":"IF(K313<>\"\", IF(INDEX('Full set Core Client Indicator'!$A$3:$AB$351, MATCH(Selection_Hide2!$A313, 'Full set Core Client Indicator'!$A$3:$A$351, 0), MATCH(Selection_Hide2!L$5, 'Full set Core Client Indicator'!$A$3:$AB$3, 0))=\"\", \"\",  INDEX('Full set Core Client Indicator'!$A$3:$AB$351, MATCH(Selection_Hide2!$A313, 'Full set Core Client Indicator'!$A$3:$A$351, 0), MATCH(Selection_Hide2!L$5, 'Full set Core Client Indicator'!$A$3:$AB$3, 0))), \"\")","v":""},{"$f":"IF(L313<>\"\", IF(INDEX('Full set Core Client Indicator'!$A$3:$AB$351, MATCH(Selection_Hide2!$A313, 'Full set Core Client Indicator'!$A$3:$A$351, 0), MATCH(Selection_Hide2!M$5, 'Full set Core Client Indicator'!$A$3:$AB$3, 0))=\"\", \"\",  INDEX('Full set Core Client Indicator'!$A$3:$AB$351, MATCH(Selection_Hide2!$A313, 'Full set Core Client Indicator'!$A$3:$A$351, 0), MATCH(Selection_Hide2!M$5, 'Full set Core Client Indicator'!$A$3:$AB$3, 0))), \"\")","v":""},{"$f":"IF(M313<>\"\", IF(INDEX('Full set Core Client Indicator'!$A$3:$AB$351, MATCH(Selection_Hide2!$A313, 'Full set Core Client Indicator'!$A$3:$A$351, 0), MATCH(Selection_Hide2!N$5, 'Full set Core Client Indicator'!$A$3:$AB$3, 0))=\"\", \"\",  INDEX('Full set Core Client Indicator'!$A$3:$AB$351, MATCH(Selection_Hide2!$A313, 'Full set Core Client Indicator'!$A$3:$A$351, 0), MATCH(Selection_Hide2!N$5, 'Full set Core Client Indicator'!$A$3:$AB$3, 0))), \"\")","v":""},{"$f":"IF(N313<>\"\", IF(INDEX('Full set Core Client Indicator'!$A$3:$AB$351, MATCH(Selection_Hide2!$A313, 'Full set Core Client Indicator'!$A$3:$A$351, 0), MATCH(Selection_Hide2!O$5, 'Full set Core Client Indicator'!$A$3:$AB$3, 0))=\"\", \"\",  INDEX('Full set Core Client Indicator'!$A$3:$AB$351, MATCH(Selection_Hide2!$A313, 'Full set Core Client Indicator'!$A$3:$A$351, 0), MATCH(Selection_Hide2!O$5, 'Full set Core Client Indicator'!$A$3:$AB$3, 0))), \"\")","v":""},{"$f":"IF(O313<>\"\", IF(INDEX('Full set Core Client Indicator'!$A$3:$AB$351, MATCH(Selection_Hide2!$A313, 'Full set Core Client Indicator'!$A$3:$A$351, 0), MATCH(Selection_Hide2!P$5, 'Full set Core Client Indicator'!$A$3:$AB$3, 0))=\"\", \"\",  INDEX('Full set Core Client Indicator'!$A$3:$AB$351, MATCH(Selection_Hide2!$A313, 'Full set Core Client Indicator'!$A$3:$A$351, 0), MATCH(Selection_Hide2!P$5, 'Full set Core Client Indicator'!$A$3:$AB$3, 0))), \"\")","v":""},{"$f":"IF(P313<>\"\", IF(INDEX('Full set Core Client Indicator'!$A$3:$AB$351, MATCH(Selection_Hide2!$A313, 'Full set Core Client Indicator'!$A$3:$A$351, 0), MATCH(Selection_Hide2!Q$5, 'Full set Core Client Indicator'!$A$3:$AB$3, 0))=\"\", \"\",  INDEX('Full set Core Client Indicator'!$A$3:$AB$351, MATCH(Selection_Hide2!$A313, 'Full set Core Client Indicator'!$A$3:$A$351, 0), MATCH(Selection_Hide2!Q$5, 'Full set Core Client Indicator'!$A$3:$AB$3, 0))), \"\")","v":""},{"$f":"IF(Q313<>\"\", IF(INDEX('Full set Core Client Indicator'!$A$3:$AB$351, MATCH(Selection_Hide2!$A313, 'Full set Core Client Indicator'!$A$3:$A$351, 0), MATCH(Selection_Hide2!R$5, 'Full set Core Client Indicator'!$A$3:$AB$3, 0))=\"\", \"\",  INDEX('Full set Core Client Indicator'!$A$3:$AB$351, MATCH(Selection_Hide2!$A313, 'Full set Core Client Indicator'!$A$3:$A$351, 0), MATCH(Selection_Hide2!R$5, 'Full set Core Client Indicator'!$A$3:$AB$3, 0))), \"\")","v":""},{"$f":"IF(R313<>\"\", IF(INDEX('Full set Core Client Indicator'!$A$3:$AB$351, MATCH(Selection_Hide2!$A313, 'Full set Core Client Indicator'!$A$3:$A$351, 0), MATCH(Selection_Hide2!S$5, 'Full set Core Client Indicator'!$A$3:$AB$3, 0))=\"\", \"\",  INDEX('Full set Core Client Indicator'!$A$3:$AB$351, MATCH(Selection_Hide2!$A313, 'Full set Core Client Indicator'!$A$3:$A$351, 0), MATCH(Selection_Hide2!S$5, 'Full set Core Client Indicator'!$A$3:$AB$3, 0))), \"\")","v":""},{"$f":"IF(S313<>\"\", IF(INDEX('Full set Core Client Indicator'!$A$3:$AB$351, MATCH(Selection_Hide2!$A313, 'Full set Core Client Indicator'!$A$3:$A$351, 0), MATCH(Selection_Hide2!T$5, 'Full set Core Client Indicator'!$A$3:$AB$3, 0))=\"\", \"\",  INDEX('Full set Core Client Indicator'!$A$3:$AB$351, MATCH(Selection_Hide2!$A313, 'Full set Core Client Indicator'!$A$3:$A$351, 0), MATCH(Selection_Hide2!T$5, 'Full set Core Client Indicator'!$A$3:$AB$3, 0))), \"\")","v":""},{"$f":"IF(T313<>\"\", IF(INDEX('Full set Core Client Indicator'!$A$3:$AB$351, MATCH(Selection_Hide2!$A313, 'Full set Core Client Indicator'!$A$3:$A$351, 0), MATCH(Selection_Hide2!U$5, 'Full set Core Client Indicator'!$A$3:$AB$3, 0))=\"\", \"\",  INDEX('Full set Core Client Indicator'!$A$3:$AB$351, MATCH(Selection_Hide2!$A313, 'Full set Core Client Indicator'!$A$3:$A$351, 0), MATCH(Selection_Hide2!U$5, 'Full set Core Client Indicator'!$A$3:$AB$3, 0))), \"\")","v":""},{"$f":"IF(U313<>\"\", IF(INDEX('Full set Core Client Indicator'!$A$3:$AB$351, MATCH(Selection_Hide2!$A313, 'Full set Core Client Indicator'!$A$3:$A$351, 0), MATCH(Selection_Hide2!V$5, 'Full set Core Client Indicator'!$A$3:$AB$3, 0))=\"\", \"\",  INDEX('Full set Core Client Indicator'!$A$3:$AB$351, MATCH(Selection_Hide2!$A313, 'Full set Core Client Indicator'!$A$3:$A$351, 0), MATCH(Selection_Hide2!V$5, 'Full set Core Client Indicator'!$A$3:$AB$3, 0))), \"\")","v":""},{"$f":"IF(V313<>\"\", IF(INDEX('Full set Core Client Indicator'!$A$3:$AB$351, MATCH(Selection_Hide2!$A313, 'Full set Core Client Indicator'!$A$3:$A$351, 0), MATCH(Selection_Hide2!W$5, 'Full set Core Client Indicator'!$A$3:$AB$3, 0))=\"\", \"\",  INDEX('Full set Core Client Indicator'!$A$3:$AB$351, MATCH(Selection_Hide2!$A313, 'Full set Core Client Indicator'!$A$3:$A$351, 0), MATCH(Selection_Hide2!W$5, 'Full set Core Client Indicator'!$A$3:$AB$3, 0))), \"\")","v":""},{"$f":"IF(W313<>\"\", IF(INDEX('Full set Core Client Indicator'!$A$3:$AB$351, MATCH(Selection_Hide2!$A313, 'Full set Core Client Indicator'!$A$3:$A$351, 0), MATCH(Selection_Hide2!X$5, 'Full set Core Client Indicator'!$A$3:$AB$3, 0))=\"\", \"\",  INDEX('Full set Core Client Indicator'!$A$3:$AB$351, MATCH(Selection_Hide2!$A313, 'Full set Core Client Indicator'!$A$3:$A$351, 0), MATCH(Selection_Hide2!X$5, 'Full set Core Client Indicator'!$A$3:$AB$3, 0))), \"\")","v":""},{"$f":"IF(X313<>\"\", IF(INDEX('Full set Core Client Indicator'!$A$3:$AB$351, MATCH(Selection_Hide2!$A313, 'Full set Core Client Indicator'!$A$3:$A$351, 0), MATCH(Selection_Hide2!Y$5, 'Full set Core Client Indicator'!$A$3:$AB$3, 0))=\"\", \"\",  INDEX('Full set Core Client Indicator'!$A$3:$AB$351, MATCH(Selection_Hide2!$A313, 'Full set Core Client Indicator'!$A$3:$A$351, 0), MATCH(Selection_Hide2!Y$5, 'Full set Core Client Indicator'!$A$3:$AB$3, 0))), \"\")","v":""},{"$f":"IF(Y313<>\"\", IF(INDEX('Full set Core Client Indicator'!$A$3:$AB$351, MATCH(Selection_Hide2!$A313, 'Full set Core Client Indicator'!$A$3:$A$351, 0), MATCH(Selection_Hide2!Z$5, 'Full set Core Client Indicator'!$A$3:$AB$3, 0))=\"\", \"\",  INDEX('Full set Core Client Indicator'!$A$3:$AB$351, MATCH(Selection_Hide2!$A313, 'Full set Core Client Indicator'!$A$3:$A$351, 0), MATCH(Selection_Hide2!Z$5, 'Full set Core Client Indicator'!$A$3:$AB$3, 0))), \"\")","v":""},{"$f":"IF(Z313<>\"\", IF(INDEX('Full set Core Client Indicator'!$A$3:$AB$351, MATCH(Selection_Hide2!$A313, 'Full set Core Client Indicator'!$A$3:$A$351, 0), MATCH(Selection_Hide2!AA$5, 'Full set Core Client Indicator'!$A$3:$AB$3, 0))=\"\", \"\",  INDEX('Full set Core Client Indicator'!$A$3:$AB$351, MATCH(Selection_Hide2!$A313, 'Full set Core Client Indicator'!$A$3:$A$351, 0), MATCH(Selection_Hide2!AA$5, 'Full set Core Client Indicator'!$A$3:$AB$3, 0))), \"\")","v":""},{"$f":"IF(AA313<>\"\", IF(INDEX('Full set Core Client Indicator'!$A$3:$AB$351, MATCH(Selection_Hide2!$A313, 'Full set Core Client Indicator'!$A$3:$A$351, 0), MATCH(Selection_Hide2!AB$5, 'Full set Core Client Indicator'!$A$3:$AB$3, 0))=\"\", \"\",  INDEX('Full set Core Client Indicator'!$A$3:$AB$351, MATCH(Selection_Hide2!$A313, 'Full set Core Client Indicator'!$A$3:$A$351, 0), MATCH(Selection_Hide2!AB$5, 'Full set Core Client Indicator'!$A$3:$AB$3, 0))), \"\")","v":""}]
[{"$f":"IF(AND(Selection_Hide1!C312<>0, Selection_Hide1!C312<>\"Grand Total\"), Selection_Hide1!C312, \"\")","v":""},{"$f":"IF(A314<>\"\", IF(INDEX('Full set Core Client Indicator'!$A$3:$AB$351, MATCH(Selection_Hide2!$A314, 'Full set Core Client Indicator'!$A$3:$A$351, 0), MATCH(Selection_Hide2!B$5, 'Full set Core Client Indicator'!$A$3:$AB$3, 0))=\"\", \"\",  INDEX('Full set Core Client Indicator'!$A$3:$AB$351, MATCH(Selection_Hide2!$A314, 'Full set Core Client Indicator'!$A$3:$A$351, 0), MATCH(Selection_Hide2!B$5, 'Full set Core Client Indicator'!$A$3:$AB$3, 0))), \"\")","v":""},{"$f":"IF(B314<>\"\", IF(INDEX('Full set Core Client Indicator'!$A$3:$AB$351, MATCH(Selection_Hide2!$A314, 'Full set Core Client Indicator'!$A$3:$A$351, 0), MATCH(Selection_Hide2!C$5, 'Full set Core Client Indicator'!$A$3:$AB$3, 0))=\"\", \"\",  INDEX('Full set Core Client Indicator'!$A$3:$AB$351, MATCH(Selection_Hide2!$A314, 'Full set Core Client Indicator'!$A$3:$A$351, 0), MATCH(Selection_Hide2!C$5, 'Full set Core Client Indicator'!$A$3:$AB$3, 0))), \"\")","v":""},{"$f":"IF(C314<>\"\", IF(INDEX('Full set Core Client Indicator'!$A$3:$AB$351, MATCH(Selection_Hide2!$A314, 'Full set Core Client Indicator'!$A$3:$A$351, 0), MATCH(Selection_Hide2!D$5, 'Full set Core Client Indicator'!$A$3:$AB$3, 0))=\"\", \"\",  INDEX('Full set Core Client Indicator'!$A$3:$AB$351, MATCH(Selection_Hide2!$A314, 'Full set Core Client Indicator'!$A$3:$A$351, 0), MATCH(Selection_Hide2!D$5, 'Full set Core Client Indicator'!$A$3:$AB$3, 0))), \"\")","v":""},{"$f":"IF(D314<>\"\", IF(INDEX('Full set Core Client Indicator'!$A$3:$AB$351, MATCH(Selection_Hide2!$A314, 'Full set Core Client Indicator'!$A$3:$A$351, 0), MATCH(Selection_Hide2!E$5, 'Full set Core Client Indicator'!$A$3:$AB$3, 0))=\"\", \"\",  INDEX('Full set Core Client Indicator'!$A$3:$AB$351, MATCH(Selection_Hide2!$A314, 'Full set Core Client Indicator'!$A$3:$A$351, 0), MATCH(Selection_Hide2!E$5, 'Full set Core Client Indicator'!$A$3:$AB$3, 0))), \"\")","v":""},{"$f":"IF(E314<>\"\", IF(INDEX('Full set Core Client Indicator'!$A$3:$AB$351, MATCH(Selection_Hide2!$A314, 'Full set Core Client Indicator'!$A$3:$A$351, 0), MATCH(Selection_Hide2!F$5, 'Full set Core Client Indicator'!$A$3:$AB$3, 0))=\"\", \"\",  INDEX('Full set Core Client Indicator'!$A$3:$AB$351, MATCH(Selection_Hide2!$A314, 'Full set Core Client Indicator'!$A$3:$A$351, 0), MATCH(Selection_Hide2!F$5, 'Full set Core Client Indicator'!$A$3:$AB$3, 0))), \"\")","v":""},{"$f":"IF(F314<>\"\", IF(INDEX('Full set Core Client Indicator'!$A$3:$AB$351, MATCH(Selection_Hide2!$A314, 'Full set Core Client Indicator'!$A$3:$A$351, 0), MATCH(Selection_Hide2!G$5, 'Full set Core Client Indicator'!$A$3:$AB$3, 0))=\"\", \"\",  INDEX('Full set Core Client Indicator'!$A$3:$AB$351, MATCH(Selection_Hide2!$A314, 'Full set Core Client Indicator'!$A$3:$A$351, 0), MATCH(Selection_Hide2!G$5, 'Full set Core Client Indicator'!$A$3:$AB$3, 0))), \"\")","v":""},{"$f":"IF(G314<>\"\", IF(INDEX('Full set Core Client Indicator'!$A$3:$AB$351, MATCH(Selection_Hide2!$A314, 'Full set Core Client Indicator'!$A$3:$A$351, 0), MATCH(Selection_Hide2!H$5, 'Full set Core Client Indicator'!$A$3:$AB$3, 0))=\"\", \"\",  INDEX('Full set Core Client Indicator'!$A$3:$AB$351, MATCH(Selection_Hide2!$A314, 'Full set Core Client Indicator'!$A$3:$A$351, 0), MATCH(Selection_Hide2!H$5, 'Full set Core Client Indicator'!$A$3:$AB$3, 0))), \"\")","v":""},{"$f":"IF(H314<>\"\", IF(INDEX('Full set Core Client Indicator'!$A$3:$AB$351, MATCH(Selection_Hide2!$A314, 'Full set Core Client Indicator'!$A$3:$A$351, 0), MATCH(Selection_Hide2!I$5, 'Full set Core Client Indicator'!$A$3:$AB$3, 0))=\"\", \"\",  INDEX('Full set Core Client Indicator'!$A$3:$AB$351, MATCH(Selection_Hide2!$A314, 'Full set Core Client Indicator'!$A$3:$A$351, 0), MATCH(Selection_Hide2!I$5, 'Full set Core Client Indicator'!$A$3:$AB$3, 0))), \"\")","v":""},{"$f":"IF(I314<>\"\", IF(INDEX('Full set Core Client Indicator'!$A$3:$AB$351, MATCH(Selection_Hide2!$A314, 'Full set Core Client Indicator'!$A$3:$A$351, 0), MATCH(Selection_Hide2!J$5, 'Full set Core Client Indicator'!$A$3:$AB$3, 0))=\"\", \"\",  INDEX('Full set Core Client Indicator'!$A$3:$AB$351, MATCH(Selection_Hide2!$A314, 'Full set Core Client Indicator'!$A$3:$A$351, 0), MATCH(Selection_Hide2!J$5, 'Full set Core Client Indicator'!$A$3:$AB$3, 0))), \"\")","v":""},{"$f":"IF(J314<>\"\", IF(INDEX('Full set Core Client Indicator'!$A$3:$AB$351, MATCH(Selection_Hide2!$A314, 'Full set Core Client Indicator'!$A$3:$A$351, 0), MATCH(Selection_Hide2!K$5, 'Full set Core Client Indicator'!$A$3:$AB$3, 0))=\"\", \"\",  INDEX('Full set Core Client Indicator'!$A$3:$AB$351, MATCH(Selection_Hide2!$A314, 'Full set Core Client Indicator'!$A$3:$A$351, 0), MATCH(Selection_Hide2!K$5, 'Full set Core Client Indicator'!$A$3:$AB$3, 0))), \"\")","v":""},{"$f":"IF(K314<>\"\", IF(INDEX('Full set Core Client Indicator'!$A$3:$AB$351, MATCH(Selection_Hide2!$A314, 'Full set Core Client Indicator'!$A$3:$A$351, 0), MATCH(Selection_Hide2!L$5, 'Full set Core Client Indicator'!$A$3:$AB$3, 0))=\"\", \"\",  INDEX('Full set Core Client Indicator'!$A$3:$AB$351, MATCH(Selection_Hide2!$A314, 'Full set Core Client Indicator'!$A$3:$A$351, 0), MATCH(Selection_Hide2!L$5, 'Full set Core Client Indicator'!$A$3:$AB$3, 0))), \"\")","v":""},{"$f":"IF(L314<>\"\", IF(INDEX('Full set Core Client Indicator'!$A$3:$AB$351, MATCH(Selection_Hide2!$A314, 'Full set Core Client Indicator'!$A$3:$A$351, 0), MATCH(Selection_Hide2!M$5, 'Full set Core Client Indicator'!$A$3:$AB$3, 0))=\"\", \"\",  INDEX('Full set Core Client Indicator'!$A$3:$AB$351, MATCH(Selection_Hide2!$A314, 'Full set Core Client Indicator'!$A$3:$A$351, 0), MATCH(Selection_Hide2!M$5, 'Full set Core Client Indicator'!$A$3:$AB$3, 0))), \"\")","v":""},{"$f":"IF(M314<>\"\", IF(INDEX('Full set Core Client Indicator'!$A$3:$AB$351, MATCH(Selection_Hide2!$A314, 'Full set Core Client Indicator'!$A$3:$A$351, 0), MATCH(Selection_Hide2!N$5, 'Full set Core Client Indicator'!$A$3:$AB$3, 0))=\"\", \"\",  INDEX('Full set Core Client Indicator'!$A$3:$AB$351, MATCH(Selection_Hide2!$A314, 'Full set Core Client Indicator'!$A$3:$A$351, 0), MATCH(Selection_Hide2!N$5, 'Full set Core Client Indicator'!$A$3:$AB$3, 0))), \"\")","v":""},{"$f":"IF(N314<>\"\", IF(INDEX('Full set Core Client Indicator'!$A$3:$AB$351, MATCH(Selection_Hide2!$A314, 'Full set Core Client Indicator'!$A$3:$A$351, 0), MATCH(Selection_Hide2!O$5, 'Full set Core Client Indicator'!$A$3:$AB$3, 0))=\"\", \"\",  INDEX('Full set Core Client Indicator'!$A$3:$AB$351, MATCH(Selection_Hide2!$A314, 'Full set Core Client Indicator'!$A$3:$A$351, 0), MATCH(Selection_Hide2!O$5, 'Full set Core Client Indicator'!$A$3:$AB$3, 0))), \"\")","v":""},{"$f":"IF(O314<>\"\", IF(INDEX('Full set Core Client Indicator'!$A$3:$AB$351, MATCH(Selection_Hide2!$A314, 'Full set Core Client Indicator'!$A$3:$A$351, 0), MATCH(Selection_Hide2!P$5, 'Full set Core Client Indicator'!$A$3:$AB$3, 0))=\"\", \"\",  INDEX('Full set Core Client Indicator'!$A$3:$AB$351, MATCH(Selection_Hide2!$A314, 'Full set Core Client Indicator'!$A$3:$A$351, 0), MATCH(Selection_Hide2!P$5, 'Full set Core Client Indicator'!$A$3:$AB$3, 0))), \"\")","v":""},{"$f":"IF(P314<>\"\", IF(INDEX('Full set Core Client Indicator'!$A$3:$AB$351, MATCH(Selection_Hide2!$A314, 'Full set Core Client Indicator'!$A$3:$A$351, 0), MATCH(Selection_Hide2!Q$5, 'Full set Core Client Indicator'!$A$3:$AB$3, 0))=\"\", \"\",  INDEX('Full set Core Client Indicator'!$A$3:$AB$351, MATCH(Selection_Hide2!$A314, 'Full set Core Client Indicator'!$A$3:$A$351, 0), MATCH(Selection_Hide2!Q$5, 'Full set Core Client Indicator'!$A$3:$AB$3, 0))), \"\")","v":""},{"$f":"IF(Q314<>\"\", IF(INDEX('Full set Core Client Indicator'!$A$3:$AB$351, MATCH(Selection_Hide2!$A314, 'Full set Core Client Indicator'!$A$3:$A$351, 0), MATCH(Selection_Hide2!R$5, 'Full set Core Client Indicator'!$A$3:$AB$3, 0))=\"\", \"\",  INDEX('Full set Core Client Indicator'!$A$3:$AB$351, MATCH(Selection_Hide2!$A314, 'Full set Core Client Indicator'!$A$3:$A$351, 0), MATCH(Selection_Hide2!R$5, 'Full set Core Client Indicator'!$A$3:$AB$3, 0))), \"\")","v":""},{"$f":"IF(R314<>\"\", IF(INDEX('Full set Core Client Indicator'!$A$3:$AB$351, MATCH(Selection_Hide2!$A314, 'Full set Core Client Indicator'!$A$3:$A$351, 0), MATCH(Selection_Hide2!S$5, 'Full set Core Client Indicator'!$A$3:$AB$3, 0))=\"\", \"\",  INDEX('Full set Core Client Indicator'!$A$3:$AB$351, MATCH(Selection_Hide2!$A314, 'Full set Core Client Indicator'!$A$3:$A$351, 0), MATCH(Selection_Hide2!S$5, 'Full set Core Client Indicator'!$A$3:$AB$3, 0))), \"\")","v":""},{"$f":"IF(S314<>\"\", IF(INDEX('Full set Core Client Indicator'!$A$3:$AB$351, MATCH(Selection_Hide2!$A314, 'Full set Core Client Indicator'!$A$3:$A$351, 0), MATCH(Selection_Hide2!T$5, 'Full set Core Client Indicator'!$A$3:$AB$3, 0))=\"\", \"\",  INDEX('Full set Core Client Indicator'!$A$3:$AB$351, MATCH(Selection_Hide2!$A314, 'Full set Core Client Indicator'!$A$3:$A$351, 0), MATCH(Selection_Hide2!T$5, 'Full set Core Client Indicator'!$A$3:$AB$3, 0))), \"\")","v":""},{"$f":"IF(T314<>\"\", IF(INDEX('Full set Core Client Indicator'!$A$3:$AB$351, MATCH(Selection_Hide2!$A314, 'Full set Core Client Indicator'!$A$3:$A$351, 0), MATCH(Selection_Hide2!U$5, 'Full set Core Client Indicator'!$A$3:$AB$3, 0))=\"\", \"\",  INDEX('Full set Core Client Indicator'!$A$3:$AB$351, MATCH(Selection_Hide2!$A314, 'Full set Core Client Indicator'!$A$3:$A$351, 0), MATCH(Selection_Hide2!U$5, 'Full set Core Client Indicator'!$A$3:$AB$3, 0))), \"\")","v":""},{"$f":"IF(U314<>\"\", IF(INDEX('Full set Core Client Indicator'!$A$3:$AB$351, MATCH(Selection_Hide2!$A314, 'Full set Core Client Indicator'!$A$3:$A$351, 0), MATCH(Selection_Hide2!V$5, 'Full set Core Client Indicator'!$A$3:$AB$3, 0))=\"\", \"\",  INDEX('Full set Core Client Indicator'!$A$3:$AB$351, MATCH(Selection_Hide2!$A314, 'Full set Core Client Indicator'!$A$3:$A$351, 0), MATCH(Selection_Hide2!V$5, 'Full set Core Client Indicator'!$A$3:$AB$3, 0))), \"\")","v":""},{"$f":"IF(V314<>\"\", IF(INDEX('Full set Core Client Indicator'!$A$3:$AB$351, MATCH(Selection_Hide2!$A314, 'Full set Core Client Indicator'!$A$3:$A$351, 0), MATCH(Selection_Hide2!W$5, 'Full set Core Client Indicator'!$A$3:$AB$3, 0))=\"\", \"\",  INDEX('Full set Core Client Indicator'!$A$3:$AB$351, MATCH(Selection_Hide2!$A314, 'Full set Core Client Indicator'!$A$3:$A$351, 0), MATCH(Selection_Hide2!W$5, 'Full set Core Client Indicator'!$A$3:$AB$3, 0))), \"\")","v":""},{"$f":"IF(W314<>\"\", IF(INDEX('Full set Core Client Indicator'!$A$3:$AB$351, MATCH(Selection_Hide2!$A314, 'Full set Core Client Indicator'!$A$3:$A$351, 0), MATCH(Selection_Hide2!X$5, 'Full set Core Client Indicator'!$A$3:$AB$3, 0))=\"\", \"\",  INDEX('Full set Core Client Indicator'!$A$3:$AB$351, MATCH(Selection_Hide2!$A314, 'Full set Core Client Indicator'!$A$3:$A$351, 0), MATCH(Selection_Hide2!X$5, 'Full set Core Client Indicator'!$A$3:$AB$3, 0))), \"\")","v":""},{"$f":"IF(X314<>\"\", IF(INDEX('Full set Core Client Indicator'!$A$3:$AB$351, MATCH(Selection_Hide2!$A314, 'Full set Core Client Indicator'!$A$3:$A$351, 0), MATCH(Selection_Hide2!Y$5, 'Full set Core Client Indicator'!$A$3:$AB$3, 0))=\"\", \"\",  INDEX('Full set Core Client Indicator'!$A$3:$AB$351, MATCH(Selection_Hide2!$A314, 'Full set Core Client Indicator'!$A$3:$A$351, 0), MATCH(Selection_Hide2!Y$5, 'Full set Core Client Indicator'!$A$3:$AB$3, 0))), \"\")","v":""},{"$f":"IF(Y314<>\"\", IF(INDEX('Full set Core Client Indicator'!$A$3:$AB$351, MATCH(Selection_Hide2!$A314, 'Full set Core Client Indicator'!$A$3:$A$351, 0), MATCH(Selection_Hide2!Z$5, 'Full set Core Client Indicator'!$A$3:$AB$3, 0))=\"\", \"\",  INDEX('Full set Core Client Indicator'!$A$3:$AB$351, MATCH(Selection_Hide2!$A314, 'Full set Core Client Indicator'!$A$3:$A$351, 0), MATCH(Selection_Hide2!Z$5, 'Full set Core Client Indicator'!$A$3:$AB$3, 0))), \"\")","v":""},{"$f":"IF(Z314<>\"\", IF(INDEX('Full set Core Client Indicator'!$A$3:$AB$351, MATCH(Selection_Hide2!$A314, 'Full set Core Client Indicator'!$A$3:$A$351, 0), MATCH(Selection_Hide2!AA$5, 'Full set Core Client Indicator'!$A$3:$AB$3, 0))=\"\", \"\",  INDEX('Full set Core Client Indicator'!$A$3:$AB$351, MATCH(Selection_Hide2!$A314, 'Full set Core Client Indicator'!$A$3:$A$351, 0), MATCH(Selection_Hide2!AA$5, 'Full set Core Client Indicator'!$A$3:$AB$3, 0))), \"\")","v":""},{"$f":"IF(AA314<>\"\", IF(INDEX('Full set Core Client Indicator'!$A$3:$AB$351, MATCH(Selection_Hide2!$A314, 'Full set Core Client Indicator'!$A$3:$A$351, 0), MATCH(Selection_Hide2!AB$5, 'Full set Core Client Indicator'!$A$3:$AB$3, 0))=\"\", \"\",  INDEX('Full set Core Client Indicator'!$A$3:$AB$351, MATCH(Selection_Hide2!$A314, 'Full set Core Client Indicator'!$A$3:$A$351, 0), MATCH(Selection_Hide2!AB$5, 'Full set Core Client Indicator'!$A$3:$AB$3, 0))), \"\")","v":""}]
[{"$f":"IF(AND(Selection_Hide1!C313<>0, Selection_Hide1!C313<>\"Grand Total\"), Selection_Hide1!C313, \"\")","v":""},{"$f":"IF(A315<>\"\", IF(INDEX('Full set Core Client Indicator'!$A$3:$AB$351, MATCH(Selection_Hide2!$A315, 'Full set Core Client Indicator'!$A$3:$A$351, 0), MATCH(Selection_Hide2!B$5, 'Full set Core Client Indicator'!$A$3:$AB$3, 0))=\"\", \"\",  INDEX('Full set Core Client Indicator'!$A$3:$AB$351, MATCH(Selection_Hide2!$A315, 'Full set Core Client Indicator'!$A$3:$A$351, 0), MATCH(Selection_Hide2!B$5, 'Full set Core Client Indicator'!$A$3:$AB$3, 0))), \"\")","v":""},{"$f":"IF(B315<>\"\", IF(INDEX('Full set Core Client Indicator'!$A$3:$AB$351, MATCH(Selection_Hide2!$A315, 'Full set Core Client Indicator'!$A$3:$A$351, 0), MATCH(Selection_Hide2!C$5, 'Full set Core Client Indicator'!$A$3:$AB$3, 0))=\"\", \"\",  INDEX('Full set Core Client Indicator'!$A$3:$AB$351, MATCH(Selection_Hide2!$A315, 'Full set Core Client Indicator'!$A$3:$A$351, 0), MATCH(Selection_Hide2!C$5, 'Full set Core Client Indicator'!$A$3:$AB$3, 0))), \"\")","v":""},{"$f":"IF(C315<>\"\", IF(INDEX('Full set Core Client Indicator'!$A$3:$AB$351, MATCH(Selection_Hide2!$A315, 'Full set Core Client Indicator'!$A$3:$A$351, 0), MATCH(Selection_Hide2!D$5, 'Full set Core Client Indicator'!$A$3:$AB$3, 0))=\"\", \"\",  INDEX('Full set Core Client Indicator'!$A$3:$AB$351, MATCH(Selection_Hide2!$A315, 'Full set Core Client Indicator'!$A$3:$A$351, 0), MATCH(Selection_Hide2!D$5, 'Full set Core Client Indicator'!$A$3:$AB$3, 0))), \"\")","v":""},{"$f":"IF(D315<>\"\", IF(INDEX('Full set Core Client Indicator'!$A$3:$AB$351, MATCH(Selection_Hide2!$A315, 'Full set Core Client Indicator'!$A$3:$A$351, 0), MATCH(Selection_Hide2!E$5, 'Full set Core Client Indicator'!$A$3:$AB$3, 0))=\"\", \"\",  INDEX('Full set Core Client Indicator'!$A$3:$AB$351, MATCH(Selection_Hide2!$A315, 'Full set Core Client Indicator'!$A$3:$A$351, 0), MATCH(Selection_Hide2!E$5, 'Full set Core Client Indicator'!$A$3:$AB$3, 0))), \"\")","v":""},{"$f":"IF(E315<>\"\", IF(INDEX('Full set Core Client Indicator'!$A$3:$AB$351, MATCH(Selection_Hide2!$A315, 'Full set Core Client Indicator'!$A$3:$A$351, 0), MATCH(Selection_Hide2!F$5, 'Full set Core Client Indicator'!$A$3:$AB$3, 0))=\"\", \"\",  INDEX('Full set Core Client Indicator'!$A$3:$AB$351, MATCH(Selection_Hide2!$A315, 'Full set Core Client Indicator'!$A$3:$A$351, 0), MATCH(Selection_Hide2!F$5, 'Full set Core Client Indicator'!$A$3:$AB$3, 0))), \"\")","v":""},{"$f":"IF(F315<>\"\", IF(INDEX('Full set Core Client Indicator'!$A$3:$AB$351, MATCH(Selection_Hide2!$A315, 'Full set Core Client Indicator'!$A$3:$A$351, 0), MATCH(Selection_Hide2!G$5, 'Full set Core Client Indicator'!$A$3:$AB$3, 0))=\"\", \"\",  INDEX('Full set Core Client Indicator'!$A$3:$AB$351, MATCH(Selection_Hide2!$A315, 'Full set Core Client Indicator'!$A$3:$A$351, 0), MATCH(Selection_Hide2!G$5, 'Full set Core Client Indicator'!$A$3:$AB$3, 0))), \"\")","v":""},{"$f":"IF(G315<>\"\", IF(INDEX('Full set Core Client Indicator'!$A$3:$AB$351, MATCH(Selection_Hide2!$A315, 'Full set Core Client Indicator'!$A$3:$A$351, 0), MATCH(Selection_Hide2!H$5, 'Full set Core Client Indicator'!$A$3:$AB$3, 0))=\"\", \"\",  INDEX('Full set Core Client Indicator'!$A$3:$AB$351, MATCH(Selection_Hide2!$A315, 'Full set Core Client Indicator'!$A$3:$A$351, 0), MATCH(Selection_Hide2!H$5, 'Full set Core Client Indicator'!$A$3:$AB$3, 0))), \"\")","v":""},{"$f":"IF(H315<>\"\", IF(INDEX('Full set Core Client Indicator'!$A$3:$AB$351, MATCH(Selection_Hide2!$A315, 'Full set Core Client Indicator'!$A$3:$A$351, 0), MATCH(Selection_Hide2!I$5, 'Full set Core Client Indicator'!$A$3:$AB$3, 0))=\"\", \"\",  INDEX('Full set Core Client Indicator'!$A$3:$AB$351, MATCH(Selection_Hide2!$A315, 'Full set Core Client Indicator'!$A$3:$A$351, 0), MATCH(Selection_Hide2!I$5, 'Full set Core Client Indicator'!$A$3:$AB$3, 0))), \"\")","v":""},{"$f":"IF(I315<>\"\", IF(INDEX('Full set Core Client Indicator'!$A$3:$AB$351, MATCH(Selection_Hide2!$A315, 'Full set Core Client Indicator'!$A$3:$A$351, 0), MATCH(Selection_Hide2!J$5, 'Full set Core Client Indicator'!$A$3:$AB$3, 0))=\"\", \"\",  INDEX('Full set Core Client Indicator'!$A$3:$AB$351, MATCH(Selection_Hide2!$A315, 'Full set Core Client Indicator'!$A$3:$A$351, 0), MATCH(Selection_Hide2!J$5, 'Full set Core Client Indicator'!$A$3:$AB$3, 0))), \"\")","v":""},{"$f":"IF(J315<>\"\", IF(INDEX('Full set Core Client Indicator'!$A$3:$AB$351, MATCH(Selection_Hide2!$A315, 'Full set Core Client Indicator'!$A$3:$A$351, 0), MATCH(Selection_Hide2!K$5, 'Full set Core Client Indicator'!$A$3:$AB$3, 0))=\"\", \"\",  INDEX('Full set Core Client Indicator'!$A$3:$AB$351, MATCH(Selection_Hide2!$A315, 'Full set Core Client Indicator'!$A$3:$A$351, 0), MATCH(Selection_Hide2!K$5, 'Full set Core Client Indicator'!$A$3:$AB$3, 0))), \"\")","v":""},{"$f":"IF(K315<>\"\", IF(INDEX('Full set Core Client Indicator'!$A$3:$AB$351, MATCH(Selection_Hide2!$A315, 'Full set Core Client Indicator'!$A$3:$A$351, 0), MATCH(Selection_Hide2!L$5, 'Full set Core Client Indicator'!$A$3:$AB$3, 0))=\"\", \"\",  INDEX('Full set Core Client Indicator'!$A$3:$AB$351, MATCH(Selection_Hide2!$A315, 'Full set Core Client Indicator'!$A$3:$A$351, 0), MATCH(Selection_Hide2!L$5, 'Full set Core Client Indicator'!$A$3:$AB$3, 0))), \"\")","v":""},{"$f":"IF(L315<>\"\", IF(INDEX('Full set Core Client Indicator'!$A$3:$AB$351, MATCH(Selection_Hide2!$A315, 'Full set Core Client Indicator'!$A$3:$A$351, 0), MATCH(Selection_Hide2!M$5, 'Full set Core Client Indicator'!$A$3:$AB$3, 0))=\"\", \"\",  INDEX('Full set Core Client Indicator'!$A$3:$AB$351, MATCH(Selection_Hide2!$A315, 'Full set Core Client Indicator'!$A$3:$A$351, 0), MATCH(Selection_Hide2!M$5, 'Full set Core Client Indicator'!$A$3:$AB$3, 0))), \"\")","v":""},{"$f":"IF(M315<>\"\", IF(INDEX('Full set Core Client Indicator'!$A$3:$AB$351, MATCH(Selection_Hide2!$A315, 'Full set Core Client Indicator'!$A$3:$A$351, 0), MATCH(Selection_Hide2!N$5, 'Full set Core Client Indicator'!$A$3:$AB$3, 0))=\"\", \"\",  INDEX('Full set Core Client Indicator'!$A$3:$AB$351, MATCH(Selection_Hide2!$A315, 'Full set Core Client Indicator'!$A$3:$A$351, 0), MATCH(Selection_Hide2!N$5, 'Full set Core Client Indicator'!$A$3:$AB$3, 0))), \"\")","v":""},{"$f":"IF(N315<>\"\", IF(INDEX('Full set Core Client Indicator'!$A$3:$AB$351, MATCH(Selection_Hide2!$A315, 'Full set Core Client Indicator'!$A$3:$A$351, 0), MATCH(Selection_Hide2!O$5, 'Full set Core Client Indicator'!$A$3:$AB$3, 0))=\"\", \"\",  INDEX('Full set Core Client Indicator'!$A$3:$AB$351, MATCH(Selection_Hide2!$A315, 'Full set Core Client Indicator'!$A$3:$A$351, 0), MATCH(Selection_Hide2!O$5, 'Full set Core Client Indicator'!$A$3:$AB$3, 0))), \"\")","v":""},{"$f":"IF(O315<>\"\", IF(INDEX('Full set Core Client Indicator'!$A$3:$AB$351, MATCH(Selection_Hide2!$A315, 'Full set Core Client Indicator'!$A$3:$A$351, 0), MATCH(Selection_Hide2!P$5, 'Full set Core Client Indicator'!$A$3:$AB$3, 0))=\"\", \"\",  INDEX('Full set Core Client Indicator'!$A$3:$AB$351, MATCH(Selection_Hide2!$A315, 'Full set Core Client Indicator'!$A$3:$A$351, 0), MATCH(Selection_Hide2!P$5, 'Full set Core Client Indicator'!$A$3:$AB$3, 0))), \"\")","v":""},{"$f":"IF(P315<>\"\", IF(INDEX('Full set Core Client Indicator'!$A$3:$AB$351, MATCH(Selection_Hide2!$A315, 'Full set Core Client Indicator'!$A$3:$A$351, 0), MATCH(Selection_Hide2!Q$5, 'Full set Core Client Indicator'!$A$3:$AB$3, 0))=\"\", \"\",  INDEX('Full set Core Client Indicator'!$A$3:$AB$351, MATCH(Selection_Hide2!$A315, 'Full set Core Client Indicator'!$A$3:$A$351, 0), MATCH(Selection_Hide2!Q$5, 'Full set Core Client Indicator'!$A$3:$AB$3, 0))), \"\")","v":""},{"$f":"IF(Q315<>\"\", IF(INDEX('Full set Core Client Indicator'!$A$3:$AB$351, MATCH(Selection_Hide2!$A315, 'Full set Core Client Indicator'!$A$3:$A$351, 0), MATCH(Selection_Hide2!R$5, 'Full set Core Client Indicator'!$A$3:$AB$3, 0))=\"\", \"\",  INDEX('Full set Core Client Indicator'!$A$3:$AB$351, MATCH(Selection_Hide2!$A315, 'Full set Core Client Indicator'!$A$3:$A$351, 0), MATCH(Selection_Hide2!R$5, 'Full set Core Client Indicator'!$A$3:$AB$3, 0))), \"\")","v":""},{"$f":"IF(R315<>\"\", IF(INDEX('Full set Core Client Indicator'!$A$3:$AB$351, MATCH(Selection_Hide2!$A315, 'Full set Core Client Indicator'!$A$3:$A$351, 0), MATCH(Selection_Hide2!S$5, 'Full set Core Client Indicator'!$A$3:$AB$3, 0))=\"\", \"\",  INDEX('Full set Core Client Indicator'!$A$3:$AB$351, MATCH(Selection_Hide2!$A315, 'Full set Core Client Indicator'!$A$3:$A$351, 0), MATCH(Selection_Hide2!S$5, 'Full set Core Client Indicator'!$A$3:$AB$3, 0))), \"\")","v":""},{"$f":"IF(S315<>\"\", IF(INDEX('Full set Core Client Indicator'!$A$3:$AB$351, MATCH(Selection_Hide2!$A315, 'Full set Core Client Indicator'!$A$3:$A$351, 0), MATCH(Selection_Hide2!T$5, 'Full set Core Client Indicator'!$A$3:$AB$3, 0))=\"\", \"\",  INDEX('Full set Core Client Indicator'!$A$3:$AB$351, MATCH(Selection_Hide2!$A315, 'Full set Core Client Indicator'!$A$3:$A$351, 0), MATCH(Selection_Hide2!T$5, 'Full set Core Client Indicator'!$A$3:$AB$3, 0))), \"\")","v":""},{"$f":"IF(T315<>\"\", IF(INDEX('Full set Core Client Indicator'!$A$3:$AB$351, MATCH(Selection_Hide2!$A315, 'Full set Core Client Indicator'!$A$3:$A$351, 0), MATCH(Selection_Hide2!U$5, 'Full set Core Client Indicator'!$A$3:$AB$3, 0))=\"\", \"\",  INDEX('Full set Core Client Indicator'!$A$3:$AB$351, MATCH(Selection_Hide2!$A315, 'Full set Core Client Indicator'!$A$3:$A$351, 0), MATCH(Selection_Hide2!U$5, 'Full set Core Client Indicator'!$A$3:$AB$3, 0))), \"\")","v":""},{"$f":"IF(U315<>\"\", IF(INDEX('Full set Core Client Indicator'!$A$3:$AB$351, MATCH(Selection_Hide2!$A315, 'Full set Core Client Indicator'!$A$3:$A$351, 0), MATCH(Selection_Hide2!V$5, 'Full set Core Client Indicator'!$A$3:$AB$3, 0))=\"\", \"\",  INDEX('Full set Core Client Indicator'!$A$3:$AB$351, MATCH(Selection_Hide2!$A315, 'Full set Core Client Indicator'!$A$3:$A$351, 0), MATCH(Selection_Hide2!V$5, 'Full set Core Client Indicator'!$A$3:$AB$3, 0))), \"\")","v":""},{"$f":"IF(V315<>\"\", IF(INDEX('Full set Core Client Indicator'!$A$3:$AB$351, MATCH(Selection_Hide2!$A315, 'Full set Core Client Indicator'!$A$3:$A$351, 0), MATCH(Selection_Hide2!W$5, 'Full set Core Client Indicator'!$A$3:$AB$3, 0))=\"\", \"\",  INDEX('Full set Core Client Indicator'!$A$3:$AB$351, MATCH(Selection_Hide2!$A315, 'Full set Core Client Indicator'!$A$3:$A$351, 0), MATCH(Selection_Hide2!W$5, 'Full set Core Client Indicator'!$A$3:$AB$3, 0))), \"\")","v":""},{"$f":"IF(W315<>\"\", IF(INDEX('Full set Core Client Indicator'!$A$3:$AB$351, MATCH(Selection_Hide2!$A315, 'Full set Core Client Indicator'!$A$3:$A$351, 0), MATCH(Selection_Hide2!X$5, 'Full set Core Client Indicator'!$A$3:$AB$3, 0))=\"\", \"\",  INDEX('Full set Core Client Indicator'!$A$3:$AB$351, MATCH(Selection_Hide2!$A315, 'Full set Core Client Indicator'!$A$3:$A$351, 0), MATCH(Selection_Hide2!X$5, 'Full set Core Client Indicator'!$A$3:$AB$3, 0))), \"\")","v":""},{"$f":"IF(X315<>\"\", IF(INDEX('Full set Core Client Indicator'!$A$3:$AB$351, MATCH(Selection_Hide2!$A315, 'Full set Core Client Indicator'!$A$3:$A$351, 0), MATCH(Selection_Hide2!Y$5, 'Full set Core Client Indicator'!$A$3:$AB$3, 0))=\"\", \"\",  INDEX('Full set Core Client Indicator'!$A$3:$AB$351, MATCH(Selection_Hide2!$A315, 'Full set Core Client Indicator'!$A$3:$A$351, 0), MATCH(Selection_Hide2!Y$5, 'Full set Core Client Indicator'!$A$3:$AB$3, 0))), \"\")","v":""},{"$f":"IF(Y315<>\"\", IF(INDEX('Full set Core Client Indicator'!$A$3:$AB$351, MATCH(Selection_Hide2!$A315, 'Full set Core Client Indicator'!$A$3:$A$351, 0), MATCH(Selection_Hide2!Z$5, 'Full set Core Client Indicator'!$A$3:$AB$3, 0))=\"\", \"\",  INDEX('Full set Core Client Indicator'!$A$3:$AB$351, MATCH(Selection_Hide2!$A315, 'Full set Core Client Indicator'!$A$3:$A$351, 0), MATCH(Selection_Hide2!Z$5, 'Full set Core Client Indicator'!$A$3:$AB$3, 0))), \"\")","v":""},{"$f":"IF(Z315<>\"\", IF(INDEX('Full set Core Client Indicator'!$A$3:$AB$351, MATCH(Selection_Hide2!$A315, 'Full set Core Client Indicator'!$A$3:$A$351, 0), MATCH(Selection_Hide2!AA$5, 'Full set Core Client Indicator'!$A$3:$AB$3, 0))=\"\", \"\",  INDEX('Full set Core Client Indicator'!$A$3:$AB$351, MATCH(Selection_Hide2!$A315, 'Full set Core Client Indicator'!$A$3:$A$351, 0), MATCH(Selection_Hide2!AA$5, 'Full set Core Client Indicator'!$A$3:$AB$3, 0))), \"\")","v":""},{"$f":"IF(AA315<>\"\", IF(INDEX('Full set Core Client Indicator'!$A$3:$AB$351, MATCH(Selection_Hide2!$A315, 'Full set Core Client Indicator'!$A$3:$A$351, 0), MATCH(Selection_Hide2!AB$5, 'Full set Core Client Indicator'!$A$3:$AB$3, 0))=\"\", \"\",  INDEX('Full set Core Client Indicator'!$A$3:$AB$351, MATCH(Selection_Hide2!$A315, 'Full set Core Client Indicator'!$A$3:$A$351, 0), MATCH(Selection_Hide2!AB$5, 'Full set Core Client Indicator'!$A$3:$AB$3, 0))), \"\")","v":""}]
[{"$f":"IF(AND(Selection_Hide1!C314<>0, Selection_Hide1!C314<>\"Grand Total\"), Selection_Hide1!C314, \"\")","v":""},{"$f":"IF(A316<>\"\", IF(INDEX('Full set Core Client Indicator'!$A$3:$AB$351, MATCH(Selection_Hide2!$A316, 'Full set Core Client Indicator'!$A$3:$A$351, 0), MATCH(Selection_Hide2!B$5, 'Full set Core Client Indicator'!$A$3:$AB$3, 0))=\"\", \"\",  INDEX('Full set Core Client Indicator'!$A$3:$AB$351, MATCH(Selection_Hide2!$A316, 'Full set Core Client Indicator'!$A$3:$A$351, 0), MATCH(Selection_Hide2!B$5, 'Full set Core Client Indicator'!$A$3:$AB$3, 0))), \"\")","v":""},{"$f":"IF(B316<>\"\", IF(INDEX('Full set Core Client Indicator'!$A$3:$AB$351, MATCH(Selection_Hide2!$A316, 'Full set Core Client Indicator'!$A$3:$A$351, 0), MATCH(Selection_Hide2!C$5, 'Full set Core Client Indicator'!$A$3:$AB$3, 0))=\"\", \"\",  INDEX('Full set Core Client Indicator'!$A$3:$AB$351, MATCH(Selection_Hide2!$A316, 'Full set Core Client Indicator'!$A$3:$A$351, 0), MATCH(Selection_Hide2!C$5, 'Full set Core Client Indicator'!$A$3:$AB$3, 0))), \"\")","v":""},{"$f":"IF(C316<>\"\", IF(INDEX('Full set Core Client Indicator'!$A$3:$AB$351, MATCH(Selection_Hide2!$A316, 'Full set Core Client Indicator'!$A$3:$A$351, 0), MATCH(Selection_Hide2!D$5, 'Full set Core Client Indicator'!$A$3:$AB$3, 0))=\"\", \"\",  INDEX('Full set Core Client Indicator'!$A$3:$AB$351, MATCH(Selection_Hide2!$A316, 'Full set Core Client Indicator'!$A$3:$A$351, 0), MATCH(Selection_Hide2!D$5, 'Full set Core Client Indicator'!$A$3:$AB$3, 0))), \"\")","v":""},{"$f":"IF(D316<>\"\", IF(INDEX('Full set Core Client Indicator'!$A$3:$AB$351, MATCH(Selection_Hide2!$A316, 'Full set Core Client Indicator'!$A$3:$A$351, 0), MATCH(Selection_Hide2!E$5, 'Full set Core Client Indicator'!$A$3:$AB$3, 0))=\"\", \"\",  INDEX('Full set Core Client Indicator'!$A$3:$AB$351, MATCH(Selection_Hide2!$A316, 'Full set Core Client Indicator'!$A$3:$A$351, 0), MATCH(Selection_Hide2!E$5, 'Full set Core Client Indicator'!$A$3:$AB$3, 0))), \"\")","v":""},{"$f":"IF(E316<>\"\", IF(INDEX('Full set Core Client Indicator'!$A$3:$AB$351, MATCH(Selection_Hide2!$A316, 'Full set Core Client Indicator'!$A$3:$A$351, 0), MATCH(Selection_Hide2!F$5, 'Full set Core Client Indicator'!$A$3:$AB$3, 0))=\"\", \"\",  INDEX('Full set Core Client Indicator'!$A$3:$AB$351, MATCH(Selection_Hide2!$A316, 'Full set Core Client Indicator'!$A$3:$A$351, 0), MATCH(Selection_Hide2!F$5, 'Full set Core Client Indicator'!$A$3:$AB$3, 0))), \"\")","v":""},{"$f":"IF(F316<>\"\", IF(INDEX('Full set Core Client Indicator'!$A$3:$AB$351, MATCH(Selection_Hide2!$A316, 'Full set Core Client Indicator'!$A$3:$A$351, 0), MATCH(Selection_Hide2!G$5, 'Full set Core Client Indicator'!$A$3:$AB$3, 0))=\"\", \"\",  INDEX('Full set Core Client Indicator'!$A$3:$AB$351, MATCH(Selection_Hide2!$A316, 'Full set Core Client Indicator'!$A$3:$A$351, 0), MATCH(Selection_Hide2!G$5, 'Full set Core Client Indicator'!$A$3:$AB$3, 0))), \"\")","v":""},{"$f":"IF(G316<>\"\", IF(INDEX('Full set Core Client Indicator'!$A$3:$AB$351, MATCH(Selection_Hide2!$A316, 'Full set Core Client Indicator'!$A$3:$A$351, 0), MATCH(Selection_Hide2!H$5, 'Full set Core Client Indicator'!$A$3:$AB$3, 0))=\"\", \"\",  INDEX('Full set Core Client Indicator'!$A$3:$AB$351, MATCH(Selection_Hide2!$A316, 'Full set Core Client Indicator'!$A$3:$A$351, 0), MATCH(Selection_Hide2!H$5, 'Full set Core Client Indicator'!$A$3:$AB$3, 0))), \"\")","v":""},{"$f":"IF(H316<>\"\", IF(INDEX('Full set Core Client Indicator'!$A$3:$AB$351, MATCH(Selection_Hide2!$A316, 'Full set Core Client Indicator'!$A$3:$A$351, 0), MATCH(Selection_Hide2!I$5, 'Full set Core Client Indicator'!$A$3:$AB$3, 0))=\"\", \"\",  INDEX('Full set Core Client Indicator'!$A$3:$AB$351, MATCH(Selection_Hide2!$A316, 'Full set Core Client Indicator'!$A$3:$A$351, 0), MATCH(Selection_Hide2!I$5, 'Full set Core Client Indicator'!$A$3:$AB$3, 0))), \"\")","v":""},{"$f":"IF(I316<>\"\", IF(INDEX('Full set Core Client Indicator'!$A$3:$AB$351, MATCH(Selection_Hide2!$A316, 'Full set Core Client Indicator'!$A$3:$A$351, 0), MATCH(Selection_Hide2!J$5, 'Full set Core Client Indicator'!$A$3:$AB$3, 0))=\"\", \"\",  INDEX('Full set Core Client Indicator'!$A$3:$AB$351, MATCH(Selection_Hide2!$A316, 'Full set Core Client Indicator'!$A$3:$A$351, 0), MATCH(Selection_Hide2!J$5, 'Full set Core Client Indicator'!$A$3:$AB$3, 0))), \"\")","v":""},{"$f":"IF(J316<>\"\", IF(INDEX('Full set Core Client Indicator'!$A$3:$AB$351, MATCH(Selection_Hide2!$A316, 'Full set Core Client Indicator'!$A$3:$A$351, 0), MATCH(Selection_Hide2!K$5, 'Full set Core Client Indicator'!$A$3:$AB$3, 0))=\"\", \"\",  INDEX('Full set Core Client Indicator'!$A$3:$AB$351, MATCH(Selection_Hide2!$A316, 'Full set Core Client Indicator'!$A$3:$A$351, 0), MATCH(Selection_Hide2!K$5, 'Full set Core Client Indicator'!$A$3:$AB$3, 0))), \"\")","v":""},{"$f":"IF(K316<>\"\", IF(INDEX('Full set Core Client Indicator'!$A$3:$AB$351, MATCH(Selection_Hide2!$A316, 'Full set Core Client Indicator'!$A$3:$A$351, 0), MATCH(Selection_Hide2!L$5, 'Full set Core Client Indicator'!$A$3:$AB$3, 0))=\"\", \"\",  INDEX('Full set Core Client Indicator'!$A$3:$AB$351, MATCH(Selection_Hide2!$A316, 'Full set Core Client Indicator'!$A$3:$A$351, 0), MATCH(Selection_Hide2!L$5, 'Full set Core Client Indicator'!$A$3:$AB$3, 0))), \"\")","v":""},{"$f":"IF(L316<>\"\", IF(INDEX('Full set Core Client Indicator'!$A$3:$AB$351, MATCH(Selection_Hide2!$A316, 'Full set Core Client Indicator'!$A$3:$A$351, 0), MATCH(Selection_Hide2!M$5, 'Full set Core Client Indicator'!$A$3:$AB$3, 0))=\"\", \"\",  INDEX('Full set Core Client Indicator'!$A$3:$AB$351, MATCH(Selection_Hide2!$A316, 'Full set Core Client Indicator'!$A$3:$A$351, 0), MATCH(Selection_Hide2!M$5, 'Full set Core Client Indicator'!$A$3:$AB$3, 0))), \"\")","v":""},{"$f":"IF(M316<>\"\", IF(INDEX('Full set Core Client Indicator'!$A$3:$AB$351, MATCH(Selection_Hide2!$A316, 'Full set Core Client Indicator'!$A$3:$A$351, 0), MATCH(Selection_Hide2!N$5, 'Full set Core Client Indicator'!$A$3:$AB$3, 0))=\"\", \"\",  INDEX('Full set Core Client Indicator'!$A$3:$AB$351, MATCH(Selection_Hide2!$A316, 'Full set Core Client Indicator'!$A$3:$A$351, 0), MATCH(Selection_Hide2!N$5, 'Full set Core Client Indicator'!$A$3:$AB$3, 0))), \"\")","v":""},{"$f":"IF(N316<>\"\", IF(INDEX('Full set Core Client Indicator'!$A$3:$AB$351, MATCH(Selection_Hide2!$A316, 'Full set Core Client Indicator'!$A$3:$A$351, 0), MATCH(Selection_Hide2!O$5, 'Full set Core Client Indicator'!$A$3:$AB$3, 0))=\"\", \"\",  INDEX('Full set Core Client Indicator'!$A$3:$AB$351, MATCH(Selection_Hide2!$A316, 'Full set Core Client Indicator'!$A$3:$A$351, 0), MATCH(Selection_Hide2!O$5, 'Full set Core Client Indicator'!$A$3:$AB$3, 0))), \"\")","v":""},{"$f":"IF(O316<>\"\", IF(INDEX('Full set Core Client Indicator'!$A$3:$AB$351, MATCH(Selection_Hide2!$A316, 'Full set Core Client Indicator'!$A$3:$A$351, 0), MATCH(Selection_Hide2!P$5, 'Full set Core Client Indicator'!$A$3:$AB$3, 0))=\"\", \"\",  INDEX('Full set Core Client Indicator'!$A$3:$AB$351, MATCH(Selection_Hide2!$A316, 'Full set Core Client Indicator'!$A$3:$A$351, 0), MATCH(Selection_Hide2!P$5, 'Full set Core Client Indicator'!$A$3:$AB$3, 0))), \"\")","v":""},{"$f":"IF(P316<>\"\", IF(INDEX('Full set Core Client Indicator'!$A$3:$AB$351, MATCH(Selection_Hide2!$A316, 'Full set Core Client Indicator'!$A$3:$A$351, 0), MATCH(Selection_Hide2!Q$5, 'Full set Core Client Indicator'!$A$3:$AB$3, 0))=\"\", \"\",  INDEX('Full set Core Client Indicator'!$A$3:$AB$351, MATCH(Selection_Hide2!$A316, 'Full set Core Client Indicator'!$A$3:$A$351, 0), MATCH(Selection_Hide2!Q$5, 'Full set Core Client Indicator'!$A$3:$AB$3, 0))), \"\")","v":""},{"$f":"IF(Q316<>\"\", IF(INDEX('Full set Core Client Indicator'!$A$3:$AB$351, MATCH(Selection_Hide2!$A316, 'Full set Core Client Indicator'!$A$3:$A$351, 0), MATCH(Selection_Hide2!R$5, 'Full set Core Client Indicator'!$A$3:$AB$3, 0))=\"\", \"\",  INDEX('Full set Core Client Indicator'!$A$3:$AB$351, MATCH(Selection_Hide2!$A316, 'Full set Core Client Indicator'!$A$3:$A$351, 0), MATCH(Selection_Hide2!R$5, 'Full set Core Client Indicator'!$A$3:$AB$3, 0))), \"\")","v":""},{"$f":"IF(R316<>\"\", IF(INDEX('Full set Core Client Indicator'!$A$3:$AB$351, MATCH(Selection_Hide2!$A316, 'Full set Core Client Indicator'!$A$3:$A$351, 0), MATCH(Selection_Hide2!S$5, 'Full set Core Client Indicator'!$A$3:$AB$3, 0))=\"\", \"\",  INDEX('Full set Core Client Indicator'!$A$3:$AB$351, MATCH(Selection_Hide2!$A316, 'Full set Core Client Indicator'!$A$3:$A$351, 0), MATCH(Selection_Hide2!S$5, 'Full set Core Client Indicator'!$A$3:$AB$3, 0))), \"\")","v":""},{"$f":"IF(S316<>\"\", IF(INDEX('Full set Core Client Indicator'!$A$3:$AB$351, MATCH(Selection_Hide2!$A316, 'Full set Core Client Indicator'!$A$3:$A$351, 0), MATCH(Selection_Hide2!T$5, 'Full set Core Client Indicator'!$A$3:$AB$3, 0))=\"\", \"\",  INDEX('Full set Core Client Indicator'!$A$3:$AB$351, MATCH(Selection_Hide2!$A316, 'Full set Core Client Indicator'!$A$3:$A$351, 0), MATCH(Selection_Hide2!T$5, 'Full set Core Client Indicator'!$A$3:$AB$3, 0))), \"\")","v":""},{"$f":"IF(T316<>\"\", IF(INDEX('Full set Core Client Indicator'!$A$3:$AB$351, MATCH(Selection_Hide2!$A316, 'Full set Core Client Indicator'!$A$3:$A$351, 0), MATCH(Selection_Hide2!U$5, 'Full set Core Client Indicator'!$A$3:$AB$3, 0))=\"\", \"\",  INDEX('Full set Core Client Indicator'!$A$3:$AB$351, MATCH(Selection_Hide2!$A316, 'Full set Core Client Indicator'!$A$3:$A$351, 0), MATCH(Selection_Hide2!U$5, 'Full set Core Client Indicator'!$A$3:$AB$3, 0))), \"\")","v":""},{"$f":"IF(U316<>\"\", IF(INDEX('Full set Core Client Indicator'!$A$3:$AB$351, MATCH(Selection_Hide2!$A316, 'Full set Core Client Indicator'!$A$3:$A$351, 0), MATCH(Selection_Hide2!V$5, 'Full set Core Client Indicator'!$A$3:$AB$3, 0))=\"\", \"\",  INDEX('Full set Core Client Indicator'!$A$3:$AB$351, MATCH(Selection_Hide2!$A316, 'Full set Core Client Indicator'!$A$3:$A$351, 0), MATCH(Selection_Hide2!V$5, 'Full set Core Client Indicator'!$A$3:$AB$3, 0))), \"\")","v":""},{"$f":"IF(V316<>\"\", IF(INDEX('Full set Core Client Indicator'!$A$3:$AB$351, MATCH(Selection_Hide2!$A316, 'Full set Core Client Indicator'!$A$3:$A$351, 0), MATCH(Selection_Hide2!W$5, 'Full set Core Client Indicator'!$A$3:$AB$3, 0))=\"\", \"\",  INDEX('Full set Core Client Indicator'!$A$3:$AB$351, MATCH(Selection_Hide2!$A316, 'Full set Core Client Indicator'!$A$3:$A$351, 0), MATCH(Selection_Hide2!W$5, 'Full set Core Client Indicator'!$A$3:$AB$3, 0))), \"\")","v":""},{"$f":"IF(W316<>\"\", IF(INDEX('Full set Core Client Indicator'!$A$3:$AB$351, MATCH(Selection_Hide2!$A316, 'Full set Core Client Indicator'!$A$3:$A$351, 0), MATCH(Selection_Hide2!X$5, 'Full set Core Client Indicator'!$A$3:$AB$3, 0))=\"\", \"\",  INDEX('Full set Core Client Indicator'!$A$3:$AB$351, MATCH(Selection_Hide2!$A316, 'Full set Core Client Indicator'!$A$3:$A$351, 0), MATCH(Selection_Hide2!X$5, 'Full set Core Client Indicator'!$A$3:$AB$3, 0))), \"\")","v":""},{"$f":"IF(X316<>\"\", IF(INDEX('Full set Core Client Indicator'!$A$3:$AB$351, MATCH(Selection_Hide2!$A316, 'Full set Core Client Indicator'!$A$3:$A$351, 0), MATCH(Selection_Hide2!Y$5, 'Full set Core Client Indicator'!$A$3:$AB$3, 0))=\"\", \"\",  INDEX('Full set Core Client Indicator'!$A$3:$AB$351, MATCH(Selection_Hide2!$A316, 'Full set Core Client Indicator'!$A$3:$A$351, 0), MATCH(Selection_Hide2!Y$5, 'Full set Core Client Indicator'!$A$3:$AB$3, 0))), \"\")","v":""},{"$f":"IF(Y316<>\"\", IF(INDEX('Full set Core Client Indicator'!$A$3:$AB$351, MATCH(Selection_Hide2!$A316, 'Full set Core Client Indicator'!$A$3:$A$351, 0), MATCH(Selection_Hide2!Z$5, 'Full set Core Client Indicator'!$A$3:$AB$3, 0))=\"\", \"\",  INDEX('Full set Core Client Indicator'!$A$3:$AB$351, MATCH(Selection_Hide2!$A316, 'Full set Core Client Indicator'!$A$3:$A$351, 0), MATCH(Selection_Hide2!Z$5, 'Full set Core Client Indicator'!$A$3:$AB$3, 0))), \"\")","v":""},{"$f":"IF(Z316<>\"\", IF(INDEX('Full set Core Client Indicator'!$A$3:$AB$351, MATCH(Selection_Hide2!$A316, 'Full set Core Client Indicator'!$A$3:$A$351, 0), MATCH(Selection_Hide2!AA$5, 'Full set Core Client Indicator'!$A$3:$AB$3, 0))=\"\", \"\",  INDEX('Full set Core Client Indicator'!$A$3:$AB$351, MATCH(Selection_Hide2!$A316, 'Full set Core Client Indicator'!$A$3:$A$351, 0), MATCH(Selection_Hide2!AA$5, 'Full set Core Client Indicator'!$A$3:$AB$3, 0))), \"\")","v":""},{"$f":"IF(AA316<>\"\", IF(INDEX('Full set Core Client Indicator'!$A$3:$AB$351, MATCH(Selection_Hide2!$A316, 'Full set Core Client Indicator'!$A$3:$A$351, 0), MATCH(Selection_Hide2!AB$5, 'Full set Core Client Indicator'!$A$3:$AB$3, 0))=\"\", \"\",  INDEX('Full set Core Client Indicator'!$A$3:$AB$351, MATCH(Selection_Hide2!$A316, 'Full set Core Client Indicator'!$A$3:$A$351, 0), MATCH(Selection_Hide2!AB$5, 'Full set Core Client Indicator'!$A$3:$AB$3, 0))), \"\")","v":""}]
[{"$f":"IF(AND(Selection_Hide1!C315<>0, Selection_Hide1!C315<>\"Grand Total\"), Selection_Hide1!C315, \"\")","v":""},{"$f":"IF(A317<>\"\", IF(INDEX('Full set Core Client Indicator'!$A$3:$AB$351, MATCH(Selection_Hide2!$A317, 'Full set Core Client Indicator'!$A$3:$A$351, 0), MATCH(Selection_Hide2!B$5, 'Full set Core Client Indicator'!$A$3:$AB$3, 0))=\"\", \"\",  INDEX('Full set Core Client Indicator'!$A$3:$AB$351, MATCH(Selection_Hide2!$A317, 'Full set Core Client Indicator'!$A$3:$A$351, 0), MATCH(Selection_Hide2!B$5, 'Full set Core Client Indicator'!$A$3:$AB$3, 0))), \"\")","v":""},{"$f":"IF(B317<>\"\", IF(INDEX('Full set Core Client Indicator'!$A$3:$AB$351, MATCH(Selection_Hide2!$A317, 'Full set Core Client Indicator'!$A$3:$A$351, 0), MATCH(Selection_Hide2!C$5, 'Full set Core Client Indicator'!$A$3:$AB$3, 0))=\"\", \"\",  INDEX('Full set Core Client Indicator'!$A$3:$AB$351, MATCH(Selection_Hide2!$A317, 'Full set Core Client Indicator'!$A$3:$A$351, 0), MATCH(Selection_Hide2!C$5, 'Full set Core Client Indicator'!$A$3:$AB$3, 0))), \"\")","v":""},{"$f":"IF(C317<>\"\", IF(INDEX('Full set Core Client Indicator'!$A$3:$AB$351, MATCH(Selection_Hide2!$A317, 'Full set Core Client Indicator'!$A$3:$A$351, 0), MATCH(Selection_Hide2!D$5, 'Full set Core Client Indicator'!$A$3:$AB$3, 0))=\"\", \"\",  INDEX('Full set Core Client Indicator'!$A$3:$AB$351, MATCH(Selection_Hide2!$A317, 'Full set Core Client Indicator'!$A$3:$A$351, 0), MATCH(Selection_Hide2!D$5, 'Full set Core Client Indicator'!$A$3:$AB$3, 0))), \"\")","v":""},{"$f":"IF(D317<>\"\", IF(INDEX('Full set Core Client Indicator'!$A$3:$AB$351, MATCH(Selection_Hide2!$A317, 'Full set Core Client Indicator'!$A$3:$A$351, 0), MATCH(Selection_Hide2!E$5, 'Full set Core Client Indicator'!$A$3:$AB$3, 0))=\"\", \"\",  INDEX('Full set Core Client Indicator'!$A$3:$AB$351, MATCH(Selection_Hide2!$A317, 'Full set Core Client Indicator'!$A$3:$A$351, 0), MATCH(Selection_Hide2!E$5, 'Full set Core Client Indicator'!$A$3:$AB$3, 0))), \"\")","v":""},{"$f":"IF(E317<>\"\", IF(INDEX('Full set Core Client Indicator'!$A$3:$AB$351, MATCH(Selection_Hide2!$A317, 'Full set Core Client Indicator'!$A$3:$A$351, 0), MATCH(Selection_Hide2!F$5, 'Full set Core Client Indicator'!$A$3:$AB$3, 0))=\"\", \"\",  INDEX('Full set Core Client Indicator'!$A$3:$AB$351, MATCH(Selection_Hide2!$A317, 'Full set Core Client Indicator'!$A$3:$A$351, 0), MATCH(Selection_Hide2!F$5, 'Full set Core Client Indicator'!$A$3:$AB$3, 0))), \"\")","v":""},{"$f":"IF(F317<>\"\", IF(INDEX('Full set Core Client Indicator'!$A$3:$AB$351, MATCH(Selection_Hide2!$A317, 'Full set Core Client Indicator'!$A$3:$A$351, 0), MATCH(Selection_Hide2!G$5, 'Full set Core Client Indicator'!$A$3:$AB$3, 0))=\"\", \"\",  INDEX('Full set Core Client Indicator'!$A$3:$AB$351, MATCH(Selection_Hide2!$A317, 'Full set Core Client Indicator'!$A$3:$A$351, 0), MATCH(Selection_Hide2!G$5, 'Full set Core Client Indicator'!$A$3:$AB$3, 0))), \"\")","v":""},{"$f":"IF(G317<>\"\", IF(INDEX('Full set Core Client Indicator'!$A$3:$AB$351, MATCH(Selection_Hide2!$A317, 'Full set Core Client Indicator'!$A$3:$A$351, 0), MATCH(Selection_Hide2!H$5, 'Full set Core Client Indicator'!$A$3:$AB$3, 0))=\"\", \"\",  INDEX('Full set Core Client Indicator'!$A$3:$AB$351, MATCH(Selection_Hide2!$A317, 'Full set Core Client Indicator'!$A$3:$A$351, 0), MATCH(Selection_Hide2!H$5, 'Full set Core Client Indicator'!$A$3:$AB$3, 0))), \"\")","v":""},{"$f":"IF(H317<>\"\", IF(INDEX('Full set Core Client Indicator'!$A$3:$AB$351, MATCH(Selection_Hide2!$A317, 'Full set Core Client Indicator'!$A$3:$A$351, 0), MATCH(Selection_Hide2!I$5, 'Full set Core Client Indicator'!$A$3:$AB$3, 0))=\"\", \"\",  INDEX('Full set Core Client Indicator'!$A$3:$AB$351, MATCH(Selection_Hide2!$A317, 'Full set Core Client Indicator'!$A$3:$A$351, 0), MATCH(Selection_Hide2!I$5, 'Full set Core Client Indicator'!$A$3:$AB$3, 0))), \"\")","v":""},{"$f":"IF(I317<>\"\", IF(INDEX('Full set Core Client Indicator'!$A$3:$AB$351, MATCH(Selection_Hide2!$A317, 'Full set Core Client Indicator'!$A$3:$A$351, 0), MATCH(Selection_Hide2!J$5, 'Full set Core Client Indicator'!$A$3:$AB$3, 0))=\"\", \"\",  INDEX('Full set Core Client Indicator'!$A$3:$AB$351, MATCH(Selection_Hide2!$A317, 'Full set Core Client Indicator'!$A$3:$A$351, 0), MATCH(Selection_Hide2!J$5, 'Full set Core Client Indicator'!$A$3:$AB$3, 0))), \"\")","v":""},{"$f":"IF(J317<>\"\", IF(INDEX('Full set Core Client Indicator'!$A$3:$AB$351, MATCH(Selection_Hide2!$A317, 'Full set Core Client Indicator'!$A$3:$A$351, 0), MATCH(Selection_Hide2!K$5, 'Full set Core Client Indicator'!$A$3:$AB$3, 0))=\"\", \"\",  INDEX('Full set Core Client Indicator'!$A$3:$AB$351, MATCH(Selection_Hide2!$A317, 'Full set Core Client Indicator'!$A$3:$A$351, 0), MATCH(Selection_Hide2!K$5, 'Full set Core Client Indicator'!$A$3:$AB$3, 0))), \"\")","v":""},{"$f":"IF(K317<>\"\", IF(INDEX('Full set Core Client Indicator'!$A$3:$AB$351, MATCH(Selection_Hide2!$A317, 'Full set Core Client Indicator'!$A$3:$A$351, 0), MATCH(Selection_Hide2!L$5, 'Full set Core Client Indicator'!$A$3:$AB$3, 0))=\"\", \"\",  INDEX('Full set Core Client Indicator'!$A$3:$AB$351, MATCH(Selection_Hide2!$A317, 'Full set Core Client Indicator'!$A$3:$A$351, 0), MATCH(Selection_Hide2!L$5, 'Full set Core Client Indicator'!$A$3:$AB$3, 0))), \"\")","v":""},{"$f":"IF(L317<>\"\", IF(INDEX('Full set Core Client Indicator'!$A$3:$AB$351, MATCH(Selection_Hide2!$A317, 'Full set Core Client Indicator'!$A$3:$A$351, 0), MATCH(Selection_Hide2!M$5, 'Full set Core Client Indicator'!$A$3:$AB$3, 0))=\"\", \"\",  INDEX('Full set Core Client Indicator'!$A$3:$AB$351, MATCH(Selection_Hide2!$A317, 'Full set Core Client Indicator'!$A$3:$A$351, 0), MATCH(Selection_Hide2!M$5, 'Full set Core Client Indicator'!$A$3:$AB$3, 0))), \"\")","v":""},{"$f":"IF(M317<>\"\", IF(INDEX('Full set Core Client Indicator'!$A$3:$AB$351, MATCH(Selection_Hide2!$A317, 'Full set Core Client Indicator'!$A$3:$A$351, 0), MATCH(Selection_Hide2!N$5, 'Full set Core Client Indicator'!$A$3:$AB$3, 0))=\"\", \"\",  INDEX('Full set Core Client Indicator'!$A$3:$AB$351, MATCH(Selection_Hide2!$A317, 'Full set Core Client Indicator'!$A$3:$A$351, 0), MATCH(Selection_Hide2!N$5, 'Full set Core Client Indicator'!$A$3:$AB$3, 0))), \"\")","v":""},{"$f":"IF(N317<>\"\", IF(INDEX('Full set Core Client Indicator'!$A$3:$AB$351, MATCH(Selection_Hide2!$A317, 'Full set Core Client Indicator'!$A$3:$A$351, 0), MATCH(Selection_Hide2!O$5, 'Full set Core Client Indicator'!$A$3:$AB$3, 0))=\"\", \"\",  INDEX('Full set Core Client Indicator'!$A$3:$AB$351, MATCH(Selection_Hide2!$A317, 'Full set Core Client Indicator'!$A$3:$A$351, 0), MATCH(Selection_Hide2!O$5, 'Full set Core Client Indicator'!$A$3:$AB$3, 0))), \"\")","v":""},{"$f":"IF(O317<>\"\", IF(INDEX('Full set Core Client Indicator'!$A$3:$AB$351, MATCH(Selection_Hide2!$A317, 'Full set Core Client Indicator'!$A$3:$A$351, 0), MATCH(Selection_Hide2!P$5, 'Full set Core Client Indicator'!$A$3:$AB$3, 0))=\"\", \"\",  INDEX('Full set Core Client Indicator'!$A$3:$AB$351, MATCH(Selection_Hide2!$A317, 'Full set Core Client Indicator'!$A$3:$A$351, 0), MATCH(Selection_Hide2!P$5, 'Full set Core Client Indicator'!$A$3:$AB$3, 0))), \"\")","v":""},{"$f":"IF(P317<>\"\", IF(INDEX('Full set Core Client Indicator'!$A$3:$AB$351, MATCH(Selection_Hide2!$A317, 'Full set Core Client Indicator'!$A$3:$A$351, 0), MATCH(Selection_Hide2!Q$5, 'Full set Core Client Indicator'!$A$3:$AB$3, 0))=\"\", \"\",  INDEX('Full set Core Client Indicator'!$A$3:$AB$351, MATCH(Selection_Hide2!$A317, 'Full set Core Client Indicator'!$A$3:$A$351, 0), MATCH(Selection_Hide2!Q$5, 'Full set Core Client Indicator'!$A$3:$AB$3, 0))), \"\")","v":""},{"$f":"IF(Q317<>\"\", IF(INDEX('Full set Core Client Indicator'!$A$3:$AB$351, MATCH(Selection_Hide2!$A317, 'Full set Core Client Indicator'!$A$3:$A$351, 0), MATCH(Selection_Hide2!R$5, 'Full set Core Client Indicator'!$A$3:$AB$3, 0))=\"\", \"\",  INDEX('Full set Core Client Indicator'!$A$3:$AB$351, MATCH(Selection_Hide2!$A317, 'Full set Core Client Indicator'!$A$3:$A$351, 0), MATCH(Selection_Hide2!R$5, 'Full set Core Client Indicator'!$A$3:$AB$3, 0))), \"\")","v":""},{"$f":"IF(R317<>\"\", IF(INDEX('Full set Core Client Indicator'!$A$3:$AB$351, MATCH(Selection_Hide2!$A317, 'Full set Core Client Indicator'!$A$3:$A$351, 0), MATCH(Selection_Hide2!S$5, 'Full set Core Client Indicator'!$A$3:$AB$3, 0))=\"\", \"\",  INDEX('Full set Core Client Indicator'!$A$3:$AB$351, MATCH(Selection_Hide2!$A317, 'Full set Core Client Indicator'!$A$3:$A$351, 0), MATCH(Selection_Hide2!S$5, 'Full set Core Client Indicator'!$A$3:$AB$3, 0))), \"\")","v":""},{"$f":"IF(S317<>\"\", IF(INDEX('Full set Core Client Indicator'!$A$3:$AB$351, MATCH(Selection_Hide2!$A317, 'Full set Core Client Indicator'!$A$3:$A$351, 0), MATCH(Selection_Hide2!T$5, 'Full set Core Client Indicator'!$A$3:$AB$3, 0))=\"\", \"\",  INDEX('Full set Core Client Indicator'!$A$3:$AB$351, MATCH(Selection_Hide2!$A317, 'Full set Core Client Indicator'!$A$3:$A$351, 0), MATCH(Selection_Hide2!T$5, 'Full set Core Client Indicator'!$A$3:$AB$3, 0))), \"\")","v":""},{"$f":"IF(T317<>\"\", IF(INDEX('Full set Core Client Indicator'!$A$3:$AB$351, MATCH(Selection_Hide2!$A317, 'Full set Core Client Indicator'!$A$3:$A$351, 0), MATCH(Selection_Hide2!U$5, 'Full set Core Client Indicator'!$A$3:$AB$3, 0))=\"\", \"\",  INDEX('Full set Core Client Indicator'!$A$3:$AB$351, MATCH(Selection_Hide2!$A317, 'Full set Core Client Indicator'!$A$3:$A$351, 0), MATCH(Selection_Hide2!U$5, 'Full set Core Client Indicator'!$A$3:$AB$3, 0))), \"\")","v":""},{"$f":"IF(U317<>\"\", IF(INDEX('Full set Core Client Indicator'!$A$3:$AB$351, MATCH(Selection_Hide2!$A317, 'Full set Core Client Indicator'!$A$3:$A$351, 0), MATCH(Selection_Hide2!V$5, 'Full set Core Client Indicator'!$A$3:$AB$3, 0))=\"\", \"\",  INDEX('Full set Core Client Indicator'!$A$3:$AB$351, MATCH(Selection_Hide2!$A317, 'Full set Core Client Indicator'!$A$3:$A$351, 0), MATCH(Selection_Hide2!V$5, 'Full set Core Client Indicator'!$A$3:$AB$3, 0))), \"\")","v":""},{"$f":"IF(V317<>\"\", IF(INDEX('Full set Core Client Indicator'!$A$3:$AB$351, MATCH(Selection_Hide2!$A317, 'Full set Core Client Indicator'!$A$3:$A$351, 0), MATCH(Selection_Hide2!W$5, 'Full set Core Client Indicator'!$A$3:$AB$3, 0))=\"\", \"\",  INDEX('Full set Core Client Indicator'!$A$3:$AB$351, MATCH(Selection_Hide2!$A317, 'Full set Core Client Indicator'!$A$3:$A$351, 0), MATCH(Selection_Hide2!W$5, 'Full set Core Client Indicator'!$A$3:$AB$3, 0))), \"\")","v":""},{"$f":"IF(W317<>\"\", IF(INDEX('Full set Core Client Indicator'!$A$3:$AB$351, MATCH(Selection_Hide2!$A317, 'Full set Core Client Indicator'!$A$3:$A$351, 0), MATCH(Selection_Hide2!X$5, 'Full set Core Client Indicator'!$A$3:$AB$3, 0))=\"\", \"\",  INDEX('Full set Core Client Indicator'!$A$3:$AB$351, MATCH(Selection_Hide2!$A317, 'Full set Core Client Indicator'!$A$3:$A$351, 0), MATCH(Selection_Hide2!X$5, 'Full set Core Client Indicator'!$A$3:$AB$3, 0))), \"\")","v":""},{"$f":"IF(X317<>\"\", IF(INDEX('Full set Core Client Indicator'!$A$3:$AB$351, MATCH(Selection_Hide2!$A317, 'Full set Core Client Indicator'!$A$3:$A$351, 0), MATCH(Selection_Hide2!Y$5, 'Full set Core Client Indicator'!$A$3:$AB$3, 0))=\"\", \"\",  INDEX('Full set Core Client Indicator'!$A$3:$AB$351, MATCH(Selection_Hide2!$A317, 'Full set Core Client Indicator'!$A$3:$A$351, 0), MATCH(Selection_Hide2!Y$5, 'Full set Core Client Indicator'!$A$3:$AB$3, 0))), \"\")","v":""},{"$f":"IF(Y317<>\"\", IF(INDEX('Full set Core Client Indicator'!$A$3:$AB$351, MATCH(Selection_Hide2!$A317, 'Full set Core Client Indicator'!$A$3:$A$351, 0), MATCH(Selection_Hide2!Z$5, 'Full set Core Client Indicator'!$A$3:$AB$3, 0))=\"\", \"\",  INDEX('Full set Core Client Indicator'!$A$3:$AB$351, MATCH(Selection_Hide2!$A317, 'Full set Core Client Indicator'!$A$3:$A$351, 0), MATCH(Selection_Hide2!Z$5, 'Full set Core Client Indicator'!$A$3:$AB$3, 0))), \"\")","v":""},{"$f":"IF(Z317<>\"\", IF(INDEX('Full set Core Client Indicator'!$A$3:$AB$351, MATCH(Selection_Hide2!$A317, 'Full set Core Client Indicator'!$A$3:$A$351, 0), MATCH(Selection_Hide2!AA$5, 'Full set Core Client Indicator'!$A$3:$AB$3, 0))=\"\", \"\",  INDEX('Full set Core Client Indicator'!$A$3:$AB$351, MATCH(Selection_Hide2!$A317, 'Full set Core Client Indicator'!$A$3:$A$351, 0), MATCH(Selection_Hide2!AA$5, 'Full set Core Client Indicator'!$A$3:$AB$3, 0))), \"\")","v":""},{"$f":"IF(AA317<>\"\", IF(INDEX('Full set Core Client Indicator'!$A$3:$AB$351, MATCH(Selection_Hide2!$A317, 'Full set Core Client Indicator'!$A$3:$A$351, 0), MATCH(Selection_Hide2!AB$5, 'Full set Core Client Indicator'!$A$3:$AB$3, 0))=\"\", \"\",  INDEX('Full set Core Client Indicator'!$A$3:$AB$351, MATCH(Selection_Hide2!$A317, 'Full set Core Client Indicator'!$A$3:$A$351, 0), MATCH(Selection_Hide2!AB$5, 'Full set Core Client Indicator'!$A$3:$AB$3, 0))), \"\")","v":""}]
[{"$f":"IF(AND(Selection_Hide1!C316<>0, Selection_Hide1!C316<>\"Grand Total\"), Selection_Hide1!C316, \"\")","v":""},{"$f":"IF(A318<>\"\", IF(INDEX('Full set Core Client Indicator'!$A$3:$AB$351, MATCH(Selection_Hide2!$A318, 'Full set Core Client Indicator'!$A$3:$A$351, 0), MATCH(Selection_Hide2!B$5, 'Full set Core Client Indicator'!$A$3:$AB$3, 0))=\"\", \"\",  INDEX('Full set Core Client Indicator'!$A$3:$AB$351, MATCH(Selection_Hide2!$A318, 'Full set Core Client Indicator'!$A$3:$A$351, 0), MATCH(Selection_Hide2!B$5, 'Full set Core Client Indicator'!$A$3:$AB$3, 0))), \"\")","v":""},{"$f":"IF(B318<>\"\", IF(INDEX('Full set Core Client Indicator'!$A$3:$AB$351, MATCH(Selection_Hide2!$A318, 'Full set Core Client Indicator'!$A$3:$A$351, 0), MATCH(Selection_Hide2!C$5, 'Full set Core Client Indicator'!$A$3:$AB$3, 0))=\"\", \"\",  INDEX('Full set Core Client Indicator'!$A$3:$AB$351, MATCH(Selection_Hide2!$A318, 'Full set Core Client Indicator'!$A$3:$A$351, 0), MATCH(Selection_Hide2!C$5, 'Full set Core Client Indicator'!$A$3:$AB$3, 0))), \"\")","v":""},{"$f":"IF(C318<>\"\", IF(INDEX('Full set Core Client Indicator'!$A$3:$AB$351, MATCH(Selection_Hide2!$A318, 'Full set Core Client Indicator'!$A$3:$A$351, 0), MATCH(Selection_Hide2!D$5, 'Full set Core Client Indicator'!$A$3:$AB$3, 0))=\"\", \"\",  INDEX('Full set Core Client Indicator'!$A$3:$AB$351, MATCH(Selection_Hide2!$A318, 'Full set Core Client Indicator'!$A$3:$A$351, 0), MATCH(Selection_Hide2!D$5, 'Full set Core Client Indicator'!$A$3:$AB$3, 0))), \"\")","v":""},{"$f":"IF(D318<>\"\", IF(INDEX('Full set Core Client Indicator'!$A$3:$AB$351, MATCH(Selection_Hide2!$A318, 'Full set Core Client Indicator'!$A$3:$A$351, 0), MATCH(Selection_Hide2!E$5, 'Full set Core Client Indicator'!$A$3:$AB$3, 0))=\"\", \"\",  INDEX('Full set Core Client Indicator'!$A$3:$AB$351, MATCH(Selection_Hide2!$A318, 'Full set Core Client Indicator'!$A$3:$A$351, 0), MATCH(Selection_Hide2!E$5, 'Full set Core Client Indicator'!$A$3:$AB$3, 0))), \"\")","v":""},{"$f":"IF(E318<>\"\", IF(INDEX('Full set Core Client Indicator'!$A$3:$AB$351, MATCH(Selection_Hide2!$A318, 'Full set Core Client Indicator'!$A$3:$A$351, 0), MATCH(Selection_Hide2!F$5, 'Full set Core Client Indicator'!$A$3:$AB$3, 0))=\"\", \"\",  INDEX('Full set Core Client Indicator'!$A$3:$AB$351, MATCH(Selection_Hide2!$A318, 'Full set Core Client Indicator'!$A$3:$A$351, 0), MATCH(Selection_Hide2!F$5, 'Full set Core Client Indicator'!$A$3:$AB$3, 0))), \"\")","v":""},{"$f":"IF(F318<>\"\", IF(INDEX('Full set Core Client Indicator'!$A$3:$AB$351, MATCH(Selection_Hide2!$A318, 'Full set Core Client Indicator'!$A$3:$A$351, 0), MATCH(Selection_Hide2!G$5, 'Full set Core Client Indicator'!$A$3:$AB$3, 0))=\"\", \"\",  INDEX('Full set Core Client Indicator'!$A$3:$AB$351, MATCH(Selection_Hide2!$A318, 'Full set Core Client Indicator'!$A$3:$A$351, 0), MATCH(Selection_Hide2!G$5, 'Full set Core Client Indicator'!$A$3:$AB$3, 0))), \"\")","v":""},{"$f":"IF(G318<>\"\", IF(INDEX('Full set Core Client Indicator'!$A$3:$AB$351, MATCH(Selection_Hide2!$A318, 'Full set Core Client Indicator'!$A$3:$A$351, 0), MATCH(Selection_Hide2!H$5, 'Full set Core Client Indicator'!$A$3:$AB$3, 0))=\"\", \"\",  INDEX('Full set Core Client Indicator'!$A$3:$AB$351, MATCH(Selection_Hide2!$A318, 'Full set Core Client Indicator'!$A$3:$A$351, 0), MATCH(Selection_Hide2!H$5, 'Full set Core Client Indicator'!$A$3:$AB$3, 0))), \"\")","v":""},{"$f":"IF(H318<>\"\", IF(INDEX('Full set Core Client Indicator'!$A$3:$AB$351, MATCH(Selection_Hide2!$A318, 'Full set Core Client Indicator'!$A$3:$A$351, 0), MATCH(Selection_Hide2!I$5, 'Full set Core Client Indicator'!$A$3:$AB$3, 0))=\"\", \"\",  INDEX('Full set Core Client Indicator'!$A$3:$AB$351, MATCH(Selection_Hide2!$A318, 'Full set Core Client Indicator'!$A$3:$A$351, 0), MATCH(Selection_Hide2!I$5, 'Full set Core Client Indicator'!$A$3:$AB$3, 0))), \"\")","v":""},{"$f":"IF(I318<>\"\", IF(INDEX('Full set Core Client Indicator'!$A$3:$AB$351, MATCH(Selection_Hide2!$A318, 'Full set Core Client Indicator'!$A$3:$A$351, 0), MATCH(Selection_Hide2!J$5, 'Full set Core Client Indicator'!$A$3:$AB$3, 0))=\"\", \"\",  INDEX('Full set Core Client Indicator'!$A$3:$AB$351, MATCH(Selection_Hide2!$A318, 'Full set Core Client Indicator'!$A$3:$A$351, 0), MATCH(Selection_Hide2!J$5, 'Full set Core Client Indicator'!$A$3:$AB$3, 0))), \"\")","v":""},{"$f":"IF(J318<>\"\", IF(INDEX('Full set Core Client Indicator'!$A$3:$AB$351, MATCH(Selection_Hide2!$A318, 'Full set Core Client Indicator'!$A$3:$A$351, 0), MATCH(Selection_Hide2!K$5, 'Full set Core Client Indicator'!$A$3:$AB$3, 0))=\"\", \"\",  INDEX('Full set Core Client Indicator'!$A$3:$AB$351, MATCH(Selection_Hide2!$A318, 'Full set Core Client Indicator'!$A$3:$A$351, 0), MATCH(Selection_Hide2!K$5, 'Full set Core Client Indicator'!$A$3:$AB$3, 0))), \"\")","v":""},{"$f":"IF(K318<>\"\", IF(INDEX('Full set Core Client Indicator'!$A$3:$AB$351, MATCH(Selection_Hide2!$A318, 'Full set Core Client Indicator'!$A$3:$A$351, 0), MATCH(Selection_Hide2!L$5, 'Full set Core Client Indicator'!$A$3:$AB$3, 0))=\"\", \"\",  INDEX('Full set Core Client Indicator'!$A$3:$AB$351, MATCH(Selection_Hide2!$A318, 'Full set Core Client Indicator'!$A$3:$A$351, 0), MATCH(Selection_Hide2!L$5, 'Full set Core Client Indicator'!$A$3:$AB$3, 0))), \"\")","v":""},{"$f":"IF(L318<>\"\", IF(INDEX('Full set Core Client Indicator'!$A$3:$AB$351, MATCH(Selection_Hide2!$A318, 'Full set Core Client Indicator'!$A$3:$A$351, 0), MATCH(Selection_Hide2!M$5, 'Full set Core Client Indicator'!$A$3:$AB$3, 0))=\"\", \"\",  INDEX('Full set Core Client Indicator'!$A$3:$AB$351, MATCH(Selection_Hide2!$A318, 'Full set Core Client Indicator'!$A$3:$A$351, 0), MATCH(Selection_Hide2!M$5, 'Full set Core Client Indicator'!$A$3:$AB$3, 0))), \"\")","v":""},{"$f":"IF(M318<>\"\", IF(INDEX('Full set Core Client Indicator'!$A$3:$AB$351, MATCH(Selection_Hide2!$A318, 'Full set Core Client Indicator'!$A$3:$A$351, 0), MATCH(Selection_Hide2!N$5, 'Full set Core Client Indicator'!$A$3:$AB$3, 0))=\"\", \"\",  INDEX('Full set Core Client Indicator'!$A$3:$AB$351, MATCH(Selection_Hide2!$A318, 'Full set Core Client Indicator'!$A$3:$A$351, 0), MATCH(Selection_Hide2!N$5, 'Full set Core Client Indicator'!$A$3:$AB$3, 0))), \"\")","v":""},{"$f":"IF(N318<>\"\", IF(INDEX('Full set Core Client Indicator'!$A$3:$AB$351, MATCH(Selection_Hide2!$A318, 'Full set Core Client Indicator'!$A$3:$A$351, 0), MATCH(Selection_Hide2!O$5, 'Full set Core Client Indicator'!$A$3:$AB$3, 0))=\"\", \"\",  INDEX('Full set Core Client Indicator'!$A$3:$AB$351, MATCH(Selection_Hide2!$A318, 'Full set Core Client Indicator'!$A$3:$A$351, 0), MATCH(Selection_Hide2!O$5, 'Full set Core Client Indicator'!$A$3:$AB$3, 0))), \"\")","v":""},{"$f":"IF(O318<>\"\", IF(INDEX('Full set Core Client Indicator'!$A$3:$AB$351, MATCH(Selection_Hide2!$A318, 'Full set Core Client Indicator'!$A$3:$A$351, 0), MATCH(Selection_Hide2!P$5, 'Full set Core Client Indicator'!$A$3:$AB$3, 0))=\"\", \"\",  INDEX('Full set Core Client Indicator'!$A$3:$AB$351, MATCH(Selection_Hide2!$A318, 'Full set Core Client Indicator'!$A$3:$A$351, 0), MATCH(Selection_Hide2!P$5, 'Full set Core Client Indicator'!$A$3:$AB$3, 0))), \"\")","v":""},{"$f":"IF(P318<>\"\", IF(INDEX('Full set Core Client Indicator'!$A$3:$AB$351, MATCH(Selection_Hide2!$A318, 'Full set Core Client Indicator'!$A$3:$A$351, 0), MATCH(Selection_Hide2!Q$5, 'Full set Core Client Indicator'!$A$3:$AB$3, 0))=\"\", \"\",  INDEX('Full set Core Client Indicator'!$A$3:$AB$351, MATCH(Selection_Hide2!$A318, 'Full set Core Client Indicator'!$A$3:$A$351, 0), MATCH(Selection_Hide2!Q$5, 'Full set Core Client Indicator'!$A$3:$AB$3, 0))), \"\")","v":""},{"$f":"IF(Q318<>\"\", IF(INDEX('Full set Core Client Indicator'!$A$3:$AB$351, MATCH(Selection_Hide2!$A318, 'Full set Core Client Indicator'!$A$3:$A$351, 0), MATCH(Selection_Hide2!R$5, 'Full set Core Client Indicator'!$A$3:$AB$3, 0))=\"\", \"\",  INDEX('Full set Core Client Indicator'!$A$3:$AB$351, MATCH(Selection_Hide2!$A318, 'Full set Core Client Indicator'!$A$3:$A$351, 0), MATCH(Selection_Hide2!R$5, 'Full set Core Client Indicator'!$A$3:$AB$3, 0))), \"\")","v":""},{"$f":"IF(R318<>\"\", IF(INDEX('Full set Core Client Indicator'!$A$3:$AB$351, MATCH(Selection_Hide2!$A318, 'Full set Core Client Indicator'!$A$3:$A$351, 0), MATCH(Selection_Hide2!S$5, 'Full set Core Client Indicator'!$A$3:$AB$3, 0))=\"\", \"\",  INDEX('Full set Core Client Indicator'!$A$3:$AB$351, MATCH(Selection_Hide2!$A318, 'Full set Core Client Indicator'!$A$3:$A$351, 0), MATCH(Selection_Hide2!S$5, 'Full set Core Client Indicator'!$A$3:$AB$3, 0))), \"\")","v":""},{"$f":"IF(S318<>\"\", IF(INDEX('Full set Core Client Indicator'!$A$3:$AB$351, MATCH(Selection_Hide2!$A318, 'Full set Core Client Indicator'!$A$3:$A$351, 0), MATCH(Selection_Hide2!T$5, 'Full set Core Client Indicator'!$A$3:$AB$3, 0))=\"\", \"\",  INDEX('Full set Core Client Indicator'!$A$3:$AB$351, MATCH(Selection_Hide2!$A318, 'Full set Core Client Indicator'!$A$3:$A$351, 0), MATCH(Selection_Hide2!T$5, 'Full set Core Client Indicator'!$A$3:$AB$3, 0))), \"\")","v":""},{"$f":"IF(T318<>\"\", IF(INDEX('Full set Core Client Indicator'!$A$3:$AB$351, MATCH(Selection_Hide2!$A318, 'Full set Core Client Indicator'!$A$3:$A$351, 0), MATCH(Selection_Hide2!U$5, 'Full set Core Client Indicator'!$A$3:$AB$3, 0))=\"\", \"\",  INDEX('Full set Core Client Indicator'!$A$3:$AB$351, MATCH(Selection_Hide2!$A318, 'Full set Core Client Indicator'!$A$3:$A$351, 0), MATCH(Selection_Hide2!U$5, 'Full set Core Client Indicator'!$A$3:$AB$3, 0))), \"\")","v":""},{"$f":"IF(U318<>\"\", IF(INDEX('Full set Core Client Indicator'!$A$3:$AB$351, MATCH(Selection_Hide2!$A318, 'Full set Core Client Indicator'!$A$3:$A$351, 0), MATCH(Selection_Hide2!V$5, 'Full set Core Client Indicator'!$A$3:$AB$3, 0))=\"\", \"\",  INDEX('Full set Core Client Indicator'!$A$3:$AB$351, MATCH(Selection_Hide2!$A318, 'Full set Core Client Indicator'!$A$3:$A$351, 0), MATCH(Selection_Hide2!V$5, 'Full set Core Client Indicator'!$A$3:$AB$3, 0))), \"\")","v":""},{"$f":"IF(V318<>\"\", IF(INDEX('Full set Core Client Indicator'!$A$3:$AB$351, MATCH(Selection_Hide2!$A318, 'Full set Core Client Indicator'!$A$3:$A$351, 0), MATCH(Selection_Hide2!W$5, 'Full set Core Client Indicator'!$A$3:$AB$3, 0))=\"\", \"\",  INDEX('Full set Core Client Indicator'!$A$3:$AB$351, MATCH(Selection_Hide2!$A318, 'Full set Core Client Indicator'!$A$3:$A$351, 0), MATCH(Selection_Hide2!W$5, 'Full set Core Client Indicator'!$A$3:$AB$3, 0))), \"\")","v":""},{"$f":"IF(W318<>\"\", IF(INDEX('Full set Core Client Indicator'!$A$3:$AB$351, MATCH(Selection_Hide2!$A318, 'Full set Core Client Indicator'!$A$3:$A$351, 0), MATCH(Selection_Hide2!X$5, 'Full set Core Client Indicator'!$A$3:$AB$3, 0))=\"\", \"\",  INDEX('Full set Core Client Indicator'!$A$3:$AB$351, MATCH(Selection_Hide2!$A318, 'Full set Core Client Indicator'!$A$3:$A$351, 0), MATCH(Selection_Hide2!X$5, 'Full set Core Client Indicator'!$A$3:$AB$3, 0))), \"\")","v":""},{"$f":"IF(X318<>\"\", IF(INDEX('Full set Core Client Indicator'!$A$3:$AB$351, MATCH(Selection_Hide2!$A318, 'Full set Core Client Indicator'!$A$3:$A$351, 0), MATCH(Selection_Hide2!Y$5, 'Full set Core Client Indicator'!$A$3:$AB$3, 0))=\"\", \"\",  INDEX('Full set Core Client Indicator'!$A$3:$AB$351, MATCH(Selection_Hide2!$A318, 'Full set Core Client Indicator'!$A$3:$A$351, 0), MATCH(Selection_Hide2!Y$5, 'Full set Core Client Indicator'!$A$3:$AB$3, 0))), \"\")","v":""},{"$f":"IF(Y318<>\"\", IF(INDEX('Full set Core Client Indicator'!$A$3:$AB$351, MATCH(Selection_Hide2!$A318, 'Full set Core Client Indicator'!$A$3:$A$351, 0), MATCH(Selection_Hide2!Z$5, 'Full set Core Client Indicator'!$A$3:$AB$3, 0))=\"\", \"\",  INDEX('Full set Core Client Indicator'!$A$3:$AB$351, MATCH(Selection_Hide2!$A318, 'Full set Core Client Indicator'!$A$3:$A$351, 0), MATCH(Selection_Hide2!Z$5, 'Full set Core Client Indicator'!$A$3:$AB$3, 0))), \"\")","v":""},{"$f":"IF(Z318<>\"\", IF(INDEX('Full set Core Client Indicator'!$A$3:$AB$351, MATCH(Selection_Hide2!$A318, 'Full set Core Client Indicator'!$A$3:$A$351, 0), MATCH(Selection_Hide2!AA$5, 'Full set Core Client Indicator'!$A$3:$AB$3, 0))=\"\", \"\",  INDEX('Full set Core Client Indicator'!$A$3:$AB$351, MATCH(Selection_Hide2!$A318, 'Full set Core Client Indicator'!$A$3:$A$351, 0), MATCH(Selection_Hide2!AA$5, 'Full set Core Client Indicator'!$A$3:$AB$3, 0))), \"\")","v":""},{"$f":"IF(AA318<>\"\", IF(INDEX('Full set Core Client Indicator'!$A$3:$AB$351, MATCH(Selection_Hide2!$A318, 'Full set Core Client Indicator'!$A$3:$A$351, 0), MATCH(Selection_Hide2!AB$5, 'Full set Core Client Indicator'!$A$3:$AB$3, 0))=\"\", \"\",  INDEX('Full set Core Client Indicator'!$A$3:$AB$351, MATCH(Selection_Hide2!$A318, 'Full set Core Client Indicator'!$A$3:$A$351, 0), MATCH(Selection_Hide2!AB$5, 'Full set Core Client Indicator'!$A$3:$AB$3, 0))), \"\")","v":""}]
[{"$f":"IF(AND(Selection_Hide1!C317<>0, Selection_Hide1!C317<>\"Grand Total\"), Selection_Hide1!C317, \"\")","v":""},{"$f":"IF(A319<>\"\", IF(INDEX('Full set Core Client Indicator'!$A$3:$AB$351, MATCH(Selection_Hide2!$A319, 'Full set Core Client Indicator'!$A$3:$A$351, 0), MATCH(Selection_Hide2!B$5, 'Full set Core Client Indicator'!$A$3:$AB$3, 0))=\"\", \"\",  INDEX('Full set Core Client Indicator'!$A$3:$AB$351, MATCH(Selection_Hide2!$A319, 'Full set Core Client Indicator'!$A$3:$A$351, 0), MATCH(Selection_Hide2!B$5, 'Full set Core Client Indicator'!$A$3:$AB$3, 0))), \"\")","v":""},{"$f":"IF(B319<>\"\", IF(INDEX('Full set Core Client Indicator'!$A$3:$AB$351, MATCH(Selection_Hide2!$A319, 'Full set Core Client Indicator'!$A$3:$A$351, 0), MATCH(Selection_Hide2!C$5, 'Full set Core Client Indicator'!$A$3:$AB$3, 0))=\"\", \"\",  INDEX('Full set Core Client Indicator'!$A$3:$AB$351, MATCH(Selection_Hide2!$A319, 'Full set Core Client Indicator'!$A$3:$A$351, 0), MATCH(Selection_Hide2!C$5, 'Full set Core Client Indicator'!$A$3:$AB$3, 0))), \"\")","v":""},{"$f":"IF(C319<>\"\", IF(INDEX('Full set Core Client Indicator'!$A$3:$AB$351, MATCH(Selection_Hide2!$A319, 'Full set Core Client Indicator'!$A$3:$A$351, 0), MATCH(Selection_Hide2!D$5, 'Full set Core Client Indicator'!$A$3:$AB$3, 0))=\"\", \"\",  INDEX('Full set Core Client Indicator'!$A$3:$AB$351, MATCH(Selection_Hide2!$A319, 'Full set Core Client Indicator'!$A$3:$A$351, 0), MATCH(Selection_Hide2!D$5, 'Full set Core Client Indicator'!$A$3:$AB$3, 0))), \"\")","v":""},{"$f":"IF(D319<>\"\", IF(INDEX('Full set Core Client Indicator'!$A$3:$AB$351, MATCH(Selection_Hide2!$A319, 'Full set Core Client Indicator'!$A$3:$A$351, 0), MATCH(Selection_Hide2!E$5, 'Full set Core Client Indicator'!$A$3:$AB$3, 0))=\"\", \"\",  INDEX('Full set Core Client Indicator'!$A$3:$AB$351, MATCH(Selection_Hide2!$A319, 'Full set Core Client Indicator'!$A$3:$A$351, 0), MATCH(Selection_Hide2!E$5, 'Full set Core Client Indicator'!$A$3:$AB$3, 0))), \"\")","v":""},{"$f":"IF(E319<>\"\", IF(INDEX('Full set Core Client Indicator'!$A$3:$AB$351, MATCH(Selection_Hide2!$A319, 'Full set Core Client Indicator'!$A$3:$A$351, 0), MATCH(Selection_Hide2!F$5, 'Full set Core Client Indicator'!$A$3:$AB$3, 0))=\"\", \"\",  INDEX('Full set Core Client Indicator'!$A$3:$AB$351, MATCH(Selection_Hide2!$A319, 'Full set Core Client Indicator'!$A$3:$A$351, 0), MATCH(Selection_Hide2!F$5, 'Full set Core Client Indicator'!$A$3:$AB$3, 0))), \"\")","v":""},{"$f":"IF(F319<>\"\", IF(INDEX('Full set Core Client Indicator'!$A$3:$AB$351, MATCH(Selection_Hide2!$A319, 'Full set Core Client Indicator'!$A$3:$A$351, 0), MATCH(Selection_Hide2!G$5, 'Full set Core Client Indicator'!$A$3:$AB$3, 0))=\"\", \"\",  INDEX('Full set Core Client Indicator'!$A$3:$AB$351, MATCH(Selection_Hide2!$A319, 'Full set Core Client Indicator'!$A$3:$A$351, 0), MATCH(Selection_Hide2!G$5, 'Full set Core Client Indicator'!$A$3:$AB$3, 0))), \"\")","v":""},{"$f":"IF(G319<>\"\", IF(INDEX('Full set Core Client Indicator'!$A$3:$AB$351, MATCH(Selection_Hide2!$A319, 'Full set Core Client Indicator'!$A$3:$A$351, 0), MATCH(Selection_Hide2!H$5, 'Full set Core Client Indicator'!$A$3:$AB$3, 0))=\"\", \"\",  INDEX('Full set Core Client Indicator'!$A$3:$AB$351, MATCH(Selection_Hide2!$A319, 'Full set Core Client Indicator'!$A$3:$A$351, 0), MATCH(Selection_Hide2!H$5, 'Full set Core Client Indicator'!$A$3:$AB$3, 0))), \"\")","v":""},{"$f":"IF(H319<>\"\", IF(INDEX('Full set Core Client Indicator'!$A$3:$AB$351, MATCH(Selection_Hide2!$A319, 'Full set Core Client Indicator'!$A$3:$A$351, 0), MATCH(Selection_Hide2!I$5, 'Full set Core Client Indicator'!$A$3:$AB$3, 0))=\"\", \"\",  INDEX('Full set Core Client Indicator'!$A$3:$AB$351, MATCH(Selection_Hide2!$A319, 'Full set Core Client Indicator'!$A$3:$A$351, 0), MATCH(Selection_Hide2!I$5, 'Full set Core Client Indicator'!$A$3:$AB$3, 0))), \"\")","v":""},{"$f":"IF(I319<>\"\", IF(INDEX('Full set Core Client Indicator'!$A$3:$AB$351, MATCH(Selection_Hide2!$A319, 'Full set Core Client Indicator'!$A$3:$A$351, 0), MATCH(Selection_Hide2!J$5, 'Full set Core Client Indicator'!$A$3:$AB$3, 0))=\"\", \"\",  INDEX('Full set Core Client Indicator'!$A$3:$AB$351, MATCH(Selection_Hide2!$A319, 'Full set Core Client Indicator'!$A$3:$A$351, 0), MATCH(Selection_Hide2!J$5, 'Full set Core Client Indicator'!$A$3:$AB$3, 0))), \"\")","v":""},{"$f":"IF(J319<>\"\", IF(INDEX('Full set Core Client Indicator'!$A$3:$AB$351, MATCH(Selection_Hide2!$A319, 'Full set Core Client Indicator'!$A$3:$A$351, 0), MATCH(Selection_Hide2!K$5, 'Full set Core Client Indicator'!$A$3:$AB$3, 0))=\"\", \"\",  INDEX('Full set Core Client Indicator'!$A$3:$AB$351, MATCH(Selection_Hide2!$A319, 'Full set Core Client Indicator'!$A$3:$A$351, 0), MATCH(Selection_Hide2!K$5, 'Full set Core Client Indicator'!$A$3:$AB$3, 0))), \"\")","v":""},{"$f":"IF(K319<>\"\", IF(INDEX('Full set Core Client Indicator'!$A$3:$AB$351, MATCH(Selection_Hide2!$A319, 'Full set Core Client Indicator'!$A$3:$A$351, 0), MATCH(Selection_Hide2!L$5, 'Full set Core Client Indicator'!$A$3:$AB$3, 0))=\"\", \"\",  INDEX('Full set Core Client Indicator'!$A$3:$AB$351, MATCH(Selection_Hide2!$A319, 'Full set Core Client Indicator'!$A$3:$A$351, 0), MATCH(Selection_Hide2!L$5, 'Full set Core Client Indicator'!$A$3:$AB$3, 0))), \"\")","v":""},{"$f":"IF(L319<>\"\", IF(INDEX('Full set Core Client Indicator'!$A$3:$AB$351, MATCH(Selection_Hide2!$A319, 'Full set Core Client Indicator'!$A$3:$A$351, 0), MATCH(Selection_Hide2!M$5, 'Full set Core Client Indicator'!$A$3:$AB$3, 0))=\"\", \"\",  INDEX('Full set Core Client Indicator'!$A$3:$AB$351, MATCH(Selection_Hide2!$A319, 'Full set Core Client Indicator'!$A$3:$A$351, 0), MATCH(Selection_Hide2!M$5, 'Full set Core Client Indicator'!$A$3:$AB$3, 0))), \"\")","v":""},{"$f":"IF(M319<>\"\", IF(INDEX('Full set Core Client Indicator'!$A$3:$AB$351, MATCH(Selection_Hide2!$A319, 'Full set Core Client Indicator'!$A$3:$A$351, 0), MATCH(Selection_Hide2!N$5, 'Full set Core Client Indicator'!$A$3:$AB$3, 0))=\"\", \"\",  INDEX('Full set Core Client Indicator'!$A$3:$AB$351, MATCH(Selection_Hide2!$A319, 'Full set Core Client Indicator'!$A$3:$A$351, 0), MATCH(Selection_Hide2!N$5, 'Full set Core Client Indicator'!$A$3:$AB$3, 0))), \"\")","v":""},{"$f":"IF(N319<>\"\", IF(INDEX('Full set Core Client Indicator'!$A$3:$AB$351, MATCH(Selection_Hide2!$A319, 'Full set Core Client Indicator'!$A$3:$A$351, 0), MATCH(Selection_Hide2!O$5, 'Full set Core Client Indicator'!$A$3:$AB$3, 0))=\"\", \"\",  INDEX('Full set Core Client Indicator'!$A$3:$AB$351, MATCH(Selection_Hide2!$A319, 'Full set Core Client Indicator'!$A$3:$A$351, 0), MATCH(Selection_Hide2!O$5, 'Full set Core Client Indicator'!$A$3:$AB$3, 0))), \"\")","v":""},{"$f":"IF(O319<>\"\", IF(INDEX('Full set Core Client Indicator'!$A$3:$AB$351, MATCH(Selection_Hide2!$A319, 'Full set Core Client Indicator'!$A$3:$A$351, 0), MATCH(Selection_Hide2!P$5, 'Full set Core Client Indicator'!$A$3:$AB$3, 0))=\"\", \"\",  INDEX('Full set Core Client Indicator'!$A$3:$AB$351, MATCH(Selection_Hide2!$A319, 'Full set Core Client Indicator'!$A$3:$A$351, 0), MATCH(Selection_Hide2!P$5, 'Full set Core Client Indicator'!$A$3:$AB$3, 0))), \"\")","v":""},{"$f":"IF(P319<>\"\", IF(INDEX('Full set Core Client Indicator'!$A$3:$AB$351, MATCH(Selection_Hide2!$A319, 'Full set Core Client Indicator'!$A$3:$A$351, 0), MATCH(Selection_Hide2!Q$5, 'Full set Core Client Indicator'!$A$3:$AB$3, 0))=\"\", \"\",  INDEX('Full set Core Client Indicator'!$A$3:$AB$351, MATCH(Selection_Hide2!$A319, 'Full set Core Client Indicator'!$A$3:$A$351, 0), MATCH(Selection_Hide2!Q$5, 'Full set Core Client Indicator'!$A$3:$AB$3, 0))), \"\")","v":""},{"$f":"IF(Q319<>\"\", IF(INDEX('Full set Core Client Indicator'!$A$3:$AB$351, MATCH(Selection_Hide2!$A319, 'Full set Core Client Indicator'!$A$3:$A$351, 0), MATCH(Selection_Hide2!R$5, 'Full set Core Client Indicator'!$A$3:$AB$3, 0))=\"\", \"\",  INDEX('Full set Core Client Indicator'!$A$3:$AB$351, MATCH(Selection_Hide2!$A319, 'Full set Core Client Indicator'!$A$3:$A$351, 0), MATCH(Selection_Hide2!R$5, 'Full set Core Client Indicator'!$A$3:$AB$3, 0))), \"\")","v":""},{"$f":"IF(R319<>\"\", IF(INDEX('Full set Core Client Indicator'!$A$3:$AB$351, MATCH(Selection_Hide2!$A319, 'Full set Core Client Indicator'!$A$3:$A$351, 0), MATCH(Selection_Hide2!S$5, 'Full set Core Client Indicator'!$A$3:$AB$3, 0))=\"\", \"\",  INDEX('Full set Core Client Indicator'!$A$3:$AB$351, MATCH(Selection_Hide2!$A319, 'Full set Core Client Indicator'!$A$3:$A$351, 0), MATCH(Selection_Hide2!S$5, 'Full set Core Client Indicator'!$A$3:$AB$3, 0))), \"\")","v":""},{"$f":"IF(S319<>\"\", IF(INDEX('Full set Core Client Indicator'!$A$3:$AB$351, MATCH(Selection_Hide2!$A319, 'Full set Core Client Indicator'!$A$3:$A$351, 0), MATCH(Selection_Hide2!T$5, 'Full set Core Client Indicator'!$A$3:$AB$3, 0))=\"\", \"\",  INDEX('Full set Core Client Indicator'!$A$3:$AB$351, MATCH(Selection_Hide2!$A319, 'Full set Core Client Indicator'!$A$3:$A$351, 0), MATCH(Selection_Hide2!T$5, 'Full set Core Client Indicator'!$A$3:$AB$3, 0))), \"\")","v":""},{"$f":"IF(T319<>\"\", IF(INDEX('Full set Core Client Indicator'!$A$3:$AB$351, MATCH(Selection_Hide2!$A319, 'Full set Core Client Indicator'!$A$3:$A$351, 0), MATCH(Selection_Hide2!U$5, 'Full set Core Client Indicator'!$A$3:$AB$3, 0))=\"\", \"\",  INDEX('Full set Core Client Indicator'!$A$3:$AB$351, MATCH(Selection_Hide2!$A319, 'Full set Core Client Indicator'!$A$3:$A$351, 0), MATCH(Selection_Hide2!U$5, 'Full set Core Client Indicator'!$A$3:$AB$3, 0))), \"\")","v":""},{"$f":"IF(U319<>\"\", IF(INDEX('Full set Core Client Indicator'!$A$3:$AB$351, MATCH(Selection_Hide2!$A319, 'Full set Core Client Indicator'!$A$3:$A$351, 0), MATCH(Selection_Hide2!V$5, 'Full set Core Client Indicator'!$A$3:$AB$3, 0))=\"\", \"\",  INDEX('Full set Core Client Indicator'!$A$3:$AB$351, MATCH(Selection_Hide2!$A319, 'Full set Core Client Indicator'!$A$3:$A$351, 0), MATCH(Selection_Hide2!V$5, 'Full set Core Client Indicator'!$A$3:$AB$3, 0))), \"\")","v":""},{"$f":"IF(V319<>\"\", IF(INDEX('Full set Core Client Indicator'!$A$3:$AB$351, MATCH(Selection_Hide2!$A319, 'Full set Core Client Indicator'!$A$3:$A$351, 0), MATCH(Selection_Hide2!W$5, 'Full set Core Client Indicator'!$A$3:$AB$3, 0))=\"\", \"\",  INDEX('Full set Core Client Indicator'!$A$3:$AB$351, MATCH(Selection_Hide2!$A319, 'Full set Core Client Indicator'!$A$3:$A$351, 0), MATCH(Selection_Hide2!W$5, 'Full set Core Client Indicator'!$A$3:$AB$3, 0))), \"\")","v":""},{"$f":"IF(W319<>\"\", IF(INDEX('Full set Core Client Indicator'!$A$3:$AB$351, MATCH(Selection_Hide2!$A319, 'Full set Core Client Indicator'!$A$3:$A$351, 0), MATCH(Selection_Hide2!X$5, 'Full set Core Client Indicator'!$A$3:$AB$3, 0))=\"\", \"\",  INDEX('Full set Core Client Indicator'!$A$3:$AB$351, MATCH(Selection_Hide2!$A319, 'Full set Core Client Indicator'!$A$3:$A$351, 0), MATCH(Selection_Hide2!X$5, 'Full set Core Client Indicator'!$A$3:$AB$3, 0))), \"\")","v":""},{"$f":"IF(X319<>\"\", IF(INDEX('Full set Core Client Indicator'!$A$3:$AB$351, MATCH(Selection_Hide2!$A319, 'Full set Core Client Indicator'!$A$3:$A$351, 0), MATCH(Selection_Hide2!Y$5, 'Full set Core Client Indicator'!$A$3:$AB$3, 0))=\"\", \"\",  INDEX('Full set Core Client Indicator'!$A$3:$AB$351, MATCH(Selection_Hide2!$A319, 'Full set Core Client Indicator'!$A$3:$A$351, 0), MATCH(Selection_Hide2!Y$5, 'Full set Core Client Indicator'!$A$3:$AB$3, 0))), \"\")","v":""},{"$f":"IF(Y319<>\"\", IF(INDEX('Full set Core Client Indicator'!$A$3:$AB$351, MATCH(Selection_Hide2!$A319, 'Full set Core Client Indicator'!$A$3:$A$351, 0), MATCH(Selection_Hide2!Z$5, 'Full set Core Client Indicator'!$A$3:$AB$3, 0))=\"\", \"\",  INDEX('Full set Core Client Indicator'!$A$3:$AB$351, MATCH(Selection_Hide2!$A319, 'Full set Core Client Indicator'!$A$3:$A$351, 0), MATCH(Selection_Hide2!Z$5, 'Full set Core Client Indicator'!$A$3:$AB$3, 0))), \"\")","v":""},{"$f":"IF(Z319<>\"\", IF(INDEX('Full set Core Client Indicator'!$A$3:$AB$351, MATCH(Selection_Hide2!$A319, 'Full set Core Client Indicator'!$A$3:$A$351, 0), MATCH(Selection_Hide2!AA$5, 'Full set Core Client Indicator'!$A$3:$AB$3, 0))=\"\", \"\",  INDEX('Full set Core Client Indicator'!$A$3:$AB$351, MATCH(Selection_Hide2!$A319, 'Full set Core Client Indicator'!$A$3:$A$351, 0), MATCH(Selection_Hide2!AA$5, 'Full set Core Client Indicator'!$A$3:$AB$3, 0))), \"\")","v":""},{"$f":"IF(AA319<>\"\", IF(INDEX('Full set Core Client Indicator'!$A$3:$AB$351, MATCH(Selection_Hide2!$A319, 'Full set Core Client Indicator'!$A$3:$A$351, 0), MATCH(Selection_Hide2!AB$5, 'Full set Core Client Indicator'!$A$3:$AB$3, 0))=\"\", \"\",  INDEX('Full set Core Client Indicator'!$A$3:$AB$351, MATCH(Selection_Hide2!$A319, 'Full set Core Client Indicator'!$A$3:$A$351, 0), MATCH(Selection_Hide2!AB$5, 'Full set Core Client Indicator'!$A$3:$AB$3, 0))), \"\")","v":""}]
[{"$f":"IF(AND(Selection_Hide1!C318<>0, Selection_Hide1!C318<>\"Grand Total\"), Selection_Hide1!C318, \"\")","v":""},{"$f":"IF(A320<>\"\", IF(INDEX('Full set Core Client Indicator'!$A$3:$AB$351, MATCH(Selection_Hide2!$A320, 'Full set Core Client Indicator'!$A$3:$A$351, 0), MATCH(Selection_Hide2!B$5, 'Full set Core Client Indicator'!$A$3:$AB$3, 0))=\"\", \"\",  INDEX('Full set Core Client Indicator'!$A$3:$AB$351, MATCH(Selection_Hide2!$A320, 'Full set Core Client Indicator'!$A$3:$A$351, 0), MATCH(Selection_Hide2!B$5, 'Full set Core Client Indicator'!$A$3:$AB$3, 0))), \"\")","v":""},{"$f":"IF(B320<>\"\", IF(INDEX('Full set Core Client Indicator'!$A$3:$AB$351, MATCH(Selection_Hide2!$A320, 'Full set Core Client Indicator'!$A$3:$A$351, 0), MATCH(Selection_Hide2!C$5, 'Full set Core Client Indicator'!$A$3:$AB$3, 0))=\"\", \"\",  INDEX('Full set Core Client Indicator'!$A$3:$AB$351, MATCH(Selection_Hide2!$A320, 'Full set Core Client Indicator'!$A$3:$A$351, 0), MATCH(Selection_Hide2!C$5, 'Full set Core Client Indicator'!$A$3:$AB$3, 0))), \"\")","v":""},{"$f":"IF(C320<>\"\", IF(INDEX('Full set Core Client Indicator'!$A$3:$AB$351, MATCH(Selection_Hide2!$A320, 'Full set Core Client Indicator'!$A$3:$A$351, 0), MATCH(Selection_Hide2!D$5, 'Full set Core Client Indicator'!$A$3:$AB$3, 0))=\"\", \"\",  INDEX('Full set Core Client Indicator'!$A$3:$AB$351, MATCH(Selection_Hide2!$A320, 'Full set Core Client Indicator'!$A$3:$A$351, 0), MATCH(Selection_Hide2!D$5, 'Full set Core Client Indicator'!$A$3:$AB$3, 0))), \"\")","v":""},{"$f":"IF(D320<>\"\", IF(INDEX('Full set Core Client Indicator'!$A$3:$AB$351, MATCH(Selection_Hide2!$A320, 'Full set Core Client Indicator'!$A$3:$A$351, 0), MATCH(Selection_Hide2!E$5, 'Full set Core Client Indicator'!$A$3:$AB$3, 0))=\"\", \"\",  INDEX('Full set Core Client Indicator'!$A$3:$AB$351, MATCH(Selection_Hide2!$A320, 'Full set Core Client Indicator'!$A$3:$A$351, 0), MATCH(Selection_Hide2!E$5, 'Full set Core Client Indicator'!$A$3:$AB$3, 0))), \"\")","v":""},{"$f":"IF(E320<>\"\", IF(INDEX('Full set Core Client Indicator'!$A$3:$AB$351, MATCH(Selection_Hide2!$A320, 'Full set Core Client Indicator'!$A$3:$A$351, 0), MATCH(Selection_Hide2!F$5, 'Full set Core Client Indicator'!$A$3:$AB$3, 0))=\"\", \"\",  INDEX('Full set Core Client Indicator'!$A$3:$AB$351, MATCH(Selection_Hide2!$A320, 'Full set Core Client Indicator'!$A$3:$A$351, 0), MATCH(Selection_Hide2!F$5, 'Full set Core Client Indicator'!$A$3:$AB$3, 0))), \"\")","v":""},{"$f":"IF(F320<>\"\", IF(INDEX('Full set Core Client Indicator'!$A$3:$AB$351, MATCH(Selection_Hide2!$A320, 'Full set Core Client Indicator'!$A$3:$A$351, 0), MATCH(Selection_Hide2!G$5, 'Full set Core Client Indicator'!$A$3:$AB$3, 0))=\"\", \"\",  INDEX('Full set Core Client Indicator'!$A$3:$AB$351, MATCH(Selection_Hide2!$A320, 'Full set Core Client Indicator'!$A$3:$A$351, 0), MATCH(Selection_Hide2!G$5, 'Full set Core Client Indicator'!$A$3:$AB$3, 0))), \"\")","v":""},{"$f":"IF(G320<>\"\", IF(INDEX('Full set Core Client Indicator'!$A$3:$AB$351, MATCH(Selection_Hide2!$A320, 'Full set Core Client Indicator'!$A$3:$A$351, 0), MATCH(Selection_Hide2!H$5, 'Full set Core Client Indicator'!$A$3:$AB$3, 0))=\"\", \"\",  INDEX('Full set Core Client Indicator'!$A$3:$AB$351, MATCH(Selection_Hide2!$A320, 'Full set Core Client Indicator'!$A$3:$A$351, 0), MATCH(Selection_Hide2!H$5, 'Full set Core Client Indicator'!$A$3:$AB$3, 0))), \"\")","v":""},{"$f":"IF(H320<>\"\", IF(INDEX('Full set Core Client Indicator'!$A$3:$AB$351, MATCH(Selection_Hide2!$A320, 'Full set Core Client Indicator'!$A$3:$A$351, 0), MATCH(Selection_Hide2!I$5, 'Full set Core Client Indicator'!$A$3:$AB$3, 0))=\"\", \"\",  INDEX('Full set Core Client Indicator'!$A$3:$AB$351, MATCH(Selection_Hide2!$A320, 'Full set Core Client Indicator'!$A$3:$A$351, 0), MATCH(Selection_Hide2!I$5, 'Full set Core Client Indicator'!$A$3:$AB$3, 0))), \"\")","v":""},{"$f":"IF(I320<>\"\", IF(INDEX('Full set Core Client Indicator'!$A$3:$AB$351, MATCH(Selection_Hide2!$A320, 'Full set Core Client Indicator'!$A$3:$A$351, 0), MATCH(Selection_Hide2!J$5, 'Full set Core Client Indicator'!$A$3:$AB$3, 0))=\"\", \"\",  INDEX('Full set Core Client Indicator'!$A$3:$AB$351, MATCH(Selection_Hide2!$A320, 'Full set Core Client Indicator'!$A$3:$A$351, 0), MATCH(Selection_Hide2!J$5, 'Full set Core Client Indicator'!$A$3:$AB$3, 0))), \"\")","v":""},{"$f":"IF(J320<>\"\", IF(INDEX('Full set Core Client Indicator'!$A$3:$AB$351, MATCH(Selection_Hide2!$A320, 'Full set Core Client Indicator'!$A$3:$A$351, 0), MATCH(Selection_Hide2!K$5, 'Full set Core Client Indicator'!$A$3:$AB$3, 0))=\"\", \"\",  INDEX('Full set Core Client Indicator'!$A$3:$AB$351, MATCH(Selection_Hide2!$A320, 'Full set Core Client Indicator'!$A$3:$A$351, 0), MATCH(Selection_Hide2!K$5, 'Full set Core Client Indicator'!$A$3:$AB$3, 0))), \"\")","v":""},{"$f":"IF(K320<>\"\", IF(INDEX('Full set Core Client Indicator'!$A$3:$AB$351, MATCH(Selection_Hide2!$A320, 'Full set Core Client Indicator'!$A$3:$A$351, 0), MATCH(Selection_Hide2!L$5, 'Full set Core Client Indicator'!$A$3:$AB$3, 0))=\"\", \"\",  INDEX('Full set Core Client Indicator'!$A$3:$AB$351, MATCH(Selection_Hide2!$A320, 'Full set Core Client Indicator'!$A$3:$A$351, 0), MATCH(Selection_Hide2!L$5, 'Full set Core Client Indicator'!$A$3:$AB$3, 0))), \"\")","v":""},{"$f":"IF(L320<>\"\", IF(INDEX('Full set Core Client Indicator'!$A$3:$AB$351, MATCH(Selection_Hide2!$A320, 'Full set Core Client Indicator'!$A$3:$A$351, 0), MATCH(Selection_Hide2!M$5, 'Full set Core Client Indicator'!$A$3:$AB$3, 0))=\"\", \"\",  INDEX('Full set Core Client Indicator'!$A$3:$AB$351, MATCH(Selection_Hide2!$A320, 'Full set Core Client Indicator'!$A$3:$A$351, 0), MATCH(Selection_Hide2!M$5, 'Full set Core Client Indicator'!$A$3:$AB$3, 0))), \"\")","v":""},{"$f":"IF(M320<>\"\", IF(INDEX('Full set Core Client Indicator'!$A$3:$AB$351, MATCH(Selection_Hide2!$A320, 'Full set Core Client Indicator'!$A$3:$A$351, 0), MATCH(Selection_Hide2!N$5, 'Full set Core Client Indicator'!$A$3:$AB$3, 0))=\"\", \"\",  INDEX('Full set Core Client Indicator'!$A$3:$AB$351, MATCH(Selection_Hide2!$A320, 'Full set Core Client Indicator'!$A$3:$A$351, 0), MATCH(Selection_Hide2!N$5, 'Full set Core Client Indicator'!$A$3:$AB$3, 0))), \"\")","v":""},{"$f":"IF(N320<>\"\", IF(INDEX('Full set Core Client Indicator'!$A$3:$AB$351, MATCH(Selection_Hide2!$A320, 'Full set Core Client Indicator'!$A$3:$A$351, 0), MATCH(Selection_Hide2!O$5, 'Full set Core Client Indicator'!$A$3:$AB$3, 0))=\"\", \"\",  INDEX('Full set Core Client Indicator'!$A$3:$AB$351, MATCH(Selection_Hide2!$A320, 'Full set Core Client Indicator'!$A$3:$A$351, 0), MATCH(Selection_Hide2!O$5, 'Full set Core Client Indicator'!$A$3:$AB$3, 0))), \"\")","v":""},{"$f":"IF(O320<>\"\", IF(INDEX('Full set Core Client Indicator'!$A$3:$AB$351, MATCH(Selection_Hide2!$A320, 'Full set Core Client Indicator'!$A$3:$A$351, 0), MATCH(Selection_Hide2!P$5, 'Full set Core Client Indicator'!$A$3:$AB$3, 0))=\"\", \"\",  INDEX('Full set Core Client Indicator'!$A$3:$AB$351, MATCH(Selection_Hide2!$A320, 'Full set Core Client Indicator'!$A$3:$A$351, 0), MATCH(Selection_Hide2!P$5, 'Full set Core Client Indicator'!$A$3:$AB$3, 0))), \"\")","v":""},{"$f":"IF(P320<>\"\", IF(INDEX('Full set Core Client Indicator'!$A$3:$AB$351, MATCH(Selection_Hide2!$A320, 'Full set Core Client Indicator'!$A$3:$A$351, 0), MATCH(Selection_Hide2!Q$5, 'Full set Core Client Indicator'!$A$3:$AB$3, 0))=\"\", \"\",  INDEX('Full set Core Client Indicator'!$A$3:$AB$351, MATCH(Selection_Hide2!$A320, 'Full set Core Client Indicator'!$A$3:$A$351, 0), MATCH(Selection_Hide2!Q$5, 'Full set Core Client Indicator'!$A$3:$AB$3, 0))), \"\")","v":""},{"$f":"IF(Q320<>\"\", IF(INDEX('Full set Core Client Indicator'!$A$3:$AB$351, MATCH(Selection_Hide2!$A320, 'Full set Core Client Indicator'!$A$3:$A$351, 0), MATCH(Selection_Hide2!R$5, 'Full set Core Client Indicator'!$A$3:$AB$3, 0))=\"\", \"\",  INDEX('Full set Core Client Indicator'!$A$3:$AB$351, MATCH(Selection_Hide2!$A320, 'Full set Core Client Indicator'!$A$3:$A$351, 0), MATCH(Selection_Hide2!R$5, 'Full set Core Client Indicator'!$A$3:$AB$3, 0))), \"\")","v":""},{"$f":"IF(R320<>\"\", IF(INDEX('Full set Core Client Indicator'!$A$3:$AB$351, MATCH(Selection_Hide2!$A320, 'Full set Core Client Indicator'!$A$3:$A$351, 0), MATCH(Selection_Hide2!S$5, 'Full set Core Client Indicator'!$A$3:$AB$3, 0))=\"\", \"\",  INDEX('Full set Core Client Indicator'!$A$3:$AB$351, MATCH(Selection_Hide2!$A320, 'Full set Core Client Indicator'!$A$3:$A$351, 0), MATCH(Selection_Hide2!S$5, 'Full set Core Client Indicator'!$A$3:$AB$3, 0))), \"\")","v":""},{"$f":"IF(S320<>\"\", IF(INDEX('Full set Core Client Indicator'!$A$3:$AB$351, MATCH(Selection_Hide2!$A320, 'Full set Core Client Indicator'!$A$3:$A$351, 0), MATCH(Selection_Hide2!T$5, 'Full set Core Client Indicator'!$A$3:$AB$3, 0))=\"\", \"\",  INDEX('Full set Core Client Indicator'!$A$3:$AB$351, MATCH(Selection_Hide2!$A320, 'Full set Core Client Indicator'!$A$3:$A$351, 0), MATCH(Selection_Hide2!T$5, 'Full set Core Client Indicator'!$A$3:$AB$3, 0))), \"\")","v":""},{"$f":"IF(T320<>\"\", IF(INDEX('Full set Core Client Indicator'!$A$3:$AB$351, MATCH(Selection_Hide2!$A320, 'Full set Core Client Indicator'!$A$3:$A$351, 0), MATCH(Selection_Hide2!U$5, 'Full set Core Client Indicator'!$A$3:$AB$3, 0))=\"\", \"\",  INDEX('Full set Core Client Indicator'!$A$3:$AB$351, MATCH(Selection_Hide2!$A320, 'Full set Core Client Indicator'!$A$3:$A$351, 0), MATCH(Selection_Hide2!U$5, 'Full set Core Client Indicator'!$A$3:$AB$3, 0))), \"\")","v":""},{"$f":"IF(U320<>\"\", IF(INDEX('Full set Core Client Indicator'!$A$3:$AB$351, MATCH(Selection_Hide2!$A320, 'Full set Core Client Indicator'!$A$3:$A$351, 0), MATCH(Selection_Hide2!V$5, 'Full set Core Client Indicator'!$A$3:$AB$3, 0))=\"\", \"\",  INDEX('Full set Core Client Indicator'!$A$3:$AB$351, MATCH(Selection_Hide2!$A320, 'Full set Core Client Indicator'!$A$3:$A$351, 0), MATCH(Selection_Hide2!V$5, 'Full set Core Client Indicator'!$A$3:$AB$3, 0))), \"\")","v":""},{"$f":"IF(V320<>\"\", IF(INDEX('Full set Core Client Indicator'!$A$3:$AB$351, MATCH(Selection_Hide2!$A320, 'Full set Core Client Indicator'!$A$3:$A$351, 0), MATCH(Selection_Hide2!W$5, 'Full set Core Client Indicator'!$A$3:$AB$3, 0))=\"\", \"\",  INDEX('Full set Core Client Indicator'!$A$3:$AB$351, MATCH(Selection_Hide2!$A320, 'Full set Core Client Indicator'!$A$3:$A$351, 0), MATCH(Selection_Hide2!W$5, 'Full set Core Client Indicator'!$A$3:$AB$3, 0))), \"\")","v":""},{"$f":"IF(W320<>\"\", IF(INDEX('Full set Core Client Indicator'!$A$3:$AB$351, MATCH(Selection_Hide2!$A320, 'Full set Core Client Indicator'!$A$3:$A$351, 0), MATCH(Selection_Hide2!X$5, 'Full set Core Client Indicator'!$A$3:$AB$3, 0))=\"\", \"\",  INDEX('Full set Core Client Indicator'!$A$3:$AB$351, MATCH(Selection_Hide2!$A320, 'Full set Core Client Indicator'!$A$3:$A$351, 0), MATCH(Selection_Hide2!X$5, 'Full set Core Client Indicator'!$A$3:$AB$3, 0))), \"\")","v":""},{"$f":"IF(X320<>\"\", IF(INDEX('Full set Core Client Indicator'!$A$3:$AB$351, MATCH(Selection_Hide2!$A320, 'Full set Core Client Indicator'!$A$3:$A$351, 0), MATCH(Selection_Hide2!Y$5, 'Full set Core Client Indicator'!$A$3:$AB$3, 0))=\"\", \"\",  INDEX('Full set Core Client Indicator'!$A$3:$AB$351, MATCH(Selection_Hide2!$A320, 'Full set Core Client Indicator'!$A$3:$A$351, 0), MATCH(Selection_Hide2!Y$5, 'Full set Core Client Indicator'!$A$3:$AB$3, 0))), \"\")","v":""},{"$f":"IF(Y320<>\"\", IF(INDEX('Full set Core Client Indicator'!$A$3:$AB$351, MATCH(Selection_Hide2!$A320, 'Full set Core Client Indicator'!$A$3:$A$351, 0), MATCH(Selection_Hide2!Z$5, 'Full set Core Client Indicator'!$A$3:$AB$3, 0))=\"\", \"\",  INDEX('Full set Core Client Indicator'!$A$3:$AB$351, MATCH(Selection_Hide2!$A320, 'Full set Core Client Indicator'!$A$3:$A$351, 0), MATCH(Selection_Hide2!Z$5, 'Full set Core Client Indicator'!$A$3:$AB$3, 0))), \"\")","v":""},{"$f":"IF(Z320<>\"\", IF(INDEX('Full set Core Client Indicator'!$A$3:$AB$351, MATCH(Selection_Hide2!$A320, 'Full set Core Client Indicator'!$A$3:$A$351, 0), MATCH(Selection_Hide2!AA$5, 'Full set Core Client Indicator'!$A$3:$AB$3, 0))=\"\", \"\",  INDEX('Full set Core Client Indicator'!$A$3:$AB$351, MATCH(Selection_Hide2!$A320, 'Full set Core Client Indicator'!$A$3:$A$351, 0), MATCH(Selection_Hide2!AA$5, 'Full set Core Client Indicator'!$A$3:$AB$3, 0))), \"\")","v":""},{"$f":"IF(AA320<>\"\", IF(INDEX('Full set Core Client Indicator'!$A$3:$AB$351, MATCH(Selection_Hide2!$A320, 'Full set Core Client Indicator'!$A$3:$A$351, 0), MATCH(Selection_Hide2!AB$5, 'Full set Core Client Indicator'!$A$3:$AB$3, 0))=\"\", \"\",  INDEX('Full set Core Client Indicator'!$A$3:$AB$351, MATCH(Selection_Hide2!$A320, 'Full set Core Client Indicator'!$A$3:$A$351, 0), MATCH(Selection_Hide2!AB$5, 'Full set Core Client Indicator'!$A$3:$AB$3, 0))), \"\")","v":""}]
[{"$f":"IF(AND(Selection_Hide1!C319<>0, Selection_Hide1!C319<>\"Grand Total\"), Selection_Hide1!C319, \"\")","v":""},{"$f":"IF(A321<>\"\", IF(INDEX('Full set Core Client Indicator'!$A$3:$AB$351, MATCH(Selection_Hide2!$A321, 'Full set Core Client Indicator'!$A$3:$A$351, 0), MATCH(Selection_Hide2!B$5, 'Full set Core Client Indicator'!$A$3:$AB$3, 0))=\"\", \"\",  INDEX('Full set Core Client Indicator'!$A$3:$AB$351, MATCH(Selection_Hide2!$A321, 'Full set Core Client Indicator'!$A$3:$A$351, 0), MATCH(Selection_Hide2!B$5, 'Full set Core Client Indicator'!$A$3:$AB$3, 0))), \"\")","v":""},{"$f":"IF(B321<>\"\", IF(INDEX('Full set Core Client Indicator'!$A$3:$AB$351, MATCH(Selection_Hide2!$A321, 'Full set Core Client Indicator'!$A$3:$A$351, 0), MATCH(Selection_Hide2!C$5, 'Full set Core Client Indicator'!$A$3:$AB$3, 0))=\"\", \"\",  INDEX('Full set Core Client Indicator'!$A$3:$AB$351, MATCH(Selection_Hide2!$A321, 'Full set Core Client Indicator'!$A$3:$A$351, 0), MATCH(Selection_Hide2!C$5, 'Full set Core Client Indicator'!$A$3:$AB$3, 0))), \"\")","v":""},{"$f":"IF(C321<>\"\", IF(INDEX('Full set Core Client Indicator'!$A$3:$AB$351, MATCH(Selection_Hide2!$A321, 'Full set Core Client Indicator'!$A$3:$A$351, 0), MATCH(Selection_Hide2!D$5, 'Full set Core Client Indicator'!$A$3:$AB$3, 0))=\"\", \"\",  INDEX('Full set Core Client Indicator'!$A$3:$AB$351, MATCH(Selection_Hide2!$A321, 'Full set Core Client Indicator'!$A$3:$A$351, 0), MATCH(Selection_Hide2!D$5, 'Full set Core Client Indicator'!$A$3:$AB$3, 0))), \"\")","v":""},{"$f":"IF(D321<>\"\", IF(INDEX('Full set Core Client Indicator'!$A$3:$AB$351, MATCH(Selection_Hide2!$A321, 'Full set Core Client Indicator'!$A$3:$A$351, 0), MATCH(Selection_Hide2!E$5, 'Full set Core Client Indicator'!$A$3:$AB$3, 0))=\"\", \"\",  INDEX('Full set Core Client Indicator'!$A$3:$AB$351, MATCH(Selection_Hide2!$A321, 'Full set Core Client Indicator'!$A$3:$A$351, 0), MATCH(Selection_Hide2!E$5, 'Full set Core Client Indicator'!$A$3:$AB$3, 0))), \"\")","v":""},{"$f":"IF(E321<>\"\", IF(INDEX('Full set Core Client Indicator'!$A$3:$AB$351, MATCH(Selection_Hide2!$A321, 'Full set Core Client Indicator'!$A$3:$A$351, 0), MATCH(Selection_Hide2!F$5, 'Full set Core Client Indicator'!$A$3:$AB$3, 0))=\"\", \"\",  INDEX('Full set Core Client Indicator'!$A$3:$AB$351, MATCH(Selection_Hide2!$A321, 'Full set Core Client Indicator'!$A$3:$A$351, 0), MATCH(Selection_Hide2!F$5, 'Full set Core Client Indicator'!$A$3:$AB$3, 0))), \"\")","v":""},{"$f":"IF(F321<>\"\", IF(INDEX('Full set Core Client Indicator'!$A$3:$AB$351, MATCH(Selection_Hide2!$A321, 'Full set Core Client Indicator'!$A$3:$A$351, 0), MATCH(Selection_Hide2!G$5, 'Full set Core Client Indicator'!$A$3:$AB$3, 0))=\"\", \"\",  INDEX('Full set Core Client Indicator'!$A$3:$AB$351, MATCH(Selection_Hide2!$A321, 'Full set Core Client Indicator'!$A$3:$A$351, 0), MATCH(Selection_Hide2!G$5, 'Full set Core Client Indicator'!$A$3:$AB$3, 0))), \"\")","v":""},{"$f":"IF(G321<>\"\", IF(INDEX('Full set Core Client Indicator'!$A$3:$AB$351, MATCH(Selection_Hide2!$A321, 'Full set Core Client Indicator'!$A$3:$A$351, 0), MATCH(Selection_Hide2!H$5, 'Full set Core Client Indicator'!$A$3:$AB$3, 0))=\"\", \"\",  INDEX('Full set Core Client Indicator'!$A$3:$AB$351, MATCH(Selection_Hide2!$A321, 'Full set Core Client Indicator'!$A$3:$A$351, 0), MATCH(Selection_Hide2!H$5, 'Full set Core Client Indicator'!$A$3:$AB$3, 0))), \"\")","v":""},{"$f":"IF(H321<>\"\", IF(INDEX('Full set Core Client Indicator'!$A$3:$AB$351, MATCH(Selection_Hide2!$A321, 'Full set Core Client Indicator'!$A$3:$A$351, 0), MATCH(Selection_Hide2!I$5, 'Full set Core Client Indicator'!$A$3:$AB$3, 0))=\"\", \"\",  INDEX('Full set Core Client Indicator'!$A$3:$AB$351, MATCH(Selection_Hide2!$A321, 'Full set Core Client Indicator'!$A$3:$A$351, 0), MATCH(Selection_Hide2!I$5, 'Full set Core Client Indicator'!$A$3:$AB$3, 0))), \"\")","v":""},{"$f":"IF(I321<>\"\", IF(INDEX('Full set Core Client Indicator'!$A$3:$AB$351, MATCH(Selection_Hide2!$A321, 'Full set Core Client Indicator'!$A$3:$A$351, 0), MATCH(Selection_Hide2!J$5, 'Full set Core Client Indicator'!$A$3:$AB$3, 0))=\"\", \"\",  INDEX('Full set Core Client Indicator'!$A$3:$AB$351, MATCH(Selection_Hide2!$A321, 'Full set Core Client Indicator'!$A$3:$A$351, 0), MATCH(Selection_Hide2!J$5, 'Full set Core Client Indicator'!$A$3:$AB$3, 0))), \"\")","v":""},{"$f":"IF(J321<>\"\", IF(INDEX('Full set Core Client Indicator'!$A$3:$AB$351, MATCH(Selection_Hide2!$A321, 'Full set Core Client Indicator'!$A$3:$A$351, 0), MATCH(Selection_Hide2!K$5, 'Full set Core Client Indicator'!$A$3:$AB$3, 0))=\"\", \"\",  INDEX('Full set Core Client Indicator'!$A$3:$AB$351, MATCH(Selection_Hide2!$A321, 'Full set Core Client Indicator'!$A$3:$A$351, 0), MATCH(Selection_Hide2!K$5, 'Full set Core Client Indicator'!$A$3:$AB$3, 0))), \"\")","v":""},{"$f":"IF(K321<>\"\", IF(INDEX('Full set Core Client Indicator'!$A$3:$AB$351, MATCH(Selection_Hide2!$A321, 'Full set Core Client Indicator'!$A$3:$A$351, 0), MATCH(Selection_Hide2!L$5, 'Full set Core Client Indicator'!$A$3:$AB$3, 0))=\"\", \"\",  INDEX('Full set Core Client Indicator'!$A$3:$AB$351, MATCH(Selection_Hide2!$A321, 'Full set Core Client Indicator'!$A$3:$A$351, 0), MATCH(Selection_Hide2!L$5, 'Full set Core Client Indicator'!$A$3:$AB$3, 0))), \"\")","v":""},{"$f":"IF(L321<>\"\", IF(INDEX('Full set Core Client Indicator'!$A$3:$AB$351, MATCH(Selection_Hide2!$A321, 'Full set Core Client Indicator'!$A$3:$A$351, 0), MATCH(Selection_Hide2!M$5, 'Full set Core Client Indicator'!$A$3:$AB$3, 0))=\"\", \"\",  INDEX('Full set Core Client Indicator'!$A$3:$AB$351, MATCH(Selection_Hide2!$A321, 'Full set Core Client Indicator'!$A$3:$A$351, 0), MATCH(Selection_Hide2!M$5, 'Full set Core Client Indicator'!$A$3:$AB$3, 0))), \"\")","v":""},{"$f":"IF(M321<>\"\", IF(INDEX('Full set Core Client Indicator'!$A$3:$AB$351, MATCH(Selection_Hide2!$A321, 'Full set Core Client Indicator'!$A$3:$A$351, 0), MATCH(Selection_Hide2!N$5, 'Full set Core Client Indicator'!$A$3:$AB$3, 0))=\"\", \"\",  INDEX('Full set Core Client Indicator'!$A$3:$AB$351, MATCH(Selection_Hide2!$A321, 'Full set Core Client Indicator'!$A$3:$A$351, 0), MATCH(Selection_Hide2!N$5, 'Full set Core Client Indicator'!$A$3:$AB$3, 0))), \"\")","v":""},{"$f":"IF(N321<>\"\", IF(INDEX('Full set Core Client Indicator'!$A$3:$AB$351, MATCH(Selection_Hide2!$A321, 'Full set Core Client Indicator'!$A$3:$A$351, 0), MATCH(Selection_Hide2!O$5, 'Full set Core Client Indicator'!$A$3:$AB$3, 0))=\"\", \"\",  INDEX('Full set Core Client Indicator'!$A$3:$AB$351, MATCH(Selection_Hide2!$A321, 'Full set Core Client Indicator'!$A$3:$A$351, 0), MATCH(Selection_Hide2!O$5, 'Full set Core Client Indicator'!$A$3:$AB$3, 0))), \"\")","v":""},{"$f":"IF(O321<>\"\", IF(INDEX('Full set Core Client Indicator'!$A$3:$AB$351, MATCH(Selection_Hide2!$A321, 'Full set Core Client Indicator'!$A$3:$A$351, 0), MATCH(Selection_Hide2!P$5, 'Full set Core Client Indicator'!$A$3:$AB$3, 0))=\"\", \"\",  INDEX('Full set Core Client Indicator'!$A$3:$AB$351, MATCH(Selection_Hide2!$A321, 'Full set Core Client Indicator'!$A$3:$A$351, 0), MATCH(Selection_Hide2!P$5, 'Full set Core Client Indicator'!$A$3:$AB$3, 0))), \"\")","v":""},{"$f":"IF(P321<>\"\", IF(INDEX('Full set Core Client Indicator'!$A$3:$AB$351, MATCH(Selection_Hide2!$A321, 'Full set Core Client Indicator'!$A$3:$A$351, 0), MATCH(Selection_Hide2!Q$5, 'Full set Core Client Indicator'!$A$3:$AB$3, 0))=\"\", \"\",  INDEX('Full set Core Client Indicator'!$A$3:$AB$351, MATCH(Selection_Hide2!$A321, 'Full set Core Client Indicator'!$A$3:$A$351, 0), MATCH(Selection_Hide2!Q$5, 'Full set Core Client Indicator'!$A$3:$AB$3, 0))), \"\")","v":""},{"$f":"IF(Q321<>\"\", IF(INDEX('Full set Core Client Indicator'!$A$3:$AB$351, MATCH(Selection_Hide2!$A321, 'Full set Core Client Indicator'!$A$3:$A$351, 0), MATCH(Selection_Hide2!R$5, 'Full set Core Client Indicator'!$A$3:$AB$3, 0))=\"\", \"\",  INDEX('Full set Core Client Indicator'!$A$3:$AB$351, MATCH(Selection_Hide2!$A321, 'Full set Core Client Indicator'!$A$3:$A$351, 0), MATCH(Selection_Hide2!R$5, 'Full set Core Client Indicator'!$A$3:$AB$3, 0))), \"\")","v":""},{"$f":"IF(R321<>\"\", IF(INDEX('Full set Core Client Indicator'!$A$3:$AB$351, MATCH(Selection_Hide2!$A321, 'Full set Core Client Indicator'!$A$3:$A$351, 0), MATCH(Selection_Hide2!S$5, 'Full set Core Client Indicator'!$A$3:$AB$3, 0))=\"\", \"\",  INDEX('Full set Core Client Indicator'!$A$3:$AB$351, MATCH(Selection_Hide2!$A321, 'Full set Core Client Indicator'!$A$3:$A$351, 0), MATCH(Selection_Hide2!S$5, 'Full set Core Client Indicator'!$A$3:$AB$3, 0))), \"\")","v":""},{"$f":"IF(S321<>\"\", IF(INDEX('Full set Core Client Indicator'!$A$3:$AB$351, MATCH(Selection_Hide2!$A321, 'Full set Core Client Indicator'!$A$3:$A$351, 0), MATCH(Selection_Hide2!T$5, 'Full set Core Client Indicator'!$A$3:$AB$3, 0))=\"\", \"\",  INDEX('Full set Core Client Indicator'!$A$3:$AB$351, MATCH(Selection_Hide2!$A321, 'Full set Core Client Indicator'!$A$3:$A$351, 0), MATCH(Selection_Hide2!T$5, 'Full set Core Client Indicator'!$A$3:$AB$3, 0))), \"\")","v":""},{"$f":"IF(T321<>\"\", IF(INDEX('Full set Core Client Indicator'!$A$3:$AB$351, MATCH(Selection_Hide2!$A321, 'Full set Core Client Indicator'!$A$3:$A$351, 0), MATCH(Selection_Hide2!U$5, 'Full set Core Client Indicator'!$A$3:$AB$3, 0))=\"\", \"\",  INDEX('Full set Core Client Indicator'!$A$3:$AB$351, MATCH(Selection_Hide2!$A321, 'Full set Core Client Indicator'!$A$3:$A$351, 0), MATCH(Selection_Hide2!U$5, 'Full set Core Client Indicator'!$A$3:$AB$3, 0))), \"\")","v":""},{"$f":"IF(U321<>\"\", IF(INDEX('Full set Core Client Indicator'!$A$3:$AB$351, MATCH(Selection_Hide2!$A321, 'Full set Core Client Indicator'!$A$3:$A$351, 0), MATCH(Selection_Hide2!V$5, 'Full set Core Client Indicator'!$A$3:$AB$3, 0))=\"\", \"\",  INDEX('Full set Core Client Indicator'!$A$3:$AB$351, MATCH(Selection_Hide2!$A321, 'Full set Core Client Indicator'!$A$3:$A$351, 0), MATCH(Selection_Hide2!V$5, 'Full set Core Client Indicator'!$A$3:$AB$3, 0))), \"\")","v":""},{"$f":"IF(V321<>\"\", IF(INDEX('Full set Core Client Indicator'!$A$3:$AB$351, MATCH(Selection_Hide2!$A321, 'Full set Core Client Indicator'!$A$3:$A$351, 0), MATCH(Selection_Hide2!W$5, 'Full set Core Client Indicator'!$A$3:$AB$3, 0))=\"\", \"\",  INDEX('Full set Core Client Indicator'!$A$3:$AB$351, MATCH(Selection_Hide2!$A321, 'Full set Core Client Indicator'!$A$3:$A$351, 0), MATCH(Selection_Hide2!W$5, 'Full set Core Client Indicator'!$A$3:$AB$3, 0))), \"\")","v":""},{"$f":"IF(W321<>\"\", IF(INDEX('Full set Core Client Indicator'!$A$3:$AB$351, MATCH(Selection_Hide2!$A321, 'Full set Core Client Indicator'!$A$3:$A$351, 0), MATCH(Selection_Hide2!X$5, 'Full set Core Client Indicator'!$A$3:$AB$3, 0))=\"\", \"\",  INDEX('Full set Core Client Indicator'!$A$3:$AB$351, MATCH(Selection_Hide2!$A321, 'Full set Core Client Indicator'!$A$3:$A$351, 0), MATCH(Selection_Hide2!X$5, 'Full set Core Client Indicator'!$A$3:$AB$3, 0))), \"\")","v":""},{"$f":"IF(X321<>\"\", IF(INDEX('Full set Core Client Indicator'!$A$3:$AB$351, MATCH(Selection_Hide2!$A321, 'Full set Core Client Indicator'!$A$3:$A$351, 0), MATCH(Selection_Hide2!Y$5, 'Full set Core Client Indicator'!$A$3:$AB$3, 0))=\"\", \"\",  INDEX('Full set Core Client Indicator'!$A$3:$AB$351, MATCH(Selection_Hide2!$A321, 'Full set Core Client Indicator'!$A$3:$A$351, 0), MATCH(Selection_Hide2!Y$5, 'Full set Core Client Indicator'!$A$3:$AB$3, 0))), \"\")","v":""},{"$f":"IF(Y321<>\"\", IF(INDEX('Full set Core Client Indicator'!$A$3:$AB$351, MATCH(Selection_Hide2!$A321, 'Full set Core Client Indicator'!$A$3:$A$351, 0), MATCH(Selection_Hide2!Z$5, 'Full set Core Client Indicator'!$A$3:$AB$3, 0))=\"\", \"\",  INDEX('Full set Core Client Indicator'!$A$3:$AB$351, MATCH(Selection_Hide2!$A321, 'Full set Core Client Indicator'!$A$3:$A$351, 0), MATCH(Selection_Hide2!Z$5, 'Full set Core Client Indicator'!$A$3:$AB$3, 0))), \"\")","v":""},{"$f":"IF(Z321<>\"\", IF(INDEX('Full set Core Client Indicator'!$A$3:$AB$351, MATCH(Selection_Hide2!$A321, 'Full set Core Client Indicator'!$A$3:$A$351, 0), MATCH(Selection_Hide2!AA$5, 'Full set Core Client Indicator'!$A$3:$AB$3, 0))=\"\", \"\",  INDEX('Full set Core Client Indicator'!$A$3:$AB$351, MATCH(Selection_Hide2!$A321, 'Full set Core Client Indicator'!$A$3:$A$351, 0), MATCH(Selection_Hide2!AA$5, 'Full set Core Client Indicator'!$A$3:$AB$3, 0))), \"\")","v":""},{"$f":"IF(AA321<>\"\", IF(INDEX('Full set Core Client Indicator'!$A$3:$AB$351, MATCH(Selection_Hide2!$A321, 'Full set Core Client Indicator'!$A$3:$A$351, 0), MATCH(Selection_Hide2!AB$5, 'Full set Core Client Indicator'!$A$3:$AB$3, 0))=\"\", \"\",  INDEX('Full set Core Client Indicator'!$A$3:$AB$351, MATCH(Selection_Hide2!$A321, 'Full set Core Client Indicator'!$A$3:$A$351, 0), MATCH(Selection_Hide2!AB$5, 'Full set Core Client Indicator'!$A$3:$AB$3, 0))), \"\")","v":""}]
[{"$f":"IF(AND(Selection_Hide1!C320<>0, Selection_Hide1!C320<>\"Grand Total\"), Selection_Hide1!C320, \"\")","v":""},{"$f":"IF(A322<>\"\", IF(INDEX('Full set Core Client Indicator'!$A$3:$AB$351, MATCH(Selection_Hide2!$A322, 'Full set Core Client Indicator'!$A$3:$A$351, 0), MATCH(Selection_Hide2!B$5, 'Full set Core Client Indicator'!$A$3:$AB$3, 0))=\"\", \"\",  INDEX('Full set Core Client Indicator'!$A$3:$AB$351, MATCH(Selection_Hide2!$A322, 'Full set Core Client Indicator'!$A$3:$A$351, 0), MATCH(Selection_Hide2!B$5, 'Full set Core Client Indicator'!$A$3:$AB$3, 0))), \"\")","v":""},{"$f":"IF(B322<>\"\", IF(INDEX('Full set Core Client Indicator'!$A$3:$AB$351, MATCH(Selection_Hide2!$A322, 'Full set Core Client Indicator'!$A$3:$A$351, 0), MATCH(Selection_Hide2!C$5, 'Full set Core Client Indicator'!$A$3:$AB$3, 0))=\"\", \"\",  INDEX('Full set Core Client Indicator'!$A$3:$AB$351, MATCH(Selection_Hide2!$A322, 'Full set Core Client Indicator'!$A$3:$A$351, 0), MATCH(Selection_Hide2!C$5, 'Full set Core Client Indicator'!$A$3:$AB$3, 0))), \"\")","v":""},{"$f":"IF(C322<>\"\", IF(INDEX('Full set Core Client Indicator'!$A$3:$AB$351, MATCH(Selection_Hide2!$A322, 'Full set Core Client Indicator'!$A$3:$A$351, 0), MATCH(Selection_Hide2!D$5, 'Full set Core Client Indicator'!$A$3:$AB$3, 0))=\"\", \"\",  INDEX('Full set Core Client Indicator'!$A$3:$AB$351, MATCH(Selection_Hide2!$A322, 'Full set Core Client Indicator'!$A$3:$A$351, 0), MATCH(Selection_Hide2!D$5, 'Full set Core Client Indicator'!$A$3:$AB$3, 0))), \"\")","v":""},{"$f":"IF(D322<>\"\", IF(INDEX('Full set Core Client Indicator'!$A$3:$AB$351, MATCH(Selection_Hide2!$A322, 'Full set Core Client Indicator'!$A$3:$A$351, 0), MATCH(Selection_Hide2!E$5, 'Full set Core Client Indicator'!$A$3:$AB$3, 0))=\"\", \"\",  INDEX('Full set Core Client Indicator'!$A$3:$AB$351, MATCH(Selection_Hide2!$A322, 'Full set Core Client Indicator'!$A$3:$A$351, 0), MATCH(Selection_Hide2!E$5, 'Full set Core Client Indicator'!$A$3:$AB$3, 0))), \"\")","v":""},{"$f":"IF(E322<>\"\", IF(INDEX('Full set Core Client Indicator'!$A$3:$AB$351, MATCH(Selection_Hide2!$A322, 'Full set Core Client Indicator'!$A$3:$A$351, 0), MATCH(Selection_Hide2!F$5, 'Full set Core Client Indicator'!$A$3:$AB$3, 0))=\"\", \"\",  INDEX('Full set Core Client Indicator'!$A$3:$AB$351, MATCH(Selection_Hide2!$A322, 'Full set Core Client Indicator'!$A$3:$A$351, 0), MATCH(Selection_Hide2!F$5, 'Full set Core Client Indicator'!$A$3:$AB$3, 0))), \"\")","v":""},{"$f":"IF(F322<>\"\", IF(INDEX('Full set Core Client Indicator'!$A$3:$AB$351, MATCH(Selection_Hide2!$A322, 'Full set Core Client Indicator'!$A$3:$A$351, 0), MATCH(Selection_Hide2!G$5, 'Full set Core Client Indicator'!$A$3:$AB$3, 0))=\"\", \"\",  INDEX('Full set Core Client Indicator'!$A$3:$AB$351, MATCH(Selection_Hide2!$A322, 'Full set Core Client Indicator'!$A$3:$A$351, 0), MATCH(Selection_Hide2!G$5, 'Full set Core Client Indicator'!$A$3:$AB$3, 0))), \"\")","v":""},{"$f":"IF(G322<>\"\", IF(INDEX('Full set Core Client Indicator'!$A$3:$AB$351, MATCH(Selection_Hide2!$A322, 'Full set Core Client Indicator'!$A$3:$A$351, 0), MATCH(Selection_Hide2!H$5, 'Full set Core Client Indicator'!$A$3:$AB$3, 0))=\"\", \"\",  INDEX('Full set Core Client Indicator'!$A$3:$AB$351, MATCH(Selection_Hide2!$A322, 'Full set Core Client Indicator'!$A$3:$A$351, 0), MATCH(Selection_Hide2!H$5, 'Full set Core Client Indicator'!$A$3:$AB$3, 0))), \"\")","v":""},{"$f":"IF(H322<>\"\", IF(INDEX('Full set Core Client Indicator'!$A$3:$AB$351, MATCH(Selection_Hide2!$A322, 'Full set Core Client Indicator'!$A$3:$A$351, 0), MATCH(Selection_Hide2!I$5, 'Full set Core Client Indicator'!$A$3:$AB$3, 0))=\"\", \"\",  INDEX('Full set Core Client Indicator'!$A$3:$AB$351, MATCH(Selection_Hide2!$A322, 'Full set Core Client Indicator'!$A$3:$A$351, 0), MATCH(Selection_Hide2!I$5, 'Full set Core Client Indicator'!$A$3:$AB$3, 0))), \"\")","v":""},{"$f":"IF(I322<>\"\", IF(INDEX('Full set Core Client Indicator'!$A$3:$AB$351, MATCH(Selection_Hide2!$A322, 'Full set Core Client Indicator'!$A$3:$A$351, 0), MATCH(Selection_Hide2!J$5, 'Full set Core Client Indicator'!$A$3:$AB$3, 0))=\"\", \"\",  INDEX('Full set Core Client Indicator'!$A$3:$AB$351, MATCH(Selection_Hide2!$A322, 'Full set Core Client Indicator'!$A$3:$A$351, 0), MATCH(Selection_Hide2!J$5, 'Full set Core Client Indicator'!$A$3:$AB$3, 0))), \"\")","v":""},{"$f":"IF(J322<>\"\", IF(INDEX('Full set Core Client Indicator'!$A$3:$AB$351, MATCH(Selection_Hide2!$A322, 'Full set Core Client Indicator'!$A$3:$A$351, 0), MATCH(Selection_Hide2!K$5, 'Full set Core Client Indicator'!$A$3:$AB$3, 0))=\"\", \"\",  INDEX('Full set Core Client Indicator'!$A$3:$AB$351, MATCH(Selection_Hide2!$A322, 'Full set Core Client Indicator'!$A$3:$A$351, 0), MATCH(Selection_Hide2!K$5, 'Full set Core Client Indicator'!$A$3:$AB$3, 0))), \"\")","v":""},{"$f":"IF(K322<>\"\", IF(INDEX('Full set Core Client Indicator'!$A$3:$AB$351, MATCH(Selection_Hide2!$A322, 'Full set Core Client Indicator'!$A$3:$A$351, 0), MATCH(Selection_Hide2!L$5, 'Full set Core Client Indicator'!$A$3:$AB$3, 0))=\"\", \"\",  INDEX('Full set Core Client Indicator'!$A$3:$AB$351, MATCH(Selection_Hide2!$A322, 'Full set Core Client Indicator'!$A$3:$A$351, 0), MATCH(Selection_Hide2!L$5, 'Full set Core Client Indicator'!$A$3:$AB$3, 0))), \"\")","v":""},{"$f":"IF(L322<>\"\", IF(INDEX('Full set Core Client Indicator'!$A$3:$AB$351, MATCH(Selection_Hide2!$A322, 'Full set Core Client Indicator'!$A$3:$A$351, 0), MATCH(Selection_Hide2!M$5, 'Full set Core Client Indicator'!$A$3:$AB$3, 0))=\"\", \"\",  INDEX('Full set Core Client Indicator'!$A$3:$AB$351, MATCH(Selection_Hide2!$A322, 'Full set Core Client Indicator'!$A$3:$A$351, 0), MATCH(Selection_Hide2!M$5, 'Full set Core Client Indicator'!$A$3:$AB$3, 0))), \"\")","v":""},{"$f":"IF(M322<>\"\", IF(INDEX('Full set Core Client Indicator'!$A$3:$AB$351, MATCH(Selection_Hide2!$A322, 'Full set Core Client Indicator'!$A$3:$A$351, 0), MATCH(Selection_Hide2!N$5, 'Full set Core Client Indicator'!$A$3:$AB$3, 0))=\"\", \"\",  INDEX('Full set Core Client Indicator'!$A$3:$AB$351, MATCH(Selection_Hide2!$A322, 'Full set Core Client Indicator'!$A$3:$A$351, 0), MATCH(Selection_Hide2!N$5, 'Full set Core Client Indicator'!$A$3:$AB$3, 0))), \"\")","v":""},{"$f":"IF(N322<>\"\", IF(INDEX('Full set Core Client Indicator'!$A$3:$AB$351, MATCH(Selection_Hide2!$A322, 'Full set Core Client Indicator'!$A$3:$A$351, 0), MATCH(Selection_Hide2!O$5, 'Full set Core Client Indicator'!$A$3:$AB$3, 0))=\"\", \"\",  INDEX('Full set Core Client Indicator'!$A$3:$AB$351, MATCH(Selection_Hide2!$A322, 'Full set Core Client Indicator'!$A$3:$A$351, 0), MATCH(Selection_Hide2!O$5, 'Full set Core Client Indicator'!$A$3:$AB$3, 0))), \"\")","v":""},{"$f":"IF(O322<>\"\", IF(INDEX('Full set Core Client Indicator'!$A$3:$AB$351, MATCH(Selection_Hide2!$A322, 'Full set Core Client Indicator'!$A$3:$A$351, 0), MATCH(Selection_Hide2!P$5, 'Full set Core Client Indicator'!$A$3:$AB$3, 0))=\"\", \"\",  INDEX('Full set Core Client Indicator'!$A$3:$AB$351, MATCH(Selection_Hide2!$A322, 'Full set Core Client Indicator'!$A$3:$A$351, 0), MATCH(Selection_Hide2!P$5, 'Full set Core Client Indicator'!$A$3:$AB$3, 0))), \"\")","v":""},{"$f":"IF(P322<>\"\", IF(INDEX('Full set Core Client Indicator'!$A$3:$AB$351, MATCH(Selection_Hide2!$A322, 'Full set Core Client Indicator'!$A$3:$A$351, 0), MATCH(Selection_Hide2!Q$5, 'Full set Core Client Indicator'!$A$3:$AB$3, 0))=\"\", \"\",  INDEX('Full set Core Client Indicator'!$A$3:$AB$351, MATCH(Selection_Hide2!$A322, 'Full set Core Client Indicator'!$A$3:$A$351, 0), MATCH(Selection_Hide2!Q$5, 'Full set Core Client Indicator'!$A$3:$AB$3, 0))), \"\")","v":""},{"$f":"IF(Q322<>\"\", IF(INDEX('Full set Core Client Indicator'!$A$3:$AB$351, MATCH(Selection_Hide2!$A322, 'Full set Core Client Indicator'!$A$3:$A$351, 0), MATCH(Selection_Hide2!R$5, 'Full set Core Client Indicator'!$A$3:$AB$3, 0))=\"\", \"\",  INDEX('Full set Core Client Indicator'!$A$3:$AB$351, MATCH(Selection_Hide2!$A322, 'Full set Core Client Indicator'!$A$3:$A$351, 0), MATCH(Selection_Hide2!R$5, 'Full set Core Client Indicator'!$A$3:$AB$3, 0))), \"\")","v":""},{"$f":"IF(R322<>\"\", IF(INDEX('Full set Core Client Indicator'!$A$3:$AB$351, MATCH(Selection_Hide2!$A322, 'Full set Core Client Indicator'!$A$3:$A$351, 0), MATCH(Selection_Hide2!S$5, 'Full set Core Client Indicator'!$A$3:$AB$3, 0))=\"\", \"\",  INDEX('Full set Core Client Indicator'!$A$3:$AB$351, MATCH(Selection_Hide2!$A322, 'Full set Core Client Indicator'!$A$3:$A$351, 0), MATCH(Selection_Hide2!S$5, 'Full set Core Client Indicator'!$A$3:$AB$3, 0))), \"\")","v":""},{"$f":"IF(S322<>\"\", IF(INDEX('Full set Core Client Indicator'!$A$3:$AB$351, MATCH(Selection_Hide2!$A322, 'Full set Core Client Indicator'!$A$3:$A$351, 0), MATCH(Selection_Hide2!T$5, 'Full set Core Client Indicator'!$A$3:$AB$3, 0))=\"\", \"\",  INDEX('Full set Core Client Indicator'!$A$3:$AB$351, MATCH(Selection_Hide2!$A322, 'Full set Core Client Indicator'!$A$3:$A$351, 0), MATCH(Selection_Hide2!T$5, 'Full set Core Client Indicator'!$A$3:$AB$3, 0))), \"\")","v":""},{"$f":"IF(T322<>\"\", IF(INDEX('Full set Core Client Indicator'!$A$3:$AB$351, MATCH(Selection_Hide2!$A322, 'Full set Core Client Indicator'!$A$3:$A$351, 0), MATCH(Selection_Hide2!U$5, 'Full set Core Client Indicator'!$A$3:$AB$3, 0))=\"\", \"\",  INDEX('Full set Core Client Indicator'!$A$3:$AB$351, MATCH(Selection_Hide2!$A322, 'Full set Core Client Indicator'!$A$3:$A$351, 0), MATCH(Selection_Hide2!U$5, 'Full set Core Client Indicator'!$A$3:$AB$3, 0))), \"\")","v":""},{"$f":"IF(U322<>\"\", IF(INDEX('Full set Core Client Indicator'!$A$3:$AB$351, MATCH(Selection_Hide2!$A322, 'Full set Core Client Indicator'!$A$3:$A$351, 0), MATCH(Selection_Hide2!V$5, 'Full set Core Client Indicator'!$A$3:$AB$3, 0))=\"\", \"\",  INDEX('Full set Core Client Indicator'!$A$3:$AB$351, MATCH(Selection_Hide2!$A322, 'Full set Core Client Indicator'!$A$3:$A$351, 0), MATCH(Selection_Hide2!V$5, 'Full set Core Client Indicator'!$A$3:$AB$3, 0))), \"\")","v":""},{"$f":"IF(V322<>\"\", IF(INDEX('Full set Core Client Indicator'!$A$3:$AB$351, MATCH(Selection_Hide2!$A322, 'Full set Core Client Indicator'!$A$3:$A$351, 0), MATCH(Selection_Hide2!W$5, 'Full set Core Client Indicator'!$A$3:$AB$3, 0))=\"\", \"\",  INDEX('Full set Core Client Indicator'!$A$3:$AB$351, MATCH(Selection_Hide2!$A322, 'Full set Core Client Indicator'!$A$3:$A$351, 0), MATCH(Selection_Hide2!W$5, 'Full set Core Client Indicator'!$A$3:$AB$3, 0))), \"\")","v":""},{"$f":"IF(W322<>\"\", IF(INDEX('Full set Core Client Indicator'!$A$3:$AB$351, MATCH(Selection_Hide2!$A322, 'Full set Core Client Indicator'!$A$3:$A$351, 0), MATCH(Selection_Hide2!X$5, 'Full set Core Client Indicator'!$A$3:$AB$3, 0))=\"\", \"\",  INDEX('Full set Core Client Indicator'!$A$3:$AB$351, MATCH(Selection_Hide2!$A322, 'Full set Core Client Indicator'!$A$3:$A$351, 0), MATCH(Selection_Hide2!X$5, 'Full set Core Client Indicator'!$A$3:$AB$3, 0))), \"\")","v":""},{"$f":"IF(X322<>\"\", IF(INDEX('Full set Core Client Indicator'!$A$3:$AB$351, MATCH(Selection_Hide2!$A322, 'Full set Core Client Indicator'!$A$3:$A$351, 0), MATCH(Selection_Hide2!Y$5, 'Full set Core Client Indicator'!$A$3:$AB$3, 0))=\"\", \"\",  INDEX('Full set Core Client Indicator'!$A$3:$AB$351, MATCH(Selection_Hide2!$A322, 'Full set Core Client Indicator'!$A$3:$A$351, 0), MATCH(Selection_Hide2!Y$5, 'Full set Core Client Indicator'!$A$3:$AB$3, 0))), \"\")","v":""},{"$f":"IF(Y322<>\"\", IF(INDEX('Full set Core Client Indicator'!$A$3:$AB$351, MATCH(Selection_Hide2!$A322, 'Full set Core Client Indicator'!$A$3:$A$351, 0), MATCH(Selection_Hide2!Z$5, 'Full set Core Client Indicator'!$A$3:$AB$3, 0))=\"\", \"\",  INDEX('Full set Core Client Indicator'!$A$3:$AB$351, MATCH(Selection_Hide2!$A322, 'Full set Core Client Indicator'!$A$3:$A$351, 0), MATCH(Selection_Hide2!Z$5, 'Full set Core Client Indicator'!$A$3:$AB$3, 0))), \"\")","v":""},{"$f":"IF(Z322<>\"\", IF(INDEX('Full set Core Client Indicator'!$A$3:$AB$351, MATCH(Selection_Hide2!$A322, 'Full set Core Client Indicator'!$A$3:$A$351, 0), MATCH(Selection_Hide2!AA$5, 'Full set Core Client Indicator'!$A$3:$AB$3, 0))=\"\", \"\",  INDEX('Full set Core Client Indicator'!$A$3:$AB$351, MATCH(Selection_Hide2!$A322, 'Full set Core Client Indicator'!$A$3:$A$351, 0), MATCH(Selection_Hide2!AA$5, 'Full set Core Client Indicator'!$A$3:$AB$3, 0))), \"\")","v":""},{"$f":"IF(AA322<>\"\", IF(INDEX('Full set Core Client Indicator'!$A$3:$AB$351, MATCH(Selection_Hide2!$A322, 'Full set Core Client Indicator'!$A$3:$A$351, 0), MATCH(Selection_Hide2!AB$5, 'Full set Core Client Indicator'!$A$3:$AB$3, 0))=\"\", \"\",  INDEX('Full set Core Client Indicator'!$A$3:$AB$351, MATCH(Selection_Hide2!$A322, 'Full set Core Client Indicator'!$A$3:$A$351, 0), MATCH(Selection_Hide2!AB$5, 'Full set Core Client Indicator'!$A$3:$AB$3, 0))), \"\")","v":""}]
[{"$f":"IF(AND(Selection_Hide1!C321<>0, Selection_Hide1!C321<>\"Grand Total\"), Selection_Hide1!C321, \"\")","v":""},{"$f":"IF(A323<>\"\", IF(INDEX('Full set Core Client Indicator'!$A$3:$AB$351, MATCH(Selection_Hide2!$A323, 'Full set Core Client Indicator'!$A$3:$A$351, 0), MATCH(Selection_Hide2!B$5, 'Full set Core Client Indicator'!$A$3:$AB$3, 0))=\"\", \"\",  INDEX('Full set Core Client Indicator'!$A$3:$AB$351, MATCH(Selection_Hide2!$A323, 'Full set Core Client Indicator'!$A$3:$A$351, 0), MATCH(Selection_Hide2!B$5, 'Full set Core Client Indicator'!$A$3:$AB$3, 0))), \"\")","v":""},{"$f":"IF(B323<>\"\", IF(INDEX('Full set Core Client Indicator'!$A$3:$AB$351, MATCH(Selection_Hide2!$A323, 'Full set Core Client Indicator'!$A$3:$A$351, 0), MATCH(Selection_Hide2!C$5, 'Full set Core Client Indicator'!$A$3:$AB$3, 0))=\"\", \"\",  INDEX('Full set Core Client Indicator'!$A$3:$AB$351, MATCH(Selection_Hide2!$A323, 'Full set Core Client Indicator'!$A$3:$A$351, 0), MATCH(Selection_Hide2!C$5, 'Full set Core Client Indicator'!$A$3:$AB$3, 0))), \"\")","v":""},{"$f":"IF(C323<>\"\", IF(INDEX('Full set Core Client Indicator'!$A$3:$AB$351, MATCH(Selection_Hide2!$A323, 'Full set Core Client Indicator'!$A$3:$A$351, 0), MATCH(Selection_Hide2!D$5, 'Full set Core Client Indicator'!$A$3:$AB$3, 0))=\"\", \"\",  INDEX('Full set Core Client Indicator'!$A$3:$AB$351, MATCH(Selection_Hide2!$A323, 'Full set Core Client Indicator'!$A$3:$A$351, 0), MATCH(Selection_Hide2!D$5, 'Full set Core Client Indicator'!$A$3:$AB$3, 0))), \"\")","v":""},{"$f":"IF(D323<>\"\", IF(INDEX('Full set Core Client Indicator'!$A$3:$AB$351, MATCH(Selection_Hide2!$A323, 'Full set Core Client Indicator'!$A$3:$A$351, 0), MATCH(Selection_Hide2!E$5, 'Full set Core Client Indicator'!$A$3:$AB$3, 0))=\"\", \"\",  INDEX('Full set Core Client Indicator'!$A$3:$AB$351, MATCH(Selection_Hide2!$A323, 'Full set Core Client Indicator'!$A$3:$A$351, 0), MATCH(Selection_Hide2!E$5, 'Full set Core Client Indicator'!$A$3:$AB$3, 0))), \"\")","v":""},{"$f":"IF(E323<>\"\", IF(INDEX('Full set Core Client Indicator'!$A$3:$AB$351, MATCH(Selection_Hide2!$A323, 'Full set Core Client Indicator'!$A$3:$A$351, 0), MATCH(Selection_Hide2!F$5, 'Full set Core Client Indicator'!$A$3:$AB$3, 0))=\"\", \"\",  INDEX('Full set Core Client Indicator'!$A$3:$AB$351, MATCH(Selection_Hide2!$A323, 'Full set Core Client Indicator'!$A$3:$A$351, 0), MATCH(Selection_Hide2!F$5, 'Full set Core Client Indicator'!$A$3:$AB$3, 0))), \"\")","v":""},{"$f":"IF(F323<>\"\", IF(INDEX('Full set Core Client Indicator'!$A$3:$AB$351, MATCH(Selection_Hide2!$A323, 'Full set Core Client Indicator'!$A$3:$A$351, 0), MATCH(Selection_Hide2!G$5, 'Full set Core Client Indicator'!$A$3:$AB$3, 0))=\"\", \"\",  INDEX('Full set Core Client Indicator'!$A$3:$AB$351, MATCH(Selection_Hide2!$A323, 'Full set Core Client Indicator'!$A$3:$A$351, 0), MATCH(Selection_Hide2!G$5, 'Full set Core Client Indicator'!$A$3:$AB$3, 0))), \"\")","v":""},{"$f":"IF(G323<>\"\", IF(INDEX('Full set Core Client Indicator'!$A$3:$AB$351, MATCH(Selection_Hide2!$A323, 'Full set Core Client Indicator'!$A$3:$A$351, 0), MATCH(Selection_Hide2!H$5, 'Full set Core Client Indicator'!$A$3:$AB$3, 0))=\"\", \"\",  INDEX('Full set Core Client Indicator'!$A$3:$AB$351, MATCH(Selection_Hide2!$A323, 'Full set Core Client Indicator'!$A$3:$A$351, 0), MATCH(Selection_Hide2!H$5, 'Full set Core Client Indicator'!$A$3:$AB$3, 0))), \"\")","v":""},{"$f":"IF(H323<>\"\", IF(INDEX('Full set Core Client Indicator'!$A$3:$AB$351, MATCH(Selection_Hide2!$A323, 'Full set Core Client Indicator'!$A$3:$A$351, 0), MATCH(Selection_Hide2!I$5, 'Full set Core Client Indicator'!$A$3:$AB$3, 0))=\"\", \"\",  INDEX('Full set Core Client Indicator'!$A$3:$AB$351, MATCH(Selection_Hide2!$A323, 'Full set Core Client Indicator'!$A$3:$A$351, 0), MATCH(Selection_Hide2!I$5, 'Full set Core Client Indicator'!$A$3:$AB$3, 0))), \"\")","v":""},{"$f":"IF(I323<>\"\", IF(INDEX('Full set Core Client Indicator'!$A$3:$AB$351, MATCH(Selection_Hide2!$A323, 'Full set Core Client Indicator'!$A$3:$A$351, 0), MATCH(Selection_Hide2!J$5, 'Full set Core Client Indicator'!$A$3:$AB$3, 0))=\"\", \"\",  INDEX('Full set Core Client Indicator'!$A$3:$AB$351, MATCH(Selection_Hide2!$A323, 'Full set Core Client Indicator'!$A$3:$A$351, 0), MATCH(Selection_Hide2!J$5, 'Full set Core Client Indicator'!$A$3:$AB$3, 0))), \"\")","v":""},{"$f":"IF(J323<>\"\", IF(INDEX('Full set Core Client Indicator'!$A$3:$AB$351, MATCH(Selection_Hide2!$A323, 'Full set Core Client Indicator'!$A$3:$A$351, 0), MATCH(Selection_Hide2!K$5, 'Full set Core Client Indicator'!$A$3:$AB$3, 0))=\"\", \"\",  INDEX('Full set Core Client Indicator'!$A$3:$AB$351, MATCH(Selection_Hide2!$A323, 'Full set Core Client Indicator'!$A$3:$A$351, 0), MATCH(Selection_Hide2!K$5, 'Full set Core Client Indicator'!$A$3:$AB$3, 0))), \"\")","v":""},{"$f":"IF(K323<>\"\", IF(INDEX('Full set Core Client Indicator'!$A$3:$AB$351, MATCH(Selection_Hide2!$A323, 'Full set Core Client Indicator'!$A$3:$A$351, 0), MATCH(Selection_Hide2!L$5, 'Full set Core Client Indicator'!$A$3:$AB$3, 0))=\"\", \"\",  INDEX('Full set Core Client Indicator'!$A$3:$AB$351, MATCH(Selection_Hide2!$A323, 'Full set Core Client Indicator'!$A$3:$A$351, 0), MATCH(Selection_Hide2!L$5, 'Full set Core Client Indicator'!$A$3:$AB$3, 0))), \"\")","v":""},{"$f":"IF(L323<>\"\", IF(INDEX('Full set Core Client Indicator'!$A$3:$AB$351, MATCH(Selection_Hide2!$A323, 'Full set Core Client Indicator'!$A$3:$A$351, 0), MATCH(Selection_Hide2!M$5, 'Full set Core Client Indicator'!$A$3:$AB$3, 0))=\"\", \"\",  INDEX('Full set Core Client Indicator'!$A$3:$AB$351, MATCH(Selection_Hide2!$A323, 'Full set Core Client Indicator'!$A$3:$A$351, 0), MATCH(Selection_Hide2!M$5, 'Full set Core Client Indicator'!$A$3:$AB$3, 0))), \"\")","v":""},{"$f":"IF(M323<>\"\", IF(INDEX('Full set Core Client Indicator'!$A$3:$AB$351, MATCH(Selection_Hide2!$A323, 'Full set Core Client Indicator'!$A$3:$A$351, 0), MATCH(Selection_Hide2!N$5, 'Full set Core Client Indicator'!$A$3:$AB$3, 0))=\"\", \"\",  INDEX('Full set Core Client Indicator'!$A$3:$AB$351, MATCH(Selection_Hide2!$A323, 'Full set Core Client Indicator'!$A$3:$A$351, 0), MATCH(Selection_Hide2!N$5, 'Full set Core Client Indicator'!$A$3:$AB$3, 0))), \"\")","v":""},{"$f":"IF(N323<>\"\", IF(INDEX('Full set Core Client Indicator'!$A$3:$AB$351, MATCH(Selection_Hide2!$A323, 'Full set Core Client Indicator'!$A$3:$A$351, 0), MATCH(Selection_Hide2!O$5, 'Full set Core Client Indicator'!$A$3:$AB$3, 0))=\"\", \"\",  INDEX('Full set Core Client Indicator'!$A$3:$AB$351, MATCH(Selection_Hide2!$A323, 'Full set Core Client Indicator'!$A$3:$A$351, 0), MATCH(Selection_Hide2!O$5, 'Full set Core Client Indicator'!$A$3:$AB$3, 0))), \"\")","v":""},{"$f":"IF(O323<>\"\", IF(INDEX('Full set Core Client Indicator'!$A$3:$AB$351, MATCH(Selection_Hide2!$A323, 'Full set Core Client Indicator'!$A$3:$A$351, 0), MATCH(Selection_Hide2!P$5, 'Full set Core Client Indicator'!$A$3:$AB$3, 0))=\"\", \"\",  INDEX('Full set Core Client Indicator'!$A$3:$AB$351, MATCH(Selection_Hide2!$A323, 'Full set Core Client Indicator'!$A$3:$A$351, 0), MATCH(Selection_Hide2!P$5, 'Full set Core Client Indicator'!$A$3:$AB$3, 0))), \"\")","v":""},{"$f":"IF(P323<>\"\", IF(INDEX('Full set Core Client Indicator'!$A$3:$AB$351, MATCH(Selection_Hide2!$A323, 'Full set Core Client Indicator'!$A$3:$A$351, 0), MATCH(Selection_Hide2!Q$5, 'Full set Core Client Indicator'!$A$3:$AB$3, 0))=\"\", \"\",  INDEX('Full set Core Client Indicator'!$A$3:$AB$351, MATCH(Selection_Hide2!$A323, 'Full set Core Client Indicator'!$A$3:$A$351, 0), MATCH(Selection_Hide2!Q$5, 'Full set Core Client Indicator'!$A$3:$AB$3, 0))), \"\")","v":""},{"$f":"IF(Q323<>\"\", IF(INDEX('Full set Core Client Indicator'!$A$3:$AB$351, MATCH(Selection_Hide2!$A323, 'Full set Core Client Indicator'!$A$3:$A$351, 0), MATCH(Selection_Hide2!R$5, 'Full set Core Client Indicator'!$A$3:$AB$3, 0))=\"\", \"\",  INDEX('Full set Core Client Indicator'!$A$3:$AB$351, MATCH(Selection_Hide2!$A323, 'Full set Core Client Indicator'!$A$3:$A$351, 0), MATCH(Selection_Hide2!R$5, 'Full set Core Client Indicator'!$A$3:$AB$3, 0))), \"\")","v":""},{"$f":"IF(R323<>\"\", IF(INDEX('Full set Core Client Indicator'!$A$3:$AB$351, MATCH(Selection_Hide2!$A323, 'Full set Core Client Indicator'!$A$3:$A$351, 0), MATCH(Selection_Hide2!S$5, 'Full set Core Client Indicator'!$A$3:$AB$3, 0))=\"\", \"\",  INDEX('Full set Core Client Indicator'!$A$3:$AB$351, MATCH(Selection_Hide2!$A323, 'Full set Core Client Indicator'!$A$3:$A$351, 0), MATCH(Selection_Hide2!S$5, 'Full set Core Client Indicator'!$A$3:$AB$3, 0))), \"\")","v":""},{"$f":"IF(S323<>\"\", IF(INDEX('Full set Core Client Indicator'!$A$3:$AB$351, MATCH(Selection_Hide2!$A323, 'Full set Core Client Indicator'!$A$3:$A$351, 0), MATCH(Selection_Hide2!T$5, 'Full set Core Client Indicator'!$A$3:$AB$3, 0))=\"\", \"\",  INDEX('Full set Core Client Indicator'!$A$3:$AB$351, MATCH(Selection_Hide2!$A323, 'Full set Core Client Indicator'!$A$3:$A$351, 0), MATCH(Selection_Hide2!T$5, 'Full set Core Client Indicator'!$A$3:$AB$3, 0))), \"\")","v":""},{"$f":"IF(T323<>\"\", IF(INDEX('Full set Core Client Indicator'!$A$3:$AB$351, MATCH(Selection_Hide2!$A323, 'Full set Core Client Indicator'!$A$3:$A$351, 0), MATCH(Selection_Hide2!U$5, 'Full set Core Client Indicator'!$A$3:$AB$3, 0))=\"\", \"\",  INDEX('Full set Core Client Indicator'!$A$3:$AB$351, MATCH(Selection_Hide2!$A323, 'Full set Core Client Indicator'!$A$3:$A$351, 0), MATCH(Selection_Hide2!U$5, 'Full set Core Client Indicator'!$A$3:$AB$3, 0))), \"\")","v":""},{"$f":"IF(U323<>\"\", IF(INDEX('Full set Core Client Indicator'!$A$3:$AB$351, MATCH(Selection_Hide2!$A323, 'Full set Core Client Indicator'!$A$3:$A$351, 0), MATCH(Selection_Hide2!V$5, 'Full set Core Client Indicator'!$A$3:$AB$3, 0))=\"\", \"\",  INDEX('Full set Core Client Indicator'!$A$3:$AB$351, MATCH(Selection_Hide2!$A323, 'Full set Core Client Indicator'!$A$3:$A$351, 0), MATCH(Selection_Hide2!V$5, 'Full set Core Client Indicator'!$A$3:$AB$3, 0))), \"\")","v":""},{"$f":"IF(V323<>\"\", IF(INDEX('Full set Core Client Indicator'!$A$3:$AB$351, MATCH(Selection_Hide2!$A323, 'Full set Core Client Indicator'!$A$3:$A$351, 0), MATCH(Selection_Hide2!W$5, 'Full set Core Client Indicator'!$A$3:$AB$3, 0))=\"\", \"\",  INDEX('Full set Core Client Indicator'!$A$3:$AB$351, MATCH(Selection_Hide2!$A323, 'Full set Core Client Indicator'!$A$3:$A$351, 0), MATCH(Selection_Hide2!W$5, 'Full set Core Client Indicator'!$A$3:$AB$3, 0))), \"\")","v":""},{"$f":"IF(W323<>\"\", IF(INDEX('Full set Core Client Indicator'!$A$3:$AB$351, MATCH(Selection_Hide2!$A323, 'Full set Core Client Indicator'!$A$3:$A$351, 0), MATCH(Selection_Hide2!X$5, 'Full set Core Client Indicator'!$A$3:$AB$3, 0))=\"\", \"\",  INDEX('Full set Core Client Indicator'!$A$3:$AB$351, MATCH(Selection_Hide2!$A323, 'Full set Core Client Indicator'!$A$3:$A$351, 0), MATCH(Selection_Hide2!X$5, 'Full set Core Client Indicator'!$A$3:$AB$3, 0))), \"\")","v":""},{"$f":"IF(X323<>\"\", IF(INDEX('Full set Core Client Indicator'!$A$3:$AB$351, MATCH(Selection_Hide2!$A323, 'Full set Core Client Indicator'!$A$3:$A$351, 0), MATCH(Selection_Hide2!Y$5, 'Full set Core Client Indicator'!$A$3:$AB$3, 0))=\"\", \"\",  INDEX('Full set Core Client Indicator'!$A$3:$AB$351, MATCH(Selection_Hide2!$A323, 'Full set Core Client Indicator'!$A$3:$A$351, 0), MATCH(Selection_Hide2!Y$5, 'Full set Core Client Indicator'!$A$3:$AB$3, 0))), \"\")","v":""},{"$f":"IF(Y323<>\"\", IF(INDEX('Full set Core Client Indicator'!$A$3:$AB$351, MATCH(Selection_Hide2!$A323, 'Full set Core Client Indicator'!$A$3:$A$351, 0), MATCH(Selection_Hide2!Z$5, 'Full set Core Client Indicator'!$A$3:$AB$3, 0))=\"\", \"\",  INDEX('Full set Core Client Indicator'!$A$3:$AB$351, MATCH(Selection_Hide2!$A323, 'Full set Core Client Indicator'!$A$3:$A$351, 0), MATCH(Selection_Hide2!Z$5, 'Full set Core Client Indicator'!$A$3:$AB$3, 0))), \"\")","v":""},{"$f":"IF(Z323<>\"\", IF(INDEX('Full set Core Client Indicator'!$A$3:$AB$351, MATCH(Selection_Hide2!$A323, 'Full set Core Client Indicator'!$A$3:$A$351, 0), MATCH(Selection_Hide2!AA$5, 'Full set Core Client Indicator'!$A$3:$AB$3, 0))=\"\", \"\",  INDEX('Full set Core Client Indicator'!$A$3:$AB$351, MATCH(Selection_Hide2!$A323, 'Full set Core Client Indicator'!$A$3:$A$351, 0), MATCH(Selection_Hide2!AA$5, 'Full set Core Client Indicator'!$A$3:$AB$3, 0))), \"\")","v":""},{"$f":"IF(AA323<>\"\", IF(INDEX('Full set Core Client Indicator'!$A$3:$AB$351, MATCH(Selection_Hide2!$A323, 'Full set Core Client Indicator'!$A$3:$A$351, 0), MATCH(Selection_Hide2!AB$5, 'Full set Core Client Indicator'!$A$3:$AB$3, 0))=\"\", \"\",  INDEX('Full set Core Client Indicator'!$A$3:$AB$351, MATCH(Selection_Hide2!$A323, 'Full set Core Client Indicator'!$A$3:$A$351, 0), MATCH(Selection_Hide2!AB$5, 'Full set Core Client Indicator'!$A$3:$AB$3, 0))), \"\")","v":""}]
[{"$f":"IF(AND(Selection_Hide1!C322<>0, Selection_Hide1!C322<>\"Grand Total\"), Selection_Hide1!C322, \"\")","v":""},{"$f":"IF(A324<>\"\", IF(INDEX('Full set Core Client Indicator'!$A$3:$AB$351, MATCH(Selection_Hide2!$A324, 'Full set Core Client Indicator'!$A$3:$A$351, 0), MATCH(Selection_Hide2!B$5, 'Full set Core Client Indicator'!$A$3:$AB$3, 0))=\"\", \"\",  INDEX('Full set Core Client Indicator'!$A$3:$AB$351, MATCH(Selection_Hide2!$A324, 'Full set Core Client Indicator'!$A$3:$A$351, 0), MATCH(Selection_Hide2!B$5, 'Full set Core Client Indicator'!$A$3:$AB$3, 0))), \"\")","v":""},{"$f":"IF(B324<>\"\", IF(INDEX('Full set Core Client Indicator'!$A$3:$AB$351, MATCH(Selection_Hide2!$A324, 'Full set Core Client Indicator'!$A$3:$A$351, 0), MATCH(Selection_Hide2!C$5, 'Full set Core Client Indicator'!$A$3:$AB$3, 0))=\"\", \"\",  INDEX('Full set Core Client Indicator'!$A$3:$AB$351, MATCH(Selection_Hide2!$A324, 'Full set Core Client Indicator'!$A$3:$A$351, 0), MATCH(Selection_Hide2!C$5, 'Full set Core Client Indicator'!$A$3:$AB$3, 0))), \"\")","v":""},{"$f":"IF(C324<>\"\", IF(INDEX('Full set Core Client Indicator'!$A$3:$AB$351, MATCH(Selection_Hide2!$A324, 'Full set Core Client Indicator'!$A$3:$A$351, 0), MATCH(Selection_Hide2!D$5, 'Full set Core Client Indicator'!$A$3:$AB$3, 0))=\"\", \"\",  INDEX('Full set Core Client Indicator'!$A$3:$AB$351, MATCH(Selection_Hide2!$A324, 'Full set Core Client Indicator'!$A$3:$A$351, 0), MATCH(Selection_Hide2!D$5, 'Full set Core Client Indicator'!$A$3:$AB$3, 0))), \"\")","v":""},{"$f":"IF(D324<>\"\", IF(INDEX('Full set Core Client Indicator'!$A$3:$AB$351, MATCH(Selection_Hide2!$A324, 'Full set Core Client Indicator'!$A$3:$A$351, 0), MATCH(Selection_Hide2!E$5, 'Full set Core Client Indicator'!$A$3:$AB$3, 0))=\"\", \"\",  INDEX('Full set Core Client Indicator'!$A$3:$AB$351, MATCH(Selection_Hide2!$A324, 'Full set Core Client Indicator'!$A$3:$A$351, 0), MATCH(Selection_Hide2!E$5, 'Full set Core Client Indicator'!$A$3:$AB$3, 0))), \"\")","v":""},{"$f":"IF(E324<>\"\", IF(INDEX('Full set Core Client Indicator'!$A$3:$AB$351, MATCH(Selection_Hide2!$A324, 'Full set Core Client Indicator'!$A$3:$A$351, 0), MATCH(Selection_Hide2!F$5, 'Full set Core Client Indicator'!$A$3:$AB$3, 0))=\"\", \"\",  INDEX('Full set Core Client Indicator'!$A$3:$AB$351, MATCH(Selection_Hide2!$A324, 'Full set Core Client Indicator'!$A$3:$A$351, 0), MATCH(Selection_Hide2!F$5, 'Full set Core Client Indicator'!$A$3:$AB$3, 0))), \"\")","v":""},{"$f":"IF(F324<>\"\", IF(INDEX('Full set Core Client Indicator'!$A$3:$AB$351, MATCH(Selection_Hide2!$A324, 'Full set Core Client Indicator'!$A$3:$A$351, 0), MATCH(Selection_Hide2!G$5, 'Full set Core Client Indicator'!$A$3:$AB$3, 0))=\"\", \"\",  INDEX('Full set Core Client Indicator'!$A$3:$AB$351, MATCH(Selection_Hide2!$A324, 'Full set Core Client Indicator'!$A$3:$A$351, 0), MATCH(Selection_Hide2!G$5, 'Full set Core Client Indicator'!$A$3:$AB$3, 0))), \"\")","v":""},{"$f":"IF(G324<>\"\", IF(INDEX('Full set Core Client Indicator'!$A$3:$AB$351, MATCH(Selection_Hide2!$A324, 'Full set Core Client Indicator'!$A$3:$A$351, 0), MATCH(Selection_Hide2!H$5, 'Full set Core Client Indicator'!$A$3:$AB$3, 0))=\"\", \"\",  INDEX('Full set Core Client Indicator'!$A$3:$AB$351, MATCH(Selection_Hide2!$A324, 'Full set Core Client Indicator'!$A$3:$A$351, 0), MATCH(Selection_Hide2!H$5, 'Full set Core Client Indicator'!$A$3:$AB$3, 0))), \"\")","v":""},{"$f":"IF(H324<>\"\", IF(INDEX('Full set Core Client Indicator'!$A$3:$AB$351, MATCH(Selection_Hide2!$A324, 'Full set Core Client Indicator'!$A$3:$A$351, 0), MATCH(Selection_Hide2!I$5, 'Full set Core Client Indicator'!$A$3:$AB$3, 0))=\"\", \"\",  INDEX('Full set Core Client Indicator'!$A$3:$AB$351, MATCH(Selection_Hide2!$A324, 'Full set Core Client Indicator'!$A$3:$A$351, 0), MATCH(Selection_Hide2!I$5, 'Full set Core Client Indicator'!$A$3:$AB$3, 0))), \"\")","v":""},{"$f":"IF(I324<>\"\", IF(INDEX('Full set Core Client Indicator'!$A$3:$AB$351, MATCH(Selection_Hide2!$A324, 'Full set Core Client Indicator'!$A$3:$A$351, 0), MATCH(Selection_Hide2!J$5, 'Full set Core Client Indicator'!$A$3:$AB$3, 0))=\"\", \"\",  INDEX('Full set Core Client Indicator'!$A$3:$AB$351, MATCH(Selection_Hide2!$A324, 'Full set Core Client Indicator'!$A$3:$A$351, 0), MATCH(Selection_Hide2!J$5, 'Full set Core Client Indicator'!$A$3:$AB$3, 0))), \"\")","v":""},{"$f":"IF(J324<>\"\", IF(INDEX('Full set Core Client Indicator'!$A$3:$AB$351, MATCH(Selection_Hide2!$A324, 'Full set Core Client Indicator'!$A$3:$A$351, 0), MATCH(Selection_Hide2!K$5, 'Full set Core Client Indicator'!$A$3:$AB$3, 0))=\"\", \"\",  INDEX('Full set Core Client Indicator'!$A$3:$AB$351, MATCH(Selection_Hide2!$A324, 'Full set Core Client Indicator'!$A$3:$A$351, 0), MATCH(Selection_Hide2!K$5, 'Full set Core Client Indicator'!$A$3:$AB$3, 0))), \"\")","v":""},{"$f":"IF(K324<>\"\", IF(INDEX('Full set Core Client Indicator'!$A$3:$AB$351, MATCH(Selection_Hide2!$A324, 'Full set Core Client Indicator'!$A$3:$A$351, 0), MATCH(Selection_Hide2!L$5, 'Full set Core Client Indicator'!$A$3:$AB$3, 0))=\"\", \"\",  INDEX('Full set Core Client Indicator'!$A$3:$AB$351, MATCH(Selection_Hide2!$A324, 'Full set Core Client Indicator'!$A$3:$A$351, 0), MATCH(Selection_Hide2!L$5, 'Full set Core Client Indicator'!$A$3:$AB$3, 0))), \"\")","v":""},{"$f":"IF(L324<>\"\", IF(INDEX('Full set Core Client Indicator'!$A$3:$AB$351, MATCH(Selection_Hide2!$A324, 'Full set Core Client Indicator'!$A$3:$A$351, 0), MATCH(Selection_Hide2!M$5, 'Full set Core Client Indicator'!$A$3:$AB$3, 0))=\"\", \"\",  INDEX('Full set Core Client Indicator'!$A$3:$AB$351, MATCH(Selection_Hide2!$A324, 'Full set Core Client Indicator'!$A$3:$A$351, 0), MATCH(Selection_Hide2!M$5, 'Full set Core Client Indicator'!$A$3:$AB$3, 0))), \"\")","v":""},{"$f":"IF(M324<>\"\", IF(INDEX('Full set Core Client Indicator'!$A$3:$AB$351, MATCH(Selection_Hide2!$A324, 'Full set Core Client Indicator'!$A$3:$A$351, 0), MATCH(Selection_Hide2!N$5, 'Full set Core Client Indicator'!$A$3:$AB$3, 0))=\"\", \"\",  INDEX('Full set Core Client Indicator'!$A$3:$AB$351, MATCH(Selection_Hide2!$A324, 'Full set Core Client Indicator'!$A$3:$A$351, 0), MATCH(Selection_Hide2!N$5, 'Full set Core Client Indicator'!$A$3:$AB$3, 0))), \"\")","v":""},{"$f":"IF(N324<>\"\", IF(INDEX('Full set Core Client Indicator'!$A$3:$AB$351, MATCH(Selection_Hide2!$A324, 'Full set Core Client Indicator'!$A$3:$A$351, 0), MATCH(Selection_Hide2!O$5, 'Full set Core Client Indicator'!$A$3:$AB$3, 0))=\"\", \"\",  INDEX('Full set Core Client Indicator'!$A$3:$AB$351, MATCH(Selection_Hide2!$A324, 'Full set Core Client Indicator'!$A$3:$A$351, 0), MATCH(Selection_Hide2!O$5, 'Full set Core Client Indicator'!$A$3:$AB$3, 0))), \"\")","v":""},{"$f":"IF(O324<>\"\", IF(INDEX('Full set Core Client Indicator'!$A$3:$AB$351, MATCH(Selection_Hide2!$A324, 'Full set Core Client Indicator'!$A$3:$A$351, 0), MATCH(Selection_Hide2!P$5, 'Full set Core Client Indicator'!$A$3:$AB$3, 0))=\"\", \"\",  INDEX('Full set Core Client Indicator'!$A$3:$AB$351, MATCH(Selection_Hide2!$A324, 'Full set Core Client Indicator'!$A$3:$A$351, 0), MATCH(Selection_Hide2!P$5, 'Full set Core Client Indicator'!$A$3:$AB$3, 0))), \"\")","v":""},{"$f":"IF(P324<>\"\", IF(INDEX('Full set Core Client Indicator'!$A$3:$AB$351, MATCH(Selection_Hide2!$A324, 'Full set Core Client Indicator'!$A$3:$A$351, 0), MATCH(Selection_Hide2!Q$5, 'Full set Core Client Indicator'!$A$3:$AB$3, 0))=\"\", \"\",  INDEX('Full set Core Client Indicator'!$A$3:$AB$351, MATCH(Selection_Hide2!$A324, 'Full set Core Client Indicator'!$A$3:$A$351, 0), MATCH(Selection_Hide2!Q$5, 'Full set Core Client Indicator'!$A$3:$AB$3, 0))), \"\")","v":""},{"$f":"IF(Q324<>\"\", IF(INDEX('Full set Core Client Indicator'!$A$3:$AB$351, MATCH(Selection_Hide2!$A324, 'Full set Core Client Indicator'!$A$3:$A$351, 0), MATCH(Selection_Hide2!R$5, 'Full set Core Client Indicator'!$A$3:$AB$3, 0))=\"\", \"\",  INDEX('Full set Core Client Indicator'!$A$3:$AB$351, MATCH(Selection_Hide2!$A324, 'Full set Core Client Indicator'!$A$3:$A$351, 0), MATCH(Selection_Hide2!R$5, 'Full set Core Client Indicator'!$A$3:$AB$3, 0))), \"\")","v":""},{"$f":"IF(R324<>\"\", IF(INDEX('Full set Core Client Indicator'!$A$3:$AB$351, MATCH(Selection_Hide2!$A324, 'Full set Core Client Indicator'!$A$3:$A$351, 0), MATCH(Selection_Hide2!S$5, 'Full set Core Client Indicator'!$A$3:$AB$3, 0))=\"\", \"\",  INDEX('Full set Core Client Indicator'!$A$3:$AB$351, MATCH(Selection_Hide2!$A324, 'Full set Core Client Indicator'!$A$3:$A$351, 0), MATCH(Selection_Hide2!S$5, 'Full set Core Client Indicator'!$A$3:$AB$3, 0))), \"\")","v":""},{"$f":"IF(S324<>\"\", IF(INDEX('Full set Core Client Indicator'!$A$3:$AB$351, MATCH(Selection_Hide2!$A324, 'Full set Core Client Indicator'!$A$3:$A$351, 0), MATCH(Selection_Hide2!T$5, 'Full set Core Client Indicator'!$A$3:$AB$3, 0))=\"\", \"\",  INDEX('Full set Core Client Indicator'!$A$3:$AB$351, MATCH(Selection_Hide2!$A324, 'Full set Core Client Indicator'!$A$3:$A$351, 0), MATCH(Selection_Hide2!T$5, 'Full set Core Client Indicator'!$A$3:$AB$3, 0))), \"\")","v":""},{"$f":"IF(T324<>\"\", IF(INDEX('Full set Core Client Indicator'!$A$3:$AB$351, MATCH(Selection_Hide2!$A324, 'Full set Core Client Indicator'!$A$3:$A$351, 0), MATCH(Selection_Hide2!U$5, 'Full set Core Client Indicator'!$A$3:$AB$3, 0))=\"\", \"\",  INDEX('Full set Core Client Indicator'!$A$3:$AB$351, MATCH(Selection_Hide2!$A324, 'Full set Core Client Indicator'!$A$3:$A$351, 0), MATCH(Selection_Hide2!U$5, 'Full set Core Client Indicator'!$A$3:$AB$3, 0))), \"\")","v":""},{"$f":"IF(U324<>\"\", IF(INDEX('Full set Core Client Indicator'!$A$3:$AB$351, MATCH(Selection_Hide2!$A324, 'Full set Core Client Indicator'!$A$3:$A$351, 0), MATCH(Selection_Hide2!V$5, 'Full set Core Client Indicator'!$A$3:$AB$3, 0))=\"\", \"\",  INDEX('Full set Core Client Indicator'!$A$3:$AB$351, MATCH(Selection_Hide2!$A324, 'Full set Core Client Indicator'!$A$3:$A$351, 0), MATCH(Selection_Hide2!V$5, 'Full set Core Client Indicator'!$A$3:$AB$3, 0))), \"\")","v":""},{"$f":"IF(V324<>\"\", IF(INDEX('Full set Core Client Indicator'!$A$3:$AB$351, MATCH(Selection_Hide2!$A324, 'Full set Core Client Indicator'!$A$3:$A$351, 0), MATCH(Selection_Hide2!W$5, 'Full set Core Client Indicator'!$A$3:$AB$3, 0))=\"\", \"\",  INDEX('Full set Core Client Indicator'!$A$3:$AB$351, MATCH(Selection_Hide2!$A324, 'Full set Core Client Indicator'!$A$3:$A$351, 0), MATCH(Selection_Hide2!W$5, 'Full set Core Client Indicator'!$A$3:$AB$3, 0))), \"\")","v":""},{"$f":"IF(W324<>\"\", IF(INDEX('Full set Core Client Indicator'!$A$3:$AB$351, MATCH(Selection_Hide2!$A324, 'Full set Core Client Indicator'!$A$3:$A$351, 0), MATCH(Selection_Hide2!X$5, 'Full set Core Client Indicator'!$A$3:$AB$3, 0))=\"\", \"\",  INDEX('Full set Core Client Indicator'!$A$3:$AB$351, MATCH(Selection_Hide2!$A324, 'Full set Core Client Indicator'!$A$3:$A$351, 0), MATCH(Selection_Hide2!X$5, 'Full set Core Client Indicator'!$A$3:$AB$3, 0))), \"\")","v":""},{"$f":"IF(X324<>\"\", IF(INDEX('Full set Core Client Indicator'!$A$3:$AB$351, MATCH(Selection_Hide2!$A324, 'Full set Core Client Indicator'!$A$3:$A$351, 0), MATCH(Selection_Hide2!Y$5, 'Full set Core Client Indicator'!$A$3:$AB$3, 0))=\"\", \"\",  INDEX('Full set Core Client Indicator'!$A$3:$AB$351, MATCH(Selection_Hide2!$A324, 'Full set Core Client Indicator'!$A$3:$A$351, 0), MATCH(Selection_Hide2!Y$5, 'Full set Core Client Indicator'!$A$3:$AB$3, 0))), \"\")","v":""},{"$f":"IF(Y324<>\"\", IF(INDEX('Full set Core Client Indicator'!$A$3:$AB$351, MATCH(Selection_Hide2!$A324, 'Full set Core Client Indicator'!$A$3:$A$351, 0), MATCH(Selection_Hide2!Z$5, 'Full set Core Client Indicator'!$A$3:$AB$3, 0))=\"\", \"\",  INDEX('Full set Core Client Indicator'!$A$3:$AB$351, MATCH(Selection_Hide2!$A324, 'Full set Core Client Indicator'!$A$3:$A$351, 0), MATCH(Selection_Hide2!Z$5, 'Full set Core Client Indicator'!$A$3:$AB$3, 0))), \"\")","v":""},{"$f":"IF(Z324<>\"\", IF(INDEX('Full set Core Client Indicator'!$A$3:$AB$351, MATCH(Selection_Hide2!$A324, 'Full set Core Client Indicator'!$A$3:$A$351, 0), MATCH(Selection_Hide2!AA$5, 'Full set Core Client Indicator'!$A$3:$AB$3, 0))=\"\", \"\",  INDEX('Full set Core Client Indicator'!$A$3:$AB$351, MATCH(Selection_Hide2!$A324, 'Full set Core Client Indicator'!$A$3:$A$351, 0), MATCH(Selection_Hide2!AA$5, 'Full set Core Client Indicator'!$A$3:$AB$3, 0))), \"\")","v":""},{"$f":"IF(AA324<>\"\", IF(INDEX('Full set Core Client Indicator'!$A$3:$AB$351, MATCH(Selection_Hide2!$A324, 'Full set Core Client Indicator'!$A$3:$A$351, 0), MATCH(Selection_Hide2!AB$5, 'Full set Core Client Indicator'!$A$3:$AB$3, 0))=\"\", \"\",  INDEX('Full set Core Client Indicator'!$A$3:$AB$351, MATCH(Selection_Hide2!$A324, 'Full set Core Client Indicator'!$A$3:$A$351, 0), MATCH(Selection_Hide2!AB$5, 'Full set Core Client Indicator'!$A$3:$AB$3, 0))), \"\")","v":""}]
[{"$f":"IF(AND(Selection_Hide1!C323<>0, Selection_Hide1!C323<>\"Grand Total\"), Selection_Hide1!C323, \"\")","v":""},{"$f":"IF(A325<>\"\", IF(INDEX('Full set Core Client Indicator'!$A$3:$AB$351, MATCH(Selection_Hide2!$A325, 'Full set Core Client Indicator'!$A$3:$A$351, 0), MATCH(Selection_Hide2!B$5, 'Full set Core Client Indicator'!$A$3:$AB$3, 0))=\"\", \"\",  INDEX('Full set Core Client Indicator'!$A$3:$AB$351, MATCH(Selection_Hide2!$A325, 'Full set Core Client Indicator'!$A$3:$A$351, 0), MATCH(Selection_Hide2!B$5, 'Full set Core Client Indicator'!$A$3:$AB$3, 0))), \"\")","v":""},{"$f":"IF(B325<>\"\", IF(INDEX('Full set Core Client Indicator'!$A$3:$AB$351, MATCH(Selection_Hide2!$A325, 'Full set Core Client Indicator'!$A$3:$A$351, 0), MATCH(Selection_Hide2!C$5, 'Full set Core Client Indicator'!$A$3:$AB$3, 0))=\"\", \"\",  INDEX('Full set Core Client Indicator'!$A$3:$AB$351, MATCH(Selection_Hide2!$A325, 'Full set Core Client Indicator'!$A$3:$A$351, 0), MATCH(Selection_Hide2!C$5, 'Full set Core Client Indicator'!$A$3:$AB$3, 0))), \"\")","v":""},{"$f":"IF(C325<>\"\", IF(INDEX('Full set Core Client Indicator'!$A$3:$AB$351, MATCH(Selection_Hide2!$A325, 'Full set Core Client Indicator'!$A$3:$A$351, 0), MATCH(Selection_Hide2!D$5, 'Full set Core Client Indicator'!$A$3:$AB$3, 0))=\"\", \"\",  INDEX('Full set Core Client Indicator'!$A$3:$AB$351, MATCH(Selection_Hide2!$A325, 'Full set Core Client Indicator'!$A$3:$A$351, 0), MATCH(Selection_Hide2!D$5, 'Full set Core Client Indicator'!$A$3:$AB$3, 0))), \"\")","v":""},{"$f":"IF(D325<>\"\", IF(INDEX('Full set Core Client Indicator'!$A$3:$AB$351, MATCH(Selection_Hide2!$A325, 'Full set Core Client Indicator'!$A$3:$A$351, 0), MATCH(Selection_Hide2!E$5, 'Full set Core Client Indicator'!$A$3:$AB$3, 0))=\"\", \"\",  INDEX('Full set Core Client Indicator'!$A$3:$AB$351, MATCH(Selection_Hide2!$A325, 'Full set Core Client Indicator'!$A$3:$A$351, 0), MATCH(Selection_Hide2!E$5, 'Full set Core Client Indicator'!$A$3:$AB$3, 0))), \"\")","v":""},{"$f":"IF(E325<>\"\", IF(INDEX('Full set Core Client Indicator'!$A$3:$AB$351, MATCH(Selection_Hide2!$A325, 'Full set Core Client Indicator'!$A$3:$A$351, 0), MATCH(Selection_Hide2!F$5, 'Full set Core Client Indicator'!$A$3:$AB$3, 0))=\"\", \"\",  INDEX('Full set Core Client Indicator'!$A$3:$AB$351, MATCH(Selection_Hide2!$A325, 'Full set Core Client Indicator'!$A$3:$A$351, 0), MATCH(Selection_Hide2!F$5, 'Full set Core Client Indicator'!$A$3:$AB$3, 0))), \"\")","v":""},{"$f":"IF(F325<>\"\", IF(INDEX('Full set Core Client Indicator'!$A$3:$AB$351, MATCH(Selection_Hide2!$A325, 'Full set Core Client Indicator'!$A$3:$A$351, 0), MATCH(Selection_Hide2!G$5, 'Full set Core Client Indicator'!$A$3:$AB$3, 0))=\"\", \"\",  INDEX('Full set Core Client Indicator'!$A$3:$AB$351, MATCH(Selection_Hide2!$A325, 'Full set Core Client Indicator'!$A$3:$A$351, 0), MATCH(Selection_Hide2!G$5, 'Full set Core Client Indicator'!$A$3:$AB$3, 0))), \"\")","v":""},{"$f":"IF(G325<>\"\", IF(INDEX('Full set Core Client Indicator'!$A$3:$AB$351, MATCH(Selection_Hide2!$A325, 'Full set Core Client Indicator'!$A$3:$A$351, 0), MATCH(Selection_Hide2!H$5, 'Full set Core Client Indicator'!$A$3:$AB$3, 0))=\"\", \"\",  INDEX('Full set Core Client Indicator'!$A$3:$AB$351, MATCH(Selection_Hide2!$A325, 'Full set Core Client Indicator'!$A$3:$A$351, 0), MATCH(Selection_Hide2!H$5, 'Full set Core Client Indicator'!$A$3:$AB$3, 0))), \"\")","v":""},{"$f":"IF(H325<>\"\", IF(INDEX('Full set Core Client Indicator'!$A$3:$AB$351, MATCH(Selection_Hide2!$A325, 'Full set Core Client Indicator'!$A$3:$A$351, 0), MATCH(Selection_Hide2!I$5, 'Full set Core Client Indicator'!$A$3:$AB$3, 0))=\"\", \"\",  INDEX('Full set Core Client Indicator'!$A$3:$AB$351, MATCH(Selection_Hide2!$A325, 'Full set Core Client Indicator'!$A$3:$A$351, 0), MATCH(Selection_Hide2!I$5, 'Full set Core Client Indicator'!$A$3:$AB$3, 0))), \"\")","v":""},{"$f":"IF(I325<>\"\", IF(INDEX('Full set Core Client Indicator'!$A$3:$AB$351, MATCH(Selection_Hide2!$A325, 'Full set Core Client Indicator'!$A$3:$A$351, 0), MATCH(Selection_Hide2!J$5, 'Full set Core Client Indicator'!$A$3:$AB$3, 0))=\"\", \"\",  INDEX('Full set Core Client Indicator'!$A$3:$AB$351, MATCH(Selection_Hide2!$A325, 'Full set Core Client Indicator'!$A$3:$A$351, 0), MATCH(Selection_Hide2!J$5, 'Full set Core Client Indicator'!$A$3:$AB$3, 0))), \"\")","v":""},{"$f":"IF(J325<>\"\", IF(INDEX('Full set Core Client Indicator'!$A$3:$AB$351, MATCH(Selection_Hide2!$A325, 'Full set Core Client Indicator'!$A$3:$A$351, 0), MATCH(Selection_Hide2!K$5, 'Full set Core Client Indicator'!$A$3:$AB$3, 0))=\"\", \"\",  INDEX('Full set Core Client Indicator'!$A$3:$AB$351, MATCH(Selection_Hide2!$A325, 'Full set Core Client Indicator'!$A$3:$A$351, 0), MATCH(Selection_Hide2!K$5, 'Full set Core Client Indicator'!$A$3:$AB$3, 0))), \"\")","v":""},{"$f":"IF(K325<>\"\", IF(INDEX('Full set Core Client Indicator'!$A$3:$AB$351, MATCH(Selection_Hide2!$A325, 'Full set Core Client Indicator'!$A$3:$A$351, 0), MATCH(Selection_Hide2!L$5, 'Full set Core Client Indicator'!$A$3:$AB$3, 0))=\"\", \"\",  INDEX('Full set Core Client Indicator'!$A$3:$AB$351, MATCH(Selection_Hide2!$A325, 'Full set Core Client Indicator'!$A$3:$A$351, 0), MATCH(Selection_Hide2!L$5, 'Full set Core Client Indicator'!$A$3:$AB$3, 0))), \"\")","v":""},{"$f":"IF(L325<>\"\", IF(INDEX('Full set Core Client Indicator'!$A$3:$AB$351, MATCH(Selection_Hide2!$A325, 'Full set Core Client Indicator'!$A$3:$A$351, 0), MATCH(Selection_Hide2!M$5, 'Full set Core Client Indicator'!$A$3:$AB$3, 0))=\"\", \"\",  INDEX('Full set Core Client Indicator'!$A$3:$AB$351, MATCH(Selection_Hide2!$A325, 'Full set Core Client Indicator'!$A$3:$A$351, 0), MATCH(Selection_Hide2!M$5, 'Full set Core Client Indicator'!$A$3:$AB$3, 0))), \"\")","v":""},{"$f":"IF(M325<>\"\", IF(INDEX('Full set Core Client Indicator'!$A$3:$AB$351, MATCH(Selection_Hide2!$A325, 'Full set Core Client Indicator'!$A$3:$A$351, 0), MATCH(Selection_Hide2!N$5, 'Full set Core Client Indicator'!$A$3:$AB$3, 0))=\"\", \"\",  INDEX('Full set Core Client Indicator'!$A$3:$AB$351, MATCH(Selection_Hide2!$A325, 'Full set Core Client Indicator'!$A$3:$A$351, 0), MATCH(Selection_Hide2!N$5, 'Full set Core Client Indicator'!$A$3:$AB$3, 0))), \"\")","v":""},{"$f":"IF(N325<>\"\", IF(INDEX('Full set Core Client Indicator'!$A$3:$AB$351, MATCH(Selection_Hide2!$A325, 'Full set Core Client Indicator'!$A$3:$A$351, 0), MATCH(Selection_Hide2!O$5, 'Full set Core Client Indicator'!$A$3:$AB$3, 0))=\"\", \"\",  INDEX('Full set Core Client Indicator'!$A$3:$AB$351, MATCH(Selection_Hide2!$A325, 'Full set Core Client Indicator'!$A$3:$A$351, 0), MATCH(Selection_Hide2!O$5, 'Full set Core Client Indicator'!$A$3:$AB$3, 0))), \"\")","v":""},{"$f":"IF(O325<>\"\", IF(INDEX('Full set Core Client Indicator'!$A$3:$AB$351, MATCH(Selection_Hide2!$A325, 'Full set Core Client Indicator'!$A$3:$A$351, 0), MATCH(Selection_Hide2!P$5, 'Full set Core Client Indicator'!$A$3:$AB$3, 0))=\"\", \"\",  INDEX('Full set Core Client Indicator'!$A$3:$AB$351, MATCH(Selection_Hide2!$A325, 'Full set Core Client Indicator'!$A$3:$A$351, 0), MATCH(Selection_Hide2!P$5, 'Full set Core Client Indicator'!$A$3:$AB$3, 0))), \"\")","v":""},{"$f":"IF(P325<>\"\", IF(INDEX('Full set Core Client Indicator'!$A$3:$AB$351, MATCH(Selection_Hide2!$A325, 'Full set Core Client Indicator'!$A$3:$A$351, 0), MATCH(Selection_Hide2!Q$5, 'Full set Core Client Indicator'!$A$3:$AB$3, 0))=\"\", \"\",  INDEX('Full set Core Client Indicator'!$A$3:$AB$351, MATCH(Selection_Hide2!$A325, 'Full set Core Client Indicator'!$A$3:$A$351, 0), MATCH(Selection_Hide2!Q$5, 'Full set Core Client Indicator'!$A$3:$AB$3, 0))), \"\")","v":""},{"$f":"IF(Q325<>\"\", IF(INDEX('Full set Core Client Indicator'!$A$3:$AB$351, MATCH(Selection_Hide2!$A325, 'Full set Core Client Indicator'!$A$3:$A$351, 0), MATCH(Selection_Hide2!R$5, 'Full set Core Client Indicator'!$A$3:$AB$3, 0))=\"\", \"\",  INDEX('Full set Core Client Indicator'!$A$3:$AB$351, MATCH(Selection_Hide2!$A325, 'Full set Core Client Indicator'!$A$3:$A$351, 0), MATCH(Selection_Hide2!R$5, 'Full set Core Client Indicator'!$A$3:$AB$3, 0))), \"\")","v":""},{"$f":"IF(R325<>\"\", IF(INDEX('Full set Core Client Indicator'!$A$3:$AB$351, MATCH(Selection_Hide2!$A325, 'Full set Core Client Indicator'!$A$3:$A$351, 0), MATCH(Selection_Hide2!S$5, 'Full set Core Client Indicator'!$A$3:$AB$3, 0))=\"\", \"\",  INDEX('Full set Core Client Indicator'!$A$3:$AB$351, MATCH(Selection_Hide2!$A325, 'Full set Core Client Indicator'!$A$3:$A$351, 0), MATCH(Selection_Hide2!S$5, 'Full set Core Client Indicator'!$A$3:$AB$3, 0))), \"\")","v":""},{"$f":"IF(S325<>\"\", IF(INDEX('Full set Core Client Indicator'!$A$3:$AB$351, MATCH(Selection_Hide2!$A325, 'Full set Core Client Indicator'!$A$3:$A$351, 0), MATCH(Selection_Hide2!T$5, 'Full set Core Client Indicator'!$A$3:$AB$3, 0))=\"\", \"\",  INDEX('Full set Core Client Indicator'!$A$3:$AB$351, MATCH(Selection_Hide2!$A325, 'Full set Core Client Indicator'!$A$3:$A$351, 0), MATCH(Selection_Hide2!T$5, 'Full set Core Client Indicator'!$A$3:$AB$3, 0))), \"\")","v":""},{"$f":"IF(T325<>\"\", IF(INDEX('Full set Core Client Indicator'!$A$3:$AB$351, MATCH(Selection_Hide2!$A325, 'Full set Core Client Indicator'!$A$3:$A$351, 0), MATCH(Selection_Hide2!U$5, 'Full set Core Client Indicator'!$A$3:$AB$3, 0))=\"\", \"\",  INDEX('Full set Core Client Indicator'!$A$3:$AB$351, MATCH(Selection_Hide2!$A325, 'Full set Core Client Indicator'!$A$3:$A$351, 0), MATCH(Selection_Hide2!U$5, 'Full set Core Client Indicator'!$A$3:$AB$3, 0))), \"\")","v":""},{"$f":"IF(U325<>\"\", IF(INDEX('Full set Core Client Indicator'!$A$3:$AB$351, MATCH(Selection_Hide2!$A325, 'Full set Core Client Indicator'!$A$3:$A$351, 0), MATCH(Selection_Hide2!V$5, 'Full set Core Client Indicator'!$A$3:$AB$3, 0))=\"\", \"\",  INDEX('Full set Core Client Indicator'!$A$3:$AB$351, MATCH(Selection_Hide2!$A325, 'Full set Core Client Indicator'!$A$3:$A$351, 0), MATCH(Selection_Hide2!V$5, 'Full set Core Client Indicator'!$A$3:$AB$3, 0))), \"\")","v":""},{"$f":"IF(V325<>\"\", IF(INDEX('Full set Core Client Indicator'!$A$3:$AB$351, MATCH(Selection_Hide2!$A325, 'Full set Core Client Indicator'!$A$3:$A$351, 0), MATCH(Selection_Hide2!W$5, 'Full set Core Client Indicator'!$A$3:$AB$3, 0))=\"\", \"\",  INDEX('Full set Core Client Indicator'!$A$3:$AB$351, MATCH(Selection_Hide2!$A325, 'Full set Core Client Indicator'!$A$3:$A$351, 0), MATCH(Selection_Hide2!W$5, 'Full set Core Client Indicator'!$A$3:$AB$3, 0))), \"\")","v":""},{"$f":"IF(W325<>\"\", IF(INDEX('Full set Core Client Indicator'!$A$3:$AB$351, MATCH(Selection_Hide2!$A325, 'Full set Core Client Indicator'!$A$3:$A$351, 0), MATCH(Selection_Hide2!X$5, 'Full set Core Client Indicator'!$A$3:$AB$3, 0))=\"\", \"\",  INDEX('Full set Core Client Indicator'!$A$3:$AB$351, MATCH(Selection_Hide2!$A325, 'Full set Core Client Indicator'!$A$3:$A$351, 0), MATCH(Selection_Hide2!X$5, 'Full set Core Client Indicator'!$A$3:$AB$3, 0))), \"\")","v":""},{"$f":"IF(X325<>\"\", IF(INDEX('Full set Core Client Indicator'!$A$3:$AB$351, MATCH(Selection_Hide2!$A325, 'Full set Core Client Indicator'!$A$3:$A$351, 0), MATCH(Selection_Hide2!Y$5, 'Full set Core Client Indicator'!$A$3:$AB$3, 0))=\"\", \"\",  INDEX('Full set Core Client Indicator'!$A$3:$AB$351, MATCH(Selection_Hide2!$A325, 'Full set Core Client Indicator'!$A$3:$A$351, 0), MATCH(Selection_Hide2!Y$5, 'Full set Core Client Indicator'!$A$3:$AB$3, 0))), \"\")","v":""},{"$f":"IF(Y325<>\"\", IF(INDEX('Full set Core Client Indicator'!$A$3:$AB$351, MATCH(Selection_Hide2!$A325, 'Full set Core Client Indicator'!$A$3:$A$351, 0), MATCH(Selection_Hide2!Z$5, 'Full set Core Client Indicator'!$A$3:$AB$3, 0))=\"\", \"\",  INDEX('Full set Core Client Indicator'!$A$3:$AB$351, MATCH(Selection_Hide2!$A325, 'Full set Core Client Indicator'!$A$3:$A$351, 0), MATCH(Selection_Hide2!Z$5, 'Full set Core Client Indicator'!$A$3:$AB$3, 0))), \"\")","v":""},{"$f":"IF(Z325<>\"\", IF(INDEX('Full set Core Client Indicator'!$A$3:$AB$351, MATCH(Selection_Hide2!$A325, 'Full set Core Client Indicator'!$A$3:$A$351, 0), MATCH(Selection_Hide2!AA$5, 'Full set Core Client Indicator'!$A$3:$AB$3, 0))=\"\", \"\",  INDEX('Full set Core Client Indicator'!$A$3:$AB$351, MATCH(Selection_Hide2!$A325, 'Full set Core Client Indicator'!$A$3:$A$351, 0), MATCH(Selection_Hide2!AA$5, 'Full set Core Client Indicator'!$A$3:$AB$3, 0))), \"\")","v":""},{"$f":"IF(AA325<>\"\", IF(INDEX('Full set Core Client Indicator'!$A$3:$AB$351, MATCH(Selection_Hide2!$A325, 'Full set Core Client Indicator'!$A$3:$A$351, 0), MATCH(Selection_Hide2!AB$5, 'Full set Core Client Indicator'!$A$3:$AB$3, 0))=\"\", \"\",  INDEX('Full set Core Client Indicator'!$A$3:$AB$351, MATCH(Selection_Hide2!$A325, 'Full set Core Client Indicator'!$A$3:$A$351, 0), MATCH(Selection_Hide2!AB$5, 'Full set Core Client Indicator'!$A$3:$AB$3, 0))), \"\")","v":""}]
[{"$f":"IF(AND(Selection_Hide1!C324<>0, Selection_Hide1!C324<>\"Grand Total\"), Selection_Hide1!C324, \"\")","v":""},{"$f":"IF(A326<>\"\", IF(INDEX('Full set Core Client Indicator'!$A$3:$AB$351, MATCH(Selection_Hide2!$A326, 'Full set Core Client Indicator'!$A$3:$A$351, 0), MATCH(Selection_Hide2!B$5, 'Full set Core Client Indicator'!$A$3:$AB$3, 0))=\"\", \"\",  INDEX('Full set Core Client Indicator'!$A$3:$AB$351, MATCH(Selection_Hide2!$A326, 'Full set Core Client Indicator'!$A$3:$A$351, 0), MATCH(Selection_Hide2!B$5, 'Full set Core Client Indicator'!$A$3:$AB$3, 0))), \"\")","v":""},{"$f":"IF(B326<>\"\", IF(INDEX('Full set Core Client Indicator'!$A$3:$AB$351, MATCH(Selection_Hide2!$A326, 'Full set Core Client Indicator'!$A$3:$A$351, 0), MATCH(Selection_Hide2!C$5, 'Full set Core Client Indicator'!$A$3:$AB$3, 0))=\"\", \"\",  INDEX('Full set Core Client Indicator'!$A$3:$AB$351, MATCH(Selection_Hide2!$A326, 'Full set Core Client Indicator'!$A$3:$A$351, 0), MATCH(Selection_Hide2!C$5, 'Full set Core Client Indicator'!$A$3:$AB$3, 0))), \"\")","v":""},{"$f":"IF(C326<>\"\", IF(INDEX('Full set Core Client Indicator'!$A$3:$AB$351, MATCH(Selection_Hide2!$A326, 'Full set Core Client Indicator'!$A$3:$A$351, 0), MATCH(Selection_Hide2!D$5, 'Full set Core Client Indicator'!$A$3:$AB$3, 0))=\"\", \"\",  INDEX('Full set Core Client Indicator'!$A$3:$AB$351, MATCH(Selection_Hide2!$A326, 'Full set Core Client Indicator'!$A$3:$A$351, 0), MATCH(Selection_Hide2!D$5, 'Full set Core Client Indicator'!$A$3:$AB$3, 0))), \"\")","v":""},{"$f":"IF(D326<>\"\", IF(INDEX('Full set Core Client Indicator'!$A$3:$AB$351, MATCH(Selection_Hide2!$A326, 'Full set Core Client Indicator'!$A$3:$A$351, 0), MATCH(Selection_Hide2!E$5, 'Full set Core Client Indicator'!$A$3:$AB$3, 0))=\"\", \"\",  INDEX('Full set Core Client Indicator'!$A$3:$AB$351, MATCH(Selection_Hide2!$A326, 'Full set Core Client Indicator'!$A$3:$A$351, 0), MATCH(Selection_Hide2!E$5, 'Full set Core Client Indicator'!$A$3:$AB$3, 0))), \"\")","v":""},{"$f":"IF(E326<>\"\", IF(INDEX('Full set Core Client Indicator'!$A$3:$AB$351, MATCH(Selection_Hide2!$A326, 'Full set Core Client Indicator'!$A$3:$A$351, 0), MATCH(Selection_Hide2!F$5, 'Full set Core Client Indicator'!$A$3:$AB$3, 0))=\"\", \"\",  INDEX('Full set Core Client Indicator'!$A$3:$AB$351, MATCH(Selection_Hide2!$A326, 'Full set Core Client Indicator'!$A$3:$A$351, 0), MATCH(Selection_Hide2!F$5, 'Full set Core Client Indicator'!$A$3:$AB$3, 0))), \"\")","v":""},{"$f":"IF(F326<>\"\", IF(INDEX('Full set Core Client Indicator'!$A$3:$AB$351, MATCH(Selection_Hide2!$A326, 'Full set Core Client Indicator'!$A$3:$A$351, 0), MATCH(Selection_Hide2!G$5, 'Full set Core Client Indicator'!$A$3:$AB$3, 0))=\"\", \"\",  INDEX('Full set Core Client Indicator'!$A$3:$AB$351, MATCH(Selection_Hide2!$A326, 'Full set Core Client Indicator'!$A$3:$A$351, 0), MATCH(Selection_Hide2!G$5, 'Full set Core Client Indicator'!$A$3:$AB$3, 0))), \"\")","v":""},{"$f":"IF(G326<>\"\", IF(INDEX('Full set Core Client Indicator'!$A$3:$AB$351, MATCH(Selection_Hide2!$A326, 'Full set Core Client Indicator'!$A$3:$A$351, 0), MATCH(Selection_Hide2!H$5, 'Full set Core Client Indicator'!$A$3:$AB$3, 0))=\"\", \"\",  INDEX('Full set Core Client Indicator'!$A$3:$AB$351, MATCH(Selection_Hide2!$A326, 'Full set Core Client Indicator'!$A$3:$A$351, 0), MATCH(Selection_Hide2!H$5, 'Full set Core Client Indicator'!$A$3:$AB$3, 0))), \"\")","v":""},{"$f":"IF(H326<>\"\", IF(INDEX('Full set Core Client Indicator'!$A$3:$AB$351, MATCH(Selection_Hide2!$A326, 'Full set Core Client Indicator'!$A$3:$A$351, 0), MATCH(Selection_Hide2!I$5, 'Full set Core Client Indicator'!$A$3:$AB$3, 0))=\"\", \"\",  INDEX('Full set Core Client Indicator'!$A$3:$AB$351, MATCH(Selection_Hide2!$A326, 'Full set Core Client Indicator'!$A$3:$A$351, 0), MATCH(Selection_Hide2!I$5, 'Full set Core Client Indicator'!$A$3:$AB$3, 0))), \"\")","v":""},{"$f":"IF(I326<>\"\", IF(INDEX('Full set Core Client Indicator'!$A$3:$AB$351, MATCH(Selection_Hide2!$A326, 'Full set Core Client Indicator'!$A$3:$A$351, 0), MATCH(Selection_Hide2!J$5, 'Full set Core Client Indicator'!$A$3:$AB$3, 0))=\"\", \"\",  INDEX('Full set Core Client Indicator'!$A$3:$AB$351, MATCH(Selection_Hide2!$A326, 'Full set Core Client Indicator'!$A$3:$A$351, 0), MATCH(Selection_Hide2!J$5, 'Full set Core Client Indicator'!$A$3:$AB$3, 0))), \"\")","v":""},{"$f":"IF(J326<>\"\", IF(INDEX('Full set Core Client Indicator'!$A$3:$AB$351, MATCH(Selection_Hide2!$A326, 'Full set Core Client Indicator'!$A$3:$A$351, 0), MATCH(Selection_Hide2!K$5, 'Full set Core Client Indicator'!$A$3:$AB$3, 0))=\"\", \"\",  INDEX('Full set Core Client Indicator'!$A$3:$AB$351, MATCH(Selection_Hide2!$A326, 'Full set Core Client Indicator'!$A$3:$A$351, 0), MATCH(Selection_Hide2!K$5, 'Full set Core Client Indicator'!$A$3:$AB$3, 0))), \"\")","v":""},{"$f":"IF(K326<>\"\", IF(INDEX('Full set Core Client Indicator'!$A$3:$AB$351, MATCH(Selection_Hide2!$A326, 'Full set Core Client Indicator'!$A$3:$A$351, 0), MATCH(Selection_Hide2!L$5, 'Full set Core Client Indicator'!$A$3:$AB$3, 0))=\"\", \"\",  INDEX('Full set Core Client Indicator'!$A$3:$AB$351, MATCH(Selection_Hide2!$A326, 'Full set Core Client Indicator'!$A$3:$A$351, 0), MATCH(Selection_Hide2!L$5, 'Full set Core Client Indicator'!$A$3:$AB$3, 0))), \"\")","v":""},{"$f":"IF(L326<>\"\", IF(INDEX('Full set Core Client Indicator'!$A$3:$AB$351, MATCH(Selection_Hide2!$A326, 'Full set Core Client Indicator'!$A$3:$A$351, 0), MATCH(Selection_Hide2!M$5, 'Full set Core Client Indicator'!$A$3:$AB$3, 0))=\"\", \"\",  INDEX('Full set Core Client Indicator'!$A$3:$AB$351, MATCH(Selection_Hide2!$A326, 'Full set Core Client Indicator'!$A$3:$A$351, 0), MATCH(Selection_Hide2!M$5, 'Full set Core Client Indicator'!$A$3:$AB$3, 0))), \"\")","v":""},{"$f":"IF(M326<>\"\", IF(INDEX('Full set Core Client Indicator'!$A$3:$AB$351, MATCH(Selection_Hide2!$A326, 'Full set Core Client Indicator'!$A$3:$A$351, 0), MATCH(Selection_Hide2!N$5, 'Full set Core Client Indicator'!$A$3:$AB$3, 0))=\"\", \"\",  INDEX('Full set Core Client Indicator'!$A$3:$AB$351, MATCH(Selection_Hide2!$A326, 'Full set Core Client Indicator'!$A$3:$A$351, 0), MATCH(Selection_Hide2!N$5, 'Full set Core Client Indicator'!$A$3:$AB$3, 0))), \"\")","v":""},{"$f":"IF(N326<>\"\", IF(INDEX('Full set Core Client Indicator'!$A$3:$AB$351, MATCH(Selection_Hide2!$A326, 'Full set Core Client Indicator'!$A$3:$A$351, 0), MATCH(Selection_Hide2!O$5, 'Full set Core Client Indicator'!$A$3:$AB$3, 0))=\"\", \"\",  INDEX('Full set Core Client Indicator'!$A$3:$AB$351, MATCH(Selection_Hide2!$A326, 'Full set Core Client Indicator'!$A$3:$A$351, 0), MATCH(Selection_Hide2!O$5, 'Full set Core Client Indicator'!$A$3:$AB$3, 0))), \"\")","v":""},{"$f":"IF(O326<>\"\", IF(INDEX('Full set Core Client Indicator'!$A$3:$AB$351, MATCH(Selection_Hide2!$A326, 'Full set Core Client Indicator'!$A$3:$A$351, 0), MATCH(Selection_Hide2!P$5, 'Full set Core Client Indicator'!$A$3:$AB$3, 0))=\"\", \"\",  INDEX('Full set Core Client Indicator'!$A$3:$AB$351, MATCH(Selection_Hide2!$A326, 'Full set Core Client Indicator'!$A$3:$A$351, 0), MATCH(Selection_Hide2!P$5, 'Full set Core Client Indicator'!$A$3:$AB$3, 0))), \"\")","v":""},{"$f":"IF(P326<>\"\", IF(INDEX('Full set Core Client Indicator'!$A$3:$AB$351, MATCH(Selection_Hide2!$A326, 'Full set Core Client Indicator'!$A$3:$A$351, 0), MATCH(Selection_Hide2!Q$5, 'Full set Core Client Indicator'!$A$3:$AB$3, 0))=\"\", \"\",  INDEX('Full set Core Client Indicator'!$A$3:$AB$351, MATCH(Selection_Hide2!$A326, 'Full set Core Client Indicator'!$A$3:$A$351, 0), MATCH(Selection_Hide2!Q$5, 'Full set Core Client Indicator'!$A$3:$AB$3, 0))), \"\")","v":""},{"$f":"IF(Q326<>\"\", IF(INDEX('Full set Core Client Indicator'!$A$3:$AB$351, MATCH(Selection_Hide2!$A326, 'Full set Core Client Indicator'!$A$3:$A$351, 0), MATCH(Selection_Hide2!R$5, 'Full set Core Client Indicator'!$A$3:$AB$3, 0))=\"\", \"\",  INDEX('Full set Core Client Indicator'!$A$3:$AB$351, MATCH(Selection_Hide2!$A326, 'Full set Core Client Indicator'!$A$3:$A$351, 0), MATCH(Selection_Hide2!R$5, 'Full set Core Client Indicator'!$A$3:$AB$3, 0))), \"\")","v":""},{"$f":"IF(R326<>\"\", IF(INDEX('Full set Core Client Indicator'!$A$3:$AB$351, MATCH(Selection_Hide2!$A326, 'Full set Core Client Indicator'!$A$3:$A$351, 0), MATCH(Selection_Hide2!S$5, 'Full set Core Client Indicator'!$A$3:$AB$3, 0))=\"\", \"\",  INDEX('Full set Core Client Indicator'!$A$3:$AB$351, MATCH(Selection_Hide2!$A326, 'Full set Core Client Indicator'!$A$3:$A$351, 0), MATCH(Selection_Hide2!S$5, 'Full set Core Client Indicator'!$A$3:$AB$3, 0))), \"\")","v":""},{"$f":"IF(S326<>\"\", IF(INDEX('Full set Core Client Indicator'!$A$3:$AB$351, MATCH(Selection_Hide2!$A326, 'Full set Core Client Indicator'!$A$3:$A$351, 0), MATCH(Selection_Hide2!T$5, 'Full set Core Client Indicator'!$A$3:$AB$3, 0))=\"\", \"\",  INDEX('Full set Core Client Indicator'!$A$3:$AB$351, MATCH(Selection_Hide2!$A326, 'Full set Core Client Indicator'!$A$3:$A$351, 0), MATCH(Selection_Hide2!T$5, 'Full set Core Client Indicator'!$A$3:$AB$3, 0))), \"\")","v":""},{"$f":"IF(T326<>\"\", IF(INDEX('Full set Core Client Indicator'!$A$3:$AB$351, MATCH(Selection_Hide2!$A326, 'Full set Core Client Indicator'!$A$3:$A$351, 0), MATCH(Selection_Hide2!U$5, 'Full set Core Client Indicator'!$A$3:$AB$3, 0))=\"\", \"\",  INDEX('Full set Core Client Indicator'!$A$3:$AB$351, MATCH(Selection_Hide2!$A326, 'Full set Core Client Indicator'!$A$3:$A$351, 0), MATCH(Selection_Hide2!U$5, 'Full set Core Client Indicator'!$A$3:$AB$3, 0))), \"\")","v":""},{"$f":"IF(U326<>\"\", IF(INDEX('Full set Core Client Indicator'!$A$3:$AB$351, MATCH(Selection_Hide2!$A326, 'Full set Core Client Indicator'!$A$3:$A$351, 0), MATCH(Selection_Hide2!V$5, 'Full set Core Client Indicator'!$A$3:$AB$3, 0))=\"\", \"\",  INDEX('Full set Core Client Indicator'!$A$3:$AB$351, MATCH(Selection_Hide2!$A326, 'Full set Core Client Indicator'!$A$3:$A$351, 0), MATCH(Selection_Hide2!V$5, 'Full set Core Client Indicator'!$A$3:$AB$3, 0))), \"\")","v":""},{"$f":"IF(V326<>\"\", IF(INDEX('Full set Core Client Indicator'!$A$3:$AB$351, MATCH(Selection_Hide2!$A326, 'Full set Core Client Indicator'!$A$3:$A$351, 0), MATCH(Selection_Hide2!W$5, 'Full set Core Client Indicator'!$A$3:$AB$3, 0))=\"\", \"\",  INDEX('Full set Core Client Indicator'!$A$3:$AB$351, MATCH(Selection_Hide2!$A326, 'Full set Core Client Indicator'!$A$3:$A$351, 0), MATCH(Selection_Hide2!W$5, 'Full set Core Client Indicator'!$A$3:$AB$3, 0))), \"\")","v":""},{"$f":"IF(W326<>\"\", IF(INDEX('Full set Core Client Indicator'!$A$3:$AB$351, MATCH(Selection_Hide2!$A326, 'Full set Core Client Indicator'!$A$3:$A$351, 0), MATCH(Selection_Hide2!X$5, 'Full set Core Client Indicator'!$A$3:$AB$3, 0))=\"\", \"\",  INDEX('Full set Core Client Indicator'!$A$3:$AB$351, MATCH(Selection_Hide2!$A326, 'Full set Core Client Indicator'!$A$3:$A$351, 0), MATCH(Selection_Hide2!X$5, 'Full set Core Client Indicator'!$A$3:$AB$3, 0))), \"\")","v":""},{"$f":"IF(X326<>\"\", IF(INDEX('Full set Core Client Indicator'!$A$3:$AB$351, MATCH(Selection_Hide2!$A326, 'Full set Core Client Indicator'!$A$3:$A$351, 0), MATCH(Selection_Hide2!Y$5, 'Full set Core Client Indicator'!$A$3:$AB$3, 0))=\"\", \"\",  INDEX('Full set Core Client Indicator'!$A$3:$AB$351, MATCH(Selection_Hide2!$A326, 'Full set Core Client Indicator'!$A$3:$A$351, 0), MATCH(Selection_Hide2!Y$5, 'Full set Core Client Indicator'!$A$3:$AB$3, 0))), \"\")","v":""},{"$f":"IF(Y326<>\"\", IF(INDEX('Full set Core Client Indicator'!$A$3:$AB$351, MATCH(Selection_Hide2!$A326, 'Full set Core Client Indicator'!$A$3:$A$351, 0), MATCH(Selection_Hide2!Z$5, 'Full set Core Client Indicator'!$A$3:$AB$3, 0))=\"\", \"\",  INDEX('Full set Core Client Indicator'!$A$3:$AB$351, MATCH(Selection_Hide2!$A326, 'Full set Core Client Indicator'!$A$3:$A$351, 0), MATCH(Selection_Hide2!Z$5, 'Full set Core Client Indicator'!$A$3:$AB$3, 0))), \"\")","v":""},{"$f":"IF(Z326<>\"\", IF(INDEX('Full set Core Client Indicator'!$A$3:$AB$351, MATCH(Selection_Hide2!$A326, 'Full set Core Client Indicator'!$A$3:$A$351, 0), MATCH(Selection_Hide2!AA$5, 'Full set Core Client Indicator'!$A$3:$AB$3, 0))=\"\", \"\",  INDEX('Full set Core Client Indicator'!$A$3:$AB$351, MATCH(Selection_Hide2!$A326, 'Full set Core Client Indicator'!$A$3:$A$351, 0), MATCH(Selection_Hide2!AA$5, 'Full set Core Client Indicator'!$A$3:$AB$3, 0))), \"\")","v":""},{"$f":"IF(AA326<>\"\", IF(INDEX('Full set Core Client Indicator'!$A$3:$AB$351, MATCH(Selection_Hide2!$A326, 'Full set Core Client Indicator'!$A$3:$A$351, 0), MATCH(Selection_Hide2!AB$5, 'Full set Core Client Indicator'!$A$3:$AB$3, 0))=\"\", \"\",  INDEX('Full set Core Client Indicator'!$A$3:$AB$351, MATCH(Selection_Hide2!$A326, 'Full set Core Client Indicator'!$A$3:$A$351, 0), MATCH(Selection_Hide2!AB$5, 'Full set Core Client Indicator'!$A$3:$AB$3, 0))), \"\")","v":""}]
[{"$f":"IF(AND(Selection_Hide1!C325<>0, Selection_Hide1!C325<>\"Grand Total\"), Selection_Hide1!C325, \"\")","v":""},{"$f":"IF(A327<>\"\", IF(INDEX('Full set Core Client Indicator'!$A$3:$AB$351, MATCH(Selection_Hide2!$A327, 'Full set Core Client Indicator'!$A$3:$A$351, 0), MATCH(Selection_Hide2!B$5, 'Full set Core Client Indicator'!$A$3:$AB$3, 0))=\"\", \"\",  INDEX('Full set Core Client Indicator'!$A$3:$AB$351, MATCH(Selection_Hide2!$A327, 'Full set Core Client Indicator'!$A$3:$A$351, 0), MATCH(Selection_Hide2!B$5, 'Full set Core Client Indicator'!$A$3:$AB$3, 0))), \"\")","v":""},{"$f":"IF(B327<>\"\", IF(INDEX('Full set Core Client Indicator'!$A$3:$AB$351, MATCH(Selection_Hide2!$A327, 'Full set Core Client Indicator'!$A$3:$A$351, 0), MATCH(Selection_Hide2!C$5, 'Full set Core Client Indicator'!$A$3:$AB$3, 0))=\"\", \"\",  INDEX('Full set Core Client Indicator'!$A$3:$AB$351, MATCH(Selection_Hide2!$A327, 'Full set Core Client Indicator'!$A$3:$A$351, 0), MATCH(Selection_Hide2!C$5, 'Full set Core Client Indicator'!$A$3:$AB$3, 0))), \"\")","v":""},{"$f":"IF(C327<>\"\", IF(INDEX('Full set Core Client Indicator'!$A$3:$AB$351, MATCH(Selection_Hide2!$A327, 'Full set Core Client Indicator'!$A$3:$A$351, 0), MATCH(Selection_Hide2!D$5, 'Full set Core Client Indicator'!$A$3:$AB$3, 0))=\"\", \"\",  INDEX('Full set Core Client Indicator'!$A$3:$AB$351, MATCH(Selection_Hide2!$A327, 'Full set Core Client Indicator'!$A$3:$A$351, 0), MATCH(Selection_Hide2!D$5, 'Full set Core Client Indicator'!$A$3:$AB$3, 0))), \"\")","v":""},{"$f":"IF(D327<>\"\", IF(INDEX('Full set Core Client Indicator'!$A$3:$AB$351, MATCH(Selection_Hide2!$A327, 'Full set Core Client Indicator'!$A$3:$A$351, 0), MATCH(Selection_Hide2!E$5, 'Full set Core Client Indicator'!$A$3:$AB$3, 0))=\"\", \"\",  INDEX('Full set Core Client Indicator'!$A$3:$AB$351, MATCH(Selection_Hide2!$A327, 'Full set Core Client Indicator'!$A$3:$A$351, 0), MATCH(Selection_Hide2!E$5, 'Full set Core Client Indicator'!$A$3:$AB$3, 0))), \"\")","v":""},{"$f":"IF(E327<>\"\", IF(INDEX('Full set Core Client Indicator'!$A$3:$AB$351, MATCH(Selection_Hide2!$A327, 'Full set Core Client Indicator'!$A$3:$A$351, 0), MATCH(Selection_Hide2!F$5, 'Full set Core Client Indicator'!$A$3:$AB$3, 0))=\"\", \"\",  INDEX('Full set Core Client Indicator'!$A$3:$AB$351, MATCH(Selection_Hide2!$A327, 'Full set Core Client Indicator'!$A$3:$A$351, 0), MATCH(Selection_Hide2!F$5, 'Full set Core Client Indicator'!$A$3:$AB$3, 0))), \"\")","v":""},{"$f":"IF(F327<>\"\", IF(INDEX('Full set Core Client Indicator'!$A$3:$AB$351, MATCH(Selection_Hide2!$A327, 'Full set Core Client Indicator'!$A$3:$A$351, 0), MATCH(Selection_Hide2!G$5, 'Full set Core Client Indicator'!$A$3:$AB$3, 0))=\"\", \"\",  INDEX('Full set Core Client Indicator'!$A$3:$AB$351, MATCH(Selection_Hide2!$A327, 'Full set Core Client Indicator'!$A$3:$A$351, 0), MATCH(Selection_Hide2!G$5, 'Full set Core Client Indicator'!$A$3:$AB$3, 0))), \"\")","v":""},{"$f":"IF(G327<>\"\", IF(INDEX('Full set Core Client Indicator'!$A$3:$AB$351, MATCH(Selection_Hide2!$A327, 'Full set Core Client Indicator'!$A$3:$A$351, 0), MATCH(Selection_Hide2!H$5, 'Full set Core Client Indicator'!$A$3:$AB$3, 0))=\"\", \"\",  INDEX('Full set Core Client Indicator'!$A$3:$AB$351, MATCH(Selection_Hide2!$A327, 'Full set Core Client Indicator'!$A$3:$A$351, 0), MATCH(Selection_Hide2!H$5, 'Full set Core Client Indicator'!$A$3:$AB$3, 0))), \"\")","v":""},{"$f":"IF(H327<>\"\", IF(INDEX('Full set Core Client Indicator'!$A$3:$AB$351, MATCH(Selection_Hide2!$A327, 'Full set Core Client Indicator'!$A$3:$A$351, 0), MATCH(Selection_Hide2!I$5, 'Full set Core Client Indicator'!$A$3:$AB$3, 0))=\"\", \"\",  INDEX('Full set Core Client Indicator'!$A$3:$AB$351, MATCH(Selection_Hide2!$A327, 'Full set Core Client Indicator'!$A$3:$A$351, 0), MATCH(Selection_Hide2!I$5, 'Full set Core Client Indicator'!$A$3:$AB$3, 0))), \"\")","v":""},{"$f":"IF(I327<>\"\", IF(INDEX('Full set Core Client Indicator'!$A$3:$AB$351, MATCH(Selection_Hide2!$A327, 'Full set Core Client Indicator'!$A$3:$A$351, 0), MATCH(Selection_Hide2!J$5, 'Full set Core Client Indicator'!$A$3:$AB$3, 0))=\"\", \"\",  INDEX('Full set Core Client Indicator'!$A$3:$AB$351, MATCH(Selection_Hide2!$A327, 'Full set Core Client Indicator'!$A$3:$A$351, 0), MATCH(Selection_Hide2!J$5, 'Full set Core Client Indicator'!$A$3:$AB$3, 0))), \"\")","v":""},{"$f":"IF(J327<>\"\", IF(INDEX('Full set Core Client Indicator'!$A$3:$AB$351, MATCH(Selection_Hide2!$A327, 'Full set Core Client Indicator'!$A$3:$A$351, 0), MATCH(Selection_Hide2!K$5, 'Full set Core Client Indicator'!$A$3:$AB$3, 0))=\"\", \"\",  INDEX('Full set Core Client Indicator'!$A$3:$AB$351, MATCH(Selection_Hide2!$A327, 'Full set Core Client Indicator'!$A$3:$A$351, 0), MATCH(Selection_Hide2!K$5, 'Full set Core Client Indicator'!$A$3:$AB$3, 0))), \"\")","v":""},{"$f":"IF(K327<>\"\", IF(INDEX('Full set Core Client Indicator'!$A$3:$AB$351, MATCH(Selection_Hide2!$A327, 'Full set Core Client Indicator'!$A$3:$A$351, 0), MATCH(Selection_Hide2!L$5, 'Full set Core Client Indicator'!$A$3:$AB$3, 0))=\"\", \"\",  INDEX('Full set Core Client Indicator'!$A$3:$AB$351, MATCH(Selection_Hide2!$A327, 'Full set Core Client Indicator'!$A$3:$A$351, 0), MATCH(Selection_Hide2!L$5, 'Full set Core Client Indicator'!$A$3:$AB$3, 0))), \"\")","v":""},{"$f":"IF(L327<>\"\", IF(INDEX('Full set Core Client Indicator'!$A$3:$AB$351, MATCH(Selection_Hide2!$A327, 'Full set Core Client Indicator'!$A$3:$A$351, 0), MATCH(Selection_Hide2!M$5, 'Full set Core Client Indicator'!$A$3:$AB$3, 0))=\"\", \"\",  INDEX('Full set Core Client Indicator'!$A$3:$AB$351, MATCH(Selection_Hide2!$A327, 'Full set Core Client Indicator'!$A$3:$A$351, 0), MATCH(Selection_Hide2!M$5, 'Full set Core Client Indicator'!$A$3:$AB$3, 0))), \"\")","v":""},{"$f":"IF(M327<>\"\", IF(INDEX('Full set Core Client Indicator'!$A$3:$AB$351, MATCH(Selection_Hide2!$A327, 'Full set Core Client Indicator'!$A$3:$A$351, 0), MATCH(Selection_Hide2!N$5, 'Full set Core Client Indicator'!$A$3:$AB$3, 0))=\"\", \"\",  INDEX('Full set Core Client Indicator'!$A$3:$AB$351, MATCH(Selection_Hide2!$A327, 'Full set Core Client Indicator'!$A$3:$A$351, 0), MATCH(Selection_Hide2!N$5, 'Full set Core Client Indicator'!$A$3:$AB$3, 0))), \"\")","v":""},{"$f":"IF(N327<>\"\", IF(INDEX('Full set Core Client Indicator'!$A$3:$AB$351, MATCH(Selection_Hide2!$A327, 'Full set Core Client Indicator'!$A$3:$A$351, 0), MATCH(Selection_Hide2!O$5, 'Full set Core Client Indicator'!$A$3:$AB$3, 0))=\"\", \"\",  INDEX('Full set Core Client Indicator'!$A$3:$AB$351, MATCH(Selection_Hide2!$A327, 'Full set Core Client Indicator'!$A$3:$A$351, 0), MATCH(Selection_Hide2!O$5, 'Full set Core Client Indicator'!$A$3:$AB$3, 0))), \"\")","v":""},{"$f":"IF(O327<>\"\", IF(INDEX('Full set Core Client Indicator'!$A$3:$AB$351, MATCH(Selection_Hide2!$A327, 'Full set Core Client Indicator'!$A$3:$A$351, 0), MATCH(Selection_Hide2!P$5, 'Full set Core Client Indicator'!$A$3:$AB$3, 0))=\"\", \"\",  INDEX('Full set Core Client Indicator'!$A$3:$AB$351, MATCH(Selection_Hide2!$A327, 'Full set Core Client Indicator'!$A$3:$A$351, 0), MATCH(Selection_Hide2!P$5, 'Full set Core Client Indicator'!$A$3:$AB$3, 0))), \"\")","v":""},{"$f":"IF(P327<>\"\", IF(INDEX('Full set Core Client Indicator'!$A$3:$AB$351, MATCH(Selection_Hide2!$A327, 'Full set Core Client Indicator'!$A$3:$A$351, 0), MATCH(Selection_Hide2!Q$5, 'Full set Core Client Indicator'!$A$3:$AB$3, 0))=\"\", \"\",  INDEX('Full set Core Client Indicator'!$A$3:$AB$351, MATCH(Selection_Hide2!$A327, 'Full set Core Client Indicator'!$A$3:$A$351, 0), MATCH(Selection_Hide2!Q$5, 'Full set Core Client Indicator'!$A$3:$AB$3, 0))), \"\")","v":""},{"$f":"IF(Q327<>\"\", IF(INDEX('Full set Core Client Indicator'!$A$3:$AB$351, MATCH(Selection_Hide2!$A327, 'Full set Core Client Indicator'!$A$3:$A$351, 0), MATCH(Selection_Hide2!R$5, 'Full set Core Client Indicator'!$A$3:$AB$3, 0))=\"\", \"\",  INDEX('Full set Core Client Indicator'!$A$3:$AB$351, MATCH(Selection_Hide2!$A327, 'Full set Core Client Indicator'!$A$3:$A$351, 0), MATCH(Selection_Hide2!R$5, 'Full set Core Client Indicator'!$A$3:$AB$3, 0))), \"\")","v":""},{"$f":"IF(R327<>\"\", IF(INDEX('Full set Core Client Indicator'!$A$3:$AB$351, MATCH(Selection_Hide2!$A327, 'Full set Core Client Indicator'!$A$3:$A$351, 0), MATCH(Selection_Hide2!S$5, 'Full set Core Client Indicator'!$A$3:$AB$3, 0))=\"\", \"\",  INDEX('Full set Core Client Indicator'!$A$3:$AB$351, MATCH(Selection_Hide2!$A327, 'Full set Core Client Indicator'!$A$3:$A$351, 0), MATCH(Selection_Hide2!S$5, 'Full set Core Client Indicator'!$A$3:$AB$3, 0))), \"\")","v":""},{"$f":"IF(S327<>\"\", IF(INDEX('Full set Core Client Indicator'!$A$3:$AB$351, MATCH(Selection_Hide2!$A327, 'Full set Core Client Indicator'!$A$3:$A$351, 0), MATCH(Selection_Hide2!T$5, 'Full set Core Client Indicator'!$A$3:$AB$3, 0))=\"\", \"\",  INDEX('Full set Core Client Indicator'!$A$3:$AB$351, MATCH(Selection_Hide2!$A327, 'Full set Core Client Indicator'!$A$3:$A$351, 0), MATCH(Selection_Hide2!T$5, 'Full set Core Client Indicator'!$A$3:$AB$3, 0))), \"\")","v":""},{"$f":"IF(T327<>\"\", IF(INDEX('Full set Core Client Indicator'!$A$3:$AB$351, MATCH(Selection_Hide2!$A327, 'Full set Core Client Indicator'!$A$3:$A$351, 0), MATCH(Selection_Hide2!U$5, 'Full set Core Client Indicator'!$A$3:$AB$3, 0))=\"\", \"\",  INDEX('Full set Core Client Indicator'!$A$3:$AB$351, MATCH(Selection_Hide2!$A327, 'Full set Core Client Indicator'!$A$3:$A$351, 0), MATCH(Selection_Hide2!U$5, 'Full set Core Client Indicator'!$A$3:$AB$3, 0))), \"\")","v":""},{"$f":"IF(U327<>\"\", IF(INDEX('Full set Core Client Indicator'!$A$3:$AB$351, MATCH(Selection_Hide2!$A327, 'Full set Core Client Indicator'!$A$3:$A$351, 0), MATCH(Selection_Hide2!V$5, 'Full set Core Client Indicator'!$A$3:$AB$3, 0))=\"\", \"\",  INDEX('Full set Core Client Indicator'!$A$3:$AB$351, MATCH(Selection_Hide2!$A327, 'Full set Core Client Indicator'!$A$3:$A$351, 0), MATCH(Selection_Hide2!V$5, 'Full set Core Client Indicator'!$A$3:$AB$3, 0))), \"\")","v":""},{"$f":"IF(V327<>\"\", IF(INDEX('Full set Core Client Indicator'!$A$3:$AB$351, MATCH(Selection_Hide2!$A327, 'Full set Core Client Indicator'!$A$3:$A$351, 0), MATCH(Selection_Hide2!W$5, 'Full set Core Client Indicator'!$A$3:$AB$3, 0))=\"\", \"\",  INDEX('Full set Core Client Indicator'!$A$3:$AB$351, MATCH(Selection_Hide2!$A327, 'Full set Core Client Indicator'!$A$3:$A$351, 0), MATCH(Selection_Hide2!W$5, 'Full set Core Client Indicator'!$A$3:$AB$3, 0))), \"\")","v":""},{"$f":"IF(W327<>\"\", IF(INDEX('Full set Core Client Indicator'!$A$3:$AB$351, MATCH(Selection_Hide2!$A327, 'Full set Core Client Indicator'!$A$3:$A$351, 0), MATCH(Selection_Hide2!X$5, 'Full set Core Client Indicator'!$A$3:$AB$3, 0))=\"\", \"\",  INDEX('Full set Core Client Indicator'!$A$3:$AB$351, MATCH(Selection_Hide2!$A327, 'Full set Core Client Indicator'!$A$3:$A$351, 0), MATCH(Selection_Hide2!X$5, 'Full set Core Client Indicator'!$A$3:$AB$3, 0))), \"\")","v":""},{"$f":"IF(X327<>\"\", IF(INDEX('Full set Core Client Indicator'!$A$3:$AB$351, MATCH(Selection_Hide2!$A327, 'Full set Core Client Indicator'!$A$3:$A$351, 0), MATCH(Selection_Hide2!Y$5, 'Full set Core Client Indicator'!$A$3:$AB$3, 0))=\"\", \"\",  INDEX('Full set Core Client Indicator'!$A$3:$AB$351, MATCH(Selection_Hide2!$A327, 'Full set Core Client Indicator'!$A$3:$A$351, 0), MATCH(Selection_Hide2!Y$5, 'Full set Core Client Indicator'!$A$3:$AB$3, 0))), \"\")","v":""},{"$f":"IF(Y327<>\"\", IF(INDEX('Full set Core Client Indicator'!$A$3:$AB$351, MATCH(Selection_Hide2!$A327, 'Full set Core Client Indicator'!$A$3:$A$351, 0), MATCH(Selection_Hide2!Z$5, 'Full set Core Client Indicator'!$A$3:$AB$3, 0))=\"\", \"\",  INDEX('Full set Core Client Indicator'!$A$3:$AB$351, MATCH(Selection_Hide2!$A327, 'Full set Core Client Indicator'!$A$3:$A$351, 0), MATCH(Selection_Hide2!Z$5, 'Full set Core Client Indicator'!$A$3:$AB$3, 0))), \"\")","v":""},{"$f":"IF(Z327<>\"\", IF(INDEX('Full set Core Client Indicator'!$A$3:$AB$351, MATCH(Selection_Hide2!$A327, 'Full set Core Client Indicator'!$A$3:$A$351, 0), MATCH(Selection_Hide2!AA$5, 'Full set Core Client Indicator'!$A$3:$AB$3, 0))=\"\", \"\",  INDEX('Full set Core Client Indicator'!$A$3:$AB$351, MATCH(Selection_Hide2!$A327, 'Full set Core Client Indicator'!$A$3:$A$351, 0), MATCH(Selection_Hide2!AA$5, 'Full set Core Client Indicator'!$A$3:$AB$3, 0))), \"\")","v":""},{"$f":"IF(AA327<>\"\", IF(INDEX('Full set Core Client Indicator'!$A$3:$AB$351, MATCH(Selection_Hide2!$A327, 'Full set Core Client Indicator'!$A$3:$A$351, 0), MATCH(Selection_Hide2!AB$5, 'Full set Core Client Indicator'!$A$3:$AB$3, 0))=\"\", \"\",  INDEX('Full set Core Client Indicator'!$A$3:$AB$351, MATCH(Selection_Hide2!$A327, 'Full set Core Client Indicator'!$A$3:$A$351, 0), MATCH(Selection_Hide2!AB$5, 'Full set Core Client Indicator'!$A$3:$AB$3, 0))), \"\")","v":""}]
[{"$f":"IF(AND(Selection_Hide1!C326<>0, Selection_Hide1!C326<>\"Grand Total\"), Selection_Hide1!C326, \"\")","v":""},{"$f":"IF(A328<>\"\", IF(INDEX('Full set Core Client Indicator'!$A$3:$AB$351, MATCH(Selection_Hide2!$A328, 'Full set Core Client Indicator'!$A$3:$A$351, 0), MATCH(Selection_Hide2!B$5, 'Full set Core Client Indicator'!$A$3:$AB$3, 0))=\"\", \"\",  INDEX('Full set Core Client Indicator'!$A$3:$AB$351, MATCH(Selection_Hide2!$A328, 'Full set Core Client Indicator'!$A$3:$A$351, 0), MATCH(Selection_Hide2!B$5, 'Full set Core Client Indicator'!$A$3:$AB$3, 0))), \"\")","v":""},{"$f":"IF(B328<>\"\", IF(INDEX('Full set Core Client Indicator'!$A$3:$AB$351, MATCH(Selection_Hide2!$A328, 'Full set Core Client Indicator'!$A$3:$A$351, 0), MATCH(Selection_Hide2!C$5, 'Full set Core Client Indicator'!$A$3:$AB$3, 0))=\"\", \"\",  INDEX('Full set Core Client Indicator'!$A$3:$AB$351, MATCH(Selection_Hide2!$A328, 'Full set Core Client Indicator'!$A$3:$A$351, 0), MATCH(Selection_Hide2!C$5, 'Full set Core Client Indicator'!$A$3:$AB$3, 0))), \"\")","v":""},{"$f":"IF(C328<>\"\", IF(INDEX('Full set Core Client Indicator'!$A$3:$AB$351, MATCH(Selection_Hide2!$A328, 'Full set Core Client Indicator'!$A$3:$A$351, 0), MATCH(Selection_Hide2!D$5, 'Full set Core Client Indicator'!$A$3:$AB$3, 0))=\"\", \"\",  INDEX('Full set Core Client Indicator'!$A$3:$AB$351, MATCH(Selection_Hide2!$A328, 'Full set Core Client Indicator'!$A$3:$A$351, 0), MATCH(Selection_Hide2!D$5, 'Full set Core Client Indicator'!$A$3:$AB$3, 0))), \"\")","v":""},{"$f":"IF(D328<>\"\", IF(INDEX('Full set Core Client Indicator'!$A$3:$AB$351, MATCH(Selection_Hide2!$A328, 'Full set Core Client Indicator'!$A$3:$A$351, 0), MATCH(Selection_Hide2!E$5, 'Full set Core Client Indicator'!$A$3:$AB$3, 0))=\"\", \"\",  INDEX('Full set Core Client Indicator'!$A$3:$AB$351, MATCH(Selection_Hide2!$A328, 'Full set Core Client Indicator'!$A$3:$A$351, 0), MATCH(Selection_Hide2!E$5, 'Full set Core Client Indicator'!$A$3:$AB$3, 0))), \"\")","v":""},{"$f":"IF(E328<>\"\", IF(INDEX('Full set Core Client Indicator'!$A$3:$AB$351, MATCH(Selection_Hide2!$A328, 'Full set Core Client Indicator'!$A$3:$A$351, 0), MATCH(Selection_Hide2!F$5, 'Full set Core Client Indicator'!$A$3:$AB$3, 0))=\"\", \"\",  INDEX('Full set Core Client Indicator'!$A$3:$AB$351, MATCH(Selection_Hide2!$A328, 'Full set Core Client Indicator'!$A$3:$A$351, 0), MATCH(Selection_Hide2!F$5, 'Full set Core Client Indicator'!$A$3:$AB$3, 0))), \"\")","v":""},{"$f":"IF(F328<>\"\", IF(INDEX('Full set Core Client Indicator'!$A$3:$AB$351, MATCH(Selection_Hide2!$A328, 'Full set Core Client Indicator'!$A$3:$A$351, 0), MATCH(Selection_Hide2!G$5, 'Full set Core Client Indicator'!$A$3:$AB$3, 0))=\"\", \"\",  INDEX('Full set Core Client Indicator'!$A$3:$AB$351, MATCH(Selection_Hide2!$A328, 'Full set Core Client Indicator'!$A$3:$A$351, 0), MATCH(Selection_Hide2!G$5, 'Full set Core Client Indicator'!$A$3:$AB$3, 0))), \"\")","v":""},{"$f":"IF(G328<>\"\", IF(INDEX('Full set Core Client Indicator'!$A$3:$AB$351, MATCH(Selection_Hide2!$A328, 'Full set Core Client Indicator'!$A$3:$A$351, 0), MATCH(Selection_Hide2!H$5, 'Full set Core Client Indicator'!$A$3:$AB$3, 0))=\"\", \"\",  INDEX('Full set Core Client Indicator'!$A$3:$AB$351, MATCH(Selection_Hide2!$A328, 'Full set Core Client Indicator'!$A$3:$A$351, 0), MATCH(Selection_Hide2!H$5, 'Full set Core Client Indicator'!$A$3:$AB$3, 0))), \"\")","v":""},{"$f":"IF(H328<>\"\", IF(INDEX('Full set Core Client Indicator'!$A$3:$AB$351, MATCH(Selection_Hide2!$A328, 'Full set Core Client Indicator'!$A$3:$A$351, 0), MATCH(Selection_Hide2!I$5, 'Full set Core Client Indicator'!$A$3:$AB$3, 0))=\"\", \"\",  INDEX('Full set Core Client Indicator'!$A$3:$AB$351, MATCH(Selection_Hide2!$A328, 'Full set Core Client Indicator'!$A$3:$A$351, 0), MATCH(Selection_Hide2!I$5, 'Full set Core Client Indicator'!$A$3:$AB$3, 0))), \"\")","v":""},{"$f":"IF(I328<>\"\", IF(INDEX('Full set Core Client Indicator'!$A$3:$AB$351, MATCH(Selection_Hide2!$A328, 'Full set Core Client Indicator'!$A$3:$A$351, 0), MATCH(Selection_Hide2!J$5, 'Full set Core Client Indicator'!$A$3:$AB$3, 0))=\"\", \"\",  INDEX('Full set Core Client Indicator'!$A$3:$AB$351, MATCH(Selection_Hide2!$A328, 'Full set Core Client Indicator'!$A$3:$A$351, 0), MATCH(Selection_Hide2!J$5, 'Full set Core Client Indicator'!$A$3:$AB$3, 0))), \"\")","v":""},{"$f":"IF(J328<>\"\", IF(INDEX('Full set Core Client Indicator'!$A$3:$AB$351, MATCH(Selection_Hide2!$A328, 'Full set Core Client Indicator'!$A$3:$A$351, 0), MATCH(Selection_Hide2!K$5, 'Full set Core Client Indicator'!$A$3:$AB$3, 0))=\"\", \"\",  INDEX('Full set Core Client Indicator'!$A$3:$AB$351, MATCH(Selection_Hide2!$A328, 'Full set Core Client Indicator'!$A$3:$A$351, 0), MATCH(Selection_Hide2!K$5, 'Full set Core Client Indicator'!$A$3:$AB$3, 0))), \"\")","v":""},{"$f":"IF(K328<>\"\", IF(INDEX('Full set Core Client Indicator'!$A$3:$AB$351, MATCH(Selection_Hide2!$A328, 'Full set Core Client Indicator'!$A$3:$A$351, 0), MATCH(Selection_Hide2!L$5, 'Full set Core Client Indicator'!$A$3:$AB$3, 0))=\"\", \"\",  INDEX('Full set Core Client Indicator'!$A$3:$AB$351, MATCH(Selection_Hide2!$A328, 'Full set Core Client Indicator'!$A$3:$A$351, 0), MATCH(Selection_Hide2!L$5, 'Full set Core Client Indicator'!$A$3:$AB$3, 0))), \"\")","v":""},{"$f":"IF(L328<>\"\", IF(INDEX('Full set Core Client Indicator'!$A$3:$AB$351, MATCH(Selection_Hide2!$A328, 'Full set Core Client Indicator'!$A$3:$A$351, 0), MATCH(Selection_Hide2!M$5, 'Full set Core Client Indicator'!$A$3:$AB$3, 0))=\"\", \"\",  INDEX('Full set Core Client Indicator'!$A$3:$AB$351, MATCH(Selection_Hide2!$A328, 'Full set Core Client Indicator'!$A$3:$A$351, 0), MATCH(Selection_Hide2!M$5, 'Full set Core Client Indicator'!$A$3:$AB$3, 0))), \"\")","v":""},{"$f":"IF(M328<>\"\", IF(INDEX('Full set Core Client Indicator'!$A$3:$AB$351, MATCH(Selection_Hide2!$A328, 'Full set Core Client Indicator'!$A$3:$A$351, 0), MATCH(Selection_Hide2!N$5, 'Full set Core Client Indicator'!$A$3:$AB$3, 0))=\"\", \"\",  INDEX('Full set Core Client Indicator'!$A$3:$AB$351, MATCH(Selection_Hide2!$A328, 'Full set Core Client Indicator'!$A$3:$A$351, 0), MATCH(Selection_Hide2!N$5, 'Full set Core Client Indicator'!$A$3:$AB$3, 0))), \"\")","v":""},{"$f":"IF(N328<>\"\", IF(INDEX('Full set Core Client Indicator'!$A$3:$AB$351, MATCH(Selection_Hide2!$A328, 'Full set Core Client Indicator'!$A$3:$A$351, 0), MATCH(Selection_Hide2!O$5, 'Full set Core Client Indicator'!$A$3:$AB$3, 0))=\"\", \"\",  INDEX('Full set Core Client Indicator'!$A$3:$AB$351, MATCH(Selection_Hide2!$A328, 'Full set Core Client Indicator'!$A$3:$A$351, 0), MATCH(Selection_Hide2!O$5, 'Full set Core Client Indicator'!$A$3:$AB$3, 0))), \"\")","v":""},{"$f":"IF(O328<>\"\", IF(INDEX('Full set Core Client Indicator'!$A$3:$AB$351, MATCH(Selection_Hide2!$A328, 'Full set Core Client Indicator'!$A$3:$A$351, 0), MATCH(Selection_Hide2!P$5, 'Full set Core Client Indicator'!$A$3:$AB$3, 0))=\"\", \"\",  INDEX('Full set Core Client Indicator'!$A$3:$AB$351, MATCH(Selection_Hide2!$A328, 'Full set Core Client Indicator'!$A$3:$A$351, 0), MATCH(Selection_Hide2!P$5, 'Full set Core Client Indicator'!$A$3:$AB$3, 0))), \"\")","v":""},{"$f":"IF(P328<>\"\", IF(INDEX('Full set Core Client Indicator'!$A$3:$AB$351, MATCH(Selection_Hide2!$A328, 'Full set Core Client Indicator'!$A$3:$A$351, 0), MATCH(Selection_Hide2!Q$5, 'Full set Core Client Indicator'!$A$3:$AB$3, 0))=\"\", \"\",  INDEX('Full set Core Client Indicator'!$A$3:$AB$351, MATCH(Selection_Hide2!$A328, 'Full set Core Client Indicator'!$A$3:$A$351, 0), MATCH(Selection_Hide2!Q$5, 'Full set Core Client Indicator'!$A$3:$AB$3, 0))), \"\")","v":""},{"$f":"IF(Q328<>\"\", IF(INDEX('Full set Core Client Indicator'!$A$3:$AB$351, MATCH(Selection_Hide2!$A328, 'Full set Core Client Indicator'!$A$3:$A$351, 0), MATCH(Selection_Hide2!R$5, 'Full set Core Client Indicator'!$A$3:$AB$3, 0))=\"\", \"\",  INDEX('Full set Core Client Indicator'!$A$3:$AB$351, MATCH(Selection_Hide2!$A328, 'Full set Core Client Indicator'!$A$3:$A$351, 0), MATCH(Selection_Hide2!R$5, 'Full set Core Client Indicator'!$A$3:$AB$3, 0))), \"\")","v":""},{"$f":"IF(R328<>\"\", IF(INDEX('Full set Core Client Indicator'!$A$3:$AB$351, MATCH(Selection_Hide2!$A328, 'Full set Core Client Indicator'!$A$3:$A$351, 0), MATCH(Selection_Hide2!S$5, 'Full set Core Client Indicator'!$A$3:$AB$3, 0))=\"\", \"\",  INDEX('Full set Core Client Indicator'!$A$3:$AB$351, MATCH(Selection_Hide2!$A328, 'Full set Core Client Indicator'!$A$3:$A$351, 0), MATCH(Selection_Hide2!S$5, 'Full set Core Client Indicator'!$A$3:$AB$3, 0))), \"\")","v":""},{"$f":"IF(S328<>\"\", IF(INDEX('Full set Core Client Indicator'!$A$3:$AB$351, MATCH(Selection_Hide2!$A328, 'Full set Core Client Indicator'!$A$3:$A$351, 0), MATCH(Selection_Hide2!T$5, 'Full set Core Client Indicator'!$A$3:$AB$3, 0))=\"\", \"\",  INDEX('Full set Core Client Indicator'!$A$3:$AB$351, MATCH(Selection_Hide2!$A328, 'Full set Core Client Indicator'!$A$3:$A$351, 0), MATCH(Selection_Hide2!T$5, 'Full set Core Client Indicator'!$A$3:$AB$3, 0))), \"\")","v":""},{"$f":"IF(T328<>\"\", IF(INDEX('Full set Core Client Indicator'!$A$3:$AB$351, MATCH(Selection_Hide2!$A328, 'Full set Core Client Indicator'!$A$3:$A$351, 0), MATCH(Selection_Hide2!U$5, 'Full set Core Client Indicator'!$A$3:$AB$3, 0))=\"\", \"\",  INDEX('Full set Core Client Indicator'!$A$3:$AB$351, MATCH(Selection_Hide2!$A328, 'Full set Core Client Indicator'!$A$3:$A$351, 0), MATCH(Selection_Hide2!U$5, 'Full set Core Client Indicator'!$A$3:$AB$3, 0))), \"\")","v":""},{"$f":"IF(U328<>\"\", IF(INDEX('Full set Core Client Indicator'!$A$3:$AB$351, MATCH(Selection_Hide2!$A328, 'Full set Core Client Indicator'!$A$3:$A$351, 0), MATCH(Selection_Hide2!V$5, 'Full set Core Client Indicator'!$A$3:$AB$3, 0))=\"\", \"\",  INDEX('Full set Core Client Indicator'!$A$3:$AB$351, MATCH(Selection_Hide2!$A328, 'Full set Core Client Indicator'!$A$3:$A$351, 0), MATCH(Selection_Hide2!V$5, 'Full set Core Client Indicator'!$A$3:$AB$3, 0))), \"\")","v":""},{"$f":"IF(V328<>\"\", IF(INDEX('Full set Core Client Indicator'!$A$3:$AB$351, MATCH(Selection_Hide2!$A328, 'Full set Core Client Indicator'!$A$3:$A$351, 0), MATCH(Selection_Hide2!W$5, 'Full set Core Client Indicator'!$A$3:$AB$3, 0))=\"\", \"\",  INDEX('Full set Core Client Indicator'!$A$3:$AB$351, MATCH(Selection_Hide2!$A328, 'Full set Core Client Indicator'!$A$3:$A$351, 0), MATCH(Selection_Hide2!W$5, 'Full set Core Client Indicator'!$A$3:$AB$3, 0))), \"\")","v":""},{"$f":"IF(W328<>\"\", IF(INDEX('Full set Core Client Indicator'!$A$3:$AB$351, MATCH(Selection_Hide2!$A328, 'Full set Core Client Indicator'!$A$3:$A$351, 0), MATCH(Selection_Hide2!X$5, 'Full set Core Client Indicator'!$A$3:$AB$3, 0))=\"\", \"\",  INDEX('Full set Core Client Indicator'!$A$3:$AB$351, MATCH(Selection_Hide2!$A328, 'Full set Core Client Indicator'!$A$3:$A$351, 0), MATCH(Selection_Hide2!X$5, 'Full set Core Client Indicator'!$A$3:$AB$3, 0))), \"\")","v":""},{"$f":"IF(X328<>\"\", IF(INDEX('Full set Core Client Indicator'!$A$3:$AB$351, MATCH(Selection_Hide2!$A328, 'Full set Core Client Indicator'!$A$3:$A$351, 0), MATCH(Selection_Hide2!Y$5, 'Full set Core Client Indicator'!$A$3:$AB$3, 0))=\"\", \"\",  INDEX('Full set Core Client Indicator'!$A$3:$AB$351, MATCH(Selection_Hide2!$A328, 'Full set Core Client Indicator'!$A$3:$A$351, 0), MATCH(Selection_Hide2!Y$5, 'Full set Core Client Indicator'!$A$3:$AB$3, 0))), \"\")","v":""},{"$f":"IF(Y328<>\"\", IF(INDEX('Full set Core Client Indicator'!$A$3:$AB$351, MATCH(Selection_Hide2!$A328, 'Full set Core Client Indicator'!$A$3:$A$351, 0), MATCH(Selection_Hide2!Z$5, 'Full set Core Client Indicator'!$A$3:$AB$3, 0))=\"\", \"\",  INDEX('Full set Core Client Indicator'!$A$3:$AB$351, MATCH(Selection_Hide2!$A328, 'Full set Core Client Indicator'!$A$3:$A$351, 0), MATCH(Selection_Hide2!Z$5, 'Full set Core Client Indicator'!$A$3:$AB$3, 0))), \"\")","v":""},{"$f":"IF(Z328<>\"\", IF(INDEX('Full set Core Client Indicator'!$A$3:$AB$351, MATCH(Selection_Hide2!$A328, 'Full set Core Client Indicator'!$A$3:$A$351, 0), MATCH(Selection_Hide2!AA$5, 'Full set Core Client Indicator'!$A$3:$AB$3, 0))=\"\", \"\",  INDEX('Full set Core Client Indicator'!$A$3:$AB$351, MATCH(Selection_Hide2!$A328, 'Full set Core Client Indicator'!$A$3:$A$351, 0), MATCH(Selection_Hide2!AA$5, 'Full set Core Client Indicator'!$A$3:$AB$3, 0))), \"\")","v":""},{"$f":"IF(AA328<>\"\", IF(INDEX('Full set Core Client Indicator'!$A$3:$AB$351, MATCH(Selection_Hide2!$A328, 'Full set Core Client Indicator'!$A$3:$A$351, 0), MATCH(Selection_Hide2!AB$5, 'Full set Core Client Indicator'!$A$3:$AB$3, 0))=\"\", \"\",  INDEX('Full set Core Client Indicator'!$A$3:$AB$351, MATCH(Selection_Hide2!$A328, 'Full set Core Client Indicator'!$A$3:$A$351, 0), MATCH(Selection_Hide2!AB$5, 'Full set Core Client Indicator'!$A$3:$AB$3, 0))), \"\")","v":""}]
[{"$f":"IF(AND(Selection_Hide1!C327<>0, Selection_Hide1!C327<>\"Grand Total\"), Selection_Hide1!C327, \"\")","v":""},{"$f":"IF(A329<>\"\", IF(INDEX('Full set Core Client Indicator'!$A$3:$AB$351, MATCH(Selection_Hide2!$A329, 'Full set Core Client Indicator'!$A$3:$A$351, 0), MATCH(Selection_Hide2!B$5, 'Full set Core Client Indicator'!$A$3:$AB$3, 0))=\"\", \"\",  INDEX('Full set Core Client Indicator'!$A$3:$AB$351, MATCH(Selection_Hide2!$A329, 'Full set Core Client Indicator'!$A$3:$A$351, 0), MATCH(Selection_Hide2!B$5, 'Full set Core Client Indicator'!$A$3:$AB$3, 0))), \"\")","v":""},{"$f":"IF(B329<>\"\", IF(INDEX('Full set Core Client Indicator'!$A$3:$AB$351, MATCH(Selection_Hide2!$A329, 'Full set Core Client Indicator'!$A$3:$A$351, 0), MATCH(Selection_Hide2!C$5, 'Full set Core Client Indicator'!$A$3:$AB$3, 0))=\"\", \"\",  INDEX('Full set Core Client Indicator'!$A$3:$AB$351, MATCH(Selection_Hide2!$A329, 'Full set Core Client Indicator'!$A$3:$A$351, 0), MATCH(Selection_Hide2!C$5, 'Full set Core Client Indicator'!$A$3:$AB$3, 0))), \"\")","v":""},{"$f":"IF(C329<>\"\", IF(INDEX('Full set Core Client Indicator'!$A$3:$AB$351, MATCH(Selection_Hide2!$A329, 'Full set Core Client Indicator'!$A$3:$A$351, 0), MATCH(Selection_Hide2!D$5, 'Full set Core Client Indicator'!$A$3:$AB$3, 0))=\"\", \"\",  INDEX('Full set Core Client Indicator'!$A$3:$AB$351, MATCH(Selection_Hide2!$A329, 'Full set Core Client Indicator'!$A$3:$A$351, 0), MATCH(Selection_Hide2!D$5, 'Full set Core Client Indicator'!$A$3:$AB$3, 0))), \"\")","v":""},{"$f":"IF(D329<>\"\", IF(INDEX('Full set Core Client Indicator'!$A$3:$AB$351, MATCH(Selection_Hide2!$A329, 'Full set Core Client Indicator'!$A$3:$A$351, 0), MATCH(Selection_Hide2!E$5, 'Full set Core Client Indicator'!$A$3:$AB$3, 0))=\"\", \"\",  INDEX('Full set Core Client Indicator'!$A$3:$AB$351, MATCH(Selection_Hide2!$A329, 'Full set Core Client Indicator'!$A$3:$A$351, 0), MATCH(Selection_Hide2!E$5, 'Full set Core Client Indicator'!$A$3:$AB$3, 0))), \"\")","v":""},{"$f":"IF(E329<>\"\", IF(INDEX('Full set Core Client Indicator'!$A$3:$AB$351, MATCH(Selection_Hide2!$A329, 'Full set Core Client Indicator'!$A$3:$A$351, 0), MATCH(Selection_Hide2!F$5, 'Full set Core Client Indicator'!$A$3:$AB$3, 0))=\"\", \"\",  INDEX('Full set Core Client Indicator'!$A$3:$AB$351, MATCH(Selection_Hide2!$A329, 'Full set Core Client Indicator'!$A$3:$A$351, 0), MATCH(Selection_Hide2!F$5, 'Full set Core Client Indicator'!$A$3:$AB$3, 0))), \"\")","v":""},{"$f":"IF(F329<>\"\", IF(INDEX('Full set Core Client Indicator'!$A$3:$AB$351, MATCH(Selection_Hide2!$A329, 'Full set Core Client Indicator'!$A$3:$A$351, 0), MATCH(Selection_Hide2!G$5, 'Full set Core Client Indicator'!$A$3:$AB$3, 0))=\"\", \"\",  INDEX('Full set Core Client Indicator'!$A$3:$AB$351, MATCH(Selection_Hide2!$A329, 'Full set Core Client Indicator'!$A$3:$A$351, 0), MATCH(Selection_Hide2!G$5, 'Full set Core Client Indicator'!$A$3:$AB$3, 0))), \"\")","v":""},{"$f":"IF(G329<>\"\", IF(INDEX('Full set Core Client Indicator'!$A$3:$AB$351, MATCH(Selection_Hide2!$A329, 'Full set Core Client Indicator'!$A$3:$A$351, 0), MATCH(Selection_Hide2!H$5, 'Full set Core Client Indicator'!$A$3:$AB$3, 0))=\"\", \"\",  INDEX('Full set Core Client Indicator'!$A$3:$AB$351, MATCH(Selection_Hide2!$A329, 'Full set Core Client Indicator'!$A$3:$A$351, 0), MATCH(Selection_Hide2!H$5, 'Full set Core Client Indicator'!$A$3:$AB$3, 0))), \"\")","v":""},{"$f":"IF(H329<>\"\", IF(INDEX('Full set Core Client Indicator'!$A$3:$AB$351, MATCH(Selection_Hide2!$A329, 'Full set Core Client Indicator'!$A$3:$A$351, 0), MATCH(Selection_Hide2!I$5, 'Full set Core Client Indicator'!$A$3:$AB$3, 0))=\"\", \"\",  INDEX('Full set Core Client Indicator'!$A$3:$AB$351, MATCH(Selection_Hide2!$A329, 'Full set Core Client Indicator'!$A$3:$A$351, 0), MATCH(Selection_Hide2!I$5, 'Full set Core Client Indicator'!$A$3:$AB$3, 0))), \"\")","v":""},{"$f":"IF(I329<>\"\", IF(INDEX('Full set Core Client Indicator'!$A$3:$AB$351, MATCH(Selection_Hide2!$A329, 'Full set Core Client Indicator'!$A$3:$A$351, 0), MATCH(Selection_Hide2!J$5, 'Full set Core Client Indicator'!$A$3:$AB$3, 0))=\"\", \"\",  INDEX('Full set Core Client Indicator'!$A$3:$AB$351, MATCH(Selection_Hide2!$A329, 'Full set Core Client Indicator'!$A$3:$A$351, 0), MATCH(Selection_Hide2!J$5, 'Full set Core Client Indicator'!$A$3:$AB$3, 0))), \"\")","v":""},{"$f":"IF(J329<>\"\", IF(INDEX('Full set Core Client Indicator'!$A$3:$AB$351, MATCH(Selection_Hide2!$A329, 'Full set Core Client Indicator'!$A$3:$A$351, 0), MATCH(Selection_Hide2!K$5, 'Full set Core Client Indicator'!$A$3:$AB$3, 0))=\"\", \"\",  INDEX('Full set Core Client Indicator'!$A$3:$AB$351, MATCH(Selection_Hide2!$A329, 'Full set Core Client Indicator'!$A$3:$A$351, 0), MATCH(Selection_Hide2!K$5, 'Full set Core Client Indicator'!$A$3:$AB$3, 0))), \"\")","v":""},{"$f":"IF(K329<>\"\", IF(INDEX('Full set Core Client Indicator'!$A$3:$AB$351, MATCH(Selection_Hide2!$A329, 'Full set Core Client Indicator'!$A$3:$A$351, 0), MATCH(Selection_Hide2!L$5, 'Full set Core Client Indicator'!$A$3:$AB$3, 0))=\"\", \"\",  INDEX('Full set Core Client Indicator'!$A$3:$AB$351, MATCH(Selection_Hide2!$A329, 'Full set Core Client Indicator'!$A$3:$A$351, 0), MATCH(Selection_Hide2!L$5, 'Full set Core Client Indicator'!$A$3:$AB$3, 0))), \"\")","v":""},{"$f":"IF(L329<>\"\", IF(INDEX('Full set Core Client Indicator'!$A$3:$AB$351, MATCH(Selection_Hide2!$A329, 'Full set Core Client Indicator'!$A$3:$A$351, 0), MATCH(Selection_Hide2!M$5, 'Full set Core Client Indicator'!$A$3:$AB$3, 0))=\"\", \"\",  INDEX('Full set Core Client Indicator'!$A$3:$AB$351, MATCH(Selection_Hide2!$A329, 'Full set Core Client Indicator'!$A$3:$A$351, 0), MATCH(Selection_Hide2!M$5, 'Full set Core Client Indicator'!$A$3:$AB$3, 0))), \"\")","v":""},{"$f":"IF(M329<>\"\", IF(INDEX('Full set Core Client Indicator'!$A$3:$AB$351, MATCH(Selection_Hide2!$A329, 'Full set Core Client Indicator'!$A$3:$A$351, 0), MATCH(Selection_Hide2!N$5, 'Full set Core Client Indicator'!$A$3:$AB$3, 0))=\"\", \"\",  INDEX('Full set Core Client Indicator'!$A$3:$AB$351, MATCH(Selection_Hide2!$A329, 'Full set Core Client Indicator'!$A$3:$A$351, 0), MATCH(Selection_Hide2!N$5, 'Full set Core Client Indicator'!$A$3:$AB$3, 0))), \"\")","v":""},{"$f":"IF(N329<>\"\", IF(INDEX('Full set Core Client Indicator'!$A$3:$AB$351, MATCH(Selection_Hide2!$A329, 'Full set Core Client Indicator'!$A$3:$A$351, 0), MATCH(Selection_Hide2!O$5, 'Full set Core Client Indicator'!$A$3:$AB$3, 0))=\"\", \"\",  INDEX('Full set Core Client Indicator'!$A$3:$AB$351, MATCH(Selection_Hide2!$A329, 'Full set Core Client Indicator'!$A$3:$A$351, 0), MATCH(Selection_Hide2!O$5, 'Full set Core Client Indicator'!$A$3:$AB$3, 0))), \"\")","v":""},{"$f":"IF(O329<>\"\", IF(INDEX('Full set Core Client Indicator'!$A$3:$AB$351, MATCH(Selection_Hide2!$A329, 'Full set Core Client Indicator'!$A$3:$A$351, 0), MATCH(Selection_Hide2!P$5, 'Full set Core Client Indicator'!$A$3:$AB$3, 0))=\"\", \"\",  INDEX('Full set Core Client Indicator'!$A$3:$AB$351, MATCH(Selection_Hide2!$A329, 'Full set Core Client Indicator'!$A$3:$A$351, 0), MATCH(Selection_Hide2!P$5, 'Full set Core Client Indicator'!$A$3:$AB$3, 0))), \"\")","v":""},{"$f":"IF(P329<>\"\", IF(INDEX('Full set Core Client Indicator'!$A$3:$AB$351, MATCH(Selection_Hide2!$A329, 'Full set Core Client Indicator'!$A$3:$A$351, 0), MATCH(Selection_Hide2!Q$5, 'Full set Core Client Indicator'!$A$3:$AB$3, 0))=\"\", \"\",  INDEX('Full set Core Client Indicator'!$A$3:$AB$351, MATCH(Selection_Hide2!$A329, 'Full set Core Client Indicator'!$A$3:$A$351, 0), MATCH(Selection_Hide2!Q$5, 'Full set Core Client Indicator'!$A$3:$AB$3, 0))), \"\")","v":""},{"$f":"IF(Q329<>\"\", IF(INDEX('Full set Core Client Indicator'!$A$3:$AB$351, MATCH(Selection_Hide2!$A329, 'Full set Core Client Indicator'!$A$3:$A$351, 0), MATCH(Selection_Hide2!R$5, 'Full set Core Client Indicator'!$A$3:$AB$3, 0))=\"\", \"\",  INDEX('Full set Core Client Indicator'!$A$3:$AB$351, MATCH(Selection_Hide2!$A329, 'Full set Core Client Indicator'!$A$3:$A$351, 0), MATCH(Selection_Hide2!R$5, 'Full set Core Client Indicator'!$A$3:$AB$3, 0))), \"\")","v":""},{"$f":"IF(R329<>\"\", IF(INDEX('Full set Core Client Indicator'!$A$3:$AB$351, MATCH(Selection_Hide2!$A329, 'Full set Core Client Indicator'!$A$3:$A$351, 0), MATCH(Selection_Hide2!S$5, 'Full set Core Client Indicator'!$A$3:$AB$3, 0))=\"\", \"\",  INDEX('Full set Core Client Indicator'!$A$3:$AB$351, MATCH(Selection_Hide2!$A329, 'Full set Core Client Indicator'!$A$3:$A$351, 0), MATCH(Selection_Hide2!S$5, 'Full set Core Client Indicator'!$A$3:$AB$3, 0))), \"\")","v":""},{"$f":"IF(S329<>\"\", IF(INDEX('Full set Core Client Indicator'!$A$3:$AB$351, MATCH(Selection_Hide2!$A329, 'Full set Core Client Indicator'!$A$3:$A$351, 0), MATCH(Selection_Hide2!T$5, 'Full set Core Client Indicator'!$A$3:$AB$3, 0))=\"\", \"\",  INDEX('Full set Core Client Indicator'!$A$3:$AB$351, MATCH(Selection_Hide2!$A329, 'Full set Core Client Indicator'!$A$3:$A$351, 0), MATCH(Selection_Hide2!T$5, 'Full set Core Client Indicator'!$A$3:$AB$3, 0))), \"\")","v":""},{"$f":"IF(T329<>\"\", IF(INDEX('Full set Core Client Indicator'!$A$3:$AB$351, MATCH(Selection_Hide2!$A329, 'Full set Core Client Indicator'!$A$3:$A$351, 0), MATCH(Selection_Hide2!U$5, 'Full set Core Client Indicator'!$A$3:$AB$3, 0))=\"\", \"\",  INDEX('Full set Core Client Indicator'!$A$3:$AB$351, MATCH(Selection_Hide2!$A329, 'Full set Core Client Indicator'!$A$3:$A$351, 0), MATCH(Selection_Hide2!U$5, 'Full set Core Client Indicator'!$A$3:$AB$3, 0))), \"\")","v":""},{"$f":"IF(U329<>\"\", IF(INDEX('Full set Core Client Indicator'!$A$3:$AB$351, MATCH(Selection_Hide2!$A329, 'Full set Core Client Indicator'!$A$3:$A$351, 0), MATCH(Selection_Hide2!V$5, 'Full set Core Client Indicator'!$A$3:$AB$3, 0))=\"\", \"\",  INDEX('Full set Core Client Indicator'!$A$3:$AB$351, MATCH(Selection_Hide2!$A329, 'Full set Core Client Indicator'!$A$3:$A$351, 0), MATCH(Selection_Hide2!V$5, 'Full set Core Client Indicator'!$A$3:$AB$3, 0))), \"\")","v":""},{"$f":"IF(V329<>\"\", IF(INDEX('Full set Core Client Indicator'!$A$3:$AB$351, MATCH(Selection_Hide2!$A329, 'Full set Core Client Indicator'!$A$3:$A$351, 0), MATCH(Selection_Hide2!W$5, 'Full set Core Client Indicator'!$A$3:$AB$3, 0))=\"\", \"\",  INDEX('Full set Core Client Indicator'!$A$3:$AB$351, MATCH(Selection_Hide2!$A329, 'Full set Core Client Indicator'!$A$3:$A$351, 0), MATCH(Selection_Hide2!W$5, 'Full set Core Client Indicator'!$A$3:$AB$3, 0))), \"\")","v":""},{"$f":"IF(W329<>\"\", IF(INDEX('Full set Core Client Indicator'!$A$3:$AB$351, MATCH(Selection_Hide2!$A329, 'Full set Core Client Indicator'!$A$3:$A$351, 0), MATCH(Selection_Hide2!X$5, 'Full set Core Client Indicator'!$A$3:$AB$3, 0))=\"\", \"\",  INDEX('Full set Core Client Indicator'!$A$3:$AB$351, MATCH(Selection_Hide2!$A329, 'Full set Core Client Indicator'!$A$3:$A$351, 0), MATCH(Selection_Hide2!X$5, 'Full set Core Client Indicator'!$A$3:$AB$3, 0))), \"\")","v":""},{"$f":"IF(X329<>\"\", IF(INDEX('Full set Core Client Indicator'!$A$3:$AB$351, MATCH(Selection_Hide2!$A329, 'Full set Core Client Indicator'!$A$3:$A$351, 0), MATCH(Selection_Hide2!Y$5, 'Full set Core Client Indicator'!$A$3:$AB$3, 0))=\"\", \"\",  INDEX('Full set Core Client Indicator'!$A$3:$AB$351, MATCH(Selection_Hide2!$A329, 'Full set Core Client Indicator'!$A$3:$A$351, 0), MATCH(Selection_Hide2!Y$5, 'Full set Core Client Indicator'!$A$3:$AB$3, 0))), \"\")","v":""},{"$f":"IF(Y329<>\"\", IF(INDEX('Full set Core Client Indicator'!$A$3:$AB$351, MATCH(Selection_Hide2!$A329, 'Full set Core Client Indicator'!$A$3:$A$351, 0), MATCH(Selection_Hide2!Z$5, 'Full set Core Client Indicator'!$A$3:$AB$3, 0))=\"\", \"\",  INDEX('Full set Core Client Indicator'!$A$3:$AB$351, MATCH(Selection_Hide2!$A329, 'Full set Core Client Indicator'!$A$3:$A$351, 0), MATCH(Selection_Hide2!Z$5, 'Full set Core Client Indicator'!$A$3:$AB$3, 0))), \"\")","v":""},{"$f":"IF(Z329<>\"\", IF(INDEX('Full set Core Client Indicator'!$A$3:$AB$351, MATCH(Selection_Hide2!$A329, 'Full set Core Client Indicator'!$A$3:$A$351, 0), MATCH(Selection_Hide2!AA$5, 'Full set Core Client Indicator'!$A$3:$AB$3, 0))=\"\", \"\",  INDEX('Full set Core Client Indicator'!$A$3:$AB$351, MATCH(Selection_Hide2!$A329, 'Full set Core Client Indicator'!$A$3:$A$351, 0), MATCH(Selection_Hide2!AA$5, 'Full set Core Client Indicator'!$A$3:$AB$3, 0))), \"\")","v":""},{"$f":"IF(AA329<>\"\", IF(INDEX('Full set Core Client Indicator'!$A$3:$AB$351, MATCH(Selection_Hide2!$A329, 'Full set Core Client Indicator'!$A$3:$A$351, 0), MATCH(Selection_Hide2!AB$5, 'Full set Core Client Indicator'!$A$3:$AB$3, 0))=\"\", \"\",  INDEX('Full set Core Client Indicator'!$A$3:$AB$351, MATCH(Selection_Hide2!$A329, 'Full set Core Client Indicator'!$A$3:$A$351, 0), MATCH(Selection_Hide2!AB$5, 'Full set Core Client Indicator'!$A$3:$AB$3, 0))), \"\")","v":""}]
[{"$f":"IF(AND(Selection_Hide1!C328<>0, Selection_Hide1!C328<>\"Grand Total\"), Selection_Hide1!C328, \"\")","v":""},{"$f":"IF(A330<>\"\", IF(INDEX('Full set Core Client Indicator'!$A$3:$AB$351, MATCH(Selection_Hide2!$A330, 'Full set Core Client Indicator'!$A$3:$A$351, 0), MATCH(Selection_Hide2!B$5, 'Full set Core Client Indicator'!$A$3:$AB$3, 0))=\"\", \"\",  INDEX('Full set Core Client Indicator'!$A$3:$AB$351, MATCH(Selection_Hide2!$A330, 'Full set Core Client Indicator'!$A$3:$A$351, 0), MATCH(Selection_Hide2!B$5, 'Full set Core Client Indicator'!$A$3:$AB$3, 0))), \"\")","v":""},{"$f":"IF(B330<>\"\", IF(INDEX('Full set Core Client Indicator'!$A$3:$AB$351, MATCH(Selection_Hide2!$A330, 'Full set Core Client Indicator'!$A$3:$A$351, 0), MATCH(Selection_Hide2!C$5, 'Full set Core Client Indicator'!$A$3:$AB$3, 0))=\"\", \"\",  INDEX('Full set Core Client Indicator'!$A$3:$AB$351, MATCH(Selection_Hide2!$A330, 'Full set Core Client Indicator'!$A$3:$A$351, 0), MATCH(Selection_Hide2!C$5, 'Full set Core Client Indicator'!$A$3:$AB$3, 0))), \"\")","v":""},{"$f":"IF(C330<>\"\", IF(INDEX('Full set Core Client Indicator'!$A$3:$AB$351, MATCH(Selection_Hide2!$A330, 'Full set Core Client Indicator'!$A$3:$A$351, 0), MATCH(Selection_Hide2!D$5, 'Full set Core Client Indicator'!$A$3:$AB$3, 0))=\"\", \"\",  INDEX('Full set Core Client Indicator'!$A$3:$AB$351, MATCH(Selection_Hide2!$A330, 'Full set Core Client Indicator'!$A$3:$A$351, 0), MATCH(Selection_Hide2!D$5, 'Full set Core Client Indicator'!$A$3:$AB$3, 0))), \"\")","v":""},{"$f":"IF(D330<>\"\", IF(INDEX('Full set Core Client Indicator'!$A$3:$AB$351, MATCH(Selection_Hide2!$A330, 'Full set Core Client Indicator'!$A$3:$A$351, 0), MATCH(Selection_Hide2!E$5, 'Full set Core Client Indicator'!$A$3:$AB$3, 0))=\"\", \"\",  INDEX('Full set Core Client Indicator'!$A$3:$AB$351, MATCH(Selection_Hide2!$A330, 'Full set Core Client Indicator'!$A$3:$A$351, 0), MATCH(Selection_Hide2!E$5, 'Full set Core Client Indicator'!$A$3:$AB$3, 0))), \"\")","v":""},{"$f":"IF(E330<>\"\", IF(INDEX('Full set Core Client Indicator'!$A$3:$AB$351, MATCH(Selection_Hide2!$A330, 'Full set Core Client Indicator'!$A$3:$A$351, 0), MATCH(Selection_Hide2!F$5, 'Full set Core Client Indicator'!$A$3:$AB$3, 0))=\"\", \"\",  INDEX('Full set Core Client Indicator'!$A$3:$AB$351, MATCH(Selection_Hide2!$A330, 'Full set Core Client Indicator'!$A$3:$A$351, 0), MATCH(Selection_Hide2!F$5, 'Full set Core Client Indicator'!$A$3:$AB$3, 0))), \"\")","v":""},{"$f":"IF(F330<>\"\", IF(INDEX('Full set Core Client Indicator'!$A$3:$AB$351, MATCH(Selection_Hide2!$A330, 'Full set Core Client Indicator'!$A$3:$A$351, 0), MATCH(Selection_Hide2!G$5, 'Full set Core Client Indicator'!$A$3:$AB$3, 0))=\"\", \"\",  INDEX('Full set Core Client Indicator'!$A$3:$AB$351, MATCH(Selection_Hide2!$A330, 'Full set Core Client Indicator'!$A$3:$A$351, 0), MATCH(Selection_Hide2!G$5, 'Full set Core Client Indicator'!$A$3:$AB$3, 0))), \"\")","v":""},{"$f":"IF(G330<>\"\", IF(INDEX('Full set Core Client Indicator'!$A$3:$AB$351, MATCH(Selection_Hide2!$A330, 'Full set Core Client Indicator'!$A$3:$A$351, 0), MATCH(Selection_Hide2!H$5, 'Full set Core Client Indicator'!$A$3:$AB$3, 0))=\"\", \"\",  INDEX('Full set Core Client Indicator'!$A$3:$AB$351, MATCH(Selection_Hide2!$A330, 'Full set Core Client Indicator'!$A$3:$A$351, 0), MATCH(Selection_Hide2!H$5, 'Full set Core Client Indicator'!$A$3:$AB$3, 0))), \"\")","v":""},{"$f":"IF(H330<>\"\", IF(INDEX('Full set Core Client Indicator'!$A$3:$AB$351, MATCH(Selection_Hide2!$A330, 'Full set Core Client Indicator'!$A$3:$A$351, 0), MATCH(Selection_Hide2!I$5, 'Full set Core Client Indicator'!$A$3:$AB$3, 0))=\"\", \"\",  INDEX('Full set Core Client Indicator'!$A$3:$AB$351, MATCH(Selection_Hide2!$A330, 'Full set Core Client Indicator'!$A$3:$A$351, 0), MATCH(Selection_Hide2!I$5, 'Full set Core Client Indicator'!$A$3:$AB$3, 0))), \"\")","v":""},{"$f":"IF(I330<>\"\", IF(INDEX('Full set Core Client Indicator'!$A$3:$AB$351, MATCH(Selection_Hide2!$A330, 'Full set Core Client Indicator'!$A$3:$A$351, 0), MATCH(Selection_Hide2!J$5, 'Full set Core Client Indicator'!$A$3:$AB$3, 0))=\"\", \"\",  INDEX('Full set Core Client Indicator'!$A$3:$AB$351, MATCH(Selection_Hide2!$A330, 'Full set Core Client Indicator'!$A$3:$A$351, 0), MATCH(Selection_Hide2!J$5, 'Full set Core Client Indicator'!$A$3:$AB$3, 0))), \"\")","v":""},{"$f":"IF(J330<>\"\", IF(INDEX('Full set Core Client Indicator'!$A$3:$AB$351, MATCH(Selection_Hide2!$A330, 'Full set Core Client Indicator'!$A$3:$A$351, 0), MATCH(Selection_Hide2!K$5, 'Full set Core Client Indicator'!$A$3:$AB$3, 0))=\"\", \"\",  INDEX('Full set Core Client Indicator'!$A$3:$AB$351, MATCH(Selection_Hide2!$A330, 'Full set Core Client Indicator'!$A$3:$A$351, 0), MATCH(Selection_Hide2!K$5, 'Full set Core Client Indicator'!$A$3:$AB$3, 0))), \"\")","v":""},{"$f":"IF(K330<>\"\", IF(INDEX('Full set Core Client Indicator'!$A$3:$AB$351, MATCH(Selection_Hide2!$A330, 'Full set Core Client Indicator'!$A$3:$A$351, 0), MATCH(Selection_Hide2!L$5, 'Full set Core Client Indicator'!$A$3:$AB$3, 0))=\"\", \"\",  INDEX('Full set Core Client Indicator'!$A$3:$AB$351, MATCH(Selection_Hide2!$A330, 'Full set Core Client Indicator'!$A$3:$A$351, 0), MATCH(Selection_Hide2!L$5, 'Full set Core Client Indicator'!$A$3:$AB$3, 0))), \"\")","v":""},{"$f":"IF(L330<>\"\", IF(INDEX('Full set Core Client Indicator'!$A$3:$AB$351, MATCH(Selection_Hide2!$A330, 'Full set Core Client Indicator'!$A$3:$A$351, 0), MATCH(Selection_Hide2!M$5, 'Full set Core Client Indicator'!$A$3:$AB$3, 0))=\"\", \"\",  INDEX('Full set Core Client Indicator'!$A$3:$AB$351, MATCH(Selection_Hide2!$A330, 'Full set Core Client Indicator'!$A$3:$A$351, 0), MATCH(Selection_Hide2!M$5, 'Full set Core Client Indicator'!$A$3:$AB$3, 0))), \"\")","v":""},{"$f":"IF(M330<>\"\", IF(INDEX('Full set Core Client Indicator'!$A$3:$AB$351, MATCH(Selection_Hide2!$A330, 'Full set Core Client Indicator'!$A$3:$A$351, 0), MATCH(Selection_Hide2!N$5, 'Full set Core Client Indicator'!$A$3:$AB$3, 0))=\"\", \"\",  INDEX('Full set Core Client Indicator'!$A$3:$AB$351, MATCH(Selection_Hide2!$A330, 'Full set Core Client Indicator'!$A$3:$A$351, 0), MATCH(Selection_Hide2!N$5, 'Full set Core Client Indicator'!$A$3:$AB$3, 0))), \"\")","v":""},{"$f":"IF(N330<>\"\", IF(INDEX('Full set Core Client Indicator'!$A$3:$AB$351, MATCH(Selection_Hide2!$A330, 'Full set Core Client Indicator'!$A$3:$A$351, 0), MATCH(Selection_Hide2!O$5, 'Full set Core Client Indicator'!$A$3:$AB$3, 0))=\"\", \"\",  INDEX('Full set Core Client Indicator'!$A$3:$AB$351, MATCH(Selection_Hide2!$A330, 'Full set Core Client Indicator'!$A$3:$A$351, 0), MATCH(Selection_Hide2!O$5, 'Full set Core Client Indicator'!$A$3:$AB$3, 0))), \"\")","v":""},{"$f":"IF(O330<>\"\", IF(INDEX('Full set Core Client Indicator'!$A$3:$AB$351, MATCH(Selection_Hide2!$A330, 'Full set Core Client Indicator'!$A$3:$A$351, 0), MATCH(Selection_Hide2!P$5, 'Full set Core Client Indicator'!$A$3:$AB$3, 0))=\"\", \"\",  INDEX('Full set Core Client Indicator'!$A$3:$AB$351, MATCH(Selection_Hide2!$A330, 'Full set Core Client Indicator'!$A$3:$A$351, 0), MATCH(Selection_Hide2!P$5, 'Full set Core Client Indicator'!$A$3:$AB$3, 0))), \"\")","v":""},{"$f":"IF(P330<>\"\", IF(INDEX('Full set Core Client Indicator'!$A$3:$AB$351, MATCH(Selection_Hide2!$A330, 'Full set Core Client Indicator'!$A$3:$A$351, 0), MATCH(Selection_Hide2!Q$5, 'Full set Core Client Indicator'!$A$3:$AB$3, 0))=\"\", \"\",  INDEX('Full set Core Client Indicator'!$A$3:$AB$351, MATCH(Selection_Hide2!$A330, 'Full set Core Client Indicator'!$A$3:$A$351, 0), MATCH(Selection_Hide2!Q$5, 'Full set Core Client Indicator'!$A$3:$AB$3, 0))), \"\")","v":""},{"$f":"IF(Q330<>\"\", IF(INDEX('Full set Core Client Indicator'!$A$3:$AB$351, MATCH(Selection_Hide2!$A330, 'Full set Core Client Indicator'!$A$3:$A$351, 0), MATCH(Selection_Hide2!R$5, 'Full set Core Client Indicator'!$A$3:$AB$3, 0))=\"\", \"\",  INDEX('Full set Core Client Indicator'!$A$3:$AB$351, MATCH(Selection_Hide2!$A330, 'Full set Core Client Indicator'!$A$3:$A$351, 0), MATCH(Selection_Hide2!R$5, 'Full set Core Client Indicator'!$A$3:$AB$3, 0))), \"\")","v":""},{"$f":"IF(R330<>\"\", IF(INDEX('Full set Core Client Indicator'!$A$3:$AB$351, MATCH(Selection_Hide2!$A330, 'Full set Core Client Indicator'!$A$3:$A$351, 0), MATCH(Selection_Hide2!S$5, 'Full set Core Client Indicator'!$A$3:$AB$3, 0))=\"\", \"\",  INDEX('Full set Core Client Indicator'!$A$3:$AB$351, MATCH(Selection_Hide2!$A330, 'Full set Core Client Indicator'!$A$3:$A$351, 0), MATCH(Selection_Hide2!S$5, 'Full set Core Client Indicator'!$A$3:$AB$3, 0))), \"\")","v":""},{"$f":"IF(S330<>\"\", IF(INDEX('Full set Core Client Indicator'!$A$3:$AB$351, MATCH(Selection_Hide2!$A330, 'Full set Core Client Indicator'!$A$3:$A$351, 0), MATCH(Selection_Hide2!T$5, 'Full set Core Client Indicator'!$A$3:$AB$3, 0))=\"\", \"\",  INDEX('Full set Core Client Indicator'!$A$3:$AB$351, MATCH(Selection_Hide2!$A330, 'Full set Core Client Indicator'!$A$3:$A$351, 0), MATCH(Selection_Hide2!T$5, 'Full set Core Client Indicator'!$A$3:$AB$3, 0))), \"\")","v":""},{"$f":"IF(T330<>\"\", IF(INDEX('Full set Core Client Indicator'!$A$3:$AB$351, MATCH(Selection_Hide2!$A330, 'Full set Core Client Indicator'!$A$3:$A$351, 0), MATCH(Selection_Hide2!U$5, 'Full set Core Client Indicator'!$A$3:$AB$3, 0))=\"\", \"\",  INDEX('Full set Core Client Indicator'!$A$3:$AB$351, MATCH(Selection_Hide2!$A330, 'Full set Core Client Indicator'!$A$3:$A$351, 0), MATCH(Selection_Hide2!U$5, 'Full set Core Client Indicator'!$A$3:$AB$3, 0))), \"\")","v":""},{"$f":"IF(U330<>\"\", IF(INDEX('Full set Core Client Indicator'!$A$3:$AB$351, MATCH(Selection_Hide2!$A330, 'Full set Core Client Indicator'!$A$3:$A$351, 0), MATCH(Selection_Hide2!V$5, 'Full set Core Client Indicator'!$A$3:$AB$3, 0))=\"\", \"\",  INDEX('Full set Core Client Indicator'!$A$3:$AB$351, MATCH(Selection_Hide2!$A330, 'Full set Core Client Indicator'!$A$3:$A$351, 0), MATCH(Selection_Hide2!V$5, 'Full set Core Client Indicator'!$A$3:$AB$3, 0))), \"\")","v":""},{"$f":"IF(V330<>\"\", IF(INDEX('Full set Core Client Indicator'!$A$3:$AB$351, MATCH(Selection_Hide2!$A330, 'Full set Core Client Indicator'!$A$3:$A$351, 0), MATCH(Selection_Hide2!W$5, 'Full set Core Client Indicator'!$A$3:$AB$3, 0))=\"\", \"\",  INDEX('Full set Core Client Indicator'!$A$3:$AB$351, MATCH(Selection_Hide2!$A330, 'Full set Core Client Indicator'!$A$3:$A$351, 0), MATCH(Selection_Hide2!W$5, 'Full set Core Client Indicator'!$A$3:$AB$3, 0))), \"\")","v":""},{"$f":"IF(W330<>\"\", IF(INDEX('Full set Core Client Indicator'!$A$3:$AB$351, MATCH(Selection_Hide2!$A330, 'Full set Core Client Indicator'!$A$3:$A$351, 0), MATCH(Selection_Hide2!X$5, 'Full set Core Client Indicator'!$A$3:$AB$3, 0))=\"\", \"\",  INDEX('Full set Core Client Indicator'!$A$3:$AB$351, MATCH(Selection_Hide2!$A330, 'Full set Core Client Indicator'!$A$3:$A$351, 0), MATCH(Selection_Hide2!X$5, 'Full set Core Client Indicator'!$A$3:$AB$3, 0))), \"\")","v":""},{"$f":"IF(X330<>\"\", IF(INDEX('Full set Core Client Indicator'!$A$3:$AB$351, MATCH(Selection_Hide2!$A330, 'Full set Core Client Indicator'!$A$3:$A$351, 0), MATCH(Selection_Hide2!Y$5, 'Full set Core Client Indicator'!$A$3:$AB$3, 0))=\"\", \"\",  INDEX('Full set Core Client Indicator'!$A$3:$AB$351, MATCH(Selection_Hide2!$A330, 'Full set Core Client Indicator'!$A$3:$A$351, 0), MATCH(Selection_Hide2!Y$5, 'Full set Core Client Indicator'!$A$3:$AB$3, 0))), \"\")","v":""},{"$f":"IF(Y330<>\"\", IF(INDEX('Full set Core Client Indicator'!$A$3:$AB$351, MATCH(Selection_Hide2!$A330, 'Full set Core Client Indicator'!$A$3:$A$351, 0), MATCH(Selection_Hide2!Z$5, 'Full set Core Client Indicator'!$A$3:$AB$3, 0))=\"\", \"\",  INDEX('Full set Core Client Indicator'!$A$3:$AB$351, MATCH(Selection_Hide2!$A330, 'Full set Core Client Indicator'!$A$3:$A$351, 0), MATCH(Selection_Hide2!Z$5, 'Full set Core Client Indicator'!$A$3:$AB$3, 0))), \"\")","v":""},{"$f":"IF(Z330<>\"\", IF(INDEX('Full set Core Client Indicator'!$A$3:$AB$351, MATCH(Selection_Hide2!$A330, 'Full set Core Client Indicator'!$A$3:$A$351, 0), MATCH(Selection_Hide2!AA$5, 'Full set Core Client Indicator'!$A$3:$AB$3, 0))=\"\", \"\",  INDEX('Full set Core Client Indicator'!$A$3:$AB$351, MATCH(Selection_Hide2!$A330, 'Full set Core Client Indicator'!$A$3:$A$351, 0), MATCH(Selection_Hide2!AA$5, 'Full set Core Client Indicator'!$A$3:$AB$3, 0))), \"\")","v":""},{"$f":"IF(AA330<>\"\", IF(INDEX('Full set Core Client Indicator'!$A$3:$AB$351, MATCH(Selection_Hide2!$A330, 'Full set Core Client Indicator'!$A$3:$A$351, 0), MATCH(Selection_Hide2!AB$5, 'Full set Core Client Indicator'!$A$3:$AB$3, 0))=\"\", \"\",  INDEX('Full set Core Client Indicator'!$A$3:$AB$351, MATCH(Selection_Hide2!$A330, 'Full set Core Client Indicator'!$A$3:$A$351, 0), MATCH(Selection_Hide2!AB$5, 'Full set Core Client Indicator'!$A$3:$AB$3, 0))), \"\")","v":""}]
[{"$f":"IF(AND(Selection_Hide1!C329<>0, Selection_Hide1!C329<>\"Grand Total\"), Selection_Hide1!C329, \"\")","v":""},{"$f":"IF(A331<>\"\", IF(INDEX('Full set Core Client Indicator'!$A$3:$AB$351, MATCH(Selection_Hide2!$A331, 'Full set Core Client Indicator'!$A$3:$A$351, 0), MATCH(Selection_Hide2!B$5, 'Full set Core Client Indicator'!$A$3:$AB$3, 0))=\"\", \"\",  INDEX('Full set Core Client Indicator'!$A$3:$AB$351, MATCH(Selection_Hide2!$A331, 'Full set Core Client Indicator'!$A$3:$A$351, 0), MATCH(Selection_Hide2!B$5, 'Full set Core Client Indicator'!$A$3:$AB$3, 0))), \"\")","v":""},{"$f":"IF(B331<>\"\", IF(INDEX('Full set Core Client Indicator'!$A$3:$AB$351, MATCH(Selection_Hide2!$A331, 'Full set Core Client Indicator'!$A$3:$A$351, 0), MATCH(Selection_Hide2!C$5, 'Full set Core Client Indicator'!$A$3:$AB$3, 0))=\"\", \"\",  INDEX('Full set Core Client Indicator'!$A$3:$AB$351, MATCH(Selection_Hide2!$A331, 'Full set Core Client Indicator'!$A$3:$A$351, 0), MATCH(Selection_Hide2!C$5, 'Full set Core Client Indicator'!$A$3:$AB$3, 0))), \"\")","v":""},{"$f":"IF(C331<>\"\", IF(INDEX('Full set Core Client Indicator'!$A$3:$AB$351, MATCH(Selection_Hide2!$A331, 'Full set Core Client Indicator'!$A$3:$A$351, 0), MATCH(Selection_Hide2!D$5, 'Full set Core Client Indicator'!$A$3:$AB$3, 0))=\"\", \"\",  INDEX('Full set Core Client Indicator'!$A$3:$AB$351, MATCH(Selection_Hide2!$A331, 'Full set Core Client Indicator'!$A$3:$A$351, 0), MATCH(Selection_Hide2!D$5, 'Full set Core Client Indicator'!$A$3:$AB$3, 0))), \"\")","v":""},{"$f":"IF(D331<>\"\", IF(INDEX('Full set Core Client Indicator'!$A$3:$AB$351, MATCH(Selection_Hide2!$A331, 'Full set Core Client Indicator'!$A$3:$A$351, 0), MATCH(Selection_Hide2!E$5, 'Full set Core Client Indicator'!$A$3:$AB$3, 0))=\"\", \"\",  INDEX('Full set Core Client Indicator'!$A$3:$AB$351, MATCH(Selection_Hide2!$A331, 'Full set Core Client Indicator'!$A$3:$A$351, 0), MATCH(Selection_Hide2!E$5, 'Full set Core Client Indicator'!$A$3:$AB$3, 0))), \"\")","v":""},{"$f":"IF(E331<>\"\", IF(INDEX('Full set Core Client Indicator'!$A$3:$AB$351, MATCH(Selection_Hide2!$A331, 'Full set Core Client Indicator'!$A$3:$A$351, 0), MATCH(Selection_Hide2!F$5, 'Full set Core Client Indicator'!$A$3:$AB$3, 0))=\"\", \"\",  INDEX('Full set Core Client Indicator'!$A$3:$AB$351, MATCH(Selection_Hide2!$A331, 'Full set Core Client Indicator'!$A$3:$A$351, 0), MATCH(Selection_Hide2!F$5, 'Full set Core Client Indicator'!$A$3:$AB$3, 0))), \"\")","v":""},{"$f":"IF(F331<>\"\", IF(INDEX('Full set Core Client Indicator'!$A$3:$AB$351, MATCH(Selection_Hide2!$A331, 'Full set Core Client Indicator'!$A$3:$A$351, 0), MATCH(Selection_Hide2!G$5, 'Full set Core Client Indicator'!$A$3:$AB$3, 0))=\"\", \"\",  INDEX('Full set Core Client Indicator'!$A$3:$AB$351, MATCH(Selection_Hide2!$A331, 'Full set Core Client Indicator'!$A$3:$A$351, 0), MATCH(Selection_Hide2!G$5, 'Full set Core Client Indicator'!$A$3:$AB$3, 0))), \"\")","v":""},{"$f":"IF(G331<>\"\", IF(INDEX('Full set Core Client Indicator'!$A$3:$AB$351, MATCH(Selection_Hide2!$A331, 'Full set Core Client Indicator'!$A$3:$A$351, 0), MATCH(Selection_Hide2!H$5, 'Full set Core Client Indicator'!$A$3:$AB$3, 0))=\"\", \"\",  INDEX('Full set Core Client Indicator'!$A$3:$AB$351, MATCH(Selection_Hide2!$A331, 'Full set Core Client Indicator'!$A$3:$A$351, 0), MATCH(Selection_Hide2!H$5, 'Full set Core Client Indicator'!$A$3:$AB$3, 0))), \"\")","v":""},{"$f":"IF(H331<>\"\", IF(INDEX('Full set Core Client Indicator'!$A$3:$AB$351, MATCH(Selection_Hide2!$A331, 'Full set Core Client Indicator'!$A$3:$A$351, 0), MATCH(Selection_Hide2!I$5, 'Full set Core Client Indicator'!$A$3:$AB$3, 0))=\"\", \"\",  INDEX('Full set Core Client Indicator'!$A$3:$AB$351, MATCH(Selection_Hide2!$A331, 'Full set Core Client Indicator'!$A$3:$A$351, 0), MATCH(Selection_Hide2!I$5, 'Full set Core Client Indicator'!$A$3:$AB$3, 0))), \"\")","v":""},{"$f":"IF(I331<>\"\", IF(INDEX('Full set Core Client Indicator'!$A$3:$AB$351, MATCH(Selection_Hide2!$A331, 'Full set Core Client Indicator'!$A$3:$A$351, 0), MATCH(Selection_Hide2!J$5, 'Full set Core Client Indicator'!$A$3:$AB$3, 0))=\"\", \"\",  INDEX('Full set Core Client Indicator'!$A$3:$AB$351, MATCH(Selection_Hide2!$A331, 'Full set Core Client Indicator'!$A$3:$A$351, 0), MATCH(Selection_Hide2!J$5, 'Full set Core Client Indicator'!$A$3:$AB$3, 0))), \"\")","v":""},{"$f":"IF(J331<>\"\", IF(INDEX('Full set Core Client Indicator'!$A$3:$AB$351, MATCH(Selection_Hide2!$A331, 'Full set Core Client Indicator'!$A$3:$A$351, 0), MATCH(Selection_Hide2!K$5, 'Full set Core Client Indicator'!$A$3:$AB$3, 0))=\"\", \"\",  INDEX('Full set Core Client Indicator'!$A$3:$AB$351, MATCH(Selection_Hide2!$A331, 'Full set Core Client Indicator'!$A$3:$A$351, 0), MATCH(Selection_Hide2!K$5, 'Full set Core Client Indicator'!$A$3:$AB$3, 0))), \"\")","v":""},{"$f":"IF(K331<>\"\", IF(INDEX('Full set Core Client Indicator'!$A$3:$AB$351, MATCH(Selection_Hide2!$A331, 'Full set Core Client Indicator'!$A$3:$A$351, 0), MATCH(Selection_Hide2!L$5, 'Full set Core Client Indicator'!$A$3:$AB$3, 0))=\"\", \"\",  INDEX('Full set Core Client Indicator'!$A$3:$AB$351, MATCH(Selection_Hide2!$A331, 'Full set Core Client Indicator'!$A$3:$A$351, 0), MATCH(Selection_Hide2!L$5, 'Full set Core Client Indicator'!$A$3:$AB$3, 0))), \"\")","v":""},{"$f":"IF(L331<>\"\", IF(INDEX('Full set Core Client Indicator'!$A$3:$AB$351, MATCH(Selection_Hide2!$A331, 'Full set Core Client Indicator'!$A$3:$A$351, 0), MATCH(Selection_Hide2!M$5, 'Full set Core Client Indicator'!$A$3:$AB$3, 0))=\"\", \"\",  INDEX('Full set Core Client Indicator'!$A$3:$AB$351, MATCH(Selection_Hide2!$A331, 'Full set Core Client Indicator'!$A$3:$A$351, 0), MATCH(Selection_Hide2!M$5, 'Full set Core Client Indicator'!$A$3:$AB$3, 0))), \"\")","v":""},{"$f":"IF(M331<>\"\", IF(INDEX('Full set Core Client Indicator'!$A$3:$AB$351, MATCH(Selection_Hide2!$A331, 'Full set Core Client Indicator'!$A$3:$A$351, 0), MATCH(Selection_Hide2!N$5, 'Full set Core Client Indicator'!$A$3:$AB$3, 0))=\"\", \"\",  INDEX('Full set Core Client Indicator'!$A$3:$AB$351, MATCH(Selection_Hide2!$A331, 'Full set Core Client Indicator'!$A$3:$A$351, 0), MATCH(Selection_Hide2!N$5, 'Full set Core Client Indicator'!$A$3:$AB$3, 0))), \"\")","v":""},{"$f":"IF(N331<>\"\", IF(INDEX('Full set Core Client Indicator'!$A$3:$AB$351, MATCH(Selection_Hide2!$A331, 'Full set Core Client Indicator'!$A$3:$A$351, 0), MATCH(Selection_Hide2!O$5, 'Full set Core Client Indicator'!$A$3:$AB$3, 0))=\"\", \"\",  INDEX('Full set Core Client Indicator'!$A$3:$AB$351, MATCH(Selection_Hide2!$A331, 'Full set Core Client Indicator'!$A$3:$A$351, 0), MATCH(Selection_Hide2!O$5, 'Full set Core Client Indicator'!$A$3:$AB$3, 0))), \"\")","v":""},{"$f":"IF(O331<>\"\", IF(INDEX('Full set Core Client Indicator'!$A$3:$AB$351, MATCH(Selection_Hide2!$A331, 'Full set Core Client Indicator'!$A$3:$A$351, 0), MATCH(Selection_Hide2!P$5, 'Full set Core Client Indicator'!$A$3:$AB$3, 0))=\"\", \"\",  INDEX('Full set Core Client Indicator'!$A$3:$AB$351, MATCH(Selection_Hide2!$A331, 'Full set Core Client Indicator'!$A$3:$A$351, 0), MATCH(Selection_Hide2!P$5, 'Full set Core Client Indicator'!$A$3:$AB$3, 0))), \"\")","v":""},{"$f":"IF(P331<>\"\", IF(INDEX('Full set Core Client Indicator'!$A$3:$AB$351, MATCH(Selection_Hide2!$A331, 'Full set Core Client Indicator'!$A$3:$A$351, 0), MATCH(Selection_Hide2!Q$5, 'Full set Core Client Indicator'!$A$3:$AB$3, 0))=\"\", \"\",  INDEX('Full set Core Client Indicator'!$A$3:$AB$351, MATCH(Selection_Hide2!$A331, 'Full set Core Client Indicator'!$A$3:$A$351, 0), MATCH(Selection_Hide2!Q$5, 'Full set Core Client Indicator'!$A$3:$AB$3, 0))), \"\")","v":""},{"$f":"IF(Q331<>\"\", IF(INDEX('Full set Core Client Indicator'!$A$3:$AB$351, MATCH(Selection_Hide2!$A331, 'Full set Core Client Indicator'!$A$3:$A$351, 0), MATCH(Selection_Hide2!R$5, 'Full set Core Client Indicator'!$A$3:$AB$3, 0))=\"\", \"\",  INDEX('Full set Core Client Indicator'!$A$3:$AB$351, MATCH(Selection_Hide2!$A331, 'Full set Core Client Indicator'!$A$3:$A$351, 0), MATCH(Selection_Hide2!R$5, 'Full set Core Client Indicator'!$A$3:$AB$3, 0))), \"\")","v":""},{"$f":"IF(R331<>\"\", IF(INDEX('Full set Core Client Indicator'!$A$3:$AB$351, MATCH(Selection_Hide2!$A331, 'Full set Core Client Indicator'!$A$3:$A$351, 0), MATCH(Selection_Hide2!S$5, 'Full set Core Client Indicator'!$A$3:$AB$3, 0))=\"\", \"\",  INDEX('Full set Core Client Indicator'!$A$3:$AB$351, MATCH(Selection_Hide2!$A331, 'Full set Core Client Indicator'!$A$3:$A$351, 0), MATCH(Selection_Hide2!S$5, 'Full set Core Client Indicator'!$A$3:$AB$3, 0))), \"\")","v":""},{"$f":"IF(S331<>\"\", IF(INDEX('Full set Core Client Indicator'!$A$3:$AB$351, MATCH(Selection_Hide2!$A331, 'Full set Core Client Indicator'!$A$3:$A$351, 0), MATCH(Selection_Hide2!T$5, 'Full set Core Client Indicator'!$A$3:$AB$3, 0))=\"\", \"\",  INDEX('Full set Core Client Indicator'!$A$3:$AB$351, MATCH(Selection_Hide2!$A331, 'Full set Core Client Indicator'!$A$3:$A$351, 0), MATCH(Selection_Hide2!T$5, 'Full set Core Client Indicator'!$A$3:$AB$3, 0))), \"\")","v":""},{"$f":"IF(T331<>\"\", IF(INDEX('Full set Core Client Indicator'!$A$3:$AB$351, MATCH(Selection_Hide2!$A331, 'Full set Core Client Indicator'!$A$3:$A$351, 0), MATCH(Selection_Hide2!U$5, 'Full set Core Client Indicator'!$A$3:$AB$3, 0))=\"\", \"\",  INDEX('Full set Core Client Indicator'!$A$3:$AB$351, MATCH(Selection_Hide2!$A331, 'Full set Core Client Indicator'!$A$3:$A$351, 0), MATCH(Selection_Hide2!U$5, 'Full set Core Client Indicator'!$A$3:$AB$3, 0))), \"\")","v":""},{"$f":"IF(U331<>\"\", IF(INDEX('Full set Core Client Indicator'!$A$3:$AB$351, MATCH(Selection_Hide2!$A331, 'Full set Core Client Indicator'!$A$3:$A$351, 0), MATCH(Selection_Hide2!V$5, 'Full set Core Client Indicator'!$A$3:$AB$3, 0))=\"\", \"\",  INDEX('Full set Core Client Indicator'!$A$3:$AB$351, MATCH(Selection_Hide2!$A331, 'Full set Core Client Indicator'!$A$3:$A$351, 0), MATCH(Selection_Hide2!V$5, 'Full set Core Client Indicator'!$A$3:$AB$3, 0))), \"\")","v":""},{"$f":"IF(V331<>\"\", IF(INDEX('Full set Core Client Indicator'!$A$3:$AB$351, MATCH(Selection_Hide2!$A331, 'Full set Core Client Indicator'!$A$3:$A$351, 0), MATCH(Selection_Hide2!W$5, 'Full set Core Client Indicator'!$A$3:$AB$3, 0))=\"\", \"\",  INDEX('Full set Core Client Indicator'!$A$3:$AB$351, MATCH(Selection_Hide2!$A331, 'Full set Core Client Indicator'!$A$3:$A$351, 0), MATCH(Selection_Hide2!W$5, 'Full set Core Client Indicator'!$A$3:$AB$3, 0))), \"\")","v":""},{"$f":"IF(W331<>\"\", IF(INDEX('Full set Core Client Indicator'!$A$3:$AB$351, MATCH(Selection_Hide2!$A331, 'Full set Core Client Indicator'!$A$3:$A$351, 0), MATCH(Selection_Hide2!X$5, 'Full set Core Client Indicator'!$A$3:$AB$3, 0))=\"\", \"\",  INDEX('Full set Core Client Indicator'!$A$3:$AB$351, MATCH(Selection_Hide2!$A331, 'Full set Core Client Indicator'!$A$3:$A$351, 0), MATCH(Selection_Hide2!X$5, 'Full set Core Client Indicator'!$A$3:$AB$3, 0))), \"\")","v":""},{"$f":"IF(X331<>\"\", IF(INDEX('Full set Core Client Indicator'!$A$3:$AB$351, MATCH(Selection_Hide2!$A331, 'Full set Core Client Indicator'!$A$3:$A$351, 0), MATCH(Selection_Hide2!Y$5, 'Full set Core Client Indicator'!$A$3:$AB$3, 0))=\"\", \"\",  INDEX('Full set Core Client Indicator'!$A$3:$AB$351, MATCH(Selection_Hide2!$A331, 'Full set Core Client Indicator'!$A$3:$A$351, 0), MATCH(Selection_Hide2!Y$5, 'Full set Core Client Indicator'!$A$3:$AB$3, 0))), \"\")","v":""},{"$f":"IF(Y331<>\"\", IF(INDEX('Full set Core Client Indicator'!$A$3:$AB$351, MATCH(Selection_Hide2!$A331, 'Full set Core Client Indicator'!$A$3:$A$351, 0), MATCH(Selection_Hide2!Z$5, 'Full set Core Client Indicator'!$A$3:$AB$3, 0))=\"\", \"\",  INDEX('Full set Core Client Indicator'!$A$3:$AB$351, MATCH(Selection_Hide2!$A331, 'Full set Core Client Indicator'!$A$3:$A$351, 0), MATCH(Selection_Hide2!Z$5, 'Full set Core Client Indicator'!$A$3:$AB$3, 0))), \"\")","v":""},{"$f":"IF(Z331<>\"\", IF(INDEX('Full set Core Client Indicator'!$A$3:$AB$351, MATCH(Selection_Hide2!$A331, 'Full set Core Client Indicator'!$A$3:$A$351, 0), MATCH(Selection_Hide2!AA$5, 'Full set Core Client Indicator'!$A$3:$AB$3, 0))=\"\", \"\",  INDEX('Full set Core Client Indicator'!$A$3:$AB$351, MATCH(Selection_Hide2!$A331, 'Full set Core Client Indicator'!$A$3:$A$351, 0), MATCH(Selection_Hide2!AA$5, 'Full set Core Client Indicator'!$A$3:$AB$3, 0))), \"\")","v":""},{"$f":"IF(AA331<>\"\", IF(INDEX('Full set Core Client Indicator'!$A$3:$AB$351, MATCH(Selection_Hide2!$A331, 'Full set Core Client Indicator'!$A$3:$A$351, 0), MATCH(Selection_Hide2!AB$5, 'Full set Core Client Indicator'!$A$3:$AB$3, 0))=\"\", \"\",  INDEX('Full set Core Client Indicator'!$A$3:$AB$351, MATCH(Selection_Hide2!$A331, 'Full set Core Client Indicator'!$A$3:$A$351, 0), MATCH(Selection_Hide2!AB$5, 'Full set Core Client Indicator'!$A$3:$AB$3, 0))), \"\")","v":""}]
[{"$f":"IF(AND(Selection_Hide1!C330<>0, Selection_Hide1!C330<>\"Grand Total\"), Selection_Hide1!C330, \"\")","v":""},{"$f":"IF(A332<>\"\", IF(INDEX('Full set Core Client Indicator'!$A$3:$AB$351, MATCH(Selection_Hide2!$A332, 'Full set Core Client Indicator'!$A$3:$A$351, 0), MATCH(Selection_Hide2!B$5, 'Full set Core Client Indicator'!$A$3:$AB$3, 0))=\"\", \"\",  INDEX('Full set Core Client Indicator'!$A$3:$AB$351, MATCH(Selection_Hide2!$A332, 'Full set Core Client Indicator'!$A$3:$A$351, 0), MATCH(Selection_Hide2!B$5, 'Full set Core Client Indicator'!$A$3:$AB$3, 0))), \"\")","v":""},{"$f":"IF(B332<>\"\", IF(INDEX('Full set Core Client Indicator'!$A$3:$AB$351, MATCH(Selection_Hide2!$A332, 'Full set Core Client Indicator'!$A$3:$A$351, 0), MATCH(Selection_Hide2!C$5, 'Full set Core Client Indicator'!$A$3:$AB$3, 0))=\"\", \"\",  INDEX('Full set Core Client Indicator'!$A$3:$AB$351, MATCH(Selection_Hide2!$A332, 'Full set Core Client Indicator'!$A$3:$A$351, 0), MATCH(Selection_Hide2!C$5, 'Full set Core Client Indicator'!$A$3:$AB$3, 0))), \"\")","v":""},{"$f":"IF(C332<>\"\", IF(INDEX('Full set Core Client Indicator'!$A$3:$AB$351, MATCH(Selection_Hide2!$A332, 'Full set Core Client Indicator'!$A$3:$A$351, 0), MATCH(Selection_Hide2!D$5, 'Full set Core Client Indicator'!$A$3:$AB$3, 0))=\"\", \"\",  INDEX('Full set Core Client Indicator'!$A$3:$AB$351, MATCH(Selection_Hide2!$A332, 'Full set Core Client Indicator'!$A$3:$A$351, 0), MATCH(Selection_Hide2!D$5, 'Full set Core Client Indicator'!$A$3:$AB$3, 0))), \"\")","v":""},{"$f":"IF(D332<>\"\", IF(INDEX('Full set Core Client Indicator'!$A$3:$AB$351, MATCH(Selection_Hide2!$A332, 'Full set Core Client Indicator'!$A$3:$A$351, 0), MATCH(Selection_Hide2!E$5, 'Full set Core Client Indicator'!$A$3:$AB$3, 0))=\"\", \"\",  INDEX('Full set Core Client Indicator'!$A$3:$AB$351, MATCH(Selection_Hide2!$A332, 'Full set Core Client Indicator'!$A$3:$A$351, 0), MATCH(Selection_Hide2!E$5, 'Full set Core Client Indicator'!$A$3:$AB$3, 0))), \"\")","v":""},{"$f":"IF(E332<>\"\", IF(INDEX('Full set Core Client Indicator'!$A$3:$AB$351, MATCH(Selection_Hide2!$A332, 'Full set Core Client Indicator'!$A$3:$A$351, 0), MATCH(Selection_Hide2!F$5, 'Full set Core Client Indicator'!$A$3:$AB$3, 0))=\"\", \"\",  INDEX('Full set Core Client Indicator'!$A$3:$AB$351, MATCH(Selection_Hide2!$A332, 'Full set Core Client Indicator'!$A$3:$A$351, 0), MATCH(Selection_Hide2!F$5, 'Full set Core Client Indicator'!$A$3:$AB$3, 0))), \"\")","v":""},{"$f":"IF(F332<>\"\", IF(INDEX('Full set Core Client Indicator'!$A$3:$AB$351, MATCH(Selection_Hide2!$A332, 'Full set Core Client Indicator'!$A$3:$A$351, 0), MATCH(Selection_Hide2!G$5, 'Full set Core Client Indicator'!$A$3:$AB$3, 0))=\"\", \"\",  INDEX('Full set Core Client Indicator'!$A$3:$AB$351, MATCH(Selection_Hide2!$A332, 'Full set Core Client Indicator'!$A$3:$A$351, 0), MATCH(Selection_Hide2!G$5, 'Full set Core Client Indicator'!$A$3:$AB$3, 0))), \"\")","v":""},{"$f":"IF(G332<>\"\", IF(INDEX('Full set Core Client Indicator'!$A$3:$AB$351, MATCH(Selection_Hide2!$A332, 'Full set Core Client Indicator'!$A$3:$A$351, 0), MATCH(Selection_Hide2!H$5, 'Full set Core Client Indicator'!$A$3:$AB$3, 0))=\"\", \"\",  INDEX('Full set Core Client Indicator'!$A$3:$AB$351, MATCH(Selection_Hide2!$A332, 'Full set Core Client Indicator'!$A$3:$A$351, 0), MATCH(Selection_Hide2!H$5, 'Full set Core Client Indicator'!$A$3:$AB$3, 0))), \"\")","v":""},{"$f":"IF(H332<>\"\", IF(INDEX('Full set Core Client Indicator'!$A$3:$AB$351, MATCH(Selection_Hide2!$A332, 'Full set Core Client Indicator'!$A$3:$A$351, 0), MATCH(Selection_Hide2!I$5, 'Full set Core Client Indicator'!$A$3:$AB$3, 0))=\"\", \"\",  INDEX('Full set Core Client Indicator'!$A$3:$AB$351, MATCH(Selection_Hide2!$A332, 'Full set Core Client Indicator'!$A$3:$A$351, 0), MATCH(Selection_Hide2!I$5, 'Full set Core Client Indicator'!$A$3:$AB$3, 0))), \"\")","v":""},{"$f":"IF(I332<>\"\", IF(INDEX('Full set Core Client Indicator'!$A$3:$AB$351, MATCH(Selection_Hide2!$A332, 'Full set Core Client Indicator'!$A$3:$A$351, 0), MATCH(Selection_Hide2!J$5, 'Full set Core Client Indicator'!$A$3:$AB$3, 0))=\"\", \"\",  INDEX('Full set Core Client Indicator'!$A$3:$AB$351, MATCH(Selection_Hide2!$A332, 'Full set Core Client Indicator'!$A$3:$A$351, 0), MATCH(Selection_Hide2!J$5, 'Full set Core Client Indicator'!$A$3:$AB$3, 0))), \"\")","v":""},{"$f":"IF(J332<>\"\", IF(INDEX('Full set Core Client Indicator'!$A$3:$AB$351, MATCH(Selection_Hide2!$A332, 'Full set Core Client Indicator'!$A$3:$A$351, 0), MATCH(Selection_Hide2!K$5, 'Full set Core Client Indicator'!$A$3:$AB$3, 0))=\"\", \"\",  INDEX('Full set Core Client Indicator'!$A$3:$AB$351, MATCH(Selection_Hide2!$A332, 'Full set Core Client Indicator'!$A$3:$A$351, 0), MATCH(Selection_Hide2!K$5, 'Full set Core Client Indicator'!$A$3:$AB$3, 0))), \"\")","v":""},{"$f":"IF(K332<>\"\", IF(INDEX('Full set Core Client Indicator'!$A$3:$AB$351, MATCH(Selection_Hide2!$A332, 'Full set Core Client Indicator'!$A$3:$A$351, 0), MATCH(Selection_Hide2!L$5, 'Full set Core Client Indicator'!$A$3:$AB$3, 0))=\"\", \"\",  INDEX('Full set Core Client Indicator'!$A$3:$AB$351, MATCH(Selection_Hide2!$A332, 'Full set Core Client Indicator'!$A$3:$A$351, 0), MATCH(Selection_Hide2!L$5, 'Full set Core Client Indicator'!$A$3:$AB$3, 0))), \"\")","v":""},{"$f":"IF(L332<>\"\", IF(INDEX('Full set Core Client Indicator'!$A$3:$AB$351, MATCH(Selection_Hide2!$A332, 'Full set Core Client Indicator'!$A$3:$A$351, 0), MATCH(Selection_Hide2!M$5, 'Full set Core Client Indicator'!$A$3:$AB$3, 0))=\"\", \"\",  INDEX('Full set Core Client Indicator'!$A$3:$AB$351, MATCH(Selection_Hide2!$A332, 'Full set Core Client Indicator'!$A$3:$A$351, 0), MATCH(Selection_Hide2!M$5, 'Full set Core Client Indicator'!$A$3:$AB$3, 0))), \"\")","v":""},{"$f":"IF(M332<>\"\", IF(INDEX('Full set Core Client Indicator'!$A$3:$AB$351, MATCH(Selection_Hide2!$A332, 'Full set Core Client Indicator'!$A$3:$A$351, 0), MATCH(Selection_Hide2!N$5, 'Full set Core Client Indicator'!$A$3:$AB$3, 0))=\"\", \"\",  INDEX('Full set Core Client Indicator'!$A$3:$AB$351, MATCH(Selection_Hide2!$A332, 'Full set Core Client Indicator'!$A$3:$A$351, 0), MATCH(Selection_Hide2!N$5, 'Full set Core Client Indicator'!$A$3:$AB$3, 0))), \"\")","v":""},{"$f":"IF(N332<>\"\", IF(INDEX('Full set Core Client Indicator'!$A$3:$AB$351, MATCH(Selection_Hide2!$A332, 'Full set Core Client Indicator'!$A$3:$A$351, 0), MATCH(Selection_Hide2!O$5, 'Full set Core Client Indicator'!$A$3:$AB$3, 0))=\"\", \"\",  INDEX('Full set Core Client Indicator'!$A$3:$AB$351, MATCH(Selection_Hide2!$A332, 'Full set Core Client Indicator'!$A$3:$A$351, 0), MATCH(Selection_Hide2!O$5, 'Full set Core Client Indicator'!$A$3:$AB$3, 0))), \"\")","v":""},{"$f":"IF(O332<>\"\", IF(INDEX('Full set Core Client Indicator'!$A$3:$AB$351, MATCH(Selection_Hide2!$A332, 'Full set Core Client Indicator'!$A$3:$A$351, 0), MATCH(Selection_Hide2!P$5, 'Full set Core Client Indicator'!$A$3:$AB$3, 0))=\"\", \"\",  INDEX('Full set Core Client Indicator'!$A$3:$AB$351, MATCH(Selection_Hide2!$A332, 'Full set Core Client Indicator'!$A$3:$A$351, 0), MATCH(Selection_Hide2!P$5, 'Full set Core Client Indicator'!$A$3:$AB$3, 0))), \"\")","v":""},{"$f":"IF(P332<>\"\", IF(INDEX('Full set Core Client Indicator'!$A$3:$AB$351, MATCH(Selection_Hide2!$A332, 'Full set Core Client Indicator'!$A$3:$A$351, 0), MATCH(Selection_Hide2!Q$5, 'Full set Core Client Indicator'!$A$3:$AB$3, 0))=\"\", \"\",  INDEX('Full set Core Client Indicator'!$A$3:$AB$351, MATCH(Selection_Hide2!$A332, 'Full set Core Client Indicator'!$A$3:$A$351, 0), MATCH(Selection_Hide2!Q$5, 'Full set Core Client Indicator'!$A$3:$AB$3, 0))), \"\")","v":""},{"$f":"IF(Q332<>\"\", IF(INDEX('Full set Core Client Indicator'!$A$3:$AB$351, MATCH(Selection_Hide2!$A332, 'Full set Core Client Indicator'!$A$3:$A$351, 0), MATCH(Selection_Hide2!R$5, 'Full set Core Client Indicator'!$A$3:$AB$3, 0))=\"\", \"\",  INDEX('Full set Core Client Indicator'!$A$3:$AB$351, MATCH(Selection_Hide2!$A332, 'Full set Core Client Indicator'!$A$3:$A$351, 0), MATCH(Selection_Hide2!R$5, 'Full set Core Client Indicator'!$A$3:$AB$3, 0))), \"\")","v":""},{"$f":"IF(R332<>\"\", IF(INDEX('Full set Core Client Indicator'!$A$3:$AB$351, MATCH(Selection_Hide2!$A332, 'Full set Core Client Indicator'!$A$3:$A$351, 0), MATCH(Selection_Hide2!S$5, 'Full set Core Client Indicator'!$A$3:$AB$3, 0))=\"\", \"\",  INDEX('Full set Core Client Indicator'!$A$3:$AB$351, MATCH(Selection_Hide2!$A332, 'Full set Core Client Indicator'!$A$3:$A$351, 0), MATCH(Selection_Hide2!S$5, 'Full set Core Client Indicator'!$A$3:$AB$3, 0))), \"\")","v":""},{"$f":"IF(S332<>\"\", IF(INDEX('Full set Core Client Indicator'!$A$3:$AB$351, MATCH(Selection_Hide2!$A332, 'Full set Core Client Indicator'!$A$3:$A$351, 0), MATCH(Selection_Hide2!T$5, 'Full set Core Client Indicator'!$A$3:$AB$3, 0))=\"\", \"\",  INDEX('Full set Core Client Indicator'!$A$3:$AB$351, MATCH(Selection_Hide2!$A332, 'Full set Core Client Indicator'!$A$3:$A$351, 0), MATCH(Selection_Hide2!T$5, 'Full set Core Client Indicator'!$A$3:$AB$3, 0))), \"\")","v":""},{"$f":"IF(T332<>\"\", IF(INDEX('Full set Core Client Indicator'!$A$3:$AB$351, MATCH(Selection_Hide2!$A332, 'Full set Core Client Indicator'!$A$3:$A$351, 0), MATCH(Selection_Hide2!U$5, 'Full set Core Client Indicator'!$A$3:$AB$3, 0))=\"\", \"\",  INDEX('Full set Core Client Indicator'!$A$3:$AB$351, MATCH(Selection_Hide2!$A332, 'Full set Core Client Indicator'!$A$3:$A$351, 0), MATCH(Selection_Hide2!U$5, 'Full set Core Client Indicator'!$A$3:$AB$3, 0))), \"\")","v":""},{"$f":"IF(U332<>\"\", IF(INDEX('Full set Core Client Indicator'!$A$3:$AB$351, MATCH(Selection_Hide2!$A332, 'Full set Core Client Indicator'!$A$3:$A$351, 0), MATCH(Selection_Hide2!V$5, 'Full set Core Client Indicator'!$A$3:$AB$3, 0))=\"\", \"\",  INDEX('Full set Core Client Indicator'!$A$3:$AB$351, MATCH(Selection_Hide2!$A332, 'Full set Core Client Indicator'!$A$3:$A$351, 0), MATCH(Selection_Hide2!V$5, 'Full set Core Client Indicator'!$A$3:$AB$3, 0))), \"\")","v":""},{"$f":"IF(V332<>\"\", IF(INDEX('Full set Core Client Indicator'!$A$3:$AB$351, MATCH(Selection_Hide2!$A332, 'Full set Core Client Indicator'!$A$3:$A$351, 0), MATCH(Selection_Hide2!W$5, 'Full set Core Client Indicator'!$A$3:$AB$3, 0))=\"\", \"\",  INDEX('Full set Core Client Indicator'!$A$3:$AB$351, MATCH(Selection_Hide2!$A332, 'Full set Core Client Indicator'!$A$3:$A$351, 0), MATCH(Selection_Hide2!W$5, 'Full set Core Client Indicator'!$A$3:$AB$3, 0))), \"\")","v":""},{"$f":"IF(W332<>\"\", IF(INDEX('Full set Core Client Indicator'!$A$3:$AB$351, MATCH(Selection_Hide2!$A332, 'Full set Core Client Indicator'!$A$3:$A$351, 0), MATCH(Selection_Hide2!X$5, 'Full set Core Client Indicator'!$A$3:$AB$3, 0))=\"\", \"\",  INDEX('Full set Core Client Indicator'!$A$3:$AB$351, MATCH(Selection_Hide2!$A332, 'Full set Core Client Indicator'!$A$3:$A$351, 0), MATCH(Selection_Hide2!X$5, 'Full set Core Client Indicator'!$A$3:$AB$3, 0))), \"\")","v":""},{"$f":"IF(X332<>\"\", IF(INDEX('Full set Core Client Indicator'!$A$3:$AB$351, MATCH(Selection_Hide2!$A332, 'Full set Core Client Indicator'!$A$3:$A$351, 0), MATCH(Selection_Hide2!Y$5, 'Full set Core Client Indicator'!$A$3:$AB$3, 0))=\"\", \"\",  INDEX('Full set Core Client Indicator'!$A$3:$AB$351, MATCH(Selection_Hide2!$A332, 'Full set Core Client Indicator'!$A$3:$A$351, 0), MATCH(Selection_Hide2!Y$5, 'Full set Core Client Indicator'!$A$3:$AB$3, 0))), \"\")","v":""},{"$f":"IF(Y332<>\"\", IF(INDEX('Full set Core Client Indicator'!$A$3:$AB$351, MATCH(Selection_Hide2!$A332, 'Full set Core Client Indicator'!$A$3:$A$351, 0), MATCH(Selection_Hide2!Z$5, 'Full set Core Client Indicator'!$A$3:$AB$3, 0))=\"\", \"\",  INDEX('Full set Core Client Indicator'!$A$3:$AB$351, MATCH(Selection_Hide2!$A332, 'Full set Core Client Indicator'!$A$3:$A$351, 0), MATCH(Selection_Hide2!Z$5, 'Full set Core Client Indicator'!$A$3:$AB$3, 0))), \"\")","v":""},{"$f":"IF(Z332<>\"\", IF(INDEX('Full set Core Client Indicator'!$A$3:$AB$351, MATCH(Selection_Hide2!$A332, 'Full set Core Client Indicator'!$A$3:$A$351, 0), MATCH(Selection_Hide2!AA$5, 'Full set Core Client Indicator'!$A$3:$AB$3, 0))=\"\", \"\",  INDEX('Full set Core Client Indicator'!$A$3:$AB$351, MATCH(Selection_Hide2!$A332, 'Full set Core Client Indicator'!$A$3:$A$351, 0), MATCH(Selection_Hide2!AA$5, 'Full set Core Client Indicator'!$A$3:$AB$3, 0))), \"\")","v":""},{"$f":"IF(AA332<>\"\", IF(INDEX('Full set Core Client Indicator'!$A$3:$AB$351, MATCH(Selection_Hide2!$A332, 'Full set Core Client Indicator'!$A$3:$A$351, 0), MATCH(Selection_Hide2!AB$5, 'Full set Core Client Indicator'!$A$3:$AB$3, 0))=\"\", \"\",  INDEX('Full set Core Client Indicator'!$A$3:$AB$351, MATCH(Selection_Hide2!$A332, 'Full set Core Client Indicator'!$A$3:$A$351, 0), MATCH(Selection_Hide2!AB$5, 'Full set Core Client Indicator'!$A$3:$AB$3, 0))), \"\")","v":""}]
[{"$f":"IF(AND(Selection_Hide1!C331<>0, Selection_Hide1!C331<>\"Grand Total\"), Selection_Hide1!C331, \"\")","v":""},{"$f":"IF(A333<>\"\", IF(INDEX('Full set Core Client Indicator'!$A$3:$AB$351, MATCH(Selection_Hide2!$A333, 'Full set Core Client Indicator'!$A$3:$A$351, 0), MATCH(Selection_Hide2!B$5, 'Full set Core Client Indicator'!$A$3:$AB$3, 0))=\"\", \"\",  INDEX('Full set Core Client Indicator'!$A$3:$AB$351, MATCH(Selection_Hide2!$A333, 'Full set Core Client Indicator'!$A$3:$A$351, 0), MATCH(Selection_Hide2!B$5, 'Full set Core Client Indicator'!$A$3:$AB$3, 0))), \"\")","v":""},{"$f":"IF(B333<>\"\", IF(INDEX('Full set Core Client Indicator'!$A$3:$AB$351, MATCH(Selection_Hide2!$A333, 'Full set Core Client Indicator'!$A$3:$A$351, 0), MATCH(Selection_Hide2!C$5, 'Full set Core Client Indicator'!$A$3:$AB$3, 0))=\"\", \"\",  INDEX('Full set Core Client Indicator'!$A$3:$AB$351, MATCH(Selection_Hide2!$A333, 'Full set Core Client Indicator'!$A$3:$A$351, 0), MATCH(Selection_Hide2!C$5, 'Full set Core Client Indicator'!$A$3:$AB$3, 0))), \"\")","v":""},{"$f":"IF(C333<>\"\", IF(INDEX('Full set Core Client Indicator'!$A$3:$AB$351, MATCH(Selection_Hide2!$A333, 'Full set Core Client Indicator'!$A$3:$A$351, 0), MATCH(Selection_Hide2!D$5, 'Full set Core Client Indicator'!$A$3:$AB$3, 0))=\"\", \"\",  INDEX('Full set Core Client Indicator'!$A$3:$AB$351, MATCH(Selection_Hide2!$A333, 'Full set Core Client Indicator'!$A$3:$A$351, 0), MATCH(Selection_Hide2!D$5, 'Full set Core Client Indicator'!$A$3:$AB$3, 0))), \"\")","v":""},{"$f":"IF(D333<>\"\", IF(INDEX('Full set Core Client Indicator'!$A$3:$AB$351, MATCH(Selection_Hide2!$A333, 'Full set Core Client Indicator'!$A$3:$A$351, 0), MATCH(Selection_Hide2!E$5, 'Full set Core Client Indicator'!$A$3:$AB$3, 0))=\"\", \"\",  INDEX('Full set Core Client Indicator'!$A$3:$AB$351, MATCH(Selection_Hide2!$A333, 'Full set Core Client Indicator'!$A$3:$A$351, 0), MATCH(Selection_Hide2!E$5, 'Full set Core Client Indicator'!$A$3:$AB$3, 0))), \"\")","v":""},{"$f":"IF(E333<>\"\", IF(INDEX('Full set Core Client Indicator'!$A$3:$AB$351, MATCH(Selection_Hide2!$A333, 'Full set Core Client Indicator'!$A$3:$A$351, 0), MATCH(Selection_Hide2!F$5, 'Full set Core Client Indicator'!$A$3:$AB$3, 0))=\"\", \"\",  INDEX('Full set Core Client Indicator'!$A$3:$AB$351, MATCH(Selection_Hide2!$A333, 'Full set Core Client Indicator'!$A$3:$A$351, 0), MATCH(Selection_Hide2!F$5, 'Full set Core Client Indicator'!$A$3:$AB$3, 0))), \"\")","v":""},{"$f":"IF(F333<>\"\", IF(INDEX('Full set Core Client Indicator'!$A$3:$AB$351, MATCH(Selection_Hide2!$A333, 'Full set Core Client Indicator'!$A$3:$A$351, 0), MATCH(Selection_Hide2!G$5, 'Full set Core Client Indicator'!$A$3:$AB$3, 0))=\"\", \"\",  INDEX('Full set Core Client Indicator'!$A$3:$AB$351, MATCH(Selection_Hide2!$A333, 'Full set Core Client Indicator'!$A$3:$A$351, 0), MATCH(Selection_Hide2!G$5, 'Full set Core Client Indicator'!$A$3:$AB$3, 0))), \"\")","v":""},{"$f":"IF(G333<>\"\", IF(INDEX('Full set Core Client Indicator'!$A$3:$AB$351, MATCH(Selection_Hide2!$A333, 'Full set Core Client Indicator'!$A$3:$A$351, 0), MATCH(Selection_Hide2!H$5, 'Full set Core Client Indicator'!$A$3:$AB$3, 0))=\"\", \"\",  INDEX('Full set Core Client Indicator'!$A$3:$AB$351, MATCH(Selection_Hide2!$A333, 'Full set Core Client Indicator'!$A$3:$A$351, 0), MATCH(Selection_Hide2!H$5, 'Full set Core Client Indicator'!$A$3:$AB$3, 0))), \"\")","v":""},{"$f":"IF(H333<>\"\", IF(INDEX('Full set Core Client Indicator'!$A$3:$AB$351, MATCH(Selection_Hide2!$A333, 'Full set Core Client Indicator'!$A$3:$A$351, 0), MATCH(Selection_Hide2!I$5, 'Full set Core Client Indicator'!$A$3:$AB$3, 0))=\"\", \"\",  INDEX('Full set Core Client Indicator'!$A$3:$AB$351, MATCH(Selection_Hide2!$A333, 'Full set Core Client Indicator'!$A$3:$A$351, 0), MATCH(Selection_Hide2!I$5, 'Full set Core Client Indicator'!$A$3:$AB$3, 0))), \"\")","v":""},{"$f":"IF(I333<>\"\", IF(INDEX('Full set Core Client Indicator'!$A$3:$AB$351, MATCH(Selection_Hide2!$A333, 'Full set Core Client Indicator'!$A$3:$A$351, 0), MATCH(Selection_Hide2!J$5, 'Full set Core Client Indicator'!$A$3:$AB$3, 0))=\"\", \"\",  INDEX('Full set Core Client Indicator'!$A$3:$AB$351, MATCH(Selection_Hide2!$A333, 'Full set Core Client Indicator'!$A$3:$A$351, 0), MATCH(Selection_Hide2!J$5, 'Full set Core Client Indicator'!$A$3:$AB$3, 0))), \"\")","v":""},{"$f":"IF(J333<>\"\", IF(INDEX('Full set Core Client Indicator'!$A$3:$AB$351, MATCH(Selection_Hide2!$A333, 'Full set Core Client Indicator'!$A$3:$A$351, 0), MATCH(Selection_Hide2!K$5, 'Full set Core Client Indicator'!$A$3:$AB$3, 0))=\"\", \"\",  INDEX('Full set Core Client Indicator'!$A$3:$AB$351, MATCH(Selection_Hide2!$A333, 'Full set Core Client Indicator'!$A$3:$A$351, 0), MATCH(Selection_Hide2!K$5, 'Full set Core Client Indicator'!$A$3:$AB$3, 0))), \"\")","v":""},{"$f":"IF(K333<>\"\", IF(INDEX('Full set Core Client Indicator'!$A$3:$AB$351, MATCH(Selection_Hide2!$A333, 'Full set Core Client Indicator'!$A$3:$A$351, 0), MATCH(Selection_Hide2!L$5, 'Full set Core Client Indicator'!$A$3:$AB$3, 0))=\"\", \"\",  INDEX('Full set Core Client Indicator'!$A$3:$AB$351, MATCH(Selection_Hide2!$A333, 'Full set Core Client Indicator'!$A$3:$A$351, 0), MATCH(Selection_Hide2!L$5, 'Full set Core Client Indicator'!$A$3:$AB$3, 0))), \"\")","v":""},{"$f":"IF(L333<>\"\", IF(INDEX('Full set Core Client Indicator'!$A$3:$AB$351, MATCH(Selection_Hide2!$A333, 'Full set Core Client Indicator'!$A$3:$A$351, 0), MATCH(Selection_Hide2!M$5, 'Full set Core Client Indicator'!$A$3:$AB$3, 0))=\"\", \"\",  INDEX('Full set Core Client Indicator'!$A$3:$AB$351, MATCH(Selection_Hide2!$A333, 'Full set Core Client Indicator'!$A$3:$A$351, 0), MATCH(Selection_Hide2!M$5, 'Full set Core Client Indicator'!$A$3:$AB$3, 0))), \"\")","v":""},{"$f":"IF(M333<>\"\", IF(INDEX('Full set Core Client Indicator'!$A$3:$AB$351, MATCH(Selection_Hide2!$A333, 'Full set Core Client Indicator'!$A$3:$A$351, 0), MATCH(Selection_Hide2!N$5, 'Full set Core Client Indicator'!$A$3:$AB$3, 0))=\"\", \"\",  INDEX('Full set Core Client Indicator'!$A$3:$AB$351, MATCH(Selection_Hide2!$A333, 'Full set Core Client Indicator'!$A$3:$A$351, 0), MATCH(Selection_Hide2!N$5, 'Full set Core Client Indicator'!$A$3:$AB$3, 0))), \"\")","v":""},{"$f":"IF(N333<>\"\", IF(INDEX('Full set Core Client Indicator'!$A$3:$AB$351, MATCH(Selection_Hide2!$A333, 'Full set Core Client Indicator'!$A$3:$A$351, 0), MATCH(Selection_Hide2!O$5, 'Full set Core Client Indicator'!$A$3:$AB$3, 0))=\"\", \"\",  INDEX('Full set Core Client Indicator'!$A$3:$AB$351, MATCH(Selection_Hide2!$A333, 'Full set Core Client Indicator'!$A$3:$A$351, 0), MATCH(Selection_Hide2!O$5, 'Full set Core Client Indicator'!$A$3:$AB$3, 0))), \"\")","v":""},{"$f":"IF(O333<>\"\", IF(INDEX('Full set Core Client Indicator'!$A$3:$AB$351, MATCH(Selection_Hide2!$A333, 'Full set Core Client Indicator'!$A$3:$A$351, 0), MATCH(Selection_Hide2!P$5, 'Full set Core Client Indicator'!$A$3:$AB$3, 0))=\"\", \"\",  INDEX('Full set Core Client Indicator'!$A$3:$AB$351, MATCH(Selection_Hide2!$A333, 'Full set Core Client Indicator'!$A$3:$A$351, 0), MATCH(Selection_Hide2!P$5, 'Full set Core Client Indicator'!$A$3:$AB$3, 0))), \"\")","v":""},{"$f":"IF(P333<>\"\", IF(INDEX('Full set Core Client Indicator'!$A$3:$AB$351, MATCH(Selection_Hide2!$A333, 'Full set Core Client Indicator'!$A$3:$A$351, 0), MATCH(Selection_Hide2!Q$5, 'Full set Core Client Indicator'!$A$3:$AB$3, 0))=\"\", \"\",  INDEX('Full set Core Client Indicator'!$A$3:$AB$351, MATCH(Selection_Hide2!$A333, 'Full set Core Client Indicator'!$A$3:$A$351, 0), MATCH(Selection_Hide2!Q$5, 'Full set Core Client Indicator'!$A$3:$AB$3, 0))), \"\")","v":""},{"$f":"IF(Q333<>\"\", IF(INDEX('Full set Core Client Indicator'!$A$3:$AB$351, MATCH(Selection_Hide2!$A333, 'Full set Core Client Indicator'!$A$3:$A$351, 0), MATCH(Selection_Hide2!R$5, 'Full set Core Client Indicator'!$A$3:$AB$3, 0))=\"\", \"\",  INDEX('Full set Core Client Indicator'!$A$3:$AB$351, MATCH(Selection_Hide2!$A333, 'Full set Core Client Indicator'!$A$3:$A$351, 0), MATCH(Selection_Hide2!R$5, 'Full set Core Client Indicator'!$A$3:$AB$3, 0))), \"\")","v":""},{"$f":"IF(R333<>\"\", IF(INDEX('Full set Core Client Indicator'!$A$3:$AB$351, MATCH(Selection_Hide2!$A333, 'Full set Core Client Indicator'!$A$3:$A$351, 0), MATCH(Selection_Hide2!S$5, 'Full set Core Client Indicator'!$A$3:$AB$3, 0))=\"\", \"\",  INDEX('Full set Core Client Indicator'!$A$3:$AB$351, MATCH(Selection_Hide2!$A333, 'Full set Core Client Indicator'!$A$3:$A$351, 0), MATCH(Selection_Hide2!S$5, 'Full set Core Client Indicator'!$A$3:$AB$3, 0))), \"\")","v":""},{"$f":"IF(S333<>\"\", IF(INDEX('Full set Core Client Indicator'!$A$3:$AB$351, MATCH(Selection_Hide2!$A333, 'Full set Core Client Indicator'!$A$3:$A$351, 0), MATCH(Selection_Hide2!T$5, 'Full set Core Client Indicator'!$A$3:$AB$3, 0))=\"\", \"\",  INDEX('Full set Core Client Indicator'!$A$3:$AB$351, MATCH(Selection_Hide2!$A333, 'Full set Core Client Indicator'!$A$3:$A$351, 0), MATCH(Selection_Hide2!T$5, 'Full set Core Client Indicator'!$A$3:$AB$3, 0))), \"\")","v":""},{"$f":"IF(T333<>\"\", IF(INDEX('Full set Core Client Indicator'!$A$3:$AB$351, MATCH(Selection_Hide2!$A333, 'Full set Core Client Indicator'!$A$3:$A$351, 0), MATCH(Selection_Hide2!U$5, 'Full set Core Client Indicator'!$A$3:$AB$3, 0))=\"\", \"\",  INDEX('Full set Core Client Indicator'!$A$3:$AB$351, MATCH(Selection_Hide2!$A333, 'Full set Core Client Indicator'!$A$3:$A$351, 0), MATCH(Selection_Hide2!U$5, 'Full set Core Client Indicator'!$A$3:$AB$3, 0))), \"\")","v":""},{"$f":"IF(U333<>\"\", IF(INDEX('Full set Core Client Indicator'!$A$3:$AB$351, MATCH(Selection_Hide2!$A333, 'Full set Core Client Indicator'!$A$3:$A$351, 0), MATCH(Selection_Hide2!V$5, 'Full set Core Client Indicator'!$A$3:$AB$3, 0))=\"\", \"\",  INDEX('Full set Core Client Indicator'!$A$3:$AB$351, MATCH(Selection_Hide2!$A333, 'Full set Core Client Indicator'!$A$3:$A$351, 0), MATCH(Selection_Hide2!V$5, 'Full set Core Client Indicator'!$A$3:$AB$3, 0))), \"\")","v":""},{"$f":"IF(V333<>\"\", IF(INDEX('Full set Core Client Indicator'!$A$3:$AB$351, MATCH(Selection_Hide2!$A333, 'Full set Core Client Indicator'!$A$3:$A$351, 0), MATCH(Selection_Hide2!W$5, 'Full set Core Client Indicator'!$A$3:$AB$3, 0))=\"\", \"\",  INDEX('Full set Core Client Indicator'!$A$3:$AB$351, MATCH(Selection_Hide2!$A333, 'Full set Core Client Indicator'!$A$3:$A$351, 0), MATCH(Selection_Hide2!W$5, 'Full set Core Client Indicator'!$A$3:$AB$3, 0))), \"\")","v":""},{"$f":"IF(W333<>\"\", IF(INDEX('Full set Core Client Indicator'!$A$3:$AB$351, MATCH(Selection_Hide2!$A333, 'Full set Core Client Indicator'!$A$3:$A$351, 0), MATCH(Selection_Hide2!X$5, 'Full set Core Client Indicator'!$A$3:$AB$3, 0))=\"\", \"\",  INDEX('Full set Core Client Indicator'!$A$3:$AB$351, MATCH(Selection_Hide2!$A333, 'Full set Core Client Indicator'!$A$3:$A$351, 0), MATCH(Selection_Hide2!X$5, 'Full set Core Client Indicator'!$A$3:$AB$3, 0))), \"\")","v":""},{"$f":"IF(X333<>\"\", IF(INDEX('Full set Core Client Indicator'!$A$3:$AB$351, MATCH(Selection_Hide2!$A333, 'Full set Core Client Indicator'!$A$3:$A$351, 0), MATCH(Selection_Hide2!Y$5, 'Full set Core Client Indicator'!$A$3:$AB$3, 0))=\"\", \"\",  INDEX('Full set Core Client Indicator'!$A$3:$AB$351, MATCH(Selection_Hide2!$A333, 'Full set Core Client Indicator'!$A$3:$A$351, 0), MATCH(Selection_Hide2!Y$5, 'Full set Core Client Indicator'!$A$3:$AB$3, 0))), \"\")","v":""},{"$f":"IF(Y333<>\"\", IF(INDEX('Full set Core Client Indicator'!$A$3:$AB$351, MATCH(Selection_Hide2!$A333, 'Full set Core Client Indicator'!$A$3:$A$351, 0), MATCH(Selection_Hide2!Z$5, 'Full set Core Client Indicator'!$A$3:$AB$3, 0))=\"\", \"\",  INDEX('Full set Core Client Indicator'!$A$3:$AB$351, MATCH(Selection_Hide2!$A333, 'Full set Core Client Indicator'!$A$3:$A$351, 0), MATCH(Selection_Hide2!Z$5, 'Full set Core Client Indicator'!$A$3:$AB$3, 0))), \"\")","v":""},{"$f":"IF(Z333<>\"\", IF(INDEX('Full set Core Client Indicator'!$A$3:$AB$351, MATCH(Selection_Hide2!$A333, 'Full set Core Client Indicator'!$A$3:$A$351, 0), MATCH(Selection_Hide2!AA$5, 'Full set Core Client Indicator'!$A$3:$AB$3, 0))=\"\", \"\",  INDEX('Full set Core Client Indicator'!$A$3:$AB$351, MATCH(Selection_Hide2!$A333, 'Full set Core Client Indicator'!$A$3:$A$351, 0), MATCH(Selection_Hide2!AA$5, 'Full set Core Client Indicator'!$A$3:$AB$3, 0))), \"\")","v":""},{"$f":"IF(AA333<>\"\", IF(INDEX('Full set Core Client Indicator'!$A$3:$AB$351, MATCH(Selection_Hide2!$A333, 'Full set Core Client Indicator'!$A$3:$A$351, 0), MATCH(Selection_Hide2!AB$5, 'Full set Core Client Indicator'!$A$3:$AB$3, 0))=\"\", \"\",  INDEX('Full set Core Client Indicator'!$A$3:$AB$351, MATCH(Selection_Hide2!$A333, 'Full set Core Client Indicator'!$A$3:$A$351, 0), MATCH(Selection_Hide2!AB$5, 'Full set Core Client Indicator'!$A$3:$AB$3, 0))), \"\")","v":""}]
[{"$f":"IF(AND(Selection_Hide1!C332<>0, Selection_Hide1!C332<>\"Grand Total\"), Selection_Hide1!C332, \"\")","v":""},{"$f":"IF(A334<>\"\", IF(INDEX('Full set Core Client Indicator'!$A$3:$AB$351, MATCH(Selection_Hide2!$A334, 'Full set Core Client Indicator'!$A$3:$A$351, 0), MATCH(Selection_Hide2!B$5, 'Full set Core Client Indicator'!$A$3:$AB$3, 0))=\"\", \"\",  INDEX('Full set Core Client Indicator'!$A$3:$AB$351, MATCH(Selection_Hide2!$A334, 'Full set Core Client Indicator'!$A$3:$A$351, 0), MATCH(Selection_Hide2!B$5, 'Full set Core Client Indicator'!$A$3:$AB$3, 0))), \"\")","v":""},{"$f":"IF(B334<>\"\", IF(INDEX('Full set Core Client Indicator'!$A$3:$AB$351, MATCH(Selection_Hide2!$A334, 'Full set Core Client Indicator'!$A$3:$A$351, 0), MATCH(Selection_Hide2!C$5, 'Full set Core Client Indicator'!$A$3:$AB$3, 0))=\"\", \"\",  INDEX('Full set Core Client Indicator'!$A$3:$AB$351, MATCH(Selection_Hide2!$A334, 'Full set Core Client Indicator'!$A$3:$A$351, 0), MATCH(Selection_Hide2!C$5, 'Full set Core Client Indicator'!$A$3:$AB$3, 0))), \"\")","v":""},{"$f":"IF(C334<>\"\", IF(INDEX('Full set Core Client Indicator'!$A$3:$AB$351, MATCH(Selection_Hide2!$A334, 'Full set Core Client Indicator'!$A$3:$A$351, 0), MATCH(Selection_Hide2!D$5, 'Full set Core Client Indicator'!$A$3:$AB$3, 0))=\"\", \"\",  INDEX('Full set Core Client Indicator'!$A$3:$AB$351, MATCH(Selection_Hide2!$A334, 'Full set Core Client Indicator'!$A$3:$A$351, 0), MATCH(Selection_Hide2!D$5, 'Full set Core Client Indicator'!$A$3:$AB$3, 0))), \"\")","v":""},{"$f":"IF(D334<>\"\", IF(INDEX('Full set Core Client Indicator'!$A$3:$AB$351, MATCH(Selection_Hide2!$A334, 'Full set Core Client Indicator'!$A$3:$A$351, 0), MATCH(Selection_Hide2!E$5, 'Full set Core Client Indicator'!$A$3:$AB$3, 0))=\"\", \"\",  INDEX('Full set Core Client Indicator'!$A$3:$AB$351, MATCH(Selection_Hide2!$A334, 'Full set Core Client Indicator'!$A$3:$A$351, 0), MATCH(Selection_Hide2!E$5, 'Full set Core Client Indicator'!$A$3:$AB$3, 0))), \"\")","v":""},{"$f":"IF(E334<>\"\", IF(INDEX('Full set Core Client Indicator'!$A$3:$AB$351, MATCH(Selection_Hide2!$A334, 'Full set Core Client Indicator'!$A$3:$A$351, 0), MATCH(Selection_Hide2!F$5, 'Full set Core Client Indicator'!$A$3:$AB$3, 0))=\"\", \"\",  INDEX('Full set Core Client Indicator'!$A$3:$AB$351, MATCH(Selection_Hide2!$A334, 'Full set Core Client Indicator'!$A$3:$A$351, 0), MATCH(Selection_Hide2!F$5, 'Full set Core Client Indicator'!$A$3:$AB$3, 0))), \"\")","v":""},{"$f":"IF(F334<>\"\", IF(INDEX('Full set Core Client Indicator'!$A$3:$AB$351, MATCH(Selection_Hide2!$A334, 'Full set Core Client Indicator'!$A$3:$A$351, 0), MATCH(Selection_Hide2!G$5, 'Full set Core Client Indicator'!$A$3:$AB$3, 0))=\"\", \"\",  INDEX('Full set Core Client Indicator'!$A$3:$AB$351, MATCH(Selection_Hide2!$A334, 'Full set Core Client Indicator'!$A$3:$A$351, 0), MATCH(Selection_Hide2!G$5, 'Full set Core Client Indicator'!$A$3:$AB$3, 0))), \"\")","v":""},{"$f":"IF(G334<>\"\", IF(INDEX('Full set Core Client Indicator'!$A$3:$AB$351, MATCH(Selection_Hide2!$A334, 'Full set Core Client Indicator'!$A$3:$A$351, 0), MATCH(Selection_Hide2!H$5, 'Full set Core Client Indicator'!$A$3:$AB$3, 0))=\"\", \"\",  INDEX('Full set Core Client Indicator'!$A$3:$AB$351, MATCH(Selection_Hide2!$A334, 'Full set Core Client Indicator'!$A$3:$A$351, 0), MATCH(Selection_Hide2!H$5, 'Full set Core Client Indicator'!$A$3:$AB$3, 0))), \"\")","v":""},{"$f":"IF(H334<>\"\", IF(INDEX('Full set Core Client Indicator'!$A$3:$AB$351, MATCH(Selection_Hide2!$A334, 'Full set Core Client Indicator'!$A$3:$A$351, 0), MATCH(Selection_Hide2!I$5, 'Full set Core Client Indicator'!$A$3:$AB$3, 0))=\"\", \"\",  INDEX('Full set Core Client Indicator'!$A$3:$AB$351, MATCH(Selection_Hide2!$A334, 'Full set Core Client Indicator'!$A$3:$A$351, 0), MATCH(Selection_Hide2!I$5, 'Full set Core Client Indicator'!$A$3:$AB$3, 0))), \"\")","v":""},{"$f":"IF(I334<>\"\", IF(INDEX('Full set Core Client Indicator'!$A$3:$AB$351, MATCH(Selection_Hide2!$A334, 'Full set Core Client Indicator'!$A$3:$A$351, 0), MATCH(Selection_Hide2!J$5, 'Full set Core Client Indicator'!$A$3:$AB$3, 0))=\"\", \"\",  INDEX('Full set Core Client Indicator'!$A$3:$AB$351, MATCH(Selection_Hide2!$A334, 'Full set Core Client Indicator'!$A$3:$A$351, 0), MATCH(Selection_Hide2!J$5, 'Full set Core Client Indicator'!$A$3:$AB$3, 0))), \"\")","v":""},{"$f":"IF(J334<>\"\", IF(INDEX('Full set Core Client Indicator'!$A$3:$AB$351, MATCH(Selection_Hide2!$A334, 'Full set Core Client Indicator'!$A$3:$A$351, 0), MATCH(Selection_Hide2!K$5, 'Full set Core Client Indicator'!$A$3:$AB$3, 0))=\"\", \"\",  INDEX('Full set Core Client Indicator'!$A$3:$AB$351, MATCH(Selection_Hide2!$A334, 'Full set Core Client Indicator'!$A$3:$A$351, 0), MATCH(Selection_Hide2!K$5, 'Full set Core Client Indicator'!$A$3:$AB$3, 0))), \"\")","v":""},{"$f":"IF(K334<>\"\", IF(INDEX('Full set Core Client Indicator'!$A$3:$AB$351, MATCH(Selection_Hide2!$A334, 'Full set Core Client Indicator'!$A$3:$A$351, 0), MATCH(Selection_Hide2!L$5, 'Full set Core Client Indicator'!$A$3:$AB$3, 0))=\"\", \"\",  INDEX('Full set Core Client Indicator'!$A$3:$AB$351, MATCH(Selection_Hide2!$A334, 'Full set Core Client Indicator'!$A$3:$A$351, 0), MATCH(Selection_Hide2!L$5, 'Full set Core Client Indicator'!$A$3:$AB$3, 0))), \"\")","v":""},{"$f":"IF(L334<>\"\", IF(INDEX('Full set Core Client Indicator'!$A$3:$AB$351, MATCH(Selection_Hide2!$A334, 'Full set Core Client Indicator'!$A$3:$A$351, 0), MATCH(Selection_Hide2!M$5, 'Full set Core Client Indicator'!$A$3:$AB$3, 0))=\"\", \"\",  INDEX('Full set Core Client Indicator'!$A$3:$AB$351, MATCH(Selection_Hide2!$A334, 'Full set Core Client Indicator'!$A$3:$A$351, 0), MATCH(Selection_Hide2!M$5, 'Full set Core Client Indicator'!$A$3:$AB$3, 0))), \"\")","v":""},{"$f":"IF(M334<>\"\", IF(INDEX('Full set Core Client Indicator'!$A$3:$AB$351, MATCH(Selection_Hide2!$A334, 'Full set Core Client Indicator'!$A$3:$A$351, 0), MATCH(Selection_Hide2!N$5, 'Full set Core Client Indicator'!$A$3:$AB$3, 0))=\"\", \"\",  INDEX('Full set Core Client Indicator'!$A$3:$AB$351, MATCH(Selection_Hide2!$A334, 'Full set Core Client Indicator'!$A$3:$A$351, 0), MATCH(Selection_Hide2!N$5, 'Full set Core Client Indicator'!$A$3:$AB$3, 0))), \"\")","v":""},{"$f":"IF(N334<>\"\", IF(INDEX('Full set Core Client Indicator'!$A$3:$AB$351, MATCH(Selection_Hide2!$A334, 'Full set Core Client Indicator'!$A$3:$A$351, 0), MATCH(Selection_Hide2!O$5, 'Full set Core Client Indicator'!$A$3:$AB$3, 0))=\"\", \"\",  INDEX('Full set Core Client Indicator'!$A$3:$AB$351, MATCH(Selection_Hide2!$A334, 'Full set Core Client Indicator'!$A$3:$A$351, 0), MATCH(Selection_Hide2!O$5, 'Full set Core Client Indicator'!$A$3:$AB$3, 0))), \"\")","v":""},{"$f":"IF(O334<>\"\", IF(INDEX('Full set Core Client Indicator'!$A$3:$AB$351, MATCH(Selection_Hide2!$A334, 'Full set Core Client Indicator'!$A$3:$A$351, 0), MATCH(Selection_Hide2!P$5, 'Full set Core Client Indicator'!$A$3:$AB$3, 0))=\"\", \"\",  INDEX('Full set Core Client Indicator'!$A$3:$AB$351, MATCH(Selection_Hide2!$A334, 'Full set Core Client Indicator'!$A$3:$A$351, 0), MATCH(Selection_Hide2!P$5, 'Full set Core Client Indicator'!$A$3:$AB$3, 0))), \"\")","v":""},{"$f":"IF(P334<>\"\", IF(INDEX('Full set Core Client Indicator'!$A$3:$AB$351, MATCH(Selection_Hide2!$A334, 'Full set Core Client Indicator'!$A$3:$A$351, 0), MATCH(Selection_Hide2!Q$5, 'Full set Core Client Indicator'!$A$3:$AB$3, 0))=\"\", \"\",  INDEX('Full set Core Client Indicator'!$A$3:$AB$351, MATCH(Selection_Hide2!$A334, 'Full set Core Client Indicator'!$A$3:$A$351, 0), MATCH(Selection_Hide2!Q$5, 'Full set Core Client Indicator'!$A$3:$AB$3, 0))), \"\")","v":""},{"$f":"IF(Q334<>\"\", IF(INDEX('Full set Core Client Indicator'!$A$3:$AB$351, MATCH(Selection_Hide2!$A334, 'Full set Core Client Indicator'!$A$3:$A$351, 0), MATCH(Selection_Hide2!R$5, 'Full set Core Client Indicator'!$A$3:$AB$3, 0))=\"\", \"\",  INDEX('Full set Core Client Indicator'!$A$3:$AB$351, MATCH(Selection_Hide2!$A334, 'Full set Core Client Indicator'!$A$3:$A$351, 0), MATCH(Selection_Hide2!R$5, 'Full set Core Client Indicator'!$A$3:$AB$3, 0))), \"\")","v":""},{"$f":"IF(R334<>\"\", IF(INDEX('Full set Core Client Indicator'!$A$3:$AB$351, MATCH(Selection_Hide2!$A334, 'Full set Core Client Indicator'!$A$3:$A$351, 0), MATCH(Selection_Hide2!S$5, 'Full set Core Client Indicator'!$A$3:$AB$3, 0))=\"\", \"\",  INDEX('Full set Core Client Indicator'!$A$3:$AB$351, MATCH(Selection_Hide2!$A334, 'Full set Core Client Indicator'!$A$3:$A$351, 0), MATCH(Selection_Hide2!S$5, 'Full set Core Client Indicator'!$A$3:$AB$3, 0))), \"\")","v":""},{"$f":"IF(S334<>\"\", IF(INDEX('Full set Core Client Indicator'!$A$3:$AB$351, MATCH(Selection_Hide2!$A334, 'Full set Core Client Indicator'!$A$3:$A$351, 0), MATCH(Selection_Hide2!T$5, 'Full set Core Client Indicator'!$A$3:$AB$3, 0))=\"\", \"\",  INDEX('Full set Core Client Indicator'!$A$3:$AB$351, MATCH(Selection_Hide2!$A334, 'Full set Core Client Indicator'!$A$3:$A$351, 0), MATCH(Selection_Hide2!T$5, 'Full set Core Client Indicator'!$A$3:$AB$3, 0))), \"\")","v":""},{"$f":"IF(T334<>\"\", IF(INDEX('Full set Core Client Indicator'!$A$3:$AB$351, MATCH(Selection_Hide2!$A334, 'Full set Core Client Indicator'!$A$3:$A$351, 0), MATCH(Selection_Hide2!U$5, 'Full set Core Client Indicator'!$A$3:$AB$3, 0))=\"\", \"\",  INDEX('Full set Core Client Indicator'!$A$3:$AB$351, MATCH(Selection_Hide2!$A334, 'Full set Core Client Indicator'!$A$3:$A$351, 0), MATCH(Selection_Hide2!U$5, 'Full set Core Client Indicator'!$A$3:$AB$3, 0))), \"\")","v":""},{"$f":"IF(U334<>\"\", IF(INDEX('Full set Core Client Indicator'!$A$3:$AB$351, MATCH(Selection_Hide2!$A334, 'Full set Core Client Indicator'!$A$3:$A$351, 0), MATCH(Selection_Hide2!V$5, 'Full set Core Client Indicator'!$A$3:$AB$3, 0))=\"\", \"\",  INDEX('Full set Core Client Indicator'!$A$3:$AB$351, MATCH(Selection_Hide2!$A334, 'Full set Core Client Indicator'!$A$3:$A$351, 0), MATCH(Selection_Hide2!V$5, 'Full set Core Client Indicator'!$A$3:$AB$3, 0))), \"\")","v":""},{"$f":"IF(V334<>\"\", IF(INDEX('Full set Core Client Indicator'!$A$3:$AB$351, MATCH(Selection_Hide2!$A334, 'Full set Core Client Indicator'!$A$3:$A$351, 0), MATCH(Selection_Hide2!W$5, 'Full set Core Client Indicator'!$A$3:$AB$3, 0))=\"\", \"\",  INDEX('Full set Core Client Indicator'!$A$3:$AB$351, MATCH(Selection_Hide2!$A334, 'Full set Core Client Indicator'!$A$3:$A$351, 0), MATCH(Selection_Hide2!W$5, 'Full set Core Client Indicator'!$A$3:$AB$3, 0))), \"\")","v":""},{"$f":"IF(W334<>\"\", IF(INDEX('Full set Core Client Indicator'!$A$3:$AB$351, MATCH(Selection_Hide2!$A334, 'Full set Core Client Indicator'!$A$3:$A$351, 0), MATCH(Selection_Hide2!X$5, 'Full set Core Client Indicator'!$A$3:$AB$3, 0))=\"\", \"\",  INDEX('Full set Core Client Indicator'!$A$3:$AB$351, MATCH(Selection_Hide2!$A334, 'Full set Core Client Indicator'!$A$3:$A$351, 0), MATCH(Selection_Hide2!X$5, 'Full set Core Client Indicator'!$A$3:$AB$3, 0))), \"\")","v":""},{"$f":"IF(X334<>\"\", IF(INDEX('Full set Core Client Indicator'!$A$3:$AB$351, MATCH(Selection_Hide2!$A334, 'Full set Core Client Indicator'!$A$3:$A$351, 0), MATCH(Selection_Hide2!Y$5, 'Full set Core Client Indicator'!$A$3:$AB$3, 0))=\"\", \"\",  INDEX('Full set Core Client Indicator'!$A$3:$AB$351, MATCH(Selection_Hide2!$A334, 'Full set Core Client Indicator'!$A$3:$A$351, 0), MATCH(Selection_Hide2!Y$5, 'Full set Core Client Indicator'!$A$3:$AB$3, 0))), \"\")","v":""},{"$f":"IF(Y334<>\"\", IF(INDEX('Full set Core Client Indicator'!$A$3:$AB$351, MATCH(Selection_Hide2!$A334, 'Full set Core Client Indicator'!$A$3:$A$351, 0), MATCH(Selection_Hide2!Z$5, 'Full set Core Client Indicator'!$A$3:$AB$3, 0))=\"\", \"\",  INDEX('Full set Core Client Indicator'!$A$3:$AB$351, MATCH(Selection_Hide2!$A334, 'Full set Core Client Indicator'!$A$3:$A$351, 0), MATCH(Selection_Hide2!Z$5, 'Full set Core Client Indicator'!$A$3:$AB$3, 0))), \"\")","v":""},{"$f":"IF(Z334<>\"\", IF(INDEX('Full set Core Client Indicator'!$A$3:$AB$351, MATCH(Selection_Hide2!$A334, 'Full set Core Client Indicator'!$A$3:$A$351, 0), MATCH(Selection_Hide2!AA$5, 'Full set Core Client Indicator'!$A$3:$AB$3, 0))=\"\", \"\",  INDEX('Full set Core Client Indicator'!$A$3:$AB$351, MATCH(Selection_Hide2!$A334, 'Full set Core Client Indicator'!$A$3:$A$351, 0), MATCH(Selection_Hide2!AA$5, 'Full set Core Client Indicator'!$A$3:$AB$3, 0))), \"\")","v":""},{"$f":"IF(AA334<>\"\", IF(INDEX('Full set Core Client Indicator'!$A$3:$AB$351, MATCH(Selection_Hide2!$A334, 'Full set Core Client Indicator'!$A$3:$A$351, 0), MATCH(Selection_Hide2!AB$5, 'Full set Core Client Indicator'!$A$3:$AB$3, 0))=\"\", \"\",  INDEX('Full set Core Client Indicator'!$A$3:$AB$351, MATCH(Selection_Hide2!$A334, 'Full set Core Client Indicator'!$A$3:$A$351, 0), MATCH(Selection_Hide2!AB$5, 'Full set Core Client Indicator'!$A$3:$AB$3, 0))), \"\")","v":""}]
[{"$f":"IF(AND(Selection_Hide1!C333<>0, Selection_Hide1!C333<>\"Grand Total\"), Selection_Hide1!C333, \"\")","v":""},{"$f":"IF(A335<>\"\", IF(INDEX('Full set Core Client Indicator'!$A$3:$AB$351, MATCH(Selection_Hide2!$A335, 'Full set Core Client Indicator'!$A$3:$A$351, 0), MATCH(Selection_Hide2!B$5, 'Full set Core Client Indicator'!$A$3:$AB$3, 0))=\"\", \"\",  INDEX('Full set Core Client Indicator'!$A$3:$AB$351, MATCH(Selection_Hide2!$A335, 'Full set Core Client Indicator'!$A$3:$A$351, 0), MATCH(Selection_Hide2!B$5, 'Full set Core Client Indicator'!$A$3:$AB$3, 0))), \"\")","v":""},{"$f":"IF(B335<>\"\", IF(INDEX('Full set Core Client Indicator'!$A$3:$AB$351, MATCH(Selection_Hide2!$A335, 'Full set Core Client Indicator'!$A$3:$A$351, 0), MATCH(Selection_Hide2!C$5, 'Full set Core Client Indicator'!$A$3:$AB$3, 0))=\"\", \"\",  INDEX('Full set Core Client Indicator'!$A$3:$AB$351, MATCH(Selection_Hide2!$A335, 'Full set Core Client Indicator'!$A$3:$A$351, 0), MATCH(Selection_Hide2!C$5, 'Full set Core Client Indicator'!$A$3:$AB$3, 0))), \"\")","v":""},{"$f":"IF(C335<>\"\", IF(INDEX('Full set Core Client Indicator'!$A$3:$AB$351, MATCH(Selection_Hide2!$A335, 'Full set Core Client Indicator'!$A$3:$A$351, 0), MATCH(Selection_Hide2!D$5, 'Full set Core Client Indicator'!$A$3:$AB$3, 0))=\"\", \"\",  INDEX('Full set Core Client Indicator'!$A$3:$AB$351, MATCH(Selection_Hide2!$A335, 'Full set Core Client Indicator'!$A$3:$A$351, 0), MATCH(Selection_Hide2!D$5, 'Full set Core Client Indicator'!$A$3:$AB$3, 0))), \"\")","v":""},{"$f":"IF(D335<>\"\", IF(INDEX('Full set Core Client Indicator'!$A$3:$AB$351, MATCH(Selection_Hide2!$A335, 'Full set Core Client Indicator'!$A$3:$A$351, 0), MATCH(Selection_Hide2!E$5, 'Full set Core Client Indicator'!$A$3:$AB$3, 0))=\"\", \"\",  INDEX('Full set Core Client Indicator'!$A$3:$AB$351, MATCH(Selection_Hide2!$A335, 'Full set Core Client Indicator'!$A$3:$A$351, 0), MATCH(Selection_Hide2!E$5, 'Full set Core Client Indicator'!$A$3:$AB$3, 0))), \"\")","v":""},{"$f":"IF(E335<>\"\", IF(INDEX('Full set Core Client Indicator'!$A$3:$AB$351, MATCH(Selection_Hide2!$A335, 'Full set Core Client Indicator'!$A$3:$A$351, 0), MATCH(Selection_Hide2!F$5, 'Full set Core Client Indicator'!$A$3:$AB$3, 0))=\"\", \"\",  INDEX('Full set Core Client Indicator'!$A$3:$AB$351, MATCH(Selection_Hide2!$A335, 'Full set Core Client Indicator'!$A$3:$A$351, 0), MATCH(Selection_Hide2!F$5, 'Full set Core Client Indicator'!$A$3:$AB$3, 0))), \"\")","v":""},{"$f":"IF(F335<>\"\", IF(INDEX('Full set Core Client Indicator'!$A$3:$AB$351, MATCH(Selection_Hide2!$A335, 'Full set Core Client Indicator'!$A$3:$A$351, 0), MATCH(Selection_Hide2!G$5, 'Full set Core Client Indicator'!$A$3:$AB$3, 0))=\"\", \"\",  INDEX('Full set Core Client Indicator'!$A$3:$AB$351, MATCH(Selection_Hide2!$A335, 'Full set Core Client Indicator'!$A$3:$A$351, 0), MATCH(Selection_Hide2!G$5, 'Full set Core Client Indicator'!$A$3:$AB$3, 0))), \"\")","v":""},{"$f":"IF(G335<>\"\", IF(INDEX('Full set Core Client Indicator'!$A$3:$AB$351, MATCH(Selection_Hide2!$A335, 'Full set Core Client Indicator'!$A$3:$A$351, 0), MATCH(Selection_Hide2!H$5, 'Full set Core Client Indicator'!$A$3:$AB$3, 0))=\"\", \"\",  INDEX('Full set Core Client Indicator'!$A$3:$AB$351, MATCH(Selection_Hide2!$A335, 'Full set Core Client Indicator'!$A$3:$A$351, 0), MATCH(Selection_Hide2!H$5, 'Full set Core Client Indicator'!$A$3:$AB$3, 0))), \"\")","v":""},{"$f":"IF(H335<>\"\", IF(INDEX('Full set Core Client Indicator'!$A$3:$AB$351, MATCH(Selection_Hide2!$A335, 'Full set Core Client Indicator'!$A$3:$A$351, 0), MATCH(Selection_Hide2!I$5, 'Full set Core Client Indicator'!$A$3:$AB$3, 0))=\"\", \"\",  INDEX('Full set Core Client Indicator'!$A$3:$AB$351, MATCH(Selection_Hide2!$A335, 'Full set Core Client Indicator'!$A$3:$A$351, 0), MATCH(Selection_Hide2!I$5, 'Full set Core Client Indicator'!$A$3:$AB$3, 0))), \"\")","v":""},{"$f":"IF(I335<>\"\", IF(INDEX('Full set Core Client Indicator'!$A$3:$AB$351, MATCH(Selection_Hide2!$A335, 'Full set Core Client Indicator'!$A$3:$A$351, 0), MATCH(Selection_Hide2!J$5, 'Full set Core Client Indicator'!$A$3:$AB$3, 0))=\"\", \"\",  INDEX('Full set Core Client Indicator'!$A$3:$AB$351, MATCH(Selection_Hide2!$A335, 'Full set Core Client Indicator'!$A$3:$A$351, 0), MATCH(Selection_Hide2!J$5, 'Full set Core Client Indicator'!$A$3:$AB$3, 0))), \"\")","v":""},{"$f":"IF(J335<>\"\", IF(INDEX('Full set Core Client Indicator'!$A$3:$AB$351, MATCH(Selection_Hide2!$A335, 'Full set Core Client Indicator'!$A$3:$A$351, 0), MATCH(Selection_Hide2!K$5, 'Full set Core Client Indicator'!$A$3:$AB$3, 0))=\"\", \"\",  INDEX('Full set Core Client Indicator'!$A$3:$AB$351, MATCH(Selection_Hide2!$A335, 'Full set Core Client Indicator'!$A$3:$A$351, 0), MATCH(Selection_Hide2!K$5, 'Full set Core Client Indicator'!$A$3:$AB$3, 0))), \"\")","v":""},{"$f":"IF(K335<>\"\", IF(INDEX('Full set Core Client Indicator'!$A$3:$AB$351, MATCH(Selection_Hide2!$A335, 'Full set Core Client Indicator'!$A$3:$A$351, 0), MATCH(Selection_Hide2!L$5, 'Full set Core Client Indicator'!$A$3:$AB$3, 0))=\"\", \"\",  INDEX('Full set Core Client Indicator'!$A$3:$AB$351, MATCH(Selection_Hide2!$A335, 'Full set Core Client Indicator'!$A$3:$A$351, 0), MATCH(Selection_Hide2!L$5, 'Full set Core Client Indicator'!$A$3:$AB$3, 0))), \"\")","v":""},{"$f":"IF(L335<>\"\", IF(INDEX('Full set Core Client Indicator'!$A$3:$AB$351, MATCH(Selection_Hide2!$A335, 'Full set Core Client Indicator'!$A$3:$A$351, 0), MATCH(Selection_Hide2!M$5, 'Full set Core Client Indicator'!$A$3:$AB$3, 0))=\"\", \"\",  INDEX('Full set Core Client Indicator'!$A$3:$AB$351, MATCH(Selection_Hide2!$A335, 'Full set Core Client Indicator'!$A$3:$A$351, 0), MATCH(Selection_Hide2!M$5, 'Full set Core Client Indicator'!$A$3:$AB$3, 0))), \"\")","v":""},{"$f":"IF(M335<>\"\", IF(INDEX('Full set Core Client Indicator'!$A$3:$AB$351, MATCH(Selection_Hide2!$A335, 'Full set Core Client Indicator'!$A$3:$A$351, 0), MATCH(Selection_Hide2!N$5, 'Full set Core Client Indicator'!$A$3:$AB$3, 0))=\"\", \"\",  INDEX('Full set Core Client Indicator'!$A$3:$AB$351, MATCH(Selection_Hide2!$A335, 'Full set Core Client Indicator'!$A$3:$A$351, 0), MATCH(Selection_Hide2!N$5, 'Full set Core Client Indicator'!$A$3:$AB$3, 0))), \"\")","v":""},{"$f":"IF(N335<>\"\", IF(INDEX('Full set Core Client Indicator'!$A$3:$AB$351, MATCH(Selection_Hide2!$A335, 'Full set Core Client Indicator'!$A$3:$A$351, 0), MATCH(Selection_Hide2!O$5, 'Full set Core Client Indicator'!$A$3:$AB$3, 0))=\"\", \"\",  INDEX('Full set Core Client Indicator'!$A$3:$AB$351, MATCH(Selection_Hide2!$A335, 'Full set Core Client Indicator'!$A$3:$A$351, 0), MATCH(Selection_Hide2!O$5, 'Full set Core Client Indicator'!$A$3:$AB$3, 0))), \"\")","v":""},{"$f":"IF(O335<>\"\", IF(INDEX('Full set Core Client Indicator'!$A$3:$AB$351, MATCH(Selection_Hide2!$A335, 'Full set Core Client Indicator'!$A$3:$A$351, 0), MATCH(Selection_Hide2!P$5, 'Full set Core Client Indicator'!$A$3:$AB$3, 0))=\"\", \"\",  INDEX('Full set Core Client Indicator'!$A$3:$AB$351, MATCH(Selection_Hide2!$A335, 'Full set Core Client Indicator'!$A$3:$A$351, 0), MATCH(Selection_Hide2!P$5, 'Full set Core Client Indicator'!$A$3:$AB$3, 0))), \"\")","v":""},{"$f":"IF(P335<>\"\", IF(INDEX('Full set Core Client Indicator'!$A$3:$AB$351, MATCH(Selection_Hide2!$A335, 'Full set Core Client Indicator'!$A$3:$A$351, 0), MATCH(Selection_Hide2!Q$5, 'Full set Core Client Indicator'!$A$3:$AB$3, 0))=\"\", \"\",  INDEX('Full set Core Client Indicator'!$A$3:$AB$351, MATCH(Selection_Hide2!$A335, 'Full set Core Client Indicator'!$A$3:$A$351, 0), MATCH(Selection_Hide2!Q$5, 'Full set Core Client Indicator'!$A$3:$AB$3, 0))), \"\")","v":""},{"$f":"IF(Q335<>\"\", IF(INDEX('Full set Core Client Indicator'!$A$3:$AB$351, MATCH(Selection_Hide2!$A335, 'Full set Core Client Indicator'!$A$3:$A$351, 0), MATCH(Selection_Hide2!R$5, 'Full set Core Client Indicator'!$A$3:$AB$3, 0))=\"\", \"\",  INDEX('Full set Core Client Indicator'!$A$3:$AB$351, MATCH(Selection_Hide2!$A335, 'Full set Core Client Indicator'!$A$3:$A$351, 0), MATCH(Selection_Hide2!R$5, 'Full set Core Client Indicator'!$A$3:$AB$3, 0))), \"\")","v":""},{"$f":"IF(R335<>\"\", IF(INDEX('Full set Core Client Indicator'!$A$3:$AB$351, MATCH(Selection_Hide2!$A335, 'Full set Core Client Indicator'!$A$3:$A$351, 0), MATCH(Selection_Hide2!S$5, 'Full set Core Client Indicator'!$A$3:$AB$3, 0))=\"\", \"\",  INDEX('Full set Core Client Indicator'!$A$3:$AB$351, MATCH(Selection_Hide2!$A335, 'Full set Core Client Indicator'!$A$3:$A$351, 0), MATCH(Selection_Hide2!S$5, 'Full set Core Client Indicator'!$A$3:$AB$3, 0))), \"\")","v":""},{"$f":"IF(S335<>\"\", IF(INDEX('Full set Core Client Indicator'!$A$3:$AB$351, MATCH(Selection_Hide2!$A335, 'Full set Core Client Indicator'!$A$3:$A$351, 0), MATCH(Selection_Hide2!T$5, 'Full set Core Client Indicator'!$A$3:$AB$3, 0))=\"\", \"\",  INDEX('Full set Core Client Indicator'!$A$3:$AB$351, MATCH(Selection_Hide2!$A335, 'Full set Core Client Indicator'!$A$3:$A$351, 0), MATCH(Selection_Hide2!T$5, 'Full set Core Client Indicator'!$A$3:$AB$3, 0))), \"\")","v":""},{"$f":"IF(T335<>\"\", IF(INDEX('Full set Core Client Indicator'!$A$3:$AB$351, MATCH(Selection_Hide2!$A335, 'Full set Core Client Indicator'!$A$3:$A$351, 0), MATCH(Selection_Hide2!U$5, 'Full set Core Client Indicator'!$A$3:$AB$3, 0))=\"\", \"\",  INDEX('Full set Core Client Indicator'!$A$3:$AB$351, MATCH(Selection_Hide2!$A335, 'Full set Core Client Indicator'!$A$3:$A$351, 0), MATCH(Selection_Hide2!U$5, 'Full set Core Client Indicator'!$A$3:$AB$3, 0))), \"\")","v":""},{"$f":"IF(U335<>\"\", IF(INDEX('Full set Core Client Indicator'!$A$3:$AB$351, MATCH(Selection_Hide2!$A335, 'Full set Core Client Indicator'!$A$3:$A$351, 0), MATCH(Selection_Hide2!V$5, 'Full set Core Client Indicator'!$A$3:$AB$3, 0))=\"\", \"\",  INDEX('Full set Core Client Indicator'!$A$3:$AB$351, MATCH(Selection_Hide2!$A335, 'Full set Core Client Indicator'!$A$3:$A$351, 0), MATCH(Selection_Hide2!V$5, 'Full set Core Client Indicator'!$A$3:$AB$3, 0))), \"\")","v":""},{"$f":"IF(V335<>\"\", IF(INDEX('Full set Core Client Indicator'!$A$3:$AB$351, MATCH(Selection_Hide2!$A335, 'Full set Core Client Indicator'!$A$3:$A$351, 0), MATCH(Selection_Hide2!W$5, 'Full set Core Client Indicator'!$A$3:$AB$3, 0))=\"\", \"\",  INDEX('Full set Core Client Indicator'!$A$3:$AB$351, MATCH(Selection_Hide2!$A335, 'Full set Core Client Indicator'!$A$3:$A$351, 0), MATCH(Selection_Hide2!W$5, 'Full set Core Client Indicator'!$A$3:$AB$3, 0))), \"\")","v":""},{"$f":"IF(W335<>\"\", IF(INDEX('Full set Core Client Indicator'!$A$3:$AB$351, MATCH(Selection_Hide2!$A335, 'Full set Core Client Indicator'!$A$3:$A$351, 0), MATCH(Selection_Hide2!X$5, 'Full set Core Client Indicator'!$A$3:$AB$3, 0))=\"\", \"\",  INDEX('Full set Core Client Indicator'!$A$3:$AB$351, MATCH(Selection_Hide2!$A335, 'Full set Core Client Indicator'!$A$3:$A$351, 0), MATCH(Selection_Hide2!X$5, 'Full set Core Client Indicator'!$A$3:$AB$3, 0))), \"\")","v":""},{"$f":"IF(X335<>\"\", IF(INDEX('Full set Core Client Indicator'!$A$3:$AB$351, MATCH(Selection_Hide2!$A335, 'Full set Core Client Indicator'!$A$3:$A$351, 0), MATCH(Selection_Hide2!Y$5, 'Full set Core Client Indicator'!$A$3:$AB$3, 0))=\"\", \"\",  INDEX('Full set Core Client Indicator'!$A$3:$AB$351, MATCH(Selection_Hide2!$A335, 'Full set Core Client Indicator'!$A$3:$A$351, 0), MATCH(Selection_Hide2!Y$5, 'Full set Core Client Indicator'!$A$3:$AB$3, 0))), \"\")","v":""},{"$f":"IF(Y335<>\"\", IF(INDEX('Full set Core Client Indicator'!$A$3:$AB$351, MATCH(Selection_Hide2!$A335, 'Full set Core Client Indicator'!$A$3:$A$351, 0), MATCH(Selection_Hide2!Z$5, 'Full set Core Client Indicator'!$A$3:$AB$3, 0))=\"\", \"\",  INDEX('Full set Core Client Indicator'!$A$3:$AB$351, MATCH(Selection_Hide2!$A335, 'Full set Core Client Indicator'!$A$3:$A$351, 0), MATCH(Selection_Hide2!Z$5, 'Full set Core Client Indicator'!$A$3:$AB$3, 0))), \"\")","v":""},{"$f":"IF(Z335<>\"\", IF(INDEX('Full set Core Client Indicator'!$A$3:$AB$351, MATCH(Selection_Hide2!$A335, 'Full set Core Client Indicator'!$A$3:$A$351, 0), MATCH(Selection_Hide2!AA$5, 'Full set Core Client Indicator'!$A$3:$AB$3, 0))=\"\", \"\",  INDEX('Full set Core Client Indicator'!$A$3:$AB$351, MATCH(Selection_Hide2!$A335, 'Full set Core Client Indicator'!$A$3:$A$351, 0), MATCH(Selection_Hide2!AA$5, 'Full set Core Client Indicator'!$A$3:$AB$3, 0))), \"\")","v":""},{"$f":"IF(AA335<>\"\", IF(INDEX('Full set Core Client Indicator'!$A$3:$AB$351, MATCH(Selection_Hide2!$A335, 'Full set Core Client Indicator'!$A$3:$A$351, 0), MATCH(Selection_Hide2!AB$5, 'Full set Core Client Indicator'!$A$3:$AB$3, 0))=\"\", \"\",  INDEX('Full set Core Client Indicator'!$A$3:$AB$351, MATCH(Selection_Hide2!$A335, 'Full set Core Client Indicator'!$A$3:$A$351, 0), MATCH(Selection_Hide2!AB$5, 'Full set Core Client Indicator'!$A$3:$AB$3, 0))), \"\")","v":""}]
[{"$f":"IF(AND(Selection_Hide1!C334<>0, Selection_Hide1!C334<>\"Grand Total\"), Selection_Hide1!C334, \"\")","v":""},{"$f":"IF(A336<>\"\", IF(INDEX('Full set Core Client Indicator'!$A$3:$AB$351, MATCH(Selection_Hide2!$A336, 'Full set Core Client Indicator'!$A$3:$A$351, 0), MATCH(Selection_Hide2!B$5, 'Full set Core Client Indicator'!$A$3:$AB$3, 0))=\"\", \"\",  INDEX('Full set Core Client Indicator'!$A$3:$AB$351, MATCH(Selection_Hide2!$A336, 'Full set Core Client Indicator'!$A$3:$A$351, 0), MATCH(Selection_Hide2!B$5, 'Full set Core Client Indicator'!$A$3:$AB$3, 0))), \"\")","v":""},{"$f":"IF(B336<>\"\", IF(INDEX('Full set Core Client Indicator'!$A$3:$AB$351, MATCH(Selection_Hide2!$A336, 'Full set Core Client Indicator'!$A$3:$A$351, 0), MATCH(Selection_Hide2!C$5, 'Full set Core Client Indicator'!$A$3:$AB$3, 0))=\"\", \"\",  INDEX('Full set Core Client Indicator'!$A$3:$AB$351, MATCH(Selection_Hide2!$A336, 'Full set Core Client Indicator'!$A$3:$A$351, 0), MATCH(Selection_Hide2!C$5, 'Full set Core Client Indicator'!$A$3:$AB$3, 0))), \"\")","v":""},{"$f":"IF(C336<>\"\", IF(INDEX('Full set Core Client Indicator'!$A$3:$AB$351, MATCH(Selection_Hide2!$A336, 'Full set Core Client Indicator'!$A$3:$A$351, 0), MATCH(Selection_Hide2!D$5, 'Full set Core Client Indicator'!$A$3:$AB$3, 0))=\"\", \"\",  INDEX('Full set Core Client Indicator'!$A$3:$AB$351, MATCH(Selection_Hide2!$A336, 'Full set Core Client Indicator'!$A$3:$A$351, 0), MATCH(Selection_Hide2!D$5, 'Full set Core Client Indicator'!$A$3:$AB$3, 0))), \"\")","v":""},{"$f":"IF(D336<>\"\", IF(INDEX('Full set Core Client Indicator'!$A$3:$AB$351, MATCH(Selection_Hide2!$A336, 'Full set Core Client Indicator'!$A$3:$A$351, 0), MATCH(Selection_Hide2!E$5, 'Full set Core Client Indicator'!$A$3:$AB$3, 0))=\"\", \"\",  INDEX('Full set Core Client Indicator'!$A$3:$AB$351, MATCH(Selection_Hide2!$A336, 'Full set Core Client Indicator'!$A$3:$A$351, 0), MATCH(Selection_Hide2!E$5, 'Full set Core Client Indicator'!$A$3:$AB$3, 0))), \"\")","v":""},{"$f":"IF(E336<>\"\", IF(INDEX('Full set Core Client Indicator'!$A$3:$AB$351, MATCH(Selection_Hide2!$A336, 'Full set Core Client Indicator'!$A$3:$A$351, 0), MATCH(Selection_Hide2!F$5, 'Full set Core Client Indicator'!$A$3:$AB$3, 0))=\"\", \"\",  INDEX('Full set Core Client Indicator'!$A$3:$AB$351, MATCH(Selection_Hide2!$A336, 'Full set Core Client Indicator'!$A$3:$A$351, 0), MATCH(Selection_Hide2!F$5, 'Full set Core Client Indicator'!$A$3:$AB$3, 0))), \"\")","v":""},{"$f":"IF(F336<>\"\", IF(INDEX('Full set Core Client Indicator'!$A$3:$AB$351, MATCH(Selection_Hide2!$A336, 'Full set Core Client Indicator'!$A$3:$A$351, 0), MATCH(Selection_Hide2!G$5, 'Full set Core Client Indicator'!$A$3:$AB$3, 0))=\"\", \"\",  INDEX('Full set Core Client Indicator'!$A$3:$AB$351, MATCH(Selection_Hide2!$A336, 'Full set Core Client Indicator'!$A$3:$A$351, 0), MATCH(Selection_Hide2!G$5, 'Full set Core Client Indicator'!$A$3:$AB$3, 0))), \"\")","v":""},{"$f":"IF(G336<>\"\", IF(INDEX('Full set Core Client Indicator'!$A$3:$AB$351, MATCH(Selection_Hide2!$A336, 'Full set Core Client Indicator'!$A$3:$A$351, 0), MATCH(Selection_Hide2!H$5, 'Full set Core Client Indicator'!$A$3:$AB$3, 0))=\"\", \"\",  INDEX('Full set Core Client Indicator'!$A$3:$AB$351, MATCH(Selection_Hide2!$A336, 'Full set Core Client Indicator'!$A$3:$A$351, 0), MATCH(Selection_Hide2!H$5, 'Full set Core Client Indicator'!$A$3:$AB$3, 0))), \"\")","v":""},{"$f":"IF(H336<>\"\", IF(INDEX('Full set Core Client Indicator'!$A$3:$AB$351, MATCH(Selection_Hide2!$A336, 'Full set Core Client Indicator'!$A$3:$A$351, 0), MATCH(Selection_Hide2!I$5, 'Full set Core Client Indicator'!$A$3:$AB$3, 0))=\"\", \"\",  INDEX('Full set Core Client Indicator'!$A$3:$AB$351, MATCH(Selection_Hide2!$A336, 'Full set Core Client Indicator'!$A$3:$A$351, 0), MATCH(Selection_Hide2!I$5, 'Full set Core Client Indicator'!$A$3:$AB$3, 0))), \"\")","v":""},{"$f":"IF(I336<>\"\", IF(INDEX('Full set Core Client Indicator'!$A$3:$AB$351, MATCH(Selection_Hide2!$A336, 'Full set Core Client Indicator'!$A$3:$A$351, 0), MATCH(Selection_Hide2!J$5, 'Full set Core Client Indicator'!$A$3:$AB$3, 0))=\"\", \"\",  INDEX('Full set Core Client Indicator'!$A$3:$AB$351, MATCH(Selection_Hide2!$A336, 'Full set Core Client Indicator'!$A$3:$A$351, 0), MATCH(Selection_Hide2!J$5, 'Full set Core Client Indicator'!$A$3:$AB$3, 0))), \"\")","v":""},{"$f":"IF(J336<>\"\", IF(INDEX('Full set Core Client Indicator'!$A$3:$AB$351, MATCH(Selection_Hide2!$A336, 'Full set Core Client Indicator'!$A$3:$A$351, 0), MATCH(Selection_Hide2!K$5, 'Full set Core Client Indicator'!$A$3:$AB$3, 0))=\"\", \"\",  INDEX('Full set Core Client Indicator'!$A$3:$AB$351, MATCH(Selection_Hide2!$A336, 'Full set Core Client Indicator'!$A$3:$A$351, 0), MATCH(Selection_Hide2!K$5, 'Full set Core Client Indicator'!$A$3:$AB$3, 0))), \"\")","v":""},{"$f":"IF(K336<>\"\", IF(INDEX('Full set Core Client Indicator'!$A$3:$AB$351, MATCH(Selection_Hide2!$A336, 'Full set Core Client Indicator'!$A$3:$A$351, 0), MATCH(Selection_Hide2!L$5, 'Full set Core Client Indicator'!$A$3:$AB$3, 0))=\"\", \"\",  INDEX('Full set Core Client Indicator'!$A$3:$AB$351, MATCH(Selection_Hide2!$A336, 'Full set Core Client Indicator'!$A$3:$A$351, 0), MATCH(Selection_Hide2!L$5, 'Full set Core Client Indicator'!$A$3:$AB$3, 0))), \"\")","v":""},{"$f":"IF(L336<>\"\", IF(INDEX('Full set Core Client Indicator'!$A$3:$AB$351, MATCH(Selection_Hide2!$A336, 'Full set Core Client Indicator'!$A$3:$A$351, 0), MATCH(Selection_Hide2!M$5, 'Full set Core Client Indicator'!$A$3:$AB$3, 0))=\"\", \"\",  INDEX('Full set Core Client Indicator'!$A$3:$AB$351, MATCH(Selection_Hide2!$A336, 'Full set Core Client Indicator'!$A$3:$A$351, 0), MATCH(Selection_Hide2!M$5, 'Full set Core Client Indicator'!$A$3:$AB$3, 0))), \"\")","v":""},{"$f":"IF(M336<>\"\", IF(INDEX('Full set Core Client Indicator'!$A$3:$AB$351, MATCH(Selection_Hide2!$A336, 'Full set Core Client Indicator'!$A$3:$A$351, 0), MATCH(Selection_Hide2!N$5, 'Full set Core Client Indicator'!$A$3:$AB$3, 0))=\"\", \"\",  INDEX('Full set Core Client Indicator'!$A$3:$AB$351, MATCH(Selection_Hide2!$A336, 'Full set Core Client Indicator'!$A$3:$A$351, 0), MATCH(Selection_Hide2!N$5, 'Full set Core Client Indicator'!$A$3:$AB$3, 0))), \"\")","v":""},{"$f":"IF(N336<>\"\", IF(INDEX('Full set Core Client Indicator'!$A$3:$AB$351, MATCH(Selection_Hide2!$A336, 'Full set Core Client Indicator'!$A$3:$A$351, 0), MATCH(Selection_Hide2!O$5, 'Full set Core Client Indicator'!$A$3:$AB$3, 0))=\"\", \"\",  INDEX('Full set Core Client Indicator'!$A$3:$AB$351, MATCH(Selection_Hide2!$A336, 'Full set Core Client Indicator'!$A$3:$A$351, 0), MATCH(Selection_Hide2!O$5, 'Full set Core Client Indicator'!$A$3:$AB$3, 0))), \"\")","v":""},{"$f":"IF(O336<>\"\", IF(INDEX('Full set Core Client Indicator'!$A$3:$AB$351, MATCH(Selection_Hide2!$A336, 'Full set Core Client Indicator'!$A$3:$A$351, 0), MATCH(Selection_Hide2!P$5, 'Full set Core Client Indicator'!$A$3:$AB$3, 0))=\"\", \"\",  INDEX('Full set Core Client Indicator'!$A$3:$AB$351, MATCH(Selection_Hide2!$A336, 'Full set Core Client Indicator'!$A$3:$A$351, 0), MATCH(Selection_Hide2!P$5, 'Full set Core Client Indicator'!$A$3:$AB$3, 0))), \"\")","v":""},{"$f":"IF(P336<>\"\", IF(INDEX('Full set Core Client Indicator'!$A$3:$AB$351, MATCH(Selection_Hide2!$A336, 'Full set Core Client Indicator'!$A$3:$A$351, 0), MATCH(Selection_Hide2!Q$5, 'Full set Core Client Indicator'!$A$3:$AB$3, 0))=\"\", \"\",  INDEX('Full set Core Client Indicator'!$A$3:$AB$351, MATCH(Selection_Hide2!$A336, 'Full set Core Client Indicator'!$A$3:$A$351, 0), MATCH(Selection_Hide2!Q$5, 'Full set Core Client Indicator'!$A$3:$AB$3, 0))), \"\")","v":""},{"$f":"IF(Q336<>\"\", IF(INDEX('Full set Core Client Indicator'!$A$3:$AB$351, MATCH(Selection_Hide2!$A336, 'Full set Core Client Indicator'!$A$3:$A$351, 0), MATCH(Selection_Hide2!R$5, 'Full set Core Client Indicator'!$A$3:$AB$3, 0))=\"\", \"\",  INDEX('Full set Core Client Indicator'!$A$3:$AB$351, MATCH(Selection_Hide2!$A336, 'Full set Core Client Indicator'!$A$3:$A$351, 0), MATCH(Selection_Hide2!R$5, 'Full set Core Client Indicator'!$A$3:$AB$3, 0))), \"\")","v":""},{"$f":"IF(R336<>\"\", IF(INDEX('Full set Core Client Indicator'!$A$3:$AB$351, MATCH(Selection_Hide2!$A336, 'Full set Core Client Indicator'!$A$3:$A$351, 0), MATCH(Selection_Hide2!S$5, 'Full set Core Client Indicator'!$A$3:$AB$3, 0))=\"\", \"\",  INDEX('Full set Core Client Indicator'!$A$3:$AB$351, MATCH(Selection_Hide2!$A336, 'Full set Core Client Indicator'!$A$3:$A$351, 0), MATCH(Selection_Hide2!S$5, 'Full set Core Client Indicator'!$A$3:$AB$3, 0))), \"\")","v":""},{"$f":"IF(S336<>\"\", IF(INDEX('Full set Core Client Indicator'!$A$3:$AB$351, MATCH(Selection_Hide2!$A336, 'Full set Core Client Indicator'!$A$3:$A$351, 0), MATCH(Selection_Hide2!T$5, 'Full set Core Client Indicator'!$A$3:$AB$3, 0))=\"\", \"\",  INDEX('Full set Core Client Indicator'!$A$3:$AB$351, MATCH(Selection_Hide2!$A336, 'Full set Core Client Indicator'!$A$3:$A$351, 0), MATCH(Selection_Hide2!T$5, 'Full set Core Client Indicator'!$A$3:$AB$3, 0))), \"\")","v":""},{"$f":"IF(T336<>\"\", IF(INDEX('Full set Core Client Indicator'!$A$3:$AB$351, MATCH(Selection_Hide2!$A336, 'Full set Core Client Indicator'!$A$3:$A$351, 0), MATCH(Selection_Hide2!U$5, 'Full set Core Client Indicator'!$A$3:$AB$3, 0))=\"\", \"\",  INDEX('Full set Core Client Indicator'!$A$3:$AB$351, MATCH(Selection_Hide2!$A336, 'Full set Core Client Indicator'!$A$3:$A$351, 0), MATCH(Selection_Hide2!U$5, 'Full set Core Client Indicator'!$A$3:$AB$3, 0))), \"\")","v":""},{"$f":"IF(U336<>\"\", IF(INDEX('Full set Core Client Indicator'!$A$3:$AB$351, MATCH(Selection_Hide2!$A336, 'Full set Core Client Indicator'!$A$3:$A$351, 0), MATCH(Selection_Hide2!V$5, 'Full set Core Client Indicator'!$A$3:$AB$3, 0))=\"\", \"\",  INDEX('Full set Core Client Indicator'!$A$3:$AB$351, MATCH(Selection_Hide2!$A336, 'Full set Core Client Indicator'!$A$3:$A$351, 0), MATCH(Selection_Hide2!V$5, 'Full set Core Client Indicator'!$A$3:$AB$3, 0))), \"\")","v":""},{"$f":"IF(V336<>\"\", IF(INDEX('Full set Core Client Indicator'!$A$3:$AB$351, MATCH(Selection_Hide2!$A336, 'Full set Core Client Indicator'!$A$3:$A$351, 0), MATCH(Selection_Hide2!W$5, 'Full set Core Client Indicator'!$A$3:$AB$3, 0))=\"\", \"\",  INDEX('Full set Core Client Indicator'!$A$3:$AB$351, MATCH(Selection_Hide2!$A336, 'Full set Core Client Indicator'!$A$3:$A$351, 0), MATCH(Selection_Hide2!W$5, 'Full set Core Client Indicator'!$A$3:$AB$3, 0))), \"\")","v":""},{"$f":"IF(W336<>\"\", IF(INDEX('Full set Core Client Indicator'!$A$3:$AB$351, MATCH(Selection_Hide2!$A336, 'Full set Core Client Indicator'!$A$3:$A$351, 0), MATCH(Selection_Hide2!X$5, 'Full set Core Client Indicator'!$A$3:$AB$3, 0))=\"\", \"\",  INDEX('Full set Core Client Indicator'!$A$3:$AB$351, MATCH(Selection_Hide2!$A336, 'Full set Core Client Indicator'!$A$3:$A$351, 0), MATCH(Selection_Hide2!X$5, 'Full set Core Client Indicator'!$A$3:$AB$3, 0))), \"\")","v":""},{"$f":"IF(X336<>\"\", IF(INDEX('Full set Core Client Indicator'!$A$3:$AB$351, MATCH(Selection_Hide2!$A336, 'Full set Core Client Indicator'!$A$3:$A$351, 0), MATCH(Selection_Hide2!Y$5, 'Full set Core Client Indicator'!$A$3:$AB$3, 0))=\"\", \"\",  INDEX('Full set Core Client Indicator'!$A$3:$AB$351, MATCH(Selection_Hide2!$A336, 'Full set Core Client Indicator'!$A$3:$A$351, 0), MATCH(Selection_Hide2!Y$5, 'Full set Core Client Indicator'!$A$3:$AB$3, 0))), \"\")","v":""},{"$f":"IF(Y336<>\"\", IF(INDEX('Full set Core Client Indicator'!$A$3:$AB$351, MATCH(Selection_Hide2!$A336, 'Full set Core Client Indicator'!$A$3:$A$351, 0), MATCH(Selection_Hide2!Z$5, 'Full set Core Client Indicator'!$A$3:$AB$3, 0))=\"\", \"\",  INDEX('Full set Core Client Indicator'!$A$3:$AB$351, MATCH(Selection_Hide2!$A336, 'Full set Core Client Indicator'!$A$3:$A$351, 0), MATCH(Selection_Hide2!Z$5, 'Full set Core Client Indicator'!$A$3:$AB$3, 0))), \"\")","v":""},{"$f":"IF(Z336<>\"\", IF(INDEX('Full set Core Client Indicator'!$A$3:$AB$351, MATCH(Selection_Hide2!$A336, 'Full set Core Client Indicator'!$A$3:$A$351, 0), MATCH(Selection_Hide2!AA$5, 'Full set Core Client Indicator'!$A$3:$AB$3, 0))=\"\", \"\",  INDEX('Full set Core Client Indicator'!$A$3:$AB$351, MATCH(Selection_Hide2!$A336, 'Full set Core Client Indicator'!$A$3:$A$351, 0), MATCH(Selection_Hide2!AA$5, 'Full set Core Client Indicator'!$A$3:$AB$3, 0))), \"\")","v":""},{"$f":"IF(AA336<>\"\", IF(INDEX('Full set Core Client Indicator'!$A$3:$AB$351, MATCH(Selection_Hide2!$A336, 'Full set Core Client Indicator'!$A$3:$A$351, 0), MATCH(Selection_Hide2!AB$5, 'Full set Core Client Indicator'!$A$3:$AB$3, 0))=\"\", \"\",  INDEX('Full set Core Client Indicator'!$A$3:$AB$351, MATCH(Selection_Hide2!$A336, 'Full set Core Client Indicator'!$A$3:$A$351, 0), MATCH(Selection_Hide2!AB$5, 'Full set Core Client Indicator'!$A$3:$AB$3, 0))), \"\")","v":""}]
[{"$f":"IF(AND(Selection_Hide1!C335<>0, Selection_Hide1!C335<>\"Grand Total\"), Selection_Hide1!C335, \"\")","v":""},{"$f":"IF(A337<>\"\", IF(INDEX('Full set Core Client Indicator'!$A$3:$AB$351, MATCH(Selection_Hide2!$A337, 'Full set Core Client Indicator'!$A$3:$A$351, 0), MATCH(Selection_Hide2!B$5, 'Full set Core Client Indicator'!$A$3:$AB$3, 0))=\"\", \"\",  INDEX('Full set Core Client Indicator'!$A$3:$AB$351, MATCH(Selection_Hide2!$A337, 'Full set Core Client Indicator'!$A$3:$A$351, 0), MATCH(Selection_Hide2!B$5, 'Full set Core Client Indicator'!$A$3:$AB$3, 0))), \"\")","v":""},{"$f":"IF(B337<>\"\", IF(INDEX('Full set Core Client Indicator'!$A$3:$AB$351, MATCH(Selection_Hide2!$A337, 'Full set Core Client Indicator'!$A$3:$A$351, 0), MATCH(Selection_Hide2!C$5, 'Full set Core Client Indicator'!$A$3:$AB$3, 0))=\"\", \"\",  INDEX('Full set Core Client Indicator'!$A$3:$AB$351, MATCH(Selection_Hide2!$A337, 'Full set Core Client Indicator'!$A$3:$A$351, 0), MATCH(Selection_Hide2!C$5, 'Full set Core Client Indicator'!$A$3:$AB$3, 0))), \"\")","v":""},{"$f":"IF(C337<>\"\", IF(INDEX('Full set Core Client Indicator'!$A$3:$AB$351, MATCH(Selection_Hide2!$A337, 'Full set Core Client Indicator'!$A$3:$A$351, 0), MATCH(Selection_Hide2!D$5, 'Full set Core Client Indicator'!$A$3:$AB$3, 0))=\"\", \"\",  INDEX('Full set Core Client Indicator'!$A$3:$AB$351, MATCH(Selection_Hide2!$A337, 'Full set Core Client Indicator'!$A$3:$A$351, 0), MATCH(Selection_Hide2!D$5, 'Full set Core Client Indicator'!$A$3:$AB$3, 0))), \"\")","v":""},{"$f":"IF(D337<>\"\", IF(INDEX('Full set Core Client Indicator'!$A$3:$AB$351, MATCH(Selection_Hide2!$A337, 'Full set Core Client Indicator'!$A$3:$A$351, 0), MATCH(Selection_Hide2!E$5, 'Full set Core Client Indicator'!$A$3:$AB$3, 0))=\"\", \"\",  INDEX('Full set Core Client Indicator'!$A$3:$AB$351, MATCH(Selection_Hide2!$A337, 'Full set Core Client Indicator'!$A$3:$A$351, 0), MATCH(Selection_Hide2!E$5, 'Full set Core Client Indicator'!$A$3:$AB$3, 0))), \"\")","v":""},{"$f":"IF(E337<>\"\", IF(INDEX('Full set Core Client Indicator'!$A$3:$AB$351, MATCH(Selection_Hide2!$A337, 'Full set Core Client Indicator'!$A$3:$A$351, 0), MATCH(Selection_Hide2!F$5, 'Full set Core Client Indicator'!$A$3:$AB$3, 0))=\"\", \"\",  INDEX('Full set Core Client Indicator'!$A$3:$AB$351, MATCH(Selection_Hide2!$A337, 'Full set Core Client Indicator'!$A$3:$A$351, 0), MATCH(Selection_Hide2!F$5, 'Full set Core Client Indicator'!$A$3:$AB$3, 0))), \"\")","v":""},{"$f":"IF(F337<>\"\", IF(INDEX('Full set Core Client Indicator'!$A$3:$AB$351, MATCH(Selection_Hide2!$A337, 'Full set Core Client Indicator'!$A$3:$A$351, 0), MATCH(Selection_Hide2!G$5, 'Full set Core Client Indicator'!$A$3:$AB$3, 0))=\"\", \"\",  INDEX('Full set Core Client Indicator'!$A$3:$AB$351, MATCH(Selection_Hide2!$A337, 'Full set Core Client Indicator'!$A$3:$A$351, 0), MATCH(Selection_Hide2!G$5, 'Full set Core Client Indicator'!$A$3:$AB$3, 0))), \"\")","v":""},{"$f":"IF(G337<>\"\", IF(INDEX('Full set Core Client Indicator'!$A$3:$AB$351, MATCH(Selection_Hide2!$A337, 'Full set Core Client Indicator'!$A$3:$A$351, 0), MATCH(Selection_Hide2!H$5, 'Full set Core Client Indicator'!$A$3:$AB$3, 0))=\"\", \"\",  INDEX('Full set Core Client Indicator'!$A$3:$AB$351, MATCH(Selection_Hide2!$A337, 'Full set Core Client Indicator'!$A$3:$A$351, 0), MATCH(Selection_Hide2!H$5, 'Full set Core Client Indicator'!$A$3:$AB$3, 0))), \"\")","v":""},{"$f":"IF(H337<>\"\", IF(INDEX('Full set Core Client Indicator'!$A$3:$AB$351, MATCH(Selection_Hide2!$A337, 'Full set Core Client Indicator'!$A$3:$A$351, 0), MATCH(Selection_Hide2!I$5, 'Full set Core Client Indicator'!$A$3:$AB$3, 0))=\"\", \"\",  INDEX('Full set Core Client Indicator'!$A$3:$AB$351, MATCH(Selection_Hide2!$A337, 'Full set Core Client Indicator'!$A$3:$A$351, 0), MATCH(Selection_Hide2!I$5, 'Full set Core Client Indicator'!$A$3:$AB$3, 0))), \"\")","v":""},{"$f":"IF(I337<>\"\", IF(INDEX('Full set Core Client Indicator'!$A$3:$AB$351, MATCH(Selection_Hide2!$A337, 'Full set Core Client Indicator'!$A$3:$A$351, 0), MATCH(Selection_Hide2!J$5, 'Full set Core Client Indicator'!$A$3:$AB$3, 0))=\"\", \"\",  INDEX('Full set Core Client Indicator'!$A$3:$AB$351, MATCH(Selection_Hide2!$A337, 'Full set Core Client Indicator'!$A$3:$A$351, 0), MATCH(Selection_Hide2!J$5, 'Full set Core Client Indicator'!$A$3:$AB$3, 0))), \"\")","v":""},{"$f":"IF(J337<>\"\", IF(INDEX('Full set Core Client Indicator'!$A$3:$AB$351, MATCH(Selection_Hide2!$A337, 'Full set Core Client Indicator'!$A$3:$A$351, 0), MATCH(Selection_Hide2!K$5, 'Full set Core Client Indicator'!$A$3:$AB$3, 0))=\"\", \"\",  INDEX('Full set Core Client Indicator'!$A$3:$AB$351, MATCH(Selection_Hide2!$A337, 'Full set Core Client Indicator'!$A$3:$A$351, 0), MATCH(Selection_Hide2!K$5, 'Full set Core Client Indicator'!$A$3:$AB$3, 0))), \"\")","v":""},{"$f":"IF(K337<>\"\", IF(INDEX('Full set Core Client Indicator'!$A$3:$AB$351, MATCH(Selection_Hide2!$A337, 'Full set Core Client Indicator'!$A$3:$A$351, 0), MATCH(Selection_Hide2!L$5, 'Full set Core Client Indicator'!$A$3:$AB$3, 0))=\"\", \"\",  INDEX('Full set Core Client Indicator'!$A$3:$AB$351, MATCH(Selection_Hide2!$A337, 'Full set Core Client Indicator'!$A$3:$A$351, 0), MATCH(Selection_Hide2!L$5, 'Full set Core Client Indicator'!$A$3:$AB$3, 0))), \"\")","v":""},{"$f":"IF(L337<>\"\", IF(INDEX('Full set Core Client Indicator'!$A$3:$AB$351, MATCH(Selection_Hide2!$A337, 'Full set Core Client Indicator'!$A$3:$A$351, 0), MATCH(Selection_Hide2!M$5, 'Full set Core Client Indicator'!$A$3:$AB$3, 0))=\"\", \"\",  INDEX('Full set Core Client Indicator'!$A$3:$AB$351, MATCH(Selection_Hide2!$A337, 'Full set Core Client Indicator'!$A$3:$A$351, 0), MATCH(Selection_Hide2!M$5, 'Full set Core Client Indicator'!$A$3:$AB$3, 0))), \"\")","v":""},{"$f":"IF(M337<>\"\", IF(INDEX('Full set Core Client Indicator'!$A$3:$AB$351, MATCH(Selection_Hide2!$A337, 'Full set Core Client Indicator'!$A$3:$A$351, 0), MATCH(Selection_Hide2!N$5, 'Full set Core Client Indicator'!$A$3:$AB$3, 0))=\"\", \"\",  INDEX('Full set Core Client Indicator'!$A$3:$AB$351, MATCH(Selection_Hide2!$A337, 'Full set Core Client Indicator'!$A$3:$A$351, 0), MATCH(Selection_Hide2!N$5, 'Full set Core Client Indicator'!$A$3:$AB$3, 0))), \"\")","v":""},{"$f":"IF(N337<>\"\", IF(INDEX('Full set Core Client Indicator'!$A$3:$AB$351, MATCH(Selection_Hide2!$A337, 'Full set Core Client Indicator'!$A$3:$A$351, 0), MATCH(Selection_Hide2!O$5, 'Full set Core Client Indicator'!$A$3:$AB$3, 0))=\"\", \"\",  INDEX('Full set Core Client Indicator'!$A$3:$AB$351, MATCH(Selection_Hide2!$A337, 'Full set Core Client Indicator'!$A$3:$A$351, 0), MATCH(Selection_Hide2!O$5, 'Full set Core Client Indicator'!$A$3:$AB$3, 0))), \"\")","v":""},{"$f":"IF(O337<>\"\", IF(INDEX('Full set Core Client Indicator'!$A$3:$AB$351, MATCH(Selection_Hide2!$A337, 'Full set Core Client Indicator'!$A$3:$A$351, 0), MATCH(Selection_Hide2!P$5, 'Full set Core Client Indicator'!$A$3:$AB$3, 0))=\"\", \"\",  INDEX('Full set Core Client Indicator'!$A$3:$AB$351, MATCH(Selection_Hide2!$A337, 'Full set Core Client Indicator'!$A$3:$A$351, 0), MATCH(Selection_Hide2!P$5, 'Full set Core Client Indicator'!$A$3:$AB$3, 0))), \"\")","v":""},{"$f":"IF(P337<>\"\", IF(INDEX('Full set Core Client Indicator'!$A$3:$AB$351, MATCH(Selection_Hide2!$A337, 'Full set Core Client Indicator'!$A$3:$A$351, 0), MATCH(Selection_Hide2!Q$5, 'Full set Core Client Indicator'!$A$3:$AB$3, 0))=\"\", \"\",  INDEX('Full set Core Client Indicator'!$A$3:$AB$351, MATCH(Selection_Hide2!$A337, 'Full set Core Client Indicator'!$A$3:$A$351, 0), MATCH(Selection_Hide2!Q$5, 'Full set Core Client Indicator'!$A$3:$AB$3, 0))), \"\")","v":""},{"$f":"IF(Q337<>\"\", IF(INDEX('Full set Core Client Indicator'!$A$3:$AB$351, MATCH(Selection_Hide2!$A337, 'Full set Core Client Indicator'!$A$3:$A$351, 0), MATCH(Selection_Hide2!R$5, 'Full set Core Client Indicator'!$A$3:$AB$3, 0))=\"\", \"\",  INDEX('Full set Core Client Indicator'!$A$3:$AB$351, MATCH(Selection_Hide2!$A337, 'Full set Core Client Indicator'!$A$3:$A$351, 0), MATCH(Selection_Hide2!R$5, 'Full set Core Client Indicator'!$A$3:$AB$3, 0))), \"\")","v":""},{"$f":"IF(R337<>\"\", IF(INDEX('Full set Core Client Indicator'!$A$3:$AB$351, MATCH(Selection_Hide2!$A337, 'Full set Core Client Indicator'!$A$3:$A$351, 0), MATCH(Selection_Hide2!S$5, 'Full set Core Client Indicator'!$A$3:$AB$3, 0))=\"\", \"\",  INDEX('Full set Core Client Indicator'!$A$3:$AB$351, MATCH(Selection_Hide2!$A337, 'Full set Core Client Indicator'!$A$3:$A$351, 0), MATCH(Selection_Hide2!S$5, 'Full set Core Client Indicator'!$A$3:$AB$3, 0))), \"\")","v":""},{"$f":"IF(S337<>\"\", IF(INDEX('Full set Core Client Indicator'!$A$3:$AB$351, MATCH(Selection_Hide2!$A337, 'Full set Core Client Indicator'!$A$3:$A$351, 0), MATCH(Selection_Hide2!T$5, 'Full set Core Client Indicator'!$A$3:$AB$3, 0))=\"\", \"\",  INDEX('Full set Core Client Indicator'!$A$3:$AB$351, MATCH(Selection_Hide2!$A337, 'Full set Core Client Indicator'!$A$3:$A$351, 0), MATCH(Selection_Hide2!T$5, 'Full set Core Client Indicator'!$A$3:$AB$3, 0))), \"\")","v":""},{"$f":"IF(T337<>\"\", IF(INDEX('Full set Core Client Indicator'!$A$3:$AB$351, MATCH(Selection_Hide2!$A337, 'Full set Core Client Indicator'!$A$3:$A$351, 0), MATCH(Selection_Hide2!U$5, 'Full set Core Client Indicator'!$A$3:$AB$3, 0))=\"\", \"\",  INDEX('Full set Core Client Indicator'!$A$3:$AB$351, MATCH(Selection_Hide2!$A337, 'Full set Core Client Indicator'!$A$3:$A$351, 0), MATCH(Selection_Hide2!U$5, 'Full set Core Client Indicator'!$A$3:$AB$3, 0))), \"\")","v":""},{"$f":"IF(U337<>\"\", IF(INDEX('Full set Core Client Indicator'!$A$3:$AB$351, MATCH(Selection_Hide2!$A337, 'Full set Core Client Indicator'!$A$3:$A$351, 0), MATCH(Selection_Hide2!V$5, 'Full set Core Client Indicator'!$A$3:$AB$3, 0))=\"\", \"\",  INDEX('Full set Core Client Indicator'!$A$3:$AB$351, MATCH(Selection_Hide2!$A337, 'Full set Core Client Indicator'!$A$3:$A$351, 0), MATCH(Selection_Hide2!V$5, 'Full set Core Client Indicator'!$A$3:$AB$3, 0))), \"\")","v":""},{"$f":"IF(V337<>\"\", IF(INDEX('Full set Core Client Indicator'!$A$3:$AB$351, MATCH(Selection_Hide2!$A337, 'Full set Core Client Indicator'!$A$3:$A$351, 0), MATCH(Selection_Hide2!W$5, 'Full set Core Client Indicator'!$A$3:$AB$3, 0))=\"\", \"\",  INDEX('Full set Core Client Indicator'!$A$3:$AB$351, MATCH(Selection_Hide2!$A337, 'Full set Core Client Indicator'!$A$3:$A$351, 0), MATCH(Selection_Hide2!W$5, 'Full set Core Client Indicator'!$A$3:$AB$3, 0))), \"\")","v":""},{"$f":"IF(W337<>\"\", IF(INDEX('Full set Core Client Indicator'!$A$3:$AB$351, MATCH(Selection_Hide2!$A337, 'Full set Core Client Indicator'!$A$3:$A$351, 0), MATCH(Selection_Hide2!X$5, 'Full set Core Client Indicator'!$A$3:$AB$3, 0))=\"\", \"\",  INDEX('Full set Core Client Indicator'!$A$3:$AB$351, MATCH(Selection_Hide2!$A337, 'Full set Core Client Indicator'!$A$3:$A$351, 0), MATCH(Selection_Hide2!X$5, 'Full set Core Client Indicator'!$A$3:$AB$3, 0))), \"\")","v":""},{"$f":"IF(X337<>\"\", IF(INDEX('Full set Core Client Indicator'!$A$3:$AB$351, MATCH(Selection_Hide2!$A337, 'Full set Core Client Indicator'!$A$3:$A$351, 0), MATCH(Selection_Hide2!Y$5, 'Full set Core Client Indicator'!$A$3:$AB$3, 0))=\"\", \"\",  INDEX('Full set Core Client Indicator'!$A$3:$AB$351, MATCH(Selection_Hide2!$A337, 'Full set Core Client Indicator'!$A$3:$A$351, 0), MATCH(Selection_Hide2!Y$5, 'Full set Core Client Indicator'!$A$3:$AB$3, 0))), \"\")","v":""},{"$f":"IF(Y337<>\"\", IF(INDEX('Full set Core Client Indicator'!$A$3:$AB$351, MATCH(Selection_Hide2!$A337, 'Full set Core Client Indicator'!$A$3:$A$351, 0), MATCH(Selection_Hide2!Z$5, 'Full set Core Client Indicator'!$A$3:$AB$3, 0))=\"\", \"\",  INDEX('Full set Core Client Indicator'!$A$3:$AB$351, MATCH(Selection_Hide2!$A337, 'Full set Core Client Indicator'!$A$3:$A$351, 0), MATCH(Selection_Hide2!Z$5, 'Full set Core Client Indicator'!$A$3:$AB$3, 0))), \"\")","v":""},{"$f":"IF(Z337<>\"\", IF(INDEX('Full set Core Client Indicator'!$A$3:$AB$351, MATCH(Selection_Hide2!$A337, 'Full set Core Client Indicator'!$A$3:$A$351, 0), MATCH(Selection_Hide2!AA$5, 'Full set Core Client Indicator'!$A$3:$AB$3, 0))=\"\", \"\",  INDEX('Full set Core Client Indicator'!$A$3:$AB$351, MATCH(Selection_Hide2!$A337, 'Full set Core Client Indicator'!$A$3:$A$351, 0), MATCH(Selection_Hide2!AA$5, 'Full set Core Client Indicator'!$A$3:$AB$3, 0))), \"\")","v":""},{"$f":"IF(AA337<>\"\", IF(INDEX('Full set Core Client Indicator'!$A$3:$AB$351, MATCH(Selection_Hide2!$A337, 'Full set Core Client Indicator'!$A$3:$A$351, 0), MATCH(Selection_Hide2!AB$5, 'Full set Core Client Indicator'!$A$3:$AB$3, 0))=\"\", \"\",  INDEX('Full set Core Client Indicator'!$A$3:$AB$351, MATCH(Selection_Hide2!$A337, 'Full set Core Client Indicator'!$A$3:$A$351, 0), MATCH(Selection_Hide2!AB$5, 'Full set Core Client Indicator'!$A$3:$AB$3, 0))), \"\")","v":""}]
[{"$f":"IF(AND(Selection_Hide1!C336<>0, Selection_Hide1!C336<>\"Grand Total\"), Selection_Hide1!C336, \"\")","v":""},{"$f":"IF(A338<>\"\", IF(INDEX('Full set Core Client Indicator'!$A$3:$AB$351, MATCH(Selection_Hide2!$A338, 'Full set Core Client Indicator'!$A$3:$A$351, 0), MATCH(Selection_Hide2!B$5, 'Full set Core Client Indicator'!$A$3:$AB$3, 0))=\"\", \"\",  INDEX('Full set Core Client Indicator'!$A$3:$AB$351, MATCH(Selection_Hide2!$A338, 'Full set Core Client Indicator'!$A$3:$A$351, 0), MATCH(Selection_Hide2!B$5, 'Full set Core Client Indicator'!$A$3:$AB$3, 0))), \"\")","v":""},{"$f":"IF(B338<>\"\", IF(INDEX('Full set Core Client Indicator'!$A$3:$AB$351, MATCH(Selection_Hide2!$A338, 'Full set Core Client Indicator'!$A$3:$A$351, 0), MATCH(Selection_Hide2!C$5, 'Full set Core Client Indicator'!$A$3:$AB$3, 0))=\"\", \"\",  INDEX('Full set Core Client Indicator'!$A$3:$AB$351, MATCH(Selection_Hide2!$A338, 'Full set Core Client Indicator'!$A$3:$A$351, 0), MATCH(Selection_Hide2!C$5, 'Full set Core Client Indicator'!$A$3:$AB$3, 0))), \"\")","v":""},{"$f":"IF(C338<>\"\", IF(INDEX('Full set Core Client Indicator'!$A$3:$AB$351, MATCH(Selection_Hide2!$A338, 'Full set Core Client Indicator'!$A$3:$A$351, 0), MATCH(Selection_Hide2!D$5, 'Full set Core Client Indicator'!$A$3:$AB$3, 0))=\"\", \"\",  INDEX('Full set Core Client Indicator'!$A$3:$AB$351, MATCH(Selection_Hide2!$A338, 'Full set Core Client Indicator'!$A$3:$A$351, 0), MATCH(Selection_Hide2!D$5, 'Full set Core Client Indicator'!$A$3:$AB$3, 0))), \"\")","v":""},{"$f":"IF(D338<>\"\", IF(INDEX('Full set Core Client Indicator'!$A$3:$AB$351, MATCH(Selection_Hide2!$A338, 'Full set Core Client Indicator'!$A$3:$A$351, 0), MATCH(Selection_Hide2!E$5, 'Full set Core Client Indicator'!$A$3:$AB$3, 0))=\"\", \"\",  INDEX('Full set Core Client Indicator'!$A$3:$AB$351, MATCH(Selection_Hide2!$A338, 'Full set Core Client Indicator'!$A$3:$A$351, 0), MATCH(Selection_Hide2!E$5, 'Full set Core Client Indicator'!$A$3:$AB$3, 0))), \"\")","v":""},{"$f":"IF(E338<>\"\", IF(INDEX('Full set Core Client Indicator'!$A$3:$AB$351, MATCH(Selection_Hide2!$A338, 'Full set Core Client Indicator'!$A$3:$A$351, 0), MATCH(Selection_Hide2!F$5, 'Full set Core Client Indicator'!$A$3:$AB$3, 0))=\"\", \"\",  INDEX('Full set Core Client Indicator'!$A$3:$AB$351, MATCH(Selection_Hide2!$A338, 'Full set Core Client Indicator'!$A$3:$A$351, 0), MATCH(Selection_Hide2!F$5, 'Full set Core Client Indicator'!$A$3:$AB$3, 0))), \"\")","v":""},{"$f":"IF(F338<>\"\", IF(INDEX('Full set Core Client Indicator'!$A$3:$AB$351, MATCH(Selection_Hide2!$A338, 'Full set Core Client Indicator'!$A$3:$A$351, 0), MATCH(Selection_Hide2!G$5, 'Full set Core Client Indicator'!$A$3:$AB$3, 0))=\"\", \"\",  INDEX('Full set Core Client Indicator'!$A$3:$AB$351, MATCH(Selection_Hide2!$A338, 'Full set Core Client Indicator'!$A$3:$A$351, 0), MATCH(Selection_Hide2!G$5, 'Full set Core Client Indicator'!$A$3:$AB$3, 0))), \"\")","v":""},{"$f":"IF(G338<>\"\", IF(INDEX('Full set Core Client Indicator'!$A$3:$AB$351, MATCH(Selection_Hide2!$A338, 'Full set Core Client Indicator'!$A$3:$A$351, 0), MATCH(Selection_Hide2!H$5, 'Full set Core Client Indicator'!$A$3:$AB$3, 0))=\"\", \"\",  INDEX('Full set Core Client Indicator'!$A$3:$AB$351, MATCH(Selection_Hide2!$A338, 'Full set Core Client Indicator'!$A$3:$A$351, 0), MATCH(Selection_Hide2!H$5, 'Full set Core Client Indicator'!$A$3:$AB$3, 0))), \"\")","v":""},{"$f":"IF(H338<>\"\", IF(INDEX('Full set Core Client Indicator'!$A$3:$AB$351, MATCH(Selection_Hide2!$A338, 'Full set Core Client Indicator'!$A$3:$A$351, 0), MATCH(Selection_Hide2!I$5, 'Full set Core Client Indicator'!$A$3:$AB$3, 0))=\"\", \"\",  INDEX('Full set Core Client Indicator'!$A$3:$AB$351, MATCH(Selection_Hide2!$A338, 'Full set Core Client Indicator'!$A$3:$A$351, 0), MATCH(Selection_Hide2!I$5, 'Full set Core Client Indicator'!$A$3:$AB$3, 0))), \"\")","v":""},{"$f":"IF(I338<>\"\", IF(INDEX('Full set Core Client Indicator'!$A$3:$AB$351, MATCH(Selection_Hide2!$A338, 'Full set Core Client Indicator'!$A$3:$A$351, 0), MATCH(Selection_Hide2!J$5, 'Full set Core Client Indicator'!$A$3:$AB$3, 0))=\"\", \"\",  INDEX('Full set Core Client Indicator'!$A$3:$AB$351, MATCH(Selection_Hide2!$A338, 'Full set Core Client Indicator'!$A$3:$A$351, 0), MATCH(Selection_Hide2!J$5, 'Full set Core Client Indicator'!$A$3:$AB$3, 0))), \"\")","v":""},{"$f":"IF(J338<>\"\", IF(INDEX('Full set Core Client Indicator'!$A$3:$AB$351, MATCH(Selection_Hide2!$A338, 'Full set Core Client Indicator'!$A$3:$A$351, 0), MATCH(Selection_Hide2!K$5, 'Full set Core Client Indicator'!$A$3:$AB$3, 0))=\"\", \"\",  INDEX('Full set Core Client Indicator'!$A$3:$AB$351, MATCH(Selection_Hide2!$A338, 'Full set Core Client Indicator'!$A$3:$A$351, 0), MATCH(Selection_Hide2!K$5, 'Full set Core Client Indicator'!$A$3:$AB$3, 0))), \"\")","v":""},{"$f":"IF(K338<>\"\", IF(INDEX('Full set Core Client Indicator'!$A$3:$AB$351, MATCH(Selection_Hide2!$A338, 'Full set Core Client Indicator'!$A$3:$A$351, 0), MATCH(Selection_Hide2!L$5, 'Full set Core Client Indicator'!$A$3:$AB$3, 0))=\"\", \"\",  INDEX('Full set Core Client Indicator'!$A$3:$AB$351, MATCH(Selection_Hide2!$A338, 'Full set Core Client Indicator'!$A$3:$A$351, 0), MATCH(Selection_Hide2!L$5, 'Full set Core Client Indicator'!$A$3:$AB$3, 0))), \"\")","v":""},{"$f":"IF(L338<>\"\", IF(INDEX('Full set Core Client Indicator'!$A$3:$AB$351, MATCH(Selection_Hide2!$A338, 'Full set Core Client Indicator'!$A$3:$A$351, 0), MATCH(Selection_Hide2!M$5, 'Full set Core Client Indicator'!$A$3:$AB$3, 0))=\"\", \"\",  INDEX('Full set Core Client Indicator'!$A$3:$AB$351, MATCH(Selection_Hide2!$A338, 'Full set Core Client Indicator'!$A$3:$A$351, 0), MATCH(Selection_Hide2!M$5, 'Full set Core Client Indicator'!$A$3:$AB$3, 0))), \"\")","v":""},{"$f":"IF(M338<>\"\", IF(INDEX('Full set Core Client Indicator'!$A$3:$AB$351, MATCH(Selection_Hide2!$A338, 'Full set Core Client Indicator'!$A$3:$A$351, 0), MATCH(Selection_Hide2!N$5, 'Full set Core Client Indicator'!$A$3:$AB$3, 0))=\"\", \"\",  INDEX('Full set Core Client Indicator'!$A$3:$AB$351, MATCH(Selection_Hide2!$A338, 'Full set Core Client Indicator'!$A$3:$A$351, 0), MATCH(Selection_Hide2!N$5, 'Full set Core Client Indicator'!$A$3:$AB$3, 0))), \"\")","v":""},{"$f":"IF(N338<>\"\", IF(INDEX('Full set Core Client Indicator'!$A$3:$AB$351, MATCH(Selection_Hide2!$A338, 'Full set Core Client Indicator'!$A$3:$A$351, 0), MATCH(Selection_Hide2!O$5, 'Full set Core Client Indicator'!$A$3:$AB$3, 0))=\"\", \"\",  INDEX('Full set Core Client Indicator'!$A$3:$AB$351, MATCH(Selection_Hide2!$A338, 'Full set Core Client Indicator'!$A$3:$A$351, 0), MATCH(Selection_Hide2!O$5, 'Full set Core Client Indicator'!$A$3:$AB$3, 0))), \"\")","v":""},{"$f":"IF(O338<>\"\", IF(INDEX('Full set Core Client Indicator'!$A$3:$AB$351, MATCH(Selection_Hide2!$A338, 'Full set Core Client Indicator'!$A$3:$A$351, 0), MATCH(Selection_Hide2!P$5, 'Full set Core Client Indicator'!$A$3:$AB$3, 0))=\"\", \"\",  INDEX('Full set Core Client Indicator'!$A$3:$AB$351, MATCH(Selection_Hide2!$A338, 'Full set Core Client Indicator'!$A$3:$A$351, 0), MATCH(Selection_Hide2!P$5, 'Full set Core Client Indicator'!$A$3:$AB$3, 0))), \"\")","v":""},{"$f":"IF(P338<>\"\", IF(INDEX('Full set Core Client Indicator'!$A$3:$AB$351, MATCH(Selection_Hide2!$A338, 'Full set Core Client Indicator'!$A$3:$A$351, 0), MATCH(Selection_Hide2!Q$5, 'Full set Core Client Indicator'!$A$3:$AB$3, 0))=\"\", \"\",  INDEX('Full set Core Client Indicator'!$A$3:$AB$351, MATCH(Selection_Hide2!$A338, 'Full set Core Client Indicator'!$A$3:$A$351, 0), MATCH(Selection_Hide2!Q$5, 'Full set Core Client Indicator'!$A$3:$AB$3, 0))), \"\")","v":""},{"$f":"IF(Q338<>\"\", IF(INDEX('Full set Core Client Indicator'!$A$3:$AB$351, MATCH(Selection_Hide2!$A338, 'Full set Core Client Indicator'!$A$3:$A$351, 0), MATCH(Selection_Hide2!R$5, 'Full set Core Client Indicator'!$A$3:$AB$3, 0))=\"\", \"\",  INDEX('Full set Core Client Indicator'!$A$3:$AB$351, MATCH(Selection_Hide2!$A338, 'Full set Core Client Indicator'!$A$3:$A$351, 0), MATCH(Selection_Hide2!R$5, 'Full set Core Client Indicator'!$A$3:$AB$3, 0))), \"\")","v":""},{"$f":"IF(R338<>\"\", IF(INDEX('Full set Core Client Indicator'!$A$3:$AB$351, MATCH(Selection_Hide2!$A338, 'Full set Core Client Indicator'!$A$3:$A$351, 0), MATCH(Selection_Hide2!S$5, 'Full set Core Client Indicator'!$A$3:$AB$3, 0))=\"\", \"\",  INDEX('Full set Core Client Indicator'!$A$3:$AB$351, MATCH(Selection_Hide2!$A338, 'Full set Core Client Indicator'!$A$3:$A$351, 0), MATCH(Selection_Hide2!S$5, 'Full set Core Client Indicator'!$A$3:$AB$3, 0))), \"\")","v":""},{"$f":"IF(S338<>\"\", IF(INDEX('Full set Core Client Indicator'!$A$3:$AB$351, MATCH(Selection_Hide2!$A338, 'Full set Core Client Indicator'!$A$3:$A$351, 0), MATCH(Selection_Hide2!T$5, 'Full set Core Client Indicator'!$A$3:$AB$3, 0))=\"\", \"\",  INDEX('Full set Core Client Indicator'!$A$3:$AB$351, MATCH(Selection_Hide2!$A338, 'Full set Core Client Indicator'!$A$3:$A$351, 0), MATCH(Selection_Hide2!T$5, 'Full set Core Client Indicator'!$A$3:$AB$3, 0))), \"\")","v":""},{"$f":"IF(T338<>\"\", IF(INDEX('Full set Core Client Indicator'!$A$3:$AB$351, MATCH(Selection_Hide2!$A338, 'Full set Core Client Indicator'!$A$3:$A$351, 0), MATCH(Selection_Hide2!U$5, 'Full set Core Client Indicator'!$A$3:$AB$3, 0))=\"\", \"\",  INDEX('Full set Core Client Indicator'!$A$3:$AB$351, MATCH(Selection_Hide2!$A338, 'Full set Core Client Indicator'!$A$3:$A$351, 0), MATCH(Selection_Hide2!U$5, 'Full set Core Client Indicator'!$A$3:$AB$3, 0))), \"\")","v":""},{"$f":"IF(U338<>\"\", IF(INDEX('Full set Core Client Indicator'!$A$3:$AB$351, MATCH(Selection_Hide2!$A338, 'Full set Core Client Indicator'!$A$3:$A$351, 0), MATCH(Selection_Hide2!V$5, 'Full set Core Client Indicator'!$A$3:$AB$3, 0))=\"\", \"\",  INDEX('Full set Core Client Indicator'!$A$3:$AB$351, MATCH(Selection_Hide2!$A338, 'Full set Core Client Indicator'!$A$3:$A$351, 0), MATCH(Selection_Hide2!V$5, 'Full set Core Client Indicator'!$A$3:$AB$3, 0))), \"\")","v":""},{"$f":"IF(V338<>\"\", IF(INDEX('Full set Core Client Indicator'!$A$3:$AB$351, MATCH(Selection_Hide2!$A338, 'Full set Core Client Indicator'!$A$3:$A$351, 0), MATCH(Selection_Hide2!W$5, 'Full set Core Client Indicator'!$A$3:$AB$3, 0))=\"\", \"\",  INDEX('Full set Core Client Indicator'!$A$3:$AB$351, MATCH(Selection_Hide2!$A338, 'Full set Core Client Indicator'!$A$3:$A$351, 0), MATCH(Selection_Hide2!W$5, 'Full set Core Client Indicator'!$A$3:$AB$3, 0))), \"\")","v":""},{"$f":"IF(W338<>\"\", IF(INDEX('Full set Core Client Indicator'!$A$3:$AB$351, MATCH(Selection_Hide2!$A338, 'Full set Core Client Indicator'!$A$3:$A$351, 0), MATCH(Selection_Hide2!X$5, 'Full set Core Client Indicator'!$A$3:$AB$3, 0))=\"\", \"\",  INDEX('Full set Core Client Indicator'!$A$3:$AB$351, MATCH(Selection_Hide2!$A338, 'Full set Core Client Indicator'!$A$3:$A$351, 0), MATCH(Selection_Hide2!X$5, 'Full set Core Client Indicator'!$A$3:$AB$3, 0))), \"\")","v":""},{"$f":"IF(X338<>\"\", IF(INDEX('Full set Core Client Indicator'!$A$3:$AB$351, MATCH(Selection_Hide2!$A338, 'Full set Core Client Indicator'!$A$3:$A$351, 0), MATCH(Selection_Hide2!Y$5, 'Full set Core Client Indicator'!$A$3:$AB$3, 0))=\"\", \"\",  INDEX('Full set Core Client Indicator'!$A$3:$AB$351, MATCH(Selection_Hide2!$A338, 'Full set Core Client Indicator'!$A$3:$A$351, 0), MATCH(Selection_Hide2!Y$5, 'Full set Core Client Indicator'!$A$3:$AB$3, 0))), \"\")","v":""},{"$f":"IF(Y338<>\"\", IF(INDEX('Full set Core Client Indicator'!$A$3:$AB$351, MATCH(Selection_Hide2!$A338, 'Full set Core Client Indicator'!$A$3:$A$351, 0), MATCH(Selection_Hide2!Z$5, 'Full set Core Client Indicator'!$A$3:$AB$3, 0))=\"\", \"\",  INDEX('Full set Core Client Indicator'!$A$3:$AB$351, MATCH(Selection_Hide2!$A338, 'Full set Core Client Indicator'!$A$3:$A$351, 0), MATCH(Selection_Hide2!Z$5, 'Full set Core Client Indicator'!$A$3:$AB$3, 0))), \"\")","v":""},{"$f":"IF(Z338<>\"\", IF(INDEX('Full set Core Client Indicator'!$A$3:$AB$351, MATCH(Selection_Hide2!$A338, 'Full set Core Client Indicator'!$A$3:$A$351, 0), MATCH(Selection_Hide2!AA$5, 'Full set Core Client Indicator'!$A$3:$AB$3, 0))=\"\", \"\",  INDEX('Full set Core Client Indicator'!$A$3:$AB$351, MATCH(Selection_Hide2!$A338, 'Full set Core Client Indicator'!$A$3:$A$351, 0), MATCH(Selection_Hide2!AA$5, 'Full set Core Client Indicator'!$A$3:$AB$3, 0))), \"\")","v":""},{"$f":"IF(AA338<>\"\", IF(INDEX('Full set Core Client Indicator'!$A$3:$AB$351, MATCH(Selection_Hide2!$A338, 'Full set Core Client Indicator'!$A$3:$A$351, 0), MATCH(Selection_Hide2!AB$5, 'Full set Core Client Indicator'!$A$3:$AB$3, 0))=\"\", \"\",  INDEX('Full set Core Client Indicator'!$A$3:$AB$351, MATCH(Selection_Hide2!$A338, 'Full set Core Client Indicator'!$A$3:$A$351, 0), MATCH(Selection_Hide2!AB$5, 'Full set Core Client Indicator'!$A$3:$AB$3, 0))), \"\")","v":""}]
[{"$f":"IF(AND(Selection_Hide1!C337<>0, Selection_Hide1!C337<>\"Grand Total\"), Selection_Hide1!C337, \"\")","v":""},{"$f":"IF(A339<>\"\", IF(INDEX('Full set Core Client Indicator'!$A$3:$AB$351, MATCH(Selection_Hide2!$A339, 'Full set Core Client Indicator'!$A$3:$A$351, 0), MATCH(Selection_Hide2!B$5, 'Full set Core Client Indicator'!$A$3:$AB$3, 0))=\"\", \"\",  INDEX('Full set Core Client Indicator'!$A$3:$AB$351, MATCH(Selection_Hide2!$A339, 'Full set Core Client Indicator'!$A$3:$A$351, 0), MATCH(Selection_Hide2!B$5, 'Full set Core Client Indicator'!$A$3:$AB$3, 0))), \"\")","v":""},{"$f":"IF(B339<>\"\", IF(INDEX('Full set Core Client Indicator'!$A$3:$AB$351, MATCH(Selection_Hide2!$A339, 'Full set Core Client Indicator'!$A$3:$A$351, 0), MATCH(Selection_Hide2!C$5, 'Full set Core Client Indicator'!$A$3:$AB$3, 0))=\"\", \"\",  INDEX('Full set Core Client Indicator'!$A$3:$AB$351, MATCH(Selection_Hide2!$A339, 'Full set Core Client Indicator'!$A$3:$A$351, 0), MATCH(Selection_Hide2!C$5, 'Full set Core Client Indicator'!$A$3:$AB$3, 0))), \"\")","v":""},{"$f":"IF(C339<>\"\", IF(INDEX('Full set Core Client Indicator'!$A$3:$AB$351, MATCH(Selection_Hide2!$A339, 'Full set Core Client Indicator'!$A$3:$A$351, 0), MATCH(Selection_Hide2!D$5, 'Full set Core Client Indicator'!$A$3:$AB$3, 0))=\"\", \"\",  INDEX('Full set Core Client Indicator'!$A$3:$AB$351, MATCH(Selection_Hide2!$A339, 'Full set Core Client Indicator'!$A$3:$A$351, 0), MATCH(Selection_Hide2!D$5, 'Full set Core Client Indicator'!$A$3:$AB$3, 0))), \"\")","v":""},{"$f":"IF(D339<>\"\", IF(INDEX('Full set Core Client Indicator'!$A$3:$AB$351, MATCH(Selection_Hide2!$A339, 'Full set Core Client Indicator'!$A$3:$A$351, 0), MATCH(Selection_Hide2!E$5, 'Full set Core Client Indicator'!$A$3:$AB$3, 0))=\"\", \"\",  INDEX('Full set Core Client Indicator'!$A$3:$AB$351, MATCH(Selection_Hide2!$A339, 'Full set Core Client Indicator'!$A$3:$A$351, 0), MATCH(Selection_Hide2!E$5, 'Full set Core Client Indicator'!$A$3:$AB$3, 0))), \"\")","v":""},{"$f":"IF(E339<>\"\", IF(INDEX('Full set Core Client Indicator'!$A$3:$AB$351, MATCH(Selection_Hide2!$A339, 'Full set Core Client Indicator'!$A$3:$A$351, 0), MATCH(Selection_Hide2!F$5, 'Full set Core Client Indicator'!$A$3:$AB$3, 0))=\"\", \"\",  INDEX('Full set Core Client Indicator'!$A$3:$AB$351, MATCH(Selection_Hide2!$A339, 'Full set Core Client Indicator'!$A$3:$A$351, 0), MATCH(Selection_Hide2!F$5, 'Full set Core Client Indicator'!$A$3:$AB$3, 0))), \"\")","v":""},{"$f":"IF(F339<>\"\", IF(INDEX('Full set Core Client Indicator'!$A$3:$AB$351, MATCH(Selection_Hide2!$A339, 'Full set Core Client Indicator'!$A$3:$A$351, 0), MATCH(Selection_Hide2!G$5, 'Full set Core Client Indicator'!$A$3:$AB$3, 0))=\"\", \"\",  INDEX('Full set Core Client Indicator'!$A$3:$AB$351, MATCH(Selection_Hide2!$A339, 'Full set Core Client Indicator'!$A$3:$A$351, 0), MATCH(Selection_Hide2!G$5, 'Full set Core Client Indicator'!$A$3:$AB$3, 0))), \"\")","v":""},{"$f":"IF(G339<>\"\", IF(INDEX('Full set Core Client Indicator'!$A$3:$AB$351, MATCH(Selection_Hide2!$A339, 'Full set Core Client Indicator'!$A$3:$A$351, 0), MATCH(Selection_Hide2!H$5, 'Full set Core Client Indicator'!$A$3:$AB$3, 0))=\"\", \"\",  INDEX('Full set Core Client Indicator'!$A$3:$AB$351, MATCH(Selection_Hide2!$A339, 'Full set Core Client Indicator'!$A$3:$A$351, 0), MATCH(Selection_Hide2!H$5, 'Full set Core Client Indicator'!$A$3:$AB$3, 0))), \"\")","v":""},{"$f":"IF(H339<>\"\", IF(INDEX('Full set Core Client Indicator'!$A$3:$AB$351, MATCH(Selection_Hide2!$A339, 'Full set Core Client Indicator'!$A$3:$A$351, 0), MATCH(Selection_Hide2!I$5, 'Full set Core Client Indicator'!$A$3:$AB$3, 0))=\"\", \"\",  INDEX('Full set Core Client Indicator'!$A$3:$AB$351, MATCH(Selection_Hide2!$A339, 'Full set Core Client Indicator'!$A$3:$A$351, 0), MATCH(Selection_Hide2!I$5, 'Full set Core Client Indicator'!$A$3:$AB$3, 0))), \"\")","v":""},{"$f":"IF(I339<>\"\", IF(INDEX('Full set Core Client Indicator'!$A$3:$AB$351, MATCH(Selection_Hide2!$A339, 'Full set Core Client Indicator'!$A$3:$A$351, 0), MATCH(Selection_Hide2!J$5, 'Full set Core Client Indicator'!$A$3:$AB$3, 0))=\"\", \"\",  INDEX('Full set Core Client Indicator'!$A$3:$AB$351, MATCH(Selection_Hide2!$A339, 'Full set Core Client Indicator'!$A$3:$A$351, 0), MATCH(Selection_Hide2!J$5, 'Full set Core Client Indicator'!$A$3:$AB$3, 0))), \"\")","v":""},{"$f":"IF(J339<>\"\", IF(INDEX('Full set Core Client Indicator'!$A$3:$AB$351, MATCH(Selection_Hide2!$A339, 'Full set Core Client Indicator'!$A$3:$A$351, 0), MATCH(Selection_Hide2!K$5, 'Full set Core Client Indicator'!$A$3:$AB$3, 0))=\"\", \"\",  INDEX('Full set Core Client Indicator'!$A$3:$AB$351, MATCH(Selection_Hide2!$A339, 'Full set Core Client Indicator'!$A$3:$A$351, 0), MATCH(Selection_Hide2!K$5, 'Full set Core Client Indicator'!$A$3:$AB$3, 0))), \"\")","v":""},{"$f":"IF(K339<>\"\", IF(INDEX('Full set Core Client Indicator'!$A$3:$AB$351, MATCH(Selection_Hide2!$A339, 'Full set Core Client Indicator'!$A$3:$A$351, 0), MATCH(Selection_Hide2!L$5, 'Full set Core Client Indicator'!$A$3:$AB$3, 0))=\"\", \"\",  INDEX('Full set Core Client Indicator'!$A$3:$AB$351, MATCH(Selection_Hide2!$A339, 'Full set Core Client Indicator'!$A$3:$A$351, 0), MATCH(Selection_Hide2!L$5, 'Full set Core Client Indicator'!$A$3:$AB$3, 0))), \"\")","v":""},{"$f":"IF(L339<>\"\", IF(INDEX('Full set Core Client Indicator'!$A$3:$AB$351, MATCH(Selection_Hide2!$A339, 'Full set Core Client Indicator'!$A$3:$A$351, 0), MATCH(Selection_Hide2!M$5, 'Full set Core Client Indicator'!$A$3:$AB$3, 0))=\"\", \"\",  INDEX('Full set Core Client Indicator'!$A$3:$AB$351, MATCH(Selection_Hide2!$A339, 'Full set Core Client Indicator'!$A$3:$A$351, 0), MATCH(Selection_Hide2!M$5, 'Full set Core Client Indicator'!$A$3:$AB$3, 0))), \"\")","v":""},{"$f":"IF(M339<>\"\", IF(INDEX('Full set Core Client Indicator'!$A$3:$AB$351, MATCH(Selection_Hide2!$A339, 'Full set Core Client Indicator'!$A$3:$A$351, 0), MATCH(Selection_Hide2!N$5, 'Full set Core Client Indicator'!$A$3:$AB$3, 0))=\"\", \"\",  INDEX('Full set Core Client Indicator'!$A$3:$AB$351, MATCH(Selection_Hide2!$A339, 'Full set Core Client Indicator'!$A$3:$A$351, 0), MATCH(Selection_Hide2!N$5, 'Full set Core Client Indicator'!$A$3:$AB$3, 0))), \"\")","v":""},{"$f":"IF(N339<>\"\", IF(INDEX('Full set Core Client Indicator'!$A$3:$AB$351, MATCH(Selection_Hide2!$A339, 'Full set Core Client Indicator'!$A$3:$A$351, 0), MATCH(Selection_Hide2!O$5, 'Full set Core Client Indicator'!$A$3:$AB$3, 0))=\"\", \"\",  INDEX('Full set Core Client Indicator'!$A$3:$AB$351, MATCH(Selection_Hide2!$A339, 'Full set Core Client Indicator'!$A$3:$A$351, 0), MATCH(Selection_Hide2!O$5, 'Full set Core Client Indicator'!$A$3:$AB$3, 0))), \"\")","v":""},{"$f":"IF(O339<>\"\", IF(INDEX('Full set Core Client Indicator'!$A$3:$AB$351, MATCH(Selection_Hide2!$A339, 'Full set Core Client Indicator'!$A$3:$A$351, 0), MATCH(Selection_Hide2!P$5, 'Full set Core Client Indicator'!$A$3:$AB$3, 0))=\"\", \"\",  INDEX('Full set Core Client Indicator'!$A$3:$AB$351, MATCH(Selection_Hide2!$A339, 'Full set Core Client Indicator'!$A$3:$A$351, 0), MATCH(Selection_Hide2!P$5, 'Full set Core Client Indicator'!$A$3:$AB$3, 0))), \"\")","v":""},{"$f":"IF(P339<>\"\", IF(INDEX('Full set Core Client Indicator'!$A$3:$AB$351, MATCH(Selection_Hide2!$A339, 'Full set Core Client Indicator'!$A$3:$A$351, 0), MATCH(Selection_Hide2!Q$5, 'Full set Core Client Indicator'!$A$3:$AB$3, 0))=\"\", \"\",  INDEX('Full set Core Client Indicator'!$A$3:$AB$351, MATCH(Selection_Hide2!$A339, 'Full set Core Client Indicator'!$A$3:$A$351, 0), MATCH(Selection_Hide2!Q$5, 'Full set Core Client Indicator'!$A$3:$AB$3, 0))), \"\")","v":""},{"$f":"IF(Q339<>\"\", IF(INDEX('Full set Core Client Indicator'!$A$3:$AB$351, MATCH(Selection_Hide2!$A339, 'Full set Core Client Indicator'!$A$3:$A$351, 0), MATCH(Selection_Hide2!R$5, 'Full set Core Client Indicator'!$A$3:$AB$3, 0))=\"\", \"\",  INDEX('Full set Core Client Indicator'!$A$3:$AB$351, MATCH(Selection_Hide2!$A339, 'Full set Core Client Indicator'!$A$3:$A$351, 0), MATCH(Selection_Hide2!R$5, 'Full set Core Client Indicator'!$A$3:$AB$3, 0))), \"\")","v":""},{"$f":"IF(R339<>\"\", IF(INDEX('Full set Core Client Indicator'!$A$3:$AB$351, MATCH(Selection_Hide2!$A339, 'Full set Core Client Indicator'!$A$3:$A$351, 0), MATCH(Selection_Hide2!S$5, 'Full set Core Client Indicator'!$A$3:$AB$3, 0))=\"\", \"\",  INDEX('Full set Core Client Indicator'!$A$3:$AB$351, MATCH(Selection_Hide2!$A339, 'Full set Core Client Indicator'!$A$3:$A$351, 0), MATCH(Selection_Hide2!S$5, 'Full set Core Client Indicator'!$A$3:$AB$3, 0))), \"\")","v":""},{"$f":"IF(S339<>\"\", IF(INDEX('Full set Core Client Indicator'!$A$3:$AB$351, MATCH(Selection_Hide2!$A339, 'Full set Core Client Indicator'!$A$3:$A$351, 0), MATCH(Selection_Hide2!T$5, 'Full set Core Client Indicator'!$A$3:$AB$3, 0))=\"\", \"\",  INDEX('Full set Core Client Indicator'!$A$3:$AB$351, MATCH(Selection_Hide2!$A339, 'Full set Core Client Indicator'!$A$3:$A$351, 0), MATCH(Selection_Hide2!T$5, 'Full set Core Client Indicator'!$A$3:$AB$3, 0))), \"\")","v":""},{"$f":"IF(T339<>\"\", IF(INDEX('Full set Core Client Indicator'!$A$3:$AB$351, MATCH(Selection_Hide2!$A339, 'Full set Core Client Indicator'!$A$3:$A$351, 0), MATCH(Selection_Hide2!U$5, 'Full set Core Client Indicator'!$A$3:$AB$3, 0))=\"\", \"\",  INDEX('Full set Core Client Indicator'!$A$3:$AB$351, MATCH(Selection_Hide2!$A339, 'Full set Core Client Indicator'!$A$3:$A$351, 0), MATCH(Selection_Hide2!U$5, 'Full set Core Client Indicator'!$A$3:$AB$3, 0))), \"\")","v":""},{"$f":"IF(U339<>\"\", IF(INDEX('Full set Core Client Indicator'!$A$3:$AB$351, MATCH(Selection_Hide2!$A339, 'Full set Core Client Indicator'!$A$3:$A$351, 0), MATCH(Selection_Hide2!V$5, 'Full set Core Client Indicator'!$A$3:$AB$3, 0))=\"\", \"\",  INDEX('Full set Core Client Indicator'!$A$3:$AB$351, MATCH(Selection_Hide2!$A339, 'Full set Core Client Indicator'!$A$3:$A$351, 0), MATCH(Selection_Hide2!V$5, 'Full set Core Client Indicator'!$A$3:$AB$3, 0))), \"\")","v":""},{"$f":"IF(V339<>\"\", IF(INDEX('Full set Core Client Indicator'!$A$3:$AB$351, MATCH(Selection_Hide2!$A339, 'Full set Core Client Indicator'!$A$3:$A$351, 0), MATCH(Selection_Hide2!W$5, 'Full set Core Client Indicator'!$A$3:$AB$3, 0))=\"\", \"\",  INDEX('Full set Core Client Indicator'!$A$3:$AB$351, MATCH(Selection_Hide2!$A339, 'Full set Core Client Indicator'!$A$3:$A$351, 0), MATCH(Selection_Hide2!W$5, 'Full set Core Client Indicator'!$A$3:$AB$3, 0))), \"\")","v":""},{"$f":"IF(W339<>\"\", IF(INDEX('Full set Core Client Indicator'!$A$3:$AB$351, MATCH(Selection_Hide2!$A339, 'Full set Core Client Indicator'!$A$3:$A$351, 0), MATCH(Selection_Hide2!X$5, 'Full set Core Client Indicator'!$A$3:$AB$3, 0))=\"\", \"\",  INDEX('Full set Core Client Indicator'!$A$3:$AB$351, MATCH(Selection_Hide2!$A339, 'Full set Core Client Indicator'!$A$3:$A$351, 0), MATCH(Selection_Hide2!X$5, 'Full set Core Client Indicator'!$A$3:$AB$3, 0))), \"\")","v":""},{"$f":"IF(X339<>\"\", IF(INDEX('Full set Core Client Indicator'!$A$3:$AB$351, MATCH(Selection_Hide2!$A339, 'Full set Core Client Indicator'!$A$3:$A$351, 0), MATCH(Selection_Hide2!Y$5, 'Full set Core Client Indicator'!$A$3:$AB$3, 0))=\"\", \"\",  INDEX('Full set Core Client Indicator'!$A$3:$AB$351, MATCH(Selection_Hide2!$A339, 'Full set Core Client Indicator'!$A$3:$A$351, 0), MATCH(Selection_Hide2!Y$5, 'Full set Core Client Indicator'!$A$3:$AB$3, 0))), \"\")","v":""},{"$f":"IF(Y339<>\"\", IF(INDEX('Full set Core Client Indicator'!$A$3:$AB$351, MATCH(Selection_Hide2!$A339, 'Full set Core Client Indicator'!$A$3:$A$351, 0), MATCH(Selection_Hide2!Z$5, 'Full set Core Client Indicator'!$A$3:$AB$3, 0))=\"\", \"\",  INDEX('Full set Core Client Indicator'!$A$3:$AB$351, MATCH(Selection_Hide2!$A339, 'Full set Core Client Indicator'!$A$3:$A$351, 0), MATCH(Selection_Hide2!Z$5, 'Full set Core Client Indicator'!$A$3:$AB$3, 0))), \"\")","v":""},{"$f":"IF(Z339<>\"\", IF(INDEX('Full set Core Client Indicator'!$A$3:$AB$351, MATCH(Selection_Hide2!$A339, 'Full set Core Client Indicator'!$A$3:$A$351, 0), MATCH(Selection_Hide2!AA$5, 'Full set Core Client Indicator'!$A$3:$AB$3, 0))=\"\", \"\",  INDEX('Full set Core Client Indicator'!$A$3:$AB$351, MATCH(Selection_Hide2!$A339, 'Full set Core Client Indicator'!$A$3:$A$351, 0), MATCH(Selection_Hide2!AA$5, 'Full set Core Client Indicator'!$A$3:$AB$3, 0))), \"\")","v":""},{"$f":"IF(AA339<>\"\", IF(INDEX('Full set Core Client Indicator'!$A$3:$AB$351, MATCH(Selection_Hide2!$A339, 'Full set Core Client Indicator'!$A$3:$A$351, 0), MATCH(Selection_Hide2!AB$5, 'Full set Core Client Indicator'!$A$3:$AB$3, 0))=\"\", \"\",  INDEX('Full set Core Client Indicator'!$A$3:$AB$351, MATCH(Selection_Hide2!$A339, 'Full set Core Client Indicator'!$A$3:$A$351, 0), MATCH(Selection_Hide2!AB$5, 'Full set Core Client Indicator'!$A$3:$AB$3, 0))), \"\")","v":""}]
[{"$f":"IF(AND(Selection_Hide1!C338<>0, Selection_Hide1!C338<>\"Grand Total\"), Selection_Hide1!C338, \"\")","v":""},{"$f":"IF(A340<>\"\", IF(INDEX('Full set Core Client Indicator'!$A$3:$AB$351, MATCH(Selection_Hide2!$A340, 'Full set Core Client Indicator'!$A$3:$A$351, 0), MATCH(Selection_Hide2!B$5, 'Full set Core Client Indicator'!$A$3:$AB$3, 0))=\"\", \"\",  INDEX('Full set Core Client Indicator'!$A$3:$AB$351, MATCH(Selection_Hide2!$A340, 'Full set Core Client Indicator'!$A$3:$A$351, 0), MATCH(Selection_Hide2!B$5, 'Full set Core Client Indicator'!$A$3:$AB$3, 0))), \"\")","v":""},{"$f":"IF(B340<>\"\", IF(INDEX('Full set Core Client Indicator'!$A$3:$AB$351, MATCH(Selection_Hide2!$A340, 'Full set Core Client Indicator'!$A$3:$A$351, 0), MATCH(Selection_Hide2!C$5, 'Full set Core Client Indicator'!$A$3:$AB$3, 0))=\"\", \"\",  INDEX('Full set Core Client Indicator'!$A$3:$AB$351, MATCH(Selection_Hide2!$A340, 'Full set Core Client Indicator'!$A$3:$A$351, 0), MATCH(Selection_Hide2!C$5, 'Full set Core Client Indicator'!$A$3:$AB$3, 0))), \"\")","v":""},{"$f":"IF(C340<>\"\", IF(INDEX('Full set Core Client Indicator'!$A$3:$AB$351, MATCH(Selection_Hide2!$A340, 'Full set Core Client Indicator'!$A$3:$A$351, 0), MATCH(Selection_Hide2!D$5, 'Full set Core Client Indicator'!$A$3:$AB$3, 0))=\"\", \"\",  INDEX('Full set Core Client Indicator'!$A$3:$AB$351, MATCH(Selection_Hide2!$A340, 'Full set Core Client Indicator'!$A$3:$A$351, 0), MATCH(Selection_Hide2!D$5, 'Full set Core Client Indicator'!$A$3:$AB$3, 0))), \"\")","v":""},{"$f":"IF(D340<>\"\", IF(INDEX('Full set Core Client Indicator'!$A$3:$AB$351, MATCH(Selection_Hide2!$A340, 'Full set Core Client Indicator'!$A$3:$A$351, 0), MATCH(Selection_Hide2!E$5, 'Full set Core Client Indicator'!$A$3:$AB$3, 0))=\"\", \"\",  INDEX('Full set Core Client Indicator'!$A$3:$AB$351, MATCH(Selection_Hide2!$A340, 'Full set Core Client Indicator'!$A$3:$A$351, 0), MATCH(Selection_Hide2!E$5, 'Full set Core Client Indicator'!$A$3:$AB$3, 0))), \"\")","v":""},{"$f":"IF(E340<>\"\", IF(INDEX('Full set Core Client Indicator'!$A$3:$AB$351, MATCH(Selection_Hide2!$A340, 'Full set Core Client Indicator'!$A$3:$A$351, 0), MATCH(Selection_Hide2!F$5, 'Full set Core Client Indicator'!$A$3:$AB$3, 0))=\"\", \"\",  INDEX('Full set Core Client Indicator'!$A$3:$AB$351, MATCH(Selection_Hide2!$A340, 'Full set Core Client Indicator'!$A$3:$A$351, 0), MATCH(Selection_Hide2!F$5, 'Full set Core Client Indicator'!$A$3:$AB$3, 0))), \"\")","v":""},{"$f":"IF(F340<>\"\", IF(INDEX('Full set Core Client Indicator'!$A$3:$AB$351, MATCH(Selection_Hide2!$A340, 'Full set Core Client Indicator'!$A$3:$A$351, 0), MATCH(Selection_Hide2!G$5, 'Full set Core Client Indicator'!$A$3:$AB$3, 0))=\"\", \"\",  INDEX('Full set Core Client Indicator'!$A$3:$AB$351, MATCH(Selection_Hide2!$A340, 'Full set Core Client Indicator'!$A$3:$A$351, 0), MATCH(Selection_Hide2!G$5, 'Full set Core Client Indicator'!$A$3:$AB$3, 0))), \"\")","v":""},{"$f":"IF(G340<>\"\", IF(INDEX('Full set Core Client Indicator'!$A$3:$AB$351, MATCH(Selection_Hide2!$A340, 'Full set Core Client Indicator'!$A$3:$A$351, 0), MATCH(Selection_Hide2!H$5, 'Full set Core Client Indicator'!$A$3:$AB$3, 0))=\"\", \"\",  INDEX('Full set Core Client Indicator'!$A$3:$AB$351, MATCH(Selection_Hide2!$A340, 'Full set Core Client Indicator'!$A$3:$A$351, 0), MATCH(Selection_Hide2!H$5, 'Full set Core Client Indicator'!$A$3:$AB$3, 0))), \"\")","v":""},{"$f":"IF(H340<>\"\", IF(INDEX('Full set Core Client Indicator'!$A$3:$AB$351, MATCH(Selection_Hide2!$A340, 'Full set Core Client Indicator'!$A$3:$A$351, 0), MATCH(Selection_Hide2!I$5, 'Full set Core Client Indicator'!$A$3:$AB$3, 0))=\"\", \"\",  INDEX('Full set Core Client Indicator'!$A$3:$AB$351, MATCH(Selection_Hide2!$A340, 'Full set Core Client Indicator'!$A$3:$A$351, 0), MATCH(Selection_Hide2!I$5, 'Full set Core Client Indicator'!$A$3:$AB$3, 0))), \"\")","v":""},{"$f":"IF(I340<>\"\", IF(INDEX('Full set Core Client Indicator'!$A$3:$AB$351, MATCH(Selection_Hide2!$A340, 'Full set Core Client Indicator'!$A$3:$A$351, 0), MATCH(Selection_Hide2!J$5, 'Full set Core Client Indicator'!$A$3:$AB$3, 0))=\"\", \"\",  INDEX('Full set Core Client Indicator'!$A$3:$AB$351, MATCH(Selection_Hide2!$A340, 'Full set Core Client Indicator'!$A$3:$A$351, 0), MATCH(Selection_Hide2!J$5, 'Full set Core Client Indicator'!$A$3:$AB$3, 0))), \"\")","v":""},{"$f":"IF(J340<>\"\", IF(INDEX('Full set Core Client Indicator'!$A$3:$AB$351, MATCH(Selection_Hide2!$A340, 'Full set Core Client Indicator'!$A$3:$A$351, 0), MATCH(Selection_Hide2!K$5, 'Full set Core Client Indicator'!$A$3:$AB$3, 0))=\"\", \"\",  INDEX('Full set Core Client Indicator'!$A$3:$AB$351, MATCH(Selection_Hide2!$A340, 'Full set Core Client Indicator'!$A$3:$A$351, 0), MATCH(Selection_Hide2!K$5, 'Full set Core Client Indicator'!$A$3:$AB$3, 0))), \"\")","v":""},{"$f":"IF(K340<>\"\", IF(INDEX('Full set Core Client Indicator'!$A$3:$AB$351, MATCH(Selection_Hide2!$A340, 'Full set Core Client Indicator'!$A$3:$A$351, 0), MATCH(Selection_Hide2!L$5, 'Full set Core Client Indicator'!$A$3:$AB$3, 0))=\"\", \"\",  INDEX('Full set Core Client Indicator'!$A$3:$AB$351, MATCH(Selection_Hide2!$A340, 'Full set Core Client Indicator'!$A$3:$A$351, 0), MATCH(Selection_Hide2!L$5, 'Full set Core Client Indicator'!$A$3:$AB$3, 0))), \"\")","v":""},{"$f":"IF(L340<>\"\", IF(INDEX('Full set Core Client Indicator'!$A$3:$AB$351, MATCH(Selection_Hide2!$A340, 'Full set Core Client Indicator'!$A$3:$A$351, 0), MATCH(Selection_Hide2!M$5, 'Full set Core Client Indicator'!$A$3:$AB$3, 0))=\"\", \"\",  INDEX('Full set Core Client Indicator'!$A$3:$AB$351, MATCH(Selection_Hide2!$A340, 'Full set Core Client Indicator'!$A$3:$A$351, 0), MATCH(Selection_Hide2!M$5, 'Full set Core Client Indicator'!$A$3:$AB$3, 0))), \"\")","v":""},{"$f":"IF(M340<>\"\", IF(INDEX('Full set Core Client Indicator'!$A$3:$AB$351, MATCH(Selection_Hide2!$A340, 'Full set Core Client Indicator'!$A$3:$A$351, 0), MATCH(Selection_Hide2!N$5, 'Full set Core Client Indicator'!$A$3:$AB$3, 0))=\"\", \"\",  INDEX('Full set Core Client Indicator'!$A$3:$AB$351, MATCH(Selection_Hide2!$A340, 'Full set Core Client Indicator'!$A$3:$A$351, 0), MATCH(Selection_Hide2!N$5, 'Full set Core Client Indicator'!$A$3:$AB$3, 0))), \"\")","v":""},{"$f":"IF(N340<>\"\", IF(INDEX('Full set Core Client Indicator'!$A$3:$AB$351, MATCH(Selection_Hide2!$A340, 'Full set Core Client Indicator'!$A$3:$A$351, 0), MATCH(Selection_Hide2!O$5, 'Full set Core Client Indicator'!$A$3:$AB$3, 0))=\"\", \"\",  INDEX('Full set Core Client Indicator'!$A$3:$AB$351, MATCH(Selection_Hide2!$A340, 'Full set Core Client Indicator'!$A$3:$A$351, 0), MATCH(Selection_Hide2!O$5, 'Full set Core Client Indicator'!$A$3:$AB$3, 0))), \"\")","v":""},{"$f":"IF(O340<>\"\", IF(INDEX('Full set Core Client Indicator'!$A$3:$AB$351, MATCH(Selection_Hide2!$A340, 'Full set Core Client Indicator'!$A$3:$A$351, 0), MATCH(Selection_Hide2!P$5, 'Full set Core Client Indicator'!$A$3:$AB$3, 0))=\"\", \"\",  INDEX('Full set Core Client Indicator'!$A$3:$AB$351, MATCH(Selection_Hide2!$A340, 'Full set Core Client Indicator'!$A$3:$A$351, 0), MATCH(Selection_Hide2!P$5, 'Full set Core Client Indicator'!$A$3:$AB$3, 0))), \"\")","v":""},{"$f":"IF(P340<>\"\", IF(INDEX('Full set Core Client Indicator'!$A$3:$AB$351, MATCH(Selection_Hide2!$A340, 'Full set Core Client Indicator'!$A$3:$A$351, 0), MATCH(Selection_Hide2!Q$5, 'Full set Core Client Indicator'!$A$3:$AB$3, 0))=\"\", \"\",  INDEX('Full set Core Client Indicator'!$A$3:$AB$351, MATCH(Selection_Hide2!$A340, 'Full set Core Client Indicator'!$A$3:$A$351, 0), MATCH(Selection_Hide2!Q$5, 'Full set Core Client Indicator'!$A$3:$AB$3, 0))), \"\")","v":""},{"$f":"IF(Q340<>\"\", IF(INDEX('Full set Core Client Indicator'!$A$3:$AB$351, MATCH(Selection_Hide2!$A340, 'Full set Core Client Indicator'!$A$3:$A$351, 0), MATCH(Selection_Hide2!R$5, 'Full set Core Client Indicator'!$A$3:$AB$3, 0))=\"\", \"\",  INDEX('Full set Core Client Indicator'!$A$3:$AB$351, MATCH(Selection_Hide2!$A340, 'Full set Core Client Indicator'!$A$3:$A$351, 0), MATCH(Selection_Hide2!R$5, 'Full set Core Client Indicator'!$A$3:$AB$3, 0))), \"\")","v":""},{"$f":"IF(R340<>\"\", IF(INDEX('Full set Core Client Indicator'!$A$3:$AB$351, MATCH(Selection_Hide2!$A340, 'Full set Core Client Indicator'!$A$3:$A$351, 0), MATCH(Selection_Hide2!S$5, 'Full set Core Client Indicator'!$A$3:$AB$3, 0))=\"\", \"\",  INDEX('Full set Core Client Indicator'!$A$3:$AB$351, MATCH(Selection_Hide2!$A340, 'Full set Core Client Indicator'!$A$3:$A$351, 0), MATCH(Selection_Hide2!S$5, 'Full set Core Client Indicator'!$A$3:$AB$3, 0))), \"\")","v":""},{"$f":"IF(S340<>\"\", IF(INDEX('Full set Core Client Indicator'!$A$3:$AB$351, MATCH(Selection_Hide2!$A340, 'Full set Core Client Indicator'!$A$3:$A$351, 0), MATCH(Selection_Hide2!T$5, 'Full set Core Client Indicator'!$A$3:$AB$3, 0))=\"\", \"\",  INDEX('Full set Core Client Indicator'!$A$3:$AB$351, MATCH(Selection_Hide2!$A340, 'Full set Core Client Indicator'!$A$3:$A$351, 0), MATCH(Selection_Hide2!T$5, 'Full set Core Client Indicator'!$A$3:$AB$3, 0))), \"\")","v":""},{"$f":"IF(T340<>\"\", IF(INDEX('Full set Core Client Indicator'!$A$3:$AB$351, MATCH(Selection_Hide2!$A340, 'Full set Core Client Indicator'!$A$3:$A$351, 0), MATCH(Selection_Hide2!U$5, 'Full set Core Client Indicator'!$A$3:$AB$3, 0))=\"\", \"\",  INDEX('Full set Core Client Indicator'!$A$3:$AB$351, MATCH(Selection_Hide2!$A340, 'Full set Core Client Indicator'!$A$3:$A$351, 0), MATCH(Selection_Hide2!U$5, 'Full set Core Client Indicator'!$A$3:$AB$3, 0))), \"\")","v":""},{"$f":"IF(U340<>\"\", IF(INDEX('Full set Core Client Indicator'!$A$3:$AB$351, MATCH(Selection_Hide2!$A340, 'Full set Core Client Indicator'!$A$3:$A$351, 0), MATCH(Selection_Hide2!V$5, 'Full set Core Client Indicator'!$A$3:$AB$3, 0))=\"\", \"\",  INDEX('Full set Core Client Indicator'!$A$3:$AB$351, MATCH(Selection_Hide2!$A340, 'Full set Core Client Indicator'!$A$3:$A$351, 0), MATCH(Selection_Hide2!V$5, 'Full set Core Client Indicator'!$A$3:$AB$3, 0))), \"\")","v":""},{"$f":"IF(V340<>\"\", IF(INDEX('Full set Core Client Indicator'!$A$3:$AB$351, MATCH(Selection_Hide2!$A340, 'Full set Core Client Indicator'!$A$3:$A$351, 0), MATCH(Selection_Hide2!W$5, 'Full set Core Client Indicator'!$A$3:$AB$3, 0))=\"\", \"\",  INDEX('Full set Core Client Indicator'!$A$3:$AB$351, MATCH(Selection_Hide2!$A340, 'Full set Core Client Indicator'!$A$3:$A$351, 0), MATCH(Selection_Hide2!W$5, 'Full set Core Client Indicator'!$A$3:$AB$3, 0))), \"\")","v":""},{"$f":"IF(W340<>\"\", IF(INDEX('Full set Core Client Indicator'!$A$3:$AB$351, MATCH(Selection_Hide2!$A340, 'Full set Core Client Indicator'!$A$3:$A$351, 0), MATCH(Selection_Hide2!X$5, 'Full set Core Client Indicator'!$A$3:$AB$3, 0))=\"\", \"\",  INDEX('Full set Core Client Indicator'!$A$3:$AB$351, MATCH(Selection_Hide2!$A340, 'Full set Core Client Indicator'!$A$3:$A$351, 0), MATCH(Selection_Hide2!X$5, 'Full set Core Client Indicator'!$A$3:$AB$3, 0))), \"\")","v":""},{"$f":"IF(X340<>\"\", IF(INDEX('Full set Core Client Indicator'!$A$3:$AB$351, MATCH(Selection_Hide2!$A340, 'Full set Core Client Indicator'!$A$3:$A$351, 0), MATCH(Selection_Hide2!Y$5, 'Full set Core Client Indicator'!$A$3:$AB$3, 0))=\"\", \"\",  INDEX('Full set Core Client Indicator'!$A$3:$AB$351, MATCH(Selection_Hide2!$A340, 'Full set Core Client Indicator'!$A$3:$A$351, 0), MATCH(Selection_Hide2!Y$5, 'Full set Core Client Indicator'!$A$3:$AB$3, 0))), \"\")","v":""},{"$f":"IF(Y340<>\"\", IF(INDEX('Full set Core Client Indicator'!$A$3:$AB$351, MATCH(Selection_Hide2!$A340, 'Full set Core Client Indicator'!$A$3:$A$351, 0), MATCH(Selection_Hide2!Z$5, 'Full set Core Client Indicator'!$A$3:$AB$3, 0))=\"\", \"\",  INDEX('Full set Core Client Indicator'!$A$3:$AB$351, MATCH(Selection_Hide2!$A340, 'Full set Core Client Indicator'!$A$3:$A$351, 0), MATCH(Selection_Hide2!Z$5, 'Full set Core Client Indicator'!$A$3:$AB$3, 0))), \"\")","v":""},{"$f":"IF(Z340<>\"\", IF(INDEX('Full set Core Client Indicator'!$A$3:$AB$351, MATCH(Selection_Hide2!$A340, 'Full set Core Client Indicator'!$A$3:$A$351, 0), MATCH(Selection_Hide2!AA$5, 'Full set Core Client Indicator'!$A$3:$AB$3, 0))=\"\", \"\",  INDEX('Full set Core Client Indicator'!$A$3:$AB$351, MATCH(Selection_Hide2!$A340, 'Full set Core Client Indicator'!$A$3:$A$351, 0), MATCH(Selection_Hide2!AA$5, 'Full set Core Client Indicator'!$A$3:$AB$3, 0))), \"\")","v":""},{"$f":"IF(AA340<>\"\", IF(INDEX('Full set Core Client Indicator'!$A$3:$AB$351, MATCH(Selection_Hide2!$A340, 'Full set Core Client Indicator'!$A$3:$A$351, 0), MATCH(Selection_Hide2!AB$5, 'Full set Core Client Indicator'!$A$3:$AB$3, 0))=\"\", \"\",  INDEX('Full set Core Client Indicator'!$A$3:$AB$351, MATCH(Selection_Hide2!$A340, 'Full set Core Client Indicator'!$A$3:$A$351, 0), MATCH(Selection_Hide2!AB$5, 'Full set Core Client Indicator'!$A$3:$AB$3, 0))), \"\")","v":""}]
[{"$f":"IF(AND(Selection_Hide1!C339<>0, Selection_Hide1!C339<>\"Grand Total\"), Selection_Hide1!C339, \"\")","v":""},{"$f":"IF(A341<>\"\", IF(INDEX('Full set Core Client Indicator'!$A$3:$AB$351, MATCH(Selection_Hide2!$A341, 'Full set Core Client Indicator'!$A$3:$A$351, 0), MATCH(Selection_Hide2!B$5, 'Full set Core Client Indicator'!$A$3:$AB$3, 0))=\"\", \"\",  INDEX('Full set Core Client Indicator'!$A$3:$AB$351, MATCH(Selection_Hide2!$A341, 'Full set Core Client Indicator'!$A$3:$A$351, 0), MATCH(Selection_Hide2!B$5, 'Full set Core Client Indicator'!$A$3:$AB$3, 0))), \"\")","v":""},{"$f":"IF(B341<>\"\", IF(INDEX('Full set Core Client Indicator'!$A$3:$AB$351, MATCH(Selection_Hide2!$A341, 'Full set Core Client Indicator'!$A$3:$A$351, 0), MATCH(Selection_Hide2!C$5, 'Full set Core Client Indicator'!$A$3:$AB$3, 0))=\"\", \"\",  INDEX('Full set Core Client Indicator'!$A$3:$AB$351, MATCH(Selection_Hide2!$A341, 'Full set Core Client Indicator'!$A$3:$A$351, 0), MATCH(Selection_Hide2!C$5, 'Full set Core Client Indicator'!$A$3:$AB$3, 0))), \"\")","v":""},{"$f":"IF(C341<>\"\", IF(INDEX('Full set Core Client Indicator'!$A$3:$AB$351, MATCH(Selection_Hide2!$A341, 'Full set Core Client Indicator'!$A$3:$A$351, 0), MATCH(Selection_Hide2!D$5, 'Full set Core Client Indicator'!$A$3:$AB$3, 0))=\"\", \"\",  INDEX('Full set Core Client Indicator'!$A$3:$AB$351, MATCH(Selection_Hide2!$A341, 'Full set Core Client Indicator'!$A$3:$A$351, 0), MATCH(Selection_Hide2!D$5, 'Full set Core Client Indicator'!$A$3:$AB$3, 0))), \"\")","v":""},{"$f":"IF(D341<>\"\", IF(INDEX('Full set Core Client Indicator'!$A$3:$AB$351, MATCH(Selection_Hide2!$A341, 'Full set Core Client Indicator'!$A$3:$A$351, 0), MATCH(Selection_Hide2!E$5, 'Full set Core Client Indicator'!$A$3:$AB$3, 0))=\"\", \"\",  INDEX('Full set Core Client Indicator'!$A$3:$AB$351, MATCH(Selection_Hide2!$A341, 'Full set Core Client Indicator'!$A$3:$A$351, 0), MATCH(Selection_Hide2!E$5, 'Full set Core Client Indicator'!$A$3:$AB$3, 0))), \"\")","v":""},{"$f":"IF(E341<>\"\", IF(INDEX('Full set Core Client Indicator'!$A$3:$AB$351, MATCH(Selection_Hide2!$A341, 'Full set Core Client Indicator'!$A$3:$A$351, 0), MATCH(Selection_Hide2!F$5, 'Full set Core Client Indicator'!$A$3:$AB$3, 0))=\"\", \"\",  INDEX('Full set Core Client Indicator'!$A$3:$AB$351, MATCH(Selection_Hide2!$A341, 'Full set Core Client Indicator'!$A$3:$A$351, 0), MATCH(Selection_Hide2!F$5, 'Full set Core Client Indicator'!$A$3:$AB$3, 0))), \"\")","v":""},{"$f":"IF(F341<>\"\", IF(INDEX('Full set Core Client Indicator'!$A$3:$AB$351, MATCH(Selection_Hide2!$A341, 'Full set Core Client Indicator'!$A$3:$A$351, 0), MATCH(Selection_Hide2!G$5, 'Full set Core Client Indicator'!$A$3:$AB$3, 0))=\"\", \"\",  INDEX('Full set Core Client Indicator'!$A$3:$AB$351, MATCH(Selection_Hide2!$A341, 'Full set Core Client Indicator'!$A$3:$A$351, 0), MATCH(Selection_Hide2!G$5, 'Full set Core Client Indicator'!$A$3:$AB$3, 0))), \"\")","v":""},{"$f":"IF(G341<>\"\", IF(INDEX('Full set Core Client Indicator'!$A$3:$AB$351, MATCH(Selection_Hide2!$A341, 'Full set Core Client Indicator'!$A$3:$A$351, 0), MATCH(Selection_Hide2!H$5, 'Full set Core Client Indicator'!$A$3:$AB$3, 0))=\"\", \"\",  INDEX('Full set Core Client Indicator'!$A$3:$AB$351, MATCH(Selection_Hide2!$A341, 'Full set Core Client Indicator'!$A$3:$A$351, 0), MATCH(Selection_Hide2!H$5, 'Full set Core Client Indicator'!$A$3:$AB$3, 0))), \"\")","v":""},{"$f":"IF(H341<>\"\", IF(INDEX('Full set Core Client Indicator'!$A$3:$AB$351, MATCH(Selection_Hide2!$A341, 'Full set Core Client Indicator'!$A$3:$A$351, 0), MATCH(Selection_Hide2!I$5, 'Full set Core Client Indicator'!$A$3:$AB$3, 0))=\"\", \"\",  INDEX('Full set Core Client Indicator'!$A$3:$AB$351, MATCH(Selection_Hide2!$A341, 'Full set Core Client Indicator'!$A$3:$A$351, 0), MATCH(Selection_Hide2!I$5, 'Full set Core Client Indicator'!$A$3:$AB$3, 0))), \"\")","v":""},{"$f":"IF(I341<>\"\", IF(INDEX('Full set Core Client Indicator'!$A$3:$AB$351, MATCH(Selection_Hide2!$A341, 'Full set Core Client Indicator'!$A$3:$A$351, 0), MATCH(Selection_Hide2!J$5, 'Full set Core Client Indicator'!$A$3:$AB$3, 0))=\"\", \"\",  INDEX('Full set Core Client Indicator'!$A$3:$AB$351, MATCH(Selection_Hide2!$A341, 'Full set Core Client Indicator'!$A$3:$A$351, 0), MATCH(Selection_Hide2!J$5, 'Full set Core Client Indicator'!$A$3:$AB$3, 0))), \"\")","v":""},{"$f":"IF(J341<>\"\", IF(INDEX('Full set Core Client Indicator'!$A$3:$AB$351, MATCH(Selection_Hide2!$A341, 'Full set Core Client Indicator'!$A$3:$A$351, 0), MATCH(Selection_Hide2!K$5, 'Full set Core Client Indicator'!$A$3:$AB$3, 0))=\"\", \"\",  INDEX('Full set Core Client Indicator'!$A$3:$AB$351, MATCH(Selection_Hide2!$A341, 'Full set Core Client Indicator'!$A$3:$A$351, 0), MATCH(Selection_Hide2!K$5, 'Full set Core Client Indicator'!$A$3:$AB$3, 0))), \"\")","v":""},{"$f":"IF(K341<>\"\", IF(INDEX('Full set Core Client Indicator'!$A$3:$AB$351, MATCH(Selection_Hide2!$A341, 'Full set Core Client Indicator'!$A$3:$A$351, 0), MATCH(Selection_Hide2!L$5, 'Full set Core Client Indicator'!$A$3:$AB$3, 0))=\"\", \"\",  INDEX('Full set Core Client Indicator'!$A$3:$AB$351, MATCH(Selection_Hide2!$A341, 'Full set Core Client Indicator'!$A$3:$A$351, 0), MATCH(Selection_Hide2!L$5, 'Full set Core Client Indicator'!$A$3:$AB$3, 0))), \"\")","v":""},{"$f":"IF(L341<>\"\", IF(INDEX('Full set Core Client Indicator'!$A$3:$AB$351, MATCH(Selection_Hide2!$A341, 'Full set Core Client Indicator'!$A$3:$A$351, 0), MATCH(Selection_Hide2!M$5, 'Full set Core Client Indicator'!$A$3:$AB$3, 0))=\"\", \"\",  INDEX('Full set Core Client Indicator'!$A$3:$AB$351, MATCH(Selection_Hide2!$A341, 'Full set Core Client Indicator'!$A$3:$A$351, 0), MATCH(Selection_Hide2!M$5, 'Full set Core Client Indicator'!$A$3:$AB$3, 0))), \"\")","v":""},{"$f":"IF(M341<>\"\", IF(INDEX('Full set Core Client Indicator'!$A$3:$AB$351, MATCH(Selection_Hide2!$A341, 'Full set Core Client Indicator'!$A$3:$A$351, 0), MATCH(Selection_Hide2!N$5, 'Full set Core Client Indicator'!$A$3:$AB$3, 0))=\"\", \"\",  INDEX('Full set Core Client Indicator'!$A$3:$AB$351, MATCH(Selection_Hide2!$A341, 'Full set Core Client Indicator'!$A$3:$A$351, 0), MATCH(Selection_Hide2!N$5, 'Full set Core Client Indicator'!$A$3:$AB$3, 0))), \"\")","v":""},{"$f":"IF(N341<>\"\", IF(INDEX('Full set Core Client Indicator'!$A$3:$AB$351, MATCH(Selection_Hide2!$A341, 'Full set Core Client Indicator'!$A$3:$A$351, 0), MATCH(Selection_Hide2!O$5, 'Full set Core Client Indicator'!$A$3:$AB$3, 0))=\"\", \"\",  INDEX('Full set Core Client Indicator'!$A$3:$AB$351, MATCH(Selection_Hide2!$A341, 'Full set Core Client Indicator'!$A$3:$A$351, 0), MATCH(Selection_Hide2!O$5, 'Full set Core Client Indicator'!$A$3:$AB$3, 0))), \"\")","v":""},{"$f":"IF(O341<>\"\", IF(INDEX('Full set Core Client Indicator'!$A$3:$AB$351, MATCH(Selection_Hide2!$A341, 'Full set Core Client Indicator'!$A$3:$A$351, 0), MATCH(Selection_Hide2!P$5, 'Full set Core Client Indicator'!$A$3:$AB$3, 0))=\"\", \"\",  INDEX('Full set Core Client Indicator'!$A$3:$AB$351, MATCH(Selection_Hide2!$A341, 'Full set Core Client Indicator'!$A$3:$A$351, 0), MATCH(Selection_Hide2!P$5, 'Full set Core Client Indicator'!$A$3:$AB$3, 0))), \"\")","v":""},{"$f":"IF(P341<>\"\", IF(INDEX('Full set Core Client Indicator'!$A$3:$AB$351, MATCH(Selection_Hide2!$A341, 'Full set Core Client Indicator'!$A$3:$A$351, 0), MATCH(Selection_Hide2!Q$5, 'Full set Core Client Indicator'!$A$3:$AB$3, 0))=\"\", \"\",  INDEX('Full set Core Client Indicator'!$A$3:$AB$351, MATCH(Selection_Hide2!$A341, 'Full set Core Client Indicator'!$A$3:$A$351, 0), MATCH(Selection_Hide2!Q$5, 'Full set Core Client Indicator'!$A$3:$AB$3, 0))), \"\")","v":""},{"$f":"IF(Q341<>\"\", IF(INDEX('Full set Core Client Indicator'!$A$3:$AB$351, MATCH(Selection_Hide2!$A341, 'Full set Core Client Indicator'!$A$3:$A$351, 0), MATCH(Selection_Hide2!R$5, 'Full set Core Client Indicator'!$A$3:$AB$3, 0))=\"\", \"\",  INDEX('Full set Core Client Indicator'!$A$3:$AB$351, MATCH(Selection_Hide2!$A341, 'Full set Core Client Indicator'!$A$3:$A$351, 0), MATCH(Selection_Hide2!R$5, 'Full set Core Client Indicator'!$A$3:$AB$3, 0))), \"\")","v":""},{"$f":"IF(R341<>\"\", IF(INDEX('Full set Core Client Indicator'!$A$3:$AB$351, MATCH(Selection_Hide2!$A341, 'Full set Core Client Indicator'!$A$3:$A$351, 0), MATCH(Selection_Hide2!S$5, 'Full set Core Client Indicator'!$A$3:$AB$3, 0))=\"\", \"\",  INDEX('Full set Core Client Indicator'!$A$3:$AB$351, MATCH(Selection_Hide2!$A341, 'Full set Core Client Indicator'!$A$3:$A$351, 0), MATCH(Selection_Hide2!S$5, 'Full set Core Client Indicator'!$A$3:$AB$3, 0))), \"\")","v":""},{"$f":"IF(S341<>\"\", IF(INDEX('Full set Core Client Indicator'!$A$3:$AB$351, MATCH(Selection_Hide2!$A341, 'Full set Core Client Indicator'!$A$3:$A$351, 0), MATCH(Selection_Hide2!T$5, 'Full set Core Client Indicator'!$A$3:$AB$3, 0))=\"\", \"\",  INDEX('Full set Core Client Indicator'!$A$3:$AB$351, MATCH(Selection_Hide2!$A341, 'Full set Core Client Indicator'!$A$3:$A$351, 0), MATCH(Selection_Hide2!T$5, 'Full set Core Client Indicator'!$A$3:$AB$3, 0))), \"\")","v":""},{"$f":"IF(T341<>\"\", IF(INDEX('Full set Core Client Indicator'!$A$3:$AB$351, MATCH(Selection_Hide2!$A341, 'Full set Core Client Indicator'!$A$3:$A$351, 0), MATCH(Selection_Hide2!U$5, 'Full set Core Client Indicator'!$A$3:$AB$3, 0))=\"\", \"\",  INDEX('Full set Core Client Indicator'!$A$3:$AB$351, MATCH(Selection_Hide2!$A341, 'Full set Core Client Indicator'!$A$3:$A$351, 0), MATCH(Selection_Hide2!U$5, 'Full set Core Client Indicator'!$A$3:$AB$3, 0))), \"\")","v":""},{"$f":"IF(U341<>\"\", IF(INDEX('Full set Core Client Indicator'!$A$3:$AB$351, MATCH(Selection_Hide2!$A341, 'Full set Core Client Indicator'!$A$3:$A$351, 0), MATCH(Selection_Hide2!V$5, 'Full set Core Client Indicator'!$A$3:$AB$3, 0))=\"\", \"\",  INDEX('Full set Core Client Indicator'!$A$3:$AB$351, MATCH(Selection_Hide2!$A341, 'Full set Core Client Indicator'!$A$3:$A$351, 0), MATCH(Selection_Hide2!V$5, 'Full set Core Client Indicator'!$A$3:$AB$3, 0))), \"\")","v":""},{"$f":"IF(V341<>\"\", IF(INDEX('Full set Core Client Indicator'!$A$3:$AB$351, MATCH(Selection_Hide2!$A341, 'Full set Core Client Indicator'!$A$3:$A$351, 0), MATCH(Selection_Hide2!W$5, 'Full set Core Client Indicator'!$A$3:$AB$3, 0))=\"\", \"\",  INDEX('Full set Core Client Indicator'!$A$3:$AB$351, MATCH(Selection_Hide2!$A341, 'Full set Core Client Indicator'!$A$3:$A$351, 0), MATCH(Selection_Hide2!W$5, 'Full set Core Client Indicator'!$A$3:$AB$3, 0))), \"\")","v":""},{"$f":"IF(W341<>\"\", IF(INDEX('Full set Core Client Indicator'!$A$3:$AB$351, MATCH(Selection_Hide2!$A341, 'Full set Core Client Indicator'!$A$3:$A$351, 0), MATCH(Selection_Hide2!X$5, 'Full set Core Client Indicator'!$A$3:$AB$3, 0))=\"\", \"\",  INDEX('Full set Core Client Indicator'!$A$3:$AB$351, MATCH(Selection_Hide2!$A341, 'Full set Core Client Indicator'!$A$3:$A$351, 0), MATCH(Selection_Hide2!X$5, 'Full set Core Client Indicator'!$A$3:$AB$3, 0))), \"\")","v":""},{"$f":"IF(X341<>\"\", IF(INDEX('Full set Core Client Indicator'!$A$3:$AB$351, MATCH(Selection_Hide2!$A341, 'Full set Core Client Indicator'!$A$3:$A$351, 0), MATCH(Selection_Hide2!Y$5, 'Full set Core Client Indicator'!$A$3:$AB$3, 0))=\"\", \"\",  INDEX('Full set Core Client Indicator'!$A$3:$AB$351, MATCH(Selection_Hide2!$A341, 'Full set Core Client Indicator'!$A$3:$A$351, 0), MATCH(Selection_Hide2!Y$5, 'Full set Core Client Indicator'!$A$3:$AB$3, 0))), \"\")","v":""},{"$f":"IF(Y341<>\"\", IF(INDEX('Full set Core Client Indicator'!$A$3:$AB$351, MATCH(Selection_Hide2!$A341, 'Full set Core Client Indicator'!$A$3:$A$351, 0), MATCH(Selection_Hide2!Z$5, 'Full set Core Client Indicator'!$A$3:$AB$3, 0))=\"\", \"\",  INDEX('Full set Core Client Indicator'!$A$3:$AB$351, MATCH(Selection_Hide2!$A341, 'Full set Core Client Indicator'!$A$3:$A$351, 0), MATCH(Selection_Hide2!Z$5, 'Full set Core Client Indicator'!$A$3:$AB$3, 0))), \"\")","v":""},{"$f":"IF(Z341<>\"\", IF(INDEX('Full set Core Client Indicator'!$A$3:$AB$351, MATCH(Selection_Hide2!$A341, 'Full set Core Client Indicator'!$A$3:$A$351, 0), MATCH(Selection_Hide2!AA$5, 'Full set Core Client Indicator'!$A$3:$AB$3, 0))=\"\", \"\",  INDEX('Full set Core Client Indicator'!$A$3:$AB$351, MATCH(Selection_Hide2!$A341, 'Full set Core Client Indicator'!$A$3:$A$351, 0), MATCH(Selection_Hide2!AA$5, 'Full set Core Client Indicator'!$A$3:$AB$3, 0))), \"\")","v":""},{"$f":"IF(AA341<>\"\", IF(INDEX('Full set Core Client Indicator'!$A$3:$AB$351, MATCH(Selection_Hide2!$A341, 'Full set Core Client Indicator'!$A$3:$A$351, 0), MATCH(Selection_Hide2!AB$5, 'Full set Core Client Indicator'!$A$3:$AB$3, 0))=\"\", \"\",  INDEX('Full set Core Client Indicator'!$A$3:$AB$351, MATCH(Selection_Hide2!$A341, 'Full set Core Client Indicator'!$A$3:$A$351, 0), MATCH(Selection_Hide2!AB$5, 'Full set Core Client Indicator'!$A$3:$AB$3, 0))), \"\")","v":""}]
[{"$f":"IF(AND(Selection_Hide1!C340<>0, Selection_Hide1!C340<>\"Grand Total\"), Selection_Hide1!C340, \"\")","v":""},{"$f":"IF(A342<>\"\", IF(INDEX('Full set Core Client Indicator'!$A$3:$AB$351, MATCH(Selection_Hide2!$A342, 'Full set Core Client Indicator'!$A$3:$A$351, 0), MATCH(Selection_Hide2!B$5, 'Full set Core Client Indicator'!$A$3:$AB$3, 0))=\"\", \"\",  INDEX('Full set Core Client Indicator'!$A$3:$AB$351, MATCH(Selection_Hide2!$A342, 'Full set Core Client Indicator'!$A$3:$A$351, 0), MATCH(Selection_Hide2!B$5, 'Full set Core Client Indicator'!$A$3:$AB$3, 0))), \"\")","v":""},{"$f":"IF(B342<>\"\", IF(INDEX('Full set Core Client Indicator'!$A$3:$AB$351, MATCH(Selection_Hide2!$A342, 'Full set Core Client Indicator'!$A$3:$A$351, 0), MATCH(Selection_Hide2!C$5, 'Full set Core Client Indicator'!$A$3:$AB$3, 0))=\"\", \"\",  INDEX('Full set Core Client Indicator'!$A$3:$AB$351, MATCH(Selection_Hide2!$A342, 'Full set Core Client Indicator'!$A$3:$A$351, 0), MATCH(Selection_Hide2!C$5, 'Full set Core Client Indicator'!$A$3:$AB$3, 0))), \"\")","v":""},{"$f":"IF(C342<>\"\", IF(INDEX('Full set Core Client Indicator'!$A$3:$AB$351, MATCH(Selection_Hide2!$A342, 'Full set Core Client Indicator'!$A$3:$A$351, 0), MATCH(Selection_Hide2!D$5, 'Full set Core Client Indicator'!$A$3:$AB$3, 0))=\"\", \"\",  INDEX('Full set Core Client Indicator'!$A$3:$AB$351, MATCH(Selection_Hide2!$A342, 'Full set Core Client Indicator'!$A$3:$A$351, 0), MATCH(Selection_Hide2!D$5, 'Full set Core Client Indicator'!$A$3:$AB$3, 0))), \"\")","v":""},{"$f":"IF(D342<>\"\", IF(INDEX('Full set Core Client Indicator'!$A$3:$AB$351, MATCH(Selection_Hide2!$A342, 'Full set Core Client Indicator'!$A$3:$A$351, 0), MATCH(Selection_Hide2!E$5, 'Full set Core Client Indicator'!$A$3:$AB$3, 0))=\"\", \"\",  INDEX('Full set Core Client Indicator'!$A$3:$AB$351, MATCH(Selection_Hide2!$A342, 'Full set Core Client Indicator'!$A$3:$A$351, 0), MATCH(Selection_Hide2!E$5, 'Full set Core Client Indicator'!$A$3:$AB$3, 0))), \"\")","v":""},{"$f":"IF(E342<>\"\", IF(INDEX('Full set Core Client Indicator'!$A$3:$AB$351, MATCH(Selection_Hide2!$A342, 'Full set Core Client Indicator'!$A$3:$A$351, 0), MATCH(Selection_Hide2!F$5, 'Full set Core Client Indicator'!$A$3:$AB$3, 0))=\"\", \"\",  INDEX('Full set Core Client Indicator'!$A$3:$AB$351, MATCH(Selection_Hide2!$A342, 'Full set Core Client Indicator'!$A$3:$A$351, 0), MATCH(Selection_Hide2!F$5, 'Full set Core Client Indicator'!$A$3:$AB$3, 0))), \"\")","v":""},{"$f":"IF(F342<>\"\", IF(INDEX('Full set Core Client Indicator'!$A$3:$AB$351, MATCH(Selection_Hide2!$A342, 'Full set Core Client Indicator'!$A$3:$A$351, 0), MATCH(Selection_Hide2!G$5, 'Full set Core Client Indicator'!$A$3:$AB$3, 0))=\"\", \"\",  INDEX('Full set Core Client Indicator'!$A$3:$AB$351, MATCH(Selection_Hide2!$A342, 'Full set Core Client Indicator'!$A$3:$A$351, 0), MATCH(Selection_Hide2!G$5, 'Full set Core Client Indicator'!$A$3:$AB$3, 0))), \"\")","v":""},{"$f":"IF(G342<>\"\", IF(INDEX('Full set Core Client Indicator'!$A$3:$AB$351, MATCH(Selection_Hide2!$A342, 'Full set Core Client Indicator'!$A$3:$A$351, 0), MATCH(Selection_Hide2!H$5, 'Full set Core Client Indicator'!$A$3:$AB$3, 0))=\"\", \"\",  INDEX('Full set Core Client Indicator'!$A$3:$AB$351, MATCH(Selection_Hide2!$A342, 'Full set Core Client Indicator'!$A$3:$A$351, 0), MATCH(Selection_Hide2!H$5, 'Full set Core Client Indicator'!$A$3:$AB$3, 0))), \"\")","v":""},{"$f":"IF(H342<>\"\", IF(INDEX('Full set Core Client Indicator'!$A$3:$AB$351, MATCH(Selection_Hide2!$A342, 'Full set Core Client Indicator'!$A$3:$A$351, 0), MATCH(Selection_Hide2!I$5, 'Full set Core Client Indicator'!$A$3:$AB$3, 0))=\"\", \"\",  INDEX('Full set Core Client Indicator'!$A$3:$AB$351, MATCH(Selection_Hide2!$A342, 'Full set Core Client Indicator'!$A$3:$A$351, 0), MATCH(Selection_Hide2!I$5, 'Full set Core Client Indicator'!$A$3:$AB$3, 0))), \"\")","v":""},{"$f":"IF(I342<>\"\", IF(INDEX('Full set Core Client Indicator'!$A$3:$AB$351, MATCH(Selection_Hide2!$A342, 'Full set Core Client Indicator'!$A$3:$A$351, 0), MATCH(Selection_Hide2!J$5, 'Full set Core Client Indicator'!$A$3:$AB$3, 0))=\"\", \"\",  INDEX('Full set Core Client Indicator'!$A$3:$AB$351, MATCH(Selection_Hide2!$A342, 'Full set Core Client Indicator'!$A$3:$A$351, 0), MATCH(Selection_Hide2!J$5, 'Full set Core Client Indicator'!$A$3:$AB$3, 0))), \"\")","v":""},{"$f":"IF(J342<>\"\", IF(INDEX('Full set Core Client Indicator'!$A$3:$AB$351, MATCH(Selection_Hide2!$A342, 'Full set Core Client Indicator'!$A$3:$A$351, 0), MATCH(Selection_Hide2!K$5, 'Full set Core Client Indicator'!$A$3:$AB$3, 0))=\"\", \"\",  INDEX('Full set Core Client Indicator'!$A$3:$AB$351, MATCH(Selection_Hide2!$A342, 'Full set Core Client Indicator'!$A$3:$A$351, 0), MATCH(Selection_Hide2!K$5, 'Full set Core Client Indicator'!$A$3:$AB$3, 0))), \"\")","v":""},{"$f":"IF(K342<>\"\", IF(INDEX('Full set Core Client Indicator'!$A$3:$AB$351, MATCH(Selection_Hide2!$A342, 'Full set Core Client Indicator'!$A$3:$A$351, 0), MATCH(Selection_Hide2!L$5, 'Full set Core Client Indicator'!$A$3:$AB$3, 0))=\"\", \"\",  INDEX('Full set Core Client Indicator'!$A$3:$AB$351, MATCH(Selection_Hide2!$A342, 'Full set Core Client Indicator'!$A$3:$A$351, 0), MATCH(Selection_Hide2!L$5, 'Full set Core Client Indicator'!$A$3:$AB$3, 0))), \"\")","v":""},{"$f":"IF(L342<>\"\", IF(INDEX('Full set Core Client Indicator'!$A$3:$AB$351, MATCH(Selection_Hide2!$A342, 'Full set Core Client Indicator'!$A$3:$A$351, 0), MATCH(Selection_Hide2!M$5, 'Full set Core Client Indicator'!$A$3:$AB$3, 0))=\"\", \"\",  INDEX('Full set Core Client Indicator'!$A$3:$AB$351, MATCH(Selection_Hide2!$A342, 'Full set Core Client Indicator'!$A$3:$A$351, 0), MATCH(Selection_Hide2!M$5, 'Full set Core Client Indicator'!$A$3:$AB$3, 0))), \"\")","v":""},{"$f":"IF(M342<>\"\", IF(INDEX('Full set Core Client Indicator'!$A$3:$AB$351, MATCH(Selection_Hide2!$A342, 'Full set Core Client Indicator'!$A$3:$A$351, 0), MATCH(Selection_Hide2!N$5, 'Full set Core Client Indicator'!$A$3:$AB$3, 0))=\"\", \"\",  INDEX('Full set Core Client Indicator'!$A$3:$AB$351, MATCH(Selection_Hide2!$A342, 'Full set Core Client Indicator'!$A$3:$A$351, 0), MATCH(Selection_Hide2!N$5, 'Full set Core Client Indicator'!$A$3:$AB$3, 0))), \"\")","v":""},{"$f":"IF(N342<>\"\", IF(INDEX('Full set Core Client Indicator'!$A$3:$AB$351, MATCH(Selection_Hide2!$A342, 'Full set Core Client Indicator'!$A$3:$A$351, 0), MATCH(Selection_Hide2!O$5, 'Full set Core Client Indicator'!$A$3:$AB$3, 0))=\"\", \"\",  INDEX('Full set Core Client Indicator'!$A$3:$AB$351, MATCH(Selection_Hide2!$A342, 'Full set Core Client Indicator'!$A$3:$A$351, 0), MATCH(Selection_Hide2!O$5, 'Full set Core Client Indicator'!$A$3:$AB$3, 0))), \"\")","v":""},{"$f":"IF(O342<>\"\", IF(INDEX('Full set Core Client Indicator'!$A$3:$AB$351, MATCH(Selection_Hide2!$A342, 'Full set Core Client Indicator'!$A$3:$A$351, 0), MATCH(Selection_Hide2!P$5, 'Full set Core Client Indicator'!$A$3:$AB$3, 0))=\"\", \"\",  INDEX('Full set Core Client Indicator'!$A$3:$AB$351, MATCH(Selection_Hide2!$A342, 'Full set Core Client Indicator'!$A$3:$A$351, 0), MATCH(Selection_Hide2!P$5, 'Full set Core Client Indicator'!$A$3:$AB$3, 0))), \"\")","v":""},{"$f":"IF(P342<>\"\", IF(INDEX('Full set Core Client Indicator'!$A$3:$AB$351, MATCH(Selection_Hide2!$A342, 'Full set Core Client Indicator'!$A$3:$A$351, 0), MATCH(Selection_Hide2!Q$5, 'Full set Core Client Indicator'!$A$3:$AB$3, 0))=\"\", \"\",  INDEX('Full set Core Client Indicator'!$A$3:$AB$351, MATCH(Selection_Hide2!$A342, 'Full set Core Client Indicator'!$A$3:$A$351, 0), MATCH(Selection_Hide2!Q$5, 'Full set Core Client Indicator'!$A$3:$AB$3, 0))), \"\")","v":""},{"$f":"IF(Q342<>\"\", IF(INDEX('Full set Core Client Indicator'!$A$3:$AB$351, MATCH(Selection_Hide2!$A342, 'Full set Core Client Indicator'!$A$3:$A$351, 0), MATCH(Selection_Hide2!R$5, 'Full set Core Client Indicator'!$A$3:$AB$3, 0))=\"\", \"\",  INDEX('Full set Core Client Indicator'!$A$3:$AB$351, MATCH(Selection_Hide2!$A342, 'Full set Core Client Indicator'!$A$3:$A$351, 0), MATCH(Selection_Hide2!R$5, 'Full set Core Client Indicator'!$A$3:$AB$3, 0))), \"\")","v":""},{"$f":"IF(R342<>\"\", IF(INDEX('Full set Core Client Indicator'!$A$3:$AB$351, MATCH(Selection_Hide2!$A342, 'Full set Core Client Indicator'!$A$3:$A$351, 0), MATCH(Selection_Hide2!S$5, 'Full set Core Client Indicator'!$A$3:$AB$3, 0))=\"\", \"\",  INDEX('Full set Core Client Indicator'!$A$3:$AB$351, MATCH(Selection_Hide2!$A342, 'Full set Core Client Indicator'!$A$3:$A$351, 0), MATCH(Selection_Hide2!S$5, 'Full set Core Client Indicator'!$A$3:$AB$3, 0))), \"\")","v":""},{"$f":"IF(S342<>\"\", IF(INDEX('Full set Core Client Indicator'!$A$3:$AB$351, MATCH(Selection_Hide2!$A342, 'Full set Core Client Indicator'!$A$3:$A$351, 0), MATCH(Selection_Hide2!T$5, 'Full set Core Client Indicator'!$A$3:$AB$3, 0))=\"\", \"\",  INDEX('Full set Core Client Indicator'!$A$3:$AB$351, MATCH(Selection_Hide2!$A342, 'Full set Core Client Indicator'!$A$3:$A$351, 0), MATCH(Selection_Hide2!T$5, 'Full set Core Client Indicator'!$A$3:$AB$3, 0))), \"\")","v":""},{"$f":"IF(T342<>\"\", IF(INDEX('Full set Core Client Indicator'!$A$3:$AB$351, MATCH(Selection_Hide2!$A342, 'Full set Core Client Indicator'!$A$3:$A$351, 0), MATCH(Selection_Hide2!U$5, 'Full set Core Client Indicator'!$A$3:$AB$3, 0))=\"\", \"\",  INDEX('Full set Core Client Indicator'!$A$3:$AB$351, MATCH(Selection_Hide2!$A342, 'Full set Core Client Indicator'!$A$3:$A$351, 0), MATCH(Selection_Hide2!U$5, 'Full set Core Client Indicator'!$A$3:$AB$3, 0))), \"\")","v":""},{"$f":"IF(U342<>\"\", IF(INDEX('Full set Core Client Indicator'!$A$3:$AB$351, MATCH(Selection_Hide2!$A342, 'Full set Core Client Indicator'!$A$3:$A$351, 0), MATCH(Selection_Hide2!V$5, 'Full set Core Client Indicator'!$A$3:$AB$3, 0))=\"\", \"\",  INDEX('Full set Core Client Indicator'!$A$3:$AB$351, MATCH(Selection_Hide2!$A342, 'Full set Core Client Indicator'!$A$3:$A$351, 0), MATCH(Selection_Hide2!V$5, 'Full set Core Client Indicator'!$A$3:$AB$3, 0))), \"\")","v":""},{"$f":"IF(V342<>\"\", IF(INDEX('Full set Core Client Indicator'!$A$3:$AB$351, MATCH(Selection_Hide2!$A342, 'Full set Core Client Indicator'!$A$3:$A$351, 0), MATCH(Selection_Hide2!W$5, 'Full set Core Client Indicator'!$A$3:$AB$3, 0))=\"\", \"\",  INDEX('Full set Core Client Indicator'!$A$3:$AB$351, MATCH(Selection_Hide2!$A342, 'Full set Core Client Indicator'!$A$3:$A$351, 0), MATCH(Selection_Hide2!W$5, 'Full set Core Client Indicator'!$A$3:$AB$3, 0))), \"\")","v":""},{"$f":"IF(W342<>\"\", IF(INDEX('Full set Core Client Indicator'!$A$3:$AB$351, MATCH(Selection_Hide2!$A342, 'Full set Core Client Indicator'!$A$3:$A$351, 0), MATCH(Selection_Hide2!X$5, 'Full set Core Client Indicator'!$A$3:$AB$3, 0))=\"\", \"\",  INDEX('Full set Core Client Indicator'!$A$3:$AB$351, MATCH(Selection_Hide2!$A342, 'Full set Core Client Indicator'!$A$3:$A$351, 0), MATCH(Selection_Hide2!X$5, 'Full set Core Client Indicator'!$A$3:$AB$3, 0))), \"\")","v":""},{"$f":"IF(X342<>\"\", IF(INDEX('Full set Core Client Indicator'!$A$3:$AB$351, MATCH(Selection_Hide2!$A342, 'Full set Core Client Indicator'!$A$3:$A$351, 0), MATCH(Selection_Hide2!Y$5, 'Full set Core Client Indicator'!$A$3:$AB$3, 0))=\"\", \"\",  INDEX('Full set Core Client Indicator'!$A$3:$AB$351, MATCH(Selection_Hide2!$A342, 'Full set Core Client Indicator'!$A$3:$A$351, 0), MATCH(Selection_Hide2!Y$5, 'Full set Core Client Indicator'!$A$3:$AB$3, 0))), \"\")","v":""},{"$f":"IF(Y342<>\"\", IF(INDEX('Full set Core Client Indicator'!$A$3:$AB$351, MATCH(Selection_Hide2!$A342, 'Full set Core Client Indicator'!$A$3:$A$351, 0), MATCH(Selection_Hide2!Z$5, 'Full set Core Client Indicator'!$A$3:$AB$3, 0))=\"\", \"\",  INDEX('Full set Core Client Indicator'!$A$3:$AB$351, MATCH(Selection_Hide2!$A342, 'Full set Core Client Indicator'!$A$3:$A$351, 0), MATCH(Selection_Hide2!Z$5, 'Full set Core Client Indicator'!$A$3:$AB$3, 0))), \"\")","v":""},{"$f":"IF(Z342<>\"\", IF(INDEX('Full set Core Client Indicator'!$A$3:$AB$351, MATCH(Selection_Hide2!$A342, 'Full set Core Client Indicator'!$A$3:$A$351, 0), MATCH(Selection_Hide2!AA$5, 'Full set Core Client Indicator'!$A$3:$AB$3, 0))=\"\", \"\",  INDEX('Full set Core Client Indicator'!$A$3:$AB$351, MATCH(Selection_Hide2!$A342, 'Full set Core Client Indicator'!$A$3:$A$351, 0), MATCH(Selection_Hide2!AA$5, 'Full set Core Client Indicator'!$A$3:$AB$3, 0))), \"\")","v":""},{"$f":"IF(AA342<>\"\", IF(INDEX('Full set Core Client Indicator'!$A$3:$AB$351, MATCH(Selection_Hide2!$A342, 'Full set Core Client Indicator'!$A$3:$A$351, 0), MATCH(Selection_Hide2!AB$5, 'Full set Core Client Indicator'!$A$3:$AB$3, 0))=\"\", \"\",  INDEX('Full set Core Client Indicator'!$A$3:$AB$351, MATCH(Selection_Hide2!$A342, 'Full set Core Client Indicator'!$A$3:$A$351, 0), MATCH(Selection_Hide2!AB$5, 'Full set Core Client Indicator'!$A$3:$AB$3, 0))), \"\")","v":""}]
[{"$f":"IF(AND(Selection_Hide1!C341<>0, Selection_Hide1!C341<>\"Grand Total\"), Selection_Hide1!C341, \"\")","v":""},{"$f":"IF(A343<>\"\", IF(INDEX('Full set Core Client Indicator'!$A$3:$AB$351, MATCH(Selection_Hide2!$A343, 'Full set Core Client Indicator'!$A$3:$A$351, 0), MATCH(Selection_Hide2!B$5, 'Full set Core Client Indicator'!$A$3:$AB$3, 0))=\"\", \"\",  INDEX('Full set Core Client Indicator'!$A$3:$AB$351, MATCH(Selection_Hide2!$A343, 'Full set Core Client Indicator'!$A$3:$A$351, 0), MATCH(Selection_Hide2!B$5, 'Full set Core Client Indicator'!$A$3:$AB$3, 0))), \"\")","v":""},{"$f":"IF(B343<>\"\", IF(INDEX('Full set Core Client Indicator'!$A$3:$AB$351, MATCH(Selection_Hide2!$A343, 'Full set Core Client Indicator'!$A$3:$A$351, 0), MATCH(Selection_Hide2!C$5, 'Full set Core Client Indicator'!$A$3:$AB$3, 0))=\"\", \"\",  INDEX('Full set Core Client Indicator'!$A$3:$AB$351, MATCH(Selection_Hide2!$A343, 'Full set Core Client Indicator'!$A$3:$A$351, 0), MATCH(Selection_Hide2!C$5, 'Full set Core Client Indicator'!$A$3:$AB$3, 0))), \"\")","v":""},{"$f":"IF(C343<>\"\", IF(INDEX('Full set Core Client Indicator'!$A$3:$AB$351, MATCH(Selection_Hide2!$A343, 'Full set Core Client Indicator'!$A$3:$A$351, 0), MATCH(Selection_Hide2!D$5, 'Full set Core Client Indicator'!$A$3:$AB$3, 0))=\"\", \"\",  INDEX('Full set Core Client Indicator'!$A$3:$AB$351, MATCH(Selection_Hide2!$A343, 'Full set Core Client Indicator'!$A$3:$A$351, 0), MATCH(Selection_Hide2!D$5, 'Full set Core Client Indicator'!$A$3:$AB$3, 0))), \"\")","v":""},{"$f":"IF(D343<>\"\", IF(INDEX('Full set Core Client Indicator'!$A$3:$AB$351, MATCH(Selection_Hide2!$A343, 'Full set Core Client Indicator'!$A$3:$A$351, 0), MATCH(Selection_Hide2!E$5, 'Full set Core Client Indicator'!$A$3:$AB$3, 0))=\"\", \"\",  INDEX('Full set Core Client Indicator'!$A$3:$AB$351, MATCH(Selection_Hide2!$A343, 'Full set Core Client Indicator'!$A$3:$A$351, 0), MATCH(Selection_Hide2!E$5, 'Full set Core Client Indicator'!$A$3:$AB$3, 0))), \"\")","v":""},{"$f":"IF(E343<>\"\", IF(INDEX('Full set Core Client Indicator'!$A$3:$AB$351, MATCH(Selection_Hide2!$A343, 'Full set Core Client Indicator'!$A$3:$A$351, 0), MATCH(Selection_Hide2!F$5, 'Full set Core Client Indicator'!$A$3:$AB$3, 0))=\"\", \"\",  INDEX('Full set Core Client Indicator'!$A$3:$AB$351, MATCH(Selection_Hide2!$A343, 'Full set Core Client Indicator'!$A$3:$A$351, 0), MATCH(Selection_Hide2!F$5, 'Full set Core Client Indicator'!$A$3:$AB$3, 0))), \"\")","v":""},{"$f":"IF(F343<>\"\", IF(INDEX('Full set Core Client Indicator'!$A$3:$AB$351, MATCH(Selection_Hide2!$A343, 'Full set Core Client Indicator'!$A$3:$A$351, 0), MATCH(Selection_Hide2!G$5, 'Full set Core Client Indicator'!$A$3:$AB$3, 0))=\"\", \"\",  INDEX('Full set Core Client Indicator'!$A$3:$AB$351, MATCH(Selection_Hide2!$A343, 'Full set Core Client Indicator'!$A$3:$A$351, 0), MATCH(Selection_Hide2!G$5, 'Full set Core Client Indicator'!$A$3:$AB$3, 0))), \"\")","v":""},{"$f":"IF(G343<>\"\", IF(INDEX('Full set Core Client Indicator'!$A$3:$AB$351, MATCH(Selection_Hide2!$A343, 'Full set Core Client Indicator'!$A$3:$A$351, 0), MATCH(Selection_Hide2!H$5, 'Full set Core Client Indicator'!$A$3:$AB$3, 0))=\"\", \"\",  INDEX('Full set Core Client Indicator'!$A$3:$AB$351, MATCH(Selection_Hide2!$A343, 'Full set Core Client Indicator'!$A$3:$A$351, 0), MATCH(Selection_Hide2!H$5, 'Full set Core Client Indicator'!$A$3:$AB$3, 0))), \"\")","v":""},{"$f":"IF(H343<>\"\", IF(INDEX('Full set Core Client Indicator'!$A$3:$AB$351, MATCH(Selection_Hide2!$A343, 'Full set Core Client Indicator'!$A$3:$A$351, 0), MATCH(Selection_Hide2!I$5, 'Full set Core Client Indicator'!$A$3:$AB$3, 0))=\"\", \"\",  INDEX('Full set Core Client Indicator'!$A$3:$AB$351, MATCH(Selection_Hide2!$A343, 'Full set Core Client Indicator'!$A$3:$A$351, 0), MATCH(Selection_Hide2!I$5, 'Full set Core Client Indicator'!$A$3:$AB$3, 0))), \"\")","v":""},{"$f":"IF(I343<>\"\", IF(INDEX('Full set Core Client Indicator'!$A$3:$AB$351, MATCH(Selection_Hide2!$A343, 'Full set Core Client Indicator'!$A$3:$A$351, 0), MATCH(Selection_Hide2!J$5, 'Full set Core Client Indicator'!$A$3:$AB$3, 0))=\"\", \"\",  INDEX('Full set Core Client Indicator'!$A$3:$AB$351, MATCH(Selection_Hide2!$A343, 'Full set Core Client Indicator'!$A$3:$A$351, 0), MATCH(Selection_Hide2!J$5, 'Full set Core Client Indicator'!$A$3:$AB$3, 0))), \"\")","v":""},{"$f":"IF(J343<>\"\", IF(INDEX('Full set Core Client Indicator'!$A$3:$AB$351, MATCH(Selection_Hide2!$A343, 'Full set Core Client Indicator'!$A$3:$A$351, 0), MATCH(Selection_Hide2!K$5, 'Full set Core Client Indicator'!$A$3:$AB$3, 0))=\"\", \"\",  INDEX('Full set Core Client Indicator'!$A$3:$AB$351, MATCH(Selection_Hide2!$A343, 'Full set Core Client Indicator'!$A$3:$A$351, 0), MATCH(Selection_Hide2!K$5, 'Full set Core Client Indicator'!$A$3:$AB$3, 0))), \"\")","v":""},{"$f":"IF(K343<>\"\", IF(INDEX('Full set Core Client Indicator'!$A$3:$AB$351, MATCH(Selection_Hide2!$A343, 'Full set Core Client Indicator'!$A$3:$A$351, 0), MATCH(Selection_Hide2!L$5, 'Full set Core Client Indicator'!$A$3:$AB$3, 0))=\"\", \"\",  INDEX('Full set Core Client Indicator'!$A$3:$AB$351, MATCH(Selection_Hide2!$A343, 'Full set Core Client Indicator'!$A$3:$A$351, 0), MATCH(Selection_Hide2!L$5, 'Full set Core Client Indicator'!$A$3:$AB$3, 0))), \"\")","v":""},{"$f":"IF(L343<>\"\", IF(INDEX('Full set Core Client Indicator'!$A$3:$AB$351, MATCH(Selection_Hide2!$A343, 'Full set Core Client Indicator'!$A$3:$A$351, 0), MATCH(Selection_Hide2!M$5, 'Full set Core Client Indicator'!$A$3:$AB$3, 0))=\"\", \"\",  INDEX('Full set Core Client Indicator'!$A$3:$AB$351, MATCH(Selection_Hide2!$A343, 'Full set Core Client Indicator'!$A$3:$A$351, 0), MATCH(Selection_Hide2!M$5, 'Full set Core Client Indicator'!$A$3:$AB$3, 0))), \"\")","v":""},{"$f":"IF(M343<>\"\", IF(INDEX('Full set Core Client Indicator'!$A$3:$AB$351, MATCH(Selection_Hide2!$A343, 'Full set Core Client Indicator'!$A$3:$A$351, 0), MATCH(Selection_Hide2!N$5, 'Full set Core Client Indicator'!$A$3:$AB$3, 0))=\"\", \"\",  INDEX('Full set Core Client Indicator'!$A$3:$AB$351, MATCH(Selection_Hide2!$A343, 'Full set Core Client Indicator'!$A$3:$A$351, 0), MATCH(Selection_Hide2!N$5, 'Full set Core Client Indicator'!$A$3:$AB$3, 0))), \"\")","v":""},{"$f":"IF(N343<>\"\", IF(INDEX('Full set Core Client Indicator'!$A$3:$AB$351, MATCH(Selection_Hide2!$A343, 'Full set Core Client Indicator'!$A$3:$A$351, 0), MATCH(Selection_Hide2!O$5, 'Full set Core Client Indicator'!$A$3:$AB$3, 0))=\"\", \"\",  INDEX('Full set Core Client Indicator'!$A$3:$AB$351, MATCH(Selection_Hide2!$A343, 'Full set Core Client Indicator'!$A$3:$A$351, 0), MATCH(Selection_Hide2!O$5, 'Full set Core Client Indicator'!$A$3:$AB$3, 0))), \"\")","v":""},{"$f":"IF(O343<>\"\", IF(INDEX('Full set Core Client Indicator'!$A$3:$AB$351, MATCH(Selection_Hide2!$A343, 'Full set Core Client Indicator'!$A$3:$A$351, 0), MATCH(Selection_Hide2!P$5, 'Full set Core Client Indicator'!$A$3:$AB$3, 0))=\"\", \"\",  INDEX('Full set Core Client Indicator'!$A$3:$AB$351, MATCH(Selection_Hide2!$A343, 'Full set Core Client Indicator'!$A$3:$A$351, 0), MATCH(Selection_Hide2!P$5, 'Full set Core Client Indicator'!$A$3:$AB$3, 0))), \"\")","v":""},{"$f":"IF(P343<>\"\", IF(INDEX('Full set Core Client Indicator'!$A$3:$AB$351, MATCH(Selection_Hide2!$A343, 'Full set Core Client Indicator'!$A$3:$A$351, 0), MATCH(Selection_Hide2!Q$5, 'Full set Core Client Indicator'!$A$3:$AB$3, 0))=\"\", \"\",  INDEX('Full set Core Client Indicator'!$A$3:$AB$351, MATCH(Selection_Hide2!$A343, 'Full set Core Client Indicator'!$A$3:$A$351, 0), MATCH(Selection_Hide2!Q$5, 'Full set Core Client Indicator'!$A$3:$AB$3, 0))), \"\")","v":""},{"$f":"IF(Q343<>\"\", IF(INDEX('Full set Core Client Indicator'!$A$3:$AB$351, MATCH(Selection_Hide2!$A343, 'Full set Core Client Indicator'!$A$3:$A$351, 0), MATCH(Selection_Hide2!R$5, 'Full set Core Client Indicator'!$A$3:$AB$3, 0))=\"\", \"\",  INDEX('Full set Core Client Indicator'!$A$3:$AB$351, MATCH(Selection_Hide2!$A343, 'Full set Core Client Indicator'!$A$3:$A$351, 0), MATCH(Selection_Hide2!R$5, 'Full set Core Client Indicator'!$A$3:$AB$3, 0))), \"\")","v":""},{"$f":"IF(R343<>\"\", IF(INDEX('Full set Core Client Indicator'!$A$3:$AB$351, MATCH(Selection_Hide2!$A343, 'Full set Core Client Indicator'!$A$3:$A$351, 0), MATCH(Selection_Hide2!S$5, 'Full set Core Client Indicator'!$A$3:$AB$3, 0))=\"\", \"\",  INDEX('Full set Core Client Indicator'!$A$3:$AB$351, MATCH(Selection_Hide2!$A343, 'Full set Core Client Indicator'!$A$3:$A$351, 0), MATCH(Selection_Hide2!S$5, 'Full set Core Client Indicator'!$A$3:$AB$3, 0))), \"\")","v":""},{"$f":"IF(S343<>\"\", IF(INDEX('Full set Core Client Indicator'!$A$3:$AB$351, MATCH(Selection_Hide2!$A343, 'Full set Core Client Indicator'!$A$3:$A$351, 0), MATCH(Selection_Hide2!T$5, 'Full set Core Client Indicator'!$A$3:$AB$3, 0))=\"\", \"\",  INDEX('Full set Core Client Indicator'!$A$3:$AB$351, MATCH(Selection_Hide2!$A343, 'Full set Core Client Indicator'!$A$3:$A$351, 0), MATCH(Selection_Hide2!T$5, 'Full set Core Client Indicator'!$A$3:$AB$3, 0))), \"\")","v":""},{"$f":"IF(T343<>\"\", IF(INDEX('Full set Core Client Indicator'!$A$3:$AB$351, MATCH(Selection_Hide2!$A343, 'Full set Core Client Indicator'!$A$3:$A$351, 0), MATCH(Selection_Hide2!U$5, 'Full set Core Client Indicator'!$A$3:$AB$3, 0))=\"\", \"\",  INDEX('Full set Core Client Indicator'!$A$3:$AB$351, MATCH(Selection_Hide2!$A343, 'Full set Core Client Indicator'!$A$3:$A$351, 0), MATCH(Selection_Hide2!U$5, 'Full set Core Client Indicator'!$A$3:$AB$3, 0))), \"\")","v":""},{"$f":"IF(U343<>\"\", IF(INDEX('Full set Core Client Indicator'!$A$3:$AB$351, MATCH(Selection_Hide2!$A343, 'Full set Core Client Indicator'!$A$3:$A$351, 0), MATCH(Selection_Hide2!V$5, 'Full set Core Client Indicator'!$A$3:$AB$3, 0))=\"\", \"\",  INDEX('Full set Core Client Indicator'!$A$3:$AB$351, MATCH(Selection_Hide2!$A343, 'Full set Core Client Indicator'!$A$3:$A$351, 0), MATCH(Selection_Hide2!V$5, 'Full set Core Client Indicator'!$A$3:$AB$3, 0))), \"\")","v":""},{"$f":"IF(V343<>\"\", IF(INDEX('Full set Core Client Indicator'!$A$3:$AB$351, MATCH(Selection_Hide2!$A343, 'Full set Core Client Indicator'!$A$3:$A$351, 0), MATCH(Selection_Hide2!W$5, 'Full set Core Client Indicator'!$A$3:$AB$3, 0))=\"\", \"\",  INDEX('Full set Core Client Indicator'!$A$3:$AB$351, MATCH(Selection_Hide2!$A343, 'Full set Core Client Indicator'!$A$3:$A$351, 0), MATCH(Selection_Hide2!W$5, 'Full set Core Client Indicator'!$A$3:$AB$3, 0))), \"\")","v":""},{"$f":"IF(W343<>\"\", IF(INDEX('Full set Core Client Indicator'!$A$3:$AB$351, MATCH(Selection_Hide2!$A343, 'Full set Core Client Indicator'!$A$3:$A$351, 0), MATCH(Selection_Hide2!X$5, 'Full set Core Client Indicator'!$A$3:$AB$3, 0))=\"\", \"\",  INDEX('Full set Core Client Indicator'!$A$3:$AB$351, MATCH(Selection_Hide2!$A343, 'Full set Core Client Indicator'!$A$3:$A$351, 0), MATCH(Selection_Hide2!X$5, 'Full set Core Client Indicator'!$A$3:$AB$3, 0))), \"\")","v":""},{"$f":"IF(X343<>\"\", IF(INDEX('Full set Core Client Indicator'!$A$3:$AB$351, MATCH(Selection_Hide2!$A343, 'Full set Core Client Indicator'!$A$3:$A$351, 0), MATCH(Selection_Hide2!Y$5, 'Full set Core Client Indicator'!$A$3:$AB$3, 0))=\"\", \"\",  INDEX('Full set Core Client Indicator'!$A$3:$AB$351, MATCH(Selection_Hide2!$A343, 'Full set Core Client Indicator'!$A$3:$A$351, 0), MATCH(Selection_Hide2!Y$5, 'Full set Core Client Indicator'!$A$3:$AB$3, 0))), \"\")","v":""},{"$f":"IF(Y343<>\"\", IF(INDEX('Full set Core Client Indicator'!$A$3:$AB$351, MATCH(Selection_Hide2!$A343, 'Full set Core Client Indicator'!$A$3:$A$351, 0), MATCH(Selection_Hide2!Z$5, 'Full set Core Client Indicator'!$A$3:$AB$3, 0))=\"\", \"\",  INDEX('Full set Core Client Indicator'!$A$3:$AB$351, MATCH(Selection_Hide2!$A343, 'Full set Core Client Indicator'!$A$3:$A$351, 0), MATCH(Selection_Hide2!Z$5, 'Full set Core Client Indicator'!$A$3:$AB$3, 0))), \"\")","v":""},{"$f":"IF(Z343<>\"\", IF(INDEX('Full set Core Client Indicator'!$A$3:$AB$351, MATCH(Selection_Hide2!$A343, 'Full set Core Client Indicator'!$A$3:$A$351, 0), MATCH(Selection_Hide2!AA$5, 'Full set Core Client Indicator'!$A$3:$AB$3, 0))=\"\", \"\",  INDEX('Full set Core Client Indicator'!$A$3:$AB$351, MATCH(Selection_Hide2!$A343, 'Full set Core Client Indicator'!$A$3:$A$351, 0), MATCH(Selection_Hide2!AA$5, 'Full set Core Client Indicator'!$A$3:$AB$3, 0))), \"\")","v":""},{"$f":"IF(AA343<>\"\", IF(INDEX('Full set Core Client Indicator'!$A$3:$AB$351, MATCH(Selection_Hide2!$A343, 'Full set Core Client Indicator'!$A$3:$A$351, 0), MATCH(Selection_Hide2!AB$5, 'Full set Core Client Indicator'!$A$3:$AB$3, 0))=\"\", \"\",  INDEX('Full set Core Client Indicator'!$A$3:$AB$351, MATCH(Selection_Hide2!$A343, 'Full set Core Client Indicator'!$A$3:$A$351, 0), MATCH(Selection_Hide2!AB$5, 'Full set Core Client Indicator'!$A$3:$AB$3, 0))), \"\")","v":""}]
[{"$f":"IF(AND(Selection_Hide1!C342<>0, Selection_Hide1!C342<>\"Grand Total\"), Selection_Hide1!C342, \"\")","v":""},{"$f":"IF(A344<>\"\", IF(INDEX('Full set Core Client Indicator'!$A$3:$AB$351, MATCH(Selection_Hide2!$A344, 'Full set Core Client Indicator'!$A$3:$A$351, 0), MATCH(Selection_Hide2!B$5, 'Full set Core Client Indicator'!$A$3:$AB$3, 0))=\"\", \"\",  INDEX('Full set Core Client Indicator'!$A$3:$AB$351, MATCH(Selection_Hide2!$A344, 'Full set Core Client Indicator'!$A$3:$A$351, 0), MATCH(Selection_Hide2!B$5, 'Full set Core Client Indicator'!$A$3:$AB$3, 0))), \"\")","v":""},{"$f":"IF(B344<>\"\", IF(INDEX('Full set Core Client Indicator'!$A$3:$AB$351, MATCH(Selection_Hide2!$A344, 'Full set Core Client Indicator'!$A$3:$A$351, 0), MATCH(Selection_Hide2!C$5, 'Full set Core Client Indicator'!$A$3:$AB$3, 0))=\"\", \"\",  INDEX('Full set Core Client Indicator'!$A$3:$AB$351, MATCH(Selection_Hide2!$A344, 'Full set Core Client Indicator'!$A$3:$A$351, 0), MATCH(Selection_Hide2!C$5, 'Full set Core Client Indicator'!$A$3:$AB$3, 0))), \"\")","v":""},{"$f":"IF(C344<>\"\", IF(INDEX('Full set Core Client Indicator'!$A$3:$AB$351, MATCH(Selection_Hide2!$A344, 'Full set Core Client Indicator'!$A$3:$A$351, 0), MATCH(Selection_Hide2!D$5, 'Full set Core Client Indicator'!$A$3:$AB$3, 0))=\"\", \"\",  INDEX('Full set Core Client Indicator'!$A$3:$AB$351, MATCH(Selection_Hide2!$A344, 'Full set Core Client Indicator'!$A$3:$A$351, 0), MATCH(Selection_Hide2!D$5, 'Full set Core Client Indicator'!$A$3:$AB$3, 0))), \"\")","v":""},{"$f":"IF(D344<>\"\", IF(INDEX('Full set Core Client Indicator'!$A$3:$AB$351, MATCH(Selection_Hide2!$A344, 'Full set Core Client Indicator'!$A$3:$A$351, 0), MATCH(Selection_Hide2!E$5, 'Full set Core Client Indicator'!$A$3:$AB$3, 0))=\"\", \"\",  INDEX('Full set Core Client Indicator'!$A$3:$AB$351, MATCH(Selection_Hide2!$A344, 'Full set Core Client Indicator'!$A$3:$A$351, 0), MATCH(Selection_Hide2!E$5, 'Full set Core Client Indicator'!$A$3:$AB$3, 0))), \"\")","v":""},{"$f":"IF(E344<>\"\", IF(INDEX('Full set Core Client Indicator'!$A$3:$AB$351, MATCH(Selection_Hide2!$A344, 'Full set Core Client Indicator'!$A$3:$A$351, 0), MATCH(Selection_Hide2!F$5, 'Full set Core Client Indicator'!$A$3:$AB$3, 0))=\"\", \"\",  INDEX('Full set Core Client Indicator'!$A$3:$AB$351, MATCH(Selection_Hide2!$A344, 'Full set Core Client Indicator'!$A$3:$A$351, 0), MATCH(Selection_Hide2!F$5, 'Full set Core Client Indicator'!$A$3:$AB$3, 0))), \"\")","v":""},{"$f":"IF(F344<>\"\", IF(INDEX('Full set Core Client Indicator'!$A$3:$AB$351, MATCH(Selection_Hide2!$A344, 'Full set Core Client Indicator'!$A$3:$A$351, 0), MATCH(Selection_Hide2!G$5, 'Full set Core Client Indicator'!$A$3:$AB$3, 0))=\"\", \"\",  INDEX('Full set Core Client Indicator'!$A$3:$AB$351, MATCH(Selection_Hide2!$A344, 'Full set Core Client Indicator'!$A$3:$A$351, 0), MATCH(Selection_Hide2!G$5, 'Full set Core Client Indicator'!$A$3:$AB$3, 0))), \"\")","v":""},{"$f":"IF(G344<>\"\", IF(INDEX('Full set Core Client Indicator'!$A$3:$AB$351, MATCH(Selection_Hide2!$A344, 'Full set Core Client Indicator'!$A$3:$A$351, 0), MATCH(Selection_Hide2!H$5, 'Full set Core Client Indicator'!$A$3:$AB$3, 0))=\"\", \"\",  INDEX('Full set Core Client Indicator'!$A$3:$AB$351, MATCH(Selection_Hide2!$A344, 'Full set Core Client Indicator'!$A$3:$A$351, 0), MATCH(Selection_Hide2!H$5, 'Full set Core Client Indicator'!$A$3:$AB$3, 0))), \"\")","v":""},{"$f":"IF(H344<>\"\", IF(INDEX('Full set Core Client Indicator'!$A$3:$AB$351, MATCH(Selection_Hide2!$A344, 'Full set Core Client Indicator'!$A$3:$A$351, 0), MATCH(Selection_Hide2!I$5, 'Full set Core Client Indicator'!$A$3:$AB$3, 0))=\"\", \"\",  INDEX('Full set Core Client Indicator'!$A$3:$AB$351, MATCH(Selection_Hide2!$A344, 'Full set Core Client Indicator'!$A$3:$A$351, 0), MATCH(Selection_Hide2!I$5, 'Full set Core Client Indicator'!$A$3:$AB$3, 0))), \"\")","v":""},{"$f":"IF(I344<>\"\", IF(INDEX('Full set Core Client Indicator'!$A$3:$AB$351, MATCH(Selection_Hide2!$A344, 'Full set Core Client Indicator'!$A$3:$A$351, 0), MATCH(Selection_Hide2!J$5, 'Full set Core Client Indicator'!$A$3:$AB$3, 0))=\"\", \"\",  INDEX('Full set Core Client Indicator'!$A$3:$AB$351, MATCH(Selection_Hide2!$A344, 'Full set Core Client Indicator'!$A$3:$A$351, 0), MATCH(Selection_Hide2!J$5, 'Full set Core Client Indicator'!$A$3:$AB$3, 0))), \"\")","v":""},{"$f":"IF(J344<>\"\", IF(INDEX('Full set Core Client Indicator'!$A$3:$AB$351, MATCH(Selection_Hide2!$A344, 'Full set Core Client Indicator'!$A$3:$A$351, 0), MATCH(Selection_Hide2!K$5, 'Full set Core Client Indicator'!$A$3:$AB$3, 0))=\"\", \"\",  INDEX('Full set Core Client Indicator'!$A$3:$AB$351, MATCH(Selection_Hide2!$A344, 'Full set Core Client Indicator'!$A$3:$A$351, 0), MATCH(Selection_Hide2!K$5, 'Full set Core Client Indicator'!$A$3:$AB$3, 0))), \"\")","v":""},{"$f":"IF(K344<>\"\", IF(INDEX('Full set Core Client Indicator'!$A$3:$AB$351, MATCH(Selection_Hide2!$A344, 'Full set Core Client Indicator'!$A$3:$A$351, 0), MATCH(Selection_Hide2!L$5, 'Full set Core Client Indicator'!$A$3:$AB$3, 0))=\"\", \"\",  INDEX('Full set Core Client Indicator'!$A$3:$AB$351, MATCH(Selection_Hide2!$A344, 'Full set Core Client Indicator'!$A$3:$A$351, 0), MATCH(Selection_Hide2!L$5, 'Full set Core Client Indicator'!$A$3:$AB$3, 0))), \"\")","v":""},{"$f":"IF(L344<>\"\", IF(INDEX('Full set Core Client Indicator'!$A$3:$AB$351, MATCH(Selection_Hide2!$A344, 'Full set Core Client Indicator'!$A$3:$A$351, 0), MATCH(Selection_Hide2!M$5, 'Full set Core Client Indicator'!$A$3:$AB$3, 0))=\"\", \"\",  INDEX('Full set Core Client Indicator'!$A$3:$AB$351, MATCH(Selection_Hide2!$A344, 'Full set Core Client Indicator'!$A$3:$A$351, 0), MATCH(Selection_Hide2!M$5, 'Full set Core Client Indicator'!$A$3:$AB$3, 0))), \"\")","v":""},{"$f":"IF(M344<>\"\", IF(INDEX('Full set Core Client Indicator'!$A$3:$AB$351, MATCH(Selection_Hide2!$A344, 'Full set Core Client Indicator'!$A$3:$A$351, 0), MATCH(Selection_Hide2!N$5, 'Full set Core Client Indicator'!$A$3:$AB$3, 0))=\"\", \"\",  INDEX('Full set Core Client Indicator'!$A$3:$AB$351, MATCH(Selection_Hide2!$A344, 'Full set Core Client Indicator'!$A$3:$A$351, 0), MATCH(Selection_Hide2!N$5, 'Full set Core Client Indicator'!$A$3:$AB$3, 0))), \"\")","v":""},{"$f":"IF(N344<>\"\", IF(INDEX('Full set Core Client Indicator'!$A$3:$AB$351, MATCH(Selection_Hide2!$A344, 'Full set Core Client Indicator'!$A$3:$A$351, 0), MATCH(Selection_Hide2!O$5, 'Full set Core Client Indicator'!$A$3:$AB$3, 0))=\"\", \"\",  INDEX('Full set Core Client Indicator'!$A$3:$AB$351, MATCH(Selection_Hide2!$A344, 'Full set Core Client Indicator'!$A$3:$A$351, 0), MATCH(Selection_Hide2!O$5, 'Full set Core Client Indicator'!$A$3:$AB$3, 0))), \"\")","v":""},{"$f":"IF(O344<>\"\", IF(INDEX('Full set Core Client Indicator'!$A$3:$AB$351, MATCH(Selection_Hide2!$A344, 'Full set Core Client Indicator'!$A$3:$A$351, 0), MATCH(Selection_Hide2!P$5, 'Full set Core Client Indicator'!$A$3:$AB$3, 0))=\"\", \"\",  INDEX('Full set Core Client Indicator'!$A$3:$AB$351, MATCH(Selection_Hide2!$A344, 'Full set Core Client Indicator'!$A$3:$A$351, 0), MATCH(Selection_Hide2!P$5, 'Full set Core Client Indicator'!$A$3:$AB$3, 0))), \"\")","v":""},{"$f":"IF(P344<>\"\", IF(INDEX('Full set Core Client Indicator'!$A$3:$AB$351, MATCH(Selection_Hide2!$A344, 'Full set Core Client Indicator'!$A$3:$A$351, 0), MATCH(Selection_Hide2!Q$5, 'Full set Core Client Indicator'!$A$3:$AB$3, 0))=\"\", \"\",  INDEX('Full set Core Client Indicator'!$A$3:$AB$351, MATCH(Selection_Hide2!$A344, 'Full set Core Client Indicator'!$A$3:$A$351, 0), MATCH(Selection_Hide2!Q$5, 'Full set Core Client Indicator'!$A$3:$AB$3, 0))), \"\")","v":""},{"$f":"IF(Q344<>\"\", IF(INDEX('Full set Core Client Indicator'!$A$3:$AB$351, MATCH(Selection_Hide2!$A344, 'Full set Core Client Indicator'!$A$3:$A$351, 0), MATCH(Selection_Hide2!R$5, 'Full set Core Client Indicator'!$A$3:$AB$3, 0))=\"\", \"\",  INDEX('Full set Core Client Indicator'!$A$3:$AB$351, MATCH(Selection_Hide2!$A344, 'Full set Core Client Indicator'!$A$3:$A$351, 0), MATCH(Selection_Hide2!R$5, 'Full set Core Client Indicator'!$A$3:$AB$3, 0))), \"\")","v":""},{"$f":"IF(R344<>\"\", IF(INDEX('Full set Core Client Indicator'!$A$3:$AB$351, MATCH(Selection_Hide2!$A344, 'Full set Core Client Indicator'!$A$3:$A$351, 0), MATCH(Selection_Hide2!S$5, 'Full set Core Client Indicator'!$A$3:$AB$3, 0))=\"\", \"\",  INDEX('Full set Core Client Indicator'!$A$3:$AB$351, MATCH(Selection_Hide2!$A344, 'Full set Core Client Indicator'!$A$3:$A$351, 0), MATCH(Selection_Hide2!S$5, 'Full set Core Client Indicator'!$A$3:$AB$3, 0))), \"\")","v":""},{"$f":"IF(S344<>\"\", IF(INDEX('Full set Core Client Indicator'!$A$3:$AB$351, MATCH(Selection_Hide2!$A344, 'Full set Core Client Indicator'!$A$3:$A$351, 0), MATCH(Selection_Hide2!T$5, 'Full set Core Client Indicator'!$A$3:$AB$3, 0))=\"\", \"\",  INDEX('Full set Core Client Indicator'!$A$3:$AB$351, MATCH(Selection_Hide2!$A344, 'Full set Core Client Indicator'!$A$3:$A$351, 0), MATCH(Selection_Hide2!T$5, 'Full set Core Client Indicator'!$A$3:$AB$3, 0))), \"\")","v":""},{"$f":"IF(T344<>\"\", IF(INDEX('Full set Core Client Indicator'!$A$3:$AB$351, MATCH(Selection_Hide2!$A344, 'Full set Core Client Indicator'!$A$3:$A$351, 0), MATCH(Selection_Hide2!U$5, 'Full set Core Client Indicator'!$A$3:$AB$3, 0))=\"\", \"\",  INDEX('Full set Core Client Indicator'!$A$3:$AB$351, MATCH(Selection_Hide2!$A344, 'Full set Core Client Indicator'!$A$3:$A$351, 0), MATCH(Selection_Hide2!U$5, 'Full set Core Client Indicator'!$A$3:$AB$3, 0))), \"\")","v":""},{"$f":"IF(U344<>\"\", IF(INDEX('Full set Core Client Indicator'!$A$3:$AB$351, MATCH(Selection_Hide2!$A344, 'Full set Core Client Indicator'!$A$3:$A$351, 0), MATCH(Selection_Hide2!V$5, 'Full set Core Client Indicator'!$A$3:$AB$3, 0))=\"\", \"\",  INDEX('Full set Core Client Indicator'!$A$3:$AB$351, MATCH(Selection_Hide2!$A344, 'Full set Core Client Indicator'!$A$3:$A$351, 0), MATCH(Selection_Hide2!V$5, 'Full set Core Client Indicator'!$A$3:$AB$3, 0))), \"\")","v":""},{"$f":"IF(V344<>\"\", IF(INDEX('Full set Core Client Indicator'!$A$3:$AB$351, MATCH(Selection_Hide2!$A344, 'Full set Core Client Indicator'!$A$3:$A$351, 0), MATCH(Selection_Hide2!W$5, 'Full set Core Client Indicator'!$A$3:$AB$3, 0))=\"\", \"\",  INDEX('Full set Core Client Indicator'!$A$3:$AB$351, MATCH(Selection_Hide2!$A344, 'Full set Core Client Indicator'!$A$3:$A$351, 0), MATCH(Selection_Hide2!W$5, 'Full set Core Client Indicator'!$A$3:$AB$3, 0))), \"\")","v":""},{"$f":"IF(W344<>\"\", IF(INDEX('Full set Core Client Indicator'!$A$3:$AB$351, MATCH(Selection_Hide2!$A344, 'Full set Core Client Indicator'!$A$3:$A$351, 0), MATCH(Selection_Hide2!X$5, 'Full set Core Client Indicator'!$A$3:$AB$3, 0))=\"\", \"\",  INDEX('Full set Core Client Indicator'!$A$3:$AB$351, MATCH(Selection_Hide2!$A344, 'Full set Core Client Indicator'!$A$3:$A$351, 0), MATCH(Selection_Hide2!X$5, 'Full set Core Client Indicator'!$A$3:$AB$3, 0))), \"\")","v":""},{"$f":"IF(X344<>\"\", IF(INDEX('Full set Core Client Indicator'!$A$3:$AB$351, MATCH(Selection_Hide2!$A344, 'Full set Core Client Indicator'!$A$3:$A$351, 0), MATCH(Selection_Hide2!Y$5, 'Full set Core Client Indicator'!$A$3:$AB$3, 0))=\"\", \"\",  INDEX('Full set Core Client Indicator'!$A$3:$AB$351, MATCH(Selection_Hide2!$A344, 'Full set Core Client Indicator'!$A$3:$A$351, 0), MATCH(Selection_Hide2!Y$5, 'Full set Core Client Indicator'!$A$3:$AB$3, 0))), \"\")","v":""},{"$f":"IF(Y344<>\"\", IF(INDEX('Full set Core Client Indicator'!$A$3:$AB$351, MATCH(Selection_Hide2!$A344, 'Full set Core Client Indicator'!$A$3:$A$351, 0), MATCH(Selection_Hide2!Z$5, 'Full set Core Client Indicator'!$A$3:$AB$3, 0))=\"\", \"\",  INDEX('Full set Core Client Indicator'!$A$3:$AB$351, MATCH(Selection_Hide2!$A344, 'Full set Core Client Indicator'!$A$3:$A$351, 0), MATCH(Selection_Hide2!Z$5, 'Full set Core Client Indicator'!$A$3:$AB$3, 0))), \"\")","v":""},{"$f":"IF(Z344<>\"\", IF(INDEX('Full set Core Client Indicator'!$A$3:$AB$351, MATCH(Selection_Hide2!$A344, 'Full set Core Client Indicator'!$A$3:$A$351, 0), MATCH(Selection_Hide2!AA$5, 'Full set Core Client Indicator'!$A$3:$AB$3, 0))=\"\", \"\",  INDEX('Full set Core Client Indicator'!$A$3:$AB$351, MATCH(Selection_Hide2!$A344, 'Full set Core Client Indicator'!$A$3:$A$351, 0), MATCH(Selection_Hide2!AA$5, 'Full set Core Client Indicator'!$A$3:$AB$3, 0))), \"\")","v":""},{"$f":"IF(AA344<>\"\", IF(INDEX('Full set Core Client Indicator'!$A$3:$AB$351, MATCH(Selection_Hide2!$A344, 'Full set Core Client Indicator'!$A$3:$A$351, 0), MATCH(Selection_Hide2!AB$5, 'Full set Core Client Indicator'!$A$3:$AB$3, 0))=\"\", \"\",  INDEX('Full set Core Client Indicator'!$A$3:$AB$351, MATCH(Selection_Hide2!$A344, 'Full set Core Client Indicator'!$A$3:$A$351, 0), MATCH(Selection_Hide2!AB$5, 'Full set Core Client Indicator'!$A$3:$AB$3, 0))), \"\")","v":""}]
[{"$f":"IF(AND(Selection_Hide1!C343<>0, Selection_Hide1!C343<>\"Grand Total\"), Selection_Hide1!C343, \"\")","v":""},{"$f":"IF(A345<>\"\", IF(INDEX('Full set Core Client Indicator'!$A$3:$AB$351, MATCH(Selection_Hide2!$A345, 'Full set Core Client Indicator'!$A$3:$A$351, 0), MATCH(Selection_Hide2!B$5, 'Full set Core Client Indicator'!$A$3:$AB$3, 0))=\"\", \"\",  INDEX('Full set Core Client Indicator'!$A$3:$AB$351, MATCH(Selection_Hide2!$A345, 'Full set Core Client Indicator'!$A$3:$A$351, 0), MATCH(Selection_Hide2!B$5, 'Full set Core Client Indicator'!$A$3:$AB$3, 0))), \"\")","v":""},{"$f":"IF(B345<>\"\", IF(INDEX('Full set Core Client Indicator'!$A$3:$AB$351, MATCH(Selection_Hide2!$A345, 'Full set Core Client Indicator'!$A$3:$A$351, 0), MATCH(Selection_Hide2!C$5, 'Full set Core Client Indicator'!$A$3:$AB$3, 0))=\"\", \"\",  INDEX('Full set Core Client Indicator'!$A$3:$AB$351, MATCH(Selection_Hide2!$A345, 'Full set Core Client Indicator'!$A$3:$A$351, 0), MATCH(Selection_Hide2!C$5, 'Full set Core Client Indicator'!$A$3:$AB$3, 0))), \"\")","v":""},{"$f":"IF(C345<>\"\", IF(INDEX('Full set Core Client Indicator'!$A$3:$AB$351, MATCH(Selection_Hide2!$A345, 'Full set Core Client Indicator'!$A$3:$A$351, 0), MATCH(Selection_Hide2!D$5, 'Full set Core Client Indicator'!$A$3:$AB$3, 0))=\"\", \"\",  INDEX('Full set Core Client Indicator'!$A$3:$AB$351, MATCH(Selection_Hide2!$A345, 'Full set Core Client Indicator'!$A$3:$A$351, 0), MATCH(Selection_Hide2!D$5, 'Full set Core Client Indicator'!$A$3:$AB$3, 0))), \"\")","v":""},{"$f":"IF(D345<>\"\", IF(INDEX('Full set Core Client Indicator'!$A$3:$AB$351, MATCH(Selection_Hide2!$A345, 'Full set Core Client Indicator'!$A$3:$A$351, 0), MATCH(Selection_Hide2!E$5, 'Full set Core Client Indicator'!$A$3:$AB$3, 0))=\"\", \"\",  INDEX('Full set Core Client Indicator'!$A$3:$AB$351, MATCH(Selection_Hide2!$A345, 'Full set Core Client Indicator'!$A$3:$A$351, 0), MATCH(Selection_Hide2!E$5, 'Full set Core Client Indicator'!$A$3:$AB$3, 0))), \"\")","v":""},{"$f":"IF(E345<>\"\", IF(INDEX('Full set Core Client Indicator'!$A$3:$AB$351, MATCH(Selection_Hide2!$A345, 'Full set Core Client Indicator'!$A$3:$A$351, 0), MATCH(Selection_Hide2!F$5, 'Full set Core Client Indicator'!$A$3:$AB$3, 0))=\"\", \"\",  INDEX('Full set Core Client Indicator'!$A$3:$AB$351, MATCH(Selection_Hide2!$A345, 'Full set Core Client Indicator'!$A$3:$A$351, 0), MATCH(Selection_Hide2!F$5, 'Full set Core Client Indicator'!$A$3:$AB$3, 0))), \"\")","v":""},{"$f":"IF(F345<>\"\", IF(INDEX('Full set Core Client Indicator'!$A$3:$AB$351, MATCH(Selection_Hide2!$A345, 'Full set Core Client Indicator'!$A$3:$A$351, 0), MATCH(Selection_Hide2!G$5, 'Full set Core Client Indicator'!$A$3:$AB$3, 0))=\"\", \"\",  INDEX('Full set Core Client Indicator'!$A$3:$AB$351, MATCH(Selection_Hide2!$A345, 'Full set Core Client Indicator'!$A$3:$A$351, 0), MATCH(Selection_Hide2!G$5, 'Full set Core Client Indicator'!$A$3:$AB$3, 0))), \"\")","v":""},{"$f":"IF(G345<>\"\", IF(INDEX('Full set Core Client Indicator'!$A$3:$AB$351, MATCH(Selection_Hide2!$A345, 'Full set Core Client Indicator'!$A$3:$A$351, 0), MATCH(Selection_Hide2!H$5, 'Full set Core Client Indicator'!$A$3:$AB$3, 0))=\"\", \"\",  INDEX('Full set Core Client Indicator'!$A$3:$AB$351, MATCH(Selection_Hide2!$A345, 'Full set Core Client Indicator'!$A$3:$A$351, 0), MATCH(Selection_Hide2!H$5, 'Full set Core Client Indicator'!$A$3:$AB$3, 0))), \"\")","v":""},{"$f":"IF(H345<>\"\", IF(INDEX('Full set Core Client Indicator'!$A$3:$AB$351, MATCH(Selection_Hide2!$A345, 'Full set Core Client Indicator'!$A$3:$A$351, 0), MATCH(Selection_Hide2!I$5, 'Full set Core Client Indicator'!$A$3:$AB$3, 0))=\"\", \"\",  INDEX('Full set Core Client Indicator'!$A$3:$AB$351, MATCH(Selection_Hide2!$A345, 'Full set Core Client Indicator'!$A$3:$A$351, 0), MATCH(Selection_Hide2!I$5, 'Full set Core Client Indicator'!$A$3:$AB$3, 0))), \"\")","v":""},{"$f":"IF(I345<>\"\", IF(INDEX('Full set Core Client Indicator'!$A$3:$AB$351, MATCH(Selection_Hide2!$A345, 'Full set Core Client Indicator'!$A$3:$A$351, 0), MATCH(Selection_Hide2!J$5, 'Full set Core Client Indicator'!$A$3:$AB$3, 0))=\"\", \"\",  INDEX('Full set Core Client Indicator'!$A$3:$AB$351, MATCH(Selection_Hide2!$A345, 'Full set Core Client Indicator'!$A$3:$A$351, 0), MATCH(Selection_Hide2!J$5, 'Full set Core Client Indicator'!$A$3:$AB$3, 0))), \"\")","v":""},{"$f":"IF(J345<>\"\", IF(INDEX('Full set Core Client Indicator'!$A$3:$AB$351, MATCH(Selection_Hide2!$A345, 'Full set Core Client Indicator'!$A$3:$A$351, 0), MATCH(Selection_Hide2!K$5, 'Full set Core Client Indicator'!$A$3:$AB$3, 0))=\"\", \"\",  INDEX('Full set Core Client Indicator'!$A$3:$AB$351, MATCH(Selection_Hide2!$A345, 'Full set Core Client Indicator'!$A$3:$A$351, 0), MATCH(Selection_Hide2!K$5, 'Full set Core Client Indicator'!$A$3:$AB$3, 0))), \"\")","v":""},{"$f":"IF(K345<>\"\", IF(INDEX('Full set Core Client Indicator'!$A$3:$AB$351, MATCH(Selection_Hide2!$A345, 'Full set Core Client Indicator'!$A$3:$A$351, 0), MATCH(Selection_Hide2!L$5, 'Full set Core Client Indicator'!$A$3:$AB$3, 0))=\"\", \"\",  INDEX('Full set Core Client Indicator'!$A$3:$AB$351, MATCH(Selection_Hide2!$A345, 'Full set Core Client Indicator'!$A$3:$A$351, 0), MATCH(Selection_Hide2!L$5, 'Full set Core Client Indicator'!$A$3:$AB$3, 0))), \"\")","v":""},{"$f":"IF(L345<>\"\", IF(INDEX('Full set Core Client Indicator'!$A$3:$AB$351, MATCH(Selection_Hide2!$A345, 'Full set Core Client Indicator'!$A$3:$A$351, 0), MATCH(Selection_Hide2!M$5, 'Full set Core Client Indicator'!$A$3:$AB$3, 0))=\"\", \"\",  INDEX('Full set Core Client Indicator'!$A$3:$AB$351, MATCH(Selection_Hide2!$A345, 'Full set Core Client Indicator'!$A$3:$A$351, 0), MATCH(Selection_Hide2!M$5, 'Full set Core Client Indicator'!$A$3:$AB$3, 0))), \"\")","v":""},{"$f":"IF(M345<>\"\", IF(INDEX('Full set Core Client Indicator'!$A$3:$AB$351, MATCH(Selection_Hide2!$A345, 'Full set Core Client Indicator'!$A$3:$A$351, 0), MATCH(Selection_Hide2!N$5, 'Full set Core Client Indicator'!$A$3:$AB$3, 0))=\"\", \"\",  INDEX('Full set Core Client Indicator'!$A$3:$AB$351, MATCH(Selection_Hide2!$A345, 'Full set Core Client Indicator'!$A$3:$A$351, 0), MATCH(Selection_Hide2!N$5, 'Full set Core Client Indicator'!$A$3:$AB$3, 0))), \"\")","v":""},{"$f":"IF(N345<>\"\", IF(INDEX('Full set Core Client Indicator'!$A$3:$AB$351, MATCH(Selection_Hide2!$A345, 'Full set Core Client Indicator'!$A$3:$A$351, 0), MATCH(Selection_Hide2!O$5, 'Full set Core Client Indicator'!$A$3:$AB$3, 0))=\"\", \"\",  INDEX('Full set Core Client Indicator'!$A$3:$AB$351, MATCH(Selection_Hide2!$A345, 'Full set Core Client Indicator'!$A$3:$A$351, 0), MATCH(Selection_Hide2!O$5, 'Full set Core Client Indicator'!$A$3:$AB$3, 0))), \"\")","v":""},{"$f":"IF(O345<>\"\", IF(INDEX('Full set Core Client Indicator'!$A$3:$AB$351, MATCH(Selection_Hide2!$A345, 'Full set Core Client Indicator'!$A$3:$A$351, 0), MATCH(Selection_Hide2!P$5, 'Full set Core Client Indicator'!$A$3:$AB$3, 0))=\"\", \"\",  INDEX('Full set Core Client Indicator'!$A$3:$AB$351, MATCH(Selection_Hide2!$A345, 'Full set Core Client Indicator'!$A$3:$A$351, 0), MATCH(Selection_Hide2!P$5, 'Full set Core Client Indicator'!$A$3:$AB$3, 0))), \"\")","v":""},{"$f":"IF(P345<>\"\", IF(INDEX('Full set Core Client Indicator'!$A$3:$AB$351, MATCH(Selection_Hide2!$A345, 'Full set Core Client Indicator'!$A$3:$A$351, 0), MATCH(Selection_Hide2!Q$5, 'Full set Core Client Indicator'!$A$3:$AB$3, 0))=\"\", \"\",  INDEX('Full set Core Client Indicator'!$A$3:$AB$351, MATCH(Selection_Hide2!$A345, 'Full set Core Client Indicator'!$A$3:$A$351, 0), MATCH(Selection_Hide2!Q$5, 'Full set Core Client Indicator'!$A$3:$AB$3, 0))), \"\")","v":""},{"$f":"IF(Q345<>\"\", IF(INDEX('Full set Core Client Indicator'!$A$3:$AB$351, MATCH(Selection_Hide2!$A345, 'Full set Core Client Indicator'!$A$3:$A$351, 0), MATCH(Selection_Hide2!R$5, 'Full set Core Client Indicator'!$A$3:$AB$3, 0))=\"\", \"\",  INDEX('Full set Core Client Indicator'!$A$3:$AB$351, MATCH(Selection_Hide2!$A345, 'Full set Core Client Indicator'!$A$3:$A$351, 0), MATCH(Selection_Hide2!R$5, 'Full set Core Client Indicator'!$A$3:$AB$3, 0))), \"\")","v":""},{"$f":"IF(R345<>\"\", IF(INDEX('Full set Core Client Indicator'!$A$3:$AB$351, MATCH(Selection_Hide2!$A345, 'Full set Core Client Indicator'!$A$3:$A$351, 0), MATCH(Selection_Hide2!S$5, 'Full set Core Client Indicator'!$A$3:$AB$3, 0))=\"\", \"\",  INDEX('Full set Core Client Indicator'!$A$3:$AB$351, MATCH(Selection_Hide2!$A345, 'Full set Core Client Indicator'!$A$3:$A$351, 0), MATCH(Selection_Hide2!S$5, 'Full set Core Client Indicator'!$A$3:$AB$3, 0))), \"\")","v":""},{"$f":"IF(S345<>\"\", IF(INDEX('Full set Core Client Indicator'!$A$3:$AB$351, MATCH(Selection_Hide2!$A345, 'Full set Core Client Indicator'!$A$3:$A$351, 0), MATCH(Selection_Hide2!T$5, 'Full set Core Client Indicator'!$A$3:$AB$3, 0))=\"\", \"\",  INDEX('Full set Core Client Indicator'!$A$3:$AB$351, MATCH(Selection_Hide2!$A345, 'Full set Core Client Indicator'!$A$3:$A$351, 0), MATCH(Selection_Hide2!T$5, 'Full set Core Client Indicator'!$A$3:$AB$3, 0))), \"\")","v":""},{"$f":"IF(T345<>\"\", IF(INDEX('Full set Core Client Indicator'!$A$3:$AB$351, MATCH(Selection_Hide2!$A345, 'Full set Core Client Indicator'!$A$3:$A$351, 0), MATCH(Selection_Hide2!U$5, 'Full set Core Client Indicator'!$A$3:$AB$3, 0))=\"\", \"\",  INDEX('Full set Core Client Indicator'!$A$3:$AB$351, MATCH(Selection_Hide2!$A345, 'Full set Core Client Indicator'!$A$3:$A$351, 0), MATCH(Selection_Hide2!U$5, 'Full set Core Client Indicator'!$A$3:$AB$3, 0))), \"\")","v":""},{"$f":"IF(U345<>\"\", IF(INDEX('Full set Core Client Indicator'!$A$3:$AB$351, MATCH(Selection_Hide2!$A345, 'Full set Core Client Indicator'!$A$3:$A$351, 0), MATCH(Selection_Hide2!V$5, 'Full set Core Client Indicator'!$A$3:$AB$3, 0))=\"\", \"\",  INDEX('Full set Core Client Indicator'!$A$3:$AB$351, MATCH(Selection_Hide2!$A345, 'Full set Core Client Indicator'!$A$3:$A$351, 0), MATCH(Selection_Hide2!V$5, 'Full set Core Client Indicator'!$A$3:$AB$3, 0))), \"\")","v":""},{"$f":"IF(V345<>\"\", IF(INDEX('Full set Core Client Indicator'!$A$3:$AB$351, MATCH(Selection_Hide2!$A345, 'Full set Core Client Indicator'!$A$3:$A$351, 0), MATCH(Selection_Hide2!W$5, 'Full set Core Client Indicator'!$A$3:$AB$3, 0))=\"\", \"\",  INDEX('Full set Core Client Indicator'!$A$3:$AB$351, MATCH(Selection_Hide2!$A345, 'Full set Core Client Indicator'!$A$3:$A$351, 0), MATCH(Selection_Hide2!W$5, 'Full set Core Client Indicator'!$A$3:$AB$3, 0))), \"\")","v":""},{"$f":"IF(W345<>\"\", IF(INDEX('Full set Core Client Indicator'!$A$3:$AB$351, MATCH(Selection_Hide2!$A345, 'Full set Core Client Indicator'!$A$3:$A$351, 0), MATCH(Selection_Hide2!X$5, 'Full set Core Client Indicator'!$A$3:$AB$3, 0))=\"\", \"\",  INDEX('Full set Core Client Indicator'!$A$3:$AB$351, MATCH(Selection_Hide2!$A345, 'Full set Core Client Indicator'!$A$3:$A$351, 0), MATCH(Selection_Hide2!X$5, 'Full set Core Client Indicator'!$A$3:$AB$3, 0))), \"\")","v":""},{"$f":"IF(X345<>\"\", IF(INDEX('Full set Core Client Indicator'!$A$3:$AB$351, MATCH(Selection_Hide2!$A345, 'Full set Core Client Indicator'!$A$3:$A$351, 0), MATCH(Selection_Hide2!Y$5, 'Full set Core Client Indicator'!$A$3:$AB$3, 0))=\"\", \"\",  INDEX('Full set Core Client Indicator'!$A$3:$AB$351, MATCH(Selection_Hide2!$A345, 'Full set Core Client Indicator'!$A$3:$A$351, 0), MATCH(Selection_Hide2!Y$5, 'Full set Core Client Indicator'!$A$3:$AB$3, 0))), \"\")","v":""},{"$f":"IF(Y345<>\"\", IF(INDEX('Full set Core Client Indicator'!$A$3:$AB$351, MATCH(Selection_Hide2!$A345, 'Full set Core Client Indicator'!$A$3:$A$351, 0), MATCH(Selection_Hide2!Z$5, 'Full set Core Client Indicator'!$A$3:$AB$3, 0))=\"\", \"\",  INDEX('Full set Core Client Indicator'!$A$3:$AB$351, MATCH(Selection_Hide2!$A345, 'Full set Core Client Indicator'!$A$3:$A$351, 0), MATCH(Selection_Hide2!Z$5, 'Full set Core Client Indicator'!$A$3:$AB$3, 0))), \"\")","v":""},{"$f":"IF(Z345<>\"\", IF(INDEX('Full set Core Client Indicator'!$A$3:$AB$351, MATCH(Selection_Hide2!$A345, 'Full set Core Client Indicator'!$A$3:$A$351, 0), MATCH(Selection_Hide2!AA$5, 'Full set Core Client Indicator'!$A$3:$AB$3, 0))=\"\", \"\",  INDEX('Full set Core Client Indicator'!$A$3:$AB$351, MATCH(Selection_Hide2!$A345, 'Full set Core Client Indicator'!$A$3:$A$351, 0), MATCH(Selection_Hide2!AA$5, 'Full set Core Client Indicator'!$A$3:$AB$3, 0))), \"\")","v":""},{"$f":"IF(AA345<>\"\", IF(INDEX('Full set Core Client Indicator'!$A$3:$AB$351, MATCH(Selection_Hide2!$A345, 'Full set Core Client Indicator'!$A$3:$A$351, 0), MATCH(Selection_Hide2!AB$5, 'Full set Core Client Indicator'!$A$3:$AB$3, 0))=\"\", \"\",  INDEX('Full set Core Client Indicator'!$A$3:$AB$351, MATCH(Selection_Hide2!$A345, 'Full set Core Client Indicator'!$A$3:$A$351, 0), MATCH(Selection_Hide2!AB$5, 'Full set Core Client Indicator'!$A$3:$AB$3, 0))), \"\")","v":""}]
[{"$f":"IF(AND(Selection_Hide1!C344<>0, Selection_Hide1!C344<>\"Grand Total\"), Selection_Hide1!C344, \"\")","v":""},{"$f":"IF(A346<>\"\", IF(INDEX('Full set Core Client Indicator'!$A$3:$AB$351, MATCH(Selection_Hide2!$A346, 'Full set Core Client Indicator'!$A$3:$A$351, 0), MATCH(Selection_Hide2!B$5, 'Full set Core Client Indicator'!$A$3:$AB$3, 0))=\"\", \"\",  INDEX('Full set Core Client Indicator'!$A$3:$AB$351, MATCH(Selection_Hide2!$A346, 'Full set Core Client Indicator'!$A$3:$A$351, 0), MATCH(Selection_Hide2!B$5, 'Full set Core Client Indicator'!$A$3:$AB$3, 0))), \"\")","v":""},{"$f":"IF(B346<>\"\", IF(INDEX('Full set Core Client Indicator'!$A$3:$AB$351, MATCH(Selection_Hide2!$A346, 'Full set Core Client Indicator'!$A$3:$A$351, 0), MATCH(Selection_Hide2!C$5, 'Full set Core Client Indicator'!$A$3:$AB$3, 0))=\"\", \"\",  INDEX('Full set Core Client Indicator'!$A$3:$AB$351, MATCH(Selection_Hide2!$A346, 'Full set Core Client Indicator'!$A$3:$A$351, 0), MATCH(Selection_Hide2!C$5, 'Full set Core Client Indicator'!$A$3:$AB$3, 0))), \"\")","v":""},{"$f":"IF(C346<>\"\", IF(INDEX('Full set Core Client Indicator'!$A$3:$AB$351, MATCH(Selection_Hide2!$A346, 'Full set Core Client Indicator'!$A$3:$A$351, 0), MATCH(Selection_Hide2!D$5, 'Full set Core Client Indicator'!$A$3:$AB$3, 0))=\"\", \"\",  INDEX('Full set Core Client Indicator'!$A$3:$AB$351, MATCH(Selection_Hide2!$A346, 'Full set Core Client Indicator'!$A$3:$A$351, 0), MATCH(Selection_Hide2!D$5, 'Full set Core Client Indicator'!$A$3:$AB$3, 0))), \"\")","v":""},{"$f":"IF(D346<>\"\", IF(INDEX('Full set Core Client Indicator'!$A$3:$AB$351, MATCH(Selection_Hide2!$A346, 'Full set Core Client Indicator'!$A$3:$A$351, 0), MATCH(Selection_Hide2!E$5, 'Full set Core Client Indicator'!$A$3:$AB$3, 0))=\"\", \"\",  INDEX('Full set Core Client Indicator'!$A$3:$AB$351, MATCH(Selection_Hide2!$A346, 'Full set Core Client Indicator'!$A$3:$A$351, 0), MATCH(Selection_Hide2!E$5, 'Full set Core Client Indicator'!$A$3:$AB$3, 0))), \"\")","v":""},{"$f":"IF(E346<>\"\", IF(INDEX('Full set Core Client Indicator'!$A$3:$AB$351, MATCH(Selection_Hide2!$A346, 'Full set Core Client Indicator'!$A$3:$A$351, 0), MATCH(Selection_Hide2!F$5, 'Full set Core Client Indicator'!$A$3:$AB$3, 0))=\"\", \"\",  INDEX('Full set Core Client Indicator'!$A$3:$AB$351, MATCH(Selection_Hide2!$A346, 'Full set Core Client Indicator'!$A$3:$A$351, 0), MATCH(Selection_Hide2!F$5, 'Full set Core Client Indicator'!$A$3:$AB$3, 0))), \"\")","v":""},{"$f":"IF(F346<>\"\", IF(INDEX('Full set Core Client Indicator'!$A$3:$AB$351, MATCH(Selection_Hide2!$A346, 'Full set Core Client Indicator'!$A$3:$A$351, 0), MATCH(Selection_Hide2!G$5, 'Full set Core Client Indicator'!$A$3:$AB$3, 0))=\"\", \"\",  INDEX('Full set Core Client Indicator'!$A$3:$AB$351, MATCH(Selection_Hide2!$A346, 'Full set Core Client Indicator'!$A$3:$A$351, 0), MATCH(Selection_Hide2!G$5, 'Full set Core Client Indicator'!$A$3:$AB$3, 0))), \"\")","v":""},{"$f":"IF(G346<>\"\", IF(INDEX('Full set Core Client Indicator'!$A$3:$AB$351, MATCH(Selection_Hide2!$A346, 'Full set Core Client Indicator'!$A$3:$A$351, 0), MATCH(Selection_Hide2!H$5, 'Full set Core Client Indicator'!$A$3:$AB$3, 0))=\"\", \"\",  INDEX('Full set Core Client Indicator'!$A$3:$AB$351, MATCH(Selection_Hide2!$A346, 'Full set Core Client Indicator'!$A$3:$A$351, 0), MATCH(Selection_Hide2!H$5, 'Full set Core Client Indicator'!$A$3:$AB$3, 0))), \"\")","v":""},{"$f":"IF(H346<>\"\", IF(INDEX('Full set Core Client Indicator'!$A$3:$AB$351, MATCH(Selection_Hide2!$A346, 'Full set Core Client Indicator'!$A$3:$A$351, 0), MATCH(Selection_Hide2!I$5, 'Full set Core Client Indicator'!$A$3:$AB$3, 0))=\"\", \"\",  INDEX('Full set Core Client Indicator'!$A$3:$AB$351, MATCH(Selection_Hide2!$A346, 'Full set Core Client Indicator'!$A$3:$A$351, 0), MATCH(Selection_Hide2!I$5, 'Full set Core Client Indicator'!$A$3:$AB$3, 0))), \"\")","v":""},{"$f":"IF(I346<>\"\", IF(INDEX('Full set Core Client Indicator'!$A$3:$AB$351, MATCH(Selection_Hide2!$A346, 'Full set Core Client Indicator'!$A$3:$A$351, 0), MATCH(Selection_Hide2!J$5, 'Full set Core Client Indicator'!$A$3:$AB$3, 0))=\"\", \"\",  INDEX('Full set Core Client Indicator'!$A$3:$AB$351, MATCH(Selection_Hide2!$A346, 'Full set Core Client Indicator'!$A$3:$A$351, 0), MATCH(Selection_Hide2!J$5, 'Full set Core Client Indicator'!$A$3:$AB$3, 0))), \"\")","v":""},{"$f":"IF(J346<>\"\", IF(INDEX('Full set Core Client Indicator'!$A$3:$AB$351, MATCH(Selection_Hide2!$A346, 'Full set Core Client Indicator'!$A$3:$A$351, 0), MATCH(Selection_Hide2!K$5, 'Full set Core Client Indicator'!$A$3:$AB$3, 0))=\"\", \"\",  INDEX('Full set Core Client Indicator'!$A$3:$AB$351, MATCH(Selection_Hide2!$A346, 'Full set Core Client Indicator'!$A$3:$A$351, 0), MATCH(Selection_Hide2!K$5, 'Full set Core Client Indicator'!$A$3:$AB$3, 0))), \"\")","v":""},{"$f":"IF(K346<>\"\", IF(INDEX('Full set Core Client Indicator'!$A$3:$AB$351, MATCH(Selection_Hide2!$A346, 'Full set Core Client Indicator'!$A$3:$A$351, 0), MATCH(Selection_Hide2!L$5, 'Full set Core Client Indicator'!$A$3:$AB$3, 0))=\"\", \"\",  INDEX('Full set Core Client Indicator'!$A$3:$AB$351, MATCH(Selection_Hide2!$A346, 'Full set Core Client Indicator'!$A$3:$A$351, 0), MATCH(Selection_Hide2!L$5, 'Full set Core Client Indicator'!$A$3:$AB$3, 0))), \"\")","v":""},{"$f":"IF(L346<>\"\", IF(INDEX('Full set Core Client Indicator'!$A$3:$AB$351, MATCH(Selection_Hide2!$A346, 'Full set Core Client Indicator'!$A$3:$A$351, 0), MATCH(Selection_Hide2!M$5, 'Full set Core Client Indicator'!$A$3:$AB$3, 0))=\"\", \"\",  INDEX('Full set Core Client Indicator'!$A$3:$AB$351, MATCH(Selection_Hide2!$A346, 'Full set Core Client Indicator'!$A$3:$A$351, 0), MATCH(Selection_Hide2!M$5, 'Full set Core Client Indicator'!$A$3:$AB$3, 0))), \"\")","v":""},{"$f":"IF(M346<>\"\", IF(INDEX('Full set Core Client Indicator'!$A$3:$AB$351, MATCH(Selection_Hide2!$A346, 'Full set Core Client Indicator'!$A$3:$A$351, 0), MATCH(Selection_Hide2!N$5, 'Full set Core Client Indicator'!$A$3:$AB$3, 0))=\"\", \"\",  INDEX('Full set Core Client Indicator'!$A$3:$AB$351, MATCH(Selection_Hide2!$A346, 'Full set Core Client Indicator'!$A$3:$A$351, 0), MATCH(Selection_Hide2!N$5, 'Full set Core Client Indicator'!$A$3:$AB$3, 0))), \"\")","v":""},{"$f":"IF(N346<>\"\", IF(INDEX('Full set Core Client Indicator'!$A$3:$AB$351, MATCH(Selection_Hide2!$A346, 'Full set Core Client Indicator'!$A$3:$A$351, 0), MATCH(Selection_Hide2!O$5, 'Full set Core Client Indicator'!$A$3:$AB$3, 0))=\"\", \"\",  INDEX('Full set Core Client Indicator'!$A$3:$AB$351, MATCH(Selection_Hide2!$A346, 'Full set Core Client Indicator'!$A$3:$A$351, 0), MATCH(Selection_Hide2!O$5, 'Full set Core Client Indicator'!$A$3:$AB$3, 0))), \"\")","v":""},{"$f":"IF(O346<>\"\", IF(INDEX('Full set Core Client Indicator'!$A$3:$AB$351, MATCH(Selection_Hide2!$A346, 'Full set Core Client Indicator'!$A$3:$A$351, 0), MATCH(Selection_Hide2!P$5, 'Full set Core Client Indicator'!$A$3:$AB$3, 0))=\"\", \"\",  INDEX('Full set Core Client Indicator'!$A$3:$AB$351, MATCH(Selection_Hide2!$A346, 'Full set Core Client Indicator'!$A$3:$A$351, 0), MATCH(Selection_Hide2!P$5, 'Full set Core Client Indicator'!$A$3:$AB$3, 0))), \"\")","v":""},{"$f":"IF(P346<>\"\", IF(INDEX('Full set Core Client Indicator'!$A$3:$AB$351, MATCH(Selection_Hide2!$A346, 'Full set Core Client Indicator'!$A$3:$A$351, 0), MATCH(Selection_Hide2!Q$5, 'Full set Core Client Indicator'!$A$3:$AB$3, 0))=\"\", \"\",  INDEX('Full set Core Client Indicator'!$A$3:$AB$351, MATCH(Selection_Hide2!$A346, 'Full set Core Client Indicator'!$A$3:$A$351, 0), MATCH(Selection_Hide2!Q$5, 'Full set Core Client Indicator'!$A$3:$AB$3, 0))), \"\")","v":""},{"$f":"IF(Q346<>\"\", IF(INDEX('Full set Core Client Indicator'!$A$3:$AB$351, MATCH(Selection_Hide2!$A346, 'Full set Core Client Indicator'!$A$3:$A$351, 0), MATCH(Selection_Hide2!R$5, 'Full set Core Client Indicator'!$A$3:$AB$3, 0))=\"\", \"\",  INDEX('Full set Core Client Indicator'!$A$3:$AB$351, MATCH(Selection_Hide2!$A346, 'Full set Core Client Indicator'!$A$3:$A$351, 0), MATCH(Selection_Hide2!R$5, 'Full set Core Client Indicator'!$A$3:$AB$3, 0))), \"\")","v":""},{"$f":"IF(R346<>\"\", IF(INDEX('Full set Core Client Indicator'!$A$3:$AB$351, MATCH(Selection_Hide2!$A346, 'Full set Core Client Indicator'!$A$3:$A$351, 0), MATCH(Selection_Hide2!S$5, 'Full set Core Client Indicator'!$A$3:$AB$3, 0))=\"\", \"\",  INDEX('Full set Core Client Indicator'!$A$3:$AB$351, MATCH(Selection_Hide2!$A346, 'Full set Core Client Indicator'!$A$3:$A$351, 0), MATCH(Selection_Hide2!S$5, 'Full set Core Client Indicator'!$A$3:$AB$3, 0))), \"\")","v":""},{"$f":"IF(S346<>\"\", IF(INDEX('Full set Core Client Indicator'!$A$3:$AB$351, MATCH(Selection_Hide2!$A346, 'Full set Core Client Indicator'!$A$3:$A$351, 0), MATCH(Selection_Hide2!T$5, 'Full set Core Client Indicator'!$A$3:$AB$3, 0))=\"\", \"\",  INDEX('Full set Core Client Indicator'!$A$3:$AB$351, MATCH(Selection_Hide2!$A346, 'Full set Core Client Indicator'!$A$3:$A$351, 0), MATCH(Selection_Hide2!T$5, 'Full set Core Client Indicator'!$A$3:$AB$3, 0))), \"\")","v":""},{"$f":"IF(T346<>\"\", IF(INDEX('Full set Core Client Indicator'!$A$3:$AB$351, MATCH(Selection_Hide2!$A346, 'Full set Core Client Indicator'!$A$3:$A$351, 0), MATCH(Selection_Hide2!U$5, 'Full set Core Client Indicator'!$A$3:$AB$3, 0))=\"\", \"\",  INDEX('Full set Core Client Indicator'!$A$3:$AB$351, MATCH(Selection_Hide2!$A346, 'Full set Core Client Indicator'!$A$3:$A$351, 0), MATCH(Selection_Hide2!U$5, 'Full set Core Client Indicator'!$A$3:$AB$3, 0))), \"\")","v":""},{"$f":"IF(U346<>\"\", IF(INDEX('Full set Core Client Indicator'!$A$3:$AB$351, MATCH(Selection_Hide2!$A346, 'Full set Core Client Indicator'!$A$3:$A$351, 0), MATCH(Selection_Hide2!V$5, 'Full set Core Client Indicator'!$A$3:$AB$3, 0))=\"\", \"\",  INDEX('Full set Core Client Indicator'!$A$3:$AB$351, MATCH(Selection_Hide2!$A346, 'Full set Core Client Indicator'!$A$3:$A$351, 0), MATCH(Selection_Hide2!V$5, 'Full set Core Client Indicator'!$A$3:$AB$3, 0))), \"\")","v":""},{"$f":"IF(V346<>\"\", IF(INDEX('Full set Core Client Indicator'!$A$3:$AB$351, MATCH(Selection_Hide2!$A346, 'Full set Core Client Indicator'!$A$3:$A$351, 0), MATCH(Selection_Hide2!W$5, 'Full set Core Client Indicator'!$A$3:$AB$3, 0))=\"\", \"\",  INDEX('Full set Core Client Indicator'!$A$3:$AB$351, MATCH(Selection_Hide2!$A346, 'Full set Core Client Indicator'!$A$3:$A$351, 0), MATCH(Selection_Hide2!W$5, 'Full set Core Client Indicator'!$A$3:$AB$3, 0))), \"\")","v":""},{"$f":"IF(W346<>\"\", IF(INDEX('Full set Core Client Indicator'!$A$3:$AB$351, MATCH(Selection_Hide2!$A346, 'Full set Core Client Indicator'!$A$3:$A$351, 0), MATCH(Selection_Hide2!X$5, 'Full set Core Client Indicator'!$A$3:$AB$3, 0))=\"\", \"\",  INDEX('Full set Core Client Indicator'!$A$3:$AB$351, MATCH(Selection_Hide2!$A346, 'Full set Core Client Indicator'!$A$3:$A$351, 0), MATCH(Selection_Hide2!X$5, 'Full set Core Client Indicator'!$A$3:$AB$3, 0))), \"\")","v":""},{"$f":"IF(X346<>\"\", IF(INDEX('Full set Core Client Indicator'!$A$3:$AB$351, MATCH(Selection_Hide2!$A346, 'Full set Core Client Indicator'!$A$3:$A$351, 0), MATCH(Selection_Hide2!Y$5, 'Full set Core Client Indicator'!$A$3:$AB$3, 0))=\"\", \"\",  INDEX('Full set Core Client Indicator'!$A$3:$AB$351, MATCH(Selection_Hide2!$A346, 'Full set Core Client Indicator'!$A$3:$A$351, 0), MATCH(Selection_Hide2!Y$5, 'Full set Core Client Indicator'!$A$3:$AB$3, 0))), \"\")","v":""},{"$f":"IF(Y346<>\"\", IF(INDEX('Full set Core Client Indicator'!$A$3:$AB$351, MATCH(Selection_Hide2!$A346, 'Full set Core Client Indicator'!$A$3:$A$351, 0), MATCH(Selection_Hide2!Z$5, 'Full set Core Client Indicator'!$A$3:$AB$3, 0))=\"\", \"\",  INDEX('Full set Core Client Indicator'!$A$3:$AB$351, MATCH(Selection_Hide2!$A346, 'Full set Core Client Indicator'!$A$3:$A$351, 0), MATCH(Selection_Hide2!Z$5, 'Full set Core Client Indicator'!$A$3:$AB$3, 0))), \"\")","v":""},{"$f":"IF(Z346<>\"\", IF(INDEX('Full set Core Client Indicator'!$A$3:$AB$351, MATCH(Selection_Hide2!$A346, 'Full set Core Client Indicator'!$A$3:$A$351, 0), MATCH(Selection_Hide2!AA$5, 'Full set Core Client Indicator'!$A$3:$AB$3, 0))=\"\", \"\",  INDEX('Full set Core Client Indicator'!$A$3:$AB$351, MATCH(Selection_Hide2!$A346, 'Full set Core Client Indicator'!$A$3:$A$351, 0), MATCH(Selection_Hide2!AA$5, 'Full set Core Client Indicator'!$A$3:$AB$3, 0))), \"\")","v":""},{"$f":"IF(AA346<>\"\", IF(INDEX('Full set Core Client Indicator'!$A$3:$AB$351, MATCH(Selection_Hide2!$A346, 'Full set Core Client Indicator'!$A$3:$A$351, 0), MATCH(Selection_Hide2!AB$5, 'Full set Core Client Indicator'!$A$3:$AB$3, 0))=\"\", \"\",  INDEX('Full set Core Client Indicator'!$A$3:$AB$351, MATCH(Selection_Hide2!$A346, 'Full set Core Client Indicator'!$A$3:$A$351, 0), MATCH(Selection_Hide2!AB$5, 'Full set Core Client Indicator'!$A$3:$AB$3, 0))), \"\")","v":""}]
[{"$f":"IF(AND(Selection_Hide1!C345<>0, Selection_Hide1!C345<>\"Grand Total\"), Selection_Hide1!C345, \"\")","v":""},{"$f":"IF(A347<>\"\", IF(INDEX('Full set Core Client Indicator'!$A$3:$AB$351, MATCH(Selection_Hide2!$A347, 'Full set Core Client Indicator'!$A$3:$A$351, 0), MATCH(Selection_Hide2!B$5, 'Full set Core Client Indicator'!$A$3:$AB$3, 0))=\"\", \"\",  INDEX('Full set Core Client Indicator'!$A$3:$AB$351, MATCH(Selection_Hide2!$A347, 'Full set Core Client Indicator'!$A$3:$A$351, 0), MATCH(Selection_Hide2!B$5, 'Full set Core Client Indicator'!$A$3:$AB$3, 0))), \"\")","v":""},{"$f":"IF(B347<>\"\", IF(INDEX('Full set Core Client Indicator'!$A$3:$AB$351, MATCH(Selection_Hide2!$A347, 'Full set Core Client Indicator'!$A$3:$A$351, 0), MATCH(Selection_Hide2!C$5, 'Full set Core Client Indicator'!$A$3:$AB$3, 0))=\"\", \"\",  INDEX('Full set Core Client Indicator'!$A$3:$AB$351, MATCH(Selection_Hide2!$A347, 'Full set Core Client Indicator'!$A$3:$A$351, 0), MATCH(Selection_Hide2!C$5, 'Full set Core Client Indicator'!$A$3:$AB$3, 0))), \"\")","v":""},{"$f":"IF(C347<>\"\", IF(INDEX('Full set Core Client Indicator'!$A$3:$AB$351, MATCH(Selection_Hide2!$A347, 'Full set Core Client Indicator'!$A$3:$A$351, 0), MATCH(Selection_Hide2!D$5, 'Full set Core Client Indicator'!$A$3:$AB$3, 0))=\"\", \"\",  INDEX('Full set Core Client Indicator'!$A$3:$AB$351, MATCH(Selection_Hide2!$A347, 'Full set Core Client Indicator'!$A$3:$A$351, 0), MATCH(Selection_Hide2!D$5, 'Full set Core Client Indicator'!$A$3:$AB$3, 0))), \"\")","v":""},{"$f":"IF(D347<>\"\", IF(INDEX('Full set Core Client Indicator'!$A$3:$AB$351, MATCH(Selection_Hide2!$A347, 'Full set Core Client Indicator'!$A$3:$A$351, 0), MATCH(Selection_Hide2!E$5, 'Full set Core Client Indicator'!$A$3:$AB$3, 0))=\"\", \"\",  INDEX('Full set Core Client Indicator'!$A$3:$AB$351, MATCH(Selection_Hide2!$A347, 'Full set Core Client Indicator'!$A$3:$A$351, 0), MATCH(Selection_Hide2!E$5, 'Full set Core Client Indicator'!$A$3:$AB$3, 0))), \"\")","v":""},{"$f":"IF(E347<>\"\", IF(INDEX('Full set Core Client Indicator'!$A$3:$AB$351, MATCH(Selection_Hide2!$A347, 'Full set Core Client Indicator'!$A$3:$A$351, 0), MATCH(Selection_Hide2!F$5, 'Full set Core Client Indicator'!$A$3:$AB$3, 0))=\"\", \"\",  INDEX('Full set Core Client Indicator'!$A$3:$AB$351, MATCH(Selection_Hide2!$A347, 'Full set Core Client Indicator'!$A$3:$A$351, 0), MATCH(Selection_Hide2!F$5, 'Full set Core Client Indicator'!$A$3:$AB$3, 0))), \"\")","v":""},{"$f":"IF(F347<>\"\", IF(INDEX('Full set Core Client Indicator'!$A$3:$AB$351, MATCH(Selection_Hide2!$A347, 'Full set Core Client Indicator'!$A$3:$A$351, 0), MATCH(Selection_Hide2!G$5, 'Full set Core Client Indicator'!$A$3:$AB$3, 0))=\"\", \"\",  INDEX('Full set Core Client Indicator'!$A$3:$AB$351, MATCH(Selection_Hide2!$A347, 'Full set Core Client Indicator'!$A$3:$A$351, 0), MATCH(Selection_Hide2!G$5, 'Full set Core Client Indicator'!$A$3:$AB$3, 0))), \"\")","v":""},{"$f":"IF(G347<>\"\", IF(INDEX('Full set Core Client Indicator'!$A$3:$AB$351, MATCH(Selection_Hide2!$A347, 'Full set Core Client Indicator'!$A$3:$A$351, 0), MATCH(Selection_Hide2!H$5, 'Full set Core Client Indicator'!$A$3:$AB$3, 0))=\"\", \"\",  INDEX('Full set Core Client Indicator'!$A$3:$AB$351, MATCH(Selection_Hide2!$A347, 'Full set Core Client Indicator'!$A$3:$A$351, 0), MATCH(Selection_Hide2!H$5, 'Full set Core Client Indicator'!$A$3:$AB$3, 0))), \"\")","v":""},{"$f":"IF(H347<>\"\", IF(INDEX('Full set Core Client Indicator'!$A$3:$AB$351, MATCH(Selection_Hide2!$A347, 'Full set Core Client Indicator'!$A$3:$A$351, 0), MATCH(Selection_Hide2!I$5, 'Full set Core Client Indicator'!$A$3:$AB$3, 0))=\"\", \"\",  INDEX('Full set Core Client Indicator'!$A$3:$AB$351, MATCH(Selection_Hide2!$A347, 'Full set Core Client Indicator'!$A$3:$A$351, 0), MATCH(Selection_Hide2!I$5, 'Full set Core Client Indicator'!$A$3:$AB$3, 0))), \"\")","v":""},{"$f":"IF(I347<>\"\", IF(INDEX('Full set Core Client Indicator'!$A$3:$AB$351, MATCH(Selection_Hide2!$A347, 'Full set Core Client Indicator'!$A$3:$A$351, 0), MATCH(Selection_Hide2!J$5, 'Full set Core Client Indicator'!$A$3:$AB$3, 0))=\"\", \"\",  INDEX('Full set Core Client Indicator'!$A$3:$AB$351, MATCH(Selection_Hide2!$A347, 'Full set Core Client Indicator'!$A$3:$A$351, 0), MATCH(Selection_Hide2!J$5, 'Full set Core Client Indicator'!$A$3:$AB$3, 0))), \"\")","v":""},{"$f":"IF(J347<>\"\", IF(INDEX('Full set Core Client Indicator'!$A$3:$AB$351, MATCH(Selection_Hide2!$A347, 'Full set Core Client Indicator'!$A$3:$A$351, 0), MATCH(Selection_Hide2!K$5, 'Full set Core Client Indicator'!$A$3:$AB$3, 0))=\"\", \"\",  INDEX('Full set Core Client Indicator'!$A$3:$AB$351, MATCH(Selection_Hide2!$A347, 'Full set Core Client Indicator'!$A$3:$A$351, 0), MATCH(Selection_Hide2!K$5, 'Full set Core Client Indicator'!$A$3:$AB$3, 0))), \"\")","v":""},{"$f":"IF(K347<>\"\", IF(INDEX('Full set Core Client Indicator'!$A$3:$AB$351, MATCH(Selection_Hide2!$A347, 'Full set Core Client Indicator'!$A$3:$A$351, 0), MATCH(Selection_Hide2!L$5, 'Full set Core Client Indicator'!$A$3:$AB$3, 0))=\"\", \"\",  INDEX('Full set Core Client Indicator'!$A$3:$AB$351, MATCH(Selection_Hide2!$A347, 'Full set Core Client Indicator'!$A$3:$A$351, 0), MATCH(Selection_Hide2!L$5, 'Full set Core Client Indicator'!$A$3:$AB$3, 0))), \"\")","v":""},{"$f":"IF(L347<>\"\", IF(INDEX('Full set Core Client Indicator'!$A$3:$AB$351, MATCH(Selection_Hide2!$A347, 'Full set Core Client Indicator'!$A$3:$A$351, 0), MATCH(Selection_Hide2!M$5, 'Full set Core Client Indicator'!$A$3:$AB$3, 0))=\"\", \"\",  INDEX('Full set Core Client Indicator'!$A$3:$AB$351, MATCH(Selection_Hide2!$A347, 'Full set Core Client Indicator'!$A$3:$A$351, 0), MATCH(Selection_Hide2!M$5, 'Full set Core Client Indicator'!$A$3:$AB$3, 0))), \"\")","v":""},{"$f":"IF(M347<>\"\", IF(INDEX('Full set Core Client Indicator'!$A$3:$AB$351, MATCH(Selection_Hide2!$A347, 'Full set Core Client Indicator'!$A$3:$A$351, 0), MATCH(Selection_Hide2!N$5, 'Full set Core Client Indicator'!$A$3:$AB$3, 0))=\"\", \"\",  INDEX('Full set Core Client Indicator'!$A$3:$AB$351, MATCH(Selection_Hide2!$A347, 'Full set Core Client Indicator'!$A$3:$A$351, 0), MATCH(Selection_Hide2!N$5, 'Full set Core Client Indicator'!$A$3:$AB$3, 0))), \"\")","v":""},{"$f":"IF(N347<>\"\", IF(INDEX('Full set Core Client Indicator'!$A$3:$AB$351, MATCH(Selection_Hide2!$A347, 'Full set Core Client Indicator'!$A$3:$A$351, 0), MATCH(Selection_Hide2!O$5, 'Full set Core Client Indicator'!$A$3:$AB$3, 0))=\"\", \"\",  INDEX('Full set Core Client Indicator'!$A$3:$AB$351, MATCH(Selection_Hide2!$A347, 'Full set Core Client Indicator'!$A$3:$A$351, 0), MATCH(Selection_Hide2!O$5, 'Full set Core Client Indicator'!$A$3:$AB$3, 0))), \"\")","v":""},{"$f":"IF(O347<>\"\", IF(INDEX('Full set Core Client Indicator'!$A$3:$AB$351, MATCH(Selection_Hide2!$A347, 'Full set Core Client Indicator'!$A$3:$A$351, 0), MATCH(Selection_Hide2!P$5, 'Full set Core Client Indicator'!$A$3:$AB$3, 0))=\"\", \"\",  INDEX('Full set Core Client Indicator'!$A$3:$AB$351, MATCH(Selection_Hide2!$A347, 'Full set Core Client Indicator'!$A$3:$A$351, 0), MATCH(Selection_Hide2!P$5, 'Full set Core Client Indicator'!$A$3:$AB$3, 0))), \"\")","v":""},{"$f":"IF(P347<>\"\", IF(INDEX('Full set Core Client Indicator'!$A$3:$AB$351, MATCH(Selection_Hide2!$A347, 'Full set Core Client Indicator'!$A$3:$A$351, 0), MATCH(Selection_Hide2!Q$5, 'Full set Core Client Indicator'!$A$3:$AB$3, 0))=\"\", \"\",  INDEX('Full set Core Client Indicator'!$A$3:$AB$351, MATCH(Selection_Hide2!$A347, 'Full set Core Client Indicator'!$A$3:$A$351, 0), MATCH(Selection_Hide2!Q$5, 'Full set Core Client Indicator'!$A$3:$AB$3, 0))), \"\")","v":""},{"$f":"IF(Q347<>\"\", IF(INDEX('Full set Core Client Indicator'!$A$3:$AB$351, MATCH(Selection_Hide2!$A347, 'Full set Core Client Indicator'!$A$3:$A$351, 0), MATCH(Selection_Hide2!R$5, 'Full set Core Client Indicator'!$A$3:$AB$3, 0))=\"\", \"\",  INDEX('Full set Core Client Indicator'!$A$3:$AB$351, MATCH(Selection_Hide2!$A347, 'Full set Core Client Indicator'!$A$3:$A$351, 0), MATCH(Selection_Hide2!R$5, 'Full set Core Client Indicator'!$A$3:$AB$3, 0))), \"\")","v":""},{"$f":"IF(R347<>\"\", IF(INDEX('Full set Core Client Indicator'!$A$3:$AB$351, MATCH(Selection_Hide2!$A347, 'Full set Core Client Indicator'!$A$3:$A$351, 0), MATCH(Selection_Hide2!S$5, 'Full set Core Client Indicator'!$A$3:$AB$3, 0))=\"\", \"\",  INDEX('Full set Core Client Indicator'!$A$3:$AB$351, MATCH(Selection_Hide2!$A347, 'Full set Core Client Indicator'!$A$3:$A$351, 0), MATCH(Selection_Hide2!S$5, 'Full set Core Client Indicator'!$A$3:$AB$3, 0))), \"\")","v":""},{"$f":"IF(S347<>\"\", IF(INDEX('Full set Core Client Indicator'!$A$3:$AB$351, MATCH(Selection_Hide2!$A347, 'Full set Core Client Indicator'!$A$3:$A$351, 0), MATCH(Selection_Hide2!T$5, 'Full set Core Client Indicator'!$A$3:$AB$3, 0))=\"\", \"\",  INDEX('Full set Core Client Indicator'!$A$3:$AB$351, MATCH(Selection_Hide2!$A347, 'Full set Core Client Indicator'!$A$3:$A$351, 0), MATCH(Selection_Hide2!T$5, 'Full set Core Client Indicator'!$A$3:$AB$3, 0))), \"\")","v":""},{"$f":"IF(T347<>\"\", IF(INDEX('Full set Core Client Indicator'!$A$3:$AB$351, MATCH(Selection_Hide2!$A347, 'Full set Core Client Indicator'!$A$3:$A$351, 0), MATCH(Selection_Hide2!U$5, 'Full set Core Client Indicator'!$A$3:$AB$3, 0))=\"\", \"\",  INDEX('Full set Core Client Indicator'!$A$3:$AB$351, MATCH(Selection_Hide2!$A347, 'Full set Core Client Indicator'!$A$3:$A$351, 0), MATCH(Selection_Hide2!U$5, 'Full set Core Client Indicator'!$A$3:$AB$3, 0))), \"\")","v":""},{"$f":"IF(U347<>\"\", IF(INDEX('Full set Core Client Indicator'!$A$3:$AB$351, MATCH(Selection_Hide2!$A347, 'Full set Core Client Indicator'!$A$3:$A$351, 0), MATCH(Selection_Hide2!V$5, 'Full set Core Client Indicator'!$A$3:$AB$3, 0))=\"\", \"\",  INDEX('Full set Core Client Indicator'!$A$3:$AB$351, MATCH(Selection_Hide2!$A347, 'Full set Core Client Indicator'!$A$3:$A$351, 0), MATCH(Selection_Hide2!V$5, 'Full set Core Client Indicator'!$A$3:$AB$3, 0))), \"\")","v":""},{"$f":"IF(V347<>\"\", IF(INDEX('Full set Core Client Indicator'!$A$3:$AB$351, MATCH(Selection_Hide2!$A347, 'Full set Core Client Indicator'!$A$3:$A$351, 0), MATCH(Selection_Hide2!W$5, 'Full set Core Client Indicator'!$A$3:$AB$3, 0))=\"\", \"\",  INDEX('Full set Core Client Indicator'!$A$3:$AB$351, MATCH(Selection_Hide2!$A347, 'Full set Core Client Indicator'!$A$3:$A$351, 0), MATCH(Selection_Hide2!W$5, 'Full set Core Client Indicator'!$A$3:$AB$3, 0))), \"\")","v":""},{"$f":"IF(W347<>\"\", IF(INDEX('Full set Core Client Indicator'!$A$3:$AB$351, MATCH(Selection_Hide2!$A347, 'Full set Core Client Indicator'!$A$3:$A$351, 0), MATCH(Selection_Hide2!X$5, 'Full set Core Client Indicator'!$A$3:$AB$3, 0))=\"\", \"\",  INDEX('Full set Core Client Indicator'!$A$3:$AB$351, MATCH(Selection_Hide2!$A347, 'Full set Core Client Indicator'!$A$3:$A$351, 0), MATCH(Selection_Hide2!X$5, 'Full set Core Client Indicator'!$A$3:$AB$3, 0))), \"\")","v":""},{"$f":"IF(X347<>\"\", IF(INDEX('Full set Core Client Indicator'!$A$3:$AB$351, MATCH(Selection_Hide2!$A347, 'Full set Core Client Indicator'!$A$3:$A$351, 0), MATCH(Selection_Hide2!Y$5, 'Full set Core Client Indicator'!$A$3:$AB$3, 0))=\"\", \"\",  INDEX('Full set Core Client Indicator'!$A$3:$AB$351, MATCH(Selection_Hide2!$A347, 'Full set Core Client Indicator'!$A$3:$A$351, 0), MATCH(Selection_Hide2!Y$5, 'Full set Core Client Indicator'!$A$3:$AB$3, 0))), \"\")","v":""},{"$f":"IF(Y347<>\"\", IF(INDEX('Full set Core Client Indicator'!$A$3:$AB$351, MATCH(Selection_Hide2!$A347, 'Full set Core Client Indicator'!$A$3:$A$351, 0), MATCH(Selection_Hide2!Z$5, 'Full set Core Client Indicator'!$A$3:$AB$3, 0))=\"\", \"\",  INDEX('Full set Core Client Indicator'!$A$3:$AB$351, MATCH(Selection_Hide2!$A347, 'Full set Core Client Indicator'!$A$3:$A$351, 0), MATCH(Selection_Hide2!Z$5, 'Full set Core Client Indicator'!$A$3:$AB$3, 0))), \"\")","v":""},{"$f":"IF(Z347<>\"\", IF(INDEX('Full set Core Client Indicator'!$A$3:$AB$351, MATCH(Selection_Hide2!$A347, 'Full set Core Client Indicator'!$A$3:$A$351, 0), MATCH(Selection_Hide2!AA$5, 'Full set Core Client Indicator'!$A$3:$AB$3, 0))=\"\", \"\",  INDEX('Full set Core Client Indicator'!$A$3:$AB$351, MATCH(Selection_Hide2!$A347, 'Full set Core Client Indicator'!$A$3:$A$351, 0), MATCH(Selection_Hide2!AA$5, 'Full set Core Client Indicator'!$A$3:$AB$3, 0))), \"\")","v":""},{"$f":"IF(AA347<>\"\", IF(INDEX('Full set Core Client Indicator'!$A$3:$AB$351, MATCH(Selection_Hide2!$A347, 'Full set Core Client Indicator'!$A$3:$A$351, 0), MATCH(Selection_Hide2!AB$5, 'Full set Core Client Indicator'!$A$3:$AB$3, 0))=\"\", \"\",  INDEX('Full set Core Client Indicator'!$A$3:$AB$351, MATCH(Selection_Hide2!$A347, 'Full set Core Client Indicator'!$A$3:$A$351, 0), MATCH(Selection_Hide2!AB$5, 'Full set Core Client Indicator'!$A$3:$AB$3, 0))), \"\")","v":""}]
[{"$f":"IF(AND(Selection_Hide1!C346<>0, Selection_Hide1!C346<>\"Grand Total\"), Selection_Hide1!C346, \"\")","v":""},{"$f":"IF(A348<>\"\", IF(INDEX('Full set Core Client Indicator'!$A$3:$AB$351, MATCH(Selection_Hide2!$A348, 'Full set Core Client Indicator'!$A$3:$A$351, 0), MATCH(Selection_Hide2!B$5, 'Full set Core Client Indicator'!$A$3:$AB$3, 0))=\"\", \"\",  INDEX('Full set Core Client Indicator'!$A$3:$AB$351, MATCH(Selection_Hide2!$A348, 'Full set Core Client Indicator'!$A$3:$A$351, 0), MATCH(Selection_Hide2!B$5, 'Full set Core Client Indicator'!$A$3:$AB$3, 0))), \"\")","v":""},{"$f":"IF(B348<>\"\", IF(INDEX('Full set Core Client Indicator'!$A$3:$AB$351, MATCH(Selection_Hide2!$A348, 'Full set Core Client Indicator'!$A$3:$A$351, 0), MATCH(Selection_Hide2!C$5, 'Full set Core Client Indicator'!$A$3:$AB$3, 0))=\"\", \"\",  INDEX('Full set Core Client Indicator'!$A$3:$AB$351, MATCH(Selection_Hide2!$A348, 'Full set Core Client Indicator'!$A$3:$A$351, 0), MATCH(Selection_Hide2!C$5, 'Full set Core Client Indicator'!$A$3:$AB$3, 0))), \"\")","v":""},{"$f":"IF(C348<>\"\", IF(INDEX('Full set Core Client Indicator'!$A$3:$AB$351, MATCH(Selection_Hide2!$A348, 'Full set Core Client Indicator'!$A$3:$A$351, 0), MATCH(Selection_Hide2!D$5, 'Full set Core Client Indicator'!$A$3:$AB$3, 0))=\"\", \"\",  INDEX('Full set Core Client Indicator'!$A$3:$AB$351, MATCH(Selection_Hide2!$A348, 'Full set Core Client Indicator'!$A$3:$A$351, 0), MATCH(Selection_Hide2!D$5, 'Full set Core Client Indicator'!$A$3:$AB$3, 0))), \"\")","v":""},{"$f":"IF(D348<>\"\", IF(INDEX('Full set Core Client Indicator'!$A$3:$AB$351, MATCH(Selection_Hide2!$A348, 'Full set Core Client Indicator'!$A$3:$A$351, 0), MATCH(Selection_Hide2!E$5, 'Full set Core Client Indicator'!$A$3:$AB$3, 0))=\"\", \"\",  INDEX('Full set Core Client Indicator'!$A$3:$AB$351, MATCH(Selection_Hide2!$A348, 'Full set Core Client Indicator'!$A$3:$A$351, 0), MATCH(Selection_Hide2!E$5, 'Full set Core Client Indicator'!$A$3:$AB$3, 0))), \"\")","v":""},{"$f":"IF(E348<>\"\", IF(INDEX('Full set Core Client Indicator'!$A$3:$AB$351, MATCH(Selection_Hide2!$A348, 'Full set Core Client Indicator'!$A$3:$A$351, 0), MATCH(Selection_Hide2!F$5, 'Full set Core Client Indicator'!$A$3:$AB$3, 0))=\"\", \"\",  INDEX('Full set Core Client Indicator'!$A$3:$AB$351, MATCH(Selection_Hide2!$A348, 'Full set Core Client Indicator'!$A$3:$A$351, 0), MATCH(Selection_Hide2!F$5, 'Full set Core Client Indicator'!$A$3:$AB$3, 0))), \"\")","v":""},{"$f":"IF(F348<>\"\", IF(INDEX('Full set Core Client Indicator'!$A$3:$AB$351, MATCH(Selection_Hide2!$A348, 'Full set Core Client Indicator'!$A$3:$A$351, 0), MATCH(Selection_Hide2!G$5, 'Full set Core Client Indicator'!$A$3:$AB$3, 0))=\"\", \"\",  INDEX('Full set Core Client Indicator'!$A$3:$AB$351, MATCH(Selection_Hide2!$A348, 'Full set Core Client Indicator'!$A$3:$A$351, 0), MATCH(Selection_Hide2!G$5, 'Full set Core Client Indicator'!$A$3:$AB$3, 0))), \"\")","v":""},{"$f":"IF(G348<>\"\", IF(INDEX('Full set Core Client Indicator'!$A$3:$AB$351, MATCH(Selection_Hide2!$A348, 'Full set Core Client Indicator'!$A$3:$A$351, 0), MATCH(Selection_Hide2!H$5, 'Full set Core Client Indicator'!$A$3:$AB$3, 0))=\"\", \"\",  INDEX('Full set Core Client Indicator'!$A$3:$AB$351, MATCH(Selection_Hide2!$A348, 'Full set Core Client Indicator'!$A$3:$A$351, 0), MATCH(Selection_Hide2!H$5, 'Full set Core Client Indicator'!$A$3:$AB$3, 0))), \"\")","v":""},{"$f":"IF(H348<>\"\", IF(INDEX('Full set Core Client Indicator'!$A$3:$AB$351, MATCH(Selection_Hide2!$A348, 'Full set Core Client Indicator'!$A$3:$A$351, 0), MATCH(Selection_Hide2!I$5, 'Full set Core Client Indicator'!$A$3:$AB$3, 0))=\"\", \"\",  INDEX('Full set Core Client Indicator'!$A$3:$AB$351, MATCH(Selection_Hide2!$A348, 'Full set Core Client Indicator'!$A$3:$A$351, 0), MATCH(Selection_Hide2!I$5, 'Full set Core Client Indicator'!$A$3:$AB$3, 0))), \"\")","v":""},{"$f":"IF(I348<>\"\", IF(INDEX('Full set Core Client Indicator'!$A$3:$AB$351, MATCH(Selection_Hide2!$A348, 'Full set Core Client Indicator'!$A$3:$A$351, 0), MATCH(Selection_Hide2!J$5, 'Full set Core Client Indicator'!$A$3:$AB$3, 0))=\"\", \"\",  INDEX('Full set Core Client Indicator'!$A$3:$AB$351, MATCH(Selection_Hide2!$A348, 'Full set Core Client Indicator'!$A$3:$A$351, 0), MATCH(Selection_Hide2!J$5, 'Full set Core Client Indicator'!$A$3:$AB$3, 0))), \"\")","v":""},{"$f":"IF(J348<>\"\", IF(INDEX('Full set Core Client Indicator'!$A$3:$AB$351, MATCH(Selection_Hide2!$A348, 'Full set Core Client Indicator'!$A$3:$A$351, 0), MATCH(Selection_Hide2!K$5, 'Full set Core Client Indicator'!$A$3:$AB$3, 0))=\"\", \"\",  INDEX('Full set Core Client Indicator'!$A$3:$AB$351, MATCH(Selection_Hide2!$A348, 'Full set Core Client Indicator'!$A$3:$A$351, 0), MATCH(Selection_Hide2!K$5, 'Full set Core Client Indicator'!$A$3:$AB$3, 0))), \"\")","v":""},{"$f":"IF(K348<>\"\", IF(INDEX('Full set Core Client Indicator'!$A$3:$AB$351, MATCH(Selection_Hide2!$A348, 'Full set Core Client Indicator'!$A$3:$A$351, 0), MATCH(Selection_Hide2!L$5, 'Full set Core Client Indicator'!$A$3:$AB$3, 0))=\"\", \"\",  INDEX('Full set Core Client Indicator'!$A$3:$AB$351, MATCH(Selection_Hide2!$A348, 'Full set Core Client Indicator'!$A$3:$A$351, 0), MATCH(Selection_Hide2!L$5, 'Full set Core Client Indicator'!$A$3:$AB$3, 0))), \"\")","v":""},{"$f":"IF(L348<>\"\", IF(INDEX('Full set Core Client Indicator'!$A$3:$AB$351, MATCH(Selection_Hide2!$A348, 'Full set Core Client Indicator'!$A$3:$A$351, 0), MATCH(Selection_Hide2!M$5, 'Full set Core Client Indicator'!$A$3:$AB$3, 0))=\"\", \"\",  INDEX('Full set Core Client Indicator'!$A$3:$AB$351, MATCH(Selection_Hide2!$A348, 'Full set Core Client Indicator'!$A$3:$A$351, 0), MATCH(Selection_Hide2!M$5, 'Full set Core Client Indicator'!$A$3:$AB$3, 0))), \"\")","v":""},{"$f":"IF(M348<>\"\", IF(INDEX('Full set Core Client Indicator'!$A$3:$AB$351, MATCH(Selection_Hide2!$A348, 'Full set Core Client Indicator'!$A$3:$A$351, 0), MATCH(Selection_Hide2!N$5, 'Full set Core Client Indicator'!$A$3:$AB$3, 0))=\"\", \"\",  INDEX('Full set Core Client Indicator'!$A$3:$AB$351, MATCH(Selection_Hide2!$A348, 'Full set Core Client Indicator'!$A$3:$A$351, 0), MATCH(Selection_Hide2!N$5, 'Full set Core Client Indicator'!$A$3:$AB$3, 0))), \"\")","v":""},{"$f":"IF(N348<>\"\", IF(INDEX('Full set Core Client Indicator'!$A$3:$AB$351, MATCH(Selection_Hide2!$A348, 'Full set Core Client Indicator'!$A$3:$A$351, 0), MATCH(Selection_Hide2!O$5, 'Full set Core Client Indicator'!$A$3:$AB$3, 0))=\"\", \"\",  INDEX('Full set Core Client Indicator'!$A$3:$AB$351, MATCH(Selection_Hide2!$A348, 'Full set Core Client Indicator'!$A$3:$A$351, 0), MATCH(Selection_Hide2!O$5, 'Full set Core Client Indicator'!$A$3:$AB$3, 0))), \"\")","v":""},{"$f":"IF(O348<>\"\", IF(INDEX('Full set Core Client Indicator'!$A$3:$AB$351, MATCH(Selection_Hide2!$A348, 'Full set Core Client Indicator'!$A$3:$A$351, 0), MATCH(Selection_Hide2!P$5, 'Full set Core Client Indicator'!$A$3:$AB$3, 0))=\"\", \"\",  INDEX('Full set Core Client Indicator'!$A$3:$AB$351, MATCH(Selection_Hide2!$A348, 'Full set Core Client Indicator'!$A$3:$A$351, 0), MATCH(Selection_Hide2!P$5, 'Full set Core Client Indicator'!$A$3:$AB$3, 0))), \"\")","v":""},{"$f":"IF(P348<>\"\", IF(INDEX('Full set Core Client Indicator'!$A$3:$AB$351, MATCH(Selection_Hide2!$A348, 'Full set Core Client Indicator'!$A$3:$A$351, 0), MATCH(Selection_Hide2!Q$5, 'Full set Core Client Indicator'!$A$3:$AB$3, 0))=\"\", \"\",  INDEX('Full set Core Client Indicator'!$A$3:$AB$351, MATCH(Selection_Hide2!$A348, 'Full set Core Client Indicator'!$A$3:$A$351, 0), MATCH(Selection_Hide2!Q$5, 'Full set Core Client Indicator'!$A$3:$AB$3, 0))), \"\")","v":""},{"$f":"IF(Q348<>\"\", IF(INDEX('Full set Core Client Indicator'!$A$3:$AB$351, MATCH(Selection_Hide2!$A348, 'Full set Core Client Indicator'!$A$3:$A$351, 0), MATCH(Selection_Hide2!R$5, 'Full set Core Client Indicator'!$A$3:$AB$3, 0))=\"\", \"\",  INDEX('Full set Core Client Indicator'!$A$3:$AB$351, MATCH(Selection_Hide2!$A348, 'Full set Core Client Indicator'!$A$3:$A$351, 0), MATCH(Selection_Hide2!R$5, 'Full set Core Client Indicator'!$A$3:$AB$3, 0))), \"\")","v":""},{"$f":"IF(R348<>\"\", IF(INDEX('Full set Core Client Indicator'!$A$3:$AB$351, MATCH(Selection_Hide2!$A348, 'Full set Core Client Indicator'!$A$3:$A$351, 0), MATCH(Selection_Hide2!S$5, 'Full set Core Client Indicator'!$A$3:$AB$3, 0))=\"\", \"\",  INDEX('Full set Core Client Indicator'!$A$3:$AB$351, MATCH(Selection_Hide2!$A348, 'Full set Core Client Indicator'!$A$3:$A$351, 0), MATCH(Selection_Hide2!S$5, 'Full set Core Client Indicator'!$A$3:$AB$3, 0))), \"\")","v":""},{"$f":"IF(S348<>\"\", IF(INDEX('Full set Core Client Indicator'!$A$3:$AB$351, MATCH(Selection_Hide2!$A348, 'Full set Core Client Indicator'!$A$3:$A$351, 0), MATCH(Selection_Hide2!T$5, 'Full set Core Client Indicator'!$A$3:$AB$3, 0))=\"\", \"\",  INDEX('Full set Core Client Indicator'!$A$3:$AB$351, MATCH(Selection_Hide2!$A348, 'Full set Core Client Indicator'!$A$3:$A$351, 0), MATCH(Selection_Hide2!T$5, 'Full set Core Client Indicator'!$A$3:$AB$3, 0))), \"\")","v":""},{"$f":"IF(T348<>\"\", IF(INDEX('Full set Core Client Indicator'!$A$3:$AB$351, MATCH(Selection_Hide2!$A348, 'Full set Core Client Indicator'!$A$3:$A$351, 0), MATCH(Selection_Hide2!U$5, 'Full set Core Client Indicator'!$A$3:$AB$3, 0))=\"\", \"\",  INDEX('Full set Core Client Indicator'!$A$3:$AB$351, MATCH(Selection_Hide2!$A348, 'Full set Core Client Indicator'!$A$3:$A$351, 0), MATCH(Selection_Hide2!U$5, 'Full set Core Client Indicator'!$A$3:$AB$3, 0))), \"\")","v":""},{"$f":"IF(U348<>\"\", IF(INDEX('Full set Core Client Indicator'!$A$3:$AB$351, MATCH(Selection_Hide2!$A348, 'Full set Core Client Indicator'!$A$3:$A$351, 0), MATCH(Selection_Hide2!V$5, 'Full set Core Client Indicator'!$A$3:$AB$3, 0))=\"\", \"\",  INDEX('Full set Core Client Indicator'!$A$3:$AB$351, MATCH(Selection_Hide2!$A348, 'Full set Core Client Indicator'!$A$3:$A$351, 0), MATCH(Selection_Hide2!V$5, 'Full set Core Client Indicator'!$A$3:$AB$3, 0))), \"\")","v":""},{"$f":"IF(V348<>\"\", IF(INDEX('Full set Core Client Indicator'!$A$3:$AB$351, MATCH(Selection_Hide2!$A348, 'Full set Core Client Indicator'!$A$3:$A$351, 0), MATCH(Selection_Hide2!W$5, 'Full set Core Client Indicator'!$A$3:$AB$3, 0))=\"\", \"\",  INDEX('Full set Core Client Indicator'!$A$3:$AB$351, MATCH(Selection_Hide2!$A348, 'Full set Core Client Indicator'!$A$3:$A$351, 0), MATCH(Selection_Hide2!W$5, 'Full set Core Client Indicator'!$A$3:$AB$3, 0))), \"\")","v":""},{"$f":"IF(W348<>\"\", IF(INDEX('Full set Core Client Indicator'!$A$3:$AB$351, MATCH(Selection_Hide2!$A348, 'Full set Core Client Indicator'!$A$3:$A$351, 0), MATCH(Selection_Hide2!X$5, 'Full set Core Client Indicator'!$A$3:$AB$3, 0))=\"\", \"\",  INDEX('Full set Core Client Indicator'!$A$3:$AB$351, MATCH(Selection_Hide2!$A348, 'Full set Core Client Indicator'!$A$3:$A$351, 0), MATCH(Selection_Hide2!X$5, 'Full set Core Client Indicator'!$A$3:$AB$3, 0))), \"\")","v":""},{"$f":"IF(X348<>\"\", IF(INDEX('Full set Core Client Indicator'!$A$3:$AB$351, MATCH(Selection_Hide2!$A348, 'Full set Core Client Indicator'!$A$3:$A$351, 0), MATCH(Selection_Hide2!Y$5, 'Full set Core Client Indicator'!$A$3:$AB$3, 0))=\"\", \"\",  INDEX('Full set Core Client Indicator'!$A$3:$AB$351, MATCH(Selection_Hide2!$A348, 'Full set Core Client Indicator'!$A$3:$A$351, 0), MATCH(Selection_Hide2!Y$5, 'Full set Core Client Indicator'!$A$3:$AB$3, 0))), \"\")","v":""},{"$f":"IF(Y348<>\"\", IF(INDEX('Full set Core Client Indicator'!$A$3:$AB$351, MATCH(Selection_Hide2!$A348, 'Full set Core Client Indicator'!$A$3:$A$351, 0), MATCH(Selection_Hide2!Z$5, 'Full set Core Client Indicator'!$A$3:$AB$3, 0))=\"\", \"\",  INDEX('Full set Core Client Indicator'!$A$3:$AB$351, MATCH(Selection_Hide2!$A348, 'Full set Core Client Indicator'!$A$3:$A$351, 0), MATCH(Selection_Hide2!Z$5, 'Full set Core Client Indicator'!$A$3:$AB$3, 0))), \"\")","v":""},{"$f":"IF(Z348<>\"\", IF(INDEX('Full set Core Client Indicator'!$A$3:$AB$351, MATCH(Selection_Hide2!$A348, 'Full set Core Client Indicator'!$A$3:$A$351, 0), MATCH(Selection_Hide2!AA$5, 'Full set Core Client Indicator'!$A$3:$AB$3, 0))=\"\", \"\",  INDEX('Full set Core Client Indicator'!$A$3:$AB$351, MATCH(Selection_Hide2!$A348, 'Full set Core Client Indicator'!$A$3:$A$351, 0), MATCH(Selection_Hide2!AA$5, 'Full set Core Client Indicator'!$A$3:$AB$3, 0))), \"\")","v":""},{"$f":"IF(AA348<>\"\", IF(INDEX('Full set Core Client Indicator'!$A$3:$AB$351, MATCH(Selection_Hide2!$A348, 'Full set Core Client Indicator'!$A$3:$A$351, 0), MATCH(Selection_Hide2!AB$5, 'Full set Core Client Indicator'!$A$3:$AB$3, 0))=\"\", \"\",  INDEX('Full set Core Client Indicator'!$A$3:$AB$351, MATCH(Selection_Hide2!$A348, 'Full set Core Client Indicator'!$A$3:$A$351, 0), MATCH(Selection_Hide2!AB$5, 'Full set Core Client Indicator'!$A$3:$AB$3, 0))), \"\")","v":""}]
[{"$f":"IF(AND(Selection_Hide1!C347<>0, Selection_Hide1!C347<>\"Grand Total\"), Selection_Hide1!C347, \"\")","v":""},{"$f":"IF(A349<>\"\", IF(INDEX('Full set Core Client Indicator'!$A$3:$AB$351, MATCH(Selection_Hide2!$A349, 'Full set Core Client Indicator'!$A$3:$A$351, 0), MATCH(Selection_Hide2!B$5, 'Full set Core Client Indicator'!$A$3:$AB$3, 0))=\"\", \"\",  INDEX('Full set Core Client Indicator'!$A$3:$AB$351, MATCH(Selection_Hide2!$A349, 'Full set Core Client Indicator'!$A$3:$A$351, 0), MATCH(Selection_Hide2!B$5, 'Full set Core Client Indicator'!$A$3:$AB$3, 0))), \"\")","v":""},{"$f":"IF(B349<>\"\", IF(INDEX('Full set Core Client Indicator'!$A$3:$AB$351, MATCH(Selection_Hide2!$A349, 'Full set Core Client Indicator'!$A$3:$A$351, 0), MATCH(Selection_Hide2!C$5, 'Full set Core Client Indicator'!$A$3:$AB$3, 0))=\"\", \"\",  INDEX('Full set Core Client Indicator'!$A$3:$AB$351, MATCH(Selection_Hide2!$A349, 'Full set Core Client Indicator'!$A$3:$A$351, 0), MATCH(Selection_Hide2!C$5, 'Full set Core Client Indicator'!$A$3:$AB$3, 0))), \"\")","v":""},{"$f":"IF(C349<>\"\", IF(INDEX('Full set Core Client Indicator'!$A$3:$AB$351, MATCH(Selection_Hide2!$A349, 'Full set Core Client Indicator'!$A$3:$A$351, 0), MATCH(Selection_Hide2!D$5, 'Full set Core Client Indicator'!$A$3:$AB$3, 0))=\"\", \"\",  INDEX('Full set Core Client Indicator'!$A$3:$AB$351, MATCH(Selection_Hide2!$A349, 'Full set Core Client Indicator'!$A$3:$A$351, 0), MATCH(Selection_Hide2!D$5, 'Full set Core Client Indicator'!$A$3:$AB$3, 0))), \"\")","v":""},{"$f":"IF(D349<>\"\", IF(INDEX('Full set Core Client Indicator'!$A$3:$AB$351, MATCH(Selection_Hide2!$A349, 'Full set Core Client Indicator'!$A$3:$A$351, 0), MATCH(Selection_Hide2!E$5, 'Full set Core Client Indicator'!$A$3:$AB$3, 0))=\"\", \"\",  INDEX('Full set Core Client Indicator'!$A$3:$AB$351, MATCH(Selection_Hide2!$A349, 'Full set Core Client Indicator'!$A$3:$A$351, 0), MATCH(Selection_Hide2!E$5, 'Full set Core Client Indicator'!$A$3:$AB$3, 0))), \"\")","v":""},{"$f":"IF(E349<>\"\", IF(INDEX('Full set Core Client Indicator'!$A$3:$AB$351, MATCH(Selection_Hide2!$A349, 'Full set Core Client Indicator'!$A$3:$A$351, 0), MATCH(Selection_Hide2!F$5, 'Full set Core Client Indicator'!$A$3:$AB$3, 0))=\"\", \"\",  INDEX('Full set Core Client Indicator'!$A$3:$AB$351, MATCH(Selection_Hide2!$A349, 'Full set Core Client Indicator'!$A$3:$A$351, 0), MATCH(Selection_Hide2!F$5, 'Full set Core Client Indicator'!$A$3:$AB$3, 0))), \"\")","v":""},{"$f":"IF(F349<>\"\", IF(INDEX('Full set Core Client Indicator'!$A$3:$AB$351, MATCH(Selection_Hide2!$A349, 'Full set Core Client Indicator'!$A$3:$A$351, 0), MATCH(Selection_Hide2!G$5, 'Full set Core Client Indicator'!$A$3:$AB$3, 0))=\"\", \"\",  INDEX('Full set Core Client Indicator'!$A$3:$AB$351, MATCH(Selection_Hide2!$A349, 'Full set Core Client Indicator'!$A$3:$A$351, 0), MATCH(Selection_Hide2!G$5, 'Full set Core Client Indicator'!$A$3:$AB$3, 0))), \"\")","v":""},{"$f":"IF(G349<>\"\", IF(INDEX('Full set Core Client Indicator'!$A$3:$AB$351, MATCH(Selection_Hide2!$A349, 'Full set Core Client Indicator'!$A$3:$A$351, 0), MATCH(Selection_Hide2!H$5, 'Full set Core Client Indicator'!$A$3:$AB$3, 0))=\"\", \"\",  INDEX('Full set Core Client Indicator'!$A$3:$AB$351, MATCH(Selection_Hide2!$A349, 'Full set Core Client Indicator'!$A$3:$A$351, 0), MATCH(Selection_Hide2!H$5, 'Full set Core Client Indicator'!$A$3:$AB$3, 0))), \"\")","v":""},{"$f":"IF(H349<>\"\", IF(INDEX('Full set Core Client Indicator'!$A$3:$AB$351, MATCH(Selection_Hide2!$A349, 'Full set Core Client Indicator'!$A$3:$A$351, 0), MATCH(Selection_Hide2!I$5, 'Full set Core Client Indicator'!$A$3:$AB$3, 0))=\"\", \"\",  INDEX('Full set Core Client Indicator'!$A$3:$AB$351, MATCH(Selection_Hide2!$A349, 'Full set Core Client Indicator'!$A$3:$A$351, 0), MATCH(Selection_Hide2!I$5, 'Full set Core Client Indicator'!$A$3:$AB$3, 0))), \"\")","v":""},{"$f":"IF(I349<>\"\", IF(INDEX('Full set Core Client Indicator'!$A$3:$AB$351, MATCH(Selection_Hide2!$A349, 'Full set Core Client Indicator'!$A$3:$A$351, 0), MATCH(Selection_Hide2!J$5, 'Full set Core Client Indicator'!$A$3:$AB$3, 0))=\"\", \"\",  INDEX('Full set Core Client Indicator'!$A$3:$AB$351, MATCH(Selection_Hide2!$A349, 'Full set Core Client Indicator'!$A$3:$A$351, 0), MATCH(Selection_Hide2!J$5, 'Full set Core Client Indicator'!$A$3:$AB$3, 0))), \"\")","v":""},{"$f":"IF(J349<>\"\", IF(INDEX('Full set Core Client Indicator'!$A$3:$AB$351, MATCH(Selection_Hide2!$A349, 'Full set Core Client Indicator'!$A$3:$A$351, 0), MATCH(Selection_Hide2!K$5, 'Full set Core Client Indicator'!$A$3:$AB$3, 0))=\"\", \"\",  INDEX('Full set Core Client Indicator'!$A$3:$AB$351, MATCH(Selection_Hide2!$A349, 'Full set Core Client Indicator'!$A$3:$A$351, 0), MATCH(Selection_Hide2!K$5, 'Full set Core Client Indicator'!$A$3:$AB$3, 0))), \"\")","v":""},{"$f":"IF(K349<>\"\", IF(INDEX('Full set Core Client Indicator'!$A$3:$AB$351, MATCH(Selection_Hide2!$A349, 'Full set Core Client Indicator'!$A$3:$A$351, 0), MATCH(Selection_Hide2!L$5, 'Full set Core Client Indicator'!$A$3:$AB$3, 0))=\"\", \"\",  INDEX('Full set Core Client Indicator'!$A$3:$AB$351, MATCH(Selection_Hide2!$A349, 'Full set Core Client Indicator'!$A$3:$A$351, 0), MATCH(Selection_Hide2!L$5, 'Full set Core Client Indicator'!$A$3:$AB$3, 0))), \"\")","v":""},{"$f":"IF(L349<>\"\", IF(INDEX('Full set Core Client Indicator'!$A$3:$AB$351, MATCH(Selection_Hide2!$A349, 'Full set Core Client Indicator'!$A$3:$A$351, 0), MATCH(Selection_Hide2!M$5, 'Full set Core Client Indicator'!$A$3:$AB$3, 0))=\"\", \"\",  INDEX('Full set Core Client Indicator'!$A$3:$AB$351, MATCH(Selection_Hide2!$A349, 'Full set Core Client Indicator'!$A$3:$A$351, 0), MATCH(Selection_Hide2!M$5, 'Full set Core Client Indicator'!$A$3:$AB$3, 0))), \"\")","v":""},{"$f":"IF(M349<>\"\", IF(INDEX('Full set Core Client Indicator'!$A$3:$AB$351, MATCH(Selection_Hide2!$A349, 'Full set Core Client Indicator'!$A$3:$A$351, 0), MATCH(Selection_Hide2!N$5, 'Full set Core Client Indicator'!$A$3:$AB$3, 0))=\"\", \"\",  INDEX('Full set Core Client Indicator'!$A$3:$AB$351, MATCH(Selection_Hide2!$A349, 'Full set Core Client Indicator'!$A$3:$A$351, 0), MATCH(Selection_Hide2!N$5, 'Full set Core Client Indicator'!$A$3:$AB$3, 0))), \"\")","v":""},{"$f":"IF(N349<>\"\", IF(INDEX('Full set Core Client Indicator'!$A$3:$AB$351, MATCH(Selection_Hide2!$A349, 'Full set Core Client Indicator'!$A$3:$A$351, 0), MATCH(Selection_Hide2!O$5, 'Full set Core Client Indicator'!$A$3:$AB$3, 0))=\"\", \"\",  INDEX('Full set Core Client Indicator'!$A$3:$AB$351, MATCH(Selection_Hide2!$A349, 'Full set Core Client Indicator'!$A$3:$A$351, 0), MATCH(Selection_Hide2!O$5, 'Full set Core Client Indicator'!$A$3:$AB$3, 0))), \"\")","v":""},{"$f":"IF(O349<>\"\", IF(INDEX('Full set Core Client Indicator'!$A$3:$AB$351, MATCH(Selection_Hide2!$A349, 'Full set Core Client Indicator'!$A$3:$A$351, 0), MATCH(Selection_Hide2!P$5, 'Full set Core Client Indicator'!$A$3:$AB$3, 0))=\"\", \"\",  INDEX('Full set Core Client Indicator'!$A$3:$AB$351, MATCH(Selection_Hide2!$A349, 'Full set Core Client Indicator'!$A$3:$A$351, 0), MATCH(Selection_Hide2!P$5, 'Full set Core Client Indicator'!$A$3:$AB$3, 0))), \"\")","v":""},{"$f":"IF(P349<>\"\", IF(INDEX('Full set Core Client Indicator'!$A$3:$AB$351, MATCH(Selection_Hide2!$A349, 'Full set Core Client Indicator'!$A$3:$A$351, 0), MATCH(Selection_Hide2!Q$5, 'Full set Core Client Indicator'!$A$3:$AB$3, 0))=\"\", \"\",  INDEX('Full set Core Client Indicator'!$A$3:$AB$351, MATCH(Selection_Hide2!$A349, 'Full set Core Client Indicator'!$A$3:$A$351, 0), MATCH(Selection_Hide2!Q$5, 'Full set Core Client Indicator'!$A$3:$AB$3, 0))), \"\")","v":""},{"$f":"IF(Q349<>\"\", IF(INDEX('Full set Core Client Indicator'!$A$3:$AB$351, MATCH(Selection_Hide2!$A349, 'Full set Core Client Indicator'!$A$3:$A$351, 0), MATCH(Selection_Hide2!R$5, 'Full set Core Client Indicator'!$A$3:$AB$3, 0))=\"\", \"\",  INDEX('Full set Core Client Indicator'!$A$3:$AB$351, MATCH(Selection_Hide2!$A349, 'Full set Core Client Indicator'!$A$3:$A$351, 0), MATCH(Selection_Hide2!R$5, 'Full set Core Client Indicator'!$A$3:$AB$3, 0))), \"\")","v":""},{"$f":"IF(R349<>\"\", IF(INDEX('Full set Core Client Indicator'!$A$3:$AB$351, MATCH(Selection_Hide2!$A349, 'Full set Core Client Indicator'!$A$3:$A$351, 0), MATCH(Selection_Hide2!S$5, 'Full set Core Client Indicator'!$A$3:$AB$3, 0))=\"\", \"\",  INDEX('Full set Core Client Indicator'!$A$3:$AB$351, MATCH(Selection_Hide2!$A349, 'Full set Core Client Indicator'!$A$3:$A$351, 0), MATCH(Selection_Hide2!S$5, 'Full set Core Client Indicator'!$A$3:$AB$3, 0))), \"\")","v":""},{"$f":"IF(S349<>\"\", IF(INDEX('Full set Core Client Indicator'!$A$3:$AB$351, MATCH(Selection_Hide2!$A349, 'Full set Core Client Indicator'!$A$3:$A$351, 0), MATCH(Selection_Hide2!T$5, 'Full set Core Client Indicator'!$A$3:$AB$3, 0))=\"\", \"\",  INDEX('Full set Core Client Indicator'!$A$3:$AB$351, MATCH(Selection_Hide2!$A349, 'Full set Core Client Indicator'!$A$3:$A$351, 0), MATCH(Selection_Hide2!T$5, 'Full set Core Client Indicator'!$A$3:$AB$3, 0))), \"\")","v":""},{"$f":"IF(T349<>\"\", IF(INDEX('Full set Core Client Indicator'!$A$3:$AB$351, MATCH(Selection_Hide2!$A349, 'Full set Core Client Indicator'!$A$3:$A$351, 0), MATCH(Selection_Hide2!U$5, 'Full set Core Client Indicator'!$A$3:$AB$3, 0))=\"\", \"\",  INDEX('Full set Core Client Indicator'!$A$3:$AB$351, MATCH(Selection_Hide2!$A349, 'Full set Core Client Indicator'!$A$3:$A$351, 0), MATCH(Selection_Hide2!U$5, 'Full set Core Client Indicator'!$A$3:$AB$3, 0))), \"\")","v":""},{"$f":"IF(U349<>\"\", IF(INDEX('Full set Core Client Indicator'!$A$3:$AB$351, MATCH(Selection_Hide2!$A349, 'Full set Core Client Indicator'!$A$3:$A$351, 0), MATCH(Selection_Hide2!V$5, 'Full set Core Client Indicator'!$A$3:$AB$3, 0))=\"\", \"\",  INDEX('Full set Core Client Indicator'!$A$3:$AB$351, MATCH(Selection_Hide2!$A349, 'Full set Core Client Indicator'!$A$3:$A$351, 0), MATCH(Selection_Hide2!V$5, 'Full set Core Client Indicator'!$A$3:$AB$3, 0))), \"\")","v":""},{"$f":"IF(V349<>\"\", IF(INDEX('Full set Core Client Indicator'!$A$3:$AB$351, MATCH(Selection_Hide2!$A349, 'Full set Core Client Indicator'!$A$3:$A$351, 0), MATCH(Selection_Hide2!W$5, 'Full set Core Client Indicator'!$A$3:$AB$3, 0))=\"\", \"\",  INDEX('Full set Core Client Indicator'!$A$3:$AB$351, MATCH(Selection_Hide2!$A349, 'Full set Core Client Indicator'!$A$3:$A$351, 0), MATCH(Selection_Hide2!W$5, 'Full set Core Client Indicator'!$A$3:$AB$3, 0))), \"\")","v":""},{"$f":"IF(W349<>\"\", IF(INDEX('Full set Core Client Indicator'!$A$3:$AB$351, MATCH(Selection_Hide2!$A349, 'Full set Core Client Indicator'!$A$3:$A$351, 0), MATCH(Selection_Hide2!X$5, 'Full set Core Client Indicator'!$A$3:$AB$3, 0))=\"\", \"\",  INDEX('Full set Core Client Indicator'!$A$3:$AB$351, MATCH(Selection_Hide2!$A349, 'Full set Core Client Indicator'!$A$3:$A$351, 0), MATCH(Selection_Hide2!X$5, 'Full set Core Client Indicator'!$A$3:$AB$3, 0))), \"\")","v":""},{"$f":"IF(X349<>\"\", IF(INDEX('Full set Core Client Indicator'!$A$3:$AB$351, MATCH(Selection_Hide2!$A349, 'Full set Core Client Indicator'!$A$3:$A$351, 0), MATCH(Selection_Hide2!Y$5, 'Full set Core Client Indicator'!$A$3:$AB$3, 0))=\"\", \"\",  INDEX('Full set Core Client Indicator'!$A$3:$AB$351, MATCH(Selection_Hide2!$A349, 'Full set Core Client Indicator'!$A$3:$A$351, 0), MATCH(Selection_Hide2!Y$5, 'Full set Core Client Indicator'!$A$3:$AB$3, 0))), \"\")","v":""},{"$f":"IF(Y349<>\"\", IF(INDEX('Full set Core Client Indicator'!$A$3:$AB$351, MATCH(Selection_Hide2!$A349, 'Full set Core Client Indicator'!$A$3:$A$351, 0), MATCH(Selection_Hide2!Z$5, 'Full set Core Client Indicator'!$A$3:$AB$3, 0))=\"\", \"\",  INDEX('Full set Core Client Indicator'!$A$3:$AB$351, MATCH(Selection_Hide2!$A349, 'Full set Core Client Indicator'!$A$3:$A$351, 0), MATCH(Selection_Hide2!Z$5, 'Full set Core Client Indicator'!$A$3:$AB$3, 0))), \"\")","v":""},{"$f":"IF(Z349<>\"\", IF(INDEX('Full set Core Client Indicator'!$A$3:$AB$351, MATCH(Selection_Hide2!$A349, 'Full set Core Client Indicator'!$A$3:$A$351, 0), MATCH(Selection_Hide2!AA$5, 'Full set Core Client Indicator'!$A$3:$AB$3, 0))=\"\", \"\",  INDEX('Full set Core Client Indicator'!$A$3:$AB$351, MATCH(Selection_Hide2!$A349, 'Full set Core Client Indicator'!$A$3:$A$351, 0), MATCH(Selection_Hide2!AA$5, 'Full set Core Client Indicator'!$A$3:$AB$3, 0))), \"\")","v":""},{"$f":"IF(AA349<>\"\", IF(INDEX('Full set Core Client Indicator'!$A$3:$AB$351, MATCH(Selection_Hide2!$A349, 'Full set Core Client Indicator'!$A$3:$A$351, 0), MATCH(Selection_Hide2!AB$5, 'Full set Core Client Indicator'!$A$3:$AB$3, 0))=\"\", \"\",  INDEX('Full set Core Client Indicator'!$A$3:$AB$351, MATCH(Selection_Hide2!$A349, 'Full set Core Client Indicator'!$A$3:$A$351, 0), MATCH(Selection_Hide2!AB$5, 'Full set Core Client Indicator'!$A$3:$AB$3, 0))), \"\")","v":""}]
[{"$f":"IF(AND(Selection_Hide1!C348<>0, Selection_Hide1!C348<>\"Grand Total\"), Selection_Hide1!C348, \"\")","v":""},{"$f":"IF(A350<>\"\", IF(INDEX('Full set Core Client Indicator'!$A$3:$AB$351, MATCH(Selection_Hide2!$A350, 'Full set Core Client Indicator'!$A$3:$A$351, 0), MATCH(Selection_Hide2!B$5, 'Full set Core Client Indicator'!$A$3:$AB$3, 0))=\"\", \"\",  INDEX('Full set Core Client Indicator'!$A$3:$AB$351, MATCH(Selection_Hide2!$A350, 'Full set Core Client Indicator'!$A$3:$A$351, 0), MATCH(Selection_Hide2!B$5, 'Full set Core Client Indicator'!$A$3:$AB$3, 0))), \"\")","v":""},{"$f":"IF(B350<>\"\", IF(INDEX('Full set Core Client Indicator'!$A$3:$AB$351, MATCH(Selection_Hide2!$A350, 'Full set Core Client Indicator'!$A$3:$A$351, 0), MATCH(Selection_Hide2!C$5, 'Full set Core Client Indicator'!$A$3:$AB$3, 0))=\"\", \"\",  INDEX('Full set Core Client Indicator'!$A$3:$AB$351, MATCH(Selection_Hide2!$A350, 'Full set Core Client Indicator'!$A$3:$A$351, 0), MATCH(Selection_Hide2!C$5, 'Full set Core Client Indicator'!$A$3:$AB$3, 0))), \"\")","v":""},{"$f":"IF(C350<>\"\", IF(INDEX('Full set Core Client Indicator'!$A$3:$AB$351, MATCH(Selection_Hide2!$A350, 'Full set Core Client Indicator'!$A$3:$A$351, 0), MATCH(Selection_Hide2!D$5, 'Full set Core Client Indicator'!$A$3:$AB$3, 0))=\"\", \"\",  INDEX('Full set Core Client Indicator'!$A$3:$AB$351, MATCH(Selection_Hide2!$A350, 'Full set Core Client Indicator'!$A$3:$A$351, 0), MATCH(Selection_Hide2!D$5, 'Full set Core Client Indicator'!$A$3:$AB$3, 0))), \"\")","v":""},{"$f":"IF(D350<>\"\", IF(INDEX('Full set Core Client Indicator'!$A$3:$AB$351, MATCH(Selection_Hide2!$A350, 'Full set Core Client Indicator'!$A$3:$A$351, 0), MATCH(Selection_Hide2!E$5, 'Full set Core Client Indicator'!$A$3:$AB$3, 0))=\"\", \"\",  INDEX('Full set Core Client Indicator'!$A$3:$AB$351, MATCH(Selection_Hide2!$A350, 'Full set Core Client Indicator'!$A$3:$A$351, 0), MATCH(Selection_Hide2!E$5, 'Full set Core Client Indicator'!$A$3:$AB$3, 0))), \"\")","v":""},{"$f":"IF(E350<>\"\", IF(INDEX('Full set Core Client Indicator'!$A$3:$AB$351, MATCH(Selection_Hide2!$A350, 'Full set Core Client Indicator'!$A$3:$A$351, 0), MATCH(Selection_Hide2!F$5, 'Full set Core Client Indicator'!$A$3:$AB$3, 0))=\"\", \"\",  INDEX('Full set Core Client Indicator'!$A$3:$AB$351, MATCH(Selection_Hide2!$A350, 'Full set Core Client Indicator'!$A$3:$A$351, 0), MATCH(Selection_Hide2!F$5, 'Full set Core Client Indicator'!$A$3:$AB$3, 0))), \"\")","v":""},{"$f":"IF(F350<>\"\", IF(INDEX('Full set Core Client Indicator'!$A$3:$AB$351, MATCH(Selection_Hide2!$A350, 'Full set Core Client Indicator'!$A$3:$A$351, 0), MATCH(Selection_Hide2!G$5, 'Full set Core Client Indicator'!$A$3:$AB$3, 0))=\"\", \"\",  INDEX('Full set Core Client Indicator'!$A$3:$AB$351, MATCH(Selection_Hide2!$A350, 'Full set Core Client Indicator'!$A$3:$A$351, 0), MATCH(Selection_Hide2!G$5, 'Full set Core Client Indicator'!$A$3:$AB$3, 0))), \"\")","v":""},{"$f":"IF(G350<>\"\", IF(INDEX('Full set Core Client Indicator'!$A$3:$AB$351, MATCH(Selection_Hide2!$A350, 'Full set Core Client Indicator'!$A$3:$A$351, 0), MATCH(Selection_Hide2!H$5, 'Full set Core Client Indicator'!$A$3:$AB$3, 0))=\"\", \"\",  INDEX('Full set Core Client Indicator'!$A$3:$AB$351, MATCH(Selection_Hide2!$A350, 'Full set Core Client Indicator'!$A$3:$A$351, 0), MATCH(Selection_Hide2!H$5, 'Full set Core Client Indicator'!$A$3:$AB$3, 0))), \"\")","v":""},{"$f":"IF(H350<>\"\", IF(INDEX('Full set Core Client Indicator'!$A$3:$AB$351, MATCH(Selection_Hide2!$A350, 'Full set Core Client Indicator'!$A$3:$A$351, 0), MATCH(Selection_Hide2!I$5, 'Full set Core Client Indicator'!$A$3:$AB$3, 0))=\"\", \"\",  INDEX('Full set Core Client Indicator'!$A$3:$AB$351, MATCH(Selection_Hide2!$A350, 'Full set Core Client Indicator'!$A$3:$A$351, 0), MATCH(Selection_Hide2!I$5, 'Full set Core Client Indicator'!$A$3:$AB$3, 0))), \"\")","v":""},{"$f":"IF(I350<>\"\", IF(INDEX('Full set Core Client Indicator'!$A$3:$AB$351, MATCH(Selection_Hide2!$A350, 'Full set Core Client Indicator'!$A$3:$A$351, 0), MATCH(Selection_Hide2!J$5, 'Full set Core Client Indicator'!$A$3:$AB$3, 0))=\"\", \"\",  INDEX('Full set Core Client Indicator'!$A$3:$AB$351, MATCH(Selection_Hide2!$A350, 'Full set Core Client Indicator'!$A$3:$A$351, 0), MATCH(Selection_Hide2!J$5, 'Full set Core Client Indicator'!$A$3:$AB$3, 0))), \"\")","v":""},{"$f":"IF(J350<>\"\", IF(INDEX('Full set Core Client Indicator'!$A$3:$AB$351, MATCH(Selection_Hide2!$A350, 'Full set Core Client Indicator'!$A$3:$A$351, 0), MATCH(Selection_Hide2!K$5, 'Full set Core Client Indicator'!$A$3:$AB$3, 0))=\"\", \"\",  INDEX('Full set Core Client Indicator'!$A$3:$AB$351, MATCH(Selection_Hide2!$A350, 'Full set Core Client Indicator'!$A$3:$A$351, 0), MATCH(Selection_Hide2!K$5, 'Full set Core Client Indicator'!$A$3:$AB$3, 0))), \"\")","v":""},{"$f":"IF(K350<>\"\", IF(INDEX('Full set Core Client Indicator'!$A$3:$AB$351, MATCH(Selection_Hide2!$A350, 'Full set Core Client Indicator'!$A$3:$A$351, 0), MATCH(Selection_Hide2!L$5, 'Full set Core Client Indicator'!$A$3:$AB$3, 0))=\"\", \"\",  INDEX('Full set Core Client Indicator'!$A$3:$AB$351, MATCH(Selection_Hide2!$A350, 'Full set Core Client Indicator'!$A$3:$A$351, 0), MATCH(Selection_Hide2!L$5, 'Full set Core Client Indicator'!$A$3:$AB$3, 0))), \"\")","v":""},{"$f":"IF(L350<>\"\", IF(INDEX('Full set Core Client Indicator'!$A$3:$AB$351, MATCH(Selection_Hide2!$A350, 'Full set Core Client Indicator'!$A$3:$A$351, 0), MATCH(Selection_Hide2!M$5, 'Full set Core Client Indicator'!$A$3:$AB$3, 0))=\"\", \"\",  INDEX('Full set Core Client Indicator'!$A$3:$AB$351, MATCH(Selection_Hide2!$A350, 'Full set Core Client Indicator'!$A$3:$A$351, 0), MATCH(Selection_Hide2!M$5, 'Full set Core Client Indicator'!$A$3:$AB$3, 0))), \"\")","v":""},{"$f":"IF(M350<>\"\", IF(INDEX('Full set Core Client Indicator'!$A$3:$AB$351, MATCH(Selection_Hide2!$A350, 'Full set Core Client Indicator'!$A$3:$A$351, 0), MATCH(Selection_Hide2!N$5, 'Full set Core Client Indicator'!$A$3:$AB$3, 0))=\"\", \"\",  INDEX('Full set Core Client Indicator'!$A$3:$AB$351, MATCH(Selection_Hide2!$A350, 'Full set Core Client Indicator'!$A$3:$A$351, 0), MATCH(Selection_Hide2!N$5, 'Full set Core Client Indicator'!$A$3:$AB$3, 0))), \"\")","v":""},{"$f":"IF(N350<>\"\", IF(INDEX('Full set Core Client Indicator'!$A$3:$AB$351, MATCH(Selection_Hide2!$A350, 'Full set Core Client Indicator'!$A$3:$A$351, 0), MATCH(Selection_Hide2!O$5, 'Full set Core Client Indicator'!$A$3:$AB$3, 0))=\"\", \"\",  INDEX('Full set Core Client Indicator'!$A$3:$AB$351, MATCH(Selection_Hide2!$A350, 'Full set Core Client Indicator'!$A$3:$A$351, 0), MATCH(Selection_Hide2!O$5, 'Full set Core Client Indicator'!$A$3:$AB$3, 0))), \"\")","v":""},{"$f":"IF(O350<>\"\", IF(INDEX('Full set Core Client Indicator'!$A$3:$AB$351, MATCH(Selection_Hide2!$A350, 'Full set Core Client Indicator'!$A$3:$A$351, 0), MATCH(Selection_Hide2!P$5, 'Full set Core Client Indicator'!$A$3:$AB$3, 0))=\"\", \"\",  INDEX('Full set Core Client Indicator'!$A$3:$AB$351, MATCH(Selection_Hide2!$A350, 'Full set Core Client Indicator'!$A$3:$A$351, 0), MATCH(Selection_Hide2!P$5, 'Full set Core Client Indicator'!$A$3:$AB$3, 0))), \"\")","v":""},{"$f":"IF(P350<>\"\", IF(INDEX('Full set Core Client Indicator'!$A$3:$AB$351, MATCH(Selection_Hide2!$A350, 'Full set Core Client Indicator'!$A$3:$A$351, 0), MATCH(Selection_Hide2!Q$5, 'Full set Core Client Indicator'!$A$3:$AB$3, 0))=\"\", \"\",  INDEX('Full set Core Client Indicator'!$A$3:$AB$351, MATCH(Selection_Hide2!$A350, 'Full set Core Client Indicator'!$A$3:$A$351, 0), MATCH(Selection_Hide2!Q$5, 'Full set Core Client Indicator'!$A$3:$AB$3, 0))), \"\")","v":""},{"$f":"IF(Q350<>\"\", IF(INDEX('Full set Core Client Indicator'!$A$3:$AB$351, MATCH(Selection_Hide2!$A350, 'Full set Core Client Indicator'!$A$3:$A$351, 0), MATCH(Selection_Hide2!R$5, 'Full set Core Client Indicator'!$A$3:$AB$3, 0))=\"\", \"\",  INDEX('Full set Core Client Indicator'!$A$3:$AB$351, MATCH(Selection_Hide2!$A350, 'Full set Core Client Indicator'!$A$3:$A$351, 0), MATCH(Selection_Hide2!R$5, 'Full set Core Client Indicator'!$A$3:$AB$3, 0))), \"\")","v":""},{"$f":"IF(R350<>\"\", IF(INDEX('Full set Core Client Indicator'!$A$3:$AB$351, MATCH(Selection_Hide2!$A350, 'Full set Core Client Indicator'!$A$3:$A$351, 0), MATCH(Selection_Hide2!S$5, 'Full set Core Client Indicator'!$A$3:$AB$3, 0))=\"\", \"\",  INDEX('Full set Core Client Indicator'!$A$3:$AB$351, MATCH(Selection_Hide2!$A350, 'Full set Core Client Indicator'!$A$3:$A$351, 0), MATCH(Selection_Hide2!S$5, 'Full set Core Client Indicator'!$A$3:$AB$3, 0))), \"\")","v":""},{"$f":"IF(S350<>\"\", IF(INDEX('Full set Core Client Indicator'!$A$3:$AB$351, MATCH(Selection_Hide2!$A350, 'Full set Core Client Indicator'!$A$3:$A$351, 0), MATCH(Selection_Hide2!T$5, 'Full set Core Client Indicator'!$A$3:$AB$3, 0))=\"\", \"\",  INDEX('Full set Core Client Indicator'!$A$3:$AB$351, MATCH(Selection_Hide2!$A350, 'Full set Core Client Indicator'!$A$3:$A$351, 0), MATCH(Selection_Hide2!T$5, 'Full set Core Client Indicator'!$A$3:$AB$3, 0))), \"\")","v":""},{"$f":"IF(T350<>\"\", IF(INDEX('Full set Core Client Indicator'!$A$3:$AB$351, MATCH(Selection_Hide2!$A350, 'Full set Core Client Indicator'!$A$3:$A$351, 0), MATCH(Selection_Hide2!U$5, 'Full set Core Client Indicator'!$A$3:$AB$3, 0))=\"\", \"\",  INDEX('Full set Core Client Indicator'!$A$3:$AB$351, MATCH(Selection_Hide2!$A350, 'Full set Core Client Indicator'!$A$3:$A$351, 0), MATCH(Selection_Hide2!U$5, 'Full set Core Client Indicator'!$A$3:$AB$3, 0))), \"\")","v":""},{"$f":"IF(U350<>\"\", IF(INDEX('Full set Core Client Indicator'!$A$3:$AB$351, MATCH(Selection_Hide2!$A350, 'Full set Core Client Indicator'!$A$3:$A$351, 0), MATCH(Selection_Hide2!V$5, 'Full set Core Client Indicator'!$A$3:$AB$3, 0))=\"\", \"\",  INDEX('Full set Core Client Indicator'!$A$3:$AB$351, MATCH(Selection_Hide2!$A350, 'Full set Core Client Indicator'!$A$3:$A$351, 0), MATCH(Selection_Hide2!V$5, 'Full set Core Client Indicator'!$A$3:$AB$3, 0))), \"\")","v":""},{"$f":"IF(V350<>\"\", IF(INDEX('Full set Core Client Indicator'!$A$3:$AB$351, MATCH(Selection_Hide2!$A350, 'Full set Core Client Indicator'!$A$3:$A$351, 0), MATCH(Selection_Hide2!W$5, 'Full set Core Client Indicator'!$A$3:$AB$3, 0))=\"\", \"\",  INDEX('Full set Core Client Indicator'!$A$3:$AB$351, MATCH(Selection_Hide2!$A350, 'Full set Core Client Indicator'!$A$3:$A$351, 0), MATCH(Selection_Hide2!W$5, 'Full set Core Client Indicator'!$A$3:$AB$3, 0))), \"\")","v":""},{"$f":"IF(W350<>\"\", IF(INDEX('Full set Core Client Indicator'!$A$3:$AB$351, MATCH(Selection_Hide2!$A350, 'Full set Core Client Indicator'!$A$3:$A$351, 0), MATCH(Selection_Hide2!X$5, 'Full set Core Client Indicator'!$A$3:$AB$3, 0))=\"\", \"\",  INDEX('Full set Core Client Indicator'!$A$3:$AB$351, MATCH(Selection_Hide2!$A350, 'Full set Core Client Indicator'!$A$3:$A$351, 0), MATCH(Selection_Hide2!X$5, 'Full set Core Client Indicator'!$A$3:$AB$3, 0))), \"\")","v":""},{"$f":"IF(X350<>\"\", IF(INDEX('Full set Core Client Indicator'!$A$3:$AB$351, MATCH(Selection_Hide2!$A350, 'Full set Core Client Indicator'!$A$3:$A$351, 0), MATCH(Selection_Hide2!Y$5, 'Full set Core Client Indicator'!$A$3:$AB$3, 0))=\"\", \"\",  INDEX('Full set Core Client Indicator'!$A$3:$AB$351, MATCH(Selection_Hide2!$A350, 'Full set Core Client Indicator'!$A$3:$A$351, 0), MATCH(Selection_Hide2!Y$5, 'Full set Core Client Indicator'!$A$3:$AB$3, 0))), \"\")","v":""},{"$f":"IF(Y350<>\"\", IF(INDEX('Full set Core Client Indicator'!$A$3:$AB$351, MATCH(Selection_Hide2!$A350, 'Full set Core Client Indicator'!$A$3:$A$351, 0), MATCH(Selection_Hide2!Z$5, 'Full set Core Client Indicator'!$A$3:$AB$3, 0))=\"\", \"\",  INDEX('Full set Core Client Indicator'!$A$3:$AB$351, MATCH(Selection_Hide2!$A350, 'Full set Core Client Indicator'!$A$3:$A$351, 0), MATCH(Selection_Hide2!Z$5, 'Full set Core Client Indicator'!$A$3:$AB$3, 0))), \"\")","v":""},{"$f":"IF(Z350<>\"\", IF(INDEX('Full set Core Client Indicator'!$A$3:$AB$351, MATCH(Selection_Hide2!$A350, 'Full set Core Client Indicator'!$A$3:$A$351, 0), MATCH(Selection_Hide2!AA$5, 'Full set Core Client Indicator'!$A$3:$AB$3, 0))=\"\", \"\",  INDEX('Full set Core Client Indicator'!$A$3:$AB$351, MATCH(Selection_Hide2!$A350, 'Full set Core Client Indicator'!$A$3:$A$351, 0), MATCH(Selection_Hide2!AA$5, 'Full set Core Client Indicator'!$A$3:$AB$3, 0))), \"\")","v":""},{"$f":"IF(AA350<>\"\", IF(INDEX('Full set Core Client Indicator'!$A$3:$AB$351, MATCH(Selection_Hide2!$A350, 'Full set Core Client Indicator'!$A$3:$A$351, 0), MATCH(Selection_Hide2!AB$5, 'Full set Core Client Indicator'!$A$3:$AB$3, 0))=\"\", \"\",  INDEX('Full set Core Client Indicator'!$A$3:$AB$351, MATCH(Selection_Hide2!$A350, 'Full set Core Client Indicator'!$A$3:$A$351, 0), MATCH(Selection_Hide2!AB$5, 'Full set Core Client Indicator'!$A$3:$AB$3, 0))), \"\")","v":""}]
[{"$f":"IF(AND(Selection_Hide1!C349<>0, Selection_Hide1!C349<>\"Grand Total\"), Selection_Hide1!C349, \"\")","v":""},{"$f":"IF(A351<>\"\", IF(INDEX('Full set Core Client Indicator'!$A$3:$AB$351, MATCH(Selection_Hide2!$A351, 'Full set Core Client Indicator'!$A$3:$A$351, 0), MATCH(Selection_Hide2!B$5, 'Full set Core Client Indicator'!$A$3:$AB$3, 0))=\"\", \"\",  INDEX('Full set Core Client Indicator'!$A$3:$AB$351, MATCH(Selection_Hide2!$A351, 'Full set Core Client Indicator'!$A$3:$A$351, 0), MATCH(Selection_Hide2!B$5, 'Full set Core Client Indicator'!$A$3:$AB$3, 0))), \"\")","v":""},{"$f":"IF(B351<>\"\", IF(INDEX('Full set Core Client Indicator'!$A$3:$AB$351, MATCH(Selection_Hide2!$A351, 'Full set Core Client Indicator'!$A$3:$A$351, 0), MATCH(Selection_Hide2!C$5, 'Full set Core Client Indicator'!$A$3:$AB$3, 0))=\"\", \"\",  INDEX('Full set Core Client Indicator'!$A$3:$AB$351, MATCH(Selection_Hide2!$A351, 'Full set Core Client Indicator'!$A$3:$A$351, 0), MATCH(Selection_Hide2!C$5, 'Full set Core Client Indicator'!$A$3:$AB$3, 0))), \"\")","v":""},{"$f":"IF(C351<>\"\", IF(INDEX('Full set Core Client Indicator'!$A$3:$AB$351, MATCH(Selection_Hide2!$A351, 'Full set Core Client Indicator'!$A$3:$A$351, 0), MATCH(Selection_Hide2!D$5, 'Full set Core Client Indicator'!$A$3:$AB$3, 0))=\"\", \"\",  INDEX('Full set Core Client Indicator'!$A$3:$AB$351, MATCH(Selection_Hide2!$A351, 'Full set Core Client Indicator'!$A$3:$A$351, 0), MATCH(Selection_Hide2!D$5, 'Full set Core Client Indicator'!$A$3:$AB$3, 0))), \"\")","v":""},{"$f":"IF(D351<>\"\", IF(INDEX('Full set Core Client Indicator'!$A$3:$AB$351, MATCH(Selection_Hide2!$A351, 'Full set Core Client Indicator'!$A$3:$A$351, 0), MATCH(Selection_Hide2!E$5, 'Full set Core Client Indicator'!$A$3:$AB$3, 0))=\"\", \"\",  INDEX('Full set Core Client Indicator'!$A$3:$AB$351, MATCH(Selection_Hide2!$A351, 'Full set Core Client Indicator'!$A$3:$A$351, 0), MATCH(Selection_Hide2!E$5, 'Full set Core Client Indicator'!$A$3:$AB$3, 0))), \"\")","v":""},{"$f":"IF(E351<>\"\", IF(INDEX('Full set Core Client Indicator'!$A$3:$AB$351, MATCH(Selection_Hide2!$A351, 'Full set Core Client Indicator'!$A$3:$A$351, 0), MATCH(Selection_Hide2!F$5, 'Full set Core Client Indicator'!$A$3:$AB$3, 0))=\"\", \"\",  INDEX('Full set Core Client Indicator'!$A$3:$AB$351, MATCH(Selection_Hide2!$A351, 'Full set Core Client Indicator'!$A$3:$A$351, 0), MATCH(Selection_Hide2!F$5, 'Full set Core Client Indicator'!$A$3:$AB$3, 0))), \"\")","v":""},{"$f":"IF(F351<>\"\", IF(INDEX('Full set Core Client Indicator'!$A$3:$AB$351, MATCH(Selection_Hide2!$A351, 'Full set Core Client Indicator'!$A$3:$A$351, 0), MATCH(Selection_Hide2!G$5, 'Full set Core Client Indicator'!$A$3:$AB$3, 0))=\"\", \"\",  INDEX('Full set Core Client Indicator'!$A$3:$AB$351, MATCH(Selection_Hide2!$A351, 'Full set Core Client Indicator'!$A$3:$A$351, 0), MATCH(Selection_Hide2!G$5, 'Full set Core Client Indicator'!$A$3:$AB$3, 0))), \"\")","v":""},{"$f":"IF(G351<>\"\", IF(INDEX('Full set Core Client Indicator'!$A$3:$AB$351, MATCH(Selection_Hide2!$A351, 'Full set Core Client Indicator'!$A$3:$A$351, 0), MATCH(Selection_Hide2!H$5, 'Full set Core Client Indicator'!$A$3:$AB$3, 0))=\"\", \"\",  INDEX('Full set Core Client Indicator'!$A$3:$AB$351, MATCH(Selection_Hide2!$A351, 'Full set Core Client Indicator'!$A$3:$A$351, 0), MATCH(Selection_Hide2!H$5, 'Full set Core Client Indicator'!$A$3:$AB$3, 0))), \"\")","v":""},{"$f":"IF(H351<>\"\", IF(INDEX('Full set Core Client Indicator'!$A$3:$AB$351, MATCH(Selection_Hide2!$A351, 'Full set Core Client Indicator'!$A$3:$A$351, 0), MATCH(Selection_Hide2!I$5, 'Full set Core Client Indicator'!$A$3:$AB$3, 0))=\"\", \"\",  INDEX('Full set Core Client Indicator'!$A$3:$AB$351, MATCH(Selection_Hide2!$A351, 'Full set Core Client Indicator'!$A$3:$A$351, 0), MATCH(Selection_Hide2!I$5, 'Full set Core Client Indicator'!$A$3:$AB$3, 0))), \"\")","v":""},{"$f":"IF(I351<>\"\", IF(INDEX('Full set Core Client Indicator'!$A$3:$AB$351, MATCH(Selection_Hide2!$A351, 'Full set Core Client Indicator'!$A$3:$A$351, 0), MATCH(Selection_Hide2!J$5, 'Full set Core Client Indicator'!$A$3:$AB$3, 0))=\"\", \"\",  INDEX('Full set Core Client Indicator'!$A$3:$AB$351, MATCH(Selection_Hide2!$A351, 'Full set Core Client Indicator'!$A$3:$A$351, 0), MATCH(Selection_Hide2!J$5, 'Full set Core Client Indicator'!$A$3:$AB$3, 0))), \"\")","v":""},{"$f":"IF(J351<>\"\", IF(INDEX('Full set Core Client Indicator'!$A$3:$AB$351, MATCH(Selection_Hide2!$A351, 'Full set Core Client Indicator'!$A$3:$A$351, 0), MATCH(Selection_Hide2!K$5, 'Full set Core Client Indicator'!$A$3:$AB$3, 0))=\"\", \"\",  INDEX('Full set Core Client Indicator'!$A$3:$AB$351, MATCH(Selection_Hide2!$A351, 'Full set Core Client Indicator'!$A$3:$A$351, 0), MATCH(Selection_Hide2!K$5, 'Full set Core Client Indicator'!$A$3:$AB$3, 0))), \"\")","v":""},{"$f":"IF(K351<>\"\", IF(INDEX('Full set Core Client Indicator'!$A$3:$AB$351, MATCH(Selection_Hide2!$A351, 'Full set Core Client Indicator'!$A$3:$A$351, 0), MATCH(Selection_Hide2!L$5, 'Full set Core Client Indicator'!$A$3:$AB$3, 0))=\"\", \"\",  INDEX('Full set Core Client Indicator'!$A$3:$AB$351, MATCH(Selection_Hide2!$A351, 'Full set Core Client Indicator'!$A$3:$A$351, 0), MATCH(Selection_Hide2!L$5, 'Full set Core Client Indicator'!$A$3:$AB$3, 0))), \"\")","v":""},{"$f":"IF(L351<>\"\", IF(INDEX('Full set Core Client Indicator'!$A$3:$AB$351, MATCH(Selection_Hide2!$A351, 'Full set Core Client Indicator'!$A$3:$A$351, 0), MATCH(Selection_Hide2!M$5, 'Full set Core Client Indicator'!$A$3:$AB$3, 0))=\"\", \"\",  INDEX('Full set Core Client Indicator'!$A$3:$AB$351, MATCH(Selection_Hide2!$A351, 'Full set Core Client Indicator'!$A$3:$A$351, 0), MATCH(Selection_Hide2!M$5, 'Full set Core Client Indicator'!$A$3:$AB$3, 0))), \"\")","v":""},{"$f":"IF(M351<>\"\", IF(INDEX('Full set Core Client Indicator'!$A$3:$AB$351, MATCH(Selection_Hide2!$A351, 'Full set Core Client Indicator'!$A$3:$A$351, 0), MATCH(Selection_Hide2!N$5, 'Full set Core Client Indicator'!$A$3:$AB$3, 0))=\"\", \"\",  INDEX('Full set Core Client Indicator'!$A$3:$AB$351, MATCH(Selection_Hide2!$A351, 'Full set Core Client Indicator'!$A$3:$A$351, 0), MATCH(Selection_Hide2!N$5, 'Full set Core Client Indicator'!$A$3:$AB$3, 0))), \"\")","v":""},{"$f":"IF(N351<>\"\", IF(INDEX('Full set Core Client Indicator'!$A$3:$AB$351, MATCH(Selection_Hide2!$A351, 'Full set Core Client Indicator'!$A$3:$A$351, 0), MATCH(Selection_Hide2!O$5, 'Full set Core Client Indicator'!$A$3:$AB$3, 0))=\"\", \"\",  INDEX('Full set Core Client Indicator'!$A$3:$AB$351, MATCH(Selection_Hide2!$A351, 'Full set Core Client Indicator'!$A$3:$A$351, 0), MATCH(Selection_Hide2!O$5, 'Full set Core Client Indicator'!$A$3:$AB$3, 0))), \"\")","v":""},{"$f":"IF(O351<>\"\", IF(INDEX('Full set Core Client Indicator'!$A$3:$AB$351, MATCH(Selection_Hide2!$A351, 'Full set Core Client Indicator'!$A$3:$A$351, 0), MATCH(Selection_Hide2!P$5, 'Full set Core Client Indicator'!$A$3:$AB$3, 0))=\"\", \"\",  INDEX('Full set Core Client Indicator'!$A$3:$AB$351, MATCH(Selection_Hide2!$A351, 'Full set Core Client Indicator'!$A$3:$A$351, 0), MATCH(Selection_Hide2!P$5, 'Full set Core Client Indicator'!$A$3:$AB$3, 0))), \"\")","v":""},{"$f":"IF(P351<>\"\", IF(INDEX('Full set Core Client Indicator'!$A$3:$AB$351, MATCH(Selection_Hide2!$A351, 'Full set Core Client Indicator'!$A$3:$A$351, 0), MATCH(Selection_Hide2!Q$5, 'Full set Core Client Indicator'!$A$3:$AB$3, 0))=\"\", \"\",  INDEX('Full set Core Client Indicator'!$A$3:$AB$351, MATCH(Selection_Hide2!$A351, 'Full set Core Client Indicator'!$A$3:$A$351, 0), MATCH(Selection_Hide2!Q$5, 'Full set Core Client Indicator'!$A$3:$AB$3, 0))), \"\")","v":""},{"$f":"IF(Q351<>\"\", IF(INDEX('Full set Core Client Indicator'!$A$3:$AB$351, MATCH(Selection_Hide2!$A351, 'Full set Core Client Indicator'!$A$3:$A$351, 0), MATCH(Selection_Hide2!R$5, 'Full set Core Client Indicator'!$A$3:$AB$3, 0))=\"\", \"\",  INDEX('Full set Core Client Indicator'!$A$3:$AB$351, MATCH(Selection_Hide2!$A351, 'Full set Core Client Indicator'!$A$3:$A$351, 0), MATCH(Selection_Hide2!R$5, 'Full set Core Client Indicator'!$A$3:$AB$3, 0))), \"\")","v":""},{"$f":"IF(R351<>\"\", IF(INDEX('Full set Core Client Indicator'!$A$3:$AB$351, MATCH(Selection_Hide2!$A351, 'Full set Core Client Indicator'!$A$3:$A$351, 0), MATCH(Selection_Hide2!S$5, 'Full set Core Client Indicator'!$A$3:$AB$3, 0))=\"\", \"\",  INDEX('Full set Core Client Indicator'!$A$3:$AB$351, MATCH(Selection_Hide2!$A351, 'Full set Core Client Indicator'!$A$3:$A$351, 0), MATCH(Selection_Hide2!S$5, 'Full set Core Client Indicator'!$A$3:$AB$3, 0))), \"\")","v":""},{"$f":"IF(S351<>\"\", IF(INDEX('Full set Core Client Indicator'!$A$3:$AB$351, MATCH(Selection_Hide2!$A351, 'Full set Core Client Indicator'!$A$3:$A$351, 0), MATCH(Selection_Hide2!T$5, 'Full set Core Client Indicator'!$A$3:$AB$3, 0))=\"\", \"\",  INDEX('Full set Core Client Indicator'!$A$3:$AB$351, MATCH(Selection_Hide2!$A351, 'Full set Core Client Indicator'!$A$3:$A$351, 0), MATCH(Selection_Hide2!T$5, 'Full set Core Client Indicator'!$A$3:$AB$3, 0))), \"\")","v":""},{"$f":"IF(T351<>\"\", IF(INDEX('Full set Core Client Indicator'!$A$3:$AB$351, MATCH(Selection_Hide2!$A351, 'Full set Core Client Indicator'!$A$3:$A$351, 0), MATCH(Selection_Hide2!U$5, 'Full set Core Client Indicator'!$A$3:$AB$3, 0))=\"\", \"\",  INDEX('Full set Core Client Indicator'!$A$3:$AB$351, MATCH(Selection_Hide2!$A351, 'Full set Core Client Indicator'!$A$3:$A$351, 0), MATCH(Selection_Hide2!U$5, 'Full set Core Client Indicator'!$A$3:$AB$3, 0))), \"\")","v":""},{"$f":"IF(U351<>\"\", IF(INDEX('Full set Core Client Indicator'!$A$3:$AB$351, MATCH(Selection_Hide2!$A351, 'Full set Core Client Indicator'!$A$3:$A$351, 0), MATCH(Selection_Hide2!V$5, 'Full set Core Client Indicator'!$A$3:$AB$3, 0))=\"\", \"\",  INDEX('Full set Core Client Indicator'!$A$3:$AB$351, MATCH(Selection_Hide2!$A351, 'Full set Core Client Indicator'!$A$3:$A$351, 0), MATCH(Selection_Hide2!V$5, 'Full set Core Client Indicator'!$A$3:$AB$3, 0))), \"\")","v":""},{"$f":"IF(V351<>\"\", IF(INDEX('Full set Core Client Indicator'!$A$3:$AB$351, MATCH(Selection_Hide2!$A351, 'Full set Core Client Indicator'!$A$3:$A$351, 0), MATCH(Selection_Hide2!W$5, 'Full set Core Client Indicator'!$A$3:$AB$3, 0))=\"\", \"\",  INDEX('Full set Core Client Indicator'!$A$3:$AB$351, MATCH(Selection_Hide2!$A351, 'Full set Core Client Indicator'!$A$3:$A$351, 0), MATCH(Selection_Hide2!W$5, 'Full set Core Client Indicator'!$A$3:$AB$3, 0))), \"\")","v":""},{"$f":"IF(W351<>\"\", IF(INDEX('Full set Core Client Indicator'!$A$3:$AB$351, MATCH(Selection_Hide2!$A351, 'Full set Core Client Indicator'!$A$3:$A$351, 0), MATCH(Selection_Hide2!X$5, 'Full set Core Client Indicator'!$A$3:$AB$3, 0))=\"\", \"\",  INDEX('Full set Core Client Indicator'!$A$3:$AB$351, MATCH(Selection_Hide2!$A351, 'Full set Core Client Indicator'!$A$3:$A$351, 0), MATCH(Selection_Hide2!X$5, 'Full set Core Client Indicator'!$A$3:$AB$3, 0))), \"\")","v":""},{"$f":"IF(X351<>\"\", IF(INDEX('Full set Core Client Indicator'!$A$3:$AB$351, MATCH(Selection_Hide2!$A351, 'Full set Core Client Indicator'!$A$3:$A$351, 0), MATCH(Selection_Hide2!Y$5, 'Full set Core Client Indicator'!$A$3:$AB$3, 0))=\"\", \"\",  INDEX('Full set Core Client Indicator'!$A$3:$AB$351, MATCH(Selection_Hide2!$A351, 'Full set Core Client Indicator'!$A$3:$A$351, 0), MATCH(Selection_Hide2!Y$5, 'Full set Core Client Indicator'!$A$3:$AB$3, 0))), \"\")","v":""},{"$f":"IF(Y351<>\"\", IF(INDEX('Full set Core Client Indicator'!$A$3:$AB$351, MATCH(Selection_Hide2!$A351, 'Full set Core Client Indicator'!$A$3:$A$351, 0), MATCH(Selection_Hide2!Z$5, 'Full set Core Client Indicator'!$A$3:$AB$3, 0))=\"\", \"\",  INDEX('Full set Core Client Indicator'!$A$3:$AB$351, MATCH(Selection_Hide2!$A351, 'Full set Core Client Indicator'!$A$3:$A$351, 0), MATCH(Selection_Hide2!Z$5, 'Full set Core Client Indicator'!$A$3:$AB$3, 0))), \"\")","v":""},{"$f":"IF(Z351<>\"\", IF(INDEX('Full set Core Client Indicator'!$A$3:$AB$351, MATCH(Selection_Hide2!$A351, 'Full set Core Client Indicator'!$A$3:$A$351, 0), MATCH(Selection_Hide2!AA$5, 'Full set Core Client Indicator'!$A$3:$AB$3, 0))=\"\", \"\",  INDEX('Full set Core Client Indicator'!$A$3:$AB$351, MATCH(Selection_Hide2!$A351, 'Full set Core Client Indicator'!$A$3:$A$351, 0), MATCH(Selection_Hide2!AA$5, 'Full set Core Client Indicator'!$A$3:$AB$3, 0))), \"\")","v":""},{"$f":"IF(AA351<>\"\", IF(INDEX('Full set Core Client Indicator'!$A$3:$AB$351, MATCH(Selection_Hide2!$A351, 'Full set Core Client Indicator'!$A$3:$A$351, 0), MATCH(Selection_Hide2!AB$5, 'Full set Core Client Indicator'!$A$3:$AB$3, 0))=\"\", \"\",  INDEX('Full set Core Client Indicator'!$A$3:$AB$351, MATCH(Selection_Hide2!$A351, 'Full set Core Client Indicator'!$A$3:$A$351, 0), MATCH(Selection_Hide2!AB$5, 'Full set Core Client Indicator'!$A$3:$AB$3, 0))), \"\")","v":""}]
[{"$f":"IF(AND(Selection_Hide1!C350<>0, Selection_Hide1!C350<>\"Grand Total\"), Selection_Hide1!C350, \"\")","v":""},{"$f":"IF(A352<>\"\", IF(INDEX('Full set Core Client Indicator'!$A$3:$AB$351, MATCH(Selection_Hide2!$A352, 'Full set Core Client Indicator'!$A$3:$A$351, 0), MATCH(Selection_Hide2!B$5, 'Full set Core Client Indicator'!$A$3:$AB$3, 0))=\"\", \"\",  INDEX('Full set Core Client Indicator'!$A$3:$AB$351, MATCH(Selection_Hide2!$A352, 'Full set Core Client Indicator'!$A$3:$A$351, 0), MATCH(Selection_Hide2!B$5, 'Full set Core Client Indicator'!$A$3:$AB$3, 0))), \"\")","v":""},{"$f":"IF(B352<>\"\", IF(INDEX('Full set Core Client Indicator'!$A$3:$AB$351, MATCH(Selection_Hide2!$A352, 'Full set Core Client Indicator'!$A$3:$A$351, 0), MATCH(Selection_Hide2!C$5, 'Full set Core Client Indicator'!$A$3:$AB$3, 0))=\"\", \"\",  INDEX('Full set Core Client Indicator'!$A$3:$AB$351, MATCH(Selection_Hide2!$A352, 'Full set Core Client Indicator'!$A$3:$A$351, 0), MATCH(Selection_Hide2!C$5, 'Full set Core Client Indicator'!$A$3:$AB$3, 0))), \"\")","v":""},{"$f":"IF(C352<>\"\", IF(INDEX('Full set Core Client Indicator'!$A$3:$AB$351, MATCH(Selection_Hide2!$A352, 'Full set Core Client Indicator'!$A$3:$A$351, 0), MATCH(Selection_Hide2!D$5, 'Full set Core Client Indicator'!$A$3:$AB$3, 0))=\"\", \"\",  INDEX('Full set Core Client Indicator'!$A$3:$AB$351, MATCH(Selection_Hide2!$A352, 'Full set Core Client Indicator'!$A$3:$A$351, 0), MATCH(Selection_Hide2!D$5, 'Full set Core Client Indicator'!$A$3:$AB$3, 0))), \"\")","v":""},{"$f":"IF(D352<>\"\", IF(INDEX('Full set Core Client Indicator'!$A$3:$AB$351, MATCH(Selection_Hide2!$A352, 'Full set Core Client Indicator'!$A$3:$A$351, 0), MATCH(Selection_Hide2!E$5, 'Full set Core Client Indicator'!$A$3:$AB$3, 0))=\"\", \"\",  INDEX('Full set Core Client Indicator'!$A$3:$AB$351, MATCH(Selection_Hide2!$A352, 'Full set Core Client Indicator'!$A$3:$A$351, 0), MATCH(Selection_Hide2!E$5, 'Full set Core Client Indicator'!$A$3:$AB$3, 0))), \"\")","v":""},{"$f":"IF(E352<>\"\", IF(INDEX('Full set Core Client Indicator'!$A$3:$AB$351, MATCH(Selection_Hide2!$A352, 'Full set Core Client Indicator'!$A$3:$A$351, 0), MATCH(Selection_Hide2!F$5, 'Full set Core Client Indicator'!$A$3:$AB$3, 0))=\"\", \"\",  INDEX('Full set Core Client Indicator'!$A$3:$AB$351, MATCH(Selection_Hide2!$A352, 'Full set Core Client Indicator'!$A$3:$A$351, 0), MATCH(Selection_Hide2!F$5, 'Full set Core Client Indicator'!$A$3:$AB$3, 0))), \"\")","v":""},{"$f":"IF(F352<>\"\", IF(INDEX('Full set Core Client Indicator'!$A$3:$AB$351, MATCH(Selection_Hide2!$A352, 'Full set Core Client Indicator'!$A$3:$A$351, 0), MATCH(Selection_Hide2!G$5, 'Full set Core Client Indicator'!$A$3:$AB$3, 0))=\"\", \"\",  INDEX('Full set Core Client Indicator'!$A$3:$AB$351, MATCH(Selection_Hide2!$A352, 'Full set Core Client Indicator'!$A$3:$A$351, 0), MATCH(Selection_Hide2!G$5, 'Full set Core Client Indicator'!$A$3:$AB$3, 0))), \"\")","v":""},{"$f":"IF(G352<>\"\", IF(INDEX('Full set Core Client Indicator'!$A$3:$AB$351, MATCH(Selection_Hide2!$A352, 'Full set Core Client Indicator'!$A$3:$A$351, 0), MATCH(Selection_Hide2!H$5, 'Full set Core Client Indicator'!$A$3:$AB$3, 0))=\"\", \"\",  INDEX('Full set Core Client Indicator'!$A$3:$AB$351, MATCH(Selection_Hide2!$A352, 'Full set Core Client Indicator'!$A$3:$A$351, 0), MATCH(Selection_Hide2!H$5, 'Full set Core Client Indicator'!$A$3:$AB$3, 0))), \"\")","v":""},{"$f":"IF(H352<>\"\", IF(INDEX('Full set Core Client Indicator'!$A$3:$AB$351, MATCH(Selection_Hide2!$A352, 'Full set Core Client Indicator'!$A$3:$A$351, 0), MATCH(Selection_Hide2!I$5, 'Full set Core Client Indicator'!$A$3:$AB$3, 0))=\"\", \"\",  INDEX('Full set Core Client Indicator'!$A$3:$AB$351, MATCH(Selection_Hide2!$A352, 'Full set Core Client Indicator'!$A$3:$A$351, 0), MATCH(Selection_Hide2!I$5, 'Full set Core Client Indicator'!$A$3:$AB$3, 0))), \"\")","v":""},{"$f":"IF(I352<>\"\", IF(INDEX('Full set Core Client Indicator'!$A$3:$AB$351, MATCH(Selection_Hide2!$A352, 'Full set Core Client Indicator'!$A$3:$A$351, 0), MATCH(Selection_Hide2!J$5, 'Full set Core Client Indicator'!$A$3:$AB$3, 0))=\"\", \"\",  INDEX('Full set Core Client Indicator'!$A$3:$AB$351, MATCH(Selection_Hide2!$A352, 'Full set Core Client Indicator'!$A$3:$A$351, 0), MATCH(Selection_Hide2!J$5, 'Full set Core Client Indicator'!$A$3:$AB$3, 0))), \"\")","v":""},{"$f":"IF(J352<>\"\", IF(INDEX('Full set Core Client Indicator'!$A$3:$AB$351, MATCH(Selection_Hide2!$A352, 'Full set Core Client Indicator'!$A$3:$A$351, 0), MATCH(Selection_Hide2!K$5, 'Full set Core Client Indicator'!$A$3:$AB$3, 0))=\"\", \"\",  INDEX('Full set Core Client Indicator'!$A$3:$AB$351, MATCH(Selection_Hide2!$A352, 'Full set Core Client Indicator'!$A$3:$A$351, 0), MATCH(Selection_Hide2!K$5, 'Full set Core Client Indicator'!$A$3:$AB$3, 0))), \"\")","v":""},{"$f":"IF(K352<>\"\", IF(INDEX('Full set Core Client Indicator'!$A$3:$AB$351, MATCH(Selection_Hide2!$A352, 'Full set Core Client Indicator'!$A$3:$A$351, 0), MATCH(Selection_Hide2!L$5, 'Full set Core Client Indicator'!$A$3:$AB$3, 0))=\"\", \"\",  INDEX('Full set Core Client Indicator'!$A$3:$AB$351, MATCH(Selection_Hide2!$A352, 'Full set Core Client Indicator'!$A$3:$A$351, 0), MATCH(Selection_Hide2!L$5, 'Full set Core Client Indicator'!$A$3:$AB$3, 0))), \"\")","v":""},{"$f":"IF(L352<>\"\", IF(INDEX('Full set Core Client Indicator'!$A$3:$AB$351, MATCH(Selection_Hide2!$A352, 'Full set Core Client Indicator'!$A$3:$A$351, 0), MATCH(Selection_Hide2!M$5, 'Full set Core Client Indicator'!$A$3:$AB$3, 0))=\"\", \"\",  INDEX('Full set Core Client Indicator'!$A$3:$AB$351, MATCH(Selection_Hide2!$A352, 'Full set Core Client Indicator'!$A$3:$A$351, 0), MATCH(Selection_Hide2!M$5, 'Full set Core Client Indicator'!$A$3:$AB$3, 0))), \"\")","v":""},{"$f":"IF(M352<>\"\", IF(INDEX('Full set Core Client Indicator'!$A$3:$AB$351, MATCH(Selection_Hide2!$A352, 'Full set Core Client Indicator'!$A$3:$A$351, 0), MATCH(Selection_Hide2!N$5, 'Full set Core Client Indicator'!$A$3:$AB$3, 0))=\"\", \"\",  INDEX('Full set Core Client Indicator'!$A$3:$AB$351, MATCH(Selection_Hide2!$A352, 'Full set Core Client Indicator'!$A$3:$A$351, 0), MATCH(Selection_Hide2!N$5, 'Full set Core Client Indicator'!$A$3:$AB$3, 0))), \"\")","v":""},{"$f":"IF(N352<>\"\", IF(INDEX('Full set Core Client Indicator'!$A$3:$AB$351, MATCH(Selection_Hide2!$A352, 'Full set Core Client Indicator'!$A$3:$A$351, 0), MATCH(Selection_Hide2!O$5, 'Full set Core Client Indicator'!$A$3:$AB$3, 0))=\"\", \"\",  INDEX('Full set Core Client Indicator'!$A$3:$AB$351, MATCH(Selection_Hide2!$A352, 'Full set Core Client Indicator'!$A$3:$A$351, 0), MATCH(Selection_Hide2!O$5, 'Full set Core Client Indicator'!$A$3:$AB$3, 0))), \"\")","v":""},{"$f":"IF(O352<>\"\", IF(INDEX('Full set Core Client Indicator'!$A$3:$AB$351, MATCH(Selection_Hide2!$A352, 'Full set Core Client Indicator'!$A$3:$A$351, 0), MATCH(Selection_Hide2!P$5, 'Full set Core Client Indicator'!$A$3:$AB$3, 0))=\"\", \"\",  INDEX('Full set Core Client Indicator'!$A$3:$AB$351, MATCH(Selection_Hide2!$A352, 'Full set Core Client Indicator'!$A$3:$A$351, 0), MATCH(Selection_Hide2!P$5, 'Full set Core Client Indicator'!$A$3:$AB$3, 0))), \"\")","v":""},{"$f":"IF(P352<>\"\", IF(INDEX('Full set Core Client Indicator'!$A$3:$AB$351, MATCH(Selection_Hide2!$A352, 'Full set Core Client Indicator'!$A$3:$A$351, 0), MATCH(Selection_Hide2!Q$5, 'Full set Core Client Indicator'!$A$3:$AB$3, 0))=\"\", \"\",  INDEX('Full set Core Client Indicator'!$A$3:$AB$351, MATCH(Selection_Hide2!$A352, 'Full set Core Client Indicator'!$A$3:$A$351, 0), MATCH(Selection_Hide2!Q$5, 'Full set Core Client Indicator'!$A$3:$AB$3, 0))), \"\")","v":""},{"$f":"IF(Q352<>\"\", IF(INDEX('Full set Core Client Indicator'!$A$3:$AB$351, MATCH(Selection_Hide2!$A352, 'Full set Core Client Indicator'!$A$3:$A$351, 0), MATCH(Selection_Hide2!R$5, 'Full set Core Client Indicator'!$A$3:$AB$3, 0))=\"\", \"\",  INDEX('Full set Core Client Indicator'!$A$3:$AB$351, MATCH(Selection_Hide2!$A352, 'Full set Core Client Indicator'!$A$3:$A$351, 0), MATCH(Selection_Hide2!R$5, 'Full set Core Client Indicator'!$A$3:$AB$3, 0))), \"\")","v":""},{"$f":"IF(R352<>\"\", IF(INDEX('Full set Core Client Indicator'!$A$3:$AB$351, MATCH(Selection_Hide2!$A352, 'Full set Core Client Indicator'!$A$3:$A$351, 0), MATCH(Selection_Hide2!S$5, 'Full set Core Client Indicator'!$A$3:$AB$3, 0))=\"\", \"\",  INDEX('Full set Core Client Indicator'!$A$3:$AB$351, MATCH(Selection_Hide2!$A352, 'Full set Core Client Indicator'!$A$3:$A$351, 0), MATCH(Selection_Hide2!S$5, 'Full set Core Client Indicator'!$A$3:$AB$3, 0))), \"\")","v":""},{"$f":"IF(S352<>\"\", IF(INDEX('Full set Core Client Indicator'!$A$3:$AB$351, MATCH(Selection_Hide2!$A352, 'Full set Core Client Indicator'!$A$3:$A$351, 0), MATCH(Selection_Hide2!T$5, 'Full set Core Client Indicator'!$A$3:$AB$3, 0))=\"\", \"\",  INDEX('Full set Core Client Indicator'!$A$3:$AB$351, MATCH(Selection_Hide2!$A352, 'Full set Core Client Indicator'!$A$3:$A$351, 0), MATCH(Selection_Hide2!T$5, 'Full set Core Client Indicator'!$A$3:$AB$3, 0))), \"\")","v":""},{"$f":"IF(T352<>\"\", IF(INDEX('Full set Core Client Indicator'!$A$3:$AB$351, MATCH(Selection_Hide2!$A352, 'Full set Core Client Indicator'!$A$3:$A$351, 0), MATCH(Selection_Hide2!U$5, 'Full set Core Client Indicator'!$A$3:$AB$3, 0))=\"\", \"\",  INDEX('Full set Core Client Indicator'!$A$3:$AB$351, MATCH(Selection_Hide2!$A352, 'Full set Core Client Indicator'!$A$3:$A$351, 0), MATCH(Selection_Hide2!U$5, 'Full set Core Client Indicator'!$A$3:$AB$3, 0))), \"\")","v":""},{"$f":"IF(U352<>\"\", IF(INDEX('Full set Core Client Indicator'!$A$3:$AB$351, MATCH(Selection_Hide2!$A352, 'Full set Core Client Indicator'!$A$3:$A$351, 0), MATCH(Selection_Hide2!V$5, 'Full set Core Client Indicator'!$A$3:$AB$3, 0))=\"\", \"\",  INDEX('Full set Core Client Indicator'!$A$3:$AB$351, MATCH(Selection_Hide2!$A352, 'Full set Core Client Indicator'!$A$3:$A$351, 0), MATCH(Selection_Hide2!V$5, 'Full set Core Client Indicator'!$A$3:$AB$3, 0))), \"\")","v":""},{"$f":"IF(V352<>\"\", IF(INDEX('Full set Core Client Indicator'!$A$3:$AB$351, MATCH(Selection_Hide2!$A352, 'Full set Core Client Indicator'!$A$3:$A$351, 0), MATCH(Selection_Hide2!W$5, 'Full set Core Client Indicator'!$A$3:$AB$3, 0))=\"\", \"\",  INDEX('Full set Core Client Indicator'!$A$3:$AB$351, MATCH(Selection_Hide2!$A352, 'Full set Core Client Indicator'!$A$3:$A$351, 0), MATCH(Selection_Hide2!W$5, 'Full set Core Client Indicator'!$A$3:$AB$3, 0))), \"\")","v":""},{"$f":"IF(W352<>\"\", IF(INDEX('Full set Core Client Indicator'!$A$3:$AB$351, MATCH(Selection_Hide2!$A352, 'Full set Core Client Indicator'!$A$3:$A$351, 0), MATCH(Selection_Hide2!X$5, 'Full set Core Client Indicator'!$A$3:$AB$3, 0))=\"\", \"\",  INDEX('Full set Core Client Indicator'!$A$3:$AB$351, MATCH(Selection_Hide2!$A352, 'Full set Core Client Indicator'!$A$3:$A$351, 0), MATCH(Selection_Hide2!X$5, 'Full set Core Client Indicator'!$A$3:$AB$3, 0))), \"\")","v":""},{"$f":"IF(X352<>\"\", IF(INDEX('Full set Core Client Indicator'!$A$3:$AB$351, MATCH(Selection_Hide2!$A352, 'Full set Core Client Indicator'!$A$3:$A$351, 0), MATCH(Selection_Hide2!Y$5, 'Full set Core Client Indicator'!$A$3:$AB$3, 0))=\"\", \"\",  INDEX('Full set Core Client Indicator'!$A$3:$AB$351, MATCH(Selection_Hide2!$A352, 'Full set Core Client Indicator'!$A$3:$A$351, 0), MATCH(Selection_Hide2!Y$5, 'Full set Core Client Indicator'!$A$3:$AB$3, 0))), \"\")","v":""},{"$f":"IF(Y352<>\"\", IF(INDEX('Full set Core Client Indicator'!$A$3:$AB$351, MATCH(Selection_Hide2!$A352, 'Full set Core Client Indicator'!$A$3:$A$351, 0), MATCH(Selection_Hide2!Z$5, 'Full set Core Client Indicator'!$A$3:$AB$3, 0))=\"\", \"\",  INDEX('Full set Core Client Indicator'!$A$3:$AB$351, MATCH(Selection_Hide2!$A352, 'Full set Core Client Indicator'!$A$3:$A$351, 0), MATCH(Selection_Hide2!Z$5, 'Full set Core Client Indicator'!$A$3:$AB$3, 0))), \"\")","v":""},{"$f":"IF(Z352<>\"\", IF(INDEX('Full set Core Client Indicator'!$A$3:$AB$351, MATCH(Selection_Hide2!$A352, 'Full set Core Client Indicator'!$A$3:$A$351, 0), MATCH(Selection_Hide2!AA$5, 'Full set Core Client Indicator'!$A$3:$AB$3, 0))=\"\", \"\",  INDEX('Full set Core Client Indicator'!$A$3:$AB$351, MATCH(Selection_Hide2!$A352, 'Full set Core Client Indicator'!$A$3:$A$351, 0), MATCH(Selection_Hide2!AA$5, 'Full set Core Client Indicator'!$A$3:$AB$3, 0))), \"\")","v":""},{"$f":"IF(AA352<>\"\", IF(INDEX('Full set Core Client Indicator'!$A$3:$AB$351, MATCH(Selection_Hide2!$A352, 'Full set Core Client Indicator'!$A$3:$A$351, 0), MATCH(Selection_Hide2!AB$5, 'Full set Core Client Indicator'!$A$3:$AB$3, 0))=\"\", \"\",  INDEX('Full set Core Client Indicator'!$A$3:$AB$351, MATCH(Selection_Hide2!$A352, 'Full set Core Client Indicator'!$A$3:$A$351, 0), MATCH(Selection_Hide2!AB$5, 'Full set Core Client Indicator'!$A$3:$AB$3, 0))), \"\")","v":""}]
[{"$f":"IF(AND(Selection_Hide1!C351<>0, Selection_Hide1!C351<>\"Grand Total\"), Selection_Hide1!C351, \"\")","v":""},{"$f":"IF(A353<>\"\", IF(INDEX('Full set Core Client Indicator'!$A$3:$AB$351, MATCH(Selection_Hide2!$A353, 'Full set Core Client Indicator'!$A$3:$A$351, 0), MATCH(Selection_Hide2!B$5, 'Full set Core Client Indicator'!$A$3:$AB$3, 0))=\"\", \"\",  INDEX('Full set Core Client Indicator'!$A$3:$AB$351, MATCH(Selection_Hide2!$A353, 'Full set Core Client Indicator'!$A$3:$A$351, 0), MATCH(Selection_Hide2!B$5, 'Full set Core Client Indicator'!$A$3:$AB$3, 0))), \"\")","v":""},{"$f":"IF(B353<>\"\", IF(INDEX('Full set Core Client Indicator'!$A$3:$AB$351, MATCH(Selection_Hide2!$A353, 'Full set Core Client Indicator'!$A$3:$A$351, 0), MATCH(Selection_Hide2!C$5, 'Full set Core Client Indicator'!$A$3:$AB$3, 0))=\"\", \"\",  INDEX('Full set Core Client Indicator'!$A$3:$AB$351, MATCH(Selection_Hide2!$A353, 'Full set Core Client Indicator'!$A$3:$A$351, 0), MATCH(Selection_Hide2!C$5, 'Full set Core Client Indicator'!$A$3:$AB$3, 0))), \"\")","v":""},{"$f":"IF(C353<>\"\", IF(INDEX('Full set Core Client Indicator'!$A$3:$AB$351, MATCH(Selection_Hide2!$A353, 'Full set Core Client Indicator'!$A$3:$A$351, 0), MATCH(Selection_Hide2!D$5, 'Full set Core Client Indicator'!$A$3:$AB$3, 0))=\"\", \"\",  INDEX('Full set Core Client Indicator'!$A$3:$AB$351, MATCH(Selection_Hide2!$A353, 'Full set Core Client Indicator'!$A$3:$A$351, 0), MATCH(Selection_Hide2!D$5, 'Full set Core Client Indicator'!$A$3:$AB$3, 0))), \"\")","v":""},{"$f":"IF(D353<>\"\", IF(INDEX('Full set Core Client Indicator'!$A$3:$AB$351, MATCH(Selection_Hide2!$A353, 'Full set Core Client Indicator'!$A$3:$A$351, 0), MATCH(Selection_Hide2!E$5, 'Full set Core Client Indicator'!$A$3:$AB$3, 0))=\"\", \"\",  INDEX('Full set Core Client Indicator'!$A$3:$AB$351, MATCH(Selection_Hide2!$A353, 'Full set Core Client Indicator'!$A$3:$A$351, 0), MATCH(Selection_Hide2!E$5, 'Full set Core Client Indicator'!$A$3:$AB$3, 0))), \"\")","v":""},{"$f":"IF(E353<>\"\", IF(INDEX('Full set Core Client Indicator'!$A$3:$AB$351, MATCH(Selection_Hide2!$A353, 'Full set Core Client Indicator'!$A$3:$A$351, 0), MATCH(Selection_Hide2!F$5, 'Full set Core Client Indicator'!$A$3:$AB$3, 0))=\"\", \"\",  INDEX('Full set Core Client Indicator'!$A$3:$AB$351, MATCH(Selection_Hide2!$A353, 'Full set Core Client Indicator'!$A$3:$A$351, 0), MATCH(Selection_Hide2!F$5, 'Full set Core Client Indicator'!$A$3:$AB$3, 0))), \"\")","v":""},{"$f":"IF(F353<>\"\", IF(INDEX('Full set Core Client Indicator'!$A$3:$AB$351, MATCH(Selection_Hide2!$A353, 'Full set Core Client Indicator'!$A$3:$A$351, 0), MATCH(Selection_Hide2!G$5, 'Full set Core Client Indicator'!$A$3:$AB$3, 0))=\"\", \"\",  INDEX('Full set Core Client Indicator'!$A$3:$AB$351, MATCH(Selection_Hide2!$A353, 'Full set Core Client Indicator'!$A$3:$A$351, 0), MATCH(Selection_Hide2!G$5, 'Full set Core Client Indicator'!$A$3:$AB$3, 0))), \"\")","v":""},{"$f":"IF(G353<>\"\", IF(INDEX('Full set Core Client Indicator'!$A$3:$AB$351, MATCH(Selection_Hide2!$A353, 'Full set Core Client Indicator'!$A$3:$A$351, 0), MATCH(Selection_Hide2!H$5, 'Full set Core Client Indicator'!$A$3:$AB$3, 0))=\"\", \"\",  INDEX('Full set Core Client Indicator'!$A$3:$AB$351, MATCH(Selection_Hide2!$A353, 'Full set Core Client Indicator'!$A$3:$A$351, 0), MATCH(Selection_Hide2!H$5, 'Full set Core Client Indicator'!$A$3:$AB$3, 0))), \"\")","v":""},{"$f":"IF(H353<>\"\", IF(INDEX('Full set Core Client Indicator'!$A$3:$AB$351, MATCH(Selection_Hide2!$A353, 'Full set Core Client Indicator'!$A$3:$A$351, 0), MATCH(Selection_Hide2!I$5, 'Full set Core Client Indicator'!$A$3:$AB$3, 0))=\"\", \"\",  INDEX('Full set Core Client Indicator'!$A$3:$AB$351, MATCH(Selection_Hide2!$A353, 'Full set Core Client Indicator'!$A$3:$A$351, 0), MATCH(Selection_Hide2!I$5, 'Full set Core Client Indicator'!$A$3:$AB$3, 0))), \"\")","v":""},{"$f":"IF(I353<>\"\", IF(INDEX('Full set Core Client Indicator'!$A$3:$AB$351, MATCH(Selection_Hide2!$A353, 'Full set Core Client Indicator'!$A$3:$A$351, 0), MATCH(Selection_Hide2!J$5, 'Full set Core Client Indicator'!$A$3:$AB$3, 0))=\"\", \"\",  INDEX('Full set Core Client Indicator'!$A$3:$AB$351, MATCH(Selection_Hide2!$A353, 'Full set Core Client Indicator'!$A$3:$A$351, 0), MATCH(Selection_Hide2!J$5, 'Full set Core Client Indicator'!$A$3:$AB$3, 0))), \"\")","v":""},{"$f":"IF(J353<>\"\", IF(INDEX('Full set Core Client Indicator'!$A$3:$AB$351, MATCH(Selection_Hide2!$A353, 'Full set Core Client Indicator'!$A$3:$A$351, 0), MATCH(Selection_Hide2!K$5, 'Full set Core Client Indicator'!$A$3:$AB$3, 0))=\"\", \"\",  INDEX('Full set Core Client Indicator'!$A$3:$AB$351, MATCH(Selection_Hide2!$A353, 'Full set Core Client Indicator'!$A$3:$A$351, 0), MATCH(Selection_Hide2!K$5, 'Full set Core Client Indicator'!$A$3:$AB$3, 0))), \"\")","v":""},{"$f":"IF(K353<>\"\", IF(INDEX('Full set Core Client Indicator'!$A$3:$AB$351, MATCH(Selection_Hide2!$A353, 'Full set Core Client Indicator'!$A$3:$A$351, 0), MATCH(Selection_Hide2!L$5, 'Full set Core Client Indicator'!$A$3:$AB$3, 0))=\"\", \"\",  INDEX('Full set Core Client Indicator'!$A$3:$AB$351, MATCH(Selection_Hide2!$A353, 'Full set Core Client Indicator'!$A$3:$A$351, 0), MATCH(Selection_Hide2!L$5, 'Full set Core Client Indicator'!$A$3:$AB$3, 0))), \"\")","v":""},{"$f":"IF(L353<>\"\", IF(INDEX('Full set Core Client Indicator'!$A$3:$AB$351, MATCH(Selection_Hide2!$A353, 'Full set Core Client Indicator'!$A$3:$A$351, 0), MATCH(Selection_Hide2!M$5, 'Full set Core Client Indicator'!$A$3:$AB$3, 0))=\"\", \"\",  INDEX('Full set Core Client Indicator'!$A$3:$AB$351, MATCH(Selection_Hide2!$A353, 'Full set Core Client Indicator'!$A$3:$A$351, 0), MATCH(Selection_Hide2!M$5, 'Full set Core Client Indicator'!$A$3:$AB$3, 0))), \"\")","v":""},{"$f":"IF(M353<>\"\", IF(INDEX('Full set Core Client Indicator'!$A$3:$AB$351, MATCH(Selection_Hide2!$A353, 'Full set Core Client Indicator'!$A$3:$A$351, 0), MATCH(Selection_Hide2!N$5, 'Full set Core Client Indicator'!$A$3:$AB$3, 0))=\"\", \"\",  INDEX('Full set Core Client Indicator'!$A$3:$AB$351, MATCH(Selection_Hide2!$A353, 'Full set Core Client Indicator'!$A$3:$A$351, 0), MATCH(Selection_Hide2!N$5, 'Full set Core Client Indicator'!$A$3:$AB$3, 0))), \"\")","v":""},{"$f":"IF(N353<>\"\", IF(INDEX('Full set Core Client Indicator'!$A$3:$AB$351, MATCH(Selection_Hide2!$A353, 'Full set Core Client Indicator'!$A$3:$A$351, 0), MATCH(Selection_Hide2!O$5, 'Full set Core Client Indicator'!$A$3:$AB$3, 0))=\"\", \"\",  INDEX('Full set Core Client Indicator'!$A$3:$AB$351, MATCH(Selection_Hide2!$A353, 'Full set Core Client Indicator'!$A$3:$A$351, 0), MATCH(Selection_Hide2!O$5, 'Full set Core Client Indicator'!$A$3:$AB$3, 0))), \"\")","v":""},{"$f":"IF(O353<>\"\", IF(INDEX('Full set Core Client Indicator'!$A$3:$AB$351, MATCH(Selection_Hide2!$A353, 'Full set Core Client Indicator'!$A$3:$A$351, 0), MATCH(Selection_Hide2!P$5, 'Full set Core Client Indicator'!$A$3:$AB$3, 0))=\"\", \"\",  INDEX('Full set Core Client Indicator'!$A$3:$AB$351, MATCH(Selection_Hide2!$A353, 'Full set Core Client Indicator'!$A$3:$A$351, 0), MATCH(Selection_Hide2!P$5, 'Full set Core Client Indicator'!$A$3:$AB$3, 0))), \"\")","v":""},{"$f":"IF(P353<>\"\", IF(INDEX('Full set Core Client Indicator'!$A$3:$AB$351, MATCH(Selection_Hide2!$A353, 'Full set Core Client Indicator'!$A$3:$A$351, 0), MATCH(Selection_Hide2!Q$5, 'Full set Core Client Indicator'!$A$3:$AB$3, 0))=\"\", \"\",  INDEX('Full set Core Client Indicator'!$A$3:$AB$351, MATCH(Selection_Hide2!$A353, 'Full set Core Client Indicator'!$A$3:$A$351, 0), MATCH(Selection_Hide2!Q$5, 'Full set Core Client Indicator'!$A$3:$AB$3, 0))), \"\")","v":""},{"$f":"IF(Q353<>\"\", IF(INDEX('Full set Core Client Indicator'!$A$3:$AB$351, MATCH(Selection_Hide2!$A353, 'Full set Core Client Indicator'!$A$3:$A$351, 0), MATCH(Selection_Hide2!R$5, 'Full set Core Client Indicator'!$A$3:$AB$3, 0))=\"\", \"\",  INDEX('Full set Core Client Indicator'!$A$3:$AB$351, MATCH(Selection_Hide2!$A353, 'Full set Core Client Indicator'!$A$3:$A$351, 0), MATCH(Selection_Hide2!R$5, 'Full set Core Client Indicator'!$A$3:$AB$3, 0))), \"\")","v":""},{"$f":"IF(R353<>\"\", IF(INDEX('Full set Core Client Indicator'!$A$3:$AB$351, MATCH(Selection_Hide2!$A353, 'Full set Core Client Indicator'!$A$3:$A$351, 0), MATCH(Selection_Hide2!S$5, 'Full set Core Client Indicator'!$A$3:$AB$3, 0))=\"\", \"\",  INDEX('Full set Core Client Indicator'!$A$3:$AB$351, MATCH(Selection_Hide2!$A353, 'Full set Core Client Indicator'!$A$3:$A$351, 0), MATCH(Selection_Hide2!S$5, 'Full set Core Client Indicator'!$A$3:$AB$3, 0))), \"\")","v":""},{"$f":"IF(S353<>\"\", IF(INDEX('Full set Core Client Indicator'!$A$3:$AB$351, MATCH(Selection_Hide2!$A353, 'Full set Core Client Indicator'!$A$3:$A$351, 0), MATCH(Selection_Hide2!T$5, 'Full set Core Client Indicator'!$A$3:$AB$3, 0))=\"\", \"\",  INDEX('Full set Core Client Indicator'!$A$3:$AB$351, MATCH(Selection_Hide2!$A353, 'Full set Core Client Indicator'!$A$3:$A$351, 0), MATCH(Selection_Hide2!T$5, 'Full set Core Client Indicator'!$A$3:$AB$3, 0))), \"\")","v":""},{"$f":"IF(T353<>\"\", IF(INDEX('Full set Core Client Indicator'!$A$3:$AB$351, MATCH(Selection_Hide2!$A353, 'Full set Core Client Indicator'!$A$3:$A$351, 0), MATCH(Selection_Hide2!U$5, 'Full set Core Client Indicator'!$A$3:$AB$3, 0))=\"\", \"\",  INDEX('Full set Core Client Indicator'!$A$3:$AB$351, MATCH(Selection_Hide2!$A353, 'Full set Core Client Indicator'!$A$3:$A$351, 0), MATCH(Selection_Hide2!U$5, 'Full set Core Client Indicator'!$A$3:$AB$3, 0))), \"\")","v":""},{"$f":"IF(U353<>\"\", IF(INDEX('Full set Core Client Indicator'!$A$3:$AB$351, MATCH(Selection_Hide2!$A353, 'Full set Core Client Indicator'!$A$3:$A$351, 0), MATCH(Selection_Hide2!V$5, 'Full set Core Client Indicator'!$A$3:$AB$3, 0))=\"\", \"\",  INDEX('Full set Core Client Indicator'!$A$3:$AB$351, MATCH(Selection_Hide2!$A353, 'Full set Core Client Indicator'!$A$3:$A$351, 0), MATCH(Selection_Hide2!V$5, 'Full set Core Client Indicator'!$A$3:$AB$3, 0))), \"\")","v":""},{"$f":"IF(V353<>\"\", IF(INDEX('Full set Core Client Indicator'!$A$3:$AB$351, MATCH(Selection_Hide2!$A353, 'Full set Core Client Indicator'!$A$3:$A$351, 0), MATCH(Selection_Hide2!W$5, 'Full set Core Client Indicator'!$A$3:$AB$3, 0))=\"\", \"\",  INDEX('Full set Core Client Indicator'!$A$3:$AB$351, MATCH(Selection_Hide2!$A353, 'Full set Core Client Indicator'!$A$3:$A$351, 0), MATCH(Selection_Hide2!W$5, 'Full set Core Client Indicator'!$A$3:$AB$3, 0))), \"\")","v":""},{"$f":"IF(W353<>\"\", IF(INDEX('Full set Core Client Indicator'!$A$3:$AB$351, MATCH(Selection_Hide2!$A353, 'Full set Core Client Indicator'!$A$3:$A$351, 0), MATCH(Selection_Hide2!X$5, 'Full set Core Client Indicator'!$A$3:$AB$3, 0))=\"\", \"\",  INDEX('Full set Core Client Indicator'!$A$3:$AB$351, MATCH(Selection_Hide2!$A353, 'Full set Core Client Indicator'!$A$3:$A$351, 0), MATCH(Selection_Hide2!X$5, 'Full set Core Client Indicator'!$A$3:$AB$3, 0))), \"\")","v":""},{"$f":"IF(X353<>\"\", IF(INDEX('Full set Core Client Indicator'!$A$3:$AB$351, MATCH(Selection_Hide2!$A353, 'Full set Core Client Indicator'!$A$3:$A$351, 0), MATCH(Selection_Hide2!Y$5, 'Full set Core Client Indicator'!$A$3:$AB$3, 0))=\"\", \"\",  INDEX('Full set Core Client Indicator'!$A$3:$AB$351, MATCH(Selection_Hide2!$A353, 'Full set Core Client Indicator'!$A$3:$A$351, 0), MATCH(Selection_Hide2!Y$5, 'Full set Core Client Indicator'!$A$3:$AB$3, 0))), \"\")","v":""},{"$f":"IF(Y353<>\"\", IF(INDEX('Full set Core Client Indicator'!$A$3:$AB$351, MATCH(Selection_Hide2!$A353, 'Full set Core Client Indicator'!$A$3:$A$351, 0), MATCH(Selection_Hide2!Z$5, 'Full set Core Client Indicator'!$A$3:$AB$3, 0))=\"\", \"\",  INDEX('Full set Core Client Indicator'!$A$3:$AB$351, MATCH(Selection_Hide2!$A353, 'Full set Core Client Indicator'!$A$3:$A$351, 0), MATCH(Selection_Hide2!Z$5, 'Full set Core Client Indicator'!$A$3:$AB$3, 0))), \"\")","v":""},{"$f":"IF(Z353<>\"\", IF(INDEX('Full set Core Client Indicator'!$A$3:$AB$351, MATCH(Selection_Hide2!$A353, 'Full set Core Client Indicator'!$A$3:$A$351, 0), MATCH(Selection_Hide2!AA$5, 'Full set Core Client Indicator'!$A$3:$AB$3, 0))=\"\", \"\",  INDEX('Full set Core Client Indicator'!$A$3:$AB$351, MATCH(Selection_Hide2!$A353, 'Full set Core Client Indicator'!$A$3:$A$351, 0), MATCH(Selection_Hide2!AA$5, 'Full set Core Client Indicator'!$A$3:$AB$3, 0))), \"\")","v":""},{"$f":"IF(AA353<>\"\", IF(INDEX('Full set Core Client Indicator'!$A$3:$AB$351, MATCH(Selection_Hide2!$A353, 'Full set Core Client Indicator'!$A$3:$A$351, 0), MATCH(Selection_Hide2!AB$5, 'Full set Core Client Indicator'!$A$3:$AB$3, 0))=\"\", \"\",  INDEX('Full set Core Client Indicator'!$A$3:$AB$351, MATCH(Selection_Hide2!$A353, 'Full set Core Client Indicator'!$A$3:$A$351, 0), MATCH(Selection_Hide2!AB$5, 'Full set Core Client Indicator'!$A$3:$AB$3, 0))), \"\")","v":""}]

{"sheet":"Selection_Hide1","index":6,"n_rows":54,"n_cols":25,"rows_kept":54,"cut":false,"hidden":true,"merged":[]}
[null,null,{"$f":"Selection_Hide2!$C$3","v":"Health"},null,null,"Outcome domain","Economic",null,"Outcome domain","Education and Skills",null,"Outcome domain","Empowerment",null,"Outcome domain","Health",null,"Outcome domain","Home",null,"Outcome domain","Safety",null,"Outcome domain","Social and Community"]
[]
["Row Labels",null,null,null,null,"Row Labels",null,null,"Row Labels",null,null,"Row Labels",null,null,"Row Labels",null,null,"Row Labels",null,null,"Row Labels",null,null,"Row Labels"]
["Economic",null,{"$f":"IF($C$1=$G$1, F4, IF($C$1=$J$1, I4, IF($C$1=$M$1, L4, IF($C$1=$P$1, O4, IF($C$1=$S$1, R4, IF($C$1=$V$1, U4, IF($C$1=$Y$1, X4)))))))","v":"100"},null,null,6,null,null,"309",null,null,331,null,null,"100",null,null,"129",null,null,318,null,null,"235"]
["Education and Skills",null,{"$f":"IF($C$1=$G$1, F5, IF($C$1=$J$1, I5, IF($C$1=$M$1, L5, IF($C$1=$P$1, O5, IF($C$1=$S$1, R5, IF($C$1=$V$1, U5, IF($C$1=$Y$1, X5)))))))","v":"107"},null,null,10,null,null,"316",null,null,"300",null,null,"107",null,null,"131",null,null,338,null,null,"238"]
["Empowerment",null,"113",null,null,11,null,null,"324",null,null,"317",null,null,"113",null,null,"135",null,null,339,null,null,"244"]
["Health",null,"114",null,null,12,null,null,"335",null,null,"332",null,null,"114",null,null,"136",null,null,"178",null,null,"245"]
["Home",null,"115",null,null,14,null,null,"336",null,null,"68",null,null,"115",null,null,"138",null,null,"180",null,null,"247"]
["Safety",null,"116",null,null,18,null,null,"49",null,null,"69",null,null,"116",null,null,"144",null,null,"181",null,null,"258"]
["Social and Community",null,"117",null,null,19,null,null,"50",null,null,"70",null,null,"117",null,null,"145",null,null,"188",null,null,"262"]
["Grand Total",null,"119",null,null,20,null,null,"52",null,null,"73",null,null,"119",null,null,"147",null,null,"189",null,null,"319"]
[null,null,"121",null,null,29,null,null,"54",null,null,"75",null,null,"121",null,null,"152",null,null,"191",null,null,"320"]
[null,null,"122",null,null,39,null,null,"58",null,null,"77",null,null,"122",null,null,"160",null,null,"196",null,null,"321"]
[null,null,"264",null,null,"311",null,null,"59",null,null,"Grand Total",null,null,"264",null,null,"161",null,null,"201",null,null,"322"]
[null,null,"297",null,null,"Grand Total",null,null,"63",null,null,null,null,null,"297",null,null,"162",null,null,"202",null,null,"325"]
[null,null,"308",null,null,null,null,null,"64",null,null,null,null,null,"308",null,null,"167",null,null,"203",null,null,"329"]
[null,null,"323",null,null,null,null,null,"66",null,null,null,null,null,"323",null,null,"168",null,null,"205",null,null,"Grand Total"]
[null,null,"85",null,null,null,null,null,"67",null,null,null,null,null,"85",null,null,"315",null,null,"206"]
[null,null,"87",null,null,null,null,null,"Grand Total",null,null,null,null,null,"87",null,null,"327",null,null,"207"]
[null,null,"88",null,null,null,null,null,null,null,null,null,null,null,"88",null,null,"328",null,null,"215"]
[null,null,"89",null,null,null,null,null,null,null,null,null,null,null,"89",null,null,"334",null,null,"217"]
[null,null,"90",null,null,null,null,null,null,null,null,null,null,null,"90",null,null,"337",null,null,"222"]
[null,null,"91",null,null,null,null,null,null,null,null,null,null,null,"91",null,null,"Grand Total",null,null,"226"]
[null,null,"98",null,null,null,null,null,null,null,null,null,null,null,"98",null,null,null,null,null,"227"]
[null,null,"99",null,null,null,null,null,null,null,null,null,null,null,"99",null,null,null,null,null,"231"]
[null,null,"Grand Total",null,null,null,null,null,null,null,null,null,null,null,"Grand Total",null,null,null,null,null,"288"]
[null,null,0,null,null,null,null,null,null,null,null,null,null,null,null,null,null,null,null,null,"301"]
[null,null,0,null,null,null,null,null,null,null,null,null,null,null,null,null,null,null,null,null,"326"]
[null,null,0,null,null,null,null,null,null,null,null,null,null,null,null,null,null,null,null,null,"333"]
[null,null,0,null,null,null,null,null,null,null,null,null,null,null,null,null,null,null,null,null,"Grand Total"]
[null,null,0]
[null,null,0]
[null,null,0]
[null,null,0]
[null,null,0]
[null,null,0]
[null,null,0]
[null,null,0]
[null,null,0]
[null,null,0]
[null,null,0]
[null,null,0]
[null,null,0]
[null,null,0]
[null,null,0]
[null,null,0]
[null,null,0]
[null,null,0]
[null,null,0]
[null,null,0]
[null,null,0]
[null,null,0]
[null,null,0]
[null,null,0]

{"sheet":"Detailed scoring","index":7,"n_rows":119,"n_cols":13,"rows_kept":119,"cut":false,"hidden":false,"merged":[[1,0,1,12]]}
[]
["Detailed scoring for indicators"]
["ID","Outcome domain","Client outcome","Indicator","Notes on rationale for scoring","Measurability","Validity","Reliability","Sensitivity","Average score","Acceptability","Interpretability","Average total score"]
[6,"Economic","Adults and young people who are able to work are employed","Proportion (%) of people who report underemployment","Sensitivity - the indicator is self report and thus can be influenced by client's memory and level of honesty \nValidity - even if a person is underemployed they are still in employment which is the outcome, however underemployment is an important measure of employment quality and financial security",3,2,3,3,{"$f":"AVERAGE(F4:I4)","v":2.75},3,3,{"$f":"AVERAGE(F4:I4,K4:L4)","v":2.8333333333333335}]
[10,"Economic","Adults and young people who are able to work are employed","Proportion (%) of people who are unemployed",null,3,3,3,3,3,3,3,3]
[11,"Economic","Adults and young people who are able to work are in continuous employment","Proportion (%) of people who were employed continuously in past 12 months","Sensitivity - does not account for differences in the length of the gap between employment (e.g. 2 days vs. 2 months would be rated the same)",3,3,3,2,2.75,3,3,2.8333333333333335]
[12,"Economic","Adults and young people are able to participate in education, training or the labour force","Proportion (%) of people who are unemployed and currently enrolled in some form of education or training",null,3,3,3,3,3,3,3,3]
[14,"Economic","People have financial literacy and financial management skills","Proportion (%) of people who report having the financial skills to manage their finances","Sensitivity - the indicator is self report and thus can be influenced by client's memory and level of honesty \nValidity - self confidence in a person's ability is not an objective measure of a persons skills",3,null,3,2,2.6666666666666665,3,3,2.8]
[18,"Economic","People have financial security and autonomy​","Proportion (%) of people who report that their household spends more money than it gets","Sensitivity - the indicator is self report and thus can be influenced by client's memory and level of honesty ",3,3,3,2,2.75,3,3,2.8333333333333335]
[19,"Economic","People have financial security and autonomy​","Proportion (%) of people who could not raise $2,000 within a week","Sensitivity - the indicator is self report and thus can be influenced by client's memory and level of honesty ",3,3,3,2,2.75,3,3,2.8333333333333335]
[20,"Economic","People have financial security and autonomy​","Proportion (%) of people who could not pay electricity, gas or telephone bills on time","Sensitivity - the indicator is self report and thus can be influenced by client's memory and level of honesty ",3,3,3,2,2.75,3,3,2.8333333333333335]
[29,"Economic","People have financial security and autonomy​","Proportion (%) of people who have experienced a shortage of money and subsequently could not pay mortgage or rent","Sensitivity - the indicator is self report and thus can be influenced by client's memory and level of honesty ",3,3,3,2,2.75,3,3,2.8333333333333335]
[39,"Economic","People have financial security and autonomy​","Proportion (%) of children living in families with secure parental employment","Validity and Sensitivity - there is a link between employment and financial stability however a person can be employed but still financial unstable",3,2,3,2,2.5,3,3,2.6666666666666665]
["49","Education and Skills","Children and young people participate in education or skills training","Proportion (%) of students who attended school 90 per cent or more of the time",null,3,3,3,3,3,3,3,3]
["50","Education and Skills","People achieve their educational aspirations","Proportion (%) of people who complete Year 12 or equivalent","Interpretability - can be influence by changes in the leaving age for school",3,3,3,3,3,3,3,3]
["52","Education and Skills","People achieve their educational aspirations","Proportion (%) of people with a vocational or higher education qualification",null,3,3,3,3,3,3,3,3]
["54","Education and Skills","People are engaged in their learning and strive for excellence in their education","Proportion (%) of children and young people who report feeling motivated to pursue education or attend school","Sensitivity -  the indicator is self report and thus can be influenced by client's memory and level of honesty",3,3,3,2,2.75,3,3,2.8333333333333335]
["58","Education and Skills","People are engaged in their learning and strive for excellence in their education","Proportion (%) of students at or above the national minimum standard for literacy and numeracy (NAPLAN) ",null,3,3,3,3,3,3,3,3]
["59","Education and Skills","People are engaged in their learning and strive for excellence in their education","Proportion (%) of students who achieve an ATAR of 50.0 or above","Sensitivity - ATAR not all students receive an ATAR\nInterpretability - there is no clear way that this is measured or reported so it is unclear what this indicator means ",3,3,3,2,2.75,3,2,2.6666666666666665]
["63","Education and Skills","People are engaged in their learning and strive for excellence in their education","Proportion (%) of students who participate in NAPLAN assessments","Sensitivity - as the indicator does not capture reason for not attending there may be false positives as children did not attend due to health reasons (e.g. sick on the day of exams).",3,3,3,2,2.75,3,3,2.8333333333333335]
["64","Education and Skills","People are ready at each point of educational transition (e.g. have education and skills required to be work or school ready)","Proportion (%) of children developmentally vulnerable on two or more Australian Early Development Census domains",null,3,3,3,3,3,3,3,3]
["66","Education and Skills","People are ready at each point of educational transition (e.g. have education and skills required to be work or school ready)","Proportion (%) of children attending early childhood education programs for 600 hours or more in the year prior to starting kindergarten",null,3,3,3,3,3,3,3,3]
["67","Education and Skills","People are ready at each point of educational transition (e.g. have education and skills required to be work or school ready)","Proportion (%) of people who receive job skills training and employment support",null,3,3,3,3,3,3,3,3]
["68","Empowerment","People are in charge of their own lives and feel a sense of choice and control (self-determination)","Proportion (%) of people who feel that they are able to control and influence their life outcomes","Sensitivity - the indicator is self report and thus can be influenced by client's memory and level of honesty ",3,3,3,2,2.75,3,3,2.8333333333333335]
["69","Empowerment","People are in charge of their own lives and feel a sense of choice and control (self-determination)","Proportion (%) of people who report having involvement in decision-making","Sensitivity - the indicator is self report and thus can be influenced by client's memory and level of honesty ",3,3,3,2,2.75,3,3,2.8333333333333335]
["70","Empowerment","People are in charge of their own lives and feel a sense of choice and control (self-determination)","Proportion (%) of people who report having choice and control over the services they receive","Sensitivity - the indicator is self report and thus can be influenced by client's memory and level of honesty ",3,3,3,2,2.75,3,3,2.8333333333333335]
["73","Empowerment","People have a belief in self ","Proportion (%) of people who have high self-efficacy","Sensitivity -  the indicator is self report and thus can be influenced by client's memory and level of honesty. \nMeasurability - psychological concepts are subjective.",2,3,3,2,2.5,3,3,2.6666666666666665]
["75","Empowerment","People are reslient and are able to tackle major life challenges","Proportion (%) of people who feel able to cope with life events","Sensitivity - the indicator is self report and thus can be influenced by client's memory and level of honesty ",3,3,3,2,2.75,3,3,2.8333333333333335]
["77","Empowerment","People have hope for the future","Proportion (%) of people who report having hope for their future","Sensitivity -  the indicator is self report and thus can be influenced by client's memory and level of honesty. \nMeasurability - psychological concepts are subjective.",2,3,3,2,2.5,3,3,2.6666666666666665]
["85","Health","Mothers have healthy pregnancies and babies have good birth outcomes","Proportion (%) of mothers who smoke during pregnancy","Sensitivity - the indicator is self report and thus can be influenced by client's memory and level of honesty.",3,3,3,2,2.75,3,3,2.8333333333333335]
["87","Health","Mothers have healthy pregnancies and babies have good birth outcomes","Proportion (%) of live-born infants below a healthy weight at birth",null,3,3,3,3,3,3,3,3]
["88","Health","Mothers have healthy pregnancies and babies have good birth outcomes","Proportion (%) of women who report substance misuse during pregnancy","Sensitivity - the indicator is self report and thus can be influenced by client's memory and level of honesty.",3,3,3,2,2.75,3,3,2.8333333333333335]
["89","Health","Mothers have healthy pregnancies and babies have good birth outcomes","Proportion (%) of women who present for antenatal care programs",null,3,3,3,3,3,3,3,3]
["90","Health","Mothers have healthy pregnancies and babies have good birth outcomes","Proportion (%) of infants exclusively breastfed at 4 months of age","Sensitivity - the indicator is self report and thus can be influenced by client's memory and level of honesty",3,3,3,2,2.75,3,3,2.8333333333333335]
["91","Health","People have a healthy lifestyle and avoid risk taking behaviours that negatively impact their health","Proportion (%) of people who report levels of physical activity below nationally recommended levels","Sensitivity - the indicator is self report and thus can be influenced by client's memory and level of honesty.",3,3,3,2,2.75,3,3,2.8333333333333335]
["98","Health","People have a healthy lifestyle and avoid risk taking behaviours that negatively impact their health","Proportion (%) of people who currently smoke tobacco ","Sensitivity - the indicator is self report and thus can be influenced by client's memory and level of honesty ",3,3,3,2,2.75,3,3,2.8333333333333335]
["99","Health","People have a healthy lifestyle and avoid risk taking behaviours that negatively impact their health","Proportion (%) of adults currently consuming alcohol at levels posing long-term risk to health","Sensitivity - the indicator is self report and thus can be influenced by client's memory and level of honesty.",3,3,3,2,2.75,3,3,2.8333333333333335]
["100","Health","People have a healthy lifestyle and avoid risk taking behaviours that negatively impact their health","Proportion (%) of people who have not used an illicit substance within the last 12 months","Sensitivity - the indicator is self report and thus can be influenced by client's memory and level of honesty.",3,3,3,2,2.75,3,3,2.8333333333333335]
["107","Health","People have good mental health and social and emotional wellbeing","Proportion (%) of people who report having high levels of psychological distress","Sensitivity -  the indicator is self report and thus can be influenced by client's memory and level of honesty. \nMeasurability - psychological concepts are subjective.",2,3,3,2,2.5,3,3,2.6666666666666665]
["113","Health","People have good mental health and social and emotional wellbeing","Suicide rate per 100,000 population by age",null,3,3,3,3,3,3,3,3]
["114","Health","People have good mental health and social and emotional wellbeing","Proportion (%) of people who report often feeling lonely","Sensitivity -  the indicator is self report and thus can be influenced by client's memory and level of honesty. \nMeasurability - psychological concepts are subjective.",2,3,3,2,2.5,3,3,2.6666666666666665]
["115","Health","People have good mental health and social and emotional wellbeing","Proportion (%) of children with good social and emotional functioning","Reliability - relative measure and will produce different results\nSensitivity -  the indicator is self report and thus can be influenced by client's memory and level of honesty. ",3,3,2,2,2.5,3,3,2.6666666666666665]
["116","Health","People have good mental health and social and emotional wellbeing","Proportion (%) of children aged 0-5 years with developmental delays",null,3,3,3,3,3,3,3,3]
["117","Health","People have good physical health","Proportion (%) of children who are free from tooth decay",null,3,3,3,3,3,3,3,3]
["119","Health","People have good physical health","Proportion (%) of people who report having excellent/very good/good/fair/poor health","Sensitivity - the indicator is self report and thus can be influenced by client's memory and level of honesty.",3,3,3,2,2.75,3,3,2.8333333333333335]
["121","Health","People have good physical health","Proportion (%) of children and young people with up-to-date immunisation record",null,3,3,3,3,3,3,3,3]
["122","Health","People have good physical health","Proportion (%) of people who are overweight or obese",null,3,3,3,3,3,3,3,3]
["129","Home","Housing is affordable for people","Proportion (%) of people in the bottom 40 per cent of the income distribution whose housing costs exceed 30 per cent of income",null,3,3,3,3,3,3,3,3]
["131","Home","Housing is appropriate to occupants’ needs","Proportion (%) of people who have amenities that meet their needs","Sensitivity - the indicator is self report and thus can be influenced by client's memory and level of honesty ",3,3,3,2,2.75,3,3,2.8333333333333335]
["135","Home","Housing is appropriate to occupants’ needs","Proportion (%) of people who live in dwellings considered overcrowded","Sensitivity - the indicator is self report and thus can be influenced by client's memory and level of honesty ",3,3,3,2,2.75,3,3,2.8333333333333335]
["136","Home","People live in housing with good condition and with good access to local facilities and services","Proportion (%) of people living in homes that meet safety standards",null,3,3,3,3,3,3,3,3]
["138","Home","People have stability in their home","Proportion (%) of the people in Transitional Housing",null,3,3,3,3,3,3,3,3]
["144","Home","People have stability in their home","Proportion (%) of people with frequent housing changes",null,3,3,3,3,3,3,3,3]
["145","Home","People have stability in their home","Proportion (%) of people who are homeless","Sensitivity - the indicator is self report and thus can be influenced by client's memory and level of honesty ",3,3,3,2,2.75,3,3,2.8333333333333335]
["147","Home","People have stability in their home","Proportion (%) of people who report being secure in their accommodation","Sensitivity - the indicator is self report and thus can be influenced by client's memory and level of honesty ",3,3,3,2,2.75,3,3,2.8333333333333335]
["152","Home","People have stability in their home","Proportion (%) of homeless people who move from Specialist Homelessness Services to stable accommodation",null,3,3,3,3,3,3,3,3]
["160","Home","People have stability in their home","Proportion (%) of children and young people in Out-of-Home- Care who have had 2 or fewer placement changes in the last 12 months",null,3,3,3,3,3,3,3,3]
["161","Home","People are able to live independent from housing support","Number of people that positively transition out of the social housing system",null,3,3,3,3,3,3,3,3]
["162","Home","People are able to live independent from housing support","Number of people that negatively exit out of the social housing system",null,3,3,3,3,3,3,3,3]
["167","Home","People live in housing with good condition and with good access to local facilities and services","Proportion (%) of people satisfied with the home they live in","Sensitivity - the indicator is self report and thus can be influenced by client's memory and level of honesty ",3,3,3,2,2.75,3,3,2.8333333333333335]
["168","Home","People live in housing with good condition and with good access to local facilities and services","Proportion (%) of people living in homes of acceptable standard","Sensitivity - the indicator is self report and thus can be influenced by client's memory and level of honesty ",3,3,3,2,2.75,3,3,2.8333333333333335]
["178","Safety","Children and young people grow up in families and communities that are stable and supportive with strong relationships","Proportion (%) of children and young people who report the presence of relationships that facilitate disclosure of safety and wellbeing concerns","Sensitivity - the indicator is self report and thus can be influenced by client's memory and level of honesty ",3,3,3,2,2.75,3,3,2.8333333333333335]
["180","Safety","Children and young people grow up in families and communities that are stable and supportive with strong relationships","Proportion (%) of children and young people who report high levels of emotional and social support","Reliability - relative measure and will produce different results\nSensitivity - the indicator is self report and thus can be influenced by client's memory and level of honesty ",3,3,2,2,2.5,3,3,2.6666666666666665]
["181","Safety","Parents, carers, and kin have the skills and capacity to keep children and young people safe at home","Proportion (%) of parents engaged in positive parenting techniques ","Sensitivity - the indicator is self report and thus can be influenced by client's memory and level of honesty.",3,3,3,2,2.75,3,3,2.8333333333333335]
["188","Safety","Parents, carers, and kin have the skills and capacity to keep children and young people safe at home","Proportion (%) of parents who have not engaged in risky and high-risk drinking patterns","Sensitivity - the indicator is self report and thus can be influenced by client's memory and level of honesty",3,3,3,2,2.75,3,3,2.8333333333333335]
["189","Safety","Parents, carers, and kin have the skills and capacity to keep children and young people safe at home","Proportion (%) of parents who have not used an illicit substance in the last 12 months","Sensitivity - the indicator is self report and thus can be influenced by client's memory and level of honesty",3,3,3,2,2.75,3,3,2.8333333333333335]
["191","Safety","People are physically and emotionally safe in their communities​","Rate of crimes against the person per 1,000","Sensitivity - not all incidences of abuse will be reported to authorities",3,3,3,2,2.75,3,3,2.8333333333333335]
["196","Safety","People are physically and emotionally safe in their communities​","Proportion (%) of people who report feeling safe in their neighbourhood","Sensitivity - the indicator is self report and thus can be influenced by client's memory and level of honesty.",3,3,3,2,{"$f":"AVERAGE(F68:I68)","v":2.75},3,3,{"$f":"AVERAGE(F68:I68,K68:L68)","v":2.8333333333333335}]
["201","Safety","People are physically and emotionally safe in their communities​","Proportion (%) of people who report being a victim of personal crime (i.e. physical assault, threatened assault, robbery or sexual assault) in the last 12 months","Sensitivity - the indicator is self report and thus can be influenced by client's memory and level of honesty.",3,3,3,2,2.75,3,3,2.8333333333333335]
["202","Safety","People are physically and emotionally safe in their communities​","Proportion (%) of people who report being bullied","Measurability - people may interpret threats  with different levels of seriousness \nSensitivity - the indicator is self report and thus can be influenced by client's memory and level of honesty.",2,3,3,2,2.5,3,3,2.6666666666666665]
["203","Safety","People are physically and emotionally safe in their communities​","Proportion (%) of people who experience discrimination or racism","Measurability - people may interpret threats  with different levels of seriousness \nSensitivity - the indicator is self report and thus can be influenced by client's memory and level of honesty.",2,3,3,2,2.5,3,3,2.6666666666666665]
["205","Safety","People are safe from abuse and neglect","Proportion (%) of children and young people re-reported at ROSH","Sensitivity - not all incidences of abuse will be reported to authorities",3,3,3,2,2.75,3,3,2.8333333333333335]
["206","Safety","People are safe from abuse and neglect","Rate of children and young people at Risk of Significant Harm (ROSH) per 1,000 of population","Sensitivity - not all incidences of abuse will be reported to authorities",3,3,3,2,2.75,3,3,2.8333333333333335]
["207","Safety","People are safe from abuse and neglect","Proportion (%) of children and young people in Out-of-Home-Care reported at ROSH post restoration","Sensitivity - not all incidences of abuse will be reported to authorities",3,3,3,2,2.75,3,3,2.8333333333333335]
["215","Safety","People are safe from abuse and neglect","Proportion (%) of children and young people assessed at high or very high risk",null,3,3,3,3,3,3,3,3]
["217","Safety","People are safe from abuse and neglect","Proportion (%) of people who report feeling safe at home","Sensitivity - the indicator is self report and thus can be influenced by client's memory and level of honesty.",3,3,3,2,2.75,3,3,2.8333333333333335]
["222","Safety","People are safe from domestic and family violence​","Proportion (%) of people who have been a victim of a reported instance of domestic and family violence","Sensitivity - not all domestic violence incidence are reported to the police \nInterpretability - change reporting rate may be included by social actability of reporting rather than a change in rate of occurrence",3,3,3,2,2.75,3,2,2.6666666666666665]
["226","Safety","People are safe from domestic and family violence​","Proportion (%) of domestic and family violence perpetrators re-offending within 12 months","Sensitivity - not all domestic violence incidence are reported to the police",3,3,3,2,2.75,3,3,2.8333333333333335]
["227","Safety","People are safe from domestic and family violence​","Proportion (%) of domestic and family violence victims that are re-victimised","Sensitivity - not all domestic violence incidence are reported to the police",3,3,3,2,2.75,3,3,2.8333333333333335]
["231","Safety","People feel that the importance of their family and culture is recognised, respected and understood","Proportion (%) of Aboriginal children and young people in Out-of-Home-Care managed by accredited Aboriginal community controlled organisations",null,3,3,3,3,3,3,3,3]
["235","Social and Community","People are connected to supportive relationships","Proportion (%) of people who report having a person(s) to lean on in times of trouble ","Sensitivity -  the indicator is self report and thus can be influenced by client's memory and level of honesty",3,3,3,2,2.75,3,3,2.8333333333333335]
["238","Social and Community","People are connected to supportive relationships","Proportion (%) of people who report having supportive relationships","Sensitivity -  the indicator is self report and thus can be influenced by client's memory and level of honesty",3,3,3,2,2.75,3,3,2.8333333333333335]
["244","Social and Community","People are connected to supportive relationships","Proportion (%) of people who report good social ties in their neighbourhood","Sensitivity -  the indicator is self report and thus can be influenced by client's memory and level of honesty",3,3,3,2,2.75,3,3,2.8333333333333335]
["245","Social and Community","People feel a sense of connection and belonging to their communities","Proportion (%) of people who report feeling a sense of belonging in the place and community where they live","Measurability - psychological concepts are subjective.\nSensitivity -  the indicator is self report and thus can be influenced by client's memory and level of honesty",2,3,3,2,2.5,3,3,2.6666666666666665]
["247","Social and Community","People feel a sense of connection and belonging to their communities","Proportion (%) of children and young people who report feeling a sense of belonging at school and peer acceptance","Measurability - psychological concepts are subjective.\nSensitivity -  the indicator is self report and thus can be influenced by client's memory and level of honesty",2,3,3,2,2.5,3,3,2.6666666666666665]
["258","Social and Community","People live in communities with good conditions and with good access to local facilities and services","Proportion (%) of people satisfied with the quality of their neighbourhood","Sensitivity -  the indicator is self report and thus can be influenced by client's memory and level of honesty",3,3,3,2,2.75,3,3,2.8333333333333335]
["262","Social and Community","People live in communities with good conditions and with good access to local facilities and services","Proportion (%) of people satisfied with access to services and facilities","Sensitivity -  the indicator is self report and thus can be influenced by client's memory and level of honesty",3,3,3,2,2.75,3,3,2.8333333333333335]
["264","Health","People have a healthy lifestyle and avoid risk taking behaviours that negatively impact their health","Age-specific birth rate for 15 to 19 year old women per 1,000 females",null,3,3,3,3,3,3,3,3]
["288","Safety","People are safe from abuse and neglect","Rate of children and young people entering care per 1,000 of population","Sensitivity - changes in this indicator can be due to resource or policy changes rather than a change in the level of safety of children",3,3,3,2,2.75,3,3,2.8333333333333335]
["297","Health","Aboriginal people heal from inter-generational trauma and loss","Proportion (%) of Aboriginal people who report that they know when and where to seek culturally appropriate support to prevent escalation to crisis","Sensitivity - the indicator is self report and thus can be influenced by client's memory and level of honesty ",3,3,3,2,2.75,3,3,2.8333333333333335]
["300","Empowerment","Aboriginal people are able to have a voice in community decision-making","Proportion (%) of Aboriginal people who report feeling heard in their community","Sensitivity - the indicator is self report and thus can be influenced by client's memory and level of honesty ",3,3,3,2,2.75,3,3,2.8333333333333335]
["301","Safety","People are safe from domestic and family violence​","Proportion (%) of people who report experiencing domestic and family violence in the last 12 months","Sensitivity - the indicator is self report and thus can be influenced by client's memory and level of honesty.",3,3,3,2,2.75,3,3,2.8333333333333335]
["308","Health","Mothers have healthy pregnancies and babies have good birth outcomes","Proportion (%) of mothers who experience high levels of maternal stress","Measurability - psychological concepts are subjective.\nSensitivity -  the indicator is self report and thus can be influenced by client's memory and level of honesty",2,3,3,2,2.5,3,3,2.6666666666666665]
["309","Education and Skills","People are ready at each point of educational transition (e.g. have education and skills required to be work or school ready)","Proportion (%) of children that are school ready according to Best Start",null,3,3,3,3,3,3,3,3]
["311","Economic","Adults and young people are able to participate in education, training or the labour force","Proportion (%) of people aged 16-64 currently employed or seeking employment",null,3,3,3,3,3,3,3,3]
["315","Home","Housing is appropriate to occupants’ needs","Proportion (%) of Aboriginal people who report that their home meets their cultural needs","Measurability - psychological concepts are subjective. I\nSensitivity -  the indicator is self report and thus can be influenced by client's memory and level of honesty",2,3,3,2,2.5,3,3,2.6666666666666665]
["316","Education and Skills","People are engaged in their learning and strive for excellence in their education","Proportion (%) of children and young people who experience an unplanned school move in the last 12 months","Validity - changing schools may not always have a negative impact on school engagement.",3,2,3,3,2.75,3,3,2.8333333333333335]
["317","Empowerment","Aboriginal people are able to have a voice in community decision-making","Proportion (%) of Aboriginal people who report feeling they have influence in community decision-making","Measurability - psychological concepts are subjective.\nSensitivity -  the indicator is self report and thus can be influenced by client's memory and level of honesty",2,3,3,2,2.5,3,3,2.6666666666666665]
["319","Social and community","People feel a sense of connection and belonging to their culture and identities","Proportion (%) of people who have knowledge of their language","Validity - having expertise in language does not mean a person feels connected to their culture",3,2,3,3,2.75,3,3,2.8333333333333335]
["320","Social and community","People feel a sense of connection and belonging to their culture and identities","Proportion (%) of people who feel a connection to their culture","Measurability - psychological concepts are subjective.\nSensitivity -  the indicator is self report and thus can be influenced by client's memory and level of honesty",2,3,3,2,2.5,3,3,2.6666666666666665]
["321","Social and community","People feel a sense of connection and belonging to their culture and identities","Proportion (%) of people who have knowledge of their culture","Validity - having knowledge of culture does not mean a person feels connected to their culture",3,2,3,3,2.75,3,3,2.8333333333333335]
["322","Social and community","People feel a sense of connection and belonging to their culture and identities","Proportion (%) of Aboriginal people who feel a connection to Country","Measurability - psychological concepts are subjective.\nSensitivity -  the indicator is self report and thus can be influenced by client's memory and level of honesty",2,3,3,2,2.5,3,3,2.6666666666666665]
["323","Health","Aboriginal people heal from inter-generational trauma and loss","Proportion (%) of children and young people in Out-of-Home-Care who have a parent who was also in Out-of-Home-Care",null,3,3,3,3,3,3,3,3]
["324","Education and Skills","People are engaged in their learning and strive for excellence in their education","Proportion (%) of people who are recorded as having low literacy levels",null,3,3,3,3,3,3,3,3]
["325","Social and community","People feel a sense of connection and belonging to their culture and identities","Proportion (%) of Aboriginal people who report having opportunities to practice their language","Sensitivity -  the indicator is self report and thus can be influenced by client's memory and level of honesty",3,3,2,3,2.75,3,3,2.8333333333333335]
["326","Safety","People feel that the importance of their family and culture is recognised, respected and understood","Proportion (%) of Aboriginal people who report having trust in provider of Government services","Measurability - psychological concepts are subjective.\nSensitivity -  the indicator is self report and thus can be influenced by client's memory and level of honesty",2,3,3,2,2.5,3,3,2.6666666666666665]
["327","Home","People are able to live independent from housing support","Number of people that neutrally transition out of the social housing system",null,3,3,3,3,3,3,3,3]
["328","Home","Aboriginal people are able to live on Country or in a community of belonging","Proportion (%) of Aboriginal people who make a choice to return to live on Country",null,3,3,3,3,3,3,3,3]
["329","Social and community","Aboriginal people know who their families are and are able to feel a connection to them","Proportion (%) of Aboriginal people who know who their family are",null,3,3,3,3,3,3,3,3]
["331","Empowerment","Aboriginal people are able to have a voice in community decision-making","Proportion (%) of Aboriginal people engaged in local decision- making forums",null,3,3,3,3,3,3,3,3]
["332","Empowerment","People have cultural empowerment","Proportion (%) of people who feel culturally confident","Measurability - psychological concepts are subjective.\nSensitivity -  the indicator is self report and thus can be influenced by client's memory and level of honesty",2,3,3,2,2.5,3,3,2.6666666666666665]
["333","Safety","People feel that the importance of their family and culture is recognised, respected and understood","Proportion (%) of Aboriginal children and young people in Out-of-Home-Care with an age appropriate cultural plan",null,3,3,3,3,3,3,3,3]
["334","Home","Aboriginal people are able to live on Country or in a community of belonging","Proportion (%) of Aboriginal people who have family living in their neighbourhood ",null,3,3,3,3,3,3,3,3]
["335","Education and Skills","People achieve their educational aspirations","Proportion (%) of children and young people who are below minimum standards who improve their performance to above minimum standards",null,3,3,3,3,3,3,3,3]
["336","Education and Skills","People achieve their educational aspirations","Proportion (%) of children and young people who are at or above minimum standards who either improve or maintain their performance",null,3,3,3,3,3,3,3,3]
["337","Home","People have stability in their home","Proportion of clients experiencing homelessness who had repeat periods of homelessness","Sensitivity - the indicator is self report and thus can be influenced by client's memory and level of honesty \nInterpretability - a decrease in this indicator may mean that people are having less episodes but they are longer",3,3,3,2,2.75,3,2,2.6666666666666665]
[338,"Safety","People feel that the importance of their family and culture is recognised, respected and understood","Proportion (%) of CALD people who report having trust in providers of Government services","Additional indicators added during final round of consultation"]
[339,"Safety","People feel that the importance of their family and culture is recognised, respected and understood","Proportion (%) of CALD people who report that they felt a service was respectful of their culture","Additional indicators added during final round of consultation"]
[318,"Safety","People feel that the importance of their family and culture is recognised, respected and understood\n","Proportion (%) of Aboriginal people who report that they felt a service was respectful of their culture","Measurability - psychological concepts are subjective.\nSensitivity -  the indicator is self report and thus can be influenced by client's memory and level of honesty",2,3,3,2,{"$f":"AVERAGE(F119:I119)","v":2.5},3,3,{"$f":"AVERAGE(F119:I119,K119:L119)","v":2.6666666666666665}]

{"sheet":"PP State Outcome mapping","index":8,"n_rows":119,"n_cols":6,"rows_kept":119,"cut":false,"hidden":false,"merged":[]}
[]
["Premier's Priority and State Outcome Mapping"]
["ID","Outcome domain","Client outcome","Indicator","Relevant Premier's Priority ","Relevant State Outcome(s)"]
[6,"Economic","Adults and young people who are able to work are employed","Proportion (%) of people who report underemployment","Outside the Cluster","Outside the Cluster"]
[10,"Economic","Adults and young people who are able to work are employed","Proportion (%) of people who are unemployed","Outside the Cluster","Outside the Cluster"]
[11,"Economic","Adults and young people who are able to work are in continuous employment","Proportion (%) of people who were employed continuously in past 12 months","Outside the Cluster","Outside the Cluster"]
[12,"Economic","Adults and young people are able to participate in education, training or the labour force","Proportion (%) of people who are unemployed and currently enrolled in some form of education or training","Outside the Cluster","Outside the Cluster"]
[14,"Economic","People have financial literacy and financial management skills","Proportion (%) of people who report having the financial skills to manage their finances","Outside the Cluster","Outside the Cluster"]
[18,"Economic","People have financial security and autonomy​","Proportion (%) of people who report that their household spends more money than it gets","Outside the Cluster","Outside the Cluster"]
[19,"Economic","People have financial security and autonomy​","Proportion (%) of people who could not raise $2,000 within a week","Outside the Cluster","Outside the Cluster"]
[20,"Economic","People have financial security and autonomy​","Proportion (%) of people who could not pay electricity, gas or telephone bills on time","Outside the Cluster","Outside the Cluster"]
[29,"Economic","People have financial security and autonomy​","Proportion (%) of people who have experienced a shortage of money and subsequently could not pay mortgage or rent","Outside the Cluster","Outside the Cluster"]
[39,"Economic","People have financial security and autonomy​","Proportion (%) of children living in families with secure parental employment","Outside the Cluster","Outside the Cluster"]
["49","Education and Skills","Children and young people participate in education or skills training","Proportion (%) of students who attended school 90 per cent or more of the time","Bumping up education results for children","Outside the Cluster"]
["50","Education and Skills","People achieve their educational aspirations","Proportion (%) of people who complete Year 12 or equivalent","Bumping up education results for children","Outside the Cluster"]
["52","Education and Skills","People achieve their educational aspirations","Proportion (%) of people with a vocational or higher education qualification","Bumping up education results for children","Outside the Cluster"]
["54","Education and Skills","People are engaged in their learning and strive for excellence in their education","Proportion (%) of children and young people who report feeling motivated to pursue education or attend school","Outside the Cluster","Outside the Cluster"]
["58","Education and Skills","People are engaged in their learning and strive for excellence in their education","Proportion (%) of students at or above the national minimum standard for literacy and numeracy (NAPLAN) ","Bumping up education results for children","Outside the Cluster"]
["59","Education and Skills","People are engaged in their learning and strive for excellence in their education","Proportion (%) of students who achieve an ATAR of 50.0 or above","Bumping up education results for children","Outside the Cluster"]
["63","Education and Skills","People are engaged in their learning and strive for excellence in their education","Proportion (%) of students who participate in NAPLAN assessments","Bumping up education results for children","Outside the Cluster"]
["64","Education and Skills","People are ready at each point of educational transition (e.g. have education and skills required to be work or school ready)","Proportion (%) of children developmentally vulnerable on two or more Australian Early Development Census domains","Outside the Cluster","Outside the Cluster"]
["66","Education and Skills","People are ready at each point of educational transition (e.g. have education and skills required to be work or school ready)","Proportion (%) of children attending early childhood education programs for 600 hours or more in the year prior to starting kindergarten","Outside the Cluster","Outside the Cluster"]
["67","Education and Skills","People are ready at each point of educational transition (e.g. have education and skills required to be work or school ready)","Proportion (%) of people who receive job skills training and employment support","Outside the Cluster","Outside the Cluster"]
["68","Empowerment","People are in charge of their own lives and feel a sense of choice and control (self-determination)","Proportion (%) of people who feel that they are able to control and influence their life outcomes","Outside the Cluster","Outside the Cluster"]
["69","Empowerment","People are in charge of their own lives and feel a sense of choice and control (self-determination)","Proportion (%) of people who report having involvement in decision-making","Outside the Cluster","Outside the Cluster"]
["70","Empowerment","People are in charge of their own lives and feel a sense of choice and control (self-determination)","Proportion (%) of people who report having choice and control over the services they receive","Outside the Cluster","Outside the Cluster"]
["73","Empowerment","People have a belief in self ","Proportion (%) of people who have high self-efficacy","Outside the Cluster","Outside the Cluster"]
["75","Empowerment","People are reslient and are able to tackle major life challenges","Proportion (%) of people who feel able to cope with life events","Outside the Cluster","Outside the Cluster"]
["77","Empowerment","People have hope for the future","Proportion (%) of people who report having hope for their future","Outside the Cluster","Outside the Cluster"]
["85","Health","Mothers have healthy pregnancies and babies have good birth outcomes","Proportion (%) of mothers who smoke during pregnancy","Outside the Cluster","Outside the Cluster"]
["87","Health","Mothers have healthy pregnancies and babies have good birth outcomes","Proportion (%) of live-born infants below a healthy weight at birth","Outside the Cluster","Outside the Cluster"]
["88","Health","Mothers have healthy pregnancies and babies have good birth outcomes","Proportion (%) of women who report substance misuse during pregnancy","Outside the Cluster","Outside the Cluster"]
["89","Health","Mothers have healthy pregnancies and babies have good birth outcomes","Proportion (%) of women who present for antenatal care programs","Outside the Cluster","Outside the Cluster"]
["90","Health","Mothers have healthy pregnancies and babies have good birth outcomes","Proportion (%) of infants exclusively breastfed at 4 months of age","Outside the Cluster","Outside the Cluster"]
["91","Health","People have a healthy lifestyle and avoid risk taking behaviours that negatively impact their health","Proportion (%) of people who report levels of physical activity below nationally recommended levels","Outside the Cluster","Active and inclusive communities"]
["98","Health","People have a healthy lifestyle and avoid risk taking behaviours that negatively impact their health","Proportion (%) of people who currently smoke tobacco ","Outside the Cluster","Outside the Cluster"]
["99","Health","People have a healthy lifestyle and avoid risk taking behaviours that negatively impact their health","Proportion (%) of adults currently consuming alcohol at levels posing long-term risk to health","Outside the Cluster","Outside the Cluster"]
["100","Health","People have a healthy lifestyle and avoid risk taking behaviours that negatively impact their health","Proportion (%) of people who have not used an illicit substance within the last 12 months","Outside the Cluster","Outside the Cluster"]
["107","Health","People have good mental health and social and emotional wellbeing","Proportion (%) of people who report having high levels of psychological distress","Towards zero suicides","Outside the Cluster"]
["113","Health","People have good mental health and social and emotional wellbeing","Suicide rate per 100,000 population by age","Towards zero suicides","Outside the Cluster"]
["114","Health","People have good mental health and social and emotional wellbeing","Proportion (%) of people who report often feeling lonely","Outside the Cluster","Active and inclusive communities"]
["115","Health","People have good mental health and social and emotional wellbeing","Proportion (%) of children with good social and emotional functioning","Outside the Cluster","Outside the Cluster"]
["116","Health","People have good mental health and social and emotional wellbeing","Proportion (%) of children aged 0-5 years with developmental delays","Outside the Cluster","Outside the Cluster"]
["117","Health","People have good physical health","Proportion (%) of children who are free from tooth decay","Outside the Cluster","Outside the Cluster"]
["119","Health","People have good physical health","Proportion (%) of people who report having excellent/very good/good/fair/poor health","Outside the Cluster","Active and inclusive communities"]
["121","Health","People have good physical health","Proportion (%) of children and young people with up-to-date immunisation record","Outside the Cluster","Outside the Cluster"]
["122","Health","People have good physical health","Proportion (%) of people who are overweight or obese","Outside the Cluster","Active and inclusive communities"]
["129","Home","Housing is affordable for people","Proportion (%) of people in the bottom 40 per cent of the income distribution whose housing costs exceed 30 per cent of income","Outside the Cluster","People have a safe and affordable place to live"]
["131","Home","Housing is appropriate to occupants’ needs","Proportion (%) of people who have amenities that meet their needs","Outside the Cluster","Outside the Cluster"]
["135","Home","Housing is appropriate to occupants’ needs","Proportion (%) of people who live in dwellings considered overcrowded","Outside the Cluster","Outside the Cluster"]
["136","Home","People live in housing with good condition and with good access to local facilities and services","Proportion (%) of people living in homes that meet safety standards","Outside the Cluster","People have a safe and affordable place to live"]
["138","Home","People have stability in their home","Proportion (%) of the people in Transitional Housing","Reducing homelessness","People have a safe and affordable place to live"]
["144","Home","People have stability in their home","Proportion (%) of people with frequent housing changes","Reducing homelessness","People have a safe and affordable place to live"]
["145","Home","People have stability in their home","Proportion (%) of people who are homeless","Reducing homelessness","People have a safe and affordable place to live"]
["147","Home","People have stability in their home","Proportion (%) of people who report being secure in their accommodation","Reducing homelessness","People have a safe and affordable place to live"]
["152","Home","People have stability in their home","Proportion (%) of homeless people who move from Specialist Homelessness Services to stable accommodation","Reducing homelessness","People have a safe and affordable place to live"]
["160","Home","People have stability in their home","Proportion (%) of children and young people in Out-of-Home- Care who have had 2 or fewer placement changes in the last 12 months","Increasing permanency for children in out-of-home care","People have a safe and affordable place to live"]
["161","Home","People are able to live independent from housing support","Number of people that positively transition out of the social housing system","Reducing homelessness","People have a safe and affordable place to live"]
["162","Home","People are able to live independent from housing support","Number of people that negatively exit out of the social housing system","Reducing homelessness","People have a safe and affordable place to live"]
["167","Home","People live in housing with good condition and with good access to local facilities and services","Proportion (%) of people satisfied with the home they live in","Outside the Cluster","Outside the Cluster"]
["168","Home","People live in housing with good condition and with good access to local facilities and services","Proportion (%) of people living in homes of acceptable standard","Outside the Cluster","Outside the Cluster"]
["178","Safety","Children and young people grow up in families and communities that are stable and supportive with strong relationships","Proportion (%) of children and young people who report the presence of relationships that facilitate disclosure of safety and wellbeing concerns","Outside the Cluster","Children and families thrive"]
["180","Safety","Children and young people grow up in families and communities that are stable and supportive with strong relationships","Proportion (%) of children and young people who report high levels of emotional and social support","Outside the Cluster","Children and families thrive"]
["181","Safety","Parents, carers, and kin have the skills and capacity to keep children and young people safe at home","Proportion (%) of parents engaged in positive parenting techniques ","Outside the Cluster","Outside the Cluster"]
["188","Safety","Parents, carers, and kin have the skills and capacity to keep children and young people safe at home","Proportion (%) of parents who have not engaged in risky and high-risk drinking patterns in the last 12 months","Outside the Cluster","Outside the Cluster"]
["189","Safety","Parents, carers, and kin have the skills and capacity to keep children and young people safe at home","Proportion (%) of parents who have not used an illicit substance in the last 12 months","Outside the Cluster","Outside the Cluster"]
["191","Safety","People are physically and emotionally safe in their communities​","Rate of crimes against the person per 1,000","Reducing recidivism in the prison population","Safer communities; Reduce reoffending"]
["196","Safety","People are physically and emotionally safe in their communities​","Proportion (%) of people who report feeling safe in their neighbourhood","Outside the Cluster","Safer communities; Active and inclusive communities"]
["201","Safety","People are physically and emotionally safe in their communities​","Proportion (%) of people who report being a victim of personal crime (i.e. physical assault, threatened assault, robbery or sexual assault) in the last 12 months","Outside the Cluster","Safer communities; Reduce reoffending"]
["202","Safety","People are physically and emotionally safe in their communities​","Proportion (%) of people who report being bullied","Outside the Cluster","Active and inclusive communities"]
["203","Safety","People are physically and emotionally safe in their communities​","Proportion (%) of people who experience discrimination or racism","Outside the Cluster","Active and inclusive communities"]
["205","Safety","People are safe from abuse and neglect","Proportion (%) of children and young people re-reported at ROSH","Protecting our most vulnerable children","Children and families thrive"]
["206","Safety","People are safe from abuse and neglect","Rate of children and young people at Risk of Significant Harm (ROSH) per 1,000 of population","Protecting our most vulnerable children","Children and families thrive"]
["207","Safety","People are safe from abuse and neglect","Proportion (%) of children and young people in Out-of-Home-Care reported at ROSH post restoration","Increasing permanency for children in out-of-home care","Children and families thrive"]
["215","Safety","People are safe from abuse and neglect","Proportion (%) of children and young people assessed at high or very high risk","Protecting our most vulnerable children","Children and families thrive"]
["217","Safety","People are safe from abuse and neglect","Proportion (%) of people who report feeling safe at home","Protecting our most vulnerable children; Increasing permanency in out-of-home care","Children and families thrive"]
["222","Safety","People are safe from domestic and family violence​","Proportion (%) of people who have been a victim of a reported instance of domestic and family violence","Reducing domestic violence reoffending","Safer communities; Reduce reoffending; Children and families thrive"]
["226","Safety","People are safe from domestic and family violence​","Proportion (%) of domestic and family violence perpetrators re-offending within 12 months","Reducing domestic violence reoffending","Safer communities; Reduce reoffending; Children and families thrive"]
["227","Safety","People are safe from domestic and family violence​","Proportion (%) of domestic and family violence victims that are re-victimised","Reducing domestic violence reoffending","Safer communities; Reduce reoffending; Children and families thrive"]
["231","Safety","People feel that the importance of their family and culture is recognised, respected and understood","Proportion (%) of Aboriginal children and young people in Out-of-Home-Care managed by accredited Aboriginal community controlled organisations","Increasing permanency for children in out-of-home care","Children and families thrive"]
["235","Social and Community","People are connected to supportive relationships","Proportion (%) of people who report having a person(s) to lean on in times of trouble ","Outside the Cluster","Outside the Cluster"]
["238","Social and Community","People are connected to supportive relationships","Proportion (%) of people who report having supportive relationships","Outside the Cluster","Outside the Cluster"]
["244","Social and Community","People are connected to supportive relationships","Proportion (%) of people who report good social ties in their neighbourhood","Outside the Cluster","Active and inclusive communities"]
["245","Social and Community","People feel a sense of connection and belonging to their communities","Proportion (%) of people who report feeling a sense of belonging in the place and community where they live","Outside the Cluster","Active and inclusive communities"]
["247","Social and Community","People feel a sense of connection and belonging to their communities","Proportion (%) of children and young people who report feeling a sense of belonging at school and peer acceptance","Outside the Cluster","Outside the Cluster"]
["258","Social and Community","People live in communities with good conditions and with good access to local facilities and services","Proportion (%) of people satisfied with the quality of their neighbourhood","Outside the Cluster","Active and inclusive communities"]
["262","Social and Community","People live in communities with good conditions and with good access to local facilities and services","Proportion (%) of people satisfied with access to services and facilities","Outside the Cluster","Active and inclusive communities"]
["264","Health","People have a healthy lifestyle and avoid risk taking behaviours that negatively impact their health","Age-specific birth rate for 15 to 19 year old women per 1,000 females","Outside the Cluster","Outside the Cluster"]
["288","Safety","People are safe from abuse and neglect","Rate of children and young people entering care per 1,000 of population","Protecting our most vulnerable children; Increasing permanency in out-of-home care","Children and families thrive"]
["297","Health","Aboriginal people heal from inter-generational trauma and loss","Proportion (%) of Aboriginal people who report that they know when and where to seek culturally appropriate support to prevent escalation to crisis","Outside the Cluster","Outside the Cluster"]
["300","Empowerment","Aboriginal people are able to have a voice in community decision-making","Proportion (%) of Aboriginal people who report feeling heard in their community","Outside the Cluster","Active and inclusive communities"]
["301","Safety","People are safe from domestic and family violence​","Proportion (%) of people who report experiencing domestic and family violence in the last 12 months","Reducing domestic violence reoffending","Safer communities; Reduce reoffending; Children and families thrive"]
["308","Health","Mothers have healthy pregnancies and babies have good birth outcomes","Proportion (%) of mothers who experience high levels of maternal stress","Outside the Cluster","Outside the Cluster"]
["309","Education and Skills","People are ready at each point of educational transition (e.g. have education and skills required to be work or school ready)","Proportion (%) of children that are school ready according to Best Start","Outside the Cluster","Outside the Cluster"]
["311","Economic","Adults and young people are able to participate in education, training or the labour force","Proportion (%) of people aged 16-64 currently employed or seeking employment","Outside the Cluster","Outside the Cluster"]
["315","Home","Housing is appropriate to occupants’ needs","Proportion (%) of Aboriginal people who report that their home meets their cultural needs","Outside the Cluster","Outside the Cluster"]
["316","Education and Skills","People are engaged in their learning and strive for excellence in their education","Proportion (%) of children and young people who experience an unplanned school move in the last 12 months","Outside the Cluster","Outside the Cluster"]
["317","Empowerment","Aboriginal people are able to have a voice in community decision-making","Proportion (%) of Aboriginal people who report feeling they have influence in community decision-making","Outside the Cluster","Active and inclusive communities"]
["319","Social and community","People feel a sense of connection and belonging to their culture and identities","Proportion (%) of people who have knowledge of their language","Outside the Cluster","Outside the Cluster"]
["320","Social and community","People feel a sense of connection and belonging to their culture and identities","Proportion (%) of people who feel a connection to their culture","Outside the Cluster","Outside the Cluster"]
["321","Social and community","People feel a sense of connection and belonging to their culture and identities","Proportion (%) of people who have knowledge of their culture","Outside the Cluster","Outside the Cluster"]
["322","Social and community","People feel a sense of connection and belonging to their culture and identities","Proportion (%) of Aboriginal people who feel a connection to Country","Outside the Cluster","Outside the Cluster"]
["323","Health","Aboriginal people heal from inter-generational trauma and loss","Proportion (%) of children and young people in Out-of-Home-Care who have a parent who was also in Out-of-Home-Care","Outside the Cluster","Outside the Cluster"]
["324","Education and Skills","People are engaged in their learning and strive for excellence in their education","Proportion (%) of people who are recorded as having low literacy levels","Outside the Cluster","Outside the Cluster"]
["325","Social and community","People feel a sense of connection and belonging to their culture and identities","Proportion (%) of Aboriginal people who report having opportunities to practice their language","Outside the Cluster","Outside the Cluster"]
["326","Safety","People feel that the importance of their family and culture is recognised, respected and understood","Proportion (%) of Aboriginal people who report having trust in provider of Government services","Outside the Cluster","Outside the Cluster"]
["327","Home","People are able to live independent from housing support","Number of people that neutrally transition out of the social housing system","Reducing homelessness","People have a safe and affordable place to live"]
["328","Home","Aboriginal people are able to live on Country or in a community of belonging","Proportion (%) of Aboriginal people who make a choice to return to live on Country","Outside the Cluster","Outside the Cluster"]
["329","Social and community","Aboriginal people know who their families are and are able to feel a connection to them","Proportion (%) of Aboriginal people who know who their family are","Outside the Cluster","Outside the Cluster"]
["331","Empowerment","Aboriginal people are able to have a voice in community decision-making","Proportion (%) of Aboriginal people engaged in local decision- making forums","Outside the Cluster","Active and inclusive communities"]
["332","Empowerment","People have cultural empowerment","Proportion (%) of people who feel culturally confident","Outside the Cluster","Outside the Cluster"]
["333","Safety","People feel that the importance of their family and culture is recognised, respected and understood","Proportion (%) of Aboriginal children and young people in Out-of-Home-Care with an age appropriate cultural plan","Increasing permanency for children in out-of-home care","Children and families thrive"]
["334","Home","Aboriginal people are able to live on Country or in a community of belonging","Proportion (%) of Aboriginal people who have family living in their neighbourhood ","Outside the Cluster","Active and inclusive communities"]
["335","Education and Skills","People achieve their educational aspirations","Proportion (%) of children and young people who are below minimum standards who improve their performance to above minimum standards","Bumping up education results for children","Outside the Cluster"]
["336","Education and Skills","People achieve their educational aspirations","Proportion (%) of children and young people who are at or above minimum standards who either improve or maintain their performance","Bumping up education results for children","Outside the Cluster"]
["337","Home","People have stability in their home","Proportion of clients experiencing homelessness who had repeat periods of homelessness","Reducing homelessness","People have a safe and affordable place to live"]
[338,"Safety","People feel that the importance of their family and culture is recognised, respected and understood","Proportion (%) of CALD people who report having trust in providers of Government services","Outside the Cluster","Outside the Cluster"]
[339,"Safety","People feel that the importance of their family and culture is recognised, respected and understood","Proportion (%) of CALD people who report that they felt a service was respectful of their culture","Outside the Cluster","Outside the Cluster"]
[318,"Safety","People feel that the importance of their family and culture is recognised, respected and understood\n","Proportion (%) of Aboriginal people who report that they felt a service was respectful of their culture","Outside the Cluster","Outside the Cluster"]